{"text_format":"3","workbook":"xlsx","n_sheets":19,"sheets":["0_Versions","a_Contents","b_Guidelines&Conditions","c_CodeLists","A_InstData","B_EmInst","C_Emissions&Energy","D_Processes","E_PurchPrec","F_Tools","G_FurtherGuidance","Summary_Processes","Summary_Products","Summary_Communication","InputOutput","Parameters_Constants","Parameters_CNCodes","Translations","VersionDocumentation"],"not_rendered":{"defined_names":100,"comments":1},"read":"whole","date_system":"1900"}

{"sheet":"0_Versions","index":0,"n_rows":20,"n_cols":21,"rows_kept":20,"merged":[[1,1,3,3],[1,4,1,5],[1,6,1,7],[1,8,1,9],[1,10,1,11],[1,12,1,13],[2,4,2,5],[2,6,2,7],[2,8,2,9],[2,10,2,11],[2,12,2,13],[3,4,3,5],[3,6,3,7],[3,8,3,9],[3,10,3,11],[3,12,3,13],[7,6,7,13],[8,6,8,13],[9,6,9,13],[10,6,10,13],[11,6,11,13],[12,6,12,13],[13,6,13,13],[14,6,14,13],[15,6,15,13],[16,6,16,13]]}
["ausblenden",{"$nulls":16},"ausblenden","ausblenden","ausblenden","ausblenden"]
[null,{"$f":"Translations!$B$5","v":"Version history"},null,null,{"$f":"Translations!$B$11","v":"Navigation Area:"},null,{"$f":"HYPERLINK(\"#\"&ADDRESS(2,3,,,a_Contents!$U$2),a_Contents!$B$2)","v":"Table of contents"},null,{"$f":"HYPERLINK(\"#\"&ADDRESS(2,3,,,G_FurtherGuidance!$U$2),G_FurtherGuidance!$B$2)","v":"Further Guidance"},null,{"$f":"HYPERLINK(\"#\"&ADDRESS(2,3,,,Summary_Processes!$Y$2),Summary_Processes!$Y$2)","v":"Summary_Processes"},null,{"$f":"HYPERLINK(\"#\"&ADDRESS(2,3,,,Summary_Products!$BF$2),Summary_Products!$BF$2)","v":"Summary_Products"},{"$nulls":4},"Print area:",{"$f":"ADDRESS(ROW($B$6),COLUMN($B$6))&\":\"&ADDRESS(MATCH(\"PRINT\",$P:$P,0),COLUMN($O$6))","v":"$B$6:$O$20"},"Name of this sheet",{"$f":"IF(ISERROR(CELL(\"filename\",V2)),\"MSParameters\",MID(CELL(\"filename\",V2),FIND(\"]\",CELL(\"filename\",V2))+1,1024))","v":"0_Versions"}]
[]
[]
[]
[null,null,{"$f":"Translations!$B$6","v":"Sheet \"Version history\""}]
[]
[{"$nulls":4},{"$f":"Translations!$B$7","v":"Version"},{"$f":"Translations!$B$8","v":"Date"},{"$f":"Translations!$B$9","v":"Description"}]
[{"$nulls":4},"0.1","2023-08-21","first preliminary published version"]
[{"$nulls":4},"1.0","2023-10-23","- Sheet A: UNLOCODE made mandatory\n- Sheet B: Calculation of emissions corrected (incl. adding missing factor of 3.664 in the mass balance)\n- Sheet C: Inconsistency between cells L16 and L17 fixed\n- Sheet D: Electricity exported bug fixed\n- Sheet Summary processes: broken references to “production process 1” fixed\n- Sheet Summary products: Scrap per t steel/aluminum: values >100% can be entered now"]
{"$rows_empty":9}
["ausblenden",{"$nulls":14},"PRINT"]

{"sheet":"a_Contents","index":1,"n_rows":68,"n_cols":21,"rows_kept":68,"merged":[[1,1,3,3],[1,4,1,5],[1,6,1,7],[1,8,1,9],[1,10,1,11],[1,12,1,13],[2,4,2,5],[2,6,2,7],[2,8,2,9],[2,10,2,11],[2,12,2,13],[3,4,3,5],[3,6,3,7],[3,8,3,9],[3,10,3,11],[3,12,3,13],[7,3,7,10],[9,3,9,10],[11,3,11,10],[13,3,13,10],[15,3,15,10],[16,4,16,10],[17,4,17,10],[18,4,18,10],[19,4,19,10],[20,4,20,10],[22,3,22,10],[23,4,23,10],[24,4,24,10],[25,4,25,10],[27,3,27,10],[28,4,28,10],[29,4,29,10],[31,3,31,10],[32,4,32,10],[34,3,34,10],[35,4,35,10],[37,3,37,10],[38,4,38,10],[39,4,39,10],[41,3,41,10],[42,4,42,10],[43,4,43,10],[44,4,44,10],[45,4,45,10],[48,3,48,10],[49,3,49,10],[50,3,50,10],[52,3,52,10],[53,3,53,10]]}
["ausblenden",{"$nulls":16},"ausblenden","ausblenden","ausblenden","ausblenden"]
[null,{"$f":"Translations!$B$10","v":"Table of contents"},null,null,{"$f":"Translations!$B$11","v":"Navigation Area:"},null,{"$f":"HYPERLINK(\"#\"&ADDRESS(2,3,,,a_Contents!$U$2),a_Contents!$B$2)","v":"Table of contents"},null,{"$f":"HYPERLINK(\"#\"&ADDRESS(2,3,,,G_FurtherGuidance!$U$2),G_FurtherGuidance!$B$2)","v":"Further Guidance"},null,{"$f":"HYPERLINK(\"#\"&ADDRESS(2,3,,,Summary_Processes!$Y$2),Summary_Processes!$Y$2)","v":"Summary_Processes"},null,{"$f":"HYPERLINK(\"#\"&ADDRESS(2,3,,,Summary_Products!$BF$2),Summary_Products!$BF$2)","v":"Summary_Products"},{"$nulls":4},"Print area:",{"$f":"ADDRESS(ROW($B$6),COLUMN($B$6))&\":\"&ADDRESS(MATCH(\"PRINT\",$P:$P,0),COLUMN($O$6))","v":"$B$6:$O$65"},"Name of this sheet",{"$f":"IF(ISERROR(CELL(\"filename\",V2)),\"MSParameters\",MID(CELL(\"filename\",V2),FIND(\"]\",CELL(\"filename\",V2))+1,1024))","v":"a_Contents"}]
[]
[]
[]
[null,null,{"$f":"Translations!$B$12","v":"Sheet \"Table of contents\""}]
[]
[null,null,"0.",{"$f":"HYPERLINK(\"#\"&S8,INDIRECT(S8))","v":"Sheet \"Version history\""},{"$nulls":14},{"$f":"ADDRESS(6,3,,,T8)","v":"'0_Versions'!$C$6"},{"$f":"'0_Versions'!$U$2","v":"0_Versions"}]
[]
[null,null,"a.",{"$f":"HYPERLINK(\"#\"&S10,INDIRECT(S10))","v":"Sheet \"Table of contents\""},{"$nulls":14},{"$f":"ADDRESS(6,3,,,T10)","v":"a_Contents!$C$6"},{"$f":"$U$2","v":"a_Contents"}]
[]
[null,null,"b.",{"$f":"HYPERLINK(\"#\"&S12,INDIRECT(S12))","v":"Sheet \"Guidelines & conditions\""},{"$nulls":14},{"$f":"ADDRESS(6,3,,,T12)","v":"'b_Guidelines&Conditions'!$C$6"},{"$f":"'b_Guidelines&Conditions'!$U$2","v":"b_Guidelines&Conditions"}]
[]
[null,null,"c.",{"$f":"HYPERLINK(\"#\"&S14,INDIRECT(S14))","v":"Sheet \"Code Lists\""},{"$nulls":14},{"$f":"ADDRESS(6,3,,,T14)","v":"c_CodeLists!$C$6"},{"$f":"c_CodeLists!$U$2","v":"c_CodeLists"}]
[]
[null,null,"A.",{"$f":"HYPERLINK(\"#\"&S16,INDIRECT(S16))","v":"Sheet \"A_InstData\" - General information, production processes and purchased precursors "},{"$nulls":14},{"$f":"ADDRESS(6,5,,,T16)","v":"A_InstData!$E$6"},{"$f":"A_InstData!$U$2","v":"A_InstData"}]
[{"$nulls":3},1,{"$f":"HYPERLINK(\"#\"&S17,INDIRECT(S17))","v":"Reporting period"},{"$nulls":13},{"$f":"ADDRESS(MATCH(D17,INDIRECT(\"'\"&T17&\"'!A:A\")),4,,,T17)","v":"A_InstData!$D$9"},{"$f":"T16","v":"A_InstData"}]
[{"$nulls":3},2,{"$f":"HYPERLINK(\"#\"&S18,INDIRECT(S18))","v":"About the installation"},{"$nulls":13},{"$f":"ADDRESS(MATCH(D18,INDIRECT(\"'\"&T18&\"'!A:A\")),4,,,T18)","v":"A_InstData!$D$17"},{"$f":"T17","v":"A_InstData"}]
[{"$nulls":3},3,{"$f":"HYPERLINK(\"#\"&S19,INDIRECT(S19))","v":"Verifier of the report – only if available and not required during transitional period"},{"$nulls":13},{"$f":"ADDRESS(MATCH(D19,INDIRECT(\"'\"&T19&\"'!A:A\")),4,,,T19)","v":"A_InstData!$D$34"},{"$f":"T18","v":"A_InstData"}]
[{"$nulls":3},4,{"$f":"HYPERLINK(\"#\"&S20,INDIRECT(S20))","v":"Aggregated goods categories and relevant production processes"},{"$nulls":13},{"$f":"ADDRESS(MATCH(D20,INDIRECT(\"'\"&T20&\"'!A:A\")),4,,,T20)","v":"A_InstData!$D$55"},{"$f":"T19","v":"A_InstData"}]
[{"$nulls":3},5,{"$f":"HYPERLINK(\"#\"&S21,INDIRECT(S21))","v":"Purchased precursors"},{"$nulls":13},{"$f":"ADDRESS(MATCH(D21,INDIRECT(\"'\"&T21&\"'!A:A\")),4,,,T21)","v":"A_InstData!$D$95"},{"$f":"T20","v":"A_InstData"}]
[]
[null,null,"B.",{"$f":"HYPERLINK(\"#\"&S23,INDIRECT(S23))","v":"Sheet \"B_EmInst\" - Installation's emission at source stream and emission source level"},{"$nulls":14},{"$f":"ADDRESS(6,4,,,T23)","v":"B_EmInst!$D$6"},{"$f":"B_EmInst!$BD$2","v":"B_EmInst"}]
[{"$nulls":3},1,{"$f":"HYPERLINK(\"#\"&S24,INDIRECT(S24))","v":"Source Streams (excluding PFC emissions)"},{"$nulls":13},{"$f":"ADDRESS(MATCH(D24,INDIRECT(\"'\"&T24&\"'!A:A\")),4,,,T24)","v":"B_EmInst!$D$12"},{"$f":"T23","v":"B_EmInst"}]
[{"$nulls":3},2,{"$f":"HYPERLINK(\"#\"&S25,INDIRECT(S25))","v":"PFC Emissions"},{"$nulls":13},{"$f":"ADDRESS(MATCH(D25,INDIRECT(\"'\"&T25&\"'!A:A\")),4,,,T25)","v":"B_EmInst!$D$95"},{"$f":"T24","v":"B_EmInst"}]
[{"$nulls":3},3,{"$f":"HYPERLINK(\"#\"&S26,INDIRECT(S26))","v":"Emissions Sources (Measurement-Based Approaches)"},{"$nulls":13},{"$f":"ADDRESS(MATCH(D26,INDIRECT(\"'\"&T26&\"'!A:A\")),4,,,T26)","v":"B_EmInst!$D$109"},{"$f":"T25","v":"B_EmInst"}]
[]
[null,null,"C.",{"$f":"HYPERLINK(\"#\"&S28,INDIRECT(S28))","v":"Sheet \"C_Emissions&Energy\" - Installation-level GHG emissions and energy consumption"},{"$nulls":14},{"$f":"ADDRESS(6,5,,,T28)","v":"'C_Emissions&Energy'!$E$6"},{"$f":"'C_Emissions&Energy'!$U$2","v":"C_Emissions&Energy"}]
[{"$nulls":3},1,{"$f":"HYPERLINK(\"#\"&S29,INDIRECT(S29))","v":"Fuel balance"},{"$nulls":13},{"$f":"ADDRESS(MATCH(D29,INDIRECT(\"'\"&T29&\"'!A:A\")),4,,,T29)","v":"'C_Emissions&Energy'!$D$8"},{"$f":"T28","v":"C_Emissions&Energy"}]
[{"$nulls":3},2,{"$f":"HYPERLINK(\"#\"&S30,INDIRECT(S30))","v":"Greenhouse gas emissions balance & information on data quality"},{"$nulls":13},{"$f":"ADDRESS(MATCH(D30,INDIRECT(\"'\"&T30&\"'!A:A\")),4,,,T30)","v":"'C_Emissions&Energy'!$D$19"},{"$f":"T29","v":"C_Emissions&Energy"}]
[]
[null,null,"D.",{"$f":"HYPERLINK(\"#\"&S32,INDIRECT(S32))","v":"Sheet \"D_Processes\" - Production level and attributed emissions for SEE calculation"},{"$nulls":14},{"$f":"ADDRESS(7,5,,,T32)","v":"D_Processes!$E$7"},{"$f":"D_Processes!$U$2","v":"D_Processes"}]
[{"$nulls":3},1,{"$f":"HYPERLINK(\"#\"&S33,INDIRECT(S33))","v":"Data input for the determination of the specific embedded emissions"},{"$nulls":13},{"$f":"ADDRESS(MATCH(D33,INDIRECT(\"'\"&T33&\"'!A:A\")),4,,,T33)","v":"D_Processes!$D$9"},{"$f":"T32","v":"D_Processes"}]
[]
[null,null,"E.",{"$f":"HYPERLINK(\"#\"&S35,INDIRECT(S35))","v":"Sheet \"E_PurchPrec\" - Purchased precursors for SEE calculation"},{"$nulls":14},{"$f":"ADDRESS(7,5,,,T35)","v":"E_PurchPrec!$E$7"},{"$f":"E_PurchPrec!$U$2","v":"E_PurchPrec"}]
[{"$nulls":3},1,{"$f":"HYPERLINK(\"#\"&S36,INDIRECT(S36))","v":"Data input for the determination of the specific embedded emissions"},{"$nulls":13},{"$f":"ADDRESS(MATCH(D36,INDIRECT(\"'\"&T36&\"'!A:A\")),4,,,T36)","v":"E_PurchPrec!$D$9"},{"$f":"T35","v":"E_PurchPrec"}]
[]
[null,null,"F.",{"$f":"HYPERLINK(\"#\"&S38,INDIRECT(S38))","v":"Sheet \"F_Tools\" - Tools for facilitating reporting"},{"$nulls":14},{"$f":"ADDRESS(6,5,,,T38)","v":"F_Tools!$E$6"},{"$f":"F_Tools!$U$2","v":"F_Tools"}]
[{"$nulls":3},1,{"$f":"HYPERLINK(\"#\"&S39,INDIRECT(S39))","v":"Cogeneration Tool"},{"$nulls":13},{"$f":"ADDRESS(MATCH(D39,INDIRECT(\"'\"&T39&\"'!A:A\")),4,,,T39)","v":"F_Tools!$D$8"},{"$f":"T38","v":"F_Tools"}]
[{"$nulls":3},2,{"$f":"HYPERLINK(\"#\"&S40,INDIRECT(S40))","v":"Tool to calculate the carbon price due"},{"$nulls":13},{"$f":"ADDRESS(MATCH(D40,INDIRECT(\"'\"&T40&\"'!A:A\")),4,,,T40)","v":"F_Tools!$D$81"},{"$f":"T39","v":"F_Tools"}]
[]
[null,null,"G.",{"$f":"HYPERLINK(\"#\"&S42,INDIRECT(S42))","v":"Sheet \"G_FurtherGuidance\" - Further guidance on specific sections in this template"},{"$nulls":14},{"$f":"ADDRESS(6,5,,,T42)","v":"G_FurtherGuidance!$E$6"},{"$f":"G_FurtherGuidance!$U$2","v":"G_FurtherGuidance"}]
[{"$nulls":3},1,{"$f":"HYPERLINK(\"#\"&S43,INDIRECT(S43))","v":"General guidance"},{"$nulls":13},{"$f":"ADDRESS(MATCH(D43,INDIRECT(\"'\"&T43&\"'!A:A\")),4,,,T43)","v":"G_FurtherGuidance!$D$8"},{"$f":"T42","v":"G_FurtherGuidance"}]
[{"$nulls":3},2,{"$f":"HYPERLINK(\"#\"&S44,INDIRECT(S44))","v":"Source streams and emission sources"},{"$nulls":13},{"$f":"ADDRESS(MATCH(D44,INDIRECT(\"'\"&T44&\"'!A:A\")),4,,,T44)","v":"G_FurtherGuidance!$D$17"},{"$f":"T43","v":"G_FurtherGuidance"}]
[{"$nulls":3},3,{"$f":"HYPERLINK(\"#\"&S45,INDIRECT(S45))","v":"Attribution of emissions to production processes"},{"$nulls":13},{"$f":"ADDRESS(MATCH(D45,INDIRECT(\"'\"&T45&\"'!A:A\")),4,,,T45)","v":"G_FurtherGuidance!$D$65"},{"$f":"T44","v":"G_FurtherGuidance"}]
[{"$nulls":3},4,{"$f":"HYPERLINK(\"#\"&S46,INDIRECT(S46))","v":"Summary of products"},{"$nulls":13},{"$f":"ADDRESS(MATCH(D46,INDIRECT(\"'\"&T46&\"'!A:A\")),4,,,T46)","v":"G_FurtherGuidance!$D$106"},{"$f":"T45","v":"G_FurtherGuidance"}]
[]
[]
[{"$nulls":3},{"$f":"Translations!$B$13","v":"The following two sheets summarise the results at process and product level, respectively:"}]
[{"$nulls":3},{"$f":"HYPERLINK(\"#\"&S50,INDIRECT(S50))","v":"Summary of production processes"},{"$nulls":14},{"$f":"ADDRESS(2,3,,,T50)","v":"Summary_Processes!$C$2"},{"$f":"Summary_Processes!$Y$2","v":"Summary_Processes"}]
[{"$nulls":3},{"$f":"HYPERLINK(\"#\"&S51,INDIRECT(S51))","v":"Summary of products"},{"$nulls":14},{"$f":"ADDRESS(2,2,,,T51)","v":"Summary_Products!$B$2"},{"$f":"Summary_Products!$BF$2","v":"Summary_Products"}]
[]
[{"$nulls":3},{"$f":"Translations!$B$14","v":"The following sheet summarises the main information to be communicated to the reporting declarant:"}]
[{"$nulls":3},{"$f":"HYPERLINK(\"#\"&S54,INDIRECT(S54))","v":"Communication with reporting declarants"},{"$nulls":14},{"$f":"ADDRESS(2,2,,,T54)","v":"Summary_Communication!$B$2"},{"$f":"Summary_Communication!$BE$2","v":"Summary_Communication"}]
[]
[]
[]
[{"$nulls":3},{"$f":"Translations!$B$15","v":"Language version:"},{"$nulls":3},{"$f":"INDEX(Translations!$C$4:$M$4,Translations!A4-2)","v":"English Version (Original)"}]
[{"$nulls":3},{"$f":"Translations!$B$16","v":"Reference filename:"},{"$nulls":3},{"$f":"VersionDocumentation!C3","v":"CBAM SEE Communication_UBA_en_231023.xls"}]
[]
[{"$nulls":3},{"$f":"Translations!$B$17","v":"Information about this file:"}]
[{"$nulls":3},{"$f":"Translations!$B$18","v":"Installation name:"},{"$nulls":3},{"$f":"IF(A_InstData!I20=\"\",\"\",A_InstData!I20)","v":""}]
[{"$nulls":3},{"$f":"Translations!$B$19","v":"Reporting period:"},{"$nulls":3},{"$f":"Translations!$B$20","v":"from:"},{"$f":"IF(A_InstData!I9=\"\",\"\",A_InstData!I9)","v":""},{"$f":"Translations!$B$21","v":"to:"},{"$f":"IF(A_InstData!L9=\"\",\"\",A_InstData!L9)","v":""}]
[]
["ausblenden",{"$nulls":14},"PRINT"]
["ausblenden"]
["ausblenden"]
["ausblenden"]

{"sheet":"b_Guidelines&Conditions","index":2,"n_rows":52,"n_cols":21,"rows_kept":52,"merged":[[1,1,3,3],[1,4,1,5],[1,6,1,7],[1,8,1,9],[1,10,1,11],[1,12,1,13],[2,4,2,5],[2,6,2,7],[2,8,2,9],[2,10,2,11],[2,12,2,13],[3,4,3,5],[3,6,3,7],[3,8,3,9],[3,10,3,11],[3,12,3,13],[9,2,9,13],[11,2,11,13],[13,2,13,13],[14,2,14,13],[15,2,15,13],[16,2,16,13],[20,2,20,13],[21,2,21,13],[22,2,22,13],[23,2,23,13],[24,2,24,13],[25,2,25,13],[30,3,30,4],[31,3,31,4],[32,3,32,4],[33,3,33,4],[34,3,34,4],[37,4,37,13],[38,4,38,13],[39,4,39,13],[41,2,41,13],[42,2,42,13],[43,2,43,13],[45,2,45,13]]}
["ausblenden",{"$nulls":16},"ausblenden","ausblenden","ausblenden","ausblenden"]
[null,{"$f":"Translations!$B$22","v":"Guidelines & Conditions"},null,null,{"$f":"Translations!$B$11","v":"Navigation Area:"},null,{"$f":"HYPERLINK(\"#\"&ADDRESS(2,3,,,a_Contents!$U$2),a_Contents!$B$2)","v":"Table of contents"},null,{"$f":"HYPERLINK(\"#\"&ADDRESS(2,3,,,G_FurtherGuidance!$U$2),G_FurtherGuidance!$B$2)","v":"Further Guidance"},null,{"$f":"HYPERLINK(\"#\"&ADDRESS(2,3,,,Summary_Processes!$Y$2),Summary_Processes!$Y$2)","v":"Summary_Processes"},null,{"$f":"HYPERLINK(\"#\"&ADDRESS(2,3,,,Summary_Products!$BF$2),Summary_Products!$BF$2)","v":"Summary_Products"},{"$nulls":4},"Print area:",{"$f":"ADDRESS(ROW($B$6),COLUMN($B$6))&\":\"&ADDRESS(MATCH(\"PRINT\",$P:$P,0),COLUMN($O$6))","v":"$B$6:$O$52"},"Name of this sheet",{"$f":"IF(ISERROR(CELL(\"filename\",V2)),\"MSParameters\",MID(CELL(\"filename\",V2),FIND(\"]\",CELL(\"filename\",V2))+1,1024))","v":"b_Guidelines&Conditions"}]
[{"$nulls":6},{"$f":"IFERROR(HYPERLINK(\"#\"&ADDRESS(ROW($A$1)+MATCH(R3,$A:$A,0)-1,COLUMN($A$1)),INDEX($R:$R,MATCH(R3,$A:$A,0))),\"\")","v":"General information"},null,{"$f":"IFERROR(HYPERLINK(\"#\"&ADDRESS(ROW($A$1)+MATCH(T3,$A:$A,0)-1,COLUMN($A$1)),INDEX($R:$R,MATCH(T3,$A:$A,0))),\"\")","v":"How to use this file"},null,{"$f":"IFERROR(HYPERLINK(\"#\"&ADDRESS(ROW($A$1)+MATCH(V3,$A:$A,0)-1,COLUMN($A$1)),INDEX($R:$R,MATCH(V3,$A:$A,0))),\"\")","v":""},null,{"$f":"IFERROR(HYPERLINK(\"#\"&ADDRESS(ROW($A$1)+MATCH(X3,$A:$A,0)-1,COLUMN($A$1)),INDEX($R:$R,MATCH(X3,$A:$A,0))),\"\")","v":""},{"$nulls":4},1,null,2]
[{"$nulls":6},{"$f":"IFERROR(HYPERLINK(\"#\"&ADDRESS(ROW($A$1)+MATCH(R4,$A:$A,0)-1,COLUMN($A$1)),INDEX($R:$R,MATCH(R4,$A:$A,0))),\"\")","v":""},null,{"$f":"IFERROR(HYPERLINK(\"#\"&ADDRESS(ROW($A$1)+MATCH(T4,$A:$A,0)-1,COLUMN($A$1)),INDEX($R:$R,MATCH(T4,$A:$A,0))),\"\")","v":""},null,{"$f":"IFERROR(HYPERLINK(\"#\"&ADDRESS(ROW($A$1)+MATCH(V4,$A:$A,0)-1,COLUMN($A$1)),INDEX($R:$R,MATCH(V4,$A:$A,0))),\"\")","v":""},null,{"$f":"IFERROR(HYPERLINK(\"#\"&ADDRESS(ROW($A$1)+MATCH(X4,$A:$A,0)-1,COLUMN($A$1)),INDEX($R:$R,MATCH(X4,$A:$A,0))),\"\")","v":""},{"$nulls":4},3,null,4]
[]
[null,null,{"$f":"Translations!$B$23","v":"Sheet \"Guidelines & conditions\""}]
[]
[1,null,{"$f":"Translations!$B$24","v":"General Information on this Template"},{"$nulls":14},{"$f":"Translations!$B$25","v":"General information"}]
[]
[null,1,{"$f":"Translations!$B$26","v":"Regulation (EU) 2023/956 establishes a carbon border adjustment mechanism (the ‘CBAM Regulation’) to address greenhouse gas emissions embedded in certain goods ('CBAM goods': iron and steel, cement, aluminium, fertilisers, hydrogen and electricity) on their importation into the customs territory of the European Union (the EU). The Regulation can be downloaded from:"}]
[null,null,{"$f":"Translations!$B$27","v":"https://eur-lex.europa.eu/eli/reg/2023/956/oj"}]
[null,2,{"$f":"Translations!$B$28","v":"Pursuant to Article 35(7) of the Regulation, the Commission adopted an implementing act which lays down the detailed rules for 'reporting declarants' (as defined in Article 2(1) of this implementing act) for reporting obligations upon import into the European Union during the transitional period from 1 October 2023 to 31 December 2025 (‘transitional period’). The Regulation can be downloaded from:"}]
[null,null,{"$f":"Translations!$B$29","v":"https://taxation-customs.ec.europa.eu/system/files/2023-08/C_2023_5512_1_EN_ACT_part1_v6.pdf"}]
[null,3,{"$f":"Translations!$B$30","v":"Article 8 of the implementing act requires reporting declarants to submit a CBAM report for each good listed under 1. imported into the EU. CBAM reports must contain certain data and information on the embedded emissions of the goods, to be obtained from the producer of these goods ('operators of installations located in third countries')."}]
[null,4,{"$f":"Translations!$B$31","v":"This data collection template has been developed on behalf of the Commission by its consultants (Umweltbundesamt GmbH Austria) and serves the purpose of facilitating the communication between operators of installations located in third countries and the reporting declarants."}]
[null,null,{"$f":"Translations!$B$32","v":"The views expressed in this file represent the views of the authors and not necessarily those of the European Commission. "}]
[null,5,{"$f":"Translations!$B$33","v":"This is the 2nd published version of the CBAM template, version of 23 October 2023."}]
[]
[2,null,{"$f":"Translations!$B$34","v":"How to use this file"},{"$nulls":14},{"$f":"C19","v":"How to use this file"}]
[]
[null,6,{"$f":"Translations!$B$35","v":"Automatic calculation (to be found in the menu Formula/Calculation options) must be turned on."}]
[null,null,{"$f":"Translations!$B$36","v":"It is recommended that you go through the file from start to end. There are a few functions which will guide you through the form which depend on previous input, such as cells changing colour if an input is not needed (see colour codes below)."}]
[null,7,{"$f":"Translations!$B$37","v":"Whenever a value of zero is to be reported, it should be entered rather than keeping the cell empty. Values needed for calculations should always be entered (especially if zero, because some formulas don't give results as long as required cells are empty). If a cell is kept empty, the reporting declarantd do not know if the value is zero, is irrelevant or unknown, or if making entries has been overlooked."}]
[null,8,{"$f":"Translations!$B$38","v":"In several fields you can choose from predefined inputs using a \"drop-down list\", by either clicking on the small arrow appearing at the right border of the cell, or pressing \"Alt-CursorDown\" when you have selected the cell. Also, there are some fields which enable you to draft your reply even if a drop-down list exists. This is the case when drop-down lists contain empty list entries."}]
[null,9,{"$f":"Translations!$B$39","v":"Error messages will occur sometimes when data entries are incomplete. However, the non-appearance of error messages is not a guarantee for correct calculations, as a data completeness test is not always possible. If no result appears in a green field, it can be assumed that some data is still missing."}]
[null,null,{"$f":"Translations!$B$40","v":"Special care must be taken of ensure consistency of data with the units displayed."}]
[]
[null,10,{"$f":"Translations!$B$41","v":"Colour codes and fonts:"}]
[{"$nulls":3},{"$f":"Translations!$B$42","v":"Black bold text:"},null,{"$f":"Translations!$B$43","v":"This is text describing the input required."}]
[{"$nulls":3},{"$f":"Translations!$B$44","v":"Smaller italic text:"},null,{"$f":"Translations!$B$45","v":"This text gives further explanations. "}]
[{"$nulls":5},{"$f":"Translations!$B$46","v":"Yellow fields indicate mandatory inputs for the calculation of embedded emissions and for other information required."}]
[{"$nulls":5},{"$f":"Translations!$B$47","v":"Light yellow fields indicate that an input is optional."}]
[{"$nulls":5},{"$f":"Translations!$B$48","v":"Green fields show automatically calculated results. Red text indicates error messages (missing data etc)."}]
[{"$nulls":3},{"$f":"CONST_NA","v":"n.a."},null,{"$f":"Translations!$B$49","v":"Shaded fields indicate that an input in another field makes the input here irrelevant."}]
[{"$nulls":5},{"$f":"Translations!$B$50","v":"Light grey areas are dedicated for navigation and hyperlinks."}]
[]
[{"$nulls":3},{"$f":"Translations!$B$51","v":"Additionally, there are colour indicators in some sheets (e.g. D, E) indicating the following:"}]
[{"$nulls":4},{"$f":"Translations!$B$52","v":"White indicates that data entry is not required here, based on entries in another field making inputs here irrelevant (see 'shaded fields' above)."}]
[{"$nulls":4},{"$f":"Translations!$B$53","v":"Red colour indicates data inputs are required but the relevant cells are empty or filled incorrectly."}]
[{"$nulls":4},{"$f":"Translations!$B$54","v":"Green colour indicates data inputs are required and cells have been filled correctly."}]
[]
[null,11,{"$f":"Translations!$B$55","v":"Navigation panels on top of each sheet provide hyperlinks for quick jumps to individual input sections. The first line (\"Table of contents\", \"Further guidance\", \"Summary_Processes\" and \"Summary_Products\") is the same for all sheets. Depending on the sheet, further menu items are added. If the background colour of one of the hyperlink areas turns red, this indicates that data is missing in the related section (not in all sheets)."}]
[null,12,{"$f":"Translations!$B$56","v":"This template has been locked against data entry except for (light( yellow fields. However, for transparency reasons, no password has been set. This allows for complete viewing of all formulae. When using this file for data entry, it is recommended to keep the protection in force. The sheets should only be unprotected for checking the validity of formulae. It is recommended to do this in a separate file."}]
[null,13,{"$f":"Translations!$B$57","v":"In order to protect formulae against unintended modifications, which usually lead to wrong and misleading results, it is of utmost importance NOT TO USE the CUT & PASTE feature. If you want to move data, first COPY and PASTE them, and thereafter delete the unwanted data in the old (wrong) place."}]
[]
[null,14,{"$f":"Translations!$B$58","v":"DISCLAIMER: All formulae have been developed carefully and thoroughly. However, mistakes cannot be fully excluded.\nAs described above, full transparency for checking the validity of calculations is ensured. Neither the authors of this file nor the European Commission can be held liable for eventual damages resulting from wrong or misleading results of the provided calculations. \nIt is the full responsibility of the user of this file (i.e. the operator of an installation) to ensure that reporting declarants report accurate data."}]
[]
[null,null,{"$f":"Translations!$B$59","v":"Information sources:"}]
[null,null,{"$f":"Translations!$B$60","v":"EU CBAM websites:"},null,null,{"$f":"Translations!$B$61","v":"https://taxation-customs.ec.europa.eu/carbon-border-adjustment-mechanism_en"}]
[null,null,{"$f":"Translations!$B$62","v":"EU-Legislation:"},null,null,{"$f":"Translations!$B$63","v":"http://eur-lex.europa.eu/en/index.htm"}]
[]
["ausblenden",{"$nulls":14},"PRINT"]

{"sheet":"c_CodeLists","index":3,"n_rows":3113,"n_cols":24,"rows_kept":3113,"merged":[[1,1,3,3],[1,4,1,5],[1,6,1,7],[1,8,1,9],[1,10,1,11],[1,12,1,13],[2,4,2,5],[2,6,2,7],[2,8,2,9],[2,10,2,11],[2,12,2,13],[3,4,3,5],[3,6,3,7],[3,8,3,9],[3,10,3,11],[3,12,3,13],[281,4,281,13],[282,4,282,13]]}
["ausblenden",{"$nulls":16},"ausblenden","ausblenden","ausblenden","ausblenden","ausblenden","ausblenden","ausblenden"]
[null,{"$f":"Translations!$B$1438","v":"Code Lists"},null,null,{"$f":"Translations!$B$11","v":"Navigation Area:"},null,{"$f":"HYPERLINK(\"#\"&ADDRESS(2,3,,,a_Contents!$U$2),a_Contents!$B$2)","v":"Table of contents"},null,{"$f":"HYPERLINK(\"#\"&ADDRESS(2,3,,,G_FurtherGuidance!$U$2),G_FurtherGuidance!$B$2)","v":"Further Guidance"},null,{"$f":"HYPERLINK(\"#\"&ADDRESS(2,3,,,Summary_Processes!$Y$2),Summary_Processes!$Y$2)","v":"Summary_Processes"},null,{"$f":"HYPERLINK(\"#\"&ADDRESS(2,3,,,Summary_Products!$BF$2),Summary_Products!$BF$2)","v":"Summary_Products"},{"$nulls":4},"Print area:",{"$f":"ADDRESS(ROW($B$2),COLUMN(B2))&\":\"&ADDRESS(MATCH(\"PRINT\",$P:$P,0),COLUMN(O4))","v":"$B$2:$O$3111"},"Name of this sheet",{"$f":"IF(ISERROR(CELL(\"filename\",V2)),\"MSParameters\",MID(CELL(\"filename\",V2),FIND(\"]\",CELL(\"filename\",V2))+1,1024))","v":"c_CodeLists"}]
[{"$nulls":6},{"$f":"IFERROR(HYPERLINK(\"#\"&ADDRESS(ROW($A$1)+MATCH(R3,$A:$A,0)-1,3),INDEX($R:$R,MATCH(R3,$A:$A,0))),\"\")","v":"Countries & Currencies"},null,{"$f":"IFERROR(HYPERLINK(\"#\"&ADDRESS(ROW($A$1)+MATCH(T3,$A:$A,0)-1,3),INDEX($R:$R,MATCH(T3,$A:$A,0))),\"\")","v":"CN Codes"},null,{"$f":"IFERROR(HYPERLINK(\"#\"&ADDRESS(ROW($A$1)+MATCH(V3,$A:$A,0)-1,3),INDEX($R:$R,MATCH(V3,$A:$A,0))),\"\")","v":""},null,{"$f":"IFERROR(HYPERLINK(\"#\"&ADDRESS(ROW($A$1)+MATCH(X3,$A:$A,0)-1,3),INDEX($R:$R,MATCH(X3,$A:$A,0))),\"\")","v":""},{"$nulls":4},1,null,2,null,3,null,4]
[{"$nulls":6},{"$f":"IFERROR(HYPERLINK(\"#\"&ADDRESS(ROW($A$1)+MATCH(R4,$A:$A,0)-1,3),INDEX($R:$R,MATCH(R4,$A:$A,0))),\"\")","v":""},null,{"$f":"IFERROR(HYPERLINK(\"#\"&ADDRESS(ROW($A$1)+MATCH(T4,$A:$A,0)-1,3),INDEX($R:$R,MATCH(T4,$A:$A,0))),\"\")","v":""},null,{"$f":"IFERROR(HYPERLINK(\"#\"&ADDRESS(ROW($A$1)+MATCH(V4,$A:$A,0)-1,3),INDEX($R:$R,MATCH(V4,$A:$A,0))),\"\")","v":""},null,{"$f":"IFERROR(HYPERLINK(\"#\"&ADDRESS(ROW($A$1)+MATCH(X4,$A:$A,0)-1,3),INDEX($R:$R,MATCH(X4,$A:$A,0))),\"\")","v":""},{"$nulls":4},5,null,6,null,7,null,8]
[]
[null,null,{"$f":"Translations!$B$1439","v":"Sheet \"Code Lists\""},{"$nulls":14},"Marker","EmbedEm",null,null,{"$f":"Translations!$B$66","v":"Errors"},null,"Cond. form."]
[]
[{"$f":"C8","v":1},null,1,{"$f":"Translations!$B$1440","v":"Countries & Currencies"},{"$nulls":13},{"$f":"D8","v":"Countries & Currencies"},{"$f":"C8","v":1}]
[]
[{"$nulls":5},{"$f":"Translations!$B$1441","v":"Code"},{"$f":"Translations!$B$1442","v":"Country Name"},{"$nulls":3},{"$f":"Translations!$B$1441","v":"Code"},{"$f":"Translations!$B$1443","v":"Currency Name"},{"$nulls":6},"CNTR_ListCountriesCode","CNTR_ListCountriesName","CNTR_ListCurrenciesCode","CNTR_ListCurrenciesName"]
[{"$nulls":4},1,"AD",{"$f":"Translations!$B$1444","v":"Andorra"},null,null,1,"AED",{"$f":"Translations!$B$1445","v":"UAE Dirham"}]
[{"$nulls":4},2,"AE",{"$f":"Translations!$B$1446","v":"United Arab Emirates"},null,null,2,"AFN",{"$f":"Translations!$B$1447","v":"Afghani"}]
[{"$nulls":4},3,"AF",{"$f":"Translations!$B$1448","v":"Afghanistan"},null,null,3,"ALL",{"$f":"Translations!$B$1449","v":"Lek"}]
[{"$nulls":4},4,"AG",{"$f":"Translations!$B$1450","v":"Antigua and Barbuda"},null,null,4,"AMD",{"$f":"Translations!$B$1451","v":"Armenian Dram"}]
[{"$nulls":4},5,"AI",{"$f":"Translations!$B$1452","v":"Anguilla"},null,null,5,"ANG",{"$f":"Translations!$B$1453","v":"Netherlands Antillean Guilder"}]
[{"$nulls":4},6,"AL",{"$f":"Translations!$B$1454","v":"Albania"},null,null,6,"AOA",{"$f":"Translations!$B$1455","v":"Kwanza"}]
[{"$nulls":4},7,"AM",{"$f":"Translations!$B$1456","v":"Armenia"},null,null,7,"ARS",{"$f":"Translations!$B$1457","v":"Argentine Peso"}]
[{"$nulls":4},8,"AN",{"$f":"Translations!$B$1458","v":"Netherlands Antilles"},null,null,8,"AUD",{"$f":"Translations!$B$1459","v":"Australian Dollar"}]
[{"$nulls":4},9,"AO",{"$f":"Translations!$B$1460","v":"Angola"},null,null,9,"AWG",{"$f":"Translations!$B$1461","v":"Aruban Florin"}]
[{"$nulls":4},10,"AQ",{"$f":"Translations!$B$1462","v":"Antarctica"},null,null,10,"AZN",{"$f":"Translations!$B$1463","v":"Azerbaijan Manat"}]
[{"$nulls":4},11,"AR",{"$f":"Translations!$B$1464","v":"Argentina"},null,null,11,"BAM",{"$f":"Translations!$B$1465","v":"Convertible Mark"}]
[{"$nulls":4},12,"AS",{"$f":"Translations!$B$1466","v":"American Samoa"},null,null,12,"BBD",{"$f":"Translations!$B$1467","v":"Barbados Dollar"}]
[{"$nulls":4},13,"AT","Austria",null,null,13,"BDT",{"$f":"Translations!$B$1468","v":"Taka"}]
[{"$nulls":4},14,"AU",{"$f":"Translations!$B$1469","v":"Australia"},null,null,14,"BGN",{"$f":"Translations!$B$1470","v":"Bulgarian Lev"}]
[{"$nulls":4},15,"AW",{"$f":"Translations!$B$1471","v":"Aruba"},null,null,15,"BHD",{"$f":"Translations!$B$1472","v":"Bahraini Dinar"}]
[{"$nulls":4},16,"AX",{"$f":"Translations!$B$1473","v":"ÅLAND ISLANDS"},null,null,16,"BIF",{"$f":"Translations!$B$1474","v":"Burundi Franc"}]
[{"$nulls":4},17,"AZ",{"$f":"Translations!$B$1475","v":"Azerbaijan"},null,null,17,"BMD",{"$f":"Translations!$B$1476","v":"Bermudian Dollar"}]
[{"$nulls":4},18,"BA",{"$f":"Translations!$B$1477","v":"Bosnia and Herzegovina"},null,null,18,"BND",{"$f":"Translations!$B$1478","v":"Brunei Dollar"}]
[{"$nulls":4},19,"BB",{"$f":"Translations!$B$1479","v":"Barbados"},null,null,19,"BOB",{"$f":"Translations!$B$1480","v":"Boliviano"}]
[{"$nulls":4},20,"BD",{"$f":"Translations!$B$1481","v":"Bangladesh"},null,null,20,"BOV",{"$f":"Translations!$B$1482","v":"Mvdol"}]
[{"$nulls":4},21,"BE","Belgium",null,null,21,"BRL",{"$f":"Translations!$B$1483","v":"Brazilian Real"}]
[{"$nulls":4},22,"BF",{"$f":"Translations!$B$1484","v":"Burkina Faso"},null,null,22,"BSD",{"$f":"Translations!$B$1485","v":"Bahamian Dollar"}]
[{"$nulls":4},23,"BG","Bulgaria",null,null,23,"BTN",{"$f":"Translations!$B$1486","v":"Ngultrum"}]
[{"$nulls":4},24,"BH",{"$f":"Translations!$B$1487","v":"Bahrain"},null,null,24,"BWP",{"$f":"Translations!$B$1488","v":"Pula"}]
[{"$nulls":4},25,"BI",{"$f":"Translations!$B$1489","v":"Burundi"},null,null,25,"BYN",{"$f":"Translations!$B$1490","v":"Belarusian Ruble"}]
[{"$nulls":4},26,"BJ",{"$f":"Translations!$B$1491","v":"Benin"},null,null,26,"BZD",{"$f":"Translations!$B$1492","v":"Belize Dollar"}]
[{"$nulls":4},27,"BL",{"$f":"Translations!$B$1493","v":"Saint Barthélemy"},null,null,27,"CAD",{"$f":"Translations!$B$1494","v":"Canadian Dollar"}]
[{"$nulls":4},28,"BM",{"$f":"Translations!$B$1495","v":"Bermuda"},null,null,28,"CDF",{"$f":"Translations!$B$1496","v":"Congolese Franc"}]
[{"$nulls":4},29,"BN",{"$f":"Translations!$B$1497","v":"Brunei Darussalam"},null,null,29,"CHE",{"$f":"Translations!$B$1498","v":"WIR Euro"}]
[{"$nulls":4},30,"BO",{"$f":"Translations!$B$1499","v":"Bolivia, Plurinational State of"},null,null,30,"CHF",{"$f":"Translations!$B$1500","v":"Swiss Franc"}]
[{"$nulls":4},31,"BQ",{"$f":"Translations!$B$1501","v":"Bonaire, Sint Eustatius and Saba"},null,null,31,"CHW",{"$f":"Translations!$B$1502","v":"WIR Franc"}]
[{"$nulls":4},32,"BR",{"$f":"Translations!$B$1503","v":"Brazil"},null,null,32,"CLF",{"$f":"Translations!$B$1504","v":"Unidad de Fomento"}]
[{"$nulls":4},33,"BS",{"$f":"Translations!$B$1505","v":"Bahamas"},null,null,33,"CLP",{"$f":"Translations!$B$1506","v":"Chilean Peso"}]
[{"$nulls":4},34,"BT",{"$f":"Translations!$B$1507","v":"Bhutan"},null,null,34,"CNY",{"$f":"Translations!$B$1508","v":"Yuan Renminbi"}]
[{"$nulls":4},35,"BV",{"$f":"Translations!$B$1509","v":"Bouvet Island"},null,null,35,"COP",{"$f":"Translations!$B$1510","v":"Colombian Peso"}]
[{"$nulls":4},36,"BW",{"$f":"Translations!$B$1511","v":"Botswana"},null,null,36,"COU",{"$f":"Translations!$B$1512","v":"Unidad de Valor Real"}]
[{"$nulls":4},37,"BY",{"$f":"Translations!$B$1513","v":"Belarus"},null,null,37,"CRC",{"$f":"Translations!$B$1514","v":"Costa Rican Colon"}]
[{"$nulls":4},38,"BZ",{"$f":"Translations!$B$1515","v":"Belize"},null,null,38,"CUC",{"$f":"Translations!$B$1516","v":"Peso Convertible"}]
[{"$nulls":4},39,"CA",{"$f":"Translations!$B$1517","v":"Canada"},null,null,39,"CUP",{"$f":"Translations!$B$1518","v":"Cuban Peso"}]
[{"$nulls":4},40,"CC",{"$f":"Translations!$B$1519","v":"Cocos Islands (or Keeling Islands)"},null,null,40,"CVE",{"$f":"Translations!$B$1520","v":"Cabo Verde Escudo"}]
[{"$nulls":4},41,"CD",{"$f":"Translations!$B$1521","v":"Congo, Democratic Republic of"},null,null,41,"CZK",{"$f":"Translations!$B$1522","v":"Czech Koruna"}]
[{"$nulls":4},42,"CF",{"$f":"Translations!$B$1523","v":"Central African Republic"},null,null,42,"DJF",{"$f":"Translations!$B$1524","v":"Djibouti Franc"}]
[{"$nulls":4},43,"CG",{"$f":"Translations!$B$1525","v":"Congo"},null,null,43,"DKK",{"$f":"Translations!$B$1526","v":"Danish Krone"}]
[{"$nulls":4},44,"CH",{"$f":"Translations!$B$1527","v":"Switzerland"},null,null,44,"DOP",{"$f":"Translations!$B$1528","v":"Dominican Peso"}]
[{"$nulls":4},45,"CI",{"$f":"Translations!$B$1529","v":"Côte d'Ivoire"},null,null,45,"DZD",{"$f":"Translations!$B$1530","v":"Algerian Dinar"}]
[{"$nulls":4},46,"CK",{"$f":"Translations!$B$1531","v":"Cook Islands"},null,null,46,"EGP",{"$f":"Translations!$B$1532","v":"Egyptian Pound"}]
[{"$nulls":4},47,"CL",{"$f":"Translations!$B$1533","v":"Chile"},null,null,47,"ERN",{"$f":"Translations!$B$1534","v":"Nakfa"}]
[{"$nulls":4},48,"CM",{"$f":"Translations!$B$1535","v":"Cameroon"},null,null,48,"ETB",{"$f":"Translations!$B$1536","v":"Ethiopian Birr"}]
[{"$nulls":4},49,"CN",{"$f":"Translations!$B$1537","v":"China"},null,null,49,"EUR",{"$f":"Translations!$B$1538","v":"Euro"}]
[{"$nulls":4},50,"CO",{"$f":"Translations!$B$1539","v":"Colombia"},null,null,50,"FJD",{"$f":"Translations!$B$1540","v":"Fiji Dollar"}]
[{"$nulls":4},51,"CR",{"$f":"Translations!$B$1541","v":"Costa Rica"},null,null,51,"FKP",{"$f":"Translations!$B$1542","v":"Falkland Islands Pound"}]
[{"$nulls":4},52,"CU",{"$f":"Translations!$B$1545","v":"Cuba"},null,null,52,"GBP",{"$f":"Translations!$B$1544","v":"Pound Sterling"}]
[{"$nulls":4},53,"CV",{"$f":"Translations!$B$1547","v":"Cape Verde"},null,null,53,"GEL",{"$f":"Translations!$B$1546","v":"Lari"}]
[{"$nulls":4},54,"CW",{"$f":"Translations!$B$1549","v":"Curaçao"},null,null,54,"GHS",{"$f":"Translations!$B$1548","v":"Ghana Cedi"}]
[{"$nulls":4},55,"CX",{"$f":"Translations!$B$1551","v":"Christmas Island"},null,null,55,"GIP",{"$f":"Translations!$B$1550","v":"Gibraltar Pound"}]
[{"$nulls":4},56,"CY","Cyprus",null,null,56,"GMD",{"$f":"Translations!$B$1552","v":"Dalasi"}]
[{"$nulls":4},57,"CZ",{"$f":"Translations!$B$1554","v":"Czechia"},null,null,57,"GNF",{"$f":"Translations!$B$1553","v":"Guinean Franc"}]
[{"$nulls":4},58,"DE","Germany",null,null,58,"GTQ",{"$f":"Translations!$B$1555","v":"Quetzal"}]
[{"$nulls":4},59,"DJ",{"$f":"Translations!$B$1557","v":"Djibouti"},null,null,59,"GYD",{"$f":"Translations!$B$1556","v":"Guyana Dollar"}]
[{"$nulls":4},60,"DK","Denmark",null,null,60,"HKD",{"$f":"Translations!$B$1558","v":"Hong Kong Dollar"}]
[{"$nulls":4},61,"DM",{"$f":"Translations!$B$1560","v":"Dominica"},null,null,61,"HNL",{"$f":"Translations!$B$1559","v":"Lempira"}]
[{"$nulls":4},62,"DO",{"$f":"Translations!$B$1562","v":"Dominican Republic"},null,null,62,"HTG",{"$f":"Translations!$B$1561","v":"Gourde"}]
[{"$nulls":4},63,"DZ",{"$f":"Translations!$B$1564","v":"Algeria"},null,null,63,"HUF",{"$f":"Translations!$B$1563","v":"Forint"}]
[{"$nulls":4},64,"EC",{"$f":"Translations!$B$1566","v":"Ecuador"},null,null,64,"IDR",{"$f":"Translations!$B$1565","v":"Rupiah"}]
[{"$nulls":4},65,"EE","Estonia",null,null,65,"ILS",{"$f":"Translations!$B$1567","v":"New Israeli Sheqel"}]
[{"$nulls":4},66,"EG",{"$f":"Translations!$B$1569","v":"Egypt"},null,null,66,"INR",{"$f":"Translations!$B$1568","v":"Indian Rupee"}]
[{"$nulls":4},67,"EH",{"$f":"Translations!$B$1571","v":"Western Sahara"},null,null,67,"IQD",{"$f":"Translations!$B$1570","v":"Iraqi Dinar"}]
[{"$nulls":4},68,"ER",{"$f":"Translations!$B$1573","v":"Eritrea"},null,null,68,"IRR",{"$f":"Translations!$B$1572","v":"Iranian Rial"}]
[{"$nulls":4},69,"ES","Spain",null,null,69,"ISK",{"$f":"Translations!$B$1574","v":"Iceland Krona"}]
[{"$nulls":4},70,"ET",{"$f":"Translations!$B$1576","v":"Ethiopia"},null,null,70,"JMD",{"$f":"Translations!$B$1575","v":"Jamaican Dollar"}]
[{"$nulls":4},71,"EU",{"$f":"Translations!$B$1578","v":"European Community"},null,null,71,"JOD",{"$f":"Translations!$B$1577","v":"Jordanian Dinar"}]
[{"$nulls":4},72,"FI","Finland",null,null,72,"JPY",{"$f":"Translations!$B$1579","v":"Yen"}]
[{"$nulls":4},73,"FJ",{"$f":"Translations!$B$1581","v":"Fiji"},null,null,73,"KES",{"$f":"Translations!$B$1580","v":"Kenyan Shilling"}]
[{"$nulls":4},74,"FK",{"$f":"Translations!$B$1583","v":"Falkland Islands"},null,null,74,"KGS",{"$f":"Translations!$B$1582","v":"Som"}]
[{"$nulls":4},75,"FM",{"$f":"Translations!$B$1585","v":"Micronesia, Federated States of"},null,null,75,"KHR",{"$f":"Translations!$B$1584","v":"Riel"}]
[{"$nulls":4},76,"FO",{"$f":"Translations!$B$1587","v":"Faroe Islands"},null,null,76,"KMF",{"$f":"Translations!$B$1586","v":"Comorian Franc"}]
[{"$nulls":4},77,"FR","France",null,null,77,"KPW",{"$f":"Translations!$B$1588","v":"North Korean Won"}]
[{"$nulls":4},78,"GA",{"$f":"Translations!$B$1590","v":"Gabon"},null,null,78,"KRW",{"$f":"Translations!$B$1589","v":"Won"}]
[{"$nulls":4},79,"GB","United Kingdom",null,null,79,"KWD",{"$f":"Translations!$B$1591","v":"Kuwaiti Dinar"}]
[{"$nulls":4},80,"GD",{"$f":"Translations!$B$1593","v":"Grenada"},null,null,80,"KYD",{"$f":"Translations!$B$1592","v":"Cayman Islands Dollar"}]
[{"$nulls":4},81,"GE",{"$f":"Translations!$B$1595","v":"Georgia"},null,null,81,"KZT",{"$f":"Translations!$B$1594","v":"Tenge"}]
[{"$nulls":4},82,"GF",{"$f":"Translations!$B$1597","v":"French Guyana"},null,null,82,"LAK",{"$f":"Translations!$B$1596","v":"Lao Kip"}]
[{"$nulls":4},83,"GG",{"$f":"Translations!$B$1599","v":"Guernsey"},null,null,83,"LBP",{"$f":"Translations!$B$1598","v":"Lebanese Pound"}]
[{"$nulls":4},84,"GH",{"$f":"Translations!$B$1601","v":"Ghana"},null,null,84,"LKR",{"$f":"Translations!$B$1600","v":"Sri Lanka Rupee"}]
[{"$nulls":4},85,"GI",{"$f":"Translations!$B$1603","v":"Gibraltar"},null,null,85,"LRD",{"$f":"Translations!$B$1602","v":"Liberian Dollar"}]
[{"$nulls":4},86,"GL",{"$f":"Translations!$B$1605","v":"Greenland"},null,null,86,"LSL",{"$f":"Translations!$B$1604","v":"Loti"}]
[{"$nulls":4},87,"GM",{"$f":"Translations!$B$1607","v":"Gambia"},null,null,87,"LYD",{"$f":"Translations!$B$1606","v":"Libyan Dinar"}]
[{"$nulls":4},88,"GN",{"$f":"Translations!$B$1609","v":"Guinea"},null,null,88,"MAD",{"$f":"Translations!$B$1608","v":"Moroccan Dirham"}]
[{"$nulls":4},89,"GP",{"$f":"Translations!$B$1611","v":"Guadeloupe"},null,null,89,"MDL",{"$f":"Translations!$B$1610","v":"Moldovan Leu"}]
[{"$nulls":4},90,"GQ",{"$f":"Translations!$B$1613","v":"Equatorial Guinea"},null,null,90,"MGA",{"$f":"Translations!$B$1612","v":"Malagasy Ariary"}]
[{"$nulls":4},91,"GR","Greece",null,null,91,"MKD",{"$f":"Translations!$B$1614","v":"Denar"}]
[{"$nulls":4},92,"GS",{"$f":"Translations!$B$1616","v":"South Georgia and South Sandwich"},null,null,92,"MMK",{"$f":"Translations!$B$1615","v":"Kyat"}]
[{"$nulls":4},93,"GT",{"$f":"Translations!$B$1618","v":"Guatemala"},null,null,93,"MNT",{"$f":"Translations!$B$1617","v":"Tugrik"}]
[{"$nulls":4},94,"GU",{"$f":"Translations!$B$1620","v":"Guam"},null,null,94,"MOP",{"$f":"Translations!$B$1619","v":"Pataca"}]
[{"$nulls":4},95,"GW",{"$f":"Translations!$B$1622","v":"Guinea-Bissau"},null,null,95,"MRU",{"$f":"Translations!$B$1621","v":"Ouguiya"}]
[{"$nulls":4},96,"GY",{"$f":"Translations!$B$1624","v":"Guyana"},null,null,96,"MUR",{"$f":"Translations!$B$1623","v":"Mauritius Rupee"}]
[{"$nulls":4},97,"HK",{"$f":"Translations!$B$1626","v":"Hong Kong"},null,null,97,"MVR",{"$f":"Translations!$B$1625","v":"Rufiyaa"}]
[{"$nulls":4},98,"HM",{"$f":"Translations!$B$1628","v":"Heard Island and McDonald Islands"},null,null,98,"MWK",{"$f":"Translations!$B$1627","v":"Malawi Kwacha"}]
[{"$nulls":4},99,"HN",{"$f":"Translations!$B$1630","v":"Honduras"},null,null,99,"MXN",{"$f":"Translations!$B$1629","v":"Mexican Peso"}]
[{"$nulls":4},100,"HR","Croatia",null,null,100,"MXV",{"$f":"Translations!$B$1631","v":"Mexican Unidad de Inversion (UDI)"}]
[{"$nulls":4},101,"HT",{"$f":"Translations!$B$1633","v":"Haiti"},null,null,101,"MYR",{"$f":"Translations!$B$1632","v":"Malaysian Ringgit"}]
[{"$nulls":4},102,"HU","Hungary",null,null,102,"MZN",{"$f":"Translations!$B$1634","v":"Mozambique Metical"}]
[{"$nulls":4},103,"ID",{"$f":"Translations!$B$1636","v":"Indonesia"},null,null,103,"NAD",{"$f":"Translations!$B$1635","v":"Namibia Dollar"}]
[{"$nulls":4},104,"IE","Ireland",null,null,104,"NGN",{"$f":"Translations!$B$1637","v":"Naira"}]
[{"$nulls":4},105,"IL",{"$f":"Translations!$B$1639","v":"Israel"},null,null,105,"NIO",{"$f":"Translations!$B$1638","v":"Cordoba Oro"}]
[{"$nulls":4},106,"IM",{"$f":"Translations!$B$1641","v":"Isle of Man"},null,null,106,"NOK",{"$f":"Translations!$B$1640","v":"Norwegian Krone"}]
[{"$nulls":4},107,"IN",{"$f":"Translations!$B$1643","v":"India"},null,null,107,"NPR",{"$f":"Translations!$B$1642","v":"Nepalese Rupee"}]
[{"$nulls":4},108,"IO",{"$f":"Translations!$B$1645","v":"British Indian Ocean Territory"},null,null,108,"NZD",{"$f":"Translations!$B$1644","v":"New Zealand Dollar"}]
[{"$nulls":4},109,"IQ",{"$f":"Translations!$B$1647","v":"Iraq"},null,null,109,"OMR",{"$f":"Translations!$B$1646","v":"Rial Omani"}]
[{"$nulls":4},110,"IR",{"$f":"Translations!$B$1649","v":"Iran, Islamic Republic of"},null,null,110,"PAB",{"$f":"Translations!$B$1648","v":"Balboa"}]
[{"$nulls":4},111,"IS","Iceland",null,null,111,"PEN",{"$f":"Translations!$B$1650","v":"Sol"}]
[{"$nulls":4},112,"IT","Italy",null,null,112,"PGK",{"$f":"Translations!$B$1651","v":"Kina"}]
[{"$nulls":4},113,"JE",{"$f":"Translations!$B$1653","v":"Jersey"},null,null,113,"PHP",{"$f":"Translations!$B$1652","v":"Philippine Peso"}]
[{"$nulls":4},114,"JM",{"$f":"Translations!$B$1655","v":"Jamaica"},null,null,114,"PKR",{"$f":"Translations!$B$1654","v":"Pakistan Rupee"}]
[{"$nulls":4},115,"JO",{"$f":"Translations!$B$1657","v":"Jordan"},null,null,115,"PLN",{"$f":"Translations!$B$1656","v":"Zloty"}]
[{"$nulls":4},116,"JP",{"$f":"Translations!$B$1659","v":"Japan"},null,null,116,"PYG",{"$f":"Translations!$B$1658","v":"Guarani"}]
[{"$nulls":4},117,"KE",{"$f":"Translations!$B$1661","v":"Kenya"},null,null,117,"QAR",{"$f":"Translations!$B$1660","v":"Qatari Rial"}]
[{"$nulls":4},118,"KG",{"$f":"Translations!$B$1663","v":"Kyrgyz, Republic"},null,null,118,"RON",{"$f":"Translations!$B$1662","v":"Romanian Leu"}]
[{"$nulls":4},119,"KH",{"$f":"Translations!$B$1665","v":"Cambodia"},null,null,119,"RSD",{"$f":"Translations!$B$1664","v":"Serbian Dinar"}]
[{"$nulls":4},120,"KI",{"$f":"Translations!$B$1667","v":"Kiribati"},null,null,120,"RUB",{"$f":"Translations!$B$1666","v":"Russian Ruble"}]
[{"$nulls":4},121,"KM",{"$f":"Translations!$B$1669","v":"Comoros"},null,null,121,"RWF",{"$f":"Translations!$B$1668","v":"Rwanda Franc"}]
[{"$nulls":4},122,"KN",{"$f":"Translations!$B$1671","v":"St Kitts and Nevis"},null,null,122,"SAR",{"$f":"Translations!$B$1670","v":"Saudi Riyal"}]
[{"$nulls":4},123,"KP",{"$f":"Translations!$B$1673","v":"Korea, Democratic People’s Republ"},null,null,123,"SBD",{"$f":"Translations!$B$1672","v":"Solomon Islands Dollar"}]
[{"$nulls":4},124,"KR",{"$f":"Translations!$B$1675","v":"Korea, Republic of"},null,null,124,"SCR",{"$f":"Translations!$B$1674","v":"Seychelles Rupee"}]
[{"$nulls":4},125,"KW",{"$f":"Translations!$B$1677","v":"Kuwait"},null,null,125,"SDG",{"$f":"Translations!$B$1676","v":"Sudanese Pound"}]
[{"$nulls":4},126,"KY",{"$f":"Translations!$B$1679","v":"Cayman Islands"},null,null,126,"SEK",{"$f":"Translations!$B$1678","v":"Swedish Krona"}]
[{"$nulls":4},127,"KZ",{"$f":"Translations!$B$1681","v":"Kazakhstan"},null,null,127,"SGD",{"$f":"Translations!$B$1680","v":"Singapore Dollar"}]
[{"$nulls":4},128,"LA",{"$f":"Translations!$B$1683","v":"Lao People’s Democratic Republic"},null,null,128,"SHP",{"$f":"Translations!$B$1682","v":"Saint Helena Pound"}]
[{"$nulls":4},129,"LB",{"$f":"Translations!$B$1685","v":"Lebanon"},null,null,129,"SLE",{"$f":"Translations!$B$1684","v":"Leone"}]
[{"$nulls":4},130,"LC",{"$f":"Translations!$B$1686","v":"St Lucia"},null,null,130,"SLL",{"$f":"Translations!$B$1684","v":"Leone"}]
[{"$nulls":4},131,"LI","Liechtenstein",null,null,131,"SOS",{"$f":"Translations!$B$1687","v":"Somali Shilling"}]
[{"$nulls":4},132,"LK",{"$f":"Translations!$B$1689","v":"Sri Lanka"},null,null,132,"SRD",{"$f":"Translations!$B$1688","v":"Surinam Dollar"}]
[{"$nulls":4},133,"LR",{"$f":"Translations!$B$1691","v":"Liberia"},null,null,133,"SSP",{"$f":"Translations!$B$1690","v":"South Sudanese Pound"}]
[{"$nulls":4},134,"LS",{"$f":"Translations!$B$1693","v":"Lesotho"},null,null,134,"STN",{"$f":"Translations!$B$1692","v":"Dobra"}]
[{"$nulls":4},135,"LT","Lithuania",null,null,135,"SVC",{"$f":"Translations!$B$1694","v":"El Salvador Colon"}]
[{"$nulls":4},136,"LU","Luxembourg",null,null,136,"SYP",{"$f":"Translations!$B$1695","v":"Syrian Pound"}]
[{"$nulls":4},137,"LV","Latvia",null,null,137,"SZL",{"$f":"Translations!$B$1696","v":"Lilangeni"}]
[{"$nulls":4},138,"LY",{"$f":"Translations!$B$1698","v":"Libya"},null,null,138,"THB",{"$f":"Translations!$B$1697","v":"Baht"}]
[{"$nulls":4},139,"MA",{"$f":"Translations!$B$1700","v":"Morocco"},null,null,139,"TJS",{"$f":"Translations!$B$1699","v":"Somoni"}]
[{"$nulls":4},140,"MC",{"$f":"Translations!$B$1702","v":"Monaco"},null,null,140,"TMT",{"$f":"Translations!$B$1701","v":"Turkmenistan New Manat"}]
[{"$nulls":4},141,"MD",{"$f":"Translations!$B$1704","v":"Moldova, Republic of"},null,null,141,"TND",{"$f":"Translations!$B$1703","v":"Tunisian Dinar"}]
[{"$nulls":4},142,"ME",{"$f":"Translations!$B$1706","v":"Montenegro"},null,null,142,"TOP",{"$f":"Translations!$B$1705","v":"Pa’anga"}]
[{"$nulls":4},143,"MF",{"$f":"Translations!$B$1708","v":"Saint Martin (French part)"},null,null,143,"TRY",{"$f":"Translations!$B$1707","v":"Turkish Lira"}]
[{"$nulls":4},144,"MG",{"$f":"Translations!$B$1710","v":"Madagascar"},null,null,144,"TTD",{"$f":"Translations!$B$1709","v":"Trinidad and Tobago Dollar"}]
[{"$nulls":4},145,"MH",{"$f":"Translations!$B$1712","v":"Marshall Islands"},null,null,145,"TWD",{"$f":"Translations!$B$1711","v":"New Taiwan Dollar"}]
[{"$nulls":4},146,"MK",{"$f":"Translations!$B$1714","v":"North Macedonia"},null,null,146,"TZS",{"$f":"Translations!$B$1713","v":"Tanzanian Shilling"}]
[{"$nulls":4},147,"ML",{"$f":"Translations!$B$1716","v":"Mali"},null,null,147,"UAH",{"$f":"Translations!$B$1715","v":"Hryvnia"}]
[{"$nulls":4},148,"MM",{"$f":"Translations!$B$1718","v":"Myanmar"},null,null,148,"UGX",{"$f":"Translations!$B$1717","v":"Uganda Shilling"}]
[{"$nulls":4},149,"MN",{"$f":"Translations!$B$1720","v":"Mongolia"},null,null,149,"USD",{"$f":"Translations!$B$1719","v":"US Dollar"}]
[{"$nulls":4},150,"MO",{"$f":"Translations!$B$1722","v":"Macao"},null,null,150,"UYI",{"$f":"Translations!$B$1721","v":"Uruguay Peso en Unidades Indexadas (UI)"}]
[{"$nulls":4},151,"MP",{"$f":"Translations!$B$1724","v":"Northern Mariana Islands"},null,null,151,"UYU",{"$f":"Translations!$B$1723","v":"Peso Uruguayo"}]
[{"$nulls":4},152,"MQ",{"$f":"Translations!$B$1726","v":"Martinique"},null,null,152,"UYW",{"$f":"Translations!$B$1725","v":"Unidad Previsional"}]
[{"$nulls":4},153,"MR",{"$f":"Translations!$B$1728","v":"Mauritania"},null,null,153,"UZS",{"$f":"Translations!$B$1727","v":"Uzbekistan Sum"}]
[{"$nulls":4},154,"MS",{"$f":"Translations!$B$1730","v":"Montserrat"},null,null,154,"VED",{"$f":"Translations!$B$1729","v":"Bolívar Soberano"}]
[{"$nulls":4},155,"MT","Malta",null,null,155,"VES",{"$f":"Translations!$B$1731","v":"Bolivar Soberano"}]
[{"$nulls":4},156,"MU",{"$f":"Translations!$B$1733","v":"Mauritius"},null,null,156,"VND",{"$f":"Translations!$B$1732","v":"Dong"}]
[{"$nulls":4},157,"MV",{"$f":"Translations!$B$1735","v":"Maldives"},null,null,157,"VUV",{"$f":"Translations!$B$1734","v":"Vatu"}]
[{"$nulls":4},158,"MW",{"$f":"Translations!$B$1737","v":"Malawi"},null,null,158,"WST",{"$f":"Translations!$B$1736","v":"Tala"}]
[{"$nulls":4},159,"MX",{"$f":"Translations!$B$1739","v":"Mexico"},null,null,159,"XAF",{"$f":"Translations!$B$1738","v":"CFA Franc BEAC"}]
[{"$nulls":4},160,"MY",{"$f":"Translations!$B$1741","v":"Malaysia"},null,null,160,"XCD",{"$f":"Translations!$B$1740","v":"East Caribbean Dollar"}]
[{"$nulls":4},161,"MZ",{"$f":"Translations!$B$1743","v":"Mozambique"},null,null,161,"XDR",{"$f":"Translations!$B$1742","v":"SDR (Special Drawing Right)"}]
[{"$nulls":4},162,"NA",{"$f":"Translations!$B$1745","v":"Namibia"},null,null,162,"XOF",{"$f":"Translations!$B$1744","v":"CFA Franc BCEAO"}]
[{"$nulls":4},163,"NC",{"$f":"Translations!$B$1747","v":"New Caledonia"},null,null,163,"XPF",{"$f":"Translations!$B$1746","v":"CFP Franc"}]
[{"$nulls":4},164,"NE",{"$f":"Translations!$B$1749","v":"Niger"},null,null,164,"YER",{"$f":"Translations!$B$1748","v":"Yemeni Rial"}]
[{"$nulls":4},165,"NF",{"$f":"Translations!$B$1751","v":"Norfolk Island"},null,null,165,"ZAR",{"$f":"Translations!$B$1750","v":"Rand"}]
[{"$nulls":4},166,"NG",{"$f":"Translations!$B$1753","v":"Nigeria"},null,null,166,"ZMW",{"$f":"Translations!$B$1752","v":"Zambian Kwacha"}]
[{"$nulls":4},167,"NI",{"$f":"Translations!$B$1755","v":"Nicaragua"},null,null,167,"ZWL",{"$f":"Translations!$B$1754","v":"Zimbabwe Dollar"}]
[{"$nulls":4},168,"NL","Netherlands"]
[{"$nulls":4},169,"NO","Norway"]
[{"$nulls":4},170,"NP",{"$f":"Translations!$B$1756","v":"Nepal"}]
[{"$nulls":4},171,"NR",{"$f":"Translations!$B$1757","v":"Nauru"}]
[{"$nulls":4},172,"NU",{"$f":"Translations!$B$1758","v":"Niue"}]
[{"$nulls":4},173,"NZ",{"$f":"Translations!$B$1759","v":"New Zealand"}]
[{"$nulls":4},174,"OM",{"$f":"Translations!$B$1760","v":"Oman"}]
[{"$nulls":4},175,"PA",{"$f":"Translations!$B$1761","v":"Panama"}]
[{"$nulls":4},176,"PE",{"$f":"Translations!$B$1762","v":"Peru"}]
[{"$nulls":4},177,"PF",{"$f":"Translations!$B$1763","v":"French Polynesia"}]
[{"$nulls":4},178,"PG",{"$f":"Translations!$B$1764","v":"Papua New Guinea"}]
[{"$nulls":4},179,"PH",{"$f":"Translations!$B$1765","v":"Philippines"}]
[{"$nulls":4},180,"PK",{"$f":"Translations!$B$1766","v":"Pakistan"}]
[{"$nulls":4},181,"PL","Poland"]
[{"$nulls":4},182,"PM",{"$f":"Translations!$B$1767","v":"St Pierre and Miquelon"}]
[{"$nulls":4},183,"PN",{"$f":"Translations!$B$1768","v":"Pitcairn"}]
[{"$nulls":4},184,"PR",{"$f":"Translations!$B$1769","v":"Puerto Rico"}]
[{"$nulls":4},185,"PS",{"$f":"Translations!$B$1770","v":"Occupied Palestinian Territory"}]
[{"$nulls":4},186,"PT","Portugal"]
[{"$nulls":4},187,"PW",{"$f":"Translations!$B$1771","v":"Palau"}]
[{"$nulls":4},188,"PY",{"$f":"Translations!$B$1772","v":"Paraguay"}]
[{"$nulls":4},189,"QA",{"$f":"Translations!$B$1773","v":"Qatar"}]
[{"$nulls":4},190,"QP",{"$f":"Translations!$B$1774","v":"High seas"}]
[{"$nulls":4},191,"RE",{"$f":"Translations!$B$1775","v":"Réunion"}]
[{"$nulls":4},192,"RO","Romania"]
[{"$nulls":4},193,"RS",{"$f":"Translations!$B$1776","v":"Serbia"}]
[{"$nulls":4},194,"RU",{"$f":"Translations!$B$1777","v":"Russian Federation"}]
[{"$nulls":4},195,"RW",{"$f":"Translations!$B$1778","v":"Rwanda"}]
[{"$nulls":4},196,"SA",{"$f":"Translations!$B$1779","v":"Saudi Arabia"}]
[{"$nulls":4},197,"SB",{"$f":"Translations!$B$1780","v":"Solomon Islands"}]
[{"$nulls":4},198,"SC",{"$f":"Translations!$B$1781","v":"Seychelles"}]
[{"$nulls":4},199,"SD",{"$f":"Translations!$B$1782","v":"Sudan"}]
[{"$nulls":4},200,"SE","Sweden"]
[{"$nulls":4},201,"SG",{"$f":"Translations!$B$1783","v":"Singapore"}]
[{"$nulls":4},202,"SH",{"$f":"Translations!$B$1784","v":"Saint Helena, Ascension and Tristan"}]
[{"$nulls":4},203,"SI","Slovenia"]
[{"$nulls":4},204,"SJ",{"$f":"Translations!$B$1785","v":"Svalbard and Jan Mayen Islands"}]
[{"$nulls":4},205,"SK","Slovakia"]
[{"$nulls":4},206,"SL",{"$f":"Translations!$B$1786","v":"Sierra Leone"}]
[{"$nulls":4},207,"SM",{"$f":"Translations!$B$1787","v":"San Marino"}]
[{"$nulls":4},208,"SN",{"$f":"Translations!$B$1788","v":"Senegal"}]
[{"$nulls":4},209,"SO",{"$f":"Translations!$B$1789","v":"Somalia"}]
[{"$nulls":4},210,"SR",{"$f":"Translations!$B$1790","v":"Suriname"}]
[{"$nulls":4},211,"SS",{"$f":"Translations!$B$1791","v":"South Sudan"}]
[{"$nulls":4},212,"ST",{"$f":"Translations!$B$1792","v":"Sao Tome and Principe"}]
[{"$nulls":4},213,"SV",{"$f":"Translations!$B$1793","v":"El Salvador"}]
[{"$nulls":4},214,"SX",{"$f":"Translations!$B$1794","v":"Sint Maarten (Dutch part)"}]
[{"$nulls":4},215,"SY",{"$f":"Translations!$B$1795","v":"Syrian Arab Republic"}]
[{"$nulls":4},216,"SZ",{"$f":"Translations!$B$1796","v":"Swaziland"}]
[{"$nulls":4},217,"TC",{"$f":"Translations!$B$1797","v":"Turks and Caicos Islands"}]
[{"$nulls":4},218,"TD",{"$f":"Translations!$B$1798","v":"Chad"}]
[{"$nulls":4},219,"TF",{"$f":"Translations!$B$1799","v":"French Southern Territories"}]
[{"$nulls":4},220,"TG",{"$f":"Translations!$B$1800","v":"Togo"}]
[{"$nulls":4},221,"TH",{"$f":"Translations!$B$1801","v":"Thailand"}]
[{"$nulls":4},222,"TJ",{"$f":"Translations!$B$1802","v":"Tajikistan"}]
[{"$nulls":4},223,"TK",{"$f":"Translations!$B$1803","v":"Tokelau"}]
[{"$nulls":4},224,"TL",{"$f":"Translations!$B$1804","v":"Timor-Leste"}]
[{"$nulls":4},225,"TM",{"$f":"Translations!$B$1805","v":"Turkmenistan"}]
[{"$nulls":4},226,"TN",{"$f":"Translations!$B$1806","v":"Tunisia"}]
[{"$nulls":4},227,"TO",{"$f":"Translations!$B$1807","v":"Tonga"}]
[{"$nulls":4},228,"TP",{"$f":"Translations!$B$1808","v":"East Timor"}]
[{"$nulls":4},229,"TR",{"$f":"Translations!$B$1809","v":"Türkiye"}]
[{"$nulls":4},230,"TT",{"$f":"Translations!$B$1810","v":"Trinidad and Tobago"}]
[{"$nulls":4},231,"TV",{"$f":"Translations!$B$1811","v":"Tuvalu"}]
[{"$nulls":4},232,"TW",{"$f":"Translations!$B$1812","v":"Taiwan"}]
[{"$nulls":4},233,"TZ",{"$f":"Translations!$B$1813","v":"Tanzania, United Republic of"}]
[{"$nulls":4},234,"UA",{"$f":"Translations!$B$1814","v":"Ukraine"}]
[{"$nulls":4},235,"UG",{"$f":"Translations!$B$1815","v":"Uganda"}]
[{"$nulls":4},236,"UM",{"$f":"Translations!$B$1816","v":"United States Minor Outlying Island"}]
[{"$nulls":4},237,"US",{"$f":"Translations!$B$1817","v":"United States"}]
[{"$nulls":4},238,"UY",{"$f":"Translations!$B$1818","v":"Uruguay"}]
[{"$nulls":4},239,"UZ",{"$f":"Translations!$B$1819","v":"Uzbekistan"}]
[{"$nulls":4},240,"VA",{"$f":"Translations!$B$1820","v":"Vatican City"}]
[{"$nulls":4},241,"VC",{"$f":"Translations!$B$1821","v":"St Vincent"}]
[{"$nulls":4},242,"VE",{"$f":"Translations!$B$1822","v":"Venezuela"}]
[{"$nulls":4},243,"VG",{"$f":"Translations!$B$1823","v":"British Virgin Islands"}]
[{"$nulls":4},244,"VI",{"$f":"Translations!$B$1824","v":"US Virgin Islands"}]
[{"$nulls":4},245,"VN",{"$f":"Translations!$B$1825","v":"Vietnam"}]
[{"$nulls":4},246,"VU",{"$f":"Translations!$B$1826","v":"Vanuatu"}]
[{"$nulls":4},247,"WF",{"$f":"Translations!$B$1827","v":"Wallis and Futuna Islands"}]
[{"$nulls":4},248,"WS",{"$f":"Translations!$B$1828","v":"Samoa"}]
[{"$nulls":4},249,"XA",{"$f":"Translations!$B$1829","v":"American Oceania"}]
[{"$nulls":4},250,"XC",{"$f":"Translations!$B$1830","v":"Ceuta"}]
[{"$nulls":4},251,"XI",{"$f":"Translations!$B$1831","v":"United Kingdom (Northern Ireland)"}]
[{"$nulls":4},252,"XK",{"$f":"Translations!$B$1832","v":"Kosovo"}]
[{"$nulls":4},253,"XL",{"$f":"Translations!$B$1833","v":"Melilla"}]
[{"$nulls":4},254,"XM",{"$f":"Translations!$B$1706","v":"Montenegro"}]
[{"$nulls":4},255,"XO",{"$f":"Translations!$B$1834","v":"Australian Oceania"}]
[{"$nulls":4},256,"XP",{"$f":"Translations!$B$1835","v":"West Bank and Gaza Strip"}]
[{"$nulls":4},257,"XR",{"$f":"Translations!$B$1836","v":"Polar regions"}]
[{"$nulls":4},258,"XS",{"$f":"Translations!$B$1776","v":"Serbia"}]
[{"$nulls":4},259,"XZ",{"$f":"Translations!$B$1837","v":"New Zealand Oceania"}]
[{"$nulls":4},260,"YE",{"$f":"Translations!$B$1838","v":"Yemen"}]
[{"$nulls":4},261,"YT",{"$f":"Translations!$B$1839","v":"Mayotte"}]
[{"$nulls":4},262,"YU",{"$f":"Translations!$B$1840","v":"Federal Republic of Yugoslavia"}]
[{"$nulls":4},263,"ZA",{"$f":"Translations!$B$1841","v":"South Africa"}]
[{"$nulls":4},264,"ZM",{"$f":"Translations!$B$1842","v":"Zambia"}]
[{"$nulls":4},265,"ZR",{"$f":"Translations!$B$1843","v":"Zaire"}]
[{"$nulls":4},266,"ZW",{"$f":"Translations!$B$1844","v":"Zimbabwe"}]
[]
[]
[{"$f":"C279","v":2},null,2,{"$f":"Translations!$B$1845","v":"Common Nomenclature Codes for CBAM goods"},{"$nulls":13},{"$f":"Translations!$B$474","v":"CN Codes"},{"$f":"C279","v":2}]
[]
[]
[{"$nulls":4},{"$f":"Translations!$B$1846","v":"The list below shows the CN codes and corresponding names of all CBAM goods and the aggregated goods category to which the CN code pertains."}]
[{"$nulls":4},{"$f":"Translations!$B$1847","v":"CN codes for products that are not listed here do currently not fall under the CBAM. "}]
[]
[]
[{"$nulls":4},{"$f":"Translations!$B$1848","v":"CN Code"},{"$f":"Translations!$B$604","v":"CN Name"},{"$nulls":6},{"$f":"Translations!$B$107","v":"Aggregated goods category"}]
[{"$nulls":4},"2507 00 80",{"$f":"Translations!$B$694","v":"Kaolinic clays (other than kaolin)"},{"$nulls":6},{"$f":"Translations!$B$666","v":"Calcined clays "}]
[{"$nulls":4},"2523 10 00",{"$f":"Translations!$B$695","v":"Cement clinkers"},{"$nulls":6},{"$f":"Translations!$B$665","v":"Cement clinker"}]
[{"$nulls":4},"2523 21 00",{"$f":"Translations!$B$696","v":"White portland cement, whether or not artificially coloured"},{"$nulls":6},{"$f":"Translations!$B$664","v":"Cement"}]
[{"$nulls":4},"2523 29 00",{"$f":"Translations!$B$697","v":"Portland cement (excl. white, whether or not artificially coloured)"},{"$nulls":6},{"$f":"Translations!$B$664","v":"Cement"}]
[{"$nulls":4},"2523 30 00",{"$f":"Translations!$B$667","v":"Aluminous cement"},{"$nulls":6},{"$f":"Translations!$B$667","v":"Aluminous cement"}]
[{"$nulls":4},"2523 90 00",{"$f":"Translations!$B$698","v":"Cement, whether or not coloured (excl. portland cement and aluminous cement)"},{"$nulls":6},{"$f":"Translations!$B$664","v":"Cement"}]
[{"$nulls":4},"2601 12 00",{"$f":"Translations!$B$699","v":"Agglomerated iron ores and concentrates (excl. roasted iron pyrites)"},{"$nulls":6},{"$f":"Translations!$B$678","v":"Sintered Ore"}]
[{"$nulls":4},"2716 00 00",{"$f":"Translations!$B$700","v":"Electrical energy"},{"$nulls":6},{"$f":"Translations!$B$692","v":"Electricity (export to EU)"}]
[{"$nulls":4},"2804 10 00",{"$f":"Translations!$B$650","v":"Hydrogen"},{"$nulls":6},{"$f":"Translations!$B$650","v":"Hydrogen"}]
[{"$nulls":4},"2808 00 00",{"$f":"Translations!$B$701","v":"Nitric acid; sulphonitric acids"},{"$nulls":6},{"$f":"Translations!$B$685","v":"Nitric acid"}]
[{"$nulls":4},"2814",{"$f":"Translations!$B$702","v":"Ammonia, anhydrous or in aqueous solution"},{"$nulls":6},{"$f":"Translations!$B$682","v":"Ammonia"}]
[{"$nulls":4},"2814 10 00",{"$f":"Translations!$B$703","v":"Anhydrous ammonia"},{"$nulls":6},{"$f":"Translations!$B$682","v":"Ammonia"}]
[{"$nulls":4},"2814 20 00",{"$f":"Translations!$B$704","v":"Ammonia in aqueous solution"},{"$nulls":6},{"$f":"Translations!$B$682","v":"Ammonia"}]
[{"$nulls":4},"2834 21 00",{"$f":"Translations!$B$705","v":"Nitrate of potassium"},{"$nulls":6},{"$f":"Translations!$B$687","v":"Mixed fertilizers"}]
[{"$nulls":4},"3102",{"$f":"Translations!$B$706","v":"Mineral or chemical nitrogenous fertilisers (excl. those in tablets or similar forms, or in packages with a gross weight of <= 10 kg)"},{"$nulls":6},{"$f":"Translations!$B$687","v":"Mixed fertilizers"}]
[{"$nulls":4},"3102 10",{"$f":"Translations!$B$707","v":"Urea, whether or not in aqueous solution (excl. that in tablets or similar forms, or in packages with a gross weight of <= 10 kg)"},{"$nulls":6},{"$f":"Translations!$B$686","v":"Urea"}]
[{"$nulls":4},"3102 10 10",{"$f":"Translations!$B$708","v":"Urea, whether or not in aqueous solution, containing > 45% nitrogen in relation to the weight of the dry product (excl. that in tablets or similar forms, or in packages with a gross weight of <= 10 kg)"},{"$nulls":6},{"$f":"Translations!$B$686","v":"Urea"}]
[{"$nulls":4},"3102 10 90",{"$f":"Translations!$B$709","v":"Urea, whether or not in aqueous solution, containing <= 45% by weight of nitrogen on the dry anhydrous product (excl. goods of this chapter in tablets or similar forms or in packages of a gross weight of <= 10 kg)"},{"$nulls":6},{"$f":"Translations!$B$686","v":"Urea"}]
[{"$nulls":4},"3102 21 00",{"$f":"Translations!$B$710","v":"Ammonium sulphate (excl. that in tablets or similar forms, or in packages with a gross weight of <= 10 kg)"},{"$nulls":6},{"$f":"Translations!$B$687","v":"Mixed fertilizers"}]
[{"$nulls":4},"3102 29 00",{"$f":"Translations!$B$711","v":"Double salts and mixtures of ammonium sulphate and ammonium nitrate (excl. goods of this chapter in tablets or similar forms or in packages of a gross weight of <= 10 kg)"},{"$nulls":6},{"$f":"Translations!$B$687","v":"Mixed fertilizers"}]
[{"$nulls":4},"3102 30",{"$f":"Translations!$B$712","v":"Ammonium nitrate, whether or not in aqueous solution (excl. that in tablets or similar forms, or in packages with a gross weight of <= 10 kg)"},{"$nulls":6},{"$f":"Translations!$B$687","v":"Mixed fertilizers"}]
[{"$nulls":4},"3102 30 10",{"$f":"Translations!$B$713","v":"Ammonium nitrate in aqueous solution (excl. that in packages with a gross weight of <= 10 kg)"},{"$nulls":6},{"$f":"Translations!$B$687","v":"Mixed fertilizers"}]
[{"$nulls":4},"3102 30 90",{"$f":"Translations!$B$714","v":"Ammonium nitrate (excl. that in aqueous solution, in tablets or similar forms, or in packages with a gross weight of <= 10 kg)"},{"$nulls":6},{"$f":"Translations!$B$687","v":"Mixed fertilizers"}]
[{"$nulls":4},"3102 40",{"$f":"Translations!$B$715","v":"Mixtures of ammonium nitrate with calcium carbonate or other inorganic non-fertilising substances for use as fertilisers (excl. those in tablets or similar forms, or in packages with a gross weight of <= 10 kg)"},{"$nulls":6},{"$f":"Translations!$B$687","v":"Mixed fertilizers"}]
[{"$nulls":4},"3102 40 10",{"$f":"Translations!$B$716","v":"Mixtures of ammonium nitrate with calcium carbonate or other inorganic non-fertilising substances, for use as fertilisers, containing <= 28% nitrogen by weight (excl. those in tablets or similar forms, or in packages with a gross weight of <= 10 kg)"},{"$nulls":6},{"$f":"Translations!$B$687","v":"Mixed fertilizers"}]
[{"$nulls":4},"3102 40 90",{"$f":"Translations!$B$717","v":"Mixtures of ammonium nitrate with calcium carbonate or other inorganic non-fertilising substances, for use as fertilisers, containing > 28% nitrogen by weight (excl. those in tablets or similar forms, or in packages with a gross weight of <= 10 kg)"},{"$nulls":6},{"$f":"Translations!$B$687","v":"Mixed fertilizers"}]
[{"$nulls":4},"3102 50 00",{"$f":"Translations!$B$718","v":"Sodium nitrate (excl. that in tablets or similar forms, or in packages with a gross weight of <= 10 kg)"},{"$nulls":6},{"$f":"Translations!$B$687","v":"Mixed fertilizers"}]
[{"$nulls":4},"3102 60 00",{"$f":"Translations!$B$719","v":"Double salts and mixtures of calcium nitrate and ammonium nitrate (excl. those in tablets or similar forms, or in packages with a gross weight of <= 10 kg)"},{"$nulls":6},{"$f":"Translations!$B$687","v":"Mixed fertilizers"}]
[{"$nulls":4},"3102 80 00",{"$f":"Translations!$B$720","v":"Mixtures of urea and ammonium nitrate in aqueous or ammoniacal solution (excl. those in packages with a gross weight of <= 10 kg)"},{"$nulls":6},{"$f":"Translations!$B$687","v":"Mixed fertilizers"}]
[{"$nulls":4},"3102 90 00",{"$f":"Translations!$B$721","v":"Mineral or chemical nitrogen fertilisers (excl. urea; ammonium sulphate; ammonium nitrate; sodium nitrate; double salts and mixtures of ammonium nitrate with ammonium sulphate or calcium; mixtures of urea and ammonium nitrate in aqueous or ammoniacal solution; mixtures of ammonium nitrate and calcium carbonate or other non-fertilising inorganic elements; in tablets or similar in packages <= 10 kg)"},{"$nulls":6},{"$f":"Translations!$B$687","v":"Mixed fertilizers"}]
[{"$nulls":4},"3105",{"$f":"Translations!$B$722","v":"Mineral or chemical fertilisers containing two or three of the fertilising elements nitrogen, phosphorus and potassium; other fertilisers (excl. pure animal or vegetable fertilisers or mineral or chemical nitrogenous, phosphatic or potassic fertilisers); animal, vegetable, mineral or chemical fertilisers in tablets or similar forms or in packages of a gross weight of <= 10 kg"},{"$nulls":6},{"$f":"Translations!$B$687","v":"Mixed fertilizers"}]
[{"$nulls":4},"3105 10 00",{"$f":"Translations!$B$723","v":"Mineral or chemical fertilisers of animal or vegetable origin, in tablets or similar forms, or in packages with a gross weight of <= 10 kg"},{"$nulls":6},{"$f":"Translations!$B$687","v":"Mixed fertilizers"}]
[{"$nulls":4},"3105 20",{"$f":"Translations!$B$724","v":"Mineral or chemical fertilisers containing the three fertilising elements nitrogen, phosphorus and potassium (excl. those in tablets or similar forms, or in packages with a gross weight of <= 10 kg)"},{"$nulls":6},{"$f":"Translations!$B$687","v":"Mixed fertilizers"}]
[{"$nulls":4},"3105 20 10",{"$f":"Translations!$B$725","v":"Mineral or chemical fertilisers containing phosphorus and potassium, with a nitrogen content > 10 % by weight on the dry anhydrous product (excl. those in tablets or similar forms, or in packages with a gross weight of <= 10 kg)"},{"$nulls":6},{"$f":"Translations!$B$687","v":"Mixed fertilizers"}]
[{"$nulls":4},"3105 20 90",{"$f":"Translations!$B$726","v":"Mineral or chemical fertilisers containing nitrogen, phosphorus and potassium, with a nitrogen content <= 10 % by weight on the dry anhydrous product (excl. those in tablets or similar forms, or in packages with a gross weight of <= 10 kg)"},{"$nulls":6},{"$f":"Translations!$B$687","v":"Mixed fertilizers"}]
[{"$nulls":4},"3105 30 00",{"$f":"Translations!$B$727","v":"Diammonium hydrogenorthophosphate \"diammonium phosphate\" (excl. that in tablets or similar forms, or in packages with a gross weight of <= 10 kg)"},{"$nulls":6},{"$f":"Translations!$B$687","v":"Mixed fertilizers"}]
[{"$nulls":4},"3105 40 00",{"$f":"Translations!$B$728","v":"Ammonium dihydrogenorthophosphate \"monoammonium phosphate\", whether or not mixed with diammonium hydrogenorthophosphate \"diammonium phosphate\" (excl. that in tablets or similar forms, or in packages with a gross weight of <= 10 kg)"},{"$nulls":6},{"$f":"Translations!$B$687","v":"Mixed fertilizers"}]
[{"$nulls":4},"3105 51 00",{"$f":"Translations!$B$729","v":"Mineral or chemical fertilisers containing nitrates and phosphates (excl. ammonium dihydrogenorthophosphate \"Monoammonium phosphate\", diammonium hydrogenorthophosphate \"Diammonium phosphate\", and those in tablets or similar forms, or in packages with a gross weight of <= 10 kg)"},{"$nulls":6},{"$f":"Translations!$B$687","v":"Mixed fertilizers"}]
[{"$nulls":4},"3105 59 00",{"$f":"Translations!$B$730","v":"Mineral or chemical fertilisers containing the two fertilising elements nitrogen (excl. nitrate) and phosphorus but not nitrates (excl. ammonium dihydrogenorthophosphate \"monoammonium phosphate\", diammonium hydrogenorthophosphate \"diammonium phosphate\" in tablets or similar forms, or in packages with a gross weight of <= 10 kg)"},{"$nulls":6},{"$f":"Translations!$B$687","v":"Mixed fertilizers"}]
[{"$nulls":4},"3105 90",{"$f":"Translations!$B$731","v":"Mineral or chemical fertilisers containing the two fertilising elements nitrogen and potassium or one principal fertilising substance only, incl. mixtures of animal or vegetable fertilisers with chemical or mineral fertilisers (excl. those in tablets or similar forms, or in packages with a gross weight of <= 10 kg)"},{"$nulls":6},{"$f":"Translations!$B$687","v":"Mixed fertilizers"}]
[{"$nulls":4},"3105 90 20",{"$f":"Translations!$B$732","v":"Mineral or chemical fertilisers containing the two fertilising elements nitrogen and potassium, or one principal fertilising substance only, incl. mixtures of animal or vegetable fertilisers with chemical or mineral fertilisers, containing > 10% nitrogen by weight (excl. in tablets or similar forms, or in packages with a gross weight of <= 10 kg)"},{"$nulls":6},{"$f":"Translations!$B$687","v":"Mixed fertilizers"}]
[{"$nulls":4},"3105 90 80",{"$f":"Translations!$B$733","v":"Mineral or chemical fertilisers containing the two fertilising elements nitrogen and potassium, or one main fertilising element, incl. mixtures of animal or vegetable fertilisers with chemical or mineral fertilisers, not containing nitrogen or with a nitrogen content, by weight, of <= 10% (excl. in tablets or similar forms or in packages of a gross weight of <= 10 kg)"},{"$nulls":6},{"$f":"Translations!$B$687","v":"Mixed fertilizers"}]
[{"$nulls":4},"7201",{"$f":"Translations!$B$734","v":"Pig iron and spiegeleisen, in pigs, blocks or other primary forms"},{"$nulls":6},{"$f":"Translations!$B$674","v":"Pig iron"}]
[{"$nulls":4},"7201 10",{"$f":"Translations!$B$735","v":"Non-alloy pig iron in pigs, blocks or other primary forms, containing, by weight, <= 0,5% of phosphorous"},{"$nulls":6},{"$f":"Translations!$B$674","v":"Pig iron"}]
[{"$nulls":4},"7201 10 11",{"$f":"Translations!$B$736","v":"Non-alloy pig iron in pigs, blocks or other primary forms, containing by weight <= 0,5% phosphorus, >= 0,4% manganese and <= 1% silicon"},{"$nulls":6},{"$f":"Translations!$B$674","v":"Pig iron"}]
[{"$nulls":4},"7201 10 19",{"$f":"Translations!$B$737","v":"Non-alloy pig iron in pigs, blocks or other primary forms, containing by weight <= 0,5% phosphorus, >= 0,4% manganese and > 1% silicon"},{"$nulls":6},{"$f":"Translations!$B$674","v":"Pig iron"}]
[{"$nulls":4},"7201 10 30",{"$f":"Translations!$B$738","v":"Non-alloy pig iron in pigs, blocks or other primary forms, containing by weight <= 0,5% phosphorus, and >= 0,1% but < 0,4% manganese"},{"$nulls":6},{"$f":"Translations!$B$674","v":"Pig iron"}]
[{"$nulls":4},"7201 10 90",{"$f":"Translations!$B$739","v":"Non-alloy pig iron in pigs, blocks or other primary forms, containing by weight <= 0,5% phosphorus, and <= 0,1% manganese"},{"$nulls":6},{"$f":"Translations!$B$674","v":"Pig iron"}]
[{"$nulls":4},"7201 20 00",{"$f":"Translations!$B$740","v":"Non-alloy pig iron in pigs, blocks or other primary forms, containing by weight >= 0,5% phosphorus"},{"$nulls":6},{"$f":"Translations!$B$674","v":"Pig iron"}]
[{"$nulls":4},"7201 50",{"$f":"Translations!$B$741","v":"Alloy pig iron and spiegeleisen, in pigs, blocks or other primary forms"},{"$nulls":6},{"$f":"Translations!$B$674","v":"Pig iron"}]
[{"$nulls":4},"7201 50 10",{"$f":"Translations!$B$742","v":"Alloy pig iron in pigs, blocks or other primary forms, containing by weight >= 0,3% but <= 1% titanium and >= 0,5% but <= 1% vanadium"},{"$nulls":6},{"$f":"Translations!$B$674","v":"Pig iron"}]
[{"$nulls":4},"7201 50 90",{"$f":"Translations!$B$743","v":"Alloy pig iron and spiegeleisen, in pigs, blocks or other primary forms (excl. alloy iron containing, by weight, >= 0,3% but <= 1% titanium and >= 0,5% but <= 1% vanadium)"},{"$nulls":6},{"$f":"Translations!$B$674","v":"Pig iron"}]
[{"$nulls":4},"7202 11",{"$f":"Translations!$B$744","v":"Ferro-manganese, containing by weight > 2% of carbon"},{"$nulls":6},{"$f":"Translations!$B$677","v":"Alloys (FeMn, FeCr, FeNi)"}]
[{"$nulls":4},"7202 11 20",{"$f":"Translations!$B$745","v":"Ferro-manganese, containing by weight > 2% carbon, with a granulometry <= 5 mm and a manganese content by weight > 65%"},{"$nulls":6},{"$f":"Translations!$B$677","v":"Alloys (FeMn, FeCr, FeNi)"}]
[{"$nulls":4},"7202 11 80",{"$f":"Translations!$B$746","v":"Ferro-manganese, containing by weight > 2% carbon (excl. ferro-manganese with a granulometry of <= 5 mm and containing by weight > 65% manganese)"},{"$nulls":6},{"$f":"Translations!$B$677","v":"Alloys (FeMn, FeCr, FeNi)"}]
[{"$nulls":4},"7202 19 00",{"$f":"Translations!$B$747","v":"Ferro-manganese, containing by weight <= 2% carbon"},{"$nulls":6},{"$f":"Translations!$B$677","v":"Alloys (FeMn, FeCr, FeNi)"}]
[{"$nulls":4},"7202 41",{"$f":"Translations!$B$748","v":"Ferro-chromium, containing by weight > 4% of carbon"},{"$nulls":6},{"$f":"Translations!$B$677","v":"Alloys (FeMn, FeCr, FeNi)"}]
[{"$nulls":4},"7202 41 10",{"$f":"Translations!$B$749","v":"Ferro-chromium, containing by weight > 4% but <= 6% carbon"},{"$nulls":6},{"$f":"Translations!$B$677","v":"Alloys (FeMn, FeCr, FeNi)"}]
[{"$nulls":4},"7202 41 90",{"$f":"Translations!$B$750","v":"Ferro-chromium, containing by weight > 6% carbon"},{"$nulls":6},{"$f":"Translations!$B$677","v":"Alloys (FeMn, FeCr, FeNi)"}]
[{"$nulls":4},"7202 49",{"$f":"Translations!$B$751","v":"Ferro-chromium, containing by weight <= 4% of carbon"},{"$nulls":6},{"$f":"Translations!$B$677","v":"Alloys (FeMn, FeCr, FeNi)"}]
[{"$nulls":4},"7202 49 10",{"$f":"Translations!$B$752","v":"Ferro-chromium, containing by weight <= 0,05% carbon"},{"$nulls":6},{"$f":"Translations!$B$677","v":"Alloys (FeMn, FeCr, FeNi)"}]
[{"$nulls":4},"7202 49 50",{"$f":"Translations!$B$753","v":"Ferro-chromium, containing by weight > 0,05% but <= 0,5% carbon"},{"$nulls":6},{"$f":"Translations!$B$677","v":"Alloys (FeMn, FeCr, FeNi)"}]
[{"$nulls":4},"7202 49 90",{"$f":"Translations!$B$754","v":"Ferro-chromium, containing by weight > 0,5% but <= 4% carbon"},{"$nulls":6},{"$f":"Translations!$B$677","v":"Alloys (FeMn, FeCr, FeNi)"}]
[{"$nulls":4},"7202 60 00",{"$f":"Translations!$B$755","v":"Ferro-nickel"},{"$nulls":6},{"$f":"Translations!$B$677","v":"Alloys (FeMn, FeCr, FeNi)"}]
[{"$nulls":4},"7203",{"$f":"Translations!$B$756","v":"Ferrous products obtained by direct reduction of iron ore and other spongy ferrous products, in lumps, pellets or similar forms; iron having a minimum purity by weight of 99,94%, in lumps, pellets or similar forms"},{"$nulls":6},{"$f":"Translations!$B$673","v":"Direct reduced iron"}]
[{"$nulls":4},"7203 10 00",{"$f":"Translations!$B$757","v":"Ferrous products obtained by direct reduction of iron ore, in lumps, pellets or similar forms"},{"$nulls":6},{"$f":"Translations!$B$673","v":"Direct reduced iron"}]
[{"$nulls":4},"7203 90 00",{"$f":"Translations!$B$758","v":"Spongy ferrous products, obtained from molten pig iron by atomisation, iron of a purity of >= 99,94%, in lumps, pellets or similar forms"},{"$nulls":6},{"$f":"Translations!$B$673","v":"Direct reduced iron"}]
[{"$nulls":4},"7205",{"$f":"Translations!$B$759","v":"Granules and powders of pig iron, spiegeleisen, iron or steel (excl. granules and powders of ferro-alloys, turnings and filings of iron or steel, radioactive iron powders \"isotopes\" and certain low-calibre, substandard balls for ballbearings)"},{"$nulls":6},{"$f":"Translations!$B$611","v":"Iron or steel products"}]
[{"$nulls":4},"7205 10 00",{"$f":"Translations!$B$760","v":"Granules, of pig iron, spiegeleisen, iron or steel (excl. granules of ferro-alloys, turnings and filings of iron or steel, certain small calibre items, defective balls for ball-bearings)"},{"$nulls":6},{"$f":"Translations!$B$611","v":"Iron or steel products"}]
[{"$nulls":4},"7205 21 00",{"$f":"Translations!$B$761","v":"Powders, of alloy steel (excl. powders of ferro-alloys and radioactive iron powders \"isotopes\")"},{"$nulls":6},{"$f":"Translations!$B$611","v":"Iron or steel products"}]
[{"$nulls":4},"7205 29 00",{"$f":"Translations!$B$762","v":"Powders, of pig iron, spiegeleisen, iron or non-alloy steel (excl. powders of ferro-alloys and radioactive iron powders \"isotopes\")"},{"$nulls":6},{"$f":"Translations!$B$611","v":"Iron or steel products"}]
[{"$nulls":4},"7206",{"$f":"Translations!$B$763","v":"Iron and non-alloy steel in ingots or other primary forms (excl. remelting scrap ingots, products obtained by continuous casting and iron of heading 7203)"},{"$nulls":6},{"$f":"Translations!$B$668","v":"Crude steel"}]
[{"$nulls":4},"7206 10 00",{"$f":"Translations!$B$764","v":"Ingots, of iron and non-alloy steel (excl. remelted scrap ingots, continuous cast products, iron of heading 7203)"},{"$nulls":6},{"$f":"Translations!$B$668","v":"Crude steel"}]
[{"$nulls":4},"7206 90 00",{"$f":"Translations!$B$765","v":"Iron and non-alloy steel, in puddled bars or other primary forms (excl. ingots, remelted scrap ingots, continuous cast products, iron of heading 7203)"},{"$nulls":6},{"$f":"Translations!$B$668","v":"Crude steel"}]
[{"$nulls":4},"7207",{"$f":"Translations!$B$766","v":"Semi-finished products of iron or non-alloy steel"},{"$nulls":6},{"$f":"Translations!$B$668","v":"Crude steel"}]
[{"$nulls":4},"7207 11",{"$f":"Translations!$B$767","v":"Semi-finished products of iron or non-alloy steel containing, by weight, < 0,25% of carbon, of square or rectangular cross-section, the width measuring < twice the thickness"},{"$nulls":6},{"$f":"Translations!$B$668","v":"Crude steel"}]
[{"$nulls":4},"7207 11 11",{"$f":"Translations!$B$768","v":"Semi-finished products, of non-alloy free-cutting steel, containing by weight < 0,25% carbon, of square or rectangular cross-section, the width < twice the thickness, rolled or obtained by continuous casting"},{"$nulls":6},{"$f":"Translations!$B$668","v":"Crude steel"}]
[{"$nulls":4},"7207 11 14",{"$f":"Translations!$B$769","v":"Semi-finished products, of iron or non-alloy steel, containing by weight < 0,25% carbon, of square or rectangular cross-section, the width < twice the thickness of <= 130 mm, rolled or obtained by continuous casting (excl. free-cutting steel)"},{"$nulls":6},{"$f":"Translations!$B$668","v":"Crude steel"}]
[{"$nulls":4},"7207 11 16",{"$f":"Translations!$B$770","v":"Semi-finished products, of iron or non-alloy steel, containing by weight < 0,25% carbon, of square or rectangular cross-section, the width < twice the thickness of > 130 mm, rolled or obtained by continuous casting (excl. free-cutting steel)"},{"$nulls":6},{"$f":"Translations!$B$668","v":"Crude steel"}]
[{"$nulls":4},"7207 11 90",{"$f":"Translations!$B$771","v":"Semi-finished products of iron or non-alloy steel, containing by weight < 0,25% carbon, of rectangular cross-section, the width < twice the thickness, forged"},{"$nulls":6},{"$f":"Translations!$B$668","v":"Crude steel"}]
[{"$nulls":4},"7207 12",{"$f":"Translations!$B$772","v":"Semi-finished products of iron or non-alloy steel containing, by weight, < 0,25% of carbon, of rectangular \"other than square\" cross-section, the width measuring >= twice the thickness"},{"$nulls":6},{"$f":"Translations!$B$668","v":"Crude steel"}]
[{"$nulls":4},"7207 12 10",{"$f":"Translations!$B$773","v":"Semi-finished products of iron or non-alloy steel, containing by weight < 0,25 of carbon, of rectangular \"other than square\" cross-section, the width measuring >= twice the thickness, rolled or obtained by continuous casting"},{"$nulls":6},{"$f":"Translations!$B$668","v":"Crude steel"}]
[{"$nulls":4},"7207 12 90",{"$f":"Translations!$B$774","v":"Semi-finished products of iron or non-alloy steel, containing by weight < 0,25% carbon, of rectangular \"other than square\" cross-section, the width >= twice the thickness, forged"},{"$nulls":6},{"$f":"Translations!$B$668","v":"Crude steel"}]
[{"$nulls":4},"7207 19",{"$f":"Translations!$B$775","v":"Semi-finished products of iron or non-alloy steel containing, by weight, < 0,25% of carbon, of circular cross-section, or of a cross-section other than square or rectangular"},{"$nulls":6},{"$f":"Translations!$B$668","v":"Crude steel"}]
[{"$nulls":4},"7207 19 12",{"$f":"Translations!$B$776","v":"Semi-finished products, of iron or non-alloy steel, containing by weight < 0,25% carbon, of circular or polygonal cross-section, rolled or obtained by continuous casting"},{"$nulls":6},{"$f":"Translations!$B$668","v":"Crude steel"}]
[{"$nulls":4},"7207 19 19",{"$f":"Translations!$B$612","v":"Semi-finished products of iron or non-alloy steel, containing by weight < 0,25% carbon, of circular or polygonal cross-section, forged"},{"$nulls":6},{"$f":"Translations!$B$668","v":"Crude steel"}]
[{"$nulls":4},"7207 19 80",{"$f":"Translations!$B$777","v":"Semi-finished products of iron or non-alloy steel, containing by weight < 0,25% carbon (excl. semi-products, of square, rectangular, circular or polygonal cross-section)"},{"$nulls":6},{"$f":"Translations!$B$668","v":"Crude steel"}]
[{"$nulls":4},"7207 20",{"$f":"Translations!$B$778","v":"Semi-finished products of iron or non-alloy steel containing, by weight, >= 0,25% of carbon"},{"$nulls":6},{"$f":"Translations!$B$668","v":"Crude steel"}]
[{"$nulls":4},"7207 20 11",{"$f":"Translations!$B$779","v":"Semi-finished products, of non-alloy free-cutting steel, containing by weight >= 0,25% carbon, of square or rectangular cross-section, the width < twice the thickness, rolled or obtained by continuous casting"},{"$nulls":6},{"$f":"Translations!$B$668","v":"Crude steel"}]
[{"$nulls":4},"7207 20 15",{"$f":"Translations!$B$780","v":"Semi-finished products of iron or non-alloy steel, containing by weight >= 0,25% but < 0,6% carbon, of square or rectangular cross-section, the width < twice the thickness, rolled or obtained by continuous casting (excl. free-cutting steel)"},{"$nulls":6},{"$f":"Translations!$B$668","v":"Crude steel"}]
[{"$nulls":4},"7207 20 17",{"$f":"Translations!$B$781","v":"Semi-finished products of iron or non-alloy steel, containing by weight >= 0,6% carbon, of square or rectangular cross-section, the width < twice the thickness, rolled or obtained by continuous casting (excl. free-cutting steel)"},{"$nulls":6},{"$f":"Translations!$B$668","v":"Crude steel"}]
[{"$nulls":4},"7207 20 19",{"$f":"Translations!$B$782","v":"Semi-finished products of iron or non-alloy steel, containing by weight >= 0,25% carbon, of square or rectangular cross-section, the width < twice the thickness, forged"},{"$nulls":6},{"$f":"Translations!$B$668","v":"Crude steel"}]
[{"$nulls":4},"7207 20 32",{"$f":"Translations!$B$783","v":"Semi-finished products of iron or non-alloy steel, containing by weight >= 0,25 of carbon, of rectangular \"other than square\" cross-section, the width measuring >= twice the thickness, rolled or obtained by continuous casting"},{"$nulls":6},{"$f":"Translations!$B$668","v":"Crude steel"}]
[{"$nulls":4},"7207 20 39",{"$f":"Translations!$B$784","v":"Semi-finished products of iron or non-alloy steel, containing by weight >= 0,25% carbon, of rectangular \"other than square\" cross-section and the width >= twice the thickness, forged"},{"$nulls":6},{"$f":"Translations!$B$668","v":"Crude steel"}]
[{"$nulls":4},"7207 20 52",{"$f":"Translations!$B$785","v":"Semi-finished products of iron or non-alloy steel, containing by weight >= 0,25% carbon, of circular or polygonal cross-section, rolled or obtained by continuous casting"},{"$nulls":6},{"$f":"Translations!$B$668","v":"Crude steel"}]
[{"$nulls":4},"7207 20 59",{"$f":"Translations!$B$786","v":"Semi-finished products of iron or non-alloy steel, containing by weight >= 0,6% carbon, of circular or polygonal cross-section, forged"},{"$nulls":6},{"$f":"Translations!$B$668","v":"Crude steel"}]
[{"$nulls":4},"7207 20 80",{"$f":"Translations!$B$787","v":"Semi-finished products of iron or non-alloy steel, containing by weight >= 0,25% carbon (excl. those of square, rectangular, circular or polygonal cross-section)"},{"$nulls":6},{"$f":"Translations!$B$668","v":"Crude steel"}]
[{"$nulls":4},"7208",{"$f":"Translations!$B$788","v":"Flat-rolled products of iron or non-alloy steel, of a width >= 600 mm, hot-rolled, not clad, plated or coated"},{"$nulls":6},{"$f":"Translations!$B$611","v":"Iron or steel products"}]
[{"$nulls":4},"7208 10 00",{"$f":"Translations!$B$789","v":"Flat-rolled products of iron or non-alloy steel, of a width of >= 600 mm, in coils, simply hot-rolled, not clad, plated or coated, with patterns in relief directly due to the rolling process"},{"$nulls":6},{"$f":"Translations!$B$611","v":"Iron or steel products"}]
[{"$nulls":4},"7208 25 00",{"$f":"Translations!$B$790","v":"Flat-rolled products of iron or non-alloy steel, of a width of >= 600 mm, in coils, simply hot-rolled, not clad, plated or coated, of a thickness of >= 4,75 mm, pickled, without patterns in relief"},{"$nulls":6},{"$f":"Translations!$B$611","v":"Iron or steel products"}]
[{"$nulls":4},"7208 26 00",{"$f":"Translations!$B$791","v":"Flat-rolled products of iron or non-alloy steel, of a width of >= 600 mm, in coils, simply hot-rolled, not clad, plated or coated, of a thickness of >= 3 mm but < 4,75 mm, pickled, without patterns in relief"},{"$nulls":6},{"$f":"Translations!$B$611","v":"Iron or steel products"}]
[{"$nulls":4},"7208 27 00",{"$f":"Translations!$B$792","v":"Flat-rolled products of iron or non-alloy steel, of a width of >= 600 mm, in coils, simply hot-rolled, not clad, plated or coated, of a thickness of < 3 mm, pickled, without patterns in relief"},{"$nulls":6},{"$f":"Translations!$B$611","v":"Iron or steel products"}]
[{"$nulls":4},"7208 36 00",{"$f":"Translations!$B$793","v":"Flat-rolled products of iron or non-alloy steel, of a width of >= 600 mm, in coils, simply hot-rolled, not clad, plated or coated, of a thickness of >= 10 mm, not pickled, without patterns in relief"},{"$nulls":6},{"$f":"Translations!$B$611","v":"Iron or steel products"}]
[{"$nulls":4},"7208 37 00",{"$f":"Translations!$B$794","v":"Flat-rolled products of iron or non-alloy steel, of a width of >= 600 mm, in coils, simply hot-rolled, not clad, plated or coated, of a thickness of >= 4,75 mm but < 10 mm, not pickled, without patterns in relief"},{"$nulls":6},{"$f":"Translations!$B$611","v":"Iron or steel products"}]
[{"$nulls":4},"7208 38 00",{"$f":"Translations!$B$795","v":"Flat-rolled products of iron or non-alloy steel, of a width of >= 600 mm, in coils, simply hot-rolled, not clad, plated or coated, of a thickness of >= 3 mm but < 4,75 mm, not pickled, without patterns in relief"},{"$nulls":6},{"$f":"Translations!$B$611","v":"Iron or steel products"}]
[{"$nulls":4},"7208 39 00",{"$f":"Translations!$B$796","v":"Flat-rolled products of iron or non-alloy steel, of a width of >= 600 mm, in coils, simply hot-rolled, not clad, plated or coated, of a thickness of < 3 mm, not pickled, without patterns in relief"},{"$nulls":6},{"$f":"Translations!$B$611","v":"Iron or steel products"}]
[{"$nulls":4},"7208 40 00",{"$f":"Translations!$B$797","v":"Flat-rolled products of iron or non-alloy steel, of a width of >= 600 mm, not in coils, simply hot-rolled, not clad, plated or coated, with patterns in relief directly due to the rolling process"},{"$nulls":6},{"$f":"Translations!$B$611","v":"Iron or steel products"}]
[{"$nulls":4},"7208 51",{"$f":"Translations!$B$798","v":"Flat-rolled products of iron or non-alloy steel, of a width >= 600 mm, not in coils, simply hot-rolled, not clad, plated or coated, of a thickness of > 10 mm, without patterns in relief"},{"$nulls":6},{"$f":"Translations!$B$611","v":"Iron or steel products"}]
[{"$nulls":4},"7208 51 20",{"$f":"Translations!$B$799","v":"Flat-rolled products of iron or non-alloy steel, of a width of >= 600 mm, not in coils, simply hot-rolled, not clad, plated or coated, of a thickness of > 15 mm, without patterns in relief"},{"$nulls":6},{"$f":"Translations!$B$611","v":"Iron or steel products"}]
[{"$nulls":4},"7208 51 91",{"$f":"Translations!$B$800","v":"Flat-rolled products of iron or non-alloy steel, of a width of >= 2.050 mm, not in coils, simply hot-rolled, not clad, plated or coated, of a thickness of > 10 mm but <= 15 mm, without patterns in relief (excl. \"wide flats\")"},{"$nulls":6},{"$f":"Translations!$B$611","v":"Iron or steel products"}]
[{"$nulls":4},"7208 51 98",{"$f":"Translations!$B$801","v":"Flat-rolled products of iron or non-alloy steel, of a width of < 2.050 mm but >= 600 mm, not in coils, simply hot-rolled, not clad, plated or coated, of a thickness of > 10 mm but <= 15 mm, without patterns in relief"},{"$nulls":6},{"$f":"Translations!$B$611","v":"Iron or steel products"}]
[{"$nulls":4},"7208 52",{"$f":"Translations!$B$802","v":"Flat-rolled products of iron or non-alloy steel, of a width of >= 600 mm, not in coils, simply hot-rolled, not clad, plated or coated, of a thickness of >= 4,75 mm but <= 10 mm, without patterns in relief"},{"$nulls":6},{"$f":"Translations!$B$611","v":"Iron or steel products"}]
[{"$nulls":4},"7208 52 10",{"$f":"Translations!$B$803","v":"Flat-rolled products of iron or non-alloy steel, of a width of <= 1.250 mm, not in coils, simply hot-rolled on four faces or in a closed box pass, not clad, plated or coated, of a thickness of >= 4,75 mm but <= 10 mm, without patterns in relief"},{"$nulls":6},{"$f":"Translations!$B$611","v":"Iron or steel products"}]
[{"$nulls":4},"7208 52 91",{"$f":"Translations!$B$804","v":"Flat-rolled products of iron or non-alloy steel, of a width of >= 2.050 mm, not in coils, simply hot-rolled, not clad, plated or coated, of a thickness of >= 4,75 mm but <= 10 mm, without patterns in relief"},{"$nulls":6},{"$f":"Translations!$B$611","v":"Iron or steel products"}]
[{"$nulls":4},"7208 52 99",{"$f":"Translations!$B$805","v":"Flat-rolled products of iron or non-alloy steel, of a width of < 2.050 mm but >= 600 mm, not in coils, simply hot-rolled, not clad, plated or coated, of a thickness of >= 4,75 mm but <= 10 mm, without patterns in relief (excl. rolled on four faces or in a closed bow pass of a width <= 1.250 mm)"},{"$nulls":6},{"$f":"Translations!$B$611","v":"Iron or steel products"}]
[{"$nulls":4},"7208 53",{"$f":"Translations!$B$806","v":"Flat-rolled products of iron or non-alloy steel, of a width of >= 600 mm, not in coils, simply hot-rolled, not clad, plated or coated, of a thickness of >= 3 mm but < 4,75 mm, without patterns in relief"},{"$nulls":6},{"$f":"Translations!$B$611","v":"Iron or steel products"}]
[{"$nulls":4},"7208 53 10",{"$f":"Translations!$B$807","v":"Flat-rolled products of iron or non-alloy steel, of a width of <= 1.250 mm, not in coils, simply hot-rolled on four faces or in a closed box pass, not clad, plated or coated, of a thickness of >= 4 mm but < 4,75 mm, without patterns in relief"},{"$nulls":6},{"$f":"Translations!$B$611","v":"Iron or steel products"}]
[{"$nulls":4},"7208 53 90",{"$f":"Translations!$B$808","v":"Flat-rolled products of iron or non-alloy steel, of a width of >= 600 mm, not in coils, simply hot-rolled, not clad, plated or coated, of a thickness of >= 3 mm but < 4,75 mm, without patterns in relief (excl. rolled on four faces or in a closed bow pass of a width <= 1.250 mm and of a thickness of >= 4 mm)"},{"$nulls":6},{"$f":"Translations!$B$611","v":"Iron or steel products"}]
[{"$nulls":4},"7208 54 00",{"$f":"Translations!$B$809","v":"Flat-rolled products of iron or non-alloy steel, of a width of >= 600 mm, not in coils, simply hot-rolled, not clad, plated or coated, of a thickness of < 3 mm, without patterns in relief"},{"$nulls":6},{"$f":"Translations!$B$611","v":"Iron or steel products"}]
[{"$nulls":4},"7208 90",{"$f":"Translations!$B$810","v":"Flat-rolled products of iron or steel, of a width >= 600 mm, hot-rolled and further worked, but not clad, plated or coated"},{"$nulls":6},{"$f":"Translations!$B$611","v":"Iron or steel products"}]
[{"$nulls":4},"7208 90 20",{"$f":"Translations!$B$811","v":"Flat-rolled products of iron or steel, of a width >= 600 mm, hot-rolled and further worked, but not clad, plated or coated, perforated"},{"$nulls":6},{"$f":"Translations!$B$611","v":"Iron or steel products"}]
[{"$nulls":4},"7208 90 80",{"$f":"Translations!$B$812","v":"Flat-rolled products of iron or steel, of a width >= 600 mm, hot-rolled and further worked, but not clad, plated or coated, non-perforated"},{"$nulls":6},{"$f":"Translations!$B$611","v":"Iron or steel products"}]
[{"$nulls":4},"7209",{"$f":"Translations!$B$813","v":"Flat-rolled products of iron or non-alloy steel, of a width of >= 600 mm, cold-rolled \"cold-reduced\", not clad, plated or coated"},{"$nulls":6},{"$f":"Translations!$B$611","v":"Iron or steel products"}]
[{"$nulls":4},"7209 15 00",{"$f":"Translations!$B$814","v":"Flat-rolled products of iron or non-alloy steel, of a width of >= 600 mm, in coils, simply cold-rolled \"cold-reduced\", not clad, plated or coated, of a thickness of >= 3 mm"},{"$nulls":6},{"$f":"Translations!$B$611","v":"Iron or steel products"}]
[{"$nulls":4},"7209 16",{"$f":"Translations!$B$815","v":"Flat-rolled products of iron or non-alloy steel, of a width of >= 600 mm, in coils, simply cold-rolled \"cold-reduced\", not clad, plated or coated, of a thickness of > 1 mm but < 3 mm"},{"$nulls":6},{"$f":"Translations!$B$611","v":"Iron or steel products"}]
[{"$nulls":4},"7209 16 10",{"$f":"Translations!$B$816","v":"Flat-rolled products of iron or non-alloy steel, of a width of >= 600 mm, in coils, simply cold-rolled \"cold-reduced\", of a thickness of > 1 mm but < 3 mm \"electrical\""},{"$nulls":6},{"$f":"Translations!$B$611","v":"Iron or steel products"}]
[{"$nulls":4},"7209 16 90",{"$f":"Translations!$B$817","v":"Flat-rolled products of iron or non-alloy steel, of a width of >= 600 mm, in coils, simply cold-rolled \"cold-reduced\", not clad, plated or coated, of a thickness of > 1 mm but < 3 mm (excl. electrical)"},{"$nulls":6},{"$f":"Translations!$B$611","v":"Iron or steel products"}]
[{"$nulls":4},"7209 17",{"$f":"Translations!$B$818","v":"Flat-rolled products of iron or non-alloy steel, of a width of >= 600 mm, in coils, simply cold-rolled \"cold-reduced\", not clad, plated or coated, of a thickness of >= 0,5 mm but <= 1 mm"},{"$nulls":6},{"$f":"Translations!$B$611","v":"Iron or steel products"}]
[{"$nulls":4},"7209 17 10",{"$f":"Translations!$B$819","v":"Flat-rolled products of iron or non-alloy steel, of a width of >= 600 mm, in coils, simply cold-rolled \"cold-reduced\", of a thickness of >= 0,5 mm but <= 1 mm \"electrical\""},{"$nulls":6},{"$f":"Translations!$B$611","v":"Iron or steel products"}]
[{"$nulls":4},"7209 17 90",{"$f":"Translations!$B$820","v":"Flat-rolled products of iron or non-alloy steel, of a width of >= 600 mm, in coils, simply cold-rolled \"cold-reduced\", not clad, plated or coated, of a thickness of >= 0,5 mm but <= 1 mm (excl. electrical)"},{"$nulls":6},{"$f":"Translations!$B$611","v":"Iron or steel products"}]
[{"$nulls":4},"7209 18",{"$f":"Translations!$B$821","v":"Flat-rolled products of iron or non-alloy steel, of a width of >= 600 mm, in coils, simply cold-rolled \"cold-reduced\", not clad, plated or coated, of a thickness of < 0,5 mm"},{"$nulls":6},{"$f":"Translations!$B$611","v":"Iron or steel products"}]
[{"$nulls":4},"7209 18 10",{"$f":"Translations!$B$822","v":"Flat-rolled products of iron or non-alloy steel, of a width of >= 600 mm, in coils, simply cold-rolled \"cold-reduced\", of a thickness of < 0,5 mm \"electrical\""},{"$nulls":6},{"$f":"Translations!$B$611","v":"Iron or steel products"}]
[{"$nulls":4},"7209 18 91",{"$f":"Translations!$B$823","v":"Flat-rolled products of iron or non-alloy steel, of a width of >= 600 mm, in coils, simply cold-rolled \"cold-reduced\", not clad, plated or coated, of a thickness of >= 0,35 mm but < 0,5 mm (excl. electrical)"},{"$nulls":6},{"$f":"Translations!$B$611","v":"Iron or steel products"}]
[{"$nulls":4},"7209 18 99",{"$f":"Translations!$B$824","v":"Flat-rolled products of iron or non-alloy steel, of a width of >= 600 mm, in coils, simply cold-rolled \"cold-reduced\", not clad, plated or coated, of a thickness of < 0,35 mm (excl. electrical)"},{"$nulls":6},{"$f":"Translations!$B$611","v":"Iron or steel products"}]
[{"$nulls":4},"7209 25 00",{"$f":"Translations!$B$825","v":"Flat-rolled products of iron or non-alloy steel, of a width of >= 600 mm, not in coils, simply cold-rolled \"cold-reduced\", not clad, plated or coated, of a thickness of >= 3 mm"},{"$nulls":6},{"$f":"Translations!$B$611","v":"Iron or steel products"}]
[{"$nulls":4},"7209 26",{"$f":"Translations!$B$826","v":"Flat-rolled products of iron or non-alloy steel, of a width of >= 600 mm, not in coils, simply cold-rolled \"cold-reduced\", not clad, plated or coated, of a thickness of > 1 mm but < 3 mm"},{"$nulls":6},{"$f":"Translations!$B$611","v":"Iron or steel products"}]
[{"$nulls":4},"7209 26 10",{"$f":"Translations!$B$827","v":"Flat-rolled products of iron or non-alloy steel, of a width of >= 600 mm, not in coils, simply cold-rolled \"cold-reduced\", of a thickness of > 1 mm but < 3 mm \"electrical\""},{"$nulls":6},{"$f":"Translations!$B$611","v":"Iron or steel products"}]
[{"$nulls":4},"7209 26 90",{"$f":"Translations!$B$828","v":"Flat-rolled products of iron or non-alloy steel, of a width of >= 600 mm, not in coils, simply cold-rolled \"cold-reduced\", not clad, plated or coated, of a thickness of > 1 mm but < 3 mm (excl. electrical)"},{"$nulls":6},{"$f":"Translations!$B$611","v":"Iron or steel products"}]
[{"$nulls":4},"7209 27",{"$f":"Translations!$B$829","v":"Flat-rolled products of iron or non-alloy steel, of a width of >= 600 mm, not in coils, simply cold-rolled \"cold-reduced\", not clad, plated or coated, of a thickness of >= 0,5 mm but <= 1 mm"},{"$nulls":6},{"$f":"Translations!$B$611","v":"Iron or steel products"}]
[{"$nulls":4},"7209 27 10",{"$f":"Translations!$B$830","v":"Flat-rolled products of iron or non-alloy steel, of a width of >= 600 mm, not in coils, simply cold-rolled \"cold-reduced\", of a thickness of >= 0,5 mm but <= 1 mm \"electrical\""},{"$nulls":6},{"$f":"Translations!$B$611","v":"Iron or steel products"}]
[{"$nulls":4},"7209 27 90",{"$f":"Translations!$B$831","v":"Flat-rolled products of iron or non-alloy steel, of a width of >= 600 mm, not in coils, simply cold-rolled \"cold-reduced\", not clad, plated or coated, of a thickness of >= 0,5 mm but <= 1 mm (excl. electrical)"},{"$nulls":6},{"$f":"Translations!$B$611","v":"Iron or steel products"}]
[{"$nulls":4},"7209 28",{"$f":"Translations!$B$832","v":"Flat-rolled products of iron or non-alloy steel, of a width of >= 600 mm, not in coils, simply cold-rolled \"cold-reduced\", not clad, plated or coated, of a thickness of < 0,5 mm"},{"$nulls":6},{"$f":"Translations!$B$611","v":"Iron or steel products"}]
[{"$nulls":4},"7209 28 10",{"$f":"Translations!$B$833","v":"Flat-rolled products of iron or non-alloy steel, of a width of >= 600 mm, not in coils, simply cold-rolled \"cold-reduced\", of a thickness of < 0,5 mm \"electrical\""},{"$nulls":6},{"$f":"Translations!$B$611","v":"Iron or steel products"}]
[{"$nulls":4},"7209 28 90",{"$f":"Translations!$B$834","v":"Flat-rolled products of iron or non-alloy steel, of a width of >= 600 mm, not in coils, simply cold-rolled \"cold-reduced\", not clad, plated or coated, of a thickness of < 0,5 mm (excl. electrical)"},{"$nulls":6},{"$f":"Translations!$B$611","v":"Iron or steel products"}]
[{"$nulls":4},"7209 90",{"$f":"Translations!$B$835","v":"Flat-rolled products of iron or steel, of a width of >= 600 mm, cold-rolled \"cold-reduced\", and further worked, but not clad, plated or coated"},{"$nulls":6},{"$f":"Translations!$B$611","v":"Iron or steel products"}]
[{"$nulls":4},"7209 90 20",{"$f":"Translations!$B$836","v":"Flat-rolled products of iron or steel, of a width of >= 600 mm, cold-rolled \"cold-reduced\" and further worked, but not clad, plated or coated, perforated"},{"$nulls":6},{"$f":"Translations!$B$611","v":"Iron or steel products"}]
[{"$nulls":4},"7209 90 80",{"$f":"Translations!$B$837","v":"Flat-rolled products of iron or steel, of a width of >= 600 mm, cold-rolled \"cold-reduced\" and further worked, but not clad, plated or coated, non-perforated"},{"$nulls":6},{"$f":"Translations!$B$611","v":"Iron or steel products"}]
[{"$nulls":4},"7210",{"$f":"Translations!$B$838","v":"Flat-rolled products of iron or non-alloy steel, of a width >= 600 mm, hot-rolled or cold-rolled \"cold-reduced\", clad, plated or coated"},{"$nulls":6},{"$f":"Translations!$B$611","v":"Iron or steel products"}]
[{"$nulls":4},"7210 11 00",{"$f":"Translations!$B$839","v":"Flat-rolled products of iron or non-alloy steel, of a width of >= 600 mm, hot-rolled or cold-rolled \"cold-reduced\", tinned, of a thickness of >= 0,5 mm"},{"$nulls":6},{"$f":"Translations!$B$611","v":"Iron or steel products"}]
[{"$nulls":4},"7210 12",{"$f":"Translations!$B$840","v":"Flat-rolled products of iron or non-alloy steel, of a width of >= 600 mm, hot-rolled or cold-rolled \"cold-reduced\", tinned, of a thickness of < 0,5 mm"},{"$nulls":6},{"$f":"Translations!$B$611","v":"Iron or steel products"}]
[{"$nulls":4},"7210 12 20",{"$f":"Translations!$B$841","v":"Tinplate of iron or non-alloy steel, of a width of >= 600 mm and of a thickness of < 0,5 mm, tinned [coated with a layer of metal containing, by weight,  >= 97% of tin], not further worked than surface-treated"},{"$nulls":6},{"$f":"Translations!$B$611","v":"Iron or steel products"}]
[{"$nulls":4},"7210 12 80",{"$f":"Translations!$B$842","v":"Flat-rolled products of iron or non-alloy steel, of a width of >= 600 mm, hot-rolled or cold-rolled \"cold-reduced\", plated or coated with tin, of a thickness of < 0,5 mm (excl. tinplate)"},{"$nulls":6},{"$f":"Translations!$B$611","v":"Iron or steel products"}]
[{"$nulls":4},"7210 20 00",{"$f":"Translations!$B$843","v":"Flat-rolled products of iron or non-alloy steel, of a width of >= 600 mm, hot-rolled or cold-rolled \"cold-reduced\", plated or coated with lead, incl. terne-plate"},{"$nulls":6},{"$f":"Translations!$B$611","v":"Iron or steel products"}]
[{"$nulls":4},"7210 30 00",{"$f":"Translations!$B$844","v":"Flat-rolled products of iron or non-alloy steel, of a width of >= 600 mm, hot-rolled or cold-rolled \"cold-reduced\", electrolytically plated or coated with zinc"},{"$nulls":6},{"$f":"Translations!$B$611","v":"Iron or steel products"}]
[{"$nulls":4},"7210 41 00",{"$f":"Translations!$B$845","v":"Flat-rolled products of iron or non-alloy steel, of a width of >= 600 mm, hot-rolled or cold-rolled \"cold-reduced\", corrugated, plated or coated with zinc (excl. electrolytically plated or coated with zinc)"},{"$nulls":6},{"$f":"Translations!$B$611","v":"Iron or steel products"}]
[{"$nulls":4},"7210 49 00",{"$f":"Translations!$B$846","v":"Flat-rolled products of iron or non-alloy steel, of a width of >= 600 mm, hot-rolled or cold-rolled \"cold-reduced\", not corrugated, plated or coated with zinc (excl. electrolytically plated or coated with zinc)"},{"$nulls":6},{"$f":"Translations!$B$611","v":"Iron or steel products"}]
[{"$nulls":4},"7210 50 00",{"$f":"Translations!$B$847","v":"Flat-rolled products of iron or non-alloy steel, of a width of >= 600 mm, hot-rolled or cold-rolled \"cold-reduced\", plated or coated with chromium oxides or with chromium and chromium oxides"},{"$nulls":6},{"$f":"Translations!$B$611","v":"Iron or steel products"}]
[{"$nulls":4},"7210 61 00",{"$f":"Translations!$B$848","v":"Flat-rolled products of iron or non-alloy steel, of a width of >= 600 mm, hot-rolled or cold-rolled \"cold-reduced\", plated or coated with aluminium-zinc alloys"},{"$nulls":6},{"$f":"Translations!$B$611","v":"Iron or steel products"}]
[{"$nulls":4},"7210 69 00",{"$f":"Translations!$B$849","v":"Flat-rolled products of iron or non-alloy steel, of a width of >= 600 mm, hot-rolled or cold-rolled \"cold-reduced\", plated or coated with aluminium (excl. products plated or coated with aluminium-zinc alloys)"},{"$nulls":6},{"$f":"Translations!$B$611","v":"Iron or steel products"}]
[{"$nulls":4},"7210 70",{"$f":"Translations!$B$850","v":"Flat products of iron or non-alloy steel, of a width of >= 600 mm, hot-rolled or cold-rolled \"cold-reduced\", painted, varnished or coated with plastics"},{"$nulls":6},{"$f":"Translations!$B$611","v":"Iron or steel products"}]
[{"$nulls":4},"7210 70 10",{"$f":"Translations!$B$851","v":"Tinplate of a width of >= 600 mm and of a thickness of < 0,5 mm, tinned [coated with a layer of metal containing, by weight,  >= 97% of tin], not further worked than varnished, and flat products plated or coated with chromium oxides or with chromium and chromium oxides, of iron or non-alloy steel, of a width of >= 600 mm, hot-rolled or cold-rolled \"cold-reduced\", varnished"},{"$nulls":6},{"$f":"Translations!$B$611","v":"Iron or steel products"}]
[{"$nulls":4},"7210 70 80",{"$f":"Translations!$B$852","v":"Flat-rolled products of iron or non-alloy steel, of a width of >= 600 mm, hot-rolled or cold-rolled \"cold-reduced\", painted, varnished or plastic coated (excl. tinplate and products electrolytically plated or coated with chrome, varnished)"},{"$nulls":6},{"$f":"Translations!$B$611","v":"Iron or steel products"}]
[{"$nulls":4},"7210 90",{"$f":"Translations!$B$853","v":"Flat-rolled products of iron or non-alloy steel, of a width of >= 600 mm, hot-rolled or cold-rolled \"cold-reduced\", clad, plated or coated (excl. tinned, plated or coated with lead, zinc, chromium oxides, chromium and chromium oxides, or aluminium, painted, varnished or coated with plastics)"},{"$nulls":6},{"$f":"Translations!$B$611","v":"Iron or steel products"}]
[{"$nulls":4},"7210 90 30",{"$f":"Translations!$B$854","v":"Flat-rolled products of iron or non-alloy steel, of a width of >= 600 mm, hot-rolled or cold-rolled \"cold-reduced\", clad"},{"$nulls":6},{"$f":"Translations!$B$611","v":"Iron or steel products"}]
[{"$nulls":4},"7210 90 40",{"$f":"Translations!$B$855","v":"Flat-rolled products of iron or non-alloy steel, tinned and printed, of a width of >= 600 mm, hot-rolled or cold-rolled \"cold-reduced\""},{"$nulls":6},{"$f":"Translations!$B$611","v":"Iron or steel products"}]
[{"$nulls":4},"7210 90 80",{"$f":"Translations!$B$856","v":"Flat-rolled products of iron or non-alloy steel, hot-rolled or cold-rolled \"cold-reduced\", of a width of >= 600 mm, plated or coated (excl. plated or coated with thin, lead \"incl. terne-plate\", zinc, aluminium, chromium, chromium oxides, plastics, platinum, painted or varnished, clad and tinned and printed)"},{"$nulls":6},{"$f":"Translations!$B$611","v":"Iron or steel products"}]
[{"$nulls":4},"7211",{"$f":"Translations!$B$857","v":"Flat-rolled products of iron or non-alloy steel, of a width of < 600 mm, hot-rolled or cold-rolled \"cold-reduced\", not clad, plated or coated"},{"$nulls":6},{"$f":"Translations!$B$611","v":"Iron or steel products"}]
[{"$nulls":4},"7211 13 00",{"$f":"Translations!$B$858","v":"Flat-rolled products of iron or non-alloy steel, simply hot-rolled on four faces or in a closed box pass, not clad, plated or coated, of a width of > 150 mm but < 600 mm and a thickness of >= 4 mm, not in coils, without patterns in relief, commonly known as \"wide flats\""},{"$nulls":6},{"$f":"Translations!$B$611","v":"Iron or steel products"}]
[{"$nulls":4},"7211 14 00",{"$f":"Translations!$B$859","v":"Flat-rolled products of iron or non-alloy steel, of a width < 600 mm, not further worked than hot-rolled, not clad, plated or coated, of a thickness of >= 4,75 mm (excl. \"wide flats\")"},{"$nulls":6},{"$f":"Translations!$B$611","v":"Iron or steel products"}]
[{"$nulls":4},"7211 19 00",{"$f":"Translations!$B$860","v":"Flat-rolled products of iron or non-alloy steel, of a width < 600 mm, simply hot-rolled, not clad, plated or coated, of a thickness < 4,75 mm (excl. \"wide flats\")"},{"$nulls":6},{"$f":"Translations!$B$611","v":"Iron or steel products"}]
[{"$nulls":4},"7211 23",{"$f":"Translations!$B$861","v":"Flat-rolled products of iron or non-alloy steel, of a width of < 600 mm, simply cold-rolled \"cold-reduced\", not clad, plated or coated, containing by weight < 0,25% of carbon"},{"$nulls":6},{"$f":"Translations!$B$611","v":"Iron or steel products"}]
[{"$nulls":4},"7211 23 20",{"$f":"Translations!$B$862","v":"Flat-rolled products of iron or non-alloy steel, of a width of < 600 mm, simply cold-rolled \"cold-reduced\", not clad, plated or coated, containing by weight < 0,25% of carbon \"electrical\""},{"$nulls":6},{"$f":"Translations!$B$611","v":"Iron or steel products"}]
[{"$nulls":4},"7211 23 30",{"$f":"Translations!$B$863","v":"Flat-rolled products of iron or non-alloy steel, of a width of < 600 mm and of a thickness of >= 0,35 mm, simply cold-rolled \"cold-reduced\", not clad, plated or coated, containing by weight < 0,25% of carbon (excl. electrical plate)"},{"$nulls":6},{"$f":"Translations!$B$611","v":"Iron or steel products"}]
[{"$nulls":4},"7211 23 80",{"$f":"Translations!$B$864","v":"Flat-rolled products of iron or non-alloy steel, of a width of < 600 mm and of a thickness of < 0,35 mm, simply cold-rolled \"cold-reduced\", not clad, plated or coated, containing by weight < 0,25% of carbon (excl. electrical plate)"},{"$nulls":6},{"$f":"Translations!$B$611","v":"Iron or steel products"}]
[{"$nulls":4},"7211 29 00",{"$f":"Translations!$B$865","v":"Flat-rolled products of iron or non-alloy steel, of a width of < 600 mm, simply cold-rolled \"cold-reduced\", not clad, plated or coated, containing by weight >= 0,25% of carbon"},{"$nulls":6},{"$f":"Translations!$B$611","v":"Iron or steel products"}]
[{"$nulls":4},"7211 90",{"$f":"Translations!$B$866","v":"Flat-rolled products of iron or non-alloy steel, of a width of < 600 mm, hot-rolled or cold-rolled \"cold-reduced\" and further worked, but not clad, plated or coated"},{"$nulls":6},{"$f":"Translations!$B$611","v":"Iron or steel products"}]
[{"$nulls":4},"7211 90 20",{"$f":"Translations!$B$867","v":"Flat-rolled products of iron or non-alloy steel, of a width of < 600 mm, hot-rolled or cold-rolled \"cold-reduced\" and further worked, but not clad, plated or coated, perforated"},{"$nulls":6},{"$f":"Translations!$B$611","v":"Iron or steel products"}]
[{"$nulls":4},"7211 90 80",{"$f":"Translations!$B$868","v":"Flat-rolled products of iron or non-alloy steel, of a width of < 600 mm, hot-rolled or cold-rolled \"cold-reduced\" and further worked, but not clad, plated or coatednon-perforated"},{"$nulls":6},{"$f":"Translations!$B$611","v":"Iron or steel products"}]
[{"$nulls":4},"7212",{"$f":"Translations!$B$869","v":"Flat-rolled products of iron or non-alloy steel, of a width of < 600 mm, hot-rolled or cold-rolled \"cold-reduced\", clad, plated or coated"},{"$nulls":6},{"$f":"Translations!$B$611","v":"Iron or steel products"}]
[{"$nulls":4},"7212 10",{"$f":"Translations!$B$870","v":"Flat-rolled products of iron or non-alloy steel, of a width of < 600 mm, hot-rolled or cold-rolled \"cold-reduced\", tinned"},{"$nulls":6},{"$f":"Translations!$B$611","v":"Iron or steel products"}]
[{"$nulls":4},"7212 10 10",{"$f":"Translations!$B$871","v":"Tinplate of iron or non-alloy steel, of a width of < 600 mm and of a thickness of < 0,5 mm, tinned [coated with a layer of metal containing, by weight,  >= 97% of tin], not further worked than surface-treated"},{"$nulls":6},{"$f":"Translations!$B$611","v":"Iron or steel products"}]
[{"$nulls":4},"7212 10 90",{"$f":"Translations!$B$872","v":"Flat-rolled products of iron or non-alloy steel, hot-rolled or cold-rolled \"cold-reduced\", of a width of < 600 mm, tinned (excl. tinplate, not further worked than surface-treated)"},{"$nulls":6},{"$f":"Translations!$B$611","v":"Iron or steel products"}]
[{"$nulls":4},"7212 20 00",{"$f":"Translations!$B$873","v":"Flat-rolled products of iron or non-alloy steel, of a width of < 600 mm, hot-rolled or cold-rolled \"cold-reduced\", electrolytically plated or coated with zinc"},{"$nulls":6},{"$f":"Translations!$B$611","v":"Iron or steel products"}]
[{"$nulls":4},"7212 30 00",{"$f":"Translations!$B$874","v":"Flat-rolled products of iron or non-alloy steel, of a width of < 600 mm, hot-rolled or cold-rolled \"cold-reduced\", tinned (excl. electrolytically plated or coated with zinc)"},{"$nulls":6},{"$f":"Translations!$B$611","v":"Iron or steel products"}]
[{"$nulls":4},"7212 40",{"$f":"Translations!$B$875","v":"Flat-rolled products of iron or non-alloy steel, of a width of < 600 mm, hot-rolled or cold-rolled \"cold-reduced\", painted, varnished or coated with plastics"},{"$nulls":6},{"$f":"Translations!$B$611","v":"Iron or steel products"}]
[{"$nulls":4},"7212 40 20",{"$f":"Translations!$B$876","v":"Tinplate of a width of < 600 mm and of a thickness of < 0,5 mm, tinned [coated with a layer of metal containing, by weight,  >= 97% of tin], not further worked than varnished, and flat products plated or coated with chromium oxides or with chromium and chromium oxides, of iron or non-alloy steel, of a width of < 600 mm, hot-rolled or cold-rolled \"cold-reduced\", varnished"},{"$nulls":6},{"$f":"Translations!$B$611","v":"Iron or steel products"}]
[{"$nulls":4},"7212 40 80",{"$f":"Translations!$B$877","v":"Flat-rolled products of iron or non-alloy steel, of a width of < 600 mm, hot-rolled or cold-rolled \"cold-reduced\", painted, varnished or plastic coated (excl. tinplate, not further worked than varnished, and products plated or coated with chromium oxides or with chromium and chromium oxides, varnished)"},{"$nulls":6},{"$f":"Translations!$B$611","v":"Iron or steel products"}]
[{"$nulls":4},"7212 50",{"$f":"Translations!$B$878","v":"Flat-rolled products of iron or non-alloy steel, of a width of < 600 mm, hot-rolled or cold-rolled \"cold-reduced\", plated or coated (excl. tinned, plated or coated with zinc, painted, varnished or coated with plastics)"},{"$nulls":6},{"$f":"Translations!$B$611","v":"Iron or steel products"}]
[{"$nulls":4},"7212 50 20",{"$f":"Translations!$B$879","v":"Flat-rolled products of iron or non-alloy steel, of a width of < 600 mm, hot-rolled or cold-rolled \"cold-reduced\", plated or coated with chromium oxides or with chromium and chromium oxides (excl. varnished)"},{"$nulls":6},{"$f":"Translations!$B$611","v":"Iron or steel products"}]
[{"$nulls":4},"7212 50 30",{"$f":"Translations!$B$880","v":"Flat-rolled products of iron or non-alloy steel, of a width of < 600 mm, hot-rolled or cold-rolled \"cold-reduced\", plated or coated with chromium or nickel"},{"$nulls":6},{"$f":"Translations!$B$611","v":"Iron or steel products"}]
[{"$nulls":4},"7212 50 40",{"$f":"Translations!$B$881","v":"Flat-rolled products of iron or non-alloy steel, of a width of < 600 mm, hot-rolled or cold-rolled \"cold-reduced\", plated or coated with copper"},{"$nulls":6},{"$f":"Translations!$B$611","v":"Iron or steel products"}]
[{"$nulls":4},"7212 50 61",{"$f":"Translations!$B$882","v":"Flat-rolled products of iron or non-alloy steel, of a width of < 600 mm, hot-rolled or cold-rolled \"cold-reduced\", plated or coated with aluminium-zinc alloys"},{"$nulls":6},{"$f":"Translations!$B$611","v":"Iron or steel products"}]
[{"$nulls":4},"7212 50 69",{"$f":"Translations!$B$883","v":"Flat-rolled products of iron or non-alloy steel, of a width of < 600 mm, hot-rolled or cold-rolled \"cold-reduced\", plated or coated with aluminium (excl. products plated or coated with aluminium-zinc alloys)"},{"$nulls":6},{"$f":"Translations!$B$611","v":"Iron or steel products"}]
[{"$nulls":4},"7212 50 90",{"$f":"Translations!$B$884","v":"Flat-rolled products of iron or non-alloy steel, of a width of < 600 mm, hot-rolled or cold-rolled \"cold-reduced\", clad (excl. products plated or coated with tin or zinc, copper, with chromium oxides or with chromium and chromium oxides, chromium, nickel or aluminium, painted or varnished, and plastic-coated)"},{"$nulls":6},{"$f":"Translations!$B$611","v":"Iron or steel products"}]
[{"$nulls":4},"7212 60 00",{"$f":"Translations!$B$885","v":"Flat-rolled products of iron or non-alloy steel, of a width of < 600 mm, hot-rolled or cold-rolled \"cold-reduced\", clad"},{"$nulls":6},{"$f":"Translations!$B$611","v":"Iron or steel products"}]
[{"$nulls":4},"7213",{"$f":"Translations!$B$886","v":"Bars and rods of iron or non-alloy steel, hot-rolled, in irregularly wound coils"},{"$nulls":6},{"$f":"Translations!$B$611","v":"Iron or steel products"}]
[{"$nulls":4},"7213 10 00",{"$f":"Translations!$B$887","v":"Bars and rods, hot-rolled, in irregularly wound coils of iron or non-alloy steel, with indentations, ribs, grooves or other deformations produced during the rolling process"},{"$nulls":6},{"$f":"Translations!$B$611","v":"Iron or steel products"}]
[{"$nulls":4},"7213 20 00",{"$f":"Translations!$B$888","v":"Bars and rods, hot-rolled, in irregularly wound coils, of non-alloy free-cutting steel (excl. bars and rods containing indentations, ribs, grooves or other deformations produced during the rolling process)"},{"$nulls":6},{"$f":"Translations!$B$611","v":"Iron or steel products"}]
[{"$nulls":4},"7213 91",{"$f":"Translations!$B$889","v":"Bars and rods, hot-rolled, in irregularly wound coils, of iron or non-alloy steel, of circular cross-section measuring < 14 mm in diameter (excl. bars and rods of free-cutting steel, and bars and rods with indentations, ribs, grooves or other deformations produced during the rolling process)"},{"$nulls":6},{"$f":"Translations!$B$611","v":"Iron or steel products"}]
[{"$nulls":4},"7213 91 10",{"$f":"Translations!$B$890","v":"Bars and rods, hot-rolled, of the type used for concrete reinforcement, smooth, of iron or non-alloy steel, in irregularly wound coils, of circular cross-section measuring < 14 mm in diameter"},{"$nulls":6},{"$f":"Translations!$B$611","v":"Iron or steel products"}]
[{"$nulls":4},"7213 91 20",{"$f":"Translations!$B$891","v":"Bars and rods, hot-rolled, of the type used for tyre cord, smooth, of iron or non-alloy steel, in irregularly wound coils"},{"$nulls":6},{"$f":"Translations!$B$611","v":"Iron or steel products"}]
[{"$nulls":4},"7213 91 41",{"$f":"Translations!$B$892","v":"Bars and rods, hot-rolled, of iron or non-alloy steel, in irregularly wound coils, containing by weight <= 0,06% of carbon, of circular cross-section measuring < 14 mm in diameter (excl. free-cutting steel, bars and rods, hot-rolled, for concrete reinforcement and tyre cord, and bars and rods, hot-rolled, containing indentations, ribs, grooves or other deformations produced during the rolling process)"},{"$nulls":6},{"$f":"Translations!$B$611","v":"Iron or steel products"}]
[{"$nulls":4},"7213 91 49",{"$f":"Translations!$B$893","v":"Bars and rods, hot-rolled, of iron or non-alloy steel, in irregularly wound coils, containing by weight > 0,06% and < 0,25% of carbon, of circular cross-section, measuring < 14 mm in diameter (excl. of free-cutting steel, bars and rods, hot-rolled, for concrete reinforcement and tyre cord and bars and rods, hot-rolled, containing indentations, ribs, grooves or other deformations produced during the rolling process)"},{"$nulls":6},{"$f":"Translations!$B$611","v":"Iron or steel products"}]
[{"$nulls":4},"7213 91 70",{"$f":"Translations!$B$894","v":"Bars and rods, hot-rolled, in irregularly wound coils, of iron or non-alloy steel, containing by weight >= 0,25% but <= 0,75% carbon, of circular cross-section measuring < 14 mm in diameter (excl. of free-cutting steel, and bars and rods, smooth, for concrete reinforcement and tyre cord, and bars and rods with indentations, ribs, grooves or other deformations produced during the rolling process)"},{"$nulls":6},{"$f":"Translations!$B$611","v":"Iron or steel products"}]
[{"$nulls":4},"7213 91 90",{"$f":"Translations!$B$895","v":"Bars and rods, hot-rolled, of iron or non-alloy steel, in irregularly wound coils, containing by weight > 0,75% of carbon, of circular cross-section measuring < 14 mm in diameter (excl. of free-cutting steel, bars and rods, smooth, for tyre cord and bars and rods with indentations, ribs, grooves and other deformations produced during the rolling process)"},{"$nulls":6},{"$f":"Translations!$B$611","v":"Iron or steel products"}]
[{"$nulls":4},"7213 99",{"$f":"Translations!$B$896","v":"Bars and rods, hot-rolled, in irregularly wound coils, of iron or non-alloy steel (excl. products of circular cross-section measuring < 14 mm in diameter, bars and rods of free-cutting steel, and bars and rods with indentations, ribs, grooves or other deformations produced during the rolling process)"},{"$nulls":6},{"$f":"Translations!$B$611","v":"Iron or steel products"}]
[{"$nulls":4},"7213 99 10",{"$f":"Translations!$B$897","v":"Bars and rods, of iron or non-alloy steel, hot-rolled, in irregularly wound coils, containing by weight < 0,25% carbon (excl. products of circular cross-section measuring < 14 mm in diameter, bars and rods of free-cutting steel, and bars and rods with indentations, ribs, grooves or other deformations produced during the rolling process)"},{"$nulls":6},{"$f":"Translations!$B$611","v":"Iron or steel products"}]
[{"$nulls":4},"7213 99 90",{"$f":"Translations!$B$898","v":"Bars and rods, hot-rolled, in irregularly wound coils, of iron or non-alloy steel, containing by weight >= 0,25% carbon (excl. products of circular cross-section measuring < 14 mm diameter, bars and rods of free-cutting steel, and bars and rods with indentations, ribs, grooves or other deformations produced during the rolling process)"},{"$nulls":6},{"$f":"Translations!$B$611","v":"Iron or steel products"}]
[{"$nulls":4},"7214",{"$f":"Translations!$B$899","v":"Bars and rods, of iron or non-alloy steel, not further worked than forged, hot-rolled, hot-drawn or hot-extruded, but incl. those twisted after rolling (excl. in irregularly wound coils)"},{"$nulls":6},{"$f":"Translations!$B$611","v":"Iron or steel products"}]
[{"$nulls":4},"7214 10 00",{"$f":"Translations!$B$900","v":"Bars and rods, of iron or non-alloy steel, not further worked than forged (excl. in irregularly wound coils)"},{"$nulls":6},{"$f":"Translations!$B$611","v":"Iron or steel products"}]
[{"$nulls":4},"7214 20 00",{"$f":"Translations!$B$901","v":"Bars and rods, of iron or non-alloy steel, with indentations, ribs, groves or other deformations produced during the rolling process"},{"$nulls":6},{"$f":"Translations!$B$611","v":"Iron or steel products"}]
[{"$nulls":4},"7214 30 00",{"$f":"Translations!$B$902","v":"Bars and rods, of non-alloy free-cutting steel, not further worked than hot-rolled, hot-drawn or hot-extruded (excl. containing indentations, ribs, grooves or other deformations produced during the rolling process or twisted after rolling)"},{"$nulls":6},{"$f":"Translations!$B$611","v":"Iron or steel products"}]
[{"$nulls":4},"7214 91",{"$f":"Translations!$B$903","v":"Bars and rods, of iron or non-alloy steel, not further worked than hot-rolled, hot-drawn or hot-extruded, of rectangular \"other than square\" cross-section (excl. containing indentations, ribs, grooves or other deformations produced during the rolling process, bars and rods twisted after rolling and free-cutting steel)"},{"$nulls":6},{"$f":"Translations!$B$611","v":"Iron or steel products"}]
[{"$nulls":4},"7214 91 10",{"$f":"Translations!$B$904","v":"Bars and rods of iron or non-alloy steel, not further worked than hot-rolled, hot-drawn or hot-extruded, containing by weight < 0,25% of carbon, of rectangular \"other than square\" cross-section (excl. those with indentations, ribs, grooves or other deformations produced during the rolling process, bars and rods twisted after rolling, and free-cutting steel)"},{"$nulls":6},{"$f":"Translations!$B$611","v":"Iron or steel products"}]
[{"$nulls":4},"7214 91 90",{"$f":"Translations!$B$905","v":"Other bars and rods of iron or non-alloy steel, only hot-rolled, only hot-drawn or only hot-extruded, containing by weight >= 0,25% of carbon, of rectangular \"other than square\" cross-section (excl. those with indentations, ribs, grooves or other deformations produced during the rolling process, bars and rods twisted after rolling, and free-cutting steel)"},{"$nulls":6},{"$f":"Translations!$B$611","v":"Iron or steel products"}]
[{"$nulls":4},"7214 99",{"$f":"Translations!$B$906","v":"Bars and rods, of iron or non-alloy steel, only hot-rolled, only hot-drawn or only hot-extruded (excl. of rectangular [other than square] cross-section and those containing indentations, ribs, grooves or other deformations produced during the rolling process, and of non-alloy free-cutting steel)"},{"$nulls":6},{"$f":"Translations!$B$611","v":"Iron or steel products"}]
[{"$nulls":4},"7214 99 10",{"$f":"Translations!$B$907","v":"Bars and rods of the type used for concrete reinforcement, smooth, of iron or non-alloy steel, only hot-rolled, only hot-drawn or only hot-extruded, containing < 0,25% of carbon, of square cross-section or of a cross-section other than rectangular"},{"$nulls":6},{"$f":"Translations!$B$611","v":"Iron or steel products"}]
[{"$nulls":4},"7214 99 31",{"$f":"Translations!$B$908","v":"Bars and rods of iron or non-alloy steel, only hot-rolled, hot-drawn or hot-extruded, containing < 0,25% of carbon, of circular cross-section, of a maximum diameter of >= 80 mm (other than of free-cutting steel, smooth bars and rods, for reinfoced concrete, or bars and rods containing indentations, ribs, grooves or other deformations produced during the rolling process, or wound after rolling)"},{"$nulls":6},{"$f":"Translations!$B$611","v":"Iron or steel products"}]
[{"$nulls":4},"7214 99 39",{"$f":"Translations!$B$909","v":"Bars and rods of iron or non-alloy steel, only hot-rolled, hot-drawn or hot-extruded, containing < 0,25% of carbon, of circular cross-section of a maximum diameter of < 80 mm (other than of free-cutting steel, smooth bars and rods, for reinforced concrete, or bars and rods containing indentations, ribs, grooves or other deformations produced during the rolling process, or wound after rolling)"},{"$nulls":6},{"$f":"Translations!$B$611","v":"Iron or steel products"}]
[{"$nulls":4},"7214 99 50",{"$f":"Translations!$B$910","v":"Bars and rods of iron or non-alloy steel, only hot-rolled, hot-drawn or hot-extruded, containing by weight < 0,25% of carbon, of square cross-section or of a cross-section other than square or circular (other than of free-cutting steel, smooth bars and rods, for reinforced concrete, or bars and rods containing indentations, ribs, grooves or other deformations produced during the rolling process, or wound after rolling)"},{"$nulls":6},{"$f":"Translations!$B$611","v":"Iron or steel products"}]
[{"$nulls":4},"7214 99 71",{"$f":"Translations!$B$911","v":"Bars and rods of iron or non-alloy steel, only hot-rolled, only hot-drawn or only hot-extruded, containing by weight >= 0,25% carbon, of circular cross-section measuring >= 80 mm in diameter (excl. bars and rods with indentations, ribs, grooves or other deformations produced during the rolling process, twisted after rolling, and of free-cutting steel)"},{"$nulls":6},{"$f":"Translations!$B$611","v":"Iron or steel products"}]
[{"$nulls":4},"7214 99 79",{"$f":"Translations!$B$912","v":"Bars and rods of iron or non-alloy steel, only hot-rolled, only hot-drawn or only hot-extruded, containing by weight >= 0,25% carbon, of circular cross-section measuring < 80 mm in diameter (excl. bars and rods with indentations, ribs, grooves or other deformations produced during the rolling process, twisted after rolling, and of free-cutting steel)"},{"$nulls":6},{"$f":"Translations!$B$611","v":"Iron or steel products"}]
[{"$nulls":4},"7214 99 95",{"$f":"Translations!$B$913","v":"Bars and rods of iron or non-alloy steel, only hot-rolled, only hot-drawn or only hot-extruded, containing by weight >= 0,25% carbon, of square or of other than rectangular or circular cross-section (excl. indentations, ribs, grooves or other deformations produced during the rolling process, twisted fter rolling, and of free-cutting steel)"},{"$nulls":6},{"$f":"Translations!$B$611","v":"Iron or steel products"}]
[{"$nulls":4},"7215",{"$f":"Translations!$B$914","v":"Bars and rods, of iron or non-alloy steel, cold-formed or cold-finished, whether or not further worked, or hot-formed and further worked, n.e.s."},{"$nulls":6},{"$f":"Translations!$B$611","v":"Iron or steel products"}]
[{"$nulls":4},"7215 10 00",{"$f":"Translations!$B$915","v":"Bars and rods, of non-alloy free-cutting steel, not further worked than cold-formed or cold-finished"},{"$nulls":6},{"$f":"Translations!$B$611","v":"Iron or steel products"}]
[{"$nulls":4},"7215 50",{"$f":"Translations!$B$916","v":"Bars and rods, of iron or non-alloy steel, not further worked than cold-formed or cold-finished (excl. of free-cutting steel)"},{"$nulls":6},{"$f":"Translations!$B$611","v":"Iron or steel products"}]
[{"$nulls":4},"7215 50 11",{"$f":"Translations!$B$917","v":"Other bars and rods of iron or non-alloy steel, not further worked than cold-formed or cold-finished, containing by weight < 0,25% of carbon of rectangular \"other than square\" cross-section (excl. those of free-cutting steel)"},{"$nulls":6},{"$f":"Translations!$B$611","v":"Iron or steel products"}]
[{"$nulls":4},"7215 50 19",{"$f":"Translations!$B$918","v":"Other bars and rods of iron or non-alloy steel, not further worked than cold-formed or cold-finished, containing by weight < 0,25% of carbon, of square or other than rectangular cross-section (excl. those of free-cutting steel)"},{"$nulls":6},{"$f":"Translations!$B$611","v":"Iron or steel products"}]
[{"$nulls":4},"7215 50 80",{"$f":"Translations!$B$919","v":"Other bars and rods of iron or non-alloy steel, not further worked than cold-formed or cold-finished, containing by weight >= 0,25% of carbon (excl. those of free-cutting steel)"},{"$nulls":6},{"$f":"Translations!$B$611","v":"Iron or steel products"}]
[{"$nulls":4},"7215 90 00",{"$f":"Translations!$B$920","v":"Bars or rods, of iron or non-alloy steel, cold-formed or cold-finished and further worked or hot-formed and further worked, n.e.s."},{"$nulls":6},{"$f":"Translations!$B$611","v":"Iron or steel products"}]
[{"$nulls":4},"7216",{"$f":"Translations!$B$921","v":"Angles, shapes and sections of iron or non-alloy steel, n.e.s."},{"$nulls":6},{"$f":"Translations!$B$611","v":"Iron or steel products"}]
[{"$nulls":4},"7216 10 00",{"$f":"Translations!$B$922","v":"U, I or H sections of iron or non-alloy steel, not further worked than hot-rolled, hot-drawn or extruded, of a height of < 80 mm"},{"$nulls":6},{"$f":"Translations!$B$611","v":"Iron or steel products"}]
[{"$nulls":4},"7216 21 00",{"$f":"Translations!$B$923","v":"L sections of iron or non-alloy steel, not further worked than hot-rolled, hot-drawn or extruded, of a height of < 80 mm"},{"$nulls":6},{"$f":"Translations!$B$611","v":"Iron or steel products"}]
[{"$nulls":4},"7216 22 00",{"$f":"Translations!$B$924","v":"T sections of iron or non-alloy steel, not further worked than hot-rolled, hot-drawn or extruded, of a height of < 80 mm"},{"$nulls":6},{"$f":"Translations!$B$611","v":"Iron or steel products"}]
[{"$nulls":4},"7216 31",{"$f":"Translations!$B$925","v":"U sections of iron or non-alloy steel, not further worked than hot-rolled, hot-drawn or hot-extruded, of a height >= 80 mm"},{"$nulls":6},{"$f":"Translations!$B$611","v":"Iron or steel products"}]
[{"$nulls":4},"7216 31 10",{"$f":"Translations!$B$926","v":"U sections of iron or non-alloy steel, simply hot-rolled, hot-drawn or extruded, of a height >= 80 mm but <= 220 mm"},{"$nulls":6},{"$f":"Translations!$B$611","v":"Iron or steel products"}]
[{"$nulls":4},"7216 31 90",{"$f":"Translations!$B$927","v":"U sections of iron or non-alloy steel, simply hot-rolled, hot-drawn or extruded, of a height > 220 mm"},{"$nulls":6},{"$f":"Translations!$B$611","v":"Iron or steel products"}]
[{"$nulls":4},"7216 32",{"$f":"Translations!$B$928","v":"I sections of iron or non-alloy steel, not further worked than hot-rolled, hot-drawn or hot-extruded, of a height >= 80 mm"},{"$nulls":6},{"$f":"Translations!$B$611","v":"Iron or steel products"}]
[{"$nulls":4},"7216 32 11",{"$f":"Translations!$B$929","v":"I sections with parallel flange faces, of iron or non-alloy steel, simply hot-rolled, hot-drawn or extruded, of a height >= 80 mm but <= 220 mm"},{"$nulls":6},{"$f":"Translations!$B$611","v":"Iron or steel products"}]
[{"$nulls":4},"7216 32 19",{"$f":"Translations!$B$930","v":"I sections of iron or non-alloy steel, simply hot-rolled, hot-drawn or extruded, of a height >= 80 mm but <= 220 mm (excl. 7216.32.11)"},{"$nulls":6},{"$f":"Translations!$B$611","v":"Iron or steel products"}]
[{"$nulls":4},"7216 32 91",{"$f":"Translations!$B$931","v":"I sections with parallel flange faces, of iron or non-alloy steel, simply hot-rolled, hot-drawn or extruded, of a height > 220 mm"},{"$nulls":6},{"$f":"Translations!$B$611","v":"Iron or steel products"}]
[{"$nulls":4},"7216 32 99",{"$f":"Translations!$B$932","v":"I sections of iron or non-alloy steel, simply hot-rolled, hot-drawn or extruded, of a height > 220 mm (excl. 7216.32.91)"},{"$nulls":6},{"$f":"Translations!$B$611","v":"Iron or steel products"}]
[{"$nulls":4},"7216 33",{"$f":"Translations!$B$933","v":"H sections of iron or non-alloy steel, not further worked than hot-rolled, hot-drawn or hot-extruded, of a height >= 80 mm"},{"$nulls":6},{"$f":"Translations!$B$611","v":"Iron or steel products"}]
[{"$nulls":4},"7216 33 10",{"$f":"Translations!$B$934","v":"H sections of iron or non-alloy steel, simply hot-rolled, hot-drawn or extruded, of a height >= 80 mm but <= 180 mm"},{"$nulls":6},{"$f":"Translations!$B$611","v":"Iron or steel products"}]
[{"$nulls":4},"7216 33 90",{"$f":"Translations!$B$935","v":"H sections of iron or non-alloy steel, simply hot-rolled, hot-drawn or extruded, of a height > 180 mm"},{"$nulls":6},{"$f":"Translations!$B$611","v":"Iron or steel products"}]
[{"$nulls":4},"7216 40",{"$f":"Translations!$B$936","v":"L sections of iron or non-alloy steel, not further worked than hot-rolled, hot-drawn or hot-extruded, of a height >= 80 mm"},{"$nulls":6},{"$f":"Translations!$B$611","v":"Iron or steel products"}]
[{"$nulls":4},"7216 40 10",{"$f":"Translations!$B$937","v":"L sections of iron or non-alloy steel, not further worked than hot-rolled, hot-drawn or extruded, of a height of >= 80 mm"},{"$nulls":6},{"$f":"Translations!$B$611","v":"Iron or steel products"}]
[{"$nulls":4},"7216 40 90",{"$f":"Translations!$B$938","v":"T sections of iron or non-alloy steel, not further worked than hot-rolled, hot-drawn or extruded, of a height of >= 80 mm"},{"$nulls":6},{"$f":"Translations!$B$611","v":"Iron or steel products"}]
[{"$nulls":4},"7216 50",{"$f":"Translations!$B$939","v":"Sections of iron or non-alloy steel, not further worked than hot-rolled, hot-drawn or hot-extruded (excl. U, I, H, L or T sections)"},{"$nulls":6},{"$f":"Translations!$B$611","v":"Iron or steel products"}]
[{"$nulls":4},"7216 50 10",{"$f":"Translations!$B$940","v":"Sections of iron or non-alloy steel, not further worked than hot-rolled, hot-drawn or hot-extruded, with a cross-section which is capable of being enclosed in a square the side of which is <= 80 mm (excl. U, I, H, L or T sections)"},{"$nulls":6},{"$f":"Translations!$B$611","v":"Iron or steel products"}]
[{"$nulls":4},"7216 50 91",{"$f":"Translations!$B$941","v":"Bulb sections \"bulb flat\", only hot-rolled, hot-drawn or hot-extruded"},{"$nulls":6},{"$f":"Translations!$B$611","v":"Iron or steel products"}]
[{"$nulls":4},"7216 50 99",{"$f":"Translations!$B$942","v":"Profile of iron or non-alloy steel, only hot-rolled, hot-drawn or hot-extruded (other than with a cross-section which is capable of being enclosed in a square the side of which is <= 80 mm, and U-, I-, H-, L- or T-sections and ribbed sections [ribbed steel])"},{"$nulls":6},{"$f":"Translations!$B$611","v":"Iron or steel products"}]
[{"$nulls":4},"7216 61",{"$f":"Translations!$B$943","v":"Angles, shapes and sections, of iron or non-alloy steel, from flat-rolled products simply cold-formed or cold-finished (excl. profiled sheet)"},{"$nulls":6},{"$f":"Translations!$B$611","v":"Iron or steel products"}]
[{"$nulls":4},"7216 61 10",{"$f":"Translations!$B$944","v":"c, l, u, z, omega or open-ended sections of iron or non-alloy steel, simply cold-formed or cold-finished, obtained from flat-rolled products"},{"$nulls":6},{"$f":"Translations!$B$611","v":"Iron or steel products"}]
[{"$nulls":4},"7216 61 90",{"$f":"Translations!$B$945","v":"Angles, shapes and sections (other than c, l, u, z, omega or open-ended sections) of iron or non-alloy steel, simply cold-formed or cold-finished, obtained from flat-rolled products"},{"$nulls":6},{"$f":"Translations!$B$611","v":"Iron or steel products"}]
[{"$nulls":4},"7216 69 00",{"$f":"Translations!$B$946","v":"Angles, shapes and sections, of iron or non-alloy steel, not further worked than cold-formed or cold-finished (excl. profiled sheet)"},{"$nulls":6},{"$f":"Translations!$B$611","v":"Iron or steel products"}]
[{"$nulls":4},"7216 91",{"$f":"Translations!$B$947","v":"Angles, shapes and sections, of iron or non-alloy steel, cold-formed or cold-finished from flat-rolled products and further worked"},{"$nulls":6},{"$f":"Translations!$B$611","v":"Iron or steel products"}]
[{"$nulls":4},"7216 91 10",{"$f":"Translations!$B$948","v":"Sheets sheets of iron or non-alloy steel, cold-formed or cold finished, profiled \"ribbed\""},{"$nulls":6},{"$f":"Translations!$B$611","v":"Iron or steel products"}]
[{"$nulls":4},"7216 91 80",{"$f":"Translations!$B$949","v":"Angles, shapes and sections, of iron or non-alloy steel, cold-formed or cold-finished from flat-rolled products and further worked (excl. profiled sheet)"},{"$nulls":6},{"$f":"Translations!$B$611","v":"Iron or steel products"}]
[{"$nulls":4},"7216 99 00",{"$f":"Translations!$B$950","v":"Angles, shapes and sections, of iron or non-alloy steel, cold-formed or cold-finished and further worked, or hot-forged, or hot-formed by other means and further worked, n.e.s. (excl. from flat-rolled products)"},{"$nulls":6},{"$f":"Translations!$B$611","v":"Iron or steel products"}]
[{"$nulls":4},"7217",{"$f":"Translations!$B$951","v":"Wire of iron or non-alloy steel, in coils (excl. bars and rods)"},{"$nulls":6},{"$f":"Translations!$B$611","v":"Iron or steel products"}]
[{"$nulls":4},"7217 10",{"$f":"Translations!$B$952","v":"Wire of iron or non-alloy steel, in coils, not plated or coated, whether or not polished (excl. bars and rods)"},{"$nulls":6},{"$f":"Translations!$B$611","v":"Iron or steel products"}]
[{"$nulls":4},"7217 10 10",{"$f":"Translations!$B$953","v":"Wire of iron or non-alloy steel, in coils, containing by weight < 0,25% carbon, not plated or coated, whether or not polished, with a maximum cross-sectional dimension of < 0,8 mm"},{"$nulls":6},{"$f":"Translations!$B$611","v":"Iron or steel products"}]
[{"$nulls":4},"7217 10 31",{"$f":"Translations!$B$954","v":"Wire of iron or non-alloy steel, in coils, containing by weight < 0,25% carbon, with indentations, ribs, grooves or other deformations produced during the rolling process, not plated or coated, with a maximum cross-sectional dimension of >= 0,8 mm"},{"$nulls":6},{"$f":"Translations!$B$611","v":"Iron or steel products"}]
[{"$nulls":4},"7217 10 39",{"$f":"Translations!$B$955","v":"Wire of iron or non-alloy steel, in coils, containing by weight < 0,25% carbon, not plated or coated, with a maximum cross-sectional dimension of >= 0,8 mm (without indentations, ribs, grooves or other deformations produced during the rolling process)"},{"$nulls":6},{"$f":"Translations!$B$611","v":"Iron or steel products"}]
[{"$nulls":4},"7217 10 50",{"$f":"Translations!$B$956","v":"Wire of iron or non-alloy steel, in coils, containing by weight >= 0,25% but < 0,6% carbon, not plated or coated, whether or not polished (excl. hot-rolled bars and rods)"},{"$nulls":6},{"$f":"Translations!$B$611","v":"Iron or steel products"}]
[{"$nulls":4},"7217 10 90",{"$f":"Translations!$B$957","v":"Wire of iron or non-alloy steel, in coils, containing by weight >= 0,6% carbon, not plated or coated, whether or not polished (excl. hot-rolled bars and rods)"},{"$nulls":6},{"$f":"Translations!$B$611","v":"Iron or steel products"}]
[{"$nulls":4},"7217 20",{"$f":"Translations!$B$958","v":"Wire of iron or non-alloy steel, in coils, plated or coated with zinc (excl. bars and rods)"},{"$nulls":6},{"$f":"Translations!$B$611","v":"Iron or steel products"}]
[{"$nulls":4},"7217 20 10",{"$f":"Translations!$B$959","v":"Wire of iron or non-alloy steel, in coils, containing by weight < 0,25% carbon, plated or coated with zinc, with a maximum cross-sectional dimension of < 0,8 mm"},{"$nulls":6},{"$f":"Translations!$B$611","v":"Iron or steel products"}]
[{"$nulls":4},"7217 20 30",{"$f":"Translations!$B$960","v":"Wire of iron or non-alloy steel, in coils, containing by weight < 0,25% carbon, plated or coated with zinc, with a maximum cross-sectional dimension of < 0,8 mm (excl. bars and rods)"},{"$nulls":6},{"$f":"Translations!$B$611","v":"Iron or steel products"}]
[{"$nulls":4},"7217 20 50",{"$f":"Translations!$B$961","v":"Wire of iron or non-alloy steel, in coils, containing by weight >= 0,25% but < 0,6% carbon, plated or coated with zinc (excl. bars and rods)"},{"$nulls":6},{"$f":"Translations!$B$611","v":"Iron or steel products"}]
[{"$nulls":4},"7217 20 90",{"$f":"Translations!$B$962","v":"Wire of iron or non-alloy steel, in coils, containing by weight >= 0,6% carbon, plated or coated with zinc (excl. bars and rods)"},{"$nulls":6},{"$f":"Translations!$B$611","v":"Iron or steel products"}]
[{"$nulls":4},"7217 30",{"$f":"Translations!$B$963","v":"Wire of iron or non-alloy steel, in coils, plated or coated with base metals (excl. plated or coated with zinc, and bars and rods)"},{"$nulls":6},{"$f":"Translations!$B$611","v":"Iron or steel products"}]
[{"$nulls":4},"7217 30 41",{"$f":"Translations!$B$964","v":"Wire of iron or non-alloy steel, in coils, containing by weight < 0,25% carbon, copper-coated (excl. bars and rods)"},{"$nulls":6},{"$f":"Translations!$B$611","v":"Iron or steel products"}]
[{"$nulls":4},"7217 30 49",{"$f":"Translations!$B$965","v":"Wire of iron or non-alloy steel, in coils, containing by weight < 0,25% carbon, plated or coated with base metals (excl. products plated or coated with zinc or copper and bars and rods)"},{"$nulls":6},{"$f":"Translations!$B$611","v":"Iron or steel products"}]
[{"$nulls":4},"7217 30 50",{"$f":"Translations!$B$966","v":"Wire of iron or non-alloy steel, in coils, containing by weight >= 0,25% but < 0,6% carbon, plated or coated with base metals (excl. products plated or coated with zinc, and bars and rods)"},{"$nulls":6},{"$f":"Translations!$B$611","v":"Iron or steel products"}]
[{"$nulls":4},"7217 30 90",{"$f":"Translations!$B$967","v":"Wire of iron or non-alloy steel, in coils, containing by weight >= 0,6% carbon, plated or coated with base metals (excl. products plated or coated with zinc, and bars and rods)"},{"$nulls":6},{"$f":"Translations!$B$611","v":"Iron or steel products"}]
[{"$nulls":4},"7217 90",{"$f":"Translations!$B$968","v":"Wire of iron or non-alloy steel, in coils, plated or coated (excl. plated or coated with base metals, and bars and rods)"},{"$nulls":6},{"$f":"Translations!$B$611","v":"Iron or steel products"}]
[{"$nulls":4},"7217 90 20",{"$f":"Translations!$B$969","v":"Wire of iron or non-alloy steel, in coils, containing by weight < 0,25% carbon, plated or coated (excl. products plated or coated with base metals and bars and rods)"},{"$nulls":6},{"$f":"Translations!$B$611","v":"Iron or steel products"}]
[{"$nulls":4},"7217 90 50",{"$f":"Translations!$B$970","v":"Wire of iron or non-alloy steel, in coils, containing by weight >= 0,25% but < 0,6% carbon, plated or coated (excl. products plated or coated with with base metals, and bars and rods)"},{"$nulls":6},{"$f":"Translations!$B$611","v":"Iron or steel products"}]
[{"$nulls":4},"7217 90 90",{"$f":"Translations!$B$971","v":"Wire of iron or non-alloy steel, in coils, containing by weight >= 0,6% carbon, plated or coated (excl. products plated or coated with base metals, and bars and rods)"},{"$nulls":6},{"$f":"Translations!$B$611","v":"Iron or steel products"}]
[{"$nulls":4},"7218",{"$f":"Translations!$B$972","v":"Stainless steel in ingots or other primary forms (excl. remelting scrap ingots and products obtained by continuous casting); semi-finished products of stainless steel"},{"$nulls":6},{"$f":"Translations!$B$668","v":"Crude steel"}]
[{"$nulls":4},"7218 10 00",{"$f":"Translations!$B$973","v":"Steel, stainless, in ingots and other primary forms (excl. waste and scrap in ingot form, and products obtained by continuous casting)"},{"$nulls":6},{"$f":"Translations!$B$668","v":"Crude steel"}]
[{"$nulls":4},"7218 91",{"$f":"Translations!$B$974","v":"Semi-finished products of stainless steel, of rectangular \"other than square\" cross-section"},{"$nulls":6},{"$f":"Translations!$B$668","v":"Crude steel"}]
[{"$nulls":4},"7218 91 10",{"$f":"Translations!$B$975","v":"Semi-finished products of stainless steel, of rectangular \"other than square\" cross-section, containing by weight >= 2,5% nickel"},{"$nulls":6},{"$f":"Translations!$B$668","v":"Crude steel"}]
[{"$nulls":4},"7218 91 80",{"$f":"Translations!$B$976","v":"Semi-finished products of stainless steel, of rectangular \"other than square\" cross-section, containing by weight < 2,5 nickel"},{"$nulls":6},{"$f":"Translations!$B$668","v":"Crude steel"}]
[{"$nulls":4},"7218 99",{"$f":"Translations!$B$977","v":"Semi-finished products of stainless steel (excl. of rectangular [other than square] cross-section)"},{"$nulls":6},{"$f":"Translations!$B$668","v":"Crude steel"}]
[{"$nulls":4},"7218 99 11",{"$f":"Translations!$B$978","v":"Semi-finished products of stainless steel, of square cross-section, rolled or obtained by continuous casting"},{"$nulls":6},{"$f":"Translations!$B$668","v":"Crude steel"}]
[{"$nulls":4},"7218 99 19",{"$f":"Translations!$B$979","v":"Semi-finished products of stainless steel, of square cross-section, forged"},{"$nulls":6},{"$f":"Translations!$B$668","v":"Crude steel"}]
[{"$nulls":4},"7218 99 20",{"$f":"Translations!$B$980","v":"Semi-finished products of stainless steel, of circular cross-section or of cross-section other than square or rectangular, rolled or obtained by continuous casting"},{"$nulls":6},{"$f":"Translations!$B$668","v":"Crude steel"}]
[{"$nulls":4},"7218 99 80",{"$f":"Translations!$B$981","v":"Semi-finished products of stainless steel, forged (excl. products of square or rectangular cross-section)"},{"$nulls":6},{"$f":"Translations!$B$668","v":"Crude steel"}]
[{"$nulls":4},"7219",{"$f":"Translations!$B$982","v":"Flat-rolled products of stainless steel, of a width of >= 600 mm, hot-rolled or cold-rolled \"cold-reduced\""},{"$nulls":6},{"$f":"Translations!$B$611","v":"Iron or steel products"}]
[{"$nulls":4},"7219 11 00",{"$f":"Translations!$B$983","v":"Flat-rolled products of stainless steel, of a width of >= 600 mm, not further worked than hot-rolled, in coils, of a thickness of > 10 mm"},{"$nulls":6},{"$f":"Translations!$B$611","v":"Iron or steel products"}]
[{"$nulls":4},"7219 12",{"$f":"Translations!$B$984","v":"Flat-rolled products of stainless steel, of a width of>= 600 mm, not further worked than hot-rolled, in coils, of a thickness of >= 4,7 mm and <= 10 mm"},{"$nulls":6},{"$f":"Translations!$B$611","v":"Iron or steel products"}]
[{"$nulls":4},"7219 12 10",{"$f":"Translations!$B$985","v":"Flat-rolled products of stainless steel, of a width of >= 600 mm, not further worked than hot-rolled, in coils, of a thickness of >= 4,75 mm but <= 10 mm, containing by weight >= 2,5 nickel"},{"$nulls":6},{"$f":"Translations!$B$611","v":"Iron or steel products"}]
[{"$nulls":4},"7219 12 90",{"$f":"Translations!$B$986","v":"Flat-rolled products of stainless steel, of a width of >= 600 mm, not further worked than hot-rolled, in coils, of a thickness of >= 4,75 mm but <= 10 mm, containing by weight < 2,5 nickel"},{"$nulls":6},{"$f":"Translations!$B$611","v":"Iron or steel products"}]
[{"$nulls":4},"7219 13",{"$f":"Translations!$B$987","v":"Flat-rolled products of stainless steel, of a width of >= 600 mm, not further worked than hot-rolled, in coils, of a thickness of >= 3 mm and < 4,75 mm"},{"$nulls":6},{"$f":"Translations!$B$611","v":"Iron or steel products"}]
[{"$nulls":4},"7219 13 10",{"$f":"Translations!$B$988","v":"Flat-rolled products of stainless steel, of a width of >= 600 mm, not further worked than hot-rolled, in coils, of a thickness of >= 3 mm but <= 4,75 mm, containing by weight >= 2,5 nickel"},{"$nulls":6},{"$f":"Translations!$B$611","v":"Iron or steel products"}]
[{"$nulls":4},"7219 13 90",{"$f":"Translations!$B$989","v":"Flat-rolled products of stainless steel, of a width of >= 600 mm, not further worked than hot-rolled, in coils, of a thickness of >= 3 mm but <= 4,75 mm, containing by weight < 2,5 nickel"},{"$nulls":6},{"$f":"Translations!$B$611","v":"Iron or steel products"}]
[{"$nulls":4},"7219 14",{"$f":"Translations!$B$990","v":"Flat-rolled products of stainless steel, of a width of >= 600 mm, not further worked than hot-rolled, in coils, of a thickness of < 3 mm"},{"$nulls":6},{"$f":"Translations!$B$611","v":"Iron or steel products"}]
[{"$nulls":4},"7219 14 10",{"$f":"Translations!$B$991","v":"Flat-rolled products of stainless steel, of a width of >= 600 mm, not further worked than hot-rolled, in coils, of a thickness of < 3 mm, containing by weight >= 2,5 nickel"},{"$nulls":6},{"$f":"Translations!$B$611","v":"Iron or steel products"}]
[{"$nulls":4},"7219 14 90",{"$f":"Translations!$B$992","v":"Flat-rolled products of stainless steel, of a width of >= 600 mm, not further worked than hot-rolled, in coils, of a thickness of < 3 mm, containing by weight < 2,5 nickel"},{"$nulls":6},{"$f":"Translations!$B$611","v":"Iron or steel products"}]
[{"$nulls":4},"7219 21",{"$f":"Translations!$B$993","v":"Flat-rolled products of stainless steel, of a width of >= 600 mm, not further worked than hot-rolled, not in coils, of a thickness of > 10 mm"},{"$nulls":6},{"$f":"Translations!$B$611","v":"Iron or steel products"}]
[{"$nulls":4},"7219 21 10",{"$f":"Translations!$B$994","v":"Flat-rolled products of stainless steel, of a width of >= 600 mm, not further worked than hot-rolled, not in coils, of a thickness of > 10 mm, containing by weight >= 2,5 nickel"},{"$nulls":6},{"$f":"Translations!$B$611","v":"Iron or steel products"}]
[{"$nulls":4},"7219 21 90",{"$f":"Translations!$B$995","v":"Flat-rolled products of stainless steel, of a width of >= 600 mm, not further worked than hot-rolled, not in coils, of a thickness of > 10 mm, containing by weight < 2,5 nickel"},{"$nulls":6},{"$f":"Translations!$B$611","v":"Iron or steel products"}]
[{"$nulls":4},"7219 22",{"$f":"Translations!$B$996","v":"Flat-rolled products of stainless steel, of a width of >= 600 mm, not further worked than hot-rolled, not in coils, of a thickness of >= 4,75 mm and <= 10 mm"},{"$nulls":6},{"$f":"Translations!$B$611","v":"Iron or steel products"}]
[{"$nulls":4},"7219 22 10",{"$f":"Translations!$B$997","v":"Flat-rolled products of stainless steel, of a width of >= 600 mm, not further worked than hot-rolled, not in coils, of a thickness of >= 4,75 mm but <= 10 mm, containing by weight >= 2,5% nickel"},{"$nulls":6},{"$f":"Translations!$B$611","v":"Iron or steel products"}]
[{"$nulls":4},"7219 22 90",{"$f":"Translations!$B$998","v":"Flat-rolled products of stainless steel, of a width of >= 600 mm, not further worked than hot-rolled, not in coils, of a thickness of >= 4,75 mm but <= 10 mm, containing by weight < 2,5% nickel"},{"$nulls":6},{"$f":"Translations!$B$611","v":"Iron or steel products"}]
[{"$nulls":4},"7219 23 00",{"$f":"Translations!$B$999","v":"Flat-rolled products of stainless steel, of a width of >= 600 mm, not further worked than hot-rolled, not in coils, of a thickness of >= 3 mm and < 4,75 mm"},{"$nulls":6},{"$f":"Translations!$B$611","v":"Iron or steel products"}]
[{"$nulls":4},"7219 24 00",{"$f":"Translations!$B$1000","v":"Flat-rolled products of stainless steel, of a width of >= 600 mm, not further worked than hot-rolled, not in coils, of a thickness of < 3 mm"},{"$nulls":6},{"$f":"Translations!$B$611","v":"Iron or steel products"}]
[{"$nulls":4},"7219 31 00",{"$f":"Translations!$B$1001","v":"Flat-rolled products of stainless steel, of a width of >= 600 mm, not further worked than cold-rolled \"cold-reduced\", of a thickness of >= 4,75 mm"},{"$nulls":6},{"$f":"Translations!$B$611","v":"Iron or steel products"}]
[{"$nulls":4},"7219 32",{"$f":"Translations!$B$1002","v":"Flat-rolled products of stainless steel, of a width of >= 600 mm, not further worked than cold-rolled \"cold-reduced\", of a thickness of >= 3 mm but < 4,75 mm"},{"$nulls":6},{"$f":"Translations!$B$611","v":"Iron or steel products"}]
[{"$nulls":4},"7219 32 10",{"$f":"Translations!$B$1003","v":"Flat-rolled products of stainless steel, of a width of >= 600 mm, not further worked than cold-rolled \"cold-reduced\", of a thickness of >= 3 mm but <= 4,75 mm, containing by weight >= 2,5% nickel"},{"$nulls":6},{"$f":"Translations!$B$611","v":"Iron or steel products"}]
[{"$nulls":4},"7219 32 90",{"$f":"Translations!$B$1004","v":"Flat-rolled products of stainless steel, of a width of >= 600 mm, not further worked than cold-rolled \"cold-reduced\", of a thickness of >= 3 mm but <= 4,75 mm, containing by weight < 2,5% nickel"},{"$nulls":6},{"$f":"Translations!$B$611","v":"Iron or steel products"}]
[{"$nulls":4},"7219 33",{"$f":"Translations!$B$1005","v":"Flat-rolled products of stainless steel, of a width of >= 600 mm, not further worked than cold-rolled \"cold-reduced\", of a thickness of > 1 mm but < 3 mm"},{"$nulls":6},{"$f":"Translations!$B$611","v":"Iron or steel products"}]
[{"$nulls":4},"7219 33 10",{"$f":"Translations!$B$1006","v":"Flat-rolled products of stainless steel, of a width of >= 600 mm, not further worked than cold-rolled \"cold-reduced\", of a thickness of > 1 mm but < 3 mm, containing by weight >= 2,5% nickel"},{"$nulls":6},{"$f":"Translations!$B$611","v":"Iron or steel products"}]
[{"$nulls":4},"7219 33 90",{"$f":"Translations!$B$1007","v":"Flat-rolled products of stainless steel, of a width of >= 600 mm, not further worked than cold-rolled \"cold-reduced\", of a thickness of > 1 mm but < 3 mm, containing by weight < 2,5% nickel"},{"$nulls":6},{"$f":"Translations!$B$611","v":"Iron or steel products"}]
[{"$nulls":4},"7219 34",{"$f":"Translations!$B$1008","v":"Flat-rolled products of stainless steel, of a width of >= 600 mm, not further worked than cold-rolled \"cold-reduced\", of a thickness of >= 0,5 mm but <= 1 mm"},{"$nulls":6},{"$f":"Translations!$B$611","v":"Iron or steel products"}]
[{"$nulls":4},"7219 34 10",{"$f":"Translations!$B$1009","v":"Flat-rolled products of stainless steel, of a width of >= 600 mm, not further worked than cold-rolled \"cold-reduced\", of a thickness of >= 0,5 mm but <= 1 mm, containing by weight >= 2,5% nickel"},{"$nulls":6},{"$f":"Translations!$B$611","v":"Iron or steel products"}]
[{"$nulls":4},"7219 34 90",{"$f":"Translations!$B$1010","v":"Flat-rolled products of stainless steel, of a width of >= 600 mm, not further worked than cold-rolled \"cold-reduced\", of a thickness of >= 0,5 mm but <= 1 mm, containing by weight < 2,5% nickel"},{"$nulls":6},{"$f":"Translations!$B$611","v":"Iron or steel products"}]
[{"$nulls":4},"7219 35",{"$f":"Translations!$B$1011","v":"Flat-rolled products of stainless steel, of a width of >= 600 mm, not further worked than cold-rolled \"cold-reduced\", of a thickness of < 0,5 mm"},{"$nulls":6},{"$f":"Translations!$B$611","v":"Iron or steel products"}]
[{"$nulls":4},"7219 35 10",{"$f":"Translations!$B$1012","v":"Flat-rolled products of stainless steel, of a width of >= 600 mm, not further worked than cold-rolled \"cold-reduced\", of a thickness of < 0,5 mm, containing by weight >= 2,5% nickel"},{"$nulls":6},{"$f":"Translations!$B$611","v":"Iron or steel products"}]
[{"$nulls":4},"7219 35 90",{"$f":"Translations!$B$1013","v":"Flat-rolled products of stainless steel, of a width of >= 600 mm, not further worked than cold-rolled \"cold-reduced\", of a thickness of < 0,5 mm, containing by weight < 2,5% nickel"},{"$nulls":6},{"$f":"Translations!$B$611","v":"Iron or steel products"}]
[{"$nulls":4},"7219 90",{"$f":"Translations!$B$1014","v":"Flat-rolled products of stainless steel, of a width of >= 600 mm, hot-rolled or cold-rolled \"cold-reduced\" and further worked"},{"$nulls":6},{"$f":"Translations!$B$611","v":"Iron or steel products"}]
[{"$nulls":4},"7219 90 20",{"$f":"Translations!$B$1015","v":"Flat-rolled products of stainless steel, of a width of >= 600 mm, hot-rolled or cold-rolled \"cold-reduced\" and further worked, perforated"},{"$nulls":6},{"$f":"Translations!$B$611","v":"Iron or steel products"}]
[{"$nulls":4},"7219 90 80",{"$f":"Translations!$B$1016","v":"Flat-rolled products of stainless steel, of a width of >= 600 mm, hot-rolled or cold-rolled \"cold-reduced\" and further worked, non-perforated"},{"$nulls":6},{"$f":"Translations!$B$611","v":"Iron or steel products"}]
[{"$nulls":4},"7220",{"$f":"Translations!$B$1017","v":"Flat-rolled products of stainless steel, of a width of < 600 mm, hot-rolled or cold-rolled \"cold-reduced\""},{"$nulls":6},{"$f":"Translations!$B$611","v":"Iron or steel products"}]
[{"$nulls":4},"7220 11 00",{"$f":"Translations!$B$1018","v":"Flat-rolled products of stainless steel, of a width of < 600 mm, not further worked than hot-rolled, of a thickness of >= 4,75 mm"},{"$nulls":6},{"$f":"Translations!$B$611","v":"Iron or steel products"}]
[{"$nulls":4},"7220 12 00",{"$f":"Translations!$B$1019","v":"Flat-rolled products of stainless steel, of a width of < 600 mm, not further worked than hot-rolled, of a thickness of < 4,75 mm"},{"$nulls":6},{"$f":"Translations!$B$611","v":"Iron or steel products"}]
[{"$nulls":4},"7220 20",{"$f":"Translations!$B$1020","v":"Flat-rolled products of stainless steel, of a width of < 600 mm, not further worked than cold-rolled \"cold-reduced\""},{"$nulls":6},{"$f":"Translations!$B$611","v":"Iron or steel products"}]
[{"$nulls":4},"7220 20 21",{"$f":"Translations!$B$1021","v":"Flat-rolled products of stainless steel, of a width of < 600 mm, not further worked than cold-rolled \"cold-reduced\", of a thickness of >= 3 mm and containing by weight >= 2,5% nickel"},{"$nulls":6},{"$f":"Translations!$B$611","v":"Iron or steel products"}]
[{"$nulls":4},"7220 20 29",{"$f":"Translations!$B$1022","v":"Flat-rolled products of stainless steel, of a width of < 600 mm, not further worked than cold-rolled \"cold-reduced\", of a thickness of >= 3 mm and containing by weight < 2,5% nickel"},{"$nulls":6},{"$f":"Translations!$B$611","v":"Iron or steel products"}]
[{"$nulls":4},"7220 20 41",{"$f":"Translations!$B$1023","v":"Flat-rolled products of stainless steel, of a width of < 600 mm, not further worked than cold-rolled \"cold-reduced\", of a thickness of > 0,35 mm but < 3 mm, and containing by weight >= 2,5% nickel"},{"$nulls":6},{"$f":"Translations!$B$611","v":"Iron or steel products"}]
[{"$nulls":4},"7220 20 49",{"$f":"Translations!$B$1024","v":"Flat-rolled products of stainless steel, of a width of < 600 mm, not further worked than cold-rolled \"cold-reduced\", of a thickness of > 0,35 mm but < 3 mm, and containing by weight < 2,5% nickel"},{"$nulls":6},{"$f":"Translations!$B$611","v":"Iron or steel products"}]
[{"$nulls":4},"7220 20 81",{"$f":"Translations!$B$1025","v":"Flat-rolled products of stainless steel, of a width of < 600 mm, not further worked than cold-rolled \"cold-reduced\", of a thickness of <= 0,35 mm and containing by weight >= 2,5% nickel"},{"$nulls":6},{"$f":"Translations!$B$611","v":"Iron or steel products"}]
[{"$nulls":4},"7220 20 89",{"$f":"Translations!$B$1026","v":"Flat-rolled products of stainless steel, of a width of < 600 mm, not further worked than cold-rolled \"cold-reduced\", of a thickness of <= 0,35 mm and containing by weight < 2,5% nickel"},{"$nulls":6},{"$f":"Translations!$B$611","v":"Iron or steel products"}]
[{"$nulls":4},"7220 90",{"$f":"Translations!$B$1027","v":"Flat-rolled products of stainless steel, of a width of < 600 mm, hot-rolled or cold-rolled \"cold-reduced\" and further worked"},{"$nulls":6},{"$f":"Translations!$B$611","v":"Iron or steel products"}]
[{"$nulls":4},"7220 90 20",{"$f":"Translations!$B$1028","v":"Flat-rolled products of stainless steel, of a width of < 600 mm, hot-rolled or cold-rolled \"cold-reduced\" and further worked, perforated"},{"$nulls":6},{"$f":"Translations!$B$611","v":"Iron or steel products"}]
[{"$nulls":4},"7220 90 80",{"$f":"Translations!$B$1029","v":"Flat-rolled products of stainless steel, of a width of < 600 mm, hot-rolled or cold-rolled \"cold-reduced\" and further worked, non-perforated"},{"$nulls":6},{"$f":"Translations!$B$611","v":"Iron or steel products"}]
[{"$nulls":4},"7221 00",{"$f":"Translations!$B$1030","v":"Bars and rods of stainless steel, hot-rolled, in irregularly wound coils"},{"$nulls":6},{"$f":"Translations!$B$611","v":"Iron or steel products"}]
[{"$nulls":4},"7221 00 10",{"$f":"Translations!$B$1031","v":"Bars and rods of stainless steel, hot-rolled, in irregularly wound coils, containing by weight >= 2,5% nickel"},{"$nulls":6},{"$f":"Translations!$B$611","v":"Iron or steel products"}]
[{"$nulls":4},"7221 00 90",{"$f":"Translations!$B$1032","v":"Bars and rods of stainless steel, hot-rolled, in irregularly wound coils, containing by weight < 2,5% nickel"},{"$nulls":6},{"$f":"Translations!$B$611","v":"Iron or steel products"}]
[{"$nulls":4},"7222",{"$f":"Translations!$B$1033","v":"Other bars and rods of stainless steel; angles, shapes and sections of stainless steel, n.e.s."},{"$nulls":6},{"$f":"Translations!$B$611","v":"Iron or steel products"}]
[{"$nulls":4},"7222 11",{"$f":"Translations!$B$1034","v":"Bars and rods of stainless steel, only hot-rolled, only hot-drawn or only hot-extruded, of circular cross-section"},{"$nulls":6},{"$f":"Translations!$B$611","v":"Iron or steel products"}]
[{"$nulls":4},"7222 11 11",{"$f":"Translations!$B$1035","v":"Bars and rods of stainless steel, not further worked than hot-rolled, hot-drawn or extruded, of circular cross-section of a diameter of >= 800 mm, containing by weight >= 2,5% nickel"},{"$nulls":6},{"$f":"Translations!$B$611","v":"Iron or steel products"}]
[{"$nulls":4},"7222 11 19",{"$f":"Translations!$B$1036","v":"Bars and rods of stainless steel, not further worked than hot-rolled, hot-drawn or extruded, of circular cross-section of a diameter of >= 800 mm, containing by weight < 2,5% nickel"},{"$nulls":6},{"$f":"Translations!$B$611","v":"Iron or steel products"}]
[{"$nulls":4},"7222 11 81",{"$f":"Translations!$B$1037","v":"Bars and rods of stainless steel, not further worked than hot-rolled, hot-drawn or extruded, of circular cross-section measuring < 80 mm and containing by weight >= 2,5% nickel"},{"$nulls":6},{"$f":"Translations!$B$611","v":"Iron or steel products"}]
[{"$nulls":4},"7222 11 89",{"$f":"Translations!$B$1038","v":"Bars and rods of stainless steel, not further worked than hot-rolled, hot-drawn or extruded, of circular cross-section measuring < 80 mm and containing by weight < 2,5% nickel"},{"$nulls":6},{"$f":"Translations!$B$611","v":"Iron or steel products"}]
[{"$nulls":4},"7222 19",{"$f":"Translations!$B$1039","v":"Bars and rods of stainless steel, only hot-rolled, only hot-drawn or only extruded (excl. of circular cross-section)"},{"$nulls":6},{"$f":"Translations!$B$611","v":"Iron or steel products"}]
[{"$nulls":4},"7222 19 10",{"$f":"Translations!$B$1040","v":"Bars and rods of stainless steel, not further worked than hot-rolled, hot-drawn or extruded, containing by weight >= 2,5% nickel (excl. such products of circular cross-section)"},{"$nulls":6},{"$f":"Translations!$B$611","v":"Iron or steel products"}]
[{"$nulls":4},"7222 19 90",{"$f":"Translations!$B$1041","v":"Bars and rods of stainless steel, not further worked than hot-rolled, hot-drawn or extruded, containing by weight < 2,5% nickel (excl. such products of circular cross-section)"},{"$nulls":6},{"$f":"Translations!$B$611","v":"Iron or steel products"}]
[{"$nulls":4},"7222 20",{"$f":"Translations!$B$1042","v":"Other bars and rods of stainless steel, not further worked than cold-formed or cold-finished"},{"$nulls":6},{"$f":"Translations!$B$611","v":"Iron or steel products"}]
[{"$nulls":4},"7222 20 11",{"$f":"Translations!$B$1043","v":"Bars and rods of stainless steel, of circular cross-section of a diameter >= 80 mm, simply cold-formed or cold-finished, containing by weight >= 2,5% nickel"},{"$nulls":6},{"$f":"Translations!$B$611","v":"Iron or steel products"}]
[{"$nulls":4},"7222 20 19",{"$f":"Translations!$B$1044","v":"Bars and rods of stainless steel, of circular cross-section of a diameter >= 80 mm, simply cold-formed or cold-finished, containing by weight < 2,5% nickel"},{"$nulls":6},{"$f":"Translations!$B$611","v":"Iron or steel products"}]
[{"$nulls":4},"7222 20 21",{"$f":"Translations!$B$1045","v":"Bars and rods of stainless steel, not further worked than cold-formed or cold-finished, of circular cross-section measuring >= 25 mm but < 80 mm and containing by weight >= 2,5% nickel"},{"$nulls":6},{"$f":"Translations!$B$611","v":"Iron or steel products"}]
[{"$nulls":4},"7222 20 29",{"$f":"Translations!$B$1046","v":"Bars and rods of stainless steel, not further worked than cold-formed or cold-finished, of circular cross-section measuring >= 25 mm but < 80 mm and containing by weight < 2,5% nickel"},{"$nulls":6},{"$f":"Translations!$B$611","v":"Iron or steel products"}]
[{"$nulls":4},"7222 20 31",{"$f":"Translations!$B$1047","v":"Bars and rods of stainless steel, not further worked than cold-formed or cold-finished, of circular cross-section measuring < 25 mm and containing by weight >= 2,5% nickel"},{"$nulls":6},{"$f":"Translations!$B$611","v":"Iron or steel products"}]
[{"$nulls":4},"7222 20 39",{"$f":"Translations!$B$1048","v":"Bars and rods of stainless steel, not further worked than cold-formed or cold-finished, of circular cross-section measuring < 25 mm and containing by weight < 2,5% nickel"},{"$nulls":6},{"$f":"Translations!$B$611","v":"Iron or steel products"}]
[{"$nulls":4},"7222 20 81",{"$f":"Translations!$B$1049","v":"Bars and rods of stainless steel, not further worked than cold-formed or cold-finished, containing by weight >= 2,5% nickel (excl. such products of circular cross-section)"},{"$nulls":6},{"$f":"Translations!$B$611","v":"Iron or steel products"}]
[{"$nulls":4},"7222 20 89",{"$f":"Translations!$B$1050","v":"Bars and rods of stainless steel, not further worked than cold-formed or cold-finished, containing by weight < 2,5% nickel (excl. such products of circular cross-section)"},{"$nulls":6},{"$f":"Translations!$B$611","v":"Iron or steel products"}]
[{"$nulls":4},"7222 30",{"$f":"Translations!$B$1051","v":"Other bars and rods of stainless steel, cold-formed or cold-finished and further worked, or not further worked than forged, or forged, or hot-formed by other means and further worked, n.e.s."},{"$nulls":6},{"$f":"Translations!$B$611","v":"Iron or steel products"}]
[{"$nulls":4},"7222 30 51",{"$f":"Translations!$B$1052","v":"Other bars and rods of stainless steel, containing by weight >= 2,5% of nickel, forged"},{"$nulls":6},{"$f":"Translations!$B$611","v":"Iron or steel products"}]
[{"$nulls":4},"7222 30 91",{"$f":"Translations!$B$1053","v":"Other bars and rods of stainless steel, containing by weight < 2,5% of nickel, forged"},{"$nulls":6},{"$f":"Translations!$B$611","v":"Iron or steel products"}]
[{"$nulls":4},"7222 30 97",{"$f":"Translations!$B$1054","v":"Bars and rods of stainless steel, cold-formed or cold-finished and further worked, or hot-formed and further worked, n.e.s. (excl. forged products)"},{"$nulls":6},{"$f":"Translations!$B$611","v":"Iron or steel products"}]
[{"$nulls":4},"7222 40",{"$f":"Translations!$B$1055","v":"Angles, shapes and sections of stainless steel, n.e.s."},{"$nulls":6},{"$f":"Translations!$B$611","v":"Iron or steel products"}]
[{"$nulls":4},"7222 40 10",{"$f":"Translations!$B$1056","v":"Angles, shapes and sections of stainless steel, only hot-rolled, only hot-drawn or only extruded"},{"$nulls":6},{"$f":"Translations!$B$611","v":"Iron or steel products"}]
[{"$nulls":4},"7222 40 50",{"$f":"Translations!$B$1057","v":"Angles, shapes and sections of stainless steel, not further worked than cold-formed or cold-finished"},{"$nulls":6},{"$f":"Translations!$B$611","v":"Iron or steel products"}]
[{"$nulls":4},"7222 40 90",{"$f":"Translations!$B$1058","v":"Angles, shapes and sections of stainless steel, cold-formed or cold-finished and further worked, or not further worked than forged, or forged, or hot-formed by other means and further worked, n.e.s."},{"$nulls":6},{"$f":"Translations!$B$611","v":"Iron or steel products"}]
[{"$nulls":4},"7223 00",{"$f":"Translations!$B$1059","v":"Wire of stainless steel, in coils (excl. bars and rods)"},{"$nulls":6},{"$f":"Translations!$B$611","v":"Iron or steel products"}]
[{"$nulls":4},"7223 00 11",{"$f":"Translations!$B$1060","v":"Wire of stainless steel, in coils, containing by weight 28% to 31% nickel and 20% to 22% chromium (excl. bars and rods)"},{"$nulls":6},{"$f":"Translations!$B$611","v":"Iron or steel products"}]
[{"$nulls":4},"7223 00 19",{"$f":"Translations!$B$1061","v":"Wire of stainless steel, in coils, containing by weight >= 2,5% nickel (excl. such products containing 28% to 31% nickel and 20% to 22% chromium, and bars and rods)"},{"$nulls":6},{"$f":"Translations!$B$611","v":"Iron or steel products"}]
[{"$nulls":4},"7223 00 91",{"$f":"Translations!$B$1062","v":"Wire of stainless steel, in coils, containing by weight < 2,5% nickel, 13% to 25% chromium and 3,5% to 6% aluminium (excl. bars and rods)"},{"$nulls":6},{"$f":"Translations!$B$611","v":"Iron or steel products"}]
[{"$nulls":4},"7223 00 99",{"$f":"Translations!$B$1063","v":"Wire of stainless steel, in coils, containing by weight < 2,5% nickel (excl. such products containing 13% to 25% chromium and 3,5% to 6% aluminium, and bars and rods)"},{"$nulls":6},{"$f":"Translations!$B$611","v":"Iron or steel products"}]
[{"$nulls":4},"7224",{"$f":"Translations!$B$1064","v":"Steel, alloy, other than stainless, in ingots or other primary forms, semi-finished products of alloy steel other than stainless (excl. waste and scrap in ingot form, and products obtained by continuous casting)"},{"$nulls":6},{"$f":"Translations!$B$668","v":"Crude steel"}]
[{"$nulls":4},"7224 10",{"$f":"Translations!$B$1065","v":"Steel, alloy, other than stainless, in ingots or other primary forms (excl. waste and scrap in ingot form, and products obtained by continuous casting)"},{"$nulls":6},{"$f":"Translations!$B$668","v":"Crude steel"}]
[{"$nulls":4},"7224 10 10",{"$f":"Translations!$B$1066","v":"Ingots and other primary forms, of tool steel"},{"$nulls":6},{"$f":"Translations!$B$668","v":"Crude steel"}]
[{"$nulls":4},"7224 10 90",{"$f":"Translations!$B$1067","v":"Steel, alloy, other than stainless, in ingots or other primary forms (excl. of tool steel, waste and scrap in ingot form and products obtained by continuous casting)"},{"$nulls":6},{"$f":"Translations!$B$668","v":"Crude steel"}]
[{"$nulls":4},"7224 90",{"$f":"Translations!$B$1068","v":"Semi-finished products of alloy steel other than stainless"},{"$nulls":6},{"$f":"Translations!$B$668","v":"Crude steel"}]
[{"$nulls":4},"7224 90 02",{"$f":"Translations!$B$1069","v":"Semi-finished products of tool steel"},{"$nulls":6},{"$f":"Translations!$B$668","v":"Crude steel"}]
[{"$nulls":4},"7224 90 03",{"$f":"Translations!$B$1070","v":"Semi-finished products of high-speed steel, of square or rectangular cross-section, hot-rolled or obtained by continuous casting the width measuring < twice the thickness"},{"$nulls":6},{"$f":"Translations!$B$668","v":"Crude steel"}]
[{"$nulls":4},"7224 90 05",{"$f":"Translations!$B$1071","v":"Semi-finished products of steel containing by weight <= 0,7% of carbon, 0,5% to 1,2% of manganese, 0,6% to 2,3% of silicon, or of steel containing by weight >= 0,0008% of boron with any other element < the minimum content referred to in Note 1 f to chapter 72, of square or rectangular cross-section, hot rolled or obtained by continuous casting, the width measuring < twice the thickness"},{"$nulls":6},{"$f":"Translations!$B$668","v":"Crude steel"}]
[{"$nulls":4},"7224 90 07",{"$f":"Translations!$B$1072","v":"Semi-finished products of alloy steel other than stainless steel, of square or rectangular cross-section, hot-rolled or obtained by continuous casting, the width measuring < twice the thickness (excl. of tool steel, high-speed steel and articles of subheading 7224.90.05)"},{"$nulls":6},{"$f":"Translations!$B$668","v":"Crude steel"}]
[{"$nulls":4},"7224 90 14",{"$f":"Translations!$B$1073","v":"Semi-finished products of alloy steel other than stainless steel, of square or rectangular cross-section, hot-rolled or obtained by continuous casting, the width measuring >= twice the thickness (excl. of tool steel)"},{"$nulls":6},{"$f":"Translations!$B$668","v":"Crude steel"}]
[{"$nulls":4},"7224 90 18",{"$f":"Translations!$B$1074","v":"Semi-finished products of alloy steel other than stainless steel, of square or rectangular cross-section, forged (excl. of tool steel)"},{"$nulls":6},{"$f":"Translations!$B$668","v":"Crude steel"}]
[{"$nulls":4},"7224 90 31",{"$f":"Translations!$B$1075","v":"Semi-finished products of steel containing by weight 0,9% to 1,15% carbon, 0,5% to 2% of chromium and, if present, <= 0,5% of molybdenum, cut into shapes other than square or rectangular, hot-rolled or obtained by continuous casting"},{"$nulls":6},{"$f":"Translations!$B$668","v":"Crude steel"}]
[{"$nulls":4},"7224 90 38",{"$f":"Translations!$B$1076","v":"Semi-finished products of alloy steel, other than stainless steel, cut into shapes other than square or rectangular, hot-rolled or obtained by continuous casting (excl. of tool steel and products containing by weight 0,9% to 1,15% of carbon, 0,5% to 2% of chromium and, if present, <= 0,5% of molybdenum)"},{"$nulls":6},{"$f":"Translations!$B$668","v":"Crude steel"}]
[{"$nulls":4},"7224 90 90",{"$f":"Translations!$B$1077","v":"Semi-finished products of alloy steel, other than stainless steel, forged (excl. of tool steel and products of square or rectangular, circular or polygamol cross-section)"},{"$nulls":6},{"$f":"Translations!$B$668","v":"Crude steel"}]
[{"$nulls":4},"7225",{"$f":"Translations!$B$1078","v":"Flat-rolled products of alloy steel other than stainless, of a width of >= 600 mm, hot-rolled or cold-rolled \"cold-reduced\""},{"$nulls":6},{"$f":"Translations!$B$611","v":"Iron or steel products"}]
[{"$nulls":4},"7225 11 00",{"$f":"Translations!$B$1079","v":"Flat-rolled products of silicon-electrical steel, of a width of >= 600 mm, grain-oriented"},{"$nulls":6},{"$f":"Translations!$B$611","v":"Iron or steel products"}]
[{"$nulls":4},"7225 19",{"$f":"Translations!$B$1080","v":"Flat-rolled products of silicon-electrical steel, of a width of >= 600 mm, non-grain-oriented"},{"$nulls":6},{"$f":"Translations!$B$611","v":"Iron or steel products"}]
[{"$nulls":4},"7225 19 10",{"$f":"Translations!$B$1081","v":"Flat-rolled products of silicon-electrical steel, of a width of >= 600 mm, hot-rolled"},{"$nulls":6},{"$f":"Translations!$B$611","v":"Iron or steel products"}]
[{"$nulls":4},"7225 19 90",{"$f":"Translations!$B$1082","v":"Flat-rolled products of silicon-electrical steel, of a width of >= 600 mm, cold-rolled \"cold-reduced\", non-grain-oriented"},{"$nulls":6},{"$f":"Translations!$B$611","v":"Iron or steel products"}]
[{"$nulls":4},"7225 30",{"$f":"Translations!$B$1083","v":"Flat-rolled products of alloy steel other than stainless, of a width of >= 600 mm, not further worked than hot-rolled, in coils (excl. products of silicon-electrical steel)"},{"$nulls":6},{"$f":"Translations!$B$611","v":"Iron or steel products"}]
[{"$nulls":4},"7225 30 10",{"$f":"Translations!$B$1084","v":"Flat-rolled products of tool steel, of a width of >= 600 mm, not further worked than hot-rolled, in coils"},{"$nulls":6},{"$f":"Translations!$B$611","v":"Iron or steel products"}]
[{"$nulls":4},"7225 30 30",{"$f":"Translations!$B$1085","v":"Flat-rolled products of high-speed steel, of a width of >= 600 mm, not further worked than hot-rolled, in coils"},{"$nulls":6},{"$f":"Translations!$B$611","v":"Iron or steel products"}]
[{"$nulls":4},"7225 30 90",{"$f":"Translations!$B$1086","v":"Flat-rolled products of alloy steel other than stainless, of a width of >= 600 mm, not further worked than hot-rolled, in coils (excl. products of tool steel, high-speed steel or silicon-electrical steel)"},{"$nulls":6},{"$f":"Translations!$B$611","v":"Iron or steel products"}]
[{"$nulls":4},"7225 40",{"$f":"Translations!$B$1087","v":"Flat-rolled products of alloy steel other than stainless, of a width of >= 600 mm, not further worked than hot-rolled, not in coils (excl. products of silicon-electrical steel)"},{"$nulls":6},{"$f":"Translations!$B$611","v":"Iron or steel products"}]
[{"$nulls":4},"7225 40 12",{"$f":"Translations!$B$1088","v":"Flat-rolled products of tool steel, of a width of >= 600 mm, not further worked than hot-rolled, not in coils"},{"$nulls":6},{"$f":"Translations!$B$611","v":"Iron or steel products"}]
[{"$nulls":4},"7225 40 15",{"$f":"Translations!$B$1089","v":"Flat-rolled products of high-speed steel, of a width of >= 600 mm, not further worked than hot-rolled, not in coils"},{"$nulls":6},{"$f":"Translations!$B$611","v":"Iron or steel products"}]
[{"$nulls":4},"7225 40 40",{"$f":"Translations!$B$1090","v":"Flat-rolled products of alloy steel other than stainless, of a width of >= 600 mm, not further worked than hot-rolled, not in coils, of a thickness of > 10 mm (excl. products of tool steel, high-speed steel or silicon-electrical steel)"},{"$nulls":6},{"$f":"Translations!$B$611","v":"Iron or steel products"}]
[{"$nulls":4},"7225 40 60",{"$f":"Translations!$B$1091","v":"Flat-rolled products of alloy steel other than stainless, of a width of >= 600 mm, not further worked than hot-rolled, not in coils, of a thickness of >= 4,75 mm but <= 10 mm (excl. products of tool steel, high-speed steel or silicon-electrical steel)"},{"$nulls":6},{"$f":"Translations!$B$611","v":"Iron or steel products"}]
[{"$nulls":4},"7225 40 90",{"$f":"Translations!$B$1092","v":"Flat-rolled products of alloy steel other than stainless, of a width of >= 600 mm, not further worked than hot-rolled, not in coils, of a thickness of < 4,75 mm (excl. products of tool steel, high-speed steel or silicon-electrical steel)"},{"$nulls":6},{"$f":"Translations!$B$611","v":"Iron or steel products"}]
[{"$nulls":4},"7225 50",{"$f":"Translations!$B$1093","v":"Flat-rolled products of alloy steel other than stainless, of a width of >= 600 mm, not further worked than cold-rolled \"cold-reduced\" (excl. products of silicon-electrical steel)"},{"$nulls":6},{"$f":"Translations!$B$611","v":"Iron or steel products"}]
[{"$nulls":4},"7225 50 20",{"$f":"Translations!$B$1094","v":"Flat-rolled products of high-speed steel, of a width of >= 600 mm, not further worked than cold-rolled \"cold-reduced\""},{"$nulls":6},{"$f":"Translations!$B$611","v":"Iron or steel products"}]
[{"$nulls":4},"7225 50 80",{"$f":"Translations!$B$1095","v":"Flat-rolled products of alloy steel other than stainless, of a width of >= 600 mm, not further worked than cold-rolled \"cold-reduced\" (excl. products of high-speed steel or silicon-electrical steel)"},{"$nulls":6},{"$f":"Translations!$B$611","v":"Iron or steel products"}]
[{"$nulls":4},"7225 91 00",{"$f":"Translations!$B$1096","v":"Flat-rolled products of alloy steel other than stainless, of a width of >= 600 mm, hot-rolled or cold-rolled \"cold-reduced\" and electrolytically plated or coated with zinc (excl. products of silicon-electrical steel)"},{"$nulls":6},{"$f":"Translations!$B$611","v":"Iron or steel products"}]
[{"$nulls":4},"7225 92 00",{"$f":"Translations!$B$1097","v":"Flat-rolled products of alloy steel other than stainless, of a width of >= 600 mm, hot-rolled or cold-rolled \"cold-reduced\" and plated or coated with zinc (excl. electrolytically plated or coated and products of silicon-electrical steel)"},{"$nulls":6},{"$f":"Translations!$B$611","v":"Iron or steel products"}]
[{"$nulls":4},"7225 99 00",{"$f":"Translations!$B$1098","v":"Flat-rolled products of alloy steel other than stainless, of a width of >= 600 mm, hot-rolled or cold-rolled \"cold-reduced\" and further worked (excl. plated or coated with zinc and products of silicon-electrical steel)"},{"$nulls":6},{"$f":"Translations!$B$611","v":"Iron or steel products"}]
[{"$nulls":4},"7226",{"$f":"Translations!$B$1099","v":"Flat-rolled products of alloy steel other than stainless, of a width of < 600 mm, hot-rolled or cold-rolled \"cold-reduced\""},{"$nulls":6},{"$f":"Translations!$B$611","v":"Iron or steel products"}]
[{"$nulls":4},"7226 11 00",{"$f":"Translations!$B$1100","v":"Flat-rolled products of silicon-electrical steel, of a width of < 600 mm, hot-rolled or cold-rolled \"cold-reduced\", grain-oriented"},{"$nulls":6},{"$f":"Translations!$B$611","v":"Iron or steel products"}]
[{"$nulls":4},"7226 19",{"$f":"Translations!$B$1101","v":"Flat-rolled products of silicon-electrical steel, of a width of < 600 mm, hot-rolled or cold-rolled \"cold-reduced\", not grain-oriented"},{"$nulls":6},{"$f":"Translations!$B$611","v":"Iron or steel products"}]
[{"$nulls":4},"7226 19 10",{"$f":"Translations!$B$1102","v":"Flat-rolled products of silicon-electrical steel, of a width of < 600 mm, not further worked than hot-rolled"},{"$nulls":6},{"$f":"Translations!$B$611","v":"Iron or steel products"}]
[{"$nulls":4},"7226 19 80",{"$f":"Translations!$B$1103","v":"Flat-rolled products of silicon-electrical steel, of a width of < 600 mm, cold-rolled \"cold-reduced\", whether or not further worked, or hot-rolled and further worked, non-grain-oriented"},{"$nulls":6},{"$f":"Translations!$B$611","v":"Iron or steel products"}]
[{"$nulls":4},"7226 20 00",{"$f":"Translations!$B$1104","v":"Flat-rolled products of high-speed steel, of a width of <= 600 mm, hot-rolled or cold-rolled \"cold-reduced\""},{"$nulls":6},{"$f":"Translations!$B$611","v":"Iron or steel products"}]
[{"$nulls":4},"7226 91",{"$f":"Translations!$B$1105","v":"Flat-rolled products of alloy steel other than stainless, of a width of < 600 mm, not further worked than hot-rolled (excl. products of high-speed steel or silicon-electrical steel)"},{"$nulls":6},{"$f":"Translations!$B$611","v":"Iron or steel products"}]
[{"$nulls":4},"7226 91 20",{"$f":"Translations!$B$1106","v":"Flat-rolled products of tool steel, of a width of < 600 mm, simply hot-rolled"},{"$nulls":6},{"$f":"Translations!$B$611","v":"Iron or steel products"}]
[{"$nulls":4},"7226 91 91",{"$f":"Translations!$B$1107","v":"Flat-rolled products of alloy steel other than stainless steel, simply hot-rolled, of a thickness of >= 4,75 mm, of a width of < 600 mm (excl. of tool steel, silicon-electrical steel or high speed steel)"},{"$nulls":6},{"$f":"Translations!$B$611","v":"Iron or steel products"}]
[{"$nulls":4},"7226 91 99",{"$f":"Translations!$B$1108","v":"Flat-rolled products of alloy steel other than stainless steel, simply hot-rolled, of a thickness of < 4,75 mm, of a width of < 600 mm (excl. of tool steel, silicon-electrical steel or high speed steel)"},{"$nulls":6},{"$f":"Translations!$B$611","v":"Iron or steel products"}]
[{"$nulls":4},"7226 92 00",{"$f":"Translations!$B$1109","v":"Flat-rolled products of alloy steel other than stainless, of a width of < 600 mm, not further worked than cold-rolled \"cold-reduced\" (excl. products of high-speed steel or silicon-electrical steel)"},{"$nulls":6},{"$f":"Translations!$B$611","v":"Iron or steel products"}]
[{"$nulls":4},"7226 99",{"$f":"Translations!$B$1110","v":"Flat-rolled products of alloy steel other than stainless, of a width of < 600 mm, hot-rolled or cold-rolled \"cold-reduced\" and further worked (excl. products of high-speed steel or silicon-electrical steel)"},{"$nulls":6},{"$f":"Translations!$B$611","v":"Iron or steel products"}]
[{"$nulls":4},"7226 99 10",{"$f":"Translations!$B$1111","v":"Flat-rolled products of alloy steel other than stainless, of a width of < 600 mm, hot-rolled or cold-rolled \"cold-reduced\" and electrolytically plated or coated with zinc (excl. products of high-speed steel or silicon-electrical steel)"},{"$nulls":6},{"$f":"Translations!$B$611","v":"Iron or steel products"}]
[{"$nulls":4},"7226 99 30",{"$f":"Translations!$B$1112","v":"Flat-rolled products of alloy steel other than stainless, of a width of < 600 mm, hot-rolled or cold-rolled \"cold-reduced\" and plated or coated with zinc (excl. electrolytically plated or coated, and products of high-speed steel or silicon-electrical steel)"},{"$nulls":6},{"$f":"Translations!$B$611","v":"Iron or steel products"}]
[{"$nulls":4},"7226 99 70",{"$f":"Translations!$B$1113","v":"Flat-rolled products of alloy steel other than stainless, of a width of < 600 mm, hot-rolled or cold-rolled \"cold-reduced\" and further worked (excl. plated or coated with zinc, and products of high-speed steel or silicon-electrical steel)"},{"$nulls":6},{"$f":"Translations!$B$611","v":"Iron or steel products"}]
[{"$nulls":4},"7227",{"$f":"Translations!$B$1114","v":"Bars and rods of alloy steel other than stainless, hot-rolled, in irregularly wound coils"},{"$nulls":6},{"$f":"Translations!$B$611","v":"Iron or steel products"}]
[{"$nulls":4},"7227 10 00",{"$f":"Translations!$B$1115","v":"Bars and rods of high-speed steel, hot-rolled, in irregularly wound coils"},{"$nulls":6},{"$f":"Translations!$B$611","v":"Iron or steel products"}]
[{"$nulls":4},"7227 20 00",{"$f":"Translations!$B$1116","v":"Bars and rods of silico-manganese steel, hot-rolled, in irregularly wound coils"},{"$nulls":6},{"$f":"Translations!$B$611","v":"Iron or steel products"}]
[{"$nulls":4},"7227 90",{"$f":"Translations!$B$1117","v":"Bars and rods of alloy steel other than stainless, hot-rolled, in irregularly wound coils (excl. products of high-speed steel or silicon-electrical steel)"},{"$nulls":6},{"$f":"Translations!$B$611","v":"Iron or steel products"}]
[{"$nulls":4},"7227 90 10",{"$f":"Translations!$B$1118","v":"Bars and rods, hot-rolled, of steel containing by weight >= 0,0008% of boron with any other element < the minimum content referred to in Note 1 f to this chapter, in irregularly wound coils"},{"$nulls":6},{"$f":"Translations!$B$611","v":"Iron or steel products"}]
[{"$nulls":4},"7227 90 50",{"$f":"Translations!$B$1119","v":"Bars and rods, hot-rolled, of steel containing by weight 0,9% to 1,15% carbon, 0,5% to 2% of chromium and, if present, <= 0,5 of molybdenum, in irregularly wound coils"},{"$nulls":6},{"$f":"Translations!$B$611","v":"Iron or steel products"}]
[{"$nulls":4},"7227 90 95",{"$f":"Translations!$B$1120","v":"Bars and rods, hot-rolled, in irregularly wound coils of alloy steel other than stainless (excl. of high-speed steel or silico-manganese steel and bars and rods of subheadings 7227.90.10 and 7227.90.50)"},{"$nulls":6},{"$f":"Translations!$B$611","v":"Iron or steel products"}]
[{"$nulls":4},"7228",{"$f":"Translations!$B$1121","v":"Other bars and rods of alloy steel other than stainless, angles, shapes and sections of alloy steel other than stainless, n.e.s.; hollow drill bars and rods, of alloy or non-alloy steel"},{"$nulls":6},{"$f":"Translations!$B$611","v":"Iron or steel products"}]
[{"$nulls":4},"7228 10",{"$f":"Translations!$B$1122","v":"Bars and rods of high-speed steel (excl. semi-finished products, flat-rolled products and hot-rolled bars and rods in irregularly wound coils)"},{"$nulls":6},{"$f":"Translations!$B$611","v":"Iron or steel products"}]
[{"$nulls":4},"7228 10 20",{"$f":"Translations!$B$1123","v":"Bars and rods of high-speed steel, not further worked than hot-rolled, hot-drawn or extruded, and hot-rolled, hot-drawn or extruded, not further worked than clad (excl. semi-finished products, flat-rolled products and hot-rolled bars and rods in irregularly wound coils)"},{"$nulls":6},{"$f":"Translations!$B$611","v":"Iron or steel products"}]
[{"$nulls":4},"7228 10 50",{"$f":"Translations!$B$1124","v":"Bars and rods of high-speed steel, forged (excl. semi-finished products, flat-rolled products and hot-rolled bars and rods in irregularly wound coils)"},{"$nulls":6},{"$f":"Translations!$B$611","v":"Iron or steel products"}]
[{"$nulls":4},"7228 10 90",{"$f":"Translations!$B$1125","v":"Bars and rods of high-speed steel, not further worked than cold-formed or cold-finished, whether or not further worked, or hot-formed and further worked (excl. forged products, semi-finished products, flat-rolled products and hot-rolled bars and rods in irregularly wound coils)"},{"$nulls":6},{"$f":"Translations!$B$611","v":"Iron or steel products"}]
[{"$nulls":4},"7228 20",{"$f":"Translations!$B$1126","v":"Bars and rods of silico-manganese steel (excl. semi-finished products, flat-rolled products and hot-rolled bars and rods in irregularly wound coils)"},{"$nulls":6},{"$f":"Translations!$B$611","v":"Iron or steel products"}]
[{"$nulls":4},"7228 20 10",{"$f":"Translations!$B$1127","v":"Bars and rods of silico-manganese steel, of rectangular \"other than square\" cross-section, hot-rolled on four faces (excl. semi-finished products, flat-rolled products and hot-rolled bars and rods in irregularly wound coils)"},{"$nulls":6},{"$f":"Translations!$B$611","v":"Iron or steel products"}]
[{"$nulls":4},"7228 20 91",{"$f":"Translations!$B$1128","v":"Bars and rods of silico-manganese steel, of square or other than rectangular cross-section, not further worked than hot-rolled, hot-drawn or extruded, and hot-rolled, hot-drawn or extruded, not further worked than clad (excl. semi-finished products, flat-rolled products and hot-rolled bars and rods in irregularly wound coils)"},{"$nulls":6},{"$f":"Translations!$B$611","v":"Iron or steel products"}]
[{"$nulls":4},"7228 20 99",{"$f":"Translations!$B$1129","v":"Bars and rods of silico-manganese stee, of square or other than rectangular cross-section, only cold-formed or cold-finished, incl. further worked, or hot-rolled and further worked (excl. hot-rolled, hot drawn or extruded, not further worked than clad, semi-finished products, flat-rolled products and hot-rolled bars and rods in irregularly wound coils)"},{"$nulls":6},{"$f":"Translations!$B$611","v":"Iron or steel products"}]
[{"$nulls":4},"7228 30",{"$f":"Translations!$B$1130","v":"Bars and rods of alloy steel other than stainless, not further worked than hot-rolled, hot-drawn or extruded (excl. products of high-speed steel or silico-manganese steel, semi-finished products, flat-rolled products and hot-rolled bars and rods in irregularly wound coils)"},{"$nulls":6},{"$f":"Translations!$B$611","v":"Iron or steel products"}]
[{"$nulls":4},"7228 30 20",{"$f":"Translations!$B$1131","v":"Bars and rods of tool steel, only hot-rolled, only hot-drawn or only extruded (excl. semi-finished products, flat-rolled products and hot-rolled bars and rods in irregularly wound coils)"},{"$nulls":6},{"$f":"Translations!$B$611","v":"Iron or steel products"}]
[{"$nulls":4},"7228 30 41",{"$f":"Translations!$B$1132","v":"Bars and rods of steel containing by weight 0,9 to 1,15% of carbon and 0,5 to 2% of chromium, and, if present, <= 0,5% of molybdenum, only hot-rolled, hot-drawn or hot-extruded, of a circular cross-section of a diameter of >= 80 mm (excl. semi-finished products, flat-rolled products and hot-rolled bars and rods in irregularly wound coils)"},{"$nulls":6},{"$f":"Translations!$B$611","v":"Iron or steel products"}]
[{"$nulls":4},"7228 30 49",{"$f":"Translations!$B$1133","v":"Bars and rods of steel containing by weight 0,9 to 1,15% of carbon and 0,5 to 2% of chromium, and, if present, <= 0,5% of molybdenum, only hot-rolled, only hot-drawn or hot-extruded (other than of circular cross-section, of a diameter of >= 80 mm and excl. semi-finished products, flat-rolled products and hot-rolled bars and rods in irregularly wound coils)"},{"$nulls":6},{"$f":"Translations!$B$611","v":"Iron or steel products"}]
[{"$nulls":4},"7228 30 61",{"$f":"Translations!$B$1134","v":"Bars and rods of alloy steel other than stainless steel, only hot-rolled, hot-drawn or hot-extruded, of circular cross-section, of a diameter of >= 80 mm (other than of high-speed steel, silico-manganese steel, tool steel, articles of subheading 7228.30.41 and excl. semi-finished products, flat-rolled products and hot-rolled bars and rods in irregularly wound coils)"},{"$nulls":6},{"$f":"Translations!$B$611","v":"Iron or steel products"}]
[{"$nulls":4},"7228 30 69",{"$f":"Translations!$B$1135","v":"Bars and rods or alloy steel other than stainless steel, only hot-rolled, hot-drawn or hot-extruded, of circular cross-section, of a diameter of < 80 mm (other than of high-speed steel, silico-manganese steel, tool steel and articles of subheading 7228.30.49 and excl. semi-finished products, flat-rolled products and hot-rolled bars and rods in irregularly wound coils)"},{"$nulls":6},{"$f":"Translations!$B$611","v":"Iron or steel products"}]
[{"$nulls":4},"7228 30 70",{"$f":"Translations!$B$1136","v":"Bars and rods of alloy steel other than stainless steel, of rectangular \"other than square\" cross-section, hot-rolled on four faces (other than of high-speed steel, silico-manganese steel, tool steel, articles of subheading 7228.30.41 and 7228.30.49 and excl. semi-finished products, flat-rolled products and hot-rolled bars and rods in irregularly wound coils)"},{"$nulls":6},{"$f":"Translations!$B$611","v":"Iron or steel products"}]
[{"$nulls":4},"7228 30 89",{"$f":"Translations!$B$1137","v":"Bars and rods of alloy steel other than stainless steel, only hot-rolled, hot-drawn or hot-extruded, of other than rectangular [other than square] cross-section, rolled on four faces, or of circular cross-section (other than of high-speed steel, silico-manganese steel, tool steel, articles of subheading 7228.30.49 and excl. semi-finished products, flat-rolled products and hot-rolled bars and rods in irregularly wound coils)"},{"$nulls":6},{"$f":"Translations!$B$611","v":"Iron or steel products"}]
[{"$nulls":4},"7228 40",{"$f":"Translations!$B$1138","v":"Bars and rods of alloy steel other than stainless, not further worked than forged (excl. products of high-speed steel or silico-manganese steel, semi-finished products, flat-rolled products and hot-rolled bars and rods in irregularly wound coils)"},{"$nulls":6},{"$f":"Translations!$B$611","v":"Iron or steel products"}]
[{"$nulls":4},"7228 40 10",{"$f":"Translations!$B$1139","v":"Bars and rods of tool steel, only forged (excl. semi-finished products, flat-rolled products and hot-rolled bars and rods in irregularly wound coils)"},{"$nulls":6},{"$f":"Translations!$B$611","v":"Iron or steel products"}]
[{"$nulls":4},"7228 40 90",{"$f":"Translations!$B$1140","v":"Bars and rods of alloy steel, other than stainless steel, only forged (excl. of high-speed steel, silico-manganese steel, tool steel, semi-finished products, flat-rolled products and hot-rolled bars and rods in irregularly wound coils)"},{"$nulls":6},{"$f":"Translations!$B$611","v":"Iron or steel products"}]
[{"$nulls":4},"7228 50",{"$f":"Translations!$B$1141","v":"Bars and rods of alloy steel other than stainless, not further worked than cold-formed or cold-finished (excl. products of high-speed steel or silico-manganese steel, semi-finished products, flat-rolled products and hot-rolled bars and rods in irregularly wound coils)"},{"$nulls":6},{"$f":"Translations!$B$611","v":"Iron or steel products"}]
[{"$nulls":4},"7228 50 20",{"$f":"Translations!$B$1142","v":"Bars and rods of tool steel, only cold-formed or cold-finished (excl. semi-finished products, flat-rolled products and hot-rolled bars and rods in irregularly wound coils)"},{"$nulls":6},{"$f":"Translations!$B$611","v":"Iron or steel products"}]
[{"$nulls":4},"7228 50 40",{"$f":"Translations!$B$1143","v":"Bars and rods of steel containing 0,9% to 1,15% of carbon, 0,5% to 2% of chromium and, if present <= 0,5% of molybdenum, only cold-formed or cold-finished (excl. semi-finished products, flat-rolled products and hot-rolled bars and rods in irregularly wound coils)"},{"$nulls":6},{"$f":"Translations!$B$611","v":"Iron or steel products"}]
[{"$nulls":4},"7228 50 61",{"$f":"Translations!$B$1144","v":"Bars and rods of alloy steel, other than stainless steel, not further worked than cold-formed or cold-finished, of circular cross-section, of a diameter of >= 80 mm (excl. of high-speed steel, silico-manganese steel, tool steel, articles of subheading 7228.50.40, semi-finished products, flat-rolled products and hot-rolled bars and rods in irregularly wound coils)"},{"$nulls":6},{"$f":"Translations!$B$611","v":"Iron or steel products"}]
[{"$nulls":4},"7228 50 69",{"$f":"Translations!$B$1145","v":"Bars and rods of alloy steel, other than stainless steel, not further worked than cold-formed or cold-finished, of circular cross-section, of a diameter of < 80 mm (excl. of high-speed steel, silico-manganese steel, tool steel, articles of subheading 7228.50.40, semi-finished products, flat-rolled products and hot-rolled bars and rods in irregularly wound coils)"},{"$nulls":6},{"$f":"Translations!$B$611","v":"Iron or steel products"}]
[{"$nulls":4},"7228 50 80",{"$f":"Translations!$B$1146","v":"Bars and rods of alloy steel, other than stainless steel, not further worked than cold-formed or cold-finished (excl. of circular cross-section and products of high-speed steel, silico-manganese steel, tool steel, articles of subheading 7228.50.40, semi-finished products, flat-rolled products and hot-rolled bars and rods in irregularly wound coils)"},{"$nulls":6},{"$f":"Translations!$B$611","v":"Iron or steel products"}]
[{"$nulls":4},"7228 60",{"$f":"Translations!$B$1147","v":"Bars and rods of alloy steel other than stainless, cold-formed or cold-finished and further worked or hot-formed and further worked, n.e.s. (excl. products of high-speed steel or silico-manganese steel, semi-finished products, flat-rolled products and hot-rolled bars and rods in irregularly wound coils)"},{"$nulls":6},{"$f":"Translations!$B$611","v":"Iron or steel products"}]
[{"$nulls":4},"7228 60 20",{"$f":"Translations!$B$1148","v":"Bars and rods of tool steel, cold-formed or cold-finished and further worked or hot-formed and further worked (excl. semi-finished products, flat-rolled products and hot-rolled bars and rods in irregularly wound coils)"},{"$nulls":6},{"$f":"Translations!$B$611","v":"Iron or steel products"}]
[{"$nulls":4},"7228 60 80",{"$f":"Translations!$B$1149","v":"Bars and rods of alloy steel, other than stainless steel, cold-formed or cold-finished and further worked or hot-formed and further worked (excl. bars and rods of high-speed steel, silico-manganese steel or tool steel, semi-finished products, flat-rolled products and hot-rolled bars and rods in irregularly wound coils)"},{"$nulls":6},{"$f":"Translations!$B$611","v":"Iron or steel products"}]
[{"$nulls":4},"7228 70",{"$f":"Translations!$B$1150","v":"Angles, shapes and sections of alloy steel other than stainless, n.e.s."},{"$nulls":6},{"$f":"Translations!$B$611","v":"Iron or steel products"}]
[{"$nulls":4},"7228 70 10",{"$f":"Translations!$B$1151","v":"Angles, shapes and sections of alloy steel other than stainless, not further worked than hot-rolled, hot-drawn or extruded"},{"$nulls":6},{"$f":"Translations!$B$611","v":"Iron or steel products"}]
[{"$nulls":4},"7228 70 90",{"$f":"Translations!$B$1152","v":"Angles, shapes and sections of alloy steel other than stainless, n.e.s. (excl. products not further worked than hot-rolled, hot-drawn or extruded)"},{"$nulls":6},{"$f":"Translations!$B$611","v":"Iron or steel products"}]
[{"$nulls":4},"7228 80 00",{"$f":"Translations!$B$1153","v":"Hollow drill bars and rods, of alloy or non-alloy steel"},{"$nulls":6},{"$f":"Translations!$B$611","v":"Iron or steel products"}]
[{"$nulls":4},"7229",{"$f":"Translations!$B$1154","v":"Wire of alloy steel other than stainless, in coils (excl. bars and rods)"},{"$nulls":6},{"$f":"Translations!$B$611","v":"Iron or steel products"}]
[{"$nulls":4},"7229 20 00",{"$f":"Translations!$B$1155","v":"Wire of silico-manganese steel, in coils (excl. bars and rods)"},{"$nulls":6},{"$f":"Translations!$B$611","v":"Iron or steel products"}]
[{"$nulls":4},"7229 90",{"$f":"Translations!$B$1156","v":"Wire of alloy steel other than stainless, in coils (excl. bars and rods and wire of silico-manganese steel)"},{"$nulls":6},{"$f":"Translations!$B$611","v":"Iron or steel products"}]
[{"$nulls":4},"7229 90 20",{"$f":"Translations!$B$1157","v":"Wire of high-speed steel, in coils (excl. bars and rods)"},{"$nulls":6},{"$f":"Translations!$B$611","v":"Iron or steel products"}]
[{"$nulls":4},"7229 90 50",{"$f":"Translations!$B$1158","v":"Wire of steel containing by weight 0,9% to 1,1% of carbon, 0,5% to 2% of chromium and, if present, <= 0,5% of molybdenum, in coils (excl. rolled bars and rods)"},{"$nulls":6},{"$f":"Translations!$B$611","v":"Iron or steel products"}]
[{"$nulls":4},"7229 90 90",{"$f":"Translations!$B$1159","v":"Wire of alloy steel other than stainless, in coils (excl. rolled bars and rods, wire of high-speed steel or silico-manganese steel and articles of subheading 7229.90.50)"},{"$nulls":6},{"$f":"Translations!$B$611","v":"Iron or steel products"}]
[{"$nulls":4},"7301",{"$f":"Translations!$B$1160","v":"Sheet piling of iron or steel, whether or not drilled, punched or made from assembled elements; welded angles, shapes and sections, of iron or steel"},{"$nulls":6},{"$f":"Translations!$B$611","v":"Iron or steel products"}]
[{"$nulls":4},"7301 10 00",{"$f":"Translations!$B$1161","v":"Sheet piling of iron or steel, whether or not drilled, punched or made from assembled elements"},{"$nulls":6},{"$f":"Translations!$B$611","v":"Iron or steel products"}]
[{"$nulls":4},"7301 20 00",{"$f":"Translations!$B$1162","v":"Angles, shapes and sections, of iron or steel, welded"},{"$nulls":6},{"$f":"Translations!$B$611","v":"Iron or steel products"}]
[{"$nulls":4},"7302",{"$f":"Translations!$B$1163","v":"Railway or tramway track construction material of iron or steel, the following : rails, check-rails and rack rails, switch blades, crossing frogs, point rods and other crossing pieces, sleepers \"cross-ties\", fish-plates, chairs, chair wedges, sole plates \"base plates\", rail clips, bedplates, ties and other material specialised for jointing or fixing rails"},{"$nulls":6},{"$f":"Translations!$B$611","v":"Iron or steel products"}]
[{"$nulls":4},"7302 10",{"$f":"Translations!$B$1164","v":"Rails of iron or steel, for railway or tramway track (excl. check-rails)"},{"$nulls":6},{"$f":"Translations!$B$611","v":"Iron or steel products"}]
[{"$nulls":4},"7302 10 10",{"$f":"Translations!$B$1165","v":"Current-conducting rails of iron or steel, with parts of non-ferrous metal, for railway or tramway track (excl. check-rails)"},{"$nulls":6},{"$f":"Translations!$B$611","v":"Iron or steel products"}]
[{"$nulls":4},"7302 10 22",{"$f":"Translations!$B$1166","v":"Vignole rails of iron or steel, for railway or tramway track, new, of a weight of >= 36 kg/m"},{"$nulls":6},{"$f":"Translations!$B$611","v":"Iron or steel products"}]
[{"$nulls":4},"7302 10 28",{"$f":"Translations!$B$1167","v":"Vignole rails of iron or steel, for railway or tramway track, new, of a weight of < 36 kg/m"},{"$nulls":6},{"$f":"Translations!$B$611","v":"Iron or steel products"}]
[{"$nulls":4},"7302 10 40",{"$f":"Translations!$B$1168","v":"Grooved rails of iron or steel, for railway or tramway track, new"},{"$nulls":6},{"$f":"Translations!$B$611","v":"Iron or steel products"}]
[{"$nulls":4},"7302 10 50",{"$f":"Translations!$B$1169","v":"Rails of iron or steel, for railway or tramway track, new (excl. vignole rails, grooved rails, and current-conducting rails with parts of non-ferrous metal)"},{"$nulls":6},{"$f":"Translations!$B$611","v":"Iron or steel products"}]
[{"$nulls":4},"7302 10 90",{"$f":"Translations!$B$1170","v":"Rails of iron or steel, for railway or tramway track, used (excl. current-conducting rails with parts of non-ferrous metal)"},{"$nulls":6},{"$f":"Translations!$B$611","v":"Iron or steel products"}]
[{"$nulls":4},"7302 30 00",{"$f":"Translations!$B$1171","v":"Switch blades, crossing frogs, point rods and other crossing pieces, for railway or tramway track, of iron or steel"},{"$nulls":6},{"$f":"Translations!$B$611","v":"Iron or steel products"}]
[{"$nulls":4},"7302 40 00",{"$f":"Translations!$B$1172","v":"Fish-plates and sole plates of iron or steel, for railways or tramways"},{"$nulls":6},{"$f":"Translations!$B$611","v":"Iron or steel products"}]
[{"$nulls":4},"7302 90 00",{"$f":"Translations!$B$1173","v":"Sleepers \"cross-ties\", check-rails, rack rails, chairs, chair wedges, rail clips, bedplates and ties and other specialised material for the jointing or fixing of railway or tramway track, of iron or steel (excl. rails, switch blades, crossing frogs, point rods and other crossing pieces, and fish-plates and sole plates)"},{"$nulls":6},{"$f":"Translations!$B$611","v":"Iron or steel products"}]
[{"$nulls":4},"7303 00",{"$f":"Translations!$B$1174","v":"Tubes, pipes and hollow profiles, of cast iron"},{"$nulls":6},{"$f":"Translations!$B$611","v":"Iron or steel products"}]
[{"$nulls":4},"7303 00 10",{"$f":"Translations!$B$1175","v":"Tubes and pipes of a kind used in pressure systems, of cast iron"},{"$nulls":6},{"$f":"Translations!$B$611","v":"Iron or steel products"}]
[{"$nulls":4},"7303 00 90",{"$f":"Translations!$B$1176","v":"Tubes, pipes and hollow profiles, of cast iron (excl. products of a kind used in pressure systems)"},{"$nulls":6},{"$f":"Translations!$B$611","v":"Iron or steel products"}]
[{"$nulls":4},"7304",{"$f":"Translations!$B$1177","v":"Tubes, pipes and hollow profiles, seamless, of iron or steel (excl. products of cast iron)"},{"$nulls":6},{"$f":"Translations!$B$611","v":"Iron or steel products"}]
[{"$nulls":4},"7304 11 00",{"$f":"Translations!$B$1178","v":"Line pipe of a kind used for oil or gas pipelines, seamless, of stainless steel"},{"$nulls":6},{"$f":"Translations!$B$611","v":"Iron or steel products"}]
[{"$nulls":4},"7304 19",{"$f":"Translations!$B$1179","v":"Line pipe of a kind used for oil or gas pipelines, seamless, of iron or steel (excl. products of stainless steel or of cast iron)"},{"$nulls":6},{"$f":"Translations!$B$611","v":"Iron or steel products"}]
[{"$nulls":4},"7304 19 10",{"$f":"Translations!$B$1180","v":"Line pipe of a kind used for oil or gas pipelines, seamless, of iron or steel, of an external diameter of <= 168,3 mm (excl. products of stainless steel or of cast iron)"},{"$nulls":6},{"$f":"Translations!$B$611","v":"Iron or steel products"}]
[{"$nulls":4},"7304 19 30",{"$f":"Translations!$B$1181","v":"Line pipe of a kind used for oil or gas pipelines, seamless, of iron or steel, of an external diameter of > 168,3 mm but <= 406,4 mm (excl. products of stainless steel or of cast iron)"},{"$nulls":6},{"$f":"Translations!$B$611","v":"Iron or steel products"}]
[{"$nulls":4},"7304 19 90",{"$f":"Translations!$B$1182","v":"Line pipe of a kind used for oil or gas pipelines, seamless, of iron or steel, of an external diameter of > 406,4 mm (excl. products of stainless steel or of cast iron)"},{"$nulls":6},{"$f":"Translations!$B$611","v":"Iron or steel products"}]
[{"$nulls":4},"7304 22 00",{"$f":"Translations!$B$1183","v":"Drill pipe, seamless, of stainless steel, of a kind used in drilling for oil or gas"},{"$nulls":6},{"$f":"Translations!$B$611","v":"Iron or steel products"}]
[{"$nulls":4},"7304 23 00",{"$f":"Translations!$B$1184","v":"Drill pipe, seamless, of a kind used in drilling for oil or gas, of iron or steel (excl. products of stainless steel or of cast iron)"},{"$nulls":6},{"$f":"Translations!$B$611","v":"Iron or steel products"}]
[{"$nulls":4},"7304 24 00",{"$f":"Translations!$B$1185","v":"Casing and tubing, seamless, of a kind used for drilling for oil or gas, of stainless steel"},{"$nulls":6},{"$f":"Translations!$B$611","v":"Iron or steel products"}]
[{"$nulls":4},"7304 29",{"$f":"Translations!$B$1186","v":"Casing and tubing, seamless, of iron or steel, of a kind used in drilling for oil or gas (excl. products of cast iron)"},{"$nulls":6},{"$f":"Translations!$B$611","v":"Iron or steel products"}]
[{"$nulls":4},"7304 29 10",{"$f":"Translations!$B$1187","v":"Casing and tubing of a kind used for drilling for oil or gas, seamless, of iron or steel, of an external diameter <= 168,3 mm (excl. products of cast iron)"},{"$nulls":6},{"$f":"Translations!$B$611","v":"Iron or steel products"}]
[{"$nulls":4},"7304 29 30",{"$f":"Translations!$B$1188","v":"Casing and tubing of a kind used for drilling for oil or gas, seamless, of iron or steel, of an external diameter > 168,3 mm, but <= 406,4 mm (excl. products of cast iron)"},{"$nulls":6},{"$f":"Translations!$B$611","v":"Iron or steel products"}]
[{"$nulls":4},"7304 29 90",{"$f":"Translations!$B$1189","v":"Casing and tubing of a kind used for drilling for oil or gas, seamless, of iron or steel, of an external diameter > 406,4 mm (excl. products of cast iron)"},{"$nulls":6},{"$f":"Translations!$B$611","v":"Iron or steel products"}]
[{"$nulls":4},"7304 31",{"$f":"Translations!$B$1190","v":"Tubes, pipes and hollow profiles, seamless, of circular cross-section, of iron or non-alloy steel, cold-drawn or cold-rolled \"cold-reduced\" (excl. cast iron products and line pipe of a kind used for oil or gas pipelines or casing and tubing of a kind used for drilling for oil or gas)"},{"$nulls":6},{"$f":"Translations!$B$611","v":"Iron or steel products"}]
[{"$nulls":4},"7304 31 20",{"$f":"Translations!$B$1191","v":"Precision tubes, seamless, of circular cross-section, of iron or non-alloy steel, cold-drawn or cold-rolled \"cold-reduced\" (excl. line pipe of a kind used for oil or gas pipelines or casing and tubing of a kind used for drilling for oil or gas)"},{"$nulls":6},{"$f":"Translations!$B$611","v":"Iron or steel products"}]
[{"$nulls":4},"7304 31 80",{"$f":"Translations!$B$1192","v":"Tubes, pipes and hollow profiles, seamless, of circular cross-section, of iron or non-alloy steel, cold-drawn or cold-rolled \"cold-reduced\" (excl. cast iron products, line pipe of a kind used for oil or gas pipelines, casing and tubing of a kind used for drilling for oil or gas and precision tubes)"},{"$nulls":6},{"$f":"Translations!$B$611","v":"Iron or steel products"}]
[{"$nulls":4},"7304 39",{"$f":"Translations!$B$1193","v":"Tubes, pipes and hollow profiles, seamless, of circular cross-section, of iron or non-alloy steel, not cold-drawn or cold-rolled \"cold-reduced\" (excl. cast iron products, line pipe of a kind used for oil or gas pipelines, casing and tubing of a kind used for drilling for oil or gas)"},{"$nulls":6},{"$f":"Translations!$B$611","v":"Iron or steel products"}]
[{"$nulls":4},"7304 39 50",{"$f":"Translations!$B$1194","v":"Threaded or threadable tubes \"gas pipe\", seamless, of iron or non-alloy steel (excl. of cast iron)"},{"$nulls":6},{"$f":"Translations!$B$611","v":"Iron or steel products"}]
[{"$nulls":4},"7304 39 82",{"$f":"Translations!$B$1195","v":"Tubes, pipes and hollow profiles, seamless, of circular cross-section, of iron or non-alloy steel, of an external diameter of <= 168,3 mm (excl. cold-drawn or cold-rolled, of cast iron, line pipe of a kind used for oil or gas pipelines, casing, tubing and drill pipe of a kind used in drilling for oil or gas and tubes, and gas pipes of subheading 7304 39 50)"},{"$nulls":6},{"$f":"Translations!$B$611","v":"Iron or steel products"}]
[{"$nulls":4},"7304 39 83",{"$f":"Translations!$B$1196","v":"Tubes, pipes and hollow profiles, seamless, of circular cross-section, of iron or non-alloy steel, of an external diameter of > 168,3 mm but <= 406,4 mm (excl. cold-drawn or cold-rolled, of cast iron, line pipe of a kind used for oil or gas pipelines, casing, tubing and drill pipe of a kind used in drilling for oil or gas and tubes, and gas pipes of subheading 7304 39 50)"},{"$nulls":6},{"$f":"Translations!$B$611","v":"Iron or steel products"}]
[{"$nulls":4},"7304 39 88",{"$f":"Translations!$B$1197","v":"Tubes, pipes and hollow profiles, seamless, of circular cross-section, of iron or non-alloy steel, of an external diameter of > 406,4 mm (excl. cold-drawn or cold-rolled, of cast iron, line pipe of a kind used for oil or gas pipelines, casing, tubing and drill pipe of a kind used in drilling for oil or gas and tubes, and gas pipes of subheading 7304 39 50)"},{"$nulls":6},{"$f":"Translations!$B$611","v":"Iron or steel products"}]
[{"$nulls":4},"7304 41 00",{"$f":"Translations!$B$1198","v":"Tubes, pipes and hollow profiles, seamless, of circular cross-section, of stainless steel, cold-drawn or cold-rolled \"cold-reduced\" (excl. line pipe of a kind used for oil or gas pipelines, casing and tubing of a kind used for drilling for oil or gas)"},{"$nulls":6},{"$f":"Translations!$B$611","v":"Iron or steel products"}]
[{"$nulls":4},"7304 49",{"$f":"Translations!$B$1199","v":"Tubes, pipes and hollow profiles, seamless, of circular cross-section, of stainless steel, not cold-drawn or cold-rolled \"cold-reduced\" (excl. line pipe of a kind used for oil or gas pipelines or of a kind used for drilling for oil or gas)"},{"$nulls":6},{"$f":"Translations!$B$611","v":"Iron or steel products"}]
[{"$nulls":4},"7304 49 83",{"$f":"Translations!$B$1200","v":"Tubes, pipes and hollow profiles, seamless, of circular cross-section, of stainless steel, of an external diameter of <= 168,3 mm (excl. cold-drawn or cold-rolled, line pipe of a kind used for oil or gas pipelines, and casing and tubing of a kind used for drilling for oil or gas and tubes)"},{"$nulls":6},{"$f":"Translations!$B$611","v":"Iron or steel products"}]
[{"$nulls":4},"7304 49 85",{"$f":"Translations!$B$1201","v":"Tubes, pipes and hollow profiles, seamless, of circular cross-section, of stainless steel, of an external diameter of > 168,3 mm but <= 406,4 mm (excl. cold-drawn or cold-rolled, line pipe of a kind used for oil or gas pipelines, and casing and tubing of a kind used for drilling for oil or gas and tubes)"},{"$nulls":6},{"$f":"Translations!$B$611","v":"Iron or steel products"}]
[{"$nulls":4},"7304 49 89",{"$f":"Translations!$B$1202","v":"Tubes, pipes and hollow profiles, seamless, of circular cross-section, of stainless steel, of an external diameter of > 406,4 mm (excl. cold-drawn or cold-rolled, line pipe of a kind used for oil or gas pipelines, and casing and tubing of a kind used for drilling for oil or gas and tubes)"},{"$nulls":6},{"$f":"Translations!$B$611","v":"Iron or steel products"}]
[{"$nulls":4},"7304 51",{"$f":"Translations!$B$1203","v":"Tubes, pipes and hollow profiles, seamless, of circular cross-section, of alloy steel other than stainless, cold-drawn or cold-rolled \"cold-reduced\" (excl. line pipe of a kind used for oil or gas pipelines, casing and tubing of a kind used for drilling for oil)"},{"$nulls":6},{"$f":"Translations!$B$611","v":"Iron or steel products"}]
[{"$nulls":4},"7304 51 10",{"$f":"Translations!$B$1204","v":"Tubes, pipes and hollow profiles, seamless, of circular cross-section, of alloy steel other than stainless, cold-drawn or cold-rolled \"cold-reduced\", straight and of uniform wall-thickness, containing by weight >= 0,9% but <= 1,15% carbon and >= 0,5% but <= 2% chromium, whether or not containing by weight <= 0,5% molybdenum (excl. tubes, pipes and hollow profiles of subheadings 7304 19 to 7304 29)"},{"$nulls":6},{"$f":"Translations!$B$611","v":"Iron or steel products"}]
[{"$nulls":4},"7304 51 81",{"$f":"Translations!$B$1205","v":"Precision tubes, seamless, of circular cross-section, of alloy steel other than stainless, cold-drawn or cold-rolled \"cold-reduced\" (excl. line pipe of a kind used for oil or gas pipelines, casing and tubing of a kind used for drilling for oil and tubes, and pipes and hollow profiles, straight and of uniform wall-thickness, containing by weight >= 0,9% but <= 1,15% carbon and >= 0,5% but <= 2% chrome, whether or not containing by weight <= 0,5% molybdenum)"},{"$nulls":6},{"$f":"Translations!$B$611","v":"Iron or steel products"}]
[{"$nulls":4},"7304 51 89",{"$f":"Translations!$B$1206","v":"Tubes, pipes and hollow profiles, seamless, of circular cross-section, of alloy steel other than stainless, not cold-drawn or cold-rolled \"cold-reduced\" (excl. line pipe of a kind used for oil or gas pipelines, casing and tubing of a kind used for drilling for oil, precision tubes, and , pipes and hollow profiles, straight and of uniform wall-thickness, containing by weight >= 0,9% but <= 1,15% carbon and >= 0,5% but <= 2% chrome, whether or not containing by weight <= 0,5% molybdenum)"},{"$nulls":6},{"$f":"Translations!$B$611","v":"Iron or steel products"}]
[{"$nulls":4},"7304 59",{"$f":"Translations!$B$1207","v":"Tubes, pipes and hollow profiles, seamless, of circular cross-section, of alloy steel other than stainless, not cold-drawn or cold-rolled \"cold-reduced\" (excl. line pipe of a kind used for oil or gas pipelines, casing and tubing of a kind used for drilling for oil)"},{"$nulls":6},{"$f":"Translations!$B$611","v":"Iron or steel products"}]
[{"$nulls":4},"7304 59 30",{"$f":"Translations!$B$1208","v":"Tubes, pipes and hollow profiles of alloy steel (excl. stainless), seamless, of circular cross-section (not cold-drawn or cold-rolled), straight and of uniform wall-thickness, containing by weight >= 0,9% but <= 1,15% carbon and >= 0,5% but <= 2% chromium, whether or not containing by weight <= 0,5% molybdenum (excl. tubes, pipes and hollow profiles of subheadings 7304 19 to 7304 29)"},{"$nulls":6},{"$f":"Translations!$B$611","v":"Iron or steel products"}]
[{"$nulls":4},"7304 59 82",{"$f":"Translations!$B$1209","v":"Tubes, pipes and hollow profiles, seamless, of circular cross-section, of alloy steel other than stainless, of an external diameter of <= 168,3 mm (excl. cold-drawn or cold-rolled, line pipe of a kind used for oil or gas pipelines, casing and tubing of a kind used for drilling for oil or gas, and products of subheading 7304 59 30)"},{"$nulls":6},{"$f":"Translations!$B$611","v":"Iron or steel products"}]
[{"$nulls":4},"7304 59 83",{"$f":"Translations!$B$1210","v":"Tubes, pipes and hollow profiles, seamless, of circular cross-section, of alloy steel other than stainless, of an external diameter of > 168,3 mm but <= 406,4 mm (excl. cold-drawn or cold-rolled, line pipe of a kind used for oil or gas pipelines, casing and tubing of a kind used for drilling for oil or gas, and products of subheading 7304 59 30)"},{"$nulls":6},{"$f":"Translations!$B$611","v":"Iron or steel products"}]
[{"$nulls":4},"7304 59 89",{"$f":"Translations!$B$1211","v":"Tubes, pipes and hollow profiles, seamless, of circular cross-section, of alloy steel other than stainless, of an external diameter of > 406,4 mm (excl. cold-drawn or cold-rolled, line pipe of a kind used for oil or gas pipelines, casing and tubing of a kind used for drilling for oil or gas, and products of subheading 7304 59 30)"},{"$nulls":6},{"$f":"Translations!$B$611","v":"Iron or steel products"}]
[{"$nulls":4},"7304 90 00",{"$f":"Translations!$B$1212","v":"Tubes, pipes and hollow profiles, seamless, of non-circular cross-section, of iron or steel (excl. products of cast iron)"},{"$nulls":6},{"$f":"Translations!$B$611","v":"Iron or steel products"}]
[{"$nulls":4},"7305",{"$f":"Translations!$B$1213","v":"Tubes and pipes, having circular cross-sections and an external diameter of > 406,4 mm, of flat-rolled products of iron or steel \"e.g., welded, riveted or similarly closed\""},{"$nulls":6},{"$f":"Translations!$B$611","v":"Iron or steel products"}]
[{"$nulls":4},"7305 11 00",{"$f":"Translations!$B$1214","v":"Line pipe of a kind used for oil or gas pipelines, having circular cross-sections and an external diameter of > 406,4 mm, of iron or steel, longitudinally submerged arc welded"},{"$nulls":6},{"$f":"Translations!$B$611","v":"Iron or steel products"}]
[{"$nulls":4},"7305 12 00",{"$f":"Translations!$B$1215","v":"Line pipe of a kind used for oil or gas pipelines, having circular cross-sections and an external diameter of > 406,4 mm, of iron or steel, longitudinally arc welded (excl. products longitudinally submerged arc welded)"},{"$nulls":6},{"$f":"Translations!$B$611","v":"Iron or steel products"}]
[{"$nulls":4},"7305 19 00",{"$f":"Translations!$B$1216","v":"Line pipe of a kind used for oil or gas pipelines, having circular cross-sections and an external diameter of > 406,4 mm, of flat-rolled products of iron or steel (excl. products longitudinally arc welded)"},{"$nulls":6},{"$f":"Translations!$B$611","v":"Iron or steel products"}]
[{"$nulls":4},"7305 20 00",{"$f":"Translations!$B$1217","v":"Casing of a kind used in drilling for oil or gas, having circular cross-sections and an external diameter of > 406,4 mm, of flat-rolled products of iron or steel"},{"$nulls":6},{"$f":"Translations!$B$611","v":"Iron or steel products"}]
[{"$nulls":4},"7305 31 00",{"$f":"Translations!$B$1218","v":"Tubes and pipes having circular cross-sections and an external diameter of > 406,4 mm, of iron or steel, longitudinally welded (excl. products of a kind used for oil or gas pipelines or of a kind used in drilling for oil or gas)"},{"$nulls":6},{"$f":"Translations!$B$611","v":"Iron or steel products"}]
[{"$nulls":4},"7305 39 00",{"$f":"Translations!$B$1219","v":"Tubes and pipes having circular cross-sections and an external diameter of > 406,4 mm, of iron or steel, welded (excl. products longitudinally welded or of a kind used for oil or gas pipelines or of a kind used in drilling for oil or gas)"},{"$nulls":6},{"$f":"Translations!$B$611","v":"Iron or steel products"}]
[{"$nulls":4},"7305 90 00",{"$f":"Translations!$B$1220","v":"Tubes and pipes having circular cross-sections and an external diameter of > 406,4 mm, of flat-rolled products of iron or steel, welded (excl. welded products or products of a kind used for oil or gas pipelines or of a kind used in drilling for oil or gas)"},{"$nulls":6},{"$f":"Translations!$B$611","v":"Iron or steel products"}]
[{"$nulls":4},"7306",{"$f":"Translations!$B$1221","v":"Tubes, pipes and hollow profiles \"e.g., open seam or welded, riveted or similarly closed\", of iron or steel (excl. of cast iron, seamless tubes and pipes and tubes having internal and external circular cross-sections and an external diameter of > 406,4 mm)"},{"$nulls":6},{"$f":"Translations!$B$611","v":"Iron or steel products"}]
[{"$nulls":4},"7306 11 00",{"$f":"Translations!$B$1222","v":"Line pipe of a kind used for oil or gas pipelines, welded, of flat-rolled products of stainless steel, of an external diameter of <= 406,4 mm"},{"$nulls":6},{"$f":"Translations!$B$611","v":"Iron or steel products"}]
[{"$nulls":4},"7306 19 00",{"$f":"Translations!$B$1223","v":"Line pipe of a kind used for oil or gas pipelines, welded, of flat-rolled products of iron or steel, of an external diameter of <= 406,4 mm (excl. products of stainless steel or of cast iron)"},{"$nulls":6},{"$f":"Translations!$B$611","v":"Iron or steel products"}]
[{"$nulls":4},"7306 21 00",{"$f":"Translations!$B$1224","v":"Casing and tubing of a kind used in drilling for oil or gas, welded, of flat-rolled products of stainless steel, of an external diameter of <= 406,4 mm"},{"$nulls":6},{"$f":"Translations!$B$611","v":"Iron or steel products"}]
[{"$nulls":4},"7306 29 00",{"$f":"Translations!$B$1225","v":"Casing and tubing of a kind used in drilling for oil or gas, welded, of flat-rolled products of iron or steel, of an external diameter of <= 406,4 mm (excl. products of stainless steel or of cast iron)"},{"$nulls":6},{"$f":"Translations!$B$611","v":"Iron or steel products"}]
[{"$nulls":4},"7306 30",{"$f":"Translations!$B$1226","v":"Tubes, pipes and hollow profiles, welded, of circular cross-section, of iron or non-alloy steel (excl. products having internal and external circular cross-sections and an external diameter of > 406,4 mm, or line pipe of a kind used for oil or gas pipelines or casing and tubing of a kind used in drilling for oil or gas)"},{"$nulls":6},{"$f":"Translations!$B$611","v":"Iron or steel products"}]
[{"$nulls":4},"7306 30 12",{"$f":"Translations!$B$1227","v":"Precision tubes, welded, of circular cross-section, of iron or non-alloy steel, cold-drawn or cold-rolled \"cold-reduced\""},{"$nulls":6},{"$f":"Translations!$B$611","v":"Iron or steel products"}]
[{"$nulls":4},"7306 30 18",{"$f":"Translations!$B$1228","v":"Precision tubes, welded, of circular cross-section, of iron or non-alloy steel (excl. cold-drawn or cold-rolled)"},{"$nulls":6},{"$f":"Translations!$B$611","v":"Iron or steel products"}]
[{"$nulls":4},"7306 30 41",{"$f":"Translations!$B$1229","v":"Threaded or threadable tubes \"gas pipe\", welded, of circular cross-section, of iron or non-alloy steel, plated or coated with zinc"},{"$nulls":6},{"$f":"Translations!$B$611","v":"Iron or steel products"}]
[{"$nulls":4},"7306 30 49",{"$f":"Translations!$B$1230","v":"Threaded or threadable tubes \"gas pipe\", welded, of circular cross-section, of iron or non-alloy steel (excl. products plated or coated with zinc)"},{"$nulls":6},{"$f":"Translations!$B$611","v":"Iron or steel products"}]
[{"$nulls":4},"7306 30 72",{"$f":"Translations!$B$1231","v":"Other tubes, pipes and hollow profiles, welded, of circular cross-section, of iron or non-alloy steel, of an external diameter of <= 168,3 mm, plated or coated with zinc (excl. line pipe of a kind used for oil or gas pipelines or casing and tubingof a kind used in drilling for oil or gas)"},{"$nulls":6},{"$f":"Translations!$B$611","v":"Iron or steel products"}]
[{"$nulls":4},"7306 30 77",{"$f":"Translations!$B$1232","v":"Other tubes, pipes and hollow profiles, welded, of circular cross-section, of iron or non-alloy steel of an external diameter of <= 168,3 mm (excl. plated or coated with zinc and line pipe of a kind used for oil or gas pipelines, casing and tubing of a kind used in drilling for oil or gas, precision tubes and threaded or threadable tubes \"gas pipe\")"},{"$nulls":6},{"$f":"Translations!$B$611","v":"Iron or steel products"}]
[{"$nulls":4},"7306 30 80",{"$f":"Translations!$B$1233","v":"Tubes, pipes and hollow profiles, welded, having a circular cross-section, of iron or steel, of an external diameter of > 168,3 mm but <= 406,4 mm (excl. line pipe of a kind used for oil or gas pipelines or casing and tubing of a kind used in drilling for oil or gas, or precision steel tubes, electrical conduit tubes or threaded or threadable tubes \"gas pipe\")"},{"$nulls":6},{"$f":"Translations!$B$611","v":"Iron or steel products"}]
[{"$nulls":4},"7306 40",{"$f":"Translations!$B$1234","v":"Tubes, pipes and hollow profiles, welded, of circular cross-section, of stainless steel (excl. products having internal and external circular cross-sections and an external diameter of > 406,4 mm, and products of a kind used for oil or gas pipelines or of a kind used in drilling for oil or gas)"},{"$nulls":6},{"$f":"Translations!$B$611","v":"Iron or steel products"}]
[{"$nulls":4},"7306 40 20",{"$f":"Translations!$B$1235","v":"Tubes, pipes and hollow profiles, welded, of circular cross-section, of stainless steel, cold-drawn or cold-rolled \"cold-reduced\" (excl. products having internal and external circular cross-sections and an external diameter of > 406,4 mm, and line pipe of a kind used for oil or gas pipelines or casing and tubing of a kind used in drilling for oil or gas)"},{"$nulls":6},{"$f":"Translations!$B$611","v":"Iron or steel products"}]
[{"$nulls":4},"7306 40 80",{"$f":"Translations!$B$1236","v":"Tubes, pipes and hollow profiles, welded, of circular cross-section, of stainless steel (excl. products cold-drawn or cold-rolled \"cold-reduced\", tubes and pipes having internal and external circular cross-sections and an external diameter of > 406,4 mm, and line pipe of a kind used for oil or gas pipelines or casing and tubing of a kind used in drilling for oil or gas)"},{"$nulls":6},{"$f":"Translations!$B$611","v":"Iron or steel products"}]
[{"$nulls":4},"7306 50",{"$f":"Translations!$B$1237","v":"Tubes, pipes and hollow profiles, welded, of circular cross-section, of alloy steel other than stainless (excl. tubes and pipes having internal and external circular cross-sections and an external diameter of > 406,4 mm, and line pipe of a kind used for oil or gas pipelines or casing and tubing of a kind used in drilling for oil or gas)"},{"$nulls":6},{"$f":"Translations!$B$611","v":"Iron or steel products"}]
[{"$nulls":4},"7306 50 21",{"$f":"Translations!$B$1238","v":"Precision steel tubes, welded, of circular cross-section, of alloy steel other than stainless, cold-drawn or cold-rolled \"cold-reduced\""},{"$nulls":6},{"$f":"Translations!$B$611","v":"Iron or steel products"}]
[{"$nulls":4},"7306 50 29",{"$f":"Translations!$B$1239","v":"Precision steel tubes, welded, of circular cross-section, of alloy steel other than stainless (excl. cold-drawn or cold-rolled)"},{"$nulls":6},{"$f":"Translations!$B$611","v":"Iron or steel products"}]
[{"$nulls":4},"7306 50 80",{"$f":"Translations!$B$1240","v":"Tubes, pipes and hollow profiles, welded, of circular cross-section, of alloy steel other than stainless (excl. tubes and pipes having internal and external circular cross-sections and an external diameter of > 406,4 mm, and line pipe of a kind used for oil or gas pipelines or casing and tubing of a kind used in drilling for oil or gas, and precision steel tubes)"},{"$nulls":6},{"$f":"Translations!$B$611","v":"Iron or steel products"}]
[{"$nulls":4},"7306 61",{"$f":"Translations!$B$1241","v":"Tubes and pipes and hollow profiles, welded, of square or rectangular cross-section, of iron or steel"},{"$nulls":6},{"$f":"Translations!$B$611","v":"Iron or steel products"}]
[{"$nulls":4},"7306 61 10",{"$f":"Translations!$B$1242","v":"Tubes and pipes and hollow profiles, welded, of square or rectangular cross-section, of stainless steel"},{"$nulls":6},{"$f":"Translations!$B$611","v":"Iron or steel products"}]
[{"$nulls":4},"7306 61 92",{"$f":"Translations!$B$1243","v":"Tubes and pipes and hollow profiles, welded, of square or rectangular cross-section, of iron or steel other than stainless steel, with a wall thickness of <= 2 mm"},{"$nulls":6},{"$f":"Translations!$B$611","v":"Iron or steel products"}]
[{"$nulls":4},"7306 61 99",{"$f":"Translations!$B$1244","v":"Tubes and pipes and hollow profiles, welded, of square or rectangular cross-section, of iron or steel other than stainless steel, with a wall thickness of > 2 mm"},{"$nulls":6},{"$f":"Translations!$B$611","v":"Iron or steel products"}]
[{"$nulls":4},"7306 69",{"$f":"Translations!$B$1245","v":"Tubes, pipes and hollow profiles, welded, of non-circular cross-section, of iron or steel (excl. tubes and pipes having internal and external circular cross-sections and an external diameter of > 406,4 mm, line pipe of a kind used for oil or gas pipelines or casing and tubing of a kind used in drilling for oil or gas, and tubes and pipes and hollow profiles of square or rectangular cross-section)"},{"$nulls":6},{"$f":"Translations!$B$611","v":"Iron or steel products"}]
[{"$nulls":4},"7306 69 10",{"$f":"Translations!$B$1246","v":"Tubes, pipes and hollow profiles, welded, of non-circular cross-section, of stainless steel (excl. tubes and pipes having internal and external circular cross-sections and an external diameter of > 406,4 mm, line pipe of a kind used for oil or gas pipelines or casing and tubing of a kind used in drilling for oil or gas, and tubes and pipes and hollow profiles of square or rectangular cross-section)"},{"$nulls":6},{"$f":"Translations!$B$611","v":"Iron or steel products"}]
[{"$nulls":4},"7306 69 90",{"$f":"Translations!$B$1247","v":"Tubes, pipes and hollow profiles, welded, of non-circular cross-section, of iron or steel other than stainless steel (excl. tubes and pipes having internal and external circular cross-sections and an external diameter of > 406,4 mm, line pipe of a kind used for oil or gas pipelines or casing and tubing of a kind used in drilling for oil or gas, and tubes and pipes and hollow profiles of square or rectangular cross-section)"},{"$nulls":6},{"$f":"Translations!$B$611","v":"Iron or steel products"}]
[{"$nulls":4},"7306 90 00",{"$f":"Translations!$B$1248","v":"Tubes, pipes and hollow profiles \"e.g., open seam, riveted or similarly closed\", of iron or steel (excl. of cast iron, seamless or welded tubes and pipes and tubes and pipes having internal and external circular cross-sections and an external diameter of > 406,4 mm)"},{"$nulls":6},{"$f":"Translations!$B$611","v":"Iron or steel products"}]
[{"$nulls":4},"7307",{"$f":"Translations!$B$1249","v":"Tube or pipe fittings \"e.g. couplings, elbows, sleeves\", of iron or steel"},{"$nulls":6},{"$f":"Translations!$B$611","v":"Iron or steel products"}]
[{"$nulls":4},"7307 11",{"$f":"Translations!$B$1250","v":"Tube or pipe fittings of non-malleable cast iron"},{"$nulls":6},{"$f":"Translations!$B$611","v":"Iron or steel products"}]
[{"$nulls":4},"7307 11 10",{"$f":"Translations!$B$1251","v":"Tube or pipe fittings of non-malleable cast iron, of a kind used in pressure systems"},{"$nulls":6},{"$f":"Translations!$B$611","v":"Iron or steel products"}]
[{"$nulls":4},"7307 11 90",{"$f":"Translations!$B$1252","v":"Tube or pipe fittings of non-malleable cast iron (excl. products of a kind used in pressure systems)"},{"$nulls":6},{"$f":"Translations!$B$611","v":"Iron or steel products"}]
[{"$nulls":4},"7307 19",{"$f":"Translations!$B$1253","v":"Cast tube or pipe fittings of iron or steel (excl. products of non-malleable cast iron)"},{"$nulls":6},{"$f":"Translations!$B$611","v":"Iron or steel products"}]
[{"$nulls":4},"7307 19 10",{"$f":"Translations!$B$1254","v":"Tube or pipe fittings of cast iron (excl. of non-malleable)"},{"$nulls":6},{"$f":"Translations!$B$611","v":"Iron or steel products"}]
[{"$nulls":4},"7307 19 90",{"$f":"Translations!$B$1255","v":"Cast tube or pipe fittings of steel"},{"$nulls":6},{"$f":"Translations!$B$611","v":"Iron or steel products"}]
[{"$nulls":4},"7307 21 00",{"$f":"Translations!$B$1256","v":"Flanges of stainless steel (excl. cast products)"},{"$nulls":6},{"$f":"Translations!$B$611","v":"Iron or steel products"}]
[{"$nulls":4},"7307 22",{"$f":"Translations!$B$1257","v":"Threaded elbows, bends and sleeves of stainless steel (excl. cast products)"},{"$nulls":6},{"$f":"Translations!$B$611","v":"Iron or steel products"}]
[{"$nulls":4},"7307 22 10",{"$f":"Translations!$B$1258","v":"Sleeves, of stainless steel, threaded (excl. cast products)"},{"$nulls":6},{"$f":"Translations!$B$611","v":"Iron or steel products"}]
[{"$nulls":4},"7307 22 90",{"$f":"Translations!$B$1259","v":"Elbows and bends, of stainless steel, threaded (excl. cast products)"},{"$nulls":6},{"$f":"Translations!$B$611","v":"Iron or steel products"}]
[{"$nulls":4},"7307 23",{"$f":"Translations!$B$1260","v":"Butt welding tube or pipe fittings of stainless steel (excl. cast products)"},{"$nulls":6},{"$f":"Translations!$B$611","v":"Iron or steel products"}]
[{"$nulls":4},"7307 23 10",{"$f":"Translations!$B$1261","v":"Butt welding elbows and bends of stainless steel (excl. cast products)"},{"$nulls":6},{"$f":"Translations!$B$611","v":"Iron or steel products"}]
[{"$nulls":4},"7307 23 90",{"$f":"Translations!$B$1262","v":"Butt welding tube or pipe fittings of stainless steel (excl. cast products and elbows and bends)"},{"$nulls":6},{"$f":"Translations!$B$611","v":"Iron or steel products"}]
[{"$nulls":4},"7307 29",{"$f":"Translations!$B$1263","v":"Tube or pipe fittings of stainless steel (excl. cast products, flanges, threaded elbows, bends and sleeves and butt weldings fittings)"},{"$nulls":6},{"$f":"Translations!$B$611","v":"Iron or steel products"}]
[{"$nulls":4},"7307 29 10",{"$f":"Translations!$B$1264","v":"Threaded tube or pipe fittings of stainless steel (excl. cast products, flanges, elbows, bends and sleeves)"},{"$nulls":6},{"$f":"Translations!$B$611","v":"Iron or steel products"}]
[{"$nulls":4},"7307 29 80",{"$f":"Translations!$B$1265","v":"Tube or pipe fittings of stainless steel (excl. cast, threaded, butt welding fittings and flanges)"},{"$nulls":6},{"$f":"Translations!$B$611","v":"Iron or steel products"}]
[{"$nulls":4},"7307 91 00",{"$f":"Translations!$B$1266","v":"Flanges of iron or steel (excl. cast or stainless products)"},{"$nulls":6},{"$f":"Translations!$B$611","v":"Iron or steel products"}]
[{"$nulls":4},"7307 92",{"$f":"Translations!$B$1267","v":"Threaded elbows, bends and sleeves, of stainless steel (excl. cast or stainless products)"},{"$nulls":6},{"$f":"Translations!$B$611","v":"Iron or steel products"}]
[{"$nulls":4},"7307 92 10",{"$f":"Translations!$B$1268","v":"Sleeves of iron or steel, threaded (excl. cast or of stainless steel)"},{"$nulls":6},{"$f":"Translations!$B$611","v":"Iron or steel products"}]
[{"$nulls":4},"7307 92 90",{"$f":"Translations!$B$1269","v":"Elbows and bends, of iron or steel, threaded (excl. cast or of stainless steel)"},{"$nulls":6},{"$f":"Translations!$B$611","v":"Iron or steel products"}]
[{"$nulls":4},"7307 93",{"$f":"Translations!$B$1270","v":"Butt welding fittings of iron or steel (excl. cast iron or stainless steel products, and flanges)"},{"$nulls":6},{"$f":"Translations!$B$611","v":"Iron or steel products"}]
[{"$nulls":4},"7307 93 11",{"$f":"Translations!$B$1271","v":"Butt welding elbows and bends, of iron or steel, with greatest external diameter <= 609,6 mm (excl. cast iron or stainless steel products)"},{"$nulls":6},{"$f":"Translations!$B$611","v":"Iron or steel products"}]
[{"$nulls":4},"7307 93 19",{"$f":"Translations!$B$1272","v":"Butt welding fittings of iron or steel, with greatest external diameter <= 609,6 mm (excl. cast iron or stainless steel products, elbows, bends and flanges)"},{"$nulls":6},{"$f":"Translations!$B$611","v":"Iron or steel products"}]
[{"$nulls":4},"7307 93 91",{"$f":"Translations!$B$1273","v":"Butt welding elbows and bends, of iron or steel, with greatest external diameter > 609,6 mm (excl. cast iron or stainless steel products)"},{"$nulls":6},{"$f":"Translations!$B$611","v":"Iron or steel products"}]
[{"$nulls":4},"7307 93 99",{"$f":"Translations!$B$1274","v":"Butt welding fittings of iron or steel, with greatest external diameter > 609,6 mm (excl. cast iron or stainless steel products, elbows, bends and flanges)"},{"$nulls":6},{"$f":"Translations!$B$611","v":"Iron or steel products"}]
[{"$nulls":4},"7307 99",{"$f":"Translations!$B$1275","v":"Tube or pipe fittings, of iron or steel (excl. cast iron or stainless steel products; flanges; threaded elbows, bends and sleeves; butt welding fittings)"},{"$nulls":6},{"$f":"Translations!$B$611","v":"Iron or steel products"}]
[{"$nulls":4},"7307 99 10",{"$f":"Translations!$B$1276","v":"Threaded tube or pipe fittings, of iron or steel (excl. cast iron or stainless steel products, flanges, elbows, bends and sleeves)"},{"$nulls":6},{"$f":"Translations!$B$611","v":"Iron or steel products"}]
[{"$nulls":4},"7307 99 80",{"$f":"Translations!$B$1277","v":"Tube or pipe fittings, of iron or steel (excl. of cast iron or stainless steel, threaded, butt welding fittings, and flanges)"},{"$nulls":6},{"$f":"Translations!$B$611","v":"Iron or steel products"}]
[{"$nulls":4},"7308",{"$f":"Translations!$B$1278","v":"Structures and parts of structures \"e.g., bridges and bridge-sections, lock-gates, towers, lattice masts, roofs, roofing frameworks, doors and windows and their frames and thresholds for doors, shutters, balustrades, pillars and columns\", of iron or steel; plates, rods, angles, shapes, sections, tubes and the like, prepared for use in structures, of iron or steel (excl. prefabricated buildings of heading 9406)"},{"$nulls":6},{"$f":"Translations!$B$611","v":"Iron or steel products"}]
[{"$nulls":4},"7308 10 00",{"$f":"Translations!$B$1279","v":"Bridges and bridge-sections, of iron or steel"},{"$nulls":6},{"$f":"Translations!$B$611","v":"Iron or steel products"}]
[{"$nulls":4},"7308 20 00",{"$f":"Translations!$B$1280","v":"Towers and lattice masts, of iron or steel"},{"$nulls":6},{"$f":"Translations!$B$611","v":"Iron or steel products"}]
[{"$nulls":4},"7308 30 00",{"$f":"Translations!$B$1281","v":"Doors, windows and their frames and thresholds for doors, of iron or steel"},{"$nulls":6},{"$f":"Translations!$B$611","v":"Iron or steel products"}]
[{"$nulls":4},"7308 40 00",{"$f":"Translations!$B$1282","v":"Equipment for scaffolding, shuttering, propping or pit-propping (excl. composite sheetpiling products and formwork panels for poured-in-place concrete, which have the characteristics of moulds)"},{"$nulls":6},{"$f":"Translations!$B$611","v":"Iron or steel products"}]
[{"$nulls":4},"7308 90",{"$f":"Translations!$B$1283","v":"Structures and parts of structures, of iron or steel, n.e.s. (excl. bridges and bridge-sections, towers and lattice masts, doors and windows and their frames, thresholds for doors, props and similar equipment for scaffolding, shuttering, propping or pit-propping)"},{"$nulls":6},{"$f":"Translations!$B$611","v":"Iron or steel products"}]
[{"$nulls":4},"7308 90 51",{"$f":"Translations!$B$1284","v":"Panels comprising two walls of profiled \"ribbed\" sheet, of iron or steel, with an insulating core"},{"$nulls":6},{"$f":"Translations!$B$611","v":"Iron or steel products"}]
[{"$nulls":4},"7308 90 59",{"$f":"Translations!$B$1285","v":"Structures and parts of structures, of iron or steel, solely or principally of sheet, n.e.s. (excl. doors and windows and their frames, and panels comprising two walls of profiled \"ribbed\" sheet, of iron or steel, with an insulating core)"},{"$nulls":6},{"$f":"Translations!$B$611","v":"Iron or steel products"}]
[{"$nulls":4},"7308 90 98",{"$f":"Translations!$B$1286","v":"Structures and parts of structures of iron or steel, n.e.s. (excl. bridges and bridge-sections; towers; lattice masts; doors, windows and their frames and thresholds; equipment for scaffolding, shuttering, propping or pit-propping, and products made principally of sheet)"},{"$nulls":6},{"$f":"Translations!$B$611","v":"Iron or steel products"}]
[{"$nulls":4},"7309 00",{"$f":"Translations!$B$1287","v":"Reservoirs, tanks, vats and similar containers, of iron or steel, for any material \"other than compressed or liquefied gas\", of a capacity of > 300 l, not fitted with mechanical or thermal equipment, whether or not lined or heat-insulated (excl. containers specifically constructed or equipped for one or more types of transport)"},{"$nulls":6},{"$f":"Translations!$B$611","v":"Iron or steel products"}]
[{"$nulls":4},"7309 00 10",{"$f":"Translations!$B$1288","v":"Reservoirs, tanks, vats and similar containers, of iron or steel, for gases other than compressed or liquefied gas, of a capacity of > 300 l (excl. containers fitted with mechanical or thermal equipment and containers specifically constructed or equipped for one or more types of transport)"},{"$nulls":6},{"$f":"Translations!$B$611","v":"Iron or steel products"}]
[{"$nulls":4},"7309 00 30",{"$f":"Translations!$B$1289","v":"Reservoirs, tanks, vats and similar containers, of iron or steel, for liquids, lined or heat-insulated and of a capacity of > 300 l (excl. containers fitted with mechanical or thermal equipment and containers specifically constructed or equipped for one or more types of transport)"},{"$nulls":6},{"$f":"Translations!$B$611","v":"Iron or steel products"}]
[{"$nulls":4},"7309 00 51",{"$f":"Translations!$B$1290","v":"Reservoirs, tanks, vats and similar containers, of iron or steel, for liquids, of a capacity of > 100.000 l (excl. containers lined or heat-insulated or fitted with mechanical or thermal equipment and containers specifically constructed or equipped for one or more types of transport)"},{"$nulls":6},{"$f":"Translations!$B$611","v":"Iron or steel products"}]
[{"$nulls":4},"7309 00 59",{"$f":"Translations!$B$1291","v":"Reservoirs, tanks, vats and similar containers, of iron or steel, for liquids, of a capacity of <= 100.000 l but > 300 l (excl. containers lined or heat-insulated or fitted with mechanical or thermal equipment and containers specifically constructed or equipped for one or more types of transport)"},{"$nulls":6},{"$f":"Translations!$B$611","v":"Iron or steel products"}]
[{"$nulls":4},"7309 00 90",{"$f":"Translations!$B$1292","v":"Reservoirs, tanks, vats and similar containers, of iron or steel, for solids, of a capacity of > 300 l (excl. containers lined or heat-insulated or fitted with mechanical or thermal equipment and containers specifically constructed or equipped for one or more types of transport)"},{"$nulls":6},{"$f":"Translations!$B$611","v":"Iron or steel products"}]
[{"$nulls":4},"7310",{"$f":"Translations!$B$1293","v":"Tanks, casks, drums, cans, boxes and similar containers, of iron or steel, for any material \"other than compressed or liquefied gas\", of a capacity of <= 300 l, not fitted with mechanical or thermal equipment, whether or not lined or heat-insulated, n.e.s."},{"$nulls":6},{"$f":"Translations!$B$611","v":"Iron or steel products"}]
[{"$nulls":4},"7310 10 00",{"$f":"Translations!$B$1294","v":"Tanks, casks, drums, cans, boxes and similar containers, of iron or steel, for any material, of a capacity of >= 50 l but <= 300 l, n.e.s. (excl. containers for compressed or liquefied gas, or containers fitted with mechanical or thermal equipment)"},{"$nulls":6},{"$f":"Translations!$B$611","v":"Iron or steel products"}]
[{"$nulls":4},"7310 21",{"$f":"Translations!$B$1295","v":"Cans of iron or steel, of a capacity of < 50 l, which are to be closed by soldering or crimping (excl. containers for compressed or liquefied gas)"},{"$nulls":6},{"$f":"Translations!$B$611","v":"Iron or steel products"}]
[{"$nulls":4},"7310 21 11",{"$f":"Translations!$B$1296","v":"Cans of iron or steel, of a capacity of < 50 l, which are to be closed by soldering or crimping, of a kind used for preserving food"},{"$nulls":6},{"$f":"Translations!$B$611","v":"Iron or steel products"}]
[{"$nulls":4},"7310 21 19",{"$f":"Translations!$B$1297","v":"Cans of iron or steel, of a capacity of < 50 l, which are to be closed by soldering or crimping, of a kind used for preserving drink"},{"$nulls":6},{"$f":"Translations!$B$611","v":"Iron or steel products"}]
[{"$nulls":4},"7310 21 91",{"$f":"Translations!$B$1298","v":"Cans of iron or steel, of a capacity of < 50 l, which are to be closed by soldering or crimping, of a wall thickness of < 0,5 mm (excl. cans for compressed or liquefied gas, and cans of a kind used for preserving food and drink)"},{"$nulls":6},{"$f":"Translations!$B$611","v":"Iron or steel products"}]
[{"$nulls":4},"7310 21 99",{"$f":"Translations!$B$1299","v":"Cans of iron or steel, of a capacity of < 50 l, which are to be closed by soldering or crimping, of a wall thickness of >= 0,5 mm (excl. cans for compressed or liquefied gas, and cans of a kind used for preserving food and drink)"},{"$nulls":6},{"$f":"Translations!$B$611","v":"Iron or steel products"}]
[{"$nulls":4},"7310 29",{"$f":"Translations!$B$1300","v":"Tanks, casks, drums, cans, boxes and similar containers, of iron or steel, for any material, of a capacity of < 50 l, n.e.s. (excl. containers for compressed or liquefied gas, or containers fitted with mechanical or thermal equipment, and cans which are to be closed by soldering or crimping)"},{"$nulls":6},{"$f":"Translations!$B$611","v":"Iron or steel products"}]
[{"$nulls":4},"7310 29 10",{"$f":"Translations!$B$1301","v":"Tanks, casks, drums, cans, boxes and similar containers, of iron or steel, for any material, of a capacity of < 50 l and of a wall thickness of < 0,5 mm, n.e.s. (excl. containers for compressed or liquefied gas, or containers fitted with mechanical or thermal equipment, and cans which are to be closed by soldering or crimping)"},{"$nulls":6},{"$f":"Translations!$B$611","v":"Iron or steel products"}]
[{"$nulls":4},"7310 29 90",{"$f":"Translations!$B$1302","v":"Tanks, casks, drums, cans, boxes and similar containers, of iron or steel, for any material, of a capacity of < 50 l and of a wall thickness of >= 0,5 mm, n.e.s. (excl. containers for compressed or liquefied gas, or containers fitted with mechanical or thermal equipment, and cans which are to be closed by soldering or crimping)"},{"$nulls":6},{"$f":"Translations!$B$611","v":"Iron or steel products"}]
[{"$nulls":4},"7311 00",{"$f":"Translations!$B$1303","v":"Containers of iron or steel, for compressed or liquefied gas (excl. containers specifically constructed or equipped for one or more types of transport)"},{"$nulls":6},{"$f":"Translations!$B$611","v":"Iron or steel products"}]
[{"$nulls":4},"7311 00 11",{"$f":"Translations!$B$1304","v":"Containers of iron or steel, seamless, for compressed or liquefied gas, for a pressure >= 165 bar, of a capacity < 20 l (excl. containers specifically constructed or equipped for one or more types of transport)"},{"$nulls":6},{"$f":"Translations!$B$611","v":"Iron or steel products"}]
[{"$nulls":4},"7311 00 13",{"$f":"Translations!$B$1305","v":"Containers of iron or steel, seamless, for compressed or liquefied gas, for a pressure >= 165 bar, of a capacity >= 20 l to <= 50 l (excl. containers specifically constructed or equipped for one or more types of transport)"},{"$nulls":6},{"$f":"Translations!$B$611","v":"Iron or steel products"}]
[{"$nulls":4},"7311 00 19",{"$f":"Translations!$B$1306","v":"Containers of iron or steel, seamless, for compressed or liquefied gas, for a pressure >= 165 bar, of a capacity > 50 l (excl. containers specifically constructed or equipped for one or more types of transport)"},{"$nulls":6},{"$f":"Translations!$B$611","v":"Iron or steel products"}]
[{"$nulls":4},"7311 00 30",{"$f":"Translations!$B$1307","v":"Containers of iron or steel, seamless, for compressed or liquefied gas, for a pressure < 165 bar (excl. containers specifically constructed or equipped for one or more types of transport)"},{"$nulls":6},{"$f":"Translations!$B$611","v":"Iron or steel products"}]
[{"$nulls":4},"7311 00 91",{"$f":"Translations!$B$1308","v":"Containers of iron or steel, seamless, for compressed or liquefied gas, of a capacity of < 1.000 l (excl. seamless containers and containers specifically constructed or equipped for one or more types of transport)"},{"$nulls":6},{"$f":"Translations!$B$611","v":"Iron or steel products"}]
[{"$nulls":4},"7311 00 99",{"$f":"Translations!$B$1309","v":"Containers of iron or steel, seamless, for compressed or liquefied gas, of a capacity of >= 1.000 l (excl. seamless containers and containers specifically constructed or equipped for one or more types of transport)"},{"$nulls":6},{"$f":"Translations!$B$611","v":"Iron or steel products"}]
[{"$nulls":4},"7318",{"$f":"Translations!$B$1310","v":"Screws, bolts, nuts, coach screws, screw hooks, rivets, cotters, cotter pins, washers, incl. spring washers, and similar articles, of iron or steel (excl. lag screws, stoppers, plugs and the like, threaded)"},{"$nulls":6},{"$f":"Translations!$B$611","v":"Iron or steel products"}]
[{"$nulls":4},"7318 11 00",{"$f":"Translations!$B$1311","v":"Coach screws of iron or steel"},{"$nulls":6},{"$f":"Translations!$B$611","v":"Iron or steel products"}]
[{"$nulls":4},"7318 12",{"$f":"Translations!$B$1312","v":"Wood screws of iron or steel (excl. coach screws)"},{"$nulls":6},{"$f":"Translations!$B$611","v":"Iron or steel products"}]
[{"$nulls":4},"7318 12 10",{"$f":"Translations!$B$1313","v":"Wood screws of stainless steel (excl. coach screws)"},{"$nulls":6},{"$f":"Translations!$B$611","v":"Iron or steel products"}]
[{"$nulls":4},"7318 12 90",{"$f":"Translations!$B$1314","v":"Wood screws of iron or steel other than stainless (excl. coach screws)"},{"$nulls":6},{"$f":"Translations!$B$611","v":"Iron or steel products"}]
[{"$nulls":4},"7318 13 00",{"$f":"Translations!$B$1315","v":"Screw hooks and screw rings, of iron or steel"},{"$nulls":6},{"$f":"Translations!$B$611","v":"Iron or steel products"}]
[{"$nulls":4},"7318 14",{"$f":"Translations!$B$1316","v":"Self-tapping screws, of iron or steel (excl. wood screws)"},{"$nulls":6},{"$f":"Translations!$B$611","v":"Iron or steel products"}]
[{"$nulls":4},"7318 14 10",{"$f":"Translations!$B$1317","v":"Self-tapping screws, of stainless steel (excl. wood screws)"},{"$nulls":6},{"$f":"Translations!$B$611","v":"Iron or steel products"}]
[{"$nulls":4},"7318 14 91",{"$f":"Translations!$B$1318","v":"Spaced-thread screws of iron or steel other than stainless"},{"$nulls":6},{"$f":"Translations!$B$611","v":"Iron or steel products"}]
[{"$nulls":4},"7318 14 99",{"$f":"Translations!$B$1319","v":"Self-tapping screws of iron or steel other than stainless (excl. spaced-thread screws and wood screws)"},{"$nulls":6},{"$f":"Translations!$B$611","v":"Iron or steel products"}]
[{"$nulls":4},"7318 15",{"$f":"Translations!$B$1320","v":"Threaded screws and bolts, of iron or steel, whether or not with their nuts and washers (excl. coach screws and other wood screws, screw hooks and screw rings, self-tapping screws, lag screws, stoppers, plugs and the like, threaded)"},{"$nulls":6},{"$f":"Translations!$B$611","v":"Iron or steel products"}]
[{"$nulls":4},"7318 15 20",{"$f":"Translations!$B$1321","v":"Screws and bolts, of iron or steel \"whether or not with their nuts and washers\", for fixing railway track construction material (excl. coach screws)"},{"$nulls":6},{"$f":"Translations!$B$611","v":"Iron or steel products"}]
[{"$nulls":4},"7318 15 35",{"$f":"Translations!$B$1322","v":"Screws and bolts, of stainless steel \"whether or not with their nuts and washers\", without heads (excl. screws and bolts for fixing railway track construction material)"},{"$nulls":6},{"$f":"Translations!$B$611","v":"Iron or steel products"}]
[{"$nulls":4},"7318 15 42",{"$f":"Translations!$B$1323","v":"Screws and bolts, of iron or steel other than stainless \"whether or not with their nuts and washers\", without heads, with a tensile strength of < 800 MPa (excl. screws and bolts for fixing railway track construction material)"},{"$nulls":6},{"$f":"Translations!$B$611","v":"Iron or steel products"}]
[{"$nulls":4},"7318 15 48",{"$f":"Translations!$B$1324","v":"Screws and bolts, of iron or steel other than stainless \"whether or not with their nuts and washers\", without heads, with a tensile strength of >= 800 MPa (excl. screws and bolts for fixing railway track construction material)"},{"$nulls":6},{"$f":"Translations!$B$611","v":"Iron or steel products"}]
[{"$nulls":4},"7318 15 52",{"$f":"Translations!$B$1325","v":"Screws and bolts, of stainless steel \"whether or not with their nuts and washers\", with slotted or cross-recessed heads (excl. wood screws and self-tapping screws)"},{"$nulls":6},{"$f":"Translations!$B$611","v":"Iron or steel products"}]
[{"$nulls":4},"7318 15 58",{"$f":"Translations!$B$1326","v":"Screws and bolts, of iron or steel other than stainless \"whether or not with their nuts and washers\", with slotted or cross-recessed heads (excl. wood screws and self-tapping screws)"},{"$nulls":6},{"$f":"Translations!$B$611","v":"Iron or steel products"}]
[{"$nulls":4},"7318 15 62",{"$f":"Translations!$B$1327","v":"Hexagonal-socket head screws and bolts, of stainless steel \"whether or not with their nuts and washers\" (excl. wood screws, self-tapping screws and screws and bolts for fixing railway track construction material)"},{"$nulls":6},{"$f":"Translations!$B$611","v":"Iron or steel products"}]
[{"$nulls":4},"7318 15 68",{"$f":"Translations!$B$1328","v":"Hexagonal-socket head screws and bolts, of iron or steel other than stainless \"whether or not with their nuts and washers\" (excl. wood screws, self-tapping screws and screws and bolts for fixing railway track construction material)"},{"$nulls":6},{"$f":"Translations!$B$611","v":"Iron or steel products"}]
[{"$nulls":4},"7318 15 75",{"$f":"Translations!$B$1329","v":"Hexagon screws and bolts, of stainless steel \"whether or not with their nuts and washers\" (excl. with socket head, wood screws, self-tapping screws and screws and bolts for fixing railway track construction material)"},{"$nulls":6},{"$f":"Translations!$B$611","v":"Iron or steel products"}]
[{"$nulls":4},"7318 15 82",{"$f":"Translations!$B$1330","v":"Hexagon screws and bolts, of iron or steel other than stainless \"whether or not with their nuts and washers\", with a tensile strength of < 800 MPa (excl. with socket head, wood screws, self-tapping screws and screws and bolts for fixing railway track construction material)"},{"$nulls":6},{"$f":"Translations!$B$611","v":"Iron or steel products"}]
[{"$nulls":4},"7318 15 88",{"$f":"Translations!$B$1331","v":"Hexagon screws and bolts, of iron or steel other than stainless \"whether or not with their nuts and washers\", with a tensile strength of => 800 MPa (excl. with socket head, wood screws, self-tapping screws and screws and bolts for fixing railway track construction material)"},{"$nulls":6},{"$f":"Translations!$B$611","v":"Iron or steel products"}]
[{"$nulls":4},"7318 15 95",{"$f":"Translations!$B$1332","v":"Screws and bolts, of iron or steel \"whether or not with their nuts and washers\", with heads (excl. with slotted, cross-recessed or hexagonal head; wood screws, self-tapping screws and screws and bolts for fixing railway track construction material, screw hooks and screw rings)"},{"$nulls":6},{"$f":"Translations!$B$611","v":"Iron or steel products"}]
[{"$nulls":4},"7318 16",{"$f":"Translations!$B$1333","v":"Nuts of iron or steel"},{"$nulls":6},{"$f":"Translations!$B$611","v":"Iron or steel products"}]
[{"$nulls":4},"7318 16 31",{"$f":"Translations!$B$1334","v":"Blind rivet nuts of stainless steel"},{"$nulls":6},{"$f":"Translations!$B$611","v":"Iron or steel products"}]
[{"$nulls":4},"7318 16 39",{"$f":"Translations!$B$1335","v":"Nuts of stainless steel (excl. blind rivet nuts)"},{"$nulls":6},{"$f":"Translations!$B$611","v":"Iron or steel products"}]
[{"$nulls":4},"7318 16 40",{"$f":"Translations!$B$1336","v":"Blind rivet nuts of iron or steel other than stainless"},{"$nulls":6},{"$f":"Translations!$B$611","v":"Iron or steel products"}]
[{"$nulls":4},"7318 16 60",{"$f":"Translations!$B$1337","v":"Self-locking nuts of iron or steel other than stainless"},{"$nulls":6},{"$f":"Translations!$B$611","v":"Iron or steel products"}]
[{"$nulls":4},"7318 16 92",{"$f":"Translations!$B$1338","v":"Nuts of iron or steel other than stainless, with an inside diameter <= 12 mm (excl. blind rivet nuts and self-locking nuts)"},{"$nulls":6},{"$f":"Translations!$B$611","v":"Iron or steel products"}]
[{"$nulls":4},"7318 16 99",{"$f":"Translations!$B$1339","v":"Nuts of iron or steel other than stainless, with an inside diameter > 12 mm (excl. blind rivet nuts and self-locking nuts)"},{"$nulls":6},{"$f":"Translations!$B$611","v":"Iron or steel products"}]
[{"$nulls":4},"7318 19 00",{"$f":"Translations!$B$1340","v":"Threaded articles, of iron or steel, n.e.s."},{"$nulls":6},{"$f":"Translations!$B$611","v":"Iron or steel products"}]
[{"$nulls":4},"7318 21 00",{"$f":"Translations!$B$1341","v":"Spring washers and other lock washers, of iron or steel"},{"$nulls":6},{"$f":"Translations!$B$611","v":"Iron or steel products"}]
[{"$nulls":4},"7318 22 00",{"$f":"Translations!$B$1342","v":"Washers of iron or steel (excl. spring washers and other lock washers)"},{"$nulls":6},{"$f":"Translations!$B$611","v":"Iron or steel products"}]
[{"$nulls":4},"7318 23 00",{"$f":"Translations!$B$1343","v":"Rivets of iron or steel (excl. tubular and bifurcated rivets for particular uses)"},{"$nulls":6},{"$f":"Translations!$B$611","v":"Iron or steel products"}]
[{"$nulls":4},"7318 24 00",{"$f":"Translations!$B$1344","v":"Cotters and cotter pins, of iron or steel"},{"$nulls":6},{"$f":"Translations!$B$611","v":"Iron or steel products"}]
[{"$nulls":4},"7318 29 00",{"$f":"Translations!$B$1345","v":"Non-threaded articles, of iron or steel"},{"$nulls":6},{"$f":"Translations!$B$611","v":"Iron or steel products"}]
[{"$nulls":4},"7326",{"$f":"Translations!$B$1346","v":"Articles of iron or steel, n.e.s. (excl. cast articles)"},{"$nulls":6},{"$f":"Translations!$B$611","v":"Iron or steel products"}]
[{"$nulls":4},"7326 11 00",{"$f":"Translations!$B$1347","v":"Grinding balls and similar articles for mills, of iron or steel, forged or stamped, but not further worked"},{"$nulls":6},{"$f":"Translations!$B$611","v":"Iron or steel products"}]
[{"$nulls":4},"7326 19",{"$f":"Translations!$B$1348","v":"Articles of iron or steel, forged or stamped, but not further worked, n.e.s. (excl. grinding balls and similar articles for mills)"},{"$nulls":6},{"$f":"Translations!$B$611","v":"Iron or steel products"}]
[{"$nulls":4},"7326 19 10",{"$f":"Translations!$B$1349","v":"Articles of iron or steel, open-die forged, but not further worked, n.e.s. (excl. grinding balls and similar articles for mills)"},{"$nulls":6},{"$f":"Translations!$B$611","v":"Iron or steel products"}]
[{"$nulls":4},"7326 19 90",{"$f":"Translations!$B$1350","v":"Articles of iron or steel, closed-die forged or stamped, but not further worked, n.e.s. (excl. grinding balls and similar articles for mills)"},{"$nulls":6},{"$f":"Translations!$B$611","v":"Iron or steel products"}]
[{"$nulls":4},"7326 20 00",{"$f":"Translations!$B$1351","v":"Articles of iron or steel wire, n.e.s."},{"$nulls":6},{"$f":"Translations!$B$611","v":"Iron or steel products"}]
[{"$nulls":4},"7326 90",{"$f":"Translations!$B$1352","v":"Articles of iron or steel, n.e.s. (excl. cast articles or articles of iron or steel wire)"},{"$nulls":6},{"$f":"Translations!$B$611","v":"Iron or steel products"}]
[{"$nulls":4},"7326 90 30",{"$f":"Translations!$B$1353","v":"Ladders and steps, of iron or steel"},{"$nulls":6},{"$f":"Translations!$B$611","v":"Iron or steel products"}]
[{"$nulls":4},"7326 90 40",{"$f":"Translations!$B$1354","v":"Pallets and similar platforms for handling goods, of iron or steel"},{"$nulls":6},{"$f":"Translations!$B$611","v":"Iron or steel products"}]
[{"$nulls":4},"7326 90 50",{"$f":"Translations!$B$1355","v":"Reels for cables, piping and the like, of iron or steel"},{"$nulls":6},{"$f":"Translations!$B$611","v":"Iron or steel products"}]
[{"$nulls":4},"7326 90 60",{"$f":"Translations!$B$1356","v":"Ventilators, non-mechanical, guttering, hooks and like articles used in the building industry, n.e.s., of iron or steel"},{"$nulls":6},{"$f":"Translations!$B$611","v":"Iron or steel products"}]
[{"$nulls":4},"7326 90 92",{"$f":"Translations!$B$1357","v":"Articles of iron or steel, open-die forged, n.e.s."},{"$nulls":6},{"$f":"Translations!$B$611","v":"Iron or steel products"}]
[{"$nulls":4},"7326 90 94",{"$f":"Translations!$B$1358","v":"Articles of iron or steel, closed-die forged, n.e.s."},{"$nulls":6},{"$f":"Translations!$B$611","v":"Iron or steel products"}]
[{"$nulls":4},"7326 90 96",{"$f":"Translations!$B$1359","v":"Sintered articles of iron or steel, n.e.s."},{"$nulls":6},{"$f":"Translations!$B$611","v":"Iron or steel products"}]
[{"$nulls":4},"7326 90 98",{"$f":"Translations!$B$1360","v":"Articles of iron or steel, n.e.s."},{"$nulls":6},{"$f":"Translations!$B$611","v":"Iron or steel products"}]
[{"$nulls":4},"7601",{"$f":"Translations!$B$689","v":"Unwrought aluminium"},{"$nulls":6},{"$f":"Translations!$B$689","v":"Unwrought aluminium"}]
[{"$nulls":4},"7601 10 00",{"$f":"Translations!$B$1361","v":"Aluminium, not alloyed, unwrought"},{"$nulls":6},{"$f":"Translations!$B$689","v":"Unwrought aluminium"}]
[{"$nulls":4},"7601 20",{"$f":"Translations!$B$1362","v":"Unwrought aluminium alloys"},{"$nulls":6},{"$f":"Translations!$B$689","v":"Unwrought aluminium"}]
[{"$nulls":4},"7601 20 20",{"$f":"Translations!$B$1363","v":"Unwrought aluminium alloys in the form of slabs or billets"},{"$nulls":6},{"$f":"Translations!$B$689","v":"Unwrought aluminium"}]
[{"$nulls":4},"7601 20 80",{"$f":"Translations!$B$1364","v":"Unwrought aluminium alloys (excl. slabs and billets)"},{"$nulls":6},{"$f":"Translations!$B$689","v":"Unwrought aluminium"}]
[{"$nulls":4},"7603",{"$f":"Translations!$B$1365","v":"Powder and flakes, of aluminium (excl. pellets of aluminium, and spangles)"},{"$nulls":6},{"$f":"Translations!$B$688","v":"Aluminium products"}]
[{"$nulls":4},"7603 10 00",{"$f":"Translations!$B$1366","v":"Powders of aluminium, of non-lamellar structure (excl. pellets of aluminium)"},{"$nulls":6},{"$f":"Translations!$B$688","v":"Aluminium products"}]
[{"$nulls":4},"7603 20 00",{"$f":"Translations!$B$1367","v":"Powders of aluminium, of lamellar structure, and flakes of aluminium (excl. pellets of aluminium, and spangles)"},{"$nulls":6},{"$f":"Translations!$B$688","v":"Aluminium products"}]
[{"$nulls":4},"7604",{"$f":"Translations!$B$1368","v":"Bars, rods and profiles, of aluminium, n.e.s."},{"$nulls":6},{"$f":"Translations!$B$688","v":"Aluminium products"}]
[{"$nulls":4},"7604 10",{"$f":"Translations!$B$1369","v":"Bars, rods and profiles, of non-alloy aluminium, n.e.s."},{"$nulls":6},{"$f":"Translations!$B$688","v":"Aluminium products"}]
[{"$nulls":4},"7604 10 10",{"$f":"Translations!$B$1370","v":"Bars, rods and profiles, of non-alloy aluminium"},{"$nulls":6},{"$f":"Translations!$B$688","v":"Aluminium products"}]
[{"$nulls":4},"7604 10 90",{"$f":"Translations!$B$1371","v":"Profiles of non-alloy aluminium, n.e.s."},{"$nulls":6},{"$f":"Translations!$B$688","v":"Aluminium products"}]
[{"$nulls":4},"7604 21 00",{"$f":"Translations!$B$1372","v":"Hollow profiles of aluminium alloys, n.e.s."},{"$nulls":6},{"$f":"Translations!$B$688","v":"Aluminium products"}]
[{"$nulls":4},"7604 29",{"$f":"Translations!$B$1373","v":"Bars, rods and solid profiles, of aluminium alloys, n.e.s."},{"$nulls":6},{"$f":"Translations!$B$688","v":"Aluminium products"}]
[{"$nulls":4},"7604 29 10",{"$f":"Translations!$B$1374","v":"Bars and rods of aluminium alloys"},{"$nulls":6},{"$f":"Translations!$B$688","v":"Aluminium products"}]
[{"$nulls":4},"7604 29 90",{"$f":"Translations!$B$1375","v":"Solid profiles, of aluminium alloys, n.e.s."},{"$nulls":6},{"$f":"Translations!$B$688","v":"Aluminium products"}]
[{"$nulls":4},"7605",{"$f":"Translations!$B$1376","v":"Aluminium wire (excl. stranded wire, cables, plaited bands and the like and other articles of heading 7614, electrically insulated wires, and strings for musical instruments)"},{"$nulls":6},{"$f":"Translations!$B$688","v":"Aluminium products"}]
[{"$nulls":4},"7605 11 00",{"$f":"Translations!$B$1377","v":"Wire of non-alloy aluminium, with a maximum cross-sectional dimension of > 7 mm (excl. stranded wire, cables, plaited bands and the like and other articles of heading 7614, and electrically insulated wires)"},{"$nulls":6},{"$f":"Translations!$B$688","v":"Aluminium products"}]
[{"$nulls":4},"7605 19 00",{"$f":"Translations!$B$1378","v":"Wire of non-alloy aluminium, with a maximum cross-sectional dimension of <= 7 mm (other than stranded wires, cables, ropes and other articles of heading 7614, electrically insulated wires, strings for musical instruments)"},{"$nulls":6},{"$f":"Translations!$B$688","v":"Aluminium products"}]
[{"$nulls":4},"7605 21 00",{"$f":"Translations!$B$1379","v":"Wire of aluminium alloys, with a maximum cross-sectional dimension of > 7 mm (excl. stranded wire, cables, plaited bands and the like and other articles of heading 7614, and electrically insulated wires)"},{"$nulls":6},{"$f":"Translations!$B$688","v":"Aluminium products"}]
[{"$nulls":4},"7605 29 00",{"$f":"Translations!$B$1380","v":"Wire, of aluminium alloys, having a maximum cross-sectional dimension of <= 7 mm (other than stranded wires, cables, ropes and other articles of heading 7614, electrically insulated wires, strings for musical instruments)"},{"$nulls":6},{"$f":"Translations!$B$688","v":"Aluminium products"}]
[{"$nulls":4},"7606",{"$f":"Translations!$B$1381","v":"Plates, sheets and strip, of aluminium, of a thickness of > 0,2 mm (excl. expanded plates, sheets and strip)"},{"$nulls":6},{"$f":"Translations!$B$688","v":"Aluminium products"}]
[{"$nulls":4},"7606 11",{"$f":"Translations!$B$1382","v":"Plates, sheets and strip, of non-alloy aluminium, of a thickness of > 0,2 mm, square or rectangular (excl. expanded plates, sheets and strip)"},{"$nulls":6},{"$f":"Translations!$B$688","v":"Aluminium products"}]
[{"$nulls":4},"7606 11 30",{"$f":"Translations!$B$1383","v":"Aluminium Composite Panel, of non-alloy aluminium, of a thickness of > 0,2 mm"},{"$nulls":6},{"$f":"Translations!$B$688","v":"Aluminium products"}]
[{"$nulls":4},"7606 11 50",{"$f":"Translations!$B$1384","v":"Plates, sheets and strip, of non-alloy aluminium, of a thickness of > 0,2 mm, square or rectangular, painted, varnished or coated with plastics (excl. Aluminium Composite Panel)"},{"$nulls":6},{"$f":"Translations!$B$688","v":"Aluminium products"}]
[{"$nulls":4},"7606 11 91",{"$f":"Translations!$B$1385","v":"Plates, sheets and strip, of non-alloy aluminium, of a thickness of > 0,2 mm but < 3 mm, square or rectangular (excl. such products painted, varnished or coated with plastics, and expanded plates, sheets and strip)"},{"$nulls":6},{"$f":"Translations!$B$688","v":"Aluminium products"}]
[{"$nulls":4},"7606 11 93",{"$f":"Translations!$B$1386","v":"Plates, sheets and strip, of non-alloy aluminium, of a thickness of >= 3 mm but < 6 mm, square or rectangular (excl. such products painted, varnished or coated with plastics)"},{"$nulls":6},{"$f":"Translations!$B$688","v":"Aluminium products"}]
[{"$nulls":4},"7606 11 99",{"$f":"Translations!$B$1387","v":"Plates, sheets and strip, of non-alloy aluminium, of a thickness of >= 6 mm, square or rectangular (excl. such products painted, varnished or coated with plastics)"},{"$nulls":6},{"$f":"Translations!$B$688","v":"Aluminium products"}]
[{"$nulls":4},"7606 12",{"$f":"Translations!$B$1388","v":"Plates, sheets and strip, of aluminium alloys, of a thickness of > 0,2 mm, square or rectangular (excl. expanded plates, sheets and strip)"},{"$nulls":6},{"$f":"Translations!$B$688","v":"Aluminium products"}]
[{"$nulls":4},"7606 12 11",{"$f":"Translations!$B$1389","v":"Beverage can body stock, of aluminium alloys, of a thickness of > 0,2 mm"},{"$nulls":6},{"$f":"Translations!$B$688","v":"Aluminium products"}]
[{"$nulls":4},"7606 12 19",{"$f":"Translations!$B$1390","v":"Beverage can end stock and tab stock, of aluminium alloys, of a thickness of > 0,2 mm"},{"$nulls":6},{"$f":"Translations!$B$688","v":"Aluminium products"}]
[{"$nulls":4},"7606 12 30",{"$f":"Translations!$B$1391","v":"Aluminium Composite Panel, of aluminium alloys, of a thickness of > 0,2 mm"},{"$nulls":6},{"$f":"Translations!$B$688","v":"Aluminium products"}]
[{"$nulls":4},"7606 12 50",{"$f":"Translations!$B$1392","v":"Plates, sheets and strip, of aluminium alloys, of a thickness of > 0,2 mm, square or rectangular, painted, varnished or coated with plastics (excl. beverage can body stock, end stock and tab stock, and Aluminium Composite Panel)"},{"$nulls":6},{"$f":"Translations!$B$688","v":"Aluminium products"}]
[{"$nulls":4},"7606 12 92",{"$f":"Translations!$B$1393","v":"Plates, sheets and strip, of aluminium alloys, of a thickness of > 0,2 mm but < 3 mm, square or rectangular (excl. painted, varnished or coated with plastics, expanded plates, sheets and strip, beverage can body stock, end stock and tab stock)"},{"$nulls":6},{"$f":"Translations!$B$688","v":"Aluminium products"}]
[{"$nulls":4},"7606 12 93",{"$f":"Translations!$B$1394","v":"Plates, sheets and strip, of aluminium alloys, of a thickness of >= 3 mm but < 6 mm, square or rectangular (excl. such products painted, varnished or coated with plastics)"},{"$nulls":6},{"$f":"Translations!$B$688","v":"Aluminium products"}]
[{"$nulls":4},"7606 12 99",{"$f":"Translations!$B$1395","v":"Plates, sheets and strip, of aluminium alloys, of a thickness of >= 6 mm, square or rectangular (excl. such products painted, varnished or coated with plastics)"},{"$nulls":6},{"$f":"Translations!$B$688","v":"Aluminium products"}]
[{"$nulls":4},"7606 91 00",{"$f":"Translations!$B$1396","v":"Plates, sheets and strip, of non-alloy aluminium, of a thickness of > 0,2 mm (other than square or rectangular)"},{"$nulls":6},{"$f":"Translations!$B$688","v":"Aluminium products"}]
[{"$nulls":4},"7606 92 00",{"$f":"Translations!$B$1397","v":"Plates, sheets and strip, of aluminium alloys, of a thickness of > 0,2 mm (other than square or rectangular)"},{"$nulls":6},{"$f":"Translations!$B$688","v":"Aluminium products"}]
[{"$nulls":4},"7607",{"$f":"Translations!$B$1398","v":"Aluminium foil, \"whether or not printed or backed with paper, paperboard, plastics or similar backing materials\", of a thickness \"excl. any backing\" of <= 0,2 mm (excl. stamping foils of heading 3212, christmas tree decorating material)"},{"$nulls":6},{"$f":"Translations!$B$688","v":"Aluminium products"}]
[{"$nulls":4},"7607 11",{"$f":"Translations!$B$1399","v":"Aluminium foil, not backed, rolled but not further worked, of a thickness of <= 0,2 mm (excl. stamping foils of heading 3212, and foil made up as christmas tree decorating material)"},{"$nulls":6},{"$f":"Translations!$B$688","v":"Aluminium products"}]
[{"$nulls":4},"7607 11 11",{"$f":"Translations!$B$1400","v":"Aluminium foil, not backed, rolled but not further worked, of a thickness of < 0,021 mm, in rolls of a weight of <= 10 kg (excl. stamping foils of heading 3212, and foil made up as christmas tree decorating material)"},{"$nulls":6},{"$f":"Translations!$B$688","v":"Aluminium products"}]
[{"$nulls":4},"7607 11 19",{"$f":"Translations!$B$1401","v":"Aluminium foil, not backed, rolled but not further worked, of a thickness of < 0,021 mm (excl. stamping foils of heading 3212, and foil made up as christmas tree decorating material and in rolls of a weight <= 10 kg)"},{"$nulls":6},{"$f":"Translations!$B$688","v":"Aluminium products"}]
[{"$nulls":4},"7607 11 90",{"$f":"Translations!$B$1402","v":"Aluminium foil, not backed, rolled but not further worked, of a thickness of >= 0,021 mm but <= 2 mm (excl. stamping foils of heading 3212, and foil made up as christmas tree decorating material)"},{"$nulls":6},{"$f":"Translations!$B$688","v":"Aluminium products"}]
[{"$nulls":4},"7607 19",{"$f":"Translations!$B$1403","v":"Aluminium foil, not backed, rolled and further worked, of a thickness of <= 2 mm (excl. stamping foils of heading 3212, and foil made up as christmas tree decorating material)"},{"$nulls":6},{"$f":"Translations!$B$688","v":"Aluminium products"}]
[{"$nulls":4},"7607 19 10",{"$f":"Translations!$B$1404","v":"Aluminium foil, not backed, rolled and further worked, of a thickness of < 0,021 mm (excl. stamping foils of heading 3212, and foil made up as christmas tree decorating material)"},{"$nulls":6},{"$f":"Translations!$B$688","v":"Aluminium products"}]
[{"$nulls":4},"7607 19 90",{"$f":"Translations!$B$1405","v":"Aluminium foil, not backed, rolled and further worked, of a thickness (excl. any backing) from 0,021 mm to 0,2 mm (excl. stamping foils of heading 3212, and foil made up as christmas tree decorating material)"},{"$nulls":6},{"$f":"Translations!$B$688","v":"Aluminium products"}]
[{"$nulls":4},"7607 20",{"$f":"Translations!$B$1406","v":"Aluminium foil, backed, of a thickness (excl. any backing) of <= 0,2 mm (excl. stamping foils of heading 3212, and foil made up as christmas tree decorating material)"},{"$nulls":6},{"$f":"Translations!$B$688","v":"Aluminium products"}]
[{"$nulls":4},"7607 20 10",{"$f":"Translations!$B$1407","v":"Aluminium foil, backed, of a thickness (excl. any backing) of < 0,021 mm (excl. stamping foils of heading 3212, and foil made up as christmas tree decorating material)"},{"$nulls":6},{"$f":"Translations!$B$688","v":"Aluminium products"}]
[{"$nulls":4},"7607 20 91",{"$f":"Translations!$B$1408","v":"Aluminium Composite Panel, of a thickness <= 0,2 mm"},{"$nulls":6},{"$f":"Translations!$B$688","v":"Aluminium products"}]
[{"$nulls":4},"7607 20 99",{"$f":"Translations!$B$1409","v":"Aluminium foil, backed, of a thickness (excl. any backing) of >= 0,021 mm but <= 0,2 mm (excl. stamping foils of heading 3212, foil made up as christmas tree decorating material, and Aluminium Composite Panel)"},{"$nulls":6},{"$f":"Translations!$B$688","v":"Aluminium products"}]
[{"$nulls":4},"7608",{"$f":"Translations!$B$1410","v":"Aluminium tubes and pipes (excl. hollow profiles)"},{"$nulls":6},{"$f":"Translations!$B$688","v":"Aluminium products"}]
[{"$nulls":4},"7608 10 00",{"$f":"Translations!$B$1411","v":"Tubes and pipes of non-alloy aluminium (excl. hollow profiles)"},{"$nulls":6},{"$f":"Translations!$B$688","v":"Aluminium products"}]
[{"$nulls":4},"7608 20",{"$f":"Translations!$B$1412","v":"Tubes and pipes of aluminium alloys (excl. hollow profiles)"},{"$nulls":6},{"$f":"Translations!$B$688","v":"Aluminium products"}]
[{"$nulls":4},"7608 20 20",{"$f":"Translations!$B$1413","v":"Tubes and pipes of aluminium alloys, welded (excl. hollow profiles)"},{"$nulls":6},{"$f":"Translations!$B$688","v":"Aluminium products"}]
[{"$nulls":4},"7608 20 81",{"$f":"Translations!$B$1414","v":"Tubes and pipes of aluminium alloys, not further worked than extruded (excl. hollow profiles)"},{"$nulls":6},{"$f":"Translations!$B$688","v":"Aluminium products"}]
[{"$nulls":4},"7608 20 89",{"$f":"Translations!$B$1415","v":"Tubes and pipes of aluminium alloys (excl. such products welded or not further worked than extruded, and hollow profiles)"},{"$nulls":6},{"$f":"Translations!$B$688","v":"Aluminium products"}]
[{"$nulls":4},"7609 00 00",{"$f":"Translations!$B$1416","v":"Aluminium tube or pipe fittings \"e.g., couplings, elbows, sleeves\""},{"$nulls":6},{"$f":"Translations!$B$688","v":"Aluminium products"}]
[{"$nulls":4},"7610",{"$f":"Translations!$B$1417","v":"Structures and parts of structures \"e.g., bridges and bridge-sections, towers, lattice masts, pillars and columns, roofs, roofing frameworks, doors and windows and their frames and thresholds for doors, shutters, balustrades\", of aluminium (excl. prefabricated buildings of heading 9406); plates, rods, profiles, tubes and the like, prepared for use in structures, of aluminium"},{"$nulls":6},{"$f":"Translations!$B$688","v":"Aluminium products"}]
[{"$nulls":4},"7610 10 00",{"$f":"Translations!$B$1418","v":"Doors, windows and their frames and thresholds for door, of aluminium (excl. door furniture)"},{"$nulls":6},{"$f":"Translations!$B$688","v":"Aluminium products"}]
[{"$nulls":4},"7610 90",{"$f":"Translations!$B$1419","v":"Structures and parts of structures, of aluminium, n.e.s., and plates, rods, profiles, tubes and the like, prepared for use in structures, of aluminium, n.e.s. (excl. prefabricated buildings of heading 9406, doors and windows and their frames and thresholds for doors)"},{"$nulls":6},{"$f":"Translations!$B$688","v":"Aluminium products"}]
[{"$nulls":4},"7610 90 10",{"$f":"Translations!$B$1420","v":"Bridges and bridge-sections, towers and lattice masts, of aluminium"},{"$nulls":6},{"$f":"Translations!$B$688","v":"Aluminium products"}]
[{"$nulls":4},"7610 90 90",{"$f":"Translations!$B$1421","v":"Structures and parts of structures, of aluminium, n.e.s., and plates, rods, profiles, tubes and the like, prepared for use in structures, of aluminium, n.e.s. (excl. prefabricated buildings of heading 9406, doors and windows and their frames and thresholds for doors, bridges and bridge-sections, towers and lattice masts)"},{"$nulls":6},{"$f":"Translations!$B$688","v":"Aluminium products"}]
[{"$nulls":4},"7611 00 00",{"$f":"Translations!$B$1422","v":"Reservoirs, tanks, vats and similar containers, of aluminium, for any material (other than compressed or liquefied gas), of a capacity of > 300 l, not fitted with mechanical or thermal equipment, whether or not lined or heat-insulated (excl. containers specifically constructed or equipped for one or more types of transport)"},{"$nulls":6},{"$f":"Translations!$B$688","v":"Aluminium products"}]
[{"$nulls":4},"7612",{"$f":"Translations!$B$1423","v":"Casks, drums, cans, boxes and similar containers, incl. rigid or collapsible tubular containers, of aluminium, for any material (other than compressed or liquefied gas), of a capacity of <= 300 l, not fitted with mechanical or thermal equipment, whether or not lined or heat-insulated, n.e.s."},{"$nulls":6},{"$f":"Translations!$B$688","v":"Aluminium products"}]
[{"$nulls":4},"7612 10 00",{"$f":"Translations!$B$1424","v":"Collapsible tubular containers, of aluminium"},{"$nulls":6},{"$f":"Translations!$B$688","v":"Aluminium products"}]
[{"$nulls":4},"7612 90",{"$f":"Translations!$B$1425","v":"Casks, drums, cans, boxes and similar containers, incl. rigid tubular containers, of aluminium, for any material (other than compressed or liquefied gas), of a capacity of <= 300 l, n.e.s."},{"$nulls":6},{"$f":"Translations!$B$688","v":"Aluminium products"}]
[{"$nulls":4},"7612 90 20",{"$f":"Translations!$B$1426","v":"Containers of a kind used for aerosols, of aluminium"},{"$nulls":6},{"$f":"Translations!$B$688","v":"Aluminium products"}]
[{"$nulls":4},"7612 90 30",{"$f":"Translations!$B$1427","v":"Casks, drums, cans, boxes and similar containers, of aluminium, manufactured from foil of a thickness <= 0,2 mm"},{"$nulls":6},{"$f":"Translations!$B$688","v":"Aluminium products"}]
[{"$nulls":4},"7612 90 80",{"$f":"Translations!$B$1428","v":"Casks, drums, cans, boxes and similar containers <= 300 l, of aluminium, for any material (other than compressed or liquefied gas), n.e.s. (other than collapsible tubular containers, containers for aerosols and containers manufactured from foil of a thickness <= 0,2 mm"},{"$nulls":6},{"$f":"Translations!$B$688","v":"Aluminium products"}]
[{"$nulls":4},"7613 00 00",{"$f":"Translations!$B$1429","v":"Aluminium containers for compressed or liquefied gas"},{"$nulls":6},{"$f":"Translations!$B$688","v":"Aluminium products"}]
[{"$nulls":4},"7614",{"$f":"Translations!$B$1430","v":"Stranded wire, cables, plaited bands and the like, of aluminium (excl. such products electrically insulated)"},{"$nulls":6},{"$f":"Translations!$B$688","v":"Aluminium products"}]
[{"$nulls":4},"7614 10 00",{"$f":"Translations!$B$1431","v":"Stranded wire, cables, plaited bands and the like, of aluminium, with steel core (excl. such products electrically insulated)"},{"$nulls":6},{"$f":"Translations!$B$688","v":"Aluminium products"}]
[{"$nulls":4},"7614 90 00",{"$f":"Translations!$B$1432","v":"Stranded wires, cables, ropes and similar articles, of aluminium (other than with steel core and electrically insulated products)"},{"$nulls":6},{"$f":"Translations!$B$688","v":"Aluminium products"}]
[{"$nulls":4},"7616",{"$f":"Translations!$B$1433","v":"Articles of aluminium, n.e.s."},{"$nulls":6},{"$f":"Translations!$B$688","v":"Aluminium products"}]
[{"$nulls":4},"7616 10 00",{"$f":"Translations!$B$1434","v":"Nails, tacks, staples, screws, bolts, nuts, screw hooks, rivets, cotters, cotter pins, washers and similar articles, of aluminium (excl. staples in strips, plugs, bungs and the like, threaded)"},{"$nulls":6},{"$f":"Translations!$B$688","v":"Aluminium products"}]
[{"$nulls":4},"7616 91 00",{"$f":"Translations!$B$1435","v":"Cloth, grill, netting and fencing, of aluminium wire (excl. cloth of metal fibres for clothing, lining and similar uses, and cloth, grill and netting made into hand sieves or machine parts)"},{"$nulls":6},{"$f":"Translations!$B$688","v":"Aluminium products"}]
[{"$nulls":4},"7616 99",{"$f":"Translations!$B$1433","v":"Articles of aluminium, n.e.s."},{"$nulls":6},{"$f":"Translations!$B$688","v":"Aluminium products"}]
[{"$nulls":4},"7616 99 10",{"$f":"Translations!$B$1436","v":"Articles of aluminium, cast, n.e.s."},{"$nulls":6},{"$f":"Translations!$B$688","v":"Aluminium products"}]
[{"$nulls":4},"7616 99 90",{"$f":"Translations!$B$1437","v":"Articles of aluminium, uncast, n.e.s."},{"$nulls":6},{"$f":"Translations!$B$688","v":"Aluminium products"}]
{"$rows_empty":2075}
["ausblenden",{"$nulls":14},"PRINT"]
["ausblenden"]
["ausblenden"]

{"sheet":"A_InstData","index":4,"n_rows":124,"n_cols":35,"rows_kept":124,"merged":[[1,1,3,3],[1,4,1,5],[1,6,1,7],[1,8,1,9],[1,10,1,11],[1,12,1,13],[2,4,2,5],[2,6,2,7],[2,8,2,9],[2,10,2,11],[2,12,2,13],[3,4,3,5],[3,6,3,7],[3,8,3,9],[3,10,3,11],[3,12,3,13],[8,8,8,9],[8,11,8,12],[12,4,12,13],[13,4,13,13],[18,4,18,7],[18,8,18,13],[19,4,19,7],[19,8,19,13],[20,4,20,7],[20,8,20,13],[21,4,21,7],[21,8,21,13],[22,4,22,7],[22,8,22,13],[23,4,23,7],[23,8,23,13],[24,4,24,7],[24,8,24,13],[25,4,25,7],[25,8,25,13],[26,4,26,7],[26,8,26,13],[27,4,27,7],[27,8,27,13],[28,4,28,7],[28,8,28,13],[29,4,29,7],[29,8,29,13],[30,8,30,13],[31,8,31,13],[35,4,35,13],[36,4,36,7],[36,8,36,13],[37,4,37,7],[37,8,37,13],[38,4,38,7],[38,8,38,13],[39,4,39,7],[39,8,39,13],[40,4,40,7],[40,8,40,13],[42,4,42,13],[43,4,43,13],[44,4,44,7],[44,8,44,13],[45,4,45,7],[45,8,45,13],[46,4,46,7],[46,8,46,13],[47,4,47,7],[47,8,47,13],[49,4,49,13],[50,4,50,7],[50,8,50,13],[51,4,51,7],[51,8,51,13],[52,4,52,7],[52,8,52,13],[56,4,56,13],[57,4,57,13],[58,4,58,13],[60,4,60,5],[60,6,60,7],[61,4,61,5],[61,6,61,7],[62,4,62,5],[62,6,62,7],[63,4,63,5],[63,6,63,7],[64,4,64,5],[64,6,64,7],[65,4,65,5],[65,6,65,7],[66,4,66,5],[66,6,66,7],[67,4,67,5],[67,6,67,7],[68,4,68,5],[68,6,68,7],[69,4,69,5],[69,6,69,7],[70,4,70,5],[70,6,70,7],[72,4,72,13],[75,4,75,13],[76,4,76,13],[77,4,77,13],[79,3,80,3],[79,4,80,4],[79,5,79,10],[79,11,80,12],[79,13,80,13],[81,11,81,12],[82,11,82,12],[83,11,83,12],[84,11,84,12],[85,11,85,12],[86,11,86,12],[87,11,87,12],[88,11,88,12],[89,11,89,12],[90,11,90,12],[92,7,92,13],[96,4,96,13],[97,4,97,13],[99,11,99,12],[100,11,100,12],[101,11,101,12],[102,11,102,12],[103,11,103,12],[104,11,104,12],[105,11,105,12],[106,11,106,12],[107,11,107,12],[108,11,108,12],[109,11,109,12],[110,11,110,12],[111,11,111,12],[112,11,112,12],[113,11,113,12],[114,11,114,12],[115,11,115,12],[116,11,116,12],[117,11,117,12],[118,11,118,12],[119,11,119,12]]}
["ausblenden",{"$nulls":16},"ausblenden","ausblenden","ausblenden","ausblenden","ausblenden","ausblenden","ausblenden","ausblenden","ausblenden","ausblenden","ausblenden","ausblenden","ausblenden","ausblenden","ausblenden","ausblenden","ausblenden","ausblenden"]
[null,{"$f":"Translations!$B$64","v":"InstData"},null,null,{"$f":"Translations!$B$11","v":"Navigation Area:"},null,{"$f":"HYPERLINK(\"#\"&ADDRESS(2,3,,,a_Contents!$U$2),a_Contents!$B$2)","v":"Table of contents"},null,{"$f":"HYPERLINK(\"#\"&ADDRESS(2,3,,,G_FurtherGuidance!$U$2),G_FurtherGuidance!$B$2)","v":"Further Guidance"},null,{"$f":"HYPERLINK(\"#\"&ADDRESS(2,3,,,Summary_Processes!$Y$2),Summary_Processes!$Y$2)","v":"Summary_Processes"},null,{"$f":"HYPERLINK(\"#\"&ADDRESS(2,3,,,Summary_Products!$BF$2),Summary_Products!$BF$2)","v":"Summary_Products"},{"$nulls":4},"Print area:",{"$f":"ADDRESS(ROW($B$6),COLUMN($B$55))&\":\"&ADDRESS(MATCH(\"PRINT\",$P:$P,0),COLUMN($O$55))","v":"$B$6:$O$122"},"Name of this sheet",{"$f":"IF(ISERROR(CELL(\"filename\",V2)),\"MSParameters\",MID(CELL(\"filename\",V2),FIND(\"]\",CELL(\"filename\",V2))+1,1024))","v":"A_InstData"}]
[{"$nulls":6},{"$f":"IFERROR(HYPERLINK(\"#\"&ADDRESS(ROW($A$1)+MATCH(R3,$A:$A,0)-1,3),INDEX($R:$R,MATCH(R3,$A:$A,0))),\"\")","v":"Reporting period"},null,{"$f":"IFERROR(HYPERLINK(\"#\"&ADDRESS(ROW($A$1)+MATCH(T3,$A:$A,0)-1,3),INDEX($R:$R,MATCH(T3,$A:$A,0))),\"\")","v":"About the installation"},null,{"$f":"IFERROR(HYPERLINK(\"#\"&ADDRESS(ROW($A$1)+MATCH(V3,$A:$A,0)-1,3),INDEX($R:$R,MATCH(V3,$A:$A,0))),\"\")","v":"Verifier"},null,{"$f":"IFERROR(HYPERLINK(\"#\"&ADDRESS(ROW($A$1)+MATCH(X3,$A:$A,0)-1,3),INDEX($R:$R,MATCH(X3,$A:$A,0))),\"\")","v":"Goods & precursors"},{"$nulls":4},1,null,2,null,3,null,4]
[{"$nulls":6},{"$f":"IFERROR(HYPERLINK(\"#\"&ADDRESS(ROW($A$1)+MATCH(R4,$A:$A,0)-1,3),INDEX($R:$R,MATCH(R4,$A:$A,0))),\"\")","v":"Purchased precursors"},null,{"$f":"IFERROR(HYPERLINK(\"#\"&ADDRESS(ROW($A$1)+MATCH(T4,$A:$A,0)-1,3),INDEX($R:$R,MATCH(T4,$A:$A,0))),\"\")","v":""},null,{"$f":"IFERROR(HYPERLINK(\"#\"&ADDRESS(ROW($A$1)+MATCH(V4,$A:$A,0)-1,3),INDEX($R:$R,MATCH(V4,$A:$A,0))),\"\")","v":""},null,{"$f":"IFERROR(HYPERLINK(\"#\"&ADDRESS(ROW($A$1)+MATCH(X4,$A:$A,0)-1,3),INDEX($R:$R,MATCH(X4,$A:$A,0))),\"\")","v":""},{"$nulls":4},5,null,6,null,7,null,8]
[]
[null,null,"A.",null,{"$f":"Translations!$B$65","v":"Sheet \"A_InstData\" - General information, production processes and purchased precursors "},{"$nulls":12},"Marker",{"$nulls":14},{"$f":"Translations!$B$66","v":"Errors"},null,"Cond. form."]
[]
[]
[{"$f":"C9","v":1},null,1,{"$f":"Translations!$B$67","v":"Reporting period"},{"$nulls":3},{"$f":"Translations!$B$68","v":"Start:"},null,null,{"$f":"Translations!$B$69","v":"End:"},{"$nulls":6},{"$f":"D9","v":"Reporting period"},{"$nulls":14},{"$f":"IF(AND(CNTR_HasEntriesA,COUNTA(I9,L9)<2),CONST_ErrorOrMissing&A9,CONST_NA)","v":"n.a."}]
[]
[]
[]
[{"$nulls":4},{"$f":"Translations!$B$70","v":"Please enter here the starting date and the end date of the reporting period to which all data entered in this communication template refers to. For example, if you want to report data based on the whole calendar year 2023, the starting date would be 1.1.2023 and the end date 31.12.2023."}]
[{"$nulls":4},{"$f":"Translations!$B$71","v":"It is important that all data entered in this template (embedded emissions, carbon price due, product properties, etc.) all relate to that same reporting period entered above."}]
[]
[]
[{"$f":"C17","v":2},null,2,{"$f":"Translations!$B$72","v":"About the installation"},{"$nulls":13},{"$f":"D17","v":"About the installation"}]
[]
[{"$nulls":3},"i.",{"$f":"Translations!$B$73","v":"Name of the installation (optional):"}]
[{"$nulls":3},"ii.",{"$f":"Translations!$B$74","v":"Name of the installation (English name):"},{"$nulls":27},{"$f":"IF(AND(CNTR_HasEntriesA,I20=\"\"),CONST_ErrorOrMissing&A17,CONST_NA)","v":"n.a."}]
[{"$nulls":3},"iii.",{"$f":"Translations!$B$75","v":"Street, Number:"}]
[{"$nulls":3},"iv.",{"$f":"Translations!$B$76","v":"Economic activity:"}]
[{"$nulls":3},"v.",{"$f":"Translations!$B$77","v":"Post code:"}]
[{"$nulls":3},"vi.",{"$f":"Translations!$B$78","v":"P.O. Box:"}]
[{"$nulls":3},"vii.",{"$f":"Translations!$B$79","v":"City:"}]
[{"$nulls":3},"viii.",{"$f":"Translations!$B$80","v":"Country:"},{"$nulls":13},{"$f":"IF(I26=\"\",\"\",INDEX(CNTR_ListCountriesCode,MATCH(I26,CNTR_ListCountriesName,0)))","v":""},{"$nulls":13},{"$f":"IF(AND(CNTR_HasEntriesA,I26=\"\"),CONST_ErrorOrMissing&A17,CONST_NA)","v":"n.a."}]
[{"$nulls":3},"ix.",{"$f":"Translations!$B$81","v":"UNLOCODE:"}]
[{"$nulls":3},"x.",{"$f":"Translations!$B$82","v":"Coordinates of the main emission source (latitude):"}]
[{"$nulls":3},"xi.",{"$f":"Translations!$B$83","v":"Coordinates of the main emission source (longitude):"}]
[{"$nulls":3},"xii.",{"$f":"Translations!$B$84","v":"Name of authorized representative:"}]
[{"$nulls":3},"xiii.",{"$f":"Translations!$B$85","v":"Email:"}]
[{"$nulls":3},"xiv.",{"$f":"Translations!$B$86","v":"Telephone:"}]
[]
[{"$f":"C34","v":3},null,3,{"$f":"Translations!$B$87","v":"Verifier of the report – only if available and not required during transitional period"},{"$nulls":13},{"$f":"Translations!$B$88","v":"Verifier"}]
[]
[{"$nulls":3},"(a)",{"$f":"Translations!$B$89","v":"Name and address of the verifier of this report:"}]
[{"$nulls":3},"i.",{"$f":"Translations!$B$90","v":"Company Name:"}]
[{"$nulls":3},"ii.",{"$f":"Translations!$B$75","v":"Street, Number:"}]
[{"$nulls":3},"iii.",{"$f":"Translations!$B$79","v":"City:"}]
[{"$nulls":3},"iv.",{"$f":"Translations!$B$91","v":"Postcode/ZIP:"}]
[{"$nulls":3},"v.",{"$f":"Translations!$B$80","v":"Country:"}]
[]
[{"$nulls":3},"(b)",{"$f":"Translations!$B$92","v":"Authorised representative of the verifier:"}]
[{"$nulls":4},{"$f":"Translations!$B$93","v":"The nominated person should be familiar with this report. Ideally it is the lead verifier involved with this report."}]
[{"$nulls":3},"i.",{"$f":"Translations!$B$94","v":"Name:"}]
[{"$nulls":3},"ii.",{"$f":"Translations!$B$95","v":"Email address:"}]
[{"$nulls":3},"iii.",{"$f":"Translations!$B$96","v":"Telephone number:"}]
[{"$nulls":3},"iv.",{"$f":"Translations!$B$97","v":"Fax:"}]
[]
[{"$nulls":3},"(c)",{"$f":"Translations!$B$98","v":"Information about the verifier's accreditation:"}]
[{"$nulls":3},"i.",{"$f":"Translations!$B$99","v":"Accreditation Member State:"}]
[{"$nulls":3},"ii.",{"$f":"Translations!$B$100","v":"Name of the national accreditation body:"}]
[{"$nulls":3},"iii.",{"$f":"Translations!$B$101","v":"Registration number issued by the Accreditation body:"}]
[]
[{"$f":"C55","v":4},null,4,{"$f":"Translations!$B$102","v":"Aggregated goods categories and relevant production processes"},{"$nulls":13},{"$f":"Translations!$B$103","v":"Goods & precursors"}]
[]
[{"$nulls":3},"(a)",{"$f":"Translations!$B$104","v":"List of aggregated goods categories, relevant precursors and corresponding production routes"}]
[{"$nulls":4},{"$f":"Translations!$B$105","v":"Please list here ALL aggregated goods categories, including any relevant precursor types produced WITHIN the installation."}]
[{"$nulls":4},{"$f":"Translations!$B$106","v":"Where relevant, please list all production routes through which the aggregated goods are produced."}]
[]
[{"$nulls":3},"ID",{"$f":"Translations!$B$107","v":"Aggregated goods category"},null,{"$f":"Translations!$B$108","v":"Route"},null,{"$f":"Translations!$B$109","v":"Route 1"},{"$f":"Translations!$B$110","v":"Route 2"},{"$f":"Translations!$B$111","v":"Route 3"},{"$f":"Translations!$B$112","v":"Route 4"},{"$f":"Translations!$B$113","v":"Route 5"},{"$f":"Translations!$B$114","v":"Route 6"},{"$nulls":3},"CNTR_List_ExistGoodTypesInclDir",{"$f":"CONST_OnlyDirProd","v":"Only direct production"},{"$nulls":3},"GoodID","RouteID 1","RouteID 2","RouteID 3","RouteID 4","RouteID 5","RouteID 6",null,"Incomplete?"]
[{"$nulls":3},"G1",null,null,{"$f":"IF(E62=\"\",\"\",IF(COUNTIF(INDEX(CONST_MATRIX_ProductionRoute,MATCH(E62,CONST_LIST_Goods,0),),CONST_NA)=9,CONST_AllProdRoutes,CONST_PleaseSelect))","v":""},{"$nulls":10},"CNTR_List_ExistGoodTypes",{"$f":"IF(E62=\"\",CONST_NA,E62)","v":"n.a."},{"$f":"IF(E62=\"\",\"\",INDEX(CONST_LIST_GoodsProdRouteAdd,MATCH(E62,CONST_LIST_Goods,0)))","v":""},null,{"$f":"D62","v":"G1"},{"$f":"IF(E62=\"\",\"\",MATCH(E62,CONST_LIST_Goods,0))","v":""},{"$f":"IF(I62=\"\",\"\",$W62&\"_\"&MATCH(I62,INDEX(CONST_MATRIX_ProductionRoute,$W62,),0))","v":""},"","","","","",null,{"$f":"IF(E62=\"\",\"\",COUNTIF($E$82:$K$91,E62)=0)","v":""},null,{"$f":"IF(AND(CNTR_HasEntriesA,COUNTA(E62:F71)=0),CONST_ErrorOrMissing&A55,CONST_NA)","v":"n.a."},null,{"$f":"OR(AND(CNTR_HasEntriesA,E62=\"\"),AND(E62<>\"\",G62=CONST_AllProdRoutes))","v":false}]
[{"$nulls":3},"G2",null,null,"",{"$nulls":11},"n.a.","",null,"G2","","","","","","","",null,"",{"$nulls":3},false]
[{"$nulls":3},"G3",null,null,"",{"$nulls":11},"n.a.","",null,"G3","","","","","","","",null,"",{"$nulls":3},false]
[{"$nulls":3},"G4",null,null,"",{"$nulls":11},"n.a.","",null,"G4","","","","","","","",null,"",{"$nulls":3},false]
[{"$nulls":3},"G5",null,null,"",{"$nulls":11},"n.a.","",{"$f":"IF(E66=\"\",\"\",INDEX(CONST_LIST_GoodsPrecAdd,MATCH(E66,CONST_LIST_Goods,0)))","v":""},"G5","","","","","","","",null,"",{"$nulls":3},false]
[{"$nulls":3},"G6",null,null,"",{"$nulls":11},"n.a.","","","G6","","","","","","","",null,"",{"$nulls":3},false]
[{"$nulls":3},"G7",null,null,"",{"$nulls":11},{"$f":"IF(E68=\"\",CONST_NA,E68)","v":"n.a."},"","","G7",{"$f":"IF(E68=\"\",\"\",MATCH(E68,CONST_LIST_Goods,0))","v":""},{"$f":"IF(I68=\"\",\"\",$W68&\"_\"&MATCH(I68,INDEX(CONST_MATRIX_ProductionRoute,$W68,),0))","v":""},"","","","","",null,"",{"$nulls":3},{"$f":"OR(AND(CNTR_HasEntriesA,E68=\"\"),AND(E68<>\"\",G68=CONST_AllProdRoutes))","v":false}]
[{"$nulls":3},"G8",null,null,"",{"$nulls":11},{"$f":"IF(E69=\"\",CONST_NA,E69)","v":"n.a."},"","","G8",{"$f":"IF(E69=\"\",\"\",MATCH(E69,CONST_LIST_Goods,0))","v":""},"","","","","","",null,"",{"$nulls":3},{"$f":"OR(AND(CNTR_HasEntriesA,E69=\"\"),AND(E69<>\"\",G69=CONST_AllProdRoutes))","v":false}]
[{"$nulls":3},"G9",null,null,"",{"$nulls":11},{"$f":"IF(E70=\"\",CONST_NA,E70)","v":"n.a."},"","","G9",{"$f":"IF(E70=\"\",\"\",MATCH(E70,CONST_LIST_Goods,0))","v":""},"","","","","","",null,"",{"$nulls":3},{"$f":"OR(AND(CNTR_HasEntriesA,E70=\"\"),AND(E70<>\"\",G70=CONST_AllProdRoutes))","v":false}]
[{"$nulls":3},"G10",null,null,"",{"$nulls":11},{"$f":"IF(E71=\"\",CONST_NA,E71)","v":"n.a."},"","","G10",{"$f":"IF(E71=\"\",\"\",MATCH(E71,CONST_LIST_Goods,0))","v":""},"","","","","","",null,"",{"$nulls":3},{"$f":"OR(AND(CNTR_HasEntriesA,E71=\"\"),AND(E71<>\"\",G71=CONST_AllProdRoutes))","v":false}]
[]
[{"$nulls":4},{"$f":"Translations!$B$115","v":"For information, emissions from the following precursors are relevant for the embedded emissions of the types of aggregated goods listed above. Where those precursors are actually relevant for your production processes, please make sure those are also listed either in the table above (if produced within your installation) or under chapter 5 \"purchased precursors\" below (where produced in other installations)."}]
[{"$nulls":4},{"$f":"Translations!$B$116","v":"Relevant precursors:"},null,{"$f":"IF(COUNTIF(CONST_CNTR_PrecNumbering,COLUMNS($G74:G74))=0,\"\",INDEX(CONST_LIST_Goods,MATCH(COLUMNS($G74:G74),CONST_CNTR_PrecNumbering,0)))","v":""},{"$f":"IF(COUNTIF(CONST_CNTR_PrecNumbering,COLUMNS($G74:H74))=0,\"\",INDEX(CONST_LIST_Goods,MATCH(COLUMNS($G74:H74),CONST_CNTR_PrecNumbering,0)))","v":""},{"$f":"IF(COUNTIF(CONST_CNTR_PrecNumbering,COLUMNS($G74:I74))=0,\"\",INDEX(CONST_LIST_Goods,MATCH(COLUMNS($G74:I74),CONST_CNTR_PrecNumbering,0)))","v":""},{"$f":"IF(COUNTIF(CONST_CNTR_PrecNumbering,COLUMNS($G74:J74))=0,\"\",INDEX(CONST_LIST_Goods,MATCH(COLUMNS($G74:J74),CONST_CNTR_PrecNumbering,0)))","v":""},{"$f":"IF(COUNTIF(CONST_CNTR_PrecNumbering,COLUMNS($G74:K74))=0,\"\",INDEX(CONST_LIST_Goods,MATCH(COLUMNS($G74:K74),CONST_CNTR_PrecNumbering,0)))","v":""},{"$f":"IF(COUNTIF(CONST_CNTR_PrecNumbering,COLUMNS($G74:L74))=0,\"\",INDEX(CONST_LIST_Goods,MATCH(COLUMNS($G74:L74),CONST_CNTR_PrecNumbering,0)))","v":""},{"$f":"IF(COUNTIF(CONST_CNTR_PrecNumbering,COLUMNS($G74:M74))=0,\"\",INDEX(CONST_LIST_Goods,MATCH(COLUMNS($G74:M74),CONST_CNTR_PrecNumbering,0)))","v":""},{"$f":"IF(COUNTIF(CONST_CNTR_PrecNumbering,COLUMNS($G74:N74))=0,\"\",INDEX(CONST_LIST_Goods,MATCH(COLUMNS($G74:N74),CONST_CNTR_PrecNumbering,0)))","v":""}]
[]
[{"$nulls":3},"(b)",{"$f":"Translations!$B$117","v":"Relevant production processes"}]
[{"$nulls":4},{"$f":"Translations!$B$118","v":"Based on the list under (a), please list here only aggregated goods categories for which you want to establish distinct \"production process\" and assign all aggregated goods categories and relevant precursors that will be covered by its system boundary."}]
[{"$nulls":4},{"$f":"Translations!$B$119","v":"Example: if \"ammonia\" and \"nitric acid\" are both produced in your installation, you may either create a separate production process for each of these good types, or report them combined under 'nitric acid' under a 'bubble approach'. In the case of the latter, please select as of column F which other process you want to include under this 'bubble approach'. Note: the 'bubble approach' is only allowed if all ammonia produced is processed into nitric acid. If parts of the ammonia are exported from the installation, two separate production processes have to be selected here."}]
[]
[{"$nulls":3},"ID",{"$f":"Translations!$B$120","v":"Production process"},{"$f":"Translations!$B$121","v":"Included goods categories listed under (a)"},{"$nulls":5},{"$f":"Translations!$B$122","v":"Name"},null,{"$f":"Translations!$B$123","v":"Error message"}]
[{"$nulls":5},1,2,3,4,5,6,{"$nulls":7},"CNTR_List_ExistProdProc","CNTR_List_ExistProdProcNames",null,null,"GoodID","PrecID 1","PrecID 2","PrecID 3","PrecID 4","PrecID 5","PrecID 6","ProdRoute"]
[{"$nulls":3},"P1",{"$nulls":9},{"$f":"IF(E82=\"\",\"\",IF(OR(,L82=\"\",AND(AF82=FALSE,COUNTA(F82:K82)=0)),CONST_ERR_Incomplete,IF(COUNTIF(L$82:M82,L82)>1,CONST_ERR_Duplicate,\"\")))","v":""},{"$nulls":4},{"$f":"IF(E82=\"\",CONST_NA,E82)","v":"n.a."},{"$f":"IF(E82=\"\",CONST_NA,IF(L82=\"\",D82&\" - \"&E82,L82))","v":"n.a."},null,{"$f":"D82","v":"P1"},{"$f":"IF(E82=\"\",\"\",MATCH(E82,CONST_LIST_Goods,0))","v":""},{"$f":"IF(F82=\"\",\"\",$W82&\"_\"&IF(F82=$S$61,0,MATCH(F82,INDEX(Parameters_Constants!$AC$80:$AM$97,$W82,),0)))","v":""},{"$f":"IF(G82=\"\",\"\",$W82&\"_\"&IF(G82=$S$61,0,MATCH(G82,INDEX(Parameters_Constants!$AC$80:$AM$97,$W82,),0)))","v":""},{"$f":"IF(H82=\"\",\"\",$W82&\"_\"&IF(H82=$S$61,0,MATCH(H82,INDEX(Parameters_Constants!$AC$80:$AM$97,$W82,),0)))","v":""},{"$f":"IF(I82=\"\",\"\",$W82&\"_\"&IF(I82=$S$61,0,MATCH(I82,INDEX(Parameters_Constants!$AC$80:$AM$97,$W82,),0)))","v":""},{"$f":"IF(J82=\"\",\"\",$W82&\"_\"&IF(J82=$S$61,0,MATCH(J82,INDEX(Parameters_Constants!$AC$80:$AM$97,$W82,),0)))","v":""},{"$f":"IF(K82=\"\",\"\",$W82&\"_\"&IF(K82=$S$61,0,MATCH(K82,INDEX(Parameters_Constants!$AC$80:$AM$97,$W82,),0)))","v":""},{"$f":"IF(E82=\"\",\"\",IF(COUNTIF(INDEX(CONST_MATRIX_ProductionRoute,MATCH(E82,CONST_LIST_Goods,0),),CONST_NA)=9,CONST_AllProdRoutes,CONST_NA))","v":""},null,null,{"$f":"IF(AND(CNTR_HasEntriesA,N82<>\"\"),CONST_ErrorOrMissing&A55,CONST_NA)","v":"n.a."},null,{"$f":"AND(CNTR_HasEntriesA,E82=\"\")","v":false}]
[{"$nulls":3},"P2",{"$nulls":9},{"$f":"IF(E83=\"\",\"\",IF(OR(,L83=\"\",AND(AF83=FALSE,COUNTA(F83:K83)=0)),CONST_ERR_Incomplete,IF(COUNTIF(L$82:M83,L83)>1,CONST_ERR_Duplicate,\"\")))","v":""},{"$nulls":4},"n.a.","n.a.",null,{"$f":"D83","v":"P2"},"",{"$f":"IF(F83=\"\",\"\",$W83&\"_\"&IF(F83=$S$61,0,MATCH(F83,INDEX(Parameters_Constants!$AC$80:$AM$97,$W83,),0)))","v":""},{"$f":"IF(G83=\"\",\"\",$W83&\"_\"&IF(G83=$S$61,0,MATCH(G83,INDEX(Parameters_Constants!$AC$80:$AM$97,$W83,),0)))","v":""},{"$f":"IF(H83=\"\",\"\",$W83&\"_\"&IF(H83=$S$61,0,MATCH(H83,INDEX(Parameters_Constants!$AC$80:$AM$97,$W83,),0)))","v":""},{"$f":"IF(I83=\"\",\"\",$W83&\"_\"&IF(I83=$S$61,0,MATCH(I83,INDEX(Parameters_Constants!$AC$80:$AM$97,$W83,),0)))","v":""},{"$f":"IF(J83=\"\",\"\",$W83&\"_\"&IF(J83=$S$61,0,MATCH(J83,INDEX(Parameters_Constants!$AC$80:$AM$97,$W83,),0)))","v":""},{"$f":"IF(K83=\"\",\"\",$W83&\"_\"&IF(K83=$S$61,0,MATCH(K83,INDEX(Parameters_Constants!$AC$80:$AM$97,$W83,),0)))","v":""},"",null,null,{"$f":"IF(AND(CNTR_HasEntriesA,N83<>\"\"),CONST_ErrorOrMissing&A55,CONST_NA)","v":"n.a."},null,false]
[{"$nulls":3},"P3",{"$nulls":9},{"$f":"IF(E84=\"\",\"\",IF(OR(,L84=\"\",AND(AF84=FALSE,COUNTA(F84:K84)=0)),CONST_ERR_Incomplete,IF(COUNTIF(L$82:M84,L84)>1,CONST_ERR_Duplicate,\"\")))","v":""},{"$nulls":4},"n.a.","n.a.",null,"P3","",{"$f":"IF(F84=\"\",\"\",$W84&\"_\"&IF(F84=$S$61,0,MATCH(F84,INDEX(Parameters_Constants!$AC$80:$AM$97,$W84,),0)))","v":""},{"$f":"IF(G84=\"\",\"\",$W84&\"_\"&IF(G84=$S$61,0,MATCH(G84,INDEX(Parameters_Constants!$AC$80:$AM$97,$W84,),0)))","v":""},{"$f":"IF(H84=\"\",\"\",$W84&\"_\"&IF(H84=$S$61,0,MATCH(H84,INDEX(Parameters_Constants!$AC$80:$AM$97,$W84,),0)))","v":""},{"$f":"IF(I84=\"\",\"\",$W84&\"_\"&IF(I84=$S$61,0,MATCH(I84,INDEX(Parameters_Constants!$AC$80:$AM$97,$W84,),0)))","v":""},{"$f":"IF(J84=\"\",\"\",$W84&\"_\"&IF(J84=$S$61,0,MATCH(J84,INDEX(Parameters_Constants!$AC$80:$AM$97,$W84,),0)))","v":""},{"$f":"IF(K84=\"\",\"\",$W84&\"_\"&IF(K84=$S$61,0,MATCH(K84,INDEX(Parameters_Constants!$AC$80:$AM$97,$W84,),0)))","v":""},"",null,null,{"$f":"IF(AND(CNTR_HasEntriesA,N84<>\"\"),CONST_ErrorOrMissing&A55,CONST_NA)","v":"n.a."},null,false]
[{"$nulls":3},"P4",{"$nulls":9},{"$f":"IF(E85=\"\",\"\",IF(OR(,L85=\"\",AND(AF85=FALSE,COUNTA(F85:K85)=0)),CONST_ERR_Incomplete,IF(COUNTIF(L$82:M85,L85)>1,CONST_ERR_Duplicate,\"\")))","v":""},{"$nulls":4},"n.a.","n.a.",null,"P4","",{"$f":"IF(F85=\"\",\"\",$W85&\"_\"&IF(F85=$S$61,0,MATCH(F85,INDEX(Parameters_Constants!$AC$80:$AM$97,$W85,),0)))","v":""},{"$f":"IF(G85=\"\",\"\",$W85&\"_\"&IF(G85=$S$61,0,MATCH(G85,INDEX(Parameters_Constants!$AC$80:$AM$97,$W85,),0)))","v":""},{"$f":"IF(H85=\"\",\"\",$W85&\"_\"&IF(H85=$S$61,0,MATCH(H85,INDEX(Parameters_Constants!$AC$80:$AM$97,$W85,),0)))","v":""},{"$f":"IF(I85=\"\",\"\",$W85&\"_\"&IF(I85=$S$61,0,MATCH(I85,INDEX(Parameters_Constants!$AC$80:$AM$97,$W85,),0)))","v":""},{"$f":"IF(J85=\"\",\"\",$W85&\"_\"&IF(J85=$S$61,0,MATCH(J85,INDEX(Parameters_Constants!$AC$80:$AM$97,$W85,),0)))","v":""},{"$f":"IF(K85=\"\",\"\",$W85&\"_\"&IF(K85=$S$61,0,MATCH(K85,INDEX(Parameters_Constants!$AC$80:$AM$97,$W85,),0)))","v":""},"",null,null,{"$f":"IF(AND(CNTR_HasEntriesA,N85<>\"\"),CONST_ErrorOrMissing&A55,CONST_NA)","v":"n.a."},null,false]
[{"$nulls":3},"P5",{"$nulls":9},{"$f":"IF(E86=\"\",\"\",IF(OR(,L86=\"\",AND(AF86=FALSE,COUNTA(F86:K86)=0)),CONST_ERR_Incomplete,IF(COUNTIF(L$82:M86,L86)>1,CONST_ERR_Duplicate,\"\")))","v":""},{"$nulls":4},"n.a.","n.a.",null,"P5","",{"$f":"IF(F86=\"\",\"\",$W86&\"_\"&IF(F86=$S$61,0,MATCH(F86,INDEX(Parameters_Constants!$AC$80:$AM$97,$W86,),0)))","v":""},{"$f":"IF(G86=\"\",\"\",$W86&\"_\"&IF(G86=$S$61,0,MATCH(G86,INDEX(Parameters_Constants!$AC$80:$AM$97,$W86,),0)))","v":""},{"$f":"IF(H86=\"\",\"\",$W86&\"_\"&IF(H86=$S$61,0,MATCH(H86,INDEX(Parameters_Constants!$AC$80:$AM$97,$W86,),0)))","v":""},{"$f":"IF(I86=\"\",\"\",$W86&\"_\"&IF(I86=$S$61,0,MATCH(I86,INDEX(Parameters_Constants!$AC$80:$AM$97,$W86,),0)))","v":""},{"$f":"IF(J86=\"\",\"\",$W86&\"_\"&IF(J86=$S$61,0,MATCH(J86,INDEX(Parameters_Constants!$AC$80:$AM$97,$W86,),0)))","v":""},{"$f":"IF(K86=\"\",\"\",$W86&\"_\"&IF(K86=$S$61,0,MATCH(K86,INDEX(Parameters_Constants!$AC$80:$AM$97,$W86,),0)))","v":""},"",null,null,{"$f":"IF(AND(CNTR_HasEntriesA,N86<>\"\"),CONST_ErrorOrMissing&A55,CONST_NA)","v":"n.a."},null,false]
[{"$nulls":3},"P6",{"$nulls":9},{"$f":"IF(E87=\"\",\"\",IF(OR(,L87=\"\",AND(AF87=FALSE,COUNTA(F87:K87)=0)),CONST_ERR_Incomplete,IF(COUNTIF(L$82:M87,L87)>1,CONST_ERR_Duplicate,\"\")))","v":""},{"$nulls":4},"n.a.","n.a.",null,"P6","",{"$f":"IF(F87=\"\",\"\",$W87&\"_\"&IF(F87=$S$61,0,MATCH(F87,INDEX(Parameters_Constants!$AC$80:$AM$97,$W87,),0)))","v":""},{"$f":"IF(G87=\"\",\"\",$W87&\"_\"&IF(G87=$S$61,0,MATCH(G87,INDEX(Parameters_Constants!$AC$80:$AM$97,$W87,),0)))","v":""},{"$f":"IF(H87=\"\",\"\",$W87&\"_\"&IF(H87=$S$61,0,MATCH(H87,INDEX(Parameters_Constants!$AC$80:$AM$97,$W87,),0)))","v":""},{"$f":"IF(I87=\"\",\"\",$W87&\"_\"&IF(I87=$S$61,0,MATCH(I87,INDEX(Parameters_Constants!$AC$80:$AM$97,$W87,),0)))","v":""},{"$f":"IF(J87=\"\",\"\",$W87&\"_\"&IF(J87=$S$61,0,MATCH(J87,INDEX(Parameters_Constants!$AC$80:$AM$97,$W87,),0)))","v":""},{"$f":"IF(K87=\"\",\"\",$W87&\"_\"&IF(K87=$S$61,0,MATCH(K87,INDEX(Parameters_Constants!$AC$80:$AM$97,$W87,),0)))","v":""},"",null,null,{"$f":"IF(AND(CNTR_HasEntriesA,N87<>\"\"),CONST_ErrorOrMissing&A55,CONST_NA)","v":"n.a."},null,false]
[{"$nulls":3},"P7",{"$nulls":9},{"$f":"IF(E88=\"\",\"\",IF(OR(,L88=\"\",AND(AF88=FALSE,COUNTA(F88:K88)=0)),CONST_ERR_Incomplete,IF(COUNTIF(L$82:M88,L88)>1,CONST_ERR_Duplicate,\"\")))","v":""},{"$nulls":4},"n.a.","n.a.",null,"P7","",{"$f":"IF(F88=\"\",\"\",$W88&\"_\"&IF(F88=$S$61,0,MATCH(F88,INDEX(Parameters_Constants!$AC$80:$AM$97,$W88,),0)))","v":""},{"$f":"IF(G88=\"\",\"\",$W88&\"_\"&IF(G88=$S$61,0,MATCH(G88,INDEX(Parameters_Constants!$AC$80:$AM$97,$W88,),0)))","v":""},{"$f":"IF(H88=\"\",\"\",$W88&\"_\"&IF(H88=$S$61,0,MATCH(H88,INDEX(Parameters_Constants!$AC$80:$AM$97,$W88,),0)))","v":""},{"$f":"IF(I88=\"\",\"\",$W88&\"_\"&IF(I88=$S$61,0,MATCH(I88,INDEX(Parameters_Constants!$AC$80:$AM$97,$W88,),0)))","v":""},{"$f":"IF(J88=\"\",\"\",$W88&\"_\"&IF(J88=$S$61,0,MATCH(J88,INDEX(Parameters_Constants!$AC$80:$AM$97,$W88,),0)))","v":""},{"$f":"IF(K88=\"\",\"\",$W88&\"_\"&IF(K88=$S$61,0,MATCH(K88,INDEX(Parameters_Constants!$AC$80:$AM$97,$W88,),0)))","v":""},"",null,null,{"$f":"IF(AND(CNTR_HasEntriesA,N88<>\"\"),CONST_ErrorOrMissing&A55,CONST_NA)","v":"n.a."},null,false]
[{"$nulls":3},"P8",{"$nulls":9},{"$f":"IF(E89=\"\",\"\",IF(OR(,L89=\"\",AND(AF89=FALSE,COUNTA(F89:K89)=0)),CONST_ERR_Incomplete,IF(COUNTIF(L$82:M89,L89)>1,CONST_ERR_Duplicate,\"\")))","v":""},{"$nulls":4},"n.a.","n.a.",null,"P8","",{"$f":"IF(F89=\"\",\"\",$W89&\"_\"&IF(F89=$S$61,0,MATCH(F89,INDEX(Parameters_Constants!$AC$80:$AM$97,$W89,),0)))","v":""},{"$f":"IF(G89=\"\",\"\",$W89&\"_\"&IF(G89=$S$61,0,MATCH(G89,INDEX(Parameters_Constants!$AC$80:$AM$97,$W89,),0)))","v":""},{"$f":"IF(H89=\"\",\"\",$W89&\"_\"&IF(H89=$S$61,0,MATCH(H89,INDEX(Parameters_Constants!$AC$80:$AM$97,$W89,),0)))","v":""},{"$f":"IF(I89=\"\",\"\",$W89&\"_\"&IF(I89=$S$61,0,MATCH(I89,INDEX(Parameters_Constants!$AC$80:$AM$97,$W89,),0)))","v":""},{"$f":"IF(J89=\"\",\"\",$W89&\"_\"&IF(J89=$S$61,0,MATCH(J89,INDEX(Parameters_Constants!$AC$80:$AM$97,$W89,),0)))","v":""},{"$f":"IF(K89=\"\",\"\",$W89&\"_\"&IF(K89=$S$61,0,MATCH(K89,INDEX(Parameters_Constants!$AC$80:$AM$97,$W89,),0)))","v":""},"",null,null,{"$f":"IF(AND(CNTR_HasEntriesA,N89<>\"\"),CONST_ErrorOrMissing&A55,CONST_NA)","v":"n.a."},null,false]
[{"$nulls":3},"P9",{"$nulls":9},{"$f":"IF(E90=\"\",\"\",IF(OR(,L90=\"\",AND(AF90=FALSE,COUNTA(F90:K90)=0)),CONST_ERR_Incomplete,IF(COUNTIF(L$82:M90,L90)>1,CONST_ERR_Duplicate,\"\")))","v":""},{"$nulls":4},"n.a.","n.a.",null,"P9","",{"$f":"IF(F90=\"\",\"\",$W90&\"_\"&IF(F90=$S$61,0,MATCH(F90,INDEX(Parameters_Constants!$AC$80:$AM$97,$W90,),0)))","v":""},{"$f":"IF(G90=\"\",\"\",$W90&\"_\"&IF(G90=$S$61,0,MATCH(G90,INDEX(Parameters_Constants!$AC$80:$AM$97,$W90,),0)))","v":""},{"$f":"IF(H90=\"\",\"\",$W90&\"_\"&IF(H90=$S$61,0,MATCH(H90,INDEX(Parameters_Constants!$AC$80:$AM$97,$W90,),0)))","v":""},{"$f":"IF(I90=\"\",\"\",$W90&\"_\"&IF(I90=$S$61,0,MATCH(I90,INDEX(Parameters_Constants!$AC$80:$AM$97,$W90,),0)))","v":""},{"$f":"IF(J90=\"\",\"\",$W90&\"_\"&IF(J90=$S$61,0,MATCH(J90,INDEX(Parameters_Constants!$AC$80:$AM$97,$W90,),0)))","v":""},{"$f":"IF(K90=\"\",\"\",$W90&\"_\"&IF(K90=$S$61,0,MATCH(K90,INDEX(Parameters_Constants!$AC$80:$AM$97,$W90,),0)))","v":""},"",null,null,{"$f":"IF(AND(CNTR_HasEntriesA,N90<>\"\"),CONST_ErrorOrMissing&A55,CONST_NA)","v":"n.a."},null,false]
[{"$nulls":3},"P10",{"$nulls":9},{"$f":"IF(E91=\"\",\"\",IF(OR(,L91=\"\",AND(AF91=FALSE,COUNTA(F91:K91)=0)),CONST_ERR_Incomplete,IF(COUNTIF(L$82:M91,L91)>1,CONST_ERR_Duplicate,\"\")))","v":""},{"$nulls":4},"n.a.","n.a.",null,"P10","",{"$f":"IF(F91=\"\",\"\",$W91&\"_\"&IF(F91=$S$61,0,MATCH(F91,INDEX(Parameters_Constants!$AC$80:$AM$97,$W91,),0)))","v":""},{"$f":"IF(G91=\"\",\"\",$W91&\"_\"&IF(G91=$S$61,0,MATCH(G91,INDEX(Parameters_Constants!$AC$80:$AM$97,$W91,),0)))","v":""},{"$f":"IF(H91=\"\",\"\",$W91&\"_\"&IF(H91=$S$61,0,MATCH(H91,INDEX(Parameters_Constants!$AC$80:$AM$97,$W91,),0)))","v":""},{"$f":"IF(I91=\"\",\"\",$W91&\"_\"&IF(I91=$S$61,0,MATCH(I91,INDEX(Parameters_Constants!$AC$80:$AM$97,$W91,),0)))","v":""},{"$f":"IF(J91=\"\",\"\",$W91&\"_\"&IF(J91=$S$61,0,MATCH(J91,INDEX(Parameters_Constants!$AC$80:$AM$97,$W91,),0)))","v":""},{"$f":"IF(K91=\"\",\"\",$W91&\"_\"&IF(K91=$S$61,0,MATCH(K91,INDEX(Parameters_Constants!$AC$80:$AM$97,$W91,),0)))","v":""},"",null,null,{"$f":"IF(AND(CNTR_HasEntriesA,N91<>\"\"),CONST_ErrorOrMissing&A55,CONST_NA)","v":"n.a."},null,false]
[]
[{"$nulls":6},"Completeness check:",{"$f":"IF(COUNTIF(AE62:AE71,TRUE)>0,CONST_MsgMissingProdProc,\"\")","v":""},{"$nulls":24},{"$f":"IF(AND(CNTR_HasEntriesA,H93<>\"\"),CONST_ErrorOrMissing&A55,CONST_NA)","v":"n.a."}]
[]
[{"$f":"C95","v":5},null,5,{"$f":"Translations!$B$124","v":"Purchased precursors"},{"$nulls":13},{"$f":"D95","v":"Purchased precursors"}]
[]
[{"$nulls":4},{"$f":"Translations!$B$125","v":"Please list here all precursors that are produced OUTSIDE the installation (e.g. purchased) and consumed within the installation."}]
[{"$nulls":4},{"$f":"Translations!$B$126","v":"Please also list the country in which the relevant precursor was produced (see sheet \"c_CodeLists\" to find the correct country codes) and the relevant production routes, if known."}]
[]
[{"$nulls":3},"ID",{"$f":"Translations!$B$120","v":"Production process"},"Country code",{"$f":"Translations!$B$109","v":"Route 1"},{"$f":"Translations!$B$110","v":"Route 2"},{"$f":"Translations!$B$111","v":"Route 3"},{"$f":"Translations!$B$112","v":"Route 4"},{"$f":"Translations!$B$113","v":"Route 5"},{"$f":"Translations!$B$122","v":"Name"},null,{"$f":"Translations!$B$123","v":"Error message"},{"$nulls":4},"CNTR_List_ExistPurchPrec","CNTR_List_ExistPurchPrecNames",null,null,"GoodID","RouteID 1","RouteID 2","RouteID 3","RouteID 4","RouteID 5",{"$nulls":5},"ProdRoute All?"]
[{"$nulls":3},"PP1",{"$nulls":9},{"$f":"IF(E101=\"\",\"\",IF(OR(F101=\"\",L101=\"\",AND(AH101=FALSE,COUNTA(G101:K101)=0)),CONST_ERR_Incomplete,\"\"))","v":""},{"$nulls":4},{"$f":"IF(E101=\"\",CONST_NA,E101)","v":"n.a."},{"$f":"IF(E101=\"\",CONST_NA,IF(L101=\"\",D101&\" - \"&E101,L101))","v":"n.a."},{"$f":"IF(E101=\"\",\"\",INDEX(CONST_LIST_GoodsProdRouteAdd,MATCH(E101,CONST_LIST_Goods,0)))","v":""},{"$f":"D101","v":"PP1"},{"$f":"IF(E101=\"\",\"\",MATCH(E101,CONST_LIST_Goods,0))","v":""},{"$f":"IF(G101=\"\",\"\",$W101&\"_\"&MATCH(G101,INDEX(CONST_MATRIX_ProductionRoute,$W101,),0))","v":""},{"$f":"IF(H101=\"\",\"\",$W101&\"_\"&MATCH(H101,INDEX(CONST_MATRIX_ProductionRoute,$W101,),0))","v":""},{"$f":"IF(I101=\"\",\"\",$W101&\"_\"&MATCH(I101,INDEX(CONST_MATRIX_ProductionRoute,$W101,),0))","v":""},{"$f":"IF(J101=\"\",\"\",$W101&\"_\"&MATCH(J101,INDEX(CONST_MATRIX_ProductionRoute,$W101,),0))","v":""},{"$f":"IF(K101=\"\",\"\",$W101&\"_\"&MATCH(K101,INDEX(CONST_MATRIX_ProductionRoute,$W101,),0))","v":""},{"$nulls":4},{"$f":"IF(AND(CNTR_HasEntriesA,N101<>\"\"),CONST_ErrorOrMissing&$A$95,CONST_NA)","v":"n.a."},{"$f":"IF(OR(CNTR_HasEntriesA=FALSE,E101=\"\"),\"\",COUNTIF(INDEX(CONST_MATRIX_ProductionRoute,MATCH(E101,CONST_LIST_Goods,0),),CONST_NA)=9)","v":""},{"$f":"AND(CNTR_HasEntriesA,E101=\"\")","v":false}]
[{"$nulls":3},"PP2",{"$nulls":9},"",{"$nulls":4},"n.a.","n.a.","","PP2","","","","","","",{"$nulls":4},"n.a.","",false]
[{"$nulls":3},"PP3",{"$nulls":9},"",{"$nulls":4},"n.a.","n.a.","","PP3","","","","","","",{"$nulls":4},"n.a.","",false]
[{"$nulls":3},"PP4",{"$nulls":9},"",{"$nulls":4},"n.a.","n.a.","","PP4","","","","","","",{"$nulls":4},"n.a.","",false]
[{"$nulls":3},"PP5",{"$nulls":9},"",{"$nulls":4},"n.a.","n.a.","","PP5","","","","","","",{"$nulls":4},"n.a.","",false]
[{"$nulls":3},"PP6",{"$nulls":9},"",{"$nulls":4},"n.a.","n.a.","","PP6","","","","","","",{"$nulls":4},"n.a.","",false]
[{"$nulls":3},"PP7",{"$nulls":9},"",{"$nulls":4},"n.a.","n.a.","","PP7","","","","","","",{"$nulls":4},"n.a.","",false]
[{"$nulls":3},"PP8",{"$nulls":9},"",{"$nulls":4},"n.a.","n.a.","","PP8","","","","","","",{"$nulls":4},"n.a.","",false]
[{"$nulls":3},"PP9",{"$nulls":9},"",{"$nulls":4},"n.a.","n.a.","","PP9","","","","","","",{"$nulls":4},"n.a.","",false]
[{"$nulls":3},"PP10",{"$nulls":9},"",{"$nulls":4},{"$f":"IF(E110=\"\",CONST_NA,E110)","v":"n.a."},{"$f":"IF(E110=\"\",CONST_NA,IF(L110=\"\",D110&\" - \"&E110,L110))","v":"n.a."},{"$f":"IF(E110=\"\",\"\",INDEX(CONST_LIST_GoodsProdRouteAdd,MATCH(E110,CONST_LIST_Goods,0)))","v":""},"PP10","","","","","","",{"$nulls":4},"n.a.","",false]
[{"$nulls":3},"PP11",{"$nulls":9},"",{"$nulls":4},"n.a.","n.a.","","PP11","","","","","","",{"$nulls":4},"n.a.","",false]
[{"$nulls":3},"PP12",{"$nulls":9},"",{"$nulls":4},"n.a.","n.a.","","PP12","","","","","","",{"$nulls":4},"n.a.","",false]
[{"$nulls":3},"PP13",{"$nulls":9},"",{"$nulls":4},"n.a.","n.a.","","PP13","","","","","","",{"$nulls":4},"n.a.","",false]
[{"$nulls":3},"PP14",{"$nulls":9},"",{"$nulls":4},"n.a.","n.a.","","PP14","","","","","","",{"$nulls":4},"n.a.","",false]
[{"$nulls":3},"PP15",{"$nulls":9},"",{"$nulls":4},"n.a.","n.a.","","PP15","","","","","","",{"$nulls":4},"n.a.","",false]
[{"$nulls":3},"PP16",{"$nulls":9},"",{"$nulls":4},"n.a.","n.a.","","PP16","","","","","","",{"$nulls":4},"n.a.","",false]
[{"$nulls":3},"PP17",{"$nulls":9},"",{"$nulls":4},"n.a.","n.a.","","PP17","","","","","","",{"$nulls":4},"n.a.","",false]
[{"$nulls":3},"PP18",{"$nulls":9},"",{"$nulls":4},"n.a.","n.a.","","PP18","","","","","","",{"$nulls":4},"n.a.","",false]
[{"$nulls":3},"PP19",{"$nulls":9},"",{"$nulls":4},"n.a.","n.a.","","PP19","","","","","","",{"$nulls":4},"n.a.","",false]
[{"$nulls":3},"PP20",{"$nulls":9},"",{"$nulls":4},"n.a.","n.a.","","PP20","","","","","","",{"$nulls":4},"n.a.","",false]
[]
["ausblenden",{"$nulls":14},"PRINT"]
["ausblenden",{"$nulls":8},"CNTR_HasEntriesA",{"$f":"COUNTA(I9,L9,I20,E62:F71)>0","v":false}]
["ausblenden"]

{"sheet":"B_EmInst","index":5,"n_rows":124,"n_cols":69,"rows_kept":124,"merged":[[1,1,3,3],[1,4,1,5],[1,6,1,7],[1,8,1,9],[1,10,1,11],[1,12,1,13],[2,4,2,5],[2,6,2,7],[2,8,2,9],[2,10,2,11],[2,12,2,13],[3,4,3,5],[3,6,3,7],[3,8,3,9],[3,10,3,11],[3,12,3,13],[7,3,7,13],[8,3,8,10],[9,3,9,13]]}
["ausblenden",{"$nulls":18},"ausblenden","ausblenden",{"$nulls":6},"ausblenden","ausblenden",{"$nulls":19},"ausblenden",{"$nulls":3},"ausblenden","ausblenden","ausblenden","ausblenden","ausblenden","ausblenden","ausblenden","ausblenden","ausblenden","ausblenden","ausblenden","ausblenden","ausblenden","ausblenden","ausblenden","ausblenden","ausblenden"]
[null,{"$f":"Translations!$B$127","v":"Source streams"},null,null,{"$f":"Translations!$B$11","v":"Navigation Area:"},null,{"$f":"HYPERLINK(\"#\"&ADDRESS(2,3,,,a_Contents!$U$2),a_Contents!$B$2)","v":"Table of contents"},null,{"$f":"HYPERLINK(\"#\"&ADDRESS(2,3,,,G_FurtherGuidance!$U$2),G_FurtherGuidance!$B$2)","v":"Further Guidance"},null,{"$f":"HYPERLINK(\"#\"&ADDRESS(2,3,,,Summary_Processes!$Y$2),Summary_Processes!$Y$2)","v":"Summary_Processes"},null,{"$f":"HYPERLINK(\"#\"&ADDRESS(2,3,,,Summary_Products!$BF$2),Summary_Products!$BF$2)","v":"Summary_Products"},{"$nulls":39},"Print area:",{"$f":"ADDRESS(ROW($B$8),COLUMN($B$8))&\":\"&ADDRESS(MATCH(\"PRINT\",$AZ:$AZ,0),COLUMN($AZ$8))","v":"$B$8:$AZ$124"},"Name of this sheet",{"$f":"IF(ISERROR(CELL(\"filename\",BE2)),\"MSParameters\",MID(CELL(\"filename\",BE2),FIND(\"]\",CELL(\"filename\",BE2))+1,1024))","v":"B_EmInst"}]
[{"$nulls":6},{"$f":"IFERROR(HYPERLINK(\"#\"&ADDRESS(ROW($A$1)+MATCH(BA3,$A:$A,0)-1,3),INDEX($BA:$BA,MATCH(BA3,$A:$A,0))),\"\")","v":"Source streams"},null,{"$f":"IFERROR(HYPERLINK(\"#\"&ADDRESS(ROW($A$1)+MATCH(BC3,$A:$A,0)-1,3),INDEX($BA:$BA,MATCH(BC3,$A:$A,0))),\"\")","v":"PFC Emissions"},null,{"$f":"IFERROR(HYPERLINK(\"#\"&ADDRESS(ROW($A$1)+MATCH(BE3,$A:$A,0)-1,3),INDEX($BA:$BA,MATCH(BE3,$A:$A,0))),\"\")","v":"Emission sources"},null,{"$f":"IFERROR(HYPERLINK(\"#\"&ADDRESS(ROW($A$1)+MATCH(BG3,$A:$A,0)-1,3),INDEX($BA:$BA,MATCH(BG3,$A:$A,0))),\"\")","v":""},{"$nulls":39},1,null,2,null,3,null,4]
[{"$nulls":6},{"$f":"IFERROR(HYPERLINK(\"#\"&ADDRESS(ROW($A$1)+MATCH(BA4,$A:$A,0)-1,3),INDEX($BA:$BA,MATCH(BA4,$A:$A,0))),\"\")","v":""},null,{"$f":"IFERROR(HYPERLINK(\"#\"&ADDRESS(ROW($A$1)+MATCH(BC4,$A:$A,0)-1,3),INDEX($BA:$BA,MATCH(BC4,$A:$A,0))),\"\")","v":""},null,{"$f":"IFERROR(HYPERLINK(\"#\"&ADDRESS(ROW($A$1)+MATCH(BE4,$A:$A,0)-1,3),INDEX($BA:$BA,MATCH(BE4,$A:$A,0))),\"\")","v":""},null,{"$f":"IFERROR(HYPERLINK(\"#\"&ADDRESS(ROW($A$1)+MATCH(BG4,$A:$A,0)-1,3),INDEX($BA:$BA,MATCH(BG4,$A:$A,0))),\"\")","v":""},{"$nulls":39},5,null,6,null,7,null,8]
[]
[null,null,"B.",{"$f":"Translations!$B$128","v":"Sheet \"B_EmInst\" - Installation's emission at source stream and emission source level"}]
[]
[null,null,1,{"$f":"Translations!$B$129","v":"Source streams and emission sources"}]
[]
[{"$nulls":3},{"$f":"HYPERLINK(\"#\"&ADDRESS(MATCH($BB10,G_FurtherGuidance!$S:$S,0),3,,,G_FurtherGuidance!$U$2),CONST_LinkToGuidanceSheet)","v":"Please click on this link for further guidance on how to complete this section."},{"$nulls":48},"Link to guidance:",2]
[]
[1,null,null,{"$f":"Translations!$B$130","v":"Source Streams (excluding PFC emissions)"},{"$nulls":15},"Delete","Delete",{"$nulls":6},"Delete","Delete",{"$nulls":19},"Delete",{"$nulls":3},{"$f":"Translations!$B$127","v":"Source streams"}]
[null,null,{"$f":"Translations!$B$131","v":"#"},{"$f":"Translations!$B$132","v":"Method"},{"$f":"Translations!$B$133","v":"Source stream name"},{"$f":"Translations!$B$134","v":"Activity data (AD)"},{"$f":"Translations!$B$135","v":"AD Unit"},{"$f":"Translations!$B$136","v":"Net calorific value (NCV)"},{"$f":"Translations!$B$137","v":"NCV Unit"},{"$f":"Translations!$B$138","v":"Emission factor (EF)"},{"$f":"Translations!$B$139","v":"EF Unit"},{"$f":"Translations!$B$140","v":"Carbon content"},{"$f":"Translations!$B$141","v":"C-Content Unit"},{"$f":"Translations!$B$142","v":"Oxidation factor (OxF)"},{"$f":"Translations!$B$143","v":"OxF Unit"},{"$f":"Translations!$B$144","v":"Conversion factor (ConvF)"},{"$f":"Translations!$B$145","v":"ConvF Unit"},{"$f":"Translations!$B$146","v":"Biomass content (BioC)"},{"$f":"Translations!$B$147","v":"BioC Unit"},{"$f":"Translations!$B$148","v":"non-sust. BioC"},{"$f":"Translations!$B$149","v":"non-sust. BioC Unit"},{"$f":"Translations!$B$150","v":"hourly GHG conc. Average"},{"$f":"Translations!$B$151","v":"hourly GHG conc. Unit"},{"$f":"Translations!$B$152","v":"hours operating"},{"$f":"Translations!$B$153","v":"hours operating Unit"},{"$f":"Translations!$B$154","v":"Flue gas (average)"},{"$f":"Translations!$B$155","v":"Flue gas (average), Unit"},{"$f":"Translations!$B$156","v":"Flue gas (total)"},{"$f":"Translations!$B$157","v":"Flue gas (total), Unit"},{"$f":"Translations!$B$158","v":"Annual amount of GHG"},{"$f":"Translations!$B$159","v":"Annual amount of GHG Unit"},{"$f":"Translations!$B$160","v":"Global Warming Potential (GWP, tCO2e/t)"},{"$f":"Translations!$B$161","v":"A: Frequency"},{"$f":"Translations!$B$162","v":"A: Duration"},{"$f":"Translations!$B$163","v":"A: SEF(CF4)"},{"$f":"Translations!$B$164","v":"B: AEO"},{"$f":"Translations!$B$165","v":"B: CE"},{"$f":"Translations!$B$166","v":"B: OVC"},{"$f":"Translations!$B$167","v":"F(C2F6)"},{"$f":"Translations!$B$168","v":"CF4 Emissions (t CF4)"},{"$f":"Translations!$B$169","v":"C2F6 Emissions (t C2F6)"},{"$f":"Translations!$B$170","v":"GWP (CF4) (tCO2e/t)"},{"$f":"Translations!$B$171","v":"GWP (C2F6) (tCO2e/t)"},{"$f":"Translations!$B$172","v":"CF4 Emissions (t CO2e)"},{"$f":"Translations!$B$173","v":"C2F6 Emissions (t CO2e)"},{"$f":"Translations!$B$174","v":"Collection efficiency, %"},{"$f":"Translations!$B$175","v":"CO2e fossil (t)"},{"$f":"Translations!$B$176","v":"CO2e bio (t)"},{"$f":"Translations!$B$177","v":"CO2e non-sust. bio (t)"},{"$f":"Translations!$B$178","v":"Energy content (fossil), TJ"},{"$f":"Translations!$B$179","v":"Energy content (bio), TJ"}]
[null,null,{"$f":"Translations!$B$180","v":"Ex.1"},{"$f":"Translations!$B$181","v":"Combustion"},{"$f":"Translations!$B$182","v":"Heavy fuel oil"},{"v":252000,"d":"252,000.00"},"t",{"v":45,"d":"45.00"},{"$f":"Translations!$B$183","v":"GJ/t"},{"v":73,"d":"73.00"},{"$f":"Translations!$B$184","v":"tCO2/TJ"},null,"",{"v":100,"d":"100.00"},"%",null,"%",{"v":0,"d":"0.00"},"%",0,"%",{"$nulls":25},{"v":827820,"d":"827,820"},0,0,{"v":11340,"d":"11,340.0"},{"v":0,"d":"0.0"}]
[null,null,{"$f":"Translations!$B$185","v":"Ex.2"},{"$f":"Translations!$B$186","v":"Process Emissions"},{"$f":"Translations!$B$187","v":"Raw meal for clinker"},{"v":121000,"d":"121,000.00"},"t",null,"",{"v":0.08794,"d":"0.09"},{"$f":"Translations!$B$188","v":"tCO2/t"},null,"",null,"%",null,"%",{"v":0,"d":"0.00"},"%",0,"%",{"$nulls":25},{"v":10640.74,"d":"10,641"},0,0,{"v":0,"d":"0.0"},{"v":0,"d":"0.0"},{"$nulls":4},"fossil",{"$nulls":3},"bio"]
[null,null,{"$f":"Translations!$B$189","v":"Ex.3"},{"$f":"Translations!$B$190","v":"Mass balance"},{"$f":"Translations!$B$191","v":"Steel"},{"v":-1808226,"d":"-1,808,226.00"},"t",null,"",{"v":0,"d":"0.00"},"",0.3878,{"$f":"Translations!$B$192","v":"tC/t"},null,"%",{"v":100,"d":"100.00"},"%",{"v":0,"d":"0.00"},"%",0,"%",{"$nulls":25},{"v":-2569306.8768192,"d":"-2,569,307"},0,0,{"v":0,"d":"0.0"},{"v":0,"d":"0.0"},{"$nulls":4},{"$f":"Translations!$B$181","v":"Combustion"},{"$f":"Translations!$B$193","v":"Process"},{"$f":"Translations!$B$194","v":"Mass Balance"},null,{"$f":"Translations!$B$181","v":"Combustion"},{"$f":"Translations!$B$193","v":"Process"},{"$f":"Translations!$B$194","v":"Mass Balance"},null,{"$f":"Translations!$B$138","v":"Emission factor (EF)"},{"$f":"Translations!$B$195","v":"CC"},{"$f":"Translations!$B$196","v":"OxF"},{"$f":"Translations!$B$197","v":"ConvF"}]
[null,null,1,{"$nulls":5},{"$f":"IF(E17=\"\",\"\",IF(G17=CONST_kNm3,CONST_GJpkNm3,CONST_GJpt))","v":""},{"$nulls":3},{"$f":"IF(D17<>INDEX(CONST_MonitoringApproach,3),\"\",CONST_tC&\"/\"&IF(G17=\"\",CONST_t,G17))","v":""},null,"%",null,"%",null,"%",null,"%",{"$nulls":25},{"$f":"IF($D17=\"\",\"\",INDEX($BD17:$BF17,MATCH($D17,CONST_MonitoringApproach,0)))","v":""},{"$f":"IF($D17=\"\",\"\",INDEX($BH17:$BJ17,MATCH($D17,CONST_MonitoringApproach,0)))","v":""},null,{"$f":"IF($D17=\"\",\"\",$F17*$H17/1000*(1-$R17/100))","v":""},{"$f":"IF($D17=\"\",\"\",$F17*$H17/1000*($R17/100))","v":""},null,{"$f":"CONST_CNTR_SUM_CO2","v":"SUM_CO2"},null,null,{"$f":"IF($D17<>INDEX(CONST_MonitoringApproach,1),\"\",$F17*IF($K17=CONST_tCO2pTJ,$H17/1000,1)*$J17*(1-$R17/100))","v":""},{"$f":"IF($D17<>INDEX(CONST_MonitoringApproach,2),\"\",$F17*IF($K17=CONST_tCO2pTJ,$H17/1000,1)*$J17*$P17/100*(1-$R17/100))","v":""},{"$f":"IF($D17<>INDEX(CONST_MonitoringApproach,3),\"\",$F17*3.664*$L17*(1-$R17/100))","v":""},null,{"$f":"IF($D17<>INDEX(CONST_MonitoringApproach,1),\"\",$F17*IF($K17=CONST_tCO2pTJ,$H17/1000,1)*$J17*($R17/100))","v":""},{"$f":"IF($D17<>INDEX(CONST_MonitoringApproach,2),\"\",$F17*IF($K17=CONST_tCO2pTJ,$H17/1000,1)*$J17*$P17/100*($R17/100))","v":""},{"$f":"IF($D17<>INDEX(CONST_MonitoringApproach,3),\"\",$F17*$L17*3.664*($R17/100))","v":""},null,{"$f":"IF($D17=\"\",\"\",MATCH($D17,CONST_MonitoringApproach,0)=3)","v":""},{"$f":"IF($D17=\"\",\"\",MATCH($D17,CONST_MonitoringApproach,0)<>3)","v":""},{"$f":"IF($D17=\"\",\"\",MATCH($D17,CONST_MonitoringApproach,0)<>1)","v":""},{"$f":"IF($D17=\"\",\"\",MATCH($D17,CONST_MonitoringApproach,0)<>2)","v":""},null,{"$f":"AND(CNTR_HasEntriesA,D17=\"\")","v":false}]
[null,null,2,{"$nulls":5},"",{"$nulls":3},"",null,"%",null,"%",null,"%",null,"%",{"$nulls":25},"","",null,{"$f":"IF($D18=\"\",\"\",$F18*$H18/1000*(1-$R18/100))","v":""},{"$f":"IF($D18=\"\",\"\",$F18*$H18/1000*($R18/100))","v":""},null,"SUM_CO2",null,null,"","","",null,"","","",null,"","","","",null,false]
[null,null,3,{"$nulls":5},"",{"$nulls":3},"",null,"%",null,"%",null,"%",null,"%",{"$nulls":25},"","",null,"","",null,"SUM_CO2",null,null,"","","",null,"","","",null,"","","","",null,false]
[null,null,4,{"$nulls":5},"",{"$nulls":3},"",null,"%",null,"%",null,"%",null,"%",{"$nulls":25},"","",null,"","",null,"SUM_CO2",null,null,"","","",null,"","","",null,"","","","",null,false]
[null,null,5,{"$nulls":5},"",{"$nulls":3},"",null,"%",null,"%",null,"%",null,"%",{"$nulls":25},"","",null,"","",null,"SUM_CO2",null,null,"","","",null,"","","",null,"","","","",null,false]
[null,null,6,{"$nulls":5},"",{"$nulls":3},"",null,"%",null,"%",null,"%",null,"%",{"$nulls":25},"","",null,"","",null,"SUM_CO2",null,null,"","","",null,"","","",null,"","","","",null,false]
[null,null,7,{"$nulls":5},"",{"$nulls":3},"",null,"%",null,"%",null,"%",null,"%",{"$nulls":25},"","",null,"","",null,"SUM_CO2",null,null,"","","",null,"","","",null,"","","","",null,false]
[null,null,8,{"$nulls":5},"",{"$nulls":3},"",null,"%",null,"%",null,"%",null,"%",{"$nulls":25},"","",null,"","",null,"SUM_CO2",null,null,"","","",null,"","","",null,"","","","",null,false]
[null,null,9,{"$nulls":5},"",{"$nulls":3},"",null,"%",null,"%",null,"%",null,"%",{"$nulls":25},"","",null,"","",null,"SUM_CO2",null,null,"","","",null,"","","",null,"","","","",null,false]
[null,null,10,{"$nulls":5},"",{"$nulls":3},"",null,"%",null,"%",null,"%",null,"%",{"$nulls":25},"","",null,"","",null,"SUM_CO2",null,null,"","","",null,"","","",null,"","","","",null,false]
[null,null,11,{"$nulls":5},"",{"$nulls":3},"",null,"%",null,"%",null,"%",null,"%",{"$nulls":25},"","",null,"","",null,"SUM_CO2",null,null,"","","",null,"","","",null,"","","","",null,false]
[null,null,12,{"$nulls":5},"",{"$nulls":3},"",null,"%",null,"%",null,"%",null,"%",{"$nulls":25},"","",null,"","",null,"SUM_CO2",null,null,"","","",null,"","","",null,"","","","",null,false]
[null,null,13,{"$nulls":5},"",{"$nulls":3},"",null,"%",null,"%",null,"%",null,"%",{"$nulls":25},"","",null,"","",null,"SUM_CO2",null,null,"","","",null,"","","",null,"","","","",null,false]
[null,null,14,{"$nulls":5},"",{"$nulls":3},"",null,"%",null,"%",null,"%",null,"%",{"$nulls":25},"","",null,"","",null,"SUM_CO2",null,null,"","","",null,"","","",null,"","","","",null,false]
[null,null,15,{"$nulls":5},"",{"$nulls":3},"",null,"%",null,"%",null,"%",null,"%",{"$nulls":25},"","",null,"","",null,"SUM_CO2",null,null,"","","",null,"","","",null,"","","","",null,false]
[null,null,16,{"$nulls":5},"",{"$nulls":3},"",null,"%",null,"%",null,"%",null,"%",{"$nulls":25},"","",null,"","",null,"SUM_CO2",null,null,"","","",null,"","","",null,"","","","",null,false]
[null,null,17,{"$nulls":5},"",{"$nulls":3},"",null,"%",null,"%",null,"%",null,"%",{"$nulls":25},"","",null,"","",null,"SUM_CO2",null,null,"","","",null,"","","",null,"","","","",null,false]
[null,null,18,{"$nulls":5},"",{"$nulls":3},"",null,"%",null,"%",null,"%",null,"%",{"$nulls":25},"","",null,"","",null,"SUM_CO2",null,null,"","","",null,"","","",null,"","","","",null,false]
[null,null,19,{"$nulls":5},"",{"$nulls":3},"",null,"%",null,"%",null,"%",null,"%",{"$nulls":25},"","",null,"","",null,"SUM_CO2",null,null,"","","",null,"","","",null,"","","","",null,false]
[null,null,20,{"$nulls":5},"",{"$nulls":3},"",null,"%",null,"%",null,"%",null,"%",{"$nulls":25},"","",null,"","",null,"SUM_CO2",null,null,"","","",null,"","","",null,"","","","",null,false]
[null,null,21,{"$nulls":5},"",{"$nulls":3},"",null,"%",null,"%",null,"%",null,"%",{"$nulls":25},"","",null,"","",null,"SUM_CO2",null,null,"","","",null,"","","",null,"","","","",null,false]
[null,null,22,{"$nulls":5},"",{"$nulls":3},"",null,"%",null,"%",null,"%",null,"%",{"$nulls":25},"","",null,"","",null,"SUM_CO2",null,null,"","","",null,"","","",null,"","","","",null,false]
[null,null,23,{"$nulls":5},"",{"$nulls":3},"",null,"%",null,"%",null,"%",null,"%",{"$nulls":25},"","",null,"","",null,"SUM_CO2",null,null,"","","",null,"","","",null,"","","","",null,false]
[null,null,24,{"$nulls":5},"",{"$nulls":3},"",null,"%",null,"%",null,"%",null,"%",{"$nulls":25},"","",null,"","",null,"SUM_CO2",null,null,"","","",null,"","","",null,"","","","",null,false]
[null,null,25,{"$nulls":5},"",{"$nulls":3},"",null,"%",null,"%",null,"%",null,"%",{"$nulls":25},"","",null,"","",null,"SUM_CO2",null,null,"","","",null,"","","",null,"","","","",null,false]
[null,null,26,{"$nulls":5},"",{"$nulls":3},"",null,"%",null,"%",null,"%",null,"%",{"$nulls":25},"","",null,"","",null,"SUM_CO2",null,null,"","","",null,"","","",null,"","","","",null,false]
[null,null,27,{"$nulls":5},"",{"$nulls":3},"",null,"%",null,"%",null,"%",null,"%",{"$nulls":25},"","",null,"","",null,"SUM_CO2",null,null,"","","",null,"","","",null,"","","","",null,false]
[null,null,28,{"$nulls":5},"",{"$nulls":3},"",null,"%",null,"%",null,"%",null,"%",{"$nulls":25},"","",null,"","",null,"SUM_CO2",null,null,"","","",null,"","","",null,"","","","",null,false]
[null,null,29,{"$nulls":5},"",{"$nulls":3},"",null,"%",null,"%",null,"%",null,"%",{"$nulls":25},"","",null,"","",null,"SUM_CO2",null,null,"","","",null,"","","",null,"","","","",null,false]
[null,null,30,{"$nulls":5},"",{"$nulls":3},"",null,"%",null,"%",null,"%",null,"%",{"$nulls":25},"","",null,"","",null,"SUM_CO2",null,null,"","","",null,"","","",null,"","","","",null,false]
[null,null,31,{"$nulls":5},"",{"$nulls":3},"",null,"%",null,"%",null,"%",null,"%",{"$nulls":25},"","",null,"","",null,"SUM_CO2",null,null,"","","",null,"","","",null,"","","","",null,false]
[null,null,32,{"$nulls":5},"",{"$nulls":3},"",null,"%",null,"%",null,"%",null,"%",{"$nulls":25},"","",null,"","",null,"SUM_CO2",null,null,"","","",null,"","","",null,"","","","",null,false]
[null,null,33,{"$nulls":5},{"$f":"IF(E49=\"\",\"\",IF(G49=CONST_kNm3,CONST_GJpkNm3,CONST_GJpt))","v":""},{"$nulls":3},{"$f":"IF(D49<>INDEX(CONST_MonitoringApproach,3),\"\",CONST_tC&\"/\"&IF(G49=\"\",CONST_t,G49))","v":""},null,"%",null,"%",null,"%",null,"%",{"$nulls":25},{"$f":"IF($D49=\"\",\"\",INDEX($BD49:$BF49,MATCH($D49,CONST_MonitoringApproach,0)))","v":""},{"$f":"IF($D49=\"\",\"\",INDEX($BH49:$BJ49,MATCH($D49,CONST_MonitoringApproach,0)))","v":""},null,"","",null,{"$f":"CONST_CNTR_SUM_CO2","v":"SUM_CO2"},null,null,{"$f":"IF($D49<>INDEX(CONST_MonitoringApproach,1),\"\",$F49*IF($K49=CONST_tCO2pTJ,$H49/1000,1)*$J49*(1-$R49/100))","v":""},{"$f":"IF($D49<>INDEX(CONST_MonitoringApproach,2),\"\",$F49*IF($K49=CONST_tCO2pTJ,$H49/1000,1)*$J49*$P49/100*(1-$R49/100))","v":""},{"$f":"IF($D49<>INDEX(CONST_MonitoringApproach,3),\"\",$F49*3.664*$L49*(1-$R49/100))","v":""},null,{"$f":"IF($D49<>INDEX(CONST_MonitoringApproach,1),\"\",$F49*IF($K49=CONST_tCO2pTJ,$H49/1000,1)*$J49*($R49/100))","v":""},{"$f":"IF($D49<>INDEX(CONST_MonitoringApproach,2),\"\",$F49*IF($K49=CONST_tCO2pTJ,$H49/1000,1)*$J49*$P49/100*($R49/100))","v":""},{"$f":"IF($D49<>INDEX(CONST_MonitoringApproach,3),\"\",$F49*$L49*3.664*($R49/100))","v":""},null,{"$f":"IF($D49=\"\",\"\",MATCH($D49,CONST_MonitoringApproach,0)=3)","v":""},{"$f":"IF($D49=\"\",\"\",MATCH($D49,CONST_MonitoringApproach,0)<>3)","v":""},{"$f":"IF($D49=\"\",\"\",MATCH($D49,CONST_MonitoringApproach,0)<>1)","v":""},{"$f":"IF($D49=\"\",\"\",MATCH($D49,CONST_MonitoringApproach,0)<>2)","v":""},null,{"$f":"AND(CNTR_HasEntriesA,D49=\"\")","v":false}]
[null,null,34,{"$nulls":5},"",{"$nulls":3},"",null,"%",null,"%",null,"%",null,"%",{"$nulls":25},"","",null,"","",null,"SUM_CO2",null,null,"","","",null,"","","",null,"","","","",null,false]
[null,null,35,{"$nulls":5},"",{"$nulls":3},"",null,"%",null,"%",null,"%",null,"%",{"$nulls":25},"","",null,"","",null,"SUM_CO2",null,null,"","","",null,"","","",null,"","","","",null,false]
[null,null,36,{"$nulls":5},"",{"$nulls":3},"",null,"%",null,"%",null,"%",null,"%",{"$nulls":25},"","",null,"","",null,"SUM_CO2",null,null,"","","",null,"","","",null,"","","","",null,false]
[null,null,37,{"$nulls":5},"",{"$nulls":3},"",null,"%",null,"%",null,"%",null,"%",{"$nulls":25},"","",null,"","",null,"SUM_CO2",null,null,"","","",null,"","","",null,"","","","",null,false]
[null,null,38,{"$nulls":5},"",{"$nulls":3},"",null,"%",null,"%",null,"%",null,"%",{"$nulls":25},"","",null,"","",null,"SUM_CO2",null,null,"","","",null,"","","",null,"","","","",null,false]
[null,null,39,{"$nulls":5},"",{"$nulls":3},"",null,"%",null,"%",null,"%",null,"%",{"$nulls":25},"","",null,"","",null,"SUM_CO2",null,null,"","","",null,"","","",null,"","","","",null,false]
[null,null,40,{"$nulls":5},"",{"$nulls":3},"",null,"%",null,"%",null,"%",null,"%",{"$nulls":25},"","",null,"","",null,"SUM_CO2",null,null,"","","",null,"","","",null,"","","","",null,false]
[null,null,41,{"$nulls":5},"",{"$nulls":3},"",null,"%",null,"%",null,"%",null,"%",{"$nulls":25},"","",null,"","",null,"SUM_CO2",null,null,"","","",null,"","","",null,"","","","",null,false]
[null,null,42,{"$nulls":5},"",{"$nulls":3},"",null,"%",null,"%",null,"%",null,"%",{"$nulls":25},"","",null,"","",null,"SUM_CO2",null,null,"","","",null,"","","",null,"","","","",null,false]
[null,null,43,{"$nulls":5},"",{"$nulls":3},"",null,"%",null,"%",null,"%",null,"%",{"$nulls":25},"","",null,"","",null,"SUM_CO2",null,null,"","","",null,"","","",null,"","","","",null,false]
[null,null,44,{"$nulls":5},"",{"$nulls":3},"",null,"%",null,"%",null,"%",null,"%",{"$nulls":25},"","",null,"","",null,"SUM_CO2",null,null,"","","",null,"","","",null,"","","","",null,false]
[null,null,45,{"$nulls":5},"",{"$nulls":3},"",null,"%",null,"%",null,"%",null,"%",{"$nulls":25},"","",null,"","",null,"SUM_CO2",null,null,"","","",null,"","","",null,"","","","",null,false]
[null,null,46,{"$nulls":5},"",{"$nulls":3},"",null,"%",null,"%",null,"%",null,"%",{"$nulls":25},"","",null,"","",null,"SUM_CO2",null,null,"","","",null,"","","",null,"","","","",null,false]
[null,null,47,{"$nulls":5},"",{"$nulls":3},"",null,"%",null,"%",null,"%",null,"%",{"$nulls":25},"","",null,"","",null,"SUM_CO2",null,null,"","","",null,"","","",null,"","","","",null,false]
[null,null,48,{"$nulls":5},"",{"$nulls":3},"",null,"%",null,"%",null,"%",null,"%",{"$nulls":25},"","",null,"","",null,"SUM_CO2",null,null,"","","",null,"","","",null,"","","","",null,false]
[null,null,49,{"$nulls":5},"",{"$nulls":3},"",null,"%",null,"%",null,"%",null,"%",{"$nulls":25},"","",null,"","",null,"SUM_CO2",null,null,"","","",null,"","","",null,"","","","",null,false]
[null,null,50,{"$nulls":5},"",{"$nulls":3},"",null,"%",null,"%",null,"%",null,"%",{"$nulls":25},"","",null,"","",null,"SUM_CO2",null,null,"","","",null,"","","",null,"","","","",null,false]
[null,null,51,{"$nulls":5},"",{"$nulls":3},"",null,"%",null,"%",null,"%",null,"%",{"$nulls":25},"","",null,"","",null,"SUM_CO2",null,null,"","","",null,"","","",null,"","","","",null,false]
[null,null,52,{"$nulls":5},"",{"$nulls":3},"",null,"%",null,"%",null,"%",null,"%",{"$nulls":25},"","",null,"","",null,"SUM_CO2",null,null,"","","",null,"","","",null,"","","","",null,false]
[null,null,53,{"$nulls":5},"",{"$nulls":3},"",null,"%",null,"%",null,"%",null,"%",{"$nulls":25},"","",null,"","",null,"SUM_CO2",null,null,"","","",null,"","","",null,"","","","",null,false]
[null,null,54,{"$nulls":5},"",{"$nulls":3},"",null,"%",null,"%",null,"%",null,"%",{"$nulls":25},"","",null,"","",null,"SUM_CO2",null,null,"","","",null,"","","",null,"","","","",null,false]
[null,null,55,{"$nulls":5},"",{"$nulls":3},"",null,"%",null,"%",null,"%",null,"%",{"$nulls":25},"","",null,"","",null,"SUM_CO2",null,null,"","","",null,"","","",null,"","","","",null,false]
[null,null,56,{"$nulls":5},"",{"$nulls":3},"",null,"%",null,"%",null,"%",null,"%",{"$nulls":25},"","",null,"","",null,"SUM_CO2",null,null,"","","",null,"","","",null,"","","","",null,false]
[null,null,57,{"$nulls":5},"",{"$nulls":3},"",null,"%",null,"%",null,"%",null,"%",{"$nulls":25},"","",null,"","",null,"SUM_CO2",null,null,"","","",null,"","","",null,"","","","",null,false]
[null,null,58,{"$nulls":5},"",{"$nulls":3},"",null,"%",null,"%",null,"%",null,"%",{"$nulls":25},"","",null,"","",null,"SUM_CO2",null,null,"","","",null,"","","",null,"","","","",null,false]
[null,null,59,{"$nulls":5},"",{"$nulls":3},"",null,"%",null,"%",null,"%",null,"%",{"$nulls":25},"","",null,"","",null,"SUM_CO2",null,null,"","","",null,"","","",null,"","","","",null,false]
[null,null,60,{"$nulls":5},"",{"$nulls":3},"",null,"%",null,"%",null,"%",null,"%",{"$nulls":25},"","",null,"","",null,"SUM_CO2",null,null,"","","",null,"","","",null,"","","","",null,false]
[null,null,61,{"$nulls":5},"",{"$nulls":3},"",null,"%",null,"%",null,"%",null,"%",{"$nulls":25},"","",null,"","",null,"SUM_CO2",null,null,"","","",null,"","","",null,"","","","",null,false]
[null,null,62,{"$nulls":5},"",{"$nulls":3},"",null,"%",null,"%",null,"%",null,"%",{"$nulls":25},"","",null,"","",null,"SUM_CO2",null,null,"","","",null,"","","",null,"","","","",null,false]
[null,null,63,{"$nulls":5},"",{"$nulls":3},"",null,"%",null,"%",null,"%",null,"%",{"$nulls":25},"","",null,"","",null,"SUM_CO2",null,null,"","","",null,"","","",null,"","","","",null,false]
[null,null,64,{"$nulls":5},"",{"$nulls":3},"",null,"%",null,"%",null,"%",null,"%",{"$nulls":25},"","",null,"","",null,"SUM_CO2",null,null,"","","",null,"","","",null,"","","","",null,false]
[null,null,65,{"$nulls":5},{"$f":"IF(E81=\"\",\"\",IF(G81=CONST_kNm3,CONST_GJpkNm3,CONST_GJpt))","v":""},{"$nulls":3},{"$f":"IF(D81<>INDEX(CONST_MonitoringApproach,3),\"\",CONST_tC&\"/\"&IF(G81=\"\",CONST_t,G81))","v":""},null,"%",null,"%",null,"%",null,"%",{"$nulls":25},{"$f":"IF($D81=\"\",\"\",INDEX($BD81:$BF81,MATCH($D81,CONST_MonitoringApproach,0)))","v":""},{"$f":"IF($D81=\"\",\"\",INDEX($BH81:$BJ81,MATCH($D81,CONST_MonitoringApproach,0)))","v":""},null,"","",null,{"$f":"CONST_CNTR_SUM_CO2","v":"SUM_CO2"},null,null,{"$f":"IF($D81<>INDEX(CONST_MonitoringApproach,1),\"\",$F81*IF($K81=CONST_tCO2pTJ,$H81/1000,1)*$J81*(1-$R81/100))","v":""},{"$f":"IF($D81<>INDEX(CONST_MonitoringApproach,2),\"\",$F81*IF($K81=CONST_tCO2pTJ,$H81/1000,1)*$J81*$P81/100*(1-$R81/100))","v":""},{"$f":"IF($D81<>INDEX(CONST_MonitoringApproach,3),\"\",$F81*3.664*$L81*(1-$R81/100))","v":""},null,{"$f":"IF($D81<>INDEX(CONST_MonitoringApproach,1),\"\",$F81*IF($K81=CONST_tCO2pTJ,$H81/1000,1)*$J81*($R81/100))","v":""},{"$f":"IF($D81<>INDEX(CONST_MonitoringApproach,2),\"\",$F81*IF($K81=CONST_tCO2pTJ,$H81/1000,1)*$J81*$P81/100*($R81/100))","v":""},{"$f":"IF($D81<>INDEX(CONST_MonitoringApproach,3),\"\",$F81*$L81*3.664*($R81/100))","v":""},null,{"$f":"IF($D81=\"\",\"\",MATCH($D81,CONST_MonitoringApproach,0)=3)","v":""},{"$f":"IF($D81=\"\",\"\",MATCH($D81,CONST_MonitoringApproach,0)<>3)","v":""},{"$f":"IF($D81=\"\",\"\",MATCH($D81,CONST_MonitoringApproach,0)<>1)","v":""},{"$f":"IF($D81=\"\",\"\",MATCH($D81,CONST_MonitoringApproach,0)<>2)","v":""},null,{"$f":"AND(CNTR_HasEntriesA,D81=\"\")","v":false}]
[null,null,66,{"$nulls":5},"",{"$nulls":3},"",null,"%",null,"%",null,"%",null,"%",{"$nulls":25},"","",null,{"$f":"IF($D82=\"\",\"\",$F82*$H82/1000*(1-$R82/100))","v":""},{"$f":"IF($D82=\"\",\"\",$F82*$H82/1000*($R82/100))","v":""},null,"SUM_CO2",null,null,"","","",null,"","","",null,"","","","",null,false]
[null,null,67,{"$nulls":5},"",{"$nulls":3},"",null,"%",null,"%",null,"%",null,"%",{"$nulls":25},"","",null,"","",null,"SUM_CO2",null,null,"","","",null,"","","",null,"","","","",null,false]
[null,null,68,{"$nulls":5},"",{"$nulls":3},"",null,"%",null,"%",null,"%",null,"%",{"$nulls":25},"","",null,"","",null,"SUM_CO2",null,null,"","","",null,"","","",null,"","","","",null,false]
[null,null,69,{"$nulls":5},"",{"$nulls":3},"",null,"%",null,"%",null,"%",null,"%",{"$nulls":25},"","",null,"","",null,"SUM_CO2",null,null,"","","",null,"","","",null,"","","","",null,false]
[null,null,70,{"$nulls":5},"",{"$nulls":3},"",null,"%",null,"%",null,"%",null,"%",{"$nulls":25},"","",null,"","",null,"SUM_CO2",null,null,"","","",null,"","","",null,"","","","",null,false]
[null,null,71,{"$nulls":5},"",{"$nulls":3},"",null,"%",null,"%",null,"%",null,"%",{"$nulls":25},"","",null,"","",null,"SUM_CO2",null,null,"","","",null,"","","",null,"","","","",null,false]
[null,null,72,{"$nulls":5},"",{"$nulls":3},"",null,"%",null,"%",null,"%",null,"%",{"$nulls":25},"","",null,"","",null,"SUM_CO2",null,null,"","","",null,"","","",null,"","","","",null,false]
[null,null,73,{"$nulls":5},"",{"$nulls":3},"",null,"%",null,"%",null,"%",null,"%",{"$nulls":25},"","",null,"","",null,"SUM_CO2",null,null,"","","",null,"","","",null,"","","","",null,false]
[null,null,74,{"$nulls":5},"",{"$nulls":3},"",null,"%",null,"%",null,"%",null,"%",{"$nulls":25},"","",null,"","",null,"SUM_CO2",null,null,"","","",null,"","","",null,"","","","",null,false]
[null,null,75,{"$nulls":5},"",{"$nulls":3},"",null,"%",null,"%",null,"%",null,"%",{"$nulls":25},"","",null,"","",null,"SUM_CO2",null,null,"","","",null,"","","",null,"","","","",null,false]
[]
[]
[]
[2,null,null,{"$f":"Translations!$B$198","v":"PFC Emissions"},{"$nulls":48},{"$f":"D95","v":"PFC Emissions"}]
[null,null,{"$f":"Translations!$B$131","v":"#"},{"$f":"Translations!$B$132","v":"Method"},{"$f":"Translations!$B$199","v":"Type of anode"},{"$f":"Translations!$B$134","v":"Activity data (AD)"},{"$f":"Translations!$B$135","v":"AD Unit"},{"$f":"Translations!$B$136","v":"Net calorific value (NCV)"},{"$f":"Translations!$B$137","v":"NCV Unit"},{"$f":"Translations!$B$138","v":"Emission factor (EF)"},{"$f":"Translations!$B$139","v":"EF Unit"},{"$f":"Translations!$B$140","v":"Carbon content"},{"$f":"Translations!$B$141","v":"C-Content Unit"},{"$f":"Translations!$B$142","v":"Oxidation factor (OxF)"},{"$f":"Translations!$B$143","v":"OxF Unit"},{"$f":"Translations!$B$144","v":"Conversion factor (ConvF)"},{"$f":"Translations!$B$145","v":"ConvF Unit"},{"$f":"Translations!$B$146","v":"Biomass content (BioC)"},{"$f":"Translations!$B$147","v":"BioC Unit"},{"$f":"Translations!$B$148","v":"non-sust. BioC"},{"$f":"Translations!$B$149","v":"non-sust. BioC Unit"},{"$f":"Translations!$B$150","v":"hourly GHG conc. Average"},{"$f":"Translations!$B$151","v":"hourly GHG conc. Unit"},{"$f":"Translations!$B$152","v":"hours operating"},{"$f":"Translations!$B$153","v":"hours operating Unit"},{"$f":"Translations!$B$154","v":"Flue gas (average)"},{"$f":"Translations!$B$155","v":"Flue gas (average), Unit"},{"$f":"Translations!$B$156","v":"Flue gas (total)"},{"$f":"Translations!$B$157","v":"Flue gas (total), Unit"},{"$f":"Translations!$B$158","v":"Annual amount of GHG"},{"$f":"Translations!$B$159","v":"Annual amount of GHG Unit"},{"$f":"Translations!$B$160","v":"Global Warming Potential (GWP, tCO2e/t)"},{"$f":"Translations!$B$161","v":"A: Frequency"},{"$f":"Translations!$B$162","v":"A: Duration"},{"$f":"Translations!$B$163","v":"A: SEF(CF4)"},{"$f":"Translations!$B$164","v":"B: AEO"},{"$f":"Translations!$B$165","v":"B: CE"},{"$f":"Translations!$B$166","v":"B: OVC"},{"$f":"Translations!$B$167","v":"F(C2F6)"},{"$f":"Translations!$B$168","v":"CF4 Emissions (t CF4)"},{"$f":"Translations!$B$169","v":"C2F6 Emissions (t C2F6)"},{"$f":"Translations!$B$170","v":"GWP (CF4) (tCO2e/t)"},{"$f":"Translations!$B$171","v":"GWP (C2F6) (tCO2e/t)"},{"$f":"Translations!$B$172","v":"CF4 Emissions (t CO2e)"},{"$f":"Translations!$B$173","v":"C2F6 Emissions (t CO2e)"},{"$f":"Translations!$B$174","v":"Collection efficiency, %"},{"$f":"Translations!$B$175","v":"CO2e fossil (t)"},{"$f":"Translations!$B$176","v":"CO2e bio (t)"},{"$f":"Translations!$B$177","v":"CO2e non-sust. bio (t)"},{"$f":"Translations!$B$178","v":"Energy content (fossil), TJ"},{"$f":"Translations!$B$179","v":"Energy content (bio), TJ"},{"$nulls":5},{"$f":"Translations!$B$200","v":"Method A"},null,null,{"$f":"Translations!$B$201","v":"Method B"}]
[null,null,{"$f":"Translations!$B$202","v":"Ex."},{"$f":"Translations!$B$203","v":"Overvoltage method"},{"$f":"Translations!$B$204","v":"Centre Worked Pre-Bake (CWPB)"},{"v":5000,"d":"5,000.00"},{"$f":"CONST_t","v":"t"},{"$nulls":25},{"v":300,"d":"300.00"},{"v":2,"d":"2.00"},{"v":0.146,"d":"0.15"},{"v":0,"d":"0.00"},{"v":0,"d":"0.00"},{"v":0,"d":"0.00"},{"v":0.122,"d":"0.12"},4.38,{"v":0.53436,"d":"0.53"},{"v":6630,"d":"6,630"},{"v":11100,"d":"11,100"},{"v":32368.2,"d":"32,368"},{"v":6519.192,"d":"6,519"},{"v":98,"d":"98.00"},{"v":39681.012244898,"d":"39,681"},{"$nulls":9},{"$f":"Translations!$B$205","v":"CF4"},{"$f":"Translations!$B$206","v":"C2F6"},null,{"$f":"Translations!$B$205","v":"CF4"},{"$f":"Translations!$B$206","v":"C2F6"}]
[null,null,1,{"$nulls":3},"t",{"$nulls":32},{"$f":"IF($D98=\"\",\"\",IF(MATCH($D98,CONST_PFCSlopeOrOvervoltage,0)=1,BE98,BH98))","v":""},{"$f":"IF(AN98=\"\",\"\",AN98*AM98)","v":""},null,null,{"$f":"IF($D98=\"\",\"\",AN98*AP$97)","v":""},{"$f":"IF($D98=\"\",\"\",AO98*AQ$97)","v":""},null,{"$f":"IF($D98=\"\",\"\",SUM(AR98:AS98)/IF(AT98=\"\",1,AT98))","v":""},{"$nulls":5},{"$f":"CONST_CNTR_SUM_PFC","v":"SUM_PFC"},{"$nulls":3},{"$f":"F98*AG98*AH98*AI98/1000","v":{"v":0,"d":"0.00"}},{"$f":"IF(BE98=\"\",\"\",$AM98)","v":{"v":0,"d":"0.00"}},null,{"$f":"F98*(AJ98/IF(AK98=0,0.01,AK98))*AL98/1000","v":{"v":0,"d":"0.00"}},{"$f":"IF(BH98=\"\",\"\",$AM98)","v":{"v":0,"d":"0.00"}}]
[null,null,2,{"$nulls":3},"t",{"$nulls":36},{"$f":"IF($D99=\"\",\"\",AN99*AP$97)","v":""},"",null,{"$f":"IF($D99=\"\",\"\",SUM(AR99:AS99)/IF(AT99=\"\",1,AT99))","v":""},{"$nulls":5},"SUM_PFC",{"$nulls":3},{"$f":"F99*AG99*AH99*AI99/1000","v":{"v":0,"d":"0.00"}},{"$f":"IF(BE99=\"\",\"\",$AM99)","v":{"v":0,"d":"0.00"}},null,{"$f":"F99*(AJ99/IF(AK99=0,0.01,AK99))*AL99/1000","v":{"v":0,"d":"0.00"}},{"$f":"IF(BH99=\"\",\"\",$AM99)","v":{"v":0,"d":"0.00"}}]
[null,null,3,{"$nulls":3},"t",{"$nulls":36},"","",null,"",{"$nulls":5},"SUM_PFC",{"$nulls":3},{"v":0,"d":"0.00"},{"v":0,"d":"0.00"},null,{"v":0,"d":"0.00"},{"v":0,"d":"0.00"}]
[null,null,4,{"$nulls":3},"t",{"$nulls":36},"","",null,"",{"$nulls":5},"SUM_PFC",{"$nulls":3},{"v":0,"d":"0.00"},{"v":0,"d":"0.00"},null,{"v":0,"d":"0.00"},{"v":0,"d":"0.00"}]
[null,null,5,{"$nulls":3},"t",{"$nulls":36},"","",null,"",{"$nulls":5},"SUM_PFC",{"$nulls":3},{"v":0,"d":"0.00"},{"v":0,"d":"0.00"},null,{"v":0,"d":"0.00"},{"v":0,"d":"0.00"}]
[null,null,6,{"$nulls":3},"t",{"$nulls":36},"","",null,"",{"$nulls":5},"SUM_PFC",{"$nulls":3},{"v":0,"d":"0.00"},{"v":0,"d":"0.00"},null,{"v":0,"d":"0.00"},{"v":0,"d":"0.00"}]
[null,null,7,{"$nulls":3},"t",{"$nulls":36},"","",null,"",{"$nulls":5},"SUM_PFC",{"$nulls":3},{"v":0,"d":"0.00"},{"v":0,"d":"0.00"},null,{"v":0,"d":"0.00"},{"v":0,"d":"0.00"}]
[null,null,8,{"$nulls":3},"t",{"$nulls":36},"","",null,"",{"$nulls":5},"SUM_PFC",{"$nulls":3},{"v":0,"d":"0.00"},{"v":0,"d":"0.00"},null,{"v":0,"d":"0.00"},{"v":0,"d":"0.00"}]
[null,null,9,{"$nulls":3},"t",{"$nulls":36},"","",null,"",{"$nulls":5},"SUM_PFC",{"$nulls":3},{"v":0,"d":"0.00"},{"v":0,"d":"0.00"},null,{"v":0,"d":"0.00"},{"v":0,"d":"0.00"}]
[null,null,10,{"$nulls":3},"t",{"$nulls":36},"","",null,"",{"$nulls":5},"SUM_PFC",{"$nulls":3},{"v":0,"d":"0.00"},{"v":0,"d":"0.00"},null,{"v":0,"d":"0.00"},{"v":0,"d":"0.00"}]
[]
[3,null,null,{"$f":"Translations!$B$207","v":"Emissions Sources (Measurement-Based Approaches)"},{"$nulls":48},{"$f":"Translations!$B$208","v":"Emission sources"}]
[null,null,{"$f":"Translations!$B$131","v":"#"},{"$f":"Translations!$B$122","v":"Name"},{"$f":"Translations!$B$209","v":"Type of GHG"},{"$f":"Translations!$B$134","v":"Activity data (AD)"},{"$f":"Translations!$B$135","v":"AD Unit"},{"$f":"Translations!$B$136","v":"Net calorific value (NCV)"},{"$f":"Translations!$B$137","v":"NCV Unit"},{"$f":"Translations!$B$138","v":"Emission factor (EF)"},{"$f":"Translations!$B$139","v":"EF Unit"},{"$f":"Translations!$B$140","v":"Carbon content"},{"$f":"Translations!$B$141","v":"C-Content Unit"},{"$f":"Translations!$B$142","v":"Oxidation factor (OxF)"},{"$f":"Translations!$B$143","v":"OxF Unit"},{"$f":"Translations!$B$144","v":"Conversion factor (ConvF)"},{"$f":"Translations!$B$145","v":"ConvF Unit"},{"$f":"Translations!$B$210","v":"Biomass fraction"},{"$f":"Translations!$B$147","v":"BioC Unit"},{"$f":"Translations!$B$148","v":"non-sust. BioC"},{"$f":"Translations!$B$149","v":"non-sust. BioC Unit"},{"$f":"Translations!$B$150","v":"hourly GHG conc. Average"},{"$f":"Translations!$B$151","v":"hourly GHG conc. Unit"},{"$f":"Translations!$B$152","v":"hours operating"},{"$f":"Translations!$B$153","v":"hours operating Unit"},{"$f":"Translations!$B$154","v":"Flue gas (average)"},{"$f":"Translations!$B$155","v":"Flue gas (average), Unit"},{"$f":"Translations!$B$156","v":"Flue gas (total)"},{"$f":"Translations!$B$157","v":"Flue gas (total), Unit"},{"$f":"Translations!$B$158","v":"Annual amount of GHG"},{"$f":"Translations!$B$159","v":"Annual amount of GHG Unit"},{"$f":"Translations!$B$160","v":"Global Warming Potential (GWP, tCO2e/t)"},{"$f":"Translations!$B$161","v":"A: Frequency"},{"$f":"Translations!$B$162","v":"A: Duration"},{"$f":"Translations!$B$163","v":"A: SEF(CF4)"},{"$f":"Translations!$B$164","v":"B: AEO"},{"$f":"Translations!$B$165","v":"B: CE"},{"$f":"Translations!$B$166","v":"B: OVC"},{"$f":"Translations!$B$167","v":"F(C2F6)"},{"$f":"Translations!$B$168","v":"CF4 Emissions (t CF4)"},{"$f":"Translations!$B$169","v":"C2F6 Emissions (t C2F6)"},{"$f":"Translations!$B$170","v":"GWP (CF4) (tCO2e/t)"},{"$f":"Translations!$B$171","v":"GWP (C2F6) (tCO2e/t)"},{"$f":"Translations!$B$172","v":"CF4 Emissions (t CO2e)"},{"$f":"Translations!$B$173","v":"C2F6 Emissions (t CO2e)"},{"$f":"Translations!$B$174","v":"Collection efficiency, %"},{"$f":"Translations!$B$175","v":"CO2e fossil (t)"},{"$f":"Translations!$B$176","v":"CO2e bio (t)"},{"$f":"Translations!$B$177","v":"CO2e non-sust. bio (t)"},{"$f":"Translations!$B$178","v":"Energy content (fossil), TJ"},{"$f":"Translations!$B$179","v":"Energy content (bio), TJ"}]
[null,null,{"$f":"Translations!$B$180","v":"Ex.1"},"N2O","N2O",{"$nulls":12},0,"%",0,"%",{"v":64.2925,"d":"64.293"},{"$f":"CONST_gpNm3","v":"g/Nm3"},4,{"$f":"CONST_hpa","v":"h/year"},265,{"$f":"CONST_Nm3ph","v":"1000Nm3/h"},1060,{"$f":"CONST_kNm3pa","v":"1000Nm3/Year"},68,{"$f":"CONST_t","v":"t"},265,{"$nulls":14},{"v":20308.7149,"d":"20,309"},0,0,0,0]
[null,null,{"$f":"Translations!$B$185","v":"Ex.2"},{"$f":"Translations!$B$211","v":"CO2 transfer"},"CO2",{"$nulls":12},0,"%",0,"%",{"v":1820,"d":"1,820.000"},"g/Nm3",{"v":5000,"d":"5,000"},"h/year",50,"1000Nm3/h",250000,"1000Nm3/Year",{"v":455000,"d":"455,000"},"t",1,{"$nulls":14},{"v":455000,"d":"455,000"},0,0,0,0]
[null,null,1,{"$nulls":15},"%",{"$nulls":3},"g/Nm3",null,"h/year",null,"1000Nm3/h",{"$f":"IF(E113=\"\",\"\",V113*X113*Z113/1000*(1-R113/100))","v":""},"1000Nm3/Year",{"$f":"IF(E113=\"\",\"\",V113*X113*Z113/1000*(1-R113/100))","v":""},"t",{"$f":"IF(E113=\"\",\"\",IF(E113=INDEX(CONST_CEMSType,2),265,1))","v":""},{"$nulls":14},{"$f":"IF(E113=\"\",\"\",V113*X113*Z113/1000*(1-R113/100)*AF113)","v":""},{"$f":"IF(E113=\"\",\"\",V113*X113*Z113/1000*(R113/100)*AF113)","v":""},{"$nulls":4},{"$f":"IF(E113=INDEX(CONST_CEMSType,2),CONST_CNTR_SUM_N2O,CONST_CNTR_SUM_CO2)","v":"SUM_CO2"}]
[null,null,2,{"$nulls":15},"%",{"$nulls":3},"g/Nm3",null,"h/year",null,"1000Nm3/h",{"$f":"IF(E114=\"\",\"\",V114*X114*Z114/1000*(1-R114/100))","v":""},"1000Nm3/Year",{"$f":"IF(E114=\"\",\"\",V114*X114*Z114/1000*(1-R114/100))","v":""},"t","",{"$nulls":14},{"$f":"IF(E114=\"\",\"\",V114*X114*Z114/1000*(1-R114/100)*AF114)","v":""},{"$f":"IF(E114=\"\",\"\",V114*X114*Z114/1000*(R114/100)*AF114)","v":""},{"$nulls":4},"SUM_CO2"]
[null,null,3,{"$nulls":15},"%",{"$nulls":3},"g/Nm3",null,"h/year",null,"1000Nm3/h",{"$f":"IF(E115=\"\",\"\",V115*X115*Z115/1000*(1-R115/100))","v":""},"1000Nm3/Year",{"$f":"IF(E115=\"\",\"\",V115*X115*Z115/1000*(1-R115/100))","v":""},"t","",{"$nulls":14},{"$f":"IF(E115=\"\",\"\",V115*X115*Z115/1000*(1-R115/100)*AF115)","v":""},{"$f":"IF(E115=\"\",\"\",V115*X115*Z115/1000*(R115/100)*AF115)","v":""},{"$nulls":4},"SUM_CO2"]
[null,null,4,{"$nulls":15},"%",{"$nulls":3},"g/Nm3",null,"h/year",null,"1000Nm3/h","","1000Nm3/Year","","t","",{"$nulls":14},"","",{"$nulls":4},"SUM_CO2"]
[null,null,5,{"$nulls":15},"%",{"$nulls":3},"g/Nm3",null,"h/year",null,"1000Nm3/h","","1000Nm3/Year","","t","",{"$nulls":14},"","",{"$nulls":4},"SUM_CO2"]
[null,null,6,{"$nulls":15},"%",{"$nulls":3},"g/Nm3",null,"h/year",null,"1000Nm3/h","","1000Nm3/Year","","t","",{"$nulls":14},"","",{"$nulls":4},"SUM_CO2"]
[null,null,7,{"$nulls":15},"%",{"$nulls":3},"g/Nm3",null,"h/year",null,"1000Nm3/h","","1000Nm3/Year","","t","",{"$nulls":14},"","",{"$nulls":4},"SUM_CO2"]
[null,null,8,{"$nulls":15},"%",{"$nulls":3},"g/Nm3",null,"h/year",null,"1000Nm3/h","","1000Nm3/Year","","t","",{"$nulls":14},"","",{"$nulls":4},"SUM_CO2"]
[null,null,9,{"$nulls":15},"%",{"$nulls":3},"g/Nm3",null,"h/year",null,"1000Nm3/h","","1000Nm3/Year","","t","",{"$nulls":14},"","",{"$nulls":4},"SUM_CO2"]
[null,null,10,{"$nulls":15},"%",{"$nulls":3},"g/Nm3",null,"h/year",null,"1000Nm3/h","","1000Nm3/Year","","t","",{"$nulls":14},"","",{"$nulls":4},"SUM_CO2"]
[]
["ausblenden",{"$nulls":50},"PRINT"]

{"sheet":"C_Emissions&Energy","index":6,"n_rows":46,"n_cols":24,"rows_kept":46,"merged":[[1,1,3,3],[1,4,1,5],[1,6,1,7],[1,8,1,9],[1,10,1,11],[1,12,1,13],[2,4,2,5],[2,6,2,7],[2,8,2,9],[2,10,2,11],[2,12,2,13],[3,4,3,5],[3,6,3,7],[3,8,3,9],[3,10,3,11],[3,12,3,13],[10,4,10,13],[11,4,11,13],[12,4,12,13],[20,4,20,13],[21,4,21,13],[27,4,27,13],[28,4,28,13],[32,4,32,13],[33,4,33,13],[34,5,34,13],[35,5,35,13],[36,5,36,13],[38,7,38,13],[39,7,39,13],[40,7,40,13]]}
["ausblenden",{"$nulls":16},"ausblenden","ausblenden","ausblenden","ausblenden","ausblenden","ausblenden","ausblenden"]
[null,{"$f":"Translations!$B$212","v":"Energy & Emissions"},null,null,{"$f":"Translations!$B$11","v":"Navigation Area:"},null,{"$f":"HYPERLINK(\"#\"&ADDRESS(2,3,,,a_Contents!$U$2),a_Contents!$B$2)","v":"Table of contents"},null,{"$f":"HYPERLINK(\"#\"&ADDRESS(2,3,,,G_FurtherGuidance!$U$2),G_FurtherGuidance!$B$2)","v":"Further Guidance"},null,{"$f":"HYPERLINK(\"#\"&ADDRESS(2,3,,,Summary_Processes!$Y$2),Summary_Processes!$Y$2)","v":"Summary_Processes"},null,{"$f":"HYPERLINK(\"#\"&ADDRESS(2,3,,,Summary_Products!$BF$2),Summary_Products!$BF$2)","v":"Summary_Products"},{"$nulls":4},"Print area:",{"$f":"ADDRESS(ROW($B$2),COLUMN($B$2))&\":\"&ADDRESS(MATCH(\"PRINT\",$P:$P,0),COLUMN($O$19))","v":"$B$2:$O$44"},"Name of this sheet",{"$f":"IF(ISERROR(CELL(\"filename\",V2)),\"MSParameters\",MID(CELL(\"filename\",V2),FIND(\"]\",CELL(\"filename\",V2))+1,1024))","v":"C_Emissions&Energy"}]
[{"$nulls":6},{"$f":"IFERROR(HYPERLINK(\"#\"&ADDRESS(ROW($A$1)+MATCH(R3,$A:$A,0)-1,3),INDEX($R:$R,MATCH(R3,$A:$A,0))),\"\")","v":"Fuel balance"},null,{"$f":"IFERROR(HYPERLINK(\"#\"&ADDRESS(ROW($A$1)+MATCH(T3,$A:$A,0)-1,3),INDEX($R:$R,MATCH(T3,$A:$A,0))),\"\")","v":"GHG balance & data quality"},null,{"$f":"IFERROR(HYPERLINK(\"#\"&ADDRESS(ROW($A$1)+MATCH(V3,$A:$A,0)-1,3),INDEX($R:$R,MATCH(V3,$A:$A,0))),\"\")","v":""},null,{"$f":"IFERROR(HYPERLINK(\"#\"&ADDRESS(ROW($A$1)+MATCH(X3,$A:$A,0)-1,3),INDEX($R:$R,MATCH(X3,$A:$A,0))),\"\")","v":""},{"$nulls":4},1,null,2,null,3,null,4]
[{"$nulls":6},{"$f":"IFERROR(HYPERLINK(\"#\"&ADDRESS(ROW($A$1)+MATCH(R4,$A:$A,0)-1,3),INDEX($R:$R,MATCH(R4,$A:$A,0))),\"\")","v":""},null,{"$f":"IFERROR(HYPERLINK(\"#\"&ADDRESS(ROW($A$1)+MATCH(T4,$A:$A,0)-1,3),INDEX($R:$R,MATCH(T4,$A:$A,0))),\"\")","v":""},null,{"$f":"IFERROR(HYPERLINK(\"#\"&ADDRESS(ROW($A$1)+MATCH(V4,$A:$A,0)-1,3),INDEX($R:$R,MATCH(V4,$A:$A,0))),\"\")","v":""},null,{"$f":"IFERROR(HYPERLINK(\"#\"&ADDRESS(ROW($A$1)+MATCH(X4,$A:$A,0)-1,3),INDEX($R:$R,MATCH(X4,$A:$A,0))),\"\")","v":""},{"$nulls":4},5,null,6,null,7,null,8]
[]
[null,null,"C.",null,{"$f":"Translations!$B$213","v":"Sheet \"C_Emissions&Energy\" - Installation-level GHG emissions and energy consumption"},{"$nulls":12},{"$f":"Translations!$B$214","v":"Values"},"EmbedEm",null,null,{"$f":"Translations!$B$66","v":"Errors"},null,"Cond. form."]
[]
[{"$f":"C8","v":1},null,1,{"$f":"Translations!$B$215","v":"Fuel balance"},{"$nulls":13},{"$f":"D8","v":"Fuel balance"}]
[]
[{"$nulls":3},{"$f":"Translations!$B$216","v":"Please enter in the table below the amount of energy consumed for each use type:"}]
[{"$nulls":3},"-",{"$f":"Translations!$B$217","v":"Fuel input to all CBAM production processes (including precursors produced within the installation), either directly or via the production of measurable heat (e.g. steam) with the exception of fuel for electricity."}]
[{"$nulls":3},"-",{"$f":"Translations!$B$218","v":"Fuel input for electricity production"}]
[{"$nulls":3},"-",{"$f":"Translations!$B$219","v":"Fuel input to all non-CBAM production processes, either directly or via the production of measurable heat (e.g. steam)."}]
[{"$nulls":4},{"$f":"Translations!$B$220","v":"Fuel balance:"},null,{"$f":"Translations!$B$221","v":"Unit"},{"$f":"Translations!$B$222","v":"Total fuel input"},{"$f":"Translations!$B$223","v":"Direct fuel for CBAM goods"},{"$f":"Translations!$B$224","v":"Fuel for electricity"},{"$f":"Translations!$B$225","v":"Direct fuel for non-CBAM goods"},{"$f":"Translations!$B$226","v":"Rest"}]
[{"$nulls":3},"i.",{"$f":"Translations!$B$227","v":"from sheet \"B_EmInst\""},null,{"$f":"CONST_TJ","v":"TJ"},{"$f":"IF(CNTR_HasEntriesA,SUMIFS(B_EmInst!$AX:$AX,B_EmInst!$BA:$BA,CONST_CNTR_SUM_CO2)+SUMIFS(B_EmInst!$AY:$AY,B_EmInst!$BA:$BA,CONST_CNTR_SUM_CO2),\"\")","v":""}]
[{"$nulls":3},"ii.",{"$f":"Translations!$B$228","v":"manual entries"},null,{"$f":"CONST_TJ","v":"TJ"}]
[{"$nulls":3},"iii.",{"$f":"Translations!$B$229","v":"Results:"},null,{"$f":"CONST_TJ","v":"TJ"},{"$f":"IF(H16=\"\",H15,H16)","v":""},{"$f":"IF(I16=\"\",\"\",I16)","v":""},{"$f":"IF(J16=\"\",\"\",J16)","v":""},{"$f":"IF(K16=\"\",\"\",K16)","v":""},{"$f":"IF(COUNT(H17:K17)>0,SUM(H17)-SUM(I17:K17),\"\")","v":""}]
[]
[{"$f":"C19","v":2},null,2,{"$f":"Translations!$B$230","v":"Greenhouse gas emissions balance & information on data quality"},{"$nulls":13},{"$f":"Translations!$B$1849","v":"GHG balance & data quality"}]
[]
[{"$nulls":3},"(a)",{"$f":"Translations!$B$1850","v":"GHG balance by type of GHG"}]
[{"$nulls":4},{"$f":"Translations!$B$231","v":"Values below are taken automatically from entries in sheet \"B_EmInst\". If entries made in that sheet are incomplete, please enter the total emissions figures manually under ii. to override automatic results displayed under i."}]
[{"$nulls":4},{"$f":"Translations!$B$232","v":"Installation level data:"},null,{"$f":"Translations!$B$221","v":"Unit"},{"$f":"Translations!$B$233","v":"Total CO2 emissions"},{"$f":"Translations!$B$234","v":"Biomass emissions"},{"$f":"Translations!$B$235","v":"Total N2O emissions"},{"$f":"Translations!$B$236","v":"Total PFC emissions"},{"$f":"Translations!$B$237","v":"Total direct emissions"},{"$f":"Translations!$B$238","v":"Total indirect emissions"},{"$f":"Translations!$B$239","v":"Total emissions"}]
[{"$nulls":3},"i.",{"$f":"Translations!$B$227","v":"from sheet \"B_EmInst\""},null,{"$f":"CONST_tCO2eq","v":"tCO2e"},{"$f":"IF(CNTR_HasEntriesA,SUMIFS(B_EmInst!$AU:$AU,B_EmInst!$BA:$BA,CONST_CNTR_SUM_CO2),\"\")","v":""},{"$f":"IF(CNTR_HasEntriesA,SUMIFS(B_EmInst!AV:AV,B_EmInst!$BA:$BA,CONST_CNTR_SUM_CO2),\"\")","v":""},{"$f":"IF(CNTR_HasEntriesA,SUMIFS(B_EmInst!$AU:$AU,B_EmInst!$BA:$BA,CONST_CNTR_SUM_N2O),\"\")","v":""},{"$f":"IF(CNTR_HasEntriesA,SUMIFS(B_EmInst!$AU:$AU,B_EmInst!$BA:$BA,CONST_CNTR_SUM_PFC),\"\")","v":""},{"$f":"IF(COUNT(H24:K24)>0,SUM(H24,J24:K24),\"\")","v":""}]
[{"$nulls":3},"ii.",{"$f":"Translations!$B$228","v":"manual entries"},null,{"$f":"CONST_tCO2eq","v":"tCO2e"}]
[{"$nulls":3},"iii.",{"$f":"Translations!$B$229","v":"Results:"},null,{"$f":"CONST_tCO2eq","v":"tCO2e"},{"$f":"IF(CNTR_HasEntriesA,IF(H25=\"\",H24,H25),\"\")","v":""},{"$f":"IF(CNTR_HasEntriesA,IF(I25=\"\",I24,I25),\"\")","v":""},{"$f":"IF(CNTR_HasEntriesA,IF(J25=\"\",J24,J25),\"\")","v":""},{"$f":"IF(CNTR_HasEntriesA,IF(K25=\"\",K24,K25),\"\")","v":""},{"$f":"IF(CNTR_HasEntriesA,IF(L25=\"\",SUM(H26,J26:K26),L24),\"\")","v":""},{"$f":"IF(M25=\"\",\"\",M25)","v":""},{"$f":"IF(COUNT(L26:M26)>0,SUM(L26:M26),\"\")","v":""}]
[]
[{"$nulls":3},"(b)",{"$f":"Translations!$B$1851","v":"GHG balance by type of monitoring methodology"}]
[{"$nulls":4},{"$f":"Translations!$B$1852","v":"Values below are taken automatically from entries in sheet \"B_EmInst\" and point (a) above."}]
[{"$nulls":6},{"$f":"Translations!$B$221","v":"Unit"},{"$f":"Translations!$B$1853","v":"Calculation - based (excl. PFC emissions)"},{"$f":"Translations!$B$236","v":"Total PFC emissions"},{"$f":"Translations!$B$1854","v":"Measurement - based"},{"$f":"Translations!$B$638","v":"Other"}]
[{"$nulls":4},{"$f":"Translations!$B$561","v":"Emissions"},null,{"$f":"CONST_tCO2eq","v":"tCO2e"},{"$f":"IF(CNTR_HasEntriesA,SUM(B_EmInst!AU17:AU91),\"\")","v":""},{"$f":"IF(CNTR_HasEntriesA,K26,\"\")","v":""},{"$f":"IF(CNTR_HasEntriesA,SUM(B_EmInst!AU113:AU122),\"\")","v":""},{"$f":"IF(CNTR_HasEntriesA,SUM(L26)-SUM(H31:J31),\"\")","v":""}]
[]
[{"$nulls":3},"(c)",{"$f":"Translations!$B$1855","v":"Information on the data quality and quality assurance"}]
[]
[{"$nulls":4},{"$f":"Translations!$B$1856","v":"General information on data quality:"},{"$f":"Translations!$B$1857","v":"Please select from the hierarchical order (descending order) in the drop-down list the predominant approach for determining the installation's direct emissions."}]
[{"$nulls":4},{"$f":"Translations!$B$1858","v":"Justification for use of default values (if relevant):"},{"$f":"Translations!$B$1859","v":"If the predominant method was to use default values published by the European Commission, please select from the drop-down list the most appropriate justification for not achieving higher data quality."}]
[{"$nulls":4},{"$f":"Translations!$B$1860","v":"Information on quality assurance:"},{"$f":"Translations!$B$1886","v":"Please select from the hierarchical order (descending order) in the drop-down list the approach for quality assurance of emissions data."}]
[]
[{"$nulls":3},"i.",{"$f":"Translations!$B$1856","v":"General information on data quality:"},{"$nulls":12},{"$f":"IF(H39=\"\",\"\",MATCH(H39,CONST_DataQuality,0))","v":""}]
[{"$nulls":3},"ii.",{"$f":"Translations!$B$1858","v":"Justification for use of default values (if relevant):"},{"$nulls":12},{"$f":"IF(H40=\"\",\"\",MATCH(H40,CONST_DataQualityJustification,0))","v":""},{"$nulls":5},{"$f":"IF(H39=\"\",FALSE,H39<>INDEX(CONST_DataQuality,5))","v":false}]
[{"$nulls":3},"iii.",{"$f":"Translations!$B$1860","v":"Information on quality assurance:"},{"$nulls":12},{"$f":"IF(H41=\"\",\"\",MATCH(H41,CONST_DataVerification,0))","v":""}]
[]
[]
["ausblenden",{"$nulls":14},"PRINT"]
["ausblenden"]
["ausblenden"]

{"sheet":"D_Processes","index":7,"n_rows":664,"n_cols":24,"rows_kept":664,"merged":[[1,1,4,3],[1,4,1,5],[1,6,1,7],[1,8,1,9],[1,10,1,11],[1,12,1,13],[2,4,2,5],[2,6,2,7],[2,8,2,9],[2,10,2,11],[2,12,2,13],[3,4,3,5],[3,6,3,7],[3,8,3,9],[3,10,3,11],[3,12,3,13],[4,4,4,5],[4,6,4,7],[4,8,4,9],[4,10,4,11],[4,12,4,13],[10,6,10,10],[10,11,10,13],[12,4,12,12],[44,9,44,12],[46,4,46,12],[75,6,75,10],[75,11,75,13],[77,4,77,12],[109,9,109,12],[111,4,111,12],[140,6,140,10],[140,11,140,13],[142,4,142,12],[174,9,174,12],[176,4,176,12],[205,6,205,10],[205,11,205,13],[207,4,207,12],[239,9,239,12],[241,4,241,12],[270,6,270,10],[270,11,270,13],[272,4,272,12],[304,9,304,12],[306,4,306,12],[335,6,335,10],[335,11,335,13],[337,4,337,12],[369,9,369,12],[371,4,371,12],[400,6,400,10],[400,11,400,13],[402,4,402,12],[434,9,434,12],[436,4,436,12],[465,6,465,10],[465,11,465,13],[467,4,467,12],[499,9,499,12],[501,4,501,12],[530,6,530,10],[530,11,530,13],[532,4,532,12],[564,9,564,12],[566,4,566,12],[595,6,595,10],[595,11,595,13],[597,4,597,12],[629,9,629,12],[631,4,631,12]]}
["ausblenden",{"$nulls":16},"ausblenden","ausblenden","ausblenden","ausblenden","ausblenden","ausblenden","ausblenden"]
[null,{"$f":"Translations!$B$240","v":"Production processes"},null,null,{"$f":"Translations!$B$11","v":"Navigation Area:"},null,{"$f":"HYPERLINK(\"#\"&ADDRESS(2,3,,,a_Contents!$U$2),a_Contents!$B$2)","v":"Table of contents"},null,{"$f":"HYPERLINK(\"#\"&ADDRESS(2,3,,,G_FurtherGuidance!$U$2),G_FurtherGuidance!$B$2)","v":"Further Guidance"},null,{"$f":"HYPERLINK(\"#\"&ADDRESS(2,3,,,Summary_Processes!$Y$2),Summary_Processes!$Y$2)","v":"Summary_Processes"},null,{"$f":"HYPERLINK(\"#\"&ADDRESS(2,3,,,Summary_Products!$BF$2),Summary_Products!$BF$2)","v":"Summary_Products"},{"$nulls":4},"Print area:",{"$f":"ADDRESS(ROW($B$2),COLUMN($B$50))&\":\"&ADDRESS(MATCH(\"PRINT\",$P:$P,0),COLUMN($O$50))","v":"$B$2:$O$662"},"Name of this sheet",{"$f":"IF(ISERROR(CELL(\"filename\",V2)),\"MSParameters\",MID(CELL(\"filename\",V2),FIND(\"]\",CELL(\"filename\",V2))+1,1024))","v":"D_Processes"}]
[{"$nulls":6},{"$f":"IF(INDEX(CNTR_List_ExistProdProcNames,R3)=CONST_NA,\"\",HYPERLINK(\"#\"&ADDRESS(ROW($C$11)+MATCH(R3,$C$11:$C$662,0)-1,COLUMN($C$11)),INDEX(CNTR_List_ExistProdProcNames,R3)))","v":""},null,{"$f":"IF(INDEX(CNTR_List_ExistProdProcNames,T3)=CONST_NA,\"\",HYPERLINK(\"#\"&ADDRESS(ROW($C$11)+MATCH(T3,$C$11:$C$662,0)-1,COLUMN($C$11)),INDEX(CNTR_List_ExistProdProcNames,T3)))","v":""},null,{"$f":"IF(INDEX(CNTR_List_ExistProdProcNames,V3)=CONST_NA,\"\",HYPERLINK(\"#\"&ADDRESS(ROW($C$11)+MATCH(V3,$C$11:$C$662,0)-1,COLUMN($C$11)),INDEX(CNTR_List_ExistProdProcNames,V3)))","v":""},null,{"$f":"IF(INDEX(CNTR_List_ExistProdProcNames,X3)=CONST_NA,\"\",HYPERLINK(\"#\"&ADDRESS(ROW($C$11)+MATCH(X3,$C$11:$C$662,0)-1,COLUMN($C$11)),INDEX(CNTR_List_ExistProdProcNames,X3)))","v":""},{"$nulls":4},1,null,2,null,3,null,4]
[{"$nulls":6},{"$f":"IF(INDEX(CNTR_List_ExistProdProcNames,R4)=CONST_NA,\"\",HYPERLINK(\"#\"&ADDRESS(ROW($C$11)+MATCH(R4,$C$11:$C$662,0)-1,COLUMN($C$11)),INDEX(CNTR_List_ExistProdProcNames,R4)))","v":""},null,{"$f":"IF(INDEX(CNTR_List_ExistProdProcNames,T4)=CONST_NA,\"\",HYPERLINK(\"#\"&ADDRESS(ROW($C$11)+MATCH(T4,$C$11:$C$662,0)-1,COLUMN($C$11)),INDEX(CNTR_List_ExistProdProcNames,T4)))","v":""},null,{"$f":"IF(INDEX(CNTR_List_ExistProdProcNames,V4)=CONST_NA,\"\",HYPERLINK(\"#\"&ADDRESS(ROW($C$11)+MATCH(V4,$C$11:$C$662,0)-1,COLUMN($C$11)),INDEX(CNTR_List_ExistProdProcNames,V4)))","v":""},null,{"$f":"IF(INDEX(CNTR_List_ExistProdProcNames,X4)=CONST_NA,\"\",HYPERLINK(\"#\"&ADDRESS(ROW($C$11)+MATCH(X4,$C$11:$C$662,0)-1,COLUMN($C$11)),INDEX(CNTR_List_ExistProdProcNames,X4)))","v":""},{"$nulls":4},5,null,6,null,7,null,8]
[{"$nulls":6},{"$f":"IF(INDEX(CNTR_List_ExistProdProcNames,R5)=CONST_NA,\"\",HYPERLINK(\"#\"&ADDRESS(ROW($C$11)+MATCH(R5,$C$11:$C$662,0)-1,COLUMN($C$11)),INDEX(CNTR_List_ExistProdProcNames,R5)))","v":""},null,{"$f":"IF(INDEX(CNTR_List_ExistProdProcNames,T5)=CONST_NA,\"\",HYPERLINK(\"#\"&ADDRESS(ROW($C$11)+MATCH(T5,$C$11:$C$662,0)-1,COLUMN($C$11)),INDEX(CNTR_List_ExistProdProcNames,T5)))","v":""},{"$nulls":8},9,null,10]
[]
[null,null,"D.",null,{"$f":"Translations!$B$241","v":"Sheet \"D_Processes\" - Production level and attributed emissions for SEE calculation"},{"$nulls":12},"Marker","EmbedEm",null,null,{"$f":"Translations!$B$66","v":"Errors"},null,"Cond. form."]
[]
[1,null,null,{"$f":"Translations!$B$242","v":"Data input for the determination of the specific embedded emissions"}]
[]
[null,null,1,{"$f":"CONST_ProductionProcess&\" \"&C11&\":\"","v":"Production process 1:"},null,null,{"$f":"IF(INDEX(CNTR_List_ExistProdProcNames,R11)=CONST_NA,\"\",INDEX(CNTR_List_ExistProdProcNames,R11))","v":""},{"$nulls":4},{"$f":"IF(INDEX(CNTR_List_ExistProdProc,R11)=CONST_NA,\"\",INDEX(CNTR_List_ExistProdProc,R11))","v":""},{"$nulls":5},{"$f":"C11","v":1},{"$nulls":4},"Not relevant:",{"$f":"AND(CNTR_HasEntriesA,G11=\"\")","v":false}]
[]
[{"$nulls":4},{"$f":"HYPERLINK(\"#\"&ADDRESS(MATCH($S13,G_FurtherGuidance!$S:$S,0),3,,,G_FurtherGuidance!$U$2),CONST_LinkToGuidanceSheet)","v":"Please click on this link for further guidance on how to complete this section."},{"$nulls":12},"Link to guidance:",3]
[]
[{"$nulls":3},"(a) ",{"$f":"Translations!$B$243","v":"Total production levels:"},null,null,{"$f":"Translations!$B$244","v":"Production route"},null,null,{"$f":"Translations!$B$221","v":"Unit"},{"$f":"Translations!$B$245","v":"Amounts"}]
[{"$nulls":3},1,{"$f":"IF(G11=\"\",\"\",G11)&IF(L11=\"\",\"\",\" | \"&L11)","v":""},null,null,{"$f":"IF(L11=\"\",\"\",INDEX(CONST_MATRIX_ProductionRoute,MATCH(L11,CONST_LIST_Goods,0),D16))","v":""},null,null,{"$f":"IF(L11=\"\",\"\",INDEX(CONST_LIST_GoodsUnit,MATCH(L11,CONST_LIST_Goods,0)))","v":""},{"$nulls":7},1,null,null,{"$f":"IF(AND(G11<>\"\",E16<>\"\",L16<>\"\"),TRUE,IF(AND(G11<>\"\",OR(AND(E16<>\"\",L16=\"\"),AND(E16=\"\",L16<>\"\"))),CONST_ErrorOrMissing&C11,CONST_NA))","v":"n.a."}]
[{"$nulls":3},2,{"$f":"IF(H17=CONST_NA,\"\",E16)","v":""},null,null,{"$f":"IF(L11=\"\",\"\",INDEX(CONST_MATRIX_ProductionRoute,MATCH(L11,CONST_LIST_Goods,0),D17))","v":""},null,null,{"$f":"IF(H17=CONST_NA,\"\",K16)","v":""},{"$nulls":7},2,null,null,{"$f":"IF(AND(G11<>\"\",E17<>\"\",L17<>\"\"),TRUE,IF(AND(G11<>\"\",OR(AND(E17<>\"\",L17=\"\"),AND(E17=\"\",L17<>\"\"))),CONST_ErrorOrMissing&C11,CONST_NA))","v":"n.a."}]
[{"$nulls":3},3,"",null,null,{"$f":"IF(L11=\"\",\"\",INDEX(CONST_MATRIX_ProductionRoute,MATCH(L11,CONST_LIST_Goods,0),D18))","v":""},null,null,"",{"$nulls":7},3,null,null,{"$f":"IF(AND(G11<>\"\",E18<>\"\",L18<>\"\"),TRUE,IF(AND(G11<>\"\",OR(AND(E18<>\"\",L18=\"\"),AND(E18=\"\",L18<>\"\"))),CONST_ErrorOrMissing&C11,CONST_NA))","v":"n.a."}]
[{"$nulls":3},4,"",null,null,{"$f":"IF(L11=\"\",\"\",INDEX(CONST_MATRIX_ProductionRoute,MATCH(L11,CONST_LIST_Goods,0),D19))","v":""},null,null,"",{"$nulls":7},4,null,null,{"$f":"IF(AND(G11<>\"\",E19<>\"\",L19<>\"\"),TRUE,IF(AND(G11<>\"\",OR(AND(E19<>\"\",L19=\"\"),AND(E19=\"\",L19<>\"\"))),CONST_ErrorOrMissing&C11,CONST_NA))","v":"n.a."}]
[{"$nulls":3},5,"",null,null,{"$f":"IF(L11=\"\",\"\",INDEX(CONST_MATRIX_ProductionRoute,MATCH(L11,CONST_LIST_Goods,0),D20))","v":""},null,null,"",{"$nulls":7},5,null,null,{"$f":"IF(AND(G11<>\"\",E20<>\"\",L20<>\"\"),TRUE,IF(AND(G11<>\"\",OR(AND(E20<>\"\",L20=\"\"),AND(E20=\"\",L20<>\"\"))),CONST_ErrorOrMissing&C11,CONST_NA))","v":"n.a."}]
[{"$nulls":3},6,"",null,null,{"$f":"IF(L11=\"\",\"\",INDEX(CONST_MATRIX_ProductionRoute,MATCH(L11,CONST_LIST_Goods,0),D21))","v":""},null,null,"",{"$nulls":7},6,null,null,{"$f":"IF(AND(G11<>\"\",E21<>\"\",L21<>\"\"),TRUE,IF(AND(G11<>\"\",OR(AND(E21<>\"\",L21=\"\"),AND(E21=\"\",L21<>\"\"))),CONST_ErrorOrMissing&C11,CONST_NA))","v":"n.a."}]
[{"$nulls":3},7,"",null,null,{"$f":"IF(L11=\"\",\"\",INDEX(CONST_MATRIX_ProductionRoute,MATCH(L11,CONST_LIST_Goods,0),D22))","v":""},null,null,"",{"$nulls":7},7,null,null,{"$f":"IF(AND(G11<>\"\",E22<>\"\",L22<>\"\"),TRUE,IF(AND(G11<>\"\",OR(AND(E22<>\"\",L22=\"\"),AND(E22=\"\",L22<>\"\"))),CONST_ErrorOrMissing&C11,CONST_NA))","v":"n.a."}]
[{"$nulls":3},8,"",null,null,{"$f":"IF(L11=\"\",\"\",INDEX(CONST_MATRIX_ProductionRoute,MATCH(L11,CONST_LIST_Goods,0),D23))","v":""},null,null,"",{"$nulls":7},8,null,null,{"$f":"IF(AND(G11<>\"\",E23<>\"\",L23<>\"\"),TRUE,IF(AND(G11<>\"\",OR(AND(E23<>\"\",L23=\"\"),AND(E23=\"\",L23<>\"\"))),CONST_ErrorOrMissing&C11,CONST_NA))","v":"n.a."}]
[{"$nulls":4},{"$f":"Translations!$B$246","v":"Total production within installation (= denominator for SEE calculation):"},{"$nulls":5},{"$f":"K16","v":""},{"$f":"IF(G11=\"\",\"\",SUM(L16:L23))","v":""},{"$nulls":5},{"$f":"CONST_CNTR_TotProd&G11","v":"TotProd_"},null,{"$f":"IF(G11=\"\",\"\",L24)","v":""}]
[]
[{"$nulls":3},"(b)",{"$f":"Translations!$B$247","v":"Production details"},{"$nulls":5},{"$f":"Translations!$B$221","v":"Unit"},{"$f":"Translations!$B$245","v":"Amounts"}]
[{"$nulls":3},"i.",{"$f":"Translations!$B$248","v":"Produced for the market"},{"$nulls":5},{"$f":"K16","v":""},{"$nulls":6},{"$f":"CONST_GoodToMarket&G11","v":"ToMarket_"},null,{"$f":"IF($G$11=\"\",\"\",L27)","v":""},null,{"$f":"IF(AND(G11<>\"\",L27<>\"\"),TRUE,IF(AND(G11<>\"\",OR(L27=\"\",L16<>\"\")),CONST_ErrorOrMissing&C11,CONST_NA))","v":"n.a."}]
[{"$nulls":3},"ii.",{"$f":"Translations!$B$249","v":"Share of total under (a) produced for the market"},{"$nulls":6},{"$f":"IF(AND(COUNT(L24,L27)=2,SUM(L24>0)),SUM(L27)/SUM(L24),\"\")","v":""}]
[{"$nulls":3},"iii.",{"$f":"Translations!$B$250","v":"Total production only for the market?"},{"$nulls":6},{"$f":"IF(G11=\"\",\"\",AND(SUM(L24)>0,SUM(L24)=SUM(L27)))","v":""}]
[]
[{"$nulls":3},"(c)",{"$f":"Translations!$B$251","v":"Consumed in other 'production processes' within the installation:"},{"$nulls":5},{"$f":"Translations!$B$221","v":"Unit"},{"$f":"Translations!$B$245","v":"Amounts"},{"$nulls":6},"Numbering",{"$nulls":3},"cond.form.",{"$f":"IF(G11=\"\",FALSE,L29)","v":false}]
[{"$nulls":3},1,{"$f":"IF(INDEX(CNTR_List_ExistProdProcNames,S32)=CONST_NA,\"\",INDEX(CNTR_List_ExistProdProcNames,S32))","v":""},{"$nulls":5},{"$f":"K16","v":""},{"$nulls":6},{"$f":"CONST_PrecursorToGoodInput&G11&\"_\"&E32","v":"PrecToGood__"},{"$f":"MAX(S31:S31)+IF(D32=C11,2,1)","v":2},{"$f":"IF(G11=\"\",\"\",L32)","v":""},null,{"$f":"IF(AND(G11<>\"\",E32<>\"\",L32<>\"\"),TRUE,IF(AND(G11<>\"\",E32<>\"\",L32=\"\",X32=FALSE),CONST_ErrorOrMissing&C11,CONST_NA))","v":"n.a."},"cond.form.",{"$f":"IF(G11=\"\",FALSE,OR(L29,E32=\"\"))","v":false}]
[{"$nulls":3},2,{"$f":"IF(INDEX(CNTR_ListProdProcNames,S33)=\"\",\"\",INDEX(CNTR_ListProdProcNames,S33))","v":""},{"$nulls":5},{"$f":"K32","v":""},{"$nulls":6},{"$f":"CONST_PrecursorToGoodInput&G11&\"_\"&E33","v":"PrecToGood__"},{"$f":"MAX(S31:S32)+IF(D33=C11,2,1)","v":3},{"$f":"IF(G11=\"\",\"\",L33)","v":""},null,{"$f":"IF(AND(G11<>\"\",E33<>\"\",L33<>\"\"),TRUE,IF(AND(G11<>\"\",E33<>\"\",L33=\"\",X33=FALSE),CONST_ErrorOrMissing&C11,CONST_NA))","v":"n.a."},null,{"$f":"IF(G11=\"\",FALSE,OR(L29,E33=\"\"))","v":false}]
[{"$nulls":3},3,"",{"$nulls":5},{"$f":"K33","v":""},{"$nulls":6},{"$f":"CONST_PrecursorToGoodInput&G11&\"_\"&E34","v":"PrecToGood__"},{"$f":"MAX(S31:S33)+IF(D34=C11,2,1)","v":4},{"$f":"IF(G11=\"\",\"\",L34)","v":""},null,{"$f":"IF(AND(G11<>\"\",E34<>\"\",L34<>\"\"),TRUE,IF(AND(G11<>\"\",E34<>\"\",L34=\"\",X34=FALSE),CONST_ErrorOrMissing&C11,CONST_NA))","v":"n.a."},null,{"$f":"IF(G11=\"\",FALSE,OR(L29,E34=\"\"))","v":false}]
[{"$nulls":3},4,"",{"$nulls":5},"",{"$nulls":6},{"$f":"CONST_PrecursorToGoodInput&G11&\"_\"&E35","v":"PrecToGood__"},{"$f":"MAX(S31:S34)+IF(D35=C11,2,1)","v":5},{"$f":"IF(G11=\"\",\"\",L35)","v":""},null,{"$f":"IF(AND(G11<>\"\",E35<>\"\",L35<>\"\"),TRUE,IF(AND(G11<>\"\",E35<>\"\",L35=\"\",X35=FALSE),CONST_ErrorOrMissing&C11,CONST_NA))","v":"n.a."},null,{"$f":"IF(G11=\"\",FALSE,OR(L29,E35=\"\"))","v":false}]
[{"$nulls":3},5,"",{"$nulls":5},"",{"$nulls":6},{"$f":"CONST_PrecursorToGoodInput&G11&\"_\"&E36","v":"PrecToGood__"},{"$f":"MAX(S31:S35)+IF(D36=C11,2,1)","v":6},{"$f":"IF(G11=\"\",\"\",L36)","v":""},null,{"$f":"IF(AND(G11<>\"\",E36<>\"\",L36<>\"\"),TRUE,IF(AND(G11<>\"\",E36<>\"\",L36=\"\",X36=FALSE),CONST_ErrorOrMissing&C11,CONST_NA))","v":"n.a."},null,{"$f":"IF(G11=\"\",FALSE,OR(L29,E36=\"\"))","v":false}]
[{"$nulls":3},6,"",{"$nulls":5},"",{"$nulls":6},{"$f":"CONST_PrecursorToGoodInput&G11&\"_\"&E37","v":"PrecToGood__"},{"$f":"MAX(S31:S36)+IF(D37=C11,2,1)","v":7},{"$f":"IF(G11=\"\",\"\",L37)","v":""},null,{"$f":"IF(AND(G11<>\"\",E37<>\"\",L37<>\"\"),TRUE,IF(AND(G11<>\"\",E37<>\"\",L37=\"\",X37=FALSE),CONST_ErrorOrMissing&C11,CONST_NA))","v":"n.a."},null,{"$f":"IF(G11=\"\",FALSE,OR(L29,E37=\"\"))","v":false}]
[{"$nulls":3},7,"",{"$nulls":5},"",{"$nulls":6},{"$f":"CONST_PrecursorToGoodInput&G11&\"_\"&E38","v":"PrecToGood__"},{"$f":"MAX(S31:S37)+IF(D38=C11,2,1)","v":8},{"$f":"IF(G11=\"\",\"\",L38)","v":""},null,{"$f":"IF(AND(G11<>\"\",E38<>\"\",L38<>\"\"),TRUE,IF(AND(G11<>\"\",E38<>\"\",L38=\"\",X38=FALSE),CONST_ErrorOrMissing&C11,CONST_NA))","v":"n.a."},null,{"$f":"IF(G11=\"\",FALSE,OR(L29,E38=\"\"))","v":false}]
[{"$nulls":3},8,"",{"$nulls":5},"",{"$nulls":6},{"$f":"CONST_PrecursorToGoodInput&G11&\"_\"&E39","v":"PrecToGood__"},{"$f":"MAX(S31:S38)+IF(D39=C11,2,1)","v":9},{"$f":"IF(G11=\"\",\"\",L39)","v":""},null,{"$f":"IF(AND(G11<>\"\",E39<>\"\",L39<>\"\"),TRUE,IF(AND(G11<>\"\",E39<>\"\",L39=\"\",X39=FALSE),CONST_ErrorOrMissing&C11,CONST_NA))","v":"n.a."},null,{"$f":"IF(G11=\"\",FALSE,OR(L29,E39=\"\"))","v":false}]
[{"$nulls":3},9,"",{"$nulls":5},"",{"$nulls":6},{"$f":"CONST_PrecursorToGoodInput&G11&\"_\"&E40","v":"PrecToGood__"},{"$f":"MAX(S31:S39)+IF(D40=C11,2,1)","v":10},{"$f":"IF(G11=\"\",\"\",L40)","v":""},null,{"$f":"IF(AND(G11<>\"\",E40<>\"\",L40<>\"\"),TRUE,IF(AND(G11<>\"\",E40<>\"\",L40=\"\",X40=FALSE),CONST_ErrorOrMissing&C11,CONST_NA))","v":"n.a."},null,{"$f":"IF(G11=\"\",FALSE,OR(L29,E40=\"\"))","v":false}]
[{"$nulls":3},"(d)",{"$f":"Translations!$B$252","v":"Consumed for non-CBAM goods within the installation:"},{"$nulls":5},"",{"$nulls":10},{"$f":"IF(AND(G11<>\"\",L41<>\"\"),TRUE,IF(AND(G11<>\"\",L41=\"\",X41=FALSE),CONST_ErrorOrMissing&C11,CONST_NA))","v":"n.a."},"cond.form.",{"$f":"IF(G11=\"\",FALSE,L29)","v":false}]
[{"$nulls":3},"(e)",{"$f":"Translations!$B$253","v":"Control:"},{"$nulls":5},"",{"$f":"IF(G11=\"\",\"\",SUM(L24)-SUM(L27,L32:L41))","v":""},{"$nulls":9},{"$f":"IF(AND(G11<>\"\",L42=0),TRUE,IF(AND(G11<>\"\",L42<>0,X42=FALSE),CONST_ErrorOrMissing&C11,CONST_NA))","v":"n.a."},null,{"$f":"IF(G11=\"\",FALSE,L29)","v":false}]
[]
[]
[{"$nulls":3},{"$f":"Translations!$B$254","v":"Calculation of the attributed emissions:"},{"$nulls":5},{"$f":"IF(G11=\"\",\"\",G11)","v":""}]
[]
[{"$nulls":4},{"$f":"HYPERLINK(\"#\"&ADDRESS(MATCH($S47,G_FurtherGuidance!$S:$S,0),3,,,G_FurtherGuidance!$U$2),CONST_LinkToGuidanceSheet)","v":"Please click on this link for further guidance on how to complete this section."},{"$nulls":12},"Link to guidance:",3]
[]
[{"$nulls":10},{"$f":"Translations!$B$255","v":"Measurable heat"},{"$f":"Translations!$B$256","v":"Waste gases"},{"$f":"Translations!$B$257","v":"Indirect emissions"}]
[{"$nulls":3},"(f)",{"$f":"Translations!$B$258","v":"Please select which elements are applicable"},{"$nulls":7},{"$f":"IF(L11=\"\",\"\",INDEX(CONST_LIST_GoodsIndRel,MATCH(L11,CONST_LIST_Goods,0)))","v":""},{"$nulls":8},{"$f":"IF(AND(L11<>\"\",X50=FALSE),IF(COUNTA(K50:L50)=2,TRUE,CONST_ErrorOrMissing&C11),CONST_NA)","v":"n.a."}]
[{"$nulls":4},{"$f":"Translations!$B$259","v":"Based on your selection, related sections below might become irrelevant and greyed out below."}]
[]
[{"$nulls":10},{"$f":"Translations!$B$221","v":"Unit"},{"$f":"Translations!$B$260","v":"Value"}]
[{"$nulls":3},"(g)",{"$f":"Translations!$B$261","v":"Directly attributable emissions (DirEm*)"},{"$nulls":5},{"$f":"CONST_tCO2eq","v":"tCO2e"},{"$nulls":6},{"$f":"CONST_EmDir&G11","v":"EmDir_"},{"$f":"CONST_CNTR_EmbedEmDir&G11","v":"EmbedEmDir_"},{"$f":"IF(G11=\"\",\"\",L54)","v":""},null,{"$f":"IF(L11<>\"\",IF(L54<>\"\",TRUE,CONST_ErrorOrMissing&C11),CONST_NA)","v":"n.a."}]
[]
[{"$nulls":3},"(h)",{"$f":"Translations!$B$262","v":"Import and export of measurable heat"},{"$nulls":5},{"$f":"Translations!$B$221","v":"Unit"},{"$f":"Translations!$B$263","v":"Imported"},{"$f":"Translations!$B$264","v":"Exported"},{"$nulls":9},"cond.form.",{"$f":"AND(K50<>\"\",K50=FALSE)","v":false}]
[{"$nulls":3},"i.",{"$f":"Translations!$B$265","v":"Amount of net measurable heat"},{"$nulls":5},"TJ",{"$nulls":10},{"$f":"IF(AND(L11<>\"\",X57=FALSE),IF(COUNTA(L57:M57)=2,TRUE,CONST_ErrorOrMissing&C11),CONST_NA)","v":"n.a."},null,{"$f":"X56","v":false}]
[{"$nulls":3},"ii.",{"$f":"Translations!$B$266","v":"Emissions factor"},{"$nulls":5},{"$f":"CONST_tCO2pTJ","v":"tCO2/TJ"},{"$nulls":6},{"$f":"CONST_EmDirHeat&G11","v":"EmDirHeat_"},{"$f":"CONST_CNTR_EmbedEmDir&G11","v":"EmbedEmDir_"},{"$f":"IF(G11=\"\",\"\",SUM(L57*L58-M57*M58))","v":""},null,{"$f":"IF(AND(L11<>\"\",X58=FALSE),IF(COUNTA(L58:M58)=2,TRUE,CONST_ErrorOrMissing&C11),CONST_NA)","v":"n.a."},null,{"$f":"X57","v":false}]
[]
[{"$nulls":3},"(i)",{"$f":"Translations!$B$256","v":"Waste gases"},{"$nulls":5},{"$f":"Translations!$B$221","v":"Unit"},{"$f":"Translations!$B$263","v":"Imported"},{"$f":"Translations!$B$264","v":"Exported"},{"$nulls":9},"cond.form.",{"$f":"AND(L50<>\"\",L50=FALSE)","v":false}]
[{"$nulls":3},"i.",{"$f":"Translations!$B$267","v":"Amount of waste gas"},{"$nulls":5},{"$f":"CONST_TJ","v":"TJ"},{"$nulls":10},{"$f":"IF(AND(L11<>\"\",X61=FALSE),IF(COUNTA(L61:M61)=2,TRUE,CONST_ErrorOrMissing&C11),CONST_NA)","v":"n.a."},null,{"$f":"X60","v":false}]
[{"$nulls":3},"ii.",{"$f":"Translations!$B$268","v":"Emission factor"},{"$nulls":5},{"$f":"CONST_tCO2pTJ","v":"tCO2/TJ"},{"$nulls":6},{"$f":"CONST_EmDirWasteGases&G11","v":"EmDirWG_"},{"$f":"CONST_CNTR_EmbedEmDir&G11","v":"EmbedEmDir_"},{"$f":"IF(G11=\"\",\"\",SUM(L61*CONST_EFNatGas-M61*CONST_EFNatGas*0.667))","v":""},{"$nulls":3},{"$f":"X61","v":false}]
[]
[{"$nulls":3},"(j)",{"$f":"Translations!$B$269","v":"Indirect emissions from electricity consumption"},{"$nulls":5},{"$f":"Translations!$B$221","v":"Unit"},{"$f":"Translations!$B$260","v":"Value"},{"$nulls":10},"cond.form.",{"$f":"M50=FALSE","v":false}]
[{"$nulls":3},"i.",{"$f":"Translations!$B$270","v":"Electricity consumption"},{"$nulls":5},{"$f":"CONST_MWh","v":"MWh"},{"$nulls":6},{"$f":"CONST_ElecConsumption&G11","v":"ElecCons_"},null,{"$f":"IF(G11=\"\",\"\",L65)","v":""},null,{"$f":"IF(AND(L11<>\"\",X65=FALSE),IF(L65<>\"\",TRUE,CONST_ErrorOrMissing&C11),CONST_NA)","v":"n.a."},null,{"$f":"X64","v":false}]
[{"$nulls":3},"ii.",{"$f":"Translations!$B$271","v":"Emission factor of the electricity"},{"$nulls":5},{"$f":"CONST_tCO2&\"/\"&CONST_MWh","v":"tCO2/MWh"},{"$nulls":7},{"$f":"CONST_CNTR_EmbedEmInDir&G11","v":"EmbedEmInDir_"},{"$f":"IF(G11=\"\",\"\",SUM(L65)*SUM(L66))","v":""},null,{"$f":"IF(AND(L11<>\"\",X66=FALSE),IF(L66<>\"\",TRUE,CONST_ErrorOrMissing&C11),CONST_NA)","v":"n.a."},null,{"$f":"X65","v":false}]
[{"$nulls":3},"iii.",{"$f":"Translations!$B$272","v":"Source of the emission factor"},{"$nulls":5},"-",{"$nulls":6},{"$f":"CONST_CNTR_ElecEFMethod&G11","v":"ElecEFMeth_"},null,{"$f":"IF(L67=\"\",\"\",L67)","v":""},null,{"$f":"IF(AND(L11<>\"\",X67=FALSE),IF(L67<>\"\",TRUE,CONST_ErrorOrMissing&C11),CONST_NA)","v":"n.a."},null,{"$f":"X66","v":false}]
[]
[]
[{"$nulls":3},"(k)",{"$f":"Translations!$B$273","v":"Electricity exported from the production process"},{"$nulls":5},{"$f":"Translations!$B$221","v":"Unit"},{"$f":"Translations!$B$260","v":"Value"}]
[{"$nulls":3},"i.",{"$f":"Translations!$B$274","v":"Amounts exported"},{"$nulls":5},"MWh",{"$nulls":10},{"$f":"IF(L11<>\"\",IF(L71<>\"\",TRUE,CONST_ErrorOrMissing&C11),CONST_NA)","v":"n.a."}]
[{"$nulls":3},"ii.",{"$f":"Translations!$B$271","v":"Emission factor of the electricity"},{"$nulls":5},{"$f":"CONST_tCO2&\"/\"&CONST_MWh","v":"tCO2/MWh"},{"$nulls":7},{"$f":"CONST_CNTR_EmbedEmDir&G11","v":"EmbedEmDir_"},{"$f":"IF(G11=\"\",\"\",-SUM(L71)*SUM(L72))","v":""},null,{"$f":"IF(AND(L11<>\"\",SUM(L71)>0),IF(L72<>\"\",TRUE,CONST_ErrorOrMissing&C11),CONST_NA)","v":"n.a."}]
[]
[]
[]
[null,null,{"$f":"C11+1","v":2},{"$f":"CONST_ProductionProcess&\" \"&C76&\":\"","v":"Production process 2:"},null,null,{"$f":"IF(INDEX(CNTR_List_ExistProdProcNames,R76)=CONST_NA,\"\",INDEX(CNTR_List_ExistProdProcNames,R76))","v":""},{"$nulls":4},{"$f":"IF(INDEX(CNTR_List_ExistProdProc,R76)=CONST_NA,\"\",INDEX(CNTR_List_ExistProdProc,R76))","v":""},{"$nulls":5},{"$f":"C76","v":2},{"$nulls":4},"Not relevant:",{"$f":"AND(CNTR_HasEntriesA,G76=\"\")","v":false}]
[]
[{"$nulls":4},{"$f":"HYPERLINK(\"#\"&ADDRESS(MATCH($S78,G_FurtherGuidance!$S:$S,0),3,,,G_FurtherGuidance!$U$2),CONST_LinkToGuidanceSheet)","v":"Please click on this link for further guidance on how to complete this section."},{"$nulls":12},"Link to guidance:",3]
[]
[{"$nulls":3},"(a) ",{"$f":"Translations!$B$243","v":"Total production levels:"},null,null,{"$f":"Translations!$B$244","v":"Production route"},null,null,{"$f":"Translations!$B$221","v":"Unit"},{"$f":"Translations!$B$245","v":"Amounts"}]
[{"$nulls":3},1,{"$f":"IF(G76=\"\",\"\",G76)&IF(L76=\"\",\"\",\" | \"&L76)","v":""},null,null,{"$f":"IF(L76=\"\",\"\",INDEX(CONST_MATRIX_ProductionRoute,MATCH(L76,CONST_LIST_Goods,0),D81))","v":""},null,null,{"$f":"IF(L76=\"\",\"\",INDEX(CONST_LIST_GoodsUnit,MATCH(L76,CONST_LIST_Goods,0)))","v":""},{"$nulls":7},1,null,null,{"$f":"IF(AND(G76<>\"\",E81<>\"\",L81<>\"\"),TRUE,IF(AND(G76<>\"\",OR(AND(E81<>\"\",L81=\"\"),AND(E81=\"\",L81<>\"\"))),CONST_ErrorOrMissing&C76,CONST_NA))","v":"n.a."}]
[{"$nulls":3},2,{"$f":"IF(H82=CONST_NA,\"\",E81)","v":""},null,null,{"$f":"IF(L76=\"\",\"\",INDEX(CONST_MATRIX_ProductionRoute,MATCH(L76,CONST_LIST_Goods,0),D82))","v":""},null,null,{"$f":"IF(H82=CONST_NA,\"\",K81)","v":""},{"$nulls":7},2,null,null,{"$f":"IF(AND(G76<>\"\",E82<>\"\",L82<>\"\"),TRUE,IF(AND(G76<>\"\",OR(AND(E82<>\"\",L82=\"\"),AND(E82=\"\",L82<>\"\"))),CONST_ErrorOrMissing&C76,CONST_NA))","v":"n.a."}]
[{"$nulls":3},3,"",null,null,{"$f":"IF(L76=\"\",\"\",INDEX(CONST_MATRIX_ProductionRoute,MATCH(L76,CONST_LIST_Goods,0),D83))","v":""},null,null,"",{"$nulls":7},3,null,null,{"$f":"IF(AND(G76<>\"\",E83<>\"\",L83<>\"\"),TRUE,IF(AND(G76<>\"\",OR(AND(E83<>\"\",L83=\"\"),AND(E83=\"\",L83<>\"\"))),CONST_ErrorOrMissing&C76,CONST_NA))","v":"n.a."}]
[{"$nulls":3},4,"",null,null,{"$f":"IF(L76=\"\",\"\",INDEX(CONST_MATRIX_ProductionRoute,MATCH(L76,CONST_LIST_Goods,0),D84))","v":""},null,null,"",{"$nulls":7},4,null,null,{"$f":"IF(AND(G76<>\"\",E84<>\"\",L84<>\"\"),TRUE,IF(AND(G76<>\"\",OR(AND(E84<>\"\",L84=\"\"),AND(E84=\"\",L84<>\"\"))),CONST_ErrorOrMissing&C76,CONST_NA))","v":"n.a."}]
[{"$nulls":3},5,"",null,null,{"$f":"IF(L76=\"\",\"\",INDEX(CONST_MATRIX_ProductionRoute,MATCH(L76,CONST_LIST_Goods,0),D85))","v":""},null,null,"",{"$nulls":7},5,null,null,{"$f":"IF(AND(G76<>\"\",E85<>\"\",L85<>\"\"),TRUE,IF(AND(G76<>\"\",OR(AND(E85<>\"\",L85=\"\"),AND(E85=\"\",L85<>\"\"))),CONST_ErrorOrMissing&C76,CONST_NA))","v":"n.a."}]
[{"$nulls":3},6,"",null,null,{"$f":"IF(L76=\"\",\"\",INDEX(CONST_MATRIX_ProductionRoute,MATCH(L76,CONST_LIST_Goods,0),D86))","v":""},null,null,"",{"$nulls":7},6,null,null,{"$f":"IF(AND(G76<>\"\",E86<>\"\",L86<>\"\"),TRUE,IF(AND(G76<>\"\",OR(AND(E86<>\"\",L86=\"\"),AND(E86=\"\",L86<>\"\"))),CONST_ErrorOrMissing&C76,CONST_NA))","v":"n.a."}]
[{"$nulls":3},7,"",null,null,{"$f":"IF(L76=\"\",\"\",INDEX(CONST_MATRIX_ProductionRoute,MATCH(L76,CONST_LIST_Goods,0),D87))","v":""},null,null,"",{"$nulls":7},7,null,null,{"$f":"IF(AND(G76<>\"\",E87<>\"\",L87<>\"\"),TRUE,IF(AND(G76<>\"\",OR(AND(E87<>\"\",L87=\"\"),AND(E87=\"\",L87<>\"\"))),CONST_ErrorOrMissing&C76,CONST_NA))","v":"n.a."}]
[{"$nulls":3},8,"",null,null,{"$f":"IF(L76=\"\",\"\",INDEX(CONST_MATRIX_ProductionRoute,MATCH(L76,CONST_LIST_Goods,0),D88))","v":""},null,null,"",{"$nulls":7},8,null,null,{"$f":"IF(AND(G76<>\"\",E88<>\"\",L88<>\"\"),TRUE,IF(AND(G76<>\"\",OR(AND(E88<>\"\",L88=\"\"),AND(E88=\"\",L88<>\"\"))),CONST_ErrorOrMissing&C76,CONST_NA))","v":"n.a."}]
[{"$nulls":4},{"$f":"Translations!$B$246","v":"Total production within installation (= denominator for SEE calculation):"},{"$nulls":5},{"$f":"K81","v":""},{"$f":"IF(G76=\"\",\"\",SUM(L81:L88))","v":""},{"$nulls":5},{"$f":"CONST_CNTR_TotProd&G76","v":"TotProd_"},null,{"$f":"IF(G76=\"\",\"\",L89)","v":""}]
[]
[{"$nulls":3},"(b)",{"$f":"Translations!$B$247","v":"Production details"},{"$nulls":5},{"$f":"Translations!$B$221","v":"Unit"},{"$f":"Translations!$B$245","v":"Amounts"}]
[{"$nulls":3},"i.",{"$f":"Translations!$B$248","v":"Produced for the market"},{"$nulls":5},{"$f":"K81","v":""},{"$nulls":6},{"$f":"CONST_GoodToMarket&G76","v":"ToMarket_"},null,{"$f":"IF($G$11=\"\",\"\",L92)","v":""},null,{"$f":"IF(AND(G76<>\"\",L92<>\"\"),TRUE,IF(AND(G76<>\"\",OR(L92=\"\",L81<>\"\")),CONST_ErrorOrMissing&C76,CONST_NA))","v":"n.a."}]
[{"$nulls":3},"ii.",{"$f":"Translations!$B$249","v":"Share of total under (a) produced for the market"},{"$nulls":6},{"$f":"IF(AND(COUNT(L89,L92)=2,SUM(L89>0)),SUM(L92)/SUM(L89),\"\")","v":""}]
[{"$nulls":3},"iii.",{"$f":"Translations!$B$250","v":"Total production only for the market?"},{"$nulls":6},{"$f":"IF(G76=\"\",\"\",AND(SUM(L89)>0,SUM(L89)=SUM(L92)))","v":""}]
[]
[{"$nulls":3},"(c)",{"$f":"Translations!$B$251","v":"Consumed in other 'production processes' within the installation:"},{"$nulls":5},{"$f":"Translations!$B$221","v":"Unit"},{"$f":"Translations!$B$245","v":"Amounts"},{"$nulls":6},"Numbering",{"$nulls":3},"cond.form.",{"$f":"IF(G76=\"\",FALSE,L94)","v":false}]
[{"$nulls":3},1,{"$f":"IF(INDEX(CNTR_List_ExistProdProcNames,S97)=CONST_NA,\"\",INDEX(CNTR_List_ExistProdProcNames,S97))","v":""},{"$nulls":5},{"$f":"K81","v":""},{"$nulls":6},{"$f":"CONST_PrecursorToGoodInput&G76&\"_\"&E97","v":"PrecToGood__"},{"$f":"MAX(S96:S96)+IF(D97=C76,2,1)","v":1},{"$f":"IF(G76=\"\",\"\",L97)","v":""},null,{"$f":"IF(AND(G76<>\"\",E97<>\"\",L97<>\"\"),TRUE,IF(AND(G76<>\"\",E97<>\"\",L97=\"\",X97=FALSE),CONST_ErrorOrMissing&C76,CONST_NA))","v":"n.a."},"cond.form.",{"$f":"IF(G76=\"\",FALSE,OR(L94,E97=\"\"))","v":false}]
[{"$nulls":3},2,"",{"$nulls":5},{"$f":"K97","v":""},{"$nulls":6},{"$f":"CONST_PrecursorToGoodInput&G76&\"_\"&E98","v":"PrecToGood__"},{"$f":"MAX(S96:S97)+IF(D98=C76,2,1)","v":3},{"$f":"IF(G76=\"\",\"\",L98)","v":""},null,{"$f":"IF(AND(G76<>\"\",E98<>\"\",L98<>\"\"),TRUE,IF(AND(G76<>\"\",E98<>\"\",L98=\"\",X98=FALSE),CONST_ErrorOrMissing&C76,CONST_NA))","v":"n.a."},null,{"$f":"IF(G76=\"\",FALSE,OR(L94,E98=\"\"))","v":false}]
[{"$nulls":3},3,"",{"$nulls":5},{"$f":"K98","v":""},{"$nulls":6},{"$f":"CONST_PrecursorToGoodInput&G76&\"_\"&E99","v":"PrecToGood__"},{"$f":"MAX(S96:S98)+IF(D99=C76,2,1)","v":4},{"$f":"IF(G76=\"\",\"\",L99)","v":""},null,{"$f":"IF(AND(G76<>\"\",E99<>\"\",L99<>\"\"),TRUE,IF(AND(G76<>\"\",E99<>\"\",L99=\"\",X99=FALSE),CONST_ErrorOrMissing&C76,CONST_NA))","v":"n.a."},null,{"$f":"IF(G76=\"\",FALSE,OR(L94,E99=\"\"))","v":false}]
[{"$nulls":3},4,"",{"$nulls":5},"",{"$nulls":6},{"$f":"CONST_PrecursorToGoodInput&G76&\"_\"&E100","v":"PrecToGood__"},{"$f":"MAX(S96:S99)+IF(D100=C76,2,1)","v":5},{"$f":"IF(G76=\"\",\"\",L100)","v":""},null,{"$f":"IF(AND(G76<>\"\",E100<>\"\",L100<>\"\"),TRUE,IF(AND(G76<>\"\",E100<>\"\",L100=\"\",X100=FALSE),CONST_ErrorOrMissing&C76,CONST_NA))","v":"n.a."},null,{"$f":"IF(G76=\"\",FALSE,OR(L94,E100=\"\"))","v":false}]
[{"$nulls":3},5,"",{"$nulls":5},"",{"$nulls":6},{"$f":"CONST_PrecursorToGoodInput&G76&\"_\"&E101","v":"PrecToGood__"},{"$f":"MAX(S96:S100)+IF(D101=C76,2,1)","v":6},{"$f":"IF(G76=\"\",\"\",L101)","v":""},null,{"$f":"IF(AND(G76<>\"\",E101<>\"\",L101<>\"\"),TRUE,IF(AND(G76<>\"\",E101<>\"\",L101=\"\",X101=FALSE),CONST_ErrorOrMissing&C76,CONST_NA))","v":"n.a."},null,{"$f":"IF(G76=\"\",FALSE,OR(L94,E101=\"\"))","v":false}]
[{"$nulls":3},6,"",{"$nulls":5},"",{"$nulls":6},{"$f":"CONST_PrecursorToGoodInput&G76&\"_\"&E102","v":"PrecToGood__"},{"$f":"MAX(S96:S101)+IF(D102=C76,2,1)","v":7},{"$f":"IF(G76=\"\",\"\",L102)","v":""},null,{"$f":"IF(AND(G76<>\"\",E102<>\"\",L102<>\"\"),TRUE,IF(AND(G76<>\"\",E102<>\"\",L102=\"\",X102=FALSE),CONST_ErrorOrMissing&C76,CONST_NA))","v":"n.a."},null,{"$f":"IF(G76=\"\",FALSE,OR(L94,E102=\"\"))","v":false}]
[{"$nulls":3},7,"",{"$nulls":5},"",{"$nulls":6},{"$f":"CONST_PrecursorToGoodInput&G76&\"_\"&E103","v":"PrecToGood__"},{"$f":"MAX(S96:S102)+IF(D103=C76,2,1)","v":8},{"$f":"IF(G76=\"\",\"\",L103)","v":""},null,{"$f":"IF(AND(G76<>\"\",E103<>\"\",L103<>\"\"),TRUE,IF(AND(G76<>\"\",E103<>\"\",L103=\"\",X103=FALSE),CONST_ErrorOrMissing&C76,CONST_NA))","v":"n.a."},null,{"$f":"IF(G76=\"\",FALSE,OR(L94,E103=\"\"))","v":false}]
[{"$nulls":3},8,"",{"$nulls":5},"",{"$nulls":6},{"$f":"CONST_PrecursorToGoodInput&G76&\"_\"&E104","v":"PrecToGood__"},{"$f":"MAX(S96:S103)+IF(D104=C76,2,1)","v":9},{"$f":"IF(G76=\"\",\"\",L104)","v":""},null,{"$f":"IF(AND(G76<>\"\",E104<>\"\",L104<>\"\"),TRUE,IF(AND(G76<>\"\",E104<>\"\",L104=\"\",X104=FALSE),CONST_ErrorOrMissing&C76,CONST_NA))","v":"n.a."},null,{"$f":"IF(G76=\"\",FALSE,OR(L94,E104=\"\"))","v":false}]
[{"$nulls":3},9,"",{"$nulls":5},"",{"$nulls":6},{"$f":"CONST_PrecursorToGoodInput&G76&\"_\"&E105","v":"PrecToGood__"},{"$f":"MAX(S96:S104)+IF(D105=C76,2,1)","v":10},{"$f":"IF(G76=\"\",\"\",L105)","v":""},null,{"$f":"IF(AND(G76<>\"\",E105<>\"\",L105<>\"\"),TRUE,IF(AND(G76<>\"\",E105<>\"\",L105=\"\",X105=FALSE),CONST_ErrorOrMissing&C76,CONST_NA))","v":"n.a."},null,{"$f":"IF(G76=\"\",FALSE,OR(L94,E105=\"\"))","v":false}]
[{"$nulls":3},"(d)",{"$f":"Translations!$B$252","v":"Consumed for non-CBAM goods within the installation:"},{"$nulls":5},"",{"$nulls":10},{"$f":"IF(AND(G76<>\"\",L106<>\"\"),TRUE,IF(AND(G76<>\"\",L106=\"\",X106=FALSE),CONST_ErrorOrMissing&C76,CONST_NA))","v":"n.a."},"cond.form.",{"$f":"IF(G76=\"\",FALSE,L94)","v":false}]
[{"$nulls":3},"(e)",{"$f":"Translations!$B$253","v":"Control:"},{"$nulls":5},"",{"$f":"IF(G76=\"\",\"\",SUM(L89)-SUM(L92,L97:L106))","v":""},{"$nulls":9},{"$f":"IF(AND(G76<>\"\",L107=0),TRUE,IF(AND(G76<>\"\",L107<>0,X107=FALSE),CONST_ErrorOrMissing&C76,CONST_NA))","v":"n.a."},null,{"$f":"IF(G76=\"\",FALSE,L94)","v":false}]
[]
[]
[{"$nulls":3},{"$f":"Translations!$B$254","v":"Calculation of the attributed emissions:"},{"$nulls":5},{"$f":"IF(G76=\"\",\"\",G76)","v":""}]
[]
[{"$nulls":4},{"$f":"HYPERLINK(\"#\"&ADDRESS(MATCH($S112,G_FurtherGuidance!$S:$S,0),3,,,G_FurtherGuidance!$U$2),CONST_LinkToGuidanceSheet)","v":"Please click on this link for further guidance on how to complete this section."},{"$nulls":12},"Link to guidance:",3]
[]
[{"$nulls":10},{"$f":"Translations!$B$255","v":"Measurable heat"},{"$f":"Translations!$B$256","v":"Waste gases"},{"$f":"Translations!$B$257","v":"Indirect emissions"}]
[{"$nulls":3},"(f)",{"$f":"Translations!$B$258","v":"Please select which elements are applicable"},{"$nulls":7},{"$f":"IF(L76=\"\",\"\",INDEX(CONST_LIST_GoodsIndRel,MATCH(L76,CONST_LIST_Goods,0)))","v":""},{"$nulls":8},{"$f":"IF(AND(L76<>\"\",X115=FALSE),IF(COUNTA(K115:L115)=2,TRUE,CONST_ErrorOrMissing&C76),CONST_NA)","v":"n.a."}]
[{"$nulls":4},{"$f":"Translations!$B$259","v":"Based on your selection, related sections below might become irrelevant and greyed out below."}]
[]
[{"$nulls":10},{"$f":"Translations!$B$221","v":"Unit"},{"$f":"Translations!$B$260","v":"Value"}]
[{"$nulls":3},"(g)",{"$f":"Translations!$B$261","v":"Directly attributable emissions (DirEm*)"},{"$nulls":5},{"$f":"CONST_tCO2eq","v":"tCO2e"},{"$nulls":6},{"$f":"CONST_EmDir&G76","v":"EmDir_"},{"$f":"CONST_CNTR_EmbedEmDir&G76","v":"EmbedEmDir_"},{"$f":"IF(G76=\"\",\"\",L119)","v":""},null,{"$f":"IF(L76<>\"\",IF(L119<>\"\",TRUE,CONST_ErrorOrMissing&C76),CONST_NA)","v":"n.a."}]
[]
[{"$nulls":3},"(h)",{"$f":"Translations!$B$262","v":"Import and export of measurable heat"},{"$nulls":5},{"$f":"Translations!$B$221","v":"Unit"},{"$f":"Translations!$B$263","v":"Imported"},{"$f":"Translations!$B$264","v":"Exported"},{"$nulls":9},"cond.form.",{"$f":"AND(K115<>\"\",K115=FALSE)","v":false}]
[{"$nulls":3},"i.",{"$f":"Translations!$B$265","v":"Amount of net measurable heat"},{"$nulls":5},"TJ",{"$nulls":10},{"$f":"IF(AND(L76<>\"\",X122=FALSE),IF(COUNTA(L122:M122)=2,TRUE,CONST_ErrorOrMissing&C76),CONST_NA)","v":"n.a."},null,{"$f":"X121","v":false}]
[{"$nulls":3},"ii.",{"$f":"Translations!$B$266","v":"Emissions factor"},{"$nulls":5},{"$f":"CONST_tCO2pTJ","v":"tCO2/TJ"},{"$nulls":6},{"$f":"CONST_EmDirHeat&G76","v":"EmDirHeat_"},{"$f":"CONST_CNTR_EmbedEmDir&G76","v":"EmbedEmDir_"},{"$f":"IF(G76=\"\",\"\",SUM(L122*L123-M122*M123))","v":""},null,{"$f":"IF(AND(L76<>\"\",X123=FALSE),IF(COUNTA(L123:M123)=2,TRUE,CONST_ErrorOrMissing&C76),CONST_NA)","v":"n.a."},null,{"$f":"X122","v":false}]
[]
[{"$nulls":3},"(i)",{"$f":"Translations!$B$256","v":"Waste gases"},{"$nulls":5},{"$f":"Translations!$B$221","v":"Unit"},{"$f":"Translations!$B$263","v":"Imported"},{"$f":"Translations!$B$264","v":"Exported"},{"$nulls":9},"cond.form.",{"$f":"AND(L115<>\"\",L115=FALSE)","v":false}]
[{"$nulls":3},"i.",{"$f":"Translations!$B$267","v":"Amount of waste gas"},{"$nulls":5},{"$f":"CONST_TJ","v":"TJ"},{"$nulls":10},{"$f":"IF(AND(L76<>\"\",X126=FALSE),IF(COUNTA(L126:M126)=2,TRUE,CONST_ErrorOrMissing&C76),CONST_NA)","v":"n.a."},null,{"$f":"X125","v":false}]
[{"$nulls":3},"ii.",{"$f":"Translations!$B$268","v":"Emission factor"},{"$nulls":5},{"$f":"CONST_tCO2pTJ","v":"tCO2/TJ"},{"$nulls":6},{"$f":"CONST_EmDirWasteGases&G76","v":"EmDirWG_"},{"$f":"CONST_CNTR_EmbedEmDir&G76","v":"EmbedEmDir_"},{"$f":"IF(G76=\"\",\"\",SUM(L126*CONST_EFNatGas-M126*CONST_EFNatGas*0.667))","v":""},{"$nulls":3},{"$f":"X126","v":false}]
[]
[{"$nulls":3},"(j)",{"$f":"Translations!$B$269","v":"Indirect emissions from electricity consumption"},{"$nulls":5},{"$f":"Translations!$B$221","v":"Unit"},{"$f":"Translations!$B$260","v":"Value"},{"$nulls":10},"cond.form.",{"$f":"M115=FALSE","v":false}]
[{"$nulls":3},"i.",{"$f":"Translations!$B$270","v":"Electricity consumption"},{"$nulls":5},{"$f":"CONST_MWh","v":"MWh"},{"$nulls":6},{"$f":"CONST_ElecConsumption&G76","v":"ElecCons_"},null,{"$f":"IF(G76=\"\",\"\",L130)","v":""},null,{"$f":"IF(AND(L76<>\"\",X130=FALSE),IF(L130<>\"\",TRUE,CONST_ErrorOrMissing&C76),CONST_NA)","v":"n.a."},null,{"$f":"X129","v":false}]
[{"$nulls":3},"ii.",{"$f":"Translations!$B$271","v":"Emission factor of the electricity"},{"$nulls":5},{"$f":"CONST_tCO2&\"/\"&CONST_MWh","v":"tCO2/MWh"},{"$nulls":7},{"$f":"CONST_CNTR_EmbedEmInDir&G76","v":"EmbedEmInDir_"},{"$f":"IF(G76=\"\",\"\",SUM(L130)*SUM(L131))","v":""},null,{"$f":"IF(AND(L76<>\"\",X131=FALSE),IF(L131<>\"\",TRUE,CONST_ErrorOrMissing&C76),CONST_NA)","v":"n.a."},null,{"$f":"X130","v":false}]
[{"$nulls":3},"iii.",{"$f":"Translations!$B$272","v":"Source of the emission factor"},{"$nulls":5},"-",{"$nulls":6},{"$f":"CONST_CNTR_ElecEFMethod&G76","v":"ElecEFMeth_"},null,{"$f":"IF(L132=\"\",\"\",L132)","v":""},null,{"$f":"IF(AND(L76<>\"\",X132=FALSE),IF(L132<>\"\",TRUE,CONST_ErrorOrMissing&C76),CONST_NA)","v":"n.a."},null,{"$f":"X131","v":false}]
[]
[]
[{"$nulls":3},"(k)",{"$f":"Translations!$B$273","v":"Electricity exported from the production process"},{"$nulls":5},{"$f":"Translations!$B$221","v":"Unit"},{"$f":"Translations!$B$260","v":"Value"}]
[{"$nulls":3},"i.",{"$f":"Translations!$B$274","v":"Amounts exported"},{"$nulls":5},"MWh",{"$nulls":10},{"$f":"IF(L76<>\"\",IF(L136<>\"\",TRUE,CONST_ErrorOrMissing&C76),CONST_NA)","v":"n.a."}]
[{"$nulls":3},"ii.",{"$f":"Translations!$B$271","v":"Emission factor of the electricity"},{"$nulls":5},{"$f":"CONST_tCO2&\"/\"&CONST_MWh","v":"tCO2/MWh"},{"$nulls":7},{"$f":"CONST_CNTR_EmbedEmDir&G76","v":"EmbedEmDir_"},{"$f":"IF(G76=\"\",\"\",-SUM(L136)*SUM(L137))","v":""},null,{"$f":"IF(AND(L76<>\"\",SUM(L136)>0),IF(L137<>\"\",TRUE,CONST_ErrorOrMissing&C76),CONST_NA)","v":"n.a."}]
[]
[]
[]
[null,null,{"$f":"C76+1","v":3},{"$f":"CONST_ProductionProcess&\" \"&C141&\":\"","v":"Production process 3:"},null,null,{"$f":"IF(INDEX(CNTR_List_ExistProdProcNames,R141)=CONST_NA,\"\",INDEX(CNTR_List_ExistProdProcNames,R141))","v":""},{"$nulls":4},{"$f":"IF(INDEX(CNTR_List_ExistProdProc,R141)=CONST_NA,\"\",INDEX(CNTR_List_ExistProdProc,R141))","v":""},{"$nulls":5},{"$f":"C141","v":3},{"$nulls":4},"Not relevant:",{"$f":"AND(CNTR_HasEntriesA,G141=\"\")","v":false}]
[]
[{"$nulls":4},{"$f":"HYPERLINK(\"#\"&ADDRESS(MATCH($S143,G_FurtherGuidance!$S:$S,0),3,,,G_FurtherGuidance!$U$2),CONST_LinkToGuidanceSheet)","v":"Please click on this link for further guidance on how to complete this section."},{"$nulls":12},"Link to guidance:",3]
[]
[{"$nulls":3},"(a) ",{"$f":"Translations!$B$243","v":"Total production levels:"},null,null,{"$f":"Translations!$B$244","v":"Production route"},null,null,{"$f":"Translations!$B$221","v":"Unit"},{"$f":"Translations!$B$245","v":"Amounts"}]
[{"$nulls":3},1,{"$f":"IF(G141=\"\",\"\",G141)&IF(L141=\"\",\"\",\" | \"&L141)","v":""},null,null,{"$f":"IF(L141=\"\",\"\",INDEX(CONST_MATRIX_ProductionRoute,MATCH(L141,CONST_LIST_Goods,0),D146))","v":""},null,null,{"$f":"IF(L141=\"\",\"\",INDEX(CONST_LIST_GoodsUnit,MATCH(L141,CONST_LIST_Goods,0)))","v":""},{"$nulls":7},1,null,null,{"$f":"IF(AND(G141<>\"\",E146<>\"\",L146<>\"\"),TRUE,IF(AND(G141<>\"\",OR(AND(E146<>\"\",L146=\"\"),AND(E146=\"\",L146<>\"\"))),CONST_ErrorOrMissing&C141,CONST_NA))","v":"n.a."}]
[{"$nulls":3},2,{"$f":"IF(H147=CONST_NA,\"\",E146)","v":""},null,null,{"$f":"IF(L141=\"\",\"\",INDEX(CONST_MATRIX_ProductionRoute,MATCH(L141,CONST_LIST_Goods,0),D147))","v":""},null,null,{"$f":"IF(H147=CONST_NA,\"\",K146)","v":""},{"$nulls":7},2,null,null,{"$f":"IF(AND(G141<>\"\",E147<>\"\",L147<>\"\"),TRUE,IF(AND(G141<>\"\",OR(AND(E147<>\"\",L147=\"\"),AND(E147=\"\",L147<>\"\"))),CONST_ErrorOrMissing&C141,CONST_NA))","v":"n.a."}]
[{"$nulls":3},3,"",null,null,{"$f":"IF(L141=\"\",\"\",INDEX(CONST_MATRIX_ProductionRoute,MATCH(L141,CONST_LIST_Goods,0),D148))","v":""},null,null,"",{"$nulls":7},3,null,null,{"$f":"IF(AND(G141<>\"\",E148<>\"\",L148<>\"\"),TRUE,IF(AND(G141<>\"\",OR(AND(E148<>\"\",L148=\"\"),AND(E148=\"\",L148<>\"\"))),CONST_ErrorOrMissing&C141,CONST_NA))","v":"n.a."}]
[{"$nulls":3},4,"",null,null,{"$f":"IF(L141=\"\",\"\",INDEX(CONST_MATRIX_ProductionRoute,MATCH(L141,CONST_LIST_Goods,0),D149))","v":""},null,null,"",{"$nulls":7},4,null,null,{"$f":"IF(AND(G141<>\"\",E149<>\"\",L149<>\"\"),TRUE,IF(AND(G141<>\"\",OR(AND(E149<>\"\",L149=\"\"),AND(E149=\"\",L149<>\"\"))),CONST_ErrorOrMissing&C141,CONST_NA))","v":"n.a."}]
[{"$nulls":3},5,"",null,null,{"$f":"IF(L141=\"\",\"\",INDEX(CONST_MATRIX_ProductionRoute,MATCH(L141,CONST_LIST_Goods,0),D150))","v":""},null,null,"",{"$nulls":7},5,null,null,{"$f":"IF(AND(G141<>\"\",E150<>\"\",L150<>\"\"),TRUE,IF(AND(G141<>\"\",OR(AND(E150<>\"\",L150=\"\"),AND(E150=\"\",L150<>\"\"))),CONST_ErrorOrMissing&C141,CONST_NA))","v":"n.a."}]
[{"$nulls":3},6,"",null,null,{"$f":"IF(L141=\"\",\"\",INDEX(CONST_MATRIX_ProductionRoute,MATCH(L141,CONST_LIST_Goods,0),D151))","v":""},null,null,"",{"$nulls":7},6,null,null,{"$f":"IF(AND(G141<>\"\",E151<>\"\",L151<>\"\"),TRUE,IF(AND(G141<>\"\",OR(AND(E151<>\"\",L151=\"\"),AND(E151=\"\",L151<>\"\"))),CONST_ErrorOrMissing&C141,CONST_NA))","v":"n.a."}]
[{"$nulls":3},7,"",null,null,{"$f":"IF(L141=\"\",\"\",INDEX(CONST_MATRIX_ProductionRoute,MATCH(L141,CONST_LIST_Goods,0),D152))","v":""},null,null,"",{"$nulls":7},7,null,null,{"$f":"IF(AND(G141<>\"\",E152<>\"\",L152<>\"\"),TRUE,IF(AND(G141<>\"\",OR(AND(E152<>\"\",L152=\"\"),AND(E152=\"\",L152<>\"\"))),CONST_ErrorOrMissing&C141,CONST_NA))","v":"n.a."}]
[{"$nulls":3},8,"",null,null,{"$f":"IF(L141=\"\",\"\",INDEX(CONST_MATRIX_ProductionRoute,MATCH(L141,CONST_LIST_Goods,0),D153))","v":""},null,null,"",{"$nulls":7},8,null,null,{"$f":"IF(AND(G141<>\"\",E153<>\"\",L153<>\"\"),TRUE,IF(AND(G141<>\"\",OR(AND(E153<>\"\",L153=\"\"),AND(E153=\"\",L153<>\"\"))),CONST_ErrorOrMissing&C141,CONST_NA))","v":"n.a."}]
[{"$nulls":4},{"$f":"Translations!$B$246","v":"Total production within installation (= denominator for SEE calculation):"},{"$nulls":5},{"$f":"K146","v":""},{"$f":"IF(G141=\"\",\"\",SUM(L146:L153))","v":""},{"$nulls":5},{"$f":"CONST_CNTR_TotProd&G141","v":"TotProd_"},null,{"$f":"IF(G141=\"\",\"\",L154)","v":""}]
[]
[{"$nulls":3},"(b)",{"$f":"Translations!$B$247","v":"Production details"},{"$nulls":5},{"$f":"Translations!$B$221","v":"Unit"},{"$f":"Translations!$B$245","v":"Amounts"}]
[{"$nulls":3},"i.",{"$f":"Translations!$B$248","v":"Produced for the market"},{"$nulls":5},{"$f":"K146","v":""},{"$nulls":6},{"$f":"CONST_GoodToMarket&G141","v":"ToMarket_"},null,{"$f":"IF($G$11=\"\",\"\",L157)","v":""},null,{"$f":"IF(AND(G141<>\"\",L157<>\"\"),TRUE,IF(AND(G141<>\"\",OR(L157=\"\",L146<>\"\")),CONST_ErrorOrMissing&C141,CONST_NA))","v":"n.a."}]
[{"$nulls":3},"ii.",{"$f":"Translations!$B$249","v":"Share of total under (a) produced for the market"},{"$nulls":6},{"$f":"IF(AND(COUNT(L154,L157)=2,SUM(L154>0)),SUM(L157)/SUM(L154),\"\")","v":""}]
[{"$nulls":3},"iii.",{"$f":"Translations!$B$250","v":"Total production only for the market?"},{"$nulls":6},{"$f":"IF(G141=\"\",\"\",AND(SUM(L154)>0,SUM(L154)=SUM(L157)))","v":""}]
[]
[{"$nulls":3},"(c)",{"$f":"Translations!$B$251","v":"Consumed in other 'production processes' within the installation:"},{"$nulls":5},{"$f":"Translations!$B$221","v":"Unit"},{"$f":"Translations!$B$245","v":"Amounts"},{"$nulls":6},"Numbering",{"$nulls":3},"cond.form.",{"$f":"IF(G141=\"\",FALSE,L159)","v":false}]
[{"$nulls":3},1,{"$f":"IF(INDEX(CNTR_List_ExistProdProcNames,S162)=CONST_NA,\"\",INDEX(CNTR_List_ExistProdProcNames,S162))","v":""},{"$nulls":5},{"$f":"K146","v":""},{"$nulls":6},{"$f":"CONST_PrecursorToGoodInput&G141&\"_\"&E162","v":"PrecToGood__"},{"$f":"MAX(S161:S161)+IF(D162=C141,2,1)","v":1},{"$f":"IF(G141=\"\",\"\",L162)","v":""},null,{"$f":"IF(AND(G141<>\"\",E162<>\"\",L162<>\"\"),TRUE,IF(AND(G141<>\"\",E162<>\"\",L162=\"\",X162=FALSE),CONST_ErrorOrMissing&C141,CONST_NA))","v":"n.a."},"cond.form.",{"$f":"IF(G141=\"\",FALSE,OR(L159,E162=\"\"))","v":false}]
[{"$nulls":3},2,"",{"$nulls":5},{"$f":"K162","v":""},{"$nulls":6},{"$f":"CONST_PrecursorToGoodInput&G141&\"_\"&E163","v":"PrecToGood__"},{"$f":"MAX(S161:S162)+IF(D163=C141,2,1)","v":2},{"$f":"IF(G141=\"\",\"\",L163)","v":""},null,{"$f":"IF(AND(G141<>\"\",E163<>\"\",L163<>\"\"),TRUE,IF(AND(G141<>\"\",E163<>\"\",L163=\"\",X163=FALSE),CONST_ErrorOrMissing&C141,CONST_NA))","v":"n.a."},null,{"$f":"IF(G141=\"\",FALSE,OR(L159,E163=\"\"))","v":false}]
[{"$nulls":3},3,"",{"$nulls":5},{"$f":"K163","v":""},{"$nulls":6},{"$f":"CONST_PrecursorToGoodInput&G141&\"_\"&E164","v":"PrecToGood__"},{"$f":"MAX(S161:S163)+IF(D164=C141,2,1)","v":4},{"$f":"IF(G141=\"\",\"\",L164)","v":""},null,{"$f":"IF(AND(G141<>\"\",E164<>\"\",L164<>\"\"),TRUE,IF(AND(G141<>\"\",E164<>\"\",L164=\"\",X164=FALSE),CONST_ErrorOrMissing&C141,CONST_NA))","v":"n.a."},null,{"$f":"IF(G141=\"\",FALSE,OR(L159,E164=\"\"))","v":false}]
[{"$nulls":3},4,"",{"$nulls":5},"",{"$nulls":6},{"$f":"CONST_PrecursorToGoodInput&G141&\"_\"&E165","v":"PrecToGood__"},{"$f":"MAX(S161:S164)+IF(D165=C141,2,1)","v":5},{"$f":"IF(G141=\"\",\"\",L165)","v":""},null,{"$f":"IF(AND(G141<>\"\",E165<>\"\",L165<>\"\"),TRUE,IF(AND(G141<>\"\",E165<>\"\",L165=\"\",X165=FALSE),CONST_ErrorOrMissing&C141,CONST_NA))","v":"n.a."},null,{"$f":"IF(G141=\"\",FALSE,OR(L159,E165=\"\"))","v":false}]
[{"$nulls":3},5,"",{"$nulls":5},"",{"$nulls":6},{"$f":"CONST_PrecursorToGoodInput&G141&\"_\"&E166","v":"PrecToGood__"},{"$f":"MAX(S161:S165)+IF(D166=C141,2,1)","v":6},{"$f":"IF(G141=\"\",\"\",L166)","v":""},null,{"$f":"IF(AND(G141<>\"\",E166<>\"\",L166<>\"\"),TRUE,IF(AND(G141<>\"\",E166<>\"\",L166=\"\",X166=FALSE),CONST_ErrorOrMissing&C141,CONST_NA))","v":"n.a."},null,{"$f":"IF(G141=\"\",FALSE,OR(L159,E166=\"\"))","v":false}]
[{"$nulls":3},6,"",{"$nulls":5},"",{"$nulls":6},{"$f":"CONST_PrecursorToGoodInput&G141&\"_\"&E167","v":"PrecToGood__"},{"$f":"MAX(S161:S166)+IF(D167=C141,2,1)","v":7},{"$f":"IF(G141=\"\",\"\",L167)","v":""},null,{"$f":"IF(AND(G141<>\"\",E167<>\"\",L167<>\"\"),TRUE,IF(AND(G141<>\"\",E167<>\"\",L167=\"\",X167=FALSE),CONST_ErrorOrMissing&C141,CONST_NA))","v":"n.a."},null,{"$f":"IF(G141=\"\",FALSE,OR(L159,E167=\"\"))","v":false}]
[{"$nulls":3},7,"",{"$nulls":5},"",{"$nulls":6},{"$f":"CONST_PrecursorToGoodInput&G141&\"_\"&E168","v":"PrecToGood__"},{"$f":"MAX(S161:S167)+IF(D168=C141,2,1)","v":8},{"$f":"IF(G141=\"\",\"\",L168)","v":""},null,{"$f":"IF(AND(G141<>\"\",E168<>\"\",L168<>\"\"),TRUE,IF(AND(G141<>\"\",E168<>\"\",L168=\"\",X168=FALSE),CONST_ErrorOrMissing&C141,CONST_NA))","v":"n.a."},null,{"$f":"IF(G141=\"\",FALSE,OR(L159,E168=\"\"))","v":false}]
[{"$nulls":3},8,"",{"$nulls":5},"",{"$nulls":6},{"$f":"CONST_PrecursorToGoodInput&G141&\"_\"&E169","v":"PrecToGood__"},{"$f":"MAX(S161:S168)+IF(D169=C141,2,1)","v":9},{"$f":"IF(G141=\"\",\"\",L169)","v":""},null,{"$f":"IF(AND(G141<>\"\",E169<>\"\",L169<>\"\"),TRUE,IF(AND(G141<>\"\",E169<>\"\",L169=\"\",X169=FALSE),CONST_ErrorOrMissing&C141,CONST_NA))","v":"n.a."},null,{"$f":"IF(G141=\"\",FALSE,OR(L159,E169=\"\"))","v":false}]
[{"$nulls":3},9,"",{"$nulls":5},"",{"$nulls":6},{"$f":"CONST_PrecursorToGoodInput&G141&\"_\"&E170","v":"PrecToGood__"},{"$f":"MAX(S161:S169)+IF(D170=C141,2,1)","v":10},{"$f":"IF(G141=\"\",\"\",L170)","v":""},null,{"$f":"IF(AND(G141<>\"\",E170<>\"\",L170<>\"\"),TRUE,IF(AND(G141<>\"\",E170<>\"\",L170=\"\",X170=FALSE),CONST_ErrorOrMissing&C141,CONST_NA))","v":"n.a."},null,{"$f":"IF(G141=\"\",FALSE,OR(L159,E170=\"\"))","v":false}]
[{"$nulls":3},"(d)",{"$f":"Translations!$B$252","v":"Consumed for non-CBAM goods within the installation:"},{"$nulls":5},"",{"$nulls":10},{"$f":"IF(AND(G141<>\"\",L171<>\"\"),TRUE,IF(AND(G141<>\"\",L171=\"\",X171=FALSE),CONST_ErrorOrMissing&C141,CONST_NA))","v":"n.a."},"cond.form.",{"$f":"IF(G141=\"\",FALSE,L159)","v":false}]
[{"$nulls":3},"(e)",{"$f":"Translations!$B$253","v":"Control:"},{"$nulls":5},"",{"$f":"IF(G141=\"\",\"\",SUM(L154)-SUM(L157,L162:L171))","v":""},{"$nulls":9},{"$f":"IF(AND(G141<>\"\",L172=0),TRUE,IF(AND(G141<>\"\",L172<>0,X172=FALSE),CONST_ErrorOrMissing&C141,CONST_NA))","v":"n.a."},null,{"$f":"IF(G141=\"\",FALSE,L159)","v":false}]
[]
[]
[{"$nulls":3},{"$f":"Translations!$B$254","v":"Calculation of the attributed emissions:"},{"$nulls":5},{"$f":"IF(G141=\"\",\"\",G141)","v":""}]
[]
[{"$nulls":4},{"$f":"HYPERLINK(\"#\"&ADDRESS(MATCH($S177,G_FurtherGuidance!$S:$S,0),3,,,G_FurtherGuidance!$U$2),CONST_LinkToGuidanceSheet)","v":"Please click on this link for further guidance on how to complete this section."},{"$nulls":12},"Link to guidance:",3]
[]
[{"$nulls":10},{"$f":"Translations!$B$255","v":"Measurable heat"},{"$f":"Translations!$B$256","v":"Waste gases"},{"$f":"Translations!$B$257","v":"Indirect emissions"}]
[{"$nulls":3},"(f)",{"$f":"Translations!$B$258","v":"Please select which elements are applicable"},{"$nulls":7},{"$f":"IF(L141=\"\",\"\",INDEX(CONST_LIST_GoodsIndRel,MATCH(L141,CONST_LIST_Goods,0)))","v":""},{"$nulls":8},{"$f":"IF(AND(L141<>\"\",X180=FALSE),IF(COUNTA(K180:L180)=2,TRUE,CONST_ErrorOrMissing&C141),CONST_NA)","v":"n.a."}]
[{"$nulls":4},{"$f":"Translations!$B$259","v":"Based on your selection, related sections below might become irrelevant and greyed out below."}]
[]
[{"$nulls":10},{"$f":"Translations!$B$221","v":"Unit"},{"$f":"Translations!$B$260","v":"Value"}]
[{"$nulls":3},"(g)",{"$f":"Translations!$B$261","v":"Directly attributable emissions (DirEm*)"},{"$nulls":5},{"$f":"CONST_tCO2eq","v":"tCO2e"},{"$nulls":6},{"$f":"CONST_EmDir&G141","v":"EmDir_"},{"$f":"CONST_CNTR_EmbedEmDir&G141","v":"EmbedEmDir_"},{"$f":"IF(G141=\"\",\"\",L184)","v":""},null,{"$f":"IF(L141<>\"\",IF(L184<>\"\",TRUE,CONST_ErrorOrMissing&C141),CONST_NA)","v":"n.a."}]
[]
[{"$nulls":3},"(h)",{"$f":"Translations!$B$262","v":"Import and export of measurable heat"},{"$nulls":5},{"$f":"Translations!$B$221","v":"Unit"},{"$f":"Translations!$B$263","v":"Imported"},{"$f":"Translations!$B$264","v":"Exported"},{"$nulls":9},"cond.form.",{"$f":"AND(K180<>\"\",K180=FALSE)","v":false}]
[{"$nulls":3},"i.",{"$f":"Translations!$B$265","v":"Amount of net measurable heat"},{"$nulls":5},"TJ",{"$nulls":10},{"$f":"IF(AND(L141<>\"\",X187=FALSE),IF(COUNTA(L187:M187)=2,TRUE,CONST_ErrorOrMissing&C141),CONST_NA)","v":"n.a."},null,{"$f":"X186","v":false}]
[{"$nulls":3},"ii.",{"$f":"Translations!$B$266","v":"Emissions factor"},{"$nulls":5},{"$f":"CONST_tCO2pTJ","v":"tCO2/TJ"},{"$nulls":6},{"$f":"CONST_EmDirHeat&G141","v":"EmDirHeat_"},{"$f":"CONST_CNTR_EmbedEmDir&G141","v":"EmbedEmDir_"},{"$f":"IF(G141=\"\",\"\",SUM(L187*L188-M187*M188))","v":""},null,{"$f":"IF(AND(L141<>\"\",X188=FALSE),IF(COUNTA(L188:M188)=2,TRUE,CONST_ErrorOrMissing&C141),CONST_NA)","v":"n.a."},null,{"$f":"X187","v":false}]
[]
[{"$nulls":3},"(i)",{"$f":"Translations!$B$256","v":"Waste gases"},{"$nulls":5},{"$f":"Translations!$B$221","v":"Unit"},{"$f":"Translations!$B$263","v":"Imported"},{"$f":"Translations!$B$264","v":"Exported"},{"$nulls":9},"cond.form.",{"$f":"AND(L180<>\"\",L180=FALSE)","v":false}]
[{"$nulls":3},"i.",{"$f":"Translations!$B$267","v":"Amount of waste gas"},{"$nulls":5},{"$f":"CONST_TJ","v":"TJ"},{"$nulls":10},{"$f":"IF(AND(L141<>\"\",X191=FALSE),IF(COUNTA(L191:M191)=2,TRUE,CONST_ErrorOrMissing&C141),CONST_NA)","v":"n.a."},null,{"$f":"X190","v":false}]
[{"$nulls":3},"ii.",{"$f":"Translations!$B$268","v":"Emission factor"},{"$nulls":5},{"$f":"CONST_tCO2pTJ","v":"tCO2/TJ"},{"$nulls":6},{"$f":"CONST_EmDirWasteGases&G141","v":"EmDirWG_"},{"$f":"CONST_CNTR_EmbedEmDir&G141","v":"EmbedEmDir_"},{"$f":"IF(G141=\"\",\"\",SUM(L191*CONST_EFNatGas-M191*CONST_EFNatGas*0.667))","v":""},{"$nulls":3},{"$f":"X191","v":false}]
[]
[{"$nulls":3},"(j)",{"$f":"Translations!$B$269","v":"Indirect emissions from electricity consumption"},{"$nulls":5},{"$f":"Translations!$B$221","v":"Unit"},{"$f":"Translations!$B$260","v":"Value"},{"$nulls":10},"cond.form.",{"$f":"M180=FALSE","v":false}]
[{"$nulls":3},"i.",{"$f":"Translations!$B$270","v":"Electricity consumption"},{"$nulls":5},{"$f":"CONST_MWh","v":"MWh"},{"$nulls":6},{"$f":"CONST_ElecConsumption&G141","v":"ElecCons_"},null,{"$f":"IF(G141=\"\",\"\",L195)","v":""},null,{"$f":"IF(AND(L141<>\"\",X195=FALSE),IF(L195<>\"\",TRUE,CONST_ErrorOrMissing&C141),CONST_NA)","v":"n.a."},null,{"$f":"X194","v":false}]
[{"$nulls":3},"ii.",{"$f":"Translations!$B$271","v":"Emission factor of the electricity"},{"$nulls":5},{"$f":"CONST_tCO2&\"/\"&CONST_MWh","v":"tCO2/MWh"},{"$nulls":7},{"$f":"CONST_CNTR_EmbedEmInDir&G141","v":"EmbedEmInDir_"},{"$f":"IF(G141=\"\",\"\",SUM(L195)*SUM(L196))","v":""},null,{"$f":"IF(AND(L141<>\"\",X196=FALSE),IF(L196<>\"\",TRUE,CONST_ErrorOrMissing&C141),CONST_NA)","v":"n.a."},null,{"$f":"X195","v":false}]
[{"$nulls":3},"iii.",{"$f":"Translations!$B$272","v":"Source of the emission factor"},{"$nulls":5},"-",{"$nulls":6},{"$f":"CONST_CNTR_ElecEFMethod&G141","v":"ElecEFMeth_"},null,{"$f":"IF(L197=\"\",\"\",L197)","v":""},null,{"$f":"IF(AND(L141<>\"\",X197=FALSE),IF(L197<>\"\",TRUE,CONST_ErrorOrMissing&C141),CONST_NA)","v":"n.a."},null,{"$f":"X196","v":false}]
[]
[]
[{"$nulls":3},"(k)",{"$f":"Translations!$B$273","v":"Electricity exported from the production process"},{"$nulls":5},{"$f":"Translations!$B$221","v":"Unit"},{"$f":"Translations!$B$260","v":"Value"}]
[{"$nulls":3},"i.",{"$f":"Translations!$B$274","v":"Amounts exported"},{"$nulls":5},"MWh",{"$nulls":10},{"$f":"IF(L141<>\"\",IF(L201<>\"\",TRUE,CONST_ErrorOrMissing&C141),CONST_NA)","v":"n.a."}]
[{"$nulls":3},"ii.",{"$f":"Translations!$B$271","v":"Emission factor of the electricity"},{"$nulls":5},{"$f":"CONST_tCO2&\"/\"&CONST_MWh","v":"tCO2/MWh"},{"$nulls":7},{"$f":"CONST_CNTR_EmbedEmDir&G141","v":"EmbedEmDir_"},{"$f":"IF(G141=\"\",\"\",-SUM(L201)*SUM(L202))","v":""},null,{"$f":"IF(AND(L141<>\"\",SUM(L201)>0),IF(L202<>\"\",TRUE,CONST_ErrorOrMissing&C141),CONST_NA)","v":"n.a."}]
[]
[]
[]
[null,null,{"$f":"C141+1","v":4},{"$f":"CONST_ProductionProcess&\" \"&C206&\":\"","v":"Production process 4:"},null,null,{"$f":"IF(INDEX(CNTR_List_ExistProdProcNames,R206)=CONST_NA,\"\",INDEX(CNTR_List_ExistProdProcNames,R206))","v":""},{"$nulls":4},{"$f":"IF(INDEX(CNTR_List_ExistProdProc,R206)=CONST_NA,\"\",INDEX(CNTR_List_ExistProdProc,R206))","v":""},{"$nulls":5},{"$f":"C206","v":4},{"$nulls":4},"Not relevant:",{"$f":"AND(CNTR_HasEntriesA,G206=\"\")","v":false}]
[]
[{"$nulls":4},{"$f":"HYPERLINK(\"#\"&ADDRESS(MATCH($S208,G_FurtherGuidance!$S:$S,0),3,,,G_FurtherGuidance!$U$2),CONST_LinkToGuidanceSheet)","v":"Please click on this link for further guidance on how to complete this section."},{"$nulls":12},"Link to guidance:",3]
[]
[{"$nulls":3},"(a) ",{"$f":"Translations!$B$243","v":"Total production levels:"},null,null,{"$f":"Translations!$B$244","v":"Production route"},null,null,{"$f":"Translations!$B$221","v":"Unit"},{"$f":"Translations!$B$245","v":"Amounts"}]
[{"$nulls":3},1,{"$f":"IF(G206=\"\",\"\",G206)&IF(L206=\"\",\"\",\" | \"&L206)","v":""},null,null,{"$f":"IF(L206=\"\",\"\",INDEX(CONST_MATRIX_ProductionRoute,MATCH(L206,CONST_LIST_Goods,0),D211))","v":""},null,null,{"$f":"IF(L206=\"\",\"\",INDEX(CONST_LIST_GoodsUnit,MATCH(L206,CONST_LIST_Goods,0)))","v":""},{"$nulls":7},1,null,null,{"$f":"IF(AND(G206<>\"\",E211<>\"\",L211<>\"\"),TRUE,IF(AND(G206<>\"\",OR(AND(E211<>\"\",L211=\"\"),AND(E211=\"\",L211<>\"\"))),CONST_ErrorOrMissing&C206,CONST_NA))","v":"n.a."}]
[{"$nulls":3},2,{"$f":"IF(H212=CONST_NA,\"\",E211)","v":""},null,null,{"$f":"IF(L206=\"\",\"\",INDEX(CONST_MATRIX_ProductionRoute,MATCH(L206,CONST_LIST_Goods,0),D212))","v":""},null,null,{"$f":"IF(H212=CONST_NA,\"\",K211)","v":""},{"$nulls":7},2,null,null,{"$f":"IF(AND(G206<>\"\",E212<>\"\",L212<>\"\"),TRUE,IF(AND(G206<>\"\",OR(AND(E212<>\"\",L212=\"\"),AND(E212=\"\",L212<>\"\"))),CONST_ErrorOrMissing&C206,CONST_NA))","v":"n.a."}]
[{"$nulls":3},3,"",null,null,{"$f":"IF(L206=\"\",\"\",INDEX(CONST_MATRIX_ProductionRoute,MATCH(L206,CONST_LIST_Goods,0),D213))","v":""},null,null,"",{"$nulls":7},3,null,null,{"$f":"IF(AND(G206<>\"\",E213<>\"\",L213<>\"\"),TRUE,IF(AND(G206<>\"\",OR(AND(E213<>\"\",L213=\"\"),AND(E213=\"\",L213<>\"\"))),CONST_ErrorOrMissing&C206,CONST_NA))","v":"n.a."}]
[{"$nulls":3},4,"",null,null,{"$f":"IF(L206=\"\",\"\",INDEX(CONST_MATRIX_ProductionRoute,MATCH(L206,CONST_LIST_Goods,0),D214))","v":""},null,null,"",{"$nulls":7},4,null,null,{"$f":"IF(AND(G206<>\"\",E214<>\"\",L214<>\"\"),TRUE,IF(AND(G206<>\"\",OR(AND(E214<>\"\",L214=\"\"),AND(E214=\"\",L214<>\"\"))),CONST_ErrorOrMissing&C206,CONST_NA))","v":"n.a."}]
[{"$nulls":3},5,"",null,null,{"$f":"IF(L206=\"\",\"\",INDEX(CONST_MATRIX_ProductionRoute,MATCH(L206,CONST_LIST_Goods,0),D215))","v":""},null,null,"",{"$nulls":7},5,null,null,{"$f":"IF(AND(G206<>\"\",E215<>\"\",L215<>\"\"),TRUE,IF(AND(G206<>\"\",OR(AND(E215<>\"\",L215=\"\"),AND(E215=\"\",L215<>\"\"))),CONST_ErrorOrMissing&C206,CONST_NA))","v":"n.a."}]
[{"$nulls":3},6,"",null,null,{"$f":"IF(L206=\"\",\"\",INDEX(CONST_MATRIX_ProductionRoute,MATCH(L206,CONST_LIST_Goods,0),D216))","v":""},null,null,"",{"$nulls":7},6,null,null,{"$f":"IF(AND(G206<>\"\",E216<>\"\",L216<>\"\"),TRUE,IF(AND(G206<>\"\",OR(AND(E216<>\"\",L216=\"\"),AND(E216=\"\",L216<>\"\"))),CONST_ErrorOrMissing&C206,CONST_NA))","v":"n.a."}]
[{"$nulls":3},7,"",null,null,{"$f":"IF(L206=\"\",\"\",INDEX(CONST_MATRIX_ProductionRoute,MATCH(L206,CONST_LIST_Goods,0),D217))","v":""},null,null,"",{"$nulls":7},7,null,null,{"$f":"IF(AND(G206<>\"\",E217<>\"\",L217<>\"\"),TRUE,IF(AND(G206<>\"\",OR(AND(E217<>\"\",L217=\"\"),AND(E217=\"\",L217<>\"\"))),CONST_ErrorOrMissing&C206,CONST_NA))","v":"n.a."}]
[{"$nulls":3},8,"",null,null,{"$f":"IF(L206=\"\",\"\",INDEX(CONST_MATRIX_ProductionRoute,MATCH(L206,CONST_LIST_Goods,0),D218))","v":""},null,null,"",{"$nulls":7},8,null,null,{"$f":"IF(AND(G206<>\"\",E218<>\"\",L218<>\"\"),TRUE,IF(AND(G206<>\"\",OR(AND(E218<>\"\",L218=\"\"),AND(E218=\"\",L218<>\"\"))),CONST_ErrorOrMissing&C206,CONST_NA))","v":"n.a."}]
[{"$nulls":4},{"$f":"Translations!$B$246","v":"Total production within installation (= denominator for SEE calculation):"},{"$nulls":5},{"$f":"K211","v":""},{"$f":"IF(G206=\"\",\"\",SUM(L211:L218))","v":""},{"$nulls":5},{"$f":"CONST_CNTR_TotProd&G206","v":"TotProd_"},null,{"$f":"IF(G206=\"\",\"\",L219)","v":""}]
[]
[{"$nulls":3},"(b)",{"$f":"Translations!$B$247","v":"Production details"},{"$nulls":5},{"$f":"Translations!$B$221","v":"Unit"},{"$f":"Translations!$B$245","v":"Amounts"}]
[{"$nulls":3},"i.",{"$f":"Translations!$B$248","v":"Produced for the market"},{"$nulls":5},{"$f":"K211","v":""},{"$nulls":6},{"$f":"CONST_GoodToMarket&G206","v":"ToMarket_"},null,{"$f":"IF($G$11=\"\",\"\",L222)","v":""},null,{"$f":"IF(AND(G206<>\"\",L222<>\"\"),TRUE,IF(AND(G206<>\"\",OR(L222=\"\",L211<>\"\")),CONST_ErrorOrMissing&C206,CONST_NA))","v":"n.a."}]
[{"$nulls":3},"ii.",{"$f":"Translations!$B$249","v":"Share of total under (a) produced for the market"},{"$nulls":6},{"$f":"IF(AND(COUNT(L219,L222)=2,SUM(L219>0)),SUM(L222)/SUM(L219),\"\")","v":""}]
[{"$nulls":3},"iii.",{"$f":"Translations!$B$250","v":"Total production only for the market?"},{"$nulls":6},{"$f":"IF(G206=\"\",\"\",AND(SUM(L219)>0,SUM(L219)=SUM(L222)))","v":""}]
[]
[{"$nulls":3},"(c)",{"$f":"Translations!$B$251","v":"Consumed in other 'production processes' within the installation:"},{"$nulls":5},{"$f":"Translations!$B$221","v":"Unit"},{"$f":"Translations!$B$245","v":"Amounts"},{"$nulls":6},"Numbering",{"$nulls":3},"cond.form.",{"$f":"IF(G206=\"\",FALSE,L224)","v":false}]
[{"$nulls":3},1,{"$f":"IF(INDEX(CNTR_List_ExistProdProcNames,S227)=CONST_NA,\"\",INDEX(CNTR_List_ExistProdProcNames,S227))","v":""},{"$nulls":5},{"$f":"K211","v":""},{"$nulls":6},{"$f":"CONST_PrecursorToGoodInput&G206&\"_\"&E227","v":"PrecToGood__"},{"$f":"MAX(S226:S226)+IF(D227=C206,2,1)","v":1},{"$f":"IF(G206=\"\",\"\",L227)","v":""},null,{"$f":"IF(AND(G206<>\"\",E227<>\"\",L227<>\"\"),TRUE,IF(AND(G206<>\"\",E227<>\"\",L227=\"\",X227=FALSE),CONST_ErrorOrMissing&C206,CONST_NA))","v":"n.a."},"cond.form.",{"$f":"IF(G206=\"\",FALSE,OR(L224,E227=\"\"))","v":false}]
[{"$nulls":3},2,"",{"$nulls":5},{"$f":"K227","v":""},{"$nulls":6},{"$f":"CONST_PrecursorToGoodInput&G206&\"_\"&E228","v":"PrecToGood__"},{"$f":"MAX(S226:S227)+IF(D228=C206,2,1)","v":2},{"$f":"IF(G206=\"\",\"\",L228)","v":""},null,{"$f":"IF(AND(G206<>\"\",E228<>\"\",L228<>\"\"),TRUE,IF(AND(G206<>\"\",E228<>\"\",L228=\"\",X228=FALSE),CONST_ErrorOrMissing&C206,CONST_NA))","v":"n.a."},null,{"$f":"IF(G206=\"\",FALSE,OR(L224,E228=\"\"))","v":false}]
[{"$nulls":3},3,"",{"$nulls":5},{"$f":"K228","v":""},{"$nulls":6},{"$f":"CONST_PrecursorToGoodInput&G206&\"_\"&E229","v":"PrecToGood__"},{"$f":"MAX(S226:S228)+IF(D229=C206,2,1)","v":3},{"$f":"IF(G206=\"\",\"\",L229)","v":""},null,{"$f":"IF(AND(G206<>\"\",E229<>\"\",L229<>\"\"),TRUE,IF(AND(G206<>\"\",E229<>\"\",L229=\"\",X229=FALSE),CONST_ErrorOrMissing&C206,CONST_NA))","v":"n.a."},null,{"$f":"IF(G206=\"\",FALSE,OR(L224,E229=\"\"))","v":false}]
[{"$nulls":3},4,"",{"$nulls":5},"",{"$nulls":6},{"$f":"CONST_PrecursorToGoodInput&G206&\"_\"&E230","v":"PrecToGood__"},{"$f":"MAX(S226:S229)+IF(D230=C206,2,1)","v":5},{"$f":"IF(G206=\"\",\"\",L230)","v":""},null,{"$f":"IF(AND(G206<>\"\",E230<>\"\",L230<>\"\"),TRUE,IF(AND(G206<>\"\",E230<>\"\",L230=\"\",X230=FALSE),CONST_ErrorOrMissing&C206,CONST_NA))","v":"n.a."},null,{"$f":"IF(G206=\"\",FALSE,OR(L224,E230=\"\"))","v":false}]
[{"$nulls":3},5,"",{"$nulls":5},"",{"$nulls":6},{"$f":"CONST_PrecursorToGoodInput&G206&\"_\"&E231","v":"PrecToGood__"},{"$f":"MAX(S226:S230)+IF(D231=C206,2,1)","v":6},{"$f":"IF(G206=\"\",\"\",L231)","v":""},null,{"$f":"IF(AND(G206<>\"\",E231<>\"\",L231<>\"\"),TRUE,IF(AND(G206<>\"\",E231<>\"\",L231=\"\",X231=FALSE),CONST_ErrorOrMissing&C206,CONST_NA))","v":"n.a."},null,{"$f":"IF(G206=\"\",FALSE,OR(L224,E231=\"\"))","v":false}]
[{"$nulls":3},6,"",{"$nulls":5},"",{"$nulls":6},{"$f":"CONST_PrecursorToGoodInput&G206&\"_\"&E232","v":"PrecToGood__"},{"$f":"MAX(S226:S231)+IF(D232=C206,2,1)","v":7},{"$f":"IF(G206=\"\",\"\",L232)","v":""},null,{"$f":"IF(AND(G206<>\"\",E232<>\"\",L232<>\"\"),TRUE,IF(AND(G206<>\"\",E232<>\"\",L232=\"\",X232=FALSE),CONST_ErrorOrMissing&C206,CONST_NA))","v":"n.a."},null,{"$f":"IF(G206=\"\",FALSE,OR(L224,E232=\"\"))","v":false}]
[{"$nulls":3},7,"",{"$nulls":5},"",{"$nulls":6},{"$f":"CONST_PrecursorToGoodInput&G206&\"_\"&E233","v":"PrecToGood__"},{"$f":"MAX(S226:S232)+IF(D233=C206,2,1)","v":8},{"$f":"IF(G206=\"\",\"\",L233)","v":""},null,{"$f":"IF(AND(G206<>\"\",E233<>\"\",L233<>\"\"),TRUE,IF(AND(G206<>\"\",E233<>\"\",L233=\"\",X233=FALSE),CONST_ErrorOrMissing&C206,CONST_NA))","v":"n.a."},null,{"$f":"IF(G206=\"\",FALSE,OR(L224,E233=\"\"))","v":false}]
[{"$nulls":3},8,"",{"$nulls":5},"",{"$nulls":6},{"$f":"CONST_PrecursorToGoodInput&G206&\"_\"&E234","v":"PrecToGood__"},{"$f":"MAX(S226:S233)+IF(D234=C206,2,1)","v":9},{"$f":"IF(G206=\"\",\"\",L234)","v":""},null,{"$f":"IF(AND(G206<>\"\",E234<>\"\",L234<>\"\"),TRUE,IF(AND(G206<>\"\",E234<>\"\",L234=\"\",X234=FALSE),CONST_ErrorOrMissing&C206,CONST_NA))","v":"n.a."},null,{"$f":"IF(G206=\"\",FALSE,OR(L224,E234=\"\"))","v":false}]
[{"$nulls":3},9,"",{"$nulls":5},"",{"$nulls":6},{"$f":"CONST_PrecursorToGoodInput&G206&\"_\"&E235","v":"PrecToGood__"},{"$f":"MAX(S226:S234)+IF(D235=C206,2,1)","v":10},{"$f":"IF(G206=\"\",\"\",L235)","v":""},null,{"$f":"IF(AND(G206<>\"\",E235<>\"\",L235<>\"\"),TRUE,IF(AND(G206<>\"\",E235<>\"\",L235=\"\",X235=FALSE),CONST_ErrorOrMissing&C206,CONST_NA))","v":"n.a."},null,{"$f":"IF(G206=\"\",FALSE,OR(L224,E235=\"\"))","v":false}]
[{"$nulls":3},"(d)",{"$f":"Translations!$B$252","v":"Consumed for non-CBAM goods within the installation:"},{"$nulls":5},"",{"$nulls":10},{"$f":"IF(AND(G206<>\"\",L236<>\"\"),TRUE,IF(AND(G206<>\"\",L236=\"\",X236=FALSE),CONST_ErrorOrMissing&C206,CONST_NA))","v":"n.a."},"cond.form.",{"$f":"IF(G206=\"\",FALSE,L224)","v":false}]
[{"$nulls":3},"(e)",{"$f":"Translations!$B$253","v":"Control:"},{"$nulls":5},"",{"$f":"IF(G206=\"\",\"\",SUM(L219)-SUM(L222,L227:L236))","v":""},{"$nulls":9},{"$f":"IF(AND(G206<>\"\",L237=0),TRUE,IF(AND(G206<>\"\",L237<>0,X237=FALSE),CONST_ErrorOrMissing&C206,CONST_NA))","v":"n.a."},null,{"$f":"IF(G206=\"\",FALSE,L224)","v":false}]
[]
[]
[{"$nulls":3},{"$f":"Translations!$B$254","v":"Calculation of the attributed emissions:"},{"$nulls":5},{"$f":"IF(G206=\"\",\"\",G206)","v":""}]
[]
[{"$nulls":4},{"$f":"HYPERLINK(\"#\"&ADDRESS(MATCH($S242,G_FurtherGuidance!$S:$S,0),3,,,G_FurtherGuidance!$U$2),CONST_LinkToGuidanceSheet)","v":"Please click on this link for further guidance on how to complete this section."},{"$nulls":12},"Link to guidance:",3]
[]
[{"$nulls":10},{"$f":"Translations!$B$255","v":"Measurable heat"},{"$f":"Translations!$B$256","v":"Waste gases"},{"$f":"Translations!$B$257","v":"Indirect emissions"}]
[{"$nulls":3},"(f)",{"$f":"Translations!$B$258","v":"Please select which elements are applicable"},{"$nulls":7},{"$f":"IF(L206=\"\",\"\",INDEX(CONST_LIST_GoodsIndRel,MATCH(L206,CONST_LIST_Goods,0)))","v":""},{"$nulls":8},{"$f":"IF(AND(L206<>\"\",X245=FALSE),IF(COUNTA(K245:L245)=2,TRUE,CONST_ErrorOrMissing&C206),CONST_NA)","v":"n.a."}]
[{"$nulls":4},{"$f":"Translations!$B$259","v":"Based on your selection, related sections below might become irrelevant and greyed out below."}]
[]
[{"$nulls":10},{"$f":"Translations!$B$221","v":"Unit"},{"$f":"Translations!$B$260","v":"Value"}]
[{"$nulls":3},"(g)",{"$f":"Translations!$B$261","v":"Directly attributable emissions (DirEm*)"},{"$nulls":5},{"$f":"CONST_tCO2eq","v":"tCO2e"},{"$nulls":6},{"$f":"CONST_EmDir&G206","v":"EmDir_"},{"$f":"CONST_CNTR_EmbedEmDir&G206","v":"EmbedEmDir_"},{"$f":"IF(G206=\"\",\"\",L249)","v":""},null,{"$f":"IF(L206<>\"\",IF(L249<>\"\",TRUE,CONST_ErrorOrMissing&C206),CONST_NA)","v":"n.a."}]
[]
[{"$nulls":3},"(h)",{"$f":"Translations!$B$262","v":"Import and export of measurable heat"},{"$nulls":5},{"$f":"Translations!$B$221","v":"Unit"},{"$f":"Translations!$B$263","v":"Imported"},{"$f":"Translations!$B$264","v":"Exported"},{"$nulls":9},"cond.form.",{"$f":"AND(K245<>\"\",K245=FALSE)","v":false}]
[{"$nulls":3},"i.",{"$f":"Translations!$B$265","v":"Amount of net measurable heat"},{"$nulls":5},"TJ",{"$nulls":10},{"$f":"IF(AND(L206<>\"\",X252=FALSE),IF(COUNTA(L252:M252)=2,TRUE,CONST_ErrorOrMissing&C206),CONST_NA)","v":"n.a."},null,{"$f":"X251","v":false}]
[{"$nulls":3},"ii.",{"$f":"Translations!$B$266","v":"Emissions factor"},{"$nulls":5},{"$f":"CONST_tCO2pTJ","v":"tCO2/TJ"},{"$nulls":6},{"$f":"CONST_EmDirHeat&G206","v":"EmDirHeat_"},{"$f":"CONST_CNTR_EmbedEmDir&G206","v":"EmbedEmDir_"},{"$f":"IF(G206=\"\",\"\",SUM(L252*L253-M252*M253))","v":""},null,{"$f":"IF(AND(L206<>\"\",X253=FALSE),IF(COUNTA(L253:M253)=2,TRUE,CONST_ErrorOrMissing&C206),CONST_NA)","v":"n.a."},null,{"$f":"X252","v":false}]
[]
[{"$nulls":3},"(i)",{"$f":"Translations!$B$256","v":"Waste gases"},{"$nulls":5},{"$f":"Translations!$B$221","v":"Unit"},{"$f":"Translations!$B$263","v":"Imported"},{"$f":"Translations!$B$264","v":"Exported"},{"$nulls":9},"cond.form.",{"$f":"AND(L245<>\"\",L245=FALSE)","v":false}]
[{"$nulls":3},"i.",{"$f":"Translations!$B$267","v":"Amount of waste gas"},{"$nulls":5},{"$f":"CONST_TJ","v":"TJ"},{"$nulls":10},{"$f":"IF(AND(L206<>\"\",X256=FALSE),IF(COUNTA(L256:M256)=2,TRUE,CONST_ErrorOrMissing&C206),CONST_NA)","v":"n.a."},null,{"$f":"X255","v":false}]
[{"$nulls":3},"ii.",{"$f":"Translations!$B$268","v":"Emission factor"},{"$nulls":5},{"$f":"CONST_tCO2pTJ","v":"tCO2/TJ"},{"$nulls":6},{"$f":"CONST_EmDirWasteGases&G206","v":"EmDirWG_"},{"$f":"CONST_CNTR_EmbedEmDir&G206","v":"EmbedEmDir_"},{"$f":"IF(G206=\"\",\"\",SUM(L256*CONST_EFNatGas-M256*CONST_EFNatGas*0.667))","v":""},{"$nulls":3},{"$f":"X256","v":false}]
[]
[{"$nulls":3},"(j)",{"$f":"Translations!$B$269","v":"Indirect emissions from electricity consumption"},{"$nulls":5},{"$f":"Translations!$B$221","v":"Unit"},{"$f":"Translations!$B$260","v":"Value"},{"$nulls":10},"cond.form.",{"$f":"M245=FALSE","v":false}]
[{"$nulls":3},"i.",{"$f":"Translations!$B$270","v":"Electricity consumption"},{"$nulls":5},{"$f":"CONST_MWh","v":"MWh"},{"$nulls":6},{"$f":"CONST_ElecConsumption&G206","v":"ElecCons_"},null,{"$f":"IF(G206=\"\",\"\",L260)","v":""},null,{"$f":"IF(AND(L206<>\"\",X260=FALSE),IF(L260<>\"\",TRUE,CONST_ErrorOrMissing&C206),CONST_NA)","v":"n.a."},null,{"$f":"X259","v":false}]
[{"$nulls":3},"ii.",{"$f":"Translations!$B$271","v":"Emission factor of the electricity"},{"$nulls":5},{"$f":"CONST_tCO2&\"/\"&CONST_MWh","v":"tCO2/MWh"},{"$nulls":7},{"$f":"CONST_CNTR_EmbedEmInDir&G206","v":"EmbedEmInDir_"},{"$f":"IF(G206=\"\",\"\",SUM(L260)*SUM(L261))","v":""},null,{"$f":"IF(AND(L206<>\"\",X261=FALSE),IF(L261<>\"\",TRUE,CONST_ErrorOrMissing&C206),CONST_NA)","v":"n.a."},null,{"$f":"X260","v":false}]
[{"$nulls":3},"iii.",{"$f":"Translations!$B$272","v":"Source of the emission factor"},{"$nulls":5},"-",{"$nulls":6},{"$f":"CONST_CNTR_ElecEFMethod&G206","v":"ElecEFMeth_"},null,{"$f":"IF(L262=\"\",\"\",L262)","v":""},null,{"$f":"IF(AND(L206<>\"\",X262=FALSE),IF(L262<>\"\",TRUE,CONST_ErrorOrMissing&C206),CONST_NA)","v":"n.a."},null,{"$f":"X261","v":false}]
[]
[]
[{"$nulls":3},"(k)",{"$f":"Translations!$B$273","v":"Electricity exported from the production process"},{"$nulls":5},{"$f":"Translations!$B$221","v":"Unit"},{"$f":"Translations!$B$260","v":"Value"}]
[{"$nulls":3},"i.",{"$f":"Translations!$B$274","v":"Amounts exported"},{"$nulls":5},"MWh",{"$nulls":10},{"$f":"IF(L206<>\"\",IF(L266<>\"\",TRUE,CONST_ErrorOrMissing&C206),CONST_NA)","v":"n.a."}]
[{"$nulls":3},"ii.",{"$f":"Translations!$B$271","v":"Emission factor of the electricity"},{"$nulls":5},{"$f":"CONST_tCO2&\"/\"&CONST_MWh","v":"tCO2/MWh"},{"$nulls":7},{"$f":"CONST_CNTR_EmbedEmDir&G206","v":"EmbedEmDir_"},{"$f":"IF(G206=\"\",\"\",-SUM(L266)*SUM(L267))","v":""},null,{"$f":"IF(AND(L206<>\"\",SUM(L266)>0),IF(L267<>\"\",TRUE,CONST_ErrorOrMissing&C206),CONST_NA)","v":"n.a."}]
[]
[]
[]
[null,null,{"$f":"C206+1","v":5},{"$f":"CONST_ProductionProcess&\" \"&C271&\":\"","v":"Production process 5:"},null,null,{"$f":"IF(INDEX(CNTR_List_ExistProdProcNames,R271)=CONST_NA,\"\",INDEX(CNTR_List_ExistProdProcNames,R271))","v":""},{"$nulls":4},{"$f":"IF(INDEX(CNTR_List_ExistProdProc,R271)=CONST_NA,\"\",INDEX(CNTR_List_ExistProdProc,R271))","v":""},{"$nulls":5},{"$f":"C271","v":5},{"$nulls":4},"Not relevant:",{"$f":"AND(CNTR_HasEntriesA,G271=\"\")","v":false}]
[]
[{"$nulls":4},{"$f":"HYPERLINK(\"#\"&ADDRESS(MATCH($S273,G_FurtherGuidance!$S:$S,0),3,,,G_FurtherGuidance!$U$2),CONST_LinkToGuidanceSheet)","v":"Please click on this link for further guidance on how to complete this section."},{"$nulls":12},"Link to guidance:",3]
[]
[{"$nulls":3},"(a) ",{"$f":"Translations!$B$243","v":"Total production levels:"},null,null,{"$f":"Translations!$B$244","v":"Production route"},null,null,{"$f":"Translations!$B$221","v":"Unit"},{"$f":"Translations!$B$245","v":"Amounts"}]
[{"$nulls":3},1,{"$f":"IF(G271=\"\",\"\",G271)&IF(L271=\"\",\"\",\" | \"&L271)","v":""},null,null,{"$f":"IF(L271=\"\",\"\",INDEX(CONST_MATRIX_ProductionRoute,MATCH(L271,CONST_LIST_Goods,0),D276))","v":""},null,null,{"$f":"IF(L271=\"\",\"\",INDEX(CONST_LIST_GoodsUnit,MATCH(L271,CONST_LIST_Goods,0)))","v":""},{"$nulls":7},1,null,null,{"$f":"IF(AND(G271<>\"\",E276<>\"\",L276<>\"\"),TRUE,IF(AND(G271<>\"\",OR(AND(E276<>\"\",L276=\"\"),AND(E276=\"\",L276<>\"\"))),CONST_ErrorOrMissing&C271,CONST_NA))","v":"n.a."}]
[{"$nulls":3},2,{"$f":"IF(H277=CONST_NA,\"\",E276)","v":""},null,null,{"$f":"IF(L271=\"\",\"\",INDEX(CONST_MATRIX_ProductionRoute,MATCH(L271,CONST_LIST_Goods,0),D277))","v":""},null,null,{"$f":"IF(H277=CONST_NA,\"\",K276)","v":""},{"$nulls":7},2,null,null,{"$f":"IF(AND(G271<>\"\",E277<>\"\",L277<>\"\"),TRUE,IF(AND(G271<>\"\",OR(AND(E277<>\"\",L277=\"\"),AND(E277=\"\",L277<>\"\"))),CONST_ErrorOrMissing&C271,CONST_NA))","v":"n.a."}]
[{"$nulls":3},3,"",null,null,{"$f":"IF(L271=\"\",\"\",INDEX(CONST_MATRIX_ProductionRoute,MATCH(L271,CONST_LIST_Goods,0),D278))","v":""},null,null,"",{"$nulls":7},3,null,null,{"$f":"IF(AND(G271<>\"\",E278<>\"\",L278<>\"\"),TRUE,IF(AND(G271<>\"\",OR(AND(E278<>\"\",L278=\"\"),AND(E278=\"\",L278<>\"\"))),CONST_ErrorOrMissing&C271,CONST_NA))","v":"n.a."}]
[{"$nulls":3},4,"",null,null,{"$f":"IF(L271=\"\",\"\",INDEX(CONST_MATRIX_ProductionRoute,MATCH(L271,CONST_LIST_Goods,0),D279))","v":""},null,null,"",{"$nulls":7},4,null,null,{"$f":"IF(AND(G271<>\"\",E279<>\"\",L279<>\"\"),TRUE,IF(AND(G271<>\"\",OR(AND(E279<>\"\",L279=\"\"),AND(E279=\"\",L279<>\"\"))),CONST_ErrorOrMissing&C271,CONST_NA))","v":"n.a."}]
[{"$nulls":3},5,"",null,null,{"$f":"IF(L271=\"\",\"\",INDEX(CONST_MATRIX_ProductionRoute,MATCH(L271,CONST_LIST_Goods,0),D280))","v":""},null,null,"",{"$nulls":7},5,null,null,{"$f":"IF(AND(G271<>\"\",E280<>\"\",L280<>\"\"),TRUE,IF(AND(G271<>\"\",OR(AND(E280<>\"\",L280=\"\"),AND(E280=\"\",L280<>\"\"))),CONST_ErrorOrMissing&C271,CONST_NA))","v":"n.a."}]
[{"$nulls":3},6,"",null,null,{"$f":"IF(L271=\"\",\"\",INDEX(CONST_MATRIX_ProductionRoute,MATCH(L271,CONST_LIST_Goods,0),D281))","v":""},null,null,"",{"$nulls":7},6,null,null,{"$f":"IF(AND(G271<>\"\",E281<>\"\",L281<>\"\"),TRUE,IF(AND(G271<>\"\",OR(AND(E281<>\"\",L281=\"\"),AND(E281=\"\",L281<>\"\"))),CONST_ErrorOrMissing&C271,CONST_NA))","v":"n.a."}]
[{"$nulls":3},7,"",null,null,{"$f":"IF(L271=\"\",\"\",INDEX(CONST_MATRIX_ProductionRoute,MATCH(L271,CONST_LIST_Goods,0),D282))","v":""},null,null,"",{"$nulls":7},7,null,null,{"$f":"IF(AND(G271<>\"\",E282<>\"\",L282<>\"\"),TRUE,IF(AND(G271<>\"\",OR(AND(E282<>\"\",L282=\"\"),AND(E282=\"\",L282<>\"\"))),CONST_ErrorOrMissing&C271,CONST_NA))","v":"n.a."}]
[{"$nulls":3},8,"",null,null,{"$f":"IF(L271=\"\",\"\",INDEX(CONST_MATRIX_ProductionRoute,MATCH(L271,CONST_LIST_Goods,0),D283))","v":""},null,null,"",{"$nulls":7},8,null,null,{"$f":"IF(AND(G271<>\"\",E283<>\"\",L283<>\"\"),TRUE,IF(AND(G271<>\"\",OR(AND(E283<>\"\",L283=\"\"),AND(E283=\"\",L283<>\"\"))),CONST_ErrorOrMissing&C271,CONST_NA))","v":"n.a."}]
[{"$nulls":4},{"$f":"Translations!$B$246","v":"Total production within installation (= denominator for SEE calculation):"},{"$nulls":5},{"$f":"K276","v":""},{"$f":"IF(G271=\"\",\"\",SUM(L276:L283))","v":""},{"$nulls":5},{"$f":"CONST_CNTR_TotProd&G271","v":"TotProd_"},null,{"$f":"IF(G271=\"\",\"\",L284)","v":""}]
[]
[{"$nulls":3},"(b)",{"$f":"Translations!$B$247","v":"Production details"},{"$nulls":5},{"$f":"Translations!$B$221","v":"Unit"},{"$f":"Translations!$B$245","v":"Amounts"}]
[{"$nulls":3},"i.",{"$f":"Translations!$B$248","v":"Produced for the market"},{"$nulls":5},{"$f":"K276","v":""},{"$nulls":6},{"$f":"CONST_GoodToMarket&G271","v":"ToMarket_"},null,{"$f":"IF($G$11=\"\",\"\",L287)","v":""},null,{"$f":"IF(AND(G271<>\"\",L287<>\"\"),TRUE,IF(AND(G271<>\"\",OR(L287=\"\",L276<>\"\")),CONST_ErrorOrMissing&C271,CONST_NA))","v":"n.a."}]
[{"$nulls":3},"ii.",{"$f":"Translations!$B$249","v":"Share of total under (a) produced for the market"},{"$nulls":6},{"$f":"IF(AND(COUNT(L284,L287)=2,SUM(L284>0)),SUM(L287)/SUM(L284),\"\")","v":""}]
[{"$nulls":3},"iii.",{"$f":"Translations!$B$250","v":"Total production only for the market?"},{"$nulls":6},{"$f":"IF(G271=\"\",\"\",AND(SUM(L284)>0,SUM(L284)=SUM(L287)))","v":""}]
[]
[{"$nulls":3},"(c)",{"$f":"Translations!$B$251","v":"Consumed in other 'production processes' within the installation:"},{"$nulls":5},{"$f":"Translations!$B$221","v":"Unit"},{"$f":"Translations!$B$245","v":"Amounts"},{"$nulls":6},"Numbering",{"$nulls":3},"cond.form.",{"$f":"IF(G271=\"\",FALSE,L289)","v":false}]
[{"$nulls":3},1,{"$f":"IF(INDEX(CNTR_List_ExistProdProcNames,S292)=CONST_NA,\"\",INDEX(CNTR_List_ExistProdProcNames,S292))","v":""},{"$nulls":5},{"$f":"K276","v":""},{"$nulls":6},{"$f":"CONST_PrecursorToGoodInput&G271&\"_\"&E292","v":"PrecToGood__"},{"$f":"MAX(S291:S291)+IF(D292=C271,2,1)","v":1},{"$f":"IF(G271=\"\",\"\",L292)","v":""},null,{"$f":"IF(AND(G271<>\"\",E292<>\"\",L292<>\"\"),TRUE,IF(AND(G271<>\"\",E292<>\"\",L292=\"\",X292=FALSE),CONST_ErrorOrMissing&C271,CONST_NA))","v":"n.a."},"cond.form.",{"$f":"IF(G271=\"\",FALSE,OR(L289,E292=\"\"))","v":false}]
[{"$nulls":3},2,"",{"$nulls":5},{"$f":"K292","v":""},{"$nulls":6},{"$f":"CONST_PrecursorToGoodInput&G271&\"_\"&E293","v":"PrecToGood__"},{"$f":"MAX(S291:S292)+IF(D293=C271,2,1)","v":2},{"$f":"IF(G271=\"\",\"\",L293)","v":""},null,{"$f":"IF(AND(G271<>\"\",E293<>\"\",L293<>\"\"),TRUE,IF(AND(G271<>\"\",E293<>\"\",L293=\"\",X293=FALSE),CONST_ErrorOrMissing&C271,CONST_NA))","v":"n.a."},null,{"$f":"IF(G271=\"\",FALSE,OR(L289,E293=\"\"))","v":false}]
[{"$nulls":3},3,"",{"$nulls":5},{"$f":"K293","v":""},{"$nulls":6},{"$f":"CONST_PrecursorToGoodInput&G271&\"_\"&E294","v":"PrecToGood__"},{"$f":"MAX(S291:S293)+IF(D294=C271,2,1)","v":3},{"$f":"IF(G271=\"\",\"\",L294)","v":""},null,{"$f":"IF(AND(G271<>\"\",E294<>\"\",L294<>\"\"),TRUE,IF(AND(G271<>\"\",E294<>\"\",L294=\"\",X294=FALSE),CONST_ErrorOrMissing&C271,CONST_NA))","v":"n.a."},null,{"$f":"IF(G271=\"\",FALSE,OR(L289,E294=\"\"))","v":false}]
[{"$nulls":3},4,"",{"$nulls":5},"",{"$nulls":6},{"$f":"CONST_PrecursorToGoodInput&G271&\"_\"&E295","v":"PrecToGood__"},{"$f":"MAX(S291:S294)+IF(D295=C271,2,1)","v":4},{"$f":"IF(G271=\"\",\"\",L295)","v":""},null,{"$f":"IF(AND(G271<>\"\",E295<>\"\",L295<>\"\"),TRUE,IF(AND(G271<>\"\",E295<>\"\",L295=\"\",X295=FALSE),CONST_ErrorOrMissing&C271,CONST_NA))","v":"n.a."},null,{"$f":"IF(G271=\"\",FALSE,OR(L289,E295=\"\"))","v":false}]
[{"$nulls":3},5,"",{"$nulls":5},"",{"$nulls":6},{"$f":"CONST_PrecursorToGoodInput&G271&\"_\"&E296","v":"PrecToGood__"},{"$f":"MAX(S291:S295)+IF(D296=C271,2,1)","v":6},{"$f":"IF(G271=\"\",\"\",L296)","v":""},null,{"$f":"IF(AND(G271<>\"\",E296<>\"\",L296<>\"\"),TRUE,IF(AND(G271<>\"\",E296<>\"\",L296=\"\",X296=FALSE),CONST_ErrorOrMissing&C271,CONST_NA))","v":"n.a."},null,{"$f":"IF(G271=\"\",FALSE,OR(L289,E296=\"\"))","v":false}]
[{"$nulls":3},6,"",{"$nulls":5},"",{"$nulls":6},{"$f":"CONST_PrecursorToGoodInput&G271&\"_\"&E297","v":"PrecToGood__"},{"$f":"MAX(S291:S296)+IF(D297=C271,2,1)","v":7},{"$f":"IF(G271=\"\",\"\",L297)","v":""},null,{"$f":"IF(AND(G271<>\"\",E297<>\"\",L297<>\"\"),TRUE,IF(AND(G271<>\"\",E297<>\"\",L297=\"\",X297=FALSE),CONST_ErrorOrMissing&C271,CONST_NA))","v":"n.a."},null,{"$f":"IF(G271=\"\",FALSE,OR(L289,E297=\"\"))","v":false}]
[{"$nulls":3},7,"",{"$nulls":5},"",{"$nulls":6},{"$f":"CONST_PrecursorToGoodInput&G271&\"_\"&E298","v":"PrecToGood__"},{"$f":"MAX(S291:S297)+IF(D298=C271,2,1)","v":8},{"$f":"IF(G271=\"\",\"\",L298)","v":""},null,{"$f":"IF(AND(G271<>\"\",E298<>\"\",L298<>\"\"),TRUE,IF(AND(G271<>\"\",E298<>\"\",L298=\"\",X298=FALSE),CONST_ErrorOrMissing&C271,CONST_NA))","v":"n.a."},null,{"$f":"IF(G271=\"\",FALSE,OR(L289,E298=\"\"))","v":false}]
[{"$nulls":3},8,"",{"$nulls":5},"",{"$nulls":6},{"$f":"CONST_PrecursorToGoodInput&G271&\"_\"&E299","v":"PrecToGood__"},{"$f":"MAX(S291:S298)+IF(D299=C271,2,1)","v":9},{"$f":"IF(G271=\"\",\"\",L299)","v":""},null,{"$f":"IF(AND(G271<>\"\",E299<>\"\",L299<>\"\"),TRUE,IF(AND(G271<>\"\",E299<>\"\",L299=\"\",X299=FALSE),CONST_ErrorOrMissing&C271,CONST_NA))","v":"n.a."},null,{"$f":"IF(G271=\"\",FALSE,OR(L289,E299=\"\"))","v":false}]
[{"$nulls":3},9,"",{"$nulls":5},"",{"$nulls":6},{"$f":"CONST_PrecursorToGoodInput&G271&\"_\"&E300","v":"PrecToGood__"},{"$f":"MAX(S291:S299)+IF(D300=C271,2,1)","v":10},{"$f":"IF(G271=\"\",\"\",L300)","v":""},null,{"$f":"IF(AND(G271<>\"\",E300<>\"\",L300<>\"\"),TRUE,IF(AND(G271<>\"\",E300<>\"\",L300=\"\",X300=FALSE),CONST_ErrorOrMissing&C271,CONST_NA))","v":"n.a."},null,{"$f":"IF(G271=\"\",FALSE,OR(L289,E300=\"\"))","v":false}]
[{"$nulls":3},"(d)",{"$f":"Translations!$B$252","v":"Consumed for non-CBAM goods within the installation:"},{"$nulls":5},"",{"$nulls":10},{"$f":"IF(AND(G271<>\"\",L301<>\"\"),TRUE,IF(AND(G271<>\"\",L301=\"\",X301=FALSE),CONST_ErrorOrMissing&C271,CONST_NA))","v":"n.a."},"cond.form.",{"$f":"IF(G271=\"\",FALSE,L289)","v":false}]
[{"$nulls":3},"(e)",{"$f":"Translations!$B$253","v":"Control:"},{"$nulls":5},"",{"$f":"IF(G271=\"\",\"\",SUM(L284)-SUM(L287,L292:L301))","v":""},{"$nulls":9},{"$f":"IF(AND(G271<>\"\",L302=0),TRUE,IF(AND(G271<>\"\",L302<>0,X302=FALSE),CONST_ErrorOrMissing&C271,CONST_NA))","v":"n.a."},null,{"$f":"IF(G271=\"\",FALSE,L289)","v":false}]
[]
[]
[{"$nulls":3},{"$f":"Translations!$B$254","v":"Calculation of the attributed emissions:"},{"$nulls":5},{"$f":"IF(G271=\"\",\"\",G271)","v":""}]
[]
[{"$nulls":4},{"$f":"HYPERLINK(\"#\"&ADDRESS(MATCH($S307,G_FurtherGuidance!$S:$S,0),3,,,G_FurtherGuidance!$U$2),CONST_LinkToGuidanceSheet)","v":"Please click on this link for further guidance on how to complete this section."},{"$nulls":12},"Link to guidance:",3]
[]
[{"$nulls":10},{"$f":"Translations!$B$255","v":"Measurable heat"},{"$f":"Translations!$B$256","v":"Waste gases"},{"$f":"Translations!$B$257","v":"Indirect emissions"}]
[{"$nulls":3},"(f)",{"$f":"Translations!$B$258","v":"Please select which elements are applicable"},{"$nulls":7},{"$f":"IF(L271=\"\",\"\",INDEX(CONST_LIST_GoodsIndRel,MATCH(L271,CONST_LIST_Goods,0)))","v":""},{"$nulls":8},{"$f":"IF(AND(L271<>\"\",X310=FALSE),IF(COUNTA(K310:L310)=2,TRUE,CONST_ErrorOrMissing&C271),CONST_NA)","v":"n.a."}]
[{"$nulls":4},{"$f":"Translations!$B$259","v":"Based on your selection, related sections below might become irrelevant and greyed out below."}]
[]
[{"$nulls":10},{"$f":"Translations!$B$221","v":"Unit"},{"$f":"Translations!$B$260","v":"Value"}]
[{"$nulls":3},"(g)",{"$f":"Translations!$B$261","v":"Directly attributable emissions (DirEm*)"},{"$nulls":5},{"$f":"CONST_tCO2eq","v":"tCO2e"},{"$nulls":6},{"$f":"CONST_EmDir&G271","v":"EmDir_"},{"$f":"CONST_CNTR_EmbedEmDir&G271","v":"EmbedEmDir_"},{"$f":"IF(G271=\"\",\"\",L314)","v":""},null,{"$f":"IF(L271<>\"\",IF(L314<>\"\",TRUE,CONST_ErrorOrMissing&C271),CONST_NA)","v":"n.a."}]
[]
[{"$nulls":3},"(h)",{"$f":"Translations!$B$262","v":"Import and export of measurable heat"},{"$nulls":5},{"$f":"Translations!$B$221","v":"Unit"},{"$f":"Translations!$B$263","v":"Imported"},{"$f":"Translations!$B$264","v":"Exported"},{"$nulls":9},"cond.form.",{"$f":"AND(K310<>\"\",K310=FALSE)","v":false}]
[{"$nulls":3},"i.",{"$f":"Translations!$B$265","v":"Amount of net measurable heat"},{"$nulls":5},"TJ",{"$nulls":10},{"$f":"IF(AND(L271<>\"\",X317=FALSE),IF(COUNTA(L317:M317)=2,TRUE,CONST_ErrorOrMissing&C271),CONST_NA)","v":"n.a."},null,{"$f":"X316","v":false}]
[{"$nulls":3},"ii.",{"$f":"Translations!$B$266","v":"Emissions factor"},{"$nulls":5},{"$f":"CONST_tCO2pTJ","v":"tCO2/TJ"},{"$nulls":6},{"$f":"CONST_EmDirHeat&G271","v":"EmDirHeat_"},{"$f":"CONST_CNTR_EmbedEmDir&G271","v":"EmbedEmDir_"},{"$f":"IF(G271=\"\",\"\",SUM(L317*L318-M317*M318))","v":""},null,{"$f":"IF(AND(L271<>\"\",X318=FALSE),IF(COUNTA(L318:M318)=2,TRUE,CONST_ErrorOrMissing&C271),CONST_NA)","v":"n.a."},null,{"$f":"X317","v":false}]
[]
[{"$nulls":3},"(i)",{"$f":"Translations!$B$256","v":"Waste gases"},{"$nulls":5},{"$f":"Translations!$B$221","v":"Unit"},{"$f":"Translations!$B$263","v":"Imported"},{"$f":"Translations!$B$264","v":"Exported"},{"$nulls":9},"cond.form.",{"$f":"AND(L310<>\"\",L310=FALSE)","v":false}]
[{"$nulls":3},"i.",{"$f":"Translations!$B$267","v":"Amount of waste gas"},{"$nulls":5},{"$f":"CONST_TJ","v":"TJ"},{"$nulls":10},{"$f":"IF(AND(L271<>\"\",X321=FALSE),IF(COUNTA(L321:M321)=2,TRUE,CONST_ErrorOrMissing&C271),CONST_NA)","v":"n.a."},null,{"$f":"X320","v":false}]
[{"$nulls":3},"ii.",{"$f":"Translations!$B$268","v":"Emission factor"},{"$nulls":5},{"$f":"CONST_tCO2pTJ","v":"tCO2/TJ"},{"$nulls":6},{"$f":"CONST_EmDirWasteGases&G271","v":"EmDirWG_"},{"$f":"CONST_CNTR_EmbedEmDir&G271","v":"EmbedEmDir_"},{"$f":"IF(G271=\"\",\"\",SUM(L321*CONST_EFNatGas-M321*CONST_EFNatGas*0.667))","v":""},{"$nulls":3},{"$f":"X321","v":false}]
[]
[{"$nulls":3},"(j)",{"$f":"Translations!$B$269","v":"Indirect emissions from electricity consumption"},{"$nulls":5},{"$f":"Translations!$B$221","v":"Unit"},{"$f":"Translations!$B$260","v":"Value"},{"$nulls":10},"cond.form.",{"$f":"M310=FALSE","v":false}]
[{"$nulls":3},"i.",{"$f":"Translations!$B$270","v":"Electricity consumption"},{"$nulls":5},{"$f":"CONST_MWh","v":"MWh"},{"$nulls":6},{"$f":"CONST_ElecConsumption&G271","v":"ElecCons_"},null,{"$f":"IF(G271=\"\",\"\",L325)","v":""},null,{"$f":"IF(AND(L271<>\"\",X325=FALSE),IF(L325<>\"\",TRUE,CONST_ErrorOrMissing&C271),CONST_NA)","v":"n.a."},null,{"$f":"X324","v":false}]
[{"$nulls":3},"ii.",{"$f":"Translations!$B$271","v":"Emission factor of the electricity"},{"$nulls":5},{"$f":"CONST_tCO2&\"/\"&CONST_MWh","v":"tCO2/MWh"},{"$nulls":7},{"$f":"CONST_CNTR_EmbedEmInDir&G271","v":"EmbedEmInDir_"},{"$f":"IF(G271=\"\",\"\",SUM(L325)*SUM(L326))","v":""},null,{"$f":"IF(AND(L271<>\"\",X326=FALSE),IF(L326<>\"\",TRUE,CONST_ErrorOrMissing&C271),CONST_NA)","v":"n.a."},null,{"$f":"X325","v":false}]
[{"$nulls":3},"iii.",{"$f":"Translations!$B$272","v":"Source of the emission factor"},{"$nulls":5},"-",{"$nulls":6},{"$f":"CONST_CNTR_ElecEFMethod&G271","v":"ElecEFMeth_"},null,{"$f":"IF(L327=\"\",\"\",L327)","v":""},null,{"$f":"IF(AND(L271<>\"\",X327=FALSE),IF(L327<>\"\",TRUE,CONST_ErrorOrMissing&C271),CONST_NA)","v":"n.a."},null,{"$f":"X326","v":false}]
[]
[]
[{"$nulls":3},"(k)",{"$f":"Translations!$B$273","v":"Electricity exported from the production process"},{"$nulls":5},{"$f":"Translations!$B$221","v":"Unit"},{"$f":"Translations!$B$260","v":"Value"}]
[{"$nulls":3},"i.",{"$f":"Translations!$B$274","v":"Amounts exported"},{"$nulls":5},"MWh",{"$nulls":10},{"$f":"IF(L271<>\"\",IF(L331<>\"\",TRUE,CONST_ErrorOrMissing&C271),CONST_NA)","v":"n.a."}]
[{"$nulls":3},"ii.",{"$f":"Translations!$B$271","v":"Emission factor of the electricity"},{"$nulls":5},{"$f":"CONST_tCO2&\"/\"&CONST_MWh","v":"tCO2/MWh"},{"$nulls":7},{"$f":"CONST_CNTR_EmbedEmDir&G271","v":"EmbedEmDir_"},{"$f":"IF(G271=\"\",\"\",-SUM(L331)*SUM(L332))","v":""},null,{"$f":"IF(AND(L271<>\"\",SUM(L331)>0),IF(L332<>\"\",TRUE,CONST_ErrorOrMissing&C271),CONST_NA)","v":"n.a."}]
[]
[]
[]
[null,null,{"$f":"C271+1","v":6},{"$f":"CONST_ProductionProcess&\" \"&C336&\":\"","v":"Production process 6:"},null,null,{"$f":"IF(INDEX(CNTR_List_ExistProdProcNames,R336)=CONST_NA,\"\",INDEX(CNTR_List_ExistProdProcNames,R336))","v":""},{"$nulls":4},{"$f":"IF(INDEX(CNTR_List_ExistProdProc,R336)=CONST_NA,\"\",INDEX(CNTR_List_ExistProdProc,R336))","v":""},{"$nulls":5},{"$f":"C336","v":6},{"$nulls":4},"Not relevant:",{"$f":"AND(CNTR_HasEntriesA,G336=\"\")","v":false}]
[]
[{"$nulls":4},{"$f":"HYPERLINK(\"#\"&ADDRESS(MATCH($S338,G_FurtherGuidance!$S:$S,0),3,,,G_FurtherGuidance!$U$2),CONST_LinkToGuidanceSheet)","v":"Please click on this link for further guidance on how to complete this section."},{"$nulls":12},"Link to guidance:",3]
[]
[{"$nulls":3},"(a) ",{"$f":"Translations!$B$243","v":"Total production levels:"},null,null,{"$f":"Translations!$B$244","v":"Production route"},null,null,{"$f":"Translations!$B$221","v":"Unit"},{"$f":"Translations!$B$245","v":"Amounts"}]
[{"$nulls":3},1,{"$f":"IF(G336=\"\",\"\",G336)&IF(L336=\"\",\"\",\" | \"&L336)","v":""},null,null,{"$f":"IF(L336=\"\",\"\",INDEX(CONST_MATRIX_ProductionRoute,MATCH(L336,CONST_LIST_Goods,0),D341))","v":""},null,null,{"$f":"IF(L336=\"\",\"\",INDEX(CONST_LIST_GoodsUnit,MATCH(L336,CONST_LIST_Goods,0)))","v":""},{"$nulls":7},1,null,null,{"$f":"IF(AND(G336<>\"\",E341<>\"\",L341<>\"\"),TRUE,IF(AND(G336<>\"\",OR(AND(E341<>\"\",L341=\"\"),AND(E341=\"\",L341<>\"\"))),CONST_ErrorOrMissing&C336,CONST_NA))","v":"n.a."}]
[{"$nulls":3},2,{"$f":"IF(H342=CONST_NA,\"\",E341)","v":""},null,null,{"$f":"IF(L336=\"\",\"\",INDEX(CONST_MATRIX_ProductionRoute,MATCH(L336,CONST_LIST_Goods,0),D342))","v":""},null,null,{"$f":"IF(H342=CONST_NA,\"\",K341)","v":""},{"$nulls":7},2,null,null,{"$f":"IF(AND(G336<>\"\",E342<>\"\",L342<>\"\"),TRUE,IF(AND(G336<>\"\",OR(AND(E342<>\"\",L342=\"\"),AND(E342=\"\",L342<>\"\"))),CONST_ErrorOrMissing&C336,CONST_NA))","v":"n.a."}]
[{"$nulls":3},3,"",null,null,{"$f":"IF(L336=\"\",\"\",INDEX(CONST_MATRIX_ProductionRoute,MATCH(L336,CONST_LIST_Goods,0),D343))","v":""},null,null,"",{"$nulls":7},3,null,null,{"$f":"IF(AND(G336<>\"\",E343<>\"\",L343<>\"\"),TRUE,IF(AND(G336<>\"\",OR(AND(E343<>\"\",L343=\"\"),AND(E343=\"\",L343<>\"\"))),CONST_ErrorOrMissing&C336,CONST_NA))","v":"n.a."}]
[{"$nulls":3},4,"",null,null,{"$f":"IF(L336=\"\",\"\",INDEX(CONST_MATRIX_ProductionRoute,MATCH(L336,CONST_LIST_Goods,0),D344))","v":""},null,null,"",{"$nulls":7},4,null,null,{"$f":"IF(AND(G336<>\"\",E344<>\"\",L344<>\"\"),TRUE,IF(AND(G336<>\"\",OR(AND(E344<>\"\",L344=\"\"),AND(E344=\"\",L344<>\"\"))),CONST_ErrorOrMissing&C336,CONST_NA))","v":"n.a."}]
[{"$nulls":3},5,"",null,null,{"$f":"IF(L336=\"\",\"\",INDEX(CONST_MATRIX_ProductionRoute,MATCH(L336,CONST_LIST_Goods,0),D345))","v":""},null,null,"",{"$nulls":7},5,null,null,{"$f":"IF(AND(G336<>\"\",E345<>\"\",L345<>\"\"),TRUE,IF(AND(G336<>\"\",OR(AND(E345<>\"\",L345=\"\"),AND(E345=\"\",L345<>\"\"))),CONST_ErrorOrMissing&C336,CONST_NA))","v":"n.a."}]
[{"$nulls":3},6,"",null,null,{"$f":"IF(L336=\"\",\"\",INDEX(CONST_MATRIX_ProductionRoute,MATCH(L336,CONST_LIST_Goods,0),D346))","v":""},null,null,"",{"$nulls":7},6,null,null,{"$f":"IF(AND(G336<>\"\",E346<>\"\",L346<>\"\"),TRUE,IF(AND(G336<>\"\",OR(AND(E346<>\"\",L346=\"\"),AND(E346=\"\",L346<>\"\"))),CONST_ErrorOrMissing&C336,CONST_NA))","v":"n.a."}]
[{"$nulls":3},7,"",null,null,{"$f":"IF(L336=\"\",\"\",INDEX(CONST_MATRIX_ProductionRoute,MATCH(L336,CONST_LIST_Goods,0),D347))","v":""},null,null,"",{"$nulls":7},7,null,null,{"$f":"IF(AND(G336<>\"\",E347<>\"\",L347<>\"\"),TRUE,IF(AND(G336<>\"\",OR(AND(E347<>\"\",L347=\"\"),AND(E347=\"\",L347<>\"\"))),CONST_ErrorOrMissing&C336,CONST_NA))","v":"n.a."}]
[{"$nulls":3},8,"",null,null,{"$f":"IF(L336=\"\",\"\",INDEX(CONST_MATRIX_ProductionRoute,MATCH(L336,CONST_LIST_Goods,0),D348))","v":""},null,null,"",{"$nulls":7},8,null,null,{"$f":"IF(AND(G336<>\"\",E348<>\"\",L348<>\"\"),TRUE,IF(AND(G336<>\"\",OR(AND(E348<>\"\",L348=\"\"),AND(E348=\"\",L348<>\"\"))),CONST_ErrorOrMissing&C336,CONST_NA))","v":"n.a."}]
[{"$nulls":4},{"$f":"Translations!$B$246","v":"Total production within installation (= denominator for SEE calculation):"},{"$nulls":5},{"$f":"K341","v":""},{"$f":"IF(G336=\"\",\"\",SUM(L341:L348))","v":""},{"$nulls":5},{"$f":"CONST_CNTR_TotProd&G336","v":"TotProd_"},null,{"$f":"IF(G336=\"\",\"\",L349)","v":""}]
[]
[{"$nulls":3},"(b)",{"$f":"Translations!$B$247","v":"Production details"},{"$nulls":5},{"$f":"Translations!$B$221","v":"Unit"},{"$f":"Translations!$B$245","v":"Amounts"}]
[{"$nulls":3},"i.",{"$f":"Translations!$B$248","v":"Produced for the market"},{"$nulls":5},{"$f":"K341","v":""},{"$nulls":6},{"$f":"CONST_GoodToMarket&G336","v":"ToMarket_"},null,{"$f":"IF($G$11=\"\",\"\",L352)","v":""},null,{"$f":"IF(AND(G336<>\"\",L352<>\"\"),TRUE,IF(AND(G336<>\"\",OR(L352=\"\",L341<>\"\")),CONST_ErrorOrMissing&C336,CONST_NA))","v":"n.a."}]
[{"$nulls":3},"ii.",{"$f":"Translations!$B$249","v":"Share of total under (a) produced for the market"},{"$nulls":6},{"$f":"IF(AND(COUNT(L349,L352)=2,SUM(L349>0)),SUM(L352)/SUM(L349),\"\")","v":""}]
[{"$nulls":3},"iii.",{"$f":"Translations!$B$250","v":"Total production only for the market?"},{"$nulls":6},{"$f":"IF(G336=\"\",\"\",AND(SUM(L349)>0,SUM(L349)=SUM(L352)))","v":""}]
[]
[{"$nulls":3},"(c)",{"$f":"Translations!$B$251","v":"Consumed in other 'production processes' within the installation:"},{"$nulls":5},{"$f":"Translations!$B$221","v":"Unit"},{"$f":"Translations!$B$245","v":"Amounts"},{"$nulls":6},"Numbering",{"$nulls":3},"cond.form.",{"$f":"IF(G336=\"\",FALSE,L354)","v":false}]
[{"$nulls":3},1,{"$f":"IF(INDEX(CNTR_List_ExistProdProcNames,S357)=CONST_NA,\"\",INDEX(CNTR_List_ExistProdProcNames,S357))","v":""},{"$nulls":5},{"$f":"K341","v":""},{"$nulls":6},{"$f":"CONST_PrecursorToGoodInput&G336&\"_\"&E357","v":"PrecToGood__"},{"$f":"MAX(S356:S356)+IF(D357=C336,2,1)","v":1},{"$f":"IF(G336=\"\",\"\",L357)","v":""},null,{"$f":"IF(AND(G336<>\"\",E357<>\"\",L357<>\"\"),TRUE,IF(AND(G336<>\"\",E357<>\"\",L357=\"\",X357=FALSE),CONST_ErrorOrMissing&C336,CONST_NA))","v":"n.a."},"cond.form.",{"$f":"IF(G336=\"\",FALSE,OR(L354,E357=\"\"))","v":false}]
[{"$nulls":3},2,"",{"$nulls":5},{"$f":"K357","v":""},{"$nulls":6},{"$f":"CONST_PrecursorToGoodInput&G336&\"_\"&E358","v":"PrecToGood__"},{"$f":"MAX(S356:S357)+IF(D358=C336,2,1)","v":2},{"$f":"IF(G336=\"\",\"\",L358)","v":""},null,{"$f":"IF(AND(G336<>\"\",E358<>\"\",L358<>\"\"),TRUE,IF(AND(G336<>\"\",E358<>\"\",L358=\"\",X358=FALSE),CONST_ErrorOrMissing&C336,CONST_NA))","v":"n.a."},null,{"$f":"IF(G336=\"\",FALSE,OR(L354,E358=\"\"))","v":false}]
[{"$nulls":3},3,"",{"$nulls":5},{"$f":"K358","v":""},{"$nulls":6},{"$f":"CONST_PrecursorToGoodInput&G336&\"_\"&E359","v":"PrecToGood__"},{"$f":"MAX(S356:S358)+IF(D359=C336,2,1)","v":3},{"$f":"IF(G336=\"\",\"\",L359)","v":""},null,{"$f":"IF(AND(G336<>\"\",E359<>\"\",L359<>\"\"),TRUE,IF(AND(G336<>\"\",E359<>\"\",L359=\"\",X359=FALSE),CONST_ErrorOrMissing&C336,CONST_NA))","v":"n.a."},null,{"$f":"IF(G336=\"\",FALSE,OR(L354,E359=\"\"))","v":false}]
[{"$nulls":3},4,"",{"$nulls":5},"",{"$nulls":6},{"$f":"CONST_PrecursorToGoodInput&G336&\"_\"&E360","v":"PrecToGood__"},{"$f":"MAX(S356:S359)+IF(D360=C336,2,1)","v":4},{"$f":"IF(G336=\"\",\"\",L360)","v":""},null,{"$f":"IF(AND(G336<>\"\",E360<>\"\",L360<>\"\"),TRUE,IF(AND(G336<>\"\",E360<>\"\",L360=\"\",X360=FALSE),CONST_ErrorOrMissing&C336,CONST_NA))","v":"n.a."},null,{"$f":"IF(G336=\"\",FALSE,OR(L354,E360=\"\"))","v":false}]
[{"$nulls":3},5,"",{"$nulls":5},"",{"$nulls":6},{"$f":"CONST_PrecursorToGoodInput&G336&\"_\"&E361","v":"PrecToGood__"},{"$f":"MAX(S356:S360)+IF(D361=C336,2,1)","v":5},{"$f":"IF(G336=\"\",\"\",L361)","v":""},null,{"$f":"IF(AND(G336<>\"\",E361<>\"\",L361<>\"\"),TRUE,IF(AND(G336<>\"\",E361<>\"\",L361=\"\",X361=FALSE),CONST_ErrorOrMissing&C336,CONST_NA))","v":"n.a."},null,{"$f":"IF(G336=\"\",FALSE,OR(L354,E361=\"\"))","v":false}]
[{"$nulls":3},6,"",{"$nulls":5},"",{"$nulls":6},{"$f":"CONST_PrecursorToGoodInput&G336&\"_\"&E362","v":"PrecToGood__"},{"$f":"MAX(S356:S361)+IF(D362=C336,2,1)","v":7},{"$f":"IF(G336=\"\",\"\",L362)","v":""},null,{"$f":"IF(AND(G336<>\"\",E362<>\"\",L362<>\"\"),TRUE,IF(AND(G336<>\"\",E362<>\"\",L362=\"\",X362=FALSE),CONST_ErrorOrMissing&C336,CONST_NA))","v":"n.a."},null,{"$f":"IF(G336=\"\",FALSE,OR(L354,E362=\"\"))","v":false}]
[{"$nulls":3},7,"",{"$nulls":5},"",{"$nulls":6},{"$f":"CONST_PrecursorToGoodInput&G336&\"_\"&E363","v":"PrecToGood__"},{"$f":"MAX(S356:S362)+IF(D363=C336,2,1)","v":8},{"$f":"IF(G336=\"\",\"\",L363)","v":""},null,{"$f":"IF(AND(G336<>\"\",E363<>\"\",L363<>\"\"),TRUE,IF(AND(G336<>\"\",E363<>\"\",L363=\"\",X363=FALSE),CONST_ErrorOrMissing&C336,CONST_NA))","v":"n.a."},null,{"$f":"IF(G336=\"\",FALSE,OR(L354,E363=\"\"))","v":false}]
[{"$nulls":3},8,"",{"$nulls":5},"",{"$nulls":6},{"$f":"CONST_PrecursorToGoodInput&G336&\"_\"&E364","v":"PrecToGood__"},{"$f":"MAX(S356:S363)+IF(D364=C336,2,1)","v":9},{"$f":"IF(G336=\"\",\"\",L364)","v":""},null,{"$f":"IF(AND(G336<>\"\",E364<>\"\",L364<>\"\"),TRUE,IF(AND(G336<>\"\",E364<>\"\",L364=\"\",X364=FALSE),CONST_ErrorOrMissing&C336,CONST_NA))","v":"n.a."},null,{"$f":"IF(G336=\"\",FALSE,OR(L354,E364=\"\"))","v":false}]
[{"$nulls":3},9,"",{"$nulls":5},"",{"$nulls":6},{"$f":"CONST_PrecursorToGoodInput&G336&\"_\"&E365","v":"PrecToGood__"},{"$f":"MAX(S356:S364)+IF(D365=C336,2,1)","v":10},{"$f":"IF(G336=\"\",\"\",L365)","v":""},null,{"$f":"IF(AND(G336<>\"\",E365<>\"\",L365<>\"\"),TRUE,IF(AND(G336<>\"\",E365<>\"\",L365=\"\",X365=FALSE),CONST_ErrorOrMissing&C336,CONST_NA))","v":"n.a."},null,{"$f":"IF(G336=\"\",FALSE,OR(L354,E365=\"\"))","v":false}]
[{"$nulls":3},"(d)",{"$f":"Translations!$B$252","v":"Consumed for non-CBAM goods within the installation:"},{"$nulls":5},"",{"$nulls":10},{"$f":"IF(AND(G336<>\"\",L366<>\"\"),TRUE,IF(AND(G336<>\"\",L366=\"\",X366=FALSE),CONST_ErrorOrMissing&C336,CONST_NA))","v":"n.a."},"cond.form.",{"$f":"IF(G336=\"\",FALSE,L354)","v":false}]
[{"$nulls":3},"(e)",{"$f":"Translations!$B$253","v":"Control:"},{"$nulls":5},"",{"$f":"IF(G336=\"\",\"\",SUM(L349)-SUM(L352,L357:L366))","v":""},{"$nulls":9},{"$f":"IF(AND(G336<>\"\",L367=0),TRUE,IF(AND(G336<>\"\",L367<>0,X367=FALSE),CONST_ErrorOrMissing&C336,CONST_NA))","v":"n.a."},null,{"$f":"IF(G336=\"\",FALSE,L354)","v":false}]
[]
[]
[{"$nulls":3},{"$f":"Translations!$B$254","v":"Calculation of the attributed emissions:"},{"$nulls":5},{"$f":"IF(G336=\"\",\"\",G336)","v":""}]
[]
[{"$nulls":4},{"$f":"HYPERLINK(\"#\"&ADDRESS(MATCH($S372,G_FurtherGuidance!$S:$S,0),3,,,G_FurtherGuidance!$U$2),CONST_LinkToGuidanceSheet)","v":"Please click on this link for further guidance on how to complete this section."},{"$nulls":12},"Link to guidance:",3]
[]
[{"$nulls":10},{"$f":"Translations!$B$255","v":"Measurable heat"},{"$f":"Translations!$B$256","v":"Waste gases"},{"$f":"Translations!$B$257","v":"Indirect emissions"}]
[{"$nulls":3},"(f)",{"$f":"Translations!$B$258","v":"Please select which elements are applicable"},{"$nulls":7},{"$f":"IF(L336=\"\",\"\",INDEX(CONST_LIST_GoodsIndRel,MATCH(L336,CONST_LIST_Goods,0)))","v":""},{"$nulls":8},{"$f":"IF(AND(L336<>\"\",X375=FALSE),IF(COUNTA(K375:L375)=2,TRUE,CONST_ErrorOrMissing&C336),CONST_NA)","v":"n.a."}]
[{"$nulls":4},{"$f":"Translations!$B$259","v":"Based on your selection, related sections below might become irrelevant and greyed out below."}]
[]
[{"$nulls":10},{"$f":"Translations!$B$221","v":"Unit"},{"$f":"Translations!$B$260","v":"Value"}]
[{"$nulls":3},"(g)",{"$f":"Translations!$B$261","v":"Directly attributable emissions (DirEm*)"},{"$nulls":5},{"$f":"CONST_tCO2eq","v":"tCO2e"},{"$nulls":6},{"$f":"CONST_EmDir&G336","v":"EmDir_"},{"$f":"CONST_CNTR_EmbedEmDir&G336","v":"EmbedEmDir_"},{"$f":"IF(G336=\"\",\"\",L379)","v":""},null,{"$f":"IF(L336<>\"\",IF(L379<>\"\",TRUE,CONST_ErrorOrMissing&C336),CONST_NA)","v":"n.a."}]
[]
[{"$nulls":3},"(h)",{"$f":"Translations!$B$262","v":"Import and export of measurable heat"},{"$nulls":5},{"$f":"Translations!$B$221","v":"Unit"},{"$f":"Translations!$B$263","v":"Imported"},{"$f":"Translations!$B$264","v":"Exported"},{"$nulls":9},"cond.form.",{"$f":"AND(K375<>\"\",K375=FALSE)","v":false}]
[{"$nulls":3},"i.",{"$f":"Translations!$B$265","v":"Amount of net measurable heat"},{"$nulls":5},"TJ",{"$nulls":10},{"$f":"IF(AND(L336<>\"\",X382=FALSE),IF(COUNTA(L382:M382)=2,TRUE,CONST_ErrorOrMissing&C336),CONST_NA)","v":"n.a."},null,{"$f":"X381","v":false}]
[{"$nulls":3},"ii.",{"$f":"Translations!$B$266","v":"Emissions factor"},{"$nulls":5},{"$f":"CONST_tCO2pTJ","v":"tCO2/TJ"},{"$nulls":6},{"$f":"CONST_EmDirHeat&G336","v":"EmDirHeat_"},{"$f":"CONST_CNTR_EmbedEmDir&G336","v":"EmbedEmDir_"},{"$f":"IF(G336=\"\",\"\",SUM(L382*L383-M382*M383))","v":""},null,{"$f":"IF(AND(L336<>\"\",X383=FALSE),IF(COUNTA(L383:M383)=2,TRUE,CONST_ErrorOrMissing&C336),CONST_NA)","v":"n.a."},null,{"$f":"X382","v":false}]
[]
[{"$nulls":3},"(i)",{"$f":"Translations!$B$256","v":"Waste gases"},{"$nulls":5},{"$f":"Translations!$B$221","v":"Unit"},{"$f":"Translations!$B$263","v":"Imported"},{"$f":"Translations!$B$264","v":"Exported"},{"$nulls":9},"cond.form.",{"$f":"AND(L375<>\"\",L375=FALSE)","v":false}]
[{"$nulls":3},"i.",{"$f":"Translations!$B$267","v":"Amount of waste gas"},{"$nulls":5},{"$f":"CONST_TJ","v":"TJ"},{"$nulls":10},{"$f":"IF(AND(L336<>\"\",X386=FALSE),IF(COUNTA(L386:M386)=2,TRUE,CONST_ErrorOrMissing&C336),CONST_NA)","v":"n.a."},null,{"$f":"X385","v":false}]
[{"$nulls":3},"ii.",{"$f":"Translations!$B$268","v":"Emission factor"},{"$nulls":5},{"$f":"CONST_tCO2pTJ","v":"tCO2/TJ"},{"$nulls":6},{"$f":"CONST_EmDirWasteGases&G336","v":"EmDirWG_"},{"$f":"CONST_CNTR_EmbedEmDir&G336","v":"EmbedEmDir_"},{"$f":"IF(G336=\"\",\"\",SUM(L386*CONST_EFNatGas-M386*CONST_EFNatGas*0.667))","v":""},{"$nulls":3},{"$f":"X386","v":false}]
[]
[{"$nulls":3},"(j)",{"$f":"Translations!$B$269","v":"Indirect emissions from electricity consumption"},{"$nulls":5},{"$f":"Translations!$B$221","v":"Unit"},{"$f":"Translations!$B$260","v":"Value"},{"$nulls":10},"cond.form.",{"$f":"M375=FALSE","v":false}]
[{"$nulls":3},"i.",{"$f":"Translations!$B$270","v":"Electricity consumption"},{"$nulls":5},{"$f":"CONST_MWh","v":"MWh"},{"$nulls":6},{"$f":"CONST_ElecConsumption&G336","v":"ElecCons_"},null,{"$f":"IF(G336=\"\",\"\",L390)","v":""},null,{"$f":"IF(AND(L336<>\"\",X390=FALSE),IF(L390<>\"\",TRUE,CONST_ErrorOrMissing&C336),CONST_NA)","v":"n.a."},null,{"$f":"X389","v":false}]
[{"$nulls":3},"ii.",{"$f":"Translations!$B$271","v":"Emission factor of the electricity"},{"$nulls":5},{"$f":"CONST_tCO2&\"/\"&CONST_MWh","v":"tCO2/MWh"},{"$nulls":7},{"$f":"CONST_CNTR_EmbedEmInDir&G336","v":"EmbedEmInDir_"},{"$f":"IF(G336=\"\",\"\",SUM(L390)*SUM(L391))","v":""},null,{"$f":"IF(AND(L336<>\"\",X391=FALSE),IF(L391<>\"\",TRUE,CONST_ErrorOrMissing&C336),CONST_NA)","v":"n.a."},null,{"$f":"X390","v":false}]
[{"$nulls":3},"iii.",{"$f":"Translations!$B$272","v":"Source of the emission factor"},{"$nulls":5},"-",{"$nulls":6},{"$f":"CONST_CNTR_ElecEFMethod&G336","v":"ElecEFMeth_"},null,{"$f":"IF(L392=\"\",\"\",L392)","v":""},null,{"$f":"IF(AND(L336<>\"\",X392=FALSE),IF(L392<>\"\",TRUE,CONST_ErrorOrMissing&C336),CONST_NA)","v":"n.a."},null,{"$f":"X391","v":false}]
[]
[]
[{"$nulls":3},"(k)",{"$f":"Translations!$B$273","v":"Electricity exported from the production process"},{"$nulls":5},{"$f":"Translations!$B$221","v":"Unit"},{"$f":"Translations!$B$260","v":"Value"}]
[{"$nulls":3},"i.",{"$f":"Translations!$B$274","v":"Amounts exported"},{"$nulls":5},"MWh",{"$nulls":10},{"$f":"IF(L336<>\"\",IF(L396<>\"\",TRUE,CONST_ErrorOrMissing&C336),CONST_NA)","v":"n.a."}]
[{"$nulls":3},"ii.",{"$f":"Translations!$B$271","v":"Emission factor of the electricity"},{"$nulls":5},{"$f":"CONST_tCO2&\"/\"&CONST_MWh","v":"tCO2/MWh"},{"$nulls":7},{"$f":"CONST_CNTR_EmbedEmDir&G336","v":"EmbedEmDir_"},{"$f":"IF(G336=\"\",\"\",-SUM(L396)*SUM(L397))","v":""},null,{"$f":"IF(AND(L336<>\"\",SUM(L396)>0),IF(L397<>\"\",TRUE,CONST_ErrorOrMissing&C336),CONST_NA)","v":"n.a."}]
[]
[]
[]
[null,null,{"$f":"C336+1","v":7},{"$f":"CONST_ProductionProcess&\" \"&C401&\":\"","v":"Production process 7:"},null,null,{"$f":"IF(INDEX(CNTR_List_ExistProdProcNames,R401)=CONST_NA,\"\",INDEX(CNTR_List_ExistProdProcNames,R401))","v":""},{"$nulls":4},{"$f":"IF(INDEX(CNTR_List_ExistProdProc,R401)=CONST_NA,\"\",INDEX(CNTR_List_ExistProdProc,R401))","v":""},{"$nulls":5},{"$f":"C401","v":7},{"$nulls":4},"Not relevant:",{"$f":"AND(CNTR_HasEntriesA,G401=\"\")","v":false}]
[]
[{"$nulls":4},{"$f":"HYPERLINK(\"#\"&ADDRESS(MATCH($S403,G_FurtherGuidance!$S:$S,0),3,,,G_FurtherGuidance!$U$2),CONST_LinkToGuidanceSheet)","v":"Please click on this link for further guidance on how to complete this section."},{"$nulls":12},"Link to guidance:",3]
[]
[{"$nulls":3},"(a) ",{"$f":"Translations!$B$243","v":"Total production levels:"},null,null,{"$f":"Translations!$B$244","v":"Production route"},null,null,{"$f":"Translations!$B$221","v":"Unit"},{"$f":"Translations!$B$245","v":"Amounts"}]
[{"$nulls":3},1,{"$f":"IF(G401=\"\",\"\",G401)&IF(L401=\"\",\"\",\" | \"&L401)","v":""},null,null,{"$f":"IF(L401=\"\",\"\",INDEX(CONST_MATRIX_ProductionRoute,MATCH(L401,CONST_LIST_Goods,0),D406))","v":""},null,null,{"$f":"IF(L401=\"\",\"\",INDEX(CONST_LIST_GoodsUnit,MATCH(L401,CONST_LIST_Goods,0)))","v":""},{"$nulls":7},1,null,null,{"$f":"IF(AND(G401<>\"\",E406<>\"\",L406<>\"\"),TRUE,IF(AND(G401<>\"\",OR(AND(E406<>\"\",L406=\"\"),AND(E406=\"\",L406<>\"\"))),CONST_ErrorOrMissing&C401,CONST_NA))","v":"n.a."}]
[{"$nulls":3},2,{"$f":"IF(H407=CONST_NA,\"\",E406)","v":""},null,null,{"$f":"IF(L401=\"\",\"\",INDEX(CONST_MATRIX_ProductionRoute,MATCH(L401,CONST_LIST_Goods,0),D407))","v":""},null,null,{"$f":"IF(H407=CONST_NA,\"\",K406)","v":""},{"$nulls":7},2,null,null,{"$f":"IF(AND(G401<>\"\",E407<>\"\",L407<>\"\"),TRUE,IF(AND(G401<>\"\",OR(AND(E407<>\"\",L407=\"\"),AND(E407=\"\",L407<>\"\"))),CONST_ErrorOrMissing&C401,CONST_NA))","v":"n.a."}]
[{"$nulls":3},3,"",null,null,{"$f":"IF(L401=\"\",\"\",INDEX(CONST_MATRIX_ProductionRoute,MATCH(L401,CONST_LIST_Goods,0),D408))","v":""},null,null,"",{"$nulls":7},3,null,null,{"$f":"IF(AND(G401<>\"\",E408<>\"\",L408<>\"\"),TRUE,IF(AND(G401<>\"\",OR(AND(E408<>\"\",L408=\"\"),AND(E408=\"\",L408<>\"\"))),CONST_ErrorOrMissing&C401,CONST_NA))","v":"n.a."}]
[{"$nulls":3},4,"",null,null,{"$f":"IF(L401=\"\",\"\",INDEX(CONST_MATRIX_ProductionRoute,MATCH(L401,CONST_LIST_Goods,0),D409))","v":""},null,null,"",{"$nulls":7},4,null,null,{"$f":"IF(AND(G401<>\"\",E409<>\"\",L409<>\"\"),TRUE,IF(AND(G401<>\"\",OR(AND(E409<>\"\",L409=\"\"),AND(E409=\"\",L409<>\"\"))),CONST_ErrorOrMissing&C401,CONST_NA))","v":"n.a."}]
[{"$nulls":3},5,"",null,null,{"$f":"IF(L401=\"\",\"\",INDEX(CONST_MATRIX_ProductionRoute,MATCH(L401,CONST_LIST_Goods,0),D410))","v":""},null,null,"",{"$nulls":7},5,null,null,{"$f":"IF(AND(G401<>\"\",E410<>\"\",L410<>\"\"),TRUE,IF(AND(G401<>\"\",OR(AND(E410<>\"\",L410=\"\"),AND(E410=\"\",L410<>\"\"))),CONST_ErrorOrMissing&C401,CONST_NA))","v":"n.a."}]
[{"$nulls":3},6,"",null,null,{"$f":"IF(L401=\"\",\"\",INDEX(CONST_MATRIX_ProductionRoute,MATCH(L401,CONST_LIST_Goods,0),D411))","v":""},null,null,"",{"$nulls":7},6,null,null,{"$f":"IF(AND(G401<>\"\",E411<>\"\",L411<>\"\"),TRUE,IF(AND(G401<>\"\",OR(AND(E411<>\"\",L411=\"\"),AND(E411=\"\",L411<>\"\"))),CONST_ErrorOrMissing&C401,CONST_NA))","v":"n.a."}]
[{"$nulls":3},7,"",null,null,{"$f":"IF(L401=\"\",\"\",INDEX(CONST_MATRIX_ProductionRoute,MATCH(L401,CONST_LIST_Goods,0),D412))","v":""},null,null,"",{"$nulls":7},7,null,null,{"$f":"IF(AND(G401<>\"\",E412<>\"\",L412<>\"\"),TRUE,IF(AND(G401<>\"\",OR(AND(E412<>\"\",L412=\"\"),AND(E412=\"\",L412<>\"\"))),CONST_ErrorOrMissing&C401,CONST_NA))","v":"n.a."}]
[{"$nulls":3},8,"",null,null,{"$f":"IF(L401=\"\",\"\",INDEX(CONST_MATRIX_ProductionRoute,MATCH(L401,CONST_LIST_Goods,0),D413))","v":""},null,null,"",{"$nulls":7},8,null,null,{"$f":"IF(AND(G401<>\"\",E413<>\"\",L413<>\"\"),TRUE,IF(AND(G401<>\"\",OR(AND(E413<>\"\",L413=\"\"),AND(E413=\"\",L413<>\"\"))),CONST_ErrorOrMissing&C401,CONST_NA))","v":"n.a."}]
[{"$nulls":4},{"$f":"Translations!$B$246","v":"Total production within installation (= denominator for SEE calculation):"},{"$nulls":5},{"$f":"K406","v":""},{"$f":"IF(G401=\"\",\"\",SUM(L406:L413))","v":""},{"$nulls":5},{"$f":"CONST_CNTR_TotProd&G401","v":"TotProd_"},null,{"$f":"IF(G401=\"\",\"\",L414)","v":""}]
[]
[{"$nulls":3},"(b)",{"$f":"Translations!$B$247","v":"Production details"},{"$nulls":5},{"$f":"Translations!$B$221","v":"Unit"},{"$f":"Translations!$B$245","v":"Amounts"}]
[{"$nulls":3},"i.",{"$f":"Translations!$B$248","v":"Produced for the market"},{"$nulls":5},{"$f":"K406","v":""},{"$nulls":6},{"$f":"CONST_GoodToMarket&G401","v":"ToMarket_"},null,{"$f":"IF($G$11=\"\",\"\",L417)","v":""},null,{"$f":"IF(AND(G401<>\"\",L417<>\"\"),TRUE,IF(AND(G401<>\"\",OR(L417=\"\",L406<>\"\")),CONST_ErrorOrMissing&C401,CONST_NA))","v":"n.a."}]
[{"$nulls":3},"ii.",{"$f":"Translations!$B$249","v":"Share of total under (a) produced for the market"},{"$nulls":6},{"$f":"IF(AND(COUNT(L414,L417)=2,SUM(L414>0)),SUM(L417)/SUM(L414),\"\")","v":""}]
[{"$nulls":3},"iii.",{"$f":"Translations!$B$250","v":"Total production only for the market?"},{"$nulls":6},{"$f":"IF(G401=\"\",\"\",AND(SUM(L414)>0,SUM(L414)=SUM(L417)))","v":""}]
[]
[{"$nulls":3},"(c)",{"$f":"Translations!$B$251","v":"Consumed in other 'production processes' within the installation:"},{"$nulls":5},{"$f":"Translations!$B$221","v":"Unit"},{"$f":"Translations!$B$245","v":"Amounts"},{"$nulls":6},"Numbering",{"$nulls":3},"cond.form.",{"$f":"IF(G401=\"\",FALSE,L419)","v":false}]
[{"$nulls":3},1,{"$f":"IF(INDEX(CNTR_List_ExistProdProcNames,S422)=CONST_NA,\"\",INDEX(CNTR_List_ExistProdProcNames,S422))","v":""},{"$nulls":5},{"$f":"K406","v":""},{"$nulls":6},{"$f":"CONST_PrecursorToGoodInput&G401&\"_\"&E422","v":"PrecToGood__"},{"$f":"MAX(S421:S421)+IF(D422=C401,2,1)","v":1},{"$f":"IF(G401=\"\",\"\",L422)","v":""},null,{"$f":"IF(AND(G401<>\"\",E422<>\"\",L422<>\"\"),TRUE,IF(AND(G401<>\"\",E422<>\"\",L422=\"\",X422=FALSE),CONST_ErrorOrMissing&C401,CONST_NA))","v":"n.a."},"cond.form.",{"$f":"IF(G401=\"\",FALSE,OR(L419,E422=\"\"))","v":false}]
[{"$nulls":3},2,"",{"$nulls":5},{"$f":"K422","v":""},{"$nulls":6},{"$f":"CONST_PrecursorToGoodInput&G401&\"_\"&E423","v":"PrecToGood__"},{"$f":"MAX(S421:S422)+IF(D423=C401,2,1)","v":2},{"$f":"IF(G401=\"\",\"\",L423)","v":""},null,{"$f":"IF(AND(G401<>\"\",E423<>\"\",L423<>\"\"),TRUE,IF(AND(G401<>\"\",E423<>\"\",L423=\"\",X423=FALSE),CONST_ErrorOrMissing&C401,CONST_NA))","v":"n.a."},null,{"$f":"IF(G401=\"\",FALSE,OR(L419,E423=\"\"))","v":false}]
[{"$nulls":3},3,"",{"$nulls":5},{"$f":"K423","v":""},{"$nulls":6},{"$f":"CONST_PrecursorToGoodInput&G401&\"_\"&E424","v":"PrecToGood__"},{"$f":"MAX(S421:S423)+IF(D424=C401,2,1)","v":3},{"$f":"IF(G401=\"\",\"\",L424)","v":""},null,{"$f":"IF(AND(G401<>\"\",E424<>\"\",L424<>\"\"),TRUE,IF(AND(G401<>\"\",E424<>\"\",L424=\"\",X424=FALSE),CONST_ErrorOrMissing&C401,CONST_NA))","v":"n.a."},null,{"$f":"IF(G401=\"\",FALSE,OR(L419,E424=\"\"))","v":false}]
[{"$nulls":3},4,"",{"$nulls":5},"",{"$nulls":6},{"$f":"CONST_PrecursorToGoodInput&G401&\"_\"&E425","v":"PrecToGood__"},{"$f":"MAX(S421:S424)+IF(D425=C401,2,1)","v":4},{"$f":"IF(G401=\"\",\"\",L425)","v":""},null,{"$f":"IF(AND(G401<>\"\",E425<>\"\",L425<>\"\"),TRUE,IF(AND(G401<>\"\",E425<>\"\",L425=\"\",X425=FALSE),CONST_ErrorOrMissing&C401,CONST_NA))","v":"n.a."},null,{"$f":"IF(G401=\"\",FALSE,OR(L419,E425=\"\"))","v":false}]
[{"$nulls":3},5,"",{"$nulls":5},"",{"$nulls":6},{"$f":"CONST_PrecursorToGoodInput&G401&\"_\"&E426","v":"PrecToGood__"},{"$f":"MAX(S421:S425)+IF(D426=C401,2,1)","v":5},{"$f":"IF(G401=\"\",\"\",L426)","v":""},null,{"$f":"IF(AND(G401<>\"\",E426<>\"\",L426<>\"\"),TRUE,IF(AND(G401<>\"\",E426<>\"\",L426=\"\",X426=FALSE),CONST_ErrorOrMissing&C401,CONST_NA))","v":"n.a."},null,{"$f":"IF(G401=\"\",FALSE,OR(L419,E426=\"\"))","v":false}]
[{"$nulls":3},6,"",{"$nulls":5},"",{"$nulls":6},{"$f":"CONST_PrecursorToGoodInput&G401&\"_\"&E427","v":"PrecToGood__"},{"$f":"MAX(S421:S426)+IF(D427=C401,2,1)","v":6},{"$f":"IF(G401=\"\",\"\",L427)","v":""},null,{"$f":"IF(AND(G401<>\"\",E427<>\"\",L427<>\"\"),TRUE,IF(AND(G401<>\"\",E427<>\"\",L427=\"\",X427=FALSE),CONST_ErrorOrMissing&C401,CONST_NA))","v":"n.a."},null,{"$f":"IF(G401=\"\",FALSE,OR(L419,E427=\"\"))","v":false}]
[{"$nulls":3},7,"",{"$nulls":5},"",{"$nulls":6},{"$f":"CONST_PrecursorToGoodInput&G401&\"_\"&E428","v":"PrecToGood__"},{"$f":"MAX(S421:S427)+IF(D428=C401,2,1)","v":8},{"$f":"IF(G401=\"\",\"\",L428)","v":""},null,{"$f":"IF(AND(G401<>\"\",E428<>\"\",L428<>\"\"),TRUE,IF(AND(G401<>\"\",E428<>\"\",L428=\"\",X428=FALSE),CONST_ErrorOrMissing&C401,CONST_NA))","v":"n.a."},null,{"$f":"IF(G401=\"\",FALSE,OR(L419,E428=\"\"))","v":false}]
[{"$nulls":3},8,"",{"$nulls":5},"",{"$nulls":6},{"$f":"CONST_PrecursorToGoodInput&G401&\"_\"&E429","v":"PrecToGood__"},{"$f":"MAX(S421:S428)+IF(D429=C401,2,1)","v":9},{"$f":"IF(G401=\"\",\"\",L429)","v":""},null,{"$f":"IF(AND(G401<>\"\",E429<>\"\",L429<>\"\"),TRUE,IF(AND(G401<>\"\",E429<>\"\",L429=\"\",X429=FALSE),CONST_ErrorOrMissing&C401,CONST_NA))","v":"n.a."},null,{"$f":"IF(G401=\"\",FALSE,OR(L419,E429=\"\"))","v":false}]
[{"$nulls":3},9,"",{"$nulls":5},"",{"$nulls":6},{"$f":"CONST_PrecursorToGoodInput&G401&\"_\"&E430","v":"PrecToGood__"},{"$f":"MAX(S421:S429)+IF(D430=C401,2,1)","v":10},{"$f":"IF(G401=\"\",\"\",L430)","v":""},null,{"$f":"IF(AND(G401<>\"\",E430<>\"\",L430<>\"\"),TRUE,IF(AND(G401<>\"\",E430<>\"\",L430=\"\",X430=FALSE),CONST_ErrorOrMissing&C401,CONST_NA))","v":"n.a."},null,{"$f":"IF(G401=\"\",FALSE,OR(L419,E430=\"\"))","v":false}]
[{"$nulls":3},"(d)",{"$f":"Translations!$B$252","v":"Consumed for non-CBAM goods within the installation:"},{"$nulls":5},"",{"$nulls":10},{"$f":"IF(AND(G401<>\"\",L431<>\"\"),TRUE,IF(AND(G401<>\"\",L431=\"\",X431=FALSE),CONST_ErrorOrMissing&C401,CONST_NA))","v":"n.a."},"cond.form.",{"$f":"IF(G401=\"\",FALSE,L419)","v":false}]
[{"$nulls":3},"(e)",{"$f":"Translations!$B$253","v":"Control:"},{"$nulls":5},"",{"$f":"IF(G401=\"\",\"\",SUM(L414)-SUM(L417,L422:L431))","v":""},{"$nulls":9},{"$f":"IF(AND(G401<>\"\",L432=0),TRUE,IF(AND(G401<>\"\",L432<>0,X432=FALSE),CONST_ErrorOrMissing&C401,CONST_NA))","v":"n.a."},null,{"$f":"IF(G401=\"\",FALSE,L419)","v":false}]
[]
[]
[{"$nulls":3},{"$f":"Translations!$B$254","v":"Calculation of the attributed emissions:"},{"$nulls":5},{"$f":"IF(G401=\"\",\"\",G401)","v":""}]
[]
[{"$nulls":4},{"$f":"HYPERLINK(\"#\"&ADDRESS(MATCH($S437,G_FurtherGuidance!$S:$S,0),3,,,G_FurtherGuidance!$U$2),CONST_LinkToGuidanceSheet)","v":"Please click on this link for further guidance on how to complete this section."},{"$nulls":12},"Link to guidance:",3]
[]
[{"$nulls":10},{"$f":"Translations!$B$255","v":"Measurable heat"},{"$f":"Translations!$B$256","v":"Waste gases"},{"$f":"Translations!$B$257","v":"Indirect emissions"}]
[{"$nulls":3},"(f)",{"$f":"Translations!$B$258","v":"Please select which elements are applicable"},{"$nulls":7},{"$f":"IF(L401=\"\",\"\",INDEX(CONST_LIST_GoodsIndRel,MATCH(L401,CONST_LIST_Goods,0)))","v":""},{"$nulls":8},{"$f":"IF(AND(L401<>\"\",X440=FALSE),IF(COUNTA(K440:L440)=2,TRUE,CONST_ErrorOrMissing&C401),CONST_NA)","v":"n.a."}]
[{"$nulls":4},{"$f":"Translations!$B$259","v":"Based on your selection, related sections below might become irrelevant and greyed out below."}]
[]
[{"$nulls":10},{"$f":"Translations!$B$221","v":"Unit"},{"$f":"Translations!$B$260","v":"Value"}]
[{"$nulls":3},"(g)",{"$f":"Translations!$B$261","v":"Directly attributable emissions (DirEm*)"},{"$nulls":5},{"$f":"CONST_tCO2eq","v":"tCO2e"},{"$nulls":6},{"$f":"CONST_EmDir&G401","v":"EmDir_"},{"$f":"CONST_CNTR_EmbedEmDir&G401","v":"EmbedEmDir_"},{"$f":"IF(G401=\"\",\"\",L444)","v":""},null,{"$f":"IF(L401<>\"\",IF(L444<>\"\",TRUE,CONST_ErrorOrMissing&C401),CONST_NA)","v":"n.a."}]
[]
[{"$nulls":3},"(h)",{"$f":"Translations!$B$262","v":"Import and export of measurable heat"},{"$nulls":5},{"$f":"Translations!$B$221","v":"Unit"},{"$f":"Translations!$B$263","v":"Imported"},{"$f":"Translations!$B$264","v":"Exported"},{"$nulls":9},"cond.form.",{"$f":"AND(K440<>\"\",K440=FALSE)","v":false}]
[{"$nulls":3},"i.",{"$f":"Translations!$B$265","v":"Amount of net measurable heat"},{"$nulls":5},"TJ",{"$nulls":10},{"$f":"IF(AND(L401<>\"\",X447=FALSE),IF(COUNTA(L447:M447)=2,TRUE,CONST_ErrorOrMissing&C401),CONST_NA)","v":"n.a."},null,{"$f":"X446","v":false}]
[{"$nulls":3},"ii.",{"$f":"Translations!$B$266","v":"Emissions factor"},{"$nulls":5},{"$f":"CONST_tCO2pTJ","v":"tCO2/TJ"},{"$nulls":6},{"$f":"CONST_EmDirHeat&G401","v":"EmDirHeat_"},{"$f":"CONST_CNTR_EmbedEmDir&G401","v":"EmbedEmDir_"},{"$f":"IF(G401=\"\",\"\",SUM(L447*L448-M447*M448))","v":""},null,{"$f":"IF(AND(L401<>\"\",X448=FALSE),IF(COUNTA(L448:M448)=2,TRUE,CONST_ErrorOrMissing&C401),CONST_NA)","v":"n.a."},null,{"$f":"X447","v":false}]
[]
[{"$nulls":3},"(i)",{"$f":"Translations!$B$256","v":"Waste gases"},{"$nulls":5},{"$f":"Translations!$B$221","v":"Unit"},{"$f":"Translations!$B$263","v":"Imported"},{"$f":"Translations!$B$264","v":"Exported"},{"$nulls":9},"cond.form.",{"$f":"AND(L440<>\"\",L440=FALSE)","v":false}]
[{"$nulls":3},"i.",{"$f":"Translations!$B$267","v":"Amount of waste gas"},{"$nulls":5},{"$f":"CONST_TJ","v":"TJ"},{"$nulls":10},{"$f":"IF(AND(L401<>\"\",X451=FALSE),IF(COUNTA(L451:M451)=2,TRUE,CONST_ErrorOrMissing&C401),CONST_NA)","v":"n.a."},null,{"$f":"X450","v":false}]
[{"$nulls":3},"ii.",{"$f":"Translations!$B$268","v":"Emission factor"},{"$nulls":5},{"$f":"CONST_tCO2pTJ","v":"tCO2/TJ"},{"$nulls":6},{"$f":"CONST_EmDirWasteGases&G401","v":"EmDirWG_"},{"$f":"CONST_CNTR_EmbedEmDir&G401","v":"EmbedEmDir_"},{"$f":"IF(G401=\"\",\"\",SUM(L451*CONST_EFNatGas-M451*CONST_EFNatGas*0.667))","v":""},{"$nulls":3},{"$f":"X451","v":false}]
[]
[{"$nulls":3},"(j)",{"$f":"Translations!$B$269","v":"Indirect emissions from electricity consumption"},{"$nulls":5},{"$f":"Translations!$B$221","v":"Unit"},{"$f":"Translations!$B$260","v":"Value"},{"$nulls":10},"cond.form.",{"$f":"M440=FALSE","v":false}]
[{"$nulls":3},"i.",{"$f":"Translations!$B$270","v":"Electricity consumption"},{"$nulls":5},{"$f":"CONST_MWh","v":"MWh"},{"$nulls":6},{"$f":"CONST_ElecConsumption&G401","v":"ElecCons_"},null,{"$f":"IF(G401=\"\",\"\",L455)","v":""},null,{"$f":"IF(AND(L401<>\"\",X455=FALSE),IF(L455<>\"\",TRUE,CONST_ErrorOrMissing&C401),CONST_NA)","v":"n.a."},null,{"$f":"X454","v":false}]
[{"$nulls":3},"ii.",{"$f":"Translations!$B$271","v":"Emission factor of the electricity"},{"$nulls":5},{"$f":"CONST_tCO2&\"/\"&CONST_MWh","v":"tCO2/MWh"},{"$nulls":7},{"$f":"CONST_CNTR_EmbedEmInDir&G401","v":"EmbedEmInDir_"},{"$f":"IF(G401=\"\",\"\",SUM(L455)*SUM(L456))","v":""},null,{"$f":"IF(AND(L401<>\"\",X456=FALSE),IF(L456<>\"\",TRUE,CONST_ErrorOrMissing&C401),CONST_NA)","v":"n.a."},null,{"$f":"X455","v":false}]
[{"$nulls":3},"iii.",{"$f":"Translations!$B$272","v":"Source of the emission factor"},{"$nulls":5},"-",{"$nulls":6},{"$f":"CONST_CNTR_ElecEFMethod&G401","v":"ElecEFMeth_"},null,{"$f":"IF(L457=\"\",\"\",L457)","v":""},null,{"$f":"IF(AND(L401<>\"\",X457=FALSE),IF(L457<>\"\",TRUE,CONST_ErrorOrMissing&C401),CONST_NA)","v":"n.a."},null,{"$f":"X456","v":false}]
[]
[]
[{"$nulls":3},"(k)",{"$f":"Translations!$B$273","v":"Electricity exported from the production process"},{"$nulls":5},{"$f":"Translations!$B$221","v":"Unit"},{"$f":"Translations!$B$260","v":"Value"}]
[{"$nulls":3},"i.",{"$f":"Translations!$B$274","v":"Amounts exported"},{"$nulls":5},"MWh",{"$nulls":10},{"$f":"IF(L401<>\"\",IF(L461<>\"\",TRUE,CONST_ErrorOrMissing&C401),CONST_NA)","v":"n.a."}]
[{"$nulls":3},"ii.",{"$f":"Translations!$B$271","v":"Emission factor of the electricity"},{"$nulls":5},{"$f":"CONST_tCO2&\"/\"&CONST_MWh","v":"tCO2/MWh"},{"$nulls":7},{"$f":"CONST_CNTR_EmbedEmDir&G401","v":"EmbedEmDir_"},{"$f":"IF(G401=\"\",\"\",-SUM(L461)*SUM(L462))","v":""},null,{"$f":"IF(AND(L401<>\"\",SUM(L461)>0),IF(L462<>\"\",TRUE,CONST_ErrorOrMissing&C401),CONST_NA)","v":"n.a."}]
[]
[]
[]
[null,null,{"$f":"C401+1","v":8},{"$f":"CONST_ProductionProcess&\" \"&C466&\":\"","v":"Production process 8:"},null,null,{"$f":"IF(INDEX(CNTR_List_ExistProdProcNames,R466)=CONST_NA,\"\",INDEX(CNTR_List_ExistProdProcNames,R466))","v":""},{"$nulls":4},{"$f":"IF(INDEX(CNTR_List_ExistProdProc,R466)=CONST_NA,\"\",INDEX(CNTR_List_ExistProdProc,R466))","v":""},{"$nulls":5},{"$f":"C466","v":8},{"$nulls":4},"Not relevant:",{"$f":"AND(CNTR_HasEntriesA,G466=\"\")","v":false}]
[]
[{"$nulls":4},{"$f":"HYPERLINK(\"#\"&ADDRESS(MATCH($S468,G_FurtherGuidance!$S:$S,0),3,,,G_FurtherGuidance!$U$2),CONST_LinkToGuidanceSheet)","v":"Please click on this link for further guidance on how to complete this section."},{"$nulls":12},"Link to guidance:",3]
[]
[{"$nulls":3},"(a) ",{"$f":"Translations!$B$243","v":"Total production levels:"},null,null,{"$f":"Translations!$B$244","v":"Production route"},null,null,{"$f":"Translations!$B$221","v":"Unit"},{"$f":"Translations!$B$245","v":"Amounts"}]
[{"$nulls":3},1,{"$f":"IF(G466=\"\",\"\",G466)&IF(L466=\"\",\"\",\" | \"&L466)","v":""},null,null,{"$f":"IF(L466=\"\",\"\",INDEX(CONST_MATRIX_ProductionRoute,MATCH(L466,CONST_LIST_Goods,0),D471))","v":""},null,null,{"$f":"IF(L466=\"\",\"\",INDEX(CONST_LIST_GoodsUnit,MATCH(L466,CONST_LIST_Goods,0)))","v":""},{"$nulls":7},1,null,null,{"$f":"IF(AND(G466<>\"\",E471<>\"\",L471<>\"\"),TRUE,IF(AND(G466<>\"\",OR(AND(E471<>\"\",L471=\"\"),AND(E471=\"\",L471<>\"\"))),CONST_ErrorOrMissing&C466,CONST_NA))","v":"n.a."}]
[{"$nulls":3},2,{"$f":"IF(H472=CONST_NA,\"\",E471)","v":""},null,null,{"$f":"IF(L466=\"\",\"\",INDEX(CONST_MATRIX_ProductionRoute,MATCH(L466,CONST_LIST_Goods,0),D472))","v":""},null,null,{"$f":"IF(H472=CONST_NA,\"\",K471)","v":""},{"$nulls":7},2,null,null,{"$f":"IF(AND(G466<>\"\",E472<>\"\",L472<>\"\"),TRUE,IF(AND(G466<>\"\",OR(AND(E472<>\"\",L472=\"\"),AND(E472=\"\",L472<>\"\"))),CONST_ErrorOrMissing&C466,CONST_NA))","v":"n.a."}]
[{"$nulls":3},3,"",null,null,{"$f":"IF(L466=\"\",\"\",INDEX(CONST_MATRIX_ProductionRoute,MATCH(L466,CONST_LIST_Goods,0),D473))","v":""},null,null,"",{"$nulls":7},3,null,null,{"$f":"IF(AND(G466<>\"\",E473<>\"\",L473<>\"\"),TRUE,IF(AND(G466<>\"\",OR(AND(E473<>\"\",L473=\"\"),AND(E473=\"\",L473<>\"\"))),CONST_ErrorOrMissing&C466,CONST_NA))","v":"n.a."}]
[{"$nulls":3},4,"",null,null,{"$f":"IF(L466=\"\",\"\",INDEX(CONST_MATRIX_ProductionRoute,MATCH(L466,CONST_LIST_Goods,0),D474))","v":""},null,null,"",{"$nulls":7},4,null,null,{"$f":"IF(AND(G466<>\"\",E474<>\"\",L474<>\"\"),TRUE,IF(AND(G466<>\"\",OR(AND(E474<>\"\",L474=\"\"),AND(E474=\"\",L474<>\"\"))),CONST_ErrorOrMissing&C466,CONST_NA))","v":"n.a."}]
[{"$nulls":3},5,"",null,null,{"$f":"IF(L466=\"\",\"\",INDEX(CONST_MATRIX_ProductionRoute,MATCH(L466,CONST_LIST_Goods,0),D475))","v":""},null,null,"",{"$nulls":7},5,null,null,{"$f":"IF(AND(G466<>\"\",E475<>\"\",L475<>\"\"),TRUE,IF(AND(G466<>\"\",OR(AND(E475<>\"\",L475=\"\"),AND(E475=\"\",L475<>\"\"))),CONST_ErrorOrMissing&C466,CONST_NA))","v":"n.a."}]
[{"$nulls":3},6,"",null,null,{"$f":"IF(L466=\"\",\"\",INDEX(CONST_MATRIX_ProductionRoute,MATCH(L466,CONST_LIST_Goods,0),D476))","v":""},null,null,"",{"$nulls":7},6,null,null,{"$f":"IF(AND(G466<>\"\",E476<>\"\",L476<>\"\"),TRUE,IF(AND(G466<>\"\",OR(AND(E476<>\"\",L476=\"\"),AND(E476=\"\",L476<>\"\"))),CONST_ErrorOrMissing&C466,CONST_NA))","v":"n.a."}]
[{"$nulls":3},7,"",null,null,{"$f":"IF(L466=\"\",\"\",INDEX(CONST_MATRIX_ProductionRoute,MATCH(L466,CONST_LIST_Goods,0),D477))","v":""},null,null,"",{"$nulls":7},7,null,null,{"$f":"IF(AND(G466<>\"\",E477<>\"\",L477<>\"\"),TRUE,IF(AND(G466<>\"\",OR(AND(E477<>\"\",L477=\"\"),AND(E477=\"\",L477<>\"\"))),CONST_ErrorOrMissing&C466,CONST_NA))","v":"n.a."}]
[{"$nulls":3},8,"",null,null,{"$f":"IF(L466=\"\",\"\",INDEX(CONST_MATRIX_ProductionRoute,MATCH(L466,CONST_LIST_Goods,0),D478))","v":""},null,null,"",{"$nulls":7},8,null,null,{"$f":"IF(AND(G466<>\"\",E478<>\"\",L478<>\"\"),TRUE,IF(AND(G466<>\"\",OR(AND(E478<>\"\",L478=\"\"),AND(E478=\"\",L478<>\"\"))),CONST_ErrorOrMissing&C466,CONST_NA))","v":"n.a."}]
[{"$nulls":4},{"$f":"Translations!$B$246","v":"Total production within installation (= denominator for SEE calculation):"},{"$nulls":5},{"$f":"K471","v":""},{"$f":"IF(G466=\"\",\"\",SUM(L471:L478))","v":""},{"$nulls":5},{"$f":"CONST_CNTR_TotProd&G466","v":"TotProd_"},null,{"$f":"IF(G466=\"\",\"\",L479)","v":""}]
[]
[{"$nulls":3},"(b)",{"$f":"Translations!$B$247","v":"Production details"},{"$nulls":5},{"$f":"Translations!$B$221","v":"Unit"},{"$f":"Translations!$B$245","v":"Amounts"}]
[{"$nulls":3},"i.",{"$f":"Translations!$B$248","v":"Produced for the market"},{"$nulls":5},{"$f":"K471","v":""},{"$nulls":6},{"$f":"CONST_GoodToMarket&G466","v":"ToMarket_"},null,{"$f":"IF($G$11=\"\",\"\",L482)","v":""},null,{"$f":"IF(AND(G466<>\"\",L482<>\"\"),TRUE,IF(AND(G466<>\"\",OR(L482=\"\",L471<>\"\")),CONST_ErrorOrMissing&C466,CONST_NA))","v":"n.a."}]
[{"$nulls":3},"ii.",{"$f":"Translations!$B$249","v":"Share of total under (a) produced for the market"},{"$nulls":6},{"$f":"IF(AND(COUNT(L479,L482)=2,SUM(L479>0)),SUM(L482)/SUM(L479),\"\")","v":""}]
[{"$nulls":3},"iii.",{"$f":"Translations!$B$250","v":"Total production only for the market?"},{"$nulls":6},{"$f":"IF(G466=\"\",\"\",AND(SUM(L479)>0,SUM(L479)=SUM(L482)))","v":""}]
[]
[{"$nulls":3},"(c)",{"$f":"Translations!$B$251","v":"Consumed in other 'production processes' within the installation:"},{"$nulls":5},{"$f":"Translations!$B$221","v":"Unit"},{"$f":"Translations!$B$245","v":"Amounts"},{"$nulls":6},"Numbering",{"$nulls":3},"cond.form.",{"$f":"IF(G466=\"\",FALSE,L484)","v":false}]
[{"$nulls":3},1,{"$f":"IF(INDEX(CNTR_List_ExistProdProcNames,S487)=CONST_NA,\"\",INDEX(CNTR_List_ExistProdProcNames,S487))","v":""},{"$nulls":5},{"$f":"K471","v":""},{"$nulls":6},{"$f":"CONST_PrecursorToGoodInput&G466&\"_\"&E487","v":"PrecToGood__"},{"$f":"MAX(S486:S486)+IF(D487=C466,2,1)","v":1},{"$f":"IF(G466=\"\",\"\",L487)","v":""},null,{"$f":"IF(AND(G466<>\"\",E487<>\"\",L487<>\"\"),TRUE,IF(AND(G466<>\"\",E487<>\"\",L487=\"\",X487=FALSE),CONST_ErrorOrMissing&C466,CONST_NA))","v":"n.a."},"cond.form.",{"$f":"IF(G466=\"\",FALSE,OR(L484,E487=\"\"))","v":false}]
[{"$nulls":3},2,"",{"$nulls":5},{"$f":"K487","v":""},{"$nulls":6},{"$f":"CONST_PrecursorToGoodInput&G466&\"_\"&E488","v":"PrecToGood__"},{"$f":"MAX(S486:S487)+IF(D488=C466,2,1)","v":2},{"$f":"IF(G466=\"\",\"\",L488)","v":""},null,{"$f":"IF(AND(G466<>\"\",E488<>\"\",L488<>\"\"),TRUE,IF(AND(G466<>\"\",E488<>\"\",L488=\"\",X488=FALSE),CONST_ErrorOrMissing&C466,CONST_NA))","v":"n.a."},null,{"$f":"IF(G466=\"\",FALSE,OR(L484,E488=\"\"))","v":false}]
[{"$nulls":3},3,"",{"$nulls":5},{"$f":"K488","v":""},{"$nulls":6},{"$f":"CONST_PrecursorToGoodInput&G466&\"_\"&E489","v":"PrecToGood__"},{"$f":"MAX(S486:S488)+IF(D489=C466,2,1)","v":3},{"$f":"IF(G466=\"\",\"\",L489)","v":""},null,{"$f":"IF(AND(G466<>\"\",E489<>\"\",L489<>\"\"),TRUE,IF(AND(G466<>\"\",E489<>\"\",L489=\"\",X489=FALSE),CONST_ErrorOrMissing&C466,CONST_NA))","v":"n.a."},null,{"$f":"IF(G466=\"\",FALSE,OR(L484,E489=\"\"))","v":false}]
[{"$nulls":3},4,"",{"$nulls":5},"",{"$nulls":6},{"$f":"CONST_PrecursorToGoodInput&G466&\"_\"&E490","v":"PrecToGood__"},{"$f":"MAX(S486:S489)+IF(D490=C466,2,1)","v":4},{"$f":"IF(G466=\"\",\"\",L490)","v":""},null,{"$f":"IF(AND(G466<>\"\",E490<>\"\",L490<>\"\"),TRUE,IF(AND(G466<>\"\",E490<>\"\",L490=\"\",X490=FALSE),CONST_ErrorOrMissing&C466,CONST_NA))","v":"n.a."},null,{"$f":"IF(G466=\"\",FALSE,OR(L484,E490=\"\"))","v":false}]
[{"$nulls":3},5,"",{"$nulls":5},"",{"$nulls":6},{"$f":"CONST_PrecursorToGoodInput&G466&\"_\"&E491","v":"PrecToGood__"},{"$f":"MAX(S486:S490)+IF(D491=C466,2,1)","v":5},{"$f":"IF(G466=\"\",\"\",L491)","v":""},null,{"$f":"IF(AND(G466<>\"\",E491<>\"\",L491<>\"\"),TRUE,IF(AND(G466<>\"\",E491<>\"\",L491=\"\",X491=FALSE),CONST_ErrorOrMissing&C466,CONST_NA))","v":"n.a."},null,{"$f":"IF(G466=\"\",FALSE,OR(L484,E491=\"\"))","v":false}]
[{"$nulls":3},6,"",{"$nulls":5},"",{"$nulls":6},{"$f":"CONST_PrecursorToGoodInput&G466&\"_\"&E492","v":"PrecToGood__"},{"$f":"MAX(S486:S491)+IF(D492=C466,2,1)","v":6},{"$f":"IF(G466=\"\",\"\",L492)","v":""},null,{"$f":"IF(AND(G466<>\"\",E492<>\"\",L492<>\"\"),TRUE,IF(AND(G466<>\"\",E492<>\"\",L492=\"\",X492=FALSE),CONST_ErrorOrMissing&C466,CONST_NA))","v":"n.a."},null,{"$f":"IF(G466=\"\",FALSE,OR(L484,E492=\"\"))","v":false}]
[{"$nulls":3},7,"",{"$nulls":5},"",{"$nulls":6},{"$f":"CONST_PrecursorToGoodInput&G466&\"_\"&E493","v":"PrecToGood__"},{"$f":"MAX(S486:S492)+IF(D493=C466,2,1)","v":7},{"$f":"IF(G466=\"\",\"\",L493)","v":""},null,{"$f":"IF(AND(G466<>\"\",E493<>\"\",L493<>\"\"),TRUE,IF(AND(G466<>\"\",E493<>\"\",L493=\"\",X493=FALSE),CONST_ErrorOrMissing&C466,CONST_NA))","v":"n.a."},null,{"$f":"IF(G466=\"\",FALSE,OR(L484,E493=\"\"))","v":false}]
[{"$nulls":3},8,"",{"$nulls":5},"",{"$nulls":6},{"$f":"CONST_PrecursorToGoodInput&G466&\"_\"&E494","v":"PrecToGood__"},{"$f":"MAX(S486:S493)+IF(D494=C466,2,1)","v":9},{"$f":"IF(G466=\"\",\"\",L494)","v":""},null,{"$f":"IF(AND(G466<>\"\",E494<>\"\",L494<>\"\"),TRUE,IF(AND(G466<>\"\",E494<>\"\",L494=\"\",X494=FALSE),CONST_ErrorOrMissing&C466,CONST_NA))","v":"n.a."},null,{"$f":"IF(G466=\"\",FALSE,OR(L484,E494=\"\"))","v":false}]
[{"$nulls":3},9,"",{"$nulls":5},"",{"$nulls":6},{"$f":"CONST_PrecursorToGoodInput&G466&\"_\"&E495","v":"PrecToGood__"},{"$f":"MAX(S486:S494)+IF(D495=C466,2,1)","v":10},{"$f":"IF(G466=\"\",\"\",L495)","v":""},null,{"$f":"IF(AND(G466<>\"\",E495<>\"\",L495<>\"\"),TRUE,IF(AND(G466<>\"\",E495<>\"\",L495=\"\",X495=FALSE),CONST_ErrorOrMissing&C466,CONST_NA))","v":"n.a."},null,{"$f":"IF(G466=\"\",FALSE,OR(L484,E495=\"\"))","v":false}]
[{"$nulls":3},"(d)",{"$f":"Translations!$B$252","v":"Consumed for non-CBAM goods within the installation:"},{"$nulls":5},"",{"$nulls":10},{"$f":"IF(AND(G466<>\"\",L496<>\"\"),TRUE,IF(AND(G466<>\"\",L496=\"\",X496=FALSE),CONST_ErrorOrMissing&C466,CONST_NA))","v":"n.a."},"cond.form.",{"$f":"IF(G466=\"\",FALSE,L484)","v":false}]
[{"$nulls":3},"(e)",{"$f":"Translations!$B$253","v":"Control:"},{"$nulls":5},"",{"$f":"IF(G466=\"\",\"\",SUM(L479)-SUM(L482,L487:L496))","v":""},{"$nulls":9},{"$f":"IF(AND(G466<>\"\",L497=0),TRUE,IF(AND(G466<>\"\",L497<>0,X497=FALSE),CONST_ErrorOrMissing&C466,CONST_NA))","v":"n.a."},null,{"$f":"IF(G466=\"\",FALSE,L484)","v":false}]
[]
[]
[{"$nulls":3},{"$f":"Translations!$B$254","v":"Calculation of the attributed emissions:"},{"$nulls":5},{"$f":"IF(G466=\"\",\"\",G466)","v":""}]
[]
[{"$nulls":4},{"$f":"HYPERLINK(\"#\"&ADDRESS(MATCH($S502,G_FurtherGuidance!$S:$S,0),3,,,G_FurtherGuidance!$U$2),CONST_LinkToGuidanceSheet)","v":"Please click on this link for further guidance on how to complete this section."},{"$nulls":12},"Link to guidance:",3]
[]
[{"$nulls":10},{"$f":"Translations!$B$255","v":"Measurable heat"},{"$f":"Translations!$B$256","v":"Waste gases"},{"$f":"Translations!$B$257","v":"Indirect emissions"}]
[{"$nulls":3},"(f)",{"$f":"Translations!$B$258","v":"Please select which elements are applicable"},{"$nulls":7},{"$f":"IF(L466=\"\",\"\",INDEX(CONST_LIST_GoodsIndRel,MATCH(L466,CONST_LIST_Goods,0)))","v":""},{"$nulls":8},{"$f":"IF(AND(L466<>\"\",X505=FALSE),IF(COUNTA(K505:L505)=2,TRUE,CONST_ErrorOrMissing&C466),CONST_NA)","v":"n.a."}]
[{"$nulls":4},{"$f":"Translations!$B$259","v":"Based on your selection, related sections below might become irrelevant and greyed out below."}]
[]
[{"$nulls":10},{"$f":"Translations!$B$221","v":"Unit"},{"$f":"Translations!$B$260","v":"Value"}]
[{"$nulls":3},"(g)",{"$f":"Translations!$B$261","v":"Directly attributable emissions (DirEm*)"},{"$nulls":5},{"$f":"CONST_tCO2eq","v":"tCO2e"},{"$nulls":6},{"$f":"CONST_EmDir&G466","v":"EmDir_"},{"$f":"CONST_CNTR_EmbedEmDir&G466","v":"EmbedEmDir_"},{"$f":"IF(G466=\"\",\"\",L509)","v":""},null,{"$f":"IF(L466<>\"\",IF(L509<>\"\",TRUE,CONST_ErrorOrMissing&C466),CONST_NA)","v":"n.a."}]
[]
[{"$nulls":3},"(h)",{"$f":"Translations!$B$262","v":"Import and export of measurable heat"},{"$nulls":5},{"$f":"Translations!$B$221","v":"Unit"},{"$f":"Translations!$B$263","v":"Imported"},{"$f":"Translations!$B$264","v":"Exported"},{"$nulls":9},"cond.form.",{"$f":"AND(K505<>\"\",K505=FALSE)","v":false}]
[{"$nulls":3},"i.",{"$f":"Translations!$B$265","v":"Amount of net measurable heat"},{"$nulls":5},"TJ",{"$nulls":10},{"$f":"IF(AND(L466<>\"\",X512=FALSE),IF(COUNTA(L512:M512)=2,TRUE,CONST_ErrorOrMissing&C466),CONST_NA)","v":"n.a."},null,{"$f":"X511","v":false}]
[{"$nulls":3},"ii.",{"$f":"Translations!$B$266","v":"Emissions factor"},{"$nulls":5},{"$f":"CONST_tCO2pTJ","v":"tCO2/TJ"},{"$nulls":6},{"$f":"CONST_EmDirHeat&G466","v":"EmDirHeat_"},{"$f":"CONST_CNTR_EmbedEmDir&G466","v":"EmbedEmDir_"},{"$f":"IF(G466=\"\",\"\",SUM(L512*L513-M512*M513))","v":""},null,{"$f":"IF(AND(L466<>\"\",X513=FALSE),IF(COUNTA(L513:M513)=2,TRUE,CONST_ErrorOrMissing&C466),CONST_NA)","v":"n.a."},null,{"$f":"X512","v":false}]
[]
[{"$nulls":3},"(i)",{"$f":"Translations!$B$256","v":"Waste gases"},{"$nulls":5},{"$f":"Translations!$B$221","v":"Unit"},{"$f":"Translations!$B$263","v":"Imported"},{"$f":"Translations!$B$264","v":"Exported"},{"$nulls":9},"cond.form.",{"$f":"AND(L505<>\"\",L505=FALSE)","v":false}]
[{"$nulls":3},"i.",{"$f":"Translations!$B$267","v":"Amount of waste gas"},{"$nulls":5},{"$f":"CONST_TJ","v":"TJ"},{"$nulls":10},{"$f":"IF(AND(L466<>\"\",X516=FALSE),IF(COUNTA(L516:M516)=2,TRUE,CONST_ErrorOrMissing&C466),CONST_NA)","v":"n.a."},null,{"$f":"X515","v":false}]
[{"$nulls":3},"ii.",{"$f":"Translations!$B$268","v":"Emission factor"},{"$nulls":5},{"$f":"CONST_tCO2pTJ","v":"tCO2/TJ"},{"$nulls":6},{"$f":"CONST_EmDirWasteGases&G466","v":"EmDirWG_"},{"$f":"CONST_CNTR_EmbedEmDir&G466","v":"EmbedEmDir_"},{"$f":"IF(G466=\"\",\"\",SUM(L516*CONST_EFNatGas-M516*CONST_EFNatGas*0.667))","v":""},{"$nulls":3},{"$f":"X516","v":false}]
[]
[{"$nulls":3},"(j)",{"$f":"Translations!$B$269","v":"Indirect emissions from electricity consumption"},{"$nulls":5},{"$f":"Translations!$B$221","v":"Unit"},{"$f":"Translations!$B$260","v":"Value"},{"$nulls":10},"cond.form.",{"$f":"M505=FALSE","v":false}]
[{"$nulls":3},"i.",{"$f":"Translations!$B$270","v":"Electricity consumption"},{"$nulls":5},{"$f":"CONST_MWh","v":"MWh"},{"$nulls":6},{"$f":"CONST_ElecConsumption&G466","v":"ElecCons_"},null,{"$f":"IF(G466=\"\",\"\",L520)","v":""},null,{"$f":"IF(AND(L466<>\"\",X520=FALSE),IF(L520<>\"\",TRUE,CONST_ErrorOrMissing&C466),CONST_NA)","v":"n.a."},null,{"$f":"X519","v":false}]
[{"$nulls":3},"ii.",{"$f":"Translations!$B$271","v":"Emission factor of the electricity"},{"$nulls":5},{"$f":"CONST_tCO2&\"/\"&CONST_MWh","v":"tCO2/MWh"},{"$nulls":7},{"$f":"CONST_CNTR_EmbedEmInDir&G466","v":"EmbedEmInDir_"},{"$f":"IF(G466=\"\",\"\",SUM(L520)*SUM(L521))","v":""},null,{"$f":"IF(AND(L466<>\"\",X521=FALSE),IF(L521<>\"\",TRUE,CONST_ErrorOrMissing&C466),CONST_NA)","v":"n.a."},null,{"$f":"X520","v":false}]
[{"$nulls":3},"iii.",{"$f":"Translations!$B$272","v":"Source of the emission factor"},{"$nulls":5},"-",{"$nulls":6},{"$f":"CONST_CNTR_ElecEFMethod&G466","v":"ElecEFMeth_"},null,{"$f":"IF(L522=\"\",\"\",L522)","v":""},null,{"$f":"IF(AND(L466<>\"\",X522=FALSE),IF(L522<>\"\",TRUE,CONST_ErrorOrMissing&C466),CONST_NA)","v":"n.a."},null,{"$f":"X521","v":false}]
[]
[]
[{"$nulls":3},"(k)",{"$f":"Translations!$B$273","v":"Electricity exported from the production process"},{"$nulls":5},{"$f":"Translations!$B$221","v":"Unit"},{"$f":"Translations!$B$260","v":"Value"}]
[{"$nulls":3},"i.",{"$f":"Translations!$B$274","v":"Amounts exported"},{"$nulls":5},"MWh",{"$nulls":10},{"$f":"IF(L466<>\"\",IF(L526<>\"\",TRUE,CONST_ErrorOrMissing&C466),CONST_NA)","v":"n.a."}]
[{"$nulls":3},"ii.",{"$f":"Translations!$B$271","v":"Emission factor of the electricity"},{"$nulls":5},{"$f":"CONST_tCO2&\"/\"&CONST_MWh","v":"tCO2/MWh"},{"$nulls":7},{"$f":"CONST_CNTR_EmbedEmDir&G466","v":"EmbedEmDir_"},{"$f":"IF(G466=\"\",\"\",-SUM(L526)*SUM(L527))","v":""},null,{"$f":"IF(AND(L466<>\"\",SUM(L526)>0),IF(L527<>\"\",TRUE,CONST_ErrorOrMissing&C466),CONST_NA)","v":"n.a."}]
[]
[]
[]
[null,null,{"$f":"C466+1","v":9},{"$f":"CONST_ProductionProcess&\" \"&C531&\":\"","v":"Production process 9:"},null,null,{"$f":"IF(INDEX(CNTR_List_ExistProdProcNames,R531)=CONST_NA,\"\",INDEX(CNTR_List_ExistProdProcNames,R531))","v":""},{"$nulls":4},{"$f":"IF(INDEX(CNTR_List_ExistProdProc,R531)=CONST_NA,\"\",INDEX(CNTR_List_ExistProdProc,R531))","v":""},{"$nulls":5},{"$f":"C531","v":9},{"$nulls":4},"Not relevant:",{"$f":"AND(CNTR_HasEntriesA,G531=\"\")","v":false}]
[]
[{"$nulls":4},{"$f":"HYPERLINK(\"#\"&ADDRESS(MATCH($S533,G_FurtherGuidance!$S:$S,0),3,,,G_FurtherGuidance!$U$2),CONST_LinkToGuidanceSheet)","v":"Please click on this link for further guidance on how to complete this section."},{"$nulls":12},"Link to guidance:",3]
[]
[{"$nulls":3},"(a) ",{"$f":"Translations!$B$243","v":"Total production levels:"},null,null,{"$f":"Translations!$B$244","v":"Production route"},null,null,{"$f":"Translations!$B$221","v":"Unit"},{"$f":"Translations!$B$245","v":"Amounts"}]
[{"$nulls":3},1,{"$f":"IF(G531=\"\",\"\",G531)&IF(L531=\"\",\"\",\" | \"&L531)","v":""},null,null,{"$f":"IF(L531=\"\",\"\",INDEX(CONST_MATRIX_ProductionRoute,MATCH(L531,CONST_LIST_Goods,0),D536))","v":""},null,null,{"$f":"IF(L531=\"\",\"\",INDEX(CONST_LIST_GoodsUnit,MATCH(L531,CONST_LIST_Goods,0)))","v":""},{"$nulls":7},1,null,null,{"$f":"IF(AND(G531<>\"\",E536<>\"\",L536<>\"\"),TRUE,IF(AND(G531<>\"\",OR(AND(E536<>\"\",L536=\"\"),AND(E536=\"\",L536<>\"\"))),CONST_ErrorOrMissing&C531,CONST_NA))","v":"n.a."}]
[{"$nulls":3},2,{"$f":"IF(H537=CONST_NA,\"\",E536)","v":""},null,null,{"$f":"IF(L531=\"\",\"\",INDEX(CONST_MATRIX_ProductionRoute,MATCH(L531,CONST_LIST_Goods,0),D537))","v":""},null,null,{"$f":"IF(H537=CONST_NA,\"\",K536)","v":""},{"$nulls":7},2,null,null,{"$f":"IF(AND(G531<>\"\",E537<>\"\",L537<>\"\"),TRUE,IF(AND(G531<>\"\",OR(AND(E537<>\"\",L537=\"\"),AND(E537=\"\",L537<>\"\"))),CONST_ErrorOrMissing&C531,CONST_NA))","v":"n.a."}]
[{"$nulls":3},3,"",null,null,{"$f":"IF(L531=\"\",\"\",INDEX(CONST_MATRIX_ProductionRoute,MATCH(L531,CONST_LIST_Goods,0),D538))","v":""},null,null,"",{"$nulls":7},3,null,null,{"$f":"IF(AND(G531<>\"\",E538<>\"\",L538<>\"\"),TRUE,IF(AND(G531<>\"\",OR(AND(E538<>\"\",L538=\"\"),AND(E538=\"\",L538<>\"\"))),CONST_ErrorOrMissing&C531,CONST_NA))","v":"n.a."}]
[{"$nulls":3},4,"",null,null,{"$f":"IF(L531=\"\",\"\",INDEX(CONST_MATRIX_ProductionRoute,MATCH(L531,CONST_LIST_Goods,0),D539))","v":""},null,null,"",{"$nulls":7},4,null,null,{"$f":"IF(AND(G531<>\"\",E539<>\"\",L539<>\"\"),TRUE,IF(AND(G531<>\"\",OR(AND(E539<>\"\",L539=\"\"),AND(E539=\"\",L539<>\"\"))),CONST_ErrorOrMissing&C531,CONST_NA))","v":"n.a."}]
[{"$nulls":3},5,"",null,null,{"$f":"IF(L531=\"\",\"\",INDEX(CONST_MATRIX_ProductionRoute,MATCH(L531,CONST_LIST_Goods,0),D540))","v":""},null,null,"",{"$nulls":7},5,null,null,{"$f":"IF(AND(G531<>\"\",E540<>\"\",L540<>\"\"),TRUE,IF(AND(G531<>\"\",OR(AND(E540<>\"\",L540=\"\"),AND(E540=\"\",L540<>\"\"))),CONST_ErrorOrMissing&C531,CONST_NA))","v":"n.a."}]
[{"$nulls":3},6,"",null,null,{"$f":"IF(L531=\"\",\"\",INDEX(CONST_MATRIX_ProductionRoute,MATCH(L531,CONST_LIST_Goods,0),D541))","v":""},null,null,"",{"$nulls":7},6,null,null,{"$f":"IF(AND(G531<>\"\",E541<>\"\",L541<>\"\"),TRUE,IF(AND(G531<>\"\",OR(AND(E541<>\"\",L541=\"\"),AND(E541=\"\",L541<>\"\"))),CONST_ErrorOrMissing&C531,CONST_NA))","v":"n.a."}]
[{"$nulls":3},7,"",null,null,{"$f":"IF(L531=\"\",\"\",INDEX(CONST_MATRIX_ProductionRoute,MATCH(L531,CONST_LIST_Goods,0),D542))","v":""},null,null,"",{"$nulls":7},7,null,null,{"$f":"IF(AND(G531<>\"\",E542<>\"\",L542<>\"\"),TRUE,IF(AND(G531<>\"\",OR(AND(E542<>\"\",L542=\"\"),AND(E542=\"\",L542<>\"\"))),CONST_ErrorOrMissing&C531,CONST_NA))","v":"n.a."}]
[{"$nulls":3},8,"",null,null,{"$f":"IF(L531=\"\",\"\",INDEX(CONST_MATRIX_ProductionRoute,MATCH(L531,CONST_LIST_Goods,0),D543))","v":""},null,null,"",{"$nulls":7},8,null,null,{"$f":"IF(AND(G531<>\"\",E543<>\"\",L543<>\"\"),TRUE,IF(AND(G531<>\"\",OR(AND(E543<>\"\",L543=\"\"),AND(E543=\"\",L543<>\"\"))),CONST_ErrorOrMissing&C531,CONST_NA))","v":"n.a."}]
[{"$nulls":4},{"$f":"Translations!$B$246","v":"Total production within installation (= denominator for SEE calculation):"},{"$nulls":5},{"$f":"K536","v":""},{"$f":"IF(G531=\"\",\"\",SUM(L536:L543))","v":""},{"$nulls":5},{"$f":"CONST_CNTR_TotProd&G531","v":"TotProd_"},null,{"$f":"IF(G531=\"\",\"\",L544)","v":""}]
[]
[{"$nulls":3},"(b)",{"$f":"Translations!$B$247","v":"Production details"},{"$nulls":5},{"$f":"Translations!$B$221","v":"Unit"},{"$f":"Translations!$B$245","v":"Amounts"}]
[{"$nulls":3},"i.",{"$f":"Translations!$B$248","v":"Produced for the market"},{"$nulls":5},{"$f":"K536","v":""},{"$nulls":6},{"$f":"CONST_GoodToMarket&G531","v":"ToMarket_"},null,{"$f":"IF($G$11=\"\",\"\",L547)","v":""},null,{"$f":"IF(AND(G531<>\"\",L547<>\"\"),TRUE,IF(AND(G531<>\"\",OR(L547=\"\",L536<>\"\")),CONST_ErrorOrMissing&C531,CONST_NA))","v":"n.a."}]
[{"$nulls":3},"ii.",{"$f":"Translations!$B$249","v":"Share of total under (a) produced for the market"},{"$nulls":6},{"$f":"IF(AND(COUNT(L544,L547)=2,SUM(L544>0)),SUM(L547)/SUM(L544),\"\")","v":""}]
[{"$nulls":3},"iii.",{"$f":"Translations!$B$250","v":"Total production only for the market?"},{"$nulls":6},{"$f":"IF(G531=\"\",\"\",AND(SUM(L544)>0,SUM(L544)=SUM(L547)))","v":""}]
[]
[{"$nulls":3},"(c)",{"$f":"Translations!$B$251","v":"Consumed in other 'production processes' within the installation:"},{"$nulls":5},{"$f":"Translations!$B$221","v":"Unit"},{"$f":"Translations!$B$245","v":"Amounts"},{"$nulls":6},"Numbering",{"$nulls":3},"cond.form.",{"$f":"IF(G531=\"\",FALSE,L549)","v":false}]
[{"$nulls":3},1,{"$f":"IF(INDEX(CNTR_List_ExistProdProcNames,S552)=CONST_NA,\"\",INDEX(CNTR_List_ExistProdProcNames,S552))","v":""},{"$nulls":5},{"$f":"K536","v":""},{"$nulls":6},{"$f":"CONST_PrecursorToGoodInput&G531&\"_\"&E552","v":"PrecToGood__"},{"$f":"MAX(S551:S551)+IF(D552=C531,2,1)","v":1},{"$f":"IF(G531=\"\",\"\",L552)","v":""},null,{"$f":"IF(AND(G531<>\"\",E552<>\"\",L552<>\"\"),TRUE,IF(AND(G531<>\"\",E552<>\"\",L552=\"\",X552=FALSE),CONST_ErrorOrMissing&C531,CONST_NA))","v":"n.a."},"cond.form.",{"$f":"IF(G531=\"\",FALSE,OR(L549,E552=\"\"))","v":false}]
[{"$nulls":3},2,"",{"$nulls":5},{"$f":"K552","v":""},{"$nulls":6},{"$f":"CONST_PrecursorToGoodInput&G531&\"_\"&E553","v":"PrecToGood__"},{"$f":"MAX(S551:S552)+IF(D553=C531,2,1)","v":2},{"$f":"IF(G531=\"\",\"\",L553)","v":""},null,{"$f":"IF(AND(G531<>\"\",E553<>\"\",L553<>\"\"),TRUE,IF(AND(G531<>\"\",E553<>\"\",L553=\"\",X553=FALSE),CONST_ErrorOrMissing&C531,CONST_NA))","v":"n.a."},null,{"$f":"IF(G531=\"\",FALSE,OR(L549,E553=\"\"))","v":false}]
[{"$nulls":3},3,"",{"$nulls":5},{"$f":"K553","v":""},{"$nulls":6},{"$f":"CONST_PrecursorToGoodInput&G531&\"_\"&E554","v":"PrecToGood__"},{"$f":"MAX(S551:S553)+IF(D554=C531,2,1)","v":3},{"$f":"IF(G531=\"\",\"\",L554)","v":""},null,{"$f":"IF(AND(G531<>\"\",E554<>\"\",L554<>\"\"),TRUE,IF(AND(G531<>\"\",E554<>\"\",L554=\"\",X554=FALSE),CONST_ErrorOrMissing&C531,CONST_NA))","v":"n.a."},null,{"$f":"IF(G531=\"\",FALSE,OR(L549,E554=\"\"))","v":false}]
[{"$nulls":3},4,"",{"$nulls":5},"",{"$nulls":6},{"$f":"CONST_PrecursorToGoodInput&G531&\"_\"&E555","v":"PrecToGood__"},{"$f":"MAX(S551:S554)+IF(D555=C531,2,1)","v":4},{"$f":"IF(G531=\"\",\"\",L555)","v":""},null,{"$f":"IF(AND(G531<>\"\",E555<>\"\",L555<>\"\"),TRUE,IF(AND(G531<>\"\",E555<>\"\",L555=\"\",X555=FALSE),CONST_ErrorOrMissing&C531,CONST_NA))","v":"n.a."},null,{"$f":"IF(G531=\"\",FALSE,OR(L549,E555=\"\"))","v":false}]
[{"$nulls":3},5,"",{"$nulls":5},"",{"$nulls":6},{"$f":"CONST_PrecursorToGoodInput&G531&\"_\"&E556","v":"PrecToGood__"},{"$f":"MAX(S551:S555)+IF(D556=C531,2,1)","v":5},{"$f":"IF(G531=\"\",\"\",L556)","v":""},null,{"$f":"IF(AND(G531<>\"\",E556<>\"\",L556<>\"\"),TRUE,IF(AND(G531<>\"\",E556<>\"\",L556=\"\",X556=FALSE),CONST_ErrorOrMissing&C531,CONST_NA))","v":"n.a."},null,{"$f":"IF(G531=\"\",FALSE,OR(L549,E556=\"\"))","v":false}]
[{"$nulls":3},6,"",{"$nulls":5},"",{"$nulls":6},{"$f":"CONST_PrecursorToGoodInput&G531&\"_\"&E557","v":"PrecToGood__"},{"$f":"MAX(S551:S556)+IF(D557=C531,2,1)","v":6},{"$f":"IF(G531=\"\",\"\",L557)","v":""},null,{"$f":"IF(AND(G531<>\"\",E557<>\"\",L557<>\"\"),TRUE,IF(AND(G531<>\"\",E557<>\"\",L557=\"\",X557=FALSE),CONST_ErrorOrMissing&C531,CONST_NA))","v":"n.a."},null,{"$f":"IF(G531=\"\",FALSE,OR(L549,E557=\"\"))","v":false}]
[{"$nulls":3},7,"",{"$nulls":5},"",{"$nulls":6},{"$f":"CONST_PrecursorToGoodInput&G531&\"_\"&E558","v":"PrecToGood__"},{"$f":"MAX(S551:S557)+IF(D558=C531,2,1)","v":7},{"$f":"IF(G531=\"\",\"\",L558)","v":""},null,{"$f":"IF(AND(G531<>\"\",E558<>\"\",L558<>\"\"),TRUE,IF(AND(G531<>\"\",E558<>\"\",L558=\"\",X558=FALSE),CONST_ErrorOrMissing&C531,CONST_NA))","v":"n.a."},null,{"$f":"IF(G531=\"\",FALSE,OR(L549,E558=\"\"))","v":false}]
[{"$nulls":3},8,"",{"$nulls":5},"",{"$nulls":6},{"$f":"CONST_PrecursorToGoodInput&G531&\"_\"&E559","v":"PrecToGood__"},{"$f":"MAX(S551:S558)+IF(D559=C531,2,1)","v":8},{"$f":"IF(G531=\"\",\"\",L559)","v":""},null,{"$f":"IF(AND(G531<>\"\",E559<>\"\",L559<>\"\"),TRUE,IF(AND(G531<>\"\",E559<>\"\",L559=\"\",X559=FALSE),CONST_ErrorOrMissing&C531,CONST_NA))","v":"n.a."},null,{"$f":"IF(G531=\"\",FALSE,OR(L549,E559=\"\"))","v":false}]
[{"$nulls":3},9,"",{"$nulls":5},"",{"$nulls":6},{"$f":"CONST_PrecursorToGoodInput&G531&\"_\"&E560","v":"PrecToGood__"},{"$f":"MAX(S551:S559)+IF(D560=C531,2,1)","v":10},{"$f":"IF(G531=\"\",\"\",L560)","v":""},null,{"$f":"IF(AND(G531<>\"\",E560<>\"\",L560<>\"\"),TRUE,IF(AND(G531<>\"\",E560<>\"\",L560=\"\",X560=FALSE),CONST_ErrorOrMissing&C531,CONST_NA))","v":"n.a."},null,{"$f":"IF(G531=\"\",FALSE,OR(L549,E560=\"\"))","v":false}]
[{"$nulls":3},"(d)",{"$f":"Translations!$B$252","v":"Consumed for non-CBAM goods within the installation:"},{"$nulls":5},"",{"$nulls":10},{"$f":"IF(AND(G531<>\"\",L561<>\"\"),TRUE,IF(AND(G531<>\"\",L561=\"\",X561=FALSE),CONST_ErrorOrMissing&C531,CONST_NA))","v":"n.a."},"cond.form.",{"$f":"IF(G531=\"\",FALSE,L549)","v":false}]
[{"$nulls":3},"(e)",{"$f":"Translations!$B$253","v":"Control:"},{"$nulls":5},"",{"$f":"IF(G531=\"\",\"\",SUM(L544)-SUM(L547,L552:L561))","v":""},{"$nulls":9},{"$f":"IF(AND(G531<>\"\",L562=0),TRUE,IF(AND(G531<>\"\",L562<>0,X562=FALSE),CONST_ErrorOrMissing&C531,CONST_NA))","v":"n.a."},null,{"$f":"IF(G531=\"\",FALSE,L549)","v":false}]
[]
[]
[{"$nulls":3},{"$f":"Translations!$B$254","v":"Calculation of the attributed emissions:"},{"$nulls":5},{"$f":"IF(G531=\"\",\"\",G531)","v":""}]
[]
[{"$nulls":4},{"$f":"HYPERLINK(\"#\"&ADDRESS(MATCH($S567,G_FurtherGuidance!$S:$S,0),3,,,G_FurtherGuidance!$U$2),CONST_LinkToGuidanceSheet)","v":"Please click on this link for further guidance on how to complete this section."},{"$nulls":12},"Link to guidance:",3]
[]
[{"$nulls":10},{"$f":"Translations!$B$255","v":"Measurable heat"},{"$f":"Translations!$B$256","v":"Waste gases"},{"$f":"Translations!$B$257","v":"Indirect emissions"}]
[{"$nulls":3},"(f)",{"$f":"Translations!$B$258","v":"Please select which elements are applicable"},{"$nulls":7},{"$f":"IF(L531=\"\",\"\",INDEX(CONST_LIST_GoodsIndRel,MATCH(L531,CONST_LIST_Goods,0)))","v":""},{"$nulls":8},{"$f":"IF(AND(L531<>\"\",X570=FALSE),IF(COUNTA(K570:L570)=2,TRUE,CONST_ErrorOrMissing&C531),CONST_NA)","v":"n.a."}]
[{"$nulls":4},{"$f":"Translations!$B$259","v":"Based on your selection, related sections below might become irrelevant and greyed out below."}]
[]
[{"$nulls":10},{"$f":"Translations!$B$221","v":"Unit"},{"$f":"Translations!$B$260","v":"Value"}]
[{"$nulls":3},"(g)",{"$f":"Translations!$B$261","v":"Directly attributable emissions (DirEm*)"},{"$nulls":5},{"$f":"CONST_tCO2eq","v":"tCO2e"},{"$nulls":6},{"$f":"CONST_EmDir&G531","v":"EmDir_"},{"$f":"CONST_CNTR_EmbedEmDir&G531","v":"EmbedEmDir_"},{"$f":"IF(G531=\"\",\"\",L574)","v":""},null,{"$f":"IF(L531<>\"\",IF(L574<>\"\",TRUE,CONST_ErrorOrMissing&C531),CONST_NA)","v":"n.a."}]
[]
[{"$nulls":3},"(h)",{"$f":"Translations!$B$262","v":"Import and export of measurable heat"},{"$nulls":5},{"$f":"Translations!$B$221","v":"Unit"},{"$f":"Translations!$B$263","v":"Imported"},{"$f":"Translations!$B$264","v":"Exported"},{"$nulls":9},"cond.form.",{"$f":"AND(K570<>\"\",K570=FALSE)","v":false}]
[{"$nulls":3},"i.",{"$f":"Translations!$B$265","v":"Amount of net measurable heat"},{"$nulls":5},"TJ",{"$nulls":10},{"$f":"IF(AND(L531<>\"\",X577=FALSE),IF(COUNTA(L577:M577)=2,TRUE,CONST_ErrorOrMissing&C531),CONST_NA)","v":"n.a."},null,{"$f":"X576","v":false}]
[{"$nulls":3},"ii.",{"$f":"Translations!$B$266","v":"Emissions factor"},{"$nulls":5},{"$f":"CONST_tCO2pTJ","v":"tCO2/TJ"},{"$nulls":6},{"$f":"CONST_EmDirHeat&G531","v":"EmDirHeat_"},{"$f":"CONST_CNTR_EmbedEmDir&G531","v":"EmbedEmDir_"},{"$f":"IF(G531=\"\",\"\",SUM(L577*L578-M577*M578))","v":""},null,{"$f":"IF(AND(L531<>\"\",X578=FALSE),IF(COUNTA(L578:M578)=2,TRUE,CONST_ErrorOrMissing&C531),CONST_NA)","v":"n.a."},null,{"$f":"X577","v":false}]
[]
[{"$nulls":3},"(i)",{"$f":"Translations!$B$256","v":"Waste gases"},{"$nulls":5},{"$f":"Translations!$B$221","v":"Unit"},{"$f":"Translations!$B$263","v":"Imported"},{"$f":"Translations!$B$264","v":"Exported"},{"$nulls":9},"cond.form.",{"$f":"AND(L570<>\"\",L570=FALSE)","v":false}]
[{"$nulls":3},"i.",{"$f":"Translations!$B$267","v":"Amount of waste gas"},{"$nulls":5},{"$f":"CONST_TJ","v":"TJ"},{"$nulls":10},{"$f":"IF(AND(L531<>\"\",X581=FALSE),IF(COUNTA(L581:M581)=2,TRUE,CONST_ErrorOrMissing&C531),CONST_NA)","v":"n.a."},null,{"$f":"X580","v":false}]
[{"$nulls":3},"ii.",{"$f":"Translations!$B$268","v":"Emission factor"},{"$nulls":5},{"$f":"CONST_tCO2pTJ","v":"tCO2/TJ"},{"$nulls":6},{"$f":"CONST_EmDirWasteGases&G531","v":"EmDirWG_"},{"$f":"CONST_CNTR_EmbedEmDir&G531","v":"EmbedEmDir_"},{"$f":"IF(G531=\"\",\"\",SUM(L581*CONST_EFNatGas-M581*CONST_EFNatGas*0.667))","v":""},{"$nulls":3},{"$f":"X581","v":false}]
[]
[{"$nulls":3},"(j)",{"$f":"Translations!$B$269","v":"Indirect emissions from electricity consumption"},{"$nulls":5},{"$f":"Translations!$B$221","v":"Unit"},{"$f":"Translations!$B$260","v":"Value"},{"$nulls":10},"cond.form.",{"$f":"M570=FALSE","v":false}]
[{"$nulls":3},"i.",{"$f":"Translations!$B$270","v":"Electricity consumption"},{"$nulls":5},{"$f":"CONST_MWh","v":"MWh"},{"$nulls":6},{"$f":"CONST_ElecConsumption&G531","v":"ElecCons_"},null,{"$f":"IF(G531=\"\",\"\",L585)","v":""},null,{"$f":"IF(AND(L531<>\"\",X585=FALSE),IF(L585<>\"\",TRUE,CONST_ErrorOrMissing&C531),CONST_NA)","v":"n.a."},null,{"$f":"X584","v":false}]
[{"$nulls":3},"ii.",{"$f":"Translations!$B$271","v":"Emission factor of the electricity"},{"$nulls":5},{"$f":"CONST_tCO2&\"/\"&CONST_MWh","v":"tCO2/MWh"},{"$nulls":7},{"$f":"CONST_CNTR_EmbedEmInDir&G531","v":"EmbedEmInDir_"},{"$f":"IF(G531=\"\",\"\",SUM(L585)*SUM(L586))","v":""},null,{"$f":"IF(AND(L531<>\"\",X586=FALSE),IF(L586<>\"\",TRUE,CONST_ErrorOrMissing&C531),CONST_NA)","v":"n.a."},null,{"$f":"X585","v":false}]
[{"$nulls":3},"iii.",{"$f":"Translations!$B$272","v":"Source of the emission factor"},{"$nulls":5},"-",{"$nulls":6},{"$f":"CONST_CNTR_ElecEFMethod&G531","v":"ElecEFMeth_"},null,{"$f":"IF(L587=\"\",\"\",L587)","v":""},null,{"$f":"IF(AND(L531<>\"\",X587=FALSE),IF(L587<>\"\",TRUE,CONST_ErrorOrMissing&C531),CONST_NA)","v":"n.a."},null,{"$f":"X586","v":false}]
[]
[]
[{"$nulls":3},"(k)",{"$f":"Translations!$B$273","v":"Electricity exported from the production process"},{"$nulls":5},{"$f":"Translations!$B$221","v":"Unit"},{"$f":"Translations!$B$260","v":"Value"}]
[{"$nulls":3},"i.",{"$f":"Translations!$B$274","v":"Amounts exported"},{"$nulls":5},"MWh",{"$nulls":10},{"$f":"IF(L531<>\"\",IF(L591<>\"\",TRUE,CONST_ErrorOrMissing&C531),CONST_NA)","v":"n.a."}]
[{"$nulls":3},"ii.",{"$f":"Translations!$B$271","v":"Emission factor of the electricity"},{"$nulls":5},{"$f":"CONST_tCO2&\"/\"&CONST_MWh","v":"tCO2/MWh"},{"$nulls":7},{"$f":"CONST_CNTR_EmbedEmDir&G531","v":"EmbedEmDir_"},{"$f":"IF(G531=\"\",\"\",-SUM(L591)*SUM(L592))","v":""},null,{"$f":"IF(AND(L531<>\"\",SUM(L591)>0),IF(L592<>\"\",TRUE,CONST_ErrorOrMissing&C531),CONST_NA)","v":"n.a."}]
[]
[]
[]
[null,null,{"$f":"C531+1","v":10},{"$f":"CONST_ProductionProcess&\" \"&C596&\":\"","v":"Production process 10:"},null,null,{"$f":"IF(INDEX(CNTR_List_ExistProdProcNames,R596)=CONST_NA,\"\",INDEX(CNTR_List_ExistProdProcNames,R596))","v":""},{"$nulls":4},{"$f":"IF(INDEX(CNTR_List_ExistProdProc,R596)=CONST_NA,\"\",INDEX(CNTR_List_ExistProdProc,R596))","v":""},{"$nulls":5},{"$f":"C596","v":10},{"$nulls":4},"Not relevant:",{"$f":"AND(CNTR_HasEntriesA,G596=\"\")","v":false}]
[]
[{"$nulls":4},{"$f":"HYPERLINK(\"#\"&ADDRESS(MATCH($S598,G_FurtherGuidance!$S:$S,0),3,,,G_FurtherGuidance!$U$2),CONST_LinkToGuidanceSheet)","v":"Please click on this link for further guidance on how to complete this section."},{"$nulls":12},"Link to guidance:",3]
[]
[{"$nulls":3},"(a) ",{"$f":"Translations!$B$243","v":"Total production levels:"},null,null,{"$f":"Translations!$B$244","v":"Production route"},null,null,{"$f":"Translations!$B$221","v":"Unit"},{"$f":"Translations!$B$245","v":"Amounts"}]
[{"$nulls":3},1,{"$f":"IF(G596=\"\",\"\",G596)&IF(L596=\"\",\"\",\" | \"&L596)","v":""},null,null,{"$f":"IF(L596=\"\",\"\",INDEX(CONST_MATRIX_ProductionRoute,MATCH(L596,CONST_LIST_Goods,0),D601))","v":""},null,null,{"$f":"IF(L596=\"\",\"\",INDEX(CONST_LIST_GoodsUnit,MATCH(L596,CONST_LIST_Goods,0)))","v":""},{"$nulls":7},1,null,null,{"$f":"IF(AND(G596<>\"\",E601<>\"\",L601<>\"\"),TRUE,IF(AND(G596<>\"\",OR(AND(E601<>\"\",L601=\"\"),AND(E601=\"\",L601<>\"\"))),CONST_ErrorOrMissing&C596,CONST_NA))","v":"n.a."}]
[{"$nulls":3},2,{"$f":"IF(H602=CONST_NA,\"\",E601)","v":""},null,null,{"$f":"IF(L596=\"\",\"\",INDEX(CONST_MATRIX_ProductionRoute,MATCH(L596,CONST_LIST_Goods,0),D602))","v":""},null,null,{"$f":"IF(H602=CONST_NA,\"\",K601)","v":""},{"$nulls":7},2,null,null,{"$f":"IF(AND(G596<>\"\",E602<>\"\",L602<>\"\"),TRUE,IF(AND(G596<>\"\",OR(AND(E602<>\"\",L602=\"\"),AND(E602=\"\",L602<>\"\"))),CONST_ErrorOrMissing&C596,CONST_NA))","v":"n.a."}]
[{"$nulls":3},3,"",null,null,{"$f":"IF(L596=\"\",\"\",INDEX(CONST_MATRIX_ProductionRoute,MATCH(L596,CONST_LIST_Goods,0),D603))","v":""},null,null,"",{"$nulls":7},3,null,null,{"$f":"IF(AND(G596<>\"\",E603<>\"\",L603<>\"\"),TRUE,IF(AND(G596<>\"\",OR(AND(E603<>\"\",L603=\"\"),AND(E603=\"\",L603<>\"\"))),CONST_ErrorOrMissing&C596,CONST_NA))","v":"n.a."}]
[{"$nulls":3},4,"",null,null,{"$f":"IF(L596=\"\",\"\",INDEX(CONST_MATRIX_ProductionRoute,MATCH(L596,CONST_LIST_Goods,0),D604))","v":""},null,null,"",{"$nulls":7},4,null,null,{"$f":"IF(AND(G596<>\"\",E604<>\"\",L604<>\"\"),TRUE,IF(AND(G596<>\"\",OR(AND(E604<>\"\",L604=\"\"),AND(E604=\"\",L604<>\"\"))),CONST_ErrorOrMissing&C596,CONST_NA))","v":"n.a."}]
[{"$nulls":3},5,"",null,null,{"$f":"IF(L596=\"\",\"\",INDEX(CONST_MATRIX_ProductionRoute,MATCH(L596,CONST_LIST_Goods,0),D605))","v":""},null,null,"",{"$nulls":7},5,null,null,{"$f":"IF(AND(G596<>\"\",E605<>\"\",L605<>\"\"),TRUE,IF(AND(G596<>\"\",OR(AND(E605<>\"\",L605=\"\"),AND(E605=\"\",L605<>\"\"))),CONST_ErrorOrMissing&C596,CONST_NA))","v":"n.a."}]
[{"$nulls":3},6,"",null,null,{"$f":"IF(L596=\"\",\"\",INDEX(CONST_MATRIX_ProductionRoute,MATCH(L596,CONST_LIST_Goods,0),D606))","v":""},null,null,"",{"$nulls":7},6,null,null,{"$f":"IF(AND(G596<>\"\",E606<>\"\",L606<>\"\"),TRUE,IF(AND(G596<>\"\",OR(AND(E606<>\"\",L606=\"\"),AND(E606=\"\",L606<>\"\"))),CONST_ErrorOrMissing&C596,CONST_NA))","v":"n.a."}]
[{"$nulls":3},7,"",null,null,{"$f":"IF(L596=\"\",\"\",INDEX(CONST_MATRIX_ProductionRoute,MATCH(L596,CONST_LIST_Goods,0),D607))","v":""},null,null,"",{"$nulls":7},7,null,null,{"$f":"IF(AND(G596<>\"\",E607<>\"\",L607<>\"\"),TRUE,IF(AND(G596<>\"\",OR(AND(E607<>\"\",L607=\"\"),AND(E607=\"\",L607<>\"\"))),CONST_ErrorOrMissing&C596,CONST_NA))","v":"n.a."}]
[{"$nulls":3},8,"",null,null,{"$f":"IF(L596=\"\",\"\",INDEX(CONST_MATRIX_ProductionRoute,MATCH(L596,CONST_LIST_Goods,0),D608))","v":""},null,null,"",{"$nulls":7},8,null,null,{"$f":"IF(AND(G596<>\"\",E608<>\"\",L608<>\"\"),TRUE,IF(AND(G596<>\"\",OR(AND(E608<>\"\",L608=\"\"),AND(E608=\"\",L608<>\"\"))),CONST_ErrorOrMissing&C596,CONST_NA))","v":"n.a."}]
[{"$nulls":4},{"$f":"Translations!$B$246","v":"Total production within installation (= denominator for SEE calculation):"},{"$nulls":5},{"$f":"K601","v":""},{"$f":"IF(G596=\"\",\"\",SUM(L601:L608))","v":""},{"$nulls":5},{"$f":"CONST_CNTR_TotProd&G596","v":"TotProd_"},null,{"$f":"IF(G596=\"\",\"\",L609)","v":""}]
[]
[{"$nulls":3},"(b)",{"$f":"Translations!$B$247","v":"Production details"},{"$nulls":5},{"$f":"Translations!$B$221","v":"Unit"},{"$f":"Translations!$B$245","v":"Amounts"}]
[{"$nulls":3},"i.",{"$f":"Translations!$B$248","v":"Produced for the market"},{"$nulls":5},{"$f":"K601","v":""},{"$nulls":6},{"$f":"CONST_GoodToMarket&G596","v":"ToMarket_"},null,{"$f":"IF($G$11=\"\",\"\",L612)","v":""},null,{"$f":"IF(AND(G596<>\"\",L612<>\"\"),TRUE,IF(AND(G596<>\"\",OR(L612=\"\",L601<>\"\")),CONST_ErrorOrMissing&C596,CONST_NA))","v":"n.a."}]
[{"$nulls":3},"ii.",{"$f":"Translations!$B$249","v":"Share of total under (a) produced for the market"},{"$nulls":6},{"$f":"IF(AND(COUNT(L609,L612)=2,SUM(L609>0)),SUM(L612)/SUM(L609),\"\")","v":""}]
[{"$nulls":3},"iii.",{"$f":"Translations!$B$250","v":"Total production only for the market?"},{"$nulls":6},{"$f":"IF(G596=\"\",\"\",AND(SUM(L609)>0,SUM(L609)=SUM(L612)))","v":""}]
[]
[{"$nulls":3},"(c)",{"$f":"Translations!$B$251","v":"Consumed in other 'production processes' within the installation:"},{"$nulls":5},{"$f":"Translations!$B$221","v":"Unit"},{"$f":"Translations!$B$245","v":"Amounts"},{"$nulls":6},"Numbering",{"$nulls":3},"cond.form.",{"$f":"IF(G596=\"\",FALSE,L614)","v":false}]
[{"$nulls":3},1,{"$f":"IF(INDEX(CNTR_List_ExistProdProcNames,S617)=CONST_NA,\"\",INDEX(CNTR_List_ExistProdProcNames,S617))","v":""},{"$nulls":5},{"$f":"K601","v":""},{"$nulls":6},{"$f":"CONST_PrecursorToGoodInput&G596&\"_\"&E617","v":"PrecToGood__"},{"$f":"MAX(S616:S616)+IF(D617=C596,2,1)","v":1},{"$f":"IF(G596=\"\",\"\",L617)","v":""},null,{"$f":"IF(AND(G596<>\"\",E617<>\"\",L617<>\"\"),TRUE,IF(AND(G596<>\"\",E617<>\"\",L617=\"\",X617=FALSE),CONST_ErrorOrMissing&C596,CONST_NA))","v":"n.a."},"cond.form.",{"$f":"IF(G596=\"\",FALSE,OR(L614,E617=\"\"))","v":false}]
[{"$nulls":3},2,"",{"$nulls":5},{"$f":"K617","v":""},{"$nulls":6},{"$f":"CONST_PrecursorToGoodInput&G596&\"_\"&E618","v":"PrecToGood__"},{"$f":"MAX(S616:S617)+IF(D618=C596,2,1)","v":2},{"$f":"IF(G596=\"\",\"\",L618)","v":""},null,{"$f":"IF(AND(G596<>\"\",E618<>\"\",L618<>\"\"),TRUE,IF(AND(G596<>\"\",E618<>\"\",L618=\"\",X618=FALSE),CONST_ErrorOrMissing&C596,CONST_NA))","v":"n.a."},null,{"$f":"IF(G596=\"\",FALSE,OR(L614,E618=\"\"))","v":false}]
[{"$nulls":3},3,"",{"$nulls":5},{"$f":"K618","v":""},{"$nulls":6},{"$f":"CONST_PrecursorToGoodInput&G596&\"_\"&E619","v":"PrecToGood__"},{"$f":"MAX(S616:S618)+IF(D619=C596,2,1)","v":3},{"$f":"IF(G596=\"\",\"\",L619)","v":""},null,{"$f":"IF(AND(G596<>\"\",E619<>\"\",L619<>\"\"),TRUE,IF(AND(G596<>\"\",E619<>\"\",L619=\"\",X619=FALSE),CONST_ErrorOrMissing&C596,CONST_NA))","v":"n.a."},null,{"$f":"IF(G596=\"\",FALSE,OR(L614,E619=\"\"))","v":false}]
[{"$nulls":3},4,"",{"$nulls":5},"",{"$nulls":6},{"$f":"CONST_PrecursorToGoodInput&G596&\"_\"&E620","v":"PrecToGood__"},{"$f":"MAX(S616:S619)+IF(D620=C596,2,1)","v":4},{"$f":"IF(G596=\"\",\"\",L620)","v":""},null,{"$f":"IF(AND(G596<>\"\",E620<>\"\",L620<>\"\"),TRUE,IF(AND(G596<>\"\",E620<>\"\",L620=\"\",X620=FALSE),CONST_ErrorOrMissing&C596,CONST_NA))","v":"n.a."},null,{"$f":"IF(G596=\"\",FALSE,OR(L614,E620=\"\"))","v":false}]
[{"$nulls":3},5,"",{"$nulls":5},"",{"$nulls":6},{"$f":"CONST_PrecursorToGoodInput&G596&\"_\"&E621","v":"PrecToGood__"},{"$f":"MAX(S616:S620)+IF(D621=C596,2,1)","v":5},{"$f":"IF(G596=\"\",\"\",L621)","v":""},null,{"$f":"IF(AND(G596<>\"\",E621<>\"\",L621<>\"\"),TRUE,IF(AND(G596<>\"\",E621<>\"\",L621=\"\",X621=FALSE),CONST_ErrorOrMissing&C596,CONST_NA))","v":"n.a."},null,{"$f":"IF(G596=\"\",FALSE,OR(L614,E621=\"\"))","v":false}]
[{"$nulls":3},6,"",{"$nulls":5},"",{"$nulls":6},{"$f":"CONST_PrecursorToGoodInput&G596&\"_\"&E622","v":"PrecToGood__"},{"$f":"MAX(S616:S621)+IF(D622=C596,2,1)","v":6},{"$f":"IF(G596=\"\",\"\",L622)","v":""},null,{"$f":"IF(AND(G596<>\"\",E622<>\"\",L622<>\"\"),TRUE,IF(AND(G596<>\"\",E622<>\"\",L622=\"\",X622=FALSE),CONST_ErrorOrMissing&C596,CONST_NA))","v":"n.a."},null,{"$f":"IF(G596=\"\",FALSE,OR(L614,E622=\"\"))","v":false}]
[{"$nulls":3},7,"",{"$nulls":5},"",{"$nulls":6},{"$f":"CONST_PrecursorToGoodInput&G596&\"_\"&E623","v":"PrecToGood__"},{"$f":"MAX(S616:S622)+IF(D623=C596,2,1)","v":7},{"$f":"IF(G596=\"\",\"\",L623)","v":""},null,{"$f":"IF(AND(G596<>\"\",E623<>\"\",L623<>\"\"),TRUE,IF(AND(G596<>\"\",E623<>\"\",L623=\"\",X623=FALSE),CONST_ErrorOrMissing&C596,CONST_NA))","v":"n.a."},null,{"$f":"IF(G596=\"\",FALSE,OR(L614,E623=\"\"))","v":false}]
[{"$nulls":3},8,"",{"$nulls":5},"",{"$nulls":6},{"$f":"CONST_PrecursorToGoodInput&G596&\"_\"&E624","v":"PrecToGood__"},{"$f":"MAX(S616:S623)+IF(D624=C596,2,1)","v":8},{"$f":"IF(G596=\"\",\"\",L624)","v":""},null,{"$f":"IF(AND(G596<>\"\",E624<>\"\",L624<>\"\"),TRUE,IF(AND(G596<>\"\",E624<>\"\",L624=\"\",X624=FALSE),CONST_ErrorOrMissing&C596,CONST_NA))","v":"n.a."},null,{"$f":"IF(G596=\"\",FALSE,OR(L614,E624=\"\"))","v":false}]
[{"$nulls":3},9,"",{"$nulls":5},"",{"$nulls":6},{"$f":"CONST_PrecursorToGoodInput&G596&\"_\"&E625","v":"PrecToGood__"},{"$f":"MAX(S616:S624)+IF(D625=C596,2,1)","v":9},{"$f":"IF(G596=\"\",\"\",L625)","v":""},null,{"$f":"IF(AND(G596<>\"\",E625<>\"\",L625<>\"\"),TRUE,IF(AND(G596<>\"\",E625<>\"\",L625=\"\",X625=FALSE),CONST_ErrorOrMissing&C596,CONST_NA))","v":"n.a."},null,{"$f":"IF(G596=\"\",FALSE,OR(L614,E625=\"\"))","v":false}]
[{"$nulls":3},"(d)",{"$f":"Translations!$B$252","v":"Consumed for non-CBAM goods within the installation:"},{"$nulls":5},"",{"$nulls":10},{"$f":"IF(AND(G596<>\"\",L626<>\"\"),TRUE,IF(AND(G596<>\"\",L626=\"\",X626=FALSE),CONST_ErrorOrMissing&C596,CONST_NA))","v":"n.a."},"cond.form.",{"$f":"IF(G596=\"\",FALSE,L614)","v":false}]
[{"$nulls":3},"(e)",{"$f":"Translations!$B$253","v":"Control:"},{"$nulls":5},"",{"$f":"IF(G596=\"\",\"\",SUM(L609)-SUM(L612,L617:L626))","v":""},{"$nulls":9},{"$f":"IF(AND(G596<>\"\",L627=0),TRUE,IF(AND(G596<>\"\",L627<>0,X627=FALSE),CONST_ErrorOrMissing&C596,CONST_NA))","v":"n.a."},null,{"$f":"IF(G596=\"\",FALSE,L614)","v":false}]
[]
[]
[{"$nulls":3},{"$f":"Translations!$B$254","v":"Calculation of the attributed emissions:"},{"$nulls":5},{"$f":"IF(G596=\"\",\"\",G596)","v":""}]
[]
[{"$nulls":4},{"$f":"HYPERLINK(\"#\"&ADDRESS(MATCH($S632,G_FurtherGuidance!$S:$S,0),3,,,G_FurtherGuidance!$U$2),CONST_LinkToGuidanceSheet)","v":"Please click on this link for further guidance on how to complete this section."},{"$nulls":12},"Link to guidance:",3]
[]
[{"$nulls":10},{"$f":"Translations!$B$255","v":"Measurable heat"},{"$f":"Translations!$B$256","v":"Waste gases"},{"$f":"Translations!$B$257","v":"Indirect emissions"}]
[{"$nulls":3},"(f)",{"$f":"Translations!$B$258","v":"Please select which elements are applicable"},{"$nulls":7},{"$f":"IF(L596=\"\",\"\",INDEX(CONST_LIST_GoodsIndRel,MATCH(L596,CONST_LIST_Goods,0)))","v":""},{"$nulls":8},{"$f":"IF(AND(L596<>\"\",X635=FALSE),IF(COUNTA(K635:L635)=2,TRUE,CONST_ErrorOrMissing&C596),CONST_NA)","v":"n.a."}]
[{"$nulls":4},{"$f":"Translations!$B$259","v":"Based on your selection, related sections below might become irrelevant and greyed out below."}]
[]
[{"$nulls":10},{"$f":"Translations!$B$221","v":"Unit"},{"$f":"Translations!$B$260","v":"Value"}]
[{"$nulls":3},"(g)",{"$f":"Translations!$B$261","v":"Directly attributable emissions (DirEm*)"},{"$nulls":5},{"$f":"CONST_tCO2eq","v":"tCO2e"},{"$nulls":6},{"$f":"CONST_EmDir&G596","v":"EmDir_"},{"$f":"CONST_CNTR_EmbedEmDir&G596","v":"EmbedEmDir_"},{"$f":"IF(G596=\"\",\"\",L639)","v":""},null,{"$f":"IF(L596<>\"\",IF(L639<>\"\",TRUE,CONST_ErrorOrMissing&C596),CONST_NA)","v":"n.a."}]
[]
[{"$nulls":3},"(h)",{"$f":"Translations!$B$262","v":"Import and export of measurable heat"},{"$nulls":5},{"$f":"Translations!$B$221","v":"Unit"},{"$f":"Translations!$B$263","v":"Imported"},{"$f":"Translations!$B$264","v":"Exported"},{"$nulls":9},"cond.form.",{"$f":"AND(K635<>\"\",K635=FALSE)","v":false}]
[{"$nulls":3},"i.",{"$f":"Translations!$B$265","v":"Amount of net measurable heat"},{"$nulls":5},"TJ",{"$nulls":10},{"$f":"IF(AND(L596<>\"\",X642=FALSE),IF(COUNTA(L642:M642)=2,TRUE,CONST_ErrorOrMissing&C596),CONST_NA)","v":"n.a."},null,{"$f":"X641","v":false}]
[{"$nulls":3},"ii.",{"$f":"Translations!$B$266","v":"Emissions factor"},{"$nulls":5},{"$f":"CONST_tCO2pTJ","v":"tCO2/TJ"},{"$nulls":6},{"$f":"CONST_EmDirHeat&G596","v":"EmDirHeat_"},{"$f":"CONST_CNTR_EmbedEmDir&G596","v":"EmbedEmDir_"},{"$f":"IF(G596=\"\",\"\",SUM(L642*L643-M642*M643))","v":""},null,{"$f":"IF(AND(L596<>\"\",X643=FALSE),IF(COUNTA(L643:M643)=2,TRUE,CONST_ErrorOrMissing&C596),CONST_NA)","v":"n.a."},null,{"$f":"X642","v":false}]
[]
[{"$nulls":3},"(i)",{"$f":"Translations!$B$256","v":"Waste gases"},{"$nulls":5},{"$f":"Translations!$B$221","v":"Unit"},{"$f":"Translations!$B$263","v":"Imported"},{"$f":"Translations!$B$264","v":"Exported"},{"$nulls":9},"cond.form.",{"$f":"AND(L635<>\"\",L635=FALSE)","v":false}]
[{"$nulls":3},"i.",{"$f":"Translations!$B$267","v":"Amount of waste gas"},{"$nulls":5},{"$f":"CONST_TJ","v":"TJ"},{"$nulls":10},{"$f":"IF(AND(L596<>\"\",X646=FALSE),IF(COUNTA(L646:M646)=2,TRUE,CONST_ErrorOrMissing&C596),CONST_NA)","v":"n.a."},null,{"$f":"X645","v":false}]
[{"$nulls":3},"ii.",{"$f":"Translations!$B$268","v":"Emission factor"},{"$nulls":5},{"$f":"CONST_tCO2pTJ","v":"tCO2/TJ"},{"$nulls":6},{"$f":"CONST_EmDirWasteGases&G596","v":"EmDirWG_"},{"$f":"CONST_CNTR_EmbedEmDir&G596","v":"EmbedEmDir_"},{"$f":"IF(G596=\"\",\"\",SUM(L646*CONST_EFNatGas-M646*CONST_EFNatGas*0.667))","v":""},{"$nulls":3},{"$f":"X646","v":false}]
[]
[{"$nulls":3},"(j)",{"$f":"Translations!$B$269","v":"Indirect emissions from electricity consumption"},{"$nulls":5},{"$f":"Translations!$B$221","v":"Unit"},{"$f":"Translations!$B$260","v":"Value"},{"$nulls":10},"cond.form.",{"$f":"M635=FALSE","v":false}]
[{"$nulls":3},"i.",{"$f":"Translations!$B$270","v":"Electricity consumption"},{"$nulls":5},{"$f":"CONST_MWh","v":"MWh"},{"$nulls":6},{"$f":"CONST_ElecConsumption&G596","v":"ElecCons_"},null,{"$f":"IF(G596=\"\",\"\",L650)","v":""},null,{"$f":"IF(AND(L596<>\"\",X650=FALSE),IF(L650<>\"\",TRUE,CONST_ErrorOrMissing&C596),CONST_NA)","v":"n.a."},null,{"$f":"X649","v":false}]
[{"$nulls":3},"ii.",{"$f":"Translations!$B$271","v":"Emission factor of the electricity"},{"$nulls":5},{"$f":"CONST_tCO2&\"/\"&CONST_MWh","v":"tCO2/MWh"},{"$nulls":7},{"$f":"CONST_CNTR_EmbedEmInDir&G596","v":"EmbedEmInDir_"},{"$f":"IF(G596=\"\",\"\",SUM(L650)*SUM(L651))","v":""},null,{"$f":"IF(AND(L596<>\"\",X651=FALSE),IF(L651<>\"\",TRUE,CONST_ErrorOrMissing&C596),CONST_NA)","v":"n.a."},null,{"$f":"X650","v":false}]
[{"$nulls":3},"iii.",{"$f":"Translations!$B$272","v":"Source of the emission factor"},{"$nulls":5},"-",{"$nulls":6},{"$f":"CONST_CNTR_ElecEFMethod&G596","v":"ElecEFMeth_"},null,{"$f":"IF(L652=\"\",\"\",L652)","v":""},null,{"$f":"IF(AND(L596<>\"\",X652=FALSE),IF(L652<>\"\",TRUE,CONST_ErrorOrMissing&C596),CONST_NA)","v":"n.a."},null,{"$f":"X651","v":false}]
[]
[]
[{"$nulls":3},"(k)",{"$f":"Translations!$B$273","v":"Electricity exported from the production process"},{"$nulls":5},{"$f":"Translations!$B$221","v":"Unit"},{"$f":"Translations!$B$260","v":"Value"}]
[{"$nulls":3},"i.",{"$f":"Translations!$B$274","v":"Amounts exported"},{"$nulls":5},"MWh",{"$nulls":10},{"$f":"IF(L596<>\"\",IF(L656<>\"\",TRUE,CONST_ErrorOrMissing&C596),CONST_NA)","v":"n.a."}]
[{"$nulls":3},"ii.",{"$f":"Translations!$B$271","v":"Emission factor of the electricity"},{"$nulls":5},{"$f":"CONST_tCO2&\"/\"&CONST_MWh","v":"tCO2/MWh"},{"$nulls":7},{"$f":"CONST_CNTR_EmbedEmDir&G596","v":"EmbedEmDir_"},{"$f":"IF(G596=\"\",\"\",-SUM(L656)*SUM(L657))","v":""},null,{"$f":"IF(AND(L596<>\"\",SUM(L656)>0),IF(L657<>\"\",TRUE,CONST_ErrorOrMissing&C596),CONST_NA)","v":"n.a."}]
[]
[]
[]
[]
["ausblenden",{"$nulls":14},"PRINT"]
["ausblenden"]
["ausblenden"]

{"sheet":"E_PurchPrec","index":8,"n_rows":853,"n_cols":24,"rows_kept":853,"merged":[[1,1,4,3],[1,4,1,5],[1,6,1,7],[1,8,1,9],[1,10,1,11],[1,12,1,13],[2,4,2,5],[2,6,2,7],[2,8,2,9],[2,10,2,11],[2,12,2,13],[3,4,3,5],[3,6,3,7],[3,8,3,9],[3,10,3,11],[3,12,3,13],[4,4,4,5],[4,6,4,7],[4,8,4,9],[4,10,4,11],[4,12,4,13],[10,6,10,10],[10,11,10,13],[38,9,38,12],[41,4,41,12],[42,4,42,12],[43,4,43,12],[48,10,48,12],[52,6,52,10],[52,11,52,13],[80,9,80,12],[83,4,83,12],[84,4,84,12],[85,4,85,12],[90,10,90,12],[94,6,94,10],[94,11,94,13],[122,9,122,12],[125,4,125,12],[126,4,126,12],[127,4,127,12],[132,10,132,12],[136,6,136,10],[136,11,136,13],[164,9,164,12],[167,4,167,12],[168,4,168,12],[169,4,169,12],[174,10,174,12],[178,6,178,10],[178,11,178,13],[206,9,206,12],[209,4,209,12],[210,4,210,12],[211,4,211,12],[216,10,216,12],[220,6,220,10],[220,11,220,13],[248,9,248,12],[251,4,251,12],[252,4,252,12],[253,4,253,12],[258,10,258,12],[262,6,262,10],[262,11,262,13],[290,9,290,12],[293,4,293,12],[294,4,294,12],[295,4,295,12],[300,10,300,12],[304,6,304,10],[304,11,304,13],[332,9,332,12],[335,4,335,12],[336,4,336,12],[337,4,337,12],[342,10,342,12],[346,6,346,10],[346,11,346,13],[374,9,374,12],[377,4,377,12],[378,4,378,12],[379,4,379,12],[384,10,384,12],[388,6,388,10],[388,11,388,13],[416,9,416,12],[419,4,419,12],[420,4,420,12],[421,4,421,12],[426,10,426,12],[430,6,430,10],[430,11,430,13],[458,9,458,12],[461,4,461,12],[462,4,462,12],[463,4,463,12],[468,10,468,12],[472,6,472,10],[472,11,472,13],[500,9,500,12],[503,4,503,12],[504,4,504,12],[505,4,505,12],[510,10,510,12],[514,6,514,10],[514,11,514,13],[542,9,542,12],[545,4,545,12],[546,4,546,12],[547,4,547,12],[552,10,552,12],[556,6,556,10],[556,11,556,13],[584,9,584,12],[587,4,587,12],[588,4,588,12],[589,4,589,12],[594,10,594,12],[598,6,598,10],[598,11,598,13],[626,9,626,12],[629,4,629,12],[630,4,630,12],[631,4,631,12],[636,10,636,12],[640,6,640,10],[640,11,640,13],[668,9,668,12],[671,4,671,12],[672,4,672,12],[673,4,673,12],[678,10,678,12],[682,6,682,10],[682,11,682,13],[710,9,710,12],[713,4,713,12],[714,4,714,12],[715,4,715,12],[720,10,720,12],[724,6,724,10],[724,11,724,13],[752,9,752,12],[755,4,755,12],[756,4,756,12],[757,4,757,12],[762,10,762,12],[766,6,766,10],[766,11,766,13],[794,9,794,12],[797,4,797,12],[798,4,798,12],[799,4,799,12],[804,10,804,12],[808,6,808,10],[808,11,808,13],[836,9,836,12],[839,4,839,12],[840,4,840,12],[841,4,841,12],[846,10,846,12]]}
["ausblenden",{"$nulls":16},"ausblenden","ausblenden","ausblenden","ausblenden","ausblenden","ausblenden","ausblenden"]
[null,{"$f":"Translations!$B$124","v":"Purchased precursors"},null,null,{"$f":"Translations!$B$11","v":"Navigation Area:"},null,{"$f":"HYPERLINK(\"#\"&ADDRESS(2,3,,,a_Contents!$U$2),a_Contents!$B$2)","v":"Table of contents"},null,{"$f":"HYPERLINK(\"#\"&ADDRESS(2,3,,,G_FurtherGuidance!$U$2),G_FurtherGuidance!$B$2)","v":"Further Guidance"},null,{"$f":"HYPERLINK(\"#\"&ADDRESS(2,3,,,Summary_Processes!$Y$2),Summary_Processes!$Y$2)","v":"Summary_Processes"},null,{"$f":"HYPERLINK(\"#\"&ADDRESS(2,3,,,Summary_Products!$BF$2),Summary_Products!$BF$2)","v":"Summary_Products"},{"$nulls":4},"Print area:",{"$f":"ADDRESS(ROW($B$9),COLUMN($B$9))&\":\"&ADDRESS(MATCH(\"PRINT\",$P:$P,0),COLUMN($O$9))","v":"$B$9:$O$851"},"Name of this sheet",{"$f":"IF(ISERROR(CELL(\"filename\",V2)),\"MSParameters\",MID(CELL(\"filename\",V2),FIND(\"]\",CELL(\"filename\",V2))+1,1024))","v":"E_PurchPrec"}]
[{"$nulls":6},{"$f":"IF(INDEX(CNTR_List_ExistPurchPrecNames,R3)=CONST_NA,\"\",HYPERLINK(\"#\"&ADDRESS(ROW($C$11)+MATCH(R3,$C$11:$C$988,0)-1,COLUMN($C$11)),INDEX(CNTR_List_ExistPurchPrecNames,R3)))","v":""},null,{"$f":"IF(INDEX(CNTR_List_ExistPurchPrecNames,T3)=CONST_NA,\"\",HYPERLINK(\"#\"&ADDRESS(ROW($C$11)+MATCH(T3,$C$11:$C$988,0)-1,COLUMN($C$11)),INDEX(CNTR_List_ExistPurchPrecNames,T3)))","v":""},null,{"$f":"IF(INDEX(CNTR_List_ExistPurchPrecNames,V3)=CONST_NA,\"\",HYPERLINK(\"#\"&ADDRESS(ROW($C$11)+MATCH(V3,$C$11:$C$988,0)-1,COLUMN($C$11)),INDEX(CNTR_List_ExistPurchPrecNames,V3)))","v":""},null,{"$f":"IF(INDEX(CNTR_List_ExistPurchPrecNames,X3)=CONST_NA,\"\",HYPERLINK(\"#\"&ADDRESS(ROW($C$11)+MATCH(X3,$C$11:$C$988,0)-1,COLUMN($C$11)),INDEX(CNTR_List_ExistPurchPrecNames,X3)))","v":""},{"$nulls":4},1,null,2,null,3,null,4]
[{"$nulls":6},{"$f":"IF(INDEX(CNTR_List_ExistPurchPrecNames,R4)=CONST_NA,\"\",HYPERLINK(\"#\"&ADDRESS(ROW($C$11)+MATCH(R4,$C$11:$C$988,0)-1,COLUMN($C$11)),INDEX(CNTR_List_ExistPurchPrecNames,R4)))","v":""},null,{"$f":"IF(INDEX(CNTR_List_ExistPurchPrecNames,T4)=CONST_NA,\"\",HYPERLINK(\"#\"&ADDRESS(ROW($C$11)+MATCH(T4,$C$11:$C$988,0)-1,COLUMN($C$11)),INDEX(CNTR_List_ExistPurchPrecNames,T4)))","v":""},null,{"$f":"IF(INDEX(CNTR_List_ExistPurchPrecNames,V4)=CONST_NA,\"\",HYPERLINK(\"#\"&ADDRESS(ROW($C$11)+MATCH(V4,$C$11:$C$988,0)-1,COLUMN($C$11)),INDEX(CNTR_List_ExistPurchPrecNames,V4)))","v":""},null,{"$f":"IF(INDEX(CNTR_List_ExistPurchPrecNames,X4)=CONST_NA,\"\",HYPERLINK(\"#\"&ADDRESS(ROW($C$11)+MATCH(X4,$C$11:$C$988,0)-1,COLUMN($C$11)),INDEX(CNTR_List_ExistPurchPrecNames,X4)))","v":""},{"$nulls":4},5,null,6,null,7,null,8]
[{"$nulls":6},{"$f":"IF(INDEX(CNTR_List_ExistPurchPrecNames,R5)=CONST_NA,\"\",HYPERLINK(\"#\"&ADDRESS(ROW($C$11)+MATCH(R5,$C$11:$C$988,0)-1,COLUMN($C$11)),INDEX(CNTR_List_ExistPurchPrecNames,R5)))","v":""},null,{"$f":"IF(INDEX(CNTR_List_ExistPurchPrecNames,T5)=CONST_NA,\"\",HYPERLINK(\"#\"&ADDRESS(ROW($C$11)+MATCH(T5,$C$11:$C$988,0)-1,COLUMN($C$11)),INDEX(CNTR_List_ExistPurchPrecNames,T5)))","v":""},null,{"$f":"IF(INDEX(CNTR_List_ExistPurchPrecNames,V5)=CONST_NA,\"\",HYPERLINK(\"#\"&ADDRESS(ROW($C$11)+MATCH(V5,$C$11:$C$988,0)-1,COLUMN($C$11)),INDEX(CNTR_List_ExistPurchPrecNames,V5)))","v":""},null,{"$f":"IF(INDEX(CNTR_List_ExistPurchPrecNames,X5)=CONST_NA,\"\",HYPERLINK(\"#\"&ADDRESS(ROW($C$11)+MATCH(X5,$C$11:$C$988,0)-1,COLUMN($C$11)),INDEX(CNTR_List_ExistPurchPrecNames,X5)))","v":""},{"$nulls":4},9,null,10,null,11,null,12]
[]
[null,null,"E.",null,{"$f":"Translations!$B$275","v":"Sheet \"E_PurchPrec\" - Purchased precursors for SEE calculation"},{"$nulls":12},"Marker","EmbedEm",null,null,{"$f":"Translations!$B$66","v":"Errors"},null,"Cond. form."]
[]
[1,null,null,{"$f":"Translations!$B$242","v":"Data input for the determination of the specific embedded emissions"}]
[]
[null,null,1,{"$f":"CONST_PurchPrecursor&\" \"&C11&\":\"","v":"Purchased precursor 1:"},null,null,{"$f":"IF(INDEX(CNTR_List_ExistPurchPrecNames,MATCH(R11,CNTR_ListPurchPrecID,0))=CONST_NA,\"\",INDEX(CNTR_List_ExistPurchPrecNames,MATCH(R11,CNTR_ListPurchPrecID,0)))","v":""},{"$nulls":4},{"$f":"IF(INDEX(CNTR_List_ExistPurchPrec,MATCH(R11,CNTR_ListPurchPrecID,0))=CONST_NA,\"\",INDEX(CNTR_List_ExistPurchPrec,MATCH(R11,CNTR_ListPurchPrecID,0)))","v":""},{"$nulls":5},{"$f":"INDEX(CNTR_ListPurchPrecID,C11)","v":"PP1"},{"$nulls":4},"Not relevant:",{"$f":"AND(CNTR_HasEntriesA,G11=\"\")","v":false}]
[]
[{"$nulls":3},"(a) ",{"$f":"Translations!$B$276","v":"Total purchased levels:"},null,null,{"$f":"Translations!$B$244","v":"Production route"},null,null,{"$f":"Translations!$B$221","v":"Unit"},{"$f":"Translations!$B$245","v":"Amounts"}]
[{"$nulls":3},1,{"$f":"IF(G11=\"\",\"\",G11)&IF(L11=\"\",\"\",\" | \"&L11)","v":""},null,null,{"$f":"IF(L11=\"\",\"\",INDEX(CONST_MATRIX_ProductionRoute,MATCH(L11,CONST_LIST_Goods,0),D14))","v":""},null,null,{"$f":"IF(L11=\"\",\"\",INDEX(CONST_LIST_GoodsUnit,MATCH(L11,CONST_LIST_Goods,0)))","v":""},{"$nulls":7},1]
[{"$nulls":3},2,{"$f":"IF(H15=CONST_NA,\"\",E14)","v":""},null,null,{"$f":"IF(L11=\"\",\"\",INDEX(CONST_MATRIX_ProductionRoute,MATCH(L11,CONST_LIST_Goods,0),D15))","v":""},null,null,{"$f":"IF(H15=CONST_NA,\"\",K14)","v":""},{"$nulls":7},2]
[{"$nulls":3},3,"",null,null,{"$f":"IF(L11=\"\",\"\",INDEX(CONST_MATRIX_ProductionRoute,MATCH(L11,CONST_LIST_Goods,0),D16))","v":""},null,null,"",{"$nulls":7},3]
[{"$nulls":3},4,"",null,null,{"$f":"IF(L11=\"\",\"\",INDEX(CONST_MATRIX_ProductionRoute,MATCH(L11,CONST_LIST_Goods,0),D17))","v":""},null,null,"",{"$nulls":7},4]
[{"$nulls":3},5,"",null,null,{"$f":"IF(L11=\"\",\"\",INDEX(CONST_MATRIX_ProductionRoute,MATCH(L11,CONST_LIST_Goods,0),D18))","v":""},null,null,"",{"$nulls":7},5]
[{"$nulls":3},6,"",null,null,{"$f":"IF(L11=\"\",\"\",INDEX(CONST_MATRIX_ProductionRoute,MATCH(L11,CONST_LIST_Goods,0),D19))","v":""},null,null,"",{"$nulls":7},6]
[{"$nulls":3},7,"",null,null,{"$f":"IF(L11=\"\",\"\",INDEX(CONST_MATRIX_ProductionRoute,MATCH(L11,CONST_LIST_Goods,0),D20))","v":""},null,null,"",{"$nulls":7},7]
[{"$nulls":3},8,"",null,null,{"$f":"IF(L11=\"\",\"\",INDEX(CONST_MATRIX_ProductionRoute,MATCH(L11,CONST_LIST_Goods,0),D21))","v":""},null,null,"",{"$nulls":7},8]
[{"$nulls":4},{"$f":"Translations!$B$277","v":"Total consumption within installation:"},{"$nulls":5},{"$f":"K14","v":""},{"$f":"IF(G11=\"\",\"\",SUM(L14:L21))","v":""},{"$nulls":5},{"$f":"CONST_CNTR_TotProd&G11","v":"TotProd_"},null,{"$f":"IF(G11=\"\",\"\",IF(SUM(L22)=0,100,L22))","v":""}]
[]
[{"$nulls":3},"(b)",{"$f":"Translations!$B$278","v":"Consumed in \"production processes\" within the installation:"},{"$nulls":5},{"$f":"Translations!$B$221","v":"Unit"},{"$f":"Translations!$B$245","v":"Amounts"},{"$nulls":6},"Numbering"]
[{"$nulls":3},1,{"$f":"IF(INDEX(CNTR_List_ExistProdProcNames,S25)=CONST_NA,\"\",INDEX(CNTR_List_ExistProdProcNames,S25))","v":""},{"$nulls":5},{"$f":"IF(E25=\"\",\"\",K22)","v":""},{"$nulls":6},{"$f":"CONST_PrecursorToGoodInput&G11&\"_\"&E25","v":"PrecToGood__"},{"$f":"D25","v":1},{"$f":"IF(G11=\"\",\"\",L25)","v":""},null,{"$f":"IF(AND(G11<>\"\",E25<>\"\",L25<>\"\"),TRUE,IF(AND(G11<>\"\",E25<>\"\",L25=\"\",X25=FALSE),CONST_ErrorOrMissing&C11,CONST_NA))","v":"n.a."},"cond.form.",{"$f":"IF(G11=\"\",FALSE,E25=\"\")","v":false}]
[{"$nulls":3},2,"",{"$nulls":5},{"$f":"IF(E26=\"\",\"\",K25)","v":""},{"$nulls":6},{"$f":"CONST_PrecursorToGoodInput&G11&\"_\"&E26","v":"PrecToGood__"},{"$f":"D26","v":2},{"$f":"IF(G11=\"\",\"\",L26)","v":""},null,{"$f":"IF(AND(G11<>\"\",E26<>\"\",L26<>\"\"),TRUE,IF(AND(G11<>\"\",E26<>\"\",L26=\"\",X26=FALSE),CONST_ErrorOrMissing&C11,CONST_NA))","v":"n.a."},null,{"$f":"IF(G11=\"\",FALSE,E26=\"\")","v":false}]
[{"$nulls":3},3,"",{"$nulls":5},{"$f":"IF(E27=\"\",\"\",K26)","v":""},{"$nulls":6},{"$f":"CONST_PrecursorToGoodInput&G11&\"_\"&E27","v":"PrecToGood__"},3,{"$f":"IF(G11=\"\",\"\",L27)","v":""},null,{"$f":"IF(AND(G11<>\"\",E27<>\"\",L27<>\"\"),TRUE,IF(AND(G11<>\"\",E27<>\"\",L27=\"\",X27=FALSE),CONST_ErrorOrMissing&C11,CONST_NA))","v":"n.a."},null,{"$f":"IF(G11=\"\",FALSE,E27=\"\")","v":false}]
[{"$nulls":3},4,"",{"$nulls":5},"",{"$nulls":6},{"$f":"CONST_PrecursorToGoodInput&G11&\"_\"&E28","v":"PrecToGood__"},4,{"$f":"IF(G11=\"\",\"\",L28)","v":""},null,{"$f":"IF(AND(G11<>\"\",E28<>\"\",L28<>\"\"),TRUE,IF(AND(G11<>\"\",E28<>\"\",L28=\"\",X28=FALSE),CONST_ErrorOrMissing&C11,CONST_NA))","v":"n.a."},null,{"$f":"IF(G11=\"\",FALSE,E28=\"\")","v":false}]
[{"$nulls":3},5,"",{"$nulls":5},"",{"$nulls":6},{"$f":"CONST_PrecursorToGoodInput&G11&\"_\"&E29","v":"PrecToGood__"},5,{"$f":"IF(G11=\"\",\"\",L29)","v":""},null,{"$f":"IF(AND(G11<>\"\",E29<>\"\",L29<>\"\"),TRUE,IF(AND(G11<>\"\",E29<>\"\",L29=\"\",X29=FALSE),CONST_ErrorOrMissing&C11,CONST_NA))","v":"n.a."},null,{"$f":"IF(G11=\"\",FALSE,E29=\"\")","v":false}]
[{"$nulls":3},6,"",{"$nulls":5},"",{"$nulls":6},{"$f":"CONST_PrecursorToGoodInput&G11&\"_\"&E30","v":"PrecToGood__"},6,{"$f":"IF(G11=\"\",\"\",L30)","v":""},null,{"$f":"IF(AND(G11<>\"\",E30<>\"\",L30<>\"\"),TRUE,IF(AND(G11<>\"\",E30<>\"\",L30=\"\",X30=FALSE),CONST_ErrorOrMissing&C11,CONST_NA))","v":"n.a."},null,{"$f":"IF(G11=\"\",FALSE,E30=\"\")","v":false}]
[{"$nulls":3},7,"",{"$nulls":5},"",{"$nulls":6},{"$f":"CONST_PrecursorToGoodInput&G11&\"_\"&E31","v":"PrecToGood__"},7,{"$f":"IF(G11=\"\",\"\",L31)","v":""},null,{"$f":"IF(AND(G11<>\"\",E31<>\"\",L31<>\"\"),TRUE,IF(AND(G11<>\"\",E31<>\"\",L31=\"\",X31=FALSE),CONST_ErrorOrMissing&C11,CONST_NA))","v":"n.a."},null,{"$f":"IF(G11=\"\",FALSE,E31=\"\")","v":false}]
[{"$nulls":3},8,"",{"$nulls":5},"",{"$nulls":6},{"$f":"CONST_PrecursorToGoodInput&G11&\"_\"&E32","v":"PrecToGood__"},8,{"$f":"IF(G11=\"\",\"\",L32)","v":""},null,{"$f":"IF(AND(G11<>\"\",E32<>\"\",L32<>\"\"),TRUE,IF(AND(G11<>\"\",E32<>\"\",L32=\"\",X32=FALSE),CONST_ErrorOrMissing&C11,CONST_NA))","v":"n.a."},null,{"$f":"IF(G11=\"\",FALSE,E32=\"\")","v":false}]
[{"$nulls":3},9,"",{"$nulls":5},"",{"$nulls":6},{"$f":"CONST_PrecursorToGoodInput&G11&\"_\"&E33","v":"PrecToGood__"},9,{"$f":"IF(G11=\"\",\"\",L33)","v":""},null,{"$f":"IF(AND(G11<>\"\",E33<>\"\",L33<>\"\"),TRUE,IF(AND(G11<>\"\",E33<>\"\",L33=\"\",X33=FALSE),CONST_ErrorOrMissing&C11,CONST_NA))","v":"n.a."},null,{"$f":"IF(G11=\"\",FALSE,E33=\"\")","v":false}]
[{"$nulls":3},10,"",{"$nulls":5},"",{"$nulls":6},{"$f":"CONST_PrecursorToGoodInput&G11&\"_\"&E34","v":"PrecToGood__"},10,{"$f":"IF(G11=\"\",\"\",L34)","v":""},null,{"$f":"IF(AND(G11<>\"\",E34<>\"\",L34<>\"\"),TRUE,IF(AND(G11<>\"\",E34<>\"\",L34=\"\",X34=FALSE),CONST_ErrorOrMissing&C11,CONST_NA))","v":"n.a."},null,{"$f":"IF(G11=\"\",FALSE,E34=\"\")","v":false}]
[{"$nulls":3},"(c)",{"$f":"Translations!$B$252","v":"Consumed for non-CBAM goods within the installation:"},{"$nulls":5},{"$f":"K22","v":""}]
[{"$nulls":3},"(d)",{"$f":"Translations!$B$253","v":"Control:"},{"$nulls":5},{"$f":"K35","v":""},{"$f":"IF(G11=\"\",\"\",SUM(L22)-SUM(L25:L35))","v":""}]
[]
[]
[{"$nulls":3},{"$f":"Translations!$B$279","v":"Specific embedded emissions:"},{"$nulls":5},{"$f":"IF(G11=\"\",\"\",G11)","v":""}]
[]
[{"$nulls":3},"(e)",{"$f":"Translations!$B$280","v":"Emissions embedded in this purchased precursor"}]
[{"$nulls":4},{"$f":"Translations!$B$281","v":"Please enter here the values and sources for the specific embedded direct and indirect emissions, as obtained from the supplier."}]
[{"$nulls":4},{"$f":"Translations!$B$282","v":"For the SEE (direct), the 'Type of value' relates to whether the direct emissions are measured, or whether a default value provided by the European Commission was applied."}]
[{"$nulls":4},{"$f":"Translations!$B$283","v":"In order to obtain these data and information, you may want to ask your supplier to fill in an empty copy of this communication template."}]
[{"$nulls":4},{"$f":"Translations!$B$284","v":"Parameter:"},{"$nulls":5},{"$f":"Translations!$B$221","v":"Unit"},{"$f":"Translations!$B$260","v":"Value"},{"$f":"Translations!$B$285","v":"Source"}]
[{"$nulls":3},"i.",{"$f":"Translations!$B$286","v":"Specific embedded direct emissions (SEE (direct) )"},{"$nulls":5},{"$f":"IF(L11=\"\",\"\",CONST_tCO2eq&\"/\"&K22)","v":""},{"$nulls":6},{"$f":"CONST_PurchPrecDefaultUsed&G11","v":"PurchPrecDef_"},{"$f":"CONST_CNTR_EmbedEmDir&G11","v":"EmbedEmDir_"},{"$f":"IF(G11=\"\",\"\",SUM(T22)*SUM(L46))","v":""},{"$f":"IF(G11=\"\",\"\",IF(M46=\"\",CONST_ERR_Incomplete,MATCH(M46,CONST_MeasuredOrDefault,0)=2))","v":""},{"$f":"IF(AND(G11<>\"\",COUNTA(L46:M46)=2),TRUE,IF(AND(G11<>\"\",COUNTA(L46:M46)<2),CONST_ErrorOrMissing&C11,CONST_NA))","v":"n.a."}]
[{"$nulls":3},"ii.",{"$f":"Translations!$B$287","v":"Specific embedded indirect emissions (SEE (indirect) )"},{"$nulls":5},{"$f":"K46","v":""},{"$nulls":6},{"$f":"CONST_CNTR_ElecEFMethod&G11","v":"ElecEFMeth_"},{"$f":"CONST_CNTR_EmbedEmInDir&G11","v":"EmbedEmInDir_"},{"$f":"IF(G11=\"\",\"\",SUM(T22)*SUM(L47))","v":""},{"$f":"IF(G11=\"\",\"\",M47)","v":""},{"$f":"IF(AND(G11<>\"\",COUNTA(L47:M47)=2),TRUE,IF(AND(G11<>\"\",COUNTA(L47:M47)<2),CONST_ErrorOrMissing&C11,CONST_NA))","v":"n.a."}]
[]
[{"$nulls":3},"iii.",{"$f":"Translations!$B$1858","v":"Justification for use of default values (if relevant):"},{"$nulls":16},{"$f":"IF(AND(G11<>\"\",X49=FALSE,K49<>\"\"),TRUE,IF(AND(G11<>\"\",M46<>\"\",X49=FALSE,K49=\"\"),CONST_ErrorOrMissing&C11,CONST_NA))","v":"n.a."},null,{"$f":"IF(M46=\"\",FALSE,M46<>INDEX(CONST_MeasuredOrDefault,2))","v":false}]
[]
[]
[]
[null,null,{"$f":"C11+1","v":2},{"$f":"CONST_PurchPrecursor&\" \"&C53&\":\"","v":"Purchased precursor 2:"},null,null,{"$f":"IF(INDEX(CNTR_List_ExistPurchPrecNames,MATCH(R53,CNTR_ListPurchPrecID,0))=CONST_NA,\"\",INDEX(CNTR_List_ExistPurchPrecNames,MATCH(R53,CNTR_ListPurchPrecID,0)))","v":""},{"$nulls":4},{"$f":"IF(INDEX(CNTR_List_ExistPurchPrec,MATCH(R53,CNTR_ListPurchPrecID,0))=CONST_NA,\"\",INDEX(CNTR_List_ExistPurchPrec,MATCH(R53,CNTR_ListPurchPrecID,0)))","v":""},{"$nulls":5},{"$f":"INDEX(CNTR_ListPurchPrecID,C53)","v":"PP2"},{"$nulls":4},"Not relevant:",{"$f":"AND(CNTR_HasEntriesA,G53=\"\")","v":false}]
[]
[{"$nulls":3},"(a) ",{"$f":"Translations!$B$276","v":"Total purchased levels:"},null,null,{"$f":"Translations!$B$244","v":"Production route"},null,null,{"$f":"Translations!$B$221","v":"Unit"},{"$f":"Translations!$B$245","v":"Amounts"}]
[{"$nulls":3},1,{"$f":"IF(G53=\"\",\"\",G53)&IF(L53=\"\",\"\",\" | \"&L53)","v":""},null,null,{"$f":"IF(L53=\"\",\"\",INDEX(CONST_MATRIX_ProductionRoute,MATCH(L53,CONST_LIST_Goods,0),D56))","v":""},null,null,{"$f":"IF(L53=\"\",\"\",INDEX(CONST_LIST_GoodsUnit,MATCH(L53,CONST_LIST_Goods,0)))","v":""},{"$nulls":7},1]
[{"$nulls":3},2,{"$f":"IF(H57=CONST_NA,\"\",E56)","v":""},null,null,{"$f":"IF(L53=\"\",\"\",INDEX(CONST_MATRIX_ProductionRoute,MATCH(L53,CONST_LIST_Goods,0),D57))","v":""},null,null,{"$f":"IF(H57=CONST_NA,\"\",K56)","v":""},{"$nulls":7},2]
[{"$nulls":3},3,"",null,null,{"$f":"IF(L53=\"\",\"\",INDEX(CONST_MATRIX_ProductionRoute,MATCH(L53,CONST_LIST_Goods,0),D58))","v":""},null,null,"",{"$nulls":7},3]
[{"$nulls":3},4,"",null,null,{"$f":"IF(L53=\"\",\"\",INDEX(CONST_MATRIX_ProductionRoute,MATCH(L53,CONST_LIST_Goods,0),D59))","v":""},null,null,"",{"$nulls":7},4]
[{"$nulls":3},5,"",null,null,{"$f":"IF(L53=\"\",\"\",INDEX(CONST_MATRIX_ProductionRoute,MATCH(L53,CONST_LIST_Goods,0),D60))","v":""},null,null,"",{"$nulls":7},5]
[{"$nulls":3},6,"",null,null,{"$f":"IF(L53=\"\",\"\",INDEX(CONST_MATRIX_ProductionRoute,MATCH(L53,CONST_LIST_Goods,0),D61))","v":""},null,null,"",{"$nulls":7},6]
[{"$nulls":3},7,"",null,null,{"$f":"IF(L53=\"\",\"\",INDEX(CONST_MATRIX_ProductionRoute,MATCH(L53,CONST_LIST_Goods,0),D62))","v":""},null,null,"",{"$nulls":7},7]
[{"$nulls":3},8,"",null,null,{"$f":"IF(L53=\"\",\"\",INDEX(CONST_MATRIX_ProductionRoute,MATCH(L53,CONST_LIST_Goods,0),D63))","v":""},null,null,"",{"$nulls":7},8]
[{"$nulls":4},{"$f":"Translations!$B$277","v":"Total consumption within installation:"},{"$nulls":5},{"$f":"K56","v":""},{"$f":"IF(G53=\"\",\"\",SUM(L56:L63))","v":""},{"$nulls":5},{"$f":"CONST_CNTR_TotProd&G53","v":"TotProd_"},null,{"$f":"IF(G53=\"\",\"\",IF(SUM(L64)=0,100,L64))","v":""}]
[]
[{"$nulls":3},"(b)",{"$f":"Translations!$B$278","v":"Consumed in \"production processes\" within the installation:"},{"$nulls":5},{"$f":"Translations!$B$221","v":"Unit"},{"$f":"Translations!$B$245","v":"Amounts"},{"$nulls":6},"Numbering"]
[{"$nulls":3},1,{"$f":"IF(INDEX(CNTR_List_ExistProdProcNames,S67)=CONST_NA,\"\",INDEX(CNTR_List_ExistProdProcNames,S67))","v":""},{"$nulls":5},{"$f":"IF(E67=\"\",\"\",K64)","v":""},{"$nulls":6},{"$f":"CONST_PrecursorToGoodInput&G53&\"_\"&E67","v":"PrecToGood__"},{"$f":"D67","v":1},{"$f":"IF(G53=\"\",\"\",L67)","v":""},null,{"$f":"IF(AND(G53<>\"\",E67<>\"\",L67<>\"\"),TRUE,IF(AND(G53<>\"\",E67<>\"\",L67=\"\",X67=FALSE),CONST_ErrorOrMissing&C53,CONST_NA))","v":"n.a."},"cond.form.",{"$f":"IF(G53=\"\",FALSE,E67=\"\")","v":false}]
[{"$nulls":3},2,"",{"$nulls":5},{"$f":"IF(E68=\"\",\"\",K67)","v":""},{"$nulls":6},{"$f":"CONST_PrecursorToGoodInput&G53&\"_\"&E68","v":"PrecToGood__"},{"$f":"D68","v":2},{"$f":"IF(G53=\"\",\"\",L68)","v":""},null,{"$f":"IF(AND(G53<>\"\",E68<>\"\",L68<>\"\"),TRUE,IF(AND(G53<>\"\",E68<>\"\",L68=\"\",X68=FALSE),CONST_ErrorOrMissing&C53,CONST_NA))","v":"n.a."},null,{"$f":"IF(G53=\"\",FALSE,E68=\"\")","v":false}]
[{"$nulls":3},3,"",{"$nulls":5},{"$f":"IF(E69=\"\",\"\",K68)","v":""},{"$nulls":6},{"$f":"CONST_PrecursorToGoodInput&G53&\"_\"&E69","v":"PrecToGood__"},3,{"$f":"IF(G53=\"\",\"\",L69)","v":""},null,{"$f":"IF(AND(G53<>\"\",E69<>\"\",L69<>\"\"),TRUE,IF(AND(G53<>\"\",E69<>\"\",L69=\"\",X69=FALSE),CONST_ErrorOrMissing&C53,CONST_NA))","v":"n.a."},null,{"$f":"IF(G53=\"\",FALSE,E69=\"\")","v":false}]
[{"$nulls":3},4,"",{"$nulls":5},"",{"$nulls":6},{"$f":"CONST_PrecursorToGoodInput&G53&\"_\"&E70","v":"PrecToGood__"},4,{"$f":"IF(G53=\"\",\"\",L70)","v":""},null,{"$f":"IF(AND(G53<>\"\",E70<>\"\",L70<>\"\"),TRUE,IF(AND(G53<>\"\",E70<>\"\",L70=\"\",X70=FALSE),CONST_ErrorOrMissing&C53,CONST_NA))","v":"n.a."},null,{"$f":"IF(G53=\"\",FALSE,E70=\"\")","v":false}]
[{"$nulls":3},5,"",{"$nulls":5},"",{"$nulls":6},{"$f":"CONST_PrecursorToGoodInput&G53&\"_\"&E71","v":"PrecToGood__"},5,{"$f":"IF(G53=\"\",\"\",L71)","v":""},null,{"$f":"IF(AND(G53<>\"\",E71<>\"\",L71<>\"\"),TRUE,IF(AND(G53<>\"\",E71<>\"\",L71=\"\",X71=FALSE),CONST_ErrorOrMissing&C53,CONST_NA))","v":"n.a."},null,{"$f":"IF(G53=\"\",FALSE,E71=\"\")","v":false}]
[{"$nulls":3},6,"",{"$nulls":5},"",{"$nulls":6},{"$f":"CONST_PrecursorToGoodInput&G53&\"_\"&E72","v":"PrecToGood__"},6,{"$f":"IF(G53=\"\",\"\",L72)","v":""},null,{"$f":"IF(AND(G53<>\"\",E72<>\"\",L72<>\"\"),TRUE,IF(AND(G53<>\"\",E72<>\"\",L72=\"\",X72=FALSE),CONST_ErrorOrMissing&C53,CONST_NA))","v":"n.a."},null,{"$f":"IF(G53=\"\",FALSE,E72=\"\")","v":false}]
[{"$nulls":3},7,"",{"$nulls":5},"",{"$nulls":6},{"$f":"CONST_PrecursorToGoodInput&G53&\"_\"&E73","v":"PrecToGood__"},7,{"$f":"IF(G53=\"\",\"\",L73)","v":""},null,{"$f":"IF(AND(G53<>\"\",E73<>\"\",L73<>\"\"),TRUE,IF(AND(G53<>\"\",E73<>\"\",L73=\"\",X73=FALSE),CONST_ErrorOrMissing&C53,CONST_NA))","v":"n.a."},null,{"$f":"IF(G53=\"\",FALSE,E73=\"\")","v":false}]
[{"$nulls":3},8,"",{"$nulls":5},"",{"$nulls":6},{"$f":"CONST_PrecursorToGoodInput&G53&\"_\"&E74","v":"PrecToGood__"},8,{"$f":"IF(G53=\"\",\"\",L74)","v":""},null,{"$f":"IF(AND(G53<>\"\",E74<>\"\",L74<>\"\"),TRUE,IF(AND(G53<>\"\",E74<>\"\",L74=\"\",X74=FALSE),CONST_ErrorOrMissing&C53,CONST_NA))","v":"n.a."},null,{"$f":"IF(G53=\"\",FALSE,E74=\"\")","v":false}]
[{"$nulls":3},9,"",{"$nulls":5},"",{"$nulls":6},{"$f":"CONST_PrecursorToGoodInput&G53&\"_\"&E75","v":"PrecToGood__"},9,{"$f":"IF(G53=\"\",\"\",L75)","v":""},null,{"$f":"IF(AND(G53<>\"\",E75<>\"\",L75<>\"\"),TRUE,IF(AND(G53<>\"\",E75<>\"\",L75=\"\",X75=FALSE),CONST_ErrorOrMissing&C53,CONST_NA))","v":"n.a."},null,{"$f":"IF(G53=\"\",FALSE,E75=\"\")","v":false}]
[{"$nulls":3},10,"",{"$nulls":5},"",{"$nulls":6},{"$f":"CONST_PrecursorToGoodInput&G53&\"_\"&E76","v":"PrecToGood__"},10,{"$f":"IF(G53=\"\",\"\",L76)","v":""},null,{"$f":"IF(AND(G53<>\"\",E76<>\"\",L76<>\"\"),TRUE,IF(AND(G53<>\"\",E76<>\"\",L76=\"\",X76=FALSE),CONST_ErrorOrMissing&C53,CONST_NA))","v":"n.a."},null,{"$f":"IF(G53=\"\",FALSE,E76=\"\")","v":false}]
[{"$nulls":3},"(c)",{"$f":"Translations!$B$252","v":"Consumed for non-CBAM goods within the installation:"},{"$nulls":5},{"$f":"K64","v":""}]
[{"$nulls":3},"(d)",{"$f":"Translations!$B$253","v":"Control:"},{"$nulls":5},{"$f":"K77","v":""},{"$f":"IF(G53=\"\",\"\",SUM(L64)-SUM(L67:L77))","v":""}]
[]
[]
[{"$nulls":3},{"$f":"Translations!$B$279","v":"Specific embedded emissions:"},{"$nulls":5},{"$f":"IF(G53=\"\",\"\",G53)","v":""}]
[]
[{"$nulls":3},"(e)",{"$f":"Translations!$B$280","v":"Emissions embedded in this purchased precursor"}]
[{"$nulls":4},{"$f":"Translations!$B$281","v":"Please enter here the values and sources for the specific embedded direct and indirect emissions, as obtained from the supplier."}]
[{"$nulls":4},{"$f":"Translations!$B$282","v":"For the SEE (direct), the 'Type of value' relates to whether the direct emissions are measured, or whether a default value provided by the European Commission was applied."}]
[{"$nulls":4},{"$f":"Translations!$B$283","v":"In order to obtain these data and information, you may want to ask your supplier to fill in an empty copy of this communication template."}]
[{"$nulls":4},{"$f":"Translations!$B$284","v":"Parameter:"},{"$nulls":5},{"$f":"Translations!$B$221","v":"Unit"},{"$f":"Translations!$B$260","v":"Value"},{"$f":"Translations!$B$285","v":"Source"}]
[{"$nulls":3},"i.",{"$f":"Translations!$B$286","v":"Specific embedded direct emissions (SEE (direct) )"},{"$nulls":5},{"$f":"IF(L53=\"\",\"\",CONST_tCO2eq&\"/\"&K64)","v":""},{"$nulls":6},{"$f":"CONST_PurchPrecDefaultUsed&G53","v":"PurchPrecDef_"},{"$f":"CONST_CNTR_EmbedEmDir&G53","v":"EmbedEmDir_"},{"$f":"IF(G53=\"\",\"\",SUM(T64)*SUM(L88))","v":""},{"$f":"IF(G53=\"\",\"\",IF(M88=\"\",CONST_ERR_Incomplete,MATCH(M88,CONST_MeasuredOrDefault,0)=2))","v":""},{"$f":"IF(AND(G53<>\"\",COUNTA(L88:M88)=2),TRUE,IF(AND(G53<>\"\",COUNTA(L88:M88)<2),CONST_ErrorOrMissing&C53,CONST_NA))","v":"n.a."}]
[{"$nulls":3},"ii.",{"$f":"Translations!$B$287","v":"Specific embedded indirect emissions (SEE (indirect) )"},{"$nulls":5},{"$f":"K88","v":""},{"$nulls":6},{"$f":"CONST_CNTR_ElecEFMethod&G53","v":"ElecEFMeth_"},{"$f":"CONST_CNTR_EmbedEmInDir&G53","v":"EmbedEmInDir_"},{"$f":"IF(G53=\"\",\"\",SUM(T64)*SUM(L89))","v":""},{"$f":"IF(G53=\"\",\"\",M89)","v":""},{"$f":"IF(AND(G53<>\"\",COUNTA(L89:M89)=2),TRUE,IF(AND(G53<>\"\",COUNTA(L89:M89)<2),CONST_ErrorOrMissing&C53,CONST_NA))","v":"n.a."}]
[]
[{"$nulls":3},"iii.",{"$f":"Translations!$B$1858","v":"Justification for use of default values (if relevant):"},{"$nulls":16},{"$f":"IF(AND(G53<>\"\",X91=FALSE,K91<>\"\"),TRUE,IF(AND(G53<>\"\",M88<>\"\",X91=FALSE,K91=\"\"),CONST_ErrorOrMissing&C53,CONST_NA))","v":"n.a."},null,{"$f":"IF(M88=\"\",FALSE,M88<>INDEX(CONST_MeasuredOrDefault,2))","v":false}]
[]
[]
[]
[null,null,{"$f":"C53+1","v":3},{"$f":"CONST_PurchPrecursor&\" \"&C95&\":\"","v":"Purchased precursor 3:"},null,null,{"$f":"IF(INDEX(CNTR_List_ExistPurchPrecNames,MATCH(R95,CNTR_ListPurchPrecID,0))=CONST_NA,\"\",INDEX(CNTR_List_ExistPurchPrecNames,MATCH(R95,CNTR_ListPurchPrecID,0)))","v":""},{"$nulls":4},{"$f":"IF(INDEX(CNTR_List_ExistPurchPrec,MATCH(R95,CNTR_ListPurchPrecID,0))=CONST_NA,\"\",INDEX(CNTR_List_ExistPurchPrec,MATCH(R95,CNTR_ListPurchPrecID,0)))","v":""},{"$nulls":5},{"$f":"INDEX(CNTR_ListPurchPrecID,C95)","v":"PP3"},{"$nulls":4},"Not relevant:",{"$f":"AND(CNTR_HasEntriesA,G95=\"\")","v":false}]
[]
[{"$nulls":3},"(a) ",{"$f":"Translations!$B$276","v":"Total purchased levels:"},null,null,{"$f":"Translations!$B$244","v":"Production route"},null,null,{"$f":"Translations!$B$221","v":"Unit"},{"$f":"Translations!$B$245","v":"Amounts"}]
[{"$nulls":3},1,{"$f":"IF(G95=\"\",\"\",G95)&IF(L95=\"\",\"\",\" | \"&L95)","v":""},null,null,{"$f":"IF(L95=\"\",\"\",INDEX(CONST_MATRIX_ProductionRoute,MATCH(L95,CONST_LIST_Goods,0),D98))","v":""},null,null,{"$f":"IF(L95=\"\",\"\",INDEX(CONST_LIST_GoodsUnit,MATCH(L95,CONST_LIST_Goods,0)))","v":""},{"$nulls":7},1]
[{"$nulls":3},2,{"$f":"IF(H99=CONST_NA,\"\",E98)","v":""},null,null,{"$f":"IF(L95=\"\",\"\",INDEX(CONST_MATRIX_ProductionRoute,MATCH(L95,CONST_LIST_Goods,0),D99))","v":""},null,null,{"$f":"IF(H99=CONST_NA,\"\",K98)","v":""},{"$nulls":7},2]
[{"$nulls":3},3,"",null,null,{"$f":"IF(L95=\"\",\"\",INDEX(CONST_MATRIX_ProductionRoute,MATCH(L95,CONST_LIST_Goods,0),D100))","v":""},null,null,"",{"$nulls":7},3]
[{"$nulls":3},4,"",null,null,{"$f":"IF(L95=\"\",\"\",INDEX(CONST_MATRIX_ProductionRoute,MATCH(L95,CONST_LIST_Goods,0),D101))","v":""},null,null,"",{"$nulls":7},4]
[{"$nulls":3},5,"",null,null,{"$f":"IF(L95=\"\",\"\",INDEX(CONST_MATRIX_ProductionRoute,MATCH(L95,CONST_LIST_Goods,0),D102))","v":""},null,null,"",{"$nulls":7},5]
[{"$nulls":3},6,"",null,null,{"$f":"IF(L95=\"\",\"\",INDEX(CONST_MATRIX_ProductionRoute,MATCH(L95,CONST_LIST_Goods,0),D103))","v":""},null,null,"",{"$nulls":7},6]
[{"$nulls":3},7,"",null,null,{"$f":"IF(L95=\"\",\"\",INDEX(CONST_MATRIX_ProductionRoute,MATCH(L95,CONST_LIST_Goods,0),D104))","v":""},null,null,"",{"$nulls":7},7]
[{"$nulls":3},8,"",null,null,{"$f":"IF(L95=\"\",\"\",INDEX(CONST_MATRIX_ProductionRoute,MATCH(L95,CONST_LIST_Goods,0),D105))","v":""},null,null,"",{"$nulls":7},8]
[{"$nulls":4},{"$f":"Translations!$B$277","v":"Total consumption within installation:"},{"$nulls":5},{"$f":"K98","v":""},{"$f":"IF(G95=\"\",\"\",SUM(L98:L105))","v":""},{"$nulls":5},{"$f":"CONST_CNTR_TotProd&G95","v":"TotProd_"},null,{"$f":"IF(G95=\"\",\"\",IF(SUM(L106)=0,100,L106))","v":""}]
[]
[{"$nulls":3},"(b)",{"$f":"Translations!$B$278","v":"Consumed in \"production processes\" within the installation:"},{"$nulls":5},{"$f":"Translations!$B$221","v":"Unit"},{"$f":"Translations!$B$245","v":"Amounts"},{"$nulls":6},"Numbering"]
[{"$nulls":3},1,{"$f":"IF(INDEX(CNTR_List_ExistProdProcNames,S109)=CONST_NA,\"\",INDEX(CNTR_List_ExistProdProcNames,S109))","v":""},{"$nulls":5},{"$f":"IF(E109=\"\",\"\",K106)","v":""},{"$nulls":6},{"$f":"CONST_PrecursorToGoodInput&G95&\"_\"&E109","v":"PrecToGood__"},{"$f":"D109","v":1},{"$f":"IF(G95=\"\",\"\",L109)","v":""},null,{"$f":"IF(AND(G95<>\"\",E109<>\"\",L109<>\"\"),TRUE,IF(AND(G95<>\"\",E109<>\"\",L109=\"\",X109=FALSE),CONST_ErrorOrMissing&C95,CONST_NA))","v":"n.a."},"cond.form.",{"$f":"IF(G95=\"\",FALSE,E109=\"\")","v":false}]
[{"$nulls":3},2,"",{"$nulls":5},{"$f":"IF(E110=\"\",\"\",K109)","v":""},{"$nulls":6},{"$f":"CONST_PrecursorToGoodInput&G95&\"_\"&E110","v":"PrecToGood__"},{"$f":"D110","v":2},{"$f":"IF(G95=\"\",\"\",L110)","v":""},null,{"$f":"IF(AND(G95<>\"\",E110<>\"\",L110<>\"\"),TRUE,IF(AND(G95<>\"\",E110<>\"\",L110=\"\",X110=FALSE),CONST_ErrorOrMissing&C95,CONST_NA))","v":"n.a."},null,{"$f":"IF(G95=\"\",FALSE,E110=\"\")","v":false}]
[{"$nulls":3},3,"",{"$nulls":5},{"$f":"IF(E111=\"\",\"\",K110)","v":""},{"$nulls":6},{"$f":"CONST_PrecursorToGoodInput&G95&\"_\"&E111","v":"PrecToGood__"},3,{"$f":"IF(G95=\"\",\"\",L111)","v":""},null,{"$f":"IF(AND(G95<>\"\",E111<>\"\",L111<>\"\"),TRUE,IF(AND(G95<>\"\",E111<>\"\",L111=\"\",X111=FALSE),CONST_ErrorOrMissing&C95,CONST_NA))","v":"n.a."},null,{"$f":"IF(G95=\"\",FALSE,E111=\"\")","v":false}]
[{"$nulls":3},4,"",{"$nulls":5},"",{"$nulls":6},{"$f":"CONST_PrecursorToGoodInput&G95&\"_\"&E112","v":"PrecToGood__"},4,{"$f":"IF(G95=\"\",\"\",L112)","v":""},null,{"$f":"IF(AND(G95<>\"\",E112<>\"\",L112<>\"\"),TRUE,IF(AND(G95<>\"\",E112<>\"\",L112=\"\",X112=FALSE),CONST_ErrorOrMissing&C95,CONST_NA))","v":"n.a."},null,{"$f":"IF(G95=\"\",FALSE,E112=\"\")","v":false}]
[{"$nulls":3},5,"",{"$nulls":5},"",{"$nulls":6},{"$f":"CONST_PrecursorToGoodInput&G95&\"_\"&E113","v":"PrecToGood__"},5,{"$f":"IF(G95=\"\",\"\",L113)","v":""},null,{"$f":"IF(AND(G95<>\"\",E113<>\"\",L113<>\"\"),TRUE,IF(AND(G95<>\"\",E113<>\"\",L113=\"\",X113=FALSE),CONST_ErrorOrMissing&C95,CONST_NA))","v":"n.a."},null,{"$f":"IF(G95=\"\",FALSE,E113=\"\")","v":false}]
[{"$nulls":3},6,"",{"$nulls":5},"",{"$nulls":6},{"$f":"CONST_PrecursorToGoodInput&G95&\"_\"&E114","v":"PrecToGood__"},6,{"$f":"IF(G95=\"\",\"\",L114)","v":""},null,{"$f":"IF(AND(G95<>\"\",E114<>\"\",L114<>\"\"),TRUE,IF(AND(G95<>\"\",E114<>\"\",L114=\"\",X114=FALSE),CONST_ErrorOrMissing&C95,CONST_NA))","v":"n.a."},null,{"$f":"IF(G95=\"\",FALSE,E114=\"\")","v":false}]
[{"$nulls":3},7,"",{"$nulls":5},"",{"$nulls":6},{"$f":"CONST_PrecursorToGoodInput&G95&\"_\"&E115","v":"PrecToGood__"},7,{"$f":"IF(G95=\"\",\"\",L115)","v":""},null,{"$f":"IF(AND(G95<>\"\",E115<>\"\",L115<>\"\"),TRUE,IF(AND(G95<>\"\",E115<>\"\",L115=\"\",X115=FALSE),CONST_ErrorOrMissing&C95,CONST_NA))","v":"n.a."},null,{"$f":"IF(G95=\"\",FALSE,E115=\"\")","v":false}]
[{"$nulls":3},8,"",{"$nulls":5},"",{"$nulls":6},{"$f":"CONST_PrecursorToGoodInput&G95&\"_\"&E116","v":"PrecToGood__"},8,{"$f":"IF(G95=\"\",\"\",L116)","v":""},null,{"$f":"IF(AND(G95<>\"\",E116<>\"\",L116<>\"\"),TRUE,IF(AND(G95<>\"\",E116<>\"\",L116=\"\",X116=FALSE),CONST_ErrorOrMissing&C95,CONST_NA))","v":"n.a."},null,{"$f":"IF(G95=\"\",FALSE,E116=\"\")","v":false}]
[{"$nulls":3},9,"",{"$nulls":5},"",{"$nulls":6},{"$f":"CONST_PrecursorToGoodInput&G95&\"_\"&E117","v":"PrecToGood__"},9,{"$f":"IF(G95=\"\",\"\",L117)","v":""},null,{"$f":"IF(AND(G95<>\"\",E117<>\"\",L117<>\"\"),TRUE,IF(AND(G95<>\"\",E117<>\"\",L117=\"\",X117=FALSE),CONST_ErrorOrMissing&C95,CONST_NA))","v":"n.a."},null,{"$f":"IF(G95=\"\",FALSE,E117=\"\")","v":false}]
[{"$nulls":3},10,"",{"$nulls":5},"",{"$nulls":6},{"$f":"CONST_PrecursorToGoodInput&G95&\"_\"&E118","v":"PrecToGood__"},10,{"$f":"IF(G95=\"\",\"\",L118)","v":""},null,{"$f":"IF(AND(G95<>\"\",E118<>\"\",L118<>\"\"),TRUE,IF(AND(G95<>\"\",E118<>\"\",L118=\"\",X118=FALSE),CONST_ErrorOrMissing&C95,CONST_NA))","v":"n.a."},null,{"$f":"IF(G95=\"\",FALSE,E118=\"\")","v":false}]
[{"$nulls":3},"(c)",{"$f":"Translations!$B$252","v":"Consumed for non-CBAM goods within the installation:"},{"$nulls":5},{"$f":"K106","v":""}]
[{"$nulls":3},"(d)",{"$f":"Translations!$B$253","v":"Control:"},{"$nulls":5},{"$f":"K119","v":""},{"$f":"IF(G95=\"\",\"\",SUM(L106)-SUM(L109:L119))","v":""}]
[]
[]
[{"$nulls":3},{"$f":"Translations!$B$279","v":"Specific embedded emissions:"},{"$nulls":5},{"$f":"IF(G95=\"\",\"\",G95)","v":""}]
[]
[{"$nulls":3},"(e)",{"$f":"Translations!$B$280","v":"Emissions embedded in this purchased precursor"}]
[{"$nulls":4},{"$f":"Translations!$B$281","v":"Please enter here the values and sources for the specific embedded direct and indirect emissions, as obtained from the supplier."}]
[{"$nulls":4},{"$f":"Translations!$B$282","v":"For the SEE (direct), the 'Type of value' relates to whether the direct emissions are measured, or whether a default value provided by the European Commission was applied."}]
[{"$nulls":4},{"$f":"Translations!$B$283","v":"In order to obtain these data and information, you may want to ask your supplier to fill in an empty copy of this communication template."}]
[{"$nulls":4},{"$f":"Translations!$B$284","v":"Parameter:"},{"$nulls":5},{"$f":"Translations!$B$221","v":"Unit"},{"$f":"Translations!$B$260","v":"Value"},{"$f":"Translations!$B$285","v":"Source"}]
[{"$nulls":3},"i.",{"$f":"Translations!$B$286","v":"Specific embedded direct emissions (SEE (direct) )"},{"$nulls":5},{"$f":"IF(L95=\"\",\"\",CONST_tCO2eq&\"/\"&K106)","v":""},{"$nulls":6},{"$f":"CONST_PurchPrecDefaultUsed&G95","v":"PurchPrecDef_"},{"$f":"CONST_CNTR_EmbedEmDir&G95","v":"EmbedEmDir_"},{"$f":"IF(G95=\"\",\"\",SUM(T106)*SUM(L130))","v":""},{"$f":"IF(G95=\"\",\"\",IF(M130=\"\",CONST_ERR_Incomplete,MATCH(M130,CONST_MeasuredOrDefault,0)=2))","v":""},{"$f":"IF(AND(G95<>\"\",COUNTA(L130:M130)=2),TRUE,IF(AND(G95<>\"\",COUNTA(L130:M130)<2),CONST_ErrorOrMissing&C95,CONST_NA))","v":"n.a."}]
[{"$nulls":3},"ii.",{"$f":"Translations!$B$287","v":"Specific embedded indirect emissions (SEE (indirect) )"},{"$nulls":5},{"$f":"K130","v":""},{"$nulls":6},{"$f":"CONST_CNTR_ElecEFMethod&G95","v":"ElecEFMeth_"},{"$f":"CONST_CNTR_EmbedEmInDir&G95","v":"EmbedEmInDir_"},{"$f":"IF(G95=\"\",\"\",SUM(T106)*SUM(L131))","v":""},{"$f":"IF(G95=\"\",\"\",M131)","v":""},{"$f":"IF(AND(G95<>\"\",COUNTA(L131:M131)=2),TRUE,IF(AND(G95<>\"\",COUNTA(L131:M131)<2),CONST_ErrorOrMissing&C95,CONST_NA))","v":"n.a."}]
[]
[{"$nulls":3},"iii.",{"$f":"Translations!$B$1858","v":"Justification for use of default values (if relevant):"},{"$nulls":16},{"$f":"IF(AND(G95<>\"\",X133=FALSE,K133<>\"\"),TRUE,IF(AND(G95<>\"\",M130<>\"\",X133=FALSE,K133=\"\"),CONST_ErrorOrMissing&C95,CONST_NA))","v":"n.a."},null,{"$f":"IF(M130=\"\",FALSE,M130<>INDEX(CONST_MeasuredOrDefault,2))","v":false}]
[]
[]
[]
[null,null,{"$f":"C95+1","v":4},{"$f":"CONST_PurchPrecursor&\" \"&C137&\":\"","v":"Purchased precursor 4:"},null,null,{"$f":"IF(INDEX(CNTR_List_ExistPurchPrecNames,MATCH(R137,CNTR_ListPurchPrecID,0))=CONST_NA,\"\",INDEX(CNTR_List_ExistPurchPrecNames,MATCH(R137,CNTR_ListPurchPrecID,0)))","v":""},{"$nulls":4},{"$f":"IF(INDEX(CNTR_List_ExistPurchPrec,MATCH(R137,CNTR_ListPurchPrecID,0))=CONST_NA,\"\",INDEX(CNTR_List_ExistPurchPrec,MATCH(R137,CNTR_ListPurchPrecID,0)))","v":""},{"$nulls":5},{"$f":"INDEX(CNTR_ListPurchPrecID,C137)","v":"PP4"},{"$nulls":4},"Not relevant:",{"$f":"AND(CNTR_HasEntriesA,G137=\"\")","v":false}]
[]
[{"$nulls":3},"(a) ",{"$f":"Translations!$B$276","v":"Total purchased levels:"},null,null,{"$f":"Translations!$B$244","v":"Production route"},null,null,{"$f":"Translations!$B$221","v":"Unit"},{"$f":"Translations!$B$245","v":"Amounts"}]
[{"$nulls":3},1,{"$f":"IF(G137=\"\",\"\",G137)&IF(L137=\"\",\"\",\" | \"&L137)","v":""},null,null,{"$f":"IF(L137=\"\",\"\",INDEX(CONST_MATRIX_ProductionRoute,MATCH(L137,CONST_LIST_Goods,0),D140))","v":""},null,null,{"$f":"IF(L137=\"\",\"\",INDEX(CONST_LIST_GoodsUnit,MATCH(L137,CONST_LIST_Goods,0)))","v":""},{"$nulls":7},1]
[{"$nulls":3},2,{"$f":"IF(H141=CONST_NA,\"\",E140)","v":""},null,null,{"$f":"IF(L137=\"\",\"\",INDEX(CONST_MATRIX_ProductionRoute,MATCH(L137,CONST_LIST_Goods,0),D141))","v":""},null,null,{"$f":"IF(H141=CONST_NA,\"\",K140)","v":""},{"$nulls":7},2]
[{"$nulls":3},3,"",null,null,{"$f":"IF(L137=\"\",\"\",INDEX(CONST_MATRIX_ProductionRoute,MATCH(L137,CONST_LIST_Goods,0),D142))","v":""},null,null,"",{"$nulls":7},3]
[{"$nulls":3},4,"",null,null,{"$f":"IF(L137=\"\",\"\",INDEX(CONST_MATRIX_ProductionRoute,MATCH(L137,CONST_LIST_Goods,0),D143))","v":""},null,null,"",{"$nulls":7},4]
[{"$nulls":3},5,"",null,null,{"$f":"IF(L137=\"\",\"\",INDEX(CONST_MATRIX_ProductionRoute,MATCH(L137,CONST_LIST_Goods,0),D144))","v":""},null,null,"",{"$nulls":7},5]
[{"$nulls":3},6,"",null,null,{"$f":"IF(L137=\"\",\"\",INDEX(CONST_MATRIX_ProductionRoute,MATCH(L137,CONST_LIST_Goods,0),D145))","v":""},null,null,"",{"$nulls":7},6]
[{"$nulls":3},7,"",null,null,{"$f":"IF(L137=\"\",\"\",INDEX(CONST_MATRIX_ProductionRoute,MATCH(L137,CONST_LIST_Goods,0),D146))","v":""},null,null,"",{"$nulls":7},7]
[{"$nulls":3},8,"",null,null,{"$f":"IF(L137=\"\",\"\",INDEX(CONST_MATRIX_ProductionRoute,MATCH(L137,CONST_LIST_Goods,0),D147))","v":""},null,null,"",{"$nulls":7},8]
[{"$nulls":4},{"$f":"Translations!$B$277","v":"Total consumption within installation:"},{"$nulls":5},{"$f":"K140","v":""},{"$f":"IF(G137=\"\",\"\",SUM(L140:L147))","v":""},{"$nulls":5},{"$f":"CONST_CNTR_TotProd&G137","v":"TotProd_"},null,{"$f":"IF(G137=\"\",\"\",IF(SUM(L148)=0,100,L148))","v":""}]
[]
[{"$nulls":3},"(b)",{"$f":"Translations!$B$278","v":"Consumed in \"production processes\" within the installation:"},{"$nulls":5},{"$f":"Translations!$B$221","v":"Unit"},{"$f":"Translations!$B$245","v":"Amounts"},{"$nulls":6},"Numbering"]
[{"$nulls":3},1,{"$f":"IF(INDEX(CNTR_List_ExistProdProcNames,S151)=CONST_NA,\"\",INDEX(CNTR_List_ExistProdProcNames,S151))","v":""},{"$nulls":5},{"$f":"IF(E151=\"\",\"\",K148)","v":""},{"$nulls":6},{"$f":"CONST_PrecursorToGoodInput&G137&\"_\"&E151","v":"PrecToGood__"},{"$f":"D151","v":1},{"$f":"IF(G137=\"\",\"\",L151)","v":""},null,{"$f":"IF(AND(G137<>\"\",E151<>\"\",L151<>\"\"),TRUE,IF(AND(G137<>\"\",E151<>\"\",L151=\"\",X151=FALSE),CONST_ErrorOrMissing&C137,CONST_NA))","v":"n.a."},"cond.form.",{"$f":"IF(G137=\"\",FALSE,E151=\"\")","v":false}]
[{"$nulls":3},2,"",{"$nulls":5},{"$f":"IF(E152=\"\",\"\",K151)","v":""},{"$nulls":6},{"$f":"CONST_PrecursorToGoodInput&G137&\"_\"&E152","v":"PrecToGood__"},{"$f":"D152","v":2},{"$f":"IF(G137=\"\",\"\",L152)","v":""},null,{"$f":"IF(AND(G137<>\"\",E152<>\"\",L152<>\"\"),TRUE,IF(AND(G137<>\"\",E152<>\"\",L152=\"\",X152=FALSE),CONST_ErrorOrMissing&C137,CONST_NA))","v":"n.a."},null,{"$f":"IF(G137=\"\",FALSE,E152=\"\")","v":false}]
[{"$nulls":3},3,"",{"$nulls":5},{"$f":"IF(E153=\"\",\"\",K152)","v":""},{"$nulls":6},{"$f":"CONST_PrecursorToGoodInput&G137&\"_\"&E153","v":"PrecToGood__"},3,{"$f":"IF(G137=\"\",\"\",L153)","v":""},null,{"$f":"IF(AND(G137<>\"\",E153<>\"\",L153<>\"\"),TRUE,IF(AND(G137<>\"\",E153<>\"\",L153=\"\",X153=FALSE),CONST_ErrorOrMissing&C137,CONST_NA))","v":"n.a."},null,{"$f":"IF(G137=\"\",FALSE,E153=\"\")","v":false}]
[{"$nulls":3},4,"",{"$nulls":5},"",{"$nulls":6},{"$f":"CONST_PrecursorToGoodInput&G137&\"_\"&E154","v":"PrecToGood__"},4,{"$f":"IF(G137=\"\",\"\",L154)","v":""},null,{"$f":"IF(AND(G137<>\"\",E154<>\"\",L154<>\"\"),TRUE,IF(AND(G137<>\"\",E154<>\"\",L154=\"\",X154=FALSE),CONST_ErrorOrMissing&C137,CONST_NA))","v":"n.a."},null,{"$f":"IF(G137=\"\",FALSE,E154=\"\")","v":false}]
[{"$nulls":3},5,"",{"$nulls":5},"",{"$nulls":6},{"$f":"CONST_PrecursorToGoodInput&G137&\"_\"&E155","v":"PrecToGood__"},5,{"$f":"IF(G137=\"\",\"\",L155)","v":""},null,{"$f":"IF(AND(G137<>\"\",E155<>\"\",L155<>\"\"),TRUE,IF(AND(G137<>\"\",E155<>\"\",L155=\"\",X155=FALSE),CONST_ErrorOrMissing&C137,CONST_NA))","v":"n.a."},null,{"$f":"IF(G137=\"\",FALSE,E155=\"\")","v":false}]
[{"$nulls":3},6,"",{"$nulls":5},"",{"$nulls":6},{"$f":"CONST_PrecursorToGoodInput&G137&\"_\"&E156","v":"PrecToGood__"},6,{"$f":"IF(G137=\"\",\"\",L156)","v":""},null,{"$f":"IF(AND(G137<>\"\",E156<>\"\",L156<>\"\"),TRUE,IF(AND(G137<>\"\",E156<>\"\",L156=\"\",X156=FALSE),CONST_ErrorOrMissing&C137,CONST_NA))","v":"n.a."},null,{"$f":"IF(G137=\"\",FALSE,E156=\"\")","v":false}]
[{"$nulls":3},7,"",{"$nulls":5},"",{"$nulls":6},{"$f":"CONST_PrecursorToGoodInput&G137&\"_\"&E157","v":"PrecToGood__"},7,{"$f":"IF(G137=\"\",\"\",L157)","v":""},null,{"$f":"IF(AND(G137<>\"\",E157<>\"\",L157<>\"\"),TRUE,IF(AND(G137<>\"\",E157<>\"\",L157=\"\",X157=FALSE),CONST_ErrorOrMissing&C137,CONST_NA))","v":"n.a."},null,{"$f":"IF(G137=\"\",FALSE,E157=\"\")","v":false}]
[{"$nulls":3},8,"",{"$nulls":5},"",{"$nulls":6},{"$f":"CONST_PrecursorToGoodInput&G137&\"_\"&E158","v":"PrecToGood__"},8,{"$f":"IF(G137=\"\",\"\",L158)","v":""},null,{"$f":"IF(AND(G137<>\"\",E158<>\"\",L158<>\"\"),TRUE,IF(AND(G137<>\"\",E158<>\"\",L158=\"\",X158=FALSE),CONST_ErrorOrMissing&C137,CONST_NA))","v":"n.a."},null,{"$f":"IF(G137=\"\",FALSE,E158=\"\")","v":false}]
[{"$nulls":3},9,"",{"$nulls":5},"",{"$nulls":6},{"$f":"CONST_PrecursorToGoodInput&G137&\"_\"&E159","v":"PrecToGood__"},9,{"$f":"IF(G137=\"\",\"\",L159)","v":""},null,{"$f":"IF(AND(G137<>\"\",E159<>\"\",L159<>\"\"),TRUE,IF(AND(G137<>\"\",E159<>\"\",L159=\"\",X159=FALSE),CONST_ErrorOrMissing&C137,CONST_NA))","v":"n.a."},null,{"$f":"IF(G137=\"\",FALSE,E159=\"\")","v":false}]
[{"$nulls":3},10,"",{"$nulls":5},"",{"$nulls":6},{"$f":"CONST_PrecursorToGoodInput&G137&\"_\"&E160","v":"PrecToGood__"},10,{"$f":"IF(G137=\"\",\"\",L160)","v":""},null,{"$f":"IF(AND(G137<>\"\",E160<>\"\",L160<>\"\"),TRUE,IF(AND(G137<>\"\",E160<>\"\",L160=\"\",X160=FALSE),CONST_ErrorOrMissing&C137,CONST_NA))","v":"n.a."},null,{"$f":"IF(G137=\"\",FALSE,E160=\"\")","v":false}]
[{"$nulls":3},"(c)",{"$f":"Translations!$B$252","v":"Consumed for non-CBAM goods within the installation:"},{"$nulls":5},{"$f":"K148","v":""}]
[{"$nulls":3},"(d)",{"$f":"Translations!$B$253","v":"Control:"},{"$nulls":5},{"$f":"K161","v":""},{"$f":"IF(G137=\"\",\"\",SUM(L148)-SUM(L151:L161))","v":""}]
[]
[]
[{"$nulls":3},{"$f":"Translations!$B$279","v":"Specific embedded emissions:"},{"$nulls":5},{"$f":"IF(G137=\"\",\"\",G137)","v":""}]
[]
[{"$nulls":3},"(e)",{"$f":"Translations!$B$280","v":"Emissions embedded in this purchased precursor"}]
[{"$nulls":4},{"$f":"Translations!$B$281","v":"Please enter here the values and sources for the specific embedded direct and indirect emissions, as obtained from the supplier."}]
[{"$nulls":4},{"$f":"Translations!$B$282","v":"For the SEE (direct), the 'Type of value' relates to whether the direct emissions are measured, or whether a default value provided by the European Commission was applied."}]
[{"$nulls":4},{"$f":"Translations!$B$283","v":"In order to obtain these data and information, you may want to ask your supplier to fill in an empty copy of this communication template."}]
[{"$nulls":4},{"$f":"Translations!$B$284","v":"Parameter:"},{"$nulls":5},{"$f":"Translations!$B$221","v":"Unit"},{"$f":"Translations!$B$260","v":"Value"},{"$f":"Translations!$B$285","v":"Source"}]
[{"$nulls":3},"i.",{"$f":"Translations!$B$286","v":"Specific embedded direct emissions (SEE (direct) )"},{"$nulls":5},{"$f":"IF(L137=\"\",\"\",CONST_tCO2eq&\"/\"&K148)","v":""},{"$nulls":6},{"$f":"CONST_PurchPrecDefaultUsed&G137","v":"PurchPrecDef_"},{"$f":"CONST_CNTR_EmbedEmDir&G137","v":"EmbedEmDir_"},{"$f":"IF(G137=\"\",\"\",SUM(T148)*SUM(L172))","v":""},{"$f":"IF(G137=\"\",\"\",IF(M172=\"\",CONST_ERR_Incomplete,MATCH(M172,CONST_MeasuredOrDefault,0)=2))","v":""},{"$f":"IF(AND(G137<>\"\",COUNTA(L172:M172)=2),TRUE,IF(AND(G137<>\"\",COUNTA(L172:M172)<2),CONST_ErrorOrMissing&C137,CONST_NA))","v":"n.a."}]
[{"$nulls":3},"ii.",{"$f":"Translations!$B$287","v":"Specific embedded indirect emissions (SEE (indirect) )"},{"$nulls":5},{"$f":"K172","v":""},{"$nulls":6},{"$f":"CONST_CNTR_ElecEFMethod&G137","v":"ElecEFMeth_"},{"$f":"CONST_CNTR_EmbedEmInDir&G137","v":"EmbedEmInDir_"},{"$f":"IF(G137=\"\",\"\",SUM(T148)*SUM(L173))","v":""},{"$f":"IF(G137=\"\",\"\",M173)","v":""},{"$f":"IF(AND(G137<>\"\",COUNTA(L173:M173)=2),TRUE,IF(AND(G137<>\"\",COUNTA(L173:M173)<2),CONST_ErrorOrMissing&C137,CONST_NA))","v":"n.a."}]
[]
[{"$nulls":3},"iii.",{"$f":"Translations!$B$1858","v":"Justification for use of default values (if relevant):"},{"$nulls":16},{"$f":"IF(AND(G137<>\"\",X175=FALSE,K175<>\"\"),TRUE,IF(AND(G137<>\"\",M172<>\"\",X175=FALSE,K175=\"\"),CONST_ErrorOrMissing&C137,CONST_NA))","v":"n.a."},null,{"$f":"IF(M172=\"\",FALSE,M172<>INDEX(CONST_MeasuredOrDefault,2))","v":false}]
[]
[]
[]
[null,null,{"$f":"C137+1","v":5},{"$f":"CONST_PurchPrecursor&\" \"&C179&\":\"","v":"Purchased precursor 5:"},null,null,{"$f":"IF(INDEX(CNTR_List_ExistPurchPrecNames,MATCH(R179,CNTR_ListPurchPrecID,0))=CONST_NA,\"\",INDEX(CNTR_List_ExistPurchPrecNames,MATCH(R179,CNTR_ListPurchPrecID,0)))","v":""},{"$nulls":4},{"$f":"IF(INDEX(CNTR_List_ExistPurchPrec,MATCH(R179,CNTR_ListPurchPrecID,0))=CONST_NA,\"\",INDEX(CNTR_List_ExistPurchPrec,MATCH(R179,CNTR_ListPurchPrecID,0)))","v":""},{"$nulls":5},{"$f":"INDEX(CNTR_ListPurchPrecID,C179)","v":"PP5"},{"$nulls":4},"Not relevant:",{"$f":"AND(CNTR_HasEntriesA,G179=\"\")","v":false}]
[]
[{"$nulls":3},"(a) ",{"$f":"Translations!$B$276","v":"Total purchased levels:"},null,null,{"$f":"Translations!$B$244","v":"Production route"},null,null,{"$f":"Translations!$B$221","v":"Unit"},{"$f":"Translations!$B$245","v":"Amounts"}]
[{"$nulls":3},1,{"$f":"IF(G179=\"\",\"\",G179)&IF(L179=\"\",\"\",\" | \"&L179)","v":""},null,null,{"$f":"IF(L179=\"\",\"\",INDEX(CONST_MATRIX_ProductionRoute,MATCH(L179,CONST_LIST_Goods,0),D182))","v":""},null,null,{"$f":"IF(L179=\"\",\"\",INDEX(CONST_LIST_GoodsUnit,MATCH(L179,CONST_LIST_Goods,0)))","v":""},{"$nulls":7},1]
[{"$nulls":3},2,{"$f":"IF(H183=CONST_NA,\"\",E182)","v":""},null,null,{"$f":"IF(L179=\"\",\"\",INDEX(CONST_MATRIX_ProductionRoute,MATCH(L179,CONST_LIST_Goods,0),D183))","v":""},null,null,{"$f":"IF(H183=CONST_NA,\"\",K182)","v":""},{"$nulls":7},2]
[{"$nulls":3},3,"",null,null,{"$f":"IF(L179=\"\",\"\",INDEX(CONST_MATRIX_ProductionRoute,MATCH(L179,CONST_LIST_Goods,0),D184))","v":""},null,null,"",{"$nulls":7},3]
[{"$nulls":3},4,"",null,null,{"$f":"IF(L179=\"\",\"\",INDEX(CONST_MATRIX_ProductionRoute,MATCH(L179,CONST_LIST_Goods,0),D185))","v":""},null,null,"",{"$nulls":7},4]
[{"$nulls":3},5,"",null,null,{"$f":"IF(L179=\"\",\"\",INDEX(CONST_MATRIX_ProductionRoute,MATCH(L179,CONST_LIST_Goods,0),D186))","v":""},null,null,"",{"$nulls":7},5]
[{"$nulls":3},6,"",null,null,{"$f":"IF(L179=\"\",\"\",INDEX(CONST_MATRIX_ProductionRoute,MATCH(L179,CONST_LIST_Goods,0),D187))","v":""},null,null,"",{"$nulls":7},6]
[{"$nulls":3},7,"",null,null,{"$f":"IF(L179=\"\",\"\",INDEX(CONST_MATRIX_ProductionRoute,MATCH(L179,CONST_LIST_Goods,0),D188))","v":""},null,null,"",{"$nulls":7},7]
[{"$nulls":3},8,"",null,null,{"$f":"IF(L179=\"\",\"\",INDEX(CONST_MATRIX_ProductionRoute,MATCH(L179,CONST_LIST_Goods,0),D189))","v":""},null,null,"",{"$nulls":7},8]
[{"$nulls":4},{"$f":"Translations!$B$277","v":"Total consumption within installation:"},{"$nulls":5},{"$f":"K182","v":""},{"$f":"IF(G179=\"\",\"\",SUM(L182:L189))","v":""},{"$nulls":5},{"$f":"CONST_CNTR_TotProd&G179","v":"TotProd_"},null,{"$f":"IF(G179=\"\",\"\",IF(SUM(L190)=0,100,L190))","v":""}]
[]
[{"$nulls":3},"(b)",{"$f":"Translations!$B$278","v":"Consumed in \"production processes\" within the installation:"},{"$nulls":5},{"$f":"Translations!$B$221","v":"Unit"},{"$f":"Translations!$B$245","v":"Amounts"},{"$nulls":6},"Numbering"]
[{"$nulls":3},1,{"$f":"IF(INDEX(CNTR_List_ExistProdProcNames,S193)=CONST_NA,\"\",INDEX(CNTR_List_ExistProdProcNames,S193))","v":""},{"$nulls":5},{"$f":"IF(E193=\"\",\"\",K190)","v":""},{"$nulls":6},{"$f":"CONST_PrecursorToGoodInput&G179&\"_\"&E193","v":"PrecToGood__"},{"$f":"D193","v":1},{"$f":"IF(G179=\"\",\"\",L193)","v":""},null,{"$f":"IF(AND(G179<>\"\",E193<>\"\",L193<>\"\"),TRUE,IF(AND(G179<>\"\",E193<>\"\",L193=\"\",X193=FALSE),CONST_ErrorOrMissing&C179,CONST_NA))","v":"n.a."},"cond.form.",{"$f":"IF(G179=\"\",FALSE,E193=\"\")","v":false}]
[{"$nulls":3},2,"",{"$nulls":5},{"$f":"IF(E194=\"\",\"\",K193)","v":""},{"$nulls":6},{"$f":"CONST_PrecursorToGoodInput&G179&\"_\"&E194","v":"PrecToGood__"},{"$f":"D194","v":2},{"$f":"IF(G179=\"\",\"\",L194)","v":""},null,{"$f":"IF(AND(G179<>\"\",E194<>\"\",L194<>\"\"),TRUE,IF(AND(G179<>\"\",E194<>\"\",L194=\"\",X194=FALSE),CONST_ErrorOrMissing&C179,CONST_NA))","v":"n.a."},null,{"$f":"IF(G179=\"\",FALSE,E194=\"\")","v":false}]
[{"$nulls":3},3,"",{"$nulls":5},{"$f":"IF(E195=\"\",\"\",K194)","v":""},{"$nulls":6},{"$f":"CONST_PrecursorToGoodInput&G179&\"_\"&E195","v":"PrecToGood__"},3,{"$f":"IF(G179=\"\",\"\",L195)","v":""},null,{"$f":"IF(AND(G179<>\"\",E195<>\"\",L195<>\"\"),TRUE,IF(AND(G179<>\"\",E195<>\"\",L195=\"\",X195=FALSE),CONST_ErrorOrMissing&C179,CONST_NA))","v":"n.a."},null,{"$f":"IF(G179=\"\",FALSE,E195=\"\")","v":false}]
[{"$nulls":3},4,"",{"$nulls":5},"",{"$nulls":6},{"$f":"CONST_PrecursorToGoodInput&G179&\"_\"&E196","v":"PrecToGood__"},4,{"$f":"IF(G179=\"\",\"\",L196)","v":""},null,{"$f":"IF(AND(G179<>\"\",E196<>\"\",L196<>\"\"),TRUE,IF(AND(G179<>\"\",E196<>\"\",L196=\"\",X196=FALSE),CONST_ErrorOrMissing&C179,CONST_NA))","v":"n.a."},null,{"$f":"IF(G179=\"\",FALSE,E196=\"\")","v":false}]
[{"$nulls":3},5,"",{"$nulls":5},"",{"$nulls":6},{"$f":"CONST_PrecursorToGoodInput&G179&\"_\"&E197","v":"PrecToGood__"},5,{"$f":"IF(G179=\"\",\"\",L197)","v":""},null,{"$f":"IF(AND(G179<>\"\",E197<>\"\",L197<>\"\"),TRUE,IF(AND(G179<>\"\",E197<>\"\",L197=\"\",X197=FALSE),CONST_ErrorOrMissing&C179,CONST_NA))","v":"n.a."},null,{"$f":"IF(G179=\"\",FALSE,E197=\"\")","v":false}]
[{"$nulls":3},6,"",{"$nulls":5},"",{"$nulls":6},{"$f":"CONST_PrecursorToGoodInput&G179&\"_\"&E198","v":"PrecToGood__"},6,{"$f":"IF(G179=\"\",\"\",L198)","v":""},null,{"$f":"IF(AND(G179<>\"\",E198<>\"\",L198<>\"\"),TRUE,IF(AND(G179<>\"\",E198<>\"\",L198=\"\",X198=FALSE),CONST_ErrorOrMissing&C179,CONST_NA))","v":"n.a."},null,{"$f":"IF(G179=\"\",FALSE,E198=\"\")","v":false}]
[{"$nulls":3},7,"",{"$nulls":5},"",{"$nulls":6},{"$f":"CONST_PrecursorToGoodInput&G179&\"_\"&E199","v":"PrecToGood__"},7,{"$f":"IF(G179=\"\",\"\",L199)","v":""},null,{"$f":"IF(AND(G179<>\"\",E199<>\"\",L199<>\"\"),TRUE,IF(AND(G179<>\"\",E199<>\"\",L199=\"\",X199=FALSE),CONST_ErrorOrMissing&C179,CONST_NA))","v":"n.a."},null,{"$f":"IF(G179=\"\",FALSE,E199=\"\")","v":false}]
[{"$nulls":3},8,"",{"$nulls":5},"",{"$nulls":6},{"$f":"CONST_PrecursorToGoodInput&G179&\"_\"&E200","v":"PrecToGood__"},8,{"$f":"IF(G179=\"\",\"\",L200)","v":""},null,{"$f":"IF(AND(G179<>\"\",E200<>\"\",L200<>\"\"),TRUE,IF(AND(G179<>\"\",E200<>\"\",L200=\"\",X200=FALSE),CONST_ErrorOrMissing&C179,CONST_NA))","v":"n.a."},null,{"$f":"IF(G179=\"\",FALSE,E200=\"\")","v":false}]
[{"$nulls":3},9,"",{"$nulls":5},"",{"$nulls":6},{"$f":"CONST_PrecursorToGoodInput&G179&\"_\"&E201","v":"PrecToGood__"},9,{"$f":"IF(G179=\"\",\"\",L201)","v":""},null,{"$f":"IF(AND(G179<>\"\",E201<>\"\",L201<>\"\"),TRUE,IF(AND(G179<>\"\",E201<>\"\",L201=\"\",X201=FALSE),CONST_ErrorOrMissing&C179,CONST_NA))","v":"n.a."},null,{"$f":"IF(G179=\"\",FALSE,E201=\"\")","v":false}]
[{"$nulls":3},10,"",{"$nulls":5},"",{"$nulls":6},{"$f":"CONST_PrecursorToGoodInput&G179&\"_\"&E202","v":"PrecToGood__"},10,{"$f":"IF(G179=\"\",\"\",L202)","v":""},null,{"$f":"IF(AND(G179<>\"\",E202<>\"\",L202<>\"\"),TRUE,IF(AND(G179<>\"\",E202<>\"\",L202=\"\",X202=FALSE),CONST_ErrorOrMissing&C179,CONST_NA))","v":"n.a."},null,{"$f":"IF(G179=\"\",FALSE,E202=\"\")","v":false}]
[{"$nulls":3},"(c)",{"$f":"Translations!$B$252","v":"Consumed for non-CBAM goods within the installation:"},{"$nulls":5},{"$f":"K190","v":""}]
[{"$nulls":3},"(d)",{"$f":"Translations!$B$253","v":"Control:"},{"$nulls":5},{"$f":"K203","v":""},{"$f":"IF(G179=\"\",\"\",SUM(L190)-SUM(L193:L203))","v":""}]
[]
[]
[{"$nulls":3},{"$f":"Translations!$B$279","v":"Specific embedded emissions:"},{"$nulls":5},{"$f":"IF(G179=\"\",\"\",G179)","v":""}]
[]
[{"$nulls":3},"(e)",{"$f":"Translations!$B$280","v":"Emissions embedded in this purchased precursor"}]
[{"$nulls":4},{"$f":"Translations!$B$281","v":"Please enter here the values and sources for the specific embedded direct and indirect emissions, as obtained from the supplier."}]
[{"$nulls":4},{"$f":"Translations!$B$282","v":"For the SEE (direct), the 'Type of value' relates to whether the direct emissions are measured, or whether a default value provided by the European Commission was applied."}]
[{"$nulls":4},{"$f":"Translations!$B$283","v":"In order to obtain these data and information, you may want to ask your supplier to fill in an empty copy of this communication template."}]
[{"$nulls":4},{"$f":"Translations!$B$284","v":"Parameter:"},{"$nulls":5},{"$f":"Translations!$B$221","v":"Unit"},{"$f":"Translations!$B$260","v":"Value"},{"$f":"Translations!$B$285","v":"Source"}]
[{"$nulls":3},"i.",{"$f":"Translations!$B$286","v":"Specific embedded direct emissions (SEE (direct) )"},{"$nulls":5},{"$f":"IF(L179=\"\",\"\",CONST_tCO2eq&\"/\"&K190)","v":""},{"$nulls":6},{"$f":"CONST_PurchPrecDefaultUsed&G179","v":"PurchPrecDef_"},{"$f":"CONST_CNTR_EmbedEmDir&G179","v":"EmbedEmDir_"},{"$f":"IF(G179=\"\",\"\",SUM(T190)*SUM(L214))","v":""},{"$f":"IF(G179=\"\",\"\",IF(M214=\"\",CONST_ERR_Incomplete,MATCH(M214,CONST_MeasuredOrDefault,0)=2))","v":""},{"$f":"IF(AND(G179<>\"\",COUNTA(L214:M214)=2),TRUE,IF(AND(G179<>\"\",COUNTA(L214:M214)<2),CONST_ErrorOrMissing&C179,CONST_NA))","v":"n.a."}]
[{"$nulls":3},"ii.",{"$f":"Translations!$B$287","v":"Specific embedded indirect emissions (SEE (indirect) )"},{"$nulls":5},{"$f":"K214","v":""},{"$nulls":6},{"$f":"CONST_CNTR_ElecEFMethod&G179","v":"ElecEFMeth_"},{"$f":"CONST_CNTR_EmbedEmInDir&G179","v":"EmbedEmInDir_"},{"$f":"IF(G179=\"\",\"\",SUM(T190)*SUM(L215))","v":""},{"$f":"IF(G179=\"\",\"\",M215)","v":""},{"$f":"IF(AND(G179<>\"\",COUNTA(L215:M215)=2),TRUE,IF(AND(G179<>\"\",COUNTA(L215:M215)<2),CONST_ErrorOrMissing&C179,CONST_NA))","v":"n.a."}]
[]
[{"$nulls":3},"iii.",{"$f":"Translations!$B$1858","v":"Justification for use of default values (if relevant):"},{"$nulls":16},{"$f":"IF(AND(G179<>\"\",X217=FALSE,K217<>\"\"),TRUE,IF(AND(G179<>\"\",M214<>\"\",X217=FALSE,K217=\"\"),CONST_ErrorOrMissing&C179,CONST_NA))","v":"n.a."},null,{"$f":"IF(M214=\"\",FALSE,M214<>INDEX(CONST_MeasuredOrDefault,2))","v":false}]
[]
[]
[]
[null,null,{"$f":"C179+1","v":6},{"$f":"CONST_PurchPrecursor&\" \"&C221&\":\"","v":"Purchased precursor 6:"},null,null,{"$f":"IF(INDEX(CNTR_List_ExistPurchPrecNames,MATCH(R221,CNTR_ListPurchPrecID,0))=CONST_NA,\"\",INDEX(CNTR_List_ExistPurchPrecNames,MATCH(R221,CNTR_ListPurchPrecID,0)))","v":""},{"$nulls":4},{"$f":"IF(INDEX(CNTR_List_ExistPurchPrec,MATCH(R221,CNTR_ListPurchPrecID,0))=CONST_NA,\"\",INDEX(CNTR_List_ExistPurchPrec,MATCH(R221,CNTR_ListPurchPrecID,0)))","v":""},{"$nulls":5},{"$f":"INDEX(CNTR_ListPurchPrecID,C221)","v":"PP6"},{"$nulls":4},"Not relevant:",{"$f":"AND(CNTR_HasEntriesA,G221=\"\")","v":false}]
[]
[{"$nulls":3},"(a) ",{"$f":"Translations!$B$276","v":"Total purchased levels:"},null,null,{"$f":"Translations!$B$244","v":"Production route"},null,null,{"$f":"Translations!$B$221","v":"Unit"},{"$f":"Translations!$B$245","v":"Amounts"}]
[{"$nulls":3},1,{"$f":"IF(G221=\"\",\"\",G221)&IF(L221=\"\",\"\",\" | \"&L221)","v":""},null,null,{"$f":"IF(L221=\"\",\"\",INDEX(CONST_MATRIX_ProductionRoute,MATCH(L221,CONST_LIST_Goods,0),D224))","v":""},null,null,{"$f":"IF(L221=\"\",\"\",INDEX(CONST_LIST_GoodsUnit,MATCH(L221,CONST_LIST_Goods,0)))","v":""},{"$nulls":7},1]
[{"$nulls":3},2,{"$f":"IF(H225=CONST_NA,\"\",E224)","v":""},null,null,{"$f":"IF(L221=\"\",\"\",INDEX(CONST_MATRIX_ProductionRoute,MATCH(L221,CONST_LIST_Goods,0),D225))","v":""},null,null,{"$f":"IF(H225=CONST_NA,\"\",K224)","v":""},{"$nulls":7},2]
[{"$nulls":3},3,"",null,null,{"$f":"IF(L221=\"\",\"\",INDEX(CONST_MATRIX_ProductionRoute,MATCH(L221,CONST_LIST_Goods,0),D226))","v":""},null,null,"",{"$nulls":7},3]
[{"$nulls":3},4,"",null,null,{"$f":"IF(L221=\"\",\"\",INDEX(CONST_MATRIX_ProductionRoute,MATCH(L221,CONST_LIST_Goods,0),D227))","v":""},null,null,"",{"$nulls":7},4]
[{"$nulls":3},5,"",null,null,{"$f":"IF(L221=\"\",\"\",INDEX(CONST_MATRIX_ProductionRoute,MATCH(L221,CONST_LIST_Goods,0),D228))","v":""},null,null,"",{"$nulls":7},5]
[{"$nulls":3},6,"",null,null,{"$f":"IF(L221=\"\",\"\",INDEX(CONST_MATRIX_ProductionRoute,MATCH(L221,CONST_LIST_Goods,0),D229))","v":""},null,null,"",{"$nulls":7},6]
[{"$nulls":3},7,"",null,null,{"$f":"IF(L221=\"\",\"\",INDEX(CONST_MATRIX_ProductionRoute,MATCH(L221,CONST_LIST_Goods,0),D230))","v":""},null,null,"",{"$nulls":7},7]
[{"$nulls":3},8,"",null,null,{"$f":"IF(L221=\"\",\"\",INDEX(CONST_MATRIX_ProductionRoute,MATCH(L221,CONST_LIST_Goods,0),D231))","v":""},null,null,"",{"$nulls":7},8]
[{"$nulls":4},{"$f":"Translations!$B$277","v":"Total consumption within installation:"},{"$nulls":5},{"$f":"K224","v":""},{"$f":"IF(G221=\"\",\"\",SUM(L224:L231))","v":""},{"$nulls":5},{"$f":"CONST_CNTR_TotProd&G221","v":"TotProd_"},null,{"$f":"IF(G221=\"\",\"\",IF(SUM(L232)=0,100,L232))","v":""}]
[]
[{"$nulls":3},"(b)",{"$f":"Translations!$B$278","v":"Consumed in \"production processes\" within the installation:"},{"$nulls":5},{"$f":"Translations!$B$221","v":"Unit"},{"$f":"Translations!$B$245","v":"Amounts"},{"$nulls":6},"Numbering"]
[{"$nulls":3},1,{"$f":"IF(INDEX(CNTR_List_ExistProdProcNames,S235)=CONST_NA,\"\",INDEX(CNTR_List_ExistProdProcNames,S235))","v":""},{"$nulls":5},{"$f":"IF(E235=\"\",\"\",K232)","v":""},{"$nulls":6},{"$f":"CONST_PrecursorToGoodInput&G221&\"_\"&E235","v":"PrecToGood__"},{"$f":"D235","v":1},{"$f":"IF(G221=\"\",\"\",L235)","v":""},null,{"$f":"IF(AND(G221<>\"\",E235<>\"\",L235<>\"\"),TRUE,IF(AND(G221<>\"\",E235<>\"\",L235=\"\",X235=FALSE),CONST_ErrorOrMissing&C221,CONST_NA))","v":"n.a."},"cond.form.",{"$f":"IF(G221=\"\",FALSE,E235=\"\")","v":false}]
[{"$nulls":3},2,"",{"$nulls":5},{"$f":"IF(E236=\"\",\"\",K235)","v":""},{"$nulls":6},{"$f":"CONST_PrecursorToGoodInput&G221&\"_\"&E236","v":"PrecToGood__"},{"$f":"D236","v":2},{"$f":"IF(G221=\"\",\"\",L236)","v":""},null,{"$f":"IF(AND(G221<>\"\",E236<>\"\",L236<>\"\"),TRUE,IF(AND(G221<>\"\",E236<>\"\",L236=\"\",X236=FALSE),CONST_ErrorOrMissing&C221,CONST_NA))","v":"n.a."},null,{"$f":"IF(G221=\"\",FALSE,E236=\"\")","v":false}]
[{"$nulls":3},3,"",{"$nulls":5},{"$f":"IF(E237=\"\",\"\",K236)","v":""},{"$nulls":6},{"$f":"CONST_PrecursorToGoodInput&G221&\"_\"&E237","v":"PrecToGood__"},3,{"$f":"IF(G221=\"\",\"\",L237)","v":""},null,{"$f":"IF(AND(G221<>\"\",E237<>\"\",L237<>\"\"),TRUE,IF(AND(G221<>\"\",E237<>\"\",L237=\"\",X237=FALSE),CONST_ErrorOrMissing&C221,CONST_NA))","v":"n.a."},null,{"$f":"IF(G221=\"\",FALSE,E237=\"\")","v":false}]
[{"$nulls":3},4,"",{"$nulls":5},"",{"$nulls":6},{"$f":"CONST_PrecursorToGoodInput&G221&\"_\"&E238","v":"PrecToGood__"},4,{"$f":"IF(G221=\"\",\"\",L238)","v":""},null,{"$f":"IF(AND(G221<>\"\",E238<>\"\",L238<>\"\"),TRUE,IF(AND(G221<>\"\",E238<>\"\",L238=\"\",X238=FALSE),CONST_ErrorOrMissing&C221,CONST_NA))","v":"n.a."},null,{"$f":"IF(G221=\"\",FALSE,E238=\"\")","v":false}]
[{"$nulls":3},5,"",{"$nulls":5},"",{"$nulls":6},{"$f":"CONST_PrecursorToGoodInput&G221&\"_\"&E239","v":"PrecToGood__"},5,{"$f":"IF(G221=\"\",\"\",L239)","v":""},null,{"$f":"IF(AND(G221<>\"\",E239<>\"\",L239<>\"\"),TRUE,IF(AND(G221<>\"\",E239<>\"\",L239=\"\",X239=FALSE),CONST_ErrorOrMissing&C221,CONST_NA))","v":"n.a."},null,{"$f":"IF(G221=\"\",FALSE,E239=\"\")","v":false}]
[{"$nulls":3},6,"",{"$nulls":5},"",{"$nulls":6},{"$f":"CONST_PrecursorToGoodInput&G221&\"_\"&E240","v":"PrecToGood__"},6,{"$f":"IF(G221=\"\",\"\",L240)","v":""},null,{"$f":"IF(AND(G221<>\"\",E240<>\"\",L240<>\"\"),TRUE,IF(AND(G221<>\"\",E240<>\"\",L240=\"\",X240=FALSE),CONST_ErrorOrMissing&C221,CONST_NA))","v":"n.a."},null,{"$f":"IF(G221=\"\",FALSE,E240=\"\")","v":false}]
[{"$nulls":3},7,"",{"$nulls":5},"",{"$nulls":6},{"$f":"CONST_PrecursorToGoodInput&G221&\"_\"&E241","v":"PrecToGood__"},7,{"$f":"IF(G221=\"\",\"\",L241)","v":""},null,{"$f":"IF(AND(G221<>\"\",E241<>\"\",L241<>\"\"),TRUE,IF(AND(G221<>\"\",E241<>\"\",L241=\"\",X241=FALSE),CONST_ErrorOrMissing&C221,CONST_NA))","v":"n.a."},null,{"$f":"IF(G221=\"\",FALSE,E241=\"\")","v":false}]
[{"$nulls":3},8,"",{"$nulls":5},"",{"$nulls":6},{"$f":"CONST_PrecursorToGoodInput&G221&\"_\"&E242","v":"PrecToGood__"},8,{"$f":"IF(G221=\"\",\"\",L242)","v":""},null,{"$f":"IF(AND(G221<>\"\",E242<>\"\",L242<>\"\"),TRUE,IF(AND(G221<>\"\",E242<>\"\",L242=\"\",X242=FALSE),CONST_ErrorOrMissing&C221,CONST_NA))","v":"n.a."},null,{"$f":"IF(G221=\"\",FALSE,E242=\"\")","v":false}]
[{"$nulls":3},9,"",{"$nulls":5},"",{"$nulls":6},{"$f":"CONST_PrecursorToGoodInput&G221&\"_\"&E243","v":"PrecToGood__"},9,{"$f":"IF(G221=\"\",\"\",L243)","v":""},null,{"$f":"IF(AND(G221<>\"\",E243<>\"\",L243<>\"\"),TRUE,IF(AND(G221<>\"\",E243<>\"\",L243=\"\",X243=FALSE),CONST_ErrorOrMissing&C221,CONST_NA))","v":"n.a."},null,{"$f":"IF(G221=\"\",FALSE,E243=\"\")","v":false}]
[{"$nulls":3},10,"",{"$nulls":5},"",{"$nulls":6},{"$f":"CONST_PrecursorToGoodInput&G221&\"_\"&E244","v":"PrecToGood__"},10,{"$f":"IF(G221=\"\",\"\",L244)","v":""},null,{"$f":"IF(AND(G221<>\"\",E244<>\"\",L244<>\"\"),TRUE,IF(AND(G221<>\"\",E244<>\"\",L244=\"\",X244=FALSE),CONST_ErrorOrMissing&C221,CONST_NA))","v":"n.a."},null,{"$f":"IF(G221=\"\",FALSE,E244=\"\")","v":false}]
[{"$nulls":3},"(c)",{"$f":"Translations!$B$252","v":"Consumed for non-CBAM goods within the installation:"},{"$nulls":5},{"$f":"K232","v":""}]
[{"$nulls":3},"(d)",{"$f":"Translations!$B$253","v":"Control:"},{"$nulls":5},{"$f":"K245","v":""},{"$f":"IF(G221=\"\",\"\",SUM(L232)-SUM(L235:L245))","v":""}]
[]
[]
[{"$nulls":3},{"$f":"Translations!$B$279","v":"Specific embedded emissions:"},{"$nulls":5},{"$f":"IF(G221=\"\",\"\",G221)","v":""}]
[]
[{"$nulls":3},"(e)",{"$f":"Translations!$B$280","v":"Emissions embedded in this purchased precursor"}]
[{"$nulls":4},{"$f":"Translations!$B$281","v":"Please enter here the values and sources for the specific embedded direct and indirect emissions, as obtained from the supplier."}]
[{"$nulls":4},{"$f":"Translations!$B$282","v":"For the SEE (direct), the 'Type of value' relates to whether the direct emissions are measured, or whether a default value provided by the European Commission was applied."}]
[{"$nulls":4},{"$f":"Translations!$B$283","v":"In order to obtain these data and information, you may want to ask your supplier to fill in an empty copy of this communication template."}]
[{"$nulls":4},{"$f":"Translations!$B$284","v":"Parameter:"},{"$nulls":5},{"$f":"Translations!$B$221","v":"Unit"},{"$f":"Translations!$B$260","v":"Value"},{"$f":"Translations!$B$285","v":"Source"}]
[{"$nulls":3},"i.",{"$f":"Translations!$B$286","v":"Specific embedded direct emissions (SEE (direct) )"},{"$nulls":5},{"$f":"IF(L221=\"\",\"\",CONST_tCO2eq&\"/\"&K232)","v":""},{"$nulls":6},{"$f":"CONST_PurchPrecDefaultUsed&G221","v":"PurchPrecDef_"},{"$f":"CONST_CNTR_EmbedEmDir&G221","v":"EmbedEmDir_"},{"$f":"IF(G221=\"\",\"\",SUM(T232)*SUM(L256))","v":""},{"$f":"IF(G221=\"\",\"\",IF(M256=\"\",CONST_ERR_Incomplete,MATCH(M256,CONST_MeasuredOrDefault,0)=2))","v":""},{"$f":"IF(AND(G221<>\"\",COUNTA(L256:M256)=2),TRUE,IF(AND(G221<>\"\",COUNTA(L256:M256)<2),CONST_ErrorOrMissing&C221,CONST_NA))","v":"n.a."}]
[{"$nulls":3},"ii.",{"$f":"Translations!$B$287","v":"Specific embedded indirect emissions (SEE (indirect) )"},{"$nulls":5},{"$f":"K256","v":""},{"$nulls":6},{"$f":"CONST_CNTR_ElecEFMethod&G221","v":"ElecEFMeth_"},{"$f":"CONST_CNTR_EmbedEmInDir&G221","v":"EmbedEmInDir_"},{"$f":"IF(G221=\"\",\"\",SUM(T232)*SUM(L257))","v":""},{"$f":"IF(G221=\"\",\"\",M257)","v":""},{"$f":"IF(AND(G221<>\"\",COUNTA(L257:M257)=2),TRUE,IF(AND(G221<>\"\",COUNTA(L257:M257)<2),CONST_ErrorOrMissing&C221,CONST_NA))","v":"n.a."}]
[]
[{"$nulls":3},"iii.",{"$f":"Translations!$B$1858","v":"Justification for use of default values (if relevant):"},{"$nulls":16},{"$f":"IF(AND(G221<>\"\",X259=FALSE,K259<>\"\"),TRUE,IF(AND(G221<>\"\",M256<>\"\",X259=FALSE,K259=\"\"),CONST_ErrorOrMissing&C221,CONST_NA))","v":"n.a."},null,{"$f":"IF(M256=\"\",FALSE,M256<>INDEX(CONST_MeasuredOrDefault,2))","v":false}]
[]
[]
[]
[null,null,{"$f":"C221+1","v":7},{"$f":"CONST_PurchPrecursor&\" \"&C263&\":\"","v":"Purchased precursor 7:"},null,null,{"$f":"IF(INDEX(CNTR_List_ExistPurchPrecNames,MATCH(R263,CNTR_ListPurchPrecID,0))=CONST_NA,\"\",INDEX(CNTR_List_ExistPurchPrecNames,MATCH(R263,CNTR_ListPurchPrecID,0)))","v":""},{"$nulls":4},{"$f":"IF(INDEX(CNTR_List_ExistPurchPrec,MATCH(R263,CNTR_ListPurchPrecID,0))=CONST_NA,\"\",INDEX(CNTR_List_ExistPurchPrec,MATCH(R263,CNTR_ListPurchPrecID,0)))","v":""},{"$nulls":5},{"$f":"INDEX(CNTR_ListPurchPrecID,C263)","v":"PP7"},{"$nulls":4},"Not relevant:",{"$f":"AND(CNTR_HasEntriesA,G263=\"\")","v":false}]
[]
[{"$nulls":3},"(a) ",{"$f":"Translations!$B$276","v":"Total purchased levels:"},null,null,{"$f":"Translations!$B$244","v":"Production route"},null,null,{"$f":"Translations!$B$221","v":"Unit"},{"$f":"Translations!$B$245","v":"Amounts"}]
[{"$nulls":3},1,{"$f":"IF(G263=\"\",\"\",G263)&IF(L263=\"\",\"\",\" | \"&L263)","v":""},null,null,{"$f":"IF(L263=\"\",\"\",INDEX(CONST_MATRIX_ProductionRoute,MATCH(L263,CONST_LIST_Goods,0),D266))","v":""},null,null,{"$f":"IF(L263=\"\",\"\",INDEX(CONST_LIST_GoodsUnit,MATCH(L263,CONST_LIST_Goods,0)))","v":""},{"$nulls":7},1]
[{"$nulls":3},2,{"$f":"IF(H267=CONST_NA,\"\",E266)","v":""},null,null,{"$f":"IF(L263=\"\",\"\",INDEX(CONST_MATRIX_ProductionRoute,MATCH(L263,CONST_LIST_Goods,0),D267))","v":""},null,null,{"$f":"IF(H267=CONST_NA,\"\",K266)","v":""},{"$nulls":7},2]
[{"$nulls":3},3,"",null,null,{"$f":"IF(L263=\"\",\"\",INDEX(CONST_MATRIX_ProductionRoute,MATCH(L263,CONST_LIST_Goods,0),D268))","v":""},null,null,"",{"$nulls":7},3]
[{"$nulls":3},4,"",null,null,{"$f":"IF(L263=\"\",\"\",INDEX(CONST_MATRIX_ProductionRoute,MATCH(L263,CONST_LIST_Goods,0),D269))","v":""},null,null,"",{"$nulls":7},4]
[{"$nulls":3},5,"",null,null,{"$f":"IF(L263=\"\",\"\",INDEX(CONST_MATRIX_ProductionRoute,MATCH(L263,CONST_LIST_Goods,0),D270))","v":""},null,null,"",{"$nulls":7},5]
[{"$nulls":3},6,"",null,null,{"$f":"IF(L263=\"\",\"\",INDEX(CONST_MATRIX_ProductionRoute,MATCH(L263,CONST_LIST_Goods,0),D271))","v":""},null,null,"",{"$nulls":7},6]
[{"$nulls":3},7,"",null,null,{"$f":"IF(L263=\"\",\"\",INDEX(CONST_MATRIX_ProductionRoute,MATCH(L263,CONST_LIST_Goods,0),D272))","v":""},null,null,"",{"$nulls":7},7]
[{"$nulls":3},8,"",null,null,{"$f":"IF(L263=\"\",\"\",INDEX(CONST_MATRIX_ProductionRoute,MATCH(L263,CONST_LIST_Goods,0),D273))","v":""},null,null,"",{"$nulls":7},8]
[{"$nulls":4},{"$f":"Translations!$B$277","v":"Total consumption within installation:"},{"$nulls":5},{"$f":"K266","v":""},{"$f":"IF(G263=\"\",\"\",SUM(L266:L273))","v":""},{"$nulls":5},{"$f":"CONST_CNTR_TotProd&G263","v":"TotProd_"},null,{"$f":"IF(G263=\"\",\"\",IF(SUM(L274)=0,100,L274))","v":""}]
[]
[{"$nulls":3},"(b)",{"$f":"Translations!$B$278","v":"Consumed in \"production processes\" within the installation:"},{"$nulls":5},{"$f":"Translations!$B$221","v":"Unit"},{"$f":"Translations!$B$245","v":"Amounts"},{"$nulls":6},"Numbering"]
[{"$nulls":3},1,{"$f":"IF(INDEX(CNTR_List_ExistProdProcNames,S277)=CONST_NA,\"\",INDEX(CNTR_List_ExistProdProcNames,S277))","v":""},{"$nulls":5},{"$f":"IF(E277=\"\",\"\",K274)","v":""},{"$nulls":6},{"$f":"CONST_PrecursorToGoodInput&G263&\"_\"&E277","v":"PrecToGood__"},{"$f":"D277","v":1},{"$f":"IF(G263=\"\",\"\",L277)","v":""},null,{"$f":"IF(AND(G263<>\"\",E277<>\"\",L277<>\"\"),TRUE,IF(AND(G263<>\"\",E277<>\"\",L277=\"\",X277=FALSE),CONST_ErrorOrMissing&C263,CONST_NA))","v":"n.a."},"cond.form.",{"$f":"IF(G263=\"\",FALSE,E277=\"\")","v":false}]
[{"$nulls":3},2,"",{"$nulls":5},{"$f":"IF(E278=\"\",\"\",K277)","v":""},{"$nulls":6},{"$f":"CONST_PrecursorToGoodInput&G263&\"_\"&E278","v":"PrecToGood__"},{"$f":"D278","v":2},{"$f":"IF(G263=\"\",\"\",L278)","v":""},null,{"$f":"IF(AND(G263<>\"\",E278<>\"\",L278<>\"\"),TRUE,IF(AND(G263<>\"\",E278<>\"\",L278=\"\",X278=FALSE),CONST_ErrorOrMissing&C263,CONST_NA))","v":"n.a."},null,{"$f":"IF(G263=\"\",FALSE,E278=\"\")","v":false}]
[{"$nulls":3},3,"",{"$nulls":5},{"$f":"IF(E279=\"\",\"\",K278)","v":""},{"$nulls":6},{"$f":"CONST_PrecursorToGoodInput&G263&\"_\"&E279","v":"PrecToGood__"},3,{"$f":"IF(G263=\"\",\"\",L279)","v":""},null,{"$f":"IF(AND(G263<>\"\",E279<>\"\",L279<>\"\"),TRUE,IF(AND(G263<>\"\",E279<>\"\",L279=\"\",X279=FALSE),CONST_ErrorOrMissing&C263,CONST_NA))","v":"n.a."},null,{"$f":"IF(G263=\"\",FALSE,E279=\"\")","v":false}]
[{"$nulls":3},4,"",{"$nulls":5},"",{"$nulls":6},{"$f":"CONST_PrecursorToGoodInput&G263&\"_\"&E280","v":"PrecToGood__"},4,{"$f":"IF(G263=\"\",\"\",L280)","v":""},null,{"$f":"IF(AND(G263<>\"\",E280<>\"\",L280<>\"\"),TRUE,IF(AND(G263<>\"\",E280<>\"\",L280=\"\",X280=FALSE),CONST_ErrorOrMissing&C263,CONST_NA))","v":"n.a."},null,{"$f":"IF(G263=\"\",FALSE,E280=\"\")","v":false}]
[{"$nulls":3},5,"",{"$nulls":5},"",{"$nulls":6},{"$f":"CONST_PrecursorToGoodInput&G263&\"_\"&E281","v":"PrecToGood__"},5,{"$f":"IF(G263=\"\",\"\",L281)","v":""},null,{"$f":"IF(AND(G263<>\"\",E281<>\"\",L281<>\"\"),TRUE,IF(AND(G263<>\"\",E281<>\"\",L281=\"\",X281=FALSE),CONST_ErrorOrMissing&C263,CONST_NA))","v":"n.a."},null,{"$f":"IF(G263=\"\",FALSE,E281=\"\")","v":false}]
[{"$nulls":3},6,"",{"$nulls":5},"",{"$nulls":6},{"$f":"CONST_PrecursorToGoodInput&G263&\"_\"&E282","v":"PrecToGood__"},6,{"$f":"IF(G263=\"\",\"\",L282)","v":""},null,{"$f":"IF(AND(G263<>\"\",E282<>\"\",L282<>\"\"),TRUE,IF(AND(G263<>\"\",E282<>\"\",L282=\"\",X282=FALSE),CONST_ErrorOrMissing&C263,CONST_NA))","v":"n.a."},null,{"$f":"IF(G263=\"\",FALSE,E282=\"\")","v":false}]
[{"$nulls":3},7,"",{"$nulls":5},"",{"$nulls":6},{"$f":"CONST_PrecursorToGoodInput&G263&\"_\"&E283","v":"PrecToGood__"},7,{"$f":"IF(G263=\"\",\"\",L283)","v":""},null,{"$f":"IF(AND(G263<>\"\",E283<>\"\",L283<>\"\"),TRUE,IF(AND(G263<>\"\",E283<>\"\",L283=\"\",X283=FALSE),CONST_ErrorOrMissing&C263,CONST_NA))","v":"n.a."},null,{"$f":"IF(G263=\"\",FALSE,E283=\"\")","v":false}]
[{"$nulls":3},8,"",{"$nulls":5},"",{"$nulls":6},{"$f":"CONST_PrecursorToGoodInput&G263&\"_\"&E284","v":"PrecToGood__"},8,{"$f":"IF(G263=\"\",\"\",L284)","v":""},null,{"$f":"IF(AND(G263<>\"\",E284<>\"\",L284<>\"\"),TRUE,IF(AND(G263<>\"\",E284<>\"\",L284=\"\",X284=FALSE),CONST_ErrorOrMissing&C263,CONST_NA))","v":"n.a."},null,{"$f":"IF(G263=\"\",FALSE,E284=\"\")","v":false}]
[{"$nulls":3},9,"",{"$nulls":5},"",{"$nulls":6},{"$f":"CONST_PrecursorToGoodInput&G263&\"_\"&E285","v":"PrecToGood__"},9,{"$f":"IF(G263=\"\",\"\",L285)","v":""},null,{"$f":"IF(AND(G263<>\"\",E285<>\"\",L285<>\"\"),TRUE,IF(AND(G263<>\"\",E285<>\"\",L285=\"\",X285=FALSE),CONST_ErrorOrMissing&C263,CONST_NA))","v":"n.a."},null,{"$f":"IF(G263=\"\",FALSE,E285=\"\")","v":false}]
[{"$nulls":3},10,"",{"$nulls":5},"",{"$nulls":6},{"$f":"CONST_PrecursorToGoodInput&G263&\"_\"&E286","v":"PrecToGood__"},10,{"$f":"IF(G263=\"\",\"\",L286)","v":""},null,{"$f":"IF(AND(G263<>\"\",E286<>\"\",L286<>\"\"),TRUE,IF(AND(G263<>\"\",E286<>\"\",L286=\"\",X286=FALSE),CONST_ErrorOrMissing&C263,CONST_NA))","v":"n.a."},null,{"$f":"IF(G263=\"\",FALSE,E286=\"\")","v":false}]
[{"$nulls":3},"(c)",{"$f":"Translations!$B$252","v":"Consumed for non-CBAM goods within the installation:"},{"$nulls":5},{"$f":"K274","v":""}]
[{"$nulls":3},"(d)",{"$f":"Translations!$B$253","v":"Control:"},{"$nulls":5},{"$f":"K287","v":""},{"$f":"IF(G263=\"\",\"\",SUM(L274)-SUM(L277:L287))","v":""}]
[]
[]
[{"$nulls":3},{"$f":"Translations!$B$279","v":"Specific embedded emissions:"},{"$nulls":5},{"$f":"IF(G263=\"\",\"\",G263)","v":""}]
[]
[{"$nulls":3},"(e)",{"$f":"Translations!$B$280","v":"Emissions embedded in this purchased precursor"}]
[{"$nulls":4},{"$f":"Translations!$B$281","v":"Please enter here the values and sources for the specific embedded direct and indirect emissions, as obtained from the supplier."}]
[{"$nulls":4},{"$f":"Translations!$B$282","v":"For the SEE (direct), the 'Type of value' relates to whether the direct emissions are measured, or whether a default value provided by the European Commission was applied."}]
[{"$nulls":4},{"$f":"Translations!$B$283","v":"In order to obtain these data and information, you may want to ask your supplier to fill in an empty copy of this communication template."}]
[{"$nulls":4},{"$f":"Translations!$B$284","v":"Parameter:"},{"$nulls":5},{"$f":"Translations!$B$221","v":"Unit"},{"$f":"Translations!$B$260","v":"Value"},{"$f":"Translations!$B$285","v":"Source"}]
[{"$nulls":3},"i.",{"$f":"Translations!$B$286","v":"Specific embedded direct emissions (SEE (direct) )"},{"$nulls":5},{"$f":"IF(L263=\"\",\"\",CONST_tCO2eq&\"/\"&K274)","v":""},{"$nulls":6},{"$f":"CONST_PurchPrecDefaultUsed&G263","v":"PurchPrecDef_"},{"$f":"CONST_CNTR_EmbedEmDir&G263","v":"EmbedEmDir_"},{"$f":"IF(G263=\"\",\"\",SUM(T274)*SUM(L298))","v":""},{"$f":"IF(G263=\"\",\"\",IF(M298=\"\",CONST_ERR_Incomplete,MATCH(M298,CONST_MeasuredOrDefault,0)=2))","v":""},{"$f":"IF(AND(G263<>\"\",COUNTA(L298:M298)=2),TRUE,IF(AND(G263<>\"\",COUNTA(L298:M298)<2),CONST_ErrorOrMissing&C263,CONST_NA))","v":"n.a."}]
[{"$nulls":3},"ii.",{"$f":"Translations!$B$287","v":"Specific embedded indirect emissions (SEE (indirect) )"},{"$nulls":5},{"$f":"K298","v":""},{"$nulls":6},{"$f":"CONST_CNTR_ElecEFMethod&G263","v":"ElecEFMeth_"},{"$f":"CONST_CNTR_EmbedEmInDir&G263","v":"EmbedEmInDir_"},{"$f":"IF(G263=\"\",\"\",SUM(T274)*SUM(L299))","v":""},{"$f":"IF(G263=\"\",\"\",M299)","v":""},{"$f":"IF(AND(G263<>\"\",COUNTA(L299:M299)=2),TRUE,IF(AND(G263<>\"\",COUNTA(L299:M299)<2),CONST_ErrorOrMissing&C263,CONST_NA))","v":"n.a."}]
[]
[{"$nulls":3},"iii.",{"$f":"Translations!$B$1858","v":"Justification for use of default values (if relevant):"},{"$nulls":16},{"$f":"IF(AND(G263<>\"\",X301=FALSE,K301<>\"\"),TRUE,IF(AND(G263<>\"\",M298<>\"\",X301=FALSE,K301=\"\"),CONST_ErrorOrMissing&C263,CONST_NA))","v":"n.a."},null,{"$f":"IF(M298=\"\",FALSE,M298<>INDEX(CONST_MeasuredOrDefault,2))","v":false}]
[]
[]
[]
[null,null,{"$f":"C263+1","v":8},{"$f":"CONST_PurchPrecursor&\" \"&C305&\":\"","v":"Purchased precursor 8:"},null,null,{"$f":"IF(INDEX(CNTR_List_ExistPurchPrecNames,MATCH(R305,CNTR_ListPurchPrecID,0))=CONST_NA,\"\",INDEX(CNTR_List_ExistPurchPrecNames,MATCH(R305,CNTR_ListPurchPrecID,0)))","v":""},{"$nulls":4},{"$f":"IF(INDEX(CNTR_List_ExistPurchPrec,MATCH(R305,CNTR_ListPurchPrecID,0))=CONST_NA,\"\",INDEX(CNTR_List_ExistPurchPrec,MATCH(R305,CNTR_ListPurchPrecID,0)))","v":""},{"$nulls":5},{"$f":"INDEX(CNTR_ListPurchPrecID,C305)","v":"PP8"},{"$nulls":4},"Not relevant:",{"$f":"AND(CNTR_HasEntriesA,G305=\"\")","v":false}]
[]
[{"$nulls":3},"(a) ",{"$f":"Translations!$B$276","v":"Total purchased levels:"},null,null,{"$f":"Translations!$B$244","v":"Production route"},null,null,{"$f":"Translations!$B$221","v":"Unit"},{"$f":"Translations!$B$245","v":"Amounts"}]
[{"$nulls":3},1,{"$f":"IF(G305=\"\",\"\",G305)&IF(L305=\"\",\"\",\" | \"&L305)","v":""},null,null,{"$f":"IF(L305=\"\",\"\",INDEX(CONST_MATRIX_ProductionRoute,MATCH(L305,CONST_LIST_Goods,0),D308))","v":""},null,null,{"$f":"IF(L305=\"\",\"\",INDEX(CONST_LIST_GoodsUnit,MATCH(L305,CONST_LIST_Goods,0)))","v":""},{"$nulls":7},1]
[{"$nulls":3},2,{"$f":"IF(H309=CONST_NA,\"\",E308)","v":""},null,null,{"$f":"IF(L305=\"\",\"\",INDEX(CONST_MATRIX_ProductionRoute,MATCH(L305,CONST_LIST_Goods,0),D309))","v":""},null,null,{"$f":"IF(H309=CONST_NA,\"\",K308)","v":""},{"$nulls":7},2]
[{"$nulls":3},3,"",null,null,{"$f":"IF(L305=\"\",\"\",INDEX(CONST_MATRIX_ProductionRoute,MATCH(L305,CONST_LIST_Goods,0),D310))","v":""},null,null,"",{"$nulls":7},3]
[{"$nulls":3},4,"",null,null,{"$f":"IF(L305=\"\",\"\",INDEX(CONST_MATRIX_ProductionRoute,MATCH(L305,CONST_LIST_Goods,0),D311))","v":""},null,null,"",{"$nulls":7},4]
[{"$nulls":3},5,"",null,null,{"$f":"IF(L305=\"\",\"\",INDEX(CONST_MATRIX_ProductionRoute,MATCH(L305,CONST_LIST_Goods,0),D312))","v":""},null,null,"",{"$nulls":7},5]
[{"$nulls":3},6,"",null,null,{"$f":"IF(L305=\"\",\"\",INDEX(CONST_MATRIX_ProductionRoute,MATCH(L305,CONST_LIST_Goods,0),D313))","v":""},null,null,"",{"$nulls":7},6]
[{"$nulls":3},7,"",null,null,{"$f":"IF(L305=\"\",\"\",INDEX(CONST_MATRIX_ProductionRoute,MATCH(L305,CONST_LIST_Goods,0),D314))","v":""},null,null,"",{"$nulls":7},7]
[{"$nulls":3},8,"",null,null,{"$f":"IF(L305=\"\",\"\",INDEX(CONST_MATRIX_ProductionRoute,MATCH(L305,CONST_LIST_Goods,0),D315))","v":""},null,null,"",{"$nulls":7},8]
[{"$nulls":4},{"$f":"Translations!$B$277","v":"Total consumption within installation:"},{"$nulls":5},{"$f":"K308","v":""},{"$f":"IF(G305=\"\",\"\",SUM(L308:L315))","v":""},{"$nulls":5},{"$f":"CONST_CNTR_TotProd&G305","v":"TotProd_"},null,{"$f":"IF(G305=\"\",\"\",IF(SUM(L316)=0,100,L316))","v":""}]
[]
[{"$nulls":3},"(b)",{"$f":"Translations!$B$278","v":"Consumed in \"production processes\" within the installation:"},{"$nulls":5},{"$f":"Translations!$B$221","v":"Unit"},{"$f":"Translations!$B$245","v":"Amounts"},{"$nulls":6},"Numbering"]
[{"$nulls":3},1,{"$f":"IF(INDEX(CNTR_List_ExistProdProcNames,S319)=CONST_NA,\"\",INDEX(CNTR_List_ExistProdProcNames,S319))","v":""},{"$nulls":5},{"$f":"IF(E319=\"\",\"\",K316)","v":""},{"$nulls":6},{"$f":"CONST_PrecursorToGoodInput&G305&\"_\"&E319","v":"PrecToGood__"},{"$f":"D319","v":1},{"$f":"IF(G305=\"\",\"\",L319)","v":""},null,{"$f":"IF(AND(G305<>\"\",E319<>\"\",L319<>\"\"),TRUE,IF(AND(G305<>\"\",E319<>\"\",L319=\"\",X319=FALSE),CONST_ErrorOrMissing&C305,CONST_NA))","v":"n.a."},"cond.form.",{"$f":"IF(G305=\"\",FALSE,E319=\"\")","v":false}]
[{"$nulls":3},2,"",{"$nulls":5},{"$f":"IF(E320=\"\",\"\",K319)","v":""},{"$nulls":6},{"$f":"CONST_PrecursorToGoodInput&G305&\"_\"&E320","v":"PrecToGood__"},{"$f":"D320","v":2},{"$f":"IF(G305=\"\",\"\",L320)","v":""},null,{"$f":"IF(AND(G305<>\"\",E320<>\"\",L320<>\"\"),TRUE,IF(AND(G305<>\"\",E320<>\"\",L320=\"\",X320=FALSE),CONST_ErrorOrMissing&C305,CONST_NA))","v":"n.a."},null,{"$f":"IF(G305=\"\",FALSE,E320=\"\")","v":false}]
[{"$nulls":3},3,"",{"$nulls":5},{"$f":"IF(E321=\"\",\"\",K320)","v":""},{"$nulls":6},{"$f":"CONST_PrecursorToGoodInput&G305&\"_\"&E321","v":"PrecToGood__"},3,{"$f":"IF(G305=\"\",\"\",L321)","v":""},null,{"$f":"IF(AND(G305<>\"\",E321<>\"\",L321<>\"\"),TRUE,IF(AND(G305<>\"\",E321<>\"\",L321=\"\",X321=FALSE),CONST_ErrorOrMissing&C305,CONST_NA))","v":"n.a."},null,{"$f":"IF(G305=\"\",FALSE,E321=\"\")","v":false}]
[{"$nulls":3},4,"",{"$nulls":5},"",{"$nulls":6},{"$f":"CONST_PrecursorToGoodInput&G305&\"_\"&E322","v":"PrecToGood__"},4,{"$f":"IF(G305=\"\",\"\",L322)","v":""},null,{"$f":"IF(AND(G305<>\"\",E322<>\"\",L322<>\"\"),TRUE,IF(AND(G305<>\"\",E322<>\"\",L322=\"\",X322=FALSE),CONST_ErrorOrMissing&C305,CONST_NA))","v":"n.a."},null,{"$f":"IF(G305=\"\",FALSE,E322=\"\")","v":false}]
[{"$nulls":3},5,"",{"$nulls":5},"",{"$nulls":6},{"$f":"CONST_PrecursorToGoodInput&G305&\"_\"&E323","v":"PrecToGood__"},5,{"$f":"IF(G305=\"\",\"\",L323)","v":""},null,{"$f":"IF(AND(G305<>\"\",E323<>\"\",L323<>\"\"),TRUE,IF(AND(G305<>\"\",E323<>\"\",L323=\"\",X323=FALSE),CONST_ErrorOrMissing&C305,CONST_NA))","v":"n.a."},null,{"$f":"IF(G305=\"\",FALSE,E323=\"\")","v":false}]
[{"$nulls":3},6,"",{"$nulls":5},"",{"$nulls":6},{"$f":"CONST_PrecursorToGoodInput&G305&\"_\"&E324","v":"PrecToGood__"},6,{"$f":"IF(G305=\"\",\"\",L324)","v":""},null,{"$f":"IF(AND(G305<>\"\",E324<>\"\",L324<>\"\"),TRUE,IF(AND(G305<>\"\",E324<>\"\",L324=\"\",X324=FALSE),CONST_ErrorOrMissing&C305,CONST_NA))","v":"n.a."},null,{"$f":"IF(G305=\"\",FALSE,E324=\"\")","v":false}]
[{"$nulls":3},7,"",{"$nulls":5},"",{"$nulls":6},{"$f":"CONST_PrecursorToGoodInput&G305&\"_\"&E325","v":"PrecToGood__"},7,{"$f":"IF(G305=\"\",\"\",L325)","v":""},null,{"$f":"IF(AND(G305<>\"\",E325<>\"\",L325<>\"\"),TRUE,IF(AND(G305<>\"\",E325<>\"\",L325=\"\",X325=FALSE),CONST_ErrorOrMissing&C305,CONST_NA))","v":"n.a."},null,{"$f":"IF(G305=\"\",FALSE,E325=\"\")","v":false}]
[{"$nulls":3},8,"",{"$nulls":5},"",{"$nulls":6},{"$f":"CONST_PrecursorToGoodInput&G305&\"_\"&E326","v":"PrecToGood__"},8,{"$f":"IF(G305=\"\",\"\",L326)","v":""},null,{"$f":"IF(AND(G305<>\"\",E326<>\"\",L326<>\"\"),TRUE,IF(AND(G305<>\"\",E326<>\"\",L326=\"\",X326=FALSE),CONST_ErrorOrMissing&C305,CONST_NA))","v":"n.a."},null,{"$f":"IF(G305=\"\",FALSE,E326=\"\")","v":false}]
[{"$nulls":3},9,"",{"$nulls":5},"",{"$nulls":6},{"$f":"CONST_PrecursorToGoodInput&G305&\"_\"&E327","v":"PrecToGood__"},9,{"$f":"IF(G305=\"\",\"\",L327)","v":""},null,{"$f":"IF(AND(G305<>\"\",E327<>\"\",L327<>\"\"),TRUE,IF(AND(G305<>\"\",E327<>\"\",L327=\"\",X327=FALSE),CONST_ErrorOrMissing&C305,CONST_NA))","v":"n.a."},null,{"$f":"IF(G305=\"\",FALSE,E327=\"\")","v":false}]
[{"$nulls":3},10,"",{"$nulls":5},"",{"$nulls":6},{"$f":"CONST_PrecursorToGoodInput&G305&\"_\"&E328","v":"PrecToGood__"},10,{"$f":"IF(G305=\"\",\"\",L328)","v":""},null,{"$f":"IF(AND(G305<>\"\",E328<>\"\",L328<>\"\"),TRUE,IF(AND(G305<>\"\",E328<>\"\",L328=\"\",X328=FALSE),CONST_ErrorOrMissing&C305,CONST_NA))","v":"n.a."},null,{"$f":"IF(G305=\"\",FALSE,E328=\"\")","v":false}]
[{"$nulls":3},"(c)",{"$f":"Translations!$B$252","v":"Consumed for non-CBAM goods within the installation:"},{"$nulls":5},{"$f":"K316","v":""}]
[{"$nulls":3},"(d)",{"$f":"Translations!$B$253","v":"Control:"},{"$nulls":5},{"$f":"K329","v":""},{"$f":"IF(G305=\"\",\"\",SUM(L316)-SUM(L319:L329))","v":""}]
[]
[]
[{"$nulls":3},{"$f":"Translations!$B$279","v":"Specific embedded emissions:"},{"$nulls":5},{"$f":"IF(G305=\"\",\"\",G305)","v":""}]
[]
[{"$nulls":3},"(e)",{"$f":"Translations!$B$280","v":"Emissions embedded in this purchased precursor"}]
[{"$nulls":4},{"$f":"Translations!$B$281","v":"Please enter here the values and sources for the specific embedded direct and indirect emissions, as obtained from the supplier."}]
[{"$nulls":4},{"$f":"Translations!$B$282","v":"For the SEE (direct), the 'Type of value' relates to whether the direct emissions are measured, or whether a default value provided by the European Commission was applied."}]
[{"$nulls":4},{"$f":"Translations!$B$283","v":"In order to obtain these data and information, you may want to ask your supplier to fill in an empty copy of this communication template."}]
[{"$nulls":4},{"$f":"Translations!$B$284","v":"Parameter:"},{"$nulls":5},{"$f":"Translations!$B$221","v":"Unit"},{"$f":"Translations!$B$260","v":"Value"},{"$f":"Translations!$B$285","v":"Source"}]
[{"$nulls":3},"i.",{"$f":"Translations!$B$286","v":"Specific embedded direct emissions (SEE (direct) )"},{"$nulls":5},{"$f":"IF(L305=\"\",\"\",CONST_tCO2eq&\"/\"&K316)","v":""},{"$nulls":6},{"$f":"CONST_PurchPrecDefaultUsed&G305","v":"PurchPrecDef_"},{"$f":"CONST_CNTR_EmbedEmDir&G305","v":"EmbedEmDir_"},{"$f":"IF(G305=\"\",\"\",SUM(T316)*SUM(L340))","v":""},{"$f":"IF(G305=\"\",\"\",IF(M340=\"\",CONST_ERR_Incomplete,MATCH(M340,CONST_MeasuredOrDefault,0)=2))","v":""},{"$f":"IF(AND(G305<>\"\",COUNTA(L340:M340)=2),TRUE,IF(AND(G305<>\"\",COUNTA(L340:M340)<2),CONST_ErrorOrMissing&C305,CONST_NA))","v":"n.a."}]
[{"$nulls":3},"ii.",{"$f":"Translations!$B$287","v":"Specific embedded indirect emissions (SEE (indirect) )"},{"$nulls":5},{"$f":"K340","v":""},{"$nulls":6},{"$f":"CONST_CNTR_ElecEFMethod&G305","v":"ElecEFMeth_"},{"$f":"CONST_CNTR_EmbedEmInDir&G305","v":"EmbedEmInDir_"},{"$f":"IF(G305=\"\",\"\",SUM(T316)*SUM(L341))","v":""},{"$f":"IF(G305=\"\",\"\",M341)","v":""},{"$f":"IF(AND(G305<>\"\",COUNTA(L341:M341)=2),TRUE,IF(AND(G305<>\"\",COUNTA(L341:M341)<2),CONST_ErrorOrMissing&C305,CONST_NA))","v":"n.a."}]
[]
[{"$nulls":3},"iii.",{"$f":"Translations!$B$1858","v":"Justification for use of default values (if relevant):"},{"$nulls":16},{"$f":"IF(AND(G305<>\"\",X343=FALSE,K343<>\"\"),TRUE,IF(AND(G305<>\"\",M340<>\"\",X343=FALSE,K343=\"\"),CONST_ErrorOrMissing&C305,CONST_NA))","v":"n.a."},null,{"$f":"IF(M340=\"\",FALSE,M340<>INDEX(CONST_MeasuredOrDefault,2))","v":false}]
[]
[]
[]
[null,null,{"$f":"C305+1","v":9},{"$f":"CONST_PurchPrecursor&\" \"&C347&\":\"","v":"Purchased precursor 9:"},null,null,{"$f":"IF(INDEX(CNTR_List_ExistPurchPrecNames,MATCH(R347,CNTR_ListPurchPrecID,0))=CONST_NA,\"\",INDEX(CNTR_List_ExistPurchPrecNames,MATCH(R347,CNTR_ListPurchPrecID,0)))","v":""},{"$nulls":4},{"$f":"IF(INDEX(CNTR_List_ExistPurchPrec,MATCH(R347,CNTR_ListPurchPrecID,0))=CONST_NA,\"\",INDEX(CNTR_List_ExistPurchPrec,MATCH(R347,CNTR_ListPurchPrecID,0)))","v":""},{"$nulls":5},{"$f":"INDEX(CNTR_ListPurchPrecID,C347)","v":"PP9"},{"$nulls":4},"Not relevant:",{"$f":"AND(CNTR_HasEntriesA,G347=\"\")","v":false}]
[]
[{"$nulls":3},"(a) ",{"$f":"Translations!$B$276","v":"Total purchased levels:"},null,null,{"$f":"Translations!$B$244","v":"Production route"},null,null,{"$f":"Translations!$B$221","v":"Unit"},{"$f":"Translations!$B$245","v":"Amounts"}]
[{"$nulls":3},1,{"$f":"IF(G347=\"\",\"\",G347)&IF(L347=\"\",\"\",\" | \"&L347)","v":""},null,null,{"$f":"IF(L347=\"\",\"\",INDEX(CONST_MATRIX_ProductionRoute,MATCH(L347,CONST_LIST_Goods,0),D350))","v":""},null,null,{"$f":"IF(L347=\"\",\"\",INDEX(CONST_LIST_GoodsUnit,MATCH(L347,CONST_LIST_Goods,0)))","v":""},{"$nulls":7},1]
[{"$nulls":3},2,{"$f":"IF(H351=CONST_NA,\"\",E350)","v":""},null,null,{"$f":"IF(L347=\"\",\"\",INDEX(CONST_MATRIX_ProductionRoute,MATCH(L347,CONST_LIST_Goods,0),D351))","v":""},null,null,{"$f":"IF(H351=CONST_NA,\"\",K350)","v":""},{"$nulls":7},2]
[{"$nulls":3},3,"",null,null,{"$f":"IF(L347=\"\",\"\",INDEX(CONST_MATRIX_ProductionRoute,MATCH(L347,CONST_LIST_Goods,0),D352))","v":""},null,null,"",{"$nulls":7},3]
[{"$nulls":3},4,"",null,null,{"$f":"IF(L347=\"\",\"\",INDEX(CONST_MATRIX_ProductionRoute,MATCH(L347,CONST_LIST_Goods,0),D353))","v":""},null,null,"",{"$nulls":7},4]
[{"$nulls":3},5,"",null,null,{"$f":"IF(L347=\"\",\"\",INDEX(CONST_MATRIX_ProductionRoute,MATCH(L347,CONST_LIST_Goods,0),D354))","v":""},null,null,"",{"$nulls":7},5]
[{"$nulls":3},6,"",null,null,{"$f":"IF(L347=\"\",\"\",INDEX(CONST_MATRIX_ProductionRoute,MATCH(L347,CONST_LIST_Goods,0),D355))","v":""},null,null,"",{"$nulls":7},6]
[{"$nulls":3},7,"",null,null,{"$f":"IF(L347=\"\",\"\",INDEX(CONST_MATRIX_ProductionRoute,MATCH(L347,CONST_LIST_Goods,0),D356))","v":""},null,null,"",{"$nulls":7},7]
[{"$nulls":3},8,"",null,null,{"$f":"IF(L347=\"\",\"\",INDEX(CONST_MATRIX_ProductionRoute,MATCH(L347,CONST_LIST_Goods,0),D357))","v":""},null,null,"",{"$nulls":7},8]
[{"$nulls":4},{"$f":"Translations!$B$277","v":"Total consumption within installation:"},{"$nulls":5},{"$f":"K350","v":""},{"$f":"IF(G347=\"\",\"\",SUM(L350:L357))","v":""},{"$nulls":5},{"$f":"CONST_CNTR_TotProd&G347","v":"TotProd_"},null,{"$f":"IF(G347=\"\",\"\",IF(SUM(L358)=0,100,L358))","v":""}]
[]
[{"$nulls":3},"(b)",{"$f":"Translations!$B$278","v":"Consumed in \"production processes\" within the installation:"},{"$nulls":5},{"$f":"Translations!$B$221","v":"Unit"},{"$f":"Translations!$B$245","v":"Amounts"},{"$nulls":6},"Numbering"]
[{"$nulls":3},1,{"$f":"IF(INDEX(CNTR_List_ExistProdProcNames,S361)=CONST_NA,\"\",INDEX(CNTR_List_ExistProdProcNames,S361))","v":""},{"$nulls":5},{"$f":"IF(E361=\"\",\"\",K358)","v":""},{"$nulls":6},{"$f":"CONST_PrecursorToGoodInput&G347&\"_\"&E361","v":"PrecToGood__"},{"$f":"D361","v":1},{"$f":"IF(G347=\"\",\"\",L361)","v":""},null,{"$f":"IF(AND(G347<>\"\",E361<>\"\",L361<>\"\"),TRUE,IF(AND(G347<>\"\",E361<>\"\",L361=\"\",X361=FALSE),CONST_ErrorOrMissing&C347,CONST_NA))","v":"n.a."},"cond.form.",{"$f":"IF(G347=\"\",FALSE,E361=\"\")","v":false}]
[{"$nulls":3},2,"",{"$nulls":5},{"$f":"IF(E362=\"\",\"\",K361)","v":""},{"$nulls":6},{"$f":"CONST_PrecursorToGoodInput&G347&\"_\"&E362","v":"PrecToGood__"},{"$f":"D362","v":2},{"$f":"IF(G347=\"\",\"\",L362)","v":""},null,{"$f":"IF(AND(G347<>\"\",E362<>\"\",L362<>\"\"),TRUE,IF(AND(G347<>\"\",E362<>\"\",L362=\"\",X362=FALSE),CONST_ErrorOrMissing&C347,CONST_NA))","v":"n.a."},null,{"$f":"IF(G347=\"\",FALSE,E362=\"\")","v":false}]
[{"$nulls":3},3,"",{"$nulls":5},{"$f":"IF(E363=\"\",\"\",K362)","v":""},{"$nulls":6},{"$f":"CONST_PrecursorToGoodInput&G347&\"_\"&E363","v":"PrecToGood__"},3,{"$f":"IF(G347=\"\",\"\",L363)","v":""},null,{"$f":"IF(AND(G347<>\"\",E363<>\"\",L363<>\"\"),TRUE,IF(AND(G347<>\"\",E363<>\"\",L363=\"\",X363=FALSE),CONST_ErrorOrMissing&C347,CONST_NA))","v":"n.a."},null,{"$f":"IF(G347=\"\",FALSE,E363=\"\")","v":false}]
[{"$nulls":3},4,"",{"$nulls":5},"",{"$nulls":6},{"$f":"CONST_PrecursorToGoodInput&G347&\"_\"&E364","v":"PrecToGood__"},4,{"$f":"IF(G347=\"\",\"\",L364)","v":""},null,{"$f":"IF(AND(G347<>\"\",E364<>\"\",L364<>\"\"),TRUE,IF(AND(G347<>\"\",E364<>\"\",L364=\"\",X364=FALSE),CONST_ErrorOrMissing&C347,CONST_NA))","v":"n.a."},null,{"$f":"IF(G347=\"\",FALSE,E364=\"\")","v":false}]
[{"$nulls":3},5,"",{"$nulls":5},"",{"$nulls":6},{"$f":"CONST_PrecursorToGoodInput&G347&\"_\"&E365","v":"PrecToGood__"},5,{"$f":"IF(G347=\"\",\"\",L365)","v":""},null,{"$f":"IF(AND(G347<>\"\",E365<>\"\",L365<>\"\"),TRUE,IF(AND(G347<>\"\",E365<>\"\",L365=\"\",X365=FALSE),CONST_ErrorOrMissing&C347,CONST_NA))","v":"n.a."},null,{"$f":"IF(G347=\"\",FALSE,E365=\"\")","v":false}]
[{"$nulls":3},6,"",{"$nulls":5},"",{"$nulls":6},{"$f":"CONST_PrecursorToGoodInput&G347&\"_\"&E366","v":"PrecToGood__"},6,{"$f":"IF(G347=\"\",\"\",L366)","v":""},null,{"$f":"IF(AND(G347<>\"\",E366<>\"\",L366<>\"\"),TRUE,IF(AND(G347<>\"\",E366<>\"\",L366=\"\",X366=FALSE),CONST_ErrorOrMissing&C347,CONST_NA))","v":"n.a."},null,{"$f":"IF(G347=\"\",FALSE,E366=\"\")","v":false}]
[{"$nulls":3},7,"",{"$nulls":5},"",{"$nulls":6},{"$f":"CONST_PrecursorToGoodInput&G347&\"_\"&E367","v":"PrecToGood__"},7,{"$f":"IF(G347=\"\",\"\",L367)","v":""},null,{"$f":"IF(AND(G347<>\"\",E367<>\"\",L367<>\"\"),TRUE,IF(AND(G347<>\"\",E367<>\"\",L367=\"\",X367=FALSE),CONST_ErrorOrMissing&C347,CONST_NA))","v":"n.a."},null,{"$f":"IF(G347=\"\",FALSE,E367=\"\")","v":false}]
[{"$nulls":3},8,"",{"$nulls":5},"",{"$nulls":6},{"$f":"CONST_PrecursorToGoodInput&G347&\"_\"&E368","v":"PrecToGood__"},8,{"$f":"IF(G347=\"\",\"\",L368)","v":""},null,{"$f":"IF(AND(G347<>\"\",E368<>\"\",L368<>\"\"),TRUE,IF(AND(G347<>\"\",E368<>\"\",L368=\"\",X368=FALSE),CONST_ErrorOrMissing&C347,CONST_NA))","v":"n.a."},null,{"$f":"IF(G347=\"\",FALSE,E368=\"\")","v":false}]
[{"$nulls":3},9,"",{"$nulls":5},"",{"$nulls":6},{"$f":"CONST_PrecursorToGoodInput&G347&\"_\"&E369","v":"PrecToGood__"},9,{"$f":"IF(G347=\"\",\"\",L369)","v":""},null,{"$f":"IF(AND(G347<>\"\",E369<>\"\",L369<>\"\"),TRUE,IF(AND(G347<>\"\",E369<>\"\",L369=\"\",X369=FALSE),CONST_ErrorOrMissing&C347,CONST_NA))","v":"n.a."},null,{"$f":"IF(G347=\"\",FALSE,E369=\"\")","v":false}]
[{"$nulls":3},10,"",{"$nulls":5},"",{"$nulls":6},{"$f":"CONST_PrecursorToGoodInput&G347&\"_\"&E370","v":"PrecToGood__"},10,{"$f":"IF(G347=\"\",\"\",L370)","v":""},null,{"$f":"IF(AND(G347<>\"\",E370<>\"\",L370<>\"\"),TRUE,IF(AND(G347<>\"\",E370<>\"\",L370=\"\",X370=FALSE),CONST_ErrorOrMissing&C347,CONST_NA))","v":"n.a."},null,{"$f":"IF(G347=\"\",FALSE,E370=\"\")","v":false}]
[{"$nulls":3},"(c)",{"$f":"Translations!$B$252","v":"Consumed for non-CBAM goods within the installation:"},{"$nulls":5},{"$f":"K358","v":""}]
[{"$nulls":3},"(d)",{"$f":"Translations!$B$253","v":"Control:"},{"$nulls":5},{"$f":"K371","v":""},{"$f":"IF(G347=\"\",\"\",SUM(L358)-SUM(L361:L371))","v":""}]
[]
[]
[{"$nulls":3},{"$f":"Translations!$B$279","v":"Specific embedded emissions:"},{"$nulls":5},{"$f":"IF(G347=\"\",\"\",G347)","v":""}]
[]
[{"$nulls":3},"(e)",{"$f":"Translations!$B$280","v":"Emissions embedded in this purchased precursor"}]
[{"$nulls":4},{"$f":"Translations!$B$281","v":"Please enter here the values and sources for the specific embedded direct and indirect emissions, as obtained from the supplier."}]
[{"$nulls":4},{"$f":"Translations!$B$282","v":"For the SEE (direct), the 'Type of value' relates to whether the direct emissions are measured, or whether a default value provided by the European Commission was applied."}]
[{"$nulls":4},{"$f":"Translations!$B$283","v":"In order to obtain these data and information, you may want to ask your supplier to fill in an empty copy of this communication template."}]
[{"$nulls":4},{"$f":"Translations!$B$284","v":"Parameter:"},{"$nulls":5},{"$f":"Translations!$B$221","v":"Unit"},{"$f":"Translations!$B$260","v":"Value"},{"$f":"Translations!$B$285","v":"Source"}]
[{"$nulls":3},"i.",{"$f":"Translations!$B$286","v":"Specific embedded direct emissions (SEE (direct) )"},{"$nulls":5},{"$f":"IF(L347=\"\",\"\",CONST_tCO2eq&\"/\"&K358)","v":""},{"$nulls":6},{"$f":"CONST_PurchPrecDefaultUsed&G347","v":"PurchPrecDef_"},{"$f":"CONST_CNTR_EmbedEmDir&G347","v":"EmbedEmDir_"},{"$f":"IF(G347=\"\",\"\",SUM(T358)*SUM(L382))","v":""},{"$f":"IF(G347=\"\",\"\",IF(M382=\"\",CONST_ERR_Incomplete,MATCH(M382,CONST_MeasuredOrDefault,0)=2))","v":""},{"$f":"IF(AND(G347<>\"\",COUNTA(L382:M382)=2),TRUE,IF(AND(G347<>\"\",COUNTA(L382:M382)<2),CONST_ErrorOrMissing&C347,CONST_NA))","v":"n.a."}]
[{"$nulls":3},"ii.",{"$f":"Translations!$B$287","v":"Specific embedded indirect emissions (SEE (indirect) )"},{"$nulls":5},{"$f":"K382","v":""},{"$nulls":6},{"$f":"CONST_CNTR_ElecEFMethod&G347","v":"ElecEFMeth_"},{"$f":"CONST_CNTR_EmbedEmInDir&G347","v":"EmbedEmInDir_"},{"$f":"IF(G347=\"\",\"\",SUM(T358)*SUM(L383))","v":""},{"$f":"IF(G347=\"\",\"\",M383)","v":""},{"$f":"IF(AND(G347<>\"\",COUNTA(L383:M383)=2),TRUE,IF(AND(G347<>\"\",COUNTA(L383:M383)<2),CONST_ErrorOrMissing&C347,CONST_NA))","v":"n.a."}]
[]
[{"$nulls":3},"iii.",{"$f":"Translations!$B$1858","v":"Justification for use of default values (if relevant):"},{"$nulls":16},{"$f":"IF(AND(G347<>\"\",X385=FALSE,K385<>\"\"),TRUE,IF(AND(G347<>\"\",M382<>\"\",X385=FALSE,K385=\"\"),CONST_ErrorOrMissing&C347,CONST_NA))","v":"n.a."},null,{"$f":"IF(M382=\"\",FALSE,M382<>INDEX(CONST_MeasuredOrDefault,2))","v":false}]
[]
[]
[]
[null,null,{"$f":"C347+1","v":10},{"$f":"CONST_PurchPrecursor&\" \"&C389&\":\"","v":"Purchased precursor 10:"},null,null,{"$f":"IF(INDEX(CNTR_List_ExistPurchPrecNames,MATCH(R389,CNTR_ListPurchPrecID,0))=CONST_NA,\"\",INDEX(CNTR_List_ExistPurchPrecNames,MATCH(R389,CNTR_ListPurchPrecID,0)))","v":""},{"$nulls":4},{"$f":"IF(INDEX(CNTR_List_ExistPurchPrec,MATCH(R389,CNTR_ListPurchPrecID,0))=CONST_NA,\"\",INDEX(CNTR_List_ExistPurchPrec,MATCH(R389,CNTR_ListPurchPrecID,0)))","v":""},{"$nulls":5},{"$f":"INDEX(CNTR_ListPurchPrecID,C389)","v":"PP10"},{"$nulls":4},"Not relevant:",{"$f":"AND(CNTR_HasEntriesA,G389=\"\")","v":false}]
[]
[{"$nulls":3},"(a) ",{"$f":"Translations!$B$276","v":"Total purchased levels:"},null,null,{"$f":"Translations!$B$244","v":"Production route"},null,null,{"$f":"Translations!$B$221","v":"Unit"},{"$f":"Translations!$B$245","v":"Amounts"}]
[{"$nulls":3},1,{"$f":"IF(G389=\"\",\"\",G389)&IF(L389=\"\",\"\",\" | \"&L389)","v":""},null,null,{"$f":"IF(L389=\"\",\"\",INDEX(CONST_MATRIX_ProductionRoute,MATCH(L389,CONST_LIST_Goods,0),D392))","v":""},null,null,{"$f":"IF(L389=\"\",\"\",INDEX(CONST_LIST_GoodsUnit,MATCH(L389,CONST_LIST_Goods,0)))","v":""},{"$nulls":7},1]
[{"$nulls":3},2,{"$f":"IF(H393=CONST_NA,\"\",E392)","v":""},null,null,{"$f":"IF(L389=\"\",\"\",INDEX(CONST_MATRIX_ProductionRoute,MATCH(L389,CONST_LIST_Goods,0),D393))","v":""},null,null,{"$f":"IF(H393=CONST_NA,\"\",K392)","v":""},{"$nulls":7},2]
[{"$nulls":3},3,"",null,null,{"$f":"IF(L389=\"\",\"\",INDEX(CONST_MATRIX_ProductionRoute,MATCH(L389,CONST_LIST_Goods,0),D394))","v":""},null,null,"",{"$nulls":7},3]
[{"$nulls":3},4,"",null,null,{"$f":"IF(L389=\"\",\"\",INDEX(CONST_MATRIX_ProductionRoute,MATCH(L389,CONST_LIST_Goods,0),D395))","v":""},null,null,"",{"$nulls":7},4]
[{"$nulls":3},5,"",null,null,{"$f":"IF(L389=\"\",\"\",INDEX(CONST_MATRIX_ProductionRoute,MATCH(L389,CONST_LIST_Goods,0),D396))","v":""},null,null,"",{"$nulls":7},5]
[{"$nulls":3},6,"",null,null,{"$f":"IF(L389=\"\",\"\",INDEX(CONST_MATRIX_ProductionRoute,MATCH(L389,CONST_LIST_Goods,0),D397))","v":""},null,null,"",{"$nulls":7},6]
[{"$nulls":3},7,"",null,null,{"$f":"IF(L389=\"\",\"\",INDEX(CONST_MATRIX_ProductionRoute,MATCH(L389,CONST_LIST_Goods,0),D398))","v":""},null,null,"",{"$nulls":7},7]
[{"$nulls":3},8,"",null,null,{"$f":"IF(L389=\"\",\"\",INDEX(CONST_MATRIX_ProductionRoute,MATCH(L389,CONST_LIST_Goods,0),D399))","v":""},null,null,"",{"$nulls":7},8]
[{"$nulls":4},{"$f":"Translations!$B$277","v":"Total consumption within installation:"},{"$nulls":5},{"$f":"K392","v":""},{"$f":"IF(G389=\"\",\"\",SUM(L392:L399))","v":""},{"$nulls":5},{"$f":"CONST_CNTR_TotProd&G389","v":"TotProd_"},null,{"$f":"IF(G389=\"\",\"\",IF(SUM(L400)=0,100,L400))","v":""}]
[]
[{"$nulls":3},"(b)",{"$f":"Translations!$B$278","v":"Consumed in \"production processes\" within the installation:"},{"$nulls":5},{"$f":"Translations!$B$221","v":"Unit"},{"$f":"Translations!$B$245","v":"Amounts"},{"$nulls":6},"Numbering"]
[{"$nulls":3},1,{"$f":"IF(INDEX(CNTR_List_ExistProdProcNames,S403)=CONST_NA,\"\",INDEX(CNTR_List_ExistProdProcNames,S403))","v":""},{"$nulls":5},{"$f":"IF(E403=\"\",\"\",K400)","v":""},{"$nulls":6},{"$f":"CONST_PrecursorToGoodInput&G389&\"_\"&E403","v":"PrecToGood__"},{"$f":"D403","v":1},{"$f":"IF(G389=\"\",\"\",L403)","v":""},null,{"$f":"IF(AND(G389<>\"\",E403<>\"\",L403<>\"\"),TRUE,IF(AND(G389<>\"\",E403<>\"\",L403=\"\",X403=FALSE),CONST_ErrorOrMissing&C389,CONST_NA))","v":"n.a."},"cond.form.",{"$f":"IF(G389=\"\",FALSE,E403=\"\")","v":false}]
[{"$nulls":3},2,"",{"$nulls":5},{"$f":"IF(E404=\"\",\"\",K403)","v":""},{"$nulls":6},{"$f":"CONST_PrecursorToGoodInput&G389&\"_\"&E404","v":"PrecToGood__"},{"$f":"D404","v":2},{"$f":"IF(G389=\"\",\"\",L404)","v":""},null,{"$f":"IF(AND(G389<>\"\",E404<>\"\",L404<>\"\"),TRUE,IF(AND(G389<>\"\",E404<>\"\",L404=\"\",X404=FALSE),CONST_ErrorOrMissing&C389,CONST_NA))","v":"n.a."},null,{"$f":"IF(G389=\"\",FALSE,E404=\"\")","v":false}]
[{"$nulls":3},3,"",{"$nulls":5},{"$f":"IF(E405=\"\",\"\",K404)","v":""},{"$nulls":6},{"$f":"CONST_PrecursorToGoodInput&G389&\"_\"&E405","v":"PrecToGood__"},3,{"$f":"IF(G389=\"\",\"\",L405)","v":""},null,{"$f":"IF(AND(G389<>\"\",E405<>\"\",L405<>\"\"),TRUE,IF(AND(G389<>\"\",E405<>\"\",L405=\"\",X405=FALSE),CONST_ErrorOrMissing&C389,CONST_NA))","v":"n.a."},null,{"$f":"IF(G389=\"\",FALSE,E405=\"\")","v":false}]
[{"$nulls":3},4,"",{"$nulls":5},"",{"$nulls":6},{"$f":"CONST_PrecursorToGoodInput&G389&\"_\"&E406","v":"PrecToGood__"},4,{"$f":"IF(G389=\"\",\"\",L406)","v":""},null,{"$f":"IF(AND(G389<>\"\",E406<>\"\",L406<>\"\"),TRUE,IF(AND(G389<>\"\",E406<>\"\",L406=\"\",X406=FALSE),CONST_ErrorOrMissing&C389,CONST_NA))","v":"n.a."},null,{"$f":"IF(G389=\"\",FALSE,E406=\"\")","v":false}]
[{"$nulls":3},5,"",{"$nulls":5},"",{"$nulls":6},{"$f":"CONST_PrecursorToGoodInput&G389&\"_\"&E407","v":"PrecToGood__"},5,{"$f":"IF(G389=\"\",\"\",L407)","v":""},null,{"$f":"IF(AND(G389<>\"\",E407<>\"\",L407<>\"\"),TRUE,IF(AND(G389<>\"\",E407<>\"\",L407=\"\",X407=FALSE),CONST_ErrorOrMissing&C389,CONST_NA))","v":"n.a."},null,{"$f":"IF(G389=\"\",FALSE,E407=\"\")","v":false}]
[{"$nulls":3},6,"",{"$nulls":5},"",{"$nulls":6},{"$f":"CONST_PrecursorToGoodInput&G389&\"_\"&E408","v":"PrecToGood__"},6,{"$f":"IF(G389=\"\",\"\",L408)","v":""},null,{"$f":"IF(AND(G389<>\"\",E408<>\"\",L408<>\"\"),TRUE,IF(AND(G389<>\"\",E408<>\"\",L408=\"\",X408=FALSE),CONST_ErrorOrMissing&C389,CONST_NA))","v":"n.a."},null,{"$f":"IF(G389=\"\",FALSE,E408=\"\")","v":false}]
[{"$nulls":3},7,"",{"$nulls":5},"",{"$nulls":6},{"$f":"CONST_PrecursorToGoodInput&G389&\"_\"&E409","v":"PrecToGood__"},7,{"$f":"IF(G389=\"\",\"\",L409)","v":""},null,{"$f":"IF(AND(G389<>\"\",E409<>\"\",L409<>\"\"),TRUE,IF(AND(G389<>\"\",E409<>\"\",L409=\"\",X409=FALSE),CONST_ErrorOrMissing&C389,CONST_NA))","v":"n.a."},null,{"$f":"IF(G389=\"\",FALSE,E409=\"\")","v":false}]
[{"$nulls":3},8,"",{"$nulls":5},"",{"$nulls":6},{"$f":"CONST_PrecursorToGoodInput&G389&\"_\"&E410","v":"PrecToGood__"},8,{"$f":"IF(G389=\"\",\"\",L410)","v":""},null,{"$f":"IF(AND(G389<>\"\",E410<>\"\",L410<>\"\"),TRUE,IF(AND(G389<>\"\",E410<>\"\",L410=\"\",X410=FALSE),CONST_ErrorOrMissing&C389,CONST_NA))","v":"n.a."},null,{"$f":"IF(G389=\"\",FALSE,E410=\"\")","v":false}]
[{"$nulls":3},9,"",{"$nulls":5},"",{"$nulls":6},{"$f":"CONST_PrecursorToGoodInput&G389&\"_\"&E411","v":"PrecToGood__"},9,{"$f":"IF(G389=\"\",\"\",L411)","v":""},null,{"$f":"IF(AND(G389<>\"\",E411<>\"\",L411<>\"\"),TRUE,IF(AND(G389<>\"\",E411<>\"\",L411=\"\",X411=FALSE),CONST_ErrorOrMissing&C389,CONST_NA))","v":"n.a."},null,{"$f":"IF(G389=\"\",FALSE,E411=\"\")","v":false}]
[{"$nulls":3},10,"",{"$nulls":5},"",{"$nulls":6},{"$f":"CONST_PrecursorToGoodInput&G389&\"_\"&E412","v":"PrecToGood__"},10,{"$f":"IF(G389=\"\",\"\",L412)","v":""},null,{"$f":"IF(AND(G389<>\"\",E412<>\"\",L412<>\"\"),TRUE,IF(AND(G389<>\"\",E412<>\"\",L412=\"\",X412=FALSE),CONST_ErrorOrMissing&C389,CONST_NA))","v":"n.a."},null,{"$f":"IF(G389=\"\",FALSE,E412=\"\")","v":false}]
[{"$nulls":3},"(c)",{"$f":"Translations!$B$252","v":"Consumed for non-CBAM goods within the installation:"},{"$nulls":5},{"$f":"K400","v":""}]
[{"$nulls":3},"(d)",{"$f":"Translations!$B$253","v":"Control:"},{"$nulls":5},{"$f":"K413","v":""},{"$f":"IF(G389=\"\",\"\",SUM(L400)-SUM(L403:L413))","v":""}]
[]
[]
[{"$nulls":3},{"$f":"Translations!$B$279","v":"Specific embedded emissions:"},{"$nulls":5},{"$f":"IF(G389=\"\",\"\",G389)","v":""}]
[]
[{"$nulls":3},"(e)",{"$f":"Translations!$B$280","v":"Emissions embedded in this purchased precursor"}]
[{"$nulls":4},{"$f":"Translations!$B$281","v":"Please enter here the values and sources for the specific embedded direct and indirect emissions, as obtained from the supplier."}]
[{"$nulls":4},{"$f":"Translations!$B$282","v":"For the SEE (direct), the 'Type of value' relates to whether the direct emissions are measured, or whether a default value provided by the European Commission was applied."}]
[{"$nulls":4},{"$f":"Translations!$B$283","v":"In order to obtain these data and information, you may want to ask your supplier to fill in an empty copy of this communication template."}]
[{"$nulls":4},{"$f":"Translations!$B$284","v":"Parameter:"},{"$nulls":5},{"$f":"Translations!$B$221","v":"Unit"},{"$f":"Translations!$B$260","v":"Value"},{"$f":"Translations!$B$285","v":"Source"}]
[{"$nulls":3},"i.",{"$f":"Translations!$B$286","v":"Specific embedded direct emissions (SEE (direct) )"},{"$nulls":5},{"$f":"IF(L389=\"\",\"\",CONST_tCO2eq&\"/\"&K400)","v":""},{"$nulls":6},{"$f":"CONST_PurchPrecDefaultUsed&G389","v":"PurchPrecDef_"},{"$f":"CONST_CNTR_EmbedEmDir&G389","v":"EmbedEmDir_"},{"$f":"IF(G389=\"\",\"\",SUM(T400)*SUM(L424))","v":""},{"$f":"IF(G389=\"\",\"\",IF(M424=\"\",CONST_ERR_Incomplete,MATCH(M424,CONST_MeasuredOrDefault,0)=2))","v":""},{"$f":"IF(AND(G389<>\"\",COUNTA(L424:M424)=2),TRUE,IF(AND(G389<>\"\",COUNTA(L424:M424)<2),CONST_ErrorOrMissing&C389,CONST_NA))","v":"n.a."}]
[{"$nulls":3},"ii.",{"$f":"Translations!$B$287","v":"Specific embedded indirect emissions (SEE (indirect) )"},{"$nulls":5},{"$f":"K424","v":""},{"$nulls":6},{"$f":"CONST_CNTR_ElecEFMethod&G389","v":"ElecEFMeth_"},{"$f":"CONST_CNTR_EmbedEmInDir&G389","v":"EmbedEmInDir_"},{"$f":"IF(G389=\"\",\"\",SUM(T400)*SUM(L425))","v":""},{"$f":"IF(G389=\"\",\"\",M425)","v":""},{"$f":"IF(AND(G389<>\"\",COUNTA(L425:M425)=2),TRUE,IF(AND(G389<>\"\",COUNTA(L425:M425)<2),CONST_ErrorOrMissing&C389,CONST_NA))","v":"n.a."}]
[]
[{"$nulls":3},"iii.",{"$f":"Translations!$B$1858","v":"Justification for use of default values (if relevant):"},{"$nulls":16},{"$f":"IF(AND(G389<>\"\",X427=FALSE,K427<>\"\"),TRUE,IF(AND(G389<>\"\",M424<>\"\",X427=FALSE,K427=\"\"),CONST_ErrorOrMissing&C389,CONST_NA))","v":"n.a."},null,{"$f":"IF(M424=\"\",FALSE,M424<>INDEX(CONST_MeasuredOrDefault,2))","v":false}]
[]
[]
[]
[null,null,{"$f":"C389+1","v":11},{"$f":"CONST_PurchPrecursor&\" \"&C431&\":\"","v":"Purchased precursor 11:"},null,null,{"$f":"IF(INDEX(CNTR_List_ExistPurchPrecNames,MATCH(R431,CNTR_ListPurchPrecID,0))=CONST_NA,\"\",INDEX(CNTR_List_ExistPurchPrecNames,MATCH(R431,CNTR_ListPurchPrecID,0)))","v":""},{"$nulls":4},{"$f":"IF(INDEX(CNTR_List_ExistPurchPrec,MATCH(R431,CNTR_ListPurchPrecID,0))=CONST_NA,\"\",INDEX(CNTR_List_ExistPurchPrec,MATCH(R431,CNTR_ListPurchPrecID,0)))","v":""},{"$nulls":5},{"$f":"INDEX(CNTR_ListPurchPrecID,C431)","v":"PP11"},{"$nulls":4},"Not relevant:",{"$f":"AND(CNTR_HasEntriesA,G431=\"\")","v":false}]
[]
[{"$nulls":3},"(a) ",{"$f":"Translations!$B$276","v":"Total purchased levels:"},null,null,{"$f":"Translations!$B$244","v":"Production route"},null,null,{"$f":"Translations!$B$221","v":"Unit"},{"$f":"Translations!$B$245","v":"Amounts"}]
[{"$nulls":3},1,{"$f":"IF(G431=\"\",\"\",G431)&IF(L431=\"\",\"\",\" | \"&L431)","v":""},null,null,{"$f":"IF(L431=\"\",\"\",INDEX(CONST_MATRIX_ProductionRoute,MATCH(L431,CONST_LIST_Goods,0),D434))","v":""},null,null,{"$f":"IF(L431=\"\",\"\",INDEX(CONST_LIST_GoodsUnit,MATCH(L431,CONST_LIST_Goods,0)))","v":""},{"$nulls":7},1]
[{"$nulls":3},2,{"$f":"IF(H435=CONST_NA,\"\",E434)","v":""},null,null,{"$f":"IF(L431=\"\",\"\",INDEX(CONST_MATRIX_ProductionRoute,MATCH(L431,CONST_LIST_Goods,0),D435))","v":""},null,null,{"$f":"IF(H435=CONST_NA,\"\",K434)","v":""},{"$nulls":7},2]
[{"$nulls":3},3,"",null,null,{"$f":"IF(L431=\"\",\"\",INDEX(CONST_MATRIX_ProductionRoute,MATCH(L431,CONST_LIST_Goods,0),D436))","v":""},null,null,"",{"$nulls":7},3]
[{"$nulls":3},4,"",null,null,{"$f":"IF(L431=\"\",\"\",INDEX(CONST_MATRIX_ProductionRoute,MATCH(L431,CONST_LIST_Goods,0),D437))","v":""},null,null,"",{"$nulls":7},4]
[{"$nulls":3},5,"",null,null,{"$f":"IF(L431=\"\",\"\",INDEX(CONST_MATRIX_ProductionRoute,MATCH(L431,CONST_LIST_Goods,0),D438))","v":""},null,null,"",{"$nulls":7},5]
[{"$nulls":3},6,"",null,null,{"$f":"IF(L431=\"\",\"\",INDEX(CONST_MATRIX_ProductionRoute,MATCH(L431,CONST_LIST_Goods,0),D439))","v":""},null,null,"",{"$nulls":7},6]
[{"$nulls":3},7,"",null,null,{"$f":"IF(L431=\"\",\"\",INDEX(CONST_MATRIX_ProductionRoute,MATCH(L431,CONST_LIST_Goods,0),D440))","v":""},null,null,"",{"$nulls":7},7]
[{"$nulls":3},8,"",null,null,{"$f":"IF(L431=\"\",\"\",INDEX(CONST_MATRIX_ProductionRoute,MATCH(L431,CONST_LIST_Goods,0),D441))","v":""},null,null,"",{"$nulls":7},8]
[{"$nulls":4},{"$f":"Translations!$B$277","v":"Total consumption within installation:"},{"$nulls":5},{"$f":"K434","v":""},{"$f":"IF(G431=\"\",\"\",SUM(L434:L441))","v":""},{"$nulls":5},{"$f":"CONST_CNTR_TotProd&G431","v":"TotProd_"},null,{"$f":"IF(G431=\"\",\"\",IF(SUM(L442)=0,100,L442))","v":""}]
[]
[{"$nulls":3},"(b)",{"$f":"Translations!$B$278","v":"Consumed in \"production processes\" within the installation:"},{"$nulls":5},{"$f":"Translations!$B$221","v":"Unit"},{"$f":"Translations!$B$245","v":"Amounts"},{"$nulls":6},"Numbering"]
[{"$nulls":3},1,{"$f":"IF(INDEX(CNTR_List_ExistProdProcNames,S445)=CONST_NA,\"\",INDEX(CNTR_List_ExistProdProcNames,S445))","v":""},{"$nulls":5},{"$f":"IF(E445=\"\",\"\",K442)","v":""},{"$nulls":6},{"$f":"CONST_PrecursorToGoodInput&G431&\"_\"&E445","v":"PrecToGood__"},{"$f":"D445","v":1},{"$f":"IF(G431=\"\",\"\",L445)","v":""},null,{"$f":"IF(AND(G431<>\"\",E445<>\"\",L445<>\"\"),TRUE,IF(AND(G431<>\"\",E445<>\"\",L445=\"\",X445=FALSE),CONST_ErrorOrMissing&C431,CONST_NA))","v":"n.a."},"cond.form.",{"$f":"IF(G431=\"\",FALSE,E445=\"\")","v":false}]
[{"$nulls":3},2,"",{"$nulls":5},{"$f":"IF(E446=\"\",\"\",K445)","v":""},{"$nulls":6},{"$f":"CONST_PrecursorToGoodInput&G431&\"_\"&E446","v":"PrecToGood__"},{"$f":"D446","v":2},{"$f":"IF(G431=\"\",\"\",L446)","v":""},null,{"$f":"IF(AND(G431<>\"\",E446<>\"\",L446<>\"\"),TRUE,IF(AND(G431<>\"\",E446<>\"\",L446=\"\",X446=FALSE),CONST_ErrorOrMissing&C431,CONST_NA))","v":"n.a."},null,{"$f":"IF(G431=\"\",FALSE,E446=\"\")","v":false}]
[{"$nulls":3},3,"",{"$nulls":5},{"$f":"IF(E447=\"\",\"\",K446)","v":""},{"$nulls":6},{"$f":"CONST_PrecursorToGoodInput&G431&\"_\"&E447","v":"PrecToGood__"},3,{"$f":"IF(G431=\"\",\"\",L447)","v":""},null,{"$f":"IF(AND(G431<>\"\",E447<>\"\",L447<>\"\"),TRUE,IF(AND(G431<>\"\",E447<>\"\",L447=\"\",X447=FALSE),CONST_ErrorOrMissing&C431,CONST_NA))","v":"n.a."},null,{"$f":"IF(G431=\"\",FALSE,E447=\"\")","v":false}]
[{"$nulls":3},4,"",{"$nulls":5},"",{"$nulls":6},{"$f":"CONST_PrecursorToGoodInput&G431&\"_\"&E448","v":"PrecToGood__"},4,{"$f":"IF(G431=\"\",\"\",L448)","v":""},null,{"$f":"IF(AND(G431<>\"\",E448<>\"\",L448<>\"\"),TRUE,IF(AND(G431<>\"\",E448<>\"\",L448=\"\",X448=FALSE),CONST_ErrorOrMissing&C431,CONST_NA))","v":"n.a."},null,{"$f":"IF(G431=\"\",FALSE,E448=\"\")","v":false}]
[{"$nulls":3},5,"",{"$nulls":5},"",{"$nulls":6},{"$f":"CONST_PrecursorToGoodInput&G431&\"_\"&E449","v":"PrecToGood__"},5,{"$f":"IF(G431=\"\",\"\",L449)","v":""},null,{"$f":"IF(AND(G431<>\"\",E449<>\"\",L449<>\"\"),TRUE,IF(AND(G431<>\"\",E449<>\"\",L449=\"\",X449=FALSE),CONST_ErrorOrMissing&C431,CONST_NA))","v":"n.a."},null,{"$f":"IF(G431=\"\",FALSE,E449=\"\")","v":false}]
[{"$nulls":3},6,"",{"$nulls":5},"",{"$nulls":6},{"$f":"CONST_PrecursorToGoodInput&G431&\"_\"&E450","v":"PrecToGood__"},6,{"$f":"IF(G431=\"\",\"\",L450)","v":""},null,{"$f":"IF(AND(G431<>\"\",E450<>\"\",L450<>\"\"),TRUE,IF(AND(G431<>\"\",E450<>\"\",L450=\"\",X450=FALSE),CONST_ErrorOrMissing&C431,CONST_NA))","v":"n.a."},null,{"$f":"IF(G431=\"\",FALSE,E450=\"\")","v":false}]
[{"$nulls":3},7,"",{"$nulls":5},"",{"$nulls":6},{"$f":"CONST_PrecursorToGoodInput&G431&\"_\"&E451","v":"PrecToGood__"},7,{"$f":"IF(G431=\"\",\"\",L451)","v":""},null,{"$f":"IF(AND(G431<>\"\",E451<>\"\",L451<>\"\"),TRUE,IF(AND(G431<>\"\",E451<>\"\",L451=\"\",X451=FALSE),CONST_ErrorOrMissing&C431,CONST_NA))","v":"n.a."},null,{"$f":"IF(G431=\"\",FALSE,E451=\"\")","v":false}]
[{"$nulls":3},8,"",{"$nulls":5},"",{"$nulls":6},{"$f":"CONST_PrecursorToGoodInput&G431&\"_\"&E452","v":"PrecToGood__"},8,{"$f":"IF(G431=\"\",\"\",L452)","v":""},null,{"$f":"IF(AND(G431<>\"\",E452<>\"\",L452<>\"\"),TRUE,IF(AND(G431<>\"\",E452<>\"\",L452=\"\",X452=FALSE),CONST_ErrorOrMissing&C431,CONST_NA))","v":"n.a."},null,{"$f":"IF(G431=\"\",FALSE,E452=\"\")","v":false}]
[{"$nulls":3},9,"",{"$nulls":5},"",{"$nulls":6},{"$f":"CONST_PrecursorToGoodInput&G431&\"_\"&E453","v":"PrecToGood__"},9,{"$f":"IF(G431=\"\",\"\",L453)","v":""},null,{"$f":"IF(AND(G431<>\"\",E453<>\"\",L453<>\"\"),TRUE,IF(AND(G431<>\"\",E453<>\"\",L453=\"\",X453=FALSE),CONST_ErrorOrMissing&C431,CONST_NA))","v":"n.a."},null,{"$f":"IF(G431=\"\",FALSE,E453=\"\")","v":false}]
[{"$nulls":3},10,"",{"$nulls":5},"",{"$nulls":6},{"$f":"CONST_PrecursorToGoodInput&G431&\"_\"&E454","v":"PrecToGood__"},10,{"$f":"IF(G431=\"\",\"\",L454)","v":""},null,{"$f":"IF(AND(G431<>\"\",E454<>\"\",L454<>\"\"),TRUE,IF(AND(G431<>\"\",E454<>\"\",L454=\"\",X454=FALSE),CONST_ErrorOrMissing&C431,CONST_NA))","v":"n.a."},null,{"$f":"IF(G431=\"\",FALSE,E454=\"\")","v":false}]
[{"$nulls":3},"(c)",{"$f":"Translations!$B$252","v":"Consumed for non-CBAM goods within the installation:"},{"$nulls":5},{"$f":"K442","v":""}]
[{"$nulls":3},"(d)",{"$f":"Translations!$B$253","v":"Control:"},{"$nulls":5},{"$f":"K455","v":""},{"$f":"IF(G431=\"\",\"\",SUM(L442)-SUM(L445:L455))","v":""}]
[]
[]
[{"$nulls":3},{"$f":"Translations!$B$279","v":"Specific embedded emissions:"},{"$nulls":5},{"$f":"IF(G431=\"\",\"\",G431)","v":""}]
[]
[{"$nulls":3},"(e)",{"$f":"Translations!$B$280","v":"Emissions embedded in this purchased precursor"}]
[{"$nulls":4},{"$f":"Translations!$B$281","v":"Please enter here the values and sources for the specific embedded direct and indirect emissions, as obtained from the supplier."}]
[{"$nulls":4},{"$f":"Translations!$B$282","v":"For the SEE (direct), the 'Type of value' relates to whether the direct emissions are measured, or whether a default value provided by the European Commission was applied."}]
[{"$nulls":4},{"$f":"Translations!$B$283","v":"In order to obtain these data and information, you may want to ask your supplier to fill in an empty copy of this communication template."}]
[{"$nulls":4},{"$f":"Translations!$B$284","v":"Parameter:"},{"$nulls":5},{"$f":"Translations!$B$221","v":"Unit"},{"$f":"Translations!$B$260","v":"Value"},{"$f":"Translations!$B$285","v":"Source"}]
[{"$nulls":3},"i.",{"$f":"Translations!$B$286","v":"Specific embedded direct emissions (SEE (direct) )"},{"$nulls":5},{"$f":"IF(L431=\"\",\"\",CONST_tCO2eq&\"/\"&K442)","v":""},{"$nulls":6},{"$f":"CONST_PurchPrecDefaultUsed&G431","v":"PurchPrecDef_"},{"$f":"CONST_CNTR_EmbedEmDir&G431","v":"EmbedEmDir_"},{"$f":"IF(G431=\"\",\"\",SUM(T442)*SUM(L466))","v":""},{"$f":"IF(G431=\"\",\"\",IF(M466=\"\",CONST_ERR_Incomplete,MATCH(M466,CONST_MeasuredOrDefault,0)=2))","v":""},{"$f":"IF(AND(G431<>\"\",COUNTA(L466:M466)=2),TRUE,IF(AND(G431<>\"\",COUNTA(L466:M466)<2),CONST_ErrorOrMissing&C431,CONST_NA))","v":"n.a."}]
[{"$nulls":3},"ii.",{"$f":"Translations!$B$287","v":"Specific embedded indirect emissions (SEE (indirect) )"},{"$nulls":5},{"$f":"K466","v":""},{"$nulls":6},{"$f":"CONST_CNTR_ElecEFMethod&G431","v":"ElecEFMeth_"},{"$f":"CONST_CNTR_EmbedEmInDir&G431","v":"EmbedEmInDir_"},{"$f":"IF(G431=\"\",\"\",SUM(T442)*SUM(L467))","v":""},{"$f":"IF(G431=\"\",\"\",M467)","v":""},{"$f":"IF(AND(G431<>\"\",COUNTA(L467:M467)=2),TRUE,IF(AND(G431<>\"\",COUNTA(L467:M467)<2),CONST_ErrorOrMissing&C431,CONST_NA))","v":"n.a."}]
[]
[{"$nulls":3},"iii.",{"$f":"Translations!$B$1858","v":"Justification for use of default values (if relevant):"},{"$nulls":16},{"$f":"IF(AND(G431<>\"\",X469=FALSE,K469<>\"\"),TRUE,IF(AND(G431<>\"\",M466<>\"\",X469=FALSE,K469=\"\"),CONST_ErrorOrMissing&C431,CONST_NA))","v":"n.a."},null,{"$f":"IF(M466=\"\",FALSE,M466<>INDEX(CONST_MeasuredOrDefault,2))","v":false}]
[]
[]
[]
[null,null,{"$f":"C431+1","v":12},{"$f":"CONST_PurchPrecursor&\" \"&C473&\":\"","v":"Purchased precursor 12:"},null,null,{"$f":"IF(INDEX(CNTR_List_ExistPurchPrecNames,MATCH(R473,CNTR_ListPurchPrecID,0))=CONST_NA,\"\",INDEX(CNTR_List_ExistPurchPrecNames,MATCH(R473,CNTR_ListPurchPrecID,0)))","v":""},{"$nulls":4},{"$f":"IF(INDEX(CNTR_List_ExistPurchPrec,MATCH(R473,CNTR_ListPurchPrecID,0))=CONST_NA,\"\",INDEX(CNTR_List_ExistPurchPrec,MATCH(R473,CNTR_ListPurchPrecID,0)))","v":""},{"$nulls":5},{"$f":"INDEX(CNTR_ListPurchPrecID,C473)","v":"PP12"},{"$nulls":4},"Not relevant:",{"$f":"AND(CNTR_HasEntriesA,G473=\"\")","v":false}]
[]
[{"$nulls":3},"(a) ",{"$f":"Translations!$B$276","v":"Total purchased levels:"},null,null,{"$f":"Translations!$B$244","v":"Production route"},null,null,{"$f":"Translations!$B$221","v":"Unit"},{"$f":"Translations!$B$245","v":"Amounts"}]
[{"$nulls":3},1,{"$f":"IF(G473=\"\",\"\",G473)&IF(L473=\"\",\"\",\" | \"&L473)","v":""},null,null,{"$f":"IF(L473=\"\",\"\",INDEX(CONST_MATRIX_ProductionRoute,MATCH(L473,CONST_LIST_Goods,0),D476))","v":""},null,null,{"$f":"IF(L473=\"\",\"\",INDEX(CONST_LIST_GoodsUnit,MATCH(L473,CONST_LIST_Goods,0)))","v":""},{"$nulls":7},1]
[{"$nulls":3},2,{"$f":"IF(H477=CONST_NA,\"\",E476)","v":""},null,null,{"$f":"IF(L473=\"\",\"\",INDEX(CONST_MATRIX_ProductionRoute,MATCH(L473,CONST_LIST_Goods,0),D477))","v":""},null,null,{"$f":"IF(H477=CONST_NA,\"\",K476)","v":""},{"$nulls":7},2]
[{"$nulls":3},3,"",null,null,{"$f":"IF(L473=\"\",\"\",INDEX(CONST_MATRIX_ProductionRoute,MATCH(L473,CONST_LIST_Goods,0),D478))","v":""},null,null,"",{"$nulls":7},3]
[{"$nulls":3},4,"",null,null,{"$f":"IF(L473=\"\",\"\",INDEX(CONST_MATRIX_ProductionRoute,MATCH(L473,CONST_LIST_Goods,0),D479))","v":""},null,null,"",{"$nulls":7},4]
[{"$nulls":3},5,"",null,null,{"$f":"IF(L473=\"\",\"\",INDEX(CONST_MATRIX_ProductionRoute,MATCH(L473,CONST_LIST_Goods,0),D480))","v":""},null,null,"",{"$nulls":7},5]
[{"$nulls":3},6,"",null,null,{"$f":"IF(L473=\"\",\"\",INDEX(CONST_MATRIX_ProductionRoute,MATCH(L473,CONST_LIST_Goods,0),D481))","v":""},null,null,"",{"$nulls":7},6]
[{"$nulls":3},7,"",null,null,{"$f":"IF(L473=\"\",\"\",INDEX(CONST_MATRIX_ProductionRoute,MATCH(L473,CONST_LIST_Goods,0),D482))","v":""},null,null,"",{"$nulls":7},7]
[{"$nulls":3},8,"",null,null,{"$f":"IF(L473=\"\",\"\",INDEX(CONST_MATRIX_ProductionRoute,MATCH(L473,CONST_LIST_Goods,0),D483))","v":""},null,null,"",{"$nulls":7},8]
[{"$nulls":4},{"$f":"Translations!$B$277","v":"Total consumption within installation:"},{"$nulls":5},{"$f":"K476","v":""},{"$f":"IF(G473=\"\",\"\",SUM(L476:L483))","v":""},{"$nulls":5},{"$f":"CONST_CNTR_TotProd&G473","v":"TotProd_"},null,{"$f":"IF(G473=\"\",\"\",IF(SUM(L484)=0,100,L484))","v":""}]
[]
[{"$nulls":3},"(b)",{"$f":"Translations!$B$278","v":"Consumed in \"production processes\" within the installation:"},{"$nulls":5},{"$f":"Translations!$B$221","v":"Unit"},{"$f":"Translations!$B$245","v":"Amounts"},{"$nulls":6},"Numbering"]
[{"$nulls":3},1,{"$f":"IF(INDEX(CNTR_List_ExistProdProcNames,S487)=CONST_NA,\"\",INDEX(CNTR_List_ExistProdProcNames,S487))","v":""},{"$nulls":5},{"$f":"IF(E487=\"\",\"\",K484)","v":""},{"$nulls":6},{"$f":"CONST_PrecursorToGoodInput&G473&\"_\"&E487","v":"PrecToGood__"},{"$f":"D487","v":1},{"$f":"IF(G473=\"\",\"\",L487)","v":""},null,{"$f":"IF(AND(G473<>\"\",E487<>\"\",L487<>\"\"),TRUE,IF(AND(G473<>\"\",E487<>\"\",L487=\"\",X487=FALSE),CONST_ErrorOrMissing&C473,CONST_NA))","v":"n.a."},"cond.form.",{"$f":"IF(G473=\"\",FALSE,E487=\"\")","v":false}]
[{"$nulls":3},2,"",{"$nulls":5},{"$f":"IF(E488=\"\",\"\",K487)","v":""},{"$nulls":6},{"$f":"CONST_PrecursorToGoodInput&G473&\"_\"&E488","v":"PrecToGood__"},{"$f":"D488","v":2},{"$f":"IF(G473=\"\",\"\",L488)","v":""},null,{"$f":"IF(AND(G473<>\"\",E488<>\"\",L488<>\"\"),TRUE,IF(AND(G473<>\"\",E488<>\"\",L488=\"\",X488=FALSE),CONST_ErrorOrMissing&C473,CONST_NA))","v":"n.a."},null,{"$f":"IF(G473=\"\",FALSE,E488=\"\")","v":false}]
[{"$nulls":3},3,"",{"$nulls":5},{"$f":"IF(E489=\"\",\"\",K488)","v":""},{"$nulls":6},{"$f":"CONST_PrecursorToGoodInput&G473&\"_\"&E489","v":"PrecToGood__"},3,{"$f":"IF(G473=\"\",\"\",L489)","v":""},null,{"$f":"IF(AND(G473<>\"\",E489<>\"\",L489<>\"\"),TRUE,IF(AND(G473<>\"\",E489<>\"\",L489=\"\",X489=FALSE),CONST_ErrorOrMissing&C473,CONST_NA))","v":"n.a."},null,{"$f":"IF(G473=\"\",FALSE,E489=\"\")","v":false}]
[{"$nulls":3},4,"",{"$nulls":5},"",{"$nulls":6},{"$f":"CONST_PrecursorToGoodInput&G473&\"_\"&E490","v":"PrecToGood__"},4,{"$f":"IF(G473=\"\",\"\",L490)","v":""},null,{"$f":"IF(AND(G473<>\"\",E490<>\"\",L490<>\"\"),TRUE,IF(AND(G473<>\"\",E490<>\"\",L490=\"\",X490=FALSE),CONST_ErrorOrMissing&C473,CONST_NA))","v":"n.a."},null,{"$f":"IF(G473=\"\",FALSE,E490=\"\")","v":false}]
[{"$nulls":3},5,"",{"$nulls":5},"",{"$nulls":6},{"$f":"CONST_PrecursorToGoodInput&G473&\"_\"&E491","v":"PrecToGood__"},5,{"$f":"IF(G473=\"\",\"\",L491)","v":""},null,{"$f":"IF(AND(G473<>\"\",E491<>\"\",L491<>\"\"),TRUE,IF(AND(G473<>\"\",E491<>\"\",L491=\"\",X491=FALSE),CONST_ErrorOrMissing&C473,CONST_NA))","v":"n.a."},null,{"$f":"IF(G473=\"\",FALSE,E491=\"\")","v":false}]
[{"$nulls":3},6,"",{"$nulls":5},"",{"$nulls":6},{"$f":"CONST_PrecursorToGoodInput&G473&\"_\"&E492","v":"PrecToGood__"},6,{"$f":"IF(G473=\"\",\"\",L492)","v":""},null,{"$f":"IF(AND(G473<>\"\",E492<>\"\",L492<>\"\"),TRUE,IF(AND(G473<>\"\",E492<>\"\",L492=\"\",X492=FALSE),CONST_ErrorOrMissing&C473,CONST_NA))","v":"n.a."},null,{"$f":"IF(G473=\"\",FALSE,E492=\"\")","v":false}]
[{"$nulls":3},7,"",{"$nulls":5},"",{"$nulls":6},{"$f":"CONST_PrecursorToGoodInput&G473&\"_\"&E493","v":"PrecToGood__"},7,{"$f":"IF(G473=\"\",\"\",L493)","v":""},null,{"$f":"IF(AND(G473<>\"\",E493<>\"\",L493<>\"\"),TRUE,IF(AND(G473<>\"\",E493<>\"\",L493=\"\",X493=FALSE),CONST_ErrorOrMissing&C473,CONST_NA))","v":"n.a."},null,{"$f":"IF(G473=\"\",FALSE,E493=\"\")","v":false}]
[{"$nulls":3},8,"",{"$nulls":5},"",{"$nulls":6},{"$f":"CONST_PrecursorToGoodInput&G473&\"_\"&E494","v":"PrecToGood__"},8,{"$f":"IF(G473=\"\",\"\",L494)","v":""},null,{"$f":"IF(AND(G473<>\"\",E494<>\"\",L494<>\"\"),TRUE,IF(AND(G473<>\"\",E494<>\"\",L494=\"\",X494=FALSE),CONST_ErrorOrMissing&C473,CONST_NA))","v":"n.a."},null,{"$f":"IF(G473=\"\",FALSE,E494=\"\")","v":false}]
[{"$nulls":3},9,"",{"$nulls":5},"",{"$nulls":6},{"$f":"CONST_PrecursorToGoodInput&G473&\"_\"&E495","v":"PrecToGood__"},9,{"$f":"IF(G473=\"\",\"\",L495)","v":""},null,{"$f":"IF(AND(G473<>\"\",E495<>\"\",L495<>\"\"),TRUE,IF(AND(G473<>\"\",E495<>\"\",L495=\"\",X495=FALSE),CONST_ErrorOrMissing&C473,CONST_NA))","v":"n.a."},null,{"$f":"IF(G473=\"\",FALSE,E495=\"\")","v":false}]
[{"$nulls":3},10,"",{"$nulls":5},"",{"$nulls":6},{"$f":"CONST_PrecursorToGoodInput&G473&\"_\"&E496","v":"PrecToGood__"},10,{"$f":"IF(G473=\"\",\"\",L496)","v":""},null,{"$f":"IF(AND(G473<>\"\",E496<>\"\",L496<>\"\"),TRUE,IF(AND(G473<>\"\",E496<>\"\",L496=\"\",X496=FALSE),CONST_ErrorOrMissing&C473,CONST_NA))","v":"n.a."},null,{"$f":"IF(G473=\"\",FALSE,E496=\"\")","v":false}]
[{"$nulls":3},"(c)",{"$f":"Translations!$B$252","v":"Consumed for non-CBAM goods within the installation:"},{"$nulls":5},{"$f":"K484","v":""}]
[{"$nulls":3},"(d)",{"$f":"Translations!$B$253","v":"Control:"},{"$nulls":5},{"$f":"K497","v":""},{"$f":"IF(G473=\"\",\"\",SUM(L484)-SUM(L487:L497))","v":""}]
[]
[]
[{"$nulls":3},{"$f":"Translations!$B$279","v":"Specific embedded emissions:"},{"$nulls":5},{"$f":"IF(G473=\"\",\"\",G473)","v":""}]
[]
[{"$nulls":3},"(e)",{"$f":"Translations!$B$280","v":"Emissions embedded in this purchased precursor"}]
[{"$nulls":4},{"$f":"Translations!$B$281","v":"Please enter here the values and sources for the specific embedded direct and indirect emissions, as obtained from the supplier."}]
[{"$nulls":4},{"$f":"Translations!$B$282","v":"For the SEE (direct), the 'Type of value' relates to whether the direct emissions are measured, or whether a default value provided by the European Commission was applied."}]
[{"$nulls":4},{"$f":"Translations!$B$283","v":"In order to obtain these data and information, you may want to ask your supplier to fill in an empty copy of this communication template."}]
[{"$nulls":4},{"$f":"Translations!$B$284","v":"Parameter:"},{"$nulls":5},{"$f":"Translations!$B$221","v":"Unit"},{"$f":"Translations!$B$260","v":"Value"},{"$f":"Translations!$B$285","v":"Source"}]
[{"$nulls":3},"i.",{"$f":"Translations!$B$286","v":"Specific embedded direct emissions (SEE (direct) )"},{"$nulls":5},{"$f":"IF(L473=\"\",\"\",CONST_tCO2eq&\"/\"&K484)","v":""},{"$nulls":6},{"$f":"CONST_PurchPrecDefaultUsed&G473","v":"PurchPrecDef_"},{"$f":"CONST_CNTR_EmbedEmDir&G473","v":"EmbedEmDir_"},{"$f":"IF(G473=\"\",\"\",SUM(T484)*SUM(L508))","v":""},{"$f":"IF(G473=\"\",\"\",IF(M508=\"\",CONST_ERR_Incomplete,MATCH(M508,CONST_MeasuredOrDefault,0)=2))","v":""},{"$f":"IF(AND(G473<>\"\",COUNTA(L508:M508)=2),TRUE,IF(AND(G473<>\"\",COUNTA(L508:M508)<2),CONST_ErrorOrMissing&C473,CONST_NA))","v":"n.a."}]
[{"$nulls":3},"ii.",{"$f":"Translations!$B$287","v":"Specific embedded indirect emissions (SEE (indirect) )"},{"$nulls":5},{"$f":"K508","v":""},{"$nulls":6},{"$f":"CONST_CNTR_ElecEFMethod&G473","v":"ElecEFMeth_"},{"$f":"CONST_CNTR_EmbedEmInDir&G473","v":"EmbedEmInDir_"},{"$f":"IF(G473=\"\",\"\",SUM(T484)*SUM(L509))","v":""},{"$f":"IF(G473=\"\",\"\",M509)","v":""},{"$f":"IF(AND(G473<>\"\",COUNTA(L509:M509)=2),TRUE,IF(AND(G473<>\"\",COUNTA(L509:M509)<2),CONST_ErrorOrMissing&C473,CONST_NA))","v":"n.a."}]
[]
[{"$nulls":3},"iii.",{"$f":"Translations!$B$1858","v":"Justification for use of default values (if relevant):"},{"$nulls":16},{"$f":"IF(AND(G473<>\"\",X511=FALSE,K511<>\"\"),TRUE,IF(AND(G473<>\"\",M508<>\"\",X511=FALSE,K511=\"\"),CONST_ErrorOrMissing&C473,CONST_NA))","v":"n.a."},null,{"$f":"IF(M508=\"\",FALSE,M508<>INDEX(CONST_MeasuredOrDefault,2))","v":false}]
[]
[]
[]
[null,null,{"$f":"C473+1","v":13},{"$f":"CONST_PurchPrecursor&\" \"&C515&\":\"","v":"Purchased precursor 13:"},null,null,{"$f":"IF(INDEX(CNTR_List_ExistPurchPrecNames,MATCH(R515,CNTR_ListPurchPrecID,0))=CONST_NA,\"\",INDEX(CNTR_List_ExistPurchPrecNames,MATCH(R515,CNTR_ListPurchPrecID,0)))","v":""},{"$nulls":4},{"$f":"IF(INDEX(CNTR_List_ExistPurchPrec,MATCH(R515,CNTR_ListPurchPrecID,0))=CONST_NA,\"\",INDEX(CNTR_List_ExistPurchPrec,MATCH(R515,CNTR_ListPurchPrecID,0)))","v":""},{"$nulls":5},{"$f":"INDEX(CNTR_ListPurchPrecID,C515)","v":"PP13"},{"$nulls":4},"Not relevant:",{"$f":"AND(CNTR_HasEntriesA,G515=\"\")","v":false}]
[]
[{"$nulls":3},"(a) ",{"$f":"Translations!$B$276","v":"Total purchased levels:"},null,null,{"$f":"Translations!$B$244","v":"Production route"},null,null,{"$f":"Translations!$B$221","v":"Unit"},{"$f":"Translations!$B$245","v":"Amounts"}]
[{"$nulls":3},1,{"$f":"IF(G515=\"\",\"\",G515)&IF(L515=\"\",\"\",\" | \"&L515)","v":""},null,null,{"$f":"IF(L515=\"\",\"\",INDEX(CONST_MATRIX_ProductionRoute,MATCH(L515,CONST_LIST_Goods,0),D518))","v":""},null,null,{"$f":"IF(L515=\"\",\"\",INDEX(CONST_LIST_GoodsUnit,MATCH(L515,CONST_LIST_Goods,0)))","v":""},{"$nulls":7},1]
[{"$nulls":3},2,{"$f":"IF(H519=CONST_NA,\"\",E518)","v":""},null,null,{"$f":"IF(L515=\"\",\"\",INDEX(CONST_MATRIX_ProductionRoute,MATCH(L515,CONST_LIST_Goods,0),D519))","v":""},null,null,{"$f":"IF(H519=CONST_NA,\"\",K518)","v":""},{"$nulls":7},2]
[{"$nulls":3},3,"",null,null,{"$f":"IF(L515=\"\",\"\",INDEX(CONST_MATRIX_ProductionRoute,MATCH(L515,CONST_LIST_Goods,0),D520))","v":""},null,null,"",{"$nulls":7},3]
[{"$nulls":3},4,"",null,null,{"$f":"IF(L515=\"\",\"\",INDEX(CONST_MATRIX_ProductionRoute,MATCH(L515,CONST_LIST_Goods,0),D521))","v":""},null,null,"",{"$nulls":7},4]
[{"$nulls":3},5,"",null,null,{"$f":"IF(L515=\"\",\"\",INDEX(CONST_MATRIX_ProductionRoute,MATCH(L515,CONST_LIST_Goods,0),D522))","v":""},null,null,"",{"$nulls":7},5]
[{"$nulls":3},6,"",null,null,{"$f":"IF(L515=\"\",\"\",INDEX(CONST_MATRIX_ProductionRoute,MATCH(L515,CONST_LIST_Goods,0),D523))","v":""},null,null,"",{"$nulls":7},6]
[{"$nulls":3},7,"",null,null,{"$f":"IF(L515=\"\",\"\",INDEX(CONST_MATRIX_ProductionRoute,MATCH(L515,CONST_LIST_Goods,0),D524))","v":""},null,null,"",{"$nulls":7},7]
[{"$nulls":3},8,"",null,null,{"$f":"IF(L515=\"\",\"\",INDEX(CONST_MATRIX_ProductionRoute,MATCH(L515,CONST_LIST_Goods,0),D525))","v":""},null,null,"",{"$nulls":7},8]
[{"$nulls":4},{"$f":"Translations!$B$277","v":"Total consumption within installation:"},{"$nulls":5},{"$f":"K518","v":""},{"$f":"IF(G515=\"\",\"\",SUM(L518:L525))","v":""},{"$nulls":5},{"$f":"CONST_CNTR_TotProd&G515","v":"TotProd_"},null,{"$f":"IF(G515=\"\",\"\",IF(SUM(L526)=0,100,L526))","v":""}]
[]
[{"$nulls":3},"(b)",{"$f":"Translations!$B$278","v":"Consumed in \"production processes\" within the installation:"},{"$nulls":5},{"$f":"Translations!$B$221","v":"Unit"},{"$f":"Translations!$B$245","v":"Amounts"},{"$nulls":6},"Numbering"]
[{"$nulls":3},1,{"$f":"IF(INDEX(CNTR_List_ExistProdProcNames,S529)=CONST_NA,\"\",INDEX(CNTR_List_ExistProdProcNames,S529))","v":""},{"$nulls":5},{"$f":"IF(E529=\"\",\"\",K526)","v":""},{"$nulls":6},{"$f":"CONST_PrecursorToGoodInput&G515&\"_\"&E529","v":"PrecToGood__"},{"$f":"D529","v":1},{"$f":"IF(G515=\"\",\"\",L529)","v":""},null,{"$f":"IF(AND(G515<>\"\",E529<>\"\",L529<>\"\"),TRUE,IF(AND(G515<>\"\",E529<>\"\",L529=\"\",X529=FALSE),CONST_ErrorOrMissing&C515,CONST_NA))","v":"n.a."},"cond.form.",{"$f":"IF(G515=\"\",FALSE,E529=\"\")","v":false}]
[{"$nulls":3},2,"",{"$nulls":5},{"$f":"IF(E530=\"\",\"\",K529)","v":""},{"$nulls":6},{"$f":"CONST_PrecursorToGoodInput&G515&\"_\"&E530","v":"PrecToGood__"},{"$f":"D530","v":2},{"$f":"IF(G515=\"\",\"\",L530)","v":""},null,{"$f":"IF(AND(G515<>\"\",E530<>\"\",L530<>\"\"),TRUE,IF(AND(G515<>\"\",E530<>\"\",L530=\"\",X530=FALSE),CONST_ErrorOrMissing&C515,CONST_NA))","v":"n.a."},null,{"$f":"IF(G515=\"\",FALSE,E530=\"\")","v":false}]
[{"$nulls":3},3,"",{"$nulls":5},{"$f":"IF(E531=\"\",\"\",K530)","v":""},{"$nulls":6},{"$f":"CONST_PrecursorToGoodInput&G515&\"_\"&E531","v":"PrecToGood__"},3,{"$f":"IF(G515=\"\",\"\",L531)","v":""},null,{"$f":"IF(AND(G515<>\"\",E531<>\"\",L531<>\"\"),TRUE,IF(AND(G515<>\"\",E531<>\"\",L531=\"\",X531=FALSE),CONST_ErrorOrMissing&C515,CONST_NA))","v":"n.a."},null,{"$f":"IF(G515=\"\",FALSE,E531=\"\")","v":false}]
[{"$nulls":3},4,"",{"$nulls":5},"",{"$nulls":6},{"$f":"CONST_PrecursorToGoodInput&G515&\"_\"&E532","v":"PrecToGood__"},4,{"$f":"IF(G515=\"\",\"\",L532)","v":""},null,{"$f":"IF(AND(G515<>\"\",E532<>\"\",L532<>\"\"),TRUE,IF(AND(G515<>\"\",E532<>\"\",L532=\"\",X532=FALSE),CONST_ErrorOrMissing&C515,CONST_NA))","v":"n.a."},null,{"$f":"IF(G515=\"\",FALSE,E532=\"\")","v":false}]
[{"$nulls":3},5,"",{"$nulls":5},"",{"$nulls":6},{"$f":"CONST_PrecursorToGoodInput&G515&\"_\"&E533","v":"PrecToGood__"},5,{"$f":"IF(G515=\"\",\"\",L533)","v":""},null,{"$f":"IF(AND(G515<>\"\",E533<>\"\",L533<>\"\"),TRUE,IF(AND(G515<>\"\",E533<>\"\",L533=\"\",X533=FALSE),CONST_ErrorOrMissing&C515,CONST_NA))","v":"n.a."},null,{"$f":"IF(G515=\"\",FALSE,E533=\"\")","v":false}]
[{"$nulls":3},6,"",{"$nulls":5},"",{"$nulls":6},{"$f":"CONST_PrecursorToGoodInput&G515&\"_\"&E534","v":"PrecToGood__"},6,{"$f":"IF(G515=\"\",\"\",L534)","v":""},null,{"$f":"IF(AND(G515<>\"\",E534<>\"\",L534<>\"\"),TRUE,IF(AND(G515<>\"\",E534<>\"\",L534=\"\",X534=FALSE),CONST_ErrorOrMissing&C515,CONST_NA))","v":"n.a."},null,{"$f":"IF(G515=\"\",FALSE,E534=\"\")","v":false}]
[{"$nulls":3},7,"",{"$nulls":5},"",{"$nulls":6},{"$f":"CONST_PrecursorToGoodInput&G515&\"_\"&E535","v":"PrecToGood__"},7,{"$f":"IF(G515=\"\",\"\",L535)","v":""},null,{"$f":"IF(AND(G515<>\"\",E535<>\"\",L535<>\"\"),TRUE,IF(AND(G515<>\"\",E535<>\"\",L535=\"\",X535=FALSE),CONST_ErrorOrMissing&C515,CONST_NA))","v":"n.a."},null,{"$f":"IF(G515=\"\",FALSE,E535=\"\")","v":false}]
[{"$nulls":3},8,"",{"$nulls":5},"",{"$nulls":6},{"$f":"CONST_PrecursorToGoodInput&G515&\"_\"&E536","v":"PrecToGood__"},8,{"$f":"IF(G515=\"\",\"\",L536)","v":""},null,{"$f":"IF(AND(G515<>\"\",E536<>\"\",L536<>\"\"),TRUE,IF(AND(G515<>\"\",E536<>\"\",L536=\"\",X536=FALSE),CONST_ErrorOrMissing&C515,CONST_NA))","v":"n.a."},null,{"$f":"IF(G515=\"\",FALSE,E536=\"\")","v":false}]
[{"$nulls":3},9,"",{"$nulls":5},"",{"$nulls":6},{"$f":"CONST_PrecursorToGoodInput&G515&\"_\"&E537","v":"PrecToGood__"},9,{"$f":"IF(G515=\"\",\"\",L537)","v":""},null,{"$f":"IF(AND(G515<>\"\",E537<>\"\",L537<>\"\"),TRUE,IF(AND(G515<>\"\",E537<>\"\",L537=\"\",X537=FALSE),CONST_ErrorOrMissing&C515,CONST_NA))","v":"n.a."},null,{"$f":"IF(G515=\"\",FALSE,E537=\"\")","v":false}]
[{"$nulls":3},10,"",{"$nulls":5},"",{"$nulls":6},{"$f":"CONST_PrecursorToGoodInput&G515&\"_\"&E538","v":"PrecToGood__"},10,{"$f":"IF(G515=\"\",\"\",L538)","v":""},null,{"$f":"IF(AND(G515<>\"\",E538<>\"\",L538<>\"\"),TRUE,IF(AND(G515<>\"\",E538<>\"\",L538=\"\",X538=FALSE),CONST_ErrorOrMissing&C515,CONST_NA))","v":"n.a."},null,{"$f":"IF(G515=\"\",FALSE,E538=\"\")","v":false}]
[{"$nulls":3},"(c)",{"$f":"Translations!$B$252","v":"Consumed for non-CBAM goods within the installation:"},{"$nulls":5},{"$f":"K526","v":""}]
[{"$nulls":3},"(d)",{"$f":"Translations!$B$253","v":"Control:"},{"$nulls":5},{"$f":"K539","v":""},{"$f":"IF(G515=\"\",\"\",SUM(L526)-SUM(L529:L539))","v":""}]
[]
[]
[{"$nulls":3},{"$f":"Translations!$B$279","v":"Specific embedded emissions:"},{"$nulls":5},{"$f":"IF(G515=\"\",\"\",G515)","v":""}]
[]
[{"$nulls":3},"(e)",{"$f":"Translations!$B$280","v":"Emissions embedded in this purchased precursor"}]
[{"$nulls":4},{"$f":"Translations!$B$281","v":"Please enter here the values and sources for the specific embedded direct and indirect emissions, as obtained from the supplier."}]
[{"$nulls":4},{"$f":"Translations!$B$282","v":"For the SEE (direct), the 'Type of value' relates to whether the direct emissions are measured, or whether a default value provided by the European Commission was applied."}]
[{"$nulls":4},{"$f":"Translations!$B$283","v":"In order to obtain these data and information, you may want to ask your supplier to fill in an empty copy of this communication template."}]
[{"$nulls":4},{"$f":"Translations!$B$284","v":"Parameter:"},{"$nulls":5},{"$f":"Translations!$B$221","v":"Unit"},{"$f":"Translations!$B$260","v":"Value"},{"$f":"Translations!$B$285","v":"Source"}]
[{"$nulls":3},"i.",{"$f":"Translations!$B$286","v":"Specific embedded direct emissions (SEE (direct) )"},{"$nulls":5},{"$f":"IF(L515=\"\",\"\",CONST_tCO2eq&\"/\"&K526)","v":""},{"$nulls":6},{"$f":"CONST_PurchPrecDefaultUsed&G515","v":"PurchPrecDef_"},{"$f":"CONST_CNTR_EmbedEmDir&G515","v":"EmbedEmDir_"},{"$f":"IF(G515=\"\",\"\",SUM(T526)*SUM(L550))","v":""},{"$f":"IF(G515=\"\",\"\",IF(M550=\"\",CONST_ERR_Incomplete,MATCH(M550,CONST_MeasuredOrDefault,0)=2))","v":""},{"$f":"IF(AND(G515<>\"\",COUNTA(L550:M550)=2),TRUE,IF(AND(G515<>\"\",COUNTA(L550:M550)<2),CONST_ErrorOrMissing&C515,CONST_NA))","v":"n.a."}]
[{"$nulls":3},"ii.",{"$f":"Translations!$B$287","v":"Specific embedded indirect emissions (SEE (indirect) )"},{"$nulls":5},{"$f":"K550","v":""},{"$nulls":6},{"$f":"CONST_CNTR_ElecEFMethod&G515","v":"ElecEFMeth_"},{"$f":"CONST_CNTR_EmbedEmInDir&G515","v":"EmbedEmInDir_"},{"$f":"IF(G515=\"\",\"\",SUM(T526)*SUM(L551))","v":""},{"$f":"IF(G515=\"\",\"\",M551)","v":""},{"$f":"IF(AND(G515<>\"\",COUNTA(L551:M551)=2),TRUE,IF(AND(G515<>\"\",COUNTA(L551:M551)<2),CONST_ErrorOrMissing&C515,CONST_NA))","v":"n.a."}]
[]
[{"$nulls":3},"iii.",{"$f":"Translations!$B$1858","v":"Justification for use of default values (if relevant):"},{"$nulls":16},{"$f":"IF(AND(G515<>\"\",X553=FALSE,K553<>\"\"),TRUE,IF(AND(G515<>\"\",M550<>\"\",X553=FALSE,K553=\"\"),CONST_ErrorOrMissing&C515,CONST_NA))","v":"n.a."},null,{"$f":"IF(M550=\"\",FALSE,M550<>INDEX(CONST_MeasuredOrDefault,2))","v":false}]
[]
[]
[]
[null,null,{"$f":"C515+1","v":14},{"$f":"CONST_PurchPrecursor&\" \"&C557&\":\"","v":"Purchased precursor 14:"},null,null,{"$f":"IF(INDEX(CNTR_List_ExistPurchPrecNames,MATCH(R557,CNTR_ListPurchPrecID,0))=CONST_NA,\"\",INDEX(CNTR_List_ExistPurchPrecNames,MATCH(R557,CNTR_ListPurchPrecID,0)))","v":""},{"$nulls":4},{"$f":"IF(INDEX(CNTR_List_ExistPurchPrec,MATCH(R557,CNTR_ListPurchPrecID,0))=CONST_NA,\"\",INDEX(CNTR_List_ExistPurchPrec,MATCH(R557,CNTR_ListPurchPrecID,0)))","v":""},{"$nulls":5},{"$f":"INDEX(CNTR_ListPurchPrecID,C557)","v":"PP14"},{"$nulls":4},"Not relevant:",{"$f":"AND(CNTR_HasEntriesA,G557=\"\")","v":false}]
[]
[{"$nulls":3},"(a) ",{"$f":"Translations!$B$276","v":"Total purchased levels:"},null,null,{"$f":"Translations!$B$244","v":"Production route"},null,null,{"$f":"Translations!$B$221","v":"Unit"},{"$f":"Translations!$B$245","v":"Amounts"}]
[{"$nulls":3},1,{"$f":"IF(G557=\"\",\"\",G557)&IF(L557=\"\",\"\",\" | \"&L557)","v":""},null,null,{"$f":"IF(L557=\"\",\"\",INDEX(CONST_MATRIX_ProductionRoute,MATCH(L557,CONST_LIST_Goods,0),D560))","v":""},null,null,{"$f":"IF(L557=\"\",\"\",INDEX(CONST_LIST_GoodsUnit,MATCH(L557,CONST_LIST_Goods,0)))","v":""},{"$nulls":7},1]
[{"$nulls":3},2,{"$f":"IF(H561=CONST_NA,\"\",E560)","v":""},null,null,{"$f":"IF(L557=\"\",\"\",INDEX(CONST_MATRIX_ProductionRoute,MATCH(L557,CONST_LIST_Goods,0),D561))","v":""},null,null,{"$f":"IF(H561=CONST_NA,\"\",K560)","v":""},{"$nulls":7},2]
[{"$nulls":3},3,"",null,null,{"$f":"IF(L557=\"\",\"\",INDEX(CONST_MATRIX_ProductionRoute,MATCH(L557,CONST_LIST_Goods,0),D562))","v":""},null,null,"",{"$nulls":7},3]
[{"$nulls":3},4,"",null,null,{"$f":"IF(L557=\"\",\"\",INDEX(CONST_MATRIX_ProductionRoute,MATCH(L557,CONST_LIST_Goods,0),D563))","v":""},null,null,"",{"$nulls":7},4]
[{"$nulls":3},5,"",null,null,{"$f":"IF(L557=\"\",\"\",INDEX(CONST_MATRIX_ProductionRoute,MATCH(L557,CONST_LIST_Goods,0),D564))","v":""},null,null,"",{"$nulls":7},5]
[{"$nulls":3},6,"",null,null,{"$f":"IF(L557=\"\",\"\",INDEX(CONST_MATRIX_ProductionRoute,MATCH(L557,CONST_LIST_Goods,0),D565))","v":""},null,null,"",{"$nulls":7},6]
[{"$nulls":3},7,"",null,null,{"$f":"IF(L557=\"\",\"\",INDEX(CONST_MATRIX_ProductionRoute,MATCH(L557,CONST_LIST_Goods,0),D566))","v":""},null,null,"",{"$nulls":7},7]
[{"$nulls":3},8,"",null,null,{"$f":"IF(L557=\"\",\"\",INDEX(CONST_MATRIX_ProductionRoute,MATCH(L557,CONST_LIST_Goods,0),D567))","v":""},null,null,"",{"$nulls":7},8]
[{"$nulls":4},{"$f":"Translations!$B$277","v":"Total consumption within installation:"},{"$nulls":5},{"$f":"K560","v":""},{"$f":"IF(G557=\"\",\"\",SUM(L560:L567))","v":""},{"$nulls":5},{"$f":"CONST_CNTR_TotProd&G557","v":"TotProd_"},null,{"$f":"IF(G557=\"\",\"\",IF(SUM(L568)=0,100,L568))","v":""}]
[]
[{"$nulls":3},"(b)",{"$f":"Translations!$B$278","v":"Consumed in \"production processes\" within the installation:"},{"$nulls":5},{"$f":"Translations!$B$221","v":"Unit"},{"$f":"Translations!$B$245","v":"Amounts"},{"$nulls":6},"Numbering"]
[{"$nulls":3},1,{"$f":"IF(INDEX(CNTR_List_ExistProdProcNames,S571)=CONST_NA,\"\",INDEX(CNTR_List_ExistProdProcNames,S571))","v":""},{"$nulls":5},{"$f":"IF(E571=\"\",\"\",K568)","v":""},{"$nulls":6},{"$f":"CONST_PrecursorToGoodInput&G557&\"_\"&E571","v":"PrecToGood__"},{"$f":"D571","v":1},{"$f":"IF(G557=\"\",\"\",L571)","v":""},null,{"$f":"IF(AND(G557<>\"\",E571<>\"\",L571<>\"\"),TRUE,IF(AND(G557<>\"\",E571<>\"\",L571=\"\",X571=FALSE),CONST_ErrorOrMissing&C557,CONST_NA))","v":"n.a."},"cond.form.",{"$f":"IF(G557=\"\",FALSE,E571=\"\")","v":false}]
[{"$nulls":3},2,"",{"$nulls":5},{"$f":"IF(E572=\"\",\"\",K571)","v":""},{"$nulls":6},{"$f":"CONST_PrecursorToGoodInput&G557&\"_\"&E572","v":"PrecToGood__"},{"$f":"D572","v":2},{"$f":"IF(G557=\"\",\"\",L572)","v":""},null,{"$f":"IF(AND(G557<>\"\",E572<>\"\",L572<>\"\"),TRUE,IF(AND(G557<>\"\",E572<>\"\",L572=\"\",X572=FALSE),CONST_ErrorOrMissing&C557,CONST_NA))","v":"n.a."},null,{"$f":"IF(G557=\"\",FALSE,E572=\"\")","v":false}]
[{"$nulls":3},3,"",{"$nulls":5},{"$f":"IF(E573=\"\",\"\",K572)","v":""},{"$nulls":6},{"$f":"CONST_PrecursorToGoodInput&G557&\"_\"&E573","v":"PrecToGood__"},3,{"$f":"IF(G557=\"\",\"\",L573)","v":""},null,{"$f":"IF(AND(G557<>\"\",E573<>\"\",L573<>\"\"),TRUE,IF(AND(G557<>\"\",E573<>\"\",L573=\"\",X573=FALSE),CONST_ErrorOrMissing&C557,CONST_NA))","v":"n.a."},null,{"$f":"IF(G557=\"\",FALSE,E573=\"\")","v":false}]
[{"$nulls":3},4,"",{"$nulls":5},"",{"$nulls":6},{"$f":"CONST_PrecursorToGoodInput&G557&\"_\"&E574","v":"PrecToGood__"},4,{"$f":"IF(G557=\"\",\"\",L574)","v":""},null,{"$f":"IF(AND(G557<>\"\",E574<>\"\",L574<>\"\"),TRUE,IF(AND(G557<>\"\",E574<>\"\",L574=\"\",X574=FALSE),CONST_ErrorOrMissing&C557,CONST_NA))","v":"n.a."},null,{"$f":"IF(G557=\"\",FALSE,E574=\"\")","v":false}]
[{"$nulls":3},5,"",{"$nulls":5},"",{"$nulls":6},{"$f":"CONST_PrecursorToGoodInput&G557&\"_\"&E575","v":"PrecToGood__"},5,{"$f":"IF(G557=\"\",\"\",L575)","v":""},null,{"$f":"IF(AND(G557<>\"\",E575<>\"\",L575<>\"\"),TRUE,IF(AND(G557<>\"\",E575<>\"\",L575=\"\",X575=FALSE),CONST_ErrorOrMissing&C557,CONST_NA))","v":"n.a."},null,{"$f":"IF(G557=\"\",FALSE,E575=\"\")","v":false}]
[{"$nulls":3},6,"",{"$nulls":5},"",{"$nulls":6},{"$f":"CONST_PrecursorToGoodInput&G557&\"_\"&E576","v":"PrecToGood__"},6,{"$f":"IF(G557=\"\",\"\",L576)","v":""},null,{"$f":"IF(AND(G557<>\"\",E576<>\"\",L576<>\"\"),TRUE,IF(AND(G557<>\"\",E576<>\"\",L576=\"\",X576=FALSE),CONST_ErrorOrMissing&C557,CONST_NA))","v":"n.a."},null,{"$f":"IF(G557=\"\",FALSE,E576=\"\")","v":false}]
[{"$nulls":3},7,"",{"$nulls":5},"",{"$nulls":6},{"$f":"CONST_PrecursorToGoodInput&G557&\"_\"&E577","v":"PrecToGood__"},7,{"$f":"IF(G557=\"\",\"\",L577)","v":""},null,{"$f":"IF(AND(G557<>\"\",E577<>\"\",L577<>\"\"),TRUE,IF(AND(G557<>\"\",E577<>\"\",L577=\"\",X577=FALSE),CONST_ErrorOrMissing&C557,CONST_NA))","v":"n.a."},null,{"$f":"IF(G557=\"\",FALSE,E577=\"\")","v":false}]
[{"$nulls":3},8,"",{"$nulls":5},"",{"$nulls":6},{"$f":"CONST_PrecursorToGoodInput&G557&\"_\"&E578","v":"PrecToGood__"},8,{"$f":"IF(G557=\"\",\"\",L578)","v":""},null,{"$f":"IF(AND(G557<>\"\",E578<>\"\",L578<>\"\"),TRUE,IF(AND(G557<>\"\",E578<>\"\",L578=\"\",X578=FALSE),CONST_ErrorOrMissing&C557,CONST_NA))","v":"n.a."},null,{"$f":"IF(G557=\"\",FALSE,E578=\"\")","v":false}]
[{"$nulls":3},9,"",{"$nulls":5},"",{"$nulls":6},{"$f":"CONST_PrecursorToGoodInput&G557&\"_\"&E579","v":"PrecToGood__"},9,{"$f":"IF(G557=\"\",\"\",L579)","v":""},null,{"$f":"IF(AND(G557<>\"\",E579<>\"\",L579<>\"\"),TRUE,IF(AND(G557<>\"\",E579<>\"\",L579=\"\",X579=FALSE),CONST_ErrorOrMissing&C557,CONST_NA))","v":"n.a."},null,{"$f":"IF(G557=\"\",FALSE,E579=\"\")","v":false}]
[{"$nulls":3},10,"",{"$nulls":5},"",{"$nulls":6},{"$f":"CONST_PrecursorToGoodInput&G557&\"_\"&E580","v":"PrecToGood__"},10,{"$f":"IF(G557=\"\",\"\",L580)","v":""},null,{"$f":"IF(AND(G557<>\"\",E580<>\"\",L580<>\"\"),TRUE,IF(AND(G557<>\"\",E580<>\"\",L580=\"\",X580=FALSE),CONST_ErrorOrMissing&C557,CONST_NA))","v":"n.a."},null,{"$f":"IF(G557=\"\",FALSE,E580=\"\")","v":false}]
[{"$nulls":3},"(c)",{"$f":"Translations!$B$252","v":"Consumed for non-CBAM goods within the installation:"},{"$nulls":5},{"$f":"K568","v":""}]
[{"$nulls":3},"(d)",{"$f":"Translations!$B$253","v":"Control:"},{"$nulls":5},{"$f":"K581","v":""},{"$f":"IF(G557=\"\",\"\",SUM(L568)-SUM(L571:L581))","v":""}]
[]
[]
[{"$nulls":3},{"$f":"Translations!$B$279","v":"Specific embedded emissions:"},{"$nulls":5},{"$f":"IF(G557=\"\",\"\",G557)","v":""}]
[]
[{"$nulls":3},"(e)",{"$f":"Translations!$B$280","v":"Emissions embedded in this purchased precursor"}]
[{"$nulls":4},{"$f":"Translations!$B$281","v":"Please enter here the values and sources for the specific embedded direct and indirect emissions, as obtained from the supplier."}]
[{"$nulls":4},{"$f":"Translations!$B$282","v":"For the SEE (direct), the 'Type of value' relates to whether the direct emissions are measured, or whether a default value provided by the European Commission was applied."}]
[{"$nulls":4},{"$f":"Translations!$B$283","v":"In order to obtain these data and information, you may want to ask your supplier to fill in an empty copy of this communication template."}]
[{"$nulls":4},{"$f":"Translations!$B$284","v":"Parameter:"},{"$nulls":5},{"$f":"Translations!$B$221","v":"Unit"},{"$f":"Translations!$B$260","v":"Value"},{"$f":"Translations!$B$285","v":"Source"}]
[{"$nulls":3},"i.",{"$f":"Translations!$B$286","v":"Specific embedded direct emissions (SEE (direct) )"},{"$nulls":5},{"$f":"IF(L557=\"\",\"\",CONST_tCO2eq&\"/\"&K568)","v":""},{"$nulls":6},{"$f":"CONST_PurchPrecDefaultUsed&G557","v":"PurchPrecDef_"},{"$f":"CONST_CNTR_EmbedEmDir&G557","v":"EmbedEmDir_"},{"$f":"IF(G557=\"\",\"\",SUM(T568)*SUM(L592))","v":""},{"$f":"IF(G557=\"\",\"\",IF(M592=\"\",CONST_ERR_Incomplete,MATCH(M592,CONST_MeasuredOrDefault,0)=2))","v":""},{"$f":"IF(AND(G557<>\"\",COUNTA(L592:M592)=2),TRUE,IF(AND(G557<>\"\",COUNTA(L592:M592)<2),CONST_ErrorOrMissing&C557,CONST_NA))","v":"n.a."}]
[{"$nulls":3},"ii.",{"$f":"Translations!$B$287","v":"Specific embedded indirect emissions (SEE (indirect) )"},{"$nulls":5},{"$f":"K592","v":""},{"$nulls":6},{"$f":"CONST_CNTR_ElecEFMethod&G557","v":"ElecEFMeth_"},{"$f":"CONST_CNTR_EmbedEmInDir&G557","v":"EmbedEmInDir_"},{"$f":"IF(G557=\"\",\"\",SUM(T568)*SUM(L593))","v":""},{"$f":"IF(G557=\"\",\"\",M593)","v":""},{"$f":"IF(AND(G557<>\"\",COUNTA(L593:M593)=2),TRUE,IF(AND(G557<>\"\",COUNTA(L593:M593)<2),CONST_ErrorOrMissing&C557,CONST_NA))","v":"n.a."}]
[]
[{"$nulls":3},"iii.",{"$f":"Translations!$B$1858","v":"Justification for use of default values (if relevant):"},{"$nulls":16},{"$f":"IF(AND(G557<>\"\",X595=FALSE,K595<>\"\"),TRUE,IF(AND(G557<>\"\",M592<>\"\",X595=FALSE,K595=\"\"),CONST_ErrorOrMissing&C557,CONST_NA))","v":"n.a."},null,{"$f":"IF(M592=\"\",FALSE,M592<>INDEX(CONST_MeasuredOrDefault,2))","v":false}]
[]
[]
[]
[null,null,{"$f":"C557+1","v":15},{"$f":"CONST_PurchPrecursor&\" \"&C599&\":\"","v":"Purchased precursor 15:"},null,null,{"$f":"IF(INDEX(CNTR_List_ExistPurchPrecNames,MATCH(R599,CNTR_ListPurchPrecID,0))=CONST_NA,\"\",INDEX(CNTR_List_ExistPurchPrecNames,MATCH(R599,CNTR_ListPurchPrecID,0)))","v":""},{"$nulls":4},{"$f":"IF(INDEX(CNTR_List_ExistPurchPrec,MATCH(R599,CNTR_ListPurchPrecID,0))=CONST_NA,\"\",INDEX(CNTR_List_ExistPurchPrec,MATCH(R599,CNTR_ListPurchPrecID,0)))","v":""},{"$nulls":5},{"$f":"INDEX(CNTR_ListPurchPrecID,C599)","v":"PP15"},{"$nulls":4},"Not relevant:",{"$f":"AND(CNTR_HasEntriesA,G599=\"\")","v":false}]
[]
[{"$nulls":3},"(a) ",{"$f":"Translations!$B$276","v":"Total purchased levels:"},null,null,{"$f":"Translations!$B$244","v":"Production route"},null,null,{"$f":"Translations!$B$221","v":"Unit"},{"$f":"Translations!$B$245","v":"Amounts"}]
[{"$nulls":3},1,{"$f":"IF(G599=\"\",\"\",G599)&IF(L599=\"\",\"\",\" | \"&L599)","v":""},null,null,{"$f":"IF(L599=\"\",\"\",INDEX(CONST_MATRIX_ProductionRoute,MATCH(L599,CONST_LIST_Goods,0),D602))","v":""},null,null,{"$f":"IF(L599=\"\",\"\",INDEX(CONST_LIST_GoodsUnit,MATCH(L599,CONST_LIST_Goods,0)))","v":""},{"$nulls":7},1]
[{"$nulls":3},2,{"$f":"IF(H603=CONST_NA,\"\",E602)","v":""},null,null,{"$f":"IF(L599=\"\",\"\",INDEX(CONST_MATRIX_ProductionRoute,MATCH(L599,CONST_LIST_Goods,0),D603))","v":""},null,null,{"$f":"IF(H603=CONST_NA,\"\",K602)","v":""},{"$nulls":7},2]
[{"$nulls":3},3,"",null,null,{"$f":"IF(L599=\"\",\"\",INDEX(CONST_MATRIX_ProductionRoute,MATCH(L599,CONST_LIST_Goods,0),D604))","v":""},null,null,"",{"$nulls":7},3]
[{"$nulls":3},4,"",null,null,{"$f":"IF(L599=\"\",\"\",INDEX(CONST_MATRIX_ProductionRoute,MATCH(L599,CONST_LIST_Goods,0),D605))","v":""},null,null,"",{"$nulls":7},4]
[{"$nulls":3},5,"",null,null,{"$f":"IF(L599=\"\",\"\",INDEX(CONST_MATRIX_ProductionRoute,MATCH(L599,CONST_LIST_Goods,0),D606))","v":""},null,null,"",{"$nulls":7},5]
[{"$nulls":3},6,"",null,null,{"$f":"IF(L599=\"\",\"\",INDEX(CONST_MATRIX_ProductionRoute,MATCH(L599,CONST_LIST_Goods,0),D607))","v":""},null,null,"",{"$nulls":7},6]
[{"$nulls":3},7,"",null,null,{"$f":"IF(L599=\"\",\"\",INDEX(CONST_MATRIX_ProductionRoute,MATCH(L599,CONST_LIST_Goods,0),D608))","v":""},null,null,"",{"$nulls":7},7]
[{"$nulls":3},8,"",null,null,{"$f":"IF(L599=\"\",\"\",INDEX(CONST_MATRIX_ProductionRoute,MATCH(L599,CONST_LIST_Goods,0),D609))","v":""},null,null,"",{"$nulls":7},8]
[{"$nulls":4},{"$f":"Translations!$B$277","v":"Total consumption within installation:"},{"$nulls":5},{"$f":"K602","v":""},{"$f":"IF(G599=\"\",\"\",SUM(L602:L609))","v":""},{"$nulls":5},{"$f":"CONST_CNTR_TotProd&G599","v":"TotProd_"},null,{"$f":"IF(G599=\"\",\"\",IF(SUM(L610)=0,100,L610))","v":""}]
[]
[{"$nulls":3},"(b)",{"$f":"Translations!$B$278","v":"Consumed in \"production processes\" within the installation:"},{"$nulls":5},{"$f":"Translations!$B$221","v":"Unit"},{"$f":"Translations!$B$245","v":"Amounts"},{"$nulls":6},"Numbering"]
[{"$nulls":3},1,{"$f":"IF(INDEX(CNTR_List_ExistProdProcNames,S613)=CONST_NA,\"\",INDEX(CNTR_List_ExistProdProcNames,S613))","v":""},{"$nulls":5},{"$f":"IF(E613=\"\",\"\",K610)","v":""},{"$nulls":6},{"$f":"CONST_PrecursorToGoodInput&G599&\"_\"&E613","v":"PrecToGood__"},{"$f":"D613","v":1},{"$f":"IF(G599=\"\",\"\",L613)","v":""},null,{"$f":"IF(AND(G599<>\"\",E613<>\"\",L613<>\"\"),TRUE,IF(AND(G599<>\"\",E613<>\"\",L613=\"\",X613=FALSE),CONST_ErrorOrMissing&C599,CONST_NA))","v":"n.a."},"cond.form.",{"$f":"IF(G599=\"\",FALSE,E613=\"\")","v":false}]
[{"$nulls":3},2,"",{"$nulls":5},{"$f":"IF(E614=\"\",\"\",K613)","v":""},{"$nulls":6},{"$f":"CONST_PrecursorToGoodInput&G599&\"_\"&E614","v":"PrecToGood__"},{"$f":"D614","v":2},{"$f":"IF(G599=\"\",\"\",L614)","v":""},null,{"$f":"IF(AND(G599<>\"\",E614<>\"\",L614<>\"\"),TRUE,IF(AND(G599<>\"\",E614<>\"\",L614=\"\",X614=FALSE),CONST_ErrorOrMissing&C599,CONST_NA))","v":"n.a."},null,{"$f":"IF(G599=\"\",FALSE,E614=\"\")","v":false}]
[{"$nulls":3},3,"",{"$nulls":5},{"$f":"IF(E615=\"\",\"\",K614)","v":""},{"$nulls":6},{"$f":"CONST_PrecursorToGoodInput&G599&\"_\"&E615","v":"PrecToGood__"},3,{"$f":"IF(G599=\"\",\"\",L615)","v":""},null,{"$f":"IF(AND(G599<>\"\",E615<>\"\",L615<>\"\"),TRUE,IF(AND(G599<>\"\",E615<>\"\",L615=\"\",X615=FALSE),CONST_ErrorOrMissing&C599,CONST_NA))","v":"n.a."},null,{"$f":"IF(G599=\"\",FALSE,E615=\"\")","v":false}]
[{"$nulls":3},4,"",{"$nulls":5},"",{"$nulls":6},{"$f":"CONST_PrecursorToGoodInput&G599&\"_\"&E616","v":"PrecToGood__"},4,{"$f":"IF(G599=\"\",\"\",L616)","v":""},null,{"$f":"IF(AND(G599<>\"\",E616<>\"\",L616<>\"\"),TRUE,IF(AND(G599<>\"\",E616<>\"\",L616=\"\",X616=FALSE),CONST_ErrorOrMissing&C599,CONST_NA))","v":"n.a."},null,{"$f":"IF(G599=\"\",FALSE,E616=\"\")","v":false}]
[{"$nulls":3},5,"",{"$nulls":5},"",{"$nulls":6},{"$f":"CONST_PrecursorToGoodInput&G599&\"_\"&E617","v":"PrecToGood__"},5,{"$f":"IF(G599=\"\",\"\",L617)","v":""},null,{"$f":"IF(AND(G599<>\"\",E617<>\"\",L617<>\"\"),TRUE,IF(AND(G599<>\"\",E617<>\"\",L617=\"\",X617=FALSE),CONST_ErrorOrMissing&C599,CONST_NA))","v":"n.a."},null,{"$f":"IF(G599=\"\",FALSE,E617=\"\")","v":false}]
[{"$nulls":3},6,"",{"$nulls":5},"",{"$nulls":6},{"$f":"CONST_PrecursorToGoodInput&G599&\"_\"&E618","v":"PrecToGood__"},6,{"$f":"IF(G599=\"\",\"\",L618)","v":""},null,{"$f":"IF(AND(G599<>\"\",E618<>\"\",L618<>\"\"),TRUE,IF(AND(G599<>\"\",E618<>\"\",L618=\"\",X618=FALSE),CONST_ErrorOrMissing&C599,CONST_NA))","v":"n.a."},null,{"$f":"IF(G599=\"\",FALSE,E618=\"\")","v":false}]
[{"$nulls":3},7,"",{"$nulls":5},"",{"$nulls":6},{"$f":"CONST_PrecursorToGoodInput&G599&\"_\"&E619","v":"PrecToGood__"},7,{"$f":"IF(G599=\"\",\"\",L619)","v":""},null,{"$f":"IF(AND(G599<>\"\",E619<>\"\",L619<>\"\"),TRUE,IF(AND(G599<>\"\",E619<>\"\",L619=\"\",X619=FALSE),CONST_ErrorOrMissing&C599,CONST_NA))","v":"n.a."},null,{"$f":"IF(G599=\"\",FALSE,E619=\"\")","v":false}]
[{"$nulls":3},8,"",{"$nulls":5},"",{"$nulls":6},{"$f":"CONST_PrecursorToGoodInput&G599&\"_\"&E620","v":"PrecToGood__"},8,{"$f":"IF(G599=\"\",\"\",L620)","v":""},null,{"$f":"IF(AND(G599<>\"\",E620<>\"\",L620<>\"\"),TRUE,IF(AND(G599<>\"\",E620<>\"\",L620=\"\",X620=FALSE),CONST_ErrorOrMissing&C599,CONST_NA))","v":"n.a."},null,{"$f":"IF(G599=\"\",FALSE,E620=\"\")","v":false}]
[{"$nulls":3},9,"",{"$nulls":5},"",{"$nulls":6},{"$f":"CONST_PrecursorToGoodInput&G599&\"_\"&E621","v":"PrecToGood__"},9,{"$f":"IF(G599=\"\",\"\",L621)","v":""},null,{"$f":"IF(AND(G599<>\"\",E621<>\"\",L621<>\"\"),TRUE,IF(AND(G599<>\"\",E621<>\"\",L621=\"\",X621=FALSE),CONST_ErrorOrMissing&C599,CONST_NA))","v":"n.a."},null,{"$f":"IF(G599=\"\",FALSE,E621=\"\")","v":false}]
[{"$nulls":3},10,"",{"$nulls":5},"",{"$nulls":6},{"$f":"CONST_PrecursorToGoodInput&G599&\"_\"&E622","v":"PrecToGood__"},10,{"$f":"IF(G599=\"\",\"\",L622)","v":""},null,{"$f":"IF(AND(G599<>\"\",E622<>\"\",L622<>\"\"),TRUE,IF(AND(G599<>\"\",E622<>\"\",L622=\"\",X622=FALSE),CONST_ErrorOrMissing&C599,CONST_NA))","v":"n.a."},null,{"$f":"IF(G599=\"\",FALSE,E622=\"\")","v":false}]
[{"$nulls":3},"(c)",{"$f":"Translations!$B$252","v":"Consumed for non-CBAM goods within the installation:"},{"$nulls":5},{"$f":"K610","v":""}]
[{"$nulls":3},"(d)",{"$f":"Translations!$B$253","v":"Control:"},{"$nulls":5},{"$f":"K623","v":""},{"$f":"IF(G599=\"\",\"\",SUM(L610)-SUM(L613:L623))","v":""}]
[]
[]
[{"$nulls":3},{"$f":"Translations!$B$279","v":"Specific embedded emissions:"},{"$nulls":5},{"$f":"IF(G599=\"\",\"\",G599)","v":""}]
[]
[{"$nulls":3},"(e)",{"$f":"Translations!$B$280","v":"Emissions embedded in this purchased precursor"}]
[{"$nulls":4},{"$f":"Translations!$B$281","v":"Please enter here the values and sources for the specific embedded direct and indirect emissions, as obtained from the supplier."}]
[{"$nulls":4},{"$f":"Translations!$B$282","v":"For the SEE (direct), the 'Type of value' relates to whether the direct emissions are measured, or whether a default value provided by the European Commission was applied."}]
[{"$nulls":4},{"$f":"Translations!$B$283","v":"In order to obtain these data and information, you may want to ask your supplier to fill in an empty copy of this communication template."}]
[{"$nulls":4},{"$f":"Translations!$B$284","v":"Parameter:"},{"$nulls":5},{"$f":"Translations!$B$221","v":"Unit"},{"$f":"Translations!$B$260","v":"Value"},{"$f":"Translations!$B$285","v":"Source"}]
[{"$nulls":3},"i.",{"$f":"Translations!$B$286","v":"Specific embedded direct emissions (SEE (direct) )"},{"$nulls":5},{"$f":"IF(L599=\"\",\"\",CONST_tCO2eq&\"/\"&K610)","v":""},{"$nulls":6},{"$f":"CONST_PurchPrecDefaultUsed&G599","v":"PurchPrecDef_"},{"$f":"CONST_CNTR_EmbedEmDir&G599","v":"EmbedEmDir_"},{"$f":"IF(G599=\"\",\"\",SUM(T610)*SUM(L634))","v":""},{"$f":"IF(G599=\"\",\"\",IF(M634=\"\",CONST_ERR_Incomplete,MATCH(M634,CONST_MeasuredOrDefault,0)=2))","v":""},{"$f":"IF(AND(G599<>\"\",COUNTA(L634:M634)=2),TRUE,IF(AND(G599<>\"\",COUNTA(L634:M634)<2),CONST_ErrorOrMissing&C599,CONST_NA))","v":"n.a."}]
[{"$nulls":3},"ii.",{"$f":"Translations!$B$287","v":"Specific embedded indirect emissions (SEE (indirect) )"},{"$nulls":5},{"$f":"K634","v":""},{"$nulls":6},{"$f":"CONST_CNTR_ElecEFMethod&G599","v":"ElecEFMeth_"},{"$f":"CONST_CNTR_EmbedEmInDir&G599","v":"EmbedEmInDir_"},{"$f":"IF(G599=\"\",\"\",SUM(T610)*SUM(L635))","v":""},{"$f":"IF(G599=\"\",\"\",M635)","v":""},{"$f":"IF(AND(G599<>\"\",COUNTA(L635:M635)=2),TRUE,IF(AND(G599<>\"\",COUNTA(L635:M635)<2),CONST_ErrorOrMissing&C599,CONST_NA))","v":"n.a."}]
[]
[{"$nulls":3},"iii.",{"$f":"Translations!$B$1858","v":"Justification for use of default values (if relevant):"},{"$nulls":16},{"$f":"IF(AND(G599<>\"\",X637=FALSE,K637<>\"\"),TRUE,IF(AND(G599<>\"\",M634<>\"\",X637=FALSE,K637=\"\"),CONST_ErrorOrMissing&C599,CONST_NA))","v":"n.a."},null,{"$f":"IF(M634=\"\",FALSE,M634<>INDEX(CONST_MeasuredOrDefault,2))","v":false}]
[]
[]
[]
[null,null,{"$f":"C599+1","v":16},{"$f":"CONST_PurchPrecursor&\" \"&C641&\":\"","v":"Purchased precursor 16:"},null,null,{"$f":"IF(INDEX(CNTR_List_ExistPurchPrecNames,MATCH(R641,CNTR_ListPurchPrecID,0))=CONST_NA,\"\",INDEX(CNTR_List_ExistPurchPrecNames,MATCH(R641,CNTR_ListPurchPrecID,0)))","v":""},{"$nulls":4},{"$f":"IF(INDEX(CNTR_List_ExistPurchPrec,MATCH(R641,CNTR_ListPurchPrecID,0))=CONST_NA,\"\",INDEX(CNTR_List_ExistPurchPrec,MATCH(R641,CNTR_ListPurchPrecID,0)))","v":""},{"$nulls":5},{"$f":"INDEX(CNTR_ListPurchPrecID,C641)","v":"PP16"},{"$nulls":4},"Not relevant:",{"$f":"AND(CNTR_HasEntriesA,G641=\"\")","v":false}]
[]
[{"$nulls":3},"(a) ",{"$f":"Translations!$B$276","v":"Total purchased levels:"},null,null,{"$f":"Translations!$B$244","v":"Production route"},null,null,{"$f":"Translations!$B$221","v":"Unit"},{"$f":"Translations!$B$245","v":"Amounts"}]
[{"$nulls":3},1,{"$f":"IF(G641=\"\",\"\",G641)&IF(L641=\"\",\"\",\" | \"&L641)","v":""},null,null,{"$f":"IF(L641=\"\",\"\",INDEX(CONST_MATRIX_ProductionRoute,MATCH(L641,CONST_LIST_Goods,0),D644))","v":""},null,null,{"$f":"IF(L641=\"\",\"\",INDEX(CONST_LIST_GoodsUnit,MATCH(L641,CONST_LIST_Goods,0)))","v":""},{"$nulls":7},1]
[{"$nulls":3},2,{"$f":"IF(H645=CONST_NA,\"\",E644)","v":""},null,null,{"$f":"IF(L641=\"\",\"\",INDEX(CONST_MATRIX_ProductionRoute,MATCH(L641,CONST_LIST_Goods,0),D645))","v":""},null,null,{"$f":"IF(H645=CONST_NA,\"\",K644)","v":""},{"$nulls":7},2]
[{"$nulls":3},3,"",null,null,{"$f":"IF(L641=\"\",\"\",INDEX(CONST_MATRIX_ProductionRoute,MATCH(L641,CONST_LIST_Goods,0),D646))","v":""},null,null,"",{"$nulls":7},3]
[{"$nulls":3},4,"",null,null,{"$f":"IF(L641=\"\",\"\",INDEX(CONST_MATRIX_ProductionRoute,MATCH(L641,CONST_LIST_Goods,0),D647))","v":""},null,null,"",{"$nulls":7},4]
[{"$nulls":3},5,"",null,null,{"$f":"IF(L641=\"\",\"\",INDEX(CONST_MATRIX_ProductionRoute,MATCH(L641,CONST_LIST_Goods,0),D648))","v":""},null,null,"",{"$nulls":7},5]
[{"$nulls":3},6,"",null,null,{"$f":"IF(L641=\"\",\"\",INDEX(CONST_MATRIX_ProductionRoute,MATCH(L641,CONST_LIST_Goods,0),D649))","v":""},null,null,"",{"$nulls":7},6]
[{"$nulls":3},7,"",null,null,{"$f":"IF(L641=\"\",\"\",INDEX(CONST_MATRIX_ProductionRoute,MATCH(L641,CONST_LIST_Goods,0),D650))","v":""},null,null,"",{"$nulls":7},7]
[{"$nulls":3},8,"",null,null,{"$f":"IF(L641=\"\",\"\",INDEX(CONST_MATRIX_ProductionRoute,MATCH(L641,CONST_LIST_Goods,0),D651))","v":""},null,null,"",{"$nulls":7},8]
[{"$nulls":4},{"$f":"Translations!$B$277","v":"Total consumption within installation:"},{"$nulls":5},{"$f":"K644","v":""},{"$f":"IF(G641=\"\",\"\",SUM(L644:L651))","v":""},{"$nulls":5},{"$f":"CONST_CNTR_TotProd&G641","v":"TotProd_"},null,{"$f":"IF(G641=\"\",\"\",IF(SUM(L652)=0,100,L652))","v":""}]
[]
[{"$nulls":3},"(b)",{"$f":"Translations!$B$278","v":"Consumed in \"production processes\" within the installation:"},{"$nulls":5},{"$f":"Translations!$B$221","v":"Unit"},{"$f":"Translations!$B$245","v":"Amounts"},{"$nulls":6},"Numbering"]
[{"$nulls":3},1,{"$f":"IF(INDEX(CNTR_List_ExistProdProcNames,S655)=CONST_NA,\"\",INDEX(CNTR_List_ExistProdProcNames,S655))","v":""},{"$nulls":5},{"$f":"IF(E655=\"\",\"\",K652)","v":""},{"$nulls":6},{"$f":"CONST_PrecursorToGoodInput&G641&\"_\"&E655","v":"PrecToGood__"},{"$f":"D655","v":1},{"$f":"IF(G641=\"\",\"\",L655)","v":""},null,{"$f":"IF(AND(G641<>\"\",E655<>\"\",L655<>\"\"),TRUE,IF(AND(G641<>\"\",E655<>\"\",L655=\"\",X655=FALSE),CONST_ErrorOrMissing&C641,CONST_NA))","v":"n.a."},"cond.form.",{"$f":"IF(G641=\"\",FALSE,E655=\"\")","v":false}]
[{"$nulls":3},2,"",{"$nulls":5},{"$f":"IF(E656=\"\",\"\",K655)","v":""},{"$nulls":6},{"$f":"CONST_PrecursorToGoodInput&G641&\"_\"&E656","v":"PrecToGood__"},{"$f":"D656","v":2},{"$f":"IF(G641=\"\",\"\",L656)","v":""},null,{"$f":"IF(AND(G641<>\"\",E656<>\"\",L656<>\"\"),TRUE,IF(AND(G641<>\"\",E656<>\"\",L656=\"\",X656=FALSE),CONST_ErrorOrMissing&C641,CONST_NA))","v":"n.a."},null,{"$f":"IF(G641=\"\",FALSE,E656=\"\")","v":false}]
[{"$nulls":3},3,"",{"$nulls":5},{"$f":"IF(E657=\"\",\"\",K656)","v":""},{"$nulls":6},{"$f":"CONST_PrecursorToGoodInput&G641&\"_\"&E657","v":"PrecToGood__"},3,{"$f":"IF(G641=\"\",\"\",L657)","v":""},null,{"$f":"IF(AND(G641<>\"\",E657<>\"\",L657<>\"\"),TRUE,IF(AND(G641<>\"\",E657<>\"\",L657=\"\",X657=FALSE),CONST_ErrorOrMissing&C641,CONST_NA))","v":"n.a."},null,{"$f":"IF(G641=\"\",FALSE,E657=\"\")","v":false}]
[{"$nulls":3},4,"",{"$nulls":5},"",{"$nulls":6},{"$f":"CONST_PrecursorToGoodInput&G641&\"_\"&E658","v":"PrecToGood__"},4,{"$f":"IF(G641=\"\",\"\",L658)","v":""},null,{"$f":"IF(AND(G641<>\"\",E658<>\"\",L658<>\"\"),TRUE,IF(AND(G641<>\"\",E658<>\"\",L658=\"\",X658=FALSE),CONST_ErrorOrMissing&C641,CONST_NA))","v":"n.a."},null,{"$f":"IF(G641=\"\",FALSE,E658=\"\")","v":false}]
[{"$nulls":3},5,"",{"$nulls":5},"",{"$nulls":6},{"$f":"CONST_PrecursorToGoodInput&G641&\"_\"&E659","v":"PrecToGood__"},5,{"$f":"IF(G641=\"\",\"\",L659)","v":""},null,{"$f":"IF(AND(G641<>\"\",E659<>\"\",L659<>\"\"),TRUE,IF(AND(G641<>\"\",E659<>\"\",L659=\"\",X659=FALSE),CONST_ErrorOrMissing&C641,CONST_NA))","v":"n.a."},null,{"$f":"IF(G641=\"\",FALSE,E659=\"\")","v":false}]
[{"$nulls":3},6,"",{"$nulls":5},"",{"$nulls":6},{"$f":"CONST_PrecursorToGoodInput&G641&\"_\"&E660","v":"PrecToGood__"},6,{"$f":"IF(G641=\"\",\"\",L660)","v":""},null,{"$f":"IF(AND(G641<>\"\",E660<>\"\",L660<>\"\"),TRUE,IF(AND(G641<>\"\",E660<>\"\",L660=\"\",X660=FALSE),CONST_ErrorOrMissing&C641,CONST_NA))","v":"n.a."},null,{"$f":"IF(G641=\"\",FALSE,E660=\"\")","v":false}]
[{"$nulls":3},7,"",{"$nulls":5},"",{"$nulls":6},{"$f":"CONST_PrecursorToGoodInput&G641&\"_\"&E661","v":"PrecToGood__"},7,{"$f":"IF(G641=\"\",\"\",L661)","v":""},null,{"$f":"IF(AND(G641<>\"\",E661<>\"\",L661<>\"\"),TRUE,IF(AND(G641<>\"\",E661<>\"\",L661=\"\",X661=FALSE),CONST_ErrorOrMissing&C641,CONST_NA))","v":"n.a."},null,{"$f":"IF(G641=\"\",FALSE,E661=\"\")","v":false}]
[{"$nulls":3},8,"",{"$nulls":5},"",{"$nulls":6},{"$f":"CONST_PrecursorToGoodInput&G641&\"_\"&E662","v":"PrecToGood__"},8,{"$f":"IF(G641=\"\",\"\",L662)","v":""},null,{"$f":"IF(AND(G641<>\"\",E662<>\"\",L662<>\"\"),TRUE,IF(AND(G641<>\"\",E662<>\"\",L662=\"\",X662=FALSE),CONST_ErrorOrMissing&C641,CONST_NA))","v":"n.a."},null,{"$f":"IF(G641=\"\",FALSE,E662=\"\")","v":false}]
[{"$nulls":3},9,"",{"$nulls":5},"",{"$nulls":6},{"$f":"CONST_PrecursorToGoodInput&G641&\"_\"&E663","v":"PrecToGood__"},9,{"$f":"IF(G641=\"\",\"\",L663)","v":""},null,{"$f":"IF(AND(G641<>\"\",E663<>\"\",L663<>\"\"),TRUE,IF(AND(G641<>\"\",E663<>\"\",L663=\"\",X663=FALSE),CONST_ErrorOrMissing&C641,CONST_NA))","v":"n.a."},null,{"$f":"IF(G641=\"\",FALSE,E663=\"\")","v":false}]
[{"$nulls":3},10,"",{"$nulls":5},"",{"$nulls":6},{"$f":"CONST_PrecursorToGoodInput&G641&\"_\"&E664","v":"PrecToGood__"},10,{"$f":"IF(G641=\"\",\"\",L664)","v":""},null,{"$f":"IF(AND(G641<>\"\",E664<>\"\",L664<>\"\"),TRUE,IF(AND(G641<>\"\",E664<>\"\",L664=\"\",X664=FALSE),CONST_ErrorOrMissing&C641,CONST_NA))","v":"n.a."},null,{"$f":"IF(G641=\"\",FALSE,E664=\"\")","v":false}]
[{"$nulls":3},"(c)",{"$f":"Translations!$B$252","v":"Consumed for non-CBAM goods within the installation:"},{"$nulls":5},{"$f":"K652","v":""}]
[{"$nulls":3},"(d)",{"$f":"Translations!$B$253","v":"Control:"},{"$nulls":5},{"$f":"K665","v":""},{"$f":"IF(G641=\"\",\"\",SUM(L652)-SUM(L655:L665))","v":""}]
[]
[]
[{"$nulls":3},{"$f":"Translations!$B$279","v":"Specific embedded emissions:"},{"$nulls":5},{"$f":"IF(G641=\"\",\"\",G641)","v":""}]
[]
[{"$nulls":3},"(e)",{"$f":"Translations!$B$280","v":"Emissions embedded in this purchased precursor"}]
[{"$nulls":4},{"$f":"Translations!$B$281","v":"Please enter here the values and sources for the specific embedded direct and indirect emissions, as obtained from the supplier."}]
[{"$nulls":4},{"$f":"Translations!$B$282","v":"For the SEE (direct), the 'Type of value' relates to whether the direct emissions are measured, or whether a default value provided by the European Commission was applied."}]
[{"$nulls":4},{"$f":"Translations!$B$283","v":"In order to obtain these data and information, you may want to ask your supplier to fill in an empty copy of this communication template."}]
[{"$nulls":4},{"$f":"Translations!$B$284","v":"Parameter:"},{"$nulls":5},{"$f":"Translations!$B$221","v":"Unit"},{"$f":"Translations!$B$260","v":"Value"},{"$f":"Translations!$B$285","v":"Source"}]
[{"$nulls":3},"i.",{"$f":"Translations!$B$286","v":"Specific embedded direct emissions (SEE (direct) )"},{"$nulls":5},{"$f":"IF(L641=\"\",\"\",CONST_tCO2eq&\"/\"&K652)","v":""},{"$nulls":6},{"$f":"CONST_PurchPrecDefaultUsed&G641","v":"PurchPrecDef_"},{"$f":"CONST_CNTR_EmbedEmDir&G641","v":"EmbedEmDir_"},{"$f":"IF(G641=\"\",\"\",SUM(T652)*SUM(L676))","v":""},{"$f":"IF(G641=\"\",\"\",IF(M676=\"\",CONST_ERR_Incomplete,MATCH(M676,CONST_MeasuredOrDefault,0)=2))","v":""},{"$f":"IF(AND(G641<>\"\",COUNTA(L676:M676)=2),TRUE,IF(AND(G641<>\"\",COUNTA(L676:M676)<2),CONST_ErrorOrMissing&C641,CONST_NA))","v":"n.a."}]
[{"$nulls":3},"ii.",{"$f":"Translations!$B$287","v":"Specific embedded indirect emissions (SEE (indirect) )"},{"$nulls":5},{"$f":"K676","v":""},{"$nulls":6},{"$f":"CONST_CNTR_ElecEFMethod&G641","v":"ElecEFMeth_"},{"$f":"CONST_CNTR_EmbedEmInDir&G641","v":"EmbedEmInDir_"},{"$f":"IF(G641=\"\",\"\",SUM(T652)*SUM(L677))","v":""},{"$f":"IF(G641=\"\",\"\",M677)","v":""},{"$f":"IF(AND(G641<>\"\",COUNTA(L677:M677)=2),TRUE,IF(AND(G641<>\"\",COUNTA(L677:M677)<2),CONST_ErrorOrMissing&C641,CONST_NA))","v":"n.a."}]
[]
[{"$nulls":3},"iii.",{"$f":"Translations!$B$1858","v":"Justification for use of default values (if relevant):"},{"$nulls":16},{"$f":"IF(AND(G641<>\"\",X679=FALSE,K679<>\"\"),TRUE,IF(AND(G641<>\"\",M676<>\"\",X679=FALSE,K679=\"\"),CONST_ErrorOrMissing&C641,CONST_NA))","v":"n.a."},null,{"$f":"IF(M676=\"\",FALSE,M676<>INDEX(CONST_MeasuredOrDefault,2))","v":false}]
[]
[]
[]
[null,null,{"$f":"C641+1","v":17},{"$f":"CONST_PurchPrecursor&\" \"&C683&\":\"","v":"Purchased precursor 17:"},null,null,{"$f":"IF(INDEX(CNTR_List_ExistPurchPrecNames,MATCH(R683,CNTR_ListPurchPrecID,0))=CONST_NA,\"\",INDEX(CNTR_List_ExistPurchPrecNames,MATCH(R683,CNTR_ListPurchPrecID,0)))","v":""},{"$nulls":4},{"$f":"IF(INDEX(CNTR_List_ExistPurchPrec,MATCH(R683,CNTR_ListPurchPrecID,0))=CONST_NA,\"\",INDEX(CNTR_List_ExistPurchPrec,MATCH(R683,CNTR_ListPurchPrecID,0)))","v":""},{"$nulls":5},{"$f":"INDEX(CNTR_ListPurchPrecID,C683)","v":"PP17"},{"$nulls":4},"Not relevant:",{"$f":"AND(CNTR_HasEntriesA,G683=\"\")","v":false}]
[]
[{"$nulls":3},"(a) ",{"$f":"Translations!$B$276","v":"Total purchased levels:"},null,null,{"$f":"Translations!$B$244","v":"Production route"},null,null,{"$f":"Translations!$B$221","v":"Unit"},{"$f":"Translations!$B$245","v":"Amounts"}]
[{"$nulls":3},1,{"$f":"IF(G683=\"\",\"\",G683)&IF(L683=\"\",\"\",\" | \"&L683)","v":""},null,null,{"$f":"IF(L683=\"\",\"\",INDEX(CONST_MATRIX_ProductionRoute,MATCH(L683,CONST_LIST_Goods,0),D686))","v":""},null,null,{"$f":"IF(L683=\"\",\"\",INDEX(CONST_LIST_GoodsUnit,MATCH(L683,CONST_LIST_Goods,0)))","v":""},{"$nulls":7},1]
[{"$nulls":3},2,{"$f":"IF(H687=CONST_NA,\"\",E686)","v":""},null,null,{"$f":"IF(L683=\"\",\"\",INDEX(CONST_MATRIX_ProductionRoute,MATCH(L683,CONST_LIST_Goods,0),D687))","v":""},null,null,{"$f":"IF(H687=CONST_NA,\"\",K686)","v":""},{"$nulls":7},2]
[{"$nulls":3},3,"",null,null,{"$f":"IF(L683=\"\",\"\",INDEX(CONST_MATRIX_ProductionRoute,MATCH(L683,CONST_LIST_Goods,0),D688))","v":""},null,null,"",{"$nulls":7},3]
[{"$nulls":3},4,"",null,null,{"$f":"IF(L683=\"\",\"\",INDEX(CONST_MATRIX_ProductionRoute,MATCH(L683,CONST_LIST_Goods,0),D689))","v":""},null,null,"",{"$nulls":7},4]
[{"$nulls":3},5,"",null,null,{"$f":"IF(L683=\"\",\"\",INDEX(CONST_MATRIX_ProductionRoute,MATCH(L683,CONST_LIST_Goods,0),D690))","v":""},null,null,"",{"$nulls":7},5]
[{"$nulls":3},6,"",null,null,{"$f":"IF(L683=\"\",\"\",INDEX(CONST_MATRIX_ProductionRoute,MATCH(L683,CONST_LIST_Goods,0),D691))","v":""},null,null,"",{"$nulls":7},6]
[{"$nulls":3},7,"",null,null,{"$f":"IF(L683=\"\",\"\",INDEX(CONST_MATRIX_ProductionRoute,MATCH(L683,CONST_LIST_Goods,0),D692))","v":""},null,null,"",{"$nulls":7},7]
[{"$nulls":3},8,"",null,null,{"$f":"IF(L683=\"\",\"\",INDEX(CONST_MATRIX_ProductionRoute,MATCH(L683,CONST_LIST_Goods,0),D693))","v":""},null,null,"",{"$nulls":7},8]
[{"$nulls":4},{"$f":"Translations!$B$277","v":"Total consumption within installation:"},{"$nulls":5},{"$f":"K686","v":""},{"$f":"IF(G683=\"\",\"\",SUM(L686:L693))","v":""},{"$nulls":5},{"$f":"CONST_CNTR_TotProd&G683","v":"TotProd_"},null,{"$f":"IF(G683=\"\",\"\",IF(SUM(L694)=0,100,L694))","v":""}]
[]
[{"$nulls":3},"(b)",{"$f":"Translations!$B$278","v":"Consumed in \"production processes\" within the installation:"},{"$nulls":5},{"$f":"Translations!$B$221","v":"Unit"},{"$f":"Translations!$B$245","v":"Amounts"},{"$nulls":6},"Numbering"]
[{"$nulls":3},1,{"$f":"IF(INDEX(CNTR_List_ExistProdProcNames,S697)=CONST_NA,\"\",INDEX(CNTR_List_ExistProdProcNames,S697))","v":""},{"$nulls":5},{"$f":"IF(E697=\"\",\"\",K694)","v":""},{"$nulls":6},{"$f":"CONST_PrecursorToGoodInput&G683&\"_\"&E697","v":"PrecToGood__"},{"$f":"D697","v":1},{"$f":"IF(G683=\"\",\"\",L697)","v":""},null,{"$f":"IF(AND(G683<>\"\",E697<>\"\",L697<>\"\"),TRUE,IF(AND(G683<>\"\",E697<>\"\",L697=\"\",X697=FALSE),CONST_ErrorOrMissing&C683,CONST_NA))","v":"n.a."},"cond.form.",{"$f":"IF(G683=\"\",FALSE,E697=\"\")","v":false}]
[{"$nulls":3},2,"",{"$nulls":5},{"$f":"IF(E698=\"\",\"\",K697)","v":""},{"$nulls":6},{"$f":"CONST_PrecursorToGoodInput&G683&\"_\"&E698","v":"PrecToGood__"},{"$f":"D698","v":2},{"$f":"IF(G683=\"\",\"\",L698)","v":""},null,{"$f":"IF(AND(G683<>\"\",E698<>\"\",L698<>\"\"),TRUE,IF(AND(G683<>\"\",E698<>\"\",L698=\"\",X698=FALSE),CONST_ErrorOrMissing&C683,CONST_NA))","v":"n.a."},null,{"$f":"IF(G683=\"\",FALSE,E698=\"\")","v":false}]
[{"$nulls":3},3,"",{"$nulls":5},{"$f":"IF(E699=\"\",\"\",K698)","v":""},{"$nulls":6},{"$f":"CONST_PrecursorToGoodInput&G683&\"_\"&E699","v":"PrecToGood__"},3,{"$f":"IF(G683=\"\",\"\",L699)","v":""},null,{"$f":"IF(AND(G683<>\"\",E699<>\"\",L699<>\"\"),TRUE,IF(AND(G683<>\"\",E699<>\"\",L699=\"\",X699=FALSE),CONST_ErrorOrMissing&C683,CONST_NA))","v":"n.a."},null,{"$f":"IF(G683=\"\",FALSE,E699=\"\")","v":false}]
[{"$nulls":3},4,"",{"$nulls":5},"",{"$nulls":6},{"$f":"CONST_PrecursorToGoodInput&G683&\"_\"&E700","v":"PrecToGood__"},4,{"$f":"IF(G683=\"\",\"\",L700)","v":""},null,{"$f":"IF(AND(G683<>\"\",E700<>\"\",L700<>\"\"),TRUE,IF(AND(G683<>\"\",E700<>\"\",L700=\"\",X700=FALSE),CONST_ErrorOrMissing&C683,CONST_NA))","v":"n.a."},null,{"$f":"IF(G683=\"\",FALSE,E700=\"\")","v":false}]
[{"$nulls":3},5,"",{"$nulls":5},"",{"$nulls":6},{"$f":"CONST_PrecursorToGoodInput&G683&\"_\"&E701","v":"PrecToGood__"},5,{"$f":"IF(G683=\"\",\"\",L701)","v":""},null,{"$f":"IF(AND(G683<>\"\",E701<>\"\",L701<>\"\"),TRUE,IF(AND(G683<>\"\",E701<>\"\",L701=\"\",X701=FALSE),CONST_ErrorOrMissing&C683,CONST_NA))","v":"n.a."},null,{"$f":"IF(G683=\"\",FALSE,E701=\"\")","v":false}]
[{"$nulls":3},6,"",{"$nulls":5},"",{"$nulls":6},{"$f":"CONST_PrecursorToGoodInput&G683&\"_\"&E702","v":"PrecToGood__"},6,{"$f":"IF(G683=\"\",\"\",L702)","v":""},null,{"$f":"IF(AND(G683<>\"\",E702<>\"\",L702<>\"\"),TRUE,IF(AND(G683<>\"\",E702<>\"\",L702=\"\",X702=FALSE),CONST_ErrorOrMissing&C683,CONST_NA))","v":"n.a."},null,{"$f":"IF(G683=\"\",FALSE,E702=\"\")","v":false}]
[{"$nulls":3},7,"",{"$nulls":5},"",{"$nulls":6},{"$f":"CONST_PrecursorToGoodInput&G683&\"_\"&E703","v":"PrecToGood__"},7,{"$f":"IF(G683=\"\",\"\",L703)","v":""},null,{"$f":"IF(AND(G683<>\"\",E703<>\"\",L703<>\"\"),TRUE,IF(AND(G683<>\"\",E703<>\"\",L703=\"\",X703=FALSE),CONST_ErrorOrMissing&C683,CONST_NA))","v":"n.a."},null,{"$f":"IF(G683=\"\",FALSE,E703=\"\")","v":false}]
[{"$nulls":3},8,"",{"$nulls":5},"",{"$nulls":6},{"$f":"CONST_PrecursorToGoodInput&G683&\"_\"&E704","v":"PrecToGood__"},8,{"$f":"IF(G683=\"\",\"\",L704)","v":""},null,{"$f":"IF(AND(G683<>\"\",E704<>\"\",L704<>\"\"),TRUE,IF(AND(G683<>\"\",E704<>\"\",L704=\"\",X704=FALSE),CONST_ErrorOrMissing&C683,CONST_NA))","v":"n.a."},null,{"$f":"IF(G683=\"\",FALSE,E704=\"\")","v":false}]
[{"$nulls":3},9,"",{"$nulls":5},"",{"$nulls":6},{"$f":"CONST_PrecursorToGoodInput&G683&\"_\"&E705","v":"PrecToGood__"},9,{"$f":"IF(G683=\"\",\"\",L705)","v":""},null,{"$f":"IF(AND(G683<>\"\",E705<>\"\",L705<>\"\"),TRUE,IF(AND(G683<>\"\",E705<>\"\",L705=\"\",X705=FALSE),CONST_ErrorOrMissing&C683,CONST_NA))","v":"n.a."},null,{"$f":"IF(G683=\"\",FALSE,E705=\"\")","v":false}]
[{"$nulls":3},10,"",{"$nulls":5},"",{"$nulls":6},{"$f":"CONST_PrecursorToGoodInput&G683&\"_\"&E706","v":"PrecToGood__"},10,{"$f":"IF(G683=\"\",\"\",L706)","v":""},null,{"$f":"IF(AND(G683<>\"\",E706<>\"\",L706<>\"\"),TRUE,IF(AND(G683<>\"\",E706<>\"\",L706=\"\",X706=FALSE),CONST_ErrorOrMissing&C683,CONST_NA))","v":"n.a."},null,{"$f":"IF(G683=\"\",FALSE,E706=\"\")","v":false}]
[{"$nulls":3},"(c)",{"$f":"Translations!$B$252","v":"Consumed for non-CBAM goods within the installation:"},{"$nulls":5},{"$f":"K694","v":""}]
[{"$nulls":3},"(d)",{"$f":"Translations!$B$253","v":"Control:"},{"$nulls":5},{"$f":"K707","v":""},{"$f":"IF(G683=\"\",\"\",SUM(L694)-SUM(L697:L707))","v":""}]
[]
[]
[{"$nulls":3},{"$f":"Translations!$B$279","v":"Specific embedded emissions:"},{"$nulls":5},{"$f":"IF(G683=\"\",\"\",G683)","v":""}]
[]
[{"$nulls":3},"(e)",{"$f":"Translations!$B$280","v":"Emissions embedded in this purchased precursor"}]
[{"$nulls":4},{"$f":"Translations!$B$281","v":"Please enter here the values and sources for the specific embedded direct and indirect emissions, as obtained from the supplier."}]
[{"$nulls":4},{"$f":"Translations!$B$282","v":"For the SEE (direct), the 'Type of value' relates to whether the direct emissions are measured, or whether a default value provided by the European Commission was applied."}]
[{"$nulls":4},{"$f":"Translations!$B$283","v":"In order to obtain these data and information, you may want to ask your supplier to fill in an empty copy of this communication template."}]
[{"$nulls":4},{"$f":"Translations!$B$284","v":"Parameter:"},{"$nulls":5},{"$f":"Translations!$B$221","v":"Unit"},{"$f":"Translations!$B$260","v":"Value"},{"$f":"Translations!$B$285","v":"Source"}]
[{"$nulls":3},"i.",{"$f":"Translations!$B$286","v":"Specific embedded direct emissions (SEE (direct) )"},{"$nulls":5},{"$f":"IF(L683=\"\",\"\",CONST_tCO2eq&\"/\"&K694)","v":""},{"$nulls":6},{"$f":"CONST_PurchPrecDefaultUsed&G683","v":"PurchPrecDef_"},{"$f":"CONST_CNTR_EmbedEmDir&G683","v":"EmbedEmDir_"},{"$f":"IF(G683=\"\",\"\",SUM(T694)*SUM(L718))","v":""},{"$f":"IF(G683=\"\",\"\",IF(M718=\"\",CONST_ERR_Incomplete,MATCH(M718,CONST_MeasuredOrDefault,0)=2))","v":""},{"$f":"IF(AND(G683<>\"\",COUNTA(L718:M718)=2),TRUE,IF(AND(G683<>\"\",COUNTA(L718:M718)<2),CONST_ErrorOrMissing&C683,CONST_NA))","v":"n.a."}]
[{"$nulls":3},"ii.",{"$f":"Translations!$B$287","v":"Specific embedded indirect emissions (SEE (indirect) )"},{"$nulls":5},{"$f":"K718","v":""},{"$nulls":6},{"$f":"CONST_CNTR_ElecEFMethod&G683","v":"ElecEFMeth_"},{"$f":"CONST_CNTR_EmbedEmInDir&G683","v":"EmbedEmInDir_"},{"$f":"IF(G683=\"\",\"\",SUM(T694)*SUM(L719))","v":""},{"$f":"IF(G683=\"\",\"\",M719)","v":""},{"$f":"IF(AND(G683<>\"\",COUNTA(L719:M719)=2),TRUE,IF(AND(G683<>\"\",COUNTA(L719:M719)<2),CONST_ErrorOrMissing&C683,CONST_NA))","v":"n.a."}]
[]
[{"$nulls":3},"iii.",{"$f":"Translations!$B$1858","v":"Justification for use of default values (if relevant):"},{"$nulls":16},{"$f":"IF(AND(G683<>\"\",X721=FALSE,K721<>\"\"),TRUE,IF(AND(G683<>\"\",M718<>\"\",X721=FALSE,K721=\"\"),CONST_ErrorOrMissing&C683,CONST_NA))","v":"n.a."},null,{"$f":"IF(M718=\"\",FALSE,M718<>INDEX(CONST_MeasuredOrDefault,2))","v":false}]
[]
[]
[]
[null,null,{"$f":"C683+1","v":18},{"$f":"CONST_PurchPrecursor&\" \"&C725&\":\"","v":"Purchased precursor 18:"},null,null,{"$f":"IF(INDEX(CNTR_List_ExistPurchPrecNames,MATCH(R725,CNTR_ListPurchPrecID,0))=CONST_NA,\"\",INDEX(CNTR_List_ExistPurchPrecNames,MATCH(R725,CNTR_ListPurchPrecID,0)))","v":""},{"$nulls":4},{"$f":"IF(INDEX(CNTR_List_ExistPurchPrec,MATCH(R725,CNTR_ListPurchPrecID,0))=CONST_NA,\"\",INDEX(CNTR_List_ExistPurchPrec,MATCH(R725,CNTR_ListPurchPrecID,0)))","v":""},{"$nulls":5},{"$f":"INDEX(CNTR_ListPurchPrecID,C725)","v":"PP18"},{"$nulls":4},"Not relevant:",{"$f":"AND(CNTR_HasEntriesA,G725=\"\")","v":false}]
[]
[{"$nulls":3},"(a) ",{"$f":"Translations!$B$276","v":"Total purchased levels:"},null,null,{"$f":"Translations!$B$244","v":"Production route"},null,null,{"$f":"Translations!$B$221","v":"Unit"},{"$f":"Translations!$B$245","v":"Amounts"}]
[{"$nulls":3},1,{"$f":"IF(G725=\"\",\"\",G725)&IF(L725=\"\",\"\",\" | \"&L725)","v":""},null,null,{"$f":"IF(L725=\"\",\"\",INDEX(CONST_MATRIX_ProductionRoute,MATCH(L725,CONST_LIST_Goods,0),D728))","v":""},null,null,{"$f":"IF(L725=\"\",\"\",INDEX(CONST_LIST_GoodsUnit,MATCH(L725,CONST_LIST_Goods,0)))","v":""},{"$nulls":7},1]
[{"$nulls":3},2,{"$f":"IF(H729=CONST_NA,\"\",E728)","v":""},null,null,{"$f":"IF(L725=\"\",\"\",INDEX(CONST_MATRIX_ProductionRoute,MATCH(L725,CONST_LIST_Goods,0),D729))","v":""},null,null,{"$f":"IF(H729=CONST_NA,\"\",K728)","v":""},{"$nulls":7},2]
[{"$nulls":3},3,"",null,null,{"$f":"IF(L725=\"\",\"\",INDEX(CONST_MATRIX_ProductionRoute,MATCH(L725,CONST_LIST_Goods,0),D730))","v":""},null,null,"",{"$nulls":7},3]
[{"$nulls":3},4,"",null,null,{"$f":"IF(L725=\"\",\"\",INDEX(CONST_MATRIX_ProductionRoute,MATCH(L725,CONST_LIST_Goods,0),D731))","v":""},null,null,"",{"$nulls":7},4]
[{"$nulls":3},5,"",null,null,{"$f":"IF(L725=\"\",\"\",INDEX(CONST_MATRIX_ProductionRoute,MATCH(L725,CONST_LIST_Goods,0),D732))","v":""},null,null,"",{"$nulls":7},5]
[{"$nulls":3},6,"",null,null,{"$f":"IF(L725=\"\",\"\",INDEX(CONST_MATRIX_ProductionRoute,MATCH(L725,CONST_LIST_Goods,0),D733))","v":""},null,null,"",{"$nulls":7},6]
[{"$nulls":3},7,"",null,null,{"$f":"IF(L725=\"\",\"\",INDEX(CONST_MATRIX_ProductionRoute,MATCH(L725,CONST_LIST_Goods,0),D734))","v":""},null,null,"",{"$nulls":7},7]
[{"$nulls":3},8,"",null,null,{"$f":"IF(L725=\"\",\"\",INDEX(CONST_MATRIX_ProductionRoute,MATCH(L725,CONST_LIST_Goods,0),D735))","v":""},null,null,"",{"$nulls":7},8]
[{"$nulls":4},{"$f":"Translations!$B$277","v":"Total consumption within installation:"},{"$nulls":5},{"$f":"K728","v":""},{"$f":"IF(G725=\"\",\"\",SUM(L728:L735))","v":""},{"$nulls":5},{"$f":"CONST_CNTR_TotProd&G725","v":"TotProd_"},null,{"$f":"IF(G725=\"\",\"\",IF(SUM(L736)=0,100,L736))","v":""}]
[]
[{"$nulls":3},"(b)",{"$f":"Translations!$B$278","v":"Consumed in \"production processes\" within the installation:"},{"$nulls":5},{"$f":"Translations!$B$221","v":"Unit"},{"$f":"Translations!$B$245","v":"Amounts"},{"$nulls":6},"Numbering"]
[{"$nulls":3},1,{"$f":"IF(INDEX(CNTR_List_ExistProdProcNames,S739)=CONST_NA,\"\",INDEX(CNTR_List_ExistProdProcNames,S739))","v":""},{"$nulls":5},{"$f":"IF(E739=\"\",\"\",K736)","v":""},{"$nulls":6},{"$f":"CONST_PrecursorToGoodInput&G725&\"_\"&E739","v":"PrecToGood__"},{"$f":"D739","v":1},{"$f":"IF(G725=\"\",\"\",L739)","v":""},null,{"$f":"IF(AND(G725<>\"\",E739<>\"\",L739<>\"\"),TRUE,IF(AND(G725<>\"\",E739<>\"\",L739=\"\",X739=FALSE),CONST_ErrorOrMissing&C725,CONST_NA))","v":"n.a."},"cond.form.",{"$f":"IF(G725=\"\",FALSE,E739=\"\")","v":false}]
[{"$nulls":3},2,"",{"$nulls":5},{"$f":"IF(E740=\"\",\"\",K739)","v":""},{"$nulls":6},{"$f":"CONST_PrecursorToGoodInput&G725&\"_\"&E740","v":"PrecToGood__"},{"$f":"D740","v":2},{"$f":"IF(G725=\"\",\"\",L740)","v":""},null,{"$f":"IF(AND(G725<>\"\",E740<>\"\",L740<>\"\"),TRUE,IF(AND(G725<>\"\",E740<>\"\",L740=\"\",X740=FALSE),CONST_ErrorOrMissing&C725,CONST_NA))","v":"n.a."},null,{"$f":"IF(G725=\"\",FALSE,E740=\"\")","v":false}]
[{"$nulls":3},3,"",{"$nulls":5},{"$f":"IF(E741=\"\",\"\",K740)","v":""},{"$nulls":6},{"$f":"CONST_PrecursorToGoodInput&G725&\"_\"&E741","v":"PrecToGood__"},3,{"$f":"IF(G725=\"\",\"\",L741)","v":""},null,{"$f":"IF(AND(G725<>\"\",E741<>\"\",L741<>\"\"),TRUE,IF(AND(G725<>\"\",E741<>\"\",L741=\"\",X741=FALSE),CONST_ErrorOrMissing&C725,CONST_NA))","v":"n.a."},null,{"$f":"IF(G725=\"\",FALSE,E741=\"\")","v":false}]
[{"$nulls":3},4,"",{"$nulls":5},"",{"$nulls":6},{"$f":"CONST_PrecursorToGoodInput&G725&\"_\"&E742","v":"PrecToGood__"},4,{"$f":"IF(G725=\"\",\"\",L742)","v":""},null,{"$f":"IF(AND(G725<>\"\",E742<>\"\",L742<>\"\"),TRUE,IF(AND(G725<>\"\",E742<>\"\",L742=\"\",X742=FALSE),CONST_ErrorOrMissing&C725,CONST_NA))","v":"n.a."},null,{"$f":"IF(G725=\"\",FALSE,E742=\"\")","v":false}]
[{"$nulls":3},5,"",{"$nulls":5},"",{"$nulls":6},{"$f":"CONST_PrecursorToGoodInput&G725&\"_\"&E743","v":"PrecToGood__"},5,{"$f":"IF(G725=\"\",\"\",L743)","v":""},null,{"$f":"IF(AND(G725<>\"\",E743<>\"\",L743<>\"\"),TRUE,IF(AND(G725<>\"\",E743<>\"\",L743=\"\",X743=FALSE),CONST_ErrorOrMissing&C725,CONST_NA))","v":"n.a."},null,{"$f":"IF(G725=\"\",FALSE,E743=\"\")","v":false}]
[{"$nulls":3},6,"",{"$nulls":5},"",{"$nulls":6},{"$f":"CONST_PrecursorToGoodInput&G725&\"_\"&E744","v":"PrecToGood__"},6,{"$f":"IF(G725=\"\",\"\",L744)","v":""},null,{"$f":"IF(AND(G725<>\"\",E744<>\"\",L744<>\"\"),TRUE,IF(AND(G725<>\"\",E744<>\"\",L744=\"\",X744=FALSE),CONST_ErrorOrMissing&C725,CONST_NA))","v":"n.a."},null,{"$f":"IF(G725=\"\",FALSE,E744=\"\")","v":false}]
[{"$nulls":3},7,"",{"$nulls":5},"",{"$nulls":6},{"$f":"CONST_PrecursorToGoodInput&G725&\"_\"&E745","v":"PrecToGood__"},7,{"$f":"IF(G725=\"\",\"\",L745)","v":""},null,{"$f":"IF(AND(G725<>\"\",E745<>\"\",L745<>\"\"),TRUE,IF(AND(G725<>\"\",E745<>\"\",L745=\"\",X745=FALSE),CONST_ErrorOrMissing&C725,CONST_NA))","v":"n.a."},null,{"$f":"IF(G725=\"\",FALSE,E745=\"\")","v":false}]
[{"$nulls":3},8,"",{"$nulls":5},"",{"$nulls":6},{"$f":"CONST_PrecursorToGoodInput&G725&\"_\"&E746","v":"PrecToGood__"},8,{"$f":"IF(G725=\"\",\"\",L746)","v":""},null,{"$f":"IF(AND(G725<>\"\",E746<>\"\",L746<>\"\"),TRUE,IF(AND(G725<>\"\",E746<>\"\",L746=\"\",X746=FALSE),CONST_ErrorOrMissing&C725,CONST_NA))","v":"n.a."},null,{"$f":"IF(G725=\"\",FALSE,E746=\"\")","v":false}]
[{"$nulls":3},9,"",{"$nulls":5},"",{"$nulls":6},{"$f":"CONST_PrecursorToGoodInput&G725&\"_\"&E747","v":"PrecToGood__"},9,{"$f":"IF(G725=\"\",\"\",L747)","v":""},null,{"$f":"IF(AND(G725<>\"\",E747<>\"\",L747<>\"\"),TRUE,IF(AND(G725<>\"\",E747<>\"\",L747=\"\",X747=FALSE),CONST_ErrorOrMissing&C725,CONST_NA))","v":"n.a."},null,{"$f":"IF(G725=\"\",FALSE,E747=\"\")","v":false}]
[{"$nulls":3},10,"",{"$nulls":5},"",{"$nulls":6},{"$f":"CONST_PrecursorToGoodInput&G725&\"_\"&E748","v":"PrecToGood__"},10,{"$f":"IF(G725=\"\",\"\",L748)","v":""},null,{"$f":"IF(AND(G725<>\"\",E748<>\"\",L748<>\"\"),TRUE,IF(AND(G725<>\"\",E748<>\"\",L748=\"\",X748=FALSE),CONST_ErrorOrMissing&C725,CONST_NA))","v":"n.a."},null,{"$f":"IF(G725=\"\",FALSE,E748=\"\")","v":false}]
[{"$nulls":3},"(c)",{"$f":"Translations!$B$252","v":"Consumed for non-CBAM goods within the installation:"},{"$nulls":5},{"$f":"K736","v":""}]
[{"$nulls":3},"(d)",{"$f":"Translations!$B$253","v":"Control:"},{"$nulls":5},{"$f":"K749","v":""},{"$f":"IF(G725=\"\",\"\",SUM(L736)-SUM(L739:L749))","v":""}]
[]
[]
[{"$nulls":3},{"$f":"Translations!$B$279","v":"Specific embedded emissions:"},{"$nulls":5},{"$f":"IF(G725=\"\",\"\",G725)","v":""}]
[]
[{"$nulls":3},"(e)",{"$f":"Translations!$B$280","v":"Emissions embedded in this purchased precursor"}]
[{"$nulls":4},{"$f":"Translations!$B$281","v":"Please enter here the values and sources for the specific embedded direct and indirect emissions, as obtained from the supplier."}]
[{"$nulls":4},{"$f":"Translations!$B$282","v":"For the SEE (direct), the 'Type of value' relates to whether the direct emissions are measured, or whether a default value provided by the European Commission was applied."}]
[{"$nulls":4},{"$f":"Translations!$B$283","v":"In order to obtain these data and information, you may want to ask your supplier to fill in an empty copy of this communication template."}]
[{"$nulls":4},{"$f":"Translations!$B$284","v":"Parameter:"},{"$nulls":5},{"$f":"Translations!$B$221","v":"Unit"},{"$f":"Translations!$B$260","v":"Value"},{"$f":"Translations!$B$285","v":"Source"}]
[{"$nulls":3},"i.",{"$f":"Translations!$B$286","v":"Specific embedded direct emissions (SEE (direct) )"},{"$nulls":5},{"$f":"IF(L725=\"\",\"\",CONST_tCO2eq&\"/\"&K736)","v":""},{"$nulls":6},{"$f":"CONST_PurchPrecDefaultUsed&G725","v":"PurchPrecDef_"},{"$f":"CONST_CNTR_EmbedEmDir&G725","v":"EmbedEmDir_"},{"$f":"IF(G725=\"\",\"\",SUM(T736)*SUM(L760))","v":""},{"$f":"IF(G725=\"\",\"\",IF(M760=\"\",CONST_ERR_Incomplete,MATCH(M760,CONST_MeasuredOrDefault,0)=2))","v":""},{"$f":"IF(AND(G725<>\"\",COUNTA(L760:M760)=2),TRUE,IF(AND(G725<>\"\",COUNTA(L760:M760)<2),CONST_ErrorOrMissing&C725,CONST_NA))","v":"n.a."}]
[{"$nulls":3},"ii.",{"$f":"Translations!$B$287","v":"Specific embedded indirect emissions (SEE (indirect) )"},{"$nulls":5},{"$f":"K760","v":""},{"$nulls":6},{"$f":"CONST_CNTR_ElecEFMethod&G725","v":"ElecEFMeth_"},{"$f":"CONST_CNTR_EmbedEmInDir&G725","v":"EmbedEmInDir_"},{"$f":"IF(G725=\"\",\"\",SUM(T736)*SUM(L761))","v":""},{"$f":"IF(G725=\"\",\"\",M761)","v":""},{"$f":"IF(AND(G725<>\"\",COUNTA(L761:M761)=2),TRUE,IF(AND(G725<>\"\",COUNTA(L761:M761)<2),CONST_ErrorOrMissing&C725,CONST_NA))","v":"n.a."}]
[]
[{"$nulls":3},"iii.",{"$f":"Translations!$B$1858","v":"Justification for use of default values (if relevant):"},{"$nulls":16},{"$f":"IF(AND(G725<>\"\",X763=FALSE,K763<>\"\"),TRUE,IF(AND(G725<>\"\",M760<>\"\",X763=FALSE,K763=\"\"),CONST_ErrorOrMissing&C725,CONST_NA))","v":"n.a."},null,{"$f":"IF(M760=\"\",FALSE,M760<>INDEX(CONST_MeasuredOrDefault,2))","v":false}]
[]
[]
[]
[null,null,{"$f":"C725+1","v":19},{"$f":"CONST_PurchPrecursor&\" \"&C767&\":\"","v":"Purchased precursor 19:"},null,null,{"$f":"IF(INDEX(CNTR_List_ExistPurchPrecNames,MATCH(R767,CNTR_ListPurchPrecID,0))=CONST_NA,\"\",INDEX(CNTR_List_ExistPurchPrecNames,MATCH(R767,CNTR_ListPurchPrecID,0)))","v":""},{"$nulls":4},{"$f":"IF(INDEX(CNTR_List_ExistPurchPrec,MATCH(R767,CNTR_ListPurchPrecID,0))=CONST_NA,\"\",INDEX(CNTR_List_ExistPurchPrec,MATCH(R767,CNTR_ListPurchPrecID,0)))","v":""},{"$nulls":5},{"$f":"INDEX(CNTR_ListPurchPrecID,C767)","v":"PP19"},{"$nulls":4},"Not relevant:",{"$f":"AND(CNTR_HasEntriesA,G767=\"\")","v":false}]
[]
[{"$nulls":3},"(a) ",{"$f":"Translations!$B$276","v":"Total purchased levels:"},null,null,{"$f":"Translations!$B$244","v":"Production route"},null,null,{"$f":"Translations!$B$221","v":"Unit"},{"$f":"Translations!$B$245","v":"Amounts"}]
[{"$nulls":3},1,{"$f":"IF(G767=\"\",\"\",G767)&IF(L767=\"\",\"\",\" | \"&L767)","v":""},null,null,{"$f":"IF(L767=\"\",\"\",INDEX(CONST_MATRIX_ProductionRoute,MATCH(L767,CONST_LIST_Goods,0),D770))","v":""},null,null,{"$f":"IF(L767=\"\",\"\",INDEX(CONST_LIST_GoodsUnit,MATCH(L767,CONST_LIST_Goods,0)))","v":""},{"$nulls":7},1]
[{"$nulls":3},2,{"$f":"IF(H771=CONST_NA,\"\",E770)","v":""},null,null,{"$f":"IF(L767=\"\",\"\",INDEX(CONST_MATRIX_ProductionRoute,MATCH(L767,CONST_LIST_Goods,0),D771))","v":""},null,null,{"$f":"IF(H771=CONST_NA,\"\",K770)","v":""},{"$nulls":7},2]
[{"$nulls":3},3,"",null,null,{"$f":"IF(L767=\"\",\"\",INDEX(CONST_MATRIX_ProductionRoute,MATCH(L767,CONST_LIST_Goods,0),D772))","v":""},null,null,"",{"$nulls":7},3]
[{"$nulls":3},4,"",null,null,{"$f":"IF(L767=\"\",\"\",INDEX(CONST_MATRIX_ProductionRoute,MATCH(L767,CONST_LIST_Goods,0),D773))","v":""},null,null,"",{"$nulls":7},4]
[{"$nulls":3},5,"",null,null,{"$f":"IF(L767=\"\",\"\",INDEX(CONST_MATRIX_ProductionRoute,MATCH(L767,CONST_LIST_Goods,0),D774))","v":""},null,null,"",{"$nulls":7},5]
[{"$nulls":3},6,"",null,null,{"$f":"IF(L767=\"\",\"\",INDEX(CONST_MATRIX_ProductionRoute,MATCH(L767,CONST_LIST_Goods,0),D775))","v":""},null,null,"",{"$nulls":7},6]
[{"$nulls":3},7,"",null,null,{"$f":"IF(L767=\"\",\"\",INDEX(CONST_MATRIX_ProductionRoute,MATCH(L767,CONST_LIST_Goods,0),D776))","v":""},null,null,"",{"$nulls":7},7]
[{"$nulls":3},8,"",null,null,{"$f":"IF(L767=\"\",\"\",INDEX(CONST_MATRIX_ProductionRoute,MATCH(L767,CONST_LIST_Goods,0),D777))","v":""},null,null,"",{"$nulls":7},8]
[{"$nulls":4},{"$f":"Translations!$B$277","v":"Total consumption within installation:"},{"$nulls":5},{"$f":"K770","v":""},{"$f":"IF(G767=\"\",\"\",SUM(L770:L777))","v":""},{"$nulls":5},{"$f":"CONST_CNTR_TotProd&G767","v":"TotProd_"},null,{"$f":"IF(G767=\"\",\"\",IF(SUM(L778)=0,100,L778))","v":""}]
[]
[{"$nulls":3},"(b)",{"$f":"Translations!$B$278","v":"Consumed in \"production processes\" within the installation:"},{"$nulls":5},{"$f":"Translations!$B$221","v":"Unit"},{"$f":"Translations!$B$245","v":"Amounts"},{"$nulls":6},"Numbering"]
[{"$nulls":3},1,{"$f":"IF(INDEX(CNTR_List_ExistProdProcNames,S781)=CONST_NA,\"\",INDEX(CNTR_List_ExistProdProcNames,S781))","v":""},{"$nulls":5},{"$f":"IF(E781=\"\",\"\",K778)","v":""},{"$nulls":6},{"$f":"CONST_PrecursorToGoodInput&G767&\"_\"&E781","v":"PrecToGood__"},{"$f":"D781","v":1},{"$f":"IF(G767=\"\",\"\",L781)","v":""},null,{"$f":"IF(AND(G767<>\"\",E781<>\"\",L781<>\"\"),TRUE,IF(AND(G767<>\"\",E781<>\"\",L781=\"\",X781=FALSE),CONST_ErrorOrMissing&C767,CONST_NA))","v":"n.a."},"cond.form.",{"$f":"IF(G767=\"\",FALSE,E781=\"\")","v":false}]
[{"$nulls":3},2,"",{"$nulls":5},{"$f":"IF(E782=\"\",\"\",K781)","v":""},{"$nulls":6},{"$f":"CONST_PrecursorToGoodInput&G767&\"_\"&E782","v":"PrecToGood__"},{"$f":"D782","v":2},{"$f":"IF(G767=\"\",\"\",L782)","v":""},null,{"$f":"IF(AND(G767<>\"\",E782<>\"\",L782<>\"\"),TRUE,IF(AND(G767<>\"\",E782<>\"\",L782=\"\",X782=FALSE),CONST_ErrorOrMissing&C767,CONST_NA))","v":"n.a."},null,{"$f":"IF(G767=\"\",FALSE,E782=\"\")","v":false}]
[{"$nulls":3},3,"",{"$nulls":5},{"$f":"IF(E783=\"\",\"\",K782)","v":""},{"$nulls":6},{"$f":"CONST_PrecursorToGoodInput&G767&\"_\"&E783","v":"PrecToGood__"},3,{"$f":"IF(G767=\"\",\"\",L783)","v":""},null,{"$f":"IF(AND(G767<>\"\",E783<>\"\",L783<>\"\"),TRUE,IF(AND(G767<>\"\",E783<>\"\",L783=\"\",X783=FALSE),CONST_ErrorOrMissing&C767,CONST_NA))","v":"n.a."},null,{"$f":"IF(G767=\"\",FALSE,E783=\"\")","v":false}]
[{"$nulls":3},4,"",{"$nulls":5},"",{"$nulls":6},{"$f":"CONST_PrecursorToGoodInput&G767&\"_\"&E784","v":"PrecToGood__"},4,{"$f":"IF(G767=\"\",\"\",L784)","v":""},null,{"$f":"IF(AND(G767<>\"\",E784<>\"\",L784<>\"\"),TRUE,IF(AND(G767<>\"\",E784<>\"\",L784=\"\",X784=FALSE),CONST_ErrorOrMissing&C767,CONST_NA))","v":"n.a."},null,{"$f":"IF(G767=\"\",FALSE,E784=\"\")","v":false}]
[{"$nulls":3},5,"",{"$nulls":5},"",{"$nulls":6},{"$f":"CONST_PrecursorToGoodInput&G767&\"_\"&E785","v":"PrecToGood__"},5,{"$f":"IF(G767=\"\",\"\",L785)","v":""},null,{"$f":"IF(AND(G767<>\"\",E785<>\"\",L785<>\"\"),TRUE,IF(AND(G767<>\"\",E785<>\"\",L785=\"\",X785=FALSE),CONST_ErrorOrMissing&C767,CONST_NA))","v":"n.a."},null,{"$f":"IF(G767=\"\",FALSE,E785=\"\")","v":false}]
[{"$nulls":3},6,"",{"$nulls":5},"",{"$nulls":6},{"$f":"CONST_PrecursorToGoodInput&G767&\"_\"&E786","v":"PrecToGood__"},6,{"$f":"IF(G767=\"\",\"\",L786)","v":""},null,{"$f":"IF(AND(G767<>\"\",E786<>\"\",L786<>\"\"),TRUE,IF(AND(G767<>\"\",E786<>\"\",L786=\"\",X786=FALSE),CONST_ErrorOrMissing&C767,CONST_NA))","v":"n.a."},null,{"$f":"IF(G767=\"\",FALSE,E786=\"\")","v":false}]
[{"$nulls":3},7,"",{"$nulls":5},"",{"$nulls":6},{"$f":"CONST_PrecursorToGoodInput&G767&\"_\"&E787","v":"PrecToGood__"},7,{"$f":"IF(G767=\"\",\"\",L787)","v":""},null,{"$f":"IF(AND(G767<>\"\",E787<>\"\",L787<>\"\"),TRUE,IF(AND(G767<>\"\",E787<>\"\",L787=\"\",X787=FALSE),CONST_ErrorOrMissing&C767,CONST_NA))","v":"n.a."},null,{"$f":"IF(G767=\"\",FALSE,E787=\"\")","v":false}]
[{"$nulls":3},8,"",{"$nulls":5},"",{"$nulls":6},{"$f":"CONST_PrecursorToGoodInput&G767&\"_\"&E788","v":"PrecToGood__"},8,{"$f":"IF(G767=\"\",\"\",L788)","v":""},null,{"$f":"IF(AND(G767<>\"\",E788<>\"\",L788<>\"\"),TRUE,IF(AND(G767<>\"\",E788<>\"\",L788=\"\",X788=FALSE),CONST_ErrorOrMissing&C767,CONST_NA))","v":"n.a."},null,{"$f":"IF(G767=\"\",FALSE,E788=\"\")","v":false}]
[{"$nulls":3},9,"",{"$nulls":5},"",{"$nulls":6},{"$f":"CONST_PrecursorToGoodInput&G767&\"_\"&E789","v":"PrecToGood__"},9,{"$f":"IF(G767=\"\",\"\",L789)","v":""},null,{"$f":"IF(AND(G767<>\"\",E789<>\"\",L789<>\"\"),TRUE,IF(AND(G767<>\"\",E789<>\"\",L789=\"\",X789=FALSE),CONST_ErrorOrMissing&C767,CONST_NA))","v":"n.a."},null,{"$f":"IF(G767=\"\",FALSE,E789=\"\")","v":false}]
[{"$nulls":3},10,"",{"$nulls":5},"",{"$nulls":6},{"$f":"CONST_PrecursorToGoodInput&G767&\"_\"&E790","v":"PrecToGood__"},10,{"$f":"IF(G767=\"\",\"\",L790)","v":""},null,{"$f":"IF(AND(G767<>\"\",E790<>\"\",L790<>\"\"),TRUE,IF(AND(G767<>\"\",E790<>\"\",L790=\"\",X790=FALSE),CONST_ErrorOrMissing&C767,CONST_NA))","v":"n.a."},null,{"$f":"IF(G767=\"\",FALSE,E790=\"\")","v":false}]
[{"$nulls":3},"(c)",{"$f":"Translations!$B$252","v":"Consumed for non-CBAM goods within the installation:"},{"$nulls":5},{"$f":"K778","v":""}]
[{"$nulls":3},"(d)",{"$f":"Translations!$B$253","v":"Control:"},{"$nulls":5},{"$f":"K791","v":""},{"$f":"IF(G767=\"\",\"\",SUM(L778)-SUM(L781:L791))","v":""}]
[]
[]
[{"$nulls":3},{"$f":"Translations!$B$279","v":"Specific embedded emissions:"},{"$nulls":5},{"$f":"IF(G767=\"\",\"\",G767)","v":""}]
[]
[{"$nulls":3},"(e)",{"$f":"Translations!$B$280","v":"Emissions embedded in this purchased precursor"}]
[{"$nulls":4},{"$f":"Translations!$B$281","v":"Please enter here the values and sources for the specific embedded direct and indirect emissions, as obtained from the supplier."}]
[{"$nulls":4},{"$f":"Translations!$B$282","v":"For the SEE (direct), the 'Type of value' relates to whether the direct emissions are measured, or whether a default value provided by the European Commission was applied."}]
[{"$nulls":4},{"$f":"Translations!$B$283","v":"In order to obtain these data and information, you may want to ask your supplier to fill in an empty copy of this communication template."}]
[{"$nulls":4},{"$f":"Translations!$B$284","v":"Parameter:"},{"$nulls":5},{"$f":"Translations!$B$221","v":"Unit"},{"$f":"Translations!$B$260","v":"Value"},{"$f":"Translations!$B$285","v":"Source"}]
[{"$nulls":3},"i.",{"$f":"Translations!$B$286","v":"Specific embedded direct emissions (SEE (direct) )"},{"$nulls":5},{"$f":"IF(L767=\"\",\"\",CONST_tCO2eq&\"/\"&K778)","v":""},{"$nulls":6},{"$f":"CONST_PurchPrecDefaultUsed&G767","v":"PurchPrecDef_"},{"$f":"CONST_CNTR_EmbedEmDir&G767","v":"EmbedEmDir_"},{"$f":"IF(G767=\"\",\"\",SUM(T778)*SUM(L802))","v":""},{"$f":"IF(G767=\"\",\"\",IF(M802=\"\",CONST_ERR_Incomplete,MATCH(M802,CONST_MeasuredOrDefault,0)=2))","v":""},{"$f":"IF(AND(G767<>\"\",COUNTA(L802:M802)=2),TRUE,IF(AND(G767<>\"\",COUNTA(L802:M802)<2),CONST_ErrorOrMissing&C767,CONST_NA))","v":"n.a."}]
[{"$nulls":3},"ii.",{"$f":"Translations!$B$287","v":"Specific embedded indirect emissions (SEE (indirect) )"},{"$nulls":5},{"$f":"K802","v":""},{"$nulls":6},{"$f":"CONST_CNTR_ElecEFMethod&G767","v":"ElecEFMeth_"},{"$f":"CONST_CNTR_EmbedEmInDir&G767","v":"EmbedEmInDir_"},{"$f":"IF(G767=\"\",\"\",SUM(T778)*SUM(L803))","v":""},{"$f":"IF(G767=\"\",\"\",M803)","v":""},{"$f":"IF(AND(G767<>\"\",COUNTA(L803:M803)=2),TRUE,IF(AND(G767<>\"\",COUNTA(L803:M803)<2),CONST_ErrorOrMissing&C767,CONST_NA))","v":"n.a."}]
[]
[{"$nulls":3},"iii.",{"$f":"Translations!$B$1858","v":"Justification for use of default values (if relevant):"},{"$nulls":16},{"$f":"IF(AND(G767<>\"\",X805=FALSE,K805<>\"\"),TRUE,IF(AND(G767<>\"\",M802<>\"\",X805=FALSE,K805=\"\"),CONST_ErrorOrMissing&C767,CONST_NA))","v":"n.a."},null,{"$f":"IF(M802=\"\",FALSE,M802<>INDEX(CONST_MeasuredOrDefault,2))","v":false}]
[]
[]
[]
[null,null,{"$f":"C767+1","v":20},{"$f":"CONST_PurchPrecursor&\" \"&C809&\":\"","v":"Purchased precursor 20:"},null,null,{"$f":"IF(INDEX(CNTR_List_ExistPurchPrecNames,MATCH(R809,CNTR_ListPurchPrecID,0))=CONST_NA,\"\",INDEX(CNTR_List_ExistPurchPrecNames,MATCH(R809,CNTR_ListPurchPrecID,0)))","v":""},{"$nulls":4},{"$f":"IF(INDEX(CNTR_List_ExistPurchPrec,MATCH(R809,CNTR_ListPurchPrecID,0))=CONST_NA,\"\",INDEX(CNTR_List_ExistPurchPrec,MATCH(R809,CNTR_ListPurchPrecID,0)))","v":""},{"$nulls":5},{"$f":"INDEX(CNTR_ListPurchPrecID,C809)","v":"PP20"},{"$nulls":4},"Not relevant:",{"$f":"AND(CNTR_HasEntriesA,G809=\"\")","v":false}]
[]
[{"$nulls":3},"(a) ",{"$f":"Translations!$B$276","v":"Total purchased levels:"},null,null,{"$f":"Translations!$B$244","v":"Production route"},null,null,{"$f":"Translations!$B$221","v":"Unit"},{"$f":"Translations!$B$245","v":"Amounts"}]
[{"$nulls":3},1,{"$f":"IF(G809=\"\",\"\",G809)&IF(L809=\"\",\"\",\" | \"&L809)","v":""},null,null,{"$f":"IF(L809=\"\",\"\",INDEX(CONST_MATRIX_ProductionRoute,MATCH(L809,CONST_LIST_Goods,0),D812))","v":""},null,null,{"$f":"IF(L809=\"\",\"\",INDEX(CONST_LIST_GoodsUnit,MATCH(L809,CONST_LIST_Goods,0)))","v":""},{"$nulls":7},1]
[{"$nulls":3},2,{"$f":"IF(H813=CONST_NA,\"\",E812)","v":""},null,null,{"$f":"IF(L809=\"\",\"\",INDEX(CONST_MATRIX_ProductionRoute,MATCH(L809,CONST_LIST_Goods,0),D813))","v":""},null,null,{"$f":"IF(H813=CONST_NA,\"\",K812)","v":""},{"$nulls":7},2]
[{"$nulls":3},3,"",null,null,{"$f":"IF(L809=\"\",\"\",INDEX(CONST_MATRIX_ProductionRoute,MATCH(L809,CONST_LIST_Goods,0),D814))","v":""},null,null,"",{"$nulls":7},3]
[{"$nulls":3},4,"",null,null,{"$f":"IF(L809=\"\",\"\",INDEX(CONST_MATRIX_ProductionRoute,MATCH(L809,CONST_LIST_Goods,0),D815))","v":""},null,null,"",{"$nulls":7},4]
[{"$nulls":3},5,"",null,null,{"$f":"IF(L809=\"\",\"\",INDEX(CONST_MATRIX_ProductionRoute,MATCH(L809,CONST_LIST_Goods,0),D816))","v":""},null,null,"",{"$nulls":7},5]
[{"$nulls":3},6,"",null,null,{"$f":"IF(L809=\"\",\"\",INDEX(CONST_MATRIX_ProductionRoute,MATCH(L809,CONST_LIST_Goods,0),D817))","v":""},null,null,"",{"$nulls":7},6]
[{"$nulls":3},7,"",null,null,{"$f":"IF(L809=\"\",\"\",INDEX(CONST_MATRIX_ProductionRoute,MATCH(L809,CONST_LIST_Goods,0),D818))","v":""},null,null,"",{"$nulls":7},7]
[{"$nulls":3},8,"",null,null,{"$f":"IF(L809=\"\",\"\",INDEX(CONST_MATRIX_ProductionRoute,MATCH(L809,CONST_LIST_Goods,0),D819))","v":""},null,null,"",{"$nulls":7},8]
[{"$nulls":4},{"$f":"Translations!$B$277","v":"Total consumption within installation:"},{"$nulls":5},{"$f":"K812","v":""},{"$f":"IF(G809=\"\",\"\",SUM(L812:L819))","v":""},{"$nulls":5},{"$f":"CONST_CNTR_TotProd&G809","v":"TotProd_"},null,{"$f":"IF(G809=\"\",\"\",IF(SUM(L820)=0,100,L820))","v":""}]
[]
[{"$nulls":3},"(b)",{"$f":"Translations!$B$278","v":"Consumed in \"production processes\" within the installation:"},{"$nulls":5},{"$f":"Translations!$B$221","v":"Unit"},{"$f":"Translations!$B$245","v":"Amounts"},{"$nulls":6},"Numbering"]
[{"$nulls":3},1,{"$f":"IF(INDEX(CNTR_List_ExistProdProcNames,S823)=CONST_NA,\"\",INDEX(CNTR_List_ExistProdProcNames,S823))","v":""},{"$nulls":5},{"$f":"IF(E823=\"\",\"\",K820)","v":""},{"$nulls":6},{"$f":"CONST_PrecursorToGoodInput&G809&\"_\"&E823","v":"PrecToGood__"},{"$f":"D823","v":1},{"$f":"IF(G809=\"\",\"\",L823)","v":""},null,{"$f":"IF(AND(G809<>\"\",E823<>\"\",L823<>\"\"),TRUE,IF(AND(G809<>\"\",E823<>\"\",L823=\"\",X823=FALSE),CONST_ErrorOrMissing&C809,CONST_NA))","v":"n.a."},"cond.form.",{"$f":"IF(G809=\"\",FALSE,E823=\"\")","v":false}]
[{"$nulls":3},2,"",{"$nulls":5},{"$f":"IF(E824=\"\",\"\",K823)","v":""},{"$nulls":6},{"$f":"CONST_PrecursorToGoodInput&G809&\"_\"&E824","v":"PrecToGood__"},{"$f":"D824","v":2},{"$f":"IF(G809=\"\",\"\",L824)","v":""},null,{"$f":"IF(AND(G809<>\"\",E824<>\"\",L824<>\"\"),TRUE,IF(AND(G809<>\"\",E824<>\"\",L824=\"\",X824=FALSE),CONST_ErrorOrMissing&C809,CONST_NA))","v":"n.a."},null,{"$f":"IF(G809=\"\",FALSE,E824=\"\")","v":false}]
[{"$nulls":3},3,"",{"$nulls":5},{"$f":"IF(E825=\"\",\"\",K824)","v":""},{"$nulls":6},{"$f":"CONST_PrecursorToGoodInput&G809&\"_\"&E825","v":"PrecToGood__"},3,{"$f":"IF(G809=\"\",\"\",L825)","v":""},null,{"$f":"IF(AND(G809<>\"\",E825<>\"\",L825<>\"\"),TRUE,IF(AND(G809<>\"\",E825<>\"\",L825=\"\",X825=FALSE),CONST_ErrorOrMissing&C809,CONST_NA))","v":"n.a."},null,{"$f":"IF(G809=\"\",FALSE,E825=\"\")","v":false}]
[{"$nulls":3},4,"",{"$nulls":5},"",{"$nulls":6},{"$f":"CONST_PrecursorToGoodInput&G809&\"_\"&E826","v":"PrecToGood__"},4,{"$f":"IF(G809=\"\",\"\",L826)","v":""},null,{"$f":"IF(AND(G809<>\"\",E826<>\"\",L826<>\"\"),TRUE,IF(AND(G809<>\"\",E826<>\"\",L826=\"\",X826=FALSE),CONST_ErrorOrMissing&C809,CONST_NA))","v":"n.a."},null,{"$f":"IF(G809=\"\",FALSE,E826=\"\")","v":false}]
[{"$nulls":3},5,"",{"$nulls":5},"",{"$nulls":6},{"$f":"CONST_PrecursorToGoodInput&G809&\"_\"&E827","v":"PrecToGood__"},5,{"$f":"IF(G809=\"\",\"\",L827)","v":""},null,{"$f":"IF(AND(G809<>\"\",E827<>\"\",L827<>\"\"),TRUE,IF(AND(G809<>\"\",E827<>\"\",L827=\"\",X827=FALSE),CONST_ErrorOrMissing&C809,CONST_NA))","v":"n.a."},null,{"$f":"IF(G809=\"\",FALSE,E827=\"\")","v":false}]
[{"$nulls":3},6,"",{"$nulls":5},"",{"$nulls":6},{"$f":"CONST_PrecursorToGoodInput&G809&\"_\"&E828","v":"PrecToGood__"},6,{"$f":"IF(G809=\"\",\"\",L828)","v":""},null,{"$f":"IF(AND(G809<>\"\",E828<>\"\",L828<>\"\"),TRUE,IF(AND(G809<>\"\",E828<>\"\",L828=\"\",X828=FALSE),CONST_ErrorOrMissing&C809,CONST_NA))","v":"n.a."},null,{"$f":"IF(G809=\"\",FALSE,E828=\"\")","v":false}]
[{"$nulls":3},7,"",{"$nulls":5},"",{"$nulls":6},{"$f":"CONST_PrecursorToGoodInput&G809&\"_\"&E829","v":"PrecToGood__"},7,{"$f":"IF(G809=\"\",\"\",L829)","v":""},null,{"$f":"IF(AND(G809<>\"\",E829<>\"\",L829<>\"\"),TRUE,IF(AND(G809<>\"\",E829<>\"\",L829=\"\",X829=FALSE),CONST_ErrorOrMissing&C809,CONST_NA))","v":"n.a."},null,{"$f":"IF(G809=\"\",FALSE,E829=\"\")","v":false}]
[{"$nulls":3},8,"",{"$nulls":5},"",{"$nulls":6},{"$f":"CONST_PrecursorToGoodInput&G809&\"_\"&E830","v":"PrecToGood__"},8,{"$f":"IF(G809=\"\",\"\",L830)","v":""},null,{"$f":"IF(AND(G809<>\"\",E830<>\"\",L830<>\"\"),TRUE,IF(AND(G809<>\"\",E830<>\"\",L830=\"\",X830=FALSE),CONST_ErrorOrMissing&C809,CONST_NA))","v":"n.a."},null,{"$f":"IF(G809=\"\",FALSE,E830=\"\")","v":false}]
[{"$nulls":3},9,"",{"$nulls":5},"",{"$nulls":6},{"$f":"CONST_PrecursorToGoodInput&G809&\"_\"&E831","v":"PrecToGood__"},9,{"$f":"IF(G809=\"\",\"\",L831)","v":""},null,{"$f":"IF(AND(G809<>\"\",E831<>\"\",L831<>\"\"),TRUE,IF(AND(G809<>\"\",E831<>\"\",L831=\"\",X831=FALSE),CONST_ErrorOrMissing&C809,CONST_NA))","v":"n.a."},null,{"$f":"IF(G809=\"\",FALSE,E831=\"\")","v":false}]
[{"$nulls":3},10,"",{"$nulls":5},"",{"$nulls":6},{"$f":"CONST_PrecursorToGoodInput&G809&\"_\"&E832","v":"PrecToGood__"},10,{"$f":"IF(G809=\"\",\"\",L832)","v":""},null,{"$f":"IF(AND(G809<>\"\",E832<>\"\",L832<>\"\"),TRUE,IF(AND(G809<>\"\",E832<>\"\",L832=\"\",X832=FALSE),CONST_ErrorOrMissing&C809,CONST_NA))","v":"n.a."},null,{"$f":"IF(G809=\"\",FALSE,E832=\"\")","v":false}]
[{"$nulls":3},"(c)",{"$f":"Translations!$B$252","v":"Consumed for non-CBAM goods within the installation:"},{"$nulls":5},{"$f":"K820","v":""}]
[{"$nulls":3},"(d)",{"$f":"Translations!$B$253","v":"Control:"},{"$nulls":5},{"$f":"K833","v":""},{"$f":"IF(G809=\"\",\"\",SUM(L820)-SUM(L823:L833))","v":""}]
[]
[]
[{"$nulls":3},{"$f":"Translations!$B$279","v":"Specific embedded emissions:"},{"$nulls":5},{"$f":"IF(G809=\"\",\"\",G809)","v":""}]
[]
[{"$nulls":3},"(e)",{"$f":"Translations!$B$280","v":"Emissions embedded in this purchased precursor"}]
[{"$nulls":4},{"$f":"Translations!$B$281","v":"Please enter here the values and sources for the specific embedded direct and indirect emissions, as obtained from the supplier."}]
[{"$nulls":4},{"$f":"Translations!$B$282","v":"For the SEE (direct), the 'Type of value' relates to whether the direct emissions are measured, or whether a default value provided by the European Commission was applied."}]
[{"$nulls":4},{"$f":"Translations!$B$283","v":"In order to obtain these data and information, you may want to ask your supplier to fill in an empty copy of this communication template."}]
[{"$nulls":4},{"$f":"Translations!$B$284","v":"Parameter:"},{"$nulls":5},{"$f":"Translations!$B$221","v":"Unit"},{"$f":"Translations!$B$260","v":"Value"},{"$f":"Translations!$B$285","v":"Source"}]
[{"$nulls":3},"i.",{"$f":"Translations!$B$286","v":"Specific embedded direct emissions (SEE (direct) )"},{"$nulls":5},{"$f":"IF(L809=\"\",\"\",CONST_tCO2eq&\"/\"&K820)","v":""},{"$nulls":6},{"$f":"CONST_PurchPrecDefaultUsed&G809","v":"PurchPrecDef_"},{"$f":"CONST_CNTR_EmbedEmDir&G809","v":"EmbedEmDir_"},{"$f":"IF(G809=\"\",\"\",SUM(T820)*SUM(L844))","v":""},{"$f":"IF(G809=\"\",\"\",IF(M844=\"\",CONST_ERR_Incomplete,MATCH(M844,CONST_MeasuredOrDefault,0)=2))","v":""},{"$f":"IF(AND(G809<>\"\",COUNTA(L844:M844)=2),TRUE,IF(AND(G809<>\"\",COUNTA(L844:M844)<2),CONST_ErrorOrMissing&C809,CONST_NA))","v":"n.a."}]
[{"$nulls":3},"ii.",{"$f":"Translations!$B$287","v":"Specific embedded indirect emissions (SEE (indirect) )"},{"$nulls":5},{"$f":"K844","v":""},{"$nulls":6},{"$f":"CONST_CNTR_ElecEFMethod&G809","v":"ElecEFMeth_"},{"$f":"CONST_CNTR_EmbedEmInDir&G809","v":"EmbedEmInDir_"},{"$f":"IF(G809=\"\",\"\",SUM(T820)*SUM(L845))","v":""},{"$f":"IF(G809=\"\",\"\",M845)","v":""},{"$f":"IF(AND(G809<>\"\",COUNTA(L845:M845)=2),TRUE,IF(AND(G809<>\"\",COUNTA(L845:M845)<2),CONST_ErrorOrMissing&C809,CONST_NA))","v":"n.a."}]
[]
[{"$nulls":3},"iii.",{"$f":"Translations!$B$1858","v":"Justification for use of default values (if relevant):"},{"$nulls":16},{"$f":"IF(AND(G809<>\"\",X847=FALSE,K847<>\"\"),TRUE,IF(AND(G809<>\"\",M844<>\"\",X847=FALSE,K847=\"\"),CONST_ErrorOrMissing&C809,CONST_NA))","v":"n.a."},null,{"$f":"IF(M844=\"\",FALSE,M844<>INDEX(CONST_MeasuredOrDefault,2))","v":false}]
[]
[]
[]
["ausblenden",{"$nulls":14},"PRINT"]
["ausblenden"]
["ausblenden"]

{"sheet":"F_Tools","index":9,"n_rows":133,"n_cols":24,"rows_kept":133,"merged":[[1,1,3,3],[1,4,1,5],[1,6,1,7],[1,8,1,9],[1,10,1,11],[1,12,1,13],[2,4,2,5],[2,6,2,7],[2,8,2,9],[2,10,2,11],[2,12,2,13],[3,4,3,5],[3,6,3,7],[3,8,3,9],[3,10,3,11],[3,12,3,13],[9,4,9,13],[10,4,10,13],[11,4,11,13],[13,3,13,13],[15,4,15,13],[16,4,16,13],[22,4,22,13],[23,4,23,13],[27,4,27,8],[29,4,29,13],[30,4,30,13],[31,4,31,13],[35,4,35,13],[36,4,36,13],[37,4,37,13],[38,4,38,13],[42,4,42,13],[43,4,43,13],[44,4,44,13],[45,4,45,13],[50,4,50,13],[51,4,51,13],[56,3,56,13],[65,4,65,8],[82,4,82,13],[83,4,83,13],[84,4,84,13],[85,4,86,4],[85,5,85,13],[86,5,86,13],[87,4,87,13],[90,5,90,13],[91,5,91,13],[92,5,92,13],[93,5,93,13],[97,4,98,4],[97,5,98,5],[97,7,98,7],[97,11,98,11],[97,12,98,12],[97,13,98,13]]}
["ausblenden",{"$nulls":16},"ausblenden","ausblenden","ausblenden","ausblenden","ausblenden","ausblenden","ausblenden"]
[null,{"$f":"Translations!$B$288","v":"Tools"},null,null,{"$f":"Translations!$B$11","v":"Navigation Area:"},null,{"$f":"HYPERLINK(\"#\"&ADDRESS(2,3,,,a_Contents!$U$2),a_Contents!$B$2)","v":"Table of contents"},null,{"$f":"HYPERLINK(\"#\"&ADDRESS(2,3,,,G_FurtherGuidance!$U$2),G_FurtherGuidance!$B$2)","v":"Further Guidance"},null,{"$f":"HYPERLINK(\"#\"&ADDRESS(2,3,,,Summary_Processes!$Y$2),Summary_Processes!$Y$2)","v":"Summary_Processes"},null,{"$f":"HYPERLINK(\"#\"&ADDRESS(2,3,,,Summary_Products!$BF$2),Summary_Products!$BF$2)","v":"Summary_Products"},{"$nulls":4},"Print area:",{"$f":"ADDRESS(ROW($B$2),COLUMN(B2))&\":\"&ADDRESS(MATCH(\"PRINT\",$P:$P,0),COLUMN(O4))","v":"$B$2:$O$131"},"Name of this sheet",{"$f":"IF(ISERROR(CELL(\"filename\",V2)),\"MSParameters\",MID(CELL(\"filename\",V2),FIND(\"]\",CELL(\"filename\",V2))+1,1024))","v":"F_Tools"}]
[{"$nulls":6},{"$f":"IFERROR(HYPERLINK(\"#\"&ADDRESS(ROW($A$1)+MATCH(R3,$A:$A,0)-1,3),INDEX($R:$R,MATCH(R3,$A:$A,0))),\"\")","v":"Cogeneration Tool"},null,{"$f":"IFERROR(HYPERLINK(\"#\"&ADDRESS(ROW($A$1)+MATCH(T3,$A:$A,0)-1,3),INDEX($R:$R,MATCH(T3,$A:$A,0))),\"\")","v":"Tool for carbon price due"},null,{"$f":"IFERROR(HYPERLINK(\"#\"&ADDRESS(ROW($A$1)+MATCH(V3,$A:$A,0)-1,3),INDEX($R:$R,MATCH(V3,$A:$A,0))),\"\")","v":""},null,{"$f":"IFERROR(HYPERLINK(\"#\"&ADDRESS(ROW($A$1)+MATCH(X3,$A:$A,0)-1,3),INDEX($R:$R,MATCH(X3,$A:$A,0))),\"\")","v":""},{"$nulls":4},1,null,2,null,3,null,4]
[{"$nulls":6},{"$f":"IFERROR(HYPERLINK(\"#\"&ADDRESS(ROW($A$1)+MATCH(R4,$A:$A,0)-1,3),INDEX($R:$R,MATCH(R4,$A:$A,0))),\"\")","v":""},null,{"$f":"IFERROR(HYPERLINK(\"#\"&ADDRESS(ROW($A$1)+MATCH(T4,$A:$A,0)-1,3),INDEX($R:$R,MATCH(T4,$A:$A,0))),\"\")","v":""},null,{"$f":"IFERROR(HYPERLINK(\"#\"&ADDRESS(ROW($A$1)+MATCH(V4,$A:$A,0)-1,3),INDEX($R:$R,MATCH(V4,$A:$A,0))),\"\")","v":""},null,{"$f":"IFERROR(HYPERLINK(\"#\"&ADDRESS(ROW($A$1)+MATCH(X4,$A:$A,0)-1,3),INDEX($R:$R,MATCH(X4,$A:$A,0))),\"\")","v":""},{"$nulls":4},5,null,6,null,7,null,8]
[]
[null,null,"F.",null,{"$f":"Translations!$B$289","v":"Sheet \"F_Tools\" - Tools for facilitating reporting"},{"$nulls":12},"Marker","EmbedEm",null,null,{"$f":"Translations!$B$66","v":"Errors"},null,"Cond. form."]
[]
[{"$f":"C8","v":1},null,1,{"$f":"Translations!$B$290","v":"Cogeneration Tool"},{"$nulls":13},{"$f":"D8","v":"Cogeneration Tool"},{"$f":"C8","v":1}]
[]
[{"$nulls":4},{"$f":"Translations!$B$291","v":"This is a tool for attributing fuels and emissions of CHPs to heat and electricity output."}]
[{"$nulls":4},{"$f":"Translations!$B$292","v":"This tool exists twofold in this template and each tool should only be used for one CHP. If more CHPs are relevant, you must aggregate energy amounts and emissions from multiple CHPs."}]
[{"$nulls":4},{"$f":"Translations!$B$293","v":"Periods during which the CHP is operated in heat-only or electricity-only generation mode (i.e. periods during which only one of the two products was produced) should be excluded and assignment of fuels and emissions should be calculated separately."}]
[]
[null,null,1,{"$f":"Translations!$B$294","v":"Tool to calculate the emissions attributable to heat production in combined heat and power units (CHP)"}]
[]
[{"$nulls":3},"(a)",{"$f":"Translations!$B$295","v":"Total amount of fuel input into CHP units"}]
[{"$nulls":4},{"$f":"Translations!$B$296","v":"Please enter here the annual fuel input into the CHP unit, the net amount of heat produced and the net amount of electricity (or mechanical energy, where applicable) produced by the CHP."}]
[]
[{"$nulls":8},{"$f":"Translations!$B$297","v":"Parameter"},{"$f":"Translations!$B$298","v":"Fuel input into CHP"},{"$f":"Translations!$B$299","v":"Heat output from CHP"},{"$f":"Translations!$B$300","v":"Electricity output from CHP"},{"$f":"Translations!$B$300","v":"Electricity output from CHP"}]
[{"$nulls":8},{"$f":"Translations!$B$221","v":"Unit"},{"$f":"CONST_TJ","v":"TJ"},{"$f":"CONST_TJ","v":"TJ"},{"$f":"CONST_MWh","v":"MWh"},{"$f":"CONST_TJ","v":"TJ"}]
[{"$nulls":4},{"$f":"Translations!$B$301","v":"Inputs and outputs"},{"$nulls":3},{"$f":"Translations!$B$260","v":"Value"},{"$nulls":3},{"$f":"IF(ISBLANK(L21),\"\",L21*3.6/1000)","v":""}]
[]
[{"$nulls":3},"(b)",{"$f":"Translations!$B$302","v":"Total emissions from CHP"}]
[{"$nulls":4},{"$f":"Translations!$B$303","v":"Values should distinguish between emissions from fuel input and from flue gas cleaning."}]
[{"$nulls":8},{"$f":"Translations!$B$221","v":"Unit"},{"$f":"Translations!$B$304","v":"From fuel input to CHP"},{"$f":"Translations!$B$305","v":"From flue gas cleaning"},{"$f":"Translations!$B$239","v":"Total emissions"}]
[{"$nulls":4},{"$f":"Translations!$B$306","v":"GHG emissions"},{"$nulls":3},{"$f":"CONST_tCO2","v":"tCO2"},null,null,{"$f":"IF(COUNT(J26:J26)>0,SUM(J26:J26),\"\")","v":""}]
[]
[{"$nulls":3},"(c)",{"$f":"Translations!$B$308","v":"Default efficiencies:"},{"$nulls":4},{"$f":"Translations!$B$309","v":"Heat:"},{"v":0.55,"d":"55.00%"},{"$f":"Translations!$B$310","v":"Electricity:"},{"v":0.25,"d":"25.00%"}]
[]
[{"$nulls":3},"(d)",{"$f":"Translations!$B$311","v":"Efficiencies for heat and electricity"}]
[{"$nulls":4},{"$f":"Translations!$B$312","v":"These values are dimensionless and automatically calculated from inputs in (a) to (c) above."}]
[{"$nulls":4},{"$f":"Translations!$B$313","v":"If no values are displayed here but total emissions under (b) above, default efficiencies from (c) will be used here. Please note that this should only be done if the determination of the efficiencies is technically not feasible or would incur unreasonable costs, and values based on technical documentation (design values) of the installation are not available as well."}]
[{"$nulls":8},{"$f":"Translations!$B$221","v":"Unit"},{"$f":"Translations!$B$314","v":"Heat production"},{"$f":"Translations!$B$315","v":"Electricity production"},{"$f":"Translations!$B$316","v":"Total"}]
[{"$nulls":4},{"$f":"Translations!$B$317","v":"Efficiencies"},{"$nulls":3},"-",{"$f":"IF(AND(ISNUMBER(J21),ISNUMBER(K21)),IF(J21=0,0,K21/J21),IF(ISNUMBER(L26),$K28,\"\"))","v":""},{"$f":"IF(AND(ISNUMBER(J21),ISNUMBER(M21)),IF(J21=0,0,M21/J21),IF(ISNUMBER(L26),$M28,\"\"))","v":""},{"$f":"IF(COUNT(J34:K34)>0,SUM(J34:K34),\"\")","v":""}]
[]
[{"$nulls":3},"(e)",{"$f":"Translations!$B$318","v":"Reference efficiencies"}]
[{"$nulls":4},{"$f":"Translations!$B$319","v":"These are the reference efficiency for heat production in a stand-alone boiler, and the reference efficiency of electricity production without cogeneration. "}]
[{"$nulls":4},{"$f":"Translations!$B$320","v":"For the reference efficiencies the appropriate fuel-specific values from Annex IX of the Commission Implementing Regulation pursuant to Article 35(7) of the CBAM Regulation."}]
[{"$nulls":4},{"$f":"Translations!$B$321","v":"Default efficiencies below are for hard coal CHPs producing electricity and hot water."}]
[{"$nulls":8},{"$f":"Translations!$B$221","v":"Unit"},{"$f":"Translations!$B$314","v":"Heat production"},{"$f":"Translations!$B$315","v":"Electricity production"}]
[{"$nulls":4},{"$f":"Translations!$B$318","v":"Reference efficiencies"},{"$nulls":3},"-",{"v":0.88,"d":"88.00%"},{"v":0.442,"d":"44.20%"}]
[]
[{"$nulls":3},"(f)",{"$f":"Translations!$B$322","v":"Emissions attributable to heat production from CHP"}]
[{"$nulls":4},{"$f":"Translations!$B$323","v":"This is the final result of this tool. The values displayed here should be entered in sheets D or E for the attributable emissions for the appropriate production process or precursor."}]
[{"$nulls":4},{"$f":"Translations!$B$324","v":"For example, this may include attributable emissions to be taken into account for the total direct emissions, or use of the emission factor for any measurable heat imported."}]
[{"$nulls":4},{"$f":"Translations!$B$325","v":"Calculation results can only be considered correct if complete and consistent data is reported in sections above."}]
[{"$nulls":8},{"$f":"Translations!$B$297","v":"Parameter"},{"$f":"Translations!$B$326","v":"Emissions attributable to heat output"},{"$f":"Translations!$B$327","v":"Emission factor, heat"},{"$f":"Translations!$B$328","v":"Emissions attributable to electricity"},{"$f":"Translations!$B$329","v":"Emission factor, electricity"}]
[{"$nulls":8},{"$f":"Translations!$B$221","v":"Unit"},{"$f":"CONST_tCO2","v":"tCO2"},{"$f":"CONST_tCO2pTJ","v":"tCO2/TJ"},{"$f":"CONST_tCO2","v":"tCO2"},{"$f":"CONST_tCO2pTJ","v":"tCO2/TJ"}]
[{"$nulls":4},{"$f":"Translations!$B$330","v":"Attributable emissions"},{"$nulls":3},{"$f":"Translations!$B$260","v":"Value"},{"$f":"IF(AND(ISNUMBER(J34),ISNUMBER(K34),ISNUMBER(J41),ISNUMBER(K41)),IFERROR(J34/J41/(J34/J41+K34/K41),0)*SUM(L26),\"\")","v":""},{"$f":"IF(AND(ISNUMBER(K21),ISNUMBER(J49)),IFERROR(J49/K21,\"\"),\"\")","v":""},{"$f":"IF(AND(ISNUMBER(J34),ISNUMBER(K34),ISNUMBER(J41),ISNUMBER(K41)),IFERROR(K34/K41/(J34/J41+K34/K41),0)*SUM(L26),\"\")","v":""},{"$f":"IF(AND(ISNUMBER(M21),ISNUMBER(L49)),IFERROR(L49/M21,\"\"),\"\")","v":""}]
[]
[{"$nulls":3},"(g)",{"$f":"Translations!$B$331","v":"Fuel input attributable to heat and electricity production"}]
[{"$nulls":4},{"$f":"Translations!$B$332","v":"This is the final result of this tool. The values displayed here should be used in section C.1."}]
[{"$nulls":8},{"$f":"Translations!$B$221","v":"Unit"},{"$f":"Translations!$B$333","v":"Fuel input for heat"},{"$f":"Translations!$B$334","v":"Fuel input for electricity"}]
[{"$nulls":4},{"$f":"Translations!$B$335","v":"Attributable fuel input"},{"$nulls":3},{"$f":"CONST_TJ","v":"TJ"},{"$f":"IF(ISNUMBER(J49),IFERROR(J34/J41/(J34/J41+K34/K41)*SUM(J21),0),\"\")","v":""},{"$f":"IF(ISNUMBER(J54),SUM(J21)-SUM(J54),\"\")","v":""}]
[]
[]
[null,null,2,{"$f":"Translations!$B$294","v":"Tool to calculate the emissions attributable to heat production in combined heat and power units (CHP)"}]
[]
[{"$nulls":8},{"$f":"Translations!$B$297","v":"Parameter"},{"$f":"Translations!$B$298","v":"Fuel input into CHP"},{"$f":"Translations!$B$299","v":"Heat output from CHP"},{"$f":"Translations!$B$300","v":"Electricity output from CHP"},{"$f":"Translations!$B$300","v":"Electricity output from CHP"}]
[{"$nulls":3},"(a)",{"$f":"Translations!$B$295","v":"Total amount of fuel input into CHP units"},{"$nulls":3},{"$f":"Translations!$B$221","v":"Unit"},{"$f":"CONST_TJ","v":"TJ"},{"$f":"CONST_TJ","v":"TJ"},{"$f":"CONST_MWh","v":"MWh"},{"$f":"CONST_TJ","v":"TJ"}]
[{"$nulls":4},{"$f":"Translations!$B$301","v":"Inputs and outputs"},{"$nulls":3},{"$f":"Translations!$B$260","v":"Value"},{"$nulls":3},{"$f":"IF(ISBLANK(L61),\"\",L61*3.6/1000)","v":""}]
[]
[{"$nulls":3},"(b)",{"$f":"Translations!$B$302","v":"Total emissions from CHP"},{"$nulls":3},{"$f":"Translations!$B$221","v":"Unit"},{"$f":"Translations!$B$304","v":"From fuel input to CHP"},{"$f":"Translations!$B$305","v":"From flue gas cleaning"},{"$f":"Translations!$B$239","v":"Total emissions"}]
[{"$nulls":4},{"$f":"Translations!$B$306","v":"GHG emissions"},{"$nulls":3},{"$f":"CONST_tCO2","v":"tCO2"},null,null,{"$f":"IF(COUNT(J64:J64)>0,SUM(J64:J64),\"\")","v":""}]
[]
[{"$nulls":3},"(c)",{"$f":"Translations!$B$308","v":"Default efficiencies:"},{"$nulls":4},{"$f":"Translations!$B$309","v":"Heat:"},{"v":0.55,"d":"55.00%"},{"$f":"Translations!$B$310","v":"Electricity:"},{"v":0.25,"d":"25.00%"}]
[]
[{"$nulls":3},"(d)",{"$f":"Translations!$B$311","v":"Efficiencies for heat and electricity"},{"$nulls":3},{"$f":"Translations!$B$221","v":"Unit"},{"$f":"Translations!$B$314","v":"Heat production"},{"$f":"Translations!$B$315","v":"Electricity production"},{"$f":"Translations!$B$316","v":"Total"}]
[{"$nulls":4},{"$f":"Translations!$B$317","v":"Efficiencies"},{"$nulls":3},"-",{"$f":"IF(AND(ISNUMBER(J61),ISNUMBER(K61)),IF(J61=0,0,K61/J61),IF(ISNUMBER(L64),$K66,\"\"))","v":""},{"$f":"IF(AND(ISNUMBER(J61),ISNUMBER(M61)),IF(J61=0,0,M61/J61),IF(ISNUMBER(L64),$M66,\"\"))","v":""},{"$f":"IF(COUNT(J69:K69)>0,SUM(J69:K69),\"\")","v":""}]
[]
[{"$nulls":3},"(e)",{"$f":"Translations!$B$318","v":"Reference efficiencies"},{"$nulls":3},{"$f":"Translations!$B$221","v":"Unit"},{"$f":"Translations!$B$314","v":"Heat production"},{"$f":"Translations!$B$315","v":"Electricity production"}]
[{"$nulls":4},{"$f":"Translations!$B$318","v":"Reference efficiencies"},{"$nulls":3},"-",{"v":0.88,"d":"88.00%"},{"v":0.442,"d":"44.20%"}]
[]
[{"$nulls":8},{"$f":"Translations!$B$297","v":"Parameter"},{"$f":"Translations!$B$326","v":"Emissions attributable to heat output"},{"$f":"Translations!$B$327","v":"Emission factor, heat"},{"$f":"Translations!$B$328","v":"Emissions attributable to electricity"},{"$f":"Translations!$B$329","v":"Emission factor, electricity"}]
[{"$nulls":3},"(f)",{"$f":"Translations!$B$322","v":"Emissions attributable to heat production from CHP"},{"$nulls":3},{"$f":"Translations!$B$221","v":"Unit"},{"$f":"CONST_tCO2","v":"tCO2"},{"$f":"CONST_tCO2pTJ","v":"tCO2/TJ"},{"$f":"CONST_tCO2","v":"tCO2"},{"$f":"CONST_tCO2pTJ","v":"tCO2/TJ"}]
[{"$nulls":4},{"$f":"Translations!$B$330","v":"Attributable emissions"},{"$nulls":3},{"$f":"Translations!$B$260","v":"Value"},{"$f":"IF(AND(ISNUMBER(J69),ISNUMBER(K69),ISNUMBER(J72),ISNUMBER(K72)),IFERROR(J69/J72/(J69/J72+K69/K72),0)*SUM(L64),\"\")","v":""},{"$f":"IF(AND(ISNUMBER(K61),ISNUMBER(J76)),IFERROR(J76/K61,\"\"),\"\")","v":""},{"$f":"IF(AND(ISNUMBER(J69),ISNUMBER(K69),ISNUMBER(J72),ISNUMBER(K72)),IFERROR(K69/K72/(J69/J72+K69/K72),0)*SUM(L64),\"\")","v":""},{"$f":"IF(AND(ISNUMBER(M61),ISNUMBER(L76)),IFERROR(L76/M61,\"\"),\"\")","v":""}]
[]
[{"$nulls":3},"(g)",{"$f":"Translations!$B$331","v":"Fuel input attributable to heat and electricity production"},{"$nulls":3},{"$f":"Translations!$B$221","v":"Unit"},{"$f":"Translations!$B$333","v":"Fuel input for heat"},{"$f":"Translations!$B$334","v":"Fuel input for electricity"}]
[{"$nulls":4},{"$f":"Translations!$B$335","v":"Attributable fuel input"},{"$nulls":3},{"$f":"CONST_TJ","v":"TJ"},{"$f":"IF(ISNUMBER(J76),IFERROR(J69/J72/(J69/J72+K69/K72)*SUM(J61),0),\"\")","v":""},{"$f":"IF(ISNUMBER(J79),SUM(J61)-SUM(J79),\"\")","v":""}]
[]
[{"$f":"C81","v":2},null,2,{"$f":"Translations!$B$336","v":"Tool to calculate the carbon price due"},{"$nulls":13},{"$f":"Translations!$B$337","v":"Tool for carbon price due"},{"$f":"C81","v":2}]
[]
[]
[{"$nulls":4},{"$f":"Translations!$B$338","v":"This tool aims to help you with the calculation of the carbon price due. Similar to the calculation of the specific embedded emissions in sheets D + E, please only enter the carbon price due and any rebate received in respect of the system boundaries of the production process."}]
[{"$nulls":4},{"$f":"Translations!$B$339","v":"The results obtained here in columns L and M have to be manually entered into the respective fields in sheet \"Summary_Products\"."}]
[{"$nulls":4},{"$f":"Translations!$B$340","v":"The following conditions apply:"},{"$f":"Translations!$B$341","v":"- the carbon price used for each production process has to be converted into one common currency."}]
[{"$nulls":5},{"$f":"Translations!$B$342","v":"- the system boundaries of carbon pricing have to be consistent with the boundaries of the production process and precursors."}]
[{"$nulls":4},{"$f":"Translations!$B$343","v":"If the conditions above are not satisfied, this tool can only be used to support you with the calculation of the carbon price, but results cannot be used directly."}]
[]
[]
[{"$nulls":4},{"$f":"Translations!$B$1861","v":"SE (total)"},{"$f":"Translations!$B$1862","v":"Specific direct + indirect emissions of the production process, i.e. excluding any embedded emissions from any precursors consumed in the process."}]
[{"$nulls":4},{"$f":"Translations!$B$346","v":"Share of emissions covered by the carbon price"},{"$f":"Translations!$B$1863","v":"Please enter here the share of the TOTAL (direct + indirect) specific emissions that are subject to carbon pricing. For instance, if only direct emissions are covered by a carbon pricing system, the share to be provided here would be exactly the share of the direct emissions of the total emissions."}]
[{"$nulls":4},{"$f":"Translations!$B$347","v":"Carbon price (CP) due"},{"$f":"Translations!$B$1864","v":"Please enter here the carbon price due per tonne of CO2e in the relevant currency. This value shall not include any rebate such as free allocation or financial compensation. It shall also not include any carbon price due for any precursors outside the production process to avoid double counting."}]
[{"$nulls":4},{"$f":"Translations!$B$348","v":"Amount of rebate (local currency)"},{"$f":"Translations!$B$1865","v":"Please enter here the rebate per tonne of CO2e covered by the rebate in the relevant currency. It shall also not include any rebate for any precursors outside the production process to avoid double counting."}]
[]
[{"$nulls":8},{"$f":"Translations!$B$1866","v":"Currency:"},null,{"$f":"IF(J96=\"\",\"\",INDEX(CNTR_ListCurrenciesName,MATCH(J96,CNTR_ListCurrenciesCode,0)))","v":""}]
[]
[{"$nulls":4},{"$f":"Translations!$B$120","v":"Production process"},{"$f":"Translations!$B$107","v":"Aggregated goods category"},{"$f":"Translations!$B$1861","v":"SE (total)"},{"$f":"Translations!$B$346","v":"Share of emissions covered by the carbon price"},{"$f":"Translations!$B$1867","v":"Covered SE"},{"$f":"Translations!$B$350","v":"Carbon price (CP) due (local currency)"},{"$f":"Translations!$B$348","v":"Amount of rebate (local currency)"},{"$f":"Translations!$B$351","v":"CP due (per t or MWh)"},{"$f":"Translations!$B$352","v":"Rebate (per t or MWh)"},{"$f":"Translations!$B$353","v":"Result: Effective CP due"}]
[{"$nulls":6},{"$f":"CONST_tCO2eq&\"/\"&CONST_t","v":"tCO2e/t"},null,{"$f":"CONST_tCO2eq&\"/\"&CONST_t","v":"tCO2e/t"},{"$f":"IF(J96=\"\",\"\",J96)&\"/\"&CONST_tCO2eq","v":"/tCO2e"},{"$f":"J99","v":"/tCO2e"},{"$nulls":8},"CP Paid","Rebate","Total CP Paid","Total Rebate"]
[{"$nulls":3},{"$f":"INDEX(CNTR_ListProdProcID,ROWS(D$100:D100))","v":"P1"},{"$f":"IF(INDEX(CNTR_List_ExistProdProcNames,ROWS(D$100:D100))=CONST_NA,\"\",INDEX(CNTR_List_ExistProdProcNames,ROWS(D$100:D100)))","v":""},{"$f":"IF(E100=\"\",\"\",INDEX(CNTR_List_ExistProdProc,MATCH(E100,CNTR_List_ExistProdProcNames,0)))","v":""},{"$f":"IF($E100=\"\",\"\",SUM(InputOutput!AJ71,InputOutput!AL71))","v":""},null,{"$f":"IF(G100=\"\",\"\",G100*H100)","v":""},null,null,{"$f":"IF($F100=\"\",\"\",IFERROR(V100,0))","v":""},{"$f":"IF($F100=\"\",\"\",IFERROR(W100,0))","v":""},{"$f":"IF($F100=\"\",\"\",L100-M100)","v":""},{"$nulls":5},{"$f":"SUM($I100)*SUM(J100)","v":{"v":0,"d":"0.00"}},{"$f":"SUM($I100)*SUM(K100)","v":{"v":0,"d":"0.00"}},{"$f":"MMULT(CNTR_Matrix_Inv,T100:T129)","v":{"v":0,"d":"0.00"}},{"$f":"MMULT(CNTR_Matrix_Inv,U100:U129)","v":{"v":0,"d":"0.00"}}]
[{"$nulls":3},{"$f":"INDEX(CNTR_ListProdProcID,ROWS(D$100:D101))","v":"P2"},{"$f":"IF(INDEX(CNTR_List_ExistProdProcNames,ROWS(D$100:D101))=CONST_NA,\"\",INDEX(CNTR_List_ExistProdProcNames,ROWS(D$100:D101)))","v":""},"",{"$f":"IF($E101=\"\",\"\",SUM(InputOutput!AJ72,InputOutput!AL72))","v":""},null,{"$f":"IF(G101=\"\",\"\",G101*H101)","v":""},null,null,{"$f":"IF($F101=\"\",\"\",IFERROR(V101,0))","v":""},{"$f":"IF($F101=\"\",\"\",IFERROR(W101,0))","v":""},{"$f":"IF($F101=\"\",\"\",L101-M101)","v":""},{"$nulls":5},{"$f":"SUM($I101)*SUM(J101)","v":{"v":0,"d":"0.00"}},{"$f":"SUM($I101)*SUM(K101)","v":{"v":0,"d":"0.00"}},{"v":0,"d":"0.00"},{"v":0,"d":"0.00"}]
[{"$nulls":3},{"$f":"INDEX(CNTR_ListProdProcID,ROWS(D$100:D102))","v":"P3"},{"$f":"IF(INDEX(CNTR_List_ExistProdProcNames,ROWS(D$100:D102))=CONST_NA,\"\",INDEX(CNTR_List_ExistProdProcNames,ROWS(D$100:D102)))","v":""},"",{"$f":"IF($E102=\"\",\"\",SUM(InputOutput!AJ73,InputOutput!AL73))","v":""},null,{"$f":"IF(G102=\"\",\"\",G102*H102)","v":""},null,null,"","","",{"$nulls":5},{"v":0,"d":"0.00"},{"v":0,"d":"0.00"},{"v":0,"d":"0.00"},{"v":0,"d":"0.00"}]
[{"$nulls":3},{"$f":"INDEX(CNTR_ListProdProcID,ROWS(D$100:D103))","v":"P4"},{"$f":"IF(INDEX(CNTR_List_ExistProdProcNames,ROWS(D$100:D103))=CONST_NA,\"\",INDEX(CNTR_List_ExistProdProcNames,ROWS(D$100:D103)))","v":""},"",{"$f":"IF($E103=\"\",\"\",SUM(InputOutput!AJ74,InputOutput!AL74))","v":""},null,"",null,null,"","","",{"$nulls":5},{"v":0,"d":"0.00"},{"v":0,"d":"0.00"},{"v":0,"d":"0.00"},{"v":0,"d":"0.00"}]
[{"$nulls":3},{"$f":"INDEX(CNTR_ListProdProcID,ROWS(D$100:D104))","v":"P5"},{"$f":"IF(INDEX(CNTR_List_ExistProdProcNames,ROWS(D$100:D104))=CONST_NA,\"\",INDEX(CNTR_List_ExistProdProcNames,ROWS(D$100:D104)))","v":""},"",{"$f":"IF($E104=\"\",\"\",SUM(InputOutput!AJ75,InputOutput!AL75))","v":""},null,"",null,null,"","","",{"$nulls":5},{"v":0,"d":"0.00"},{"v":0,"d":"0.00"},{"v":0,"d":"0.00"},{"v":0,"d":"0.00"}]
[{"$nulls":3},{"$f":"INDEX(CNTR_ListProdProcID,ROWS(D$100:D105))","v":"P6"},{"$f":"IF(INDEX(CNTR_List_ExistProdProcNames,ROWS(D$100:D105))=CONST_NA,\"\",INDEX(CNTR_List_ExistProdProcNames,ROWS(D$100:D105)))","v":""},"",{"$f":"IF($E105=\"\",\"\",SUM(InputOutput!AJ76,InputOutput!AL76))","v":""},null,"",null,null,"","","",{"$nulls":5},{"v":0,"d":"0.00"},{"v":0,"d":"0.00"},{"v":0,"d":"0.00"},{"v":0,"d":"0.00"}]
[{"$nulls":3},{"$f":"INDEX(CNTR_ListProdProcID,ROWS(D$100:D106))","v":"P7"},{"$f":"IF(INDEX(CNTR_List_ExistProdProcNames,ROWS(D$100:D106))=CONST_NA,\"\",INDEX(CNTR_List_ExistProdProcNames,ROWS(D$100:D106)))","v":""},"",{"$f":"IF($E106=\"\",\"\",SUM(InputOutput!AJ77,InputOutput!AL77))","v":""},null,"",null,null,"","","",{"$nulls":5},{"v":0,"d":"0.00"},{"v":0,"d":"0.00"},{"v":0,"d":"0.00"},{"v":0,"d":"0.00"}]
[{"$nulls":3},{"$f":"INDEX(CNTR_ListProdProcID,ROWS(D$100:D107))","v":"P8"},{"$f":"IF(INDEX(CNTR_List_ExistProdProcNames,ROWS(D$100:D107))=CONST_NA,\"\",INDEX(CNTR_List_ExistProdProcNames,ROWS(D$100:D107)))","v":""},"",{"$f":"IF($E107=\"\",\"\",SUM(InputOutput!AJ78,InputOutput!AL78))","v":""},null,"",null,null,"","","",{"$nulls":5},{"v":0,"d":"0.00"},{"v":0,"d":"0.00"},{"v":0,"d":"0.00"},{"v":0,"d":"0.00"}]
[{"$nulls":3},{"$f":"INDEX(CNTR_ListProdProcID,ROWS(D$100:D108))","v":"P9"},{"$f":"IF(INDEX(CNTR_List_ExistProdProcNames,ROWS(D$100:D108))=CONST_NA,\"\",INDEX(CNTR_List_ExistProdProcNames,ROWS(D$100:D108)))","v":""},"",{"$f":"IF($E108=\"\",\"\",SUM(InputOutput!AJ79,InputOutput!AL79))","v":""},null,"",null,null,"","","",{"$nulls":5},{"v":0,"d":"0.00"},{"v":0,"d":"0.00"},{"v":0,"d":"0.00"},{"v":0,"d":"0.00"}]
[{"$nulls":3},{"$f":"INDEX(CNTR_ListProdProcID,ROWS(D$100:D109))","v":"P10"},{"$f":"IF(INDEX(CNTR_List_ExistProdProcNames,ROWS(D$100:D109))=CONST_NA,\"\",INDEX(CNTR_List_ExistProdProcNames,ROWS(D$100:D109)))","v":""},"",{"$f":"IF($E109=\"\",\"\",SUM(InputOutput!AJ80,InputOutput!AL80))","v":""},null,"",null,null,"","","",{"$nulls":5},{"v":0,"d":"0.00"},{"v":0,"d":"0.00"},{"v":0,"d":"0.00"},{"v":0,"d":"0.00"}]
[{"$nulls":3},{"$f":"INDEX(CNTR_ListPurchPrecID,ROWS(D$110:D110))","v":"PP1"},{"$f":"IF(INDEX(CNTR_List_ExistPurchPrecNames,ROWS(D$110:D110))=CONST_NA,\"\",INDEX(CNTR_List_ExistPurchPrecNames,ROWS(D$110:D110)))","v":""},{"$f":"IF(E110=\"\",\"\",INDEX(CNTR_List_ExistPurchPrec,MATCH(D110,CNTR_ListPurchPrecID,0)))","v":""},{"$f":"IF($E110=\"\",\"\",SUM(InputOutput!AJ81,InputOutput!AL81))","v":""},null,"",{"$nulls":10},{"v":0,"d":"0.00"},{"v":0,"d":"0.00"}]
[{"$nulls":3},{"$f":"INDEX(CNTR_ListPurchPrecID,ROWS(D$110:D111))","v":"PP2"},{"$f":"IF(INDEX(CNTR_List_ExistPurchPrecNames,ROWS(D$110:D111))=CONST_NA,\"\",INDEX(CNTR_List_ExistPurchPrecNames,ROWS(D$110:D111)))","v":""},"",{"$f":"IF($E111=\"\",\"\",SUM(InputOutput!AJ82,InputOutput!AL82))","v":""},null,"",{"$nulls":10},{"v":0,"d":"0.00"},{"v":0,"d":"0.00"}]
[{"$nulls":3},{"$f":"INDEX(CNTR_ListPurchPrecID,ROWS(D$110:D112))","v":"PP3"},{"$f":"IF(INDEX(CNTR_List_ExistPurchPrecNames,ROWS(D$110:D112))=CONST_NA,\"\",INDEX(CNTR_List_ExistPurchPrecNames,ROWS(D$110:D112)))","v":""},"",{"$f":"IF($E112=\"\",\"\",SUM(InputOutput!AJ83,InputOutput!AL83))","v":""},null,"",{"$nulls":10},{"v":0,"d":"0.00"},{"v":0,"d":"0.00"}]
[{"$nulls":3},{"$f":"INDEX(CNTR_ListPurchPrecID,ROWS(D$110:D113))","v":"PP4"},{"$f":"IF(INDEX(CNTR_List_ExistPurchPrecNames,ROWS(D$110:D113))=CONST_NA,\"\",INDEX(CNTR_List_ExistPurchPrecNames,ROWS(D$110:D113)))","v":""},"",{"$f":"IF($E113=\"\",\"\",SUM(InputOutput!AJ84,InputOutput!AL84))","v":""},null,"",{"$nulls":10},{"v":0,"d":"0.00"},{"v":0,"d":"0.00"}]
[{"$nulls":3},{"$f":"INDEX(CNTR_ListPurchPrecID,ROWS(D$110:D114))","v":"PP5"},{"$f":"IF(INDEX(CNTR_List_ExistPurchPrecNames,ROWS(D$110:D114))=CONST_NA,\"\",INDEX(CNTR_List_ExistPurchPrecNames,ROWS(D$110:D114)))","v":""},"",{"$f":"IF($E114=\"\",\"\",SUM(InputOutput!AJ85,InputOutput!AL85))","v":""},null,"",{"$nulls":10},{"v":0,"d":"0.00"},{"v":0,"d":"0.00"}]
[{"$nulls":3},{"$f":"INDEX(CNTR_ListPurchPrecID,ROWS(D$110:D115))","v":"PP6"},{"$f":"IF(INDEX(CNTR_List_ExistPurchPrecNames,ROWS(D$110:D115))=CONST_NA,\"\",INDEX(CNTR_List_ExistPurchPrecNames,ROWS(D$110:D115)))","v":""},"",{"$f":"IF($E115=\"\",\"\",SUM(InputOutput!AJ86,InputOutput!AL86))","v":""},null,"",{"$nulls":10},{"v":0,"d":"0.00"},{"v":0,"d":"0.00"}]
[{"$nulls":3},{"$f":"INDEX(CNTR_ListPurchPrecID,ROWS(D$110:D116))","v":"PP7"},{"$f":"IF(INDEX(CNTR_List_ExistPurchPrecNames,ROWS(D$110:D116))=CONST_NA,\"\",INDEX(CNTR_List_ExistPurchPrecNames,ROWS(D$110:D116)))","v":""},"",{"$f":"IF($E116=\"\",\"\",SUM(InputOutput!AJ87,InputOutput!AL87))","v":""},null,"",{"$nulls":10},{"v":0,"d":"0.00"},{"v":0,"d":"0.00"}]
[{"$nulls":3},{"$f":"INDEX(CNTR_ListPurchPrecID,ROWS(D$110:D117))","v":"PP8"},{"$f":"IF(INDEX(CNTR_List_ExistPurchPrecNames,ROWS(D$110:D117))=CONST_NA,\"\",INDEX(CNTR_List_ExistPurchPrecNames,ROWS(D$110:D117)))","v":""},"",{"$f":"IF($E117=\"\",\"\",SUM(InputOutput!AJ88,InputOutput!AL88))","v":""},null,"",{"$nulls":10},{"v":0,"d":"0.00"},{"v":0,"d":"0.00"}]
[{"$nulls":3},{"$f":"INDEX(CNTR_ListPurchPrecID,ROWS(D$110:D118))","v":"PP9"},{"$f":"IF(INDEX(CNTR_List_ExistPurchPrecNames,ROWS(D$110:D118))=CONST_NA,\"\",INDEX(CNTR_List_ExistPurchPrecNames,ROWS(D$110:D118)))","v":""},"",{"$f":"IF($E118=\"\",\"\",SUM(InputOutput!AJ89,InputOutput!AL89))","v":""},null,"",{"$nulls":10},{"v":0,"d":"0.00"},{"v":0,"d":"0.00"}]
[{"$nulls":3},{"$f":"INDEX(CNTR_ListPurchPrecID,ROWS(D$110:D119))","v":"PP10"},{"$f":"IF(INDEX(CNTR_List_ExistPurchPrecNames,ROWS(D$110:D119))=CONST_NA,\"\",INDEX(CNTR_List_ExistPurchPrecNames,ROWS(D$110:D119)))","v":""},"",{"$f":"IF($E119=\"\",\"\",SUM(InputOutput!AJ90,InputOutput!AL90))","v":""},null,"",{"$nulls":10},{"v":0,"d":"0.00"},{"v":0,"d":"0.00"}]
[{"$nulls":3},{"$f":"INDEX(CNTR_ListPurchPrecID,ROWS(D$110:D120))","v":"PP11"},{"$f":"IF(INDEX(CNTR_List_ExistPurchPrecNames,ROWS(D$110:D120))=CONST_NA,\"\",INDEX(CNTR_List_ExistPurchPrecNames,ROWS(D$110:D120)))","v":""},"",{"$f":"IF($E120=\"\",\"\",SUM(InputOutput!AJ91,InputOutput!AL91))","v":""},null,"",{"$nulls":10},{"v":0,"d":"0.00"},{"v":0,"d":"0.00"}]
[{"$nulls":3},{"$f":"INDEX(CNTR_ListPurchPrecID,ROWS(D$110:D121))","v":"PP12"},{"$f":"IF(INDEX(CNTR_List_ExistPurchPrecNames,ROWS(D$110:D121))=CONST_NA,\"\",INDEX(CNTR_List_ExistPurchPrecNames,ROWS(D$110:D121)))","v":""},"",{"$f":"IF($E121=\"\",\"\",SUM(InputOutput!AJ92,InputOutput!AL92))","v":""},null,"",{"$nulls":10},{"v":0,"d":"0.00"},{"v":0,"d":"0.00"}]
[{"$nulls":3},{"$f":"INDEX(CNTR_ListPurchPrecID,ROWS(D$110:D122))","v":"PP13"},{"$f":"IF(INDEX(CNTR_List_ExistPurchPrecNames,ROWS(D$110:D122))=CONST_NA,\"\",INDEX(CNTR_List_ExistPurchPrecNames,ROWS(D$110:D122)))","v":""},"",{"$f":"IF($E122=\"\",\"\",SUM(InputOutput!AJ93,InputOutput!AL93))","v":""},null,"",{"$nulls":10},{"v":0,"d":"0.00"},{"v":0,"d":"0.00"}]
[{"$nulls":3},{"$f":"INDEX(CNTR_ListPurchPrecID,ROWS(D$110:D123))","v":"PP14"},{"$f":"IF(INDEX(CNTR_List_ExistPurchPrecNames,ROWS(D$110:D123))=CONST_NA,\"\",INDEX(CNTR_List_ExistPurchPrecNames,ROWS(D$110:D123)))","v":""},"",{"$f":"IF($E123=\"\",\"\",SUM(InputOutput!AJ94,InputOutput!AL94))","v":""},null,"",{"$nulls":10},{"v":0,"d":"0.00"},{"v":0,"d":"0.00"}]
[{"$nulls":3},{"$f":"INDEX(CNTR_ListPurchPrecID,ROWS(D$110:D124))","v":"PP15"},{"$f":"IF(INDEX(CNTR_List_ExistPurchPrecNames,ROWS(D$110:D124))=CONST_NA,\"\",INDEX(CNTR_List_ExistPurchPrecNames,ROWS(D$110:D124)))","v":""},"",{"$f":"IF($E124=\"\",\"\",SUM(InputOutput!AJ95,InputOutput!AL95))","v":""},null,"",{"$nulls":10},{"v":0,"d":"0.00"},{"v":0,"d":"0.00"}]
[{"$nulls":3},{"$f":"INDEX(CNTR_ListPurchPrecID,ROWS(D$110:D125))","v":"PP16"},{"$f":"IF(INDEX(CNTR_List_ExistPurchPrecNames,ROWS(D$110:D125))=CONST_NA,\"\",INDEX(CNTR_List_ExistPurchPrecNames,ROWS(D$110:D125)))","v":""},"",{"$f":"IF($E125=\"\",\"\",SUM(InputOutput!AJ96,InputOutput!AL96))","v":""},null,"",{"$nulls":10},{"v":0,"d":"0.00"},{"v":0,"d":"0.00"}]
[{"$nulls":3},{"$f":"INDEX(CNTR_ListPurchPrecID,ROWS(D$110:D126))","v":"PP17"},{"$f":"IF(INDEX(CNTR_List_ExistPurchPrecNames,ROWS(D$110:D126))=CONST_NA,\"\",INDEX(CNTR_List_ExistPurchPrecNames,ROWS(D$110:D126)))","v":""},"",{"$f":"IF($E126=\"\",\"\",SUM(InputOutput!AJ97,InputOutput!AL97))","v":""},null,"",{"$nulls":10},{"v":0,"d":"0.00"},{"v":0,"d":"0.00"}]
[{"$nulls":3},{"$f":"INDEX(CNTR_ListPurchPrecID,ROWS(D$110:D127))","v":"PP18"},{"$f":"IF(INDEX(CNTR_List_ExistPurchPrecNames,ROWS(D$110:D127))=CONST_NA,\"\",INDEX(CNTR_List_ExistPurchPrecNames,ROWS(D$110:D127)))","v":""},"",{"$f":"IF($E127=\"\",\"\",SUM(InputOutput!AJ98,InputOutput!AL98))","v":""},null,"",{"$nulls":10},{"v":0,"d":"0.00"},{"v":0,"d":"0.00"}]
[{"$nulls":3},{"$f":"INDEX(CNTR_ListPurchPrecID,ROWS(D$110:D128))","v":"PP19"},{"$f":"IF(INDEX(CNTR_List_ExistPurchPrecNames,ROWS(D$110:D128))=CONST_NA,\"\",INDEX(CNTR_List_ExistPurchPrecNames,ROWS(D$110:D128)))","v":""},"",{"$f":"IF($E128=\"\",\"\",SUM(InputOutput!AJ99,InputOutput!AL99))","v":""},null,"",{"$nulls":10},{"v":0,"d":"0.00"},{"v":0,"d":"0.00"}]
[{"$nulls":3},{"$f":"INDEX(CNTR_ListPurchPrecID,ROWS(D$110:D129))","v":"PP20"},{"$f":"IF(INDEX(CNTR_List_ExistPurchPrecNames,ROWS(D$110:D129))=CONST_NA,\"\",INDEX(CNTR_List_ExistPurchPrecNames,ROWS(D$110:D129)))","v":""},"",{"$f":"IF($E129=\"\",\"\",SUM(InputOutput!AJ100,InputOutput!AL100))","v":""},null,"",{"$nulls":10},{"v":0,"d":"0.00"},{"v":0,"d":"0.00"}]
[]
["ausblenden",{"$nulls":14},"PRINT"]
["ausblenden"]
["ausblenden"]

{"sheet":"G_FurtherGuidance","index":10,"n_rows":164,"n_cols":24,"rows_kept":164,"merged":[[1,1,3,3],[1,4,1,5],[1,6,1,7],[1,8,1,9],[1,10,1,11],[1,12,1,13],[2,4,2,5],[2,6,2,7],[2,8,2,9],[2,10,2,11],[2,12,2,13],[3,4,3,5],[3,6,3,7],[3,8,3,9],[3,10,3,11],[3,12,3,13],[9,4,9,13],[10,4,10,13],[11,4,11,13],[12,4,12,13],[13,4,13,13],[14,4,14,13],[18,4,18,13],[19,4,19,13],[20,4,20,13],[21,4,21,13],[22,4,22,13],[24,4,24,13],[26,4,26,13],[27,6,27,13],[28,6,28,13],[29,6,29,13],[30,6,30,13],[31,6,31,13],[32,6,32,13],[33,6,33,13],[34,6,34,13],[35,6,35,13],[36,6,36,13],[37,6,37,13],[38,6,38,13],[39,4,39,13],[40,6,40,13],[41,6,41,13],[42,6,42,13],[43,6,43,13],[44,6,44,13],[45,6,45,13],[46,6,46,13],[47,6,47,13],[48,6,48,13],[49,6,49,13],[50,6,50,13],[51,6,51,13],[52,6,52,13],[53,4,53,13],[54,6,54,13],[55,6,55,13],[56,6,56,13],[57,6,57,13],[58,6,58,13],[59,6,59,13],[60,6,60,13],[62,4,62,13],[66,4,66,13],[67,4,67,13],[68,4,68,13],[69,4,69,13],[71,4,71,13],[73,6,73,13],[74,6,74,13],[75,6,75,13],[76,6,76,13],[77,6,77,13],[78,4,79,4],[78,6,78,13],[79,6,79,13],[80,6,80,13],[81,5,85,5],[81,6,81,13],[82,6,82,13],[83,6,83,13],[84,6,84,13],[85,6,85,13],[86,4,90,4],[86,6,86,13],[87,6,87,13],[88,6,88,13],[89,6,89,13],[90,6,90,13],[91,4,92,4],[91,6,91,13],[92,6,92,13],[93,4,100,4],[93,6,93,13],[94,6,94,13],[95,6,95,13],[96,6,96,13],[97,6,97,13],[98,6,98,13],[99,6,99,13],[100,6,100,13],[101,6,101,13],[103,4,103,13],[108,4,108,13],[109,4,109,13],[110,4,110,13],[111,4,111,13],[112,4,112,13],[115,4,115,13],[117,4,117,13],[118,6,118,13],[119,6,119,13],[120,6,120,13],[121,6,121,13],[122,6,122,13],[123,6,123,13],[124,4,124,13],[125,6,125,13],[126,6,126,13],[127,6,127,13],[128,6,128,13],[129,6,129,13],[130,6,130,13],[131,6,131,13],[132,6,132,13],[133,6,133,13],[134,6,134,13],[135,6,135,13],[136,6,136,13],[137,6,137,13],[138,6,138,13],[139,6,139,13],[140,6,140,13],[141,6,141,13],[142,6,142,13],[143,6,143,13],[144,6,144,13],[145,6,145,13],[146,6,146,13],[147,4,147,13],[148,6,148,13],[149,6,149,13],[150,6,150,13],[151,6,151,13],[152,6,152,13],[153,6,153,13],[154,6,154,13],[155,6,155,13],[156,6,156,13],[157,6,157,13],[159,4,159,13]]}
["ausblenden",{"$nulls":16},"ausblenden","ausblenden","ausblenden","ausblenden","ausblenden","ausblenden","ausblenden"]
[null,{"$f":"Translations!$B$354","v":"Further Guidance"},null,null,{"$f":"Translations!$B$11","v":"Navigation Area:"},null,{"$f":"HYPERLINK(\"#\"&ADDRESS(2,3,,,a_Contents!$U$2),a_Contents!$B$2)","v":"Table of contents"},{"$nulls":3},{"$f":"HYPERLINK(\"#\"&ADDRESS(2,3,,,Summary_Processes!$Y$2),Summary_Processes!$Y$2)","v":"Summary_Processes"},null,{"$f":"HYPERLINK(\"#\"&ADDRESS(2,3,,,Summary_Products!$BF$2),Summary_Products!$BF$2)","v":"Summary_Products"},{"$nulls":4},"Print area:",{"$f":"ADDRESS(ROW($B$2),COLUMN(B2))&\":\"&ADDRESS(MATCH(\"PRINT\",$P:$P,0),COLUMN(O4))","v":"$B$2:$O$162"},"Name of this sheet",{"$f":"IF(ISERROR(CELL(\"filename\",V2)),\"MSParameters\",MID(CELL(\"filename\",V2),FIND(\"]\",CELL(\"filename\",V2))+1,1024))","v":"G_FurtherGuidance"}]
[{"$nulls":6},{"$f":"IFERROR(HYPERLINK(\"#\"&ADDRESS(ROW($A$1)+MATCH(R3,$A:$A,0)-1,3),INDEX($R:$R,MATCH(R3,$A:$A,0))),\"\")","v":"General guidance"},null,{"$f":"IFERROR(HYPERLINK(\"#\"&ADDRESS(ROW($A$1)+MATCH(T3,$A:$A,0)-1,3),INDEX($R:$R,MATCH(T3,$A:$A,0))),\"\")","v":"Source streams and emission sources"},null,{"$f":"IFERROR(HYPERLINK(\"#\"&ADDRESS(ROW($A$1)+MATCH(V3,$A:$A,0)-1,3),INDEX($R:$R,MATCH(V3,$A:$A,0))),\"\")","v":"Attribution of emissions to production processes"},null,{"$f":"IFERROR(HYPERLINK(\"#\"&ADDRESS(ROW($A$1)+MATCH(X3,$A:$A,0)-1,3),INDEX($R:$R,MATCH(X3,$A:$A,0))),\"\")","v":"Summary of products"},{"$nulls":4},1,null,2,null,3,null,4]
[{"$nulls":6},{"$f":"IFERROR(HYPERLINK(\"#\"&ADDRESS(ROW($A$1)+MATCH(R4,$A:$A,0)-1,3),INDEX($R:$R,MATCH(R4,$A:$A,0))),\"\")","v":""},null,{"$f":"IFERROR(HYPERLINK(\"#\"&ADDRESS(ROW($A$1)+MATCH(T4,$A:$A,0)-1,3),INDEX($R:$R,MATCH(T4,$A:$A,0))),\"\")","v":""},null,{"$f":"IFERROR(HYPERLINK(\"#\"&ADDRESS(ROW($A$1)+MATCH(V4,$A:$A,0)-1,3),INDEX($R:$R,MATCH(V4,$A:$A,0))),\"\")","v":""},null,{"$f":"IFERROR(HYPERLINK(\"#\"&ADDRESS(ROW($A$1)+MATCH(X4,$A:$A,0)-1,3),INDEX($R:$R,MATCH(X4,$A:$A,0))),\"\")","v":""},{"$nulls":4},5,null,6,null,7,null,8]
[]
[null,null,"G.",null,{"$f":"Translations!$B$355","v":"Sheet \"G_FurtherGuidance\" - Further guidance on specific sections in this template"},{"$nulls":12},"Marker","EmbedEm",null,null,{"$f":"Translations!$B$66","v":"Errors"},null,"Cond. form."]
[]
[{"$f":"C8","v":1},null,1,{"$f":"Translations!$B$356","v":"General guidance"},{"$nulls":13},{"$f":"D8","v":"General guidance"},{"$f":"C8","v":1}]
[]
[]
[{"$nulls":4},{"$f":"Translations!$B$357","v":"Each section of this template contains guidance on how to complete the required inputs in that section. However, for some sections the amount of guidance needed could distract the user from relevant inputs and make the format of the template less user-friendly. Where this is the case, the sections below provide the said further detailed guidance."}]
[{"$nulls":4},{"$f":"Translations!$B$358","v":"You do however not have to read the sections below from top to bottom. It is better if you go through the template from start to end (as also recommended in sheet \"b_Guidelines&Conditions\") and relevant sections will contain a hyperlink that will direct you to the relevant guidance in this sheet anyway."}]
[{"$nulls":4},{"$f":"Translations!$B$359","v":"You can also find further guidance, including examples, in the guidance document published on the European Commission's website, which can be found here:"}]
[{"$nulls":4},"https://taxation-customs.ec.europa.eu/carbon-border-adjustment-mechanism_en"]
[]
[]
[{"$f":"C17","v":2},null,2,{"$f":"Translations!$B$129","v":"Source streams and emission sources"},{"$nulls":13},{"$f":"D17","v":"Source streams and emission sources"},{"$f":"C17","v":2}]
[]
[]
[{"$nulls":4},{"$f":"Translations!$B$360","v":"In sheet \"B_EmInst\" the energy content and the greenhouse gas (GHG) emissions are calculated for each source stream and emission source."}]
[{"$nulls":4},{"$f":"Translations!$B$361","v":"At the top of each block in that sheet you can find examples on how to complete data inputs in order to calculate the corresponding emissions for each source stream and emission source."}]
[{"$nulls":4},{"$f":"Translations!$B$362","v":"Guidance on each parameter below aims to help you with filling all input fields in sheet \"B_EmInst\"."}]
[]
[]
[{"$nulls":4},{"$f":"HYPERLINK(\"#\"&S25,CONST_LinkFromGuidance)","v":"Please click on this link if you want to go back to the relevant section for data entry."},{"$nulls":12},"Link to:",{"$f":"ADDRESS(17,4,,,B_EmInst!$BD$2)","v":"B_EmInst!$D$17"}]
[]
[{"$nulls":4},{"$f":"Translations!$B$363","v":"Source streams (excluding PFC emissions)"}]
[{"$nulls":4},{"$f":"Translations!$B$132","v":"Method"},null,{"$f":"Translations!$B$364","v":"Please select from the drop-down list the monitoring method applied for the relevant source stream: \"combustion\", \"process emissions\" or \"mass balance\"."}]
[{"$nulls":4},{"$f":"Translations!$B$133","v":"Source stream name"},null,{"$f":"Translations!$B$365","v":"Please enter here the name of the source stream, e.g. coal, natural gas, clinker raw meal, limestone, iron ore, steel, scrap iron, scrap aluminium."}]
[{"$nulls":4},{"$f":"Translations!$B$366","v":"Activity data (AD)"},null,{"$f":"Translations!$B$367","v":"The activity data is the data on the amount of fuels or materials consumed or produced by a process as relevant for the calculation-based monitoring methodology, expressed mass in tonnes (t), or for gases as volume in normal cubic metres (Nm³), as appropriate."}]
[{"$nulls":4},{"$f":"Translations!$B$368","v":"AD unit"},null,{"$f":"Translations!$B$369","v":"The corresponding units in which the amounts above are provided. For example tonnes (t) for mass or normal cubic metres (Nm³) for gases."}]
[{"$nulls":4},{"$f":"Translations!$B$370","v":"(prelim) EF"},null,{"$f":"Translations!$B$371","v":"The \"preliminary\" emission factor is the assumed total emission factor of a mixed fuel or material based on the total carbon content composed of biomass fraction and fossil fraction before multiplying it with the fossil fraction to result in the emission factor."}]
[{"$nulls":4},{"$f":"Translations!$B$136","v":"Net calorific value (NCV)"},null,{"$f":"Translations!$B$372","v":"The net calorific value is the specific amount of energy released as heat when a fuel or material undergoes complete combustion with oxygen under standard conditions less the heat of vaporisation of any water formed"}]
[{"$nulls":4},{"$f":"Translations!$B$196","v":"OxF"},null,{"$f":"Translations!$B$373","v":"Oxidation factor: the ratio of carbon oxidised to CO2 as a consequence of combustion to the total carbon contained in the fuel, expressed as a fraction, considering carbon monoxide (CO) emitted to the atmosphere as the molar equivalent amount of CO2."}]
[{"$nulls":4},{"$f":"Translations!$B$197","v":"ConvF"},null,{"$f":"Translations!$B$374","v":"Conversion factor: the ratio of carbon emitted as CO2 to the total carbon contained in the source stream before the emitting process takes place, expressed as a fraction, considering CO emitted to the atmosphere as the molar equivalent amount of CO2."}]
[{"$nulls":4},{"$f":"Translations!$B$375","v":"CarbC"},null,{"$f":"Translations!$B$376","v":"The carbon content of the fuel or material."}]
[{"$nulls":4},{"$f":"Translations!$B$377","v":"BioC"},null,{"$f":"Translations!$B$378","v":"The biomass fraction is the ratio of carbon stemming from biomass to the total carbon content of a fuel or material, expressed as percentage."}]
[{"$nulls":4},{"$f":"Translations!$B$379","v":"Further columns greyed out"},null,{"$f":"Translations!$B$380","v":"Further columns are relevant for PFC emissions or emission sources (measurement-based approaches), but not for source streams. For source streams they are therefore greyed out."}]
[{"$nulls":4},{"$f":"Translations!$B$381","v":"Energy and emissions"},null,{"$f":"Translations!$B$382","v":"On the right side of each block the total energy content and GHG emissions (fossil and biogenic) are calculated automatically for each source stream."}]
[{"$nulls":4},{"$f":"Translations!$B$383","v":"PFC emissions"}]
[{"$nulls":4},{"$f":"Translations!$B$132","v":"Method"},null,{"$f":"Translations!$B$384","v":"Please select from the drop-down list the monitoring method applied: \"slope\" (Method A) or \"overvoltage\" (Method B)."}]
[{"$nulls":4},{"$f":"Translations!$B$199","v":"Type of anode"},null,{"$f":"Translations!$B$385","v":"Please provide here the type of anode such as Centre Worked Pre-Bake (CWPB), Vertical Stud Søderberg (VSS), etc."}]
[{"$nulls":4},{"$f":"B_EmInst!$F$13","v":"Activity data (AD)"},null,{"$f":"Translations!$B$386","v":"Activity data = annual production of primary Aluminium"}]
[{"$nulls":4},{"$f":"Translations!$B$161","v":"A: Frequency"},null,{"$f":"Translations!$B$387","v":"Method A: The frequency of anode effects (number of anode effects/cell-day)"}]
[{"$nulls":4},{"$f":"Translations!$B$162","v":"A: Duration"},null,{"$f":"Translations!$B$388","v":"Method A: The average duration of anode effects (anode effect minutes/occurrence)"}]
[{"$nulls":4},{"$f":"Translations!$B$163","v":"A: SEF(CF4)"},null,{"$f":"Translations!$B$389","v":"Method A: The slope emission factor"}]
[{"$nulls":4},{"$f":"Translations!$B$164","v":"B: AEO"},null,{"$f":"Translations!$B$390","v":"Method B: The anode effect overvoltage per cell"}]
[{"$nulls":4},{"$f":"Translations!$B$165","v":"B: CE"},null,{"$f":"Translations!$B$391","v":"Method B: The average current efficiency"}]
[{"$nulls":4},{"$f":"Translations!$B$166","v":"B: OVC"},null,{"$f":"Translations!$B$392","v":"Method B: The overvoltage coefficient (‘emission factor’)"}]
[{"$nulls":4},{"$f":"Translations!$B$167","v":"F(C2F6)"},null,{"$f":"Translations!$B$393","v":"The weight fraction of C2F6"}]
[{"$nulls":4},{"$f":"Translations!$B$394","v":"GWP (CF4)"},null,{"$f":"Translations!$B$395","v":"The global warming potential of CF4"}]
[{"$nulls":4},{"$f":"Translations!$B$396","v":"GWP (C2F6)"},null,{"$f":"Translations!$B$397","v":"The global warming potential of C2F6"}]
[{"$nulls":4},{"$f":"Translations!$B$398","v":"Collection efficiency"},null,{"$f":"Translations!$B$399","v":"Efficiency of the collection of the fugitive PFC emissions"}]
[{"$nulls":4},{"$f":"Translations!$B$400","v":"Emission sources | Measurement-based approaches (continuous emission monitoring)"}]
[{"$nulls":4},{"$f":"Translations!$B$122","v":"Name"},null,{"$f":"Translations!$B$401","v":"Please enter here a name for the emission source or the point of emission, e.g. Stack xyz."}]
[{"$nulls":4},{"$f":"Translations!$B$209","v":"Type of GHG"},null,{"$f":"Translations!$B$402","v":"Please provide here the type of greenhouse gas (GHG) measured in the flue gas: CO2 or N2O."}]
[{"$nulls":4},{"$f":"Translations!$B$403","v":"hourly average GHG conc. "},null,{"$f":"Translations!$B$404","v":"The weighted average hourly concentration of the GHG measured (g per Nm³)"}]
[{"$nulls":4},{"$f":"Translations!$B$377","v":"BioC"},null,{"$f":"Translations!$B$378","v":"The biomass fraction is the ratio of carbon stemming from biomass to the total carbon content of a fuel or material, expressed as percentage."}]
[{"$nulls":4},{"$f":"Translations!$B$405","v":"Hours operating"},null,{"$f":"Translations!$B$406","v":"The total hours of operation of the production process"}]
[{"$nulls":4},{"$f":"Translations!$B$407","v":"Flue gas"},null,{"$f":"Translations!$B$408","v":"The total volume of the flue gas"}]
[{"$nulls":4},{"$f":"Translations!$B$409","v":"Energy content"},null,{"$f":"Translations!$B$410","v":"The energy content of the fuels or materials entering the production process"}]
[]
[{"$nulls":4},{"$f":"HYPERLINK(\"#\"&S63,CONST_LinkFromGuidance)","v":"Please click on this link if you want to go back to the relevant section for data entry."},{"$nulls":12},"Link to:",{"$f":"ADDRESS(17,4,,,B_EmInst!$BD$2)","v":"B_EmInst!$D$17"}]
[]
[{"$f":"C65","v":3},null,3,{"$f":"Translations!$B$411","v":"Attribution of emissions to production processes"},{"$nulls":13},{"$f":"D65","v":"Attribution of emissions to production processes"},{"$f":"C65","v":3}]
[]
[]
[{"$nulls":4},{"$f":"Translations!$B$412","v":"In sheet \"D_Processes\" the data inputs required are needed in order to calculate the specific emissions of each production processes, based on which the specific embedded emissions are calculated in this template."}]
[{"$nulls":4},{"$f":"Translations!$B$413","v":"Entries in sheet \"E_PurchPrec\" require similar entries. Further guidance is provided there."}]
[]
[]
[{"$nulls":4},{"$f":"HYPERLINK(\"#\"&S72,CONST_LinkFromGuidance)","v":"Please click on this link if you want to go back to the relevant section for data entry."},{"$nulls":12},"Link to:",{"$f":"ADDRESS(11,10,,,D_Processes!$U$2)","v":"D_Processes!$J$11"}]
[]
[{"$nulls":3},{"$f":"Translations!$B$414","v":"a)"},{"$f":"Translations!$B$415","v":"Total production"},{"$f":"Translations!$B$416","v":"SEE Denominator"},{"$f":"Translations!$B$417","v":"Please provide here the total amount of goods produced in the relevant production process, distinguishing amounts by the relevant production route. This is the denominator for the calculation of the specific embedded emissions."}]
[{"$nulls":3},{"$f":"Translations!$B$418","v":"b)"},{"$f":"Translations!$B$419","v":"Production for the market"},null,{"$f":"Translations!$B$420","v":"Please provide here the total amount of goods that are placed on the market (any market, not only the European Union) and not further processed into goods within another production process of the installation."}]
[{"$nulls":3},{"$f":"Translations!$B$421","v":"c)"},{"$f":"Translations!$B$422","v":"Consumed in other 'production processes'"},null,{"$f":"Translations!$B$423","v":"Please provide here the total amount of goods that are consumed in each listed production process as input to be further processed into the goods produced in those processes. Please do not leave any yellow cells empty and enter zero (\"0\") if the good is not consumed by the specific process. Where all of the goods are reported as placed on the market under point b), this section will be greyed out and no inputs are required here."}]
[{"$nulls":3},{"$f":"Translations!$B$424","v":"d)"},{"$f":"Translations!$B$425","v":"Consumed for non-CBAM goods"},null,{"$f":"Translations!$B$426","v":"Please provide here the total amount of goods that are consumed in production processes within the installation which produce goods that are not covered by the scope of the CBAM."}]
[{"$nulls":3},{"$f":"Translations!$B$427","v":"e)"},{"$f":"Translations!$B$428","v":"Control"},null,{"$f":"Translations!$B$429","v":"This is an automatic calculation \"a-(b+c+d)\". Please ensure that this value is zero."}]
[{"$nulls":3},{"$f":"Translations!$B$430","v":"f)"},{"$f":"Translations!$B$431","v":"Applicable elements"},null,{"$f":"Translations!$B$432","v":"Please select here whether measurable heat (e.g. steam) or waste gases are imported to or exported from the relevant production process. The relevance of indirect emissions from electricity are shown automatically here."}]
[{"$nulls":6},{"$f":"Translations!$B$433","v":"Waste gases are particularly relevant in integrated iron & steel production and include flue gases containing high concentrations of incompletely oxidised carbon, for example, any coke oven gas imported into the blast furnace, or blast furnace gas exported from the production process to produce electricity."}]
[{"$nulls":3},{"$f":"Translations!$B$434","v":"g)"},{"$f":"Translations!$B$435","v":"DirEm*"},null,{"$f":"Translations!$B$436","v":"Please include here all emissions directly linked to and therefore attributable to the production process taking into consideration the further provisions below."}]
[{"$nulls":5},{"$f":"Translations!$B$437","v":"Avoidance of double counting"},{"$f":"Translations!$B$438","v":"Emissions shall only be attributed to ONE production process reported for this installation. Values entered here must therefore NOT include any emissions of the precursors that have been selected as another 'production process' as otherwise the template would double-count the embedded emissions."}]
[{"$nulls":6},{"$f":"Translations!$B$439","v":"Measureable heat (e.g. steam): Emissions associated with fuel input into boilers can be either included here or via the 'import of measurable heat' below, but must not be reported twice. In the case the heat is produced in a CHP, the emissions have to be split between heat and electricity. The CHP Tool can help with that:"}]
[{"$nulls":6},{"$f":"HYPERLINK(\"#\"&ADDRESS(MATCH($S84,F_Tools!$S:$S,0),3,,,F_Tools!$U$2),CONST_LinkToCHPTool)","v":"Please click on this link to go to the \"CHP Tool for attributing emissions between heat and electricity\"."},{"$nulls":10},"Link to guidance:",1]
[{"$nulls":6},{"$f":"Translations!$B$440","v":"Waste gases: special rules apply here. Emissions from waste gases produced in another production process and consumed in this process should NOT be reported under DirEm*, but under 'Waste gas imported' below."}]
[{"$nulls":6},{"$f":"Translations!$B$441","v":"Emissions from waste gases produced in the production process, but exported for combustion outside the production process MUST be included here. The corresponding deduction of emissions will be done by entering the relevant data under 'waste gas exported' below. An example would be the export of blast furnace gas from the crude steel production to the adjacent power plants. The emissions associated with the combustion of the blast furnace gas should be attributed to the crude steel production here under DirEm*."}]
[{"$nulls":3},{"$f":"Translations!$B$442","v":"h)"},{"$f":"Translations!$B$262","v":"Import and export of measurable heat"},null,{"$f":"Translations!$B$443","v":"Please enter here the amounts of net measurable heat (e.g. steam) being imported to (e.g. from connected heat supplying installations) or exported from (e.g. heat recovery from the furnace and exported from the production process) the production process."}]
[{"$nulls":6},{"$f":"Translations!$B$444","v":"For the emission factor (EF) of the heat, please consider the efficiency of the boiler. For example, if the EF of the fuel of which the heat is produced is 96 t CO2/TJ and the boiler efficiency is 90%, the EF to be reported here would be 96 divided by 90%."}]
[{"$nulls":6},{"$f":"Translations!$B$445","v":"For the EF of heat produced in a CHP, please see the reference to the \"CHP Tool\" above."}]
[{"$nulls":6},{"$f":"Translations!$B$446","v":"Where the EF of exported heat is not clearly defined (e.g. heat recovery from furnaces or from exothermic heat), the standard emission factor of the fuel most commonly used in the country and industrial sector, assuming a boiler efficiency of 90%, should be used."}]
[{"$nulls":6},{"$f":"Translations!$B$447","v":"Heat recovered and NOT exported but used within the production process shall not be reported under exported heat."}]
[{"$nulls":3},{"$f":"Translations!$B$448","v":"i)"},{"$f":"Translations!$B$449","v":"Import and export of waste gases"},null,{"$f":"Translations!$B$450","v":"Further to the waste gas related provisions described above under DirEm*, please provide there the net amounts of waste gases imported from other processes or installations and consumed in this production process, as well as any amounts of waste gases exported and consumed outside the production process."}]
[{"$nulls":6},{"$f":"Translations!$B$451","v":"The emission factor of the waste gases will not impact the emissions attributed to this production process, due to the special rules for waste gases. Inputs there are therefore optional."}]
[{"$nulls":3},{"$f":"Translations!$B$452","v":"j)"},{"$f":"Translations!$B$269","v":"Indirect emissions from electricity consumption"},null,{"$f":"Translations!$B$453","v":"Please enter the total amount of electricity consumed within the system boundaries of the production process."}]
[{"$nulls":6},{"$f":"Translations!$B$454","v":"Please enter the average emission factor of the electricity consumed using the methods below for determination of this factor."}]
[{"$nulls":6},{"$f":"Translations!$B$455","v":"The emission factor of the electricity can be determined by the following methods:"}]
[{"$nulls":5},"D.2.1",{"$f":"Translations!$B$456","v":"CO2 emission factor based on specific default values  "}]
[{"$nulls":5},"D.2.2",{"$f":"Translations!$B$457","v":"CO2 emission factor based on alternative default value "}]
[{"$nulls":5},"D.2.3",{"$f":"Translations!$B$458","v":"CO2 emission factor based on reliable data demonstrated by the importer"}]
[{"$nulls":5},"D.2.4",{"$f":"Translations!$B$459","v":"CO2 emission factor based on actual CO2 emissions of the installation "}]
[{"$nulls":5},{"$f":"Translations!$B$460","v":"Mix"},{"$f":"Translations!$B$461","v":"Where the electricity is not predominantly obtained from one source or the EF determined by more than one of the above sources, the EF is determined as a mix of the methods above."}]
[{"$nulls":3},{"$f":"Translations!$B$462","v":"k)"},{"$f":"Translations!$B$463","v":"Electricity exported"},null,{"$f":"Translations!$B$464","v":"This concerns special forms of electricity production being produced within the production process but exported outside the process. It concerns electricity produced via other forms than in gas turbines or via steam in turbines, but - for instance - via expansion of compressed gases in expansion turbines."}]
[]
[{"$nulls":4},{"$f":"HYPERLINK(\"#\"&S104,CONST_LinkFromGuidance)","v":"Please click on this link if you want to go back to the relevant section for data entry."},{"$nulls":12},"Link to:",{"$f":"S72","v":"D_Processes!$J$11"}]
[]
[{"$f":"C106","v":4},null,4,{"$f":"Translations!$B$465","v":"Summary of products"},{"$nulls":13},{"$f":"D106","v":"Summary of products"},{"$f":"C106","v":4}]
[]
[]
[{"$nulls":4},{"$f":"Translations!$B$466","v":"Please find below the detailed guidance on how to complete the sheet \"Summary_Products\"."}]
[{"$nulls":4},{"$f":"Translations!$B$467","v":"Sheet \"Summary_Products\" will be crucial for the communication with the 'reporting declarant' as it contains the main information required in order to correctly fill in the 'CBAM report' for importing the goods into the European Union."}]
[{"$nulls":4},{"$f":"Translations!$B$468","v":"The information provided there should be for each type of good imported into the EU. The type of goods should be listed as disaggregated as possible, i.e. splitting type of goods by their CN codes using as many digits as possible."}]
[{"$nulls":4},{"$f":"Translations!$B$469","v":"All information provided (specific embedded emissions, carbon price due, etc.) shall relate to the same reference period as entered in sheet A, section 1."}]
[{"$nulls":4},{"$f":"Translations!$B$470","v":"An example for how to complete a row is provided at the top of the table in sheet \"Summary_Products\"."}]
[]
[]
[{"$nulls":4},{"$f":"HYPERLINK(\"#\"&S116,CONST_LinkFromGuidance)","v":"Please click on this link if you want to go back to the relevant section for data entry."},{"$nulls":12},"Link to:",{"$f":"ADDRESS(9,4,,,Summary_Products!$BF$2)","v":"Summary_Products!$D$9"}]
[]
[{"$nulls":4},{"$f":"Translations!$B$471","v":"General parameters"}]
[{"$nulls":4},{"$f":"Translations!$B$472","v":"Production process from which the products arise"},null,{"$f":"Translations!$B$473","v":"This contains a drop-down list with all production processes listed in sheet A, section 4.b. The type of aggregated good will be displayed automatically and the drop-down list for the relevant CN codes (see below) will only contain the codes relevant for this type of aggregated good."}]
[{"$nulls":4},{"$f":"Translations!$B$474","v":"CN Codes"},null,{"$f":"Translations!$B$475","v":"Please select here the relevant CN code, as disaggregated as possible (i.e. 8-digit code, if possible)"}]
[{"$nulls":4},{"$f":"Translations!$B$476","v":"Product name \n(used for communication with reporting declarant)"},null,{"$f":"Translations!$B$477","v":"Please enter here a unique name for the product which you typically use in communication with your customers, in this case the reporting declarants, such as on product specification sheets or invoices. This will help the reporting declarant with matching the products with the information in this list."}]
[{"$nulls":4},{"$f":"Translations!$B$478","v":"Embedded emissions"},null,{"$f":"Translations!$B$479","v":"Data related to the specific embedded emissions (SEE, direct/indirect/total) will be taken automatically based on entries in previous sheets, including the embedded electricity and the source based on which the emission factor (EF) of the electricity consumption is determined."}]
[{"$nulls":4},{"$f":"Translations!$B$1868","v":"Share of emissions by default value"},null,{"$f":"Translations!$B$1869","v":"Share of direct embedded emissions embedded in purchased precursors and determined by default values."}]
[{"$nulls":4},{"$f":"Translations!$B$480","v":"Embedded electricity"},null,{"$f":"Translations!$B$481","v":"Specific embedded electricity consumption of the production process, i.e. including any embedded electricity consumption in other production processes within the installation (i.e. excl. from purchased precursors)."}]
[{"$nulls":4},{"$f":"Translations!$B$482","v":"Special parameters for certain aggregated good types"}]
[{"$nulls":4},{"$f":"Translations!$B$483","v":"The main reducing agent of the precursor, if known"},null,{"$f":"Translations!$B$484","v":"This parameter is relevant for the production of pig iron, direct reduced iron, crude steel and iron and steel products. Please select from the drop-down list the main reducing agent (coke or coal, natural gas, etc.) used to reduce the iron ores."}]
[{"$nulls":4},{"$f":"Translations!$B$485","v":"Steel mill identification number"},null,{"$f":"Translations!$B$486","v":"For steel goods, the identification number of the specific steel mill (also known as the \"heat number\") where a particular batch of raw materials was produced, where known."}]
[{"$nulls":4},{"$f":"Translations!$B$487","v":"% Mn"},null,{"$f":"Translations!$B$488","v":"This parameter is relevant for the production of pig iron, direct reduced iron, crude steel, iron and steel products and ferro-manganese. Please provide here the mass % of Mn in the product."}]
[{"$nulls":4},{"$f":"Translations!$B$489","v":"% Cr"},null,{"$f":"Translations!$B$490","v":"This parameter is relevant for the production of pig iron, direct reduced iron, crude steel, iron and steel products and ferro-chromium. Please provide here the mass % of Cr in the product."}]
[{"$nulls":4},{"$f":"Translations!$B$491","v":"% Ni"},null,{"$f":"Translations!$B$492","v":"This parameter is relevant for the production of pig iron, direct reduced iron, crude steel, iron and steel products and ferro-nickel. Please provide here the mass % of Ni in the product."}]
[{"$nulls":4},{"$f":"Translations!$B$493","v":"% other alloys"},null,{"$f":"Translations!$B$494","v":"This parameter is relevant for the production of pig iron, direct reduced iron, crude steel and iron and steel products. Please provide here the mass % of other alloy elements in the product."}]
[{"$nulls":4},{"$f":"Translations!$B$495","v":"% carbon"},null,{"$f":"Translations!$B$496","v":"This parameter is relevant for the production of ferro-manganese, ferro-chromium and ferro-nickel. Please provide here the mass % of carbon in the product."}]
[{"$nulls":4},{"$f":"Translations!$B$497","v":"t scrap per t steel"},null,{"$f":"Translations!$B$498","v":"This parameter is relevant for the production of crude steel and iron and steel products. Please provide here the mass % of tonne scrap used per tonne of steel produced."}]
[{"$nulls":4},{"$f":"Translations!$B$499","v":"% other materials"},null,{"$f":"Translations!$B$500","v":"This parameter is relevant for the production of the aggregated good iron and steel products. Please provide here the mass % of materials contained which are not iron or steel, if their mass is more than 1-5% of the total good’s mass."}]
[{"$nulls":4},{"$f":"Translations!$B$501","v":"t scrap per t aluminium"},null,{"$f":"Translations!$B$502","v":"This parameter is relevant for the production of unwrought aluminium and aluminium products. Please provide here the mass % of tonne scrap used per tonne of aluminium produced."}]
[{"$nulls":4},{"$f":"Translations!$B$503","v":"% pre-consumer scrap"},null,{"$f":"Translations!$B$504","v":"This parameter is relevant for the production of crude steel, unwrought aluminium and aluminium products. Please provide here the mass % of tonne pre-consumer scrap used per tonne of steel/aluminium produced."}]
[{"$nulls":4},{"$f":"Translations!$B$505","v":"% non-aluminium elements"},null,{"$f":"Translations!$B$506","v":"This parameter is relevant for the production of unwrought aluminium and aluminium products. Please provide here the mass % of elements contained which are not aluminium, if their mass is more than 1% of the total good’s mass."}]
[{"$nulls":4},{"$f":"Translations!$B$507","v":"Clinker factor"},null,{"$f":"Translations!$B$508","v":"This parameter is relevant for the production of cement. Please provide here the clinker factor, expressed as mass % of clinker content in the cement."}]
[{"$nulls":4},{"$f":"Translations!$B$509","v":"Calcined or not"},null,{"$f":"Translations!$B$510","v":"This parameter is relevant for the production of calcined clay. Please select here from the drop-down list whether the clay is calcined or not."}]
[{"$nulls":4},{"$f":"Translations!$B$511","v":"Concentration, if hydrous solution"},null,{"$f":"Translations!$B$512","v":"This parameter is relevant for the production of ammonia. Please provide here the concentration of ammonia, if in hydrous solution, expressed as %."}]
[{"$nulls":4},{"$f":"Translations!$B$513","v":"% nitric acid"},null,{"$f":"Translations!$B$514","v":"This parameter is relevant for the production of nitric acid. Please provide here the mass % of nitric acid in the product (i.e. the purity)."}]
[{"$nulls":4},{"$f":"Translations!$B$515","v":"% urea"},null,{"$f":"Translations!$B$516","v":"This parameter is relevant for the production of urea. Please provide here the mass % of urea in the product (i.e. the purity)."}]
[{"$nulls":4},{"$f":"Translations!$B$517","v":"% N contained"},null,{"$f":"Translations!$B$518","v":"This parameter is relevant for the production of urea. Please provide here the mass % nitrogen in the product."}]
[{"$nulls":4},{"$f":"Translations!$B$519","v":"% N as ammonium (NH4+)"},null,{"$f":"Translations!$B$520","v":"This parameter is relevant for the production of mixed fertilisers. Please provide here the mass % content of nitrogen as ammonium ion."}]
[{"$nulls":4},{"$f":"Translations!$B$521","v":"% N as nitrate (NO3–)"},null,{"$f":"Translations!$B$522","v":"This parameter is relevant for the production of mixed fertilisers. Please provide here the mass % content of nitrogen as nitrate ion."}]
[{"$nulls":4},{"$f":"Translations!$B$523","v":"% N as Urea"},null,{"$f":"Translations!$B$524","v":"This parameter is relevant for the production of mixed fertilisers. Please provide here the mass % content of urea."}]
[{"$nulls":4},{"$f":"Translations!$B$525","v":"% N in other (organic) forms"},null,{"$f":"Translations!$B$526","v":"This parameter is relevant for the production of mixed fertilisers. Please provide here the mass % content of nitrogen in other forms."}]
[{"$nulls":4},{"$f":"Translations!$B$527","v":"Information on carbon price due"}]
[{"$nulls":4},{"$f":"Translations!$B$528","v":"Note"},null,{"$f":"Translations!$B$529","v":"Where precursors are subject to carbon pricing and the system boundaries of the carbon price correspond to the system boundaries of the relevant production process of the precursor, you can use the \"tool for calculation of the carbon price due\" and use the results of that tool and enter them here."}]
[{"$nulls":6},{"$f":"HYPERLINK(\"#\"&ADDRESS(MATCH($S150,F_Tools!$S:$S,0),3,,,F_Tools!$U$2),CONST_LinkToCPTool)","v":"Please click on this link to go to the \"tool for calculation of the carbon price due\"."},{"$nulls":10},"Link to guidance:",2]
[{"$nulls":4},{"$f":"Translations!$B$530","v":"Form of carbon price"},null,{"$f":"Translations!$B$531","v":"Please select from the drop-down list whether the form of carbon price is an emissions trading system (ETS), a carbon tax, a combination of instruments, or other form of carbon pricing."}]
[{"$nulls":4},{"$f":"Translations!$B$532","v":"Share of total embedded emissions covered by the carbon price"},null,{"$f":"Translations!$B$533","v":"Please enter here the share of the TOTAL (direct + indirect) embedded emissions that are subject to carbon pricing. For instance, if only direct emissions are covered by a carbon pricing system, the share to be provided here would be exactly the share of the direct emissions of the total emissions."}]
[{"$nulls":4},{"$f":"Translations!$B$534","v":"Currency"},null,{"$f":"Translations!$B$535","v":"Please enter the currency in which the carbon price is being due."}]
[{"$nulls":4},{"$f":"Translations!$B$350","v":"Carbon price (CP) due (local currency)"},null,{"$f":"Translations!$B$536","v":"Please enter here the carbon price due per tonne or MWh (as applicable) of product in the relevant currency. This value shall not include any rebate such as free allocation or financial compensation."}]
[{"$nulls":4},{"$f":"Translations!$B$537","v":"Form of rebate"},null,{"$f":"Translations!$B$538","v":"Please select from the drop-down list whether the form of rebate or other form of compensation is via free allocation, financial compensation, tax deduction, a combination or any other form of rebate or compensation."}]
[{"$nulls":4},{"$f":"Translations!$B$539","v":"Share of embedded emissions covered by the rebate"},null,{"$f":"Translations!$B$540","v":"Please enter here the share of the TOTAL (direct + indirect) embedded emissions that are subject to rebate. For instance, if only indirect emissions are covered by the rebate, the share to be provided here would be exactly the share of the indirect emissions of the total emissions."}]
[{"$nulls":4},{"$f":"Translations!$B$348","v":"Amount of rebate (local currency)"},null,{"$f":"Translations!$B$541","v":"Please enter here the rebate per tonne or MWh (as applicable) of product covered by the rebate in the relevant currency. "}]
[{"$nulls":4},{"$f":"Translations!$B$542","v":"Result"},null,{"$f":"Translations!$B$543","v":"The result is the effective carbon price due per tonne of CO2 equivalent, i.e. the carbon price due less any rebates."}]
[]
[{"$nulls":4},{"$f":"HYPERLINK(\"#\"&S160,CONST_LinkFromGuidance)","v":"Please click on this link if you want to go back to the relevant section for data entry."},{"$nulls":12},"Link to:",{"$f":"ADDRESS(9,4,,,Summary_Products!$BF$2)","v":"Summary_Products!$D$9"}]
[]
["ausblenden",{"$nulls":14},"PRINT"]
["ausblenden"]
["ausblenden"]

{"sheet":"Summary_Processes","index":11,"n_rows":520,"n_cols":41,"rows_kept":520,"merged":[[1,2,3,4],[1,5,1,6],[1,7,1,8],[1,9,1,10],[1,11,1,12],[1,13,1,14],[2,5,2,6],[2,7,2,8],[2,9,2,10],[2,11,2,12],[2,13,2,14],[3,5,3,6],[3,7,3,8],[3,9,3,10],[3,11,3,12],[3,13,3,14],[9,6,9,8],[10,6,10,8],[11,6,11,8],[12,6,12,8],[13,6,13,8],[14,6,14,8],[15,6,15,8],[85,4,85,11],[89,5,89,13],[90,5,90,13],[91,5,91,13],[92,5,92,13],[93,5,93,13],[94,5,94,13],[95,5,95,13],[96,5,96,13],[98,5,99,5],[98,12,99,12],[98,13,99,13],[111,5,112,5],[137,3,137,4],[137,5,137,18],[138,3,138,4],[138,5,138,18],[139,3,139,4],[139,5,139,18],[140,3,140,4],[140,5,140,18],[141,3,141,4],[141,5,141,18],[142,3,142,4],[142,5,142,18],[143,3,143,4],[143,5,143,18],[144,3,144,4],[144,5,144,18],[145,3,145,4],[145,5,145,18],[146,3,146,4],[146,5,146,18],[147,3,147,4],[147,5,147,18],[148,3,148,4],[148,5,148,18],[149,3,149,4],[149,5,149,18],[150,3,150,4],[150,5,150,18],[151,3,151,4],[151,5,151,18],[152,3,152,4],[152,5,152,18],[153,3,153,4],[153,5,153,18],[154,3,154,4],[154,5,154,18],[155,3,155,4],[155,5,155,18],[156,3,156,4],[156,5,156,18],[158,2,160,2],[158,3,159,4],[158,5,159,5],[158,7,159,7],[158,14,159,14],[158,16,159,16],[158,17,159,17],[158,18,159,18],[160,3,160,4],[161,3,161,4],[162,3,162,4],[163,3,163,4],[164,3,164,4],[165,3,165,4],[166,3,166,4],[167,3,167,4],[168,3,168,4],[169,3,169,4],[170,3,170,4],[171,3,171,4],[172,3,172,4],[173,3,173,4],[174,3,174,4],[175,3,175,4],[176,3,176,4],[177,3,177,4],[178,3,178,4],[179,3,179,4],[180,3,180,4],[181,3,181,4],[182,3,182,4],[183,3,183,4],[184,3,184,4],[185,3,185,4],[186,3,186,4],[187,3,187,4],[188,3,188,4],[189,3,189,4],[190,3,190,4],[191,3,191,4],[194,2,196,2],[194,3,195,4],[194,5,195,5],[194,7,195,7],[194,14,195,14],[194,16,195,16],[194,17,195,17],[194,18,195,18],[196,3,196,4],[197,3,197,4],[198,3,198,4],[199,3,199,4],[200,3,200,4],[201,3,201,4],[202,3,202,4],[203,3,203,4],[204,3,204,4],[205,3,205,4],[206,3,206,4],[207,3,207,4],[208,3,208,4],[209,3,209,4],[210,3,210,4],[211,3,211,4],[212,3,212,4],[213,3,213,4],[214,3,214,4],[215,3,215,4],[216,3,216,4],[217,3,217,4],[218,3,218,4],[219,3,219,4],[220,3,220,4],[221,3,221,4],[222,3,222,4],[223,3,223,4],[224,3,224,4],[225,3,225,4],[226,3,226,4],[227,3,227,4],[230,2,232,2],[230,3,231,4],[230,5,231,5],[230,7,231,7],[230,14,231,14],[230,16,231,16],[230,17,231,17],[230,18,231,18],[232,3,232,4],[233,3,233,4],[234,3,234,4],[235,3,235,4],[236,3,236,4],[237,3,237,4],[238,3,238,4],[239,3,239,4],[240,3,240,4],[241,3,241,4],[242,3,242,4],[243,3,243,4],[244,3,244,4],[245,3,245,4],[246,3,246,4],[247,3,247,4],[248,3,248,4],[249,3,249,4],[250,3,250,4],[251,3,251,4],[252,3,252,4],[253,3,253,4],[254,3,254,4],[255,3,255,4],[256,3,256,4],[257,3,257,4],[258,3,258,4],[259,3,259,4],[260,3,260,4],[261,3,261,4],[262,3,262,4],[263,3,263,4],[266,2,268,2],[266,3,267,4],[266,5,267,5],[266,7,267,7],[266,14,267,14],[266,16,267,16],[266,17,267,17],[266,18,267,18],[268,3,268,4],[269,3,269,4],[270,3,270,4],[271,3,271,4],[272,3,272,4],[273,3,273,4],[274,3,274,4],[275,3,275,4],[276,3,276,4],[277,3,277,4],[278,3,278,4],[279,3,279,4],[280,3,280,4],[281,3,281,4],[282,3,282,4],[283,3,283,4],[284,3,284,4],[285,3,285,4],[286,3,286,4],[287,3,287,4],[288,3,288,4],[289,3,289,4],[290,3,290,4],[291,3,291,4],[292,3,292,4],[293,3,293,4],[294,3,294,4],[295,3,295,4],[296,3,296,4],[297,3,297,4],[298,3,298,4],[299,3,299,4],[302,2,304,2],[302,3,303,4],[302,5,303,5],[302,7,303,7],[302,14,303,14],[302,16,303,16],[302,17,303,17],[302,18,303,18],[304,3,304,4],[305,3,305,4],[306,3,306,4],[307,3,307,4],[308,3,308,4],[309,3,309,4],[310,3,310,4],[311,3,311,4],[312,3,312,4],[313,3,313,4],[314,3,314,4],[315,3,315,4],[316,3,316,4],[317,3,317,4],[318,3,318,4],[319,3,319,4],[320,3,320,4],[321,3,321,4],[322,3,322,4],[323,3,323,4],[324,3,324,4],[325,3,325,4],[326,3,326,4],[327,3,327,4],[328,3,328,4],[329,3,329,4],[330,3,330,4],[331,3,331,4],[332,3,332,4],[333,3,333,4],[334,3,334,4],[335,3,335,4],[338,2,340,2],[338,3,339,4],[338,5,339,5],[338,7,339,7],[338,14,339,14],[338,16,339,16],[338,17,339,17],[338,18,339,18],[340,3,340,4],[341,3,341,4],[342,3,342,4],[343,3,343,4],[344,3,344,4],[345,3,345,4],[346,3,346,4],[347,3,347,4],[348,3,348,4],[349,3,349,4],[350,3,350,4],[351,3,351,4],[352,3,352,4],[353,3,353,4],[354,3,354,4],[355,3,355,4],[356,3,356,4],[357,3,357,4],[358,3,358,4],[359,3,359,4],[360,3,360,4],[361,3,361,4],[362,3,362,4],[363,3,363,4],[364,3,364,4],[365,3,365,4],[366,3,366,4],[367,3,367,4],[368,3,368,4],[369,3,369,4],[370,3,370,4],[371,3,371,4],[374,2,376,2],[374,3,375,4],[374,5,375,5],[374,7,375,7],[374,14,375,14],[374,16,375,16],[374,17,375,17],[374,18,375,18],[376,3,376,4],[377,3,377,4],[378,3,378,4],[379,3,379,4],[380,3,380,4],[381,3,381,4],[382,3,382,4],[383,3,383,4],[384,3,384,4],[385,3,385,4],[386,3,386,4],[387,3,387,4],[388,3,388,4],[389,3,389,4],[390,3,390,4],[391,3,391,4],[392,3,392,4],[393,3,393,4],[394,3,394,4],[395,3,395,4],[396,3,396,4],[397,3,397,4],[398,3,398,4],[399,3,399,4],[400,3,400,4],[401,3,401,4],[402,3,402,4],[403,3,403,4],[404,3,404,4],[405,3,405,4],[406,3,406,4],[407,3,407,4],[410,2,412,2],[410,3,411,4],[410,5,411,5],[410,7,411,7],[410,14,411,14],[410,16,411,16],[410,17,411,17],[410,18,411,18],[412,3,412,4],[413,3,413,4],[414,3,414,4],[415,3,415,4],[416,3,416,4],[417,3,417,4],[418,3,418,4],[419,3,419,4],[420,3,420,4],[421,3,421,4],[422,3,422,4],[423,3,423,4],[424,3,424,4],[425,3,425,4],[426,3,426,4],[427,3,427,4],[428,3,428,4],[429,3,429,4],[430,3,430,4],[431,3,431,4],[432,3,432,4],[433,3,433,4],[434,3,434,4],[435,3,435,4],[436,3,436,4],[437,3,437,4],[438,3,438,4],[439,3,439,4],[440,3,440,4],[441,3,441,4],[442,3,442,4],[443,3,443,4],[446,2,448,2],[446,3,447,4],[446,5,447,5],[446,7,447,7],[446,14,447,14],[446,16,447,16],[446,17,447,17],[446,18,447,18],[448,3,448,4],[449,3,449,4],[450,3,450,4],[451,3,451,4],[452,3,452,4],[453,3,453,4],[454,3,454,4],[455,3,455,4],[456,3,456,4],[457,3,457,4],[458,3,458,4],[459,3,459,4],[460,3,460,4],[461,3,461,4],[462,3,462,4],[463,3,463,4],[464,3,464,4],[465,3,465,4],[466,3,466,4],[467,3,467,4],[468,3,468,4],[469,3,469,4],[470,3,470,4],[471,3,471,4],[472,3,472,4],[473,3,473,4],[474,3,474,4],[475,3,475,4],[476,3,476,4],[477,3,477,4],[478,3,478,4],[479,3,479,4],[482,2,484,2],[482,3,483,4],[482,5,483,5],[482,7,483,7],[482,14,483,14],[482,16,483,16],[482,17,483,17],[482,18,483,18],[484,3,484,4],[485,3,485,4],[486,3,486,4],[487,3,487,4],[488,3,488,4],[489,3,489,4],[490,3,490,4],[491,3,491,4],[492,3,492,4],[493,3,493,4],[494,3,494,4],[495,3,495,4],[496,3,496,4],[497,3,497,4],[498,3,498,4],[499,3,499,4],[500,3,500,4],[501,3,501,4],[502,3,502,4],[503,3,503,4],[504,3,504,4],[505,3,505,4],[506,3,506,4],[507,3,507,4],[508,3,508,4],[509,3,509,4],[510,3,510,4],[511,3,511,4],[512,3,512,4],[513,3,513,4],[514,3,514,4],[515,3,515,4]]}
["ausblenden",{"$nulls":20},"ausblenden","ausblenden","ausblenden","ausblenden","ausblenden","ausblenden","ausblenden","ausblenden","ausblenden","ausblenden","ausblenden","ausblenden","ausblenden","ausblenden","ausblenden","ausblenden","ausblenden","ausblenden","ausblenden","ausblenden"]
[null,null,{"$f":"Translations!$B$544","v":"Summary of production processes"},null,null,{"$f":"Translations!$B$11","v":"Navigation Area:"},null,{"$f":"HYPERLINK(\"#\"&ADDRESS(2,3,,,a_Contents!$U$2),a_Contents!$B$2)","v":"Table of contents"},null,{"$f":"HYPERLINK(\"#\"&ADDRESS(2,3,,,G_FurtherGuidance!$U$2),G_FurtherGuidance!$B$2)","v":"Further Guidance"},{"$nulls":3},{"$f":"HYPERLINK(\"#\"&ADDRESS(2,3,,,Summary_Products!$BF$2),Summary_Products!$BF$2)","v":"Summary_Products"},{"$nulls":7},"Print area:",{"$f":"ADDRESS(ROW($B$2),COLUMN($B$2))&\":\"&ADDRESS(MATCH(\"PRINT\",$U:$U,0),COLUMN($U$2))","v":"$B$2:$U$520"},"Name of this sheet",{"$f":"IF(ISERROR(CELL(\"filename\",Z2)),\"MSParameters\",MID(CELL(\"filename\",Z2),FIND(\"]\",CELL(\"filename\",Z2))+1,1024))","v":"Summary_Processes"}]
[{"$nulls":7},{"$f":"IFERROR(HYPERLINK(\"#\"&ADDRESS(ROW($A$1)+MATCH(V3,$A:$A,0)-1,3),INDEX($V:$V,MATCH(V3,$A:$A,0))),\"\")","v":"Installation & processes"},null,{"$f":"IFERROR(HYPERLINK(\"#\"&ADDRESS(ROW($A$1)+MATCH(X3,$A:$A,0)-1,3),INDEX($V:$V,MATCH(X3,$A:$A,0))),\"\")","v":"GHG & SEE"},null,{"$f":"IFERROR(HYPERLINK(\"#\"&ADDRESS(ROW($A$1)+MATCH(Z3,$A:$A,0)-1,3),INDEX($V:$V,MATCH(Z3,$A:$A,0))),\"\")","v":"Detailed overview"},null,{"$f":"IFERROR(HYPERLINK(\"#\"&ADDRESS(ROW($A$1)+MATCH(AB3,$A:$A,0)-1,3),INDEX($V:$V,MATCH(AB3,$A:$A,0))),\"\")","v":""},{"$nulls":7},1,null,2,null,3,null,4]
[{"$nulls":7},{"$f":"IFERROR(HYPERLINK(\"#\"&ADDRESS(ROW($A$1)+MATCH(V4,$A:$A,0)-1,3),INDEX($V:$V,MATCH(V4,$A:$A,0))),\"\")","v":""},null,{"$f":"IFERROR(HYPERLINK(\"#\"&ADDRESS(ROW($A$1)+MATCH(X4,$A:$A,0)-1,3),INDEX($V:$V,MATCH(X4,$A:$A,0))),\"\")","v":""},null,{"$f":"IFERROR(HYPERLINK(\"#\"&ADDRESS(ROW($A$1)+MATCH(Z4,$A:$A,0)-1,3),INDEX($V:$V,MATCH(Z4,$A:$A,0))),\"\")","v":""},null,{"$f":"IFERROR(HYPERLINK(\"#\"&ADDRESS(ROW($A$1)+MATCH(AB4,$A:$A,0)-1,3),INDEX($V:$V,MATCH(AB4,$A:$A,0))),\"\")","v":""},{"$nulls":7},5,null,6,null,7,null,8]
[]
[{"$f":"C6","v":1},null,1,{"$f":"Translations!$B$545","v":"Summary of the installation, processes and production routes"},{"$nulls":17},{"$f":"Translations!$B$546","v":"Installation & processes"}]
[]
[null,null,1,{"$f":"Translations!$B$547","v":"Summary of the installation"}]
[]
[{"$nulls":4},{"$f":"A_InstData!E20","v":"Name of the installation (English name):"},null,{"$f":"IF(A_InstData!I20=\"\",\"\",A_InstData!I20)","v":""},{"$nulls":3},{"$f":"Translations!$B$548","v":"Reporting period start:"},{"$f":"a_Contents!I63","v":""}]
[{"$nulls":4},{"$f":"A_InstData!E21","v":"Street, Number:"},null,{"$f":"IF(A_InstData!I21=\"\",\"\",A_InstData!I21)","v":""},{"$nulls":3},{"$f":"Translations!$B$549","v":"Reporting period end:"},{"$f":"a_Contents!K63","v":""}]
[{"$nulls":4},{"$f":"Translations!$B$76","v":"Economic activity:"},null,{"$f":"IF(A_InstData!I22=\"\",\"\",A_InstData!I22)","v":""}]
[{"$nulls":4},{"$f":"Translations!$B$80","v":"Country:"},null,{"$f":"IF(A_InstData!I26=\"\",\"\",A_InstData!I26)","v":""}]
[{"$nulls":4},{"$f":"Translations!$B$81","v":"UNLOCODE:"},null,{"$f":"IF(A_InstData!I27=\"\",\"\",A_InstData!I27)","v":""}]
[{"$nulls":4},{"$f":"Translations!$B$82","v":"Coordinates of the main emission source (latitude):"},null,{"$f":"IF(A_InstData!I28=\"\",\"\",A_InstData!I28)","v":""}]
[{"$nulls":4},{"$f":"Translations!$B$83","v":"Coordinates of the main emission source (longitude):"},null,{"$f":"IF(A_InstData!I29=\"\",\"\",A_InstData!I29)","v":""}]
[]
[null,null,2,{"$f":"Translations!$B$550","v":"Summary of the production processes, included precursors and production routes, where relevant"}]
[{"$nulls":3},"(a) ",{"$f":"Translations!$B$551","v":"Aggregated good produced"},{"$f":"Translations!$B$552","v":"Routes"},{"$f":"Translations!$B$109","v":"Route 1"},{"$f":"Translations!$B$110","v":"Route 2"},{"$f":"Translations!$B$111","v":"Route 3"},{"$f":"Translations!$B$112","v":"Route 4"},{"$f":"Translations!$B$113","v":"Route 5"},{"$f":"Translations!$B$114","v":"Route 6"},{"$nulls":11},"GoodID","RouteID 1","RouteID 2","RouteID 3","RouteID 4","RouteID 5","RouteID 6"]
[{"$nulls":3},{"$f":"A_InstData!D62","v":"G1"},{"$f":"IF(INDEX(CNTR_List_ExistGoodTypes,ROWS(D20:D$20))=CONST_NA,\"\",INDEX(CNTR_List_ExistGoodTypes,ROWS(D20:D$20)))","v":""},{"$f":"IF($E20=\"\",\"\",IF(A_InstData!G62=\"\",\"\",A_InstData!G62))","v":""},{"$f":"IF($E20=\"\",\"\",IF(A_InstData!I62=\"\",\"\",A_InstData!I62))","v":""},{"$f":"IF($E20=\"\",\"\",IF(A_InstData!J62=\"\",\"\",A_InstData!J62))","v":""},{"$f":"IF($E20=\"\",\"\",IF(A_InstData!K62=\"\",\"\",A_InstData!K62))","v":""},{"$f":"IF($E20=\"\",\"\",IF(A_InstData!L62=\"\",\"\",A_InstData!L62))","v":""},{"$f":"IF($E20=\"\",\"\",IF(A_InstData!M62=\"\",\"\",A_InstData!M62))","v":""},{"$f":"IF($E20=\"\",\"\",IF(A_InstData!N62=\"\",\"\",A_InstData!N62))","v":""},{"$nulls":10},{"$f":"D20","v":"G1"},{"$f":"IF(E20=\"\",\"\",MATCH(E20,CONST_LIST_Goods,0))","v":""},{"$f":"IF(G20=\"\",\"\",MATCH(G20,INDEX(CONST_MATRIX_ProductionRoute,$X20,),0))","v":""},{"$f":"IF(H20=\"\",\"\",MATCH(H20,INDEX(CONST_MATRIX_ProductionRoute,$X20,),0))","v":""},{"$f":"IF(I20=\"\",\"\",MATCH(I20,INDEX(CONST_MATRIX_ProductionRoute,$X20,),0))","v":""},{"$f":"IF(J20=\"\",\"\",MATCH(J20,INDEX(CONST_MATRIX_ProductionRoute,$X20,),0))","v":""},{"$f":"IF(K20=\"\",\"\",MATCH(K20,INDEX(CONST_MATRIX_ProductionRoute,$X20,),0))","v":""},{"$f":"IF(L20=\"\",\"\",MATCH(L20,INDEX(CONST_MATRIX_ProductionRoute,$X20,),0))","v":""}]
[{"$nulls":3},{"$f":"A_InstData!D63","v":"G2"},{"$f":"IF(INDEX(CNTR_List_ExistGoodTypes,ROWS(D$20:D21))=CONST_NA,\"\",INDEX(CNTR_List_ExistGoodTypes,ROWS(D$20:D21)))","v":""},{"$f":"IF($E21=\"\",\"\",IF(A_InstData!G63=\"\",\"\",A_InstData!G63))","v":""},{"$f":"IF($E21=\"\",\"\",IF(A_InstData!I63=\"\",\"\",A_InstData!I63))","v":""},{"$f":"IF($E21=\"\",\"\",IF(A_InstData!J63=\"\",\"\",A_InstData!J63))","v":""},{"$f":"IF($E21=\"\",\"\",IF(A_InstData!K63=\"\",\"\",A_InstData!K63))","v":""},{"$f":"IF($E21=\"\",\"\",IF(A_InstData!L63=\"\",\"\",A_InstData!L63))","v":""},{"$f":"IF($E21=\"\",\"\",IF(A_InstData!M63=\"\",\"\",A_InstData!M63))","v":""},{"$f":"IF($E21=\"\",\"\",IF(A_InstData!N63=\"\",\"\",A_InstData!N63))","v":""},{"$nulls":10},{"$f":"D21","v":"G2"},"","","","","","",""]
[{"$nulls":3},{"$f":"A_InstData!D64","v":"G3"},{"$f":"IF(INDEX(CNTR_List_ExistGoodTypes,ROWS(D$20:D22))=CONST_NA,\"\",INDEX(CNTR_List_ExistGoodTypes,ROWS(D$20:D22)))","v":""},{"$f":"IF($E22=\"\",\"\",IF(A_InstData!G64=\"\",\"\",A_InstData!G64))","v":""},{"$f":"IF($E22=\"\",\"\",IF(A_InstData!I64=\"\",\"\",A_InstData!I64))","v":""},{"$f":"IF($E22=\"\",\"\",IF(A_InstData!J64=\"\",\"\",A_InstData!J64))","v":""},{"$f":"IF($E22=\"\",\"\",IF(A_InstData!K64=\"\",\"\",A_InstData!K64))","v":""},{"$f":"IF($E22=\"\",\"\",IF(A_InstData!L64=\"\",\"\",A_InstData!L64))","v":""},{"$f":"IF($E22=\"\",\"\",IF(A_InstData!M64=\"\",\"\",A_InstData!M64))","v":""},{"$f":"IF($E22=\"\",\"\",IF(A_InstData!N64=\"\",\"\",A_InstData!N64))","v":""},{"$nulls":10},"G3","","","","","","",""]
[{"$nulls":3},{"$f":"A_InstData!D65","v":"G4"},{"$f":"IF(INDEX(CNTR_List_ExistGoodTypes,ROWS(D$20:D23))=CONST_NA,\"\",INDEX(CNTR_List_ExistGoodTypes,ROWS(D$20:D23)))","v":""},{"$f":"IF($E23=\"\",\"\",IF(A_InstData!G65=\"\",\"\",A_InstData!G65))","v":""},{"$f":"IF($E23=\"\",\"\",IF(A_InstData!I65=\"\",\"\",A_InstData!I65))","v":""},{"$f":"IF($E23=\"\",\"\",IF(A_InstData!J65=\"\",\"\",A_InstData!J65))","v":""},{"$f":"IF($E23=\"\",\"\",IF(A_InstData!K65=\"\",\"\",A_InstData!K65))","v":""},{"$f":"IF($E23=\"\",\"\",IF(A_InstData!L65=\"\",\"\",A_InstData!L65))","v":""},{"$f":"IF($E23=\"\",\"\",IF(A_InstData!M65=\"\",\"\",A_InstData!M65))","v":""},{"$f":"IF($E23=\"\",\"\",IF(A_InstData!N65=\"\",\"\",A_InstData!N65))","v":""},{"$nulls":10},"G4","","","","","","",""]
[{"$nulls":3},{"$f":"A_InstData!D66","v":"G5"},{"$f":"IF(INDEX(CNTR_List_ExistGoodTypes,ROWS(D$20:D24))=CONST_NA,\"\",INDEX(CNTR_List_ExistGoodTypes,ROWS(D$20:D24)))","v":""},{"$f":"IF($E24=\"\",\"\",IF(A_InstData!G66=\"\",\"\",A_InstData!G66))","v":""},{"$f":"IF($E24=\"\",\"\",IF(A_InstData!I66=\"\",\"\",A_InstData!I66))","v":""},{"$f":"IF($E24=\"\",\"\",IF(A_InstData!J66=\"\",\"\",A_InstData!J66))","v":""},{"$f":"IF($E24=\"\",\"\",IF(A_InstData!K66=\"\",\"\",A_InstData!K66))","v":""},{"$f":"IF($E24=\"\",\"\",IF(A_InstData!L66=\"\",\"\",A_InstData!L66))","v":""},{"$f":"IF($E24=\"\",\"\",IF(A_InstData!M66=\"\",\"\",A_InstData!M66))","v":""},{"$f":"IF($E24=\"\",\"\",IF(A_InstData!N66=\"\",\"\",A_InstData!N66))","v":""},{"$nulls":10},"G5","","","","","","",""]
[{"$nulls":3},{"$f":"A_InstData!D67","v":"G6"},{"$f":"IF(INDEX(CNTR_List_ExistGoodTypes,ROWS(D$20:D25))=CONST_NA,\"\",INDEX(CNTR_List_ExistGoodTypes,ROWS(D$20:D25)))","v":""},{"$f":"IF($E25=\"\",\"\",IF(A_InstData!G67=\"\",\"\",A_InstData!G67))","v":""},{"$f":"IF($E25=\"\",\"\",IF(A_InstData!I67=\"\",\"\",A_InstData!I67))","v":""},{"$f":"IF($E25=\"\",\"\",IF(A_InstData!J67=\"\",\"\",A_InstData!J67))","v":""},{"$f":"IF($E25=\"\",\"\",IF(A_InstData!K67=\"\",\"\",A_InstData!K67))","v":""},{"$f":"IF($E25=\"\",\"\",IF(A_InstData!L67=\"\",\"\",A_InstData!L67))","v":""},{"$f":"IF($E25=\"\",\"\",IF(A_InstData!M67=\"\",\"\",A_InstData!M67))","v":""},{"$f":"IF($E25=\"\",\"\",IF(A_InstData!N67=\"\",\"\",A_InstData!N67))","v":""},{"$nulls":10},"G6","","","","","","",""]
[{"$nulls":3},{"$f":"A_InstData!D68","v":"G7"},{"$f":"IF(INDEX(CNTR_List_ExistGoodTypes,ROWS(D$20:D26))=CONST_NA,\"\",INDEX(CNTR_List_ExistGoodTypes,ROWS(D$20:D26)))","v":""},{"$f":"IF($E26=\"\",\"\",IF(A_InstData!G68=\"\",\"\",A_InstData!G68))","v":""},{"$f":"IF($E26=\"\",\"\",IF(A_InstData!I68=\"\",\"\",A_InstData!I68))","v":""},{"$f":"IF($E26=\"\",\"\",IF(A_InstData!J68=\"\",\"\",A_InstData!J68))","v":""},{"$f":"IF($E26=\"\",\"\",IF(A_InstData!K68=\"\",\"\",A_InstData!K68))","v":""},{"$f":"IF($E26=\"\",\"\",IF(A_InstData!L68=\"\",\"\",A_InstData!L68))","v":""},{"$f":"IF($E26=\"\",\"\",IF(A_InstData!M68=\"\",\"\",A_InstData!M68))","v":""},{"$f":"IF($E26=\"\",\"\",IF(A_InstData!N68=\"\",\"\",A_InstData!N68))","v":""},{"$nulls":10},"G7","","","","","","",""]
[{"$nulls":3},{"$f":"A_InstData!D69","v":"G8"},{"$f":"IF(INDEX(CNTR_List_ExistGoodTypes,ROWS(D$20:D27))=CONST_NA,\"\",INDEX(CNTR_List_ExistGoodTypes,ROWS(D$20:D27)))","v":""},{"$f":"IF($E27=\"\",\"\",IF(A_InstData!G69=\"\",\"\",A_InstData!G69))","v":""},{"$f":"IF($E27=\"\",\"\",IF(A_InstData!I69=\"\",\"\",A_InstData!I69))","v":""},{"$f":"IF($E27=\"\",\"\",IF(A_InstData!J69=\"\",\"\",A_InstData!J69))","v":""},{"$f":"IF($E27=\"\",\"\",IF(A_InstData!K69=\"\",\"\",A_InstData!K69))","v":""},{"$f":"IF($E27=\"\",\"\",IF(A_InstData!L69=\"\",\"\",A_InstData!L69))","v":""},{"$f":"IF($E27=\"\",\"\",IF(A_InstData!M69=\"\",\"\",A_InstData!M69))","v":""},{"$f":"IF($E27=\"\",\"\",IF(A_InstData!N69=\"\",\"\",A_InstData!N69))","v":""},{"$nulls":10},"G8","","","","","","",""]
[{"$nulls":3},{"$f":"A_InstData!D70","v":"G9"},{"$f":"IF(INDEX(CNTR_List_ExistGoodTypes,ROWS(D$20:D28))=CONST_NA,\"\",INDEX(CNTR_List_ExistGoodTypes,ROWS(D$20:D28)))","v":""},{"$f":"IF($E28=\"\",\"\",IF(A_InstData!G70=\"\",\"\",A_InstData!G70))","v":""},{"$f":"IF($E28=\"\",\"\",IF(A_InstData!I70=\"\",\"\",A_InstData!I70))","v":""},{"$f":"IF($E28=\"\",\"\",IF(A_InstData!J70=\"\",\"\",A_InstData!J70))","v":""},{"$f":"IF($E28=\"\",\"\",IF(A_InstData!K70=\"\",\"\",A_InstData!K70))","v":""},{"$f":"IF($E28=\"\",\"\",IF(A_InstData!L70=\"\",\"\",A_InstData!L70))","v":""},{"$f":"IF($E28=\"\",\"\",IF(A_InstData!M70=\"\",\"\",A_InstData!M70))","v":""},{"$f":"IF($E28=\"\",\"\",IF(A_InstData!N70=\"\",\"\",A_InstData!N70))","v":""},{"$nulls":10},"G9","","","","","","",""]
[{"$nulls":3},{"$f":"A_InstData!D71","v":"G10"},{"$f":"IF(INDEX(CNTR_List_ExistGoodTypes,ROWS(D$20:D29))=CONST_NA,\"\",INDEX(CNTR_List_ExistGoodTypes,ROWS(D$20:D29)))","v":""},{"$f":"IF($E29=\"\",\"\",IF(A_InstData!G71=\"\",\"\",A_InstData!G71))","v":""},{"$f":"IF($E29=\"\",\"\",IF(A_InstData!I71=\"\",\"\",A_InstData!I71))","v":""},{"$f":"IF($E29=\"\",\"\",IF(A_InstData!J71=\"\",\"\",A_InstData!J71))","v":""},{"$f":"IF($E29=\"\",\"\",IF(A_InstData!K71=\"\",\"\",A_InstData!K71))","v":""},{"$f":"IF($E29=\"\",\"\",IF(A_InstData!L71=\"\",\"\",A_InstData!L71))","v":""},{"$f":"IF($E29=\"\",\"\",IF(A_InstData!M71=\"\",\"\",A_InstData!M71))","v":""},{"$f":"IF($E29=\"\",\"\",IF(A_InstData!N71=\"\",\"\",A_InstData!N71))","v":""},{"$nulls":10},"G10","","","","","","",""]
[]
[{"$nulls":3},"(b) ",{"$f":"Translations!$B$120","v":"Production process"},{"$f":"Translations!$B$107","v":"Aggregated goods category"},1,2,3,4,5,6,{"$nulls":11},"GoodID","PrecID 1","PrecID 2","PrecID 3","PrecID 4","PrecID 5","PrecID 6"]
[{"$nulls":3},{"$f":"A_InstData!D82","v":"P1"},{"$f":"IF(INDEX(CNTR_List_ExistProdProcNames,ROWS(D$32:D32))=CONST_NA,\"\",INDEX(CNTR_List_ExistProdProcNames,ROWS(D$32:D32)))","v":""},{"$f":"IF(E32=\"\",\"\",INDEX(CNTR_List_ExistProdProc,MATCH(E32,CNTR_List_ExistProdProcNames,0)))","v":""},{"$f":"IF($F32=\"\",\"\",IF(INDEX(A_InstData!F$82:F$91,MATCH($F32,CNTR_List_ExistProdProc,0))=\"\",\"\",INDEX(A_InstData!F$82:F$91,MATCH($F32,CNTR_List_ExistProdProc,0))))","v":""},{"$f":"IF($F32=\"\",\"\",IF(INDEX(A_InstData!G$82:G$91,MATCH($F32,CNTR_List_ExistProdProc,0))=\"\",\"\",INDEX(A_InstData!G$82:G$91,MATCH($F32,CNTR_List_ExistProdProc,0))))","v":""},{"$f":"IF($F32=\"\",\"\",IF(INDEX(A_InstData!H$82:H$91,MATCH($F32,CNTR_List_ExistProdProc,0))=\"\",\"\",INDEX(A_InstData!H$82:H$91,MATCH($F32,CNTR_List_ExistProdProc,0))))","v":""},{"$f":"IF($F32=\"\",\"\",IF(INDEX(A_InstData!I$82:I$91,MATCH($F32,CNTR_List_ExistProdProc,0))=\"\",\"\",INDEX(A_InstData!I$82:I$91,MATCH($F32,CNTR_List_ExistProdProc,0))))","v":""},{"$f":"IF($F32=\"\",\"\",IF(INDEX(A_InstData!J$82:J$91,MATCH($F32,CNTR_List_ExistProdProc,0))=\"\",\"\",INDEX(A_InstData!J$82:J$91,MATCH($F32,CNTR_List_ExistProdProc,0))))","v":""},{"$f":"IF($F32=\"\",\"\",IF(INDEX(A_InstData!K$82:K$91,MATCH($F32,CNTR_List_ExistProdProc,0))=\"\",\"\",INDEX(A_InstData!K$82:K$91,MATCH($F32,CNTR_List_ExistProdProc,0))))","v":""},{"$nulls":10},{"$f":"D32","v":"P1"},{"$f":"IF(F32=\"\",\"\",MATCH(F32,CONST_LIST_Goods,0))","v":""},{"$f":"IF(G32=\"\",\"\",IF(G32=CONST_OnlyDirProd,0,MATCH(G32,INDEX(Parameters_Constants!$AC$80:$AM$97,$X32,),0)))","v":""},{"$f":"IF(H32=\"\",\"\",IF(H32=CONST_OnlyDirProd,0,MATCH(H32,INDEX(Parameters_Constants!$AC$80:$AM$97,$X32,),0)))","v":""},{"$f":"IF(I32=\"\",\"\",IF(I32=CONST_OnlyDirProd,0,MATCH(I32,INDEX(Parameters_Constants!$AC$80:$AM$97,$X32,),0)))","v":""},{"$f":"IF(J32=\"\",\"\",IF(J32=CONST_OnlyDirProd,0,MATCH(J32,INDEX(Parameters_Constants!$AC$80:$AM$97,$X32,),0)))","v":""},{"$f":"IF(K32=\"\",\"\",IF(K32=CONST_OnlyDirProd,0,MATCH(K32,INDEX(Parameters_Constants!$AC$80:$AM$97,$X32,),0)))","v":""},{"$f":"IF(L32=\"\",\"\",IF(L32=CONST_OnlyDirProd,0,MATCH(L32,INDEX(Parameters_Constants!$AC$80:$AM$97,$X32,),0)))","v":""}]
[{"$nulls":3},{"$f":"A_InstData!D83","v":"P2"},{"$f":"IF(INDEX(CNTR_List_ExistProdProcNames,ROWS(D$32:D33))=CONST_NA,\"\",INDEX(CNTR_List_ExistProdProcNames,ROWS(D$32:D33)))","v":""},"",{"$f":"IF($F33=\"\",\"\",IF(INDEX(A_InstData!F$82:F$91,MATCH($F33,CNTR_List_ExistProdProc,0))=\"\",\"\",INDEX(A_InstData!F$82:F$91,MATCH($F33,CNTR_List_ExistProdProc,0))))","v":""},{"$f":"IF($F33=\"\",\"\",IF(INDEX(A_InstData!G$82:G$91,MATCH($F33,CNTR_List_ExistProdProc,0))=\"\",\"\",INDEX(A_InstData!G$82:G$91,MATCH($F33,CNTR_List_ExistProdProc,0))))","v":""},{"$f":"IF($F33=\"\",\"\",IF(INDEX(A_InstData!H$82:H$91,MATCH($F33,CNTR_List_ExistProdProc,0))=\"\",\"\",INDEX(A_InstData!H$82:H$91,MATCH($F33,CNTR_List_ExistProdProc,0))))","v":""},{"$f":"IF($F33=\"\",\"\",IF(INDEX(A_InstData!I$82:I$91,MATCH($F33,CNTR_List_ExistProdProc,0))=\"\",\"\",INDEX(A_InstData!I$82:I$91,MATCH($F33,CNTR_List_ExistProdProc,0))))","v":""},{"$f":"IF($F33=\"\",\"\",IF(INDEX(A_InstData!J$82:J$91,MATCH($F33,CNTR_List_ExistProdProc,0))=\"\",\"\",INDEX(A_InstData!J$82:J$91,MATCH($F33,CNTR_List_ExistProdProc,0))))","v":""},{"$f":"IF($F33=\"\",\"\",IF(INDEX(A_InstData!K$82:K$91,MATCH($F33,CNTR_List_ExistProdProc,0))=\"\",\"\",INDEX(A_InstData!K$82:K$91,MATCH($F33,CNTR_List_ExistProdProc,0))))","v":""},{"$nulls":10},{"$f":"D33","v":"P2"},"",{"$f":"IF(G33=\"\",\"\",IF(G33=CONST_OnlyDirProd,0,MATCH(G33,INDEX(Parameters_Constants!$AC$80:$AM$97,$X33,),0)))","v":""},{"$f":"IF(H33=\"\",\"\",IF(H33=CONST_OnlyDirProd,0,MATCH(H33,INDEX(Parameters_Constants!$AC$80:$AM$97,$X33,),0)))","v":""},{"$f":"IF(I33=\"\",\"\",IF(I33=CONST_OnlyDirProd,0,MATCH(I33,INDEX(Parameters_Constants!$AC$80:$AM$97,$X33,),0)))","v":""},{"$f":"IF(J33=\"\",\"\",IF(J33=CONST_OnlyDirProd,0,MATCH(J33,INDEX(Parameters_Constants!$AC$80:$AM$97,$X33,),0)))","v":""},{"$f":"IF(K33=\"\",\"\",IF(K33=CONST_OnlyDirProd,0,MATCH(K33,INDEX(Parameters_Constants!$AC$80:$AM$97,$X33,),0)))","v":""},{"$f":"IF(L33=\"\",\"\",IF(L33=CONST_OnlyDirProd,0,MATCH(L33,INDEX(Parameters_Constants!$AC$80:$AM$97,$X33,),0)))","v":""}]
[{"$nulls":3},{"$f":"A_InstData!D84","v":"P3"},{"$f":"IF(INDEX(CNTR_List_ExistProdProcNames,ROWS(D$32:D34))=CONST_NA,\"\",INDEX(CNTR_List_ExistProdProcNames,ROWS(D$32:D34)))","v":""},"",{"$f":"IF($F34=\"\",\"\",IF(INDEX(A_InstData!F$82:F$91,MATCH($F34,CNTR_List_ExistProdProc,0))=\"\",\"\",INDEX(A_InstData!F$82:F$91,MATCH($F34,CNTR_List_ExistProdProc,0))))","v":""},{"$f":"IF($F34=\"\",\"\",IF(INDEX(A_InstData!G$82:G$91,MATCH($F34,CNTR_List_ExistProdProc,0))=\"\",\"\",INDEX(A_InstData!G$82:G$91,MATCH($F34,CNTR_List_ExistProdProc,0))))","v":""},{"$f":"IF($F34=\"\",\"\",IF(INDEX(A_InstData!H$82:H$91,MATCH($F34,CNTR_List_ExistProdProc,0))=\"\",\"\",INDEX(A_InstData!H$82:H$91,MATCH($F34,CNTR_List_ExistProdProc,0))))","v":""},{"$f":"IF($F34=\"\",\"\",IF(INDEX(A_InstData!I$82:I$91,MATCH($F34,CNTR_List_ExistProdProc,0))=\"\",\"\",INDEX(A_InstData!I$82:I$91,MATCH($F34,CNTR_List_ExistProdProc,0))))","v":""},{"$f":"IF($F34=\"\",\"\",IF(INDEX(A_InstData!J$82:J$91,MATCH($F34,CNTR_List_ExistProdProc,0))=\"\",\"\",INDEX(A_InstData!J$82:J$91,MATCH($F34,CNTR_List_ExistProdProc,0))))","v":""},{"$f":"IF($F34=\"\",\"\",IF(INDEX(A_InstData!K$82:K$91,MATCH($F34,CNTR_List_ExistProdProc,0))=\"\",\"\",INDEX(A_InstData!K$82:K$91,MATCH($F34,CNTR_List_ExistProdProc,0))))","v":""},{"$nulls":10},"P3","",{"$f":"IF(G34=\"\",\"\",IF(G34=CONST_OnlyDirProd,0,MATCH(G34,INDEX(Parameters_Constants!$AC$80:$AM$97,$X34,),0)))","v":""},{"$f":"IF(H34=\"\",\"\",IF(H34=CONST_OnlyDirProd,0,MATCH(H34,INDEX(Parameters_Constants!$AC$80:$AM$97,$X34,),0)))","v":""},{"$f":"IF(I34=\"\",\"\",IF(I34=CONST_OnlyDirProd,0,MATCH(I34,INDEX(Parameters_Constants!$AC$80:$AM$97,$X34,),0)))","v":""},{"$f":"IF(J34=\"\",\"\",IF(J34=CONST_OnlyDirProd,0,MATCH(J34,INDEX(Parameters_Constants!$AC$80:$AM$97,$X34,),0)))","v":""},{"$f":"IF(K34=\"\",\"\",IF(K34=CONST_OnlyDirProd,0,MATCH(K34,INDEX(Parameters_Constants!$AC$80:$AM$97,$X34,),0)))","v":""},{"$f":"IF(L34=\"\",\"\",IF(L34=CONST_OnlyDirProd,0,MATCH(L34,INDEX(Parameters_Constants!$AC$80:$AM$97,$X34,),0)))","v":""}]
[{"$nulls":3},{"$f":"A_InstData!D85","v":"P4"},{"$f":"IF(INDEX(CNTR_List_ExistProdProcNames,ROWS(D$32:D35))=CONST_NA,\"\",INDEX(CNTR_List_ExistProdProcNames,ROWS(D$32:D35)))","v":""},"",{"$f":"IF($F35=\"\",\"\",IF(INDEX(A_InstData!F$82:F$91,MATCH($F35,CNTR_List_ExistProdProc,0))=\"\",\"\",INDEX(A_InstData!F$82:F$91,MATCH($F35,CNTR_List_ExistProdProc,0))))","v":""},{"$f":"IF($F35=\"\",\"\",IF(INDEX(A_InstData!G$82:G$91,MATCH($F35,CNTR_List_ExistProdProc,0))=\"\",\"\",INDEX(A_InstData!G$82:G$91,MATCH($F35,CNTR_List_ExistProdProc,0))))","v":""},{"$f":"IF($F35=\"\",\"\",IF(INDEX(A_InstData!H$82:H$91,MATCH($F35,CNTR_List_ExistProdProc,0))=\"\",\"\",INDEX(A_InstData!H$82:H$91,MATCH($F35,CNTR_List_ExistProdProc,0))))","v":""},{"$f":"IF($F35=\"\",\"\",IF(INDEX(A_InstData!I$82:I$91,MATCH($F35,CNTR_List_ExistProdProc,0))=\"\",\"\",INDEX(A_InstData!I$82:I$91,MATCH($F35,CNTR_List_ExistProdProc,0))))","v":""},{"$f":"IF($F35=\"\",\"\",IF(INDEX(A_InstData!J$82:J$91,MATCH($F35,CNTR_List_ExistProdProc,0))=\"\",\"\",INDEX(A_InstData!J$82:J$91,MATCH($F35,CNTR_List_ExistProdProc,0))))","v":""},{"$f":"IF($F35=\"\",\"\",IF(INDEX(A_InstData!K$82:K$91,MATCH($F35,CNTR_List_ExistProdProc,0))=\"\",\"\",INDEX(A_InstData!K$82:K$91,MATCH($F35,CNTR_List_ExistProdProc,0))))","v":""},{"$nulls":10},"P4","",{"$f":"IF(G35=\"\",\"\",IF(G35=CONST_OnlyDirProd,0,MATCH(G35,INDEX(Parameters_Constants!$AC$80:$AM$97,$X35,),0)))","v":""},{"$f":"IF(H35=\"\",\"\",IF(H35=CONST_OnlyDirProd,0,MATCH(H35,INDEX(Parameters_Constants!$AC$80:$AM$97,$X35,),0)))","v":""},{"$f":"IF(I35=\"\",\"\",IF(I35=CONST_OnlyDirProd,0,MATCH(I35,INDEX(Parameters_Constants!$AC$80:$AM$97,$X35,),0)))","v":""},{"$f":"IF(J35=\"\",\"\",IF(J35=CONST_OnlyDirProd,0,MATCH(J35,INDEX(Parameters_Constants!$AC$80:$AM$97,$X35,),0)))","v":""},{"$f":"IF(K35=\"\",\"\",IF(K35=CONST_OnlyDirProd,0,MATCH(K35,INDEX(Parameters_Constants!$AC$80:$AM$97,$X35,),0)))","v":""},{"$f":"IF(L35=\"\",\"\",IF(L35=CONST_OnlyDirProd,0,MATCH(L35,INDEX(Parameters_Constants!$AC$80:$AM$97,$X35,),0)))","v":""}]
[{"$nulls":3},{"$f":"A_InstData!D86","v":"P5"},{"$f":"IF(INDEX(CNTR_List_ExistProdProcNames,ROWS(D$32:D36))=CONST_NA,\"\",INDEX(CNTR_List_ExistProdProcNames,ROWS(D$32:D36)))","v":""},"",{"$f":"IF($F36=\"\",\"\",IF(INDEX(A_InstData!F$82:F$91,MATCH($F36,CNTR_List_ExistProdProc,0))=\"\",\"\",INDEX(A_InstData!F$82:F$91,MATCH($F36,CNTR_List_ExistProdProc,0))))","v":""},{"$f":"IF($F36=\"\",\"\",IF(INDEX(A_InstData!G$82:G$91,MATCH($F36,CNTR_List_ExistProdProc,0))=\"\",\"\",INDEX(A_InstData!G$82:G$91,MATCH($F36,CNTR_List_ExistProdProc,0))))","v":""},{"$f":"IF($F36=\"\",\"\",IF(INDEX(A_InstData!H$82:H$91,MATCH($F36,CNTR_List_ExistProdProc,0))=\"\",\"\",INDEX(A_InstData!H$82:H$91,MATCH($F36,CNTR_List_ExistProdProc,0))))","v":""},{"$f":"IF($F36=\"\",\"\",IF(INDEX(A_InstData!I$82:I$91,MATCH($F36,CNTR_List_ExistProdProc,0))=\"\",\"\",INDEX(A_InstData!I$82:I$91,MATCH($F36,CNTR_List_ExistProdProc,0))))","v":""},{"$f":"IF($F36=\"\",\"\",IF(INDEX(A_InstData!J$82:J$91,MATCH($F36,CNTR_List_ExistProdProc,0))=\"\",\"\",INDEX(A_InstData!J$82:J$91,MATCH($F36,CNTR_List_ExistProdProc,0))))","v":""},{"$f":"IF($F36=\"\",\"\",IF(INDEX(A_InstData!K$82:K$91,MATCH($F36,CNTR_List_ExistProdProc,0))=\"\",\"\",INDEX(A_InstData!K$82:K$91,MATCH($F36,CNTR_List_ExistProdProc,0))))","v":""},{"$nulls":10},"P5","",{"$f":"IF(G36=\"\",\"\",IF(G36=CONST_OnlyDirProd,0,MATCH(G36,INDEX(Parameters_Constants!$AC$80:$AM$97,$X36,),0)))","v":""},{"$f":"IF(H36=\"\",\"\",IF(H36=CONST_OnlyDirProd,0,MATCH(H36,INDEX(Parameters_Constants!$AC$80:$AM$97,$X36,),0)))","v":""},{"$f":"IF(I36=\"\",\"\",IF(I36=CONST_OnlyDirProd,0,MATCH(I36,INDEX(Parameters_Constants!$AC$80:$AM$97,$X36,),0)))","v":""},{"$f":"IF(J36=\"\",\"\",IF(J36=CONST_OnlyDirProd,0,MATCH(J36,INDEX(Parameters_Constants!$AC$80:$AM$97,$X36,),0)))","v":""},{"$f":"IF(K36=\"\",\"\",IF(K36=CONST_OnlyDirProd,0,MATCH(K36,INDEX(Parameters_Constants!$AC$80:$AM$97,$X36,),0)))","v":""},{"$f":"IF(L36=\"\",\"\",IF(L36=CONST_OnlyDirProd,0,MATCH(L36,INDEX(Parameters_Constants!$AC$80:$AM$97,$X36,),0)))","v":""}]
[{"$nulls":3},{"$f":"A_InstData!D87","v":"P6"},{"$f":"IF(INDEX(CNTR_List_ExistProdProcNames,ROWS(D$32:D37))=CONST_NA,\"\",INDEX(CNTR_List_ExistProdProcNames,ROWS(D$32:D37)))","v":""},"",{"$f":"IF($F37=\"\",\"\",IF(INDEX(A_InstData!F$82:F$91,MATCH($F37,CNTR_List_ExistProdProc,0))=\"\",\"\",INDEX(A_InstData!F$82:F$91,MATCH($F37,CNTR_List_ExistProdProc,0))))","v":""},{"$f":"IF($F37=\"\",\"\",IF(INDEX(A_InstData!G$82:G$91,MATCH($F37,CNTR_List_ExistProdProc,0))=\"\",\"\",INDEX(A_InstData!G$82:G$91,MATCH($F37,CNTR_List_ExistProdProc,0))))","v":""},{"$f":"IF($F37=\"\",\"\",IF(INDEX(A_InstData!H$82:H$91,MATCH($F37,CNTR_List_ExistProdProc,0))=\"\",\"\",INDEX(A_InstData!H$82:H$91,MATCH($F37,CNTR_List_ExistProdProc,0))))","v":""},{"$f":"IF($F37=\"\",\"\",IF(INDEX(A_InstData!I$82:I$91,MATCH($F37,CNTR_List_ExistProdProc,0))=\"\",\"\",INDEX(A_InstData!I$82:I$91,MATCH($F37,CNTR_List_ExistProdProc,0))))","v":""},{"$f":"IF($F37=\"\",\"\",IF(INDEX(A_InstData!J$82:J$91,MATCH($F37,CNTR_List_ExistProdProc,0))=\"\",\"\",INDEX(A_InstData!J$82:J$91,MATCH($F37,CNTR_List_ExistProdProc,0))))","v":""},{"$f":"IF($F37=\"\",\"\",IF(INDEX(A_InstData!K$82:K$91,MATCH($F37,CNTR_List_ExistProdProc,0))=\"\",\"\",INDEX(A_InstData!K$82:K$91,MATCH($F37,CNTR_List_ExistProdProc,0))))","v":""},{"$nulls":10},"P6","",{"$f":"IF(G37=\"\",\"\",IF(G37=CONST_OnlyDirProd,0,MATCH(G37,INDEX(Parameters_Constants!$AC$80:$AM$97,$X37,),0)))","v":""},{"$f":"IF(H37=\"\",\"\",IF(H37=CONST_OnlyDirProd,0,MATCH(H37,INDEX(Parameters_Constants!$AC$80:$AM$97,$X37,),0)))","v":""},{"$f":"IF(I37=\"\",\"\",IF(I37=CONST_OnlyDirProd,0,MATCH(I37,INDEX(Parameters_Constants!$AC$80:$AM$97,$X37,),0)))","v":""},{"$f":"IF(J37=\"\",\"\",IF(J37=CONST_OnlyDirProd,0,MATCH(J37,INDEX(Parameters_Constants!$AC$80:$AM$97,$X37,),0)))","v":""},{"$f":"IF(K37=\"\",\"\",IF(K37=CONST_OnlyDirProd,0,MATCH(K37,INDEX(Parameters_Constants!$AC$80:$AM$97,$X37,),0)))","v":""},{"$f":"IF(L37=\"\",\"\",IF(L37=CONST_OnlyDirProd,0,MATCH(L37,INDEX(Parameters_Constants!$AC$80:$AM$97,$X37,),0)))","v":""}]
[{"$nulls":3},{"$f":"A_InstData!D88","v":"P7"},{"$f":"IF(INDEX(CNTR_List_ExistProdProcNames,ROWS(D$32:D38))=CONST_NA,\"\",INDEX(CNTR_List_ExistProdProcNames,ROWS(D$32:D38)))","v":""},"",{"$f":"IF($F38=\"\",\"\",IF(INDEX(A_InstData!F$82:F$91,MATCH($F38,CNTR_List_ExistProdProc,0))=\"\",\"\",INDEX(A_InstData!F$82:F$91,MATCH($F38,CNTR_List_ExistProdProc,0))))","v":""},{"$f":"IF($F38=\"\",\"\",IF(INDEX(A_InstData!G$82:G$91,MATCH($F38,CNTR_List_ExistProdProc,0))=\"\",\"\",INDEX(A_InstData!G$82:G$91,MATCH($F38,CNTR_List_ExistProdProc,0))))","v":""},{"$f":"IF($F38=\"\",\"\",IF(INDEX(A_InstData!H$82:H$91,MATCH($F38,CNTR_List_ExistProdProc,0))=\"\",\"\",INDEX(A_InstData!H$82:H$91,MATCH($F38,CNTR_List_ExistProdProc,0))))","v":""},{"$f":"IF($F38=\"\",\"\",IF(INDEX(A_InstData!I$82:I$91,MATCH($F38,CNTR_List_ExistProdProc,0))=\"\",\"\",INDEX(A_InstData!I$82:I$91,MATCH($F38,CNTR_List_ExistProdProc,0))))","v":""},{"$f":"IF($F38=\"\",\"\",IF(INDEX(A_InstData!J$82:J$91,MATCH($F38,CNTR_List_ExistProdProc,0))=\"\",\"\",INDEX(A_InstData!J$82:J$91,MATCH($F38,CNTR_List_ExistProdProc,0))))","v":""},{"$f":"IF($F38=\"\",\"\",IF(INDEX(A_InstData!K$82:K$91,MATCH($F38,CNTR_List_ExistProdProc,0))=\"\",\"\",INDEX(A_InstData!K$82:K$91,MATCH($F38,CNTR_List_ExistProdProc,0))))","v":""},{"$nulls":10},"P7","",{"$f":"IF(G38=\"\",\"\",IF(G38=CONST_OnlyDirProd,0,MATCH(G38,INDEX(Parameters_Constants!$AC$80:$AM$97,$X38,),0)))","v":""},{"$f":"IF(H38=\"\",\"\",IF(H38=CONST_OnlyDirProd,0,MATCH(H38,INDEX(Parameters_Constants!$AC$80:$AM$97,$X38,),0)))","v":""},{"$f":"IF(I38=\"\",\"\",IF(I38=CONST_OnlyDirProd,0,MATCH(I38,INDEX(Parameters_Constants!$AC$80:$AM$97,$X38,),0)))","v":""},{"$f":"IF(J38=\"\",\"\",IF(J38=CONST_OnlyDirProd,0,MATCH(J38,INDEX(Parameters_Constants!$AC$80:$AM$97,$X38,),0)))","v":""},{"$f":"IF(K38=\"\",\"\",IF(K38=CONST_OnlyDirProd,0,MATCH(K38,INDEX(Parameters_Constants!$AC$80:$AM$97,$X38,),0)))","v":""},{"$f":"IF(L38=\"\",\"\",IF(L38=CONST_OnlyDirProd,0,MATCH(L38,INDEX(Parameters_Constants!$AC$80:$AM$97,$X38,),0)))","v":""}]
[{"$nulls":3},{"$f":"A_InstData!D89","v":"P8"},{"$f":"IF(INDEX(CNTR_List_ExistProdProcNames,ROWS(D$32:D39))=CONST_NA,\"\",INDEX(CNTR_List_ExistProdProcNames,ROWS(D$32:D39)))","v":""},"",{"$f":"IF($F39=\"\",\"\",IF(INDEX(A_InstData!F$82:F$91,MATCH($F39,CNTR_List_ExistProdProc,0))=\"\",\"\",INDEX(A_InstData!F$82:F$91,MATCH($F39,CNTR_List_ExistProdProc,0))))","v":""},{"$f":"IF($F39=\"\",\"\",IF(INDEX(A_InstData!G$82:G$91,MATCH($F39,CNTR_List_ExistProdProc,0))=\"\",\"\",INDEX(A_InstData!G$82:G$91,MATCH($F39,CNTR_List_ExistProdProc,0))))","v":""},{"$f":"IF($F39=\"\",\"\",IF(INDEX(A_InstData!H$82:H$91,MATCH($F39,CNTR_List_ExistProdProc,0))=\"\",\"\",INDEX(A_InstData!H$82:H$91,MATCH($F39,CNTR_List_ExistProdProc,0))))","v":""},{"$f":"IF($F39=\"\",\"\",IF(INDEX(A_InstData!I$82:I$91,MATCH($F39,CNTR_List_ExistProdProc,0))=\"\",\"\",INDEX(A_InstData!I$82:I$91,MATCH($F39,CNTR_List_ExistProdProc,0))))","v":""},{"$f":"IF($F39=\"\",\"\",IF(INDEX(A_InstData!J$82:J$91,MATCH($F39,CNTR_List_ExistProdProc,0))=\"\",\"\",INDEX(A_InstData!J$82:J$91,MATCH($F39,CNTR_List_ExistProdProc,0))))","v":""},{"$f":"IF($F39=\"\",\"\",IF(INDEX(A_InstData!K$82:K$91,MATCH($F39,CNTR_List_ExistProdProc,0))=\"\",\"\",INDEX(A_InstData!K$82:K$91,MATCH($F39,CNTR_List_ExistProdProc,0))))","v":""},{"$nulls":10},"P8","",{"$f":"IF(G39=\"\",\"\",IF(G39=CONST_OnlyDirProd,0,MATCH(G39,INDEX(Parameters_Constants!$AC$80:$AM$97,$X39,),0)))","v":""},{"$f":"IF(H39=\"\",\"\",IF(H39=CONST_OnlyDirProd,0,MATCH(H39,INDEX(Parameters_Constants!$AC$80:$AM$97,$X39,),0)))","v":""},{"$f":"IF(I39=\"\",\"\",IF(I39=CONST_OnlyDirProd,0,MATCH(I39,INDEX(Parameters_Constants!$AC$80:$AM$97,$X39,),0)))","v":""},{"$f":"IF(J39=\"\",\"\",IF(J39=CONST_OnlyDirProd,0,MATCH(J39,INDEX(Parameters_Constants!$AC$80:$AM$97,$X39,),0)))","v":""},{"$f":"IF(K39=\"\",\"\",IF(K39=CONST_OnlyDirProd,0,MATCH(K39,INDEX(Parameters_Constants!$AC$80:$AM$97,$X39,),0)))","v":""},{"$f":"IF(L39=\"\",\"\",IF(L39=CONST_OnlyDirProd,0,MATCH(L39,INDEX(Parameters_Constants!$AC$80:$AM$97,$X39,),0)))","v":""}]
[{"$nulls":3},{"$f":"A_InstData!D90","v":"P9"},{"$f":"IF(INDEX(CNTR_List_ExistProdProcNames,ROWS(D$32:D40))=CONST_NA,\"\",INDEX(CNTR_List_ExistProdProcNames,ROWS(D$32:D40)))","v":""},"",{"$f":"IF($F40=\"\",\"\",IF(INDEX(A_InstData!F$82:F$91,MATCH($F40,CNTR_List_ExistProdProc,0))=\"\",\"\",INDEX(A_InstData!F$82:F$91,MATCH($F40,CNTR_List_ExistProdProc,0))))","v":""},{"$f":"IF($F40=\"\",\"\",IF(INDEX(A_InstData!G$82:G$91,MATCH($F40,CNTR_List_ExistProdProc,0))=\"\",\"\",INDEX(A_InstData!G$82:G$91,MATCH($F40,CNTR_List_ExistProdProc,0))))","v":""},{"$f":"IF($F40=\"\",\"\",IF(INDEX(A_InstData!H$82:H$91,MATCH($F40,CNTR_List_ExistProdProc,0))=\"\",\"\",INDEX(A_InstData!H$82:H$91,MATCH($F40,CNTR_List_ExistProdProc,0))))","v":""},{"$f":"IF($F40=\"\",\"\",IF(INDEX(A_InstData!I$82:I$91,MATCH($F40,CNTR_List_ExistProdProc,0))=\"\",\"\",INDEX(A_InstData!I$82:I$91,MATCH($F40,CNTR_List_ExistProdProc,0))))","v":""},{"$f":"IF($F40=\"\",\"\",IF(INDEX(A_InstData!J$82:J$91,MATCH($F40,CNTR_List_ExistProdProc,0))=\"\",\"\",INDEX(A_InstData!J$82:J$91,MATCH($F40,CNTR_List_ExistProdProc,0))))","v":""},{"$f":"IF($F40=\"\",\"\",IF(INDEX(A_InstData!K$82:K$91,MATCH($F40,CNTR_List_ExistProdProc,0))=\"\",\"\",INDEX(A_InstData!K$82:K$91,MATCH($F40,CNTR_List_ExistProdProc,0))))","v":""},{"$nulls":10},"P9","",{"$f":"IF(G40=\"\",\"\",IF(G40=CONST_OnlyDirProd,0,MATCH(G40,INDEX(Parameters_Constants!$AC$80:$AM$97,$X40,),0)))","v":""},{"$f":"IF(H40=\"\",\"\",IF(H40=CONST_OnlyDirProd,0,MATCH(H40,INDEX(Parameters_Constants!$AC$80:$AM$97,$X40,),0)))","v":""},{"$f":"IF(I40=\"\",\"\",IF(I40=CONST_OnlyDirProd,0,MATCH(I40,INDEX(Parameters_Constants!$AC$80:$AM$97,$X40,),0)))","v":""},{"$f":"IF(J40=\"\",\"\",IF(J40=CONST_OnlyDirProd,0,MATCH(J40,INDEX(Parameters_Constants!$AC$80:$AM$97,$X40,),0)))","v":""},{"$f":"IF(K40=\"\",\"\",IF(K40=CONST_OnlyDirProd,0,MATCH(K40,INDEX(Parameters_Constants!$AC$80:$AM$97,$X40,),0)))","v":""},{"$f":"IF(L40=\"\",\"\",IF(L40=CONST_OnlyDirProd,0,MATCH(L40,INDEX(Parameters_Constants!$AC$80:$AM$97,$X40,),0)))","v":""}]
[{"$nulls":3},{"$f":"A_InstData!D91","v":"P10"},{"$f":"IF(INDEX(CNTR_List_ExistProdProcNames,ROWS(D$32:D41))=CONST_NA,\"\",INDEX(CNTR_List_ExistProdProcNames,ROWS(D$32:D41)))","v":""},"",{"$f":"IF($F41=\"\",\"\",IF(INDEX(A_InstData!F$82:F$91,MATCH($F41,CNTR_List_ExistProdProc,0))=\"\",\"\",INDEX(A_InstData!F$82:F$91,MATCH($F41,CNTR_List_ExistProdProc,0))))","v":""},{"$f":"IF($F41=\"\",\"\",IF(INDEX(A_InstData!G$82:G$91,MATCH($F41,CNTR_List_ExistProdProc,0))=\"\",\"\",INDEX(A_InstData!G$82:G$91,MATCH($F41,CNTR_List_ExistProdProc,0))))","v":""},{"$f":"IF($F41=\"\",\"\",IF(INDEX(A_InstData!H$82:H$91,MATCH($F41,CNTR_List_ExistProdProc,0))=\"\",\"\",INDEX(A_InstData!H$82:H$91,MATCH($F41,CNTR_List_ExistProdProc,0))))","v":""},{"$f":"IF($F41=\"\",\"\",IF(INDEX(A_InstData!I$82:I$91,MATCH($F41,CNTR_List_ExistProdProc,0))=\"\",\"\",INDEX(A_InstData!I$82:I$91,MATCH($F41,CNTR_List_ExistProdProc,0))))","v":""},{"$f":"IF($F41=\"\",\"\",IF(INDEX(A_InstData!J$82:J$91,MATCH($F41,CNTR_List_ExistProdProc,0))=\"\",\"\",INDEX(A_InstData!J$82:J$91,MATCH($F41,CNTR_List_ExistProdProc,0))))","v":""},{"$f":"IF($F41=\"\",\"\",IF(INDEX(A_InstData!K$82:K$91,MATCH($F41,CNTR_List_ExistProdProc,0))=\"\",\"\",INDEX(A_InstData!K$82:K$91,MATCH($F41,CNTR_List_ExistProdProc,0))))","v":""},{"$nulls":10},"P10","",{"$f":"IF(G41=\"\",\"\",IF(G41=CONST_OnlyDirProd,0,MATCH(G41,INDEX(Parameters_Constants!$AC$80:$AM$97,$X41,),0)))","v":""},{"$f":"IF(H41=\"\",\"\",IF(H41=CONST_OnlyDirProd,0,MATCH(H41,INDEX(Parameters_Constants!$AC$80:$AM$97,$X41,),0)))","v":""},{"$f":"IF(I41=\"\",\"\",IF(I41=CONST_OnlyDirProd,0,MATCH(I41,INDEX(Parameters_Constants!$AC$80:$AM$97,$X41,),0)))","v":""},{"$f":"IF(J41=\"\",\"\",IF(J41=CONST_OnlyDirProd,0,MATCH(J41,INDEX(Parameters_Constants!$AC$80:$AM$97,$X41,),0)))","v":""},{"$f":"IF(K41=\"\",\"\",IF(K41=CONST_OnlyDirProd,0,MATCH(K41,INDEX(Parameters_Constants!$AC$80:$AM$97,$X41,),0)))","v":""},{"$f":"IF(L41=\"\",\"\",IF(L41=CONST_OnlyDirProd,0,MATCH(L41,INDEX(Parameters_Constants!$AC$80:$AM$97,$X41,),0)))","v":""}]
[]
[{"$nulls":3},"(c) ",{"$f":"Translations!$B$553","v":"Purchased precursor"},{"$f":"Translations!$B$107","v":"Aggregated goods category"},{"$f":"Translations!$B$109","v":"Route 1"},{"$f":"Translations!$B$110","v":"Route 2"},{"$f":"Translations!$B$111","v":"Route 3"},{"$f":"Translations!$B$112","v":"Route 4"},{"$f":"Translations!$B$113","v":"Route 5"},"Country code",{"$nulls":11},"GoodID","RouteID 1","RouteID 2","RouteID 3","RouteID 4","RouteID 5"]
[{"$nulls":3},{"$f":"A_InstData!D101","v":"PP1"},{"$f":"IF(INDEX(CNTR_List_ExistPurchPrecNames,ROWS(D$44:D44))=CONST_NA,\"\",INDEX(CNTR_List_ExistPurchPrecNames,ROWS(D$44:D44)))","v":""},{"$f":"IF(E44=\"\",\"\",INDEX(CNTR_List_ExistPurchPrec,MATCH(E44,CNTR_List_ExistPurchPrecNames,0)))","v":""},{"$f":"IF($F44=\"\",\"\",IF(INDEX(A_InstData!G$101:G$120,MATCH($F44,CNTR_List_ExistPurchPrec,0))=\"\",\"\",INDEX(A_InstData!G$101:G$120,MATCH($F44,CNTR_List_ExistPurchPrec,0))))","v":""},{"$f":"IF($F44=\"\",\"\",IF(INDEX(A_InstData!H$101:H$120,MATCH($F44,CNTR_List_ExistPurchPrec,0))=\"\",\"\",INDEX(A_InstData!H$101:H$120,MATCH($F44,CNTR_List_ExistPurchPrec,0))))","v":""},{"$f":"IF($F44=\"\",\"\",IF(INDEX(A_InstData!I$101:I$120,MATCH($F44,CNTR_List_ExistPurchPrec,0))=\"\",\"\",INDEX(A_InstData!I$101:I$120,MATCH($F44,CNTR_List_ExistPurchPrec,0))))","v":""},{"$f":"IF($F44=\"\",\"\",IF(INDEX(A_InstData!J$101:J$120,MATCH($F44,CNTR_List_ExistPurchPrec,0))=\"\",\"\",INDEX(A_InstData!J$101:J$120,MATCH($F44,CNTR_List_ExistPurchPrec,0))))","v":""},{"$f":"IF($F44=\"\",\"\",IF(INDEX(A_InstData!K$101:K$120,MATCH($F44,CNTR_List_ExistPurchPrec,0))=\"\",\"\",INDEX(A_InstData!K$101:K$120,MATCH($F44,CNTR_List_ExistPurchPrec,0))))","v":""},{"$f":"IF(A_InstData!F101=\"\",\"\",A_InstData!F101)","v":""},{"$nulls":10},{"$f":"D44","v":"PP1"},{"$f":"IF(F44=\"\",\"\",MATCH(F44,CONST_LIST_Goods,0))","v":""},{"$f":"IF(G44=\"\",\"\",MATCH(G44,INDEX(CONST_MATRIX_ProductionRoute,$X44,),0))","v":""},{"$f":"IF(H44=\"\",\"\",MATCH(H44,INDEX(CONST_MATRIX_ProductionRoute,$X44,),0))","v":""},{"$f":"IF(I44=\"\",\"\",MATCH(I44,INDEX(CONST_MATRIX_ProductionRoute,$X44,),0))","v":""},{"$f":"IF(J44=\"\",\"\",MATCH(J44,INDEX(CONST_MATRIX_ProductionRoute,$X44,),0))","v":""},{"$f":"IF(K44=\"\",\"\",MATCH(K44,INDEX(CONST_MATRIX_ProductionRoute,$X44,),0))","v":""}]
[{"$nulls":3},{"$f":"A_InstData!D102","v":"PP2"},{"$f":"IF(INDEX(CNTR_List_ExistPurchPrecNames,ROWS(D$44:D45))=CONST_NA,\"\",INDEX(CNTR_List_ExistPurchPrecNames,ROWS(D$44:D45)))","v":""},"",{"$f":"IF($F45=\"\",\"\",IF(INDEX(A_InstData!G$101:G$120,MATCH($F45,CNTR_List_ExistPurchPrec,0))=\"\",\"\",INDEX(A_InstData!G$101:G$120,MATCH($F45,CNTR_List_ExistPurchPrec,0))))","v":""},{"$f":"IF($F45=\"\",\"\",IF(INDEX(A_InstData!H$101:H$120,MATCH($F45,CNTR_List_ExistPurchPrec,0))=\"\",\"\",INDEX(A_InstData!H$101:H$120,MATCH($F45,CNTR_List_ExistPurchPrec,0))))","v":""},{"$f":"IF($F45=\"\",\"\",IF(INDEX(A_InstData!I$101:I$120,MATCH($F45,CNTR_List_ExistPurchPrec,0))=\"\",\"\",INDEX(A_InstData!I$101:I$120,MATCH($F45,CNTR_List_ExistPurchPrec,0))))","v":""},{"$f":"IF($F45=\"\",\"\",IF(INDEX(A_InstData!J$101:J$120,MATCH($F45,CNTR_List_ExistPurchPrec,0))=\"\",\"\",INDEX(A_InstData!J$101:J$120,MATCH($F45,CNTR_List_ExistPurchPrec,0))))","v":""},{"$f":"IF($F45=\"\",\"\",IF(INDEX(A_InstData!K$101:K$120,MATCH($F45,CNTR_List_ExistPurchPrec,0))=\"\",\"\",INDEX(A_InstData!K$101:K$120,MATCH($F45,CNTR_List_ExistPurchPrec,0))))","v":""},{"$f":"IF(A_InstData!F102=\"\",\"\",A_InstData!F102)","v":""},{"$nulls":10},"PP2","","","","","",""]
[{"$nulls":3},{"$f":"A_InstData!D103","v":"PP3"},{"$f":"IF(INDEX(CNTR_List_ExistPurchPrecNames,ROWS(D$44:D46))=CONST_NA,\"\",INDEX(CNTR_List_ExistPurchPrecNames,ROWS(D$44:D46)))","v":""},"",{"$f":"IF($F46=\"\",\"\",IF(INDEX(A_InstData!G$101:G$120,MATCH($F46,CNTR_List_ExistPurchPrec,0))=\"\",\"\",INDEX(A_InstData!G$101:G$120,MATCH($F46,CNTR_List_ExistPurchPrec,0))))","v":""},{"$f":"IF($F46=\"\",\"\",IF(INDEX(A_InstData!H$101:H$120,MATCH($F46,CNTR_List_ExistPurchPrec,0))=\"\",\"\",INDEX(A_InstData!H$101:H$120,MATCH($F46,CNTR_List_ExistPurchPrec,0))))","v":""},{"$f":"IF($F46=\"\",\"\",IF(INDEX(A_InstData!I$101:I$120,MATCH($F46,CNTR_List_ExistPurchPrec,0))=\"\",\"\",INDEX(A_InstData!I$101:I$120,MATCH($F46,CNTR_List_ExistPurchPrec,0))))","v":""},{"$f":"IF($F46=\"\",\"\",IF(INDEX(A_InstData!J$101:J$120,MATCH($F46,CNTR_List_ExistPurchPrec,0))=\"\",\"\",INDEX(A_InstData!J$101:J$120,MATCH($F46,CNTR_List_ExistPurchPrec,0))))","v":""},{"$f":"IF($F46=\"\",\"\",IF(INDEX(A_InstData!K$101:K$120,MATCH($F46,CNTR_List_ExistPurchPrec,0))=\"\",\"\",INDEX(A_InstData!K$101:K$120,MATCH($F46,CNTR_List_ExistPurchPrec,0))))","v":""},{"$f":"IF(A_InstData!F103=\"\",\"\",A_InstData!F103)","v":""},{"$nulls":10},"PP3","","","","","",""]
[{"$nulls":3},{"$f":"A_InstData!D104","v":"PP4"},{"$f":"IF(INDEX(CNTR_List_ExistPurchPrecNames,ROWS(D$44:D47))=CONST_NA,\"\",INDEX(CNTR_List_ExistPurchPrecNames,ROWS(D$44:D47)))","v":""},"",{"$f":"IF($F47=\"\",\"\",IF(INDEX(A_InstData!G$101:G$120,MATCH($F47,CNTR_List_ExistPurchPrec,0))=\"\",\"\",INDEX(A_InstData!G$101:G$120,MATCH($F47,CNTR_List_ExistPurchPrec,0))))","v":""},{"$f":"IF($F47=\"\",\"\",IF(INDEX(A_InstData!H$101:H$120,MATCH($F47,CNTR_List_ExistPurchPrec,0))=\"\",\"\",INDEX(A_InstData!H$101:H$120,MATCH($F47,CNTR_List_ExistPurchPrec,0))))","v":""},{"$f":"IF($F47=\"\",\"\",IF(INDEX(A_InstData!I$101:I$120,MATCH($F47,CNTR_List_ExistPurchPrec,0))=\"\",\"\",INDEX(A_InstData!I$101:I$120,MATCH($F47,CNTR_List_ExistPurchPrec,0))))","v":""},{"$f":"IF($F47=\"\",\"\",IF(INDEX(A_InstData!J$101:J$120,MATCH($F47,CNTR_List_ExistPurchPrec,0))=\"\",\"\",INDEX(A_InstData!J$101:J$120,MATCH($F47,CNTR_List_ExistPurchPrec,0))))","v":""},{"$f":"IF($F47=\"\",\"\",IF(INDEX(A_InstData!K$101:K$120,MATCH($F47,CNTR_List_ExistPurchPrec,0))=\"\",\"\",INDEX(A_InstData!K$101:K$120,MATCH($F47,CNTR_List_ExistPurchPrec,0))))","v":""},{"$f":"IF(A_InstData!F104=\"\",\"\",A_InstData!F104)","v":""},{"$nulls":10},"PP4","","","","","",""]
[{"$nulls":3},{"$f":"A_InstData!D105","v":"PP5"},{"$f":"IF(INDEX(CNTR_List_ExistPurchPrecNames,ROWS(D$44:D48))=CONST_NA,\"\",INDEX(CNTR_List_ExistPurchPrecNames,ROWS(D$44:D48)))","v":""},"",{"$f":"IF($F48=\"\",\"\",IF(INDEX(A_InstData!G$101:G$120,MATCH($F48,CNTR_List_ExistPurchPrec,0))=\"\",\"\",INDEX(A_InstData!G$101:G$120,MATCH($F48,CNTR_List_ExistPurchPrec,0))))","v":""},{"$f":"IF($F48=\"\",\"\",IF(INDEX(A_InstData!H$101:H$120,MATCH($F48,CNTR_List_ExistPurchPrec,0))=\"\",\"\",INDEX(A_InstData!H$101:H$120,MATCH($F48,CNTR_List_ExistPurchPrec,0))))","v":""},{"$f":"IF($F48=\"\",\"\",IF(INDEX(A_InstData!I$101:I$120,MATCH($F48,CNTR_List_ExistPurchPrec,0))=\"\",\"\",INDEX(A_InstData!I$101:I$120,MATCH($F48,CNTR_List_ExistPurchPrec,0))))","v":""},{"$f":"IF($F48=\"\",\"\",IF(INDEX(A_InstData!J$101:J$120,MATCH($F48,CNTR_List_ExistPurchPrec,0))=\"\",\"\",INDEX(A_InstData!J$101:J$120,MATCH($F48,CNTR_List_ExistPurchPrec,0))))","v":""},{"$f":"IF($F48=\"\",\"\",IF(INDEX(A_InstData!K$101:K$120,MATCH($F48,CNTR_List_ExistPurchPrec,0))=\"\",\"\",INDEX(A_InstData!K$101:K$120,MATCH($F48,CNTR_List_ExistPurchPrec,0))))","v":""},{"$f":"IF(A_InstData!F105=\"\",\"\",A_InstData!F105)","v":""},{"$nulls":10},"PP5","","","","","",""]
[{"$nulls":3},{"$f":"A_InstData!D106","v":"PP6"},{"$f":"IF(INDEX(CNTR_List_ExistPurchPrecNames,ROWS(D$44:D49))=CONST_NA,\"\",INDEX(CNTR_List_ExistPurchPrecNames,ROWS(D$44:D49)))","v":""},"",{"$f":"IF($F49=\"\",\"\",IF(INDEX(A_InstData!G$101:G$120,MATCH($F49,CNTR_List_ExistPurchPrec,0))=\"\",\"\",INDEX(A_InstData!G$101:G$120,MATCH($F49,CNTR_List_ExistPurchPrec,0))))","v":""},{"$f":"IF($F49=\"\",\"\",IF(INDEX(A_InstData!H$101:H$120,MATCH($F49,CNTR_List_ExistPurchPrec,0))=\"\",\"\",INDEX(A_InstData!H$101:H$120,MATCH($F49,CNTR_List_ExistPurchPrec,0))))","v":""},{"$f":"IF($F49=\"\",\"\",IF(INDEX(A_InstData!I$101:I$120,MATCH($F49,CNTR_List_ExistPurchPrec,0))=\"\",\"\",INDEX(A_InstData!I$101:I$120,MATCH($F49,CNTR_List_ExistPurchPrec,0))))","v":""},{"$f":"IF($F49=\"\",\"\",IF(INDEX(A_InstData!J$101:J$120,MATCH($F49,CNTR_List_ExistPurchPrec,0))=\"\",\"\",INDEX(A_InstData!J$101:J$120,MATCH($F49,CNTR_List_ExistPurchPrec,0))))","v":""},{"$f":"IF($F49=\"\",\"\",IF(INDEX(A_InstData!K$101:K$120,MATCH($F49,CNTR_List_ExistPurchPrec,0))=\"\",\"\",INDEX(A_InstData!K$101:K$120,MATCH($F49,CNTR_List_ExistPurchPrec,0))))","v":""},{"$f":"IF(A_InstData!F106=\"\",\"\",A_InstData!F106)","v":""},{"$nulls":10},"PP6","","","","","",""]
[{"$nulls":3},{"$f":"A_InstData!D107","v":"PP7"},{"$f":"IF(INDEX(CNTR_List_ExistPurchPrecNames,ROWS(D$44:D50))=CONST_NA,\"\",INDEX(CNTR_List_ExistPurchPrecNames,ROWS(D$44:D50)))","v":""},"",{"$f":"IF($F50=\"\",\"\",IF(INDEX(A_InstData!G$101:G$120,MATCH($F50,CNTR_List_ExistPurchPrec,0))=\"\",\"\",INDEX(A_InstData!G$101:G$120,MATCH($F50,CNTR_List_ExistPurchPrec,0))))","v":""},{"$f":"IF($F50=\"\",\"\",IF(INDEX(A_InstData!H$101:H$120,MATCH($F50,CNTR_List_ExistPurchPrec,0))=\"\",\"\",INDEX(A_InstData!H$101:H$120,MATCH($F50,CNTR_List_ExistPurchPrec,0))))","v":""},{"$f":"IF($F50=\"\",\"\",IF(INDEX(A_InstData!I$101:I$120,MATCH($F50,CNTR_List_ExistPurchPrec,0))=\"\",\"\",INDEX(A_InstData!I$101:I$120,MATCH($F50,CNTR_List_ExistPurchPrec,0))))","v":""},{"$f":"IF($F50=\"\",\"\",IF(INDEX(A_InstData!J$101:J$120,MATCH($F50,CNTR_List_ExistPurchPrec,0))=\"\",\"\",INDEX(A_InstData!J$101:J$120,MATCH($F50,CNTR_List_ExistPurchPrec,0))))","v":""},{"$f":"IF($F50=\"\",\"\",IF(INDEX(A_InstData!K$101:K$120,MATCH($F50,CNTR_List_ExistPurchPrec,0))=\"\",\"\",INDEX(A_InstData!K$101:K$120,MATCH($F50,CNTR_List_ExistPurchPrec,0))))","v":""},{"$f":"IF(A_InstData!F107=\"\",\"\",A_InstData!F107)","v":""},{"$nulls":10},"PP7","","","","","",""]
[{"$nulls":3},{"$f":"A_InstData!D108","v":"PP8"},{"$f":"IF(INDEX(CNTR_List_ExistPurchPrecNames,ROWS(D$44:D51))=CONST_NA,\"\",INDEX(CNTR_List_ExistPurchPrecNames,ROWS(D$44:D51)))","v":""},"",{"$f":"IF($F51=\"\",\"\",IF(INDEX(A_InstData!G$101:G$120,MATCH($F51,CNTR_List_ExistPurchPrec,0))=\"\",\"\",INDEX(A_InstData!G$101:G$120,MATCH($F51,CNTR_List_ExistPurchPrec,0))))","v":""},{"$f":"IF($F51=\"\",\"\",IF(INDEX(A_InstData!H$101:H$120,MATCH($F51,CNTR_List_ExistPurchPrec,0))=\"\",\"\",INDEX(A_InstData!H$101:H$120,MATCH($F51,CNTR_List_ExistPurchPrec,0))))","v":""},{"$f":"IF($F51=\"\",\"\",IF(INDEX(A_InstData!I$101:I$120,MATCH($F51,CNTR_List_ExistPurchPrec,0))=\"\",\"\",INDEX(A_InstData!I$101:I$120,MATCH($F51,CNTR_List_ExistPurchPrec,0))))","v":""},{"$f":"IF($F51=\"\",\"\",IF(INDEX(A_InstData!J$101:J$120,MATCH($F51,CNTR_List_ExistPurchPrec,0))=\"\",\"\",INDEX(A_InstData!J$101:J$120,MATCH($F51,CNTR_List_ExistPurchPrec,0))))","v":""},{"$f":"IF($F51=\"\",\"\",IF(INDEX(A_InstData!K$101:K$120,MATCH($F51,CNTR_List_ExistPurchPrec,0))=\"\",\"\",INDEX(A_InstData!K$101:K$120,MATCH($F51,CNTR_List_ExistPurchPrec,0))))","v":""},{"$f":"IF(A_InstData!F108=\"\",\"\",A_InstData!F108)","v":""},{"$nulls":10},"PP8","","","","","",""]
[{"$nulls":3},{"$f":"A_InstData!D109","v":"PP9"},{"$f":"IF(INDEX(CNTR_List_ExistPurchPrecNames,ROWS(D$44:D52))=CONST_NA,\"\",INDEX(CNTR_List_ExistPurchPrecNames,ROWS(D$44:D52)))","v":""},"",{"$f":"IF($F52=\"\",\"\",IF(INDEX(A_InstData!G$101:G$120,MATCH($F52,CNTR_List_ExistPurchPrec,0))=\"\",\"\",INDEX(A_InstData!G$101:G$120,MATCH($F52,CNTR_List_ExistPurchPrec,0))))","v":""},{"$f":"IF($F52=\"\",\"\",IF(INDEX(A_InstData!H$101:H$120,MATCH($F52,CNTR_List_ExistPurchPrec,0))=\"\",\"\",INDEX(A_InstData!H$101:H$120,MATCH($F52,CNTR_List_ExistPurchPrec,0))))","v":""},{"$f":"IF($F52=\"\",\"\",IF(INDEX(A_InstData!I$101:I$120,MATCH($F52,CNTR_List_ExistPurchPrec,0))=\"\",\"\",INDEX(A_InstData!I$101:I$120,MATCH($F52,CNTR_List_ExistPurchPrec,0))))","v":""},{"$f":"IF($F52=\"\",\"\",IF(INDEX(A_InstData!J$101:J$120,MATCH($F52,CNTR_List_ExistPurchPrec,0))=\"\",\"\",INDEX(A_InstData!J$101:J$120,MATCH($F52,CNTR_List_ExistPurchPrec,0))))","v":""},{"$f":"IF($F52=\"\",\"\",IF(INDEX(A_InstData!K$101:K$120,MATCH($F52,CNTR_List_ExistPurchPrec,0))=\"\",\"\",INDEX(A_InstData!K$101:K$120,MATCH($F52,CNTR_List_ExistPurchPrec,0))))","v":""},{"$f":"IF(A_InstData!F109=\"\",\"\",A_InstData!F109)","v":""},{"$nulls":10},"PP9","","","","","",""]
[{"$nulls":3},{"$f":"A_InstData!D110","v":"PP10"},{"$f":"IF(INDEX(CNTR_List_ExistPurchPrecNames,ROWS(D$44:D53))=CONST_NA,\"\",INDEX(CNTR_List_ExistPurchPrecNames,ROWS(D$44:D53)))","v":""},"",{"$f":"IF($F53=\"\",\"\",IF(INDEX(A_InstData!G$101:G$120,MATCH($F53,CNTR_List_ExistPurchPrec,0))=\"\",\"\",INDEX(A_InstData!G$101:G$120,MATCH($F53,CNTR_List_ExistPurchPrec,0))))","v":""},{"$f":"IF($F53=\"\",\"\",IF(INDEX(A_InstData!H$101:H$120,MATCH($F53,CNTR_List_ExistPurchPrec,0))=\"\",\"\",INDEX(A_InstData!H$101:H$120,MATCH($F53,CNTR_List_ExistPurchPrec,0))))","v":""},{"$f":"IF($F53=\"\",\"\",IF(INDEX(A_InstData!I$101:I$120,MATCH($F53,CNTR_List_ExistPurchPrec,0))=\"\",\"\",INDEX(A_InstData!I$101:I$120,MATCH($F53,CNTR_List_ExistPurchPrec,0))))","v":""},{"$f":"IF($F53=\"\",\"\",IF(INDEX(A_InstData!J$101:J$120,MATCH($F53,CNTR_List_ExistPurchPrec,0))=\"\",\"\",INDEX(A_InstData!J$101:J$120,MATCH($F53,CNTR_List_ExistPurchPrec,0))))","v":""},{"$f":"IF($F53=\"\",\"\",IF(INDEX(A_InstData!K$101:K$120,MATCH($F53,CNTR_List_ExistPurchPrec,0))=\"\",\"\",INDEX(A_InstData!K$101:K$120,MATCH($F53,CNTR_List_ExistPurchPrec,0))))","v":""},{"$f":"IF(A_InstData!F110=\"\",\"\",A_InstData!F110)","v":""},{"$nulls":10},"PP10","","","","","",""]
[{"$nulls":3},{"$f":"A_InstData!D111","v":"PP11"},{"$f":"IF(INDEX(CNTR_List_ExistPurchPrecNames,ROWS(D$44:D54))=CONST_NA,\"\",INDEX(CNTR_List_ExistPurchPrecNames,ROWS(D$44:D54)))","v":""},"",{"$f":"IF($F54=\"\",\"\",IF(INDEX(A_InstData!G$101:G$120,MATCH($F54,CNTR_List_ExistPurchPrec,0))=\"\",\"\",INDEX(A_InstData!G$101:G$120,MATCH($F54,CNTR_List_ExistPurchPrec,0))))","v":""},{"$f":"IF($F54=\"\",\"\",IF(INDEX(A_InstData!H$101:H$120,MATCH($F54,CNTR_List_ExistPurchPrec,0))=\"\",\"\",INDEX(A_InstData!H$101:H$120,MATCH($F54,CNTR_List_ExistPurchPrec,0))))","v":""},{"$f":"IF($F54=\"\",\"\",IF(INDEX(A_InstData!I$101:I$120,MATCH($F54,CNTR_List_ExistPurchPrec,0))=\"\",\"\",INDEX(A_InstData!I$101:I$120,MATCH($F54,CNTR_List_ExistPurchPrec,0))))","v":""},{"$f":"IF($F54=\"\",\"\",IF(INDEX(A_InstData!J$101:J$120,MATCH($F54,CNTR_List_ExistPurchPrec,0))=\"\",\"\",INDEX(A_InstData!J$101:J$120,MATCH($F54,CNTR_List_ExistPurchPrec,0))))","v":""},{"$f":"IF($F54=\"\",\"\",IF(INDEX(A_InstData!K$101:K$120,MATCH($F54,CNTR_List_ExistPurchPrec,0))=\"\",\"\",INDEX(A_InstData!K$101:K$120,MATCH($F54,CNTR_List_ExistPurchPrec,0))))","v":""},{"$f":"IF(A_InstData!F111=\"\",\"\",A_InstData!F111)","v":""},{"$nulls":10},"PP11","","","","","",""]
[{"$nulls":3},{"$f":"A_InstData!D112","v":"PP12"},{"$f":"IF(INDEX(CNTR_List_ExistPurchPrecNames,ROWS(D$44:D55))=CONST_NA,\"\",INDEX(CNTR_List_ExistPurchPrecNames,ROWS(D$44:D55)))","v":""},"",{"$f":"IF($F55=\"\",\"\",IF(INDEX(A_InstData!G$101:G$120,MATCH($F55,CNTR_List_ExistPurchPrec,0))=\"\",\"\",INDEX(A_InstData!G$101:G$120,MATCH($F55,CNTR_List_ExistPurchPrec,0))))","v":""},{"$f":"IF($F55=\"\",\"\",IF(INDEX(A_InstData!H$101:H$120,MATCH($F55,CNTR_List_ExistPurchPrec,0))=\"\",\"\",INDEX(A_InstData!H$101:H$120,MATCH($F55,CNTR_List_ExistPurchPrec,0))))","v":""},{"$f":"IF($F55=\"\",\"\",IF(INDEX(A_InstData!I$101:I$120,MATCH($F55,CNTR_List_ExistPurchPrec,0))=\"\",\"\",INDEX(A_InstData!I$101:I$120,MATCH($F55,CNTR_List_ExistPurchPrec,0))))","v":""},{"$f":"IF($F55=\"\",\"\",IF(INDEX(A_InstData!J$101:J$120,MATCH($F55,CNTR_List_ExistPurchPrec,0))=\"\",\"\",INDEX(A_InstData!J$101:J$120,MATCH($F55,CNTR_List_ExistPurchPrec,0))))","v":""},{"$f":"IF($F55=\"\",\"\",IF(INDEX(A_InstData!K$101:K$120,MATCH($F55,CNTR_List_ExistPurchPrec,0))=\"\",\"\",INDEX(A_InstData!K$101:K$120,MATCH($F55,CNTR_List_ExistPurchPrec,0))))","v":""},{"$f":"IF(A_InstData!F112=\"\",\"\",A_InstData!F112)","v":""},{"$nulls":10},"PP12","","","","","",""]
[{"$nulls":3},{"$f":"A_InstData!D113","v":"PP13"},{"$f":"IF(INDEX(CNTR_List_ExistPurchPrecNames,ROWS(D$44:D56))=CONST_NA,\"\",INDEX(CNTR_List_ExistPurchPrecNames,ROWS(D$44:D56)))","v":""},"",{"$f":"IF($F56=\"\",\"\",IF(INDEX(A_InstData!G$101:G$120,MATCH($F56,CNTR_List_ExistPurchPrec,0))=\"\",\"\",INDEX(A_InstData!G$101:G$120,MATCH($F56,CNTR_List_ExistPurchPrec,0))))","v":""},{"$f":"IF($F56=\"\",\"\",IF(INDEX(A_InstData!H$101:H$120,MATCH($F56,CNTR_List_ExistPurchPrec,0))=\"\",\"\",INDEX(A_InstData!H$101:H$120,MATCH($F56,CNTR_List_ExistPurchPrec,0))))","v":""},{"$f":"IF($F56=\"\",\"\",IF(INDEX(A_InstData!I$101:I$120,MATCH($F56,CNTR_List_ExistPurchPrec,0))=\"\",\"\",INDEX(A_InstData!I$101:I$120,MATCH($F56,CNTR_List_ExistPurchPrec,0))))","v":""},{"$f":"IF($F56=\"\",\"\",IF(INDEX(A_InstData!J$101:J$120,MATCH($F56,CNTR_List_ExistPurchPrec,0))=\"\",\"\",INDEX(A_InstData!J$101:J$120,MATCH($F56,CNTR_List_ExistPurchPrec,0))))","v":""},{"$f":"IF($F56=\"\",\"\",IF(INDEX(A_InstData!K$101:K$120,MATCH($F56,CNTR_List_ExistPurchPrec,0))=\"\",\"\",INDEX(A_InstData!K$101:K$120,MATCH($F56,CNTR_List_ExistPurchPrec,0))))","v":""},{"$f":"IF(A_InstData!F113=\"\",\"\",A_InstData!F113)","v":""},{"$nulls":10},"PP13","","","","","",""]
[{"$nulls":3},{"$f":"A_InstData!D114","v":"PP14"},{"$f":"IF(INDEX(CNTR_List_ExistPurchPrecNames,ROWS(D$44:D57))=CONST_NA,\"\",INDEX(CNTR_List_ExistPurchPrecNames,ROWS(D$44:D57)))","v":""},"",{"$f":"IF($F57=\"\",\"\",IF(INDEX(A_InstData!G$101:G$120,MATCH($F57,CNTR_List_ExistPurchPrec,0))=\"\",\"\",INDEX(A_InstData!G$101:G$120,MATCH($F57,CNTR_List_ExistPurchPrec,0))))","v":""},{"$f":"IF($F57=\"\",\"\",IF(INDEX(A_InstData!H$101:H$120,MATCH($F57,CNTR_List_ExistPurchPrec,0))=\"\",\"\",INDEX(A_InstData!H$101:H$120,MATCH($F57,CNTR_List_ExistPurchPrec,0))))","v":""},{"$f":"IF($F57=\"\",\"\",IF(INDEX(A_InstData!I$101:I$120,MATCH($F57,CNTR_List_ExistPurchPrec,0))=\"\",\"\",INDEX(A_InstData!I$101:I$120,MATCH($F57,CNTR_List_ExistPurchPrec,0))))","v":""},{"$f":"IF($F57=\"\",\"\",IF(INDEX(A_InstData!J$101:J$120,MATCH($F57,CNTR_List_ExistPurchPrec,0))=\"\",\"\",INDEX(A_InstData!J$101:J$120,MATCH($F57,CNTR_List_ExistPurchPrec,0))))","v":""},{"$f":"IF($F57=\"\",\"\",IF(INDEX(A_InstData!K$101:K$120,MATCH($F57,CNTR_List_ExistPurchPrec,0))=\"\",\"\",INDEX(A_InstData!K$101:K$120,MATCH($F57,CNTR_List_ExistPurchPrec,0))))","v":""},{"$f":"IF(A_InstData!F114=\"\",\"\",A_InstData!F114)","v":""},{"$nulls":10},"PP14","","","","","",""]
[{"$nulls":3},{"$f":"A_InstData!D115","v":"PP15"},{"$f":"IF(INDEX(CNTR_List_ExistPurchPrecNames,ROWS(D$44:D58))=CONST_NA,\"\",INDEX(CNTR_List_ExistPurchPrecNames,ROWS(D$44:D58)))","v":""},"",{"$f":"IF($F58=\"\",\"\",IF(INDEX(A_InstData!G$101:G$120,MATCH($F58,CNTR_List_ExistPurchPrec,0))=\"\",\"\",INDEX(A_InstData!G$101:G$120,MATCH($F58,CNTR_List_ExistPurchPrec,0))))","v":""},{"$f":"IF($F58=\"\",\"\",IF(INDEX(A_InstData!H$101:H$120,MATCH($F58,CNTR_List_ExistPurchPrec,0))=\"\",\"\",INDEX(A_InstData!H$101:H$120,MATCH($F58,CNTR_List_ExistPurchPrec,0))))","v":""},{"$f":"IF($F58=\"\",\"\",IF(INDEX(A_InstData!I$101:I$120,MATCH($F58,CNTR_List_ExistPurchPrec,0))=\"\",\"\",INDEX(A_InstData!I$101:I$120,MATCH($F58,CNTR_List_ExistPurchPrec,0))))","v":""},{"$f":"IF($F58=\"\",\"\",IF(INDEX(A_InstData!J$101:J$120,MATCH($F58,CNTR_List_ExistPurchPrec,0))=\"\",\"\",INDEX(A_InstData!J$101:J$120,MATCH($F58,CNTR_List_ExistPurchPrec,0))))","v":""},{"$f":"IF($F58=\"\",\"\",IF(INDEX(A_InstData!K$101:K$120,MATCH($F58,CNTR_List_ExistPurchPrec,0))=\"\",\"\",INDEX(A_InstData!K$101:K$120,MATCH($F58,CNTR_List_ExistPurchPrec,0))))","v":""},{"$f":"IF(A_InstData!F115=\"\",\"\",A_InstData!F115)","v":""},{"$nulls":10},"PP15","","","","","",""]
[{"$nulls":3},{"$f":"A_InstData!D116","v":"PP16"},{"$f":"IF(INDEX(CNTR_List_ExistPurchPrecNames,ROWS(D$44:D59))=CONST_NA,\"\",INDEX(CNTR_List_ExistPurchPrecNames,ROWS(D$44:D59)))","v":""},"",{"$f":"IF($F59=\"\",\"\",IF(INDEX(A_InstData!G$101:G$120,MATCH($F59,CNTR_List_ExistPurchPrec,0))=\"\",\"\",INDEX(A_InstData!G$101:G$120,MATCH($F59,CNTR_List_ExistPurchPrec,0))))","v":""},{"$f":"IF($F59=\"\",\"\",IF(INDEX(A_InstData!H$101:H$120,MATCH($F59,CNTR_List_ExistPurchPrec,0))=\"\",\"\",INDEX(A_InstData!H$101:H$120,MATCH($F59,CNTR_List_ExistPurchPrec,0))))","v":""},{"$f":"IF($F59=\"\",\"\",IF(INDEX(A_InstData!I$101:I$120,MATCH($F59,CNTR_List_ExistPurchPrec,0))=\"\",\"\",INDEX(A_InstData!I$101:I$120,MATCH($F59,CNTR_List_ExistPurchPrec,0))))","v":""},{"$f":"IF($F59=\"\",\"\",IF(INDEX(A_InstData!J$101:J$120,MATCH($F59,CNTR_List_ExistPurchPrec,0))=\"\",\"\",INDEX(A_InstData!J$101:J$120,MATCH($F59,CNTR_List_ExistPurchPrec,0))))","v":""},{"$f":"IF($F59=\"\",\"\",IF(INDEX(A_InstData!K$101:K$120,MATCH($F59,CNTR_List_ExistPurchPrec,0))=\"\",\"\",INDEX(A_InstData!K$101:K$120,MATCH($F59,CNTR_List_ExistPurchPrec,0))))","v":""},{"$f":"IF(A_InstData!F116=\"\",\"\",A_InstData!F116)","v":""},{"$nulls":10},"PP16","","","","","",""]
[{"$nulls":3},{"$f":"A_InstData!D117","v":"PP17"},{"$f":"IF(INDEX(CNTR_List_ExistPurchPrecNames,ROWS(D$44:D60))=CONST_NA,\"\",INDEX(CNTR_List_ExistPurchPrecNames,ROWS(D$44:D60)))","v":""},"",{"$f":"IF($F60=\"\",\"\",IF(INDEX(A_InstData!G$101:G$120,MATCH($F60,CNTR_List_ExistPurchPrec,0))=\"\",\"\",INDEX(A_InstData!G$101:G$120,MATCH($F60,CNTR_List_ExistPurchPrec,0))))","v":""},{"$f":"IF($F60=\"\",\"\",IF(INDEX(A_InstData!H$101:H$120,MATCH($F60,CNTR_List_ExistPurchPrec,0))=\"\",\"\",INDEX(A_InstData!H$101:H$120,MATCH($F60,CNTR_List_ExistPurchPrec,0))))","v":""},{"$f":"IF($F60=\"\",\"\",IF(INDEX(A_InstData!I$101:I$120,MATCH($F60,CNTR_List_ExistPurchPrec,0))=\"\",\"\",INDEX(A_InstData!I$101:I$120,MATCH($F60,CNTR_List_ExistPurchPrec,0))))","v":""},{"$f":"IF($F60=\"\",\"\",IF(INDEX(A_InstData!J$101:J$120,MATCH($F60,CNTR_List_ExistPurchPrec,0))=\"\",\"\",INDEX(A_InstData!J$101:J$120,MATCH($F60,CNTR_List_ExistPurchPrec,0))))","v":""},{"$f":"IF($F60=\"\",\"\",IF(INDEX(A_InstData!K$101:K$120,MATCH($F60,CNTR_List_ExistPurchPrec,0))=\"\",\"\",INDEX(A_InstData!K$101:K$120,MATCH($F60,CNTR_List_ExistPurchPrec,0))))","v":""},{"$f":"IF(A_InstData!F117=\"\",\"\",A_InstData!F117)","v":""},{"$nulls":10},"PP17","","","","","",""]
[{"$nulls":3},{"$f":"A_InstData!D118","v":"PP18"},{"$f":"IF(INDEX(CNTR_List_ExistPurchPrecNames,ROWS(D$44:D61))=CONST_NA,\"\",INDEX(CNTR_List_ExistPurchPrecNames,ROWS(D$44:D61)))","v":""},"",{"$f":"IF($F61=\"\",\"\",IF(INDEX(A_InstData!G$101:G$120,MATCH($F61,CNTR_List_ExistPurchPrec,0))=\"\",\"\",INDEX(A_InstData!G$101:G$120,MATCH($F61,CNTR_List_ExistPurchPrec,0))))","v":""},{"$f":"IF($F61=\"\",\"\",IF(INDEX(A_InstData!H$101:H$120,MATCH($F61,CNTR_List_ExistPurchPrec,0))=\"\",\"\",INDEX(A_InstData!H$101:H$120,MATCH($F61,CNTR_List_ExistPurchPrec,0))))","v":""},{"$f":"IF($F61=\"\",\"\",IF(INDEX(A_InstData!I$101:I$120,MATCH($F61,CNTR_List_ExistPurchPrec,0))=\"\",\"\",INDEX(A_InstData!I$101:I$120,MATCH($F61,CNTR_List_ExistPurchPrec,0))))","v":""},{"$f":"IF($F61=\"\",\"\",IF(INDEX(A_InstData!J$101:J$120,MATCH($F61,CNTR_List_ExistPurchPrec,0))=\"\",\"\",INDEX(A_InstData!J$101:J$120,MATCH($F61,CNTR_List_ExistPurchPrec,0))))","v":""},{"$f":"IF($F61=\"\",\"\",IF(INDEX(A_InstData!K$101:K$120,MATCH($F61,CNTR_List_ExistPurchPrec,0))=\"\",\"\",INDEX(A_InstData!K$101:K$120,MATCH($F61,CNTR_List_ExistPurchPrec,0))))","v":""},{"$f":"IF(A_InstData!F118=\"\",\"\",A_InstData!F118)","v":""},{"$nulls":10},"PP18","","","","","",""]
[{"$nulls":3},{"$f":"A_InstData!D119","v":"PP19"},{"$f":"IF(INDEX(CNTR_List_ExistPurchPrecNames,ROWS(D$44:D62))=CONST_NA,\"\",INDEX(CNTR_List_ExistPurchPrecNames,ROWS(D$44:D62)))","v":""},"",{"$f":"IF($F62=\"\",\"\",IF(INDEX(A_InstData!G$101:G$120,MATCH($F62,CNTR_List_ExistPurchPrec,0))=\"\",\"\",INDEX(A_InstData!G$101:G$120,MATCH($F62,CNTR_List_ExistPurchPrec,0))))","v":""},{"$f":"IF($F62=\"\",\"\",IF(INDEX(A_InstData!H$101:H$120,MATCH($F62,CNTR_List_ExistPurchPrec,0))=\"\",\"\",INDEX(A_InstData!H$101:H$120,MATCH($F62,CNTR_List_ExistPurchPrec,0))))","v":""},{"$f":"IF($F62=\"\",\"\",IF(INDEX(A_InstData!I$101:I$120,MATCH($F62,CNTR_List_ExistPurchPrec,0))=\"\",\"\",INDEX(A_InstData!I$101:I$120,MATCH($F62,CNTR_List_ExistPurchPrec,0))))","v":""},{"$f":"IF($F62=\"\",\"\",IF(INDEX(A_InstData!J$101:J$120,MATCH($F62,CNTR_List_ExistPurchPrec,0))=\"\",\"\",INDEX(A_InstData!J$101:J$120,MATCH($F62,CNTR_List_ExistPurchPrec,0))))","v":""},{"$f":"IF($F62=\"\",\"\",IF(INDEX(A_InstData!K$101:K$120,MATCH($F62,CNTR_List_ExistPurchPrec,0))=\"\",\"\",INDEX(A_InstData!K$101:K$120,MATCH($F62,CNTR_List_ExistPurchPrec,0))))","v":""},{"$f":"IF(A_InstData!F119=\"\",\"\",A_InstData!F119)","v":""},{"$nulls":10},"PP19","","","","","",""]
[{"$nulls":3},{"$f":"A_InstData!D120","v":"PP20"},{"$f":"IF(INDEX(CNTR_List_ExistPurchPrecNames,ROWS(D$44:D63))=CONST_NA,\"\",INDEX(CNTR_List_ExistPurchPrecNames,ROWS(D$44:D63)))","v":""},"",{"$f":"IF($F63=\"\",\"\",IF(INDEX(A_InstData!G$101:G$120,MATCH($F63,CNTR_List_ExistPurchPrec,0))=\"\",\"\",INDEX(A_InstData!G$101:G$120,MATCH($F63,CNTR_List_ExistPurchPrec,0))))","v":""},{"$f":"IF($F63=\"\",\"\",IF(INDEX(A_InstData!H$101:H$120,MATCH($F63,CNTR_List_ExistPurchPrec,0))=\"\",\"\",INDEX(A_InstData!H$101:H$120,MATCH($F63,CNTR_List_ExistPurchPrec,0))))","v":""},{"$f":"IF($F63=\"\",\"\",IF(INDEX(A_InstData!I$101:I$120,MATCH($F63,CNTR_List_ExistPurchPrec,0))=\"\",\"\",INDEX(A_InstData!I$101:I$120,MATCH($F63,CNTR_List_ExistPurchPrec,0))))","v":""},{"$f":"IF($F63=\"\",\"\",IF(INDEX(A_InstData!J$101:J$120,MATCH($F63,CNTR_List_ExistPurchPrec,0))=\"\",\"\",INDEX(A_InstData!J$101:J$120,MATCH($F63,CNTR_List_ExistPurchPrec,0))))","v":""},{"$f":"IF($F63=\"\",\"\",IF(INDEX(A_InstData!K$101:K$120,MATCH($F63,CNTR_List_ExistPurchPrec,0))=\"\",\"\",INDEX(A_InstData!K$101:K$120,MATCH($F63,CNTR_List_ExistPurchPrec,0))))","v":""},{"$f":"IF(A_InstData!F120=\"\",\"\",A_InstData!F120)","v":""},{"$nulls":10},"PP20","","","","","",""]
[]
[{"$f":"C65","v":2},null,2,{"$f":"Translations!$B$554","v":"Greenhouse gas emissions balance and specific embedded emissions (SEE)"},{"$nulls":17},{"$f":"Translations!$B$555","v":"GHG & SEE"}]
[]
[null,null,1,{"$f":"Translations!$B$556","v":"GHG emissions balance of the installation and all production processes"}]
[]
[{"$nulls":3},"(a) ",{"$f":"Translations!$B$120","v":"Production process"},{"$f":"Translations!$B$107","v":"Aggregated goods category"},{"$f":"Translations!$B$221","v":"Unit"},{"$f":"Translations!$B$435","v":"DirEm*"},{"$f":"Translations!$B$557","v":"Heat emissions"},{"$f":"Translations!$B$558","v":"Waste gas emissions"},{"$f":"Translations!$B$237","v":"Total direct emissions"},{"$f":"Translations!$B$559","v":"Indirect, if relevant"}]
[{"$nulls":3},{"$f":"A_InstData!D82","v":"P1"},{"$f":"E32","v":""},"",{"$f":"CONST_tCO2eq","v":"tCO2e"},{"$f":"IF($E32=\"\",\"\",SUMIFS(D_Processes!$T:$T,D_Processes!$R:$R,CONST_EmDir&$E32))","v":""},{"$f":"IF($E32=\"\",\"\",SUMIFS(D_Processes!$T:$T,D_Processes!$R:$R,CONST_EmDirHeat&$E32))","v":""},{"$f":"IF($E32=\"\",\"\",SUMIFS(D_Processes!$T:$T,D_Processes!$R:$R,CONST_EmDirWasteGases&$E32))","v":""},{"$f":"IF(E32=\"\",\"\",SUM(H70:J70))","v":""},{"$f":"IF($E32=\"\",\"\",SUMIFS(D_Processes!$T:$T,D_Processes!$S:$S,CONST_CNTR_EmbedEmInDir&$E32))","v":""}]
[{"$nulls":3},{"$f":"A_InstData!D83","v":"P2"},"","","tCO2e",{"$f":"IF($E33=\"\",\"\",SUMIFS(D_Processes!$T:$T,D_Processes!$R:$R,CONST_EmDir&$E33))","v":""},{"$f":"IF($E33=\"\",\"\",SUMIFS(D_Processes!$T:$T,D_Processes!$R:$R,CONST_EmDirHeat&$E33))","v":""},{"$f":"IF($E33=\"\",\"\",SUMIFS(D_Processes!$T:$T,D_Processes!$R:$R,CONST_EmDirWasteGases&$E33))","v":""},"",{"$f":"IF($E33=\"\",\"\",SUMIFS(D_Processes!$T:$T,D_Processes!$S:$S,CONST_CNTR_EmbedEmInDir&$E33))","v":""}]
[{"$nulls":3},{"$f":"A_InstData!D84","v":"P3"},"","","tCO2e",{"$f":"IF($E34=\"\",\"\",SUMIFS(D_Processes!$T:$T,D_Processes!$R:$R,CONST_EmDir&$E34))","v":""},{"$f":"IF($E34=\"\",\"\",SUMIFS(D_Processes!$T:$T,D_Processes!$R:$R,CONST_EmDirHeat&$E34))","v":""},{"$f":"IF($E34=\"\",\"\",SUMIFS(D_Processes!$T:$T,D_Processes!$R:$R,CONST_EmDirWasteGases&$E34))","v":""},"",{"$f":"IF($E34=\"\",\"\",SUMIFS(D_Processes!$T:$T,D_Processes!$S:$S,CONST_CNTR_EmbedEmInDir&$E34))","v":""}]
[{"$nulls":3},{"$f":"A_InstData!D85","v":"P4"},"","","tCO2e",{"$f":"IF($E35=\"\",\"\",SUMIFS(D_Processes!$T:$T,D_Processes!$R:$R,CONST_EmDir&$E35))","v":""},{"$f":"IF($E35=\"\",\"\",SUMIFS(D_Processes!$T:$T,D_Processes!$R:$R,CONST_EmDirHeat&$E35))","v":""},{"$f":"IF($E35=\"\",\"\",SUMIFS(D_Processes!$T:$T,D_Processes!$R:$R,CONST_EmDirWasteGases&$E35))","v":""},"",{"$f":"IF($E35=\"\",\"\",SUMIFS(D_Processes!$T:$T,D_Processes!$S:$S,CONST_CNTR_EmbedEmInDir&$E35))","v":""}]
[{"$nulls":3},{"$f":"A_InstData!D86","v":"P5"},"","","tCO2e",{"$f":"IF($E36=\"\",\"\",SUMIFS(D_Processes!$T:$T,D_Processes!$R:$R,CONST_EmDir&$E36))","v":""},{"$f":"IF($E36=\"\",\"\",SUMIFS(D_Processes!$T:$T,D_Processes!$R:$R,CONST_EmDirHeat&$E36))","v":""},{"$f":"IF($E36=\"\",\"\",SUMIFS(D_Processes!$T:$T,D_Processes!$R:$R,CONST_EmDirWasteGases&$E36))","v":""},"",{"$f":"IF($E36=\"\",\"\",SUMIFS(D_Processes!$T:$T,D_Processes!$S:$S,CONST_CNTR_EmbedEmInDir&$E36))","v":""}]
[{"$nulls":3},{"$f":"A_InstData!D87","v":"P6"},"","","tCO2e",{"$f":"IF($E37=\"\",\"\",SUMIFS(D_Processes!$T:$T,D_Processes!$R:$R,CONST_EmDir&$E37))","v":""},{"$f":"IF($E37=\"\",\"\",SUMIFS(D_Processes!$T:$T,D_Processes!$R:$R,CONST_EmDirHeat&$E37))","v":""},{"$f":"IF($E37=\"\",\"\",SUMIFS(D_Processes!$T:$T,D_Processes!$R:$R,CONST_EmDirWasteGases&$E37))","v":""},"",{"$f":"IF($E37=\"\",\"\",SUMIFS(D_Processes!$T:$T,D_Processes!$S:$S,CONST_CNTR_EmbedEmInDir&$E37))","v":""}]
[{"$nulls":3},{"$f":"A_InstData!D88","v":"P7"},"","","tCO2e",{"$f":"IF($E38=\"\",\"\",SUMIFS(D_Processes!$T:$T,D_Processes!$R:$R,CONST_EmDir&$E38))","v":""},{"$f":"IF($E38=\"\",\"\",SUMIFS(D_Processes!$T:$T,D_Processes!$R:$R,CONST_EmDirHeat&$E38))","v":""},{"$f":"IF($E38=\"\",\"\",SUMIFS(D_Processes!$T:$T,D_Processes!$R:$R,CONST_EmDirWasteGases&$E38))","v":""},"",{"$f":"IF($E38=\"\",\"\",SUMIFS(D_Processes!$T:$T,D_Processes!$S:$S,CONST_CNTR_EmbedEmInDir&$E38))","v":""}]
[{"$nulls":3},{"$f":"A_InstData!D89","v":"P8"},"","","tCO2e",{"$f":"IF($E39=\"\",\"\",SUMIFS(D_Processes!$T:$T,D_Processes!$R:$R,CONST_EmDir&$E39))","v":""},{"$f":"IF($E39=\"\",\"\",SUMIFS(D_Processes!$T:$T,D_Processes!$R:$R,CONST_EmDirHeat&$E39))","v":""},{"$f":"IF($E39=\"\",\"\",SUMIFS(D_Processes!$T:$T,D_Processes!$R:$R,CONST_EmDirWasteGases&$E39))","v":""},"",{"$f":"IF($E39=\"\",\"\",SUMIFS(D_Processes!$T:$T,D_Processes!$S:$S,CONST_CNTR_EmbedEmInDir&$E39))","v":""}]
[{"$nulls":3},{"$f":"A_InstData!D90","v":"P9"},"","","tCO2e",{"$f":"IF($E40=\"\",\"\",SUMIFS(D_Processes!$T:$T,D_Processes!$R:$R,CONST_EmDir&$E40))","v":""},{"$f":"IF($E40=\"\",\"\",SUMIFS(D_Processes!$T:$T,D_Processes!$R:$R,CONST_EmDirHeat&$E40))","v":""},{"$f":"IF($E40=\"\",\"\",SUMIFS(D_Processes!$T:$T,D_Processes!$R:$R,CONST_EmDirWasteGases&$E40))","v":""},"",{"$f":"IF($E40=\"\",\"\",SUMIFS(D_Processes!$T:$T,D_Processes!$S:$S,CONST_CNTR_EmbedEmInDir&$E40))","v":""}]
[{"$nulls":3},{"$f":"A_InstData!D91","v":"P10"},"","","tCO2e",{"$f":"IF($E41=\"\",\"\",SUMIFS(D_Processes!$T:$T,D_Processes!$R:$R,CONST_EmDir&$E41))","v":""},{"$f":"IF($E41=\"\",\"\",SUMIFS(D_Processes!$T:$T,D_Processes!$R:$R,CONST_EmDirHeat&$E41))","v":""},{"$f":"IF($E41=\"\",\"\",SUMIFS(D_Processes!$T:$T,D_Processes!$R:$R,CONST_EmDirWasteGases&$E41))","v":""},"",{"$f":"IF($E41=\"\",\"\",SUMIFS(D_Processes!$T:$T,D_Processes!$S:$S,CONST_CNTR_EmbedEmInDir&$E41))","v":""}]
[{"$nulls":4},{"$f":"Translations!$B$316","v":"Total"},null,"tCO2e",{"$f":"IF(COUNT(H70:H79)>0,SUM(H70:H79),\"\")","v":""},{"$f":"IF(COUNT(I70:I79)>0,SUM(I70:I79),\"\")","v":""},{"$f":"IF(COUNT(J70:J79)>0,SUM(J70:J79),\"\")","v":""},{"$f":"IF(COUNT(K70:K79)>0,SUM(K70:K79),\"\")","v":""},{"$f":"IF(COUNT(L70:L79)>0,SUM(L70:L79),\"\")","v":""}]
[]
[{"$nulls":3},"(b) ",{"$f":"Translations!$B$560","v":"Comparison:"},{"$nulls":4},{"$f":"Translations!$B$221","v":"Unit"},{"$f":"Translations!$B$237","v":"Total direct emissions"},{"$f":"Translations!$B$238","v":"Total indirect emissions"}]
[{"$nulls":3},"i.",{"$f":"Translations!$B$562","v":"Total emissions of the installation (from sheet \"C_Emissions&Energy\")"},{"$nulls":4},{"$f":"CONST_tCO2eq","v":"tCO2e"},{"$f":"'C_Emissions&Energy'!L26","v":""},{"$f":"'C_Emissions&Energy'!M26","v":""}]
[{"$nulls":3},"ii.",{"$f":"Translations!$B$563","v":"Rest (= emissions not attributed to CBAM processes)"},{"$nulls":4},{"$f":"CONST_tCO2eq","v":"tCO2e"},{"$f":"IF(COUNT(K68:K83)>0,SUM(K83)-SUM(K80),\"\")","v":""},{"$f":"IF(COUNT(L68:L83)>0,SUM(L83)-SUM(L80),\"\")","v":""}]
[{"$nulls":3},"iii.",{"$f":"Translations!$B$564","v":"Rest (expressed as % of total)"},{"$nulls":4},"-",{"$f":"IF(AND(COUNT(K83:K84)>0,SUM(K83)>0),K84/K83,\"\")","v":""},{"$f":"IF(AND(COUNT(L83:L84)>0,SUM(L83)>0),L84/L83,\"\")","v":""}]
[{"$nulls":4},{"$f":"Translations!$B$565","v":"Note: the system boundaries between production processes, indirect emissions and the installation's total emissions might not be consistent. Therefore, values for \"Rest\" different from zero are not necessarily indicative of any omissions or errors being made in this report."}]
[]
[null,null,2,{"$f":"Translations!$B$566","v":"Specific direct and indirect (embedded) emissions"}]
[{"$nulls":3},{"$f":"Translations!$B$567","v":"The following abbreviations are used in the tables below:"}]
[{"$nulls":4},{"$f":"Translations!$B$568","v":"SE (direct)"},{"$f":"Translations!$B$569","v":"Specific direct emissions of the production process, i.e. excluding any embedded emissions from any precursors consumed in the process."}]
[{"$nulls":4},{"$f":"Translations!$B$570","v":"SEE (direct)"},{"$f":"Translations!$B$571","v":"Specific embedded direct emissions of the production process, i.e. including any embedded emissions from any precursors consumed in the process."}]
[{"$nulls":4},{"$f":"Translations!$B$572","v":"SE (indirect)"},{"$f":"Translations!$B$573","v":"Specific indirect emissions of the production process, i.e. excluding any embedded indirect emissions from any precursors consumed in the process."}]
[{"$nulls":4},{"$f":"Translations!$B$574","v":"SEE (indirect)"},{"$f":"Translations!$B$575","v":"Specific embedded indirect emissions of the production process, i.e. including any embedded indirect emissions from any precursors consumed in the process."}]
[{"$nulls":4},{"$f":"Translations!$B$576","v":"Electricity consumed"},{"$f":"Translations!$B$577","v":"Specific electricity consumption within the production process."}]
[{"$nulls":4},{"$f":"Translations!$B$480","v":"Embedded electricity"},{"$f":"Translations!$B$481","v":"Specific embedded electricity consumption of the production process, i.e. including any embedded electricity consumption in other production processes within the installation (i.e. excl. from purchased precursors)."}]
[{"$nulls":4},{"$f":"Translations!$B$351","v":"CP due (per t or MWh)"},{"$f":"Translations!$B$1870","v":"This information is taken from the \"tool to calculate the carbon price due\" in sheet \"F_Tools\", where relevant."}]
[{"$nulls":4},{"$f":"Translations!$B$352","v":"Rebate (per t or MWh)"},{"$f":"Translations!$B$1870","v":"This information is taken from the \"tool to calculate the carbon price due\" in sheet \"F_Tools\", where relevant."}]
[]
[{"$nulls":5},{"$f":"Translations!$B$107","v":"Aggregated goods category"},{"$f":"Translations!$B$568","v":"SE (direct)"},{"$f":"Translations!$B$570","v":"SEE (direct)"},{"$f":"Translations!$B$572","v":"SE (indirect)"},{"$f":"Translations!$B$574","v":"SEE (indirect)"},{"$f":"Translations!$B$576","v":"Electricity consumed"},{"$f":"Translations!$B$480","v":"Embedded electricity"},{"$f":"Translations!$B$351","v":"CP due (per t or MWh)"},{"$f":"Translations!$B$352","v":"Rebate (per t or MWh)"}]
[{"$nulls":3},"(a)",{"$f":"Translations!$B$120","v":"Production process"},null,{"$f":"CONST_tCO2eq&\"/\"&CONST_t","v":"tCO2e/t"},{"$f":"CONST_tCO2eq&\"/\"&CONST_t","v":"tCO2e/t"},{"$f":"CONST_tCO2eq&\"/\"&CONST_t","v":"tCO2e/t"},{"$f":"CONST_tCO2eq&\"/\"&CONST_t","v":"tCO2e/t"},{"$f":"CONST_MWh&\"/\"&CONST_t","v":"MWh/t"},{"$f":"CONST_MWh&\"/\"&CONST_t","v":"MWh/t"}]
[{"$nulls":3},{"$f":"INDEX(CNTR_ListProdProcID,ROWS(D$101:D101))","v":"P1"},{"$f":"E32","v":""},{"$f":"IF(E101=\"\",\"\",INDEX(CNTR_List_ExistProdProc,MATCH(E101,CNTR_List_ExistProdProcNames,0)))","v":""},{"$f":"IF($E101=\"\",\"\",INDEX(InputOutput!AJ$71:AJ$100,MATCH($E101,InputOutput!$D$71:$D$100,0)))","v":""},{"$f":"IF($E101=\"\",\"\",INDEX(InputOutput!AK$71:AK$100,MATCH($E101,InputOutput!$D$71:$D$100,0)))","v":""},{"$f":"IF($E101=\"\",\"\",INDEX(InputOutput!AL$71:AL$100,MATCH($E101,InputOutput!$D$71:$D$100,0)))","v":""},{"$f":"IF($E101=\"\",\"\",INDEX(InputOutput!AM$71:AM$100,MATCH($E101,InputOutput!$D$71:$D$100,0)))","v":""},{"$f":"IF($E101=\"\",\"\",INDEX(InputOutput!AN$71:AN$100,MATCH($E101,InputOutput!$D$71:$D$100,0)))","v":""},{"$f":"IF($E101=\"\",\"\",INDEX(InputOutput!AO$71:AO$100,MATCH($E101,InputOutput!$D$71:$D$100,0)))","v":""},{"$f":"INDEX(F_Tools!L$100:L$109,MATCH($D101,F_Tools!$D$100:$D$109,0))","v":""},{"$f":"INDEX(F_Tools!M$100:M$109,MATCH($D101,F_Tools!$D$100:$D$109,0))","v":""}]
[{"$nulls":3},{"$f":"INDEX(CNTR_ListProdProcID,ROWS(D$101:D102))","v":"P2"},"","",{"$f":"IF($E102=\"\",\"\",INDEX(InputOutput!AJ$71:AJ$100,MATCH($E102,InputOutput!$D$71:$D$100,0)))","v":""},{"$f":"IF($E102=\"\",\"\",INDEX(InputOutput!AK$71:AK$100,MATCH($E102,InputOutput!$D$71:$D$100,0)))","v":""},{"$f":"IF($E102=\"\",\"\",INDEX(InputOutput!AL$71:AL$100,MATCH($E102,InputOutput!$D$71:$D$100,0)))","v":""},{"$f":"IF($E102=\"\",\"\",INDEX(InputOutput!AM$71:AM$100,MATCH($E102,InputOutput!$D$71:$D$100,0)))","v":""},{"$f":"IF($E102=\"\",\"\",INDEX(InputOutput!AN$71:AN$100,MATCH($E102,InputOutput!$D$71:$D$100,0)))","v":""},{"$f":"IF($E102=\"\",\"\",INDEX(InputOutput!AO$71:AO$100,MATCH($E102,InputOutput!$D$71:$D$100,0)))","v":""},{"$f":"INDEX(F_Tools!L$100:L$109,MATCH($D102,F_Tools!$D$100:$D$109,0))","v":""},{"$f":"INDEX(F_Tools!M$100:M$109,MATCH($D102,F_Tools!$D$100:$D$109,0))","v":""}]
[{"$nulls":3},{"$f":"INDEX(CNTR_ListProdProcID,ROWS(D$101:D103))","v":"P3"},"","",{"$f":"IF($E103=\"\",\"\",INDEX(InputOutput!AJ$71:AJ$100,MATCH($E103,InputOutput!$D$71:$D$100,0)))","v":""},{"$f":"IF($E103=\"\",\"\",INDEX(InputOutput!AK$71:AK$100,MATCH($E103,InputOutput!$D$71:$D$100,0)))","v":""},{"$f":"IF($E103=\"\",\"\",INDEX(InputOutput!AL$71:AL$100,MATCH($E103,InputOutput!$D$71:$D$100,0)))","v":""},{"$f":"IF($E103=\"\",\"\",INDEX(InputOutput!AM$71:AM$100,MATCH($E103,InputOutput!$D$71:$D$100,0)))","v":""},{"$f":"IF($E103=\"\",\"\",INDEX(InputOutput!AN$71:AN$100,MATCH($E103,InputOutput!$D$71:$D$100,0)))","v":""},{"$f":"IF($E103=\"\",\"\",INDEX(InputOutput!AO$71:AO$100,MATCH($E103,InputOutput!$D$71:$D$100,0)))","v":""},{"$f":"INDEX(F_Tools!L$100:L$109,MATCH($D103,F_Tools!$D$100:$D$109,0))","v":""},{"$f":"INDEX(F_Tools!M$100:M$109,MATCH($D103,F_Tools!$D$100:$D$109,0))","v":""}]
[{"$nulls":3},{"$f":"INDEX(CNTR_ListProdProcID,ROWS(D$101:D104))","v":"P4"},"","",{"$f":"IF($E104=\"\",\"\",INDEX(InputOutput!AJ$71:AJ$100,MATCH($E104,InputOutput!$D$71:$D$100,0)))","v":""},{"$f":"IF($E104=\"\",\"\",INDEX(InputOutput!AK$71:AK$100,MATCH($E104,InputOutput!$D$71:$D$100,0)))","v":""},{"$f":"IF($E104=\"\",\"\",INDEX(InputOutput!AL$71:AL$100,MATCH($E104,InputOutput!$D$71:$D$100,0)))","v":""},{"$f":"IF($E104=\"\",\"\",INDEX(InputOutput!AM$71:AM$100,MATCH($E104,InputOutput!$D$71:$D$100,0)))","v":""},{"$f":"IF($E104=\"\",\"\",INDEX(InputOutput!AN$71:AN$100,MATCH($E104,InputOutput!$D$71:$D$100,0)))","v":""},{"$f":"IF($E104=\"\",\"\",INDEX(InputOutput!AO$71:AO$100,MATCH($E104,InputOutput!$D$71:$D$100,0)))","v":""},{"$f":"INDEX(F_Tools!L$100:L$109,MATCH($D104,F_Tools!$D$100:$D$109,0))","v":""},{"$f":"INDEX(F_Tools!M$100:M$109,MATCH($D104,F_Tools!$D$100:$D$109,0))","v":""}]
[{"$nulls":3},{"$f":"INDEX(CNTR_ListProdProcID,ROWS(D$101:D105))","v":"P5"},"","",{"$f":"IF($E105=\"\",\"\",INDEX(InputOutput!AJ$71:AJ$100,MATCH($E105,InputOutput!$D$71:$D$100,0)))","v":""},{"$f":"IF($E105=\"\",\"\",INDEX(InputOutput!AK$71:AK$100,MATCH($E105,InputOutput!$D$71:$D$100,0)))","v":""},{"$f":"IF($E105=\"\",\"\",INDEX(InputOutput!AL$71:AL$100,MATCH($E105,InputOutput!$D$71:$D$100,0)))","v":""},{"$f":"IF($E105=\"\",\"\",INDEX(InputOutput!AM$71:AM$100,MATCH($E105,InputOutput!$D$71:$D$100,0)))","v":""},{"$f":"IF($E105=\"\",\"\",INDEX(InputOutput!AN$71:AN$100,MATCH($E105,InputOutput!$D$71:$D$100,0)))","v":""},{"$f":"IF($E105=\"\",\"\",INDEX(InputOutput!AO$71:AO$100,MATCH($E105,InputOutput!$D$71:$D$100,0)))","v":""},{"$f":"INDEX(F_Tools!L$100:L$109,MATCH($D105,F_Tools!$D$100:$D$109,0))","v":""},{"$f":"INDEX(F_Tools!M$100:M$109,MATCH($D105,F_Tools!$D$100:$D$109,0))","v":""}]
[{"$nulls":3},{"$f":"INDEX(CNTR_ListProdProcID,ROWS(D$101:D106))","v":"P6"},"","",{"$f":"IF($E106=\"\",\"\",INDEX(InputOutput!AJ$71:AJ$100,MATCH($E106,InputOutput!$D$71:$D$100,0)))","v":""},{"$f":"IF($E106=\"\",\"\",INDEX(InputOutput!AK$71:AK$100,MATCH($E106,InputOutput!$D$71:$D$100,0)))","v":""},{"$f":"IF($E106=\"\",\"\",INDEX(InputOutput!AL$71:AL$100,MATCH($E106,InputOutput!$D$71:$D$100,0)))","v":""},{"$f":"IF($E106=\"\",\"\",INDEX(InputOutput!AM$71:AM$100,MATCH($E106,InputOutput!$D$71:$D$100,0)))","v":""},{"$f":"IF($E106=\"\",\"\",INDEX(InputOutput!AN$71:AN$100,MATCH($E106,InputOutput!$D$71:$D$100,0)))","v":""},{"$f":"IF($E106=\"\",\"\",INDEX(InputOutput!AO$71:AO$100,MATCH($E106,InputOutput!$D$71:$D$100,0)))","v":""},{"$f":"INDEX(F_Tools!L$100:L$109,MATCH($D106,F_Tools!$D$100:$D$109,0))","v":""},{"$f":"INDEX(F_Tools!M$100:M$109,MATCH($D106,F_Tools!$D$100:$D$109,0))","v":""}]
[{"$nulls":3},{"$f":"INDEX(CNTR_ListProdProcID,ROWS(D$101:D107))","v":"P7"},"","",{"$f":"IF($E107=\"\",\"\",INDEX(InputOutput!AJ$71:AJ$100,MATCH($E107,InputOutput!$D$71:$D$100,0)))","v":""},{"$f":"IF($E107=\"\",\"\",INDEX(InputOutput!AK$71:AK$100,MATCH($E107,InputOutput!$D$71:$D$100,0)))","v":""},{"$f":"IF($E107=\"\",\"\",INDEX(InputOutput!AL$71:AL$100,MATCH($E107,InputOutput!$D$71:$D$100,0)))","v":""},{"$f":"IF($E107=\"\",\"\",INDEX(InputOutput!AM$71:AM$100,MATCH($E107,InputOutput!$D$71:$D$100,0)))","v":""},{"$f":"IF($E107=\"\",\"\",INDEX(InputOutput!AN$71:AN$100,MATCH($E107,InputOutput!$D$71:$D$100,0)))","v":""},{"$f":"IF($E107=\"\",\"\",INDEX(InputOutput!AO$71:AO$100,MATCH($E107,InputOutput!$D$71:$D$100,0)))","v":""},{"$f":"INDEX(F_Tools!L$100:L$109,MATCH($D107,F_Tools!$D$100:$D$109,0))","v":""},{"$f":"INDEX(F_Tools!M$100:M$109,MATCH($D107,F_Tools!$D$100:$D$109,0))","v":""}]
[{"$nulls":3},{"$f":"INDEX(CNTR_ListProdProcID,ROWS(D$101:D108))","v":"P8"},"","",{"$f":"IF($E108=\"\",\"\",INDEX(InputOutput!AJ$71:AJ$100,MATCH($E108,InputOutput!$D$71:$D$100,0)))","v":""},{"$f":"IF($E108=\"\",\"\",INDEX(InputOutput!AK$71:AK$100,MATCH($E108,InputOutput!$D$71:$D$100,0)))","v":""},{"$f":"IF($E108=\"\",\"\",INDEX(InputOutput!AL$71:AL$100,MATCH($E108,InputOutput!$D$71:$D$100,0)))","v":""},{"$f":"IF($E108=\"\",\"\",INDEX(InputOutput!AM$71:AM$100,MATCH($E108,InputOutput!$D$71:$D$100,0)))","v":""},{"$f":"IF($E108=\"\",\"\",INDEX(InputOutput!AN$71:AN$100,MATCH($E108,InputOutput!$D$71:$D$100,0)))","v":""},{"$f":"IF($E108=\"\",\"\",INDEX(InputOutput!AO$71:AO$100,MATCH($E108,InputOutput!$D$71:$D$100,0)))","v":""},{"$f":"INDEX(F_Tools!L$100:L$109,MATCH($D108,F_Tools!$D$100:$D$109,0))","v":""},{"$f":"INDEX(F_Tools!M$100:M$109,MATCH($D108,F_Tools!$D$100:$D$109,0))","v":""}]
[{"$nulls":3},{"$f":"INDEX(CNTR_ListProdProcID,ROWS(D$101:D109))","v":"P9"},"","",{"$f":"IF($E109=\"\",\"\",INDEX(InputOutput!AJ$71:AJ$100,MATCH($E109,InputOutput!$D$71:$D$100,0)))","v":""},{"$f":"IF($E109=\"\",\"\",INDEX(InputOutput!AK$71:AK$100,MATCH($E109,InputOutput!$D$71:$D$100,0)))","v":""},{"$f":"IF($E109=\"\",\"\",INDEX(InputOutput!AL$71:AL$100,MATCH($E109,InputOutput!$D$71:$D$100,0)))","v":""},{"$f":"IF($E109=\"\",\"\",INDEX(InputOutput!AM$71:AM$100,MATCH($E109,InputOutput!$D$71:$D$100,0)))","v":""},{"$f":"IF($E109=\"\",\"\",INDEX(InputOutput!AN$71:AN$100,MATCH($E109,InputOutput!$D$71:$D$100,0)))","v":""},{"$f":"IF($E109=\"\",\"\",INDEX(InputOutput!AO$71:AO$100,MATCH($E109,InputOutput!$D$71:$D$100,0)))","v":""},{"$f":"INDEX(F_Tools!L$100:L$109,MATCH($D109,F_Tools!$D$100:$D$109,0))","v":""},{"$f":"INDEX(F_Tools!M$100:M$109,MATCH($D109,F_Tools!$D$100:$D$109,0))","v":""}]
[{"$nulls":3},{"$f":"INDEX(CNTR_ListProdProcID,ROWS(D$101:D110))","v":"P10"},"","",{"$f":"IF($E110=\"\",\"\",INDEX(InputOutput!AJ$71:AJ$100,MATCH($E110,InputOutput!$D$71:$D$100,0)))","v":""},{"$f":"IF($E110=\"\",\"\",INDEX(InputOutput!AK$71:AK$100,MATCH($E110,InputOutput!$D$71:$D$100,0)))","v":""},{"$f":"IF($E110=\"\",\"\",INDEX(InputOutput!AL$71:AL$100,MATCH($E110,InputOutput!$D$71:$D$100,0)))","v":""},{"$f":"IF($E110=\"\",\"\",INDEX(InputOutput!AM$71:AM$100,MATCH($E110,InputOutput!$D$71:$D$100,0)))","v":""},{"$f":"IF($E110=\"\",\"\",INDEX(InputOutput!AN$71:AN$100,MATCH($E110,InputOutput!$D$71:$D$100,0)))","v":""},{"$f":"IF($E110=\"\",\"\",INDEX(InputOutput!AO$71:AO$100,MATCH($E110,InputOutput!$D$71:$D$100,0)))","v":""},{"$f":"INDEX(F_Tools!L$100:L$109,MATCH($D110,F_Tools!$D$100:$D$109,0))","v":""},{"$f":"INDEX(F_Tools!M$100:M$109,MATCH($D110,F_Tools!$D$100:$D$109,0))","v":""}]
[]
[{"$nulls":5},{"$f":"Translations!$B$578","v":"Type of precursor"},{"$f":"Translations!$B$568","v":"SE (direct)"},{"$f":"Translations!$B$570","v":"SEE (direct)"},{"$f":"Translations!$B$572","v":"SE (indirect)"},{"$f":"Translations!$B$574","v":"SEE (indirect)"}]
[{"$nulls":3},"(b)",{"$f":"Translations!$B$124","v":"Purchased precursors"},null,{"$f":"CONST_tCO2eq&\"/\"&CONST_t","v":"tCO2e/t"},{"$f":"CONST_tCO2eq&\"/\"&CONST_t","v":"tCO2e/t"},{"$f":"CONST_tCO2eq&\"/\"&CONST_t","v":"tCO2e/t"},{"$f":"CONST_tCO2eq&\"/\"&CONST_t","v":"tCO2e/t"}]
[{"$nulls":3},{"$f":"INDEX(CNTR_ListPurchPrecID,ROWS(D$114:D114))","v":"PP1"},{"$f":"IF(INDEX(CNTR_List_ExistPurchPrecNames,ROWS(D$114:D114))=CONST_NA,\"\",INDEX(CNTR_List_ExistPurchPrecNames,ROWS(D$114:D114)))","v":""},{"$f":"IF(E114=\"\",\"\",INDEX(CNTR_List_ExistPurchPrec,MATCH(D114,CNTR_ListPurchPrecID,0)))","v":""},{"$f":"IF($E114=\"\",\"\",INDEX(InputOutput!AJ$71:AJ$100,MATCH($E114,InputOutput!$D$71:$D$100,0)))","v":""},{"$f":"IF($E114=\"\",\"\",INDEX(InputOutput!AK$71:AK$100,MATCH($E114,InputOutput!$D$71:$D$100,0)))","v":""},{"$f":"IF($E114=\"\",\"\",INDEX(InputOutput!AL$71:AL$100,MATCH($E114,InputOutput!$D$71:$D$100,0)))","v":""},{"$f":"IF($E114=\"\",\"\",INDEX(InputOutput!AM$71:AM$100,MATCH($E114,InputOutput!$D$71:$D$100,0)))","v":""}]
[{"$nulls":3},{"$f":"INDEX(CNTR_ListPurchPrecID,ROWS(D$114:D115))","v":"PP2"},{"$f":"IF(INDEX(CNTR_List_ExistPurchPrecNames,ROWS(D$114:D115))=CONST_NA,\"\",INDEX(CNTR_List_ExistPurchPrecNames,ROWS(D$114:D115)))","v":""},{"$f":"IF(E115=\"\",\"\",INDEX(CNTR_List_ExistPurchPrec,MATCH(D115,CNTR_ListPurchPrecID,0)))","v":""},{"$f":"IF($E115=\"\",\"\",INDEX(InputOutput!AJ$71:AJ$100,MATCH($E115,InputOutput!$D$71:$D$100,0)))","v":""},{"$f":"IF($E115=\"\",\"\",INDEX(InputOutput!AK$71:AK$100,MATCH($E115,InputOutput!$D$71:$D$100,0)))","v":""},{"$f":"IF($E115=\"\",\"\",INDEX(InputOutput!AL$71:AL$100,MATCH($E115,InputOutput!$D$71:$D$100,0)))","v":""},{"$f":"IF($E115=\"\",\"\",INDEX(InputOutput!AM$71:AM$100,MATCH($E115,InputOutput!$D$71:$D$100,0)))","v":""}]
[{"$nulls":3},{"$f":"INDEX(CNTR_ListPurchPrecID,ROWS(D$114:D116))","v":"PP3"},{"$f":"IF(INDEX(CNTR_List_ExistPurchPrecNames,ROWS(D$114:D116))=CONST_NA,\"\",INDEX(CNTR_List_ExistPurchPrecNames,ROWS(D$114:D116)))","v":""},{"$f":"IF(E116=\"\",\"\",INDEX(CNTR_List_ExistPurchPrec,MATCH(D116,CNTR_ListPurchPrecID,0)))","v":""},{"$f":"IF($E116=\"\",\"\",INDEX(InputOutput!AJ$71:AJ$100,MATCH($E116,InputOutput!$D$71:$D$100,0)))","v":""},{"$f":"IF($E116=\"\",\"\",INDEX(InputOutput!AK$71:AK$100,MATCH($E116,InputOutput!$D$71:$D$100,0)))","v":""},{"$f":"IF($E116=\"\",\"\",INDEX(InputOutput!AL$71:AL$100,MATCH($E116,InputOutput!$D$71:$D$100,0)))","v":""},{"$f":"IF($E116=\"\",\"\",INDEX(InputOutput!AM$71:AM$100,MATCH($E116,InputOutput!$D$71:$D$100,0)))","v":""}]
[{"$nulls":3},{"$f":"INDEX(CNTR_ListPurchPrecID,ROWS(D$114:D117))","v":"PP4"},{"$f":"IF(INDEX(CNTR_List_ExistPurchPrecNames,ROWS(D$114:D117))=CONST_NA,\"\",INDEX(CNTR_List_ExistPurchPrecNames,ROWS(D$114:D117)))","v":""},"",{"$f":"IF($E117=\"\",\"\",INDEX(InputOutput!AJ$71:AJ$100,MATCH($E117,InputOutput!$D$71:$D$100,0)))","v":""},{"$f":"IF($E117=\"\",\"\",INDEX(InputOutput!AK$71:AK$100,MATCH($E117,InputOutput!$D$71:$D$100,0)))","v":""},{"$f":"IF($E117=\"\",\"\",INDEX(InputOutput!AL$71:AL$100,MATCH($E117,InputOutput!$D$71:$D$100,0)))","v":""},{"$f":"IF($E117=\"\",\"\",INDEX(InputOutput!AM$71:AM$100,MATCH($E117,InputOutput!$D$71:$D$100,0)))","v":""}]
[{"$nulls":3},{"$f":"INDEX(CNTR_ListPurchPrecID,ROWS(D$114:D118))","v":"PP5"},{"$f":"IF(INDEX(CNTR_List_ExistPurchPrecNames,ROWS(D$114:D118))=CONST_NA,\"\",INDEX(CNTR_List_ExistPurchPrecNames,ROWS(D$114:D118)))","v":""},"",{"$f":"IF($E118=\"\",\"\",INDEX(InputOutput!AJ$71:AJ$100,MATCH($E118,InputOutput!$D$71:$D$100,0)))","v":""},{"$f":"IF($E118=\"\",\"\",INDEX(InputOutput!AK$71:AK$100,MATCH($E118,InputOutput!$D$71:$D$100,0)))","v":""},{"$f":"IF($E118=\"\",\"\",INDEX(InputOutput!AL$71:AL$100,MATCH($E118,InputOutput!$D$71:$D$100,0)))","v":""},{"$f":"IF($E118=\"\",\"\",INDEX(InputOutput!AM$71:AM$100,MATCH($E118,InputOutput!$D$71:$D$100,0)))","v":""}]
[{"$nulls":3},{"$f":"INDEX(CNTR_ListPurchPrecID,ROWS(D$114:D119))","v":"PP6"},{"$f":"IF(INDEX(CNTR_List_ExistPurchPrecNames,ROWS(D$114:D119))=CONST_NA,\"\",INDEX(CNTR_List_ExistPurchPrecNames,ROWS(D$114:D119)))","v":""},"",{"$f":"IF($E119=\"\",\"\",INDEX(InputOutput!AJ$71:AJ$100,MATCH($E119,InputOutput!$D$71:$D$100,0)))","v":""},{"$f":"IF($E119=\"\",\"\",INDEX(InputOutput!AK$71:AK$100,MATCH($E119,InputOutput!$D$71:$D$100,0)))","v":""},{"$f":"IF($E119=\"\",\"\",INDEX(InputOutput!AL$71:AL$100,MATCH($E119,InputOutput!$D$71:$D$100,0)))","v":""},{"$f":"IF($E119=\"\",\"\",INDEX(InputOutput!AM$71:AM$100,MATCH($E119,InputOutput!$D$71:$D$100,0)))","v":""}]
[{"$nulls":3},{"$f":"INDEX(CNTR_ListPurchPrecID,ROWS(D$114:D120))","v":"PP7"},{"$f":"IF(INDEX(CNTR_List_ExistPurchPrecNames,ROWS(D$114:D120))=CONST_NA,\"\",INDEX(CNTR_List_ExistPurchPrecNames,ROWS(D$114:D120)))","v":""},"",{"$f":"IF($E120=\"\",\"\",INDEX(InputOutput!AJ$71:AJ$100,MATCH($E120,InputOutput!$D$71:$D$100,0)))","v":""},{"$f":"IF($E120=\"\",\"\",INDEX(InputOutput!AK$71:AK$100,MATCH($E120,InputOutput!$D$71:$D$100,0)))","v":""},{"$f":"IF($E120=\"\",\"\",INDEX(InputOutput!AL$71:AL$100,MATCH($E120,InputOutput!$D$71:$D$100,0)))","v":""},{"$f":"IF($E120=\"\",\"\",INDEX(InputOutput!AM$71:AM$100,MATCH($E120,InputOutput!$D$71:$D$100,0)))","v":""}]
[{"$nulls":3},{"$f":"INDEX(CNTR_ListPurchPrecID,ROWS(D$114:D121))","v":"PP8"},{"$f":"IF(INDEX(CNTR_List_ExistPurchPrecNames,ROWS(D$114:D121))=CONST_NA,\"\",INDEX(CNTR_List_ExistPurchPrecNames,ROWS(D$114:D121)))","v":""},"",{"$f":"IF($E121=\"\",\"\",INDEX(InputOutput!AJ$71:AJ$100,MATCH($E121,InputOutput!$D$71:$D$100,0)))","v":""},{"$f":"IF($E121=\"\",\"\",INDEX(InputOutput!AK$71:AK$100,MATCH($E121,InputOutput!$D$71:$D$100,0)))","v":""},{"$f":"IF($E121=\"\",\"\",INDEX(InputOutput!AL$71:AL$100,MATCH($E121,InputOutput!$D$71:$D$100,0)))","v":""},{"$f":"IF($E121=\"\",\"\",INDEX(InputOutput!AM$71:AM$100,MATCH($E121,InputOutput!$D$71:$D$100,0)))","v":""}]
[{"$nulls":3},{"$f":"INDEX(CNTR_ListPurchPrecID,ROWS(D$114:D122))","v":"PP9"},{"$f":"IF(INDEX(CNTR_List_ExistPurchPrecNames,ROWS(D$114:D122))=CONST_NA,\"\",INDEX(CNTR_List_ExistPurchPrecNames,ROWS(D$114:D122)))","v":""},"",{"$f":"IF($E122=\"\",\"\",INDEX(InputOutput!AJ$71:AJ$100,MATCH($E122,InputOutput!$D$71:$D$100,0)))","v":""},{"$f":"IF($E122=\"\",\"\",INDEX(InputOutput!AK$71:AK$100,MATCH($E122,InputOutput!$D$71:$D$100,0)))","v":""},{"$f":"IF($E122=\"\",\"\",INDEX(InputOutput!AL$71:AL$100,MATCH($E122,InputOutput!$D$71:$D$100,0)))","v":""},{"$f":"IF($E122=\"\",\"\",INDEX(InputOutput!AM$71:AM$100,MATCH($E122,InputOutput!$D$71:$D$100,0)))","v":""}]
[{"$nulls":3},{"$f":"INDEX(CNTR_ListPurchPrecID,ROWS(D$114:D123))","v":"PP10"},{"$f":"IF(INDEX(CNTR_List_ExistPurchPrecNames,ROWS(D$114:D123))=CONST_NA,\"\",INDEX(CNTR_List_ExistPurchPrecNames,ROWS(D$114:D123)))","v":""},"",{"$f":"IF($E123=\"\",\"\",INDEX(InputOutput!AJ$71:AJ$100,MATCH($E123,InputOutput!$D$71:$D$100,0)))","v":""},{"$f":"IF($E123=\"\",\"\",INDEX(InputOutput!AK$71:AK$100,MATCH($E123,InputOutput!$D$71:$D$100,0)))","v":""},{"$f":"IF($E123=\"\",\"\",INDEX(InputOutput!AL$71:AL$100,MATCH($E123,InputOutput!$D$71:$D$100,0)))","v":""},{"$f":"IF($E123=\"\",\"\",INDEX(InputOutput!AM$71:AM$100,MATCH($E123,InputOutput!$D$71:$D$100,0)))","v":""}]
[{"$nulls":3},{"$f":"INDEX(CNTR_ListPurchPrecID,ROWS(D$114:D124))","v":"PP11"},{"$f":"IF(INDEX(CNTR_List_ExistPurchPrecNames,ROWS(D$114:D124))=CONST_NA,\"\",INDEX(CNTR_List_ExistPurchPrecNames,ROWS(D$114:D124)))","v":""},"",{"$f":"IF($E124=\"\",\"\",INDEX(InputOutput!AJ$71:AJ$100,MATCH($E124,InputOutput!$D$71:$D$100,0)))","v":""},{"$f":"IF($E124=\"\",\"\",INDEX(InputOutput!AK$71:AK$100,MATCH($E124,InputOutput!$D$71:$D$100,0)))","v":""},{"$f":"IF($E124=\"\",\"\",INDEX(InputOutput!AL$71:AL$100,MATCH($E124,InputOutput!$D$71:$D$100,0)))","v":""},{"$f":"IF($E124=\"\",\"\",INDEX(InputOutput!AM$71:AM$100,MATCH($E124,InputOutput!$D$71:$D$100,0)))","v":""}]
[{"$nulls":3},{"$f":"INDEX(CNTR_ListPurchPrecID,ROWS(D$114:D125))","v":"PP12"},{"$f":"IF(INDEX(CNTR_List_ExistPurchPrecNames,ROWS(D$114:D125))=CONST_NA,\"\",INDEX(CNTR_List_ExistPurchPrecNames,ROWS(D$114:D125)))","v":""},"",{"$f":"IF($E125=\"\",\"\",INDEX(InputOutput!AJ$71:AJ$100,MATCH($E125,InputOutput!$D$71:$D$100,0)))","v":""},{"$f":"IF($E125=\"\",\"\",INDEX(InputOutput!AK$71:AK$100,MATCH($E125,InputOutput!$D$71:$D$100,0)))","v":""},{"$f":"IF($E125=\"\",\"\",INDEX(InputOutput!AL$71:AL$100,MATCH($E125,InputOutput!$D$71:$D$100,0)))","v":""},{"$f":"IF($E125=\"\",\"\",INDEX(InputOutput!AM$71:AM$100,MATCH($E125,InputOutput!$D$71:$D$100,0)))","v":""}]
[{"$nulls":3},{"$f":"INDEX(CNTR_ListPurchPrecID,ROWS(D$114:D126))","v":"PP13"},{"$f":"IF(INDEX(CNTR_List_ExistPurchPrecNames,ROWS(D$114:D126))=CONST_NA,\"\",INDEX(CNTR_List_ExistPurchPrecNames,ROWS(D$114:D126)))","v":""},"",{"$f":"IF($E126=\"\",\"\",INDEX(InputOutput!AJ$71:AJ$100,MATCH($E126,InputOutput!$D$71:$D$100,0)))","v":""},{"$f":"IF($E126=\"\",\"\",INDEX(InputOutput!AK$71:AK$100,MATCH($E126,InputOutput!$D$71:$D$100,0)))","v":""},{"$f":"IF($E126=\"\",\"\",INDEX(InputOutput!AL$71:AL$100,MATCH($E126,InputOutput!$D$71:$D$100,0)))","v":""},{"$f":"IF($E126=\"\",\"\",INDEX(InputOutput!AM$71:AM$100,MATCH($E126,InputOutput!$D$71:$D$100,0)))","v":""}]
[{"$nulls":3},{"$f":"INDEX(CNTR_ListPurchPrecID,ROWS(D$114:D127))","v":"PP14"},{"$f":"IF(INDEX(CNTR_List_ExistPurchPrecNames,ROWS(D$114:D127))=CONST_NA,\"\",INDEX(CNTR_List_ExistPurchPrecNames,ROWS(D$114:D127)))","v":""},"",{"$f":"IF($E127=\"\",\"\",INDEX(InputOutput!AJ$71:AJ$100,MATCH($E127,InputOutput!$D$71:$D$100,0)))","v":""},{"$f":"IF($E127=\"\",\"\",INDEX(InputOutput!AK$71:AK$100,MATCH($E127,InputOutput!$D$71:$D$100,0)))","v":""},{"$f":"IF($E127=\"\",\"\",INDEX(InputOutput!AL$71:AL$100,MATCH($E127,InputOutput!$D$71:$D$100,0)))","v":""},{"$f":"IF($E127=\"\",\"\",INDEX(InputOutput!AM$71:AM$100,MATCH($E127,InputOutput!$D$71:$D$100,0)))","v":""}]
[{"$nulls":3},{"$f":"INDEX(CNTR_ListPurchPrecID,ROWS(D$114:D128))","v":"PP15"},{"$f":"IF(INDEX(CNTR_List_ExistPurchPrecNames,ROWS(D$114:D128))=CONST_NA,\"\",INDEX(CNTR_List_ExistPurchPrecNames,ROWS(D$114:D128)))","v":""},"",{"$f":"IF($E128=\"\",\"\",INDEX(InputOutput!AJ$71:AJ$100,MATCH($E128,InputOutput!$D$71:$D$100,0)))","v":""},{"$f":"IF($E128=\"\",\"\",INDEX(InputOutput!AK$71:AK$100,MATCH($E128,InputOutput!$D$71:$D$100,0)))","v":""},{"$f":"IF($E128=\"\",\"\",INDEX(InputOutput!AL$71:AL$100,MATCH($E128,InputOutput!$D$71:$D$100,0)))","v":""},{"$f":"IF($E128=\"\",\"\",INDEX(InputOutput!AM$71:AM$100,MATCH($E128,InputOutput!$D$71:$D$100,0)))","v":""}]
[{"$nulls":3},{"$f":"INDEX(CNTR_ListPurchPrecID,ROWS(D$114:D129))","v":"PP16"},{"$f":"IF(INDEX(CNTR_List_ExistPurchPrecNames,ROWS(D$114:D129))=CONST_NA,\"\",INDEX(CNTR_List_ExistPurchPrecNames,ROWS(D$114:D129)))","v":""},"",{"$f":"IF($E129=\"\",\"\",INDEX(InputOutput!AJ$71:AJ$100,MATCH($E129,InputOutput!$D$71:$D$100,0)))","v":""},{"$f":"IF($E129=\"\",\"\",INDEX(InputOutput!AK$71:AK$100,MATCH($E129,InputOutput!$D$71:$D$100,0)))","v":""},{"$f":"IF($E129=\"\",\"\",INDEX(InputOutput!AL$71:AL$100,MATCH($E129,InputOutput!$D$71:$D$100,0)))","v":""},{"$f":"IF($E129=\"\",\"\",INDEX(InputOutput!AM$71:AM$100,MATCH($E129,InputOutput!$D$71:$D$100,0)))","v":""}]
[{"$nulls":3},{"$f":"INDEX(CNTR_ListPurchPrecID,ROWS(D$114:D130))","v":"PP17"},{"$f":"IF(INDEX(CNTR_List_ExistPurchPrecNames,ROWS(D$114:D130))=CONST_NA,\"\",INDEX(CNTR_List_ExistPurchPrecNames,ROWS(D$114:D130)))","v":""},"",{"$f":"IF($E130=\"\",\"\",INDEX(InputOutput!AJ$71:AJ$100,MATCH($E130,InputOutput!$D$71:$D$100,0)))","v":""},{"$f":"IF($E130=\"\",\"\",INDEX(InputOutput!AK$71:AK$100,MATCH($E130,InputOutput!$D$71:$D$100,0)))","v":""},{"$f":"IF($E130=\"\",\"\",INDEX(InputOutput!AL$71:AL$100,MATCH($E130,InputOutput!$D$71:$D$100,0)))","v":""},{"$f":"IF($E130=\"\",\"\",INDEX(InputOutput!AM$71:AM$100,MATCH($E130,InputOutput!$D$71:$D$100,0)))","v":""}]
[{"$nulls":3},{"$f":"INDEX(CNTR_ListPurchPrecID,ROWS(D$114:D131))","v":"PP18"},{"$f":"IF(INDEX(CNTR_List_ExistPurchPrecNames,ROWS(D$114:D131))=CONST_NA,\"\",INDEX(CNTR_List_ExistPurchPrecNames,ROWS(D$114:D131)))","v":""},"",{"$f":"IF($E131=\"\",\"\",INDEX(InputOutput!AJ$71:AJ$100,MATCH($E131,InputOutput!$D$71:$D$100,0)))","v":""},{"$f":"IF($E131=\"\",\"\",INDEX(InputOutput!AK$71:AK$100,MATCH($E131,InputOutput!$D$71:$D$100,0)))","v":""},{"$f":"IF($E131=\"\",\"\",INDEX(InputOutput!AL$71:AL$100,MATCH($E131,InputOutput!$D$71:$D$100,0)))","v":""},{"$f":"IF($E131=\"\",\"\",INDEX(InputOutput!AM$71:AM$100,MATCH($E131,InputOutput!$D$71:$D$100,0)))","v":""}]
[{"$nulls":3},{"$f":"INDEX(CNTR_ListPurchPrecID,ROWS(D$114:D132))","v":"PP19"},{"$f":"IF(INDEX(CNTR_List_ExistPurchPrecNames,ROWS(D$114:D132))=CONST_NA,\"\",INDEX(CNTR_List_ExistPurchPrecNames,ROWS(D$114:D132)))","v":""},"",{"$f":"IF($E132=\"\",\"\",INDEX(InputOutput!AJ$71:AJ$100,MATCH($E132,InputOutput!$D$71:$D$100,0)))","v":""},{"$f":"IF($E132=\"\",\"\",INDEX(InputOutput!AK$71:AK$100,MATCH($E132,InputOutput!$D$71:$D$100,0)))","v":""},{"$f":"IF($E132=\"\",\"\",INDEX(InputOutput!AL$71:AL$100,MATCH($E132,InputOutput!$D$71:$D$100,0)))","v":""},{"$f":"IF($E132=\"\",\"\",INDEX(InputOutput!AM$71:AM$100,MATCH($E132,InputOutput!$D$71:$D$100,0)))","v":""}]
[{"$nulls":3},{"$f":"INDEX(CNTR_ListPurchPrecID,ROWS(D$114:D133))","v":"PP20"},{"$f":"IF(INDEX(CNTR_List_ExistPurchPrecNames,ROWS(D$114:D133))=CONST_NA,\"\",INDEX(CNTR_List_ExistPurchPrecNames,ROWS(D$114:D133)))","v":""},"",{"$f":"IF($E133=\"\",\"\",INDEX(InputOutput!AJ$71:AJ$100,MATCH($E133,InputOutput!$D$71:$D$100,0)))","v":""},{"$f":"IF($E133=\"\",\"\",INDEX(InputOutput!AK$71:AK$100,MATCH($E133,InputOutput!$D$71:$D$100,0)))","v":""},{"$f":"IF($E133=\"\",\"\",INDEX(InputOutput!AL$71:AL$100,MATCH($E133,InputOutput!$D$71:$D$100,0)))","v":""},{"$f":"IF($E133=\"\",\"\",INDEX(InputOutput!AM$71:AM$100,MATCH($E133,InputOutput!$D$71:$D$100,0)))","v":""}]
[]
[{"$f":"C135","v":3},null,3,{"$f":"Translations!$B$579","v":"Detailed overview of each production processes"},{"$nulls":17},{"$f":"Translations!$B$580","v":"Detailed overview"}]
[]
[{"$nulls":3},{"$f":"Translations!$B$567","v":"The following abbreviations are used in the tables below:"}]
[{"$nulls":3},{"$f":"Translations!$B$581","v":"General aspects"},null,{"$f":"Translations!$B$582","v":"The term 'specific' of all elements below is to be understood as being expressed per unit of good (usually tonnes) of the production process in consideration. "}]
[{"$nulls":5},{"$f":"Translations!$B$583","v":"Example: a precursor has specific embedded emissions of 0,8 tonnes of CO2e per tonne. The 'mass share' is 0,3 tonnes of precursor consumed per tonne of production from the relevant 'production process'. Under the block of the relevant 'production process, the value for 'SEE' for this precursor will therefore be displayed as 0,24 tonnes CO2e per tonne."}]
[{"$nulls":3},{"$f":"Translations!$B$584","v":"Mass share"},null,{"$f":"Translations!$B$585","v":"This is the specific consumption of each precursor per unit of products produced by the relevant 'production process'."}]
[{"$nulls":3},{"$f":"Translations!$B$586","v":"(Share of) Default value"},null,{"$f":"Translations!$B$587","v":"This is relevant for purchased precursors and indicates whether the embedded direct emissions are determined based on default values (\"TRUE\") or actual measurements (\"FALSE\"). For the whole process, this indicator will calculate the share of embedded emissions determined by default values."}]
[{"$nulls":3},{"$f":"Translations!$B$570","v":"SEE (direct)"},null,{"$f":"Translations!$B$571","v":"Specific embedded direct emissions of the production process, i.e. including any embedded emissions from any precursors consumed in the process."}]
[{"$nulls":3},{"$f":"Translations!$B$574","v":"SEE (indirect)"},null,{"$f":"Translations!$B$575","v":"Specific embedded indirect emissions of the production process, i.e. including any embedded indirect emissions from any precursors consumed in the process."}]
[{"$nulls":3},{"$f":"Translations!$B$344","v":"SEE (total)"},null,{"$f":"Translations!$B$588","v":"Total (direct + indirect) specific embedded emissions of the production process, i.e. including any embedded indirect emissions from any precursors consumed in the process."}]
[{"$nulls":3},{"$f":"Translations!$B$589","v":"EmbEm (direct)"},null,{"$f":"Translations!$B$590","v":"Embedded direct emissions of the production process, i.e. including any embedded emissions from any precursors consumed in the process."}]
[{"$nulls":3},{"$f":"Translations!$B$591","v":"EmbEm (indirect)"},null,{"$f":"Translations!$B$592","v":"Embedded indirect emissions of the production process, i.e. including any embedded indirect emissions from any precursors consumed in the process."}]
[{"$nulls":3},{"$f":"Translations!$B$593","v":"EmbEm (total)"},null,{"$f":"Translations!$B$588","v":"Total (direct + indirect) specific embedded emissions of the production process, i.e. including any embedded indirect emissions from any precursors consumed in the process."}]
[{"$nulls":3},{"$f":"Translations!$B$594","v":"Source of electricity EF"},null,{"$f":"Translations!$B$595","v":"The source or method based on which the electricity emission factor (EF) was determined for the relevant production process or precursor."}]
[{"$nulls":3},"D.2.1",null,{"$f":"Translations!$B$456","v":"CO2 emission factor based on specific default values  "}]
[{"$nulls":3},"D.2.2",null,{"$f":"Translations!$B$457","v":"CO2 emission factor based on alternative default value "}]
[{"$nulls":3},"D.2.3",null,{"$f":"Translations!$B$458","v":"CO2 emission factor based on reliable data demonstrated by the importer"}]
[{"$nulls":3},"D.2.4",null,{"$f":"Translations!$B$459","v":"CO2 emission factor based on actual CO2 emissions of the installation "}]
[{"$nulls":3},{"$f":"Translations!$B$460","v":"Mix"},null,{"$f":"Translations!$B$596","v":"Where the electricity is not predominantly obtained from one source or the EF by one of the above sources, the EF is determined as a mix of the methods above."}]
[{"$nulls":3},{"$f":"Translations!$B$597","v":"Specific electricity"},null,{"$f":"Translations!$B$598","v":"Specific electricity consumption within the production process, excluding any electricity embedded in purchased precursors."}]
[{"$nulls":3},"Country code",null,{"$f":"Translations!$B$599","v":"This is the country in which the relevant precursor is produced, where imported from outside the own installation."}]
[{"$nulls":3},{"$f":"Translations!$B$351","v":"CP due (per t or MWh)"},null,{"$f":"Translations!$B$1870","v":"This information is taken from the \"tool to calculate the carbon price due\" in sheet \"F_Tools\", where relevant."}]
[{"$nulls":3},{"$f":"Translations!$B$352","v":"Rebate (per t or MWh)"},null,{"$f":"Translations!$B$1870","v":"This information is taken from the \"tool to calculate the carbon price due\" in sheet \"F_Tools\", where relevant."}]
[]
[null,null,1,{"$f":"IF(INDEX(CNTR_List_ExistProdProcNames,C159)=CONST_NA,\"\",INDEX(CNTR_List_ExistProdProcNames,C159))","v":""},null,{"$f":"Translations!$B$107","v":"Aggregated goods category"},{"$f":"Translations!$B$584","v":"Mass share"},{"$f":"Translations!$B$586","v":"(Share of) Default value"},{"$f":"Translations!$B$570","v":"SEE (direct)"},{"$f":"Translations!$B$574","v":"SEE (indirect)"},{"$f":"Translations!$B$344","v":"SEE (total)"},{"$f":"Translations!$B$589","v":"EmbEm (direct)"},{"$f":"Translations!$B$591","v":"EmbEm (indirect)"},{"$f":"Translations!$B$593","v":"EmbEm (total)"},{"$f":"Translations!$B$594","v":"Source of electricity EF"},{"$f":"Translations!$B$597","v":"Specific electricity"},"Country code",{"$f":"Translations!$B$351","v":"CP due (per t or MWh)"},{"$f":"Translations!$B$352","v":"Rebate (per t or MWh)"},{"$nulls":12},{"$f":"H159","v":"(Share of) Default value"},{"$f":"H161","v":""}]
[{"$nulls":6},{"$f":"IF($F161=\"\",CONST_t,INDEX(CONST_LIST_GoodsUnit,MATCH($F161,CONST_LIST_Goods,0)))&\"/\"&IF($F161=\"\",CONST_t,INDEX(CONST_LIST_GoodsUnit,MATCH($F161,CONST_LIST_Goods,0)))","v":"t/t"},null,{"$f":"CONST_tCO2eq&\"/\"&IF($F161=\"\",CONST_t,INDEX(CONST_LIST_GoodsUnit,MATCH($F161,CONST_LIST_Goods,0)))","v":"tCO2e/t"},{"$f":"CONST_tCO2eq&\"/\"&IF($F161=\"\",CONST_t,INDEX(CONST_LIST_GoodsUnit,MATCH($F161,CONST_LIST_Goods,0)))","v":"tCO2e/t"},{"$f":"CONST_tCO2eq&\"/\"&IF($F161=\"\",CONST_t,INDEX(CONST_LIST_GoodsUnit,MATCH($F161,CONST_LIST_Goods,0)))","v":"tCO2e/t"},{"$f":"CONST_tCO2eq","v":"tCO2e"},{"$f":"CONST_tCO2eq","v":"tCO2e"},{"$f":"CONST_tCO2eq","v":"tCO2e"},null,{"$f":"CONST_MWh&\"/\"&IF($F161=\"\",CONST_t,INDEX(CONST_LIST_GoodsUnit,MATCH($F161,CONST_LIST_Goods,0)))","v":"MWh/t"}]
[{"$nulls":3},{"$f":"Translations!$B$600","v":"Total production process"},null,{"$f":"IF(D162=\"\",\"\",INDEX(CNTR_List_ExistProdProc,MATCH(D162,CNTR_List_ExistProdProcNames,0)))","v":""},"-",{"$f":"IF(D159=\"\",\"\",IFERROR(SUMIFS(I163:I192,H163:H192,TRUE)/I161,\"\"))","v":""},{"$f":"IF(COUNT(I162:I192)>0,SUM(I162:I192),\"\")","v":""},{"$f":"IF(COUNT(J162:J192)>0,SUM(J162:J192),\"\")","v":""},{"$f":"IF(COUNT(K162:K192)>0,SUM(K162:K192),\"\")","v":""},"","","","-","","-","","",{"$nulls":10},{"$f":"Translations!$B$601","v":"Production and consumption"},{"$f":"Translations!$B$602","v":"Total production of precursors"},null,"IsPrecursor?"]
[{"$nulls":3},{"$f":"D159","v":""},null,{"$f":"IF(D162=\"\",\"\",INDEX(CNTR_List_ExistProdProc,MATCH(D162,CNTR_List_ExistProdProcNames,0)))","v":""},{"v":1,"d":"1.000"},"-",{"$f":"IF($D162=\"\",\"\",SUM($G162)*SUM(INDEX(InputOutput!$AJ$71:$AJ$100,MATCH($D162,InputOutput!$D$71:$D$100,0))))","v":""},{"$f":"IF($D162=\"\",\"\",SUM($G162)*SUM(INDEX(InputOutput!$AL$71:$AL$100,MATCH($D162,InputOutput!$D$71:$D$100,0))))","v":""},{"$f":"IF(COUNT(I162:J162)>0,SUM(I162:J162),\"\")","v":""},{"$f":"IF(D162=\"\",\"\",SUM(I162)*SUM(AD162))","v":""},{"$f":"IF(D162=\"\",\"\",SUM(J162)*SUM(AD162))","v":""},{"$f":"IF(COUNT(L162:M162)>0,SUM(L162:M162),\"\")","v":""},{"$f":"IF(AG162,INDEX(E_PurchPrec!U:U,MATCH(CONST_CNTR_ElecEFMethod&D162,E_PurchPrec!R:R,0)),INDEX(D_Processes!T:T,MATCH(CONST_CNTR_ElecEFMethod&D162,D_Processes!R:R,0)))","v":""},{"$f":"IF(OR($D162=\"\",$AG162),\"\",SUM($G162)*SUM(INDEX(InputOutput!$AN$71:$AN$100,MATCH($D162,InputOutput!$D$71:$D$100,0))))","v":""},null,{"$f":"IF($D162=\"\",\"\",IFERROR(SUM($G162)*SUM(INDEX(F_Tools!$T$100:$T$129,MATCH($D162,F_Tools!$E$100:$E$129,0)))/K161,\"\"))","v":""},{"$f":"IF($D162=\"\",\"\",IFERROR(SUM($G162)*SUM(INDEX(F_Tools!$U$100:$U$129,MATCH($D162,F_Tools!$E$100:$E$129,0)))/K161,\"\"))","v":""},{"$nulls":8},{"$f":"CONST_CNTR_TotProd&D159","v":"TotProd_"},null,{"$f":"SUMIF(D_Processes!R:R,AB162,D_Processes!L:L)","v":0}]
[null,null,1,{"$f":"IF(D159=\"\",\"\",IF(COUNTIF(INDEX(CNTR_IOSupplyChain,MATCH(D159,CNTR_IOProcAndPrec,0),),C163)=0,\"\",INDEX(CNTR_IOProcAndPrec,MATCH(C163,INDEX(CNTR_IOSupplyChain,MATCH(D159,CNTR_IOProcAndPrec,0),),0))))","v":""},null,{"$f":"IF(D163=\"\",\"\",IF(COUNTIF(CNTR_List_ExistProdProcNames,D163)>0,INDEX(CNTR_List_ExistProdProc,MATCH(D163,CNTR_List_ExistProdProcNames,0)),INDEX(CNTR_List_ExistPurchPrec,MATCH(D163,CNTR_List_ExistPurchPrecNames,0))))","v":""},{"$f":"IF(D163=\"\",\"\",INDEX(CNTR_Matrix_Inv,MATCH(D159,CNTR_IOProcAndPrec,0),MATCH(D163,CNTR_IOProcAndPrec,0)))","v":""},{"$f":"IF(D163=\"\",\"\",IF(AG163,INDEX(E_PurchPrec!U:U,MATCH(CONST_PurchPrecDefaultUsed&D163,E_PurchPrec!R:R,0)),CONST_NA))","v":""},{"$f":"IF($D163=\"\",\"\",SUM($G163)*SUM(INDEX(InputOutput!$AJ$71:$AJ$100,MATCH($D163,InputOutput!$D$71:$D$100,0))))","v":""},{"$f":"IF($D163=\"\",\"\",SUM($G163)*SUM(INDEX(InputOutput!$AL$71:$AL$100,MATCH($D163,InputOutput!$D$71:$D$100,0))))","v":""},"",{"$f":"IF(D163=\"\",\"\",SUM(I163)*SUM(AD162))","v":""},{"$f":"IF(D163=\"\",\"\",SUM(J163)*SUM(AD162))","v":""},"",{"$f":"IF(AG163,INDEX(E_PurchPrec!U:U,MATCH(CONST_CNTR_ElecEFMethod&D163,E_PurchPrec!R:R,0)),INDEX(D_Processes!T:T,MATCH(CONST_CNTR_ElecEFMethod&D163,D_Processes!R:R,0)))","v":""},null,{"$f":"IF(D163=\"\",\"\",IF(AG163,INDEX(A_InstData!$F$101:$F$120,MATCH(D163,CNTR_List_ExistPurchPrecNames,0)),\"\"))","v":""},{"$f":"IF($D163=\"\",\"\",SUM($G163)*SUM(INDEX(F_Tools!$T$100:$T$129,MATCH($D163,F_Tools!$E$100:$E$129,0))))","v":""},{"$f":"IF($D163=\"\",\"\",SUM($G163)*SUM(INDEX(F_Tools!$U$100:$U$129,MATCH($D163,F_Tools!$E$100:$E$129,0))))","v":""},{"$nulls":8},{"$f":"CONST_PrecursorToGoodInput&D163&\"_\"&D159","v":"PrecToGood__"},null,{"$f":"SUMIF(D_Processes!R:R,AB163,D_Processes!K:K)","v":0},{"$f":"SUMIF(D_Processes!R:R,CONST_CNTR_TotProd&D163,D_Processes!L:L)","v":0},null,{"$f":"COUNTIF(CNTR_List_ExistPurchPrecNames,D163)>0","v":false}]
[null,null,2,{"$f":"IF(D159=\"\",\"\",IF(COUNTIF(INDEX(CNTR_IOSupplyChain,MATCH(D159,CNTR_IOProcAndPrec,0),),C164)=0,\"\",INDEX(CNTR_IOProcAndPrec,MATCH(C164,INDEX(CNTR_IOSupplyChain,MATCH(D159,CNTR_IOProcAndPrec,0),),0))))","v":""},null,"",{"$f":"IF(D164=\"\",\"\",INDEX(CNTR_Matrix_Inv,MATCH(D159,CNTR_IOProcAndPrec,0),MATCH(D164,CNTR_IOProcAndPrec,0)))","v":""},{"$f":"IF(D164=\"\",\"\",IF(AG164,INDEX(E_PurchPrec!U:U,MATCH(CONST_PurchPrecDefaultUsed&D164,E_PurchPrec!R:R,0)),CONST_NA))","v":""},{"$f":"IF($D164=\"\",\"\",SUM($G164)*SUM(INDEX(InputOutput!$AJ$71:$AJ$100,MATCH($D164,InputOutput!$D$71:$D$100,0))))","v":""},{"$f":"IF($D164=\"\",\"\",SUM($G164)*SUM(INDEX(InputOutput!$AL$71:$AL$100,MATCH($D164,InputOutput!$D$71:$D$100,0))))","v":""},"",{"$f":"IF(D164=\"\",\"\",SUM(I164)*SUM(AD162))","v":""},{"$f":"IF(D164=\"\",\"\",SUM(J164)*SUM(AD162))","v":""},"",{"$f":"IF(AG164,INDEX(E_PurchPrec!U:U,MATCH(CONST_CNTR_ElecEFMethod&D164,E_PurchPrec!R:R,0)),INDEX(D_Processes!T:T,MATCH(CONST_CNTR_ElecEFMethod&D164,D_Processes!R:R,0)))","v":""},null,{"$f":"IF(D164=\"\",\"\",IF(AG164,INDEX(A_InstData!$F$101:$F$120,MATCH(D164,CNTR_List_ExistPurchPrecNames,0)),\"\"))","v":""},{"$f":"IF($D164=\"\",\"\",SUM($G164)*SUM(INDEX(F_Tools!$T$100:$T$129,MATCH($D164,F_Tools!$E$100:$E$129,0))))","v":""},{"$f":"IF($D164=\"\",\"\",SUM($G164)*SUM(INDEX(F_Tools!$U$100:$U$129,MATCH($D164,F_Tools!$E$100:$E$129,0))))","v":""},{"$nulls":8},{"$f":"CONST_PrecursorToGoodInput&D164&\"_\"&D159","v":"PrecToGood__"},null,{"$f":"SUMIF(D_Processes!R:R,AB164,D_Processes!K:K)","v":0},{"$f":"SUMIF(D_Processes!R:R,CONST_CNTR_TotProd&D164,D_Processes!L:L)","v":0},null,false]
[null,null,3,{"$f":"IF(D159=\"\",\"\",IF(COUNTIF(INDEX(CNTR_IOSupplyChain,MATCH(D159,CNTR_IOProcAndPrec,0),),C165)=0,\"\",INDEX(CNTR_IOProcAndPrec,MATCH(C165,INDEX(CNTR_IOSupplyChain,MATCH(D159,CNTR_IOProcAndPrec,0),),0))))","v":""},null,"",{"$f":"IF(D165=\"\",\"\",INDEX(CNTR_Matrix_Inv,MATCH(D159,CNTR_IOProcAndPrec,0),MATCH(D165,CNTR_IOProcAndPrec,0)))","v":""},{"$f":"IF(D165=\"\",\"\",IF(AG165,INDEX(E_PurchPrec!U:U,MATCH(CONST_PurchPrecDefaultUsed&D165,E_PurchPrec!R:R,0)),CONST_NA))","v":""},{"$f":"IF($D165=\"\",\"\",SUM($G165)*SUM(INDEX(InputOutput!$AJ$71:$AJ$100,MATCH($D165,InputOutput!$D$71:$D$100,0))))","v":""},{"$f":"IF($D165=\"\",\"\",SUM($G165)*SUM(INDEX(InputOutput!$AL$71:$AL$100,MATCH($D165,InputOutput!$D$71:$D$100,0))))","v":""},"",{"$f":"IF(D165=\"\",\"\",SUM(I165)*SUM(AD162))","v":""},{"$f":"IF(D165=\"\",\"\",SUM(J165)*SUM(AD162))","v":""},"",{"$f":"IF(AG165,INDEX(E_PurchPrec!U:U,MATCH(CONST_CNTR_ElecEFMethod&D165,E_PurchPrec!R:R,0)),INDEX(D_Processes!T:T,MATCH(CONST_CNTR_ElecEFMethod&D165,D_Processes!R:R,0)))","v":""},null,{"$f":"IF(D165=\"\",\"\",IF(AG165,INDEX(A_InstData!$F$101:$F$120,MATCH(D165,CNTR_List_ExistPurchPrecNames,0)),\"\"))","v":""},{"$f":"IF($D165=\"\",\"\",SUM($G165)*SUM(INDEX(F_Tools!$T$100:$T$129,MATCH($D165,F_Tools!$E$100:$E$129,0))))","v":""},{"$f":"IF($D165=\"\",\"\",SUM($G165)*SUM(INDEX(F_Tools!$U$100:$U$129,MATCH($D165,F_Tools!$E$100:$E$129,0))))","v":""},{"$nulls":8},{"$f":"CONST_PrecursorToGoodInput&D165&\"_\"&D159","v":"PrecToGood__"},null,{"$f":"SUMIF(D_Processes!R:R,AB165,D_Processes!K:K)","v":0},{"$f":"SUMIF(D_Processes!R:R,CONST_CNTR_TotProd&D165,D_Processes!L:L)","v":0},null,false]
[null,null,4,{"$f":"IF(D159=\"\",\"\",IF(COUNTIF(INDEX(CNTR_IOSupplyChain,MATCH(D159,CNTR_IOProcAndPrec,0),),C166)=0,\"\",INDEX(CNTR_IOProcAndPrec,MATCH(C166,INDEX(CNTR_IOSupplyChain,MATCH(D159,CNTR_IOProcAndPrec,0),),0))))","v":""},null,"",{"$f":"IF(D166=\"\",\"\",INDEX(CNTR_Matrix_Inv,MATCH(D159,CNTR_IOProcAndPrec,0),MATCH(D166,CNTR_IOProcAndPrec,0)))","v":""},{"$f":"IF(D166=\"\",\"\",IF(AG166,INDEX(E_PurchPrec!U:U,MATCH(CONST_PurchPrecDefaultUsed&D166,E_PurchPrec!R:R,0)),CONST_NA))","v":""},{"$f":"IF($D166=\"\",\"\",SUM($G166)*SUM(INDEX(InputOutput!$AJ$71:$AJ$100,MATCH($D166,InputOutput!$D$71:$D$100,0))))","v":""},{"$f":"IF($D166=\"\",\"\",SUM($G166)*SUM(INDEX(InputOutput!$AL$71:$AL$100,MATCH($D166,InputOutput!$D$71:$D$100,0))))","v":""},"",{"$f":"IF(D166=\"\",\"\",SUM(I166)*SUM(AD162))","v":""},{"$f":"IF(D166=\"\",\"\",SUM(J166)*SUM(AD162))","v":""},"",{"$f":"IF(AG166,INDEX(E_PurchPrec!U:U,MATCH(CONST_CNTR_ElecEFMethod&D166,E_PurchPrec!R:R,0)),INDEX(D_Processes!T:T,MATCH(CONST_CNTR_ElecEFMethod&D166,D_Processes!R:R,0)))","v":""},null,{"$f":"IF(D166=\"\",\"\",IF(AG166,INDEX(A_InstData!$F$101:$F$120,MATCH(D166,CNTR_List_ExistPurchPrecNames,0)),\"\"))","v":""},{"$f":"IF($D166=\"\",\"\",SUM($G166)*SUM(INDEX(F_Tools!$T$100:$T$129,MATCH($D166,F_Tools!$E$100:$E$129,0))))","v":""},{"$f":"IF($D166=\"\",\"\",SUM($G166)*SUM(INDEX(F_Tools!$U$100:$U$129,MATCH($D166,F_Tools!$E$100:$E$129,0))))","v":""},{"$nulls":8},{"$f":"CONST_PrecursorToGoodInput&D166&\"_\"&D159","v":"PrecToGood__"},null,{"$f":"SUMIF(D_Processes!R:R,AB166,D_Processes!K:K)","v":0},{"$f":"SUMIF(D_Processes!R:R,CONST_CNTR_TotProd&D166,D_Processes!L:L)","v":0},null,false]
[null,null,5,{"$f":"IF(D159=\"\",\"\",IF(COUNTIF(INDEX(CNTR_IOSupplyChain,MATCH(D159,CNTR_IOProcAndPrec,0),),C167)=0,\"\",INDEX(CNTR_IOProcAndPrec,MATCH(C167,INDEX(CNTR_IOSupplyChain,MATCH(D159,CNTR_IOProcAndPrec,0),),0))))","v":""},null,"",{"$f":"IF(D167=\"\",\"\",INDEX(CNTR_Matrix_Inv,MATCH(D159,CNTR_IOProcAndPrec,0),MATCH(D167,CNTR_IOProcAndPrec,0)))","v":""},{"$f":"IF(D167=\"\",\"\",IF(AG167,INDEX(E_PurchPrec!U:U,MATCH(CONST_PurchPrecDefaultUsed&D167,E_PurchPrec!R:R,0)),CONST_NA))","v":""},{"$f":"IF($D167=\"\",\"\",SUM($G167)*SUM(INDEX(InputOutput!$AJ$71:$AJ$100,MATCH($D167,InputOutput!$D$71:$D$100,0))))","v":""},{"$f":"IF($D167=\"\",\"\",SUM($G167)*SUM(INDEX(InputOutput!$AL$71:$AL$100,MATCH($D167,InputOutput!$D$71:$D$100,0))))","v":""},"",{"$f":"IF(D167=\"\",\"\",SUM(I167)*SUM(AD162))","v":""},{"$f":"IF(D167=\"\",\"\",SUM(J167)*SUM(AD162))","v":""},"",{"$f":"IF(AG167,INDEX(E_PurchPrec!U:U,MATCH(CONST_CNTR_ElecEFMethod&D167,E_PurchPrec!R:R,0)),INDEX(D_Processes!T:T,MATCH(CONST_CNTR_ElecEFMethod&D167,D_Processes!R:R,0)))","v":""},null,{"$f":"IF(D167=\"\",\"\",IF(AG167,INDEX(A_InstData!$F$101:$F$120,MATCH(D167,CNTR_List_ExistPurchPrecNames,0)),\"\"))","v":""},{"$f":"IF($D167=\"\",\"\",SUM($G167)*SUM(INDEX(F_Tools!$T$100:$T$129,MATCH($D167,F_Tools!$E$100:$E$129,0))))","v":""},{"$f":"IF($D167=\"\",\"\",SUM($G167)*SUM(INDEX(F_Tools!$U$100:$U$129,MATCH($D167,F_Tools!$E$100:$E$129,0))))","v":""},{"$nulls":8},{"$f":"CONST_PrecursorToGoodInput&D167&\"_\"&D159","v":"PrecToGood__"},null,{"$f":"SUMIF(D_Processes!R:R,AB167,D_Processes!K:K)","v":0},{"$f":"SUMIF(D_Processes!R:R,CONST_CNTR_TotProd&D167,D_Processes!L:L)","v":0},null,false]
[null,null,6,{"$f":"IF(D159=\"\",\"\",IF(COUNTIF(INDEX(CNTR_IOSupplyChain,MATCH(D159,CNTR_IOProcAndPrec,0),),C168)=0,\"\",INDEX(CNTR_IOProcAndPrec,MATCH(C168,INDEX(CNTR_IOSupplyChain,MATCH(D159,CNTR_IOProcAndPrec,0),),0))))","v":""},null,"",{"$f":"IF(D168=\"\",\"\",INDEX(CNTR_Matrix_Inv,MATCH(D159,CNTR_IOProcAndPrec,0),MATCH(D168,CNTR_IOProcAndPrec,0)))","v":""},{"$f":"IF(D168=\"\",\"\",IF(AG168,INDEX(E_PurchPrec!U:U,MATCH(CONST_PurchPrecDefaultUsed&D168,E_PurchPrec!R:R,0)),CONST_NA))","v":""},{"$f":"IF($D168=\"\",\"\",SUM($G168)*SUM(INDEX(InputOutput!$AJ$71:$AJ$100,MATCH($D168,InputOutput!$D$71:$D$100,0))))","v":""},{"$f":"IF($D168=\"\",\"\",SUM($G168)*SUM(INDEX(InputOutput!$AL$71:$AL$100,MATCH($D168,InputOutput!$D$71:$D$100,0))))","v":""},{"$f":"IF(COUNT(I168:J168)>0,SUM(I168:J168),\"\")","v":""},{"$f":"IF(D168=\"\",\"\",SUM(I168)*SUM(AD162))","v":""},{"$f":"IF(D168=\"\",\"\",SUM(J168)*SUM(AD162))","v":""},{"$f":"IF(COUNT(L168:M168)>0,SUM(L168:M168),\"\")","v":""},{"$f":"IF(AG168,INDEX(E_PurchPrec!U:U,MATCH(CONST_CNTR_ElecEFMethod&D168,E_PurchPrec!R:R,0)),INDEX(D_Processes!T:T,MATCH(CONST_CNTR_ElecEFMethod&D168,D_Processes!R:R,0)))","v":""},null,{"$f":"IF(D168=\"\",\"\",IF(AG168,INDEX(A_InstData!$F$101:$F$120,MATCH(D168,CNTR_List_ExistPurchPrecNames,0)),\"\"))","v":""},{"$f":"IF($D168=\"\",\"\",SUM($G168)*SUM(INDEX(F_Tools!$T$100:$T$129,MATCH($D168,F_Tools!$E$100:$E$129,0))))","v":""},{"$f":"IF($D168=\"\",\"\",SUM($G168)*SUM(INDEX(F_Tools!$U$100:$U$129,MATCH($D168,F_Tools!$E$100:$E$129,0))))","v":""},{"$nulls":8},{"$f":"CONST_PrecursorToGoodInput&D168&\"_\"&D159","v":"PrecToGood__"},null,{"$f":"SUMIF(D_Processes!R:R,AB168,D_Processes!K:K)","v":0},{"$f":"SUMIF(D_Processes!R:R,CONST_CNTR_TotProd&D168,D_Processes!L:L)","v":0},null,false]
[null,null,7,{"$f":"IF(D159=\"\",\"\",IF(COUNTIF(INDEX(CNTR_IOSupplyChain,MATCH(D159,CNTR_IOProcAndPrec,0),),C169)=0,\"\",INDEX(CNTR_IOProcAndPrec,MATCH(C169,INDEX(CNTR_IOSupplyChain,MATCH(D159,CNTR_IOProcAndPrec,0),),0))))","v":""},null,"",{"$f":"IF(D169=\"\",\"\",INDEX(CNTR_Matrix_Inv,MATCH(D159,CNTR_IOProcAndPrec,0),MATCH(D169,CNTR_IOProcAndPrec,0)))","v":""},{"$f":"IF(D169=\"\",\"\",IF(AG169,INDEX(E_PurchPrec!U:U,MATCH(CONST_PurchPrecDefaultUsed&D169,E_PurchPrec!R:R,0)),CONST_NA))","v":""},{"$f":"IF($D169=\"\",\"\",SUM($G169)*SUM(INDEX(InputOutput!$AJ$71:$AJ$100,MATCH($D169,InputOutput!$D$71:$D$100,0))))","v":""},{"$f":"IF($D169=\"\",\"\",SUM($G169)*SUM(INDEX(InputOutput!$AL$71:$AL$100,MATCH($D169,InputOutput!$D$71:$D$100,0))))","v":""},"",{"$f":"IF(D169=\"\",\"\",SUM(I169)*SUM(AD162))","v":""},{"$f":"IF(D169=\"\",\"\",SUM(J169)*SUM(AD162))","v":""},"",{"$f":"IF(AG169,INDEX(E_PurchPrec!U:U,MATCH(CONST_CNTR_ElecEFMethod&D169,E_PurchPrec!R:R,0)),INDEX(D_Processes!T:T,MATCH(CONST_CNTR_ElecEFMethod&D169,D_Processes!R:R,0)))","v":""},null,{"$f":"IF(D169=\"\",\"\",IF(AG169,INDEX(A_InstData!$F$101:$F$120,MATCH(D169,CNTR_List_ExistPurchPrecNames,0)),\"\"))","v":""},{"$f":"IF($D169=\"\",\"\",SUM($G169)*SUM(INDEX(F_Tools!$T$100:$T$129,MATCH($D169,F_Tools!$E$100:$E$129,0))))","v":""},{"$f":"IF($D169=\"\",\"\",SUM($G169)*SUM(INDEX(F_Tools!$U$100:$U$129,MATCH($D169,F_Tools!$E$100:$E$129,0))))","v":""},{"$nulls":8},{"$f":"CONST_PrecursorToGoodInput&D169&\"_\"&D159","v":"PrecToGood__"},null,{"$f":"SUMIF(D_Processes!R:R,AB169,D_Processes!K:K)","v":0},{"$f":"SUMIF(D_Processes!R:R,CONST_CNTR_TotProd&D169,D_Processes!L:L)","v":0},null,false]
[null,null,8,{"$f":"IF(D159=\"\",\"\",IF(COUNTIF(INDEX(CNTR_IOSupplyChain,MATCH(D159,CNTR_IOProcAndPrec,0),),C170)=0,\"\",INDEX(CNTR_IOProcAndPrec,MATCH(C170,INDEX(CNTR_IOSupplyChain,MATCH(D159,CNTR_IOProcAndPrec,0),),0))))","v":""},null,"",{"$f":"IF(D170=\"\",\"\",INDEX(CNTR_Matrix_Inv,MATCH(D159,CNTR_IOProcAndPrec,0),MATCH(D170,CNTR_IOProcAndPrec,0)))","v":""},{"$f":"IF(D170=\"\",\"\",IF(AG170,INDEX(E_PurchPrec!U:U,MATCH(CONST_PurchPrecDefaultUsed&D170,E_PurchPrec!R:R,0)),CONST_NA))","v":""},{"$f":"IF($D170=\"\",\"\",SUM($G170)*SUM(INDEX(InputOutput!$AJ$71:$AJ$100,MATCH($D170,InputOutput!$D$71:$D$100,0))))","v":""},{"$f":"IF($D170=\"\",\"\",SUM($G170)*SUM(INDEX(InputOutput!$AL$71:$AL$100,MATCH($D170,InputOutput!$D$71:$D$100,0))))","v":""},"",{"$f":"IF(D170=\"\",\"\",SUM(I170)*SUM(AD162))","v":""},{"$f":"IF(D170=\"\",\"\",SUM(J170)*SUM(AD162))","v":""},"",{"$f":"IF(AG170,INDEX(E_PurchPrec!U:U,MATCH(CONST_CNTR_ElecEFMethod&D170,E_PurchPrec!R:R,0)),INDEX(D_Processes!T:T,MATCH(CONST_CNTR_ElecEFMethod&D170,D_Processes!R:R,0)))","v":""},null,{"$f":"IF(D170=\"\",\"\",IF(AG170,INDEX(A_InstData!$F$101:$F$120,MATCH(D170,CNTR_List_ExistPurchPrecNames,0)),\"\"))","v":""},{"$f":"IF($D170=\"\",\"\",SUM($G170)*SUM(INDEX(F_Tools!$T$100:$T$129,MATCH($D170,F_Tools!$E$100:$E$129,0))))","v":""},{"$f":"IF($D170=\"\",\"\",SUM($G170)*SUM(INDEX(F_Tools!$U$100:$U$129,MATCH($D170,F_Tools!$E$100:$E$129,0))))","v":""},{"$nulls":8},{"$f":"CONST_PrecursorToGoodInput&D170&\"_\"&D159","v":"PrecToGood__"},null,{"$f":"SUMIF(D_Processes!R:R,AB170,D_Processes!K:K)","v":0},{"$f":"SUMIF(D_Processes!R:R,CONST_CNTR_TotProd&D170,D_Processes!L:L)","v":0},null,false]
[null,null,9,{"$f":"IF(D159=\"\",\"\",IF(COUNTIF(INDEX(CNTR_IOSupplyChain,MATCH(D159,CNTR_IOProcAndPrec,0),),C171)=0,\"\",INDEX(CNTR_IOProcAndPrec,MATCH(C171,INDEX(CNTR_IOSupplyChain,MATCH(D159,CNTR_IOProcAndPrec,0),),0))))","v":""},null,"",{"$f":"IF(D171=\"\",\"\",INDEX(CNTR_Matrix_Inv,MATCH(D159,CNTR_IOProcAndPrec,0),MATCH(D171,CNTR_IOProcAndPrec,0)))","v":""},{"$f":"IF(D171=\"\",\"\",IF(AG171,INDEX(E_PurchPrec!U:U,MATCH(CONST_PurchPrecDefaultUsed&D171,E_PurchPrec!R:R,0)),CONST_NA))","v":""},{"$f":"IF($D171=\"\",\"\",SUM($G171)*SUM(INDEX(InputOutput!$AJ$71:$AJ$100,MATCH($D171,InputOutput!$D$71:$D$100,0))))","v":""},{"$f":"IF($D171=\"\",\"\",SUM($G171)*SUM(INDEX(InputOutput!$AL$71:$AL$100,MATCH($D171,InputOutput!$D$71:$D$100,0))))","v":""},"",{"$f":"IF(D171=\"\",\"\",SUM(I171)*SUM(AD162))","v":""},{"$f":"IF(D171=\"\",\"\",SUM(J171)*SUM(AD162))","v":""},"",{"$f":"IF(AG171,INDEX(E_PurchPrec!U:U,MATCH(CONST_CNTR_ElecEFMethod&D171,E_PurchPrec!R:R,0)),INDEX(D_Processes!T:T,MATCH(CONST_CNTR_ElecEFMethod&D171,D_Processes!R:R,0)))","v":""},null,{"$f":"IF(D171=\"\",\"\",IF(AG171,INDEX(A_InstData!$F$101:$F$120,MATCH(D171,CNTR_List_ExistPurchPrecNames,0)),\"\"))","v":""},{"$f":"IF($D171=\"\",\"\",SUM($G171)*SUM(INDEX(F_Tools!$T$100:$T$129,MATCH($D171,F_Tools!$E$100:$E$129,0))))","v":""},{"$f":"IF($D171=\"\",\"\",SUM($G171)*SUM(INDEX(F_Tools!$U$100:$U$129,MATCH($D171,F_Tools!$E$100:$E$129,0))))","v":""},{"$nulls":8},{"$f":"CONST_PrecursorToGoodInput&D171&\"_\"&D159","v":"PrecToGood__"},null,{"$f":"SUMIF(D_Processes!R:R,AB171,D_Processes!K:K)","v":0},{"$f":"SUMIF(D_Processes!R:R,CONST_CNTR_TotProd&D171,D_Processes!L:L)","v":0},null,false]
[null,null,10,{"$f":"IF(D159=\"\",\"\",IF(COUNTIF(INDEX(CNTR_IOSupplyChain,MATCH(D159,CNTR_IOProcAndPrec,0),),C172)=0,\"\",INDEX(CNTR_IOProcAndPrec,MATCH(C172,INDEX(CNTR_IOSupplyChain,MATCH(D159,CNTR_IOProcAndPrec,0),),0))))","v":""},null,"",{"$f":"IF(D172=\"\",\"\",INDEX(CNTR_Matrix_Inv,MATCH(D159,CNTR_IOProcAndPrec,0),MATCH(D172,CNTR_IOProcAndPrec,0)))","v":""},{"$f":"IF(D172=\"\",\"\",IF(AG172,INDEX(E_PurchPrec!U:U,MATCH(CONST_PurchPrecDefaultUsed&D172,E_PurchPrec!R:R,0)),CONST_NA))","v":""},{"$f":"IF($D172=\"\",\"\",SUM($G172)*SUM(INDEX(InputOutput!$AJ$71:$AJ$100,MATCH($D172,InputOutput!$D$71:$D$100,0))))","v":""},{"$f":"IF($D172=\"\",\"\",SUM($G172)*SUM(INDEX(InputOutput!$AL$71:$AL$100,MATCH($D172,InputOutput!$D$71:$D$100,0))))","v":""},"",{"$f":"IF(D172=\"\",\"\",SUM(I172)*SUM(AD162))","v":""},{"$f":"IF(D172=\"\",\"\",SUM(J172)*SUM(AD162))","v":""},"",{"$f":"IF(AG172,INDEX(E_PurchPrec!U:U,MATCH(CONST_CNTR_ElecEFMethod&D172,E_PurchPrec!R:R,0)),INDEX(D_Processes!T:T,MATCH(CONST_CNTR_ElecEFMethod&D172,D_Processes!R:R,0)))","v":""},null,{"$f":"IF(D172=\"\",\"\",IF(AG172,INDEX(A_InstData!$F$101:$F$120,MATCH(D172,CNTR_List_ExistPurchPrecNames,0)),\"\"))","v":""},{"$f":"IF($D172=\"\",\"\",SUM($G172)*SUM(INDEX(F_Tools!$T$100:$T$129,MATCH($D172,F_Tools!$E$100:$E$129,0))))","v":""},{"$f":"IF($D172=\"\",\"\",SUM($G172)*SUM(INDEX(F_Tools!$U$100:$U$129,MATCH($D172,F_Tools!$E$100:$E$129,0))))","v":""},{"$nulls":8},{"$f":"CONST_PrecursorToGoodInput&D172&\"_\"&D159","v":"PrecToGood__"},null,{"$f":"SUMIF(D_Processes!R:R,AB172,D_Processes!K:K)","v":0},{"$f":"SUMIF(D_Processes!R:R,CONST_CNTR_TotProd&D172,D_Processes!L:L)","v":0},null,false]
[null,null,11,{"$f":"IF(D159=\"\",\"\",IF(COUNTIF(INDEX(CNTR_IOSupplyChain,MATCH(D159,CNTR_IOProcAndPrec,0),),C173)=0,\"\",INDEX(CNTR_IOProcAndPrec,MATCH(C173,INDEX(CNTR_IOSupplyChain,MATCH(D159,CNTR_IOProcAndPrec,0),),0))))","v":""},null,"",{"$f":"IF(D173=\"\",\"\",INDEX(CNTR_Matrix_Inv,MATCH(D159,CNTR_IOProcAndPrec,0),MATCH(D173,CNTR_IOProcAndPrec,0)))","v":""},{"$f":"IF(D173=\"\",\"\",IF(AG173,INDEX(E_PurchPrec!U:U,MATCH(CONST_PurchPrecDefaultUsed&D173,E_PurchPrec!R:R,0)),CONST_NA))","v":""},{"$f":"IF($D173=\"\",\"\",SUM($G173)*SUM(INDEX(InputOutput!$AJ$71:$AJ$100,MATCH($D173,InputOutput!$D$71:$D$100,0))))","v":""},{"$f":"IF($D173=\"\",\"\",SUM($G173)*SUM(INDEX(InputOutput!$AL$71:$AL$100,MATCH($D173,InputOutput!$D$71:$D$100,0))))","v":""},"",{"$f":"IF(D173=\"\",\"\",SUM(I173)*SUM(AD162))","v":""},{"$f":"IF(D173=\"\",\"\",SUM(J173)*SUM(AD162))","v":""},"",{"$f":"IF(AG173,INDEX(E_PurchPrec!U:U,MATCH(CONST_CNTR_ElecEFMethod&D173,E_PurchPrec!R:R,0)),INDEX(D_Processes!T:T,MATCH(CONST_CNTR_ElecEFMethod&D173,D_Processes!R:R,0)))","v":""},null,{"$f":"IF(D173=\"\",\"\",IF(AG173,INDEX(A_InstData!$F$101:$F$120,MATCH(D173,CNTR_List_ExistPurchPrecNames,0)),\"\"))","v":""},{"$f":"IF($D173=\"\",\"\",SUM($G173)*SUM(INDEX(F_Tools!$T$100:$T$129,MATCH($D173,F_Tools!$E$100:$E$129,0))))","v":""},{"$f":"IF($D173=\"\",\"\",SUM($G173)*SUM(INDEX(F_Tools!$U$100:$U$129,MATCH($D173,F_Tools!$E$100:$E$129,0))))","v":""},{"$nulls":8},{"$f":"CONST_PrecursorToGoodInput&D173&\"_\"&D159","v":"PrecToGood__"},null,{"$f":"SUMIF(D_Processes!R:R,AB173,D_Processes!K:K)","v":0},{"$f":"SUMIF(D_Processes!R:R,CONST_CNTR_TotProd&D173,D_Processes!L:L)","v":0},null,false]
[null,null,12,{"$f":"IF(D159=\"\",\"\",IF(COUNTIF(INDEX(CNTR_IOSupplyChain,MATCH(D159,CNTR_IOProcAndPrec,0),),C174)=0,\"\",INDEX(CNTR_IOProcAndPrec,MATCH(C174,INDEX(CNTR_IOSupplyChain,MATCH(D159,CNTR_IOProcAndPrec,0),),0))))","v":""},null,"",{"$f":"IF(D174=\"\",\"\",INDEX(CNTR_Matrix_Inv,MATCH(D159,CNTR_IOProcAndPrec,0),MATCH(D174,CNTR_IOProcAndPrec,0)))","v":""},{"$f":"IF(D174=\"\",\"\",IF(AG174,INDEX(E_PurchPrec!U:U,MATCH(CONST_PurchPrecDefaultUsed&D174,E_PurchPrec!R:R,0)),CONST_NA))","v":""},{"$f":"IF($D174=\"\",\"\",SUM($G174)*SUM(INDEX(InputOutput!$AJ$71:$AJ$100,MATCH($D174,InputOutput!$D$71:$D$100,0))))","v":""},{"$f":"IF($D174=\"\",\"\",SUM($G174)*SUM(INDEX(InputOutput!$AL$71:$AL$100,MATCH($D174,InputOutput!$D$71:$D$100,0))))","v":""},"",{"$f":"IF(D174=\"\",\"\",SUM(I174)*SUM(AD162))","v":""},{"$f":"IF(D174=\"\",\"\",SUM(J174)*SUM(AD162))","v":""},"",{"$f":"IF(AG174,INDEX(E_PurchPrec!U:U,MATCH(CONST_CNTR_ElecEFMethod&D174,E_PurchPrec!R:R,0)),INDEX(D_Processes!T:T,MATCH(CONST_CNTR_ElecEFMethod&D174,D_Processes!R:R,0)))","v":""},null,{"$f":"IF(D174=\"\",\"\",IF(AG174,INDEX(A_InstData!$F$101:$F$120,MATCH(D174,CNTR_List_ExistPurchPrecNames,0)),\"\"))","v":""},{"$f":"IF($D174=\"\",\"\",SUM($G174)*SUM(INDEX(F_Tools!$T$100:$T$129,MATCH($D174,F_Tools!$E$100:$E$129,0))))","v":""},{"$f":"IF($D174=\"\",\"\",SUM($G174)*SUM(INDEX(F_Tools!$U$100:$U$129,MATCH($D174,F_Tools!$E$100:$E$129,0))))","v":""},{"$nulls":8},{"$f":"CONST_PrecursorToGoodInput&D174&\"_\"&D159","v":"PrecToGood__"},null,{"$f":"SUMIF(D_Processes!R:R,AB174,D_Processes!K:K)","v":0},{"$f":"SUMIF(D_Processes!R:R,CONST_CNTR_TotProd&D174,D_Processes!L:L)","v":0},null,false]
[null,null,13,{"$f":"IF(D159=\"\",\"\",IF(COUNTIF(INDEX(CNTR_IOSupplyChain,MATCH(D159,CNTR_IOProcAndPrec,0),),C175)=0,\"\",INDEX(CNTR_IOProcAndPrec,MATCH(C175,INDEX(CNTR_IOSupplyChain,MATCH(D159,CNTR_IOProcAndPrec,0),),0))))","v":""},null,"",{"$f":"IF(D175=\"\",\"\",INDEX(CNTR_Matrix_Inv,MATCH(D159,CNTR_IOProcAndPrec,0),MATCH(D175,CNTR_IOProcAndPrec,0)))","v":""},{"$f":"IF(D175=\"\",\"\",IF(AG175,INDEX(E_PurchPrec!U:U,MATCH(CONST_PurchPrecDefaultUsed&D175,E_PurchPrec!R:R,0)),CONST_NA))","v":""},{"$f":"IF($D175=\"\",\"\",SUM($G175)*SUM(INDEX(InputOutput!$AJ$71:$AJ$100,MATCH($D175,InputOutput!$D$71:$D$100,0))))","v":""},{"$f":"IF($D175=\"\",\"\",SUM($G175)*SUM(INDEX(InputOutput!$AL$71:$AL$100,MATCH($D175,InputOutput!$D$71:$D$100,0))))","v":""},"",{"$f":"IF(D175=\"\",\"\",SUM(I175)*SUM(AD162))","v":""},{"$f":"IF(D175=\"\",\"\",SUM(J175)*SUM(AD162))","v":""},"",{"$f":"IF(AG175,INDEX(E_PurchPrec!U:U,MATCH(CONST_CNTR_ElecEFMethod&D175,E_PurchPrec!R:R,0)),INDEX(D_Processes!T:T,MATCH(CONST_CNTR_ElecEFMethod&D175,D_Processes!R:R,0)))","v":""},null,{"$f":"IF(D175=\"\",\"\",IF(AG175,INDEX(A_InstData!$F$101:$F$120,MATCH(D175,CNTR_List_ExistPurchPrecNames,0)),\"\"))","v":""},{"$f":"IF($D175=\"\",\"\",SUM($G175)*SUM(INDEX(F_Tools!$T$100:$T$129,MATCH($D175,F_Tools!$E$100:$E$129,0))))","v":""},{"$f":"IF($D175=\"\",\"\",SUM($G175)*SUM(INDEX(F_Tools!$U$100:$U$129,MATCH($D175,F_Tools!$E$100:$E$129,0))))","v":""},{"$nulls":8},{"$f":"CONST_PrecursorToGoodInput&D175&\"_\"&D159","v":"PrecToGood__"},null,{"$f":"SUMIF(D_Processes!R:R,AB175,D_Processes!K:K)","v":0},{"$f":"SUMIF(D_Processes!R:R,CONST_CNTR_TotProd&D175,D_Processes!L:L)","v":0},null,false]
[null,null,14,{"$f":"IF(D159=\"\",\"\",IF(COUNTIF(INDEX(CNTR_IOSupplyChain,MATCH(D159,CNTR_IOProcAndPrec,0),),C176)=0,\"\",INDEX(CNTR_IOProcAndPrec,MATCH(C176,INDEX(CNTR_IOSupplyChain,MATCH(D159,CNTR_IOProcAndPrec,0),),0))))","v":""},null,"",{"$f":"IF(D176=\"\",\"\",INDEX(CNTR_Matrix_Inv,MATCH(D159,CNTR_IOProcAndPrec,0),MATCH(D176,CNTR_IOProcAndPrec,0)))","v":""},{"$f":"IF(D176=\"\",\"\",IF(AG176,INDEX(E_PurchPrec!U:U,MATCH(CONST_PurchPrecDefaultUsed&D176,E_PurchPrec!R:R,0)),CONST_NA))","v":""},{"$f":"IF($D176=\"\",\"\",SUM($G176)*SUM(INDEX(InputOutput!$AJ$71:$AJ$100,MATCH($D176,InputOutput!$D$71:$D$100,0))))","v":""},{"$f":"IF($D176=\"\",\"\",SUM($G176)*SUM(INDEX(InputOutput!$AL$71:$AL$100,MATCH($D176,InputOutput!$D$71:$D$100,0))))","v":""},"",{"$f":"IF(D176=\"\",\"\",SUM(I176)*SUM(AD162))","v":""},{"$f":"IF(D176=\"\",\"\",SUM(J176)*SUM(AD162))","v":""},"",{"$f":"IF(AG176,INDEX(E_PurchPrec!U:U,MATCH(CONST_CNTR_ElecEFMethod&D176,E_PurchPrec!R:R,0)),INDEX(D_Processes!T:T,MATCH(CONST_CNTR_ElecEFMethod&D176,D_Processes!R:R,0)))","v":""},null,{"$f":"IF(D176=\"\",\"\",IF(AG176,INDEX(A_InstData!$F$101:$F$120,MATCH(D176,CNTR_List_ExistPurchPrecNames,0)),\"\"))","v":""},{"$f":"IF($D176=\"\",\"\",SUM($G176)*SUM(INDEX(F_Tools!$T$100:$T$129,MATCH($D176,F_Tools!$E$100:$E$129,0))))","v":""},{"$f":"IF($D176=\"\",\"\",SUM($G176)*SUM(INDEX(F_Tools!$U$100:$U$129,MATCH($D176,F_Tools!$E$100:$E$129,0))))","v":""},{"$nulls":8},{"$f":"CONST_PrecursorToGoodInput&D176&\"_\"&D159","v":"PrecToGood__"},null,{"$f":"SUMIF(D_Processes!R:R,AB176,D_Processes!K:K)","v":0},{"$f":"SUMIF(D_Processes!R:R,CONST_CNTR_TotProd&D176,D_Processes!L:L)","v":0},null,false]
[null,null,15,{"$f":"IF(D159=\"\",\"\",IF(COUNTIF(INDEX(CNTR_IOSupplyChain,MATCH(D159,CNTR_IOProcAndPrec,0),),C177)=0,\"\",INDEX(CNTR_IOProcAndPrec,MATCH(C177,INDEX(CNTR_IOSupplyChain,MATCH(D159,CNTR_IOProcAndPrec,0),),0))))","v":""},null,"",{"$f":"IF(D177=\"\",\"\",INDEX(CNTR_Matrix_Inv,MATCH(D159,CNTR_IOProcAndPrec,0),MATCH(D177,CNTR_IOProcAndPrec,0)))","v":""},{"$f":"IF(D177=\"\",\"\",IF(AG177,INDEX(E_PurchPrec!U:U,MATCH(CONST_PurchPrecDefaultUsed&D177,E_PurchPrec!R:R,0)),CONST_NA))","v":""},{"$f":"IF($D177=\"\",\"\",SUM($G177)*SUM(INDEX(InputOutput!$AJ$71:$AJ$100,MATCH($D177,InputOutput!$D$71:$D$100,0))))","v":""},{"$f":"IF($D177=\"\",\"\",SUM($G177)*SUM(INDEX(InputOutput!$AL$71:$AL$100,MATCH($D177,InputOutput!$D$71:$D$100,0))))","v":""},"",{"$f":"IF(D177=\"\",\"\",SUM(I177)*SUM(AD162))","v":""},{"$f":"IF(D177=\"\",\"\",SUM(J177)*SUM(AD162))","v":""},"",{"$f":"IF(AG177,INDEX(E_PurchPrec!U:U,MATCH(CONST_CNTR_ElecEFMethod&D177,E_PurchPrec!R:R,0)),INDEX(D_Processes!T:T,MATCH(CONST_CNTR_ElecEFMethod&D177,D_Processes!R:R,0)))","v":""},null,{"$f":"IF(D177=\"\",\"\",IF(AG177,INDEX(A_InstData!$F$101:$F$120,MATCH(D177,CNTR_List_ExistPurchPrecNames,0)),\"\"))","v":""},{"$f":"IF($D177=\"\",\"\",SUM($G177)*SUM(INDEX(F_Tools!$T$100:$T$129,MATCH($D177,F_Tools!$E$100:$E$129,0))))","v":""},{"$f":"IF($D177=\"\",\"\",SUM($G177)*SUM(INDEX(F_Tools!$U$100:$U$129,MATCH($D177,F_Tools!$E$100:$E$129,0))))","v":""},{"$nulls":8},{"$f":"CONST_PrecursorToGoodInput&D177&\"_\"&D159","v":"PrecToGood__"},null,{"$f":"SUMIF(D_Processes!R:R,AB177,D_Processes!K:K)","v":0},{"$f":"SUMIF(D_Processes!R:R,CONST_CNTR_TotProd&D177,D_Processes!L:L)","v":0},null,false]
[null,null,16,{"$f":"IF(D159=\"\",\"\",IF(COUNTIF(INDEX(CNTR_IOSupplyChain,MATCH(D159,CNTR_IOProcAndPrec,0),),C178)=0,\"\",INDEX(CNTR_IOProcAndPrec,MATCH(C178,INDEX(CNTR_IOSupplyChain,MATCH(D159,CNTR_IOProcAndPrec,0),),0))))","v":""},null,"",{"$f":"IF(D178=\"\",\"\",INDEX(CNTR_Matrix_Inv,MATCH(D159,CNTR_IOProcAndPrec,0),MATCH(D178,CNTR_IOProcAndPrec,0)))","v":""},{"$f":"IF(D178=\"\",\"\",IF(AG178,INDEX(E_PurchPrec!U:U,MATCH(CONST_PurchPrecDefaultUsed&D178,E_PurchPrec!R:R,0)),CONST_NA))","v":""},{"$f":"IF($D178=\"\",\"\",SUM($G178)*SUM(INDEX(InputOutput!$AJ$71:$AJ$100,MATCH($D178,InputOutput!$D$71:$D$100,0))))","v":""},{"$f":"IF($D178=\"\",\"\",SUM($G178)*SUM(INDEX(InputOutput!$AL$71:$AL$100,MATCH($D178,InputOutput!$D$71:$D$100,0))))","v":""},"",{"$f":"IF(D178=\"\",\"\",SUM(I178)*SUM(AD162))","v":""},{"$f":"IF(D178=\"\",\"\",SUM(J178)*SUM(AD162))","v":""},"",{"$f":"IF(AG178,INDEX(E_PurchPrec!U:U,MATCH(CONST_CNTR_ElecEFMethod&D178,E_PurchPrec!R:R,0)),INDEX(D_Processes!T:T,MATCH(CONST_CNTR_ElecEFMethod&D178,D_Processes!R:R,0)))","v":""},null,{"$f":"IF(D178=\"\",\"\",IF(AG178,INDEX(A_InstData!$F$101:$F$120,MATCH(D178,CNTR_List_ExistPurchPrecNames,0)),\"\"))","v":""},{"$f":"IF($D178=\"\",\"\",SUM($G178)*SUM(INDEX(F_Tools!$T$100:$T$129,MATCH($D178,F_Tools!$E$100:$E$129,0))))","v":""},{"$f":"IF($D178=\"\",\"\",SUM($G178)*SUM(INDEX(F_Tools!$U$100:$U$129,MATCH($D178,F_Tools!$E$100:$E$129,0))))","v":""},{"$nulls":8},{"$f":"CONST_PrecursorToGoodInput&D178&\"_\"&D159","v":"PrecToGood__"},null,{"$f":"SUMIF(D_Processes!R:R,AB178,D_Processes!K:K)","v":0},{"$f":"SUMIF(D_Processes!R:R,CONST_CNTR_TotProd&D178,D_Processes!L:L)","v":0},null,false]
[null,null,17,{"$f":"IF(D159=\"\",\"\",IF(COUNTIF(INDEX(CNTR_IOSupplyChain,MATCH(D159,CNTR_IOProcAndPrec,0),),C179)=0,\"\",INDEX(CNTR_IOProcAndPrec,MATCH(C179,INDEX(CNTR_IOSupplyChain,MATCH(D159,CNTR_IOProcAndPrec,0),),0))))","v":""},null,"",{"$f":"IF(D179=\"\",\"\",INDEX(CNTR_Matrix_Inv,MATCH(D159,CNTR_IOProcAndPrec,0),MATCH(D179,CNTR_IOProcAndPrec,0)))","v":""},{"$f":"IF(D179=\"\",\"\",IF(AG179,INDEX(E_PurchPrec!U:U,MATCH(CONST_PurchPrecDefaultUsed&D179,E_PurchPrec!R:R,0)),CONST_NA))","v":""},{"$f":"IF($D179=\"\",\"\",SUM($G179)*SUM(INDEX(InputOutput!$AJ$71:$AJ$100,MATCH($D179,InputOutput!$D$71:$D$100,0))))","v":""},{"$f":"IF($D179=\"\",\"\",SUM($G179)*SUM(INDEX(InputOutput!$AL$71:$AL$100,MATCH($D179,InputOutput!$D$71:$D$100,0))))","v":""},"",{"$f":"IF(D179=\"\",\"\",SUM(I179)*SUM(AD162))","v":""},{"$f":"IF(D179=\"\",\"\",SUM(J179)*SUM(AD162))","v":""},"",{"$f":"IF(AG179,INDEX(E_PurchPrec!U:U,MATCH(CONST_CNTR_ElecEFMethod&D179,E_PurchPrec!R:R,0)),INDEX(D_Processes!T:T,MATCH(CONST_CNTR_ElecEFMethod&D179,D_Processes!R:R,0)))","v":""},null,{"$f":"IF(D179=\"\",\"\",IF(AG179,INDEX(A_InstData!$F$101:$F$120,MATCH(D179,CNTR_List_ExistPurchPrecNames,0)),\"\"))","v":""},{"$f":"IF($D179=\"\",\"\",SUM($G179)*SUM(INDEX(F_Tools!$T$100:$T$129,MATCH($D179,F_Tools!$E$100:$E$129,0))))","v":""},{"$f":"IF($D179=\"\",\"\",SUM($G179)*SUM(INDEX(F_Tools!$U$100:$U$129,MATCH($D179,F_Tools!$E$100:$E$129,0))))","v":""},{"$nulls":8},{"$f":"CONST_PrecursorToGoodInput&D179&\"_\"&D159","v":"PrecToGood__"},null,{"$f":"SUMIF(D_Processes!R:R,AB179,D_Processes!K:K)","v":0},{"$f":"SUMIF(D_Processes!R:R,CONST_CNTR_TotProd&D179,D_Processes!L:L)","v":0},null,false]
[null,null,18,{"$f":"IF(D159=\"\",\"\",IF(COUNTIF(INDEX(CNTR_IOSupplyChain,MATCH(D159,CNTR_IOProcAndPrec,0),),C180)=0,\"\",INDEX(CNTR_IOProcAndPrec,MATCH(C180,INDEX(CNTR_IOSupplyChain,MATCH(D159,CNTR_IOProcAndPrec,0),),0))))","v":""},null,"",{"$f":"IF(D180=\"\",\"\",INDEX(CNTR_Matrix_Inv,MATCH(D159,CNTR_IOProcAndPrec,0),MATCH(D180,CNTR_IOProcAndPrec,0)))","v":""},{"$f":"IF(D180=\"\",\"\",IF(AG180,INDEX(E_PurchPrec!U:U,MATCH(CONST_PurchPrecDefaultUsed&D180,E_PurchPrec!R:R,0)),CONST_NA))","v":""},{"$f":"IF($D180=\"\",\"\",SUM($G180)*SUM(INDEX(InputOutput!$AJ$71:$AJ$100,MATCH($D180,InputOutput!$D$71:$D$100,0))))","v":""},{"$f":"IF($D180=\"\",\"\",SUM($G180)*SUM(INDEX(InputOutput!$AL$71:$AL$100,MATCH($D180,InputOutput!$D$71:$D$100,0))))","v":""},"",{"$f":"IF(D180=\"\",\"\",SUM(I180)*SUM(AD162))","v":""},{"$f":"IF(D180=\"\",\"\",SUM(J180)*SUM(AD162))","v":""},"",{"$f":"IF(AG180,INDEX(E_PurchPrec!U:U,MATCH(CONST_CNTR_ElecEFMethod&D180,E_PurchPrec!R:R,0)),INDEX(D_Processes!T:T,MATCH(CONST_CNTR_ElecEFMethod&D180,D_Processes!R:R,0)))","v":""},null,{"$f":"IF(D180=\"\",\"\",IF(AG180,INDEX(A_InstData!$F$101:$F$120,MATCH(D180,CNTR_List_ExistPurchPrecNames,0)),\"\"))","v":""},{"$f":"IF($D180=\"\",\"\",SUM($G180)*SUM(INDEX(F_Tools!$T$100:$T$129,MATCH($D180,F_Tools!$E$100:$E$129,0))))","v":""},{"$f":"IF($D180=\"\",\"\",SUM($G180)*SUM(INDEX(F_Tools!$U$100:$U$129,MATCH($D180,F_Tools!$E$100:$E$129,0))))","v":""},{"$nulls":8},{"$f":"CONST_PrecursorToGoodInput&D180&\"_\"&D159","v":"PrecToGood__"},null,{"$f":"SUMIF(D_Processes!R:R,AB180,D_Processes!K:K)","v":0},{"$f":"SUMIF(D_Processes!R:R,CONST_CNTR_TotProd&D180,D_Processes!L:L)","v":0},null,false]
[null,null,19,{"$f":"IF(D159=\"\",\"\",IF(COUNTIF(INDEX(CNTR_IOSupplyChain,MATCH(D159,CNTR_IOProcAndPrec,0),),C181)=0,\"\",INDEX(CNTR_IOProcAndPrec,MATCH(C181,INDEX(CNTR_IOSupplyChain,MATCH(D159,CNTR_IOProcAndPrec,0),),0))))","v":""},null,"",{"$f":"IF(D181=\"\",\"\",INDEX(CNTR_Matrix_Inv,MATCH(D159,CNTR_IOProcAndPrec,0),MATCH(D181,CNTR_IOProcAndPrec,0)))","v":""},{"$f":"IF(D181=\"\",\"\",IF(AG181,INDEX(E_PurchPrec!U:U,MATCH(CONST_PurchPrecDefaultUsed&D181,E_PurchPrec!R:R,0)),CONST_NA))","v":""},{"$f":"IF($D181=\"\",\"\",SUM($G181)*SUM(INDEX(InputOutput!$AJ$71:$AJ$100,MATCH($D181,InputOutput!$D$71:$D$100,0))))","v":""},{"$f":"IF($D181=\"\",\"\",SUM($G181)*SUM(INDEX(InputOutput!$AL$71:$AL$100,MATCH($D181,InputOutput!$D$71:$D$100,0))))","v":""},"",{"$f":"IF(D181=\"\",\"\",SUM(I181)*SUM(AD162))","v":""},{"$f":"IF(D181=\"\",\"\",SUM(J181)*SUM(AD162))","v":""},"",{"$f":"IF(AG181,INDEX(E_PurchPrec!U:U,MATCH(CONST_CNTR_ElecEFMethod&D181,E_PurchPrec!R:R,0)),INDEX(D_Processes!T:T,MATCH(CONST_CNTR_ElecEFMethod&D181,D_Processes!R:R,0)))","v":""},null,{"$f":"IF(D181=\"\",\"\",IF(AG181,INDEX(A_InstData!$F$101:$F$120,MATCH(D181,CNTR_List_ExistPurchPrecNames,0)),\"\"))","v":""},{"$f":"IF($D181=\"\",\"\",SUM($G181)*SUM(INDEX(F_Tools!$T$100:$T$129,MATCH($D181,F_Tools!$E$100:$E$129,0))))","v":""},{"$f":"IF($D181=\"\",\"\",SUM($G181)*SUM(INDEX(F_Tools!$U$100:$U$129,MATCH($D181,F_Tools!$E$100:$E$129,0))))","v":""},{"$nulls":8},{"$f":"CONST_PrecursorToGoodInput&D181&\"_\"&D159","v":"PrecToGood__"},null,{"$f":"SUMIF(D_Processes!R:R,AB181,D_Processes!K:K)","v":0},{"$f":"SUMIF(D_Processes!R:R,CONST_CNTR_TotProd&D181,D_Processes!L:L)","v":0},null,false]
[null,null,20,{"$f":"IF(D159=\"\",\"\",IF(COUNTIF(INDEX(CNTR_IOSupplyChain,MATCH(D159,CNTR_IOProcAndPrec,0),),C182)=0,\"\",INDEX(CNTR_IOProcAndPrec,MATCH(C182,INDEX(CNTR_IOSupplyChain,MATCH(D159,CNTR_IOProcAndPrec,0),),0))))","v":""},null,"",{"$f":"IF(D182=\"\",\"\",INDEX(CNTR_Matrix_Inv,MATCH(D159,CNTR_IOProcAndPrec,0),MATCH(D182,CNTR_IOProcAndPrec,0)))","v":""},{"$f":"IF(D182=\"\",\"\",IF(AG182,INDEX(E_PurchPrec!U:U,MATCH(CONST_PurchPrecDefaultUsed&D182,E_PurchPrec!R:R,0)),CONST_NA))","v":""},{"$f":"IF($D182=\"\",\"\",SUM($G182)*SUM(INDEX(InputOutput!$AJ$71:$AJ$100,MATCH($D182,InputOutput!$D$71:$D$100,0))))","v":""},{"$f":"IF($D182=\"\",\"\",SUM($G182)*SUM(INDEX(InputOutput!$AL$71:$AL$100,MATCH($D182,InputOutput!$D$71:$D$100,0))))","v":""},"",{"$f":"IF(D182=\"\",\"\",SUM(I182)*SUM(AD162))","v":""},{"$f":"IF(D182=\"\",\"\",SUM(J182)*SUM(AD162))","v":""},"",{"$f":"IF(AG182,INDEX(E_PurchPrec!U:U,MATCH(CONST_CNTR_ElecEFMethod&D182,E_PurchPrec!R:R,0)),INDEX(D_Processes!T:T,MATCH(CONST_CNTR_ElecEFMethod&D182,D_Processes!R:R,0)))","v":""},null,{"$f":"IF(D182=\"\",\"\",IF(AG182,INDEX(A_InstData!$F$101:$F$120,MATCH(D182,CNTR_List_ExistPurchPrecNames,0)),\"\"))","v":""},{"$f":"IF($D182=\"\",\"\",SUM($G182)*SUM(INDEX(F_Tools!$T$100:$T$129,MATCH($D182,F_Tools!$E$100:$E$129,0))))","v":""},{"$f":"IF($D182=\"\",\"\",SUM($G182)*SUM(INDEX(F_Tools!$U$100:$U$129,MATCH($D182,F_Tools!$E$100:$E$129,0))))","v":""},{"$nulls":8},{"$f":"CONST_PrecursorToGoodInput&D182&\"_\"&D159","v":"PrecToGood__"},null,{"$f":"SUMIF(D_Processes!R:R,AB182,D_Processes!K:K)","v":0},{"$f":"SUMIF(D_Processes!R:R,CONST_CNTR_TotProd&D182,D_Processes!L:L)","v":0},null,false]
[null,null,21,{"$f":"IF(D159=\"\",\"\",IF(COUNTIF(INDEX(CNTR_IOSupplyChain,MATCH(D159,CNTR_IOProcAndPrec,0),),C183)=0,\"\",INDEX(CNTR_IOProcAndPrec,MATCH(C183,INDEX(CNTR_IOSupplyChain,MATCH(D159,CNTR_IOProcAndPrec,0),),0))))","v":""},null,"",{"$f":"IF(D183=\"\",\"\",INDEX(CNTR_Matrix_Inv,MATCH(D159,CNTR_IOProcAndPrec,0),MATCH(D183,CNTR_IOProcAndPrec,0)))","v":""},{"$f":"IF(D183=\"\",\"\",IF(AG183,INDEX(E_PurchPrec!U:U,MATCH(CONST_PurchPrecDefaultUsed&D183,E_PurchPrec!R:R,0)),CONST_NA))","v":""},{"$f":"IF($D183=\"\",\"\",SUM($G183)*SUM(INDEX(InputOutput!$AJ$71:$AJ$100,MATCH($D183,InputOutput!$D$71:$D$100,0))))","v":""},{"$f":"IF($D183=\"\",\"\",SUM($G183)*SUM(INDEX(InputOutput!$AL$71:$AL$100,MATCH($D183,InputOutput!$D$71:$D$100,0))))","v":""},"",{"$f":"IF(D183=\"\",\"\",SUM(I183)*SUM(AD162))","v":""},{"$f":"IF(D183=\"\",\"\",SUM(J183)*SUM(AD162))","v":""},"",{"$f":"IF(AG183,INDEX(E_PurchPrec!U:U,MATCH(CONST_CNTR_ElecEFMethod&D183,E_PurchPrec!R:R,0)),INDEX(D_Processes!T:T,MATCH(CONST_CNTR_ElecEFMethod&D183,D_Processes!R:R,0)))","v":""},null,{"$f":"IF(D183=\"\",\"\",IF(AG183,INDEX(A_InstData!$F$101:$F$120,MATCH(D183,CNTR_List_ExistPurchPrecNames,0)),\"\"))","v":""},{"$f":"IF($D183=\"\",\"\",SUM($G183)*SUM(INDEX(F_Tools!$T$100:$T$129,MATCH($D183,F_Tools!$E$100:$E$129,0))))","v":""},{"$f":"IF($D183=\"\",\"\",SUM($G183)*SUM(INDEX(F_Tools!$U$100:$U$129,MATCH($D183,F_Tools!$E$100:$E$129,0))))","v":""},{"$nulls":8},{"$f":"CONST_PrecursorToGoodInput&D183&\"_\"&D159","v":"PrecToGood__"},null,{"$f":"SUMIF(D_Processes!R:R,AB183,D_Processes!K:K)","v":0},{"$f":"SUMIF(D_Processes!R:R,CONST_CNTR_TotProd&D183,D_Processes!L:L)","v":0},null,false]
[null,null,22,{"$f":"IF(D159=\"\",\"\",IF(COUNTIF(INDEX(CNTR_IOSupplyChain,MATCH(D159,CNTR_IOProcAndPrec,0),),C184)=0,\"\",INDEX(CNTR_IOProcAndPrec,MATCH(C184,INDEX(CNTR_IOSupplyChain,MATCH(D159,CNTR_IOProcAndPrec,0),),0))))","v":""},null,"",{"$f":"IF(D184=\"\",\"\",INDEX(CNTR_Matrix_Inv,MATCH(D159,CNTR_IOProcAndPrec,0),MATCH(D184,CNTR_IOProcAndPrec,0)))","v":""},{"$f":"IF(D184=\"\",\"\",IF(AG184,INDEX(E_PurchPrec!U:U,MATCH(CONST_PurchPrecDefaultUsed&D184,E_PurchPrec!R:R,0)),CONST_NA))","v":""},{"$f":"IF($D184=\"\",\"\",SUM($G184)*SUM(INDEX(InputOutput!$AJ$71:$AJ$100,MATCH($D184,InputOutput!$D$71:$D$100,0))))","v":""},{"$f":"IF($D184=\"\",\"\",SUM($G184)*SUM(INDEX(InputOutput!$AL$71:$AL$100,MATCH($D184,InputOutput!$D$71:$D$100,0))))","v":""},"",{"$f":"IF(D184=\"\",\"\",SUM(I184)*SUM(AD162))","v":""},{"$f":"IF(D184=\"\",\"\",SUM(J184)*SUM(AD162))","v":""},"",{"$f":"IF(AG184,INDEX(E_PurchPrec!U:U,MATCH(CONST_CNTR_ElecEFMethod&D184,E_PurchPrec!R:R,0)),INDEX(D_Processes!T:T,MATCH(CONST_CNTR_ElecEFMethod&D184,D_Processes!R:R,0)))","v":""},null,{"$f":"IF(D184=\"\",\"\",IF(AG184,INDEX(A_InstData!$F$101:$F$120,MATCH(D184,CNTR_List_ExistPurchPrecNames,0)),\"\"))","v":""},{"$f":"IF($D184=\"\",\"\",SUM($G184)*SUM(INDEX(F_Tools!$T$100:$T$129,MATCH($D184,F_Tools!$E$100:$E$129,0))))","v":""},{"$f":"IF($D184=\"\",\"\",SUM($G184)*SUM(INDEX(F_Tools!$U$100:$U$129,MATCH($D184,F_Tools!$E$100:$E$129,0))))","v":""},{"$nulls":8},{"$f":"CONST_PrecursorToGoodInput&D184&\"_\"&D159","v":"PrecToGood__"},null,{"$f":"SUMIF(D_Processes!R:R,AB184,D_Processes!K:K)","v":0},{"$f":"SUMIF(D_Processes!R:R,CONST_CNTR_TotProd&D184,D_Processes!L:L)","v":0},null,false]
[null,null,23,{"$f":"IF(D159=\"\",\"\",IF(COUNTIF(INDEX(CNTR_IOSupplyChain,MATCH(D159,CNTR_IOProcAndPrec,0),),C185)=0,\"\",INDEX(CNTR_IOProcAndPrec,MATCH(C185,INDEX(CNTR_IOSupplyChain,MATCH(D159,CNTR_IOProcAndPrec,0),),0))))","v":""},null,"",{"$f":"IF(D185=\"\",\"\",INDEX(CNTR_Matrix_Inv,MATCH(D159,CNTR_IOProcAndPrec,0),MATCH(D185,CNTR_IOProcAndPrec,0)))","v":""},{"$f":"IF(D185=\"\",\"\",IF(AG185,INDEX(E_PurchPrec!U:U,MATCH(CONST_PurchPrecDefaultUsed&D185,E_PurchPrec!R:R,0)),CONST_NA))","v":""},{"$f":"IF($D185=\"\",\"\",SUM($G185)*SUM(INDEX(InputOutput!$AJ$71:$AJ$100,MATCH($D185,InputOutput!$D$71:$D$100,0))))","v":""},{"$f":"IF($D185=\"\",\"\",SUM($G185)*SUM(INDEX(InputOutput!$AL$71:$AL$100,MATCH($D185,InputOutput!$D$71:$D$100,0))))","v":""},"",{"$f":"IF(D185=\"\",\"\",SUM(I185)*SUM(AD162))","v":""},{"$f":"IF(D185=\"\",\"\",SUM(J185)*SUM(AD162))","v":""},"",{"$f":"IF(AG185,INDEX(E_PurchPrec!U:U,MATCH(CONST_CNTR_ElecEFMethod&D185,E_PurchPrec!R:R,0)),INDEX(D_Processes!T:T,MATCH(CONST_CNTR_ElecEFMethod&D185,D_Processes!R:R,0)))","v":""},null,{"$f":"IF(D185=\"\",\"\",IF(AG185,INDEX(A_InstData!$F$101:$F$120,MATCH(D185,CNTR_List_ExistPurchPrecNames,0)),\"\"))","v":""},{"$f":"IF($D185=\"\",\"\",SUM($G185)*SUM(INDEX(F_Tools!$T$100:$T$129,MATCH($D185,F_Tools!$E$100:$E$129,0))))","v":""},{"$f":"IF($D185=\"\",\"\",SUM($G185)*SUM(INDEX(F_Tools!$U$100:$U$129,MATCH($D185,F_Tools!$E$100:$E$129,0))))","v":""},{"$nulls":8},{"$f":"CONST_PrecursorToGoodInput&D185&\"_\"&D159","v":"PrecToGood__"},null,{"$f":"SUMIF(D_Processes!R:R,AB185,D_Processes!K:K)","v":0},{"$f":"SUMIF(D_Processes!R:R,CONST_CNTR_TotProd&D185,D_Processes!L:L)","v":0},null,false]
[null,null,24,{"$f":"IF(D159=\"\",\"\",IF(COUNTIF(INDEX(CNTR_IOSupplyChain,MATCH(D159,CNTR_IOProcAndPrec,0),),C186)=0,\"\",INDEX(CNTR_IOProcAndPrec,MATCH(C186,INDEX(CNTR_IOSupplyChain,MATCH(D159,CNTR_IOProcAndPrec,0),),0))))","v":""},null,"",{"$f":"IF(D186=\"\",\"\",INDEX(CNTR_Matrix_Inv,MATCH(D159,CNTR_IOProcAndPrec,0),MATCH(D186,CNTR_IOProcAndPrec,0)))","v":""},{"$f":"IF(D186=\"\",\"\",IF(AG186,INDEX(E_PurchPrec!U:U,MATCH(CONST_PurchPrecDefaultUsed&D186,E_PurchPrec!R:R,0)),CONST_NA))","v":""},{"$f":"IF($D186=\"\",\"\",SUM($G186)*SUM(INDEX(InputOutput!$AJ$71:$AJ$100,MATCH($D186,InputOutput!$D$71:$D$100,0))))","v":""},{"$f":"IF($D186=\"\",\"\",SUM($G186)*SUM(INDEX(InputOutput!$AL$71:$AL$100,MATCH($D186,InputOutput!$D$71:$D$100,0))))","v":""},"",{"$f":"IF(D186=\"\",\"\",SUM(I186)*SUM(AD162))","v":""},{"$f":"IF(D186=\"\",\"\",SUM(J186)*SUM(AD162))","v":""},"",{"$f":"IF(AG186,INDEX(E_PurchPrec!U:U,MATCH(CONST_CNTR_ElecEFMethod&D186,E_PurchPrec!R:R,0)),INDEX(D_Processes!T:T,MATCH(CONST_CNTR_ElecEFMethod&D186,D_Processes!R:R,0)))","v":""},null,{"$f":"IF(D186=\"\",\"\",IF(AG186,INDEX(A_InstData!$F$101:$F$120,MATCH(D186,CNTR_List_ExistPurchPrecNames,0)),\"\"))","v":""},{"$f":"IF($D186=\"\",\"\",SUM($G186)*SUM(INDEX(F_Tools!$T$100:$T$129,MATCH($D186,F_Tools!$E$100:$E$129,0))))","v":""},{"$f":"IF($D186=\"\",\"\",SUM($G186)*SUM(INDEX(F_Tools!$U$100:$U$129,MATCH($D186,F_Tools!$E$100:$E$129,0))))","v":""},{"$nulls":8},{"$f":"CONST_PrecursorToGoodInput&D186&\"_\"&D159","v":"PrecToGood__"},null,{"$f":"SUMIF(D_Processes!R:R,AB186,D_Processes!K:K)","v":0},{"$f":"SUMIF(D_Processes!R:R,CONST_CNTR_TotProd&D186,D_Processes!L:L)","v":0},null,false]
[null,null,25,{"$f":"IF(D159=\"\",\"\",IF(COUNTIF(INDEX(CNTR_IOSupplyChain,MATCH(D159,CNTR_IOProcAndPrec,0),),C187)=0,\"\",INDEX(CNTR_IOProcAndPrec,MATCH(C187,INDEX(CNTR_IOSupplyChain,MATCH(D159,CNTR_IOProcAndPrec,0),),0))))","v":""},null,"",{"$f":"IF(D187=\"\",\"\",INDEX(CNTR_Matrix_Inv,MATCH(D159,CNTR_IOProcAndPrec,0),MATCH(D187,CNTR_IOProcAndPrec,0)))","v":""},{"$f":"IF(D187=\"\",\"\",IF(AG187,INDEX(E_PurchPrec!U:U,MATCH(CONST_PurchPrecDefaultUsed&D187,E_PurchPrec!R:R,0)),CONST_NA))","v":""},{"$f":"IF($D187=\"\",\"\",SUM($G187)*SUM(INDEX(InputOutput!$AJ$71:$AJ$100,MATCH($D187,InputOutput!$D$71:$D$100,0))))","v":""},{"$f":"IF($D187=\"\",\"\",SUM($G187)*SUM(INDEX(InputOutput!$AL$71:$AL$100,MATCH($D187,InputOutput!$D$71:$D$100,0))))","v":""},"",{"$f":"IF(D187=\"\",\"\",SUM(I187)*SUM(AD162))","v":""},{"$f":"IF(D187=\"\",\"\",SUM(J187)*SUM(AD162))","v":""},"",{"$f":"IF(AG187,INDEX(E_PurchPrec!U:U,MATCH(CONST_CNTR_ElecEFMethod&D187,E_PurchPrec!R:R,0)),INDEX(D_Processes!T:T,MATCH(CONST_CNTR_ElecEFMethod&D187,D_Processes!R:R,0)))","v":""},null,{"$f":"IF(D187=\"\",\"\",IF(AG187,INDEX(A_InstData!$F$101:$F$120,MATCH(D187,CNTR_List_ExistPurchPrecNames,0)),\"\"))","v":""},{"$f":"IF($D187=\"\",\"\",SUM($G187)*SUM(INDEX(F_Tools!$T$100:$T$129,MATCH($D187,F_Tools!$E$100:$E$129,0))))","v":""},{"$f":"IF($D187=\"\",\"\",SUM($G187)*SUM(INDEX(F_Tools!$U$100:$U$129,MATCH($D187,F_Tools!$E$100:$E$129,0))))","v":""},{"$nulls":8},{"$f":"CONST_PrecursorToGoodInput&D187&\"_\"&D159","v":"PrecToGood__"},null,{"$f":"SUMIF(D_Processes!R:R,AB187,D_Processes!K:K)","v":0},{"$f":"SUMIF(D_Processes!R:R,CONST_CNTR_TotProd&D187,D_Processes!L:L)","v":0},null,false]
[null,null,26,{"$f":"IF(D159=\"\",\"\",IF(COUNTIF(INDEX(CNTR_IOSupplyChain,MATCH(D159,CNTR_IOProcAndPrec,0),),C188)=0,\"\",INDEX(CNTR_IOProcAndPrec,MATCH(C188,INDEX(CNTR_IOSupplyChain,MATCH(D159,CNTR_IOProcAndPrec,0),),0))))","v":""},null,"",{"$f":"IF(D188=\"\",\"\",INDEX(CNTR_Matrix_Inv,MATCH(D159,CNTR_IOProcAndPrec,0),MATCH(D188,CNTR_IOProcAndPrec,0)))","v":""},{"$f":"IF(D188=\"\",\"\",IF(AG188,INDEX(E_PurchPrec!U:U,MATCH(CONST_PurchPrecDefaultUsed&D188,E_PurchPrec!R:R,0)),CONST_NA))","v":""},{"$f":"IF($D188=\"\",\"\",SUM($G188)*SUM(INDEX(InputOutput!$AJ$71:$AJ$100,MATCH($D188,InputOutput!$D$71:$D$100,0))))","v":""},{"$f":"IF($D188=\"\",\"\",SUM($G188)*SUM(INDEX(InputOutput!$AL$71:$AL$100,MATCH($D188,InputOutput!$D$71:$D$100,0))))","v":""},"",{"$f":"IF(D188=\"\",\"\",SUM(I188)*SUM(AD162))","v":""},{"$f":"IF(D188=\"\",\"\",SUM(J188)*SUM(AD162))","v":""},"",{"$f":"IF(AG188,INDEX(E_PurchPrec!U:U,MATCH(CONST_CNTR_ElecEFMethod&D188,E_PurchPrec!R:R,0)),INDEX(D_Processes!T:T,MATCH(CONST_CNTR_ElecEFMethod&D188,D_Processes!R:R,0)))","v":""},null,{"$f":"IF(D188=\"\",\"\",IF(AG188,INDEX(A_InstData!$F$101:$F$120,MATCH(D188,CNTR_List_ExistPurchPrecNames,0)),\"\"))","v":""},{"$f":"IF($D188=\"\",\"\",SUM($G188)*SUM(INDEX(F_Tools!$T$100:$T$129,MATCH($D188,F_Tools!$E$100:$E$129,0))))","v":""},{"$f":"IF($D188=\"\",\"\",SUM($G188)*SUM(INDEX(F_Tools!$U$100:$U$129,MATCH($D188,F_Tools!$E$100:$E$129,0))))","v":""},{"$nulls":8},{"$f":"CONST_PrecursorToGoodInput&D188&\"_\"&D159","v":"PrecToGood__"},null,{"$f":"SUMIF(D_Processes!R:R,AB188,D_Processes!K:K)","v":0},{"$f":"SUMIF(D_Processes!R:R,CONST_CNTR_TotProd&D188,D_Processes!L:L)","v":0},null,false]
[null,null,27,{"$f":"IF(D159=\"\",\"\",IF(COUNTIF(INDEX(CNTR_IOSupplyChain,MATCH(D159,CNTR_IOProcAndPrec,0),),C189)=0,\"\",INDEX(CNTR_IOProcAndPrec,MATCH(C189,INDEX(CNTR_IOSupplyChain,MATCH(D159,CNTR_IOProcAndPrec,0),),0))))","v":""},null,"",{"$f":"IF(D189=\"\",\"\",INDEX(CNTR_Matrix_Inv,MATCH(D159,CNTR_IOProcAndPrec,0),MATCH(D189,CNTR_IOProcAndPrec,0)))","v":""},{"$f":"IF(D189=\"\",\"\",IF(AG189,INDEX(E_PurchPrec!U:U,MATCH(CONST_PurchPrecDefaultUsed&D189,E_PurchPrec!R:R,0)),CONST_NA))","v":""},{"$f":"IF($D189=\"\",\"\",SUM($G189)*SUM(INDEX(InputOutput!$AJ$71:$AJ$100,MATCH($D189,InputOutput!$D$71:$D$100,0))))","v":""},{"$f":"IF($D189=\"\",\"\",SUM($G189)*SUM(INDEX(InputOutput!$AL$71:$AL$100,MATCH($D189,InputOutput!$D$71:$D$100,0))))","v":""},"",{"$f":"IF(D189=\"\",\"\",SUM(I189)*SUM(AD162))","v":""},{"$f":"IF(D189=\"\",\"\",SUM(J189)*SUM(AD162))","v":""},"",{"$f":"IF(AG189,INDEX(E_PurchPrec!U:U,MATCH(CONST_CNTR_ElecEFMethod&D189,E_PurchPrec!R:R,0)),INDEX(D_Processes!T:T,MATCH(CONST_CNTR_ElecEFMethod&D189,D_Processes!R:R,0)))","v":""},null,{"$f":"IF(D189=\"\",\"\",IF(AG189,INDEX(A_InstData!$F$101:$F$120,MATCH(D189,CNTR_List_ExistPurchPrecNames,0)),\"\"))","v":""},{"$f":"IF($D189=\"\",\"\",SUM($G189)*SUM(INDEX(F_Tools!$T$100:$T$129,MATCH($D189,F_Tools!$E$100:$E$129,0))))","v":""},{"$f":"IF($D189=\"\",\"\",SUM($G189)*SUM(INDEX(F_Tools!$U$100:$U$129,MATCH($D189,F_Tools!$E$100:$E$129,0))))","v":""},{"$nulls":8},{"$f":"CONST_PrecursorToGoodInput&D189&\"_\"&D159","v":"PrecToGood__"},null,{"$f":"SUMIF(D_Processes!R:R,AB189,D_Processes!K:K)","v":0},{"$f":"SUMIF(D_Processes!R:R,CONST_CNTR_TotProd&D189,D_Processes!L:L)","v":0},null,false]
[null,null,28,{"$f":"IF(D159=\"\",\"\",IF(COUNTIF(INDEX(CNTR_IOSupplyChain,MATCH(D159,CNTR_IOProcAndPrec,0),),C190)=0,\"\",INDEX(CNTR_IOProcAndPrec,MATCH(C190,INDEX(CNTR_IOSupplyChain,MATCH(D159,CNTR_IOProcAndPrec,0),),0))))","v":""},null,"",{"$f":"IF(D190=\"\",\"\",INDEX(CNTR_Matrix_Inv,MATCH(D159,CNTR_IOProcAndPrec,0),MATCH(D190,CNTR_IOProcAndPrec,0)))","v":""},{"$f":"IF(D190=\"\",\"\",IF(AG190,INDEX(E_PurchPrec!U:U,MATCH(CONST_PurchPrecDefaultUsed&D190,E_PurchPrec!R:R,0)),CONST_NA))","v":""},{"$f":"IF($D190=\"\",\"\",SUM($G190)*SUM(INDEX(InputOutput!$AJ$71:$AJ$100,MATCH($D190,InputOutput!$D$71:$D$100,0))))","v":""},{"$f":"IF($D190=\"\",\"\",SUM($G190)*SUM(INDEX(InputOutput!$AL$71:$AL$100,MATCH($D190,InputOutput!$D$71:$D$100,0))))","v":""},"",{"$f":"IF(D190=\"\",\"\",SUM(I190)*SUM(AD162))","v":""},{"$f":"IF(D190=\"\",\"\",SUM(J190)*SUM(AD162))","v":""},"",{"$f":"IF(AG190,INDEX(E_PurchPrec!U:U,MATCH(CONST_CNTR_ElecEFMethod&D190,E_PurchPrec!R:R,0)),INDEX(D_Processes!T:T,MATCH(CONST_CNTR_ElecEFMethod&D190,D_Processes!R:R,0)))","v":""},null,{"$f":"IF(D190=\"\",\"\",IF(AG190,INDEX(A_InstData!$F$101:$F$120,MATCH(D190,CNTR_List_ExistPurchPrecNames,0)),\"\"))","v":""},{"$f":"IF($D190=\"\",\"\",SUM($G190)*SUM(INDEX(F_Tools!$T$100:$T$129,MATCH($D190,F_Tools!$E$100:$E$129,0))))","v":""},{"$f":"IF($D190=\"\",\"\",SUM($G190)*SUM(INDEX(F_Tools!$U$100:$U$129,MATCH($D190,F_Tools!$E$100:$E$129,0))))","v":""},{"$nulls":8},{"$f":"CONST_PrecursorToGoodInput&D190&\"_\"&D159","v":"PrecToGood__"},null,{"$f":"SUMIF(D_Processes!R:R,AB190,D_Processes!K:K)","v":0},{"$f":"SUMIF(D_Processes!R:R,CONST_CNTR_TotProd&D190,D_Processes!L:L)","v":0},null,false]
[null,null,29,{"$f":"IF(D159=\"\",\"\",IF(COUNTIF(INDEX(CNTR_IOSupplyChain,MATCH(D159,CNTR_IOProcAndPrec,0),),C191)=0,\"\",INDEX(CNTR_IOProcAndPrec,MATCH(C191,INDEX(CNTR_IOSupplyChain,MATCH(D159,CNTR_IOProcAndPrec,0),),0))))","v":""},null,"",{"$f":"IF(D191=\"\",\"\",INDEX(CNTR_Matrix_Inv,MATCH(D159,CNTR_IOProcAndPrec,0),MATCH(D191,CNTR_IOProcAndPrec,0)))","v":""},{"$f":"IF(D191=\"\",\"\",IF(AG191,INDEX(E_PurchPrec!U:U,MATCH(CONST_PurchPrecDefaultUsed&D191,E_PurchPrec!R:R,0)),CONST_NA))","v":""},{"$f":"IF($D191=\"\",\"\",SUM($G191)*SUM(INDEX(InputOutput!$AJ$71:$AJ$100,MATCH($D191,InputOutput!$D$71:$D$100,0))))","v":""},{"$f":"IF($D191=\"\",\"\",SUM($G191)*SUM(INDEX(InputOutput!$AL$71:$AL$100,MATCH($D191,InputOutput!$D$71:$D$100,0))))","v":""},"",{"$f":"IF(D191=\"\",\"\",SUM(I191)*SUM(AD162))","v":""},{"$f":"IF(D191=\"\",\"\",SUM(J191)*SUM(AD162))","v":""},"",{"$f":"IF(AG191,INDEX(E_PurchPrec!U:U,MATCH(CONST_CNTR_ElecEFMethod&D191,E_PurchPrec!R:R,0)),INDEX(D_Processes!T:T,MATCH(CONST_CNTR_ElecEFMethod&D191,D_Processes!R:R,0)))","v":""},null,{"$f":"IF(D191=\"\",\"\",IF(AG191,INDEX(A_InstData!$F$101:$F$120,MATCH(D191,CNTR_List_ExistPurchPrecNames,0)),\"\"))","v":""},{"$f":"IF($D191=\"\",\"\",SUM($G191)*SUM(INDEX(F_Tools!$T$100:$T$129,MATCH($D191,F_Tools!$E$100:$E$129,0))))","v":""},{"$f":"IF($D191=\"\",\"\",SUM($G191)*SUM(INDEX(F_Tools!$U$100:$U$129,MATCH($D191,F_Tools!$E$100:$E$129,0))))","v":""},{"$nulls":8},{"$f":"CONST_PrecursorToGoodInput&D191&\"_\"&D159","v":"PrecToGood__"},null,{"$f":"SUMIF(D_Processes!R:R,AB191,D_Processes!K:K)","v":0},{"$f":"SUMIF(D_Processes!R:R,CONST_CNTR_TotProd&D191,D_Processes!L:L)","v":0},null,false]
[null,null,30,{"$f":"IF(D159=\"\",\"\",IF(COUNTIF(INDEX(CNTR_IOSupplyChain,MATCH(D159,CNTR_IOProcAndPrec,0),),C192)=0,\"\",INDEX(CNTR_IOProcAndPrec,MATCH(C192,INDEX(CNTR_IOSupplyChain,MATCH(D159,CNTR_IOProcAndPrec,0),),0))))","v":""},null,"",{"$f":"IF(D192=\"\",\"\",INDEX(CNTR_Matrix_Inv,MATCH(D159,CNTR_IOProcAndPrec,0),MATCH(D192,CNTR_IOProcAndPrec,0)))","v":""},{"$f":"IF(D192=\"\",\"\",IF(AG192,INDEX(E_PurchPrec!U:U,MATCH(CONST_PurchPrecDefaultUsed&D192,E_PurchPrec!R:R,0)),CONST_NA))","v":""},{"$f":"IF($D192=\"\",\"\",SUM($G192)*SUM(INDEX(InputOutput!$AJ$71:$AJ$100,MATCH($D192,InputOutput!$D$71:$D$100,0))))","v":""},{"$f":"IF($D192=\"\",\"\",SUM($G192)*SUM(INDEX(InputOutput!$AL$71:$AL$100,MATCH($D192,InputOutput!$D$71:$D$100,0))))","v":""},"",{"$f":"IF(D192=\"\",\"\",SUM(I192)*SUM(AD162))","v":""},{"$f":"IF(D192=\"\",\"\",SUM(J192)*SUM(AD162))","v":""},"",{"$f":"IF(AG192,INDEX(E_PurchPrec!U:U,MATCH(CONST_CNTR_ElecEFMethod&D192,E_PurchPrec!R:R,0)),INDEX(D_Processes!T:T,MATCH(CONST_CNTR_ElecEFMethod&D192,D_Processes!R:R,0)))","v":""},null,{"$f":"IF(D192=\"\",\"\",IF(AG192,INDEX(A_InstData!$F$101:$F$120,MATCH(D192,CNTR_List_ExistPurchPrecNames,0)),\"\"))","v":""},{"$f":"IF($D192=\"\",\"\",SUM($G192)*SUM(INDEX(F_Tools!$T$100:$T$129,MATCH($D192,F_Tools!$E$100:$E$129,0))))","v":""},{"$f":"IF($D192=\"\",\"\",SUM($G192)*SUM(INDEX(F_Tools!$U$100:$U$129,MATCH($D192,F_Tools!$E$100:$E$129,0))))","v":""},{"$nulls":8},{"$f":"CONST_PrecursorToGoodInput&D192&\"_\"&D159","v":"PrecToGood__"},null,{"$f":"SUMIF(D_Processes!R:R,AB192,D_Processes!K:K)","v":0},{"$f":"SUMIF(D_Processes!R:R,CONST_CNTR_TotProd&D192,D_Processes!L:L)","v":0},null,false]
[]
[]
[null,null,{"$f":"C159+1","v":2},{"$f":"IF(INDEX(CNTR_List_ExistProdProcNames,C195)=CONST_NA,\"\",INDEX(CNTR_List_ExistProdProcNames,C195))","v":""},null,{"$f":"Translations!$B$107","v":"Aggregated goods category"},{"$f":"Translations!$B$584","v":"Mass share"},{"$f":"Translations!$B$586","v":"(Share of) Default value"},{"$f":"Translations!$B$570","v":"SEE (direct)"},{"$f":"Translations!$B$574","v":"SEE (indirect)"},{"$f":"Translations!$B$344","v":"SEE (total)"},{"$f":"Translations!$B$589","v":"EmbEm (direct)"},{"$f":"Translations!$B$591","v":"EmbEm (indirect)"},{"$f":"Translations!$B$593","v":"EmbEm (total)"},{"$f":"Translations!$B$594","v":"Source of electricity EF"},{"$f":"Translations!$B$597","v":"Specific electricity"},"Country code",{"$f":"Translations!$B$351","v":"CP due (per t or MWh)"},{"$f":"Translations!$B$352","v":"Rebate (per t or MWh)"},{"$nulls":12},{"$f":"H195","v":"(Share of) Default value"},{"$f":"H197","v":""}]
[{"$nulls":6},{"$f":"IF($F197=\"\",CONST_t,INDEX(CONST_LIST_GoodsUnit,MATCH($F197,CONST_LIST_Goods,0)))&\"/\"&IF($F197=\"\",CONST_t,INDEX(CONST_LIST_GoodsUnit,MATCH($F197,CONST_LIST_Goods,0)))","v":"t/t"},null,{"$f":"CONST_tCO2eq&\"/\"&IF($F197=\"\",CONST_t,INDEX(CONST_LIST_GoodsUnit,MATCH($F197,CONST_LIST_Goods,0)))","v":"tCO2e/t"},{"$f":"CONST_tCO2eq&\"/\"&IF($F197=\"\",CONST_t,INDEX(CONST_LIST_GoodsUnit,MATCH($F197,CONST_LIST_Goods,0)))","v":"tCO2e/t"},{"$f":"CONST_tCO2eq&\"/\"&IF($F197=\"\",CONST_t,INDEX(CONST_LIST_GoodsUnit,MATCH($F197,CONST_LIST_Goods,0)))","v":"tCO2e/t"},{"$f":"CONST_tCO2eq","v":"tCO2e"},{"$f":"CONST_tCO2eq","v":"tCO2e"},{"$f":"CONST_tCO2eq","v":"tCO2e"},null,{"$f":"CONST_MWh&\"/\"&IF($F197=\"\",CONST_t,INDEX(CONST_LIST_GoodsUnit,MATCH($F197,CONST_LIST_Goods,0)))","v":"MWh/t"}]
[{"$nulls":3},{"$f":"Translations!$B$600","v":"Total production process"},null,{"$f":"IF(D198=\"\",\"\",INDEX(CNTR_List_ExistProdProc,MATCH(D198,CNTR_List_ExistProdProcNames,0)))","v":""},"-",{"$f":"IF(D195=\"\",\"\",IFERROR(SUMIFS(I199:I228,H199:H228,TRUE)/I197,\"\"))","v":""},{"$f":"IF(COUNT(I198:I228)>0,SUM(I198:I228),\"\")","v":""},"","","","","","-",{"$f":"IF(COUNT(P198:P228)>0,SUM(P198:P228),\"\")","v":""},"-",{"$f":"IF(COUNT(R198:R228)>0,SUM(R198:R228),\"\")","v":""},{"$f":"IF(COUNT(S198:S228)>0,SUM(S198:S228),\"\")","v":""},{"$nulls":10},{"$f":"Translations!$B$601","v":"Production and consumption"},{"$f":"Translations!$B$602","v":"Total production of precursors"},null,"IsPrecursor?"]
[{"$nulls":3},{"$f":"D195","v":""},null,{"$f":"IF(D198=\"\",\"\",INDEX(CNTR_List_ExistProdProc,MATCH(D198,CNTR_List_ExistProdProcNames,0)))","v":""},{"v":1,"d":"1.000"},"-",{"$f":"IF($D198=\"\",\"\",SUM($G198)*SUM(INDEX(InputOutput!$AJ$71:$AJ$100,MATCH($D198,InputOutput!$D$71:$D$100,0))))","v":""},{"$f":"IF($D198=\"\",\"\",SUM($G198)*SUM(INDEX(InputOutput!$AL$71:$AL$100,MATCH($D198,InputOutput!$D$71:$D$100,0))))","v":""},{"$f":"IF(COUNT(I198:J198)>0,SUM(I198:J198),\"\")","v":""},{"$f":"IF(D198=\"\",\"\",SUM(I198)*SUM(AD198))","v":""},{"$f":"IF(D198=\"\",\"\",SUM(J198)*SUM(AD198))","v":""},{"$f":"IF(COUNT(L198:M198)>0,SUM(L198:M198),\"\")","v":""},{"$f":"IF(AG198,INDEX(E_PurchPrec!U:U,MATCH(CONST_CNTR_ElecEFMethod&D198,E_PurchPrec!R:R,0)),INDEX(D_Processes!T:T,MATCH(CONST_CNTR_ElecEFMethod&D198,D_Processes!R:R,0)))","v":""},{"$f":"IF(OR($D198=\"\",$AG198),\"\",SUM($G198)*SUM(INDEX(InputOutput!$AN$71:$AN$100,MATCH($D198,InputOutput!$D$71:$D$100,0))))","v":""},null,{"$f":"IF($D198=\"\",\"\",IFERROR(SUM($G198)*SUM(INDEX(F_Tools!$T$100:$T$129,MATCH($D198,F_Tools!$E$100:$E$129,0)))/K197,\"\"))","v":""},{"$f":"IF($D198=\"\",\"\",IFERROR(SUM($G198)*SUM(INDEX(F_Tools!$U$100:$U$129,MATCH($D198,F_Tools!$E$100:$E$129,0)))/K197,\"\"))","v":""},{"$nulls":8},{"$f":"CONST_CNTR_TotProd&D195","v":"TotProd_"},null,{"$f":"SUMIF(D_Processes!R:R,AB198,D_Processes!L:L)","v":0}]
[null,null,1,{"$f":"IF(D195=\"\",\"\",IF(COUNTIF(INDEX(CNTR_IOSupplyChain,MATCH(D195,CNTR_IOProcAndPrec,0),),C199)=0,\"\",INDEX(CNTR_IOProcAndPrec,MATCH(C199,INDEX(CNTR_IOSupplyChain,MATCH(D195,CNTR_IOProcAndPrec,0),),0))))","v":""},null,{"$f":"IF(D199=\"\",\"\",IF(COUNTIF(CNTR_List_ExistProdProcNames,D199)>0,INDEX(CNTR_List_ExistProdProc,MATCH(D199,CNTR_List_ExistProdProcNames,0)),INDEX(CNTR_List_ExistPurchPrec,MATCH(D199,CNTR_List_ExistPurchPrecNames,0))))","v":""},{"$f":"IF(D199=\"\",\"\",INDEX(CNTR_Matrix_Inv,MATCH(D195,CNTR_IOProcAndPrec,0),MATCH(D199,CNTR_IOProcAndPrec,0)))","v":""},{"$f":"IF(D199=\"\",\"\",IF(AG199,INDEX(E_PurchPrec!U:U,MATCH(CONST_PurchPrecDefaultUsed&D199,E_PurchPrec!R:R,0)),CONST_NA))","v":""},{"$f":"IF($D199=\"\",\"\",SUM($G199)*SUM(INDEX(InputOutput!$AJ$71:$AJ$100,MATCH($D199,InputOutput!$D$71:$D$100,0))))","v":""},{"$f":"IF($D199=\"\",\"\",SUM($G199)*SUM(INDEX(InputOutput!$AL$71:$AL$100,MATCH($D199,InputOutput!$D$71:$D$100,0))))","v":""},"",{"$f":"IF(D199=\"\",\"\",SUM(I199)*SUM(AD198))","v":""},{"$f":"IF(D199=\"\",\"\",SUM(J199)*SUM(AD198))","v":""},{"$f":"IF(COUNT(L199:M199)>0,SUM(L199:M199),\"\")","v":""},{"$f":"IF(AG199,INDEX(E_PurchPrec!U:U,MATCH(CONST_CNTR_ElecEFMethod&D199,E_PurchPrec!R:R,0)),INDEX(D_Processes!T:T,MATCH(CONST_CNTR_ElecEFMethod&D199,D_Processes!R:R,0)))","v":""},{"$f":"IF(OR($D199=\"\",$AG199),\"\",SUM($G199)*SUM(INDEX(InputOutput!$AN$71:$AN$100,MATCH($D199,InputOutput!$D$71:$D$100,0))))","v":""},{"$f":"IF(D199=\"\",\"\",IF(AG199,INDEX(A_InstData!$F$101:$F$120,MATCH(D199,CNTR_List_ExistPurchPrecNames,0)),\"\"))","v":""},{"$f":"IF($D199=\"\",\"\",IFERROR(SUM($G199)*SUM(INDEX(F_Tools!$T$100:$T$129,MATCH($D199,F_Tools!$E$100:$E$129,0)))/K197,\"\"))","v":""},{"$f":"IF($D199=\"\",\"\",IFERROR(SUM($G199)*SUM(INDEX(F_Tools!$U$100:$U$129,MATCH($D199,F_Tools!$E$100:$E$129,0)))/K197,\"\"))","v":""},{"$nulls":8},{"$f":"CONST_PrecursorToGoodInput&D199&\"_\"&D195","v":"PrecToGood__"},null,{"$f":"SUMIF(D_Processes!R:R,AB199,D_Processes!K:K)","v":0},{"$f":"SUMIF(D_Processes!R:R,CONST_CNTR_TotProd&D199,D_Processes!L:L)","v":0},null,{"$f":"COUNTIF(CNTR_List_ExistPurchPrecNames,D199)>0","v":false}]
[null,null,2,{"$f":"IF(D195=\"\",\"\",IF(COUNTIF(INDEX(CNTR_IOSupplyChain,MATCH(D195,CNTR_IOProcAndPrec,0),),C200)=0,\"\",INDEX(CNTR_IOProcAndPrec,MATCH(C200,INDEX(CNTR_IOSupplyChain,MATCH(D195,CNTR_IOProcAndPrec,0),),0))))","v":""},null,"",{"$f":"IF(D200=\"\",\"\",INDEX(CNTR_Matrix_Inv,MATCH(D195,CNTR_IOProcAndPrec,0),MATCH(D200,CNTR_IOProcAndPrec,0)))","v":""},{"$f":"IF(D200=\"\",\"\",IF(AG200,INDEX(E_PurchPrec!U:U,MATCH(CONST_PurchPrecDefaultUsed&D200,E_PurchPrec!R:R,0)),CONST_NA))","v":""},{"$f":"IF($D200=\"\",\"\",SUM($G200)*SUM(INDEX(InputOutput!$AJ$71:$AJ$100,MATCH($D200,InputOutput!$D$71:$D$100,0))))","v":""},{"$f":"IF($D200=\"\",\"\",SUM($G200)*SUM(INDEX(InputOutput!$AL$71:$AL$100,MATCH($D200,InputOutput!$D$71:$D$100,0))))","v":""},"",{"$f":"IF(D200=\"\",\"\",SUM(I200)*SUM(AD198))","v":""},{"$f":"IF(D200=\"\",\"\",SUM(J200)*SUM(AD198))","v":""},{"$f":"IF(COUNT(L200:M200)>0,SUM(L200:M200),\"\")","v":""},{"$f":"IF(AG200,INDEX(E_PurchPrec!U:U,MATCH(CONST_CNTR_ElecEFMethod&D200,E_PurchPrec!R:R,0)),INDEX(D_Processes!T:T,MATCH(CONST_CNTR_ElecEFMethod&D200,D_Processes!R:R,0)))","v":""},{"$f":"IF(OR($D200=\"\",$AG200),\"\",SUM($G200)*SUM(INDEX(InputOutput!$AN$71:$AN$100,MATCH($D200,InputOutput!$D$71:$D$100,0))))","v":""},{"$f":"IF(D200=\"\",\"\",IF(AG200,INDEX(A_InstData!$F$101:$F$120,MATCH(D200,CNTR_List_ExistPurchPrecNames,0)),\"\"))","v":""},{"$f":"IF($D200=\"\",\"\",IFERROR(SUM($G200)*SUM(INDEX(F_Tools!$T$100:$T$129,MATCH($D200,F_Tools!$E$100:$E$129,0)))/K197,\"\"))","v":""},{"$f":"IF($D200=\"\",\"\",IFERROR(SUM($G200)*SUM(INDEX(F_Tools!$U$100:$U$129,MATCH($D200,F_Tools!$E$100:$E$129,0)))/K197,\"\"))","v":""},{"$nulls":8},{"$f":"CONST_PrecursorToGoodInput&D200&\"_\"&D195","v":"PrecToGood__"},null,{"$f":"SUMIF(D_Processes!R:R,AB200,D_Processes!K:K)","v":0},{"$f":"SUMIF(D_Processes!R:R,CONST_CNTR_TotProd&D200,D_Processes!L:L)","v":0},null,false]
[null,null,3,{"$f":"IF(D195=\"\",\"\",IF(COUNTIF(INDEX(CNTR_IOSupplyChain,MATCH(D195,CNTR_IOProcAndPrec,0),),C201)=0,\"\",INDEX(CNTR_IOProcAndPrec,MATCH(C201,INDEX(CNTR_IOSupplyChain,MATCH(D195,CNTR_IOProcAndPrec,0),),0))))","v":""},null,"",{"$f":"IF(D201=\"\",\"\",INDEX(CNTR_Matrix_Inv,MATCH(D195,CNTR_IOProcAndPrec,0),MATCH(D201,CNTR_IOProcAndPrec,0)))","v":""},{"$f":"IF(D201=\"\",\"\",IF(AG201,INDEX(E_PurchPrec!U:U,MATCH(CONST_PurchPrecDefaultUsed&D201,E_PurchPrec!R:R,0)),CONST_NA))","v":""},{"$f":"IF($D201=\"\",\"\",SUM($G201)*SUM(INDEX(InputOutput!$AJ$71:$AJ$100,MATCH($D201,InputOutput!$D$71:$D$100,0))))","v":""},{"$f":"IF($D201=\"\",\"\",SUM($G201)*SUM(INDEX(InputOutput!$AL$71:$AL$100,MATCH($D201,InputOutput!$D$71:$D$100,0))))","v":""},"",{"$f":"IF(D201=\"\",\"\",SUM(I201)*SUM(AD198))","v":""},{"$f":"IF(D201=\"\",\"\",SUM(J201)*SUM(AD198))","v":""},{"$f":"IF(COUNT(L201:M201)>0,SUM(L201:M201),\"\")","v":""},{"$f":"IF(AG201,INDEX(E_PurchPrec!U:U,MATCH(CONST_CNTR_ElecEFMethod&D201,E_PurchPrec!R:R,0)),INDEX(D_Processes!T:T,MATCH(CONST_CNTR_ElecEFMethod&D201,D_Processes!R:R,0)))","v":""},{"$f":"IF(OR($D201=\"\",$AG201),\"\",SUM($G201)*SUM(INDEX(InputOutput!$AN$71:$AN$100,MATCH($D201,InputOutput!$D$71:$D$100,0))))","v":""},{"$f":"IF(D201=\"\",\"\",IF(AG201,INDEX(A_InstData!$F$101:$F$120,MATCH(D201,CNTR_List_ExistPurchPrecNames,0)),\"\"))","v":""},{"$f":"IF($D201=\"\",\"\",IFERROR(SUM($G201)*SUM(INDEX(F_Tools!$T$100:$T$129,MATCH($D201,F_Tools!$E$100:$E$129,0)))/K197,\"\"))","v":""},{"$f":"IF($D201=\"\",\"\",IFERROR(SUM($G201)*SUM(INDEX(F_Tools!$U$100:$U$129,MATCH($D201,F_Tools!$E$100:$E$129,0)))/K197,\"\"))","v":""},{"$nulls":8},{"$f":"CONST_PrecursorToGoodInput&D201&\"_\"&D195","v":"PrecToGood__"},null,{"$f":"SUMIF(D_Processes!R:R,AB201,D_Processes!K:K)","v":0},{"$f":"SUMIF(D_Processes!R:R,CONST_CNTR_TotProd&D201,D_Processes!L:L)","v":0},null,false]
[null,null,4,{"$f":"IF(D195=\"\",\"\",IF(COUNTIF(INDEX(CNTR_IOSupplyChain,MATCH(D195,CNTR_IOProcAndPrec,0),),C202)=0,\"\",INDEX(CNTR_IOProcAndPrec,MATCH(C202,INDEX(CNTR_IOSupplyChain,MATCH(D195,CNTR_IOProcAndPrec,0),),0))))","v":""},null,"",{"$f":"IF(D202=\"\",\"\",INDEX(CNTR_Matrix_Inv,MATCH(D195,CNTR_IOProcAndPrec,0),MATCH(D202,CNTR_IOProcAndPrec,0)))","v":""},{"$f":"IF(D202=\"\",\"\",IF(AG202,INDEX(E_PurchPrec!U:U,MATCH(CONST_PurchPrecDefaultUsed&D202,E_PurchPrec!R:R,0)),CONST_NA))","v":""},{"$f":"IF($D202=\"\",\"\",SUM($G202)*SUM(INDEX(InputOutput!$AJ$71:$AJ$100,MATCH($D202,InputOutput!$D$71:$D$100,0))))","v":""},{"$f":"IF($D202=\"\",\"\",SUM($G202)*SUM(INDEX(InputOutput!$AL$71:$AL$100,MATCH($D202,InputOutput!$D$71:$D$100,0))))","v":""},"",{"$f":"IF(D202=\"\",\"\",SUM(I202)*SUM(AD198))","v":""},{"$f":"IF(D202=\"\",\"\",SUM(J202)*SUM(AD198))","v":""},"",{"$f":"IF(AG202,INDEX(E_PurchPrec!U:U,MATCH(CONST_CNTR_ElecEFMethod&D202,E_PurchPrec!R:R,0)),INDEX(D_Processes!T:T,MATCH(CONST_CNTR_ElecEFMethod&D202,D_Processes!R:R,0)))","v":""},{"$f":"IF(OR($D202=\"\",$AG202),\"\",SUM($G202)*SUM(INDEX(InputOutput!$AN$71:$AN$100,MATCH($D202,InputOutput!$D$71:$D$100,0))))","v":""},{"$f":"IF(D202=\"\",\"\",IF(AG202,INDEX(A_InstData!$F$101:$F$120,MATCH(D202,CNTR_List_ExistPurchPrecNames,0)),\"\"))","v":""},{"$f":"IF($D202=\"\",\"\",IFERROR(SUM($G202)*SUM(INDEX(F_Tools!$T$100:$T$129,MATCH($D202,F_Tools!$E$100:$E$129,0)))/K197,\"\"))","v":""},{"$f":"IF($D202=\"\",\"\",IFERROR(SUM($G202)*SUM(INDEX(F_Tools!$U$100:$U$129,MATCH($D202,F_Tools!$E$100:$E$129,0)))/K197,\"\"))","v":""},{"$nulls":8},{"$f":"CONST_PrecursorToGoodInput&D202&\"_\"&D195","v":"PrecToGood__"},null,{"$f":"SUMIF(D_Processes!R:R,AB202,D_Processes!K:K)","v":0},{"$f":"SUMIF(D_Processes!R:R,CONST_CNTR_TotProd&D202,D_Processes!L:L)","v":0},null,false]
[null,null,5,{"$f":"IF(D195=\"\",\"\",IF(COUNTIF(INDEX(CNTR_IOSupplyChain,MATCH(D195,CNTR_IOProcAndPrec,0),),C203)=0,\"\",INDEX(CNTR_IOProcAndPrec,MATCH(C203,INDEX(CNTR_IOSupplyChain,MATCH(D195,CNTR_IOProcAndPrec,0),),0))))","v":""},null,"",{"$f":"IF(D203=\"\",\"\",INDEX(CNTR_Matrix_Inv,MATCH(D195,CNTR_IOProcAndPrec,0),MATCH(D203,CNTR_IOProcAndPrec,0)))","v":""},{"$f":"IF(D203=\"\",\"\",IF(AG203,INDEX(E_PurchPrec!U:U,MATCH(CONST_PurchPrecDefaultUsed&D203,E_PurchPrec!R:R,0)),CONST_NA))","v":""},{"$f":"IF($D203=\"\",\"\",SUM($G203)*SUM(INDEX(InputOutput!$AJ$71:$AJ$100,MATCH($D203,InputOutput!$D$71:$D$100,0))))","v":""},{"$f":"IF($D203=\"\",\"\",SUM($G203)*SUM(INDEX(InputOutput!$AL$71:$AL$100,MATCH($D203,InputOutput!$D$71:$D$100,0))))","v":""},"",{"$f":"IF(D203=\"\",\"\",SUM(I203)*SUM(AD198))","v":""},{"$f":"IF(D203=\"\",\"\",SUM(J203)*SUM(AD198))","v":""},"",{"$f":"IF(AG203,INDEX(E_PurchPrec!U:U,MATCH(CONST_CNTR_ElecEFMethod&D203,E_PurchPrec!R:R,0)),INDEX(D_Processes!T:T,MATCH(CONST_CNTR_ElecEFMethod&D203,D_Processes!R:R,0)))","v":""},{"$f":"IF(OR($D203=\"\",$AG203),\"\",SUM($G203)*SUM(INDEX(InputOutput!$AN$71:$AN$100,MATCH($D203,InputOutput!$D$71:$D$100,0))))","v":""},{"$f":"IF(D203=\"\",\"\",IF(AG203,INDEX(A_InstData!$F$101:$F$120,MATCH(D203,CNTR_List_ExistPurchPrecNames,0)),\"\"))","v":""},{"$f":"IF($D203=\"\",\"\",IFERROR(SUM($G203)*SUM(INDEX(F_Tools!$T$100:$T$129,MATCH($D203,F_Tools!$E$100:$E$129,0)))/K197,\"\"))","v":""},{"$f":"IF($D203=\"\",\"\",IFERROR(SUM($G203)*SUM(INDEX(F_Tools!$U$100:$U$129,MATCH($D203,F_Tools!$E$100:$E$129,0)))/K197,\"\"))","v":""},{"$nulls":8},{"$f":"CONST_PrecursorToGoodInput&D203&\"_\"&D195","v":"PrecToGood__"},null,{"$f":"SUMIF(D_Processes!R:R,AB203,D_Processes!K:K)","v":0},{"$f":"SUMIF(D_Processes!R:R,CONST_CNTR_TotProd&D203,D_Processes!L:L)","v":0},null,false]
[null,null,6,{"$f":"IF(D195=\"\",\"\",IF(COUNTIF(INDEX(CNTR_IOSupplyChain,MATCH(D195,CNTR_IOProcAndPrec,0),),C204)=0,\"\",INDEX(CNTR_IOProcAndPrec,MATCH(C204,INDEX(CNTR_IOSupplyChain,MATCH(D195,CNTR_IOProcAndPrec,0),),0))))","v":""},null,"",{"$f":"IF(D204=\"\",\"\",INDEX(CNTR_Matrix_Inv,MATCH(D195,CNTR_IOProcAndPrec,0),MATCH(D204,CNTR_IOProcAndPrec,0)))","v":""},{"$f":"IF(D204=\"\",\"\",IF(AG204,INDEX(E_PurchPrec!U:U,MATCH(CONST_PurchPrecDefaultUsed&D204,E_PurchPrec!R:R,0)),CONST_NA))","v":""},{"$f":"IF($D204=\"\",\"\",SUM($G204)*SUM(INDEX(InputOutput!$AJ$71:$AJ$100,MATCH($D204,InputOutput!$D$71:$D$100,0))))","v":""},{"$f":"IF($D204=\"\",\"\",SUM($G204)*SUM(INDEX(InputOutput!$AL$71:$AL$100,MATCH($D204,InputOutput!$D$71:$D$100,0))))","v":""},"",{"$f":"IF(D204=\"\",\"\",SUM(I204)*SUM(AD198))","v":""},{"$f":"IF(D204=\"\",\"\",SUM(J204)*SUM(AD198))","v":""},"",{"$f":"IF(AG204,INDEX(E_PurchPrec!U:U,MATCH(CONST_CNTR_ElecEFMethod&D204,E_PurchPrec!R:R,0)),INDEX(D_Processes!T:T,MATCH(CONST_CNTR_ElecEFMethod&D204,D_Processes!R:R,0)))","v":""},{"$f":"IF(OR($D204=\"\",$AG204),\"\",SUM($G204)*SUM(INDEX(InputOutput!$AN$71:$AN$100,MATCH($D204,InputOutput!$D$71:$D$100,0))))","v":""},{"$f":"IF(D204=\"\",\"\",IF(AG204,INDEX(A_InstData!$F$101:$F$120,MATCH(D204,CNTR_List_ExistPurchPrecNames,0)),\"\"))","v":""},{"$f":"IF($D204=\"\",\"\",IFERROR(SUM($G204)*SUM(INDEX(F_Tools!$T$100:$T$129,MATCH($D204,F_Tools!$E$100:$E$129,0)))/K197,\"\"))","v":""},{"$f":"IF($D204=\"\",\"\",IFERROR(SUM($G204)*SUM(INDEX(F_Tools!$U$100:$U$129,MATCH($D204,F_Tools!$E$100:$E$129,0)))/K197,\"\"))","v":""},{"$nulls":8},{"$f":"CONST_PrecursorToGoodInput&D204&\"_\"&D195","v":"PrecToGood__"},null,{"$f":"SUMIF(D_Processes!R:R,AB204,D_Processes!K:K)","v":0},{"$f":"SUMIF(D_Processes!R:R,CONST_CNTR_TotProd&D204,D_Processes!L:L)","v":0},null,false]
[null,null,7,{"$f":"IF(D195=\"\",\"\",IF(COUNTIF(INDEX(CNTR_IOSupplyChain,MATCH(D195,CNTR_IOProcAndPrec,0),),C205)=0,\"\",INDEX(CNTR_IOProcAndPrec,MATCH(C205,INDEX(CNTR_IOSupplyChain,MATCH(D195,CNTR_IOProcAndPrec,0),),0))))","v":""},null,"",{"$f":"IF(D205=\"\",\"\",INDEX(CNTR_Matrix_Inv,MATCH(D195,CNTR_IOProcAndPrec,0),MATCH(D205,CNTR_IOProcAndPrec,0)))","v":""},{"$f":"IF(D205=\"\",\"\",IF(AG205,INDEX(E_PurchPrec!U:U,MATCH(CONST_PurchPrecDefaultUsed&D205,E_PurchPrec!R:R,0)),CONST_NA))","v":""},{"$f":"IF($D205=\"\",\"\",SUM($G205)*SUM(INDEX(InputOutput!$AJ$71:$AJ$100,MATCH($D205,InputOutput!$D$71:$D$100,0))))","v":""},{"$f":"IF($D205=\"\",\"\",SUM($G205)*SUM(INDEX(InputOutput!$AL$71:$AL$100,MATCH($D205,InputOutput!$D$71:$D$100,0))))","v":""},"",{"$f":"IF(D205=\"\",\"\",SUM(I205)*SUM(AD198))","v":""},{"$f":"IF(D205=\"\",\"\",SUM(J205)*SUM(AD198))","v":""},"",{"$f":"IF(AG205,INDEX(E_PurchPrec!U:U,MATCH(CONST_CNTR_ElecEFMethod&D205,E_PurchPrec!R:R,0)),INDEX(D_Processes!T:T,MATCH(CONST_CNTR_ElecEFMethod&D205,D_Processes!R:R,0)))","v":""},{"$f":"IF(OR($D205=\"\",$AG205),\"\",SUM($G205)*SUM(INDEX(InputOutput!$AN$71:$AN$100,MATCH($D205,InputOutput!$D$71:$D$100,0))))","v":""},{"$f":"IF(D205=\"\",\"\",IF(AG205,INDEX(A_InstData!$F$101:$F$120,MATCH(D205,CNTR_List_ExistPurchPrecNames,0)),\"\"))","v":""},{"$f":"IF($D205=\"\",\"\",IFERROR(SUM($G205)*SUM(INDEX(F_Tools!$T$100:$T$129,MATCH($D205,F_Tools!$E$100:$E$129,0)))/K197,\"\"))","v":""},{"$f":"IF($D205=\"\",\"\",IFERROR(SUM($G205)*SUM(INDEX(F_Tools!$U$100:$U$129,MATCH($D205,F_Tools!$E$100:$E$129,0)))/K197,\"\"))","v":""},{"$nulls":8},{"$f":"CONST_PrecursorToGoodInput&D205&\"_\"&D195","v":"PrecToGood__"},null,{"$f":"SUMIF(D_Processes!R:R,AB205,D_Processes!K:K)","v":0},{"$f":"SUMIF(D_Processes!R:R,CONST_CNTR_TotProd&D205,D_Processes!L:L)","v":0},null,false]
[null,null,8,{"$f":"IF(D195=\"\",\"\",IF(COUNTIF(INDEX(CNTR_IOSupplyChain,MATCH(D195,CNTR_IOProcAndPrec,0),),C206)=0,\"\",INDEX(CNTR_IOProcAndPrec,MATCH(C206,INDEX(CNTR_IOSupplyChain,MATCH(D195,CNTR_IOProcAndPrec,0),),0))))","v":""},null,"",{"$f":"IF(D206=\"\",\"\",INDEX(CNTR_Matrix_Inv,MATCH(D195,CNTR_IOProcAndPrec,0),MATCH(D206,CNTR_IOProcAndPrec,0)))","v":""},{"$f":"IF(D206=\"\",\"\",IF(AG206,INDEX(E_PurchPrec!U:U,MATCH(CONST_PurchPrecDefaultUsed&D206,E_PurchPrec!R:R,0)),CONST_NA))","v":""},{"$f":"IF($D206=\"\",\"\",SUM($G206)*SUM(INDEX(InputOutput!$AJ$71:$AJ$100,MATCH($D206,InputOutput!$D$71:$D$100,0))))","v":""},{"$f":"IF($D206=\"\",\"\",SUM($G206)*SUM(INDEX(InputOutput!$AL$71:$AL$100,MATCH($D206,InputOutput!$D$71:$D$100,0))))","v":""},"",{"$f":"IF(D206=\"\",\"\",SUM(I206)*SUM(AD198))","v":""},{"$f":"IF(D206=\"\",\"\",SUM(J206)*SUM(AD198))","v":""},"",{"$f":"IF(AG206,INDEX(E_PurchPrec!U:U,MATCH(CONST_CNTR_ElecEFMethod&D206,E_PurchPrec!R:R,0)),INDEX(D_Processes!T:T,MATCH(CONST_CNTR_ElecEFMethod&D206,D_Processes!R:R,0)))","v":""},{"$f":"IF(OR($D206=\"\",$AG206),\"\",SUM($G206)*SUM(INDEX(InputOutput!$AN$71:$AN$100,MATCH($D206,InputOutput!$D$71:$D$100,0))))","v":""},{"$f":"IF(D206=\"\",\"\",IF(AG206,INDEX(A_InstData!$F$101:$F$120,MATCH(D206,CNTR_List_ExistPurchPrecNames,0)),\"\"))","v":""},{"$f":"IF($D206=\"\",\"\",IFERROR(SUM($G206)*SUM(INDEX(F_Tools!$T$100:$T$129,MATCH($D206,F_Tools!$E$100:$E$129,0)))/K197,\"\"))","v":""},{"$f":"IF($D206=\"\",\"\",IFERROR(SUM($G206)*SUM(INDEX(F_Tools!$U$100:$U$129,MATCH($D206,F_Tools!$E$100:$E$129,0)))/K197,\"\"))","v":""},{"$nulls":8},{"$f":"CONST_PrecursorToGoodInput&D206&\"_\"&D195","v":"PrecToGood__"},null,{"$f":"SUMIF(D_Processes!R:R,AB206,D_Processes!K:K)","v":0},{"$f":"SUMIF(D_Processes!R:R,CONST_CNTR_TotProd&D206,D_Processes!L:L)","v":0},null,false]
[null,null,9,{"$f":"IF(D195=\"\",\"\",IF(COUNTIF(INDEX(CNTR_IOSupplyChain,MATCH(D195,CNTR_IOProcAndPrec,0),),C207)=0,\"\",INDEX(CNTR_IOProcAndPrec,MATCH(C207,INDEX(CNTR_IOSupplyChain,MATCH(D195,CNTR_IOProcAndPrec,0),),0))))","v":""},null,"",{"$f":"IF(D207=\"\",\"\",INDEX(CNTR_Matrix_Inv,MATCH(D195,CNTR_IOProcAndPrec,0),MATCH(D207,CNTR_IOProcAndPrec,0)))","v":""},{"$f":"IF(D207=\"\",\"\",IF(AG207,INDEX(E_PurchPrec!U:U,MATCH(CONST_PurchPrecDefaultUsed&D207,E_PurchPrec!R:R,0)),CONST_NA))","v":""},{"$f":"IF($D207=\"\",\"\",SUM($G207)*SUM(INDEX(InputOutput!$AJ$71:$AJ$100,MATCH($D207,InputOutput!$D$71:$D$100,0))))","v":""},{"$f":"IF($D207=\"\",\"\",SUM($G207)*SUM(INDEX(InputOutput!$AL$71:$AL$100,MATCH($D207,InputOutput!$D$71:$D$100,0))))","v":""},"",{"$f":"IF(D207=\"\",\"\",SUM(I207)*SUM(AD198))","v":""},{"$f":"IF(D207=\"\",\"\",SUM(J207)*SUM(AD198))","v":""},"",{"$f":"IF(AG207,INDEX(E_PurchPrec!U:U,MATCH(CONST_CNTR_ElecEFMethod&D207,E_PurchPrec!R:R,0)),INDEX(D_Processes!T:T,MATCH(CONST_CNTR_ElecEFMethod&D207,D_Processes!R:R,0)))","v":""},{"$f":"IF(OR($D207=\"\",$AG207),\"\",SUM($G207)*SUM(INDEX(InputOutput!$AN$71:$AN$100,MATCH($D207,InputOutput!$D$71:$D$100,0))))","v":""},{"$f":"IF(D207=\"\",\"\",IF(AG207,INDEX(A_InstData!$F$101:$F$120,MATCH(D207,CNTR_List_ExistPurchPrecNames,0)),\"\"))","v":""},{"$f":"IF($D207=\"\",\"\",IFERROR(SUM($G207)*SUM(INDEX(F_Tools!$T$100:$T$129,MATCH($D207,F_Tools!$E$100:$E$129,0)))/K197,\"\"))","v":""},{"$f":"IF($D207=\"\",\"\",IFERROR(SUM($G207)*SUM(INDEX(F_Tools!$U$100:$U$129,MATCH($D207,F_Tools!$E$100:$E$129,0)))/K197,\"\"))","v":""},{"$nulls":8},{"$f":"CONST_PrecursorToGoodInput&D207&\"_\"&D195","v":"PrecToGood__"},null,{"$f":"SUMIF(D_Processes!R:R,AB207,D_Processes!K:K)","v":0},{"$f":"SUMIF(D_Processes!R:R,CONST_CNTR_TotProd&D207,D_Processes!L:L)","v":0},null,false]
[null,null,10,{"$f":"IF(D195=\"\",\"\",IF(COUNTIF(INDEX(CNTR_IOSupplyChain,MATCH(D195,CNTR_IOProcAndPrec,0),),C208)=0,\"\",INDEX(CNTR_IOProcAndPrec,MATCH(C208,INDEX(CNTR_IOSupplyChain,MATCH(D195,CNTR_IOProcAndPrec,0),),0))))","v":""},null,"",{"$f":"IF(D208=\"\",\"\",INDEX(CNTR_Matrix_Inv,MATCH(D195,CNTR_IOProcAndPrec,0),MATCH(D208,CNTR_IOProcAndPrec,0)))","v":""},{"$f":"IF(D208=\"\",\"\",IF(AG208,INDEX(E_PurchPrec!U:U,MATCH(CONST_PurchPrecDefaultUsed&D208,E_PurchPrec!R:R,0)),CONST_NA))","v":""},{"$f":"IF($D208=\"\",\"\",SUM($G208)*SUM(INDEX(InputOutput!$AJ$71:$AJ$100,MATCH($D208,InputOutput!$D$71:$D$100,0))))","v":""},{"$f":"IF($D208=\"\",\"\",SUM($G208)*SUM(INDEX(InputOutput!$AL$71:$AL$100,MATCH($D208,InputOutput!$D$71:$D$100,0))))","v":""},"",{"$f":"IF(D208=\"\",\"\",SUM(I208)*SUM(AD198))","v":""},{"$f":"IF(D208=\"\",\"\",SUM(J208)*SUM(AD198))","v":""},"",{"$f":"IF(AG208,INDEX(E_PurchPrec!U:U,MATCH(CONST_CNTR_ElecEFMethod&D208,E_PurchPrec!R:R,0)),INDEX(D_Processes!T:T,MATCH(CONST_CNTR_ElecEFMethod&D208,D_Processes!R:R,0)))","v":""},{"$f":"IF(OR($D208=\"\",$AG208),\"\",SUM($G208)*SUM(INDEX(InputOutput!$AN$71:$AN$100,MATCH($D208,InputOutput!$D$71:$D$100,0))))","v":""},{"$f":"IF(D208=\"\",\"\",IF(AG208,INDEX(A_InstData!$F$101:$F$120,MATCH(D208,CNTR_List_ExistPurchPrecNames,0)),\"\"))","v":""},{"$f":"IF($D208=\"\",\"\",IFERROR(SUM($G208)*SUM(INDEX(F_Tools!$T$100:$T$129,MATCH($D208,F_Tools!$E$100:$E$129,0)))/K197,\"\"))","v":""},{"$f":"IF($D208=\"\",\"\",IFERROR(SUM($G208)*SUM(INDEX(F_Tools!$U$100:$U$129,MATCH($D208,F_Tools!$E$100:$E$129,0)))/K197,\"\"))","v":""},{"$nulls":8},{"$f":"CONST_PrecursorToGoodInput&D208&\"_\"&D195","v":"PrecToGood__"},null,{"$f":"SUMIF(D_Processes!R:R,AB208,D_Processes!K:K)","v":0},{"$f":"SUMIF(D_Processes!R:R,CONST_CNTR_TotProd&D208,D_Processes!L:L)","v":0},null,false]
[null,null,11,{"$f":"IF(D195=\"\",\"\",IF(COUNTIF(INDEX(CNTR_IOSupplyChain,MATCH(D195,CNTR_IOProcAndPrec,0),),C209)=0,\"\",INDEX(CNTR_IOProcAndPrec,MATCH(C209,INDEX(CNTR_IOSupplyChain,MATCH(D195,CNTR_IOProcAndPrec,0),),0))))","v":""},null,"",{"$f":"IF(D209=\"\",\"\",INDEX(CNTR_Matrix_Inv,MATCH(D195,CNTR_IOProcAndPrec,0),MATCH(D209,CNTR_IOProcAndPrec,0)))","v":""},{"$f":"IF(D209=\"\",\"\",IF(AG209,INDEX(E_PurchPrec!U:U,MATCH(CONST_PurchPrecDefaultUsed&D209,E_PurchPrec!R:R,0)),CONST_NA))","v":""},{"$f":"IF($D209=\"\",\"\",SUM($G209)*SUM(INDEX(InputOutput!$AJ$71:$AJ$100,MATCH($D209,InputOutput!$D$71:$D$100,0))))","v":""},{"$f":"IF($D209=\"\",\"\",SUM($G209)*SUM(INDEX(InputOutput!$AL$71:$AL$100,MATCH($D209,InputOutput!$D$71:$D$100,0))))","v":""},"",{"$f":"IF(D209=\"\",\"\",SUM(I209)*SUM(AD198))","v":""},{"$f":"IF(D209=\"\",\"\",SUM(J209)*SUM(AD198))","v":""},"",{"$f":"IF(AG209,INDEX(E_PurchPrec!U:U,MATCH(CONST_CNTR_ElecEFMethod&D209,E_PurchPrec!R:R,0)),INDEX(D_Processes!T:T,MATCH(CONST_CNTR_ElecEFMethod&D209,D_Processes!R:R,0)))","v":""},{"$f":"IF(OR($D209=\"\",$AG209),\"\",SUM($G209)*SUM(INDEX(InputOutput!$AN$71:$AN$100,MATCH($D209,InputOutput!$D$71:$D$100,0))))","v":""},{"$f":"IF(D209=\"\",\"\",IF(AG209,INDEX(A_InstData!$F$101:$F$120,MATCH(D209,CNTR_List_ExistPurchPrecNames,0)),\"\"))","v":""},{"$f":"IF($D209=\"\",\"\",IFERROR(SUM($G209)*SUM(INDEX(F_Tools!$T$100:$T$129,MATCH($D209,F_Tools!$E$100:$E$129,0)))/K197,\"\"))","v":""},{"$f":"IF($D209=\"\",\"\",IFERROR(SUM($G209)*SUM(INDEX(F_Tools!$U$100:$U$129,MATCH($D209,F_Tools!$E$100:$E$129,0)))/K197,\"\"))","v":""},{"$nulls":8},{"$f":"CONST_PrecursorToGoodInput&D209&\"_\"&D195","v":"PrecToGood__"},null,{"$f":"SUMIF(D_Processes!R:R,AB209,D_Processes!K:K)","v":0},{"$f":"SUMIF(D_Processes!R:R,CONST_CNTR_TotProd&D209,D_Processes!L:L)","v":0},null,false]
[null,null,12,{"$f":"IF(D195=\"\",\"\",IF(COUNTIF(INDEX(CNTR_IOSupplyChain,MATCH(D195,CNTR_IOProcAndPrec,0),),C210)=0,\"\",INDEX(CNTR_IOProcAndPrec,MATCH(C210,INDEX(CNTR_IOSupplyChain,MATCH(D195,CNTR_IOProcAndPrec,0),),0))))","v":""},null,"",{"$f":"IF(D210=\"\",\"\",INDEX(CNTR_Matrix_Inv,MATCH(D195,CNTR_IOProcAndPrec,0),MATCH(D210,CNTR_IOProcAndPrec,0)))","v":""},{"$f":"IF(D210=\"\",\"\",IF(AG210,INDEX(E_PurchPrec!U:U,MATCH(CONST_PurchPrecDefaultUsed&D210,E_PurchPrec!R:R,0)),CONST_NA))","v":""},{"$f":"IF($D210=\"\",\"\",SUM($G210)*SUM(INDEX(InputOutput!$AJ$71:$AJ$100,MATCH($D210,InputOutput!$D$71:$D$100,0))))","v":""},{"$f":"IF($D210=\"\",\"\",SUM($G210)*SUM(INDEX(InputOutput!$AL$71:$AL$100,MATCH($D210,InputOutput!$D$71:$D$100,0))))","v":""},"",{"$f":"IF(D210=\"\",\"\",SUM(I210)*SUM(AD198))","v":""},{"$f":"IF(D210=\"\",\"\",SUM(J210)*SUM(AD198))","v":""},"",{"$f":"IF(AG210,INDEX(E_PurchPrec!U:U,MATCH(CONST_CNTR_ElecEFMethod&D210,E_PurchPrec!R:R,0)),INDEX(D_Processes!T:T,MATCH(CONST_CNTR_ElecEFMethod&D210,D_Processes!R:R,0)))","v":""},{"$f":"IF(OR($D210=\"\",$AG210),\"\",SUM($G210)*SUM(INDEX(InputOutput!$AN$71:$AN$100,MATCH($D210,InputOutput!$D$71:$D$100,0))))","v":""},{"$f":"IF(D210=\"\",\"\",IF(AG210,INDEX(A_InstData!$F$101:$F$120,MATCH(D210,CNTR_List_ExistPurchPrecNames,0)),\"\"))","v":""},{"$f":"IF($D210=\"\",\"\",IFERROR(SUM($G210)*SUM(INDEX(F_Tools!$T$100:$T$129,MATCH($D210,F_Tools!$E$100:$E$129,0)))/K197,\"\"))","v":""},{"$f":"IF($D210=\"\",\"\",IFERROR(SUM($G210)*SUM(INDEX(F_Tools!$U$100:$U$129,MATCH($D210,F_Tools!$E$100:$E$129,0)))/K197,\"\"))","v":""},{"$nulls":8},{"$f":"CONST_PrecursorToGoodInput&D210&\"_\"&D195","v":"PrecToGood__"},null,{"$f":"SUMIF(D_Processes!R:R,AB210,D_Processes!K:K)","v":0},{"$f":"SUMIF(D_Processes!R:R,CONST_CNTR_TotProd&D210,D_Processes!L:L)","v":0},null,false]
[null,null,13,{"$f":"IF(D195=\"\",\"\",IF(COUNTIF(INDEX(CNTR_IOSupplyChain,MATCH(D195,CNTR_IOProcAndPrec,0),),C211)=0,\"\",INDEX(CNTR_IOProcAndPrec,MATCH(C211,INDEX(CNTR_IOSupplyChain,MATCH(D195,CNTR_IOProcAndPrec,0),),0))))","v":""},null,"",{"$f":"IF(D211=\"\",\"\",INDEX(CNTR_Matrix_Inv,MATCH(D195,CNTR_IOProcAndPrec,0),MATCH(D211,CNTR_IOProcAndPrec,0)))","v":""},{"$f":"IF(D211=\"\",\"\",IF(AG211,INDEX(E_PurchPrec!U:U,MATCH(CONST_PurchPrecDefaultUsed&D211,E_PurchPrec!R:R,0)),CONST_NA))","v":""},{"$f":"IF($D211=\"\",\"\",SUM($G211)*SUM(INDEX(InputOutput!$AJ$71:$AJ$100,MATCH($D211,InputOutput!$D$71:$D$100,0))))","v":""},{"$f":"IF($D211=\"\",\"\",SUM($G211)*SUM(INDEX(InputOutput!$AL$71:$AL$100,MATCH($D211,InputOutput!$D$71:$D$100,0))))","v":""},"",{"$f":"IF(D211=\"\",\"\",SUM(I211)*SUM(AD198))","v":""},{"$f":"IF(D211=\"\",\"\",SUM(J211)*SUM(AD198))","v":""},"",{"$f":"IF(AG211,INDEX(E_PurchPrec!U:U,MATCH(CONST_CNTR_ElecEFMethod&D211,E_PurchPrec!R:R,0)),INDEX(D_Processes!T:T,MATCH(CONST_CNTR_ElecEFMethod&D211,D_Processes!R:R,0)))","v":""},{"$f":"IF(OR($D211=\"\",$AG211),\"\",SUM($G211)*SUM(INDEX(InputOutput!$AN$71:$AN$100,MATCH($D211,InputOutput!$D$71:$D$100,0))))","v":""},{"$f":"IF(D211=\"\",\"\",IF(AG211,INDEX(A_InstData!$F$101:$F$120,MATCH(D211,CNTR_List_ExistPurchPrecNames,0)),\"\"))","v":""},{"$f":"IF($D211=\"\",\"\",IFERROR(SUM($G211)*SUM(INDEX(F_Tools!$T$100:$T$129,MATCH($D211,F_Tools!$E$100:$E$129,0)))/K197,\"\"))","v":""},{"$f":"IF($D211=\"\",\"\",IFERROR(SUM($G211)*SUM(INDEX(F_Tools!$U$100:$U$129,MATCH($D211,F_Tools!$E$100:$E$129,0)))/K197,\"\"))","v":""},{"$nulls":8},{"$f":"CONST_PrecursorToGoodInput&D211&\"_\"&D195","v":"PrecToGood__"},null,{"$f":"SUMIF(D_Processes!R:R,AB211,D_Processes!K:K)","v":0},{"$f":"SUMIF(D_Processes!R:R,CONST_CNTR_TotProd&D211,D_Processes!L:L)","v":0},null,false]
[null,null,14,{"$f":"IF(D195=\"\",\"\",IF(COUNTIF(INDEX(CNTR_IOSupplyChain,MATCH(D195,CNTR_IOProcAndPrec,0),),C212)=0,\"\",INDEX(CNTR_IOProcAndPrec,MATCH(C212,INDEX(CNTR_IOSupplyChain,MATCH(D195,CNTR_IOProcAndPrec,0),),0))))","v":""},null,"",{"$f":"IF(D212=\"\",\"\",INDEX(CNTR_Matrix_Inv,MATCH(D195,CNTR_IOProcAndPrec,0),MATCH(D212,CNTR_IOProcAndPrec,0)))","v":""},{"$f":"IF(D212=\"\",\"\",IF(AG212,INDEX(E_PurchPrec!U:U,MATCH(CONST_PurchPrecDefaultUsed&D212,E_PurchPrec!R:R,0)),CONST_NA))","v":""},{"$f":"IF($D212=\"\",\"\",SUM($G212)*SUM(INDEX(InputOutput!$AJ$71:$AJ$100,MATCH($D212,InputOutput!$D$71:$D$100,0))))","v":""},{"$f":"IF($D212=\"\",\"\",SUM($G212)*SUM(INDEX(InputOutput!$AL$71:$AL$100,MATCH($D212,InputOutput!$D$71:$D$100,0))))","v":""},"",{"$f":"IF(D212=\"\",\"\",SUM(I212)*SUM(AD198))","v":""},{"$f":"IF(D212=\"\",\"\",SUM(J212)*SUM(AD198))","v":""},"",{"$f":"IF(AG212,INDEX(E_PurchPrec!U:U,MATCH(CONST_CNTR_ElecEFMethod&D212,E_PurchPrec!R:R,0)),INDEX(D_Processes!T:T,MATCH(CONST_CNTR_ElecEFMethod&D212,D_Processes!R:R,0)))","v":""},{"$f":"IF(OR($D212=\"\",$AG212),\"\",SUM($G212)*SUM(INDEX(InputOutput!$AN$71:$AN$100,MATCH($D212,InputOutput!$D$71:$D$100,0))))","v":""},{"$f":"IF(D212=\"\",\"\",IF(AG212,INDEX(A_InstData!$F$101:$F$120,MATCH(D212,CNTR_List_ExistPurchPrecNames,0)),\"\"))","v":""},{"$f":"IF($D212=\"\",\"\",IFERROR(SUM($G212)*SUM(INDEX(F_Tools!$T$100:$T$129,MATCH($D212,F_Tools!$E$100:$E$129,0)))/K197,\"\"))","v":""},{"$f":"IF($D212=\"\",\"\",IFERROR(SUM($G212)*SUM(INDEX(F_Tools!$U$100:$U$129,MATCH($D212,F_Tools!$E$100:$E$129,0)))/K197,\"\"))","v":""},{"$nulls":8},{"$f":"CONST_PrecursorToGoodInput&D212&\"_\"&D195","v":"PrecToGood__"},null,{"$f":"SUMIF(D_Processes!R:R,AB212,D_Processes!K:K)","v":0},{"$f":"SUMIF(D_Processes!R:R,CONST_CNTR_TotProd&D212,D_Processes!L:L)","v":0},null,false]
[null,null,15,{"$f":"IF(D195=\"\",\"\",IF(COUNTIF(INDEX(CNTR_IOSupplyChain,MATCH(D195,CNTR_IOProcAndPrec,0),),C213)=0,\"\",INDEX(CNTR_IOProcAndPrec,MATCH(C213,INDEX(CNTR_IOSupplyChain,MATCH(D195,CNTR_IOProcAndPrec,0),),0))))","v":""},null,"",{"$f":"IF(D213=\"\",\"\",INDEX(CNTR_Matrix_Inv,MATCH(D195,CNTR_IOProcAndPrec,0),MATCH(D213,CNTR_IOProcAndPrec,0)))","v":""},{"$f":"IF(D213=\"\",\"\",IF(AG213,INDEX(E_PurchPrec!U:U,MATCH(CONST_PurchPrecDefaultUsed&D213,E_PurchPrec!R:R,0)),CONST_NA))","v":""},{"$f":"IF($D213=\"\",\"\",SUM($G213)*SUM(INDEX(InputOutput!$AJ$71:$AJ$100,MATCH($D213,InputOutput!$D$71:$D$100,0))))","v":""},{"$f":"IF($D213=\"\",\"\",SUM($G213)*SUM(INDEX(InputOutput!$AL$71:$AL$100,MATCH($D213,InputOutput!$D$71:$D$100,0))))","v":""},"",{"$f":"IF(D213=\"\",\"\",SUM(I213)*SUM(AD198))","v":""},{"$f":"IF(D213=\"\",\"\",SUM(J213)*SUM(AD198))","v":""},"",{"$f":"IF(AG213,INDEX(E_PurchPrec!U:U,MATCH(CONST_CNTR_ElecEFMethod&D213,E_PurchPrec!R:R,0)),INDEX(D_Processes!T:T,MATCH(CONST_CNTR_ElecEFMethod&D213,D_Processes!R:R,0)))","v":""},{"$f":"IF(OR($D213=\"\",$AG213),\"\",SUM($G213)*SUM(INDEX(InputOutput!$AN$71:$AN$100,MATCH($D213,InputOutput!$D$71:$D$100,0))))","v":""},{"$f":"IF(D213=\"\",\"\",IF(AG213,INDEX(A_InstData!$F$101:$F$120,MATCH(D213,CNTR_List_ExistPurchPrecNames,0)),\"\"))","v":""},{"$f":"IF($D213=\"\",\"\",IFERROR(SUM($G213)*SUM(INDEX(F_Tools!$T$100:$T$129,MATCH($D213,F_Tools!$E$100:$E$129,0)))/K197,\"\"))","v":""},{"$f":"IF($D213=\"\",\"\",IFERROR(SUM($G213)*SUM(INDEX(F_Tools!$U$100:$U$129,MATCH($D213,F_Tools!$E$100:$E$129,0)))/K197,\"\"))","v":""},{"$nulls":8},{"$f":"CONST_PrecursorToGoodInput&D213&\"_\"&D195","v":"PrecToGood__"},null,{"$f":"SUMIF(D_Processes!R:R,AB213,D_Processes!K:K)","v":0},{"$f":"SUMIF(D_Processes!R:R,CONST_CNTR_TotProd&D213,D_Processes!L:L)","v":0},null,false]
[null,null,16,{"$f":"IF(D195=\"\",\"\",IF(COUNTIF(INDEX(CNTR_IOSupplyChain,MATCH(D195,CNTR_IOProcAndPrec,0),),C214)=0,\"\",INDEX(CNTR_IOProcAndPrec,MATCH(C214,INDEX(CNTR_IOSupplyChain,MATCH(D195,CNTR_IOProcAndPrec,0),),0))))","v":""},null,"",{"$f":"IF(D214=\"\",\"\",INDEX(CNTR_Matrix_Inv,MATCH(D195,CNTR_IOProcAndPrec,0),MATCH(D214,CNTR_IOProcAndPrec,0)))","v":""},{"$f":"IF(D214=\"\",\"\",IF(AG214,INDEX(E_PurchPrec!U:U,MATCH(CONST_PurchPrecDefaultUsed&D214,E_PurchPrec!R:R,0)),CONST_NA))","v":""},{"$f":"IF($D214=\"\",\"\",SUM($G214)*SUM(INDEX(InputOutput!$AJ$71:$AJ$100,MATCH($D214,InputOutput!$D$71:$D$100,0))))","v":""},{"$f":"IF($D214=\"\",\"\",SUM($G214)*SUM(INDEX(InputOutput!$AL$71:$AL$100,MATCH($D214,InputOutput!$D$71:$D$100,0))))","v":""},"",{"$f":"IF(D214=\"\",\"\",SUM(I214)*SUM(AD198))","v":""},{"$f":"IF(D214=\"\",\"\",SUM(J214)*SUM(AD198))","v":""},"",{"$f":"IF(AG214,INDEX(E_PurchPrec!U:U,MATCH(CONST_CNTR_ElecEFMethod&D214,E_PurchPrec!R:R,0)),INDEX(D_Processes!T:T,MATCH(CONST_CNTR_ElecEFMethod&D214,D_Processes!R:R,0)))","v":""},{"$f":"IF(OR($D214=\"\",$AG214),\"\",SUM($G214)*SUM(INDEX(InputOutput!$AN$71:$AN$100,MATCH($D214,InputOutput!$D$71:$D$100,0))))","v":""},{"$f":"IF(D214=\"\",\"\",IF(AG214,INDEX(A_InstData!$F$101:$F$120,MATCH(D214,CNTR_List_ExistPurchPrecNames,0)),\"\"))","v":""},{"$f":"IF($D214=\"\",\"\",IFERROR(SUM($G214)*SUM(INDEX(F_Tools!$T$100:$T$129,MATCH($D214,F_Tools!$E$100:$E$129,0)))/K197,\"\"))","v":""},{"$f":"IF($D214=\"\",\"\",IFERROR(SUM($G214)*SUM(INDEX(F_Tools!$U$100:$U$129,MATCH($D214,F_Tools!$E$100:$E$129,0)))/K197,\"\"))","v":""},{"$nulls":8},{"$f":"CONST_PrecursorToGoodInput&D214&\"_\"&D195","v":"PrecToGood__"},null,{"$f":"SUMIF(D_Processes!R:R,AB214,D_Processes!K:K)","v":0},{"$f":"SUMIF(D_Processes!R:R,CONST_CNTR_TotProd&D214,D_Processes!L:L)","v":0},null,false]
[null,null,17,{"$f":"IF(D195=\"\",\"\",IF(COUNTIF(INDEX(CNTR_IOSupplyChain,MATCH(D195,CNTR_IOProcAndPrec,0),),C215)=0,\"\",INDEX(CNTR_IOProcAndPrec,MATCH(C215,INDEX(CNTR_IOSupplyChain,MATCH(D195,CNTR_IOProcAndPrec,0),),0))))","v":""},null,"",{"$f":"IF(D215=\"\",\"\",INDEX(CNTR_Matrix_Inv,MATCH(D195,CNTR_IOProcAndPrec,0),MATCH(D215,CNTR_IOProcAndPrec,0)))","v":""},{"$f":"IF(D215=\"\",\"\",IF(AG215,INDEX(E_PurchPrec!U:U,MATCH(CONST_PurchPrecDefaultUsed&D215,E_PurchPrec!R:R,0)),CONST_NA))","v":""},{"$f":"IF($D215=\"\",\"\",SUM($G215)*SUM(INDEX(InputOutput!$AJ$71:$AJ$100,MATCH($D215,InputOutput!$D$71:$D$100,0))))","v":""},{"$f":"IF($D215=\"\",\"\",SUM($G215)*SUM(INDEX(InputOutput!$AL$71:$AL$100,MATCH($D215,InputOutput!$D$71:$D$100,0))))","v":""},"",{"$f":"IF(D215=\"\",\"\",SUM(I215)*SUM(AD198))","v":""},{"$f":"IF(D215=\"\",\"\",SUM(J215)*SUM(AD198))","v":""},"",{"$f":"IF(AG215,INDEX(E_PurchPrec!U:U,MATCH(CONST_CNTR_ElecEFMethod&D215,E_PurchPrec!R:R,0)),INDEX(D_Processes!T:T,MATCH(CONST_CNTR_ElecEFMethod&D215,D_Processes!R:R,0)))","v":""},{"$f":"IF(OR($D215=\"\",$AG215),\"\",SUM($G215)*SUM(INDEX(InputOutput!$AN$71:$AN$100,MATCH($D215,InputOutput!$D$71:$D$100,0))))","v":""},{"$f":"IF(D215=\"\",\"\",IF(AG215,INDEX(A_InstData!$F$101:$F$120,MATCH(D215,CNTR_List_ExistPurchPrecNames,0)),\"\"))","v":""},{"$f":"IF($D215=\"\",\"\",IFERROR(SUM($G215)*SUM(INDEX(F_Tools!$T$100:$T$129,MATCH($D215,F_Tools!$E$100:$E$129,0)))/K197,\"\"))","v":""},{"$f":"IF($D215=\"\",\"\",IFERROR(SUM($G215)*SUM(INDEX(F_Tools!$U$100:$U$129,MATCH($D215,F_Tools!$E$100:$E$129,0)))/K197,\"\"))","v":""},{"$nulls":8},{"$f":"CONST_PrecursorToGoodInput&D215&\"_\"&D195","v":"PrecToGood__"},null,{"$f":"SUMIF(D_Processes!R:R,AB215,D_Processes!K:K)","v":0},{"$f":"SUMIF(D_Processes!R:R,CONST_CNTR_TotProd&D215,D_Processes!L:L)","v":0},null,false]
[null,null,18,{"$f":"IF(D195=\"\",\"\",IF(COUNTIF(INDEX(CNTR_IOSupplyChain,MATCH(D195,CNTR_IOProcAndPrec,0),),C216)=0,\"\",INDEX(CNTR_IOProcAndPrec,MATCH(C216,INDEX(CNTR_IOSupplyChain,MATCH(D195,CNTR_IOProcAndPrec,0),),0))))","v":""},null,"",{"$f":"IF(D216=\"\",\"\",INDEX(CNTR_Matrix_Inv,MATCH(D195,CNTR_IOProcAndPrec,0),MATCH(D216,CNTR_IOProcAndPrec,0)))","v":""},{"$f":"IF(D216=\"\",\"\",IF(AG216,INDEX(E_PurchPrec!U:U,MATCH(CONST_PurchPrecDefaultUsed&D216,E_PurchPrec!R:R,0)),CONST_NA))","v":""},{"$f":"IF($D216=\"\",\"\",SUM($G216)*SUM(INDEX(InputOutput!$AJ$71:$AJ$100,MATCH($D216,InputOutput!$D$71:$D$100,0))))","v":""},{"$f":"IF($D216=\"\",\"\",SUM($G216)*SUM(INDEX(InputOutput!$AL$71:$AL$100,MATCH($D216,InputOutput!$D$71:$D$100,0))))","v":""},"",{"$f":"IF(D216=\"\",\"\",SUM(I216)*SUM(AD198))","v":""},{"$f":"IF(D216=\"\",\"\",SUM(J216)*SUM(AD198))","v":""},"",{"$f":"IF(AG216,INDEX(E_PurchPrec!U:U,MATCH(CONST_CNTR_ElecEFMethod&D216,E_PurchPrec!R:R,0)),INDEX(D_Processes!T:T,MATCH(CONST_CNTR_ElecEFMethod&D216,D_Processes!R:R,0)))","v":""},{"$f":"IF(OR($D216=\"\",$AG216),\"\",SUM($G216)*SUM(INDEX(InputOutput!$AN$71:$AN$100,MATCH($D216,InputOutput!$D$71:$D$100,0))))","v":""},{"$f":"IF(D216=\"\",\"\",IF(AG216,INDEX(A_InstData!$F$101:$F$120,MATCH(D216,CNTR_List_ExistPurchPrecNames,0)),\"\"))","v":""},{"$f":"IF($D216=\"\",\"\",IFERROR(SUM($G216)*SUM(INDEX(F_Tools!$T$100:$T$129,MATCH($D216,F_Tools!$E$100:$E$129,0)))/K197,\"\"))","v":""},{"$f":"IF($D216=\"\",\"\",IFERROR(SUM($G216)*SUM(INDEX(F_Tools!$U$100:$U$129,MATCH($D216,F_Tools!$E$100:$E$129,0)))/K197,\"\"))","v":""},{"$nulls":8},{"$f":"CONST_PrecursorToGoodInput&D216&\"_\"&D195","v":"PrecToGood__"},null,{"$f":"SUMIF(D_Processes!R:R,AB216,D_Processes!K:K)","v":0},{"$f":"SUMIF(D_Processes!R:R,CONST_CNTR_TotProd&D216,D_Processes!L:L)","v":0},null,false]
[null,null,19,{"$f":"IF(D195=\"\",\"\",IF(COUNTIF(INDEX(CNTR_IOSupplyChain,MATCH(D195,CNTR_IOProcAndPrec,0),),C217)=0,\"\",INDEX(CNTR_IOProcAndPrec,MATCH(C217,INDEX(CNTR_IOSupplyChain,MATCH(D195,CNTR_IOProcAndPrec,0),),0))))","v":""},null,"",{"$f":"IF(D217=\"\",\"\",INDEX(CNTR_Matrix_Inv,MATCH(D195,CNTR_IOProcAndPrec,0),MATCH(D217,CNTR_IOProcAndPrec,0)))","v":""},{"$f":"IF(D217=\"\",\"\",IF(AG217,INDEX(E_PurchPrec!U:U,MATCH(CONST_PurchPrecDefaultUsed&D217,E_PurchPrec!R:R,0)),CONST_NA))","v":""},{"$f":"IF($D217=\"\",\"\",SUM($G217)*SUM(INDEX(InputOutput!$AJ$71:$AJ$100,MATCH($D217,InputOutput!$D$71:$D$100,0))))","v":""},{"$f":"IF($D217=\"\",\"\",SUM($G217)*SUM(INDEX(InputOutput!$AL$71:$AL$100,MATCH($D217,InputOutput!$D$71:$D$100,0))))","v":""},"",{"$f":"IF(D217=\"\",\"\",SUM(I217)*SUM(AD198))","v":""},{"$f":"IF(D217=\"\",\"\",SUM(J217)*SUM(AD198))","v":""},"",{"$f":"IF(AG217,INDEX(E_PurchPrec!U:U,MATCH(CONST_CNTR_ElecEFMethod&D217,E_PurchPrec!R:R,0)),INDEX(D_Processes!T:T,MATCH(CONST_CNTR_ElecEFMethod&D217,D_Processes!R:R,0)))","v":""},{"$f":"IF(OR($D217=\"\",$AG217),\"\",SUM($G217)*SUM(INDEX(InputOutput!$AN$71:$AN$100,MATCH($D217,InputOutput!$D$71:$D$100,0))))","v":""},{"$f":"IF(D217=\"\",\"\",IF(AG217,INDEX(A_InstData!$F$101:$F$120,MATCH(D217,CNTR_List_ExistPurchPrecNames,0)),\"\"))","v":""},{"$f":"IF($D217=\"\",\"\",IFERROR(SUM($G217)*SUM(INDEX(F_Tools!$T$100:$T$129,MATCH($D217,F_Tools!$E$100:$E$129,0)))/K197,\"\"))","v":""},{"$f":"IF($D217=\"\",\"\",IFERROR(SUM($G217)*SUM(INDEX(F_Tools!$U$100:$U$129,MATCH($D217,F_Tools!$E$100:$E$129,0)))/K197,\"\"))","v":""},{"$nulls":8},{"$f":"CONST_PrecursorToGoodInput&D217&\"_\"&D195","v":"PrecToGood__"},null,{"$f":"SUMIF(D_Processes!R:R,AB217,D_Processes!K:K)","v":0},{"$f":"SUMIF(D_Processes!R:R,CONST_CNTR_TotProd&D217,D_Processes!L:L)","v":0},null,false]
[null,null,20,{"$f":"IF(D195=\"\",\"\",IF(COUNTIF(INDEX(CNTR_IOSupplyChain,MATCH(D195,CNTR_IOProcAndPrec,0),),C218)=0,\"\",INDEX(CNTR_IOProcAndPrec,MATCH(C218,INDEX(CNTR_IOSupplyChain,MATCH(D195,CNTR_IOProcAndPrec,0),),0))))","v":""},null,"",{"$f":"IF(D218=\"\",\"\",INDEX(CNTR_Matrix_Inv,MATCH(D195,CNTR_IOProcAndPrec,0),MATCH(D218,CNTR_IOProcAndPrec,0)))","v":""},{"$f":"IF(D218=\"\",\"\",IF(AG218,INDEX(E_PurchPrec!U:U,MATCH(CONST_PurchPrecDefaultUsed&D218,E_PurchPrec!R:R,0)),CONST_NA))","v":""},{"$f":"IF($D218=\"\",\"\",SUM($G218)*SUM(INDEX(InputOutput!$AJ$71:$AJ$100,MATCH($D218,InputOutput!$D$71:$D$100,0))))","v":""},{"$f":"IF($D218=\"\",\"\",SUM($G218)*SUM(INDEX(InputOutput!$AL$71:$AL$100,MATCH($D218,InputOutput!$D$71:$D$100,0))))","v":""},"",{"$f":"IF(D218=\"\",\"\",SUM(I218)*SUM(AD198))","v":""},{"$f":"IF(D218=\"\",\"\",SUM(J218)*SUM(AD198))","v":""},"",{"$f":"IF(AG218,INDEX(E_PurchPrec!U:U,MATCH(CONST_CNTR_ElecEFMethod&D218,E_PurchPrec!R:R,0)),INDEX(D_Processes!T:T,MATCH(CONST_CNTR_ElecEFMethod&D218,D_Processes!R:R,0)))","v":""},{"$f":"IF(OR($D218=\"\",$AG218),\"\",SUM($G218)*SUM(INDEX(InputOutput!$AN$71:$AN$100,MATCH($D218,InputOutput!$D$71:$D$100,0))))","v":""},{"$f":"IF(D218=\"\",\"\",IF(AG218,INDEX(A_InstData!$F$101:$F$120,MATCH(D218,CNTR_List_ExistPurchPrecNames,0)),\"\"))","v":""},{"$f":"IF($D218=\"\",\"\",IFERROR(SUM($G218)*SUM(INDEX(F_Tools!$T$100:$T$129,MATCH($D218,F_Tools!$E$100:$E$129,0)))/K197,\"\"))","v":""},{"$f":"IF($D218=\"\",\"\",IFERROR(SUM($G218)*SUM(INDEX(F_Tools!$U$100:$U$129,MATCH($D218,F_Tools!$E$100:$E$129,0)))/K197,\"\"))","v":""},{"$nulls":8},{"$f":"CONST_PrecursorToGoodInput&D218&\"_\"&D195","v":"PrecToGood__"},null,{"$f":"SUMIF(D_Processes!R:R,AB218,D_Processes!K:K)","v":0},{"$f":"SUMIF(D_Processes!R:R,CONST_CNTR_TotProd&D218,D_Processes!L:L)","v":0},null,false]
[null,null,21,{"$f":"IF(D195=\"\",\"\",IF(COUNTIF(INDEX(CNTR_IOSupplyChain,MATCH(D195,CNTR_IOProcAndPrec,0),),C219)=0,\"\",INDEX(CNTR_IOProcAndPrec,MATCH(C219,INDEX(CNTR_IOSupplyChain,MATCH(D195,CNTR_IOProcAndPrec,0),),0))))","v":""},null,"",{"$f":"IF(D219=\"\",\"\",INDEX(CNTR_Matrix_Inv,MATCH(D195,CNTR_IOProcAndPrec,0),MATCH(D219,CNTR_IOProcAndPrec,0)))","v":""},{"$f":"IF(D219=\"\",\"\",IF(AG219,INDEX(E_PurchPrec!U:U,MATCH(CONST_PurchPrecDefaultUsed&D219,E_PurchPrec!R:R,0)),CONST_NA))","v":""},{"$f":"IF($D219=\"\",\"\",SUM($G219)*SUM(INDEX(InputOutput!$AJ$71:$AJ$100,MATCH($D219,InputOutput!$D$71:$D$100,0))))","v":""},{"$f":"IF($D219=\"\",\"\",SUM($G219)*SUM(INDEX(InputOutput!$AL$71:$AL$100,MATCH($D219,InputOutput!$D$71:$D$100,0))))","v":""},"",{"$f":"IF(D219=\"\",\"\",SUM(I219)*SUM(AD198))","v":""},{"$f":"IF(D219=\"\",\"\",SUM(J219)*SUM(AD198))","v":""},"",{"$f":"IF(AG219,INDEX(E_PurchPrec!U:U,MATCH(CONST_CNTR_ElecEFMethod&D219,E_PurchPrec!R:R,0)),INDEX(D_Processes!T:T,MATCH(CONST_CNTR_ElecEFMethod&D219,D_Processes!R:R,0)))","v":""},{"$f":"IF(OR($D219=\"\",$AG219),\"\",SUM($G219)*SUM(INDEX(InputOutput!$AN$71:$AN$100,MATCH($D219,InputOutput!$D$71:$D$100,0))))","v":""},{"$f":"IF(D219=\"\",\"\",IF(AG219,INDEX(A_InstData!$F$101:$F$120,MATCH(D219,CNTR_List_ExistPurchPrecNames,0)),\"\"))","v":""},{"$f":"IF($D219=\"\",\"\",IFERROR(SUM($G219)*SUM(INDEX(F_Tools!$T$100:$T$129,MATCH($D219,F_Tools!$E$100:$E$129,0)))/K197,\"\"))","v":""},{"$f":"IF($D219=\"\",\"\",IFERROR(SUM($G219)*SUM(INDEX(F_Tools!$U$100:$U$129,MATCH($D219,F_Tools!$E$100:$E$129,0)))/K197,\"\"))","v":""},{"$nulls":8},{"$f":"CONST_PrecursorToGoodInput&D219&\"_\"&D195","v":"PrecToGood__"},null,{"$f":"SUMIF(D_Processes!R:R,AB219,D_Processes!K:K)","v":0},{"$f":"SUMIF(D_Processes!R:R,CONST_CNTR_TotProd&D219,D_Processes!L:L)","v":0},null,false]
[null,null,22,{"$f":"IF(D195=\"\",\"\",IF(COUNTIF(INDEX(CNTR_IOSupplyChain,MATCH(D195,CNTR_IOProcAndPrec,0),),C220)=0,\"\",INDEX(CNTR_IOProcAndPrec,MATCH(C220,INDEX(CNTR_IOSupplyChain,MATCH(D195,CNTR_IOProcAndPrec,0),),0))))","v":""},null,"",{"$f":"IF(D220=\"\",\"\",INDEX(CNTR_Matrix_Inv,MATCH(D195,CNTR_IOProcAndPrec,0),MATCH(D220,CNTR_IOProcAndPrec,0)))","v":""},{"$f":"IF(D220=\"\",\"\",IF(AG220,INDEX(E_PurchPrec!U:U,MATCH(CONST_PurchPrecDefaultUsed&D220,E_PurchPrec!R:R,0)),CONST_NA))","v":""},{"$f":"IF($D220=\"\",\"\",SUM($G220)*SUM(INDEX(InputOutput!$AJ$71:$AJ$100,MATCH($D220,InputOutput!$D$71:$D$100,0))))","v":""},{"$f":"IF($D220=\"\",\"\",SUM($G220)*SUM(INDEX(InputOutput!$AL$71:$AL$100,MATCH($D220,InputOutput!$D$71:$D$100,0))))","v":""},"",{"$f":"IF(D220=\"\",\"\",SUM(I220)*SUM(AD198))","v":""},{"$f":"IF(D220=\"\",\"\",SUM(J220)*SUM(AD198))","v":""},"",{"$f":"IF(AG220,INDEX(E_PurchPrec!U:U,MATCH(CONST_CNTR_ElecEFMethod&D220,E_PurchPrec!R:R,0)),INDEX(D_Processes!T:T,MATCH(CONST_CNTR_ElecEFMethod&D220,D_Processes!R:R,0)))","v":""},{"$f":"IF(OR($D220=\"\",$AG220),\"\",SUM($G220)*SUM(INDEX(InputOutput!$AN$71:$AN$100,MATCH($D220,InputOutput!$D$71:$D$100,0))))","v":""},{"$f":"IF(D220=\"\",\"\",IF(AG220,INDEX(A_InstData!$F$101:$F$120,MATCH(D220,CNTR_List_ExistPurchPrecNames,0)),\"\"))","v":""},{"$f":"IF($D220=\"\",\"\",IFERROR(SUM($G220)*SUM(INDEX(F_Tools!$T$100:$T$129,MATCH($D220,F_Tools!$E$100:$E$129,0)))/K197,\"\"))","v":""},{"$f":"IF($D220=\"\",\"\",IFERROR(SUM($G220)*SUM(INDEX(F_Tools!$U$100:$U$129,MATCH($D220,F_Tools!$E$100:$E$129,0)))/K197,\"\"))","v":""},{"$nulls":8},{"$f":"CONST_PrecursorToGoodInput&D220&\"_\"&D195","v":"PrecToGood__"},null,{"$f":"SUMIF(D_Processes!R:R,AB220,D_Processes!K:K)","v":0},{"$f":"SUMIF(D_Processes!R:R,CONST_CNTR_TotProd&D220,D_Processes!L:L)","v":0},null,false]
[null,null,23,{"$f":"IF(D195=\"\",\"\",IF(COUNTIF(INDEX(CNTR_IOSupplyChain,MATCH(D195,CNTR_IOProcAndPrec,0),),C221)=0,\"\",INDEX(CNTR_IOProcAndPrec,MATCH(C221,INDEX(CNTR_IOSupplyChain,MATCH(D195,CNTR_IOProcAndPrec,0),),0))))","v":""},null,"",{"$f":"IF(D221=\"\",\"\",INDEX(CNTR_Matrix_Inv,MATCH(D195,CNTR_IOProcAndPrec,0),MATCH(D221,CNTR_IOProcAndPrec,0)))","v":""},{"$f":"IF(D221=\"\",\"\",IF(AG221,INDEX(E_PurchPrec!U:U,MATCH(CONST_PurchPrecDefaultUsed&D221,E_PurchPrec!R:R,0)),CONST_NA))","v":""},{"$f":"IF($D221=\"\",\"\",SUM($G221)*SUM(INDEX(InputOutput!$AJ$71:$AJ$100,MATCH($D221,InputOutput!$D$71:$D$100,0))))","v":""},{"$f":"IF($D221=\"\",\"\",SUM($G221)*SUM(INDEX(InputOutput!$AL$71:$AL$100,MATCH($D221,InputOutput!$D$71:$D$100,0))))","v":""},"",{"$f":"IF(D221=\"\",\"\",SUM(I221)*SUM(AD198))","v":""},{"$f":"IF(D221=\"\",\"\",SUM(J221)*SUM(AD198))","v":""},"",{"$f":"IF(AG221,INDEX(E_PurchPrec!U:U,MATCH(CONST_CNTR_ElecEFMethod&D221,E_PurchPrec!R:R,0)),INDEX(D_Processes!T:T,MATCH(CONST_CNTR_ElecEFMethod&D221,D_Processes!R:R,0)))","v":""},{"$f":"IF(OR($D221=\"\",$AG221),\"\",SUM($G221)*SUM(INDEX(InputOutput!$AN$71:$AN$100,MATCH($D221,InputOutput!$D$71:$D$100,0))))","v":""},{"$f":"IF(D221=\"\",\"\",IF(AG221,INDEX(A_InstData!$F$101:$F$120,MATCH(D221,CNTR_List_ExistPurchPrecNames,0)),\"\"))","v":""},{"$f":"IF($D221=\"\",\"\",IFERROR(SUM($G221)*SUM(INDEX(F_Tools!$T$100:$T$129,MATCH($D221,F_Tools!$E$100:$E$129,0)))/K197,\"\"))","v":""},{"$f":"IF($D221=\"\",\"\",IFERROR(SUM($G221)*SUM(INDEX(F_Tools!$U$100:$U$129,MATCH($D221,F_Tools!$E$100:$E$129,0)))/K197,\"\"))","v":""},{"$nulls":8},{"$f":"CONST_PrecursorToGoodInput&D221&\"_\"&D195","v":"PrecToGood__"},null,{"$f":"SUMIF(D_Processes!R:R,AB221,D_Processes!K:K)","v":0},{"$f":"SUMIF(D_Processes!R:R,CONST_CNTR_TotProd&D221,D_Processes!L:L)","v":0},null,false]
[null,null,24,{"$f":"IF(D195=\"\",\"\",IF(COUNTIF(INDEX(CNTR_IOSupplyChain,MATCH(D195,CNTR_IOProcAndPrec,0),),C222)=0,\"\",INDEX(CNTR_IOProcAndPrec,MATCH(C222,INDEX(CNTR_IOSupplyChain,MATCH(D195,CNTR_IOProcAndPrec,0),),0))))","v":""},null,"",{"$f":"IF(D222=\"\",\"\",INDEX(CNTR_Matrix_Inv,MATCH(D195,CNTR_IOProcAndPrec,0),MATCH(D222,CNTR_IOProcAndPrec,0)))","v":""},{"$f":"IF(D222=\"\",\"\",IF(AG222,INDEX(E_PurchPrec!U:U,MATCH(CONST_PurchPrecDefaultUsed&D222,E_PurchPrec!R:R,0)),CONST_NA))","v":""},{"$f":"IF($D222=\"\",\"\",SUM($G222)*SUM(INDEX(InputOutput!$AJ$71:$AJ$100,MATCH($D222,InputOutput!$D$71:$D$100,0))))","v":""},{"$f":"IF($D222=\"\",\"\",SUM($G222)*SUM(INDEX(InputOutput!$AL$71:$AL$100,MATCH($D222,InputOutput!$D$71:$D$100,0))))","v":""},"",{"$f":"IF(D222=\"\",\"\",SUM(I222)*SUM(AD198))","v":""},{"$f":"IF(D222=\"\",\"\",SUM(J222)*SUM(AD198))","v":""},"",{"$f":"IF(AG222,INDEX(E_PurchPrec!U:U,MATCH(CONST_CNTR_ElecEFMethod&D222,E_PurchPrec!R:R,0)),INDEX(D_Processes!T:T,MATCH(CONST_CNTR_ElecEFMethod&D222,D_Processes!R:R,0)))","v":""},{"$f":"IF(OR($D222=\"\",$AG222),\"\",SUM($G222)*SUM(INDEX(InputOutput!$AN$71:$AN$100,MATCH($D222,InputOutput!$D$71:$D$100,0))))","v":""},{"$f":"IF(D222=\"\",\"\",IF(AG222,INDEX(A_InstData!$F$101:$F$120,MATCH(D222,CNTR_List_ExistPurchPrecNames,0)),\"\"))","v":""},{"$f":"IF($D222=\"\",\"\",IFERROR(SUM($G222)*SUM(INDEX(F_Tools!$T$100:$T$129,MATCH($D222,F_Tools!$E$100:$E$129,0)))/K197,\"\"))","v":""},{"$f":"IF($D222=\"\",\"\",IFERROR(SUM($G222)*SUM(INDEX(F_Tools!$U$100:$U$129,MATCH($D222,F_Tools!$E$100:$E$129,0)))/K197,\"\"))","v":""},{"$nulls":8},{"$f":"CONST_PrecursorToGoodInput&D222&\"_\"&D195","v":"PrecToGood__"},null,{"$f":"SUMIF(D_Processes!R:R,AB222,D_Processes!K:K)","v":0},{"$f":"SUMIF(D_Processes!R:R,CONST_CNTR_TotProd&D222,D_Processes!L:L)","v":0},null,false]
[null,null,25,{"$f":"IF(D195=\"\",\"\",IF(COUNTIF(INDEX(CNTR_IOSupplyChain,MATCH(D195,CNTR_IOProcAndPrec,0),),C223)=0,\"\",INDEX(CNTR_IOProcAndPrec,MATCH(C223,INDEX(CNTR_IOSupplyChain,MATCH(D195,CNTR_IOProcAndPrec,0),),0))))","v":""},null,"",{"$f":"IF(D223=\"\",\"\",INDEX(CNTR_Matrix_Inv,MATCH(D195,CNTR_IOProcAndPrec,0),MATCH(D223,CNTR_IOProcAndPrec,0)))","v":""},{"$f":"IF(D223=\"\",\"\",IF(AG223,INDEX(E_PurchPrec!U:U,MATCH(CONST_PurchPrecDefaultUsed&D223,E_PurchPrec!R:R,0)),CONST_NA))","v":""},{"$f":"IF($D223=\"\",\"\",SUM($G223)*SUM(INDEX(InputOutput!$AJ$71:$AJ$100,MATCH($D223,InputOutput!$D$71:$D$100,0))))","v":""},{"$f":"IF($D223=\"\",\"\",SUM($G223)*SUM(INDEX(InputOutput!$AL$71:$AL$100,MATCH($D223,InputOutput!$D$71:$D$100,0))))","v":""},"",{"$f":"IF(D223=\"\",\"\",SUM(I223)*SUM(AD198))","v":""},{"$f":"IF(D223=\"\",\"\",SUM(J223)*SUM(AD198))","v":""},"",{"$f":"IF(AG223,INDEX(E_PurchPrec!U:U,MATCH(CONST_CNTR_ElecEFMethod&D223,E_PurchPrec!R:R,0)),INDEX(D_Processes!T:T,MATCH(CONST_CNTR_ElecEFMethod&D223,D_Processes!R:R,0)))","v":""},{"$f":"IF(OR($D223=\"\",$AG223),\"\",SUM($G223)*SUM(INDEX(InputOutput!$AN$71:$AN$100,MATCH($D223,InputOutput!$D$71:$D$100,0))))","v":""},{"$f":"IF(D223=\"\",\"\",IF(AG223,INDEX(A_InstData!$F$101:$F$120,MATCH(D223,CNTR_List_ExistPurchPrecNames,0)),\"\"))","v":""},{"$f":"IF($D223=\"\",\"\",IFERROR(SUM($G223)*SUM(INDEX(F_Tools!$T$100:$T$129,MATCH($D223,F_Tools!$E$100:$E$129,0)))/K197,\"\"))","v":""},{"$f":"IF($D223=\"\",\"\",IFERROR(SUM($G223)*SUM(INDEX(F_Tools!$U$100:$U$129,MATCH($D223,F_Tools!$E$100:$E$129,0)))/K197,\"\"))","v":""},{"$nulls":8},{"$f":"CONST_PrecursorToGoodInput&D223&\"_\"&D195","v":"PrecToGood__"},null,{"$f":"SUMIF(D_Processes!R:R,AB223,D_Processes!K:K)","v":0},{"$f":"SUMIF(D_Processes!R:R,CONST_CNTR_TotProd&D223,D_Processes!L:L)","v":0},null,false]
[null,null,26,{"$f":"IF(D195=\"\",\"\",IF(COUNTIF(INDEX(CNTR_IOSupplyChain,MATCH(D195,CNTR_IOProcAndPrec,0),),C224)=0,\"\",INDEX(CNTR_IOProcAndPrec,MATCH(C224,INDEX(CNTR_IOSupplyChain,MATCH(D195,CNTR_IOProcAndPrec,0),),0))))","v":""},null,"",{"$f":"IF(D224=\"\",\"\",INDEX(CNTR_Matrix_Inv,MATCH(D195,CNTR_IOProcAndPrec,0),MATCH(D224,CNTR_IOProcAndPrec,0)))","v":""},{"$f":"IF(D224=\"\",\"\",IF(AG224,INDEX(E_PurchPrec!U:U,MATCH(CONST_PurchPrecDefaultUsed&D224,E_PurchPrec!R:R,0)),CONST_NA))","v":""},{"$f":"IF($D224=\"\",\"\",SUM($G224)*SUM(INDEX(InputOutput!$AJ$71:$AJ$100,MATCH($D224,InputOutput!$D$71:$D$100,0))))","v":""},{"$f":"IF($D224=\"\",\"\",SUM($G224)*SUM(INDEX(InputOutput!$AL$71:$AL$100,MATCH($D224,InputOutput!$D$71:$D$100,0))))","v":""},"",{"$f":"IF(D224=\"\",\"\",SUM(I224)*SUM(AD198))","v":""},{"$f":"IF(D224=\"\",\"\",SUM(J224)*SUM(AD198))","v":""},"",{"$f":"IF(AG224,INDEX(E_PurchPrec!U:U,MATCH(CONST_CNTR_ElecEFMethod&D224,E_PurchPrec!R:R,0)),INDEX(D_Processes!T:T,MATCH(CONST_CNTR_ElecEFMethod&D224,D_Processes!R:R,0)))","v":""},{"$f":"IF(OR($D224=\"\",$AG224),\"\",SUM($G224)*SUM(INDEX(InputOutput!$AN$71:$AN$100,MATCH($D224,InputOutput!$D$71:$D$100,0))))","v":""},{"$f":"IF(D224=\"\",\"\",IF(AG224,INDEX(A_InstData!$F$101:$F$120,MATCH(D224,CNTR_List_ExistPurchPrecNames,0)),\"\"))","v":""},{"$f":"IF($D224=\"\",\"\",IFERROR(SUM($G224)*SUM(INDEX(F_Tools!$T$100:$T$129,MATCH($D224,F_Tools!$E$100:$E$129,0)))/K197,\"\"))","v":""},{"$f":"IF($D224=\"\",\"\",IFERROR(SUM($G224)*SUM(INDEX(F_Tools!$U$100:$U$129,MATCH($D224,F_Tools!$E$100:$E$129,0)))/K197,\"\"))","v":""},{"$nulls":8},{"$f":"CONST_PrecursorToGoodInput&D224&\"_\"&D195","v":"PrecToGood__"},null,{"$f":"SUMIF(D_Processes!R:R,AB224,D_Processes!K:K)","v":0},{"$f":"SUMIF(D_Processes!R:R,CONST_CNTR_TotProd&D224,D_Processes!L:L)","v":0},null,false]
[null,null,27,{"$f":"IF(D195=\"\",\"\",IF(COUNTIF(INDEX(CNTR_IOSupplyChain,MATCH(D195,CNTR_IOProcAndPrec,0),),C225)=0,\"\",INDEX(CNTR_IOProcAndPrec,MATCH(C225,INDEX(CNTR_IOSupplyChain,MATCH(D195,CNTR_IOProcAndPrec,0),),0))))","v":""},null,"",{"$f":"IF(D225=\"\",\"\",INDEX(CNTR_Matrix_Inv,MATCH(D195,CNTR_IOProcAndPrec,0),MATCH(D225,CNTR_IOProcAndPrec,0)))","v":""},{"$f":"IF(D225=\"\",\"\",IF(AG225,INDEX(E_PurchPrec!U:U,MATCH(CONST_PurchPrecDefaultUsed&D225,E_PurchPrec!R:R,0)),CONST_NA))","v":""},{"$f":"IF($D225=\"\",\"\",SUM($G225)*SUM(INDEX(InputOutput!$AJ$71:$AJ$100,MATCH($D225,InputOutput!$D$71:$D$100,0))))","v":""},{"$f":"IF($D225=\"\",\"\",SUM($G225)*SUM(INDEX(InputOutput!$AL$71:$AL$100,MATCH($D225,InputOutput!$D$71:$D$100,0))))","v":""},"",{"$f":"IF(D225=\"\",\"\",SUM(I225)*SUM(AD198))","v":""},{"$f":"IF(D225=\"\",\"\",SUM(J225)*SUM(AD198))","v":""},"",{"$f":"IF(AG225,INDEX(E_PurchPrec!U:U,MATCH(CONST_CNTR_ElecEFMethod&D225,E_PurchPrec!R:R,0)),INDEX(D_Processes!T:T,MATCH(CONST_CNTR_ElecEFMethod&D225,D_Processes!R:R,0)))","v":""},{"$f":"IF(OR($D225=\"\",$AG225),\"\",SUM($G225)*SUM(INDEX(InputOutput!$AN$71:$AN$100,MATCH($D225,InputOutput!$D$71:$D$100,0))))","v":""},{"$f":"IF(D225=\"\",\"\",IF(AG225,INDEX(A_InstData!$F$101:$F$120,MATCH(D225,CNTR_List_ExistPurchPrecNames,0)),\"\"))","v":""},{"$f":"IF($D225=\"\",\"\",IFERROR(SUM($G225)*SUM(INDEX(F_Tools!$T$100:$T$129,MATCH($D225,F_Tools!$E$100:$E$129,0)))/K197,\"\"))","v":""},{"$f":"IF($D225=\"\",\"\",IFERROR(SUM($G225)*SUM(INDEX(F_Tools!$U$100:$U$129,MATCH($D225,F_Tools!$E$100:$E$129,0)))/K197,\"\"))","v":""},{"$nulls":8},{"$f":"CONST_PrecursorToGoodInput&D225&\"_\"&D195","v":"PrecToGood__"},null,{"$f":"SUMIF(D_Processes!R:R,AB225,D_Processes!K:K)","v":0},{"$f":"SUMIF(D_Processes!R:R,CONST_CNTR_TotProd&D225,D_Processes!L:L)","v":0},null,false]
[null,null,28,{"$f":"IF(D195=\"\",\"\",IF(COUNTIF(INDEX(CNTR_IOSupplyChain,MATCH(D195,CNTR_IOProcAndPrec,0),),C226)=0,\"\",INDEX(CNTR_IOProcAndPrec,MATCH(C226,INDEX(CNTR_IOSupplyChain,MATCH(D195,CNTR_IOProcAndPrec,0),),0))))","v":""},null,"",{"$f":"IF(D226=\"\",\"\",INDEX(CNTR_Matrix_Inv,MATCH(D195,CNTR_IOProcAndPrec,0),MATCH(D226,CNTR_IOProcAndPrec,0)))","v":""},{"$f":"IF(D226=\"\",\"\",IF(AG226,INDEX(E_PurchPrec!U:U,MATCH(CONST_PurchPrecDefaultUsed&D226,E_PurchPrec!R:R,0)),CONST_NA))","v":""},{"$f":"IF($D226=\"\",\"\",SUM($G226)*SUM(INDEX(InputOutput!$AJ$71:$AJ$100,MATCH($D226,InputOutput!$D$71:$D$100,0))))","v":""},{"$f":"IF($D226=\"\",\"\",SUM($G226)*SUM(INDEX(InputOutput!$AL$71:$AL$100,MATCH($D226,InputOutput!$D$71:$D$100,0))))","v":""},"",{"$f":"IF(D226=\"\",\"\",SUM(I226)*SUM(AD198))","v":""},{"$f":"IF(D226=\"\",\"\",SUM(J226)*SUM(AD198))","v":""},"",{"$f":"IF(AG226,INDEX(E_PurchPrec!U:U,MATCH(CONST_CNTR_ElecEFMethod&D226,E_PurchPrec!R:R,0)),INDEX(D_Processes!T:T,MATCH(CONST_CNTR_ElecEFMethod&D226,D_Processes!R:R,0)))","v":""},{"$f":"IF(OR($D226=\"\",$AG226),\"\",SUM($G226)*SUM(INDEX(InputOutput!$AN$71:$AN$100,MATCH($D226,InputOutput!$D$71:$D$100,0))))","v":""},{"$f":"IF(D226=\"\",\"\",IF(AG226,INDEX(A_InstData!$F$101:$F$120,MATCH(D226,CNTR_List_ExistPurchPrecNames,0)),\"\"))","v":""},{"$f":"IF($D226=\"\",\"\",IFERROR(SUM($G226)*SUM(INDEX(F_Tools!$T$100:$T$129,MATCH($D226,F_Tools!$E$100:$E$129,0)))/K197,\"\"))","v":""},{"$f":"IF($D226=\"\",\"\",IFERROR(SUM($G226)*SUM(INDEX(F_Tools!$U$100:$U$129,MATCH($D226,F_Tools!$E$100:$E$129,0)))/K197,\"\"))","v":""},{"$nulls":8},{"$f":"CONST_PrecursorToGoodInput&D226&\"_\"&D195","v":"PrecToGood__"},null,{"$f":"SUMIF(D_Processes!R:R,AB226,D_Processes!K:K)","v":0},{"$f":"SUMIF(D_Processes!R:R,CONST_CNTR_TotProd&D226,D_Processes!L:L)","v":0},null,false]
[null,null,29,{"$f":"IF(D195=\"\",\"\",IF(COUNTIF(INDEX(CNTR_IOSupplyChain,MATCH(D195,CNTR_IOProcAndPrec,0),),C227)=0,\"\",INDEX(CNTR_IOProcAndPrec,MATCH(C227,INDEX(CNTR_IOSupplyChain,MATCH(D195,CNTR_IOProcAndPrec,0),),0))))","v":""},null,"",{"$f":"IF(D227=\"\",\"\",INDEX(CNTR_Matrix_Inv,MATCH(D195,CNTR_IOProcAndPrec,0),MATCH(D227,CNTR_IOProcAndPrec,0)))","v":""},{"$f":"IF(D227=\"\",\"\",IF(AG227,INDEX(E_PurchPrec!U:U,MATCH(CONST_PurchPrecDefaultUsed&D227,E_PurchPrec!R:R,0)),CONST_NA))","v":""},{"$f":"IF($D227=\"\",\"\",SUM($G227)*SUM(INDEX(InputOutput!$AJ$71:$AJ$100,MATCH($D227,InputOutput!$D$71:$D$100,0))))","v":""},{"$f":"IF($D227=\"\",\"\",SUM($G227)*SUM(INDEX(InputOutput!$AL$71:$AL$100,MATCH($D227,InputOutput!$D$71:$D$100,0))))","v":""},"",{"$f":"IF(D227=\"\",\"\",SUM(I227)*SUM(AD198))","v":""},{"$f":"IF(D227=\"\",\"\",SUM(J227)*SUM(AD198))","v":""},"",{"$f":"IF(AG227,INDEX(E_PurchPrec!U:U,MATCH(CONST_CNTR_ElecEFMethod&D227,E_PurchPrec!R:R,0)),INDEX(D_Processes!T:T,MATCH(CONST_CNTR_ElecEFMethod&D227,D_Processes!R:R,0)))","v":""},{"$f":"IF(OR($D227=\"\",$AG227),\"\",SUM($G227)*SUM(INDEX(InputOutput!$AN$71:$AN$100,MATCH($D227,InputOutput!$D$71:$D$100,0))))","v":""},{"$f":"IF(D227=\"\",\"\",IF(AG227,INDEX(A_InstData!$F$101:$F$120,MATCH(D227,CNTR_List_ExistPurchPrecNames,0)),\"\"))","v":""},{"$f":"IF($D227=\"\",\"\",IFERROR(SUM($G227)*SUM(INDEX(F_Tools!$T$100:$T$129,MATCH($D227,F_Tools!$E$100:$E$129,0)))/K197,\"\"))","v":""},{"$f":"IF($D227=\"\",\"\",IFERROR(SUM($G227)*SUM(INDEX(F_Tools!$U$100:$U$129,MATCH($D227,F_Tools!$E$100:$E$129,0)))/K197,\"\"))","v":""},{"$nulls":8},{"$f":"CONST_PrecursorToGoodInput&D227&\"_\"&D195","v":"PrecToGood__"},null,{"$f":"SUMIF(D_Processes!R:R,AB227,D_Processes!K:K)","v":0},{"$f":"SUMIF(D_Processes!R:R,CONST_CNTR_TotProd&D227,D_Processes!L:L)","v":0},null,false]
[null,null,30,{"$f":"IF(D195=\"\",\"\",IF(COUNTIF(INDEX(CNTR_IOSupplyChain,MATCH(D195,CNTR_IOProcAndPrec,0),),C228)=0,\"\",INDEX(CNTR_IOProcAndPrec,MATCH(C228,INDEX(CNTR_IOSupplyChain,MATCH(D195,CNTR_IOProcAndPrec,0),),0))))","v":""},null,"",{"$f":"IF(D228=\"\",\"\",INDEX(CNTR_Matrix_Inv,MATCH(D195,CNTR_IOProcAndPrec,0),MATCH(D228,CNTR_IOProcAndPrec,0)))","v":""},{"$f":"IF(D228=\"\",\"\",IF(AG228,INDEX(E_PurchPrec!U:U,MATCH(CONST_PurchPrecDefaultUsed&D228,E_PurchPrec!R:R,0)),CONST_NA))","v":""},{"$f":"IF($D228=\"\",\"\",SUM($G228)*SUM(INDEX(InputOutput!$AJ$71:$AJ$100,MATCH($D228,InputOutput!$D$71:$D$100,0))))","v":""},{"$f":"IF($D228=\"\",\"\",SUM($G228)*SUM(INDEX(InputOutput!$AL$71:$AL$100,MATCH($D228,InputOutput!$D$71:$D$100,0))))","v":""},"",{"$f":"IF(D228=\"\",\"\",SUM(I228)*SUM(AD198))","v":""},{"$f":"IF(D228=\"\",\"\",SUM(J228)*SUM(AD198))","v":""},"",{"$f":"IF(AG228,INDEX(E_PurchPrec!U:U,MATCH(CONST_CNTR_ElecEFMethod&D228,E_PurchPrec!R:R,0)),INDEX(D_Processes!T:T,MATCH(CONST_CNTR_ElecEFMethod&D228,D_Processes!R:R,0)))","v":""},{"$f":"IF(OR($D228=\"\",$AG228),\"\",SUM($G228)*SUM(INDEX(InputOutput!$AN$71:$AN$100,MATCH($D228,InputOutput!$D$71:$D$100,0))))","v":""},{"$f":"IF(D228=\"\",\"\",IF(AG228,INDEX(A_InstData!$F$101:$F$120,MATCH(D228,CNTR_List_ExistPurchPrecNames,0)),\"\"))","v":""},{"$f":"IF($D228=\"\",\"\",IFERROR(SUM($G228)*SUM(INDEX(F_Tools!$T$100:$T$129,MATCH($D228,F_Tools!$E$100:$E$129,0)))/K197,\"\"))","v":""},{"$f":"IF($D228=\"\",\"\",IFERROR(SUM($G228)*SUM(INDEX(F_Tools!$U$100:$U$129,MATCH($D228,F_Tools!$E$100:$E$129,0)))/K197,\"\"))","v":""},{"$nulls":8},{"$f":"CONST_PrecursorToGoodInput&D228&\"_\"&D195","v":"PrecToGood__"},null,{"$f":"SUMIF(D_Processes!R:R,AB228,D_Processes!K:K)","v":0},{"$f":"SUMIF(D_Processes!R:R,CONST_CNTR_TotProd&D228,D_Processes!L:L)","v":0},null,false]
[]
[]
[null,null,{"$f":"C195+1","v":3},{"$f":"IF(INDEX(CNTR_List_ExistProdProcNames,C231)=CONST_NA,\"\",INDEX(CNTR_List_ExistProdProcNames,C231))","v":""},null,{"$f":"Translations!$B$107","v":"Aggregated goods category"},{"$f":"Translations!$B$584","v":"Mass share"},{"$f":"Translations!$B$586","v":"(Share of) Default value"},{"$f":"Translations!$B$570","v":"SEE (direct)"},{"$f":"Translations!$B$574","v":"SEE (indirect)"},{"$f":"Translations!$B$344","v":"SEE (total)"},{"$f":"Translations!$B$589","v":"EmbEm (direct)"},{"$f":"Translations!$B$591","v":"EmbEm (indirect)"},{"$f":"Translations!$B$593","v":"EmbEm (total)"},{"$f":"Translations!$B$594","v":"Source of electricity EF"},{"$f":"Translations!$B$597","v":"Specific electricity"},"Country code",{"$f":"Translations!$B$351","v":"CP due (per t or MWh)"},{"$f":"Translations!$B$352","v":"Rebate (per t or MWh)"},{"$nulls":12},{"$f":"H231","v":"(Share of) Default value"},{"$f":"H233","v":""}]
[{"$nulls":6},{"$f":"IF($F233=\"\",CONST_t,INDEX(CONST_LIST_GoodsUnit,MATCH($F233,CONST_LIST_Goods,0)))&\"/\"&IF($F233=\"\",CONST_t,INDEX(CONST_LIST_GoodsUnit,MATCH($F233,CONST_LIST_Goods,0)))","v":"t/t"},null,{"$f":"CONST_tCO2eq&\"/\"&IF($F233=\"\",CONST_t,INDEX(CONST_LIST_GoodsUnit,MATCH($F233,CONST_LIST_Goods,0)))","v":"tCO2e/t"},{"$f":"CONST_tCO2eq&\"/\"&IF($F233=\"\",CONST_t,INDEX(CONST_LIST_GoodsUnit,MATCH($F233,CONST_LIST_Goods,0)))","v":"tCO2e/t"},{"$f":"CONST_tCO2eq&\"/\"&IF($F233=\"\",CONST_t,INDEX(CONST_LIST_GoodsUnit,MATCH($F233,CONST_LIST_Goods,0)))","v":"tCO2e/t"},{"$f":"CONST_tCO2eq","v":"tCO2e"},{"$f":"CONST_tCO2eq","v":"tCO2e"},{"$f":"CONST_tCO2eq","v":"tCO2e"},null,{"$f":"CONST_MWh&\"/\"&IF($F233=\"\",CONST_t,INDEX(CONST_LIST_GoodsUnit,MATCH($F233,CONST_LIST_Goods,0)))","v":"MWh/t"}]
[{"$nulls":3},{"$f":"Translations!$B$600","v":"Total production process"},null,{"$f":"IF(D234=\"\",\"\",INDEX(CNTR_List_ExistProdProc,MATCH(D234,CNTR_List_ExistProdProcNames,0)))","v":""},"-",{"$f":"IF(D231=\"\",\"\",IFERROR(SUMIFS(I235:I264,H235:H264,TRUE)/I233,\"\"))","v":""},{"$f":"IF(COUNT(I234:I264)>0,SUM(I234:I264),\"\")","v":""},"","","","","","-",{"$f":"IF(COUNT(P234:P264)>0,SUM(P234:P264),\"\")","v":""},"-",{"$f":"IF(COUNT(R234:R264)>0,SUM(R234:R264),\"\")","v":""},{"$f":"IF(COUNT(S234:S264)>0,SUM(S234:S264),\"\")","v":""},{"$nulls":10},{"$f":"Translations!$B$601","v":"Production and consumption"},{"$f":"Translations!$B$602","v":"Total production of precursors"},null,"IsPrecursor?"]
[{"$nulls":3},{"$f":"D231","v":""},null,{"$f":"IF(D234=\"\",\"\",INDEX(CNTR_List_ExistProdProc,MATCH(D234,CNTR_List_ExistProdProcNames,0)))","v":""},{"v":1,"d":"1.000"},"-",{"$f":"IF($D234=\"\",\"\",SUM($G234)*SUM(INDEX(InputOutput!$AJ$71:$AJ$100,MATCH($D234,InputOutput!$D$71:$D$100,0))))","v":""},{"$f":"IF($D234=\"\",\"\",SUM($G234)*SUM(INDEX(InputOutput!$AL$71:$AL$100,MATCH($D234,InputOutput!$D$71:$D$100,0))))","v":""},{"$f":"IF(COUNT(I234:J234)>0,SUM(I234:J234),\"\")","v":""},{"$f":"IF(D234=\"\",\"\",SUM(I234)*SUM(AD234))","v":""},{"$f":"IF(D234=\"\",\"\",SUM(J234)*SUM(AD234))","v":""},{"$f":"IF(COUNT(L234:M234)>0,SUM(L234:M234),\"\")","v":""},{"$f":"IF(AG234,INDEX(E_PurchPrec!U:U,MATCH(CONST_CNTR_ElecEFMethod&D234,E_PurchPrec!R:R,0)),INDEX(D_Processes!T:T,MATCH(CONST_CNTR_ElecEFMethod&D234,D_Processes!R:R,0)))","v":""},{"$f":"IF(OR($D234=\"\",$AG234),\"\",SUM($G234)*SUM(INDEX(InputOutput!$AN$71:$AN$100,MATCH($D234,InputOutput!$D$71:$D$100,0))))","v":""},null,{"$f":"IF($D234=\"\",\"\",IFERROR(SUM($G234)*SUM(INDEX(F_Tools!$T$100:$T$129,MATCH($D234,F_Tools!$E$100:$E$129,0)))/K233,\"\"))","v":""},{"$f":"IF($D234=\"\",\"\",IFERROR(SUM($G234)*SUM(INDEX(F_Tools!$U$100:$U$129,MATCH($D234,F_Tools!$E$100:$E$129,0)))/K233,\"\"))","v":""},{"$nulls":8},{"$f":"CONST_CNTR_TotProd&D231","v":"TotProd_"},null,{"$f":"SUMIF(D_Processes!R:R,AB234,D_Processes!L:L)","v":0}]
[null,null,1,{"$f":"IF(D231=\"\",\"\",IF(COUNTIF(INDEX(CNTR_IOSupplyChain,MATCH(D231,CNTR_IOProcAndPrec,0),),C235)=0,\"\",INDEX(CNTR_IOProcAndPrec,MATCH(C235,INDEX(CNTR_IOSupplyChain,MATCH(D231,CNTR_IOProcAndPrec,0),),0))))","v":""},null,{"$f":"IF(D235=\"\",\"\",IF(COUNTIF(CNTR_List_ExistProdProcNames,D235)>0,INDEX(CNTR_List_ExistProdProc,MATCH(D235,CNTR_List_ExistProdProcNames,0)),INDEX(CNTR_List_ExistPurchPrec,MATCH(D235,CNTR_List_ExistPurchPrecNames,0))))","v":""},{"$f":"IF(D235=\"\",\"\",INDEX(CNTR_Matrix_Inv,MATCH(D231,CNTR_IOProcAndPrec,0),MATCH(D235,CNTR_IOProcAndPrec,0)))","v":""},{"$f":"IF(D235=\"\",\"\",IF(AG235,INDEX(E_PurchPrec!U:U,MATCH(CONST_PurchPrecDefaultUsed&D235,E_PurchPrec!R:R,0)),CONST_NA))","v":""},{"$f":"IF($D235=\"\",\"\",SUM($G235)*SUM(INDEX(InputOutput!$AJ$71:$AJ$100,MATCH($D235,InputOutput!$D$71:$D$100,0))))","v":""},{"$f":"IF($D235=\"\",\"\",SUM($G235)*SUM(INDEX(InputOutput!$AL$71:$AL$100,MATCH($D235,InputOutput!$D$71:$D$100,0))))","v":""},"",{"$f":"IF(D235=\"\",\"\",SUM(I235)*SUM(AD234))","v":""},{"$f":"IF(D235=\"\",\"\",SUM(J235)*SUM(AD234))","v":""},{"$f":"IF(COUNT(L235:M235)>0,SUM(L235:M235),\"\")","v":""},{"$f":"IF(AG235,INDEX(E_PurchPrec!U:U,MATCH(CONST_CNTR_ElecEFMethod&D235,E_PurchPrec!R:R,0)),INDEX(D_Processes!T:T,MATCH(CONST_CNTR_ElecEFMethod&D235,D_Processes!R:R,0)))","v":""},{"$f":"IF(OR($D235=\"\",$AG235),\"\",SUM($G235)*SUM(INDEX(InputOutput!$AN$71:$AN$100,MATCH($D235,InputOutput!$D$71:$D$100,0))))","v":""},{"$f":"IF(D235=\"\",\"\",IF(AG235,INDEX(A_InstData!$F$101:$F$120,MATCH(D235,CNTR_List_ExistPurchPrecNames,0)),\"\"))","v":""},{"$f":"IF($D235=\"\",\"\",IFERROR(SUM($G235)*SUM(INDEX(F_Tools!$T$100:$T$129,MATCH($D235,F_Tools!$E$100:$E$129,0)))/K233,\"\"))","v":""},{"$f":"IF($D235=\"\",\"\",IFERROR(SUM($G235)*SUM(INDEX(F_Tools!$U$100:$U$129,MATCH($D235,F_Tools!$E$100:$E$129,0)))/K233,\"\"))","v":""},{"$nulls":8},{"$f":"CONST_PrecursorToGoodInput&D235&\"_\"&D231","v":"PrecToGood__"},null,{"$f":"SUMIF(D_Processes!R:R,AB235,D_Processes!K:K)","v":0},{"$f":"SUMIF(D_Processes!R:R,CONST_CNTR_TotProd&D235,D_Processes!L:L)","v":0},null,{"$f":"COUNTIF(CNTR_List_ExistPurchPrecNames,D235)>0","v":false}]
[null,null,2,{"$f":"IF(D231=\"\",\"\",IF(COUNTIF(INDEX(CNTR_IOSupplyChain,MATCH(D231,CNTR_IOProcAndPrec,0),),C236)=0,\"\",INDEX(CNTR_IOProcAndPrec,MATCH(C236,INDEX(CNTR_IOSupplyChain,MATCH(D231,CNTR_IOProcAndPrec,0),),0))))","v":""},null,"",{"$f":"IF(D236=\"\",\"\",INDEX(CNTR_Matrix_Inv,MATCH(D231,CNTR_IOProcAndPrec,0),MATCH(D236,CNTR_IOProcAndPrec,0)))","v":""},{"$f":"IF(D236=\"\",\"\",IF(AG236,INDEX(E_PurchPrec!U:U,MATCH(CONST_PurchPrecDefaultUsed&D236,E_PurchPrec!R:R,0)),CONST_NA))","v":""},{"$f":"IF($D236=\"\",\"\",SUM($G236)*SUM(INDEX(InputOutput!$AJ$71:$AJ$100,MATCH($D236,InputOutput!$D$71:$D$100,0))))","v":""},{"$f":"IF($D236=\"\",\"\",SUM($G236)*SUM(INDEX(InputOutput!$AL$71:$AL$100,MATCH($D236,InputOutput!$D$71:$D$100,0))))","v":""},"",{"$f":"IF(D236=\"\",\"\",SUM(I236)*SUM(AD234))","v":""},{"$f":"IF(D236=\"\",\"\",SUM(J236)*SUM(AD234))","v":""},{"$f":"IF(COUNT(L236:M236)>0,SUM(L236:M236),\"\")","v":""},{"$f":"IF(AG236,INDEX(E_PurchPrec!U:U,MATCH(CONST_CNTR_ElecEFMethod&D236,E_PurchPrec!R:R,0)),INDEX(D_Processes!T:T,MATCH(CONST_CNTR_ElecEFMethod&D236,D_Processes!R:R,0)))","v":""},{"$f":"IF(OR($D236=\"\",$AG236),\"\",SUM($G236)*SUM(INDEX(InputOutput!$AN$71:$AN$100,MATCH($D236,InputOutput!$D$71:$D$100,0))))","v":""},{"$f":"IF(D236=\"\",\"\",IF(AG236,INDEX(A_InstData!$F$101:$F$120,MATCH(D236,CNTR_List_ExistPurchPrecNames,0)),\"\"))","v":""},{"$f":"IF($D236=\"\",\"\",IFERROR(SUM($G236)*SUM(INDEX(F_Tools!$T$100:$T$129,MATCH($D236,F_Tools!$E$100:$E$129,0)))/K233,\"\"))","v":""},{"$f":"IF($D236=\"\",\"\",IFERROR(SUM($G236)*SUM(INDEX(F_Tools!$U$100:$U$129,MATCH($D236,F_Tools!$E$100:$E$129,0)))/K233,\"\"))","v":""},{"$nulls":8},{"$f":"CONST_PrecursorToGoodInput&D236&\"_\"&D231","v":"PrecToGood__"},null,{"$f":"SUMIF(D_Processes!R:R,AB236,D_Processes!K:K)","v":0},{"$f":"SUMIF(D_Processes!R:R,CONST_CNTR_TotProd&D236,D_Processes!L:L)","v":0},null,false]
[null,null,3,{"$f":"IF(D231=\"\",\"\",IF(COUNTIF(INDEX(CNTR_IOSupplyChain,MATCH(D231,CNTR_IOProcAndPrec,0),),C237)=0,\"\",INDEX(CNTR_IOProcAndPrec,MATCH(C237,INDEX(CNTR_IOSupplyChain,MATCH(D231,CNTR_IOProcAndPrec,0),),0))))","v":""},null,"",{"$f":"IF(D237=\"\",\"\",INDEX(CNTR_Matrix_Inv,MATCH(D231,CNTR_IOProcAndPrec,0),MATCH(D237,CNTR_IOProcAndPrec,0)))","v":""},{"$f":"IF(D237=\"\",\"\",IF(AG237,INDEX(E_PurchPrec!U:U,MATCH(CONST_PurchPrecDefaultUsed&D237,E_PurchPrec!R:R,0)),CONST_NA))","v":""},{"$f":"IF($D237=\"\",\"\",SUM($G237)*SUM(INDEX(InputOutput!$AJ$71:$AJ$100,MATCH($D237,InputOutput!$D$71:$D$100,0))))","v":""},{"$f":"IF($D237=\"\",\"\",SUM($G237)*SUM(INDEX(InputOutput!$AL$71:$AL$100,MATCH($D237,InputOutput!$D$71:$D$100,0))))","v":""},"",{"$f":"IF(D237=\"\",\"\",SUM(I237)*SUM(AD234))","v":""},{"$f":"IF(D237=\"\",\"\",SUM(J237)*SUM(AD234))","v":""},{"$f":"IF(COUNT(L237:M237)>0,SUM(L237:M237),\"\")","v":""},{"$f":"IF(AG237,INDEX(E_PurchPrec!U:U,MATCH(CONST_CNTR_ElecEFMethod&D237,E_PurchPrec!R:R,0)),INDEX(D_Processes!T:T,MATCH(CONST_CNTR_ElecEFMethod&D237,D_Processes!R:R,0)))","v":""},{"$f":"IF(OR($D237=\"\",$AG237),\"\",SUM($G237)*SUM(INDEX(InputOutput!$AN$71:$AN$100,MATCH($D237,InputOutput!$D$71:$D$100,0))))","v":""},{"$f":"IF(D237=\"\",\"\",IF(AG237,INDEX(A_InstData!$F$101:$F$120,MATCH(D237,CNTR_List_ExistPurchPrecNames,0)),\"\"))","v":""},{"$f":"IF($D237=\"\",\"\",IFERROR(SUM($G237)*SUM(INDEX(F_Tools!$T$100:$T$129,MATCH($D237,F_Tools!$E$100:$E$129,0)))/K233,\"\"))","v":""},{"$f":"IF($D237=\"\",\"\",IFERROR(SUM($G237)*SUM(INDEX(F_Tools!$U$100:$U$129,MATCH($D237,F_Tools!$E$100:$E$129,0)))/K233,\"\"))","v":""},{"$nulls":8},{"$f":"CONST_PrecursorToGoodInput&D237&\"_\"&D231","v":"PrecToGood__"},null,{"$f":"SUMIF(D_Processes!R:R,AB237,D_Processes!K:K)","v":0},{"$f":"SUMIF(D_Processes!R:R,CONST_CNTR_TotProd&D237,D_Processes!L:L)","v":0},null,false]
[null,null,4,{"$f":"IF(D231=\"\",\"\",IF(COUNTIF(INDEX(CNTR_IOSupplyChain,MATCH(D231,CNTR_IOProcAndPrec,0),),C238)=0,\"\",INDEX(CNTR_IOProcAndPrec,MATCH(C238,INDEX(CNTR_IOSupplyChain,MATCH(D231,CNTR_IOProcAndPrec,0),),0))))","v":""},null,"",{"$f":"IF(D238=\"\",\"\",INDEX(CNTR_Matrix_Inv,MATCH(D231,CNTR_IOProcAndPrec,0),MATCH(D238,CNTR_IOProcAndPrec,0)))","v":""},{"$f":"IF(D238=\"\",\"\",IF(AG238,INDEX(E_PurchPrec!U:U,MATCH(CONST_PurchPrecDefaultUsed&D238,E_PurchPrec!R:R,0)),CONST_NA))","v":""},{"$f":"IF($D238=\"\",\"\",SUM($G238)*SUM(INDEX(InputOutput!$AJ$71:$AJ$100,MATCH($D238,InputOutput!$D$71:$D$100,0))))","v":""},{"$f":"IF($D238=\"\",\"\",SUM($G238)*SUM(INDEX(InputOutput!$AL$71:$AL$100,MATCH($D238,InputOutput!$D$71:$D$100,0))))","v":""},"",{"$f":"IF(D238=\"\",\"\",SUM(I238)*SUM(AD234))","v":""},{"$f":"IF(D238=\"\",\"\",SUM(J238)*SUM(AD234))","v":""},"",{"$f":"IF(AG238,INDEX(E_PurchPrec!U:U,MATCH(CONST_CNTR_ElecEFMethod&D238,E_PurchPrec!R:R,0)),INDEX(D_Processes!T:T,MATCH(CONST_CNTR_ElecEFMethod&D238,D_Processes!R:R,0)))","v":""},{"$f":"IF(OR($D238=\"\",$AG238),\"\",SUM($G238)*SUM(INDEX(InputOutput!$AN$71:$AN$100,MATCH($D238,InputOutput!$D$71:$D$100,0))))","v":""},{"$f":"IF(D238=\"\",\"\",IF(AG238,INDEX(A_InstData!$F$101:$F$120,MATCH(D238,CNTR_List_ExistPurchPrecNames,0)),\"\"))","v":""},{"$f":"IF($D238=\"\",\"\",IFERROR(SUM($G238)*SUM(INDEX(F_Tools!$T$100:$T$129,MATCH($D238,F_Tools!$E$100:$E$129,0)))/K233,\"\"))","v":""},{"$f":"IF($D238=\"\",\"\",IFERROR(SUM($G238)*SUM(INDEX(F_Tools!$U$100:$U$129,MATCH($D238,F_Tools!$E$100:$E$129,0)))/K233,\"\"))","v":""},{"$nulls":8},{"$f":"CONST_PrecursorToGoodInput&D238&\"_\"&D231","v":"PrecToGood__"},null,{"$f":"SUMIF(D_Processes!R:R,AB238,D_Processes!K:K)","v":0},{"$f":"SUMIF(D_Processes!R:R,CONST_CNTR_TotProd&D238,D_Processes!L:L)","v":0},null,false]
[null,null,5,{"$f":"IF(D231=\"\",\"\",IF(COUNTIF(INDEX(CNTR_IOSupplyChain,MATCH(D231,CNTR_IOProcAndPrec,0),),C239)=0,\"\",INDEX(CNTR_IOProcAndPrec,MATCH(C239,INDEX(CNTR_IOSupplyChain,MATCH(D231,CNTR_IOProcAndPrec,0),),0))))","v":""},null,"",{"$f":"IF(D239=\"\",\"\",INDEX(CNTR_Matrix_Inv,MATCH(D231,CNTR_IOProcAndPrec,0),MATCH(D239,CNTR_IOProcAndPrec,0)))","v":""},{"$f":"IF(D239=\"\",\"\",IF(AG239,INDEX(E_PurchPrec!U:U,MATCH(CONST_PurchPrecDefaultUsed&D239,E_PurchPrec!R:R,0)),CONST_NA))","v":""},{"$f":"IF($D239=\"\",\"\",SUM($G239)*SUM(INDEX(InputOutput!$AJ$71:$AJ$100,MATCH($D239,InputOutput!$D$71:$D$100,0))))","v":""},{"$f":"IF($D239=\"\",\"\",SUM($G239)*SUM(INDEX(InputOutput!$AL$71:$AL$100,MATCH($D239,InputOutput!$D$71:$D$100,0))))","v":""},"",{"$f":"IF(D239=\"\",\"\",SUM(I239)*SUM(AD234))","v":""},{"$f":"IF(D239=\"\",\"\",SUM(J239)*SUM(AD234))","v":""},"",{"$f":"IF(AG239,INDEX(E_PurchPrec!U:U,MATCH(CONST_CNTR_ElecEFMethod&D239,E_PurchPrec!R:R,0)),INDEX(D_Processes!T:T,MATCH(CONST_CNTR_ElecEFMethod&D239,D_Processes!R:R,0)))","v":""},{"$f":"IF(OR($D239=\"\",$AG239),\"\",SUM($G239)*SUM(INDEX(InputOutput!$AN$71:$AN$100,MATCH($D239,InputOutput!$D$71:$D$100,0))))","v":""},{"$f":"IF(D239=\"\",\"\",IF(AG239,INDEX(A_InstData!$F$101:$F$120,MATCH(D239,CNTR_List_ExistPurchPrecNames,0)),\"\"))","v":""},{"$f":"IF($D239=\"\",\"\",IFERROR(SUM($G239)*SUM(INDEX(F_Tools!$T$100:$T$129,MATCH($D239,F_Tools!$E$100:$E$129,0)))/K233,\"\"))","v":""},{"$f":"IF($D239=\"\",\"\",IFERROR(SUM($G239)*SUM(INDEX(F_Tools!$U$100:$U$129,MATCH($D239,F_Tools!$E$100:$E$129,0)))/K233,\"\"))","v":""},{"$nulls":8},{"$f":"CONST_PrecursorToGoodInput&D239&\"_\"&D231","v":"PrecToGood__"},null,{"$f":"SUMIF(D_Processes!R:R,AB239,D_Processes!K:K)","v":0},{"$f":"SUMIF(D_Processes!R:R,CONST_CNTR_TotProd&D239,D_Processes!L:L)","v":0},null,false]
[null,null,6,{"$f":"IF(D231=\"\",\"\",IF(COUNTIF(INDEX(CNTR_IOSupplyChain,MATCH(D231,CNTR_IOProcAndPrec,0),),C240)=0,\"\",INDEX(CNTR_IOProcAndPrec,MATCH(C240,INDEX(CNTR_IOSupplyChain,MATCH(D231,CNTR_IOProcAndPrec,0),),0))))","v":""},null,"",{"$f":"IF(D240=\"\",\"\",INDEX(CNTR_Matrix_Inv,MATCH(D231,CNTR_IOProcAndPrec,0),MATCH(D240,CNTR_IOProcAndPrec,0)))","v":""},{"$f":"IF(D240=\"\",\"\",IF(AG240,INDEX(E_PurchPrec!U:U,MATCH(CONST_PurchPrecDefaultUsed&D240,E_PurchPrec!R:R,0)),CONST_NA))","v":""},{"$f":"IF($D240=\"\",\"\",SUM($G240)*SUM(INDEX(InputOutput!$AJ$71:$AJ$100,MATCH($D240,InputOutput!$D$71:$D$100,0))))","v":""},{"$f":"IF($D240=\"\",\"\",SUM($G240)*SUM(INDEX(InputOutput!$AL$71:$AL$100,MATCH($D240,InputOutput!$D$71:$D$100,0))))","v":""},"",{"$f":"IF(D240=\"\",\"\",SUM(I240)*SUM(AD234))","v":""},{"$f":"IF(D240=\"\",\"\",SUM(J240)*SUM(AD234))","v":""},"",{"$f":"IF(AG240,INDEX(E_PurchPrec!U:U,MATCH(CONST_CNTR_ElecEFMethod&D240,E_PurchPrec!R:R,0)),INDEX(D_Processes!T:T,MATCH(CONST_CNTR_ElecEFMethod&D240,D_Processes!R:R,0)))","v":""},{"$f":"IF(OR($D240=\"\",$AG240),\"\",SUM($G240)*SUM(INDEX(InputOutput!$AN$71:$AN$100,MATCH($D240,InputOutput!$D$71:$D$100,0))))","v":""},{"$f":"IF(D240=\"\",\"\",IF(AG240,INDEX(A_InstData!$F$101:$F$120,MATCH(D240,CNTR_List_ExistPurchPrecNames,0)),\"\"))","v":""},{"$f":"IF($D240=\"\",\"\",IFERROR(SUM($G240)*SUM(INDEX(F_Tools!$T$100:$T$129,MATCH($D240,F_Tools!$E$100:$E$129,0)))/K233,\"\"))","v":""},{"$f":"IF($D240=\"\",\"\",IFERROR(SUM($G240)*SUM(INDEX(F_Tools!$U$100:$U$129,MATCH($D240,F_Tools!$E$100:$E$129,0)))/K233,\"\"))","v":""},{"$nulls":8},{"$f":"CONST_PrecursorToGoodInput&D240&\"_\"&D231","v":"PrecToGood__"},null,{"$f":"SUMIF(D_Processes!R:R,AB240,D_Processes!K:K)","v":0},{"$f":"SUMIF(D_Processes!R:R,CONST_CNTR_TotProd&D240,D_Processes!L:L)","v":0},null,false]
[null,null,7,{"$f":"IF(D231=\"\",\"\",IF(COUNTIF(INDEX(CNTR_IOSupplyChain,MATCH(D231,CNTR_IOProcAndPrec,0),),C241)=0,\"\",INDEX(CNTR_IOProcAndPrec,MATCH(C241,INDEX(CNTR_IOSupplyChain,MATCH(D231,CNTR_IOProcAndPrec,0),),0))))","v":""},null,"",{"$f":"IF(D241=\"\",\"\",INDEX(CNTR_Matrix_Inv,MATCH(D231,CNTR_IOProcAndPrec,0),MATCH(D241,CNTR_IOProcAndPrec,0)))","v":""},{"$f":"IF(D241=\"\",\"\",IF(AG241,INDEX(E_PurchPrec!U:U,MATCH(CONST_PurchPrecDefaultUsed&D241,E_PurchPrec!R:R,0)),CONST_NA))","v":""},{"$f":"IF($D241=\"\",\"\",SUM($G241)*SUM(INDEX(InputOutput!$AJ$71:$AJ$100,MATCH($D241,InputOutput!$D$71:$D$100,0))))","v":""},{"$f":"IF($D241=\"\",\"\",SUM($G241)*SUM(INDEX(InputOutput!$AL$71:$AL$100,MATCH($D241,InputOutput!$D$71:$D$100,0))))","v":""},"",{"$f":"IF(D241=\"\",\"\",SUM(I241)*SUM(AD234))","v":""},{"$f":"IF(D241=\"\",\"\",SUM(J241)*SUM(AD234))","v":""},"",{"$f":"IF(AG241,INDEX(E_PurchPrec!U:U,MATCH(CONST_CNTR_ElecEFMethod&D241,E_PurchPrec!R:R,0)),INDEX(D_Processes!T:T,MATCH(CONST_CNTR_ElecEFMethod&D241,D_Processes!R:R,0)))","v":""},{"$f":"IF(OR($D241=\"\",$AG241),\"\",SUM($G241)*SUM(INDEX(InputOutput!$AN$71:$AN$100,MATCH($D241,InputOutput!$D$71:$D$100,0))))","v":""},{"$f":"IF(D241=\"\",\"\",IF(AG241,INDEX(A_InstData!$F$101:$F$120,MATCH(D241,CNTR_List_ExistPurchPrecNames,0)),\"\"))","v":""},{"$f":"IF($D241=\"\",\"\",IFERROR(SUM($G241)*SUM(INDEX(F_Tools!$T$100:$T$129,MATCH($D241,F_Tools!$E$100:$E$129,0)))/K233,\"\"))","v":""},{"$f":"IF($D241=\"\",\"\",IFERROR(SUM($G241)*SUM(INDEX(F_Tools!$U$100:$U$129,MATCH($D241,F_Tools!$E$100:$E$129,0)))/K233,\"\"))","v":""},{"$nulls":8},{"$f":"CONST_PrecursorToGoodInput&D241&\"_\"&D231","v":"PrecToGood__"},null,{"$f":"SUMIF(D_Processes!R:R,AB241,D_Processes!K:K)","v":0},{"$f":"SUMIF(D_Processes!R:R,CONST_CNTR_TotProd&D241,D_Processes!L:L)","v":0},null,false]
[null,null,8,{"$f":"IF(D231=\"\",\"\",IF(COUNTIF(INDEX(CNTR_IOSupplyChain,MATCH(D231,CNTR_IOProcAndPrec,0),),C242)=0,\"\",INDEX(CNTR_IOProcAndPrec,MATCH(C242,INDEX(CNTR_IOSupplyChain,MATCH(D231,CNTR_IOProcAndPrec,0),),0))))","v":""},null,"",{"$f":"IF(D242=\"\",\"\",INDEX(CNTR_Matrix_Inv,MATCH(D231,CNTR_IOProcAndPrec,0),MATCH(D242,CNTR_IOProcAndPrec,0)))","v":""},{"$f":"IF(D242=\"\",\"\",IF(AG242,INDEX(E_PurchPrec!U:U,MATCH(CONST_PurchPrecDefaultUsed&D242,E_PurchPrec!R:R,0)),CONST_NA))","v":""},{"$f":"IF($D242=\"\",\"\",SUM($G242)*SUM(INDEX(InputOutput!$AJ$71:$AJ$100,MATCH($D242,InputOutput!$D$71:$D$100,0))))","v":""},{"$f":"IF($D242=\"\",\"\",SUM($G242)*SUM(INDEX(InputOutput!$AL$71:$AL$100,MATCH($D242,InputOutput!$D$71:$D$100,0))))","v":""},"",{"$f":"IF(D242=\"\",\"\",SUM(I242)*SUM(AD234))","v":""},{"$f":"IF(D242=\"\",\"\",SUM(J242)*SUM(AD234))","v":""},"",{"$f":"IF(AG242,INDEX(E_PurchPrec!U:U,MATCH(CONST_CNTR_ElecEFMethod&D242,E_PurchPrec!R:R,0)),INDEX(D_Processes!T:T,MATCH(CONST_CNTR_ElecEFMethod&D242,D_Processes!R:R,0)))","v":""},{"$f":"IF(OR($D242=\"\",$AG242),\"\",SUM($G242)*SUM(INDEX(InputOutput!$AN$71:$AN$100,MATCH($D242,InputOutput!$D$71:$D$100,0))))","v":""},{"$f":"IF(D242=\"\",\"\",IF(AG242,INDEX(A_InstData!$F$101:$F$120,MATCH(D242,CNTR_List_ExistPurchPrecNames,0)),\"\"))","v":""},{"$f":"IF($D242=\"\",\"\",IFERROR(SUM($G242)*SUM(INDEX(F_Tools!$T$100:$T$129,MATCH($D242,F_Tools!$E$100:$E$129,0)))/K233,\"\"))","v":""},{"$f":"IF($D242=\"\",\"\",IFERROR(SUM($G242)*SUM(INDEX(F_Tools!$U$100:$U$129,MATCH($D242,F_Tools!$E$100:$E$129,0)))/K233,\"\"))","v":""},{"$nulls":8},{"$f":"CONST_PrecursorToGoodInput&D242&\"_\"&D231","v":"PrecToGood__"},null,{"$f":"SUMIF(D_Processes!R:R,AB242,D_Processes!K:K)","v":0},{"$f":"SUMIF(D_Processes!R:R,CONST_CNTR_TotProd&D242,D_Processes!L:L)","v":0},null,false]
[null,null,9,{"$f":"IF(D231=\"\",\"\",IF(COUNTIF(INDEX(CNTR_IOSupplyChain,MATCH(D231,CNTR_IOProcAndPrec,0),),C243)=0,\"\",INDEX(CNTR_IOProcAndPrec,MATCH(C243,INDEX(CNTR_IOSupplyChain,MATCH(D231,CNTR_IOProcAndPrec,0),),0))))","v":""},null,"",{"$f":"IF(D243=\"\",\"\",INDEX(CNTR_Matrix_Inv,MATCH(D231,CNTR_IOProcAndPrec,0),MATCH(D243,CNTR_IOProcAndPrec,0)))","v":""},{"$f":"IF(D243=\"\",\"\",IF(AG243,INDEX(E_PurchPrec!U:U,MATCH(CONST_PurchPrecDefaultUsed&D243,E_PurchPrec!R:R,0)),CONST_NA))","v":""},{"$f":"IF($D243=\"\",\"\",SUM($G243)*SUM(INDEX(InputOutput!$AJ$71:$AJ$100,MATCH($D243,InputOutput!$D$71:$D$100,0))))","v":""},{"$f":"IF($D243=\"\",\"\",SUM($G243)*SUM(INDEX(InputOutput!$AL$71:$AL$100,MATCH($D243,InputOutput!$D$71:$D$100,0))))","v":""},"",{"$f":"IF(D243=\"\",\"\",SUM(I243)*SUM(AD234))","v":""},{"$f":"IF(D243=\"\",\"\",SUM(J243)*SUM(AD234))","v":""},"",{"$f":"IF(AG243,INDEX(E_PurchPrec!U:U,MATCH(CONST_CNTR_ElecEFMethod&D243,E_PurchPrec!R:R,0)),INDEX(D_Processes!T:T,MATCH(CONST_CNTR_ElecEFMethod&D243,D_Processes!R:R,0)))","v":""},{"$f":"IF(OR($D243=\"\",$AG243),\"\",SUM($G243)*SUM(INDEX(InputOutput!$AN$71:$AN$100,MATCH($D243,InputOutput!$D$71:$D$100,0))))","v":""},{"$f":"IF(D243=\"\",\"\",IF(AG243,INDEX(A_InstData!$F$101:$F$120,MATCH(D243,CNTR_List_ExistPurchPrecNames,0)),\"\"))","v":""},{"$f":"IF($D243=\"\",\"\",IFERROR(SUM($G243)*SUM(INDEX(F_Tools!$T$100:$T$129,MATCH($D243,F_Tools!$E$100:$E$129,0)))/K233,\"\"))","v":""},{"$f":"IF($D243=\"\",\"\",IFERROR(SUM($G243)*SUM(INDEX(F_Tools!$U$100:$U$129,MATCH($D243,F_Tools!$E$100:$E$129,0)))/K233,\"\"))","v":""},{"$nulls":8},{"$f":"CONST_PrecursorToGoodInput&D243&\"_\"&D231","v":"PrecToGood__"},null,{"$f":"SUMIF(D_Processes!R:R,AB243,D_Processes!K:K)","v":0},{"$f":"SUMIF(D_Processes!R:R,CONST_CNTR_TotProd&D243,D_Processes!L:L)","v":0},null,false]
[null,null,10,{"$f":"IF(D231=\"\",\"\",IF(COUNTIF(INDEX(CNTR_IOSupplyChain,MATCH(D231,CNTR_IOProcAndPrec,0),),C244)=0,\"\",INDEX(CNTR_IOProcAndPrec,MATCH(C244,INDEX(CNTR_IOSupplyChain,MATCH(D231,CNTR_IOProcAndPrec,0),),0))))","v":""},null,"",{"$f":"IF(D244=\"\",\"\",INDEX(CNTR_Matrix_Inv,MATCH(D231,CNTR_IOProcAndPrec,0),MATCH(D244,CNTR_IOProcAndPrec,0)))","v":""},{"$f":"IF(D244=\"\",\"\",IF(AG244,INDEX(E_PurchPrec!U:U,MATCH(CONST_PurchPrecDefaultUsed&D244,E_PurchPrec!R:R,0)),CONST_NA))","v":""},{"$f":"IF($D244=\"\",\"\",SUM($G244)*SUM(INDEX(InputOutput!$AJ$71:$AJ$100,MATCH($D244,InputOutput!$D$71:$D$100,0))))","v":""},{"$f":"IF($D244=\"\",\"\",SUM($G244)*SUM(INDEX(InputOutput!$AL$71:$AL$100,MATCH($D244,InputOutput!$D$71:$D$100,0))))","v":""},"",{"$f":"IF(D244=\"\",\"\",SUM(I244)*SUM(AD234))","v":""},{"$f":"IF(D244=\"\",\"\",SUM(J244)*SUM(AD234))","v":""},"",{"$f":"IF(AG244,INDEX(E_PurchPrec!U:U,MATCH(CONST_CNTR_ElecEFMethod&D244,E_PurchPrec!R:R,0)),INDEX(D_Processes!T:T,MATCH(CONST_CNTR_ElecEFMethod&D244,D_Processes!R:R,0)))","v":""},{"$f":"IF(OR($D244=\"\",$AG244),\"\",SUM($G244)*SUM(INDEX(InputOutput!$AN$71:$AN$100,MATCH($D244,InputOutput!$D$71:$D$100,0))))","v":""},{"$f":"IF(D244=\"\",\"\",IF(AG244,INDEX(A_InstData!$F$101:$F$120,MATCH(D244,CNTR_List_ExistPurchPrecNames,0)),\"\"))","v":""},{"$f":"IF($D244=\"\",\"\",IFERROR(SUM($G244)*SUM(INDEX(F_Tools!$T$100:$T$129,MATCH($D244,F_Tools!$E$100:$E$129,0)))/K233,\"\"))","v":""},{"$f":"IF($D244=\"\",\"\",IFERROR(SUM($G244)*SUM(INDEX(F_Tools!$U$100:$U$129,MATCH($D244,F_Tools!$E$100:$E$129,0)))/K233,\"\"))","v":""},{"$nulls":8},{"$f":"CONST_PrecursorToGoodInput&D244&\"_\"&D231","v":"PrecToGood__"},null,{"$f":"SUMIF(D_Processes!R:R,AB244,D_Processes!K:K)","v":0},{"$f":"SUMIF(D_Processes!R:R,CONST_CNTR_TotProd&D244,D_Processes!L:L)","v":0},null,false]
[null,null,11,{"$f":"IF(D231=\"\",\"\",IF(COUNTIF(INDEX(CNTR_IOSupplyChain,MATCH(D231,CNTR_IOProcAndPrec,0),),C245)=0,\"\",INDEX(CNTR_IOProcAndPrec,MATCH(C245,INDEX(CNTR_IOSupplyChain,MATCH(D231,CNTR_IOProcAndPrec,0),),0))))","v":""},null,"",{"$f":"IF(D245=\"\",\"\",INDEX(CNTR_Matrix_Inv,MATCH(D231,CNTR_IOProcAndPrec,0),MATCH(D245,CNTR_IOProcAndPrec,0)))","v":""},{"$f":"IF(D245=\"\",\"\",IF(AG245,INDEX(E_PurchPrec!U:U,MATCH(CONST_PurchPrecDefaultUsed&D245,E_PurchPrec!R:R,0)),CONST_NA))","v":""},{"$f":"IF($D245=\"\",\"\",SUM($G245)*SUM(INDEX(InputOutput!$AJ$71:$AJ$100,MATCH($D245,InputOutput!$D$71:$D$100,0))))","v":""},{"$f":"IF($D245=\"\",\"\",SUM($G245)*SUM(INDEX(InputOutput!$AL$71:$AL$100,MATCH($D245,InputOutput!$D$71:$D$100,0))))","v":""},"",{"$f":"IF(D245=\"\",\"\",SUM(I245)*SUM(AD234))","v":""},{"$f":"IF(D245=\"\",\"\",SUM(J245)*SUM(AD234))","v":""},"",{"$f":"IF(AG245,INDEX(E_PurchPrec!U:U,MATCH(CONST_CNTR_ElecEFMethod&D245,E_PurchPrec!R:R,0)),INDEX(D_Processes!T:T,MATCH(CONST_CNTR_ElecEFMethod&D245,D_Processes!R:R,0)))","v":""},{"$f":"IF(OR($D245=\"\",$AG245),\"\",SUM($G245)*SUM(INDEX(InputOutput!$AN$71:$AN$100,MATCH($D245,InputOutput!$D$71:$D$100,0))))","v":""},{"$f":"IF(D245=\"\",\"\",IF(AG245,INDEX(A_InstData!$F$101:$F$120,MATCH(D245,CNTR_List_ExistPurchPrecNames,0)),\"\"))","v":""},{"$f":"IF($D245=\"\",\"\",IFERROR(SUM($G245)*SUM(INDEX(F_Tools!$T$100:$T$129,MATCH($D245,F_Tools!$E$100:$E$129,0)))/K233,\"\"))","v":""},{"$f":"IF($D245=\"\",\"\",IFERROR(SUM($G245)*SUM(INDEX(F_Tools!$U$100:$U$129,MATCH($D245,F_Tools!$E$100:$E$129,0)))/K233,\"\"))","v":""},{"$nulls":8},{"$f":"CONST_PrecursorToGoodInput&D245&\"_\"&D231","v":"PrecToGood__"},null,{"$f":"SUMIF(D_Processes!R:R,AB245,D_Processes!K:K)","v":0},{"$f":"SUMIF(D_Processes!R:R,CONST_CNTR_TotProd&D245,D_Processes!L:L)","v":0},null,false]
[null,null,12,{"$f":"IF(D231=\"\",\"\",IF(COUNTIF(INDEX(CNTR_IOSupplyChain,MATCH(D231,CNTR_IOProcAndPrec,0),),C246)=0,\"\",INDEX(CNTR_IOProcAndPrec,MATCH(C246,INDEX(CNTR_IOSupplyChain,MATCH(D231,CNTR_IOProcAndPrec,0),),0))))","v":""},null,"",{"$f":"IF(D246=\"\",\"\",INDEX(CNTR_Matrix_Inv,MATCH(D231,CNTR_IOProcAndPrec,0),MATCH(D246,CNTR_IOProcAndPrec,0)))","v":""},{"$f":"IF(D246=\"\",\"\",IF(AG246,INDEX(E_PurchPrec!U:U,MATCH(CONST_PurchPrecDefaultUsed&D246,E_PurchPrec!R:R,0)),CONST_NA))","v":""},{"$f":"IF($D246=\"\",\"\",SUM($G246)*SUM(INDEX(InputOutput!$AJ$71:$AJ$100,MATCH($D246,InputOutput!$D$71:$D$100,0))))","v":""},{"$f":"IF($D246=\"\",\"\",SUM($G246)*SUM(INDEX(InputOutput!$AL$71:$AL$100,MATCH($D246,InputOutput!$D$71:$D$100,0))))","v":""},"",{"$f":"IF(D246=\"\",\"\",SUM(I246)*SUM(AD234))","v":""},{"$f":"IF(D246=\"\",\"\",SUM(J246)*SUM(AD234))","v":""},"",{"$f":"IF(AG246,INDEX(E_PurchPrec!U:U,MATCH(CONST_CNTR_ElecEFMethod&D246,E_PurchPrec!R:R,0)),INDEX(D_Processes!T:T,MATCH(CONST_CNTR_ElecEFMethod&D246,D_Processes!R:R,0)))","v":""},{"$f":"IF(OR($D246=\"\",$AG246),\"\",SUM($G246)*SUM(INDEX(InputOutput!$AN$71:$AN$100,MATCH($D246,InputOutput!$D$71:$D$100,0))))","v":""},{"$f":"IF(D246=\"\",\"\",IF(AG246,INDEX(A_InstData!$F$101:$F$120,MATCH(D246,CNTR_List_ExistPurchPrecNames,0)),\"\"))","v":""},{"$f":"IF($D246=\"\",\"\",IFERROR(SUM($G246)*SUM(INDEX(F_Tools!$T$100:$T$129,MATCH($D246,F_Tools!$E$100:$E$129,0)))/K233,\"\"))","v":""},{"$f":"IF($D246=\"\",\"\",IFERROR(SUM($G246)*SUM(INDEX(F_Tools!$U$100:$U$129,MATCH($D246,F_Tools!$E$100:$E$129,0)))/K233,\"\"))","v":""},{"$nulls":8},{"$f":"CONST_PrecursorToGoodInput&D246&\"_\"&D231","v":"PrecToGood__"},null,{"$f":"SUMIF(D_Processes!R:R,AB246,D_Processes!K:K)","v":0},{"$f":"SUMIF(D_Processes!R:R,CONST_CNTR_TotProd&D246,D_Processes!L:L)","v":0},null,false]
[null,null,13,{"$f":"IF(D231=\"\",\"\",IF(COUNTIF(INDEX(CNTR_IOSupplyChain,MATCH(D231,CNTR_IOProcAndPrec,0),),C247)=0,\"\",INDEX(CNTR_IOProcAndPrec,MATCH(C247,INDEX(CNTR_IOSupplyChain,MATCH(D231,CNTR_IOProcAndPrec,0),),0))))","v":""},null,"",{"$f":"IF(D247=\"\",\"\",INDEX(CNTR_Matrix_Inv,MATCH(D231,CNTR_IOProcAndPrec,0),MATCH(D247,CNTR_IOProcAndPrec,0)))","v":""},{"$f":"IF(D247=\"\",\"\",IF(AG247,INDEX(E_PurchPrec!U:U,MATCH(CONST_PurchPrecDefaultUsed&D247,E_PurchPrec!R:R,0)),CONST_NA))","v":""},{"$f":"IF($D247=\"\",\"\",SUM($G247)*SUM(INDEX(InputOutput!$AJ$71:$AJ$100,MATCH($D247,InputOutput!$D$71:$D$100,0))))","v":""},{"$f":"IF($D247=\"\",\"\",SUM($G247)*SUM(INDEX(InputOutput!$AL$71:$AL$100,MATCH($D247,InputOutput!$D$71:$D$100,0))))","v":""},"",{"$f":"IF(D247=\"\",\"\",SUM(I247)*SUM(AD234))","v":""},{"$f":"IF(D247=\"\",\"\",SUM(J247)*SUM(AD234))","v":""},"",{"$f":"IF(AG247,INDEX(E_PurchPrec!U:U,MATCH(CONST_CNTR_ElecEFMethod&D247,E_PurchPrec!R:R,0)),INDEX(D_Processes!T:T,MATCH(CONST_CNTR_ElecEFMethod&D247,D_Processes!R:R,0)))","v":""},{"$f":"IF(OR($D247=\"\",$AG247),\"\",SUM($G247)*SUM(INDEX(InputOutput!$AN$71:$AN$100,MATCH($D247,InputOutput!$D$71:$D$100,0))))","v":""},{"$f":"IF(D247=\"\",\"\",IF(AG247,INDEX(A_InstData!$F$101:$F$120,MATCH(D247,CNTR_List_ExistPurchPrecNames,0)),\"\"))","v":""},{"$f":"IF($D247=\"\",\"\",IFERROR(SUM($G247)*SUM(INDEX(F_Tools!$T$100:$T$129,MATCH($D247,F_Tools!$E$100:$E$129,0)))/K233,\"\"))","v":""},{"$f":"IF($D247=\"\",\"\",IFERROR(SUM($G247)*SUM(INDEX(F_Tools!$U$100:$U$129,MATCH($D247,F_Tools!$E$100:$E$129,0)))/K233,\"\"))","v":""},{"$nulls":8},{"$f":"CONST_PrecursorToGoodInput&D247&\"_\"&D231","v":"PrecToGood__"},null,{"$f":"SUMIF(D_Processes!R:R,AB247,D_Processes!K:K)","v":0},{"$f":"SUMIF(D_Processes!R:R,CONST_CNTR_TotProd&D247,D_Processes!L:L)","v":0},null,false]
[null,null,14,{"$f":"IF(D231=\"\",\"\",IF(COUNTIF(INDEX(CNTR_IOSupplyChain,MATCH(D231,CNTR_IOProcAndPrec,0),),C248)=0,\"\",INDEX(CNTR_IOProcAndPrec,MATCH(C248,INDEX(CNTR_IOSupplyChain,MATCH(D231,CNTR_IOProcAndPrec,0),),0))))","v":""},null,"",{"$f":"IF(D248=\"\",\"\",INDEX(CNTR_Matrix_Inv,MATCH(D231,CNTR_IOProcAndPrec,0),MATCH(D248,CNTR_IOProcAndPrec,0)))","v":""},{"$f":"IF(D248=\"\",\"\",IF(AG248,INDEX(E_PurchPrec!U:U,MATCH(CONST_PurchPrecDefaultUsed&D248,E_PurchPrec!R:R,0)),CONST_NA))","v":""},{"$f":"IF($D248=\"\",\"\",SUM($G248)*SUM(INDEX(InputOutput!$AJ$71:$AJ$100,MATCH($D248,InputOutput!$D$71:$D$100,0))))","v":""},{"$f":"IF($D248=\"\",\"\",SUM($G248)*SUM(INDEX(InputOutput!$AL$71:$AL$100,MATCH($D248,InputOutput!$D$71:$D$100,0))))","v":""},"",{"$f":"IF(D248=\"\",\"\",SUM(I248)*SUM(AD234))","v":""},{"$f":"IF(D248=\"\",\"\",SUM(J248)*SUM(AD234))","v":""},"",{"$f":"IF(AG248,INDEX(E_PurchPrec!U:U,MATCH(CONST_CNTR_ElecEFMethod&D248,E_PurchPrec!R:R,0)),INDEX(D_Processes!T:T,MATCH(CONST_CNTR_ElecEFMethod&D248,D_Processes!R:R,0)))","v":""},{"$f":"IF(OR($D248=\"\",$AG248),\"\",SUM($G248)*SUM(INDEX(InputOutput!$AN$71:$AN$100,MATCH($D248,InputOutput!$D$71:$D$100,0))))","v":""},{"$f":"IF(D248=\"\",\"\",IF(AG248,INDEX(A_InstData!$F$101:$F$120,MATCH(D248,CNTR_List_ExistPurchPrecNames,0)),\"\"))","v":""},{"$f":"IF($D248=\"\",\"\",IFERROR(SUM($G248)*SUM(INDEX(F_Tools!$T$100:$T$129,MATCH($D248,F_Tools!$E$100:$E$129,0)))/K233,\"\"))","v":""},{"$f":"IF($D248=\"\",\"\",IFERROR(SUM($G248)*SUM(INDEX(F_Tools!$U$100:$U$129,MATCH($D248,F_Tools!$E$100:$E$129,0)))/K233,\"\"))","v":""},{"$nulls":8},{"$f":"CONST_PrecursorToGoodInput&D248&\"_\"&D231","v":"PrecToGood__"},null,{"$f":"SUMIF(D_Processes!R:R,AB248,D_Processes!K:K)","v":0},{"$f":"SUMIF(D_Processes!R:R,CONST_CNTR_TotProd&D248,D_Processes!L:L)","v":0},null,false]
[null,null,15,{"$f":"IF(D231=\"\",\"\",IF(COUNTIF(INDEX(CNTR_IOSupplyChain,MATCH(D231,CNTR_IOProcAndPrec,0),),C249)=0,\"\",INDEX(CNTR_IOProcAndPrec,MATCH(C249,INDEX(CNTR_IOSupplyChain,MATCH(D231,CNTR_IOProcAndPrec,0),),0))))","v":""},null,"",{"$f":"IF(D249=\"\",\"\",INDEX(CNTR_Matrix_Inv,MATCH(D231,CNTR_IOProcAndPrec,0),MATCH(D249,CNTR_IOProcAndPrec,0)))","v":""},{"$f":"IF(D249=\"\",\"\",IF(AG249,INDEX(E_PurchPrec!U:U,MATCH(CONST_PurchPrecDefaultUsed&D249,E_PurchPrec!R:R,0)),CONST_NA))","v":""},{"$f":"IF($D249=\"\",\"\",SUM($G249)*SUM(INDEX(InputOutput!$AJ$71:$AJ$100,MATCH($D249,InputOutput!$D$71:$D$100,0))))","v":""},{"$f":"IF($D249=\"\",\"\",SUM($G249)*SUM(INDEX(InputOutput!$AL$71:$AL$100,MATCH($D249,InputOutput!$D$71:$D$100,0))))","v":""},"",{"$f":"IF(D249=\"\",\"\",SUM(I249)*SUM(AD234))","v":""},{"$f":"IF(D249=\"\",\"\",SUM(J249)*SUM(AD234))","v":""},"",{"$f":"IF(AG249,INDEX(E_PurchPrec!U:U,MATCH(CONST_CNTR_ElecEFMethod&D249,E_PurchPrec!R:R,0)),INDEX(D_Processes!T:T,MATCH(CONST_CNTR_ElecEFMethod&D249,D_Processes!R:R,0)))","v":""},{"$f":"IF(OR($D249=\"\",$AG249),\"\",SUM($G249)*SUM(INDEX(InputOutput!$AN$71:$AN$100,MATCH($D249,InputOutput!$D$71:$D$100,0))))","v":""},{"$f":"IF(D249=\"\",\"\",IF(AG249,INDEX(A_InstData!$F$101:$F$120,MATCH(D249,CNTR_List_ExistPurchPrecNames,0)),\"\"))","v":""},{"$f":"IF($D249=\"\",\"\",IFERROR(SUM($G249)*SUM(INDEX(F_Tools!$T$100:$T$129,MATCH($D249,F_Tools!$E$100:$E$129,0)))/K233,\"\"))","v":""},{"$f":"IF($D249=\"\",\"\",IFERROR(SUM($G249)*SUM(INDEX(F_Tools!$U$100:$U$129,MATCH($D249,F_Tools!$E$100:$E$129,0)))/K233,\"\"))","v":""},{"$nulls":8},{"$f":"CONST_PrecursorToGoodInput&D249&\"_\"&D231","v":"PrecToGood__"},null,{"$f":"SUMIF(D_Processes!R:R,AB249,D_Processes!K:K)","v":0},{"$f":"SUMIF(D_Processes!R:R,CONST_CNTR_TotProd&D249,D_Processes!L:L)","v":0},null,false]
[null,null,16,{"$f":"IF(D231=\"\",\"\",IF(COUNTIF(INDEX(CNTR_IOSupplyChain,MATCH(D231,CNTR_IOProcAndPrec,0),),C250)=0,\"\",INDEX(CNTR_IOProcAndPrec,MATCH(C250,INDEX(CNTR_IOSupplyChain,MATCH(D231,CNTR_IOProcAndPrec,0),),0))))","v":""},null,"",{"$f":"IF(D250=\"\",\"\",INDEX(CNTR_Matrix_Inv,MATCH(D231,CNTR_IOProcAndPrec,0),MATCH(D250,CNTR_IOProcAndPrec,0)))","v":""},{"$f":"IF(D250=\"\",\"\",IF(AG250,INDEX(E_PurchPrec!U:U,MATCH(CONST_PurchPrecDefaultUsed&D250,E_PurchPrec!R:R,0)),CONST_NA))","v":""},{"$f":"IF($D250=\"\",\"\",SUM($G250)*SUM(INDEX(InputOutput!$AJ$71:$AJ$100,MATCH($D250,InputOutput!$D$71:$D$100,0))))","v":""},{"$f":"IF($D250=\"\",\"\",SUM($G250)*SUM(INDEX(InputOutput!$AL$71:$AL$100,MATCH($D250,InputOutput!$D$71:$D$100,0))))","v":""},"",{"$f":"IF(D250=\"\",\"\",SUM(I250)*SUM(AD234))","v":""},{"$f":"IF(D250=\"\",\"\",SUM(J250)*SUM(AD234))","v":""},"",{"$f":"IF(AG250,INDEX(E_PurchPrec!U:U,MATCH(CONST_CNTR_ElecEFMethod&D250,E_PurchPrec!R:R,0)),INDEX(D_Processes!T:T,MATCH(CONST_CNTR_ElecEFMethod&D250,D_Processes!R:R,0)))","v":""},{"$f":"IF(OR($D250=\"\",$AG250),\"\",SUM($G250)*SUM(INDEX(InputOutput!$AN$71:$AN$100,MATCH($D250,InputOutput!$D$71:$D$100,0))))","v":""},{"$f":"IF(D250=\"\",\"\",IF(AG250,INDEX(A_InstData!$F$101:$F$120,MATCH(D250,CNTR_List_ExistPurchPrecNames,0)),\"\"))","v":""},{"$f":"IF($D250=\"\",\"\",IFERROR(SUM($G250)*SUM(INDEX(F_Tools!$T$100:$T$129,MATCH($D250,F_Tools!$E$100:$E$129,0)))/K233,\"\"))","v":""},{"$f":"IF($D250=\"\",\"\",IFERROR(SUM($G250)*SUM(INDEX(F_Tools!$U$100:$U$129,MATCH($D250,F_Tools!$E$100:$E$129,0)))/K233,\"\"))","v":""},{"$nulls":8},{"$f":"CONST_PrecursorToGoodInput&D250&\"_\"&D231","v":"PrecToGood__"},null,{"$f":"SUMIF(D_Processes!R:R,AB250,D_Processes!K:K)","v":0},{"$f":"SUMIF(D_Processes!R:R,CONST_CNTR_TotProd&D250,D_Processes!L:L)","v":0},null,false]
[null,null,17,{"$f":"IF(D231=\"\",\"\",IF(COUNTIF(INDEX(CNTR_IOSupplyChain,MATCH(D231,CNTR_IOProcAndPrec,0),),C251)=0,\"\",INDEX(CNTR_IOProcAndPrec,MATCH(C251,INDEX(CNTR_IOSupplyChain,MATCH(D231,CNTR_IOProcAndPrec,0),),0))))","v":""},null,"",{"$f":"IF(D251=\"\",\"\",INDEX(CNTR_Matrix_Inv,MATCH(D231,CNTR_IOProcAndPrec,0),MATCH(D251,CNTR_IOProcAndPrec,0)))","v":""},{"$f":"IF(D251=\"\",\"\",IF(AG251,INDEX(E_PurchPrec!U:U,MATCH(CONST_PurchPrecDefaultUsed&D251,E_PurchPrec!R:R,0)),CONST_NA))","v":""},{"$f":"IF($D251=\"\",\"\",SUM($G251)*SUM(INDEX(InputOutput!$AJ$71:$AJ$100,MATCH($D251,InputOutput!$D$71:$D$100,0))))","v":""},{"$f":"IF($D251=\"\",\"\",SUM($G251)*SUM(INDEX(InputOutput!$AL$71:$AL$100,MATCH($D251,InputOutput!$D$71:$D$100,0))))","v":""},"",{"$f":"IF(D251=\"\",\"\",SUM(I251)*SUM(AD234))","v":""},{"$f":"IF(D251=\"\",\"\",SUM(J251)*SUM(AD234))","v":""},"",{"$f":"IF(AG251,INDEX(E_PurchPrec!U:U,MATCH(CONST_CNTR_ElecEFMethod&D251,E_PurchPrec!R:R,0)),INDEX(D_Processes!T:T,MATCH(CONST_CNTR_ElecEFMethod&D251,D_Processes!R:R,0)))","v":""},{"$f":"IF(OR($D251=\"\",$AG251),\"\",SUM($G251)*SUM(INDEX(InputOutput!$AN$71:$AN$100,MATCH($D251,InputOutput!$D$71:$D$100,0))))","v":""},{"$f":"IF(D251=\"\",\"\",IF(AG251,INDEX(A_InstData!$F$101:$F$120,MATCH(D251,CNTR_List_ExistPurchPrecNames,0)),\"\"))","v":""},{"$f":"IF($D251=\"\",\"\",IFERROR(SUM($G251)*SUM(INDEX(F_Tools!$T$100:$T$129,MATCH($D251,F_Tools!$E$100:$E$129,0)))/K233,\"\"))","v":""},{"$f":"IF($D251=\"\",\"\",IFERROR(SUM($G251)*SUM(INDEX(F_Tools!$U$100:$U$129,MATCH($D251,F_Tools!$E$100:$E$129,0)))/K233,\"\"))","v":""},{"$nulls":8},{"$f":"CONST_PrecursorToGoodInput&D251&\"_\"&D231","v":"PrecToGood__"},null,{"$f":"SUMIF(D_Processes!R:R,AB251,D_Processes!K:K)","v":0},{"$f":"SUMIF(D_Processes!R:R,CONST_CNTR_TotProd&D251,D_Processes!L:L)","v":0},null,false]
[null,null,18,{"$f":"IF(D231=\"\",\"\",IF(COUNTIF(INDEX(CNTR_IOSupplyChain,MATCH(D231,CNTR_IOProcAndPrec,0),),C252)=0,\"\",INDEX(CNTR_IOProcAndPrec,MATCH(C252,INDEX(CNTR_IOSupplyChain,MATCH(D231,CNTR_IOProcAndPrec,0),),0))))","v":""},null,"",{"$f":"IF(D252=\"\",\"\",INDEX(CNTR_Matrix_Inv,MATCH(D231,CNTR_IOProcAndPrec,0),MATCH(D252,CNTR_IOProcAndPrec,0)))","v":""},{"$f":"IF(D252=\"\",\"\",IF(AG252,INDEX(E_PurchPrec!U:U,MATCH(CONST_PurchPrecDefaultUsed&D252,E_PurchPrec!R:R,0)),CONST_NA))","v":""},{"$f":"IF($D252=\"\",\"\",SUM($G252)*SUM(INDEX(InputOutput!$AJ$71:$AJ$100,MATCH($D252,InputOutput!$D$71:$D$100,0))))","v":""},{"$f":"IF($D252=\"\",\"\",SUM($G252)*SUM(INDEX(InputOutput!$AL$71:$AL$100,MATCH($D252,InputOutput!$D$71:$D$100,0))))","v":""},"",{"$f":"IF(D252=\"\",\"\",SUM(I252)*SUM(AD234))","v":""},{"$f":"IF(D252=\"\",\"\",SUM(J252)*SUM(AD234))","v":""},"",{"$f":"IF(AG252,INDEX(E_PurchPrec!U:U,MATCH(CONST_CNTR_ElecEFMethod&D252,E_PurchPrec!R:R,0)),INDEX(D_Processes!T:T,MATCH(CONST_CNTR_ElecEFMethod&D252,D_Processes!R:R,0)))","v":""},{"$f":"IF(OR($D252=\"\",$AG252),\"\",SUM($G252)*SUM(INDEX(InputOutput!$AN$71:$AN$100,MATCH($D252,InputOutput!$D$71:$D$100,0))))","v":""},{"$f":"IF(D252=\"\",\"\",IF(AG252,INDEX(A_InstData!$F$101:$F$120,MATCH(D252,CNTR_List_ExistPurchPrecNames,0)),\"\"))","v":""},{"$f":"IF($D252=\"\",\"\",IFERROR(SUM($G252)*SUM(INDEX(F_Tools!$T$100:$T$129,MATCH($D252,F_Tools!$E$100:$E$129,0)))/K233,\"\"))","v":""},{"$f":"IF($D252=\"\",\"\",IFERROR(SUM($G252)*SUM(INDEX(F_Tools!$U$100:$U$129,MATCH($D252,F_Tools!$E$100:$E$129,0)))/K233,\"\"))","v":""},{"$nulls":8},{"$f":"CONST_PrecursorToGoodInput&D252&\"_\"&D231","v":"PrecToGood__"},null,{"$f":"SUMIF(D_Processes!R:R,AB252,D_Processes!K:K)","v":0},{"$f":"SUMIF(D_Processes!R:R,CONST_CNTR_TotProd&D252,D_Processes!L:L)","v":0},null,false]
[null,null,19,{"$f":"IF(D231=\"\",\"\",IF(COUNTIF(INDEX(CNTR_IOSupplyChain,MATCH(D231,CNTR_IOProcAndPrec,0),),C253)=0,\"\",INDEX(CNTR_IOProcAndPrec,MATCH(C253,INDEX(CNTR_IOSupplyChain,MATCH(D231,CNTR_IOProcAndPrec,0),),0))))","v":""},null,"",{"$f":"IF(D253=\"\",\"\",INDEX(CNTR_Matrix_Inv,MATCH(D231,CNTR_IOProcAndPrec,0),MATCH(D253,CNTR_IOProcAndPrec,0)))","v":""},{"$f":"IF(D253=\"\",\"\",IF(AG253,INDEX(E_PurchPrec!U:U,MATCH(CONST_PurchPrecDefaultUsed&D253,E_PurchPrec!R:R,0)),CONST_NA))","v":""},{"$f":"IF($D253=\"\",\"\",SUM($G253)*SUM(INDEX(InputOutput!$AJ$71:$AJ$100,MATCH($D253,InputOutput!$D$71:$D$100,0))))","v":""},{"$f":"IF($D253=\"\",\"\",SUM($G253)*SUM(INDEX(InputOutput!$AL$71:$AL$100,MATCH($D253,InputOutput!$D$71:$D$100,0))))","v":""},"",{"$f":"IF(D253=\"\",\"\",SUM(I253)*SUM(AD234))","v":""},{"$f":"IF(D253=\"\",\"\",SUM(J253)*SUM(AD234))","v":""},"",{"$f":"IF(AG253,INDEX(E_PurchPrec!U:U,MATCH(CONST_CNTR_ElecEFMethod&D253,E_PurchPrec!R:R,0)),INDEX(D_Processes!T:T,MATCH(CONST_CNTR_ElecEFMethod&D253,D_Processes!R:R,0)))","v":""},{"$f":"IF(OR($D253=\"\",$AG253),\"\",SUM($G253)*SUM(INDEX(InputOutput!$AN$71:$AN$100,MATCH($D253,InputOutput!$D$71:$D$100,0))))","v":""},{"$f":"IF(D253=\"\",\"\",IF(AG253,INDEX(A_InstData!$F$101:$F$120,MATCH(D253,CNTR_List_ExistPurchPrecNames,0)),\"\"))","v":""},{"$f":"IF($D253=\"\",\"\",IFERROR(SUM($G253)*SUM(INDEX(F_Tools!$T$100:$T$129,MATCH($D253,F_Tools!$E$100:$E$129,0)))/K233,\"\"))","v":""},{"$f":"IF($D253=\"\",\"\",IFERROR(SUM($G253)*SUM(INDEX(F_Tools!$U$100:$U$129,MATCH($D253,F_Tools!$E$100:$E$129,0)))/K233,\"\"))","v":""},{"$nulls":8},{"$f":"CONST_PrecursorToGoodInput&D253&\"_\"&D231","v":"PrecToGood__"},null,{"$f":"SUMIF(D_Processes!R:R,AB253,D_Processes!K:K)","v":0},{"$f":"SUMIF(D_Processes!R:R,CONST_CNTR_TotProd&D253,D_Processes!L:L)","v":0},null,false]
[null,null,20,{"$f":"IF(D231=\"\",\"\",IF(COUNTIF(INDEX(CNTR_IOSupplyChain,MATCH(D231,CNTR_IOProcAndPrec,0),),C254)=0,\"\",INDEX(CNTR_IOProcAndPrec,MATCH(C254,INDEX(CNTR_IOSupplyChain,MATCH(D231,CNTR_IOProcAndPrec,0),),0))))","v":""},null,"",{"$f":"IF(D254=\"\",\"\",INDEX(CNTR_Matrix_Inv,MATCH(D231,CNTR_IOProcAndPrec,0),MATCH(D254,CNTR_IOProcAndPrec,0)))","v":""},{"$f":"IF(D254=\"\",\"\",IF(AG254,INDEX(E_PurchPrec!U:U,MATCH(CONST_PurchPrecDefaultUsed&D254,E_PurchPrec!R:R,0)),CONST_NA))","v":""},{"$f":"IF($D254=\"\",\"\",SUM($G254)*SUM(INDEX(InputOutput!$AJ$71:$AJ$100,MATCH($D254,InputOutput!$D$71:$D$100,0))))","v":""},{"$f":"IF($D254=\"\",\"\",SUM($G254)*SUM(INDEX(InputOutput!$AL$71:$AL$100,MATCH($D254,InputOutput!$D$71:$D$100,0))))","v":""},"",{"$f":"IF(D254=\"\",\"\",SUM(I254)*SUM(AD234))","v":""},{"$f":"IF(D254=\"\",\"\",SUM(J254)*SUM(AD234))","v":""},"",{"$f":"IF(AG254,INDEX(E_PurchPrec!U:U,MATCH(CONST_CNTR_ElecEFMethod&D254,E_PurchPrec!R:R,0)),INDEX(D_Processes!T:T,MATCH(CONST_CNTR_ElecEFMethod&D254,D_Processes!R:R,0)))","v":""},{"$f":"IF(OR($D254=\"\",$AG254),\"\",SUM($G254)*SUM(INDEX(InputOutput!$AN$71:$AN$100,MATCH($D254,InputOutput!$D$71:$D$100,0))))","v":""},{"$f":"IF(D254=\"\",\"\",IF(AG254,INDEX(A_InstData!$F$101:$F$120,MATCH(D254,CNTR_List_ExistPurchPrecNames,0)),\"\"))","v":""},{"$f":"IF($D254=\"\",\"\",IFERROR(SUM($G254)*SUM(INDEX(F_Tools!$T$100:$T$129,MATCH($D254,F_Tools!$E$100:$E$129,0)))/K233,\"\"))","v":""},{"$f":"IF($D254=\"\",\"\",IFERROR(SUM($G254)*SUM(INDEX(F_Tools!$U$100:$U$129,MATCH($D254,F_Tools!$E$100:$E$129,0)))/K233,\"\"))","v":""},{"$nulls":8},{"$f":"CONST_PrecursorToGoodInput&D254&\"_\"&D231","v":"PrecToGood__"},null,{"$f":"SUMIF(D_Processes!R:R,AB254,D_Processes!K:K)","v":0},{"$f":"SUMIF(D_Processes!R:R,CONST_CNTR_TotProd&D254,D_Processes!L:L)","v":0},null,false]
[null,null,21,{"$f":"IF(D231=\"\",\"\",IF(COUNTIF(INDEX(CNTR_IOSupplyChain,MATCH(D231,CNTR_IOProcAndPrec,0),),C255)=0,\"\",INDEX(CNTR_IOProcAndPrec,MATCH(C255,INDEX(CNTR_IOSupplyChain,MATCH(D231,CNTR_IOProcAndPrec,0),),0))))","v":""},null,"",{"$f":"IF(D255=\"\",\"\",INDEX(CNTR_Matrix_Inv,MATCH(D231,CNTR_IOProcAndPrec,0),MATCH(D255,CNTR_IOProcAndPrec,0)))","v":""},{"$f":"IF(D255=\"\",\"\",IF(AG255,INDEX(E_PurchPrec!U:U,MATCH(CONST_PurchPrecDefaultUsed&D255,E_PurchPrec!R:R,0)),CONST_NA))","v":""},{"$f":"IF($D255=\"\",\"\",SUM($G255)*SUM(INDEX(InputOutput!$AJ$71:$AJ$100,MATCH($D255,InputOutput!$D$71:$D$100,0))))","v":""},{"$f":"IF($D255=\"\",\"\",SUM($G255)*SUM(INDEX(InputOutput!$AL$71:$AL$100,MATCH($D255,InputOutput!$D$71:$D$100,0))))","v":""},"",{"$f":"IF(D255=\"\",\"\",SUM(I255)*SUM(AD234))","v":""},{"$f":"IF(D255=\"\",\"\",SUM(J255)*SUM(AD234))","v":""},"",{"$f":"IF(AG255,INDEX(E_PurchPrec!U:U,MATCH(CONST_CNTR_ElecEFMethod&D255,E_PurchPrec!R:R,0)),INDEX(D_Processes!T:T,MATCH(CONST_CNTR_ElecEFMethod&D255,D_Processes!R:R,0)))","v":""},{"$f":"IF(OR($D255=\"\",$AG255),\"\",SUM($G255)*SUM(INDEX(InputOutput!$AN$71:$AN$100,MATCH($D255,InputOutput!$D$71:$D$100,0))))","v":""},{"$f":"IF(D255=\"\",\"\",IF(AG255,INDEX(A_InstData!$F$101:$F$120,MATCH(D255,CNTR_List_ExistPurchPrecNames,0)),\"\"))","v":""},{"$f":"IF($D255=\"\",\"\",IFERROR(SUM($G255)*SUM(INDEX(F_Tools!$T$100:$T$129,MATCH($D255,F_Tools!$E$100:$E$129,0)))/K233,\"\"))","v":""},{"$f":"IF($D255=\"\",\"\",IFERROR(SUM($G255)*SUM(INDEX(F_Tools!$U$100:$U$129,MATCH($D255,F_Tools!$E$100:$E$129,0)))/K233,\"\"))","v":""},{"$nulls":8},{"$f":"CONST_PrecursorToGoodInput&D255&\"_\"&D231","v":"PrecToGood__"},null,{"$f":"SUMIF(D_Processes!R:R,AB255,D_Processes!K:K)","v":0},{"$f":"SUMIF(D_Processes!R:R,CONST_CNTR_TotProd&D255,D_Processes!L:L)","v":0},null,false]
[null,null,22,{"$f":"IF(D231=\"\",\"\",IF(COUNTIF(INDEX(CNTR_IOSupplyChain,MATCH(D231,CNTR_IOProcAndPrec,0),),C256)=0,\"\",INDEX(CNTR_IOProcAndPrec,MATCH(C256,INDEX(CNTR_IOSupplyChain,MATCH(D231,CNTR_IOProcAndPrec,0),),0))))","v":""},null,"",{"$f":"IF(D256=\"\",\"\",INDEX(CNTR_Matrix_Inv,MATCH(D231,CNTR_IOProcAndPrec,0),MATCH(D256,CNTR_IOProcAndPrec,0)))","v":""},{"$f":"IF(D256=\"\",\"\",IF(AG256,INDEX(E_PurchPrec!U:U,MATCH(CONST_PurchPrecDefaultUsed&D256,E_PurchPrec!R:R,0)),CONST_NA))","v":""},{"$f":"IF($D256=\"\",\"\",SUM($G256)*SUM(INDEX(InputOutput!$AJ$71:$AJ$100,MATCH($D256,InputOutput!$D$71:$D$100,0))))","v":""},{"$f":"IF($D256=\"\",\"\",SUM($G256)*SUM(INDEX(InputOutput!$AL$71:$AL$100,MATCH($D256,InputOutput!$D$71:$D$100,0))))","v":""},"",{"$f":"IF(D256=\"\",\"\",SUM(I256)*SUM(AD234))","v":""},{"$f":"IF(D256=\"\",\"\",SUM(J256)*SUM(AD234))","v":""},"",{"$f":"IF(AG256,INDEX(E_PurchPrec!U:U,MATCH(CONST_CNTR_ElecEFMethod&D256,E_PurchPrec!R:R,0)),INDEX(D_Processes!T:T,MATCH(CONST_CNTR_ElecEFMethod&D256,D_Processes!R:R,0)))","v":""},{"$f":"IF(OR($D256=\"\",$AG256),\"\",SUM($G256)*SUM(INDEX(InputOutput!$AN$71:$AN$100,MATCH($D256,InputOutput!$D$71:$D$100,0))))","v":""},{"$f":"IF(D256=\"\",\"\",IF(AG256,INDEX(A_InstData!$F$101:$F$120,MATCH(D256,CNTR_List_ExistPurchPrecNames,0)),\"\"))","v":""},{"$f":"IF($D256=\"\",\"\",IFERROR(SUM($G256)*SUM(INDEX(F_Tools!$T$100:$T$129,MATCH($D256,F_Tools!$E$100:$E$129,0)))/K233,\"\"))","v":""},{"$f":"IF($D256=\"\",\"\",IFERROR(SUM($G256)*SUM(INDEX(F_Tools!$U$100:$U$129,MATCH($D256,F_Tools!$E$100:$E$129,0)))/K233,\"\"))","v":""},{"$nulls":8},{"$f":"CONST_PrecursorToGoodInput&D256&\"_\"&D231","v":"PrecToGood__"},null,{"$f":"SUMIF(D_Processes!R:R,AB256,D_Processes!K:K)","v":0},{"$f":"SUMIF(D_Processes!R:R,CONST_CNTR_TotProd&D256,D_Processes!L:L)","v":0},null,false]
[null,null,23,{"$f":"IF(D231=\"\",\"\",IF(COUNTIF(INDEX(CNTR_IOSupplyChain,MATCH(D231,CNTR_IOProcAndPrec,0),),C257)=0,\"\",INDEX(CNTR_IOProcAndPrec,MATCH(C257,INDEX(CNTR_IOSupplyChain,MATCH(D231,CNTR_IOProcAndPrec,0),),0))))","v":""},null,"",{"$f":"IF(D257=\"\",\"\",INDEX(CNTR_Matrix_Inv,MATCH(D231,CNTR_IOProcAndPrec,0),MATCH(D257,CNTR_IOProcAndPrec,0)))","v":""},{"$f":"IF(D257=\"\",\"\",IF(AG257,INDEX(E_PurchPrec!U:U,MATCH(CONST_PurchPrecDefaultUsed&D257,E_PurchPrec!R:R,0)),CONST_NA))","v":""},{"$f":"IF($D257=\"\",\"\",SUM($G257)*SUM(INDEX(InputOutput!$AJ$71:$AJ$100,MATCH($D257,InputOutput!$D$71:$D$100,0))))","v":""},{"$f":"IF($D257=\"\",\"\",SUM($G257)*SUM(INDEX(InputOutput!$AL$71:$AL$100,MATCH($D257,InputOutput!$D$71:$D$100,0))))","v":""},"",{"$f":"IF(D257=\"\",\"\",SUM(I257)*SUM(AD234))","v":""},{"$f":"IF(D257=\"\",\"\",SUM(J257)*SUM(AD234))","v":""},"",{"$f":"IF(AG257,INDEX(E_PurchPrec!U:U,MATCH(CONST_CNTR_ElecEFMethod&D257,E_PurchPrec!R:R,0)),INDEX(D_Processes!T:T,MATCH(CONST_CNTR_ElecEFMethod&D257,D_Processes!R:R,0)))","v":""},{"$f":"IF(OR($D257=\"\",$AG257),\"\",SUM($G257)*SUM(INDEX(InputOutput!$AN$71:$AN$100,MATCH($D257,InputOutput!$D$71:$D$100,0))))","v":""},{"$f":"IF(D257=\"\",\"\",IF(AG257,INDEX(A_InstData!$F$101:$F$120,MATCH(D257,CNTR_List_ExistPurchPrecNames,0)),\"\"))","v":""},{"$f":"IF($D257=\"\",\"\",IFERROR(SUM($G257)*SUM(INDEX(F_Tools!$T$100:$T$129,MATCH($D257,F_Tools!$E$100:$E$129,0)))/K233,\"\"))","v":""},{"$f":"IF($D257=\"\",\"\",IFERROR(SUM($G257)*SUM(INDEX(F_Tools!$U$100:$U$129,MATCH($D257,F_Tools!$E$100:$E$129,0)))/K233,\"\"))","v":""},{"$nulls":8},{"$f":"CONST_PrecursorToGoodInput&D257&\"_\"&D231","v":"PrecToGood__"},null,{"$f":"SUMIF(D_Processes!R:R,AB257,D_Processes!K:K)","v":0},{"$f":"SUMIF(D_Processes!R:R,CONST_CNTR_TotProd&D257,D_Processes!L:L)","v":0},null,false]
[null,null,24,{"$f":"IF(D231=\"\",\"\",IF(COUNTIF(INDEX(CNTR_IOSupplyChain,MATCH(D231,CNTR_IOProcAndPrec,0),),C258)=0,\"\",INDEX(CNTR_IOProcAndPrec,MATCH(C258,INDEX(CNTR_IOSupplyChain,MATCH(D231,CNTR_IOProcAndPrec,0),),0))))","v":""},null,"",{"$f":"IF(D258=\"\",\"\",INDEX(CNTR_Matrix_Inv,MATCH(D231,CNTR_IOProcAndPrec,0),MATCH(D258,CNTR_IOProcAndPrec,0)))","v":""},{"$f":"IF(D258=\"\",\"\",IF(AG258,INDEX(E_PurchPrec!U:U,MATCH(CONST_PurchPrecDefaultUsed&D258,E_PurchPrec!R:R,0)),CONST_NA))","v":""},{"$f":"IF($D258=\"\",\"\",SUM($G258)*SUM(INDEX(InputOutput!$AJ$71:$AJ$100,MATCH($D258,InputOutput!$D$71:$D$100,0))))","v":""},{"$f":"IF($D258=\"\",\"\",SUM($G258)*SUM(INDEX(InputOutput!$AL$71:$AL$100,MATCH($D258,InputOutput!$D$71:$D$100,0))))","v":""},"",{"$f":"IF(D258=\"\",\"\",SUM(I258)*SUM(AD234))","v":""},{"$f":"IF(D258=\"\",\"\",SUM(J258)*SUM(AD234))","v":""},"",{"$f":"IF(AG258,INDEX(E_PurchPrec!U:U,MATCH(CONST_CNTR_ElecEFMethod&D258,E_PurchPrec!R:R,0)),INDEX(D_Processes!T:T,MATCH(CONST_CNTR_ElecEFMethod&D258,D_Processes!R:R,0)))","v":""},{"$f":"IF(OR($D258=\"\",$AG258),\"\",SUM($G258)*SUM(INDEX(InputOutput!$AN$71:$AN$100,MATCH($D258,InputOutput!$D$71:$D$100,0))))","v":""},{"$f":"IF(D258=\"\",\"\",IF(AG258,INDEX(A_InstData!$F$101:$F$120,MATCH(D258,CNTR_List_ExistPurchPrecNames,0)),\"\"))","v":""},{"$f":"IF($D258=\"\",\"\",IFERROR(SUM($G258)*SUM(INDEX(F_Tools!$T$100:$T$129,MATCH($D258,F_Tools!$E$100:$E$129,0)))/K233,\"\"))","v":""},{"$f":"IF($D258=\"\",\"\",IFERROR(SUM($G258)*SUM(INDEX(F_Tools!$U$100:$U$129,MATCH($D258,F_Tools!$E$100:$E$129,0)))/K233,\"\"))","v":""},{"$nulls":8},{"$f":"CONST_PrecursorToGoodInput&D258&\"_\"&D231","v":"PrecToGood__"},null,{"$f":"SUMIF(D_Processes!R:R,AB258,D_Processes!K:K)","v":0},{"$f":"SUMIF(D_Processes!R:R,CONST_CNTR_TotProd&D258,D_Processes!L:L)","v":0},null,false]
[null,null,25,{"$f":"IF(D231=\"\",\"\",IF(COUNTIF(INDEX(CNTR_IOSupplyChain,MATCH(D231,CNTR_IOProcAndPrec,0),),C259)=0,\"\",INDEX(CNTR_IOProcAndPrec,MATCH(C259,INDEX(CNTR_IOSupplyChain,MATCH(D231,CNTR_IOProcAndPrec,0),),0))))","v":""},null,"",{"$f":"IF(D259=\"\",\"\",INDEX(CNTR_Matrix_Inv,MATCH(D231,CNTR_IOProcAndPrec,0),MATCH(D259,CNTR_IOProcAndPrec,0)))","v":""},{"$f":"IF(D259=\"\",\"\",IF(AG259,INDEX(E_PurchPrec!U:U,MATCH(CONST_PurchPrecDefaultUsed&D259,E_PurchPrec!R:R,0)),CONST_NA))","v":""},{"$f":"IF($D259=\"\",\"\",SUM($G259)*SUM(INDEX(InputOutput!$AJ$71:$AJ$100,MATCH($D259,InputOutput!$D$71:$D$100,0))))","v":""},{"$f":"IF($D259=\"\",\"\",SUM($G259)*SUM(INDEX(InputOutput!$AL$71:$AL$100,MATCH($D259,InputOutput!$D$71:$D$100,0))))","v":""},"",{"$f":"IF(D259=\"\",\"\",SUM(I259)*SUM(AD234))","v":""},{"$f":"IF(D259=\"\",\"\",SUM(J259)*SUM(AD234))","v":""},"",{"$f":"IF(AG259,INDEX(E_PurchPrec!U:U,MATCH(CONST_CNTR_ElecEFMethod&D259,E_PurchPrec!R:R,0)),INDEX(D_Processes!T:T,MATCH(CONST_CNTR_ElecEFMethod&D259,D_Processes!R:R,0)))","v":""},{"$f":"IF(OR($D259=\"\",$AG259),\"\",SUM($G259)*SUM(INDEX(InputOutput!$AN$71:$AN$100,MATCH($D259,InputOutput!$D$71:$D$100,0))))","v":""},{"$f":"IF(D259=\"\",\"\",IF(AG259,INDEX(A_InstData!$F$101:$F$120,MATCH(D259,CNTR_List_ExistPurchPrecNames,0)),\"\"))","v":""},{"$f":"IF($D259=\"\",\"\",IFERROR(SUM($G259)*SUM(INDEX(F_Tools!$T$100:$T$129,MATCH($D259,F_Tools!$E$100:$E$129,0)))/K233,\"\"))","v":""},{"$f":"IF($D259=\"\",\"\",IFERROR(SUM($G259)*SUM(INDEX(F_Tools!$U$100:$U$129,MATCH($D259,F_Tools!$E$100:$E$129,0)))/K233,\"\"))","v":""},{"$nulls":8},{"$f":"CONST_PrecursorToGoodInput&D259&\"_\"&D231","v":"PrecToGood__"},null,{"$f":"SUMIF(D_Processes!R:R,AB259,D_Processes!K:K)","v":0},{"$f":"SUMIF(D_Processes!R:R,CONST_CNTR_TotProd&D259,D_Processes!L:L)","v":0},null,false]
[null,null,26,{"$f":"IF(D231=\"\",\"\",IF(COUNTIF(INDEX(CNTR_IOSupplyChain,MATCH(D231,CNTR_IOProcAndPrec,0),),C260)=0,\"\",INDEX(CNTR_IOProcAndPrec,MATCH(C260,INDEX(CNTR_IOSupplyChain,MATCH(D231,CNTR_IOProcAndPrec,0),),0))))","v":""},null,"",{"$f":"IF(D260=\"\",\"\",INDEX(CNTR_Matrix_Inv,MATCH(D231,CNTR_IOProcAndPrec,0),MATCH(D260,CNTR_IOProcAndPrec,0)))","v":""},{"$f":"IF(D260=\"\",\"\",IF(AG260,INDEX(E_PurchPrec!U:U,MATCH(CONST_PurchPrecDefaultUsed&D260,E_PurchPrec!R:R,0)),CONST_NA))","v":""},{"$f":"IF($D260=\"\",\"\",SUM($G260)*SUM(INDEX(InputOutput!$AJ$71:$AJ$100,MATCH($D260,InputOutput!$D$71:$D$100,0))))","v":""},{"$f":"IF($D260=\"\",\"\",SUM($G260)*SUM(INDEX(InputOutput!$AL$71:$AL$100,MATCH($D260,InputOutput!$D$71:$D$100,0))))","v":""},"",{"$f":"IF(D260=\"\",\"\",SUM(I260)*SUM(AD234))","v":""},{"$f":"IF(D260=\"\",\"\",SUM(J260)*SUM(AD234))","v":""},"",{"$f":"IF(AG260,INDEX(E_PurchPrec!U:U,MATCH(CONST_CNTR_ElecEFMethod&D260,E_PurchPrec!R:R,0)),INDEX(D_Processes!T:T,MATCH(CONST_CNTR_ElecEFMethod&D260,D_Processes!R:R,0)))","v":""},{"$f":"IF(OR($D260=\"\",$AG260),\"\",SUM($G260)*SUM(INDEX(InputOutput!$AN$71:$AN$100,MATCH($D260,InputOutput!$D$71:$D$100,0))))","v":""},{"$f":"IF(D260=\"\",\"\",IF(AG260,INDEX(A_InstData!$F$101:$F$120,MATCH(D260,CNTR_List_ExistPurchPrecNames,0)),\"\"))","v":""},{"$f":"IF($D260=\"\",\"\",IFERROR(SUM($G260)*SUM(INDEX(F_Tools!$T$100:$T$129,MATCH($D260,F_Tools!$E$100:$E$129,0)))/K233,\"\"))","v":""},{"$f":"IF($D260=\"\",\"\",IFERROR(SUM($G260)*SUM(INDEX(F_Tools!$U$100:$U$129,MATCH($D260,F_Tools!$E$100:$E$129,0)))/K233,\"\"))","v":""},{"$nulls":8},{"$f":"CONST_PrecursorToGoodInput&D260&\"_\"&D231","v":"PrecToGood__"},null,{"$f":"SUMIF(D_Processes!R:R,AB260,D_Processes!K:K)","v":0},{"$f":"SUMIF(D_Processes!R:R,CONST_CNTR_TotProd&D260,D_Processes!L:L)","v":0},null,false]
[null,null,27,{"$f":"IF(D231=\"\",\"\",IF(COUNTIF(INDEX(CNTR_IOSupplyChain,MATCH(D231,CNTR_IOProcAndPrec,0),),C261)=0,\"\",INDEX(CNTR_IOProcAndPrec,MATCH(C261,INDEX(CNTR_IOSupplyChain,MATCH(D231,CNTR_IOProcAndPrec,0),),0))))","v":""},null,"",{"$f":"IF(D261=\"\",\"\",INDEX(CNTR_Matrix_Inv,MATCH(D231,CNTR_IOProcAndPrec,0),MATCH(D261,CNTR_IOProcAndPrec,0)))","v":""},{"$f":"IF(D261=\"\",\"\",IF(AG261,INDEX(E_PurchPrec!U:U,MATCH(CONST_PurchPrecDefaultUsed&D261,E_PurchPrec!R:R,0)),CONST_NA))","v":""},{"$f":"IF($D261=\"\",\"\",SUM($G261)*SUM(INDEX(InputOutput!$AJ$71:$AJ$100,MATCH($D261,InputOutput!$D$71:$D$100,0))))","v":""},{"$f":"IF($D261=\"\",\"\",SUM($G261)*SUM(INDEX(InputOutput!$AL$71:$AL$100,MATCH($D261,InputOutput!$D$71:$D$100,0))))","v":""},"",{"$f":"IF(D261=\"\",\"\",SUM(I261)*SUM(AD234))","v":""},{"$f":"IF(D261=\"\",\"\",SUM(J261)*SUM(AD234))","v":""},"",{"$f":"IF(AG261,INDEX(E_PurchPrec!U:U,MATCH(CONST_CNTR_ElecEFMethod&D261,E_PurchPrec!R:R,0)),INDEX(D_Processes!T:T,MATCH(CONST_CNTR_ElecEFMethod&D261,D_Processes!R:R,0)))","v":""},{"$f":"IF(OR($D261=\"\",$AG261),\"\",SUM($G261)*SUM(INDEX(InputOutput!$AN$71:$AN$100,MATCH($D261,InputOutput!$D$71:$D$100,0))))","v":""},{"$f":"IF(D261=\"\",\"\",IF(AG261,INDEX(A_InstData!$F$101:$F$120,MATCH(D261,CNTR_List_ExistPurchPrecNames,0)),\"\"))","v":""},{"$f":"IF($D261=\"\",\"\",IFERROR(SUM($G261)*SUM(INDEX(F_Tools!$T$100:$T$129,MATCH($D261,F_Tools!$E$100:$E$129,0)))/K233,\"\"))","v":""},{"$f":"IF($D261=\"\",\"\",IFERROR(SUM($G261)*SUM(INDEX(F_Tools!$U$100:$U$129,MATCH($D261,F_Tools!$E$100:$E$129,0)))/K233,\"\"))","v":""},{"$nulls":8},{"$f":"CONST_PrecursorToGoodInput&D261&\"_\"&D231","v":"PrecToGood__"},null,{"$f":"SUMIF(D_Processes!R:R,AB261,D_Processes!K:K)","v":0},{"$f":"SUMIF(D_Processes!R:R,CONST_CNTR_TotProd&D261,D_Processes!L:L)","v":0},null,false]
[null,null,28,{"$f":"IF(D231=\"\",\"\",IF(COUNTIF(INDEX(CNTR_IOSupplyChain,MATCH(D231,CNTR_IOProcAndPrec,0),),C262)=0,\"\",INDEX(CNTR_IOProcAndPrec,MATCH(C262,INDEX(CNTR_IOSupplyChain,MATCH(D231,CNTR_IOProcAndPrec,0),),0))))","v":""},null,"",{"$f":"IF(D262=\"\",\"\",INDEX(CNTR_Matrix_Inv,MATCH(D231,CNTR_IOProcAndPrec,0),MATCH(D262,CNTR_IOProcAndPrec,0)))","v":""},{"$f":"IF(D262=\"\",\"\",IF(AG262,INDEX(E_PurchPrec!U:U,MATCH(CONST_PurchPrecDefaultUsed&D262,E_PurchPrec!R:R,0)),CONST_NA))","v":""},{"$f":"IF($D262=\"\",\"\",SUM($G262)*SUM(INDEX(InputOutput!$AJ$71:$AJ$100,MATCH($D262,InputOutput!$D$71:$D$100,0))))","v":""},{"$f":"IF($D262=\"\",\"\",SUM($G262)*SUM(INDEX(InputOutput!$AL$71:$AL$100,MATCH($D262,InputOutput!$D$71:$D$100,0))))","v":""},"",{"$f":"IF(D262=\"\",\"\",SUM(I262)*SUM(AD234))","v":""},{"$f":"IF(D262=\"\",\"\",SUM(J262)*SUM(AD234))","v":""},"",{"$f":"IF(AG262,INDEX(E_PurchPrec!U:U,MATCH(CONST_CNTR_ElecEFMethod&D262,E_PurchPrec!R:R,0)),INDEX(D_Processes!T:T,MATCH(CONST_CNTR_ElecEFMethod&D262,D_Processes!R:R,0)))","v":""},{"$f":"IF(OR($D262=\"\",$AG262),\"\",SUM($G262)*SUM(INDEX(InputOutput!$AN$71:$AN$100,MATCH($D262,InputOutput!$D$71:$D$100,0))))","v":""},{"$f":"IF(D262=\"\",\"\",IF(AG262,INDEX(A_InstData!$F$101:$F$120,MATCH(D262,CNTR_List_ExistPurchPrecNames,0)),\"\"))","v":""},{"$f":"IF($D262=\"\",\"\",IFERROR(SUM($G262)*SUM(INDEX(F_Tools!$T$100:$T$129,MATCH($D262,F_Tools!$E$100:$E$129,0)))/K233,\"\"))","v":""},{"$f":"IF($D262=\"\",\"\",IFERROR(SUM($G262)*SUM(INDEX(F_Tools!$U$100:$U$129,MATCH($D262,F_Tools!$E$100:$E$129,0)))/K233,\"\"))","v":""},{"$nulls":8},{"$f":"CONST_PrecursorToGoodInput&D262&\"_\"&D231","v":"PrecToGood__"},null,{"$f":"SUMIF(D_Processes!R:R,AB262,D_Processes!K:K)","v":0},{"$f":"SUMIF(D_Processes!R:R,CONST_CNTR_TotProd&D262,D_Processes!L:L)","v":0},null,false]
[null,null,29,{"$f":"IF(D231=\"\",\"\",IF(COUNTIF(INDEX(CNTR_IOSupplyChain,MATCH(D231,CNTR_IOProcAndPrec,0),),C263)=0,\"\",INDEX(CNTR_IOProcAndPrec,MATCH(C263,INDEX(CNTR_IOSupplyChain,MATCH(D231,CNTR_IOProcAndPrec,0),),0))))","v":""},null,"",{"$f":"IF(D263=\"\",\"\",INDEX(CNTR_Matrix_Inv,MATCH(D231,CNTR_IOProcAndPrec,0),MATCH(D263,CNTR_IOProcAndPrec,0)))","v":""},{"$f":"IF(D263=\"\",\"\",IF(AG263,INDEX(E_PurchPrec!U:U,MATCH(CONST_PurchPrecDefaultUsed&D263,E_PurchPrec!R:R,0)),CONST_NA))","v":""},{"$f":"IF($D263=\"\",\"\",SUM($G263)*SUM(INDEX(InputOutput!$AJ$71:$AJ$100,MATCH($D263,InputOutput!$D$71:$D$100,0))))","v":""},{"$f":"IF($D263=\"\",\"\",SUM($G263)*SUM(INDEX(InputOutput!$AL$71:$AL$100,MATCH($D263,InputOutput!$D$71:$D$100,0))))","v":""},"",{"$f":"IF(D263=\"\",\"\",SUM(I263)*SUM(AD234))","v":""},{"$f":"IF(D263=\"\",\"\",SUM(J263)*SUM(AD234))","v":""},"",{"$f":"IF(AG263,INDEX(E_PurchPrec!U:U,MATCH(CONST_CNTR_ElecEFMethod&D263,E_PurchPrec!R:R,0)),INDEX(D_Processes!T:T,MATCH(CONST_CNTR_ElecEFMethod&D263,D_Processes!R:R,0)))","v":""},{"$f":"IF(OR($D263=\"\",$AG263),\"\",SUM($G263)*SUM(INDEX(InputOutput!$AN$71:$AN$100,MATCH($D263,InputOutput!$D$71:$D$100,0))))","v":""},{"$f":"IF(D263=\"\",\"\",IF(AG263,INDEX(A_InstData!$F$101:$F$120,MATCH(D263,CNTR_List_ExistPurchPrecNames,0)),\"\"))","v":""},{"$f":"IF($D263=\"\",\"\",IFERROR(SUM($G263)*SUM(INDEX(F_Tools!$T$100:$T$129,MATCH($D263,F_Tools!$E$100:$E$129,0)))/K233,\"\"))","v":""},{"$f":"IF($D263=\"\",\"\",IFERROR(SUM($G263)*SUM(INDEX(F_Tools!$U$100:$U$129,MATCH($D263,F_Tools!$E$100:$E$129,0)))/K233,\"\"))","v":""},{"$nulls":8},{"$f":"CONST_PrecursorToGoodInput&D263&\"_\"&D231","v":"PrecToGood__"},null,{"$f":"SUMIF(D_Processes!R:R,AB263,D_Processes!K:K)","v":0},{"$f":"SUMIF(D_Processes!R:R,CONST_CNTR_TotProd&D263,D_Processes!L:L)","v":0},null,false]
[null,null,30,{"$f":"IF(D231=\"\",\"\",IF(COUNTIF(INDEX(CNTR_IOSupplyChain,MATCH(D231,CNTR_IOProcAndPrec,0),),C264)=0,\"\",INDEX(CNTR_IOProcAndPrec,MATCH(C264,INDEX(CNTR_IOSupplyChain,MATCH(D231,CNTR_IOProcAndPrec,0),),0))))","v":""},null,"",{"$f":"IF(D264=\"\",\"\",INDEX(CNTR_Matrix_Inv,MATCH(D231,CNTR_IOProcAndPrec,0),MATCH(D264,CNTR_IOProcAndPrec,0)))","v":""},{"$f":"IF(D264=\"\",\"\",IF(AG264,INDEX(E_PurchPrec!U:U,MATCH(CONST_PurchPrecDefaultUsed&D264,E_PurchPrec!R:R,0)),CONST_NA))","v":""},{"$f":"IF($D264=\"\",\"\",SUM($G264)*SUM(INDEX(InputOutput!$AJ$71:$AJ$100,MATCH($D264,InputOutput!$D$71:$D$100,0))))","v":""},{"$f":"IF($D264=\"\",\"\",SUM($G264)*SUM(INDEX(InputOutput!$AL$71:$AL$100,MATCH($D264,InputOutput!$D$71:$D$100,0))))","v":""},"",{"$f":"IF(D264=\"\",\"\",SUM(I264)*SUM(AD234))","v":""},{"$f":"IF(D264=\"\",\"\",SUM(J264)*SUM(AD234))","v":""},"",{"$f":"IF(AG264,INDEX(E_PurchPrec!U:U,MATCH(CONST_CNTR_ElecEFMethod&D264,E_PurchPrec!R:R,0)),INDEX(D_Processes!T:T,MATCH(CONST_CNTR_ElecEFMethod&D264,D_Processes!R:R,0)))","v":""},{"$f":"IF(OR($D264=\"\",$AG264),\"\",SUM($G264)*SUM(INDEX(InputOutput!$AN$71:$AN$100,MATCH($D264,InputOutput!$D$71:$D$100,0))))","v":""},{"$f":"IF(D264=\"\",\"\",IF(AG264,INDEX(A_InstData!$F$101:$F$120,MATCH(D264,CNTR_List_ExistPurchPrecNames,0)),\"\"))","v":""},{"$f":"IF($D264=\"\",\"\",IFERROR(SUM($G264)*SUM(INDEX(F_Tools!$T$100:$T$129,MATCH($D264,F_Tools!$E$100:$E$129,0)))/K233,\"\"))","v":""},{"$f":"IF($D264=\"\",\"\",IFERROR(SUM($G264)*SUM(INDEX(F_Tools!$U$100:$U$129,MATCH($D264,F_Tools!$E$100:$E$129,0)))/K233,\"\"))","v":""},{"$nulls":8},{"$f":"CONST_PrecursorToGoodInput&D264&\"_\"&D231","v":"PrecToGood__"},null,{"$f":"SUMIF(D_Processes!R:R,AB264,D_Processes!K:K)","v":0},{"$f":"SUMIF(D_Processes!R:R,CONST_CNTR_TotProd&D264,D_Processes!L:L)","v":0},null,false]
[]
[]
[null,null,{"$f":"C231+1","v":4},{"$f":"IF(INDEX(CNTR_List_ExistProdProcNames,C267)=CONST_NA,\"\",INDEX(CNTR_List_ExistProdProcNames,C267))","v":""},null,{"$f":"Translations!$B$107","v":"Aggregated goods category"},{"$f":"Translations!$B$584","v":"Mass share"},{"$f":"Translations!$B$586","v":"(Share of) Default value"},{"$f":"Translations!$B$570","v":"SEE (direct)"},{"$f":"Translations!$B$574","v":"SEE (indirect)"},{"$f":"Translations!$B$344","v":"SEE (total)"},{"$f":"Translations!$B$589","v":"EmbEm (direct)"},{"$f":"Translations!$B$591","v":"EmbEm (indirect)"},{"$f":"Translations!$B$593","v":"EmbEm (total)"},{"$f":"Translations!$B$594","v":"Source of electricity EF"},{"$f":"Translations!$B$597","v":"Specific electricity"},"Country code",{"$f":"Translations!$B$351","v":"CP due (per t or MWh)"},{"$f":"Translations!$B$352","v":"Rebate (per t or MWh)"},{"$nulls":12},{"$f":"H267","v":"(Share of) Default value"},{"$f":"H269","v":""}]
[{"$nulls":6},{"$f":"IF($F269=\"\",CONST_t,INDEX(CONST_LIST_GoodsUnit,MATCH($F269,CONST_LIST_Goods,0)))&\"/\"&IF($F269=\"\",CONST_t,INDEX(CONST_LIST_GoodsUnit,MATCH($F269,CONST_LIST_Goods,0)))","v":"t/t"},null,{"$f":"CONST_tCO2eq&\"/\"&IF($F269=\"\",CONST_t,INDEX(CONST_LIST_GoodsUnit,MATCH($F269,CONST_LIST_Goods,0)))","v":"tCO2e/t"},{"$f":"CONST_tCO2eq&\"/\"&IF($F269=\"\",CONST_t,INDEX(CONST_LIST_GoodsUnit,MATCH($F269,CONST_LIST_Goods,0)))","v":"tCO2e/t"},{"$f":"CONST_tCO2eq&\"/\"&IF($F269=\"\",CONST_t,INDEX(CONST_LIST_GoodsUnit,MATCH($F269,CONST_LIST_Goods,0)))","v":"tCO2e/t"},{"$f":"CONST_tCO2eq","v":"tCO2e"},{"$f":"CONST_tCO2eq","v":"tCO2e"},{"$f":"CONST_tCO2eq","v":"tCO2e"},null,{"$f":"CONST_MWh&\"/\"&IF($F269=\"\",CONST_t,INDEX(CONST_LIST_GoodsUnit,MATCH($F269,CONST_LIST_Goods,0)))","v":"MWh/t"}]
[{"$nulls":3},{"$f":"Translations!$B$600","v":"Total production process"},null,{"$f":"IF(D270=\"\",\"\",INDEX(CNTR_List_ExistProdProc,MATCH(D270,CNTR_List_ExistProdProcNames,0)))","v":""},"-",{"$f":"IF(D267=\"\",\"\",IFERROR(SUMIFS(I271:I300,H271:H300,TRUE)/I269,\"\"))","v":""},{"$f":"IF(COUNT(I270:I300)>0,SUM(I270:I300),\"\")","v":""},"","","","","","-",{"$f":"IF(COUNT(P270:P300)>0,SUM(P270:P300),\"\")","v":""},"-",{"$f":"IF(COUNT(R270:R300)>0,SUM(R270:R300),\"\")","v":""},{"$f":"IF(COUNT(S270:S300)>0,SUM(S270:S300),\"\")","v":""},{"$nulls":10},{"$f":"Translations!$B$601","v":"Production and consumption"},{"$f":"Translations!$B$602","v":"Total production of precursors"},null,"IsPrecursor?"]
[{"$nulls":3},{"$f":"D267","v":""},null,{"$f":"IF(D270=\"\",\"\",INDEX(CNTR_List_ExistProdProc,MATCH(D270,CNTR_List_ExistProdProcNames,0)))","v":""},{"v":1,"d":"1.000"},"-",{"$f":"IF($D270=\"\",\"\",SUM($G270)*SUM(INDEX(InputOutput!$AJ$71:$AJ$100,MATCH($D270,InputOutput!$D$71:$D$100,0))))","v":""},{"$f":"IF($D270=\"\",\"\",SUM($G270)*SUM(INDEX(InputOutput!$AL$71:$AL$100,MATCH($D270,InputOutput!$D$71:$D$100,0))))","v":""},{"$f":"IF(COUNT(I270:J270)>0,SUM(I270:J270),\"\")","v":""},{"$f":"IF(D270=\"\",\"\",SUM(I270)*SUM(AD270))","v":""},{"$f":"IF(D270=\"\",\"\",SUM(J270)*SUM(AD270))","v":""},{"$f":"IF(COUNT(L270:M270)>0,SUM(L270:M270),\"\")","v":""},{"$f":"IF(AG270,INDEX(E_PurchPrec!U:U,MATCH(CONST_CNTR_ElecEFMethod&D270,E_PurchPrec!R:R,0)),INDEX(D_Processes!T:T,MATCH(CONST_CNTR_ElecEFMethod&D270,D_Processes!R:R,0)))","v":""},{"$f":"IF(OR($D270=\"\",$AG270),\"\",SUM($G270)*SUM(INDEX(InputOutput!$AN$71:$AN$100,MATCH($D270,InputOutput!$D$71:$D$100,0))))","v":""},null,{"$f":"IF($D270=\"\",\"\",IFERROR(SUM($G270)*SUM(INDEX(F_Tools!$T$100:$T$129,MATCH($D270,F_Tools!$E$100:$E$129,0)))/K269,\"\"))","v":""},{"$f":"IF($D270=\"\",\"\",IFERROR(SUM($G270)*SUM(INDEX(F_Tools!$U$100:$U$129,MATCH($D270,F_Tools!$E$100:$E$129,0)))/K269,\"\"))","v":""},{"$nulls":8},{"$f":"CONST_CNTR_TotProd&D267","v":"TotProd_"},null,{"$f":"SUMIF(D_Processes!R:R,AB270,D_Processes!L:L)","v":0}]
[null,null,1,{"$f":"IF(D267=\"\",\"\",IF(COUNTIF(INDEX(CNTR_IOSupplyChain,MATCH(D267,CNTR_IOProcAndPrec,0),),C271)=0,\"\",INDEX(CNTR_IOProcAndPrec,MATCH(C271,INDEX(CNTR_IOSupplyChain,MATCH(D267,CNTR_IOProcAndPrec,0),),0))))","v":""},null,{"$f":"IF(D271=\"\",\"\",IF(COUNTIF(CNTR_List_ExistProdProcNames,D271)>0,INDEX(CNTR_List_ExistProdProc,MATCH(D271,CNTR_List_ExistProdProcNames,0)),INDEX(CNTR_List_ExistPurchPrec,MATCH(D271,CNTR_List_ExistPurchPrecNames,0))))","v":""},{"$f":"IF(D271=\"\",\"\",INDEX(CNTR_Matrix_Inv,MATCH(D267,CNTR_IOProcAndPrec,0),MATCH(D271,CNTR_IOProcAndPrec,0)))","v":""},{"$f":"IF(D271=\"\",\"\",IF(AG271,INDEX(E_PurchPrec!U:U,MATCH(CONST_PurchPrecDefaultUsed&D271,E_PurchPrec!R:R,0)),CONST_NA))","v":""},{"$f":"IF($D271=\"\",\"\",SUM($G271)*SUM(INDEX(InputOutput!$AJ$71:$AJ$100,MATCH($D271,InputOutput!$D$71:$D$100,0))))","v":""},{"$f":"IF($D271=\"\",\"\",SUM($G271)*SUM(INDEX(InputOutput!$AL$71:$AL$100,MATCH($D271,InputOutput!$D$71:$D$100,0))))","v":""},"",{"$f":"IF(D271=\"\",\"\",SUM(I271)*SUM(AD270))","v":""},{"$f":"IF(D271=\"\",\"\",SUM(J271)*SUM(AD270))","v":""},{"$f":"IF(COUNT(L271:M271)>0,SUM(L271:M271),\"\")","v":""},{"$f":"IF(AG271,INDEX(E_PurchPrec!U:U,MATCH(CONST_CNTR_ElecEFMethod&D271,E_PurchPrec!R:R,0)),INDEX(D_Processes!T:T,MATCH(CONST_CNTR_ElecEFMethod&D271,D_Processes!R:R,0)))","v":""},{"$f":"IF(OR($D271=\"\",$AG271),\"\",SUM($G271)*SUM(INDEX(InputOutput!$AN$71:$AN$100,MATCH($D271,InputOutput!$D$71:$D$100,0))))","v":""},{"$f":"IF(D271=\"\",\"\",IF(AG271,INDEX(A_InstData!$F$101:$F$120,MATCH(D271,CNTR_List_ExistPurchPrecNames,0)),\"\"))","v":""},{"$f":"IF($D271=\"\",\"\",IFERROR(SUM($G271)*SUM(INDEX(F_Tools!$T$100:$T$129,MATCH($D271,F_Tools!$E$100:$E$129,0)))/K269,\"\"))","v":""},{"$f":"IF($D271=\"\",\"\",IFERROR(SUM($G271)*SUM(INDEX(F_Tools!$U$100:$U$129,MATCH($D271,F_Tools!$E$100:$E$129,0)))/K269,\"\"))","v":""},{"$nulls":8},{"$f":"CONST_PrecursorToGoodInput&D271&\"_\"&D267","v":"PrecToGood__"},null,{"$f":"SUMIF(D_Processes!R:R,AB271,D_Processes!K:K)","v":0},{"$f":"SUMIF(D_Processes!R:R,CONST_CNTR_TotProd&D271,D_Processes!L:L)","v":0},null,{"$f":"COUNTIF(CNTR_List_ExistPurchPrecNames,D271)>0","v":false}]
[null,null,2,{"$f":"IF(D267=\"\",\"\",IF(COUNTIF(INDEX(CNTR_IOSupplyChain,MATCH(D267,CNTR_IOProcAndPrec,0),),C272)=0,\"\",INDEX(CNTR_IOProcAndPrec,MATCH(C272,INDEX(CNTR_IOSupplyChain,MATCH(D267,CNTR_IOProcAndPrec,0),),0))))","v":""},null,"",{"$f":"IF(D272=\"\",\"\",INDEX(CNTR_Matrix_Inv,MATCH(D267,CNTR_IOProcAndPrec,0),MATCH(D272,CNTR_IOProcAndPrec,0)))","v":""},{"$f":"IF(D272=\"\",\"\",IF(AG272,INDEX(E_PurchPrec!U:U,MATCH(CONST_PurchPrecDefaultUsed&D272,E_PurchPrec!R:R,0)),CONST_NA))","v":""},{"$f":"IF($D272=\"\",\"\",SUM($G272)*SUM(INDEX(InputOutput!$AJ$71:$AJ$100,MATCH($D272,InputOutput!$D$71:$D$100,0))))","v":""},{"$f":"IF($D272=\"\",\"\",SUM($G272)*SUM(INDEX(InputOutput!$AL$71:$AL$100,MATCH($D272,InputOutput!$D$71:$D$100,0))))","v":""},"",{"$f":"IF(D272=\"\",\"\",SUM(I272)*SUM(AD270))","v":""},{"$f":"IF(D272=\"\",\"\",SUM(J272)*SUM(AD270))","v":""},{"$f":"IF(COUNT(L272:M272)>0,SUM(L272:M272),\"\")","v":""},{"$f":"IF(AG272,INDEX(E_PurchPrec!U:U,MATCH(CONST_CNTR_ElecEFMethod&D272,E_PurchPrec!R:R,0)),INDEX(D_Processes!T:T,MATCH(CONST_CNTR_ElecEFMethod&D272,D_Processes!R:R,0)))","v":""},{"$f":"IF(OR($D272=\"\",$AG272),\"\",SUM($G272)*SUM(INDEX(InputOutput!$AN$71:$AN$100,MATCH($D272,InputOutput!$D$71:$D$100,0))))","v":""},{"$f":"IF(D272=\"\",\"\",IF(AG272,INDEX(A_InstData!$F$101:$F$120,MATCH(D272,CNTR_List_ExistPurchPrecNames,0)),\"\"))","v":""},{"$f":"IF($D272=\"\",\"\",IFERROR(SUM($G272)*SUM(INDEX(F_Tools!$T$100:$T$129,MATCH($D272,F_Tools!$E$100:$E$129,0)))/K269,\"\"))","v":""},{"$f":"IF($D272=\"\",\"\",IFERROR(SUM($G272)*SUM(INDEX(F_Tools!$U$100:$U$129,MATCH($D272,F_Tools!$E$100:$E$129,0)))/K269,\"\"))","v":""},{"$nulls":8},{"$f":"CONST_PrecursorToGoodInput&D272&\"_\"&D267","v":"PrecToGood__"},null,{"$f":"SUMIF(D_Processes!R:R,AB272,D_Processes!K:K)","v":0},{"$f":"SUMIF(D_Processes!R:R,CONST_CNTR_TotProd&D272,D_Processes!L:L)","v":0},null,false]
[null,null,3,{"$f":"IF(D267=\"\",\"\",IF(COUNTIF(INDEX(CNTR_IOSupplyChain,MATCH(D267,CNTR_IOProcAndPrec,0),),C273)=0,\"\",INDEX(CNTR_IOProcAndPrec,MATCH(C273,INDEX(CNTR_IOSupplyChain,MATCH(D267,CNTR_IOProcAndPrec,0),),0))))","v":""},null,"",{"$f":"IF(D273=\"\",\"\",INDEX(CNTR_Matrix_Inv,MATCH(D267,CNTR_IOProcAndPrec,0),MATCH(D273,CNTR_IOProcAndPrec,0)))","v":""},{"$f":"IF(D273=\"\",\"\",IF(AG273,INDEX(E_PurchPrec!U:U,MATCH(CONST_PurchPrecDefaultUsed&D273,E_PurchPrec!R:R,0)),CONST_NA))","v":""},{"$f":"IF($D273=\"\",\"\",SUM($G273)*SUM(INDEX(InputOutput!$AJ$71:$AJ$100,MATCH($D273,InputOutput!$D$71:$D$100,0))))","v":""},{"$f":"IF($D273=\"\",\"\",SUM($G273)*SUM(INDEX(InputOutput!$AL$71:$AL$100,MATCH($D273,InputOutput!$D$71:$D$100,0))))","v":""},"",{"$f":"IF(D273=\"\",\"\",SUM(I273)*SUM(AD270))","v":""},{"$f":"IF(D273=\"\",\"\",SUM(J273)*SUM(AD270))","v":""},{"$f":"IF(COUNT(L273:M273)>0,SUM(L273:M273),\"\")","v":""},{"$f":"IF(AG273,INDEX(E_PurchPrec!U:U,MATCH(CONST_CNTR_ElecEFMethod&D273,E_PurchPrec!R:R,0)),INDEX(D_Processes!T:T,MATCH(CONST_CNTR_ElecEFMethod&D273,D_Processes!R:R,0)))","v":""},{"$f":"IF(OR($D273=\"\",$AG273),\"\",SUM($G273)*SUM(INDEX(InputOutput!$AN$71:$AN$100,MATCH($D273,InputOutput!$D$71:$D$100,0))))","v":""},{"$f":"IF(D273=\"\",\"\",IF(AG273,INDEX(A_InstData!$F$101:$F$120,MATCH(D273,CNTR_List_ExistPurchPrecNames,0)),\"\"))","v":""},{"$f":"IF($D273=\"\",\"\",IFERROR(SUM($G273)*SUM(INDEX(F_Tools!$T$100:$T$129,MATCH($D273,F_Tools!$E$100:$E$129,0)))/K269,\"\"))","v":""},{"$f":"IF($D273=\"\",\"\",IFERROR(SUM($G273)*SUM(INDEX(F_Tools!$U$100:$U$129,MATCH($D273,F_Tools!$E$100:$E$129,0)))/K269,\"\"))","v":""},{"$nulls":8},{"$f":"CONST_PrecursorToGoodInput&D273&\"_\"&D267","v":"PrecToGood__"},null,{"$f":"SUMIF(D_Processes!R:R,AB273,D_Processes!K:K)","v":0},{"$f":"SUMIF(D_Processes!R:R,CONST_CNTR_TotProd&D273,D_Processes!L:L)","v":0},null,false]
[null,null,4,{"$f":"IF(D267=\"\",\"\",IF(COUNTIF(INDEX(CNTR_IOSupplyChain,MATCH(D267,CNTR_IOProcAndPrec,0),),C274)=0,\"\",INDEX(CNTR_IOProcAndPrec,MATCH(C274,INDEX(CNTR_IOSupplyChain,MATCH(D267,CNTR_IOProcAndPrec,0),),0))))","v":""},null,"",{"$f":"IF(D274=\"\",\"\",INDEX(CNTR_Matrix_Inv,MATCH(D267,CNTR_IOProcAndPrec,0),MATCH(D274,CNTR_IOProcAndPrec,0)))","v":""},{"$f":"IF(D274=\"\",\"\",IF(AG274,INDEX(E_PurchPrec!U:U,MATCH(CONST_PurchPrecDefaultUsed&D274,E_PurchPrec!R:R,0)),CONST_NA))","v":""},{"$f":"IF($D274=\"\",\"\",SUM($G274)*SUM(INDEX(InputOutput!$AJ$71:$AJ$100,MATCH($D274,InputOutput!$D$71:$D$100,0))))","v":""},{"$f":"IF($D274=\"\",\"\",SUM($G274)*SUM(INDEX(InputOutput!$AL$71:$AL$100,MATCH($D274,InputOutput!$D$71:$D$100,0))))","v":""},"",{"$f":"IF(D274=\"\",\"\",SUM(I274)*SUM(AD270))","v":""},{"$f":"IF(D274=\"\",\"\",SUM(J274)*SUM(AD270))","v":""},"",{"$f":"IF(AG274,INDEX(E_PurchPrec!U:U,MATCH(CONST_CNTR_ElecEFMethod&D274,E_PurchPrec!R:R,0)),INDEX(D_Processes!T:T,MATCH(CONST_CNTR_ElecEFMethod&D274,D_Processes!R:R,0)))","v":""},{"$f":"IF(OR($D274=\"\",$AG274),\"\",SUM($G274)*SUM(INDEX(InputOutput!$AN$71:$AN$100,MATCH($D274,InputOutput!$D$71:$D$100,0))))","v":""},{"$f":"IF(D274=\"\",\"\",IF(AG274,INDEX(A_InstData!$F$101:$F$120,MATCH(D274,CNTR_List_ExistPurchPrecNames,0)),\"\"))","v":""},{"$f":"IF($D274=\"\",\"\",IFERROR(SUM($G274)*SUM(INDEX(F_Tools!$T$100:$T$129,MATCH($D274,F_Tools!$E$100:$E$129,0)))/K269,\"\"))","v":""},{"$f":"IF($D274=\"\",\"\",IFERROR(SUM($G274)*SUM(INDEX(F_Tools!$U$100:$U$129,MATCH($D274,F_Tools!$E$100:$E$129,0)))/K269,\"\"))","v":""},{"$nulls":8},{"$f":"CONST_PrecursorToGoodInput&D274&\"_\"&D267","v":"PrecToGood__"},null,{"$f":"SUMIF(D_Processes!R:R,AB274,D_Processes!K:K)","v":0},{"$f":"SUMIF(D_Processes!R:R,CONST_CNTR_TotProd&D274,D_Processes!L:L)","v":0},null,false]
[null,null,5,{"$f":"IF(D267=\"\",\"\",IF(COUNTIF(INDEX(CNTR_IOSupplyChain,MATCH(D267,CNTR_IOProcAndPrec,0),),C275)=0,\"\",INDEX(CNTR_IOProcAndPrec,MATCH(C275,INDEX(CNTR_IOSupplyChain,MATCH(D267,CNTR_IOProcAndPrec,0),),0))))","v":""},null,"",{"$f":"IF(D275=\"\",\"\",INDEX(CNTR_Matrix_Inv,MATCH(D267,CNTR_IOProcAndPrec,0),MATCH(D275,CNTR_IOProcAndPrec,0)))","v":""},{"$f":"IF(D275=\"\",\"\",IF(AG275,INDEX(E_PurchPrec!U:U,MATCH(CONST_PurchPrecDefaultUsed&D275,E_PurchPrec!R:R,0)),CONST_NA))","v":""},{"$f":"IF($D275=\"\",\"\",SUM($G275)*SUM(INDEX(InputOutput!$AJ$71:$AJ$100,MATCH($D275,InputOutput!$D$71:$D$100,0))))","v":""},{"$f":"IF($D275=\"\",\"\",SUM($G275)*SUM(INDEX(InputOutput!$AL$71:$AL$100,MATCH($D275,InputOutput!$D$71:$D$100,0))))","v":""},"",{"$f":"IF(D275=\"\",\"\",SUM(I275)*SUM(AD270))","v":""},{"$f":"IF(D275=\"\",\"\",SUM(J275)*SUM(AD270))","v":""},"",{"$f":"IF(AG275,INDEX(E_PurchPrec!U:U,MATCH(CONST_CNTR_ElecEFMethod&D275,E_PurchPrec!R:R,0)),INDEX(D_Processes!T:T,MATCH(CONST_CNTR_ElecEFMethod&D275,D_Processes!R:R,0)))","v":""},{"$f":"IF(OR($D275=\"\",$AG275),\"\",SUM($G275)*SUM(INDEX(InputOutput!$AN$71:$AN$100,MATCH($D275,InputOutput!$D$71:$D$100,0))))","v":""},{"$f":"IF(D275=\"\",\"\",IF(AG275,INDEX(A_InstData!$F$101:$F$120,MATCH(D275,CNTR_List_ExistPurchPrecNames,0)),\"\"))","v":""},{"$f":"IF($D275=\"\",\"\",IFERROR(SUM($G275)*SUM(INDEX(F_Tools!$T$100:$T$129,MATCH($D275,F_Tools!$E$100:$E$129,0)))/K269,\"\"))","v":""},{"$f":"IF($D275=\"\",\"\",IFERROR(SUM($G275)*SUM(INDEX(F_Tools!$U$100:$U$129,MATCH($D275,F_Tools!$E$100:$E$129,0)))/K269,\"\"))","v":""},{"$nulls":8},{"$f":"CONST_PrecursorToGoodInput&D275&\"_\"&D267","v":"PrecToGood__"},null,{"$f":"SUMIF(D_Processes!R:R,AB275,D_Processes!K:K)","v":0},{"$f":"SUMIF(D_Processes!R:R,CONST_CNTR_TotProd&D275,D_Processes!L:L)","v":0},null,false]
[null,null,6,{"$f":"IF(D267=\"\",\"\",IF(COUNTIF(INDEX(CNTR_IOSupplyChain,MATCH(D267,CNTR_IOProcAndPrec,0),),C276)=0,\"\",INDEX(CNTR_IOProcAndPrec,MATCH(C276,INDEX(CNTR_IOSupplyChain,MATCH(D267,CNTR_IOProcAndPrec,0),),0))))","v":""},null,"",{"$f":"IF(D276=\"\",\"\",INDEX(CNTR_Matrix_Inv,MATCH(D267,CNTR_IOProcAndPrec,0),MATCH(D276,CNTR_IOProcAndPrec,0)))","v":""},{"$f":"IF(D276=\"\",\"\",IF(AG276,INDEX(E_PurchPrec!U:U,MATCH(CONST_PurchPrecDefaultUsed&D276,E_PurchPrec!R:R,0)),CONST_NA))","v":""},{"$f":"IF($D276=\"\",\"\",SUM($G276)*SUM(INDEX(InputOutput!$AJ$71:$AJ$100,MATCH($D276,InputOutput!$D$71:$D$100,0))))","v":""},{"$f":"IF($D276=\"\",\"\",SUM($G276)*SUM(INDEX(InputOutput!$AL$71:$AL$100,MATCH($D276,InputOutput!$D$71:$D$100,0))))","v":""},"",{"$f":"IF(D276=\"\",\"\",SUM(I276)*SUM(AD270))","v":""},{"$f":"IF(D276=\"\",\"\",SUM(J276)*SUM(AD270))","v":""},"",{"$f":"IF(AG276,INDEX(E_PurchPrec!U:U,MATCH(CONST_CNTR_ElecEFMethod&D276,E_PurchPrec!R:R,0)),INDEX(D_Processes!T:T,MATCH(CONST_CNTR_ElecEFMethod&D276,D_Processes!R:R,0)))","v":""},{"$f":"IF(OR($D276=\"\",$AG276),\"\",SUM($G276)*SUM(INDEX(InputOutput!$AN$71:$AN$100,MATCH($D276,InputOutput!$D$71:$D$100,0))))","v":""},{"$f":"IF(D276=\"\",\"\",IF(AG276,INDEX(A_InstData!$F$101:$F$120,MATCH(D276,CNTR_List_ExistPurchPrecNames,0)),\"\"))","v":""},{"$f":"IF($D276=\"\",\"\",IFERROR(SUM($G276)*SUM(INDEX(F_Tools!$T$100:$T$129,MATCH($D276,F_Tools!$E$100:$E$129,0)))/K269,\"\"))","v":""},{"$f":"IF($D276=\"\",\"\",IFERROR(SUM($G276)*SUM(INDEX(F_Tools!$U$100:$U$129,MATCH($D276,F_Tools!$E$100:$E$129,0)))/K269,\"\"))","v":""},{"$nulls":8},{"$f":"CONST_PrecursorToGoodInput&D276&\"_\"&D267","v":"PrecToGood__"},null,{"$f":"SUMIF(D_Processes!R:R,AB276,D_Processes!K:K)","v":0},{"$f":"SUMIF(D_Processes!R:R,CONST_CNTR_TotProd&D276,D_Processes!L:L)","v":0},null,false]
[null,null,7,{"$f":"IF(D267=\"\",\"\",IF(COUNTIF(INDEX(CNTR_IOSupplyChain,MATCH(D267,CNTR_IOProcAndPrec,0),),C277)=0,\"\",INDEX(CNTR_IOProcAndPrec,MATCH(C277,INDEX(CNTR_IOSupplyChain,MATCH(D267,CNTR_IOProcAndPrec,0),),0))))","v":""},null,"",{"$f":"IF(D277=\"\",\"\",INDEX(CNTR_Matrix_Inv,MATCH(D267,CNTR_IOProcAndPrec,0),MATCH(D277,CNTR_IOProcAndPrec,0)))","v":""},{"$f":"IF(D277=\"\",\"\",IF(AG277,INDEX(E_PurchPrec!U:U,MATCH(CONST_PurchPrecDefaultUsed&D277,E_PurchPrec!R:R,0)),CONST_NA))","v":""},{"$f":"IF($D277=\"\",\"\",SUM($G277)*SUM(INDEX(InputOutput!$AJ$71:$AJ$100,MATCH($D277,InputOutput!$D$71:$D$100,0))))","v":""},{"$f":"IF($D277=\"\",\"\",SUM($G277)*SUM(INDEX(InputOutput!$AL$71:$AL$100,MATCH($D277,InputOutput!$D$71:$D$100,0))))","v":""},"",{"$f":"IF(D277=\"\",\"\",SUM(I277)*SUM(AD270))","v":""},{"$f":"IF(D277=\"\",\"\",SUM(J277)*SUM(AD270))","v":""},"",{"$f":"IF(AG277,INDEX(E_PurchPrec!U:U,MATCH(CONST_CNTR_ElecEFMethod&D277,E_PurchPrec!R:R,0)),INDEX(D_Processes!T:T,MATCH(CONST_CNTR_ElecEFMethod&D277,D_Processes!R:R,0)))","v":""},{"$f":"IF(OR($D277=\"\",$AG277),\"\",SUM($G277)*SUM(INDEX(InputOutput!$AN$71:$AN$100,MATCH($D277,InputOutput!$D$71:$D$100,0))))","v":""},{"$f":"IF(D277=\"\",\"\",IF(AG277,INDEX(A_InstData!$F$101:$F$120,MATCH(D277,CNTR_List_ExistPurchPrecNames,0)),\"\"))","v":""},{"$f":"IF($D277=\"\",\"\",IFERROR(SUM($G277)*SUM(INDEX(F_Tools!$T$100:$T$129,MATCH($D277,F_Tools!$E$100:$E$129,0)))/K269,\"\"))","v":""},{"$f":"IF($D277=\"\",\"\",IFERROR(SUM($G277)*SUM(INDEX(F_Tools!$U$100:$U$129,MATCH($D277,F_Tools!$E$100:$E$129,0)))/K269,\"\"))","v":""},{"$nulls":8},{"$f":"CONST_PrecursorToGoodInput&D277&\"_\"&D267","v":"PrecToGood__"},null,{"$f":"SUMIF(D_Processes!R:R,AB277,D_Processes!K:K)","v":0},{"$f":"SUMIF(D_Processes!R:R,CONST_CNTR_TotProd&D277,D_Processes!L:L)","v":0},null,false]
[null,null,8,{"$f":"IF(D267=\"\",\"\",IF(COUNTIF(INDEX(CNTR_IOSupplyChain,MATCH(D267,CNTR_IOProcAndPrec,0),),C278)=0,\"\",INDEX(CNTR_IOProcAndPrec,MATCH(C278,INDEX(CNTR_IOSupplyChain,MATCH(D267,CNTR_IOProcAndPrec,0),),0))))","v":""},null,"",{"$f":"IF(D278=\"\",\"\",INDEX(CNTR_Matrix_Inv,MATCH(D267,CNTR_IOProcAndPrec,0),MATCH(D278,CNTR_IOProcAndPrec,0)))","v":""},{"$f":"IF(D278=\"\",\"\",IF(AG278,INDEX(E_PurchPrec!U:U,MATCH(CONST_PurchPrecDefaultUsed&D278,E_PurchPrec!R:R,0)),CONST_NA))","v":""},{"$f":"IF($D278=\"\",\"\",SUM($G278)*SUM(INDEX(InputOutput!$AJ$71:$AJ$100,MATCH($D278,InputOutput!$D$71:$D$100,0))))","v":""},{"$f":"IF($D278=\"\",\"\",SUM($G278)*SUM(INDEX(InputOutput!$AL$71:$AL$100,MATCH($D278,InputOutput!$D$71:$D$100,0))))","v":""},"",{"$f":"IF(D278=\"\",\"\",SUM(I278)*SUM(AD270))","v":""},{"$f":"IF(D278=\"\",\"\",SUM(J278)*SUM(AD270))","v":""},"",{"$f":"IF(AG278,INDEX(E_PurchPrec!U:U,MATCH(CONST_CNTR_ElecEFMethod&D278,E_PurchPrec!R:R,0)),INDEX(D_Processes!T:T,MATCH(CONST_CNTR_ElecEFMethod&D278,D_Processes!R:R,0)))","v":""},{"$f":"IF(OR($D278=\"\",$AG278),\"\",SUM($G278)*SUM(INDEX(InputOutput!$AN$71:$AN$100,MATCH($D278,InputOutput!$D$71:$D$100,0))))","v":""},{"$f":"IF(D278=\"\",\"\",IF(AG278,INDEX(A_InstData!$F$101:$F$120,MATCH(D278,CNTR_List_ExistPurchPrecNames,0)),\"\"))","v":""},{"$f":"IF($D278=\"\",\"\",IFERROR(SUM($G278)*SUM(INDEX(F_Tools!$T$100:$T$129,MATCH($D278,F_Tools!$E$100:$E$129,0)))/K269,\"\"))","v":""},{"$f":"IF($D278=\"\",\"\",IFERROR(SUM($G278)*SUM(INDEX(F_Tools!$U$100:$U$129,MATCH($D278,F_Tools!$E$100:$E$129,0)))/K269,\"\"))","v":""},{"$nulls":8},{"$f":"CONST_PrecursorToGoodInput&D278&\"_\"&D267","v":"PrecToGood__"},null,{"$f":"SUMIF(D_Processes!R:R,AB278,D_Processes!K:K)","v":0},{"$f":"SUMIF(D_Processes!R:R,CONST_CNTR_TotProd&D278,D_Processes!L:L)","v":0},null,false]
[null,null,9,{"$f":"IF(D267=\"\",\"\",IF(COUNTIF(INDEX(CNTR_IOSupplyChain,MATCH(D267,CNTR_IOProcAndPrec,0),),C279)=0,\"\",INDEX(CNTR_IOProcAndPrec,MATCH(C279,INDEX(CNTR_IOSupplyChain,MATCH(D267,CNTR_IOProcAndPrec,0),),0))))","v":""},null,"",{"$f":"IF(D279=\"\",\"\",INDEX(CNTR_Matrix_Inv,MATCH(D267,CNTR_IOProcAndPrec,0),MATCH(D279,CNTR_IOProcAndPrec,0)))","v":""},{"$f":"IF(D279=\"\",\"\",IF(AG279,INDEX(E_PurchPrec!U:U,MATCH(CONST_PurchPrecDefaultUsed&D279,E_PurchPrec!R:R,0)),CONST_NA))","v":""},{"$f":"IF($D279=\"\",\"\",SUM($G279)*SUM(INDEX(InputOutput!$AJ$71:$AJ$100,MATCH($D279,InputOutput!$D$71:$D$100,0))))","v":""},{"$f":"IF($D279=\"\",\"\",SUM($G279)*SUM(INDEX(InputOutput!$AL$71:$AL$100,MATCH($D279,InputOutput!$D$71:$D$100,0))))","v":""},"",{"$f":"IF(D279=\"\",\"\",SUM(I279)*SUM(AD270))","v":""},{"$f":"IF(D279=\"\",\"\",SUM(J279)*SUM(AD270))","v":""},"",{"$f":"IF(AG279,INDEX(E_PurchPrec!U:U,MATCH(CONST_CNTR_ElecEFMethod&D279,E_PurchPrec!R:R,0)),INDEX(D_Processes!T:T,MATCH(CONST_CNTR_ElecEFMethod&D279,D_Processes!R:R,0)))","v":""},{"$f":"IF(OR($D279=\"\",$AG279),\"\",SUM($G279)*SUM(INDEX(InputOutput!$AN$71:$AN$100,MATCH($D279,InputOutput!$D$71:$D$100,0))))","v":""},{"$f":"IF(D279=\"\",\"\",IF(AG279,INDEX(A_InstData!$F$101:$F$120,MATCH(D279,CNTR_List_ExistPurchPrecNames,0)),\"\"))","v":""},{"$f":"IF($D279=\"\",\"\",IFERROR(SUM($G279)*SUM(INDEX(F_Tools!$T$100:$T$129,MATCH($D279,F_Tools!$E$100:$E$129,0)))/K269,\"\"))","v":""},{"$f":"IF($D279=\"\",\"\",IFERROR(SUM($G279)*SUM(INDEX(F_Tools!$U$100:$U$129,MATCH($D279,F_Tools!$E$100:$E$129,0)))/K269,\"\"))","v":""},{"$nulls":8},{"$f":"CONST_PrecursorToGoodInput&D279&\"_\"&D267","v":"PrecToGood__"},null,{"$f":"SUMIF(D_Processes!R:R,AB279,D_Processes!K:K)","v":0},{"$f":"SUMIF(D_Processes!R:R,CONST_CNTR_TotProd&D279,D_Processes!L:L)","v":0},null,false]
[null,null,10,{"$f":"IF(D267=\"\",\"\",IF(COUNTIF(INDEX(CNTR_IOSupplyChain,MATCH(D267,CNTR_IOProcAndPrec,0),),C280)=0,\"\",INDEX(CNTR_IOProcAndPrec,MATCH(C280,INDEX(CNTR_IOSupplyChain,MATCH(D267,CNTR_IOProcAndPrec,0),),0))))","v":""},null,"",{"$f":"IF(D280=\"\",\"\",INDEX(CNTR_Matrix_Inv,MATCH(D267,CNTR_IOProcAndPrec,0),MATCH(D280,CNTR_IOProcAndPrec,0)))","v":""},{"$f":"IF(D280=\"\",\"\",IF(AG280,INDEX(E_PurchPrec!U:U,MATCH(CONST_PurchPrecDefaultUsed&D280,E_PurchPrec!R:R,0)),CONST_NA))","v":""},{"$f":"IF($D280=\"\",\"\",SUM($G280)*SUM(INDEX(InputOutput!$AJ$71:$AJ$100,MATCH($D280,InputOutput!$D$71:$D$100,0))))","v":""},{"$f":"IF($D280=\"\",\"\",SUM($G280)*SUM(INDEX(InputOutput!$AL$71:$AL$100,MATCH($D280,InputOutput!$D$71:$D$100,0))))","v":""},"",{"$f":"IF(D280=\"\",\"\",SUM(I280)*SUM(AD270))","v":""},{"$f":"IF(D280=\"\",\"\",SUM(J280)*SUM(AD270))","v":""},"",{"$f":"IF(AG280,INDEX(E_PurchPrec!U:U,MATCH(CONST_CNTR_ElecEFMethod&D280,E_PurchPrec!R:R,0)),INDEX(D_Processes!T:T,MATCH(CONST_CNTR_ElecEFMethod&D280,D_Processes!R:R,0)))","v":""},{"$f":"IF(OR($D280=\"\",$AG280),\"\",SUM($G280)*SUM(INDEX(InputOutput!$AN$71:$AN$100,MATCH($D280,InputOutput!$D$71:$D$100,0))))","v":""},{"$f":"IF(D280=\"\",\"\",IF(AG280,INDEX(A_InstData!$F$101:$F$120,MATCH(D280,CNTR_List_ExistPurchPrecNames,0)),\"\"))","v":""},{"$f":"IF($D280=\"\",\"\",IFERROR(SUM($G280)*SUM(INDEX(F_Tools!$T$100:$T$129,MATCH($D280,F_Tools!$E$100:$E$129,0)))/K269,\"\"))","v":""},{"$f":"IF($D280=\"\",\"\",IFERROR(SUM($G280)*SUM(INDEX(F_Tools!$U$100:$U$129,MATCH($D280,F_Tools!$E$100:$E$129,0)))/K269,\"\"))","v":""},{"$nulls":8},{"$f":"CONST_PrecursorToGoodInput&D280&\"_\"&D267","v":"PrecToGood__"},null,{"$f":"SUMIF(D_Processes!R:R,AB280,D_Processes!K:K)","v":0},{"$f":"SUMIF(D_Processes!R:R,CONST_CNTR_TotProd&D280,D_Processes!L:L)","v":0},null,false]
[null,null,11,{"$f":"IF(D267=\"\",\"\",IF(COUNTIF(INDEX(CNTR_IOSupplyChain,MATCH(D267,CNTR_IOProcAndPrec,0),),C281)=0,\"\",INDEX(CNTR_IOProcAndPrec,MATCH(C281,INDEX(CNTR_IOSupplyChain,MATCH(D267,CNTR_IOProcAndPrec,0),),0))))","v":""},null,"",{"$f":"IF(D281=\"\",\"\",INDEX(CNTR_Matrix_Inv,MATCH(D267,CNTR_IOProcAndPrec,0),MATCH(D281,CNTR_IOProcAndPrec,0)))","v":""},{"$f":"IF(D281=\"\",\"\",IF(AG281,INDEX(E_PurchPrec!U:U,MATCH(CONST_PurchPrecDefaultUsed&D281,E_PurchPrec!R:R,0)),CONST_NA))","v":""},{"$f":"IF($D281=\"\",\"\",SUM($G281)*SUM(INDEX(InputOutput!$AJ$71:$AJ$100,MATCH($D281,InputOutput!$D$71:$D$100,0))))","v":""},{"$f":"IF($D281=\"\",\"\",SUM($G281)*SUM(INDEX(InputOutput!$AL$71:$AL$100,MATCH($D281,InputOutput!$D$71:$D$100,0))))","v":""},"",{"$f":"IF(D281=\"\",\"\",SUM(I281)*SUM(AD270))","v":""},{"$f":"IF(D281=\"\",\"\",SUM(J281)*SUM(AD270))","v":""},"",{"$f":"IF(AG281,INDEX(E_PurchPrec!U:U,MATCH(CONST_CNTR_ElecEFMethod&D281,E_PurchPrec!R:R,0)),INDEX(D_Processes!T:T,MATCH(CONST_CNTR_ElecEFMethod&D281,D_Processes!R:R,0)))","v":""},{"$f":"IF(OR($D281=\"\",$AG281),\"\",SUM($G281)*SUM(INDEX(InputOutput!$AN$71:$AN$100,MATCH($D281,InputOutput!$D$71:$D$100,0))))","v":""},{"$f":"IF(D281=\"\",\"\",IF(AG281,INDEX(A_InstData!$F$101:$F$120,MATCH(D281,CNTR_List_ExistPurchPrecNames,0)),\"\"))","v":""},{"$f":"IF($D281=\"\",\"\",IFERROR(SUM($G281)*SUM(INDEX(F_Tools!$T$100:$T$129,MATCH($D281,F_Tools!$E$100:$E$129,0)))/K269,\"\"))","v":""},{"$f":"IF($D281=\"\",\"\",IFERROR(SUM($G281)*SUM(INDEX(F_Tools!$U$100:$U$129,MATCH($D281,F_Tools!$E$100:$E$129,0)))/K269,\"\"))","v":""},{"$nulls":8},{"$f":"CONST_PrecursorToGoodInput&D281&\"_\"&D267","v":"PrecToGood__"},null,{"$f":"SUMIF(D_Processes!R:R,AB281,D_Processes!K:K)","v":0},{"$f":"SUMIF(D_Processes!R:R,CONST_CNTR_TotProd&D281,D_Processes!L:L)","v":0},null,false]
[null,null,12,{"$f":"IF(D267=\"\",\"\",IF(COUNTIF(INDEX(CNTR_IOSupplyChain,MATCH(D267,CNTR_IOProcAndPrec,0),),C282)=0,\"\",INDEX(CNTR_IOProcAndPrec,MATCH(C282,INDEX(CNTR_IOSupplyChain,MATCH(D267,CNTR_IOProcAndPrec,0),),0))))","v":""},null,"",{"$f":"IF(D282=\"\",\"\",INDEX(CNTR_Matrix_Inv,MATCH(D267,CNTR_IOProcAndPrec,0),MATCH(D282,CNTR_IOProcAndPrec,0)))","v":""},{"$f":"IF(D282=\"\",\"\",IF(AG282,INDEX(E_PurchPrec!U:U,MATCH(CONST_PurchPrecDefaultUsed&D282,E_PurchPrec!R:R,0)),CONST_NA))","v":""},{"$f":"IF($D282=\"\",\"\",SUM($G282)*SUM(INDEX(InputOutput!$AJ$71:$AJ$100,MATCH($D282,InputOutput!$D$71:$D$100,0))))","v":""},{"$f":"IF($D282=\"\",\"\",SUM($G282)*SUM(INDEX(InputOutput!$AL$71:$AL$100,MATCH($D282,InputOutput!$D$71:$D$100,0))))","v":""},"",{"$f":"IF(D282=\"\",\"\",SUM(I282)*SUM(AD270))","v":""},{"$f":"IF(D282=\"\",\"\",SUM(J282)*SUM(AD270))","v":""},"",{"$f":"IF(AG282,INDEX(E_PurchPrec!U:U,MATCH(CONST_CNTR_ElecEFMethod&D282,E_PurchPrec!R:R,0)),INDEX(D_Processes!T:T,MATCH(CONST_CNTR_ElecEFMethod&D282,D_Processes!R:R,0)))","v":""},{"$f":"IF(OR($D282=\"\",$AG282),\"\",SUM($G282)*SUM(INDEX(InputOutput!$AN$71:$AN$100,MATCH($D282,InputOutput!$D$71:$D$100,0))))","v":""},{"$f":"IF(D282=\"\",\"\",IF(AG282,INDEX(A_InstData!$F$101:$F$120,MATCH(D282,CNTR_List_ExistPurchPrecNames,0)),\"\"))","v":""},{"$f":"IF($D282=\"\",\"\",IFERROR(SUM($G282)*SUM(INDEX(F_Tools!$T$100:$T$129,MATCH($D282,F_Tools!$E$100:$E$129,0)))/K269,\"\"))","v":""},{"$f":"IF($D282=\"\",\"\",IFERROR(SUM($G282)*SUM(INDEX(F_Tools!$U$100:$U$129,MATCH($D282,F_Tools!$E$100:$E$129,0)))/K269,\"\"))","v":""},{"$nulls":8},{"$f":"CONST_PrecursorToGoodInput&D282&\"_\"&D267","v":"PrecToGood__"},null,{"$f":"SUMIF(D_Processes!R:R,AB282,D_Processes!K:K)","v":0},{"$f":"SUMIF(D_Processes!R:R,CONST_CNTR_TotProd&D282,D_Processes!L:L)","v":0},null,false]
[null,null,13,{"$f":"IF(D267=\"\",\"\",IF(COUNTIF(INDEX(CNTR_IOSupplyChain,MATCH(D267,CNTR_IOProcAndPrec,0),),C283)=0,\"\",INDEX(CNTR_IOProcAndPrec,MATCH(C283,INDEX(CNTR_IOSupplyChain,MATCH(D267,CNTR_IOProcAndPrec,0),),0))))","v":""},null,"",{"$f":"IF(D283=\"\",\"\",INDEX(CNTR_Matrix_Inv,MATCH(D267,CNTR_IOProcAndPrec,0),MATCH(D283,CNTR_IOProcAndPrec,0)))","v":""},{"$f":"IF(D283=\"\",\"\",IF(AG283,INDEX(E_PurchPrec!U:U,MATCH(CONST_PurchPrecDefaultUsed&D283,E_PurchPrec!R:R,0)),CONST_NA))","v":""},{"$f":"IF($D283=\"\",\"\",SUM($G283)*SUM(INDEX(InputOutput!$AJ$71:$AJ$100,MATCH($D283,InputOutput!$D$71:$D$100,0))))","v":""},{"$f":"IF($D283=\"\",\"\",SUM($G283)*SUM(INDEX(InputOutput!$AL$71:$AL$100,MATCH($D283,InputOutput!$D$71:$D$100,0))))","v":""},"",{"$f":"IF(D283=\"\",\"\",SUM(I283)*SUM(AD270))","v":""},{"$f":"IF(D283=\"\",\"\",SUM(J283)*SUM(AD270))","v":""},"",{"$f":"IF(AG283,INDEX(E_PurchPrec!U:U,MATCH(CONST_CNTR_ElecEFMethod&D283,E_PurchPrec!R:R,0)),INDEX(D_Processes!T:T,MATCH(CONST_CNTR_ElecEFMethod&D283,D_Processes!R:R,0)))","v":""},{"$f":"IF(OR($D283=\"\",$AG283),\"\",SUM($G283)*SUM(INDEX(InputOutput!$AN$71:$AN$100,MATCH($D283,InputOutput!$D$71:$D$100,0))))","v":""},{"$f":"IF(D283=\"\",\"\",IF(AG283,INDEX(A_InstData!$F$101:$F$120,MATCH(D283,CNTR_List_ExistPurchPrecNames,0)),\"\"))","v":""},{"$f":"IF($D283=\"\",\"\",IFERROR(SUM($G283)*SUM(INDEX(F_Tools!$T$100:$T$129,MATCH($D283,F_Tools!$E$100:$E$129,0)))/K269,\"\"))","v":""},{"$f":"IF($D283=\"\",\"\",IFERROR(SUM($G283)*SUM(INDEX(F_Tools!$U$100:$U$129,MATCH($D283,F_Tools!$E$100:$E$129,0)))/K269,\"\"))","v":""},{"$nulls":8},{"$f":"CONST_PrecursorToGoodInput&D283&\"_\"&D267","v":"PrecToGood__"},null,{"$f":"SUMIF(D_Processes!R:R,AB283,D_Processes!K:K)","v":0},{"$f":"SUMIF(D_Processes!R:R,CONST_CNTR_TotProd&D283,D_Processes!L:L)","v":0},null,false]
[null,null,14,{"$f":"IF(D267=\"\",\"\",IF(COUNTIF(INDEX(CNTR_IOSupplyChain,MATCH(D267,CNTR_IOProcAndPrec,0),),C284)=0,\"\",INDEX(CNTR_IOProcAndPrec,MATCH(C284,INDEX(CNTR_IOSupplyChain,MATCH(D267,CNTR_IOProcAndPrec,0),),0))))","v":""},null,"",{"$f":"IF(D284=\"\",\"\",INDEX(CNTR_Matrix_Inv,MATCH(D267,CNTR_IOProcAndPrec,0),MATCH(D284,CNTR_IOProcAndPrec,0)))","v":""},{"$f":"IF(D284=\"\",\"\",IF(AG284,INDEX(E_PurchPrec!U:U,MATCH(CONST_PurchPrecDefaultUsed&D284,E_PurchPrec!R:R,0)),CONST_NA))","v":""},{"$f":"IF($D284=\"\",\"\",SUM($G284)*SUM(INDEX(InputOutput!$AJ$71:$AJ$100,MATCH($D284,InputOutput!$D$71:$D$100,0))))","v":""},{"$f":"IF($D284=\"\",\"\",SUM($G284)*SUM(INDEX(InputOutput!$AL$71:$AL$100,MATCH($D284,InputOutput!$D$71:$D$100,0))))","v":""},"",{"$f":"IF(D284=\"\",\"\",SUM(I284)*SUM(AD270))","v":""},{"$f":"IF(D284=\"\",\"\",SUM(J284)*SUM(AD270))","v":""},"",{"$f":"IF(AG284,INDEX(E_PurchPrec!U:U,MATCH(CONST_CNTR_ElecEFMethod&D284,E_PurchPrec!R:R,0)),INDEX(D_Processes!T:T,MATCH(CONST_CNTR_ElecEFMethod&D284,D_Processes!R:R,0)))","v":""},{"$f":"IF(OR($D284=\"\",$AG284),\"\",SUM($G284)*SUM(INDEX(InputOutput!$AN$71:$AN$100,MATCH($D284,InputOutput!$D$71:$D$100,0))))","v":""},{"$f":"IF(D284=\"\",\"\",IF(AG284,INDEX(A_InstData!$F$101:$F$120,MATCH(D284,CNTR_List_ExistPurchPrecNames,0)),\"\"))","v":""},{"$f":"IF($D284=\"\",\"\",IFERROR(SUM($G284)*SUM(INDEX(F_Tools!$T$100:$T$129,MATCH($D284,F_Tools!$E$100:$E$129,0)))/K269,\"\"))","v":""},{"$f":"IF($D284=\"\",\"\",IFERROR(SUM($G284)*SUM(INDEX(F_Tools!$U$100:$U$129,MATCH($D284,F_Tools!$E$100:$E$129,0)))/K269,\"\"))","v":""},{"$nulls":8},{"$f":"CONST_PrecursorToGoodInput&D284&\"_\"&D267","v":"PrecToGood__"},null,{"$f":"SUMIF(D_Processes!R:R,AB284,D_Processes!K:K)","v":0},{"$f":"SUMIF(D_Processes!R:R,CONST_CNTR_TotProd&D284,D_Processes!L:L)","v":0},null,false]
[null,null,15,{"$f":"IF(D267=\"\",\"\",IF(COUNTIF(INDEX(CNTR_IOSupplyChain,MATCH(D267,CNTR_IOProcAndPrec,0),),C285)=0,\"\",INDEX(CNTR_IOProcAndPrec,MATCH(C285,INDEX(CNTR_IOSupplyChain,MATCH(D267,CNTR_IOProcAndPrec,0),),0))))","v":""},null,"",{"$f":"IF(D285=\"\",\"\",INDEX(CNTR_Matrix_Inv,MATCH(D267,CNTR_IOProcAndPrec,0),MATCH(D285,CNTR_IOProcAndPrec,0)))","v":""},{"$f":"IF(D285=\"\",\"\",IF(AG285,INDEX(E_PurchPrec!U:U,MATCH(CONST_PurchPrecDefaultUsed&D285,E_PurchPrec!R:R,0)),CONST_NA))","v":""},{"$f":"IF($D285=\"\",\"\",SUM($G285)*SUM(INDEX(InputOutput!$AJ$71:$AJ$100,MATCH($D285,InputOutput!$D$71:$D$100,0))))","v":""},{"$f":"IF($D285=\"\",\"\",SUM($G285)*SUM(INDEX(InputOutput!$AL$71:$AL$100,MATCH($D285,InputOutput!$D$71:$D$100,0))))","v":""},"",{"$f":"IF(D285=\"\",\"\",SUM(I285)*SUM(AD270))","v":""},{"$f":"IF(D285=\"\",\"\",SUM(J285)*SUM(AD270))","v":""},"",{"$f":"IF(AG285,INDEX(E_PurchPrec!U:U,MATCH(CONST_CNTR_ElecEFMethod&D285,E_PurchPrec!R:R,0)),INDEX(D_Processes!T:T,MATCH(CONST_CNTR_ElecEFMethod&D285,D_Processes!R:R,0)))","v":""},{"$f":"IF(OR($D285=\"\",$AG285),\"\",SUM($G285)*SUM(INDEX(InputOutput!$AN$71:$AN$100,MATCH($D285,InputOutput!$D$71:$D$100,0))))","v":""},{"$f":"IF(D285=\"\",\"\",IF(AG285,INDEX(A_InstData!$F$101:$F$120,MATCH(D285,CNTR_List_ExistPurchPrecNames,0)),\"\"))","v":""},{"$f":"IF($D285=\"\",\"\",IFERROR(SUM($G285)*SUM(INDEX(F_Tools!$T$100:$T$129,MATCH($D285,F_Tools!$E$100:$E$129,0)))/K269,\"\"))","v":""},{"$f":"IF($D285=\"\",\"\",IFERROR(SUM($G285)*SUM(INDEX(F_Tools!$U$100:$U$129,MATCH($D285,F_Tools!$E$100:$E$129,0)))/K269,\"\"))","v":""},{"$nulls":8},{"$f":"CONST_PrecursorToGoodInput&D285&\"_\"&D267","v":"PrecToGood__"},null,{"$f":"SUMIF(D_Processes!R:R,AB285,D_Processes!K:K)","v":0},{"$f":"SUMIF(D_Processes!R:R,CONST_CNTR_TotProd&D285,D_Processes!L:L)","v":0},null,false]
[null,null,16,{"$f":"IF(D267=\"\",\"\",IF(COUNTIF(INDEX(CNTR_IOSupplyChain,MATCH(D267,CNTR_IOProcAndPrec,0),),C286)=0,\"\",INDEX(CNTR_IOProcAndPrec,MATCH(C286,INDEX(CNTR_IOSupplyChain,MATCH(D267,CNTR_IOProcAndPrec,0),),0))))","v":""},null,"",{"$f":"IF(D286=\"\",\"\",INDEX(CNTR_Matrix_Inv,MATCH(D267,CNTR_IOProcAndPrec,0),MATCH(D286,CNTR_IOProcAndPrec,0)))","v":""},{"$f":"IF(D286=\"\",\"\",IF(AG286,INDEX(E_PurchPrec!U:U,MATCH(CONST_PurchPrecDefaultUsed&D286,E_PurchPrec!R:R,0)),CONST_NA))","v":""},{"$f":"IF($D286=\"\",\"\",SUM($G286)*SUM(INDEX(InputOutput!$AJ$71:$AJ$100,MATCH($D286,InputOutput!$D$71:$D$100,0))))","v":""},{"$f":"IF($D286=\"\",\"\",SUM($G286)*SUM(INDEX(InputOutput!$AL$71:$AL$100,MATCH($D286,InputOutput!$D$71:$D$100,0))))","v":""},"",{"$f":"IF(D286=\"\",\"\",SUM(I286)*SUM(AD270))","v":""},{"$f":"IF(D286=\"\",\"\",SUM(J286)*SUM(AD270))","v":""},"",{"$f":"IF(AG286,INDEX(E_PurchPrec!U:U,MATCH(CONST_CNTR_ElecEFMethod&D286,E_PurchPrec!R:R,0)),INDEX(D_Processes!T:T,MATCH(CONST_CNTR_ElecEFMethod&D286,D_Processes!R:R,0)))","v":""},{"$f":"IF(OR($D286=\"\",$AG286),\"\",SUM($G286)*SUM(INDEX(InputOutput!$AN$71:$AN$100,MATCH($D286,InputOutput!$D$71:$D$100,0))))","v":""},{"$f":"IF(D286=\"\",\"\",IF(AG286,INDEX(A_InstData!$F$101:$F$120,MATCH(D286,CNTR_List_ExistPurchPrecNames,0)),\"\"))","v":""},{"$f":"IF($D286=\"\",\"\",IFERROR(SUM($G286)*SUM(INDEX(F_Tools!$T$100:$T$129,MATCH($D286,F_Tools!$E$100:$E$129,0)))/K269,\"\"))","v":""},{"$f":"IF($D286=\"\",\"\",IFERROR(SUM($G286)*SUM(INDEX(F_Tools!$U$100:$U$129,MATCH($D286,F_Tools!$E$100:$E$129,0)))/K269,\"\"))","v":""},{"$nulls":8},{"$f":"CONST_PrecursorToGoodInput&D286&\"_\"&D267","v":"PrecToGood__"},null,{"$f":"SUMIF(D_Processes!R:R,AB286,D_Processes!K:K)","v":0},{"$f":"SUMIF(D_Processes!R:R,CONST_CNTR_TotProd&D286,D_Processes!L:L)","v":0},null,false]
[null,null,17,{"$f":"IF(D267=\"\",\"\",IF(COUNTIF(INDEX(CNTR_IOSupplyChain,MATCH(D267,CNTR_IOProcAndPrec,0),),C287)=0,\"\",INDEX(CNTR_IOProcAndPrec,MATCH(C287,INDEX(CNTR_IOSupplyChain,MATCH(D267,CNTR_IOProcAndPrec,0),),0))))","v":""},null,"",{"$f":"IF(D287=\"\",\"\",INDEX(CNTR_Matrix_Inv,MATCH(D267,CNTR_IOProcAndPrec,0),MATCH(D287,CNTR_IOProcAndPrec,0)))","v":""},{"$f":"IF(D287=\"\",\"\",IF(AG287,INDEX(E_PurchPrec!U:U,MATCH(CONST_PurchPrecDefaultUsed&D287,E_PurchPrec!R:R,0)),CONST_NA))","v":""},{"$f":"IF($D287=\"\",\"\",SUM($G287)*SUM(INDEX(InputOutput!$AJ$71:$AJ$100,MATCH($D287,InputOutput!$D$71:$D$100,0))))","v":""},{"$f":"IF($D287=\"\",\"\",SUM($G287)*SUM(INDEX(InputOutput!$AL$71:$AL$100,MATCH($D287,InputOutput!$D$71:$D$100,0))))","v":""},"",{"$f":"IF(D287=\"\",\"\",SUM(I287)*SUM(AD270))","v":""},{"$f":"IF(D287=\"\",\"\",SUM(J287)*SUM(AD270))","v":""},"",{"$f":"IF(AG287,INDEX(E_PurchPrec!U:U,MATCH(CONST_CNTR_ElecEFMethod&D287,E_PurchPrec!R:R,0)),INDEX(D_Processes!T:T,MATCH(CONST_CNTR_ElecEFMethod&D287,D_Processes!R:R,0)))","v":""},{"$f":"IF(OR($D287=\"\",$AG287),\"\",SUM($G287)*SUM(INDEX(InputOutput!$AN$71:$AN$100,MATCH($D287,InputOutput!$D$71:$D$100,0))))","v":""},{"$f":"IF(D287=\"\",\"\",IF(AG287,INDEX(A_InstData!$F$101:$F$120,MATCH(D287,CNTR_List_ExistPurchPrecNames,0)),\"\"))","v":""},{"$f":"IF($D287=\"\",\"\",IFERROR(SUM($G287)*SUM(INDEX(F_Tools!$T$100:$T$129,MATCH($D287,F_Tools!$E$100:$E$129,0)))/K269,\"\"))","v":""},{"$f":"IF($D287=\"\",\"\",IFERROR(SUM($G287)*SUM(INDEX(F_Tools!$U$100:$U$129,MATCH($D287,F_Tools!$E$100:$E$129,0)))/K269,\"\"))","v":""},{"$nulls":8},{"$f":"CONST_PrecursorToGoodInput&D287&\"_\"&D267","v":"PrecToGood__"},null,{"$f":"SUMIF(D_Processes!R:R,AB287,D_Processes!K:K)","v":0},{"$f":"SUMIF(D_Processes!R:R,CONST_CNTR_TotProd&D287,D_Processes!L:L)","v":0},null,false]
[null,null,18,{"$f":"IF(D267=\"\",\"\",IF(COUNTIF(INDEX(CNTR_IOSupplyChain,MATCH(D267,CNTR_IOProcAndPrec,0),),C288)=0,\"\",INDEX(CNTR_IOProcAndPrec,MATCH(C288,INDEX(CNTR_IOSupplyChain,MATCH(D267,CNTR_IOProcAndPrec,0),),0))))","v":""},null,"",{"$f":"IF(D288=\"\",\"\",INDEX(CNTR_Matrix_Inv,MATCH(D267,CNTR_IOProcAndPrec,0),MATCH(D288,CNTR_IOProcAndPrec,0)))","v":""},{"$f":"IF(D288=\"\",\"\",IF(AG288,INDEX(E_PurchPrec!U:U,MATCH(CONST_PurchPrecDefaultUsed&D288,E_PurchPrec!R:R,0)),CONST_NA))","v":""},{"$f":"IF($D288=\"\",\"\",SUM($G288)*SUM(INDEX(InputOutput!$AJ$71:$AJ$100,MATCH($D288,InputOutput!$D$71:$D$100,0))))","v":""},{"$f":"IF($D288=\"\",\"\",SUM($G288)*SUM(INDEX(InputOutput!$AL$71:$AL$100,MATCH($D288,InputOutput!$D$71:$D$100,0))))","v":""},"",{"$f":"IF(D288=\"\",\"\",SUM(I288)*SUM(AD270))","v":""},{"$f":"IF(D288=\"\",\"\",SUM(J288)*SUM(AD270))","v":""},"",{"$f":"IF(AG288,INDEX(E_PurchPrec!U:U,MATCH(CONST_CNTR_ElecEFMethod&D288,E_PurchPrec!R:R,0)),INDEX(D_Processes!T:T,MATCH(CONST_CNTR_ElecEFMethod&D288,D_Processes!R:R,0)))","v":""},{"$f":"IF(OR($D288=\"\",$AG288),\"\",SUM($G288)*SUM(INDEX(InputOutput!$AN$71:$AN$100,MATCH($D288,InputOutput!$D$71:$D$100,0))))","v":""},{"$f":"IF(D288=\"\",\"\",IF(AG288,INDEX(A_InstData!$F$101:$F$120,MATCH(D288,CNTR_List_ExistPurchPrecNames,0)),\"\"))","v":""},{"$f":"IF($D288=\"\",\"\",IFERROR(SUM($G288)*SUM(INDEX(F_Tools!$T$100:$T$129,MATCH($D288,F_Tools!$E$100:$E$129,0)))/K269,\"\"))","v":""},{"$f":"IF($D288=\"\",\"\",IFERROR(SUM($G288)*SUM(INDEX(F_Tools!$U$100:$U$129,MATCH($D288,F_Tools!$E$100:$E$129,0)))/K269,\"\"))","v":""},{"$nulls":8},{"$f":"CONST_PrecursorToGoodInput&D288&\"_\"&D267","v":"PrecToGood__"},null,{"$f":"SUMIF(D_Processes!R:R,AB288,D_Processes!K:K)","v":0},{"$f":"SUMIF(D_Processes!R:R,CONST_CNTR_TotProd&D288,D_Processes!L:L)","v":0},null,false]
[null,null,19,{"$f":"IF(D267=\"\",\"\",IF(COUNTIF(INDEX(CNTR_IOSupplyChain,MATCH(D267,CNTR_IOProcAndPrec,0),),C289)=0,\"\",INDEX(CNTR_IOProcAndPrec,MATCH(C289,INDEX(CNTR_IOSupplyChain,MATCH(D267,CNTR_IOProcAndPrec,0),),0))))","v":""},null,"",{"$f":"IF(D289=\"\",\"\",INDEX(CNTR_Matrix_Inv,MATCH(D267,CNTR_IOProcAndPrec,0),MATCH(D289,CNTR_IOProcAndPrec,0)))","v":""},{"$f":"IF(D289=\"\",\"\",IF(AG289,INDEX(E_PurchPrec!U:U,MATCH(CONST_PurchPrecDefaultUsed&D289,E_PurchPrec!R:R,0)),CONST_NA))","v":""},{"$f":"IF($D289=\"\",\"\",SUM($G289)*SUM(INDEX(InputOutput!$AJ$71:$AJ$100,MATCH($D289,InputOutput!$D$71:$D$100,0))))","v":""},{"$f":"IF($D289=\"\",\"\",SUM($G289)*SUM(INDEX(InputOutput!$AL$71:$AL$100,MATCH($D289,InputOutput!$D$71:$D$100,0))))","v":""},"",{"$f":"IF(D289=\"\",\"\",SUM(I289)*SUM(AD270))","v":""},{"$f":"IF(D289=\"\",\"\",SUM(J289)*SUM(AD270))","v":""},"",{"$f":"IF(AG289,INDEX(E_PurchPrec!U:U,MATCH(CONST_CNTR_ElecEFMethod&D289,E_PurchPrec!R:R,0)),INDEX(D_Processes!T:T,MATCH(CONST_CNTR_ElecEFMethod&D289,D_Processes!R:R,0)))","v":""},{"$f":"IF(OR($D289=\"\",$AG289),\"\",SUM($G289)*SUM(INDEX(InputOutput!$AN$71:$AN$100,MATCH($D289,InputOutput!$D$71:$D$100,0))))","v":""},{"$f":"IF(D289=\"\",\"\",IF(AG289,INDEX(A_InstData!$F$101:$F$120,MATCH(D289,CNTR_List_ExistPurchPrecNames,0)),\"\"))","v":""},{"$f":"IF($D289=\"\",\"\",IFERROR(SUM($G289)*SUM(INDEX(F_Tools!$T$100:$T$129,MATCH($D289,F_Tools!$E$100:$E$129,0)))/K269,\"\"))","v":""},{"$f":"IF($D289=\"\",\"\",IFERROR(SUM($G289)*SUM(INDEX(F_Tools!$U$100:$U$129,MATCH($D289,F_Tools!$E$100:$E$129,0)))/K269,\"\"))","v":""},{"$nulls":8},{"$f":"CONST_PrecursorToGoodInput&D289&\"_\"&D267","v":"PrecToGood__"},null,{"$f":"SUMIF(D_Processes!R:R,AB289,D_Processes!K:K)","v":0},{"$f":"SUMIF(D_Processes!R:R,CONST_CNTR_TotProd&D289,D_Processes!L:L)","v":0},null,false]
[null,null,20,{"$f":"IF(D267=\"\",\"\",IF(COUNTIF(INDEX(CNTR_IOSupplyChain,MATCH(D267,CNTR_IOProcAndPrec,0),),C290)=0,\"\",INDEX(CNTR_IOProcAndPrec,MATCH(C290,INDEX(CNTR_IOSupplyChain,MATCH(D267,CNTR_IOProcAndPrec,0),),0))))","v":""},null,"",{"$f":"IF(D290=\"\",\"\",INDEX(CNTR_Matrix_Inv,MATCH(D267,CNTR_IOProcAndPrec,0),MATCH(D290,CNTR_IOProcAndPrec,0)))","v":""},{"$f":"IF(D290=\"\",\"\",IF(AG290,INDEX(E_PurchPrec!U:U,MATCH(CONST_PurchPrecDefaultUsed&D290,E_PurchPrec!R:R,0)),CONST_NA))","v":""},{"$f":"IF($D290=\"\",\"\",SUM($G290)*SUM(INDEX(InputOutput!$AJ$71:$AJ$100,MATCH($D290,InputOutput!$D$71:$D$100,0))))","v":""},{"$f":"IF($D290=\"\",\"\",SUM($G290)*SUM(INDEX(InputOutput!$AL$71:$AL$100,MATCH($D290,InputOutput!$D$71:$D$100,0))))","v":""},"",{"$f":"IF(D290=\"\",\"\",SUM(I290)*SUM(AD270))","v":""},{"$f":"IF(D290=\"\",\"\",SUM(J290)*SUM(AD270))","v":""},"",{"$f":"IF(AG290,INDEX(E_PurchPrec!U:U,MATCH(CONST_CNTR_ElecEFMethod&D290,E_PurchPrec!R:R,0)),INDEX(D_Processes!T:T,MATCH(CONST_CNTR_ElecEFMethod&D290,D_Processes!R:R,0)))","v":""},{"$f":"IF(OR($D290=\"\",$AG290),\"\",SUM($G290)*SUM(INDEX(InputOutput!$AN$71:$AN$100,MATCH($D290,InputOutput!$D$71:$D$100,0))))","v":""},{"$f":"IF(D290=\"\",\"\",IF(AG290,INDEX(A_InstData!$F$101:$F$120,MATCH(D290,CNTR_List_ExistPurchPrecNames,0)),\"\"))","v":""},{"$f":"IF($D290=\"\",\"\",IFERROR(SUM($G290)*SUM(INDEX(F_Tools!$T$100:$T$129,MATCH($D290,F_Tools!$E$100:$E$129,0)))/K269,\"\"))","v":""},{"$f":"IF($D290=\"\",\"\",IFERROR(SUM($G290)*SUM(INDEX(F_Tools!$U$100:$U$129,MATCH($D290,F_Tools!$E$100:$E$129,0)))/K269,\"\"))","v":""},{"$nulls":8},{"$f":"CONST_PrecursorToGoodInput&D290&\"_\"&D267","v":"PrecToGood__"},null,{"$f":"SUMIF(D_Processes!R:R,AB290,D_Processes!K:K)","v":0},{"$f":"SUMIF(D_Processes!R:R,CONST_CNTR_TotProd&D290,D_Processes!L:L)","v":0},null,false]
[null,null,21,{"$f":"IF(D267=\"\",\"\",IF(COUNTIF(INDEX(CNTR_IOSupplyChain,MATCH(D267,CNTR_IOProcAndPrec,0),),C291)=0,\"\",INDEX(CNTR_IOProcAndPrec,MATCH(C291,INDEX(CNTR_IOSupplyChain,MATCH(D267,CNTR_IOProcAndPrec,0),),0))))","v":""},null,"",{"$f":"IF(D291=\"\",\"\",INDEX(CNTR_Matrix_Inv,MATCH(D267,CNTR_IOProcAndPrec,0),MATCH(D291,CNTR_IOProcAndPrec,0)))","v":""},{"$f":"IF(D291=\"\",\"\",IF(AG291,INDEX(E_PurchPrec!U:U,MATCH(CONST_PurchPrecDefaultUsed&D291,E_PurchPrec!R:R,0)),CONST_NA))","v":""},{"$f":"IF($D291=\"\",\"\",SUM($G291)*SUM(INDEX(InputOutput!$AJ$71:$AJ$100,MATCH($D291,InputOutput!$D$71:$D$100,0))))","v":""},{"$f":"IF($D291=\"\",\"\",SUM($G291)*SUM(INDEX(InputOutput!$AL$71:$AL$100,MATCH($D291,InputOutput!$D$71:$D$100,0))))","v":""},"",{"$f":"IF(D291=\"\",\"\",SUM(I291)*SUM(AD270))","v":""},{"$f":"IF(D291=\"\",\"\",SUM(J291)*SUM(AD270))","v":""},"",{"$f":"IF(AG291,INDEX(E_PurchPrec!U:U,MATCH(CONST_CNTR_ElecEFMethod&D291,E_PurchPrec!R:R,0)),INDEX(D_Processes!T:T,MATCH(CONST_CNTR_ElecEFMethod&D291,D_Processes!R:R,0)))","v":""},{"$f":"IF(OR($D291=\"\",$AG291),\"\",SUM($G291)*SUM(INDEX(InputOutput!$AN$71:$AN$100,MATCH($D291,InputOutput!$D$71:$D$100,0))))","v":""},{"$f":"IF(D291=\"\",\"\",IF(AG291,INDEX(A_InstData!$F$101:$F$120,MATCH(D291,CNTR_List_ExistPurchPrecNames,0)),\"\"))","v":""},{"$f":"IF($D291=\"\",\"\",IFERROR(SUM($G291)*SUM(INDEX(F_Tools!$T$100:$T$129,MATCH($D291,F_Tools!$E$100:$E$129,0)))/K269,\"\"))","v":""},{"$f":"IF($D291=\"\",\"\",IFERROR(SUM($G291)*SUM(INDEX(F_Tools!$U$100:$U$129,MATCH($D291,F_Tools!$E$100:$E$129,0)))/K269,\"\"))","v":""},{"$nulls":8},{"$f":"CONST_PrecursorToGoodInput&D291&\"_\"&D267","v":"PrecToGood__"},null,{"$f":"SUMIF(D_Processes!R:R,AB291,D_Processes!K:K)","v":0},{"$f":"SUMIF(D_Processes!R:R,CONST_CNTR_TotProd&D291,D_Processes!L:L)","v":0},null,false]
[null,null,22,{"$f":"IF(D267=\"\",\"\",IF(COUNTIF(INDEX(CNTR_IOSupplyChain,MATCH(D267,CNTR_IOProcAndPrec,0),),C292)=0,\"\",INDEX(CNTR_IOProcAndPrec,MATCH(C292,INDEX(CNTR_IOSupplyChain,MATCH(D267,CNTR_IOProcAndPrec,0),),0))))","v":""},null,"",{"$f":"IF(D292=\"\",\"\",INDEX(CNTR_Matrix_Inv,MATCH(D267,CNTR_IOProcAndPrec,0),MATCH(D292,CNTR_IOProcAndPrec,0)))","v":""},{"$f":"IF(D292=\"\",\"\",IF(AG292,INDEX(E_PurchPrec!U:U,MATCH(CONST_PurchPrecDefaultUsed&D292,E_PurchPrec!R:R,0)),CONST_NA))","v":""},{"$f":"IF($D292=\"\",\"\",SUM($G292)*SUM(INDEX(InputOutput!$AJ$71:$AJ$100,MATCH($D292,InputOutput!$D$71:$D$100,0))))","v":""},{"$f":"IF($D292=\"\",\"\",SUM($G292)*SUM(INDEX(InputOutput!$AL$71:$AL$100,MATCH($D292,InputOutput!$D$71:$D$100,0))))","v":""},"",{"$f":"IF(D292=\"\",\"\",SUM(I292)*SUM(AD270))","v":""},{"$f":"IF(D292=\"\",\"\",SUM(J292)*SUM(AD270))","v":""},"",{"$f":"IF(AG292,INDEX(E_PurchPrec!U:U,MATCH(CONST_CNTR_ElecEFMethod&D292,E_PurchPrec!R:R,0)),INDEX(D_Processes!T:T,MATCH(CONST_CNTR_ElecEFMethod&D292,D_Processes!R:R,0)))","v":""},{"$f":"IF(OR($D292=\"\",$AG292),\"\",SUM($G292)*SUM(INDEX(InputOutput!$AN$71:$AN$100,MATCH($D292,InputOutput!$D$71:$D$100,0))))","v":""},{"$f":"IF(D292=\"\",\"\",IF(AG292,INDEX(A_InstData!$F$101:$F$120,MATCH(D292,CNTR_List_ExistPurchPrecNames,0)),\"\"))","v":""},{"$f":"IF($D292=\"\",\"\",IFERROR(SUM($G292)*SUM(INDEX(F_Tools!$T$100:$T$129,MATCH($D292,F_Tools!$E$100:$E$129,0)))/K269,\"\"))","v":""},{"$f":"IF($D292=\"\",\"\",IFERROR(SUM($G292)*SUM(INDEX(F_Tools!$U$100:$U$129,MATCH($D292,F_Tools!$E$100:$E$129,0)))/K269,\"\"))","v":""},{"$nulls":8},{"$f":"CONST_PrecursorToGoodInput&D292&\"_\"&D267","v":"PrecToGood__"},null,{"$f":"SUMIF(D_Processes!R:R,AB292,D_Processes!K:K)","v":0},{"$f":"SUMIF(D_Processes!R:R,CONST_CNTR_TotProd&D292,D_Processes!L:L)","v":0},null,false]
[null,null,23,{"$f":"IF(D267=\"\",\"\",IF(COUNTIF(INDEX(CNTR_IOSupplyChain,MATCH(D267,CNTR_IOProcAndPrec,0),),C293)=0,\"\",INDEX(CNTR_IOProcAndPrec,MATCH(C293,INDEX(CNTR_IOSupplyChain,MATCH(D267,CNTR_IOProcAndPrec,0),),0))))","v":""},null,"",{"$f":"IF(D293=\"\",\"\",INDEX(CNTR_Matrix_Inv,MATCH(D267,CNTR_IOProcAndPrec,0),MATCH(D293,CNTR_IOProcAndPrec,0)))","v":""},{"$f":"IF(D293=\"\",\"\",IF(AG293,INDEX(E_PurchPrec!U:U,MATCH(CONST_PurchPrecDefaultUsed&D293,E_PurchPrec!R:R,0)),CONST_NA))","v":""},{"$f":"IF($D293=\"\",\"\",SUM($G293)*SUM(INDEX(InputOutput!$AJ$71:$AJ$100,MATCH($D293,InputOutput!$D$71:$D$100,0))))","v":""},{"$f":"IF($D293=\"\",\"\",SUM($G293)*SUM(INDEX(InputOutput!$AL$71:$AL$100,MATCH($D293,InputOutput!$D$71:$D$100,0))))","v":""},"",{"$f":"IF(D293=\"\",\"\",SUM(I293)*SUM(AD270))","v":""},{"$f":"IF(D293=\"\",\"\",SUM(J293)*SUM(AD270))","v":""},"",{"$f":"IF(AG293,INDEX(E_PurchPrec!U:U,MATCH(CONST_CNTR_ElecEFMethod&D293,E_PurchPrec!R:R,0)),INDEX(D_Processes!T:T,MATCH(CONST_CNTR_ElecEFMethod&D293,D_Processes!R:R,0)))","v":""},{"$f":"IF(OR($D293=\"\",$AG293),\"\",SUM($G293)*SUM(INDEX(InputOutput!$AN$71:$AN$100,MATCH($D293,InputOutput!$D$71:$D$100,0))))","v":""},{"$f":"IF(D293=\"\",\"\",IF(AG293,INDEX(A_InstData!$F$101:$F$120,MATCH(D293,CNTR_List_ExistPurchPrecNames,0)),\"\"))","v":""},{"$f":"IF($D293=\"\",\"\",IFERROR(SUM($G293)*SUM(INDEX(F_Tools!$T$100:$T$129,MATCH($D293,F_Tools!$E$100:$E$129,0)))/K269,\"\"))","v":""},{"$f":"IF($D293=\"\",\"\",IFERROR(SUM($G293)*SUM(INDEX(F_Tools!$U$100:$U$129,MATCH($D293,F_Tools!$E$100:$E$129,0)))/K269,\"\"))","v":""},{"$nulls":8},{"$f":"CONST_PrecursorToGoodInput&D293&\"_\"&D267","v":"PrecToGood__"},null,{"$f":"SUMIF(D_Processes!R:R,AB293,D_Processes!K:K)","v":0},{"$f":"SUMIF(D_Processes!R:R,CONST_CNTR_TotProd&D293,D_Processes!L:L)","v":0},null,false]
[null,null,24,{"$f":"IF(D267=\"\",\"\",IF(COUNTIF(INDEX(CNTR_IOSupplyChain,MATCH(D267,CNTR_IOProcAndPrec,0),),C294)=0,\"\",INDEX(CNTR_IOProcAndPrec,MATCH(C294,INDEX(CNTR_IOSupplyChain,MATCH(D267,CNTR_IOProcAndPrec,0),),0))))","v":""},null,"",{"$f":"IF(D294=\"\",\"\",INDEX(CNTR_Matrix_Inv,MATCH(D267,CNTR_IOProcAndPrec,0),MATCH(D294,CNTR_IOProcAndPrec,0)))","v":""},{"$f":"IF(D294=\"\",\"\",IF(AG294,INDEX(E_PurchPrec!U:U,MATCH(CONST_PurchPrecDefaultUsed&D294,E_PurchPrec!R:R,0)),CONST_NA))","v":""},{"$f":"IF($D294=\"\",\"\",SUM($G294)*SUM(INDEX(InputOutput!$AJ$71:$AJ$100,MATCH($D294,InputOutput!$D$71:$D$100,0))))","v":""},{"$f":"IF($D294=\"\",\"\",SUM($G294)*SUM(INDEX(InputOutput!$AL$71:$AL$100,MATCH($D294,InputOutput!$D$71:$D$100,0))))","v":""},"",{"$f":"IF(D294=\"\",\"\",SUM(I294)*SUM(AD270))","v":""},{"$f":"IF(D294=\"\",\"\",SUM(J294)*SUM(AD270))","v":""},"",{"$f":"IF(AG294,INDEX(E_PurchPrec!U:U,MATCH(CONST_CNTR_ElecEFMethod&D294,E_PurchPrec!R:R,0)),INDEX(D_Processes!T:T,MATCH(CONST_CNTR_ElecEFMethod&D294,D_Processes!R:R,0)))","v":""},{"$f":"IF(OR($D294=\"\",$AG294),\"\",SUM($G294)*SUM(INDEX(InputOutput!$AN$71:$AN$100,MATCH($D294,InputOutput!$D$71:$D$100,0))))","v":""},{"$f":"IF(D294=\"\",\"\",IF(AG294,INDEX(A_InstData!$F$101:$F$120,MATCH(D294,CNTR_List_ExistPurchPrecNames,0)),\"\"))","v":""},{"$f":"IF($D294=\"\",\"\",IFERROR(SUM($G294)*SUM(INDEX(F_Tools!$T$100:$T$129,MATCH($D294,F_Tools!$E$100:$E$129,0)))/K269,\"\"))","v":""},{"$f":"IF($D294=\"\",\"\",IFERROR(SUM($G294)*SUM(INDEX(F_Tools!$U$100:$U$129,MATCH($D294,F_Tools!$E$100:$E$129,0)))/K269,\"\"))","v":""},{"$nulls":8},{"$f":"CONST_PrecursorToGoodInput&D294&\"_\"&D267","v":"PrecToGood__"},null,{"$f":"SUMIF(D_Processes!R:R,AB294,D_Processes!K:K)","v":0},{"$f":"SUMIF(D_Processes!R:R,CONST_CNTR_TotProd&D294,D_Processes!L:L)","v":0},null,false]
[null,null,25,{"$f":"IF(D267=\"\",\"\",IF(COUNTIF(INDEX(CNTR_IOSupplyChain,MATCH(D267,CNTR_IOProcAndPrec,0),),C295)=0,\"\",INDEX(CNTR_IOProcAndPrec,MATCH(C295,INDEX(CNTR_IOSupplyChain,MATCH(D267,CNTR_IOProcAndPrec,0),),0))))","v":""},null,"",{"$f":"IF(D295=\"\",\"\",INDEX(CNTR_Matrix_Inv,MATCH(D267,CNTR_IOProcAndPrec,0),MATCH(D295,CNTR_IOProcAndPrec,0)))","v":""},{"$f":"IF(D295=\"\",\"\",IF(AG295,INDEX(E_PurchPrec!U:U,MATCH(CONST_PurchPrecDefaultUsed&D295,E_PurchPrec!R:R,0)),CONST_NA))","v":""},{"$f":"IF($D295=\"\",\"\",SUM($G295)*SUM(INDEX(InputOutput!$AJ$71:$AJ$100,MATCH($D295,InputOutput!$D$71:$D$100,0))))","v":""},{"$f":"IF($D295=\"\",\"\",SUM($G295)*SUM(INDEX(InputOutput!$AL$71:$AL$100,MATCH($D295,InputOutput!$D$71:$D$100,0))))","v":""},"",{"$f":"IF(D295=\"\",\"\",SUM(I295)*SUM(AD270))","v":""},{"$f":"IF(D295=\"\",\"\",SUM(J295)*SUM(AD270))","v":""},"",{"$f":"IF(AG295,INDEX(E_PurchPrec!U:U,MATCH(CONST_CNTR_ElecEFMethod&D295,E_PurchPrec!R:R,0)),INDEX(D_Processes!T:T,MATCH(CONST_CNTR_ElecEFMethod&D295,D_Processes!R:R,0)))","v":""},{"$f":"IF(OR($D295=\"\",$AG295),\"\",SUM($G295)*SUM(INDEX(InputOutput!$AN$71:$AN$100,MATCH($D295,InputOutput!$D$71:$D$100,0))))","v":""},{"$f":"IF(D295=\"\",\"\",IF(AG295,INDEX(A_InstData!$F$101:$F$120,MATCH(D295,CNTR_List_ExistPurchPrecNames,0)),\"\"))","v":""},{"$f":"IF($D295=\"\",\"\",IFERROR(SUM($G295)*SUM(INDEX(F_Tools!$T$100:$T$129,MATCH($D295,F_Tools!$E$100:$E$129,0)))/K269,\"\"))","v":""},{"$f":"IF($D295=\"\",\"\",IFERROR(SUM($G295)*SUM(INDEX(F_Tools!$U$100:$U$129,MATCH($D295,F_Tools!$E$100:$E$129,0)))/K269,\"\"))","v":""},{"$nulls":8},{"$f":"CONST_PrecursorToGoodInput&D295&\"_\"&D267","v":"PrecToGood__"},null,{"$f":"SUMIF(D_Processes!R:R,AB295,D_Processes!K:K)","v":0},{"$f":"SUMIF(D_Processes!R:R,CONST_CNTR_TotProd&D295,D_Processes!L:L)","v":0},null,false]
[null,null,26,{"$f":"IF(D267=\"\",\"\",IF(COUNTIF(INDEX(CNTR_IOSupplyChain,MATCH(D267,CNTR_IOProcAndPrec,0),),C296)=0,\"\",INDEX(CNTR_IOProcAndPrec,MATCH(C296,INDEX(CNTR_IOSupplyChain,MATCH(D267,CNTR_IOProcAndPrec,0),),0))))","v":""},null,"",{"$f":"IF(D296=\"\",\"\",INDEX(CNTR_Matrix_Inv,MATCH(D267,CNTR_IOProcAndPrec,0),MATCH(D296,CNTR_IOProcAndPrec,0)))","v":""},{"$f":"IF(D296=\"\",\"\",IF(AG296,INDEX(E_PurchPrec!U:U,MATCH(CONST_PurchPrecDefaultUsed&D296,E_PurchPrec!R:R,0)),CONST_NA))","v":""},{"$f":"IF($D296=\"\",\"\",SUM($G296)*SUM(INDEX(InputOutput!$AJ$71:$AJ$100,MATCH($D296,InputOutput!$D$71:$D$100,0))))","v":""},{"$f":"IF($D296=\"\",\"\",SUM($G296)*SUM(INDEX(InputOutput!$AL$71:$AL$100,MATCH($D296,InputOutput!$D$71:$D$100,0))))","v":""},"",{"$f":"IF(D296=\"\",\"\",SUM(I296)*SUM(AD270))","v":""},{"$f":"IF(D296=\"\",\"\",SUM(J296)*SUM(AD270))","v":""},"",{"$f":"IF(AG296,INDEX(E_PurchPrec!U:U,MATCH(CONST_CNTR_ElecEFMethod&D296,E_PurchPrec!R:R,0)),INDEX(D_Processes!T:T,MATCH(CONST_CNTR_ElecEFMethod&D296,D_Processes!R:R,0)))","v":""},{"$f":"IF(OR($D296=\"\",$AG296),\"\",SUM($G296)*SUM(INDEX(InputOutput!$AN$71:$AN$100,MATCH($D296,InputOutput!$D$71:$D$100,0))))","v":""},{"$f":"IF(D296=\"\",\"\",IF(AG296,INDEX(A_InstData!$F$101:$F$120,MATCH(D296,CNTR_List_ExistPurchPrecNames,0)),\"\"))","v":""},{"$f":"IF($D296=\"\",\"\",IFERROR(SUM($G296)*SUM(INDEX(F_Tools!$T$100:$T$129,MATCH($D296,F_Tools!$E$100:$E$129,0)))/K269,\"\"))","v":""},{"$f":"IF($D296=\"\",\"\",IFERROR(SUM($G296)*SUM(INDEX(F_Tools!$U$100:$U$129,MATCH($D296,F_Tools!$E$100:$E$129,0)))/K269,\"\"))","v":""},{"$nulls":8},{"$f":"CONST_PrecursorToGoodInput&D296&\"_\"&D267","v":"PrecToGood__"},null,{"$f":"SUMIF(D_Processes!R:R,AB296,D_Processes!K:K)","v":0},{"$f":"SUMIF(D_Processes!R:R,CONST_CNTR_TotProd&D296,D_Processes!L:L)","v":0},null,false]
[null,null,27,{"$f":"IF(D267=\"\",\"\",IF(COUNTIF(INDEX(CNTR_IOSupplyChain,MATCH(D267,CNTR_IOProcAndPrec,0),),C297)=0,\"\",INDEX(CNTR_IOProcAndPrec,MATCH(C297,INDEX(CNTR_IOSupplyChain,MATCH(D267,CNTR_IOProcAndPrec,0),),0))))","v":""},null,"",{"$f":"IF(D297=\"\",\"\",INDEX(CNTR_Matrix_Inv,MATCH(D267,CNTR_IOProcAndPrec,0),MATCH(D297,CNTR_IOProcAndPrec,0)))","v":""},{"$f":"IF(D297=\"\",\"\",IF(AG297,INDEX(E_PurchPrec!U:U,MATCH(CONST_PurchPrecDefaultUsed&D297,E_PurchPrec!R:R,0)),CONST_NA))","v":""},{"$f":"IF($D297=\"\",\"\",SUM($G297)*SUM(INDEX(InputOutput!$AJ$71:$AJ$100,MATCH($D297,InputOutput!$D$71:$D$100,0))))","v":""},{"$f":"IF($D297=\"\",\"\",SUM($G297)*SUM(INDEX(InputOutput!$AL$71:$AL$100,MATCH($D297,InputOutput!$D$71:$D$100,0))))","v":""},"",{"$f":"IF(D297=\"\",\"\",SUM(I297)*SUM(AD270))","v":""},{"$f":"IF(D297=\"\",\"\",SUM(J297)*SUM(AD270))","v":""},"",{"$f":"IF(AG297,INDEX(E_PurchPrec!U:U,MATCH(CONST_CNTR_ElecEFMethod&D297,E_PurchPrec!R:R,0)),INDEX(D_Processes!T:T,MATCH(CONST_CNTR_ElecEFMethod&D297,D_Processes!R:R,0)))","v":""},{"$f":"IF(OR($D297=\"\",$AG297),\"\",SUM($G297)*SUM(INDEX(InputOutput!$AN$71:$AN$100,MATCH($D297,InputOutput!$D$71:$D$100,0))))","v":""},{"$f":"IF(D297=\"\",\"\",IF(AG297,INDEX(A_InstData!$F$101:$F$120,MATCH(D297,CNTR_List_ExistPurchPrecNames,0)),\"\"))","v":""},{"$f":"IF($D297=\"\",\"\",IFERROR(SUM($G297)*SUM(INDEX(F_Tools!$T$100:$T$129,MATCH($D297,F_Tools!$E$100:$E$129,0)))/K269,\"\"))","v":""},{"$f":"IF($D297=\"\",\"\",IFERROR(SUM($G297)*SUM(INDEX(F_Tools!$U$100:$U$129,MATCH($D297,F_Tools!$E$100:$E$129,0)))/K269,\"\"))","v":""},{"$nulls":8},{"$f":"CONST_PrecursorToGoodInput&D297&\"_\"&D267","v":"PrecToGood__"},null,{"$f":"SUMIF(D_Processes!R:R,AB297,D_Processes!K:K)","v":0},{"$f":"SUMIF(D_Processes!R:R,CONST_CNTR_TotProd&D297,D_Processes!L:L)","v":0},null,false]
[null,null,28,{"$f":"IF(D267=\"\",\"\",IF(COUNTIF(INDEX(CNTR_IOSupplyChain,MATCH(D267,CNTR_IOProcAndPrec,0),),C298)=0,\"\",INDEX(CNTR_IOProcAndPrec,MATCH(C298,INDEX(CNTR_IOSupplyChain,MATCH(D267,CNTR_IOProcAndPrec,0),),0))))","v":""},null,"",{"$f":"IF(D298=\"\",\"\",INDEX(CNTR_Matrix_Inv,MATCH(D267,CNTR_IOProcAndPrec,0),MATCH(D298,CNTR_IOProcAndPrec,0)))","v":""},{"$f":"IF(D298=\"\",\"\",IF(AG298,INDEX(E_PurchPrec!U:U,MATCH(CONST_PurchPrecDefaultUsed&D298,E_PurchPrec!R:R,0)),CONST_NA))","v":""},{"$f":"IF($D298=\"\",\"\",SUM($G298)*SUM(INDEX(InputOutput!$AJ$71:$AJ$100,MATCH($D298,InputOutput!$D$71:$D$100,0))))","v":""},{"$f":"IF($D298=\"\",\"\",SUM($G298)*SUM(INDEX(InputOutput!$AL$71:$AL$100,MATCH($D298,InputOutput!$D$71:$D$100,0))))","v":""},"",{"$f":"IF(D298=\"\",\"\",SUM(I298)*SUM(AD270))","v":""},{"$f":"IF(D298=\"\",\"\",SUM(J298)*SUM(AD270))","v":""},"",{"$f":"IF(AG298,INDEX(E_PurchPrec!U:U,MATCH(CONST_CNTR_ElecEFMethod&D298,E_PurchPrec!R:R,0)),INDEX(D_Processes!T:T,MATCH(CONST_CNTR_ElecEFMethod&D298,D_Processes!R:R,0)))","v":""},{"$f":"IF(OR($D298=\"\",$AG298),\"\",SUM($G298)*SUM(INDEX(InputOutput!$AN$71:$AN$100,MATCH($D298,InputOutput!$D$71:$D$100,0))))","v":""},{"$f":"IF(D298=\"\",\"\",IF(AG298,INDEX(A_InstData!$F$101:$F$120,MATCH(D298,CNTR_List_ExistPurchPrecNames,0)),\"\"))","v":""},{"$f":"IF($D298=\"\",\"\",IFERROR(SUM($G298)*SUM(INDEX(F_Tools!$T$100:$T$129,MATCH($D298,F_Tools!$E$100:$E$129,0)))/K269,\"\"))","v":""},{"$f":"IF($D298=\"\",\"\",IFERROR(SUM($G298)*SUM(INDEX(F_Tools!$U$100:$U$129,MATCH($D298,F_Tools!$E$100:$E$129,0)))/K269,\"\"))","v":""},{"$nulls":8},{"$f":"CONST_PrecursorToGoodInput&D298&\"_\"&D267","v":"PrecToGood__"},null,{"$f":"SUMIF(D_Processes!R:R,AB298,D_Processes!K:K)","v":0},{"$f":"SUMIF(D_Processes!R:R,CONST_CNTR_TotProd&D298,D_Processes!L:L)","v":0},null,false]
[null,null,29,{"$f":"IF(D267=\"\",\"\",IF(COUNTIF(INDEX(CNTR_IOSupplyChain,MATCH(D267,CNTR_IOProcAndPrec,0),),C299)=0,\"\",INDEX(CNTR_IOProcAndPrec,MATCH(C299,INDEX(CNTR_IOSupplyChain,MATCH(D267,CNTR_IOProcAndPrec,0),),0))))","v":""},null,"",{"$f":"IF(D299=\"\",\"\",INDEX(CNTR_Matrix_Inv,MATCH(D267,CNTR_IOProcAndPrec,0),MATCH(D299,CNTR_IOProcAndPrec,0)))","v":""},{"$f":"IF(D299=\"\",\"\",IF(AG299,INDEX(E_PurchPrec!U:U,MATCH(CONST_PurchPrecDefaultUsed&D299,E_PurchPrec!R:R,0)),CONST_NA))","v":""},{"$f":"IF($D299=\"\",\"\",SUM($G299)*SUM(INDEX(InputOutput!$AJ$71:$AJ$100,MATCH($D299,InputOutput!$D$71:$D$100,0))))","v":""},{"$f":"IF($D299=\"\",\"\",SUM($G299)*SUM(INDEX(InputOutput!$AL$71:$AL$100,MATCH($D299,InputOutput!$D$71:$D$100,0))))","v":""},"",{"$f":"IF(D299=\"\",\"\",SUM(I299)*SUM(AD270))","v":""},{"$f":"IF(D299=\"\",\"\",SUM(J299)*SUM(AD270))","v":""},"",{"$f":"IF(AG299,INDEX(E_PurchPrec!U:U,MATCH(CONST_CNTR_ElecEFMethod&D299,E_PurchPrec!R:R,0)),INDEX(D_Processes!T:T,MATCH(CONST_CNTR_ElecEFMethod&D299,D_Processes!R:R,0)))","v":""},{"$f":"IF(OR($D299=\"\",$AG299),\"\",SUM($G299)*SUM(INDEX(InputOutput!$AN$71:$AN$100,MATCH($D299,InputOutput!$D$71:$D$100,0))))","v":""},{"$f":"IF(D299=\"\",\"\",IF(AG299,INDEX(A_InstData!$F$101:$F$120,MATCH(D299,CNTR_List_ExistPurchPrecNames,0)),\"\"))","v":""},{"$f":"IF($D299=\"\",\"\",IFERROR(SUM($G299)*SUM(INDEX(F_Tools!$T$100:$T$129,MATCH($D299,F_Tools!$E$100:$E$129,0)))/K269,\"\"))","v":""},{"$f":"IF($D299=\"\",\"\",IFERROR(SUM($G299)*SUM(INDEX(F_Tools!$U$100:$U$129,MATCH($D299,F_Tools!$E$100:$E$129,0)))/K269,\"\"))","v":""},{"$nulls":8},{"$f":"CONST_PrecursorToGoodInput&D299&\"_\"&D267","v":"PrecToGood__"},null,{"$f":"SUMIF(D_Processes!R:R,AB299,D_Processes!K:K)","v":0},{"$f":"SUMIF(D_Processes!R:R,CONST_CNTR_TotProd&D299,D_Processes!L:L)","v":0},null,false]
[null,null,30,{"$f":"IF(D267=\"\",\"\",IF(COUNTIF(INDEX(CNTR_IOSupplyChain,MATCH(D267,CNTR_IOProcAndPrec,0),),C300)=0,\"\",INDEX(CNTR_IOProcAndPrec,MATCH(C300,INDEX(CNTR_IOSupplyChain,MATCH(D267,CNTR_IOProcAndPrec,0),),0))))","v":""},null,"",{"$f":"IF(D300=\"\",\"\",INDEX(CNTR_Matrix_Inv,MATCH(D267,CNTR_IOProcAndPrec,0),MATCH(D300,CNTR_IOProcAndPrec,0)))","v":""},{"$f":"IF(D300=\"\",\"\",IF(AG300,INDEX(E_PurchPrec!U:U,MATCH(CONST_PurchPrecDefaultUsed&D300,E_PurchPrec!R:R,0)),CONST_NA))","v":""},{"$f":"IF($D300=\"\",\"\",SUM($G300)*SUM(INDEX(InputOutput!$AJ$71:$AJ$100,MATCH($D300,InputOutput!$D$71:$D$100,0))))","v":""},{"$f":"IF($D300=\"\",\"\",SUM($G300)*SUM(INDEX(InputOutput!$AL$71:$AL$100,MATCH($D300,InputOutput!$D$71:$D$100,0))))","v":""},"",{"$f":"IF(D300=\"\",\"\",SUM(I300)*SUM(AD270))","v":""},{"$f":"IF(D300=\"\",\"\",SUM(J300)*SUM(AD270))","v":""},"",{"$f":"IF(AG300,INDEX(E_PurchPrec!U:U,MATCH(CONST_CNTR_ElecEFMethod&D300,E_PurchPrec!R:R,0)),INDEX(D_Processes!T:T,MATCH(CONST_CNTR_ElecEFMethod&D300,D_Processes!R:R,0)))","v":""},{"$f":"IF(OR($D300=\"\",$AG300),\"\",SUM($G300)*SUM(INDEX(InputOutput!$AN$71:$AN$100,MATCH($D300,InputOutput!$D$71:$D$100,0))))","v":""},{"$f":"IF(D300=\"\",\"\",IF(AG300,INDEX(A_InstData!$F$101:$F$120,MATCH(D300,CNTR_List_ExistPurchPrecNames,0)),\"\"))","v":""},{"$f":"IF($D300=\"\",\"\",IFERROR(SUM($G300)*SUM(INDEX(F_Tools!$T$100:$T$129,MATCH($D300,F_Tools!$E$100:$E$129,0)))/K269,\"\"))","v":""},{"$f":"IF($D300=\"\",\"\",IFERROR(SUM($G300)*SUM(INDEX(F_Tools!$U$100:$U$129,MATCH($D300,F_Tools!$E$100:$E$129,0)))/K269,\"\"))","v":""},{"$nulls":8},{"$f":"CONST_PrecursorToGoodInput&D300&\"_\"&D267","v":"PrecToGood__"},null,{"$f":"SUMIF(D_Processes!R:R,AB300,D_Processes!K:K)","v":0},{"$f":"SUMIF(D_Processes!R:R,CONST_CNTR_TotProd&D300,D_Processes!L:L)","v":0},null,false]
[]
[]
[null,null,{"$f":"C267+1","v":5},{"$f":"IF(INDEX(CNTR_List_ExistProdProcNames,C303)=CONST_NA,\"\",INDEX(CNTR_List_ExistProdProcNames,C303))","v":""},null,{"$f":"Translations!$B$107","v":"Aggregated goods category"},{"$f":"Translations!$B$584","v":"Mass share"},{"$f":"Translations!$B$586","v":"(Share of) Default value"},{"$f":"Translations!$B$570","v":"SEE (direct)"},{"$f":"Translations!$B$574","v":"SEE (indirect)"},{"$f":"Translations!$B$344","v":"SEE (total)"},{"$f":"Translations!$B$589","v":"EmbEm (direct)"},{"$f":"Translations!$B$591","v":"EmbEm (indirect)"},{"$f":"Translations!$B$593","v":"EmbEm (total)"},{"$f":"Translations!$B$594","v":"Source of electricity EF"},{"$f":"Translations!$B$597","v":"Specific electricity"},"Country code",{"$f":"Translations!$B$351","v":"CP due (per t or MWh)"},{"$f":"Translations!$B$352","v":"Rebate (per t or MWh)"},{"$nulls":12},{"$f":"H303","v":"(Share of) Default value"},{"$f":"H305","v":""}]
[{"$nulls":6},{"$f":"IF($F305=\"\",CONST_t,INDEX(CONST_LIST_GoodsUnit,MATCH($F305,CONST_LIST_Goods,0)))&\"/\"&IF($F305=\"\",CONST_t,INDEX(CONST_LIST_GoodsUnit,MATCH($F305,CONST_LIST_Goods,0)))","v":"t/t"},null,{"$f":"CONST_tCO2eq&\"/\"&IF($F305=\"\",CONST_t,INDEX(CONST_LIST_GoodsUnit,MATCH($F305,CONST_LIST_Goods,0)))","v":"tCO2e/t"},{"$f":"CONST_tCO2eq&\"/\"&IF($F305=\"\",CONST_t,INDEX(CONST_LIST_GoodsUnit,MATCH($F305,CONST_LIST_Goods,0)))","v":"tCO2e/t"},{"$f":"CONST_tCO2eq&\"/\"&IF($F305=\"\",CONST_t,INDEX(CONST_LIST_GoodsUnit,MATCH($F305,CONST_LIST_Goods,0)))","v":"tCO2e/t"},{"$f":"CONST_tCO2eq","v":"tCO2e"},{"$f":"CONST_tCO2eq","v":"tCO2e"},{"$f":"CONST_tCO2eq","v":"tCO2e"},null,{"$f":"CONST_MWh&\"/\"&IF($F305=\"\",CONST_t,INDEX(CONST_LIST_GoodsUnit,MATCH($F305,CONST_LIST_Goods,0)))","v":"MWh/t"}]
[{"$nulls":3},{"$f":"Translations!$B$600","v":"Total production process"},null,{"$f":"IF(D306=\"\",\"\",INDEX(CNTR_List_ExistProdProc,MATCH(D306,CNTR_List_ExistProdProcNames,0)))","v":""},"-",{"$f":"IF(D303=\"\",\"\",IFERROR(SUMIFS(I307:I336,H307:H336,TRUE)/I305,\"\"))","v":""},{"$f":"IF(COUNT(I306:I336)>0,SUM(I306:I336),\"\")","v":""},"","","","","","-",{"$f":"IF(COUNT(P306:P336)>0,SUM(P306:P336),\"\")","v":""},"-",{"$f":"IF(COUNT(R306:R336)>0,SUM(R306:R336),\"\")","v":""},{"$f":"IF(COUNT(S306:S336)>0,SUM(S306:S336),\"\")","v":""},{"$nulls":10},{"$f":"Translations!$B$601","v":"Production and consumption"},{"$f":"Translations!$B$602","v":"Total production of precursors"},null,"IsPrecursor?"]
[{"$nulls":3},{"$f":"D303","v":""},null,{"$f":"IF(D306=\"\",\"\",INDEX(CNTR_List_ExistProdProc,MATCH(D306,CNTR_List_ExistProdProcNames,0)))","v":""},{"v":1,"d":"1.000"},"-",{"$f":"IF($D306=\"\",\"\",SUM($G306)*SUM(INDEX(InputOutput!$AJ$71:$AJ$100,MATCH($D306,InputOutput!$D$71:$D$100,0))))","v":""},{"$f":"IF($D306=\"\",\"\",SUM($G306)*SUM(INDEX(InputOutput!$AL$71:$AL$100,MATCH($D306,InputOutput!$D$71:$D$100,0))))","v":""},{"$f":"IF(COUNT(I306:J306)>0,SUM(I306:J306),\"\")","v":""},{"$f":"IF(D306=\"\",\"\",SUM(I306)*SUM(AD306))","v":""},{"$f":"IF(D306=\"\",\"\",SUM(J306)*SUM(AD306))","v":""},{"$f":"IF(COUNT(L306:M306)>0,SUM(L306:M306),\"\")","v":""},{"$f":"IF(AG306,INDEX(E_PurchPrec!U:U,MATCH(CONST_CNTR_ElecEFMethod&D306,E_PurchPrec!R:R,0)),INDEX(D_Processes!T:T,MATCH(CONST_CNTR_ElecEFMethod&D306,D_Processes!R:R,0)))","v":""},{"$f":"IF(OR($D306=\"\",$AG306),\"\",SUM($G306)*SUM(INDEX(InputOutput!$AN$71:$AN$100,MATCH($D306,InputOutput!$D$71:$D$100,0))))","v":""},null,{"$f":"IF($D306=\"\",\"\",IFERROR(SUM($G306)*SUM(INDEX(F_Tools!$T$100:$T$129,MATCH($D306,F_Tools!$E$100:$E$129,0)))/K305,\"\"))","v":""},{"$f":"IF($D306=\"\",\"\",IFERROR(SUM($G306)*SUM(INDEX(F_Tools!$U$100:$U$129,MATCH($D306,F_Tools!$E$100:$E$129,0)))/K305,\"\"))","v":""},{"$nulls":8},{"$f":"CONST_CNTR_TotProd&D303","v":"TotProd_"},null,{"$f":"SUMIF(D_Processes!R:R,AB306,D_Processes!L:L)","v":0}]
[null,null,1,{"$f":"IF(D303=\"\",\"\",IF(COUNTIF(INDEX(CNTR_IOSupplyChain,MATCH(D303,CNTR_IOProcAndPrec,0),),C307)=0,\"\",INDEX(CNTR_IOProcAndPrec,MATCH(C307,INDEX(CNTR_IOSupplyChain,MATCH(D303,CNTR_IOProcAndPrec,0),),0))))","v":""},null,{"$f":"IF(D307=\"\",\"\",IF(COUNTIF(CNTR_List_ExistProdProcNames,D307)>0,INDEX(CNTR_List_ExistProdProc,MATCH(D307,CNTR_List_ExistProdProcNames,0)),INDEX(CNTR_List_ExistPurchPrec,MATCH(D307,CNTR_List_ExistPurchPrecNames,0))))","v":""},{"$f":"IF(D307=\"\",\"\",INDEX(CNTR_Matrix_Inv,MATCH(D303,CNTR_IOProcAndPrec,0),MATCH(D307,CNTR_IOProcAndPrec,0)))","v":""},{"$f":"IF(D307=\"\",\"\",IF(AG307,INDEX(E_PurchPrec!U:U,MATCH(CONST_PurchPrecDefaultUsed&D307,E_PurchPrec!R:R,0)),CONST_NA))","v":""},{"$f":"IF($D307=\"\",\"\",SUM($G307)*SUM(INDEX(InputOutput!$AJ$71:$AJ$100,MATCH($D307,InputOutput!$D$71:$D$100,0))))","v":""},{"$f":"IF($D307=\"\",\"\",SUM($G307)*SUM(INDEX(InputOutput!$AL$71:$AL$100,MATCH($D307,InputOutput!$D$71:$D$100,0))))","v":""},"",{"$f":"IF(D307=\"\",\"\",SUM(I307)*SUM(AD306))","v":""},{"$f":"IF(D307=\"\",\"\",SUM(J307)*SUM(AD306))","v":""},{"$f":"IF(COUNT(L307:M307)>0,SUM(L307:M307),\"\")","v":""},{"$f":"IF(AG307,INDEX(E_PurchPrec!U:U,MATCH(CONST_CNTR_ElecEFMethod&D307,E_PurchPrec!R:R,0)),INDEX(D_Processes!T:T,MATCH(CONST_CNTR_ElecEFMethod&D307,D_Processes!R:R,0)))","v":""},{"$f":"IF(OR($D307=\"\",$AG307),\"\",SUM($G307)*SUM(INDEX(InputOutput!$AN$71:$AN$100,MATCH($D307,InputOutput!$D$71:$D$100,0))))","v":""},{"$f":"IF(D307=\"\",\"\",IF(AG307,INDEX(A_InstData!$F$101:$F$120,MATCH(D307,CNTR_List_ExistPurchPrecNames,0)),\"\"))","v":""},{"$f":"IF($D307=\"\",\"\",IFERROR(SUM($G307)*SUM(INDEX(F_Tools!$T$100:$T$129,MATCH($D307,F_Tools!$E$100:$E$129,0)))/K305,\"\"))","v":""},{"$f":"IF($D307=\"\",\"\",IFERROR(SUM($G307)*SUM(INDEX(F_Tools!$U$100:$U$129,MATCH($D307,F_Tools!$E$100:$E$129,0)))/K305,\"\"))","v":""},{"$nulls":8},{"$f":"CONST_PrecursorToGoodInput&D307&\"_\"&D303","v":"PrecToGood__"},null,{"$f":"SUMIF(D_Processes!R:R,AB307,D_Processes!K:K)","v":0},{"$f":"SUMIF(D_Processes!R:R,CONST_CNTR_TotProd&D307,D_Processes!L:L)","v":0},null,{"$f":"COUNTIF(CNTR_List_ExistPurchPrecNames,D307)>0","v":false}]
[null,null,2,{"$f":"IF(D303=\"\",\"\",IF(COUNTIF(INDEX(CNTR_IOSupplyChain,MATCH(D303,CNTR_IOProcAndPrec,0),),C308)=0,\"\",INDEX(CNTR_IOProcAndPrec,MATCH(C308,INDEX(CNTR_IOSupplyChain,MATCH(D303,CNTR_IOProcAndPrec,0),),0))))","v":""},null,"",{"$f":"IF(D308=\"\",\"\",INDEX(CNTR_Matrix_Inv,MATCH(D303,CNTR_IOProcAndPrec,0),MATCH(D308,CNTR_IOProcAndPrec,0)))","v":""},{"$f":"IF(D308=\"\",\"\",IF(AG308,INDEX(E_PurchPrec!U:U,MATCH(CONST_PurchPrecDefaultUsed&D308,E_PurchPrec!R:R,0)),CONST_NA))","v":""},{"$f":"IF($D308=\"\",\"\",SUM($G308)*SUM(INDEX(InputOutput!$AJ$71:$AJ$100,MATCH($D308,InputOutput!$D$71:$D$100,0))))","v":""},{"$f":"IF($D308=\"\",\"\",SUM($G308)*SUM(INDEX(InputOutput!$AL$71:$AL$100,MATCH($D308,InputOutput!$D$71:$D$100,0))))","v":""},"",{"$f":"IF(D308=\"\",\"\",SUM(I308)*SUM(AD306))","v":""},{"$f":"IF(D308=\"\",\"\",SUM(J308)*SUM(AD306))","v":""},{"$f":"IF(COUNT(L308:M308)>0,SUM(L308:M308),\"\")","v":""},{"$f":"IF(AG308,INDEX(E_PurchPrec!U:U,MATCH(CONST_CNTR_ElecEFMethod&D308,E_PurchPrec!R:R,0)),INDEX(D_Processes!T:T,MATCH(CONST_CNTR_ElecEFMethod&D308,D_Processes!R:R,0)))","v":""},{"$f":"IF(OR($D308=\"\",$AG308),\"\",SUM($G308)*SUM(INDEX(InputOutput!$AN$71:$AN$100,MATCH($D308,InputOutput!$D$71:$D$100,0))))","v":""},{"$f":"IF(D308=\"\",\"\",IF(AG308,INDEX(A_InstData!$F$101:$F$120,MATCH(D308,CNTR_List_ExistPurchPrecNames,0)),\"\"))","v":""},{"$f":"IF($D308=\"\",\"\",IFERROR(SUM($G308)*SUM(INDEX(F_Tools!$T$100:$T$129,MATCH($D308,F_Tools!$E$100:$E$129,0)))/K305,\"\"))","v":""},{"$f":"IF($D308=\"\",\"\",IFERROR(SUM($G308)*SUM(INDEX(F_Tools!$U$100:$U$129,MATCH($D308,F_Tools!$E$100:$E$129,0)))/K305,\"\"))","v":""},{"$nulls":8},{"$f":"CONST_PrecursorToGoodInput&D308&\"_\"&D303","v":"PrecToGood__"},null,{"$f":"SUMIF(D_Processes!R:R,AB308,D_Processes!K:K)","v":0},{"$f":"SUMIF(D_Processes!R:R,CONST_CNTR_TotProd&D308,D_Processes!L:L)","v":0},null,false]
[null,null,3,{"$f":"IF(D303=\"\",\"\",IF(COUNTIF(INDEX(CNTR_IOSupplyChain,MATCH(D303,CNTR_IOProcAndPrec,0),),C309)=0,\"\",INDEX(CNTR_IOProcAndPrec,MATCH(C309,INDEX(CNTR_IOSupplyChain,MATCH(D303,CNTR_IOProcAndPrec,0),),0))))","v":""},null,"",{"$f":"IF(D309=\"\",\"\",INDEX(CNTR_Matrix_Inv,MATCH(D303,CNTR_IOProcAndPrec,0),MATCH(D309,CNTR_IOProcAndPrec,0)))","v":""},{"$f":"IF(D309=\"\",\"\",IF(AG309,INDEX(E_PurchPrec!U:U,MATCH(CONST_PurchPrecDefaultUsed&D309,E_PurchPrec!R:R,0)),CONST_NA))","v":""},{"$f":"IF($D309=\"\",\"\",SUM($G309)*SUM(INDEX(InputOutput!$AJ$71:$AJ$100,MATCH($D309,InputOutput!$D$71:$D$100,0))))","v":""},{"$f":"IF($D309=\"\",\"\",SUM($G309)*SUM(INDEX(InputOutput!$AL$71:$AL$100,MATCH($D309,InputOutput!$D$71:$D$100,0))))","v":""},"",{"$f":"IF(D309=\"\",\"\",SUM(I309)*SUM(AD306))","v":""},{"$f":"IF(D309=\"\",\"\",SUM(J309)*SUM(AD306))","v":""},{"$f":"IF(COUNT(L309:M309)>0,SUM(L309:M309),\"\")","v":""},{"$f":"IF(AG309,INDEX(E_PurchPrec!U:U,MATCH(CONST_CNTR_ElecEFMethod&D309,E_PurchPrec!R:R,0)),INDEX(D_Processes!T:T,MATCH(CONST_CNTR_ElecEFMethod&D309,D_Processes!R:R,0)))","v":""},{"$f":"IF(OR($D309=\"\",$AG309),\"\",SUM($G309)*SUM(INDEX(InputOutput!$AN$71:$AN$100,MATCH($D309,InputOutput!$D$71:$D$100,0))))","v":""},{"$f":"IF(D309=\"\",\"\",IF(AG309,INDEX(A_InstData!$F$101:$F$120,MATCH(D309,CNTR_List_ExistPurchPrecNames,0)),\"\"))","v":""},{"$f":"IF($D309=\"\",\"\",IFERROR(SUM($G309)*SUM(INDEX(F_Tools!$T$100:$T$129,MATCH($D309,F_Tools!$E$100:$E$129,0)))/K305,\"\"))","v":""},{"$f":"IF($D309=\"\",\"\",IFERROR(SUM($G309)*SUM(INDEX(F_Tools!$U$100:$U$129,MATCH($D309,F_Tools!$E$100:$E$129,0)))/K305,\"\"))","v":""},{"$nulls":8},{"$f":"CONST_PrecursorToGoodInput&D309&\"_\"&D303","v":"PrecToGood__"},null,{"$f":"SUMIF(D_Processes!R:R,AB309,D_Processes!K:K)","v":0},{"$f":"SUMIF(D_Processes!R:R,CONST_CNTR_TotProd&D309,D_Processes!L:L)","v":0},null,false]
[null,null,4,{"$f":"IF(D303=\"\",\"\",IF(COUNTIF(INDEX(CNTR_IOSupplyChain,MATCH(D303,CNTR_IOProcAndPrec,0),),C310)=0,\"\",INDEX(CNTR_IOProcAndPrec,MATCH(C310,INDEX(CNTR_IOSupplyChain,MATCH(D303,CNTR_IOProcAndPrec,0),),0))))","v":""},null,"",{"$f":"IF(D310=\"\",\"\",INDEX(CNTR_Matrix_Inv,MATCH(D303,CNTR_IOProcAndPrec,0),MATCH(D310,CNTR_IOProcAndPrec,0)))","v":""},{"$f":"IF(D310=\"\",\"\",IF(AG310,INDEX(E_PurchPrec!U:U,MATCH(CONST_PurchPrecDefaultUsed&D310,E_PurchPrec!R:R,0)),CONST_NA))","v":""},{"$f":"IF($D310=\"\",\"\",SUM($G310)*SUM(INDEX(InputOutput!$AJ$71:$AJ$100,MATCH($D310,InputOutput!$D$71:$D$100,0))))","v":""},{"$f":"IF($D310=\"\",\"\",SUM($G310)*SUM(INDEX(InputOutput!$AL$71:$AL$100,MATCH($D310,InputOutput!$D$71:$D$100,0))))","v":""},"",{"$f":"IF(D310=\"\",\"\",SUM(I310)*SUM(AD306))","v":""},{"$f":"IF(D310=\"\",\"\",SUM(J310)*SUM(AD306))","v":""},"",{"$f":"IF(AG310,INDEX(E_PurchPrec!U:U,MATCH(CONST_CNTR_ElecEFMethod&D310,E_PurchPrec!R:R,0)),INDEX(D_Processes!T:T,MATCH(CONST_CNTR_ElecEFMethod&D310,D_Processes!R:R,0)))","v":""},{"$f":"IF(OR($D310=\"\",$AG310),\"\",SUM($G310)*SUM(INDEX(InputOutput!$AN$71:$AN$100,MATCH($D310,InputOutput!$D$71:$D$100,0))))","v":""},{"$f":"IF(D310=\"\",\"\",IF(AG310,INDEX(A_InstData!$F$101:$F$120,MATCH(D310,CNTR_List_ExistPurchPrecNames,0)),\"\"))","v":""},{"$f":"IF($D310=\"\",\"\",IFERROR(SUM($G310)*SUM(INDEX(F_Tools!$T$100:$T$129,MATCH($D310,F_Tools!$E$100:$E$129,0)))/K305,\"\"))","v":""},{"$f":"IF($D310=\"\",\"\",IFERROR(SUM($G310)*SUM(INDEX(F_Tools!$U$100:$U$129,MATCH($D310,F_Tools!$E$100:$E$129,0)))/K305,\"\"))","v":""},{"$nulls":8},{"$f":"CONST_PrecursorToGoodInput&D310&\"_\"&D303","v":"PrecToGood__"},null,{"$f":"SUMIF(D_Processes!R:R,AB310,D_Processes!K:K)","v":0},{"$f":"SUMIF(D_Processes!R:R,CONST_CNTR_TotProd&D310,D_Processes!L:L)","v":0},null,false]
[null,null,5,{"$f":"IF(D303=\"\",\"\",IF(COUNTIF(INDEX(CNTR_IOSupplyChain,MATCH(D303,CNTR_IOProcAndPrec,0),),C311)=0,\"\",INDEX(CNTR_IOProcAndPrec,MATCH(C311,INDEX(CNTR_IOSupplyChain,MATCH(D303,CNTR_IOProcAndPrec,0),),0))))","v":""},null,"",{"$f":"IF(D311=\"\",\"\",INDEX(CNTR_Matrix_Inv,MATCH(D303,CNTR_IOProcAndPrec,0),MATCH(D311,CNTR_IOProcAndPrec,0)))","v":""},{"$f":"IF(D311=\"\",\"\",IF(AG311,INDEX(E_PurchPrec!U:U,MATCH(CONST_PurchPrecDefaultUsed&D311,E_PurchPrec!R:R,0)),CONST_NA))","v":""},{"$f":"IF($D311=\"\",\"\",SUM($G311)*SUM(INDEX(InputOutput!$AJ$71:$AJ$100,MATCH($D311,InputOutput!$D$71:$D$100,0))))","v":""},{"$f":"IF($D311=\"\",\"\",SUM($G311)*SUM(INDEX(InputOutput!$AL$71:$AL$100,MATCH($D311,InputOutput!$D$71:$D$100,0))))","v":""},"",{"$f":"IF(D311=\"\",\"\",SUM(I311)*SUM(AD306))","v":""},{"$f":"IF(D311=\"\",\"\",SUM(J311)*SUM(AD306))","v":""},"",{"$f":"IF(AG311,INDEX(E_PurchPrec!U:U,MATCH(CONST_CNTR_ElecEFMethod&D311,E_PurchPrec!R:R,0)),INDEX(D_Processes!T:T,MATCH(CONST_CNTR_ElecEFMethod&D311,D_Processes!R:R,0)))","v":""},{"$f":"IF(OR($D311=\"\",$AG311),\"\",SUM($G311)*SUM(INDEX(InputOutput!$AN$71:$AN$100,MATCH($D311,InputOutput!$D$71:$D$100,0))))","v":""},{"$f":"IF(D311=\"\",\"\",IF(AG311,INDEX(A_InstData!$F$101:$F$120,MATCH(D311,CNTR_List_ExistPurchPrecNames,0)),\"\"))","v":""},{"$f":"IF($D311=\"\",\"\",IFERROR(SUM($G311)*SUM(INDEX(F_Tools!$T$100:$T$129,MATCH($D311,F_Tools!$E$100:$E$129,0)))/K305,\"\"))","v":""},{"$f":"IF($D311=\"\",\"\",IFERROR(SUM($G311)*SUM(INDEX(F_Tools!$U$100:$U$129,MATCH($D311,F_Tools!$E$100:$E$129,0)))/K305,\"\"))","v":""},{"$nulls":8},{"$f":"CONST_PrecursorToGoodInput&D311&\"_\"&D303","v":"PrecToGood__"},null,{"$f":"SUMIF(D_Processes!R:R,AB311,D_Processes!K:K)","v":0},{"$f":"SUMIF(D_Processes!R:R,CONST_CNTR_TotProd&D311,D_Processes!L:L)","v":0},null,false]
[null,null,6,{"$f":"IF(D303=\"\",\"\",IF(COUNTIF(INDEX(CNTR_IOSupplyChain,MATCH(D303,CNTR_IOProcAndPrec,0),),C312)=0,\"\",INDEX(CNTR_IOProcAndPrec,MATCH(C312,INDEX(CNTR_IOSupplyChain,MATCH(D303,CNTR_IOProcAndPrec,0),),0))))","v":""},null,"",{"$f":"IF(D312=\"\",\"\",INDEX(CNTR_Matrix_Inv,MATCH(D303,CNTR_IOProcAndPrec,0),MATCH(D312,CNTR_IOProcAndPrec,0)))","v":""},{"$f":"IF(D312=\"\",\"\",IF(AG312,INDEX(E_PurchPrec!U:U,MATCH(CONST_PurchPrecDefaultUsed&D312,E_PurchPrec!R:R,0)),CONST_NA))","v":""},{"$f":"IF($D312=\"\",\"\",SUM($G312)*SUM(INDEX(InputOutput!$AJ$71:$AJ$100,MATCH($D312,InputOutput!$D$71:$D$100,0))))","v":""},{"$f":"IF($D312=\"\",\"\",SUM($G312)*SUM(INDEX(InputOutput!$AL$71:$AL$100,MATCH($D312,InputOutput!$D$71:$D$100,0))))","v":""},"",{"$f":"IF(D312=\"\",\"\",SUM(I312)*SUM(AD306))","v":""},{"$f":"IF(D312=\"\",\"\",SUM(J312)*SUM(AD306))","v":""},"",{"$f":"IF(AG312,INDEX(E_PurchPrec!U:U,MATCH(CONST_CNTR_ElecEFMethod&D312,E_PurchPrec!R:R,0)),INDEX(D_Processes!T:T,MATCH(CONST_CNTR_ElecEFMethod&D312,D_Processes!R:R,0)))","v":""},{"$f":"IF(OR($D312=\"\",$AG312),\"\",SUM($G312)*SUM(INDEX(InputOutput!$AN$71:$AN$100,MATCH($D312,InputOutput!$D$71:$D$100,0))))","v":""},{"$f":"IF(D312=\"\",\"\",IF(AG312,INDEX(A_InstData!$F$101:$F$120,MATCH(D312,CNTR_List_ExistPurchPrecNames,0)),\"\"))","v":""},{"$f":"IF($D312=\"\",\"\",IFERROR(SUM($G312)*SUM(INDEX(F_Tools!$T$100:$T$129,MATCH($D312,F_Tools!$E$100:$E$129,0)))/K305,\"\"))","v":""},{"$f":"IF($D312=\"\",\"\",IFERROR(SUM($G312)*SUM(INDEX(F_Tools!$U$100:$U$129,MATCH($D312,F_Tools!$E$100:$E$129,0)))/K305,\"\"))","v":""},{"$nulls":8},{"$f":"CONST_PrecursorToGoodInput&D312&\"_\"&D303","v":"PrecToGood__"},null,{"$f":"SUMIF(D_Processes!R:R,AB312,D_Processes!K:K)","v":0},{"$f":"SUMIF(D_Processes!R:R,CONST_CNTR_TotProd&D312,D_Processes!L:L)","v":0},null,false]
[null,null,7,{"$f":"IF(D303=\"\",\"\",IF(COUNTIF(INDEX(CNTR_IOSupplyChain,MATCH(D303,CNTR_IOProcAndPrec,0),),C313)=0,\"\",INDEX(CNTR_IOProcAndPrec,MATCH(C313,INDEX(CNTR_IOSupplyChain,MATCH(D303,CNTR_IOProcAndPrec,0),),0))))","v":""},null,"",{"$f":"IF(D313=\"\",\"\",INDEX(CNTR_Matrix_Inv,MATCH(D303,CNTR_IOProcAndPrec,0),MATCH(D313,CNTR_IOProcAndPrec,0)))","v":""},{"$f":"IF(D313=\"\",\"\",IF(AG313,INDEX(E_PurchPrec!U:U,MATCH(CONST_PurchPrecDefaultUsed&D313,E_PurchPrec!R:R,0)),CONST_NA))","v":""},{"$f":"IF($D313=\"\",\"\",SUM($G313)*SUM(INDEX(InputOutput!$AJ$71:$AJ$100,MATCH($D313,InputOutput!$D$71:$D$100,0))))","v":""},{"$f":"IF($D313=\"\",\"\",SUM($G313)*SUM(INDEX(InputOutput!$AL$71:$AL$100,MATCH($D313,InputOutput!$D$71:$D$100,0))))","v":""},"",{"$f":"IF(D313=\"\",\"\",SUM(I313)*SUM(AD306))","v":""},{"$f":"IF(D313=\"\",\"\",SUM(J313)*SUM(AD306))","v":""},"",{"$f":"IF(AG313,INDEX(E_PurchPrec!U:U,MATCH(CONST_CNTR_ElecEFMethod&D313,E_PurchPrec!R:R,0)),INDEX(D_Processes!T:T,MATCH(CONST_CNTR_ElecEFMethod&D313,D_Processes!R:R,0)))","v":""},{"$f":"IF(OR($D313=\"\",$AG313),\"\",SUM($G313)*SUM(INDEX(InputOutput!$AN$71:$AN$100,MATCH($D313,InputOutput!$D$71:$D$100,0))))","v":""},{"$f":"IF(D313=\"\",\"\",IF(AG313,INDEX(A_InstData!$F$101:$F$120,MATCH(D313,CNTR_List_ExistPurchPrecNames,0)),\"\"))","v":""},{"$f":"IF($D313=\"\",\"\",IFERROR(SUM($G313)*SUM(INDEX(F_Tools!$T$100:$T$129,MATCH($D313,F_Tools!$E$100:$E$129,0)))/K305,\"\"))","v":""},{"$f":"IF($D313=\"\",\"\",IFERROR(SUM($G313)*SUM(INDEX(F_Tools!$U$100:$U$129,MATCH($D313,F_Tools!$E$100:$E$129,0)))/K305,\"\"))","v":""},{"$nulls":8},{"$f":"CONST_PrecursorToGoodInput&D313&\"_\"&D303","v":"PrecToGood__"},null,{"$f":"SUMIF(D_Processes!R:R,AB313,D_Processes!K:K)","v":0},{"$f":"SUMIF(D_Processes!R:R,CONST_CNTR_TotProd&D313,D_Processes!L:L)","v":0},null,false]
[null,null,8,{"$f":"IF(D303=\"\",\"\",IF(COUNTIF(INDEX(CNTR_IOSupplyChain,MATCH(D303,CNTR_IOProcAndPrec,0),),C314)=0,\"\",INDEX(CNTR_IOProcAndPrec,MATCH(C314,INDEX(CNTR_IOSupplyChain,MATCH(D303,CNTR_IOProcAndPrec,0),),0))))","v":""},null,"",{"$f":"IF(D314=\"\",\"\",INDEX(CNTR_Matrix_Inv,MATCH(D303,CNTR_IOProcAndPrec,0),MATCH(D314,CNTR_IOProcAndPrec,0)))","v":""},{"$f":"IF(D314=\"\",\"\",IF(AG314,INDEX(E_PurchPrec!U:U,MATCH(CONST_PurchPrecDefaultUsed&D314,E_PurchPrec!R:R,0)),CONST_NA))","v":""},{"$f":"IF($D314=\"\",\"\",SUM($G314)*SUM(INDEX(InputOutput!$AJ$71:$AJ$100,MATCH($D314,InputOutput!$D$71:$D$100,0))))","v":""},{"$f":"IF($D314=\"\",\"\",SUM($G314)*SUM(INDEX(InputOutput!$AL$71:$AL$100,MATCH($D314,InputOutput!$D$71:$D$100,0))))","v":""},"",{"$f":"IF(D314=\"\",\"\",SUM(I314)*SUM(AD306))","v":""},{"$f":"IF(D314=\"\",\"\",SUM(J314)*SUM(AD306))","v":""},"",{"$f":"IF(AG314,INDEX(E_PurchPrec!U:U,MATCH(CONST_CNTR_ElecEFMethod&D314,E_PurchPrec!R:R,0)),INDEX(D_Processes!T:T,MATCH(CONST_CNTR_ElecEFMethod&D314,D_Processes!R:R,0)))","v":""},{"$f":"IF(OR($D314=\"\",$AG314),\"\",SUM($G314)*SUM(INDEX(InputOutput!$AN$71:$AN$100,MATCH($D314,InputOutput!$D$71:$D$100,0))))","v":""},{"$f":"IF(D314=\"\",\"\",IF(AG314,INDEX(A_InstData!$F$101:$F$120,MATCH(D314,CNTR_List_ExistPurchPrecNames,0)),\"\"))","v":""},{"$f":"IF($D314=\"\",\"\",IFERROR(SUM($G314)*SUM(INDEX(F_Tools!$T$100:$T$129,MATCH($D314,F_Tools!$E$100:$E$129,0)))/K305,\"\"))","v":""},{"$f":"IF($D314=\"\",\"\",IFERROR(SUM($G314)*SUM(INDEX(F_Tools!$U$100:$U$129,MATCH($D314,F_Tools!$E$100:$E$129,0)))/K305,\"\"))","v":""},{"$nulls":8},{"$f":"CONST_PrecursorToGoodInput&D314&\"_\"&D303","v":"PrecToGood__"},null,{"$f":"SUMIF(D_Processes!R:R,AB314,D_Processes!K:K)","v":0},{"$f":"SUMIF(D_Processes!R:R,CONST_CNTR_TotProd&D314,D_Processes!L:L)","v":0},null,false]
[null,null,9,{"$f":"IF(D303=\"\",\"\",IF(COUNTIF(INDEX(CNTR_IOSupplyChain,MATCH(D303,CNTR_IOProcAndPrec,0),),C315)=0,\"\",INDEX(CNTR_IOProcAndPrec,MATCH(C315,INDEX(CNTR_IOSupplyChain,MATCH(D303,CNTR_IOProcAndPrec,0),),0))))","v":""},null,"",{"$f":"IF(D315=\"\",\"\",INDEX(CNTR_Matrix_Inv,MATCH(D303,CNTR_IOProcAndPrec,0),MATCH(D315,CNTR_IOProcAndPrec,0)))","v":""},{"$f":"IF(D315=\"\",\"\",IF(AG315,INDEX(E_PurchPrec!U:U,MATCH(CONST_PurchPrecDefaultUsed&D315,E_PurchPrec!R:R,0)),CONST_NA))","v":""},{"$f":"IF($D315=\"\",\"\",SUM($G315)*SUM(INDEX(InputOutput!$AJ$71:$AJ$100,MATCH($D315,InputOutput!$D$71:$D$100,0))))","v":""},{"$f":"IF($D315=\"\",\"\",SUM($G315)*SUM(INDEX(InputOutput!$AL$71:$AL$100,MATCH($D315,InputOutput!$D$71:$D$100,0))))","v":""},"",{"$f":"IF(D315=\"\",\"\",SUM(I315)*SUM(AD306))","v":""},{"$f":"IF(D315=\"\",\"\",SUM(J315)*SUM(AD306))","v":""},"",{"$f":"IF(AG315,INDEX(E_PurchPrec!U:U,MATCH(CONST_CNTR_ElecEFMethod&D315,E_PurchPrec!R:R,0)),INDEX(D_Processes!T:T,MATCH(CONST_CNTR_ElecEFMethod&D315,D_Processes!R:R,0)))","v":""},{"$f":"IF(OR($D315=\"\",$AG315),\"\",SUM($G315)*SUM(INDEX(InputOutput!$AN$71:$AN$100,MATCH($D315,InputOutput!$D$71:$D$100,0))))","v":""},{"$f":"IF(D315=\"\",\"\",IF(AG315,INDEX(A_InstData!$F$101:$F$120,MATCH(D315,CNTR_List_ExistPurchPrecNames,0)),\"\"))","v":""},{"$f":"IF($D315=\"\",\"\",IFERROR(SUM($G315)*SUM(INDEX(F_Tools!$T$100:$T$129,MATCH($D315,F_Tools!$E$100:$E$129,0)))/K305,\"\"))","v":""},{"$f":"IF($D315=\"\",\"\",IFERROR(SUM($G315)*SUM(INDEX(F_Tools!$U$100:$U$129,MATCH($D315,F_Tools!$E$100:$E$129,0)))/K305,\"\"))","v":""},{"$nulls":8},{"$f":"CONST_PrecursorToGoodInput&D315&\"_\"&D303","v":"PrecToGood__"},null,{"$f":"SUMIF(D_Processes!R:R,AB315,D_Processes!K:K)","v":0},{"$f":"SUMIF(D_Processes!R:R,CONST_CNTR_TotProd&D315,D_Processes!L:L)","v":0},null,false]
[null,null,10,{"$f":"IF(D303=\"\",\"\",IF(COUNTIF(INDEX(CNTR_IOSupplyChain,MATCH(D303,CNTR_IOProcAndPrec,0),),C316)=0,\"\",INDEX(CNTR_IOProcAndPrec,MATCH(C316,INDEX(CNTR_IOSupplyChain,MATCH(D303,CNTR_IOProcAndPrec,0),),0))))","v":""},null,"",{"$f":"IF(D316=\"\",\"\",INDEX(CNTR_Matrix_Inv,MATCH(D303,CNTR_IOProcAndPrec,0),MATCH(D316,CNTR_IOProcAndPrec,0)))","v":""},{"$f":"IF(D316=\"\",\"\",IF(AG316,INDEX(E_PurchPrec!U:U,MATCH(CONST_PurchPrecDefaultUsed&D316,E_PurchPrec!R:R,0)),CONST_NA))","v":""},{"$f":"IF($D316=\"\",\"\",SUM($G316)*SUM(INDEX(InputOutput!$AJ$71:$AJ$100,MATCH($D316,InputOutput!$D$71:$D$100,0))))","v":""},{"$f":"IF($D316=\"\",\"\",SUM($G316)*SUM(INDEX(InputOutput!$AL$71:$AL$100,MATCH($D316,InputOutput!$D$71:$D$100,0))))","v":""},"",{"$f":"IF(D316=\"\",\"\",SUM(I316)*SUM(AD306))","v":""},{"$f":"IF(D316=\"\",\"\",SUM(J316)*SUM(AD306))","v":""},"",{"$f":"IF(AG316,INDEX(E_PurchPrec!U:U,MATCH(CONST_CNTR_ElecEFMethod&D316,E_PurchPrec!R:R,0)),INDEX(D_Processes!T:T,MATCH(CONST_CNTR_ElecEFMethod&D316,D_Processes!R:R,0)))","v":""},{"$f":"IF(OR($D316=\"\",$AG316),\"\",SUM($G316)*SUM(INDEX(InputOutput!$AN$71:$AN$100,MATCH($D316,InputOutput!$D$71:$D$100,0))))","v":""},{"$f":"IF(D316=\"\",\"\",IF(AG316,INDEX(A_InstData!$F$101:$F$120,MATCH(D316,CNTR_List_ExistPurchPrecNames,0)),\"\"))","v":""},{"$f":"IF($D316=\"\",\"\",IFERROR(SUM($G316)*SUM(INDEX(F_Tools!$T$100:$T$129,MATCH($D316,F_Tools!$E$100:$E$129,0)))/K305,\"\"))","v":""},{"$f":"IF($D316=\"\",\"\",IFERROR(SUM($G316)*SUM(INDEX(F_Tools!$U$100:$U$129,MATCH($D316,F_Tools!$E$100:$E$129,0)))/K305,\"\"))","v":""},{"$nulls":8},{"$f":"CONST_PrecursorToGoodInput&D316&\"_\"&D303","v":"PrecToGood__"},null,{"$f":"SUMIF(D_Processes!R:R,AB316,D_Processes!K:K)","v":0},{"$f":"SUMIF(D_Processes!R:R,CONST_CNTR_TotProd&D316,D_Processes!L:L)","v":0},null,false]
[null,null,11,{"$f":"IF(D303=\"\",\"\",IF(COUNTIF(INDEX(CNTR_IOSupplyChain,MATCH(D303,CNTR_IOProcAndPrec,0),),C317)=0,\"\",INDEX(CNTR_IOProcAndPrec,MATCH(C317,INDEX(CNTR_IOSupplyChain,MATCH(D303,CNTR_IOProcAndPrec,0),),0))))","v":""},null,"",{"$f":"IF(D317=\"\",\"\",INDEX(CNTR_Matrix_Inv,MATCH(D303,CNTR_IOProcAndPrec,0),MATCH(D317,CNTR_IOProcAndPrec,0)))","v":""},{"$f":"IF(D317=\"\",\"\",IF(AG317,INDEX(E_PurchPrec!U:U,MATCH(CONST_PurchPrecDefaultUsed&D317,E_PurchPrec!R:R,0)),CONST_NA))","v":""},{"$f":"IF($D317=\"\",\"\",SUM($G317)*SUM(INDEX(InputOutput!$AJ$71:$AJ$100,MATCH($D317,InputOutput!$D$71:$D$100,0))))","v":""},{"$f":"IF($D317=\"\",\"\",SUM($G317)*SUM(INDEX(InputOutput!$AL$71:$AL$100,MATCH($D317,InputOutput!$D$71:$D$100,0))))","v":""},"",{"$f":"IF(D317=\"\",\"\",SUM(I317)*SUM(AD306))","v":""},{"$f":"IF(D317=\"\",\"\",SUM(J317)*SUM(AD306))","v":""},"",{"$f":"IF(AG317,INDEX(E_PurchPrec!U:U,MATCH(CONST_CNTR_ElecEFMethod&D317,E_PurchPrec!R:R,0)),INDEX(D_Processes!T:T,MATCH(CONST_CNTR_ElecEFMethod&D317,D_Processes!R:R,0)))","v":""},{"$f":"IF(OR($D317=\"\",$AG317),\"\",SUM($G317)*SUM(INDEX(InputOutput!$AN$71:$AN$100,MATCH($D317,InputOutput!$D$71:$D$100,0))))","v":""},{"$f":"IF(D317=\"\",\"\",IF(AG317,INDEX(A_InstData!$F$101:$F$120,MATCH(D317,CNTR_List_ExistPurchPrecNames,0)),\"\"))","v":""},{"$f":"IF($D317=\"\",\"\",IFERROR(SUM($G317)*SUM(INDEX(F_Tools!$T$100:$T$129,MATCH($D317,F_Tools!$E$100:$E$129,0)))/K305,\"\"))","v":""},{"$f":"IF($D317=\"\",\"\",IFERROR(SUM($G317)*SUM(INDEX(F_Tools!$U$100:$U$129,MATCH($D317,F_Tools!$E$100:$E$129,0)))/K305,\"\"))","v":""},{"$nulls":8},{"$f":"CONST_PrecursorToGoodInput&D317&\"_\"&D303","v":"PrecToGood__"},null,{"$f":"SUMIF(D_Processes!R:R,AB317,D_Processes!K:K)","v":0},{"$f":"SUMIF(D_Processes!R:R,CONST_CNTR_TotProd&D317,D_Processes!L:L)","v":0},null,false]
[null,null,12,{"$f":"IF(D303=\"\",\"\",IF(COUNTIF(INDEX(CNTR_IOSupplyChain,MATCH(D303,CNTR_IOProcAndPrec,0),),C318)=0,\"\",INDEX(CNTR_IOProcAndPrec,MATCH(C318,INDEX(CNTR_IOSupplyChain,MATCH(D303,CNTR_IOProcAndPrec,0),),0))))","v":""},null,"",{"$f":"IF(D318=\"\",\"\",INDEX(CNTR_Matrix_Inv,MATCH(D303,CNTR_IOProcAndPrec,0),MATCH(D318,CNTR_IOProcAndPrec,0)))","v":""},{"$f":"IF(D318=\"\",\"\",IF(AG318,INDEX(E_PurchPrec!U:U,MATCH(CONST_PurchPrecDefaultUsed&D318,E_PurchPrec!R:R,0)),CONST_NA))","v":""},{"$f":"IF($D318=\"\",\"\",SUM($G318)*SUM(INDEX(InputOutput!$AJ$71:$AJ$100,MATCH($D318,InputOutput!$D$71:$D$100,0))))","v":""},{"$f":"IF($D318=\"\",\"\",SUM($G318)*SUM(INDEX(InputOutput!$AL$71:$AL$100,MATCH($D318,InputOutput!$D$71:$D$100,0))))","v":""},"",{"$f":"IF(D318=\"\",\"\",SUM(I318)*SUM(AD306))","v":""},{"$f":"IF(D318=\"\",\"\",SUM(J318)*SUM(AD306))","v":""},"",{"$f":"IF(AG318,INDEX(E_PurchPrec!U:U,MATCH(CONST_CNTR_ElecEFMethod&D318,E_PurchPrec!R:R,0)),INDEX(D_Processes!T:T,MATCH(CONST_CNTR_ElecEFMethod&D318,D_Processes!R:R,0)))","v":""},{"$f":"IF(OR($D318=\"\",$AG318),\"\",SUM($G318)*SUM(INDEX(InputOutput!$AN$71:$AN$100,MATCH($D318,InputOutput!$D$71:$D$100,0))))","v":""},{"$f":"IF(D318=\"\",\"\",IF(AG318,INDEX(A_InstData!$F$101:$F$120,MATCH(D318,CNTR_List_ExistPurchPrecNames,0)),\"\"))","v":""},{"$f":"IF($D318=\"\",\"\",IFERROR(SUM($G318)*SUM(INDEX(F_Tools!$T$100:$T$129,MATCH($D318,F_Tools!$E$100:$E$129,0)))/K305,\"\"))","v":""},{"$f":"IF($D318=\"\",\"\",IFERROR(SUM($G318)*SUM(INDEX(F_Tools!$U$100:$U$129,MATCH($D318,F_Tools!$E$100:$E$129,0)))/K305,\"\"))","v":""},{"$nulls":8},{"$f":"CONST_PrecursorToGoodInput&D318&\"_\"&D303","v":"PrecToGood__"},null,{"$f":"SUMIF(D_Processes!R:R,AB318,D_Processes!K:K)","v":0},{"$f":"SUMIF(D_Processes!R:R,CONST_CNTR_TotProd&D318,D_Processes!L:L)","v":0},null,false]
[null,null,13,{"$f":"IF(D303=\"\",\"\",IF(COUNTIF(INDEX(CNTR_IOSupplyChain,MATCH(D303,CNTR_IOProcAndPrec,0),),C319)=0,\"\",INDEX(CNTR_IOProcAndPrec,MATCH(C319,INDEX(CNTR_IOSupplyChain,MATCH(D303,CNTR_IOProcAndPrec,0),),0))))","v":""},null,"",{"$f":"IF(D319=\"\",\"\",INDEX(CNTR_Matrix_Inv,MATCH(D303,CNTR_IOProcAndPrec,0),MATCH(D319,CNTR_IOProcAndPrec,0)))","v":""},{"$f":"IF(D319=\"\",\"\",IF(AG319,INDEX(E_PurchPrec!U:U,MATCH(CONST_PurchPrecDefaultUsed&D319,E_PurchPrec!R:R,0)),CONST_NA))","v":""},{"$f":"IF($D319=\"\",\"\",SUM($G319)*SUM(INDEX(InputOutput!$AJ$71:$AJ$100,MATCH($D319,InputOutput!$D$71:$D$100,0))))","v":""},{"$f":"IF($D319=\"\",\"\",SUM($G319)*SUM(INDEX(InputOutput!$AL$71:$AL$100,MATCH($D319,InputOutput!$D$71:$D$100,0))))","v":""},"",{"$f":"IF(D319=\"\",\"\",SUM(I319)*SUM(AD306))","v":""},{"$f":"IF(D319=\"\",\"\",SUM(J319)*SUM(AD306))","v":""},"",{"$f":"IF(AG319,INDEX(E_PurchPrec!U:U,MATCH(CONST_CNTR_ElecEFMethod&D319,E_PurchPrec!R:R,0)),INDEX(D_Processes!T:T,MATCH(CONST_CNTR_ElecEFMethod&D319,D_Processes!R:R,0)))","v":""},{"$f":"IF(OR($D319=\"\",$AG319),\"\",SUM($G319)*SUM(INDEX(InputOutput!$AN$71:$AN$100,MATCH($D319,InputOutput!$D$71:$D$100,0))))","v":""},{"$f":"IF(D319=\"\",\"\",IF(AG319,INDEX(A_InstData!$F$101:$F$120,MATCH(D319,CNTR_List_ExistPurchPrecNames,0)),\"\"))","v":""},{"$f":"IF($D319=\"\",\"\",IFERROR(SUM($G319)*SUM(INDEX(F_Tools!$T$100:$T$129,MATCH($D319,F_Tools!$E$100:$E$129,0)))/K305,\"\"))","v":""},{"$f":"IF($D319=\"\",\"\",IFERROR(SUM($G319)*SUM(INDEX(F_Tools!$U$100:$U$129,MATCH($D319,F_Tools!$E$100:$E$129,0)))/K305,\"\"))","v":""},{"$nulls":8},{"$f":"CONST_PrecursorToGoodInput&D319&\"_\"&D303","v":"PrecToGood__"},null,{"$f":"SUMIF(D_Processes!R:R,AB319,D_Processes!K:K)","v":0},{"$f":"SUMIF(D_Processes!R:R,CONST_CNTR_TotProd&D319,D_Processes!L:L)","v":0},null,false]
[null,null,14,{"$f":"IF(D303=\"\",\"\",IF(COUNTIF(INDEX(CNTR_IOSupplyChain,MATCH(D303,CNTR_IOProcAndPrec,0),),C320)=0,\"\",INDEX(CNTR_IOProcAndPrec,MATCH(C320,INDEX(CNTR_IOSupplyChain,MATCH(D303,CNTR_IOProcAndPrec,0),),0))))","v":""},null,"",{"$f":"IF(D320=\"\",\"\",INDEX(CNTR_Matrix_Inv,MATCH(D303,CNTR_IOProcAndPrec,0),MATCH(D320,CNTR_IOProcAndPrec,0)))","v":""},{"$f":"IF(D320=\"\",\"\",IF(AG320,INDEX(E_PurchPrec!U:U,MATCH(CONST_PurchPrecDefaultUsed&D320,E_PurchPrec!R:R,0)),CONST_NA))","v":""},{"$f":"IF($D320=\"\",\"\",SUM($G320)*SUM(INDEX(InputOutput!$AJ$71:$AJ$100,MATCH($D320,InputOutput!$D$71:$D$100,0))))","v":""},{"$f":"IF($D320=\"\",\"\",SUM($G320)*SUM(INDEX(InputOutput!$AL$71:$AL$100,MATCH($D320,InputOutput!$D$71:$D$100,0))))","v":""},"",{"$f":"IF(D320=\"\",\"\",SUM(I320)*SUM(AD306))","v":""},{"$f":"IF(D320=\"\",\"\",SUM(J320)*SUM(AD306))","v":""},"",{"$f":"IF(AG320,INDEX(E_PurchPrec!U:U,MATCH(CONST_CNTR_ElecEFMethod&D320,E_PurchPrec!R:R,0)),INDEX(D_Processes!T:T,MATCH(CONST_CNTR_ElecEFMethod&D320,D_Processes!R:R,0)))","v":""},{"$f":"IF(OR($D320=\"\",$AG320),\"\",SUM($G320)*SUM(INDEX(InputOutput!$AN$71:$AN$100,MATCH($D320,InputOutput!$D$71:$D$100,0))))","v":""},{"$f":"IF(D320=\"\",\"\",IF(AG320,INDEX(A_InstData!$F$101:$F$120,MATCH(D320,CNTR_List_ExistPurchPrecNames,0)),\"\"))","v":""},{"$f":"IF($D320=\"\",\"\",IFERROR(SUM($G320)*SUM(INDEX(F_Tools!$T$100:$T$129,MATCH($D320,F_Tools!$E$100:$E$129,0)))/K305,\"\"))","v":""},{"$f":"IF($D320=\"\",\"\",IFERROR(SUM($G320)*SUM(INDEX(F_Tools!$U$100:$U$129,MATCH($D320,F_Tools!$E$100:$E$129,0)))/K305,\"\"))","v":""},{"$nulls":8},{"$f":"CONST_PrecursorToGoodInput&D320&\"_\"&D303","v":"PrecToGood__"},null,{"$f":"SUMIF(D_Processes!R:R,AB320,D_Processes!K:K)","v":0},{"$f":"SUMIF(D_Processes!R:R,CONST_CNTR_TotProd&D320,D_Processes!L:L)","v":0},null,false]
[null,null,15,{"$f":"IF(D303=\"\",\"\",IF(COUNTIF(INDEX(CNTR_IOSupplyChain,MATCH(D303,CNTR_IOProcAndPrec,0),),C321)=0,\"\",INDEX(CNTR_IOProcAndPrec,MATCH(C321,INDEX(CNTR_IOSupplyChain,MATCH(D303,CNTR_IOProcAndPrec,0),),0))))","v":""},null,"",{"$f":"IF(D321=\"\",\"\",INDEX(CNTR_Matrix_Inv,MATCH(D303,CNTR_IOProcAndPrec,0),MATCH(D321,CNTR_IOProcAndPrec,0)))","v":""},{"$f":"IF(D321=\"\",\"\",IF(AG321,INDEX(E_PurchPrec!U:U,MATCH(CONST_PurchPrecDefaultUsed&D321,E_PurchPrec!R:R,0)),CONST_NA))","v":""},{"$f":"IF($D321=\"\",\"\",SUM($G321)*SUM(INDEX(InputOutput!$AJ$71:$AJ$100,MATCH($D321,InputOutput!$D$71:$D$100,0))))","v":""},{"$f":"IF($D321=\"\",\"\",SUM($G321)*SUM(INDEX(InputOutput!$AL$71:$AL$100,MATCH($D321,InputOutput!$D$71:$D$100,0))))","v":""},"",{"$f":"IF(D321=\"\",\"\",SUM(I321)*SUM(AD306))","v":""},{"$f":"IF(D321=\"\",\"\",SUM(J321)*SUM(AD306))","v":""},"",{"$f":"IF(AG321,INDEX(E_PurchPrec!U:U,MATCH(CONST_CNTR_ElecEFMethod&D321,E_PurchPrec!R:R,0)),INDEX(D_Processes!T:T,MATCH(CONST_CNTR_ElecEFMethod&D321,D_Processes!R:R,0)))","v":""},{"$f":"IF(OR($D321=\"\",$AG321),\"\",SUM($G321)*SUM(INDEX(InputOutput!$AN$71:$AN$100,MATCH($D321,InputOutput!$D$71:$D$100,0))))","v":""},{"$f":"IF(D321=\"\",\"\",IF(AG321,INDEX(A_InstData!$F$101:$F$120,MATCH(D321,CNTR_List_ExistPurchPrecNames,0)),\"\"))","v":""},{"$f":"IF($D321=\"\",\"\",IFERROR(SUM($G321)*SUM(INDEX(F_Tools!$T$100:$T$129,MATCH($D321,F_Tools!$E$100:$E$129,0)))/K305,\"\"))","v":""},{"$f":"IF($D321=\"\",\"\",IFERROR(SUM($G321)*SUM(INDEX(F_Tools!$U$100:$U$129,MATCH($D321,F_Tools!$E$100:$E$129,0)))/K305,\"\"))","v":""},{"$nulls":8},{"$f":"CONST_PrecursorToGoodInput&D321&\"_\"&D303","v":"PrecToGood__"},null,{"$f":"SUMIF(D_Processes!R:R,AB321,D_Processes!K:K)","v":0},{"$f":"SUMIF(D_Processes!R:R,CONST_CNTR_TotProd&D321,D_Processes!L:L)","v":0},null,false]
[null,null,16,{"$f":"IF(D303=\"\",\"\",IF(COUNTIF(INDEX(CNTR_IOSupplyChain,MATCH(D303,CNTR_IOProcAndPrec,0),),C322)=0,\"\",INDEX(CNTR_IOProcAndPrec,MATCH(C322,INDEX(CNTR_IOSupplyChain,MATCH(D303,CNTR_IOProcAndPrec,0),),0))))","v":""},null,"",{"$f":"IF(D322=\"\",\"\",INDEX(CNTR_Matrix_Inv,MATCH(D303,CNTR_IOProcAndPrec,0),MATCH(D322,CNTR_IOProcAndPrec,0)))","v":""},{"$f":"IF(D322=\"\",\"\",IF(AG322,INDEX(E_PurchPrec!U:U,MATCH(CONST_PurchPrecDefaultUsed&D322,E_PurchPrec!R:R,0)),CONST_NA))","v":""},{"$f":"IF($D322=\"\",\"\",SUM($G322)*SUM(INDEX(InputOutput!$AJ$71:$AJ$100,MATCH($D322,InputOutput!$D$71:$D$100,0))))","v":""},{"$f":"IF($D322=\"\",\"\",SUM($G322)*SUM(INDEX(InputOutput!$AL$71:$AL$100,MATCH($D322,InputOutput!$D$71:$D$100,0))))","v":""},"",{"$f":"IF(D322=\"\",\"\",SUM(I322)*SUM(AD306))","v":""},{"$f":"IF(D322=\"\",\"\",SUM(J322)*SUM(AD306))","v":""},"",{"$f":"IF(AG322,INDEX(E_PurchPrec!U:U,MATCH(CONST_CNTR_ElecEFMethod&D322,E_PurchPrec!R:R,0)),INDEX(D_Processes!T:T,MATCH(CONST_CNTR_ElecEFMethod&D322,D_Processes!R:R,0)))","v":""},{"$f":"IF(OR($D322=\"\",$AG322),\"\",SUM($G322)*SUM(INDEX(InputOutput!$AN$71:$AN$100,MATCH($D322,InputOutput!$D$71:$D$100,0))))","v":""},{"$f":"IF(D322=\"\",\"\",IF(AG322,INDEX(A_InstData!$F$101:$F$120,MATCH(D322,CNTR_List_ExistPurchPrecNames,0)),\"\"))","v":""},{"$f":"IF($D322=\"\",\"\",IFERROR(SUM($G322)*SUM(INDEX(F_Tools!$T$100:$T$129,MATCH($D322,F_Tools!$E$100:$E$129,0)))/K305,\"\"))","v":""},{"$f":"IF($D322=\"\",\"\",IFERROR(SUM($G322)*SUM(INDEX(F_Tools!$U$100:$U$129,MATCH($D322,F_Tools!$E$100:$E$129,0)))/K305,\"\"))","v":""},{"$nulls":8},{"$f":"CONST_PrecursorToGoodInput&D322&\"_\"&D303","v":"PrecToGood__"},null,{"$f":"SUMIF(D_Processes!R:R,AB322,D_Processes!K:K)","v":0},{"$f":"SUMIF(D_Processes!R:R,CONST_CNTR_TotProd&D322,D_Processes!L:L)","v":0},null,false]
[null,null,17,{"$f":"IF(D303=\"\",\"\",IF(COUNTIF(INDEX(CNTR_IOSupplyChain,MATCH(D303,CNTR_IOProcAndPrec,0),),C323)=0,\"\",INDEX(CNTR_IOProcAndPrec,MATCH(C323,INDEX(CNTR_IOSupplyChain,MATCH(D303,CNTR_IOProcAndPrec,0),),0))))","v":""},null,"",{"$f":"IF(D323=\"\",\"\",INDEX(CNTR_Matrix_Inv,MATCH(D303,CNTR_IOProcAndPrec,0),MATCH(D323,CNTR_IOProcAndPrec,0)))","v":""},{"$f":"IF(D323=\"\",\"\",IF(AG323,INDEX(E_PurchPrec!U:U,MATCH(CONST_PurchPrecDefaultUsed&D323,E_PurchPrec!R:R,0)),CONST_NA))","v":""},{"$f":"IF($D323=\"\",\"\",SUM($G323)*SUM(INDEX(InputOutput!$AJ$71:$AJ$100,MATCH($D323,InputOutput!$D$71:$D$100,0))))","v":""},{"$f":"IF($D323=\"\",\"\",SUM($G323)*SUM(INDEX(InputOutput!$AL$71:$AL$100,MATCH($D323,InputOutput!$D$71:$D$100,0))))","v":""},"",{"$f":"IF(D323=\"\",\"\",SUM(I323)*SUM(AD306))","v":""},{"$f":"IF(D323=\"\",\"\",SUM(J323)*SUM(AD306))","v":""},"",{"$f":"IF(AG323,INDEX(E_PurchPrec!U:U,MATCH(CONST_CNTR_ElecEFMethod&D323,E_PurchPrec!R:R,0)),INDEX(D_Processes!T:T,MATCH(CONST_CNTR_ElecEFMethod&D323,D_Processes!R:R,0)))","v":""},{"$f":"IF(OR($D323=\"\",$AG323),\"\",SUM($G323)*SUM(INDEX(InputOutput!$AN$71:$AN$100,MATCH($D323,InputOutput!$D$71:$D$100,0))))","v":""},{"$f":"IF(D323=\"\",\"\",IF(AG323,INDEX(A_InstData!$F$101:$F$120,MATCH(D323,CNTR_List_ExistPurchPrecNames,0)),\"\"))","v":""},{"$f":"IF($D323=\"\",\"\",IFERROR(SUM($G323)*SUM(INDEX(F_Tools!$T$100:$T$129,MATCH($D323,F_Tools!$E$100:$E$129,0)))/K305,\"\"))","v":""},{"$f":"IF($D323=\"\",\"\",IFERROR(SUM($G323)*SUM(INDEX(F_Tools!$U$100:$U$129,MATCH($D323,F_Tools!$E$100:$E$129,0)))/K305,\"\"))","v":""},{"$nulls":8},{"$f":"CONST_PrecursorToGoodInput&D323&\"_\"&D303","v":"PrecToGood__"},null,{"$f":"SUMIF(D_Processes!R:R,AB323,D_Processes!K:K)","v":0},{"$f":"SUMIF(D_Processes!R:R,CONST_CNTR_TotProd&D323,D_Processes!L:L)","v":0},null,false]
[null,null,18,{"$f":"IF(D303=\"\",\"\",IF(COUNTIF(INDEX(CNTR_IOSupplyChain,MATCH(D303,CNTR_IOProcAndPrec,0),),C324)=0,\"\",INDEX(CNTR_IOProcAndPrec,MATCH(C324,INDEX(CNTR_IOSupplyChain,MATCH(D303,CNTR_IOProcAndPrec,0),),0))))","v":""},null,"",{"$f":"IF(D324=\"\",\"\",INDEX(CNTR_Matrix_Inv,MATCH(D303,CNTR_IOProcAndPrec,0),MATCH(D324,CNTR_IOProcAndPrec,0)))","v":""},{"$f":"IF(D324=\"\",\"\",IF(AG324,INDEX(E_PurchPrec!U:U,MATCH(CONST_PurchPrecDefaultUsed&D324,E_PurchPrec!R:R,0)),CONST_NA))","v":""},{"$f":"IF($D324=\"\",\"\",SUM($G324)*SUM(INDEX(InputOutput!$AJ$71:$AJ$100,MATCH($D324,InputOutput!$D$71:$D$100,0))))","v":""},{"$f":"IF($D324=\"\",\"\",SUM($G324)*SUM(INDEX(InputOutput!$AL$71:$AL$100,MATCH($D324,InputOutput!$D$71:$D$100,0))))","v":""},"",{"$f":"IF(D324=\"\",\"\",SUM(I324)*SUM(AD306))","v":""},{"$f":"IF(D324=\"\",\"\",SUM(J324)*SUM(AD306))","v":""},"",{"$f":"IF(AG324,INDEX(E_PurchPrec!U:U,MATCH(CONST_CNTR_ElecEFMethod&D324,E_PurchPrec!R:R,0)),INDEX(D_Processes!T:T,MATCH(CONST_CNTR_ElecEFMethod&D324,D_Processes!R:R,0)))","v":""},{"$f":"IF(OR($D324=\"\",$AG324),\"\",SUM($G324)*SUM(INDEX(InputOutput!$AN$71:$AN$100,MATCH($D324,InputOutput!$D$71:$D$100,0))))","v":""},{"$f":"IF(D324=\"\",\"\",IF(AG324,INDEX(A_InstData!$F$101:$F$120,MATCH(D324,CNTR_List_ExistPurchPrecNames,0)),\"\"))","v":""},{"$f":"IF($D324=\"\",\"\",IFERROR(SUM($G324)*SUM(INDEX(F_Tools!$T$100:$T$129,MATCH($D324,F_Tools!$E$100:$E$129,0)))/K305,\"\"))","v":""},{"$f":"IF($D324=\"\",\"\",IFERROR(SUM($G324)*SUM(INDEX(F_Tools!$U$100:$U$129,MATCH($D324,F_Tools!$E$100:$E$129,0)))/K305,\"\"))","v":""},{"$nulls":8},{"$f":"CONST_PrecursorToGoodInput&D324&\"_\"&D303","v":"PrecToGood__"},null,{"$f":"SUMIF(D_Processes!R:R,AB324,D_Processes!K:K)","v":0},{"$f":"SUMIF(D_Processes!R:R,CONST_CNTR_TotProd&D324,D_Processes!L:L)","v":0},null,false]
[null,null,19,{"$f":"IF(D303=\"\",\"\",IF(COUNTIF(INDEX(CNTR_IOSupplyChain,MATCH(D303,CNTR_IOProcAndPrec,0),),C325)=0,\"\",INDEX(CNTR_IOProcAndPrec,MATCH(C325,INDEX(CNTR_IOSupplyChain,MATCH(D303,CNTR_IOProcAndPrec,0),),0))))","v":""},null,"",{"$f":"IF(D325=\"\",\"\",INDEX(CNTR_Matrix_Inv,MATCH(D303,CNTR_IOProcAndPrec,0),MATCH(D325,CNTR_IOProcAndPrec,0)))","v":""},{"$f":"IF(D325=\"\",\"\",IF(AG325,INDEX(E_PurchPrec!U:U,MATCH(CONST_PurchPrecDefaultUsed&D325,E_PurchPrec!R:R,0)),CONST_NA))","v":""},{"$f":"IF($D325=\"\",\"\",SUM($G325)*SUM(INDEX(InputOutput!$AJ$71:$AJ$100,MATCH($D325,InputOutput!$D$71:$D$100,0))))","v":""},{"$f":"IF($D325=\"\",\"\",SUM($G325)*SUM(INDEX(InputOutput!$AL$71:$AL$100,MATCH($D325,InputOutput!$D$71:$D$100,0))))","v":""},"",{"$f":"IF(D325=\"\",\"\",SUM(I325)*SUM(AD306))","v":""},{"$f":"IF(D325=\"\",\"\",SUM(J325)*SUM(AD306))","v":""},"",{"$f":"IF(AG325,INDEX(E_PurchPrec!U:U,MATCH(CONST_CNTR_ElecEFMethod&D325,E_PurchPrec!R:R,0)),INDEX(D_Processes!T:T,MATCH(CONST_CNTR_ElecEFMethod&D325,D_Processes!R:R,0)))","v":""},{"$f":"IF(OR($D325=\"\",$AG325),\"\",SUM($G325)*SUM(INDEX(InputOutput!$AN$71:$AN$100,MATCH($D325,InputOutput!$D$71:$D$100,0))))","v":""},{"$f":"IF(D325=\"\",\"\",IF(AG325,INDEX(A_InstData!$F$101:$F$120,MATCH(D325,CNTR_List_ExistPurchPrecNames,0)),\"\"))","v":""},{"$f":"IF($D325=\"\",\"\",IFERROR(SUM($G325)*SUM(INDEX(F_Tools!$T$100:$T$129,MATCH($D325,F_Tools!$E$100:$E$129,0)))/K305,\"\"))","v":""},{"$f":"IF($D325=\"\",\"\",IFERROR(SUM($G325)*SUM(INDEX(F_Tools!$U$100:$U$129,MATCH($D325,F_Tools!$E$100:$E$129,0)))/K305,\"\"))","v":""},{"$nulls":8},{"$f":"CONST_PrecursorToGoodInput&D325&\"_\"&D303","v":"PrecToGood__"},null,{"$f":"SUMIF(D_Processes!R:R,AB325,D_Processes!K:K)","v":0},{"$f":"SUMIF(D_Processes!R:R,CONST_CNTR_TotProd&D325,D_Processes!L:L)","v":0},null,false]
[null,null,20,{"$f":"IF(D303=\"\",\"\",IF(COUNTIF(INDEX(CNTR_IOSupplyChain,MATCH(D303,CNTR_IOProcAndPrec,0),),C326)=0,\"\",INDEX(CNTR_IOProcAndPrec,MATCH(C326,INDEX(CNTR_IOSupplyChain,MATCH(D303,CNTR_IOProcAndPrec,0),),0))))","v":""},null,"",{"$f":"IF(D326=\"\",\"\",INDEX(CNTR_Matrix_Inv,MATCH(D303,CNTR_IOProcAndPrec,0),MATCH(D326,CNTR_IOProcAndPrec,0)))","v":""},{"$f":"IF(D326=\"\",\"\",IF(AG326,INDEX(E_PurchPrec!U:U,MATCH(CONST_PurchPrecDefaultUsed&D326,E_PurchPrec!R:R,0)),CONST_NA))","v":""},{"$f":"IF($D326=\"\",\"\",SUM($G326)*SUM(INDEX(InputOutput!$AJ$71:$AJ$100,MATCH($D326,InputOutput!$D$71:$D$100,0))))","v":""},{"$f":"IF($D326=\"\",\"\",SUM($G326)*SUM(INDEX(InputOutput!$AL$71:$AL$100,MATCH($D326,InputOutput!$D$71:$D$100,0))))","v":""},"",{"$f":"IF(D326=\"\",\"\",SUM(I326)*SUM(AD306))","v":""},{"$f":"IF(D326=\"\",\"\",SUM(J326)*SUM(AD306))","v":""},"",{"$f":"IF(AG326,INDEX(E_PurchPrec!U:U,MATCH(CONST_CNTR_ElecEFMethod&D326,E_PurchPrec!R:R,0)),INDEX(D_Processes!T:T,MATCH(CONST_CNTR_ElecEFMethod&D326,D_Processes!R:R,0)))","v":""},{"$f":"IF(OR($D326=\"\",$AG326),\"\",SUM($G326)*SUM(INDEX(InputOutput!$AN$71:$AN$100,MATCH($D326,InputOutput!$D$71:$D$100,0))))","v":""},{"$f":"IF(D326=\"\",\"\",IF(AG326,INDEX(A_InstData!$F$101:$F$120,MATCH(D326,CNTR_List_ExistPurchPrecNames,0)),\"\"))","v":""},{"$f":"IF($D326=\"\",\"\",IFERROR(SUM($G326)*SUM(INDEX(F_Tools!$T$100:$T$129,MATCH($D326,F_Tools!$E$100:$E$129,0)))/K305,\"\"))","v":""},{"$f":"IF($D326=\"\",\"\",IFERROR(SUM($G326)*SUM(INDEX(F_Tools!$U$100:$U$129,MATCH($D326,F_Tools!$E$100:$E$129,0)))/K305,\"\"))","v":""},{"$nulls":8},{"$f":"CONST_PrecursorToGoodInput&D326&\"_\"&D303","v":"PrecToGood__"},null,{"$f":"SUMIF(D_Processes!R:R,AB326,D_Processes!K:K)","v":0},{"$f":"SUMIF(D_Processes!R:R,CONST_CNTR_TotProd&D326,D_Processes!L:L)","v":0},null,false]
[null,null,21,{"$f":"IF(D303=\"\",\"\",IF(COUNTIF(INDEX(CNTR_IOSupplyChain,MATCH(D303,CNTR_IOProcAndPrec,0),),C327)=0,\"\",INDEX(CNTR_IOProcAndPrec,MATCH(C327,INDEX(CNTR_IOSupplyChain,MATCH(D303,CNTR_IOProcAndPrec,0),),0))))","v":""},null,"",{"$f":"IF(D327=\"\",\"\",INDEX(CNTR_Matrix_Inv,MATCH(D303,CNTR_IOProcAndPrec,0),MATCH(D327,CNTR_IOProcAndPrec,0)))","v":""},{"$f":"IF(D327=\"\",\"\",IF(AG327,INDEX(E_PurchPrec!U:U,MATCH(CONST_PurchPrecDefaultUsed&D327,E_PurchPrec!R:R,0)),CONST_NA))","v":""},{"$f":"IF($D327=\"\",\"\",SUM($G327)*SUM(INDEX(InputOutput!$AJ$71:$AJ$100,MATCH($D327,InputOutput!$D$71:$D$100,0))))","v":""},{"$f":"IF($D327=\"\",\"\",SUM($G327)*SUM(INDEX(InputOutput!$AL$71:$AL$100,MATCH($D327,InputOutput!$D$71:$D$100,0))))","v":""},"",{"$f":"IF(D327=\"\",\"\",SUM(I327)*SUM(AD306))","v":""},{"$f":"IF(D327=\"\",\"\",SUM(J327)*SUM(AD306))","v":""},"",{"$f":"IF(AG327,INDEX(E_PurchPrec!U:U,MATCH(CONST_CNTR_ElecEFMethod&D327,E_PurchPrec!R:R,0)),INDEX(D_Processes!T:T,MATCH(CONST_CNTR_ElecEFMethod&D327,D_Processes!R:R,0)))","v":""},{"$f":"IF(OR($D327=\"\",$AG327),\"\",SUM($G327)*SUM(INDEX(InputOutput!$AN$71:$AN$100,MATCH($D327,InputOutput!$D$71:$D$100,0))))","v":""},{"$f":"IF(D327=\"\",\"\",IF(AG327,INDEX(A_InstData!$F$101:$F$120,MATCH(D327,CNTR_List_ExistPurchPrecNames,0)),\"\"))","v":""},{"$f":"IF($D327=\"\",\"\",IFERROR(SUM($G327)*SUM(INDEX(F_Tools!$T$100:$T$129,MATCH($D327,F_Tools!$E$100:$E$129,0)))/K305,\"\"))","v":""},{"$f":"IF($D327=\"\",\"\",IFERROR(SUM($G327)*SUM(INDEX(F_Tools!$U$100:$U$129,MATCH($D327,F_Tools!$E$100:$E$129,0)))/K305,\"\"))","v":""},{"$nulls":8},{"$f":"CONST_PrecursorToGoodInput&D327&\"_\"&D303","v":"PrecToGood__"},null,{"$f":"SUMIF(D_Processes!R:R,AB327,D_Processes!K:K)","v":0},{"$f":"SUMIF(D_Processes!R:R,CONST_CNTR_TotProd&D327,D_Processes!L:L)","v":0},null,false]
[null,null,22,{"$f":"IF(D303=\"\",\"\",IF(COUNTIF(INDEX(CNTR_IOSupplyChain,MATCH(D303,CNTR_IOProcAndPrec,0),),C328)=0,\"\",INDEX(CNTR_IOProcAndPrec,MATCH(C328,INDEX(CNTR_IOSupplyChain,MATCH(D303,CNTR_IOProcAndPrec,0),),0))))","v":""},null,"",{"$f":"IF(D328=\"\",\"\",INDEX(CNTR_Matrix_Inv,MATCH(D303,CNTR_IOProcAndPrec,0),MATCH(D328,CNTR_IOProcAndPrec,0)))","v":""},{"$f":"IF(D328=\"\",\"\",IF(AG328,INDEX(E_PurchPrec!U:U,MATCH(CONST_PurchPrecDefaultUsed&D328,E_PurchPrec!R:R,0)),CONST_NA))","v":""},{"$f":"IF($D328=\"\",\"\",SUM($G328)*SUM(INDEX(InputOutput!$AJ$71:$AJ$100,MATCH($D328,InputOutput!$D$71:$D$100,0))))","v":""},{"$f":"IF($D328=\"\",\"\",SUM($G328)*SUM(INDEX(InputOutput!$AL$71:$AL$100,MATCH($D328,InputOutput!$D$71:$D$100,0))))","v":""},"",{"$f":"IF(D328=\"\",\"\",SUM(I328)*SUM(AD306))","v":""},{"$f":"IF(D328=\"\",\"\",SUM(J328)*SUM(AD306))","v":""},"",{"$f":"IF(AG328,INDEX(E_PurchPrec!U:U,MATCH(CONST_CNTR_ElecEFMethod&D328,E_PurchPrec!R:R,0)),INDEX(D_Processes!T:T,MATCH(CONST_CNTR_ElecEFMethod&D328,D_Processes!R:R,0)))","v":""},{"$f":"IF(OR($D328=\"\",$AG328),\"\",SUM($G328)*SUM(INDEX(InputOutput!$AN$71:$AN$100,MATCH($D328,InputOutput!$D$71:$D$100,0))))","v":""},{"$f":"IF(D328=\"\",\"\",IF(AG328,INDEX(A_InstData!$F$101:$F$120,MATCH(D328,CNTR_List_ExistPurchPrecNames,0)),\"\"))","v":""},{"$f":"IF($D328=\"\",\"\",IFERROR(SUM($G328)*SUM(INDEX(F_Tools!$T$100:$T$129,MATCH($D328,F_Tools!$E$100:$E$129,0)))/K305,\"\"))","v":""},{"$f":"IF($D328=\"\",\"\",IFERROR(SUM($G328)*SUM(INDEX(F_Tools!$U$100:$U$129,MATCH($D328,F_Tools!$E$100:$E$129,0)))/K305,\"\"))","v":""},{"$nulls":8},{"$f":"CONST_PrecursorToGoodInput&D328&\"_\"&D303","v":"PrecToGood__"},null,{"$f":"SUMIF(D_Processes!R:R,AB328,D_Processes!K:K)","v":0},{"$f":"SUMIF(D_Processes!R:R,CONST_CNTR_TotProd&D328,D_Processes!L:L)","v":0},null,false]
[null,null,23,{"$f":"IF(D303=\"\",\"\",IF(COUNTIF(INDEX(CNTR_IOSupplyChain,MATCH(D303,CNTR_IOProcAndPrec,0),),C329)=0,\"\",INDEX(CNTR_IOProcAndPrec,MATCH(C329,INDEX(CNTR_IOSupplyChain,MATCH(D303,CNTR_IOProcAndPrec,0),),0))))","v":""},null,"",{"$f":"IF(D329=\"\",\"\",INDEX(CNTR_Matrix_Inv,MATCH(D303,CNTR_IOProcAndPrec,0),MATCH(D329,CNTR_IOProcAndPrec,0)))","v":""},{"$f":"IF(D329=\"\",\"\",IF(AG329,INDEX(E_PurchPrec!U:U,MATCH(CONST_PurchPrecDefaultUsed&D329,E_PurchPrec!R:R,0)),CONST_NA))","v":""},{"$f":"IF($D329=\"\",\"\",SUM($G329)*SUM(INDEX(InputOutput!$AJ$71:$AJ$100,MATCH($D329,InputOutput!$D$71:$D$100,0))))","v":""},{"$f":"IF($D329=\"\",\"\",SUM($G329)*SUM(INDEX(InputOutput!$AL$71:$AL$100,MATCH($D329,InputOutput!$D$71:$D$100,0))))","v":""},"",{"$f":"IF(D329=\"\",\"\",SUM(I329)*SUM(AD306))","v":""},{"$f":"IF(D329=\"\",\"\",SUM(J329)*SUM(AD306))","v":""},"",{"$f":"IF(AG329,INDEX(E_PurchPrec!U:U,MATCH(CONST_CNTR_ElecEFMethod&D329,E_PurchPrec!R:R,0)),INDEX(D_Processes!T:T,MATCH(CONST_CNTR_ElecEFMethod&D329,D_Processes!R:R,0)))","v":""},{"$f":"IF(OR($D329=\"\",$AG329),\"\",SUM($G329)*SUM(INDEX(InputOutput!$AN$71:$AN$100,MATCH($D329,InputOutput!$D$71:$D$100,0))))","v":""},{"$f":"IF(D329=\"\",\"\",IF(AG329,INDEX(A_InstData!$F$101:$F$120,MATCH(D329,CNTR_List_ExistPurchPrecNames,0)),\"\"))","v":""},{"$f":"IF($D329=\"\",\"\",IFERROR(SUM($G329)*SUM(INDEX(F_Tools!$T$100:$T$129,MATCH($D329,F_Tools!$E$100:$E$129,0)))/K305,\"\"))","v":""},{"$f":"IF($D329=\"\",\"\",IFERROR(SUM($G329)*SUM(INDEX(F_Tools!$U$100:$U$129,MATCH($D329,F_Tools!$E$100:$E$129,0)))/K305,\"\"))","v":""},{"$nulls":8},{"$f":"CONST_PrecursorToGoodInput&D329&\"_\"&D303","v":"PrecToGood__"},null,{"$f":"SUMIF(D_Processes!R:R,AB329,D_Processes!K:K)","v":0},{"$f":"SUMIF(D_Processes!R:R,CONST_CNTR_TotProd&D329,D_Processes!L:L)","v":0},null,false]
[null,null,24,{"$f":"IF(D303=\"\",\"\",IF(COUNTIF(INDEX(CNTR_IOSupplyChain,MATCH(D303,CNTR_IOProcAndPrec,0),),C330)=0,\"\",INDEX(CNTR_IOProcAndPrec,MATCH(C330,INDEX(CNTR_IOSupplyChain,MATCH(D303,CNTR_IOProcAndPrec,0),),0))))","v":""},null,"",{"$f":"IF(D330=\"\",\"\",INDEX(CNTR_Matrix_Inv,MATCH(D303,CNTR_IOProcAndPrec,0),MATCH(D330,CNTR_IOProcAndPrec,0)))","v":""},{"$f":"IF(D330=\"\",\"\",IF(AG330,INDEX(E_PurchPrec!U:U,MATCH(CONST_PurchPrecDefaultUsed&D330,E_PurchPrec!R:R,0)),CONST_NA))","v":""},{"$f":"IF($D330=\"\",\"\",SUM($G330)*SUM(INDEX(InputOutput!$AJ$71:$AJ$100,MATCH($D330,InputOutput!$D$71:$D$100,0))))","v":""},{"$f":"IF($D330=\"\",\"\",SUM($G330)*SUM(INDEX(InputOutput!$AL$71:$AL$100,MATCH($D330,InputOutput!$D$71:$D$100,0))))","v":""},"",{"$f":"IF(D330=\"\",\"\",SUM(I330)*SUM(AD306))","v":""},{"$f":"IF(D330=\"\",\"\",SUM(J330)*SUM(AD306))","v":""},"",{"$f":"IF(AG330,INDEX(E_PurchPrec!U:U,MATCH(CONST_CNTR_ElecEFMethod&D330,E_PurchPrec!R:R,0)),INDEX(D_Processes!T:T,MATCH(CONST_CNTR_ElecEFMethod&D330,D_Processes!R:R,0)))","v":""},{"$f":"IF(OR($D330=\"\",$AG330),\"\",SUM($G330)*SUM(INDEX(InputOutput!$AN$71:$AN$100,MATCH($D330,InputOutput!$D$71:$D$100,0))))","v":""},{"$f":"IF(D330=\"\",\"\",IF(AG330,INDEX(A_InstData!$F$101:$F$120,MATCH(D330,CNTR_List_ExistPurchPrecNames,0)),\"\"))","v":""},{"$f":"IF($D330=\"\",\"\",IFERROR(SUM($G330)*SUM(INDEX(F_Tools!$T$100:$T$129,MATCH($D330,F_Tools!$E$100:$E$129,0)))/K305,\"\"))","v":""},{"$f":"IF($D330=\"\",\"\",IFERROR(SUM($G330)*SUM(INDEX(F_Tools!$U$100:$U$129,MATCH($D330,F_Tools!$E$100:$E$129,0)))/K305,\"\"))","v":""},{"$nulls":8},{"$f":"CONST_PrecursorToGoodInput&D330&\"_\"&D303","v":"PrecToGood__"},null,{"$f":"SUMIF(D_Processes!R:R,AB330,D_Processes!K:K)","v":0},{"$f":"SUMIF(D_Processes!R:R,CONST_CNTR_TotProd&D330,D_Processes!L:L)","v":0},null,false]
[null,null,25,{"$f":"IF(D303=\"\",\"\",IF(COUNTIF(INDEX(CNTR_IOSupplyChain,MATCH(D303,CNTR_IOProcAndPrec,0),),C331)=0,\"\",INDEX(CNTR_IOProcAndPrec,MATCH(C331,INDEX(CNTR_IOSupplyChain,MATCH(D303,CNTR_IOProcAndPrec,0),),0))))","v":""},null,"",{"$f":"IF(D331=\"\",\"\",INDEX(CNTR_Matrix_Inv,MATCH(D303,CNTR_IOProcAndPrec,0),MATCH(D331,CNTR_IOProcAndPrec,0)))","v":""},{"$f":"IF(D331=\"\",\"\",IF(AG331,INDEX(E_PurchPrec!U:U,MATCH(CONST_PurchPrecDefaultUsed&D331,E_PurchPrec!R:R,0)),CONST_NA))","v":""},{"$f":"IF($D331=\"\",\"\",SUM($G331)*SUM(INDEX(InputOutput!$AJ$71:$AJ$100,MATCH($D331,InputOutput!$D$71:$D$100,0))))","v":""},{"$f":"IF($D331=\"\",\"\",SUM($G331)*SUM(INDEX(InputOutput!$AL$71:$AL$100,MATCH($D331,InputOutput!$D$71:$D$100,0))))","v":""},"",{"$f":"IF(D331=\"\",\"\",SUM(I331)*SUM(AD306))","v":""},{"$f":"IF(D331=\"\",\"\",SUM(J331)*SUM(AD306))","v":""},"",{"$f":"IF(AG331,INDEX(E_PurchPrec!U:U,MATCH(CONST_CNTR_ElecEFMethod&D331,E_PurchPrec!R:R,0)),INDEX(D_Processes!T:T,MATCH(CONST_CNTR_ElecEFMethod&D331,D_Processes!R:R,0)))","v":""},{"$f":"IF(OR($D331=\"\",$AG331),\"\",SUM($G331)*SUM(INDEX(InputOutput!$AN$71:$AN$100,MATCH($D331,InputOutput!$D$71:$D$100,0))))","v":""},{"$f":"IF(D331=\"\",\"\",IF(AG331,INDEX(A_InstData!$F$101:$F$120,MATCH(D331,CNTR_List_ExistPurchPrecNames,0)),\"\"))","v":""},{"$f":"IF($D331=\"\",\"\",IFERROR(SUM($G331)*SUM(INDEX(F_Tools!$T$100:$T$129,MATCH($D331,F_Tools!$E$100:$E$129,0)))/K305,\"\"))","v":""},{"$f":"IF($D331=\"\",\"\",IFERROR(SUM($G331)*SUM(INDEX(F_Tools!$U$100:$U$129,MATCH($D331,F_Tools!$E$100:$E$129,0)))/K305,\"\"))","v":""},{"$nulls":8},{"$f":"CONST_PrecursorToGoodInput&D331&\"_\"&D303","v":"PrecToGood__"},null,{"$f":"SUMIF(D_Processes!R:R,AB331,D_Processes!K:K)","v":0},{"$f":"SUMIF(D_Processes!R:R,CONST_CNTR_TotProd&D331,D_Processes!L:L)","v":0},null,false]
[null,null,26,{"$f":"IF(D303=\"\",\"\",IF(COUNTIF(INDEX(CNTR_IOSupplyChain,MATCH(D303,CNTR_IOProcAndPrec,0),),C332)=0,\"\",INDEX(CNTR_IOProcAndPrec,MATCH(C332,INDEX(CNTR_IOSupplyChain,MATCH(D303,CNTR_IOProcAndPrec,0),),0))))","v":""},null,"",{"$f":"IF(D332=\"\",\"\",INDEX(CNTR_Matrix_Inv,MATCH(D303,CNTR_IOProcAndPrec,0),MATCH(D332,CNTR_IOProcAndPrec,0)))","v":""},{"$f":"IF(D332=\"\",\"\",IF(AG332,INDEX(E_PurchPrec!U:U,MATCH(CONST_PurchPrecDefaultUsed&D332,E_PurchPrec!R:R,0)),CONST_NA))","v":""},{"$f":"IF($D332=\"\",\"\",SUM($G332)*SUM(INDEX(InputOutput!$AJ$71:$AJ$100,MATCH($D332,InputOutput!$D$71:$D$100,0))))","v":""},{"$f":"IF($D332=\"\",\"\",SUM($G332)*SUM(INDEX(InputOutput!$AL$71:$AL$100,MATCH($D332,InputOutput!$D$71:$D$100,0))))","v":""},"",{"$f":"IF(D332=\"\",\"\",SUM(I332)*SUM(AD306))","v":""},{"$f":"IF(D332=\"\",\"\",SUM(J332)*SUM(AD306))","v":""},"",{"$f":"IF(AG332,INDEX(E_PurchPrec!U:U,MATCH(CONST_CNTR_ElecEFMethod&D332,E_PurchPrec!R:R,0)),INDEX(D_Processes!T:T,MATCH(CONST_CNTR_ElecEFMethod&D332,D_Processes!R:R,0)))","v":""},{"$f":"IF(OR($D332=\"\",$AG332),\"\",SUM($G332)*SUM(INDEX(InputOutput!$AN$71:$AN$100,MATCH($D332,InputOutput!$D$71:$D$100,0))))","v":""},{"$f":"IF(D332=\"\",\"\",IF(AG332,INDEX(A_InstData!$F$101:$F$120,MATCH(D332,CNTR_List_ExistPurchPrecNames,0)),\"\"))","v":""},{"$f":"IF($D332=\"\",\"\",IFERROR(SUM($G332)*SUM(INDEX(F_Tools!$T$100:$T$129,MATCH($D332,F_Tools!$E$100:$E$129,0)))/K305,\"\"))","v":""},{"$f":"IF($D332=\"\",\"\",IFERROR(SUM($G332)*SUM(INDEX(F_Tools!$U$100:$U$129,MATCH($D332,F_Tools!$E$100:$E$129,0)))/K305,\"\"))","v":""},{"$nulls":8},{"$f":"CONST_PrecursorToGoodInput&D332&\"_\"&D303","v":"PrecToGood__"},null,{"$f":"SUMIF(D_Processes!R:R,AB332,D_Processes!K:K)","v":0},{"$f":"SUMIF(D_Processes!R:R,CONST_CNTR_TotProd&D332,D_Processes!L:L)","v":0},null,false]
[null,null,27,{"$f":"IF(D303=\"\",\"\",IF(COUNTIF(INDEX(CNTR_IOSupplyChain,MATCH(D303,CNTR_IOProcAndPrec,0),),C333)=0,\"\",INDEX(CNTR_IOProcAndPrec,MATCH(C333,INDEX(CNTR_IOSupplyChain,MATCH(D303,CNTR_IOProcAndPrec,0),),0))))","v":""},null,"",{"$f":"IF(D333=\"\",\"\",INDEX(CNTR_Matrix_Inv,MATCH(D303,CNTR_IOProcAndPrec,0),MATCH(D333,CNTR_IOProcAndPrec,0)))","v":""},{"$f":"IF(D333=\"\",\"\",IF(AG333,INDEX(E_PurchPrec!U:U,MATCH(CONST_PurchPrecDefaultUsed&D333,E_PurchPrec!R:R,0)),CONST_NA))","v":""},{"$f":"IF($D333=\"\",\"\",SUM($G333)*SUM(INDEX(InputOutput!$AJ$71:$AJ$100,MATCH($D333,InputOutput!$D$71:$D$100,0))))","v":""},{"$f":"IF($D333=\"\",\"\",SUM($G333)*SUM(INDEX(InputOutput!$AL$71:$AL$100,MATCH($D333,InputOutput!$D$71:$D$100,0))))","v":""},"",{"$f":"IF(D333=\"\",\"\",SUM(I333)*SUM(AD306))","v":""},{"$f":"IF(D333=\"\",\"\",SUM(J333)*SUM(AD306))","v":""},"",{"$f":"IF(AG333,INDEX(E_PurchPrec!U:U,MATCH(CONST_CNTR_ElecEFMethod&D333,E_PurchPrec!R:R,0)),INDEX(D_Processes!T:T,MATCH(CONST_CNTR_ElecEFMethod&D333,D_Processes!R:R,0)))","v":""},{"$f":"IF(OR($D333=\"\",$AG333),\"\",SUM($G333)*SUM(INDEX(InputOutput!$AN$71:$AN$100,MATCH($D333,InputOutput!$D$71:$D$100,0))))","v":""},{"$f":"IF(D333=\"\",\"\",IF(AG333,INDEX(A_InstData!$F$101:$F$120,MATCH(D333,CNTR_List_ExistPurchPrecNames,0)),\"\"))","v":""},{"$f":"IF($D333=\"\",\"\",IFERROR(SUM($G333)*SUM(INDEX(F_Tools!$T$100:$T$129,MATCH($D333,F_Tools!$E$100:$E$129,0)))/K305,\"\"))","v":""},{"$f":"IF($D333=\"\",\"\",IFERROR(SUM($G333)*SUM(INDEX(F_Tools!$U$100:$U$129,MATCH($D333,F_Tools!$E$100:$E$129,0)))/K305,\"\"))","v":""},{"$nulls":8},{"$f":"CONST_PrecursorToGoodInput&D333&\"_\"&D303","v":"PrecToGood__"},null,{"$f":"SUMIF(D_Processes!R:R,AB333,D_Processes!K:K)","v":0},{"$f":"SUMIF(D_Processes!R:R,CONST_CNTR_TotProd&D333,D_Processes!L:L)","v":0},null,false]
[null,null,28,{"$f":"IF(D303=\"\",\"\",IF(COUNTIF(INDEX(CNTR_IOSupplyChain,MATCH(D303,CNTR_IOProcAndPrec,0),),C334)=0,\"\",INDEX(CNTR_IOProcAndPrec,MATCH(C334,INDEX(CNTR_IOSupplyChain,MATCH(D303,CNTR_IOProcAndPrec,0),),0))))","v":""},null,"",{"$f":"IF(D334=\"\",\"\",INDEX(CNTR_Matrix_Inv,MATCH(D303,CNTR_IOProcAndPrec,0),MATCH(D334,CNTR_IOProcAndPrec,0)))","v":""},{"$f":"IF(D334=\"\",\"\",IF(AG334,INDEX(E_PurchPrec!U:U,MATCH(CONST_PurchPrecDefaultUsed&D334,E_PurchPrec!R:R,0)),CONST_NA))","v":""},{"$f":"IF($D334=\"\",\"\",SUM($G334)*SUM(INDEX(InputOutput!$AJ$71:$AJ$100,MATCH($D334,InputOutput!$D$71:$D$100,0))))","v":""},{"$f":"IF($D334=\"\",\"\",SUM($G334)*SUM(INDEX(InputOutput!$AL$71:$AL$100,MATCH($D334,InputOutput!$D$71:$D$100,0))))","v":""},"",{"$f":"IF(D334=\"\",\"\",SUM(I334)*SUM(AD306))","v":""},{"$f":"IF(D334=\"\",\"\",SUM(J334)*SUM(AD306))","v":""},"",{"$f":"IF(AG334,INDEX(E_PurchPrec!U:U,MATCH(CONST_CNTR_ElecEFMethod&D334,E_PurchPrec!R:R,0)),INDEX(D_Processes!T:T,MATCH(CONST_CNTR_ElecEFMethod&D334,D_Processes!R:R,0)))","v":""},{"$f":"IF(OR($D334=\"\",$AG334),\"\",SUM($G334)*SUM(INDEX(InputOutput!$AN$71:$AN$100,MATCH($D334,InputOutput!$D$71:$D$100,0))))","v":""},{"$f":"IF(D334=\"\",\"\",IF(AG334,INDEX(A_InstData!$F$101:$F$120,MATCH(D334,CNTR_List_ExistPurchPrecNames,0)),\"\"))","v":""},{"$f":"IF($D334=\"\",\"\",IFERROR(SUM($G334)*SUM(INDEX(F_Tools!$T$100:$T$129,MATCH($D334,F_Tools!$E$100:$E$129,0)))/K305,\"\"))","v":""},{"$f":"IF($D334=\"\",\"\",IFERROR(SUM($G334)*SUM(INDEX(F_Tools!$U$100:$U$129,MATCH($D334,F_Tools!$E$100:$E$129,0)))/K305,\"\"))","v":""},{"$nulls":8},{"$f":"CONST_PrecursorToGoodInput&D334&\"_\"&D303","v":"PrecToGood__"},null,{"$f":"SUMIF(D_Processes!R:R,AB334,D_Processes!K:K)","v":0},{"$f":"SUMIF(D_Processes!R:R,CONST_CNTR_TotProd&D334,D_Processes!L:L)","v":0},null,false]
[null,null,29,{"$f":"IF(D303=\"\",\"\",IF(COUNTIF(INDEX(CNTR_IOSupplyChain,MATCH(D303,CNTR_IOProcAndPrec,0),),C335)=0,\"\",INDEX(CNTR_IOProcAndPrec,MATCH(C335,INDEX(CNTR_IOSupplyChain,MATCH(D303,CNTR_IOProcAndPrec,0),),0))))","v":""},null,"",{"$f":"IF(D335=\"\",\"\",INDEX(CNTR_Matrix_Inv,MATCH(D303,CNTR_IOProcAndPrec,0),MATCH(D335,CNTR_IOProcAndPrec,0)))","v":""},{"$f":"IF(D335=\"\",\"\",IF(AG335,INDEX(E_PurchPrec!U:U,MATCH(CONST_PurchPrecDefaultUsed&D335,E_PurchPrec!R:R,0)),CONST_NA))","v":""},{"$f":"IF($D335=\"\",\"\",SUM($G335)*SUM(INDEX(InputOutput!$AJ$71:$AJ$100,MATCH($D335,InputOutput!$D$71:$D$100,0))))","v":""},{"$f":"IF($D335=\"\",\"\",SUM($G335)*SUM(INDEX(InputOutput!$AL$71:$AL$100,MATCH($D335,InputOutput!$D$71:$D$100,0))))","v":""},"",{"$f":"IF(D335=\"\",\"\",SUM(I335)*SUM(AD306))","v":""},{"$f":"IF(D335=\"\",\"\",SUM(J335)*SUM(AD306))","v":""},"",{"$f":"IF(AG335,INDEX(E_PurchPrec!U:U,MATCH(CONST_CNTR_ElecEFMethod&D335,E_PurchPrec!R:R,0)),INDEX(D_Processes!T:T,MATCH(CONST_CNTR_ElecEFMethod&D335,D_Processes!R:R,0)))","v":""},{"$f":"IF(OR($D335=\"\",$AG335),\"\",SUM($G335)*SUM(INDEX(InputOutput!$AN$71:$AN$100,MATCH($D335,InputOutput!$D$71:$D$100,0))))","v":""},{"$f":"IF(D335=\"\",\"\",IF(AG335,INDEX(A_InstData!$F$101:$F$120,MATCH(D335,CNTR_List_ExistPurchPrecNames,0)),\"\"))","v":""},{"$f":"IF($D335=\"\",\"\",IFERROR(SUM($G335)*SUM(INDEX(F_Tools!$T$100:$T$129,MATCH($D335,F_Tools!$E$100:$E$129,0)))/K305,\"\"))","v":""},{"$f":"IF($D335=\"\",\"\",IFERROR(SUM($G335)*SUM(INDEX(F_Tools!$U$100:$U$129,MATCH($D335,F_Tools!$E$100:$E$129,0)))/K305,\"\"))","v":""},{"$nulls":8},{"$f":"CONST_PrecursorToGoodInput&D335&\"_\"&D303","v":"PrecToGood__"},null,{"$f":"SUMIF(D_Processes!R:R,AB335,D_Processes!K:K)","v":0},{"$f":"SUMIF(D_Processes!R:R,CONST_CNTR_TotProd&D335,D_Processes!L:L)","v":0},null,false]
[null,null,30,{"$f":"IF(D303=\"\",\"\",IF(COUNTIF(INDEX(CNTR_IOSupplyChain,MATCH(D303,CNTR_IOProcAndPrec,0),),C336)=0,\"\",INDEX(CNTR_IOProcAndPrec,MATCH(C336,INDEX(CNTR_IOSupplyChain,MATCH(D303,CNTR_IOProcAndPrec,0),),0))))","v":""},null,"",{"$f":"IF(D336=\"\",\"\",INDEX(CNTR_Matrix_Inv,MATCH(D303,CNTR_IOProcAndPrec,0),MATCH(D336,CNTR_IOProcAndPrec,0)))","v":""},{"$f":"IF(D336=\"\",\"\",IF(AG336,INDEX(E_PurchPrec!U:U,MATCH(CONST_PurchPrecDefaultUsed&D336,E_PurchPrec!R:R,0)),CONST_NA))","v":""},{"$f":"IF($D336=\"\",\"\",SUM($G336)*SUM(INDEX(InputOutput!$AJ$71:$AJ$100,MATCH($D336,InputOutput!$D$71:$D$100,0))))","v":""},{"$f":"IF($D336=\"\",\"\",SUM($G336)*SUM(INDEX(InputOutput!$AL$71:$AL$100,MATCH($D336,InputOutput!$D$71:$D$100,0))))","v":""},"",{"$f":"IF(D336=\"\",\"\",SUM(I336)*SUM(AD306))","v":""},{"$f":"IF(D336=\"\",\"\",SUM(J336)*SUM(AD306))","v":""},"",{"$f":"IF(AG336,INDEX(E_PurchPrec!U:U,MATCH(CONST_CNTR_ElecEFMethod&D336,E_PurchPrec!R:R,0)),INDEX(D_Processes!T:T,MATCH(CONST_CNTR_ElecEFMethod&D336,D_Processes!R:R,0)))","v":""},{"$f":"IF(OR($D336=\"\",$AG336),\"\",SUM($G336)*SUM(INDEX(InputOutput!$AN$71:$AN$100,MATCH($D336,InputOutput!$D$71:$D$100,0))))","v":""},{"$f":"IF(D336=\"\",\"\",IF(AG336,INDEX(A_InstData!$F$101:$F$120,MATCH(D336,CNTR_List_ExistPurchPrecNames,0)),\"\"))","v":""},{"$f":"IF($D336=\"\",\"\",IFERROR(SUM($G336)*SUM(INDEX(F_Tools!$T$100:$T$129,MATCH($D336,F_Tools!$E$100:$E$129,0)))/K305,\"\"))","v":""},{"$f":"IF($D336=\"\",\"\",IFERROR(SUM($G336)*SUM(INDEX(F_Tools!$U$100:$U$129,MATCH($D336,F_Tools!$E$100:$E$129,0)))/K305,\"\"))","v":""},{"$nulls":8},{"$f":"CONST_PrecursorToGoodInput&D336&\"_\"&D303","v":"PrecToGood__"},null,{"$f":"SUMIF(D_Processes!R:R,AB336,D_Processes!K:K)","v":0},{"$f":"SUMIF(D_Processes!R:R,CONST_CNTR_TotProd&D336,D_Processes!L:L)","v":0},null,false]
[]
[]
[null,null,{"$f":"C303+1","v":6},{"$f":"IF(INDEX(CNTR_List_ExistProdProcNames,C339)=CONST_NA,\"\",INDEX(CNTR_List_ExistProdProcNames,C339))","v":""},null,{"$f":"Translations!$B$107","v":"Aggregated goods category"},{"$f":"Translations!$B$584","v":"Mass share"},{"$f":"Translations!$B$586","v":"(Share of) Default value"},{"$f":"Translations!$B$570","v":"SEE (direct)"},{"$f":"Translations!$B$574","v":"SEE (indirect)"},{"$f":"Translations!$B$344","v":"SEE (total)"},{"$f":"Translations!$B$589","v":"EmbEm (direct)"},{"$f":"Translations!$B$591","v":"EmbEm (indirect)"},{"$f":"Translations!$B$593","v":"EmbEm (total)"},{"$f":"Translations!$B$594","v":"Source of electricity EF"},{"$f":"Translations!$B$597","v":"Specific electricity"},"Country code",{"$f":"Translations!$B$351","v":"CP due (per t or MWh)"},{"$f":"Translations!$B$352","v":"Rebate (per t or MWh)"},{"$nulls":12},{"$f":"H339","v":"(Share of) Default value"},{"$f":"H341","v":""}]
[{"$nulls":6},{"$f":"IF($F341=\"\",CONST_t,INDEX(CONST_LIST_GoodsUnit,MATCH($F341,CONST_LIST_Goods,0)))&\"/\"&IF($F341=\"\",CONST_t,INDEX(CONST_LIST_GoodsUnit,MATCH($F341,CONST_LIST_Goods,0)))","v":"t/t"},null,{"$f":"CONST_tCO2eq&\"/\"&IF($F341=\"\",CONST_t,INDEX(CONST_LIST_GoodsUnit,MATCH($F341,CONST_LIST_Goods,0)))","v":"tCO2e/t"},{"$f":"CONST_tCO2eq&\"/\"&IF($F341=\"\",CONST_t,INDEX(CONST_LIST_GoodsUnit,MATCH($F341,CONST_LIST_Goods,0)))","v":"tCO2e/t"},{"$f":"CONST_tCO2eq&\"/\"&IF($F341=\"\",CONST_t,INDEX(CONST_LIST_GoodsUnit,MATCH($F341,CONST_LIST_Goods,0)))","v":"tCO2e/t"},{"$f":"CONST_tCO2eq","v":"tCO2e"},{"$f":"CONST_tCO2eq","v":"tCO2e"},{"$f":"CONST_tCO2eq","v":"tCO2e"},null,{"$f":"CONST_MWh&\"/\"&IF($F341=\"\",CONST_t,INDEX(CONST_LIST_GoodsUnit,MATCH($F341,CONST_LIST_Goods,0)))","v":"MWh/t"}]
[{"$nulls":3},{"$f":"Translations!$B$600","v":"Total production process"},null,{"$f":"IF(D342=\"\",\"\",INDEX(CNTR_List_ExistProdProc,MATCH(D342,CNTR_List_ExistProdProcNames,0)))","v":""},"-",{"$f":"IF(D339=\"\",\"\",IFERROR(SUMIFS(I343:I372,H343:H372,TRUE)/I341,\"\"))","v":""},{"$f":"IF(COUNT(I342:I372)>0,SUM(I342:I372),\"\")","v":""},"","","","","","-",{"$f":"IF(COUNT(P342:P372)>0,SUM(P342:P372),\"\")","v":""},"-",{"$f":"IF(COUNT(R342:R372)>0,SUM(R342:R372),\"\")","v":""},{"$f":"IF(COUNT(S342:S372)>0,SUM(S342:S372),\"\")","v":""},{"$nulls":10},{"$f":"Translations!$B$601","v":"Production and consumption"},{"$f":"Translations!$B$602","v":"Total production of precursors"},null,"IsPrecursor?"]
[{"$nulls":3},{"$f":"D339","v":""},null,{"$f":"IF(D342=\"\",\"\",INDEX(CNTR_List_ExistProdProc,MATCH(D342,CNTR_List_ExistProdProcNames,0)))","v":""},{"v":1,"d":"1.000"},"-",{"$f":"IF($D342=\"\",\"\",SUM($G342)*SUM(INDEX(InputOutput!$AJ$71:$AJ$100,MATCH($D342,InputOutput!$D$71:$D$100,0))))","v":""},{"$f":"IF($D342=\"\",\"\",SUM($G342)*SUM(INDEX(InputOutput!$AL$71:$AL$100,MATCH($D342,InputOutput!$D$71:$D$100,0))))","v":""},{"$f":"IF(COUNT(I342:J342)>0,SUM(I342:J342),\"\")","v":""},{"$f":"IF(D342=\"\",\"\",SUM(I342)*SUM(AD342))","v":""},{"$f":"IF(D342=\"\",\"\",SUM(J342)*SUM(AD342))","v":""},{"$f":"IF(COUNT(L342:M342)>0,SUM(L342:M342),\"\")","v":""},{"$f":"IF(AG342,INDEX(E_PurchPrec!U:U,MATCH(CONST_CNTR_ElecEFMethod&D342,E_PurchPrec!R:R,0)),INDEX(D_Processes!T:T,MATCH(CONST_CNTR_ElecEFMethod&D342,D_Processes!R:R,0)))","v":""},{"$f":"IF(OR($D342=\"\",$AG342),\"\",SUM($G342)*SUM(INDEX(InputOutput!$AN$71:$AN$100,MATCH($D342,InputOutput!$D$71:$D$100,0))))","v":""},null,{"$f":"IF($D342=\"\",\"\",IFERROR(SUM($G342)*SUM(INDEX(F_Tools!$T$100:$T$129,MATCH($D342,F_Tools!$E$100:$E$129,0)))/K341,\"\"))","v":""},{"$f":"IF($D342=\"\",\"\",IFERROR(SUM($G342)*SUM(INDEX(F_Tools!$U$100:$U$129,MATCH($D342,F_Tools!$E$100:$E$129,0)))/K341,\"\"))","v":""},{"$nulls":8},{"$f":"CONST_CNTR_TotProd&D339","v":"TotProd_"},null,{"$f":"SUMIF(D_Processes!R:R,AB342,D_Processes!L:L)","v":0}]
[null,null,1,{"$f":"IF(D339=\"\",\"\",IF(COUNTIF(INDEX(CNTR_IOSupplyChain,MATCH(D339,CNTR_IOProcAndPrec,0),),C343)=0,\"\",INDEX(CNTR_IOProcAndPrec,MATCH(C343,INDEX(CNTR_IOSupplyChain,MATCH(D339,CNTR_IOProcAndPrec,0),),0))))","v":""},null,{"$f":"IF(D343=\"\",\"\",IF(COUNTIF(CNTR_List_ExistProdProcNames,D343)>0,INDEX(CNTR_List_ExistProdProc,MATCH(D343,CNTR_List_ExistProdProcNames,0)),INDEX(CNTR_List_ExistPurchPrec,MATCH(D343,CNTR_List_ExistPurchPrecNames,0))))","v":""},{"$f":"IF(D343=\"\",\"\",INDEX(CNTR_Matrix_Inv,MATCH(D339,CNTR_IOProcAndPrec,0),MATCH(D343,CNTR_IOProcAndPrec,0)))","v":""},{"$f":"IF(D343=\"\",\"\",IF(AG343,INDEX(E_PurchPrec!U:U,MATCH(CONST_PurchPrecDefaultUsed&D343,E_PurchPrec!R:R,0)),CONST_NA))","v":""},{"$f":"IF($D343=\"\",\"\",SUM($G343)*SUM(INDEX(InputOutput!$AJ$71:$AJ$100,MATCH($D343,InputOutput!$D$71:$D$100,0))))","v":""},{"$f":"IF($D343=\"\",\"\",SUM($G343)*SUM(INDEX(InputOutput!$AL$71:$AL$100,MATCH($D343,InputOutput!$D$71:$D$100,0))))","v":""},"",{"$f":"IF(D343=\"\",\"\",SUM(I343)*SUM(AD342))","v":""},{"$f":"IF(D343=\"\",\"\",SUM(J343)*SUM(AD342))","v":""},{"$f":"IF(COUNT(L343:M343)>0,SUM(L343:M343),\"\")","v":""},{"$f":"IF(AG343,INDEX(E_PurchPrec!U:U,MATCH(CONST_CNTR_ElecEFMethod&D343,E_PurchPrec!R:R,0)),INDEX(D_Processes!T:T,MATCH(CONST_CNTR_ElecEFMethod&D343,D_Processes!R:R,0)))","v":""},{"$f":"IF(OR($D343=\"\",$AG343),\"\",SUM($G343)*SUM(INDEX(InputOutput!$AN$71:$AN$100,MATCH($D343,InputOutput!$D$71:$D$100,0))))","v":""},{"$f":"IF(D343=\"\",\"\",IF(AG343,INDEX(A_InstData!$F$101:$F$120,MATCH(D343,CNTR_List_ExistPurchPrecNames,0)),\"\"))","v":""},{"$f":"IF($D343=\"\",\"\",IFERROR(SUM($G343)*SUM(INDEX(F_Tools!$T$100:$T$129,MATCH($D343,F_Tools!$E$100:$E$129,0)))/K341,\"\"))","v":""},{"$f":"IF($D343=\"\",\"\",IFERROR(SUM($G343)*SUM(INDEX(F_Tools!$U$100:$U$129,MATCH($D343,F_Tools!$E$100:$E$129,0)))/K341,\"\"))","v":""},{"$nulls":8},{"$f":"CONST_PrecursorToGoodInput&D343&\"_\"&D339","v":"PrecToGood__"},null,{"$f":"SUMIF(D_Processes!R:R,AB343,D_Processes!K:K)","v":0},{"$f":"SUMIF(D_Processes!R:R,CONST_CNTR_TotProd&D343,D_Processes!L:L)","v":0},null,{"$f":"COUNTIF(CNTR_List_ExistPurchPrecNames,D343)>0","v":false}]
[null,null,2,{"$f":"IF(D339=\"\",\"\",IF(COUNTIF(INDEX(CNTR_IOSupplyChain,MATCH(D339,CNTR_IOProcAndPrec,0),),C344)=0,\"\",INDEX(CNTR_IOProcAndPrec,MATCH(C344,INDEX(CNTR_IOSupplyChain,MATCH(D339,CNTR_IOProcAndPrec,0),),0))))","v":""},null,"",{"$f":"IF(D344=\"\",\"\",INDEX(CNTR_Matrix_Inv,MATCH(D339,CNTR_IOProcAndPrec,0),MATCH(D344,CNTR_IOProcAndPrec,0)))","v":""},{"$f":"IF(D344=\"\",\"\",IF(AG344,INDEX(E_PurchPrec!U:U,MATCH(CONST_PurchPrecDefaultUsed&D344,E_PurchPrec!R:R,0)),CONST_NA))","v":""},{"$f":"IF($D344=\"\",\"\",SUM($G344)*SUM(INDEX(InputOutput!$AJ$71:$AJ$100,MATCH($D344,InputOutput!$D$71:$D$100,0))))","v":""},{"$f":"IF($D344=\"\",\"\",SUM($G344)*SUM(INDEX(InputOutput!$AL$71:$AL$100,MATCH($D344,InputOutput!$D$71:$D$100,0))))","v":""},"",{"$f":"IF(D344=\"\",\"\",SUM(I344)*SUM(AD342))","v":""},{"$f":"IF(D344=\"\",\"\",SUM(J344)*SUM(AD342))","v":""},{"$f":"IF(COUNT(L344:M344)>0,SUM(L344:M344),\"\")","v":""},{"$f":"IF(AG344,INDEX(E_PurchPrec!U:U,MATCH(CONST_CNTR_ElecEFMethod&D344,E_PurchPrec!R:R,0)),INDEX(D_Processes!T:T,MATCH(CONST_CNTR_ElecEFMethod&D344,D_Processes!R:R,0)))","v":""},{"$f":"IF(OR($D344=\"\",$AG344),\"\",SUM($G344)*SUM(INDEX(InputOutput!$AN$71:$AN$100,MATCH($D344,InputOutput!$D$71:$D$100,0))))","v":""},{"$f":"IF(D344=\"\",\"\",IF(AG344,INDEX(A_InstData!$F$101:$F$120,MATCH(D344,CNTR_List_ExistPurchPrecNames,0)),\"\"))","v":""},{"$f":"IF($D344=\"\",\"\",IFERROR(SUM($G344)*SUM(INDEX(F_Tools!$T$100:$T$129,MATCH($D344,F_Tools!$E$100:$E$129,0)))/K341,\"\"))","v":""},{"$f":"IF($D344=\"\",\"\",IFERROR(SUM($G344)*SUM(INDEX(F_Tools!$U$100:$U$129,MATCH($D344,F_Tools!$E$100:$E$129,0)))/K341,\"\"))","v":""},{"$nulls":8},{"$f":"CONST_PrecursorToGoodInput&D344&\"_\"&D339","v":"PrecToGood__"},null,{"$f":"SUMIF(D_Processes!R:R,AB344,D_Processes!K:K)","v":0},{"$f":"SUMIF(D_Processes!R:R,CONST_CNTR_TotProd&D344,D_Processes!L:L)","v":0},null,false]
[null,null,3,{"$f":"IF(D339=\"\",\"\",IF(COUNTIF(INDEX(CNTR_IOSupplyChain,MATCH(D339,CNTR_IOProcAndPrec,0),),C345)=0,\"\",INDEX(CNTR_IOProcAndPrec,MATCH(C345,INDEX(CNTR_IOSupplyChain,MATCH(D339,CNTR_IOProcAndPrec,0),),0))))","v":""},null,"",{"$f":"IF(D345=\"\",\"\",INDEX(CNTR_Matrix_Inv,MATCH(D339,CNTR_IOProcAndPrec,0),MATCH(D345,CNTR_IOProcAndPrec,0)))","v":""},{"$f":"IF(D345=\"\",\"\",IF(AG345,INDEX(E_PurchPrec!U:U,MATCH(CONST_PurchPrecDefaultUsed&D345,E_PurchPrec!R:R,0)),CONST_NA))","v":""},{"$f":"IF($D345=\"\",\"\",SUM($G345)*SUM(INDEX(InputOutput!$AJ$71:$AJ$100,MATCH($D345,InputOutput!$D$71:$D$100,0))))","v":""},{"$f":"IF($D345=\"\",\"\",SUM($G345)*SUM(INDEX(InputOutput!$AL$71:$AL$100,MATCH($D345,InputOutput!$D$71:$D$100,0))))","v":""},"",{"$f":"IF(D345=\"\",\"\",SUM(I345)*SUM(AD342))","v":""},{"$f":"IF(D345=\"\",\"\",SUM(J345)*SUM(AD342))","v":""},{"$f":"IF(COUNT(L345:M345)>0,SUM(L345:M345),\"\")","v":""},{"$f":"IF(AG345,INDEX(E_PurchPrec!U:U,MATCH(CONST_CNTR_ElecEFMethod&D345,E_PurchPrec!R:R,0)),INDEX(D_Processes!T:T,MATCH(CONST_CNTR_ElecEFMethod&D345,D_Processes!R:R,0)))","v":""},{"$f":"IF(OR($D345=\"\",$AG345),\"\",SUM($G345)*SUM(INDEX(InputOutput!$AN$71:$AN$100,MATCH($D345,InputOutput!$D$71:$D$100,0))))","v":""},{"$f":"IF(D345=\"\",\"\",IF(AG345,INDEX(A_InstData!$F$101:$F$120,MATCH(D345,CNTR_List_ExistPurchPrecNames,0)),\"\"))","v":""},{"$f":"IF($D345=\"\",\"\",IFERROR(SUM($G345)*SUM(INDEX(F_Tools!$T$100:$T$129,MATCH($D345,F_Tools!$E$100:$E$129,0)))/K341,\"\"))","v":""},{"$f":"IF($D345=\"\",\"\",IFERROR(SUM($G345)*SUM(INDEX(F_Tools!$U$100:$U$129,MATCH($D345,F_Tools!$E$100:$E$129,0)))/K341,\"\"))","v":""},{"$nulls":8},{"$f":"CONST_PrecursorToGoodInput&D345&\"_\"&D339","v":"PrecToGood__"},null,{"$f":"SUMIF(D_Processes!R:R,AB345,D_Processes!K:K)","v":0},{"$f":"SUMIF(D_Processes!R:R,CONST_CNTR_TotProd&D345,D_Processes!L:L)","v":0},null,false]
[null,null,4,{"$f":"IF(D339=\"\",\"\",IF(COUNTIF(INDEX(CNTR_IOSupplyChain,MATCH(D339,CNTR_IOProcAndPrec,0),),C346)=0,\"\",INDEX(CNTR_IOProcAndPrec,MATCH(C346,INDEX(CNTR_IOSupplyChain,MATCH(D339,CNTR_IOProcAndPrec,0),),0))))","v":""},null,"",{"$f":"IF(D346=\"\",\"\",INDEX(CNTR_Matrix_Inv,MATCH(D339,CNTR_IOProcAndPrec,0),MATCH(D346,CNTR_IOProcAndPrec,0)))","v":""},{"$f":"IF(D346=\"\",\"\",IF(AG346,INDEX(E_PurchPrec!U:U,MATCH(CONST_PurchPrecDefaultUsed&D346,E_PurchPrec!R:R,0)),CONST_NA))","v":""},{"$f":"IF($D346=\"\",\"\",SUM($G346)*SUM(INDEX(InputOutput!$AJ$71:$AJ$100,MATCH($D346,InputOutput!$D$71:$D$100,0))))","v":""},{"$f":"IF($D346=\"\",\"\",SUM($G346)*SUM(INDEX(InputOutput!$AL$71:$AL$100,MATCH($D346,InputOutput!$D$71:$D$100,0))))","v":""},"",{"$f":"IF(D346=\"\",\"\",SUM(I346)*SUM(AD342))","v":""},{"$f":"IF(D346=\"\",\"\",SUM(J346)*SUM(AD342))","v":""},"",{"$f":"IF(AG346,INDEX(E_PurchPrec!U:U,MATCH(CONST_CNTR_ElecEFMethod&D346,E_PurchPrec!R:R,0)),INDEX(D_Processes!T:T,MATCH(CONST_CNTR_ElecEFMethod&D346,D_Processes!R:R,0)))","v":""},{"$f":"IF(OR($D346=\"\",$AG346),\"\",SUM($G346)*SUM(INDEX(InputOutput!$AN$71:$AN$100,MATCH($D346,InputOutput!$D$71:$D$100,0))))","v":""},{"$f":"IF(D346=\"\",\"\",IF(AG346,INDEX(A_InstData!$F$101:$F$120,MATCH(D346,CNTR_List_ExistPurchPrecNames,0)),\"\"))","v":""},{"$f":"IF($D346=\"\",\"\",IFERROR(SUM($G346)*SUM(INDEX(F_Tools!$T$100:$T$129,MATCH($D346,F_Tools!$E$100:$E$129,0)))/K341,\"\"))","v":""},{"$f":"IF($D346=\"\",\"\",IFERROR(SUM($G346)*SUM(INDEX(F_Tools!$U$100:$U$129,MATCH($D346,F_Tools!$E$100:$E$129,0)))/K341,\"\"))","v":""},{"$nulls":8},{"$f":"CONST_PrecursorToGoodInput&D346&\"_\"&D339","v":"PrecToGood__"},null,{"$f":"SUMIF(D_Processes!R:R,AB346,D_Processes!K:K)","v":0},{"$f":"SUMIF(D_Processes!R:R,CONST_CNTR_TotProd&D346,D_Processes!L:L)","v":0},null,false]
[null,null,5,{"$f":"IF(D339=\"\",\"\",IF(COUNTIF(INDEX(CNTR_IOSupplyChain,MATCH(D339,CNTR_IOProcAndPrec,0),),C347)=0,\"\",INDEX(CNTR_IOProcAndPrec,MATCH(C347,INDEX(CNTR_IOSupplyChain,MATCH(D339,CNTR_IOProcAndPrec,0),),0))))","v":""},null,"",{"$f":"IF(D347=\"\",\"\",INDEX(CNTR_Matrix_Inv,MATCH(D339,CNTR_IOProcAndPrec,0),MATCH(D347,CNTR_IOProcAndPrec,0)))","v":""},{"$f":"IF(D347=\"\",\"\",IF(AG347,INDEX(E_PurchPrec!U:U,MATCH(CONST_PurchPrecDefaultUsed&D347,E_PurchPrec!R:R,0)),CONST_NA))","v":""},{"$f":"IF($D347=\"\",\"\",SUM($G347)*SUM(INDEX(InputOutput!$AJ$71:$AJ$100,MATCH($D347,InputOutput!$D$71:$D$100,0))))","v":""},{"$f":"IF($D347=\"\",\"\",SUM($G347)*SUM(INDEX(InputOutput!$AL$71:$AL$100,MATCH($D347,InputOutput!$D$71:$D$100,0))))","v":""},"",{"$f":"IF(D347=\"\",\"\",SUM(I347)*SUM(AD342))","v":""},{"$f":"IF(D347=\"\",\"\",SUM(J347)*SUM(AD342))","v":""},"",{"$f":"IF(AG347,INDEX(E_PurchPrec!U:U,MATCH(CONST_CNTR_ElecEFMethod&D347,E_PurchPrec!R:R,0)),INDEX(D_Processes!T:T,MATCH(CONST_CNTR_ElecEFMethod&D347,D_Processes!R:R,0)))","v":""},{"$f":"IF(OR($D347=\"\",$AG347),\"\",SUM($G347)*SUM(INDEX(InputOutput!$AN$71:$AN$100,MATCH($D347,InputOutput!$D$71:$D$100,0))))","v":""},{"$f":"IF(D347=\"\",\"\",IF(AG347,INDEX(A_InstData!$F$101:$F$120,MATCH(D347,CNTR_List_ExistPurchPrecNames,0)),\"\"))","v":""},{"$f":"IF($D347=\"\",\"\",IFERROR(SUM($G347)*SUM(INDEX(F_Tools!$T$100:$T$129,MATCH($D347,F_Tools!$E$100:$E$129,0)))/K341,\"\"))","v":""},{"$f":"IF($D347=\"\",\"\",IFERROR(SUM($G347)*SUM(INDEX(F_Tools!$U$100:$U$129,MATCH($D347,F_Tools!$E$100:$E$129,0)))/K341,\"\"))","v":""},{"$nulls":8},{"$f":"CONST_PrecursorToGoodInput&D347&\"_\"&D339","v":"PrecToGood__"},null,{"$f":"SUMIF(D_Processes!R:R,AB347,D_Processes!K:K)","v":0},{"$f":"SUMIF(D_Processes!R:R,CONST_CNTR_TotProd&D347,D_Processes!L:L)","v":0},null,false]
[null,null,6,{"$f":"IF(D339=\"\",\"\",IF(COUNTIF(INDEX(CNTR_IOSupplyChain,MATCH(D339,CNTR_IOProcAndPrec,0),),C348)=0,\"\",INDEX(CNTR_IOProcAndPrec,MATCH(C348,INDEX(CNTR_IOSupplyChain,MATCH(D339,CNTR_IOProcAndPrec,0),),0))))","v":""},null,"",{"$f":"IF(D348=\"\",\"\",INDEX(CNTR_Matrix_Inv,MATCH(D339,CNTR_IOProcAndPrec,0),MATCH(D348,CNTR_IOProcAndPrec,0)))","v":""},{"$f":"IF(D348=\"\",\"\",IF(AG348,INDEX(E_PurchPrec!U:U,MATCH(CONST_PurchPrecDefaultUsed&D348,E_PurchPrec!R:R,0)),CONST_NA))","v":""},{"$f":"IF($D348=\"\",\"\",SUM($G348)*SUM(INDEX(InputOutput!$AJ$71:$AJ$100,MATCH($D348,InputOutput!$D$71:$D$100,0))))","v":""},{"$f":"IF($D348=\"\",\"\",SUM($G348)*SUM(INDEX(InputOutput!$AL$71:$AL$100,MATCH($D348,InputOutput!$D$71:$D$100,0))))","v":""},"",{"$f":"IF(D348=\"\",\"\",SUM(I348)*SUM(AD342))","v":""},{"$f":"IF(D348=\"\",\"\",SUM(J348)*SUM(AD342))","v":""},"",{"$f":"IF(AG348,INDEX(E_PurchPrec!U:U,MATCH(CONST_CNTR_ElecEFMethod&D348,E_PurchPrec!R:R,0)),INDEX(D_Processes!T:T,MATCH(CONST_CNTR_ElecEFMethod&D348,D_Processes!R:R,0)))","v":""},{"$f":"IF(OR($D348=\"\",$AG348),\"\",SUM($G348)*SUM(INDEX(InputOutput!$AN$71:$AN$100,MATCH($D348,InputOutput!$D$71:$D$100,0))))","v":""},{"$f":"IF(D348=\"\",\"\",IF(AG348,INDEX(A_InstData!$F$101:$F$120,MATCH(D348,CNTR_List_ExistPurchPrecNames,0)),\"\"))","v":""},{"$f":"IF($D348=\"\",\"\",IFERROR(SUM($G348)*SUM(INDEX(F_Tools!$T$100:$T$129,MATCH($D348,F_Tools!$E$100:$E$129,0)))/K341,\"\"))","v":""},{"$f":"IF($D348=\"\",\"\",IFERROR(SUM($G348)*SUM(INDEX(F_Tools!$U$100:$U$129,MATCH($D348,F_Tools!$E$100:$E$129,0)))/K341,\"\"))","v":""},{"$nulls":8},{"$f":"CONST_PrecursorToGoodInput&D348&\"_\"&D339","v":"PrecToGood__"},null,{"$f":"SUMIF(D_Processes!R:R,AB348,D_Processes!K:K)","v":0},{"$f":"SUMIF(D_Processes!R:R,CONST_CNTR_TotProd&D348,D_Processes!L:L)","v":0},null,false]
[null,null,7,{"$f":"IF(D339=\"\",\"\",IF(COUNTIF(INDEX(CNTR_IOSupplyChain,MATCH(D339,CNTR_IOProcAndPrec,0),),C349)=0,\"\",INDEX(CNTR_IOProcAndPrec,MATCH(C349,INDEX(CNTR_IOSupplyChain,MATCH(D339,CNTR_IOProcAndPrec,0),),0))))","v":""},null,"",{"$f":"IF(D349=\"\",\"\",INDEX(CNTR_Matrix_Inv,MATCH(D339,CNTR_IOProcAndPrec,0),MATCH(D349,CNTR_IOProcAndPrec,0)))","v":""},{"$f":"IF(D349=\"\",\"\",IF(AG349,INDEX(E_PurchPrec!U:U,MATCH(CONST_PurchPrecDefaultUsed&D349,E_PurchPrec!R:R,0)),CONST_NA))","v":""},{"$f":"IF($D349=\"\",\"\",SUM($G349)*SUM(INDEX(InputOutput!$AJ$71:$AJ$100,MATCH($D349,InputOutput!$D$71:$D$100,0))))","v":""},{"$f":"IF($D349=\"\",\"\",SUM($G349)*SUM(INDEX(InputOutput!$AL$71:$AL$100,MATCH($D349,InputOutput!$D$71:$D$100,0))))","v":""},"",{"$f":"IF(D349=\"\",\"\",SUM(I349)*SUM(AD342))","v":""},{"$f":"IF(D349=\"\",\"\",SUM(J349)*SUM(AD342))","v":""},"",{"$f":"IF(AG349,INDEX(E_PurchPrec!U:U,MATCH(CONST_CNTR_ElecEFMethod&D349,E_PurchPrec!R:R,0)),INDEX(D_Processes!T:T,MATCH(CONST_CNTR_ElecEFMethod&D349,D_Processes!R:R,0)))","v":""},{"$f":"IF(OR($D349=\"\",$AG349),\"\",SUM($G349)*SUM(INDEX(InputOutput!$AN$71:$AN$100,MATCH($D349,InputOutput!$D$71:$D$100,0))))","v":""},{"$f":"IF(D349=\"\",\"\",IF(AG349,INDEX(A_InstData!$F$101:$F$120,MATCH(D349,CNTR_List_ExistPurchPrecNames,0)),\"\"))","v":""},{"$f":"IF($D349=\"\",\"\",IFERROR(SUM($G349)*SUM(INDEX(F_Tools!$T$100:$T$129,MATCH($D349,F_Tools!$E$100:$E$129,0)))/K341,\"\"))","v":""},{"$f":"IF($D349=\"\",\"\",IFERROR(SUM($G349)*SUM(INDEX(F_Tools!$U$100:$U$129,MATCH($D349,F_Tools!$E$100:$E$129,0)))/K341,\"\"))","v":""},{"$nulls":8},{"$f":"CONST_PrecursorToGoodInput&D349&\"_\"&D339","v":"PrecToGood__"},null,{"$f":"SUMIF(D_Processes!R:R,AB349,D_Processes!K:K)","v":0},{"$f":"SUMIF(D_Processes!R:R,CONST_CNTR_TotProd&D349,D_Processes!L:L)","v":0},null,false]
[null,null,8,{"$f":"IF(D339=\"\",\"\",IF(COUNTIF(INDEX(CNTR_IOSupplyChain,MATCH(D339,CNTR_IOProcAndPrec,0),),C350)=0,\"\",INDEX(CNTR_IOProcAndPrec,MATCH(C350,INDEX(CNTR_IOSupplyChain,MATCH(D339,CNTR_IOProcAndPrec,0),),0))))","v":""},null,"",{"$f":"IF(D350=\"\",\"\",INDEX(CNTR_Matrix_Inv,MATCH(D339,CNTR_IOProcAndPrec,0),MATCH(D350,CNTR_IOProcAndPrec,0)))","v":""},{"$f":"IF(D350=\"\",\"\",IF(AG350,INDEX(E_PurchPrec!U:U,MATCH(CONST_PurchPrecDefaultUsed&D350,E_PurchPrec!R:R,0)),CONST_NA))","v":""},{"$f":"IF($D350=\"\",\"\",SUM($G350)*SUM(INDEX(InputOutput!$AJ$71:$AJ$100,MATCH($D350,InputOutput!$D$71:$D$100,0))))","v":""},{"$f":"IF($D350=\"\",\"\",SUM($G350)*SUM(INDEX(InputOutput!$AL$71:$AL$100,MATCH($D350,InputOutput!$D$71:$D$100,0))))","v":""},"",{"$f":"IF(D350=\"\",\"\",SUM(I350)*SUM(AD342))","v":""},{"$f":"IF(D350=\"\",\"\",SUM(J350)*SUM(AD342))","v":""},"",{"$f":"IF(AG350,INDEX(E_PurchPrec!U:U,MATCH(CONST_CNTR_ElecEFMethod&D350,E_PurchPrec!R:R,0)),INDEX(D_Processes!T:T,MATCH(CONST_CNTR_ElecEFMethod&D350,D_Processes!R:R,0)))","v":""},{"$f":"IF(OR($D350=\"\",$AG350),\"\",SUM($G350)*SUM(INDEX(InputOutput!$AN$71:$AN$100,MATCH($D350,InputOutput!$D$71:$D$100,0))))","v":""},{"$f":"IF(D350=\"\",\"\",IF(AG350,INDEX(A_InstData!$F$101:$F$120,MATCH(D350,CNTR_List_ExistPurchPrecNames,0)),\"\"))","v":""},{"$f":"IF($D350=\"\",\"\",IFERROR(SUM($G350)*SUM(INDEX(F_Tools!$T$100:$T$129,MATCH($D350,F_Tools!$E$100:$E$129,0)))/K341,\"\"))","v":""},{"$f":"IF($D350=\"\",\"\",IFERROR(SUM($G350)*SUM(INDEX(F_Tools!$U$100:$U$129,MATCH($D350,F_Tools!$E$100:$E$129,0)))/K341,\"\"))","v":""},{"$nulls":8},{"$f":"CONST_PrecursorToGoodInput&D350&\"_\"&D339","v":"PrecToGood__"},null,{"$f":"SUMIF(D_Processes!R:R,AB350,D_Processes!K:K)","v":0},{"$f":"SUMIF(D_Processes!R:R,CONST_CNTR_TotProd&D350,D_Processes!L:L)","v":0},null,false]
[null,null,9,{"$f":"IF(D339=\"\",\"\",IF(COUNTIF(INDEX(CNTR_IOSupplyChain,MATCH(D339,CNTR_IOProcAndPrec,0),),C351)=0,\"\",INDEX(CNTR_IOProcAndPrec,MATCH(C351,INDEX(CNTR_IOSupplyChain,MATCH(D339,CNTR_IOProcAndPrec,0),),0))))","v":""},null,"",{"$f":"IF(D351=\"\",\"\",INDEX(CNTR_Matrix_Inv,MATCH(D339,CNTR_IOProcAndPrec,0),MATCH(D351,CNTR_IOProcAndPrec,0)))","v":""},{"$f":"IF(D351=\"\",\"\",IF(AG351,INDEX(E_PurchPrec!U:U,MATCH(CONST_PurchPrecDefaultUsed&D351,E_PurchPrec!R:R,0)),CONST_NA))","v":""},{"$f":"IF($D351=\"\",\"\",SUM($G351)*SUM(INDEX(InputOutput!$AJ$71:$AJ$100,MATCH($D351,InputOutput!$D$71:$D$100,0))))","v":""},{"$f":"IF($D351=\"\",\"\",SUM($G351)*SUM(INDEX(InputOutput!$AL$71:$AL$100,MATCH($D351,InputOutput!$D$71:$D$100,0))))","v":""},"",{"$f":"IF(D351=\"\",\"\",SUM(I351)*SUM(AD342))","v":""},{"$f":"IF(D351=\"\",\"\",SUM(J351)*SUM(AD342))","v":""},"",{"$f":"IF(AG351,INDEX(E_PurchPrec!U:U,MATCH(CONST_CNTR_ElecEFMethod&D351,E_PurchPrec!R:R,0)),INDEX(D_Processes!T:T,MATCH(CONST_CNTR_ElecEFMethod&D351,D_Processes!R:R,0)))","v":""},{"$f":"IF(OR($D351=\"\",$AG351),\"\",SUM($G351)*SUM(INDEX(InputOutput!$AN$71:$AN$100,MATCH($D351,InputOutput!$D$71:$D$100,0))))","v":""},{"$f":"IF(D351=\"\",\"\",IF(AG351,INDEX(A_InstData!$F$101:$F$120,MATCH(D351,CNTR_List_ExistPurchPrecNames,0)),\"\"))","v":""},{"$f":"IF($D351=\"\",\"\",IFERROR(SUM($G351)*SUM(INDEX(F_Tools!$T$100:$T$129,MATCH($D351,F_Tools!$E$100:$E$129,0)))/K341,\"\"))","v":""},{"$f":"IF($D351=\"\",\"\",IFERROR(SUM($G351)*SUM(INDEX(F_Tools!$U$100:$U$129,MATCH($D351,F_Tools!$E$100:$E$129,0)))/K341,\"\"))","v":""},{"$nulls":8},{"$f":"CONST_PrecursorToGoodInput&D351&\"_\"&D339","v":"PrecToGood__"},null,{"$f":"SUMIF(D_Processes!R:R,AB351,D_Processes!K:K)","v":0},{"$f":"SUMIF(D_Processes!R:R,CONST_CNTR_TotProd&D351,D_Processes!L:L)","v":0},null,false]
[null,null,10,{"$f":"IF(D339=\"\",\"\",IF(COUNTIF(INDEX(CNTR_IOSupplyChain,MATCH(D339,CNTR_IOProcAndPrec,0),),C352)=0,\"\",INDEX(CNTR_IOProcAndPrec,MATCH(C352,INDEX(CNTR_IOSupplyChain,MATCH(D339,CNTR_IOProcAndPrec,0),),0))))","v":""},null,"",{"$f":"IF(D352=\"\",\"\",INDEX(CNTR_Matrix_Inv,MATCH(D339,CNTR_IOProcAndPrec,0),MATCH(D352,CNTR_IOProcAndPrec,0)))","v":""},{"$f":"IF(D352=\"\",\"\",IF(AG352,INDEX(E_PurchPrec!U:U,MATCH(CONST_PurchPrecDefaultUsed&D352,E_PurchPrec!R:R,0)),CONST_NA))","v":""},{"$f":"IF($D352=\"\",\"\",SUM($G352)*SUM(INDEX(InputOutput!$AJ$71:$AJ$100,MATCH($D352,InputOutput!$D$71:$D$100,0))))","v":""},{"$f":"IF($D352=\"\",\"\",SUM($G352)*SUM(INDEX(InputOutput!$AL$71:$AL$100,MATCH($D352,InputOutput!$D$71:$D$100,0))))","v":""},"",{"$f":"IF(D352=\"\",\"\",SUM(I352)*SUM(AD342))","v":""},{"$f":"IF(D352=\"\",\"\",SUM(J352)*SUM(AD342))","v":""},"",{"$f":"IF(AG352,INDEX(E_PurchPrec!U:U,MATCH(CONST_CNTR_ElecEFMethod&D352,E_PurchPrec!R:R,0)),INDEX(D_Processes!T:T,MATCH(CONST_CNTR_ElecEFMethod&D352,D_Processes!R:R,0)))","v":""},{"$f":"IF(OR($D352=\"\",$AG352),\"\",SUM($G352)*SUM(INDEX(InputOutput!$AN$71:$AN$100,MATCH($D352,InputOutput!$D$71:$D$100,0))))","v":""},{"$f":"IF(D352=\"\",\"\",IF(AG352,INDEX(A_InstData!$F$101:$F$120,MATCH(D352,CNTR_List_ExistPurchPrecNames,0)),\"\"))","v":""},{"$f":"IF($D352=\"\",\"\",IFERROR(SUM($G352)*SUM(INDEX(F_Tools!$T$100:$T$129,MATCH($D352,F_Tools!$E$100:$E$129,0)))/K341,\"\"))","v":""},{"$f":"IF($D352=\"\",\"\",IFERROR(SUM($G352)*SUM(INDEX(F_Tools!$U$100:$U$129,MATCH($D352,F_Tools!$E$100:$E$129,0)))/K341,\"\"))","v":""},{"$nulls":8},{"$f":"CONST_PrecursorToGoodInput&D352&\"_\"&D339","v":"PrecToGood__"},null,{"$f":"SUMIF(D_Processes!R:R,AB352,D_Processes!K:K)","v":0},{"$f":"SUMIF(D_Processes!R:R,CONST_CNTR_TotProd&D352,D_Processes!L:L)","v":0},null,false]
[null,null,11,{"$f":"IF(D339=\"\",\"\",IF(COUNTIF(INDEX(CNTR_IOSupplyChain,MATCH(D339,CNTR_IOProcAndPrec,0),),C353)=0,\"\",INDEX(CNTR_IOProcAndPrec,MATCH(C353,INDEX(CNTR_IOSupplyChain,MATCH(D339,CNTR_IOProcAndPrec,0),),0))))","v":""},null,"",{"$f":"IF(D353=\"\",\"\",INDEX(CNTR_Matrix_Inv,MATCH(D339,CNTR_IOProcAndPrec,0),MATCH(D353,CNTR_IOProcAndPrec,0)))","v":""},{"$f":"IF(D353=\"\",\"\",IF(AG353,INDEX(E_PurchPrec!U:U,MATCH(CONST_PurchPrecDefaultUsed&D353,E_PurchPrec!R:R,0)),CONST_NA))","v":""},{"$f":"IF($D353=\"\",\"\",SUM($G353)*SUM(INDEX(InputOutput!$AJ$71:$AJ$100,MATCH($D353,InputOutput!$D$71:$D$100,0))))","v":""},{"$f":"IF($D353=\"\",\"\",SUM($G353)*SUM(INDEX(InputOutput!$AL$71:$AL$100,MATCH($D353,InputOutput!$D$71:$D$100,0))))","v":""},"",{"$f":"IF(D353=\"\",\"\",SUM(I353)*SUM(AD342))","v":""},{"$f":"IF(D353=\"\",\"\",SUM(J353)*SUM(AD342))","v":""},"",{"$f":"IF(AG353,INDEX(E_PurchPrec!U:U,MATCH(CONST_CNTR_ElecEFMethod&D353,E_PurchPrec!R:R,0)),INDEX(D_Processes!T:T,MATCH(CONST_CNTR_ElecEFMethod&D353,D_Processes!R:R,0)))","v":""},{"$f":"IF(OR($D353=\"\",$AG353),\"\",SUM($G353)*SUM(INDEX(InputOutput!$AN$71:$AN$100,MATCH($D353,InputOutput!$D$71:$D$100,0))))","v":""},{"$f":"IF(D353=\"\",\"\",IF(AG353,INDEX(A_InstData!$F$101:$F$120,MATCH(D353,CNTR_List_ExistPurchPrecNames,0)),\"\"))","v":""},{"$f":"IF($D353=\"\",\"\",IFERROR(SUM($G353)*SUM(INDEX(F_Tools!$T$100:$T$129,MATCH($D353,F_Tools!$E$100:$E$129,0)))/K341,\"\"))","v":""},{"$f":"IF($D353=\"\",\"\",IFERROR(SUM($G353)*SUM(INDEX(F_Tools!$U$100:$U$129,MATCH($D353,F_Tools!$E$100:$E$129,0)))/K341,\"\"))","v":""},{"$nulls":8},{"$f":"CONST_PrecursorToGoodInput&D353&\"_\"&D339","v":"PrecToGood__"},null,{"$f":"SUMIF(D_Processes!R:R,AB353,D_Processes!K:K)","v":0},{"$f":"SUMIF(D_Processes!R:R,CONST_CNTR_TotProd&D353,D_Processes!L:L)","v":0},null,false]
[null,null,12,{"$f":"IF(D339=\"\",\"\",IF(COUNTIF(INDEX(CNTR_IOSupplyChain,MATCH(D339,CNTR_IOProcAndPrec,0),),C354)=0,\"\",INDEX(CNTR_IOProcAndPrec,MATCH(C354,INDEX(CNTR_IOSupplyChain,MATCH(D339,CNTR_IOProcAndPrec,0),),0))))","v":""},null,"",{"$f":"IF(D354=\"\",\"\",INDEX(CNTR_Matrix_Inv,MATCH(D339,CNTR_IOProcAndPrec,0),MATCH(D354,CNTR_IOProcAndPrec,0)))","v":""},{"$f":"IF(D354=\"\",\"\",IF(AG354,INDEX(E_PurchPrec!U:U,MATCH(CONST_PurchPrecDefaultUsed&D354,E_PurchPrec!R:R,0)),CONST_NA))","v":""},{"$f":"IF($D354=\"\",\"\",SUM($G354)*SUM(INDEX(InputOutput!$AJ$71:$AJ$100,MATCH($D354,InputOutput!$D$71:$D$100,0))))","v":""},{"$f":"IF($D354=\"\",\"\",SUM($G354)*SUM(INDEX(InputOutput!$AL$71:$AL$100,MATCH($D354,InputOutput!$D$71:$D$100,0))))","v":""},"",{"$f":"IF(D354=\"\",\"\",SUM(I354)*SUM(AD342))","v":""},{"$f":"IF(D354=\"\",\"\",SUM(J354)*SUM(AD342))","v":""},"",{"$f":"IF(AG354,INDEX(E_PurchPrec!U:U,MATCH(CONST_CNTR_ElecEFMethod&D354,E_PurchPrec!R:R,0)),INDEX(D_Processes!T:T,MATCH(CONST_CNTR_ElecEFMethod&D354,D_Processes!R:R,0)))","v":""},{"$f":"IF(OR($D354=\"\",$AG354),\"\",SUM($G354)*SUM(INDEX(InputOutput!$AN$71:$AN$100,MATCH($D354,InputOutput!$D$71:$D$100,0))))","v":""},{"$f":"IF(D354=\"\",\"\",IF(AG354,INDEX(A_InstData!$F$101:$F$120,MATCH(D354,CNTR_List_ExistPurchPrecNames,0)),\"\"))","v":""},{"$f":"IF($D354=\"\",\"\",IFERROR(SUM($G354)*SUM(INDEX(F_Tools!$T$100:$T$129,MATCH($D354,F_Tools!$E$100:$E$129,0)))/K341,\"\"))","v":""},{"$f":"IF($D354=\"\",\"\",IFERROR(SUM($G354)*SUM(INDEX(F_Tools!$U$100:$U$129,MATCH($D354,F_Tools!$E$100:$E$129,0)))/K341,\"\"))","v":""},{"$nulls":8},{"$f":"CONST_PrecursorToGoodInput&D354&\"_\"&D339","v":"PrecToGood__"},null,{"$f":"SUMIF(D_Processes!R:R,AB354,D_Processes!K:K)","v":0},{"$f":"SUMIF(D_Processes!R:R,CONST_CNTR_TotProd&D354,D_Processes!L:L)","v":0},null,false]
[null,null,13,{"$f":"IF(D339=\"\",\"\",IF(COUNTIF(INDEX(CNTR_IOSupplyChain,MATCH(D339,CNTR_IOProcAndPrec,0),),C355)=0,\"\",INDEX(CNTR_IOProcAndPrec,MATCH(C355,INDEX(CNTR_IOSupplyChain,MATCH(D339,CNTR_IOProcAndPrec,0),),0))))","v":""},null,"",{"$f":"IF(D355=\"\",\"\",INDEX(CNTR_Matrix_Inv,MATCH(D339,CNTR_IOProcAndPrec,0),MATCH(D355,CNTR_IOProcAndPrec,0)))","v":""},{"$f":"IF(D355=\"\",\"\",IF(AG355,INDEX(E_PurchPrec!U:U,MATCH(CONST_PurchPrecDefaultUsed&D355,E_PurchPrec!R:R,0)),CONST_NA))","v":""},{"$f":"IF($D355=\"\",\"\",SUM($G355)*SUM(INDEX(InputOutput!$AJ$71:$AJ$100,MATCH($D355,InputOutput!$D$71:$D$100,0))))","v":""},{"$f":"IF($D355=\"\",\"\",SUM($G355)*SUM(INDEX(InputOutput!$AL$71:$AL$100,MATCH($D355,InputOutput!$D$71:$D$100,0))))","v":""},"",{"$f":"IF(D355=\"\",\"\",SUM(I355)*SUM(AD342))","v":""},{"$f":"IF(D355=\"\",\"\",SUM(J355)*SUM(AD342))","v":""},"",{"$f":"IF(AG355,INDEX(E_PurchPrec!U:U,MATCH(CONST_CNTR_ElecEFMethod&D355,E_PurchPrec!R:R,0)),INDEX(D_Processes!T:T,MATCH(CONST_CNTR_ElecEFMethod&D355,D_Processes!R:R,0)))","v":""},{"$f":"IF(OR($D355=\"\",$AG355),\"\",SUM($G355)*SUM(INDEX(InputOutput!$AN$71:$AN$100,MATCH($D355,InputOutput!$D$71:$D$100,0))))","v":""},{"$f":"IF(D355=\"\",\"\",IF(AG355,INDEX(A_InstData!$F$101:$F$120,MATCH(D355,CNTR_List_ExistPurchPrecNames,0)),\"\"))","v":""},{"$f":"IF($D355=\"\",\"\",IFERROR(SUM($G355)*SUM(INDEX(F_Tools!$T$100:$T$129,MATCH($D355,F_Tools!$E$100:$E$129,0)))/K341,\"\"))","v":""},{"$f":"IF($D355=\"\",\"\",IFERROR(SUM($G355)*SUM(INDEX(F_Tools!$U$100:$U$129,MATCH($D355,F_Tools!$E$100:$E$129,0)))/K341,\"\"))","v":""},{"$nulls":8},{"$f":"CONST_PrecursorToGoodInput&D355&\"_\"&D339","v":"PrecToGood__"},null,{"$f":"SUMIF(D_Processes!R:R,AB355,D_Processes!K:K)","v":0},{"$f":"SUMIF(D_Processes!R:R,CONST_CNTR_TotProd&D355,D_Processes!L:L)","v":0},null,false]
[null,null,14,{"$f":"IF(D339=\"\",\"\",IF(COUNTIF(INDEX(CNTR_IOSupplyChain,MATCH(D339,CNTR_IOProcAndPrec,0),),C356)=0,\"\",INDEX(CNTR_IOProcAndPrec,MATCH(C356,INDEX(CNTR_IOSupplyChain,MATCH(D339,CNTR_IOProcAndPrec,0),),0))))","v":""},null,"",{"$f":"IF(D356=\"\",\"\",INDEX(CNTR_Matrix_Inv,MATCH(D339,CNTR_IOProcAndPrec,0),MATCH(D356,CNTR_IOProcAndPrec,0)))","v":""},{"$f":"IF(D356=\"\",\"\",IF(AG356,INDEX(E_PurchPrec!U:U,MATCH(CONST_PurchPrecDefaultUsed&D356,E_PurchPrec!R:R,0)),CONST_NA))","v":""},{"$f":"IF($D356=\"\",\"\",SUM($G356)*SUM(INDEX(InputOutput!$AJ$71:$AJ$100,MATCH($D356,InputOutput!$D$71:$D$100,0))))","v":""},{"$f":"IF($D356=\"\",\"\",SUM($G356)*SUM(INDEX(InputOutput!$AL$71:$AL$100,MATCH($D356,InputOutput!$D$71:$D$100,0))))","v":""},"",{"$f":"IF(D356=\"\",\"\",SUM(I356)*SUM(AD342))","v":""},{"$f":"IF(D356=\"\",\"\",SUM(J356)*SUM(AD342))","v":""},"",{"$f":"IF(AG356,INDEX(E_PurchPrec!U:U,MATCH(CONST_CNTR_ElecEFMethod&D356,E_PurchPrec!R:R,0)),INDEX(D_Processes!T:T,MATCH(CONST_CNTR_ElecEFMethod&D356,D_Processes!R:R,0)))","v":""},{"$f":"IF(OR($D356=\"\",$AG356),\"\",SUM($G356)*SUM(INDEX(InputOutput!$AN$71:$AN$100,MATCH($D356,InputOutput!$D$71:$D$100,0))))","v":""},{"$f":"IF(D356=\"\",\"\",IF(AG356,INDEX(A_InstData!$F$101:$F$120,MATCH(D356,CNTR_List_ExistPurchPrecNames,0)),\"\"))","v":""},{"$f":"IF($D356=\"\",\"\",IFERROR(SUM($G356)*SUM(INDEX(F_Tools!$T$100:$T$129,MATCH($D356,F_Tools!$E$100:$E$129,0)))/K341,\"\"))","v":""},{"$f":"IF($D356=\"\",\"\",IFERROR(SUM($G356)*SUM(INDEX(F_Tools!$U$100:$U$129,MATCH($D356,F_Tools!$E$100:$E$129,0)))/K341,\"\"))","v":""},{"$nulls":8},{"$f":"CONST_PrecursorToGoodInput&D356&\"_\"&D339","v":"PrecToGood__"},null,{"$f":"SUMIF(D_Processes!R:R,AB356,D_Processes!K:K)","v":0},{"$f":"SUMIF(D_Processes!R:R,CONST_CNTR_TotProd&D356,D_Processes!L:L)","v":0},null,false]
[null,null,15,{"$f":"IF(D339=\"\",\"\",IF(COUNTIF(INDEX(CNTR_IOSupplyChain,MATCH(D339,CNTR_IOProcAndPrec,0),),C357)=0,\"\",INDEX(CNTR_IOProcAndPrec,MATCH(C357,INDEX(CNTR_IOSupplyChain,MATCH(D339,CNTR_IOProcAndPrec,0),),0))))","v":""},null,"",{"$f":"IF(D357=\"\",\"\",INDEX(CNTR_Matrix_Inv,MATCH(D339,CNTR_IOProcAndPrec,0),MATCH(D357,CNTR_IOProcAndPrec,0)))","v":""},{"$f":"IF(D357=\"\",\"\",IF(AG357,INDEX(E_PurchPrec!U:U,MATCH(CONST_PurchPrecDefaultUsed&D357,E_PurchPrec!R:R,0)),CONST_NA))","v":""},{"$f":"IF($D357=\"\",\"\",SUM($G357)*SUM(INDEX(InputOutput!$AJ$71:$AJ$100,MATCH($D357,InputOutput!$D$71:$D$100,0))))","v":""},{"$f":"IF($D357=\"\",\"\",SUM($G357)*SUM(INDEX(InputOutput!$AL$71:$AL$100,MATCH($D357,InputOutput!$D$71:$D$100,0))))","v":""},"",{"$f":"IF(D357=\"\",\"\",SUM(I357)*SUM(AD342))","v":""},{"$f":"IF(D357=\"\",\"\",SUM(J357)*SUM(AD342))","v":""},"",{"$f":"IF(AG357,INDEX(E_PurchPrec!U:U,MATCH(CONST_CNTR_ElecEFMethod&D357,E_PurchPrec!R:R,0)),INDEX(D_Processes!T:T,MATCH(CONST_CNTR_ElecEFMethod&D357,D_Processes!R:R,0)))","v":""},{"$f":"IF(OR($D357=\"\",$AG357),\"\",SUM($G357)*SUM(INDEX(InputOutput!$AN$71:$AN$100,MATCH($D357,InputOutput!$D$71:$D$100,0))))","v":""},{"$f":"IF(D357=\"\",\"\",IF(AG357,INDEX(A_InstData!$F$101:$F$120,MATCH(D357,CNTR_List_ExistPurchPrecNames,0)),\"\"))","v":""},{"$f":"IF($D357=\"\",\"\",IFERROR(SUM($G357)*SUM(INDEX(F_Tools!$T$100:$T$129,MATCH($D357,F_Tools!$E$100:$E$129,0)))/K341,\"\"))","v":""},{"$f":"IF($D357=\"\",\"\",IFERROR(SUM($G357)*SUM(INDEX(F_Tools!$U$100:$U$129,MATCH($D357,F_Tools!$E$100:$E$129,0)))/K341,\"\"))","v":""},{"$nulls":8},{"$f":"CONST_PrecursorToGoodInput&D357&\"_\"&D339","v":"PrecToGood__"},null,{"$f":"SUMIF(D_Processes!R:R,AB357,D_Processes!K:K)","v":0},{"$f":"SUMIF(D_Processes!R:R,CONST_CNTR_TotProd&D357,D_Processes!L:L)","v":0},null,false]
[null,null,16,{"$f":"IF(D339=\"\",\"\",IF(COUNTIF(INDEX(CNTR_IOSupplyChain,MATCH(D339,CNTR_IOProcAndPrec,0),),C358)=0,\"\",INDEX(CNTR_IOProcAndPrec,MATCH(C358,INDEX(CNTR_IOSupplyChain,MATCH(D339,CNTR_IOProcAndPrec,0),),0))))","v":""},null,"",{"$f":"IF(D358=\"\",\"\",INDEX(CNTR_Matrix_Inv,MATCH(D339,CNTR_IOProcAndPrec,0),MATCH(D358,CNTR_IOProcAndPrec,0)))","v":""},{"$f":"IF(D358=\"\",\"\",IF(AG358,INDEX(E_PurchPrec!U:U,MATCH(CONST_PurchPrecDefaultUsed&D358,E_PurchPrec!R:R,0)),CONST_NA))","v":""},{"$f":"IF($D358=\"\",\"\",SUM($G358)*SUM(INDEX(InputOutput!$AJ$71:$AJ$100,MATCH($D358,InputOutput!$D$71:$D$100,0))))","v":""},{"$f":"IF($D358=\"\",\"\",SUM($G358)*SUM(INDEX(InputOutput!$AL$71:$AL$100,MATCH($D358,InputOutput!$D$71:$D$100,0))))","v":""},"",{"$f":"IF(D358=\"\",\"\",SUM(I358)*SUM(AD342))","v":""},{"$f":"IF(D358=\"\",\"\",SUM(J358)*SUM(AD342))","v":""},"",{"$f":"IF(AG358,INDEX(E_PurchPrec!U:U,MATCH(CONST_CNTR_ElecEFMethod&D358,E_PurchPrec!R:R,0)),INDEX(D_Processes!T:T,MATCH(CONST_CNTR_ElecEFMethod&D358,D_Processes!R:R,0)))","v":""},{"$f":"IF(OR($D358=\"\",$AG358),\"\",SUM($G358)*SUM(INDEX(InputOutput!$AN$71:$AN$100,MATCH($D358,InputOutput!$D$71:$D$100,0))))","v":""},{"$f":"IF(D358=\"\",\"\",IF(AG358,INDEX(A_InstData!$F$101:$F$120,MATCH(D358,CNTR_List_ExistPurchPrecNames,0)),\"\"))","v":""},{"$f":"IF($D358=\"\",\"\",IFERROR(SUM($G358)*SUM(INDEX(F_Tools!$T$100:$T$129,MATCH($D358,F_Tools!$E$100:$E$129,0)))/K341,\"\"))","v":""},{"$f":"IF($D358=\"\",\"\",IFERROR(SUM($G358)*SUM(INDEX(F_Tools!$U$100:$U$129,MATCH($D358,F_Tools!$E$100:$E$129,0)))/K341,\"\"))","v":""},{"$nulls":8},{"$f":"CONST_PrecursorToGoodInput&D358&\"_\"&D339","v":"PrecToGood__"},null,{"$f":"SUMIF(D_Processes!R:R,AB358,D_Processes!K:K)","v":0},{"$f":"SUMIF(D_Processes!R:R,CONST_CNTR_TotProd&D358,D_Processes!L:L)","v":0},null,false]
[null,null,17,{"$f":"IF(D339=\"\",\"\",IF(COUNTIF(INDEX(CNTR_IOSupplyChain,MATCH(D339,CNTR_IOProcAndPrec,0),),C359)=0,\"\",INDEX(CNTR_IOProcAndPrec,MATCH(C359,INDEX(CNTR_IOSupplyChain,MATCH(D339,CNTR_IOProcAndPrec,0),),0))))","v":""},null,"",{"$f":"IF(D359=\"\",\"\",INDEX(CNTR_Matrix_Inv,MATCH(D339,CNTR_IOProcAndPrec,0),MATCH(D359,CNTR_IOProcAndPrec,0)))","v":""},{"$f":"IF(D359=\"\",\"\",IF(AG359,INDEX(E_PurchPrec!U:U,MATCH(CONST_PurchPrecDefaultUsed&D359,E_PurchPrec!R:R,0)),CONST_NA))","v":""},{"$f":"IF($D359=\"\",\"\",SUM($G359)*SUM(INDEX(InputOutput!$AJ$71:$AJ$100,MATCH($D359,InputOutput!$D$71:$D$100,0))))","v":""},{"$f":"IF($D359=\"\",\"\",SUM($G359)*SUM(INDEX(InputOutput!$AL$71:$AL$100,MATCH($D359,InputOutput!$D$71:$D$100,0))))","v":""},"",{"$f":"IF(D359=\"\",\"\",SUM(I359)*SUM(AD342))","v":""},{"$f":"IF(D359=\"\",\"\",SUM(J359)*SUM(AD342))","v":""},"",{"$f":"IF(AG359,INDEX(E_PurchPrec!U:U,MATCH(CONST_CNTR_ElecEFMethod&D359,E_PurchPrec!R:R,0)),INDEX(D_Processes!T:T,MATCH(CONST_CNTR_ElecEFMethod&D359,D_Processes!R:R,0)))","v":""},{"$f":"IF(OR($D359=\"\",$AG359),\"\",SUM($G359)*SUM(INDEX(InputOutput!$AN$71:$AN$100,MATCH($D359,InputOutput!$D$71:$D$100,0))))","v":""},{"$f":"IF(D359=\"\",\"\",IF(AG359,INDEX(A_InstData!$F$101:$F$120,MATCH(D359,CNTR_List_ExistPurchPrecNames,0)),\"\"))","v":""},{"$f":"IF($D359=\"\",\"\",IFERROR(SUM($G359)*SUM(INDEX(F_Tools!$T$100:$T$129,MATCH($D359,F_Tools!$E$100:$E$129,0)))/K341,\"\"))","v":""},{"$f":"IF($D359=\"\",\"\",IFERROR(SUM($G359)*SUM(INDEX(F_Tools!$U$100:$U$129,MATCH($D359,F_Tools!$E$100:$E$129,0)))/K341,\"\"))","v":""},{"$nulls":8},{"$f":"CONST_PrecursorToGoodInput&D359&\"_\"&D339","v":"PrecToGood__"},null,{"$f":"SUMIF(D_Processes!R:R,AB359,D_Processes!K:K)","v":0},{"$f":"SUMIF(D_Processes!R:R,CONST_CNTR_TotProd&D359,D_Processes!L:L)","v":0},null,false]
[null,null,18,{"$f":"IF(D339=\"\",\"\",IF(COUNTIF(INDEX(CNTR_IOSupplyChain,MATCH(D339,CNTR_IOProcAndPrec,0),),C360)=0,\"\",INDEX(CNTR_IOProcAndPrec,MATCH(C360,INDEX(CNTR_IOSupplyChain,MATCH(D339,CNTR_IOProcAndPrec,0),),0))))","v":""},null,"",{"$f":"IF(D360=\"\",\"\",INDEX(CNTR_Matrix_Inv,MATCH(D339,CNTR_IOProcAndPrec,0),MATCH(D360,CNTR_IOProcAndPrec,0)))","v":""},{"$f":"IF(D360=\"\",\"\",IF(AG360,INDEX(E_PurchPrec!U:U,MATCH(CONST_PurchPrecDefaultUsed&D360,E_PurchPrec!R:R,0)),CONST_NA))","v":""},{"$f":"IF($D360=\"\",\"\",SUM($G360)*SUM(INDEX(InputOutput!$AJ$71:$AJ$100,MATCH($D360,InputOutput!$D$71:$D$100,0))))","v":""},{"$f":"IF($D360=\"\",\"\",SUM($G360)*SUM(INDEX(InputOutput!$AL$71:$AL$100,MATCH($D360,InputOutput!$D$71:$D$100,0))))","v":""},"",{"$f":"IF(D360=\"\",\"\",SUM(I360)*SUM(AD342))","v":""},{"$f":"IF(D360=\"\",\"\",SUM(J360)*SUM(AD342))","v":""},"",{"$f":"IF(AG360,INDEX(E_PurchPrec!U:U,MATCH(CONST_CNTR_ElecEFMethod&D360,E_PurchPrec!R:R,0)),INDEX(D_Processes!T:T,MATCH(CONST_CNTR_ElecEFMethod&D360,D_Processes!R:R,0)))","v":""},{"$f":"IF(OR($D360=\"\",$AG360),\"\",SUM($G360)*SUM(INDEX(InputOutput!$AN$71:$AN$100,MATCH($D360,InputOutput!$D$71:$D$100,0))))","v":""},{"$f":"IF(D360=\"\",\"\",IF(AG360,INDEX(A_InstData!$F$101:$F$120,MATCH(D360,CNTR_List_ExistPurchPrecNames,0)),\"\"))","v":""},{"$f":"IF($D360=\"\",\"\",IFERROR(SUM($G360)*SUM(INDEX(F_Tools!$T$100:$T$129,MATCH($D360,F_Tools!$E$100:$E$129,0)))/K341,\"\"))","v":""},{"$f":"IF($D360=\"\",\"\",IFERROR(SUM($G360)*SUM(INDEX(F_Tools!$U$100:$U$129,MATCH($D360,F_Tools!$E$100:$E$129,0)))/K341,\"\"))","v":""},{"$nulls":8},{"$f":"CONST_PrecursorToGoodInput&D360&\"_\"&D339","v":"PrecToGood__"},null,{"$f":"SUMIF(D_Processes!R:R,AB360,D_Processes!K:K)","v":0},{"$f":"SUMIF(D_Processes!R:R,CONST_CNTR_TotProd&D360,D_Processes!L:L)","v":0},null,false]
[null,null,19,{"$f":"IF(D339=\"\",\"\",IF(COUNTIF(INDEX(CNTR_IOSupplyChain,MATCH(D339,CNTR_IOProcAndPrec,0),),C361)=0,\"\",INDEX(CNTR_IOProcAndPrec,MATCH(C361,INDEX(CNTR_IOSupplyChain,MATCH(D339,CNTR_IOProcAndPrec,0),),0))))","v":""},null,"",{"$f":"IF(D361=\"\",\"\",INDEX(CNTR_Matrix_Inv,MATCH(D339,CNTR_IOProcAndPrec,0),MATCH(D361,CNTR_IOProcAndPrec,0)))","v":""},{"$f":"IF(D361=\"\",\"\",IF(AG361,INDEX(E_PurchPrec!U:U,MATCH(CONST_PurchPrecDefaultUsed&D361,E_PurchPrec!R:R,0)),CONST_NA))","v":""},{"$f":"IF($D361=\"\",\"\",SUM($G361)*SUM(INDEX(InputOutput!$AJ$71:$AJ$100,MATCH($D361,InputOutput!$D$71:$D$100,0))))","v":""},{"$f":"IF($D361=\"\",\"\",SUM($G361)*SUM(INDEX(InputOutput!$AL$71:$AL$100,MATCH($D361,InputOutput!$D$71:$D$100,0))))","v":""},"",{"$f":"IF(D361=\"\",\"\",SUM(I361)*SUM(AD342))","v":""},{"$f":"IF(D361=\"\",\"\",SUM(J361)*SUM(AD342))","v":""},"",{"$f":"IF(AG361,INDEX(E_PurchPrec!U:U,MATCH(CONST_CNTR_ElecEFMethod&D361,E_PurchPrec!R:R,0)),INDEX(D_Processes!T:T,MATCH(CONST_CNTR_ElecEFMethod&D361,D_Processes!R:R,0)))","v":""},{"$f":"IF(OR($D361=\"\",$AG361),\"\",SUM($G361)*SUM(INDEX(InputOutput!$AN$71:$AN$100,MATCH($D361,InputOutput!$D$71:$D$100,0))))","v":""},{"$f":"IF(D361=\"\",\"\",IF(AG361,INDEX(A_InstData!$F$101:$F$120,MATCH(D361,CNTR_List_ExistPurchPrecNames,0)),\"\"))","v":""},{"$f":"IF($D361=\"\",\"\",IFERROR(SUM($G361)*SUM(INDEX(F_Tools!$T$100:$T$129,MATCH($D361,F_Tools!$E$100:$E$129,0)))/K341,\"\"))","v":""},{"$f":"IF($D361=\"\",\"\",IFERROR(SUM($G361)*SUM(INDEX(F_Tools!$U$100:$U$129,MATCH($D361,F_Tools!$E$100:$E$129,0)))/K341,\"\"))","v":""},{"$nulls":8},{"$f":"CONST_PrecursorToGoodInput&D361&\"_\"&D339","v":"PrecToGood__"},null,{"$f":"SUMIF(D_Processes!R:R,AB361,D_Processes!K:K)","v":0},{"$f":"SUMIF(D_Processes!R:R,CONST_CNTR_TotProd&D361,D_Processes!L:L)","v":0},null,false]
[null,null,20,{"$f":"IF(D339=\"\",\"\",IF(COUNTIF(INDEX(CNTR_IOSupplyChain,MATCH(D339,CNTR_IOProcAndPrec,0),),C362)=0,\"\",INDEX(CNTR_IOProcAndPrec,MATCH(C362,INDEX(CNTR_IOSupplyChain,MATCH(D339,CNTR_IOProcAndPrec,0),),0))))","v":""},null,"",{"$f":"IF(D362=\"\",\"\",INDEX(CNTR_Matrix_Inv,MATCH(D339,CNTR_IOProcAndPrec,0),MATCH(D362,CNTR_IOProcAndPrec,0)))","v":""},{"$f":"IF(D362=\"\",\"\",IF(AG362,INDEX(E_PurchPrec!U:U,MATCH(CONST_PurchPrecDefaultUsed&D362,E_PurchPrec!R:R,0)),CONST_NA))","v":""},{"$f":"IF($D362=\"\",\"\",SUM($G362)*SUM(INDEX(InputOutput!$AJ$71:$AJ$100,MATCH($D362,InputOutput!$D$71:$D$100,0))))","v":""},{"$f":"IF($D362=\"\",\"\",SUM($G362)*SUM(INDEX(InputOutput!$AL$71:$AL$100,MATCH($D362,InputOutput!$D$71:$D$100,0))))","v":""},"",{"$f":"IF(D362=\"\",\"\",SUM(I362)*SUM(AD342))","v":""},{"$f":"IF(D362=\"\",\"\",SUM(J362)*SUM(AD342))","v":""},"",{"$f":"IF(AG362,INDEX(E_PurchPrec!U:U,MATCH(CONST_CNTR_ElecEFMethod&D362,E_PurchPrec!R:R,0)),INDEX(D_Processes!T:T,MATCH(CONST_CNTR_ElecEFMethod&D362,D_Processes!R:R,0)))","v":""},{"$f":"IF(OR($D362=\"\",$AG362),\"\",SUM($G362)*SUM(INDEX(InputOutput!$AN$71:$AN$100,MATCH($D362,InputOutput!$D$71:$D$100,0))))","v":""},{"$f":"IF(D362=\"\",\"\",IF(AG362,INDEX(A_InstData!$F$101:$F$120,MATCH(D362,CNTR_List_ExistPurchPrecNames,0)),\"\"))","v":""},{"$f":"IF($D362=\"\",\"\",IFERROR(SUM($G362)*SUM(INDEX(F_Tools!$T$100:$T$129,MATCH($D362,F_Tools!$E$100:$E$129,0)))/K341,\"\"))","v":""},{"$f":"IF($D362=\"\",\"\",IFERROR(SUM($G362)*SUM(INDEX(F_Tools!$U$100:$U$129,MATCH($D362,F_Tools!$E$100:$E$129,0)))/K341,\"\"))","v":""},{"$nulls":8},{"$f":"CONST_PrecursorToGoodInput&D362&\"_\"&D339","v":"PrecToGood__"},null,{"$f":"SUMIF(D_Processes!R:R,AB362,D_Processes!K:K)","v":0},{"$f":"SUMIF(D_Processes!R:R,CONST_CNTR_TotProd&D362,D_Processes!L:L)","v":0},null,false]
[null,null,21,{"$f":"IF(D339=\"\",\"\",IF(COUNTIF(INDEX(CNTR_IOSupplyChain,MATCH(D339,CNTR_IOProcAndPrec,0),),C363)=0,\"\",INDEX(CNTR_IOProcAndPrec,MATCH(C363,INDEX(CNTR_IOSupplyChain,MATCH(D339,CNTR_IOProcAndPrec,0),),0))))","v":""},null,"",{"$f":"IF(D363=\"\",\"\",INDEX(CNTR_Matrix_Inv,MATCH(D339,CNTR_IOProcAndPrec,0),MATCH(D363,CNTR_IOProcAndPrec,0)))","v":""},{"$f":"IF(D363=\"\",\"\",IF(AG363,INDEX(E_PurchPrec!U:U,MATCH(CONST_PurchPrecDefaultUsed&D363,E_PurchPrec!R:R,0)),CONST_NA))","v":""},{"$f":"IF($D363=\"\",\"\",SUM($G363)*SUM(INDEX(InputOutput!$AJ$71:$AJ$100,MATCH($D363,InputOutput!$D$71:$D$100,0))))","v":""},{"$f":"IF($D363=\"\",\"\",SUM($G363)*SUM(INDEX(InputOutput!$AL$71:$AL$100,MATCH($D363,InputOutput!$D$71:$D$100,0))))","v":""},"",{"$f":"IF(D363=\"\",\"\",SUM(I363)*SUM(AD342))","v":""},{"$f":"IF(D363=\"\",\"\",SUM(J363)*SUM(AD342))","v":""},"",{"$f":"IF(AG363,INDEX(E_PurchPrec!U:U,MATCH(CONST_CNTR_ElecEFMethod&D363,E_PurchPrec!R:R,0)),INDEX(D_Processes!T:T,MATCH(CONST_CNTR_ElecEFMethod&D363,D_Processes!R:R,0)))","v":""},{"$f":"IF(OR($D363=\"\",$AG363),\"\",SUM($G363)*SUM(INDEX(InputOutput!$AN$71:$AN$100,MATCH($D363,InputOutput!$D$71:$D$100,0))))","v":""},{"$f":"IF(D363=\"\",\"\",IF(AG363,INDEX(A_InstData!$F$101:$F$120,MATCH(D363,CNTR_List_ExistPurchPrecNames,0)),\"\"))","v":""},{"$f":"IF($D363=\"\",\"\",IFERROR(SUM($G363)*SUM(INDEX(F_Tools!$T$100:$T$129,MATCH($D363,F_Tools!$E$100:$E$129,0)))/K341,\"\"))","v":""},{"$f":"IF($D363=\"\",\"\",IFERROR(SUM($G363)*SUM(INDEX(F_Tools!$U$100:$U$129,MATCH($D363,F_Tools!$E$100:$E$129,0)))/K341,\"\"))","v":""},{"$nulls":8},{"$f":"CONST_PrecursorToGoodInput&D363&\"_\"&D339","v":"PrecToGood__"},null,{"$f":"SUMIF(D_Processes!R:R,AB363,D_Processes!K:K)","v":0},{"$f":"SUMIF(D_Processes!R:R,CONST_CNTR_TotProd&D363,D_Processes!L:L)","v":0},null,false]
[null,null,22,{"$f":"IF(D339=\"\",\"\",IF(COUNTIF(INDEX(CNTR_IOSupplyChain,MATCH(D339,CNTR_IOProcAndPrec,0),),C364)=0,\"\",INDEX(CNTR_IOProcAndPrec,MATCH(C364,INDEX(CNTR_IOSupplyChain,MATCH(D339,CNTR_IOProcAndPrec,0),),0))))","v":""},null,"",{"$f":"IF(D364=\"\",\"\",INDEX(CNTR_Matrix_Inv,MATCH(D339,CNTR_IOProcAndPrec,0),MATCH(D364,CNTR_IOProcAndPrec,0)))","v":""},{"$f":"IF(D364=\"\",\"\",IF(AG364,INDEX(E_PurchPrec!U:U,MATCH(CONST_PurchPrecDefaultUsed&D364,E_PurchPrec!R:R,0)),CONST_NA))","v":""},{"$f":"IF($D364=\"\",\"\",SUM($G364)*SUM(INDEX(InputOutput!$AJ$71:$AJ$100,MATCH($D364,InputOutput!$D$71:$D$100,0))))","v":""},{"$f":"IF($D364=\"\",\"\",SUM($G364)*SUM(INDEX(InputOutput!$AL$71:$AL$100,MATCH($D364,InputOutput!$D$71:$D$100,0))))","v":""},"",{"$f":"IF(D364=\"\",\"\",SUM(I364)*SUM(AD342))","v":""},{"$f":"IF(D364=\"\",\"\",SUM(J364)*SUM(AD342))","v":""},"",{"$f":"IF(AG364,INDEX(E_PurchPrec!U:U,MATCH(CONST_CNTR_ElecEFMethod&D364,E_PurchPrec!R:R,0)),INDEX(D_Processes!T:T,MATCH(CONST_CNTR_ElecEFMethod&D364,D_Processes!R:R,0)))","v":""},{"$f":"IF(OR($D364=\"\",$AG364),\"\",SUM($G364)*SUM(INDEX(InputOutput!$AN$71:$AN$100,MATCH($D364,InputOutput!$D$71:$D$100,0))))","v":""},{"$f":"IF(D364=\"\",\"\",IF(AG364,INDEX(A_InstData!$F$101:$F$120,MATCH(D364,CNTR_List_ExistPurchPrecNames,0)),\"\"))","v":""},{"$f":"IF($D364=\"\",\"\",IFERROR(SUM($G364)*SUM(INDEX(F_Tools!$T$100:$T$129,MATCH($D364,F_Tools!$E$100:$E$129,0)))/K341,\"\"))","v":""},{"$f":"IF($D364=\"\",\"\",IFERROR(SUM($G364)*SUM(INDEX(F_Tools!$U$100:$U$129,MATCH($D364,F_Tools!$E$100:$E$129,0)))/K341,\"\"))","v":""},{"$nulls":8},{"$f":"CONST_PrecursorToGoodInput&D364&\"_\"&D339","v":"PrecToGood__"},null,{"$f":"SUMIF(D_Processes!R:R,AB364,D_Processes!K:K)","v":0},{"$f":"SUMIF(D_Processes!R:R,CONST_CNTR_TotProd&D364,D_Processes!L:L)","v":0},null,false]
[null,null,23,{"$f":"IF(D339=\"\",\"\",IF(COUNTIF(INDEX(CNTR_IOSupplyChain,MATCH(D339,CNTR_IOProcAndPrec,0),),C365)=0,\"\",INDEX(CNTR_IOProcAndPrec,MATCH(C365,INDEX(CNTR_IOSupplyChain,MATCH(D339,CNTR_IOProcAndPrec,0),),0))))","v":""},null,"",{"$f":"IF(D365=\"\",\"\",INDEX(CNTR_Matrix_Inv,MATCH(D339,CNTR_IOProcAndPrec,0),MATCH(D365,CNTR_IOProcAndPrec,0)))","v":""},{"$f":"IF(D365=\"\",\"\",IF(AG365,INDEX(E_PurchPrec!U:U,MATCH(CONST_PurchPrecDefaultUsed&D365,E_PurchPrec!R:R,0)),CONST_NA))","v":""},{"$f":"IF($D365=\"\",\"\",SUM($G365)*SUM(INDEX(InputOutput!$AJ$71:$AJ$100,MATCH($D365,InputOutput!$D$71:$D$100,0))))","v":""},{"$f":"IF($D365=\"\",\"\",SUM($G365)*SUM(INDEX(InputOutput!$AL$71:$AL$100,MATCH($D365,InputOutput!$D$71:$D$100,0))))","v":""},"",{"$f":"IF(D365=\"\",\"\",SUM(I365)*SUM(AD342))","v":""},{"$f":"IF(D365=\"\",\"\",SUM(J365)*SUM(AD342))","v":""},"",{"$f":"IF(AG365,INDEX(E_PurchPrec!U:U,MATCH(CONST_CNTR_ElecEFMethod&D365,E_PurchPrec!R:R,0)),INDEX(D_Processes!T:T,MATCH(CONST_CNTR_ElecEFMethod&D365,D_Processes!R:R,0)))","v":""},{"$f":"IF(OR($D365=\"\",$AG365),\"\",SUM($G365)*SUM(INDEX(InputOutput!$AN$71:$AN$100,MATCH($D365,InputOutput!$D$71:$D$100,0))))","v":""},{"$f":"IF(D365=\"\",\"\",IF(AG365,INDEX(A_InstData!$F$101:$F$120,MATCH(D365,CNTR_List_ExistPurchPrecNames,0)),\"\"))","v":""},{"$f":"IF($D365=\"\",\"\",IFERROR(SUM($G365)*SUM(INDEX(F_Tools!$T$100:$T$129,MATCH($D365,F_Tools!$E$100:$E$129,0)))/K341,\"\"))","v":""},{"$f":"IF($D365=\"\",\"\",IFERROR(SUM($G365)*SUM(INDEX(F_Tools!$U$100:$U$129,MATCH($D365,F_Tools!$E$100:$E$129,0)))/K341,\"\"))","v":""},{"$nulls":8},{"$f":"CONST_PrecursorToGoodInput&D365&\"_\"&D339","v":"PrecToGood__"},null,{"$f":"SUMIF(D_Processes!R:R,AB365,D_Processes!K:K)","v":0},{"$f":"SUMIF(D_Processes!R:R,CONST_CNTR_TotProd&D365,D_Processes!L:L)","v":0},null,false]
[null,null,24,{"$f":"IF(D339=\"\",\"\",IF(COUNTIF(INDEX(CNTR_IOSupplyChain,MATCH(D339,CNTR_IOProcAndPrec,0),),C366)=0,\"\",INDEX(CNTR_IOProcAndPrec,MATCH(C366,INDEX(CNTR_IOSupplyChain,MATCH(D339,CNTR_IOProcAndPrec,0),),0))))","v":""},null,"",{"$f":"IF(D366=\"\",\"\",INDEX(CNTR_Matrix_Inv,MATCH(D339,CNTR_IOProcAndPrec,0),MATCH(D366,CNTR_IOProcAndPrec,0)))","v":""},{"$f":"IF(D366=\"\",\"\",IF(AG366,INDEX(E_PurchPrec!U:U,MATCH(CONST_PurchPrecDefaultUsed&D366,E_PurchPrec!R:R,0)),CONST_NA))","v":""},{"$f":"IF($D366=\"\",\"\",SUM($G366)*SUM(INDEX(InputOutput!$AJ$71:$AJ$100,MATCH($D366,InputOutput!$D$71:$D$100,0))))","v":""},{"$f":"IF($D366=\"\",\"\",SUM($G366)*SUM(INDEX(InputOutput!$AL$71:$AL$100,MATCH($D366,InputOutput!$D$71:$D$100,0))))","v":""},"",{"$f":"IF(D366=\"\",\"\",SUM(I366)*SUM(AD342))","v":""},{"$f":"IF(D366=\"\",\"\",SUM(J366)*SUM(AD342))","v":""},"",{"$f":"IF(AG366,INDEX(E_PurchPrec!U:U,MATCH(CONST_CNTR_ElecEFMethod&D366,E_PurchPrec!R:R,0)),INDEX(D_Processes!T:T,MATCH(CONST_CNTR_ElecEFMethod&D366,D_Processes!R:R,0)))","v":""},{"$f":"IF(OR($D366=\"\",$AG366),\"\",SUM($G366)*SUM(INDEX(InputOutput!$AN$71:$AN$100,MATCH($D366,InputOutput!$D$71:$D$100,0))))","v":""},{"$f":"IF(D366=\"\",\"\",IF(AG366,INDEX(A_InstData!$F$101:$F$120,MATCH(D366,CNTR_List_ExistPurchPrecNames,0)),\"\"))","v":""},{"$f":"IF($D366=\"\",\"\",IFERROR(SUM($G366)*SUM(INDEX(F_Tools!$T$100:$T$129,MATCH($D366,F_Tools!$E$100:$E$129,0)))/K341,\"\"))","v":""},{"$f":"IF($D366=\"\",\"\",IFERROR(SUM($G366)*SUM(INDEX(F_Tools!$U$100:$U$129,MATCH($D366,F_Tools!$E$100:$E$129,0)))/K341,\"\"))","v":""},{"$nulls":8},{"$f":"CONST_PrecursorToGoodInput&D366&\"_\"&D339","v":"PrecToGood__"},null,{"$f":"SUMIF(D_Processes!R:R,AB366,D_Processes!K:K)","v":0},{"$f":"SUMIF(D_Processes!R:R,CONST_CNTR_TotProd&D366,D_Processes!L:L)","v":0},null,false]
[null,null,25,{"$f":"IF(D339=\"\",\"\",IF(COUNTIF(INDEX(CNTR_IOSupplyChain,MATCH(D339,CNTR_IOProcAndPrec,0),),C367)=0,\"\",INDEX(CNTR_IOProcAndPrec,MATCH(C367,INDEX(CNTR_IOSupplyChain,MATCH(D339,CNTR_IOProcAndPrec,0),),0))))","v":""},null,"",{"$f":"IF(D367=\"\",\"\",INDEX(CNTR_Matrix_Inv,MATCH(D339,CNTR_IOProcAndPrec,0),MATCH(D367,CNTR_IOProcAndPrec,0)))","v":""},{"$f":"IF(D367=\"\",\"\",IF(AG367,INDEX(E_PurchPrec!U:U,MATCH(CONST_PurchPrecDefaultUsed&D367,E_PurchPrec!R:R,0)),CONST_NA))","v":""},{"$f":"IF($D367=\"\",\"\",SUM($G367)*SUM(INDEX(InputOutput!$AJ$71:$AJ$100,MATCH($D367,InputOutput!$D$71:$D$100,0))))","v":""},{"$f":"IF($D367=\"\",\"\",SUM($G367)*SUM(INDEX(InputOutput!$AL$71:$AL$100,MATCH($D367,InputOutput!$D$71:$D$100,0))))","v":""},"",{"$f":"IF(D367=\"\",\"\",SUM(I367)*SUM(AD342))","v":""},{"$f":"IF(D367=\"\",\"\",SUM(J367)*SUM(AD342))","v":""},"",{"$f":"IF(AG367,INDEX(E_PurchPrec!U:U,MATCH(CONST_CNTR_ElecEFMethod&D367,E_PurchPrec!R:R,0)),INDEX(D_Processes!T:T,MATCH(CONST_CNTR_ElecEFMethod&D367,D_Processes!R:R,0)))","v":""},{"$f":"IF(OR($D367=\"\",$AG367),\"\",SUM($G367)*SUM(INDEX(InputOutput!$AN$71:$AN$100,MATCH($D367,InputOutput!$D$71:$D$100,0))))","v":""},{"$f":"IF(D367=\"\",\"\",IF(AG367,INDEX(A_InstData!$F$101:$F$120,MATCH(D367,CNTR_List_ExistPurchPrecNames,0)),\"\"))","v":""},{"$f":"IF($D367=\"\",\"\",IFERROR(SUM($G367)*SUM(INDEX(F_Tools!$T$100:$T$129,MATCH($D367,F_Tools!$E$100:$E$129,0)))/K341,\"\"))","v":""},{"$f":"IF($D367=\"\",\"\",IFERROR(SUM($G367)*SUM(INDEX(F_Tools!$U$100:$U$129,MATCH($D367,F_Tools!$E$100:$E$129,0)))/K341,\"\"))","v":""},{"$nulls":8},{"$f":"CONST_PrecursorToGoodInput&D367&\"_\"&D339","v":"PrecToGood__"},null,{"$f":"SUMIF(D_Processes!R:R,AB367,D_Processes!K:K)","v":0},{"$f":"SUMIF(D_Processes!R:R,CONST_CNTR_TotProd&D367,D_Processes!L:L)","v":0},null,false]
[null,null,26,{"$f":"IF(D339=\"\",\"\",IF(COUNTIF(INDEX(CNTR_IOSupplyChain,MATCH(D339,CNTR_IOProcAndPrec,0),),C368)=0,\"\",INDEX(CNTR_IOProcAndPrec,MATCH(C368,INDEX(CNTR_IOSupplyChain,MATCH(D339,CNTR_IOProcAndPrec,0),),0))))","v":""},null,"",{"$f":"IF(D368=\"\",\"\",INDEX(CNTR_Matrix_Inv,MATCH(D339,CNTR_IOProcAndPrec,0),MATCH(D368,CNTR_IOProcAndPrec,0)))","v":""},{"$f":"IF(D368=\"\",\"\",IF(AG368,INDEX(E_PurchPrec!U:U,MATCH(CONST_PurchPrecDefaultUsed&D368,E_PurchPrec!R:R,0)),CONST_NA))","v":""},{"$f":"IF($D368=\"\",\"\",SUM($G368)*SUM(INDEX(InputOutput!$AJ$71:$AJ$100,MATCH($D368,InputOutput!$D$71:$D$100,0))))","v":""},{"$f":"IF($D368=\"\",\"\",SUM($G368)*SUM(INDEX(InputOutput!$AL$71:$AL$100,MATCH($D368,InputOutput!$D$71:$D$100,0))))","v":""},"",{"$f":"IF(D368=\"\",\"\",SUM(I368)*SUM(AD342))","v":""},{"$f":"IF(D368=\"\",\"\",SUM(J368)*SUM(AD342))","v":""},"",{"$f":"IF(AG368,INDEX(E_PurchPrec!U:U,MATCH(CONST_CNTR_ElecEFMethod&D368,E_PurchPrec!R:R,0)),INDEX(D_Processes!T:T,MATCH(CONST_CNTR_ElecEFMethod&D368,D_Processes!R:R,0)))","v":""},{"$f":"IF(OR($D368=\"\",$AG368),\"\",SUM($G368)*SUM(INDEX(InputOutput!$AN$71:$AN$100,MATCH($D368,InputOutput!$D$71:$D$100,0))))","v":""},{"$f":"IF(D368=\"\",\"\",IF(AG368,INDEX(A_InstData!$F$101:$F$120,MATCH(D368,CNTR_List_ExistPurchPrecNames,0)),\"\"))","v":""},{"$f":"IF($D368=\"\",\"\",IFERROR(SUM($G368)*SUM(INDEX(F_Tools!$T$100:$T$129,MATCH($D368,F_Tools!$E$100:$E$129,0)))/K341,\"\"))","v":""},{"$f":"IF($D368=\"\",\"\",IFERROR(SUM($G368)*SUM(INDEX(F_Tools!$U$100:$U$129,MATCH($D368,F_Tools!$E$100:$E$129,0)))/K341,\"\"))","v":""},{"$nulls":8},{"$f":"CONST_PrecursorToGoodInput&D368&\"_\"&D339","v":"PrecToGood__"},null,{"$f":"SUMIF(D_Processes!R:R,AB368,D_Processes!K:K)","v":0},{"$f":"SUMIF(D_Processes!R:R,CONST_CNTR_TotProd&D368,D_Processes!L:L)","v":0},null,false]
[null,null,27,{"$f":"IF(D339=\"\",\"\",IF(COUNTIF(INDEX(CNTR_IOSupplyChain,MATCH(D339,CNTR_IOProcAndPrec,0),),C369)=0,\"\",INDEX(CNTR_IOProcAndPrec,MATCH(C369,INDEX(CNTR_IOSupplyChain,MATCH(D339,CNTR_IOProcAndPrec,0),),0))))","v":""},null,"",{"$f":"IF(D369=\"\",\"\",INDEX(CNTR_Matrix_Inv,MATCH(D339,CNTR_IOProcAndPrec,0),MATCH(D369,CNTR_IOProcAndPrec,0)))","v":""},{"$f":"IF(D369=\"\",\"\",IF(AG369,INDEX(E_PurchPrec!U:U,MATCH(CONST_PurchPrecDefaultUsed&D369,E_PurchPrec!R:R,0)),CONST_NA))","v":""},{"$f":"IF($D369=\"\",\"\",SUM($G369)*SUM(INDEX(InputOutput!$AJ$71:$AJ$100,MATCH($D369,InputOutput!$D$71:$D$100,0))))","v":""},{"$f":"IF($D369=\"\",\"\",SUM($G369)*SUM(INDEX(InputOutput!$AL$71:$AL$100,MATCH($D369,InputOutput!$D$71:$D$100,0))))","v":""},"",{"$f":"IF(D369=\"\",\"\",SUM(I369)*SUM(AD342))","v":""},{"$f":"IF(D369=\"\",\"\",SUM(J369)*SUM(AD342))","v":""},"",{"$f":"IF(AG369,INDEX(E_PurchPrec!U:U,MATCH(CONST_CNTR_ElecEFMethod&D369,E_PurchPrec!R:R,0)),INDEX(D_Processes!T:T,MATCH(CONST_CNTR_ElecEFMethod&D369,D_Processes!R:R,0)))","v":""},{"$f":"IF(OR($D369=\"\",$AG369),\"\",SUM($G369)*SUM(INDEX(InputOutput!$AN$71:$AN$100,MATCH($D369,InputOutput!$D$71:$D$100,0))))","v":""},{"$f":"IF(D369=\"\",\"\",IF(AG369,INDEX(A_InstData!$F$101:$F$120,MATCH(D369,CNTR_List_ExistPurchPrecNames,0)),\"\"))","v":""},{"$f":"IF($D369=\"\",\"\",IFERROR(SUM($G369)*SUM(INDEX(F_Tools!$T$100:$T$129,MATCH($D369,F_Tools!$E$100:$E$129,0)))/K341,\"\"))","v":""},{"$f":"IF($D369=\"\",\"\",IFERROR(SUM($G369)*SUM(INDEX(F_Tools!$U$100:$U$129,MATCH($D369,F_Tools!$E$100:$E$129,0)))/K341,\"\"))","v":""},{"$nulls":8},{"$f":"CONST_PrecursorToGoodInput&D369&\"_\"&D339","v":"PrecToGood__"},null,{"$f":"SUMIF(D_Processes!R:R,AB369,D_Processes!K:K)","v":0},{"$f":"SUMIF(D_Processes!R:R,CONST_CNTR_TotProd&D369,D_Processes!L:L)","v":0},null,false]
[null,null,28,{"$f":"IF(D339=\"\",\"\",IF(COUNTIF(INDEX(CNTR_IOSupplyChain,MATCH(D339,CNTR_IOProcAndPrec,0),),C370)=0,\"\",INDEX(CNTR_IOProcAndPrec,MATCH(C370,INDEX(CNTR_IOSupplyChain,MATCH(D339,CNTR_IOProcAndPrec,0),),0))))","v":""},null,"",{"$f":"IF(D370=\"\",\"\",INDEX(CNTR_Matrix_Inv,MATCH(D339,CNTR_IOProcAndPrec,0),MATCH(D370,CNTR_IOProcAndPrec,0)))","v":""},{"$f":"IF(D370=\"\",\"\",IF(AG370,INDEX(E_PurchPrec!U:U,MATCH(CONST_PurchPrecDefaultUsed&D370,E_PurchPrec!R:R,0)),CONST_NA))","v":""},{"$f":"IF($D370=\"\",\"\",SUM($G370)*SUM(INDEX(InputOutput!$AJ$71:$AJ$100,MATCH($D370,InputOutput!$D$71:$D$100,0))))","v":""},{"$f":"IF($D370=\"\",\"\",SUM($G370)*SUM(INDEX(InputOutput!$AL$71:$AL$100,MATCH($D370,InputOutput!$D$71:$D$100,0))))","v":""},"",{"$f":"IF(D370=\"\",\"\",SUM(I370)*SUM(AD342))","v":""},{"$f":"IF(D370=\"\",\"\",SUM(J370)*SUM(AD342))","v":""},"",{"$f":"IF(AG370,INDEX(E_PurchPrec!U:U,MATCH(CONST_CNTR_ElecEFMethod&D370,E_PurchPrec!R:R,0)),INDEX(D_Processes!T:T,MATCH(CONST_CNTR_ElecEFMethod&D370,D_Processes!R:R,0)))","v":""},{"$f":"IF(OR($D370=\"\",$AG370),\"\",SUM($G370)*SUM(INDEX(InputOutput!$AN$71:$AN$100,MATCH($D370,InputOutput!$D$71:$D$100,0))))","v":""},{"$f":"IF(D370=\"\",\"\",IF(AG370,INDEX(A_InstData!$F$101:$F$120,MATCH(D370,CNTR_List_ExistPurchPrecNames,0)),\"\"))","v":""},{"$f":"IF($D370=\"\",\"\",IFERROR(SUM($G370)*SUM(INDEX(F_Tools!$T$100:$T$129,MATCH($D370,F_Tools!$E$100:$E$129,0)))/K341,\"\"))","v":""},{"$f":"IF($D370=\"\",\"\",IFERROR(SUM($G370)*SUM(INDEX(F_Tools!$U$100:$U$129,MATCH($D370,F_Tools!$E$100:$E$129,0)))/K341,\"\"))","v":""},{"$nulls":8},{"$f":"CONST_PrecursorToGoodInput&D370&\"_\"&D339","v":"PrecToGood__"},null,{"$f":"SUMIF(D_Processes!R:R,AB370,D_Processes!K:K)","v":0},{"$f":"SUMIF(D_Processes!R:R,CONST_CNTR_TotProd&D370,D_Processes!L:L)","v":0},null,false]
[null,null,29,{"$f":"IF(D339=\"\",\"\",IF(COUNTIF(INDEX(CNTR_IOSupplyChain,MATCH(D339,CNTR_IOProcAndPrec,0),),C371)=0,\"\",INDEX(CNTR_IOProcAndPrec,MATCH(C371,INDEX(CNTR_IOSupplyChain,MATCH(D339,CNTR_IOProcAndPrec,0),),0))))","v":""},null,"",{"$f":"IF(D371=\"\",\"\",INDEX(CNTR_Matrix_Inv,MATCH(D339,CNTR_IOProcAndPrec,0),MATCH(D371,CNTR_IOProcAndPrec,0)))","v":""},{"$f":"IF(D371=\"\",\"\",IF(AG371,INDEX(E_PurchPrec!U:U,MATCH(CONST_PurchPrecDefaultUsed&D371,E_PurchPrec!R:R,0)),CONST_NA))","v":""},{"$f":"IF($D371=\"\",\"\",SUM($G371)*SUM(INDEX(InputOutput!$AJ$71:$AJ$100,MATCH($D371,InputOutput!$D$71:$D$100,0))))","v":""},{"$f":"IF($D371=\"\",\"\",SUM($G371)*SUM(INDEX(InputOutput!$AL$71:$AL$100,MATCH($D371,InputOutput!$D$71:$D$100,0))))","v":""},"",{"$f":"IF(D371=\"\",\"\",SUM(I371)*SUM(AD342))","v":""},{"$f":"IF(D371=\"\",\"\",SUM(J371)*SUM(AD342))","v":""},"",{"$f":"IF(AG371,INDEX(E_PurchPrec!U:U,MATCH(CONST_CNTR_ElecEFMethod&D371,E_PurchPrec!R:R,0)),INDEX(D_Processes!T:T,MATCH(CONST_CNTR_ElecEFMethod&D371,D_Processes!R:R,0)))","v":""},{"$f":"IF(OR($D371=\"\",$AG371),\"\",SUM($G371)*SUM(INDEX(InputOutput!$AN$71:$AN$100,MATCH($D371,InputOutput!$D$71:$D$100,0))))","v":""},{"$f":"IF(D371=\"\",\"\",IF(AG371,INDEX(A_InstData!$F$101:$F$120,MATCH(D371,CNTR_List_ExistPurchPrecNames,0)),\"\"))","v":""},{"$f":"IF($D371=\"\",\"\",IFERROR(SUM($G371)*SUM(INDEX(F_Tools!$T$100:$T$129,MATCH($D371,F_Tools!$E$100:$E$129,0)))/K341,\"\"))","v":""},{"$f":"IF($D371=\"\",\"\",IFERROR(SUM($G371)*SUM(INDEX(F_Tools!$U$100:$U$129,MATCH($D371,F_Tools!$E$100:$E$129,0)))/K341,\"\"))","v":""},{"$nulls":8},{"$f":"CONST_PrecursorToGoodInput&D371&\"_\"&D339","v":"PrecToGood__"},null,{"$f":"SUMIF(D_Processes!R:R,AB371,D_Processes!K:K)","v":0},{"$f":"SUMIF(D_Processes!R:R,CONST_CNTR_TotProd&D371,D_Processes!L:L)","v":0},null,false]
[null,null,30,{"$f":"IF(D339=\"\",\"\",IF(COUNTIF(INDEX(CNTR_IOSupplyChain,MATCH(D339,CNTR_IOProcAndPrec,0),),C372)=0,\"\",INDEX(CNTR_IOProcAndPrec,MATCH(C372,INDEX(CNTR_IOSupplyChain,MATCH(D339,CNTR_IOProcAndPrec,0),),0))))","v":""},null,"",{"$f":"IF(D372=\"\",\"\",INDEX(CNTR_Matrix_Inv,MATCH(D339,CNTR_IOProcAndPrec,0),MATCH(D372,CNTR_IOProcAndPrec,0)))","v":""},{"$f":"IF(D372=\"\",\"\",IF(AG372,INDEX(E_PurchPrec!U:U,MATCH(CONST_PurchPrecDefaultUsed&D372,E_PurchPrec!R:R,0)),CONST_NA))","v":""},{"$f":"IF($D372=\"\",\"\",SUM($G372)*SUM(INDEX(InputOutput!$AJ$71:$AJ$100,MATCH($D372,InputOutput!$D$71:$D$100,0))))","v":""},{"$f":"IF($D372=\"\",\"\",SUM($G372)*SUM(INDEX(InputOutput!$AL$71:$AL$100,MATCH($D372,InputOutput!$D$71:$D$100,0))))","v":""},"",{"$f":"IF(D372=\"\",\"\",SUM(I372)*SUM(AD342))","v":""},{"$f":"IF(D372=\"\",\"\",SUM(J372)*SUM(AD342))","v":""},"",{"$f":"IF(AG372,INDEX(E_PurchPrec!U:U,MATCH(CONST_CNTR_ElecEFMethod&D372,E_PurchPrec!R:R,0)),INDEX(D_Processes!T:T,MATCH(CONST_CNTR_ElecEFMethod&D372,D_Processes!R:R,0)))","v":""},{"$f":"IF(OR($D372=\"\",$AG372),\"\",SUM($G372)*SUM(INDEX(InputOutput!$AN$71:$AN$100,MATCH($D372,InputOutput!$D$71:$D$100,0))))","v":""},{"$f":"IF(D372=\"\",\"\",IF(AG372,INDEX(A_InstData!$F$101:$F$120,MATCH(D372,CNTR_List_ExistPurchPrecNames,0)),\"\"))","v":""},{"$f":"IF($D372=\"\",\"\",IFERROR(SUM($G372)*SUM(INDEX(F_Tools!$T$100:$T$129,MATCH($D372,F_Tools!$E$100:$E$129,0)))/K341,\"\"))","v":""},{"$f":"IF($D372=\"\",\"\",IFERROR(SUM($G372)*SUM(INDEX(F_Tools!$U$100:$U$129,MATCH($D372,F_Tools!$E$100:$E$129,0)))/K341,\"\"))","v":""},{"$nulls":8},{"$f":"CONST_PrecursorToGoodInput&D372&\"_\"&D339","v":"PrecToGood__"},null,{"$f":"SUMIF(D_Processes!R:R,AB372,D_Processes!K:K)","v":0},{"$f":"SUMIF(D_Processes!R:R,CONST_CNTR_TotProd&D372,D_Processes!L:L)","v":0},null,false]
[]
[]
[null,null,{"$f":"C339+1","v":7},{"$f":"IF(INDEX(CNTR_List_ExistProdProcNames,C375)=CONST_NA,\"\",INDEX(CNTR_List_ExistProdProcNames,C375))","v":""},null,{"$f":"Translations!$B$107","v":"Aggregated goods category"},{"$f":"Translations!$B$584","v":"Mass share"},{"$f":"Translations!$B$586","v":"(Share of) Default value"},{"$f":"Translations!$B$570","v":"SEE (direct)"},{"$f":"Translations!$B$574","v":"SEE (indirect)"},{"$f":"Translations!$B$344","v":"SEE (total)"},{"$f":"Translations!$B$589","v":"EmbEm (direct)"},{"$f":"Translations!$B$591","v":"EmbEm (indirect)"},{"$f":"Translations!$B$593","v":"EmbEm (total)"},{"$f":"Translations!$B$594","v":"Source of electricity EF"},{"$f":"Translations!$B$597","v":"Specific electricity"},"Country code",{"$f":"Translations!$B$351","v":"CP due (per t or MWh)"},{"$f":"Translations!$B$352","v":"Rebate (per t or MWh)"},{"$nulls":12},{"$f":"H375","v":"(Share of) Default value"},{"$f":"H377","v":""}]
[{"$nulls":6},{"$f":"IF($F377=\"\",CONST_t,INDEX(CONST_LIST_GoodsUnit,MATCH($F377,CONST_LIST_Goods,0)))&\"/\"&IF($F377=\"\",CONST_t,INDEX(CONST_LIST_GoodsUnit,MATCH($F377,CONST_LIST_Goods,0)))","v":"t/t"},null,{"$f":"CONST_tCO2eq&\"/\"&IF($F377=\"\",CONST_t,INDEX(CONST_LIST_GoodsUnit,MATCH($F377,CONST_LIST_Goods,0)))","v":"tCO2e/t"},{"$f":"CONST_tCO2eq&\"/\"&IF($F377=\"\",CONST_t,INDEX(CONST_LIST_GoodsUnit,MATCH($F377,CONST_LIST_Goods,0)))","v":"tCO2e/t"},{"$f":"CONST_tCO2eq&\"/\"&IF($F377=\"\",CONST_t,INDEX(CONST_LIST_GoodsUnit,MATCH($F377,CONST_LIST_Goods,0)))","v":"tCO2e/t"},{"$f":"CONST_tCO2eq","v":"tCO2e"},{"$f":"CONST_tCO2eq","v":"tCO2e"},{"$f":"CONST_tCO2eq","v":"tCO2e"},null,{"$f":"CONST_MWh&\"/\"&IF($F377=\"\",CONST_t,INDEX(CONST_LIST_GoodsUnit,MATCH($F377,CONST_LIST_Goods,0)))","v":"MWh/t"}]
[{"$nulls":3},{"$f":"Translations!$B$600","v":"Total production process"},null,{"$f":"IF(D378=\"\",\"\",INDEX(CNTR_List_ExistProdProc,MATCH(D378,CNTR_List_ExistProdProcNames,0)))","v":""},"-",{"$f":"IF(D375=\"\",\"\",IFERROR(SUMIFS(I379:I408,H379:H408,TRUE)/I377,\"\"))","v":""},{"$f":"IF(COUNT(I378:I408)>0,SUM(I378:I408),\"\")","v":""},"","","","","","-",{"$f":"IF(COUNT(P378:P408)>0,SUM(P378:P408),\"\")","v":""},"-",{"$f":"IF(COUNT(R378:R408)>0,SUM(R378:R408),\"\")","v":""},{"$f":"IF(COUNT(S378:S408)>0,SUM(S378:S408),\"\")","v":""},{"$nulls":10},{"$f":"Translations!$B$601","v":"Production and consumption"},{"$f":"Translations!$B$602","v":"Total production of precursors"},null,"IsPrecursor?"]
[{"$nulls":3},{"$f":"D375","v":""},null,{"$f":"IF(D378=\"\",\"\",INDEX(CNTR_List_ExistProdProc,MATCH(D378,CNTR_List_ExistProdProcNames,0)))","v":""},{"v":1,"d":"1.000"},"-",{"$f":"IF($D378=\"\",\"\",SUM($G378)*SUM(INDEX(InputOutput!$AJ$71:$AJ$100,MATCH($D378,InputOutput!$D$71:$D$100,0))))","v":""},{"$f":"IF($D378=\"\",\"\",SUM($G378)*SUM(INDEX(InputOutput!$AL$71:$AL$100,MATCH($D378,InputOutput!$D$71:$D$100,0))))","v":""},{"$f":"IF(COUNT(I378:J378)>0,SUM(I378:J378),\"\")","v":""},{"$f":"IF(D378=\"\",\"\",SUM(I378)*SUM(AD378))","v":""},{"$f":"IF(D378=\"\",\"\",SUM(J378)*SUM(AD378))","v":""},{"$f":"IF(COUNT(L378:M378)>0,SUM(L378:M378),\"\")","v":""},{"$f":"IF(AG378,INDEX(E_PurchPrec!U:U,MATCH(CONST_CNTR_ElecEFMethod&D378,E_PurchPrec!R:R,0)),INDEX(D_Processes!T:T,MATCH(CONST_CNTR_ElecEFMethod&D378,D_Processes!R:R,0)))","v":""},{"$f":"IF(OR($D378=\"\",$AG378),\"\",SUM($G378)*SUM(INDEX(InputOutput!$AN$71:$AN$100,MATCH($D378,InputOutput!$D$71:$D$100,0))))","v":""},null,{"$f":"IF($D378=\"\",\"\",IFERROR(SUM($G378)*SUM(INDEX(F_Tools!$T$100:$T$129,MATCH($D378,F_Tools!$E$100:$E$129,0)))/K377,\"\"))","v":""},{"$f":"IF($D378=\"\",\"\",IFERROR(SUM($G378)*SUM(INDEX(F_Tools!$U$100:$U$129,MATCH($D378,F_Tools!$E$100:$E$129,0)))/K377,\"\"))","v":""},{"$nulls":8},{"$f":"CONST_CNTR_TotProd&D375","v":"TotProd_"},null,{"$f":"SUMIF(D_Processes!R:R,AB378,D_Processes!L:L)","v":0}]
[null,null,1,{"$f":"IF(D375=\"\",\"\",IF(COUNTIF(INDEX(CNTR_IOSupplyChain,MATCH(D375,CNTR_IOProcAndPrec,0),),C379)=0,\"\",INDEX(CNTR_IOProcAndPrec,MATCH(C379,INDEX(CNTR_IOSupplyChain,MATCH(D375,CNTR_IOProcAndPrec,0),),0))))","v":""},null,{"$f":"IF(D379=\"\",\"\",IF(COUNTIF(CNTR_List_ExistProdProcNames,D379)>0,INDEX(CNTR_List_ExistProdProc,MATCH(D379,CNTR_List_ExistProdProcNames,0)),INDEX(CNTR_List_ExistPurchPrec,MATCH(D379,CNTR_List_ExistPurchPrecNames,0))))","v":""},{"$f":"IF(D379=\"\",\"\",INDEX(CNTR_Matrix_Inv,MATCH(D375,CNTR_IOProcAndPrec,0),MATCH(D379,CNTR_IOProcAndPrec,0)))","v":""},{"$f":"IF(D379=\"\",\"\",IF(AG379,INDEX(E_PurchPrec!U:U,MATCH(CONST_PurchPrecDefaultUsed&D379,E_PurchPrec!R:R,0)),CONST_NA))","v":""},{"$f":"IF($D379=\"\",\"\",SUM($G379)*SUM(INDEX(InputOutput!$AJ$71:$AJ$100,MATCH($D379,InputOutput!$D$71:$D$100,0))))","v":""},{"$f":"IF($D379=\"\",\"\",SUM($G379)*SUM(INDEX(InputOutput!$AL$71:$AL$100,MATCH($D379,InputOutput!$D$71:$D$100,0))))","v":""},"",{"$f":"IF(D379=\"\",\"\",SUM(I379)*SUM(AD378))","v":""},{"$f":"IF(D379=\"\",\"\",SUM(J379)*SUM(AD378))","v":""},{"$f":"IF(COUNT(L379:M379)>0,SUM(L379:M379),\"\")","v":""},{"$f":"IF(AG379,INDEX(E_PurchPrec!U:U,MATCH(CONST_CNTR_ElecEFMethod&D379,E_PurchPrec!R:R,0)),INDEX(D_Processes!T:T,MATCH(CONST_CNTR_ElecEFMethod&D379,D_Processes!R:R,0)))","v":""},{"$f":"IF(OR($D379=\"\",$AG379),\"\",SUM($G379)*SUM(INDEX(InputOutput!$AN$71:$AN$100,MATCH($D379,InputOutput!$D$71:$D$100,0))))","v":""},{"$f":"IF(D379=\"\",\"\",IF(AG379,INDEX(A_InstData!$F$101:$F$120,MATCH(D379,CNTR_List_ExistPurchPrecNames,0)),\"\"))","v":""},{"$f":"IF($D379=\"\",\"\",IFERROR(SUM($G379)*SUM(INDEX(F_Tools!$T$100:$T$129,MATCH($D379,F_Tools!$E$100:$E$129,0)))/K377,\"\"))","v":""},{"$f":"IF($D379=\"\",\"\",IFERROR(SUM($G379)*SUM(INDEX(F_Tools!$U$100:$U$129,MATCH($D379,F_Tools!$E$100:$E$129,0)))/K377,\"\"))","v":""},{"$nulls":8},{"$f":"CONST_PrecursorToGoodInput&D379&\"_\"&D375","v":"PrecToGood__"},null,{"$f":"SUMIF(D_Processes!R:R,AB379,D_Processes!K:K)","v":0},{"$f":"SUMIF(D_Processes!R:R,CONST_CNTR_TotProd&D379,D_Processes!L:L)","v":0},null,{"$f":"COUNTIF(CNTR_List_ExistPurchPrecNames,D379)>0","v":false}]
[null,null,2,{"$f":"IF(D375=\"\",\"\",IF(COUNTIF(INDEX(CNTR_IOSupplyChain,MATCH(D375,CNTR_IOProcAndPrec,0),),C380)=0,\"\",INDEX(CNTR_IOProcAndPrec,MATCH(C380,INDEX(CNTR_IOSupplyChain,MATCH(D375,CNTR_IOProcAndPrec,0),),0))))","v":""},null,"",{"$f":"IF(D380=\"\",\"\",INDEX(CNTR_Matrix_Inv,MATCH(D375,CNTR_IOProcAndPrec,0),MATCH(D380,CNTR_IOProcAndPrec,0)))","v":""},{"$f":"IF(D380=\"\",\"\",IF(AG380,INDEX(E_PurchPrec!U:U,MATCH(CONST_PurchPrecDefaultUsed&D380,E_PurchPrec!R:R,0)),CONST_NA))","v":""},{"$f":"IF($D380=\"\",\"\",SUM($G380)*SUM(INDEX(InputOutput!$AJ$71:$AJ$100,MATCH($D380,InputOutput!$D$71:$D$100,0))))","v":""},{"$f":"IF($D380=\"\",\"\",SUM($G380)*SUM(INDEX(InputOutput!$AL$71:$AL$100,MATCH($D380,InputOutput!$D$71:$D$100,0))))","v":""},"",{"$f":"IF(D380=\"\",\"\",SUM(I380)*SUM(AD378))","v":""},{"$f":"IF(D380=\"\",\"\",SUM(J380)*SUM(AD378))","v":""},{"$f":"IF(COUNT(L380:M380)>0,SUM(L380:M380),\"\")","v":""},{"$f":"IF(AG380,INDEX(E_PurchPrec!U:U,MATCH(CONST_CNTR_ElecEFMethod&D380,E_PurchPrec!R:R,0)),INDEX(D_Processes!T:T,MATCH(CONST_CNTR_ElecEFMethod&D380,D_Processes!R:R,0)))","v":""},{"$f":"IF(OR($D380=\"\",$AG380),\"\",SUM($G380)*SUM(INDEX(InputOutput!$AN$71:$AN$100,MATCH($D380,InputOutput!$D$71:$D$100,0))))","v":""},{"$f":"IF(D380=\"\",\"\",IF(AG380,INDEX(A_InstData!$F$101:$F$120,MATCH(D380,CNTR_List_ExistPurchPrecNames,0)),\"\"))","v":""},{"$f":"IF($D380=\"\",\"\",IFERROR(SUM($G380)*SUM(INDEX(F_Tools!$T$100:$T$129,MATCH($D380,F_Tools!$E$100:$E$129,0)))/K377,\"\"))","v":""},{"$f":"IF($D380=\"\",\"\",IFERROR(SUM($G380)*SUM(INDEX(F_Tools!$U$100:$U$129,MATCH($D380,F_Tools!$E$100:$E$129,0)))/K377,\"\"))","v":""},{"$nulls":8},{"$f":"CONST_PrecursorToGoodInput&D380&\"_\"&D375","v":"PrecToGood__"},null,{"$f":"SUMIF(D_Processes!R:R,AB380,D_Processes!K:K)","v":0},{"$f":"SUMIF(D_Processes!R:R,CONST_CNTR_TotProd&D380,D_Processes!L:L)","v":0},null,false]
[null,null,3,{"$f":"IF(D375=\"\",\"\",IF(COUNTIF(INDEX(CNTR_IOSupplyChain,MATCH(D375,CNTR_IOProcAndPrec,0),),C381)=0,\"\",INDEX(CNTR_IOProcAndPrec,MATCH(C381,INDEX(CNTR_IOSupplyChain,MATCH(D375,CNTR_IOProcAndPrec,0),),0))))","v":""},null,"",{"$f":"IF(D381=\"\",\"\",INDEX(CNTR_Matrix_Inv,MATCH(D375,CNTR_IOProcAndPrec,0),MATCH(D381,CNTR_IOProcAndPrec,0)))","v":""},{"$f":"IF(D381=\"\",\"\",IF(AG381,INDEX(E_PurchPrec!U:U,MATCH(CONST_PurchPrecDefaultUsed&D381,E_PurchPrec!R:R,0)),CONST_NA))","v":""},{"$f":"IF($D381=\"\",\"\",SUM($G381)*SUM(INDEX(InputOutput!$AJ$71:$AJ$100,MATCH($D381,InputOutput!$D$71:$D$100,0))))","v":""},{"$f":"IF($D381=\"\",\"\",SUM($G381)*SUM(INDEX(InputOutput!$AL$71:$AL$100,MATCH($D381,InputOutput!$D$71:$D$100,0))))","v":""},"",{"$f":"IF(D381=\"\",\"\",SUM(I381)*SUM(AD378))","v":""},{"$f":"IF(D381=\"\",\"\",SUM(J381)*SUM(AD378))","v":""},{"$f":"IF(COUNT(L381:M381)>0,SUM(L381:M381),\"\")","v":""},{"$f":"IF(AG381,INDEX(E_PurchPrec!U:U,MATCH(CONST_CNTR_ElecEFMethod&D381,E_PurchPrec!R:R,0)),INDEX(D_Processes!T:T,MATCH(CONST_CNTR_ElecEFMethod&D381,D_Processes!R:R,0)))","v":""},{"$f":"IF(OR($D381=\"\",$AG381),\"\",SUM($G381)*SUM(INDEX(InputOutput!$AN$71:$AN$100,MATCH($D381,InputOutput!$D$71:$D$100,0))))","v":""},{"$f":"IF(D381=\"\",\"\",IF(AG381,INDEX(A_InstData!$F$101:$F$120,MATCH(D381,CNTR_List_ExistPurchPrecNames,0)),\"\"))","v":""},{"$f":"IF($D381=\"\",\"\",IFERROR(SUM($G381)*SUM(INDEX(F_Tools!$T$100:$T$129,MATCH($D381,F_Tools!$E$100:$E$129,0)))/K377,\"\"))","v":""},{"$f":"IF($D381=\"\",\"\",IFERROR(SUM($G381)*SUM(INDEX(F_Tools!$U$100:$U$129,MATCH($D381,F_Tools!$E$100:$E$129,0)))/K377,\"\"))","v":""},{"$nulls":8},{"$f":"CONST_PrecursorToGoodInput&D381&\"_\"&D375","v":"PrecToGood__"},null,{"$f":"SUMIF(D_Processes!R:R,AB381,D_Processes!K:K)","v":0},{"$f":"SUMIF(D_Processes!R:R,CONST_CNTR_TotProd&D381,D_Processes!L:L)","v":0},null,false]
[null,null,4,{"$f":"IF(D375=\"\",\"\",IF(COUNTIF(INDEX(CNTR_IOSupplyChain,MATCH(D375,CNTR_IOProcAndPrec,0),),C382)=0,\"\",INDEX(CNTR_IOProcAndPrec,MATCH(C382,INDEX(CNTR_IOSupplyChain,MATCH(D375,CNTR_IOProcAndPrec,0),),0))))","v":""},null,"",{"$f":"IF(D382=\"\",\"\",INDEX(CNTR_Matrix_Inv,MATCH(D375,CNTR_IOProcAndPrec,0),MATCH(D382,CNTR_IOProcAndPrec,0)))","v":""},{"$f":"IF(D382=\"\",\"\",IF(AG382,INDEX(E_PurchPrec!U:U,MATCH(CONST_PurchPrecDefaultUsed&D382,E_PurchPrec!R:R,0)),CONST_NA))","v":""},{"$f":"IF($D382=\"\",\"\",SUM($G382)*SUM(INDEX(InputOutput!$AJ$71:$AJ$100,MATCH($D382,InputOutput!$D$71:$D$100,0))))","v":""},{"$f":"IF($D382=\"\",\"\",SUM($G382)*SUM(INDEX(InputOutput!$AL$71:$AL$100,MATCH($D382,InputOutput!$D$71:$D$100,0))))","v":""},"",{"$f":"IF(D382=\"\",\"\",SUM(I382)*SUM(AD378))","v":""},{"$f":"IF(D382=\"\",\"\",SUM(J382)*SUM(AD378))","v":""},"",{"$f":"IF(AG382,INDEX(E_PurchPrec!U:U,MATCH(CONST_CNTR_ElecEFMethod&D382,E_PurchPrec!R:R,0)),INDEX(D_Processes!T:T,MATCH(CONST_CNTR_ElecEFMethod&D382,D_Processes!R:R,0)))","v":""},{"$f":"IF(OR($D382=\"\",$AG382),\"\",SUM($G382)*SUM(INDEX(InputOutput!$AN$71:$AN$100,MATCH($D382,InputOutput!$D$71:$D$100,0))))","v":""},{"$f":"IF(D382=\"\",\"\",IF(AG382,INDEX(A_InstData!$F$101:$F$120,MATCH(D382,CNTR_List_ExistPurchPrecNames,0)),\"\"))","v":""},{"$f":"IF($D382=\"\",\"\",IFERROR(SUM($G382)*SUM(INDEX(F_Tools!$T$100:$T$129,MATCH($D382,F_Tools!$E$100:$E$129,0)))/K377,\"\"))","v":""},{"$f":"IF($D382=\"\",\"\",IFERROR(SUM($G382)*SUM(INDEX(F_Tools!$U$100:$U$129,MATCH($D382,F_Tools!$E$100:$E$129,0)))/K377,\"\"))","v":""},{"$nulls":8},{"$f":"CONST_PrecursorToGoodInput&D382&\"_\"&D375","v":"PrecToGood__"},null,{"$f":"SUMIF(D_Processes!R:R,AB382,D_Processes!K:K)","v":0},{"$f":"SUMIF(D_Processes!R:R,CONST_CNTR_TotProd&D382,D_Processes!L:L)","v":0},null,false]
[null,null,5,{"$f":"IF(D375=\"\",\"\",IF(COUNTIF(INDEX(CNTR_IOSupplyChain,MATCH(D375,CNTR_IOProcAndPrec,0),),C383)=0,\"\",INDEX(CNTR_IOProcAndPrec,MATCH(C383,INDEX(CNTR_IOSupplyChain,MATCH(D375,CNTR_IOProcAndPrec,0),),0))))","v":""},null,"",{"$f":"IF(D383=\"\",\"\",INDEX(CNTR_Matrix_Inv,MATCH(D375,CNTR_IOProcAndPrec,0),MATCH(D383,CNTR_IOProcAndPrec,0)))","v":""},{"$f":"IF(D383=\"\",\"\",IF(AG383,INDEX(E_PurchPrec!U:U,MATCH(CONST_PurchPrecDefaultUsed&D383,E_PurchPrec!R:R,0)),CONST_NA))","v":""},{"$f":"IF($D383=\"\",\"\",SUM($G383)*SUM(INDEX(InputOutput!$AJ$71:$AJ$100,MATCH($D383,InputOutput!$D$71:$D$100,0))))","v":""},{"$f":"IF($D383=\"\",\"\",SUM($G383)*SUM(INDEX(InputOutput!$AL$71:$AL$100,MATCH($D383,InputOutput!$D$71:$D$100,0))))","v":""},"",{"$f":"IF(D383=\"\",\"\",SUM(I383)*SUM(AD378))","v":""},{"$f":"IF(D383=\"\",\"\",SUM(J383)*SUM(AD378))","v":""},"",{"$f":"IF(AG383,INDEX(E_PurchPrec!U:U,MATCH(CONST_CNTR_ElecEFMethod&D383,E_PurchPrec!R:R,0)),INDEX(D_Processes!T:T,MATCH(CONST_CNTR_ElecEFMethod&D383,D_Processes!R:R,0)))","v":""},{"$f":"IF(OR($D383=\"\",$AG383),\"\",SUM($G383)*SUM(INDEX(InputOutput!$AN$71:$AN$100,MATCH($D383,InputOutput!$D$71:$D$100,0))))","v":""},{"$f":"IF(D383=\"\",\"\",IF(AG383,INDEX(A_InstData!$F$101:$F$120,MATCH(D383,CNTR_List_ExistPurchPrecNames,0)),\"\"))","v":""},{"$f":"IF($D383=\"\",\"\",IFERROR(SUM($G383)*SUM(INDEX(F_Tools!$T$100:$T$129,MATCH($D383,F_Tools!$E$100:$E$129,0)))/K377,\"\"))","v":""},{"$f":"IF($D383=\"\",\"\",IFERROR(SUM($G383)*SUM(INDEX(F_Tools!$U$100:$U$129,MATCH($D383,F_Tools!$E$100:$E$129,0)))/K377,\"\"))","v":""},{"$nulls":8},{"$f":"CONST_PrecursorToGoodInput&D383&\"_\"&D375","v":"PrecToGood__"},null,{"$f":"SUMIF(D_Processes!R:R,AB383,D_Processes!K:K)","v":0},{"$f":"SUMIF(D_Processes!R:R,CONST_CNTR_TotProd&D383,D_Processes!L:L)","v":0},null,false]
[null,null,6,{"$f":"IF(D375=\"\",\"\",IF(COUNTIF(INDEX(CNTR_IOSupplyChain,MATCH(D375,CNTR_IOProcAndPrec,0),),C384)=0,\"\",INDEX(CNTR_IOProcAndPrec,MATCH(C384,INDEX(CNTR_IOSupplyChain,MATCH(D375,CNTR_IOProcAndPrec,0),),0))))","v":""},null,"",{"$f":"IF(D384=\"\",\"\",INDEX(CNTR_Matrix_Inv,MATCH(D375,CNTR_IOProcAndPrec,0),MATCH(D384,CNTR_IOProcAndPrec,0)))","v":""},{"$f":"IF(D384=\"\",\"\",IF(AG384,INDEX(E_PurchPrec!U:U,MATCH(CONST_PurchPrecDefaultUsed&D384,E_PurchPrec!R:R,0)),CONST_NA))","v":""},{"$f":"IF($D384=\"\",\"\",SUM($G384)*SUM(INDEX(InputOutput!$AJ$71:$AJ$100,MATCH($D384,InputOutput!$D$71:$D$100,0))))","v":""},{"$f":"IF($D384=\"\",\"\",SUM($G384)*SUM(INDEX(InputOutput!$AL$71:$AL$100,MATCH($D384,InputOutput!$D$71:$D$100,0))))","v":""},"",{"$f":"IF(D384=\"\",\"\",SUM(I384)*SUM(AD378))","v":""},{"$f":"IF(D384=\"\",\"\",SUM(J384)*SUM(AD378))","v":""},"",{"$f":"IF(AG384,INDEX(E_PurchPrec!U:U,MATCH(CONST_CNTR_ElecEFMethod&D384,E_PurchPrec!R:R,0)),INDEX(D_Processes!T:T,MATCH(CONST_CNTR_ElecEFMethod&D384,D_Processes!R:R,0)))","v":""},{"$f":"IF(OR($D384=\"\",$AG384),\"\",SUM($G384)*SUM(INDEX(InputOutput!$AN$71:$AN$100,MATCH($D384,InputOutput!$D$71:$D$100,0))))","v":""},{"$f":"IF(D384=\"\",\"\",IF(AG384,INDEX(A_InstData!$F$101:$F$120,MATCH(D384,CNTR_List_ExistPurchPrecNames,0)),\"\"))","v":""},{"$f":"IF($D384=\"\",\"\",IFERROR(SUM($G384)*SUM(INDEX(F_Tools!$T$100:$T$129,MATCH($D384,F_Tools!$E$100:$E$129,0)))/K377,\"\"))","v":""},{"$f":"IF($D384=\"\",\"\",IFERROR(SUM($G384)*SUM(INDEX(F_Tools!$U$100:$U$129,MATCH($D384,F_Tools!$E$100:$E$129,0)))/K377,\"\"))","v":""},{"$nulls":8},{"$f":"CONST_PrecursorToGoodInput&D384&\"_\"&D375","v":"PrecToGood__"},null,{"$f":"SUMIF(D_Processes!R:R,AB384,D_Processes!K:K)","v":0},{"$f":"SUMIF(D_Processes!R:R,CONST_CNTR_TotProd&D384,D_Processes!L:L)","v":0},null,false]
[null,null,7,{"$f":"IF(D375=\"\",\"\",IF(COUNTIF(INDEX(CNTR_IOSupplyChain,MATCH(D375,CNTR_IOProcAndPrec,0),),C385)=0,\"\",INDEX(CNTR_IOProcAndPrec,MATCH(C385,INDEX(CNTR_IOSupplyChain,MATCH(D375,CNTR_IOProcAndPrec,0),),0))))","v":""},null,"",{"$f":"IF(D385=\"\",\"\",INDEX(CNTR_Matrix_Inv,MATCH(D375,CNTR_IOProcAndPrec,0),MATCH(D385,CNTR_IOProcAndPrec,0)))","v":""},{"$f":"IF(D385=\"\",\"\",IF(AG385,INDEX(E_PurchPrec!U:U,MATCH(CONST_PurchPrecDefaultUsed&D385,E_PurchPrec!R:R,0)),CONST_NA))","v":""},{"$f":"IF($D385=\"\",\"\",SUM($G385)*SUM(INDEX(InputOutput!$AJ$71:$AJ$100,MATCH($D385,InputOutput!$D$71:$D$100,0))))","v":""},{"$f":"IF($D385=\"\",\"\",SUM($G385)*SUM(INDEX(InputOutput!$AL$71:$AL$100,MATCH($D385,InputOutput!$D$71:$D$100,0))))","v":""},"",{"$f":"IF(D385=\"\",\"\",SUM(I385)*SUM(AD378))","v":""},{"$f":"IF(D385=\"\",\"\",SUM(J385)*SUM(AD378))","v":""},"",{"$f":"IF(AG385,INDEX(E_PurchPrec!U:U,MATCH(CONST_CNTR_ElecEFMethod&D385,E_PurchPrec!R:R,0)),INDEX(D_Processes!T:T,MATCH(CONST_CNTR_ElecEFMethod&D385,D_Processes!R:R,0)))","v":""},{"$f":"IF(OR($D385=\"\",$AG385),\"\",SUM($G385)*SUM(INDEX(InputOutput!$AN$71:$AN$100,MATCH($D385,InputOutput!$D$71:$D$100,0))))","v":""},{"$f":"IF(D385=\"\",\"\",IF(AG385,INDEX(A_InstData!$F$101:$F$120,MATCH(D385,CNTR_List_ExistPurchPrecNames,0)),\"\"))","v":""},{"$f":"IF($D385=\"\",\"\",IFERROR(SUM($G385)*SUM(INDEX(F_Tools!$T$100:$T$129,MATCH($D385,F_Tools!$E$100:$E$129,0)))/K377,\"\"))","v":""},{"$f":"IF($D385=\"\",\"\",IFERROR(SUM($G385)*SUM(INDEX(F_Tools!$U$100:$U$129,MATCH($D385,F_Tools!$E$100:$E$129,0)))/K377,\"\"))","v":""},{"$nulls":8},{"$f":"CONST_PrecursorToGoodInput&D385&\"_\"&D375","v":"PrecToGood__"},null,{"$f":"SUMIF(D_Processes!R:R,AB385,D_Processes!K:K)","v":0},{"$f":"SUMIF(D_Processes!R:R,CONST_CNTR_TotProd&D385,D_Processes!L:L)","v":0},null,false]
[null,null,8,{"$f":"IF(D375=\"\",\"\",IF(COUNTIF(INDEX(CNTR_IOSupplyChain,MATCH(D375,CNTR_IOProcAndPrec,0),),C386)=0,\"\",INDEX(CNTR_IOProcAndPrec,MATCH(C386,INDEX(CNTR_IOSupplyChain,MATCH(D375,CNTR_IOProcAndPrec,0),),0))))","v":""},null,"",{"$f":"IF(D386=\"\",\"\",INDEX(CNTR_Matrix_Inv,MATCH(D375,CNTR_IOProcAndPrec,0),MATCH(D386,CNTR_IOProcAndPrec,0)))","v":""},{"$f":"IF(D386=\"\",\"\",IF(AG386,INDEX(E_PurchPrec!U:U,MATCH(CONST_PurchPrecDefaultUsed&D386,E_PurchPrec!R:R,0)),CONST_NA))","v":""},{"$f":"IF($D386=\"\",\"\",SUM($G386)*SUM(INDEX(InputOutput!$AJ$71:$AJ$100,MATCH($D386,InputOutput!$D$71:$D$100,0))))","v":""},{"$f":"IF($D386=\"\",\"\",SUM($G386)*SUM(INDEX(InputOutput!$AL$71:$AL$100,MATCH($D386,InputOutput!$D$71:$D$100,0))))","v":""},"",{"$f":"IF(D386=\"\",\"\",SUM(I386)*SUM(AD378))","v":""},{"$f":"IF(D386=\"\",\"\",SUM(J386)*SUM(AD378))","v":""},"",{"$f":"IF(AG386,INDEX(E_PurchPrec!U:U,MATCH(CONST_CNTR_ElecEFMethod&D386,E_PurchPrec!R:R,0)),INDEX(D_Processes!T:T,MATCH(CONST_CNTR_ElecEFMethod&D386,D_Processes!R:R,0)))","v":""},{"$f":"IF(OR($D386=\"\",$AG386),\"\",SUM($G386)*SUM(INDEX(InputOutput!$AN$71:$AN$100,MATCH($D386,InputOutput!$D$71:$D$100,0))))","v":""},{"$f":"IF(D386=\"\",\"\",IF(AG386,INDEX(A_InstData!$F$101:$F$120,MATCH(D386,CNTR_List_ExistPurchPrecNames,0)),\"\"))","v":""},{"$f":"IF($D386=\"\",\"\",IFERROR(SUM($G386)*SUM(INDEX(F_Tools!$T$100:$T$129,MATCH($D386,F_Tools!$E$100:$E$129,0)))/K377,\"\"))","v":""},{"$f":"IF($D386=\"\",\"\",IFERROR(SUM($G386)*SUM(INDEX(F_Tools!$U$100:$U$129,MATCH($D386,F_Tools!$E$100:$E$129,0)))/K377,\"\"))","v":""},{"$nulls":8},{"$f":"CONST_PrecursorToGoodInput&D386&\"_\"&D375","v":"PrecToGood__"},null,{"$f":"SUMIF(D_Processes!R:R,AB386,D_Processes!K:K)","v":0},{"$f":"SUMIF(D_Processes!R:R,CONST_CNTR_TotProd&D386,D_Processes!L:L)","v":0},null,false]
[null,null,9,{"$f":"IF(D375=\"\",\"\",IF(COUNTIF(INDEX(CNTR_IOSupplyChain,MATCH(D375,CNTR_IOProcAndPrec,0),),C387)=0,\"\",INDEX(CNTR_IOProcAndPrec,MATCH(C387,INDEX(CNTR_IOSupplyChain,MATCH(D375,CNTR_IOProcAndPrec,0),),0))))","v":""},null,"",{"$f":"IF(D387=\"\",\"\",INDEX(CNTR_Matrix_Inv,MATCH(D375,CNTR_IOProcAndPrec,0),MATCH(D387,CNTR_IOProcAndPrec,0)))","v":""},{"$f":"IF(D387=\"\",\"\",IF(AG387,INDEX(E_PurchPrec!U:U,MATCH(CONST_PurchPrecDefaultUsed&D387,E_PurchPrec!R:R,0)),CONST_NA))","v":""},{"$f":"IF($D387=\"\",\"\",SUM($G387)*SUM(INDEX(InputOutput!$AJ$71:$AJ$100,MATCH($D387,InputOutput!$D$71:$D$100,0))))","v":""},{"$f":"IF($D387=\"\",\"\",SUM($G387)*SUM(INDEX(InputOutput!$AL$71:$AL$100,MATCH($D387,InputOutput!$D$71:$D$100,0))))","v":""},"",{"$f":"IF(D387=\"\",\"\",SUM(I387)*SUM(AD378))","v":""},{"$f":"IF(D387=\"\",\"\",SUM(J387)*SUM(AD378))","v":""},"",{"$f":"IF(AG387,INDEX(E_PurchPrec!U:U,MATCH(CONST_CNTR_ElecEFMethod&D387,E_PurchPrec!R:R,0)),INDEX(D_Processes!T:T,MATCH(CONST_CNTR_ElecEFMethod&D387,D_Processes!R:R,0)))","v":""},{"$f":"IF(OR($D387=\"\",$AG387),\"\",SUM($G387)*SUM(INDEX(InputOutput!$AN$71:$AN$100,MATCH($D387,InputOutput!$D$71:$D$100,0))))","v":""},{"$f":"IF(D387=\"\",\"\",IF(AG387,INDEX(A_InstData!$F$101:$F$120,MATCH(D387,CNTR_List_ExistPurchPrecNames,0)),\"\"))","v":""},{"$f":"IF($D387=\"\",\"\",IFERROR(SUM($G387)*SUM(INDEX(F_Tools!$T$100:$T$129,MATCH($D387,F_Tools!$E$100:$E$129,0)))/K377,\"\"))","v":""},{"$f":"IF($D387=\"\",\"\",IFERROR(SUM($G387)*SUM(INDEX(F_Tools!$U$100:$U$129,MATCH($D387,F_Tools!$E$100:$E$129,0)))/K377,\"\"))","v":""},{"$nulls":8},{"$f":"CONST_PrecursorToGoodInput&D387&\"_\"&D375","v":"PrecToGood__"},null,{"$f":"SUMIF(D_Processes!R:R,AB387,D_Processes!K:K)","v":0},{"$f":"SUMIF(D_Processes!R:R,CONST_CNTR_TotProd&D387,D_Processes!L:L)","v":0},null,false]
[null,null,10,{"$f":"IF(D375=\"\",\"\",IF(COUNTIF(INDEX(CNTR_IOSupplyChain,MATCH(D375,CNTR_IOProcAndPrec,0),),C388)=0,\"\",INDEX(CNTR_IOProcAndPrec,MATCH(C388,INDEX(CNTR_IOSupplyChain,MATCH(D375,CNTR_IOProcAndPrec,0),),0))))","v":""},null,"",{"$f":"IF(D388=\"\",\"\",INDEX(CNTR_Matrix_Inv,MATCH(D375,CNTR_IOProcAndPrec,0),MATCH(D388,CNTR_IOProcAndPrec,0)))","v":""},{"$f":"IF(D388=\"\",\"\",IF(AG388,INDEX(E_PurchPrec!U:U,MATCH(CONST_PurchPrecDefaultUsed&D388,E_PurchPrec!R:R,0)),CONST_NA))","v":""},{"$f":"IF($D388=\"\",\"\",SUM($G388)*SUM(INDEX(InputOutput!$AJ$71:$AJ$100,MATCH($D388,InputOutput!$D$71:$D$100,0))))","v":""},{"$f":"IF($D388=\"\",\"\",SUM($G388)*SUM(INDEX(InputOutput!$AL$71:$AL$100,MATCH($D388,InputOutput!$D$71:$D$100,0))))","v":""},"",{"$f":"IF(D388=\"\",\"\",SUM(I388)*SUM(AD378))","v":""},{"$f":"IF(D388=\"\",\"\",SUM(J388)*SUM(AD378))","v":""},"",{"$f":"IF(AG388,INDEX(E_PurchPrec!U:U,MATCH(CONST_CNTR_ElecEFMethod&D388,E_PurchPrec!R:R,0)),INDEX(D_Processes!T:T,MATCH(CONST_CNTR_ElecEFMethod&D388,D_Processes!R:R,0)))","v":""},{"$f":"IF(OR($D388=\"\",$AG388),\"\",SUM($G388)*SUM(INDEX(InputOutput!$AN$71:$AN$100,MATCH($D388,InputOutput!$D$71:$D$100,0))))","v":""},{"$f":"IF(D388=\"\",\"\",IF(AG388,INDEX(A_InstData!$F$101:$F$120,MATCH(D388,CNTR_List_ExistPurchPrecNames,0)),\"\"))","v":""},{"$f":"IF($D388=\"\",\"\",IFERROR(SUM($G388)*SUM(INDEX(F_Tools!$T$100:$T$129,MATCH($D388,F_Tools!$E$100:$E$129,0)))/K377,\"\"))","v":""},{"$f":"IF($D388=\"\",\"\",IFERROR(SUM($G388)*SUM(INDEX(F_Tools!$U$100:$U$129,MATCH($D388,F_Tools!$E$100:$E$129,0)))/K377,\"\"))","v":""},{"$nulls":8},{"$f":"CONST_PrecursorToGoodInput&D388&\"_\"&D375","v":"PrecToGood__"},null,{"$f":"SUMIF(D_Processes!R:R,AB388,D_Processes!K:K)","v":0},{"$f":"SUMIF(D_Processes!R:R,CONST_CNTR_TotProd&D388,D_Processes!L:L)","v":0},null,false]
[null,null,11,{"$f":"IF(D375=\"\",\"\",IF(COUNTIF(INDEX(CNTR_IOSupplyChain,MATCH(D375,CNTR_IOProcAndPrec,0),),C389)=0,\"\",INDEX(CNTR_IOProcAndPrec,MATCH(C389,INDEX(CNTR_IOSupplyChain,MATCH(D375,CNTR_IOProcAndPrec,0),),0))))","v":""},null,"",{"$f":"IF(D389=\"\",\"\",INDEX(CNTR_Matrix_Inv,MATCH(D375,CNTR_IOProcAndPrec,0),MATCH(D389,CNTR_IOProcAndPrec,0)))","v":""},{"$f":"IF(D389=\"\",\"\",IF(AG389,INDEX(E_PurchPrec!U:U,MATCH(CONST_PurchPrecDefaultUsed&D389,E_PurchPrec!R:R,0)),CONST_NA))","v":""},{"$f":"IF($D389=\"\",\"\",SUM($G389)*SUM(INDEX(InputOutput!$AJ$71:$AJ$100,MATCH($D389,InputOutput!$D$71:$D$100,0))))","v":""},{"$f":"IF($D389=\"\",\"\",SUM($G389)*SUM(INDEX(InputOutput!$AL$71:$AL$100,MATCH($D389,InputOutput!$D$71:$D$100,0))))","v":""},"",{"$f":"IF(D389=\"\",\"\",SUM(I389)*SUM(AD378))","v":""},{"$f":"IF(D389=\"\",\"\",SUM(J389)*SUM(AD378))","v":""},"",{"$f":"IF(AG389,INDEX(E_PurchPrec!U:U,MATCH(CONST_CNTR_ElecEFMethod&D389,E_PurchPrec!R:R,0)),INDEX(D_Processes!T:T,MATCH(CONST_CNTR_ElecEFMethod&D389,D_Processes!R:R,0)))","v":""},{"$f":"IF(OR($D389=\"\",$AG389),\"\",SUM($G389)*SUM(INDEX(InputOutput!$AN$71:$AN$100,MATCH($D389,InputOutput!$D$71:$D$100,0))))","v":""},{"$f":"IF(D389=\"\",\"\",IF(AG389,INDEX(A_InstData!$F$101:$F$120,MATCH(D389,CNTR_List_ExistPurchPrecNames,0)),\"\"))","v":""},{"$f":"IF($D389=\"\",\"\",IFERROR(SUM($G389)*SUM(INDEX(F_Tools!$T$100:$T$129,MATCH($D389,F_Tools!$E$100:$E$129,0)))/K377,\"\"))","v":""},{"$f":"IF($D389=\"\",\"\",IFERROR(SUM($G389)*SUM(INDEX(F_Tools!$U$100:$U$129,MATCH($D389,F_Tools!$E$100:$E$129,0)))/K377,\"\"))","v":""},{"$nulls":8},{"$f":"CONST_PrecursorToGoodInput&D389&\"_\"&D375","v":"PrecToGood__"},null,{"$f":"SUMIF(D_Processes!R:R,AB389,D_Processes!K:K)","v":0},{"$f":"SUMIF(D_Processes!R:R,CONST_CNTR_TotProd&D389,D_Processes!L:L)","v":0},null,false]
[null,null,12,{"$f":"IF(D375=\"\",\"\",IF(COUNTIF(INDEX(CNTR_IOSupplyChain,MATCH(D375,CNTR_IOProcAndPrec,0),),C390)=0,\"\",INDEX(CNTR_IOProcAndPrec,MATCH(C390,INDEX(CNTR_IOSupplyChain,MATCH(D375,CNTR_IOProcAndPrec,0),),0))))","v":""},null,"",{"$f":"IF(D390=\"\",\"\",INDEX(CNTR_Matrix_Inv,MATCH(D375,CNTR_IOProcAndPrec,0),MATCH(D390,CNTR_IOProcAndPrec,0)))","v":""},{"$f":"IF(D390=\"\",\"\",IF(AG390,INDEX(E_PurchPrec!U:U,MATCH(CONST_PurchPrecDefaultUsed&D390,E_PurchPrec!R:R,0)),CONST_NA))","v":""},{"$f":"IF($D390=\"\",\"\",SUM($G390)*SUM(INDEX(InputOutput!$AJ$71:$AJ$100,MATCH($D390,InputOutput!$D$71:$D$100,0))))","v":""},{"$f":"IF($D390=\"\",\"\",SUM($G390)*SUM(INDEX(InputOutput!$AL$71:$AL$100,MATCH($D390,InputOutput!$D$71:$D$100,0))))","v":""},"",{"$f":"IF(D390=\"\",\"\",SUM(I390)*SUM(AD378))","v":""},{"$f":"IF(D390=\"\",\"\",SUM(J390)*SUM(AD378))","v":""},"",{"$f":"IF(AG390,INDEX(E_PurchPrec!U:U,MATCH(CONST_CNTR_ElecEFMethod&D390,E_PurchPrec!R:R,0)),INDEX(D_Processes!T:T,MATCH(CONST_CNTR_ElecEFMethod&D390,D_Processes!R:R,0)))","v":""},{"$f":"IF(OR($D390=\"\",$AG390),\"\",SUM($G390)*SUM(INDEX(InputOutput!$AN$71:$AN$100,MATCH($D390,InputOutput!$D$71:$D$100,0))))","v":""},{"$f":"IF(D390=\"\",\"\",IF(AG390,INDEX(A_InstData!$F$101:$F$120,MATCH(D390,CNTR_List_ExistPurchPrecNames,0)),\"\"))","v":""},{"$f":"IF($D390=\"\",\"\",IFERROR(SUM($G390)*SUM(INDEX(F_Tools!$T$100:$T$129,MATCH($D390,F_Tools!$E$100:$E$129,0)))/K377,\"\"))","v":""},{"$f":"IF($D390=\"\",\"\",IFERROR(SUM($G390)*SUM(INDEX(F_Tools!$U$100:$U$129,MATCH($D390,F_Tools!$E$100:$E$129,0)))/K377,\"\"))","v":""},{"$nulls":8},{"$f":"CONST_PrecursorToGoodInput&D390&\"_\"&D375","v":"PrecToGood__"},null,{"$f":"SUMIF(D_Processes!R:R,AB390,D_Processes!K:K)","v":0},{"$f":"SUMIF(D_Processes!R:R,CONST_CNTR_TotProd&D390,D_Processes!L:L)","v":0},null,false]
[null,null,13,{"$f":"IF(D375=\"\",\"\",IF(COUNTIF(INDEX(CNTR_IOSupplyChain,MATCH(D375,CNTR_IOProcAndPrec,0),),C391)=0,\"\",INDEX(CNTR_IOProcAndPrec,MATCH(C391,INDEX(CNTR_IOSupplyChain,MATCH(D375,CNTR_IOProcAndPrec,0),),0))))","v":""},null,"",{"$f":"IF(D391=\"\",\"\",INDEX(CNTR_Matrix_Inv,MATCH(D375,CNTR_IOProcAndPrec,0),MATCH(D391,CNTR_IOProcAndPrec,0)))","v":""},{"$f":"IF(D391=\"\",\"\",IF(AG391,INDEX(E_PurchPrec!U:U,MATCH(CONST_PurchPrecDefaultUsed&D391,E_PurchPrec!R:R,0)),CONST_NA))","v":""},{"$f":"IF($D391=\"\",\"\",SUM($G391)*SUM(INDEX(InputOutput!$AJ$71:$AJ$100,MATCH($D391,InputOutput!$D$71:$D$100,0))))","v":""},{"$f":"IF($D391=\"\",\"\",SUM($G391)*SUM(INDEX(InputOutput!$AL$71:$AL$100,MATCH($D391,InputOutput!$D$71:$D$100,0))))","v":""},"",{"$f":"IF(D391=\"\",\"\",SUM(I391)*SUM(AD378))","v":""},{"$f":"IF(D391=\"\",\"\",SUM(J391)*SUM(AD378))","v":""},"",{"$f":"IF(AG391,INDEX(E_PurchPrec!U:U,MATCH(CONST_CNTR_ElecEFMethod&D391,E_PurchPrec!R:R,0)),INDEX(D_Processes!T:T,MATCH(CONST_CNTR_ElecEFMethod&D391,D_Processes!R:R,0)))","v":""},{"$f":"IF(OR($D391=\"\",$AG391),\"\",SUM($G391)*SUM(INDEX(InputOutput!$AN$71:$AN$100,MATCH($D391,InputOutput!$D$71:$D$100,0))))","v":""},{"$f":"IF(D391=\"\",\"\",IF(AG391,INDEX(A_InstData!$F$101:$F$120,MATCH(D391,CNTR_List_ExistPurchPrecNames,0)),\"\"))","v":""},{"$f":"IF($D391=\"\",\"\",IFERROR(SUM($G391)*SUM(INDEX(F_Tools!$T$100:$T$129,MATCH($D391,F_Tools!$E$100:$E$129,0)))/K377,\"\"))","v":""},{"$f":"IF($D391=\"\",\"\",IFERROR(SUM($G391)*SUM(INDEX(F_Tools!$U$100:$U$129,MATCH($D391,F_Tools!$E$100:$E$129,0)))/K377,\"\"))","v":""},{"$nulls":8},{"$f":"CONST_PrecursorToGoodInput&D391&\"_\"&D375","v":"PrecToGood__"},null,{"$f":"SUMIF(D_Processes!R:R,AB391,D_Processes!K:K)","v":0},{"$f":"SUMIF(D_Processes!R:R,CONST_CNTR_TotProd&D391,D_Processes!L:L)","v":0},null,false]
[null,null,14,{"$f":"IF(D375=\"\",\"\",IF(COUNTIF(INDEX(CNTR_IOSupplyChain,MATCH(D375,CNTR_IOProcAndPrec,0),),C392)=0,\"\",INDEX(CNTR_IOProcAndPrec,MATCH(C392,INDEX(CNTR_IOSupplyChain,MATCH(D375,CNTR_IOProcAndPrec,0),),0))))","v":""},null,"",{"$f":"IF(D392=\"\",\"\",INDEX(CNTR_Matrix_Inv,MATCH(D375,CNTR_IOProcAndPrec,0),MATCH(D392,CNTR_IOProcAndPrec,0)))","v":""},{"$f":"IF(D392=\"\",\"\",IF(AG392,INDEX(E_PurchPrec!U:U,MATCH(CONST_PurchPrecDefaultUsed&D392,E_PurchPrec!R:R,0)),CONST_NA))","v":""},{"$f":"IF($D392=\"\",\"\",SUM($G392)*SUM(INDEX(InputOutput!$AJ$71:$AJ$100,MATCH($D392,InputOutput!$D$71:$D$100,0))))","v":""},{"$f":"IF($D392=\"\",\"\",SUM($G392)*SUM(INDEX(InputOutput!$AL$71:$AL$100,MATCH($D392,InputOutput!$D$71:$D$100,0))))","v":""},"",{"$f":"IF(D392=\"\",\"\",SUM(I392)*SUM(AD378))","v":""},{"$f":"IF(D392=\"\",\"\",SUM(J392)*SUM(AD378))","v":""},"",{"$f":"IF(AG392,INDEX(E_PurchPrec!U:U,MATCH(CONST_CNTR_ElecEFMethod&D392,E_PurchPrec!R:R,0)),INDEX(D_Processes!T:T,MATCH(CONST_CNTR_ElecEFMethod&D392,D_Processes!R:R,0)))","v":""},{"$f":"IF(OR($D392=\"\",$AG392),\"\",SUM($G392)*SUM(INDEX(InputOutput!$AN$71:$AN$100,MATCH($D392,InputOutput!$D$71:$D$100,0))))","v":""},{"$f":"IF(D392=\"\",\"\",IF(AG392,INDEX(A_InstData!$F$101:$F$120,MATCH(D392,CNTR_List_ExistPurchPrecNames,0)),\"\"))","v":""},{"$f":"IF($D392=\"\",\"\",IFERROR(SUM($G392)*SUM(INDEX(F_Tools!$T$100:$T$129,MATCH($D392,F_Tools!$E$100:$E$129,0)))/K377,\"\"))","v":""},{"$f":"IF($D392=\"\",\"\",IFERROR(SUM($G392)*SUM(INDEX(F_Tools!$U$100:$U$129,MATCH($D392,F_Tools!$E$100:$E$129,0)))/K377,\"\"))","v":""},{"$nulls":8},{"$f":"CONST_PrecursorToGoodInput&D392&\"_\"&D375","v":"PrecToGood__"},null,{"$f":"SUMIF(D_Processes!R:R,AB392,D_Processes!K:K)","v":0},{"$f":"SUMIF(D_Processes!R:R,CONST_CNTR_TotProd&D392,D_Processes!L:L)","v":0},null,false]
[null,null,15,{"$f":"IF(D375=\"\",\"\",IF(COUNTIF(INDEX(CNTR_IOSupplyChain,MATCH(D375,CNTR_IOProcAndPrec,0),),C393)=0,\"\",INDEX(CNTR_IOProcAndPrec,MATCH(C393,INDEX(CNTR_IOSupplyChain,MATCH(D375,CNTR_IOProcAndPrec,0),),0))))","v":""},null,"",{"$f":"IF(D393=\"\",\"\",INDEX(CNTR_Matrix_Inv,MATCH(D375,CNTR_IOProcAndPrec,0),MATCH(D393,CNTR_IOProcAndPrec,0)))","v":""},{"$f":"IF(D393=\"\",\"\",IF(AG393,INDEX(E_PurchPrec!U:U,MATCH(CONST_PurchPrecDefaultUsed&D393,E_PurchPrec!R:R,0)),CONST_NA))","v":""},{"$f":"IF($D393=\"\",\"\",SUM($G393)*SUM(INDEX(InputOutput!$AJ$71:$AJ$100,MATCH($D393,InputOutput!$D$71:$D$100,0))))","v":""},{"$f":"IF($D393=\"\",\"\",SUM($G393)*SUM(INDEX(InputOutput!$AL$71:$AL$100,MATCH($D393,InputOutput!$D$71:$D$100,0))))","v":""},"",{"$f":"IF(D393=\"\",\"\",SUM(I393)*SUM(AD378))","v":""},{"$f":"IF(D393=\"\",\"\",SUM(J393)*SUM(AD378))","v":""},"",{"$f":"IF(AG393,INDEX(E_PurchPrec!U:U,MATCH(CONST_CNTR_ElecEFMethod&D393,E_PurchPrec!R:R,0)),INDEX(D_Processes!T:T,MATCH(CONST_CNTR_ElecEFMethod&D393,D_Processes!R:R,0)))","v":""},{"$f":"IF(OR($D393=\"\",$AG393),\"\",SUM($G393)*SUM(INDEX(InputOutput!$AN$71:$AN$100,MATCH($D393,InputOutput!$D$71:$D$100,0))))","v":""},{"$f":"IF(D393=\"\",\"\",IF(AG393,INDEX(A_InstData!$F$101:$F$120,MATCH(D393,CNTR_List_ExistPurchPrecNames,0)),\"\"))","v":""},{"$f":"IF($D393=\"\",\"\",IFERROR(SUM($G393)*SUM(INDEX(F_Tools!$T$100:$T$129,MATCH($D393,F_Tools!$E$100:$E$129,0)))/K377,\"\"))","v":""},{"$f":"IF($D393=\"\",\"\",IFERROR(SUM($G393)*SUM(INDEX(F_Tools!$U$100:$U$129,MATCH($D393,F_Tools!$E$100:$E$129,0)))/K377,\"\"))","v":""},{"$nulls":8},{"$f":"CONST_PrecursorToGoodInput&D393&\"_\"&D375","v":"PrecToGood__"},null,{"$f":"SUMIF(D_Processes!R:R,AB393,D_Processes!K:K)","v":0},{"$f":"SUMIF(D_Processes!R:R,CONST_CNTR_TotProd&D393,D_Processes!L:L)","v":0},null,false]
[null,null,16,{"$f":"IF(D375=\"\",\"\",IF(COUNTIF(INDEX(CNTR_IOSupplyChain,MATCH(D375,CNTR_IOProcAndPrec,0),),C394)=0,\"\",INDEX(CNTR_IOProcAndPrec,MATCH(C394,INDEX(CNTR_IOSupplyChain,MATCH(D375,CNTR_IOProcAndPrec,0),),0))))","v":""},null,"",{"$f":"IF(D394=\"\",\"\",INDEX(CNTR_Matrix_Inv,MATCH(D375,CNTR_IOProcAndPrec,0),MATCH(D394,CNTR_IOProcAndPrec,0)))","v":""},{"$f":"IF(D394=\"\",\"\",IF(AG394,INDEX(E_PurchPrec!U:U,MATCH(CONST_PurchPrecDefaultUsed&D394,E_PurchPrec!R:R,0)),CONST_NA))","v":""},{"$f":"IF($D394=\"\",\"\",SUM($G394)*SUM(INDEX(InputOutput!$AJ$71:$AJ$100,MATCH($D394,InputOutput!$D$71:$D$100,0))))","v":""},{"$f":"IF($D394=\"\",\"\",SUM($G394)*SUM(INDEX(InputOutput!$AL$71:$AL$100,MATCH($D394,InputOutput!$D$71:$D$100,0))))","v":""},"",{"$f":"IF(D394=\"\",\"\",SUM(I394)*SUM(AD378))","v":""},{"$f":"IF(D394=\"\",\"\",SUM(J394)*SUM(AD378))","v":""},"",{"$f":"IF(AG394,INDEX(E_PurchPrec!U:U,MATCH(CONST_CNTR_ElecEFMethod&D394,E_PurchPrec!R:R,0)),INDEX(D_Processes!T:T,MATCH(CONST_CNTR_ElecEFMethod&D394,D_Processes!R:R,0)))","v":""},{"$f":"IF(OR($D394=\"\",$AG394),\"\",SUM($G394)*SUM(INDEX(InputOutput!$AN$71:$AN$100,MATCH($D394,InputOutput!$D$71:$D$100,0))))","v":""},{"$f":"IF(D394=\"\",\"\",IF(AG394,INDEX(A_InstData!$F$101:$F$120,MATCH(D394,CNTR_List_ExistPurchPrecNames,0)),\"\"))","v":""},{"$f":"IF($D394=\"\",\"\",IFERROR(SUM($G394)*SUM(INDEX(F_Tools!$T$100:$T$129,MATCH($D394,F_Tools!$E$100:$E$129,0)))/K377,\"\"))","v":""},{"$f":"IF($D394=\"\",\"\",IFERROR(SUM($G394)*SUM(INDEX(F_Tools!$U$100:$U$129,MATCH($D394,F_Tools!$E$100:$E$129,0)))/K377,\"\"))","v":""},{"$nulls":8},{"$f":"CONST_PrecursorToGoodInput&D394&\"_\"&D375","v":"PrecToGood__"},null,{"$f":"SUMIF(D_Processes!R:R,AB394,D_Processes!K:K)","v":0},{"$f":"SUMIF(D_Processes!R:R,CONST_CNTR_TotProd&D394,D_Processes!L:L)","v":0},null,false]
[null,null,17,{"$f":"IF(D375=\"\",\"\",IF(COUNTIF(INDEX(CNTR_IOSupplyChain,MATCH(D375,CNTR_IOProcAndPrec,0),),C395)=0,\"\",INDEX(CNTR_IOProcAndPrec,MATCH(C395,INDEX(CNTR_IOSupplyChain,MATCH(D375,CNTR_IOProcAndPrec,0),),0))))","v":""},null,"",{"$f":"IF(D395=\"\",\"\",INDEX(CNTR_Matrix_Inv,MATCH(D375,CNTR_IOProcAndPrec,0),MATCH(D395,CNTR_IOProcAndPrec,0)))","v":""},{"$f":"IF(D395=\"\",\"\",IF(AG395,INDEX(E_PurchPrec!U:U,MATCH(CONST_PurchPrecDefaultUsed&D395,E_PurchPrec!R:R,0)),CONST_NA))","v":""},{"$f":"IF($D395=\"\",\"\",SUM($G395)*SUM(INDEX(InputOutput!$AJ$71:$AJ$100,MATCH($D395,InputOutput!$D$71:$D$100,0))))","v":""},{"$f":"IF($D395=\"\",\"\",SUM($G395)*SUM(INDEX(InputOutput!$AL$71:$AL$100,MATCH($D395,InputOutput!$D$71:$D$100,0))))","v":""},"",{"$f":"IF(D395=\"\",\"\",SUM(I395)*SUM(AD378))","v":""},{"$f":"IF(D395=\"\",\"\",SUM(J395)*SUM(AD378))","v":""},"",{"$f":"IF(AG395,INDEX(E_PurchPrec!U:U,MATCH(CONST_CNTR_ElecEFMethod&D395,E_PurchPrec!R:R,0)),INDEX(D_Processes!T:T,MATCH(CONST_CNTR_ElecEFMethod&D395,D_Processes!R:R,0)))","v":""},{"$f":"IF(OR($D395=\"\",$AG395),\"\",SUM($G395)*SUM(INDEX(InputOutput!$AN$71:$AN$100,MATCH($D395,InputOutput!$D$71:$D$100,0))))","v":""},{"$f":"IF(D395=\"\",\"\",IF(AG395,INDEX(A_InstData!$F$101:$F$120,MATCH(D395,CNTR_List_ExistPurchPrecNames,0)),\"\"))","v":""},{"$f":"IF($D395=\"\",\"\",IFERROR(SUM($G395)*SUM(INDEX(F_Tools!$T$100:$T$129,MATCH($D395,F_Tools!$E$100:$E$129,0)))/K377,\"\"))","v":""},{"$f":"IF($D395=\"\",\"\",IFERROR(SUM($G395)*SUM(INDEX(F_Tools!$U$100:$U$129,MATCH($D395,F_Tools!$E$100:$E$129,0)))/K377,\"\"))","v":""},{"$nulls":8},{"$f":"CONST_PrecursorToGoodInput&D395&\"_\"&D375","v":"PrecToGood__"},null,{"$f":"SUMIF(D_Processes!R:R,AB395,D_Processes!K:K)","v":0},{"$f":"SUMIF(D_Processes!R:R,CONST_CNTR_TotProd&D395,D_Processes!L:L)","v":0},null,false]
[null,null,18,{"$f":"IF(D375=\"\",\"\",IF(COUNTIF(INDEX(CNTR_IOSupplyChain,MATCH(D375,CNTR_IOProcAndPrec,0),),C396)=0,\"\",INDEX(CNTR_IOProcAndPrec,MATCH(C396,INDEX(CNTR_IOSupplyChain,MATCH(D375,CNTR_IOProcAndPrec,0),),0))))","v":""},null,"",{"$f":"IF(D396=\"\",\"\",INDEX(CNTR_Matrix_Inv,MATCH(D375,CNTR_IOProcAndPrec,0),MATCH(D396,CNTR_IOProcAndPrec,0)))","v":""},{"$f":"IF(D396=\"\",\"\",IF(AG396,INDEX(E_PurchPrec!U:U,MATCH(CONST_PurchPrecDefaultUsed&D396,E_PurchPrec!R:R,0)),CONST_NA))","v":""},{"$f":"IF($D396=\"\",\"\",SUM($G396)*SUM(INDEX(InputOutput!$AJ$71:$AJ$100,MATCH($D396,InputOutput!$D$71:$D$100,0))))","v":""},{"$f":"IF($D396=\"\",\"\",SUM($G396)*SUM(INDEX(InputOutput!$AL$71:$AL$100,MATCH($D396,InputOutput!$D$71:$D$100,0))))","v":""},"",{"$f":"IF(D396=\"\",\"\",SUM(I396)*SUM(AD378))","v":""},{"$f":"IF(D396=\"\",\"\",SUM(J396)*SUM(AD378))","v":""},"",{"$f":"IF(AG396,INDEX(E_PurchPrec!U:U,MATCH(CONST_CNTR_ElecEFMethod&D396,E_PurchPrec!R:R,0)),INDEX(D_Processes!T:T,MATCH(CONST_CNTR_ElecEFMethod&D396,D_Processes!R:R,0)))","v":""},{"$f":"IF(OR($D396=\"\",$AG396),\"\",SUM($G396)*SUM(INDEX(InputOutput!$AN$71:$AN$100,MATCH($D396,InputOutput!$D$71:$D$100,0))))","v":""},{"$f":"IF(D396=\"\",\"\",IF(AG396,INDEX(A_InstData!$F$101:$F$120,MATCH(D396,CNTR_List_ExistPurchPrecNames,0)),\"\"))","v":""},{"$f":"IF($D396=\"\",\"\",IFERROR(SUM($G396)*SUM(INDEX(F_Tools!$T$100:$T$129,MATCH($D396,F_Tools!$E$100:$E$129,0)))/K377,\"\"))","v":""},{"$f":"IF($D396=\"\",\"\",IFERROR(SUM($G396)*SUM(INDEX(F_Tools!$U$100:$U$129,MATCH($D396,F_Tools!$E$100:$E$129,0)))/K377,\"\"))","v":""},{"$nulls":8},{"$f":"CONST_PrecursorToGoodInput&D396&\"_\"&D375","v":"PrecToGood__"},null,{"$f":"SUMIF(D_Processes!R:R,AB396,D_Processes!K:K)","v":0},{"$f":"SUMIF(D_Processes!R:R,CONST_CNTR_TotProd&D396,D_Processes!L:L)","v":0},null,false]
[null,null,19,{"$f":"IF(D375=\"\",\"\",IF(COUNTIF(INDEX(CNTR_IOSupplyChain,MATCH(D375,CNTR_IOProcAndPrec,0),),C397)=0,\"\",INDEX(CNTR_IOProcAndPrec,MATCH(C397,INDEX(CNTR_IOSupplyChain,MATCH(D375,CNTR_IOProcAndPrec,0),),0))))","v":""},null,"",{"$f":"IF(D397=\"\",\"\",INDEX(CNTR_Matrix_Inv,MATCH(D375,CNTR_IOProcAndPrec,0),MATCH(D397,CNTR_IOProcAndPrec,0)))","v":""},{"$f":"IF(D397=\"\",\"\",IF(AG397,INDEX(E_PurchPrec!U:U,MATCH(CONST_PurchPrecDefaultUsed&D397,E_PurchPrec!R:R,0)),CONST_NA))","v":""},{"$f":"IF($D397=\"\",\"\",SUM($G397)*SUM(INDEX(InputOutput!$AJ$71:$AJ$100,MATCH($D397,InputOutput!$D$71:$D$100,0))))","v":""},{"$f":"IF($D397=\"\",\"\",SUM($G397)*SUM(INDEX(InputOutput!$AL$71:$AL$100,MATCH($D397,InputOutput!$D$71:$D$100,0))))","v":""},"",{"$f":"IF(D397=\"\",\"\",SUM(I397)*SUM(AD378))","v":""},{"$f":"IF(D397=\"\",\"\",SUM(J397)*SUM(AD378))","v":""},"",{"$f":"IF(AG397,INDEX(E_PurchPrec!U:U,MATCH(CONST_CNTR_ElecEFMethod&D397,E_PurchPrec!R:R,0)),INDEX(D_Processes!T:T,MATCH(CONST_CNTR_ElecEFMethod&D397,D_Processes!R:R,0)))","v":""},{"$f":"IF(OR($D397=\"\",$AG397),\"\",SUM($G397)*SUM(INDEX(InputOutput!$AN$71:$AN$100,MATCH($D397,InputOutput!$D$71:$D$100,0))))","v":""},{"$f":"IF(D397=\"\",\"\",IF(AG397,INDEX(A_InstData!$F$101:$F$120,MATCH(D397,CNTR_List_ExistPurchPrecNames,0)),\"\"))","v":""},{"$f":"IF($D397=\"\",\"\",IFERROR(SUM($G397)*SUM(INDEX(F_Tools!$T$100:$T$129,MATCH($D397,F_Tools!$E$100:$E$129,0)))/K377,\"\"))","v":""},{"$f":"IF($D397=\"\",\"\",IFERROR(SUM($G397)*SUM(INDEX(F_Tools!$U$100:$U$129,MATCH($D397,F_Tools!$E$100:$E$129,0)))/K377,\"\"))","v":""},{"$nulls":8},{"$f":"CONST_PrecursorToGoodInput&D397&\"_\"&D375","v":"PrecToGood__"},null,{"$f":"SUMIF(D_Processes!R:R,AB397,D_Processes!K:K)","v":0},{"$f":"SUMIF(D_Processes!R:R,CONST_CNTR_TotProd&D397,D_Processes!L:L)","v":0},null,false]
[null,null,20,{"$f":"IF(D375=\"\",\"\",IF(COUNTIF(INDEX(CNTR_IOSupplyChain,MATCH(D375,CNTR_IOProcAndPrec,0),),C398)=0,\"\",INDEX(CNTR_IOProcAndPrec,MATCH(C398,INDEX(CNTR_IOSupplyChain,MATCH(D375,CNTR_IOProcAndPrec,0),),0))))","v":""},null,"",{"$f":"IF(D398=\"\",\"\",INDEX(CNTR_Matrix_Inv,MATCH(D375,CNTR_IOProcAndPrec,0),MATCH(D398,CNTR_IOProcAndPrec,0)))","v":""},{"$f":"IF(D398=\"\",\"\",IF(AG398,INDEX(E_PurchPrec!U:U,MATCH(CONST_PurchPrecDefaultUsed&D398,E_PurchPrec!R:R,0)),CONST_NA))","v":""},{"$f":"IF($D398=\"\",\"\",SUM($G398)*SUM(INDEX(InputOutput!$AJ$71:$AJ$100,MATCH($D398,InputOutput!$D$71:$D$100,0))))","v":""},{"$f":"IF($D398=\"\",\"\",SUM($G398)*SUM(INDEX(InputOutput!$AL$71:$AL$100,MATCH($D398,InputOutput!$D$71:$D$100,0))))","v":""},"",{"$f":"IF(D398=\"\",\"\",SUM(I398)*SUM(AD378))","v":""},{"$f":"IF(D398=\"\",\"\",SUM(J398)*SUM(AD378))","v":""},"",{"$f":"IF(AG398,INDEX(E_PurchPrec!U:U,MATCH(CONST_CNTR_ElecEFMethod&D398,E_PurchPrec!R:R,0)),INDEX(D_Processes!T:T,MATCH(CONST_CNTR_ElecEFMethod&D398,D_Processes!R:R,0)))","v":""},{"$f":"IF(OR($D398=\"\",$AG398),\"\",SUM($G398)*SUM(INDEX(InputOutput!$AN$71:$AN$100,MATCH($D398,InputOutput!$D$71:$D$100,0))))","v":""},{"$f":"IF(D398=\"\",\"\",IF(AG398,INDEX(A_InstData!$F$101:$F$120,MATCH(D398,CNTR_List_ExistPurchPrecNames,0)),\"\"))","v":""},{"$f":"IF($D398=\"\",\"\",IFERROR(SUM($G398)*SUM(INDEX(F_Tools!$T$100:$T$129,MATCH($D398,F_Tools!$E$100:$E$129,0)))/K377,\"\"))","v":""},{"$f":"IF($D398=\"\",\"\",IFERROR(SUM($G398)*SUM(INDEX(F_Tools!$U$100:$U$129,MATCH($D398,F_Tools!$E$100:$E$129,0)))/K377,\"\"))","v":""},{"$nulls":8},{"$f":"CONST_PrecursorToGoodInput&D398&\"_\"&D375","v":"PrecToGood__"},null,{"$f":"SUMIF(D_Processes!R:R,AB398,D_Processes!K:K)","v":0},{"$f":"SUMIF(D_Processes!R:R,CONST_CNTR_TotProd&D398,D_Processes!L:L)","v":0},null,false]
[null,null,21,{"$f":"IF(D375=\"\",\"\",IF(COUNTIF(INDEX(CNTR_IOSupplyChain,MATCH(D375,CNTR_IOProcAndPrec,0),),C399)=0,\"\",INDEX(CNTR_IOProcAndPrec,MATCH(C399,INDEX(CNTR_IOSupplyChain,MATCH(D375,CNTR_IOProcAndPrec,0),),0))))","v":""},null,"",{"$f":"IF(D399=\"\",\"\",INDEX(CNTR_Matrix_Inv,MATCH(D375,CNTR_IOProcAndPrec,0),MATCH(D399,CNTR_IOProcAndPrec,0)))","v":""},{"$f":"IF(D399=\"\",\"\",IF(AG399,INDEX(E_PurchPrec!U:U,MATCH(CONST_PurchPrecDefaultUsed&D399,E_PurchPrec!R:R,0)),CONST_NA))","v":""},{"$f":"IF($D399=\"\",\"\",SUM($G399)*SUM(INDEX(InputOutput!$AJ$71:$AJ$100,MATCH($D399,InputOutput!$D$71:$D$100,0))))","v":""},{"$f":"IF($D399=\"\",\"\",SUM($G399)*SUM(INDEX(InputOutput!$AL$71:$AL$100,MATCH($D399,InputOutput!$D$71:$D$100,0))))","v":""},"",{"$f":"IF(D399=\"\",\"\",SUM(I399)*SUM(AD378))","v":""},{"$f":"IF(D399=\"\",\"\",SUM(J399)*SUM(AD378))","v":""},"",{"$f":"IF(AG399,INDEX(E_PurchPrec!U:U,MATCH(CONST_CNTR_ElecEFMethod&D399,E_PurchPrec!R:R,0)),INDEX(D_Processes!T:T,MATCH(CONST_CNTR_ElecEFMethod&D399,D_Processes!R:R,0)))","v":""},{"$f":"IF(OR($D399=\"\",$AG399),\"\",SUM($G399)*SUM(INDEX(InputOutput!$AN$71:$AN$100,MATCH($D399,InputOutput!$D$71:$D$100,0))))","v":""},{"$f":"IF(D399=\"\",\"\",IF(AG399,INDEX(A_InstData!$F$101:$F$120,MATCH(D399,CNTR_List_ExistPurchPrecNames,0)),\"\"))","v":""},{"$f":"IF($D399=\"\",\"\",IFERROR(SUM($G399)*SUM(INDEX(F_Tools!$T$100:$T$129,MATCH($D399,F_Tools!$E$100:$E$129,0)))/K377,\"\"))","v":""},{"$f":"IF($D399=\"\",\"\",IFERROR(SUM($G399)*SUM(INDEX(F_Tools!$U$100:$U$129,MATCH($D399,F_Tools!$E$100:$E$129,0)))/K377,\"\"))","v":""},{"$nulls":8},{"$f":"CONST_PrecursorToGoodInput&D399&\"_\"&D375","v":"PrecToGood__"},null,{"$f":"SUMIF(D_Processes!R:R,AB399,D_Processes!K:K)","v":0},{"$f":"SUMIF(D_Processes!R:R,CONST_CNTR_TotProd&D399,D_Processes!L:L)","v":0},null,false]
[null,null,22,{"$f":"IF(D375=\"\",\"\",IF(COUNTIF(INDEX(CNTR_IOSupplyChain,MATCH(D375,CNTR_IOProcAndPrec,0),),C400)=0,\"\",INDEX(CNTR_IOProcAndPrec,MATCH(C400,INDEX(CNTR_IOSupplyChain,MATCH(D375,CNTR_IOProcAndPrec,0),),0))))","v":""},null,"",{"$f":"IF(D400=\"\",\"\",INDEX(CNTR_Matrix_Inv,MATCH(D375,CNTR_IOProcAndPrec,0),MATCH(D400,CNTR_IOProcAndPrec,0)))","v":""},{"$f":"IF(D400=\"\",\"\",IF(AG400,INDEX(E_PurchPrec!U:U,MATCH(CONST_PurchPrecDefaultUsed&D400,E_PurchPrec!R:R,0)),CONST_NA))","v":""},{"$f":"IF($D400=\"\",\"\",SUM($G400)*SUM(INDEX(InputOutput!$AJ$71:$AJ$100,MATCH($D400,InputOutput!$D$71:$D$100,0))))","v":""},{"$f":"IF($D400=\"\",\"\",SUM($G400)*SUM(INDEX(InputOutput!$AL$71:$AL$100,MATCH($D400,InputOutput!$D$71:$D$100,0))))","v":""},"",{"$f":"IF(D400=\"\",\"\",SUM(I400)*SUM(AD378))","v":""},{"$f":"IF(D400=\"\",\"\",SUM(J400)*SUM(AD378))","v":""},"",{"$f":"IF(AG400,INDEX(E_PurchPrec!U:U,MATCH(CONST_CNTR_ElecEFMethod&D400,E_PurchPrec!R:R,0)),INDEX(D_Processes!T:T,MATCH(CONST_CNTR_ElecEFMethod&D400,D_Processes!R:R,0)))","v":""},{"$f":"IF(OR($D400=\"\",$AG400),\"\",SUM($G400)*SUM(INDEX(InputOutput!$AN$71:$AN$100,MATCH($D400,InputOutput!$D$71:$D$100,0))))","v":""},{"$f":"IF(D400=\"\",\"\",IF(AG400,INDEX(A_InstData!$F$101:$F$120,MATCH(D400,CNTR_List_ExistPurchPrecNames,0)),\"\"))","v":""},{"$f":"IF($D400=\"\",\"\",IFERROR(SUM($G400)*SUM(INDEX(F_Tools!$T$100:$T$129,MATCH($D400,F_Tools!$E$100:$E$129,0)))/K377,\"\"))","v":""},{"$f":"IF($D400=\"\",\"\",IFERROR(SUM($G400)*SUM(INDEX(F_Tools!$U$100:$U$129,MATCH($D400,F_Tools!$E$100:$E$129,0)))/K377,\"\"))","v":""},{"$nulls":8},{"$f":"CONST_PrecursorToGoodInput&D400&\"_\"&D375","v":"PrecToGood__"},null,{"$f":"SUMIF(D_Processes!R:R,AB400,D_Processes!K:K)","v":0},{"$f":"SUMIF(D_Processes!R:R,CONST_CNTR_TotProd&D400,D_Processes!L:L)","v":0},null,false]
[null,null,23,{"$f":"IF(D375=\"\",\"\",IF(COUNTIF(INDEX(CNTR_IOSupplyChain,MATCH(D375,CNTR_IOProcAndPrec,0),),C401)=0,\"\",INDEX(CNTR_IOProcAndPrec,MATCH(C401,INDEX(CNTR_IOSupplyChain,MATCH(D375,CNTR_IOProcAndPrec,0),),0))))","v":""},null,"",{"$f":"IF(D401=\"\",\"\",INDEX(CNTR_Matrix_Inv,MATCH(D375,CNTR_IOProcAndPrec,0),MATCH(D401,CNTR_IOProcAndPrec,0)))","v":""},{"$f":"IF(D401=\"\",\"\",IF(AG401,INDEX(E_PurchPrec!U:U,MATCH(CONST_PurchPrecDefaultUsed&D401,E_PurchPrec!R:R,0)),CONST_NA))","v":""},{"$f":"IF($D401=\"\",\"\",SUM($G401)*SUM(INDEX(InputOutput!$AJ$71:$AJ$100,MATCH($D401,InputOutput!$D$71:$D$100,0))))","v":""},{"$f":"IF($D401=\"\",\"\",SUM($G401)*SUM(INDEX(InputOutput!$AL$71:$AL$100,MATCH($D401,InputOutput!$D$71:$D$100,0))))","v":""},"",{"$f":"IF(D401=\"\",\"\",SUM(I401)*SUM(AD378))","v":""},{"$f":"IF(D401=\"\",\"\",SUM(J401)*SUM(AD378))","v":""},"",{"$f":"IF(AG401,INDEX(E_PurchPrec!U:U,MATCH(CONST_CNTR_ElecEFMethod&D401,E_PurchPrec!R:R,0)),INDEX(D_Processes!T:T,MATCH(CONST_CNTR_ElecEFMethod&D401,D_Processes!R:R,0)))","v":""},{"$f":"IF(OR($D401=\"\",$AG401),\"\",SUM($G401)*SUM(INDEX(InputOutput!$AN$71:$AN$100,MATCH($D401,InputOutput!$D$71:$D$100,0))))","v":""},{"$f":"IF(D401=\"\",\"\",IF(AG401,INDEX(A_InstData!$F$101:$F$120,MATCH(D401,CNTR_List_ExistPurchPrecNames,0)),\"\"))","v":""},{"$f":"IF($D401=\"\",\"\",IFERROR(SUM($G401)*SUM(INDEX(F_Tools!$T$100:$T$129,MATCH($D401,F_Tools!$E$100:$E$129,0)))/K377,\"\"))","v":""},{"$f":"IF($D401=\"\",\"\",IFERROR(SUM($G401)*SUM(INDEX(F_Tools!$U$100:$U$129,MATCH($D401,F_Tools!$E$100:$E$129,0)))/K377,\"\"))","v":""},{"$nulls":8},{"$f":"CONST_PrecursorToGoodInput&D401&\"_\"&D375","v":"PrecToGood__"},null,{"$f":"SUMIF(D_Processes!R:R,AB401,D_Processes!K:K)","v":0},{"$f":"SUMIF(D_Processes!R:R,CONST_CNTR_TotProd&D401,D_Processes!L:L)","v":0},null,false]
[null,null,24,{"$f":"IF(D375=\"\",\"\",IF(COUNTIF(INDEX(CNTR_IOSupplyChain,MATCH(D375,CNTR_IOProcAndPrec,0),),C402)=0,\"\",INDEX(CNTR_IOProcAndPrec,MATCH(C402,INDEX(CNTR_IOSupplyChain,MATCH(D375,CNTR_IOProcAndPrec,0),),0))))","v":""},null,"",{"$f":"IF(D402=\"\",\"\",INDEX(CNTR_Matrix_Inv,MATCH(D375,CNTR_IOProcAndPrec,0),MATCH(D402,CNTR_IOProcAndPrec,0)))","v":""},{"$f":"IF(D402=\"\",\"\",IF(AG402,INDEX(E_PurchPrec!U:U,MATCH(CONST_PurchPrecDefaultUsed&D402,E_PurchPrec!R:R,0)),CONST_NA))","v":""},{"$f":"IF($D402=\"\",\"\",SUM($G402)*SUM(INDEX(InputOutput!$AJ$71:$AJ$100,MATCH($D402,InputOutput!$D$71:$D$100,0))))","v":""},{"$f":"IF($D402=\"\",\"\",SUM($G402)*SUM(INDEX(InputOutput!$AL$71:$AL$100,MATCH($D402,InputOutput!$D$71:$D$100,0))))","v":""},"",{"$f":"IF(D402=\"\",\"\",SUM(I402)*SUM(AD378))","v":""},{"$f":"IF(D402=\"\",\"\",SUM(J402)*SUM(AD378))","v":""},"",{"$f":"IF(AG402,INDEX(E_PurchPrec!U:U,MATCH(CONST_CNTR_ElecEFMethod&D402,E_PurchPrec!R:R,0)),INDEX(D_Processes!T:T,MATCH(CONST_CNTR_ElecEFMethod&D402,D_Processes!R:R,0)))","v":""},{"$f":"IF(OR($D402=\"\",$AG402),\"\",SUM($G402)*SUM(INDEX(InputOutput!$AN$71:$AN$100,MATCH($D402,InputOutput!$D$71:$D$100,0))))","v":""},{"$f":"IF(D402=\"\",\"\",IF(AG402,INDEX(A_InstData!$F$101:$F$120,MATCH(D402,CNTR_List_ExistPurchPrecNames,0)),\"\"))","v":""},{"$f":"IF($D402=\"\",\"\",IFERROR(SUM($G402)*SUM(INDEX(F_Tools!$T$100:$T$129,MATCH($D402,F_Tools!$E$100:$E$129,0)))/K377,\"\"))","v":""},{"$f":"IF($D402=\"\",\"\",IFERROR(SUM($G402)*SUM(INDEX(F_Tools!$U$100:$U$129,MATCH($D402,F_Tools!$E$100:$E$129,0)))/K377,\"\"))","v":""},{"$nulls":8},{"$f":"CONST_PrecursorToGoodInput&D402&\"_\"&D375","v":"PrecToGood__"},null,{"$f":"SUMIF(D_Processes!R:R,AB402,D_Processes!K:K)","v":0},{"$f":"SUMIF(D_Processes!R:R,CONST_CNTR_TotProd&D402,D_Processes!L:L)","v":0},null,false]
[null,null,25,{"$f":"IF(D375=\"\",\"\",IF(COUNTIF(INDEX(CNTR_IOSupplyChain,MATCH(D375,CNTR_IOProcAndPrec,0),),C403)=0,\"\",INDEX(CNTR_IOProcAndPrec,MATCH(C403,INDEX(CNTR_IOSupplyChain,MATCH(D375,CNTR_IOProcAndPrec,0),),0))))","v":""},null,"",{"$f":"IF(D403=\"\",\"\",INDEX(CNTR_Matrix_Inv,MATCH(D375,CNTR_IOProcAndPrec,0),MATCH(D403,CNTR_IOProcAndPrec,0)))","v":""},{"$f":"IF(D403=\"\",\"\",IF(AG403,INDEX(E_PurchPrec!U:U,MATCH(CONST_PurchPrecDefaultUsed&D403,E_PurchPrec!R:R,0)),CONST_NA))","v":""},{"$f":"IF($D403=\"\",\"\",SUM($G403)*SUM(INDEX(InputOutput!$AJ$71:$AJ$100,MATCH($D403,InputOutput!$D$71:$D$100,0))))","v":""},{"$f":"IF($D403=\"\",\"\",SUM($G403)*SUM(INDEX(InputOutput!$AL$71:$AL$100,MATCH($D403,InputOutput!$D$71:$D$100,0))))","v":""},"",{"$f":"IF(D403=\"\",\"\",SUM(I403)*SUM(AD378))","v":""},{"$f":"IF(D403=\"\",\"\",SUM(J403)*SUM(AD378))","v":""},"",{"$f":"IF(AG403,INDEX(E_PurchPrec!U:U,MATCH(CONST_CNTR_ElecEFMethod&D403,E_PurchPrec!R:R,0)),INDEX(D_Processes!T:T,MATCH(CONST_CNTR_ElecEFMethod&D403,D_Processes!R:R,0)))","v":""},{"$f":"IF(OR($D403=\"\",$AG403),\"\",SUM($G403)*SUM(INDEX(InputOutput!$AN$71:$AN$100,MATCH($D403,InputOutput!$D$71:$D$100,0))))","v":""},{"$f":"IF(D403=\"\",\"\",IF(AG403,INDEX(A_InstData!$F$101:$F$120,MATCH(D403,CNTR_List_ExistPurchPrecNames,0)),\"\"))","v":""},{"$f":"IF($D403=\"\",\"\",IFERROR(SUM($G403)*SUM(INDEX(F_Tools!$T$100:$T$129,MATCH($D403,F_Tools!$E$100:$E$129,0)))/K377,\"\"))","v":""},{"$f":"IF($D403=\"\",\"\",IFERROR(SUM($G403)*SUM(INDEX(F_Tools!$U$100:$U$129,MATCH($D403,F_Tools!$E$100:$E$129,0)))/K377,\"\"))","v":""},{"$nulls":8},{"$f":"CONST_PrecursorToGoodInput&D403&\"_\"&D375","v":"PrecToGood__"},null,{"$f":"SUMIF(D_Processes!R:R,AB403,D_Processes!K:K)","v":0},{"$f":"SUMIF(D_Processes!R:R,CONST_CNTR_TotProd&D403,D_Processes!L:L)","v":0},null,false]
[null,null,26,{"$f":"IF(D375=\"\",\"\",IF(COUNTIF(INDEX(CNTR_IOSupplyChain,MATCH(D375,CNTR_IOProcAndPrec,0),),C404)=0,\"\",INDEX(CNTR_IOProcAndPrec,MATCH(C404,INDEX(CNTR_IOSupplyChain,MATCH(D375,CNTR_IOProcAndPrec,0),),0))))","v":""},null,"",{"$f":"IF(D404=\"\",\"\",INDEX(CNTR_Matrix_Inv,MATCH(D375,CNTR_IOProcAndPrec,0),MATCH(D404,CNTR_IOProcAndPrec,0)))","v":""},{"$f":"IF(D404=\"\",\"\",IF(AG404,INDEX(E_PurchPrec!U:U,MATCH(CONST_PurchPrecDefaultUsed&D404,E_PurchPrec!R:R,0)),CONST_NA))","v":""},{"$f":"IF($D404=\"\",\"\",SUM($G404)*SUM(INDEX(InputOutput!$AJ$71:$AJ$100,MATCH($D404,InputOutput!$D$71:$D$100,0))))","v":""},{"$f":"IF($D404=\"\",\"\",SUM($G404)*SUM(INDEX(InputOutput!$AL$71:$AL$100,MATCH($D404,InputOutput!$D$71:$D$100,0))))","v":""},"",{"$f":"IF(D404=\"\",\"\",SUM(I404)*SUM(AD378))","v":""},{"$f":"IF(D404=\"\",\"\",SUM(J404)*SUM(AD378))","v":""},"",{"$f":"IF(AG404,INDEX(E_PurchPrec!U:U,MATCH(CONST_CNTR_ElecEFMethod&D404,E_PurchPrec!R:R,0)),INDEX(D_Processes!T:T,MATCH(CONST_CNTR_ElecEFMethod&D404,D_Processes!R:R,0)))","v":""},{"$f":"IF(OR($D404=\"\",$AG404),\"\",SUM($G404)*SUM(INDEX(InputOutput!$AN$71:$AN$100,MATCH($D404,InputOutput!$D$71:$D$100,0))))","v":""},{"$f":"IF(D404=\"\",\"\",IF(AG404,INDEX(A_InstData!$F$101:$F$120,MATCH(D404,CNTR_List_ExistPurchPrecNames,0)),\"\"))","v":""},{"$f":"IF($D404=\"\",\"\",IFERROR(SUM($G404)*SUM(INDEX(F_Tools!$T$100:$T$129,MATCH($D404,F_Tools!$E$100:$E$129,0)))/K377,\"\"))","v":""},{"$f":"IF($D404=\"\",\"\",IFERROR(SUM($G404)*SUM(INDEX(F_Tools!$U$100:$U$129,MATCH($D404,F_Tools!$E$100:$E$129,0)))/K377,\"\"))","v":""},{"$nulls":8},{"$f":"CONST_PrecursorToGoodInput&D404&\"_\"&D375","v":"PrecToGood__"},null,{"$f":"SUMIF(D_Processes!R:R,AB404,D_Processes!K:K)","v":0},{"$f":"SUMIF(D_Processes!R:R,CONST_CNTR_TotProd&D404,D_Processes!L:L)","v":0},null,false]
[null,null,27,{"$f":"IF(D375=\"\",\"\",IF(COUNTIF(INDEX(CNTR_IOSupplyChain,MATCH(D375,CNTR_IOProcAndPrec,0),),C405)=0,\"\",INDEX(CNTR_IOProcAndPrec,MATCH(C405,INDEX(CNTR_IOSupplyChain,MATCH(D375,CNTR_IOProcAndPrec,0),),0))))","v":""},null,"",{"$f":"IF(D405=\"\",\"\",INDEX(CNTR_Matrix_Inv,MATCH(D375,CNTR_IOProcAndPrec,0),MATCH(D405,CNTR_IOProcAndPrec,0)))","v":""},{"$f":"IF(D405=\"\",\"\",IF(AG405,INDEX(E_PurchPrec!U:U,MATCH(CONST_PurchPrecDefaultUsed&D405,E_PurchPrec!R:R,0)),CONST_NA))","v":""},{"$f":"IF($D405=\"\",\"\",SUM($G405)*SUM(INDEX(InputOutput!$AJ$71:$AJ$100,MATCH($D405,InputOutput!$D$71:$D$100,0))))","v":""},{"$f":"IF($D405=\"\",\"\",SUM($G405)*SUM(INDEX(InputOutput!$AL$71:$AL$100,MATCH($D405,InputOutput!$D$71:$D$100,0))))","v":""},"",{"$f":"IF(D405=\"\",\"\",SUM(I405)*SUM(AD378))","v":""},{"$f":"IF(D405=\"\",\"\",SUM(J405)*SUM(AD378))","v":""},"",{"$f":"IF(AG405,INDEX(E_PurchPrec!U:U,MATCH(CONST_CNTR_ElecEFMethod&D405,E_PurchPrec!R:R,0)),INDEX(D_Processes!T:T,MATCH(CONST_CNTR_ElecEFMethod&D405,D_Processes!R:R,0)))","v":""},{"$f":"IF(OR($D405=\"\",$AG405),\"\",SUM($G405)*SUM(INDEX(InputOutput!$AN$71:$AN$100,MATCH($D405,InputOutput!$D$71:$D$100,0))))","v":""},{"$f":"IF(D405=\"\",\"\",IF(AG405,INDEX(A_InstData!$F$101:$F$120,MATCH(D405,CNTR_List_ExistPurchPrecNames,0)),\"\"))","v":""},{"$f":"IF($D405=\"\",\"\",IFERROR(SUM($G405)*SUM(INDEX(F_Tools!$T$100:$T$129,MATCH($D405,F_Tools!$E$100:$E$129,0)))/K377,\"\"))","v":""},{"$f":"IF($D405=\"\",\"\",IFERROR(SUM($G405)*SUM(INDEX(F_Tools!$U$100:$U$129,MATCH($D405,F_Tools!$E$100:$E$129,0)))/K377,\"\"))","v":""},{"$nulls":8},{"$f":"CONST_PrecursorToGoodInput&D405&\"_\"&D375","v":"PrecToGood__"},null,{"$f":"SUMIF(D_Processes!R:R,AB405,D_Processes!K:K)","v":0},{"$f":"SUMIF(D_Processes!R:R,CONST_CNTR_TotProd&D405,D_Processes!L:L)","v":0},null,false]
[null,null,28,{"$f":"IF(D375=\"\",\"\",IF(COUNTIF(INDEX(CNTR_IOSupplyChain,MATCH(D375,CNTR_IOProcAndPrec,0),),C406)=0,\"\",INDEX(CNTR_IOProcAndPrec,MATCH(C406,INDEX(CNTR_IOSupplyChain,MATCH(D375,CNTR_IOProcAndPrec,0),),0))))","v":""},null,"",{"$f":"IF(D406=\"\",\"\",INDEX(CNTR_Matrix_Inv,MATCH(D375,CNTR_IOProcAndPrec,0),MATCH(D406,CNTR_IOProcAndPrec,0)))","v":""},{"$f":"IF(D406=\"\",\"\",IF(AG406,INDEX(E_PurchPrec!U:U,MATCH(CONST_PurchPrecDefaultUsed&D406,E_PurchPrec!R:R,0)),CONST_NA))","v":""},{"$f":"IF($D406=\"\",\"\",SUM($G406)*SUM(INDEX(InputOutput!$AJ$71:$AJ$100,MATCH($D406,InputOutput!$D$71:$D$100,0))))","v":""},{"$f":"IF($D406=\"\",\"\",SUM($G406)*SUM(INDEX(InputOutput!$AL$71:$AL$100,MATCH($D406,InputOutput!$D$71:$D$100,0))))","v":""},"",{"$f":"IF(D406=\"\",\"\",SUM(I406)*SUM(AD378))","v":""},{"$f":"IF(D406=\"\",\"\",SUM(J406)*SUM(AD378))","v":""},"",{"$f":"IF(AG406,INDEX(E_PurchPrec!U:U,MATCH(CONST_CNTR_ElecEFMethod&D406,E_PurchPrec!R:R,0)),INDEX(D_Processes!T:T,MATCH(CONST_CNTR_ElecEFMethod&D406,D_Processes!R:R,0)))","v":""},{"$f":"IF(OR($D406=\"\",$AG406),\"\",SUM($G406)*SUM(INDEX(InputOutput!$AN$71:$AN$100,MATCH($D406,InputOutput!$D$71:$D$100,0))))","v":""},{"$f":"IF(D406=\"\",\"\",IF(AG406,INDEX(A_InstData!$F$101:$F$120,MATCH(D406,CNTR_List_ExistPurchPrecNames,0)),\"\"))","v":""},{"$f":"IF($D406=\"\",\"\",IFERROR(SUM($G406)*SUM(INDEX(F_Tools!$T$100:$T$129,MATCH($D406,F_Tools!$E$100:$E$129,0)))/K377,\"\"))","v":""},{"$f":"IF($D406=\"\",\"\",IFERROR(SUM($G406)*SUM(INDEX(F_Tools!$U$100:$U$129,MATCH($D406,F_Tools!$E$100:$E$129,0)))/K377,\"\"))","v":""},{"$nulls":8},{"$f":"CONST_PrecursorToGoodInput&D406&\"_\"&D375","v":"PrecToGood__"},null,{"$f":"SUMIF(D_Processes!R:R,AB406,D_Processes!K:K)","v":0},{"$f":"SUMIF(D_Processes!R:R,CONST_CNTR_TotProd&D406,D_Processes!L:L)","v":0},null,false]
[null,null,29,{"$f":"IF(D375=\"\",\"\",IF(COUNTIF(INDEX(CNTR_IOSupplyChain,MATCH(D375,CNTR_IOProcAndPrec,0),),C407)=0,\"\",INDEX(CNTR_IOProcAndPrec,MATCH(C407,INDEX(CNTR_IOSupplyChain,MATCH(D375,CNTR_IOProcAndPrec,0),),0))))","v":""},null,"",{"$f":"IF(D407=\"\",\"\",INDEX(CNTR_Matrix_Inv,MATCH(D375,CNTR_IOProcAndPrec,0),MATCH(D407,CNTR_IOProcAndPrec,0)))","v":""},{"$f":"IF(D407=\"\",\"\",IF(AG407,INDEX(E_PurchPrec!U:U,MATCH(CONST_PurchPrecDefaultUsed&D407,E_PurchPrec!R:R,0)),CONST_NA))","v":""},{"$f":"IF($D407=\"\",\"\",SUM($G407)*SUM(INDEX(InputOutput!$AJ$71:$AJ$100,MATCH($D407,InputOutput!$D$71:$D$100,0))))","v":""},{"$f":"IF($D407=\"\",\"\",SUM($G407)*SUM(INDEX(InputOutput!$AL$71:$AL$100,MATCH($D407,InputOutput!$D$71:$D$100,0))))","v":""},"",{"$f":"IF(D407=\"\",\"\",SUM(I407)*SUM(AD378))","v":""},{"$f":"IF(D407=\"\",\"\",SUM(J407)*SUM(AD378))","v":""},"",{"$f":"IF(AG407,INDEX(E_PurchPrec!U:U,MATCH(CONST_CNTR_ElecEFMethod&D407,E_PurchPrec!R:R,0)),INDEX(D_Processes!T:T,MATCH(CONST_CNTR_ElecEFMethod&D407,D_Processes!R:R,0)))","v":""},{"$f":"IF(OR($D407=\"\",$AG407),\"\",SUM($G407)*SUM(INDEX(InputOutput!$AN$71:$AN$100,MATCH($D407,InputOutput!$D$71:$D$100,0))))","v":""},{"$f":"IF(D407=\"\",\"\",IF(AG407,INDEX(A_InstData!$F$101:$F$120,MATCH(D407,CNTR_List_ExistPurchPrecNames,0)),\"\"))","v":""},{"$f":"IF($D407=\"\",\"\",IFERROR(SUM($G407)*SUM(INDEX(F_Tools!$T$100:$T$129,MATCH($D407,F_Tools!$E$100:$E$129,0)))/K377,\"\"))","v":""},{"$f":"IF($D407=\"\",\"\",IFERROR(SUM($G407)*SUM(INDEX(F_Tools!$U$100:$U$129,MATCH($D407,F_Tools!$E$100:$E$129,0)))/K377,\"\"))","v":""},{"$nulls":8},{"$f":"CONST_PrecursorToGoodInput&D407&\"_\"&D375","v":"PrecToGood__"},null,{"$f":"SUMIF(D_Processes!R:R,AB407,D_Processes!K:K)","v":0},{"$f":"SUMIF(D_Processes!R:R,CONST_CNTR_TotProd&D407,D_Processes!L:L)","v":0},null,false]
[null,null,30,{"$f":"IF(D375=\"\",\"\",IF(COUNTIF(INDEX(CNTR_IOSupplyChain,MATCH(D375,CNTR_IOProcAndPrec,0),),C408)=0,\"\",INDEX(CNTR_IOProcAndPrec,MATCH(C408,INDEX(CNTR_IOSupplyChain,MATCH(D375,CNTR_IOProcAndPrec,0),),0))))","v":""},null,"",{"$f":"IF(D408=\"\",\"\",INDEX(CNTR_Matrix_Inv,MATCH(D375,CNTR_IOProcAndPrec,0),MATCH(D408,CNTR_IOProcAndPrec,0)))","v":""},{"$f":"IF(D408=\"\",\"\",IF(AG408,INDEX(E_PurchPrec!U:U,MATCH(CONST_PurchPrecDefaultUsed&D408,E_PurchPrec!R:R,0)),CONST_NA))","v":""},{"$f":"IF($D408=\"\",\"\",SUM($G408)*SUM(INDEX(InputOutput!$AJ$71:$AJ$100,MATCH($D408,InputOutput!$D$71:$D$100,0))))","v":""},{"$f":"IF($D408=\"\",\"\",SUM($G408)*SUM(INDEX(InputOutput!$AL$71:$AL$100,MATCH($D408,InputOutput!$D$71:$D$100,0))))","v":""},"",{"$f":"IF(D408=\"\",\"\",SUM(I408)*SUM(AD378))","v":""},{"$f":"IF(D408=\"\",\"\",SUM(J408)*SUM(AD378))","v":""},"",{"$f":"IF(AG408,INDEX(E_PurchPrec!U:U,MATCH(CONST_CNTR_ElecEFMethod&D408,E_PurchPrec!R:R,0)),INDEX(D_Processes!T:T,MATCH(CONST_CNTR_ElecEFMethod&D408,D_Processes!R:R,0)))","v":""},{"$f":"IF(OR($D408=\"\",$AG408),\"\",SUM($G408)*SUM(INDEX(InputOutput!$AN$71:$AN$100,MATCH($D408,InputOutput!$D$71:$D$100,0))))","v":""},{"$f":"IF(D408=\"\",\"\",IF(AG408,INDEX(A_InstData!$F$101:$F$120,MATCH(D408,CNTR_List_ExistPurchPrecNames,0)),\"\"))","v":""},{"$f":"IF($D408=\"\",\"\",IFERROR(SUM($G408)*SUM(INDEX(F_Tools!$T$100:$T$129,MATCH($D408,F_Tools!$E$100:$E$129,0)))/K377,\"\"))","v":""},{"$f":"IF($D408=\"\",\"\",IFERROR(SUM($G408)*SUM(INDEX(F_Tools!$U$100:$U$129,MATCH($D408,F_Tools!$E$100:$E$129,0)))/K377,\"\"))","v":""},{"$nulls":8},{"$f":"CONST_PrecursorToGoodInput&D408&\"_\"&D375","v":"PrecToGood__"},null,{"$f":"SUMIF(D_Processes!R:R,AB408,D_Processes!K:K)","v":0},{"$f":"SUMIF(D_Processes!R:R,CONST_CNTR_TotProd&D408,D_Processes!L:L)","v":0},null,false]
[]
[]
[null,null,{"$f":"C375+1","v":8},{"$f":"IF(INDEX(CNTR_List_ExistProdProcNames,C411)=CONST_NA,\"\",INDEX(CNTR_List_ExistProdProcNames,C411))","v":""},null,{"$f":"Translations!$B$107","v":"Aggregated goods category"},{"$f":"Translations!$B$584","v":"Mass share"},{"$f":"Translations!$B$586","v":"(Share of) Default value"},{"$f":"Translations!$B$570","v":"SEE (direct)"},{"$f":"Translations!$B$574","v":"SEE (indirect)"},{"$f":"Translations!$B$344","v":"SEE (total)"},{"$f":"Translations!$B$589","v":"EmbEm (direct)"},{"$f":"Translations!$B$591","v":"EmbEm (indirect)"},{"$f":"Translations!$B$593","v":"EmbEm (total)"},{"$f":"Translations!$B$594","v":"Source of electricity EF"},{"$f":"Translations!$B$597","v":"Specific electricity"},"Country code",{"$f":"Translations!$B$351","v":"CP due (per t or MWh)"},{"$f":"Translations!$B$352","v":"Rebate (per t or MWh)"},{"$nulls":12},{"$f":"H411","v":"(Share of) Default value"},{"$f":"H413","v":""}]
[{"$nulls":6},{"$f":"IF($F413=\"\",CONST_t,INDEX(CONST_LIST_GoodsUnit,MATCH($F413,CONST_LIST_Goods,0)))&\"/\"&IF($F413=\"\",CONST_t,INDEX(CONST_LIST_GoodsUnit,MATCH($F413,CONST_LIST_Goods,0)))","v":"t/t"},null,{"$f":"CONST_tCO2eq&\"/\"&IF($F413=\"\",CONST_t,INDEX(CONST_LIST_GoodsUnit,MATCH($F413,CONST_LIST_Goods,0)))","v":"tCO2e/t"},{"$f":"CONST_tCO2eq&\"/\"&IF($F413=\"\",CONST_t,INDEX(CONST_LIST_GoodsUnit,MATCH($F413,CONST_LIST_Goods,0)))","v":"tCO2e/t"},{"$f":"CONST_tCO2eq&\"/\"&IF($F413=\"\",CONST_t,INDEX(CONST_LIST_GoodsUnit,MATCH($F413,CONST_LIST_Goods,0)))","v":"tCO2e/t"},{"$f":"CONST_tCO2eq","v":"tCO2e"},{"$f":"CONST_tCO2eq","v":"tCO2e"},{"$f":"CONST_tCO2eq","v":"tCO2e"},null,{"$f":"CONST_MWh&\"/\"&IF($F413=\"\",CONST_t,INDEX(CONST_LIST_GoodsUnit,MATCH($F413,CONST_LIST_Goods,0)))","v":"MWh/t"}]
[{"$nulls":3},{"$f":"Translations!$B$600","v":"Total production process"},null,{"$f":"IF(D414=\"\",\"\",INDEX(CNTR_List_ExistProdProc,MATCH(D414,CNTR_List_ExistProdProcNames,0)))","v":""},"-",{"$f":"IF(D411=\"\",\"\",IFERROR(SUMIFS(I415:I444,H415:H444,TRUE)/I413,\"\"))","v":""},{"$f":"IF(COUNT(I414:I444)>0,SUM(I414:I444),\"\")","v":""},"","","","","","-",{"$f":"IF(COUNT(P414:P444)>0,SUM(P414:P444),\"\")","v":""},"-",{"$f":"IF(COUNT(R414:R444)>0,SUM(R414:R444),\"\")","v":""},{"$f":"IF(COUNT(S414:S444)>0,SUM(S414:S444),\"\")","v":""},{"$nulls":10},{"$f":"Translations!$B$601","v":"Production and consumption"},{"$f":"Translations!$B$602","v":"Total production of precursors"},null,"IsPrecursor?"]
[{"$nulls":3},{"$f":"D411","v":""},null,{"$f":"IF(D414=\"\",\"\",INDEX(CNTR_List_ExistProdProc,MATCH(D414,CNTR_List_ExistProdProcNames,0)))","v":""},{"v":1,"d":"1.000"},"-",{"$f":"IF($D414=\"\",\"\",SUM($G414)*SUM(INDEX(InputOutput!$AJ$71:$AJ$100,MATCH($D414,InputOutput!$D$71:$D$100,0))))","v":""},{"$f":"IF($D414=\"\",\"\",SUM($G414)*SUM(INDEX(InputOutput!$AL$71:$AL$100,MATCH($D414,InputOutput!$D$71:$D$100,0))))","v":""},{"$f":"IF(COUNT(I414:J414)>0,SUM(I414:J414),\"\")","v":""},{"$f":"IF(D414=\"\",\"\",SUM(I414)*SUM(AD414))","v":""},{"$f":"IF(D414=\"\",\"\",SUM(J414)*SUM(AD414))","v":""},{"$f":"IF(COUNT(L414:M414)>0,SUM(L414:M414),\"\")","v":""},{"$f":"IF(AG414,INDEX(E_PurchPrec!U:U,MATCH(CONST_CNTR_ElecEFMethod&D414,E_PurchPrec!R:R,0)),INDEX(D_Processes!T:T,MATCH(CONST_CNTR_ElecEFMethod&D414,D_Processes!R:R,0)))","v":""},{"$f":"IF(OR($D414=\"\",$AG414),\"\",SUM($G414)*SUM(INDEX(InputOutput!$AN$71:$AN$100,MATCH($D414,InputOutput!$D$71:$D$100,0))))","v":""},null,{"$f":"IF($D414=\"\",\"\",IFERROR(SUM($G414)*SUM(INDEX(F_Tools!$T$100:$T$129,MATCH($D414,F_Tools!$E$100:$E$129,0)))/K413,\"\"))","v":""},{"$f":"IF($D414=\"\",\"\",IFERROR(SUM($G414)*SUM(INDEX(F_Tools!$U$100:$U$129,MATCH($D414,F_Tools!$E$100:$E$129,0)))/K413,\"\"))","v":""},{"$nulls":8},{"$f":"CONST_CNTR_TotProd&D411","v":"TotProd_"},null,{"$f":"SUMIF(D_Processes!R:R,AB414,D_Processes!L:L)","v":0}]
[null,null,1,{"$f":"IF(D411=\"\",\"\",IF(COUNTIF(INDEX(CNTR_IOSupplyChain,MATCH(D411,CNTR_IOProcAndPrec,0),),C415)=0,\"\",INDEX(CNTR_IOProcAndPrec,MATCH(C415,INDEX(CNTR_IOSupplyChain,MATCH(D411,CNTR_IOProcAndPrec,0),),0))))","v":""},null,{"$f":"IF(D415=\"\",\"\",IF(COUNTIF(CNTR_List_ExistProdProcNames,D415)>0,INDEX(CNTR_List_ExistProdProc,MATCH(D415,CNTR_List_ExistProdProcNames,0)),INDEX(CNTR_List_ExistPurchPrec,MATCH(D415,CNTR_List_ExistPurchPrecNames,0))))","v":""},{"$f":"IF(D415=\"\",\"\",INDEX(CNTR_Matrix_Inv,MATCH(D411,CNTR_IOProcAndPrec,0),MATCH(D415,CNTR_IOProcAndPrec,0)))","v":""},{"$f":"IF(D415=\"\",\"\",IF(AG415,INDEX(E_PurchPrec!U:U,MATCH(CONST_PurchPrecDefaultUsed&D415,E_PurchPrec!R:R,0)),CONST_NA))","v":""},{"$f":"IF($D415=\"\",\"\",SUM($G415)*SUM(INDEX(InputOutput!$AJ$71:$AJ$100,MATCH($D415,InputOutput!$D$71:$D$100,0))))","v":""},{"$f":"IF($D415=\"\",\"\",SUM($G415)*SUM(INDEX(InputOutput!$AL$71:$AL$100,MATCH($D415,InputOutput!$D$71:$D$100,0))))","v":""},"",{"$f":"IF(D415=\"\",\"\",SUM(I415)*SUM(AD414))","v":""},{"$f":"IF(D415=\"\",\"\",SUM(J415)*SUM(AD414))","v":""},{"$f":"IF(COUNT(L415:M415)>0,SUM(L415:M415),\"\")","v":""},{"$f":"IF(AG415,INDEX(E_PurchPrec!U:U,MATCH(CONST_CNTR_ElecEFMethod&D415,E_PurchPrec!R:R,0)),INDEX(D_Processes!T:T,MATCH(CONST_CNTR_ElecEFMethod&D415,D_Processes!R:R,0)))","v":""},{"$f":"IF(OR($D415=\"\",$AG415),\"\",SUM($G415)*SUM(INDEX(InputOutput!$AN$71:$AN$100,MATCH($D415,InputOutput!$D$71:$D$100,0))))","v":""},{"$f":"IF(D415=\"\",\"\",IF(AG415,INDEX(A_InstData!$F$101:$F$120,MATCH(D415,CNTR_List_ExistPurchPrecNames,0)),\"\"))","v":""},{"$f":"IF($D415=\"\",\"\",IFERROR(SUM($G415)*SUM(INDEX(F_Tools!$T$100:$T$129,MATCH($D415,F_Tools!$E$100:$E$129,0)))/K413,\"\"))","v":""},{"$f":"IF($D415=\"\",\"\",IFERROR(SUM($G415)*SUM(INDEX(F_Tools!$U$100:$U$129,MATCH($D415,F_Tools!$E$100:$E$129,0)))/K413,\"\"))","v":""},{"$nulls":8},{"$f":"CONST_PrecursorToGoodInput&D415&\"_\"&D411","v":"PrecToGood__"},null,{"$f":"SUMIF(D_Processes!R:R,AB415,D_Processes!K:K)","v":0},{"$f":"SUMIF(D_Processes!R:R,CONST_CNTR_TotProd&D415,D_Processes!L:L)","v":0},null,{"$f":"COUNTIF(CNTR_List_ExistPurchPrecNames,D415)>0","v":false}]
[null,null,2,{"$f":"IF(D411=\"\",\"\",IF(COUNTIF(INDEX(CNTR_IOSupplyChain,MATCH(D411,CNTR_IOProcAndPrec,0),),C416)=0,\"\",INDEX(CNTR_IOProcAndPrec,MATCH(C416,INDEX(CNTR_IOSupplyChain,MATCH(D411,CNTR_IOProcAndPrec,0),),0))))","v":""},null,"",{"$f":"IF(D416=\"\",\"\",INDEX(CNTR_Matrix_Inv,MATCH(D411,CNTR_IOProcAndPrec,0),MATCH(D416,CNTR_IOProcAndPrec,0)))","v":""},{"$f":"IF(D416=\"\",\"\",IF(AG416,INDEX(E_PurchPrec!U:U,MATCH(CONST_PurchPrecDefaultUsed&D416,E_PurchPrec!R:R,0)),CONST_NA))","v":""},{"$f":"IF($D416=\"\",\"\",SUM($G416)*SUM(INDEX(InputOutput!$AJ$71:$AJ$100,MATCH($D416,InputOutput!$D$71:$D$100,0))))","v":""},{"$f":"IF($D416=\"\",\"\",SUM($G416)*SUM(INDEX(InputOutput!$AL$71:$AL$100,MATCH($D416,InputOutput!$D$71:$D$100,0))))","v":""},"",{"$f":"IF(D416=\"\",\"\",SUM(I416)*SUM(AD414))","v":""},{"$f":"IF(D416=\"\",\"\",SUM(J416)*SUM(AD414))","v":""},{"$f":"IF(COUNT(L416:M416)>0,SUM(L416:M416),\"\")","v":""},{"$f":"IF(AG416,INDEX(E_PurchPrec!U:U,MATCH(CONST_CNTR_ElecEFMethod&D416,E_PurchPrec!R:R,0)),INDEX(D_Processes!T:T,MATCH(CONST_CNTR_ElecEFMethod&D416,D_Processes!R:R,0)))","v":""},{"$f":"IF(OR($D416=\"\",$AG416),\"\",SUM($G416)*SUM(INDEX(InputOutput!$AN$71:$AN$100,MATCH($D416,InputOutput!$D$71:$D$100,0))))","v":""},{"$f":"IF(D416=\"\",\"\",IF(AG416,INDEX(A_InstData!$F$101:$F$120,MATCH(D416,CNTR_List_ExistPurchPrecNames,0)),\"\"))","v":""},{"$f":"IF($D416=\"\",\"\",IFERROR(SUM($G416)*SUM(INDEX(F_Tools!$T$100:$T$129,MATCH($D416,F_Tools!$E$100:$E$129,0)))/K413,\"\"))","v":""},{"$f":"IF($D416=\"\",\"\",IFERROR(SUM($G416)*SUM(INDEX(F_Tools!$U$100:$U$129,MATCH($D416,F_Tools!$E$100:$E$129,0)))/K413,\"\"))","v":""},{"$nulls":8},{"$f":"CONST_PrecursorToGoodInput&D416&\"_\"&D411","v":"PrecToGood__"},null,{"$f":"SUMIF(D_Processes!R:R,AB416,D_Processes!K:K)","v":0},{"$f":"SUMIF(D_Processes!R:R,CONST_CNTR_TotProd&D416,D_Processes!L:L)","v":0},null,false]
[null,null,3,{"$f":"IF(D411=\"\",\"\",IF(COUNTIF(INDEX(CNTR_IOSupplyChain,MATCH(D411,CNTR_IOProcAndPrec,0),),C417)=0,\"\",INDEX(CNTR_IOProcAndPrec,MATCH(C417,INDEX(CNTR_IOSupplyChain,MATCH(D411,CNTR_IOProcAndPrec,0),),0))))","v":""},null,"",{"$f":"IF(D417=\"\",\"\",INDEX(CNTR_Matrix_Inv,MATCH(D411,CNTR_IOProcAndPrec,0),MATCH(D417,CNTR_IOProcAndPrec,0)))","v":""},{"$f":"IF(D417=\"\",\"\",IF(AG417,INDEX(E_PurchPrec!U:U,MATCH(CONST_PurchPrecDefaultUsed&D417,E_PurchPrec!R:R,0)),CONST_NA))","v":""},{"$f":"IF($D417=\"\",\"\",SUM($G417)*SUM(INDEX(InputOutput!$AJ$71:$AJ$100,MATCH($D417,InputOutput!$D$71:$D$100,0))))","v":""},{"$f":"IF($D417=\"\",\"\",SUM($G417)*SUM(INDEX(InputOutput!$AL$71:$AL$100,MATCH($D417,InputOutput!$D$71:$D$100,0))))","v":""},"",{"$f":"IF(D417=\"\",\"\",SUM(I417)*SUM(AD414))","v":""},{"$f":"IF(D417=\"\",\"\",SUM(J417)*SUM(AD414))","v":""},{"$f":"IF(COUNT(L417:M417)>0,SUM(L417:M417),\"\")","v":""},{"$f":"IF(AG417,INDEX(E_PurchPrec!U:U,MATCH(CONST_CNTR_ElecEFMethod&D417,E_PurchPrec!R:R,0)),INDEX(D_Processes!T:T,MATCH(CONST_CNTR_ElecEFMethod&D417,D_Processes!R:R,0)))","v":""},{"$f":"IF(OR($D417=\"\",$AG417),\"\",SUM($G417)*SUM(INDEX(InputOutput!$AN$71:$AN$100,MATCH($D417,InputOutput!$D$71:$D$100,0))))","v":""},{"$f":"IF(D417=\"\",\"\",IF(AG417,INDEX(A_InstData!$F$101:$F$120,MATCH(D417,CNTR_List_ExistPurchPrecNames,0)),\"\"))","v":""},{"$f":"IF($D417=\"\",\"\",IFERROR(SUM($G417)*SUM(INDEX(F_Tools!$T$100:$T$129,MATCH($D417,F_Tools!$E$100:$E$129,0)))/K413,\"\"))","v":""},{"$f":"IF($D417=\"\",\"\",IFERROR(SUM($G417)*SUM(INDEX(F_Tools!$U$100:$U$129,MATCH($D417,F_Tools!$E$100:$E$129,0)))/K413,\"\"))","v":""},{"$nulls":8},{"$f":"CONST_PrecursorToGoodInput&D417&\"_\"&D411","v":"PrecToGood__"},null,{"$f":"SUMIF(D_Processes!R:R,AB417,D_Processes!K:K)","v":0},{"$f":"SUMIF(D_Processes!R:R,CONST_CNTR_TotProd&D417,D_Processes!L:L)","v":0},null,false]
[null,null,4,{"$f":"IF(D411=\"\",\"\",IF(COUNTIF(INDEX(CNTR_IOSupplyChain,MATCH(D411,CNTR_IOProcAndPrec,0),),C418)=0,\"\",INDEX(CNTR_IOProcAndPrec,MATCH(C418,INDEX(CNTR_IOSupplyChain,MATCH(D411,CNTR_IOProcAndPrec,0),),0))))","v":""},null,"",{"$f":"IF(D418=\"\",\"\",INDEX(CNTR_Matrix_Inv,MATCH(D411,CNTR_IOProcAndPrec,0),MATCH(D418,CNTR_IOProcAndPrec,0)))","v":""},{"$f":"IF(D418=\"\",\"\",IF(AG418,INDEX(E_PurchPrec!U:U,MATCH(CONST_PurchPrecDefaultUsed&D418,E_PurchPrec!R:R,0)),CONST_NA))","v":""},{"$f":"IF($D418=\"\",\"\",SUM($G418)*SUM(INDEX(InputOutput!$AJ$71:$AJ$100,MATCH($D418,InputOutput!$D$71:$D$100,0))))","v":""},{"$f":"IF($D418=\"\",\"\",SUM($G418)*SUM(INDEX(InputOutput!$AL$71:$AL$100,MATCH($D418,InputOutput!$D$71:$D$100,0))))","v":""},"",{"$f":"IF(D418=\"\",\"\",SUM(I418)*SUM(AD414))","v":""},{"$f":"IF(D418=\"\",\"\",SUM(J418)*SUM(AD414))","v":""},"",{"$f":"IF(AG418,INDEX(E_PurchPrec!U:U,MATCH(CONST_CNTR_ElecEFMethod&D418,E_PurchPrec!R:R,0)),INDEX(D_Processes!T:T,MATCH(CONST_CNTR_ElecEFMethod&D418,D_Processes!R:R,0)))","v":""},{"$f":"IF(OR($D418=\"\",$AG418),\"\",SUM($G418)*SUM(INDEX(InputOutput!$AN$71:$AN$100,MATCH($D418,InputOutput!$D$71:$D$100,0))))","v":""},{"$f":"IF(D418=\"\",\"\",IF(AG418,INDEX(A_InstData!$F$101:$F$120,MATCH(D418,CNTR_List_ExistPurchPrecNames,0)),\"\"))","v":""},{"$f":"IF($D418=\"\",\"\",IFERROR(SUM($G418)*SUM(INDEX(F_Tools!$T$100:$T$129,MATCH($D418,F_Tools!$E$100:$E$129,0)))/K413,\"\"))","v":""},{"$f":"IF($D418=\"\",\"\",IFERROR(SUM($G418)*SUM(INDEX(F_Tools!$U$100:$U$129,MATCH($D418,F_Tools!$E$100:$E$129,0)))/K413,\"\"))","v":""},{"$nulls":8},{"$f":"CONST_PrecursorToGoodInput&D418&\"_\"&D411","v":"PrecToGood__"},null,{"$f":"SUMIF(D_Processes!R:R,AB418,D_Processes!K:K)","v":0},{"$f":"SUMIF(D_Processes!R:R,CONST_CNTR_TotProd&D418,D_Processes!L:L)","v":0},null,false]
[null,null,5,{"$f":"IF(D411=\"\",\"\",IF(COUNTIF(INDEX(CNTR_IOSupplyChain,MATCH(D411,CNTR_IOProcAndPrec,0),),C419)=0,\"\",INDEX(CNTR_IOProcAndPrec,MATCH(C419,INDEX(CNTR_IOSupplyChain,MATCH(D411,CNTR_IOProcAndPrec,0),),0))))","v":""},null,"",{"$f":"IF(D419=\"\",\"\",INDEX(CNTR_Matrix_Inv,MATCH(D411,CNTR_IOProcAndPrec,0),MATCH(D419,CNTR_IOProcAndPrec,0)))","v":""},{"$f":"IF(D419=\"\",\"\",IF(AG419,INDEX(E_PurchPrec!U:U,MATCH(CONST_PurchPrecDefaultUsed&D419,E_PurchPrec!R:R,0)),CONST_NA))","v":""},{"$f":"IF($D419=\"\",\"\",SUM($G419)*SUM(INDEX(InputOutput!$AJ$71:$AJ$100,MATCH($D419,InputOutput!$D$71:$D$100,0))))","v":""},{"$f":"IF($D419=\"\",\"\",SUM($G419)*SUM(INDEX(InputOutput!$AL$71:$AL$100,MATCH($D419,InputOutput!$D$71:$D$100,0))))","v":""},"",{"$f":"IF(D419=\"\",\"\",SUM(I419)*SUM(AD414))","v":""},{"$f":"IF(D419=\"\",\"\",SUM(J419)*SUM(AD414))","v":""},"",{"$f":"IF(AG419,INDEX(E_PurchPrec!U:U,MATCH(CONST_CNTR_ElecEFMethod&D419,E_PurchPrec!R:R,0)),INDEX(D_Processes!T:T,MATCH(CONST_CNTR_ElecEFMethod&D419,D_Processes!R:R,0)))","v":""},{"$f":"IF(OR($D419=\"\",$AG419),\"\",SUM($G419)*SUM(INDEX(InputOutput!$AN$71:$AN$100,MATCH($D419,InputOutput!$D$71:$D$100,0))))","v":""},{"$f":"IF(D419=\"\",\"\",IF(AG419,INDEX(A_InstData!$F$101:$F$120,MATCH(D419,CNTR_List_ExistPurchPrecNames,0)),\"\"))","v":""},{"$f":"IF($D419=\"\",\"\",IFERROR(SUM($G419)*SUM(INDEX(F_Tools!$T$100:$T$129,MATCH($D419,F_Tools!$E$100:$E$129,0)))/K413,\"\"))","v":""},{"$f":"IF($D419=\"\",\"\",IFERROR(SUM($G419)*SUM(INDEX(F_Tools!$U$100:$U$129,MATCH($D419,F_Tools!$E$100:$E$129,0)))/K413,\"\"))","v":""},{"$nulls":8},{"$f":"CONST_PrecursorToGoodInput&D419&\"_\"&D411","v":"PrecToGood__"},null,{"$f":"SUMIF(D_Processes!R:R,AB419,D_Processes!K:K)","v":0},{"$f":"SUMIF(D_Processes!R:R,CONST_CNTR_TotProd&D419,D_Processes!L:L)","v":0},null,false]
[null,null,6,{"$f":"IF(D411=\"\",\"\",IF(COUNTIF(INDEX(CNTR_IOSupplyChain,MATCH(D411,CNTR_IOProcAndPrec,0),),C420)=0,\"\",INDEX(CNTR_IOProcAndPrec,MATCH(C420,INDEX(CNTR_IOSupplyChain,MATCH(D411,CNTR_IOProcAndPrec,0),),0))))","v":""},null,"",{"$f":"IF(D420=\"\",\"\",INDEX(CNTR_Matrix_Inv,MATCH(D411,CNTR_IOProcAndPrec,0),MATCH(D420,CNTR_IOProcAndPrec,0)))","v":""},{"$f":"IF(D420=\"\",\"\",IF(AG420,INDEX(E_PurchPrec!U:U,MATCH(CONST_PurchPrecDefaultUsed&D420,E_PurchPrec!R:R,0)),CONST_NA))","v":""},{"$f":"IF($D420=\"\",\"\",SUM($G420)*SUM(INDEX(InputOutput!$AJ$71:$AJ$100,MATCH($D420,InputOutput!$D$71:$D$100,0))))","v":""},{"$f":"IF($D420=\"\",\"\",SUM($G420)*SUM(INDEX(InputOutput!$AL$71:$AL$100,MATCH($D420,InputOutput!$D$71:$D$100,0))))","v":""},"",{"$f":"IF(D420=\"\",\"\",SUM(I420)*SUM(AD414))","v":""},{"$f":"IF(D420=\"\",\"\",SUM(J420)*SUM(AD414))","v":""},"",{"$f":"IF(AG420,INDEX(E_PurchPrec!U:U,MATCH(CONST_CNTR_ElecEFMethod&D420,E_PurchPrec!R:R,0)),INDEX(D_Processes!T:T,MATCH(CONST_CNTR_ElecEFMethod&D420,D_Processes!R:R,0)))","v":""},{"$f":"IF(OR($D420=\"\",$AG420),\"\",SUM($G420)*SUM(INDEX(InputOutput!$AN$71:$AN$100,MATCH($D420,InputOutput!$D$71:$D$100,0))))","v":""},{"$f":"IF(D420=\"\",\"\",IF(AG420,INDEX(A_InstData!$F$101:$F$120,MATCH(D420,CNTR_List_ExistPurchPrecNames,0)),\"\"))","v":""},{"$f":"IF($D420=\"\",\"\",IFERROR(SUM($G420)*SUM(INDEX(F_Tools!$T$100:$T$129,MATCH($D420,F_Tools!$E$100:$E$129,0)))/K413,\"\"))","v":""},{"$f":"IF($D420=\"\",\"\",IFERROR(SUM($G420)*SUM(INDEX(F_Tools!$U$100:$U$129,MATCH($D420,F_Tools!$E$100:$E$129,0)))/K413,\"\"))","v":""},{"$nulls":8},{"$f":"CONST_PrecursorToGoodInput&D420&\"_\"&D411","v":"PrecToGood__"},null,{"$f":"SUMIF(D_Processes!R:R,AB420,D_Processes!K:K)","v":0},{"$f":"SUMIF(D_Processes!R:R,CONST_CNTR_TotProd&D420,D_Processes!L:L)","v":0},null,false]
[null,null,7,{"$f":"IF(D411=\"\",\"\",IF(COUNTIF(INDEX(CNTR_IOSupplyChain,MATCH(D411,CNTR_IOProcAndPrec,0),),C421)=0,\"\",INDEX(CNTR_IOProcAndPrec,MATCH(C421,INDEX(CNTR_IOSupplyChain,MATCH(D411,CNTR_IOProcAndPrec,0),),0))))","v":""},null,"",{"$f":"IF(D421=\"\",\"\",INDEX(CNTR_Matrix_Inv,MATCH(D411,CNTR_IOProcAndPrec,0),MATCH(D421,CNTR_IOProcAndPrec,0)))","v":""},{"$f":"IF(D421=\"\",\"\",IF(AG421,INDEX(E_PurchPrec!U:U,MATCH(CONST_PurchPrecDefaultUsed&D421,E_PurchPrec!R:R,0)),CONST_NA))","v":""},{"$f":"IF($D421=\"\",\"\",SUM($G421)*SUM(INDEX(InputOutput!$AJ$71:$AJ$100,MATCH($D421,InputOutput!$D$71:$D$100,0))))","v":""},{"$f":"IF($D421=\"\",\"\",SUM($G421)*SUM(INDEX(InputOutput!$AL$71:$AL$100,MATCH($D421,InputOutput!$D$71:$D$100,0))))","v":""},"",{"$f":"IF(D421=\"\",\"\",SUM(I421)*SUM(AD414))","v":""},{"$f":"IF(D421=\"\",\"\",SUM(J421)*SUM(AD414))","v":""},"",{"$f":"IF(AG421,INDEX(E_PurchPrec!U:U,MATCH(CONST_CNTR_ElecEFMethod&D421,E_PurchPrec!R:R,0)),INDEX(D_Processes!T:T,MATCH(CONST_CNTR_ElecEFMethod&D421,D_Processes!R:R,0)))","v":""},{"$f":"IF(OR($D421=\"\",$AG421),\"\",SUM($G421)*SUM(INDEX(InputOutput!$AN$71:$AN$100,MATCH($D421,InputOutput!$D$71:$D$100,0))))","v":""},{"$f":"IF(D421=\"\",\"\",IF(AG421,INDEX(A_InstData!$F$101:$F$120,MATCH(D421,CNTR_List_ExistPurchPrecNames,0)),\"\"))","v":""},{"$f":"IF($D421=\"\",\"\",IFERROR(SUM($G421)*SUM(INDEX(F_Tools!$T$100:$T$129,MATCH($D421,F_Tools!$E$100:$E$129,0)))/K413,\"\"))","v":""},{"$f":"IF($D421=\"\",\"\",IFERROR(SUM($G421)*SUM(INDEX(F_Tools!$U$100:$U$129,MATCH($D421,F_Tools!$E$100:$E$129,0)))/K413,\"\"))","v":""},{"$nulls":8},{"$f":"CONST_PrecursorToGoodInput&D421&\"_\"&D411","v":"PrecToGood__"},null,{"$f":"SUMIF(D_Processes!R:R,AB421,D_Processes!K:K)","v":0},{"$f":"SUMIF(D_Processes!R:R,CONST_CNTR_TotProd&D421,D_Processes!L:L)","v":0},null,false]
[null,null,8,{"$f":"IF(D411=\"\",\"\",IF(COUNTIF(INDEX(CNTR_IOSupplyChain,MATCH(D411,CNTR_IOProcAndPrec,0),),C422)=0,\"\",INDEX(CNTR_IOProcAndPrec,MATCH(C422,INDEX(CNTR_IOSupplyChain,MATCH(D411,CNTR_IOProcAndPrec,0),),0))))","v":""},null,"",{"$f":"IF(D422=\"\",\"\",INDEX(CNTR_Matrix_Inv,MATCH(D411,CNTR_IOProcAndPrec,0),MATCH(D422,CNTR_IOProcAndPrec,0)))","v":""},{"$f":"IF(D422=\"\",\"\",IF(AG422,INDEX(E_PurchPrec!U:U,MATCH(CONST_PurchPrecDefaultUsed&D422,E_PurchPrec!R:R,0)),CONST_NA))","v":""},{"$f":"IF($D422=\"\",\"\",SUM($G422)*SUM(INDEX(InputOutput!$AJ$71:$AJ$100,MATCH($D422,InputOutput!$D$71:$D$100,0))))","v":""},{"$f":"IF($D422=\"\",\"\",SUM($G422)*SUM(INDEX(InputOutput!$AL$71:$AL$100,MATCH($D422,InputOutput!$D$71:$D$100,0))))","v":""},"",{"$f":"IF(D422=\"\",\"\",SUM(I422)*SUM(AD414))","v":""},{"$f":"IF(D422=\"\",\"\",SUM(J422)*SUM(AD414))","v":""},"",{"$f":"IF(AG422,INDEX(E_PurchPrec!U:U,MATCH(CONST_CNTR_ElecEFMethod&D422,E_PurchPrec!R:R,0)),INDEX(D_Processes!T:T,MATCH(CONST_CNTR_ElecEFMethod&D422,D_Processes!R:R,0)))","v":""},{"$f":"IF(OR($D422=\"\",$AG422),\"\",SUM($G422)*SUM(INDEX(InputOutput!$AN$71:$AN$100,MATCH($D422,InputOutput!$D$71:$D$100,0))))","v":""},{"$f":"IF(D422=\"\",\"\",IF(AG422,INDEX(A_InstData!$F$101:$F$120,MATCH(D422,CNTR_List_ExistPurchPrecNames,0)),\"\"))","v":""},{"$f":"IF($D422=\"\",\"\",IFERROR(SUM($G422)*SUM(INDEX(F_Tools!$T$100:$T$129,MATCH($D422,F_Tools!$E$100:$E$129,0)))/K413,\"\"))","v":""},{"$f":"IF($D422=\"\",\"\",IFERROR(SUM($G422)*SUM(INDEX(F_Tools!$U$100:$U$129,MATCH($D422,F_Tools!$E$100:$E$129,0)))/K413,\"\"))","v":""},{"$nulls":8},{"$f":"CONST_PrecursorToGoodInput&D422&\"_\"&D411","v":"PrecToGood__"},null,{"$f":"SUMIF(D_Processes!R:R,AB422,D_Processes!K:K)","v":0},{"$f":"SUMIF(D_Processes!R:R,CONST_CNTR_TotProd&D422,D_Processes!L:L)","v":0},null,false]
[null,null,9,{"$f":"IF(D411=\"\",\"\",IF(COUNTIF(INDEX(CNTR_IOSupplyChain,MATCH(D411,CNTR_IOProcAndPrec,0),),C423)=0,\"\",INDEX(CNTR_IOProcAndPrec,MATCH(C423,INDEX(CNTR_IOSupplyChain,MATCH(D411,CNTR_IOProcAndPrec,0),),0))))","v":""},null,"",{"$f":"IF(D423=\"\",\"\",INDEX(CNTR_Matrix_Inv,MATCH(D411,CNTR_IOProcAndPrec,0),MATCH(D423,CNTR_IOProcAndPrec,0)))","v":""},{"$f":"IF(D423=\"\",\"\",IF(AG423,INDEX(E_PurchPrec!U:U,MATCH(CONST_PurchPrecDefaultUsed&D423,E_PurchPrec!R:R,0)),CONST_NA))","v":""},{"$f":"IF($D423=\"\",\"\",SUM($G423)*SUM(INDEX(InputOutput!$AJ$71:$AJ$100,MATCH($D423,InputOutput!$D$71:$D$100,0))))","v":""},{"$f":"IF($D423=\"\",\"\",SUM($G423)*SUM(INDEX(InputOutput!$AL$71:$AL$100,MATCH($D423,InputOutput!$D$71:$D$100,0))))","v":""},"",{"$f":"IF(D423=\"\",\"\",SUM(I423)*SUM(AD414))","v":""},{"$f":"IF(D423=\"\",\"\",SUM(J423)*SUM(AD414))","v":""},"",{"$f":"IF(AG423,INDEX(E_PurchPrec!U:U,MATCH(CONST_CNTR_ElecEFMethod&D423,E_PurchPrec!R:R,0)),INDEX(D_Processes!T:T,MATCH(CONST_CNTR_ElecEFMethod&D423,D_Processes!R:R,0)))","v":""},{"$f":"IF(OR($D423=\"\",$AG423),\"\",SUM($G423)*SUM(INDEX(InputOutput!$AN$71:$AN$100,MATCH($D423,InputOutput!$D$71:$D$100,0))))","v":""},{"$f":"IF(D423=\"\",\"\",IF(AG423,INDEX(A_InstData!$F$101:$F$120,MATCH(D423,CNTR_List_ExistPurchPrecNames,0)),\"\"))","v":""},{"$f":"IF($D423=\"\",\"\",IFERROR(SUM($G423)*SUM(INDEX(F_Tools!$T$100:$T$129,MATCH($D423,F_Tools!$E$100:$E$129,0)))/K413,\"\"))","v":""},{"$f":"IF($D423=\"\",\"\",IFERROR(SUM($G423)*SUM(INDEX(F_Tools!$U$100:$U$129,MATCH($D423,F_Tools!$E$100:$E$129,0)))/K413,\"\"))","v":""},{"$nulls":8},{"$f":"CONST_PrecursorToGoodInput&D423&\"_\"&D411","v":"PrecToGood__"},null,{"$f":"SUMIF(D_Processes!R:R,AB423,D_Processes!K:K)","v":0},{"$f":"SUMIF(D_Processes!R:R,CONST_CNTR_TotProd&D423,D_Processes!L:L)","v":0},null,false]
[null,null,10,{"$f":"IF(D411=\"\",\"\",IF(COUNTIF(INDEX(CNTR_IOSupplyChain,MATCH(D411,CNTR_IOProcAndPrec,0),),C424)=0,\"\",INDEX(CNTR_IOProcAndPrec,MATCH(C424,INDEX(CNTR_IOSupplyChain,MATCH(D411,CNTR_IOProcAndPrec,0),),0))))","v":""},null,"",{"$f":"IF(D424=\"\",\"\",INDEX(CNTR_Matrix_Inv,MATCH(D411,CNTR_IOProcAndPrec,0),MATCH(D424,CNTR_IOProcAndPrec,0)))","v":""},{"$f":"IF(D424=\"\",\"\",IF(AG424,INDEX(E_PurchPrec!U:U,MATCH(CONST_PurchPrecDefaultUsed&D424,E_PurchPrec!R:R,0)),CONST_NA))","v":""},{"$f":"IF($D424=\"\",\"\",SUM($G424)*SUM(INDEX(InputOutput!$AJ$71:$AJ$100,MATCH($D424,InputOutput!$D$71:$D$100,0))))","v":""},{"$f":"IF($D424=\"\",\"\",SUM($G424)*SUM(INDEX(InputOutput!$AL$71:$AL$100,MATCH($D424,InputOutput!$D$71:$D$100,0))))","v":""},"",{"$f":"IF(D424=\"\",\"\",SUM(I424)*SUM(AD414))","v":""},{"$f":"IF(D424=\"\",\"\",SUM(J424)*SUM(AD414))","v":""},"",{"$f":"IF(AG424,INDEX(E_PurchPrec!U:U,MATCH(CONST_CNTR_ElecEFMethod&D424,E_PurchPrec!R:R,0)),INDEX(D_Processes!T:T,MATCH(CONST_CNTR_ElecEFMethod&D424,D_Processes!R:R,0)))","v":""},{"$f":"IF(OR($D424=\"\",$AG424),\"\",SUM($G424)*SUM(INDEX(InputOutput!$AN$71:$AN$100,MATCH($D424,InputOutput!$D$71:$D$100,0))))","v":""},{"$f":"IF(D424=\"\",\"\",IF(AG424,INDEX(A_InstData!$F$101:$F$120,MATCH(D424,CNTR_List_ExistPurchPrecNames,0)),\"\"))","v":""},{"$f":"IF($D424=\"\",\"\",IFERROR(SUM($G424)*SUM(INDEX(F_Tools!$T$100:$T$129,MATCH($D424,F_Tools!$E$100:$E$129,0)))/K413,\"\"))","v":""},{"$f":"IF($D424=\"\",\"\",IFERROR(SUM($G424)*SUM(INDEX(F_Tools!$U$100:$U$129,MATCH($D424,F_Tools!$E$100:$E$129,0)))/K413,\"\"))","v":""},{"$nulls":8},{"$f":"CONST_PrecursorToGoodInput&D424&\"_\"&D411","v":"PrecToGood__"},null,{"$f":"SUMIF(D_Processes!R:R,AB424,D_Processes!K:K)","v":0},{"$f":"SUMIF(D_Processes!R:R,CONST_CNTR_TotProd&D424,D_Processes!L:L)","v":0},null,false]
[null,null,11,{"$f":"IF(D411=\"\",\"\",IF(COUNTIF(INDEX(CNTR_IOSupplyChain,MATCH(D411,CNTR_IOProcAndPrec,0),),C425)=0,\"\",INDEX(CNTR_IOProcAndPrec,MATCH(C425,INDEX(CNTR_IOSupplyChain,MATCH(D411,CNTR_IOProcAndPrec,0),),0))))","v":""},null,"",{"$f":"IF(D425=\"\",\"\",INDEX(CNTR_Matrix_Inv,MATCH(D411,CNTR_IOProcAndPrec,0),MATCH(D425,CNTR_IOProcAndPrec,0)))","v":""},{"$f":"IF(D425=\"\",\"\",IF(AG425,INDEX(E_PurchPrec!U:U,MATCH(CONST_PurchPrecDefaultUsed&D425,E_PurchPrec!R:R,0)),CONST_NA))","v":""},{"$f":"IF($D425=\"\",\"\",SUM($G425)*SUM(INDEX(InputOutput!$AJ$71:$AJ$100,MATCH($D425,InputOutput!$D$71:$D$100,0))))","v":""},{"$f":"IF($D425=\"\",\"\",SUM($G425)*SUM(INDEX(InputOutput!$AL$71:$AL$100,MATCH($D425,InputOutput!$D$71:$D$100,0))))","v":""},"",{"$f":"IF(D425=\"\",\"\",SUM(I425)*SUM(AD414))","v":""},{"$f":"IF(D425=\"\",\"\",SUM(J425)*SUM(AD414))","v":""},"",{"$f":"IF(AG425,INDEX(E_PurchPrec!U:U,MATCH(CONST_CNTR_ElecEFMethod&D425,E_PurchPrec!R:R,0)),INDEX(D_Processes!T:T,MATCH(CONST_CNTR_ElecEFMethod&D425,D_Processes!R:R,0)))","v":""},{"$f":"IF(OR($D425=\"\",$AG425),\"\",SUM($G425)*SUM(INDEX(InputOutput!$AN$71:$AN$100,MATCH($D425,InputOutput!$D$71:$D$100,0))))","v":""},{"$f":"IF(D425=\"\",\"\",IF(AG425,INDEX(A_InstData!$F$101:$F$120,MATCH(D425,CNTR_List_ExistPurchPrecNames,0)),\"\"))","v":""},{"$f":"IF($D425=\"\",\"\",IFERROR(SUM($G425)*SUM(INDEX(F_Tools!$T$100:$T$129,MATCH($D425,F_Tools!$E$100:$E$129,0)))/K413,\"\"))","v":""},{"$f":"IF($D425=\"\",\"\",IFERROR(SUM($G425)*SUM(INDEX(F_Tools!$U$100:$U$129,MATCH($D425,F_Tools!$E$100:$E$129,0)))/K413,\"\"))","v":""},{"$nulls":8},{"$f":"CONST_PrecursorToGoodInput&D425&\"_\"&D411","v":"PrecToGood__"},null,{"$f":"SUMIF(D_Processes!R:R,AB425,D_Processes!K:K)","v":0},{"$f":"SUMIF(D_Processes!R:R,CONST_CNTR_TotProd&D425,D_Processes!L:L)","v":0},null,false]
[null,null,12,{"$f":"IF(D411=\"\",\"\",IF(COUNTIF(INDEX(CNTR_IOSupplyChain,MATCH(D411,CNTR_IOProcAndPrec,0),),C426)=0,\"\",INDEX(CNTR_IOProcAndPrec,MATCH(C426,INDEX(CNTR_IOSupplyChain,MATCH(D411,CNTR_IOProcAndPrec,0),),0))))","v":""},null,"",{"$f":"IF(D426=\"\",\"\",INDEX(CNTR_Matrix_Inv,MATCH(D411,CNTR_IOProcAndPrec,0),MATCH(D426,CNTR_IOProcAndPrec,0)))","v":""},{"$f":"IF(D426=\"\",\"\",IF(AG426,INDEX(E_PurchPrec!U:U,MATCH(CONST_PurchPrecDefaultUsed&D426,E_PurchPrec!R:R,0)),CONST_NA))","v":""},{"$f":"IF($D426=\"\",\"\",SUM($G426)*SUM(INDEX(InputOutput!$AJ$71:$AJ$100,MATCH($D426,InputOutput!$D$71:$D$100,0))))","v":""},{"$f":"IF($D426=\"\",\"\",SUM($G426)*SUM(INDEX(InputOutput!$AL$71:$AL$100,MATCH($D426,InputOutput!$D$71:$D$100,0))))","v":""},"",{"$f":"IF(D426=\"\",\"\",SUM(I426)*SUM(AD414))","v":""},{"$f":"IF(D426=\"\",\"\",SUM(J426)*SUM(AD414))","v":""},"",{"$f":"IF(AG426,INDEX(E_PurchPrec!U:U,MATCH(CONST_CNTR_ElecEFMethod&D426,E_PurchPrec!R:R,0)),INDEX(D_Processes!T:T,MATCH(CONST_CNTR_ElecEFMethod&D426,D_Processes!R:R,0)))","v":""},{"$f":"IF(OR($D426=\"\",$AG426),\"\",SUM($G426)*SUM(INDEX(InputOutput!$AN$71:$AN$100,MATCH($D426,InputOutput!$D$71:$D$100,0))))","v":""},{"$f":"IF(D426=\"\",\"\",IF(AG426,INDEX(A_InstData!$F$101:$F$120,MATCH(D426,CNTR_List_ExistPurchPrecNames,0)),\"\"))","v":""},{"$f":"IF($D426=\"\",\"\",IFERROR(SUM($G426)*SUM(INDEX(F_Tools!$T$100:$T$129,MATCH($D426,F_Tools!$E$100:$E$129,0)))/K413,\"\"))","v":""},{"$f":"IF($D426=\"\",\"\",IFERROR(SUM($G426)*SUM(INDEX(F_Tools!$U$100:$U$129,MATCH($D426,F_Tools!$E$100:$E$129,0)))/K413,\"\"))","v":""},{"$nulls":8},{"$f":"CONST_PrecursorToGoodInput&D426&\"_\"&D411","v":"PrecToGood__"},null,{"$f":"SUMIF(D_Processes!R:R,AB426,D_Processes!K:K)","v":0},{"$f":"SUMIF(D_Processes!R:R,CONST_CNTR_TotProd&D426,D_Processes!L:L)","v":0},null,false]
[null,null,13,{"$f":"IF(D411=\"\",\"\",IF(COUNTIF(INDEX(CNTR_IOSupplyChain,MATCH(D411,CNTR_IOProcAndPrec,0),),C427)=0,\"\",INDEX(CNTR_IOProcAndPrec,MATCH(C427,INDEX(CNTR_IOSupplyChain,MATCH(D411,CNTR_IOProcAndPrec,0),),0))))","v":""},null,"",{"$f":"IF(D427=\"\",\"\",INDEX(CNTR_Matrix_Inv,MATCH(D411,CNTR_IOProcAndPrec,0),MATCH(D427,CNTR_IOProcAndPrec,0)))","v":""},{"$f":"IF(D427=\"\",\"\",IF(AG427,INDEX(E_PurchPrec!U:U,MATCH(CONST_PurchPrecDefaultUsed&D427,E_PurchPrec!R:R,0)),CONST_NA))","v":""},{"$f":"IF($D427=\"\",\"\",SUM($G427)*SUM(INDEX(InputOutput!$AJ$71:$AJ$100,MATCH($D427,InputOutput!$D$71:$D$100,0))))","v":""},{"$f":"IF($D427=\"\",\"\",SUM($G427)*SUM(INDEX(InputOutput!$AL$71:$AL$100,MATCH($D427,InputOutput!$D$71:$D$100,0))))","v":""},"",{"$f":"IF(D427=\"\",\"\",SUM(I427)*SUM(AD414))","v":""},{"$f":"IF(D427=\"\",\"\",SUM(J427)*SUM(AD414))","v":""},"",{"$f":"IF(AG427,INDEX(E_PurchPrec!U:U,MATCH(CONST_CNTR_ElecEFMethod&D427,E_PurchPrec!R:R,0)),INDEX(D_Processes!T:T,MATCH(CONST_CNTR_ElecEFMethod&D427,D_Processes!R:R,0)))","v":""},{"$f":"IF(OR($D427=\"\",$AG427),\"\",SUM($G427)*SUM(INDEX(InputOutput!$AN$71:$AN$100,MATCH($D427,InputOutput!$D$71:$D$100,0))))","v":""},{"$f":"IF(D427=\"\",\"\",IF(AG427,INDEX(A_InstData!$F$101:$F$120,MATCH(D427,CNTR_List_ExistPurchPrecNames,0)),\"\"))","v":""},{"$f":"IF($D427=\"\",\"\",IFERROR(SUM($G427)*SUM(INDEX(F_Tools!$T$100:$T$129,MATCH($D427,F_Tools!$E$100:$E$129,0)))/K413,\"\"))","v":""},{"$f":"IF($D427=\"\",\"\",IFERROR(SUM($G427)*SUM(INDEX(F_Tools!$U$100:$U$129,MATCH($D427,F_Tools!$E$100:$E$129,0)))/K413,\"\"))","v":""},{"$nulls":8},{"$f":"CONST_PrecursorToGoodInput&D427&\"_\"&D411","v":"PrecToGood__"},null,{"$f":"SUMIF(D_Processes!R:R,AB427,D_Processes!K:K)","v":0},{"$f":"SUMIF(D_Processes!R:R,CONST_CNTR_TotProd&D427,D_Processes!L:L)","v":0},null,false]
[null,null,14,{"$f":"IF(D411=\"\",\"\",IF(COUNTIF(INDEX(CNTR_IOSupplyChain,MATCH(D411,CNTR_IOProcAndPrec,0),),C428)=0,\"\",INDEX(CNTR_IOProcAndPrec,MATCH(C428,INDEX(CNTR_IOSupplyChain,MATCH(D411,CNTR_IOProcAndPrec,0),),0))))","v":""},null,"",{"$f":"IF(D428=\"\",\"\",INDEX(CNTR_Matrix_Inv,MATCH(D411,CNTR_IOProcAndPrec,0),MATCH(D428,CNTR_IOProcAndPrec,0)))","v":""},{"$f":"IF(D428=\"\",\"\",IF(AG428,INDEX(E_PurchPrec!U:U,MATCH(CONST_PurchPrecDefaultUsed&D428,E_PurchPrec!R:R,0)),CONST_NA))","v":""},{"$f":"IF($D428=\"\",\"\",SUM($G428)*SUM(INDEX(InputOutput!$AJ$71:$AJ$100,MATCH($D428,InputOutput!$D$71:$D$100,0))))","v":""},{"$f":"IF($D428=\"\",\"\",SUM($G428)*SUM(INDEX(InputOutput!$AL$71:$AL$100,MATCH($D428,InputOutput!$D$71:$D$100,0))))","v":""},"",{"$f":"IF(D428=\"\",\"\",SUM(I428)*SUM(AD414))","v":""},{"$f":"IF(D428=\"\",\"\",SUM(J428)*SUM(AD414))","v":""},"",{"$f":"IF(AG428,INDEX(E_PurchPrec!U:U,MATCH(CONST_CNTR_ElecEFMethod&D428,E_PurchPrec!R:R,0)),INDEX(D_Processes!T:T,MATCH(CONST_CNTR_ElecEFMethod&D428,D_Processes!R:R,0)))","v":""},{"$f":"IF(OR($D428=\"\",$AG428),\"\",SUM($G428)*SUM(INDEX(InputOutput!$AN$71:$AN$100,MATCH($D428,InputOutput!$D$71:$D$100,0))))","v":""},{"$f":"IF(D428=\"\",\"\",IF(AG428,INDEX(A_InstData!$F$101:$F$120,MATCH(D428,CNTR_List_ExistPurchPrecNames,0)),\"\"))","v":""},{"$f":"IF($D428=\"\",\"\",IFERROR(SUM($G428)*SUM(INDEX(F_Tools!$T$100:$T$129,MATCH($D428,F_Tools!$E$100:$E$129,0)))/K413,\"\"))","v":""},{"$f":"IF($D428=\"\",\"\",IFERROR(SUM($G428)*SUM(INDEX(F_Tools!$U$100:$U$129,MATCH($D428,F_Tools!$E$100:$E$129,0)))/K413,\"\"))","v":""},{"$nulls":8},{"$f":"CONST_PrecursorToGoodInput&D428&\"_\"&D411","v":"PrecToGood__"},null,{"$f":"SUMIF(D_Processes!R:R,AB428,D_Processes!K:K)","v":0},{"$f":"SUMIF(D_Processes!R:R,CONST_CNTR_TotProd&D428,D_Processes!L:L)","v":0},null,false]
[null,null,15,{"$f":"IF(D411=\"\",\"\",IF(COUNTIF(INDEX(CNTR_IOSupplyChain,MATCH(D411,CNTR_IOProcAndPrec,0),),C429)=0,\"\",INDEX(CNTR_IOProcAndPrec,MATCH(C429,INDEX(CNTR_IOSupplyChain,MATCH(D411,CNTR_IOProcAndPrec,0),),0))))","v":""},null,"",{"$f":"IF(D429=\"\",\"\",INDEX(CNTR_Matrix_Inv,MATCH(D411,CNTR_IOProcAndPrec,0),MATCH(D429,CNTR_IOProcAndPrec,0)))","v":""},{"$f":"IF(D429=\"\",\"\",IF(AG429,INDEX(E_PurchPrec!U:U,MATCH(CONST_PurchPrecDefaultUsed&D429,E_PurchPrec!R:R,0)),CONST_NA))","v":""},{"$f":"IF($D429=\"\",\"\",SUM($G429)*SUM(INDEX(InputOutput!$AJ$71:$AJ$100,MATCH($D429,InputOutput!$D$71:$D$100,0))))","v":""},{"$f":"IF($D429=\"\",\"\",SUM($G429)*SUM(INDEX(InputOutput!$AL$71:$AL$100,MATCH($D429,InputOutput!$D$71:$D$100,0))))","v":""},"",{"$f":"IF(D429=\"\",\"\",SUM(I429)*SUM(AD414))","v":""},{"$f":"IF(D429=\"\",\"\",SUM(J429)*SUM(AD414))","v":""},"",{"$f":"IF(AG429,INDEX(E_PurchPrec!U:U,MATCH(CONST_CNTR_ElecEFMethod&D429,E_PurchPrec!R:R,0)),INDEX(D_Processes!T:T,MATCH(CONST_CNTR_ElecEFMethod&D429,D_Processes!R:R,0)))","v":""},{"$f":"IF(OR($D429=\"\",$AG429),\"\",SUM($G429)*SUM(INDEX(InputOutput!$AN$71:$AN$100,MATCH($D429,InputOutput!$D$71:$D$100,0))))","v":""},{"$f":"IF(D429=\"\",\"\",IF(AG429,INDEX(A_InstData!$F$101:$F$120,MATCH(D429,CNTR_List_ExistPurchPrecNames,0)),\"\"))","v":""},{"$f":"IF($D429=\"\",\"\",IFERROR(SUM($G429)*SUM(INDEX(F_Tools!$T$100:$T$129,MATCH($D429,F_Tools!$E$100:$E$129,0)))/K413,\"\"))","v":""},{"$f":"IF($D429=\"\",\"\",IFERROR(SUM($G429)*SUM(INDEX(F_Tools!$U$100:$U$129,MATCH($D429,F_Tools!$E$100:$E$129,0)))/K413,\"\"))","v":""},{"$nulls":8},{"$f":"CONST_PrecursorToGoodInput&D429&\"_\"&D411","v":"PrecToGood__"},null,{"$f":"SUMIF(D_Processes!R:R,AB429,D_Processes!K:K)","v":0},{"$f":"SUMIF(D_Processes!R:R,CONST_CNTR_TotProd&D429,D_Processes!L:L)","v":0},null,false]
[null,null,16,{"$f":"IF(D411=\"\",\"\",IF(COUNTIF(INDEX(CNTR_IOSupplyChain,MATCH(D411,CNTR_IOProcAndPrec,0),),C430)=0,\"\",INDEX(CNTR_IOProcAndPrec,MATCH(C430,INDEX(CNTR_IOSupplyChain,MATCH(D411,CNTR_IOProcAndPrec,0),),0))))","v":""},null,"",{"$f":"IF(D430=\"\",\"\",INDEX(CNTR_Matrix_Inv,MATCH(D411,CNTR_IOProcAndPrec,0),MATCH(D430,CNTR_IOProcAndPrec,0)))","v":""},{"$f":"IF(D430=\"\",\"\",IF(AG430,INDEX(E_PurchPrec!U:U,MATCH(CONST_PurchPrecDefaultUsed&D430,E_PurchPrec!R:R,0)),CONST_NA))","v":""},{"$f":"IF($D430=\"\",\"\",SUM($G430)*SUM(INDEX(InputOutput!$AJ$71:$AJ$100,MATCH($D430,InputOutput!$D$71:$D$100,0))))","v":""},{"$f":"IF($D430=\"\",\"\",SUM($G430)*SUM(INDEX(InputOutput!$AL$71:$AL$100,MATCH($D430,InputOutput!$D$71:$D$100,0))))","v":""},"",{"$f":"IF(D430=\"\",\"\",SUM(I430)*SUM(AD414))","v":""},{"$f":"IF(D430=\"\",\"\",SUM(J430)*SUM(AD414))","v":""},"",{"$f":"IF(AG430,INDEX(E_PurchPrec!U:U,MATCH(CONST_CNTR_ElecEFMethod&D430,E_PurchPrec!R:R,0)),INDEX(D_Processes!T:T,MATCH(CONST_CNTR_ElecEFMethod&D430,D_Processes!R:R,0)))","v":""},{"$f":"IF(OR($D430=\"\",$AG430),\"\",SUM($G430)*SUM(INDEX(InputOutput!$AN$71:$AN$100,MATCH($D430,InputOutput!$D$71:$D$100,0))))","v":""},{"$f":"IF(D430=\"\",\"\",IF(AG430,INDEX(A_InstData!$F$101:$F$120,MATCH(D430,CNTR_List_ExistPurchPrecNames,0)),\"\"))","v":""},{"$f":"IF($D430=\"\",\"\",IFERROR(SUM($G430)*SUM(INDEX(F_Tools!$T$100:$T$129,MATCH($D430,F_Tools!$E$100:$E$129,0)))/K413,\"\"))","v":""},{"$f":"IF($D430=\"\",\"\",IFERROR(SUM($G430)*SUM(INDEX(F_Tools!$U$100:$U$129,MATCH($D430,F_Tools!$E$100:$E$129,0)))/K413,\"\"))","v":""},{"$nulls":8},{"$f":"CONST_PrecursorToGoodInput&D430&\"_\"&D411","v":"PrecToGood__"},null,{"$f":"SUMIF(D_Processes!R:R,AB430,D_Processes!K:K)","v":0},{"$f":"SUMIF(D_Processes!R:R,CONST_CNTR_TotProd&D430,D_Processes!L:L)","v":0},null,false]
[null,null,17,{"$f":"IF(D411=\"\",\"\",IF(COUNTIF(INDEX(CNTR_IOSupplyChain,MATCH(D411,CNTR_IOProcAndPrec,0),),C431)=0,\"\",INDEX(CNTR_IOProcAndPrec,MATCH(C431,INDEX(CNTR_IOSupplyChain,MATCH(D411,CNTR_IOProcAndPrec,0),),0))))","v":""},null,"",{"$f":"IF(D431=\"\",\"\",INDEX(CNTR_Matrix_Inv,MATCH(D411,CNTR_IOProcAndPrec,0),MATCH(D431,CNTR_IOProcAndPrec,0)))","v":""},{"$f":"IF(D431=\"\",\"\",IF(AG431,INDEX(E_PurchPrec!U:U,MATCH(CONST_PurchPrecDefaultUsed&D431,E_PurchPrec!R:R,0)),CONST_NA))","v":""},{"$f":"IF($D431=\"\",\"\",SUM($G431)*SUM(INDEX(InputOutput!$AJ$71:$AJ$100,MATCH($D431,InputOutput!$D$71:$D$100,0))))","v":""},{"$f":"IF($D431=\"\",\"\",SUM($G431)*SUM(INDEX(InputOutput!$AL$71:$AL$100,MATCH($D431,InputOutput!$D$71:$D$100,0))))","v":""},"",{"$f":"IF(D431=\"\",\"\",SUM(I431)*SUM(AD414))","v":""},{"$f":"IF(D431=\"\",\"\",SUM(J431)*SUM(AD414))","v":""},"",{"$f":"IF(AG431,INDEX(E_PurchPrec!U:U,MATCH(CONST_CNTR_ElecEFMethod&D431,E_PurchPrec!R:R,0)),INDEX(D_Processes!T:T,MATCH(CONST_CNTR_ElecEFMethod&D431,D_Processes!R:R,0)))","v":""},{"$f":"IF(OR($D431=\"\",$AG431),\"\",SUM($G431)*SUM(INDEX(InputOutput!$AN$71:$AN$100,MATCH($D431,InputOutput!$D$71:$D$100,0))))","v":""},{"$f":"IF(D431=\"\",\"\",IF(AG431,INDEX(A_InstData!$F$101:$F$120,MATCH(D431,CNTR_List_ExistPurchPrecNames,0)),\"\"))","v":""},{"$f":"IF($D431=\"\",\"\",IFERROR(SUM($G431)*SUM(INDEX(F_Tools!$T$100:$T$129,MATCH($D431,F_Tools!$E$100:$E$129,0)))/K413,\"\"))","v":""},{"$f":"IF($D431=\"\",\"\",IFERROR(SUM($G431)*SUM(INDEX(F_Tools!$U$100:$U$129,MATCH($D431,F_Tools!$E$100:$E$129,0)))/K413,\"\"))","v":""},{"$nulls":8},{"$f":"CONST_PrecursorToGoodInput&D431&\"_\"&D411","v":"PrecToGood__"},null,{"$f":"SUMIF(D_Processes!R:R,AB431,D_Processes!K:K)","v":0},{"$f":"SUMIF(D_Processes!R:R,CONST_CNTR_TotProd&D431,D_Processes!L:L)","v":0},null,false]
[null,null,18,{"$f":"IF(D411=\"\",\"\",IF(COUNTIF(INDEX(CNTR_IOSupplyChain,MATCH(D411,CNTR_IOProcAndPrec,0),),C432)=0,\"\",INDEX(CNTR_IOProcAndPrec,MATCH(C432,INDEX(CNTR_IOSupplyChain,MATCH(D411,CNTR_IOProcAndPrec,0),),0))))","v":""},null,"",{"$f":"IF(D432=\"\",\"\",INDEX(CNTR_Matrix_Inv,MATCH(D411,CNTR_IOProcAndPrec,0),MATCH(D432,CNTR_IOProcAndPrec,0)))","v":""},{"$f":"IF(D432=\"\",\"\",IF(AG432,INDEX(E_PurchPrec!U:U,MATCH(CONST_PurchPrecDefaultUsed&D432,E_PurchPrec!R:R,0)),CONST_NA))","v":""},{"$f":"IF($D432=\"\",\"\",SUM($G432)*SUM(INDEX(InputOutput!$AJ$71:$AJ$100,MATCH($D432,InputOutput!$D$71:$D$100,0))))","v":""},{"$f":"IF($D432=\"\",\"\",SUM($G432)*SUM(INDEX(InputOutput!$AL$71:$AL$100,MATCH($D432,InputOutput!$D$71:$D$100,0))))","v":""},"",{"$f":"IF(D432=\"\",\"\",SUM(I432)*SUM(AD414))","v":""},{"$f":"IF(D432=\"\",\"\",SUM(J432)*SUM(AD414))","v":""},"",{"$f":"IF(AG432,INDEX(E_PurchPrec!U:U,MATCH(CONST_CNTR_ElecEFMethod&D432,E_PurchPrec!R:R,0)),INDEX(D_Processes!T:T,MATCH(CONST_CNTR_ElecEFMethod&D432,D_Processes!R:R,0)))","v":""},{"$f":"IF(OR($D432=\"\",$AG432),\"\",SUM($G432)*SUM(INDEX(InputOutput!$AN$71:$AN$100,MATCH($D432,InputOutput!$D$71:$D$100,0))))","v":""},{"$f":"IF(D432=\"\",\"\",IF(AG432,INDEX(A_InstData!$F$101:$F$120,MATCH(D432,CNTR_List_ExistPurchPrecNames,0)),\"\"))","v":""},{"$f":"IF($D432=\"\",\"\",IFERROR(SUM($G432)*SUM(INDEX(F_Tools!$T$100:$T$129,MATCH($D432,F_Tools!$E$100:$E$129,0)))/K413,\"\"))","v":""},{"$f":"IF($D432=\"\",\"\",IFERROR(SUM($G432)*SUM(INDEX(F_Tools!$U$100:$U$129,MATCH($D432,F_Tools!$E$100:$E$129,0)))/K413,\"\"))","v":""},{"$nulls":8},{"$f":"CONST_PrecursorToGoodInput&D432&\"_\"&D411","v":"PrecToGood__"},null,{"$f":"SUMIF(D_Processes!R:R,AB432,D_Processes!K:K)","v":0},{"$f":"SUMIF(D_Processes!R:R,CONST_CNTR_TotProd&D432,D_Processes!L:L)","v":0},null,false]
[null,null,19,{"$f":"IF(D411=\"\",\"\",IF(COUNTIF(INDEX(CNTR_IOSupplyChain,MATCH(D411,CNTR_IOProcAndPrec,0),),C433)=0,\"\",INDEX(CNTR_IOProcAndPrec,MATCH(C433,INDEX(CNTR_IOSupplyChain,MATCH(D411,CNTR_IOProcAndPrec,0),),0))))","v":""},null,"",{"$f":"IF(D433=\"\",\"\",INDEX(CNTR_Matrix_Inv,MATCH(D411,CNTR_IOProcAndPrec,0),MATCH(D433,CNTR_IOProcAndPrec,0)))","v":""},{"$f":"IF(D433=\"\",\"\",IF(AG433,INDEX(E_PurchPrec!U:U,MATCH(CONST_PurchPrecDefaultUsed&D433,E_PurchPrec!R:R,0)),CONST_NA))","v":""},{"$f":"IF($D433=\"\",\"\",SUM($G433)*SUM(INDEX(InputOutput!$AJ$71:$AJ$100,MATCH($D433,InputOutput!$D$71:$D$100,0))))","v":""},{"$f":"IF($D433=\"\",\"\",SUM($G433)*SUM(INDEX(InputOutput!$AL$71:$AL$100,MATCH($D433,InputOutput!$D$71:$D$100,0))))","v":""},"",{"$f":"IF(D433=\"\",\"\",SUM(I433)*SUM(AD414))","v":""},{"$f":"IF(D433=\"\",\"\",SUM(J433)*SUM(AD414))","v":""},"",{"$f":"IF(AG433,INDEX(E_PurchPrec!U:U,MATCH(CONST_CNTR_ElecEFMethod&D433,E_PurchPrec!R:R,0)),INDEX(D_Processes!T:T,MATCH(CONST_CNTR_ElecEFMethod&D433,D_Processes!R:R,0)))","v":""},{"$f":"IF(OR($D433=\"\",$AG433),\"\",SUM($G433)*SUM(INDEX(InputOutput!$AN$71:$AN$100,MATCH($D433,InputOutput!$D$71:$D$100,0))))","v":""},{"$f":"IF(D433=\"\",\"\",IF(AG433,INDEX(A_InstData!$F$101:$F$120,MATCH(D433,CNTR_List_ExistPurchPrecNames,0)),\"\"))","v":""},{"$f":"IF($D433=\"\",\"\",IFERROR(SUM($G433)*SUM(INDEX(F_Tools!$T$100:$T$129,MATCH($D433,F_Tools!$E$100:$E$129,0)))/K413,\"\"))","v":""},{"$f":"IF($D433=\"\",\"\",IFERROR(SUM($G433)*SUM(INDEX(F_Tools!$U$100:$U$129,MATCH($D433,F_Tools!$E$100:$E$129,0)))/K413,\"\"))","v":""},{"$nulls":8},{"$f":"CONST_PrecursorToGoodInput&D433&\"_\"&D411","v":"PrecToGood__"},null,{"$f":"SUMIF(D_Processes!R:R,AB433,D_Processes!K:K)","v":0},{"$f":"SUMIF(D_Processes!R:R,CONST_CNTR_TotProd&D433,D_Processes!L:L)","v":0},null,false]
[null,null,20,{"$f":"IF(D411=\"\",\"\",IF(COUNTIF(INDEX(CNTR_IOSupplyChain,MATCH(D411,CNTR_IOProcAndPrec,0),),C434)=0,\"\",INDEX(CNTR_IOProcAndPrec,MATCH(C434,INDEX(CNTR_IOSupplyChain,MATCH(D411,CNTR_IOProcAndPrec,0),),0))))","v":""},null,"",{"$f":"IF(D434=\"\",\"\",INDEX(CNTR_Matrix_Inv,MATCH(D411,CNTR_IOProcAndPrec,0),MATCH(D434,CNTR_IOProcAndPrec,0)))","v":""},{"$f":"IF(D434=\"\",\"\",IF(AG434,INDEX(E_PurchPrec!U:U,MATCH(CONST_PurchPrecDefaultUsed&D434,E_PurchPrec!R:R,0)),CONST_NA))","v":""},{"$f":"IF($D434=\"\",\"\",SUM($G434)*SUM(INDEX(InputOutput!$AJ$71:$AJ$100,MATCH($D434,InputOutput!$D$71:$D$100,0))))","v":""},{"$f":"IF($D434=\"\",\"\",SUM($G434)*SUM(INDEX(InputOutput!$AL$71:$AL$100,MATCH($D434,InputOutput!$D$71:$D$100,0))))","v":""},"",{"$f":"IF(D434=\"\",\"\",SUM(I434)*SUM(AD414))","v":""},{"$f":"IF(D434=\"\",\"\",SUM(J434)*SUM(AD414))","v":""},"",{"$f":"IF(AG434,INDEX(E_PurchPrec!U:U,MATCH(CONST_CNTR_ElecEFMethod&D434,E_PurchPrec!R:R,0)),INDEX(D_Processes!T:T,MATCH(CONST_CNTR_ElecEFMethod&D434,D_Processes!R:R,0)))","v":""},{"$f":"IF(OR($D434=\"\",$AG434),\"\",SUM($G434)*SUM(INDEX(InputOutput!$AN$71:$AN$100,MATCH($D434,InputOutput!$D$71:$D$100,0))))","v":""},{"$f":"IF(D434=\"\",\"\",IF(AG434,INDEX(A_InstData!$F$101:$F$120,MATCH(D434,CNTR_List_ExistPurchPrecNames,0)),\"\"))","v":""},{"$f":"IF($D434=\"\",\"\",IFERROR(SUM($G434)*SUM(INDEX(F_Tools!$T$100:$T$129,MATCH($D434,F_Tools!$E$100:$E$129,0)))/K413,\"\"))","v":""},{"$f":"IF($D434=\"\",\"\",IFERROR(SUM($G434)*SUM(INDEX(F_Tools!$U$100:$U$129,MATCH($D434,F_Tools!$E$100:$E$129,0)))/K413,\"\"))","v":""},{"$nulls":8},{"$f":"CONST_PrecursorToGoodInput&D434&\"_\"&D411","v":"PrecToGood__"},null,{"$f":"SUMIF(D_Processes!R:R,AB434,D_Processes!K:K)","v":0},{"$f":"SUMIF(D_Processes!R:R,CONST_CNTR_TotProd&D434,D_Processes!L:L)","v":0},null,false]
[null,null,21,{"$f":"IF(D411=\"\",\"\",IF(COUNTIF(INDEX(CNTR_IOSupplyChain,MATCH(D411,CNTR_IOProcAndPrec,0),),C435)=0,\"\",INDEX(CNTR_IOProcAndPrec,MATCH(C435,INDEX(CNTR_IOSupplyChain,MATCH(D411,CNTR_IOProcAndPrec,0),),0))))","v":""},null,"",{"$f":"IF(D435=\"\",\"\",INDEX(CNTR_Matrix_Inv,MATCH(D411,CNTR_IOProcAndPrec,0),MATCH(D435,CNTR_IOProcAndPrec,0)))","v":""},{"$f":"IF(D435=\"\",\"\",IF(AG435,INDEX(E_PurchPrec!U:U,MATCH(CONST_PurchPrecDefaultUsed&D435,E_PurchPrec!R:R,0)),CONST_NA))","v":""},{"$f":"IF($D435=\"\",\"\",SUM($G435)*SUM(INDEX(InputOutput!$AJ$71:$AJ$100,MATCH($D435,InputOutput!$D$71:$D$100,0))))","v":""},{"$f":"IF($D435=\"\",\"\",SUM($G435)*SUM(INDEX(InputOutput!$AL$71:$AL$100,MATCH($D435,InputOutput!$D$71:$D$100,0))))","v":""},"",{"$f":"IF(D435=\"\",\"\",SUM(I435)*SUM(AD414))","v":""},{"$f":"IF(D435=\"\",\"\",SUM(J435)*SUM(AD414))","v":""},"",{"$f":"IF(AG435,INDEX(E_PurchPrec!U:U,MATCH(CONST_CNTR_ElecEFMethod&D435,E_PurchPrec!R:R,0)),INDEX(D_Processes!T:T,MATCH(CONST_CNTR_ElecEFMethod&D435,D_Processes!R:R,0)))","v":""},{"$f":"IF(OR($D435=\"\",$AG435),\"\",SUM($G435)*SUM(INDEX(InputOutput!$AN$71:$AN$100,MATCH($D435,InputOutput!$D$71:$D$100,0))))","v":""},{"$f":"IF(D435=\"\",\"\",IF(AG435,INDEX(A_InstData!$F$101:$F$120,MATCH(D435,CNTR_List_ExistPurchPrecNames,0)),\"\"))","v":""},{"$f":"IF($D435=\"\",\"\",IFERROR(SUM($G435)*SUM(INDEX(F_Tools!$T$100:$T$129,MATCH($D435,F_Tools!$E$100:$E$129,0)))/K413,\"\"))","v":""},{"$f":"IF($D435=\"\",\"\",IFERROR(SUM($G435)*SUM(INDEX(F_Tools!$U$100:$U$129,MATCH($D435,F_Tools!$E$100:$E$129,0)))/K413,\"\"))","v":""},{"$nulls":8},{"$f":"CONST_PrecursorToGoodInput&D435&\"_\"&D411","v":"PrecToGood__"},null,{"$f":"SUMIF(D_Processes!R:R,AB435,D_Processes!K:K)","v":0},{"$f":"SUMIF(D_Processes!R:R,CONST_CNTR_TotProd&D435,D_Processes!L:L)","v":0},null,false]
[null,null,22,{"$f":"IF(D411=\"\",\"\",IF(COUNTIF(INDEX(CNTR_IOSupplyChain,MATCH(D411,CNTR_IOProcAndPrec,0),),C436)=0,\"\",INDEX(CNTR_IOProcAndPrec,MATCH(C436,INDEX(CNTR_IOSupplyChain,MATCH(D411,CNTR_IOProcAndPrec,0),),0))))","v":""},null,"",{"$f":"IF(D436=\"\",\"\",INDEX(CNTR_Matrix_Inv,MATCH(D411,CNTR_IOProcAndPrec,0),MATCH(D436,CNTR_IOProcAndPrec,0)))","v":""},{"$f":"IF(D436=\"\",\"\",IF(AG436,INDEX(E_PurchPrec!U:U,MATCH(CONST_PurchPrecDefaultUsed&D436,E_PurchPrec!R:R,0)),CONST_NA))","v":""},{"$f":"IF($D436=\"\",\"\",SUM($G436)*SUM(INDEX(InputOutput!$AJ$71:$AJ$100,MATCH($D436,InputOutput!$D$71:$D$100,0))))","v":""},{"$f":"IF($D436=\"\",\"\",SUM($G436)*SUM(INDEX(InputOutput!$AL$71:$AL$100,MATCH($D436,InputOutput!$D$71:$D$100,0))))","v":""},"",{"$f":"IF(D436=\"\",\"\",SUM(I436)*SUM(AD414))","v":""},{"$f":"IF(D436=\"\",\"\",SUM(J436)*SUM(AD414))","v":""},"",{"$f":"IF(AG436,INDEX(E_PurchPrec!U:U,MATCH(CONST_CNTR_ElecEFMethod&D436,E_PurchPrec!R:R,0)),INDEX(D_Processes!T:T,MATCH(CONST_CNTR_ElecEFMethod&D436,D_Processes!R:R,0)))","v":""},{"$f":"IF(OR($D436=\"\",$AG436),\"\",SUM($G436)*SUM(INDEX(InputOutput!$AN$71:$AN$100,MATCH($D436,InputOutput!$D$71:$D$100,0))))","v":""},{"$f":"IF(D436=\"\",\"\",IF(AG436,INDEX(A_InstData!$F$101:$F$120,MATCH(D436,CNTR_List_ExistPurchPrecNames,0)),\"\"))","v":""},{"$f":"IF($D436=\"\",\"\",IFERROR(SUM($G436)*SUM(INDEX(F_Tools!$T$100:$T$129,MATCH($D436,F_Tools!$E$100:$E$129,0)))/K413,\"\"))","v":""},{"$f":"IF($D436=\"\",\"\",IFERROR(SUM($G436)*SUM(INDEX(F_Tools!$U$100:$U$129,MATCH($D436,F_Tools!$E$100:$E$129,0)))/K413,\"\"))","v":""},{"$nulls":8},{"$f":"CONST_PrecursorToGoodInput&D436&\"_\"&D411","v":"PrecToGood__"},null,{"$f":"SUMIF(D_Processes!R:R,AB436,D_Processes!K:K)","v":0},{"$f":"SUMIF(D_Processes!R:R,CONST_CNTR_TotProd&D436,D_Processes!L:L)","v":0},null,false]
[null,null,23,{"$f":"IF(D411=\"\",\"\",IF(COUNTIF(INDEX(CNTR_IOSupplyChain,MATCH(D411,CNTR_IOProcAndPrec,0),),C437)=0,\"\",INDEX(CNTR_IOProcAndPrec,MATCH(C437,INDEX(CNTR_IOSupplyChain,MATCH(D411,CNTR_IOProcAndPrec,0),),0))))","v":""},null,"",{"$f":"IF(D437=\"\",\"\",INDEX(CNTR_Matrix_Inv,MATCH(D411,CNTR_IOProcAndPrec,0),MATCH(D437,CNTR_IOProcAndPrec,0)))","v":""},{"$f":"IF(D437=\"\",\"\",IF(AG437,INDEX(E_PurchPrec!U:U,MATCH(CONST_PurchPrecDefaultUsed&D437,E_PurchPrec!R:R,0)),CONST_NA))","v":""},{"$f":"IF($D437=\"\",\"\",SUM($G437)*SUM(INDEX(InputOutput!$AJ$71:$AJ$100,MATCH($D437,InputOutput!$D$71:$D$100,0))))","v":""},{"$f":"IF($D437=\"\",\"\",SUM($G437)*SUM(INDEX(InputOutput!$AL$71:$AL$100,MATCH($D437,InputOutput!$D$71:$D$100,0))))","v":""},"",{"$f":"IF(D437=\"\",\"\",SUM(I437)*SUM(AD414))","v":""},{"$f":"IF(D437=\"\",\"\",SUM(J437)*SUM(AD414))","v":""},"",{"$f":"IF(AG437,INDEX(E_PurchPrec!U:U,MATCH(CONST_CNTR_ElecEFMethod&D437,E_PurchPrec!R:R,0)),INDEX(D_Processes!T:T,MATCH(CONST_CNTR_ElecEFMethod&D437,D_Processes!R:R,0)))","v":""},{"$f":"IF(OR($D437=\"\",$AG437),\"\",SUM($G437)*SUM(INDEX(InputOutput!$AN$71:$AN$100,MATCH($D437,InputOutput!$D$71:$D$100,0))))","v":""},{"$f":"IF(D437=\"\",\"\",IF(AG437,INDEX(A_InstData!$F$101:$F$120,MATCH(D437,CNTR_List_ExistPurchPrecNames,0)),\"\"))","v":""},{"$f":"IF($D437=\"\",\"\",IFERROR(SUM($G437)*SUM(INDEX(F_Tools!$T$100:$T$129,MATCH($D437,F_Tools!$E$100:$E$129,0)))/K413,\"\"))","v":""},{"$f":"IF($D437=\"\",\"\",IFERROR(SUM($G437)*SUM(INDEX(F_Tools!$U$100:$U$129,MATCH($D437,F_Tools!$E$100:$E$129,0)))/K413,\"\"))","v":""},{"$nulls":8},{"$f":"CONST_PrecursorToGoodInput&D437&\"_\"&D411","v":"PrecToGood__"},null,{"$f":"SUMIF(D_Processes!R:R,AB437,D_Processes!K:K)","v":0},{"$f":"SUMIF(D_Processes!R:R,CONST_CNTR_TotProd&D437,D_Processes!L:L)","v":0},null,false]
[null,null,24,{"$f":"IF(D411=\"\",\"\",IF(COUNTIF(INDEX(CNTR_IOSupplyChain,MATCH(D411,CNTR_IOProcAndPrec,0),),C438)=0,\"\",INDEX(CNTR_IOProcAndPrec,MATCH(C438,INDEX(CNTR_IOSupplyChain,MATCH(D411,CNTR_IOProcAndPrec,0),),0))))","v":""},null,"",{"$f":"IF(D438=\"\",\"\",INDEX(CNTR_Matrix_Inv,MATCH(D411,CNTR_IOProcAndPrec,0),MATCH(D438,CNTR_IOProcAndPrec,0)))","v":""},{"$f":"IF(D438=\"\",\"\",IF(AG438,INDEX(E_PurchPrec!U:U,MATCH(CONST_PurchPrecDefaultUsed&D438,E_PurchPrec!R:R,0)),CONST_NA))","v":""},{"$f":"IF($D438=\"\",\"\",SUM($G438)*SUM(INDEX(InputOutput!$AJ$71:$AJ$100,MATCH($D438,InputOutput!$D$71:$D$100,0))))","v":""},{"$f":"IF($D438=\"\",\"\",SUM($G438)*SUM(INDEX(InputOutput!$AL$71:$AL$100,MATCH($D438,InputOutput!$D$71:$D$100,0))))","v":""},"",{"$f":"IF(D438=\"\",\"\",SUM(I438)*SUM(AD414))","v":""},{"$f":"IF(D438=\"\",\"\",SUM(J438)*SUM(AD414))","v":""},"",{"$f":"IF(AG438,INDEX(E_PurchPrec!U:U,MATCH(CONST_CNTR_ElecEFMethod&D438,E_PurchPrec!R:R,0)),INDEX(D_Processes!T:T,MATCH(CONST_CNTR_ElecEFMethod&D438,D_Processes!R:R,0)))","v":""},{"$f":"IF(OR($D438=\"\",$AG438),\"\",SUM($G438)*SUM(INDEX(InputOutput!$AN$71:$AN$100,MATCH($D438,InputOutput!$D$71:$D$100,0))))","v":""},{"$f":"IF(D438=\"\",\"\",IF(AG438,INDEX(A_InstData!$F$101:$F$120,MATCH(D438,CNTR_List_ExistPurchPrecNames,0)),\"\"))","v":""},{"$f":"IF($D438=\"\",\"\",IFERROR(SUM($G438)*SUM(INDEX(F_Tools!$T$100:$T$129,MATCH($D438,F_Tools!$E$100:$E$129,0)))/K413,\"\"))","v":""},{"$f":"IF($D438=\"\",\"\",IFERROR(SUM($G438)*SUM(INDEX(F_Tools!$U$100:$U$129,MATCH($D438,F_Tools!$E$100:$E$129,0)))/K413,\"\"))","v":""},{"$nulls":8},{"$f":"CONST_PrecursorToGoodInput&D438&\"_\"&D411","v":"PrecToGood__"},null,{"$f":"SUMIF(D_Processes!R:R,AB438,D_Processes!K:K)","v":0},{"$f":"SUMIF(D_Processes!R:R,CONST_CNTR_TotProd&D438,D_Processes!L:L)","v":0},null,false]
[null,null,25,{"$f":"IF(D411=\"\",\"\",IF(COUNTIF(INDEX(CNTR_IOSupplyChain,MATCH(D411,CNTR_IOProcAndPrec,0),),C439)=0,\"\",INDEX(CNTR_IOProcAndPrec,MATCH(C439,INDEX(CNTR_IOSupplyChain,MATCH(D411,CNTR_IOProcAndPrec,0),),0))))","v":""},null,"",{"$f":"IF(D439=\"\",\"\",INDEX(CNTR_Matrix_Inv,MATCH(D411,CNTR_IOProcAndPrec,0),MATCH(D439,CNTR_IOProcAndPrec,0)))","v":""},{"$f":"IF(D439=\"\",\"\",IF(AG439,INDEX(E_PurchPrec!U:U,MATCH(CONST_PurchPrecDefaultUsed&D439,E_PurchPrec!R:R,0)),CONST_NA))","v":""},{"$f":"IF($D439=\"\",\"\",SUM($G439)*SUM(INDEX(InputOutput!$AJ$71:$AJ$100,MATCH($D439,InputOutput!$D$71:$D$100,0))))","v":""},{"$f":"IF($D439=\"\",\"\",SUM($G439)*SUM(INDEX(InputOutput!$AL$71:$AL$100,MATCH($D439,InputOutput!$D$71:$D$100,0))))","v":""},"",{"$f":"IF(D439=\"\",\"\",SUM(I439)*SUM(AD414))","v":""},{"$f":"IF(D439=\"\",\"\",SUM(J439)*SUM(AD414))","v":""},"",{"$f":"IF(AG439,INDEX(E_PurchPrec!U:U,MATCH(CONST_CNTR_ElecEFMethod&D439,E_PurchPrec!R:R,0)),INDEX(D_Processes!T:T,MATCH(CONST_CNTR_ElecEFMethod&D439,D_Processes!R:R,0)))","v":""},{"$f":"IF(OR($D439=\"\",$AG439),\"\",SUM($G439)*SUM(INDEX(InputOutput!$AN$71:$AN$100,MATCH($D439,InputOutput!$D$71:$D$100,0))))","v":""},{"$f":"IF(D439=\"\",\"\",IF(AG439,INDEX(A_InstData!$F$101:$F$120,MATCH(D439,CNTR_List_ExistPurchPrecNames,0)),\"\"))","v":""},{"$f":"IF($D439=\"\",\"\",IFERROR(SUM($G439)*SUM(INDEX(F_Tools!$T$100:$T$129,MATCH($D439,F_Tools!$E$100:$E$129,0)))/K413,\"\"))","v":""},{"$f":"IF($D439=\"\",\"\",IFERROR(SUM($G439)*SUM(INDEX(F_Tools!$U$100:$U$129,MATCH($D439,F_Tools!$E$100:$E$129,0)))/K413,\"\"))","v":""},{"$nulls":8},{"$f":"CONST_PrecursorToGoodInput&D439&\"_\"&D411","v":"PrecToGood__"},null,{"$f":"SUMIF(D_Processes!R:R,AB439,D_Processes!K:K)","v":0},{"$f":"SUMIF(D_Processes!R:R,CONST_CNTR_TotProd&D439,D_Processes!L:L)","v":0},null,false]
[null,null,26,{"$f":"IF(D411=\"\",\"\",IF(COUNTIF(INDEX(CNTR_IOSupplyChain,MATCH(D411,CNTR_IOProcAndPrec,0),),C440)=0,\"\",INDEX(CNTR_IOProcAndPrec,MATCH(C440,INDEX(CNTR_IOSupplyChain,MATCH(D411,CNTR_IOProcAndPrec,0),),0))))","v":""},null,"",{"$f":"IF(D440=\"\",\"\",INDEX(CNTR_Matrix_Inv,MATCH(D411,CNTR_IOProcAndPrec,0),MATCH(D440,CNTR_IOProcAndPrec,0)))","v":""},{"$f":"IF(D440=\"\",\"\",IF(AG440,INDEX(E_PurchPrec!U:U,MATCH(CONST_PurchPrecDefaultUsed&D440,E_PurchPrec!R:R,0)),CONST_NA))","v":""},{"$f":"IF($D440=\"\",\"\",SUM($G440)*SUM(INDEX(InputOutput!$AJ$71:$AJ$100,MATCH($D440,InputOutput!$D$71:$D$100,0))))","v":""},{"$f":"IF($D440=\"\",\"\",SUM($G440)*SUM(INDEX(InputOutput!$AL$71:$AL$100,MATCH($D440,InputOutput!$D$71:$D$100,0))))","v":""},"",{"$f":"IF(D440=\"\",\"\",SUM(I440)*SUM(AD414))","v":""},{"$f":"IF(D440=\"\",\"\",SUM(J440)*SUM(AD414))","v":""},"",{"$f":"IF(AG440,INDEX(E_PurchPrec!U:U,MATCH(CONST_CNTR_ElecEFMethod&D440,E_PurchPrec!R:R,0)),INDEX(D_Processes!T:T,MATCH(CONST_CNTR_ElecEFMethod&D440,D_Processes!R:R,0)))","v":""},{"$f":"IF(OR($D440=\"\",$AG440),\"\",SUM($G440)*SUM(INDEX(InputOutput!$AN$71:$AN$100,MATCH($D440,InputOutput!$D$71:$D$100,0))))","v":""},{"$f":"IF(D440=\"\",\"\",IF(AG440,INDEX(A_InstData!$F$101:$F$120,MATCH(D440,CNTR_List_ExistPurchPrecNames,0)),\"\"))","v":""},{"$f":"IF($D440=\"\",\"\",IFERROR(SUM($G440)*SUM(INDEX(F_Tools!$T$100:$T$129,MATCH($D440,F_Tools!$E$100:$E$129,0)))/K413,\"\"))","v":""},{"$f":"IF($D440=\"\",\"\",IFERROR(SUM($G440)*SUM(INDEX(F_Tools!$U$100:$U$129,MATCH($D440,F_Tools!$E$100:$E$129,0)))/K413,\"\"))","v":""},{"$nulls":8},{"$f":"CONST_PrecursorToGoodInput&D440&\"_\"&D411","v":"PrecToGood__"},null,{"$f":"SUMIF(D_Processes!R:R,AB440,D_Processes!K:K)","v":0},{"$f":"SUMIF(D_Processes!R:R,CONST_CNTR_TotProd&D440,D_Processes!L:L)","v":0},null,false]
[null,null,27,{"$f":"IF(D411=\"\",\"\",IF(COUNTIF(INDEX(CNTR_IOSupplyChain,MATCH(D411,CNTR_IOProcAndPrec,0),),C441)=0,\"\",INDEX(CNTR_IOProcAndPrec,MATCH(C441,INDEX(CNTR_IOSupplyChain,MATCH(D411,CNTR_IOProcAndPrec,0),),0))))","v":""},null,"",{"$f":"IF(D441=\"\",\"\",INDEX(CNTR_Matrix_Inv,MATCH(D411,CNTR_IOProcAndPrec,0),MATCH(D441,CNTR_IOProcAndPrec,0)))","v":""},{"$f":"IF(D441=\"\",\"\",IF(AG441,INDEX(E_PurchPrec!U:U,MATCH(CONST_PurchPrecDefaultUsed&D441,E_PurchPrec!R:R,0)),CONST_NA))","v":""},{"$f":"IF($D441=\"\",\"\",SUM($G441)*SUM(INDEX(InputOutput!$AJ$71:$AJ$100,MATCH($D441,InputOutput!$D$71:$D$100,0))))","v":""},{"$f":"IF($D441=\"\",\"\",SUM($G441)*SUM(INDEX(InputOutput!$AL$71:$AL$100,MATCH($D441,InputOutput!$D$71:$D$100,0))))","v":""},"",{"$f":"IF(D441=\"\",\"\",SUM(I441)*SUM(AD414))","v":""},{"$f":"IF(D441=\"\",\"\",SUM(J441)*SUM(AD414))","v":""},"",{"$f":"IF(AG441,INDEX(E_PurchPrec!U:U,MATCH(CONST_CNTR_ElecEFMethod&D441,E_PurchPrec!R:R,0)),INDEX(D_Processes!T:T,MATCH(CONST_CNTR_ElecEFMethod&D441,D_Processes!R:R,0)))","v":""},{"$f":"IF(OR($D441=\"\",$AG441),\"\",SUM($G441)*SUM(INDEX(InputOutput!$AN$71:$AN$100,MATCH($D441,InputOutput!$D$71:$D$100,0))))","v":""},{"$f":"IF(D441=\"\",\"\",IF(AG441,INDEX(A_InstData!$F$101:$F$120,MATCH(D441,CNTR_List_ExistPurchPrecNames,0)),\"\"))","v":""},{"$f":"IF($D441=\"\",\"\",IFERROR(SUM($G441)*SUM(INDEX(F_Tools!$T$100:$T$129,MATCH($D441,F_Tools!$E$100:$E$129,0)))/K413,\"\"))","v":""},{"$f":"IF($D441=\"\",\"\",IFERROR(SUM($G441)*SUM(INDEX(F_Tools!$U$100:$U$129,MATCH($D441,F_Tools!$E$100:$E$129,0)))/K413,\"\"))","v":""},{"$nulls":8},{"$f":"CONST_PrecursorToGoodInput&D441&\"_\"&D411","v":"PrecToGood__"},null,{"$f":"SUMIF(D_Processes!R:R,AB441,D_Processes!K:K)","v":0},{"$f":"SUMIF(D_Processes!R:R,CONST_CNTR_TotProd&D441,D_Processes!L:L)","v":0},null,false]
[null,null,28,{"$f":"IF(D411=\"\",\"\",IF(COUNTIF(INDEX(CNTR_IOSupplyChain,MATCH(D411,CNTR_IOProcAndPrec,0),),C442)=0,\"\",INDEX(CNTR_IOProcAndPrec,MATCH(C442,INDEX(CNTR_IOSupplyChain,MATCH(D411,CNTR_IOProcAndPrec,0),),0))))","v":""},null,"",{"$f":"IF(D442=\"\",\"\",INDEX(CNTR_Matrix_Inv,MATCH(D411,CNTR_IOProcAndPrec,0),MATCH(D442,CNTR_IOProcAndPrec,0)))","v":""},{"$f":"IF(D442=\"\",\"\",IF(AG442,INDEX(E_PurchPrec!U:U,MATCH(CONST_PurchPrecDefaultUsed&D442,E_PurchPrec!R:R,0)),CONST_NA))","v":""},{"$f":"IF($D442=\"\",\"\",SUM($G442)*SUM(INDEX(InputOutput!$AJ$71:$AJ$100,MATCH($D442,InputOutput!$D$71:$D$100,0))))","v":""},{"$f":"IF($D442=\"\",\"\",SUM($G442)*SUM(INDEX(InputOutput!$AL$71:$AL$100,MATCH($D442,InputOutput!$D$71:$D$100,0))))","v":""},"",{"$f":"IF(D442=\"\",\"\",SUM(I442)*SUM(AD414))","v":""},{"$f":"IF(D442=\"\",\"\",SUM(J442)*SUM(AD414))","v":""},"",{"$f":"IF(AG442,INDEX(E_PurchPrec!U:U,MATCH(CONST_CNTR_ElecEFMethod&D442,E_PurchPrec!R:R,0)),INDEX(D_Processes!T:T,MATCH(CONST_CNTR_ElecEFMethod&D442,D_Processes!R:R,0)))","v":""},{"$f":"IF(OR($D442=\"\",$AG442),\"\",SUM($G442)*SUM(INDEX(InputOutput!$AN$71:$AN$100,MATCH($D442,InputOutput!$D$71:$D$100,0))))","v":""},{"$f":"IF(D442=\"\",\"\",IF(AG442,INDEX(A_InstData!$F$101:$F$120,MATCH(D442,CNTR_List_ExistPurchPrecNames,0)),\"\"))","v":""},{"$f":"IF($D442=\"\",\"\",IFERROR(SUM($G442)*SUM(INDEX(F_Tools!$T$100:$T$129,MATCH($D442,F_Tools!$E$100:$E$129,0)))/K413,\"\"))","v":""},{"$f":"IF($D442=\"\",\"\",IFERROR(SUM($G442)*SUM(INDEX(F_Tools!$U$100:$U$129,MATCH($D442,F_Tools!$E$100:$E$129,0)))/K413,\"\"))","v":""},{"$nulls":8},{"$f":"CONST_PrecursorToGoodInput&D442&\"_\"&D411","v":"PrecToGood__"},null,{"$f":"SUMIF(D_Processes!R:R,AB442,D_Processes!K:K)","v":0},{"$f":"SUMIF(D_Processes!R:R,CONST_CNTR_TotProd&D442,D_Processes!L:L)","v":0},null,false]
[null,null,29,{"$f":"IF(D411=\"\",\"\",IF(COUNTIF(INDEX(CNTR_IOSupplyChain,MATCH(D411,CNTR_IOProcAndPrec,0),),C443)=0,\"\",INDEX(CNTR_IOProcAndPrec,MATCH(C443,INDEX(CNTR_IOSupplyChain,MATCH(D411,CNTR_IOProcAndPrec,0),),0))))","v":""},null,"",{"$f":"IF(D443=\"\",\"\",INDEX(CNTR_Matrix_Inv,MATCH(D411,CNTR_IOProcAndPrec,0),MATCH(D443,CNTR_IOProcAndPrec,0)))","v":""},{"$f":"IF(D443=\"\",\"\",IF(AG443,INDEX(E_PurchPrec!U:U,MATCH(CONST_PurchPrecDefaultUsed&D443,E_PurchPrec!R:R,0)),CONST_NA))","v":""},{"$f":"IF($D443=\"\",\"\",SUM($G443)*SUM(INDEX(InputOutput!$AJ$71:$AJ$100,MATCH($D443,InputOutput!$D$71:$D$100,0))))","v":""},{"$f":"IF($D443=\"\",\"\",SUM($G443)*SUM(INDEX(InputOutput!$AL$71:$AL$100,MATCH($D443,InputOutput!$D$71:$D$100,0))))","v":""},"",{"$f":"IF(D443=\"\",\"\",SUM(I443)*SUM(AD414))","v":""},{"$f":"IF(D443=\"\",\"\",SUM(J443)*SUM(AD414))","v":""},"",{"$f":"IF(AG443,INDEX(E_PurchPrec!U:U,MATCH(CONST_CNTR_ElecEFMethod&D443,E_PurchPrec!R:R,0)),INDEX(D_Processes!T:T,MATCH(CONST_CNTR_ElecEFMethod&D443,D_Processes!R:R,0)))","v":""},{"$f":"IF(OR($D443=\"\",$AG443),\"\",SUM($G443)*SUM(INDEX(InputOutput!$AN$71:$AN$100,MATCH($D443,InputOutput!$D$71:$D$100,0))))","v":""},{"$f":"IF(D443=\"\",\"\",IF(AG443,INDEX(A_InstData!$F$101:$F$120,MATCH(D443,CNTR_List_ExistPurchPrecNames,0)),\"\"))","v":""},{"$f":"IF($D443=\"\",\"\",IFERROR(SUM($G443)*SUM(INDEX(F_Tools!$T$100:$T$129,MATCH($D443,F_Tools!$E$100:$E$129,0)))/K413,\"\"))","v":""},{"$f":"IF($D443=\"\",\"\",IFERROR(SUM($G443)*SUM(INDEX(F_Tools!$U$100:$U$129,MATCH($D443,F_Tools!$E$100:$E$129,0)))/K413,\"\"))","v":""},{"$nulls":8},{"$f":"CONST_PrecursorToGoodInput&D443&\"_\"&D411","v":"PrecToGood__"},null,{"$f":"SUMIF(D_Processes!R:R,AB443,D_Processes!K:K)","v":0},{"$f":"SUMIF(D_Processes!R:R,CONST_CNTR_TotProd&D443,D_Processes!L:L)","v":0},null,false]
[null,null,30,{"$f":"IF(D411=\"\",\"\",IF(COUNTIF(INDEX(CNTR_IOSupplyChain,MATCH(D411,CNTR_IOProcAndPrec,0),),C444)=0,\"\",INDEX(CNTR_IOProcAndPrec,MATCH(C444,INDEX(CNTR_IOSupplyChain,MATCH(D411,CNTR_IOProcAndPrec,0),),0))))","v":""},null,"",{"$f":"IF(D444=\"\",\"\",INDEX(CNTR_Matrix_Inv,MATCH(D411,CNTR_IOProcAndPrec,0),MATCH(D444,CNTR_IOProcAndPrec,0)))","v":""},{"$f":"IF(D444=\"\",\"\",IF(AG444,INDEX(E_PurchPrec!U:U,MATCH(CONST_PurchPrecDefaultUsed&D444,E_PurchPrec!R:R,0)),CONST_NA))","v":""},{"$f":"IF($D444=\"\",\"\",SUM($G444)*SUM(INDEX(InputOutput!$AJ$71:$AJ$100,MATCH($D444,InputOutput!$D$71:$D$100,0))))","v":""},{"$f":"IF($D444=\"\",\"\",SUM($G444)*SUM(INDEX(InputOutput!$AL$71:$AL$100,MATCH($D444,InputOutput!$D$71:$D$100,0))))","v":""},"",{"$f":"IF(D444=\"\",\"\",SUM(I444)*SUM(AD414))","v":""},{"$f":"IF(D444=\"\",\"\",SUM(J444)*SUM(AD414))","v":""},"",{"$f":"IF(AG444,INDEX(E_PurchPrec!U:U,MATCH(CONST_CNTR_ElecEFMethod&D444,E_PurchPrec!R:R,0)),INDEX(D_Processes!T:T,MATCH(CONST_CNTR_ElecEFMethod&D444,D_Processes!R:R,0)))","v":""},{"$f":"IF(OR($D444=\"\",$AG444),\"\",SUM($G444)*SUM(INDEX(InputOutput!$AN$71:$AN$100,MATCH($D444,InputOutput!$D$71:$D$100,0))))","v":""},{"$f":"IF(D444=\"\",\"\",IF(AG444,INDEX(A_InstData!$F$101:$F$120,MATCH(D444,CNTR_List_ExistPurchPrecNames,0)),\"\"))","v":""},{"$f":"IF($D444=\"\",\"\",IFERROR(SUM($G444)*SUM(INDEX(F_Tools!$T$100:$T$129,MATCH($D444,F_Tools!$E$100:$E$129,0)))/K413,\"\"))","v":""},{"$f":"IF($D444=\"\",\"\",IFERROR(SUM($G444)*SUM(INDEX(F_Tools!$U$100:$U$129,MATCH($D444,F_Tools!$E$100:$E$129,0)))/K413,\"\"))","v":""},{"$nulls":8},{"$f":"CONST_PrecursorToGoodInput&D444&\"_\"&D411","v":"PrecToGood__"},null,{"$f":"SUMIF(D_Processes!R:R,AB444,D_Processes!K:K)","v":0},{"$f":"SUMIF(D_Processes!R:R,CONST_CNTR_TotProd&D444,D_Processes!L:L)","v":0},null,false]
[]
[]
[null,null,{"$f":"C411+1","v":9},{"$f":"IF(INDEX(CNTR_List_ExistProdProcNames,C447)=CONST_NA,\"\",INDEX(CNTR_List_ExistProdProcNames,C447))","v":""},null,{"$f":"Translations!$B$107","v":"Aggregated goods category"},{"$f":"Translations!$B$584","v":"Mass share"},{"$f":"Translations!$B$586","v":"(Share of) Default value"},{"$f":"Translations!$B$570","v":"SEE (direct)"},{"$f":"Translations!$B$574","v":"SEE (indirect)"},{"$f":"Translations!$B$344","v":"SEE (total)"},{"$f":"Translations!$B$589","v":"EmbEm (direct)"},{"$f":"Translations!$B$591","v":"EmbEm (indirect)"},{"$f":"Translations!$B$593","v":"EmbEm (total)"},{"$f":"Translations!$B$594","v":"Source of electricity EF"},{"$f":"Translations!$B$597","v":"Specific electricity"},"Country code",{"$f":"Translations!$B$351","v":"CP due (per t or MWh)"},{"$f":"Translations!$B$352","v":"Rebate (per t or MWh)"},{"$nulls":12},{"$f":"H447","v":"(Share of) Default value"},{"$f":"H449","v":""}]
[{"$nulls":6},{"$f":"IF($F449=\"\",CONST_t,INDEX(CONST_LIST_GoodsUnit,MATCH($F449,CONST_LIST_Goods,0)))&\"/\"&IF($F449=\"\",CONST_t,INDEX(CONST_LIST_GoodsUnit,MATCH($F449,CONST_LIST_Goods,0)))","v":"t/t"},null,{"$f":"CONST_tCO2eq&\"/\"&IF($F449=\"\",CONST_t,INDEX(CONST_LIST_GoodsUnit,MATCH($F449,CONST_LIST_Goods,0)))","v":"tCO2e/t"},{"$f":"CONST_tCO2eq&\"/\"&IF($F449=\"\",CONST_t,INDEX(CONST_LIST_GoodsUnit,MATCH($F449,CONST_LIST_Goods,0)))","v":"tCO2e/t"},{"$f":"CONST_tCO2eq&\"/\"&IF($F449=\"\",CONST_t,INDEX(CONST_LIST_GoodsUnit,MATCH($F449,CONST_LIST_Goods,0)))","v":"tCO2e/t"},{"$f":"CONST_tCO2eq","v":"tCO2e"},{"$f":"CONST_tCO2eq","v":"tCO2e"},{"$f":"CONST_tCO2eq","v":"tCO2e"},null,{"$f":"CONST_MWh&\"/\"&IF($F449=\"\",CONST_t,INDEX(CONST_LIST_GoodsUnit,MATCH($F449,CONST_LIST_Goods,0)))","v":"MWh/t"}]
[{"$nulls":3},{"$f":"Translations!$B$600","v":"Total production process"},null,{"$f":"IF(D450=\"\",\"\",INDEX(CNTR_List_ExistProdProc,MATCH(D450,CNTR_List_ExistProdProcNames,0)))","v":""},"-",{"$f":"IF(D447=\"\",\"\",IFERROR(SUMIFS(I451:I480,H451:H480,TRUE)/I449,\"\"))","v":""},{"$f":"IF(COUNT(I450:I480)>0,SUM(I450:I480),\"\")","v":""},"","","","","","-",{"$f":"IF(COUNT(P450:P480)>0,SUM(P450:P480),\"\")","v":""},"-",{"$f":"IF(COUNT(R450:R480)>0,SUM(R450:R480),\"\")","v":""},{"$f":"IF(COUNT(S450:S480)>0,SUM(S450:S480),\"\")","v":""},{"$nulls":10},{"$f":"Translations!$B$601","v":"Production and consumption"},{"$f":"Translations!$B$602","v":"Total production of precursors"},null,"IsPrecursor?"]
[{"$nulls":3},{"$f":"D447","v":""},null,{"$f":"IF(D450=\"\",\"\",INDEX(CNTR_List_ExistProdProc,MATCH(D450,CNTR_List_ExistProdProcNames,0)))","v":""},{"v":1,"d":"1.000"},"-",{"$f":"IF($D450=\"\",\"\",SUM($G450)*SUM(INDEX(InputOutput!$AJ$71:$AJ$100,MATCH($D450,InputOutput!$D$71:$D$100,0))))","v":""},{"$f":"IF($D450=\"\",\"\",SUM($G450)*SUM(INDEX(InputOutput!$AL$71:$AL$100,MATCH($D450,InputOutput!$D$71:$D$100,0))))","v":""},{"$f":"IF(COUNT(I450:J450)>0,SUM(I450:J450),\"\")","v":""},{"$f":"IF(D450=\"\",\"\",SUM(I450)*SUM(AD450))","v":""},{"$f":"IF(D450=\"\",\"\",SUM(J450)*SUM(AD450))","v":""},{"$f":"IF(COUNT(L450:M450)>0,SUM(L450:M450),\"\")","v":""},{"$f":"IF(AG450,INDEX(E_PurchPrec!U:U,MATCH(CONST_CNTR_ElecEFMethod&D450,E_PurchPrec!R:R,0)),INDEX(D_Processes!T:T,MATCH(CONST_CNTR_ElecEFMethod&D450,D_Processes!R:R,0)))","v":""},{"$f":"IF(OR($D450=\"\",$AG450),\"\",SUM($G450)*SUM(INDEX(InputOutput!$AN$71:$AN$100,MATCH($D450,InputOutput!$D$71:$D$100,0))))","v":""},null,{"$f":"IF($D450=\"\",\"\",IFERROR(SUM($G450)*SUM(INDEX(F_Tools!$T$100:$T$129,MATCH($D450,F_Tools!$E$100:$E$129,0)))/K449,\"\"))","v":""},{"$f":"IF($D450=\"\",\"\",IFERROR(SUM($G450)*SUM(INDEX(F_Tools!$U$100:$U$129,MATCH($D450,F_Tools!$E$100:$E$129,0)))/K449,\"\"))","v":""},{"$nulls":8},{"$f":"CONST_CNTR_TotProd&D447","v":"TotProd_"},null,{"$f":"SUMIF(D_Processes!R:R,AB450,D_Processes!L:L)","v":0}]
[null,null,1,{"$f":"IF(D447=\"\",\"\",IF(COUNTIF(INDEX(CNTR_IOSupplyChain,MATCH(D447,CNTR_IOProcAndPrec,0),),C451)=0,\"\",INDEX(CNTR_IOProcAndPrec,MATCH(C451,INDEX(CNTR_IOSupplyChain,MATCH(D447,CNTR_IOProcAndPrec,0),),0))))","v":""},null,{"$f":"IF(D451=\"\",\"\",IF(COUNTIF(CNTR_List_ExistProdProcNames,D451)>0,INDEX(CNTR_List_ExistProdProc,MATCH(D451,CNTR_List_ExistProdProcNames,0)),INDEX(CNTR_List_ExistPurchPrec,MATCH(D451,CNTR_List_ExistPurchPrecNames,0))))","v":""},{"$f":"IF(D451=\"\",\"\",INDEX(CNTR_Matrix_Inv,MATCH(D447,CNTR_IOProcAndPrec,0),MATCH(D451,CNTR_IOProcAndPrec,0)))","v":""},{"$f":"IF(D451=\"\",\"\",IF(AG451,INDEX(E_PurchPrec!U:U,MATCH(CONST_PurchPrecDefaultUsed&D451,E_PurchPrec!R:R,0)),CONST_NA))","v":""},{"$f":"IF($D451=\"\",\"\",SUM($G451)*SUM(INDEX(InputOutput!$AJ$71:$AJ$100,MATCH($D451,InputOutput!$D$71:$D$100,0))))","v":""},{"$f":"IF($D451=\"\",\"\",SUM($G451)*SUM(INDEX(InputOutput!$AL$71:$AL$100,MATCH($D451,InputOutput!$D$71:$D$100,0))))","v":""},"",{"$f":"IF(D451=\"\",\"\",SUM(I451)*SUM(AD450))","v":""},{"$f":"IF(D451=\"\",\"\",SUM(J451)*SUM(AD450))","v":""},{"$f":"IF(COUNT(L451:M451)>0,SUM(L451:M451),\"\")","v":""},{"$f":"IF(AG451,INDEX(E_PurchPrec!U:U,MATCH(CONST_CNTR_ElecEFMethod&D451,E_PurchPrec!R:R,0)),INDEX(D_Processes!T:T,MATCH(CONST_CNTR_ElecEFMethod&D451,D_Processes!R:R,0)))","v":""},{"$f":"IF(OR($D451=\"\",$AG451),\"\",SUM($G451)*SUM(INDEX(InputOutput!$AN$71:$AN$100,MATCH($D451,InputOutput!$D$71:$D$100,0))))","v":""},{"$f":"IF(D451=\"\",\"\",IF(AG451,INDEX(A_InstData!$F$101:$F$120,MATCH(D451,CNTR_List_ExistPurchPrecNames,0)),\"\"))","v":""},{"$f":"IF($D451=\"\",\"\",IFERROR(SUM($G451)*SUM(INDEX(F_Tools!$T$100:$T$129,MATCH($D451,F_Tools!$E$100:$E$129,0)))/K449,\"\"))","v":""},{"$f":"IF($D451=\"\",\"\",IFERROR(SUM($G451)*SUM(INDEX(F_Tools!$U$100:$U$129,MATCH($D451,F_Tools!$E$100:$E$129,0)))/K449,\"\"))","v":""},{"$nulls":8},{"$f":"CONST_PrecursorToGoodInput&D451&\"_\"&D447","v":"PrecToGood__"},null,{"$f":"SUMIF(D_Processes!R:R,AB451,D_Processes!K:K)","v":0},{"$f":"SUMIF(D_Processes!R:R,CONST_CNTR_TotProd&D451,D_Processes!L:L)","v":0},null,{"$f":"COUNTIF(CNTR_List_ExistPurchPrecNames,D451)>0","v":false}]
[null,null,2,{"$f":"IF(D447=\"\",\"\",IF(COUNTIF(INDEX(CNTR_IOSupplyChain,MATCH(D447,CNTR_IOProcAndPrec,0),),C452)=0,\"\",INDEX(CNTR_IOProcAndPrec,MATCH(C452,INDEX(CNTR_IOSupplyChain,MATCH(D447,CNTR_IOProcAndPrec,0),),0))))","v":""},null,"",{"$f":"IF(D452=\"\",\"\",INDEX(CNTR_Matrix_Inv,MATCH(D447,CNTR_IOProcAndPrec,0),MATCH(D452,CNTR_IOProcAndPrec,0)))","v":""},{"$f":"IF(D452=\"\",\"\",IF(AG452,INDEX(E_PurchPrec!U:U,MATCH(CONST_PurchPrecDefaultUsed&D452,E_PurchPrec!R:R,0)),CONST_NA))","v":""},{"$f":"IF($D452=\"\",\"\",SUM($G452)*SUM(INDEX(InputOutput!$AJ$71:$AJ$100,MATCH($D452,InputOutput!$D$71:$D$100,0))))","v":""},{"$f":"IF($D452=\"\",\"\",SUM($G452)*SUM(INDEX(InputOutput!$AL$71:$AL$100,MATCH($D452,InputOutput!$D$71:$D$100,0))))","v":""},"",{"$f":"IF(D452=\"\",\"\",SUM(I452)*SUM(AD450))","v":""},{"$f":"IF(D452=\"\",\"\",SUM(J452)*SUM(AD450))","v":""},{"$f":"IF(COUNT(L452:M452)>0,SUM(L452:M452),\"\")","v":""},{"$f":"IF(AG452,INDEX(E_PurchPrec!U:U,MATCH(CONST_CNTR_ElecEFMethod&D452,E_PurchPrec!R:R,0)),INDEX(D_Processes!T:T,MATCH(CONST_CNTR_ElecEFMethod&D452,D_Processes!R:R,0)))","v":""},{"$f":"IF(OR($D452=\"\",$AG452),\"\",SUM($G452)*SUM(INDEX(InputOutput!$AN$71:$AN$100,MATCH($D452,InputOutput!$D$71:$D$100,0))))","v":""},{"$f":"IF(D452=\"\",\"\",IF(AG452,INDEX(A_InstData!$F$101:$F$120,MATCH(D452,CNTR_List_ExistPurchPrecNames,0)),\"\"))","v":""},{"$f":"IF($D452=\"\",\"\",IFERROR(SUM($G452)*SUM(INDEX(F_Tools!$T$100:$T$129,MATCH($D452,F_Tools!$E$100:$E$129,0)))/K449,\"\"))","v":""},{"$f":"IF($D452=\"\",\"\",IFERROR(SUM($G452)*SUM(INDEX(F_Tools!$U$100:$U$129,MATCH($D452,F_Tools!$E$100:$E$129,0)))/K449,\"\"))","v":""},{"$nulls":8},{"$f":"CONST_PrecursorToGoodInput&D452&\"_\"&D447","v":"PrecToGood__"},null,{"$f":"SUMIF(D_Processes!R:R,AB452,D_Processes!K:K)","v":0},{"$f":"SUMIF(D_Processes!R:R,CONST_CNTR_TotProd&D452,D_Processes!L:L)","v":0},null,false]
[null,null,3,{"$f":"IF(D447=\"\",\"\",IF(COUNTIF(INDEX(CNTR_IOSupplyChain,MATCH(D447,CNTR_IOProcAndPrec,0),),C453)=0,\"\",INDEX(CNTR_IOProcAndPrec,MATCH(C453,INDEX(CNTR_IOSupplyChain,MATCH(D447,CNTR_IOProcAndPrec,0),),0))))","v":""},null,"",{"$f":"IF(D453=\"\",\"\",INDEX(CNTR_Matrix_Inv,MATCH(D447,CNTR_IOProcAndPrec,0),MATCH(D453,CNTR_IOProcAndPrec,0)))","v":""},{"$f":"IF(D453=\"\",\"\",IF(AG453,INDEX(E_PurchPrec!U:U,MATCH(CONST_PurchPrecDefaultUsed&D453,E_PurchPrec!R:R,0)),CONST_NA))","v":""},{"$f":"IF($D453=\"\",\"\",SUM($G453)*SUM(INDEX(InputOutput!$AJ$71:$AJ$100,MATCH($D453,InputOutput!$D$71:$D$100,0))))","v":""},{"$f":"IF($D453=\"\",\"\",SUM($G453)*SUM(INDEX(InputOutput!$AL$71:$AL$100,MATCH($D453,InputOutput!$D$71:$D$100,0))))","v":""},"",{"$f":"IF(D453=\"\",\"\",SUM(I453)*SUM(AD450))","v":""},{"$f":"IF(D453=\"\",\"\",SUM(J453)*SUM(AD450))","v":""},{"$f":"IF(COUNT(L453:M453)>0,SUM(L453:M453),\"\")","v":""},{"$f":"IF(AG453,INDEX(E_PurchPrec!U:U,MATCH(CONST_CNTR_ElecEFMethod&D453,E_PurchPrec!R:R,0)),INDEX(D_Processes!T:T,MATCH(CONST_CNTR_ElecEFMethod&D453,D_Processes!R:R,0)))","v":""},{"$f":"IF(OR($D453=\"\",$AG453),\"\",SUM($G453)*SUM(INDEX(InputOutput!$AN$71:$AN$100,MATCH($D453,InputOutput!$D$71:$D$100,0))))","v":""},{"$f":"IF(D453=\"\",\"\",IF(AG453,INDEX(A_InstData!$F$101:$F$120,MATCH(D453,CNTR_List_ExistPurchPrecNames,0)),\"\"))","v":""},{"$f":"IF($D453=\"\",\"\",IFERROR(SUM($G453)*SUM(INDEX(F_Tools!$T$100:$T$129,MATCH($D453,F_Tools!$E$100:$E$129,0)))/K449,\"\"))","v":""},{"$f":"IF($D453=\"\",\"\",IFERROR(SUM($G453)*SUM(INDEX(F_Tools!$U$100:$U$129,MATCH($D453,F_Tools!$E$100:$E$129,0)))/K449,\"\"))","v":""},{"$nulls":8},{"$f":"CONST_PrecursorToGoodInput&D453&\"_\"&D447","v":"PrecToGood__"},null,{"$f":"SUMIF(D_Processes!R:R,AB453,D_Processes!K:K)","v":0},{"$f":"SUMIF(D_Processes!R:R,CONST_CNTR_TotProd&D453,D_Processes!L:L)","v":0},null,false]
[null,null,4,{"$f":"IF(D447=\"\",\"\",IF(COUNTIF(INDEX(CNTR_IOSupplyChain,MATCH(D447,CNTR_IOProcAndPrec,0),),C454)=0,\"\",INDEX(CNTR_IOProcAndPrec,MATCH(C454,INDEX(CNTR_IOSupplyChain,MATCH(D447,CNTR_IOProcAndPrec,0),),0))))","v":""},null,"",{"$f":"IF(D454=\"\",\"\",INDEX(CNTR_Matrix_Inv,MATCH(D447,CNTR_IOProcAndPrec,0),MATCH(D454,CNTR_IOProcAndPrec,0)))","v":""},{"$f":"IF(D454=\"\",\"\",IF(AG454,INDEX(E_PurchPrec!U:U,MATCH(CONST_PurchPrecDefaultUsed&D454,E_PurchPrec!R:R,0)),CONST_NA))","v":""},{"$f":"IF($D454=\"\",\"\",SUM($G454)*SUM(INDEX(InputOutput!$AJ$71:$AJ$100,MATCH($D454,InputOutput!$D$71:$D$100,0))))","v":""},{"$f":"IF($D454=\"\",\"\",SUM($G454)*SUM(INDEX(InputOutput!$AL$71:$AL$100,MATCH($D454,InputOutput!$D$71:$D$100,0))))","v":""},"",{"$f":"IF(D454=\"\",\"\",SUM(I454)*SUM(AD450))","v":""},{"$f":"IF(D454=\"\",\"\",SUM(J454)*SUM(AD450))","v":""},"",{"$f":"IF(AG454,INDEX(E_PurchPrec!U:U,MATCH(CONST_CNTR_ElecEFMethod&D454,E_PurchPrec!R:R,0)),INDEX(D_Processes!T:T,MATCH(CONST_CNTR_ElecEFMethod&D454,D_Processes!R:R,0)))","v":""},{"$f":"IF(OR($D454=\"\",$AG454),\"\",SUM($G454)*SUM(INDEX(InputOutput!$AN$71:$AN$100,MATCH($D454,InputOutput!$D$71:$D$100,0))))","v":""},{"$f":"IF(D454=\"\",\"\",IF(AG454,INDEX(A_InstData!$F$101:$F$120,MATCH(D454,CNTR_List_ExistPurchPrecNames,0)),\"\"))","v":""},{"$f":"IF($D454=\"\",\"\",IFERROR(SUM($G454)*SUM(INDEX(F_Tools!$T$100:$T$129,MATCH($D454,F_Tools!$E$100:$E$129,0)))/K449,\"\"))","v":""},{"$f":"IF($D454=\"\",\"\",IFERROR(SUM($G454)*SUM(INDEX(F_Tools!$U$100:$U$129,MATCH($D454,F_Tools!$E$100:$E$129,0)))/K449,\"\"))","v":""},{"$nulls":8},{"$f":"CONST_PrecursorToGoodInput&D454&\"_\"&D447","v":"PrecToGood__"},null,{"$f":"SUMIF(D_Processes!R:R,AB454,D_Processes!K:K)","v":0},{"$f":"SUMIF(D_Processes!R:R,CONST_CNTR_TotProd&D454,D_Processes!L:L)","v":0},null,false]
[null,null,5,{"$f":"IF(D447=\"\",\"\",IF(COUNTIF(INDEX(CNTR_IOSupplyChain,MATCH(D447,CNTR_IOProcAndPrec,0),),C455)=0,\"\",INDEX(CNTR_IOProcAndPrec,MATCH(C455,INDEX(CNTR_IOSupplyChain,MATCH(D447,CNTR_IOProcAndPrec,0),),0))))","v":""},null,"",{"$f":"IF(D455=\"\",\"\",INDEX(CNTR_Matrix_Inv,MATCH(D447,CNTR_IOProcAndPrec,0),MATCH(D455,CNTR_IOProcAndPrec,0)))","v":""},{"$f":"IF(D455=\"\",\"\",IF(AG455,INDEX(E_PurchPrec!U:U,MATCH(CONST_PurchPrecDefaultUsed&D455,E_PurchPrec!R:R,0)),CONST_NA))","v":""},{"$f":"IF($D455=\"\",\"\",SUM($G455)*SUM(INDEX(InputOutput!$AJ$71:$AJ$100,MATCH($D455,InputOutput!$D$71:$D$100,0))))","v":""},{"$f":"IF($D455=\"\",\"\",SUM($G455)*SUM(INDEX(InputOutput!$AL$71:$AL$100,MATCH($D455,InputOutput!$D$71:$D$100,0))))","v":""},"",{"$f":"IF(D455=\"\",\"\",SUM(I455)*SUM(AD450))","v":""},{"$f":"IF(D455=\"\",\"\",SUM(J455)*SUM(AD450))","v":""},"",{"$f":"IF(AG455,INDEX(E_PurchPrec!U:U,MATCH(CONST_CNTR_ElecEFMethod&D455,E_PurchPrec!R:R,0)),INDEX(D_Processes!T:T,MATCH(CONST_CNTR_ElecEFMethod&D455,D_Processes!R:R,0)))","v":""},{"$f":"IF(OR($D455=\"\",$AG455),\"\",SUM($G455)*SUM(INDEX(InputOutput!$AN$71:$AN$100,MATCH($D455,InputOutput!$D$71:$D$100,0))))","v":""},{"$f":"IF(D455=\"\",\"\",IF(AG455,INDEX(A_InstData!$F$101:$F$120,MATCH(D455,CNTR_List_ExistPurchPrecNames,0)),\"\"))","v":""},{"$f":"IF($D455=\"\",\"\",IFERROR(SUM($G455)*SUM(INDEX(F_Tools!$T$100:$T$129,MATCH($D455,F_Tools!$E$100:$E$129,0)))/K449,\"\"))","v":""},{"$f":"IF($D455=\"\",\"\",IFERROR(SUM($G455)*SUM(INDEX(F_Tools!$U$100:$U$129,MATCH($D455,F_Tools!$E$100:$E$129,0)))/K449,\"\"))","v":""},{"$nulls":8},{"$f":"CONST_PrecursorToGoodInput&D455&\"_\"&D447","v":"PrecToGood__"},null,{"$f":"SUMIF(D_Processes!R:R,AB455,D_Processes!K:K)","v":0},{"$f":"SUMIF(D_Processes!R:R,CONST_CNTR_TotProd&D455,D_Processes!L:L)","v":0},null,false]
[null,null,6,{"$f":"IF(D447=\"\",\"\",IF(COUNTIF(INDEX(CNTR_IOSupplyChain,MATCH(D447,CNTR_IOProcAndPrec,0),),C456)=0,\"\",INDEX(CNTR_IOProcAndPrec,MATCH(C456,INDEX(CNTR_IOSupplyChain,MATCH(D447,CNTR_IOProcAndPrec,0),),0))))","v":""},null,"",{"$f":"IF(D456=\"\",\"\",INDEX(CNTR_Matrix_Inv,MATCH(D447,CNTR_IOProcAndPrec,0),MATCH(D456,CNTR_IOProcAndPrec,0)))","v":""},{"$f":"IF(D456=\"\",\"\",IF(AG456,INDEX(E_PurchPrec!U:U,MATCH(CONST_PurchPrecDefaultUsed&D456,E_PurchPrec!R:R,0)),CONST_NA))","v":""},{"$f":"IF($D456=\"\",\"\",SUM($G456)*SUM(INDEX(InputOutput!$AJ$71:$AJ$100,MATCH($D456,InputOutput!$D$71:$D$100,0))))","v":""},{"$f":"IF($D456=\"\",\"\",SUM($G456)*SUM(INDEX(InputOutput!$AL$71:$AL$100,MATCH($D456,InputOutput!$D$71:$D$100,0))))","v":""},"",{"$f":"IF(D456=\"\",\"\",SUM(I456)*SUM(AD450))","v":""},{"$f":"IF(D456=\"\",\"\",SUM(J456)*SUM(AD450))","v":""},"",{"$f":"IF(AG456,INDEX(E_PurchPrec!U:U,MATCH(CONST_CNTR_ElecEFMethod&D456,E_PurchPrec!R:R,0)),INDEX(D_Processes!T:T,MATCH(CONST_CNTR_ElecEFMethod&D456,D_Processes!R:R,0)))","v":""},{"$f":"IF(OR($D456=\"\",$AG456),\"\",SUM($G456)*SUM(INDEX(InputOutput!$AN$71:$AN$100,MATCH($D456,InputOutput!$D$71:$D$100,0))))","v":""},{"$f":"IF(D456=\"\",\"\",IF(AG456,INDEX(A_InstData!$F$101:$F$120,MATCH(D456,CNTR_List_ExistPurchPrecNames,0)),\"\"))","v":""},{"$f":"IF($D456=\"\",\"\",IFERROR(SUM($G456)*SUM(INDEX(F_Tools!$T$100:$T$129,MATCH($D456,F_Tools!$E$100:$E$129,0)))/K449,\"\"))","v":""},{"$f":"IF($D456=\"\",\"\",IFERROR(SUM($G456)*SUM(INDEX(F_Tools!$U$100:$U$129,MATCH($D456,F_Tools!$E$100:$E$129,0)))/K449,\"\"))","v":""},{"$nulls":8},{"$f":"CONST_PrecursorToGoodInput&D456&\"_\"&D447","v":"PrecToGood__"},null,{"$f":"SUMIF(D_Processes!R:R,AB456,D_Processes!K:K)","v":0},{"$f":"SUMIF(D_Processes!R:R,CONST_CNTR_TotProd&D456,D_Processes!L:L)","v":0},null,false]
[null,null,7,{"$f":"IF(D447=\"\",\"\",IF(COUNTIF(INDEX(CNTR_IOSupplyChain,MATCH(D447,CNTR_IOProcAndPrec,0),),C457)=0,\"\",INDEX(CNTR_IOProcAndPrec,MATCH(C457,INDEX(CNTR_IOSupplyChain,MATCH(D447,CNTR_IOProcAndPrec,0),),0))))","v":""},null,"",{"$f":"IF(D457=\"\",\"\",INDEX(CNTR_Matrix_Inv,MATCH(D447,CNTR_IOProcAndPrec,0),MATCH(D457,CNTR_IOProcAndPrec,0)))","v":""},{"$f":"IF(D457=\"\",\"\",IF(AG457,INDEX(E_PurchPrec!U:U,MATCH(CONST_PurchPrecDefaultUsed&D457,E_PurchPrec!R:R,0)),CONST_NA))","v":""},{"$f":"IF($D457=\"\",\"\",SUM($G457)*SUM(INDEX(InputOutput!$AJ$71:$AJ$100,MATCH($D457,InputOutput!$D$71:$D$100,0))))","v":""},{"$f":"IF($D457=\"\",\"\",SUM($G457)*SUM(INDEX(InputOutput!$AL$71:$AL$100,MATCH($D457,InputOutput!$D$71:$D$100,0))))","v":""},"",{"$f":"IF(D457=\"\",\"\",SUM(I457)*SUM(AD450))","v":""},{"$f":"IF(D457=\"\",\"\",SUM(J457)*SUM(AD450))","v":""},"",{"$f":"IF(AG457,INDEX(E_PurchPrec!U:U,MATCH(CONST_CNTR_ElecEFMethod&D457,E_PurchPrec!R:R,0)),INDEX(D_Processes!T:T,MATCH(CONST_CNTR_ElecEFMethod&D457,D_Processes!R:R,0)))","v":""},{"$f":"IF(OR($D457=\"\",$AG457),\"\",SUM($G457)*SUM(INDEX(InputOutput!$AN$71:$AN$100,MATCH($D457,InputOutput!$D$71:$D$100,0))))","v":""},{"$f":"IF(D457=\"\",\"\",IF(AG457,INDEX(A_InstData!$F$101:$F$120,MATCH(D457,CNTR_List_ExistPurchPrecNames,0)),\"\"))","v":""},{"$f":"IF($D457=\"\",\"\",IFERROR(SUM($G457)*SUM(INDEX(F_Tools!$T$100:$T$129,MATCH($D457,F_Tools!$E$100:$E$129,0)))/K449,\"\"))","v":""},{"$f":"IF($D457=\"\",\"\",IFERROR(SUM($G457)*SUM(INDEX(F_Tools!$U$100:$U$129,MATCH($D457,F_Tools!$E$100:$E$129,0)))/K449,\"\"))","v":""},{"$nulls":8},{"$f":"CONST_PrecursorToGoodInput&D457&\"_\"&D447","v":"PrecToGood__"},null,{"$f":"SUMIF(D_Processes!R:R,AB457,D_Processes!K:K)","v":0},{"$f":"SUMIF(D_Processes!R:R,CONST_CNTR_TotProd&D457,D_Processes!L:L)","v":0},null,false]
[null,null,8,{"$f":"IF(D447=\"\",\"\",IF(COUNTIF(INDEX(CNTR_IOSupplyChain,MATCH(D447,CNTR_IOProcAndPrec,0),),C458)=0,\"\",INDEX(CNTR_IOProcAndPrec,MATCH(C458,INDEX(CNTR_IOSupplyChain,MATCH(D447,CNTR_IOProcAndPrec,0),),0))))","v":""},null,"",{"$f":"IF(D458=\"\",\"\",INDEX(CNTR_Matrix_Inv,MATCH(D447,CNTR_IOProcAndPrec,0),MATCH(D458,CNTR_IOProcAndPrec,0)))","v":""},{"$f":"IF(D458=\"\",\"\",IF(AG458,INDEX(E_PurchPrec!U:U,MATCH(CONST_PurchPrecDefaultUsed&D458,E_PurchPrec!R:R,0)),CONST_NA))","v":""},{"$f":"IF($D458=\"\",\"\",SUM($G458)*SUM(INDEX(InputOutput!$AJ$71:$AJ$100,MATCH($D458,InputOutput!$D$71:$D$100,0))))","v":""},{"$f":"IF($D458=\"\",\"\",SUM($G458)*SUM(INDEX(InputOutput!$AL$71:$AL$100,MATCH($D458,InputOutput!$D$71:$D$100,0))))","v":""},"",{"$f":"IF(D458=\"\",\"\",SUM(I458)*SUM(AD450))","v":""},{"$f":"IF(D458=\"\",\"\",SUM(J458)*SUM(AD450))","v":""},"",{"$f":"IF(AG458,INDEX(E_PurchPrec!U:U,MATCH(CONST_CNTR_ElecEFMethod&D458,E_PurchPrec!R:R,0)),INDEX(D_Processes!T:T,MATCH(CONST_CNTR_ElecEFMethod&D458,D_Processes!R:R,0)))","v":""},{"$f":"IF(OR($D458=\"\",$AG458),\"\",SUM($G458)*SUM(INDEX(InputOutput!$AN$71:$AN$100,MATCH($D458,InputOutput!$D$71:$D$100,0))))","v":""},{"$f":"IF(D458=\"\",\"\",IF(AG458,INDEX(A_InstData!$F$101:$F$120,MATCH(D458,CNTR_List_ExistPurchPrecNames,0)),\"\"))","v":""},{"$f":"IF($D458=\"\",\"\",IFERROR(SUM($G458)*SUM(INDEX(F_Tools!$T$100:$T$129,MATCH($D458,F_Tools!$E$100:$E$129,0)))/K449,\"\"))","v":""},{"$f":"IF($D458=\"\",\"\",IFERROR(SUM($G458)*SUM(INDEX(F_Tools!$U$100:$U$129,MATCH($D458,F_Tools!$E$100:$E$129,0)))/K449,\"\"))","v":""},{"$nulls":8},{"$f":"CONST_PrecursorToGoodInput&D458&\"_\"&D447","v":"PrecToGood__"},null,{"$f":"SUMIF(D_Processes!R:R,AB458,D_Processes!K:K)","v":0},{"$f":"SUMIF(D_Processes!R:R,CONST_CNTR_TotProd&D458,D_Processes!L:L)","v":0},null,false]
[null,null,9,{"$f":"IF(D447=\"\",\"\",IF(COUNTIF(INDEX(CNTR_IOSupplyChain,MATCH(D447,CNTR_IOProcAndPrec,0),),C459)=0,\"\",INDEX(CNTR_IOProcAndPrec,MATCH(C459,INDEX(CNTR_IOSupplyChain,MATCH(D447,CNTR_IOProcAndPrec,0),),0))))","v":""},null,"",{"$f":"IF(D459=\"\",\"\",INDEX(CNTR_Matrix_Inv,MATCH(D447,CNTR_IOProcAndPrec,0),MATCH(D459,CNTR_IOProcAndPrec,0)))","v":""},{"$f":"IF(D459=\"\",\"\",IF(AG459,INDEX(E_PurchPrec!U:U,MATCH(CONST_PurchPrecDefaultUsed&D459,E_PurchPrec!R:R,0)),CONST_NA))","v":""},{"$f":"IF($D459=\"\",\"\",SUM($G459)*SUM(INDEX(InputOutput!$AJ$71:$AJ$100,MATCH($D459,InputOutput!$D$71:$D$100,0))))","v":""},{"$f":"IF($D459=\"\",\"\",SUM($G459)*SUM(INDEX(InputOutput!$AL$71:$AL$100,MATCH($D459,InputOutput!$D$71:$D$100,0))))","v":""},"",{"$f":"IF(D459=\"\",\"\",SUM(I459)*SUM(AD450))","v":""},{"$f":"IF(D459=\"\",\"\",SUM(J459)*SUM(AD450))","v":""},"",{"$f":"IF(AG459,INDEX(E_PurchPrec!U:U,MATCH(CONST_CNTR_ElecEFMethod&D459,E_PurchPrec!R:R,0)),INDEX(D_Processes!T:T,MATCH(CONST_CNTR_ElecEFMethod&D459,D_Processes!R:R,0)))","v":""},{"$f":"IF(OR($D459=\"\",$AG459),\"\",SUM($G459)*SUM(INDEX(InputOutput!$AN$71:$AN$100,MATCH($D459,InputOutput!$D$71:$D$100,0))))","v":""},{"$f":"IF(D459=\"\",\"\",IF(AG459,INDEX(A_InstData!$F$101:$F$120,MATCH(D459,CNTR_List_ExistPurchPrecNames,0)),\"\"))","v":""},{"$f":"IF($D459=\"\",\"\",IFERROR(SUM($G459)*SUM(INDEX(F_Tools!$T$100:$T$129,MATCH($D459,F_Tools!$E$100:$E$129,0)))/K449,\"\"))","v":""},{"$f":"IF($D459=\"\",\"\",IFERROR(SUM($G459)*SUM(INDEX(F_Tools!$U$100:$U$129,MATCH($D459,F_Tools!$E$100:$E$129,0)))/K449,\"\"))","v":""},{"$nulls":8},{"$f":"CONST_PrecursorToGoodInput&D459&\"_\"&D447","v":"PrecToGood__"},null,{"$f":"SUMIF(D_Processes!R:R,AB459,D_Processes!K:K)","v":0},{"$f":"SUMIF(D_Processes!R:R,CONST_CNTR_TotProd&D459,D_Processes!L:L)","v":0},null,false]
[null,null,10,{"$f":"IF(D447=\"\",\"\",IF(COUNTIF(INDEX(CNTR_IOSupplyChain,MATCH(D447,CNTR_IOProcAndPrec,0),),C460)=0,\"\",INDEX(CNTR_IOProcAndPrec,MATCH(C460,INDEX(CNTR_IOSupplyChain,MATCH(D447,CNTR_IOProcAndPrec,0),),0))))","v":""},null,"",{"$f":"IF(D460=\"\",\"\",INDEX(CNTR_Matrix_Inv,MATCH(D447,CNTR_IOProcAndPrec,0),MATCH(D460,CNTR_IOProcAndPrec,0)))","v":""},{"$f":"IF(D460=\"\",\"\",IF(AG460,INDEX(E_PurchPrec!U:U,MATCH(CONST_PurchPrecDefaultUsed&D460,E_PurchPrec!R:R,0)),CONST_NA))","v":""},{"$f":"IF($D460=\"\",\"\",SUM($G460)*SUM(INDEX(InputOutput!$AJ$71:$AJ$100,MATCH($D460,InputOutput!$D$71:$D$100,0))))","v":""},{"$f":"IF($D460=\"\",\"\",SUM($G460)*SUM(INDEX(InputOutput!$AL$71:$AL$100,MATCH($D460,InputOutput!$D$71:$D$100,0))))","v":""},"",{"$f":"IF(D460=\"\",\"\",SUM(I460)*SUM(AD450))","v":""},{"$f":"IF(D460=\"\",\"\",SUM(J460)*SUM(AD450))","v":""},"",{"$f":"IF(AG460,INDEX(E_PurchPrec!U:U,MATCH(CONST_CNTR_ElecEFMethod&D460,E_PurchPrec!R:R,0)),INDEX(D_Processes!T:T,MATCH(CONST_CNTR_ElecEFMethod&D460,D_Processes!R:R,0)))","v":""},{"$f":"IF(OR($D460=\"\",$AG460),\"\",SUM($G460)*SUM(INDEX(InputOutput!$AN$71:$AN$100,MATCH($D460,InputOutput!$D$71:$D$100,0))))","v":""},{"$f":"IF(D460=\"\",\"\",IF(AG460,INDEX(A_InstData!$F$101:$F$120,MATCH(D460,CNTR_List_ExistPurchPrecNames,0)),\"\"))","v":""},{"$f":"IF($D460=\"\",\"\",IFERROR(SUM($G460)*SUM(INDEX(F_Tools!$T$100:$T$129,MATCH($D460,F_Tools!$E$100:$E$129,0)))/K449,\"\"))","v":""},{"$f":"IF($D460=\"\",\"\",IFERROR(SUM($G460)*SUM(INDEX(F_Tools!$U$100:$U$129,MATCH($D460,F_Tools!$E$100:$E$129,0)))/K449,\"\"))","v":""},{"$nulls":8},{"$f":"CONST_PrecursorToGoodInput&D460&\"_\"&D447","v":"PrecToGood__"},null,{"$f":"SUMIF(D_Processes!R:R,AB460,D_Processes!K:K)","v":0},{"$f":"SUMIF(D_Processes!R:R,CONST_CNTR_TotProd&D460,D_Processes!L:L)","v":0},null,false]
[null,null,11,{"$f":"IF(D447=\"\",\"\",IF(COUNTIF(INDEX(CNTR_IOSupplyChain,MATCH(D447,CNTR_IOProcAndPrec,0),),C461)=0,\"\",INDEX(CNTR_IOProcAndPrec,MATCH(C461,INDEX(CNTR_IOSupplyChain,MATCH(D447,CNTR_IOProcAndPrec,0),),0))))","v":""},null,"",{"$f":"IF(D461=\"\",\"\",INDEX(CNTR_Matrix_Inv,MATCH(D447,CNTR_IOProcAndPrec,0),MATCH(D461,CNTR_IOProcAndPrec,0)))","v":""},{"$f":"IF(D461=\"\",\"\",IF(AG461,INDEX(E_PurchPrec!U:U,MATCH(CONST_PurchPrecDefaultUsed&D461,E_PurchPrec!R:R,0)),CONST_NA))","v":""},{"$f":"IF($D461=\"\",\"\",SUM($G461)*SUM(INDEX(InputOutput!$AJ$71:$AJ$100,MATCH($D461,InputOutput!$D$71:$D$100,0))))","v":""},{"$f":"IF($D461=\"\",\"\",SUM($G461)*SUM(INDEX(InputOutput!$AL$71:$AL$100,MATCH($D461,InputOutput!$D$71:$D$100,0))))","v":""},"",{"$f":"IF(D461=\"\",\"\",SUM(I461)*SUM(AD450))","v":""},{"$f":"IF(D461=\"\",\"\",SUM(J461)*SUM(AD450))","v":""},"",{"$f":"IF(AG461,INDEX(E_PurchPrec!U:U,MATCH(CONST_CNTR_ElecEFMethod&D461,E_PurchPrec!R:R,0)),INDEX(D_Processes!T:T,MATCH(CONST_CNTR_ElecEFMethod&D461,D_Processes!R:R,0)))","v":""},{"$f":"IF(OR($D461=\"\",$AG461),\"\",SUM($G461)*SUM(INDEX(InputOutput!$AN$71:$AN$100,MATCH($D461,InputOutput!$D$71:$D$100,0))))","v":""},{"$f":"IF(D461=\"\",\"\",IF(AG461,INDEX(A_InstData!$F$101:$F$120,MATCH(D461,CNTR_List_ExistPurchPrecNames,0)),\"\"))","v":""},{"$f":"IF($D461=\"\",\"\",IFERROR(SUM($G461)*SUM(INDEX(F_Tools!$T$100:$T$129,MATCH($D461,F_Tools!$E$100:$E$129,0)))/K449,\"\"))","v":""},{"$f":"IF($D461=\"\",\"\",IFERROR(SUM($G461)*SUM(INDEX(F_Tools!$U$100:$U$129,MATCH($D461,F_Tools!$E$100:$E$129,0)))/K449,\"\"))","v":""},{"$nulls":8},{"$f":"CONST_PrecursorToGoodInput&D461&\"_\"&D447","v":"PrecToGood__"},null,{"$f":"SUMIF(D_Processes!R:R,AB461,D_Processes!K:K)","v":0},{"$f":"SUMIF(D_Processes!R:R,CONST_CNTR_TotProd&D461,D_Processes!L:L)","v":0},null,false]
[null,null,12,{"$f":"IF(D447=\"\",\"\",IF(COUNTIF(INDEX(CNTR_IOSupplyChain,MATCH(D447,CNTR_IOProcAndPrec,0),),C462)=0,\"\",INDEX(CNTR_IOProcAndPrec,MATCH(C462,INDEX(CNTR_IOSupplyChain,MATCH(D447,CNTR_IOProcAndPrec,0),),0))))","v":""},null,"",{"$f":"IF(D462=\"\",\"\",INDEX(CNTR_Matrix_Inv,MATCH(D447,CNTR_IOProcAndPrec,0),MATCH(D462,CNTR_IOProcAndPrec,0)))","v":""},{"$f":"IF(D462=\"\",\"\",IF(AG462,INDEX(E_PurchPrec!U:U,MATCH(CONST_PurchPrecDefaultUsed&D462,E_PurchPrec!R:R,0)),CONST_NA))","v":""},{"$f":"IF($D462=\"\",\"\",SUM($G462)*SUM(INDEX(InputOutput!$AJ$71:$AJ$100,MATCH($D462,InputOutput!$D$71:$D$100,0))))","v":""},{"$f":"IF($D462=\"\",\"\",SUM($G462)*SUM(INDEX(InputOutput!$AL$71:$AL$100,MATCH($D462,InputOutput!$D$71:$D$100,0))))","v":""},"",{"$f":"IF(D462=\"\",\"\",SUM(I462)*SUM(AD450))","v":""},{"$f":"IF(D462=\"\",\"\",SUM(J462)*SUM(AD450))","v":""},"",{"$f":"IF(AG462,INDEX(E_PurchPrec!U:U,MATCH(CONST_CNTR_ElecEFMethod&D462,E_PurchPrec!R:R,0)),INDEX(D_Processes!T:T,MATCH(CONST_CNTR_ElecEFMethod&D462,D_Processes!R:R,0)))","v":""},{"$f":"IF(OR($D462=\"\",$AG462),\"\",SUM($G462)*SUM(INDEX(InputOutput!$AN$71:$AN$100,MATCH($D462,InputOutput!$D$71:$D$100,0))))","v":""},{"$f":"IF(D462=\"\",\"\",IF(AG462,INDEX(A_InstData!$F$101:$F$120,MATCH(D462,CNTR_List_ExistPurchPrecNames,0)),\"\"))","v":""},{"$f":"IF($D462=\"\",\"\",IFERROR(SUM($G462)*SUM(INDEX(F_Tools!$T$100:$T$129,MATCH($D462,F_Tools!$E$100:$E$129,0)))/K449,\"\"))","v":""},{"$f":"IF($D462=\"\",\"\",IFERROR(SUM($G462)*SUM(INDEX(F_Tools!$U$100:$U$129,MATCH($D462,F_Tools!$E$100:$E$129,0)))/K449,\"\"))","v":""},{"$nulls":8},{"$f":"CONST_PrecursorToGoodInput&D462&\"_\"&D447","v":"PrecToGood__"},null,{"$f":"SUMIF(D_Processes!R:R,AB462,D_Processes!K:K)","v":0},{"$f":"SUMIF(D_Processes!R:R,CONST_CNTR_TotProd&D462,D_Processes!L:L)","v":0},null,false]
[null,null,13,{"$f":"IF(D447=\"\",\"\",IF(COUNTIF(INDEX(CNTR_IOSupplyChain,MATCH(D447,CNTR_IOProcAndPrec,0),),C463)=0,\"\",INDEX(CNTR_IOProcAndPrec,MATCH(C463,INDEX(CNTR_IOSupplyChain,MATCH(D447,CNTR_IOProcAndPrec,0),),0))))","v":""},null,"",{"$f":"IF(D463=\"\",\"\",INDEX(CNTR_Matrix_Inv,MATCH(D447,CNTR_IOProcAndPrec,0),MATCH(D463,CNTR_IOProcAndPrec,0)))","v":""},{"$f":"IF(D463=\"\",\"\",IF(AG463,INDEX(E_PurchPrec!U:U,MATCH(CONST_PurchPrecDefaultUsed&D463,E_PurchPrec!R:R,0)),CONST_NA))","v":""},{"$f":"IF($D463=\"\",\"\",SUM($G463)*SUM(INDEX(InputOutput!$AJ$71:$AJ$100,MATCH($D463,InputOutput!$D$71:$D$100,0))))","v":""},{"$f":"IF($D463=\"\",\"\",SUM($G463)*SUM(INDEX(InputOutput!$AL$71:$AL$100,MATCH($D463,InputOutput!$D$71:$D$100,0))))","v":""},"",{"$f":"IF(D463=\"\",\"\",SUM(I463)*SUM(AD450))","v":""},{"$f":"IF(D463=\"\",\"\",SUM(J463)*SUM(AD450))","v":""},"",{"$f":"IF(AG463,INDEX(E_PurchPrec!U:U,MATCH(CONST_CNTR_ElecEFMethod&D463,E_PurchPrec!R:R,0)),INDEX(D_Processes!T:T,MATCH(CONST_CNTR_ElecEFMethod&D463,D_Processes!R:R,0)))","v":""},{"$f":"IF(OR($D463=\"\",$AG463),\"\",SUM($G463)*SUM(INDEX(InputOutput!$AN$71:$AN$100,MATCH($D463,InputOutput!$D$71:$D$100,0))))","v":""},{"$f":"IF(D463=\"\",\"\",IF(AG463,INDEX(A_InstData!$F$101:$F$120,MATCH(D463,CNTR_List_ExistPurchPrecNames,0)),\"\"))","v":""},{"$f":"IF($D463=\"\",\"\",IFERROR(SUM($G463)*SUM(INDEX(F_Tools!$T$100:$T$129,MATCH($D463,F_Tools!$E$100:$E$129,0)))/K449,\"\"))","v":""},{"$f":"IF($D463=\"\",\"\",IFERROR(SUM($G463)*SUM(INDEX(F_Tools!$U$100:$U$129,MATCH($D463,F_Tools!$E$100:$E$129,0)))/K449,\"\"))","v":""},{"$nulls":8},{"$f":"CONST_PrecursorToGoodInput&D463&\"_\"&D447","v":"PrecToGood__"},null,{"$f":"SUMIF(D_Processes!R:R,AB463,D_Processes!K:K)","v":0},{"$f":"SUMIF(D_Processes!R:R,CONST_CNTR_TotProd&D463,D_Processes!L:L)","v":0},null,false]
[null,null,14,{"$f":"IF(D447=\"\",\"\",IF(COUNTIF(INDEX(CNTR_IOSupplyChain,MATCH(D447,CNTR_IOProcAndPrec,0),),C464)=0,\"\",INDEX(CNTR_IOProcAndPrec,MATCH(C464,INDEX(CNTR_IOSupplyChain,MATCH(D447,CNTR_IOProcAndPrec,0),),0))))","v":""},null,"",{"$f":"IF(D464=\"\",\"\",INDEX(CNTR_Matrix_Inv,MATCH(D447,CNTR_IOProcAndPrec,0),MATCH(D464,CNTR_IOProcAndPrec,0)))","v":""},{"$f":"IF(D464=\"\",\"\",IF(AG464,INDEX(E_PurchPrec!U:U,MATCH(CONST_PurchPrecDefaultUsed&D464,E_PurchPrec!R:R,0)),CONST_NA))","v":""},{"$f":"IF($D464=\"\",\"\",SUM($G464)*SUM(INDEX(InputOutput!$AJ$71:$AJ$100,MATCH($D464,InputOutput!$D$71:$D$100,0))))","v":""},{"$f":"IF($D464=\"\",\"\",SUM($G464)*SUM(INDEX(InputOutput!$AL$71:$AL$100,MATCH($D464,InputOutput!$D$71:$D$100,0))))","v":""},"",{"$f":"IF(D464=\"\",\"\",SUM(I464)*SUM(AD450))","v":""},{"$f":"IF(D464=\"\",\"\",SUM(J464)*SUM(AD450))","v":""},"",{"$f":"IF(AG464,INDEX(E_PurchPrec!U:U,MATCH(CONST_CNTR_ElecEFMethod&D464,E_PurchPrec!R:R,0)),INDEX(D_Processes!T:T,MATCH(CONST_CNTR_ElecEFMethod&D464,D_Processes!R:R,0)))","v":""},{"$f":"IF(OR($D464=\"\",$AG464),\"\",SUM($G464)*SUM(INDEX(InputOutput!$AN$71:$AN$100,MATCH($D464,InputOutput!$D$71:$D$100,0))))","v":""},{"$f":"IF(D464=\"\",\"\",IF(AG464,INDEX(A_InstData!$F$101:$F$120,MATCH(D464,CNTR_List_ExistPurchPrecNames,0)),\"\"))","v":""},{"$f":"IF($D464=\"\",\"\",IFERROR(SUM($G464)*SUM(INDEX(F_Tools!$T$100:$T$129,MATCH($D464,F_Tools!$E$100:$E$129,0)))/K449,\"\"))","v":""},{"$f":"IF($D464=\"\",\"\",IFERROR(SUM($G464)*SUM(INDEX(F_Tools!$U$100:$U$129,MATCH($D464,F_Tools!$E$100:$E$129,0)))/K449,\"\"))","v":""},{"$nulls":8},{"$f":"CONST_PrecursorToGoodInput&D464&\"_\"&D447","v":"PrecToGood__"},null,{"$f":"SUMIF(D_Processes!R:R,AB464,D_Processes!K:K)","v":0},{"$f":"SUMIF(D_Processes!R:R,CONST_CNTR_TotProd&D464,D_Processes!L:L)","v":0},null,false]
[null,null,15,{"$f":"IF(D447=\"\",\"\",IF(COUNTIF(INDEX(CNTR_IOSupplyChain,MATCH(D447,CNTR_IOProcAndPrec,0),),C465)=0,\"\",INDEX(CNTR_IOProcAndPrec,MATCH(C465,INDEX(CNTR_IOSupplyChain,MATCH(D447,CNTR_IOProcAndPrec,0),),0))))","v":""},null,"",{"$f":"IF(D465=\"\",\"\",INDEX(CNTR_Matrix_Inv,MATCH(D447,CNTR_IOProcAndPrec,0),MATCH(D465,CNTR_IOProcAndPrec,0)))","v":""},{"$f":"IF(D465=\"\",\"\",IF(AG465,INDEX(E_PurchPrec!U:U,MATCH(CONST_PurchPrecDefaultUsed&D465,E_PurchPrec!R:R,0)),CONST_NA))","v":""},{"$f":"IF($D465=\"\",\"\",SUM($G465)*SUM(INDEX(InputOutput!$AJ$71:$AJ$100,MATCH($D465,InputOutput!$D$71:$D$100,0))))","v":""},{"$f":"IF($D465=\"\",\"\",SUM($G465)*SUM(INDEX(InputOutput!$AL$71:$AL$100,MATCH($D465,InputOutput!$D$71:$D$100,0))))","v":""},"",{"$f":"IF(D465=\"\",\"\",SUM(I465)*SUM(AD450))","v":""},{"$f":"IF(D465=\"\",\"\",SUM(J465)*SUM(AD450))","v":""},"",{"$f":"IF(AG465,INDEX(E_PurchPrec!U:U,MATCH(CONST_CNTR_ElecEFMethod&D465,E_PurchPrec!R:R,0)),INDEX(D_Processes!T:T,MATCH(CONST_CNTR_ElecEFMethod&D465,D_Processes!R:R,0)))","v":""},{"$f":"IF(OR($D465=\"\",$AG465),\"\",SUM($G465)*SUM(INDEX(InputOutput!$AN$71:$AN$100,MATCH($D465,InputOutput!$D$71:$D$100,0))))","v":""},{"$f":"IF(D465=\"\",\"\",IF(AG465,INDEX(A_InstData!$F$101:$F$120,MATCH(D465,CNTR_List_ExistPurchPrecNames,0)),\"\"))","v":""},{"$f":"IF($D465=\"\",\"\",IFERROR(SUM($G465)*SUM(INDEX(F_Tools!$T$100:$T$129,MATCH($D465,F_Tools!$E$100:$E$129,0)))/K449,\"\"))","v":""},{"$f":"IF($D465=\"\",\"\",IFERROR(SUM($G465)*SUM(INDEX(F_Tools!$U$100:$U$129,MATCH($D465,F_Tools!$E$100:$E$129,0)))/K449,\"\"))","v":""},{"$nulls":8},{"$f":"CONST_PrecursorToGoodInput&D465&\"_\"&D447","v":"PrecToGood__"},null,{"$f":"SUMIF(D_Processes!R:R,AB465,D_Processes!K:K)","v":0},{"$f":"SUMIF(D_Processes!R:R,CONST_CNTR_TotProd&D465,D_Processes!L:L)","v":0},null,false]
[null,null,16,{"$f":"IF(D447=\"\",\"\",IF(COUNTIF(INDEX(CNTR_IOSupplyChain,MATCH(D447,CNTR_IOProcAndPrec,0),),C466)=0,\"\",INDEX(CNTR_IOProcAndPrec,MATCH(C466,INDEX(CNTR_IOSupplyChain,MATCH(D447,CNTR_IOProcAndPrec,0),),0))))","v":""},null,"",{"$f":"IF(D466=\"\",\"\",INDEX(CNTR_Matrix_Inv,MATCH(D447,CNTR_IOProcAndPrec,0),MATCH(D466,CNTR_IOProcAndPrec,0)))","v":""},{"$f":"IF(D466=\"\",\"\",IF(AG466,INDEX(E_PurchPrec!U:U,MATCH(CONST_PurchPrecDefaultUsed&D466,E_PurchPrec!R:R,0)),CONST_NA))","v":""},{"$f":"IF($D466=\"\",\"\",SUM($G466)*SUM(INDEX(InputOutput!$AJ$71:$AJ$100,MATCH($D466,InputOutput!$D$71:$D$100,0))))","v":""},{"$f":"IF($D466=\"\",\"\",SUM($G466)*SUM(INDEX(InputOutput!$AL$71:$AL$100,MATCH($D466,InputOutput!$D$71:$D$100,0))))","v":""},"",{"$f":"IF(D466=\"\",\"\",SUM(I466)*SUM(AD450))","v":""},{"$f":"IF(D466=\"\",\"\",SUM(J466)*SUM(AD450))","v":""},"",{"$f":"IF(AG466,INDEX(E_PurchPrec!U:U,MATCH(CONST_CNTR_ElecEFMethod&D466,E_PurchPrec!R:R,0)),INDEX(D_Processes!T:T,MATCH(CONST_CNTR_ElecEFMethod&D466,D_Processes!R:R,0)))","v":""},{"$f":"IF(OR($D466=\"\",$AG466),\"\",SUM($G466)*SUM(INDEX(InputOutput!$AN$71:$AN$100,MATCH($D466,InputOutput!$D$71:$D$100,0))))","v":""},{"$f":"IF(D466=\"\",\"\",IF(AG466,INDEX(A_InstData!$F$101:$F$120,MATCH(D466,CNTR_List_ExistPurchPrecNames,0)),\"\"))","v":""},{"$f":"IF($D466=\"\",\"\",IFERROR(SUM($G466)*SUM(INDEX(F_Tools!$T$100:$T$129,MATCH($D466,F_Tools!$E$100:$E$129,0)))/K449,\"\"))","v":""},{"$f":"IF($D466=\"\",\"\",IFERROR(SUM($G466)*SUM(INDEX(F_Tools!$U$100:$U$129,MATCH($D466,F_Tools!$E$100:$E$129,0)))/K449,\"\"))","v":""},{"$nulls":8},{"$f":"CONST_PrecursorToGoodInput&D466&\"_\"&D447","v":"PrecToGood__"},null,{"$f":"SUMIF(D_Processes!R:R,AB466,D_Processes!K:K)","v":0},{"$f":"SUMIF(D_Processes!R:R,CONST_CNTR_TotProd&D466,D_Processes!L:L)","v":0},null,false]
[null,null,17,{"$f":"IF(D447=\"\",\"\",IF(COUNTIF(INDEX(CNTR_IOSupplyChain,MATCH(D447,CNTR_IOProcAndPrec,0),),C467)=0,\"\",INDEX(CNTR_IOProcAndPrec,MATCH(C467,INDEX(CNTR_IOSupplyChain,MATCH(D447,CNTR_IOProcAndPrec,0),),0))))","v":""},null,"",{"$f":"IF(D467=\"\",\"\",INDEX(CNTR_Matrix_Inv,MATCH(D447,CNTR_IOProcAndPrec,0),MATCH(D467,CNTR_IOProcAndPrec,0)))","v":""},{"$f":"IF(D467=\"\",\"\",IF(AG467,INDEX(E_PurchPrec!U:U,MATCH(CONST_PurchPrecDefaultUsed&D467,E_PurchPrec!R:R,0)),CONST_NA))","v":""},{"$f":"IF($D467=\"\",\"\",SUM($G467)*SUM(INDEX(InputOutput!$AJ$71:$AJ$100,MATCH($D467,InputOutput!$D$71:$D$100,0))))","v":""},{"$f":"IF($D467=\"\",\"\",SUM($G467)*SUM(INDEX(InputOutput!$AL$71:$AL$100,MATCH($D467,InputOutput!$D$71:$D$100,0))))","v":""},"",{"$f":"IF(D467=\"\",\"\",SUM(I467)*SUM(AD450))","v":""},{"$f":"IF(D467=\"\",\"\",SUM(J467)*SUM(AD450))","v":""},"",{"$f":"IF(AG467,INDEX(E_PurchPrec!U:U,MATCH(CONST_CNTR_ElecEFMethod&D467,E_PurchPrec!R:R,0)),INDEX(D_Processes!T:T,MATCH(CONST_CNTR_ElecEFMethod&D467,D_Processes!R:R,0)))","v":""},{"$f":"IF(OR($D467=\"\",$AG467),\"\",SUM($G467)*SUM(INDEX(InputOutput!$AN$71:$AN$100,MATCH($D467,InputOutput!$D$71:$D$100,0))))","v":""},{"$f":"IF(D467=\"\",\"\",IF(AG467,INDEX(A_InstData!$F$101:$F$120,MATCH(D467,CNTR_List_ExistPurchPrecNames,0)),\"\"))","v":""},{"$f":"IF($D467=\"\",\"\",IFERROR(SUM($G467)*SUM(INDEX(F_Tools!$T$100:$T$129,MATCH($D467,F_Tools!$E$100:$E$129,0)))/K449,\"\"))","v":""},{"$f":"IF($D467=\"\",\"\",IFERROR(SUM($G467)*SUM(INDEX(F_Tools!$U$100:$U$129,MATCH($D467,F_Tools!$E$100:$E$129,0)))/K449,\"\"))","v":""},{"$nulls":8},{"$f":"CONST_PrecursorToGoodInput&D467&\"_\"&D447","v":"PrecToGood__"},null,{"$f":"SUMIF(D_Processes!R:R,AB467,D_Processes!K:K)","v":0},{"$f":"SUMIF(D_Processes!R:R,CONST_CNTR_TotProd&D467,D_Processes!L:L)","v":0},null,false]
[null,null,18,{"$f":"IF(D447=\"\",\"\",IF(COUNTIF(INDEX(CNTR_IOSupplyChain,MATCH(D447,CNTR_IOProcAndPrec,0),),C468)=0,\"\",INDEX(CNTR_IOProcAndPrec,MATCH(C468,INDEX(CNTR_IOSupplyChain,MATCH(D447,CNTR_IOProcAndPrec,0),),0))))","v":""},null,"",{"$f":"IF(D468=\"\",\"\",INDEX(CNTR_Matrix_Inv,MATCH(D447,CNTR_IOProcAndPrec,0),MATCH(D468,CNTR_IOProcAndPrec,0)))","v":""},{"$f":"IF(D468=\"\",\"\",IF(AG468,INDEX(E_PurchPrec!U:U,MATCH(CONST_PurchPrecDefaultUsed&D468,E_PurchPrec!R:R,0)),CONST_NA))","v":""},{"$f":"IF($D468=\"\",\"\",SUM($G468)*SUM(INDEX(InputOutput!$AJ$71:$AJ$100,MATCH($D468,InputOutput!$D$71:$D$100,0))))","v":""},{"$f":"IF($D468=\"\",\"\",SUM($G468)*SUM(INDEX(InputOutput!$AL$71:$AL$100,MATCH($D468,InputOutput!$D$71:$D$100,0))))","v":""},"",{"$f":"IF(D468=\"\",\"\",SUM(I468)*SUM(AD450))","v":""},{"$f":"IF(D468=\"\",\"\",SUM(J468)*SUM(AD450))","v":""},"",{"$f":"IF(AG468,INDEX(E_PurchPrec!U:U,MATCH(CONST_CNTR_ElecEFMethod&D468,E_PurchPrec!R:R,0)),INDEX(D_Processes!T:T,MATCH(CONST_CNTR_ElecEFMethod&D468,D_Processes!R:R,0)))","v":""},{"$f":"IF(OR($D468=\"\",$AG468),\"\",SUM($G468)*SUM(INDEX(InputOutput!$AN$71:$AN$100,MATCH($D468,InputOutput!$D$71:$D$100,0))))","v":""},{"$f":"IF(D468=\"\",\"\",IF(AG468,INDEX(A_InstData!$F$101:$F$120,MATCH(D468,CNTR_List_ExistPurchPrecNames,0)),\"\"))","v":""},{"$f":"IF($D468=\"\",\"\",IFERROR(SUM($G468)*SUM(INDEX(F_Tools!$T$100:$T$129,MATCH($D468,F_Tools!$E$100:$E$129,0)))/K449,\"\"))","v":""},{"$f":"IF($D468=\"\",\"\",IFERROR(SUM($G468)*SUM(INDEX(F_Tools!$U$100:$U$129,MATCH($D468,F_Tools!$E$100:$E$129,0)))/K449,\"\"))","v":""},{"$nulls":8},{"$f":"CONST_PrecursorToGoodInput&D468&\"_\"&D447","v":"PrecToGood__"},null,{"$f":"SUMIF(D_Processes!R:R,AB468,D_Processes!K:K)","v":0},{"$f":"SUMIF(D_Processes!R:R,CONST_CNTR_TotProd&D468,D_Processes!L:L)","v":0},null,false]
[null,null,19,{"$f":"IF(D447=\"\",\"\",IF(COUNTIF(INDEX(CNTR_IOSupplyChain,MATCH(D447,CNTR_IOProcAndPrec,0),),C469)=0,\"\",INDEX(CNTR_IOProcAndPrec,MATCH(C469,INDEX(CNTR_IOSupplyChain,MATCH(D447,CNTR_IOProcAndPrec,0),),0))))","v":""},null,"",{"$f":"IF(D469=\"\",\"\",INDEX(CNTR_Matrix_Inv,MATCH(D447,CNTR_IOProcAndPrec,0),MATCH(D469,CNTR_IOProcAndPrec,0)))","v":""},{"$f":"IF(D469=\"\",\"\",IF(AG469,INDEX(E_PurchPrec!U:U,MATCH(CONST_PurchPrecDefaultUsed&D469,E_PurchPrec!R:R,0)),CONST_NA))","v":""},{"$f":"IF($D469=\"\",\"\",SUM($G469)*SUM(INDEX(InputOutput!$AJ$71:$AJ$100,MATCH($D469,InputOutput!$D$71:$D$100,0))))","v":""},{"$f":"IF($D469=\"\",\"\",SUM($G469)*SUM(INDEX(InputOutput!$AL$71:$AL$100,MATCH($D469,InputOutput!$D$71:$D$100,0))))","v":""},"",{"$f":"IF(D469=\"\",\"\",SUM(I469)*SUM(AD450))","v":""},{"$f":"IF(D469=\"\",\"\",SUM(J469)*SUM(AD450))","v":""},"",{"$f":"IF(AG469,INDEX(E_PurchPrec!U:U,MATCH(CONST_CNTR_ElecEFMethod&D469,E_PurchPrec!R:R,0)),INDEX(D_Processes!T:T,MATCH(CONST_CNTR_ElecEFMethod&D469,D_Processes!R:R,0)))","v":""},{"$f":"IF(OR($D469=\"\",$AG469),\"\",SUM($G469)*SUM(INDEX(InputOutput!$AN$71:$AN$100,MATCH($D469,InputOutput!$D$71:$D$100,0))))","v":""},{"$f":"IF(D469=\"\",\"\",IF(AG469,INDEX(A_InstData!$F$101:$F$120,MATCH(D469,CNTR_List_ExistPurchPrecNames,0)),\"\"))","v":""},{"$f":"IF($D469=\"\",\"\",IFERROR(SUM($G469)*SUM(INDEX(F_Tools!$T$100:$T$129,MATCH($D469,F_Tools!$E$100:$E$129,0)))/K449,\"\"))","v":""},{"$f":"IF($D469=\"\",\"\",IFERROR(SUM($G469)*SUM(INDEX(F_Tools!$U$100:$U$129,MATCH($D469,F_Tools!$E$100:$E$129,0)))/K449,\"\"))","v":""},{"$nulls":8},{"$f":"CONST_PrecursorToGoodInput&D469&\"_\"&D447","v":"PrecToGood__"},null,{"$f":"SUMIF(D_Processes!R:R,AB469,D_Processes!K:K)","v":0},{"$f":"SUMIF(D_Processes!R:R,CONST_CNTR_TotProd&D469,D_Processes!L:L)","v":0},null,false]
[null,null,20,{"$f":"IF(D447=\"\",\"\",IF(COUNTIF(INDEX(CNTR_IOSupplyChain,MATCH(D447,CNTR_IOProcAndPrec,0),),C470)=0,\"\",INDEX(CNTR_IOProcAndPrec,MATCH(C470,INDEX(CNTR_IOSupplyChain,MATCH(D447,CNTR_IOProcAndPrec,0),),0))))","v":""},null,"",{"$f":"IF(D470=\"\",\"\",INDEX(CNTR_Matrix_Inv,MATCH(D447,CNTR_IOProcAndPrec,0),MATCH(D470,CNTR_IOProcAndPrec,0)))","v":""},{"$f":"IF(D470=\"\",\"\",IF(AG470,INDEX(E_PurchPrec!U:U,MATCH(CONST_PurchPrecDefaultUsed&D470,E_PurchPrec!R:R,0)),CONST_NA))","v":""},{"$f":"IF($D470=\"\",\"\",SUM($G470)*SUM(INDEX(InputOutput!$AJ$71:$AJ$100,MATCH($D470,InputOutput!$D$71:$D$100,0))))","v":""},{"$f":"IF($D470=\"\",\"\",SUM($G470)*SUM(INDEX(InputOutput!$AL$71:$AL$100,MATCH($D470,InputOutput!$D$71:$D$100,0))))","v":""},"",{"$f":"IF(D470=\"\",\"\",SUM(I470)*SUM(AD450))","v":""},{"$f":"IF(D470=\"\",\"\",SUM(J470)*SUM(AD450))","v":""},"",{"$f":"IF(AG470,INDEX(E_PurchPrec!U:U,MATCH(CONST_CNTR_ElecEFMethod&D470,E_PurchPrec!R:R,0)),INDEX(D_Processes!T:T,MATCH(CONST_CNTR_ElecEFMethod&D470,D_Processes!R:R,0)))","v":""},{"$f":"IF(OR($D470=\"\",$AG470),\"\",SUM($G470)*SUM(INDEX(InputOutput!$AN$71:$AN$100,MATCH($D470,InputOutput!$D$71:$D$100,0))))","v":""},{"$f":"IF(D470=\"\",\"\",IF(AG470,INDEX(A_InstData!$F$101:$F$120,MATCH(D470,CNTR_List_ExistPurchPrecNames,0)),\"\"))","v":""},{"$f":"IF($D470=\"\",\"\",IFERROR(SUM($G470)*SUM(INDEX(F_Tools!$T$100:$T$129,MATCH($D470,F_Tools!$E$100:$E$129,0)))/K449,\"\"))","v":""},{"$f":"IF($D470=\"\",\"\",IFERROR(SUM($G470)*SUM(INDEX(F_Tools!$U$100:$U$129,MATCH($D470,F_Tools!$E$100:$E$129,0)))/K449,\"\"))","v":""},{"$nulls":8},{"$f":"CONST_PrecursorToGoodInput&D470&\"_\"&D447","v":"PrecToGood__"},null,{"$f":"SUMIF(D_Processes!R:R,AB470,D_Processes!K:K)","v":0},{"$f":"SUMIF(D_Processes!R:R,CONST_CNTR_TotProd&D470,D_Processes!L:L)","v":0},null,false]
[null,null,21,{"$f":"IF(D447=\"\",\"\",IF(COUNTIF(INDEX(CNTR_IOSupplyChain,MATCH(D447,CNTR_IOProcAndPrec,0),),C471)=0,\"\",INDEX(CNTR_IOProcAndPrec,MATCH(C471,INDEX(CNTR_IOSupplyChain,MATCH(D447,CNTR_IOProcAndPrec,0),),0))))","v":""},null,"",{"$f":"IF(D471=\"\",\"\",INDEX(CNTR_Matrix_Inv,MATCH(D447,CNTR_IOProcAndPrec,0),MATCH(D471,CNTR_IOProcAndPrec,0)))","v":""},{"$f":"IF(D471=\"\",\"\",IF(AG471,INDEX(E_PurchPrec!U:U,MATCH(CONST_PurchPrecDefaultUsed&D471,E_PurchPrec!R:R,0)),CONST_NA))","v":""},{"$f":"IF($D471=\"\",\"\",SUM($G471)*SUM(INDEX(InputOutput!$AJ$71:$AJ$100,MATCH($D471,InputOutput!$D$71:$D$100,0))))","v":""},{"$f":"IF($D471=\"\",\"\",SUM($G471)*SUM(INDEX(InputOutput!$AL$71:$AL$100,MATCH($D471,InputOutput!$D$71:$D$100,0))))","v":""},"",{"$f":"IF(D471=\"\",\"\",SUM(I471)*SUM(AD450))","v":""},{"$f":"IF(D471=\"\",\"\",SUM(J471)*SUM(AD450))","v":""},"",{"$f":"IF(AG471,INDEX(E_PurchPrec!U:U,MATCH(CONST_CNTR_ElecEFMethod&D471,E_PurchPrec!R:R,0)),INDEX(D_Processes!T:T,MATCH(CONST_CNTR_ElecEFMethod&D471,D_Processes!R:R,0)))","v":""},{"$f":"IF(OR($D471=\"\",$AG471),\"\",SUM($G471)*SUM(INDEX(InputOutput!$AN$71:$AN$100,MATCH($D471,InputOutput!$D$71:$D$100,0))))","v":""},{"$f":"IF(D471=\"\",\"\",IF(AG471,INDEX(A_InstData!$F$101:$F$120,MATCH(D471,CNTR_List_ExistPurchPrecNames,0)),\"\"))","v":""},{"$f":"IF($D471=\"\",\"\",IFERROR(SUM($G471)*SUM(INDEX(F_Tools!$T$100:$T$129,MATCH($D471,F_Tools!$E$100:$E$129,0)))/K449,\"\"))","v":""},{"$f":"IF($D471=\"\",\"\",IFERROR(SUM($G471)*SUM(INDEX(F_Tools!$U$100:$U$129,MATCH($D471,F_Tools!$E$100:$E$129,0)))/K449,\"\"))","v":""},{"$nulls":8},{"$f":"CONST_PrecursorToGoodInput&D471&\"_\"&D447","v":"PrecToGood__"},null,{"$f":"SUMIF(D_Processes!R:R,AB471,D_Processes!K:K)","v":0},{"$f":"SUMIF(D_Processes!R:R,CONST_CNTR_TotProd&D471,D_Processes!L:L)","v":0},null,false]
[null,null,22,{"$f":"IF(D447=\"\",\"\",IF(COUNTIF(INDEX(CNTR_IOSupplyChain,MATCH(D447,CNTR_IOProcAndPrec,0),),C472)=0,\"\",INDEX(CNTR_IOProcAndPrec,MATCH(C472,INDEX(CNTR_IOSupplyChain,MATCH(D447,CNTR_IOProcAndPrec,0),),0))))","v":""},null,"",{"$f":"IF(D472=\"\",\"\",INDEX(CNTR_Matrix_Inv,MATCH(D447,CNTR_IOProcAndPrec,0),MATCH(D472,CNTR_IOProcAndPrec,0)))","v":""},{"$f":"IF(D472=\"\",\"\",IF(AG472,INDEX(E_PurchPrec!U:U,MATCH(CONST_PurchPrecDefaultUsed&D472,E_PurchPrec!R:R,0)),CONST_NA))","v":""},{"$f":"IF($D472=\"\",\"\",SUM($G472)*SUM(INDEX(InputOutput!$AJ$71:$AJ$100,MATCH($D472,InputOutput!$D$71:$D$100,0))))","v":""},{"$f":"IF($D472=\"\",\"\",SUM($G472)*SUM(INDEX(InputOutput!$AL$71:$AL$100,MATCH($D472,InputOutput!$D$71:$D$100,0))))","v":""},"",{"$f":"IF(D472=\"\",\"\",SUM(I472)*SUM(AD450))","v":""},{"$f":"IF(D472=\"\",\"\",SUM(J472)*SUM(AD450))","v":""},"",{"$f":"IF(AG472,INDEX(E_PurchPrec!U:U,MATCH(CONST_CNTR_ElecEFMethod&D472,E_PurchPrec!R:R,0)),INDEX(D_Processes!T:T,MATCH(CONST_CNTR_ElecEFMethod&D472,D_Processes!R:R,0)))","v":""},{"$f":"IF(OR($D472=\"\",$AG472),\"\",SUM($G472)*SUM(INDEX(InputOutput!$AN$71:$AN$100,MATCH($D472,InputOutput!$D$71:$D$100,0))))","v":""},{"$f":"IF(D472=\"\",\"\",IF(AG472,INDEX(A_InstData!$F$101:$F$120,MATCH(D472,CNTR_List_ExistPurchPrecNames,0)),\"\"))","v":""},{"$f":"IF($D472=\"\",\"\",IFERROR(SUM($G472)*SUM(INDEX(F_Tools!$T$100:$T$129,MATCH($D472,F_Tools!$E$100:$E$129,0)))/K449,\"\"))","v":""},{"$f":"IF($D472=\"\",\"\",IFERROR(SUM($G472)*SUM(INDEX(F_Tools!$U$100:$U$129,MATCH($D472,F_Tools!$E$100:$E$129,0)))/K449,\"\"))","v":""},{"$nulls":8},{"$f":"CONST_PrecursorToGoodInput&D472&\"_\"&D447","v":"PrecToGood__"},null,{"$f":"SUMIF(D_Processes!R:R,AB472,D_Processes!K:K)","v":0},{"$f":"SUMIF(D_Processes!R:R,CONST_CNTR_TotProd&D472,D_Processes!L:L)","v":0},null,false]
[null,null,23,{"$f":"IF(D447=\"\",\"\",IF(COUNTIF(INDEX(CNTR_IOSupplyChain,MATCH(D447,CNTR_IOProcAndPrec,0),),C473)=0,\"\",INDEX(CNTR_IOProcAndPrec,MATCH(C473,INDEX(CNTR_IOSupplyChain,MATCH(D447,CNTR_IOProcAndPrec,0),),0))))","v":""},null,"",{"$f":"IF(D473=\"\",\"\",INDEX(CNTR_Matrix_Inv,MATCH(D447,CNTR_IOProcAndPrec,0),MATCH(D473,CNTR_IOProcAndPrec,0)))","v":""},{"$f":"IF(D473=\"\",\"\",IF(AG473,INDEX(E_PurchPrec!U:U,MATCH(CONST_PurchPrecDefaultUsed&D473,E_PurchPrec!R:R,0)),CONST_NA))","v":""},{"$f":"IF($D473=\"\",\"\",SUM($G473)*SUM(INDEX(InputOutput!$AJ$71:$AJ$100,MATCH($D473,InputOutput!$D$71:$D$100,0))))","v":""},{"$f":"IF($D473=\"\",\"\",SUM($G473)*SUM(INDEX(InputOutput!$AL$71:$AL$100,MATCH($D473,InputOutput!$D$71:$D$100,0))))","v":""},"",{"$f":"IF(D473=\"\",\"\",SUM(I473)*SUM(AD450))","v":""},{"$f":"IF(D473=\"\",\"\",SUM(J473)*SUM(AD450))","v":""},"",{"$f":"IF(AG473,INDEX(E_PurchPrec!U:U,MATCH(CONST_CNTR_ElecEFMethod&D473,E_PurchPrec!R:R,0)),INDEX(D_Processes!T:T,MATCH(CONST_CNTR_ElecEFMethod&D473,D_Processes!R:R,0)))","v":""},{"$f":"IF(OR($D473=\"\",$AG473),\"\",SUM($G473)*SUM(INDEX(InputOutput!$AN$71:$AN$100,MATCH($D473,InputOutput!$D$71:$D$100,0))))","v":""},{"$f":"IF(D473=\"\",\"\",IF(AG473,INDEX(A_InstData!$F$101:$F$120,MATCH(D473,CNTR_List_ExistPurchPrecNames,0)),\"\"))","v":""},{"$f":"IF($D473=\"\",\"\",IFERROR(SUM($G473)*SUM(INDEX(F_Tools!$T$100:$T$129,MATCH($D473,F_Tools!$E$100:$E$129,0)))/K449,\"\"))","v":""},{"$f":"IF($D473=\"\",\"\",IFERROR(SUM($G473)*SUM(INDEX(F_Tools!$U$100:$U$129,MATCH($D473,F_Tools!$E$100:$E$129,0)))/K449,\"\"))","v":""},{"$nulls":8},{"$f":"CONST_PrecursorToGoodInput&D473&\"_\"&D447","v":"PrecToGood__"},null,{"$f":"SUMIF(D_Processes!R:R,AB473,D_Processes!K:K)","v":0},{"$f":"SUMIF(D_Processes!R:R,CONST_CNTR_TotProd&D473,D_Processes!L:L)","v":0},null,false]
[null,null,24,{"$f":"IF(D447=\"\",\"\",IF(COUNTIF(INDEX(CNTR_IOSupplyChain,MATCH(D447,CNTR_IOProcAndPrec,0),),C474)=0,\"\",INDEX(CNTR_IOProcAndPrec,MATCH(C474,INDEX(CNTR_IOSupplyChain,MATCH(D447,CNTR_IOProcAndPrec,0),),0))))","v":""},null,"",{"$f":"IF(D474=\"\",\"\",INDEX(CNTR_Matrix_Inv,MATCH(D447,CNTR_IOProcAndPrec,0),MATCH(D474,CNTR_IOProcAndPrec,0)))","v":""},{"$f":"IF(D474=\"\",\"\",IF(AG474,INDEX(E_PurchPrec!U:U,MATCH(CONST_PurchPrecDefaultUsed&D474,E_PurchPrec!R:R,0)),CONST_NA))","v":""},{"$f":"IF($D474=\"\",\"\",SUM($G474)*SUM(INDEX(InputOutput!$AJ$71:$AJ$100,MATCH($D474,InputOutput!$D$71:$D$100,0))))","v":""},{"$f":"IF($D474=\"\",\"\",SUM($G474)*SUM(INDEX(InputOutput!$AL$71:$AL$100,MATCH($D474,InputOutput!$D$71:$D$100,0))))","v":""},"",{"$f":"IF(D474=\"\",\"\",SUM(I474)*SUM(AD450))","v":""},{"$f":"IF(D474=\"\",\"\",SUM(J474)*SUM(AD450))","v":""},"",{"$f":"IF(AG474,INDEX(E_PurchPrec!U:U,MATCH(CONST_CNTR_ElecEFMethod&D474,E_PurchPrec!R:R,0)),INDEX(D_Processes!T:T,MATCH(CONST_CNTR_ElecEFMethod&D474,D_Processes!R:R,0)))","v":""},{"$f":"IF(OR($D474=\"\",$AG474),\"\",SUM($G474)*SUM(INDEX(InputOutput!$AN$71:$AN$100,MATCH($D474,InputOutput!$D$71:$D$100,0))))","v":""},{"$f":"IF(D474=\"\",\"\",IF(AG474,INDEX(A_InstData!$F$101:$F$120,MATCH(D474,CNTR_List_ExistPurchPrecNames,0)),\"\"))","v":""},{"$f":"IF($D474=\"\",\"\",IFERROR(SUM($G474)*SUM(INDEX(F_Tools!$T$100:$T$129,MATCH($D474,F_Tools!$E$100:$E$129,0)))/K449,\"\"))","v":""},{"$f":"IF($D474=\"\",\"\",IFERROR(SUM($G474)*SUM(INDEX(F_Tools!$U$100:$U$129,MATCH($D474,F_Tools!$E$100:$E$129,0)))/K449,\"\"))","v":""},{"$nulls":8},{"$f":"CONST_PrecursorToGoodInput&D474&\"_\"&D447","v":"PrecToGood__"},null,{"$f":"SUMIF(D_Processes!R:R,AB474,D_Processes!K:K)","v":0},{"$f":"SUMIF(D_Processes!R:R,CONST_CNTR_TotProd&D474,D_Processes!L:L)","v":0},null,false]
[null,null,25,{"$f":"IF(D447=\"\",\"\",IF(COUNTIF(INDEX(CNTR_IOSupplyChain,MATCH(D447,CNTR_IOProcAndPrec,0),),C475)=0,\"\",INDEX(CNTR_IOProcAndPrec,MATCH(C475,INDEX(CNTR_IOSupplyChain,MATCH(D447,CNTR_IOProcAndPrec,0),),0))))","v":""},null,"",{"$f":"IF(D475=\"\",\"\",INDEX(CNTR_Matrix_Inv,MATCH(D447,CNTR_IOProcAndPrec,0),MATCH(D475,CNTR_IOProcAndPrec,0)))","v":""},{"$f":"IF(D475=\"\",\"\",IF(AG475,INDEX(E_PurchPrec!U:U,MATCH(CONST_PurchPrecDefaultUsed&D475,E_PurchPrec!R:R,0)),CONST_NA))","v":""},{"$f":"IF($D475=\"\",\"\",SUM($G475)*SUM(INDEX(InputOutput!$AJ$71:$AJ$100,MATCH($D475,InputOutput!$D$71:$D$100,0))))","v":""},{"$f":"IF($D475=\"\",\"\",SUM($G475)*SUM(INDEX(InputOutput!$AL$71:$AL$100,MATCH($D475,InputOutput!$D$71:$D$100,0))))","v":""},"",{"$f":"IF(D475=\"\",\"\",SUM(I475)*SUM(AD450))","v":""},{"$f":"IF(D475=\"\",\"\",SUM(J475)*SUM(AD450))","v":""},"",{"$f":"IF(AG475,INDEX(E_PurchPrec!U:U,MATCH(CONST_CNTR_ElecEFMethod&D475,E_PurchPrec!R:R,0)),INDEX(D_Processes!T:T,MATCH(CONST_CNTR_ElecEFMethod&D475,D_Processes!R:R,0)))","v":""},{"$f":"IF(OR($D475=\"\",$AG475),\"\",SUM($G475)*SUM(INDEX(InputOutput!$AN$71:$AN$100,MATCH($D475,InputOutput!$D$71:$D$100,0))))","v":""},{"$f":"IF(D475=\"\",\"\",IF(AG475,INDEX(A_InstData!$F$101:$F$120,MATCH(D475,CNTR_List_ExistPurchPrecNames,0)),\"\"))","v":""},{"$f":"IF($D475=\"\",\"\",IFERROR(SUM($G475)*SUM(INDEX(F_Tools!$T$100:$T$129,MATCH($D475,F_Tools!$E$100:$E$129,0)))/K449,\"\"))","v":""},{"$f":"IF($D475=\"\",\"\",IFERROR(SUM($G475)*SUM(INDEX(F_Tools!$U$100:$U$129,MATCH($D475,F_Tools!$E$100:$E$129,0)))/K449,\"\"))","v":""},{"$nulls":8},{"$f":"CONST_PrecursorToGoodInput&D475&\"_\"&D447","v":"PrecToGood__"},null,{"$f":"SUMIF(D_Processes!R:R,AB475,D_Processes!K:K)","v":0},{"$f":"SUMIF(D_Processes!R:R,CONST_CNTR_TotProd&D475,D_Processes!L:L)","v":0},null,false]
[null,null,26,{"$f":"IF(D447=\"\",\"\",IF(COUNTIF(INDEX(CNTR_IOSupplyChain,MATCH(D447,CNTR_IOProcAndPrec,0),),C476)=0,\"\",INDEX(CNTR_IOProcAndPrec,MATCH(C476,INDEX(CNTR_IOSupplyChain,MATCH(D447,CNTR_IOProcAndPrec,0),),0))))","v":""},null,"",{"$f":"IF(D476=\"\",\"\",INDEX(CNTR_Matrix_Inv,MATCH(D447,CNTR_IOProcAndPrec,0),MATCH(D476,CNTR_IOProcAndPrec,0)))","v":""},{"$f":"IF(D476=\"\",\"\",IF(AG476,INDEX(E_PurchPrec!U:U,MATCH(CONST_PurchPrecDefaultUsed&D476,E_PurchPrec!R:R,0)),CONST_NA))","v":""},{"$f":"IF($D476=\"\",\"\",SUM($G476)*SUM(INDEX(InputOutput!$AJ$71:$AJ$100,MATCH($D476,InputOutput!$D$71:$D$100,0))))","v":""},{"$f":"IF($D476=\"\",\"\",SUM($G476)*SUM(INDEX(InputOutput!$AL$71:$AL$100,MATCH($D476,InputOutput!$D$71:$D$100,0))))","v":""},"",{"$f":"IF(D476=\"\",\"\",SUM(I476)*SUM(AD450))","v":""},{"$f":"IF(D476=\"\",\"\",SUM(J476)*SUM(AD450))","v":""},"",{"$f":"IF(AG476,INDEX(E_PurchPrec!U:U,MATCH(CONST_CNTR_ElecEFMethod&D476,E_PurchPrec!R:R,0)),INDEX(D_Processes!T:T,MATCH(CONST_CNTR_ElecEFMethod&D476,D_Processes!R:R,0)))","v":""},{"$f":"IF(OR($D476=\"\",$AG476),\"\",SUM($G476)*SUM(INDEX(InputOutput!$AN$71:$AN$100,MATCH($D476,InputOutput!$D$71:$D$100,0))))","v":""},{"$f":"IF(D476=\"\",\"\",IF(AG476,INDEX(A_InstData!$F$101:$F$120,MATCH(D476,CNTR_List_ExistPurchPrecNames,0)),\"\"))","v":""},{"$f":"IF($D476=\"\",\"\",IFERROR(SUM($G476)*SUM(INDEX(F_Tools!$T$100:$T$129,MATCH($D476,F_Tools!$E$100:$E$129,0)))/K449,\"\"))","v":""},{"$f":"IF($D476=\"\",\"\",IFERROR(SUM($G476)*SUM(INDEX(F_Tools!$U$100:$U$129,MATCH($D476,F_Tools!$E$100:$E$129,0)))/K449,\"\"))","v":""},{"$nulls":8},{"$f":"CONST_PrecursorToGoodInput&D476&\"_\"&D447","v":"PrecToGood__"},null,{"$f":"SUMIF(D_Processes!R:R,AB476,D_Processes!K:K)","v":0},{"$f":"SUMIF(D_Processes!R:R,CONST_CNTR_TotProd&D476,D_Processes!L:L)","v":0},null,false]
[null,null,27,{"$f":"IF(D447=\"\",\"\",IF(COUNTIF(INDEX(CNTR_IOSupplyChain,MATCH(D447,CNTR_IOProcAndPrec,0),),C477)=0,\"\",INDEX(CNTR_IOProcAndPrec,MATCH(C477,INDEX(CNTR_IOSupplyChain,MATCH(D447,CNTR_IOProcAndPrec,0),),0))))","v":""},null,"",{"$f":"IF(D477=\"\",\"\",INDEX(CNTR_Matrix_Inv,MATCH(D447,CNTR_IOProcAndPrec,0),MATCH(D477,CNTR_IOProcAndPrec,0)))","v":""},{"$f":"IF(D477=\"\",\"\",IF(AG477,INDEX(E_PurchPrec!U:U,MATCH(CONST_PurchPrecDefaultUsed&D477,E_PurchPrec!R:R,0)),CONST_NA))","v":""},{"$f":"IF($D477=\"\",\"\",SUM($G477)*SUM(INDEX(InputOutput!$AJ$71:$AJ$100,MATCH($D477,InputOutput!$D$71:$D$100,0))))","v":""},{"$f":"IF($D477=\"\",\"\",SUM($G477)*SUM(INDEX(InputOutput!$AL$71:$AL$100,MATCH($D477,InputOutput!$D$71:$D$100,0))))","v":""},"",{"$f":"IF(D477=\"\",\"\",SUM(I477)*SUM(AD450))","v":""},{"$f":"IF(D477=\"\",\"\",SUM(J477)*SUM(AD450))","v":""},"",{"$f":"IF(AG477,INDEX(E_PurchPrec!U:U,MATCH(CONST_CNTR_ElecEFMethod&D477,E_PurchPrec!R:R,0)),INDEX(D_Processes!T:T,MATCH(CONST_CNTR_ElecEFMethod&D477,D_Processes!R:R,0)))","v":""},{"$f":"IF(OR($D477=\"\",$AG477),\"\",SUM($G477)*SUM(INDEX(InputOutput!$AN$71:$AN$100,MATCH($D477,InputOutput!$D$71:$D$100,0))))","v":""},{"$f":"IF(D477=\"\",\"\",IF(AG477,INDEX(A_InstData!$F$101:$F$120,MATCH(D477,CNTR_List_ExistPurchPrecNames,0)),\"\"))","v":""},{"$f":"IF($D477=\"\",\"\",IFERROR(SUM($G477)*SUM(INDEX(F_Tools!$T$100:$T$129,MATCH($D477,F_Tools!$E$100:$E$129,0)))/K449,\"\"))","v":""},{"$f":"IF($D477=\"\",\"\",IFERROR(SUM($G477)*SUM(INDEX(F_Tools!$U$100:$U$129,MATCH($D477,F_Tools!$E$100:$E$129,0)))/K449,\"\"))","v":""},{"$nulls":8},{"$f":"CONST_PrecursorToGoodInput&D477&\"_\"&D447","v":"PrecToGood__"},null,{"$f":"SUMIF(D_Processes!R:R,AB477,D_Processes!K:K)","v":0},{"$f":"SUMIF(D_Processes!R:R,CONST_CNTR_TotProd&D477,D_Processes!L:L)","v":0},null,false]
[null,null,28,{"$f":"IF(D447=\"\",\"\",IF(COUNTIF(INDEX(CNTR_IOSupplyChain,MATCH(D447,CNTR_IOProcAndPrec,0),),C478)=0,\"\",INDEX(CNTR_IOProcAndPrec,MATCH(C478,INDEX(CNTR_IOSupplyChain,MATCH(D447,CNTR_IOProcAndPrec,0),),0))))","v":""},null,"",{"$f":"IF(D478=\"\",\"\",INDEX(CNTR_Matrix_Inv,MATCH(D447,CNTR_IOProcAndPrec,0),MATCH(D478,CNTR_IOProcAndPrec,0)))","v":""},{"$f":"IF(D478=\"\",\"\",IF(AG478,INDEX(E_PurchPrec!U:U,MATCH(CONST_PurchPrecDefaultUsed&D478,E_PurchPrec!R:R,0)),CONST_NA))","v":""},{"$f":"IF($D478=\"\",\"\",SUM($G478)*SUM(INDEX(InputOutput!$AJ$71:$AJ$100,MATCH($D478,InputOutput!$D$71:$D$100,0))))","v":""},{"$f":"IF($D478=\"\",\"\",SUM($G478)*SUM(INDEX(InputOutput!$AL$71:$AL$100,MATCH($D478,InputOutput!$D$71:$D$100,0))))","v":""},"",{"$f":"IF(D478=\"\",\"\",SUM(I478)*SUM(AD450))","v":""},{"$f":"IF(D478=\"\",\"\",SUM(J478)*SUM(AD450))","v":""},"",{"$f":"IF(AG478,INDEX(E_PurchPrec!U:U,MATCH(CONST_CNTR_ElecEFMethod&D478,E_PurchPrec!R:R,0)),INDEX(D_Processes!T:T,MATCH(CONST_CNTR_ElecEFMethod&D478,D_Processes!R:R,0)))","v":""},{"$f":"IF(OR($D478=\"\",$AG478),\"\",SUM($G478)*SUM(INDEX(InputOutput!$AN$71:$AN$100,MATCH($D478,InputOutput!$D$71:$D$100,0))))","v":""},{"$f":"IF(D478=\"\",\"\",IF(AG478,INDEX(A_InstData!$F$101:$F$120,MATCH(D478,CNTR_List_ExistPurchPrecNames,0)),\"\"))","v":""},{"$f":"IF($D478=\"\",\"\",IFERROR(SUM($G478)*SUM(INDEX(F_Tools!$T$100:$T$129,MATCH($D478,F_Tools!$E$100:$E$129,0)))/K449,\"\"))","v":""},{"$f":"IF($D478=\"\",\"\",IFERROR(SUM($G478)*SUM(INDEX(F_Tools!$U$100:$U$129,MATCH($D478,F_Tools!$E$100:$E$129,0)))/K449,\"\"))","v":""},{"$nulls":8},{"$f":"CONST_PrecursorToGoodInput&D478&\"_\"&D447","v":"PrecToGood__"},null,{"$f":"SUMIF(D_Processes!R:R,AB478,D_Processes!K:K)","v":0},{"$f":"SUMIF(D_Processes!R:R,CONST_CNTR_TotProd&D478,D_Processes!L:L)","v":0},null,false]
[null,null,29,{"$f":"IF(D447=\"\",\"\",IF(COUNTIF(INDEX(CNTR_IOSupplyChain,MATCH(D447,CNTR_IOProcAndPrec,0),),C479)=0,\"\",INDEX(CNTR_IOProcAndPrec,MATCH(C479,INDEX(CNTR_IOSupplyChain,MATCH(D447,CNTR_IOProcAndPrec,0),),0))))","v":""},null,"",{"$f":"IF(D479=\"\",\"\",INDEX(CNTR_Matrix_Inv,MATCH(D447,CNTR_IOProcAndPrec,0),MATCH(D479,CNTR_IOProcAndPrec,0)))","v":""},{"$f":"IF(D479=\"\",\"\",IF(AG479,INDEX(E_PurchPrec!U:U,MATCH(CONST_PurchPrecDefaultUsed&D479,E_PurchPrec!R:R,0)),CONST_NA))","v":""},{"$f":"IF($D479=\"\",\"\",SUM($G479)*SUM(INDEX(InputOutput!$AJ$71:$AJ$100,MATCH($D479,InputOutput!$D$71:$D$100,0))))","v":""},{"$f":"IF($D479=\"\",\"\",SUM($G479)*SUM(INDEX(InputOutput!$AL$71:$AL$100,MATCH($D479,InputOutput!$D$71:$D$100,0))))","v":""},"",{"$f":"IF(D479=\"\",\"\",SUM(I479)*SUM(AD450))","v":""},{"$f":"IF(D479=\"\",\"\",SUM(J479)*SUM(AD450))","v":""},"",{"$f":"IF(AG479,INDEX(E_PurchPrec!U:U,MATCH(CONST_CNTR_ElecEFMethod&D479,E_PurchPrec!R:R,0)),INDEX(D_Processes!T:T,MATCH(CONST_CNTR_ElecEFMethod&D479,D_Processes!R:R,0)))","v":""},{"$f":"IF(OR($D479=\"\",$AG479),\"\",SUM($G479)*SUM(INDEX(InputOutput!$AN$71:$AN$100,MATCH($D479,InputOutput!$D$71:$D$100,0))))","v":""},{"$f":"IF(D479=\"\",\"\",IF(AG479,INDEX(A_InstData!$F$101:$F$120,MATCH(D479,CNTR_List_ExistPurchPrecNames,0)),\"\"))","v":""},{"$f":"IF($D479=\"\",\"\",IFERROR(SUM($G479)*SUM(INDEX(F_Tools!$T$100:$T$129,MATCH($D479,F_Tools!$E$100:$E$129,0)))/K449,\"\"))","v":""},{"$f":"IF($D479=\"\",\"\",IFERROR(SUM($G479)*SUM(INDEX(F_Tools!$U$100:$U$129,MATCH($D479,F_Tools!$E$100:$E$129,0)))/K449,\"\"))","v":""},{"$nulls":8},{"$f":"CONST_PrecursorToGoodInput&D479&\"_\"&D447","v":"PrecToGood__"},null,{"$f":"SUMIF(D_Processes!R:R,AB479,D_Processes!K:K)","v":0},{"$f":"SUMIF(D_Processes!R:R,CONST_CNTR_TotProd&D479,D_Processes!L:L)","v":0},null,false]
[null,null,30,{"$f":"IF(D447=\"\",\"\",IF(COUNTIF(INDEX(CNTR_IOSupplyChain,MATCH(D447,CNTR_IOProcAndPrec,0),),C480)=0,\"\",INDEX(CNTR_IOProcAndPrec,MATCH(C480,INDEX(CNTR_IOSupplyChain,MATCH(D447,CNTR_IOProcAndPrec,0),),0))))","v":""},null,"",{"$f":"IF(D480=\"\",\"\",INDEX(CNTR_Matrix_Inv,MATCH(D447,CNTR_IOProcAndPrec,0),MATCH(D480,CNTR_IOProcAndPrec,0)))","v":""},{"$f":"IF(D480=\"\",\"\",IF(AG480,INDEX(E_PurchPrec!U:U,MATCH(CONST_PurchPrecDefaultUsed&D480,E_PurchPrec!R:R,0)),CONST_NA))","v":""},{"$f":"IF($D480=\"\",\"\",SUM($G480)*SUM(INDEX(InputOutput!$AJ$71:$AJ$100,MATCH($D480,InputOutput!$D$71:$D$100,0))))","v":""},{"$f":"IF($D480=\"\",\"\",SUM($G480)*SUM(INDEX(InputOutput!$AL$71:$AL$100,MATCH($D480,InputOutput!$D$71:$D$100,0))))","v":""},"",{"$f":"IF(D480=\"\",\"\",SUM(I480)*SUM(AD450))","v":""},{"$f":"IF(D480=\"\",\"\",SUM(J480)*SUM(AD450))","v":""},"",{"$f":"IF(AG480,INDEX(E_PurchPrec!U:U,MATCH(CONST_CNTR_ElecEFMethod&D480,E_PurchPrec!R:R,0)),INDEX(D_Processes!T:T,MATCH(CONST_CNTR_ElecEFMethod&D480,D_Processes!R:R,0)))","v":""},{"$f":"IF(OR($D480=\"\",$AG480),\"\",SUM($G480)*SUM(INDEX(InputOutput!$AN$71:$AN$100,MATCH($D480,InputOutput!$D$71:$D$100,0))))","v":""},{"$f":"IF(D480=\"\",\"\",IF(AG480,INDEX(A_InstData!$F$101:$F$120,MATCH(D480,CNTR_List_ExistPurchPrecNames,0)),\"\"))","v":""},{"$f":"IF($D480=\"\",\"\",IFERROR(SUM($G480)*SUM(INDEX(F_Tools!$T$100:$T$129,MATCH($D480,F_Tools!$E$100:$E$129,0)))/K449,\"\"))","v":""},{"$f":"IF($D480=\"\",\"\",IFERROR(SUM($G480)*SUM(INDEX(F_Tools!$U$100:$U$129,MATCH($D480,F_Tools!$E$100:$E$129,0)))/K449,\"\"))","v":""},{"$nulls":8},{"$f":"CONST_PrecursorToGoodInput&D480&\"_\"&D447","v":"PrecToGood__"},null,{"$f":"SUMIF(D_Processes!R:R,AB480,D_Processes!K:K)","v":0},{"$f":"SUMIF(D_Processes!R:R,CONST_CNTR_TotProd&D480,D_Processes!L:L)","v":0},null,false]
[]
[]
[null,null,{"$f":"C447+1","v":10},{"$f":"IF(INDEX(CNTR_List_ExistProdProcNames,C483)=CONST_NA,\"\",INDEX(CNTR_List_ExistProdProcNames,C483))","v":""},null,{"$f":"Translations!$B$107","v":"Aggregated goods category"},{"$f":"Translations!$B$584","v":"Mass share"},{"$f":"Translations!$B$586","v":"(Share of) Default value"},{"$f":"Translations!$B$570","v":"SEE (direct)"},{"$f":"Translations!$B$574","v":"SEE (indirect)"},{"$f":"Translations!$B$344","v":"SEE (total)"},{"$f":"Translations!$B$589","v":"EmbEm (direct)"},{"$f":"Translations!$B$591","v":"EmbEm (indirect)"},{"$f":"Translations!$B$593","v":"EmbEm (total)"},{"$f":"Translations!$B$594","v":"Source of electricity EF"},{"$f":"Translations!$B$597","v":"Specific electricity"},"Country code",{"$f":"Translations!$B$351","v":"CP due (per t or MWh)"},{"$f":"Translations!$B$352","v":"Rebate (per t or MWh)"},{"$nulls":12},{"$f":"H483","v":"(Share of) Default value"},{"$f":"H485","v":""}]
[{"$nulls":6},{"$f":"IF($F485=\"\",CONST_t,INDEX(CONST_LIST_GoodsUnit,MATCH($F485,CONST_LIST_Goods,0)))&\"/\"&IF($F485=\"\",CONST_t,INDEX(CONST_LIST_GoodsUnit,MATCH($F485,CONST_LIST_Goods,0)))","v":"t/t"},null,{"$f":"CONST_tCO2eq&\"/\"&IF($F485=\"\",CONST_t,INDEX(CONST_LIST_GoodsUnit,MATCH($F485,CONST_LIST_Goods,0)))","v":"tCO2e/t"},{"$f":"CONST_tCO2eq&\"/\"&IF($F485=\"\",CONST_t,INDEX(CONST_LIST_GoodsUnit,MATCH($F485,CONST_LIST_Goods,0)))","v":"tCO2e/t"},{"$f":"CONST_tCO2eq&\"/\"&IF($F485=\"\",CONST_t,INDEX(CONST_LIST_GoodsUnit,MATCH($F485,CONST_LIST_Goods,0)))","v":"tCO2e/t"},{"$f":"CONST_tCO2eq","v":"tCO2e"},{"$f":"CONST_tCO2eq","v":"tCO2e"},{"$f":"CONST_tCO2eq","v":"tCO2e"},null,{"$f":"CONST_MWh&\"/\"&IF($F485=\"\",CONST_t,INDEX(CONST_LIST_GoodsUnit,MATCH($F485,CONST_LIST_Goods,0)))","v":"MWh/t"}]
[{"$nulls":3},{"$f":"Translations!$B$600","v":"Total production process"},null,{"$f":"IF(D486=\"\",\"\",INDEX(CNTR_List_ExistProdProc,MATCH(D486,CNTR_List_ExistProdProcNames,0)))","v":""},"-",{"$f":"IF(D483=\"\",\"\",IFERROR(SUMIFS(I487:I516,H487:H516,TRUE)/I485,\"\"))","v":""},{"$f":"IF(COUNT(I486:I516)>0,SUM(I486:I516),\"\")","v":""},"","","","","","-",{"$f":"IF(COUNT(P486:P516)>0,SUM(P486:P516),\"\")","v":""},"-",{"$f":"IF(COUNT(R486:R516)>0,SUM(R486:R516),\"\")","v":""},{"$f":"IF(COUNT(S486:S516)>0,SUM(S486:S516),\"\")","v":""},{"$nulls":10},{"$f":"Translations!$B$601","v":"Production and consumption"},{"$f":"Translations!$B$602","v":"Total production of precursors"},null,"IsPrecursor?"]
[{"$nulls":3},{"$f":"D483","v":""},null,{"$f":"IF(D486=\"\",\"\",INDEX(CNTR_List_ExistProdProc,MATCH(D486,CNTR_List_ExistProdProcNames,0)))","v":""},{"v":1,"d":"1.000"},"-",{"$f":"IF($D486=\"\",\"\",SUM($G486)*SUM(INDEX(InputOutput!$AJ$71:$AJ$100,MATCH($D486,InputOutput!$D$71:$D$100,0))))","v":""},{"$f":"IF($D486=\"\",\"\",SUM($G486)*SUM(INDEX(InputOutput!$AL$71:$AL$100,MATCH($D486,InputOutput!$D$71:$D$100,0))))","v":""},{"$f":"IF(COUNT(I486:J486)>0,SUM(I486:J486),\"\")","v":""},{"$f":"IF(D486=\"\",\"\",SUM(I486)*SUM(AD486))","v":""},{"$f":"IF(D486=\"\",\"\",SUM(J486)*SUM(AD486))","v":""},{"$f":"IF(COUNT(L486:M486)>0,SUM(L486:M486),\"\")","v":""},{"$f":"IF(AG486,INDEX(E_PurchPrec!U:U,MATCH(CONST_CNTR_ElecEFMethod&D486,E_PurchPrec!R:R,0)),INDEX(D_Processes!T:T,MATCH(CONST_CNTR_ElecEFMethod&D486,D_Processes!R:R,0)))","v":""},{"$f":"IF(OR($D486=\"\",$AG486),\"\",SUM($G486)*SUM(INDEX(InputOutput!$AN$71:$AN$100,MATCH($D486,InputOutput!$D$71:$D$100,0))))","v":""},null,{"$f":"IF($D486=\"\",\"\",IFERROR(SUM($G486)*SUM(INDEX(F_Tools!$T$100:$T$129,MATCH($D486,F_Tools!$E$100:$E$129,0)))/K485,\"\"))","v":""},{"$f":"IF($D486=\"\",\"\",IFERROR(SUM($G486)*SUM(INDEX(F_Tools!$U$100:$U$129,MATCH($D486,F_Tools!$E$100:$E$129,0)))/K485,\"\"))","v":""},{"$nulls":8},{"$f":"CONST_CNTR_TotProd&D483","v":"TotProd_"},null,{"$f":"SUMIF(D_Processes!R:R,AB486,D_Processes!L:L)","v":0}]
[null,null,1,{"$f":"IF(D483=\"\",\"\",IF(COUNTIF(INDEX(CNTR_IOSupplyChain,MATCH(D483,CNTR_IOProcAndPrec,0),),C487)=0,\"\",INDEX(CNTR_IOProcAndPrec,MATCH(C487,INDEX(CNTR_IOSupplyChain,MATCH(D483,CNTR_IOProcAndPrec,0),),0))))","v":""},null,{"$f":"IF(D487=\"\",\"\",IF(COUNTIF(CNTR_List_ExistProdProcNames,D487)>0,INDEX(CNTR_List_ExistProdProc,MATCH(D487,CNTR_List_ExistProdProcNames,0)),INDEX(CNTR_List_ExistPurchPrec,MATCH(D487,CNTR_List_ExistPurchPrecNames,0))))","v":""},{"$f":"IF(D487=\"\",\"\",INDEX(CNTR_Matrix_Inv,MATCH(D483,CNTR_IOProcAndPrec,0),MATCH(D487,CNTR_IOProcAndPrec,0)))","v":""},{"$f":"IF(D487=\"\",\"\",IF(AG487,INDEX(E_PurchPrec!U:U,MATCH(CONST_PurchPrecDefaultUsed&D487,E_PurchPrec!R:R,0)),CONST_NA))","v":""},{"$f":"IF($D487=\"\",\"\",SUM($G487)*SUM(INDEX(InputOutput!$AJ$71:$AJ$100,MATCH($D487,InputOutput!$D$71:$D$100,0))))","v":""},{"$f":"IF($D487=\"\",\"\",SUM($G487)*SUM(INDEX(InputOutput!$AL$71:$AL$100,MATCH($D487,InputOutput!$D$71:$D$100,0))))","v":""},"",{"$f":"IF(D487=\"\",\"\",SUM(I487)*SUM(AD486))","v":""},{"$f":"IF(D487=\"\",\"\",SUM(J487)*SUM(AD486))","v":""},{"$f":"IF(COUNT(L487:M487)>0,SUM(L487:M487),\"\")","v":""},{"$f":"IF(AG487,INDEX(E_PurchPrec!U:U,MATCH(CONST_CNTR_ElecEFMethod&D487,E_PurchPrec!R:R,0)),INDEX(D_Processes!T:T,MATCH(CONST_CNTR_ElecEFMethod&D487,D_Processes!R:R,0)))","v":""},{"$f":"IF(OR($D487=\"\",$AG487),\"\",SUM($G487)*SUM(INDEX(InputOutput!$AN$71:$AN$100,MATCH($D487,InputOutput!$D$71:$D$100,0))))","v":""},{"$f":"IF(D487=\"\",\"\",IF(AG487,INDEX(A_InstData!$F$101:$F$120,MATCH(D487,CNTR_List_ExistPurchPrecNames,0)),\"\"))","v":""},{"$f":"IF($D487=\"\",\"\",IFERROR(SUM($G487)*SUM(INDEX(F_Tools!$T$100:$T$129,MATCH($D487,F_Tools!$E$100:$E$129,0)))/K485,\"\"))","v":""},{"$f":"IF($D487=\"\",\"\",IFERROR(SUM($G487)*SUM(INDEX(F_Tools!$U$100:$U$129,MATCH($D487,F_Tools!$E$100:$E$129,0)))/K485,\"\"))","v":""},{"$nulls":8},{"$f":"CONST_PrecursorToGoodInput&D487&\"_\"&D483","v":"PrecToGood__"},null,{"$f":"SUMIF(D_Processes!R:R,AB487,D_Processes!K:K)","v":0},{"$f":"SUMIF(D_Processes!R:R,CONST_CNTR_TotProd&D487,D_Processes!L:L)","v":0},null,{"$f":"COUNTIF(CNTR_List_ExistPurchPrecNames,D487)>0","v":false}]
[null,null,2,{"$f":"IF(D483=\"\",\"\",IF(COUNTIF(INDEX(CNTR_IOSupplyChain,MATCH(D483,CNTR_IOProcAndPrec,0),),C488)=0,\"\",INDEX(CNTR_IOProcAndPrec,MATCH(C488,INDEX(CNTR_IOSupplyChain,MATCH(D483,CNTR_IOProcAndPrec,0),),0))))","v":""},null,"",{"$f":"IF(D488=\"\",\"\",INDEX(CNTR_Matrix_Inv,MATCH(D483,CNTR_IOProcAndPrec,0),MATCH(D488,CNTR_IOProcAndPrec,0)))","v":""},{"$f":"IF(D488=\"\",\"\",IF(AG488,INDEX(E_PurchPrec!U:U,MATCH(CONST_PurchPrecDefaultUsed&D488,E_PurchPrec!R:R,0)),CONST_NA))","v":""},{"$f":"IF($D488=\"\",\"\",SUM($G488)*SUM(INDEX(InputOutput!$AJ$71:$AJ$100,MATCH($D488,InputOutput!$D$71:$D$100,0))))","v":""},{"$f":"IF($D488=\"\",\"\",SUM($G488)*SUM(INDEX(InputOutput!$AL$71:$AL$100,MATCH($D488,InputOutput!$D$71:$D$100,0))))","v":""},"",{"$f":"IF(D488=\"\",\"\",SUM(I488)*SUM(AD486))","v":""},{"$f":"IF(D488=\"\",\"\",SUM(J488)*SUM(AD486))","v":""},{"$f":"IF(COUNT(L488:M488)>0,SUM(L488:M488),\"\")","v":""},{"$f":"IF(AG488,INDEX(E_PurchPrec!U:U,MATCH(CONST_CNTR_ElecEFMethod&D488,E_PurchPrec!R:R,0)),INDEX(D_Processes!T:T,MATCH(CONST_CNTR_ElecEFMethod&D488,D_Processes!R:R,0)))","v":""},{"$f":"IF(OR($D488=\"\",$AG488),\"\",SUM($G488)*SUM(INDEX(InputOutput!$AN$71:$AN$100,MATCH($D488,InputOutput!$D$71:$D$100,0))))","v":""},{"$f":"IF(D488=\"\",\"\",IF(AG488,INDEX(A_InstData!$F$101:$F$120,MATCH(D488,CNTR_List_ExistPurchPrecNames,0)),\"\"))","v":""},{"$f":"IF($D488=\"\",\"\",IFERROR(SUM($G488)*SUM(INDEX(F_Tools!$T$100:$T$129,MATCH($D488,F_Tools!$E$100:$E$129,0)))/K485,\"\"))","v":""},{"$f":"IF($D488=\"\",\"\",IFERROR(SUM($G488)*SUM(INDEX(F_Tools!$U$100:$U$129,MATCH($D488,F_Tools!$E$100:$E$129,0)))/K485,\"\"))","v":""},{"$nulls":8},{"$f":"CONST_PrecursorToGoodInput&D488&\"_\"&D483","v":"PrecToGood__"},null,{"$f":"SUMIF(D_Processes!R:R,AB488,D_Processes!K:K)","v":0},{"$f":"SUMIF(D_Processes!R:R,CONST_CNTR_TotProd&D488,D_Processes!L:L)","v":0},null,false]
[null,null,3,{"$f":"IF(D483=\"\",\"\",IF(COUNTIF(INDEX(CNTR_IOSupplyChain,MATCH(D483,CNTR_IOProcAndPrec,0),),C489)=0,\"\",INDEX(CNTR_IOProcAndPrec,MATCH(C489,INDEX(CNTR_IOSupplyChain,MATCH(D483,CNTR_IOProcAndPrec,0),),0))))","v":""},null,"",{"$f":"IF(D489=\"\",\"\",INDEX(CNTR_Matrix_Inv,MATCH(D483,CNTR_IOProcAndPrec,0),MATCH(D489,CNTR_IOProcAndPrec,0)))","v":""},{"$f":"IF(D489=\"\",\"\",IF(AG489,INDEX(E_PurchPrec!U:U,MATCH(CONST_PurchPrecDefaultUsed&D489,E_PurchPrec!R:R,0)),CONST_NA))","v":""},{"$f":"IF($D489=\"\",\"\",SUM($G489)*SUM(INDEX(InputOutput!$AJ$71:$AJ$100,MATCH($D489,InputOutput!$D$71:$D$100,0))))","v":""},{"$f":"IF($D489=\"\",\"\",SUM($G489)*SUM(INDEX(InputOutput!$AL$71:$AL$100,MATCH($D489,InputOutput!$D$71:$D$100,0))))","v":""},"",{"$f":"IF(D489=\"\",\"\",SUM(I489)*SUM(AD486))","v":""},{"$f":"IF(D489=\"\",\"\",SUM(J489)*SUM(AD486))","v":""},{"$f":"IF(COUNT(L489:M489)>0,SUM(L489:M489),\"\")","v":""},{"$f":"IF(AG489,INDEX(E_PurchPrec!U:U,MATCH(CONST_CNTR_ElecEFMethod&D489,E_PurchPrec!R:R,0)),INDEX(D_Processes!T:T,MATCH(CONST_CNTR_ElecEFMethod&D489,D_Processes!R:R,0)))","v":""},{"$f":"IF(OR($D489=\"\",$AG489),\"\",SUM($G489)*SUM(INDEX(InputOutput!$AN$71:$AN$100,MATCH($D489,InputOutput!$D$71:$D$100,0))))","v":""},{"$f":"IF(D489=\"\",\"\",IF(AG489,INDEX(A_InstData!$F$101:$F$120,MATCH(D489,CNTR_List_ExistPurchPrecNames,0)),\"\"))","v":""},{"$f":"IF($D489=\"\",\"\",IFERROR(SUM($G489)*SUM(INDEX(F_Tools!$T$100:$T$129,MATCH($D489,F_Tools!$E$100:$E$129,0)))/K485,\"\"))","v":""},{"$f":"IF($D489=\"\",\"\",IFERROR(SUM($G489)*SUM(INDEX(F_Tools!$U$100:$U$129,MATCH($D489,F_Tools!$E$100:$E$129,0)))/K485,\"\"))","v":""},{"$nulls":8},{"$f":"CONST_PrecursorToGoodInput&D489&\"_\"&D483","v":"PrecToGood__"},null,{"$f":"SUMIF(D_Processes!R:R,AB489,D_Processes!K:K)","v":0},{"$f":"SUMIF(D_Processes!R:R,CONST_CNTR_TotProd&D489,D_Processes!L:L)","v":0},null,false]
[null,null,4,{"$f":"IF(D483=\"\",\"\",IF(COUNTIF(INDEX(CNTR_IOSupplyChain,MATCH(D483,CNTR_IOProcAndPrec,0),),C490)=0,\"\",INDEX(CNTR_IOProcAndPrec,MATCH(C490,INDEX(CNTR_IOSupplyChain,MATCH(D483,CNTR_IOProcAndPrec,0),),0))))","v":""},null,"",{"$f":"IF(D490=\"\",\"\",INDEX(CNTR_Matrix_Inv,MATCH(D483,CNTR_IOProcAndPrec,0),MATCH(D490,CNTR_IOProcAndPrec,0)))","v":""},{"$f":"IF(D490=\"\",\"\",IF(AG490,INDEX(E_PurchPrec!U:U,MATCH(CONST_PurchPrecDefaultUsed&D490,E_PurchPrec!R:R,0)),CONST_NA))","v":""},{"$f":"IF($D490=\"\",\"\",SUM($G490)*SUM(INDEX(InputOutput!$AJ$71:$AJ$100,MATCH($D490,InputOutput!$D$71:$D$100,0))))","v":""},{"$f":"IF($D490=\"\",\"\",SUM($G490)*SUM(INDEX(InputOutput!$AL$71:$AL$100,MATCH($D490,InputOutput!$D$71:$D$100,0))))","v":""},"",{"$f":"IF(D490=\"\",\"\",SUM(I490)*SUM(AD486))","v":""},{"$f":"IF(D490=\"\",\"\",SUM(J490)*SUM(AD486))","v":""},"",{"$f":"IF(AG490,INDEX(E_PurchPrec!U:U,MATCH(CONST_CNTR_ElecEFMethod&D490,E_PurchPrec!R:R,0)),INDEX(D_Processes!T:T,MATCH(CONST_CNTR_ElecEFMethod&D490,D_Processes!R:R,0)))","v":""},{"$f":"IF(OR($D490=\"\",$AG490),\"\",SUM($G490)*SUM(INDEX(InputOutput!$AN$71:$AN$100,MATCH($D490,InputOutput!$D$71:$D$100,0))))","v":""},{"$f":"IF(D490=\"\",\"\",IF(AG490,INDEX(A_InstData!$F$101:$F$120,MATCH(D490,CNTR_List_ExistPurchPrecNames,0)),\"\"))","v":""},{"$f":"IF($D490=\"\",\"\",IFERROR(SUM($G490)*SUM(INDEX(F_Tools!$T$100:$T$129,MATCH($D490,F_Tools!$E$100:$E$129,0)))/K485,\"\"))","v":""},{"$f":"IF($D490=\"\",\"\",IFERROR(SUM($G490)*SUM(INDEX(F_Tools!$U$100:$U$129,MATCH($D490,F_Tools!$E$100:$E$129,0)))/K485,\"\"))","v":""},{"$nulls":8},{"$f":"CONST_PrecursorToGoodInput&D490&\"_\"&D483","v":"PrecToGood__"},null,{"$f":"SUMIF(D_Processes!R:R,AB490,D_Processes!K:K)","v":0},{"$f":"SUMIF(D_Processes!R:R,CONST_CNTR_TotProd&D490,D_Processes!L:L)","v":0},null,false]
[null,null,5,{"$f":"IF(D483=\"\",\"\",IF(COUNTIF(INDEX(CNTR_IOSupplyChain,MATCH(D483,CNTR_IOProcAndPrec,0),),C491)=0,\"\",INDEX(CNTR_IOProcAndPrec,MATCH(C491,INDEX(CNTR_IOSupplyChain,MATCH(D483,CNTR_IOProcAndPrec,0),),0))))","v":""},null,"",{"$f":"IF(D491=\"\",\"\",INDEX(CNTR_Matrix_Inv,MATCH(D483,CNTR_IOProcAndPrec,0),MATCH(D491,CNTR_IOProcAndPrec,0)))","v":""},{"$f":"IF(D491=\"\",\"\",IF(AG491,INDEX(E_PurchPrec!U:U,MATCH(CONST_PurchPrecDefaultUsed&D491,E_PurchPrec!R:R,0)),CONST_NA))","v":""},{"$f":"IF($D491=\"\",\"\",SUM($G491)*SUM(INDEX(InputOutput!$AJ$71:$AJ$100,MATCH($D491,InputOutput!$D$71:$D$100,0))))","v":""},{"$f":"IF($D491=\"\",\"\",SUM($G491)*SUM(INDEX(InputOutput!$AL$71:$AL$100,MATCH($D491,InputOutput!$D$71:$D$100,0))))","v":""},"",{"$f":"IF(D491=\"\",\"\",SUM(I491)*SUM(AD486))","v":""},{"$f":"IF(D491=\"\",\"\",SUM(J491)*SUM(AD486))","v":""},"",{"$f":"IF(AG491,INDEX(E_PurchPrec!U:U,MATCH(CONST_CNTR_ElecEFMethod&D491,E_PurchPrec!R:R,0)),INDEX(D_Processes!T:T,MATCH(CONST_CNTR_ElecEFMethod&D491,D_Processes!R:R,0)))","v":""},{"$f":"IF(OR($D491=\"\",$AG491),\"\",SUM($G491)*SUM(INDEX(InputOutput!$AN$71:$AN$100,MATCH($D491,InputOutput!$D$71:$D$100,0))))","v":""},{"$f":"IF(D491=\"\",\"\",IF(AG491,INDEX(A_InstData!$F$101:$F$120,MATCH(D491,CNTR_List_ExistPurchPrecNames,0)),\"\"))","v":""},{"$f":"IF($D491=\"\",\"\",IFERROR(SUM($G491)*SUM(INDEX(F_Tools!$T$100:$T$129,MATCH($D491,F_Tools!$E$100:$E$129,0)))/K485,\"\"))","v":""},{"$f":"IF($D491=\"\",\"\",IFERROR(SUM($G491)*SUM(INDEX(F_Tools!$U$100:$U$129,MATCH($D491,F_Tools!$E$100:$E$129,0)))/K485,\"\"))","v":""},{"$nulls":8},{"$f":"CONST_PrecursorToGoodInput&D491&\"_\"&D483","v":"PrecToGood__"},null,{"$f":"SUMIF(D_Processes!R:R,AB491,D_Processes!K:K)","v":0},{"$f":"SUMIF(D_Processes!R:R,CONST_CNTR_TotProd&D491,D_Processes!L:L)","v":0},null,false]
[null,null,6,{"$f":"IF(D483=\"\",\"\",IF(COUNTIF(INDEX(CNTR_IOSupplyChain,MATCH(D483,CNTR_IOProcAndPrec,0),),C492)=0,\"\",INDEX(CNTR_IOProcAndPrec,MATCH(C492,INDEX(CNTR_IOSupplyChain,MATCH(D483,CNTR_IOProcAndPrec,0),),0))))","v":""},null,"",{"$f":"IF(D492=\"\",\"\",INDEX(CNTR_Matrix_Inv,MATCH(D483,CNTR_IOProcAndPrec,0),MATCH(D492,CNTR_IOProcAndPrec,0)))","v":""},{"$f":"IF(D492=\"\",\"\",IF(AG492,INDEX(E_PurchPrec!U:U,MATCH(CONST_PurchPrecDefaultUsed&D492,E_PurchPrec!R:R,0)),CONST_NA))","v":""},{"$f":"IF($D492=\"\",\"\",SUM($G492)*SUM(INDEX(InputOutput!$AJ$71:$AJ$100,MATCH($D492,InputOutput!$D$71:$D$100,0))))","v":""},{"$f":"IF($D492=\"\",\"\",SUM($G492)*SUM(INDEX(InputOutput!$AL$71:$AL$100,MATCH($D492,InputOutput!$D$71:$D$100,0))))","v":""},"",{"$f":"IF(D492=\"\",\"\",SUM(I492)*SUM(AD486))","v":""},{"$f":"IF(D492=\"\",\"\",SUM(J492)*SUM(AD486))","v":""},"",{"$f":"IF(AG492,INDEX(E_PurchPrec!U:U,MATCH(CONST_CNTR_ElecEFMethod&D492,E_PurchPrec!R:R,0)),INDEX(D_Processes!T:T,MATCH(CONST_CNTR_ElecEFMethod&D492,D_Processes!R:R,0)))","v":""},{"$f":"IF(OR($D492=\"\",$AG492),\"\",SUM($G492)*SUM(INDEX(InputOutput!$AN$71:$AN$100,MATCH($D492,InputOutput!$D$71:$D$100,0))))","v":""},{"$f":"IF(D492=\"\",\"\",IF(AG492,INDEX(A_InstData!$F$101:$F$120,MATCH(D492,CNTR_List_ExistPurchPrecNames,0)),\"\"))","v":""},{"$f":"IF($D492=\"\",\"\",IFERROR(SUM($G492)*SUM(INDEX(F_Tools!$T$100:$T$129,MATCH($D492,F_Tools!$E$100:$E$129,0)))/K485,\"\"))","v":""},{"$f":"IF($D492=\"\",\"\",IFERROR(SUM($G492)*SUM(INDEX(F_Tools!$U$100:$U$129,MATCH($D492,F_Tools!$E$100:$E$129,0)))/K485,\"\"))","v":""},{"$nulls":8},{"$f":"CONST_PrecursorToGoodInput&D492&\"_\"&D483","v":"PrecToGood__"},null,{"$f":"SUMIF(D_Processes!R:R,AB492,D_Processes!K:K)","v":0},{"$f":"SUMIF(D_Processes!R:R,CONST_CNTR_TotProd&D492,D_Processes!L:L)","v":0},null,false]
[null,null,7,{"$f":"IF(D483=\"\",\"\",IF(COUNTIF(INDEX(CNTR_IOSupplyChain,MATCH(D483,CNTR_IOProcAndPrec,0),),C493)=0,\"\",INDEX(CNTR_IOProcAndPrec,MATCH(C493,INDEX(CNTR_IOSupplyChain,MATCH(D483,CNTR_IOProcAndPrec,0),),0))))","v":""},null,"",{"$f":"IF(D493=\"\",\"\",INDEX(CNTR_Matrix_Inv,MATCH(D483,CNTR_IOProcAndPrec,0),MATCH(D493,CNTR_IOProcAndPrec,0)))","v":""},{"$f":"IF(D493=\"\",\"\",IF(AG493,INDEX(E_PurchPrec!U:U,MATCH(CONST_PurchPrecDefaultUsed&D493,E_PurchPrec!R:R,0)),CONST_NA))","v":""},{"$f":"IF($D493=\"\",\"\",SUM($G493)*SUM(INDEX(InputOutput!$AJ$71:$AJ$100,MATCH($D493,InputOutput!$D$71:$D$100,0))))","v":""},{"$f":"IF($D493=\"\",\"\",SUM($G493)*SUM(INDEX(InputOutput!$AL$71:$AL$100,MATCH($D493,InputOutput!$D$71:$D$100,0))))","v":""},"",{"$f":"IF(D493=\"\",\"\",SUM(I493)*SUM(AD486))","v":""},{"$f":"IF(D493=\"\",\"\",SUM(J493)*SUM(AD486))","v":""},"",{"$f":"IF(AG493,INDEX(E_PurchPrec!U:U,MATCH(CONST_CNTR_ElecEFMethod&D493,E_PurchPrec!R:R,0)),INDEX(D_Processes!T:T,MATCH(CONST_CNTR_ElecEFMethod&D493,D_Processes!R:R,0)))","v":""},{"$f":"IF(OR($D493=\"\",$AG493),\"\",SUM($G493)*SUM(INDEX(InputOutput!$AN$71:$AN$100,MATCH($D493,InputOutput!$D$71:$D$100,0))))","v":""},{"$f":"IF(D493=\"\",\"\",IF(AG493,INDEX(A_InstData!$F$101:$F$120,MATCH(D493,CNTR_List_ExistPurchPrecNames,0)),\"\"))","v":""},{"$f":"IF($D493=\"\",\"\",IFERROR(SUM($G493)*SUM(INDEX(F_Tools!$T$100:$T$129,MATCH($D493,F_Tools!$E$100:$E$129,0)))/K485,\"\"))","v":""},{"$f":"IF($D493=\"\",\"\",IFERROR(SUM($G493)*SUM(INDEX(F_Tools!$U$100:$U$129,MATCH($D493,F_Tools!$E$100:$E$129,0)))/K485,\"\"))","v":""},{"$nulls":8},{"$f":"CONST_PrecursorToGoodInput&D493&\"_\"&D483","v":"PrecToGood__"},null,{"$f":"SUMIF(D_Processes!R:R,AB493,D_Processes!K:K)","v":0},{"$f":"SUMIF(D_Processes!R:R,CONST_CNTR_TotProd&D493,D_Processes!L:L)","v":0},null,false]
[null,null,8,{"$f":"IF(D483=\"\",\"\",IF(COUNTIF(INDEX(CNTR_IOSupplyChain,MATCH(D483,CNTR_IOProcAndPrec,0),),C494)=0,\"\",INDEX(CNTR_IOProcAndPrec,MATCH(C494,INDEX(CNTR_IOSupplyChain,MATCH(D483,CNTR_IOProcAndPrec,0),),0))))","v":""},null,"",{"$f":"IF(D494=\"\",\"\",INDEX(CNTR_Matrix_Inv,MATCH(D483,CNTR_IOProcAndPrec,0),MATCH(D494,CNTR_IOProcAndPrec,0)))","v":""},{"$f":"IF(D494=\"\",\"\",IF(AG494,INDEX(E_PurchPrec!U:U,MATCH(CONST_PurchPrecDefaultUsed&D494,E_PurchPrec!R:R,0)),CONST_NA))","v":""},{"$f":"IF($D494=\"\",\"\",SUM($G494)*SUM(INDEX(InputOutput!$AJ$71:$AJ$100,MATCH($D494,InputOutput!$D$71:$D$100,0))))","v":""},{"$f":"IF($D494=\"\",\"\",SUM($G494)*SUM(INDEX(InputOutput!$AL$71:$AL$100,MATCH($D494,InputOutput!$D$71:$D$100,0))))","v":""},"",{"$f":"IF(D494=\"\",\"\",SUM(I494)*SUM(AD486))","v":""},{"$f":"IF(D494=\"\",\"\",SUM(J494)*SUM(AD486))","v":""},"",{"$f":"IF(AG494,INDEX(E_PurchPrec!U:U,MATCH(CONST_CNTR_ElecEFMethod&D494,E_PurchPrec!R:R,0)),INDEX(D_Processes!T:T,MATCH(CONST_CNTR_ElecEFMethod&D494,D_Processes!R:R,0)))","v":""},{"$f":"IF(OR($D494=\"\",$AG494),\"\",SUM($G494)*SUM(INDEX(InputOutput!$AN$71:$AN$100,MATCH($D494,InputOutput!$D$71:$D$100,0))))","v":""},{"$f":"IF(D494=\"\",\"\",IF(AG494,INDEX(A_InstData!$F$101:$F$120,MATCH(D494,CNTR_List_ExistPurchPrecNames,0)),\"\"))","v":""},{"$f":"IF($D494=\"\",\"\",IFERROR(SUM($G494)*SUM(INDEX(F_Tools!$T$100:$T$129,MATCH($D494,F_Tools!$E$100:$E$129,0)))/K485,\"\"))","v":""},{"$f":"IF($D494=\"\",\"\",IFERROR(SUM($G494)*SUM(INDEX(F_Tools!$U$100:$U$129,MATCH($D494,F_Tools!$E$100:$E$129,0)))/K485,\"\"))","v":""},{"$nulls":8},{"$f":"CONST_PrecursorToGoodInput&D494&\"_\"&D483","v":"PrecToGood__"},null,{"$f":"SUMIF(D_Processes!R:R,AB494,D_Processes!K:K)","v":0},{"$f":"SUMIF(D_Processes!R:R,CONST_CNTR_TotProd&D494,D_Processes!L:L)","v":0},null,false]
[null,null,9,{"$f":"IF(D483=\"\",\"\",IF(COUNTIF(INDEX(CNTR_IOSupplyChain,MATCH(D483,CNTR_IOProcAndPrec,0),),C495)=0,\"\",INDEX(CNTR_IOProcAndPrec,MATCH(C495,INDEX(CNTR_IOSupplyChain,MATCH(D483,CNTR_IOProcAndPrec,0),),0))))","v":""},null,"",{"$f":"IF(D495=\"\",\"\",INDEX(CNTR_Matrix_Inv,MATCH(D483,CNTR_IOProcAndPrec,0),MATCH(D495,CNTR_IOProcAndPrec,0)))","v":""},{"$f":"IF(D495=\"\",\"\",IF(AG495,INDEX(E_PurchPrec!U:U,MATCH(CONST_PurchPrecDefaultUsed&D495,E_PurchPrec!R:R,0)),CONST_NA))","v":""},{"$f":"IF($D495=\"\",\"\",SUM($G495)*SUM(INDEX(InputOutput!$AJ$71:$AJ$100,MATCH($D495,InputOutput!$D$71:$D$100,0))))","v":""},{"$f":"IF($D495=\"\",\"\",SUM($G495)*SUM(INDEX(InputOutput!$AL$71:$AL$100,MATCH($D495,InputOutput!$D$71:$D$100,0))))","v":""},"",{"$f":"IF(D495=\"\",\"\",SUM(I495)*SUM(AD486))","v":""},{"$f":"IF(D495=\"\",\"\",SUM(J495)*SUM(AD486))","v":""},"",{"$f":"IF(AG495,INDEX(E_PurchPrec!U:U,MATCH(CONST_CNTR_ElecEFMethod&D495,E_PurchPrec!R:R,0)),INDEX(D_Processes!T:T,MATCH(CONST_CNTR_ElecEFMethod&D495,D_Processes!R:R,0)))","v":""},{"$f":"IF(OR($D495=\"\",$AG495),\"\",SUM($G495)*SUM(INDEX(InputOutput!$AN$71:$AN$100,MATCH($D495,InputOutput!$D$71:$D$100,0))))","v":""},{"$f":"IF(D495=\"\",\"\",IF(AG495,INDEX(A_InstData!$F$101:$F$120,MATCH(D495,CNTR_List_ExistPurchPrecNames,0)),\"\"))","v":""},{"$f":"IF($D495=\"\",\"\",IFERROR(SUM($G495)*SUM(INDEX(F_Tools!$T$100:$T$129,MATCH($D495,F_Tools!$E$100:$E$129,0)))/K485,\"\"))","v":""},{"$f":"IF($D495=\"\",\"\",IFERROR(SUM($G495)*SUM(INDEX(F_Tools!$U$100:$U$129,MATCH($D495,F_Tools!$E$100:$E$129,0)))/K485,\"\"))","v":""},{"$nulls":8},{"$f":"CONST_PrecursorToGoodInput&D495&\"_\"&D483","v":"PrecToGood__"},null,{"$f":"SUMIF(D_Processes!R:R,AB495,D_Processes!K:K)","v":0},{"$f":"SUMIF(D_Processes!R:R,CONST_CNTR_TotProd&D495,D_Processes!L:L)","v":0},null,false]
[null,null,10,{"$f":"IF(D483=\"\",\"\",IF(COUNTIF(INDEX(CNTR_IOSupplyChain,MATCH(D483,CNTR_IOProcAndPrec,0),),C496)=0,\"\",INDEX(CNTR_IOProcAndPrec,MATCH(C496,INDEX(CNTR_IOSupplyChain,MATCH(D483,CNTR_IOProcAndPrec,0),),0))))","v":""},null,"",{"$f":"IF(D496=\"\",\"\",INDEX(CNTR_Matrix_Inv,MATCH(D483,CNTR_IOProcAndPrec,0),MATCH(D496,CNTR_IOProcAndPrec,0)))","v":""},{"$f":"IF(D496=\"\",\"\",IF(AG496,INDEX(E_PurchPrec!U:U,MATCH(CONST_PurchPrecDefaultUsed&D496,E_PurchPrec!R:R,0)),CONST_NA))","v":""},{"$f":"IF($D496=\"\",\"\",SUM($G496)*SUM(INDEX(InputOutput!$AJ$71:$AJ$100,MATCH($D496,InputOutput!$D$71:$D$100,0))))","v":""},{"$f":"IF($D496=\"\",\"\",SUM($G496)*SUM(INDEX(InputOutput!$AL$71:$AL$100,MATCH($D496,InputOutput!$D$71:$D$100,0))))","v":""},"",{"$f":"IF(D496=\"\",\"\",SUM(I496)*SUM(AD486))","v":""},{"$f":"IF(D496=\"\",\"\",SUM(J496)*SUM(AD486))","v":""},"",{"$f":"IF(AG496,INDEX(E_PurchPrec!U:U,MATCH(CONST_CNTR_ElecEFMethod&D496,E_PurchPrec!R:R,0)),INDEX(D_Processes!T:T,MATCH(CONST_CNTR_ElecEFMethod&D496,D_Processes!R:R,0)))","v":""},{"$f":"IF(OR($D496=\"\",$AG496),\"\",SUM($G496)*SUM(INDEX(InputOutput!$AN$71:$AN$100,MATCH($D496,InputOutput!$D$71:$D$100,0))))","v":""},{"$f":"IF(D496=\"\",\"\",IF(AG496,INDEX(A_InstData!$F$101:$F$120,MATCH(D496,CNTR_List_ExistPurchPrecNames,0)),\"\"))","v":""},{"$f":"IF($D496=\"\",\"\",IFERROR(SUM($G496)*SUM(INDEX(F_Tools!$T$100:$T$129,MATCH($D496,F_Tools!$E$100:$E$129,0)))/K485,\"\"))","v":""},{"$f":"IF($D496=\"\",\"\",IFERROR(SUM($G496)*SUM(INDEX(F_Tools!$U$100:$U$129,MATCH($D496,F_Tools!$E$100:$E$129,0)))/K485,\"\"))","v":""},{"$nulls":8},{"$f":"CONST_PrecursorToGoodInput&D496&\"_\"&D483","v":"PrecToGood__"},null,{"$f":"SUMIF(D_Processes!R:R,AB496,D_Processes!K:K)","v":0},{"$f":"SUMIF(D_Processes!R:R,CONST_CNTR_TotProd&D496,D_Processes!L:L)","v":0},null,false]
[null,null,11,{"$f":"IF(D483=\"\",\"\",IF(COUNTIF(INDEX(CNTR_IOSupplyChain,MATCH(D483,CNTR_IOProcAndPrec,0),),C497)=0,\"\",INDEX(CNTR_IOProcAndPrec,MATCH(C497,INDEX(CNTR_IOSupplyChain,MATCH(D483,CNTR_IOProcAndPrec,0),),0))))","v":""},null,"",{"$f":"IF(D497=\"\",\"\",INDEX(CNTR_Matrix_Inv,MATCH(D483,CNTR_IOProcAndPrec,0),MATCH(D497,CNTR_IOProcAndPrec,0)))","v":""},{"$f":"IF(D497=\"\",\"\",IF(AG497,INDEX(E_PurchPrec!U:U,MATCH(CONST_PurchPrecDefaultUsed&D497,E_PurchPrec!R:R,0)),CONST_NA))","v":""},{"$f":"IF($D497=\"\",\"\",SUM($G497)*SUM(INDEX(InputOutput!$AJ$71:$AJ$100,MATCH($D497,InputOutput!$D$71:$D$100,0))))","v":""},{"$f":"IF($D497=\"\",\"\",SUM($G497)*SUM(INDEX(InputOutput!$AL$71:$AL$100,MATCH($D497,InputOutput!$D$71:$D$100,0))))","v":""},"",{"$f":"IF(D497=\"\",\"\",SUM(I497)*SUM(AD486))","v":""},{"$f":"IF(D497=\"\",\"\",SUM(J497)*SUM(AD486))","v":""},"",{"$f":"IF(AG497,INDEX(E_PurchPrec!U:U,MATCH(CONST_CNTR_ElecEFMethod&D497,E_PurchPrec!R:R,0)),INDEX(D_Processes!T:T,MATCH(CONST_CNTR_ElecEFMethod&D497,D_Processes!R:R,0)))","v":""},{"$f":"IF(OR($D497=\"\",$AG497),\"\",SUM($G497)*SUM(INDEX(InputOutput!$AN$71:$AN$100,MATCH($D497,InputOutput!$D$71:$D$100,0))))","v":""},{"$f":"IF(D497=\"\",\"\",IF(AG497,INDEX(A_InstData!$F$101:$F$120,MATCH(D497,CNTR_List_ExistPurchPrecNames,0)),\"\"))","v":""},{"$f":"IF($D497=\"\",\"\",IFERROR(SUM($G497)*SUM(INDEX(F_Tools!$T$100:$T$129,MATCH($D497,F_Tools!$E$100:$E$129,0)))/K485,\"\"))","v":""},{"$f":"IF($D497=\"\",\"\",IFERROR(SUM($G497)*SUM(INDEX(F_Tools!$U$100:$U$129,MATCH($D497,F_Tools!$E$100:$E$129,0)))/K485,\"\"))","v":""},{"$nulls":8},{"$f":"CONST_PrecursorToGoodInput&D497&\"_\"&D483","v":"PrecToGood__"},null,{"$f":"SUMIF(D_Processes!R:R,AB497,D_Processes!K:K)","v":0},{"$f":"SUMIF(D_Processes!R:R,CONST_CNTR_TotProd&D497,D_Processes!L:L)","v":0},null,false]
[null,null,12,{"$f":"IF(D483=\"\",\"\",IF(COUNTIF(INDEX(CNTR_IOSupplyChain,MATCH(D483,CNTR_IOProcAndPrec,0),),C498)=0,\"\",INDEX(CNTR_IOProcAndPrec,MATCH(C498,INDEX(CNTR_IOSupplyChain,MATCH(D483,CNTR_IOProcAndPrec,0),),0))))","v":""},null,"",{"$f":"IF(D498=\"\",\"\",INDEX(CNTR_Matrix_Inv,MATCH(D483,CNTR_IOProcAndPrec,0),MATCH(D498,CNTR_IOProcAndPrec,0)))","v":""},{"$f":"IF(D498=\"\",\"\",IF(AG498,INDEX(E_PurchPrec!U:U,MATCH(CONST_PurchPrecDefaultUsed&D498,E_PurchPrec!R:R,0)),CONST_NA))","v":""},{"$f":"IF($D498=\"\",\"\",SUM($G498)*SUM(INDEX(InputOutput!$AJ$71:$AJ$100,MATCH($D498,InputOutput!$D$71:$D$100,0))))","v":""},{"$f":"IF($D498=\"\",\"\",SUM($G498)*SUM(INDEX(InputOutput!$AL$71:$AL$100,MATCH($D498,InputOutput!$D$71:$D$100,0))))","v":""},"",{"$f":"IF(D498=\"\",\"\",SUM(I498)*SUM(AD486))","v":""},{"$f":"IF(D498=\"\",\"\",SUM(J498)*SUM(AD486))","v":""},"",{"$f":"IF(AG498,INDEX(E_PurchPrec!U:U,MATCH(CONST_CNTR_ElecEFMethod&D498,E_PurchPrec!R:R,0)),INDEX(D_Processes!T:T,MATCH(CONST_CNTR_ElecEFMethod&D498,D_Processes!R:R,0)))","v":""},{"$f":"IF(OR($D498=\"\",$AG498),\"\",SUM($G498)*SUM(INDEX(InputOutput!$AN$71:$AN$100,MATCH($D498,InputOutput!$D$71:$D$100,0))))","v":""},{"$f":"IF(D498=\"\",\"\",IF(AG498,INDEX(A_InstData!$F$101:$F$120,MATCH(D498,CNTR_List_ExistPurchPrecNames,0)),\"\"))","v":""},{"$f":"IF($D498=\"\",\"\",IFERROR(SUM($G498)*SUM(INDEX(F_Tools!$T$100:$T$129,MATCH($D498,F_Tools!$E$100:$E$129,0)))/K485,\"\"))","v":""},{"$f":"IF($D498=\"\",\"\",IFERROR(SUM($G498)*SUM(INDEX(F_Tools!$U$100:$U$129,MATCH($D498,F_Tools!$E$100:$E$129,0)))/K485,\"\"))","v":""},{"$nulls":8},{"$f":"CONST_PrecursorToGoodInput&D498&\"_\"&D483","v":"PrecToGood__"},null,{"$f":"SUMIF(D_Processes!R:R,AB498,D_Processes!K:K)","v":0},{"$f":"SUMIF(D_Processes!R:R,CONST_CNTR_TotProd&D498,D_Processes!L:L)","v":0},null,false]
[null,null,13,{"$f":"IF(D483=\"\",\"\",IF(COUNTIF(INDEX(CNTR_IOSupplyChain,MATCH(D483,CNTR_IOProcAndPrec,0),),C499)=0,\"\",INDEX(CNTR_IOProcAndPrec,MATCH(C499,INDEX(CNTR_IOSupplyChain,MATCH(D483,CNTR_IOProcAndPrec,0),),0))))","v":""},null,"",{"$f":"IF(D499=\"\",\"\",INDEX(CNTR_Matrix_Inv,MATCH(D483,CNTR_IOProcAndPrec,0),MATCH(D499,CNTR_IOProcAndPrec,0)))","v":""},{"$f":"IF(D499=\"\",\"\",IF(AG499,INDEX(E_PurchPrec!U:U,MATCH(CONST_PurchPrecDefaultUsed&D499,E_PurchPrec!R:R,0)),CONST_NA))","v":""},{"$f":"IF($D499=\"\",\"\",SUM($G499)*SUM(INDEX(InputOutput!$AJ$71:$AJ$100,MATCH($D499,InputOutput!$D$71:$D$100,0))))","v":""},{"$f":"IF($D499=\"\",\"\",SUM($G499)*SUM(INDEX(InputOutput!$AL$71:$AL$100,MATCH($D499,InputOutput!$D$71:$D$100,0))))","v":""},"",{"$f":"IF(D499=\"\",\"\",SUM(I499)*SUM(AD486))","v":""},{"$f":"IF(D499=\"\",\"\",SUM(J499)*SUM(AD486))","v":""},"",{"$f":"IF(AG499,INDEX(E_PurchPrec!U:U,MATCH(CONST_CNTR_ElecEFMethod&D499,E_PurchPrec!R:R,0)),INDEX(D_Processes!T:T,MATCH(CONST_CNTR_ElecEFMethod&D499,D_Processes!R:R,0)))","v":""},{"$f":"IF(OR($D499=\"\",$AG499),\"\",SUM($G499)*SUM(INDEX(InputOutput!$AN$71:$AN$100,MATCH($D499,InputOutput!$D$71:$D$100,0))))","v":""},{"$f":"IF(D499=\"\",\"\",IF(AG499,INDEX(A_InstData!$F$101:$F$120,MATCH(D499,CNTR_List_ExistPurchPrecNames,0)),\"\"))","v":""},{"$f":"IF($D499=\"\",\"\",IFERROR(SUM($G499)*SUM(INDEX(F_Tools!$T$100:$T$129,MATCH($D499,F_Tools!$E$100:$E$129,0)))/K485,\"\"))","v":""},{"$f":"IF($D499=\"\",\"\",IFERROR(SUM($G499)*SUM(INDEX(F_Tools!$U$100:$U$129,MATCH($D499,F_Tools!$E$100:$E$129,0)))/K485,\"\"))","v":""},{"$nulls":8},{"$f":"CONST_PrecursorToGoodInput&D499&\"_\"&D483","v":"PrecToGood__"},null,{"$f":"SUMIF(D_Processes!R:R,AB499,D_Processes!K:K)","v":0},{"$f":"SUMIF(D_Processes!R:R,CONST_CNTR_TotProd&D499,D_Processes!L:L)","v":0},null,false]
[null,null,14,{"$f":"IF(D483=\"\",\"\",IF(COUNTIF(INDEX(CNTR_IOSupplyChain,MATCH(D483,CNTR_IOProcAndPrec,0),),C500)=0,\"\",INDEX(CNTR_IOProcAndPrec,MATCH(C500,INDEX(CNTR_IOSupplyChain,MATCH(D483,CNTR_IOProcAndPrec,0),),0))))","v":""},null,"",{"$f":"IF(D500=\"\",\"\",INDEX(CNTR_Matrix_Inv,MATCH(D483,CNTR_IOProcAndPrec,0),MATCH(D500,CNTR_IOProcAndPrec,0)))","v":""},{"$f":"IF(D500=\"\",\"\",IF(AG500,INDEX(E_PurchPrec!U:U,MATCH(CONST_PurchPrecDefaultUsed&D500,E_PurchPrec!R:R,0)),CONST_NA))","v":""},{"$f":"IF($D500=\"\",\"\",SUM($G500)*SUM(INDEX(InputOutput!$AJ$71:$AJ$100,MATCH($D500,InputOutput!$D$71:$D$100,0))))","v":""},{"$f":"IF($D500=\"\",\"\",SUM($G500)*SUM(INDEX(InputOutput!$AL$71:$AL$100,MATCH($D500,InputOutput!$D$71:$D$100,0))))","v":""},"",{"$f":"IF(D500=\"\",\"\",SUM(I500)*SUM(AD486))","v":""},{"$f":"IF(D500=\"\",\"\",SUM(J500)*SUM(AD486))","v":""},"",{"$f":"IF(AG500,INDEX(E_PurchPrec!U:U,MATCH(CONST_CNTR_ElecEFMethod&D500,E_PurchPrec!R:R,0)),INDEX(D_Processes!T:T,MATCH(CONST_CNTR_ElecEFMethod&D500,D_Processes!R:R,0)))","v":""},{"$f":"IF(OR($D500=\"\",$AG500),\"\",SUM($G500)*SUM(INDEX(InputOutput!$AN$71:$AN$100,MATCH($D500,InputOutput!$D$71:$D$100,0))))","v":""},{"$f":"IF(D500=\"\",\"\",IF(AG500,INDEX(A_InstData!$F$101:$F$120,MATCH(D500,CNTR_List_ExistPurchPrecNames,0)),\"\"))","v":""},{"$f":"IF($D500=\"\",\"\",IFERROR(SUM($G500)*SUM(INDEX(F_Tools!$T$100:$T$129,MATCH($D500,F_Tools!$E$100:$E$129,0)))/K485,\"\"))","v":""},{"$f":"IF($D500=\"\",\"\",IFERROR(SUM($G500)*SUM(INDEX(F_Tools!$U$100:$U$129,MATCH($D500,F_Tools!$E$100:$E$129,0)))/K485,\"\"))","v":""},{"$nulls":8},{"$f":"CONST_PrecursorToGoodInput&D500&\"_\"&D483","v":"PrecToGood__"},null,{"$f":"SUMIF(D_Processes!R:R,AB500,D_Processes!K:K)","v":0},{"$f":"SUMIF(D_Processes!R:R,CONST_CNTR_TotProd&D500,D_Processes!L:L)","v":0},null,false]
[null,null,15,{"$f":"IF(D483=\"\",\"\",IF(COUNTIF(INDEX(CNTR_IOSupplyChain,MATCH(D483,CNTR_IOProcAndPrec,0),),C501)=0,\"\",INDEX(CNTR_IOProcAndPrec,MATCH(C501,INDEX(CNTR_IOSupplyChain,MATCH(D483,CNTR_IOProcAndPrec,0),),0))))","v":""},null,"",{"$f":"IF(D501=\"\",\"\",INDEX(CNTR_Matrix_Inv,MATCH(D483,CNTR_IOProcAndPrec,0),MATCH(D501,CNTR_IOProcAndPrec,0)))","v":""},{"$f":"IF(D501=\"\",\"\",IF(AG501,INDEX(E_PurchPrec!U:U,MATCH(CONST_PurchPrecDefaultUsed&D501,E_PurchPrec!R:R,0)),CONST_NA))","v":""},{"$f":"IF($D501=\"\",\"\",SUM($G501)*SUM(INDEX(InputOutput!$AJ$71:$AJ$100,MATCH($D501,InputOutput!$D$71:$D$100,0))))","v":""},{"$f":"IF($D501=\"\",\"\",SUM($G501)*SUM(INDEX(InputOutput!$AL$71:$AL$100,MATCH($D501,InputOutput!$D$71:$D$100,0))))","v":""},"",{"$f":"IF(D501=\"\",\"\",SUM(I501)*SUM(AD486))","v":""},{"$f":"IF(D501=\"\",\"\",SUM(J501)*SUM(AD486))","v":""},"",{"$f":"IF(AG501,INDEX(E_PurchPrec!U:U,MATCH(CONST_CNTR_ElecEFMethod&D501,E_PurchPrec!R:R,0)),INDEX(D_Processes!T:T,MATCH(CONST_CNTR_ElecEFMethod&D501,D_Processes!R:R,0)))","v":""},{"$f":"IF(OR($D501=\"\",$AG501),\"\",SUM($G501)*SUM(INDEX(InputOutput!$AN$71:$AN$100,MATCH($D501,InputOutput!$D$71:$D$100,0))))","v":""},{"$f":"IF(D501=\"\",\"\",IF(AG501,INDEX(A_InstData!$F$101:$F$120,MATCH(D501,CNTR_List_ExistPurchPrecNames,0)),\"\"))","v":""},{"$f":"IF($D501=\"\",\"\",IFERROR(SUM($G501)*SUM(INDEX(F_Tools!$T$100:$T$129,MATCH($D501,F_Tools!$E$100:$E$129,0)))/K485,\"\"))","v":""},{"$f":"IF($D501=\"\",\"\",IFERROR(SUM($G501)*SUM(INDEX(F_Tools!$U$100:$U$129,MATCH($D501,F_Tools!$E$100:$E$129,0)))/K485,\"\"))","v":""},{"$nulls":8},{"$f":"CONST_PrecursorToGoodInput&D501&\"_\"&D483","v":"PrecToGood__"},null,{"$f":"SUMIF(D_Processes!R:R,AB501,D_Processes!K:K)","v":0},{"$f":"SUMIF(D_Processes!R:R,CONST_CNTR_TotProd&D501,D_Processes!L:L)","v":0},null,false]
[null,null,16,{"$f":"IF(D483=\"\",\"\",IF(COUNTIF(INDEX(CNTR_IOSupplyChain,MATCH(D483,CNTR_IOProcAndPrec,0),),C502)=0,\"\",INDEX(CNTR_IOProcAndPrec,MATCH(C502,INDEX(CNTR_IOSupplyChain,MATCH(D483,CNTR_IOProcAndPrec,0),),0))))","v":""},null,"",{"$f":"IF(D502=\"\",\"\",INDEX(CNTR_Matrix_Inv,MATCH(D483,CNTR_IOProcAndPrec,0),MATCH(D502,CNTR_IOProcAndPrec,0)))","v":""},{"$f":"IF(D502=\"\",\"\",IF(AG502,INDEX(E_PurchPrec!U:U,MATCH(CONST_PurchPrecDefaultUsed&D502,E_PurchPrec!R:R,0)),CONST_NA))","v":""},{"$f":"IF($D502=\"\",\"\",SUM($G502)*SUM(INDEX(InputOutput!$AJ$71:$AJ$100,MATCH($D502,InputOutput!$D$71:$D$100,0))))","v":""},{"$f":"IF($D502=\"\",\"\",SUM($G502)*SUM(INDEX(InputOutput!$AL$71:$AL$100,MATCH($D502,InputOutput!$D$71:$D$100,0))))","v":""},"",{"$f":"IF(D502=\"\",\"\",SUM(I502)*SUM(AD486))","v":""},{"$f":"IF(D502=\"\",\"\",SUM(J502)*SUM(AD486))","v":""},"",{"$f":"IF(AG502,INDEX(E_PurchPrec!U:U,MATCH(CONST_CNTR_ElecEFMethod&D502,E_PurchPrec!R:R,0)),INDEX(D_Processes!T:T,MATCH(CONST_CNTR_ElecEFMethod&D502,D_Processes!R:R,0)))","v":""},{"$f":"IF(OR($D502=\"\",$AG502),\"\",SUM($G502)*SUM(INDEX(InputOutput!$AN$71:$AN$100,MATCH($D502,InputOutput!$D$71:$D$100,0))))","v":""},{"$f":"IF(D502=\"\",\"\",IF(AG502,INDEX(A_InstData!$F$101:$F$120,MATCH(D502,CNTR_List_ExistPurchPrecNames,0)),\"\"))","v":""},{"$f":"IF($D502=\"\",\"\",IFERROR(SUM($G502)*SUM(INDEX(F_Tools!$T$100:$T$129,MATCH($D502,F_Tools!$E$100:$E$129,0)))/K485,\"\"))","v":""},{"$f":"IF($D502=\"\",\"\",IFERROR(SUM($G502)*SUM(INDEX(F_Tools!$U$100:$U$129,MATCH($D502,F_Tools!$E$100:$E$129,0)))/K485,\"\"))","v":""},{"$nulls":8},{"$f":"CONST_PrecursorToGoodInput&D502&\"_\"&D483","v":"PrecToGood__"},null,{"$f":"SUMIF(D_Processes!R:R,AB502,D_Processes!K:K)","v":0},{"$f":"SUMIF(D_Processes!R:R,CONST_CNTR_TotProd&D502,D_Processes!L:L)","v":0},null,false]
[null,null,17,{"$f":"IF(D483=\"\",\"\",IF(COUNTIF(INDEX(CNTR_IOSupplyChain,MATCH(D483,CNTR_IOProcAndPrec,0),),C503)=0,\"\",INDEX(CNTR_IOProcAndPrec,MATCH(C503,INDEX(CNTR_IOSupplyChain,MATCH(D483,CNTR_IOProcAndPrec,0),),0))))","v":""},null,"",{"$f":"IF(D503=\"\",\"\",INDEX(CNTR_Matrix_Inv,MATCH(D483,CNTR_IOProcAndPrec,0),MATCH(D503,CNTR_IOProcAndPrec,0)))","v":""},{"$f":"IF(D503=\"\",\"\",IF(AG503,INDEX(E_PurchPrec!U:U,MATCH(CONST_PurchPrecDefaultUsed&D503,E_PurchPrec!R:R,0)),CONST_NA))","v":""},{"$f":"IF($D503=\"\",\"\",SUM($G503)*SUM(INDEX(InputOutput!$AJ$71:$AJ$100,MATCH($D503,InputOutput!$D$71:$D$100,0))))","v":""},{"$f":"IF($D503=\"\",\"\",SUM($G503)*SUM(INDEX(InputOutput!$AL$71:$AL$100,MATCH($D503,InputOutput!$D$71:$D$100,0))))","v":""},"",{"$f":"IF(D503=\"\",\"\",SUM(I503)*SUM(AD486))","v":""},{"$f":"IF(D503=\"\",\"\",SUM(J503)*SUM(AD486))","v":""},"",{"$f":"IF(AG503,INDEX(E_PurchPrec!U:U,MATCH(CONST_CNTR_ElecEFMethod&D503,E_PurchPrec!R:R,0)),INDEX(D_Processes!T:T,MATCH(CONST_CNTR_ElecEFMethod&D503,D_Processes!R:R,0)))","v":""},{"$f":"IF(OR($D503=\"\",$AG503),\"\",SUM($G503)*SUM(INDEX(InputOutput!$AN$71:$AN$100,MATCH($D503,InputOutput!$D$71:$D$100,0))))","v":""},{"$f":"IF(D503=\"\",\"\",IF(AG503,INDEX(A_InstData!$F$101:$F$120,MATCH(D503,CNTR_List_ExistPurchPrecNames,0)),\"\"))","v":""},{"$f":"IF($D503=\"\",\"\",IFERROR(SUM($G503)*SUM(INDEX(F_Tools!$T$100:$T$129,MATCH($D503,F_Tools!$E$100:$E$129,0)))/K485,\"\"))","v":""},{"$f":"IF($D503=\"\",\"\",IFERROR(SUM($G503)*SUM(INDEX(F_Tools!$U$100:$U$129,MATCH($D503,F_Tools!$E$100:$E$129,0)))/K485,\"\"))","v":""},{"$nulls":8},{"$f":"CONST_PrecursorToGoodInput&D503&\"_\"&D483","v":"PrecToGood__"},null,{"$f":"SUMIF(D_Processes!R:R,AB503,D_Processes!K:K)","v":0},{"$f":"SUMIF(D_Processes!R:R,CONST_CNTR_TotProd&D503,D_Processes!L:L)","v":0},null,false]
[null,null,18,{"$f":"IF(D483=\"\",\"\",IF(COUNTIF(INDEX(CNTR_IOSupplyChain,MATCH(D483,CNTR_IOProcAndPrec,0),),C504)=0,\"\",INDEX(CNTR_IOProcAndPrec,MATCH(C504,INDEX(CNTR_IOSupplyChain,MATCH(D483,CNTR_IOProcAndPrec,0),),0))))","v":""},null,"",{"$f":"IF(D504=\"\",\"\",INDEX(CNTR_Matrix_Inv,MATCH(D483,CNTR_IOProcAndPrec,0),MATCH(D504,CNTR_IOProcAndPrec,0)))","v":""},{"$f":"IF(D504=\"\",\"\",IF(AG504,INDEX(E_PurchPrec!U:U,MATCH(CONST_PurchPrecDefaultUsed&D504,E_PurchPrec!R:R,0)),CONST_NA))","v":""},{"$f":"IF($D504=\"\",\"\",SUM($G504)*SUM(INDEX(InputOutput!$AJ$71:$AJ$100,MATCH($D504,InputOutput!$D$71:$D$100,0))))","v":""},{"$f":"IF($D504=\"\",\"\",SUM($G504)*SUM(INDEX(InputOutput!$AL$71:$AL$100,MATCH($D504,InputOutput!$D$71:$D$100,0))))","v":""},"",{"$f":"IF(D504=\"\",\"\",SUM(I504)*SUM(AD486))","v":""},{"$f":"IF(D504=\"\",\"\",SUM(J504)*SUM(AD486))","v":""},"",{"$f":"IF(AG504,INDEX(E_PurchPrec!U:U,MATCH(CONST_CNTR_ElecEFMethod&D504,E_PurchPrec!R:R,0)),INDEX(D_Processes!T:T,MATCH(CONST_CNTR_ElecEFMethod&D504,D_Processes!R:R,0)))","v":""},{"$f":"IF(OR($D504=\"\",$AG504),\"\",SUM($G504)*SUM(INDEX(InputOutput!$AN$71:$AN$100,MATCH($D504,InputOutput!$D$71:$D$100,0))))","v":""},{"$f":"IF(D504=\"\",\"\",IF(AG504,INDEX(A_InstData!$F$101:$F$120,MATCH(D504,CNTR_List_ExistPurchPrecNames,0)),\"\"))","v":""},{"$f":"IF($D504=\"\",\"\",IFERROR(SUM($G504)*SUM(INDEX(F_Tools!$T$100:$T$129,MATCH($D504,F_Tools!$E$100:$E$129,0)))/K485,\"\"))","v":""},{"$f":"IF($D504=\"\",\"\",IFERROR(SUM($G504)*SUM(INDEX(F_Tools!$U$100:$U$129,MATCH($D504,F_Tools!$E$100:$E$129,0)))/K485,\"\"))","v":""},{"$nulls":8},{"$f":"CONST_PrecursorToGoodInput&D504&\"_\"&D483","v":"PrecToGood__"},null,{"$f":"SUMIF(D_Processes!R:R,AB504,D_Processes!K:K)","v":0},{"$f":"SUMIF(D_Processes!R:R,CONST_CNTR_TotProd&D504,D_Processes!L:L)","v":0},null,false]
[null,null,19,{"$f":"IF(D483=\"\",\"\",IF(COUNTIF(INDEX(CNTR_IOSupplyChain,MATCH(D483,CNTR_IOProcAndPrec,0),),C505)=0,\"\",INDEX(CNTR_IOProcAndPrec,MATCH(C505,INDEX(CNTR_IOSupplyChain,MATCH(D483,CNTR_IOProcAndPrec,0),),0))))","v":""},null,"",{"$f":"IF(D505=\"\",\"\",INDEX(CNTR_Matrix_Inv,MATCH(D483,CNTR_IOProcAndPrec,0),MATCH(D505,CNTR_IOProcAndPrec,0)))","v":""},{"$f":"IF(D505=\"\",\"\",IF(AG505,INDEX(E_PurchPrec!U:U,MATCH(CONST_PurchPrecDefaultUsed&D505,E_PurchPrec!R:R,0)),CONST_NA))","v":""},{"$f":"IF($D505=\"\",\"\",SUM($G505)*SUM(INDEX(InputOutput!$AJ$71:$AJ$100,MATCH($D505,InputOutput!$D$71:$D$100,0))))","v":""},{"$f":"IF($D505=\"\",\"\",SUM($G505)*SUM(INDEX(InputOutput!$AL$71:$AL$100,MATCH($D505,InputOutput!$D$71:$D$100,0))))","v":""},"",{"$f":"IF(D505=\"\",\"\",SUM(I505)*SUM(AD486))","v":""},{"$f":"IF(D505=\"\",\"\",SUM(J505)*SUM(AD486))","v":""},"",{"$f":"IF(AG505,INDEX(E_PurchPrec!U:U,MATCH(CONST_CNTR_ElecEFMethod&D505,E_PurchPrec!R:R,0)),INDEX(D_Processes!T:T,MATCH(CONST_CNTR_ElecEFMethod&D505,D_Processes!R:R,0)))","v":""},{"$f":"IF(OR($D505=\"\",$AG505),\"\",SUM($G505)*SUM(INDEX(InputOutput!$AN$71:$AN$100,MATCH($D505,InputOutput!$D$71:$D$100,0))))","v":""},{"$f":"IF(D505=\"\",\"\",IF(AG505,INDEX(A_InstData!$F$101:$F$120,MATCH(D505,CNTR_List_ExistPurchPrecNames,0)),\"\"))","v":""},{"$f":"IF($D505=\"\",\"\",IFERROR(SUM($G505)*SUM(INDEX(F_Tools!$T$100:$T$129,MATCH($D505,F_Tools!$E$100:$E$129,0)))/K485,\"\"))","v":""},{"$f":"IF($D505=\"\",\"\",IFERROR(SUM($G505)*SUM(INDEX(F_Tools!$U$100:$U$129,MATCH($D505,F_Tools!$E$100:$E$129,0)))/K485,\"\"))","v":""},{"$nulls":8},{"$f":"CONST_PrecursorToGoodInput&D505&\"_\"&D483","v":"PrecToGood__"},null,{"$f":"SUMIF(D_Processes!R:R,AB505,D_Processes!K:K)","v":0},{"$f":"SUMIF(D_Processes!R:R,CONST_CNTR_TotProd&D505,D_Processes!L:L)","v":0},null,false]
[null,null,20,{"$f":"IF(D483=\"\",\"\",IF(COUNTIF(INDEX(CNTR_IOSupplyChain,MATCH(D483,CNTR_IOProcAndPrec,0),),C506)=0,\"\",INDEX(CNTR_IOProcAndPrec,MATCH(C506,INDEX(CNTR_IOSupplyChain,MATCH(D483,CNTR_IOProcAndPrec,0),),0))))","v":""},null,"",{"$f":"IF(D506=\"\",\"\",INDEX(CNTR_Matrix_Inv,MATCH(D483,CNTR_IOProcAndPrec,0),MATCH(D506,CNTR_IOProcAndPrec,0)))","v":""},{"$f":"IF(D506=\"\",\"\",IF(AG506,INDEX(E_PurchPrec!U:U,MATCH(CONST_PurchPrecDefaultUsed&D506,E_PurchPrec!R:R,0)),CONST_NA))","v":""},{"$f":"IF($D506=\"\",\"\",SUM($G506)*SUM(INDEX(InputOutput!$AJ$71:$AJ$100,MATCH($D506,InputOutput!$D$71:$D$100,0))))","v":""},{"$f":"IF($D506=\"\",\"\",SUM($G506)*SUM(INDEX(InputOutput!$AL$71:$AL$100,MATCH($D506,InputOutput!$D$71:$D$100,0))))","v":""},"",{"$f":"IF(D506=\"\",\"\",SUM(I506)*SUM(AD486))","v":""},{"$f":"IF(D506=\"\",\"\",SUM(J506)*SUM(AD486))","v":""},"",{"$f":"IF(AG506,INDEX(E_PurchPrec!U:U,MATCH(CONST_CNTR_ElecEFMethod&D506,E_PurchPrec!R:R,0)),INDEX(D_Processes!T:T,MATCH(CONST_CNTR_ElecEFMethod&D506,D_Processes!R:R,0)))","v":""},{"$f":"IF(OR($D506=\"\",$AG506),\"\",SUM($G506)*SUM(INDEX(InputOutput!$AN$71:$AN$100,MATCH($D506,InputOutput!$D$71:$D$100,0))))","v":""},{"$f":"IF(D506=\"\",\"\",IF(AG506,INDEX(A_InstData!$F$101:$F$120,MATCH(D506,CNTR_List_ExistPurchPrecNames,0)),\"\"))","v":""},{"$f":"IF($D506=\"\",\"\",IFERROR(SUM($G506)*SUM(INDEX(F_Tools!$T$100:$T$129,MATCH($D506,F_Tools!$E$100:$E$129,0)))/K485,\"\"))","v":""},{"$f":"IF($D506=\"\",\"\",IFERROR(SUM($G506)*SUM(INDEX(F_Tools!$U$100:$U$129,MATCH($D506,F_Tools!$E$100:$E$129,0)))/K485,\"\"))","v":""},{"$nulls":8},{"$f":"CONST_PrecursorToGoodInput&D506&\"_\"&D483","v":"PrecToGood__"},null,{"$f":"SUMIF(D_Processes!R:R,AB506,D_Processes!K:K)","v":0},{"$f":"SUMIF(D_Processes!R:R,CONST_CNTR_TotProd&D506,D_Processes!L:L)","v":0},null,false]
[null,null,21,{"$f":"IF(D483=\"\",\"\",IF(COUNTIF(INDEX(CNTR_IOSupplyChain,MATCH(D483,CNTR_IOProcAndPrec,0),),C507)=0,\"\",INDEX(CNTR_IOProcAndPrec,MATCH(C507,INDEX(CNTR_IOSupplyChain,MATCH(D483,CNTR_IOProcAndPrec,0),),0))))","v":""},null,"",{"$f":"IF(D507=\"\",\"\",INDEX(CNTR_Matrix_Inv,MATCH(D483,CNTR_IOProcAndPrec,0),MATCH(D507,CNTR_IOProcAndPrec,0)))","v":""},{"$f":"IF(D507=\"\",\"\",IF(AG507,INDEX(E_PurchPrec!U:U,MATCH(CONST_PurchPrecDefaultUsed&D507,E_PurchPrec!R:R,0)),CONST_NA))","v":""},{"$f":"IF($D507=\"\",\"\",SUM($G507)*SUM(INDEX(InputOutput!$AJ$71:$AJ$100,MATCH($D507,InputOutput!$D$71:$D$100,0))))","v":""},{"$f":"IF($D507=\"\",\"\",SUM($G507)*SUM(INDEX(InputOutput!$AL$71:$AL$100,MATCH($D507,InputOutput!$D$71:$D$100,0))))","v":""},"",{"$f":"IF(D507=\"\",\"\",SUM(I507)*SUM(AD486))","v":""},{"$f":"IF(D507=\"\",\"\",SUM(J507)*SUM(AD486))","v":""},"",{"$f":"IF(AG507,INDEX(E_PurchPrec!U:U,MATCH(CONST_CNTR_ElecEFMethod&D507,E_PurchPrec!R:R,0)),INDEX(D_Processes!T:T,MATCH(CONST_CNTR_ElecEFMethod&D507,D_Processes!R:R,0)))","v":""},{"$f":"IF(OR($D507=\"\",$AG507),\"\",SUM($G507)*SUM(INDEX(InputOutput!$AN$71:$AN$100,MATCH($D507,InputOutput!$D$71:$D$100,0))))","v":""},{"$f":"IF(D507=\"\",\"\",IF(AG507,INDEX(A_InstData!$F$101:$F$120,MATCH(D507,CNTR_List_ExistPurchPrecNames,0)),\"\"))","v":""},{"$f":"IF($D507=\"\",\"\",IFERROR(SUM($G507)*SUM(INDEX(F_Tools!$T$100:$T$129,MATCH($D507,F_Tools!$E$100:$E$129,0)))/K485,\"\"))","v":""},{"$f":"IF($D507=\"\",\"\",IFERROR(SUM($G507)*SUM(INDEX(F_Tools!$U$100:$U$129,MATCH($D507,F_Tools!$E$100:$E$129,0)))/K485,\"\"))","v":""},{"$nulls":8},{"$f":"CONST_PrecursorToGoodInput&D507&\"_\"&D483","v":"PrecToGood__"},null,{"$f":"SUMIF(D_Processes!R:R,AB507,D_Processes!K:K)","v":0},{"$f":"SUMIF(D_Processes!R:R,CONST_CNTR_TotProd&D507,D_Processes!L:L)","v":0},null,false]
[null,null,22,{"$f":"IF(D483=\"\",\"\",IF(COUNTIF(INDEX(CNTR_IOSupplyChain,MATCH(D483,CNTR_IOProcAndPrec,0),),C508)=0,\"\",INDEX(CNTR_IOProcAndPrec,MATCH(C508,INDEX(CNTR_IOSupplyChain,MATCH(D483,CNTR_IOProcAndPrec,0),),0))))","v":""},null,"",{"$f":"IF(D508=\"\",\"\",INDEX(CNTR_Matrix_Inv,MATCH(D483,CNTR_IOProcAndPrec,0),MATCH(D508,CNTR_IOProcAndPrec,0)))","v":""},{"$f":"IF(D508=\"\",\"\",IF(AG508,INDEX(E_PurchPrec!U:U,MATCH(CONST_PurchPrecDefaultUsed&D508,E_PurchPrec!R:R,0)),CONST_NA))","v":""},{"$f":"IF($D508=\"\",\"\",SUM($G508)*SUM(INDEX(InputOutput!$AJ$71:$AJ$100,MATCH($D508,InputOutput!$D$71:$D$100,0))))","v":""},{"$f":"IF($D508=\"\",\"\",SUM($G508)*SUM(INDEX(InputOutput!$AL$71:$AL$100,MATCH($D508,InputOutput!$D$71:$D$100,0))))","v":""},"",{"$f":"IF(D508=\"\",\"\",SUM(I508)*SUM(AD486))","v":""},{"$f":"IF(D508=\"\",\"\",SUM(J508)*SUM(AD486))","v":""},"",{"$f":"IF(AG508,INDEX(E_PurchPrec!U:U,MATCH(CONST_CNTR_ElecEFMethod&D508,E_PurchPrec!R:R,0)),INDEX(D_Processes!T:T,MATCH(CONST_CNTR_ElecEFMethod&D508,D_Processes!R:R,0)))","v":""},{"$f":"IF(OR($D508=\"\",$AG508),\"\",SUM($G508)*SUM(INDEX(InputOutput!$AN$71:$AN$100,MATCH($D508,InputOutput!$D$71:$D$100,0))))","v":""},{"$f":"IF(D508=\"\",\"\",IF(AG508,INDEX(A_InstData!$F$101:$F$120,MATCH(D508,CNTR_List_ExistPurchPrecNames,0)),\"\"))","v":""},{"$f":"IF($D508=\"\",\"\",IFERROR(SUM($G508)*SUM(INDEX(F_Tools!$T$100:$T$129,MATCH($D508,F_Tools!$E$100:$E$129,0)))/K485,\"\"))","v":""},{"$f":"IF($D508=\"\",\"\",IFERROR(SUM($G508)*SUM(INDEX(F_Tools!$U$100:$U$129,MATCH($D508,F_Tools!$E$100:$E$129,0)))/K485,\"\"))","v":""},{"$nulls":8},{"$f":"CONST_PrecursorToGoodInput&D508&\"_\"&D483","v":"PrecToGood__"},null,{"$f":"SUMIF(D_Processes!R:R,AB508,D_Processes!K:K)","v":0},{"$f":"SUMIF(D_Processes!R:R,CONST_CNTR_TotProd&D508,D_Processes!L:L)","v":0},null,false]
[null,null,23,{"$f":"IF(D483=\"\",\"\",IF(COUNTIF(INDEX(CNTR_IOSupplyChain,MATCH(D483,CNTR_IOProcAndPrec,0),),C509)=0,\"\",INDEX(CNTR_IOProcAndPrec,MATCH(C509,INDEX(CNTR_IOSupplyChain,MATCH(D483,CNTR_IOProcAndPrec,0),),0))))","v":""},null,"",{"$f":"IF(D509=\"\",\"\",INDEX(CNTR_Matrix_Inv,MATCH(D483,CNTR_IOProcAndPrec,0),MATCH(D509,CNTR_IOProcAndPrec,0)))","v":""},{"$f":"IF(D509=\"\",\"\",IF(AG509,INDEX(E_PurchPrec!U:U,MATCH(CONST_PurchPrecDefaultUsed&D509,E_PurchPrec!R:R,0)),CONST_NA))","v":""},{"$f":"IF($D509=\"\",\"\",SUM($G509)*SUM(INDEX(InputOutput!$AJ$71:$AJ$100,MATCH($D509,InputOutput!$D$71:$D$100,0))))","v":""},{"$f":"IF($D509=\"\",\"\",SUM($G509)*SUM(INDEX(InputOutput!$AL$71:$AL$100,MATCH($D509,InputOutput!$D$71:$D$100,0))))","v":""},"",{"$f":"IF(D509=\"\",\"\",SUM(I509)*SUM(AD486))","v":""},{"$f":"IF(D509=\"\",\"\",SUM(J509)*SUM(AD486))","v":""},"",{"$f":"IF(AG509,INDEX(E_PurchPrec!U:U,MATCH(CONST_CNTR_ElecEFMethod&D509,E_PurchPrec!R:R,0)),INDEX(D_Processes!T:T,MATCH(CONST_CNTR_ElecEFMethod&D509,D_Processes!R:R,0)))","v":""},{"$f":"IF(OR($D509=\"\",$AG509),\"\",SUM($G509)*SUM(INDEX(InputOutput!$AN$71:$AN$100,MATCH($D509,InputOutput!$D$71:$D$100,0))))","v":""},{"$f":"IF(D509=\"\",\"\",IF(AG509,INDEX(A_InstData!$F$101:$F$120,MATCH(D509,CNTR_List_ExistPurchPrecNames,0)),\"\"))","v":""},{"$f":"IF($D509=\"\",\"\",IFERROR(SUM($G509)*SUM(INDEX(F_Tools!$T$100:$T$129,MATCH($D509,F_Tools!$E$100:$E$129,0)))/K485,\"\"))","v":""},{"$f":"IF($D509=\"\",\"\",IFERROR(SUM($G509)*SUM(INDEX(F_Tools!$U$100:$U$129,MATCH($D509,F_Tools!$E$100:$E$129,0)))/K485,\"\"))","v":""},{"$nulls":8},{"$f":"CONST_PrecursorToGoodInput&D509&\"_\"&D483","v":"PrecToGood__"},null,{"$f":"SUMIF(D_Processes!R:R,AB509,D_Processes!K:K)","v":0},{"$f":"SUMIF(D_Processes!R:R,CONST_CNTR_TotProd&D509,D_Processes!L:L)","v":0},null,false]
[null,null,24,{"$f":"IF(D483=\"\",\"\",IF(COUNTIF(INDEX(CNTR_IOSupplyChain,MATCH(D483,CNTR_IOProcAndPrec,0),),C510)=0,\"\",INDEX(CNTR_IOProcAndPrec,MATCH(C510,INDEX(CNTR_IOSupplyChain,MATCH(D483,CNTR_IOProcAndPrec,0),),0))))","v":""},null,"",{"$f":"IF(D510=\"\",\"\",INDEX(CNTR_Matrix_Inv,MATCH(D483,CNTR_IOProcAndPrec,0),MATCH(D510,CNTR_IOProcAndPrec,0)))","v":""},{"$f":"IF(D510=\"\",\"\",IF(AG510,INDEX(E_PurchPrec!U:U,MATCH(CONST_PurchPrecDefaultUsed&D510,E_PurchPrec!R:R,0)),CONST_NA))","v":""},{"$f":"IF($D510=\"\",\"\",SUM($G510)*SUM(INDEX(InputOutput!$AJ$71:$AJ$100,MATCH($D510,InputOutput!$D$71:$D$100,0))))","v":""},{"$f":"IF($D510=\"\",\"\",SUM($G510)*SUM(INDEX(InputOutput!$AL$71:$AL$100,MATCH($D510,InputOutput!$D$71:$D$100,0))))","v":""},"",{"$f":"IF(D510=\"\",\"\",SUM(I510)*SUM(AD486))","v":""},{"$f":"IF(D510=\"\",\"\",SUM(J510)*SUM(AD486))","v":""},"",{"$f":"IF(AG510,INDEX(E_PurchPrec!U:U,MATCH(CONST_CNTR_ElecEFMethod&D510,E_PurchPrec!R:R,0)),INDEX(D_Processes!T:T,MATCH(CONST_CNTR_ElecEFMethod&D510,D_Processes!R:R,0)))","v":""},{"$f":"IF(OR($D510=\"\",$AG510),\"\",SUM($G510)*SUM(INDEX(InputOutput!$AN$71:$AN$100,MATCH($D510,InputOutput!$D$71:$D$100,0))))","v":""},{"$f":"IF(D510=\"\",\"\",IF(AG510,INDEX(A_InstData!$F$101:$F$120,MATCH(D510,CNTR_List_ExistPurchPrecNames,0)),\"\"))","v":""},{"$f":"IF($D510=\"\",\"\",IFERROR(SUM($G510)*SUM(INDEX(F_Tools!$T$100:$T$129,MATCH($D510,F_Tools!$E$100:$E$129,0)))/K485,\"\"))","v":""},{"$f":"IF($D510=\"\",\"\",IFERROR(SUM($G510)*SUM(INDEX(F_Tools!$U$100:$U$129,MATCH($D510,F_Tools!$E$100:$E$129,0)))/K485,\"\"))","v":""},{"$nulls":8},{"$f":"CONST_PrecursorToGoodInput&D510&\"_\"&D483","v":"PrecToGood__"},null,{"$f":"SUMIF(D_Processes!R:R,AB510,D_Processes!K:K)","v":0},{"$f":"SUMIF(D_Processes!R:R,CONST_CNTR_TotProd&D510,D_Processes!L:L)","v":0},null,false]
[null,null,25,{"$f":"IF(D483=\"\",\"\",IF(COUNTIF(INDEX(CNTR_IOSupplyChain,MATCH(D483,CNTR_IOProcAndPrec,0),),C511)=0,\"\",INDEX(CNTR_IOProcAndPrec,MATCH(C511,INDEX(CNTR_IOSupplyChain,MATCH(D483,CNTR_IOProcAndPrec,0),),0))))","v":""},null,"",{"$f":"IF(D511=\"\",\"\",INDEX(CNTR_Matrix_Inv,MATCH(D483,CNTR_IOProcAndPrec,0),MATCH(D511,CNTR_IOProcAndPrec,0)))","v":""},{"$f":"IF(D511=\"\",\"\",IF(AG511,INDEX(E_PurchPrec!U:U,MATCH(CONST_PurchPrecDefaultUsed&D511,E_PurchPrec!R:R,0)),CONST_NA))","v":""},{"$f":"IF($D511=\"\",\"\",SUM($G511)*SUM(INDEX(InputOutput!$AJ$71:$AJ$100,MATCH($D511,InputOutput!$D$71:$D$100,0))))","v":""},{"$f":"IF($D511=\"\",\"\",SUM($G511)*SUM(INDEX(InputOutput!$AL$71:$AL$100,MATCH($D511,InputOutput!$D$71:$D$100,0))))","v":""},"",{"$f":"IF(D511=\"\",\"\",SUM(I511)*SUM(AD486))","v":""},{"$f":"IF(D511=\"\",\"\",SUM(J511)*SUM(AD486))","v":""},"",{"$f":"IF(AG511,INDEX(E_PurchPrec!U:U,MATCH(CONST_CNTR_ElecEFMethod&D511,E_PurchPrec!R:R,0)),INDEX(D_Processes!T:T,MATCH(CONST_CNTR_ElecEFMethod&D511,D_Processes!R:R,0)))","v":""},{"$f":"IF(OR($D511=\"\",$AG511),\"\",SUM($G511)*SUM(INDEX(InputOutput!$AN$71:$AN$100,MATCH($D511,InputOutput!$D$71:$D$100,0))))","v":""},{"$f":"IF(D511=\"\",\"\",IF(AG511,INDEX(A_InstData!$F$101:$F$120,MATCH(D511,CNTR_List_ExistPurchPrecNames,0)),\"\"))","v":""},{"$f":"IF($D511=\"\",\"\",IFERROR(SUM($G511)*SUM(INDEX(F_Tools!$T$100:$T$129,MATCH($D511,F_Tools!$E$100:$E$129,0)))/K485,\"\"))","v":""},{"$f":"IF($D511=\"\",\"\",IFERROR(SUM($G511)*SUM(INDEX(F_Tools!$U$100:$U$129,MATCH($D511,F_Tools!$E$100:$E$129,0)))/K485,\"\"))","v":""},{"$nulls":8},{"$f":"CONST_PrecursorToGoodInput&D511&\"_\"&D483","v":"PrecToGood__"},null,{"$f":"SUMIF(D_Processes!R:R,AB511,D_Processes!K:K)","v":0},{"$f":"SUMIF(D_Processes!R:R,CONST_CNTR_TotProd&D511,D_Processes!L:L)","v":0},null,false]
[null,null,26,{"$f":"IF(D483=\"\",\"\",IF(COUNTIF(INDEX(CNTR_IOSupplyChain,MATCH(D483,CNTR_IOProcAndPrec,0),),C512)=0,\"\",INDEX(CNTR_IOProcAndPrec,MATCH(C512,INDEX(CNTR_IOSupplyChain,MATCH(D483,CNTR_IOProcAndPrec,0),),0))))","v":""},null,"",{"$f":"IF(D512=\"\",\"\",INDEX(CNTR_Matrix_Inv,MATCH(D483,CNTR_IOProcAndPrec,0),MATCH(D512,CNTR_IOProcAndPrec,0)))","v":""},{"$f":"IF(D512=\"\",\"\",IF(AG512,INDEX(E_PurchPrec!U:U,MATCH(CONST_PurchPrecDefaultUsed&D512,E_PurchPrec!R:R,0)),CONST_NA))","v":""},{"$f":"IF($D512=\"\",\"\",SUM($G512)*SUM(INDEX(InputOutput!$AJ$71:$AJ$100,MATCH($D512,InputOutput!$D$71:$D$100,0))))","v":""},{"$f":"IF($D512=\"\",\"\",SUM($G512)*SUM(INDEX(InputOutput!$AL$71:$AL$100,MATCH($D512,InputOutput!$D$71:$D$100,0))))","v":""},"",{"$f":"IF(D512=\"\",\"\",SUM(I512)*SUM(AD486))","v":""},{"$f":"IF(D512=\"\",\"\",SUM(J512)*SUM(AD486))","v":""},"",{"$f":"IF(AG512,INDEX(E_PurchPrec!U:U,MATCH(CONST_CNTR_ElecEFMethod&D512,E_PurchPrec!R:R,0)),INDEX(D_Processes!T:T,MATCH(CONST_CNTR_ElecEFMethod&D512,D_Processes!R:R,0)))","v":""},{"$f":"IF(OR($D512=\"\",$AG512),\"\",SUM($G512)*SUM(INDEX(InputOutput!$AN$71:$AN$100,MATCH($D512,InputOutput!$D$71:$D$100,0))))","v":""},{"$f":"IF(D512=\"\",\"\",IF(AG512,INDEX(A_InstData!$F$101:$F$120,MATCH(D512,CNTR_List_ExistPurchPrecNames,0)),\"\"))","v":""},{"$f":"IF($D512=\"\",\"\",IFERROR(SUM($G512)*SUM(INDEX(F_Tools!$T$100:$T$129,MATCH($D512,F_Tools!$E$100:$E$129,0)))/K485,\"\"))","v":""},{"$f":"IF($D512=\"\",\"\",IFERROR(SUM($G512)*SUM(INDEX(F_Tools!$U$100:$U$129,MATCH($D512,F_Tools!$E$100:$E$129,0)))/K485,\"\"))","v":""},{"$nulls":8},{"$f":"CONST_PrecursorToGoodInput&D512&\"_\"&D483","v":"PrecToGood__"},null,{"$f":"SUMIF(D_Processes!R:R,AB512,D_Processes!K:K)","v":0},{"$f":"SUMIF(D_Processes!R:R,CONST_CNTR_TotProd&D512,D_Processes!L:L)","v":0},null,false]
[null,null,27,{"$f":"IF(D483=\"\",\"\",IF(COUNTIF(INDEX(CNTR_IOSupplyChain,MATCH(D483,CNTR_IOProcAndPrec,0),),C513)=0,\"\",INDEX(CNTR_IOProcAndPrec,MATCH(C513,INDEX(CNTR_IOSupplyChain,MATCH(D483,CNTR_IOProcAndPrec,0),),0))))","v":""},null,"",{"$f":"IF(D513=\"\",\"\",INDEX(CNTR_Matrix_Inv,MATCH(D483,CNTR_IOProcAndPrec,0),MATCH(D513,CNTR_IOProcAndPrec,0)))","v":""},{"$f":"IF(D513=\"\",\"\",IF(AG513,INDEX(E_PurchPrec!U:U,MATCH(CONST_PurchPrecDefaultUsed&D513,E_PurchPrec!R:R,0)),CONST_NA))","v":""},{"$f":"IF($D513=\"\",\"\",SUM($G513)*SUM(INDEX(InputOutput!$AJ$71:$AJ$100,MATCH($D513,InputOutput!$D$71:$D$100,0))))","v":""},{"$f":"IF($D513=\"\",\"\",SUM($G513)*SUM(INDEX(InputOutput!$AL$71:$AL$100,MATCH($D513,InputOutput!$D$71:$D$100,0))))","v":""},"",{"$f":"IF(D513=\"\",\"\",SUM(I513)*SUM(AD486))","v":""},{"$f":"IF(D513=\"\",\"\",SUM(J513)*SUM(AD486))","v":""},"",{"$f":"IF(AG513,INDEX(E_PurchPrec!U:U,MATCH(CONST_CNTR_ElecEFMethod&D513,E_PurchPrec!R:R,0)),INDEX(D_Processes!T:T,MATCH(CONST_CNTR_ElecEFMethod&D513,D_Processes!R:R,0)))","v":""},{"$f":"IF(OR($D513=\"\",$AG513),\"\",SUM($G513)*SUM(INDEX(InputOutput!$AN$71:$AN$100,MATCH($D513,InputOutput!$D$71:$D$100,0))))","v":""},{"$f":"IF(D513=\"\",\"\",IF(AG513,INDEX(A_InstData!$F$101:$F$120,MATCH(D513,CNTR_List_ExistPurchPrecNames,0)),\"\"))","v":""},{"$f":"IF($D513=\"\",\"\",IFERROR(SUM($G513)*SUM(INDEX(F_Tools!$T$100:$T$129,MATCH($D513,F_Tools!$E$100:$E$129,0)))/K485,\"\"))","v":""},{"$f":"IF($D513=\"\",\"\",IFERROR(SUM($G513)*SUM(INDEX(F_Tools!$U$100:$U$129,MATCH($D513,F_Tools!$E$100:$E$129,0)))/K485,\"\"))","v":""},{"$nulls":8},{"$f":"CONST_PrecursorToGoodInput&D513&\"_\"&D483","v":"PrecToGood__"},null,{"$f":"SUMIF(D_Processes!R:R,AB513,D_Processes!K:K)","v":0},{"$f":"SUMIF(D_Processes!R:R,CONST_CNTR_TotProd&D513,D_Processes!L:L)","v":0},null,false]
[null,null,28,{"$f":"IF(D483=\"\",\"\",IF(COUNTIF(INDEX(CNTR_IOSupplyChain,MATCH(D483,CNTR_IOProcAndPrec,0),),C514)=0,\"\",INDEX(CNTR_IOProcAndPrec,MATCH(C514,INDEX(CNTR_IOSupplyChain,MATCH(D483,CNTR_IOProcAndPrec,0),),0))))","v":""},null,"",{"$f":"IF(D514=\"\",\"\",INDEX(CNTR_Matrix_Inv,MATCH(D483,CNTR_IOProcAndPrec,0),MATCH(D514,CNTR_IOProcAndPrec,0)))","v":""},{"$f":"IF(D514=\"\",\"\",IF(AG514,INDEX(E_PurchPrec!U:U,MATCH(CONST_PurchPrecDefaultUsed&D514,E_PurchPrec!R:R,0)),CONST_NA))","v":""},{"$f":"IF($D514=\"\",\"\",SUM($G514)*SUM(INDEX(InputOutput!$AJ$71:$AJ$100,MATCH($D514,InputOutput!$D$71:$D$100,0))))","v":""},{"$f":"IF($D514=\"\",\"\",SUM($G514)*SUM(INDEX(InputOutput!$AL$71:$AL$100,MATCH($D514,InputOutput!$D$71:$D$100,0))))","v":""},"",{"$f":"IF(D514=\"\",\"\",SUM(I514)*SUM(AD486))","v":""},{"$f":"IF(D514=\"\",\"\",SUM(J514)*SUM(AD486))","v":""},"",{"$f":"IF(AG514,INDEX(E_PurchPrec!U:U,MATCH(CONST_CNTR_ElecEFMethod&D514,E_PurchPrec!R:R,0)),INDEX(D_Processes!T:T,MATCH(CONST_CNTR_ElecEFMethod&D514,D_Processes!R:R,0)))","v":""},{"$f":"IF(OR($D514=\"\",$AG514),\"\",SUM($G514)*SUM(INDEX(InputOutput!$AN$71:$AN$100,MATCH($D514,InputOutput!$D$71:$D$100,0))))","v":""},{"$f":"IF(D514=\"\",\"\",IF(AG514,INDEX(A_InstData!$F$101:$F$120,MATCH(D514,CNTR_List_ExistPurchPrecNames,0)),\"\"))","v":""},{"$f":"IF($D514=\"\",\"\",IFERROR(SUM($G514)*SUM(INDEX(F_Tools!$T$100:$T$129,MATCH($D514,F_Tools!$E$100:$E$129,0)))/K485,\"\"))","v":""},{"$f":"IF($D514=\"\",\"\",IFERROR(SUM($G514)*SUM(INDEX(F_Tools!$U$100:$U$129,MATCH($D514,F_Tools!$E$100:$E$129,0)))/K485,\"\"))","v":""},{"$nulls":8},{"$f":"CONST_PrecursorToGoodInput&D514&\"_\"&D483","v":"PrecToGood__"},null,{"$f":"SUMIF(D_Processes!R:R,AB514,D_Processes!K:K)","v":0},{"$f":"SUMIF(D_Processes!R:R,CONST_CNTR_TotProd&D514,D_Processes!L:L)","v":0},null,false]
[null,null,29,{"$f":"IF(D483=\"\",\"\",IF(COUNTIF(INDEX(CNTR_IOSupplyChain,MATCH(D483,CNTR_IOProcAndPrec,0),),C515)=0,\"\",INDEX(CNTR_IOProcAndPrec,MATCH(C515,INDEX(CNTR_IOSupplyChain,MATCH(D483,CNTR_IOProcAndPrec,0),),0))))","v":""},null,"",{"$f":"IF(D515=\"\",\"\",INDEX(CNTR_Matrix_Inv,MATCH(D483,CNTR_IOProcAndPrec,0),MATCH(D515,CNTR_IOProcAndPrec,0)))","v":""},{"$f":"IF(D515=\"\",\"\",IF(AG515,INDEX(E_PurchPrec!U:U,MATCH(CONST_PurchPrecDefaultUsed&D515,E_PurchPrec!R:R,0)),CONST_NA))","v":""},{"$f":"IF($D515=\"\",\"\",SUM($G515)*SUM(INDEX(InputOutput!$AJ$71:$AJ$100,MATCH($D515,InputOutput!$D$71:$D$100,0))))","v":""},{"$f":"IF($D515=\"\",\"\",SUM($G515)*SUM(INDEX(InputOutput!$AL$71:$AL$100,MATCH($D515,InputOutput!$D$71:$D$100,0))))","v":""},"",{"$f":"IF(D515=\"\",\"\",SUM(I515)*SUM(AD486))","v":""},{"$f":"IF(D515=\"\",\"\",SUM(J515)*SUM(AD486))","v":""},"",{"$f":"IF(AG515,INDEX(E_PurchPrec!U:U,MATCH(CONST_CNTR_ElecEFMethod&D515,E_PurchPrec!R:R,0)),INDEX(D_Processes!T:T,MATCH(CONST_CNTR_ElecEFMethod&D515,D_Processes!R:R,0)))","v":""},{"$f":"IF(OR($D515=\"\",$AG515),\"\",SUM($G515)*SUM(INDEX(InputOutput!$AN$71:$AN$100,MATCH($D515,InputOutput!$D$71:$D$100,0))))","v":""},{"$f":"IF(D515=\"\",\"\",IF(AG515,INDEX(A_InstData!$F$101:$F$120,MATCH(D515,CNTR_List_ExistPurchPrecNames,0)),\"\"))","v":""},{"$f":"IF($D515=\"\",\"\",IFERROR(SUM($G515)*SUM(INDEX(F_Tools!$T$100:$T$129,MATCH($D515,F_Tools!$E$100:$E$129,0)))/K485,\"\"))","v":""},{"$f":"IF($D515=\"\",\"\",IFERROR(SUM($G515)*SUM(INDEX(F_Tools!$U$100:$U$129,MATCH($D515,F_Tools!$E$100:$E$129,0)))/K485,\"\"))","v":""},{"$nulls":8},{"$f":"CONST_PrecursorToGoodInput&D515&\"_\"&D483","v":"PrecToGood__"},null,{"$f":"SUMIF(D_Processes!R:R,AB515,D_Processes!K:K)","v":0},{"$f":"SUMIF(D_Processes!R:R,CONST_CNTR_TotProd&D515,D_Processes!L:L)","v":0},null,false]
[null,null,30,{"$f":"IF(D483=\"\",\"\",IF(COUNTIF(INDEX(CNTR_IOSupplyChain,MATCH(D483,CNTR_IOProcAndPrec,0),),C516)=0,\"\",INDEX(CNTR_IOProcAndPrec,MATCH(C516,INDEX(CNTR_IOSupplyChain,MATCH(D483,CNTR_IOProcAndPrec,0),),0))))","v":""},null,"",{"$f":"IF(D516=\"\",\"\",INDEX(CNTR_Matrix_Inv,MATCH(D483,CNTR_IOProcAndPrec,0),MATCH(D516,CNTR_IOProcAndPrec,0)))","v":""},{"$f":"IF(D516=\"\",\"\",IF(AG516,INDEX(E_PurchPrec!U:U,MATCH(CONST_PurchPrecDefaultUsed&D516,E_PurchPrec!R:R,0)),CONST_NA))","v":""},{"$f":"IF($D516=\"\",\"\",SUM($G516)*SUM(INDEX(InputOutput!$AJ$71:$AJ$100,MATCH($D516,InputOutput!$D$71:$D$100,0))))","v":""},{"$f":"IF($D516=\"\",\"\",SUM($G516)*SUM(INDEX(InputOutput!$AL$71:$AL$100,MATCH($D516,InputOutput!$D$71:$D$100,0))))","v":""},"",{"$f":"IF(D516=\"\",\"\",SUM(I516)*SUM(AD486))","v":""},{"$f":"IF(D516=\"\",\"\",SUM(J516)*SUM(AD486))","v":""},"",{"$f":"IF(AG516,INDEX(E_PurchPrec!U:U,MATCH(CONST_CNTR_ElecEFMethod&D516,E_PurchPrec!R:R,0)),INDEX(D_Processes!T:T,MATCH(CONST_CNTR_ElecEFMethod&D516,D_Processes!R:R,0)))","v":""},{"$f":"IF(OR($D516=\"\",$AG516),\"\",SUM($G516)*SUM(INDEX(InputOutput!$AN$71:$AN$100,MATCH($D516,InputOutput!$D$71:$D$100,0))))","v":""},{"$f":"IF(D516=\"\",\"\",IF(AG516,INDEX(A_InstData!$F$101:$F$120,MATCH(D516,CNTR_List_ExistPurchPrecNames,0)),\"\"))","v":""},{"$f":"IF($D516=\"\",\"\",IFERROR(SUM($G516)*SUM(INDEX(F_Tools!$T$100:$T$129,MATCH($D516,F_Tools!$E$100:$E$129,0)))/K485,\"\"))","v":""},{"$f":"IF($D516=\"\",\"\",IFERROR(SUM($G516)*SUM(INDEX(F_Tools!$U$100:$U$129,MATCH($D516,F_Tools!$E$100:$E$129,0)))/K485,\"\"))","v":""},{"$nulls":8},{"$f":"CONST_PrecursorToGoodInput&D516&\"_\"&D483","v":"PrecToGood__"},null,{"$f":"SUMIF(D_Processes!R:R,AB516,D_Processes!K:K)","v":0},{"$f":"SUMIF(D_Processes!R:R,CONST_CNTR_TotProd&D516,D_Processes!L:L)","v":0},null,false]
[]
[]
[]
["ausblenden",{"$nulls":19},"PRINT"]

{"sheet":"Summary_Products","index":12,"n_rows":314,"n_cols":67,"rows_kept":314,"merged":[[1,1,3,3],[1,4,1,5],[1,8,1,9],[1,10,1,11],[1,12,1,13],[1,14,1,15],[1,16,1,17],[1,18,1,19],[1,20,1,21],[1,22,1,23],[1,24,1,25],[1,26,1,27],[1,28,1,29],[1,30,1,31],[1,32,1,33],[1,34,1,35],[1,36,1,37],[1,38,1,39],[1,40,1,41],[1,43,1,44],[1,45,1,46],[1,47,1,48],[1,49,1,50],[1,51,1,52],[2,4,2,5],[2,8,2,9],[2,10,2,11],[2,12,2,13],[2,14,2,15],[2,16,2,17],[2,18,2,19],[2,20,2,21],[2,22,2,23],[2,24,2,25],[2,26,2,27],[2,28,2,29],[2,30,2,31],[2,32,2,33],[2,34,2,35],[2,36,2,37],[2,38,2,39],[2,40,2,41],[2,43,2,44],[2,45,2,46],[2,47,2,48],[2,49,2,50],[2,51,2,52],[3,4,3,5],[3,8,3,9],[3,10,3,11],[3,12,3,13],[3,14,3,15],[3,16,3,17],[3,18,3,19],[3,20,3,21],[3,22,3,23],[3,24,3,25],[3,26,3,27],[3,28,3,29],[3,30,3,31],[3,32,3,33],[3,34,3,35],[3,36,3,37],[3,38,3,39],[3,40,3,41],[3,43,3,44],[3,45,3,46],[3,47,3,48],[3,49,3,50],[3,51,3,52],[5,3,5,6],[7,39,7,40],[7,41,7,42],[7,43,7,44],[7,47,7,48],[7,49,7,50],[7,51,7,52]]}
["ausblenden",{"$nulls":53},"ausblenden","ausblenden","ausblenden","ausblenden","ausblenden","ausblenden","ausblenden","ausblenden","ausblenden","ausblenden","ausblenden","ausblenden","ausblenden"]
[null,{"$f":"Translations!$B$465","v":"Summary of products"},null,null,{"$f":"Translations!$B$11","v":"Navigation Area:"},null,{"$f":"HYPERLINK(\"#\"&ADDRESS(2,3,,,a_Contents!$U$2),a_Contents!$B$2)","v":"Table of contents"},{"$f":"HYPERLINK(\"#\"&ADDRESS(2,3,,,G_FurtherGuidance!$U$2),G_FurtherGuidance!$B$2)","v":"Further Guidance"},{"$f":"HYPERLINK(\"#\"&ADDRESS(2,3,,,Summary_Processes!$Y$2),Summary_Processes!$Y$2)","v":"Summary_Processes"},{"$nulls":45},"Print area:",{"$f":"ADDRESS(ROW($B$2),COLUMN($B$2))&\":\"&ADDRESS(MATCH(\"PRINT\",$BB:$BB,0),COLUMN($BB$2))","v":"$B$2:$BB$111"},"Name of this sheet",{"$f":"IF(ISERROR(CELL(\"filename\",BG2)),\"MSParameters\",MID(CELL(\"filename\",BG2),FIND(\"]\",CELL(\"filename\",BG2))+1,1024))","v":"Summary_Products"}]
[{"$nulls":6},{"$f":"IFERROR(HYPERLINK(\"#\"&ADDRESS(ROW($C$1)+MATCH(U3,$C:$C,0)-1,COLUMN($C$1)),INDEX($U:$U,MATCH(U3,$C:$C,0))),\"\")","v":""},{"$f":"IFERROR(HYPERLINK(\"#\"&ADDRESS(ROW($C$1)+MATCH(W3,$C:$C,0)-1,COLUMN($C$1)),INDEX($U:$U,MATCH(W3,$C:$C,0))),\"\")","v":""},{"$f":"IFERROR(HYPERLINK(\"#\"&ADDRESS(ROW($C$1)+MATCH(Z3,$C:$C,0)-1,COLUMN($C$1)),INDEX($U:$U,MATCH(Z3,$C:$C,0))),\"\")","v":""},null,{"$f":"IFERROR(HYPERLINK(\"#\"&ADDRESS(ROW($C$1)+MATCH(AB3,$C:$C,0)-1,COLUMN($C$1)),INDEX($U:$U,MATCH(AB3,$C:$C,0))),\"\")","v":""},null,{"$f":"IFERROR(HYPERLINK(\"#\"&ADDRESS(ROW($C$1)+MATCH(AD3,$C:$C,0)-1,COLUMN($C$1)),INDEX($U:$U,MATCH(AD3,$C:$C,0))),\"\")","v":""},null,{"$f":"IFERROR(HYPERLINK(\"#\"&ADDRESS(ROW($C$1)+MATCH(AF3,$C:$C,0)-1,COLUMN($C$1)),INDEX($U:$U,MATCH(AF3,$C:$C,0))),\"\")","v":""},null,{"$f":"IFERROR(HYPERLINK(\"#\"&ADDRESS(ROW($C$1)+MATCH(AH3,$C:$C,0)-1,COLUMN($C$1)),INDEX($U:$U,MATCH(AH3,$C:$C,0))),\"\")","v":""},null,{"$f":"IFERROR(HYPERLINK(\"#\"&ADDRESS(ROW($C$1)+MATCH(AJ3,$C:$C,0)-1,COLUMN($C$1)),INDEX($U:$U,MATCH(AJ3,$C:$C,0))),\"\")","v":""},null,{"$f":"IFERROR(HYPERLINK(\"#\"&ADDRESS(ROW($C$1)+MATCH(AL3,$C:$C,0)-1,COLUMN($C$1)),INDEX($U:$U,MATCH(AL3,$C:$C,0))),\"\")","v":""},null,{"$f":"IFERROR(HYPERLINK(\"#\"&ADDRESS(ROW($C$1)+MATCH(AN3,$C:$C,0)-1,COLUMN($C$1)),INDEX($U:$U,MATCH(AN3,$C:$C,0))),\"\")","v":""},null,{"$f":"IFERROR(HYPERLINK(\"#\"&ADDRESS(ROW($C$1)+MATCH(AP3,$C:$C,0)-1,COLUMN($C$1)),INDEX($U:$U,MATCH(AP3,$C:$C,0))),\"\")","v":""},null,{"$f":"IFERROR(HYPERLINK(\"#\"&ADDRESS(ROW($C$1)+MATCH(AS3,$C:$C,0)-1,COLUMN($C$1)),INDEX($U:$U,MATCH(AS3,$C:$C,0))),\"\")","v":""},null,{"$f":"IFERROR(HYPERLINK(\"#\"&ADDRESS(ROW($C$1)+MATCH(AU3,$C:$C,0)-1,COLUMN($C$1)),INDEX($U:$U,MATCH(AU3,$C:$C,0))),\"\")","v":""},null,{"$f":"IFERROR(HYPERLINK(\"#\"&ADDRESS(ROW($C$1)+MATCH(AW3,$C:$C,0)-1,COLUMN($C$1)),INDEX($U:$U,MATCH(AW3,$C:$C,0))),\"\")","v":""},null,{"$f":"IFERROR(HYPERLINK(\"#\"&ADDRESS(ROW($C$1)+MATCH(AY3,$C:$C,0)-1,COLUMN($C$1)),INDEX($U:$U,MATCH(AY3,$C:$C,0))),\"\")","v":""},null,{"$f":"IFERROR(HYPERLINK(\"#\"&ADDRESS(ROW($C$1)+MATCH(BA3,$C:$C,0)-1,COLUMN($C$1)),INDEX($U:$U,MATCH(BA3,$C:$C,0))),\"\")","v":""},null,{"$f":"IFERROR(HYPERLINK(\"#\"&ADDRESS(ROW($C$1)+MATCH(BC3,$C:$C,0)-1,COLUMN($C$1)),INDEX($U:$U,MATCH(BC3,$C:$C,0))),\"\")","v":""},null,{"$f":"IFERROR(HYPERLINK(\"#\"&ADDRESS(ROW($C$1)+MATCH(BE3,$C:$C,0)-1,COLUMN($C$1)),INDEX($U:$U,MATCH(BE3,$C:$C,0))),\"\")","v":""},null,{"$f":"IFERROR(HYPERLINK(\"#\"&ADDRESS(ROW($C$1)+MATCH(BG3,$C:$C,0)-1,COLUMN($C$1)),INDEX($U:$U,MATCH(BG3,$C:$C,0))),\"\")","v":""},null,null,{"$f":"IFERROR(HYPERLINK(\"#\"&ADDRESS(ROW($C$1)+MATCH(BI3,$C:$C,0)-1,COLUMN($C$1)),INDEX($U:$U,MATCH(BI3,$C:$C,0))),\"\")","v":""},null,{"$f":"IFERROR(HYPERLINK(\"#\"&ADDRESS(ROW($C$1)+MATCH(BK3,$C:$C,0)-1,COLUMN($C$1)),INDEX($U:$U,MATCH(BK3,$C:$C,0))),\"\")","v":""},null,{"$f":"IFERROR(HYPERLINK(\"#\"&ADDRESS(ROW($C$1)+MATCH(BM3,$C:$C,0)-1,COLUMN($C$1)),INDEX($U:$U,MATCH(BM3,$C:$C,0))),\"\")","v":""},null,{"$f":"IFERROR(HYPERLINK(\"#\"&ADDRESS(ROW($C$1)+MATCH(BO3,$C:$C,0)-1,COLUMN($C$1)),INDEX($U:$U,MATCH(BO3,$C:$C,0))),\"\")","v":""},null,{"$f":"IFERROR(HYPERLINK(\"#\"&ADDRESS(ROW($C$1)+MATCH(BQ3,$C:$C,0)-1,COLUMN($C$1)),INDEX($U:$U,MATCH(BQ3,$C:$C,0))),\"\")","v":""}]
[{"$nulls":6},{"$f":"IFERROR(HYPERLINK(\"#\"&ADDRESS(ROW($C$1)+MATCH(U4,$C:$C,0)-1,COLUMN($C$1)),INDEX($U:$U,MATCH(U4,$C:$C,0))),\"\")","v":""},{"$f":"IFERROR(HYPERLINK(\"#\"&ADDRESS(ROW($C$1)+MATCH(W4,$C:$C,0)-1,COLUMN($C$1)),INDEX($U:$U,MATCH(W4,$C:$C,0))),\"\")","v":""},{"$f":"IFERROR(HYPERLINK(\"#\"&ADDRESS(ROW($C$1)+MATCH(Z4,$C:$C,0)-1,COLUMN($C$1)),INDEX($U:$U,MATCH(Z4,$C:$C,0))),\"\")","v":""},null,{"$f":"IFERROR(HYPERLINK(\"#\"&ADDRESS(ROW($C$1)+MATCH(AB4,$C:$C,0)-1,COLUMN($C$1)),INDEX($U:$U,MATCH(AB4,$C:$C,0))),\"\")","v":""},null,{"$f":"IFERROR(HYPERLINK(\"#\"&ADDRESS(ROW($C$1)+MATCH(AD4,$C:$C,0)-1,COLUMN($C$1)),INDEX($U:$U,MATCH(AD4,$C:$C,0))),\"\")","v":""},null,{"$f":"IFERROR(HYPERLINK(\"#\"&ADDRESS(ROW($C$1)+MATCH(AF4,$C:$C,0)-1,COLUMN($C$1)),INDEX($U:$U,MATCH(AF4,$C:$C,0))),\"\")","v":""},null,{"$f":"IFERROR(HYPERLINK(\"#\"&ADDRESS(ROW($C$1)+MATCH(AH4,$C:$C,0)-1,COLUMN($C$1)),INDEX($U:$U,MATCH(AH4,$C:$C,0))),\"\")","v":""},null,{"$f":"IFERROR(HYPERLINK(\"#\"&ADDRESS(ROW($C$1)+MATCH(AJ4,$C:$C,0)-1,COLUMN($C$1)),INDEX($U:$U,MATCH(AJ4,$C:$C,0))),\"\")","v":""},null,{"$f":"IFERROR(HYPERLINK(\"#\"&ADDRESS(ROW($C$1)+MATCH(AL4,$C:$C,0)-1,COLUMN($C$1)),INDEX($U:$U,MATCH(AL4,$C:$C,0))),\"\")","v":""},null,{"$f":"IFERROR(HYPERLINK(\"#\"&ADDRESS(ROW($C$1)+MATCH(AN4,$C:$C,0)-1,COLUMN($C$1)),INDEX($U:$U,MATCH(AN4,$C:$C,0))),\"\")","v":""},null,{"$f":"IFERROR(HYPERLINK(\"#\"&ADDRESS(ROW($C$1)+MATCH(AP4,$C:$C,0)-1,COLUMN($C$1)),INDEX($U:$U,MATCH(AP4,$C:$C,0))),\"\")","v":""},null,{"$f":"IFERROR(HYPERLINK(\"#\"&ADDRESS(ROW($C$1)+MATCH(AS4,$C:$C,0)-1,COLUMN($C$1)),INDEX($U:$U,MATCH(AS4,$C:$C,0))),\"\")","v":""},null,{"$f":"IFERROR(HYPERLINK(\"#\"&ADDRESS(ROW($C$1)+MATCH(AU4,$C:$C,0)-1,COLUMN($C$1)),INDEX($U:$U,MATCH(AU4,$C:$C,0))),\"\")","v":""},null,{"$f":"IFERROR(HYPERLINK(\"#\"&ADDRESS(ROW($C$1)+MATCH(AW4,$C:$C,0)-1,COLUMN($C$1)),INDEX($U:$U,MATCH(AW4,$C:$C,0))),\"\")","v":""},null,{"$f":"IFERROR(HYPERLINK(\"#\"&ADDRESS(ROW($C$1)+MATCH(AY4,$C:$C,0)-1,COLUMN($C$1)),INDEX($U:$U,MATCH(AY4,$C:$C,0))),\"\")","v":""},null,{"$f":"IFERROR(HYPERLINK(\"#\"&ADDRESS(ROW($C$1)+MATCH(BA4,$C:$C,0)-1,COLUMN($C$1)),INDEX($U:$U,MATCH(BA4,$C:$C,0))),\"\")","v":""},null,{"$f":"IFERROR(HYPERLINK(\"#\"&ADDRESS(ROW($C$1)+MATCH(BC4,$C:$C,0)-1,COLUMN($C$1)),INDEX($U:$U,MATCH(BC4,$C:$C,0))),\"\")","v":""},null,{"$f":"IFERROR(HYPERLINK(\"#\"&ADDRESS(ROW($C$1)+MATCH(BE4,$C:$C,0)-1,COLUMN($C$1)),INDEX($U:$U,MATCH(BE4,$C:$C,0))),\"\")","v":""},null,{"$f":"IFERROR(HYPERLINK(\"#\"&ADDRESS(ROW($C$1)+MATCH(BG4,$C:$C,0)-1,COLUMN($C$1)),INDEX($U:$U,MATCH(BG4,$C:$C,0))),\"\")","v":""},null,null,{"$f":"IFERROR(HYPERLINK(\"#\"&ADDRESS(ROW($C$1)+MATCH(BI4,$C:$C,0)-1,COLUMN($C$1)),INDEX($U:$U,MATCH(BI4,$C:$C,0))),\"\")","v":""},null,{"$f":"IFERROR(HYPERLINK(\"#\"&ADDRESS(ROW($C$1)+MATCH(BK4,$C:$C,0)-1,COLUMN($C$1)),INDEX($U:$U,MATCH(BK4,$C:$C,0))),\"\")","v":""},null,{"$f":"IFERROR(HYPERLINK(\"#\"&ADDRESS(ROW($C$1)+MATCH(BM4,$C:$C,0)-1,COLUMN($C$1)),INDEX($U:$U,MATCH(BM4,$C:$C,0))),\"\")","v":""},null,{"$f":"IFERROR(HYPERLINK(\"#\"&ADDRESS(ROW($C$1)+MATCH(BO4,$C:$C,0)-1,COLUMN($C$1)),INDEX($U:$U,MATCH(BO4,$C:$C,0))),\"\")","v":""},null,{"$f":"IFERROR(HYPERLINK(\"#\"&ADDRESS(ROW($C$1)+MATCH(BQ4,$C:$C,0)-1,COLUMN($C$1)),INDEX($U:$U,MATCH(BQ4,$C:$C,0))),\"\")","v":""}]
[]
[{"$nulls":3},{"$f":"HYPERLINK(\"#\"&ADDRESS(MATCH($BD6,G_FurtherGuidance!$S:$S,0),3,,,G_FurtherGuidance!$U$2),CONST_LinkToGuidanceSheet)","v":"Please click on this link for further guidance on how to complete this section."},{"$nulls":50},"Link to guidance:",4]
[]
[{"$nulls":3},{"$f":"Translations!$B$472","v":"Production process from which the products arise"},{"$f":"Translations!$B$603","v":"Type of aggregated good or precursor"},{"$f":"Translations!$B$474","v":"CN Codes"},{"$f":"Translations!$B$604","v":"CN Name"},{"$f":"Translations!$B$605","v":"Product name \n(used for communication with reporting declarant, e.g. on invoices)"},{"$f":"Translations!$B$570","v":"SEE (direct)"},{"$f":"Translations!$B$574","v":"SEE (indirect)"},{"$f":"Translations!$B$344","v":"SEE (total)"},{"$f":"Translations!$B$221","v":"Unit"},{"$f":"Translations!$B$1868","v":"Share of emissions by default value"},{"$f":"Translations!$B$606","v":"Source for electricity EF"},{"$f":"Translations!$B$607","v":"Embedded electricity (MWh/t)"},{"$f":"Translations!$B$483","v":"The main reducing agent of the precursor, if known"},{"$f":"Translations!$B$485","v":"Steel mill identification number"},{"$f":"Translations!$B$487","v":"% Mn"},{"$f":"Translations!$B$489","v":"% Cr"},{"$f":"Translations!$B$491","v":"% Ni"},{"$f":"Translations!$B$493","v":"% other alloys"},{"$f":"Translations!$B$495","v":"% carbon"},{"$f":"Translations!$B$497","v":"t scrap per t steel"},{"$f":"Translations!$B$499","v":"% other materials"},{"$f":"Translations!$B$503","v":"% pre-consumer scrap"},{"$f":"Translations!$B$501","v":"t scrap per t aluminium"},{"$f":"Translations!$B$505","v":"% non-aluminium elements"},{"$f":"Translations!$B$507","v":"Clinker factor"},{"$f":"Translations!$B$509","v":"Calcined or not"},{"$f":"Translations!$B$511","v":"Concentration, if hydrous solution"},{"$f":"Translations!$B$513","v":"% nitric acid"},{"$f":"Translations!$B$515","v":"% urea"},{"$f":"Translations!$B$517","v":"% N contained"},{"$f":"Translations!$B$519","v":"% N as ammonium (NH4+)"},{"$f":"Translations!$B$521","v":"% N as nitrate (NO3–)"},{"$f":"Translations!$B$523","v":"% N as Urea"},{"$f":"Translations!$B$525","v":"% N in other (organic) forms"},{"$f":"Translations!$B$530","v":"Form of carbon price"},{"$f":"Translations!$B$532","v":"Share of total embedded emissions covered by the carbon price"},{"$f":"Translations!$B$608","v":"Embedded emissions covered by the carbon price"},null,{"$f":"Translations!$B$534","v":"Currency"},null,{"$f":"Translations!$B$1871","v":"Carbon price (CP)"},null,{"$f":"Translations!$B$537","v":"Form of rebate"},{"$f":"Translations!$B$539","v":"Share of embedded emissions covered by the rebate"},{"$f":"Translations!$B$609","v":"Embedded emissions covered by rebate"},null,{"$f":"Translations!$B$1872","v":"Amount of rebate"},null,{"$f":"Translations!$B$353","v":"Result: Effective CP due"},{"$nulls":3},"CN Code List",null,null,"cond. form.",null,{"$f":"Translations!$B$1873","v":"Missing entries?"},null,{"$f":"P8","v":"The main reducing agent of the precursor, if known"},{"$f":"AC8","v":"Calcined or not"},{"$f":"AL8","v":"Form of carbon price"},{"$f":"AT8","v":"Form of rebate"}]
[null,null,{"$f":"Translations!$B$202","v":"Ex."},{"$f":"Translations!$B$610","v":"Example process A"},{"$f":"Translations!$B$611","v":"Iron or steel products"},"72071919",{"$f":"Translations!$B$612","v":"Semi-finished products of iron or non-alloy steel, containing by weight < 0,25% carbon, of circular or polygonal cross-section, forged"},{"$f":"Translations!$B$613","v":"Example name A"},0.915,0.396,{"$f":"SUM(I9:J9)","v":1.311},{"$f":"Translations!$B$614","v":"tCO2e/t"},null,"D.2.1",0.281,{"$f":"Translations!$B$615","v":"Coal or coke"},623108,{"v":0.1395,"d":"13.95%"},{"v":0.0841,"d":"8.41%"},{"v":0.021,"d":"2.10%"},{"v":0.03,"d":"3.00%"},{"v":0.0035,"d":"0.35%"},null,{"v":0.0001,"d":"0.01%"},{"$nulls":13},{"$f":"Translations!B636","v":"Tax or levy"},{"v":0.697620162213842,"d":"69.8%"},0.915,{"$f":"Translations!$B$614","v":"tCO2e/t"},{"$f":"Translations!$B$617","v":"USD"},{"$f":"Translations!$B$1719","v":"US Dollar"},{"v":50,"d":"50.00"},{"$f":"Translations!$B$618","v":"USD/t"},{"$f":"Translations!$B$641","v":"Tax deduction"},{"v":0.9,"d":"90.0%"},{"v":1.1804418,"d":"1.180"},{"$f":"Translations!$B$614","v":"tCO2e/t"},{"v":20,"d":"20.00"},{"$f":"Translations!$B$618","v":"USD/t"},{"v":35.413254,"d":"35.41"},{"$f":"Translations!$B$618","v":"USD/t"}]
[null,null,1,null,{"$f":"IF(D10=\"\",\"\",INDEX(CNTR_List_ExistProdProc,MATCH(D10,CNTR_List_ExistProdProcNames,0)))","v":""},null,{"$f":"IF(F10=\"\",\"\",INDEX(CNCodes_ListNames,MATCH(F10,CNCodes_ListKey,0)))","v":""},null,{"$f":"IF(OR($D10=\"\",$D10=CONST_NA),\"\",INDEX(InputOutput!$AK$71:$AK$80,MATCH($D10,InputOutput!$D$71:$D$80,0)))","v":""},{"$f":"IF(OR($D10=\"\",$D10=CONST_NA),\"\",INDEX(InputOutput!$AM$71:$AM$80,MATCH($D10,InputOutput!$D$71:$D$80,0)))","v":""},{"$f":"IF(OR($D10=\"\",$D10=CONST_NA),\"\",SUM(I10:J10))","v":""},{"$f":"IF(E10=\"\",\"\",CONST_tCO2eq&\"/\"&INDEX(CONST_LIST_GoodsUnit,MATCH(E10,CONST_LIST_Goods,0)))","v":""},{"$f":"IF($E10=\"\",\"\",INDEX(Summary_Processes!$AG$159:$AG$517,MATCH($D10,Summary_Processes!$D$159:$D$517,0)))","v":""},{"$f":"IF(D10=\"\",\"\",INDEX(D_Processes!T:T,MATCH(CONST_CNTR_ElecEFMethod&D10,D_Processes!R:R,0)))","v":""},{"$f":"IF(OR($D10=\"\",$D10=CONST_NA),\"\",INDEX(InputOutput!$AO$71:$AO$80,MATCH($D10,InputOutput!$D$71:$D$80,0)))","v":""},{"$nulls":24},{"$f":"IF($K10=\"\",\"\",$K10*AM10)","v":""},{"$f":"L10","v":""},null,{"$f":"IF(AP10=\"\",\"\",INDEX(CNTR_ListCurrenciesName,MATCH(AP10,CNTR_ListCurrenciesCode,0)))","v":""},null,{"$f":"IF(OR(D10=\"\",AP10=\"\"),\"\",AP10&\"/\"&INDEX(CONST_LIST_GoodsUnit,MATCH($E10,CONST_LIST_Goods,0)))","v":""},null,null,{"$f":"IF($K10=\"\",\"\",$K10*AU10)","v":""},{"$f":"AS10","v":""},null,{"$f":"AS10","v":""},{"$f":"IF(K10=\"\",\"\",(AR10-AX10))","v":""},{"$f":"AS10","v":""},null,null,{"$f":"IF(OR($D10=\"\",$D10=CONST_NA),\"\",INDEX(CONST_CNTR_ListGoodsForCN,MATCH(E10,CONST_LIST_Goods,0)))","v":""},{"$nulls":4},{"$f":"IF(CNTR_HasEntriesA,IF(AND(D10<>\"\",COUNTIF(D214:BA214,TRUE)>0),CONST_ErrorOrMissing,IF(AND(D10<>\"\",COUNTIF(D214:BA214,TRUE)=0),TRUE,CONST_NA)),CONST_NA)","v":"n.a."},null,{"$f":"IF(P10=\"\",\"\",MATCH(P10,CONST_ReducingAgent,0))","v":""},{"$f":"IF(AC10=\"\",\"\",MATCH(AC10,CONST_TrueFalse,0))","v":""},{"$f":"IF(AL10=\"\",\"\",MATCH(AL10,CONST_CarbonPriceType,0))","v":""},{"$f":"IF(AT10=\"\",\"\",MATCH(AT10,CONST_RebateType,0))","v":""}]
[null,null,2,null,"",null,"",null,{"$f":"IF(OR($D11=\"\",$D11=CONST_NA),\"\",INDEX(InputOutput!$AK$71:$AK$80,MATCH($D11,InputOutput!$D$71:$D$80,0)))","v":""},{"$f":"IF(OR($D11=\"\",$D11=CONST_NA),\"\",INDEX(InputOutput!$AM$71:$AM$80,MATCH($D11,InputOutput!$D$71:$D$80,0)))","v":""},{"$f":"IF(OR($D11=\"\",$D11=CONST_NA),\"\",SUM(I11:J11))","v":""},{"$f":"IF(E11=\"\",\"\",CONST_tCO2eq&\"/\"&INDEX(CONST_LIST_GoodsUnit,MATCH(E11,CONST_LIST_Goods,0)))","v":""},{"$f":"IF($E11=\"\",\"\",INDEX(Summary_Processes!$AG$159:$AG$517,MATCH($D11,Summary_Processes!$D$159:$D$517,0)))","v":""},{"$f":"IF(D11=\"\",\"\",INDEX(D_Processes!T:T,MATCH(CONST_CNTR_ElecEFMethod&D11,D_Processes!R:R,0)))","v":""},{"$f":"IF(OR($D11=\"\",$D11=CONST_NA),\"\",INDEX(InputOutput!$AO$71:$AO$80,MATCH($D11,InputOutput!$D$71:$D$80,0)))","v":""},{"$nulls":24},{"$f":"IF($K11=\"\",\"\",$K11*AM11)","v":""},"",null,"",null,"",null,null,{"$f":"IF($K11=\"\",\"\",$K11*AU11)","v":""},{"$f":"AS11","v":""},null,{"$f":"AS11","v":""},"",{"$f":"AS11","v":""},null,null,"",null,null,{"$f":"AND(CNTR_HasEntriesA,D11=\"\")","v":false},null,"n.a.",null,"","",{"$f":"IF(AL11=\"\",\"\",MATCH(AL11,CONST_CarbonPriceType,0))","v":""},""]
[null,null,3,null,"",null,"",null,{"$f":"IF(OR($D12=\"\",$D12=CONST_NA),\"\",INDEX(InputOutput!$AK$71:$AK$80,MATCH($D12,InputOutput!$D$71:$D$80,0)))","v":""},{"$f":"IF(OR($D12=\"\",$D12=CONST_NA),\"\",INDEX(InputOutput!$AM$71:$AM$80,MATCH($D12,InputOutput!$D$71:$D$80,0)))","v":""},"","",{"$f":"IF($E12=\"\",\"\",INDEX(Summary_Processes!$AG$159:$AG$517,MATCH($D12,Summary_Processes!$D$159:$D$517,0)))","v":""},{"$f":"IF(D12=\"\",\"\",INDEX(D_Processes!T:T,MATCH(CONST_CNTR_ElecEFMethod&D12,D_Processes!R:R,0)))","v":""},{"$f":"IF(OR($D12=\"\",$D12=CONST_NA),\"\",INDEX(InputOutput!$AO$71:$AO$80,MATCH($D12,InputOutput!$D$71:$D$80,0)))","v":""},{"$nulls":24},"","",null,"",null,"",null,null,"","",null,"","","",null,null,"",null,null,false,null,"n.a.",null,"","","",""]
[null,null,4,null,"",null,"",null,{"$f":"IF(OR($D13=\"\",$D13=CONST_NA),\"\",INDEX(InputOutput!$AK$71:$AK$80,MATCH($D13,InputOutput!$D$71:$D$80,0)))","v":""},{"$f":"IF(OR($D13=\"\",$D13=CONST_NA),\"\",INDEX(InputOutput!$AM$71:$AM$80,MATCH($D13,InputOutput!$D$71:$D$80,0)))","v":""},"","",{"$f":"IF($E13=\"\",\"\",INDEX(Summary_Processes!$AG$159:$AG$517,MATCH($D13,Summary_Processes!$D$159:$D$517,0)))","v":""},{"$f":"IF(D13=\"\",\"\",INDEX(D_Processes!T:T,MATCH(CONST_CNTR_ElecEFMethod&D13,D_Processes!R:R,0)))","v":""},{"$f":"IF(OR($D13=\"\",$D13=CONST_NA),\"\",INDEX(InputOutput!$AO$71:$AO$80,MATCH($D13,InputOutput!$D$71:$D$80,0)))","v":""},{"$nulls":24},"","",null,"",null,"",null,null,"","",null,"","","",null,null,"",null,null,false,null,"n.a.",null,"","","",""]
[null,null,5,null,"",null,"",null,{"$f":"IF(OR($D14=\"\",$D14=CONST_NA),\"\",INDEX(InputOutput!$AK$71:$AK$80,MATCH($D14,InputOutput!$D$71:$D$80,0)))","v":""},{"$f":"IF(OR($D14=\"\",$D14=CONST_NA),\"\",INDEX(InputOutput!$AM$71:$AM$80,MATCH($D14,InputOutput!$D$71:$D$80,0)))","v":""},"","",{"$f":"IF($E14=\"\",\"\",INDEX(Summary_Processes!$AG$159:$AG$517,MATCH($D14,Summary_Processes!$D$159:$D$517,0)))","v":""},{"$f":"IF(D14=\"\",\"\",INDEX(D_Processes!T:T,MATCH(CONST_CNTR_ElecEFMethod&D14,D_Processes!R:R,0)))","v":""},{"$f":"IF(OR($D14=\"\",$D14=CONST_NA),\"\",INDEX(InputOutput!$AO$71:$AO$80,MATCH($D14,InputOutput!$D$71:$D$80,0)))","v":""},{"$nulls":24},"","",null,"",null,"",null,null,"","",null,"","","",null,null,"",null,null,false,null,"n.a.",null,"","","",""]
[null,null,6,null,"",null,"",null,{"$f":"IF(OR($D15=\"\",$D15=CONST_NA),\"\",INDEX(InputOutput!$AK$71:$AK$80,MATCH($D15,InputOutput!$D$71:$D$80,0)))","v":""},{"$f":"IF(OR($D15=\"\",$D15=CONST_NA),\"\",INDEX(InputOutput!$AM$71:$AM$80,MATCH($D15,InputOutput!$D$71:$D$80,0)))","v":""},"","",{"$f":"IF($E15=\"\",\"\",INDEX(Summary_Processes!$AG$159:$AG$517,MATCH($D15,Summary_Processes!$D$159:$D$517,0)))","v":""},{"$f":"IF(D15=\"\",\"\",INDEX(D_Processes!T:T,MATCH(CONST_CNTR_ElecEFMethod&D15,D_Processes!R:R,0)))","v":""},{"$f":"IF(OR($D15=\"\",$D15=CONST_NA),\"\",INDEX(InputOutput!$AO$71:$AO$80,MATCH($D15,InputOutput!$D$71:$D$80,0)))","v":""},{"$nulls":24},"","",null,"",null,"",null,null,"","",null,"","","",null,null,"",null,null,false,null,"n.a.",null,"","","",""]
[null,null,7,null,"",null,"",null,{"$f":"IF(OR($D16=\"\",$D16=CONST_NA),\"\",INDEX(InputOutput!$AK$71:$AK$80,MATCH($D16,InputOutput!$D$71:$D$80,0)))","v":""},{"$f":"IF(OR($D16=\"\",$D16=CONST_NA),\"\",INDEX(InputOutput!$AM$71:$AM$80,MATCH($D16,InputOutput!$D$71:$D$80,0)))","v":""},"","",{"$f":"IF($E16=\"\",\"\",INDEX(Summary_Processes!$AG$159:$AG$517,MATCH($D16,Summary_Processes!$D$159:$D$517,0)))","v":""},{"$f":"IF(D16=\"\",\"\",INDEX(D_Processes!T:T,MATCH(CONST_CNTR_ElecEFMethod&D16,D_Processes!R:R,0)))","v":""},{"$f":"IF(OR($D16=\"\",$D16=CONST_NA),\"\",INDEX(InputOutput!$AO$71:$AO$80,MATCH($D16,InputOutput!$D$71:$D$80,0)))","v":""},{"$nulls":24},"","",null,"",null,"",null,null,"","",null,"","","",null,null,"",null,null,false,null,"n.a.",null,"","","",""]
[null,null,8,null,"",null,"",null,{"$f":"IF(OR($D17=\"\",$D17=CONST_NA),\"\",INDEX(InputOutput!$AK$71:$AK$80,MATCH($D17,InputOutput!$D$71:$D$80,0)))","v":""},{"$f":"IF(OR($D17=\"\",$D17=CONST_NA),\"\",INDEX(InputOutput!$AM$71:$AM$80,MATCH($D17,InputOutput!$D$71:$D$80,0)))","v":""},"","",{"$f":"IF($E17=\"\",\"\",INDEX(Summary_Processes!$AG$159:$AG$517,MATCH($D17,Summary_Processes!$D$159:$D$517,0)))","v":""},{"$f":"IF(D17=\"\",\"\",INDEX(D_Processes!T:T,MATCH(CONST_CNTR_ElecEFMethod&D17,D_Processes!R:R,0)))","v":""},{"$f":"IF(OR($D17=\"\",$D17=CONST_NA),\"\",INDEX(InputOutput!$AO$71:$AO$80,MATCH($D17,InputOutput!$D$71:$D$80,0)))","v":""},{"$nulls":24},"","",null,"",null,"",null,null,"","",null,"","","",null,null,"",null,null,false,null,"n.a.",null,"","","",""]
[null,null,9,null,"",null,"",null,{"$f":"IF(OR($D18=\"\",$D18=CONST_NA),\"\",INDEX(InputOutput!$AK$71:$AK$80,MATCH($D18,InputOutput!$D$71:$D$80,0)))","v":""},{"$f":"IF(OR($D18=\"\",$D18=CONST_NA),\"\",INDEX(InputOutput!$AM$71:$AM$80,MATCH($D18,InputOutput!$D$71:$D$80,0)))","v":""},"","",{"$f":"IF($E18=\"\",\"\",INDEX(Summary_Processes!$AG$159:$AG$517,MATCH($D18,Summary_Processes!$D$159:$D$517,0)))","v":""},{"$f":"IF(D18=\"\",\"\",INDEX(D_Processes!T:T,MATCH(CONST_CNTR_ElecEFMethod&D18,D_Processes!R:R,0)))","v":""},{"$f":"IF(OR($D18=\"\",$D18=CONST_NA),\"\",INDEX(InputOutput!$AO$71:$AO$80,MATCH($D18,InputOutput!$D$71:$D$80,0)))","v":""},{"$nulls":24},"","",null,"",null,"",null,null,"","",null,"","","",null,null,"",null,null,false,null,"n.a.",null,"","","",""]
[null,null,10,null,"",null,"",null,{"$f":"IF(OR($D19=\"\",$D19=CONST_NA),\"\",INDEX(InputOutput!$AK$71:$AK$80,MATCH($D19,InputOutput!$D$71:$D$80,0)))","v":""},{"$f":"IF(OR($D19=\"\",$D19=CONST_NA),\"\",INDEX(InputOutput!$AM$71:$AM$80,MATCH($D19,InputOutput!$D$71:$D$80,0)))","v":""},"","",{"$f":"IF($E19=\"\",\"\",INDEX(Summary_Processes!$AG$159:$AG$517,MATCH($D19,Summary_Processes!$D$159:$D$517,0)))","v":""},{"$f":"IF(D19=\"\",\"\",INDEX(D_Processes!T:T,MATCH(CONST_CNTR_ElecEFMethod&D19,D_Processes!R:R,0)))","v":""},{"$f":"IF(OR($D19=\"\",$D19=CONST_NA),\"\",INDEX(InputOutput!$AO$71:$AO$80,MATCH($D19,InputOutput!$D$71:$D$80,0)))","v":""},{"$nulls":24},"","",null,"",null,"",null,null,"","",null,"","","",null,null,"",null,null,false,null,"n.a.",null,"","","",""]
[null,null,11,null,"",null,"",null,{"$f":"IF(OR($D20=\"\",$D20=CONST_NA),\"\",INDEX(InputOutput!$AK$71:$AK$80,MATCH($D20,InputOutput!$D$71:$D$80,0)))","v":""},{"$f":"IF(OR($D20=\"\",$D20=CONST_NA),\"\",INDEX(InputOutput!$AM$71:$AM$80,MATCH($D20,InputOutput!$D$71:$D$80,0)))","v":""},"","",{"$f":"IF($E20=\"\",\"\",INDEX(Summary_Processes!$AG$159:$AG$517,MATCH($D20,Summary_Processes!$D$159:$D$517,0)))","v":""},{"$f":"IF(D20=\"\",\"\",INDEX(D_Processes!T:T,MATCH(CONST_CNTR_ElecEFMethod&D20,D_Processes!R:R,0)))","v":""},{"$f":"IF(OR($D20=\"\",$D20=CONST_NA),\"\",INDEX(InputOutput!$AO$71:$AO$80,MATCH($D20,InputOutput!$D$71:$D$80,0)))","v":""},{"$nulls":24},"","",null,"",null,"",null,null,"","",null,"","","",null,null,"",null,null,false,null,"n.a.",null,"","","",""]
[null,null,12,null,"",null,"",null,{"$f":"IF(OR($D21=\"\",$D21=CONST_NA),\"\",INDEX(InputOutput!$AK$71:$AK$80,MATCH($D21,InputOutput!$D$71:$D$80,0)))","v":""},{"$f":"IF(OR($D21=\"\",$D21=CONST_NA),\"\",INDEX(InputOutput!$AM$71:$AM$80,MATCH($D21,InputOutput!$D$71:$D$80,0)))","v":""},"","",{"$f":"IF($E21=\"\",\"\",INDEX(Summary_Processes!$AG$159:$AG$517,MATCH($D21,Summary_Processes!$D$159:$D$517,0)))","v":""},{"$f":"IF(D21=\"\",\"\",INDEX(D_Processes!T:T,MATCH(CONST_CNTR_ElecEFMethod&D21,D_Processes!R:R,0)))","v":""},{"$f":"IF(OR($D21=\"\",$D21=CONST_NA),\"\",INDEX(InputOutput!$AO$71:$AO$80,MATCH($D21,InputOutput!$D$71:$D$80,0)))","v":""},{"$nulls":24},"","",null,"",null,"",null,null,"","",null,"","","",null,null,"",null,null,false,null,"n.a.",null,"","","",""]
[null,null,13,null,"",null,"",null,{"$f":"IF(OR($D22=\"\",$D22=CONST_NA),\"\",INDEX(InputOutput!$AK$71:$AK$80,MATCH($D22,InputOutput!$D$71:$D$80,0)))","v":""},{"$f":"IF(OR($D22=\"\",$D22=CONST_NA),\"\",INDEX(InputOutput!$AM$71:$AM$80,MATCH($D22,InputOutput!$D$71:$D$80,0)))","v":""},"","",{"$f":"IF($E22=\"\",\"\",INDEX(Summary_Processes!$AG$159:$AG$517,MATCH($D22,Summary_Processes!$D$159:$D$517,0)))","v":""},{"$f":"IF(D22=\"\",\"\",INDEX(D_Processes!T:T,MATCH(CONST_CNTR_ElecEFMethod&D22,D_Processes!R:R,0)))","v":""},{"$f":"IF(OR($D22=\"\",$D22=CONST_NA),\"\",INDEX(InputOutput!$AO$71:$AO$80,MATCH($D22,InputOutput!$D$71:$D$80,0)))","v":""},{"$nulls":24},"","",null,"",null,"",null,null,"","",null,"","","",null,null,"",null,null,false,null,"n.a.",null,"","","",""]
[null,null,14,null,"",null,"",null,{"$f":"IF(OR($D23=\"\",$D23=CONST_NA),\"\",INDEX(InputOutput!$AK$71:$AK$80,MATCH($D23,InputOutput!$D$71:$D$80,0)))","v":""},{"$f":"IF(OR($D23=\"\",$D23=CONST_NA),\"\",INDEX(InputOutput!$AM$71:$AM$80,MATCH($D23,InputOutput!$D$71:$D$80,0)))","v":""},"","",{"$f":"IF($E23=\"\",\"\",INDEX(Summary_Processes!$AG$159:$AG$517,MATCH($D23,Summary_Processes!$D$159:$D$517,0)))","v":""},{"$f":"IF(D23=\"\",\"\",INDEX(D_Processes!T:T,MATCH(CONST_CNTR_ElecEFMethod&D23,D_Processes!R:R,0)))","v":""},{"$f":"IF(OR($D23=\"\",$D23=CONST_NA),\"\",INDEX(InputOutput!$AO$71:$AO$80,MATCH($D23,InputOutput!$D$71:$D$80,0)))","v":""},{"$nulls":24},"","",null,"",null,"",null,null,"","",null,"","","",null,null,"",null,null,false,null,"n.a.",null,"","","",""]
[null,null,15,null,"",null,"",null,{"$f":"IF(OR($D24=\"\",$D24=CONST_NA),\"\",INDEX(InputOutput!$AK$71:$AK$80,MATCH($D24,InputOutput!$D$71:$D$80,0)))","v":""},{"$f":"IF(OR($D24=\"\",$D24=CONST_NA),\"\",INDEX(InputOutput!$AM$71:$AM$80,MATCH($D24,InputOutput!$D$71:$D$80,0)))","v":""},"","",{"$f":"IF($E24=\"\",\"\",INDEX(Summary_Processes!$AG$159:$AG$517,MATCH($D24,Summary_Processes!$D$159:$D$517,0)))","v":""},{"$f":"IF(D24=\"\",\"\",INDEX(D_Processes!T:T,MATCH(CONST_CNTR_ElecEFMethod&D24,D_Processes!R:R,0)))","v":""},{"$f":"IF(OR($D24=\"\",$D24=CONST_NA),\"\",INDEX(InputOutput!$AO$71:$AO$80,MATCH($D24,InputOutput!$D$71:$D$80,0)))","v":""},{"$nulls":24},"","",null,"",null,"",null,null,"","",null,"","","",null,null,"",null,null,false,null,"n.a.",null,"","","",""]
[null,null,16,null,"",null,"",null,{"$f":"IF(OR($D25=\"\",$D25=CONST_NA),\"\",INDEX(InputOutput!$AK$71:$AK$80,MATCH($D25,InputOutput!$D$71:$D$80,0)))","v":""},{"$f":"IF(OR($D25=\"\",$D25=CONST_NA),\"\",INDEX(InputOutput!$AM$71:$AM$80,MATCH($D25,InputOutput!$D$71:$D$80,0)))","v":""},"","",{"$f":"IF($E25=\"\",\"\",INDEX(Summary_Processes!$AG$159:$AG$517,MATCH($D25,Summary_Processes!$D$159:$D$517,0)))","v":""},{"$f":"IF(D25=\"\",\"\",INDEX(D_Processes!T:T,MATCH(CONST_CNTR_ElecEFMethod&D25,D_Processes!R:R,0)))","v":""},{"$f":"IF(OR($D25=\"\",$D25=CONST_NA),\"\",INDEX(InputOutput!$AO$71:$AO$80,MATCH($D25,InputOutput!$D$71:$D$80,0)))","v":""},{"$nulls":24},"","",null,"",null,"",null,null,"","",null,"","","",null,null,"",null,null,false,null,"n.a.",null,"","","",""]
[null,null,17,null,"",null,"",null,{"$f":"IF(OR($D26=\"\",$D26=CONST_NA),\"\",INDEX(InputOutput!$AK$71:$AK$80,MATCH($D26,InputOutput!$D$71:$D$80,0)))","v":""},{"$f":"IF(OR($D26=\"\",$D26=CONST_NA),\"\",INDEX(InputOutput!$AM$71:$AM$80,MATCH($D26,InputOutput!$D$71:$D$80,0)))","v":""},"","",{"$f":"IF($E26=\"\",\"\",INDEX(Summary_Processes!$AG$159:$AG$517,MATCH($D26,Summary_Processes!$D$159:$D$517,0)))","v":""},{"$f":"IF(D26=\"\",\"\",INDEX(D_Processes!T:T,MATCH(CONST_CNTR_ElecEFMethod&D26,D_Processes!R:R,0)))","v":""},{"$f":"IF(OR($D26=\"\",$D26=CONST_NA),\"\",INDEX(InputOutput!$AO$71:$AO$80,MATCH($D26,InputOutput!$D$71:$D$80,0)))","v":""},{"$nulls":24},"","",null,"",null,"",null,null,"","",null,"","","",null,null,"",null,null,false,null,"n.a.",null,"","","",""]
[null,null,18,null,"",null,"",null,{"$f":"IF(OR($D27=\"\",$D27=CONST_NA),\"\",INDEX(InputOutput!$AK$71:$AK$80,MATCH($D27,InputOutput!$D$71:$D$80,0)))","v":""},{"$f":"IF(OR($D27=\"\",$D27=CONST_NA),\"\",INDEX(InputOutput!$AM$71:$AM$80,MATCH($D27,InputOutput!$D$71:$D$80,0)))","v":""},"","",{"$f":"IF($E27=\"\",\"\",INDEX(Summary_Processes!$AG$159:$AG$517,MATCH($D27,Summary_Processes!$D$159:$D$517,0)))","v":""},{"$f":"IF(D27=\"\",\"\",INDEX(D_Processes!T:T,MATCH(CONST_CNTR_ElecEFMethod&D27,D_Processes!R:R,0)))","v":""},{"$f":"IF(OR($D27=\"\",$D27=CONST_NA),\"\",INDEX(InputOutput!$AO$71:$AO$80,MATCH($D27,InputOutput!$D$71:$D$80,0)))","v":""},{"$nulls":24},"","",null,"",null,"",null,null,"","",null,"","","",null,null,"",null,null,false,null,"n.a.",null,"","","",""]
[null,null,19,null,"",null,"",null,{"$f":"IF(OR($D28=\"\",$D28=CONST_NA),\"\",INDEX(InputOutput!$AK$71:$AK$80,MATCH($D28,InputOutput!$D$71:$D$80,0)))","v":""},{"$f":"IF(OR($D28=\"\",$D28=CONST_NA),\"\",INDEX(InputOutput!$AM$71:$AM$80,MATCH($D28,InputOutput!$D$71:$D$80,0)))","v":""},"","",{"$f":"IF($E28=\"\",\"\",INDEX(Summary_Processes!$AG$159:$AG$517,MATCH($D28,Summary_Processes!$D$159:$D$517,0)))","v":""},{"$f":"IF(D28=\"\",\"\",INDEX(D_Processes!T:T,MATCH(CONST_CNTR_ElecEFMethod&D28,D_Processes!R:R,0)))","v":""},{"$f":"IF(OR($D28=\"\",$D28=CONST_NA),\"\",INDEX(InputOutput!$AO$71:$AO$80,MATCH($D28,InputOutput!$D$71:$D$80,0)))","v":""},{"$nulls":24},"","",null,"",null,"",null,null,"","",null,"","","",null,null,"",null,null,false,null,"n.a.",null,"","","",""]
[null,null,20,null,"",null,"",null,{"$f":"IF(OR($D29=\"\",$D29=CONST_NA),\"\",INDEX(InputOutput!$AK$71:$AK$80,MATCH($D29,InputOutput!$D$71:$D$80,0)))","v":""},{"$f":"IF(OR($D29=\"\",$D29=CONST_NA),\"\",INDEX(InputOutput!$AM$71:$AM$80,MATCH($D29,InputOutput!$D$71:$D$80,0)))","v":""},"","",{"$f":"IF($E29=\"\",\"\",INDEX(Summary_Processes!$AG$159:$AG$517,MATCH($D29,Summary_Processes!$D$159:$D$517,0)))","v":""},{"$f":"IF(D29=\"\",\"\",INDEX(D_Processes!T:T,MATCH(CONST_CNTR_ElecEFMethod&D29,D_Processes!R:R,0)))","v":""},{"$f":"IF(OR($D29=\"\",$D29=CONST_NA),\"\",INDEX(InputOutput!$AO$71:$AO$80,MATCH($D29,InputOutput!$D$71:$D$80,0)))","v":""},{"$nulls":24},"","",null,"",null,"",null,null,"","",null,"","","",null,null,"",null,null,false,null,"n.a.",null,"","","",""]
[null,null,21,null,"",null,"",null,{"$f":"IF(OR($D30=\"\",$D30=CONST_NA),\"\",INDEX(InputOutput!$AK$71:$AK$80,MATCH($D30,InputOutput!$D$71:$D$80,0)))","v":""},{"$f":"IF(OR($D30=\"\",$D30=CONST_NA),\"\",INDEX(InputOutput!$AM$71:$AM$80,MATCH($D30,InputOutput!$D$71:$D$80,0)))","v":""},"","",{"$f":"IF($E30=\"\",\"\",INDEX(Summary_Processes!$AG$159:$AG$517,MATCH($D30,Summary_Processes!$D$159:$D$517,0)))","v":""},{"$f":"IF(D30=\"\",\"\",INDEX(D_Processes!T:T,MATCH(CONST_CNTR_ElecEFMethod&D30,D_Processes!R:R,0)))","v":""},{"$f":"IF(OR($D30=\"\",$D30=CONST_NA),\"\",INDEX(InputOutput!$AO$71:$AO$80,MATCH($D30,InputOutput!$D$71:$D$80,0)))","v":""},{"$nulls":24},"","",null,"",null,"",null,null,"","",null,"","","",null,null,"",null,null,false,null,"n.a.",null,"","","",""]
[null,null,22,null,"",null,"",null,{"$f":"IF(OR($D31=\"\",$D31=CONST_NA),\"\",INDEX(InputOutput!$AK$71:$AK$80,MATCH($D31,InputOutput!$D$71:$D$80,0)))","v":""},{"$f":"IF(OR($D31=\"\",$D31=CONST_NA),\"\",INDEX(InputOutput!$AM$71:$AM$80,MATCH($D31,InputOutput!$D$71:$D$80,0)))","v":""},"","",{"$f":"IF($E31=\"\",\"\",INDEX(Summary_Processes!$AG$159:$AG$517,MATCH($D31,Summary_Processes!$D$159:$D$517,0)))","v":""},{"$f":"IF(D31=\"\",\"\",INDEX(D_Processes!T:T,MATCH(CONST_CNTR_ElecEFMethod&D31,D_Processes!R:R,0)))","v":""},{"$f":"IF(OR($D31=\"\",$D31=CONST_NA),\"\",INDEX(InputOutput!$AO$71:$AO$80,MATCH($D31,InputOutput!$D$71:$D$80,0)))","v":""},{"$nulls":24},"","",null,"",null,"",null,null,"","",null,"","","",null,null,"",null,null,false,null,"n.a.",null,"","","",""]
[null,null,23,null,"",null,"",null,{"$f":"IF(OR($D32=\"\",$D32=CONST_NA),\"\",INDEX(InputOutput!$AK$71:$AK$80,MATCH($D32,InputOutput!$D$71:$D$80,0)))","v":""},{"$f":"IF(OR($D32=\"\",$D32=CONST_NA),\"\",INDEX(InputOutput!$AM$71:$AM$80,MATCH($D32,InputOutput!$D$71:$D$80,0)))","v":""},"","",{"$f":"IF($E32=\"\",\"\",INDEX(Summary_Processes!$AG$159:$AG$517,MATCH($D32,Summary_Processes!$D$159:$D$517,0)))","v":""},{"$f":"IF(D32=\"\",\"\",INDEX(D_Processes!T:T,MATCH(CONST_CNTR_ElecEFMethod&D32,D_Processes!R:R,0)))","v":""},{"$f":"IF(OR($D32=\"\",$D32=CONST_NA),\"\",INDEX(InputOutput!$AO$71:$AO$80,MATCH($D32,InputOutput!$D$71:$D$80,0)))","v":""},{"$nulls":24},"","",null,"",null,"",null,null,"","",null,"","","",null,null,"",null,null,false,null,"n.a.",null,"","","",""]
[null,null,24,null,"",null,"",null,{"$f":"IF(OR($D33=\"\",$D33=CONST_NA),\"\",INDEX(InputOutput!$AK$71:$AK$80,MATCH($D33,InputOutput!$D$71:$D$80,0)))","v":""},{"$f":"IF(OR($D33=\"\",$D33=CONST_NA),\"\",INDEX(InputOutput!$AM$71:$AM$80,MATCH($D33,InputOutput!$D$71:$D$80,0)))","v":""},"","",{"$f":"IF($E33=\"\",\"\",INDEX(Summary_Processes!$AG$159:$AG$517,MATCH($D33,Summary_Processes!$D$159:$D$517,0)))","v":""},{"$f":"IF(D33=\"\",\"\",INDEX(D_Processes!T:T,MATCH(CONST_CNTR_ElecEFMethod&D33,D_Processes!R:R,0)))","v":""},{"$f":"IF(OR($D33=\"\",$D33=CONST_NA),\"\",INDEX(InputOutput!$AO$71:$AO$80,MATCH($D33,InputOutput!$D$71:$D$80,0)))","v":""},{"$nulls":24},"","",null,"",null,"",null,null,"","",null,"","","",null,null,"",null,null,false,null,"n.a.",null,"","","",""]
[null,null,25,null,"",null,"",null,{"$f":"IF(OR($D34=\"\",$D34=CONST_NA),\"\",INDEX(InputOutput!$AK$71:$AK$80,MATCH($D34,InputOutput!$D$71:$D$80,0)))","v":""},{"$f":"IF(OR($D34=\"\",$D34=CONST_NA),\"\",INDEX(InputOutput!$AM$71:$AM$80,MATCH($D34,InputOutput!$D$71:$D$80,0)))","v":""},"","",{"$f":"IF($E34=\"\",\"\",INDEX(Summary_Processes!$AG$159:$AG$517,MATCH($D34,Summary_Processes!$D$159:$D$517,0)))","v":""},{"$f":"IF(D34=\"\",\"\",INDEX(D_Processes!T:T,MATCH(CONST_CNTR_ElecEFMethod&D34,D_Processes!R:R,0)))","v":""},{"$f":"IF(OR($D34=\"\",$D34=CONST_NA),\"\",INDEX(InputOutput!$AO$71:$AO$80,MATCH($D34,InputOutput!$D$71:$D$80,0)))","v":""},{"$nulls":24},"","",null,"",null,"",null,null,"","",null,"","","",null,null,"",null,null,false,null,"n.a.",null,"","","",""]
[null,null,26,null,"",null,"",null,{"$f":"IF(OR($D35=\"\",$D35=CONST_NA),\"\",INDEX(InputOutput!$AK$71:$AK$80,MATCH($D35,InputOutput!$D$71:$D$80,0)))","v":""},{"$f":"IF(OR($D35=\"\",$D35=CONST_NA),\"\",INDEX(InputOutput!$AM$71:$AM$80,MATCH($D35,InputOutput!$D$71:$D$80,0)))","v":""},"","",{"$f":"IF($E35=\"\",\"\",INDEX(Summary_Processes!$AG$159:$AG$517,MATCH($D35,Summary_Processes!$D$159:$D$517,0)))","v":""},{"$f":"IF(D35=\"\",\"\",INDEX(D_Processes!T:T,MATCH(CONST_CNTR_ElecEFMethod&D35,D_Processes!R:R,0)))","v":""},{"$f":"IF(OR($D35=\"\",$D35=CONST_NA),\"\",INDEX(InputOutput!$AO$71:$AO$80,MATCH($D35,InputOutput!$D$71:$D$80,0)))","v":""},{"$nulls":24},"","",null,"",null,"",null,null,"","",null,"","","",null,null,"",null,null,false,null,"n.a.",null,"","","",""]
[null,null,27,null,"",null,"",null,{"$f":"IF(OR($D36=\"\",$D36=CONST_NA),\"\",INDEX(InputOutput!$AK$71:$AK$80,MATCH($D36,InputOutput!$D$71:$D$80,0)))","v":""},{"$f":"IF(OR($D36=\"\",$D36=CONST_NA),\"\",INDEX(InputOutput!$AM$71:$AM$80,MATCH($D36,InputOutput!$D$71:$D$80,0)))","v":""},"","",{"$f":"IF($E36=\"\",\"\",INDEX(Summary_Processes!$AG$159:$AG$517,MATCH($D36,Summary_Processes!$D$159:$D$517,0)))","v":""},{"$f":"IF(D36=\"\",\"\",INDEX(D_Processes!T:T,MATCH(CONST_CNTR_ElecEFMethod&D36,D_Processes!R:R,0)))","v":""},{"$f":"IF(OR($D36=\"\",$D36=CONST_NA),\"\",INDEX(InputOutput!$AO$71:$AO$80,MATCH($D36,InputOutput!$D$71:$D$80,0)))","v":""},{"$nulls":24},"","",null,"",null,"",null,null,"","",null,"","","",null,null,"",null,null,false,null,"n.a.",null,"","","",""]
[null,null,28,null,"",null,"",null,{"$f":"IF(OR($D37=\"\",$D37=CONST_NA),\"\",INDEX(InputOutput!$AK$71:$AK$80,MATCH($D37,InputOutput!$D$71:$D$80,0)))","v":""},{"$f":"IF(OR($D37=\"\",$D37=CONST_NA),\"\",INDEX(InputOutput!$AM$71:$AM$80,MATCH($D37,InputOutput!$D$71:$D$80,0)))","v":""},"","",{"$f":"IF($E37=\"\",\"\",INDEX(Summary_Processes!$AG$159:$AG$517,MATCH($D37,Summary_Processes!$D$159:$D$517,0)))","v":""},{"$f":"IF(D37=\"\",\"\",INDEX(D_Processes!T:T,MATCH(CONST_CNTR_ElecEFMethod&D37,D_Processes!R:R,0)))","v":""},{"$f":"IF(OR($D37=\"\",$D37=CONST_NA),\"\",INDEX(InputOutput!$AO$71:$AO$80,MATCH($D37,InputOutput!$D$71:$D$80,0)))","v":""},{"$nulls":24},"","",null,"",null,"",null,null,"","",null,"","","",null,null,"",null,null,false,null,"n.a.",null,"","","",""]
[null,null,29,null,"",null,"",null,{"$f":"IF(OR($D38=\"\",$D38=CONST_NA),\"\",INDEX(InputOutput!$AK$71:$AK$80,MATCH($D38,InputOutput!$D$71:$D$80,0)))","v":""},{"$f":"IF(OR($D38=\"\",$D38=CONST_NA),\"\",INDEX(InputOutput!$AM$71:$AM$80,MATCH($D38,InputOutput!$D$71:$D$80,0)))","v":""},"","",{"$f":"IF($E38=\"\",\"\",INDEX(Summary_Processes!$AG$159:$AG$517,MATCH($D38,Summary_Processes!$D$159:$D$517,0)))","v":""},{"$f":"IF(D38=\"\",\"\",INDEX(D_Processes!T:T,MATCH(CONST_CNTR_ElecEFMethod&D38,D_Processes!R:R,0)))","v":""},{"$f":"IF(OR($D38=\"\",$D38=CONST_NA),\"\",INDEX(InputOutput!$AO$71:$AO$80,MATCH($D38,InputOutput!$D$71:$D$80,0)))","v":""},{"$nulls":24},"","",null,"",null,"",null,null,"","",null,"","","",null,null,"",null,null,false,null,"n.a.",null,"","","",""]
[null,null,30,null,"",null,"",null,{"$f":"IF(OR($D39=\"\",$D39=CONST_NA),\"\",INDEX(InputOutput!$AK$71:$AK$80,MATCH($D39,InputOutput!$D$71:$D$80,0)))","v":""},{"$f":"IF(OR($D39=\"\",$D39=CONST_NA),\"\",INDEX(InputOutput!$AM$71:$AM$80,MATCH($D39,InputOutput!$D$71:$D$80,0)))","v":""},"","",{"$f":"IF($E39=\"\",\"\",INDEX(Summary_Processes!$AG$159:$AG$517,MATCH($D39,Summary_Processes!$D$159:$D$517,0)))","v":""},{"$f":"IF(D39=\"\",\"\",INDEX(D_Processes!T:T,MATCH(CONST_CNTR_ElecEFMethod&D39,D_Processes!R:R,0)))","v":""},{"$f":"IF(OR($D39=\"\",$D39=CONST_NA),\"\",INDEX(InputOutput!$AO$71:$AO$80,MATCH($D39,InputOutput!$D$71:$D$80,0)))","v":""},{"$nulls":24},"","",null,"",null,"",null,null,"","",null,"","","",null,null,"",null,null,false,null,"n.a.",null,"","","",""]
[null,null,31,null,{"$f":"IF(D40=\"\",\"\",INDEX(CNTR_List_ExistProdProc,MATCH(D40,CNTR_List_ExistProdProcNames,0)))","v":""},null,{"$f":"IF(F40=\"\",\"\",INDEX(CNCodes_ListNames,MATCH(F40,CNCodes_ListKey,0)))","v":""},null,{"$f":"IF(OR($D40=\"\",$D40=CONST_NA),\"\",INDEX(InputOutput!$AK$71:$AK$80,MATCH($D40,InputOutput!$D$71:$D$80,0)))","v":""},{"$f":"IF(OR($D40=\"\",$D40=CONST_NA),\"\",INDEX(InputOutput!$AM$71:$AM$80,MATCH($D40,InputOutput!$D$71:$D$80,0)))","v":""},"","",{"$f":"IF($E40=\"\",\"\",INDEX(Summary_Processes!$AG$159:$AG$517,MATCH($D40,Summary_Processes!$D$159:$D$517,0)))","v":""},{"$f":"IF(D40=\"\",\"\",INDEX(D_Processes!T:T,MATCH(CONST_CNTR_ElecEFMethod&D40,D_Processes!R:R,0)))","v":""},{"$f":"IF(OR($D40=\"\",$D40=CONST_NA),\"\",INDEX(InputOutput!$AO$71:$AO$80,MATCH($D40,InputOutput!$D$71:$D$80,0)))","v":""},{"$nulls":24},"","",null,"",null,"",null,null,"","",null,"","","",null,null,"",null,null,false,null,"n.a.",null,"","","",""]
[null,null,32,null,"",null,"",null,{"$f":"IF(OR($D41=\"\",$D41=CONST_NA),\"\",INDEX(InputOutput!$AK$71:$AK$80,MATCH($D41,InputOutput!$D$71:$D$80,0)))","v":""},{"$f":"IF(OR($D41=\"\",$D41=CONST_NA),\"\",INDEX(InputOutput!$AM$71:$AM$80,MATCH($D41,InputOutput!$D$71:$D$80,0)))","v":""},"","",{"$f":"IF($E41=\"\",\"\",INDEX(Summary_Processes!$AG$159:$AG$517,MATCH($D41,Summary_Processes!$D$159:$D$517,0)))","v":""},{"$f":"IF(D41=\"\",\"\",INDEX(D_Processes!T:T,MATCH(CONST_CNTR_ElecEFMethod&D41,D_Processes!R:R,0)))","v":""},{"$f":"IF(OR($D41=\"\",$D41=CONST_NA),\"\",INDEX(InputOutput!$AO$71:$AO$80,MATCH($D41,InputOutput!$D$71:$D$80,0)))","v":""},{"$nulls":24},"","",null,"",null,"",null,null,"","",null,"","","",null,null,"",null,null,false,null,"n.a.",null,"","","",""]
[null,null,33,null,"",null,"",null,{"$f":"IF(OR($D42=\"\",$D42=CONST_NA),\"\",INDEX(InputOutput!$AK$71:$AK$80,MATCH($D42,InputOutput!$D$71:$D$80,0)))","v":""},{"$f":"IF(OR($D42=\"\",$D42=CONST_NA),\"\",INDEX(InputOutput!$AM$71:$AM$80,MATCH($D42,InputOutput!$D$71:$D$80,0)))","v":""},"","",{"$f":"IF($E42=\"\",\"\",INDEX(Summary_Processes!$AG$159:$AG$517,MATCH($D42,Summary_Processes!$D$159:$D$517,0)))","v":""},{"$f":"IF(D42=\"\",\"\",INDEX(D_Processes!T:T,MATCH(CONST_CNTR_ElecEFMethod&D42,D_Processes!R:R,0)))","v":""},{"$f":"IF(OR($D42=\"\",$D42=CONST_NA),\"\",INDEX(InputOutput!$AO$71:$AO$80,MATCH($D42,InputOutput!$D$71:$D$80,0)))","v":""},{"$nulls":24},"",{"$f":"L42","v":""},null,{"$f":"IF(AP42=\"\",\"\",INDEX(CNTR_ListCurrenciesName,MATCH(AP42,CNTR_ListCurrenciesCode,0)))","v":""},null,{"$f":"IF(OR(D42=\"\",AP42=\"\"),\"\",AP42&\"/\"&INDEX(CONST_LIST_GoodsUnit,MATCH($E42,CONST_LIST_Goods,0)))","v":""},null,null,"","",null,"",{"$f":"IF(K42=\"\",\"\",(AR42-AX42))","v":""},"",null,null,{"$f":"IF(OR($D42=\"\",$D42=CONST_NA),\"\",INDEX(CONST_CNTR_ListGoodsForCN,MATCH(E42,CONST_LIST_Goods,0)))","v":""},null,null,false,null,{"$f":"IF(CNTR_HasEntriesA,IF(AND(D42<>\"\",COUNTIF(D246:BA246,TRUE)>0),CONST_ErrorOrMissing,IF(AND(D42<>\"\",COUNTIF(D246:BA246,TRUE)=0),TRUE,CONST_NA)),CONST_NA)","v":"n.a."},null,{"$f":"IF(P42=\"\",\"\",MATCH(P42,CONST_ReducingAgent,0))","v":""},{"$f":"IF(AC42=\"\",\"\",MATCH(AC42,CONST_TrueFalse,0))","v":""},{"$f":"IF(AL42=\"\",\"\",MATCH(AL42,CONST_CarbonPriceType,0))","v":""},{"$f":"IF(AT42=\"\",\"\",MATCH(AT42,CONST_RebateType,0))","v":""}]
[null,null,34,null,"",null,"",null,{"$f":"IF(OR($D43=\"\",$D43=CONST_NA),\"\",INDEX(InputOutput!$AK$71:$AK$80,MATCH($D43,InputOutput!$D$71:$D$80,0)))","v":""},{"$f":"IF(OR($D43=\"\",$D43=CONST_NA),\"\",INDEX(InputOutput!$AM$71:$AM$80,MATCH($D43,InputOutput!$D$71:$D$80,0)))","v":""},"","",{"$f":"IF($E43=\"\",\"\",INDEX(Summary_Processes!$AG$159:$AG$517,MATCH($D43,Summary_Processes!$D$159:$D$517,0)))","v":""},{"$f":"IF(D43=\"\",\"\",INDEX(D_Processes!T:T,MATCH(CONST_CNTR_ElecEFMethod&D43,D_Processes!R:R,0)))","v":""},{"$f":"IF(OR($D43=\"\",$D43=CONST_NA),\"\",INDEX(InputOutput!$AO$71:$AO$80,MATCH($D43,InputOutput!$D$71:$D$80,0)))","v":""},{"$nulls":24},"","",null,"",null,"",null,null,"","",null,"","","",null,null,"",null,null,{"$f":"AND(CNTR_HasEntriesA,D43=\"\")","v":false},null,"n.a.",null,"","","",""]
[null,null,35,null,"",null,"",null,{"$f":"IF(OR($D44=\"\",$D44=CONST_NA),\"\",INDEX(InputOutput!$AK$71:$AK$80,MATCH($D44,InputOutput!$D$71:$D$80,0)))","v":""},{"$f":"IF(OR($D44=\"\",$D44=CONST_NA),\"\",INDEX(InputOutput!$AM$71:$AM$80,MATCH($D44,InputOutput!$D$71:$D$80,0)))","v":""},"","",{"$f":"IF($E44=\"\",\"\",INDEX(Summary_Processes!$AG$159:$AG$517,MATCH($D44,Summary_Processes!$D$159:$D$517,0)))","v":""},{"$f":"IF(D44=\"\",\"\",INDEX(D_Processes!T:T,MATCH(CONST_CNTR_ElecEFMethod&D44,D_Processes!R:R,0)))","v":""},{"$f":"IF(OR($D44=\"\",$D44=CONST_NA),\"\",INDEX(InputOutput!$AO$71:$AO$80,MATCH($D44,InputOutput!$D$71:$D$80,0)))","v":""},{"$nulls":24},"","",null,"",null,"",null,null,"","",null,"","","",null,null,"",null,null,false,null,"n.a.",null,"","","",""]
[null,null,36,null,"",null,"",null,{"$f":"IF(OR($D45=\"\",$D45=CONST_NA),\"\",INDEX(InputOutput!$AK$71:$AK$80,MATCH($D45,InputOutput!$D$71:$D$80,0)))","v":""},{"$f":"IF(OR($D45=\"\",$D45=CONST_NA),\"\",INDEX(InputOutput!$AM$71:$AM$80,MATCH($D45,InputOutput!$D$71:$D$80,0)))","v":""},"","",{"$f":"IF($E45=\"\",\"\",INDEX(Summary_Processes!$AG$159:$AG$517,MATCH($D45,Summary_Processes!$D$159:$D$517,0)))","v":""},{"$f":"IF(D45=\"\",\"\",INDEX(D_Processes!T:T,MATCH(CONST_CNTR_ElecEFMethod&D45,D_Processes!R:R,0)))","v":""},{"$f":"IF(OR($D45=\"\",$D45=CONST_NA),\"\",INDEX(InputOutput!$AO$71:$AO$80,MATCH($D45,InputOutput!$D$71:$D$80,0)))","v":""},{"$nulls":24},"","",null,"",null,"",null,null,"","",null,"","","",null,null,"",null,null,false,null,"n.a.",null,"","","",""]
[null,null,37,null,"",null,"",null,{"$f":"IF(OR($D46=\"\",$D46=CONST_NA),\"\",INDEX(InputOutput!$AK$71:$AK$80,MATCH($D46,InputOutput!$D$71:$D$80,0)))","v":""},{"$f":"IF(OR($D46=\"\",$D46=CONST_NA),\"\",INDEX(InputOutput!$AM$71:$AM$80,MATCH($D46,InputOutput!$D$71:$D$80,0)))","v":""},"","",{"$f":"IF($E46=\"\",\"\",INDEX(Summary_Processes!$AG$159:$AG$517,MATCH($D46,Summary_Processes!$D$159:$D$517,0)))","v":""},{"$f":"IF(D46=\"\",\"\",INDEX(D_Processes!T:T,MATCH(CONST_CNTR_ElecEFMethod&D46,D_Processes!R:R,0)))","v":""},{"$f":"IF(OR($D46=\"\",$D46=CONST_NA),\"\",INDEX(InputOutput!$AO$71:$AO$80,MATCH($D46,InputOutput!$D$71:$D$80,0)))","v":""},{"$nulls":24},"","",null,"",null,"",null,null,"","",null,"","","",null,null,"",null,null,false,null,"n.a.",null,"","","",""]
[null,null,38,null,"",null,"",null,{"$f":"IF(OR($D47=\"\",$D47=CONST_NA),\"\",INDEX(InputOutput!$AK$71:$AK$80,MATCH($D47,InputOutput!$D$71:$D$80,0)))","v":""},{"$f":"IF(OR($D47=\"\",$D47=CONST_NA),\"\",INDEX(InputOutput!$AM$71:$AM$80,MATCH($D47,InputOutput!$D$71:$D$80,0)))","v":""},"","",{"$f":"IF($E47=\"\",\"\",INDEX(Summary_Processes!$AG$159:$AG$517,MATCH($D47,Summary_Processes!$D$159:$D$517,0)))","v":""},{"$f":"IF(D47=\"\",\"\",INDEX(D_Processes!T:T,MATCH(CONST_CNTR_ElecEFMethod&D47,D_Processes!R:R,0)))","v":""},{"$f":"IF(OR($D47=\"\",$D47=CONST_NA),\"\",INDEX(InputOutput!$AO$71:$AO$80,MATCH($D47,InputOutput!$D$71:$D$80,0)))","v":""},{"$nulls":24},"","",null,"",null,"",null,null,"","",null,"","","",null,null,"",null,null,false,null,"n.a.",null,"","","",""]
[null,null,39,null,"",null,"",null,{"$f":"IF(OR($D48=\"\",$D48=CONST_NA),\"\",INDEX(InputOutput!$AK$71:$AK$80,MATCH($D48,InputOutput!$D$71:$D$80,0)))","v":""},{"$f":"IF(OR($D48=\"\",$D48=CONST_NA),\"\",INDEX(InputOutput!$AM$71:$AM$80,MATCH($D48,InputOutput!$D$71:$D$80,0)))","v":""},"","",{"$f":"IF($E48=\"\",\"\",INDEX(Summary_Processes!$AG$159:$AG$517,MATCH($D48,Summary_Processes!$D$159:$D$517,0)))","v":""},{"$f":"IF(D48=\"\",\"\",INDEX(D_Processes!T:T,MATCH(CONST_CNTR_ElecEFMethod&D48,D_Processes!R:R,0)))","v":""},{"$f":"IF(OR($D48=\"\",$D48=CONST_NA),\"\",INDEX(InputOutput!$AO$71:$AO$80,MATCH($D48,InputOutput!$D$71:$D$80,0)))","v":""},{"$nulls":24},"","",null,"",null,"",null,null,"","",null,"","","",null,null,"",null,null,false,null,"n.a.",null,"","","",""]
[null,null,40,null,"",null,"",null,{"$f":"IF(OR($D49=\"\",$D49=CONST_NA),\"\",INDEX(InputOutput!$AK$71:$AK$80,MATCH($D49,InputOutput!$D$71:$D$80,0)))","v":""},{"$f":"IF(OR($D49=\"\",$D49=CONST_NA),\"\",INDEX(InputOutput!$AM$71:$AM$80,MATCH($D49,InputOutput!$D$71:$D$80,0)))","v":""},"","",{"$f":"IF($E49=\"\",\"\",INDEX(Summary_Processes!$AG$159:$AG$517,MATCH($D49,Summary_Processes!$D$159:$D$517,0)))","v":""},{"$f":"IF(D49=\"\",\"\",INDEX(D_Processes!T:T,MATCH(CONST_CNTR_ElecEFMethod&D49,D_Processes!R:R,0)))","v":""},{"$f":"IF(OR($D49=\"\",$D49=CONST_NA),\"\",INDEX(InputOutput!$AO$71:$AO$80,MATCH($D49,InputOutput!$D$71:$D$80,0)))","v":""},{"$nulls":24},"","",null,"",null,"",null,null,"","",null,"","","",null,null,"",null,null,false,null,"n.a.",null,"","","",""]
[null,null,41,null,"",null,"",null,{"$f":"IF(OR($D50=\"\",$D50=CONST_NA),\"\",INDEX(InputOutput!$AK$71:$AK$80,MATCH($D50,InputOutput!$D$71:$D$80,0)))","v":""},{"$f":"IF(OR($D50=\"\",$D50=CONST_NA),\"\",INDEX(InputOutput!$AM$71:$AM$80,MATCH($D50,InputOutput!$D$71:$D$80,0)))","v":""},"","",{"$f":"IF($E50=\"\",\"\",INDEX(Summary_Processes!$AG$159:$AG$517,MATCH($D50,Summary_Processes!$D$159:$D$517,0)))","v":""},{"$f":"IF(D50=\"\",\"\",INDEX(D_Processes!T:T,MATCH(CONST_CNTR_ElecEFMethod&D50,D_Processes!R:R,0)))","v":""},{"$f":"IF(OR($D50=\"\",$D50=CONST_NA),\"\",INDEX(InputOutput!$AO$71:$AO$80,MATCH($D50,InputOutput!$D$71:$D$80,0)))","v":""},{"$nulls":24},"","",null,"",null,"",null,null,"","",null,"","","",null,null,"",null,null,false,null,"n.a.",null,"","","",""]
[null,null,42,null,"",null,"",null,{"$f":"IF(OR($D51=\"\",$D51=CONST_NA),\"\",INDEX(InputOutput!$AK$71:$AK$80,MATCH($D51,InputOutput!$D$71:$D$80,0)))","v":""},{"$f":"IF(OR($D51=\"\",$D51=CONST_NA),\"\",INDEX(InputOutput!$AM$71:$AM$80,MATCH($D51,InputOutput!$D$71:$D$80,0)))","v":""},"","",{"$f":"IF($E51=\"\",\"\",INDEX(Summary_Processes!$AG$159:$AG$517,MATCH($D51,Summary_Processes!$D$159:$D$517,0)))","v":""},{"$f":"IF(D51=\"\",\"\",INDEX(D_Processes!T:T,MATCH(CONST_CNTR_ElecEFMethod&D51,D_Processes!R:R,0)))","v":""},{"$f":"IF(OR($D51=\"\",$D51=CONST_NA),\"\",INDEX(InputOutput!$AO$71:$AO$80,MATCH($D51,InputOutput!$D$71:$D$80,0)))","v":""},{"$nulls":24},"","",null,"",null,"",null,null,"","",null,"","","",null,null,"",null,null,false,null,"n.a.",null,"","","",""]
[null,null,43,null,"",null,"",null,{"$f":"IF(OR($D52=\"\",$D52=CONST_NA),\"\",INDEX(InputOutput!$AK$71:$AK$80,MATCH($D52,InputOutput!$D$71:$D$80,0)))","v":""},{"$f":"IF(OR($D52=\"\",$D52=CONST_NA),\"\",INDEX(InputOutput!$AM$71:$AM$80,MATCH($D52,InputOutput!$D$71:$D$80,0)))","v":""},"","",{"$f":"IF($E52=\"\",\"\",INDEX(Summary_Processes!$AG$159:$AG$517,MATCH($D52,Summary_Processes!$D$159:$D$517,0)))","v":""},{"$f":"IF(D52=\"\",\"\",INDEX(D_Processes!T:T,MATCH(CONST_CNTR_ElecEFMethod&D52,D_Processes!R:R,0)))","v":""},{"$f":"IF(OR($D52=\"\",$D52=CONST_NA),\"\",INDEX(InputOutput!$AO$71:$AO$80,MATCH($D52,InputOutput!$D$71:$D$80,0)))","v":""},{"$nulls":24},"","",null,"",null,"",null,null,"","",null,"","","",null,null,"",null,null,false,null,"n.a.",null,"","","",""]
[null,null,44,null,"",null,"",null,{"$f":"IF(OR($D53=\"\",$D53=CONST_NA),\"\",INDEX(InputOutput!$AK$71:$AK$80,MATCH($D53,InputOutput!$D$71:$D$80,0)))","v":""},{"$f":"IF(OR($D53=\"\",$D53=CONST_NA),\"\",INDEX(InputOutput!$AM$71:$AM$80,MATCH($D53,InputOutput!$D$71:$D$80,0)))","v":""},"","",{"$f":"IF($E53=\"\",\"\",INDEX(Summary_Processes!$AG$159:$AG$517,MATCH($D53,Summary_Processes!$D$159:$D$517,0)))","v":""},{"$f":"IF(D53=\"\",\"\",INDEX(D_Processes!T:T,MATCH(CONST_CNTR_ElecEFMethod&D53,D_Processes!R:R,0)))","v":""},{"$f":"IF(OR($D53=\"\",$D53=CONST_NA),\"\",INDEX(InputOutput!$AO$71:$AO$80,MATCH($D53,InputOutput!$D$71:$D$80,0)))","v":""},{"$nulls":24},"","",null,"",null,"",null,null,"","",null,"","","",null,null,"",null,null,false,null,"n.a.",null,"","","",""]
[null,null,45,null,"",null,"",null,{"$f":"IF(OR($D54=\"\",$D54=CONST_NA),\"\",INDEX(InputOutput!$AK$71:$AK$80,MATCH($D54,InputOutput!$D$71:$D$80,0)))","v":""},{"$f":"IF(OR($D54=\"\",$D54=CONST_NA),\"\",INDEX(InputOutput!$AM$71:$AM$80,MATCH($D54,InputOutput!$D$71:$D$80,0)))","v":""},"","",{"$f":"IF($E54=\"\",\"\",INDEX(Summary_Processes!$AG$159:$AG$517,MATCH($D54,Summary_Processes!$D$159:$D$517,0)))","v":""},{"$f":"IF(D54=\"\",\"\",INDEX(D_Processes!T:T,MATCH(CONST_CNTR_ElecEFMethod&D54,D_Processes!R:R,0)))","v":""},{"$f":"IF(OR($D54=\"\",$D54=CONST_NA),\"\",INDEX(InputOutput!$AO$71:$AO$80,MATCH($D54,InputOutput!$D$71:$D$80,0)))","v":""},{"$nulls":24},"","",null,"",null,"",null,null,"","",null,"","","",null,null,"",null,null,false,null,"n.a.",null,"","","",""]
[null,null,46,null,"",null,"",null,{"$f":"IF(OR($D55=\"\",$D55=CONST_NA),\"\",INDEX(InputOutput!$AK$71:$AK$80,MATCH($D55,InputOutput!$D$71:$D$80,0)))","v":""},{"$f":"IF(OR($D55=\"\",$D55=CONST_NA),\"\",INDEX(InputOutput!$AM$71:$AM$80,MATCH($D55,InputOutput!$D$71:$D$80,0)))","v":""},"","",{"$f":"IF($E55=\"\",\"\",INDEX(Summary_Processes!$AG$159:$AG$517,MATCH($D55,Summary_Processes!$D$159:$D$517,0)))","v":""},{"$f":"IF(D55=\"\",\"\",INDEX(D_Processes!T:T,MATCH(CONST_CNTR_ElecEFMethod&D55,D_Processes!R:R,0)))","v":""},{"$f":"IF(OR($D55=\"\",$D55=CONST_NA),\"\",INDEX(InputOutput!$AO$71:$AO$80,MATCH($D55,InputOutput!$D$71:$D$80,0)))","v":""},{"$nulls":24},"","",null,"",null,"",null,null,"","",null,"","","",null,null,"",null,null,false,null,"n.a.",null,"","","",""]
[null,null,47,null,"",null,"",null,{"$f":"IF(OR($D56=\"\",$D56=CONST_NA),\"\",INDEX(InputOutput!$AK$71:$AK$80,MATCH($D56,InputOutput!$D$71:$D$80,0)))","v":""},{"$f":"IF(OR($D56=\"\",$D56=CONST_NA),\"\",INDEX(InputOutput!$AM$71:$AM$80,MATCH($D56,InputOutput!$D$71:$D$80,0)))","v":""},"","",{"$f":"IF($E56=\"\",\"\",INDEX(Summary_Processes!$AG$159:$AG$517,MATCH($D56,Summary_Processes!$D$159:$D$517,0)))","v":""},{"$f":"IF(D56=\"\",\"\",INDEX(D_Processes!T:T,MATCH(CONST_CNTR_ElecEFMethod&D56,D_Processes!R:R,0)))","v":""},{"$f":"IF(OR($D56=\"\",$D56=CONST_NA),\"\",INDEX(InputOutput!$AO$71:$AO$80,MATCH($D56,InputOutput!$D$71:$D$80,0)))","v":""},{"$nulls":24},"","",null,"",null,"",null,null,"","",null,"","","",null,null,"",null,null,false,null,"n.a.",null,"","","",""]
[null,null,48,null,"",null,"",null,{"$f":"IF(OR($D57=\"\",$D57=CONST_NA),\"\",INDEX(InputOutput!$AK$71:$AK$80,MATCH($D57,InputOutput!$D$71:$D$80,0)))","v":""},{"$f":"IF(OR($D57=\"\",$D57=CONST_NA),\"\",INDEX(InputOutput!$AM$71:$AM$80,MATCH($D57,InputOutput!$D$71:$D$80,0)))","v":""},"","",{"$f":"IF($E57=\"\",\"\",INDEX(Summary_Processes!$AG$159:$AG$517,MATCH($D57,Summary_Processes!$D$159:$D$517,0)))","v":""},{"$f":"IF(D57=\"\",\"\",INDEX(D_Processes!T:T,MATCH(CONST_CNTR_ElecEFMethod&D57,D_Processes!R:R,0)))","v":""},{"$f":"IF(OR($D57=\"\",$D57=CONST_NA),\"\",INDEX(InputOutput!$AO$71:$AO$80,MATCH($D57,InputOutput!$D$71:$D$80,0)))","v":""},{"$nulls":24},"","",null,"",null,"",null,null,"","",null,"","","",null,null,"",null,null,false,null,"n.a.",null,"","","",""]
[null,null,49,null,"",null,"",null,{"$f":"IF(OR($D58=\"\",$D58=CONST_NA),\"\",INDEX(InputOutput!$AK$71:$AK$80,MATCH($D58,InputOutput!$D$71:$D$80,0)))","v":""},{"$f":"IF(OR($D58=\"\",$D58=CONST_NA),\"\",INDEX(InputOutput!$AM$71:$AM$80,MATCH($D58,InputOutput!$D$71:$D$80,0)))","v":""},"","",{"$f":"IF($E58=\"\",\"\",INDEX(Summary_Processes!$AG$159:$AG$517,MATCH($D58,Summary_Processes!$D$159:$D$517,0)))","v":""},{"$f":"IF(D58=\"\",\"\",INDEX(D_Processes!T:T,MATCH(CONST_CNTR_ElecEFMethod&D58,D_Processes!R:R,0)))","v":""},{"$f":"IF(OR($D58=\"\",$D58=CONST_NA),\"\",INDEX(InputOutput!$AO$71:$AO$80,MATCH($D58,InputOutput!$D$71:$D$80,0)))","v":""},{"$nulls":24},"","",null,"",null,"",null,null,"","",null,"","","",null,null,"",null,null,false,null,"n.a.",null,"","","",""]
[null,null,50,null,"",null,"",null,{"$f":"IF(OR($D59=\"\",$D59=CONST_NA),\"\",INDEX(InputOutput!$AK$71:$AK$80,MATCH($D59,InputOutput!$D$71:$D$80,0)))","v":""},{"$f":"IF(OR($D59=\"\",$D59=CONST_NA),\"\",INDEX(InputOutput!$AM$71:$AM$80,MATCH($D59,InputOutput!$D$71:$D$80,0)))","v":""},"","",{"$f":"IF($E59=\"\",\"\",INDEX(Summary_Processes!$AG$159:$AG$517,MATCH($D59,Summary_Processes!$D$159:$D$517,0)))","v":""},{"$f":"IF(D59=\"\",\"\",INDEX(D_Processes!T:T,MATCH(CONST_CNTR_ElecEFMethod&D59,D_Processes!R:R,0)))","v":""},{"$f":"IF(OR($D59=\"\",$D59=CONST_NA),\"\",INDEX(InputOutput!$AO$71:$AO$80,MATCH($D59,InputOutput!$D$71:$D$80,0)))","v":""},{"$nulls":24},"","",null,"",null,"",null,null,"","",null,"","","",null,null,"",null,null,false,null,"n.a.",null,"","","",""]
[null,null,51,null,"",null,"",null,{"$f":"IF(OR($D60=\"\",$D60=CONST_NA),\"\",INDEX(InputOutput!$AK$71:$AK$80,MATCH($D60,InputOutput!$D$71:$D$80,0)))","v":""},{"$f":"IF(OR($D60=\"\",$D60=CONST_NA),\"\",INDEX(InputOutput!$AM$71:$AM$80,MATCH($D60,InputOutput!$D$71:$D$80,0)))","v":""},"","",{"$f":"IF($E60=\"\",\"\",INDEX(Summary_Processes!$AG$159:$AG$517,MATCH($D60,Summary_Processes!$D$159:$D$517,0)))","v":""},{"$f":"IF(D60=\"\",\"\",INDEX(D_Processes!T:T,MATCH(CONST_CNTR_ElecEFMethod&D60,D_Processes!R:R,0)))","v":""},{"$f":"IF(OR($D60=\"\",$D60=CONST_NA),\"\",INDEX(InputOutput!$AO$71:$AO$80,MATCH($D60,InputOutput!$D$71:$D$80,0)))","v":""},{"$nulls":24},"","",null,"",null,"",null,null,"","",null,"","","",null,null,"",null,null,false,null,"n.a.",null,"","","",""]
[null,null,52,null,"",null,"",null,{"$f":"IF(OR($D61=\"\",$D61=CONST_NA),\"\",INDEX(InputOutput!$AK$71:$AK$80,MATCH($D61,InputOutput!$D$71:$D$80,0)))","v":""},{"$f":"IF(OR($D61=\"\",$D61=CONST_NA),\"\",INDEX(InputOutput!$AM$71:$AM$80,MATCH($D61,InputOutput!$D$71:$D$80,0)))","v":""},"","",{"$f":"IF($E61=\"\",\"\",INDEX(Summary_Processes!$AG$159:$AG$517,MATCH($D61,Summary_Processes!$D$159:$D$517,0)))","v":""},{"$f":"IF(D61=\"\",\"\",INDEX(D_Processes!T:T,MATCH(CONST_CNTR_ElecEFMethod&D61,D_Processes!R:R,0)))","v":""},{"$f":"IF(OR($D61=\"\",$D61=CONST_NA),\"\",INDEX(InputOutput!$AO$71:$AO$80,MATCH($D61,InputOutput!$D$71:$D$80,0)))","v":""},{"$nulls":24},"","",null,"",null,"",null,null,"","",null,"","","",null,null,"",null,null,false,null,"n.a.",null,"","","",""]
[null,null,53,null,"",null,"",null,{"$f":"IF(OR($D62=\"\",$D62=CONST_NA),\"\",INDEX(InputOutput!$AK$71:$AK$80,MATCH($D62,InputOutput!$D$71:$D$80,0)))","v":""},{"$f":"IF(OR($D62=\"\",$D62=CONST_NA),\"\",INDEX(InputOutput!$AM$71:$AM$80,MATCH($D62,InputOutput!$D$71:$D$80,0)))","v":""},"","",{"$f":"IF($E62=\"\",\"\",INDEX(Summary_Processes!$AG$159:$AG$517,MATCH($D62,Summary_Processes!$D$159:$D$517,0)))","v":""},{"$f":"IF(D62=\"\",\"\",INDEX(D_Processes!T:T,MATCH(CONST_CNTR_ElecEFMethod&D62,D_Processes!R:R,0)))","v":""},{"$f":"IF(OR($D62=\"\",$D62=CONST_NA),\"\",INDEX(InputOutput!$AO$71:$AO$80,MATCH($D62,InputOutput!$D$71:$D$80,0)))","v":""},{"$nulls":24},"","",null,"",null,"",null,null,"","",null,"","","",null,null,"",null,null,false,null,"n.a.",null,"","","",""]
[null,null,54,null,"",null,"",null,{"$f":"IF(OR($D63=\"\",$D63=CONST_NA),\"\",INDEX(InputOutput!$AK$71:$AK$80,MATCH($D63,InputOutput!$D$71:$D$80,0)))","v":""},{"$f":"IF(OR($D63=\"\",$D63=CONST_NA),\"\",INDEX(InputOutput!$AM$71:$AM$80,MATCH($D63,InputOutput!$D$71:$D$80,0)))","v":""},"","",{"$f":"IF($E63=\"\",\"\",INDEX(Summary_Processes!$AG$159:$AG$517,MATCH($D63,Summary_Processes!$D$159:$D$517,0)))","v":""},{"$f":"IF(D63=\"\",\"\",INDEX(D_Processes!T:T,MATCH(CONST_CNTR_ElecEFMethod&D63,D_Processes!R:R,0)))","v":""},{"$f":"IF(OR($D63=\"\",$D63=CONST_NA),\"\",INDEX(InputOutput!$AO$71:$AO$80,MATCH($D63,InputOutput!$D$71:$D$80,0)))","v":""},{"$nulls":24},"","",null,"",null,"",null,null,"","",null,"","","",null,null,"",null,null,false,null,"n.a.",null,"","","",""]
[null,null,55,null,"",null,"",null,{"$f":"IF(OR($D64=\"\",$D64=CONST_NA),\"\",INDEX(InputOutput!$AK$71:$AK$80,MATCH($D64,InputOutput!$D$71:$D$80,0)))","v":""},{"$f":"IF(OR($D64=\"\",$D64=CONST_NA),\"\",INDEX(InputOutput!$AM$71:$AM$80,MATCH($D64,InputOutput!$D$71:$D$80,0)))","v":""},"","",{"$f":"IF($E64=\"\",\"\",INDEX(Summary_Processes!$AG$159:$AG$517,MATCH($D64,Summary_Processes!$D$159:$D$517,0)))","v":""},{"$f":"IF(D64=\"\",\"\",INDEX(D_Processes!T:T,MATCH(CONST_CNTR_ElecEFMethod&D64,D_Processes!R:R,0)))","v":""},{"$f":"IF(OR($D64=\"\",$D64=CONST_NA),\"\",INDEX(InputOutput!$AO$71:$AO$80,MATCH($D64,InputOutput!$D$71:$D$80,0)))","v":""},{"$nulls":24},"","",null,"",null,"",null,null,"","",null,"","","",null,null,"",null,null,false,null,"n.a.",null,"","","",""]
[null,null,56,null,"",null,"",null,{"$f":"IF(OR($D65=\"\",$D65=CONST_NA),\"\",INDEX(InputOutput!$AK$71:$AK$80,MATCH($D65,InputOutput!$D$71:$D$80,0)))","v":""},{"$f":"IF(OR($D65=\"\",$D65=CONST_NA),\"\",INDEX(InputOutput!$AM$71:$AM$80,MATCH($D65,InputOutput!$D$71:$D$80,0)))","v":""},"","",{"$f":"IF($E65=\"\",\"\",INDEX(Summary_Processes!$AG$159:$AG$517,MATCH($D65,Summary_Processes!$D$159:$D$517,0)))","v":""},{"$f":"IF(D65=\"\",\"\",INDEX(D_Processes!T:T,MATCH(CONST_CNTR_ElecEFMethod&D65,D_Processes!R:R,0)))","v":""},{"$f":"IF(OR($D65=\"\",$D65=CONST_NA),\"\",INDEX(InputOutput!$AO$71:$AO$80,MATCH($D65,InputOutput!$D$71:$D$80,0)))","v":""},{"$nulls":24},"","",null,"",null,"",null,null,"","",null,"","","",null,null,"",null,null,false,null,"n.a.",null,"","","",""]
[null,null,57,null,"",null,"",null,{"$f":"IF(OR($D66=\"\",$D66=CONST_NA),\"\",INDEX(InputOutput!$AK$71:$AK$80,MATCH($D66,InputOutput!$D$71:$D$80,0)))","v":""},{"$f":"IF(OR($D66=\"\",$D66=CONST_NA),\"\",INDEX(InputOutput!$AM$71:$AM$80,MATCH($D66,InputOutput!$D$71:$D$80,0)))","v":""},"","",{"$f":"IF($E66=\"\",\"\",INDEX(Summary_Processes!$AG$159:$AG$517,MATCH($D66,Summary_Processes!$D$159:$D$517,0)))","v":""},{"$f":"IF(D66=\"\",\"\",INDEX(D_Processes!T:T,MATCH(CONST_CNTR_ElecEFMethod&D66,D_Processes!R:R,0)))","v":""},{"$f":"IF(OR($D66=\"\",$D66=CONST_NA),\"\",INDEX(InputOutput!$AO$71:$AO$80,MATCH($D66,InputOutput!$D$71:$D$80,0)))","v":""},{"$nulls":24},"","",null,"",null,"",null,null,"","",null,"","","",null,null,"",null,null,false,null,"n.a.",null,"","","",""]
[null,null,58,null,"",null,"",null,{"$f":"IF(OR($D67=\"\",$D67=CONST_NA),\"\",INDEX(InputOutput!$AK$71:$AK$80,MATCH($D67,InputOutput!$D$71:$D$80,0)))","v":""},{"$f":"IF(OR($D67=\"\",$D67=CONST_NA),\"\",INDEX(InputOutput!$AM$71:$AM$80,MATCH($D67,InputOutput!$D$71:$D$80,0)))","v":""},"","",{"$f":"IF($E67=\"\",\"\",INDEX(Summary_Processes!$AG$159:$AG$517,MATCH($D67,Summary_Processes!$D$159:$D$517,0)))","v":""},{"$f":"IF(D67=\"\",\"\",INDEX(D_Processes!T:T,MATCH(CONST_CNTR_ElecEFMethod&D67,D_Processes!R:R,0)))","v":""},{"$f":"IF(OR($D67=\"\",$D67=CONST_NA),\"\",INDEX(InputOutput!$AO$71:$AO$80,MATCH($D67,InputOutput!$D$71:$D$80,0)))","v":""},{"$nulls":24},"","",null,"",null,"",null,null,"","",null,"","","",null,null,"",null,null,false,null,"n.a.",null,"","","",""]
[null,null,59,null,"",null,"",null,{"$f":"IF(OR($D68=\"\",$D68=CONST_NA),\"\",INDEX(InputOutput!$AK$71:$AK$80,MATCH($D68,InputOutput!$D$71:$D$80,0)))","v":""},{"$f":"IF(OR($D68=\"\",$D68=CONST_NA),\"\",INDEX(InputOutput!$AM$71:$AM$80,MATCH($D68,InputOutput!$D$71:$D$80,0)))","v":""},"","",{"$f":"IF($E68=\"\",\"\",INDEX(Summary_Processes!$AG$159:$AG$517,MATCH($D68,Summary_Processes!$D$159:$D$517,0)))","v":""},{"$f":"IF(D68=\"\",\"\",INDEX(D_Processes!T:T,MATCH(CONST_CNTR_ElecEFMethod&D68,D_Processes!R:R,0)))","v":""},{"$f":"IF(OR($D68=\"\",$D68=CONST_NA),\"\",INDEX(InputOutput!$AO$71:$AO$80,MATCH($D68,InputOutput!$D$71:$D$80,0)))","v":""},{"$nulls":24},"","",null,"",null,"",null,null,"","",null,"","","",null,null,"",null,null,false,null,"n.a.",null,"","","",""]
[null,null,60,null,"",null,"",null,{"$f":"IF(OR($D69=\"\",$D69=CONST_NA),\"\",INDEX(InputOutput!$AK$71:$AK$80,MATCH($D69,InputOutput!$D$71:$D$80,0)))","v":""},{"$f":"IF(OR($D69=\"\",$D69=CONST_NA),\"\",INDEX(InputOutput!$AM$71:$AM$80,MATCH($D69,InputOutput!$D$71:$D$80,0)))","v":""},"","",{"$f":"IF($E69=\"\",\"\",INDEX(Summary_Processes!$AG$159:$AG$517,MATCH($D69,Summary_Processes!$D$159:$D$517,0)))","v":""},{"$f":"IF(D69=\"\",\"\",INDEX(D_Processes!T:T,MATCH(CONST_CNTR_ElecEFMethod&D69,D_Processes!R:R,0)))","v":""},{"$f":"IF(OR($D69=\"\",$D69=CONST_NA),\"\",INDEX(InputOutput!$AO$71:$AO$80,MATCH($D69,InputOutput!$D$71:$D$80,0)))","v":""},{"$nulls":24},"","",null,"",null,"",null,null,"","",null,"","","",null,null,"",null,null,false,null,"n.a.",null,"","","",""]
[null,null,61,null,"",null,"",null,{"$f":"IF(OR($D70=\"\",$D70=CONST_NA),\"\",INDEX(InputOutput!$AK$71:$AK$80,MATCH($D70,InputOutput!$D$71:$D$80,0)))","v":""},{"$f":"IF(OR($D70=\"\",$D70=CONST_NA),\"\",INDEX(InputOutput!$AM$71:$AM$80,MATCH($D70,InputOutput!$D$71:$D$80,0)))","v":""},"","",{"$f":"IF($E70=\"\",\"\",INDEX(Summary_Processes!$AG$159:$AG$517,MATCH($D70,Summary_Processes!$D$159:$D$517,0)))","v":""},{"$f":"IF(D70=\"\",\"\",INDEX(D_Processes!T:T,MATCH(CONST_CNTR_ElecEFMethod&D70,D_Processes!R:R,0)))","v":""},{"$f":"IF(OR($D70=\"\",$D70=CONST_NA),\"\",INDEX(InputOutput!$AO$71:$AO$80,MATCH($D70,InputOutput!$D$71:$D$80,0)))","v":""},{"$nulls":24},"","",null,"",null,"",null,null,"","",null,"","","",null,null,"",null,null,false,null,"n.a.",null,"","","",""]
[null,null,62,null,"",null,"",null,{"$f":"IF(OR($D71=\"\",$D71=CONST_NA),\"\",INDEX(InputOutput!$AK$71:$AK$80,MATCH($D71,InputOutput!$D$71:$D$80,0)))","v":""},{"$f":"IF(OR($D71=\"\",$D71=CONST_NA),\"\",INDEX(InputOutput!$AM$71:$AM$80,MATCH($D71,InputOutput!$D$71:$D$80,0)))","v":""},"","",{"$f":"IF($E71=\"\",\"\",INDEX(Summary_Processes!$AG$159:$AG$517,MATCH($D71,Summary_Processes!$D$159:$D$517,0)))","v":""},{"$f":"IF(D71=\"\",\"\",INDEX(D_Processes!T:T,MATCH(CONST_CNTR_ElecEFMethod&D71,D_Processes!R:R,0)))","v":""},{"$f":"IF(OR($D71=\"\",$D71=CONST_NA),\"\",INDEX(InputOutput!$AO$71:$AO$80,MATCH($D71,InputOutput!$D$71:$D$80,0)))","v":""},{"$nulls":24},"","",null,"",null,"",null,null,"","",null,"","","",null,null,"",null,null,false,null,"n.a.",null,"","","",""]
[null,null,63,null,"",null,"",null,{"$f":"IF(OR($D72=\"\",$D72=CONST_NA),\"\",INDEX(InputOutput!$AK$71:$AK$80,MATCH($D72,InputOutput!$D$71:$D$80,0)))","v":""},{"$f":"IF(OR($D72=\"\",$D72=CONST_NA),\"\",INDEX(InputOutput!$AM$71:$AM$80,MATCH($D72,InputOutput!$D$71:$D$80,0)))","v":""},"","",{"$f":"IF($E72=\"\",\"\",INDEX(Summary_Processes!$AG$159:$AG$517,MATCH($D72,Summary_Processes!$D$159:$D$517,0)))","v":""},{"$f":"IF(D72=\"\",\"\",INDEX(D_Processes!T:T,MATCH(CONST_CNTR_ElecEFMethod&D72,D_Processes!R:R,0)))","v":""},{"$f":"IF(OR($D72=\"\",$D72=CONST_NA),\"\",INDEX(InputOutput!$AO$71:$AO$80,MATCH($D72,InputOutput!$D$71:$D$80,0)))","v":""},{"$nulls":24},"","",null,"",null,"",null,null,"","",null,"","","",null,null,"",null,null,false,null,"n.a.",null,"","","",""]
[null,null,64,null,"",null,"",null,{"$f":"IF(OR($D73=\"\",$D73=CONST_NA),\"\",INDEX(InputOutput!$AK$71:$AK$80,MATCH($D73,InputOutput!$D$71:$D$80,0)))","v":""},{"$f":"IF(OR($D73=\"\",$D73=CONST_NA),\"\",INDEX(InputOutput!$AM$71:$AM$80,MATCH($D73,InputOutput!$D$71:$D$80,0)))","v":""},"","",{"$f":"IF($E73=\"\",\"\",INDEX(Summary_Processes!$AG$159:$AG$517,MATCH($D73,Summary_Processes!$D$159:$D$517,0)))","v":""},{"$f":"IF(D73=\"\",\"\",INDEX(D_Processes!T:T,MATCH(CONST_CNTR_ElecEFMethod&D73,D_Processes!R:R,0)))","v":""},{"$f":"IF(OR($D73=\"\",$D73=CONST_NA),\"\",INDEX(InputOutput!$AO$71:$AO$80,MATCH($D73,InputOutput!$D$71:$D$80,0)))","v":""},{"$nulls":24},"","",null,"",null,"",null,null,"","",null,"","","",null,null,"",null,null,false,null,"n.a.",null,"","","",""]
[null,null,65,null,"",null,"",null,{"$f":"IF(OR($D74=\"\",$D74=CONST_NA),\"\",INDEX(InputOutput!$AK$71:$AK$80,MATCH($D74,InputOutput!$D$71:$D$80,0)))","v":""},{"$f":"IF(OR($D74=\"\",$D74=CONST_NA),\"\",INDEX(InputOutput!$AM$71:$AM$80,MATCH($D74,InputOutput!$D$71:$D$80,0)))","v":""},"","",{"$f":"IF($E74=\"\",\"\",INDEX(Summary_Processes!$AG$159:$AG$517,MATCH($D74,Summary_Processes!$D$159:$D$517,0)))","v":""},{"$f":"IF(D74=\"\",\"\",INDEX(D_Processes!T:T,MATCH(CONST_CNTR_ElecEFMethod&D74,D_Processes!R:R,0)))","v":""},{"$f":"IF(OR($D74=\"\",$D74=CONST_NA),\"\",INDEX(InputOutput!$AO$71:$AO$80,MATCH($D74,InputOutput!$D$71:$D$80,0)))","v":""},{"$nulls":24},"",{"$f":"L74","v":""},null,{"$f":"IF(AP74=\"\",\"\",INDEX(CNTR_ListCurrenciesName,MATCH(AP74,CNTR_ListCurrenciesCode,0)))","v":""},null,{"$f":"IF(OR(D74=\"\",AP74=\"\"),\"\",AP74&\"/\"&INDEX(CONST_LIST_GoodsUnit,MATCH($E74,CONST_LIST_Goods,0)))","v":""},null,null,"","",null,"",{"$f":"IF(K74=\"\",\"\",(AR74-AX74))","v":""},"",null,null,{"$f":"IF(OR($D74=\"\",$D74=CONST_NA),\"\",INDEX(CONST_CNTR_ListGoodsForCN,MATCH(E74,CONST_LIST_Goods,0)))","v":""},null,null,false,null,{"$f":"IF(CNTR_HasEntriesA,IF(AND(D74<>\"\",COUNTIF(D278:BA278,TRUE)>0),CONST_ErrorOrMissing,IF(AND(D74<>\"\",COUNTIF(D278:BA278,TRUE)=0),TRUE,CONST_NA)),CONST_NA)","v":"n.a."},null,{"$f":"IF(P74=\"\",\"\",MATCH(P74,CONST_ReducingAgent,0))","v":""},{"$f":"IF(AC74=\"\",\"\",MATCH(AC74,CONST_TrueFalse,0))","v":""},{"$f":"IF(AL74=\"\",\"\",MATCH(AL74,CONST_CarbonPriceType,0))","v":""},{"$f":"IF(AT74=\"\",\"\",MATCH(AT74,CONST_RebateType,0))","v":""}]
[null,null,66,null,"",null,"",null,{"$f":"IF(OR($D75=\"\",$D75=CONST_NA),\"\",INDEX(InputOutput!$AK$71:$AK$80,MATCH($D75,InputOutput!$D$71:$D$80,0)))","v":""},{"$f":"IF(OR($D75=\"\",$D75=CONST_NA),\"\",INDEX(InputOutput!$AM$71:$AM$80,MATCH($D75,InputOutput!$D$71:$D$80,0)))","v":""},{"$f":"IF(OR($D75=\"\",$D75=CONST_NA),\"\",SUM(I75:J75))","v":""},{"$f":"IF(E75=\"\",\"\",CONST_tCO2eq&\"/\"&INDEX(CONST_LIST_GoodsUnit,MATCH(E75,CONST_LIST_Goods,0)))","v":""},{"$f":"IF($E75=\"\",\"\",INDEX(Summary_Processes!$AG$159:$AG$517,MATCH($D75,Summary_Processes!$D$159:$D$517,0)))","v":""},{"$f":"IF(D75=\"\",\"\",INDEX(D_Processes!T:T,MATCH(CONST_CNTR_ElecEFMethod&D75,D_Processes!R:R,0)))","v":""},{"$f":"IF(OR($D75=\"\",$D75=CONST_NA),\"\",INDEX(InputOutput!$AO$71:$AO$80,MATCH($D75,InputOutput!$D$71:$D$80,0)))","v":""},{"$nulls":24},{"$f":"IF($K75=\"\",\"\",$K75*AM75)","v":""},"",null,"",null,"",null,null,{"$f":"IF($K75=\"\",\"\",$K75*AU75)","v":""},{"$f":"AS75","v":""},null,{"$f":"AS75","v":""},"",{"$f":"AS75","v":""},null,null,"",null,null,{"$f":"AND(CNTR_HasEntriesA,D75=\"\")","v":false},null,"n.a.",null,"","","",""]
[null,null,67,null,"",null,"",null,{"$f":"IF(OR($D76=\"\",$D76=CONST_NA),\"\",INDEX(InputOutput!$AK$71:$AK$80,MATCH($D76,InputOutput!$D$71:$D$80,0)))","v":""},{"$f":"IF(OR($D76=\"\",$D76=CONST_NA),\"\",INDEX(InputOutput!$AM$71:$AM$80,MATCH($D76,InputOutput!$D$71:$D$80,0)))","v":""},"","",{"$f":"IF($E76=\"\",\"\",INDEX(Summary_Processes!$AG$159:$AG$517,MATCH($D76,Summary_Processes!$D$159:$D$517,0)))","v":""},{"$f":"IF(D76=\"\",\"\",INDEX(D_Processes!T:T,MATCH(CONST_CNTR_ElecEFMethod&D76,D_Processes!R:R,0)))","v":""},{"$f":"IF(OR($D76=\"\",$D76=CONST_NA),\"\",INDEX(InputOutput!$AO$71:$AO$80,MATCH($D76,InputOutput!$D$71:$D$80,0)))","v":""},{"$nulls":24},"","",null,"",null,"",null,null,"","",null,"","","",null,null,"",null,null,false,null,"n.a.",null,"","","",""]
[null,null,68,null,"",null,"",null,{"$f":"IF(OR($D77=\"\",$D77=CONST_NA),\"\",INDEX(InputOutput!$AK$71:$AK$80,MATCH($D77,InputOutput!$D$71:$D$80,0)))","v":""},{"$f":"IF(OR($D77=\"\",$D77=CONST_NA),\"\",INDEX(InputOutput!$AM$71:$AM$80,MATCH($D77,InputOutput!$D$71:$D$80,0)))","v":""},"","",{"$f":"IF($E77=\"\",\"\",INDEX(Summary_Processes!$AG$159:$AG$517,MATCH($D77,Summary_Processes!$D$159:$D$517,0)))","v":""},{"$f":"IF(D77=\"\",\"\",INDEX(D_Processes!T:T,MATCH(CONST_CNTR_ElecEFMethod&D77,D_Processes!R:R,0)))","v":""},{"$f":"IF(OR($D77=\"\",$D77=CONST_NA),\"\",INDEX(InputOutput!$AO$71:$AO$80,MATCH($D77,InputOutput!$D$71:$D$80,0)))","v":""},{"$nulls":24},"","",null,"",null,"",null,null,"","",null,"","","",null,null,"",null,null,false,null,"n.a.",null,"","","",""]
[null,null,69,null,"",null,"",null,{"$f":"IF(OR($D78=\"\",$D78=CONST_NA),\"\",INDEX(InputOutput!$AK$71:$AK$80,MATCH($D78,InputOutput!$D$71:$D$80,0)))","v":""},{"$f":"IF(OR($D78=\"\",$D78=CONST_NA),\"\",INDEX(InputOutput!$AM$71:$AM$80,MATCH($D78,InputOutput!$D$71:$D$80,0)))","v":""},"","",{"$f":"IF($E78=\"\",\"\",INDEX(Summary_Processes!$AG$159:$AG$517,MATCH($D78,Summary_Processes!$D$159:$D$517,0)))","v":""},{"$f":"IF(D78=\"\",\"\",INDEX(D_Processes!T:T,MATCH(CONST_CNTR_ElecEFMethod&D78,D_Processes!R:R,0)))","v":""},{"$f":"IF(OR($D78=\"\",$D78=CONST_NA),\"\",INDEX(InputOutput!$AO$71:$AO$80,MATCH($D78,InputOutput!$D$71:$D$80,0)))","v":""},{"$nulls":24},"","",null,"",null,"",null,null,"","",null,"","","",null,null,"",null,null,false,null,"n.a.",null,"","","",""]
[null,null,70,null,"",null,"",null,{"$f":"IF(OR($D79=\"\",$D79=CONST_NA),\"\",INDEX(InputOutput!$AK$71:$AK$80,MATCH($D79,InputOutput!$D$71:$D$80,0)))","v":""},{"$f":"IF(OR($D79=\"\",$D79=CONST_NA),\"\",INDEX(InputOutput!$AM$71:$AM$80,MATCH($D79,InputOutput!$D$71:$D$80,0)))","v":""},"","",{"$f":"IF($E79=\"\",\"\",INDEX(Summary_Processes!$AG$159:$AG$517,MATCH($D79,Summary_Processes!$D$159:$D$517,0)))","v":""},{"$f":"IF(D79=\"\",\"\",INDEX(D_Processes!T:T,MATCH(CONST_CNTR_ElecEFMethod&D79,D_Processes!R:R,0)))","v":""},{"$f":"IF(OR($D79=\"\",$D79=CONST_NA),\"\",INDEX(InputOutput!$AO$71:$AO$80,MATCH($D79,InputOutput!$D$71:$D$80,0)))","v":""},{"$nulls":24},"","",null,"",null,"",null,null,"","",null,"","","",null,null,"",null,null,false,null,"n.a.",null,"","","",""]
[null,null,71,null,"",null,"",null,{"$f":"IF(OR($D80=\"\",$D80=CONST_NA),\"\",INDEX(InputOutput!$AK$71:$AK$80,MATCH($D80,InputOutput!$D$71:$D$80,0)))","v":""},{"$f":"IF(OR($D80=\"\",$D80=CONST_NA),\"\",INDEX(InputOutput!$AM$71:$AM$80,MATCH($D80,InputOutput!$D$71:$D$80,0)))","v":""},"","",{"$f":"IF($E80=\"\",\"\",INDEX(Summary_Processes!$AG$159:$AG$517,MATCH($D80,Summary_Processes!$D$159:$D$517,0)))","v":""},{"$f":"IF(D80=\"\",\"\",INDEX(D_Processes!T:T,MATCH(CONST_CNTR_ElecEFMethod&D80,D_Processes!R:R,0)))","v":""},{"$f":"IF(OR($D80=\"\",$D80=CONST_NA),\"\",INDEX(InputOutput!$AO$71:$AO$80,MATCH($D80,InputOutput!$D$71:$D$80,0)))","v":""},{"$nulls":24},"","",null,"",null,"",null,null,"","",null,"","","",null,null,"",null,null,false,null,"n.a.",null,"","","",""]
[null,null,72,null,"",null,"",null,{"$f":"IF(OR($D81=\"\",$D81=CONST_NA),\"\",INDEX(InputOutput!$AK$71:$AK$80,MATCH($D81,InputOutput!$D$71:$D$80,0)))","v":""},{"$f":"IF(OR($D81=\"\",$D81=CONST_NA),\"\",INDEX(InputOutput!$AM$71:$AM$80,MATCH($D81,InputOutput!$D$71:$D$80,0)))","v":""},"","",{"$f":"IF($E81=\"\",\"\",INDEX(Summary_Processes!$AG$159:$AG$517,MATCH($D81,Summary_Processes!$D$159:$D$517,0)))","v":""},{"$f":"IF(D81=\"\",\"\",INDEX(D_Processes!T:T,MATCH(CONST_CNTR_ElecEFMethod&D81,D_Processes!R:R,0)))","v":""},{"$f":"IF(OR($D81=\"\",$D81=CONST_NA),\"\",INDEX(InputOutput!$AO$71:$AO$80,MATCH($D81,InputOutput!$D$71:$D$80,0)))","v":""},{"$nulls":24},"","",null,"",null,"",null,null,"","",null,"","","",null,null,"",null,null,false,null,"n.a.",null,"","","",""]
[null,null,73,null,"",null,"",null,{"$f":"IF(OR($D82=\"\",$D82=CONST_NA),\"\",INDEX(InputOutput!$AK$71:$AK$80,MATCH($D82,InputOutput!$D$71:$D$80,0)))","v":""},{"$f":"IF(OR($D82=\"\",$D82=CONST_NA),\"\",INDEX(InputOutput!$AM$71:$AM$80,MATCH($D82,InputOutput!$D$71:$D$80,0)))","v":""},"","",{"$f":"IF($E82=\"\",\"\",INDEX(Summary_Processes!$AG$159:$AG$517,MATCH($D82,Summary_Processes!$D$159:$D$517,0)))","v":""},{"$f":"IF(D82=\"\",\"\",INDEX(D_Processes!T:T,MATCH(CONST_CNTR_ElecEFMethod&D82,D_Processes!R:R,0)))","v":""},{"$f":"IF(OR($D82=\"\",$D82=CONST_NA),\"\",INDEX(InputOutput!$AO$71:$AO$80,MATCH($D82,InputOutput!$D$71:$D$80,0)))","v":""},{"$nulls":24},"","",null,"",null,"",null,null,"","",null,"","","",null,null,"",null,null,false,null,"n.a.",null,"","","",""]
[null,null,74,null,"",null,"",null,{"$f":"IF(OR($D83=\"\",$D83=CONST_NA),\"\",INDEX(InputOutput!$AK$71:$AK$80,MATCH($D83,InputOutput!$D$71:$D$80,0)))","v":""},{"$f":"IF(OR($D83=\"\",$D83=CONST_NA),\"\",INDEX(InputOutput!$AM$71:$AM$80,MATCH($D83,InputOutput!$D$71:$D$80,0)))","v":""},"","",{"$f":"IF($E83=\"\",\"\",INDEX(Summary_Processes!$AG$159:$AG$517,MATCH($D83,Summary_Processes!$D$159:$D$517,0)))","v":""},{"$f":"IF(D83=\"\",\"\",INDEX(D_Processes!T:T,MATCH(CONST_CNTR_ElecEFMethod&D83,D_Processes!R:R,0)))","v":""},{"$f":"IF(OR($D83=\"\",$D83=CONST_NA),\"\",INDEX(InputOutput!$AO$71:$AO$80,MATCH($D83,InputOutput!$D$71:$D$80,0)))","v":""},{"$nulls":24},"","",null,"",null,"",null,null,"","",null,"","","",null,null,"",null,null,false,null,"n.a.",null,"","","",""]
[null,null,75,null,"",null,"",null,{"$f":"IF(OR($D84=\"\",$D84=CONST_NA),\"\",INDEX(InputOutput!$AK$71:$AK$80,MATCH($D84,InputOutput!$D$71:$D$80,0)))","v":""},{"$f":"IF(OR($D84=\"\",$D84=CONST_NA),\"\",INDEX(InputOutput!$AM$71:$AM$80,MATCH($D84,InputOutput!$D$71:$D$80,0)))","v":""},"","",{"$f":"IF($E84=\"\",\"\",INDEX(Summary_Processes!$AG$159:$AG$517,MATCH($D84,Summary_Processes!$D$159:$D$517,0)))","v":""},{"$f":"IF(D84=\"\",\"\",INDEX(D_Processes!T:T,MATCH(CONST_CNTR_ElecEFMethod&D84,D_Processes!R:R,0)))","v":""},{"$f":"IF(OR($D84=\"\",$D84=CONST_NA),\"\",INDEX(InputOutput!$AO$71:$AO$80,MATCH($D84,InputOutput!$D$71:$D$80,0)))","v":""},{"$nulls":24},"","",null,"",null,"",null,null,"","",null,"","","",null,null,"",null,null,false,null,"n.a.",null,"","","",""]
[null,null,76,null,"",null,"",null,{"$f":"IF(OR($D85=\"\",$D85=CONST_NA),\"\",INDEX(InputOutput!$AK$71:$AK$80,MATCH($D85,InputOutput!$D$71:$D$80,0)))","v":""},{"$f":"IF(OR($D85=\"\",$D85=CONST_NA),\"\",INDEX(InputOutput!$AM$71:$AM$80,MATCH($D85,InputOutput!$D$71:$D$80,0)))","v":""},"","",{"$f":"IF($E85=\"\",\"\",INDEX(Summary_Processes!$AG$159:$AG$517,MATCH($D85,Summary_Processes!$D$159:$D$517,0)))","v":""},{"$f":"IF(D85=\"\",\"\",INDEX(D_Processes!T:T,MATCH(CONST_CNTR_ElecEFMethod&D85,D_Processes!R:R,0)))","v":""},{"$f":"IF(OR($D85=\"\",$D85=CONST_NA),\"\",INDEX(InputOutput!$AO$71:$AO$80,MATCH($D85,InputOutput!$D$71:$D$80,0)))","v":""},{"$nulls":24},"","",null,"",null,"",null,null,"","",null,"","","",null,null,"",null,null,false,null,"n.a.",null,"","","",""]
[null,null,77,null,"",null,"",null,{"$f":"IF(OR($D86=\"\",$D86=CONST_NA),\"\",INDEX(InputOutput!$AK$71:$AK$80,MATCH($D86,InputOutput!$D$71:$D$80,0)))","v":""},{"$f":"IF(OR($D86=\"\",$D86=CONST_NA),\"\",INDEX(InputOutput!$AM$71:$AM$80,MATCH($D86,InputOutput!$D$71:$D$80,0)))","v":""},"","",{"$f":"IF($E86=\"\",\"\",INDEX(Summary_Processes!$AG$159:$AG$517,MATCH($D86,Summary_Processes!$D$159:$D$517,0)))","v":""},{"$f":"IF(D86=\"\",\"\",INDEX(D_Processes!T:T,MATCH(CONST_CNTR_ElecEFMethod&D86,D_Processes!R:R,0)))","v":""},{"$f":"IF(OR($D86=\"\",$D86=CONST_NA),\"\",INDEX(InputOutput!$AO$71:$AO$80,MATCH($D86,InputOutput!$D$71:$D$80,0)))","v":""},{"$nulls":24},"","",null,"",null,"",null,null,"","",null,"","","",null,null,"",null,null,false,null,"n.a.",null,"","","",""]
[null,null,78,null,"",null,"",null,{"$f":"IF(OR($D87=\"\",$D87=CONST_NA),\"\",INDEX(InputOutput!$AK$71:$AK$80,MATCH($D87,InputOutput!$D$71:$D$80,0)))","v":""},{"$f":"IF(OR($D87=\"\",$D87=CONST_NA),\"\",INDEX(InputOutput!$AM$71:$AM$80,MATCH($D87,InputOutput!$D$71:$D$80,0)))","v":""},"","",{"$f":"IF($E87=\"\",\"\",INDEX(Summary_Processes!$AG$159:$AG$517,MATCH($D87,Summary_Processes!$D$159:$D$517,0)))","v":""},{"$f":"IF(D87=\"\",\"\",INDEX(D_Processes!T:T,MATCH(CONST_CNTR_ElecEFMethod&D87,D_Processes!R:R,0)))","v":""},{"$f":"IF(OR($D87=\"\",$D87=CONST_NA),\"\",INDEX(InputOutput!$AO$71:$AO$80,MATCH($D87,InputOutput!$D$71:$D$80,0)))","v":""},{"$nulls":24},"","",null,"",null,"",null,null,"","",null,"","","",null,null,"",null,null,false,null,"n.a.",null,"","","",""]
[null,null,79,null,{"$f":"IF(D88=\"\",\"\",INDEX(CNTR_List_ExistProdProc,MATCH(D88,CNTR_List_ExistProdProcNames,0)))","v":""},null,{"$f":"IF(F88=\"\",\"\",INDEX(CNCodes_ListNames,MATCH(F88,CNCodes_ListKey,0)))","v":""},null,{"$f":"IF(OR($D88=\"\",$D88=CONST_NA),\"\",INDEX(InputOutput!$AK$71:$AK$80,MATCH($D88,InputOutput!$D$71:$D$80,0)))","v":""},{"$f":"IF(OR($D88=\"\",$D88=CONST_NA),\"\",INDEX(InputOutput!$AM$71:$AM$80,MATCH($D88,InputOutput!$D$71:$D$80,0)))","v":""},"","",{"$f":"IF($E88=\"\",\"\",INDEX(Summary_Processes!$AG$159:$AG$517,MATCH($D88,Summary_Processes!$D$159:$D$517,0)))","v":""},{"$f":"IF(D88=\"\",\"\",INDEX(D_Processes!T:T,MATCH(CONST_CNTR_ElecEFMethod&D88,D_Processes!R:R,0)))","v":""},{"$f":"IF(OR($D88=\"\",$D88=CONST_NA),\"\",INDEX(InputOutput!$AO$71:$AO$80,MATCH($D88,InputOutput!$D$71:$D$80,0)))","v":""},{"$nulls":24},"","",null,"",null,"",null,null,"","",null,"","","",null,null,"",null,null,false,null,"n.a.",null,"","","",""]
[null,null,80,null,"",null,"",null,{"$f":"IF(OR($D89=\"\",$D89=CONST_NA),\"\",INDEX(InputOutput!$AK$71:$AK$80,MATCH($D89,InputOutput!$D$71:$D$80,0)))","v":""},{"$f":"IF(OR($D89=\"\",$D89=CONST_NA),\"\",INDEX(InputOutput!$AM$71:$AM$80,MATCH($D89,InputOutput!$D$71:$D$80,0)))","v":""},"","",{"$f":"IF($E89=\"\",\"\",INDEX(Summary_Processes!$AG$159:$AG$517,MATCH($D89,Summary_Processes!$D$159:$D$517,0)))","v":""},{"$f":"IF(D89=\"\",\"\",INDEX(D_Processes!T:T,MATCH(CONST_CNTR_ElecEFMethod&D89,D_Processes!R:R,0)))","v":""},{"$f":"IF(OR($D89=\"\",$D89=CONST_NA),\"\",INDEX(InputOutput!$AO$71:$AO$80,MATCH($D89,InputOutput!$D$71:$D$80,0)))","v":""},{"$nulls":24},"","",null,"",null,"",null,null,"","",null,"","","",null,null,"",null,null,false,null,"n.a.",null,"","","",""]
[null,null,81,null,"",null,"",null,{"$f":"IF(OR($D90=\"\",$D90=CONST_NA),\"\",INDEX(InputOutput!$AK$71:$AK$80,MATCH($D90,InputOutput!$D$71:$D$80,0)))","v":""},{"$f":"IF(OR($D90=\"\",$D90=CONST_NA),\"\",INDEX(InputOutput!$AM$71:$AM$80,MATCH($D90,InputOutput!$D$71:$D$80,0)))","v":""},"","",{"$f":"IF($E90=\"\",\"\",INDEX(Summary_Processes!$AG$159:$AG$517,MATCH($D90,Summary_Processes!$D$159:$D$517,0)))","v":""},{"$f":"IF(D90=\"\",\"\",INDEX(D_Processes!T:T,MATCH(CONST_CNTR_ElecEFMethod&D90,D_Processes!R:R,0)))","v":""},{"$f":"IF(OR($D90=\"\",$D90=CONST_NA),\"\",INDEX(InputOutput!$AO$71:$AO$80,MATCH($D90,InputOutput!$D$71:$D$80,0)))","v":""},{"$nulls":24},"","",null,"",null,"",null,null,"","",null,"","","",null,null,"",null,null,false,null,"n.a.",null,"","","",""]
[null,null,82,null,"",null,"",null,{"$f":"IF(OR($D91=\"\",$D91=CONST_NA),\"\",INDEX(InputOutput!$AK$71:$AK$80,MATCH($D91,InputOutput!$D$71:$D$80,0)))","v":""},{"$f":"IF(OR($D91=\"\",$D91=CONST_NA),\"\",INDEX(InputOutput!$AM$71:$AM$80,MATCH($D91,InputOutput!$D$71:$D$80,0)))","v":""},"","",{"$f":"IF($E91=\"\",\"\",INDEX(Summary_Processes!$AG$159:$AG$517,MATCH($D91,Summary_Processes!$D$159:$D$517,0)))","v":""},{"$f":"IF(D91=\"\",\"\",INDEX(D_Processes!T:T,MATCH(CONST_CNTR_ElecEFMethod&D91,D_Processes!R:R,0)))","v":""},{"$f":"IF(OR($D91=\"\",$D91=CONST_NA),\"\",INDEX(InputOutput!$AO$71:$AO$80,MATCH($D91,InputOutput!$D$71:$D$80,0)))","v":""},{"$nulls":24},"","",null,"",null,"",null,null,"","",null,"","","",null,null,"",null,null,false,null,"n.a.",null,"","","",""]
[null,null,83,null,"",null,"",null,{"$f":"IF(OR($D92=\"\",$D92=CONST_NA),\"\",INDEX(InputOutput!$AK$71:$AK$80,MATCH($D92,InputOutput!$D$71:$D$80,0)))","v":""},{"$f":"IF(OR($D92=\"\",$D92=CONST_NA),\"\",INDEX(InputOutput!$AM$71:$AM$80,MATCH($D92,InputOutput!$D$71:$D$80,0)))","v":""},"","",{"$f":"IF($E92=\"\",\"\",INDEX(Summary_Processes!$AG$159:$AG$517,MATCH($D92,Summary_Processes!$D$159:$D$517,0)))","v":""},{"$f":"IF(D92=\"\",\"\",INDEX(D_Processes!T:T,MATCH(CONST_CNTR_ElecEFMethod&D92,D_Processes!R:R,0)))","v":""},{"$f":"IF(OR($D92=\"\",$D92=CONST_NA),\"\",INDEX(InputOutput!$AO$71:$AO$80,MATCH($D92,InputOutput!$D$71:$D$80,0)))","v":""},{"$nulls":24},"","",null,"",null,"",null,null,"","",null,"","","",null,null,"",null,null,false,null,"n.a.",null,"","","",""]
[null,null,84,null,"",null,"",null,{"$f":"IF(OR($D93=\"\",$D93=CONST_NA),\"\",INDEX(InputOutput!$AK$71:$AK$80,MATCH($D93,InputOutput!$D$71:$D$80,0)))","v":""},{"$f":"IF(OR($D93=\"\",$D93=CONST_NA),\"\",INDEX(InputOutput!$AM$71:$AM$80,MATCH($D93,InputOutput!$D$71:$D$80,0)))","v":""},"","",{"$f":"IF($E93=\"\",\"\",INDEX(Summary_Processes!$AG$159:$AG$517,MATCH($D93,Summary_Processes!$D$159:$D$517,0)))","v":""},{"$f":"IF(D93=\"\",\"\",INDEX(D_Processes!T:T,MATCH(CONST_CNTR_ElecEFMethod&D93,D_Processes!R:R,0)))","v":""},{"$f":"IF(OR($D93=\"\",$D93=CONST_NA),\"\",INDEX(InputOutput!$AO$71:$AO$80,MATCH($D93,InputOutput!$D$71:$D$80,0)))","v":""},{"$nulls":24},"","",null,"",null,"",null,null,"","",null,"","","",null,null,"",null,null,false,null,"n.a.",null,"","","",""]
[null,null,85,null,"",null,"",null,{"$f":"IF(OR($D94=\"\",$D94=CONST_NA),\"\",INDEX(InputOutput!$AK$71:$AK$80,MATCH($D94,InputOutput!$D$71:$D$80,0)))","v":""},{"$f":"IF(OR($D94=\"\",$D94=CONST_NA),\"\",INDEX(InputOutput!$AM$71:$AM$80,MATCH($D94,InputOutput!$D$71:$D$80,0)))","v":""},"","",{"$f":"IF($E94=\"\",\"\",INDEX(Summary_Processes!$AG$159:$AG$517,MATCH($D94,Summary_Processes!$D$159:$D$517,0)))","v":""},{"$f":"IF(D94=\"\",\"\",INDEX(D_Processes!T:T,MATCH(CONST_CNTR_ElecEFMethod&D94,D_Processes!R:R,0)))","v":""},{"$f":"IF(OR($D94=\"\",$D94=CONST_NA),\"\",INDEX(InputOutput!$AO$71:$AO$80,MATCH($D94,InputOutput!$D$71:$D$80,0)))","v":""},{"$nulls":24},"","",null,"",null,"",null,null,"","",null,"","","",null,null,"",null,null,false,null,"n.a.",null,"","","",""]
[null,null,86,null,"",null,"",null,{"$f":"IF(OR($D95=\"\",$D95=CONST_NA),\"\",INDEX(InputOutput!$AK$71:$AK$80,MATCH($D95,InputOutput!$D$71:$D$80,0)))","v":""},{"$f":"IF(OR($D95=\"\",$D95=CONST_NA),\"\",INDEX(InputOutput!$AM$71:$AM$80,MATCH($D95,InputOutput!$D$71:$D$80,0)))","v":""},"","",{"$f":"IF($E95=\"\",\"\",INDEX(Summary_Processes!$AG$159:$AG$517,MATCH($D95,Summary_Processes!$D$159:$D$517,0)))","v":""},{"$f":"IF(D95=\"\",\"\",INDEX(D_Processes!T:T,MATCH(CONST_CNTR_ElecEFMethod&D95,D_Processes!R:R,0)))","v":""},{"$f":"IF(OR($D95=\"\",$D95=CONST_NA),\"\",INDEX(InputOutput!$AO$71:$AO$80,MATCH($D95,InputOutput!$D$71:$D$80,0)))","v":""},{"$nulls":24},"","",null,"",null,"",null,null,"","",null,"","","",null,null,"",null,null,false,null,"n.a.",null,"","","",""]
[null,null,87,null,"",null,"",null,{"$f":"IF(OR($D96=\"\",$D96=CONST_NA),\"\",INDEX(InputOutput!$AK$71:$AK$80,MATCH($D96,InputOutput!$D$71:$D$80,0)))","v":""},{"$f":"IF(OR($D96=\"\",$D96=CONST_NA),\"\",INDEX(InputOutput!$AM$71:$AM$80,MATCH($D96,InputOutput!$D$71:$D$80,0)))","v":""},"","",{"$f":"IF($E96=\"\",\"\",INDEX(Summary_Processes!$AG$159:$AG$517,MATCH($D96,Summary_Processes!$D$159:$D$517,0)))","v":""},{"$f":"IF(D96=\"\",\"\",INDEX(D_Processes!T:T,MATCH(CONST_CNTR_ElecEFMethod&D96,D_Processes!R:R,0)))","v":""},{"$f":"IF(OR($D96=\"\",$D96=CONST_NA),\"\",INDEX(InputOutput!$AO$71:$AO$80,MATCH($D96,InputOutput!$D$71:$D$80,0)))","v":""},{"$nulls":24},"","",null,"",null,"",null,null,"","",null,"","","",null,null,"",null,null,false,null,"n.a.",null,"","","",""]
[null,null,88,null,"",null,"",null,{"$f":"IF(OR($D97=\"\",$D97=CONST_NA),\"\",INDEX(InputOutput!$AK$71:$AK$80,MATCH($D97,InputOutput!$D$71:$D$80,0)))","v":""},{"$f":"IF(OR($D97=\"\",$D97=CONST_NA),\"\",INDEX(InputOutput!$AM$71:$AM$80,MATCH($D97,InputOutput!$D$71:$D$80,0)))","v":""},"","",{"$f":"IF($E97=\"\",\"\",INDEX(Summary_Processes!$AG$159:$AG$517,MATCH($D97,Summary_Processes!$D$159:$D$517,0)))","v":""},{"$f":"IF(D97=\"\",\"\",INDEX(D_Processes!T:T,MATCH(CONST_CNTR_ElecEFMethod&D97,D_Processes!R:R,0)))","v":""},{"$f":"IF(OR($D97=\"\",$D97=CONST_NA),\"\",INDEX(InputOutput!$AO$71:$AO$80,MATCH($D97,InputOutput!$D$71:$D$80,0)))","v":""},{"$nulls":24},"","",null,"",null,"",null,null,"","",null,"","","",null,null,"",null,null,false,null,"n.a.",null,"","","",""]
[null,null,89,null,"",null,"",null,{"$f":"IF(OR($D98=\"\",$D98=CONST_NA),\"\",INDEX(InputOutput!$AK$71:$AK$80,MATCH($D98,InputOutput!$D$71:$D$80,0)))","v":""},{"$f":"IF(OR($D98=\"\",$D98=CONST_NA),\"\",INDEX(InputOutput!$AM$71:$AM$80,MATCH($D98,InputOutput!$D$71:$D$80,0)))","v":""},"","",{"$f":"IF($E98=\"\",\"\",INDEX(Summary_Processes!$AG$159:$AG$517,MATCH($D98,Summary_Processes!$D$159:$D$517,0)))","v":""},{"$f":"IF(D98=\"\",\"\",INDEX(D_Processes!T:T,MATCH(CONST_CNTR_ElecEFMethod&D98,D_Processes!R:R,0)))","v":""},{"$f":"IF(OR($D98=\"\",$D98=CONST_NA),\"\",INDEX(InputOutput!$AO$71:$AO$80,MATCH($D98,InputOutput!$D$71:$D$80,0)))","v":""},{"$nulls":24},"","",null,"",null,"",null,null,"","",null,"","","",null,null,"",null,null,false,null,"n.a.",null,"","","",""]
[null,null,90,null,"",null,"",null,{"$f":"IF(OR($D99=\"\",$D99=CONST_NA),\"\",INDEX(InputOutput!$AK$71:$AK$80,MATCH($D99,InputOutput!$D$71:$D$80,0)))","v":""},{"$f":"IF(OR($D99=\"\",$D99=CONST_NA),\"\",INDEX(InputOutput!$AM$71:$AM$80,MATCH($D99,InputOutput!$D$71:$D$80,0)))","v":""},"","",{"$f":"IF($E99=\"\",\"\",INDEX(Summary_Processes!$AG$159:$AG$517,MATCH($D99,Summary_Processes!$D$159:$D$517,0)))","v":""},{"$f":"IF(D99=\"\",\"\",INDEX(D_Processes!T:T,MATCH(CONST_CNTR_ElecEFMethod&D99,D_Processes!R:R,0)))","v":""},{"$f":"IF(OR($D99=\"\",$D99=CONST_NA),\"\",INDEX(InputOutput!$AO$71:$AO$80,MATCH($D99,InputOutput!$D$71:$D$80,0)))","v":""},{"$nulls":24},"","",null,"",null,"",null,null,"","",null,"","","",null,null,"",null,null,false,null,"n.a.",null,"","","",""]
[null,null,91,null,"",null,"",null,{"$f":"IF(OR($D100=\"\",$D100=CONST_NA),\"\",INDEX(InputOutput!$AK$71:$AK$80,MATCH($D100,InputOutput!$D$71:$D$80,0)))","v":""},{"$f":"IF(OR($D100=\"\",$D100=CONST_NA),\"\",INDEX(InputOutput!$AM$71:$AM$80,MATCH($D100,InputOutput!$D$71:$D$80,0)))","v":""},"","",{"$f":"IF($E100=\"\",\"\",INDEX(Summary_Processes!$AG$159:$AG$517,MATCH($D100,Summary_Processes!$D$159:$D$517,0)))","v":""},{"$f":"IF(D100=\"\",\"\",INDEX(D_Processes!T:T,MATCH(CONST_CNTR_ElecEFMethod&D100,D_Processes!R:R,0)))","v":""},{"$f":"IF(OR($D100=\"\",$D100=CONST_NA),\"\",INDEX(InputOutput!$AO$71:$AO$80,MATCH($D100,InputOutput!$D$71:$D$80,0)))","v":""},{"$nulls":24},"","",null,"",null,"",null,null,"","",null,"","","",null,null,"",null,null,false,null,"n.a.",null,"","","",""]
[null,null,92,null,"",null,"",null,{"$f":"IF(OR($D101=\"\",$D101=CONST_NA),\"\",INDEX(InputOutput!$AK$71:$AK$80,MATCH($D101,InputOutput!$D$71:$D$80,0)))","v":""},{"$f":"IF(OR($D101=\"\",$D101=CONST_NA),\"\",INDEX(InputOutput!$AM$71:$AM$80,MATCH($D101,InputOutput!$D$71:$D$80,0)))","v":""},"","",{"$f":"IF($E101=\"\",\"\",INDEX(Summary_Processes!$AG$159:$AG$517,MATCH($D101,Summary_Processes!$D$159:$D$517,0)))","v":""},{"$f":"IF(D101=\"\",\"\",INDEX(D_Processes!T:T,MATCH(CONST_CNTR_ElecEFMethod&D101,D_Processes!R:R,0)))","v":""},{"$f":"IF(OR($D101=\"\",$D101=CONST_NA),\"\",INDEX(InputOutput!$AO$71:$AO$80,MATCH($D101,InputOutput!$D$71:$D$80,0)))","v":""},{"$nulls":24},"","",null,"",null,"",null,null,"","",null,"","","",null,null,"",null,null,false,null,"n.a.",null,"","","",""]
[null,null,93,null,"",null,"",null,{"$f":"IF(OR($D102=\"\",$D102=CONST_NA),\"\",INDEX(InputOutput!$AK$71:$AK$80,MATCH($D102,InputOutput!$D$71:$D$80,0)))","v":""},{"$f":"IF(OR($D102=\"\",$D102=CONST_NA),\"\",INDEX(InputOutput!$AM$71:$AM$80,MATCH($D102,InputOutput!$D$71:$D$80,0)))","v":""},"","",{"$f":"IF($E102=\"\",\"\",INDEX(Summary_Processes!$AG$159:$AG$517,MATCH($D102,Summary_Processes!$D$159:$D$517,0)))","v":""},{"$f":"IF(D102=\"\",\"\",INDEX(D_Processes!T:T,MATCH(CONST_CNTR_ElecEFMethod&D102,D_Processes!R:R,0)))","v":""},{"$f":"IF(OR($D102=\"\",$D102=CONST_NA),\"\",INDEX(InputOutput!$AO$71:$AO$80,MATCH($D102,InputOutput!$D$71:$D$80,0)))","v":""},{"$nulls":24},"","",null,"",null,"",null,null,"","",null,"","","",null,null,"",null,null,false,null,"n.a.",null,"","","",""]
[null,null,94,null,"",null,"",null,{"$f":"IF(OR($D103=\"\",$D103=CONST_NA),\"\",INDEX(InputOutput!$AK$71:$AK$80,MATCH($D103,InputOutput!$D$71:$D$80,0)))","v":""},{"$f":"IF(OR($D103=\"\",$D103=CONST_NA),\"\",INDEX(InputOutput!$AM$71:$AM$80,MATCH($D103,InputOutput!$D$71:$D$80,0)))","v":""},"","",{"$f":"IF($E103=\"\",\"\",INDEX(Summary_Processes!$AG$159:$AG$517,MATCH($D103,Summary_Processes!$D$159:$D$517,0)))","v":""},{"$f":"IF(D103=\"\",\"\",INDEX(D_Processes!T:T,MATCH(CONST_CNTR_ElecEFMethod&D103,D_Processes!R:R,0)))","v":""},{"$f":"IF(OR($D103=\"\",$D103=CONST_NA),\"\",INDEX(InputOutput!$AO$71:$AO$80,MATCH($D103,InputOutput!$D$71:$D$80,0)))","v":""},{"$nulls":24},"","",null,"",null,"",null,null,"","",null,"","","",null,null,"",null,null,false,null,"n.a.",null,"","","",""]
[null,null,95,null,"",null,"",null,{"$f":"IF(OR($D104=\"\",$D104=CONST_NA),\"\",INDEX(InputOutput!$AK$71:$AK$80,MATCH($D104,InputOutput!$D$71:$D$80,0)))","v":""},{"$f":"IF(OR($D104=\"\",$D104=CONST_NA),\"\",INDEX(InputOutput!$AM$71:$AM$80,MATCH($D104,InputOutput!$D$71:$D$80,0)))","v":""},"","",{"$f":"IF($E104=\"\",\"\",INDEX(Summary_Processes!$AG$159:$AG$517,MATCH($D104,Summary_Processes!$D$159:$D$517,0)))","v":""},{"$f":"IF(D104=\"\",\"\",INDEX(D_Processes!T:T,MATCH(CONST_CNTR_ElecEFMethod&D104,D_Processes!R:R,0)))","v":""},{"$f":"IF(OR($D104=\"\",$D104=CONST_NA),\"\",INDEX(InputOutput!$AO$71:$AO$80,MATCH($D104,InputOutput!$D$71:$D$80,0)))","v":""},{"$nulls":24},"","",null,"",null,"",null,null,"","",null,"","","",null,null,"",null,null,false,null,"n.a.",null,"","","",""]
[null,null,96,null,"",null,"",null,{"$f":"IF(OR($D105=\"\",$D105=CONST_NA),\"\",INDEX(InputOutput!$AK$71:$AK$80,MATCH($D105,InputOutput!$D$71:$D$80,0)))","v":""},{"$f":"IF(OR($D105=\"\",$D105=CONST_NA),\"\",INDEX(InputOutput!$AM$71:$AM$80,MATCH($D105,InputOutput!$D$71:$D$80,0)))","v":""},"","",{"$f":"IF($E105=\"\",\"\",INDEX(Summary_Processes!$AG$159:$AG$517,MATCH($D105,Summary_Processes!$D$159:$D$517,0)))","v":""},{"$f":"IF(D105=\"\",\"\",INDEX(D_Processes!T:T,MATCH(CONST_CNTR_ElecEFMethod&D105,D_Processes!R:R,0)))","v":""},{"$f":"IF(OR($D105=\"\",$D105=CONST_NA),\"\",INDEX(InputOutput!$AO$71:$AO$80,MATCH($D105,InputOutput!$D$71:$D$80,0)))","v":""},{"$nulls":24},"","",null,"",null,"",null,null,"","",null,"","","",null,null,"",null,null,false,null,"n.a.",null,"","","",""]
[null,null,97,null,"",null,"",null,{"$f":"IF(OR($D106=\"\",$D106=CONST_NA),\"\",INDEX(InputOutput!$AK$71:$AK$80,MATCH($D106,InputOutput!$D$71:$D$80,0)))","v":""},{"$f":"IF(OR($D106=\"\",$D106=CONST_NA),\"\",INDEX(InputOutput!$AM$71:$AM$80,MATCH($D106,InputOutput!$D$71:$D$80,0)))","v":""},"","",{"$f":"IF($E106=\"\",\"\",INDEX(Summary_Processes!$AG$159:$AG$517,MATCH($D106,Summary_Processes!$D$159:$D$517,0)))","v":""},{"$f":"IF(D106=\"\",\"\",INDEX(D_Processes!T:T,MATCH(CONST_CNTR_ElecEFMethod&D106,D_Processes!R:R,0)))","v":""},{"$f":"IF(OR($D106=\"\",$D106=CONST_NA),\"\",INDEX(InputOutput!$AO$71:$AO$80,MATCH($D106,InputOutput!$D$71:$D$80,0)))","v":""},{"$nulls":24},"","",null,{"$f":"IF(AP106=\"\",\"\",INDEX(CNTR_ListCurrenciesName,MATCH(AP106,CNTR_ListCurrenciesCode,0)))","v":""},null,"",null,null,"","",null,"","","",null,null,"",null,null,false,null,{"$f":"IF(CNTR_HasEntriesA,IF(AND(D106<>\"\",COUNTIF(D310:BA310,TRUE)>0),CONST_ErrorOrMissing,IF(AND(D106<>\"\",COUNTIF(D310:BA310,TRUE)=0),TRUE,CONST_NA)),CONST_NA)","v":"n.a."},null,"","","",""]
[null,null,98,null,"",null,"",null,{"$f":"IF(OR($D107=\"\",$D107=CONST_NA),\"\",INDEX(InputOutput!$AK$71:$AK$80,MATCH($D107,InputOutput!$D$71:$D$80,0)))","v":""},{"$f":"IF(OR($D107=\"\",$D107=CONST_NA),\"\",INDEX(InputOutput!$AM$71:$AM$80,MATCH($D107,InputOutput!$D$71:$D$80,0)))","v":""},"","",{"$f":"IF($E107=\"\",\"\",INDEX(Summary_Processes!$AG$159:$AG$517,MATCH($D107,Summary_Processes!$D$159:$D$517,0)))","v":""},{"$f":"IF(D107=\"\",\"\",INDEX(D_Processes!T:T,MATCH(CONST_CNTR_ElecEFMethod&D107,D_Processes!R:R,0)))","v":""},{"$f":"IF(OR($D107=\"\",$D107=CONST_NA),\"\",INDEX(InputOutput!$AO$71:$AO$80,MATCH($D107,InputOutput!$D$71:$D$80,0)))","v":""},{"$nulls":24},"","",null,{"$f":"IF(AP107=\"\",\"\",INDEX(CNTR_ListCurrenciesName,MATCH(AP107,CNTR_ListCurrenciesCode,0)))","v":""},null,"",null,null,"","",null,"","","",null,null,"",null,null,false,null,{"$f":"IF(CNTR_HasEntriesA,IF(AND(D107<>\"\",COUNTIF(D311:BA311,TRUE)>0),CONST_ErrorOrMissing,IF(AND(D107<>\"\",COUNTIF(D311:BA311,TRUE)=0),TRUE,CONST_NA)),CONST_NA)","v":"n.a."},null,"","","",""]
[null,null,99,null,"",null,"",null,{"$f":"IF(OR($D108=\"\",$D108=CONST_NA),\"\",INDEX(InputOutput!$AK$71:$AK$80,MATCH($D108,InputOutput!$D$71:$D$80,0)))","v":""},{"$f":"IF(OR($D108=\"\",$D108=CONST_NA),\"\",INDEX(InputOutput!$AM$71:$AM$80,MATCH($D108,InputOutput!$D$71:$D$80,0)))","v":""},"","",{"$f":"IF($E108=\"\",\"\",INDEX(Summary_Processes!$AG$159:$AG$517,MATCH($D108,Summary_Processes!$D$159:$D$517,0)))","v":""},{"$f":"IF(D108=\"\",\"\",INDEX(D_Processes!T:T,MATCH(CONST_CNTR_ElecEFMethod&D108,D_Processes!R:R,0)))","v":""},{"$f":"IF(OR($D108=\"\",$D108=CONST_NA),\"\",INDEX(InputOutput!$AO$71:$AO$80,MATCH($D108,InputOutput!$D$71:$D$80,0)))","v":""},{"$nulls":24},"","",null,{"$f":"IF(AP108=\"\",\"\",INDEX(CNTR_ListCurrenciesName,MATCH(AP108,CNTR_ListCurrenciesCode,0)))","v":""},null,"",null,null,"","",null,"","","",null,null,"",null,null,false,null,{"$f":"IF(CNTR_HasEntriesA,IF(AND(D108<>\"\",COUNTIF(D312:BA312,TRUE)>0),CONST_ErrorOrMissing,IF(AND(D108<>\"\",COUNTIF(D312:BA312,TRUE)=0),TRUE,CONST_NA)),CONST_NA)","v":"n.a."},null,"","","",""]
[null,null,100,null,"",null,"",null,{"$f":"IF(OR($D109=\"\",$D109=CONST_NA),\"\",INDEX(InputOutput!$AK$71:$AK$80,MATCH($D109,InputOutput!$D$71:$D$80,0)))","v":""},{"$f":"IF(OR($D109=\"\",$D109=CONST_NA),\"\",INDEX(InputOutput!$AM$71:$AM$80,MATCH($D109,InputOutput!$D$71:$D$80,0)))","v":""},"","",{"$f":"IF($E109=\"\",\"\",INDEX(Summary_Processes!$AG$159:$AG$517,MATCH($D109,Summary_Processes!$D$159:$D$517,0)))","v":""},{"$f":"IF(D109=\"\",\"\",INDEX(D_Processes!T:T,MATCH(CONST_CNTR_ElecEFMethod&D109,D_Processes!R:R,0)))","v":""},{"$f":"IF(OR($D109=\"\",$D109=CONST_NA),\"\",INDEX(InputOutput!$AO$71:$AO$80,MATCH($D109,InputOutput!$D$71:$D$80,0)))","v":""},{"$nulls":24},"","",null,{"$f":"IF(AP109=\"\",\"\",INDEX(CNTR_ListCurrenciesName,MATCH(AP109,CNTR_ListCurrenciesCode,0)))","v":""},null,"",null,null,"","",null,"","","",null,null,"",null,null,false,null,{"$f":"IF(CNTR_HasEntriesA,IF(AND(D109<>\"\",COUNTIF(D313:BA313,TRUE)>0),CONST_ErrorOrMissing,IF(AND(D109<>\"\",COUNTIF(D313:BA313,TRUE)=0),TRUE,CONST_NA)),CONST_NA)","v":"n.a."},null,"","","",""]
[]
["ausblenden",{"$nulls":52},"PRINT"]
["ausblenden",null,1,null,null,false,null,false,{"$nulls":6},"cond.form.",{"$f":"IF(OR($D10=\"\",$D10=CONST_NA),FALSE,INDEX(Parameters_Constants!$K$101:$AF$118,MATCH($E10,CONST_LIST_Goods,0),MATCH(P$8,Parameters_Constants!$K$100:$AF$100,0))=FALSE)","v":false},{"$f":"IF(OR($D10=\"\",$D10=CONST_NA),FALSE,INDEX(Parameters_Constants!$K$101:$AF$118,MATCH($E10,CONST_LIST_Goods,0),MATCH(Q$8,Parameters_Constants!$K$100:$AF$100,0))=FALSE)","v":false},{"$f":"IF(OR($D10=\"\",$D10=CONST_NA),FALSE,INDEX(Parameters_Constants!$K$101:$AF$118,MATCH($E10,CONST_LIST_Goods,0),MATCH(R$8,Parameters_Constants!$K$100:$AF$100,0))=FALSE)","v":false},{"$f":"IF(OR($D10=\"\",$D10=CONST_NA),FALSE,INDEX(Parameters_Constants!$K$101:$AF$118,MATCH($E10,CONST_LIST_Goods,0),MATCH(S$8,Parameters_Constants!$K$100:$AF$100,0))=FALSE)","v":false},{"$f":"IF(OR($D10=\"\",$D10=CONST_NA),FALSE,INDEX(Parameters_Constants!$K$101:$AF$118,MATCH($E10,CONST_LIST_Goods,0),MATCH(T$8,Parameters_Constants!$K$100:$AF$100,0))=FALSE)","v":false},{"$f":"IF(OR($D10=\"\",$D10=CONST_NA),FALSE,INDEX(Parameters_Constants!$K$101:$AF$118,MATCH($E10,CONST_LIST_Goods,0),MATCH(U$8,Parameters_Constants!$K$100:$AF$100,0))=FALSE)","v":false},{"$f":"IF(OR($D10=\"\",$D10=CONST_NA),FALSE,INDEX(Parameters_Constants!$K$101:$AF$118,MATCH($E10,CONST_LIST_Goods,0),MATCH(V$8,Parameters_Constants!$K$100:$AF$100,0))=FALSE)","v":false},{"$f":"IF(OR($D10=\"\",$D10=CONST_NA),FALSE,INDEX(Parameters_Constants!$K$101:$AF$118,MATCH($E10,CONST_LIST_Goods,0),MATCH(W$8,Parameters_Constants!$K$100:$AF$100,0))=FALSE)","v":false},{"$f":"IF(OR($D10=\"\",$D10=CONST_NA),FALSE,INDEX(Parameters_Constants!$K$101:$AF$118,MATCH($E10,CONST_LIST_Goods,0),MATCH(X$8,Parameters_Constants!$K$100:$AF$100,0))=FALSE)","v":false},{"$f":"IF(OR($D10=\"\",$D10=CONST_NA),FALSE,INDEX(Parameters_Constants!$K$101:$AF$118,MATCH($E10,CONST_LIST_Goods,0),MATCH(Y$8,Parameters_Constants!$K$100:$AF$100,0))=FALSE)","v":false},{"$f":"IF(OR($D10=\"\",$D10=CONST_NA),FALSE,INDEX(Parameters_Constants!$K$101:$AF$118,MATCH($E10,CONST_LIST_Goods,0),MATCH(Z$8,Parameters_Constants!$K$100:$AF$100,0))=FALSE)","v":false},{"$f":"IF(OR($D10=\"\",$D10=CONST_NA),FALSE,INDEX(Parameters_Constants!$K$101:$AF$118,MATCH($E10,CONST_LIST_Goods,0),MATCH(AA$8,Parameters_Constants!$K$100:$AF$100,0))=FALSE)","v":false},{"$f":"IF(OR($D10=\"\",$D10=CONST_NA),FALSE,INDEX(Parameters_Constants!$K$101:$AF$118,MATCH($E10,CONST_LIST_Goods,0),MATCH(AB$8,Parameters_Constants!$K$100:$AF$100,0))=FALSE)","v":false},{"$f":"IF(OR($D10=\"\",$D10=CONST_NA),FALSE,INDEX(Parameters_Constants!$K$101:$AF$118,MATCH($E10,CONST_LIST_Goods,0),MATCH(AC$8,Parameters_Constants!$K$100:$AF$100,0))=FALSE)","v":false},{"$f":"IF(OR($D10=\"\",$D10=CONST_NA),FALSE,INDEX(Parameters_Constants!$K$101:$AF$118,MATCH($E10,CONST_LIST_Goods,0),MATCH(AD$8,Parameters_Constants!$K$100:$AF$100,0))=FALSE)","v":false},{"$f":"IF(OR($D10=\"\",$D10=CONST_NA),FALSE,INDEX(Parameters_Constants!$K$101:$AF$118,MATCH($E10,CONST_LIST_Goods,0),MATCH(AE$8,Parameters_Constants!$K$100:$AF$100,0))=FALSE)","v":false},{"$f":"IF(OR($D10=\"\",$D10=CONST_NA),FALSE,INDEX(Parameters_Constants!$K$101:$AF$118,MATCH($E10,CONST_LIST_Goods,0),MATCH(AF$8,Parameters_Constants!$K$100:$AF$100,0))=FALSE)","v":false},{"$f":"IF(OR($D10=\"\",$D10=CONST_NA),FALSE,INDEX(Parameters_Constants!$K$101:$AF$118,MATCH($E10,CONST_LIST_Goods,0),MATCH(AG$8,Parameters_Constants!$K$100:$AF$100,0))=FALSE)","v":false},{"$f":"IF(OR($D10=\"\",$D10=CONST_NA),FALSE,INDEX(Parameters_Constants!$K$101:$AF$118,MATCH($E10,CONST_LIST_Goods,0),MATCH(AH$8,Parameters_Constants!$K$100:$AF$100,0))=FALSE)","v":false},{"$f":"IF(OR($D10=\"\",$D10=CONST_NA),FALSE,INDEX(Parameters_Constants!$K$101:$AF$118,MATCH($E10,CONST_LIST_Goods,0),MATCH(AI$8,Parameters_Constants!$K$100:$AF$100,0))=FALSE)","v":false},{"$f":"IF(OR($D10=\"\",$D10=CONST_NA),FALSE,INDEX(Parameters_Constants!$K$101:$AF$118,MATCH($E10,CONST_LIST_Goods,0),MATCH(AJ$8,Parameters_Constants!$K$100:$AF$100,0))=FALSE)","v":false},{"$f":"IF(OR($D10=\"\",$D10=CONST_NA),FALSE,INDEX(Parameters_Constants!$K$101:$AF$118,MATCH($E10,CONST_LIST_Goods,0),MATCH(AK$8,Parameters_Constants!$K$100:$AF$100,0))=FALSE)","v":false}]
["ausblenden",null,2,null,null,false,null,false,{"$nulls":7},{"$f":"IF(OR($D11=\"\",$D11=CONST_NA),FALSE,INDEX(Parameters_Constants!$K$101:$AF$118,MATCH($E11,CONST_LIST_Goods,0),MATCH(P$8,Parameters_Constants!$K$100:$AF$100,0))=FALSE)","v":false},{"$f":"IF(OR($D11=\"\",$D11=CONST_NA),FALSE,INDEX(Parameters_Constants!$K$101:$AF$118,MATCH($E11,CONST_LIST_Goods,0),MATCH(Q$8,Parameters_Constants!$K$100:$AF$100,0))=FALSE)","v":false},{"$f":"IF(OR($D11=\"\",$D11=CONST_NA),FALSE,INDEX(Parameters_Constants!$K$101:$AF$118,MATCH($E11,CONST_LIST_Goods,0),MATCH(R$8,Parameters_Constants!$K$100:$AF$100,0))=FALSE)","v":false},{"$f":"IF(OR($D11=\"\",$D11=CONST_NA),FALSE,INDEX(Parameters_Constants!$K$101:$AF$118,MATCH($E11,CONST_LIST_Goods,0),MATCH(S$8,Parameters_Constants!$K$100:$AF$100,0))=FALSE)","v":false},{"$f":"IF(OR($D11=\"\",$D11=CONST_NA),FALSE,INDEX(Parameters_Constants!$K$101:$AF$118,MATCH($E11,CONST_LIST_Goods,0),MATCH(T$8,Parameters_Constants!$K$100:$AF$100,0))=FALSE)","v":false},{"$f":"IF(OR($D11=\"\",$D11=CONST_NA),FALSE,INDEX(Parameters_Constants!$K$101:$AF$118,MATCH($E11,CONST_LIST_Goods,0),MATCH(U$8,Parameters_Constants!$K$100:$AF$100,0))=FALSE)","v":false},{"$f":"IF(OR($D11=\"\",$D11=CONST_NA),FALSE,INDEX(Parameters_Constants!$K$101:$AF$118,MATCH($E11,CONST_LIST_Goods,0),MATCH(V$8,Parameters_Constants!$K$100:$AF$100,0))=FALSE)","v":false},{"$f":"IF(OR($D11=\"\",$D11=CONST_NA),FALSE,INDEX(Parameters_Constants!$K$101:$AF$118,MATCH($E11,CONST_LIST_Goods,0),MATCH(W$8,Parameters_Constants!$K$100:$AF$100,0))=FALSE)","v":false},{"$f":"IF(OR($D11=\"\",$D11=CONST_NA),FALSE,INDEX(Parameters_Constants!$K$101:$AF$118,MATCH($E11,CONST_LIST_Goods,0),MATCH(X$8,Parameters_Constants!$K$100:$AF$100,0))=FALSE)","v":false},{"$f":"IF(OR($D11=\"\",$D11=CONST_NA),FALSE,INDEX(Parameters_Constants!$K$101:$AF$118,MATCH($E11,CONST_LIST_Goods,0),MATCH(Y$8,Parameters_Constants!$K$100:$AF$100,0))=FALSE)","v":false},{"$f":"IF(OR($D11=\"\",$D11=CONST_NA),FALSE,INDEX(Parameters_Constants!$K$101:$AF$118,MATCH($E11,CONST_LIST_Goods,0),MATCH(Z$8,Parameters_Constants!$K$100:$AF$100,0))=FALSE)","v":false},{"$f":"IF(OR($D11=\"\",$D11=CONST_NA),FALSE,INDEX(Parameters_Constants!$K$101:$AF$118,MATCH($E11,CONST_LIST_Goods,0),MATCH(AA$8,Parameters_Constants!$K$100:$AF$100,0))=FALSE)","v":false},{"$f":"IF(OR($D11=\"\",$D11=CONST_NA),FALSE,INDEX(Parameters_Constants!$K$101:$AF$118,MATCH($E11,CONST_LIST_Goods,0),MATCH(AB$8,Parameters_Constants!$K$100:$AF$100,0))=FALSE)","v":false},{"$f":"IF(OR($D11=\"\",$D11=CONST_NA),FALSE,INDEX(Parameters_Constants!$K$101:$AF$118,MATCH($E11,CONST_LIST_Goods,0),MATCH(AC$8,Parameters_Constants!$K$100:$AF$100,0))=FALSE)","v":false},{"$f":"IF(OR($D11=\"\",$D11=CONST_NA),FALSE,INDEX(Parameters_Constants!$K$101:$AF$118,MATCH($E11,CONST_LIST_Goods,0),MATCH(AD$8,Parameters_Constants!$K$100:$AF$100,0))=FALSE)","v":false},{"$f":"IF(OR($D11=\"\",$D11=CONST_NA),FALSE,INDEX(Parameters_Constants!$K$101:$AF$118,MATCH($E11,CONST_LIST_Goods,0),MATCH(AE$8,Parameters_Constants!$K$100:$AF$100,0))=FALSE)","v":false},{"$f":"IF(OR($D11=\"\",$D11=CONST_NA),FALSE,INDEX(Parameters_Constants!$K$101:$AF$118,MATCH($E11,CONST_LIST_Goods,0),MATCH(AF$8,Parameters_Constants!$K$100:$AF$100,0))=FALSE)","v":false},{"$f":"IF(OR($D11=\"\",$D11=CONST_NA),FALSE,INDEX(Parameters_Constants!$K$101:$AF$118,MATCH($E11,CONST_LIST_Goods,0),MATCH(AG$8,Parameters_Constants!$K$100:$AF$100,0))=FALSE)","v":false},{"$f":"IF(OR($D11=\"\",$D11=CONST_NA),FALSE,INDEX(Parameters_Constants!$K$101:$AF$118,MATCH($E11,CONST_LIST_Goods,0),MATCH(AH$8,Parameters_Constants!$K$100:$AF$100,0))=FALSE)","v":false},{"$f":"IF(OR($D11=\"\",$D11=CONST_NA),FALSE,INDEX(Parameters_Constants!$K$101:$AF$118,MATCH($E11,CONST_LIST_Goods,0),MATCH(AI$8,Parameters_Constants!$K$100:$AF$100,0))=FALSE)","v":false},{"$f":"IF(OR($D11=\"\",$D11=CONST_NA),FALSE,INDEX(Parameters_Constants!$K$101:$AF$118,MATCH($E11,CONST_LIST_Goods,0),MATCH(AJ$8,Parameters_Constants!$K$100:$AF$100,0))=FALSE)","v":false},{"$f":"IF(OR($D11=\"\",$D11=CONST_NA),FALSE,INDEX(Parameters_Constants!$K$101:$AF$118,MATCH($E11,CONST_LIST_Goods,0),MATCH(AK$8,Parameters_Constants!$K$100:$AF$100,0))=FALSE)","v":false}]
["ausblenden",null,3,null,null,false,null,false,{"$nulls":7},{"$f":"IF(OR($D12=\"\",$D12=CONST_NA),FALSE,INDEX(Parameters_Constants!$K$101:$AF$118,MATCH($E12,CONST_LIST_Goods,0),MATCH(P$8,Parameters_Constants!$K$100:$AF$100,0))=FALSE)","v":false},{"$f":"IF(OR($D12=\"\",$D12=CONST_NA),FALSE,INDEX(Parameters_Constants!$K$101:$AF$118,MATCH($E12,CONST_LIST_Goods,0),MATCH(Q$8,Parameters_Constants!$K$100:$AF$100,0))=FALSE)","v":false},{"$f":"IF(OR($D12=\"\",$D12=CONST_NA),FALSE,INDEX(Parameters_Constants!$K$101:$AF$118,MATCH($E12,CONST_LIST_Goods,0),MATCH(R$8,Parameters_Constants!$K$100:$AF$100,0))=FALSE)","v":false},{"$f":"IF(OR($D12=\"\",$D12=CONST_NA),FALSE,INDEX(Parameters_Constants!$K$101:$AF$118,MATCH($E12,CONST_LIST_Goods,0),MATCH(S$8,Parameters_Constants!$K$100:$AF$100,0))=FALSE)","v":false},{"$f":"IF(OR($D12=\"\",$D12=CONST_NA),FALSE,INDEX(Parameters_Constants!$K$101:$AF$118,MATCH($E12,CONST_LIST_Goods,0),MATCH(T$8,Parameters_Constants!$K$100:$AF$100,0))=FALSE)","v":false},{"$f":"IF(OR($D12=\"\",$D12=CONST_NA),FALSE,INDEX(Parameters_Constants!$K$101:$AF$118,MATCH($E12,CONST_LIST_Goods,0),MATCH(U$8,Parameters_Constants!$K$100:$AF$100,0))=FALSE)","v":false},{"$f":"IF(OR($D12=\"\",$D12=CONST_NA),FALSE,INDEX(Parameters_Constants!$K$101:$AF$118,MATCH($E12,CONST_LIST_Goods,0),MATCH(V$8,Parameters_Constants!$K$100:$AF$100,0))=FALSE)","v":false},{"$f":"IF(OR($D12=\"\",$D12=CONST_NA),FALSE,INDEX(Parameters_Constants!$K$101:$AF$118,MATCH($E12,CONST_LIST_Goods,0),MATCH(W$8,Parameters_Constants!$K$100:$AF$100,0))=FALSE)","v":false},{"$f":"IF(OR($D12=\"\",$D12=CONST_NA),FALSE,INDEX(Parameters_Constants!$K$101:$AF$118,MATCH($E12,CONST_LIST_Goods,0),MATCH(X$8,Parameters_Constants!$K$100:$AF$100,0))=FALSE)","v":false},{"$f":"IF(OR($D12=\"\",$D12=CONST_NA),FALSE,INDEX(Parameters_Constants!$K$101:$AF$118,MATCH($E12,CONST_LIST_Goods,0),MATCH(Y$8,Parameters_Constants!$K$100:$AF$100,0))=FALSE)","v":false},{"$f":"IF(OR($D12=\"\",$D12=CONST_NA),FALSE,INDEX(Parameters_Constants!$K$101:$AF$118,MATCH($E12,CONST_LIST_Goods,0),MATCH(Z$8,Parameters_Constants!$K$100:$AF$100,0))=FALSE)","v":false},{"$f":"IF(OR($D12=\"\",$D12=CONST_NA),FALSE,INDEX(Parameters_Constants!$K$101:$AF$118,MATCH($E12,CONST_LIST_Goods,0),MATCH(AA$8,Parameters_Constants!$K$100:$AF$100,0))=FALSE)","v":false},{"$f":"IF(OR($D12=\"\",$D12=CONST_NA),FALSE,INDEX(Parameters_Constants!$K$101:$AF$118,MATCH($E12,CONST_LIST_Goods,0),MATCH(AB$8,Parameters_Constants!$K$100:$AF$100,0))=FALSE)","v":false},{"$f":"IF(OR($D12=\"\",$D12=CONST_NA),FALSE,INDEX(Parameters_Constants!$K$101:$AF$118,MATCH($E12,CONST_LIST_Goods,0),MATCH(AC$8,Parameters_Constants!$K$100:$AF$100,0))=FALSE)","v":false},{"$f":"IF(OR($D12=\"\",$D12=CONST_NA),FALSE,INDEX(Parameters_Constants!$K$101:$AF$118,MATCH($E12,CONST_LIST_Goods,0),MATCH(AD$8,Parameters_Constants!$K$100:$AF$100,0))=FALSE)","v":false},{"$f":"IF(OR($D12=\"\",$D12=CONST_NA),FALSE,INDEX(Parameters_Constants!$K$101:$AF$118,MATCH($E12,CONST_LIST_Goods,0),MATCH(AE$8,Parameters_Constants!$K$100:$AF$100,0))=FALSE)","v":false},{"$f":"IF(OR($D12=\"\",$D12=CONST_NA),FALSE,INDEX(Parameters_Constants!$K$101:$AF$118,MATCH($E12,CONST_LIST_Goods,0),MATCH(AF$8,Parameters_Constants!$K$100:$AF$100,0))=FALSE)","v":false},{"$f":"IF(OR($D12=\"\",$D12=CONST_NA),FALSE,INDEX(Parameters_Constants!$K$101:$AF$118,MATCH($E12,CONST_LIST_Goods,0),MATCH(AG$8,Parameters_Constants!$K$100:$AF$100,0))=FALSE)","v":false},{"$f":"IF(OR($D12=\"\",$D12=CONST_NA),FALSE,INDEX(Parameters_Constants!$K$101:$AF$118,MATCH($E12,CONST_LIST_Goods,0),MATCH(AH$8,Parameters_Constants!$K$100:$AF$100,0))=FALSE)","v":false},{"$f":"IF(OR($D12=\"\",$D12=CONST_NA),FALSE,INDEX(Parameters_Constants!$K$101:$AF$118,MATCH($E12,CONST_LIST_Goods,0),MATCH(AI$8,Parameters_Constants!$K$100:$AF$100,0))=FALSE)","v":false},{"$f":"IF(OR($D12=\"\",$D12=CONST_NA),FALSE,INDEX(Parameters_Constants!$K$101:$AF$118,MATCH($E12,CONST_LIST_Goods,0),MATCH(AJ$8,Parameters_Constants!$K$100:$AF$100,0))=FALSE)","v":false},{"$f":"IF(OR($D12=\"\",$D12=CONST_NA),FALSE,INDEX(Parameters_Constants!$K$101:$AF$118,MATCH($E12,CONST_LIST_Goods,0),MATCH(AK$8,Parameters_Constants!$K$100:$AF$100,0))=FALSE)","v":false}]
["ausblenden",null,4,null,null,false,null,false,{"$nulls":7},{"$f":"IF(OR($D13=\"\",$D13=CONST_NA),FALSE,INDEX(Parameters_Constants!$K$101:$AF$118,MATCH($E13,CONST_LIST_Goods,0),MATCH(P$8,Parameters_Constants!$K$100:$AF$100,0))=FALSE)","v":false},{"$f":"IF(OR($D13=\"\",$D13=CONST_NA),FALSE,INDEX(Parameters_Constants!$K$101:$AF$118,MATCH($E13,CONST_LIST_Goods,0),MATCH(Q$8,Parameters_Constants!$K$100:$AF$100,0))=FALSE)","v":false},{"$f":"IF(OR($D13=\"\",$D13=CONST_NA),FALSE,INDEX(Parameters_Constants!$K$101:$AF$118,MATCH($E13,CONST_LIST_Goods,0),MATCH(R$8,Parameters_Constants!$K$100:$AF$100,0))=FALSE)","v":false},{"$f":"IF(OR($D13=\"\",$D13=CONST_NA),FALSE,INDEX(Parameters_Constants!$K$101:$AF$118,MATCH($E13,CONST_LIST_Goods,0),MATCH(S$8,Parameters_Constants!$K$100:$AF$100,0))=FALSE)","v":false},{"$f":"IF(OR($D13=\"\",$D13=CONST_NA),FALSE,INDEX(Parameters_Constants!$K$101:$AF$118,MATCH($E13,CONST_LIST_Goods,0),MATCH(T$8,Parameters_Constants!$K$100:$AF$100,0))=FALSE)","v":false},{"$f":"IF(OR($D13=\"\",$D13=CONST_NA),FALSE,INDEX(Parameters_Constants!$K$101:$AF$118,MATCH($E13,CONST_LIST_Goods,0),MATCH(U$8,Parameters_Constants!$K$100:$AF$100,0))=FALSE)","v":false},{"$f":"IF(OR($D13=\"\",$D13=CONST_NA),FALSE,INDEX(Parameters_Constants!$K$101:$AF$118,MATCH($E13,CONST_LIST_Goods,0),MATCH(V$8,Parameters_Constants!$K$100:$AF$100,0))=FALSE)","v":false},{"$f":"IF(OR($D13=\"\",$D13=CONST_NA),FALSE,INDEX(Parameters_Constants!$K$101:$AF$118,MATCH($E13,CONST_LIST_Goods,0),MATCH(W$8,Parameters_Constants!$K$100:$AF$100,0))=FALSE)","v":false},{"$f":"IF(OR($D13=\"\",$D13=CONST_NA),FALSE,INDEX(Parameters_Constants!$K$101:$AF$118,MATCH($E13,CONST_LIST_Goods,0),MATCH(X$8,Parameters_Constants!$K$100:$AF$100,0))=FALSE)","v":false},{"$f":"IF(OR($D13=\"\",$D13=CONST_NA),FALSE,INDEX(Parameters_Constants!$K$101:$AF$118,MATCH($E13,CONST_LIST_Goods,0),MATCH(Y$8,Parameters_Constants!$K$100:$AF$100,0))=FALSE)","v":false},{"$f":"IF(OR($D13=\"\",$D13=CONST_NA),FALSE,INDEX(Parameters_Constants!$K$101:$AF$118,MATCH($E13,CONST_LIST_Goods,0),MATCH(Z$8,Parameters_Constants!$K$100:$AF$100,0))=FALSE)","v":false},{"$f":"IF(OR($D13=\"\",$D13=CONST_NA),FALSE,INDEX(Parameters_Constants!$K$101:$AF$118,MATCH($E13,CONST_LIST_Goods,0),MATCH(AA$8,Parameters_Constants!$K$100:$AF$100,0))=FALSE)","v":false},{"$f":"IF(OR($D13=\"\",$D13=CONST_NA),FALSE,INDEX(Parameters_Constants!$K$101:$AF$118,MATCH($E13,CONST_LIST_Goods,0),MATCH(AB$8,Parameters_Constants!$K$100:$AF$100,0))=FALSE)","v":false},{"$f":"IF(OR($D13=\"\",$D13=CONST_NA),FALSE,INDEX(Parameters_Constants!$K$101:$AF$118,MATCH($E13,CONST_LIST_Goods,0),MATCH(AC$8,Parameters_Constants!$K$100:$AF$100,0))=FALSE)","v":false},{"$f":"IF(OR($D13=\"\",$D13=CONST_NA),FALSE,INDEX(Parameters_Constants!$K$101:$AF$118,MATCH($E13,CONST_LIST_Goods,0),MATCH(AD$8,Parameters_Constants!$K$100:$AF$100,0))=FALSE)","v":false},{"$f":"IF(OR($D13=\"\",$D13=CONST_NA),FALSE,INDEX(Parameters_Constants!$K$101:$AF$118,MATCH($E13,CONST_LIST_Goods,0),MATCH(AE$8,Parameters_Constants!$K$100:$AF$100,0))=FALSE)","v":false},{"$f":"IF(OR($D13=\"\",$D13=CONST_NA),FALSE,INDEX(Parameters_Constants!$K$101:$AF$118,MATCH($E13,CONST_LIST_Goods,0),MATCH(AF$8,Parameters_Constants!$K$100:$AF$100,0))=FALSE)","v":false},{"$f":"IF(OR($D13=\"\",$D13=CONST_NA),FALSE,INDEX(Parameters_Constants!$K$101:$AF$118,MATCH($E13,CONST_LIST_Goods,0),MATCH(AG$8,Parameters_Constants!$K$100:$AF$100,0))=FALSE)","v":false},{"$f":"IF(OR($D13=\"\",$D13=CONST_NA),FALSE,INDEX(Parameters_Constants!$K$101:$AF$118,MATCH($E13,CONST_LIST_Goods,0),MATCH(AH$8,Parameters_Constants!$K$100:$AF$100,0))=FALSE)","v":false},{"$f":"IF(OR($D13=\"\",$D13=CONST_NA),FALSE,INDEX(Parameters_Constants!$K$101:$AF$118,MATCH($E13,CONST_LIST_Goods,0),MATCH(AI$8,Parameters_Constants!$K$100:$AF$100,0))=FALSE)","v":false},{"$f":"IF(OR($D13=\"\",$D13=CONST_NA),FALSE,INDEX(Parameters_Constants!$K$101:$AF$118,MATCH($E13,CONST_LIST_Goods,0),MATCH(AJ$8,Parameters_Constants!$K$100:$AF$100,0))=FALSE)","v":false},{"$f":"IF(OR($D13=\"\",$D13=CONST_NA),FALSE,INDEX(Parameters_Constants!$K$101:$AF$118,MATCH($E13,CONST_LIST_Goods,0),MATCH(AK$8,Parameters_Constants!$K$100:$AF$100,0))=FALSE)","v":false}]
["ausblenden",null,5,null,null,false,null,false,{"$nulls":7},{"$f":"IF(OR($D14=\"\",$D14=CONST_NA),FALSE,INDEX(Parameters_Constants!$K$101:$AF$118,MATCH($E14,CONST_LIST_Goods,0),MATCH(P$8,Parameters_Constants!$K$100:$AF$100,0))=FALSE)","v":false},{"$f":"IF(OR($D14=\"\",$D14=CONST_NA),FALSE,INDEX(Parameters_Constants!$K$101:$AF$118,MATCH($E14,CONST_LIST_Goods,0),MATCH(Q$8,Parameters_Constants!$K$100:$AF$100,0))=FALSE)","v":false},{"$f":"IF(OR($D14=\"\",$D14=CONST_NA),FALSE,INDEX(Parameters_Constants!$K$101:$AF$118,MATCH($E14,CONST_LIST_Goods,0),MATCH(R$8,Parameters_Constants!$K$100:$AF$100,0))=FALSE)","v":false},{"$f":"IF(OR($D14=\"\",$D14=CONST_NA),FALSE,INDEX(Parameters_Constants!$K$101:$AF$118,MATCH($E14,CONST_LIST_Goods,0),MATCH(S$8,Parameters_Constants!$K$100:$AF$100,0))=FALSE)","v":false},{"$f":"IF(OR($D14=\"\",$D14=CONST_NA),FALSE,INDEX(Parameters_Constants!$K$101:$AF$118,MATCH($E14,CONST_LIST_Goods,0),MATCH(T$8,Parameters_Constants!$K$100:$AF$100,0))=FALSE)","v":false},{"$f":"IF(OR($D14=\"\",$D14=CONST_NA),FALSE,INDEX(Parameters_Constants!$K$101:$AF$118,MATCH($E14,CONST_LIST_Goods,0),MATCH(U$8,Parameters_Constants!$K$100:$AF$100,0))=FALSE)","v":false},{"$f":"IF(OR($D14=\"\",$D14=CONST_NA),FALSE,INDEX(Parameters_Constants!$K$101:$AF$118,MATCH($E14,CONST_LIST_Goods,0),MATCH(V$8,Parameters_Constants!$K$100:$AF$100,0))=FALSE)","v":false},{"$f":"IF(OR($D14=\"\",$D14=CONST_NA),FALSE,INDEX(Parameters_Constants!$K$101:$AF$118,MATCH($E14,CONST_LIST_Goods,0),MATCH(W$8,Parameters_Constants!$K$100:$AF$100,0))=FALSE)","v":false},{"$f":"IF(OR($D14=\"\",$D14=CONST_NA),FALSE,INDEX(Parameters_Constants!$K$101:$AF$118,MATCH($E14,CONST_LIST_Goods,0),MATCH(X$8,Parameters_Constants!$K$100:$AF$100,0))=FALSE)","v":false},{"$f":"IF(OR($D14=\"\",$D14=CONST_NA),FALSE,INDEX(Parameters_Constants!$K$101:$AF$118,MATCH($E14,CONST_LIST_Goods,0),MATCH(Y$8,Parameters_Constants!$K$100:$AF$100,0))=FALSE)","v":false},{"$f":"IF(OR($D14=\"\",$D14=CONST_NA),FALSE,INDEX(Parameters_Constants!$K$101:$AF$118,MATCH($E14,CONST_LIST_Goods,0),MATCH(Z$8,Parameters_Constants!$K$100:$AF$100,0))=FALSE)","v":false},{"$f":"IF(OR($D14=\"\",$D14=CONST_NA),FALSE,INDEX(Parameters_Constants!$K$101:$AF$118,MATCH($E14,CONST_LIST_Goods,0),MATCH(AA$8,Parameters_Constants!$K$100:$AF$100,0))=FALSE)","v":false},{"$f":"IF(OR($D14=\"\",$D14=CONST_NA),FALSE,INDEX(Parameters_Constants!$K$101:$AF$118,MATCH($E14,CONST_LIST_Goods,0),MATCH(AB$8,Parameters_Constants!$K$100:$AF$100,0))=FALSE)","v":false},{"$f":"IF(OR($D14=\"\",$D14=CONST_NA),FALSE,INDEX(Parameters_Constants!$K$101:$AF$118,MATCH($E14,CONST_LIST_Goods,0),MATCH(AC$8,Parameters_Constants!$K$100:$AF$100,0))=FALSE)","v":false},{"$f":"IF(OR($D14=\"\",$D14=CONST_NA),FALSE,INDEX(Parameters_Constants!$K$101:$AF$118,MATCH($E14,CONST_LIST_Goods,0),MATCH(AD$8,Parameters_Constants!$K$100:$AF$100,0))=FALSE)","v":false},{"$f":"IF(OR($D14=\"\",$D14=CONST_NA),FALSE,INDEX(Parameters_Constants!$K$101:$AF$118,MATCH($E14,CONST_LIST_Goods,0),MATCH(AE$8,Parameters_Constants!$K$100:$AF$100,0))=FALSE)","v":false},{"$f":"IF(OR($D14=\"\",$D14=CONST_NA),FALSE,INDEX(Parameters_Constants!$K$101:$AF$118,MATCH($E14,CONST_LIST_Goods,0),MATCH(AF$8,Parameters_Constants!$K$100:$AF$100,0))=FALSE)","v":false},{"$f":"IF(OR($D14=\"\",$D14=CONST_NA),FALSE,INDEX(Parameters_Constants!$K$101:$AF$118,MATCH($E14,CONST_LIST_Goods,0),MATCH(AG$8,Parameters_Constants!$K$100:$AF$100,0))=FALSE)","v":false},{"$f":"IF(OR($D14=\"\",$D14=CONST_NA),FALSE,INDEX(Parameters_Constants!$K$101:$AF$118,MATCH($E14,CONST_LIST_Goods,0),MATCH(AH$8,Parameters_Constants!$K$100:$AF$100,0))=FALSE)","v":false},{"$f":"IF(OR($D14=\"\",$D14=CONST_NA),FALSE,INDEX(Parameters_Constants!$K$101:$AF$118,MATCH($E14,CONST_LIST_Goods,0),MATCH(AI$8,Parameters_Constants!$K$100:$AF$100,0))=FALSE)","v":false},{"$f":"IF(OR($D14=\"\",$D14=CONST_NA),FALSE,INDEX(Parameters_Constants!$K$101:$AF$118,MATCH($E14,CONST_LIST_Goods,0),MATCH(AJ$8,Parameters_Constants!$K$100:$AF$100,0))=FALSE)","v":false},{"$f":"IF(OR($D14=\"\",$D14=CONST_NA),FALSE,INDEX(Parameters_Constants!$K$101:$AF$118,MATCH($E14,CONST_LIST_Goods,0),MATCH(AK$8,Parameters_Constants!$K$100:$AF$100,0))=FALSE)","v":false}]
["ausblenden",null,6,null,null,false,null,false,{"$nulls":7},{"$f":"IF(OR($D15=\"\",$D15=CONST_NA),FALSE,INDEX(Parameters_Constants!$K$101:$AF$118,MATCH($E15,CONST_LIST_Goods,0),MATCH(P$8,Parameters_Constants!$K$100:$AF$100,0))=FALSE)","v":false},{"$f":"IF(OR($D15=\"\",$D15=CONST_NA),FALSE,INDEX(Parameters_Constants!$K$101:$AF$118,MATCH($E15,CONST_LIST_Goods,0),MATCH(Q$8,Parameters_Constants!$K$100:$AF$100,0))=FALSE)","v":false},{"$f":"IF(OR($D15=\"\",$D15=CONST_NA),FALSE,INDEX(Parameters_Constants!$K$101:$AF$118,MATCH($E15,CONST_LIST_Goods,0),MATCH(R$8,Parameters_Constants!$K$100:$AF$100,0))=FALSE)","v":false},{"$f":"IF(OR($D15=\"\",$D15=CONST_NA),FALSE,INDEX(Parameters_Constants!$K$101:$AF$118,MATCH($E15,CONST_LIST_Goods,0),MATCH(S$8,Parameters_Constants!$K$100:$AF$100,0))=FALSE)","v":false},{"$f":"IF(OR($D15=\"\",$D15=CONST_NA),FALSE,INDEX(Parameters_Constants!$K$101:$AF$118,MATCH($E15,CONST_LIST_Goods,0),MATCH(T$8,Parameters_Constants!$K$100:$AF$100,0))=FALSE)","v":false},{"$f":"IF(OR($D15=\"\",$D15=CONST_NA),FALSE,INDEX(Parameters_Constants!$K$101:$AF$118,MATCH($E15,CONST_LIST_Goods,0),MATCH(U$8,Parameters_Constants!$K$100:$AF$100,0))=FALSE)","v":false},{"$f":"IF(OR($D15=\"\",$D15=CONST_NA),FALSE,INDEX(Parameters_Constants!$K$101:$AF$118,MATCH($E15,CONST_LIST_Goods,0),MATCH(V$8,Parameters_Constants!$K$100:$AF$100,0))=FALSE)","v":false},{"$f":"IF(OR($D15=\"\",$D15=CONST_NA),FALSE,INDEX(Parameters_Constants!$K$101:$AF$118,MATCH($E15,CONST_LIST_Goods,0),MATCH(W$8,Parameters_Constants!$K$100:$AF$100,0))=FALSE)","v":false},{"$f":"IF(OR($D15=\"\",$D15=CONST_NA),FALSE,INDEX(Parameters_Constants!$K$101:$AF$118,MATCH($E15,CONST_LIST_Goods,0),MATCH(X$8,Parameters_Constants!$K$100:$AF$100,0))=FALSE)","v":false},{"$f":"IF(OR($D15=\"\",$D15=CONST_NA),FALSE,INDEX(Parameters_Constants!$K$101:$AF$118,MATCH($E15,CONST_LIST_Goods,0),MATCH(Y$8,Parameters_Constants!$K$100:$AF$100,0))=FALSE)","v":false},{"$f":"IF(OR($D15=\"\",$D15=CONST_NA),FALSE,INDEX(Parameters_Constants!$K$101:$AF$118,MATCH($E15,CONST_LIST_Goods,0),MATCH(Z$8,Parameters_Constants!$K$100:$AF$100,0))=FALSE)","v":false},{"$f":"IF(OR($D15=\"\",$D15=CONST_NA),FALSE,INDEX(Parameters_Constants!$K$101:$AF$118,MATCH($E15,CONST_LIST_Goods,0),MATCH(AA$8,Parameters_Constants!$K$100:$AF$100,0))=FALSE)","v":false},{"$f":"IF(OR($D15=\"\",$D15=CONST_NA),FALSE,INDEX(Parameters_Constants!$K$101:$AF$118,MATCH($E15,CONST_LIST_Goods,0),MATCH(AB$8,Parameters_Constants!$K$100:$AF$100,0))=FALSE)","v":false},{"$f":"IF(OR($D15=\"\",$D15=CONST_NA),FALSE,INDEX(Parameters_Constants!$K$101:$AF$118,MATCH($E15,CONST_LIST_Goods,0),MATCH(AC$8,Parameters_Constants!$K$100:$AF$100,0))=FALSE)","v":false},{"$f":"IF(OR($D15=\"\",$D15=CONST_NA),FALSE,INDEX(Parameters_Constants!$K$101:$AF$118,MATCH($E15,CONST_LIST_Goods,0),MATCH(AD$8,Parameters_Constants!$K$100:$AF$100,0))=FALSE)","v":false},{"$f":"IF(OR($D15=\"\",$D15=CONST_NA),FALSE,INDEX(Parameters_Constants!$K$101:$AF$118,MATCH($E15,CONST_LIST_Goods,0),MATCH(AE$8,Parameters_Constants!$K$100:$AF$100,0))=FALSE)","v":false},{"$f":"IF(OR($D15=\"\",$D15=CONST_NA),FALSE,INDEX(Parameters_Constants!$K$101:$AF$118,MATCH($E15,CONST_LIST_Goods,0),MATCH(AF$8,Parameters_Constants!$K$100:$AF$100,0))=FALSE)","v":false},{"$f":"IF(OR($D15=\"\",$D15=CONST_NA),FALSE,INDEX(Parameters_Constants!$K$101:$AF$118,MATCH($E15,CONST_LIST_Goods,0),MATCH(AG$8,Parameters_Constants!$K$100:$AF$100,0))=FALSE)","v":false},{"$f":"IF(OR($D15=\"\",$D15=CONST_NA),FALSE,INDEX(Parameters_Constants!$K$101:$AF$118,MATCH($E15,CONST_LIST_Goods,0),MATCH(AH$8,Parameters_Constants!$K$100:$AF$100,0))=FALSE)","v":false},{"$f":"IF(OR($D15=\"\",$D15=CONST_NA),FALSE,INDEX(Parameters_Constants!$K$101:$AF$118,MATCH($E15,CONST_LIST_Goods,0),MATCH(AI$8,Parameters_Constants!$K$100:$AF$100,0))=FALSE)","v":false},{"$f":"IF(OR($D15=\"\",$D15=CONST_NA),FALSE,INDEX(Parameters_Constants!$K$101:$AF$118,MATCH($E15,CONST_LIST_Goods,0),MATCH(AJ$8,Parameters_Constants!$K$100:$AF$100,0))=FALSE)","v":false},{"$f":"IF(OR($D15=\"\",$D15=CONST_NA),FALSE,INDEX(Parameters_Constants!$K$101:$AF$118,MATCH($E15,CONST_LIST_Goods,0),MATCH(AK$8,Parameters_Constants!$K$100:$AF$100,0))=FALSE)","v":false}]
["ausblenden",null,7,null,null,false,null,false,{"$nulls":7},{"$f":"IF(OR($D16=\"\",$D16=CONST_NA),FALSE,INDEX(Parameters_Constants!$K$101:$AF$118,MATCH($E16,CONST_LIST_Goods,0),MATCH(P$8,Parameters_Constants!$K$100:$AF$100,0))=FALSE)","v":false},{"$f":"IF(OR($D16=\"\",$D16=CONST_NA),FALSE,INDEX(Parameters_Constants!$K$101:$AF$118,MATCH($E16,CONST_LIST_Goods,0),MATCH(Q$8,Parameters_Constants!$K$100:$AF$100,0))=FALSE)","v":false},{"$f":"IF(OR($D16=\"\",$D16=CONST_NA),FALSE,INDEX(Parameters_Constants!$K$101:$AF$118,MATCH($E16,CONST_LIST_Goods,0),MATCH(R$8,Parameters_Constants!$K$100:$AF$100,0))=FALSE)","v":false},{"$f":"IF(OR($D16=\"\",$D16=CONST_NA),FALSE,INDEX(Parameters_Constants!$K$101:$AF$118,MATCH($E16,CONST_LIST_Goods,0),MATCH(S$8,Parameters_Constants!$K$100:$AF$100,0))=FALSE)","v":false},{"$f":"IF(OR($D16=\"\",$D16=CONST_NA),FALSE,INDEX(Parameters_Constants!$K$101:$AF$118,MATCH($E16,CONST_LIST_Goods,0),MATCH(T$8,Parameters_Constants!$K$100:$AF$100,0))=FALSE)","v":false},{"$f":"IF(OR($D16=\"\",$D16=CONST_NA),FALSE,INDEX(Parameters_Constants!$K$101:$AF$118,MATCH($E16,CONST_LIST_Goods,0),MATCH(U$8,Parameters_Constants!$K$100:$AF$100,0))=FALSE)","v":false},{"$f":"IF(OR($D16=\"\",$D16=CONST_NA),FALSE,INDEX(Parameters_Constants!$K$101:$AF$118,MATCH($E16,CONST_LIST_Goods,0),MATCH(V$8,Parameters_Constants!$K$100:$AF$100,0))=FALSE)","v":false},{"$f":"IF(OR($D16=\"\",$D16=CONST_NA),FALSE,INDEX(Parameters_Constants!$K$101:$AF$118,MATCH($E16,CONST_LIST_Goods,0),MATCH(W$8,Parameters_Constants!$K$100:$AF$100,0))=FALSE)","v":false},{"$f":"IF(OR($D16=\"\",$D16=CONST_NA),FALSE,INDEX(Parameters_Constants!$K$101:$AF$118,MATCH($E16,CONST_LIST_Goods,0),MATCH(X$8,Parameters_Constants!$K$100:$AF$100,0))=FALSE)","v":false},{"$f":"IF(OR($D16=\"\",$D16=CONST_NA),FALSE,INDEX(Parameters_Constants!$K$101:$AF$118,MATCH($E16,CONST_LIST_Goods,0),MATCH(Y$8,Parameters_Constants!$K$100:$AF$100,0))=FALSE)","v":false},{"$f":"IF(OR($D16=\"\",$D16=CONST_NA),FALSE,INDEX(Parameters_Constants!$K$101:$AF$118,MATCH($E16,CONST_LIST_Goods,0),MATCH(Z$8,Parameters_Constants!$K$100:$AF$100,0))=FALSE)","v":false},{"$f":"IF(OR($D16=\"\",$D16=CONST_NA),FALSE,INDEX(Parameters_Constants!$K$101:$AF$118,MATCH($E16,CONST_LIST_Goods,0),MATCH(AA$8,Parameters_Constants!$K$100:$AF$100,0))=FALSE)","v":false},{"$f":"IF(OR($D16=\"\",$D16=CONST_NA),FALSE,INDEX(Parameters_Constants!$K$101:$AF$118,MATCH($E16,CONST_LIST_Goods,0),MATCH(AB$8,Parameters_Constants!$K$100:$AF$100,0))=FALSE)","v":false},{"$f":"IF(OR($D16=\"\",$D16=CONST_NA),FALSE,INDEX(Parameters_Constants!$K$101:$AF$118,MATCH($E16,CONST_LIST_Goods,0),MATCH(AC$8,Parameters_Constants!$K$100:$AF$100,0))=FALSE)","v":false},{"$f":"IF(OR($D16=\"\",$D16=CONST_NA),FALSE,INDEX(Parameters_Constants!$K$101:$AF$118,MATCH($E16,CONST_LIST_Goods,0),MATCH(AD$8,Parameters_Constants!$K$100:$AF$100,0))=FALSE)","v":false},{"$f":"IF(OR($D16=\"\",$D16=CONST_NA),FALSE,INDEX(Parameters_Constants!$K$101:$AF$118,MATCH($E16,CONST_LIST_Goods,0),MATCH(AE$8,Parameters_Constants!$K$100:$AF$100,0))=FALSE)","v":false},{"$f":"IF(OR($D16=\"\",$D16=CONST_NA),FALSE,INDEX(Parameters_Constants!$K$101:$AF$118,MATCH($E16,CONST_LIST_Goods,0),MATCH(AF$8,Parameters_Constants!$K$100:$AF$100,0))=FALSE)","v":false},{"$f":"IF(OR($D16=\"\",$D16=CONST_NA),FALSE,INDEX(Parameters_Constants!$K$101:$AF$118,MATCH($E16,CONST_LIST_Goods,0),MATCH(AG$8,Parameters_Constants!$K$100:$AF$100,0))=FALSE)","v":false},{"$f":"IF(OR($D16=\"\",$D16=CONST_NA),FALSE,INDEX(Parameters_Constants!$K$101:$AF$118,MATCH($E16,CONST_LIST_Goods,0),MATCH(AH$8,Parameters_Constants!$K$100:$AF$100,0))=FALSE)","v":false},{"$f":"IF(OR($D16=\"\",$D16=CONST_NA),FALSE,INDEX(Parameters_Constants!$K$101:$AF$118,MATCH($E16,CONST_LIST_Goods,0),MATCH(AI$8,Parameters_Constants!$K$100:$AF$100,0))=FALSE)","v":false},{"$f":"IF(OR($D16=\"\",$D16=CONST_NA),FALSE,INDEX(Parameters_Constants!$K$101:$AF$118,MATCH($E16,CONST_LIST_Goods,0),MATCH(AJ$8,Parameters_Constants!$K$100:$AF$100,0))=FALSE)","v":false},{"$f":"IF(OR($D16=\"\",$D16=CONST_NA),FALSE,INDEX(Parameters_Constants!$K$101:$AF$118,MATCH($E16,CONST_LIST_Goods,0),MATCH(AK$8,Parameters_Constants!$K$100:$AF$100,0))=FALSE)","v":false}]
["ausblenden",null,8,null,null,false,null,false,{"$nulls":7},{"$f":"IF(OR($D17=\"\",$D17=CONST_NA),FALSE,INDEX(Parameters_Constants!$K$101:$AF$118,MATCH($E17,CONST_LIST_Goods,0),MATCH(P$8,Parameters_Constants!$K$100:$AF$100,0))=FALSE)","v":false},{"$f":"IF(OR($D17=\"\",$D17=CONST_NA),FALSE,INDEX(Parameters_Constants!$K$101:$AF$118,MATCH($E17,CONST_LIST_Goods,0),MATCH(Q$8,Parameters_Constants!$K$100:$AF$100,0))=FALSE)","v":false},{"$f":"IF(OR($D17=\"\",$D17=CONST_NA),FALSE,INDEX(Parameters_Constants!$K$101:$AF$118,MATCH($E17,CONST_LIST_Goods,0),MATCH(R$8,Parameters_Constants!$K$100:$AF$100,0))=FALSE)","v":false},{"$f":"IF(OR($D17=\"\",$D17=CONST_NA),FALSE,INDEX(Parameters_Constants!$K$101:$AF$118,MATCH($E17,CONST_LIST_Goods,0),MATCH(S$8,Parameters_Constants!$K$100:$AF$100,0))=FALSE)","v":false},{"$f":"IF(OR($D17=\"\",$D17=CONST_NA),FALSE,INDEX(Parameters_Constants!$K$101:$AF$118,MATCH($E17,CONST_LIST_Goods,0),MATCH(T$8,Parameters_Constants!$K$100:$AF$100,0))=FALSE)","v":false},{"$f":"IF(OR($D17=\"\",$D17=CONST_NA),FALSE,INDEX(Parameters_Constants!$K$101:$AF$118,MATCH($E17,CONST_LIST_Goods,0),MATCH(U$8,Parameters_Constants!$K$100:$AF$100,0))=FALSE)","v":false},{"$f":"IF(OR($D17=\"\",$D17=CONST_NA),FALSE,INDEX(Parameters_Constants!$K$101:$AF$118,MATCH($E17,CONST_LIST_Goods,0),MATCH(V$8,Parameters_Constants!$K$100:$AF$100,0))=FALSE)","v":false},{"$f":"IF(OR($D17=\"\",$D17=CONST_NA),FALSE,INDEX(Parameters_Constants!$K$101:$AF$118,MATCH($E17,CONST_LIST_Goods,0),MATCH(W$8,Parameters_Constants!$K$100:$AF$100,0))=FALSE)","v":false},{"$f":"IF(OR($D17=\"\",$D17=CONST_NA),FALSE,INDEX(Parameters_Constants!$K$101:$AF$118,MATCH($E17,CONST_LIST_Goods,0),MATCH(X$8,Parameters_Constants!$K$100:$AF$100,0))=FALSE)","v":false},{"$f":"IF(OR($D17=\"\",$D17=CONST_NA),FALSE,INDEX(Parameters_Constants!$K$101:$AF$118,MATCH($E17,CONST_LIST_Goods,0),MATCH(Y$8,Parameters_Constants!$K$100:$AF$100,0))=FALSE)","v":false},{"$f":"IF(OR($D17=\"\",$D17=CONST_NA),FALSE,INDEX(Parameters_Constants!$K$101:$AF$118,MATCH($E17,CONST_LIST_Goods,0),MATCH(Z$8,Parameters_Constants!$K$100:$AF$100,0))=FALSE)","v":false},{"$f":"IF(OR($D17=\"\",$D17=CONST_NA),FALSE,INDEX(Parameters_Constants!$K$101:$AF$118,MATCH($E17,CONST_LIST_Goods,0),MATCH(AA$8,Parameters_Constants!$K$100:$AF$100,0))=FALSE)","v":false},{"$f":"IF(OR($D17=\"\",$D17=CONST_NA),FALSE,INDEX(Parameters_Constants!$K$101:$AF$118,MATCH($E17,CONST_LIST_Goods,0),MATCH(AB$8,Parameters_Constants!$K$100:$AF$100,0))=FALSE)","v":false},{"$f":"IF(OR($D17=\"\",$D17=CONST_NA),FALSE,INDEX(Parameters_Constants!$K$101:$AF$118,MATCH($E17,CONST_LIST_Goods,0),MATCH(AC$8,Parameters_Constants!$K$100:$AF$100,0))=FALSE)","v":false},{"$f":"IF(OR($D17=\"\",$D17=CONST_NA),FALSE,INDEX(Parameters_Constants!$K$101:$AF$118,MATCH($E17,CONST_LIST_Goods,0),MATCH(AD$8,Parameters_Constants!$K$100:$AF$100,0))=FALSE)","v":false},{"$f":"IF(OR($D17=\"\",$D17=CONST_NA),FALSE,INDEX(Parameters_Constants!$K$101:$AF$118,MATCH($E17,CONST_LIST_Goods,0),MATCH(AE$8,Parameters_Constants!$K$100:$AF$100,0))=FALSE)","v":false},{"$f":"IF(OR($D17=\"\",$D17=CONST_NA),FALSE,INDEX(Parameters_Constants!$K$101:$AF$118,MATCH($E17,CONST_LIST_Goods,0),MATCH(AF$8,Parameters_Constants!$K$100:$AF$100,0))=FALSE)","v":false},{"$f":"IF(OR($D17=\"\",$D17=CONST_NA),FALSE,INDEX(Parameters_Constants!$K$101:$AF$118,MATCH($E17,CONST_LIST_Goods,0),MATCH(AG$8,Parameters_Constants!$K$100:$AF$100,0))=FALSE)","v":false},{"$f":"IF(OR($D17=\"\",$D17=CONST_NA),FALSE,INDEX(Parameters_Constants!$K$101:$AF$118,MATCH($E17,CONST_LIST_Goods,0),MATCH(AH$8,Parameters_Constants!$K$100:$AF$100,0))=FALSE)","v":false},{"$f":"IF(OR($D17=\"\",$D17=CONST_NA),FALSE,INDEX(Parameters_Constants!$K$101:$AF$118,MATCH($E17,CONST_LIST_Goods,0),MATCH(AI$8,Parameters_Constants!$K$100:$AF$100,0))=FALSE)","v":false},{"$f":"IF(OR($D17=\"\",$D17=CONST_NA),FALSE,INDEX(Parameters_Constants!$K$101:$AF$118,MATCH($E17,CONST_LIST_Goods,0),MATCH(AJ$8,Parameters_Constants!$K$100:$AF$100,0))=FALSE)","v":false},{"$f":"IF(OR($D17=\"\",$D17=CONST_NA),FALSE,INDEX(Parameters_Constants!$K$101:$AF$118,MATCH($E17,CONST_LIST_Goods,0),MATCH(AK$8,Parameters_Constants!$K$100:$AF$100,0))=FALSE)","v":false}]
["ausblenden",null,9,null,null,false,null,false,{"$nulls":7},{"$f":"IF(OR($D18=\"\",$D18=CONST_NA),FALSE,INDEX(Parameters_Constants!$K$101:$AF$118,MATCH($E18,CONST_LIST_Goods,0),MATCH(P$8,Parameters_Constants!$K$100:$AF$100,0))=FALSE)","v":false},{"$f":"IF(OR($D18=\"\",$D18=CONST_NA),FALSE,INDEX(Parameters_Constants!$K$101:$AF$118,MATCH($E18,CONST_LIST_Goods,0),MATCH(Q$8,Parameters_Constants!$K$100:$AF$100,0))=FALSE)","v":false},{"$f":"IF(OR($D18=\"\",$D18=CONST_NA),FALSE,INDEX(Parameters_Constants!$K$101:$AF$118,MATCH($E18,CONST_LIST_Goods,0),MATCH(R$8,Parameters_Constants!$K$100:$AF$100,0))=FALSE)","v":false},{"$f":"IF(OR($D18=\"\",$D18=CONST_NA),FALSE,INDEX(Parameters_Constants!$K$101:$AF$118,MATCH($E18,CONST_LIST_Goods,0),MATCH(S$8,Parameters_Constants!$K$100:$AF$100,0))=FALSE)","v":false},{"$f":"IF(OR($D18=\"\",$D18=CONST_NA),FALSE,INDEX(Parameters_Constants!$K$101:$AF$118,MATCH($E18,CONST_LIST_Goods,0),MATCH(T$8,Parameters_Constants!$K$100:$AF$100,0))=FALSE)","v":false},{"$f":"IF(OR($D18=\"\",$D18=CONST_NA),FALSE,INDEX(Parameters_Constants!$K$101:$AF$118,MATCH($E18,CONST_LIST_Goods,0),MATCH(U$8,Parameters_Constants!$K$100:$AF$100,0))=FALSE)","v":false},{"$f":"IF(OR($D18=\"\",$D18=CONST_NA),FALSE,INDEX(Parameters_Constants!$K$101:$AF$118,MATCH($E18,CONST_LIST_Goods,0),MATCH(V$8,Parameters_Constants!$K$100:$AF$100,0))=FALSE)","v":false},{"$f":"IF(OR($D18=\"\",$D18=CONST_NA),FALSE,INDEX(Parameters_Constants!$K$101:$AF$118,MATCH($E18,CONST_LIST_Goods,0),MATCH(W$8,Parameters_Constants!$K$100:$AF$100,0))=FALSE)","v":false},{"$f":"IF(OR($D18=\"\",$D18=CONST_NA),FALSE,INDEX(Parameters_Constants!$K$101:$AF$118,MATCH($E18,CONST_LIST_Goods,0),MATCH(X$8,Parameters_Constants!$K$100:$AF$100,0))=FALSE)","v":false},{"$f":"IF(OR($D18=\"\",$D18=CONST_NA),FALSE,INDEX(Parameters_Constants!$K$101:$AF$118,MATCH($E18,CONST_LIST_Goods,0),MATCH(Y$8,Parameters_Constants!$K$100:$AF$100,0))=FALSE)","v":false},{"$f":"IF(OR($D18=\"\",$D18=CONST_NA),FALSE,INDEX(Parameters_Constants!$K$101:$AF$118,MATCH($E18,CONST_LIST_Goods,0),MATCH(Z$8,Parameters_Constants!$K$100:$AF$100,0))=FALSE)","v":false},{"$f":"IF(OR($D18=\"\",$D18=CONST_NA),FALSE,INDEX(Parameters_Constants!$K$101:$AF$118,MATCH($E18,CONST_LIST_Goods,0),MATCH(AA$8,Parameters_Constants!$K$100:$AF$100,0))=FALSE)","v":false},{"$f":"IF(OR($D18=\"\",$D18=CONST_NA),FALSE,INDEX(Parameters_Constants!$K$101:$AF$118,MATCH($E18,CONST_LIST_Goods,0),MATCH(AB$8,Parameters_Constants!$K$100:$AF$100,0))=FALSE)","v":false},{"$f":"IF(OR($D18=\"\",$D18=CONST_NA),FALSE,INDEX(Parameters_Constants!$K$101:$AF$118,MATCH($E18,CONST_LIST_Goods,0),MATCH(AC$8,Parameters_Constants!$K$100:$AF$100,0))=FALSE)","v":false},{"$f":"IF(OR($D18=\"\",$D18=CONST_NA),FALSE,INDEX(Parameters_Constants!$K$101:$AF$118,MATCH($E18,CONST_LIST_Goods,0),MATCH(AD$8,Parameters_Constants!$K$100:$AF$100,0))=FALSE)","v":false},{"$f":"IF(OR($D18=\"\",$D18=CONST_NA),FALSE,INDEX(Parameters_Constants!$K$101:$AF$118,MATCH($E18,CONST_LIST_Goods,0),MATCH(AE$8,Parameters_Constants!$K$100:$AF$100,0))=FALSE)","v":false},{"$f":"IF(OR($D18=\"\",$D18=CONST_NA),FALSE,INDEX(Parameters_Constants!$K$101:$AF$118,MATCH($E18,CONST_LIST_Goods,0),MATCH(AF$8,Parameters_Constants!$K$100:$AF$100,0))=FALSE)","v":false},{"$f":"IF(OR($D18=\"\",$D18=CONST_NA),FALSE,INDEX(Parameters_Constants!$K$101:$AF$118,MATCH($E18,CONST_LIST_Goods,0),MATCH(AG$8,Parameters_Constants!$K$100:$AF$100,0))=FALSE)","v":false},{"$f":"IF(OR($D18=\"\",$D18=CONST_NA),FALSE,INDEX(Parameters_Constants!$K$101:$AF$118,MATCH($E18,CONST_LIST_Goods,0),MATCH(AH$8,Parameters_Constants!$K$100:$AF$100,0))=FALSE)","v":false},{"$f":"IF(OR($D18=\"\",$D18=CONST_NA),FALSE,INDEX(Parameters_Constants!$K$101:$AF$118,MATCH($E18,CONST_LIST_Goods,0),MATCH(AI$8,Parameters_Constants!$K$100:$AF$100,0))=FALSE)","v":false},{"$f":"IF(OR($D18=\"\",$D18=CONST_NA),FALSE,INDEX(Parameters_Constants!$K$101:$AF$118,MATCH($E18,CONST_LIST_Goods,0),MATCH(AJ$8,Parameters_Constants!$K$100:$AF$100,0))=FALSE)","v":false},{"$f":"IF(OR($D18=\"\",$D18=CONST_NA),FALSE,INDEX(Parameters_Constants!$K$101:$AF$118,MATCH($E18,CONST_LIST_Goods,0),MATCH(AK$8,Parameters_Constants!$K$100:$AF$100,0))=FALSE)","v":false}]
["ausblenden",null,10,null,null,false,null,false,{"$nulls":7},{"$f":"IF(OR($D19=\"\",$D19=CONST_NA),FALSE,INDEX(Parameters_Constants!$K$101:$AF$118,MATCH($E19,CONST_LIST_Goods,0),MATCH(P$8,Parameters_Constants!$K$100:$AF$100,0))=FALSE)","v":false},{"$f":"IF(OR($D19=\"\",$D19=CONST_NA),FALSE,INDEX(Parameters_Constants!$K$101:$AF$118,MATCH($E19,CONST_LIST_Goods,0),MATCH(Q$8,Parameters_Constants!$K$100:$AF$100,0))=FALSE)","v":false},{"$f":"IF(OR($D19=\"\",$D19=CONST_NA),FALSE,INDEX(Parameters_Constants!$K$101:$AF$118,MATCH($E19,CONST_LIST_Goods,0),MATCH(R$8,Parameters_Constants!$K$100:$AF$100,0))=FALSE)","v":false},{"$f":"IF(OR($D19=\"\",$D19=CONST_NA),FALSE,INDEX(Parameters_Constants!$K$101:$AF$118,MATCH($E19,CONST_LIST_Goods,0),MATCH(S$8,Parameters_Constants!$K$100:$AF$100,0))=FALSE)","v":false},{"$f":"IF(OR($D19=\"\",$D19=CONST_NA),FALSE,INDEX(Parameters_Constants!$K$101:$AF$118,MATCH($E19,CONST_LIST_Goods,0),MATCH(T$8,Parameters_Constants!$K$100:$AF$100,0))=FALSE)","v":false},{"$f":"IF(OR($D19=\"\",$D19=CONST_NA),FALSE,INDEX(Parameters_Constants!$K$101:$AF$118,MATCH($E19,CONST_LIST_Goods,0),MATCH(U$8,Parameters_Constants!$K$100:$AF$100,0))=FALSE)","v":false},{"$f":"IF(OR($D19=\"\",$D19=CONST_NA),FALSE,INDEX(Parameters_Constants!$K$101:$AF$118,MATCH($E19,CONST_LIST_Goods,0),MATCH(V$8,Parameters_Constants!$K$100:$AF$100,0))=FALSE)","v":false},{"$f":"IF(OR($D19=\"\",$D19=CONST_NA),FALSE,INDEX(Parameters_Constants!$K$101:$AF$118,MATCH($E19,CONST_LIST_Goods,0),MATCH(W$8,Parameters_Constants!$K$100:$AF$100,0))=FALSE)","v":false},{"$f":"IF(OR($D19=\"\",$D19=CONST_NA),FALSE,INDEX(Parameters_Constants!$K$101:$AF$118,MATCH($E19,CONST_LIST_Goods,0),MATCH(X$8,Parameters_Constants!$K$100:$AF$100,0))=FALSE)","v":false},{"$f":"IF(OR($D19=\"\",$D19=CONST_NA),FALSE,INDEX(Parameters_Constants!$K$101:$AF$118,MATCH($E19,CONST_LIST_Goods,0),MATCH(Y$8,Parameters_Constants!$K$100:$AF$100,0))=FALSE)","v":false},{"$f":"IF(OR($D19=\"\",$D19=CONST_NA),FALSE,INDEX(Parameters_Constants!$K$101:$AF$118,MATCH($E19,CONST_LIST_Goods,0),MATCH(Z$8,Parameters_Constants!$K$100:$AF$100,0))=FALSE)","v":false},{"$f":"IF(OR($D19=\"\",$D19=CONST_NA),FALSE,INDEX(Parameters_Constants!$K$101:$AF$118,MATCH($E19,CONST_LIST_Goods,0),MATCH(AA$8,Parameters_Constants!$K$100:$AF$100,0))=FALSE)","v":false},{"$f":"IF(OR($D19=\"\",$D19=CONST_NA),FALSE,INDEX(Parameters_Constants!$K$101:$AF$118,MATCH($E19,CONST_LIST_Goods,0),MATCH(AB$8,Parameters_Constants!$K$100:$AF$100,0))=FALSE)","v":false},{"$f":"IF(OR($D19=\"\",$D19=CONST_NA),FALSE,INDEX(Parameters_Constants!$K$101:$AF$118,MATCH($E19,CONST_LIST_Goods,0),MATCH(AC$8,Parameters_Constants!$K$100:$AF$100,0))=FALSE)","v":false},{"$f":"IF(OR($D19=\"\",$D19=CONST_NA),FALSE,INDEX(Parameters_Constants!$K$101:$AF$118,MATCH($E19,CONST_LIST_Goods,0),MATCH(AD$8,Parameters_Constants!$K$100:$AF$100,0))=FALSE)","v":false},{"$f":"IF(OR($D19=\"\",$D19=CONST_NA),FALSE,INDEX(Parameters_Constants!$K$101:$AF$118,MATCH($E19,CONST_LIST_Goods,0),MATCH(AE$8,Parameters_Constants!$K$100:$AF$100,0))=FALSE)","v":false},{"$f":"IF(OR($D19=\"\",$D19=CONST_NA),FALSE,INDEX(Parameters_Constants!$K$101:$AF$118,MATCH($E19,CONST_LIST_Goods,0),MATCH(AF$8,Parameters_Constants!$K$100:$AF$100,0))=FALSE)","v":false},{"$f":"IF(OR($D19=\"\",$D19=CONST_NA),FALSE,INDEX(Parameters_Constants!$K$101:$AF$118,MATCH($E19,CONST_LIST_Goods,0),MATCH(AG$8,Parameters_Constants!$K$100:$AF$100,0))=FALSE)","v":false},{"$f":"IF(OR($D19=\"\",$D19=CONST_NA),FALSE,INDEX(Parameters_Constants!$K$101:$AF$118,MATCH($E19,CONST_LIST_Goods,0),MATCH(AH$8,Parameters_Constants!$K$100:$AF$100,0))=FALSE)","v":false},{"$f":"IF(OR($D19=\"\",$D19=CONST_NA),FALSE,INDEX(Parameters_Constants!$K$101:$AF$118,MATCH($E19,CONST_LIST_Goods,0),MATCH(AI$8,Parameters_Constants!$K$100:$AF$100,0))=FALSE)","v":false},{"$f":"IF(OR($D19=\"\",$D19=CONST_NA),FALSE,INDEX(Parameters_Constants!$K$101:$AF$118,MATCH($E19,CONST_LIST_Goods,0),MATCH(AJ$8,Parameters_Constants!$K$100:$AF$100,0))=FALSE)","v":false},{"$f":"IF(OR($D19=\"\",$D19=CONST_NA),FALSE,INDEX(Parameters_Constants!$K$101:$AF$118,MATCH($E19,CONST_LIST_Goods,0),MATCH(AK$8,Parameters_Constants!$K$100:$AF$100,0))=FALSE)","v":false}]
["ausblenden",null,11,null,null,false,null,false,{"$nulls":7},{"$f":"IF(OR($D20=\"\",$D20=CONST_NA),FALSE,INDEX(Parameters_Constants!$K$101:$AF$118,MATCH($E20,CONST_LIST_Goods,0),MATCH(P$8,Parameters_Constants!$K$100:$AF$100,0))=FALSE)","v":false},{"$f":"IF(OR($D20=\"\",$D20=CONST_NA),FALSE,INDEX(Parameters_Constants!$K$101:$AF$118,MATCH($E20,CONST_LIST_Goods,0),MATCH(Q$8,Parameters_Constants!$K$100:$AF$100,0))=FALSE)","v":false},{"$f":"IF(OR($D20=\"\",$D20=CONST_NA),FALSE,INDEX(Parameters_Constants!$K$101:$AF$118,MATCH($E20,CONST_LIST_Goods,0),MATCH(R$8,Parameters_Constants!$K$100:$AF$100,0))=FALSE)","v":false},{"$f":"IF(OR($D20=\"\",$D20=CONST_NA),FALSE,INDEX(Parameters_Constants!$K$101:$AF$118,MATCH($E20,CONST_LIST_Goods,0),MATCH(S$8,Parameters_Constants!$K$100:$AF$100,0))=FALSE)","v":false},{"$f":"IF(OR($D20=\"\",$D20=CONST_NA),FALSE,INDEX(Parameters_Constants!$K$101:$AF$118,MATCH($E20,CONST_LIST_Goods,0),MATCH(T$8,Parameters_Constants!$K$100:$AF$100,0))=FALSE)","v":false},{"$f":"IF(OR($D20=\"\",$D20=CONST_NA),FALSE,INDEX(Parameters_Constants!$K$101:$AF$118,MATCH($E20,CONST_LIST_Goods,0),MATCH(U$8,Parameters_Constants!$K$100:$AF$100,0))=FALSE)","v":false},{"$f":"IF(OR($D20=\"\",$D20=CONST_NA),FALSE,INDEX(Parameters_Constants!$K$101:$AF$118,MATCH($E20,CONST_LIST_Goods,0),MATCH(V$8,Parameters_Constants!$K$100:$AF$100,0))=FALSE)","v":false},{"$f":"IF(OR($D20=\"\",$D20=CONST_NA),FALSE,INDEX(Parameters_Constants!$K$101:$AF$118,MATCH($E20,CONST_LIST_Goods,0),MATCH(W$8,Parameters_Constants!$K$100:$AF$100,0))=FALSE)","v":false},{"$f":"IF(OR($D20=\"\",$D20=CONST_NA),FALSE,INDEX(Parameters_Constants!$K$101:$AF$118,MATCH($E20,CONST_LIST_Goods,0),MATCH(X$8,Parameters_Constants!$K$100:$AF$100,0))=FALSE)","v":false},{"$f":"IF(OR($D20=\"\",$D20=CONST_NA),FALSE,INDEX(Parameters_Constants!$K$101:$AF$118,MATCH($E20,CONST_LIST_Goods,0),MATCH(Y$8,Parameters_Constants!$K$100:$AF$100,0))=FALSE)","v":false},{"$f":"IF(OR($D20=\"\",$D20=CONST_NA),FALSE,INDEX(Parameters_Constants!$K$101:$AF$118,MATCH($E20,CONST_LIST_Goods,0),MATCH(Z$8,Parameters_Constants!$K$100:$AF$100,0))=FALSE)","v":false},{"$f":"IF(OR($D20=\"\",$D20=CONST_NA),FALSE,INDEX(Parameters_Constants!$K$101:$AF$118,MATCH($E20,CONST_LIST_Goods,0),MATCH(AA$8,Parameters_Constants!$K$100:$AF$100,0))=FALSE)","v":false},{"$f":"IF(OR($D20=\"\",$D20=CONST_NA),FALSE,INDEX(Parameters_Constants!$K$101:$AF$118,MATCH($E20,CONST_LIST_Goods,0),MATCH(AB$8,Parameters_Constants!$K$100:$AF$100,0))=FALSE)","v":false},{"$f":"IF(OR($D20=\"\",$D20=CONST_NA),FALSE,INDEX(Parameters_Constants!$K$101:$AF$118,MATCH($E20,CONST_LIST_Goods,0),MATCH(AC$8,Parameters_Constants!$K$100:$AF$100,0))=FALSE)","v":false},{"$f":"IF(OR($D20=\"\",$D20=CONST_NA),FALSE,INDEX(Parameters_Constants!$K$101:$AF$118,MATCH($E20,CONST_LIST_Goods,0),MATCH(AD$8,Parameters_Constants!$K$100:$AF$100,0))=FALSE)","v":false},{"$f":"IF(OR($D20=\"\",$D20=CONST_NA),FALSE,INDEX(Parameters_Constants!$K$101:$AF$118,MATCH($E20,CONST_LIST_Goods,0),MATCH(AE$8,Parameters_Constants!$K$100:$AF$100,0))=FALSE)","v":false},{"$f":"IF(OR($D20=\"\",$D20=CONST_NA),FALSE,INDEX(Parameters_Constants!$K$101:$AF$118,MATCH($E20,CONST_LIST_Goods,0),MATCH(AF$8,Parameters_Constants!$K$100:$AF$100,0))=FALSE)","v":false},{"$f":"IF(OR($D20=\"\",$D20=CONST_NA),FALSE,INDEX(Parameters_Constants!$K$101:$AF$118,MATCH($E20,CONST_LIST_Goods,0),MATCH(AG$8,Parameters_Constants!$K$100:$AF$100,0))=FALSE)","v":false},{"$f":"IF(OR($D20=\"\",$D20=CONST_NA),FALSE,INDEX(Parameters_Constants!$K$101:$AF$118,MATCH($E20,CONST_LIST_Goods,0),MATCH(AH$8,Parameters_Constants!$K$100:$AF$100,0))=FALSE)","v":false},{"$f":"IF(OR($D20=\"\",$D20=CONST_NA),FALSE,INDEX(Parameters_Constants!$K$101:$AF$118,MATCH($E20,CONST_LIST_Goods,0),MATCH(AI$8,Parameters_Constants!$K$100:$AF$100,0))=FALSE)","v":false},{"$f":"IF(OR($D20=\"\",$D20=CONST_NA),FALSE,INDEX(Parameters_Constants!$K$101:$AF$118,MATCH($E20,CONST_LIST_Goods,0),MATCH(AJ$8,Parameters_Constants!$K$100:$AF$100,0))=FALSE)","v":false},{"$f":"IF(OR($D20=\"\",$D20=CONST_NA),FALSE,INDEX(Parameters_Constants!$K$101:$AF$118,MATCH($E20,CONST_LIST_Goods,0),MATCH(AK$8,Parameters_Constants!$K$100:$AF$100,0))=FALSE)","v":false}]
["ausblenden",null,12,null,null,false,null,false,{"$nulls":7},{"$f":"IF(OR($D21=\"\",$D21=CONST_NA),FALSE,INDEX(Parameters_Constants!$K$101:$AF$118,MATCH($E21,CONST_LIST_Goods,0),MATCH(P$8,Parameters_Constants!$K$100:$AF$100,0))=FALSE)","v":false},{"$f":"IF(OR($D21=\"\",$D21=CONST_NA),FALSE,INDEX(Parameters_Constants!$K$101:$AF$118,MATCH($E21,CONST_LIST_Goods,0),MATCH(Q$8,Parameters_Constants!$K$100:$AF$100,0))=FALSE)","v":false},{"$f":"IF(OR($D21=\"\",$D21=CONST_NA),FALSE,INDEX(Parameters_Constants!$K$101:$AF$118,MATCH($E21,CONST_LIST_Goods,0),MATCH(R$8,Parameters_Constants!$K$100:$AF$100,0))=FALSE)","v":false},{"$f":"IF(OR($D21=\"\",$D21=CONST_NA),FALSE,INDEX(Parameters_Constants!$K$101:$AF$118,MATCH($E21,CONST_LIST_Goods,0),MATCH(S$8,Parameters_Constants!$K$100:$AF$100,0))=FALSE)","v":false},{"$f":"IF(OR($D21=\"\",$D21=CONST_NA),FALSE,INDEX(Parameters_Constants!$K$101:$AF$118,MATCH($E21,CONST_LIST_Goods,0),MATCH(T$8,Parameters_Constants!$K$100:$AF$100,0))=FALSE)","v":false},{"$f":"IF(OR($D21=\"\",$D21=CONST_NA),FALSE,INDEX(Parameters_Constants!$K$101:$AF$118,MATCH($E21,CONST_LIST_Goods,0),MATCH(U$8,Parameters_Constants!$K$100:$AF$100,0))=FALSE)","v":false},{"$f":"IF(OR($D21=\"\",$D21=CONST_NA),FALSE,INDEX(Parameters_Constants!$K$101:$AF$118,MATCH($E21,CONST_LIST_Goods,0),MATCH(V$8,Parameters_Constants!$K$100:$AF$100,0))=FALSE)","v":false},{"$f":"IF(OR($D21=\"\",$D21=CONST_NA),FALSE,INDEX(Parameters_Constants!$K$101:$AF$118,MATCH($E21,CONST_LIST_Goods,0),MATCH(W$8,Parameters_Constants!$K$100:$AF$100,0))=FALSE)","v":false},{"$f":"IF(OR($D21=\"\",$D21=CONST_NA),FALSE,INDEX(Parameters_Constants!$K$101:$AF$118,MATCH($E21,CONST_LIST_Goods,0),MATCH(X$8,Parameters_Constants!$K$100:$AF$100,0))=FALSE)","v":false},{"$f":"IF(OR($D21=\"\",$D21=CONST_NA),FALSE,INDEX(Parameters_Constants!$K$101:$AF$118,MATCH($E21,CONST_LIST_Goods,0),MATCH(Y$8,Parameters_Constants!$K$100:$AF$100,0))=FALSE)","v":false},{"$f":"IF(OR($D21=\"\",$D21=CONST_NA),FALSE,INDEX(Parameters_Constants!$K$101:$AF$118,MATCH($E21,CONST_LIST_Goods,0),MATCH(Z$8,Parameters_Constants!$K$100:$AF$100,0))=FALSE)","v":false},{"$f":"IF(OR($D21=\"\",$D21=CONST_NA),FALSE,INDEX(Parameters_Constants!$K$101:$AF$118,MATCH($E21,CONST_LIST_Goods,0),MATCH(AA$8,Parameters_Constants!$K$100:$AF$100,0))=FALSE)","v":false},{"$f":"IF(OR($D21=\"\",$D21=CONST_NA),FALSE,INDEX(Parameters_Constants!$K$101:$AF$118,MATCH($E21,CONST_LIST_Goods,0),MATCH(AB$8,Parameters_Constants!$K$100:$AF$100,0))=FALSE)","v":false},{"$f":"IF(OR($D21=\"\",$D21=CONST_NA),FALSE,INDEX(Parameters_Constants!$K$101:$AF$118,MATCH($E21,CONST_LIST_Goods,0),MATCH(AC$8,Parameters_Constants!$K$100:$AF$100,0))=FALSE)","v":false},{"$f":"IF(OR($D21=\"\",$D21=CONST_NA),FALSE,INDEX(Parameters_Constants!$K$101:$AF$118,MATCH($E21,CONST_LIST_Goods,0),MATCH(AD$8,Parameters_Constants!$K$100:$AF$100,0))=FALSE)","v":false},{"$f":"IF(OR($D21=\"\",$D21=CONST_NA),FALSE,INDEX(Parameters_Constants!$K$101:$AF$118,MATCH($E21,CONST_LIST_Goods,0),MATCH(AE$8,Parameters_Constants!$K$100:$AF$100,0))=FALSE)","v":false},{"$f":"IF(OR($D21=\"\",$D21=CONST_NA),FALSE,INDEX(Parameters_Constants!$K$101:$AF$118,MATCH($E21,CONST_LIST_Goods,0),MATCH(AF$8,Parameters_Constants!$K$100:$AF$100,0))=FALSE)","v":false},{"$f":"IF(OR($D21=\"\",$D21=CONST_NA),FALSE,INDEX(Parameters_Constants!$K$101:$AF$118,MATCH($E21,CONST_LIST_Goods,0),MATCH(AG$8,Parameters_Constants!$K$100:$AF$100,0))=FALSE)","v":false},{"$f":"IF(OR($D21=\"\",$D21=CONST_NA),FALSE,INDEX(Parameters_Constants!$K$101:$AF$118,MATCH($E21,CONST_LIST_Goods,0),MATCH(AH$8,Parameters_Constants!$K$100:$AF$100,0))=FALSE)","v":false},{"$f":"IF(OR($D21=\"\",$D21=CONST_NA),FALSE,INDEX(Parameters_Constants!$K$101:$AF$118,MATCH($E21,CONST_LIST_Goods,0),MATCH(AI$8,Parameters_Constants!$K$100:$AF$100,0))=FALSE)","v":false},{"$f":"IF(OR($D21=\"\",$D21=CONST_NA),FALSE,INDEX(Parameters_Constants!$K$101:$AF$118,MATCH($E21,CONST_LIST_Goods,0),MATCH(AJ$8,Parameters_Constants!$K$100:$AF$100,0))=FALSE)","v":false},{"$f":"IF(OR($D21=\"\",$D21=CONST_NA),FALSE,INDEX(Parameters_Constants!$K$101:$AF$118,MATCH($E21,CONST_LIST_Goods,0),MATCH(AK$8,Parameters_Constants!$K$100:$AF$100,0))=FALSE)","v":false}]
["ausblenden",null,13,null,null,false,null,false,{"$nulls":7},{"$f":"IF(OR($D22=\"\",$D22=CONST_NA),FALSE,INDEX(Parameters_Constants!$K$101:$AF$118,MATCH($E22,CONST_LIST_Goods,0),MATCH(P$8,Parameters_Constants!$K$100:$AF$100,0))=FALSE)","v":false},{"$f":"IF(OR($D22=\"\",$D22=CONST_NA),FALSE,INDEX(Parameters_Constants!$K$101:$AF$118,MATCH($E22,CONST_LIST_Goods,0),MATCH(Q$8,Parameters_Constants!$K$100:$AF$100,0))=FALSE)","v":false},{"$f":"IF(OR($D22=\"\",$D22=CONST_NA),FALSE,INDEX(Parameters_Constants!$K$101:$AF$118,MATCH($E22,CONST_LIST_Goods,0),MATCH(R$8,Parameters_Constants!$K$100:$AF$100,0))=FALSE)","v":false},{"$f":"IF(OR($D22=\"\",$D22=CONST_NA),FALSE,INDEX(Parameters_Constants!$K$101:$AF$118,MATCH($E22,CONST_LIST_Goods,0),MATCH(S$8,Parameters_Constants!$K$100:$AF$100,0))=FALSE)","v":false},{"$f":"IF(OR($D22=\"\",$D22=CONST_NA),FALSE,INDEX(Parameters_Constants!$K$101:$AF$118,MATCH($E22,CONST_LIST_Goods,0),MATCH(T$8,Parameters_Constants!$K$100:$AF$100,0))=FALSE)","v":false},{"$f":"IF(OR($D22=\"\",$D22=CONST_NA),FALSE,INDEX(Parameters_Constants!$K$101:$AF$118,MATCH($E22,CONST_LIST_Goods,0),MATCH(U$8,Parameters_Constants!$K$100:$AF$100,0))=FALSE)","v":false},{"$f":"IF(OR($D22=\"\",$D22=CONST_NA),FALSE,INDEX(Parameters_Constants!$K$101:$AF$118,MATCH($E22,CONST_LIST_Goods,0),MATCH(V$8,Parameters_Constants!$K$100:$AF$100,0))=FALSE)","v":false},{"$f":"IF(OR($D22=\"\",$D22=CONST_NA),FALSE,INDEX(Parameters_Constants!$K$101:$AF$118,MATCH($E22,CONST_LIST_Goods,0),MATCH(W$8,Parameters_Constants!$K$100:$AF$100,0))=FALSE)","v":false},{"$f":"IF(OR($D22=\"\",$D22=CONST_NA),FALSE,INDEX(Parameters_Constants!$K$101:$AF$118,MATCH($E22,CONST_LIST_Goods,0),MATCH(X$8,Parameters_Constants!$K$100:$AF$100,0))=FALSE)","v":false},{"$f":"IF(OR($D22=\"\",$D22=CONST_NA),FALSE,INDEX(Parameters_Constants!$K$101:$AF$118,MATCH($E22,CONST_LIST_Goods,0),MATCH(Y$8,Parameters_Constants!$K$100:$AF$100,0))=FALSE)","v":false},{"$f":"IF(OR($D22=\"\",$D22=CONST_NA),FALSE,INDEX(Parameters_Constants!$K$101:$AF$118,MATCH($E22,CONST_LIST_Goods,0),MATCH(Z$8,Parameters_Constants!$K$100:$AF$100,0))=FALSE)","v":false},{"$f":"IF(OR($D22=\"\",$D22=CONST_NA),FALSE,INDEX(Parameters_Constants!$K$101:$AF$118,MATCH($E22,CONST_LIST_Goods,0),MATCH(AA$8,Parameters_Constants!$K$100:$AF$100,0))=FALSE)","v":false},{"$f":"IF(OR($D22=\"\",$D22=CONST_NA),FALSE,INDEX(Parameters_Constants!$K$101:$AF$118,MATCH($E22,CONST_LIST_Goods,0),MATCH(AB$8,Parameters_Constants!$K$100:$AF$100,0))=FALSE)","v":false},{"$f":"IF(OR($D22=\"\",$D22=CONST_NA),FALSE,INDEX(Parameters_Constants!$K$101:$AF$118,MATCH($E22,CONST_LIST_Goods,0),MATCH(AC$8,Parameters_Constants!$K$100:$AF$100,0))=FALSE)","v":false},{"$f":"IF(OR($D22=\"\",$D22=CONST_NA),FALSE,INDEX(Parameters_Constants!$K$101:$AF$118,MATCH($E22,CONST_LIST_Goods,0),MATCH(AD$8,Parameters_Constants!$K$100:$AF$100,0))=FALSE)","v":false},{"$f":"IF(OR($D22=\"\",$D22=CONST_NA),FALSE,INDEX(Parameters_Constants!$K$101:$AF$118,MATCH($E22,CONST_LIST_Goods,0),MATCH(AE$8,Parameters_Constants!$K$100:$AF$100,0))=FALSE)","v":false},{"$f":"IF(OR($D22=\"\",$D22=CONST_NA),FALSE,INDEX(Parameters_Constants!$K$101:$AF$118,MATCH($E22,CONST_LIST_Goods,0),MATCH(AF$8,Parameters_Constants!$K$100:$AF$100,0))=FALSE)","v":false},{"$f":"IF(OR($D22=\"\",$D22=CONST_NA),FALSE,INDEX(Parameters_Constants!$K$101:$AF$118,MATCH($E22,CONST_LIST_Goods,0),MATCH(AG$8,Parameters_Constants!$K$100:$AF$100,0))=FALSE)","v":false},{"$f":"IF(OR($D22=\"\",$D22=CONST_NA),FALSE,INDEX(Parameters_Constants!$K$101:$AF$118,MATCH($E22,CONST_LIST_Goods,0),MATCH(AH$8,Parameters_Constants!$K$100:$AF$100,0))=FALSE)","v":false},{"$f":"IF(OR($D22=\"\",$D22=CONST_NA),FALSE,INDEX(Parameters_Constants!$K$101:$AF$118,MATCH($E22,CONST_LIST_Goods,0),MATCH(AI$8,Parameters_Constants!$K$100:$AF$100,0))=FALSE)","v":false},{"$f":"IF(OR($D22=\"\",$D22=CONST_NA),FALSE,INDEX(Parameters_Constants!$K$101:$AF$118,MATCH($E22,CONST_LIST_Goods,0),MATCH(AJ$8,Parameters_Constants!$K$100:$AF$100,0))=FALSE)","v":false},{"$f":"IF(OR($D22=\"\",$D22=CONST_NA),FALSE,INDEX(Parameters_Constants!$K$101:$AF$118,MATCH($E22,CONST_LIST_Goods,0),MATCH(AK$8,Parameters_Constants!$K$100:$AF$100,0))=FALSE)","v":false}]
["ausblenden",null,14,null,null,false,null,false,{"$nulls":7},{"$f":"IF(OR($D23=\"\",$D23=CONST_NA),FALSE,INDEX(Parameters_Constants!$K$101:$AF$118,MATCH($E23,CONST_LIST_Goods,0),MATCH(P$8,Parameters_Constants!$K$100:$AF$100,0))=FALSE)","v":false},{"$f":"IF(OR($D23=\"\",$D23=CONST_NA),FALSE,INDEX(Parameters_Constants!$K$101:$AF$118,MATCH($E23,CONST_LIST_Goods,0),MATCH(Q$8,Parameters_Constants!$K$100:$AF$100,0))=FALSE)","v":false},{"$f":"IF(OR($D23=\"\",$D23=CONST_NA),FALSE,INDEX(Parameters_Constants!$K$101:$AF$118,MATCH($E23,CONST_LIST_Goods,0),MATCH(R$8,Parameters_Constants!$K$100:$AF$100,0))=FALSE)","v":false},{"$f":"IF(OR($D23=\"\",$D23=CONST_NA),FALSE,INDEX(Parameters_Constants!$K$101:$AF$118,MATCH($E23,CONST_LIST_Goods,0),MATCH(S$8,Parameters_Constants!$K$100:$AF$100,0))=FALSE)","v":false},{"$f":"IF(OR($D23=\"\",$D23=CONST_NA),FALSE,INDEX(Parameters_Constants!$K$101:$AF$118,MATCH($E23,CONST_LIST_Goods,0),MATCH(T$8,Parameters_Constants!$K$100:$AF$100,0))=FALSE)","v":false},{"$f":"IF(OR($D23=\"\",$D23=CONST_NA),FALSE,INDEX(Parameters_Constants!$K$101:$AF$118,MATCH($E23,CONST_LIST_Goods,0),MATCH(U$8,Parameters_Constants!$K$100:$AF$100,0))=FALSE)","v":false},{"$f":"IF(OR($D23=\"\",$D23=CONST_NA),FALSE,INDEX(Parameters_Constants!$K$101:$AF$118,MATCH($E23,CONST_LIST_Goods,0),MATCH(V$8,Parameters_Constants!$K$100:$AF$100,0))=FALSE)","v":false},{"$f":"IF(OR($D23=\"\",$D23=CONST_NA),FALSE,INDEX(Parameters_Constants!$K$101:$AF$118,MATCH($E23,CONST_LIST_Goods,0),MATCH(W$8,Parameters_Constants!$K$100:$AF$100,0))=FALSE)","v":false},{"$f":"IF(OR($D23=\"\",$D23=CONST_NA),FALSE,INDEX(Parameters_Constants!$K$101:$AF$118,MATCH($E23,CONST_LIST_Goods,0),MATCH(X$8,Parameters_Constants!$K$100:$AF$100,0))=FALSE)","v":false},{"$f":"IF(OR($D23=\"\",$D23=CONST_NA),FALSE,INDEX(Parameters_Constants!$K$101:$AF$118,MATCH($E23,CONST_LIST_Goods,0),MATCH(Y$8,Parameters_Constants!$K$100:$AF$100,0))=FALSE)","v":false},{"$f":"IF(OR($D23=\"\",$D23=CONST_NA),FALSE,INDEX(Parameters_Constants!$K$101:$AF$118,MATCH($E23,CONST_LIST_Goods,0),MATCH(Z$8,Parameters_Constants!$K$100:$AF$100,0))=FALSE)","v":false},{"$f":"IF(OR($D23=\"\",$D23=CONST_NA),FALSE,INDEX(Parameters_Constants!$K$101:$AF$118,MATCH($E23,CONST_LIST_Goods,0),MATCH(AA$8,Parameters_Constants!$K$100:$AF$100,0))=FALSE)","v":false},{"$f":"IF(OR($D23=\"\",$D23=CONST_NA),FALSE,INDEX(Parameters_Constants!$K$101:$AF$118,MATCH($E23,CONST_LIST_Goods,0),MATCH(AB$8,Parameters_Constants!$K$100:$AF$100,0))=FALSE)","v":false},{"$f":"IF(OR($D23=\"\",$D23=CONST_NA),FALSE,INDEX(Parameters_Constants!$K$101:$AF$118,MATCH($E23,CONST_LIST_Goods,0),MATCH(AC$8,Parameters_Constants!$K$100:$AF$100,0))=FALSE)","v":false},{"$f":"IF(OR($D23=\"\",$D23=CONST_NA),FALSE,INDEX(Parameters_Constants!$K$101:$AF$118,MATCH($E23,CONST_LIST_Goods,0),MATCH(AD$8,Parameters_Constants!$K$100:$AF$100,0))=FALSE)","v":false},{"$f":"IF(OR($D23=\"\",$D23=CONST_NA),FALSE,INDEX(Parameters_Constants!$K$101:$AF$118,MATCH($E23,CONST_LIST_Goods,0),MATCH(AE$8,Parameters_Constants!$K$100:$AF$100,0))=FALSE)","v":false},{"$f":"IF(OR($D23=\"\",$D23=CONST_NA),FALSE,INDEX(Parameters_Constants!$K$101:$AF$118,MATCH($E23,CONST_LIST_Goods,0),MATCH(AF$8,Parameters_Constants!$K$100:$AF$100,0))=FALSE)","v":false},{"$f":"IF(OR($D23=\"\",$D23=CONST_NA),FALSE,INDEX(Parameters_Constants!$K$101:$AF$118,MATCH($E23,CONST_LIST_Goods,0),MATCH(AG$8,Parameters_Constants!$K$100:$AF$100,0))=FALSE)","v":false},{"$f":"IF(OR($D23=\"\",$D23=CONST_NA),FALSE,INDEX(Parameters_Constants!$K$101:$AF$118,MATCH($E23,CONST_LIST_Goods,0),MATCH(AH$8,Parameters_Constants!$K$100:$AF$100,0))=FALSE)","v":false},{"$f":"IF(OR($D23=\"\",$D23=CONST_NA),FALSE,INDEX(Parameters_Constants!$K$101:$AF$118,MATCH($E23,CONST_LIST_Goods,0),MATCH(AI$8,Parameters_Constants!$K$100:$AF$100,0))=FALSE)","v":false},{"$f":"IF(OR($D23=\"\",$D23=CONST_NA),FALSE,INDEX(Parameters_Constants!$K$101:$AF$118,MATCH($E23,CONST_LIST_Goods,0),MATCH(AJ$8,Parameters_Constants!$K$100:$AF$100,0))=FALSE)","v":false},{"$f":"IF(OR($D23=\"\",$D23=CONST_NA),FALSE,INDEX(Parameters_Constants!$K$101:$AF$118,MATCH($E23,CONST_LIST_Goods,0),MATCH(AK$8,Parameters_Constants!$K$100:$AF$100,0))=FALSE)","v":false}]
["ausblenden",null,15,null,null,false,null,false,{"$nulls":7},{"$f":"IF(OR($D24=\"\",$D24=CONST_NA),FALSE,INDEX(Parameters_Constants!$K$101:$AF$118,MATCH($E24,CONST_LIST_Goods,0),MATCH(P$8,Parameters_Constants!$K$100:$AF$100,0))=FALSE)","v":false},{"$f":"IF(OR($D24=\"\",$D24=CONST_NA),FALSE,INDEX(Parameters_Constants!$K$101:$AF$118,MATCH($E24,CONST_LIST_Goods,0),MATCH(Q$8,Parameters_Constants!$K$100:$AF$100,0))=FALSE)","v":false},{"$f":"IF(OR($D24=\"\",$D24=CONST_NA),FALSE,INDEX(Parameters_Constants!$K$101:$AF$118,MATCH($E24,CONST_LIST_Goods,0),MATCH(R$8,Parameters_Constants!$K$100:$AF$100,0))=FALSE)","v":false},{"$f":"IF(OR($D24=\"\",$D24=CONST_NA),FALSE,INDEX(Parameters_Constants!$K$101:$AF$118,MATCH($E24,CONST_LIST_Goods,0),MATCH(S$8,Parameters_Constants!$K$100:$AF$100,0))=FALSE)","v":false},{"$f":"IF(OR($D24=\"\",$D24=CONST_NA),FALSE,INDEX(Parameters_Constants!$K$101:$AF$118,MATCH($E24,CONST_LIST_Goods,0),MATCH(T$8,Parameters_Constants!$K$100:$AF$100,0))=FALSE)","v":false},{"$f":"IF(OR($D24=\"\",$D24=CONST_NA),FALSE,INDEX(Parameters_Constants!$K$101:$AF$118,MATCH($E24,CONST_LIST_Goods,0),MATCH(U$8,Parameters_Constants!$K$100:$AF$100,0))=FALSE)","v":false},{"$f":"IF(OR($D24=\"\",$D24=CONST_NA),FALSE,INDEX(Parameters_Constants!$K$101:$AF$118,MATCH($E24,CONST_LIST_Goods,0),MATCH(V$8,Parameters_Constants!$K$100:$AF$100,0))=FALSE)","v":false},{"$f":"IF(OR($D24=\"\",$D24=CONST_NA),FALSE,INDEX(Parameters_Constants!$K$101:$AF$118,MATCH($E24,CONST_LIST_Goods,0),MATCH(W$8,Parameters_Constants!$K$100:$AF$100,0))=FALSE)","v":false},{"$f":"IF(OR($D24=\"\",$D24=CONST_NA),FALSE,INDEX(Parameters_Constants!$K$101:$AF$118,MATCH($E24,CONST_LIST_Goods,0),MATCH(X$8,Parameters_Constants!$K$100:$AF$100,0))=FALSE)","v":false},{"$f":"IF(OR($D24=\"\",$D24=CONST_NA),FALSE,INDEX(Parameters_Constants!$K$101:$AF$118,MATCH($E24,CONST_LIST_Goods,0),MATCH(Y$8,Parameters_Constants!$K$100:$AF$100,0))=FALSE)","v":false},{"$f":"IF(OR($D24=\"\",$D24=CONST_NA),FALSE,INDEX(Parameters_Constants!$K$101:$AF$118,MATCH($E24,CONST_LIST_Goods,0),MATCH(Z$8,Parameters_Constants!$K$100:$AF$100,0))=FALSE)","v":false},{"$f":"IF(OR($D24=\"\",$D24=CONST_NA),FALSE,INDEX(Parameters_Constants!$K$101:$AF$118,MATCH($E24,CONST_LIST_Goods,0),MATCH(AA$8,Parameters_Constants!$K$100:$AF$100,0))=FALSE)","v":false},{"$f":"IF(OR($D24=\"\",$D24=CONST_NA),FALSE,INDEX(Parameters_Constants!$K$101:$AF$118,MATCH($E24,CONST_LIST_Goods,0),MATCH(AB$8,Parameters_Constants!$K$100:$AF$100,0))=FALSE)","v":false},{"$f":"IF(OR($D24=\"\",$D24=CONST_NA),FALSE,INDEX(Parameters_Constants!$K$101:$AF$118,MATCH($E24,CONST_LIST_Goods,0),MATCH(AC$8,Parameters_Constants!$K$100:$AF$100,0))=FALSE)","v":false},{"$f":"IF(OR($D24=\"\",$D24=CONST_NA),FALSE,INDEX(Parameters_Constants!$K$101:$AF$118,MATCH($E24,CONST_LIST_Goods,0),MATCH(AD$8,Parameters_Constants!$K$100:$AF$100,0))=FALSE)","v":false},{"$f":"IF(OR($D24=\"\",$D24=CONST_NA),FALSE,INDEX(Parameters_Constants!$K$101:$AF$118,MATCH($E24,CONST_LIST_Goods,0),MATCH(AE$8,Parameters_Constants!$K$100:$AF$100,0))=FALSE)","v":false},{"$f":"IF(OR($D24=\"\",$D24=CONST_NA),FALSE,INDEX(Parameters_Constants!$K$101:$AF$118,MATCH($E24,CONST_LIST_Goods,0),MATCH(AF$8,Parameters_Constants!$K$100:$AF$100,0))=FALSE)","v":false},{"$f":"IF(OR($D24=\"\",$D24=CONST_NA),FALSE,INDEX(Parameters_Constants!$K$101:$AF$118,MATCH($E24,CONST_LIST_Goods,0),MATCH(AG$8,Parameters_Constants!$K$100:$AF$100,0))=FALSE)","v":false},{"$f":"IF(OR($D24=\"\",$D24=CONST_NA),FALSE,INDEX(Parameters_Constants!$K$101:$AF$118,MATCH($E24,CONST_LIST_Goods,0),MATCH(AH$8,Parameters_Constants!$K$100:$AF$100,0))=FALSE)","v":false},{"$f":"IF(OR($D24=\"\",$D24=CONST_NA),FALSE,INDEX(Parameters_Constants!$K$101:$AF$118,MATCH($E24,CONST_LIST_Goods,0),MATCH(AI$8,Parameters_Constants!$K$100:$AF$100,0))=FALSE)","v":false},{"$f":"IF(OR($D24=\"\",$D24=CONST_NA),FALSE,INDEX(Parameters_Constants!$K$101:$AF$118,MATCH($E24,CONST_LIST_Goods,0),MATCH(AJ$8,Parameters_Constants!$K$100:$AF$100,0))=FALSE)","v":false},{"$f":"IF(OR($D24=\"\",$D24=CONST_NA),FALSE,INDEX(Parameters_Constants!$K$101:$AF$118,MATCH($E24,CONST_LIST_Goods,0),MATCH(AK$8,Parameters_Constants!$K$100:$AF$100,0))=FALSE)","v":false}]
["ausblenden",null,16,null,null,false,null,false,{"$nulls":7},{"$f":"IF(OR($D25=\"\",$D25=CONST_NA),FALSE,INDEX(Parameters_Constants!$K$101:$AF$118,MATCH($E25,CONST_LIST_Goods,0),MATCH(P$8,Parameters_Constants!$K$100:$AF$100,0))=FALSE)","v":false},{"$f":"IF(OR($D25=\"\",$D25=CONST_NA),FALSE,INDEX(Parameters_Constants!$K$101:$AF$118,MATCH($E25,CONST_LIST_Goods,0),MATCH(Q$8,Parameters_Constants!$K$100:$AF$100,0))=FALSE)","v":false},{"$f":"IF(OR($D25=\"\",$D25=CONST_NA),FALSE,INDEX(Parameters_Constants!$K$101:$AF$118,MATCH($E25,CONST_LIST_Goods,0),MATCH(R$8,Parameters_Constants!$K$100:$AF$100,0))=FALSE)","v":false},{"$f":"IF(OR($D25=\"\",$D25=CONST_NA),FALSE,INDEX(Parameters_Constants!$K$101:$AF$118,MATCH($E25,CONST_LIST_Goods,0),MATCH(S$8,Parameters_Constants!$K$100:$AF$100,0))=FALSE)","v":false},{"$f":"IF(OR($D25=\"\",$D25=CONST_NA),FALSE,INDEX(Parameters_Constants!$K$101:$AF$118,MATCH($E25,CONST_LIST_Goods,0),MATCH(T$8,Parameters_Constants!$K$100:$AF$100,0))=FALSE)","v":false},{"$f":"IF(OR($D25=\"\",$D25=CONST_NA),FALSE,INDEX(Parameters_Constants!$K$101:$AF$118,MATCH($E25,CONST_LIST_Goods,0),MATCH(U$8,Parameters_Constants!$K$100:$AF$100,0))=FALSE)","v":false},{"$f":"IF(OR($D25=\"\",$D25=CONST_NA),FALSE,INDEX(Parameters_Constants!$K$101:$AF$118,MATCH($E25,CONST_LIST_Goods,0),MATCH(V$8,Parameters_Constants!$K$100:$AF$100,0))=FALSE)","v":false},{"$f":"IF(OR($D25=\"\",$D25=CONST_NA),FALSE,INDEX(Parameters_Constants!$K$101:$AF$118,MATCH($E25,CONST_LIST_Goods,0),MATCH(W$8,Parameters_Constants!$K$100:$AF$100,0))=FALSE)","v":false},{"$f":"IF(OR($D25=\"\",$D25=CONST_NA),FALSE,INDEX(Parameters_Constants!$K$101:$AF$118,MATCH($E25,CONST_LIST_Goods,0),MATCH(X$8,Parameters_Constants!$K$100:$AF$100,0))=FALSE)","v":false},{"$f":"IF(OR($D25=\"\",$D25=CONST_NA),FALSE,INDEX(Parameters_Constants!$K$101:$AF$118,MATCH($E25,CONST_LIST_Goods,0),MATCH(Y$8,Parameters_Constants!$K$100:$AF$100,0))=FALSE)","v":false},{"$f":"IF(OR($D25=\"\",$D25=CONST_NA),FALSE,INDEX(Parameters_Constants!$K$101:$AF$118,MATCH($E25,CONST_LIST_Goods,0),MATCH(Z$8,Parameters_Constants!$K$100:$AF$100,0))=FALSE)","v":false},{"$f":"IF(OR($D25=\"\",$D25=CONST_NA),FALSE,INDEX(Parameters_Constants!$K$101:$AF$118,MATCH($E25,CONST_LIST_Goods,0),MATCH(AA$8,Parameters_Constants!$K$100:$AF$100,0))=FALSE)","v":false},{"$f":"IF(OR($D25=\"\",$D25=CONST_NA),FALSE,INDEX(Parameters_Constants!$K$101:$AF$118,MATCH($E25,CONST_LIST_Goods,0),MATCH(AB$8,Parameters_Constants!$K$100:$AF$100,0))=FALSE)","v":false},{"$f":"IF(OR($D25=\"\",$D25=CONST_NA),FALSE,INDEX(Parameters_Constants!$K$101:$AF$118,MATCH($E25,CONST_LIST_Goods,0),MATCH(AC$8,Parameters_Constants!$K$100:$AF$100,0))=FALSE)","v":false},{"$f":"IF(OR($D25=\"\",$D25=CONST_NA),FALSE,INDEX(Parameters_Constants!$K$101:$AF$118,MATCH($E25,CONST_LIST_Goods,0),MATCH(AD$8,Parameters_Constants!$K$100:$AF$100,0))=FALSE)","v":false},{"$f":"IF(OR($D25=\"\",$D25=CONST_NA),FALSE,INDEX(Parameters_Constants!$K$101:$AF$118,MATCH($E25,CONST_LIST_Goods,0),MATCH(AE$8,Parameters_Constants!$K$100:$AF$100,0))=FALSE)","v":false},{"$f":"IF(OR($D25=\"\",$D25=CONST_NA),FALSE,INDEX(Parameters_Constants!$K$101:$AF$118,MATCH($E25,CONST_LIST_Goods,0),MATCH(AF$8,Parameters_Constants!$K$100:$AF$100,0))=FALSE)","v":false},{"$f":"IF(OR($D25=\"\",$D25=CONST_NA),FALSE,INDEX(Parameters_Constants!$K$101:$AF$118,MATCH($E25,CONST_LIST_Goods,0),MATCH(AG$8,Parameters_Constants!$K$100:$AF$100,0))=FALSE)","v":false},{"$f":"IF(OR($D25=\"\",$D25=CONST_NA),FALSE,INDEX(Parameters_Constants!$K$101:$AF$118,MATCH($E25,CONST_LIST_Goods,0),MATCH(AH$8,Parameters_Constants!$K$100:$AF$100,0))=FALSE)","v":false},{"$f":"IF(OR($D25=\"\",$D25=CONST_NA),FALSE,INDEX(Parameters_Constants!$K$101:$AF$118,MATCH($E25,CONST_LIST_Goods,0),MATCH(AI$8,Parameters_Constants!$K$100:$AF$100,0))=FALSE)","v":false},{"$f":"IF(OR($D25=\"\",$D25=CONST_NA),FALSE,INDEX(Parameters_Constants!$K$101:$AF$118,MATCH($E25,CONST_LIST_Goods,0),MATCH(AJ$8,Parameters_Constants!$K$100:$AF$100,0))=FALSE)","v":false},{"$f":"IF(OR($D25=\"\",$D25=CONST_NA),FALSE,INDEX(Parameters_Constants!$K$101:$AF$118,MATCH($E25,CONST_LIST_Goods,0),MATCH(AK$8,Parameters_Constants!$K$100:$AF$100,0))=FALSE)","v":false}]
["ausblenden",null,17,null,null,false,null,false,{"$nulls":7},{"$f":"IF(OR($D26=\"\",$D26=CONST_NA),FALSE,INDEX(Parameters_Constants!$K$101:$AF$118,MATCH($E26,CONST_LIST_Goods,0),MATCH(P$8,Parameters_Constants!$K$100:$AF$100,0))=FALSE)","v":false},{"$f":"IF(OR($D26=\"\",$D26=CONST_NA),FALSE,INDEX(Parameters_Constants!$K$101:$AF$118,MATCH($E26,CONST_LIST_Goods,0),MATCH(Q$8,Parameters_Constants!$K$100:$AF$100,0))=FALSE)","v":false},{"$f":"IF(OR($D26=\"\",$D26=CONST_NA),FALSE,INDEX(Parameters_Constants!$K$101:$AF$118,MATCH($E26,CONST_LIST_Goods,0),MATCH(R$8,Parameters_Constants!$K$100:$AF$100,0))=FALSE)","v":false},{"$f":"IF(OR($D26=\"\",$D26=CONST_NA),FALSE,INDEX(Parameters_Constants!$K$101:$AF$118,MATCH($E26,CONST_LIST_Goods,0),MATCH(S$8,Parameters_Constants!$K$100:$AF$100,0))=FALSE)","v":false},{"$f":"IF(OR($D26=\"\",$D26=CONST_NA),FALSE,INDEX(Parameters_Constants!$K$101:$AF$118,MATCH($E26,CONST_LIST_Goods,0),MATCH(T$8,Parameters_Constants!$K$100:$AF$100,0))=FALSE)","v":false},{"$f":"IF(OR($D26=\"\",$D26=CONST_NA),FALSE,INDEX(Parameters_Constants!$K$101:$AF$118,MATCH($E26,CONST_LIST_Goods,0),MATCH(U$8,Parameters_Constants!$K$100:$AF$100,0))=FALSE)","v":false},{"$f":"IF(OR($D26=\"\",$D26=CONST_NA),FALSE,INDEX(Parameters_Constants!$K$101:$AF$118,MATCH($E26,CONST_LIST_Goods,0),MATCH(V$8,Parameters_Constants!$K$100:$AF$100,0))=FALSE)","v":false},{"$f":"IF(OR($D26=\"\",$D26=CONST_NA),FALSE,INDEX(Parameters_Constants!$K$101:$AF$118,MATCH($E26,CONST_LIST_Goods,0),MATCH(W$8,Parameters_Constants!$K$100:$AF$100,0))=FALSE)","v":false},{"$f":"IF(OR($D26=\"\",$D26=CONST_NA),FALSE,INDEX(Parameters_Constants!$K$101:$AF$118,MATCH($E26,CONST_LIST_Goods,0),MATCH(X$8,Parameters_Constants!$K$100:$AF$100,0))=FALSE)","v":false},{"$f":"IF(OR($D26=\"\",$D26=CONST_NA),FALSE,INDEX(Parameters_Constants!$K$101:$AF$118,MATCH($E26,CONST_LIST_Goods,0),MATCH(Y$8,Parameters_Constants!$K$100:$AF$100,0))=FALSE)","v":false},{"$f":"IF(OR($D26=\"\",$D26=CONST_NA),FALSE,INDEX(Parameters_Constants!$K$101:$AF$118,MATCH($E26,CONST_LIST_Goods,0),MATCH(Z$8,Parameters_Constants!$K$100:$AF$100,0))=FALSE)","v":false},{"$f":"IF(OR($D26=\"\",$D26=CONST_NA),FALSE,INDEX(Parameters_Constants!$K$101:$AF$118,MATCH($E26,CONST_LIST_Goods,0),MATCH(AA$8,Parameters_Constants!$K$100:$AF$100,0))=FALSE)","v":false},{"$f":"IF(OR($D26=\"\",$D26=CONST_NA),FALSE,INDEX(Parameters_Constants!$K$101:$AF$118,MATCH($E26,CONST_LIST_Goods,0),MATCH(AB$8,Parameters_Constants!$K$100:$AF$100,0))=FALSE)","v":false},{"$f":"IF(OR($D26=\"\",$D26=CONST_NA),FALSE,INDEX(Parameters_Constants!$K$101:$AF$118,MATCH($E26,CONST_LIST_Goods,0),MATCH(AC$8,Parameters_Constants!$K$100:$AF$100,0))=FALSE)","v":false},{"$f":"IF(OR($D26=\"\",$D26=CONST_NA),FALSE,INDEX(Parameters_Constants!$K$101:$AF$118,MATCH($E26,CONST_LIST_Goods,0),MATCH(AD$8,Parameters_Constants!$K$100:$AF$100,0))=FALSE)","v":false},{"$f":"IF(OR($D26=\"\",$D26=CONST_NA),FALSE,INDEX(Parameters_Constants!$K$101:$AF$118,MATCH($E26,CONST_LIST_Goods,0),MATCH(AE$8,Parameters_Constants!$K$100:$AF$100,0))=FALSE)","v":false},{"$f":"IF(OR($D26=\"\",$D26=CONST_NA),FALSE,INDEX(Parameters_Constants!$K$101:$AF$118,MATCH($E26,CONST_LIST_Goods,0),MATCH(AF$8,Parameters_Constants!$K$100:$AF$100,0))=FALSE)","v":false},{"$f":"IF(OR($D26=\"\",$D26=CONST_NA),FALSE,INDEX(Parameters_Constants!$K$101:$AF$118,MATCH($E26,CONST_LIST_Goods,0),MATCH(AG$8,Parameters_Constants!$K$100:$AF$100,0))=FALSE)","v":false},{"$f":"IF(OR($D26=\"\",$D26=CONST_NA),FALSE,INDEX(Parameters_Constants!$K$101:$AF$118,MATCH($E26,CONST_LIST_Goods,0),MATCH(AH$8,Parameters_Constants!$K$100:$AF$100,0))=FALSE)","v":false},{"$f":"IF(OR($D26=\"\",$D26=CONST_NA),FALSE,INDEX(Parameters_Constants!$K$101:$AF$118,MATCH($E26,CONST_LIST_Goods,0),MATCH(AI$8,Parameters_Constants!$K$100:$AF$100,0))=FALSE)","v":false},{"$f":"IF(OR($D26=\"\",$D26=CONST_NA),FALSE,INDEX(Parameters_Constants!$K$101:$AF$118,MATCH($E26,CONST_LIST_Goods,0),MATCH(AJ$8,Parameters_Constants!$K$100:$AF$100,0))=FALSE)","v":false},{"$f":"IF(OR($D26=\"\",$D26=CONST_NA),FALSE,INDEX(Parameters_Constants!$K$101:$AF$118,MATCH($E26,CONST_LIST_Goods,0),MATCH(AK$8,Parameters_Constants!$K$100:$AF$100,0))=FALSE)","v":false}]
["ausblenden",null,18,null,null,false,null,false,{"$nulls":7},{"$f":"IF(OR($D27=\"\",$D27=CONST_NA),FALSE,INDEX(Parameters_Constants!$K$101:$AF$118,MATCH($E27,CONST_LIST_Goods,0),MATCH(P$8,Parameters_Constants!$K$100:$AF$100,0))=FALSE)","v":false},{"$f":"IF(OR($D27=\"\",$D27=CONST_NA),FALSE,INDEX(Parameters_Constants!$K$101:$AF$118,MATCH($E27,CONST_LIST_Goods,0),MATCH(Q$8,Parameters_Constants!$K$100:$AF$100,0))=FALSE)","v":false},{"$f":"IF(OR($D27=\"\",$D27=CONST_NA),FALSE,INDEX(Parameters_Constants!$K$101:$AF$118,MATCH($E27,CONST_LIST_Goods,0),MATCH(R$8,Parameters_Constants!$K$100:$AF$100,0))=FALSE)","v":false},{"$f":"IF(OR($D27=\"\",$D27=CONST_NA),FALSE,INDEX(Parameters_Constants!$K$101:$AF$118,MATCH($E27,CONST_LIST_Goods,0),MATCH(S$8,Parameters_Constants!$K$100:$AF$100,0))=FALSE)","v":false},{"$f":"IF(OR($D27=\"\",$D27=CONST_NA),FALSE,INDEX(Parameters_Constants!$K$101:$AF$118,MATCH($E27,CONST_LIST_Goods,0),MATCH(T$8,Parameters_Constants!$K$100:$AF$100,0))=FALSE)","v":false},{"$f":"IF(OR($D27=\"\",$D27=CONST_NA),FALSE,INDEX(Parameters_Constants!$K$101:$AF$118,MATCH($E27,CONST_LIST_Goods,0),MATCH(U$8,Parameters_Constants!$K$100:$AF$100,0))=FALSE)","v":false},{"$f":"IF(OR($D27=\"\",$D27=CONST_NA),FALSE,INDEX(Parameters_Constants!$K$101:$AF$118,MATCH($E27,CONST_LIST_Goods,0),MATCH(V$8,Parameters_Constants!$K$100:$AF$100,0))=FALSE)","v":false},{"$f":"IF(OR($D27=\"\",$D27=CONST_NA),FALSE,INDEX(Parameters_Constants!$K$101:$AF$118,MATCH($E27,CONST_LIST_Goods,0),MATCH(W$8,Parameters_Constants!$K$100:$AF$100,0))=FALSE)","v":false},{"$f":"IF(OR($D27=\"\",$D27=CONST_NA),FALSE,INDEX(Parameters_Constants!$K$101:$AF$118,MATCH($E27,CONST_LIST_Goods,0),MATCH(X$8,Parameters_Constants!$K$100:$AF$100,0))=FALSE)","v":false},{"$f":"IF(OR($D27=\"\",$D27=CONST_NA),FALSE,INDEX(Parameters_Constants!$K$101:$AF$118,MATCH($E27,CONST_LIST_Goods,0),MATCH(Y$8,Parameters_Constants!$K$100:$AF$100,0))=FALSE)","v":false},{"$f":"IF(OR($D27=\"\",$D27=CONST_NA),FALSE,INDEX(Parameters_Constants!$K$101:$AF$118,MATCH($E27,CONST_LIST_Goods,0),MATCH(Z$8,Parameters_Constants!$K$100:$AF$100,0))=FALSE)","v":false},{"$f":"IF(OR($D27=\"\",$D27=CONST_NA),FALSE,INDEX(Parameters_Constants!$K$101:$AF$118,MATCH($E27,CONST_LIST_Goods,0),MATCH(AA$8,Parameters_Constants!$K$100:$AF$100,0))=FALSE)","v":false},{"$f":"IF(OR($D27=\"\",$D27=CONST_NA),FALSE,INDEX(Parameters_Constants!$K$101:$AF$118,MATCH($E27,CONST_LIST_Goods,0),MATCH(AB$8,Parameters_Constants!$K$100:$AF$100,0))=FALSE)","v":false},{"$f":"IF(OR($D27=\"\",$D27=CONST_NA),FALSE,INDEX(Parameters_Constants!$K$101:$AF$118,MATCH($E27,CONST_LIST_Goods,0),MATCH(AC$8,Parameters_Constants!$K$100:$AF$100,0))=FALSE)","v":false},{"$f":"IF(OR($D27=\"\",$D27=CONST_NA),FALSE,INDEX(Parameters_Constants!$K$101:$AF$118,MATCH($E27,CONST_LIST_Goods,0),MATCH(AD$8,Parameters_Constants!$K$100:$AF$100,0))=FALSE)","v":false},{"$f":"IF(OR($D27=\"\",$D27=CONST_NA),FALSE,INDEX(Parameters_Constants!$K$101:$AF$118,MATCH($E27,CONST_LIST_Goods,0),MATCH(AE$8,Parameters_Constants!$K$100:$AF$100,0))=FALSE)","v":false},{"$f":"IF(OR($D27=\"\",$D27=CONST_NA),FALSE,INDEX(Parameters_Constants!$K$101:$AF$118,MATCH($E27,CONST_LIST_Goods,0),MATCH(AF$8,Parameters_Constants!$K$100:$AF$100,0))=FALSE)","v":false},{"$f":"IF(OR($D27=\"\",$D27=CONST_NA),FALSE,INDEX(Parameters_Constants!$K$101:$AF$118,MATCH($E27,CONST_LIST_Goods,0),MATCH(AG$8,Parameters_Constants!$K$100:$AF$100,0))=FALSE)","v":false},{"$f":"IF(OR($D27=\"\",$D27=CONST_NA),FALSE,INDEX(Parameters_Constants!$K$101:$AF$118,MATCH($E27,CONST_LIST_Goods,0),MATCH(AH$8,Parameters_Constants!$K$100:$AF$100,0))=FALSE)","v":false},{"$f":"IF(OR($D27=\"\",$D27=CONST_NA),FALSE,INDEX(Parameters_Constants!$K$101:$AF$118,MATCH($E27,CONST_LIST_Goods,0),MATCH(AI$8,Parameters_Constants!$K$100:$AF$100,0))=FALSE)","v":false},{"$f":"IF(OR($D27=\"\",$D27=CONST_NA),FALSE,INDEX(Parameters_Constants!$K$101:$AF$118,MATCH($E27,CONST_LIST_Goods,0),MATCH(AJ$8,Parameters_Constants!$K$100:$AF$100,0))=FALSE)","v":false},{"$f":"IF(OR($D27=\"\",$D27=CONST_NA),FALSE,INDEX(Parameters_Constants!$K$101:$AF$118,MATCH($E27,CONST_LIST_Goods,0),MATCH(AK$8,Parameters_Constants!$K$100:$AF$100,0))=FALSE)","v":false}]
["ausblenden",null,19,null,null,false,null,false,{"$nulls":7},{"$f":"IF(OR($D28=\"\",$D28=CONST_NA),FALSE,INDEX(Parameters_Constants!$K$101:$AF$118,MATCH($E28,CONST_LIST_Goods,0),MATCH(P$8,Parameters_Constants!$K$100:$AF$100,0))=FALSE)","v":false},{"$f":"IF(OR($D28=\"\",$D28=CONST_NA),FALSE,INDEX(Parameters_Constants!$K$101:$AF$118,MATCH($E28,CONST_LIST_Goods,0),MATCH(Q$8,Parameters_Constants!$K$100:$AF$100,0))=FALSE)","v":false},{"$f":"IF(OR($D28=\"\",$D28=CONST_NA),FALSE,INDEX(Parameters_Constants!$K$101:$AF$118,MATCH($E28,CONST_LIST_Goods,0),MATCH(R$8,Parameters_Constants!$K$100:$AF$100,0))=FALSE)","v":false},{"$f":"IF(OR($D28=\"\",$D28=CONST_NA),FALSE,INDEX(Parameters_Constants!$K$101:$AF$118,MATCH($E28,CONST_LIST_Goods,0),MATCH(S$8,Parameters_Constants!$K$100:$AF$100,0))=FALSE)","v":false},{"$f":"IF(OR($D28=\"\",$D28=CONST_NA),FALSE,INDEX(Parameters_Constants!$K$101:$AF$118,MATCH($E28,CONST_LIST_Goods,0),MATCH(T$8,Parameters_Constants!$K$100:$AF$100,0))=FALSE)","v":false},{"$f":"IF(OR($D28=\"\",$D28=CONST_NA),FALSE,INDEX(Parameters_Constants!$K$101:$AF$118,MATCH($E28,CONST_LIST_Goods,0),MATCH(U$8,Parameters_Constants!$K$100:$AF$100,0))=FALSE)","v":false},{"$f":"IF(OR($D28=\"\",$D28=CONST_NA),FALSE,INDEX(Parameters_Constants!$K$101:$AF$118,MATCH($E28,CONST_LIST_Goods,0),MATCH(V$8,Parameters_Constants!$K$100:$AF$100,0))=FALSE)","v":false},{"$f":"IF(OR($D28=\"\",$D28=CONST_NA),FALSE,INDEX(Parameters_Constants!$K$101:$AF$118,MATCH($E28,CONST_LIST_Goods,0),MATCH(W$8,Parameters_Constants!$K$100:$AF$100,0))=FALSE)","v":false},{"$f":"IF(OR($D28=\"\",$D28=CONST_NA),FALSE,INDEX(Parameters_Constants!$K$101:$AF$118,MATCH($E28,CONST_LIST_Goods,0),MATCH(X$8,Parameters_Constants!$K$100:$AF$100,0))=FALSE)","v":false},{"$f":"IF(OR($D28=\"\",$D28=CONST_NA),FALSE,INDEX(Parameters_Constants!$K$101:$AF$118,MATCH($E28,CONST_LIST_Goods,0),MATCH(Y$8,Parameters_Constants!$K$100:$AF$100,0))=FALSE)","v":false},{"$f":"IF(OR($D28=\"\",$D28=CONST_NA),FALSE,INDEX(Parameters_Constants!$K$101:$AF$118,MATCH($E28,CONST_LIST_Goods,0),MATCH(Z$8,Parameters_Constants!$K$100:$AF$100,0))=FALSE)","v":false},{"$f":"IF(OR($D28=\"\",$D28=CONST_NA),FALSE,INDEX(Parameters_Constants!$K$101:$AF$118,MATCH($E28,CONST_LIST_Goods,0),MATCH(AA$8,Parameters_Constants!$K$100:$AF$100,0))=FALSE)","v":false},{"$f":"IF(OR($D28=\"\",$D28=CONST_NA),FALSE,INDEX(Parameters_Constants!$K$101:$AF$118,MATCH($E28,CONST_LIST_Goods,0),MATCH(AB$8,Parameters_Constants!$K$100:$AF$100,0))=FALSE)","v":false},{"$f":"IF(OR($D28=\"\",$D28=CONST_NA),FALSE,INDEX(Parameters_Constants!$K$101:$AF$118,MATCH($E28,CONST_LIST_Goods,0),MATCH(AC$8,Parameters_Constants!$K$100:$AF$100,0))=FALSE)","v":false},{"$f":"IF(OR($D28=\"\",$D28=CONST_NA),FALSE,INDEX(Parameters_Constants!$K$101:$AF$118,MATCH($E28,CONST_LIST_Goods,0),MATCH(AD$8,Parameters_Constants!$K$100:$AF$100,0))=FALSE)","v":false},{"$f":"IF(OR($D28=\"\",$D28=CONST_NA),FALSE,INDEX(Parameters_Constants!$K$101:$AF$118,MATCH($E28,CONST_LIST_Goods,0),MATCH(AE$8,Parameters_Constants!$K$100:$AF$100,0))=FALSE)","v":false},{"$f":"IF(OR($D28=\"\",$D28=CONST_NA),FALSE,INDEX(Parameters_Constants!$K$101:$AF$118,MATCH($E28,CONST_LIST_Goods,0),MATCH(AF$8,Parameters_Constants!$K$100:$AF$100,0))=FALSE)","v":false},{"$f":"IF(OR($D28=\"\",$D28=CONST_NA),FALSE,INDEX(Parameters_Constants!$K$101:$AF$118,MATCH($E28,CONST_LIST_Goods,0),MATCH(AG$8,Parameters_Constants!$K$100:$AF$100,0))=FALSE)","v":false},{"$f":"IF(OR($D28=\"\",$D28=CONST_NA),FALSE,INDEX(Parameters_Constants!$K$101:$AF$118,MATCH($E28,CONST_LIST_Goods,0),MATCH(AH$8,Parameters_Constants!$K$100:$AF$100,0))=FALSE)","v":false},{"$f":"IF(OR($D28=\"\",$D28=CONST_NA),FALSE,INDEX(Parameters_Constants!$K$101:$AF$118,MATCH($E28,CONST_LIST_Goods,0),MATCH(AI$8,Parameters_Constants!$K$100:$AF$100,0))=FALSE)","v":false},{"$f":"IF(OR($D28=\"\",$D28=CONST_NA),FALSE,INDEX(Parameters_Constants!$K$101:$AF$118,MATCH($E28,CONST_LIST_Goods,0),MATCH(AJ$8,Parameters_Constants!$K$100:$AF$100,0))=FALSE)","v":false},{"$f":"IF(OR($D28=\"\",$D28=CONST_NA),FALSE,INDEX(Parameters_Constants!$K$101:$AF$118,MATCH($E28,CONST_LIST_Goods,0),MATCH(AK$8,Parameters_Constants!$K$100:$AF$100,0))=FALSE)","v":false}]
["ausblenden",null,20,null,null,false,null,false,{"$nulls":7},{"$f":"IF(OR($D29=\"\",$D29=CONST_NA),FALSE,INDEX(Parameters_Constants!$K$101:$AF$118,MATCH($E29,CONST_LIST_Goods,0),MATCH(P$8,Parameters_Constants!$K$100:$AF$100,0))=FALSE)","v":false},{"$f":"IF(OR($D29=\"\",$D29=CONST_NA),FALSE,INDEX(Parameters_Constants!$K$101:$AF$118,MATCH($E29,CONST_LIST_Goods,0),MATCH(Q$8,Parameters_Constants!$K$100:$AF$100,0))=FALSE)","v":false},{"$f":"IF(OR($D29=\"\",$D29=CONST_NA),FALSE,INDEX(Parameters_Constants!$K$101:$AF$118,MATCH($E29,CONST_LIST_Goods,0),MATCH(R$8,Parameters_Constants!$K$100:$AF$100,0))=FALSE)","v":false},{"$f":"IF(OR($D29=\"\",$D29=CONST_NA),FALSE,INDEX(Parameters_Constants!$K$101:$AF$118,MATCH($E29,CONST_LIST_Goods,0),MATCH(S$8,Parameters_Constants!$K$100:$AF$100,0))=FALSE)","v":false},{"$f":"IF(OR($D29=\"\",$D29=CONST_NA),FALSE,INDEX(Parameters_Constants!$K$101:$AF$118,MATCH($E29,CONST_LIST_Goods,0),MATCH(T$8,Parameters_Constants!$K$100:$AF$100,0))=FALSE)","v":false},{"$f":"IF(OR($D29=\"\",$D29=CONST_NA),FALSE,INDEX(Parameters_Constants!$K$101:$AF$118,MATCH($E29,CONST_LIST_Goods,0),MATCH(U$8,Parameters_Constants!$K$100:$AF$100,0))=FALSE)","v":false},{"$f":"IF(OR($D29=\"\",$D29=CONST_NA),FALSE,INDEX(Parameters_Constants!$K$101:$AF$118,MATCH($E29,CONST_LIST_Goods,0),MATCH(V$8,Parameters_Constants!$K$100:$AF$100,0))=FALSE)","v":false},{"$f":"IF(OR($D29=\"\",$D29=CONST_NA),FALSE,INDEX(Parameters_Constants!$K$101:$AF$118,MATCH($E29,CONST_LIST_Goods,0),MATCH(W$8,Parameters_Constants!$K$100:$AF$100,0))=FALSE)","v":false},{"$f":"IF(OR($D29=\"\",$D29=CONST_NA),FALSE,INDEX(Parameters_Constants!$K$101:$AF$118,MATCH($E29,CONST_LIST_Goods,0),MATCH(X$8,Parameters_Constants!$K$100:$AF$100,0))=FALSE)","v":false},{"$f":"IF(OR($D29=\"\",$D29=CONST_NA),FALSE,INDEX(Parameters_Constants!$K$101:$AF$118,MATCH($E29,CONST_LIST_Goods,0),MATCH(Y$8,Parameters_Constants!$K$100:$AF$100,0))=FALSE)","v":false},{"$f":"IF(OR($D29=\"\",$D29=CONST_NA),FALSE,INDEX(Parameters_Constants!$K$101:$AF$118,MATCH($E29,CONST_LIST_Goods,0),MATCH(Z$8,Parameters_Constants!$K$100:$AF$100,0))=FALSE)","v":false},{"$f":"IF(OR($D29=\"\",$D29=CONST_NA),FALSE,INDEX(Parameters_Constants!$K$101:$AF$118,MATCH($E29,CONST_LIST_Goods,0),MATCH(AA$8,Parameters_Constants!$K$100:$AF$100,0))=FALSE)","v":false},{"$f":"IF(OR($D29=\"\",$D29=CONST_NA),FALSE,INDEX(Parameters_Constants!$K$101:$AF$118,MATCH($E29,CONST_LIST_Goods,0),MATCH(AB$8,Parameters_Constants!$K$100:$AF$100,0))=FALSE)","v":false},{"$f":"IF(OR($D29=\"\",$D29=CONST_NA),FALSE,INDEX(Parameters_Constants!$K$101:$AF$118,MATCH($E29,CONST_LIST_Goods,0),MATCH(AC$8,Parameters_Constants!$K$100:$AF$100,0))=FALSE)","v":false},{"$f":"IF(OR($D29=\"\",$D29=CONST_NA),FALSE,INDEX(Parameters_Constants!$K$101:$AF$118,MATCH($E29,CONST_LIST_Goods,0),MATCH(AD$8,Parameters_Constants!$K$100:$AF$100,0))=FALSE)","v":false},{"$f":"IF(OR($D29=\"\",$D29=CONST_NA),FALSE,INDEX(Parameters_Constants!$K$101:$AF$118,MATCH($E29,CONST_LIST_Goods,0),MATCH(AE$8,Parameters_Constants!$K$100:$AF$100,0))=FALSE)","v":false},{"$f":"IF(OR($D29=\"\",$D29=CONST_NA),FALSE,INDEX(Parameters_Constants!$K$101:$AF$118,MATCH($E29,CONST_LIST_Goods,0),MATCH(AF$8,Parameters_Constants!$K$100:$AF$100,0))=FALSE)","v":false},{"$f":"IF(OR($D29=\"\",$D29=CONST_NA),FALSE,INDEX(Parameters_Constants!$K$101:$AF$118,MATCH($E29,CONST_LIST_Goods,0),MATCH(AG$8,Parameters_Constants!$K$100:$AF$100,0))=FALSE)","v":false},{"$f":"IF(OR($D29=\"\",$D29=CONST_NA),FALSE,INDEX(Parameters_Constants!$K$101:$AF$118,MATCH($E29,CONST_LIST_Goods,0),MATCH(AH$8,Parameters_Constants!$K$100:$AF$100,0))=FALSE)","v":false},{"$f":"IF(OR($D29=\"\",$D29=CONST_NA),FALSE,INDEX(Parameters_Constants!$K$101:$AF$118,MATCH($E29,CONST_LIST_Goods,0),MATCH(AI$8,Parameters_Constants!$K$100:$AF$100,0))=FALSE)","v":false},{"$f":"IF(OR($D29=\"\",$D29=CONST_NA),FALSE,INDEX(Parameters_Constants!$K$101:$AF$118,MATCH($E29,CONST_LIST_Goods,0),MATCH(AJ$8,Parameters_Constants!$K$100:$AF$100,0))=FALSE)","v":false},{"$f":"IF(OR($D29=\"\",$D29=CONST_NA),FALSE,INDEX(Parameters_Constants!$K$101:$AF$118,MATCH($E29,CONST_LIST_Goods,0),MATCH(AK$8,Parameters_Constants!$K$100:$AF$100,0))=FALSE)","v":false}]
["ausblenden",null,21,null,null,false,null,false,{"$nulls":7},{"$f":"IF(OR($D30=\"\",$D30=CONST_NA),FALSE,INDEX(Parameters_Constants!$K$101:$AF$118,MATCH($E30,CONST_LIST_Goods,0),MATCH(P$8,Parameters_Constants!$K$100:$AF$100,0))=FALSE)","v":false},{"$f":"IF(OR($D30=\"\",$D30=CONST_NA),FALSE,INDEX(Parameters_Constants!$K$101:$AF$118,MATCH($E30,CONST_LIST_Goods,0),MATCH(Q$8,Parameters_Constants!$K$100:$AF$100,0))=FALSE)","v":false},{"$f":"IF(OR($D30=\"\",$D30=CONST_NA),FALSE,INDEX(Parameters_Constants!$K$101:$AF$118,MATCH($E30,CONST_LIST_Goods,0),MATCH(R$8,Parameters_Constants!$K$100:$AF$100,0))=FALSE)","v":false},{"$f":"IF(OR($D30=\"\",$D30=CONST_NA),FALSE,INDEX(Parameters_Constants!$K$101:$AF$118,MATCH($E30,CONST_LIST_Goods,0),MATCH(S$8,Parameters_Constants!$K$100:$AF$100,0))=FALSE)","v":false},{"$f":"IF(OR($D30=\"\",$D30=CONST_NA),FALSE,INDEX(Parameters_Constants!$K$101:$AF$118,MATCH($E30,CONST_LIST_Goods,0),MATCH(T$8,Parameters_Constants!$K$100:$AF$100,0))=FALSE)","v":false},{"$f":"IF(OR($D30=\"\",$D30=CONST_NA),FALSE,INDEX(Parameters_Constants!$K$101:$AF$118,MATCH($E30,CONST_LIST_Goods,0),MATCH(U$8,Parameters_Constants!$K$100:$AF$100,0))=FALSE)","v":false},{"$f":"IF(OR($D30=\"\",$D30=CONST_NA),FALSE,INDEX(Parameters_Constants!$K$101:$AF$118,MATCH($E30,CONST_LIST_Goods,0),MATCH(V$8,Parameters_Constants!$K$100:$AF$100,0))=FALSE)","v":false},{"$f":"IF(OR($D30=\"\",$D30=CONST_NA),FALSE,INDEX(Parameters_Constants!$K$101:$AF$118,MATCH($E30,CONST_LIST_Goods,0),MATCH(W$8,Parameters_Constants!$K$100:$AF$100,0))=FALSE)","v":false},{"$f":"IF(OR($D30=\"\",$D30=CONST_NA),FALSE,INDEX(Parameters_Constants!$K$101:$AF$118,MATCH($E30,CONST_LIST_Goods,0),MATCH(X$8,Parameters_Constants!$K$100:$AF$100,0))=FALSE)","v":false},{"$f":"IF(OR($D30=\"\",$D30=CONST_NA),FALSE,INDEX(Parameters_Constants!$K$101:$AF$118,MATCH($E30,CONST_LIST_Goods,0),MATCH(Y$8,Parameters_Constants!$K$100:$AF$100,0))=FALSE)","v":false},{"$f":"IF(OR($D30=\"\",$D30=CONST_NA),FALSE,INDEX(Parameters_Constants!$K$101:$AF$118,MATCH($E30,CONST_LIST_Goods,0),MATCH(Z$8,Parameters_Constants!$K$100:$AF$100,0))=FALSE)","v":false},{"$f":"IF(OR($D30=\"\",$D30=CONST_NA),FALSE,INDEX(Parameters_Constants!$K$101:$AF$118,MATCH($E30,CONST_LIST_Goods,0),MATCH(AA$8,Parameters_Constants!$K$100:$AF$100,0))=FALSE)","v":false},{"$f":"IF(OR($D30=\"\",$D30=CONST_NA),FALSE,INDEX(Parameters_Constants!$K$101:$AF$118,MATCH($E30,CONST_LIST_Goods,0),MATCH(AB$8,Parameters_Constants!$K$100:$AF$100,0))=FALSE)","v":false},{"$f":"IF(OR($D30=\"\",$D30=CONST_NA),FALSE,INDEX(Parameters_Constants!$K$101:$AF$118,MATCH($E30,CONST_LIST_Goods,0),MATCH(AC$8,Parameters_Constants!$K$100:$AF$100,0))=FALSE)","v":false},{"$f":"IF(OR($D30=\"\",$D30=CONST_NA),FALSE,INDEX(Parameters_Constants!$K$101:$AF$118,MATCH($E30,CONST_LIST_Goods,0),MATCH(AD$8,Parameters_Constants!$K$100:$AF$100,0))=FALSE)","v":false},{"$f":"IF(OR($D30=\"\",$D30=CONST_NA),FALSE,INDEX(Parameters_Constants!$K$101:$AF$118,MATCH($E30,CONST_LIST_Goods,0),MATCH(AE$8,Parameters_Constants!$K$100:$AF$100,0))=FALSE)","v":false},{"$f":"IF(OR($D30=\"\",$D30=CONST_NA),FALSE,INDEX(Parameters_Constants!$K$101:$AF$118,MATCH($E30,CONST_LIST_Goods,0),MATCH(AF$8,Parameters_Constants!$K$100:$AF$100,0))=FALSE)","v":false},{"$f":"IF(OR($D30=\"\",$D30=CONST_NA),FALSE,INDEX(Parameters_Constants!$K$101:$AF$118,MATCH($E30,CONST_LIST_Goods,0),MATCH(AG$8,Parameters_Constants!$K$100:$AF$100,0))=FALSE)","v":false},{"$f":"IF(OR($D30=\"\",$D30=CONST_NA),FALSE,INDEX(Parameters_Constants!$K$101:$AF$118,MATCH($E30,CONST_LIST_Goods,0),MATCH(AH$8,Parameters_Constants!$K$100:$AF$100,0))=FALSE)","v":false},{"$f":"IF(OR($D30=\"\",$D30=CONST_NA),FALSE,INDEX(Parameters_Constants!$K$101:$AF$118,MATCH($E30,CONST_LIST_Goods,0),MATCH(AI$8,Parameters_Constants!$K$100:$AF$100,0))=FALSE)","v":false},{"$f":"IF(OR($D30=\"\",$D30=CONST_NA),FALSE,INDEX(Parameters_Constants!$K$101:$AF$118,MATCH($E30,CONST_LIST_Goods,0),MATCH(AJ$8,Parameters_Constants!$K$100:$AF$100,0))=FALSE)","v":false},{"$f":"IF(OR($D30=\"\",$D30=CONST_NA),FALSE,INDEX(Parameters_Constants!$K$101:$AF$118,MATCH($E30,CONST_LIST_Goods,0),MATCH(AK$8,Parameters_Constants!$K$100:$AF$100,0))=FALSE)","v":false}]
["ausblenden",null,22,null,null,false,null,false,{"$nulls":7},{"$f":"IF(OR($D31=\"\",$D31=CONST_NA),FALSE,INDEX(Parameters_Constants!$K$101:$AF$118,MATCH($E31,CONST_LIST_Goods,0),MATCH(P$8,Parameters_Constants!$K$100:$AF$100,0))=FALSE)","v":false},{"$f":"IF(OR($D31=\"\",$D31=CONST_NA),FALSE,INDEX(Parameters_Constants!$K$101:$AF$118,MATCH($E31,CONST_LIST_Goods,0),MATCH(Q$8,Parameters_Constants!$K$100:$AF$100,0))=FALSE)","v":false},{"$f":"IF(OR($D31=\"\",$D31=CONST_NA),FALSE,INDEX(Parameters_Constants!$K$101:$AF$118,MATCH($E31,CONST_LIST_Goods,0),MATCH(R$8,Parameters_Constants!$K$100:$AF$100,0))=FALSE)","v":false},{"$f":"IF(OR($D31=\"\",$D31=CONST_NA),FALSE,INDEX(Parameters_Constants!$K$101:$AF$118,MATCH($E31,CONST_LIST_Goods,0),MATCH(S$8,Parameters_Constants!$K$100:$AF$100,0))=FALSE)","v":false},{"$f":"IF(OR($D31=\"\",$D31=CONST_NA),FALSE,INDEX(Parameters_Constants!$K$101:$AF$118,MATCH($E31,CONST_LIST_Goods,0),MATCH(T$8,Parameters_Constants!$K$100:$AF$100,0))=FALSE)","v":false},{"$f":"IF(OR($D31=\"\",$D31=CONST_NA),FALSE,INDEX(Parameters_Constants!$K$101:$AF$118,MATCH($E31,CONST_LIST_Goods,0),MATCH(U$8,Parameters_Constants!$K$100:$AF$100,0))=FALSE)","v":false},{"$f":"IF(OR($D31=\"\",$D31=CONST_NA),FALSE,INDEX(Parameters_Constants!$K$101:$AF$118,MATCH($E31,CONST_LIST_Goods,0),MATCH(V$8,Parameters_Constants!$K$100:$AF$100,0))=FALSE)","v":false},{"$f":"IF(OR($D31=\"\",$D31=CONST_NA),FALSE,INDEX(Parameters_Constants!$K$101:$AF$118,MATCH($E31,CONST_LIST_Goods,0),MATCH(W$8,Parameters_Constants!$K$100:$AF$100,0))=FALSE)","v":false},{"$f":"IF(OR($D31=\"\",$D31=CONST_NA),FALSE,INDEX(Parameters_Constants!$K$101:$AF$118,MATCH($E31,CONST_LIST_Goods,0),MATCH(X$8,Parameters_Constants!$K$100:$AF$100,0))=FALSE)","v":false},{"$f":"IF(OR($D31=\"\",$D31=CONST_NA),FALSE,INDEX(Parameters_Constants!$K$101:$AF$118,MATCH($E31,CONST_LIST_Goods,0),MATCH(Y$8,Parameters_Constants!$K$100:$AF$100,0))=FALSE)","v":false},{"$f":"IF(OR($D31=\"\",$D31=CONST_NA),FALSE,INDEX(Parameters_Constants!$K$101:$AF$118,MATCH($E31,CONST_LIST_Goods,0),MATCH(Z$8,Parameters_Constants!$K$100:$AF$100,0))=FALSE)","v":false},{"$f":"IF(OR($D31=\"\",$D31=CONST_NA),FALSE,INDEX(Parameters_Constants!$K$101:$AF$118,MATCH($E31,CONST_LIST_Goods,0),MATCH(AA$8,Parameters_Constants!$K$100:$AF$100,0))=FALSE)","v":false},{"$f":"IF(OR($D31=\"\",$D31=CONST_NA),FALSE,INDEX(Parameters_Constants!$K$101:$AF$118,MATCH($E31,CONST_LIST_Goods,0),MATCH(AB$8,Parameters_Constants!$K$100:$AF$100,0))=FALSE)","v":false},{"$f":"IF(OR($D31=\"\",$D31=CONST_NA),FALSE,INDEX(Parameters_Constants!$K$101:$AF$118,MATCH($E31,CONST_LIST_Goods,0),MATCH(AC$8,Parameters_Constants!$K$100:$AF$100,0))=FALSE)","v":false},{"$f":"IF(OR($D31=\"\",$D31=CONST_NA),FALSE,INDEX(Parameters_Constants!$K$101:$AF$118,MATCH($E31,CONST_LIST_Goods,0),MATCH(AD$8,Parameters_Constants!$K$100:$AF$100,0))=FALSE)","v":false},{"$f":"IF(OR($D31=\"\",$D31=CONST_NA),FALSE,INDEX(Parameters_Constants!$K$101:$AF$118,MATCH($E31,CONST_LIST_Goods,0),MATCH(AE$8,Parameters_Constants!$K$100:$AF$100,0))=FALSE)","v":false},{"$f":"IF(OR($D31=\"\",$D31=CONST_NA),FALSE,INDEX(Parameters_Constants!$K$101:$AF$118,MATCH($E31,CONST_LIST_Goods,0),MATCH(AF$8,Parameters_Constants!$K$100:$AF$100,0))=FALSE)","v":false},{"$f":"IF(OR($D31=\"\",$D31=CONST_NA),FALSE,INDEX(Parameters_Constants!$K$101:$AF$118,MATCH($E31,CONST_LIST_Goods,0),MATCH(AG$8,Parameters_Constants!$K$100:$AF$100,0))=FALSE)","v":false},{"$f":"IF(OR($D31=\"\",$D31=CONST_NA),FALSE,INDEX(Parameters_Constants!$K$101:$AF$118,MATCH($E31,CONST_LIST_Goods,0),MATCH(AH$8,Parameters_Constants!$K$100:$AF$100,0))=FALSE)","v":false},{"$f":"IF(OR($D31=\"\",$D31=CONST_NA),FALSE,INDEX(Parameters_Constants!$K$101:$AF$118,MATCH($E31,CONST_LIST_Goods,0),MATCH(AI$8,Parameters_Constants!$K$100:$AF$100,0))=FALSE)","v":false},{"$f":"IF(OR($D31=\"\",$D31=CONST_NA),FALSE,INDEX(Parameters_Constants!$K$101:$AF$118,MATCH($E31,CONST_LIST_Goods,0),MATCH(AJ$8,Parameters_Constants!$K$100:$AF$100,0))=FALSE)","v":false},{"$f":"IF(OR($D31=\"\",$D31=CONST_NA),FALSE,INDEX(Parameters_Constants!$K$101:$AF$118,MATCH($E31,CONST_LIST_Goods,0),MATCH(AK$8,Parameters_Constants!$K$100:$AF$100,0))=FALSE)","v":false}]
["ausblenden",null,23,null,null,false,null,false,{"$nulls":7},{"$f":"IF(OR($D32=\"\",$D32=CONST_NA),FALSE,INDEX(Parameters_Constants!$K$101:$AF$118,MATCH($E32,CONST_LIST_Goods,0),MATCH(P$8,Parameters_Constants!$K$100:$AF$100,0))=FALSE)","v":false},{"$f":"IF(OR($D32=\"\",$D32=CONST_NA),FALSE,INDEX(Parameters_Constants!$K$101:$AF$118,MATCH($E32,CONST_LIST_Goods,0),MATCH(Q$8,Parameters_Constants!$K$100:$AF$100,0))=FALSE)","v":false},{"$f":"IF(OR($D32=\"\",$D32=CONST_NA),FALSE,INDEX(Parameters_Constants!$K$101:$AF$118,MATCH($E32,CONST_LIST_Goods,0),MATCH(R$8,Parameters_Constants!$K$100:$AF$100,0))=FALSE)","v":false},{"$f":"IF(OR($D32=\"\",$D32=CONST_NA),FALSE,INDEX(Parameters_Constants!$K$101:$AF$118,MATCH($E32,CONST_LIST_Goods,0),MATCH(S$8,Parameters_Constants!$K$100:$AF$100,0))=FALSE)","v":false},{"$f":"IF(OR($D32=\"\",$D32=CONST_NA),FALSE,INDEX(Parameters_Constants!$K$101:$AF$118,MATCH($E32,CONST_LIST_Goods,0),MATCH(T$8,Parameters_Constants!$K$100:$AF$100,0))=FALSE)","v":false},{"$f":"IF(OR($D32=\"\",$D32=CONST_NA),FALSE,INDEX(Parameters_Constants!$K$101:$AF$118,MATCH($E32,CONST_LIST_Goods,0),MATCH(U$8,Parameters_Constants!$K$100:$AF$100,0))=FALSE)","v":false},{"$f":"IF(OR($D32=\"\",$D32=CONST_NA),FALSE,INDEX(Parameters_Constants!$K$101:$AF$118,MATCH($E32,CONST_LIST_Goods,0),MATCH(V$8,Parameters_Constants!$K$100:$AF$100,0))=FALSE)","v":false},{"$f":"IF(OR($D32=\"\",$D32=CONST_NA),FALSE,INDEX(Parameters_Constants!$K$101:$AF$118,MATCH($E32,CONST_LIST_Goods,0),MATCH(W$8,Parameters_Constants!$K$100:$AF$100,0))=FALSE)","v":false},{"$f":"IF(OR($D32=\"\",$D32=CONST_NA),FALSE,INDEX(Parameters_Constants!$K$101:$AF$118,MATCH($E32,CONST_LIST_Goods,0),MATCH(X$8,Parameters_Constants!$K$100:$AF$100,0))=FALSE)","v":false},{"$f":"IF(OR($D32=\"\",$D32=CONST_NA),FALSE,INDEX(Parameters_Constants!$K$101:$AF$118,MATCH($E32,CONST_LIST_Goods,0),MATCH(Y$8,Parameters_Constants!$K$100:$AF$100,0))=FALSE)","v":false},{"$f":"IF(OR($D32=\"\",$D32=CONST_NA),FALSE,INDEX(Parameters_Constants!$K$101:$AF$118,MATCH($E32,CONST_LIST_Goods,0),MATCH(Z$8,Parameters_Constants!$K$100:$AF$100,0))=FALSE)","v":false},{"$f":"IF(OR($D32=\"\",$D32=CONST_NA),FALSE,INDEX(Parameters_Constants!$K$101:$AF$118,MATCH($E32,CONST_LIST_Goods,0),MATCH(AA$8,Parameters_Constants!$K$100:$AF$100,0))=FALSE)","v":false},{"$f":"IF(OR($D32=\"\",$D32=CONST_NA),FALSE,INDEX(Parameters_Constants!$K$101:$AF$118,MATCH($E32,CONST_LIST_Goods,0),MATCH(AB$8,Parameters_Constants!$K$100:$AF$100,0))=FALSE)","v":false},{"$f":"IF(OR($D32=\"\",$D32=CONST_NA),FALSE,INDEX(Parameters_Constants!$K$101:$AF$118,MATCH($E32,CONST_LIST_Goods,0),MATCH(AC$8,Parameters_Constants!$K$100:$AF$100,0))=FALSE)","v":false},{"$f":"IF(OR($D32=\"\",$D32=CONST_NA),FALSE,INDEX(Parameters_Constants!$K$101:$AF$118,MATCH($E32,CONST_LIST_Goods,0),MATCH(AD$8,Parameters_Constants!$K$100:$AF$100,0))=FALSE)","v":false},{"$f":"IF(OR($D32=\"\",$D32=CONST_NA),FALSE,INDEX(Parameters_Constants!$K$101:$AF$118,MATCH($E32,CONST_LIST_Goods,0),MATCH(AE$8,Parameters_Constants!$K$100:$AF$100,0))=FALSE)","v":false},{"$f":"IF(OR($D32=\"\",$D32=CONST_NA),FALSE,INDEX(Parameters_Constants!$K$101:$AF$118,MATCH($E32,CONST_LIST_Goods,0),MATCH(AF$8,Parameters_Constants!$K$100:$AF$100,0))=FALSE)","v":false},{"$f":"IF(OR($D32=\"\",$D32=CONST_NA),FALSE,INDEX(Parameters_Constants!$K$101:$AF$118,MATCH($E32,CONST_LIST_Goods,0),MATCH(AG$8,Parameters_Constants!$K$100:$AF$100,0))=FALSE)","v":false},{"$f":"IF(OR($D32=\"\",$D32=CONST_NA),FALSE,INDEX(Parameters_Constants!$K$101:$AF$118,MATCH($E32,CONST_LIST_Goods,0),MATCH(AH$8,Parameters_Constants!$K$100:$AF$100,0))=FALSE)","v":false},{"$f":"IF(OR($D32=\"\",$D32=CONST_NA),FALSE,INDEX(Parameters_Constants!$K$101:$AF$118,MATCH($E32,CONST_LIST_Goods,0),MATCH(AI$8,Parameters_Constants!$K$100:$AF$100,0))=FALSE)","v":false},{"$f":"IF(OR($D32=\"\",$D32=CONST_NA),FALSE,INDEX(Parameters_Constants!$K$101:$AF$118,MATCH($E32,CONST_LIST_Goods,0),MATCH(AJ$8,Parameters_Constants!$K$100:$AF$100,0))=FALSE)","v":false},{"$f":"IF(OR($D32=\"\",$D32=CONST_NA),FALSE,INDEX(Parameters_Constants!$K$101:$AF$118,MATCH($E32,CONST_LIST_Goods,0),MATCH(AK$8,Parameters_Constants!$K$100:$AF$100,0))=FALSE)","v":false}]
["ausblenden",null,24,null,null,false,null,false,{"$nulls":7},{"$f":"IF(OR($D33=\"\",$D33=CONST_NA),FALSE,INDEX(Parameters_Constants!$K$101:$AF$118,MATCH($E33,CONST_LIST_Goods,0),MATCH(P$8,Parameters_Constants!$K$100:$AF$100,0))=FALSE)","v":false},{"$f":"IF(OR($D33=\"\",$D33=CONST_NA),FALSE,INDEX(Parameters_Constants!$K$101:$AF$118,MATCH($E33,CONST_LIST_Goods,0),MATCH(Q$8,Parameters_Constants!$K$100:$AF$100,0))=FALSE)","v":false},{"$f":"IF(OR($D33=\"\",$D33=CONST_NA),FALSE,INDEX(Parameters_Constants!$K$101:$AF$118,MATCH($E33,CONST_LIST_Goods,0),MATCH(R$8,Parameters_Constants!$K$100:$AF$100,0))=FALSE)","v":false},{"$f":"IF(OR($D33=\"\",$D33=CONST_NA),FALSE,INDEX(Parameters_Constants!$K$101:$AF$118,MATCH($E33,CONST_LIST_Goods,0),MATCH(S$8,Parameters_Constants!$K$100:$AF$100,0))=FALSE)","v":false},{"$f":"IF(OR($D33=\"\",$D33=CONST_NA),FALSE,INDEX(Parameters_Constants!$K$101:$AF$118,MATCH($E33,CONST_LIST_Goods,0),MATCH(T$8,Parameters_Constants!$K$100:$AF$100,0))=FALSE)","v":false},{"$f":"IF(OR($D33=\"\",$D33=CONST_NA),FALSE,INDEX(Parameters_Constants!$K$101:$AF$118,MATCH($E33,CONST_LIST_Goods,0),MATCH(U$8,Parameters_Constants!$K$100:$AF$100,0))=FALSE)","v":false},{"$f":"IF(OR($D33=\"\",$D33=CONST_NA),FALSE,INDEX(Parameters_Constants!$K$101:$AF$118,MATCH($E33,CONST_LIST_Goods,0),MATCH(V$8,Parameters_Constants!$K$100:$AF$100,0))=FALSE)","v":false},{"$f":"IF(OR($D33=\"\",$D33=CONST_NA),FALSE,INDEX(Parameters_Constants!$K$101:$AF$118,MATCH($E33,CONST_LIST_Goods,0),MATCH(W$8,Parameters_Constants!$K$100:$AF$100,0))=FALSE)","v":false},{"$f":"IF(OR($D33=\"\",$D33=CONST_NA),FALSE,INDEX(Parameters_Constants!$K$101:$AF$118,MATCH($E33,CONST_LIST_Goods,0),MATCH(X$8,Parameters_Constants!$K$100:$AF$100,0))=FALSE)","v":false},{"$f":"IF(OR($D33=\"\",$D33=CONST_NA),FALSE,INDEX(Parameters_Constants!$K$101:$AF$118,MATCH($E33,CONST_LIST_Goods,0),MATCH(Y$8,Parameters_Constants!$K$100:$AF$100,0))=FALSE)","v":false},{"$f":"IF(OR($D33=\"\",$D33=CONST_NA),FALSE,INDEX(Parameters_Constants!$K$101:$AF$118,MATCH($E33,CONST_LIST_Goods,0),MATCH(Z$8,Parameters_Constants!$K$100:$AF$100,0))=FALSE)","v":false},{"$f":"IF(OR($D33=\"\",$D33=CONST_NA),FALSE,INDEX(Parameters_Constants!$K$101:$AF$118,MATCH($E33,CONST_LIST_Goods,0),MATCH(AA$8,Parameters_Constants!$K$100:$AF$100,0))=FALSE)","v":false},{"$f":"IF(OR($D33=\"\",$D33=CONST_NA),FALSE,INDEX(Parameters_Constants!$K$101:$AF$118,MATCH($E33,CONST_LIST_Goods,0),MATCH(AB$8,Parameters_Constants!$K$100:$AF$100,0))=FALSE)","v":false},{"$f":"IF(OR($D33=\"\",$D33=CONST_NA),FALSE,INDEX(Parameters_Constants!$K$101:$AF$118,MATCH($E33,CONST_LIST_Goods,0),MATCH(AC$8,Parameters_Constants!$K$100:$AF$100,0))=FALSE)","v":false},{"$f":"IF(OR($D33=\"\",$D33=CONST_NA),FALSE,INDEX(Parameters_Constants!$K$101:$AF$118,MATCH($E33,CONST_LIST_Goods,0),MATCH(AD$8,Parameters_Constants!$K$100:$AF$100,0))=FALSE)","v":false},{"$f":"IF(OR($D33=\"\",$D33=CONST_NA),FALSE,INDEX(Parameters_Constants!$K$101:$AF$118,MATCH($E33,CONST_LIST_Goods,0),MATCH(AE$8,Parameters_Constants!$K$100:$AF$100,0))=FALSE)","v":false},{"$f":"IF(OR($D33=\"\",$D33=CONST_NA),FALSE,INDEX(Parameters_Constants!$K$101:$AF$118,MATCH($E33,CONST_LIST_Goods,0),MATCH(AF$8,Parameters_Constants!$K$100:$AF$100,0))=FALSE)","v":false},{"$f":"IF(OR($D33=\"\",$D33=CONST_NA),FALSE,INDEX(Parameters_Constants!$K$101:$AF$118,MATCH($E33,CONST_LIST_Goods,0),MATCH(AG$8,Parameters_Constants!$K$100:$AF$100,0))=FALSE)","v":false},{"$f":"IF(OR($D33=\"\",$D33=CONST_NA),FALSE,INDEX(Parameters_Constants!$K$101:$AF$118,MATCH($E33,CONST_LIST_Goods,0),MATCH(AH$8,Parameters_Constants!$K$100:$AF$100,0))=FALSE)","v":false},{"$f":"IF(OR($D33=\"\",$D33=CONST_NA),FALSE,INDEX(Parameters_Constants!$K$101:$AF$118,MATCH($E33,CONST_LIST_Goods,0),MATCH(AI$8,Parameters_Constants!$K$100:$AF$100,0))=FALSE)","v":false},{"$f":"IF(OR($D33=\"\",$D33=CONST_NA),FALSE,INDEX(Parameters_Constants!$K$101:$AF$118,MATCH($E33,CONST_LIST_Goods,0),MATCH(AJ$8,Parameters_Constants!$K$100:$AF$100,0))=FALSE)","v":false},{"$f":"IF(OR($D33=\"\",$D33=CONST_NA),FALSE,INDEX(Parameters_Constants!$K$101:$AF$118,MATCH($E33,CONST_LIST_Goods,0),MATCH(AK$8,Parameters_Constants!$K$100:$AF$100,0))=FALSE)","v":false}]
["ausblenden",null,25,null,null,false,null,false,{"$nulls":7},{"$f":"IF(OR($D34=\"\",$D34=CONST_NA),FALSE,INDEX(Parameters_Constants!$K$101:$AF$118,MATCH($E34,CONST_LIST_Goods,0),MATCH(P$8,Parameters_Constants!$K$100:$AF$100,0))=FALSE)","v":false},{"$f":"IF(OR($D34=\"\",$D34=CONST_NA),FALSE,INDEX(Parameters_Constants!$K$101:$AF$118,MATCH($E34,CONST_LIST_Goods,0),MATCH(Q$8,Parameters_Constants!$K$100:$AF$100,0))=FALSE)","v":false},{"$f":"IF(OR($D34=\"\",$D34=CONST_NA),FALSE,INDEX(Parameters_Constants!$K$101:$AF$118,MATCH($E34,CONST_LIST_Goods,0),MATCH(R$8,Parameters_Constants!$K$100:$AF$100,0))=FALSE)","v":false},{"$f":"IF(OR($D34=\"\",$D34=CONST_NA),FALSE,INDEX(Parameters_Constants!$K$101:$AF$118,MATCH($E34,CONST_LIST_Goods,0),MATCH(S$8,Parameters_Constants!$K$100:$AF$100,0))=FALSE)","v":false},{"$f":"IF(OR($D34=\"\",$D34=CONST_NA),FALSE,INDEX(Parameters_Constants!$K$101:$AF$118,MATCH($E34,CONST_LIST_Goods,0),MATCH(T$8,Parameters_Constants!$K$100:$AF$100,0))=FALSE)","v":false},{"$f":"IF(OR($D34=\"\",$D34=CONST_NA),FALSE,INDEX(Parameters_Constants!$K$101:$AF$118,MATCH($E34,CONST_LIST_Goods,0),MATCH(U$8,Parameters_Constants!$K$100:$AF$100,0))=FALSE)","v":false},{"$f":"IF(OR($D34=\"\",$D34=CONST_NA),FALSE,INDEX(Parameters_Constants!$K$101:$AF$118,MATCH($E34,CONST_LIST_Goods,0),MATCH(V$8,Parameters_Constants!$K$100:$AF$100,0))=FALSE)","v":false},{"$f":"IF(OR($D34=\"\",$D34=CONST_NA),FALSE,INDEX(Parameters_Constants!$K$101:$AF$118,MATCH($E34,CONST_LIST_Goods,0),MATCH(W$8,Parameters_Constants!$K$100:$AF$100,0))=FALSE)","v":false},{"$f":"IF(OR($D34=\"\",$D34=CONST_NA),FALSE,INDEX(Parameters_Constants!$K$101:$AF$118,MATCH($E34,CONST_LIST_Goods,0),MATCH(X$8,Parameters_Constants!$K$100:$AF$100,0))=FALSE)","v":false},{"$f":"IF(OR($D34=\"\",$D34=CONST_NA),FALSE,INDEX(Parameters_Constants!$K$101:$AF$118,MATCH($E34,CONST_LIST_Goods,0),MATCH(Y$8,Parameters_Constants!$K$100:$AF$100,0))=FALSE)","v":false},{"$f":"IF(OR($D34=\"\",$D34=CONST_NA),FALSE,INDEX(Parameters_Constants!$K$101:$AF$118,MATCH($E34,CONST_LIST_Goods,0),MATCH(Z$8,Parameters_Constants!$K$100:$AF$100,0))=FALSE)","v":false},{"$f":"IF(OR($D34=\"\",$D34=CONST_NA),FALSE,INDEX(Parameters_Constants!$K$101:$AF$118,MATCH($E34,CONST_LIST_Goods,0),MATCH(AA$8,Parameters_Constants!$K$100:$AF$100,0))=FALSE)","v":false},{"$f":"IF(OR($D34=\"\",$D34=CONST_NA),FALSE,INDEX(Parameters_Constants!$K$101:$AF$118,MATCH($E34,CONST_LIST_Goods,0),MATCH(AB$8,Parameters_Constants!$K$100:$AF$100,0))=FALSE)","v":false},{"$f":"IF(OR($D34=\"\",$D34=CONST_NA),FALSE,INDEX(Parameters_Constants!$K$101:$AF$118,MATCH($E34,CONST_LIST_Goods,0),MATCH(AC$8,Parameters_Constants!$K$100:$AF$100,0))=FALSE)","v":false},{"$f":"IF(OR($D34=\"\",$D34=CONST_NA),FALSE,INDEX(Parameters_Constants!$K$101:$AF$118,MATCH($E34,CONST_LIST_Goods,0),MATCH(AD$8,Parameters_Constants!$K$100:$AF$100,0))=FALSE)","v":false},{"$f":"IF(OR($D34=\"\",$D34=CONST_NA),FALSE,INDEX(Parameters_Constants!$K$101:$AF$118,MATCH($E34,CONST_LIST_Goods,0),MATCH(AE$8,Parameters_Constants!$K$100:$AF$100,0))=FALSE)","v":false},{"$f":"IF(OR($D34=\"\",$D34=CONST_NA),FALSE,INDEX(Parameters_Constants!$K$101:$AF$118,MATCH($E34,CONST_LIST_Goods,0),MATCH(AF$8,Parameters_Constants!$K$100:$AF$100,0))=FALSE)","v":false},{"$f":"IF(OR($D34=\"\",$D34=CONST_NA),FALSE,INDEX(Parameters_Constants!$K$101:$AF$118,MATCH($E34,CONST_LIST_Goods,0),MATCH(AG$8,Parameters_Constants!$K$100:$AF$100,0))=FALSE)","v":false},{"$f":"IF(OR($D34=\"\",$D34=CONST_NA),FALSE,INDEX(Parameters_Constants!$K$101:$AF$118,MATCH($E34,CONST_LIST_Goods,0),MATCH(AH$8,Parameters_Constants!$K$100:$AF$100,0))=FALSE)","v":false},{"$f":"IF(OR($D34=\"\",$D34=CONST_NA),FALSE,INDEX(Parameters_Constants!$K$101:$AF$118,MATCH($E34,CONST_LIST_Goods,0),MATCH(AI$8,Parameters_Constants!$K$100:$AF$100,0))=FALSE)","v":false},{"$f":"IF(OR($D34=\"\",$D34=CONST_NA),FALSE,INDEX(Parameters_Constants!$K$101:$AF$118,MATCH($E34,CONST_LIST_Goods,0),MATCH(AJ$8,Parameters_Constants!$K$100:$AF$100,0))=FALSE)","v":false},{"$f":"IF(OR($D34=\"\",$D34=CONST_NA),FALSE,INDEX(Parameters_Constants!$K$101:$AF$118,MATCH($E34,CONST_LIST_Goods,0),MATCH(AK$8,Parameters_Constants!$K$100:$AF$100,0))=FALSE)","v":false}]
["ausblenden",null,26,null,null,false,null,false,{"$nulls":7},{"$f":"IF(OR($D35=\"\",$D35=CONST_NA),FALSE,INDEX(Parameters_Constants!$K$101:$AF$118,MATCH($E35,CONST_LIST_Goods,0),MATCH(P$8,Parameters_Constants!$K$100:$AF$100,0))=FALSE)","v":false},{"$f":"IF(OR($D35=\"\",$D35=CONST_NA),FALSE,INDEX(Parameters_Constants!$K$101:$AF$118,MATCH($E35,CONST_LIST_Goods,0),MATCH(Q$8,Parameters_Constants!$K$100:$AF$100,0))=FALSE)","v":false},{"$f":"IF(OR($D35=\"\",$D35=CONST_NA),FALSE,INDEX(Parameters_Constants!$K$101:$AF$118,MATCH($E35,CONST_LIST_Goods,0),MATCH(R$8,Parameters_Constants!$K$100:$AF$100,0))=FALSE)","v":false},{"$f":"IF(OR($D35=\"\",$D35=CONST_NA),FALSE,INDEX(Parameters_Constants!$K$101:$AF$118,MATCH($E35,CONST_LIST_Goods,0),MATCH(S$8,Parameters_Constants!$K$100:$AF$100,0))=FALSE)","v":false},{"$f":"IF(OR($D35=\"\",$D35=CONST_NA),FALSE,INDEX(Parameters_Constants!$K$101:$AF$118,MATCH($E35,CONST_LIST_Goods,0),MATCH(T$8,Parameters_Constants!$K$100:$AF$100,0))=FALSE)","v":false},{"$f":"IF(OR($D35=\"\",$D35=CONST_NA),FALSE,INDEX(Parameters_Constants!$K$101:$AF$118,MATCH($E35,CONST_LIST_Goods,0),MATCH(U$8,Parameters_Constants!$K$100:$AF$100,0))=FALSE)","v":false},{"$f":"IF(OR($D35=\"\",$D35=CONST_NA),FALSE,INDEX(Parameters_Constants!$K$101:$AF$118,MATCH($E35,CONST_LIST_Goods,0),MATCH(V$8,Parameters_Constants!$K$100:$AF$100,0))=FALSE)","v":false},{"$f":"IF(OR($D35=\"\",$D35=CONST_NA),FALSE,INDEX(Parameters_Constants!$K$101:$AF$118,MATCH($E35,CONST_LIST_Goods,0),MATCH(W$8,Parameters_Constants!$K$100:$AF$100,0))=FALSE)","v":false},{"$f":"IF(OR($D35=\"\",$D35=CONST_NA),FALSE,INDEX(Parameters_Constants!$K$101:$AF$118,MATCH($E35,CONST_LIST_Goods,0),MATCH(X$8,Parameters_Constants!$K$100:$AF$100,0))=FALSE)","v":false},{"$f":"IF(OR($D35=\"\",$D35=CONST_NA),FALSE,INDEX(Parameters_Constants!$K$101:$AF$118,MATCH($E35,CONST_LIST_Goods,0),MATCH(Y$8,Parameters_Constants!$K$100:$AF$100,0))=FALSE)","v":false},{"$f":"IF(OR($D35=\"\",$D35=CONST_NA),FALSE,INDEX(Parameters_Constants!$K$101:$AF$118,MATCH($E35,CONST_LIST_Goods,0),MATCH(Z$8,Parameters_Constants!$K$100:$AF$100,0))=FALSE)","v":false},{"$f":"IF(OR($D35=\"\",$D35=CONST_NA),FALSE,INDEX(Parameters_Constants!$K$101:$AF$118,MATCH($E35,CONST_LIST_Goods,0),MATCH(AA$8,Parameters_Constants!$K$100:$AF$100,0))=FALSE)","v":false},{"$f":"IF(OR($D35=\"\",$D35=CONST_NA),FALSE,INDEX(Parameters_Constants!$K$101:$AF$118,MATCH($E35,CONST_LIST_Goods,0),MATCH(AB$8,Parameters_Constants!$K$100:$AF$100,0))=FALSE)","v":false},{"$f":"IF(OR($D35=\"\",$D35=CONST_NA),FALSE,INDEX(Parameters_Constants!$K$101:$AF$118,MATCH($E35,CONST_LIST_Goods,0),MATCH(AC$8,Parameters_Constants!$K$100:$AF$100,0))=FALSE)","v":false},{"$f":"IF(OR($D35=\"\",$D35=CONST_NA),FALSE,INDEX(Parameters_Constants!$K$101:$AF$118,MATCH($E35,CONST_LIST_Goods,0),MATCH(AD$8,Parameters_Constants!$K$100:$AF$100,0))=FALSE)","v":false},{"$f":"IF(OR($D35=\"\",$D35=CONST_NA),FALSE,INDEX(Parameters_Constants!$K$101:$AF$118,MATCH($E35,CONST_LIST_Goods,0),MATCH(AE$8,Parameters_Constants!$K$100:$AF$100,0))=FALSE)","v":false},{"$f":"IF(OR($D35=\"\",$D35=CONST_NA),FALSE,INDEX(Parameters_Constants!$K$101:$AF$118,MATCH($E35,CONST_LIST_Goods,0),MATCH(AF$8,Parameters_Constants!$K$100:$AF$100,0))=FALSE)","v":false},{"$f":"IF(OR($D35=\"\",$D35=CONST_NA),FALSE,INDEX(Parameters_Constants!$K$101:$AF$118,MATCH($E35,CONST_LIST_Goods,0),MATCH(AG$8,Parameters_Constants!$K$100:$AF$100,0))=FALSE)","v":false},{"$f":"IF(OR($D35=\"\",$D35=CONST_NA),FALSE,INDEX(Parameters_Constants!$K$101:$AF$118,MATCH($E35,CONST_LIST_Goods,0),MATCH(AH$8,Parameters_Constants!$K$100:$AF$100,0))=FALSE)","v":false},{"$f":"IF(OR($D35=\"\",$D35=CONST_NA),FALSE,INDEX(Parameters_Constants!$K$101:$AF$118,MATCH($E35,CONST_LIST_Goods,0),MATCH(AI$8,Parameters_Constants!$K$100:$AF$100,0))=FALSE)","v":false},{"$f":"IF(OR($D35=\"\",$D35=CONST_NA),FALSE,INDEX(Parameters_Constants!$K$101:$AF$118,MATCH($E35,CONST_LIST_Goods,0),MATCH(AJ$8,Parameters_Constants!$K$100:$AF$100,0))=FALSE)","v":false},{"$f":"IF(OR($D35=\"\",$D35=CONST_NA),FALSE,INDEX(Parameters_Constants!$K$101:$AF$118,MATCH($E35,CONST_LIST_Goods,0),MATCH(AK$8,Parameters_Constants!$K$100:$AF$100,0))=FALSE)","v":false}]
["ausblenden",null,27,null,null,false,null,false,{"$nulls":7},{"$f":"IF(OR($D36=\"\",$D36=CONST_NA),FALSE,INDEX(Parameters_Constants!$K$101:$AF$118,MATCH($E36,CONST_LIST_Goods,0),MATCH(P$8,Parameters_Constants!$K$100:$AF$100,0))=FALSE)","v":false},{"$f":"IF(OR($D36=\"\",$D36=CONST_NA),FALSE,INDEX(Parameters_Constants!$K$101:$AF$118,MATCH($E36,CONST_LIST_Goods,0),MATCH(Q$8,Parameters_Constants!$K$100:$AF$100,0))=FALSE)","v":false},{"$f":"IF(OR($D36=\"\",$D36=CONST_NA),FALSE,INDEX(Parameters_Constants!$K$101:$AF$118,MATCH($E36,CONST_LIST_Goods,0),MATCH(R$8,Parameters_Constants!$K$100:$AF$100,0))=FALSE)","v":false},{"$f":"IF(OR($D36=\"\",$D36=CONST_NA),FALSE,INDEX(Parameters_Constants!$K$101:$AF$118,MATCH($E36,CONST_LIST_Goods,0),MATCH(S$8,Parameters_Constants!$K$100:$AF$100,0))=FALSE)","v":false},{"$f":"IF(OR($D36=\"\",$D36=CONST_NA),FALSE,INDEX(Parameters_Constants!$K$101:$AF$118,MATCH($E36,CONST_LIST_Goods,0),MATCH(T$8,Parameters_Constants!$K$100:$AF$100,0))=FALSE)","v":false},{"$f":"IF(OR($D36=\"\",$D36=CONST_NA),FALSE,INDEX(Parameters_Constants!$K$101:$AF$118,MATCH($E36,CONST_LIST_Goods,0),MATCH(U$8,Parameters_Constants!$K$100:$AF$100,0))=FALSE)","v":false},{"$f":"IF(OR($D36=\"\",$D36=CONST_NA),FALSE,INDEX(Parameters_Constants!$K$101:$AF$118,MATCH($E36,CONST_LIST_Goods,0),MATCH(V$8,Parameters_Constants!$K$100:$AF$100,0))=FALSE)","v":false},{"$f":"IF(OR($D36=\"\",$D36=CONST_NA),FALSE,INDEX(Parameters_Constants!$K$101:$AF$118,MATCH($E36,CONST_LIST_Goods,0),MATCH(W$8,Parameters_Constants!$K$100:$AF$100,0))=FALSE)","v":false},{"$f":"IF(OR($D36=\"\",$D36=CONST_NA),FALSE,INDEX(Parameters_Constants!$K$101:$AF$118,MATCH($E36,CONST_LIST_Goods,0),MATCH(X$8,Parameters_Constants!$K$100:$AF$100,0))=FALSE)","v":false},{"$f":"IF(OR($D36=\"\",$D36=CONST_NA),FALSE,INDEX(Parameters_Constants!$K$101:$AF$118,MATCH($E36,CONST_LIST_Goods,0),MATCH(Y$8,Parameters_Constants!$K$100:$AF$100,0))=FALSE)","v":false},{"$f":"IF(OR($D36=\"\",$D36=CONST_NA),FALSE,INDEX(Parameters_Constants!$K$101:$AF$118,MATCH($E36,CONST_LIST_Goods,0),MATCH(Z$8,Parameters_Constants!$K$100:$AF$100,0))=FALSE)","v":false},{"$f":"IF(OR($D36=\"\",$D36=CONST_NA),FALSE,INDEX(Parameters_Constants!$K$101:$AF$118,MATCH($E36,CONST_LIST_Goods,0),MATCH(AA$8,Parameters_Constants!$K$100:$AF$100,0))=FALSE)","v":false},{"$f":"IF(OR($D36=\"\",$D36=CONST_NA),FALSE,INDEX(Parameters_Constants!$K$101:$AF$118,MATCH($E36,CONST_LIST_Goods,0),MATCH(AB$8,Parameters_Constants!$K$100:$AF$100,0))=FALSE)","v":false},{"$f":"IF(OR($D36=\"\",$D36=CONST_NA),FALSE,INDEX(Parameters_Constants!$K$101:$AF$118,MATCH($E36,CONST_LIST_Goods,0),MATCH(AC$8,Parameters_Constants!$K$100:$AF$100,0))=FALSE)","v":false},{"$f":"IF(OR($D36=\"\",$D36=CONST_NA),FALSE,INDEX(Parameters_Constants!$K$101:$AF$118,MATCH($E36,CONST_LIST_Goods,0),MATCH(AD$8,Parameters_Constants!$K$100:$AF$100,0))=FALSE)","v":false},{"$f":"IF(OR($D36=\"\",$D36=CONST_NA),FALSE,INDEX(Parameters_Constants!$K$101:$AF$118,MATCH($E36,CONST_LIST_Goods,0),MATCH(AE$8,Parameters_Constants!$K$100:$AF$100,0))=FALSE)","v":false},{"$f":"IF(OR($D36=\"\",$D36=CONST_NA),FALSE,INDEX(Parameters_Constants!$K$101:$AF$118,MATCH($E36,CONST_LIST_Goods,0),MATCH(AF$8,Parameters_Constants!$K$100:$AF$100,0))=FALSE)","v":false},{"$f":"IF(OR($D36=\"\",$D36=CONST_NA),FALSE,INDEX(Parameters_Constants!$K$101:$AF$118,MATCH($E36,CONST_LIST_Goods,0),MATCH(AG$8,Parameters_Constants!$K$100:$AF$100,0))=FALSE)","v":false},{"$f":"IF(OR($D36=\"\",$D36=CONST_NA),FALSE,INDEX(Parameters_Constants!$K$101:$AF$118,MATCH($E36,CONST_LIST_Goods,0),MATCH(AH$8,Parameters_Constants!$K$100:$AF$100,0))=FALSE)","v":false},{"$f":"IF(OR($D36=\"\",$D36=CONST_NA),FALSE,INDEX(Parameters_Constants!$K$101:$AF$118,MATCH($E36,CONST_LIST_Goods,0),MATCH(AI$8,Parameters_Constants!$K$100:$AF$100,0))=FALSE)","v":false},{"$f":"IF(OR($D36=\"\",$D36=CONST_NA),FALSE,INDEX(Parameters_Constants!$K$101:$AF$118,MATCH($E36,CONST_LIST_Goods,0),MATCH(AJ$8,Parameters_Constants!$K$100:$AF$100,0))=FALSE)","v":false},{"$f":"IF(OR($D36=\"\",$D36=CONST_NA),FALSE,INDEX(Parameters_Constants!$K$101:$AF$118,MATCH($E36,CONST_LIST_Goods,0),MATCH(AK$8,Parameters_Constants!$K$100:$AF$100,0))=FALSE)","v":false}]
["ausblenden",null,28,null,null,false,null,false,{"$nulls":7},{"$f":"IF(OR($D37=\"\",$D37=CONST_NA),FALSE,INDEX(Parameters_Constants!$K$101:$AF$118,MATCH($E37,CONST_LIST_Goods,0),MATCH(P$8,Parameters_Constants!$K$100:$AF$100,0))=FALSE)","v":false},{"$f":"IF(OR($D37=\"\",$D37=CONST_NA),FALSE,INDEX(Parameters_Constants!$K$101:$AF$118,MATCH($E37,CONST_LIST_Goods,0),MATCH(Q$8,Parameters_Constants!$K$100:$AF$100,0))=FALSE)","v":false},{"$f":"IF(OR($D37=\"\",$D37=CONST_NA),FALSE,INDEX(Parameters_Constants!$K$101:$AF$118,MATCH($E37,CONST_LIST_Goods,0),MATCH(R$8,Parameters_Constants!$K$100:$AF$100,0))=FALSE)","v":false},{"$f":"IF(OR($D37=\"\",$D37=CONST_NA),FALSE,INDEX(Parameters_Constants!$K$101:$AF$118,MATCH($E37,CONST_LIST_Goods,0),MATCH(S$8,Parameters_Constants!$K$100:$AF$100,0))=FALSE)","v":false},{"$f":"IF(OR($D37=\"\",$D37=CONST_NA),FALSE,INDEX(Parameters_Constants!$K$101:$AF$118,MATCH($E37,CONST_LIST_Goods,0),MATCH(T$8,Parameters_Constants!$K$100:$AF$100,0))=FALSE)","v":false},{"$f":"IF(OR($D37=\"\",$D37=CONST_NA),FALSE,INDEX(Parameters_Constants!$K$101:$AF$118,MATCH($E37,CONST_LIST_Goods,0),MATCH(U$8,Parameters_Constants!$K$100:$AF$100,0))=FALSE)","v":false},{"$f":"IF(OR($D37=\"\",$D37=CONST_NA),FALSE,INDEX(Parameters_Constants!$K$101:$AF$118,MATCH($E37,CONST_LIST_Goods,0),MATCH(V$8,Parameters_Constants!$K$100:$AF$100,0))=FALSE)","v":false},{"$f":"IF(OR($D37=\"\",$D37=CONST_NA),FALSE,INDEX(Parameters_Constants!$K$101:$AF$118,MATCH($E37,CONST_LIST_Goods,0),MATCH(W$8,Parameters_Constants!$K$100:$AF$100,0))=FALSE)","v":false},{"$f":"IF(OR($D37=\"\",$D37=CONST_NA),FALSE,INDEX(Parameters_Constants!$K$101:$AF$118,MATCH($E37,CONST_LIST_Goods,0),MATCH(X$8,Parameters_Constants!$K$100:$AF$100,0))=FALSE)","v":false},{"$f":"IF(OR($D37=\"\",$D37=CONST_NA),FALSE,INDEX(Parameters_Constants!$K$101:$AF$118,MATCH($E37,CONST_LIST_Goods,0),MATCH(Y$8,Parameters_Constants!$K$100:$AF$100,0))=FALSE)","v":false},{"$f":"IF(OR($D37=\"\",$D37=CONST_NA),FALSE,INDEX(Parameters_Constants!$K$101:$AF$118,MATCH($E37,CONST_LIST_Goods,0),MATCH(Z$8,Parameters_Constants!$K$100:$AF$100,0))=FALSE)","v":false},{"$f":"IF(OR($D37=\"\",$D37=CONST_NA),FALSE,INDEX(Parameters_Constants!$K$101:$AF$118,MATCH($E37,CONST_LIST_Goods,0),MATCH(AA$8,Parameters_Constants!$K$100:$AF$100,0))=FALSE)","v":false},{"$f":"IF(OR($D37=\"\",$D37=CONST_NA),FALSE,INDEX(Parameters_Constants!$K$101:$AF$118,MATCH($E37,CONST_LIST_Goods,0),MATCH(AB$8,Parameters_Constants!$K$100:$AF$100,0))=FALSE)","v":false},{"$f":"IF(OR($D37=\"\",$D37=CONST_NA),FALSE,INDEX(Parameters_Constants!$K$101:$AF$118,MATCH($E37,CONST_LIST_Goods,0),MATCH(AC$8,Parameters_Constants!$K$100:$AF$100,0))=FALSE)","v":false},{"$f":"IF(OR($D37=\"\",$D37=CONST_NA),FALSE,INDEX(Parameters_Constants!$K$101:$AF$118,MATCH($E37,CONST_LIST_Goods,0),MATCH(AD$8,Parameters_Constants!$K$100:$AF$100,0))=FALSE)","v":false},{"$f":"IF(OR($D37=\"\",$D37=CONST_NA),FALSE,INDEX(Parameters_Constants!$K$101:$AF$118,MATCH($E37,CONST_LIST_Goods,0),MATCH(AE$8,Parameters_Constants!$K$100:$AF$100,0))=FALSE)","v":false},{"$f":"IF(OR($D37=\"\",$D37=CONST_NA),FALSE,INDEX(Parameters_Constants!$K$101:$AF$118,MATCH($E37,CONST_LIST_Goods,0),MATCH(AF$8,Parameters_Constants!$K$100:$AF$100,0))=FALSE)","v":false},{"$f":"IF(OR($D37=\"\",$D37=CONST_NA),FALSE,INDEX(Parameters_Constants!$K$101:$AF$118,MATCH($E37,CONST_LIST_Goods,0),MATCH(AG$8,Parameters_Constants!$K$100:$AF$100,0))=FALSE)","v":false},{"$f":"IF(OR($D37=\"\",$D37=CONST_NA),FALSE,INDEX(Parameters_Constants!$K$101:$AF$118,MATCH($E37,CONST_LIST_Goods,0),MATCH(AH$8,Parameters_Constants!$K$100:$AF$100,0))=FALSE)","v":false},{"$f":"IF(OR($D37=\"\",$D37=CONST_NA),FALSE,INDEX(Parameters_Constants!$K$101:$AF$118,MATCH($E37,CONST_LIST_Goods,0),MATCH(AI$8,Parameters_Constants!$K$100:$AF$100,0))=FALSE)","v":false},{"$f":"IF(OR($D37=\"\",$D37=CONST_NA),FALSE,INDEX(Parameters_Constants!$K$101:$AF$118,MATCH($E37,CONST_LIST_Goods,0),MATCH(AJ$8,Parameters_Constants!$K$100:$AF$100,0))=FALSE)","v":false},{"$f":"IF(OR($D37=\"\",$D37=CONST_NA),FALSE,INDEX(Parameters_Constants!$K$101:$AF$118,MATCH($E37,CONST_LIST_Goods,0),MATCH(AK$8,Parameters_Constants!$K$100:$AF$100,0))=FALSE)","v":false}]
["ausblenden",null,29,null,null,false,null,false,{"$nulls":7},{"$f":"IF(OR($D38=\"\",$D38=CONST_NA),FALSE,INDEX(Parameters_Constants!$K$101:$AF$118,MATCH($E38,CONST_LIST_Goods,0),MATCH(P$8,Parameters_Constants!$K$100:$AF$100,0))=FALSE)","v":false},{"$f":"IF(OR($D38=\"\",$D38=CONST_NA),FALSE,INDEX(Parameters_Constants!$K$101:$AF$118,MATCH($E38,CONST_LIST_Goods,0),MATCH(Q$8,Parameters_Constants!$K$100:$AF$100,0))=FALSE)","v":false},{"$f":"IF(OR($D38=\"\",$D38=CONST_NA),FALSE,INDEX(Parameters_Constants!$K$101:$AF$118,MATCH($E38,CONST_LIST_Goods,0),MATCH(R$8,Parameters_Constants!$K$100:$AF$100,0))=FALSE)","v":false},{"$f":"IF(OR($D38=\"\",$D38=CONST_NA),FALSE,INDEX(Parameters_Constants!$K$101:$AF$118,MATCH($E38,CONST_LIST_Goods,0),MATCH(S$8,Parameters_Constants!$K$100:$AF$100,0))=FALSE)","v":false},{"$f":"IF(OR($D38=\"\",$D38=CONST_NA),FALSE,INDEX(Parameters_Constants!$K$101:$AF$118,MATCH($E38,CONST_LIST_Goods,0),MATCH(T$8,Parameters_Constants!$K$100:$AF$100,0))=FALSE)","v":false},{"$f":"IF(OR($D38=\"\",$D38=CONST_NA),FALSE,INDEX(Parameters_Constants!$K$101:$AF$118,MATCH($E38,CONST_LIST_Goods,0),MATCH(U$8,Parameters_Constants!$K$100:$AF$100,0))=FALSE)","v":false},{"$f":"IF(OR($D38=\"\",$D38=CONST_NA),FALSE,INDEX(Parameters_Constants!$K$101:$AF$118,MATCH($E38,CONST_LIST_Goods,0),MATCH(V$8,Parameters_Constants!$K$100:$AF$100,0))=FALSE)","v":false},{"$f":"IF(OR($D38=\"\",$D38=CONST_NA),FALSE,INDEX(Parameters_Constants!$K$101:$AF$118,MATCH($E38,CONST_LIST_Goods,0),MATCH(W$8,Parameters_Constants!$K$100:$AF$100,0))=FALSE)","v":false},{"$f":"IF(OR($D38=\"\",$D38=CONST_NA),FALSE,INDEX(Parameters_Constants!$K$101:$AF$118,MATCH($E38,CONST_LIST_Goods,0),MATCH(X$8,Parameters_Constants!$K$100:$AF$100,0))=FALSE)","v":false},{"$f":"IF(OR($D38=\"\",$D38=CONST_NA),FALSE,INDEX(Parameters_Constants!$K$101:$AF$118,MATCH($E38,CONST_LIST_Goods,0),MATCH(Y$8,Parameters_Constants!$K$100:$AF$100,0))=FALSE)","v":false},{"$f":"IF(OR($D38=\"\",$D38=CONST_NA),FALSE,INDEX(Parameters_Constants!$K$101:$AF$118,MATCH($E38,CONST_LIST_Goods,0),MATCH(Z$8,Parameters_Constants!$K$100:$AF$100,0))=FALSE)","v":false},{"$f":"IF(OR($D38=\"\",$D38=CONST_NA),FALSE,INDEX(Parameters_Constants!$K$101:$AF$118,MATCH($E38,CONST_LIST_Goods,0),MATCH(AA$8,Parameters_Constants!$K$100:$AF$100,0))=FALSE)","v":false},{"$f":"IF(OR($D38=\"\",$D38=CONST_NA),FALSE,INDEX(Parameters_Constants!$K$101:$AF$118,MATCH($E38,CONST_LIST_Goods,0),MATCH(AB$8,Parameters_Constants!$K$100:$AF$100,0))=FALSE)","v":false},{"$f":"IF(OR($D38=\"\",$D38=CONST_NA),FALSE,INDEX(Parameters_Constants!$K$101:$AF$118,MATCH($E38,CONST_LIST_Goods,0),MATCH(AC$8,Parameters_Constants!$K$100:$AF$100,0))=FALSE)","v":false},{"$f":"IF(OR($D38=\"\",$D38=CONST_NA),FALSE,INDEX(Parameters_Constants!$K$101:$AF$118,MATCH($E38,CONST_LIST_Goods,0),MATCH(AD$8,Parameters_Constants!$K$100:$AF$100,0))=FALSE)","v":false},{"$f":"IF(OR($D38=\"\",$D38=CONST_NA),FALSE,INDEX(Parameters_Constants!$K$101:$AF$118,MATCH($E38,CONST_LIST_Goods,0),MATCH(AE$8,Parameters_Constants!$K$100:$AF$100,0))=FALSE)","v":false},{"$f":"IF(OR($D38=\"\",$D38=CONST_NA),FALSE,INDEX(Parameters_Constants!$K$101:$AF$118,MATCH($E38,CONST_LIST_Goods,0),MATCH(AF$8,Parameters_Constants!$K$100:$AF$100,0))=FALSE)","v":false},{"$f":"IF(OR($D38=\"\",$D38=CONST_NA),FALSE,INDEX(Parameters_Constants!$K$101:$AF$118,MATCH($E38,CONST_LIST_Goods,0),MATCH(AG$8,Parameters_Constants!$K$100:$AF$100,0))=FALSE)","v":false},{"$f":"IF(OR($D38=\"\",$D38=CONST_NA),FALSE,INDEX(Parameters_Constants!$K$101:$AF$118,MATCH($E38,CONST_LIST_Goods,0),MATCH(AH$8,Parameters_Constants!$K$100:$AF$100,0))=FALSE)","v":false},{"$f":"IF(OR($D38=\"\",$D38=CONST_NA),FALSE,INDEX(Parameters_Constants!$K$101:$AF$118,MATCH($E38,CONST_LIST_Goods,0),MATCH(AI$8,Parameters_Constants!$K$100:$AF$100,0))=FALSE)","v":false},{"$f":"IF(OR($D38=\"\",$D38=CONST_NA),FALSE,INDEX(Parameters_Constants!$K$101:$AF$118,MATCH($E38,CONST_LIST_Goods,0),MATCH(AJ$8,Parameters_Constants!$K$100:$AF$100,0))=FALSE)","v":false},{"$f":"IF(OR($D38=\"\",$D38=CONST_NA),FALSE,INDEX(Parameters_Constants!$K$101:$AF$118,MATCH($E38,CONST_LIST_Goods,0),MATCH(AK$8,Parameters_Constants!$K$100:$AF$100,0))=FALSE)","v":false}]
["ausblenden",null,30,null,null,false,null,false,{"$nulls":7},{"$f":"IF(OR($D39=\"\",$D39=CONST_NA),FALSE,INDEX(Parameters_Constants!$K$101:$AF$118,MATCH($E39,CONST_LIST_Goods,0),MATCH(P$8,Parameters_Constants!$K$100:$AF$100,0))=FALSE)","v":false},{"$f":"IF(OR($D39=\"\",$D39=CONST_NA),FALSE,INDEX(Parameters_Constants!$K$101:$AF$118,MATCH($E39,CONST_LIST_Goods,0),MATCH(Q$8,Parameters_Constants!$K$100:$AF$100,0))=FALSE)","v":false},{"$f":"IF(OR($D39=\"\",$D39=CONST_NA),FALSE,INDEX(Parameters_Constants!$K$101:$AF$118,MATCH($E39,CONST_LIST_Goods,0),MATCH(R$8,Parameters_Constants!$K$100:$AF$100,0))=FALSE)","v":false},{"$f":"IF(OR($D39=\"\",$D39=CONST_NA),FALSE,INDEX(Parameters_Constants!$K$101:$AF$118,MATCH($E39,CONST_LIST_Goods,0),MATCH(S$8,Parameters_Constants!$K$100:$AF$100,0))=FALSE)","v":false},{"$f":"IF(OR($D39=\"\",$D39=CONST_NA),FALSE,INDEX(Parameters_Constants!$K$101:$AF$118,MATCH($E39,CONST_LIST_Goods,0),MATCH(T$8,Parameters_Constants!$K$100:$AF$100,0))=FALSE)","v":false},{"$f":"IF(OR($D39=\"\",$D39=CONST_NA),FALSE,INDEX(Parameters_Constants!$K$101:$AF$118,MATCH($E39,CONST_LIST_Goods,0),MATCH(U$8,Parameters_Constants!$K$100:$AF$100,0))=FALSE)","v":false},{"$f":"IF(OR($D39=\"\",$D39=CONST_NA),FALSE,INDEX(Parameters_Constants!$K$101:$AF$118,MATCH($E39,CONST_LIST_Goods,0),MATCH(V$8,Parameters_Constants!$K$100:$AF$100,0))=FALSE)","v":false},{"$f":"IF(OR($D39=\"\",$D39=CONST_NA),FALSE,INDEX(Parameters_Constants!$K$101:$AF$118,MATCH($E39,CONST_LIST_Goods,0),MATCH(W$8,Parameters_Constants!$K$100:$AF$100,0))=FALSE)","v":false},{"$f":"IF(OR($D39=\"\",$D39=CONST_NA),FALSE,INDEX(Parameters_Constants!$K$101:$AF$118,MATCH($E39,CONST_LIST_Goods,0),MATCH(X$8,Parameters_Constants!$K$100:$AF$100,0))=FALSE)","v":false},{"$f":"IF(OR($D39=\"\",$D39=CONST_NA),FALSE,INDEX(Parameters_Constants!$K$101:$AF$118,MATCH($E39,CONST_LIST_Goods,0),MATCH(Y$8,Parameters_Constants!$K$100:$AF$100,0))=FALSE)","v":false},{"$f":"IF(OR($D39=\"\",$D39=CONST_NA),FALSE,INDEX(Parameters_Constants!$K$101:$AF$118,MATCH($E39,CONST_LIST_Goods,0),MATCH(Z$8,Parameters_Constants!$K$100:$AF$100,0))=FALSE)","v":false},{"$f":"IF(OR($D39=\"\",$D39=CONST_NA),FALSE,INDEX(Parameters_Constants!$K$101:$AF$118,MATCH($E39,CONST_LIST_Goods,0),MATCH(AA$8,Parameters_Constants!$K$100:$AF$100,0))=FALSE)","v":false},{"$f":"IF(OR($D39=\"\",$D39=CONST_NA),FALSE,INDEX(Parameters_Constants!$K$101:$AF$118,MATCH($E39,CONST_LIST_Goods,0),MATCH(AB$8,Parameters_Constants!$K$100:$AF$100,0))=FALSE)","v":false},{"$f":"IF(OR($D39=\"\",$D39=CONST_NA),FALSE,INDEX(Parameters_Constants!$K$101:$AF$118,MATCH($E39,CONST_LIST_Goods,0),MATCH(AC$8,Parameters_Constants!$K$100:$AF$100,0))=FALSE)","v":false},{"$f":"IF(OR($D39=\"\",$D39=CONST_NA),FALSE,INDEX(Parameters_Constants!$K$101:$AF$118,MATCH($E39,CONST_LIST_Goods,0),MATCH(AD$8,Parameters_Constants!$K$100:$AF$100,0))=FALSE)","v":false},{"$f":"IF(OR($D39=\"\",$D39=CONST_NA),FALSE,INDEX(Parameters_Constants!$K$101:$AF$118,MATCH($E39,CONST_LIST_Goods,0),MATCH(AE$8,Parameters_Constants!$K$100:$AF$100,0))=FALSE)","v":false},{"$f":"IF(OR($D39=\"\",$D39=CONST_NA),FALSE,INDEX(Parameters_Constants!$K$101:$AF$118,MATCH($E39,CONST_LIST_Goods,0),MATCH(AF$8,Parameters_Constants!$K$100:$AF$100,0))=FALSE)","v":false},{"$f":"IF(OR($D39=\"\",$D39=CONST_NA),FALSE,INDEX(Parameters_Constants!$K$101:$AF$118,MATCH($E39,CONST_LIST_Goods,0),MATCH(AG$8,Parameters_Constants!$K$100:$AF$100,0))=FALSE)","v":false},{"$f":"IF(OR($D39=\"\",$D39=CONST_NA),FALSE,INDEX(Parameters_Constants!$K$101:$AF$118,MATCH($E39,CONST_LIST_Goods,0),MATCH(AH$8,Parameters_Constants!$K$100:$AF$100,0))=FALSE)","v":false},{"$f":"IF(OR($D39=\"\",$D39=CONST_NA),FALSE,INDEX(Parameters_Constants!$K$101:$AF$118,MATCH($E39,CONST_LIST_Goods,0),MATCH(AI$8,Parameters_Constants!$K$100:$AF$100,0))=FALSE)","v":false},{"$f":"IF(OR($D39=\"\",$D39=CONST_NA),FALSE,INDEX(Parameters_Constants!$K$101:$AF$118,MATCH($E39,CONST_LIST_Goods,0),MATCH(AJ$8,Parameters_Constants!$K$100:$AF$100,0))=FALSE)","v":false},{"$f":"IF(OR($D39=\"\",$D39=CONST_NA),FALSE,INDEX(Parameters_Constants!$K$101:$AF$118,MATCH($E39,CONST_LIST_Goods,0),MATCH(AK$8,Parameters_Constants!$K$100:$AF$100,0))=FALSE)","v":false}]
["ausblenden",null,31,null,null,false,null,false,{"$nulls":7},{"$f":"IF(OR($D40=\"\",$D40=CONST_NA),FALSE,INDEX(Parameters_Constants!$K$101:$AF$118,MATCH($E40,CONST_LIST_Goods,0),MATCH(P$8,Parameters_Constants!$K$100:$AF$100,0))=FALSE)","v":false},{"$f":"IF(OR($D40=\"\",$D40=CONST_NA),FALSE,INDEX(Parameters_Constants!$K$101:$AF$118,MATCH($E40,CONST_LIST_Goods,0),MATCH(Q$8,Parameters_Constants!$K$100:$AF$100,0))=FALSE)","v":false},{"$f":"IF(OR($D40=\"\",$D40=CONST_NA),FALSE,INDEX(Parameters_Constants!$K$101:$AF$118,MATCH($E40,CONST_LIST_Goods,0),MATCH(R$8,Parameters_Constants!$K$100:$AF$100,0))=FALSE)","v":false},{"$f":"IF(OR($D40=\"\",$D40=CONST_NA),FALSE,INDEX(Parameters_Constants!$K$101:$AF$118,MATCH($E40,CONST_LIST_Goods,0),MATCH(S$8,Parameters_Constants!$K$100:$AF$100,0))=FALSE)","v":false},{"$f":"IF(OR($D40=\"\",$D40=CONST_NA),FALSE,INDEX(Parameters_Constants!$K$101:$AF$118,MATCH($E40,CONST_LIST_Goods,0),MATCH(T$8,Parameters_Constants!$K$100:$AF$100,0))=FALSE)","v":false},{"$f":"IF(OR($D40=\"\",$D40=CONST_NA),FALSE,INDEX(Parameters_Constants!$K$101:$AF$118,MATCH($E40,CONST_LIST_Goods,0),MATCH(U$8,Parameters_Constants!$K$100:$AF$100,0))=FALSE)","v":false},{"$f":"IF(OR($D40=\"\",$D40=CONST_NA),FALSE,INDEX(Parameters_Constants!$K$101:$AF$118,MATCH($E40,CONST_LIST_Goods,0),MATCH(V$8,Parameters_Constants!$K$100:$AF$100,0))=FALSE)","v":false},{"$f":"IF(OR($D40=\"\",$D40=CONST_NA),FALSE,INDEX(Parameters_Constants!$K$101:$AF$118,MATCH($E40,CONST_LIST_Goods,0),MATCH(W$8,Parameters_Constants!$K$100:$AF$100,0))=FALSE)","v":false},{"$f":"IF(OR($D40=\"\",$D40=CONST_NA),FALSE,INDEX(Parameters_Constants!$K$101:$AF$118,MATCH($E40,CONST_LIST_Goods,0),MATCH(X$8,Parameters_Constants!$K$100:$AF$100,0))=FALSE)","v":false},{"$f":"IF(OR($D40=\"\",$D40=CONST_NA),FALSE,INDEX(Parameters_Constants!$K$101:$AF$118,MATCH($E40,CONST_LIST_Goods,0),MATCH(Y$8,Parameters_Constants!$K$100:$AF$100,0))=FALSE)","v":false},{"$f":"IF(OR($D40=\"\",$D40=CONST_NA),FALSE,INDEX(Parameters_Constants!$K$101:$AF$118,MATCH($E40,CONST_LIST_Goods,0),MATCH(Z$8,Parameters_Constants!$K$100:$AF$100,0))=FALSE)","v":false},{"$f":"IF(OR($D40=\"\",$D40=CONST_NA),FALSE,INDEX(Parameters_Constants!$K$101:$AF$118,MATCH($E40,CONST_LIST_Goods,0),MATCH(AA$8,Parameters_Constants!$K$100:$AF$100,0))=FALSE)","v":false},{"$f":"IF(OR($D40=\"\",$D40=CONST_NA),FALSE,INDEX(Parameters_Constants!$K$101:$AF$118,MATCH($E40,CONST_LIST_Goods,0),MATCH(AB$8,Parameters_Constants!$K$100:$AF$100,0))=FALSE)","v":false},{"$f":"IF(OR($D40=\"\",$D40=CONST_NA),FALSE,INDEX(Parameters_Constants!$K$101:$AF$118,MATCH($E40,CONST_LIST_Goods,0),MATCH(AC$8,Parameters_Constants!$K$100:$AF$100,0))=FALSE)","v":false},{"$f":"IF(OR($D40=\"\",$D40=CONST_NA),FALSE,INDEX(Parameters_Constants!$K$101:$AF$118,MATCH($E40,CONST_LIST_Goods,0),MATCH(AD$8,Parameters_Constants!$K$100:$AF$100,0))=FALSE)","v":false},{"$f":"IF(OR($D40=\"\",$D40=CONST_NA),FALSE,INDEX(Parameters_Constants!$K$101:$AF$118,MATCH($E40,CONST_LIST_Goods,0),MATCH(AE$8,Parameters_Constants!$K$100:$AF$100,0))=FALSE)","v":false},{"$f":"IF(OR($D40=\"\",$D40=CONST_NA),FALSE,INDEX(Parameters_Constants!$K$101:$AF$118,MATCH($E40,CONST_LIST_Goods,0),MATCH(AF$8,Parameters_Constants!$K$100:$AF$100,0))=FALSE)","v":false},{"$f":"IF(OR($D40=\"\",$D40=CONST_NA),FALSE,INDEX(Parameters_Constants!$K$101:$AF$118,MATCH($E40,CONST_LIST_Goods,0),MATCH(AG$8,Parameters_Constants!$K$100:$AF$100,0))=FALSE)","v":false},{"$f":"IF(OR($D40=\"\",$D40=CONST_NA),FALSE,INDEX(Parameters_Constants!$K$101:$AF$118,MATCH($E40,CONST_LIST_Goods,0),MATCH(AH$8,Parameters_Constants!$K$100:$AF$100,0))=FALSE)","v":false},{"$f":"IF(OR($D40=\"\",$D40=CONST_NA),FALSE,INDEX(Parameters_Constants!$K$101:$AF$118,MATCH($E40,CONST_LIST_Goods,0),MATCH(AI$8,Parameters_Constants!$K$100:$AF$100,0))=FALSE)","v":false},{"$f":"IF(OR($D40=\"\",$D40=CONST_NA),FALSE,INDEX(Parameters_Constants!$K$101:$AF$118,MATCH($E40,CONST_LIST_Goods,0),MATCH(AJ$8,Parameters_Constants!$K$100:$AF$100,0))=FALSE)","v":false},{"$f":"IF(OR($D40=\"\",$D40=CONST_NA),FALSE,INDEX(Parameters_Constants!$K$101:$AF$118,MATCH($E40,CONST_LIST_Goods,0),MATCH(AK$8,Parameters_Constants!$K$100:$AF$100,0))=FALSE)","v":false}]
["ausblenden",null,32,null,null,false,null,false,{"$nulls":7},{"$f":"IF(OR($D41=\"\",$D41=CONST_NA),FALSE,INDEX(Parameters_Constants!$K$101:$AF$118,MATCH($E41,CONST_LIST_Goods,0),MATCH(P$8,Parameters_Constants!$K$100:$AF$100,0))=FALSE)","v":false},{"$f":"IF(OR($D41=\"\",$D41=CONST_NA),FALSE,INDEX(Parameters_Constants!$K$101:$AF$118,MATCH($E41,CONST_LIST_Goods,0),MATCH(Q$8,Parameters_Constants!$K$100:$AF$100,0))=FALSE)","v":false},{"$f":"IF(OR($D41=\"\",$D41=CONST_NA),FALSE,INDEX(Parameters_Constants!$K$101:$AF$118,MATCH($E41,CONST_LIST_Goods,0),MATCH(R$8,Parameters_Constants!$K$100:$AF$100,0))=FALSE)","v":false},{"$f":"IF(OR($D41=\"\",$D41=CONST_NA),FALSE,INDEX(Parameters_Constants!$K$101:$AF$118,MATCH($E41,CONST_LIST_Goods,0),MATCH(S$8,Parameters_Constants!$K$100:$AF$100,0))=FALSE)","v":false},{"$f":"IF(OR($D41=\"\",$D41=CONST_NA),FALSE,INDEX(Parameters_Constants!$K$101:$AF$118,MATCH($E41,CONST_LIST_Goods,0),MATCH(T$8,Parameters_Constants!$K$100:$AF$100,0))=FALSE)","v":false},{"$f":"IF(OR($D41=\"\",$D41=CONST_NA),FALSE,INDEX(Parameters_Constants!$K$101:$AF$118,MATCH($E41,CONST_LIST_Goods,0),MATCH(U$8,Parameters_Constants!$K$100:$AF$100,0))=FALSE)","v":false},{"$f":"IF(OR($D41=\"\",$D41=CONST_NA),FALSE,INDEX(Parameters_Constants!$K$101:$AF$118,MATCH($E41,CONST_LIST_Goods,0),MATCH(V$8,Parameters_Constants!$K$100:$AF$100,0))=FALSE)","v":false},{"$f":"IF(OR($D41=\"\",$D41=CONST_NA),FALSE,INDEX(Parameters_Constants!$K$101:$AF$118,MATCH($E41,CONST_LIST_Goods,0),MATCH(W$8,Parameters_Constants!$K$100:$AF$100,0))=FALSE)","v":false},{"$f":"IF(OR($D41=\"\",$D41=CONST_NA),FALSE,INDEX(Parameters_Constants!$K$101:$AF$118,MATCH($E41,CONST_LIST_Goods,0),MATCH(X$8,Parameters_Constants!$K$100:$AF$100,0))=FALSE)","v":false},{"$f":"IF(OR($D41=\"\",$D41=CONST_NA),FALSE,INDEX(Parameters_Constants!$K$101:$AF$118,MATCH($E41,CONST_LIST_Goods,0),MATCH(Y$8,Parameters_Constants!$K$100:$AF$100,0))=FALSE)","v":false},{"$f":"IF(OR($D41=\"\",$D41=CONST_NA),FALSE,INDEX(Parameters_Constants!$K$101:$AF$118,MATCH($E41,CONST_LIST_Goods,0),MATCH(Z$8,Parameters_Constants!$K$100:$AF$100,0))=FALSE)","v":false},{"$f":"IF(OR($D41=\"\",$D41=CONST_NA),FALSE,INDEX(Parameters_Constants!$K$101:$AF$118,MATCH($E41,CONST_LIST_Goods,0),MATCH(AA$8,Parameters_Constants!$K$100:$AF$100,0))=FALSE)","v":false},{"$f":"IF(OR($D41=\"\",$D41=CONST_NA),FALSE,INDEX(Parameters_Constants!$K$101:$AF$118,MATCH($E41,CONST_LIST_Goods,0),MATCH(AB$8,Parameters_Constants!$K$100:$AF$100,0))=FALSE)","v":false},{"$f":"IF(OR($D41=\"\",$D41=CONST_NA),FALSE,INDEX(Parameters_Constants!$K$101:$AF$118,MATCH($E41,CONST_LIST_Goods,0),MATCH(AC$8,Parameters_Constants!$K$100:$AF$100,0))=FALSE)","v":false},{"$f":"IF(OR($D41=\"\",$D41=CONST_NA),FALSE,INDEX(Parameters_Constants!$K$101:$AF$118,MATCH($E41,CONST_LIST_Goods,0),MATCH(AD$8,Parameters_Constants!$K$100:$AF$100,0))=FALSE)","v":false},{"$f":"IF(OR($D41=\"\",$D41=CONST_NA),FALSE,INDEX(Parameters_Constants!$K$101:$AF$118,MATCH($E41,CONST_LIST_Goods,0),MATCH(AE$8,Parameters_Constants!$K$100:$AF$100,0))=FALSE)","v":false},{"$f":"IF(OR($D41=\"\",$D41=CONST_NA),FALSE,INDEX(Parameters_Constants!$K$101:$AF$118,MATCH($E41,CONST_LIST_Goods,0),MATCH(AF$8,Parameters_Constants!$K$100:$AF$100,0))=FALSE)","v":false},{"$f":"IF(OR($D41=\"\",$D41=CONST_NA),FALSE,INDEX(Parameters_Constants!$K$101:$AF$118,MATCH($E41,CONST_LIST_Goods,0),MATCH(AG$8,Parameters_Constants!$K$100:$AF$100,0))=FALSE)","v":false},{"$f":"IF(OR($D41=\"\",$D41=CONST_NA),FALSE,INDEX(Parameters_Constants!$K$101:$AF$118,MATCH($E41,CONST_LIST_Goods,0),MATCH(AH$8,Parameters_Constants!$K$100:$AF$100,0))=FALSE)","v":false},{"$f":"IF(OR($D41=\"\",$D41=CONST_NA),FALSE,INDEX(Parameters_Constants!$K$101:$AF$118,MATCH($E41,CONST_LIST_Goods,0),MATCH(AI$8,Parameters_Constants!$K$100:$AF$100,0))=FALSE)","v":false},{"$f":"IF(OR($D41=\"\",$D41=CONST_NA),FALSE,INDEX(Parameters_Constants!$K$101:$AF$118,MATCH($E41,CONST_LIST_Goods,0),MATCH(AJ$8,Parameters_Constants!$K$100:$AF$100,0))=FALSE)","v":false},{"$f":"IF(OR($D41=\"\",$D41=CONST_NA),FALSE,INDEX(Parameters_Constants!$K$101:$AF$118,MATCH($E41,CONST_LIST_Goods,0),MATCH(AK$8,Parameters_Constants!$K$100:$AF$100,0))=FALSE)","v":false}]
["ausblenden",null,33,null,null,false,null,false,{"$nulls":7},{"$f":"IF(OR($D42=\"\",$D42=CONST_NA),FALSE,INDEX(Parameters_Constants!$K$101:$AF$118,MATCH($E42,CONST_LIST_Goods,0),MATCH(P$8,Parameters_Constants!$K$100:$AF$100,0))=FALSE)","v":false},{"$f":"IF(OR($D42=\"\",$D42=CONST_NA),FALSE,INDEX(Parameters_Constants!$K$101:$AF$118,MATCH($E42,CONST_LIST_Goods,0),MATCH(Q$8,Parameters_Constants!$K$100:$AF$100,0))=FALSE)","v":false},{"$f":"IF(OR($D42=\"\",$D42=CONST_NA),FALSE,INDEX(Parameters_Constants!$K$101:$AF$118,MATCH($E42,CONST_LIST_Goods,0),MATCH(R$8,Parameters_Constants!$K$100:$AF$100,0))=FALSE)","v":false},{"$f":"IF(OR($D42=\"\",$D42=CONST_NA),FALSE,INDEX(Parameters_Constants!$K$101:$AF$118,MATCH($E42,CONST_LIST_Goods,0),MATCH(S$8,Parameters_Constants!$K$100:$AF$100,0))=FALSE)","v":false},{"$f":"IF(OR($D42=\"\",$D42=CONST_NA),FALSE,INDEX(Parameters_Constants!$K$101:$AF$118,MATCH($E42,CONST_LIST_Goods,0),MATCH(T$8,Parameters_Constants!$K$100:$AF$100,0))=FALSE)","v":false},{"$f":"IF(OR($D42=\"\",$D42=CONST_NA),FALSE,INDEX(Parameters_Constants!$K$101:$AF$118,MATCH($E42,CONST_LIST_Goods,0),MATCH(U$8,Parameters_Constants!$K$100:$AF$100,0))=FALSE)","v":false},{"$f":"IF(OR($D42=\"\",$D42=CONST_NA),FALSE,INDEX(Parameters_Constants!$K$101:$AF$118,MATCH($E42,CONST_LIST_Goods,0),MATCH(V$8,Parameters_Constants!$K$100:$AF$100,0))=FALSE)","v":false},{"$f":"IF(OR($D42=\"\",$D42=CONST_NA),FALSE,INDEX(Parameters_Constants!$K$101:$AF$118,MATCH($E42,CONST_LIST_Goods,0),MATCH(W$8,Parameters_Constants!$K$100:$AF$100,0))=FALSE)","v":false},{"$f":"IF(OR($D42=\"\",$D42=CONST_NA),FALSE,INDEX(Parameters_Constants!$K$101:$AF$118,MATCH($E42,CONST_LIST_Goods,0),MATCH(X$8,Parameters_Constants!$K$100:$AF$100,0))=FALSE)","v":false},{"$f":"IF(OR($D42=\"\",$D42=CONST_NA),FALSE,INDEX(Parameters_Constants!$K$101:$AF$118,MATCH($E42,CONST_LIST_Goods,0),MATCH(Y$8,Parameters_Constants!$K$100:$AF$100,0))=FALSE)","v":false},{"$f":"IF(OR($D42=\"\",$D42=CONST_NA),FALSE,INDEX(Parameters_Constants!$K$101:$AF$118,MATCH($E42,CONST_LIST_Goods,0),MATCH(Z$8,Parameters_Constants!$K$100:$AF$100,0))=FALSE)","v":false},{"$f":"IF(OR($D42=\"\",$D42=CONST_NA),FALSE,INDEX(Parameters_Constants!$K$101:$AF$118,MATCH($E42,CONST_LIST_Goods,0),MATCH(AA$8,Parameters_Constants!$K$100:$AF$100,0))=FALSE)","v":false},{"$f":"IF(OR($D42=\"\",$D42=CONST_NA),FALSE,INDEX(Parameters_Constants!$K$101:$AF$118,MATCH($E42,CONST_LIST_Goods,0),MATCH(AB$8,Parameters_Constants!$K$100:$AF$100,0))=FALSE)","v":false},{"$f":"IF(OR($D42=\"\",$D42=CONST_NA),FALSE,INDEX(Parameters_Constants!$K$101:$AF$118,MATCH($E42,CONST_LIST_Goods,0),MATCH(AC$8,Parameters_Constants!$K$100:$AF$100,0))=FALSE)","v":false},{"$f":"IF(OR($D42=\"\",$D42=CONST_NA),FALSE,INDEX(Parameters_Constants!$K$101:$AF$118,MATCH($E42,CONST_LIST_Goods,0),MATCH(AD$8,Parameters_Constants!$K$100:$AF$100,0))=FALSE)","v":false},{"$f":"IF(OR($D42=\"\",$D42=CONST_NA),FALSE,INDEX(Parameters_Constants!$K$101:$AF$118,MATCH($E42,CONST_LIST_Goods,0),MATCH(AE$8,Parameters_Constants!$K$100:$AF$100,0))=FALSE)","v":false},{"$f":"IF(OR($D42=\"\",$D42=CONST_NA),FALSE,INDEX(Parameters_Constants!$K$101:$AF$118,MATCH($E42,CONST_LIST_Goods,0),MATCH(AF$8,Parameters_Constants!$K$100:$AF$100,0))=FALSE)","v":false},{"$f":"IF(OR($D42=\"\",$D42=CONST_NA),FALSE,INDEX(Parameters_Constants!$K$101:$AF$118,MATCH($E42,CONST_LIST_Goods,0),MATCH(AG$8,Parameters_Constants!$K$100:$AF$100,0))=FALSE)","v":false},{"$f":"IF(OR($D42=\"\",$D42=CONST_NA),FALSE,INDEX(Parameters_Constants!$K$101:$AF$118,MATCH($E42,CONST_LIST_Goods,0),MATCH(AH$8,Parameters_Constants!$K$100:$AF$100,0))=FALSE)","v":false},{"$f":"IF(OR($D42=\"\",$D42=CONST_NA),FALSE,INDEX(Parameters_Constants!$K$101:$AF$118,MATCH($E42,CONST_LIST_Goods,0),MATCH(AI$8,Parameters_Constants!$K$100:$AF$100,0))=FALSE)","v":false},{"$f":"IF(OR($D42=\"\",$D42=CONST_NA),FALSE,INDEX(Parameters_Constants!$K$101:$AF$118,MATCH($E42,CONST_LIST_Goods,0),MATCH(AJ$8,Parameters_Constants!$K$100:$AF$100,0))=FALSE)","v":false},{"$f":"IF(OR($D42=\"\",$D42=CONST_NA),FALSE,INDEX(Parameters_Constants!$K$101:$AF$118,MATCH($E42,CONST_LIST_Goods,0),MATCH(AK$8,Parameters_Constants!$K$100:$AF$100,0))=FALSE)","v":false}]
["ausblenden",null,34,null,null,false,null,false,{"$nulls":7},{"$f":"IF(OR($D43=\"\",$D43=CONST_NA),FALSE,INDEX(Parameters_Constants!$K$101:$AF$118,MATCH($E43,CONST_LIST_Goods,0),MATCH(P$8,Parameters_Constants!$K$100:$AF$100,0))=FALSE)","v":false},{"$f":"IF(OR($D43=\"\",$D43=CONST_NA),FALSE,INDEX(Parameters_Constants!$K$101:$AF$118,MATCH($E43,CONST_LIST_Goods,0),MATCH(Q$8,Parameters_Constants!$K$100:$AF$100,0))=FALSE)","v":false},{"$f":"IF(OR($D43=\"\",$D43=CONST_NA),FALSE,INDEX(Parameters_Constants!$K$101:$AF$118,MATCH($E43,CONST_LIST_Goods,0),MATCH(R$8,Parameters_Constants!$K$100:$AF$100,0))=FALSE)","v":false},{"$f":"IF(OR($D43=\"\",$D43=CONST_NA),FALSE,INDEX(Parameters_Constants!$K$101:$AF$118,MATCH($E43,CONST_LIST_Goods,0),MATCH(S$8,Parameters_Constants!$K$100:$AF$100,0))=FALSE)","v":false},{"$f":"IF(OR($D43=\"\",$D43=CONST_NA),FALSE,INDEX(Parameters_Constants!$K$101:$AF$118,MATCH($E43,CONST_LIST_Goods,0),MATCH(T$8,Parameters_Constants!$K$100:$AF$100,0))=FALSE)","v":false},{"$f":"IF(OR($D43=\"\",$D43=CONST_NA),FALSE,INDEX(Parameters_Constants!$K$101:$AF$118,MATCH($E43,CONST_LIST_Goods,0),MATCH(U$8,Parameters_Constants!$K$100:$AF$100,0))=FALSE)","v":false},{"$f":"IF(OR($D43=\"\",$D43=CONST_NA),FALSE,INDEX(Parameters_Constants!$K$101:$AF$118,MATCH($E43,CONST_LIST_Goods,0),MATCH(V$8,Parameters_Constants!$K$100:$AF$100,0))=FALSE)","v":false},{"$f":"IF(OR($D43=\"\",$D43=CONST_NA),FALSE,INDEX(Parameters_Constants!$K$101:$AF$118,MATCH($E43,CONST_LIST_Goods,0),MATCH(W$8,Parameters_Constants!$K$100:$AF$100,0))=FALSE)","v":false},{"$f":"IF(OR($D43=\"\",$D43=CONST_NA),FALSE,INDEX(Parameters_Constants!$K$101:$AF$118,MATCH($E43,CONST_LIST_Goods,0),MATCH(X$8,Parameters_Constants!$K$100:$AF$100,0))=FALSE)","v":false},{"$f":"IF(OR($D43=\"\",$D43=CONST_NA),FALSE,INDEX(Parameters_Constants!$K$101:$AF$118,MATCH($E43,CONST_LIST_Goods,0),MATCH(Y$8,Parameters_Constants!$K$100:$AF$100,0))=FALSE)","v":false},{"$f":"IF(OR($D43=\"\",$D43=CONST_NA),FALSE,INDEX(Parameters_Constants!$K$101:$AF$118,MATCH($E43,CONST_LIST_Goods,0),MATCH(Z$8,Parameters_Constants!$K$100:$AF$100,0))=FALSE)","v":false},{"$f":"IF(OR($D43=\"\",$D43=CONST_NA),FALSE,INDEX(Parameters_Constants!$K$101:$AF$118,MATCH($E43,CONST_LIST_Goods,0),MATCH(AA$8,Parameters_Constants!$K$100:$AF$100,0))=FALSE)","v":false},{"$f":"IF(OR($D43=\"\",$D43=CONST_NA),FALSE,INDEX(Parameters_Constants!$K$101:$AF$118,MATCH($E43,CONST_LIST_Goods,0),MATCH(AB$8,Parameters_Constants!$K$100:$AF$100,0))=FALSE)","v":false},{"$f":"IF(OR($D43=\"\",$D43=CONST_NA),FALSE,INDEX(Parameters_Constants!$K$101:$AF$118,MATCH($E43,CONST_LIST_Goods,0),MATCH(AC$8,Parameters_Constants!$K$100:$AF$100,0))=FALSE)","v":false},{"$f":"IF(OR($D43=\"\",$D43=CONST_NA),FALSE,INDEX(Parameters_Constants!$K$101:$AF$118,MATCH($E43,CONST_LIST_Goods,0),MATCH(AD$8,Parameters_Constants!$K$100:$AF$100,0))=FALSE)","v":false},{"$f":"IF(OR($D43=\"\",$D43=CONST_NA),FALSE,INDEX(Parameters_Constants!$K$101:$AF$118,MATCH($E43,CONST_LIST_Goods,0),MATCH(AE$8,Parameters_Constants!$K$100:$AF$100,0))=FALSE)","v":false},{"$f":"IF(OR($D43=\"\",$D43=CONST_NA),FALSE,INDEX(Parameters_Constants!$K$101:$AF$118,MATCH($E43,CONST_LIST_Goods,0),MATCH(AF$8,Parameters_Constants!$K$100:$AF$100,0))=FALSE)","v":false},{"$f":"IF(OR($D43=\"\",$D43=CONST_NA),FALSE,INDEX(Parameters_Constants!$K$101:$AF$118,MATCH($E43,CONST_LIST_Goods,0),MATCH(AG$8,Parameters_Constants!$K$100:$AF$100,0))=FALSE)","v":false},{"$f":"IF(OR($D43=\"\",$D43=CONST_NA),FALSE,INDEX(Parameters_Constants!$K$101:$AF$118,MATCH($E43,CONST_LIST_Goods,0),MATCH(AH$8,Parameters_Constants!$K$100:$AF$100,0))=FALSE)","v":false},{"$f":"IF(OR($D43=\"\",$D43=CONST_NA),FALSE,INDEX(Parameters_Constants!$K$101:$AF$118,MATCH($E43,CONST_LIST_Goods,0),MATCH(AI$8,Parameters_Constants!$K$100:$AF$100,0))=FALSE)","v":false},{"$f":"IF(OR($D43=\"\",$D43=CONST_NA),FALSE,INDEX(Parameters_Constants!$K$101:$AF$118,MATCH($E43,CONST_LIST_Goods,0),MATCH(AJ$8,Parameters_Constants!$K$100:$AF$100,0))=FALSE)","v":false},{"$f":"IF(OR($D43=\"\",$D43=CONST_NA),FALSE,INDEX(Parameters_Constants!$K$101:$AF$118,MATCH($E43,CONST_LIST_Goods,0),MATCH(AK$8,Parameters_Constants!$K$100:$AF$100,0))=FALSE)","v":false}]
["ausblenden",null,35,null,null,false,null,false,{"$nulls":7},{"$f":"IF(OR($D44=\"\",$D44=CONST_NA),FALSE,INDEX(Parameters_Constants!$K$101:$AF$118,MATCH($E44,CONST_LIST_Goods,0),MATCH(P$8,Parameters_Constants!$K$100:$AF$100,0))=FALSE)","v":false},{"$f":"IF(OR($D44=\"\",$D44=CONST_NA),FALSE,INDEX(Parameters_Constants!$K$101:$AF$118,MATCH($E44,CONST_LIST_Goods,0),MATCH(Q$8,Parameters_Constants!$K$100:$AF$100,0))=FALSE)","v":false},{"$f":"IF(OR($D44=\"\",$D44=CONST_NA),FALSE,INDEX(Parameters_Constants!$K$101:$AF$118,MATCH($E44,CONST_LIST_Goods,0),MATCH(R$8,Parameters_Constants!$K$100:$AF$100,0))=FALSE)","v":false},{"$f":"IF(OR($D44=\"\",$D44=CONST_NA),FALSE,INDEX(Parameters_Constants!$K$101:$AF$118,MATCH($E44,CONST_LIST_Goods,0),MATCH(S$8,Parameters_Constants!$K$100:$AF$100,0))=FALSE)","v":false},{"$f":"IF(OR($D44=\"\",$D44=CONST_NA),FALSE,INDEX(Parameters_Constants!$K$101:$AF$118,MATCH($E44,CONST_LIST_Goods,0),MATCH(T$8,Parameters_Constants!$K$100:$AF$100,0))=FALSE)","v":false},{"$f":"IF(OR($D44=\"\",$D44=CONST_NA),FALSE,INDEX(Parameters_Constants!$K$101:$AF$118,MATCH($E44,CONST_LIST_Goods,0),MATCH(U$8,Parameters_Constants!$K$100:$AF$100,0))=FALSE)","v":false},{"$f":"IF(OR($D44=\"\",$D44=CONST_NA),FALSE,INDEX(Parameters_Constants!$K$101:$AF$118,MATCH($E44,CONST_LIST_Goods,0),MATCH(V$8,Parameters_Constants!$K$100:$AF$100,0))=FALSE)","v":false},{"$f":"IF(OR($D44=\"\",$D44=CONST_NA),FALSE,INDEX(Parameters_Constants!$K$101:$AF$118,MATCH($E44,CONST_LIST_Goods,0),MATCH(W$8,Parameters_Constants!$K$100:$AF$100,0))=FALSE)","v":false},{"$f":"IF(OR($D44=\"\",$D44=CONST_NA),FALSE,INDEX(Parameters_Constants!$K$101:$AF$118,MATCH($E44,CONST_LIST_Goods,0),MATCH(X$8,Parameters_Constants!$K$100:$AF$100,0))=FALSE)","v":false},{"$f":"IF(OR($D44=\"\",$D44=CONST_NA),FALSE,INDEX(Parameters_Constants!$K$101:$AF$118,MATCH($E44,CONST_LIST_Goods,0),MATCH(Y$8,Parameters_Constants!$K$100:$AF$100,0))=FALSE)","v":false},{"$f":"IF(OR($D44=\"\",$D44=CONST_NA),FALSE,INDEX(Parameters_Constants!$K$101:$AF$118,MATCH($E44,CONST_LIST_Goods,0),MATCH(Z$8,Parameters_Constants!$K$100:$AF$100,0))=FALSE)","v":false},{"$f":"IF(OR($D44=\"\",$D44=CONST_NA),FALSE,INDEX(Parameters_Constants!$K$101:$AF$118,MATCH($E44,CONST_LIST_Goods,0),MATCH(AA$8,Parameters_Constants!$K$100:$AF$100,0))=FALSE)","v":false},{"$f":"IF(OR($D44=\"\",$D44=CONST_NA),FALSE,INDEX(Parameters_Constants!$K$101:$AF$118,MATCH($E44,CONST_LIST_Goods,0),MATCH(AB$8,Parameters_Constants!$K$100:$AF$100,0))=FALSE)","v":false},{"$f":"IF(OR($D44=\"\",$D44=CONST_NA),FALSE,INDEX(Parameters_Constants!$K$101:$AF$118,MATCH($E44,CONST_LIST_Goods,0),MATCH(AC$8,Parameters_Constants!$K$100:$AF$100,0))=FALSE)","v":false},{"$f":"IF(OR($D44=\"\",$D44=CONST_NA),FALSE,INDEX(Parameters_Constants!$K$101:$AF$118,MATCH($E44,CONST_LIST_Goods,0),MATCH(AD$8,Parameters_Constants!$K$100:$AF$100,0))=FALSE)","v":false},{"$f":"IF(OR($D44=\"\",$D44=CONST_NA),FALSE,INDEX(Parameters_Constants!$K$101:$AF$118,MATCH($E44,CONST_LIST_Goods,0),MATCH(AE$8,Parameters_Constants!$K$100:$AF$100,0))=FALSE)","v":false},{"$f":"IF(OR($D44=\"\",$D44=CONST_NA),FALSE,INDEX(Parameters_Constants!$K$101:$AF$118,MATCH($E44,CONST_LIST_Goods,0),MATCH(AF$8,Parameters_Constants!$K$100:$AF$100,0))=FALSE)","v":false},{"$f":"IF(OR($D44=\"\",$D44=CONST_NA),FALSE,INDEX(Parameters_Constants!$K$101:$AF$118,MATCH($E44,CONST_LIST_Goods,0),MATCH(AG$8,Parameters_Constants!$K$100:$AF$100,0))=FALSE)","v":false},{"$f":"IF(OR($D44=\"\",$D44=CONST_NA),FALSE,INDEX(Parameters_Constants!$K$101:$AF$118,MATCH($E44,CONST_LIST_Goods,0),MATCH(AH$8,Parameters_Constants!$K$100:$AF$100,0))=FALSE)","v":false},{"$f":"IF(OR($D44=\"\",$D44=CONST_NA),FALSE,INDEX(Parameters_Constants!$K$101:$AF$118,MATCH($E44,CONST_LIST_Goods,0),MATCH(AI$8,Parameters_Constants!$K$100:$AF$100,0))=FALSE)","v":false},{"$f":"IF(OR($D44=\"\",$D44=CONST_NA),FALSE,INDEX(Parameters_Constants!$K$101:$AF$118,MATCH($E44,CONST_LIST_Goods,0),MATCH(AJ$8,Parameters_Constants!$K$100:$AF$100,0))=FALSE)","v":false},{"$f":"IF(OR($D44=\"\",$D44=CONST_NA),FALSE,INDEX(Parameters_Constants!$K$101:$AF$118,MATCH($E44,CONST_LIST_Goods,0),MATCH(AK$8,Parameters_Constants!$K$100:$AF$100,0))=FALSE)","v":false}]
["ausblenden",null,36,null,null,false,null,false,{"$nulls":7},{"$f":"IF(OR($D45=\"\",$D45=CONST_NA),FALSE,INDEX(Parameters_Constants!$K$101:$AF$118,MATCH($E45,CONST_LIST_Goods,0),MATCH(P$8,Parameters_Constants!$K$100:$AF$100,0))=FALSE)","v":false},{"$f":"IF(OR($D45=\"\",$D45=CONST_NA),FALSE,INDEX(Parameters_Constants!$K$101:$AF$118,MATCH($E45,CONST_LIST_Goods,0),MATCH(Q$8,Parameters_Constants!$K$100:$AF$100,0))=FALSE)","v":false},{"$f":"IF(OR($D45=\"\",$D45=CONST_NA),FALSE,INDEX(Parameters_Constants!$K$101:$AF$118,MATCH($E45,CONST_LIST_Goods,0),MATCH(R$8,Parameters_Constants!$K$100:$AF$100,0))=FALSE)","v":false},{"$f":"IF(OR($D45=\"\",$D45=CONST_NA),FALSE,INDEX(Parameters_Constants!$K$101:$AF$118,MATCH($E45,CONST_LIST_Goods,0),MATCH(S$8,Parameters_Constants!$K$100:$AF$100,0))=FALSE)","v":false},{"$f":"IF(OR($D45=\"\",$D45=CONST_NA),FALSE,INDEX(Parameters_Constants!$K$101:$AF$118,MATCH($E45,CONST_LIST_Goods,0),MATCH(T$8,Parameters_Constants!$K$100:$AF$100,0))=FALSE)","v":false},{"$f":"IF(OR($D45=\"\",$D45=CONST_NA),FALSE,INDEX(Parameters_Constants!$K$101:$AF$118,MATCH($E45,CONST_LIST_Goods,0),MATCH(U$8,Parameters_Constants!$K$100:$AF$100,0))=FALSE)","v":false},{"$f":"IF(OR($D45=\"\",$D45=CONST_NA),FALSE,INDEX(Parameters_Constants!$K$101:$AF$118,MATCH($E45,CONST_LIST_Goods,0),MATCH(V$8,Parameters_Constants!$K$100:$AF$100,0))=FALSE)","v":false},{"$f":"IF(OR($D45=\"\",$D45=CONST_NA),FALSE,INDEX(Parameters_Constants!$K$101:$AF$118,MATCH($E45,CONST_LIST_Goods,0),MATCH(W$8,Parameters_Constants!$K$100:$AF$100,0))=FALSE)","v":false},{"$f":"IF(OR($D45=\"\",$D45=CONST_NA),FALSE,INDEX(Parameters_Constants!$K$101:$AF$118,MATCH($E45,CONST_LIST_Goods,0),MATCH(X$8,Parameters_Constants!$K$100:$AF$100,0))=FALSE)","v":false},{"$f":"IF(OR($D45=\"\",$D45=CONST_NA),FALSE,INDEX(Parameters_Constants!$K$101:$AF$118,MATCH($E45,CONST_LIST_Goods,0),MATCH(Y$8,Parameters_Constants!$K$100:$AF$100,0))=FALSE)","v":false},{"$f":"IF(OR($D45=\"\",$D45=CONST_NA),FALSE,INDEX(Parameters_Constants!$K$101:$AF$118,MATCH($E45,CONST_LIST_Goods,0),MATCH(Z$8,Parameters_Constants!$K$100:$AF$100,0))=FALSE)","v":false},{"$f":"IF(OR($D45=\"\",$D45=CONST_NA),FALSE,INDEX(Parameters_Constants!$K$101:$AF$118,MATCH($E45,CONST_LIST_Goods,0),MATCH(AA$8,Parameters_Constants!$K$100:$AF$100,0))=FALSE)","v":false},{"$f":"IF(OR($D45=\"\",$D45=CONST_NA),FALSE,INDEX(Parameters_Constants!$K$101:$AF$118,MATCH($E45,CONST_LIST_Goods,0),MATCH(AB$8,Parameters_Constants!$K$100:$AF$100,0))=FALSE)","v":false},{"$f":"IF(OR($D45=\"\",$D45=CONST_NA),FALSE,INDEX(Parameters_Constants!$K$101:$AF$118,MATCH($E45,CONST_LIST_Goods,0),MATCH(AC$8,Parameters_Constants!$K$100:$AF$100,0))=FALSE)","v":false},{"$f":"IF(OR($D45=\"\",$D45=CONST_NA),FALSE,INDEX(Parameters_Constants!$K$101:$AF$118,MATCH($E45,CONST_LIST_Goods,0),MATCH(AD$8,Parameters_Constants!$K$100:$AF$100,0))=FALSE)","v":false},{"$f":"IF(OR($D45=\"\",$D45=CONST_NA),FALSE,INDEX(Parameters_Constants!$K$101:$AF$118,MATCH($E45,CONST_LIST_Goods,0),MATCH(AE$8,Parameters_Constants!$K$100:$AF$100,0))=FALSE)","v":false},{"$f":"IF(OR($D45=\"\",$D45=CONST_NA),FALSE,INDEX(Parameters_Constants!$K$101:$AF$118,MATCH($E45,CONST_LIST_Goods,0),MATCH(AF$8,Parameters_Constants!$K$100:$AF$100,0))=FALSE)","v":false},{"$f":"IF(OR($D45=\"\",$D45=CONST_NA),FALSE,INDEX(Parameters_Constants!$K$101:$AF$118,MATCH($E45,CONST_LIST_Goods,0),MATCH(AG$8,Parameters_Constants!$K$100:$AF$100,0))=FALSE)","v":false},{"$f":"IF(OR($D45=\"\",$D45=CONST_NA),FALSE,INDEX(Parameters_Constants!$K$101:$AF$118,MATCH($E45,CONST_LIST_Goods,0),MATCH(AH$8,Parameters_Constants!$K$100:$AF$100,0))=FALSE)","v":false},{"$f":"IF(OR($D45=\"\",$D45=CONST_NA),FALSE,INDEX(Parameters_Constants!$K$101:$AF$118,MATCH($E45,CONST_LIST_Goods,0),MATCH(AI$8,Parameters_Constants!$K$100:$AF$100,0))=FALSE)","v":false},{"$f":"IF(OR($D45=\"\",$D45=CONST_NA),FALSE,INDEX(Parameters_Constants!$K$101:$AF$118,MATCH($E45,CONST_LIST_Goods,0),MATCH(AJ$8,Parameters_Constants!$K$100:$AF$100,0))=FALSE)","v":false},{"$f":"IF(OR($D45=\"\",$D45=CONST_NA),FALSE,INDEX(Parameters_Constants!$K$101:$AF$118,MATCH($E45,CONST_LIST_Goods,0),MATCH(AK$8,Parameters_Constants!$K$100:$AF$100,0))=FALSE)","v":false}]
["ausblenden",null,37,null,null,false,null,false,{"$nulls":7},{"$f":"IF(OR($D46=\"\",$D46=CONST_NA),FALSE,INDEX(Parameters_Constants!$K$101:$AF$118,MATCH($E46,CONST_LIST_Goods,0),MATCH(P$8,Parameters_Constants!$K$100:$AF$100,0))=FALSE)","v":false},{"$f":"IF(OR($D46=\"\",$D46=CONST_NA),FALSE,INDEX(Parameters_Constants!$K$101:$AF$118,MATCH($E46,CONST_LIST_Goods,0),MATCH(Q$8,Parameters_Constants!$K$100:$AF$100,0))=FALSE)","v":false},{"$f":"IF(OR($D46=\"\",$D46=CONST_NA),FALSE,INDEX(Parameters_Constants!$K$101:$AF$118,MATCH($E46,CONST_LIST_Goods,0),MATCH(R$8,Parameters_Constants!$K$100:$AF$100,0))=FALSE)","v":false},{"$f":"IF(OR($D46=\"\",$D46=CONST_NA),FALSE,INDEX(Parameters_Constants!$K$101:$AF$118,MATCH($E46,CONST_LIST_Goods,0),MATCH(S$8,Parameters_Constants!$K$100:$AF$100,0))=FALSE)","v":false},{"$f":"IF(OR($D46=\"\",$D46=CONST_NA),FALSE,INDEX(Parameters_Constants!$K$101:$AF$118,MATCH($E46,CONST_LIST_Goods,0),MATCH(T$8,Parameters_Constants!$K$100:$AF$100,0))=FALSE)","v":false},{"$f":"IF(OR($D46=\"\",$D46=CONST_NA),FALSE,INDEX(Parameters_Constants!$K$101:$AF$118,MATCH($E46,CONST_LIST_Goods,0),MATCH(U$8,Parameters_Constants!$K$100:$AF$100,0))=FALSE)","v":false},{"$f":"IF(OR($D46=\"\",$D46=CONST_NA),FALSE,INDEX(Parameters_Constants!$K$101:$AF$118,MATCH($E46,CONST_LIST_Goods,0),MATCH(V$8,Parameters_Constants!$K$100:$AF$100,0))=FALSE)","v":false},{"$f":"IF(OR($D46=\"\",$D46=CONST_NA),FALSE,INDEX(Parameters_Constants!$K$101:$AF$118,MATCH($E46,CONST_LIST_Goods,0),MATCH(W$8,Parameters_Constants!$K$100:$AF$100,0))=FALSE)","v":false},{"$f":"IF(OR($D46=\"\",$D46=CONST_NA),FALSE,INDEX(Parameters_Constants!$K$101:$AF$118,MATCH($E46,CONST_LIST_Goods,0),MATCH(X$8,Parameters_Constants!$K$100:$AF$100,0))=FALSE)","v":false},{"$f":"IF(OR($D46=\"\",$D46=CONST_NA),FALSE,INDEX(Parameters_Constants!$K$101:$AF$118,MATCH($E46,CONST_LIST_Goods,0),MATCH(Y$8,Parameters_Constants!$K$100:$AF$100,0))=FALSE)","v":false},{"$f":"IF(OR($D46=\"\",$D46=CONST_NA),FALSE,INDEX(Parameters_Constants!$K$101:$AF$118,MATCH($E46,CONST_LIST_Goods,0),MATCH(Z$8,Parameters_Constants!$K$100:$AF$100,0))=FALSE)","v":false},{"$f":"IF(OR($D46=\"\",$D46=CONST_NA),FALSE,INDEX(Parameters_Constants!$K$101:$AF$118,MATCH($E46,CONST_LIST_Goods,0),MATCH(AA$8,Parameters_Constants!$K$100:$AF$100,0))=FALSE)","v":false},{"$f":"IF(OR($D46=\"\",$D46=CONST_NA),FALSE,INDEX(Parameters_Constants!$K$101:$AF$118,MATCH($E46,CONST_LIST_Goods,0),MATCH(AB$8,Parameters_Constants!$K$100:$AF$100,0))=FALSE)","v":false},{"$f":"IF(OR($D46=\"\",$D46=CONST_NA),FALSE,INDEX(Parameters_Constants!$K$101:$AF$118,MATCH($E46,CONST_LIST_Goods,0),MATCH(AC$8,Parameters_Constants!$K$100:$AF$100,0))=FALSE)","v":false},{"$f":"IF(OR($D46=\"\",$D46=CONST_NA),FALSE,INDEX(Parameters_Constants!$K$101:$AF$118,MATCH($E46,CONST_LIST_Goods,0),MATCH(AD$8,Parameters_Constants!$K$100:$AF$100,0))=FALSE)","v":false},{"$f":"IF(OR($D46=\"\",$D46=CONST_NA),FALSE,INDEX(Parameters_Constants!$K$101:$AF$118,MATCH($E46,CONST_LIST_Goods,0),MATCH(AE$8,Parameters_Constants!$K$100:$AF$100,0))=FALSE)","v":false},{"$f":"IF(OR($D46=\"\",$D46=CONST_NA),FALSE,INDEX(Parameters_Constants!$K$101:$AF$118,MATCH($E46,CONST_LIST_Goods,0),MATCH(AF$8,Parameters_Constants!$K$100:$AF$100,0))=FALSE)","v":false},{"$f":"IF(OR($D46=\"\",$D46=CONST_NA),FALSE,INDEX(Parameters_Constants!$K$101:$AF$118,MATCH($E46,CONST_LIST_Goods,0),MATCH(AG$8,Parameters_Constants!$K$100:$AF$100,0))=FALSE)","v":false},{"$f":"IF(OR($D46=\"\",$D46=CONST_NA),FALSE,INDEX(Parameters_Constants!$K$101:$AF$118,MATCH($E46,CONST_LIST_Goods,0),MATCH(AH$8,Parameters_Constants!$K$100:$AF$100,0))=FALSE)","v":false},{"$f":"IF(OR($D46=\"\",$D46=CONST_NA),FALSE,INDEX(Parameters_Constants!$K$101:$AF$118,MATCH($E46,CONST_LIST_Goods,0),MATCH(AI$8,Parameters_Constants!$K$100:$AF$100,0))=FALSE)","v":false},{"$f":"IF(OR($D46=\"\",$D46=CONST_NA),FALSE,INDEX(Parameters_Constants!$K$101:$AF$118,MATCH($E46,CONST_LIST_Goods,0),MATCH(AJ$8,Parameters_Constants!$K$100:$AF$100,0))=FALSE)","v":false},{"$f":"IF(OR($D46=\"\",$D46=CONST_NA),FALSE,INDEX(Parameters_Constants!$K$101:$AF$118,MATCH($E46,CONST_LIST_Goods,0),MATCH(AK$8,Parameters_Constants!$K$100:$AF$100,0))=FALSE)","v":false}]
["ausblenden",null,38,null,null,false,null,false,{"$nulls":7},{"$f":"IF(OR($D47=\"\",$D47=CONST_NA),FALSE,INDEX(Parameters_Constants!$K$101:$AF$118,MATCH($E47,CONST_LIST_Goods,0),MATCH(P$8,Parameters_Constants!$K$100:$AF$100,0))=FALSE)","v":false},{"$f":"IF(OR($D47=\"\",$D47=CONST_NA),FALSE,INDEX(Parameters_Constants!$K$101:$AF$118,MATCH($E47,CONST_LIST_Goods,0),MATCH(Q$8,Parameters_Constants!$K$100:$AF$100,0))=FALSE)","v":false},{"$f":"IF(OR($D47=\"\",$D47=CONST_NA),FALSE,INDEX(Parameters_Constants!$K$101:$AF$118,MATCH($E47,CONST_LIST_Goods,0),MATCH(R$8,Parameters_Constants!$K$100:$AF$100,0))=FALSE)","v":false},{"$f":"IF(OR($D47=\"\",$D47=CONST_NA),FALSE,INDEX(Parameters_Constants!$K$101:$AF$118,MATCH($E47,CONST_LIST_Goods,0),MATCH(S$8,Parameters_Constants!$K$100:$AF$100,0))=FALSE)","v":false},{"$f":"IF(OR($D47=\"\",$D47=CONST_NA),FALSE,INDEX(Parameters_Constants!$K$101:$AF$118,MATCH($E47,CONST_LIST_Goods,0),MATCH(T$8,Parameters_Constants!$K$100:$AF$100,0))=FALSE)","v":false},{"$f":"IF(OR($D47=\"\",$D47=CONST_NA),FALSE,INDEX(Parameters_Constants!$K$101:$AF$118,MATCH($E47,CONST_LIST_Goods,0),MATCH(U$8,Parameters_Constants!$K$100:$AF$100,0))=FALSE)","v":false},{"$f":"IF(OR($D47=\"\",$D47=CONST_NA),FALSE,INDEX(Parameters_Constants!$K$101:$AF$118,MATCH($E47,CONST_LIST_Goods,0),MATCH(V$8,Parameters_Constants!$K$100:$AF$100,0))=FALSE)","v":false},{"$f":"IF(OR($D47=\"\",$D47=CONST_NA),FALSE,INDEX(Parameters_Constants!$K$101:$AF$118,MATCH($E47,CONST_LIST_Goods,0),MATCH(W$8,Parameters_Constants!$K$100:$AF$100,0))=FALSE)","v":false},{"$f":"IF(OR($D47=\"\",$D47=CONST_NA),FALSE,INDEX(Parameters_Constants!$K$101:$AF$118,MATCH($E47,CONST_LIST_Goods,0),MATCH(X$8,Parameters_Constants!$K$100:$AF$100,0))=FALSE)","v":false},{"$f":"IF(OR($D47=\"\",$D47=CONST_NA),FALSE,INDEX(Parameters_Constants!$K$101:$AF$118,MATCH($E47,CONST_LIST_Goods,0),MATCH(Y$8,Parameters_Constants!$K$100:$AF$100,0))=FALSE)","v":false},{"$f":"IF(OR($D47=\"\",$D47=CONST_NA),FALSE,INDEX(Parameters_Constants!$K$101:$AF$118,MATCH($E47,CONST_LIST_Goods,0),MATCH(Z$8,Parameters_Constants!$K$100:$AF$100,0))=FALSE)","v":false},{"$f":"IF(OR($D47=\"\",$D47=CONST_NA),FALSE,INDEX(Parameters_Constants!$K$101:$AF$118,MATCH($E47,CONST_LIST_Goods,0),MATCH(AA$8,Parameters_Constants!$K$100:$AF$100,0))=FALSE)","v":false},{"$f":"IF(OR($D47=\"\",$D47=CONST_NA),FALSE,INDEX(Parameters_Constants!$K$101:$AF$118,MATCH($E47,CONST_LIST_Goods,0),MATCH(AB$8,Parameters_Constants!$K$100:$AF$100,0))=FALSE)","v":false},{"$f":"IF(OR($D47=\"\",$D47=CONST_NA),FALSE,INDEX(Parameters_Constants!$K$101:$AF$118,MATCH($E47,CONST_LIST_Goods,0),MATCH(AC$8,Parameters_Constants!$K$100:$AF$100,0))=FALSE)","v":false},{"$f":"IF(OR($D47=\"\",$D47=CONST_NA),FALSE,INDEX(Parameters_Constants!$K$101:$AF$118,MATCH($E47,CONST_LIST_Goods,0),MATCH(AD$8,Parameters_Constants!$K$100:$AF$100,0))=FALSE)","v":false},{"$f":"IF(OR($D47=\"\",$D47=CONST_NA),FALSE,INDEX(Parameters_Constants!$K$101:$AF$118,MATCH($E47,CONST_LIST_Goods,0),MATCH(AE$8,Parameters_Constants!$K$100:$AF$100,0))=FALSE)","v":false},{"$f":"IF(OR($D47=\"\",$D47=CONST_NA),FALSE,INDEX(Parameters_Constants!$K$101:$AF$118,MATCH($E47,CONST_LIST_Goods,0),MATCH(AF$8,Parameters_Constants!$K$100:$AF$100,0))=FALSE)","v":false},{"$f":"IF(OR($D47=\"\",$D47=CONST_NA),FALSE,INDEX(Parameters_Constants!$K$101:$AF$118,MATCH($E47,CONST_LIST_Goods,0),MATCH(AG$8,Parameters_Constants!$K$100:$AF$100,0))=FALSE)","v":false},{"$f":"IF(OR($D47=\"\",$D47=CONST_NA),FALSE,INDEX(Parameters_Constants!$K$101:$AF$118,MATCH($E47,CONST_LIST_Goods,0),MATCH(AH$8,Parameters_Constants!$K$100:$AF$100,0))=FALSE)","v":false},{"$f":"IF(OR($D47=\"\",$D47=CONST_NA),FALSE,INDEX(Parameters_Constants!$K$101:$AF$118,MATCH($E47,CONST_LIST_Goods,0),MATCH(AI$8,Parameters_Constants!$K$100:$AF$100,0))=FALSE)","v":false},{"$f":"IF(OR($D47=\"\",$D47=CONST_NA),FALSE,INDEX(Parameters_Constants!$K$101:$AF$118,MATCH($E47,CONST_LIST_Goods,0),MATCH(AJ$8,Parameters_Constants!$K$100:$AF$100,0))=FALSE)","v":false},{"$f":"IF(OR($D47=\"\",$D47=CONST_NA),FALSE,INDEX(Parameters_Constants!$K$101:$AF$118,MATCH($E47,CONST_LIST_Goods,0),MATCH(AK$8,Parameters_Constants!$K$100:$AF$100,0))=FALSE)","v":false}]
["ausblenden",null,39,null,null,false,null,false,{"$nulls":7},{"$f":"IF(OR($D48=\"\",$D48=CONST_NA),FALSE,INDEX(Parameters_Constants!$K$101:$AF$118,MATCH($E48,CONST_LIST_Goods,0),MATCH(P$8,Parameters_Constants!$K$100:$AF$100,0))=FALSE)","v":false},{"$f":"IF(OR($D48=\"\",$D48=CONST_NA),FALSE,INDEX(Parameters_Constants!$K$101:$AF$118,MATCH($E48,CONST_LIST_Goods,0),MATCH(Q$8,Parameters_Constants!$K$100:$AF$100,0))=FALSE)","v":false},{"$f":"IF(OR($D48=\"\",$D48=CONST_NA),FALSE,INDEX(Parameters_Constants!$K$101:$AF$118,MATCH($E48,CONST_LIST_Goods,0),MATCH(R$8,Parameters_Constants!$K$100:$AF$100,0))=FALSE)","v":false},{"$f":"IF(OR($D48=\"\",$D48=CONST_NA),FALSE,INDEX(Parameters_Constants!$K$101:$AF$118,MATCH($E48,CONST_LIST_Goods,0),MATCH(S$8,Parameters_Constants!$K$100:$AF$100,0))=FALSE)","v":false},{"$f":"IF(OR($D48=\"\",$D48=CONST_NA),FALSE,INDEX(Parameters_Constants!$K$101:$AF$118,MATCH($E48,CONST_LIST_Goods,0),MATCH(T$8,Parameters_Constants!$K$100:$AF$100,0))=FALSE)","v":false},{"$f":"IF(OR($D48=\"\",$D48=CONST_NA),FALSE,INDEX(Parameters_Constants!$K$101:$AF$118,MATCH($E48,CONST_LIST_Goods,0),MATCH(U$8,Parameters_Constants!$K$100:$AF$100,0))=FALSE)","v":false},{"$f":"IF(OR($D48=\"\",$D48=CONST_NA),FALSE,INDEX(Parameters_Constants!$K$101:$AF$118,MATCH($E48,CONST_LIST_Goods,0),MATCH(V$8,Parameters_Constants!$K$100:$AF$100,0))=FALSE)","v":false},{"$f":"IF(OR($D48=\"\",$D48=CONST_NA),FALSE,INDEX(Parameters_Constants!$K$101:$AF$118,MATCH($E48,CONST_LIST_Goods,0),MATCH(W$8,Parameters_Constants!$K$100:$AF$100,0))=FALSE)","v":false},{"$f":"IF(OR($D48=\"\",$D48=CONST_NA),FALSE,INDEX(Parameters_Constants!$K$101:$AF$118,MATCH($E48,CONST_LIST_Goods,0),MATCH(X$8,Parameters_Constants!$K$100:$AF$100,0))=FALSE)","v":false},{"$f":"IF(OR($D48=\"\",$D48=CONST_NA),FALSE,INDEX(Parameters_Constants!$K$101:$AF$118,MATCH($E48,CONST_LIST_Goods,0),MATCH(Y$8,Parameters_Constants!$K$100:$AF$100,0))=FALSE)","v":false},{"$f":"IF(OR($D48=\"\",$D48=CONST_NA),FALSE,INDEX(Parameters_Constants!$K$101:$AF$118,MATCH($E48,CONST_LIST_Goods,0),MATCH(Z$8,Parameters_Constants!$K$100:$AF$100,0))=FALSE)","v":false},{"$f":"IF(OR($D48=\"\",$D48=CONST_NA),FALSE,INDEX(Parameters_Constants!$K$101:$AF$118,MATCH($E48,CONST_LIST_Goods,0),MATCH(AA$8,Parameters_Constants!$K$100:$AF$100,0))=FALSE)","v":false},{"$f":"IF(OR($D48=\"\",$D48=CONST_NA),FALSE,INDEX(Parameters_Constants!$K$101:$AF$118,MATCH($E48,CONST_LIST_Goods,0),MATCH(AB$8,Parameters_Constants!$K$100:$AF$100,0))=FALSE)","v":false},{"$f":"IF(OR($D48=\"\",$D48=CONST_NA),FALSE,INDEX(Parameters_Constants!$K$101:$AF$118,MATCH($E48,CONST_LIST_Goods,0),MATCH(AC$8,Parameters_Constants!$K$100:$AF$100,0))=FALSE)","v":false},{"$f":"IF(OR($D48=\"\",$D48=CONST_NA),FALSE,INDEX(Parameters_Constants!$K$101:$AF$118,MATCH($E48,CONST_LIST_Goods,0),MATCH(AD$8,Parameters_Constants!$K$100:$AF$100,0))=FALSE)","v":false},{"$f":"IF(OR($D48=\"\",$D48=CONST_NA),FALSE,INDEX(Parameters_Constants!$K$101:$AF$118,MATCH($E48,CONST_LIST_Goods,0),MATCH(AE$8,Parameters_Constants!$K$100:$AF$100,0))=FALSE)","v":false},{"$f":"IF(OR($D48=\"\",$D48=CONST_NA),FALSE,INDEX(Parameters_Constants!$K$101:$AF$118,MATCH($E48,CONST_LIST_Goods,0),MATCH(AF$8,Parameters_Constants!$K$100:$AF$100,0))=FALSE)","v":false},{"$f":"IF(OR($D48=\"\",$D48=CONST_NA),FALSE,INDEX(Parameters_Constants!$K$101:$AF$118,MATCH($E48,CONST_LIST_Goods,0),MATCH(AG$8,Parameters_Constants!$K$100:$AF$100,0))=FALSE)","v":false},{"$f":"IF(OR($D48=\"\",$D48=CONST_NA),FALSE,INDEX(Parameters_Constants!$K$101:$AF$118,MATCH($E48,CONST_LIST_Goods,0),MATCH(AH$8,Parameters_Constants!$K$100:$AF$100,0))=FALSE)","v":false},{"$f":"IF(OR($D48=\"\",$D48=CONST_NA),FALSE,INDEX(Parameters_Constants!$K$101:$AF$118,MATCH($E48,CONST_LIST_Goods,0),MATCH(AI$8,Parameters_Constants!$K$100:$AF$100,0))=FALSE)","v":false},{"$f":"IF(OR($D48=\"\",$D48=CONST_NA),FALSE,INDEX(Parameters_Constants!$K$101:$AF$118,MATCH($E48,CONST_LIST_Goods,0),MATCH(AJ$8,Parameters_Constants!$K$100:$AF$100,0))=FALSE)","v":false},{"$f":"IF(OR($D48=\"\",$D48=CONST_NA),FALSE,INDEX(Parameters_Constants!$K$101:$AF$118,MATCH($E48,CONST_LIST_Goods,0),MATCH(AK$8,Parameters_Constants!$K$100:$AF$100,0))=FALSE)","v":false}]
["ausblenden",null,40,null,null,false,null,false,{"$nulls":7},{"$f":"IF(OR($D49=\"\",$D49=CONST_NA),FALSE,INDEX(Parameters_Constants!$K$101:$AF$118,MATCH($E49,CONST_LIST_Goods,0),MATCH(P$8,Parameters_Constants!$K$100:$AF$100,0))=FALSE)","v":false},{"$f":"IF(OR($D49=\"\",$D49=CONST_NA),FALSE,INDEX(Parameters_Constants!$K$101:$AF$118,MATCH($E49,CONST_LIST_Goods,0),MATCH(Q$8,Parameters_Constants!$K$100:$AF$100,0))=FALSE)","v":false},{"$f":"IF(OR($D49=\"\",$D49=CONST_NA),FALSE,INDEX(Parameters_Constants!$K$101:$AF$118,MATCH($E49,CONST_LIST_Goods,0),MATCH(R$8,Parameters_Constants!$K$100:$AF$100,0))=FALSE)","v":false},{"$f":"IF(OR($D49=\"\",$D49=CONST_NA),FALSE,INDEX(Parameters_Constants!$K$101:$AF$118,MATCH($E49,CONST_LIST_Goods,0),MATCH(S$8,Parameters_Constants!$K$100:$AF$100,0))=FALSE)","v":false},{"$f":"IF(OR($D49=\"\",$D49=CONST_NA),FALSE,INDEX(Parameters_Constants!$K$101:$AF$118,MATCH($E49,CONST_LIST_Goods,0),MATCH(T$8,Parameters_Constants!$K$100:$AF$100,0))=FALSE)","v":false},{"$f":"IF(OR($D49=\"\",$D49=CONST_NA),FALSE,INDEX(Parameters_Constants!$K$101:$AF$118,MATCH($E49,CONST_LIST_Goods,0),MATCH(U$8,Parameters_Constants!$K$100:$AF$100,0))=FALSE)","v":false},{"$f":"IF(OR($D49=\"\",$D49=CONST_NA),FALSE,INDEX(Parameters_Constants!$K$101:$AF$118,MATCH($E49,CONST_LIST_Goods,0),MATCH(V$8,Parameters_Constants!$K$100:$AF$100,0))=FALSE)","v":false},{"$f":"IF(OR($D49=\"\",$D49=CONST_NA),FALSE,INDEX(Parameters_Constants!$K$101:$AF$118,MATCH($E49,CONST_LIST_Goods,0),MATCH(W$8,Parameters_Constants!$K$100:$AF$100,0))=FALSE)","v":false},{"$f":"IF(OR($D49=\"\",$D49=CONST_NA),FALSE,INDEX(Parameters_Constants!$K$101:$AF$118,MATCH($E49,CONST_LIST_Goods,0),MATCH(X$8,Parameters_Constants!$K$100:$AF$100,0))=FALSE)","v":false},{"$f":"IF(OR($D49=\"\",$D49=CONST_NA),FALSE,INDEX(Parameters_Constants!$K$101:$AF$118,MATCH($E49,CONST_LIST_Goods,0),MATCH(Y$8,Parameters_Constants!$K$100:$AF$100,0))=FALSE)","v":false},{"$f":"IF(OR($D49=\"\",$D49=CONST_NA),FALSE,INDEX(Parameters_Constants!$K$101:$AF$118,MATCH($E49,CONST_LIST_Goods,0),MATCH(Z$8,Parameters_Constants!$K$100:$AF$100,0))=FALSE)","v":false},{"$f":"IF(OR($D49=\"\",$D49=CONST_NA),FALSE,INDEX(Parameters_Constants!$K$101:$AF$118,MATCH($E49,CONST_LIST_Goods,0),MATCH(AA$8,Parameters_Constants!$K$100:$AF$100,0))=FALSE)","v":false},{"$f":"IF(OR($D49=\"\",$D49=CONST_NA),FALSE,INDEX(Parameters_Constants!$K$101:$AF$118,MATCH($E49,CONST_LIST_Goods,0),MATCH(AB$8,Parameters_Constants!$K$100:$AF$100,0))=FALSE)","v":false},{"$f":"IF(OR($D49=\"\",$D49=CONST_NA),FALSE,INDEX(Parameters_Constants!$K$101:$AF$118,MATCH($E49,CONST_LIST_Goods,0),MATCH(AC$8,Parameters_Constants!$K$100:$AF$100,0))=FALSE)","v":false},{"$f":"IF(OR($D49=\"\",$D49=CONST_NA),FALSE,INDEX(Parameters_Constants!$K$101:$AF$118,MATCH($E49,CONST_LIST_Goods,0),MATCH(AD$8,Parameters_Constants!$K$100:$AF$100,0))=FALSE)","v":false},{"$f":"IF(OR($D49=\"\",$D49=CONST_NA),FALSE,INDEX(Parameters_Constants!$K$101:$AF$118,MATCH($E49,CONST_LIST_Goods,0),MATCH(AE$8,Parameters_Constants!$K$100:$AF$100,0))=FALSE)","v":false},{"$f":"IF(OR($D49=\"\",$D49=CONST_NA),FALSE,INDEX(Parameters_Constants!$K$101:$AF$118,MATCH($E49,CONST_LIST_Goods,0),MATCH(AF$8,Parameters_Constants!$K$100:$AF$100,0))=FALSE)","v":false},{"$f":"IF(OR($D49=\"\",$D49=CONST_NA),FALSE,INDEX(Parameters_Constants!$K$101:$AF$118,MATCH($E49,CONST_LIST_Goods,0),MATCH(AG$8,Parameters_Constants!$K$100:$AF$100,0))=FALSE)","v":false},{"$f":"IF(OR($D49=\"\",$D49=CONST_NA),FALSE,INDEX(Parameters_Constants!$K$101:$AF$118,MATCH($E49,CONST_LIST_Goods,0),MATCH(AH$8,Parameters_Constants!$K$100:$AF$100,0))=FALSE)","v":false},{"$f":"IF(OR($D49=\"\",$D49=CONST_NA),FALSE,INDEX(Parameters_Constants!$K$101:$AF$118,MATCH($E49,CONST_LIST_Goods,0),MATCH(AI$8,Parameters_Constants!$K$100:$AF$100,0))=FALSE)","v":false},{"$f":"IF(OR($D49=\"\",$D49=CONST_NA),FALSE,INDEX(Parameters_Constants!$K$101:$AF$118,MATCH($E49,CONST_LIST_Goods,0),MATCH(AJ$8,Parameters_Constants!$K$100:$AF$100,0))=FALSE)","v":false},{"$f":"IF(OR($D49=\"\",$D49=CONST_NA),FALSE,INDEX(Parameters_Constants!$K$101:$AF$118,MATCH($E49,CONST_LIST_Goods,0),MATCH(AK$8,Parameters_Constants!$K$100:$AF$100,0))=FALSE)","v":false}]
["ausblenden",null,41,null,null,false,null,false,{"$nulls":7},{"$f":"IF(OR($D50=\"\",$D50=CONST_NA),FALSE,INDEX(Parameters_Constants!$K$101:$AF$118,MATCH($E50,CONST_LIST_Goods,0),MATCH(P$8,Parameters_Constants!$K$100:$AF$100,0))=FALSE)","v":false},{"$f":"IF(OR($D50=\"\",$D50=CONST_NA),FALSE,INDEX(Parameters_Constants!$K$101:$AF$118,MATCH($E50,CONST_LIST_Goods,0),MATCH(Q$8,Parameters_Constants!$K$100:$AF$100,0))=FALSE)","v":false},{"$f":"IF(OR($D50=\"\",$D50=CONST_NA),FALSE,INDEX(Parameters_Constants!$K$101:$AF$118,MATCH($E50,CONST_LIST_Goods,0),MATCH(R$8,Parameters_Constants!$K$100:$AF$100,0))=FALSE)","v":false},{"$f":"IF(OR($D50=\"\",$D50=CONST_NA),FALSE,INDEX(Parameters_Constants!$K$101:$AF$118,MATCH($E50,CONST_LIST_Goods,0),MATCH(S$8,Parameters_Constants!$K$100:$AF$100,0))=FALSE)","v":false},{"$f":"IF(OR($D50=\"\",$D50=CONST_NA),FALSE,INDEX(Parameters_Constants!$K$101:$AF$118,MATCH($E50,CONST_LIST_Goods,0),MATCH(T$8,Parameters_Constants!$K$100:$AF$100,0))=FALSE)","v":false},{"$f":"IF(OR($D50=\"\",$D50=CONST_NA),FALSE,INDEX(Parameters_Constants!$K$101:$AF$118,MATCH($E50,CONST_LIST_Goods,0),MATCH(U$8,Parameters_Constants!$K$100:$AF$100,0))=FALSE)","v":false},{"$f":"IF(OR($D50=\"\",$D50=CONST_NA),FALSE,INDEX(Parameters_Constants!$K$101:$AF$118,MATCH($E50,CONST_LIST_Goods,0),MATCH(V$8,Parameters_Constants!$K$100:$AF$100,0))=FALSE)","v":false},{"$f":"IF(OR($D50=\"\",$D50=CONST_NA),FALSE,INDEX(Parameters_Constants!$K$101:$AF$118,MATCH($E50,CONST_LIST_Goods,0),MATCH(W$8,Parameters_Constants!$K$100:$AF$100,0))=FALSE)","v":false},{"$f":"IF(OR($D50=\"\",$D50=CONST_NA),FALSE,INDEX(Parameters_Constants!$K$101:$AF$118,MATCH($E50,CONST_LIST_Goods,0),MATCH(X$8,Parameters_Constants!$K$100:$AF$100,0))=FALSE)","v":false},{"$f":"IF(OR($D50=\"\",$D50=CONST_NA),FALSE,INDEX(Parameters_Constants!$K$101:$AF$118,MATCH($E50,CONST_LIST_Goods,0),MATCH(Y$8,Parameters_Constants!$K$100:$AF$100,0))=FALSE)","v":false},{"$f":"IF(OR($D50=\"\",$D50=CONST_NA),FALSE,INDEX(Parameters_Constants!$K$101:$AF$118,MATCH($E50,CONST_LIST_Goods,0),MATCH(Z$8,Parameters_Constants!$K$100:$AF$100,0))=FALSE)","v":false},{"$f":"IF(OR($D50=\"\",$D50=CONST_NA),FALSE,INDEX(Parameters_Constants!$K$101:$AF$118,MATCH($E50,CONST_LIST_Goods,0),MATCH(AA$8,Parameters_Constants!$K$100:$AF$100,0))=FALSE)","v":false},{"$f":"IF(OR($D50=\"\",$D50=CONST_NA),FALSE,INDEX(Parameters_Constants!$K$101:$AF$118,MATCH($E50,CONST_LIST_Goods,0),MATCH(AB$8,Parameters_Constants!$K$100:$AF$100,0))=FALSE)","v":false},{"$f":"IF(OR($D50=\"\",$D50=CONST_NA),FALSE,INDEX(Parameters_Constants!$K$101:$AF$118,MATCH($E50,CONST_LIST_Goods,0),MATCH(AC$8,Parameters_Constants!$K$100:$AF$100,0))=FALSE)","v":false},{"$f":"IF(OR($D50=\"\",$D50=CONST_NA),FALSE,INDEX(Parameters_Constants!$K$101:$AF$118,MATCH($E50,CONST_LIST_Goods,0),MATCH(AD$8,Parameters_Constants!$K$100:$AF$100,0))=FALSE)","v":false},{"$f":"IF(OR($D50=\"\",$D50=CONST_NA),FALSE,INDEX(Parameters_Constants!$K$101:$AF$118,MATCH($E50,CONST_LIST_Goods,0),MATCH(AE$8,Parameters_Constants!$K$100:$AF$100,0))=FALSE)","v":false},{"$f":"IF(OR($D50=\"\",$D50=CONST_NA),FALSE,INDEX(Parameters_Constants!$K$101:$AF$118,MATCH($E50,CONST_LIST_Goods,0),MATCH(AF$8,Parameters_Constants!$K$100:$AF$100,0))=FALSE)","v":false},{"$f":"IF(OR($D50=\"\",$D50=CONST_NA),FALSE,INDEX(Parameters_Constants!$K$101:$AF$118,MATCH($E50,CONST_LIST_Goods,0),MATCH(AG$8,Parameters_Constants!$K$100:$AF$100,0))=FALSE)","v":false},{"$f":"IF(OR($D50=\"\",$D50=CONST_NA),FALSE,INDEX(Parameters_Constants!$K$101:$AF$118,MATCH($E50,CONST_LIST_Goods,0),MATCH(AH$8,Parameters_Constants!$K$100:$AF$100,0))=FALSE)","v":false},{"$f":"IF(OR($D50=\"\",$D50=CONST_NA),FALSE,INDEX(Parameters_Constants!$K$101:$AF$118,MATCH($E50,CONST_LIST_Goods,0),MATCH(AI$8,Parameters_Constants!$K$100:$AF$100,0))=FALSE)","v":false},{"$f":"IF(OR($D50=\"\",$D50=CONST_NA),FALSE,INDEX(Parameters_Constants!$K$101:$AF$118,MATCH($E50,CONST_LIST_Goods,0),MATCH(AJ$8,Parameters_Constants!$K$100:$AF$100,0))=FALSE)","v":false},{"$f":"IF(OR($D50=\"\",$D50=CONST_NA),FALSE,INDEX(Parameters_Constants!$K$101:$AF$118,MATCH($E50,CONST_LIST_Goods,0),MATCH(AK$8,Parameters_Constants!$K$100:$AF$100,0))=FALSE)","v":false}]
["ausblenden",null,42,null,null,false,null,false,{"$nulls":7},{"$f":"IF(OR($D51=\"\",$D51=CONST_NA),FALSE,INDEX(Parameters_Constants!$K$101:$AF$118,MATCH($E51,CONST_LIST_Goods,0),MATCH(P$8,Parameters_Constants!$K$100:$AF$100,0))=FALSE)","v":false},{"$f":"IF(OR($D51=\"\",$D51=CONST_NA),FALSE,INDEX(Parameters_Constants!$K$101:$AF$118,MATCH($E51,CONST_LIST_Goods,0),MATCH(Q$8,Parameters_Constants!$K$100:$AF$100,0))=FALSE)","v":false},{"$f":"IF(OR($D51=\"\",$D51=CONST_NA),FALSE,INDEX(Parameters_Constants!$K$101:$AF$118,MATCH($E51,CONST_LIST_Goods,0),MATCH(R$8,Parameters_Constants!$K$100:$AF$100,0))=FALSE)","v":false},{"$f":"IF(OR($D51=\"\",$D51=CONST_NA),FALSE,INDEX(Parameters_Constants!$K$101:$AF$118,MATCH($E51,CONST_LIST_Goods,0),MATCH(S$8,Parameters_Constants!$K$100:$AF$100,0))=FALSE)","v":false},{"$f":"IF(OR($D51=\"\",$D51=CONST_NA),FALSE,INDEX(Parameters_Constants!$K$101:$AF$118,MATCH($E51,CONST_LIST_Goods,0),MATCH(T$8,Parameters_Constants!$K$100:$AF$100,0))=FALSE)","v":false},{"$f":"IF(OR($D51=\"\",$D51=CONST_NA),FALSE,INDEX(Parameters_Constants!$K$101:$AF$118,MATCH($E51,CONST_LIST_Goods,0),MATCH(U$8,Parameters_Constants!$K$100:$AF$100,0))=FALSE)","v":false},{"$f":"IF(OR($D51=\"\",$D51=CONST_NA),FALSE,INDEX(Parameters_Constants!$K$101:$AF$118,MATCH($E51,CONST_LIST_Goods,0),MATCH(V$8,Parameters_Constants!$K$100:$AF$100,0))=FALSE)","v":false},{"$f":"IF(OR($D51=\"\",$D51=CONST_NA),FALSE,INDEX(Parameters_Constants!$K$101:$AF$118,MATCH($E51,CONST_LIST_Goods,0),MATCH(W$8,Parameters_Constants!$K$100:$AF$100,0))=FALSE)","v":false},{"$f":"IF(OR($D51=\"\",$D51=CONST_NA),FALSE,INDEX(Parameters_Constants!$K$101:$AF$118,MATCH($E51,CONST_LIST_Goods,0),MATCH(X$8,Parameters_Constants!$K$100:$AF$100,0))=FALSE)","v":false},{"$f":"IF(OR($D51=\"\",$D51=CONST_NA),FALSE,INDEX(Parameters_Constants!$K$101:$AF$118,MATCH($E51,CONST_LIST_Goods,0),MATCH(Y$8,Parameters_Constants!$K$100:$AF$100,0))=FALSE)","v":false},{"$f":"IF(OR($D51=\"\",$D51=CONST_NA),FALSE,INDEX(Parameters_Constants!$K$101:$AF$118,MATCH($E51,CONST_LIST_Goods,0),MATCH(Z$8,Parameters_Constants!$K$100:$AF$100,0))=FALSE)","v":false},{"$f":"IF(OR($D51=\"\",$D51=CONST_NA),FALSE,INDEX(Parameters_Constants!$K$101:$AF$118,MATCH($E51,CONST_LIST_Goods,0),MATCH(AA$8,Parameters_Constants!$K$100:$AF$100,0))=FALSE)","v":false},{"$f":"IF(OR($D51=\"\",$D51=CONST_NA),FALSE,INDEX(Parameters_Constants!$K$101:$AF$118,MATCH($E51,CONST_LIST_Goods,0),MATCH(AB$8,Parameters_Constants!$K$100:$AF$100,0))=FALSE)","v":false},{"$f":"IF(OR($D51=\"\",$D51=CONST_NA),FALSE,INDEX(Parameters_Constants!$K$101:$AF$118,MATCH($E51,CONST_LIST_Goods,0),MATCH(AC$8,Parameters_Constants!$K$100:$AF$100,0))=FALSE)","v":false},{"$f":"IF(OR($D51=\"\",$D51=CONST_NA),FALSE,INDEX(Parameters_Constants!$K$101:$AF$118,MATCH($E51,CONST_LIST_Goods,0),MATCH(AD$8,Parameters_Constants!$K$100:$AF$100,0))=FALSE)","v":false},{"$f":"IF(OR($D51=\"\",$D51=CONST_NA),FALSE,INDEX(Parameters_Constants!$K$101:$AF$118,MATCH($E51,CONST_LIST_Goods,0),MATCH(AE$8,Parameters_Constants!$K$100:$AF$100,0))=FALSE)","v":false},{"$f":"IF(OR($D51=\"\",$D51=CONST_NA),FALSE,INDEX(Parameters_Constants!$K$101:$AF$118,MATCH($E51,CONST_LIST_Goods,0),MATCH(AF$8,Parameters_Constants!$K$100:$AF$100,0))=FALSE)","v":false},{"$f":"IF(OR($D51=\"\",$D51=CONST_NA),FALSE,INDEX(Parameters_Constants!$K$101:$AF$118,MATCH($E51,CONST_LIST_Goods,0),MATCH(AG$8,Parameters_Constants!$K$100:$AF$100,0))=FALSE)","v":false},{"$f":"IF(OR($D51=\"\",$D51=CONST_NA),FALSE,INDEX(Parameters_Constants!$K$101:$AF$118,MATCH($E51,CONST_LIST_Goods,0),MATCH(AH$8,Parameters_Constants!$K$100:$AF$100,0))=FALSE)","v":false},{"$f":"IF(OR($D51=\"\",$D51=CONST_NA),FALSE,INDEX(Parameters_Constants!$K$101:$AF$118,MATCH($E51,CONST_LIST_Goods,0),MATCH(AI$8,Parameters_Constants!$K$100:$AF$100,0))=FALSE)","v":false},{"$f":"IF(OR($D51=\"\",$D51=CONST_NA),FALSE,INDEX(Parameters_Constants!$K$101:$AF$118,MATCH($E51,CONST_LIST_Goods,0),MATCH(AJ$8,Parameters_Constants!$K$100:$AF$100,0))=FALSE)","v":false},{"$f":"IF(OR($D51=\"\",$D51=CONST_NA),FALSE,INDEX(Parameters_Constants!$K$101:$AF$118,MATCH($E51,CONST_LIST_Goods,0),MATCH(AK$8,Parameters_Constants!$K$100:$AF$100,0))=FALSE)","v":false}]
["ausblenden",null,43,null,null,false,null,false,{"$nulls":7},{"$f":"IF(OR($D52=\"\",$D52=CONST_NA),FALSE,INDEX(Parameters_Constants!$K$101:$AF$118,MATCH($E52,CONST_LIST_Goods,0),MATCH(P$8,Parameters_Constants!$K$100:$AF$100,0))=FALSE)","v":false},{"$f":"IF(OR($D52=\"\",$D52=CONST_NA),FALSE,INDEX(Parameters_Constants!$K$101:$AF$118,MATCH($E52,CONST_LIST_Goods,0),MATCH(Q$8,Parameters_Constants!$K$100:$AF$100,0))=FALSE)","v":false},{"$f":"IF(OR($D52=\"\",$D52=CONST_NA),FALSE,INDEX(Parameters_Constants!$K$101:$AF$118,MATCH($E52,CONST_LIST_Goods,0),MATCH(R$8,Parameters_Constants!$K$100:$AF$100,0))=FALSE)","v":false},{"$f":"IF(OR($D52=\"\",$D52=CONST_NA),FALSE,INDEX(Parameters_Constants!$K$101:$AF$118,MATCH($E52,CONST_LIST_Goods,0),MATCH(S$8,Parameters_Constants!$K$100:$AF$100,0))=FALSE)","v":false},{"$f":"IF(OR($D52=\"\",$D52=CONST_NA),FALSE,INDEX(Parameters_Constants!$K$101:$AF$118,MATCH($E52,CONST_LIST_Goods,0),MATCH(T$8,Parameters_Constants!$K$100:$AF$100,0))=FALSE)","v":false},{"$f":"IF(OR($D52=\"\",$D52=CONST_NA),FALSE,INDEX(Parameters_Constants!$K$101:$AF$118,MATCH($E52,CONST_LIST_Goods,0),MATCH(U$8,Parameters_Constants!$K$100:$AF$100,0))=FALSE)","v":false},{"$f":"IF(OR($D52=\"\",$D52=CONST_NA),FALSE,INDEX(Parameters_Constants!$K$101:$AF$118,MATCH($E52,CONST_LIST_Goods,0),MATCH(V$8,Parameters_Constants!$K$100:$AF$100,0))=FALSE)","v":false},{"$f":"IF(OR($D52=\"\",$D52=CONST_NA),FALSE,INDEX(Parameters_Constants!$K$101:$AF$118,MATCH($E52,CONST_LIST_Goods,0),MATCH(W$8,Parameters_Constants!$K$100:$AF$100,0))=FALSE)","v":false},{"$f":"IF(OR($D52=\"\",$D52=CONST_NA),FALSE,INDEX(Parameters_Constants!$K$101:$AF$118,MATCH($E52,CONST_LIST_Goods,0),MATCH(X$8,Parameters_Constants!$K$100:$AF$100,0))=FALSE)","v":false},{"$f":"IF(OR($D52=\"\",$D52=CONST_NA),FALSE,INDEX(Parameters_Constants!$K$101:$AF$118,MATCH($E52,CONST_LIST_Goods,0),MATCH(Y$8,Parameters_Constants!$K$100:$AF$100,0))=FALSE)","v":false},{"$f":"IF(OR($D52=\"\",$D52=CONST_NA),FALSE,INDEX(Parameters_Constants!$K$101:$AF$118,MATCH($E52,CONST_LIST_Goods,0),MATCH(Z$8,Parameters_Constants!$K$100:$AF$100,0))=FALSE)","v":false},{"$f":"IF(OR($D52=\"\",$D52=CONST_NA),FALSE,INDEX(Parameters_Constants!$K$101:$AF$118,MATCH($E52,CONST_LIST_Goods,0),MATCH(AA$8,Parameters_Constants!$K$100:$AF$100,0))=FALSE)","v":false},{"$f":"IF(OR($D52=\"\",$D52=CONST_NA),FALSE,INDEX(Parameters_Constants!$K$101:$AF$118,MATCH($E52,CONST_LIST_Goods,0),MATCH(AB$8,Parameters_Constants!$K$100:$AF$100,0))=FALSE)","v":false},{"$f":"IF(OR($D52=\"\",$D52=CONST_NA),FALSE,INDEX(Parameters_Constants!$K$101:$AF$118,MATCH($E52,CONST_LIST_Goods,0),MATCH(AC$8,Parameters_Constants!$K$100:$AF$100,0))=FALSE)","v":false},{"$f":"IF(OR($D52=\"\",$D52=CONST_NA),FALSE,INDEX(Parameters_Constants!$K$101:$AF$118,MATCH($E52,CONST_LIST_Goods,0),MATCH(AD$8,Parameters_Constants!$K$100:$AF$100,0))=FALSE)","v":false},{"$f":"IF(OR($D52=\"\",$D52=CONST_NA),FALSE,INDEX(Parameters_Constants!$K$101:$AF$118,MATCH($E52,CONST_LIST_Goods,0),MATCH(AE$8,Parameters_Constants!$K$100:$AF$100,0))=FALSE)","v":false},{"$f":"IF(OR($D52=\"\",$D52=CONST_NA),FALSE,INDEX(Parameters_Constants!$K$101:$AF$118,MATCH($E52,CONST_LIST_Goods,0),MATCH(AF$8,Parameters_Constants!$K$100:$AF$100,0))=FALSE)","v":false},{"$f":"IF(OR($D52=\"\",$D52=CONST_NA),FALSE,INDEX(Parameters_Constants!$K$101:$AF$118,MATCH($E52,CONST_LIST_Goods,0),MATCH(AG$8,Parameters_Constants!$K$100:$AF$100,0))=FALSE)","v":false},{"$f":"IF(OR($D52=\"\",$D52=CONST_NA),FALSE,INDEX(Parameters_Constants!$K$101:$AF$118,MATCH($E52,CONST_LIST_Goods,0),MATCH(AH$8,Parameters_Constants!$K$100:$AF$100,0))=FALSE)","v":false},{"$f":"IF(OR($D52=\"\",$D52=CONST_NA),FALSE,INDEX(Parameters_Constants!$K$101:$AF$118,MATCH($E52,CONST_LIST_Goods,0),MATCH(AI$8,Parameters_Constants!$K$100:$AF$100,0))=FALSE)","v":false},{"$f":"IF(OR($D52=\"\",$D52=CONST_NA),FALSE,INDEX(Parameters_Constants!$K$101:$AF$118,MATCH($E52,CONST_LIST_Goods,0),MATCH(AJ$8,Parameters_Constants!$K$100:$AF$100,0))=FALSE)","v":false},{"$f":"IF(OR($D52=\"\",$D52=CONST_NA),FALSE,INDEX(Parameters_Constants!$K$101:$AF$118,MATCH($E52,CONST_LIST_Goods,0),MATCH(AK$8,Parameters_Constants!$K$100:$AF$100,0))=FALSE)","v":false}]
["ausblenden",null,44,null,null,false,null,false,{"$nulls":7},{"$f":"IF(OR($D53=\"\",$D53=CONST_NA),FALSE,INDEX(Parameters_Constants!$K$101:$AF$118,MATCH($E53,CONST_LIST_Goods,0),MATCH(P$8,Parameters_Constants!$K$100:$AF$100,0))=FALSE)","v":false},{"$f":"IF(OR($D53=\"\",$D53=CONST_NA),FALSE,INDEX(Parameters_Constants!$K$101:$AF$118,MATCH($E53,CONST_LIST_Goods,0),MATCH(Q$8,Parameters_Constants!$K$100:$AF$100,0))=FALSE)","v":false},{"$f":"IF(OR($D53=\"\",$D53=CONST_NA),FALSE,INDEX(Parameters_Constants!$K$101:$AF$118,MATCH($E53,CONST_LIST_Goods,0),MATCH(R$8,Parameters_Constants!$K$100:$AF$100,0))=FALSE)","v":false},{"$f":"IF(OR($D53=\"\",$D53=CONST_NA),FALSE,INDEX(Parameters_Constants!$K$101:$AF$118,MATCH($E53,CONST_LIST_Goods,0),MATCH(S$8,Parameters_Constants!$K$100:$AF$100,0))=FALSE)","v":false},{"$f":"IF(OR($D53=\"\",$D53=CONST_NA),FALSE,INDEX(Parameters_Constants!$K$101:$AF$118,MATCH($E53,CONST_LIST_Goods,0),MATCH(T$8,Parameters_Constants!$K$100:$AF$100,0))=FALSE)","v":false},{"$f":"IF(OR($D53=\"\",$D53=CONST_NA),FALSE,INDEX(Parameters_Constants!$K$101:$AF$118,MATCH($E53,CONST_LIST_Goods,0),MATCH(U$8,Parameters_Constants!$K$100:$AF$100,0))=FALSE)","v":false},{"$f":"IF(OR($D53=\"\",$D53=CONST_NA),FALSE,INDEX(Parameters_Constants!$K$101:$AF$118,MATCH($E53,CONST_LIST_Goods,0),MATCH(V$8,Parameters_Constants!$K$100:$AF$100,0))=FALSE)","v":false},{"$f":"IF(OR($D53=\"\",$D53=CONST_NA),FALSE,INDEX(Parameters_Constants!$K$101:$AF$118,MATCH($E53,CONST_LIST_Goods,0),MATCH(W$8,Parameters_Constants!$K$100:$AF$100,0))=FALSE)","v":false},{"$f":"IF(OR($D53=\"\",$D53=CONST_NA),FALSE,INDEX(Parameters_Constants!$K$101:$AF$118,MATCH($E53,CONST_LIST_Goods,0),MATCH(X$8,Parameters_Constants!$K$100:$AF$100,0))=FALSE)","v":false},{"$f":"IF(OR($D53=\"\",$D53=CONST_NA),FALSE,INDEX(Parameters_Constants!$K$101:$AF$118,MATCH($E53,CONST_LIST_Goods,0),MATCH(Y$8,Parameters_Constants!$K$100:$AF$100,0))=FALSE)","v":false},{"$f":"IF(OR($D53=\"\",$D53=CONST_NA),FALSE,INDEX(Parameters_Constants!$K$101:$AF$118,MATCH($E53,CONST_LIST_Goods,0),MATCH(Z$8,Parameters_Constants!$K$100:$AF$100,0))=FALSE)","v":false},{"$f":"IF(OR($D53=\"\",$D53=CONST_NA),FALSE,INDEX(Parameters_Constants!$K$101:$AF$118,MATCH($E53,CONST_LIST_Goods,0),MATCH(AA$8,Parameters_Constants!$K$100:$AF$100,0))=FALSE)","v":false},{"$f":"IF(OR($D53=\"\",$D53=CONST_NA),FALSE,INDEX(Parameters_Constants!$K$101:$AF$118,MATCH($E53,CONST_LIST_Goods,0),MATCH(AB$8,Parameters_Constants!$K$100:$AF$100,0))=FALSE)","v":false},{"$f":"IF(OR($D53=\"\",$D53=CONST_NA),FALSE,INDEX(Parameters_Constants!$K$101:$AF$118,MATCH($E53,CONST_LIST_Goods,0),MATCH(AC$8,Parameters_Constants!$K$100:$AF$100,0))=FALSE)","v":false},{"$f":"IF(OR($D53=\"\",$D53=CONST_NA),FALSE,INDEX(Parameters_Constants!$K$101:$AF$118,MATCH($E53,CONST_LIST_Goods,0),MATCH(AD$8,Parameters_Constants!$K$100:$AF$100,0))=FALSE)","v":false},{"$f":"IF(OR($D53=\"\",$D53=CONST_NA),FALSE,INDEX(Parameters_Constants!$K$101:$AF$118,MATCH($E53,CONST_LIST_Goods,0),MATCH(AE$8,Parameters_Constants!$K$100:$AF$100,0))=FALSE)","v":false},{"$f":"IF(OR($D53=\"\",$D53=CONST_NA),FALSE,INDEX(Parameters_Constants!$K$101:$AF$118,MATCH($E53,CONST_LIST_Goods,0),MATCH(AF$8,Parameters_Constants!$K$100:$AF$100,0))=FALSE)","v":false},{"$f":"IF(OR($D53=\"\",$D53=CONST_NA),FALSE,INDEX(Parameters_Constants!$K$101:$AF$118,MATCH($E53,CONST_LIST_Goods,0),MATCH(AG$8,Parameters_Constants!$K$100:$AF$100,0))=FALSE)","v":false},{"$f":"IF(OR($D53=\"\",$D53=CONST_NA),FALSE,INDEX(Parameters_Constants!$K$101:$AF$118,MATCH($E53,CONST_LIST_Goods,0),MATCH(AH$8,Parameters_Constants!$K$100:$AF$100,0))=FALSE)","v":false},{"$f":"IF(OR($D53=\"\",$D53=CONST_NA),FALSE,INDEX(Parameters_Constants!$K$101:$AF$118,MATCH($E53,CONST_LIST_Goods,0),MATCH(AI$8,Parameters_Constants!$K$100:$AF$100,0))=FALSE)","v":false},{"$f":"IF(OR($D53=\"\",$D53=CONST_NA),FALSE,INDEX(Parameters_Constants!$K$101:$AF$118,MATCH($E53,CONST_LIST_Goods,0),MATCH(AJ$8,Parameters_Constants!$K$100:$AF$100,0))=FALSE)","v":false},{"$f":"IF(OR($D53=\"\",$D53=CONST_NA),FALSE,INDEX(Parameters_Constants!$K$101:$AF$118,MATCH($E53,CONST_LIST_Goods,0),MATCH(AK$8,Parameters_Constants!$K$100:$AF$100,0))=FALSE)","v":false}]
["ausblenden",null,45,null,null,false,null,false,{"$nulls":7},{"$f":"IF(OR($D54=\"\",$D54=CONST_NA),FALSE,INDEX(Parameters_Constants!$K$101:$AF$118,MATCH($E54,CONST_LIST_Goods,0),MATCH(P$8,Parameters_Constants!$K$100:$AF$100,0))=FALSE)","v":false},{"$f":"IF(OR($D54=\"\",$D54=CONST_NA),FALSE,INDEX(Parameters_Constants!$K$101:$AF$118,MATCH($E54,CONST_LIST_Goods,0),MATCH(Q$8,Parameters_Constants!$K$100:$AF$100,0))=FALSE)","v":false},{"$f":"IF(OR($D54=\"\",$D54=CONST_NA),FALSE,INDEX(Parameters_Constants!$K$101:$AF$118,MATCH($E54,CONST_LIST_Goods,0),MATCH(R$8,Parameters_Constants!$K$100:$AF$100,0))=FALSE)","v":false},{"$f":"IF(OR($D54=\"\",$D54=CONST_NA),FALSE,INDEX(Parameters_Constants!$K$101:$AF$118,MATCH($E54,CONST_LIST_Goods,0),MATCH(S$8,Parameters_Constants!$K$100:$AF$100,0))=FALSE)","v":false},{"$f":"IF(OR($D54=\"\",$D54=CONST_NA),FALSE,INDEX(Parameters_Constants!$K$101:$AF$118,MATCH($E54,CONST_LIST_Goods,0),MATCH(T$8,Parameters_Constants!$K$100:$AF$100,0))=FALSE)","v":false},{"$f":"IF(OR($D54=\"\",$D54=CONST_NA),FALSE,INDEX(Parameters_Constants!$K$101:$AF$118,MATCH($E54,CONST_LIST_Goods,0),MATCH(U$8,Parameters_Constants!$K$100:$AF$100,0))=FALSE)","v":false},{"$f":"IF(OR($D54=\"\",$D54=CONST_NA),FALSE,INDEX(Parameters_Constants!$K$101:$AF$118,MATCH($E54,CONST_LIST_Goods,0),MATCH(V$8,Parameters_Constants!$K$100:$AF$100,0))=FALSE)","v":false},{"$f":"IF(OR($D54=\"\",$D54=CONST_NA),FALSE,INDEX(Parameters_Constants!$K$101:$AF$118,MATCH($E54,CONST_LIST_Goods,0),MATCH(W$8,Parameters_Constants!$K$100:$AF$100,0))=FALSE)","v":false},{"$f":"IF(OR($D54=\"\",$D54=CONST_NA),FALSE,INDEX(Parameters_Constants!$K$101:$AF$118,MATCH($E54,CONST_LIST_Goods,0),MATCH(X$8,Parameters_Constants!$K$100:$AF$100,0))=FALSE)","v":false},{"$f":"IF(OR($D54=\"\",$D54=CONST_NA),FALSE,INDEX(Parameters_Constants!$K$101:$AF$118,MATCH($E54,CONST_LIST_Goods,0),MATCH(Y$8,Parameters_Constants!$K$100:$AF$100,0))=FALSE)","v":false},{"$f":"IF(OR($D54=\"\",$D54=CONST_NA),FALSE,INDEX(Parameters_Constants!$K$101:$AF$118,MATCH($E54,CONST_LIST_Goods,0),MATCH(Z$8,Parameters_Constants!$K$100:$AF$100,0))=FALSE)","v":false},{"$f":"IF(OR($D54=\"\",$D54=CONST_NA),FALSE,INDEX(Parameters_Constants!$K$101:$AF$118,MATCH($E54,CONST_LIST_Goods,0),MATCH(AA$8,Parameters_Constants!$K$100:$AF$100,0))=FALSE)","v":false},{"$f":"IF(OR($D54=\"\",$D54=CONST_NA),FALSE,INDEX(Parameters_Constants!$K$101:$AF$118,MATCH($E54,CONST_LIST_Goods,0),MATCH(AB$8,Parameters_Constants!$K$100:$AF$100,0))=FALSE)","v":false},{"$f":"IF(OR($D54=\"\",$D54=CONST_NA),FALSE,INDEX(Parameters_Constants!$K$101:$AF$118,MATCH($E54,CONST_LIST_Goods,0),MATCH(AC$8,Parameters_Constants!$K$100:$AF$100,0))=FALSE)","v":false},{"$f":"IF(OR($D54=\"\",$D54=CONST_NA),FALSE,INDEX(Parameters_Constants!$K$101:$AF$118,MATCH($E54,CONST_LIST_Goods,0),MATCH(AD$8,Parameters_Constants!$K$100:$AF$100,0))=FALSE)","v":false},{"$f":"IF(OR($D54=\"\",$D54=CONST_NA),FALSE,INDEX(Parameters_Constants!$K$101:$AF$118,MATCH($E54,CONST_LIST_Goods,0),MATCH(AE$8,Parameters_Constants!$K$100:$AF$100,0))=FALSE)","v":false},{"$f":"IF(OR($D54=\"\",$D54=CONST_NA),FALSE,INDEX(Parameters_Constants!$K$101:$AF$118,MATCH($E54,CONST_LIST_Goods,0),MATCH(AF$8,Parameters_Constants!$K$100:$AF$100,0))=FALSE)","v":false},{"$f":"IF(OR($D54=\"\",$D54=CONST_NA),FALSE,INDEX(Parameters_Constants!$K$101:$AF$118,MATCH($E54,CONST_LIST_Goods,0),MATCH(AG$8,Parameters_Constants!$K$100:$AF$100,0))=FALSE)","v":false},{"$f":"IF(OR($D54=\"\",$D54=CONST_NA),FALSE,INDEX(Parameters_Constants!$K$101:$AF$118,MATCH($E54,CONST_LIST_Goods,0),MATCH(AH$8,Parameters_Constants!$K$100:$AF$100,0))=FALSE)","v":false},{"$f":"IF(OR($D54=\"\",$D54=CONST_NA),FALSE,INDEX(Parameters_Constants!$K$101:$AF$118,MATCH($E54,CONST_LIST_Goods,0),MATCH(AI$8,Parameters_Constants!$K$100:$AF$100,0))=FALSE)","v":false},{"$f":"IF(OR($D54=\"\",$D54=CONST_NA),FALSE,INDEX(Parameters_Constants!$K$101:$AF$118,MATCH($E54,CONST_LIST_Goods,0),MATCH(AJ$8,Parameters_Constants!$K$100:$AF$100,0))=FALSE)","v":false},{"$f":"IF(OR($D54=\"\",$D54=CONST_NA),FALSE,INDEX(Parameters_Constants!$K$101:$AF$118,MATCH($E54,CONST_LIST_Goods,0),MATCH(AK$8,Parameters_Constants!$K$100:$AF$100,0))=FALSE)","v":false}]
["ausblenden",null,46,null,null,false,null,false,{"$nulls":7},{"$f":"IF(OR($D55=\"\",$D55=CONST_NA),FALSE,INDEX(Parameters_Constants!$K$101:$AF$118,MATCH($E55,CONST_LIST_Goods,0),MATCH(P$8,Parameters_Constants!$K$100:$AF$100,0))=FALSE)","v":false},{"$f":"IF(OR($D55=\"\",$D55=CONST_NA),FALSE,INDEX(Parameters_Constants!$K$101:$AF$118,MATCH($E55,CONST_LIST_Goods,0),MATCH(Q$8,Parameters_Constants!$K$100:$AF$100,0))=FALSE)","v":false},{"$f":"IF(OR($D55=\"\",$D55=CONST_NA),FALSE,INDEX(Parameters_Constants!$K$101:$AF$118,MATCH($E55,CONST_LIST_Goods,0),MATCH(R$8,Parameters_Constants!$K$100:$AF$100,0))=FALSE)","v":false},{"$f":"IF(OR($D55=\"\",$D55=CONST_NA),FALSE,INDEX(Parameters_Constants!$K$101:$AF$118,MATCH($E55,CONST_LIST_Goods,0),MATCH(S$8,Parameters_Constants!$K$100:$AF$100,0))=FALSE)","v":false},{"$f":"IF(OR($D55=\"\",$D55=CONST_NA),FALSE,INDEX(Parameters_Constants!$K$101:$AF$118,MATCH($E55,CONST_LIST_Goods,0),MATCH(T$8,Parameters_Constants!$K$100:$AF$100,0))=FALSE)","v":false},{"$f":"IF(OR($D55=\"\",$D55=CONST_NA),FALSE,INDEX(Parameters_Constants!$K$101:$AF$118,MATCH($E55,CONST_LIST_Goods,0),MATCH(U$8,Parameters_Constants!$K$100:$AF$100,0))=FALSE)","v":false},{"$f":"IF(OR($D55=\"\",$D55=CONST_NA),FALSE,INDEX(Parameters_Constants!$K$101:$AF$118,MATCH($E55,CONST_LIST_Goods,0),MATCH(V$8,Parameters_Constants!$K$100:$AF$100,0))=FALSE)","v":false},{"$f":"IF(OR($D55=\"\",$D55=CONST_NA),FALSE,INDEX(Parameters_Constants!$K$101:$AF$118,MATCH($E55,CONST_LIST_Goods,0),MATCH(W$8,Parameters_Constants!$K$100:$AF$100,0))=FALSE)","v":false},{"$f":"IF(OR($D55=\"\",$D55=CONST_NA),FALSE,INDEX(Parameters_Constants!$K$101:$AF$118,MATCH($E55,CONST_LIST_Goods,0),MATCH(X$8,Parameters_Constants!$K$100:$AF$100,0))=FALSE)","v":false},{"$f":"IF(OR($D55=\"\",$D55=CONST_NA),FALSE,INDEX(Parameters_Constants!$K$101:$AF$118,MATCH($E55,CONST_LIST_Goods,0),MATCH(Y$8,Parameters_Constants!$K$100:$AF$100,0))=FALSE)","v":false},{"$f":"IF(OR($D55=\"\",$D55=CONST_NA),FALSE,INDEX(Parameters_Constants!$K$101:$AF$118,MATCH($E55,CONST_LIST_Goods,0),MATCH(Z$8,Parameters_Constants!$K$100:$AF$100,0))=FALSE)","v":false},{"$f":"IF(OR($D55=\"\",$D55=CONST_NA),FALSE,INDEX(Parameters_Constants!$K$101:$AF$118,MATCH($E55,CONST_LIST_Goods,0),MATCH(AA$8,Parameters_Constants!$K$100:$AF$100,0))=FALSE)","v":false},{"$f":"IF(OR($D55=\"\",$D55=CONST_NA),FALSE,INDEX(Parameters_Constants!$K$101:$AF$118,MATCH($E55,CONST_LIST_Goods,0),MATCH(AB$8,Parameters_Constants!$K$100:$AF$100,0))=FALSE)","v":false},{"$f":"IF(OR($D55=\"\",$D55=CONST_NA),FALSE,INDEX(Parameters_Constants!$K$101:$AF$118,MATCH($E55,CONST_LIST_Goods,0),MATCH(AC$8,Parameters_Constants!$K$100:$AF$100,0))=FALSE)","v":false},{"$f":"IF(OR($D55=\"\",$D55=CONST_NA),FALSE,INDEX(Parameters_Constants!$K$101:$AF$118,MATCH($E55,CONST_LIST_Goods,0),MATCH(AD$8,Parameters_Constants!$K$100:$AF$100,0))=FALSE)","v":false},{"$f":"IF(OR($D55=\"\",$D55=CONST_NA),FALSE,INDEX(Parameters_Constants!$K$101:$AF$118,MATCH($E55,CONST_LIST_Goods,0),MATCH(AE$8,Parameters_Constants!$K$100:$AF$100,0))=FALSE)","v":false},{"$f":"IF(OR($D55=\"\",$D55=CONST_NA),FALSE,INDEX(Parameters_Constants!$K$101:$AF$118,MATCH($E55,CONST_LIST_Goods,0),MATCH(AF$8,Parameters_Constants!$K$100:$AF$100,0))=FALSE)","v":false},{"$f":"IF(OR($D55=\"\",$D55=CONST_NA),FALSE,INDEX(Parameters_Constants!$K$101:$AF$118,MATCH($E55,CONST_LIST_Goods,0),MATCH(AG$8,Parameters_Constants!$K$100:$AF$100,0))=FALSE)","v":false},{"$f":"IF(OR($D55=\"\",$D55=CONST_NA),FALSE,INDEX(Parameters_Constants!$K$101:$AF$118,MATCH($E55,CONST_LIST_Goods,0),MATCH(AH$8,Parameters_Constants!$K$100:$AF$100,0))=FALSE)","v":false},{"$f":"IF(OR($D55=\"\",$D55=CONST_NA),FALSE,INDEX(Parameters_Constants!$K$101:$AF$118,MATCH($E55,CONST_LIST_Goods,0),MATCH(AI$8,Parameters_Constants!$K$100:$AF$100,0))=FALSE)","v":false},{"$f":"IF(OR($D55=\"\",$D55=CONST_NA),FALSE,INDEX(Parameters_Constants!$K$101:$AF$118,MATCH($E55,CONST_LIST_Goods,0),MATCH(AJ$8,Parameters_Constants!$K$100:$AF$100,0))=FALSE)","v":false},{"$f":"IF(OR($D55=\"\",$D55=CONST_NA),FALSE,INDEX(Parameters_Constants!$K$101:$AF$118,MATCH($E55,CONST_LIST_Goods,0),MATCH(AK$8,Parameters_Constants!$K$100:$AF$100,0))=FALSE)","v":false}]
["ausblenden",null,47,null,null,false,null,false,{"$nulls":7},{"$f":"IF(OR($D56=\"\",$D56=CONST_NA),FALSE,INDEX(Parameters_Constants!$K$101:$AF$118,MATCH($E56,CONST_LIST_Goods,0),MATCH(P$8,Parameters_Constants!$K$100:$AF$100,0))=FALSE)","v":false},{"$f":"IF(OR($D56=\"\",$D56=CONST_NA),FALSE,INDEX(Parameters_Constants!$K$101:$AF$118,MATCH($E56,CONST_LIST_Goods,0),MATCH(Q$8,Parameters_Constants!$K$100:$AF$100,0))=FALSE)","v":false},{"$f":"IF(OR($D56=\"\",$D56=CONST_NA),FALSE,INDEX(Parameters_Constants!$K$101:$AF$118,MATCH($E56,CONST_LIST_Goods,0),MATCH(R$8,Parameters_Constants!$K$100:$AF$100,0))=FALSE)","v":false},{"$f":"IF(OR($D56=\"\",$D56=CONST_NA),FALSE,INDEX(Parameters_Constants!$K$101:$AF$118,MATCH($E56,CONST_LIST_Goods,0),MATCH(S$8,Parameters_Constants!$K$100:$AF$100,0))=FALSE)","v":false},{"$f":"IF(OR($D56=\"\",$D56=CONST_NA),FALSE,INDEX(Parameters_Constants!$K$101:$AF$118,MATCH($E56,CONST_LIST_Goods,0),MATCH(T$8,Parameters_Constants!$K$100:$AF$100,0))=FALSE)","v":false},{"$f":"IF(OR($D56=\"\",$D56=CONST_NA),FALSE,INDEX(Parameters_Constants!$K$101:$AF$118,MATCH($E56,CONST_LIST_Goods,0),MATCH(U$8,Parameters_Constants!$K$100:$AF$100,0))=FALSE)","v":false},{"$f":"IF(OR($D56=\"\",$D56=CONST_NA),FALSE,INDEX(Parameters_Constants!$K$101:$AF$118,MATCH($E56,CONST_LIST_Goods,0),MATCH(V$8,Parameters_Constants!$K$100:$AF$100,0))=FALSE)","v":false},{"$f":"IF(OR($D56=\"\",$D56=CONST_NA),FALSE,INDEX(Parameters_Constants!$K$101:$AF$118,MATCH($E56,CONST_LIST_Goods,0),MATCH(W$8,Parameters_Constants!$K$100:$AF$100,0))=FALSE)","v":false},{"$f":"IF(OR($D56=\"\",$D56=CONST_NA),FALSE,INDEX(Parameters_Constants!$K$101:$AF$118,MATCH($E56,CONST_LIST_Goods,0),MATCH(X$8,Parameters_Constants!$K$100:$AF$100,0))=FALSE)","v":false},{"$f":"IF(OR($D56=\"\",$D56=CONST_NA),FALSE,INDEX(Parameters_Constants!$K$101:$AF$118,MATCH($E56,CONST_LIST_Goods,0),MATCH(Y$8,Parameters_Constants!$K$100:$AF$100,0))=FALSE)","v":false},{"$f":"IF(OR($D56=\"\",$D56=CONST_NA),FALSE,INDEX(Parameters_Constants!$K$101:$AF$118,MATCH($E56,CONST_LIST_Goods,0),MATCH(Z$8,Parameters_Constants!$K$100:$AF$100,0))=FALSE)","v":false},{"$f":"IF(OR($D56=\"\",$D56=CONST_NA),FALSE,INDEX(Parameters_Constants!$K$101:$AF$118,MATCH($E56,CONST_LIST_Goods,0),MATCH(AA$8,Parameters_Constants!$K$100:$AF$100,0))=FALSE)","v":false},{"$f":"IF(OR($D56=\"\",$D56=CONST_NA),FALSE,INDEX(Parameters_Constants!$K$101:$AF$118,MATCH($E56,CONST_LIST_Goods,0),MATCH(AB$8,Parameters_Constants!$K$100:$AF$100,0))=FALSE)","v":false},{"$f":"IF(OR($D56=\"\",$D56=CONST_NA),FALSE,INDEX(Parameters_Constants!$K$101:$AF$118,MATCH($E56,CONST_LIST_Goods,0),MATCH(AC$8,Parameters_Constants!$K$100:$AF$100,0))=FALSE)","v":false},{"$f":"IF(OR($D56=\"\",$D56=CONST_NA),FALSE,INDEX(Parameters_Constants!$K$101:$AF$118,MATCH($E56,CONST_LIST_Goods,0),MATCH(AD$8,Parameters_Constants!$K$100:$AF$100,0))=FALSE)","v":false},{"$f":"IF(OR($D56=\"\",$D56=CONST_NA),FALSE,INDEX(Parameters_Constants!$K$101:$AF$118,MATCH($E56,CONST_LIST_Goods,0),MATCH(AE$8,Parameters_Constants!$K$100:$AF$100,0))=FALSE)","v":false},{"$f":"IF(OR($D56=\"\",$D56=CONST_NA),FALSE,INDEX(Parameters_Constants!$K$101:$AF$118,MATCH($E56,CONST_LIST_Goods,0),MATCH(AF$8,Parameters_Constants!$K$100:$AF$100,0))=FALSE)","v":false},{"$f":"IF(OR($D56=\"\",$D56=CONST_NA),FALSE,INDEX(Parameters_Constants!$K$101:$AF$118,MATCH($E56,CONST_LIST_Goods,0),MATCH(AG$8,Parameters_Constants!$K$100:$AF$100,0))=FALSE)","v":false},{"$f":"IF(OR($D56=\"\",$D56=CONST_NA),FALSE,INDEX(Parameters_Constants!$K$101:$AF$118,MATCH($E56,CONST_LIST_Goods,0),MATCH(AH$8,Parameters_Constants!$K$100:$AF$100,0))=FALSE)","v":false},{"$f":"IF(OR($D56=\"\",$D56=CONST_NA),FALSE,INDEX(Parameters_Constants!$K$101:$AF$118,MATCH($E56,CONST_LIST_Goods,0),MATCH(AI$8,Parameters_Constants!$K$100:$AF$100,0))=FALSE)","v":false},{"$f":"IF(OR($D56=\"\",$D56=CONST_NA),FALSE,INDEX(Parameters_Constants!$K$101:$AF$118,MATCH($E56,CONST_LIST_Goods,0),MATCH(AJ$8,Parameters_Constants!$K$100:$AF$100,0))=FALSE)","v":false},{"$f":"IF(OR($D56=\"\",$D56=CONST_NA),FALSE,INDEX(Parameters_Constants!$K$101:$AF$118,MATCH($E56,CONST_LIST_Goods,0),MATCH(AK$8,Parameters_Constants!$K$100:$AF$100,0))=FALSE)","v":false}]
["ausblenden",null,48,null,null,false,null,false,{"$nulls":7},{"$f":"IF(OR($D57=\"\",$D57=CONST_NA),FALSE,INDEX(Parameters_Constants!$K$101:$AF$118,MATCH($E57,CONST_LIST_Goods,0),MATCH(P$8,Parameters_Constants!$K$100:$AF$100,0))=FALSE)","v":false},{"$f":"IF(OR($D57=\"\",$D57=CONST_NA),FALSE,INDEX(Parameters_Constants!$K$101:$AF$118,MATCH($E57,CONST_LIST_Goods,0),MATCH(Q$8,Parameters_Constants!$K$100:$AF$100,0))=FALSE)","v":false},{"$f":"IF(OR($D57=\"\",$D57=CONST_NA),FALSE,INDEX(Parameters_Constants!$K$101:$AF$118,MATCH($E57,CONST_LIST_Goods,0),MATCH(R$8,Parameters_Constants!$K$100:$AF$100,0))=FALSE)","v":false},{"$f":"IF(OR($D57=\"\",$D57=CONST_NA),FALSE,INDEX(Parameters_Constants!$K$101:$AF$118,MATCH($E57,CONST_LIST_Goods,0),MATCH(S$8,Parameters_Constants!$K$100:$AF$100,0))=FALSE)","v":false},{"$f":"IF(OR($D57=\"\",$D57=CONST_NA),FALSE,INDEX(Parameters_Constants!$K$101:$AF$118,MATCH($E57,CONST_LIST_Goods,0),MATCH(T$8,Parameters_Constants!$K$100:$AF$100,0))=FALSE)","v":false},{"$f":"IF(OR($D57=\"\",$D57=CONST_NA),FALSE,INDEX(Parameters_Constants!$K$101:$AF$118,MATCH($E57,CONST_LIST_Goods,0),MATCH(U$8,Parameters_Constants!$K$100:$AF$100,0))=FALSE)","v":false},{"$f":"IF(OR($D57=\"\",$D57=CONST_NA),FALSE,INDEX(Parameters_Constants!$K$101:$AF$118,MATCH($E57,CONST_LIST_Goods,0),MATCH(V$8,Parameters_Constants!$K$100:$AF$100,0))=FALSE)","v":false},{"$f":"IF(OR($D57=\"\",$D57=CONST_NA),FALSE,INDEX(Parameters_Constants!$K$101:$AF$118,MATCH($E57,CONST_LIST_Goods,0),MATCH(W$8,Parameters_Constants!$K$100:$AF$100,0))=FALSE)","v":false},{"$f":"IF(OR($D57=\"\",$D57=CONST_NA),FALSE,INDEX(Parameters_Constants!$K$101:$AF$118,MATCH($E57,CONST_LIST_Goods,0),MATCH(X$8,Parameters_Constants!$K$100:$AF$100,0))=FALSE)","v":false},{"$f":"IF(OR($D57=\"\",$D57=CONST_NA),FALSE,INDEX(Parameters_Constants!$K$101:$AF$118,MATCH($E57,CONST_LIST_Goods,0),MATCH(Y$8,Parameters_Constants!$K$100:$AF$100,0))=FALSE)","v":false},{"$f":"IF(OR($D57=\"\",$D57=CONST_NA),FALSE,INDEX(Parameters_Constants!$K$101:$AF$118,MATCH($E57,CONST_LIST_Goods,0),MATCH(Z$8,Parameters_Constants!$K$100:$AF$100,0))=FALSE)","v":false},{"$f":"IF(OR($D57=\"\",$D57=CONST_NA),FALSE,INDEX(Parameters_Constants!$K$101:$AF$118,MATCH($E57,CONST_LIST_Goods,0),MATCH(AA$8,Parameters_Constants!$K$100:$AF$100,0))=FALSE)","v":false},{"$f":"IF(OR($D57=\"\",$D57=CONST_NA),FALSE,INDEX(Parameters_Constants!$K$101:$AF$118,MATCH($E57,CONST_LIST_Goods,0),MATCH(AB$8,Parameters_Constants!$K$100:$AF$100,0))=FALSE)","v":false},{"$f":"IF(OR($D57=\"\",$D57=CONST_NA),FALSE,INDEX(Parameters_Constants!$K$101:$AF$118,MATCH($E57,CONST_LIST_Goods,0),MATCH(AC$8,Parameters_Constants!$K$100:$AF$100,0))=FALSE)","v":false},{"$f":"IF(OR($D57=\"\",$D57=CONST_NA),FALSE,INDEX(Parameters_Constants!$K$101:$AF$118,MATCH($E57,CONST_LIST_Goods,0),MATCH(AD$8,Parameters_Constants!$K$100:$AF$100,0))=FALSE)","v":false},{"$f":"IF(OR($D57=\"\",$D57=CONST_NA),FALSE,INDEX(Parameters_Constants!$K$101:$AF$118,MATCH($E57,CONST_LIST_Goods,0),MATCH(AE$8,Parameters_Constants!$K$100:$AF$100,0))=FALSE)","v":false},{"$f":"IF(OR($D57=\"\",$D57=CONST_NA),FALSE,INDEX(Parameters_Constants!$K$101:$AF$118,MATCH($E57,CONST_LIST_Goods,0),MATCH(AF$8,Parameters_Constants!$K$100:$AF$100,0))=FALSE)","v":false},{"$f":"IF(OR($D57=\"\",$D57=CONST_NA),FALSE,INDEX(Parameters_Constants!$K$101:$AF$118,MATCH($E57,CONST_LIST_Goods,0),MATCH(AG$8,Parameters_Constants!$K$100:$AF$100,0))=FALSE)","v":false},{"$f":"IF(OR($D57=\"\",$D57=CONST_NA),FALSE,INDEX(Parameters_Constants!$K$101:$AF$118,MATCH($E57,CONST_LIST_Goods,0),MATCH(AH$8,Parameters_Constants!$K$100:$AF$100,0))=FALSE)","v":false},{"$f":"IF(OR($D57=\"\",$D57=CONST_NA),FALSE,INDEX(Parameters_Constants!$K$101:$AF$118,MATCH($E57,CONST_LIST_Goods,0),MATCH(AI$8,Parameters_Constants!$K$100:$AF$100,0))=FALSE)","v":false},{"$f":"IF(OR($D57=\"\",$D57=CONST_NA),FALSE,INDEX(Parameters_Constants!$K$101:$AF$118,MATCH($E57,CONST_LIST_Goods,0),MATCH(AJ$8,Parameters_Constants!$K$100:$AF$100,0))=FALSE)","v":false},{"$f":"IF(OR($D57=\"\",$D57=CONST_NA),FALSE,INDEX(Parameters_Constants!$K$101:$AF$118,MATCH($E57,CONST_LIST_Goods,0),MATCH(AK$8,Parameters_Constants!$K$100:$AF$100,0))=FALSE)","v":false}]
["ausblenden",null,49,null,null,false,null,false,{"$nulls":7},{"$f":"IF(OR($D58=\"\",$D58=CONST_NA),FALSE,INDEX(Parameters_Constants!$K$101:$AF$118,MATCH($E58,CONST_LIST_Goods,0),MATCH(P$8,Parameters_Constants!$K$100:$AF$100,0))=FALSE)","v":false},{"$f":"IF(OR($D58=\"\",$D58=CONST_NA),FALSE,INDEX(Parameters_Constants!$K$101:$AF$118,MATCH($E58,CONST_LIST_Goods,0),MATCH(Q$8,Parameters_Constants!$K$100:$AF$100,0))=FALSE)","v":false},{"$f":"IF(OR($D58=\"\",$D58=CONST_NA),FALSE,INDEX(Parameters_Constants!$K$101:$AF$118,MATCH($E58,CONST_LIST_Goods,0),MATCH(R$8,Parameters_Constants!$K$100:$AF$100,0))=FALSE)","v":false},{"$f":"IF(OR($D58=\"\",$D58=CONST_NA),FALSE,INDEX(Parameters_Constants!$K$101:$AF$118,MATCH($E58,CONST_LIST_Goods,0),MATCH(S$8,Parameters_Constants!$K$100:$AF$100,0))=FALSE)","v":false},{"$f":"IF(OR($D58=\"\",$D58=CONST_NA),FALSE,INDEX(Parameters_Constants!$K$101:$AF$118,MATCH($E58,CONST_LIST_Goods,0),MATCH(T$8,Parameters_Constants!$K$100:$AF$100,0))=FALSE)","v":false},{"$f":"IF(OR($D58=\"\",$D58=CONST_NA),FALSE,INDEX(Parameters_Constants!$K$101:$AF$118,MATCH($E58,CONST_LIST_Goods,0),MATCH(U$8,Parameters_Constants!$K$100:$AF$100,0))=FALSE)","v":false},{"$f":"IF(OR($D58=\"\",$D58=CONST_NA),FALSE,INDEX(Parameters_Constants!$K$101:$AF$118,MATCH($E58,CONST_LIST_Goods,0),MATCH(V$8,Parameters_Constants!$K$100:$AF$100,0))=FALSE)","v":false},{"$f":"IF(OR($D58=\"\",$D58=CONST_NA),FALSE,INDEX(Parameters_Constants!$K$101:$AF$118,MATCH($E58,CONST_LIST_Goods,0),MATCH(W$8,Parameters_Constants!$K$100:$AF$100,0))=FALSE)","v":false},{"$f":"IF(OR($D58=\"\",$D58=CONST_NA),FALSE,INDEX(Parameters_Constants!$K$101:$AF$118,MATCH($E58,CONST_LIST_Goods,0),MATCH(X$8,Parameters_Constants!$K$100:$AF$100,0))=FALSE)","v":false},{"$f":"IF(OR($D58=\"\",$D58=CONST_NA),FALSE,INDEX(Parameters_Constants!$K$101:$AF$118,MATCH($E58,CONST_LIST_Goods,0),MATCH(Y$8,Parameters_Constants!$K$100:$AF$100,0))=FALSE)","v":false},{"$f":"IF(OR($D58=\"\",$D58=CONST_NA),FALSE,INDEX(Parameters_Constants!$K$101:$AF$118,MATCH($E58,CONST_LIST_Goods,0),MATCH(Z$8,Parameters_Constants!$K$100:$AF$100,0))=FALSE)","v":false},{"$f":"IF(OR($D58=\"\",$D58=CONST_NA),FALSE,INDEX(Parameters_Constants!$K$101:$AF$118,MATCH($E58,CONST_LIST_Goods,0),MATCH(AA$8,Parameters_Constants!$K$100:$AF$100,0))=FALSE)","v":false},{"$f":"IF(OR($D58=\"\",$D58=CONST_NA),FALSE,INDEX(Parameters_Constants!$K$101:$AF$118,MATCH($E58,CONST_LIST_Goods,0),MATCH(AB$8,Parameters_Constants!$K$100:$AF$100,0))=FALSE)","v":false},{"$f":"IF(OR($D58=\"\",$D58=CONST_NA),FALSE,INDEX(Parameters_Constants!$K$101:$AF$118,MATCH($E58,CONST_LIST_Goods,0),MATCH(AC$8,Parameters_Constants!$K$100:$AF$100,0))=FALSE)","v":false},{"$f":"IF(OR($D58=\"\",$D58=CONST_NA),FALSE,INDEX(Parameters_Constants!$K$101:$AF$118,MATCH($E58,CONST_LIST_Goods,0),MATCH(AD$8,Parameters_Constants!$K$100:$AF$100,0))=FALSE)","v":false},{"$f":"IF(OR($D58=\"\",$D58=CONST_NA),FALSE,INDEX(Parameters_Constants!$K$101:$AF$118,MATCH($E58,CONST_LIST_Goods,0),MATCH(AE$8,Parameters_Constants!$K$100:$AF$100,0))=FALSE)","v":false},{"$f":"IF(OR($D58=\"\",$D58=CONST_NA),FALSE,INDEX(Parameters_Constants!$K$101:$AF$118,MATCH($E58,CONST_LIST_Goods,0),MATCH(AF$8,Parameters_Constants!$K$100:$AF$100,0))=FALSE)","v":false},{"$f":"IF(OR($D58=\"\",$D58=CONST_NA),FALSE,INDEX(Parameters_Constants!$K$101:$AF$118,MATCH($E58,CONST_LIST_Goods,0),MATCH(AG$8,Parameters_Constants!$K$100:$AF$100,0))=FALSE)","v":false},{"$f":"IF(OR($D58=\"\",$D58=CONST_NA),FALSE,INDEX(Parameters_Constants!$K$101:$AF$118,MATCH($E58,CONST_LIST_Goods,0),MATCH(AH$8,Parameters_Constants!$K$100:$AF$100,0))=FALSE)","v":false},{"$f":"IF(OR($D58=\"\",$D58=CONST_NA),FALSE,INDEX(Parameters_Constants!$K$101:$AF$118,MATCH($E58,CONST_LIST_Goods,0),MATCH(AI$8,Parameters_Constants!$K$100:$AF$100,0))=FALSE)","v":false},{"$f":"IF(OR($D58=\"\",$D58=CONST_NA),FALSE,INDEX(Parameters_Constants!$K$101:$AF$118,MATCH($E58,CONST_LIST_Goods,0),MATCH(AJ$8,Parameters_Constants!$K$100:$AF$100,0))=FALSE)","v":false},{"$f":"IF(OR($D58=\"\",$D58=CONST_NA),FALSE,INDEX(Parameters_Constants!$K$101:$AF$118,MATCH($E58,CONST_LIST_Goods,0),MATCH(AK$8,Parameters_Constants!$K$100:$AF$100,0))=FALSE)","v":false}]
["ausblenden",null,50,null,null,false,null,false,{"$nulls":7},{"$f":"IF(OR($D59=\"\",$D59=CONST_NA),FALSE,INDEX(Parameters_Constants!$K$101:$AF$118,MATCH($E59,CONST_LIST_Goods,0),MATCH(P$8,Parameters_Constants!$K$100:$AF$100,0))=FALSE)","v":false},{"$f":"IF(OR($D59=\"\",$D59=CONST_NA),FALSE,INDEX(Parameters_Constants!$K$101:$AF$118,MATCH($E59,CONST_LIST_Goods,0),MATCH(Q$8,Parameters_Constants!$K$100:$AF$100,0))=FALSE)","v":false},{"$f":"IF(OR($D59=\"\",$D59=CONST_NA),FALSE,INDEX(Parameters_Constants!$K$101:$AF$118,MATCH($E59,CONST_LIST_Goods,0),MATCH(R$8,Parameters_Constants!$K$100:$AF$100,0))=FALSE)","v":false},{"$f":"IF(OR($D59=\"\",$D59=CONST_NA),FALSE,INDEX(Parameters_Constants!$K$101:$AF$118,MATCH($E59,CONST_LIST_Goods,0),MATCH(S$8,Parameters_Constants!$K$100:$AF$100,0))=FALSE)","v":false},{"$f":"IF(OR($D59=\"\",$D59=CONST_NA),FALSE,INDEX(Parameters_Constants!$K$101:$AF$118,MATCH($E59,CONST_LIST_Goods,0),MATCH(T$8,Parameters_Constants!$K$100:$AF$100,0))=FALSE)","v":false},{"$f":"IF(OR($D59=\"\",$D59=CONST_NA),FALSE,INDEX(Parameters_Constants!$K$101:$AF$118,MATCH($E59,CONST_LIST_Goods,0),MATCH(U$8,Parameters_Constants!$K$100:$AF$100,0))=FALSE)","v":false},{"$f":"IF(OR($D59=\"\",$D59=CONST_NA),FALSE,INDEX(Parameters_Constants!$K$101:$AF$118,MATCH($E59,CONST_LIST_Goods,0),MATCH(V$8,Parameters_Constants!$K$100:$AF$100,0))=FALSE)","v":false},{"$f":"IF(OR($D59=\"\",$D59=CONST_NA),FALSE,INDEX(Parameters_Constants!$K$101:$AF$118,MATCH($E59,CONST_LIST_Goods,0),MATCH(W$8,Parameters_Constants!$K$100:$AF$100,0))=FALSE)","v":false},{"$f":"IF(OR($D59=\"\",$D59=CONST_NA),FALSE,INDEX(Parameters_Constants!$K$101:$AF$118,MATCH($E59,CONST_LIST_Goods,0),MATCH(X$8,Parameters_Constants!$K$100:$AF$100,0))=FALSE)","v":false},{"$f":"IF(OR($D59=\"\",$D59=CONST_NA),FALSE,INDEX(Parameters_Constants!$K$101:$AF$118,MATCH($E59,CONST_LIST_Goods,0),MATCH(Y$8,Parameters_Constants!$K$100:$AF$100,0))=FALSE)","v":false},{"$f":"IF(OR($D59=\"\",$D59=CONST_NA),FALSE,INDEX(Parameters_Constants!$K$101:$AF$118,MATCH($E59,CONST_LIST_Goods,0),MATCH(Z$8,Parameters_Constants!$K$100:$AF$100,0))=FALSE)","v":false},{"$f":"IF(OR($D59=\"\",$D59=CONST_NA),FALSE,INDEX(Parameters_Constants!$K$101:$AF$118,MATCH($E59,CONST_LIST_Goods,0),MATCH(AA$8,Parameters_Constants!$K$100:$AF$100,0))=FALSE)","v":false},{"$f":"IF(OR($D59=\"\",$D59=CONST_NA),FALSE,INDEX(Parameters_Constants!$K$101:$AF$118,MATCH($E59,CONST_LIST_Goods,0),MATCH(AB$8,Parameters_Constants!$K$100:$AF$100,0))=FALSE)","v":false},{"$f":"IF(OR($D59=\"\",$D59=CONST_NA),FALSE,INDEX(Parameters_Constants!$K$101:$AF$118,MATCH($E59,CONST_LIST_Goods,0),MATCH(AC$8,Parameters_Constants!$K$100:$AF$100,0))=FALSE)","v":false},{"$f":"IF(OR($D59=\"\",$D59=CONST_NA),FALSE,INDEX(Parameters_Constants!$K$101:$AF$118,MATCH($E59,CONST_LIST_Goods,0),MATCH(AD$8,Parameters_Constants!$K$100:$AF$100,0))=FALSE)","v":false},{"$f":"IF(OR($D59=\"\",$D59=CONST_NA),FALSE,INDEX(Parameters_Constants!$K$101:$AF$118,MATCH($E59,CONST_LIST_Goods,0),MATCH(AE$8,Parameters_Constants!$K$100:$AF$100,0))=FALSE)","v":false},{"$f":"IF(OR($D59=\"\",$D59=CONST_NA),FALSE,INDEX(Parameters_Constants!$K$101:$AF$118,MATCH($E59,CONST_LIST_Goods,0),MATCH(AF$8,Parameters_Constants!$K$100:$AF$100,0))=FALSE)","v":false},{"$f":"IF(OR($D59=\"\",$D59=CONST_NA),FALSE,INDEX(Parameters_Constants!$K$101:$AF$118,MATCH($E59,CONST_LIST_Goods,0),MATCH(AG$8,Parameters_Constants!$K$100:$AF$100,0))=FALSE)","v":false},{"$f":"IF(OR($D59=\"\",$D59=CONST_NA),FALSE,INDEX(Parameters_Constants!$K$101:$AF$118,MATCH($E59,CONST_LIST_Goods,0),MATCH(AH$8,Parameters_Constants!$K$100:$AF$100,0))=FALSE)","v":false},{"$f":"IF(OR($D59=\"\",$D59=CONST_NA),FALSE,INDEX(Parameters_Constants!$K$101:$AF$118,MATCH($E59,CONST_LIST_Goods,0),MATCH(AI$8,Parameters_Constants!$K$100:$AF$100,0))=FALSE)","v":false},{"$f":"IF(OR($D59=\"\",$D59=CONST_NA),FALSE,INDEX(Parameters_Constants!$K$101:$AF$118,MATCH($E59,CONST_LIST_Goods,0),MATCH(AJ$8,Parameters_Constants!$K$100:$AF$100,0))=FALSE)","v":false},{"$f":"IF(OR($D59=\"\",$D59=CONST_NA),FALSE,INDEX(Parameters_Constants!$K$101:$AF$118,MATCH($E59,CONST_LIST_Goods,0),MATCH(AK$8,Parameters_Constants!$K$100:$AF$100,0))=FALSE)","v":false}]
["ausblenden",null,51,null,null,false,null,false,{"$nulls":7},{"$f":"IF(OR($D60=\"\",$D60=CONST_NA),FALSE,INDEX(Parameters_Constants!$K$101:$AF$118,MATCH($E60,CONST_LIST_Goods,0),MATCH(P$8,Parameters_Constants!$K$100:$AF$100,0))=FALSE)","v":false},{"$f":"IF(OR($D60=\"\",$D60=CONST_NA),FALSE,INDEX(Parameters_Constants!$K$101:$AF$118,MATCH($E60,CONST_LIST_Goods,0),MATCH(Q$8,Parameters_Constants!$K$100:$AF$100,0))=FALSE)","v":false},{"$f":"IF(OR($D60=\"\",$D60=CONST_NA),FALSE,INDEX(Parameters_Constants!$K$101:$AF$118,MATCH($E60,CONST_LIST_Goods,0),MATCH(R$8,Parameters_Constants!$K$100:$AF$100,0))=FALSE)","v":false},{"$f":"IF(OR($D60=\"\",$D60=CONST_NA),FALSE,INDEX(Parameters_Constants!$K$101:$AF$118,MATCH($E60,CONST_LIST_Goods,0),MATCH(S$8,Parameters_Constants!$K$100:$AF$100,0))=FALSE)","v":false},{"$f":"IF(OR($D60=\"\",$D60=CONST_NA),FALSE,INDEX(Parameters_Constants!$K$101:$AF$118,MATCH($E60,CONST_LIST_Goods,0),MATCH(T$8,Parameters_Constants!$K$100:$AF$100,0))=FALSE)","v":false},{"$f":"IF(OR($D60=\"\",$D60=CONST_NA),FALSE,INDEX(Parameters_Constants!$K$101:$AF$118,MATCH($E60,CONST_LIST_Goods,0),MATCH(U$8,Parameters_Constants!$K$100:$AF$100,0))=FALSE)","v":false},{"$f":"IF(OR($D60=\"\",$D60=CONST_NA),FALSE,INDEX(Parameters_Constants!$K$101:$AF$118,MATCH($E60,CONST_LIST_Goods,0),MATCH(V$8,Parameters_Constants!$K$100:$AF$100,0))=FALSE)","v":false},{"$f":"IF(OR($D60=\"\",$D60=CONST_NA),FALSE,INDEX(Parameters_Constants!$K$101:$AF$118,MATCH($E60,CONST_LIST_Goods,0),MATCH(W$8,Parameters_Constants!$K$100:$AF$100,0))=FALSE)","v":false},{"$f":"IF(OR($D60=\"\",$D60=CONST_NA),FALSE,INDEX(Parameters_Constants!$K$101:$AF$118,MATCH($E60,CONST_LIST_Goods,0),MATCH(X$8,Parameters_Constants!$K$100:$AF$100,0))=FALSE)","v":false},{"$f":"IF(OR($D60=\"\",$D60=CONST_NA),FALSE,INDEX(Parameters_Constants!$K$101:$AF$118,MATCH($E60,CONST_LIST_Goods,0),MATCH(Y$8,Parameters_Constants!$K$100:$AF$100,0))=FALSE)","v":false},{"$f":"IF(OR($D60=\"\",$D60=CONST_NA),FALSE,INDEX(Parameters_Constants!$K$101:$AF$118,MATCH($E60,CONST_LIST_Goods,0),MATCH(Z$8,Parameters_Constants!$K$100:$AF$100,0))=FALSE)","v":false},{"$f":"IF(OR($D60=\"\",$D60=CONST_NA),FALSE,INDEX(Parameters_Constants!$K$101:$AF$118,MATCH($E60,CONST_LIST_Goods,0),MATCH(AA$8,Parameters_Constants!$K$100:$AF$100,0))=FALSE)","v":false},{"$f":"IF(OR($D60=\"\",$D60=CONST_NA),FALSE,INDEX(Parameters_Constants!$K$101:$AF$118,MATCH($E60,CONST_LIST_Goods,0),MATCH(AB$8,Parameters_Constants!$K$100:$AF$100,0))=FALSE)","v":false},{"$f":"IF(OR($D60=\"\",$D60=CONST_NA),FALSE,INDEX(Parameters_Constants!$K$101:$AF$118,MATCH($E60,CONST_LIST_Goods,0),MATCH(AC$8,Parameters_Constants!$K$100:$AF$100,0))=FALSE)","v":false},{"$f":"IF(OR($D60=\"\",$D60=CONST_NA),FALSE,INDEX(Parameters_Constants!$K$101:$AF$118,MATCH($E60,CONST_LIST_Goods,0),MATCH(AD$8,Parameters_Constants!$K$100:$AF$100,0))=FALSE)","v":false},{"$f":"IF(OR($D60=\"\",$D60=CONST_NA),FALSE,INDEX(Parameters_Constants!$K$101:$AF$118,MATCH($E60,CONST_LIST_Goods,0),MATCH(AE$8,Parameters_Constants!$K$100:$AF$100,0))=FALSE)","v":false},{"$f":"IF(OR($D60=\"\",$D60=CONST_NA),FALSE,INDEX(Parameters_Constants!$K$101:$AF$118,MATCH($E60,CONST_LIST_Goods,0),MATCH(AF$8,Parameters_Constants!$K$100:$AF$100,0))=FALSE)","v":false},{"$f":"IF(OR($D60=\"\",$D60=CONST_NA),FALSE,INDEX(Parameters_Constants!$K$101:$AF$118,MATCH($E60,CONST_LIST_Goods,0),MATCH(AG$8,Parameters_Constants!$K$100:$AF$100,0))=FALSE)","v":false},{"$f":"IF(OR($D60=\"\",$D60=CONST_NA),FALSE,INDEX(Parameters_Constants!$K$101:$AF$118,MATCH($E60,CONST_LIST_Goods,0),MATCH(AH$8,Parameters_Constants!$K$100:$AF$100,0))=FALSE)","v":false},{"$f":"IF(OR($D60=\"\",$D60=CONST_NA),FALSE,INDEX(Parameters_Constants!$K$101:$AF$118,MATCH($E60,CONST_LIST_Goods,0),MATCH(AI$8,Parameters_Constants!$K$100:$AF$100,0))=FALSE)","v":false},{"$f":"IF(OR($D60=\"\",$D60=CONST_NA),FALSE,INDEX(Parameters_Constants!$K$101:$AF$118,MATCH($E60,CONST_LIST_Goods,0),MATCH(AJ$8,Parameters_Constants!$K$100:$AF$100,0))=FALSE)","v":false},{"$f":"IF(OR($D60=\"\",$D60=CONST_NA),FALSE,INDEX(Parameters_Constants!$K$101:$AF$118,MATCH($E60,CONST_LIST_Goods,0),MATCH(AK$8,Parameters_Constants!$K$100:$AF$100,0))=FALSE)","v":false}]
["ausblenden",null,52,null,null,false,null,false,{"$nulls":7},{"$f":"IF(OR($D61=\"\",$D61=CONST_NA),FALSE,INDEX(Parameters_Constants!$K$101:$AF$118,MATCH($E61,CONST_LIST_Goods,0),MATCH(P$8,Parameters_Constants!$K$100:$AF$100,0))=FALSE)","v":false},{"$f":"IF(OR($D61=\"\",$D61=CONST_NA),FALSE,INDEX(Parameters_Constants!$K$101:$AF$118,MATCH($E61,CONST_LIST_Goods,0),MATCH(Q$8,Parameters_Constants!$K$100:$AF$100,0))=FALSE)","v":false},{"$f":"IF(OR($D61=\"\",$D61=CONST_NA),FALSE,INDEX(Parameters_Constants!$K$101:$AF$118,MATCH($E61,CONST_LIST_Goods,0),MATCH(R$8,Parameters_Constants!$K$100:$AF$100,0))=FALSE)","v":false},{"$f":"IF(OR($D61=\"\",$D61=CONST_NA),FALSE,INDEX(Parameters_Constants!$K$101:$AF$118,MATCH($E61,CONST_LIST_Goods,0),MATCH(S$8,Parameters_Constants!$K$100:$AF$100,0))=FALSE)","v":false},{"$f":"IF(OR($D61=\"\",$D61=CONST_NA),FALSE,INDEX(Parameters_Constants!$K$101:$AF$118,MATCH($E61,CONST_LIST_Goods,0),MATCH(T$8,Parameters_Constants!$K$100:$AF$100,0))=FALSE)","v":false},{"$f":"IF(OR($D61=\"\",$D61=CONST_NA),FALSE,INDEX(Parameters_Constants!$K$101:$AF$118,MATCH($E61,CONST_LIST_Goods,0),MATCH(U$8,Parameters_Constants!$K$100:$AF$100,0))=FALSE)","v":false},{"$f":"IF(OR($D61=\"\",$D61=CONST_NA),FALSE,INDEX(Parameters_Constants!$K$101:$AF$118,MATCH($E61,CONST_LIST_Goods,0),MATCH(V$8,Parameters_Constants!$K$100:$AF$100,0))=FALSE)","v":false},{"$f":"IF(OR($D61=\"\",$D61=CONST_NA),FALSE,INDEX(Parameters_Constants!$K$101:$AF$118,MATCH($E61,CONST_LIST_Goods,0),MATCH(W$8,Parameters_Constants!$K$100:$AF$100,0))=FALSE)","v":false},{"$f":"IF(OR($D61=\"\",$D61=CONST_NA),FALSE,INDEX(Parameters_Constants!$K$101:$AF$118,MATCH($E61,CONST_LIST_Goods,0),MATCH(X$8,Parameters_Constants!$K$100:$AF$100,0))=FALSE)","v":false},{"$f":"IF(OR($D61=\"\",$D61=CONST_NA),FALSE,INDEX(Parameters_Constants!$K$101:$AF$118,MATCH($E61,CONST_LIST_Goods,0),MATCH(Y$8,Parameters_Constants!$K$100:$AF$100,0))=FALSE)","v":false},{"$f":"IF(OR($D61=\"\",$D61=CONST_NA),FALSE,INDEX(Parameters_Constants!$K$101:$AF$118,MATCH($E61,CONST_LIST_Goods,0),MATCH(Z$8,Parameters_Constants!$K$100:$AF$100,0))=FALSE)","v":false},{"$f":"IF(OR($D61=\"\",$D61=CONST_NA),FALSE,INDEX(Parameters_Constants!$K$101:$AF$118,MATCH($E61,CONST_LIST_Goods,0),MATCH(AA$8,Parameters_Constants!$K$100:$AF$100,0))=FALSE)","v":false},{"$f":"IF(OR($D61=\"\",$D61=CONST_NA),FALSE,INDEX(Parameters_Constants!$K$101:$AF$118,MATCH($E61,CONST_LIST_Goods,0),MATCH(AB$8,Parameters_Constants!$K$100:$AF$100,0))=FALSE)","v":false},{"$f":"IF(OR($D61=\"\",$D61=CONST_NA),FALSE,INDEX(Parameters_Constants!$K$101:$AF$118,MATCH($E61,CONST_LIST_Goods,0),MATCH(AC$8,Parameters_Constants!$K$100:$AF$100,0))=FALSE)","v":false},{"$f":"IF(OR($D61=\"\",$D61=CONST_NA),FALSE,INDEX(Parameters_Constants!$K$101:$AF$118,MATCH($E61,CONST_LIST_Goods,0),MATCH(AD$8,Parameters_Constants!$K$100:$AF$100,0))=FALSE)","v":false},{"$f":"IF(OR($D61=\"\",$D61=CONST_NA),FALSE,INDEX(Parameters_Constants!$K$101:$AF$118,MATCH($E61,CONST_LIST_Goods,0),MATCH(AE$8,Parameters_Constants!$K$100:$AF$100,0))=FALSE)","v":false},{"$f":"IF(OR($D61=\"\",$D61=CONST_NA),FALSE,INDEX(Parameters_Constants!$K$101:$AF$118,MATCH($E61,CONST_LIST_Goods,0),MATCH(AF$8,Parameters_Constants!$K$100:$AF$100,0))=FALSE)","v":false},{"$f":"IF(OR($D61=\"\",$D61=CONST_NA),FALSE,INDEX(Parameters_Constants!$K$101:$AF$118,MATCH($E61,CONST_LIST_Goods,0),MATCH(AG$8,Parameters_Constants!$K$100:$AF$100,0))=FALSE)","v":false},{"$f":"IF(OR($D61=\"\",$D61=CONST_NA),FALSE,INDEX(Parameters_Constants!$K$101:$AF$118,MATCH($E61,CONST_LIST_Goods,0),MATCH(AH$8,Parameters_Constants!$K$100:$AF$100,0))=FALSE)","v":false},{"$f":"IF(OR($D61=\"\",$D61=CONST_NA),FALSE,INDEX(Parameters_Constants!$K$101:$AF$118,MATCH($E61,CONST_LIST_Goods,0),MATCH(AI$8,Parameters_Constants!$K$100:$AF$100,0))=FALSE)","v":false},{"$f":"IF(OR($D61=\"\",$D61=CONST_NA),FALSE,INDEX(Parameters_Constants!$K$101:$AF$118,MATCH($E61,CONST_LIST_Goods,0),MATCH(AJ$8,Parameters_Constants!$K$100:$AF$100,0))=FALSE)","v":false},{"$f":"IF(OR($D61=\"\",$D61=CONST_NA),FALSE,INDEX(Parameters_Constants!$K$101:$AF$118,MATCH($E61,CONST_LIST_Goods,0),MATCH(AK$8,Parameters_Constants!$K$100:$AF$100,0))=FALSE)","v":false}]
["ausblenden",null,53,null,null,false,null,false,{"$nulls":7},{"$f":"IF(OR($D62=\"\",$D62=CONST_NA),FALSE,INDEX(Parameters_Constants!$K$101:$AF$118,MATCH($E62,CONST_LIST_Goods,0),MATCH(P$8,Parameters_Constants!$K$100:$AF$100,0))=FALSE)","v":false},{"$f":"IF(OR($D62=\"\",$D62=CONST_NA),FALSE,INDEX(Parameters_Constants!$K$101:$AF$118,MATCH($E62,CONST_LIST_Goods,0),MATCH(Q$8,Parameters_Constants!$K$100:$AF$100,0))=FALSE)","v":false},{"$f":"IF(OR($D62=\"\",$D62=CONST_NA),FALSE,INDEX(Parameters_Constants!$K$101:$AF$118,MATCH($E62,CONST_LIST_Goods,0),MATCH(R$8,Parameters_Constants!$K$100:$AF$100,0))=FALSE)","v":false},{"$f":"IF(OR($D62=\"\",$D62=CONST_NA),FALSE,INDEX(Parameters_Constants!$K$101:$AF$118,MATCH($E62,CONST_LIST_Goods,0),MATCH(S$8,Parameters_Constants!$K$100:$AF$100,0))=FALSE)","v":false},{"$f":"IF(OR($D62=\"\",$D62=CONST_NA),FALSE,INDEX(Parameters_Constants!$K$101:$AF$118,MATCH($E62,CONST_LIST_Goods,0),MATCH(T$8,Parameters_Constants!$K$100:$AF$100,0))=FALSE)","v":false},{"$f":"IF(OR($D62=\"\",$D62=CONST_NA),FALSE,INDEX(Parameters_Constants!$K$101:$AF$118,MATCH($E62,CONST_LIST_Goods,0),MATCH(U$8,Parameters_Constants!$K$100:$AF$100,0))=FALSE)","v":false},{"$f":"IF(OR($D62=\"\",$D62=CONST_NA),FALSE,INDEX(Parameters_Constants!$K$101:$AF$118,MATCH($E62,CONST_LIST_Goods,0),MATCH(V$8,Parameters_Constants!$K$100:$AF$100,0))=FALSE)","v":false},{"$f":"IF(OR($D62=\"\",$D62=CONST_NA),FALSE,INDEX(Parameters_Constants!$K$101:$AF$118,MATCH($E62,CONST_LIST_Goods,0),MATCH(W$8,Parameters_Constants!$K$100:$AF$100,0))=FALSE)","v":false},{"$f":"IF(OR($D62=\"\",$D62=CONST_NA),FALSE,INDEX(Parameters_Constants!$K$101:$AF$118,MATCH($E62,CONST_LIST_Goods,0),MATCH(X$8,Parameters_Constants!$K$100:$AF$100,0))=FALSE)","v":false},{"$f":"IF(OR($D62=\"\",$D62=CONST_NA),FALSE,INDEX(Parameters_Constants!$K$101:$AF$118,MATCH($E62,CONST_LIST_Goods,0),MATCH(Y$8,Parameters_Constants!$K$100:$AF$100,0))=FALSE)","v":false},{"$f":"IF(OR($D62=\"\",$D62=CONST_NA),FALSE,INDEX(Parameters_Constants!$K$101:$AF$118,MATCH($E62,CONST_LIST_Goods,0),MATCH(Z$8,Parameters_Constants!$K$100:$AF$100,0))=FALSE)","v":false},{"$f":"IF(OR($D62=\"\",$D62=CONST_NA),FALSE,INDEX(Parameters_Constants!$K$101:$AF$118,MATCH($E62,CONST_LIST_Goods,0),MATCH(AA$8,Parameters_Constants!$K$100:$AF$100,0))=FALSE)","v":false},{"$f":"IF(OR($D62=\"\",$D62=CONST_NA),FALSE,INDEX(Parameters_Constants!$K$101:$AF$118,MATCH($E62,CONST_LIST_Goods,0),MATCH(AB$8,Parameters_Constants!$K$100:$AF$100,0))=FALSE)","v":false},{"$f":"IF(OR($D62=\"\",$D62=CONST_NA),FALSE,INDEX(Parameters_Constants!$K$101:$AF$118,MATCH($E62,CONST_LIST_Goods,0),MATCH(AC$8,Parameters_Constants!$K$100:$AF$100,0))=FALSE)","v":false},{"$f":"IF(OR($D62=\"\",$D62=CONST_NA),FALSE,INDEX(Parameters_Constants!$K$101:$AF$118,MATCH($E62,CONST_LIST_Goods,0),MATCH(AD$8,Parameters_Constants!$K$100:$AF$100,0))=FALSE)","v":false},{"$f":"IF(OR($D62=\"\",$D62=CONST_NA),FALSE,INDEX(Parameters_Constants!$K$101:$AF$118,MATCH($E62,CONST_LIST_Goods,0),MATCH(AE$8,Parameters_Constants!$K$100:$AF$100,0))=FALSE)","v":false},{"$f":"IF(OR($D62=\"\",$D62=CONST_NA),FALSE,INDEX(Parameters_Constants!$K$101:$AF$118,MATCH($E62,CONST_LIST_Goods,0),MATCH(AF$8,Parameters_Constants!$K$100:$AF$100,0))=FALSE)","v":false},{"$f":"IF(OR($D62=\"\",$D62=CONST_NA),FALSE,INDEX(Parameters_Constants!$K$101:$AF$118,MATCH($E62,CONST_LIST_Goods,0),MATCH(AG$8,Parameters_Constants!$K$100:$AF$100,0))=FALSE)","v":false},{"$f":"IF(OR($D62=\"\",$D62=CONST_NA),FALSE,INDEX(Parameters_Constants!$K$101:$AF$118,MATCH($E62,CONST_LIST_Goods,0),MATCH(AH$8,Parameters_Constants!$K$100:$AF$100,0))=FALSE)","v":false},{"$f":"IF(OR($D62=\"\",$D62=CONST_NA),FALSE,INDEX(Parameters_Constants!$K$101:$AF$118,MATCH($E62,CONST_LIST_Goods,0),MATCH(AI$8,Parameters_Constants!$K$100:$AF$100,0))=FALSE)","v":false},{"$f":"IF(OR($D62=\"\",$D62=CONST_NA),FALSE,INDEX(Parameters_Constants!$K$101:$AF$118,MATCH($E62,CONST_LIST_Goods,0),MATCH(AJ$8,Parameters_Constants!$K$100:$AF$100,0))=FALSE)","v":false},{"$f":"IF(OR($D62=\"\",$D62=CONST_NA),FALSE,INDEX(Parameters_Constants!$K$101:$AF$118,MATCH($E62,CONST_LIST_Goods,0),MATCH(AK$8,Parameters_Constants!$K$100:$AF$100,0))=FALSE)","v":false}]
["ausblenden",null,54,null,null,false,null,false,{"$nulls":7},{"$f":"IF(OR($D63=\"\",$D63=CONST_NA),FALSE,INDEX(Parameters_Constants!$K$101:$AF$118,MATCH($E63,CONST_LIST_Goods,0),MATCH(P$8,Parameters_Constants!$K$100:$AF$100,0))=FALSE)","v":false},{"$f":"IF(OR($D63=\"\",$D63=CONST_NA),FALSE,INDEX(Parameters_Constants!$K$101:$AF$118,MATCH($E63,CONST_LIST_Goods,0),MATCH(Q$8,Parameters_Constants!$K$100:$AF$100,0))=FALSE)","v":false},{"$f":"IF(OR($D63=\"\",$D63=CONST_NA),FALSE,INDEX(Parameters_Constants!$K$101:$AF$118,MATCH($E63,CONST_LIST_Goods,0),MATCH(R$8,Parameters_Constants!$K$100:$AF$100,0))=FALSE)","v":false},{"$f":"IF(OR($D63=\"\",$D63=CONST_NA),FALSE,INDEX(Parameters_Constants!$K$101:$AF$118,MATCH($E63,CONST_LIST_Goods,0),MATCH(S$8,Parameters_Constants!$K$100:$AF$100,0))=FALSE)","v":false},{"$f":"IF(OR($D63=\"\",$D63=CONST_NA),FALSE,INDEX(Parameters_Constants!$K$101:$AF$118,MATCH($E63,CONST_LIST_Goods,0),MATCH(T$8,Parameters_Constants!$K$100:$AF$100,0))=FALSE)","v":false},{"$f":"IF(OR($D63=\"\",$D63=CONST_NA),FALSE,INDEX(Parameters_Constants!$K$101:$AF$118,MATCH($E63,CONST_LIST_Goods,0),MATCH(U$8,Parameters_Constants!$K$100:$AF$100,0))=FALSE)","v":false},{"$f":"IF(OR($D63=\"\",$D63=CONST_NA),FALSE,INDEX(Parameters_Constants!$K$101:$AF$118,MATCH($E63,CONST_LIST_Goods,0),MATCH(V$8,Parameters_Constants!$K$100:$AF$100,0))=FALSE)","v":false},{"$f":"IF(OR($D63=\"\",$D63=CONST_NA),FALSE,INDEX(Parameters_Constants!$K$101:$AF$118,MATCH($E63,CONST_LIST_Goods,0),MATCH(W$8,Parameters_Constants!$K$100:$AF$100,0))=FALSE)","v":false},{"$f":"IF(OR($D63=\"\",$D63=CONST_NA),FALSE,INDEX(Parameters_Constants!$K$101:$AF$118,MATCH($E63,CONST_LIST_Goods,0),MATCH(X$8,Parameters_Constants!$K$100:$AF$100,0))=FALSE)","v":false},{"$f":"IF(OR($D63=\"\",$D63=CONST_NA),FALSE,INDEX(Parameters_Constants!$K$101:$AF$118,MATCH($E63,CONST_LIST_Goods,0),MATCH(Y$8,Parameters_Constants!$K$100:$AF$100,0))=FALSE)","v":false},{"$f":"IF(OR($D63=\"\",$D63=CONST_NA),FALSE,INDEX(Parameters_Constants!$K$101:$AF$118,MATCH($E63,CONST_LIST_Goods,0),MATCH(Z$8,Parameters_Constants!$K$100:$AF$100,0))=FALSE)","v":false},{"$f":"IF(OR($D63=\"\",$D63=CONST_NA),FALSE,INDEX(Parameters_Constants!$K$101:$AF$118,MATCH($E63,CONST_LIST_Goods,0),MATCH(AA$8,Parameters_Constants!$K$100:$AF$100,0))=FALSE)","v":false},{"$f":"IF(OR($D63=\"\",$D63=CONST_NA),FALSE,INDEX(Parameters_Constants!$K$101:$AF$118,MATCH($E63,CONST_LIST_Goods,0),MATCH(AB$8,Parameters_Constants!$K$100:$AF$100,0))=FALSE)","v":false},{"$f":"IF(OR($D63=\"\",$D63=CONST_NA),FALSE,INDEX(Parameters_Constants!$K$101:$AF$118,MATCH($E63,CONST_LIST_Goods,0),MATCH(AC$8,Parameters_Constants!$K$100:$AF$100,0))=FALSE)","v":false},{"$f":"IF(OR($D63=\"\",$D63=CONST_NA),FALSE,INDEX(Parameters_Constants!$K$101:$AF$118,MATCH($E63,CONST_LIST_Goods,0),MATCH(AD$8,Parameters_Constants!$K$100:$AF$100,0))=FALSE)","v":false},{"$f":"IF(OR($D63=\"\",$D63=CONST_NA),FALSE,INDEX(Parameters_Constants!$K$101:$AF$118,MATCH($E63,CONST_LIST_Goods,0),MATCH(AE$8,Parameters_Constants!$K$100:$AF$100,0))=FALSE)","v":false},{"$f":"IF(OR($D63=\"\",$D63=CONST_NA),FALSE,INDEX(Parameters_Constants!$K$101:$AF$118,MATCH($E63,CONST_LIST_Goods,0),MATCH(AF$8,Parameters_Constants!$K$100:$AF$100,0))=FALSE)","v":false},{"$f":"IF(OR($D63=\"\",$D63=CONST_NA),FALSE,INDEX(Parameters_Constants!$K$101:$AF$118,MATCH($E63,CONST_LIST_Goods,0),MATCH(AG$8,Parameters_Constants!$K$100:$AF$100,0))=FALSE)","v":false},{"$f":"IF(OR($D63=\"\",$D63=CONST_NA),FALSE,INDEX(Parameters_Constants!$K$101:$AF$118,MATCH($E63,CONST_LIST_Goods,0),MATCH(AH$8,Parameters_Constants!$K$100:$AF$100,0))=FALSE)","v":false},{"$f":"IF(OR($D63=\"\",$D63=CONST_NA),FALSE,INDEX(Parameters_Constants!$K$101:$AF$118,MATCH($E63,CONST_LIST_Goods,0),MATCH(AI$8,Parameters_Constants!$K$100:$AF$100,0))=FALSE)","v":false},{"$f":"IF(OR($D63=\"\",$D63=CONST_NA),FALSE,INDEX(Parameters_Constants!$K$101:$AF$118,MATCH($E63,CONST_LIST_Goods,0),MATCH(AJ$8,Parameters_Constants!$K$100:$AF$100,0))=FALSE)","v":false},{"$f":"IF(OR($D63=\"\",$D63=CONST_NA),FALSE,INDEX(Parameters_Constants!$K$101:$AF$118,MATCH($E63,CONST_LIST_Goods,0),MATCH(AK$8,Parameters_Constants!$K$100:$AF$100,0))=FALSE)","v":false}]
["ausblenden",null,55,null,null,false,null,false,{"$nulls":7},{"$f":"IF(OR($D64=\"\",$D64=CONST_NA),FALSE,INDEX(Parameters_Constants!$K$101:$AF$118,MATCH($E64,CONST_LIST_Goods,0),MATCH(P$8,Parameters_Constants!$K$100:$AF$100,0))=FALSE)","v":false},{"$f":"IF(OR($D64=\"\",$D64=CONST_NA),FALSE,INDEX(Parameters_Constants!$K$101:$AF$118,MATCH($E64,CONST_LIST_Goods,0),MATCH(Q$8,Parameters_Constants!$K$100:$AF$100,0))=FALSE)","v":false},{"$f":"IF(OR($D64=\"\",$D64=CONST_NA),FALSE,INDEX(Parameters_Constants!$K$101:$AF$118,MATCH($E64,CONST_LIST_Goods,0),MATCH(R$8,Parameters_Constants!$K$100:$AF$100,0))=FALSE)","v":false},{"$f":"IF(OR($D64=\"\",$D64=CONST_NA),FALSE,INDEX(Parameters_Constants!$K$101:$AF$118,MATCH($E64,CONST_LIST_Goods,0),MATCH(S$8,Parameters_Constants!$K$100:$AF$100,0))=FALSE)","v":false},{"$f":"IF(OR($D64=\"\",$D64=CONST_NA),FALSE,INDEX(Parameters_Constants!$K$101:$AF$118,MATCH($E64,CONST_LIST_Goods,0),MATCH(T$8,Parameters_Constants!$K$100:$AF$100,0))=FALSE)","v":false},{"$f":"IF(OR($D64=\"\",$D64=CONST_NA),FALSE,INDEX(Parameters_Constants!$K$101:$AF$118,MATCH($E64,CONST_LIST_Goods,0),MATCH(U$8,Parameters_Constants!$K$100:$AF$100,0))=FALSE)","v":false},{"$f":"IF(OR($D64=\"\",$D64=CONST_NA),FALSE,INDEX(Parameters_Constants!$K$101:$AF$118,MATCH($E64,CONST_LIST_Goods,0),MATCH(V$8,Parameters_Constants!$K$100:$AF$100,0))=FALSE)","v":false},{"$f":"IF(OR($D64=\"\",$D64=CONST_NA),FALSE,INDEX(Parameters_Constants!$K$101:$AF$118,MATCH($E64,CONST_LIST_Goods,0),MATCH(W$8,Parameters_Constants!$K$100:$AF$100,0))=FALSE)","v":false},{"$f":"IF(OR($D64=\"\",$D64=CONST_NA),FALSE,INDEX(Parameters_Constants!$K$101:$AF$118,MATCH($E64,CONST_LIST_Goods,0),MATCH(X$8,Parameters_Constants!$K$100:$AF$100,0))=FALSE)","v":false},{"$f":"IF(OR($D64=\"\",$D64=CONST_NA),FALSE,INDEX(Parameters_Constants!$K$101:$AF$118,MATCH($E64,CONST_LIST_Goods,0),MATCH(Y$8,Parameters_Constants!$K$100:$AF$100,0))=FALSE)","v":false},{"$f":"IF(OR($D64=\"\",$D64=CONST_NA),FALSE,INDEX(Parameters_Constants!$K$101:$AF$118,MATCH($E64,CONST_LIST_Goods,0),MATCH(Z$8,Parameters_Constants!$K$100:$AF$100,0))=FALSE)","v":false},{"$f":"IF(OR($D64=\"\",$D64=CONST_NA),FALSE,INDEX(Parameters_Constants!$K$101:$AF$118,MATCH($E64,CONST_LIST_Goods,0),MATCH(AA$8,Parameters_Constants!$K$100:$AF$100,0))=FALSE)","v":false},{"$f":"IF(OR($D64=\"\",$D64=CONST_NA),FALSE,INDEX(Parameters_Constants!$K$101:$AF$118,MATCH($E64,CONST_LIST_Goods,0),MATCH(AB$8,Parameters_Constants!$K$100:$AF$100,0))=FALSE)","v":false},{"$f":"IF(OR($D64=\"\",$D64=CONST_NA),FALSE,INDEX(Parameters_Constants!$K$101:$AF$118,MATCH($E64,CONST_LIST_Goods,0),MATCH(AC$8,Parameters_Constants!$K$100:$AF$100,0))=FALSE)","v":false},{"$f":"IF(OR($D64=\"\",$D64=CONST_NA),FALSE,INDEX(Parameters_Constants!$K$101:$AF$118,MATCH($E64,CONST_LIST_Goods,0),MATCH(AD$8,Parameters_Constants!$K$100:$AF$100,0))=FALSE)","v":false},{"$f":"IF(OR($D64=\"\",$D64=CONST_NA),FALSE,INDEX(Parameters_Constants!$K$101:$AF$118,MATCH($E64,CONST_LIST_Goods,0),MATCH(AE$8,Parameters_Constants!$K$100:$AF$100,0))=FALSE)","v":false},{"$f":"IF(OR($D64=\"\",$D64=CONST_NA),FALSE,INDEX(Parameters_Constants!$K$101:$AF$118,MATCH($E64,CONST_LIST_Goods,0),MATCH(AF$8,Parameters_Constants!$K$100:$AF$100,0))=FALSE)","v":false},{"$f":"IF(OR($D64=\"\",$D64=CONST_NA),FALSE,INDEX(Parameters_Constants!$K$101:$AF$118,MATCH($E64,CONST_LIST_Goods,0),MATCH(AG$8,Parameters_Constants!$K$100:$AF$100,0))=FALSE)","v":false},{"$f":"IF(OR($D64=\"\",$D64=CONST_NA),FALSE,INDEX(Parameters_Constants!$K$101:$AF$118,MATCH($E64,CONST_LIST_Goods,0),MATCH(AH$8,Parameters_Constants!$K$100:$AF$100,0))=FALSE)","v":false},{"$f":"IF(OR($D64=\"\",$D64=CONST_NA),FALSE,INDEX(Parameters_Constants!$K$101:$AF$118,MATCH($E64,CONST_LIST_Goods,0),MATCH(AI$8,Parameters_Constants!$K$100:$AF$100,0))=FALSE)","v":false},{"$f":"IF(OR($D64=\"\",$D64=CONST_NA),FALSE,INDEX(Parameters_Constants!$K$101:$AF$118,MATCH($E64,CONST_LIST_Goods,0),MATCH(AJ$8,Parameters_Constants!$K$100:$AF$100,0))=FALSE)","v":false},{"$f":"IF(OR($D64=\"\",$D64=CONST_NA),FALSE,INDEX(Parameters_Constants!$K$101:$AF$118,MATCH($E64,CONST_LIST_Goods,0),MATCH(AK$8,Parameters_Constants!$K$100:$AF$100,0))=FALSE)","v":false}]
["ausblenden",null,56,null,null,false,null,false,{"$nulls":7},{"$f":"IF(OR($D65=\"\",$D65=CONST_NA),FALSE,INDEX(Parameters_Constants!$K$101:$AF$118,MATCH($E65,CONST_LIST_Goods,0),MATCH(P$8,Parameters_Constants!$K$100:$AF$100,0))=FALSE)","v":false},{"$f":"IF(OR($D65=\"\",$D65=CONST_NA),FALSE,INDEX(Parameters_Constants!$K$101:$AF$118,MATCH($E65,CONST_LIST_Goods,0),MATCH(Q$8,Parameters_Constants!$K$100:$AF$100,0))=FALSE)","v":false},{"$f":"IF(OR($D65=\"\",$D65=CONST_NA),FALSE,INDEX(Parameters_Constants!$K$101:$AF$118,MATCH($E65,CONST_LIST_Goods,0),MATCH(R$8,Parameters_Constants!$K$100:$AF$100,0))=FALSE)","v":false},{"$f":"IF(OR($D65=\"\",$D65=CONST_NA),FALSE,INDEX(Parameters_Constants!$K$101:$AF$118,MATCH($E65,CONST_LIST_Goods,0),MATCH(S$8,Parameters_Constants!$K$100:$AF$100,0))=FALSE)","v":false},{"$f":"IF(OR($D65=\"\",$D65=CONST_NA),FALSE,INDEX(Parameters_Constants!$K$101:$AF$118,MATCH($E65,CONST_LIST_Goods,0),MATCH(T$8,Parameters_Constants!$K$100:$AF$100,0))=FALSE)","v":false},{"$f":"IF(OR($D65=\"\",$D65=CONST_NA),FALSE,INDEX(Parameters_Constants!$K$101:$AF$118,MATCH($E65,CONST_LIST_Goods,0),MATCH(U$8,Parameters_Constants!$K$100:$AF$100,0))=FALSE)","v":false},{"$f":"IF(OR($D65=\"\",$D65=CONST_NA),FALSE,INDEX(Parameters_Constants!$K$101:$AF$118,MATCH($E65,CONST_LIST_Goods,0),MATCH(V$8,Parameters_Constants!$K$100:$AF$100,0))=FALSE)","v":false},{"$f":"IF(OR($D65=\"\",$D65=CONST_NA),FALSE,INDEX(Parameters_Constants!$K$101:$AF$118,MATCH($E65,CONST_LIST_Goods,0),MATCH(W$8,Parameters_Constants!$K$100:$AF$100,0))=FALSE)","v":false},{"$f":"IF(OR($D65=\"\",$D65=CONST_NA),FALSE,INDEX(Parameters_Constants!$K$101:$AF$118,MATCH($E65,CONST_LIST_Goods,0),MATCH(X$8,Parameters_Constants!$K$100:$AF$100,0))=FALSE)","v":false},{"$f":"IF(OR($D65=\"\",$D65=CONST_NA),FALSE,INDEX(Parameters_Constants!$K$101:$AF$118,MATCH($E65,CONST_LIST_Goods,0),MATCH(Y$8,Parameters_Constants!$K$100:$AF$100,0))=FALSE)","v":false},{"$f":"IF(OR($D65=\"\",$D65=CONST_NA),FALSE,INDEX(Parameters_Constants!$K$101:$AF$118,MATCH($E65,CONST_LIST_Goods,0),MATCH(Z$8,Parameters_Constants!$K$100:$AF$100,0))=FALSE)","v":false},{"$f":"IF(OR($D65=\"\",$D65=CONST_NA),FALSE,INDEX(Parameters_Constants!$K$101:$AF$118,MATCH($E65,CONST_LIST_Goods,0),MATCH(AA$8,Parameters_Constants!$K$100:$AF$100,0))=FALSE)","v":false},{"$f":"IF(OR($D65=\"\",$D65=CONST_NA),FALSE,INDEX(Parameters_Constants!$K$101:$AF$118,MATCH($E65,CONST_LIST_Goods,0),MATCH(AB$8,Parameters_Constants!$K$100:$AF$100,0))=FALSE)","v":false},{"$f":"IF(OR($D65=\"\",$D65=CONST_NA),FALSE,INDEX(Parameters_Constants!$K$101:$AF$118,MATCH($E65,CONST_LIST_Goods,0),MATCH(AC$8,Parameters_Constants!$K$100:$AF$100,0))=FALSE)","v":false},{"$f":"IF(OR($D65=\"\",$D65=CONST_NA),FALSE,INDEX(Parameters_Constants!$K$101:$AF$118,MATCH($E65,CONST_LIST_Goods,0),MATCH(AD$8,Parameters_Constants!$K$100:$AF$100,0))=FALSE)","v":false},{"$f":"IF(OR($D65=\"\",$D65=CONST_NA),FALSE,INDEX(Parameters_Constants!$K$101:$AF$118,MATCH($E65,CONST_LIST_Goods,0),MATCH(AE$8,Parameters_Constants!$K$100:$AF$100,0))=FALSE)","v":false},{"$f":"IF(OR($D65=\"\",$D65=CONST_NA),FALSE,INDEX(Parameters_Constants!$K$101:$AF$118,MATCH($E65,CONST_LIST_Goods,0),MATCH(AF$8,Parameters_Constants!$K$100:$AF$100,0))=FALSE)","v":false},{"$f":"IF(OR($D65=\"\",$D65=CONST_NA),FALSE,INDEX(Parameters_Constants!$K$101:$AF$118,MATCH($E65,CONST_LIST_Goods,0),MATCH(AG$8,Parameters_Constants!$K$100:$AF$100,0))=FALSE)","v":false},{"$f":"IF(OR($D65=\"\",$D65=CONST_NA),FALSE,INDEX(Parameters_Constants!$K$101:$AF$118,MATCH($E65,CONST_LIST_Goods,0),MATCH(AH$8,Parameters_Constants!$K$100:$AF$100,0))=FALSE)","v":false},{"$f":"IF(OR($D65=\"\",$D65=CONST_NA),FALSE,INDEX(Parameters_Constants!$K$101:$AF$118,MATCH($E65,CONST_LIST_Goods,0),MATCH(AI$8,Parameters_Constants!$K$100:$AF$100,0))=FALSE)","v":false},{"$f":"IF(OR($D65=\"\",$D65=CONST_NA),FALSE,INDEX(Parameters_Constants!$K$101:$AF$118,MATCH($E65,CONST_LIST_Goods,0),MATCH(AJ$8,Parameters_Constants!$K$100:$AF$100,0))=FALSE)","v":false},{"$f":"IF(OR($D65=\"\",$D65=CONST_NA),FALSE,INDEX(Parameters_Constants!$K$101:$AF$118,MATCH($E65,CONST_LIST_Goods,0),MATCH(AK$8,Parameters_Constants!$K$100:$AF$100,0))=FALSE)","v":false}]
["ausblenden",null,57,null,null,false,null,false,{"$nulls":7},{"$f":"IF(OR($D66=\"\",$D66=CONST_NA),FALSE,INDEX(Parameters_Constants!$K$101:$AF$118,MATCH($E66,CONST_LIST_Goods,0),MATCH(P$8,Parameters_Constants!$K$100:$AF$100,0))=FALSE)","v":false},{"$f":"IF(OR($D66=\"\",$D66=CONST_NA),FALSE,INDEX(Parameters_Constants!$K$101:$AF$118,MATCH($E66,CONST_LIST_Goods,0),MATCH(Q$8,Parameters_Constants!$K$100:$AF$100,0))=FALSE)","v":false},{"$f":"IF(OR($D66=\"\",$D66=CONST_NA),FALSE,INDEX(Parameters_Constants!$K$101:$AF$118,MATCH($E66,CONST_LIST_Goods,0),MATCH(R$8,Parameters_Constants!$K$100:$AF$100,0))=FALSE)","v":false},{"$f":"IF(OR($D66=\"\",$D66=CONST_NA),FALSE,INDEX(Parameters_Constants!$K$101:$AF$118,MATCH($E66,CONST_LIST_Goods,0),MATCH(S$8,Parameters_Constants!$K$100:$AF$100,0))=FALSE)","v":false},{"$f":"IF(OR($D66=\"\",$D66=CONST_NA),FALSE,INDEX(Parameters_Constants!$K$101:$AF$118,MATCH($E66,CONST_LIST_Goods,0),MATCH(T$8,Parameters_Constants!$K$100:$AF$100,0))=FALSE)","v":false},{"$f":"IF(OR($D66=\"\",$D66=CONST_NA),FALSE,INDEX(Parameters_Constants!$K$101:$AF$118,MATCH($E66,CONST_LIST_Goods,0),MATCH(U$8,Parameters_Constants!$K$100:$AF$100,0))=FALSE)","v":false},{"$f":"IF(OR($D66=\"\",$D66=CONST_NA),FALSE,INDEX(Parameters_Constants!$K$101:$AF$118,MATCH($E66,CONST_LIST_Goods,0),MATCH(V$8,Parameters_Constants!$K$100:$AF$100,0))=FALSE)","v":false},{"$f":"IF(OR($D66=\"\",$D66=CONST_NA),FALSE,INDEX(Parameters_Constants!$K$101:$AF$118,MATCH($E66,CONST_LIST_Goods,0),MATCH(W$8,Parameters_Constants!$K$100:$AF$100,0))=FALSE)","v":false},{"$f":"IF(OR($D66=\"\",$D66=CONST_NA),FALSE,INDEX(Parameters_Constants!$K$101:$AF$118,MATCH($E66,CONST_LIST_Goods,0),MATCH(X$8,Parameters_Constants!$K$100:$AF$100,0))=FALSE)","v":false},{"$f":"IF(OR($D66=\"\",$D66=CONST_NA),FALSE,INDEX(Parameters_Constants!$K$101:$AF$118,MATCH($E66,CONST_LIST_Goods,0),MATCH(Y$8,Parameters_Constants!$K$100:$AF$100,0))=FALSE)","v":false},{"$f":"IF(OR($D66=\"\",$D66=CONST_NA),FALSE,INDEX(Parameters_Constants!$K$101:$AF$118,MATCH($E66,CONST_LIST_Goods,0),MATCH(Z$8,Parameters_Constants!$K$100:$AF$100,0))=FALSE)","v":false},{"$f":"IF(OR($D66=\"\",$D66=CONST_NA),FALSE,INDEX(Parameters_Constants!$K$101:$AF$118,MATCH($E66,CONST_LIST_Goods,0),MATCH(AA$8,Parameters_Constants!$K$100:$AF$100,0))=FALSE)","v":false},{"$f":"IF(OR($D66=\"\",$D66=CONST_NA),FALSE,INDEX(Parameters_Constants!$K$101:$AF$118,MATCH($E66,CONST_LIST_Goods,0),MATCH(AB$8,Parameters_Constants!$K$100:$AF$100,0))=FALSE)","v":false},{"$f":"IF(OR($D66=\"\",$D66=CONST_NA),FALSE,INDEX(Parameters_Constants!$K$101:$AF$118,MATCH($E66,CONST_LIST_Goods,0),MATCH(AC$8,Parameters_Constants!$K$100:$AF$100,0))=FALSE)","v":false},{"$f":"IF(OR($D66=\"\",$D66=CONST_NA),FALSE,INDEX(Parameters_Constants!$K$101:$AF$118,MATCH($E66,CONST_LIST_Goods,0),MATCH(AD$8,Parameters_Constants!$K$100:$AF$100,0))=FALSE)","v":false},{"$f":"IF(OR($D66=\"\",$D66=CONST_NA),FALSE,INDEX(Parameters_Constants!$K$101:$AF$118,MATCH($E66,CONST_LIST_Goods,0),MATCH(AE$8,Parameters_Constants!$K$100:$AF$100,0))=FALSE)","v":false},{"$f":"IF(OR($D66=\"\",$D66=CONST_NA),FALSE,INDEX(Parameters_Constants!$K$101:$AF$118,MATCH($E66,CONST_LIST_Goods,0),MATCH(AF$8,Parameters_Constants!$K$100:$AF$100,0))=FALSE)","v":false},{"$f":"IF(OR($D66=\"\",$D66=CONST_NA),FALSE,INDEX(Parameters_Constants!$K$101:$AF$118,MATCH($E66,CONST_LIST_Goods,0),MATCH(AG$8,Parameters_Constants!$K$100:$AF$100,0))=FALSE)","v":false},{"$f":"IF(OR($D66=\"\",$D66=CONST_NA),FALSE,INDEX(Parameters_Constants!$K$101:$AF$118,MATCH($E66,CONST_LIST_Goods,0),MATCH(AH$8,Parameters_Constants!$K$100:$AF$100,0))=FALSE)","v":false},{"$f":"IF(OR($D66=\"\",$D66=CONST_NA),FALSE,INDEX(Parameters_Constants!$K$101:$AF$118,MATCH($E66,CONST_LIST_Goods,0),MATCH(AI$8,Parameters_Constants!$K$100:$AF$100,0))=FALSE)","v":false},{"$f":"IF(OR($D66=\"\",$D66=CONST_NA),FALSE,INDEX(Parameters_Constants!$K$101:$AF$118,MATCH($E66,CONST_LIST_Goods,0),MATCH(AJ$8,Parameters_Constants!$K$100:$AF$100,0))=FALSE)","v":false},{"$f":"IF(OR($D66=\"\",$D66=CONST_NA),FALSE,INDEX(Parameters_Constants!$K$101:$AF$118,MATCH($E66,CONST_LIST_Goods,0),MATCH(AK$8,Parameters_Constants!$K$100:$AF$100,0))=FALSE)","v":false}]
["ausblenden",null,58,null,null,false,null,false,{"$nulls":7},{"$f":"IF(OR($D67=\"\",$D67=CONST_NA),FALSE,INDEX(Parameters_Constants!$K$101:$AF$118,MATCH($E67,CONST_LIST_Goods,0),MATCH(P$8,Parameters_Constants!$K$100:$AF$100,0))=FALSE)","v":false},{"$f":"IF(OR($D67=\"\",$D67=CONST_NA),FALSE,INDEX(Parameters_Constants!$K$101:$AF$118,MATCH($E67,CONST_LIST_Goods,0),MATCH(Q$8,Parameters_Constants!$K$100:$AF$100,0))=FALSE)","v":false},{"$f":"IF(OR($D67=\"\",$D67=CONST_NA),FALSE,INDEX(Parameters_Constants!$K$101:$AF$118,MATCH($E67,CONST_LIST_Goods,0),MATCH(R$8,Parameters_Constants!$K$100:$AF$100,0))=FALSE)","v":false},{"$f":"IF(OR($D67=\"\",$D67=CONST_NA),FALSE,INDEX(Parameters_Constants!$K$101:$AF$118,MATCH($E67,CONST_LIST_Goods,0),MATCH(S$8,Parameters_Constants!$K$100:$AF$100,0))=FALSE)","v":false},{"$f":"IF(OR($D67=\"\",$D67=CONST_NA),FALSE,INDEX(Parameters_Constants!$K$101:$AF$118,MATCH($E67,CONST_LIST_Goods,0),MATCH(T$8,Parameters_Constants!$K$100:$AF$100,0))=FALSE)","v":false},{"$f":"IF(OR($D67=\"\",$D67=CONST_NA),FALSE,INDEX(Parameters_Constants!$K$101:$AF$118,MATCH($E67,CONST_LIST_Goods,0),MATCH(U$8,Parameters_Constants!$K$100:$AF$100,0))=FALSE)","v":false},{"$f":"IF(OR($D67=\"\",$D67=CONST_NA),FALSE,INDEX(Parameters_Constants!$K$101:$AF$118,MATCH($E67,CONST_LIST_Goods,0),MATCH(V$8,Parameters_Constants!$K$100:$AF$100,0))=FALSE)","v":false},{"$f":"IF(OR($D67=\"\",$D67=CONST_NA),FALSE,INDEX(Parameters_Constants!$K$101:$AF$118,MATCH($E67,CONST_LIST_Goods,0),MATCH(W$8,Parameters_Constants!$K$100:$AF$100,0))=FALSE)","v":false},{"$f":"IF(OR($D67=\"\",$D67=CONST_NA),FALSE,INDEX(Parameters_Constants!$K$101:$AF$118,MATCH($E67,CONST_LIST_Goods,0),MATCH(X$8,Parameters_Constants!$K$100:$AF$100,0))=FALSE)","v":false},{"$f":"IF(OR($D67=\"\",$D67=CONST_NA),FALSE,INDEX(Parameters_Constants!$K$101:$AF$118,MATCH($E67,CONST_LIST_Goods,0),MATCH(Y$8,Parameters_Constants!$K$100:$AF$100,0))=FALSE)","v":false},{"$f":"IF(OR($D67=\"\",$D67=CONST_NA),FALSE,INDEX(Parameters_Constants!$K$101:$AF$118,MATCH($E67,CONST_LIST_Goods,0),MATCH(Z$8,Parameters_Constants!$K$100:$AF$100,0))=FALSE)","v":false},{"$f":"IF(OR($D67=\"\",$D67=CONST_NA),FALSE,INDEX(Parameters_Constants!$K$101:$AF$118,MATCH($E67,CONST_LIST_Goods,0),MATCH(AA$8,Parameters_Constants!$K$100:$AF$100,0))=FALSE)","v":false},{"$f":"IF(OR($D67=\"\",$D67=CONST_NA),FALSE,INDEX(Parameters_Constants!$K$101:$AF$118,MATCH($E67,CONST_LIST_Goods,0),MATCH(AB$8,Parameters_Constants!$K$100:$AF$100,0))=FALSE)","v":false},{"$f":"IF(OR($D67=\"\",$D67=CONST_NA),FALSE,INDEX(Parameters_Constants!$K$101:$AF$118,MATCH($E67,CONST_LIST_Goods,0),MATCH(AC$8,Parameters_Constants!$K$100:$AF$100,0))=FALSE)","v":false},{"$f":"IF(OR($D67=\"\",$D67=CONST_NA),FALSE,INDEX(Parameters_Constants!$K$101:$AF$118,MATCH($E67,CONST_LIST_Goods,0),MATCH(AD$8,Parameters_Constants!$K$100:$AF$100,0))=FALSE)","v":false},{"$f":"IF(OR($D67=\"\",$D67=CONST_NA),FALSE,INDEX(Parameters_Constants!$K$101:$AF$118,MATCH($E67,CONST_LIST_Goods,0),MATCH(AE$8,Parameters_Constants!$K$100:$AF$100,0))=FALSE)","v":false},{"$f":"IF(OR($D67=\"\",$D67=CONST_NA),FALSE,INDEX(Parameters_Constants!$K$101:$AF$118,MATCH($E67,CONST_LIST_Goods,0),MATCH(AF$8,Parameters_Constants!$K$100:$AF$100,0))=FALSE)","v":false},{"$f":"IF(OR($D67=\"\",$D67=CONST_NA),FALSE,INDEX(Parameters_Constants!$K$101:$AF$118,MATCH($E67,CONST_LIST_Goods,0),MATCH(AG$8,Parameters_Constants!$K$100:$AF$100,0))=FALSE)","v":false},{"$f":"IF(OR($D67=\"\",$D67=CONST_NA),FALSE,INDEX(Parameters_Constants!$K$101:$AF$118,MATCH($E67,CONST_LIST_Goods,0),MATCH(AH$8,Parameters_Constants!$K$100:$AF$100,0))=FALSE)","v":false},{"$f":"IF(OR($D67=\"\",$D67=CONST_NA),FALSE,INDEX(Parameters_Constants!$K$101:$AF$118,MATCH($E67,CONST_LIST_Goods,0),MATCH(AI$8,Parameters_Constants!$K$100:$AF$100,0))=FALSE)","v":false},{"$f":"IF(OR($D67=\"\",$D67=CONST_NA),FALSE,INDEX(Parameters_Constants!$K$101:$AF$118,MATCH($E67,CONST_LIST_Goods,0),MATCH(AJ$8,Parameters_Constants!$K$100:$AF$100,0))=FALSE)","v":false},{"$f":"IF(OR($D67=\"\",$D67=CONST_NA),FALSE,INDEX(Parameters_Constants!$K$101:$AF$118,MATCH($E67,CONST_LIST_Goods,0),MATCH(AK$8,Parameters_Constants!$K$100:$AF$100,0))=FALSE)","v":false}]
["ausblenden",null,59,null,null,false,null,false,{"$nulls":7},{"$f":"IF(OR($D68=\"\",$D68=CONST_NA),FALSE,INDEX(Parameters_Constants!$K$101:$AF$118,MATCH($E68,CONST_LIST_Goods,0),MATCH(P$8,Parameters_Constants!$K$100:$AF$100,0))=FALSE)","v":false},{"$f":"IF(OR($D68=\"\",$D68=CONST_NA),FALSE,INDEX(Parameters_Constants!$K$101:$AF$118,MATCH($E68,CONST_LIST_Goods,0),MATCH(Q$8,Parameters_Constants!$K$100:$AF$100,0))=FALSE)","v":false},{"$f":"IF(OR($D68=\"\",$D68=CONST_NA),FALSE,INDEX(Parameters_Constants!$K$101:$AF$118,MATCH($E68,CONST_LIST_Goods,0),MATCH(R$8,Parameters_Constants!$K$100:$AF$100,0))=FALSE)","v":false},{"$f":"IF(OR($D68=\"\",$D68=CONST_NA),FALSE,INDEX(Parameters_Constants!$K$101:$AF$118,MATCH($E68,CONST_LIST_Goods,0),MATCH(S$8,Parameters_Constants!$K$100:$AF$100,0))=FALSE)","v":false},{"$f":"IF(OR($D68=\"\",$D68=CONST_NA),FALSE,INDEX(Parameters_Constants!$K$101:$AF$118,MATCH($E68,CONST_LIST_Goods,0),MATCH(T$8,Parameters_Constants!$K$100:$AF$100,0))=FALSE)","v":false},{"$f":"IF(OR($D68=\"\",$D68=CONST_NA),FALSE,INDEX(Parameters_Constants!$K$101:$AF$118,MATCH($E68,CONST_LIST_Goods,0),MATCH(U$8,Parameters_Constants!$K$100:$AF$100,0))=FALSE)","v":false},{"$f":"IF(OR($D68=\"\",$D68=CONST_NA),FALSE,INDEX(Parameters_Constants!$K$101:$AF$118,MATCH($E68,CONST_LIST_Goods,0),MATCH(V$8,Parameters_Constants!$K$100:$AF$100,0))=FALSE)","v":false},{"$f":"IF(OR($D68=\"\",$D68=CONST_NA),FALSE,INDEX(Parameters_Constants!$K$101:$AF$118,MATCH($E68,CONST_LIST_Goods,0),MATCH(W$8,Parameters_Constants!$K$100:$AF$100,0))=FALSE)","v":false},{"$f":"IF(OR($D68=\"\",$D68=CONST_NA),FALSE,INDEX(Parameters_Constants!$K$101:$AF$118,MATCH($E68,CONST_LIST_Goods,0),MATCH(X$8,Parameters_Constants!$K$100:$AF$100,0))=FALSE)","v":false},{"$f":"IF(OR($D68=\"\",$D68=CONST_NA),FALSE,INDEX(Parameters_Constants!$K$101:$AF$118,MATCH($E68,CONST_LIST_Goods,0),MATCH(Y$8,Parameters_Constants!$K$100:$AF$100,0))=FALSE)","v":false},{"$f":"IF(OR($D68=\"\",$D68=CONST_NA),FALSE,INDEX(Parameters_Constants!$K$101:$AF$118,MATCH($E68,CONST_LIST_Goods,0),MATCH(Z$8,Parameters_Constants!$K$100:$AF$100,0))=FALSE)","v":false},{"$f":"IF(OR($D68=\"\",$D68=CONST_NA),FALSE,INDEX(Parameters_Constants!$K$101:$AF$118,MATCH($E68,CONST_LIST_Goods,0),MATCH(AA$8,Parameters_Constants!$K$100:$AF$100,0))=FALSE)","v":false},{"$f":"IF(OR($D68=\"\",$D68=CONST_NA),FALSE,INDEX(Parameters_Constants!$K$101:$AF$118,MATCH($E68,CONST_LIST_Goods,0),MATCH(AB$8,Parameters_Constants!$K$100:$AF$100,0))=FALSE)","v":false},{"$f":"IF(OR($D68=\"\",$D68=CONST_NA),FALSE,INDEX(Parameters_Constants!$K$101:$AF$118,MATCH($E68,CONST_LIST_Goods,0),MATCH(AC$8,Parameters_Constants!$K$100:$AF$100,0))=FALSE)","v":false},{"$f":"IF(OR($D68=\"\",$D68=CONST_NA),FALSE,INDEX(Parameters_Constants!$K$101:$AF$118,MATCH($E68,CONST_LIST_Goods,0),MATCH(AD$8,Parameters_Constants!$K$100:$AF$100,0))=FALSE)","v":false},{"$f":"IF(OR($D68=\"\",$D68=CONST_NA),FALSE,INDEX(Parameters_Constants!$K$101:$AF$118,MATCH($E68,CONST_LIST_Goods,0),MATCH(AE$8,Parameters_Constants!$K$100:$AF$100,0))=FALSE)","v":false},{"$f":"IF(OR($D68=\"\",$D68=CONST_NA),FALSE,INDEX(Parameters_Constants!$K$101:$AF$118,MATCH($E68,CONST_LIST_Goods,0),MATCH(AF$8,Parameters_Constants!$K$100:$AF$100,0))=FALSE)","v":false},{"$f":"IF(OR($D68=\"\",$D68=CONST_NA),FALSE,INDEX(Parameters_Constants!$K$101:$AF$118,MATCH($E68,CONST_LIST_Goods,0),MATCH(AG$8,Parameters_Constants!$K$100:$AF$100,0))=FALSE)","v":false},{"$f":"IF(OR($D68=\"\",$D68=CONST_NA),FALSE,INDEX(Parameters_Constants!$K$101:$AF$118,MATCH($E68,CONST_LIST_Goods,0),MATCH(AH$8,Parameters_Constants!$K$100:$AF$100,0))=FALSE)","v":false},{"$f":"IF(OR($D68=\"\",$D68=CONST_NA),FALSE,INDEX(Parameters_Constants!$K$101:$AF$118,MATCH($E68,CONST_LIST_Goods,0),MATCH(AI$8,Parameters_Constants!$K$100:$AF$100,0))=FALSE)","v":false},{"$f":"IF(OR($D68=\"\",$D68=CONST_NA),FALSE,INDEX(Parameters_Constants!$K$101:$AF$118,MATCH($E68,CONST_LIST_Goods,0),MATCH(AJ$8,Parameters_Constants!$K$100:$AF$100,0))=FALSE)","v":false},{"$f":"IF(OR($D68=\"\",$D68=CONST_NA),FALSE,INDEX(Parameters_Constants!$K$101:$AF$118,MATCH($E68,CONST_LIST_Goods,0),MATCH(AK$8,Parameters_Constants!$K$100:$AF$100,0))=FALSE)","v":false}]
["ausblenden",null,60,null,null,false,null,false,{"$nulls":7},{"$f":"IF(OR($D69=\"\",$D69=CONST_NA),FALSE,INDEX(Parameters_Constants!$K$101:$AF$118,MATCH($E69,CONST_LIST_Goods,0),MATCH(P$8,Parameters_Constants!$K$100:$AF$100,0))=FALSE)","v":false},{"$f":"IF(OR($D69=\"\",$D69=CONST_NA),FALSE,INDEX(Parameters_Constants!$K$101:$AF$118,MATCH($E69,CONST_LIST_Goods,0),MATCH(Q$8,Parameters_Constants!$K$100:$AF$100,0))=FALSE)","v":false},{"$f":"IF(OR($D69=\"\",$D69=CONST_NA),FALSE,INDEX(Parameters_Constants!$K$101:$AF$118,MATCH($E69,CONST_LIST_Goods,0),MATCH(R$8,Parameters_Constants!$K$100:$AF$100,0))=FALSE)","v":false},{"$f":"IF(OR($D69=\"\",$D69=CONST_NA),FALSE,INDEX(Parameters_Constants!$K$101:$AF$118,MATCH($E69,CONST_LIST_Goods,0),MATCH(S$8,Parameters_Constants!$K$100:$AF$100,0))=FALSE)","v":false},{"$f":"IF(OR($D69=\"\",$D69=CONST_NA),FALSE,INDEX(Parameters_Constants!$K$101:$AF$118,MATCH($E69,CONST_LIST_Goods,0),MATCH(T$8,Parameters_Constants!$K$100:$AF$100,0))=FALSE)","v":false},{"$f":"IF(OR($D69=\"\",$D69=CONST_NA),FALSE,INDEX(Parameters_Constants!$K$101:$AF$118,MATCH($E69,CONST_LIST_Goods,0),MATCH(U$8,Parameters_Constants!$K$100:$AF$100,0))=FALSE)","v":false},{"$f":"IF(OR($D69=\"\",$D69=CONST_NA),FALSE,INDEX(Parameters_Constants!$K$101:$AF$118,MATCH($E69,CONST_LIST_Goods,0),MATCH(V$8,Parameters_Constants!$K$100:$AF$100,0))=FALSE)","v":false},{"$f":"IF(OR($D69=\"\",$D69=CONST_NA),FALSE,INDEX(Parameters_Constants!$K$101:$AF$118,MATCH($E69,CONST_LIST_Goods,0),MATCH(W$8,Parameters_Constants!$K$100:$AF$100,0))=FALSE)","v":false},{"$f":"IF(OR($D69=\"\",$D69=CONST_NA),FALSE,INDEX(Parameters_Constants!$K$101:$AF$118,MATCH($E69,CONST_LIST_Goods,0),MATCH(X$8,Parameters_Constants!$K$100:$AF$100,0))=FALSE)","v":false},{"$f":"IF(OR($D69=\"\",$D69=CONST_NA),FALSE,INDEX(Parameters_Constants!$K$101:$AF$118,MATCH($E69,CONST_LIST_Goods,0),MATCH(Y$8,Parameters_Constants!$K$100:$AF$100,0))=FALSE)","v":false},{"$f":"IF(OR($D69=\"\",$D69=CONST_NA),FALSE,INDEX(Parameters_Constants!$K$101:$AF$118,MATCH($E69,CONST_LIST_Goods,0),MATCH(Z$8,Parameters_Constants!$K$100:$AF$100,0))=FALSE)","v":false},{"$f":"IF(OR($D69=\"\",$D69=CONST_NA),FALSE,INDEX(Parameters_Constants!$K$101:$AF$118,MATCH($E69,CONST_LIST_Goods,0),MATCH(AA$8,Parameters_Constants!$K$100:$AF$100,0))=FALSE)","v":false},{"$f":"IF(OR($D69=\"\",$D69=CONST_NA),FALSE,INDEX(Parameters_Constants!$K$101:$AF$118,MATCH($E69,CONST_LIST_Goods,0),MATCH(AB$8,Parameters_Constants!$K$100:$AF$100,0))=FALSE)","v":false},{"$f":"IF(OR($D69=\"\",$D69=CONST_NA),FALSE,INDEX(Parameters_Constants!$K$101:$AF$118,MATCH($E69,CONST_LIST_Goods,0),MATCH(AC$8,Parameters_Constants!$K$100:$AF$100,0))=FALSE)","v":false},{"$f":"IF(OR($D69=\"\",$D69=CONST_NA),FALSE,INDEX(Parameters_Constants!$K$101:$AF$118,MATCH($E69,CONST_LIST_Goods,0),MATCH(AD$8,Parameters_Constants!$K$100:$AF$100,0))=FALSE)","v":false},{"$f":"IF(OR($D69=\"\",$D69=CONST_NA),FALSE,INDEX(Parameters_Constants!$K$101:$AF$118,MATCH($E69,CONST_LIST_Goods,0),MATCH(AE$8,Parameters_Constants!$K$100:$AF$100,0))=FALSE)","v":false},{"$f":"IF(OR($D69=\"\",$D69=CONST_NA),FALSE,INDEX(Parameters_Constants!$K$101:$AF$118,MATCH($E69,CONST_LIST_Goods,0),MATCH(AF$8,Parameters_Constants!$K$100:$AF$100,0))=FALSE)","v":false},{"$f":"IF(OR($D69=\"\",$D69=CONST_NA),FALSE,INDEX(Parameters_Constants!$K$101:$AF$118,MATCH($E69,CONST_LIST_Goods,0),MATCH(AG$8,Parameters_Constants!$K$100:$AF$100,0))=FALSE)","v":false},{"$f":"IF(OR($D69=\"\",$D69=CONST_NA),FALSE,INDEX(Parameters_Constants!$K$101:$AF$118,MATCH($E69,CONST_LIST_Goods,0),MATCH(AH$8,Parameters_Constants!$K$100:$AF$100,0))=FALSE)","v":false},{"$f":"IF(OR($D69=\"\",$D69=CONST_NA),FALSE,INDEX(Parameters_Constants!$K$101:$AF$118,MATCH($E69,CONST_LIST_Goods,0),MATCH(AI$8,Parameters_Constants!$K$100:$AF$100,0))=FALSE)","v":false},{"$f":"IF(OR($D69=\"\",$D69=CONST_NA),FALSE,INDEX(Parameters_Constants!$K$101:$AF$118,MATCH($E69,CONST_LIST_Goods,0),MATCH(AJ$8,Parameters_Constants!$K$100:$AF$100,0))=FALSE)","v":false},{"$f":"IF(OR($D69=\"\",$D69=CONST_NA),FALSE,INDEX(Parameters_Constants!$K$101:$AF$118,MATCH($E69,CONST_LIST_Goods,0),MATCH(AK$8,Parameters_Constants!$K$100:$AF$100,0))=FALSE)","v":false}]
["ausblenden",null,61,null,null,false,null,false,{"$nulls":7},{"$f":"IF(OR($D70=\"\",$D70=CONST_NA),FALSE,INDEX(Parameters_Constants!$K$101:$AF$118,MATCH($E70,CONST_LIST_Goods,0),MATCH(P$8,Parameters_Constants!$K$100:$AF$100,0))=FALSE)","v":false},{"$f":"IF(OR($D70=\"\",$D70=CONST_NA),FALSE,INDEX(Parameters_Constants!$K$101:$AF$118,MATCH($E70,CONST_LIST_Goods,0),MATCH(Q$8,Parameters_Constants!$K$100:$AF$100,0))=FALSE)","v":false},{"$f":"IF(OR($D70=\"\",$D70=CONST_NA),FALSE,INDEX(Parameters_Constants!$K$101:$AF$118,MATCH($E70,CONST_LIST_Goods,0),MATCH(R$8,Parameters_Constants!$K$100:$AF$100,0))=FALSE)","v":false},{"$f":"IF(OR($D70=\"\",$D70=CONST_NA),FALSE,INDEX(Parameters_Constants!$K$101:$AF$118,MATCH($E70,CONST_LIST_Goods,0),MATCH(S$8,Parameters_Constants!$K$100:$AF$100,0))=FALSE)","v":false},{"$f":"IF(OR($D70=\"\",$D70=CONST_NA),FALSE,INDEX(Parameters_Constants!$K$101:$AF$118,MATCH($E70,CONST_LIST_Goods,0),MATCH(T$8,Parameters_Constants!$K$100:$AF$100,0))=FALSE)","v":false},{"$f":"IF(OR($D70=\"\",$D70=CONST_NA),FALSE,INDEX(Parameters_Constants!$K$101:$AF$118,MATCH($E70,CONST_LIST_Goods,0),MATCH(U$8,Parameters_Constants!$K$100:$AF$100,0))=FALSE)","v":false},{"$f":"IF(OR($D70=\"\",$D70=CONST_NA),FALSE,INDEX(Parameters_Constants!$K$101:$AF$118,MATCH($E70,CONST_LIST_Goods,0),MATCH(V$8,Parameters_Constants!$K$100:$AF$100,0))=FALSE)","v":false},{"$f":"IF(OR($D70=\"\",$D70=CONST_NA),FALSE,INDEX(Parameters_Constants!$K$101:$AF$118,MATCH($E70,CONST_LIST_Goods,0),MATCH(W$8,Parameters_Constants!$K$100:$AF$100,0))=FALSE)","v":false},{"$f":"IF(OR($D70=\"\",$D70=CONST_NA),FALSE,INDEX(Parameters_Constants!$K$101:$AF$118,MATCH($E70,CONST_LIST_Goods,0),MATCH(X$8,Parameters_Constants!$K$100:$AF$100,0))=FALSE)","v":false},{"$f":"IF(OR($D70=\"\",$D70=CONST_NA),FALSE,INDEX(Parameters_Constants!$K$101:$AF$118,MATCH($E70,CONST_LIST_Goods,0),MATCH(Y$8,Parameters_Constants!$K$100:$AF$100,0))=FALSE)","v":false},{"$f":"IF(OR($D70=\"\",$D70=CONST_NA),FALSE,INDEX(Parameters_Constants!$K$101:$AF$118,MATCH($E70,CONST_LIST_Goods,0),MATCH(Z$8,Parameters_Constants!$K$100:$AF$100,0))=FALSE)","v":false},{"$f":"IF(OR($D70=\"\",$D70=CONST_NA),FALSE,INDEX(Parameters_Constants!$K$101:$AF$118,MATCH($E70,CONST_LIST_Goods,0),MATCH(AA$8,Parameters_Constants!$K$100:$AF$100,0))=FALSE)","v":false},{"$f":"IF(OR($D70=\"\",$D70=CONST_NA),FALSE,INDEX(Parameters_Constants!$K$101:$AF$118,MATCH($E70,CONST_LIST_Goods,0),MATCH(AB$8,Parameters_Constants!$K$100:$AF$100,0))=FALSE)","v":false},{"$f":"IF(OR($D70=\"\",$D70=CONST_NA),FALSE,INDEX(Parameters_Constants!$K$101:$AF$118,MATCH($E70,CONST_LIST_Goods,0),MATCH(AC$8,Parameters_Constants!$K$100:$AF$100,0))=FALSE)","v":false},{"$f":"IF(OR($D70=\"\",$D70=CONST_NA),FALSE,INDEX(Parameters_Constants!$K$101:$AF$118,MATCH($E70,CONST_LIST_Goods,0),MATCH(AD$8,Parameters_Constants!$K$100:$AF$100,0))=FALSE)","v":false},{"$f":"IF(OR($D70=\"\",$D70=CONST_NA),FALSE,INDEX(Parameters_Constants!$K$101:$AF$118,MATCH($E70,CONST_LIST_Goods,0),MATCH(AE$8,Parameters_Constants!$K$100:$AF$100,0))=FALSE)","v":false},{"$f":"IF(OR($D70=\"\",$D70=CONST_NA),FALSE,INDEX(Parameters_Constants!$K$101:$AF$118,MATCH($E70,CONST_LIST_Goods,0),MATCH(AF$8,Parameters_Constants!$K$100:$AF$100,0))=FALSE)","v":false},{"$f":"IF(OR($D70=\"\",$D70=CONST_NA),FALSE,INDEX(Parameters_Constants!$K$101:$AF$118,MATCH($E70,CONST_LIST_Goods,0),MATCH(AG$8,Parameters_Constants!$K$100:$AF$100,0))=FALSE)","v":false},{"$f":"IF(OR($D70=\"\",$D70=CONST_NA),FALSE,INDEX(Parameters_Constants!$K$101:$AF$118,MATCH($E70,CONST_LIST_Goods,0),MATCH(AH$8,Parameters_Constants!$K$100:$AF$100,0))=FALSE)","v":false},{"$f":"IF(OR($D70=\"\",$D70=CONST_NA),FALSE,INDEX(Parameters_Constants!$K$101:$AF$118,MATCH($E70,CONST_LIST_Goods,0),MATCH(AI$8,Parameters_Constants!$K$100:$AF$100,0))=FALSE)","v":false},{"$f":"IF(OR($D70=\"\",$D70=CONST_NA),FALSE,INDEX(Parameters_Constants!$K$101:$AF$118,MATCH($E70,CONST_LIST_Goods,0),MATCH(AJ$8,Parameters_Constants!$K$100:$AF$100,0))=FALSE)","v":false},{"$f":"IF(OR($D70=\"\",$D70=CONST_NA),FALSE,INDEX(Parameters_Constants!$K$101:$AF$118,MATCH($E70,CONST_LIST_Goods,0),MATCH(AK$8,Parameters_Constants!$K$100:$AF$100,0))=FALSE)","v":false}]
["ausblenden",null,62,null,null,false,null,false,{"$nulls":7},{"$f":"IF(OR($D71=\"\",$D71=CONST_NA),FALSE,INDEX(Parameters_Constants!$K$101:$AF$118,MATCH($E71,CONST_LIST_Goods,0),MATCH(P$8,Parameters_Constants!$K$100:$AF$100,0))=FALSE)","v":false},{"$f":"IF(OR($D71=\"\",$D71=CONST_NA),FALSE,INDEX(Parameters_Constants!$K$101:$AF$118,MATCH($E71,CONST_LIST_Goods,0),MATCH(Q$8,Parameters_Constants!$K$100:$AF$100,0))=FALSE)","v":false},{"$f":"IF(OR($D71=\"\",$D71=CONST_NA),FALSE,INDEX(Parameters_Constants!$K$101:$AF$118,MATCH($E71,CONST_LIST_Goods,0),MATCH(R$8,Parameters_Constants!$K$100:$AF$100,0))=FALSE)","v":false},{"$f":"IF(OR($D71=\"\",$D71=CONST_NA),FALSE,INDEX(Parameters_Constants!$K$101:$AF$118,MATCH($E71,CONST_LIST_Goods,0),MATCH(S$8,Parameters_Constants!$K$100:$AF$100,0))=FALSE)","v":false},{"$f":"IF(OR($D71=\"\",$D71=CONST_NA),FALSE,INDEX(Parameters_Constants!$K$101:$AF$118,MATCH($E71,CONST_LIST_Goods,0),MATCH(T$8,Parameters_Constants!$K$100:$AF$100,0))=FALSE)","v":false},{"$f":"IF(OR($D71=\"\",$D71=CONST_NA),FALSE,INDEX(Parameters_Constants!$K$101:$AF$118,MATCH($E71,CONST_LIST_Goods,0),MATCH(U$8,Parameters_Constants!$K$100:$AF$100,0))=FALSE)","v":false},{"$f":"IF(OR($D71=\"\",$D71=CONST_NA),FALSE,INDEX(Parameters_Constants!$K$101:$AF$118,MATCH($E71,CONST_LIST_Goods,0),MATCH(V$8,Parameters_Constants!$K$100:$AF$100,0))=FALSE)","v":false},{"$f":"IF(OR($D71=\"\",$D71=CONST_NA),FALSE,INDEX(Parameters_Constants!$K$101:$AF$118,MATCH($E71,CONST_LIST_Goods,0),MATCH(W$8,Parameters_Constants!$K$100:$AF$100,0))=FALSE)","v":false},{"$f":"IF(OR($D71=\"\",$D71=CONST_NA),FALSE,INDEX(Parameters_Constants!$K$101:$AF$118,MATCH($E71,CONST_LIST_Goods,0),MATCH(X$8,Parameters_Constants!$K$100:$AF$100,0))=FALSE)","v":false},{"$f":"IF(OR($D71=\"\",$D71=CONST_NA),FALSE,INDEX(Parameters_Constants!$K$101:$AF$118,MATCH($E71,CONST_LIST_Goods,0),MATCH(Y$8,Parameters_Constants!$K$100:$AF$100,0))=FALSE)","v":false},{"$f":"IF(OR($D71=\"\",$D71=CONST_NA),FALSE,INDEX(Parameters_Constants!$K$101:$AF$118,MATCH($E71,CONST_LIST_Goods,0),MATCH(Z$8,Parameters_Constants!$K$100:$AF$100,0))=FALSE)","v":false},{"$f":"IF(OR($D71=\"\",$D71=CONST_NA),FALSE,INDEX(Parameters_Constants!$K$101:$AF$118,MATCH($E71,CONST_LIST_Goods,0),MATCH(AA$8,Parameters_Constants!$K$100:$AF$100,0))=FALSE)","v":false},{"$f":"IF(OR($D71=\"\",$D71=CONST_NA),FALSE,INDEX(Parameters_Constants!$K$101:$AF$118,MATCH($E71,CONST_LIST_Goods,0),MATCH(AB$8,Parameters_Constants!$K$100:$AF$100,0))=FALSE)","v":false},{"$f":"IF(OR($D71=\"\",$D71=CONST_NA),FALSE,INDEX(Parameters_Constants!$K$101:$AF$118,MATCH($E71,CONST_LIST_Goods,0),MATCH(AC$8,Parameters_Constants!$K$100:$AF$100,0))=FALSE)","v":false},{"$f":"IF(OR($D71=\"\",$D71=CONST_NA),FALSE,INDEX(Parameters_Constants!$K$101:$AF$118,MATCH($E71,CONST_LIST_Goods,0),MATCH(AD$8,Parameters_Constants!$K$100:$AF$100,0))=FALSE)","v":false},{"$f":"IF(OR($D71=\"\",$D71=CONST_NA),FALSE,INDEX(Parameters_Constants!$K$101:$AF$118,MATCH($E71,CONST_LIST_Goods,0),MATCH(AE$8,Parameters_Constants!$K$100:$AF$100,0))=FALSE)","v":false},{"$f":"IF(OR($D71=\"\",$D71=CONST_NA),FALSE,INDEX(Parameters_Constants!$K$101:$AF$118,MATCH($E71,CONST_LIST_Goods,0),MATCH(AF$8,Parameters_Constants!$K$100:$AF$100,0))=FALSE)","v":false},{"$f":"IF(OR($D71=\"\",$D71=CONST_NA),FALSE,INDEX(Parameters_Constants!$K$101:$AF$118,MATCH($E71,CONST_LIST_Goods,0),MATCH(AG$8,Parameters_Constants!$K$100:$AF$100,0))=FALSE)","v":false},{"$f":"IF(OR($D71=\"\",$D71=CONST_NA),FALSE,INDEX(Parameters_Constants!$K$101:$AF$118,MATCH($E71,CONST_LIST_Goods,0),MATCH(AH$8,Parameters_Constants!$K$100:$AF$100,0))=FALSE)","v":false},{"$f":"IF(OR($D71=\"\",$D71=CONST_NA),FALSE,INDEX(Parameters_Constants!$K$101:$AF$118,MATCH($E71,CONST_LIST_Goods,0),MATCH(AI$8,Parameters_Constants!$K$100:$AF$100,0))=FALSE)","v":false},{"$f":"IF(OR($D71=\"\",$D71=CONST_NA),FALSE,INDEX(Parameters_Constants!$K$101:$AF$118,MATCH($E71,CONST_LIST_Goods,0),MATCH(AJ$8,Parameters_Constants!$K$100:$AF$100,0))=FALSE)","v":false},{"$f":"IF(OR($D71=\"\",$D71=CONST_NA),FALSE,INDEX(Parameters_Constants!$K$101:$AF$118,MATCH($E71,CONST_LIST_Goods,0),MATCH(AK$8,Parameters_Constants!$K$100:$AF$100,0))=FALSE)","v":false}]
["ausblenden",null,63,null,null,false,null,false,{"$nulls":7},{"$f":"IF(OR($D72=\"\",$D72=CONST_NA),FALSE,INDEX(Parameters_Constants!$K$101:$AF$118,MATCH($E72,CONST_LIST_Goods,0),MATCH(P$8,Parameters_Constants!$K$100:$AF$100,0))=FALSE)","v":false},{"$f":"IF(OR($D72=\"\",$D72=CONST_NA),FALSE,INDEX(Parameters_Constants!$K$101:$AF$118,MATCH($E72,CONST_LIST_Goods,0),MATCH(Q$8,Parameters_Constants!$K$100:$AF$100,0))=FALSE)","v":false},{"$f":"IF(OR($D72=\"\",$D72=CONST_NA),FALSE,INDEX(Parameters_Constants!$K$101:$AF$118,MATCH($E72,CONST_LIST_Goods,0),MATCH(R$8,Parameters_Constants!$K$100:$AF$100,0))=FALSE)","v":false},{"$f":"IF(OR($D72=\"\",$D72=CONST_NA),FALSE,INDEX(Parameters_Constants!$K$101:$AF$118,MATCH($E72,CONST_LIST_Goods,0),MATCH(S$8,Parameters_Constants!$K$100:$AF$100,0))=FALSE)","v":false},{"$f":"IF(OR($D72=\"\",$D72=CONST_NA),FALSE,INDEX(Parameters_Constants!$K$101:$AF$118,MATCH($E72,CONST_LIST_Goods,0),MATCH(T$8,Parameters_Constants!$K$100:$AF$100,0))=FALSE)","v":false},{"$f":"IF(OR($D72=\"\",$D72=CONST_NA),FALSE,INDEX(Parameters_Constants!$K$101:$AF$118,MATCH($E72,CONST_LIST_Goods,0),MATCH(U$8,Parameters_Constants!$K$100:$AF$100,0))=FALSE)","v":false},{"$f":"IF(OR($D72=\"\",$D72=CONST_NA),FALSE,INDEX(Parameters_Constants!$K$101:$AF$118,MATCH($E72,CONST_LIST_Goods,0),MATCH(V$8,Parameters_Constants!$K$100:$AF$100,0))=FALSE)","v":false},{"$f":"IF(OR($D72=\"\",$D72=CONST_NA),FALSE,INDEX(Parameters_Constants!$K$101:$AF$118,MATCH($E72,CONST_LIST_Goods,0),MATCH(W$8,Parameters_Constants!$K$100:$AF$100,0))=FALSE)","v":false},{"$f":"IF(OR($D72=\"\",$D72=CONST_NA),FALSE,INDEX(Parameters_Constants!$K$101:$AF$118,MATCH($E72,CONST_LIST_Goods,0),MATCH(X$8,Parameters_Constants!$K$100:$AF$100,0))=FALSE)","v":false},{"$f":"IF(OR($D72=\"\",$D72=CONST_NA),FALSE,INDEX(Parameters_Constants!$K$101:$AF$118,MATCH($E72,CONST_LIST_Goods,0),MATCH(Y$8,Parameters_Constants!$K$100:$AF$100,0))=FALSE)","v":false},{"$f":"IF(OR($D72=\"\",$D72=CONST_NA),FALSE,INDEX(Parameters_Constants!$K$101:$AF$118,MATCH($E72,CONST_LIST_Goods,0),MATCH(Z$8,Parameters_Constants!$K$100:$AF$100,0))=FALSE)","v":false},{"$f":"IF(OR($D72=\"\",$D72=CONST_NA),FALSE,INDEX(Parameters_Constants!$K$101:$AF$118,MATCH($E72,CONST_LIST_Goods,0),MATCH(AA$8,Parameters_Constants!$K$100:$AF$100,0))=FALSE)","v":false},{"$f":"IF(OR($D72=\"\",$D72=CONST_NA),FALSE,INDEX(Parameters_Constants!$K$101:$AF$118,MATCH($E72,CONST_LIST_Goods,0),MATCH(AB$8,Parameters_Constants!$K$100:$AF$100,0))=FALSE)","v":false},{"$f":"IF(OR($D72=\"\",$D72=CONST_NA),FALSE,INDEX(Parameters_Constants!$K$101:$AF$118,MATCH($E72,CONST_LIST_Goods,0),MATCH(AC$8,Parameters_Constants!$K$100:$AF$100,0))=FALSE)","v":false},{"$f":"IF(OR($D72=\"\",$D72=CONST_NA),FALSE,INDEX(Parameters_Constants!$K$101:$AF$118,MATCH($E72,CONST_LIST_Goods,0),MATCH(AD$8,Parameters_Constants!$K$100:$AF$100,0))=FALSE)","v":false},{"$f":"IF(OR($D72=\"\",$D72=CONST_NA),FALSE,INDEX(Parameters_Constants!$K$101:$AF$118,MATCH($E72,CONST_LIST_Goods,0),MATCH(AE$8,Parameters_Constants!$K$100:$AF$100,0))=FALSE)","v":false},{"$f":"IF(OR($D72=\"\",$D72=CONST_NA),FALSE,INDEX(Parameters_Constants!$K$101:$AF$118,MATCH($E72,CONST_LIST_Goods,0),MATCH(AF$8,Parameters_Constants!$K$100:$AF$100,0))=FALSE)","v":false},{"$f":"IF(OR($D72=\"\",$D72=CONST_NA),FALSE,INDEX(Parameters_Constants!$K$101:$AF$118,MATCH($E72,CONST_LIST_Goods,0),MATCH(AG$8,Parameters_Constants!$K$100:$AF$100,0))=FALSE)","v":false},{"$f":"IF(OR($D72=\"\",$D72=CONST_NA),FALSE,INDEX(Parameters_Constants!$K$101:$AF$118,MATCH($E72,CONST_LIST_Goods,0),MATCH(AH$8,Parameters_Constants!$K$100:$AF$100,0))=FALSE)","v":false},{"$f":"IF(OR($D72=\"\",$D72=CONST_NA),FALSE,INDEX(Parameters_Constants!$K$101:$AF$118,MATCH($E72,CONST_LIST_Goods,0),MATCH(AI$8,Parameters_Constants!$K$100:$AF$100,0))=FALSE)","v":false},{"$f":"IF(OR($D72=\"\",$D72=CONST_NA),FALSE,INDEX(Parameters_Constants!$K$101:$AF$118,MATCH($E72,CONST_LIST_Goods,0),MATCH(AJ$8,Parameters_Constants!$K$100:$AF$100,0))=FALSE)","v":false},{"$f":"IF(OR($D72=\"\",$D72=CONST_NA),FALSE,INDEX(Parameters_Constants!$K$101:$AF$118,MATCH($E72,CONST_LIST_Goods,0),MATCH(AK$8,Parameters_Constants!$K$100:$AF$100,0))=FALSE)","v":false}]
["ausblenden",null,64,null,null,false,null,false,{"$nulls":7},{"$f":"IF(OR($D73=\"\",$D73=CONST_NA),FALSE,INDEX(Parameters_Constants!$K$101:$AF$118,MATCH($E73,CONST_LIST_Goods,0),MATCH(P$8,Parameters_Constants!$K$100:$AF$100,0))=FALSE)","v":false},{"$f":"IF(OR($D73=\"\",$D73=CONST_NA),FALSE,INDEX(Parameters_Constants!$K$101:$AF$118,MATCH($E73,CONST_LIST_Goods,0),MATCH(Q$8,Parameters_Constants!$K$100:$AF$100,0))=FALSE)","v":false},{"$f":"IF(OR($D73=\"\",$D73=CONST_NA),FALSE,INDEX(Parameters_Constants!$K$101:$AF$118,MATCH($E73,CONST_LIST_Goods,0),MATCH(R$8,Parameters_Constants!$K$100:$AF$100,0))=FALSE)","v":false},{"$f":"IF(OR($D73=\"\",$D73=CONST_NA),FALSE,INDEX(Parameters_Constants!$K$101:$AF$118,MATCH($E73,CONST_LIST_Goods,0),MATCH(S$8,Parameters_Constants!$K$100:$AF$100,0))=FALSE)","v":false},{"$f":"IF(OR($D73=\"\",$D73=CONST_NA),FALSE,INDEX(Parameters_Constants!$K$101:$AF$118,MATCH($E73,CONST_LIST_Goods,0),MATCH(T$8,Parameters_Constants!$K$100:$AF$100,0))=FALSE)","v":false},{"$f":"IF(OR($D73=\"\",$D73=CONST_NA),FALSE,INDEX(Parameters_Constants!$K$101:$AF$118,MATCH($E73,CONST_LIST_Goods,0),MATCH(U$8,Parameters_Constants!$K$100:$AF$100,0))=FALSE)","v":false},{"$f":"IF(OR($D73=\"\",$D73=CONST_NA),FALSE,INDEX(Parameters_Constants!$K$101:$AF$118,MATCH($E73,CONST_LIST_Goods,0),MATCH(V$8,Parameters_Constants!$K$100:$AF$100,0))=FALSE)","v":false},{"$f":"IF(OR($D73=\"\",$D73=CONST_NA),FALSE,INDEX(Parameters_Constants!$K$101:$AF$118,MATCH($E73,CONST_LIST_Goods,0),MATCH(W$8,Parameters_Constants!$K$100:$AF$100,0))=FALSE)","v":false},{"$f":"IF(OR($D73=\"\",$D73=CONST_NA),FALSE,INDEX(Parameters_Constants!$K$101:$AF$118,MATCH($E73,CONST_LIST_Goods,0),MATCH(X$8,Parameters_Constants!$K$100:$AF$100,0))=FALSE)","v":false},{"$f":"IF(OR($D73=\"\",$D73=CONST_NA),FALSE,INDEX(Parameters_Constants!$K$101:$AF$118,MATCH($E73,CONST_LIST_Goods,0),MATCH(Y$8,Parameters_Constants!$K$100:$AF$100,0))=FALSE)","v":false},{"$f":"IF(OR($D73=\"\",$D73=CONST_NA),FALSE,INDEX(Parameters_Constants!$K$101:$AF$118,MATCH($E73,CONST_LIST_Goods,0),MATCH(Z$8,Parameters_Constants!$K$100:$AF$100,0))=FALSE)","v":false},{"$f":"IF(OR($D73=\"\",$D73=CONST_NA),FALSE,INDEX(Parameters_Constants!$K$101:$AF$118,MATCH($E73,CONST_LIST_Goods,0),MATCH(AA$8,Parameters_Constants!$K$100:$AF$100,0))=FALSE)","v":false},{"$f":"IF(OR($D73=\"\",$D73=CONST_NA),FALSE,INDEX(Parameters_Constants!$K$101:$AF$118,MATCH($E73,CONST_LIST_Goods,0),MATCH(AB$8,Parameters_Constants!$K$100:$AF$100,0))=FALSE)","v":false},{"$f":"IF(OR($D73=\"\",$D73=CONST_NA),FALSE,INDEX(Parameters_Constants!$K$101:$AF$118,MATCH($E73,CONST_LIST_Goods,0),MATCH(AC$8,Parameters_Constants!$K$100:$AF$100,0))=FALSE)","v":false},{"$f":"IF(OR($D73=\"\",$D73=CONST_NA),FALSE,INDEX(Parameters_Constants!$K$101:$AF$118,MATCH($E73,CONST_LIST_Goods,0),MATCH(AD$8,Parameters_Constants!$K$100:$AF$100,0))=FALSE)","v":false},{"$f":"IF(OR($D73=\"\",$D73=CONST_NA),FALSE,INDEX(Parameters_Constants!$K$101:$AF$118,MATCH($E73,CONST_LIST_Goods,0),MATCH(AE$8,Parameters_Constants!$K$100:$AF$100,0))=FALSE)","v":false},{"$f":"IF(OR($D73=\"\",$D73=CONST_NA),FALSE,INDEX(Parameters_Constants!$K$101:$AF$118,MATCH($E73,CONST_LIST_Goods,0),MATCH(AF$8,Parameters_Constants!$K$100:$AF$100,0))=FALSE)","v":false},{"$f":"IF(OR($D73=\"\",$D73=CONST_NA),FALSE,INDEX(Parameters_Constants!$K$101:$AF$118,MATCH($E73,CONST_LIST_Goods,0),MATCH(AG$8,Parameters_Constants!$K$100:$AF$100,0))=FALSE)","v":false},{"$f":"IF(OR($D73=\"\",$D73=CONST_NA),FALSE,INDEX(Parameters_Constants!$K$101:$AF$118,MATCH($E73,CONST_LIST_Goods,0),MATCH(AH$8,Parameters_Constants!$K$100:$AF$100,0))=FALSE)","v":false},{"$f":"IF(OR($D73=\"\",$D73=CONST_NA),FALSE,INDEX(Parameters_Constants!$K$101:$AF$118,MATCH($E73,CONST_LIST_Goods,0),MATCH(AI$8,Parameters_Constants!$K$100:$AF$100,0))=FALSE)","v":false},{"$f":"IF(OR($D73=\"\",$D73=CONST_NA),FALSE,INDEX(Parameters_Constants!$K$101:$AF$118,MATCH($E73,CONST_LIST_Goods,0),MATCH(AJ$8,Parameters_Constants!$K$100:$AF$100,0))=FALSE)","v":false},{"$f":"IF(OR($D73=\"\",$D73=CONST_NA),FALSE,INDEX(Parameters_Constants!$K$101:$AF$118,MATCH($E73,CONST_LIST_Goods,0),MATCH(AK$8,Parameters_Constants!$K$100:$AF$100,0))=FALSE)","v":false}]
["ausblenden",null,65,null,null,false,null,false,{"$nulls":7},{"$f":"IF(OR($D74=\"\",$D74=CONST_NA),FALSE,INDEX(Parameters_Constants!$K$101:$AF$118,MATCH($E74,CONST_LIST_Goods,0),MATCH(P$8,Parameters_Constants!$K$100:$AF$100,0))=FALSE)","v":false},{"$f":"IF(OR($D74=\"\",$D74=CONST_NA),FALSE,INDEX(Parameters_Constants!$K$101:$AF$118,MATCH($E74,CONST_LIST_Goods,0),MATCH(Q$8,Parameters_Constants!$K$100:$AF$100,0))=FALSE)","v":false},{"$f":"IF(OR($D74=\"\",$D74=CONST_NA),FALSE,INDEX(Parameters_Constants!$K$101:$AF$118,MATCH($E74,CONST_LIST_Goods,0),MATCH(R$8,Parameters_Constants!$K$100:$AF$100,0))=FALSE)","v":false},{"$f":"IF(OR($D74=\"\",$D74=CONST_NA),FALSE,INDEX(Parameters_Constants!$K$101:$AF$118,MATCH($E74,CONST_LIST_Goods,0),MATCH(S$8,Parameters_Constants!$K$100:$AF$100,0))=FALSE)","v":false},{"$f":"IF(OR($D74=\"\",$D74=CONST_NA),FALSE,INDEX(Parameters_Constants!$K$101:$AF$118,MATCH($E74,CONST_LIST_Goods,0),MATCH(T$8,Parameters_Constants!$K$100:$AF$100,0))=FALSE)","v":false},{"$f":"IF(OR($D74=\"\",$D74=CONST_NA),FALSE,INDEX(Parameters_Constants!$K$101:$AF$118,MATCH($E74,CONST_LIST_Goods,0),MATCH(U$8,Parameters_Constants!$K$100:$AF$100,0))=FALSE)","v":false},{"$f":"IF(OR($D74=\"\",$D74=CONST_NA),FALSE,INDEX(Parameters_Constants!$K$101:$AF$118,MATCH($E74,CONST_LIST_Goods,0),MATCH(V$8,Parameters_Constants!$K$100:$AF$100,0))=FALSE)","v":false},{"$f":"IF(OR($D74=\"\",$D74=CONST_NA),FALSE,INDEX(Parameters_Constants!$K$101:$AF$118,MATCH($E74,CONST_LIST_Goods,0),MATCH(W$8,Parameters_Constants!$K$100:$AF$100,0))=FALSE)","v":false},{"$f":"IF(OR($D74=\"\",$D74=CONST_NA),FALSE,INDEX(Parameters_Constants!$K$101:$AF$118,MATCH($E74,CONST_LIST_Goods,0),MATCH(X$8,Parameters_Constants!$K$100:$AF$100,0))=FALSE)","v":false},{"$f":"IF(OR($D74=\"\",$D74=CONST_NA),FALSE,INDEX(Parameters_Constants!$K$101:$AF$118,MATCH($E74,CONST_LIST_Goods,0),MATCH(Y$8,Parameters_Constants!$K$100:$AF$100,0))=FALSE)","v":false},{"$f":"IF(OR($D74=\"\",$D74=CONST_NA),FALSE,INDEX(Parameters_Constants!$K$101:$AF$118,MATCH($E74,CONST_LIST_Goods,0),MATCH(Z$8,Parameters_Constants!$K$100:$AF$100,0))=FALSE)","v":false},{"$f":"IF(OR($D74=\"\",$D74=CONST_NA),FALSE,INDEX(Parameters_Constants!$K$101:$AF$118,MATCH($E74,CONST_LIST_Goods,0),MATCH(AA$8,Parameters_Constants!$K$100:$AF$100,0))=FALSE)","v":false},{"$f":"IF(OR($D74=\"\",$D74=CONST_NA),FALSE,INDEX(Parameters_Constants!$K$101:$AF$118,MATCH($E74,CONST_LIST_Goods,0),MATCH(AB$8,Parameters_Constants!$K$100:$AF$100,0))=FALSE)","v":false},{"$f":"IF(OR($D74=\"\",$D74=CONST_NA),FALSE,INDEX(Parameters_Constants!$K$101:$AF$118,MATCH($E74,CONST_LIST_Goods,0),MATCH(AC$8,Parameters_Constants!$K$100:$AF$100,0))=FALSE)","v":false},{"$f":"IF(OR($D74=\"\",$D74=CONST_NA),FALSE,INDEX(Parameters_Constants!$K$101:$AF$118,MATCH($E74,CONST_LIST_Goods,0),MATCH(AD$8,Parameters_Constants!$K$100:$AF$100,0))=FALSE)","v":false},{"$f":"IF(OR($D74=\"\",$D74=CONST_NA),FALSE,INDEX(Parameters_Constants!$K$101:$AF$118,MATCH($E74,CONST_LIST_Goods,0),MATCH(AE$8,Parameters_Constants!$K$100:$AF$100,0))=FALSE)","v":false},{"$f":"IF(OR($D74=\"\",$D74=CONST_NA),FALSE,INDEX(Parameters_Constants!$K$101:$AF$118,MATCH($E74,CONST_LIST_Goods,0),MATCH(AF$8,Parameters_Constants!$K$100:$AF$100,0))=FALSE)","v":false},{"$f":"IF(OR($D74=\"\",$D74=CONST_NA),FALSE,INDEX(Parameters_Constants!$K$101:$AF$118,MATCH($E74,CONST_LIST_Goods,0),MATCH(AG$8,Parameters_Constants!$K$100:$AF$100,0))=FALSE)","v":false},{"$f":"IF(OR($D74=\"\",$D74=CONST_NA),FALSE,INDEX(Parameters_Constants!$K$101:$AF$118,MATCH($E74,CONST_LIST_Goods,0),MATCH(AH$8,Parameters_Constants!$K$100:$AF$100,0))=FALSE)","v":false},{"$f":"IF(OR($D74=\"\",$D74=CONST_NA),FALSE,INDEX(Parameters_Constants!$K$101:$AF$118,MATCH($E74,CONST_LIST_Goods,0),MATCH(AI$8,Parameters_Constants!$K$100:$AF$100,0))=FALSE)","v":false},{"$f":"IF(OR($D74=\"\",$D74=CONST_NA),FALSE,INDEX(Parameters_Constants!$K$101:$AF$118,MATCH($E74,CONST_LIST_Goods,0),MATCH(AJ$8,Parameters_Constants!$K$100:$AF$100,0))=FALSE)","v":false},{"$f":"IF(OR($D74=\"\",$D74=CONST_NA),FALSE,INDEX(Parameters_Constants!$K$101:$AF$118,MATCH($E74,CONST_LIST_Goods,0),MATCH(AK$8,Parameters_Constants!$K$100:$AF$100,0))=FALSE)","v":false}]
["ausblenden",null,66,null,null,false,null,false,{"$nulls":7},{"$f":"IF(OR($D75=\"\",$D75=CONST_NA),FALSE,INDEX(Parameters_Constants!$K$101:$AF$118,MATCH($E75,CONST_LIST_Goods,0),MATCH(P$8,Parameters_Constants!$K$100:$AF$100,0))=FALSE)","v":false},{"$f":"IF(OR($D75=\"\",$D75=CONST_NA),FALSE,INDEX(Parameters_Constants!$K$101:$AF$118,MATCH($E75,CONST_LIST_Goods,0),MATCH(Q$8,Parameters_Constants!$K$100:$AF$100,0))=FALSE)","v":false},{"$f":"IF(OR($D75=\"\",$D75=CONST_NA),FALSE,INDEX(Parameters_Constants!$K$101:$AF$118,MATCH($E75,CONST_LIST_Goods,0),MATCH(R$8,Parameters_Constants!$K$100:$AF$100,0))=FALSE)","v":false},{"$f":"IF(OR($D75=\"\",$D75=CONST_NA),FALSE,INDEX(Parameters_Constants!$K$101:$AF$118,MATCH($E75,CONST_LIST_Goods,0),MATCH(S$8,Parameters_Constants!$K$100:$AF$100,0))=FALSE)","v":false},{"$f":"IF(OR($D75=\"\",$D75=CONST_NA),FALSE,INDEX(Parameters_Constants!$K$101:$AF$118,MATCH($E75,CONST_LIST_Goods,0),MATCH(T$8,Parameters_Constants!$K$100:$AF$100,0))=FALSE)","v":false},{"$f":"IF(OR($D75=\"\",$D75=CONST_NA),FALSE,INDEX(Parameters_Constants!$K$101:$AF$118,MATCH($E75,CONST_LIST_Goods,0),MATCH(U$8,Parameters_Constants!$K$100:$AF$100,0))=FALSE)","v":false},{"$f":"IF(OR($D75=\"\",$D75=CONST_NA),FALSE,INDEX(Parameters_Constants!$K$101:$AF$118,MATCH($E75,CONST_LIST_Goods,0),MATCH(V$8,Parameters_Constants!$K$100:$AF$100,0))=FALSE)","v":false},{"$f":"IF(OR($D75=\"\",$D75=CONST_NA),FALSE,INDEX(Parameters_Constants!$K$101:$AF$118,MATCH($E75,CONST_LIST_Goods,0),MATCH(W$8,Parameters_Constants!$K$100:$AF$100,0))=FALSE)","v":false},{"$f":"IF(OR($D75=\"\",$D75=CONST_NA),FALSE,INDEX(Parameters_Constants!$K$101:$AF$118,MATCH($E75,CONST_LIST_Goods,0),MATCH(X$8,Parameters_Constants!$K$100:$AF$100,0))=FALSE)","v":false},{"$f":"IF(OR($D75=\"\",$D75=CONST_NA),FALSE,INDEX(Parameters_Constants!$K$101:$AF$118,MATCH($E75,CONST_LIST_Goods,0),MATCH(Y$8,Parameters_Constants!$K$100:$AF$100,0))=FALSE)","v":false},{"$f":"IF(OR($D75=\"\",$D75=CONST_NA),FALSE,INDEX(Parameters_Constants!$K$101:$AF$118,MATCH($E75,CONST_LIST_Goods,0),MATCH(Z$8,Parameters_Constants!$K$100:$AF$100,0))=FALSE)","v":false},{"$f":"IF(OR($D75=\"\",$D75=CONST_NA),FALSE,INDEX(Parameters_Constants!$K$101:$AF$118,MATCH($E75,CONST_LIST_Goods,0),MATCH(AA$8,Parameters_Constants!$K$100:$AF$100,0))=FALSE)","v":false},{"$f":"IF(OR($D75=\"\",$D75=CONST_NA),FALSE,INDEX(Parameters_Constants!$K$101:$AF$118,MATCH($E75,CONST_LIST_Goods,0),MATCH(AB$8,Parameters_Constants!$K$100:$AF$100,0))=FALSE)","v":false},{"$f":"IF(OR($D75=\"\",$D75=CONST_NA),FALSE,INDEX(Parameters_Constants!$K$101:$AF$118,MATCH($E75,CONST_LIST_Goods,0),MATCH(AC$8,Parameters_Constants!$K$100:$AF$100,0))=FALSE)","v":false},{"$f":"IF(OR($D75=\"\",$D75=CONST_NA),FALSE,INDEX(Parameters_Constants!$K$101:$AF$118,MATCH($E75,CONST_LIST_Goods,0),MATCH(AD$8,Parameters_Constants!$K$100:$AF$100,0))=FALSE)","v":false},{"$f":"IF(OR($D75=\"\",$D75=CONST_NA),FALSE,INDEX(Parameters_Constants!$K$101:$AF$118,MATCH($E75,CONST_LIST_Goods,0),MATCH(AE$8,Parameters_Constants!$K$100:$AF$100,0))=FALSE)","v":false},{"$f":"IF(OR($D75=\"\",$D75=CONST_NA),FALSE,INDEX(Parameters_Constants!$K$101:$AF$118,MATCH($E75,CONST_LIST_Goods,0),MATCH(AF$8,Parameters_Constants!$K$100:$AF$100,0))=FALSE)","v":false},{"$f":"IF(OR($D75=\"\",$D75=CONST_NA),FALSE,INDEX(Parameters_Constants!$K$101:$AF$118,MATCH($E75,CONST_LIST_Goods,0),MATCH(AG$8,Parameters_Constants!$K$100:$AF$100,0))=FALSE)","v":false},{"$f":"IF(OR($D75=\"\",$D75=CONST_NA),FALSE,INDEX(Parameters_Constants!$K$101:$AF$118,MATCH($E75,CONST_LIST_Goods,0),MATCH(AH$8,Parameters_Constants!$K$100:$AF$100,0))=FALSE)","v":false},{"$f":"IF(OR($D75=\"\",$D75=CONST_NA),FALSE,INDEX(Parameters_Constants!$K$101:$AF$118,MATCH($E75,CONST_LIST_Goods,0),MATCH(AI$8,Parameters_Constants!$K$100:$AF$100,0))=FALSE)","v":false},{"$f":"IF(OR($D75=\"\",$D75=CONST_NA),FALSE,INDEX(Parameters_Constants!$K$101:$AF$118,MATCH($E75,CONST_LIST_Goods,0),MATCH(AJ$8,Parameters_Constants!$K$100:$AF$100,0))=FALSE)","v":false},{"$f":"IF(OR($D75=\"\",$D75=CONST_NA),FALSE,INDEX(Parameters_Constants!$K$101:$AF$118,MATCH($E75,CONST_LIST_Goods,0),MATCH(AK$8,Parameters_Constants!$K$100:$AF$100,0))=FALSE)","v":false}]
["ausblenden",null,67,null,null,false,null,false,{"$nulls":7},{"$f":"IF(OR($D76=\"\",$D76=CONST_NA),FALSE,INDEX(Parameters_Constants!$K$101:$AF$118,MATCH($E76,CONST_LIST_Goods,0),MATCH(P$8,Parameters_Constants!$K$100:$AF$100,0))=FALSE)","v":false},{"$f":"IF(OR($D76=\"\",$D76=CONST_NA),FALSE,INDEX(Parameters_Constants!$K$101:$AF$118,MATCH($E76,CONST_LIST_Goods,0),MATCH(Q$8,Parameters_Constants!$K$100:$AF$100,0))=FALSE)","v":false},{"$f":"IF(OR($D76=\"\",$D76=CONST_NA),FALSE,INDEX(Parameters_Constants!$K$101:$AF$118,MATCH($E76,CONST_LIST_Goods,0),MATCH(R$8,Parameters_Constants!$K$100:$AF$100,0))=FALSE)","v":false},{"$f":"IF(OR($D76=\"\",$D76=CONST_NA),FALSE,INDEX(Parameters_Constants!$K$101:$AF$118,MATCH($E76,CONST_LIST_Goods,0),MATCH(S$8,Parameters_Constants!$K$100:$AF$100,0))=FALSE)","v":false},{"$f":"IF(OR($D76=\"\",$D76=CONST_NA),FALSE,INDEX(Parameters_Constants!$K$101:$AF$118,MATCH($E76,CONST_LIST_Goods,0),MATCH(T$8,Parameters_Constants!$K$100:$AF$100,0))=FALSE)","v":false},{"$f":"IF(OR($D76=\"\",$D76=CONST_NA),FALSE,INDEX(Parameters_Constants!$K$101:$AF$118,MATCH($E76,CONST_LIST_Goods,0),MATCH(U$8,Parameters_Constants!$K$100:$AF$100,0))=FALSE)","v":false},{"$f":"IF(OR($D76=\"\",$D76=CONST_NA),FALSE,INDEX(Parameters_Constants!$K$101:$AF$118,MATCH($E76,CONST_LIST_Goods,0),MATCH(V$8,Parameters_Constants!$K$100:$AF$100,0))=FALSE)","v":false},{"$f":"IF(OR($D76=\"\",$D76=CONST_NA),FALSE,INDEX(Parameters_Constants!$K$101:$AF$118,MATCH($E76,CONST_LIST_Goods,0),MATCH(W$8,Parameters_Constants!$K$100:$AF$100,0))=FALSE)","v":false},{"$f":"IF(OR($D76=\"\",$D76=CONST_NA),FALSE,INDEX(Parameters_Constants!$K$101:$AF$118,MATCH($E76,CONST_LIST_Goods,0),MATCH(X$8,Parameters_Constants!$K$100:$AF$100,0))=FALSE)","v":false},{"$f":"IF(OR($D76=\"\",$D76=CONST_NA),FALSE,INDEX(Parameters_Constants!$K$101:$AF$118,MATCH($E76,CONST_LIST_Goods,0),MATCH(Y$8,Parameters_Constants!$K$100:$AF$100,0))=FALSE)","v":false},{"$f":"IF(OR($D76=\"\",$D76=CONST_NA),FALSE,INDEX(Parameters_Constants!$K$101:$AF$118,MATCH($E76,CONST_LIST_Goods,0),MATCH(Z$8,Parameters_Constants!$K$100:$AF$100,0))=FALSE)","v":false},{"$f":"IF(OR($D76=\"\",$D76=CONST_NA),FALSE,INDEX(Parameters_Constants!$K$101:$AF$118,MATCH($E76,CONST_LIST_Goods,0),MATCH(AA$8,Parameters_Constants!$K$100:$AF$100,0))=FALSE)","v":false},{"$f":"IF(OR($D76=\"\",$D76=CONST_NA),FALSE,INDEX(Parameters_Constants!$K$101:$AF$118,MATCH($E76,CONST_LIST_Goods,0),MATCH(AB$8,Parameters_Constants!$K$100:$AF$100,0))=FALSE)","v":false},{"$f":"IF(OR($D76=\"\",$D76=CONST_NA),FALSE,INDEX(Parameters_Constants!$K$101:$AF$118,MATCH($E76,CONST_LIST_Goods,0),MATCH(AC$8,Parameters_Constants!$K$100:$AF$100,0))=FALSE)","v":false},{"$f":"IF(OR($D76=\"\",$D76=CONST_NA),FALSE,INDEX(Parameters_Constants!$K$101:$AF$118,MATCH($E76,CONST_LIST_Goods,0),MATCH(AD$8,Parameters_Constants!$K$100:$AF$100,0))=FALSE)","v":false},{"$f":"IF(OR($D76=\"\",$D76=CONST_NA),FALSE,INDEX(Parameters_Constants!$K$101:$AF$118,MATCH($E76,CONST_LIST_Goods,0),MATCH(AE$8,Parameters_Constants!$K$100:$AF$100,0))=FALSE)","v":false},{"$f":"IF(OR($D76=\"\",$D76=CONST_NA),FALSE,INDEX(Parameters_Constants!$K$101:$AF$118,MATCH($E76,CONST_LIST_Goods,0),MATCH(AF$8,Parameters_Constants!$K$100:$AF$100,0))=FALSE)","v":false},{"$f":"IF(OR($D76=\"\",$D76=CONST_NA),FALSE,INDEX(Parameters_Constants!$K$101:$AF$118,MATCH($E76,CONST_LIST_Goods,0),MATCH(AG$8,Parameters_Constants!$K$100:$AF$100,0))=FALSE)","v":false},{"$f":"IF(OR($D76=\"\",$D76=CONST_NA),FALSE,INDEX(Parameters_Constants!$K$101:$AF$118,MATCH($E76,CONST_LIST_Goods,0),MATCH(AH$8,Parameters_Constants!$K$100:$AF$100,0))=FALSE)","v":false},{"$f":"IF(OR($D76=\"\",$D76=CONST_NA),FALSE,INDEX(Parameters_Constants!$K$101:$AF$118,MATCH($E76,CONST_LIST_Goods,0),MATCH(AI$8,Parameters_Constants!$K$100:$AF$100,0))=FALSE)","v":false},{"$f":"IF(OR($D76=\"\",$D76=CONST_NA),FALSE,INDEX(Parameters_Constants!$K$101:$AF$118,MATCH($E76,CONST_LIST_Goods,0),MATCH(AJ$8,Parameters_Constants!$K$100:$AF$100,0))=FALSE)","v":false},{"$f":"IF(OR($D76=\"\",$D76=CONST_NA),FALSE,INDEX(Parameters_Constants!$K$101:$AF$118,MATCH($E76,CONST_LIST_Goods,0),MATCH(AK$8,Parameters_Constants!$K$100:$AF$100,0))=FALSE)","v":false}]
["ausblenden",null,68,null,null,false,null,false,{"$nulls":7},{"$f":"IF(OR($D77=\"\",$D77=CONST_NA),FALSE,INDEX(Parameters_Constants!$K$101:$AF$118,MATCH($E77,CONST_LIST_Goods,0),MATCH(P$8,Parameters_Constants!$K$100:$AF$100,0))=FALSE)","v":false},{"$f":"IF(OR($D77=\"\",$D77=CONST_NA),FALSE,INDEX(Parameters_Constants!$K$101:$AF$118,MATCH($E77,CONST_LIST_Goods,0),MATCH(Q$8,Parameters_Constants!$K$100:$AF$100,0))=FALSE)","v":false},{"$f":"IF(OR($D77=\"\",$D77=CONST_NA),FALSE,INDEX(Parameters_Constants!$K$101:$AF$118,MATCH($E77,CONST_LIST_Goods,0),MATCH(R$8,Parameters_Constants!$K$100:$AF$100,0))=FALSE)","v":false},{"$f":"IF(OR($D77=\"\",$D77=CONST_NA),FALSE,INDEX(Parameters_Constants!$K$101:$AF$118,MATCH($E77,CONST_LIST_Goods,0),MATCH(S$8,Parameters_Constants!$K$100:$AF$100,0))=FALSE)","v":false},{"$f":"IF(OR($D77=\"\",$D77=CONST_NA),FALSE,INDEX(Parameters_Constants!$K$101:$AF$118,MATCH($E77,CONST_LIST_Goods,0),MATCH(T$8,Parameters_Constants!$K$100:$AF$100,0))=FALSE)","v":false},{"$f":"IF(OR($D77=\"\",$D77=CONST_NA),FALSE,INDEX(Parameters_Constants!$K$101:$AF$118,MATCH($E77,CONST_LIST_Goods,0),MATCH(U$8,Parameters_Constants!$K$100:$AF$100,0))=FALSE)","v":false},{"$f":"IF(OR($D77=\"\",$D77=CONST_NA),FALSE,INDEX(Parameters_Constants!$K$101:$AF$118,MATCH($E77,CONST_LIST_Goods,0),MATCH(V$8,Parameters_Constants!$K$100:$AF$100,0))=FALSE)","v":false},{"$f":"IF(OR($D77=\"\",$D77=CONST_NA),FALSE,INDEX(Parameters_Constants!$K$101:$AF$118,MATCH($E77,CONST_LIST_Goods,0),MATCH(W$8,Parameters_Constants!$K$100:$AF$100,0))=FALSE)","v":false},{"$f":"IF(OR($D77=\"\",$D77=CONST_NA),FALSE,INDEX(Parameters_Constants!$K$101:$AF$118,MATCH($E77,CONST_LIST_Goods,0),MATCH(X$8,Parameters_Constants!$K$100:$AF$100,0))=FALSE)","v":false},{"$f":"IF(OR($D77=\"\",$D77=CONST_NA),FALSE,INDEX(Parameters_Constants!$K$101:$AF$118,MATCH($E77,CONST_LIST_Goods,0),MATCH(Y$8,Parameters_Constants!$K$100:$AF$100,0))=FALSE)","v":false},{"$f":"IF(OR($D77=\"\",$D77=CONST_NA),FALSE,INDEX(Parameters_Constants!$K$101:$AF$118,MATCH($E77,CONST_LIST_Goods,0),MATCH(Z$8,Parameters_Constants!$K$100:$AF$100,0))=FALSE)","v":false},{"$f":"IF(OR($D77=\"\",$D77=CONST_NA),FALSE,INDEX(Parameters_Constants!$K$101:$AF$118,MATCH($E77,CONST_LIST_Goods,0),MATCH(AA$8,Parameters_Constants!$K$100:$AF$100,0))=FALSE)","v":false},{"$f":"IF(OR($D77=\"\",$D77=CONST_NA),FALSE,INDEX(Parameters_Constants!$K$101:$AF$118,MATCH($E77,CONST_LIST_Goods,0),MATCH(AB$8,Parameters_Constants!$K$100:$AF$100,0))=FALSE)","v":false},{"$f":"IF(OR($D77=\"\",$D77=CONST_NA),FALSE,INDEX(Parameters_Constants!$K$101:$AF$118,MATCH($E77,CONST_LIST_Goods,0),MATCH(AC$8,Parameters_Constants!$K$100:$AF$100,0))=FALSE)","v":false},{"$f":"IF(OR($D77=\"\",$D77=CONST_NA),FALSE,INDEX(Parameters_Constants!$K$101:$AF$118,MATCH($E77,CONST_LIST_Goods,0),MATCH(AD$8,Parameters_Constants!$K$100:$AF$100,0))=FALSE)","v":false},{"$f":"IF(OR($D77=\"\",$D77=CONST_NA),FALSE,INDEX(Parameters_Constants!$K$101:$AF$118,MATCH($E77,CONST_LIST_Goods,0),MATCH(AE$8,Parameters_Constants!$K$100:$AF$100,0))=FALSE)","v":false},{"$f":"IF(OR($D77=\"\",$D77=CONST_NA),FALSE,INDEX(Parameters_Constants!$K$101:$AF$118,MATCH($E77,CONST_LIST_Goods,0),MATCH(AF$8,Parameters_Constants!$K$100:$AF$100,0))=FALSE)","v":false},{"$f":"IF(OR($D77=\"\",$D77=CONST_NA),FALSE,INDEX(Parameters_Constants!$K$101:$AF$118,MATCH($E77,CONST_LIST_Goods,0),MATCH(AG$8,Parameters_Constants!$K$100:$AF$100,0))=FALSE)","v":false},{"$f":"IF(OR($D77=\"\",$D77=CONST_NA),FALSE,INDEX(Parameters_Constants!$K$101:$AF$118,MATCH($E77,CONST_LIST_Goods,0),MATCH(AH$8,Parameters_Constants!$K$100:$AF$100,0))=FALSE)","v":false},{"$f":"IF(OR($D77=\"\",$D77=CONST_NA),FALSE,INDEX(Parameters_Constants!$K$101:$AF$118,MATCH($E77,CONST_LIST_Goods,0),MATCH(AI$8,Parameters_Constants!$K$100:$AF$100,0))=FALSE)","v":false},{"$f":"IF(OR($D77=\"\",$D77=CONST_NA),FALSE,INDEX(Parameters_Constants!$K$101:$AF$118,MATCH($E77,CONST_LIST_Goods,0),MATCH(AJ$8,Parameters_Constants!$K$100:$AF$100,0))=FALSE)","v":false},{"$f":"IF(OR($D77=\"\",$D77=CONST_NA),FALSE,INDEX(Parameters_Constants!$K$101:$AF$118,MATCH($E77,CONST_LIST_Goods,0),MATCH(AK$8,Parameters_Constants!$K$100:$AF$100,0))=FALSE)","v":false}]
["ausblenden",null,69,null,null,false,null,false,{"$nulls":7},{"$f":"IF(OR($D78=\"\",$D78=CONST_NA),FALSE,INDEX(Parameters_Constants!$K$101:$AF$118,MATCH($E78,CONST_LIST_Goods,0),MATCH(P$8,Parameters_Constants!$K$100:$AF$100,0))=FALSE)","v":false},{"$f":"IF(OR($D78=\"\",$D78=CONST_NA),FALSE,INDEX(Parameters_Constants!$K$101:$AF$118,MATCH($E78,CONST_LIST_Goods,0),MATCH(Q$8,Parameters_Constants!$K$100:$AF$100,0))=FALSE)","v":false},{"$f":"IF(OR($D78=\"\",$D78=CONST_NA),FALSE,INDEX(Parameters_Constants!$K$101:$AF$118,MATCH($E78,CONST_LIST_Goods,0),MATCH(R$8,Parameters_Constants!$K$100:$AF$100,0))=FALSE)","v":false},{"$f":"IF(OR($D78=\"\",$D78=CONST_NA),FALSE,INDEX(Parameters_Constants!$K$101:$AF$118,MATCH($E78,CONST_LIST_Goods,0),MATCH(S$8,Parameters_Constants!$K$100:$AF$100,0))=FALSE)","v":false},{"$f":"IF(OR($D78=\"\",$D78=CONST_NA),FALSE,INDEX(Parameters_Constants!$K$101:$AF$118,MATCH($E78,CONST_LIST_Goods,0),MATCH(T$8,Parameters_Constants!$K$100:$AF$100,0))=FALSE)","v":false},{"$f":"IF(OR($D78=\"\",$D78=CONST_NA),FALSE,INDEX(Parameters_Constants!$K$101:$AF$118,MATCH($E78,CONST_LIST_Goods,0),MATCH(U$8,Parameters_Constants!$K$100:$AF$100,0))=FALSE)","v":false},{"$f":"IF(OR($D78=\"\",$D78=CONST_NA),FALSE,INDEX(Parameters_Constants!$K$101:$AF$118,MATCH($E78,CONST_LIST_Goods,0),MATCH(V$8,Parameters_Constants!$K$100:$AF$100,0))=FALSE)","v":false},{"$f":"IF(OR($D78=\"\",$D78=CONST_NA),FALSE,INDEX(Parameters_Constants!$K$101:$AF$118,MATCH($E78,CONST_LIST_Goods,0),MATCH(W$8,Parameters_Constants!$K$100:$AF$100,0))=FALSE)","v":false},{"$f":"IF(OR($D78=\"\",$D78=CONST_NA),FALSE,INDEX(Parameters_Constants!$K$101:$AF$118,MATCH($E78,CONST_LIST_Goods,0),MATCH(X$8,Parameters_Constants!$K$100:$AF$100,0))=FALSE)","v":false},{"$f":"IF(OR($D78=\"\",$D78=CONST_NA),FALSE,INDEX(Parameters_Constants!$K$101:$AF$118,MATCH($E78,CONST_LIST_Goods,0),MATCH(Y$8,Parameters_Constants!$K$100:$AF$100,0))=FALSE)","v":false},{"$f":"IF(OR($D78=\"\",$D78=CONST_NA),FALSE,INDEX(Parameters_Constants!$K$101:$AF$118,MATCH($E78,CONST_LIST_Goods,0),MATCH(Z$8,Parameters_Constants!$K$100:$AF$100,0))=FALSE)","v":false},{"$f":"IF(OR($D78=\"\",$D78=CONST_NA),FALSE,INDEX(Parameters_Constants!$K$101:$AF$118,MATCH($E78,CONST_LIST_Goods,0),MATCH(AA$8,Parameters_Constants!$K$100:$AF$100,0))=FALSE)","v":false},{"$f":"IF(OR($D78=\"\",$D78=CONST_NA),FALSE,INDEX(Parameters_Constants!$K$101:$AF$118,MATCH($E78,CONST_LIST_Goods,0),MATCH(AB$8,Parameters_Constants!$K$100:$AF$100,0))=FALSE)","v":false},{"$f":"IF(OR($D78=\"\",$D78=CONST_NA),FALSE,INDEX(Parameters_Constants!$K$101:$AF$118,MATCH($E78,CONST_LIST_Goods,0),MATCH(AC$8,Parameters_Constants!$K$100:$AF$100,0))=FALSE)","v":false},{"$f":"IF(OR($D78=\"\",$D78=CONST_NA),FALSE,INDEX(Parameters_Constants!$K$101:$AF$118,MATCH($E78,CONST_LIST_Goods,0),MATCH(AD$8,Parameters_Constants!$K$100:$AF$100,0))=FALSE)","v":false},{"$f":"IF(OR($D78=\"\",$D78=CONST_NA),FALSE,INDEX(Parameters_Constants!$K$101:$AF$118,MATCH($E78,CONST_LIST_Goods,0),MATCH(AE$8,Parameters_Constants!$K$100:$AF$100,0))=FALSE)","v":false},{"$f":"IF(OR($D78=\"\",$D78=CONST_NA),FALSE,INDEX(Parameters_Constants!$K$101:$AF$118,MATCH($E78,CONST_LIST_Goods,0),MATCH(AF$8,Parameters_Constants!$K$100:$AF$100,0))=FALSE)","v":false},{"$f":"IF(OR($D78=\"\",$D78=CONST_NA),FALSE,INDEX(Parameters_Constants!$K$101:$AF$118,MATCH($E78,CONST_LIST_Goods,0),MATCH(AG$8,Parameters_Constants!$K$100:$AF$100,0))=FALSE)","v":false},{"$f":"IF(OR($D78=\"\",$D78=CONST_NA),FALSE,INDEX(Parameters_Constants!$K$101:$AF$118,MATCH($E78,CONST_LIST_Goods,0),MATCH(AH$8,Parameters_Constants!$K$100:$AF$100,0))=FALSE)","v":false},{"$f":"IF(OR($D78=\"\",$D78=CONST_NA),FALSE,INDEX(Parameters_Constants!$K$101:$AF$118,MATCH($E78,CONST_LIST_Goods,0),MATCH(AI$8,Parameters_Constants!$K$100:$AF$100,0))=FALSE)","v":false},{"$f":"IF(OR($D78=\"\",$D78=CONST_NA),FALSE,INDEX(Parameters_Constants!$K$101:$AF$118,MATCH($E78,CONST_LIST_Goods,0),MATCH(AJ$8,Parameters_Constants!$K$100:$AF$100,0))=FALSE)","v":false},{"$f":"IF(OR($D78=\"\",$D78=CONST_NA),FALSE,INDEX(Parameters_Constants!$K$101:$AF$118,MATCH($E78,CONST_LIST_Goods,0),MATCH(AK$8,Parameters_Constants!$K$100:$AF$100,0))=FALSE)","v":false}]
["ausblenden",null,70,null,null,false,null,false,{"$nulls":7},{"$f":"IF(OR($D79=\"\",$D79=CONST_NA),FALSE,INDEX(Parameters_Constants!$K$101:$AF$118,MATCH($E79,CONST_LIST_Goods,0),MATCH(P$8,Parameters_Constants!$K$100:$AF$100,0))=FALSE)","v":false},{"$f":"IF(OR($D79=\"\",$D79=CONST_NA),FALSE,INDEX(Parameters_Constants!$K$101:$AF$118,MATCH($E79,CONST_LIST_Goods,0),MATCH(Q$8,Parameters_Constants!$K$100:$AF$100,0))=FALSE)","v":false},{"$f":"IF(OR($D79=\"\",$D79=CONST_NA),FALSE,INDEX(Parameters_Constants!$K$101:$AF$118,MATCH($E79,CONST_LIST_Goods,0),MATCH(R$8,Parameters_Constants!$K$100:$AF$100,0))=FALSE)","v":false},{"$f":"IF(OR($D79=\"\",$D79=CONST_NA),FALSE,INDEX(Parameters_Constants!$K$101:$AF$118,MATCH($E79,CONST_LIST_Goods,0),MATCH(S$8,Parameters_Constants!$K$100:$AF$100,0))=FALSE)","v":false},{"$f":"IF(OR($D79=\"\",$D79=CONST_NA),FALSE,INDEX(Parameters_Constants!$K$101:$AF$118,MATCH($E79,CONST_LIST_Goods,0),MATCH(T$8,Parameters_Constants!$K$100:$AF$100,0))=FALSE)","v":false},{"$f":"IF(OR($D79=\"\",$D79=CONST_NA),FALSE,INDEX(Parameters_Constants!$K$101:$AF$118,MATCH($E79,CONST_LIST_Goods,0),MATCH(U$8,Parameters_Constants!$K$100:$AF$100,0))=FALSE)","v":false},{"$f":"IF(OR($D79=\"\",$D79=CONST_NA),FALSE,INDEX(Parameters_Constants!$K$101:$AF$118,MATCH($E79,CONST_LIST_Goods,0),MATCH(V$8,Parameters_Constants!$K$100:$AF$100,0))=FALSE)","v":false},{"$f":"IF(OR($D79=\"\",$D79=CONST_NA),FALSE,INDEX(Parameters_Constants!$K$101:$AF$118,MATCH($E79,CONST_LIST_Goods,0),MATCH(W$8,Parameters_Constants!$K$100:$AF$100,0))=FALSE)","v":false},{"$f":"IF(OR($D79=\"\",$D79=CONST_NA),FALSE,INDEX(Parameters_Constants!$K$101:$AF$118,MATCH($E79,CONST_LIST_Goods,0),MATCH(X$8,Parameters_Constants!$K$100:$AF$100,0))=FALSE)","v":false},{"$f":"IF(OR($D79=\"\",$D79=CONST_NA),FALSE,INDEX(Parameters_Constants!$K$101:$AF$118,MATCH($E79,CONST_LIST_Goods,0),MATCH(Y$8,Parameters_Constants!$K$100:$AF$100,0))=FALSE)","v":false},{"$f":"IF(OR($D79=\"\",$D79=CONST_NA),FALSE,INDEX(Parameters_Constants!$K$101:$AF$118,MATCH($E79,CONST_LIST_Goods,0),MATCH(Z$8,Parameters_Constants!$K$100:$AF$100,0))=FALSE)","v":false},{"$f":"IF(OR($D79=\"\",$D79=CONST_NA),FALSE,INDEX(Parameters_Constants!$K$101:$AF$118,MATCH($E79,CONST_LIST_Goods,0),MATCH(AA$8,Parameters_Constants!$K$100:$AF$100,0))=FALSE)","v":false},{"$f":"IF(OR($D79=\"\",$D79=CONST_NA),FALSE,INDEX(Parameters_Constants!$K$101:$AF$118,MATCH($E79,CONST_LIST_Goods,0),MATCH(AB$8,Parameters_Constants!$K$100:$AF$100,0))=FALSE)","v":false},{"$f":"IF(OR($D79=\"\",$D79=CONST_NA),FALSE,INDEX(Parameters_Constants!$K$101:$AF$118,MATCH($E79,CONST_LIST_Goods,0),MATCH(AC$8,Parameters_Constants!$K$100:$AF$100,0))=FALSE)","v":false},{"$f":"IF(OR($D79=\"\",$D79=CONST_NA),FALSE,INDEX(Parameters_Constants!$K$101:$AF$118,MATCH($E79,CONST_LIST_Goods,0),MATCH(AD$8,Parameters_Constants!$K$100:$AF$100,0))=FALSE)","v":false},{"$f":"IF(OR($D79=\"\",$D79=CONST_NA),FALSE,INDEX(Parameters_Constants!$K$101:$AF$118,MATCH($E79,CONST_LIST_Goods,0),MATCH(AE$8,Parameters_Constants!$K$100:$AF$100,0))=FALSE)","v":false},{"$f":"IF(OR($D79=\"\",$D79=CONST_NA),FALSE,INDEX(Parameters_Constants!$K$101:$AF$118,MATCH($E79,CONST_LIST_Goods,0),MATCH(AF$8,Parameters_Constants!$K$100:$AF$100,0))=FALSE)","v":false},{"$f":"IF(OR($D79=\"\",$D79=CONST_NA),FALSE,INDEX(Parameters_Constants!$K$101:$AF$118,MATCH($E79,CONST_LIST_Goods,0),MATCH(AG$8,Parameters_Constants!$K$100:$AF$100,0))=FALSE)","v":false},{"$f":"IF(OR($D79=\"\",$D79=CONST_NA),FALSE,INDEX(Parameters_Constants!$K$101:$AF$118,MATCH($E79,CONST_LIST_Goods,0),MATCH(AH$8,Parameters_Constants!$K$100:$AF$100,0))=FALSE)","v":false},{"$f":"IF(OR($D79=\"\",$D79=CONST_NA),FALSE,INDEX(Parameters_Constants!$K$101:$AF$118,MATCH($E79,CONST_LIST_Goods,0),MATCH(AI$8,Parameters_Constants!$K$100:$AF$100,0))=FALSE)","v":false},{"$f":"IF(OR($D79=\"\",$D79=CONST_NA),FALSE,INDEX(Parameters_Constants!$K$101:$AF$118,MATCH($E79,CONST_LIST_Goods,0),MATCH(AJ$8,Parameters_Constants!$K$100:$AF$100,0))=FALSE)","v":false},{"$f":"IF(OR($D79=\"\",$D79=CONST_NA),FALSE,INDEX(Parameters_Constants!$K$101:$AF$118,MATCH($E79,CONST_LIST_Goods,0),MATCH(AK$8,Parameters_Constants!$K$100:$AF$100,0))=FALSE)","v":false}]
["ausblenden",null,71,null,null,false,null,false,{"$nulls":7},{"$f":"IF(OR($D80=\"\",$D80=CONST_NA),FALSE,INDEX(Parameters_Constants!$K$101:$AF$118,MATCH($E80,CONST_LIST_Goods,0),MATCH(P$8,Parameters_Constants!$K$100:$AF$100,0))=FALSE)","v":false},{"$f":"IF(OR($D80=\"\",$D80=CONST_NA),FALSE,INDEX(Parameters_Constants!$K$101:$AF$118,MATCH($E80,CONST_LIST_Goods,0),MATCH(Q$8,Parameters_Constants!$K$100:$AF$100,0))=FALSE)","v":false},{"$f":"IF(OR($D80=\"\",$D80=CONST_NA),FALSE,INDEX(Parameters_Constants!$K$101:$AF$118,MATCH($E80,CONST_LIST_Goods,0),MATCH(R$8,Parameters_Constants!$K$100:$AF$100,0))=FALSE)","v":false},{"$f":"IF(OR($D80=\"\",$D80=CONST_NA),FALSE,INDEX(Parameters_Constants!$K$101:$AF$118,MATCH($E80,CONST_LIST_Goods,0),MATCH(S$8,Parameters_Constants!$K$100:$AF$100,0))=FALSE)","v":false},{"$f":"IF(OR($D80=\"\",$D80=CONST_NA),FALSE,INDEX(Parameters_Constants!$K$101:$AF$118,MATCH($E80,CONST_LIST_Goods,0),MATCH(T$8,Parameters_Constants!$K$100:$AF$100,0))=FALSE)","v":false},{"$f":"IF(OR($D80=\"\",$D80=CONST_NA),FALSE,INDEX(Parameters_Constants!$K$101:$AF$118,MATCH($E80,CONST_LIST_Goods,0),MATCH(U$8,Parameters_Constants!$K$100:$AF$100,0))=FALSE)","v":false},{"$f":"IF(OR($D80=\"\",$D80=CONST_NA),FALSE,INDEX(Parameters_Constants!$K$101:$AF$118,MATCH($E80,CONST_LIST_Goods,0),MATCH(V$8,Parameters_Constants!$K$100:$AF$100,0))=FALSE)","v":false},{"$f":"IF(OR($D80=\"\",$D80=CONST_NA),FALSE,INDEX(Parameters_Constants!$K$101:$AF$118,MATCH($E80,CONST_LIST_Goods,0),MATCH(W$8,Parameters_Constants!$K$100:$AF$100,0))=FALSE)","v":false},{"$f":"IF(OR($D80=\"\",$D80=CONST_NA),FALSE,INDEX(Parameters_Constants!$K$101:$AF$118,MATCH($E80,CONST_LIST_Goods,0),MATCH(X$8,Parameters_Constants!$K$100:$AF$100,0))=FALSE)","v":false},{"$f":"IF(OR($D80=\"\",$D80=CONST_NA),FALSE,INDEX(Parameters_Constants!$K$101:$AF$118,MATCH($E80,CONST_LIST_Goods,0),MATCH(Y$8,Parameters_Constants!$K$100:$AF$100,0))=FALSE)","v":false},{"$f":"IF(OR($D80=\"\",$D80=CONST_NA),FALSE,INDEX(Parameters_Constants!$K$101:$AF$118,MATCH($E80,CONST_LIST_Goods,0),MATCH(Z$8,Parameters_Constants!$K$100:$AF$100,0))=FALSE)","v":false},{"$f":"IF(OR($D80=\"\",$D80=CONST_NA),FALSE,INDEX(Parameters_Constants!$K$101:$AF$118,MATCH($E80,CONST_LIST_Goods,0),MATCH(AA$8,Parameters_Constants!$K$100:$AF$100,0))=FALSE)","v":false},{"$f":"IF(OR($D80=\"\",$D80=CONST_NA),FALSE,INDEX(Parameters_Constants!$K$101:$AF$118,MATCH($E80,CONST_LIST_Goods,0),MATCH(AB$8,Parameters_Constants!$K$100:$AF$100,0))=FALSE)","v":false},{"$f":"IF(OR($D80=\"\",$D80=CONST_NA),FALSE,INDEX(Parameters_Constants!$K$101:$AF$118,MATCH($E80,CONST_LIST_Goods,0),MATCH(AC$8,Parameters_Constants!$K$100:$AF$100,0))=FALSE)","v":false},{"$f":"IF(OR($D80=\"\",$D80=CONST_NA),FALSE,INDEX(Parameters_Constants!$K$101:$AF$118,MATCH($E80,CONST_LIST_Goods,0),MATCH(AD$8,Parameters_Constants!$K$100:$AF$100,0))=FALSE)","v":false},{"$f":"IF(OR($D80=\"\",$D80=CONST_NA),FALSE,INDEX(Parameters_Constants!$K$101:$AF$118,MATCH($E80,CONST_LIST_Goods,0),MATCH(AE$8,Parameters_Constants!$K$100:$AF$100,0))=FALSE)","v":false},{"$f":"IF(OR($D80=\"\",$D80=CONST_NA),FALSE,INDEX(Parameters_Constants!$K$101:$AF$118,MATCH($E80,CONST_LIST_Goods,0),MATCH(AF$8,Parameters_Constants!$K$100:$AF$100,0))=FALSE)","v":false},{"$f":"IF(OR($D80=\"\",$D80=CONST_NA),FALSE,INDEX(Parameters_Constants!$K$101:$AF$118,MATCH($E80,CONST_LIST_Goods,0),MATCH(AG$8,Parameters_Constants!$K$100:$AF$100,0))=FALSE)","v":false},{"$f":"IF(OR($D80=\"\",$D80=CONST_NA),FALSE,INDEX(Parameters_Constants!$K$101:$AF$118,MATCH($E80,CONST_LIST_Goods,0),MATCH(AH$8,Parameters_Constants!$K$100:$AF$100,0))=FALSE)","v":false},{"$f":"IF(OR($D80=\"\",$D80=CONST_NA),FALSE,INDEX(Parameters_Constants!$K$101:$AF$118,MATCH($E80,CONST_LIST_Goods,0),MATCH(AI$8,Parameters_Constants!$K$100:$AF$100,0))=FALSE)","v":false},{"$f":"IF(OR($D80=\"\",$D80=CONST_NA),FALSE,INDEX(Parameters_Constants!$K$101:$AF$118,MATCH($E80,CONST_LIST_Goods,0),MATCH(AJ$8,Parameters_Constants!$K$100:$AF$100,0))=FALSE)","v":false},{"$f":"IF(OR($D80=\"\",$D80=CONST_NA),FALSE,INDEX(Parameters_Constants!$K$101:$AF$118,MATCH($E80,CONST_LIST_Goods,0),MATCH(AK$8,Parameters_Constants!$K$100:$AF$100,0))=FALSE)","v":false}]
["ausblenden",null,72,null,null,false,null,false,{"$nulls":7},{"$f":"IF(OR($D81=\"\",$D81=CONST_NA),FALSE,INDEX(Parameters_Constants!$K$101:$AF$118,MATCH($E81,CONST_LIST_Goods,0),MATCH(P$8,Parameters_Constants!$K$100:$AF$100,0))=FALSE)","v":false},{"$f":"IF(OR($D81=\"\",$D81=CONST_NA),FALSE,INDEX(Parameters_Constants!$K$101:$AF$118,MATCH($E81,CONST_LIST_Goods,0),MATCH(Q$8,Parameters_Constants!$K$100:$AF$100,0))=FALSE)","v":false},{"$f":"IF(OR($D81=\"\",$D81=CONST_NA),FALSE,INDEX(Parameters_Constants!$K$101:$AF$118,MATCH($E81,CONST_LIST_Goods,0),MATCH(R$8,Parameters_Constants!$K$100:$AF$100,0))=FALSE)","v":false},{"$f":"IF(OR($D81=\"\",$D81=CONST_NA),FALSE,INDEX(Parameters_Constants!$K$101:$AF$118,MATCH($E81,CONST_LIST_Goods,0),MATCH(S$8,Parameters_Constants!$K$100:$AF$100,0))=FALSE)","v":false},{"$f":"IF(OR($D81=\"\",$D81=CONST_NA),FALSE,INDEX(Parameters_Constants!$K$101:$AF$118,MATCH($E81,CONST_LIST_Goods,0),MATCH(T$8,Parameters_Constants!$K$100:$AF$100,0))=FALSE)","v":false},{"$f":"IF(OR($D81=\"\",$D81=CONST_NA),FALSE,INDEX(Parameters_Constants!$K$101:$AF$118,MATCH($E81,CONST_LIST_Goods,0),MATCH(U$8,Parameters_Constants!$K$100:$AF$100,0))=FALSE)","v":false},{"$f":"IF(OR($D81=\"\",$D81=CONST_NA),FALSE,INDEX(Parameters_Constants!$K$101:$AF$118,MATCH($E81,CONST_LIST_Goods,0),MATCH(V$8,Parameters_Constants!$K$100:$AF$100,0))=FALSE)","v":false},{"$f":"IF(OR($D81=\"\",$D81=CONST_NA),FALSE,INDEX(Parameters_Constants!$K$101:$AF$118,MATCH($E81,CONST_LIST_Goods,0),MATCH(W$8,Parameters_Constants!$K$100:$AF$100,0))=FALSE)","v":false},{"$f":"IF(OR($D81=\"\",$D81=CONST_NA),FALSE,INDEX(Parameters_Constants!$K$101:$AF$118,MATCH($E81,CONST_LIST_Goods,0),MATCH(X$8,Parameters_Constants!$K$100:$AF$100,0))=FALSE)","v":false},{"$f":"IF(OR($D81=\"\",$D81=CONST_NA),FALSE,INDEX(Parameters_Constants!$K$101:$AF$118,MATCH($E81,CONST_LIST_Goods,0),MATCH(Y$8,Parameters_Constants!$K$100:$AF$100,0))=FALSE)","v":false},{"$f":"IF(OR($D81=\"\",$D81=CONST_NA),FALSE,INDEX(Parameters_Constants!$K$101:$AF$118,MATCH($E81,CONST_LIST_Goods,0),MATCH(Z$8,Parameters_Constants!$K$100:$AF$100,0))=FALSE)","v":false},{"$f":"IF(OR($D81=\"\",$D81=CONST_NA),FALSE,INDEX(Parameters_Constants!$K$101:$AF$118,MATCH($E81,CONST_LIST_Goods,0),MATCH(AA$8,Parameters_Constants!$K$100:$AF$100,0))=FALSE)","v":false},{"$f":"IF(OR($D81=\"\",$D81=CONST_NA),FALSE,INDEX(Parameters_Constants!$K$101:$AF$118,MATCH($E81,CONST_LIST_Goods,0),MATCH(AB$8,Parameters_Constants!$K$100:$AF$100,0))=FALSE)","v":false},{"$f":"IF(OR($D81=\"\",$D81=CONST_NA),FALSE,INDEX(Parameters_Constants!$K$101:$AF$118,MATCH($E81,CONST_LIST_Goods,0),MATCH(AC$8,Parameters_Constants!$K$100:$AF$100,0))=FALSE)","v":false},{"$f":"IF(OR($D81=\"\",$D81=CONST_NA),FALSE,INDEX(Parameters_Constants!$K$101:$AF$118,MATCH($E81,CONST_LIST_Goods,0),MATCH(AD$8,Parameters_Constants!$K$100:$AF$100,0))=FALSE)","v":false},{"$f":"IF(OR($D81=\"\",$D81=CONST_NA),FALSE,INDEX(Parameters_Constants!$K$101:$AF$118,MATCH($E81,CONST_LIST_Goods,0),MATCH(AE$8,Parameters_Constants!$K$100:$AF$100,0))=FALSE)","v":false},{"$f":"IF(OR($D81=\"\",$D81=CONST_NA),FALSE,INDEX(Parameters_Constants!$K$101:$AF$118,MATCH($E81,CONST_LIST_Goods,0),MATCH(AF$8,Parameters_Constants!$K$100:$AF$100,0))=FALSE)","v":false},{"$f":"IF(OR($D81=\"\",$D81=CONST_NA),FALSE,INDEX(Parameters_Constants!$K$101:$AF$118,MATCH($E81,CONST_LIST_Goods,0),MATCH(AG$8,Parameters_Constants!$K$100:$AF$100,0))=FALSE)","v":false},{"$f":"IF(OR($D81=\"\",$D81=CONST_NA),FALSE,INDEX(Parameters_Constants!$K$101:$AF$118,MATCH($E81,CONST_LIST_Goods,0),MATCH(AH$8,Parameters_Constants!$K$100:$AF$100,0))=FALSE)","v":false},{"$f":"IF(OR($D81=\"\",$D81=CONST_NA),FALSE,INDEX(Parameters_Constants!$K$101:$AF$118,MATCH($E81,CONST_LIST_Goods,0),MATCH(AI$8,Parameters_Constants!$K$100:$AF$100,0))=FALSE)","v":false},{"$f":"IF(OR($D81=\"\",$D81=CONST_NA),FALSE,INDEX(Parameters_Constants!$K$101:$AF$118,MATCH($E81,CONST_LIST_Goods,0),MATCH(AJ$8,Parameters_Constants!$K$100:$AF$100,0))=FALSE)","v":false},{"$f":"IF(OR($D81=\"\",$D81=CONST_NA),FALSE,INDEX(Parameters_Constants!$K$101:$AF$118,MATCH($E81,CONST_LIST_Goods,0),MATCH(AK$8,Parameters_Constants!$K$100:$AF$100,0))=FALSE)","v":false}]
["ausblenden",null,73,null,null,false,null,false,{"$nulls":7},{"$f":"IF(OR($D82=\"\",$D82=CONST_NA),FALSE,INDEX(Parameters_Constants!$K$101:$AF$118,MATCH($E82,CONST_LIST_Goods,0),MATCH(P$8,Parameters_Constants!$K$100:$AF$100,0))=FALSE)","v":false},{"$f":"IF(OR($D82=\"\",$D82=CONST_NA),FALSE,INDEX(Parameters_Constants!$K$101:$AF$118,MATCH($E82,CONST_LIST_Goods,0),MATCH(Q$8,Parameters_Constants!$K$100:$AF$100,0))=FALSE)","v":false},{"$f":"IF(OR($D82=\"\",$D82=CONST_NA),FALSE,INDEX(Parameters_Constants!$K$101:$AF$118,MATCH($E82,CONST_LIST_Goods,0),MATCH(R$8,Parameters_Constants!$K$100:$AF$100,0))=FALSE)","v":false},{"$f":"IF(OR($D82=\"\",$D82=CONST_NA),FALSE,INDEX(Parameters_Constants!$K$101:$AF$118,MATCH($E82,CONST_LIST_Goods,0),MATCH(S$8,Parameters_Constants!$K$100:$AF$100,0))=FALSE)","v":false},{"$f":"IF(OR($D82=\"\",$D82=CONST_NA),FALSE,INDEX(Parameters_Constants!$K$101:$AF$118,MATCH($E82,CONST_LIST_Goods,0),MATCH(T$8,Parameters_Constants!$K$100:$AF$100,0))=FALSE)","v":false},{"$f":"IF(OR($D82=\"\",$D82=CONST_NA),FALSE,INDEX(Parameters_Constants!$K$101:$AF$118,MATCH($E82,CONST_LIST_Goods,0),MATCH(U$8,Parameters_Constants!$K$100:$AF$100,0))=FALSE)","v":false},{"$f":"IF(OR($D82=\"\",$D82=CONST_NA),FALSE,INDEX(Parameters_Constants!$K$101:$AF$118,MATCH($E82,CONST_LIST_Goods,0),MATCH(V$8,Parameters_Constants!$K$100:$AF$100,0))=FALSE)","v":false},{"$f":"IF(OR($D82=\"\",$D82=CONST_NA),FALSE,INDEX(Parameters_Constants!$K$101:$AF$118,MATCH($E82,CONST_LIST_Goods,0),MATCH(W$8,Parameters_Constants!$K$100:$AF$100,0))=FALSE)","v":false},{"$f":"IF(OR($D82=\"\",$D82=CONST_NA),FALSE,INDEX(Parameters_Constants!$K$101:$AF$118,MATCH($E82,CONST_LIST_Goods,0),MATCH(X$8,Parameters_Constants!$K$100:$AF$100,0))=FALSE)","v":false},{"$f":"IF(OR($D82=\"\",$D82=CONST_NA),FALSE,INDEX(Parameters_Constants!$K$101:$AF$118,MATCH($E82,CONST_LIST_Goods,0),MATCH(Y$8,Parameters_Constants!$K$100:$AF$100,0))=FALSE)","v":false},{"$f":"IF(OR($D82=\"\",$D82=CONST_NA),FALSE,INDEX(Parameters_Constants!$K$101:$AF$118,MATCH($E82,CONST_LIST_Goods,0),MATCH(Z$8,Parameters_Constants!$K$100:$AF$100,0))=FALSE)","v":false},{"$f":"IF(OR($D82=\"\",$D82=CONST_NA),FALSE,INDEX(Parameters_Constants!$K$101:$AF$118,MATCH($E82,CONST_LIST_Goods,0),MATCH(AA$8,Parameters_Constants!$K$100:$AF$100,0))=FALSE)","v":false},{"$f":"IF(OR($D82=\"\",$D82=CONST_NA),FALSE,INDEX(Parameters_Constants!$K$101:$AF$118,MATCH($E82,CONST_LIST_Goods,0),MATCH(AB$8,Parameters_Constants!$K$100:$AF$100,0))=FALSE)","v":false},{"$f":"IF(OR($D82=\"\",$D82=CONST_NA),FALSE,INDEX(Parameters_Constants!$K$101:$AF$118,MATCH($E82,CONST_LIST_Goods,0),MATCH(AC$8,Parameters_Constants!$K$100:$AF$100,0))=FALSE)","v":false},{"$f":"IF(OR($D82=\"\",$D82=CONST_NA),FALSE,INDEX(Parameters_Constants!$K$101:$AF$118,MATCH($E82,CONST_LIST_Goods,0),MATCH(AD$8,Parameters_Constants!$K$100:$AF$100,0))=FALSE)","v":false},{"$f":"IF(OR($D82=\"\",$D82=CONST_NA),FALSE,INDEX(Parameters_Constants!$K$101:$AF$118,MATCH($E82,CONST_LIST_Goods,0),MATCH(AE$8,Parameters_Constants!$K$100:$AF$100,0))=FALSE)","v":false},{"$f":"IF(OR($D82=\"\",$D82=CONST_NA),FALSE,INDEX(Parameters_Constants!$K$101:$AF$118,MATCH($E82,CONST_LIST_Goods,0),MATCH(AF$8,Parameters_Constants!$K$100:$AF$100,0))=FALSE)","v":false},{"$f":"IF(OR($D82=\"\",$D82=CONST_NA),FALSE,INDEX(Parameters_Constants!$K$101:$AF$118,MATCH($E82,CONST_LIST_Goods,0),MATCH(AG$8,Parameters_Constants!$K$100:$AF$100,0))=FALSE)","v":false},{"$f":"IF(OR($D82=\"\",$D82=CONST_NA),FALSE,INDEX(Parameters_Constants!$K$101:$AF$118,MATCH($E82,CONST_LIST_Goods,0),MATCH(AH$8,Parameters_Constants!$K$100:$AF$100,0))=FALSE)","v":false},{"$f":"IF(OR($D82=\"\",$D82=CONST_NA),FALSE,INDEX(Parameters_Constants!$K$101:$AF$118,MATCH($E82,CONST_LIST_Goods,0),MATCH(AI$8,Parameters_Constants!$K$100:$AF$100,0))=FALSE)","v":false},{"$f":"IF(OR($D82=\"\",$D82=CONST_NA),FALSE,INDEX(Parameters_Constants!$K$101:$AF$118,MATCH($E82,CONST_LIST_Goods,0),MATCH(AJ$8,Parameters_Constants!$K$100:$AF$100,0))=FALSE)","v":false},{"$f":"IF(OR($D82=\"\",$D82=CONST_NA),FALSE,INDEX(Parameters_Constants!$K$101:$AF$118,MATCH($E82,CONST_LIST_Goods,0),MATCH(AK$8,Parameters_Constants!$K$100:$AF$100,0))=FALSE)","v":false}]
["ausblenden",null,74,null,null,false,null,false,{"$nulls":7},{"$f":"IF(OR($D83=\"\",$D83=CONST_NA),FALSE,INDEX(Parameters_Constants!$K$101:$AF$118,MATCH($E83,CONST_LIST_Goods,0),MATCH(P$8,Parameters_Constants!$K$100:$AF$100,0))=FALSE)","v":false},{"$f":"IF(OR($D83=\"\",$D83=CONST_NA),FALSE,INDEX(Parameters_Constants!$K$101:$AF$118,MATCH($E83,CONST_LIST_Goods,0),MATCH(Q$8,Parameters_Constants!$K$100:$AF$100,0))=FALSE)","v":false},{"$f":"IF(OR($D83=\"\",$D83=CONST_NA),FALSE,INDEX(Parameters_Constants!$K$101:$AF$118,MATCH($E83,CONST_LIST_Goods,0),MATCH(R$8,Parameters_Constants!$K$100:$AF$100,0))=FALSE)","v":false},{"$f":"IF(OR($D83=\"\",$D83=CONST_NA),FALSE,INDEX(Parameters_Constants!$K$101:$AF$118,MATCH($E83,CONST_LIST_Goods,0),MATCH(S$8,Parameters_Constants!$K$100:$AF$100,0))=FALSE)","v":false},{"$f":"IF(OR($D83=\"\",$D83=CONST_NA),FALSE,INDEX(Parameters_Constants!$K$101:$AF$118,MATCH($E83,CONST_LIST_Goods,0),MATCH(T$8,Parameters_Constants!$K$100:$AF$100,0))=FALSE)","v":false},{"$f":"IF(OR($D83=\"\",$D83=CONST_NA),FALSE,INDEX(Parameters_Constants!$K$101:$AF$118,MATCH($E83,CONST_LIST_Goods,0),MATCH(U$8,Parameters_Constants!$K$100:$AF$100,0))=FALSE)","v":false},{"$f":"IF(OR($D83=\"\",$D83=CONST_NA),FALSE,INDEX(Parameters_Constants!$K$101:$AF$118,MATCH($E83,CONST_LIST_Goods,0),MATCH(V$8,Parameters_Constants!$K$100:$AF$100,0))=FALSE)","v":false},{"$f":"IF(OR($D83=\"\",$D83=CONST_NA),FALSE,INDEX(Parameters_Constants!$K$101:$AF$118,MATCH($E83,CONST_LIST_Goods,0),MATCH(W$8,Parameters_Constants!$K$100:$AF$100,0))=FALSE)","v":false},{"$f":"IF(OR($D83=\"\",$D83=CONST_NA),FALSE,INDEX(Parameters_Constants!$K$101:$AF$118,MATCH($E83,CONST_LIST_Goods,0),MATCH(X$8,Parameters_Constants!$K$100:$AF$100,0))=FALSE)","v":false},{"$f":"IF(OR($D83=\"\",$D83=CONST_NA),FALSE,INDEX(Parameters_Constants!$K$101:$AF$118,MATCH($E83,CONST_LIST_Goods,0),MATCH(Y$8,Parameters_Constants!$K$100:$AF$100,0))=FALSE)","v":false},{"$f":"IF(OR($D83=\"\",$D83=CONST_NA),FALSE,INDEX(Parameters_Constants!$K$101:$AF$118,MATCH($E83,CONST_LIST_Goods,0),MATCH(Z$8,Parameters_Constants!$K$100:$AF$100,0))=FALSE)","v":false},{"$f":"IF(OR($D83=\"\",$D83=CONST_NA),FALSE,INDEX(Parameters_Constants!$K$101:$AF$118,MATCH($E83,CONST_LIST_Goods,0),MATCH(AA$8,Parameters_Constants!$K$100:$AF$100,0))=FALSE)","v":false},{"$f":"IF(OR($D83=\"\",$D83=CONST_NA),FALSE,INDEX(Parameters_Constants!$K$101:$AF$118,MATCH($E83,CONST_LIST_Goods,0),MATCH(AB$8,Parameters_Constants!$K$100:$AF$100,0))=FALSE)","v":false},{"$f":"IF(OR($D83=\"\",$D83=CONST_NA),FALSE,INDEX(Parameters_Constants!$K$101:$AF$118,MATCH($E83,CONST_LIST_Goods,0),MATCH(AC$8,Parameters_Constants!$K$100:$AF$100,0))=FALSE)","v":false},{"$f":"IF(OR($D83=\"\",$D83=CONST_NA),FALSE,INDEX(Parameters_Constants!$K$101:$AF$118,MATCH($E83,CONST_LIST_Goods,0),MATCH(AD$8,Parameters_Constants!$K$100:$AF$100,0))=FALSE)","v":false},{"$f":"IF(OR($D83=\"\",$D83=CONST_NA),FALSE,INDEX(Parameters_Constants!$K$101:$AF$118,MATCH($E83,CONST_LIST_Goods,0),MATCH(AE$8,Parameters_Constants!$K$100:$AF$100,0))=FALSE)","v":false},{"$f":"IF(OR($D83=\"\",$D83=CONST_NA),FALSE,INDEX(Parameters_Constants!$K$101:$AF$118,MATCH($E83,CONST_LIST_Goods,0),MATCH(AF$8,Parameters_Constants!$K$100:$AF$100,0))=FALSE)","v":false},{"$f":"IF(OR($D83=\"\",$D83=CONST_NA),FALSE,INDEX(Parameters_Constants!$K$101:$AF$118,MATCH($E83,CONST_LIST_Goods,0),MATCH(AG$8,Parameters_Constants!$K$100:$AF$100,0))=FALSE)","v":false},{"$f":"IF(OR($D83=\"\",$D83=CONST_NA),FALSE,INDEX(Parameters_Constants!$K$101:$AF$118,MATCH($E83,CONST_LIST_Goods,0),MATCH(AH$8,Parameters_Constants!$K$100:$AF$100,0))=FALSE)","v":false},{"$f":"IF(OR($D83=\"\",$D83=CONST_NA),FALSE,INDEX(Parameters_Constants!$K$101:$AF$118,MATCH($E83,CONST_LIST_Goods,0),MATCH(AI$8,Parameters_Constants!$K$100:$AF$100,0))=FALSE)","v":false},{"$f":"IF(OR($D83=\"\",$D83=CONST_NA),FALSE,INDEX(Parameters_Constants!$K$101:$AF$118,MATCH($E83,CONST_LIST_Goods,0),MATCH(AJ$8,Parameters_Constants!$K$100:$AF$100,0))=FALSE)","v":false},{"$f":"IF(OR($D83=\"\",$D83=CONST_NA),FALSE,INDEX(Parameters_Constants!$K$101:$AF$118,MATCH($E83,CONST_LIST_Goods,0),MATCH(AK$8,Parameters_Constants!$K$100:$AF$100,0))=FALSE)","v":false}]
["ausblenden",null,75,null,null,false,null,false,{"$nulls":7},{"$f":"IF(OR($D84=\"\",$D84=CONST_NA),FALSE,INDEX(Parameters_Constants!$K$101:$AF$118,MATCH($E84,CONST_LIST_Goods,0),MATCH(P$8,Parameters_Constants!$K$100:$AF$100,0))=FALSE)","v":false},{"$f":"IF(OR($D84=\"\",$D84=CONST_NA),FALSE,INDEX(Parameters_Constants!$K$101:$AF$118,MATCH($E84,CONST_LIST_Goods,0),MATCH(Q$8,Parameters_Constants!$K$100:$AF$100,0))=FALSE)","v":false},{"$f":"IF(OR($D84=\"\",$D84=CONST_NA),FALSE,INDEX(Parameters_Constants!$K$101:$AF$118,MATCH($E84,CONST_LIST_Goods,0),MATCH(R$8,Parameters_Constants!$K$100:$AF$100,0))=FALSE)","v":false},{"$f":"IF(OR($D84=\"\",$D84=CONST_NA),FALSE,INDEX(Parameters_Constants!$K$101:$AF$118,MATCH($E84,CONST_LIST_Goods,0),MATCH(S$8,Parameters_Constants!$K$100:$AF$100,0))=FALSE)","v":false},{"$f":"IF(OR($D84=\"\",$D84=CONST_NA),FALSE,INDEX(Parameters_Constants!$K$101:$AF$118,MATCH($E84,CONST_LIST_Goods,0),MATCH(T$8,Parameters_Constants!$K$100:$AF$100,0))=FALSE)","v":false},{"$f":"IF(OR($D84=\"\",$D84=CONST_NA),FALSE,INDEX(Parameters_Constants!$K$101:$AF$118,MATCH($E84,CONST_LIST_Goods,0),MATCH(U$8,Parameters_Constants!$K$100:$AF$100,0))=FALSE)","v":false},{"$f":"IF(OR($D84=\"\",$D84=CONST_NA),FALSE,INDEX(Parameters_Constants!$K$101:$AF$118,MATCH($E84,CONST_LIST_Goods,0),MATCH(V$8,Parameters_Constants!$K$100:$AF$100,0))=FALSE)","v":false},{"$f":"IF(OR($D84=\"\",$D84=CONST_NA),FALSE,INDEX(Parameters_Constants!$K$101:$AF$118,MATCH($E84,CONST_LIST_Goods,0),MATCH(W$8,Parameters_Constants!$K$100:$AF$100,0))=FALSE)","v":false},{"$f":"IF(OR($D84=\"\",$D84=CONST_NA),FALSE,INDEX(Parameters_Constants!$K$101:$AF$118,MATCH($E84,CONST_LIST_Goods,0),MATCH(X$8,Parameters_Constants!$K$100:$AF$100,0))=FALSE)","v":false},{"$f":"IF(OR($D84=\"\",$D84=CONST_NA),FALSE,INDEX(Parameters_Constants!$K$101:$AF$118,MATCH($E84,CONST_LIST_Goods,0),MATCH(Y$8,Parameters_Constants!$K$100:$AF$100,0))=FALSE)","v":false},{"$f":"IF(OR($D84=\"\",$D84=CONST_NA),FALSE,INDEX(Parameters_Constants!$K$101:$AF$118,MATCH($E84,CONST_LIST_Goods,0),MATCH(Z$8,Parameters_Constants!$K$100:$AF$100,0))=FALSE)","v":false},{"$f":"IF(OR($D84=\"\",$D84=CONST_NA),FALSE,INDEX(Parameters_Constants!$K$101:$AF$118,MATCH($E84,CONST_LIST_Goods,0),MATCH(AA$8,Parameters_Constants!$K$100:$AF$100,0))=FALSE)","v":false},{"$f":"IF(OR($D84=\"\",$D84=CONST_NA),FALSE,INDEX(Parameters_Constants!$K$101:$AF$118,MATCH($E84,CONST_LIST_Goods,0),MATCH(AB$8,Parameters_Constants!$K$100:$AF$100,0))=FALSE)","v":false},{"$f":"IF(OR($D84=\"\",$D84=CONST_NA),FALSE,INDEX(Parameters_Constants!$K$101:$AF$118,MATCH($E84,CONST_LIST_Goods,0),MATCH(AC$8,Parameters_Constants!$K$100:$AF$100,0))=FALSE)","v":false},{"$f":"IF(OR($D84=\"\",$D84=CONST_NA),FALSE,INDEX(Parameters_Constants!$K$101:$AF$118,MATCH($E84,CONST_LIST_Goods,0),MATCH(AD$8,Parameters_Constants!$K$100:$AF$100,0))=FALSE)","v":false},{"$f":"IF(OR($D84=\"\",$D84=CONST_NA),FALSE,INDEX(Parameters_Constants!$K$101:$AF$118,MATCH($E84,CONST_LIST_Goods,0),MATCH(AE$8,Parameters_Constants!$K$100:$AF$100,0))=FALSE)","v":false},{"$f":"IF(OR($D84=\"\",$D84=CONST_NA),FALSE,INDEX(Parameters_Constants!$K$101:$AF$118,MATCH($E84,CONST_LIST_Goods,0),MATCH(AF$8,Parameters_Constants!$K$100:$AF$100,0))=FALSE)","v":false},{"$f":"IF(OR($D84=\"\",$D84=CONST_NA),FALSE,INDEX(Parameters_Constants!$K$101:$AF$118,MATCH($E84,CONST_LIST_Goods,0),MATCH(AG$8,Parameters_Constants!$K$100:$AF$100,0))=FALSE)","v":false},{"$f":"IF(OR($D84=\"\",$D84=CONST_NA),FALSE,INDEX(Parameters_Constants!$K$101:$AF$118,MATCH($E84,CONST_LIST_Goods,0),MATCH(AH$8,Parameters_Constants!$K$100:$AF$100,0))=FALSE)","v":false},{"$f":"IF(OR($D84=\"\",$D84=CONST_NA),FALSE,INDEX(Parameters_Constants!$K$101:$AF$118,MATCH($E84,CONST_LIST_Goods,0),MATCH(AI$8,Parameters_Constants!$K$100:$AF$100,0))=FALSE)","v":false},{"$f":"IF(OR($D84=\"\",$D84=CONST_NA),FALSE,INDEX(Parameters_Constants!$K$101:$AF$118,MATCH($E84,CONST_LIST_Goods,0),MATCH(AJ$8,Parameters_Constants!$K$100:$AF$100,0))=FALSE)","v":false},{"$f":"IF(OR($D84=\"\",$D84=CONST_NA),FALSE,INDEX(Parameters_Constants!$K$101:$AF$118,MATCH($E84,CONST_LIST_Goods,0),MATCH(AK$8,Parameters_Constants!$K$100:$AF$100,0))=FALSE)","v":false}]
["ausblenden",null,76,null,null,false,null,false,{"$nulls":7},{"$f":"IF(OR($D85=\"\",$D85=CONST_NA),FALSE,INDEX(Parameters_Constants!$K$101:$AF$118,MATCH($E85,CONST_LIST_Goods,0),MATCH(P$8,Parameters_Constants!$K$100:$AF$100,0))=FALSE)","v":false},{"$f":"IF(OR($D85=\"\",$D85=CONST_NA),FALSE,INDEX(Parameters_Constants!$K$101:$AF$118,MATCH($E85,CONST_LIST_Goods,0),MATCH(Q$8,Parameters_Constants!$K$100:$AF$100,0))=FALSE)","v":false},{"$f":"IF(OR($D85=\"\",$D85=CONST_NA),FALSE,INDEX(Parameters_Constants!$K$101:$AF$118,MATCH($E85,CONST_LIST_Goods,0),MATCH(R$8,Parameters_Constants!$K$100:$AF$100,0))=FALSE)","v":false},{"$f":"IF(OR($D85=\"\",$D85=CONST_NA),FALSE,INDEX(Parameters_Constants!$K$101:$AF$118,MATCH($E85,CONST_LIST_Goods,0),MATCH(S$8,Parameters_Constants!$K$100:$AF$100,0))=FALSE)","v":false},{"$f":"IF(OR($D85=\"\",$D85=CONST_NA),FALSE,INDEX(Parameters_Constants!$K$101:$AF$118,MATCH($E85,CONST_LIST_Goods,0),MATCH(T$8,Parameters_Constants!$K$100:$AF$100,0))=FALSE)","v":false},{"$f":"IF(OR($D85=\"\",$D85=CONST_NA),FALSE,INDEX(Parameters_Constants!$K$101:$AF$118,MATCH($E85,CONST_LIST_Goods,0),MATCH(U$8,Parameters_Constants!$K$100:$AF$100,0))=FALSE)","v":false},{"$f":"IF(OR($D85=\"\",$D85=CONST_NA),FALSE,INDEX(Parameters_Constants!$K$101:$AF$118,MATCH($E85,CONST_LIST_Goods,0),MATCH(V$8,Parameters_Constants!$K$100:$AF$100,0))=FALSE)","v":false},{"$f":"IF(OR($D85=\"\",$D85=CONST_NA),FALSE,INDEX(Parameters_Constants!$K$101:$AF$118,MATCH($E85,CONST_LIST_Goods,0),MATCH(W$8,Parameters_Constants!$K$100:$AF$100,0))=FALSE)","v":false},{"$f":"IF(OR($D85=\"\",$D85=CONST_NA),FALSE,INDEX(Parameters_Constants!$K$101:$AF$118,MATCH($E85,CONST_LIST_Goods,0),MATCH(X$8,Parameters_Constants!$K$100:$AF$100,0))=FALSE)","v":false},{"$f":"IF(OR($D85=\"\",$D85=CONST_NA),FALSE,INDEX(Parameters_Constants!$K$101:$AF$118,MATCH($E85,CONST_LIST_Goods,0),MATCH(Y$8,Parameters_Constants!$K$100:$AF$100,0))=FALSE)","v":false},{"$f":"IF(OR($D85=\"\",$D85=CONST_NA),FALSE,INDEX(Parameters_Constants!$K$101:$AF$118,MATCH($E85,CONST_LIST_Goods,0),MATCH(Z$8,Parameters_Constants!$K$100:$AF$100,0))=FALSE)","v":false},{"$f":"IF(OR($D85=\"\",$D85=CONST_NA),FALSE,INDEX(Parameters_Constants!$K$101:$AF$118,MATCH($E85,CONST_LIST_Goods,0),MATCH(AA$8,Parameters_Constants!$K$100:$AF$100,0))=FALSE)","v":false},{"$f":"IF(OR($D85=\"\",$D85=CONST_NA),FALSE,INDEX(Parameters_Constants!$K$101:$AF$118,MATCH($E85,CONST_LIST_Goods,0),MATCH(AB$8,Parameters_Constants!$K$100:$AF$100,0))=FALSE)","v":false},{"$f":"IF(OR($D85=\"\",$D85=CONST_NA),FALSE,INDEX(Parameters_Constants!$K$101:$AF$118,MATCH($E85,CONST_LIST_Goods,0),MATCH(AC$8,Parameters_Constants!$K$100:$AF$100,0))=FALSE)","v":false},{"$f":"IF(OR($D85=\"\",$D85=CONST_NA),FALSE,INDEX(Parameters_Constants!$K$101:$AF$118,MATCH($E85,CONST_LIST_Goods,0),MATCH(AD$8,Parameters_Constants!$K$100:$AF$100,0))=FALSE)","v":false},{"$f":"IF(OR($D85=\"\",$D85=CONST_NA),FALSE,INDEX(Parameters_Constants!$K$101:$AF$118,MATCH($E85,CONST_LIST_Goods,0),MATCH(AE$8,Parameters_Constants!$K$100:$AF$100,0))=FALSE)","v":false},{"$f":"IF(OR($D85=\"\",$D85=CONST_NA),FALSE,INDEX(Parameters_Constants!$K$101:$AF$118,MATCH($E85,CONST_LIST_Goods,0),MATCH(AF$8,Parameters_Constants!$K$100:$AF$100,0))=FALSE)","v":false},{"$f":"IF(OR($D85=\"\",$D85=CONST_NA),FALSE,INDEX(Parameters_Constants!$K$101:$AF$118,MATCH($E85,CONST_LIST_Goods,0),MATCH(AG$8,Parameters_Constants!$K$100:$AF$100,0))=FALSE)","v":false},{"$f":"IF(OR($D85=\"\",$D85=CONST_NA),FALSE,INDEX(Parameters_Constants!$K$101:$AF$118,MATCH($E85,CONST_LIST_Goods,0),MATCH(AH$8,Parameters_Constants!$K$100:$AF$100,0))=FALSE)","v":false},{"$f":"IF(OR($D85=\"\",$D85=CONST_NA),FALSE,INDEX(Parameters_Constants!$K$101:$AF$118,MATCH($E85,CONST_LIST_Goods,0),MATCH(AI$8,Parameters_Constants!$K$100:$AF$100,0))=FALSE)","v":false},{"$f":"IF(OR($D85=\"\",$D85=CONST_NA),FALSE,INDEX(Parameters_Constants!$K$101:$AF$118,MATCH($E85,CONST_LIST_Goods,0),MATCH(AJ$8,Parameters_Constants!$K$100:$AF$100,0))=FALSE)","v":false},{"$f":"IF(OR($D85=\"\",$D85=CONST_NA),FALSE,INDEX(Parameters_Constants!$K$101:$AF$118,MATCH($E85,CONST_LIST_Goods,0),MATCH(AK$8,Parameters_Constants!$K$100:$AF$100,0))=FALSE)","v":false}]
["ausblenden",null,77,null,null,false,null,false,{"$nulls":7},{"$f":"IF(OR($D86=\"\",$D86=CONST_NA),FALSE,INDEX(Parameters_Constants!$K$101:$AF$118,MATCH($E86,CONST_LIST_Goods,0),MATCH(P$8,Parameters_Constants!$K$100:$AF$100,0))=FALSE)","v":false},{"$f":"IF(OR($D86=\"\",$D86=CONST_NA),FALSE,INDEX(Parameters_Constants!$K$101:$AF$118,MATCH($E86,CONST_LIST_Goods,0),MATCH(Q$8,Parameters_Constants!$K$100:$AF$100,0))=FALSE)","v":false},{"$f":"IF(OR($D86=\"\",$D86=CONST_NA),FALSE,INDEX(Parameters_Constants!$K$101:$AF$118,MATCH($E86,CONST_LIST_Goods,0),MATCH(R$8,Parameters_Constants!$K$100:$AF$100,0))=FALSE)","v":false},{"$f":"IF(OR($D86=\"\",$D86=CONST_NA),FALSE,INDEX(Parameters_Constants!$K$101:$AF$118,MATCH($E86,CONST_LIST_Goods,0),MATCH(S$8,Parameters_Constants!$K$100:$AF$100,0))=FALSE)","v":false},{"$f":"IF(OR($D86=\"\",$D86=CONST_NA),FALSE,INDEX(Parameters_Constants!$K$101:$AF$118,MATCH($E86,CONST_LIST_Goods,0),MATCH(T$8,Parameters_Constants!$K$100:$AF$100,0))=FALSE)","v":false},{"$f":"IF(OR($D86=\"\",$D86=CONST_NA),FALSE,INDEX(Parameters_Constants!$K$101:$AF$118,MATCH($E86,CONST_LIST_Goods,0),MATCH(U$8,Parameters_Constants!$K$100:$AF$100,0))=FALSE)","v":false},{"$f":"IF(OR($D86=\"\",$D86=CONST_NA),FALSE,INDEX(Parameters_Constants!$K$101:$AF$118,MATCH($E86,CONST_LIST_Goods,0),MATCH(V$8,Parameters_Constants!$K$100:$AF$100,0))=FALSE)","v":false},{"$f":"IF(OR($D86=\"\",$D86=CONST_NA),FALSE,INDEX(Parameters_Constants!$K$101:$AF$118,MATCH($E86,CONST_LIST_Goods,0),MATCH(W$8,Parameters_Constants!$K$100:$AF$100,0))=FALSE)","v":false},{"$f":"IF(OR($D86=\"\",$D86=CONST_NA),FALSE,INDEX(Parameters_Constants!$K$101:$AF$118,MATCH($E86,CONST_LIST_Goods,0),MATCH(X$8,Parameters_Constants!$K$100:$AF$100,0))=FALSE)","v":false},{"$f":"IF(OR($D86=\"\",$D86=CONST_NA),FALSE,INDEX(Parameters_Constants!$K$101:$AF$118,MATCH($E86,CONST_LIST_Goods,0),MATCH(Y$8,Parameters_Constants!$K$100:$AF$100,0))=FALSE)","v":false},{"$f":"IF(OR($D86=\"\",$D86=CONST_NA),FALSE,INDEX(Parameters_Constants!$K$101:$AF$118,MATCH($E86,CONST_LIST_Goods,0),MATCH(Z$8,Parameters_Constants!$K$100:$AF$100,0))=FALSE)","v":false},{"$f":"IF(OR($D86=\"\",$D86=CONST_NA),FALSE,INDEX(Parameters_Constants!$K$101:$AF$118,MATCH($E86,CONST_LIST_Goods,0),MATCH(AA$8,Parameters_Constants!$K$100:$AF$100,0))=FALSE)","v":false},{"$f":"IF(OR($D86=\"\",$D86=CONST_NA),FALSE,INDEX(Parameters_Constants!$K$101:$AF$118,MATCH($E86,CONST_LIST_Goods,0),MATCH(AB$8,Parameters_Constants!$K$100:$AF$100,0))=FALSE)","v":false},{"$f":"IF(OR($D86=\"\",$D86=CONST_NA),FALSE,INDEX(Parameters_Constants!$K$101:$AF$118,MATCH($E86,CONST_LIST_Goods,0),MATCH(AC$8,Parameters_Constants!$K$100:$AF$100,0))=FALSE)","v":false},{"$f":"IF(OR($D86=\"\",$D86=CONST_NA),FALSE,INDEX(Parameters_Constants!$K$101:$AF$118,MATCH($E86,CONST_LIST_Goods,0),MATCH(AD$8,Parameters_Constants!$K$100:$AF$100,0))=FALSE)","v":false},{"$f":"IF(OR($D86=\"\",$D86=CONST_NA),FALSE,INDEX(Parameters_Constants!$K$101:$AF$118,MATCH($E86,CONST_LIST_Goods,0),MATCH(AE$8,Parameters_Constants!$K$100:$AF$100,0))=FALSE)","v":false},{"$f":"IF(OR($D86=\"\",$D86=CONST_NA),FALSE,INDEX(Parameters_Constants!$K$101:$AF$118,MATCH($E86,CONST_LIST_Goods,0),MATCH(AF$8,Parameters_Constants!$K$100:$AF$100,0))=FALSE)","v":false},{"$f":"IF(OR($D86=\"\",$D86=CONST_NA),FALSE,INDEX(Parameters_Constants!$K$101:$AF$118,MATCH($E86,CONST_LIST_Goods,0),MATCH(AG$8,Parameters_Constants!$K$100:$AF$100,0))=FALSE)","v":false},{"$f":"IF(OR($D86=\"\",$D86=CONST_NA),FALSE,INDEX(Parameters_Constants!$K$101:$AF$118,MATCH($E86,CONST_LIST_Goods,0),MATCH(AH$8,Parameters_Constants!$K$100:$AF$100,0))=FALSE)","v":false},{"$f":"IF(OR($D86=\"\",$D86=CONST_NA),FALSE,INDEX(Parameters_Constants!$K$101:$AF$118,MATCH($E86,CONST_LIST_Goods,0),MATCH(AI$8,Parameters_Constants!$K$100:$AF$100,0))=FALSE)","v":false},{"$f":"IF(OR($D86=\"\",$D86=CONST_NA),FALSE,INDEX(Parameters_Constants!$K$101:$AF$118,MATCH($E86,CONST_LIST_Goods,0),MATCH(AJ$8,Parameters_Constants!$K$100:$AF$100,0))=FALSE)","v":false},{"$f":"IF(OR($D86=\"\",$D86=CONST_NA),FALSE,INDEX(Parameters_Constants!$K$101:$AF$118,MATCH($E86,CONST_LIST_Goods,0),MATCH(AK$8,Parameters_Constants!$K$100:$AF$100,0))=FALSE)","v":false}]
["ausblenden",null,78,null,null,false,null,false,{"$nulls":7},{"$f":"IF(OR($D87=\"\",$D87=CONST_NA),FALSE,INDEX(Parameters_Constants!$K$101:$AF$118,MATCH($E87,CONST_LIST_Goods,0),MATCH(P$8,Parameters_Constants!$K$100:$AF$100,0))=FALSE)","v":false},{"$f":"IF(OR($D87=\"\",$D87=CONST_NA),FALSE,INDEX(Parameters_Constants!$K$101:$AF$118,MATCH($E87,CONST_LIST_Goods,0),MATCH(Q$8,Parameters_Constants!$K$100:$AF$100,0))=FALSE)","v":false},{"$f":"IF(OR($D87=\"\",$D87=CONST_NA),FALSE,INDEX(Parameters_Constants!$K$101:$AF$118,MATCH($E87,CONST_LIST_Goods,0),MATCH(R$8,Parameters_Constants!$K$100:$AF$100,0))=FALSE)","v":false},{"$f":"IF(OR($D87=\"\",$D87=CONST_NA),FALSE,INDEX(Parameters_Constants!$K$101:$AF$118,MATCH($E87,CONST_LIST_Goods,0),MATCH(S$8,Parameters_Constants!$K$100:$AF$100,0))=FALSE)","v":false},{"$f":"IF(OR($D87=\"\",$D87=CONST_NA),FALSE,INDEX(Parameters_Constants!$K$101:$AF$118,MATCH($E87,CONST_LIST_Goods,0),MATCH(T$8,Parameters_Constants!$K$100:$AF$100,0))=FALSE)","v":false},{"$f":"IF(OR($D87=\"\",$D87=CONST_NA),FALSE,INDEX(Parameters_Constants!$K$101:$AF$118,MATCH($E87,CONST_LIST_Goods,0),MATCH(U$8,Parameters_Constants!$K$100:$AF$100,0))=FALSE)","v":false},{"$f":"IF(OR($D87=\"\",$D87=CONST_NA),FALSE,INDEX(Parameters_Constants!$K$101:$AF$118,MATCH($E87,CONST_LIST_Goods,0),MATCH(V$8,Parameters_Constants!$K$100:$AF$100,0))=FALSE)","v":false},{"$f":"IF(OR($D87=\"\",$D87=CONST_NA),FALSE,INDEX(Parameters_Constants!$K$101:$AF$118,MATCH($E87,CONST_LIST_Goods,0),MATCH(W$8,Parameters_Constants!$K$100:$AF$100,0))=FALSE)","v":false},{"$f":"IF(OR($D87=\"\",$D87=CONST_NA),FALSE,INDEX(Parameters_Constants!$K$101:$AF$118,MATCH($E87,CONST_LIST_Goods,0),MATCH(X$8,Parameters_Constants!$K$100:$AF$100,0))=FALSE)","v":false},{"$f":"IF(OR($D87=\"\",$D87=CONST_NA),FALSE,INDEX(Parameters_Constants!$K$101:$AF$118,MATCH($E87,CONST_LIST_Goods,0),MATCH(Y$8,Parameters_Constants!$K$100:$AF$100,0))=FALSE)","v":false},{"$f":"IF(OR($D87=\"\",$D87=CONST_NA),FALSE,INDEX(Parameters_Constants!$K$101:$AF$118,MATCH($E87,CONST_LIST_Goods,0),MATCH(Z$8,Parameters_Constants!$K$100:$AF$100,0))=FALSE)","v":false},{"$f":"IF(OR($D87=\"\",$D87=CONST_NA),FALSE,INDEX(Parameters_Constants!$K$101:$AF$118,MATCH($E87,CONST_LIST_Goods,0),MATCH(AA$8,Parameters_Constants!$K$100:$AF$100,0))=FALSE)","v":false},{"$f":"IF(OR($D87=\"\",$D87=CONST_NA),FALSE,INDEX(Parameters_Constants!$K$101:$AF$118,MATCH($E87,CONST_LIST_Goods,0),MATCH(AB$8,Parameters_Constants!$K$100:$AF$100,0))=FALSE)","v":false},{"$f":"IF(OR($D87=\"\",$D87=CONST_NA),FALSE,INDEX(Parameters_Constants!$K$101:$AF$118,MATCH($E87,CONST_LIST_Goods,0),MATCH(AC$8,Parameters_Constants!$K$100:$AF$100,0))=FALSE)","v":false},{"$f":"IF(OR($D87=\"\",$D87=CONST_NA),FALSE,INDEX(Parameters_Constants!$K$101:$AF$118,MATCH($E87,CONST_LIST_Goods,0),MATCH(AD$8,Parameters_Constants!$K$100:$AF$100,0))=FALSE)","v":false},{"$f":"IF(OR($D87=\"\",$D87=CONST_NA),FALSE,INDEX(Parameters_Constants!$K$101:$AF$118,MATCH($E87,CONST_LIST_Goods,0),MATCH(AE$8,Parameters_Constants!$K$100:$AF$100,0))=FALSE)","v":false},{"$f":"IF(OR($D87=\"\",$D87=CONST_NA),FALSE,INDEX(Parameters_Constants!$K$101:$AF$118,MATCH($E87,CONST_LIST_Goods,0),MATCH(AF$8,Parameters_Constants!$K$100:$AF$100,0))=FALSE)","v":false},{"$f":"IF(OR($D87=\"\",$D87=CONST_NA),FALSE,INDEX(Parameters_Constants!$K$101:$AF$118,MATCH($E87,CONST_LIST_Goods,0),MATCH(AG$8,Parameters_Constants!$K$100:$AF$100,0))=FALSE)","v":false},{"$f":"IF(OR($D87=\"\",$D87=CONST_NA),FALSE,INDEX(Parameters_Constants!$K$101:$AF$118,MATCH($E87,CONST_LIST_Goods,0),MATCH(AH$8,Parameters_Constants!$K$100:$AF$100,0))=FALSE)","v":false},{"$f":"IF(OR($D87=\"\",$D87=CONST_NA),FALSE,INDEX(Parameters_Constants!$K$101:$AF$118,MATCH($E87,CONST_LIST_Goods,0),MATCH(AI$8,Parameters_Constants!$K$100:$AF$100,0))=FALSE)","v":false},{"$f":"IF(OR($D87=\"\",$D87=CONST_NA),FALSE,INDEX(Parameters_Constants!$K$101:$AF$118,MATCH($E87,CONST_LIST_Goods,0),MATCH(AJ$8,Parameters_Constants!$K$100:$AF$100,0))=FALSE)","v":false},{"$f":"IF(OR($D87=\"\",$D87=CONST_NA),FALSE,INDEX(Parameters_Constants!$K$101:$AF$118,MATCH($E87,CONST_LIST_Goods,0),MATCH(AK$8,Parameters_Constants!$K$100:$AF$100,0))=FALSE)","v":false}]
["ausblenden",null,79,null,null,false,null,false,{"$nulls":7},{"$f":"IF(OR($D88=\"\",$D88=CONST_NA),FALSE,INDEX(Parameters_Constants!$K$101:$AF$118,MATCH($E88,CONST_LIST_Goods,0),MATCH(P$8,Parameters_Constants!$K$100:$AF$100,0))=FALSE)","v":false},{"$f":"IF(OR($D88=\"\",$D88=CONST_NA),FALSE,INDEX(Parameters_Constants!$K$101:$AF$118,MATCH($E88,CONST_LIST_Goods,0),MATCH(Q$8,Parameters_Constants!$K$100:$AF$100,0))=FALSE)","v":false},{"$f":"IF(OR($D88=\"\",$D88=CONST_NA),FALSE,INDEX(Parameters_Constants!$K$101:$AF$118,MATCH($E88,CONST_LIST_Goods,0),MATCH(R$8,Parameters_Constants!$K$100:$AF$100,0))=FALSE)","v":false},{"$f":"IF(OR($D88=\"\",$D88=CONST_NA),FALSE,INDEX(Parameters_Constants!$K$101:$AF$118,MATCH($E88,CONST_LIST_Goods,0),MATCH(S$8,Parameters_Constants!$K$100:$AF$100,0))=FALSE)","v":false},{"$f":"IF(OR($D88=\"\",$D88=CONST_NA),FALSE,INDEX(Parameters_Constants!$K$101:$AF$118,MATCH($E88,CONST_LIST_Goods,0),MATCH(T$8,Parameters_Constants!$K$100:$AF$100,0))=FALSE)","v":false},{"$f":"IF(OR($D88=\"\",$D88=CONST_NA),FALSE,INDEX(Parameters_Constants!$K$101:$AF$118,MATCH($E88,CONST_LIST_Goods,0),MATCH(U$8,Parameters_Constants!$K$100:$AF$100,0))=FALSE)","v":false},{"$f":"IF(OR($D88=\"\",$D88=CONST_NA),FALSE,INDEX(Parameters_Constants!$K$101:$AF$118,MATCH($E88,CONST_LIST_Goods,0),MATCH(V$8,Parameters_Constants!$K$100:$AF$100,0))=FALSE)","v":false},{"$f":"IF(OR($D88=\"\",$D88=CONST_NA),FALSE,INDEX(Parameters_Constants!$K$101:$AF$118,MATCH($E88,CONST_LIST_Goods,0),MATCH(W$8,Parameters_Constants!$K$100:$AF$100,0))=FALSE)","v":false},{"$f":"IF(OR($D88=\"\",$D88=CONST_NA),FALSE,INDEX(Parameters_Constants!$K$101:$AF$118,MATCH($E88,CONST_LIST_Goods,0),MATCH(X$8,Parameters_Constants!$K$100:$AF$100,0))=FALSE)","v":false},{"$f":"IF(OR($D88=\"\",$D88=CONST_NA),FALSE,INDEX(Parameters_Constants!$K$101:$AF$118,MATCH($E88,CONST_LIST_Goods,0),MATCH(Y$8,Parameters_Constants!$K$100:$AF$100,0))=FALSE)","v":false},{"$f":"IF(OR($D88=\"\",$D88=CONST_NA),FALSE,INDEX(Parameters_Constants!$K$101:$AF$118,MATCH($E88,CONST_LIST_Goods,0),MATCH(Z$8,Parameters_Constants!$K$100:$AF$100,0))=FALSE)","v":false},{"$f":"IF(OR($D88=\"\",$D88=CONST_NA),FALSE,INDEX(Parameters_Constants!$K$101:$AF$118,MATCH($E88,CONST_LIST_Goods,0),MATCH(AA$8,Parameters_Constants!$K$100:$AF$100,0))=FALSE)","v":false},{"$f":"IF(OR($D88=\"\",$D88=CONST_NA),FALSE,INDEX(Parameters_Constants!$K$101:$AF$118,MATCH($E88,CONST_LIST_Goods,0),MATCH(AB$8,Parameters_Constants!$K$100:$AF$100,0))=FALSE)","v":false},{"$f":"IF(OR($D88=\"\",$D88=CONST_NA),FALSE,INDEX(Parameters_Constants!$K$101:$AF$118,MATCH($E88,CONST_LIST_Goods,0),MATCH(AC$8,Parameters_Constants!$K$100:$AF$100,0))=FALSE)","v":false},{"$f":"IF(OR($D88=\"\",$D88=CONST_NA),FALSE,INDEX(Parameters_Constants!$K$101:$AF$118,MATCH($E88,CONST_LIST_Goods,0),MATCH(AD$8,Parameters_Constants!$K$100:$AF$100,0))=FALSE)","v":false},{"$f":"IF(OR($D88=\"\",$D88=CONST_NA),FALSE,INDEX(Parameters_Constants!$K$101:$AF$118,MATCH($E88,CONST_LIST_Goods,0),MATCH(AE$8,Parameters_Constants!$K$100:$AF$100,0))=FALSE)","v":false},{"$f":"IF(OR($D88=\"\",$D88=CONST_NA),FALSE,INDEX(Parameters_Constants!$K$101:$AF$118,MATCH($E88,CONST_LIST_Goods,0),MATCH(AF$8,Parameters_Constants!$K$100:$AF$100,0))=FALSE)","v":false},{"$f":"IF(OR($D88=\"\",$D88=CONST_NA),FALSE,INDEX(Parameters_Constants!$K$101:$AF$118,MATCH($E88,CONST_LIST_Goods,0),MATCH(AG$8,Parameters_Constants!$K$100:$AF$100,0))=FALSE)","v":false},{"$f":"IF(OR($D88=\"\",$D88=CONST_NA),FALSE,INDEX(Parameters_Constants!$K$101:$AF$118,MATCH($E88,CONST_LIST_Goods,0),MATCH(AH$8,Parameters_Constants!$K$100:$AF$100,0))=FALSE)","v":false},{"$f":"IF(OR($D88=\"\",$D88=CONST_NA),FALSE,INDEX(Parameters_Constants!$K$101:$AF$118,MATCH($E88,CONST_LIST_Goods,0),MATCH(AI$8,Parameters_Constants!$K$100:$AF$100,0))=FALSE)","v":false},{"$f":"IF(OR($D88=\"\",$D88=CONST_NA),FALSE,INDEX(Parameters_Constants!$K$101:$AF$118,MATCH($E88,CONST_LIST_Goods,0),MATCH(AJ$8,Parameters_Constants!$K$100:$AF$100,0))=FALSE)","v":false},{"$f":"IF(OR($D88=\"\",$D88=CONST_NA),FALSE,INDEX(Parameters_Constants!$K$101:$AF$118,MATCH($E88,CONST_LIST_Goods,0),MATCH(AK$8,Parameters_Constants!$K$100:$AF$100,0))=FALSE)","v":false}]
["ausblenden",null,80,null,null,false,null,false,{"$nulls":7},{"$f":"IF(OR($D89=\"\",$D89=CONST_NA),FALSE,INDEX(Parameters_Constants!$K$101:$AF$118,MATCH($E89,CONST_LIST_Goods,0),MATCH(P$8,Parameters_Constants!$K$100:$AF$100,0))=FALSE)","v":false},{"$f":"IF(OR($D89=\"\",$D89=CONST_NA),FALSE,INDEX(Parameters_Constants!$K$101:$AF$118,MATCH($E89,CONST_LIST_Goods,0),MATCH(Q$8,Parameters_Constants!$K$100:$AF$100,0))=FALSE)","v":false},{"$f":"IF(OR($D89=\"\",$D89=CONST_NA),FALSE,INDEX(Parameters_Constants!$K$101:$AF$118,MATCH($E89,CONST_LIST_Goods,0),MATCH(R$8,Parameters_Constants!$K$100:$AF$100,0))=FALSE)","v":false},{"$f":"IF(OR($D89=\"\",$D89=CONST_NA),FALSE,INDEX(Parameters_Constants!$K$101:$AF$118,MATCH($E89,CONST_LIST_Goods,0),MATCH(S$8,Parameters_Constants!$K$100:$AF$100,0))=FALSE)","v":false},{"$f":"IF(OR($D89=\"\",$D89=CONST_NA),FALSE,INDEX(Parameters_Constants!$K$101:$AF$118,MATCH($E89,CONST_LIST_Goods,0),MATCH(T$8,Parameters_Constants!$K$100:$AF$100,0))=FALSE)","v":false},{"$f":"IF(OR($D89=\"\",$D89=CONST_NA),FALSE,INDEX(Parameters_Constants!$K$101:$AF$118,MATCH($E89,CONST_LIST_Goods,0),MATCH(U$8,Parameters_Constants!$K$100:$AF$100,0))=FALSE)","v":false},{"$f":"IF(OR($D89=\"\",$D89=CONST_NA),FALSE,INDEX(Parameters_Constants!$K$101:$AF$118,MATCH($E89,CONST_LIST_Goods,0),MATCH(V$8,Parameters_Constants!$K$100:$AF$100,0))=FALSE)","v":false},{"$f":"IF(OR($D89=\"\",$D89=CONST_NA),FALSE,INDEX(Parameters_Constants!$K$101:$AF$118,MATCH($E89,CONST_LIST_Goods,0),MATCH(W$8,Parameters_Constants!$K$100:$AF$100,0))=FALSE)","v":false},{"$f":"IF(OR($D89=\"\",$D89=CONST_NA),FALSE,INDEX(Parameters_Constants!$K$101:$AF$118,MATCH($E89,CONST_LIST_Goods,0),MATCH(X$8,Parameters_Constants!$K$100:$AF$100,0))=FALSE)","v":false},{"$f":"IF(OR($D89=\"\",$D89=CONST_NA),FALSE,INDEX(Parameters_Constants!$K$101:$AF$118,MATCH($E89,CONST_LIST_Goods,0),MATCH(Y$8,Parameters_Constants!$K$100:$AF$100,0))=FALSE)","v":false},{"$f":"IF(OR($D89=\"\",$D89=CONST_NA),FALSE,INDEX(Parameters_Constants!$K$101:$AF$118,MATCH($E89,CONST_LIST_Goods,0),MATCH(Z$8,Parameters_Constants!$K$100:$AF$100,0))=FALSE)","v":false},{"$f":"IF(OR($D89=\"\",$D89=CONST_NA),FALSE,INDEX(Parameters_Constants!$K$101:$AF$118,MATCH($E89,CONST_LIST_Goods,0),MATCH(AA$8,Parameters_Constants!$K$100:$AF$100,0))=FALSE)","v":false},{"$f":"IF(OR($D89=\"\",$D89=CONST_NA),FALSE,INDEX(Parameters_Constants!$K$101:$AF$118,MATCH($E89,CONST_LIST_Goods,0),MATCH(AB$8,Parameters_Constants!$K$100:$AF$100,0))=FALSE)","v":false},{"$f":"IF(OR($D89=\"\",$D89=CONST_NA),FALSE,INDEX(Parameters_Constants!$K$101:$AF$118,MATCH($E89,CONST_LIST_Goods,0),MATCH(AC$8,Parameters_Constants!$K$100:$AF$100,0))=FALSE)","v":false},{"$f":"IF(OR($D89=\"\",$D89=CONST_NA),FALSE,INDEX(Parameters_Constants!$K$101:$AF$118,MATCH($E89,CONST_LIST_Goods,0),MATCH(AD$8,Parameters_Constants!$K$100:$AF$100,0))=FALSE)","v":false},{"$f":"IF(OR($D89=\"\",$D89=CONST_NA),FALSE,INDEX(Parameters_Constants!$K$101:$AF$118,MATCH($E89,CONST_LIST_Goods,0),MATCH(AE$8,Parameters_Constants!$K$100:$AF$100,0))=FALSE)","v":false},{"$f":"IF(OR($D89=\"\",$D89=CONST_NA),FALSE,INDEX(Parameters_Constants!$K$101:$AF$118,MATCH($E89,CONST_LIST_Goods,0),MATCH(AF$8,Parameters_Constants!$K$100:$AF$100,0))=FALSE)","v":false},{"$f":"IF(OR($D89=\"\",$D89=CONST_NA),FALSE,INDEX(Parameters_Constants!$K$101:$AF$118,MATCH($E89,CONST_LIST_Goods,0),MATCH(AG$8,Parameters_Constants!$K$100:$AF$100,0))=FALSE)","v":false},{"$f":"IF(OR($D89=\"\",$D89=CONST_NA),FALSE,INDEX(Parameters_Constants!$K$101:$AF$118,MATCH($E89,CONST_LIST_Goods,0),MATCH(AH$8,Parameters_Constants!$K$100:$AF$100,0))=FALSE)","v":false},{"$f":"IF(OR($D89=\"\",$D89=CONST_NA),FALSE,INDEX(Parameters_Constants!$K$101:$AF$118,MATCH($E89,CONST_LIST_Goods,0),MATCH(AI$8,Parameters_Constants!$K$100:$AF$100,0))=FALSE)","v":false},{"$f":"IF(OR($D89=\"\",$D89=CONST_NA),FALSE,INDEX(Parameters_Constants!$K$101:$AF$118,MATCH($E89,CONST_LIST_Goods,0),MATCH(AJ$8,Parameters_Constants!$K$100:$AF$100,0))=FALSE)","v":false},{"$f":"IF(OR($D89=\"\",$D89=CONST_NA),FALSE,INDEX(Parameters_Constants!$K$101:$AF$118,MATCH($E89,CONST_LIST_Goods,0),MATCH(AK$8,Parameters_Constants!$K$100:$AF$100,0))=FALSE)","v":false}]
["ausblenden",null,81,null,null,false,null,false,{"$nulls":7},{"$f":"IF(OR($D90=\"\",$D90=CONST_NA),FALSE,INDEX(Parameters_Constants!$K$101:$AF$118,MATCH($E90,CONST_LIST_Goods,0),MATCH(P$8,Parameters_Constants!$K$100:$AF$100,0))=FALSE)","v":false},{"$f":"IF(OR($D90=\"\",$D90=CONST_NA),FALSE,INDEX(Parameters_Constants!$K$101:$AF$118,MATCH($E90,CONST_LIST_Goods,0),MATCH(Q$8,Parameters_Constants!$K$100:$AF$100,0))=FALSE)","v":false},{"$f":"IF(OR($D90=\"\",$D90=CONST_NA),FALSE,INDEX(Parameters_Constants!$K$101:$AF$118,MATCH($E90,CONST_LIST_Goods,0),MATCH(R$8,Parameters_Constants!$K$100:$AF$100,0))=FALSE)","v":false},{"$f":"IF(OR($D90=\"\",$D90=CONST_NA),FALSE,INDEX(Parameters_Constants!$K$101:$AF$118,MATCH($E90,CONST_LIST_Goods,0),MATCH(S$8,Parameters_Constants!$K$100:$AF$100,0))=FALSE)","v":false},{"$f":"IF(OR($D90=\"\",$D90=CONST_NA),FALSE,INDEX(Parameters_Constants!$K$101:$AF$118,MATCH($E90,CONST_LIST_Goods,0),MATCH(T$8,Parameters_Constants!$K$100:$AF$100,0))=FALSE)","v":false},{"$f":"IF(OR($D90=\"\",$D90=CONST_NA),FALSE,INDEX(Parameters_Constants!$K$101:$AF$118,MATCH($E90,CONST_LIST_Goods,0),MATCH(U$8,Parameters_Constants!$K$100:$AF$100,0))=FALSE)","v":false},{"$f":"IF(OR($D90=\"\",$D90=CONST_NA),FALSE,INDEX(Parameters_Constants!$K$101:$AF$118,MATCH($E90,CONST_LIST_Goods,0),MATCH(V$8,Parameters_Constants!$K$100:$AF$100,0))=FALSE)","v":false},{"$f":"IF(OR($D90=\"\",$D90=CONST_NA),FALSE,INDEX(Parameters_Constants!$K$101:$AF$118,MATCH($E90,CONST_LIST_Goods,0),MATCH(W$8,Parameters_Constants!$K$100:$AF$100,0))=FALSE)","v":false},{"$f":"IF(OR($D90=\"\",$D90=CONST_NA),FALSE,INDEX(Parameters_Constants!$K$101:$AF$118,MATCH($E90,CONST_LIST_Goods,0),MATCH(X$8,Parameters_Constants!$K$100:$AF$100,0))=FALSE)","v":false},{"$f":"IF(OR($D90=\"\",$D90=CONST_NA),FALSE,INDEX(Parameters_Constants!$K$101:$AF$118,MATCH($E90,CONST_LIST_Goods,0),MATCH(Y$8,Parameters_Constants!$K$100:$AF$100,0))=FALSE)","v":false},{"$f":"IF(OR($D90=\"\",$D90=CONST_NA),FALSE,INDEX(Parameters_Constants!$K$101:$AF$118,MATCH($E90,CONST_LIST_Goods,0),MATCH(Z$8,Parameters_Constants!$K$100:$AF$100,0))=FALSE)","v":false},{"$f":"IF(OR($D90=\"\",$D90=CONST_NA),FALSE,INDEX(Parameters_Constants!$K$101:$AF$118,MATCH($E90,CONST_LIST_Goods,0),MATCH(AA$8,Parameters_Constants!$K$100:$AF$100,0))=FALSE)","v":false},{"$f":"IF(OR($D90=\"\",$D90=CONST_NA),FALSE,INDEX(Parameters_Constants!$K$101:$AF$118,MATCH($E90,CONST_LIST_Goods,0),MATCH(AB$8,Parameters_Constants!$K$100:$AF$100,0))=FALSE)","v":false},{"$f":"IF(OR($D90=\"\",$D90=CONST_NA),FALSE,INDEX(Parameters_Constants!$K$101:$AF$118,MATCH($E90,CONST_LIST_Goods,0),MATCH(AC$8,Parameters_Constants!$K$100:$AF$100,0))=FALSE)","v":false},{"$f":"IF(OR($D90=\"\",$D90=CONST_NA),FALSE,INDEX(Parameters_Constants!$K$101:$AF$118,MATCH($E90,CONST_LIST_Goods,0),MATCH(AD$8,Parameters_Constants!$K$100:$AF$100,0))=FALSE)","v":false},{"$f":"IF(OR($D90=\"\",$D90=CONST_NA),FALSE,INDEX(Parameters_Constants!$K$101:$AF$118,MATCH($E90,CONST_LIST_Goods,0),MATCH(AE$8,Parameters_Constants!$K$100:$AF$100,0))=FALSE)","v":false},{"$f":"IF(OR($D90=\"\",$D90=CONST_NA),FALSE,INDEX(Parameters_Constants!$K$101:$AF$118,MATCH($E90,CONST_LIST_Goods,0),MATCH(AF$8,Parameters_Constants!$K$100:$AF$100,0))=FALSE)","v":false},{"$f":"IF(OR($D90=\"\",$D90=CONST_NA),FALSE,INDEX(Parameters_Constants!$K$101:$AF$118,MATCH($E90,CONST_LIST_Goods,0),MATCH(AG$8,Parameters_Constants!$K$100:$AF$100,0))=FALSE)","v":false},{"$f":"IF(OR($D90=\"\",$D90=CONST_NA),FALSE,INDEX(Parameters_Constants!$K$101:$AF$118,MATCH($E90,CONST_LIST_Goods,0),MATCH(AH$8,Parameters_Constants!$K$100:$AF$100,0))=FALSE)","v":false},{"$f":"IF(OR($D90=\"\",$D90=CONST_NA),FALSE,INDEX(Parameters_Constants!$K$101:$AF$118,MATCH($E90,CONST_LIST_Goods,0),MATCH(AI$8,Parameters_Constants!$K$100:$AF$100,0))=FALSE)","v":false},{"$f":"IF(OR($D90=\"\",$D90=CONST_NA),FALSE,INDEX(Parameters_Constants!$K$101:$AF$118,MATCH($E90,CONST_LIST_Goods,0),MATCH(AJ$8,Parameters_Constants!$K$100:$AF$100,0))=FALSE)","v":false},{"$f":"IF(OR($D90=\"\",$D90=CONST_NA),FALSE,INDEX(Parameters_Constants!$K$101:$AF$118,MATCH($E90,CONST_LIST_Goods,0),MATCH(AK$8,Parameters_Constants!$K$100:$AF$100,0))=FALSE)","v":false}]
["ausblenden",null,82,null,null,false,null,false,{"$nulls":7},{"$f":"IF(OR($D91=\"\",$D91=CONST_NA),FALSE,INDEX(Parameters_Constants!$K$101:$AF$118,MATCH($E91,CONST_LIST_Goods,0),MATCH(P$8,Parameters_Constants!$K$100:$AF$100,0))=FALSE)","v":false},{"$f":"IF(OR($D91=\"\",$D91=CONST_NA),FALSE,INDEX(Parameters_Constants!$K$101:$AF$118,MATCH($E91,CONST_LIST_Goods,0),MATCH(Q$8,Parameters_Constants!$K$100:$AF$100,0))=FALSE)","v":false},{"$f":"IF(OR($D91=\"\",$D91=CONST_NA),FALSE,INDEX(Parameters_Constants!$K$101:$AF$118,MATCH($E91,CONST_LIST_Goods,0),MATCH(R$8,Parameters_Constants!$K$100:$AF$100,0))=FALSE)","v":false},{"$f":"IF(OR($D91=\"\",$D91=CONST_NA),FALSE,INDEX(Parameters_Constants!$K$101:$AF$118,MATCH($E91,CONST_LIST_Goods,0),MATCH(S$8,Parameters_Constants!$K$100:$AF$100,0))=FALSE)","v":false},{"$f":"IF(OR($D91=\"\",$D91=CONST_NA),FALSE,INDEX(Parameters_Constants!$K$101:$AF$118,MATCH($E91,CONST_LIST_Goods,0),MATCH(T$8,Parameters_Constants!$K$100:$AF$100,0))=FALSE)","v":false},{"$f":"IF(OR($D91=\"\",$D91=CONST_NA),FALSE,INDEX(Parameters_Constants!$K$101:$AF$118,MATCH($E91,CONST_LIST_Goods,0),MATCH(U$8,Parameters_Constants!$K$100:$AF$100,0))=FALSE)","v":false},{"$f":"IF(OR($D91=\"\",$D91=CONST_NA),FALSE,INDEX(Parameters_Constants!$K$101:$AF$118,MATCH($E91,CONST_LIST_Goods,0),MATCH(V$8,Parameters_Constants!$K$100:$AF$100,0))=FALSE)","v":false},{"$f":"IF(OR($D91=\"\",$D91=CONST_NA),FALSE,INDEX(Parameters_Constants!$K$101:$AF$118,MATCH($E91,CONST_LIST_Goods,0),MATCH(W$8,Parameters_Constants!$K$100:$AF$100,0))=FALSE)","v":false},{"$f":"IF(OR($D91=\"\",$D91=CONST_NA),FALSE,INDEX(Parameters_Constants!$K$101:$AF$118,MATCH($E91,CONST_LIST_Goods,0),MATCH(X$8,Parameters_Constants!$K$100:$AF$100,0))=FALSE)","v":false},{"$f":"IF(OR($D91=\"\",$D91=CONST_NA),FALSE,INDEX(Parameters_Constants!$K$101:$AF$118,MATCH($E91,CONST_LIST_Goods,0),MATCH(Y$8,Parameters_Constants!$K$100:$AF$100,0))=FALSE)","v":false},{"$f":"IF(OR($D91=\"\",$D91=CONST_NA),FALSE,INDEX(Parameters_Constants!$K$101:$AF$118,MATCH($E91,CONST_LIST_Goods,0),MATCH(Z$8,Parameters_Constants!$K$100:$AF$100,0))=FALSE)","v":false},{"$f":"IF(OR($D91=\"\",$D91=CONST_NA),FALSE,INDEX(Parameters_Constants!$K$101:$AF$118,MATCH($E91,CONST_LIST_Goods,0),MATCH(AA$8,Parameters_Constants!$K$100:$AF$100,0))=FALSE)","v":false},{"$f":"IF(OR($D91=\"\",$D91=CONST_NA),FALSE,INDEX(Parameters_Constants!$K$101:$AF$118,MATCH($E91,CONST_LIST_Goods,0),MATCH(AB$8,Parameters_Constants!$K$100:$AF$100,0))=FALSE)","v":false},{"$f":"IF(OR($D91=\"\",$D91=CONST_NA),FALSE,INDEX(Parameters_Constants!$K$101:$AF$118,MATCH($E91,CONST_LIST_Goods,0),MATCH(AC$8,Parameters_Constants!$K$100:$AF$100,0))=FALSE)","v":false},{"$f":"IF(OR($D91=\"\",$D91=CONST_NA),FALSE,INDEX(Parameters_Constants!$K$101:$AF$118,MATCH($E91,CONST_LIST_Goods,0),MATCH(AD$8,Parameters_Constants!$K$100:$AF$100,0))=FALSE)","v":false},{"$f":"IF(OR($D91=\"\",$D91=CONST_NA),FALSE,INDEX(Parameters_Constants!$K$101:$AF$118,MATCH($E91,CONST_LIST_Goods,0),MATCH(AE$8,Parameters_Constants!$K$100:$AF$100,0))=FALSE)","v":false},{"$f":"IF(OR($D91=\"\",$D91=CONST_NA),FALSE,INDEX(Parameters_Constants!$K$101:$AF$118,MATCH($E91,CONST_LIST_Goods,0),MATCH(AF$8,Parameters_Constants!$K$100:$AF$100,0))=FALSE)","v":false},{"$f":"IF(OR($D91=\"\",$D91=CONST_NA),FALSE,INDEX(Parameters_Constants!$K$101:$AF$118,MATCH($E91,CONST_LIST_Goods,0),MATCH(AG$8,Parameters_Constants!$K$100:$AF$100,0))=FALSE)","v":false},{"$f":"IF(OR($D91=\"\",$D91=CONST_NA),FALSE,INDEX(Parameters_Constants!$K$101:$AF$118,MATCH($E91,CONST_LIST_Goods,0),MATCH(AH$8,Parameters_Constants!$K$100:$AF$100,0))=FALSE)","v":false},{"$f":"IF(OR($D91=\"\",$D91=CONST_NA),FALSE,INDEX(Parameters_Constants!$K$101:$AF$118,MATCH($E91,CONST_LIST_Goods,0),MATCH(AI$8,Parameters_Constants!$K$100:$AF$100,0))=FALSE)","v":false},{"$f":"IF(OR($D91=\"\",$D91=CONST_NA),FALSE,INDEX(Parameters_Constants!$K$101:$AF$118,MATCH($E91,CONST_LIST_Goods,0),MATCH(AJ$8,Parameters_Constants!$K$100:$AF$100,0))=FALSE)","v":false},{"$f":"IF(OR($D91=\"\",$D91=CONST_NA),FALSE,INDEX(Parameters_Constants!$K$101:$AF$118,MATCH($E91,CONST_LIST_Goods,0),MATCH(AK$8,Parameters_Constants!$K$100:$AF$100,0))=FALSE)","v":false}]
["ausblenden",null,83,null,null,false,null,false,{"$nulls":7},{"$f":"IF(OR($D92=\"\",$D92=CONST_NA),FALSE,INDEX(Parameters_Constants!$K$101:$AF$118,MATCH($E92,CONST_LIST_Goods,0),MATCH(P$8,Parameters_Constants!$K$100:$AF$100,0))=FALSE)","v":false},{"$f":"IF(OR($D92=\"\",$D92=CONST_NA),FALSE,INDEX(Parameters_Constants!$K$101:$AF$118,MATCH($E92,CONST_LIST_Goods,0),MATCH(Q$8,Parameters_Constants!$K$100:$AF$100,0))=FALSE)","v":false},{"$f":"IF(OR($D92=\"\",$D92=CONST_NA),FALSE,INDEX(Parameters_Constants!$K$101:$AF$118,MATCH($E92,CONST_LIST_Goods,0),MATCH(R$8,Parameters_Constants!$K$100:$AF$100,0))=FALSE)","v":false},{"$f":"IF(OR($D92=\"\",$D92=CONST_NA),FALSE,INDEX(Parameters_Constants!$K$101:$AF$118,MATCH($E92,CONST_LIST_Goods,0),MATCH(S$8,Parameters_Constants!$K$100:$AF$100,0))=FALSE)","v":false},{"$f":"IF(OR($D92=\"\",$D92=CONST_NA),FALSE,INDEX(Parameters_Constants!$K$101:$AF$118,MATCH($E92,CONST_LIST_Goods,0),MATCH(T$8,Parameters_Constants!$K$100:$AF$100,0))=FALSE)","v":false},{"$f":"IF(OR($D92=\"\",$D92=CONST_NA),FALSE,INDEX(Parameters_Constants!$K$101:$AF$118,MATCH($E92,CONST_LIST_Goods,0),MATCH(U$8,Parameters_Constants!$K$100:$AF$100,0))=FALSE)","v":false},{"$f":"IF(OR($D92=\"\",$D92=CONST_NA),FALSE,INDEX(Parameters_Constants!$K$101:$AF$118,MATCH($E92,CONST_LIST_Goods,0),MATCH(V$8,Parameters_Constants!$K$100:$AF$100,0))=FALSE)","v":false},{"$f":"IF(OR($D92=\"\",$D92=CONST_NA),FALSE,INDEX(Parameters_Constants!$K$101:$AF$118,MATCH($E92,CONST_LIST_Goods,0),MATCH(W$8,Parameters_Constants!$K$100:$AF$100,0))=FALSE)","v":false},{"$f":"IF(OR($D92=\"\",$D92=CONST_NA),FALSE,INDEX(Parameters_Constants!$K$101:$AF$118,MATCH($E92,CONST_LIST_Goods,0),MATCH(X$8,Parameters_Constants!$K$100:$AF$100,0))=FALSE)","v":false},{"$f":"IF(OR($D92=\"\",$D92=CONST_NA),FALSE,INDEX(Parameters_Constants!$K$101:$AF$118,MATCH($E92,CONST_LIST_Goods,0),MATCH(Y$8,Parameters_Constants!$K$100:$AF$100,0))=FALSE)","v":false},{"$f":"IF(OR($D92=\"\",$D92=CONST_NA),FALSE,INDEX(Parameters_Constants!$K$101:$AF$118,MATCH($E92,CONST_LIST_Goods,0),MATCH(Z$8,Parameters_Constants!$K$100:$AF$100,0))=FALSE)","v":false},{"$f":"IF(OR($D92=\"\",$D92=CONST_NA),FALSE,INDEX(Parameters_Constants!$K$101:$AF$118,MATCH($E92,CONST_LIST_Goods,0),MATCH(AA$8,Parameters_Constants!$K$100:$AF$100,0))=FALSE)","v":false},{"$f":"IF(OR($D92=\"\",$D92=CONST_NA),FALSE,INDEX(Parameters_Constants!$K$101:$AF$118,MATCH($E92,CONST_LIST_Goods,0),MATCH(AB$8,Parameters_Constants!$K$100:$AF$100,0))=FALSE)","v":false},{"$f":"IF(OR($D92=\"\",$D92=CONST_NA),FALSE,INDEX(Parameters_Constants!$K$101:$AF$118,MATCH($E92,CONST_LIST_Goods,0),MATCH(AC$8,Parameters_Constants!$K$100:$AF$100,0))=FALSE)","v":false},{"$f":"IF(OR($D92=\"\",$D92=CONST_NA),FALSE,INDEX(Parameters_Constants!$K$101:$AF$118,MATCH($E92,CONST_LIST_Goods,0),MATCH(AD$8,Parameters_Constants!$K$100:$AF$100,0))=FALSE)","v":false},{"$f":"IF(OR($D92=\"\",$D92=CONST_NA),FALSE,INDEX(Parameters_Constants!$K$101:$AF$118,MATCH($E92,CONST_LIST_Goods,0),MATCH(AE$8,Parameters_Constants!$K$100:$AF$100,0))=FALSE)","v":false},{"$f":"IF(OR($D92=\"\",$D92=CONST_NA),FALSE,INDEX(Parameters_Constants!$K$101:$AF$118,MATCH($E92,CONST_LIST_Goods,0),MATCH(AF$8,Parameters_Constants!$K$100:$AF$100,0))=FALSE)","v":false},{"$f":"IF(OR($D92=\"\",$D92=CONST_NA),FALSE,INDEX(Parameters_Constants!$K$101:$AF$118,MATCH($E92,CONST_LIST_Goods,0),MATCH(AG$8,Parameters_Constants!$K$100:$AF$100,0))=FALSE)","v":false},{"$f":"IF(OR($D92=\"\",$D92=CONST_NA),FALSE,INDEX(Parameters_Constants!$K$101:$AF$118,MATCH($E92,CONST_LIST_Goods,0),MATCH(AH$8,Parameters_Constants!$K$100:$AF$100,0))=FALSE)","v":false},{"$f":"IF(OR($D92=\"\",$D92=CONST_NA),FALSE,INDEX(Parameters_Constants!$K$101:$AF$118,MATCH($E92,CONST_LIST_Goods,0),MATCH(AI$8,Parameters_Constants!$K$100:$AF$100,0))=FALSE)","v":false},{"$f":"IF(OR($D92=\"\",$D92=CONST_NA),FALSE,INDEX(Parameters_Constants!$K$101:$AF$118,MATCH($E92,CONST_LIST_Goods,0),MATCH(AJ$8,Parameters_Constants!$K$100:$AF$100,0))=FALSE)","v":false},{"$f":"IF(OR($D92=\"\",$D92=CONST_NA),FALSE,INDEX(Parameters_Constants!$K$101:$AF$118,MATCH($E92,CONST_LIST_Goods,0),MATCH(AK$8,Parameters_Constants!$K$100:$AF$100,0))=FALSE)","v":false}]
["ausblenden",null,84,null,null,false,null,false,{"$nulls":7},{"$f":"IF(OR($D93=\"\",$D93=CONST_NA),FALSE,INDEX(Parameters_Constants!$K$101:$AF$118,MATCH($E93,CONST_LIST_Goods,0),MATCH(P$8,Parameters_Constants!$K$100:$AF$100,0))=FALSE)","v":false},{"$f":"IF(OR($D93=\"\",$D93=CONST_NA),FALSE,INDEX(Parameters_Constants!$K$101:$AF$118,MATCH($E93,CONST_LIST_Goods,0),MATCH(Q$8,Parameters_Constants!$K$100:$AF$100,0))=FALSE)","v":false},{"$f":"IF(OR($D93=\"\",$D93=CONST_NA),FALSE,INDEX(Parameters_Constants!$K$101:$AF$118,MATCH($E93,CONST_LIST_Goods,0),MATCH(R$8,Parameters_Constants!$K$100:$AF$100,0))=FALSE)","v":false},{"$f":"IF(OR($D93=\"\",$D93=CONST_NA),FALSE,INDEX(Parameters_Constants!$K$101:$AF$118,MATCH($E93,CONST_LIST_Goods,0),MATCH(S$8,Parameters_Constants!$K$100:$AF$100,0))=FALSE)","v":false},{"$f":"IF(OR($D93=\"\",$D93=CONST_NA),FALSE,INDEX(Parameters_Constants!$K$101:$AF$118,MATCH($E93,CONST_LIST_Goods,0),MATCH(T$8,Parameters_Constants!$K$100:$AF$100,0))=FALSE)","v":false},{"$f":"IF(OR($D93=\"\",$D93=CONST_NA),FALSE,INDEX(Parameters_Constants!$K$101:$AF$118,MATCH($E93,CONST_LIST_Goods,0),MATCH(U$8,Parameters_Constants!$K$100:$AF$100,0))=FALSE)","v":false},{"$f":"IF(OR($D93=\"\",$D93=CONST_NA),FALSE,INDEX(Parameters_Constants!$K$101:$AF$118,MATCH($E93,CONST_LIST_Goods,0),MATCH(V$8,Parameters_Constants!$K$100:$AF$100,0))=FALSE)","v":false},{"$f":"IF(OR($D93=\"\",$D93=CONST_NA),FALSE,INDEX(Parameters_Constants!$K$101:$AF$118,MATCH($E93,CONST_LIST_Goods,0),MATCH(W$8,Parameters_Constants!$K$100:$AF$100,0))=FALSE)","v":false},{"$f":"IF(OR($D93=\"\",$D93=CONST_NA),FALSE,INDEX(Parameters_Constants!$K$101:$AF$118,MATCH($E93,CONST_LIST_Goods,0),MATCH(X$8,Parameters_Constants!$K$100:$AF$100,0))=FALSE)","v":false},{"$f":"IF(OR($D93=\"\",$D93=CONST_NA),FALSE,INDEX(Parameters_Constants!$K$101:$AF$118,MATCH($E93,CONST_LIST_Goods,0),MATCH(Y$8,Parameters_Constants!$K$100:$AF$100,0))=FALSE)","v":false},{"$f":"IF(OR($D93=\"\",$D93=CONST_NA),FALSE,INDEX(Parameters_Constants!$K$101:$AF$118,MATCH($E93,CONST_LIST_Goods,0),MATCH(Z$8,Parameters_Constants!$K$100:$AF$100,0))=FALSE)","v":false},{"$f":"IF(OR($D93=\"\",$D93=CONST_NA),FALSE,INDEX(Parameters_Constants!$K$101:$AF$118,MATCH($E93,CONST_LIST_Goods,0),MATCH(AA$8,Parameters_Constants!$K$100:$AF$100,0))=FALSE)","v":false},{"$f":"IF(OR($D93=\"\",$D93=CONST_NA),FALSE,INDEX(Parameters_Constants!$K$101:$AF$118,MATCH($E93,CONST_LIST_Goods,0),MATCH(AB$8,Parameters_Constants!$K$100:$AF$100,0))=FALSE)","v":false},{"$f":"IF(OR($D93=\"\",$D93=CONST_NA),FALSE,INDEX(Parameters_Constants!$K$101:$AF$118,MATCH($E93,CONST_LIST_Goods,0),MATCH(AC$8,Parameters_Constants!$K$100:$AF$100,0))=FALSE)","v":false},{"$f":"IF(OR($D93=\"\",$D93=CONST_NA),FALSE,INDEX(Parameters_Constants!$K$101:$AF$118,MATCH($E93,CONST_LIST_Goods,0),MATCH(AD$8,Parameters_Constants!$K$100:$AF$100,0))=FALSE)","v":false},{"$f":"IF(OR($D93=\"\",$D93=CONST_NA),FALSE,INDEX(Parameters_Constants!$K$101:$AF$118,MATCH($E93,CONST_LIST_Goods,0),MATCH(AE$8,Parameters_Constants!$K$100:$AF$100,0))=FALSE)","v":false},{"$f":"IF(OR($D93=\"\",$D93=CONST_NA),FALSE,INDEX(Parameters_Constants!$K$101:$AF$118,MATCH($E93,CONST_LIST_Goods,0),MATCH(AF$8,Parameters_Constants!$K$100:$AF$100,0))=FALSE)","v":false},{"$f":"IF(OR($D93=\"\",$D93=CONST_NA),FALSE,INDEX(Parameters_Constants!$K$101:$AF$118,MATCH($E93,CONST_LIST_Goods,0),MATCH(AG$8,Parameters_Constants!$K$100:$AF$100,0))=FALSE)","v":false},{"$f":"IF(OR($D93=\"\",$D93=CONST_NA),FALSE,INDEX(Parameters_Constants!$K$101:$AF$118,MATCH($E93,CONST_LIST_Goods,0),MATCH(AH$8,Parameters_Constants!$K$100:$AF$100,0))=FALSE)","v":false},{"$f":"IF(OR($D93=\"\",$D93=CONST_NA),FALSE,INDEX(Parameters_Constants!$K$101:$AF$118,MATCH($E93,CONST_LIST_Goods,0),MATCH(AI$8,Parameters_Constants!$K$100:$AF$100,0))=FALSE)","v":false},{"$f":"IF(OR($D93=\"\",$D93=CONST_NA),FALSE,INDEX(Parameters_Constants!$K$101:$AF$118,MATCH($E93,CONST_LIST_Goods,0),MATCH(AJ$8,Parameters_Constants!$K$100:$AF$100,0))=FALSE)","v":false},{"$f":"IF(OR($D93=\"\",$D93=CONST_NA),FALSE,INDEX(Parameters_Constants!$K$101:$AF$118,MATCH($E93,CONST_LIST_Goods,0),MATCH(AK$8,Parameters_Constants!$K$100:$AF$100,0))=FALSE)","v":false}]
["ausblenden",null,85,null,null,false,null,false,{"$nulls":7},{"$f":"IF(OR($D94=\"\",$D94=CONST_NA),FALSE,INDEX(Parameters_Constants!$K$101:$AF$118,MATCH($E94,CONST_LIST_Goods,0),MATCH(P$8,Parameters_Constants!$K$100:$AF$100,0))=FALSE)","v":false},{"$f":"IF(OR($D94=\"\",$D94=CONST_NA),FALSE,INDEX(Parameters_Constants!$K$101:$AF$118,MATCH($E94,CONST_LIST_Goods,0),MATCH(Q$8,Parameters_Constants!$K$100:$AF$100,0))=FALSE)","v":false},{"$f":"IF(OR($D94=\"\",$D94=CONST_NA),FALSE,INDEX(Parameters_Constants!$K$101:$AF$118,MATCH($E94,CONST_LIST_Goods,0),MATCH(R$8,Parameters_Constants!$K$100:$AF$100,0))=FALSE)","v":false},{"$f":"IF(OR($D94=\"\",$D94=CONST_NA),FALSE,INDEX(Parameters_Constants!$K$101:$AF$118,MATCH($E94,CONST_LIST_Goods,0),MATCH(S$8,Parameters_Constants!$K$100:$AF$100,0))=FALSE)","v":false},{"$f":"IF(OR($D94=\"\",$D94=CONST_NA),FALSE,INDEX(Parameters_Constants!$K$101:$AF$118,MATCH($E94,CONST_LIST_Goods,0),MATCH(T$8,Parameters_Constants!$K$100:$AF$100,0))=FALSE)","v":false},{"$f":"IF(OR($D94=\"\",$D94=CONST_NA),FALSE,INDEX(Parameters_Constants!$K$101:$AF$118,MATCH($E94,CONST_LIST_Goods,0),MATCH(U$8,Parameters_Constants!$K$100:$AF$100,0))=FALSE)","v":false},{"$f":"IF(OR($D94=\"\",$D94=CONST_NA),FALSE,INDEX(Parameters_Constants!$K$101:$AF$118,MATCH($E94,CONST_LIST_Goods,0),MATCH(V$8,Parameters_Constants!$K$100:$AF$100,0))=FALSE)","v":false},{"$f":"IF(OR($D94=\"\",$D94=CONST_NA),FALSE,INDEX(Parameters_Constants!$K$101:$AF$118,MATCH($E94,CONST_LIST_Goods,0),MATCH(W$8,Parameters_Constants!$K$100:$AF$100,0))=FALSE)","v":false},{"$f":"IF(OR($D94=\"\",$D94=CONST_NA),FALSE,INDEX(Parameters_Constants!$K$101:$AF$118,MATCH($E94,CONST_LIST_Goods,0),MATCH(X$8,Parameters_Constants!$K$100:$AF$100,0))=FALSE)","v":false},{"$f":"IF(OR($D94=\"\",$D94=CONST_NA),FALSE,INDEX(Parameters_Constants!$K$101:$AF$118,MATCH($E94,CONST_LIST_Goods,0),MATCH(Y$8,Parameters_Constants!$K$100:$AF$100,0))=FALSE)","v":false},{"$f":"IF(OR($D94=\"\",$D94=CONST_NA),FALSE,INDEX(Parameters_Constants!$K$101:$AF$118,MATCH($E94,CONST_LIST_Goods,0),MATCH(Z$8,Parameters_Constants!$K$100:$AF$100,0))=FALSE)","v":false},{"$f":"IF(OR($D94=\"\",$D94=CONST_NA),FALSE,INDEX(Parameters_Constants!$K$101:$AF$118,MATCH($E94,CONST_LIST_Goods,0),MATCH(AA$8,Parameters_Constants!$K$100:$AF$100,0))=FALSE)","v":false},{"$f":"IF(OR($D94=\"\",$D94=CONST_NA),FALSE,INDEX(Parameters_Constants!$K$101:$AF$118,MATCH($E94,CONST_LIST_Goods,0),MATCH(AB$8,Parameters_Constants!$K$100:$AF$100,0))=FALSE)","v":false},{"$f":"IF(OR($D94=\"\",$D94=CONST_NA),FALSE,INDEX(Parameters_Constants!$K$101:$AF$118,MATCH($E94,CONST_LIST_Goods,0),MATCH(AC$8,Parameters_Constants!$K$100:$AF$100,0))=FALSE)","v":false},{"$f":"IF(OR($D94=\"\",$D94=CONST_NA),FALSE,INDEX(Parameters_Constants!$K$101:$AF$118,MATCH($E94,CONST_LIST_Goods,0),MATCH(AD$8,Parameters_Constants!$K$100:$AF$100,0))=FALSE)","v":false},{"$f":"IF(OR($D94=\"\",$D94=CONST_NA),FALSE,INDEX(Parameters_Constants!$K$101:$AF$118,MATCH($E94,CONST_LIST_Goods,0),MATCH(AE$8,Parameters_Constants!$K$100:$AF$100,0))=FALSE)","v":false},{"$f":"IF(OR($D94=\"\",$D94=CONST_NA),FALSE,INDEX(Parameters_Constants!$K$101:$AF$118,MATCH($E94,CONST_LIST_Goods,0),MATCH(AF$8,Parameters_Constants!$K$100:$AF$100,0))=FALSE)","v":false},{"$f":"IF(OR($D94=\"\",$D94=CONST_NA),FALSE,INDEX(Parameters_Constants!$K$101:$AF$118,MATCH($E94,CONST_LIST_Goods,0),MATCH(AG$8,Parameters_Constants!$K$100:$AF$100,0))=FALSE)","v":false},{"$f":"IF(OR($D94=\"\",$D94=CONST_NA),FALSE,INDEX(Parameters_Constants!$K$101:$AF$118,MATCH($E94,CONST_LIST_Goods,0),MATCH(AH$8,Parameters_Constants!$K$100:$AF$100,0))=FALSE)","v":false},{"$f":"IF(OR($D94=\"\",$D94=CONST_NA),FALSE,INDEX(Parameters_Constants!$K$101:$AF$118,MATCH($E94,CONST_LIST_Goods,0),MATCH(AI$8,Parameters_Constants!$K$100:$AF$100,0))=FALSE)","v":false},{"$f":"IF(OR($D94=\"\",$D94=CONST_NA),FALSE,INDEX(Parameters_Constants!$K$101:$AF$118,MATCH($E94,CONST_LIST_Goods,0),MATCH(AJ$8,Parameters_Constants!$K$100:$AF$100,0))=FALSE)","v":false},{"$f":"IF(OR($D94=\"\",$D94=CONST_NA),FALSE,INDEX(Parameters_Constants!$K$101:$AF$118,MATCH($E94,CONST_LIST_Goods,0),MATCH(AK$8,Parameters_Constants!$K$100:$AF$100,0))=FALSE)","v":false}]
["ausblenden",null,86,null,null,false,null,false,{"$nulls":7},{"$f":"IF(OR($D95=\"\",$D95=CONST_NA),FALSE,INDEX(Parameters_Constants!$K$101:$AF$118,MATCH($E95,CONST_LIST_Goods,0),MATCH(P$8,Parameters_Constants!$K$100:$AF$100,0))=FALSE)","v":false},{"$f":"IF(OR($D95=\"\",$D95=CONST_NA),FALSE,INDEX(Parameters_Constants!$K$101:$AF$118,MATCH($E95,CONST_LIST_Goods,0),MATCH(Q$8,Parameters_Constants!$K$100:$AF$100,0))=FALSE)","v":false},{"$f":"IF(OR($D95=\"\",$D95=CONST_NA),FALSE,INDEX(Parameters_Constants!$K$101:$AF$118,MATCH($E95,CONST_LIST_Goods,0),MATCH(R$8,Parameters_Constants!$K$100:$AF$100,0))=FALSE)","v":false},{"$f":"IF(OR($D95=\"\",$D95=CONST_NA),FALSE,INDEX(Parameters_Constants!$K$101:$AF$118,MATCH($E95,CONST_LIST_Goods,0),MATCH(S$8,Parameters_Constants!$K$100:$AF$100,0))=FALSE)","v":false},{"$f":"IF(OR($D95=\"\",$D95=CONST_NA),FALSE,INDEX(Parameters_Constants!$K$101:$AF$118,MATCH($E95,CONST_LIST_Goods,0),MATCH(T$8,Parameters_Constants!$K$100:$AF$100,0))=FALSE)","v":false},{"$f":"IF(OR($D95=\"\",$D95=CONST_NA),FALSE,INDEX(Parameters_Constants!$K$101:$AF$118,MATCH($E95,CONST_LIST_Goods,0),MATCH(U$8,Parameters_Constants!$K$100:$AF$100,0))=FALSE)","v":false},{"$f":"IF(OR($D95=\"\",$D95=CONST_NA),FALSE,INDEX(Parameters_Constants!$K$101:$AF$118,MATCH($E95,CONST_LIST_Goods,0),MATCH(V$8,Parameters_Constants!$K$100:$AF$100,0))=FALSE)","v":false},{"$f":"IF(OR($D95=\"\",$D95=CONST_NA),FALSE,INDEX(Parameters_Constants!$K$101:$AF$118,MATCH($E95,CONST_LIST_Goods,0),MATCH(W$8,Parameters_Constants!$K$100:$AF$100,0))=FALSE)","v":false},{"$f":"IF(OR($D95=\"\",$D95=CONST_NA),FALSE,INDEX(Parameters_Constants!$K$101:$AF$118,MATCH($E95,CONST_LIST_Goods,0),MATCH(X$8,Parameters_Constants!$K$100:$AF$100,0))=FALSE)","v":false},{"$f":"IF(OR($D95=\"\",$D95=CONST_NA),FALSE,INDEX(Parameters_Constants!$K$101:$AF$118,MATCH($E95,CONST_LIST_Goods,0),MATCH(Y$8,Parameters_Constants!$K$100:$AF$100,0))=FALSE)","v":false},{"$f":"IF(OR($D95=\"\",$D95=CONST_NA),FALSE,INDEX(Parameters_Constants!$K$101:$AF$118,MATCH($E95,CONST_LIST_Goods,0),MATCH(Z$8,Parameters_Constants!$K$100:$AF$100,0))=FALSE)","v":false},{"$f":"IF(OR($D95=\"\",$D95=CONST_NA),FALSE,INDEX(Parameters_Constants!$K$101:$AF$118,MATCH($E95,CONST_LIST_Goods,0),MATCH(AA$8,Parameters_Constants!$K$100:$AF$100,0))=FALSE)","v":false},{"$f":"IF(OR($D95=\"\",$D95=CONST_NA),FALSE,INDEX(Parameters_Constants!$K$101:$AF$118,MATCH($E95,CONST_LIST_Goods,0),MATCH(AB$8,Parameters_Constants!$K$100:$AF$100,0))=FALSE)","v":false},{"$f":"IF(OR($D95=\"\",$D95=CONST_NA),FALSE,INDEX(Parameters_Constants!$K$101:$AF$118,MATCH($E95,CONST_LIST_Goods,0),MATCH(AC$8,Parameters_Constants!$K$100:$AF$100,0))=FALSE)","v":false},{"$f":"IF(OR($D95=\"\",$D95=CONST_NA),FALSE,INDEX(Parameters_Constants!$K$101:$AF$118,MATCH($E95,CONST_LIST_Goods,0),MATCH(AD$8,Parameters_Constants!$K$100:$AF$100,0))=FALSE)","v":false},{"$f":"IF(OR($D95=\"\",$D95=CONST_NA),FALSE,INDEX(Parameters_Constants!$K$101:$AF$118,MATCH($E95,CONST_LIST_Goods,0),MATCH(AE$8,Parameters_Constants!$K$100:$AF$100,0))=FALSE)","v":false},{"$f":"IF(OR($D95=\"\",$D95=CONST_NA),FALSE,INDEX(Parameters_Constants!$K$101:$AF$118,MATCH($E95,CONST_LIST_Goods,0),MATCH(AF$8,Parameters_Constants!$K$100:$AF$100,0))=FALSE)","v":false},{"$f":"IF(OR($D95=\"\",$D95=CONST_NA),FALSE,INDEX(Parameters_Constants!$K$101:$AF$118,MATCH($E95,CONST_LIST_Goods,0),MATCH(AG$8,Parameters_Constants!$K$100:$AF$100,0))=FALSE)","v":false},{"$f":"IF(OR($D95=\"\",$D95=CONST_NA),FALSE,INDEX(Parameters_Constants!$K$101:$AF$118,MATCH($E95,CONST_LIST_Goods,0),MATCH(AH$8,Parameters_Constants!$K$100:$AF$100,0))=FALSE)","v":false},{"$f":"IF(OR($D95=\"\",$D95=CONST_NA),FALSE,INDEX(Parameters_Constants!$K$101:$AF$118,MATCH($E95,CONST_LIST_Goods,0),MATCH(AI$8,Parameters_Constants!$K$100:$AF$100,0))=FALSE)","v":false},{"$f":"IF(OR($D95=\"\",$D95=CONST_NA),FALSE,INDEX(Parameters_Constants!$K$101:$AF$118,MATCH($E95,CONST_LIST_Goods,0),MATCH(AJ$8,Parameters_Constants!$K$100:$AF$100,0))=FALSE)","v":false},{"$f":"IF(OR($D95=\"\",$D95=CONST_NA),FALSE,INDEX(Parameters_Constants!$K$101:$AF$118,MATCH($E95,CONST_LIST_Goods,0),MATCH(AK$8,Parameters_Constants!$K$100:$AF$100,0))=FALSE)","v":false}]
["ausblenden",null,87,null,null,false,null,false,{"$nulls":7},{"$f":"IF(OR($D96=\"\",$D96=CONST_NA),FALSE,INDEX(Parameters_Constants!$K$101:$AF$118,MATCH($E96,CONST_LIST_Goods,0),MATCH(P$8,Parameters_Constants!$K$100:$AF$100,0))=FALSE)","v":false},{"$f":"IF(OR($D96=\"\",$D96=CONST_NA),FALSE,INDEX(Parameters_Constants!$K$101:$AF$118,MATCH($E96,CONST_LIST_Goods,0),MATCH(Q$8,Parameters_Constants!$K$100:$AF$100,0))=FALSE)","v":false},{"$f":"IF(OR($D96=\"\",$D96=CONST_NA),FALSE,INDEX(Parameters_Constants!$K$101:$AF$118,MATCH($E96,CONST_LIST_Goods,0),MATCH(R$8,Parameters_Constants!$K$100:$AF$100,0))=FALSE)","v":false},{"$f":"IF(OR($D96=\"\",$D96=CONST_NA),FALSE,INDEX(Parameters_Constants!$K$101:$AF$118,MATCH($E96,CONST_LIST_Goods,0),MATCH(S$8,Parameters_Constants!$K$100:$AF$100,0))=FALSE)","v":false},{"$f":"IF(OR($D96=\"\",$D96=CONST_NA),FALSE,INDEX(Parameters_Constants!$K$101:$AF$118,MATCH($E96,CONST_LIST_Goods,0),MATCH(T$8,Parameters_Constants!$K$100:$AF$100,0))=FALSE)","v":false},{"$f":"IF(OR($D96=\"\",$D96=CONST_NA),FALSE,INDEX(Parameters_Constants!$K$101:$AF$118,MATCH($E96,CONST_LIST_Goods,0),MATCH(U$8,Parameters_Constants!$K$100:$AF$100,0))=FALSE)","v":false},{"$f":"IF(OR($D96=\"\",$D96=CONST_NA),FALSE,INDEX(Parameters_Constants!$K$101:$AF$118,MATCH($E96,CONST_LIST_Goods,0),MATCH(V$8,Parameters_Constants!$K$100:$AF$100,0))=FALSE)","v":false},{"$f":"IF(OR($D96=\"\",$D96=CONST_NA),FALSE,INDEX(Parameters_Constants!$K$101:$AF$118,MATCH($E96,CONST_LIST_Goods,0),MATCH(W$8,Parameters_Constants!$K$100:$AF$100,0))=FALSE)","v":false},{"$f":"IF(OR($D96=\"\",$D96=CONST_NA),FALSE,INDEX(Parameters_Constants!$K$101:$AF$118,MATCH($E96,CONST_LIST_Goods,0),MATCH(X$8,Parameters_Constants!$K$100:$AF$100,0))=FALSE)","v":false},{"$f":"IF(OR($D96=\"\",$D96=CONST_NA),FALSE,INDEX(Parameters_Constants!$K$101:$AF$118,MATCH($E96,CONST_LIST_Goods,0),MATCH(Y$8,Parameters_Constants!$K$100:$AF$100,0))=FALSE)","v":false},{"$f":"IF(OR($D96=\"\",$D96=CONST_NA),FALSE,INDEX(Parameters_Constants!$K$101:$AF$118,MATCH($E96,CONST_LIST_Goods,0),MATCH(Z$8,Parameters_Constants!$K$100:$AF$100,0))=FALSE)","v":false},{"$f":"IF(OR($D96=\"\",$D96=CONST_NA),FALSE,INDEX(Parameters_Constants!$K$101:$AF$118,MATCH($E96,CONST_LIST_Goods,0),MATCH(AA$8,Parameters_Constants!$K$100:$AF$100,0))=FALSE)","v":false},{"$f":"IF(OR($D96=\"\",$D96=CONST_NA),FALSE,INDEX(Parameters_Constants!$K$101:$AF$118,MATCH($E96,CONST_LIST_Goods,0),MATCH(AB$8,Parameters_Constants!$K$100:$AF$100,0))=FALSE)","v":false},{"$f":"IF(OR($D96=\"\",$D96=CONST_NA),FALSE,INDEX(Parameters_Constants!$K$101:$AF$118,MATCH($E96,CONST_LIST_Goods,0),MATCH(AC$8,Parameters_Constants!$K$100:$AF$100,0))=FALSE)","v":false},{"$f":"IF(OR($D96=\"\",$D96=CONST_NA),FALSE,INDEX(Parameters_Constants!$K$101:$AF$118,MATCH($E96,CONST_LIST_Goods,0),MATCH(AD$8,Parameters_Constants!$K$100:$AF$100,0))=FALSE)","v":false},{"$f":"IF(OR($D96=\"\",$D96=CONST_NA),FALSE,INDEX(Parameters_Constants!$K$101:$AF$118,MATCH($E96,CONST_LIST_Goods,0),MATCH(AE$8,Parameters_Constants!$K$100:$AF$100,0))=FALSE)","v":false},{"$f":"IF(OR($D96=\"\",$D96=CONST_NA),FALSE,INDEX(Parameters_Constants!$K$101:$AF$118,MATCH($E96,CONST_LIST_Goods,0),MATCH(AF$8,Parameters_Constants!$K$100:$AF$100,0))=FALSE)","v":false},{"$f":"IF(OR($D96=\"\",$D96=CONST_NA),FALSE,INDEX(Parameters_Constants!$K$101:$AF$118,MATCH($E96,CONST_LIST_Goods,0),MATCH(AG$8,Parameters_Constants!$K$100:$AF$100,0))=FALSE)","v":false},{"$f":"IF(OR($D96=\"\",$D96=CONST_NA),FALSE,INDEX(Parameters_Constants!$K$101:$AF$118,MATCH($E96,CONST_LIST_Goods,0),MATCH(AH$8,Parameters_Constants!$K$100:$AF$100,0))=FALSE)","v":false},{"$f":"IF(OR($D96=\"\",$D96=CONST_NA),FALSE,INDEX(Parameters_Constants!$K$101:$AF$118,MATCH($E96,CONST_LIST_Goods,0),MATCH(AI$8,Parameters_Constants!$K$100:$AF$100,0))=FALSE)","v":false},{"$f":"IF(OR($D96=\"\",$D96=CONST_NA),FALSE,INDEX(Parameters_Constants!$K$101:$AF$118,MATCH($E96,CONST_LIST_Goods,0),MATCH(AJ$8,Parameters_Constants!$K$100:$AF$100,0))=FALSE)","v":false},{"$f":"IF(OR($D96=\"\",$D96=CONST_NA),FALSE,INDEX(Parameters_Constants!$K$101:$AF$118,MATCH($E96,CONST_LIST_Goods,0),MATCH(AK$8,Parameters_Constants!$K$100:$AF$100,0))=FALSE)","v":false}]
["ausblenden",null,88,null,null,false,null,false,{"$nulls":7},{"$f":"IF(OR($D97=\"\",$D97=CONST_NA),FALSE,INDEX(Parameters_Constants!$K$101:$AF$118,MATCH($E97,CONST_LIST_Goods,0),MATCH(P$8,Parameters_Constants!$K$100:$AF$100,0))=FALSE)","v":false},{"$f":"IF(OR($D97=\"\",$D97=CONST_NA),FALSE,INDEX(Parameters_Constants!$K$101:$AF$118,MATCH($E97,CONST_LIST_Goods,0),MATCH(Q$8,Parameters_Constants!$K$100:$AF$100,0))=FALSE)","v":false},{"$f":"IF(OR($D97=\"\",$D97=CONST_NA),FALSE,INDEX(Parameters_Constants!$K$101:$AF$118,MATCH($E97,CONST_LIST_Goods,0),MATCH(R$8,Parameters_Constants!$K$100:$AF$100,0))=FALSE)","v":false},{"$f":"IF(OR($D97=\"\",$D97=CONST_NA),FALSE,INDEX(Parameters_Constants!$K$101:$AF$118,MATCH($E97,CONST_LIST_Goods,0),MATCH(S$8,Parameters_Constants!$K$100:$AF$100,0))=FALSE)","v":false},{"$f":"IF(OR($D97=\"\",$D97=CONST_NA),FALSE,INDEX(Parameters_Constants!$K$101:$AF$118,MATCH($E97,CONST_LIST_Goods,0),MATCH(T$8,Parameters_Constants!$K$100:$AF$100,0))=FALSE)","v":false},{"$f":"IF(OR($D97=\"\",$D97=CONST_NA),FALSE,INDEX(Parameters_Constants!$K$101:$AF$118,MATCH($E97,CONST_LIST_Goods,0),MATCH(U$8,Parameters_Constants!$K$100:$AF$100,0))=FALSE)","v":false},{"$f":"IF(OR($D97=\"\",$D97=CONST_NA),FALSE,INDEX(Parameters_Constants!$K$101:$AF$118,MATCH($E97,CONST_LIST_Goods,0),MATCH(V$8,Parameters_Constants!$K$100:$AF$100,0))=FALSE)","v":false},{"$f":"IF(OR($D97=\"\",$D97=CONST_NA),FALSE,INDEX(Parameters_Constants!$K$101:$AF$118,MATCH($E97,CONST_LIST_Goods,0),MATCH(W$8,Parameters_Constants!$K$100:$AF$100,0))=FALSE)","v":false},{"$f":"IF(OR($D97=\"\",$D97=CONST_NA),FALSE,INDEX(Parameters_Constants!$K$101:$AF$118,MATCH($E97,CONST_LIST_Goods,0),MATCH(X$8,Parameters_Constants!$K$100:$AF$100,0))=FALSE)","v":false},{"$f":"IF(OR($D97=\"\",$D97=CONST_NA),FALSE,INDEX(Parameters_Constants!$K$101:$AF$118,MATCH($E97,CONST_LIST_Goods,0),MATCH(Y$8,Parameters_Constants!$K$100:$AF$100,0))=FALSE)","v":false},{"$f":"IF(OR($D97=\"\",$D97=CONST_NA),FALSE,INDEX(Parameters_Constants!$K$101:$AF$118,MATCH($E97,CONST_LIST_Goods,0),MATCH(Z$8,Parameters_Constants!$K$100:$AF$100,0))=FALSE)","v":false},{"$f":"IF(OR($D97=\"\",$D97=CONST_NA),FALSE,INDEX(Parameters_Constants!$K$101:$AF$118,MATCH($E97,CONST_LIST_Goods,0),MATCH(AA$8,Parameters_Constants!$K$100:$AF$100,0))=FALSE)","v":false},{"$f":"IF(OR($D97=\"\",$D97=CONST_NA),FALSE,INDEX(Parameters_Constants!$K$101:$AF$118,MATCH($E97,CONST_LIST_Goods,0),MATCH(AB$8,Parameters_Constants!$K$100:$AF$100,0))=FALSE)","v":false},{"$f":"IF(OR($D97=\"\",$D97=CONST_NA),FALSE,INDEX(Parameters_Constants!$K$101:$AF$118,MATCH($E97,CONST_LIST_Goods,0),MATCH(AC$8,Parameters_Constants!$K$100:$AF$100,0))=FALSE)","v":false},{"$f":"IF(OR($D97=\"\",$D97=CONST_NA),FALSE,INDEX(Parameters_Constants!$K$101:$AF$118,MATCH($E97,CONST_LIST_Goods,0),MATCH(AD$8,Parameters_Constants!$K$100:$AF$100,0))=FALSE)","v":false},{"$f":"IF(OR($D97=\"\",$D97=CONST_NA),FALSE,INDEX(Parameters_Constants!$K$101:$AF$118,MATCH($E97,CONST_LIST_Goods,0),MATCH(AE$8,Parameters_Constants!$K$100:$AF$100,0))=FALSE)","v":false},{"$f":"IF(OR($D97=\"\",$D97=CONST_NA),FALSE,INDEX(Parameters_Constants!$K$101:$AF$118,MATCH($E97,CONST_LIST_Goods,0),MATCH(AF$8,Parameters_Constants!$K$100:$AF$100,0))=FALSE)","v":false},{"$f":"IF(OR($D97=\"\",$D97=CONST_NA),FALSE,INDEX(Parameters_Constants!$K$101:$AF$118,MATCH($E97,CONST_LIST_Goods,0),MATCH(AG$8,Parameters_Constants!$K$100:$AF$100,0))=FALSE)","v":false},{"$f":"IF(OR($D97=\"\",$D97=CONST_NA),FALSE,INDEX(Parameters_Constants!$K$101:$AF$118,MATCH($E97,CONST_LIST_Goods,0),MATCH(AH$8,Parameters_Constants!$K$100:$AF$100,0))=FALSE)","v":false},{"$f":"IF(OR($D97=\"\",$D97=CONST_NA),FALSE,INDEX(Parameters_Constants!$K$101:$AF$118,MATCH($E97,CONST_LIST_Goods,0),MATCH(AI$8,Parameters_Constants!$K$100:$AF$100,0))=FALSE)","v":false},{"$f":"IF(OR($D97=\"\",$D97=CONST_NA),FALSE,INDEX(Parameters_Constants!$K$101:$AF$118,MATCH($E97,CONST_LIST_Goods,0),MATCH(AJ$8,Parameters_Constants!$K$100:$AF$100,0))=FALSE)","v":false},{"$f":"IF(OR($D97=\"\",$D97=CONST_NA),FALSE,INDEX(Parameters_Constants!$K$101:$AF$118,MATCH($E97,CONST_LIST_Goods,0),MATCH(AK$8,Parameters_Constants!$K$100:$AF$100,0))=FALSE)","v":false}]
["ausblenden",null,89,null,null,false,null,false,{"$nulls":7},{"$f":"IF(OR($D98=\"\",$D98=CONST_NA),FALSE,INDEX(Parameters_Constants!$K$101:$AF$118,MATCH($E98,CONST_LIST_Goods,0),MATCH(P$8,Parameters_Constants!$K$100:$AF$100,0))=FALSE)","v":false},{"$f":"IF(OR($D98=\"\",$D98=CONST_NA),FALSE,INDEX(Parameters_Constants!$K$101:$AF$118,MATCH($E98,CONST_LIST_Goods,0),MATCH(Q$8,Parameters_Constants!$K$100:$AF$100,0))=FALSE)","v":false},{"$f":"IF(OR($D98=\"\",$D98=CONST_NA),FALSE,INDEX(Parameters_Constants!$K$101:$AF$118,MATCH($E98,CONST_LIST_Goods,0),MATCH(R$8,Parameters_Constants!$K$100:$AF$100,0))=FALSE)","v":false},{"$f":"IF(OR($D98=\"\",$D98=CONST_NA),FALSE,INDEX(Parameters_Constants!$K$101:$AF$118,MATCH($E98,CONST_LIST_Goods,0),MATCH(S$8,Parameters_Constants!$K$100:$AF$100,0))=FALSE)","v":false},{"$f":"IF(OR($D98=\"\",$D98=CONST_NA),FALSE,INDEX(Parameters_Constants!$K$101:$AF$118,MATCH($E98,CONST_LIST_Goods,0),MATCH(T$8,Parameters_Constants!$K$100:$AF$100,0))=FALSE)","v":false},{"$f":"IF(OR($D98=\"\",$D98=CONST_NA),FALSE,INDEX(Parameters_Constants!$K$101:$AF$118,MATCH($E98,CONST_LIST_Goods,0),MATCH(U$8,Parameters_Constants!$K$100:$AF$100,0))=FALSE)","v":false},{"$f":"IF(OR($D98=\"\",$D98=CONST_NA),FALSE,INDEX(Parameters_Constants!$K$101:$AF$118,MATCH($E98,CONST_LIST_Goods,0),MATCH(V$8,Parameters_Constants!$K$100:$AF$100,0))=FALSE)","v":false},{"$f":"IF(OR($D98=\"\",$D98=CONST_NA),FALSE,INDEX(Parameters_Constants!$K$101:$AF$118,MATCH($E98,CONST_LIST_Goods,0),MATCH(W$8,Parameters_Constants!$K$100:$AF$100,0))=FALSE)","v":false},{"$f":"IF(OR($D98=\"\",$D98=CONST_NA),FALSE,INDEX(Parameters_Constants!$K$101:$AF$118,MATCH($E98,CONST_LIST_Goods,0),MATCH(X$8,Parameters_Constants!$K$100:$AF$100,0))=FALSE)","v":false},{"$f":"IF(OR($D98=\"\",$D98=CONST_NA),FALSE,INDEX(Parameters_Constants!$K$101:$AF$118,MATCH($E98,CONST_LIST_Goods,0),MATCH(Y$8,Parameters_Constants!$K$100:$AF$100,0))=FALSE)","v":false},{"$f":"IF(OR($D98=\"\",$D98=CONST_NA),FALSE,INDEX(Parameters_Constants!$K$101:$AF$118,MATCH($E98,CONST_LIST_Goods,0),MATCH(Z$8,Parameters_Constants!$K$100:$AF$100,0))=FALSE)","v":false},{"$f":"IF(OR($D98=\"\",$D98=CONST_NA),FALSE,INDEX(Parameters_Constants!$K$101:$AF$118,MATCH($E98,CONST_LIST_Goods,0),MATCH(AA$8,Parameters_Constants!$K$100:$AF$100,0))=FALSE)","v":false},{"$f":"IF(OR($D98=\"\",$D98=CONST_NA),FALSE,INDEX(Parameters_Constants!$K$101:$AF$118,MATCH($E98,CONST_LIST_Goods,0),MATCH(AB$8,Parameters_Constants!$K$100:$AF$100,0))=FALSE)","v":false},{"$f":"IF(OR($D98=\"\",$D98=CONST_NA),FALSE,INDEX(Parameters_Constants!$K$101:$AF$118,MATCH($E98,CONST_LIST_Goods,0),MATCH(AC$8,Parameters_Constants!$K$100:$AF$100,0))=FALSE)","v":false},{"$f":"IF(OR($D98=\"\",$D98=CONST_NA),FALSE,INDEX(Parameters_Constants!$K$101:$AF$118,MATCH($E98,CONST_LIST_Goods,0),MATCH(AD$8,Parameters_Constants!$K$100:$AF$100,0))=FALSE)","v":false},{"$f":"IF(OR($D98=\"\",$D98=CONST_NA),FALSE,INDEX(Parameters_Constants!$K$101:$AF$118,MATCH($E98,CONST_LIST_Goods,0),MATCH(AE$8,Parameters_Constants!$K$100:$AF$100,0))=FALSE)","v":false},{"$f":"IF(OR($D98=\"\",$D98=CONST_NA),FALSE,INDEX(Parameters_Constants!$K$101:$AF$118,MATCH($E98,CONST_LIST_Goods,0),MATCH(AF$8,Parameters_Constants!$K$100:$AF$100,0))=FALSE)","v":false},{"$f":"IF(OR($D98=\"\",$D98=CONST_NA),FALSE,INDEX(Parameters_Constants!$K$101:$AF$118,MATCH($E98,CONST_LIST_Goods,0),MATCH(AG$8,Parameters_Constants!$K$100:$AF$100,0))=FALSE)","v":false},{"$f":"IF(OR($D98=\"\",$D98=CONST_NA),FALSE,INDEX(Parameters_Constants!$K$101:$AF$118,MATCH($E98,CONST_LIST_Goods,0),MATCH(AH$8,Parameters_Constants!$K$100:$AF$100,0))=FALSE)","v":false},{"$f":"IF(OR($D98=\"\",$D98=CONST_NA),FALSE,INDEX(Parameters_Constants!$K$101:$AF$118,MATCH($E98,CONST_LIST_Goods,0),MATCH(AI$8,Parameters_Constants!$K$100:$AF$100,0))=FALSE)","v":false},{"$f":"IF(OR($D98=\"\",$D98=CONST_NA),FALSE,INDEX(Parameters_Constants!$K$101:$AF$118,MATCH($E98,CONST_LIST_Goods,0),MATCH(AJ$8,Parameters_Constants!$K$100:$AF$100,0))=FALSE)","v":false},{"$f":"IF(OR($D98=\"\",$D98=CONST_NA),FALSE,INDEX(Parameters_Constants!$K$101:$AF$118,MATCH($E98,CONST_LIST_Goods,0),MATCH(AK$8,Parameters_Constants!$K$100:$AF$100,0))=FALSE)","v":false}]
["ausblenden",null,90,null,null,false,null,false,{"$nulls":7},{"$f":"IF(OR($D99=\"\",$D99=CONST_NA),FALSE,INDEX(Parameters_Constants!$K$101:$AF$118,MATCH($E99,CONST_LIST_Goods,0),MATCH(P$8,Parameters_Constants!$K$100:$AF$100,0))=FALSE)","v":false},{"$f":"IF(OR($D99=\"\",$D99=CONST_NA),FALSE,INDEX(Parameters_Constants!$K$101:$AF$118,MATCH($E99,CONST_LIST_Goods,0),MATCH(Q$8,Parameters_Constants!$K$100:$AF$100,0))=FALSE)","v":false},{"$f":"IF(OR($D99=\"\",$D99=CONST_NA),FALSE,INDEX(Parameters_Constants!$K$101:$AF$118,MATCH($E99,CONST_LIST_Goods,0),MATCH(R$8,Parameters_Constants!$K$100:$AF$100,0))=FALSE)","v":false},{"$f":"IF(OR($D99=\"\",$D99=CONST_NA),FALSE,INDEX(Parameters_Constants!$K$101:$AF$118,MATCH($E99,CONST_LIST_Goods,0),MATCH(S$8,Parameters_Constants!$K$100:$AF$100,0))=FALSE)","v":false},{"$f":"IF(OR($D99=\"\",$D99=CONST_NA),FALSE,INDEX(Parameters_Constants!$K$101:$AF$118,MATCH($E99,CONST_LIST_Goods,0),MATCH(T$8,Parameters_Constants!$K$100:$AF$100,0))=FALSE)","v":false},{"$f":"IF(OR($D99=\"\",$D99=CONST_NA),FALSE,INDEX(Parameters_Constants!$K$101:$AF$118,MATCH($E99,CONST_LIST_Goods,0),MATCH(U$8,Parameters_Constants!$K$100:$AF$100,0))=FALSE)","v":false},{"$f":"IF(OR($D99=\"\",$D99=CONST_NA),FALSE,INDEX(Parameters_Constants!$K$101:$AF$118,MATCH($E99,CONST_LIST_Goods,0),MATCH(V$8,Parameters_Constants!$K$100:$AF$100,0))=FALSE)","v":false},{"$f":"IF(OR($D99=\"\",$D99=CONST_NA),FALSE,INDEX(Parameters_Constants!$K$101:$AF$118,MATCH($E99,CONST_LIST_Goods,0),MATCH(W$8,Parameters_Constants!$K$100:$AF$100,0))=FALSE)","v":false},{"$f":"IF(OR($D99=\"\",$D99=CONST_NA),FALSE,INDEX(Parameters_Constants!$K$101:$AF$118,MATCH($E99,CONST_LIST_Goods,0),MATCH(X$8,Parameters_Constants!$K$100:$AF$100,0))=FALSE)","v":false},{"$f":"IF(OR($D99=\"\",$D99=CONST_NA),FALSE,INDEX(Parameters_Constants!$K$101:$AF$118,MATCH($E99,CONST_LIST_Goods,0),MATCH(Y$8,Parameters_Constants!$K$100:$AF$100,0))=FALSE)","v":false},{"$f":"IF(OR($D99=\"\",$D99=CONST_NA),FALSE,INDEX(Parameters_Constants!$K$101:$AF$118,MATCH($E99,CONST_LIST_Goods,0),MATCH(Z$8,Parameters_Constants!$K$100:$AF$100,0))=FALSE)","v":false},{"$f":"IF(OR($D99=\"\",$D99=CONST_NA),FALSE,INDEX(Parameters_Constants!$K$101:$AF$118,MATCH($E99,CONST_LIST_Goods,0),MATCH(AA$8,Parameters_Constants!$K$100:$AF$100,0))=FALSE)","v":false},{"$f":"IF(OR($D99=\"\",$D99=CONST_NA),FALSE,INDEX(Parameters_Constants!$K$101:$AF$118,MATCH($E99,CONST_LIST_Goods,0),MATCH(AB$8,Parameters_Constants!$K$100:$AF$100,0))=FALSE)","v":false},{"$f":"IF(OR($D99=\"\",$D99=CONST_NA),FALSE,INDEX(Parameters_Constants!$K$101:$AF$118,MATCH($E99,CONST_LIST_Goods,0),MATCH(AC$8,Parameters_Constants!$K$100:$AF$100,0))=FALSE)","v":false},{"$f":"IF(OR($D99=\"\",$D99=CONST_NA),FALSE,INDEX(Parameters_Constants!$K$101:$AF$118,MATCH($E99,CONST_LIST_Goods,0),MATCH(AD$8,Parameters_Constants!$K$100:$AF$100,0))=FALSE)","v":false},{"$f":"IF(OR($D99=\"\",$D99=CONST_NA),FALSE,INDEX(Parameters_Constants!$K$101:$AF$118,MATCH($E99,CONST_LIST_Goods,0),MATCH(AE$8,Parameters_Constants!$K$100:$AF$100,0))=FALSE)","v":false},{"$f":"IF(OR($D99=\"\",$D99=CONST_NA),FALSE,INDEX(Parameters_Constants!$K$101:$AF$118,MATCH($E99,CONST_LIST_Goods,0),MATCH(AF$8,Parameters_Constants!$K$100:$AF$100,0))=FALSE)","v":false},{"$f":"IF(OR($D99=\"\",$D99=CONST_NA),FALSE,INDEX(Parameters_Constants!$K$101:$AF$118,MATCH($E99,CONST_LIST_Goods,0),MATCH(AG$8,Parameters_Constants!$K$100:$AF$100,0))=FALSE)","v":false},{"$f":"IF(OR($D99=\"\",$D99=CONST_NA),FALSE,INDEX(Parameters_Constants!$K$101:$AF$118,MATCH($E99,CONST_LIST_Goods,0),MATCH(AH$8,Parameters_Constants!$K$100:$AF$100,0))=FALSE)","v":false},{"$f":"IF(OR($D99=\"\",$D99=CONST_NA),FALSE,INDEX(Parameters_Constants!$K$101:$AF$118,MATCH($E99,CONST_LIST_Goods,0),MATCH(AI$8,Parameters_Constants!$K$100:$AF$100,0))=FALSE)","v":false},{"$f":"IF(OR($D99=\"\",$D99=CONST_NA),FALSE,INDEX(Parameters_Constants!$K$101:$AF$118,MATCH($E99,CONST_LIST_Goods,0),MATCH(AJ$8,Parameters_Constants!$K$100:$AF$100,0))=FALSE)","v":false},{"$f":"IF(OR($D99=\"\",$D99=CONST_NA),FALSE,INDEX(Parameters_Constants!$K$101:$AF$118,MATCH($E99,CONST_LIST_Goods,0),MATCH(AK$8,Parameters_Constants!$K$100:$AF$100,0))=FALSE)","v":false}]
["ausblenden",null,91,null,null,false,null,false,{"$nulls":7},{"$f":"IF(OR($D100=\"\",$D100=CONST_NA),FALSE,INDEX(Parameters_Constants!$K$101:$AF$118,MATCH($E100,CONST_LIST_Goods,0),MATCH(P$8,Parameters_Constants!$K$100:$AF$100,0))=FALSE)","v":false},{"$f":"IF(OR($D100=\"\",$D100=CONST_NA),FALSE,INDEX(Parameters_Constants!$K$101:$AF$118,MATCH($E100,CONST_LIST_Goods,0),MATCH(Q$8,Parameters_Constants!$K$100:$AF$100,0))=FALSE)","v":false},{"$f":"IF(OR($D100=\"\",$D100=CONST_NA),FALSE,INDEX(Parameters_Constants!$K$101:$AF$118,MATCH($E100,CONST_LIST_Goods,0),MATCH(R$8,Parameters_Constants!$K$100:$AF$100,0))=FALSE)","v":false},{"$f":"IF(OR($D100=\"\",$D100=CONST_NA),FALSE,INDEX(Parameters_Constants!$K$101:$AF$118,MATCH($E100,CONST_LIST_Goods,0),MATCH(S$8,Parameters_Constants!$K$100:$AF$100,0))=FALSE)","v":false},{"$f":"IF(OR($D100=\"\",$D100=CONST_NA),FALSE,INDEX(Parameters_Constants!$K$101:$AF$118,MATCH($E100,CONST_LIST_Goods,0),MATCH(T$8,Parameters_Constants!$K$100:$AF$100,0))=FALSE)","v":false},{"$f":"IF(OR($D100=\"\",$D100=CONST_NA),FALSE,INDEX(Parameters_Constants!$K$101:$AF$118,MATCH($E100,CONST_LIST_Goods,0),MATCH(U$8,Parameters_Constants!$K$100:$AF$100,0))=FALSE)","v":false},{"$f":"IF(OR($D100=\"\",$D100=CONST_NA),FALSE,INDEX(Parameters_Constants!$K$101:$AF$118,MATCH($E100,CONST_LIST_Goods,0),MATCH(V$8,Parameters_Constants!$K$100:$AF$100,0))=FALSE)","v":false},{"$f":"IF(OR($D100=\"\",$D100=CONST_NA),FALSE,INDEX(Parameters_Constants!$K$101:$AF$118,MATCH($E100,CONST_LIST_Goods,0),MATCH(W$8,Parameters_Constants!$K$100:$AF$100,0))=FALSE)","v":false},{"$f":"IF(OR($D100=\"\",$D100=CONST_NA),FALSE,INDEX(Parameters_Constants!$K$101:$AF$118,MATCH($E100,CONST_LIST_Goods,0),MATCH(X$8,Parameters_Constants!$K$100:$AF$100,0))=FALSE)","v":false},{"$f":"IF(OR($D100=\"\",$D100=CONST_NA),FALSE,INDEX(Parameters_Constants!$K$101:$AF$118,MATCH($E100,CONST_LIST_Goods,0),MATCH(Y$8,Parameters_Constants!$K$100:$AF$100,0))=FALSE)","v":false},{"$f":"IF(OR($D100=\"\",$D100=CONST_NA),FALSE,INDEX(Parameters_Constants!$K$101:$AF$118,MATCH($E100,CONST_LIST_Goods,0),MATCH(Z$8,Parameters_Constants!$K$100:$AF$100,0))=FALSE)","v":false},{"$f":"IF(OR($D100=\"\",$D100=CONST_NA),FALSE,INDEX(Parameters_Constants!$K$101:$AF$118,MATCH($E100,CONST_LIST_Goods,0),MATCH(AA$8,Parameters_Constants!$K$100:$AF$100,0))=FALSE)","v":false},{"$f":"IF(OR($D100=\"\",$D100=CONST_NA),FALSE,INDEX(Parameters_Constants!$K$101:$AF$118,MATCH($E100,CONST_LIST_Goods,0),MATCH(AB$8,Parameters_Constants!$K$100:$AF$100,0))=FALSE)","v":false},{"$f":"IF(OR($D100=\"\",$D100=CONST_NA),FALSE,INDEX(Parameters_Constants!$K$101:$AF$118,MATCH($E100,CONST_LIST_Goods,0),MATCH(AC$8,Parameters_Constants!$K$100:$AF$100,0))=FALSE)","v":false},{"$f":"IF(OR($D100=\"\",$D100=CONST_NA),FALSE,INDEX(Parameters_Constants!$K$101:$AF$118,MATCH($E100,CONST_LIST_Goods,0),MATCH(AD$8,Parameters_Constants!$K$100:$AF$100,0))=FALSE)","v":false},{"$f":"IF(OR($D100=\"\",$D100=CONST_NA),FALSE,INDEX(Parameters_Constants!$K$101:$AF$118,MATCH($E100,CONST_LIST_Goods,0),MATCH(AE$8,Parameters_Constants!$K$100:$AF$100,0))=FALSE)","v":false},{"$f":"IF(OR($D100=\"\",$D100=CONST_NA),FALSE,INDEX(Parameters_Constants!$K$101:$AF$118,MATCH($E100,CONST_LIST_Goods,0),MATCH(AF$8,Parameters_Constants!$K$100:$AF$100,0))=FALSE)","v":false},{"$f":"IF(OR($D100=\"\",$D100=CONST_NA),FALSE,INDEX(Parameters_Constants!$K$101:$AF$118,MATCH($E100,CONST_LIST_Goods,0),MATCH(AG$8,Parameters_Constants!$K$100:$AF$100,0))=FALSE)","v":false},{"$f":"IF(OR($D100=\"\",$D100=CONST_NA),FALSE,INDEX(Parameters_Constants!$K$101:$AF$118,MATCH($E100,CONST_LIST_Goods,0),MATCH(AH$8,Parameters_Constants!$K$100:$AF$100,0))=FALSE)","v":false},{"$f":"IF(OR($D100=\"\",$D100=CONST_NA),FALSE,INDEX(Parameters_Constants!$K$101:$AF$118,MATCH($E100,CONST_LIST_Goods,0),MATCH(AI$8,Parameters_Constants!$K$100:$AF$100,0))=FALSE)","v":false},{"$f":"IF(OR($D100=\"\",$D100=CONST_NA),FALSE,INDEX(Parameters_Constants!$K$101:$AF$118,MATCH($E100,CONST_LIST_Goods,0),MATCH(AJ$8,Parameters_Constants!$K$100:$AF$100,0))=FALSE)","v":false},{"$f":"IF(OR($D100=\"\",$D100=CONST_NA),FALSE,INDEX(Parameters_Constants!$K$101:$AF$118,MATCH($E100,CONST_LIST_Goods,0),MATCH(AK$8,Parameters_Constants!$K$100:$AF$100,0))=FALSE)","v":false}]
["ausblenden",null,92,null,null,false,null,false,{"$nulls":7},{"$f":"IF(OR($D101=\"\",$D101=CONST_NA),FALSE,INDEX(Parameters_Constants!$K$101:$AF$118,MATCH($E101,CONST_LIST_Goods,0),MATCH(P$8,Parameters_Constants!$K$100:$AF$100,0))=FALSE)","v":false},{"$f":"IF(OR($D101=\"\",$D101=CONST_NA),FALSE,INDEX(Parameters_Constants!$K$101:$AF$118,MATCH($E101,CONST_LIST_Goods,0),MATCH(Q$8,Parameters_Constants!$K$100:$AF$100,0))=FALSE)","v":false},{"$f":"IF(OR($D101=\"\",$D101=CONST_NA),FALSE,INDEX(Parameters_Constants!$K$101:$AF$118,MATCH($E101,CONST_LIST_Goods,0),MATCH(R$8,Parameters_Constants!$K$100:$AF$100,0))=FALSE)","v":false},{"$f":"IF(OR($D101=\"\",$D101=CONST_NA),FALSE,INDEX(Parameters_Constants!$K$101:$AF$118,MATCH($E101,CONST_LIST_Goods,0),MATCH(S$8,Parameters_Constants!$K$100:$AF$100,0))=FALSE)","v":false},{"$f":"IF(OR($D101=\"\",$D101=CONST_NA),FALSE,INDEX(Parameters_Constants!$K$101:$AF$118,MATCH($E101,CONST_LIST_Goods,0),MATCH(T$8,Parameters_Constants!$K$100:$AF$100,0))=FALSE)","v":false},{"$f":"IF(OR($D101=\"\",$D101=CONST_NA),FALSE,INDEX(Parameters_Constants!$K$101:$AF$118,MATCH($E101,CONST_LIST_Goods,0),MATCH(U$8,Parameters_Constants!$K$100:$AF$100,0))=FALSE)","v":false},{"$f":"IF(OR($D101=\"\",$D101=CONST_NA),FALSE,INDEX(Parameters_Constants!$K$101:$AF$118,MATCH($E101,CONST_LIST_Goods,0),MATCH(V$8,Parameters_Constants!$K$100:$AF$100,0))=FALSE)","v":false},{"$f":"IF(OR($D101=\"\",$D101=CONST_NA),FALSE,INDEX(Parameters_Constants!$K$101:$AF$118,MATCH($E101,CONST_LIST_Goods,0),MATCH(W$8,Parameters_Constants!$K$100:$AF$100,0))=FALSE)","v":false},{"$f":"IF(OR($D101=\"\",$D101=CONST_NA),FALSE,INDEX(Parameters_Constants!$K$101:$AF$118,MATCH($E101,CONST_LIST_Goods,0),MATCH(X$8,Parameters_Constants!$K$100:$AF$100,0))=FALSE)","v":false},{"$f":"IF(OR($D101=\"\",$D101=CONST_NA),FALSE,INDEX(Parameters_Constants!$K$101:$AF$118,MATCH($E101,CONST_LIST_Goods,0),MATCH(Y$8,Parameters_Constants!$K$100:$AF$100,0))=FALSE)","v":false},{"$f":"IF(OR($D101=\"\",$D101=CONST_NA),FALSE,INDEX(Parameters_Constants!$K$101:$AF$118,MATCH($E101,CONST_LIST_Goods,0),MATCH(Z$8,Parameters_Constants!$K$100:$AF$100,0))=FALSE)","v":false},{"$f":"IF(OR($D101=\"\",$D101=CONST_NA),FALSE,INDEX(Parameters_Constants!$K$101:$AF$118,MATCH($E101,CONST_LIST_Goods,0),MATCH(AA$8,Parameters_Constants!$K$100:$AF$100,0))=FALSE)","v":false},{"$f":"IF(OR($D101=\"\",$D101=CONST_NA),FALSE,INDEX(Parameters_Constants!$K$101:$AF$118,MATCH($E101,CONST_LIST_Goods,0),MATCH(AB$8,Parameters_Constants!$K$100:$AF$100,0))=FALSE)","v":false},{"$f":"IF(OR($D101=\"\",$D101=CONST_NA),FALSE,INDEX(Parameters_Constants!$K$101:$AF$118,MATCH($E101,CONST_LIST_Goods,0),MATCH(AC$8,Parameters_Constants!$K$100:$AF$100,0))=FALSE)","v":false},{"$f":"IF(OR($D101=\"\",$D101=CONST_NA),FALSE,INDEX(Parameters_Constants!$K$101:$AF$118,MATCH($E101,CONST_LIST_Goods,0),MATCH(AD$8,Parameters_Constants!$K$100:$AF$100,0))=FALSE)","v":false},{"$f":"IF(OR($D101=\"\",$D101=CONST_NA),FALSE,INDEX(Parameters_Constants!$K$101:$AF$118,MATCH($E101,CONST_LIST_Goods,0),MATCH(AE$8,Parameters_Constants!$K$100:$AF$100,0))=FALSE)","v":false},{"$f":"IF(OR($D101=\"\",$D101=CONST_NA),FALSE,INDEX(Parameters_Constants!$K$101:$AF$118,MATCH($E101,CONST_LIST_Goods,0),MATCH(AF$8,Parameters_Constants!$K$100:$AF$100,0))=FALSE)","v":false},{"$f":"IF(OR($D101=\"\",$D101=CONST_NA),FALSE,INDEX(Parameters_Constants!$K$101:$AF$118,MATCH($E101,CONST_LIST_Goods,0),MATCH(AG$8,Parameters_Constants!$K$100:$AF$100,0))=FALSE)","v":false},{"$f":"IF(OR($D101=\"\",$D101=CONST_NA),FALSE,INDEX(Parameters_Constants!$K$101:$AF$118,MATCH($E101,CONST_LIST_Goods,0),MATCH(AH$8,Parameters_Constants!$K$100:$AF$100,0))=FALSE)","v":false},{"$f":"IF(OR($D101=\"\",$D101=CONST_NA),FALSE,INDEX(Parameters_Constants!$K$101:$AF$118,MATCH($E101,CONST_LIST_Goods,0),MATCH(AI$8,Parameters_Constants!$K$100:$AF$100,0))=FALSE)","v":false},{"$f":"IF(OR($D101=\"\",$D101=CONST_NA),FALSE,INDEX(Parameters_Constants!$K$101:$AF$118,MATCH($E101,CONST_LIST_Goods,0),MATCH(AJ$8,Parameters_Constants!$K$100:$AF$100,0))=FALSE)","v":false},{"$f":"IF(OR($D101=\"\",$D101=CONST_NA),FALSE,INDEX(Parameters_Constants!$K$101:$AF$118,MATCH($E101,CONST_LIST_Goods,0),MATCH(AK$8,Parameters_Constants!$K$100:$AF$100,0))=FALSE)","v":false}]
["ausblenden",null,93,null,null,false,null,false,{"$nulls":7},{"$f":"IF(OR($D102=\"\",$D102=CONST_NA),FALSE,INDEX(Parameters_Constants!$K$101:$AF$118,MATCH($E102,CONST_LIST_Goods,0),MATCH(P$8,Parameters_Constants!$K$100:$AF$100,0))=FALSE)","v":false},{"$f":"IF(OR($D102=\"\",$D102=CONST_NA),FALSE,INDEX(Parameters_Constants!$K$101:$AF$118,MATCH($E102,CONST_LIST_Goods,0),MATCH(Q$8,Parameters_Constants!$K$100:$AF$100,0))=FALSE)","v":false},{"$f":"IF(OR($D102=\"\",$D102=CONST_NA),FALSE,INDEX(Parameters_Constants!$K$101:$AF$118,MATCH($E102,CONST_LIST_Goods,0),MATCH(R$8,Parameters_Constants!$K$100:$AF$100,0))=FALSE)","v":false},{"$f":"IF(OR($D102=\"\",$D102=CONST_NA),FALSE,INDEX(Parameters_Constants!$K$101:$AF$118,MATCH($E102,CONST_LIST_Goods,0),MATCH(S$8,Parameters_Constants!$K$100:$AF$100,0))=FALSE)","v":false},{"$f":"IF(OR($D102=\"\",$D102=CONST_NA),FALSE,INDEX(Parameters_Constants!$K$101:$AF$118,MATCH($E102,CONST_LIST_Goods,0),MATCH(T$8,Parameters_Constants!$K$100:$AF$100,0))=FALSE)","v":false},{"$f":"IF(OR($D102=\"\",$D102=CONST_NA),FALSE,INDEX(Parameters_Constants!$K$101:$AF$118,MATCH($E102,CONST_LIST_Goods,0),MATCH(U$8,Parameters_Constants!$K$100:$AF$100,0))=FALSE)","v":false},{"$f":"IF(OR($D102=\"\",$D102=CONST_NA),FALSE,INDEX(Parameters_Constants!$K$101:$AF$118,MATCH($E102,CONST_LIST_Goods,0),MATCH(V$8,Parameters_Constants!$K$100:$AF$100,0))=FALSE)","v":false},{"$f":"IF(OR($D102=\"\",$D102=CONST_NA),FALSE,INDEX(Parameters_Constants!$K$101:$AF$118,MATCH($E102,CONST_LIST_Goods,0),MATCH(W$8,Parameters_Constants!$K$100:$AF$100,0))=FALSE)","v":false},{"$f":"IF(OR($D102=\"\",$D102=CONST_NA),FALSE,INDEX(Parameters_Constants!$K$101:$AF$118,MATCH($E102,CONST_LIST_Goods,0),MATCH(X$8,Parameters_Constants!$K$100:$AF$100,0))=FALSE)","v":false},{"$f":"IF(OR($D102=\"\",$D102=CONST_NA),FALSE,INDEX(Parameters_Constants!$K$101:$AF$118,MATCH($E102,CONST_LIST_Goods,0),MATCH(Y$8,Parameters_Constants!$K$100:$AF$100,0))=FALSE)","v":false},{"$f":"IF(OR($D102=\"\",$D102=CONST_NA),FALSE,INDEX(Parameters_Constants!$K$101:$AF$118,MATCH($E102,CONST_LIST_Goods,0),MATCH(Z$8,Parameters_Constants!$K$100:$AF$100,0))=FALSE)","v":false},{"$f":"IF(OR($D102=\"\",$D102=CONST_NA),FALSE,INDEX(Parameters_Constants!$K$101:$AF$118,MATCH($E102,CONST_LIST_Goods,0),MATCH(AA$8,Parameters_Constants!$K$100:$AF$100,0))=FALSE)","v":false},{"$f":"IF(OR($D102=\"\",$D102=CONST_NA),FALSE,INDEX(Parameters_Constants!$K$101:$AF$118,MATCH($E102,CONST_LIST_Goods,0),MATCH(AB$8,Parameters_Constants!$K$100:$AF$100,0))=FALSE)","v":false},{"$f":"IF(OR($D102=\"\",$D102=CONST_NA),FALSE,INDEX(Parameters_Constants!$K$101:$AF$118,MATCH($E102,CONST_LIST_Goods,0),MATCH(AC$8,Parameters_Constants!$K$100:$AF$100,0))=FALSE)","v":false},{"$f":"IF(OR($D102=\"\",$D102=CONST_NA),FALSE,INDEX(Parameters_Constants!$K$101:$AF$118,MATCH($E102,CONST_LIST_Goods,0),MATCH(AD$8,Parameters_Constants!$K$100:$AF$100,0))=FALSE)","v":false},{"$f":"IF(OR($D102=\"\",$D102=CONST_NA),FALSE,INDEX(Parameters_Constants!$K$101:$AF$118,MATCH($E102,CONST_LIST_Goods,0),MATCH(AE$8,Parameters_Constants!$K$100:$AF$100,0))=FALSE)","v":false},{"$f":"IF(OR($D102=\"\",$D102=CONST_NA),FALSE,INDEX(Parameters_Constants!$K$101:$AF$118,MATCH($E102,CONST_LIST_Goods,0),MATCH(AF$8,Parameters_Constants!$K$100:$AF$100,0))=FALSE)","v":false},{"$f":"IF(OR($D102=\"\",$D102=CONST_NA),FALSE,INDEX(Parameters_Constants!$K$101:$AF$118,MATCH($E102,CONST_LIST_Goods,0),MATCH(AG$8,Parameters_Constants!$K$100:$AF$100,0))=FALSE)","v":false},{"$f":"IF(OR($D102=\"\",$D102=CONST_NA),FALSE,INDEX(Parameters_Constants!$K$101:$AF$118,MATCH($E102,CONST_LIST_Goods,0),MATCH(AH$8,Parameters_Constants!$K$100:$AF$100,0))=FALSE)","v":false},{"$f":"IF(OR($D102=\"\",$D102=CONST_NA),FALSE,INDEX(Parameters_Constants!$K$101:$AF$118,MATCH($E102,CONST_LIST_Goods,0),MATCH(AI$8,Parameters_Constants!$K$100:$AF$100,0))=FALSE)","v":false},{"$f":"IF(OR($D102=\"\",$D102=CONST_NA),FALSE,INDEX(Parameters_Constants!$K$101:$AF$118,MATCH($E102,CONST_LIST_Goods,0),MATCH(AJ$8,Parameters_Constants!$K$100:$AF$100,0))=FALSE)","v":false},{"$f":"IF(OR($D102=\"\",$D102=CONST_NA),FALSE,INDEX(Parameters_Constants!$K$101:$AF$118,MATCH($E102,CONST_LIST_Goods,0),MATCH(AK$8,Parameters_Constants!$K$100:$AF$100,0))=FALSE)","v":false}]
["ausblenden",null,94,null,null,false,null,false,{"$nulls":7},{"$f":"IF(OR($D103=\"\",$D103=CONST_NA),FALSE,INDEX(Parameters_Constants!$K$101:$AF$118,MATCH($E103,CONST_LIST_Goods,0),MATCH(P$8,Parameters_Constants!$K$100:$AF$100,0))=FALSE)","v":false},{"$f":"IF(OR($D103=\"\",$D103=CONST_NA),FALSE,INDEX(Parameters_Constants!$K$101:$AF$118,MATCH($E103,CONST_LIST_Goods,0),MATCH(Q$8,Parameters_Constants!$K$100:$AF$100,0))=FALSE)","v":false},{"$f":"IF(OR($D103=\"\",$D103=CONST_NA),FALSE,INDEX(Parameters_Constants!$K$101:$AF$118,MATCH($E103,CONST_LIST_Goods,0),MATCH(R$8,Parameters_Constants!$K$100:$AF$100,0))=FALSE)","v":false},{"$f":"IF(OR($D103=\"\",$D103=CONST_NA),FALSE,INDEX(Parameters_Constants!$K$101:$AF$118,MATCH($E103,CONST_LIST_Goods,0),MATCH(S$8,Parameters_Constants!$K$100:$AF$100,0))=FALSE)","v":false},{"$f":"IF(OR($D103=\"\",$D103=CONST_NA),FALSE,INDEX(Parameters_Constants!$K$101:$AF$118,MATCH($E103,CONST_LIST_Goods,0),MATCH(T$8,Parameters_Constants!$K$100:$AF$100,0))=FALSE)","v":false},{"$f":"IF(OR($D103=\"\",$D103=CONST_NA),FALSE,INDEX(Parameters_Constants!$K$101:$AF$118,MATCH($E103,CONST_LIST_Goods,0),MATCH(U$8,Parameters_Constants!$K$100:$AF$100,0))=FALSE)","v":false},{"$f":"IF(OR($D103=\"\",$D103=CONST_NA),FALSE,INDEX(Parameters_Constants!$K$101:$AF$118,MATCH($E103,CONST_LIST_Goods,0),MATCH(V$8,Parameters_Constants!$K$100:$AF$100,0))=FALSE)","v":false},{"$f":"IF(OR($D103=\"\",$D103=CONST_NA),FALSE,INDEX(Parameters_Constants!$K$101:$AF$118,MATCH($E103,CONST_LIST_Goods,0),MATCH(W$8,Parameters_Constants!$K$100:$AF$100,0))=FALSE)","v":false},{"$f":"IF(OR($D103=\"\",$D103=CONST_NA),FALSE,INDEX(Parameters_Constants!$K$101:$AF$118,MATCH($E103,CONST_LIST_Goods,0),MATCH(X$8,Parameters_Constants!$K$100:$AF$100,0))=FALSE)","v":false},{"$f":"IF(OR($D103=\"\",$D103=CONST_NA),FALSE,INDEX(Parameters_Constants!$K$101:$AF$118,MATCH($E103,CONST_LIST_Goods,0),MATCH(Y$8,Parameters_Constants!$K$100:$AF$100,0))=FALSE)","v":false},{"$f":"IF(OR($D103=\"\",$D103=CONST_NA),FALSE,INDEX(Parameters_Constants!$K$101:$AF$118,MATCH($E103,CONST_LIST_Goods,0),MATCH(Z$8,Parameters_Constants!$K$100:$AF$100,0))=FALSE)","v":false},{"$f":"IF(OR($D103=\"\",$D103=CONST_NA),FALSE,INDEX(Parameters_Constants!$K$101:$AF$118,MATCH($E103,CONST_LIST_Goods,0),MATCH(AA$8,Parameters_Constants!$K$100:$AF$100,0))=FALSE)","v":false},{"$f":"IF(OR($D103=\"\",$D103=CONST_NA),FALSE,INDEX(Parameters_Constants!$K$101:$AF$118,MATCH($E103,CONST_LIST_Goods,0),MATCH(AB$8,Parameters_Constants!$K$100:$AF$100,0))=FALSE)","v":false},{"$f":"IF(OR($D103=\"\",$D103=CONST_NA),FALSE,INDEX(Parameters_Constants!$K$101:$AF$118,MATCH($E103,CONST_LIST_Goods,0),MATCH(AC$8,Parameters_Constants!$K$100:$AF$100,0))=FALSE)","v":false},{"$f":"IF(OR($D103=\"\",$D103=CONST_NA),FALSE,INDEX(Parameters_Constants!$K$101:$AF$118,MATCH($E103,CONST_LIST_Goods,0),MATCH(AD$8,Parameters_Constants!$K$100:$AF$100,0))=FALSE)","v":false},{"$f":"IF(OR($D103=\"\",$D103=CONST_NA),FALSE,INDEX(Parameters_Constants!$K$101:$AF$118,MATCH($E103,CONST_LIST_Goods,0),MATCH(AE$8,Parameters_Constants!$K$100:$AF$100,0))=FALSE)","v":false},{"$f":"IF(OR($D103=\"\",$D103=CONST_NA),FALSE,INDEX(Parameters_Constants!$K$101:$AF$118,MATCH($E103,CONST_LIST_Goods,0),MATCH(AF$8,Parameters_Constants!$K$100:$AF$100,0))=FALSE)","v":false},{"$f":"IF(OR($D103=\"\",$D103=CONST_NA),FALSE,INDEX(Parameters_Constants!$K$101:$AF$118,MATCH($E103,CONST_LIST_Goods,0),MATCH(AG$8,Parameters_Constants!$K$100:$AF$100,0))=FALSE)","v":false},{"$f":"IF(OR($D103=\"\",$D103=CONST_NA),FALSE,INDEX(Parameters_Constants!$K$101:$AF$118,MATCH($E103,CONST_LIST_Goods,0),MATCH(AH$8,Parameters_Constants!$K$100:$AF$100,0))=FALSE)","v":false},{"$f":"IF(OR($D103=\"\",$D103=CONST_NA),FALSE,INDEX(Parameters_Constants!$K$101:$AF$118,MATCH($E103,CONST_LIST_Goods,0),MATCH(AI$8,Parameters_Constants!$K$100:$AF$100,0))=FALSE)","v":false},{"$f":"IF(OR($D103=\"\",$D103=CONST_NA),FALSE,INDEX(Parameters_Constants!$K$101:$AF$118,MATCH($E103,CONST_LIST_Goods,0),MATCH(AJ$8,Parameters_Constants!$K$100:$AF$100,0))=FALSE)","v":false},{"$f":"IF(OR($D103=\"\",$D103=CONST_NA),FALSE,INDEX(Parameters_Constants!$K$101:$AF$118,MATCH($E103,CONST_LIST_Goods,0),MATCH(AK$8,Parameters_Constants!$K$100:$AF$100,0))=FALSE)","v":false}]
["ausblenden",null,95,null,null,false,null,false,{"$nulls":7},{"$f":"IF(OR($D104=\"\",$D104=CONST_NA),FALSE,INDEX(Parameters_Constants!$K$101:$AF$118,MATCH($E104,CONST_LIST_Goods,0),MATCH(P$8,Parameters_Constants!$K$100:$AF$100,0))=FALSE)","v":false},{"$f":"IF(OR($D104=\"\",$D104=CONST_NA),FALSE,INDEX(Parameters_Constants!$K$101:$AF$118,MATCH($E104,CONST_LIST_Goods,0),MATCH(Q$8,Parameters_Constants!$K$100:$AF$100,0))=FALSE)","v":false},{"$f":"IF(OR($D104=\"\",$D104=CONST_NA),FALSE,INDEX(Parameters_Constants!$K$101:$AF$118,MATCH($E104,CONST_LIST_Goods,0),MATCH(R$8,Parameters_Constants!$K$100:$AF$100,0))=FALSE)","v":false},{"$f":"IF(OR($D104=\"\",$D104=CONST_NA),FALSE,INDEX(Parameters_Constants!$K$101:$AF$118,MATCH($E104,CONST_LIST_Goods,0),MATCH(S$8,Parameters_Constants!$K$100:$AF$100,0))=FALSE)","v":false},{"$f":"IF(OR($D104=\"\",$D104=CONST_NA),FALSE,INDEX(Parameters_Constants!$K$101:$AF$118,MATCH($E104,CONST_LIST_Goods,0),MATCH(T$8,Parameters_Constants!$K$100:$AF$100,0))=FALSE)","v":false},{"$f":"IF(OR($D104=\"\",$D104=CONST_NA),FALSE,INDEX(Parameters_Constants!$K$101:$AF$118,MATCH($E104,CONST_LIST_Goods,0),MATCH(U$8,Parameters_Constants!$K$100:$AF$100,0))=FALSE)","v":false},{"$f":"IF(OR($D104=\"\",$D104=CONST_NA),FALSE,INDEX(Parameters_Constants!$K$101:$AF$118,MATCH($E104,CONST_LIST_Goods,0),MATCH(V$8,Parameters_Constants!$K$100:$AF$100,0))=FALSE)","v":false},{"$f":"IF(OR($D104=\"\",$D104=CONST_NA),FALSE,INDEX(Parameters_Constants!$K$101:$AF$118,MATCH($E104,CONST_LIST_Goods,0),MATCH(W$8,Parameters_Constants!$K$100:$AF$100,0))=FALSE)","v":false},{"$f":"IF(OR($D104=\"\",$D104=CONST_NA),FALSE,INDEX(Parameters_Constants!$K$101:$AF$118,MATCH($E104,CONST_LIST_Goods,0),MATCH(X$8,Parameters_Constants!$K$100:$AF$100,0))=FALSE)","v":false},{"$f":"IF(OR($D104=\"\",$D104=CONST_NA),FALSE,INDEX(Parameters_Constants!$K$101:$AF$118,MATCH($E104,CONST_LIST_Goods,0),MATCH(Y$8,Parameters_Constants!$K$100:$AF$100,0))=FALSE)","v":false},{"$f":"IF(OR($D104=\"\",$D104=CONST_NA),FALSE,INDEX(Parameters_Constants!$K$101:$AF$118,MATCH($E104,CONST_LIST_Goods,0),MATCH(Z$8,Parameters_Constants!$K$100:$AF$100,0))=FALSE)","v":false},{"$f":"IF(OR($D104=\"\",$D104=CONST_NA),FALSE,INDEX(Parameters_Constants!$K$101:$AF$118,MATCH($E104,CONST_LIST_Goods,0),MATCH(AA$8,Parameters_Constants!$K$100:$AF$100,0))=FALSE)","v":false},{"$f":"IF(OR($D104=\"\",$D104=CONST_NA),FALSE,INDEX(Parameters_Constants!$K$101:$AF$118,MATCH($E104,CONST_LIST_Goods,0),MATCH(AB$8,Parameters_Constants!$K$100:$AF$100,0))=FALSE)","v":false},{"$f":"IF(OR($D104=\"\",$D104=CONST_NA),FALSE,INDEX(Parameters_Constants!$K$101:$AF$118,MATCH($E104,CONST_LIST_Goods,0),MATCH(AC$8,Parameters_Constants!$K$100:$AF$100,0))=FALSE)","v":false},{"$f":"IF(OR($D104=\"\",$D104=CONST_NA),FALSE,INDEX(Parameters_Constants!$K$101:$AF$118,MATCH($E104,CONST_LIST_Goods,0),MATCH(AD$8,Parameters_Constants!$K$100:$AF$100,0))=FALSE)","v":false},{"$f":"IF(OR($D104=\"\",$D104=CONST_NA),FALSE,INDEX(Parameters_Constants!$K$101:$AF$118,MATCH($E104,CONST_LIST_Goods,0),MATCH(AE$8,Parameters_Constants!$K$100:$AF$100,0))=FALSE)","v":false},{"$f":"IF(OR($D104=\"\",$D104=CONST_NA),FALSE,INDEX(Parameters_Constants!$K$101:$AF$118,MATCH($E104,CONST_LIST_Goods,0),MATCH(AF$8,Parameters_Constants!$K$100:$AF$100,0))=FALSE)","v":false},{"$f":"IF(OR($D104=\"\",$D104=CONST_NA),FALSE,INDEX(Parameters_Constants!$K$101:$AF$118,MATCH($E104,CONST_LIST_Goods,0),MATCH(AG$8,Parameters_Constants!$K$100:$AF$100,0))=FALSE)","v":false},{"$f":"IF(OR($D104=\"\",$D104=CONST_NA),FALSE,INDEX(Parameters_Constants!$K$101:$AF$118,MATCH($E104,CONST_LIST_Goods,0),MATCH(AH$8,Parameters_Constants!$K$100:$AF$100,0))=FALSE)","v":false},{"$f":"IF(OR($D104=\"\",$D104=CONST_NA),FALSE,INDEX(Parameters_Constants!$K$101:$AF$118,MATCH($E104,CONST_LIST_Goods,0),MATCH(AI$8,Parameters_Constants!$K$100:$AF$100,0))=FALSE)","v":false},{"$f":"IF(OR($D104=\"\",$D104=CONST_NA),FALSE,INDEX(Parameters_Constants!$K$101:$AF$118,MATCH($E104,CONST_LIST_Goods,0),MATCH(AJ$8,Parameters_Constants!$K$100:$AF$100,0))=FALSE)","v":false},{"$f":"IF(OR($D104=\"\",$D104=CONST_NA),FALSE,INDEX(Parameters_Constants!$K$101:$AF$118,MATCH($E104,CONST_LIST_Goods,0),MATCH(AK$8,Parameters_Constants!$K$100:$AF$100,0))=FALSE)","v":false}]
["ausblenden",null,96,null,null,false,null,false,{"$nulls":7},{"$f":"IF(OR($D105=\"\",$D105=CONST_NA),FALSE,INDEX(Parameters_Constants!$K$101:$AF$118,MATCH($E105,CONST_LIST_Goods,0),MATCH(P$8,Parameters_Constants!$K$100:$AF$100,0))=FALSE)","v":false},{"$f":"IF(OR($D105=\"\",$D105=CONST_NA),FALSE,INDEX(Parameters_Constants!$K$101:$AF$118,MATCH($E105,CONST_LIST_Goods,0),MATCH(Q$8,Parameters_Constants!$K$100:$AF$100,0))=FALSE)","v":false},{"$f":"IF(OR($D105=\"\",$D105=CONST_NA),FALSE,INDEX(Parameters_Constants!$K$101:$AF$118,MATCH($E105,CONST_LIST_Goods,0),MATCH(R$8,Parameters_Constants!$K$100:$AF$100,0))=FALSE)","v":false},{"$f":"IF(OR($D105=\"\",$D105=CONST_NA),FALSE,INDEX(Parameters_Constants!$K$101:$AF$118,MATCH($E105,CONST_LIST_Goods,0),MATCH(S$8,Parameters_Constants!$K$100:$AF$100,0))=FALSE)","v":false},{"$f":"IF(OR($D105=\"\",$D105=CONST_NA),FALSE,INDEX(Parameters_Constants!$K$101:$AF$118,MATCH($E105,CONST_LIST_Goods,0),MATCH(T$8,Parameters_Constants!$K$100:$AF$100,0))=FALSE)","v":false},{"$f":"IF(OR($D105=\"\",$D105=CONST_NA),FALSE,INDEX(Parameters_Constants!$K$101:$AF$118,MATCH($E105,CONST_LIST_Goods,0),MATCH(U$8,Parameters_Constants!$K$100:$AF$100,0))=FALSE)","v":false},{"$f":"IF(OR($D105=\"\",$D105=CONST_NA),FALSE,INDEX(Parameters_Constants!$K$101:$AF$118,MATCH($E105,CONST_LIST_Goods,0),MATCH(V$8,Parameters_Constants!$K$100:$AF$100,0))=FALSE)","v":false},{"$f":"IF(OR($D105=\"\",$D105=CONST_NA),FALSE,INDEX(Parameters_Constants!$K$101:$AF$118,MATCH($E105,CONST_LIST_Goods,0),MATCH(W$8,Parameters_Constants!$K$100:$AF$100,0))=FALSE)","v":false},{"$f":"IF(OR($D105=\"\",$D105=CONST_NA),FALSE,INDEX(Parameters_Constants!$K$101:$AF$118,MATCH($E105,CONST_LIST_Goods,0),MATCH(X$8,Parameters_Constants!$K$100:$AF$100,0))=FALSE)","v":false},{"$f":"IF(OR($D105=\"\",$D105=CONST_NA),FALSE,INDEX(Parameters_Constants!$K$101:$AF$118,MATCH($E105,CONST_LIST_Goods,0),MATCH(Y$8,Parameters_Constants!$K$100:$AF$100,0))=FALSE)","v":false},{"$f":"IF(OR($D105=\"\",$D105=CONST_NA),FALSE,INDEX(Parameters_Constants!$K$101:$AF$118,MATCH($E105,CONST_LIST_Goods,0),MATCH(Z$8,Parameters_Constants!$K$100:$AF$100,0))=FALSE)","v":false},{"$f":"IF(OR($D105=\"\",$D105=CONST_NA),FALSE,INDEX(Parameters_Constants!$K$101:$AF$118,MATCH($E105,CONST_LIST_Goods,0),MATCH(AA$8,Parameters_Constants!$K$100:$AF$100,0))=FALSE)","v":false},{"$f":"IF(OR($D105=\"\",$D105=CONST_NA),FALSE,INDEX(Parameters_Constants!$K$101:$AF$118,MATCH($E105,CONST_LIST_Goods,0),MATCH(AB$8,Parameters_Constants!$K$100:$AF$100,0))=FALSE)","v":false},{"$f":"IF(OR($D105=\"\",$D105=CONST_NA),FALSE,INDEX(Parameters_Constants!$K$101:$AF$118,MATCH($E105,CONST_LIST_Goods,0),MATCH(AC$8,Parameters_Constants!$K$100:$AF$100,0))=FALSE)","v":false},{"$f":"IF(OR($D105=\"\",$D105=CONST_NA),FALSE,INDEX(Parameters_Constants!$K$101:$AF$118,MATCH($E105,CONST_LIST_Goods,0),MATCH(AD$8,Parameters_Constants!$K$100:$AF$100,0))=FALSE)","v":false},{"$f":"IF(OR($D105=\"\",$D105=CONST_NA),FALSE,INDEX(Parameters_Constants!$K$101:$AF$118,MATCH($E105,CONST_LIST_Goods,0),MATCH(AE$8,Parameters_Constants!$K$100:$AF$100,0))=FALSE)","v":false},{"$f":"IF(OR($D105=\"\",$D105=CONST_NA),FALSE,INDEX(Parameters_Constants!$K$101:$AF$118,MATCH($E105,CONST_LIST_Goods,0),MATCH(AF$8,Parameters_Constants!$K$100:$AF$100,0))=FALSE)","v":false},{"$f":"IF(OR($D105=\"\",$D105=CONST_NA),FALSE,INDEX(Parameters_Constants!$K$101:$AF$118,MATCH($E105,CONST_LIST_Goods,0),MATCH(AG$8,Parameters_Constants!$K$100:$AF$100,0))=FALSE)","v":false},{"$f":"IF(OR($D105=\"\",$D105=CONST_NA),FALSE,INDEX(Parameters_Constants!$K$101:$AF$118,MATCH($E105,CONST_LIST_Goods,0),MATCH(AH$8,Parameters_Constants!$K$100:$AF$100,0))=FALSE)","v":false},{"$f":"IF(OR($D105=\"\",$D105=CONST_NA),FALSE,INDEX(Parameters_Constants!$K$101:$AF$118,MATCH($E105,CONST_LIST_Goods,0),MATCH(AI$8,Parameters_Constants!$K$100:$AF$100,0))=FALSE)","v":false},{"$f":"IF(OR($D105=\"\",$D105=CONST_NA),FALSE,INDEX(Parameters_Constants!$K$101:$AF$118,MATCH($E105,CONST_LIST_Goods,0),MATCH(AJ$8,Parameters_Constants!$K$100:$AF$100,0))=FALSE)","v":false},{"$f":"IF(OR($D105=\"\",$D105=CONST_NA),FALSE,INDEX(Parameters_Constants!$K$101:$AF$118,MATCH($E105,CONST_LIST_Goods,0),MATCH(AK$8,Parameters_Constants!$K$100:$AF$100,0))=FALSE)","v":false}]
["ausblenden",null,97,null,null,false,null,false,{"$nulls":7},{"$f":"IF(OR($D106=\"\",$D106=CONST_NA),FALSE,INDEX(Parameters_Constants!$K$101:$AF$118,MATCH($E106,CONST_LIST_Goods,0),MATCH(P$8,Parameters_Constants!$K$100:$AF$100,0))=FALSE)","v":false},{"$f":"IF(OR($D106=\"\",$D106=CONST_NA),FALSE,INDEX(Parameters_Constants!$K$101:$AF$118,MATCH($E106,CONST_LIST_Goods,0),MATCH(Q$8,Parameters_Constants!$K$100:$AF$100,0))=FALSE)","v":false},{"$f":"IF(OR($D106=\"\",$D106=CONST_NA),FALSE,INDEX(Parameters_Constants!$K$101:$AF$118,MATCH($E106,CONST_LIST_Goods,0),MATCH(R$8,Parameters_Constants!$K$100:$AF$100,0))=FALSE)","v":false},{"$f":"IF(OR($D106=\"\",$D106=CONST_NA),FALSE,INDEX(Parameters_Constants!$K$101:$AF$118,MATCH($E106,CONST_LIST_Goods,0),MATCH(S$8,Parameters_Constants!$K$100:$AF$100,0))=FALSE)","v":false},{"$f":"IF(OR($D106=\"\",$D106=CONST_NA),FALSE,INDEX(Parameters_Constants!$K$101:$AF$118,MATCH($E106,CONST_LIST_Goods,0),MATCH(T$8,Parameters_Constants!$K$100:$AF$100,0))=FALSE)","v":false},{"$f":"IF(OR($D106=\"\",$D106=CONST_NA),FALSE,INDEX(Parameters_Constants!$K$101:$AF$118,MATCH($E106,CONST_LIST_Goods,0),MATCH(U$8,Parameters_Constants!$K$100:$AF$100,0))=FALSE)","v":false},{"$f":"IF(OR($D106=\"\",$D106=CONST_NA),FALSE,INDEX(Parameters_Constants!$K$101:$AF$118,MATCH($E106,CONST_LIST_Goods,0),MATCH(V$8,Parameters_Constants!$K$100:$AF$100,0))=FALSE)","v":false},{"$f":"IF(OR($D106=\"\",$D106=CONST_NA),FALSE,INDEX(Parameters_Constants!$K$101:$AF$118,MATCH($E106,CONST_LIST_Goods,0),MATCH(W$8,Parameters_Constants!$K$100:$AF$100,0))=FALSE)","v":false},{"$f":"IF(OR($D106=\"\",$D106=CONST_NA),FALSE,INDEX(Parameters_Constants!$K$101:$AF$118,MATCH($E106,CONST_LIST_Goods,0),MATCH(X$8,Parameters_Constants!$K$100:$AF$100,0))=FALSE)","v":false},{"$f":"IF(OR($D106=\"\",$D106=CONST_NA),FALSE,INDEX(Parameters_Constants!$K$101:$AF$118,MATCH($E106,CONST_LIST_Goods,0),MATCH(Y$8,Parameters_Constants!$K$100:$AF$100,0))=FALSE)","v":false},{"$f":"IF(OR($D106=\"\",$D106=CONST_NA),FALSE,INDEX(Parameters_Constants!$K$101:$AF$118,MATCH($E106,CONST_LIST_Goods,0),MATCH(Z$8,Parameters_Constants!$K$100:$AF$100,0))=FALSE)","v":false},{"$f":"IF(OR($D106=\"\",$D106=CONST_NA),FALSE,INDEX(Parameters_Constants!$K$101:$AF$118,MATCH($E106,CONST_LIST_Goods,0),MATCH(AA$8,Parameters_Constants!$K$100:$AF$100,0))=FALSE)","v":false},{"$f":"IF(OR($D106=\"\",$D106=CONST_NA),FALSE,INDEX(Parameters_Constants!$K$101:$AF$118,MATCH($E106,CONST_LIST_Goods,0),MATCH(AB$8,Parameters_Constants!$K$100:$AF$100,0))=FALSE)","v":false},{"$f":"IF(OR($D106=\"\",$D106=CONST_NA),FALSE,INDEX(Parameters_Constants!$K$101:$AF$118,MATCH($E106,CONST_LIST_Goods,0),MATCH(AC$8,Parameters_Constants!$K$100:$AF$100,0))=FALSE)","v":false},{"$f":"IF(OR($D106=\"\",$D106=CONST_NA),FALSE,INDEX(Parameters_Constants!$K$101:$AF$118,MATCH($E106,CONST_LIST_Goods,0),MATCH(AD$8,Parameters_Constants!$K$100:$AF$100,0))=FALSE)","v":false},{"$f":"IF(OR($D106=\"\",$D106=CONST_NA),FALSE,INDEX(Parameters_Constants!$K$101:$AF$118,MATCH($E106,CONST_LIST_Goods,0),MATCH(AE$8,Parameters_Constants!$K$100:$AF$100,0))=FALSE)","v":false},{"$f":"IF(OR($D106=\"\",$D106=CONST_NA),FALSE,INDEX(Parameters_Constants!$K$101:$AF$118,MATCH($E106,CONST_LIST_Goods,0),MATCH(AF$8,Parameters_Constants!$K$100:$AF$100,0))=FALSE)","v":false},{"$f":"IF(OR($D106=\"\",$D106=CONST_NA),FALSE,INDEX(Parameters_Constants!$K$101:$AF$118,MATCH($E106,CONST_LIST_Goods,0),MATCH(AG$8,Parameters_Constants!$K$100:$AF$100,0))=FALSE)","v":false},{"$f":"IF(OR($D106=\"\",$D106=CONST_NA),FALSE,INDEX(Parameters_Constants!$K$101:$AF$118,MATCH($E106,CONST_LIST_Goods,0),MATCH(AH$8,Parameters_Constants!$K$100:$AF$100,0))=FALSE)","v":false},{"$f":"IF(OR($D106=\"\",$D106=CONST_NA),FALSE,INDEX(Parameters_Constants!$K$101:$AF$118,MATCH($E106,CONST_LIST_Goods,0),MATCH(AI$8,Parameters_Constants!$K$100:$AF$100,0))=FALSE)","v":false},{"$f":"IF(OR($D106=\"\",$D106=CONST_NA),FALSE,INDEX(Parameters_Constants!$K$101:$AF$118,MATCH($E106,CONST_LIST_Goods,0),MATCH(AJ$8,Parameters_Constants!$K$100:$AF$100,0))=FALSE)","v":false},{"$f":"IF(OR($D106=\"\",$D106=CONST_NA),FALSE,INDEX(Parameters_Constants!$K$101:$AF$118,MATCH($E106,CONST_LIST_Goods,0),MATCH(AK$8,Parameters_Constants!$K$100:$AF$100,0))=FALSE)","v":false}]
["ausblenden",null,98,null,null,false,null,false,{"$nulls":7},{"$f":"IF(OR($D107=\"\",$D107=CONST_NA),FALSE,INDEX(Parameters_Constants!$K$101:$AF$118,MATCH($E107,CONST_LIST_Goods,0),MATCH(P$8,Parameters_Constants!$K$100:$AF$100,0))=FALSE)","v":false},{"$f":"IF(OR($D107=\"\",$D107=CONST_NA),FALSE,INDEX(Parameters_Constants!$K$101:$AF$118,MATCH($E107,CONST_LIST_Goods,0),MATCH(Q$8,Parameters_Constants!$K$100:$AF$100,0))=FALSE)","v":false},{"$f":"IF(OR($D107=\"\",$D107=CONST_NA),FALSE,INDEX(Parameters_Constants!$K$101:$AF$118,MATCH($E107,CONST_LIST_Goods,0),MATCH(R$8,Parameters_Constants!$K$100:$AF$100,0))=FALSE)","v":false},{"$f":"IF(OR($D107=\"\",$D107=CONST_NA),FALSE,INDEX(Parameters_Constants!$K$101:$AF$118,MATCH($E107,CONST_LIST_Goods,0),MATCH(S$8,Parameters_Constants!$K$100:$AF$100,0))=FALSE)","v":false},{"$f":"IF(OR($D107=\"\",$D107=CONST_NA),FALSE,INDEX(Parameters_Constants!$K$101:$AF$118,MATCH($E107,CONST_LIST_Goods,0),MATCH(T$8,Parameters_Constants!$K$100:$AF$100,0))=FALSE)","v":false},{"$f":"IF(OR($D107=\"\",$D107=CONST_NA),FALSE,INDEX(Parameters_Constants!$K$101:$AF$118,MATCH($E107,CONST_LIST_Goods,0),MATCH(U$8,Parameters_Constants!$K$100:$AF$100,0))=FALSE)","v":false},{"$f":"IF(OR($D107=\"\",$D107=CONST_NA),FALSE,INDEX(Parameters_Constants!$K$101:$AF$118,MATCH($E107,CONST_LIST_Goods,0),MATCH(V$8,Parameters_Constants!$K$100:$AF$100,0))=FALSE)","v":false},{"$f":"IF(OR($D107=\"\",$D107=CONST_NA),FALSE,INDEX(Parameters_Constants!$K$101:$AF$118,MATCH($E107,CONST_LIST_Goods,0),MATCH(W$8,Parameters_Constants!$K$100:$AF$100,0))=FALSE)","v":false},{"$f":"IF(OR($D107=\"\",$D107=CONST_NA),FALSE,INDEX(Parameters_Constants!$K$101:$AF$118,MATCH($E107,CONST_LIST_Goods,0),MATCH(X$8,Parameters_Constants!$K$100:$AF$100,0))=FALSE)","v":false},{"$f":"IF(OR($D107=\"\",$D107=CONST_NA),FALSE,INDEX(Parameters_Constants!$K$101:$AF$118,MATCH($E107,CONST_LIST_Goods,0),MATCH(Y$8,Parameters_Constants!$K$100:$AF$100,0))=FALSE)","v":false},{"$f":"IF(OR($D107=\"\",$D107=CONST_NA),FALSE,INDEX(Parameters_Constants!$K$101:$AF$118,MATCH($E107,CONST_LIST_Goods,0),MATCH(Z$8,Parameters_Constants!$K$100:$AF$100,0))=FALSE)","v":false},{"$f":"IF(OR($D107=\"\",$D107=CONST_NA),FALSE,INDEX(Parameters_Constants!$K$101:$AF$118,MATCH($E107,CONST_LIST_Goods,0),MATCH(AA$8,Parameters_Constants!$K$100:$AF$100,0))=FALSE)","v":false},{"$f":"IF(OR($D107=\"\",$D107=CONST_NA),FALSE,INDEX(Parameters_Constants!$K$101:$AF$118,MATCH($E107,CONST_LIST_Goods,0),MATCH(AB$8,Parameters_Constants!$K$100:$AF$100,0))=FALSE)","v":false},{"$f":"IF(OR($D107=\"\",$D107=CONST_NA),FALSE,INDEX(Parameters_Constants!$K$101:$AF$118,MATCH($E107,CONST_LIST_Goods,0),MATCH(AC$8,Parameters_Constants!$K$100:$AF$100,0))=FALSE)","v":false},{"$f":"IF(OR($D107=\"\",$D107=CONST_NA),FALSE,INDEX(Parameters_Constants!$K$101:$AF$118,MATCH($E107,CONST_LIST_Goods,0),MATCH(AD$8,Parameters_Constants!$K$100:$AF$100,0))=FALSE)","v":false},{"$f":"IF(OR($D107=\"\",$D107=CONST_NA),FALSE,INDEX(Parameters_Constants!$K$101:$AF$118,MATCH($E107,CONST_LIST_Goods,0),MATCH(AE$8,Parameters_Constants!$K$100:$AF$100,0))=FALSE)","v":false},{"$f":"IF(OR($D107=\"\",$D107=CONST_NA),FALSE,INDEX(Parameters_Constants!$K$101:$AF$118,MATCH($E107,CONST_LIST_Goods,0),MATCH(AF$8,Parameters_Constants!$K$100:$AF$100,0))=FALSE)","v":false},{"$f":"IF(OR($D107=\"\",$D107=CONST_NA),FALSE,INDEX(Parameters_Constants!$K$101:$AF$118,MATCH($E107,CONST_LIST_Goods,0),MATCH(AG$8,Parameters_Constants!$K$100:$AF$100,0))=FALSE)","v":false},{"$f":"IF(OR($D107=\"\",$D107=CONST_NA),FALSE,INDEX(Parameters_Constants!$K$101:$AF$118,MATCH($E107,CONST_LIST_Goods,0),MATCH(AH$8,Parameters_Constants!$K$100:$AF$100,0))=FALSE)","v":false},{"$f":"IF(OR($D107=\"\",$D107=CONST_NA),FALSE,INDEX(Parameters_Constants!$K$101:$AF$118,MATCH($E107,CONST_LIST_Goods,0),MATCH(AI$8,Parameters_Constants!$K$100:$AF$100,0))=FALSE)","v":false},{"$f":"IF(OR($D107=\"\",$D107=CONST_NA),FALSE,INDEX(Parameters_Constants!$K$101:$AF$118,MATCH($E107,CONST_LIST_Goods,0),MATCH(AJ$8,Parameters_Constants!$K$100:$AF$100,0))=FALSE)","v":false},{"$f":"IF(OR($D107=\"\",$D107=CONST_NA),FALSE,INDEX(Parameters_Constants!$K$101:$AF$118,MATCH($E107,CONST_LIST_Goods,0),MATCH(AK$8,Parameters_Constants!$K$100:$AF$100,0))=FALSE)","v":false}]
["ausblenden",null,99,null,null,false,null,false,{"$nulls":7},{"$f":"IF(OR($D108=\"\",$D108=CONST_NA),FALSE,INDEX(Parameters_Constants!$K$101:$AF$118,MATCH($E108,CONST_LIST_Goods,0),MATCH(P$8,Parameters_Constants!$K$100:$AF$100,0))=FALSE)","v":false},{"$f":"IF(OR($D108=\"\",$D108=CONST_NA),FALSE,INDEX(Parameters_Constants!$K$101:$AF$118,MATCH($E108,CONST_LIST_Goods,0),MATCH(Q$8,Parameters_Constants!$K$100:$AF$100,0))=FALSE)","v":false},{"$f":"IF(OR($D108=\"\",$D108=CONST_NA),FALSE,INDEX(Parameters_Constants!$K$101:$AF$118,MATCH($E108,CONST_LIST_Goods,0),MATCH(R$8,Parameters_Constants!$K$100:$AF$100,0))=FALSE)","v":false},{"$f":"IF(OR($D108=\"\",$D108=CONST_NA),FALSE,INDEX(Parameters_Constants!$K$101:$AF$118,MATCH($E108,CONST_LIST_Goods,0),MATCH(S$8,Parameters_Constants!$K$100:$AF$100,0))=FALSE)","v":false},{"$f":"IF(OR($D108=\"\",$D108=CONST_NA),FALSE,INDEX(Parameters_Constants!$K$101:$AF$118,MATCH($E108,CONST_LIST_Goods,0),MATCH(T$8,Parameters_Constants!$K$100:$AF$100,0))=FALSE)","v":false},{"$f":"IF(OR($D108=\"\",$D108=CONST_NA),FALSE,INDEX(Parameters_Constants!$K$101:$AF$118,MATCH($E108,CONST_LIST_Goods,0),MATCH(U$8,Parameters_Constants!$K$100:$AF$100,0))=FALSE)","v":false},{"$f":"IF(OR($D108=\"\",$D108=CONST_NA),FALSE,INDEX(Parameters_Constants!$K$101:$AF$118,MATCH($E108,CONST_LIST_Goods,0),MATCH(V$8,Parameters_Constants!$K$100:$AF$100,0))=FALSE)","v":false},{"$f":"IF(OR($D108=\"\",$D108=CONST_NA),FALSE,INDEX(Parameters_Constants!$K$101:$AF$118,MATCH($E108,CONST_LIST_Goods,0),MATCH(W$8,Parameters_Constants!$K$100:$AF$100,0))=FALSE)","v":false},{"$f":"IF(OR($D108=\"\",$D108=CONST_NA),FALSE,INDEX(Parameters_Constants!$K$101:$AF$118,MATCH($E108,CONST_LIST_Goods,0),MATCH(X$8,Parameters_Constants!$K$100:$AF$100,0))=FALSE)","v":false},{"$f":"IF(OR($D108=\"\",$D108=CONST_NA),FALSE,INDEX(Parameters_Constants!$K$101:$AF$118,MATCH($E108,CONST_LIST_Goods,0),MATCH(Y$8,Parameters_Constants!$K$100:$AF$100,0))=FALSE)","v":false},{"$f":"IF(OR($D108=\"\",$D108=CONST_NA),FALSE,INDEX(Parameters_Constants!$K$101:$AF$118,MATCH($E108,CONST_LIST_Goods,0),MATCH(Z$8,Parameters_Constants!$K$100:$AF$100,0))=FALSE)","v":false},{"$f":"IF(OR($D108=\"\",$D108=CONST_NA),FALSE,INDEX(Parameters_Constants!$K$101:$AF$118,MATCH($E108,CONST_LIST_Goods,0),MATCH(AA$8,Parameters_Constants!$K$100:$AF$100,0))=FALSE)","v":false},{"$f":"IF(OR($D108=\"\",$D108=CONST_NA),FALSE,INDEX(Parameters_Constants!$K$101:$AF$118,MATCH($E108,CONST_LIST_Goods,0),MATCH(AB$8,Parameters_Constants!$K$100:$AF$100,0))=FALSE)","v":false},{"$f":"IF(OR($D108=\"\",$D108=CONST_NA),FALSE,INDEX(Parameters_Constants!$K$101:$AF$118,MATCH($E108,CONST_LIST_Goods,0),MATCH(AC$8,Parameters_Constants!$K$100:$AF$100,0))=FALSE)","v":false},{"$f":"IF(OR($D108=\"\",$D108=CONST_NA),FALSE,INDEX(Parameters_Constants!$K$101:$AF$118,MATCH($E108,CONST_LIST_Goods,0),MATCH(AD$8,Parameters_Constants!$K$100:$AF$100,0))=FALSE)","v":false},{"$f":"IF(OR($D108=\"\",$D108=CONST_NA),FALSE,INDEX(Parameters_Constants!$K$101:$AF$118,MATCH($E108,CONST_LIST_Goods,0),MATCH(AE$8,Parameters_Constants!$K$100:$AF$100,0))=FALSE)","v":false},{"$f":"IF(OR($D108=\"\",$D108=CONST_NA),FALSE,INDEX(Parameters_Constants!$K$101:$AF$118,MATCH($E108,CONST_LIST_Goods,0),MATCH(AF$8,Parameters_Constants!$K$100:$AF$100,0))=FALSE)","v":false},{"$f":"IF(OR($D108=\"\",$D108=CONST_NA),FALSE,INDEX(Parameters_Constants!$K$101:$AF$118,MATCH($E108,CONST_LIST_Goods,0),MATCH(AG$8,Parameters_Constants!$K$100:$AF$100,0))=FALSE)","v":false},{"$f":"IF(OR($D108=\"\",$D108=CONST_NA),FALSE,INDEX(Parameters_Constants!$K$101:$AF$118,MATCH($E108,CONST_LIST_Goods,0),MATCH(AH$8,Parameters_Constants!$K$100:$AF$100,0))=FALSE)","v":false},{"$f":"IF(OR($D108=\"\",$D108=CONST_NA),FALSE,INDEX(Parameters_Constants!$K$101:$AF$118,MATCH($E108,CONST_LIST_Goods,0),MATCH(AI$8,Parameters_Constants!$K$100:$AF$100,0))=FALSE)","v":false},{"$f":"IF(OR($D108=\"\",$D108=CONST_NA),FALSE,INDEX(Parameters_Constants!$K$101:$AF$118,MATCH($E108,CONST_LIST_Goods,0),MATCH(AJ$8,Parameters_Constants!$K$100:$AF$100,0))=FALSE)","v":false},{"$f":"IF(OR($D108=\"\",$D108=CONST_NA),FALSE,INDEX(Parameters_Constants!$K$101:$AF$118,MATCH($E108,CONST_LIST_Goods,0),MATCH(AK$8,Parameters_Constants!$K$100:$AF$100,0))=FALSE)","v":false}]
["ausblenden",null,100,null,null,false,null,false,{"$nulls":7},{"$f":"IF(OR($D109=\"\",$D109=CONST_NA),FALSE,INDEX(Parameters_Constants!$K$101:$AF$118,MATCH($E109,CONST_LIST_Goods,0),MATCH(P$8,Parameters_Constants!$K$100:$AF$100,0))=FALSE)","v":false},{"$f":"IF(OR($D109=\"\",$D109=CONST_NA),FALSE,INDEX(Parameters_Constants!$K$101:$AF$118,MATCH($E109,CONST_LIST_Goods,0),MATCH(Q$8,Parameters_Constants!$K$100:$AF$100,0))=FALSE)","v":false},{"$f":"IF(OR($D109=\"\",$D109=CONST_NA),FALSE,INDEX(Parameters_Constants!$K$101:$AF$118,MATCH($E109,CONST_LIST_Goods,0),MATCH(R$8,Parameters_Constants!$K$100:$AF$100,0))=FALSE)","v":false},{"$f":"IF(OR($D109=\"\",$D109=CONST_NA),FALSE,INDEX(Parameters_Constants!$K$101:$AF$118,MATCH($E109,CONST_LIST_Goods,0),MATCH(S$8,Parameters_Constants!$K$100:$AF$100,0))=FALSE)","v":false},{"$f":"IF(OR($D109=\"\",$D109=CONST_NA),FALSE,INDEX(Parameters_Constants!$K$101:$AF$118,MATCH($E109,CONST_LIST_Goods,0),MATCH(T$8,Parameters_Constants!$K$100:$AF$100,0))=FALSE)","v":false},{"$f":"IF(OR($D109=\"\",$D109=CONST_NA),FALSE,INDEX(Parameters_Constants!$K$101:$AF$118,MATCH($E109,CONST_LIST_Goods,0),MATCH(U$8,Parameters_Constants!$K$100:$AF$100,0))=FALSE)","v":false},{"$f":"IF(OR($D109=\"\",$D109=CONST_NA),FALSE,INDEX(Parameters_Constants!$K$101:$AF$118,MATCH($E109,CONST_LIST_Goods,0),MATCH(V$8,Parameters_Constants!$K$100:$AF$100,0))=FALSE)","v":false},{"$f":"IF(OR($D109=\"\",$D109=CONST_NA),FALSE,INDEX(Parameters_Constants!$K$101:$AF$118,MATCH($E109,CONST_LIST_Goods,0),MATCH(W$8,Parameters_Constants!$K$100:$AF$100,0))=FALSE)","v":false},{"$f":"IF(OR($D109=\"\",$D109=CONST_NA),FALSE,INDEX(Parameters_Constants!$K$101:$AF$118,MATCH($E109,CONST_LIST_Goods,0),MATCH(X$8,Parameters_Constants!$K$100:$AF$100,0))=FALSE)","v":false},{"$f":"IF(OR($D109=\"\",$D109=CONST_NA),FALSE,INDEX(Parameters_Constants!$K$101:$AF$118,MATCH($E109,CONST_LIST_Goods,0),MATCH(Y$8,Parameters_Constants!$K$100:$AF$100,0))=FALSE)","v":false},{"$f":"IF(OR($D109=\"\",$D109=CONST_NA),FALSE,INDEX(Parameters_Constants!$K$101:$AF$118,MATCH($E109,CONST_LIST_Goods,0),MATCH(Z$8,Parameters_Constants!$K$100:$AF$100,0))=FALSE)","v":false},{"$f":"IF(OR($D109=\"\",$D109=CONST_NA),FALSE,INDEX(Parameters_Constants!$K$101:$AF$118,MATCH($E109,CONST_LIST_Goods,0),MATCH(AA$8,Parameters_Constants!$K$100:$AF$100,0))=FALSE)","v":false},{"$f":"IF(OR($D109=\"\",$D109=CONST_NA),FALSE,INDEX(Parameters_Constants!$K$101:$AF$118,MATCH($E109,CONST_LIST_Goods,0),MATCH(AB$8,Parameters_Constants!$K$100:$AF$100,0))=FALSE)","v":false},{"$f":"IF(OR($D109=\"\",$D109=CONST_NA),FALSE,INDEX(Parameters_Constants!$K$101:$AF$118,MATCH($E109,CONST_LIST_Goods,0),MATCH(AC$8,Parameters_Constants!$K$100:$AF$100,0))=FALSE)","v":false},{"$f":"IF(OR($D109=\"\",$D109=CONST_NA),FALSE,INDEX(Parameters_Constants!$K$101:$AF$118,MATCH($E109,CONST_LIST_Goods,0),MATCH(AD$8,Parameters_Constants!$K$100:$AF$100,0))=FALSE)","v":false},{"$f":"IF(OR($D109=\"\",$D109=CONST_NA),FALSE,INDEX(Parameters_Constants!$K$101:$AF$118,MATCH($E109,CONST_LIST_Goods,0),MATCH(AE$8,Parameters_Constants!$K$100:$AF$100,0))=FALSE)","v":false},{"$f":"IF(OR($D109=\"\",$D109=CONST_NA),FALSE,INDEX(Parameters_Constants!$K$101:$AF$118,MATCH($E109,CONST_LIST_Goods,0),MATCH(AF$8,Parameters_Constants!$K$100:$AF$100,0))=FALSE)","v":false},{"$f":"IF(OR($D109=\"\",$D109=CONST_NA),FALSE,INDEX(Parameters_Constants!$K$101:$AF$118,MATCH($E109,CONST_LIST_Goods,0),MATCH(AG$8,Parameters_Constants!$K$100:$AF$100,0))=FALSE)","v":false},{"$f":"IF(OR($D109=\"\",$D109=CONST_NA),FALSE,INDEX(Parameters_Constants!$K$101:$AF$118,MATCH($E109,CONST_LIST_Goods,0),MATCH(AH$8,Parameters_Constants!$K$100:$AF$100,0))=FALSE)","v":false},{"$f":"IF(OR($D109=\"\",$D109=CONST_NA),FALSE,INDEX(Parameters_Constants!$K$101:$AF$118,MATCH($E109,CONST_LIST_Goods,0),MATCH(AI$8,Parameters_Constants!$K$100:$AF$100,0))=FALSE)","v":false},{"$f":"IF(OR($D109=\"\",$D109=CONST_NA),FALSE,INDEX(Parameters_Constants!$K$101:$AF$118,MATCH($E109,CONST_LIST_Goods,0),MATCH(AJ$8,Parameters_Constants!$K$100:$AF$100,0))=FALSE)","v":false},{"$f":"IF(OR($D109=\"\",$D109=CONST_NA),FALSE,INDEX(Parameters_Constants!$K$101:$AF$118,MATCH($E109,CONST_LIST_Goods,0),MATCH(AK$8,Parameters_Constants!$K$100:$AF$100,0))=FALSE)","v":false}]
["ausblenden"]
["ausblenden"]
["ausblenden",null,1,null,null,{"$f":"AND($BG10=FALSE,AND(F112<>\"\",F112=FALSE),F10=\"\")","v":true},false,true,false,false,false,false,null,{"$f":"AND($BG10=FALSE,AND(N112<>\"\",N112=FALSE),N10=\"\")","v":false},false,true,{"$f":"AND($BG10=FALSE,AND(Q112<>\"\",Q112=FALSE),Q10=\"\")","v":true},{"$f":"AND($BG10=FALSE,AND(R112<>\"\",R112=FALSE),R10=\"\")","v":true},true,true,true,true,true,true,true,true,true,true,true,true,true,true,true,true,true,true,true,false,false,false,false,false,null,{"$f":"AND($BG10=FALSE,AND(AR112<>\"\",AR112=FALSE),AR10=\"\")","v":false},false,false,false,false,false,false,false,false,false]
["ausblenden",null,2,null,null,true,false,true,false,false,false,false,null,false,false,true,true,{"$f":"AND($BG11=FALSE,AND(R113<>\"\",R113=FALSE),R11=\"\")","v":true},true,true,true,true,true,true,true,true,true,true,true,true,true,true,true,true,true,true,true,false,false,false,false,false,null,{"$f":"AND($BG11=FALSE,AND(AR113<>\"\",AR113=FALSE),AR11=\"\")","v":false},false,false,false,false,false,false,false,false,false]
["ausblenden",null,3,null,null,true,false,true,false,false,false,false,null,false,false,true,true,{"$f":"AND($BG12=FALSE,AND(R114<>\"\",R114=FALSE),R12=\"\")","v":true},true,true,true,true,true,true,true,true,true,true,true,true,true,true,true,true,true,true,true,false,false,false,false,false,null,{"$f":"AND($BG12=FALSE,AND(AR114<>\"\",AR114=FALSE),AR12=\"\")","v":false},false,false,false,false,false,false,false,false,false]
["ausblenden",null,4,null,null,true,false,true,false,false,false,false,null,false,false,true,true,{"$f":"AND($BG13=FALSE,AND(R115<>\"\",R115=FALSE),R13=\"\")","v":true},true,true,true,true,true,true,true,true,true,true,true,true,true,true,true,true,true,true,true,false,false,false,false,false,null,{"$f":"AND($BG13=FALSE,AND(AR115<>\"\",AR115=FALSE),AR13=\"\")","v":false},false,false,false,false,false,false,false,false,false]
["ausblenden",null,5,null,null,true,false,true,false,false,false,false,null,false,false,true,true,{"$f":"AND($BG14=FALSE,AND(R116<>\"\",R116=FALSE),R14=\"\")","v":true},true,true,true,true,true,true,true,true,true,true,true,true,true,true,true,true,true,true,true,false,false,false,false,false,null,{"$f":"AND($BG14=FALSE,AND(AR116<>\"\",AR116=FALSE),AR14=\"\")","v":false},false,false,false,false,false,false,false,false,false]
["ausblenden",null,6,null,null,true,false,true,false,false,false,false,null,false,false,true,true,{"$f":"AND($BG15=FALSE,AND(R117<>\"\",R117=FALSE),R15=\"\")","v":true},true,true,true,true,true,true,true,true,true,true,true,true,true,true,true,true,true,true,true,false,false,false,false,false,null,{"$f":"AND($BG15=FALSE,AND(AR117<>\"\",AR117=FALSE),AR15=\"\")","v":false},false,false,false,false,false,false,false,false,false]
["ausblenden",null,7,null,null,true,false,true,false,false,false,false,null,false,false,true,true,{"$f":"AND($BG16=FALSE,AND(R118<>\"\",R118=FALSE),R16=\"\")","v":true},true,true,true,true,true,true,true,true,true,true,true,true,true,true,true,true,true,true,true,false,false,false,false,false,null,{"$f":"AND($BG16=FALSE,AND(AR118<>\"\",AR118=FALSE),AR16=\"\")","v":false},false,false,false,false,false,false,false,false,false]
["ausblenden",null,8,null,null,true,false,true,false,false,false,false,null,false,false,true,true,{"$f":"AND($BG17=FALSE,AND(R119<>\"\",R119=FALSE),R17=\"\")","v":true},true,true,true,true,true,true,true,true,true,true,true,true,true,true,true,true,true,true,true,false,false,false,false,false,null,{"$f":"AND($BG17=FALSE,AND(AR119<>\"\",AR119=FALSE),AR17=\"\")","v":false},false,false,false,false,false,false,false,false,false]
["ausblenden",null,9,null,null,true,false,true,false,false,false,false,null,false,false,true,true,{"$f":"AND($BG18=FALSE,AND(R120<>\"\",R120=FALSE),R18=\"\")","v":true},true,true,true,true,true,true,true,true,true,true,true,true,true,true,true,true,true,true,true,false,false,false,false,false,null,{"$f":"AND($BG18=FALSE,AND(AR120<>\"\",AR120=FALSE),AR18=\"\")","v":false},false,false,false,false,false,false,false,false,false]
["ausblenden",null,10,null,null,true,false,true,false,false,false,false,null,false,false,true,true,{"$f":"AND($BG19=FALSE,AND(R121<>\"\",R121=FALSE),R19=\"\")","v":true},true,true,true,true,true,true,true,true,true,true,true,true,true,true,true,true,true,true,true,false,false,false,false,false,null,{"$f":"AND($BG19=FALSE,AND(AR121<>\"\",AR121=FALSE),AR19=\"\")","v":false},false,false,false,false,false,false,false,false,false]
["ausblenden",null,11,null,null,{"$f":"AND($BG20=FALSE,AND(F122<>\"\",F122=FALSE),F20=\"\")","v":true},false,true,false,false,false,false,null,false,false,true,true,{"$f":"AND($BG20=FALSE,AND(R122<>\"\",R122=FALSE),R20=\"\")","v":true},true,true,true,true,true,true,true,true,true,true,true,true,true,true,true,true,true,true,true,false,false,false,false,false,null,{"$f":"AND($BG20=FALSE,AND(AR122<>\"\",AR122=FALSE),AR20=\"\")","v":false},false,false,false,false,false,false,false,false,false]
["ausblenden",null,12,null,null,true,false,true,false,false,false,false,null,false,false,true,true,{"$f":"AND($BG21=FALSE,AND(R123<>\"\",R123=FALSE),R21=\"\")","v":true},true,true,true,true,true,true,true,true,true,true,true,true,true,true,true,true,true,true,true,false,false,false,false,false,null,{"$f":"AND($BG21=FALSE,AND(AR123<>\"\",AR123=FALSE),AR21=\"\")","v":false},false,false,false,false,false,false,false,false,false]
["ausblenden",null,13,null,null,true,false,true,false,false,false,false,null,false,false,true,true,{"$f":"AND($BG22=FALSE,AND(R124<>\"\",R124=FALSE),R22=\"\")","v":true},true,true,true,true,true,true,true,true,true,true,true,true,true,true,true,true,true,true,true,false,false,false,false,false,null,{"$f":"AND($BG22=FALSE,AND(AR124<>\"\",AR124=FALSE),AR22=\"\")","v":false},false,false,false,false,false,false,false,false,false]
["ausblenden",null,14,null,null,true,false,true,false,false,false,false,null,false,false,true,true,{"$f":"AND($BG23=FALSE,AND(R125<>\"\",R125=FALSE),R23=\"\")","v":true},true,true,true,true,true,true,true,true,true,true,true,true,true,true,true,true,true,true,true,false,false,false,false,false,null,{"$f":"AND($BG23=FALSE,AND(AR125<>\"\",AR125=FALSE),AR23=\"\")","v":false},false,false,false,false,false,false,false,false,false]
["ausblenden",null,15,null,null,true,false,true,false,false,false,false,null,false,false,true,true,{"$f":"AND($BG24=FALSE,AND(R126<>\"\",R126=FALSE),R24=\"\")","v":true},true,true,true,true,true,true,true,true,true,true,true,true,true,true,true,true,true,true,true,false,false,false,false,false,null,{"$f":"AND($BG24=FALSE,AND(AR126<>\"\",AR126=FALSE),AR24=\"\")","v":false},false,false,false,false,false,false,false,false,false]
["ausblenden",null,16,null,null,true,false,true,false,false,false,false,null,false,false,true,true,{"$f":"AND($BG25=FALSE,AND(R127<>\"\",R127=FALSE),R25=\"\")","v":true},true,true,true,true,true,true,true,true,true,true,true,true,true,true,true,true,true,true,true,false,false,false,false,false,null,{"$f":"AND($BG25=FALSE,AND(AR127<>\"\",AR127=FALSE),AR25=\"\")","v":false},false,false,false,false,false,false,false,false,false]
["ausblenden",null,17,null,null,true,false,true,false,false,false,false,null,false,false,true,true,{"$f":"AND($BG26=FALSE,AND(R128<>\"\",R128=FALSE),R26=\"\")","v":true},true,true,true,true,true,true,true,true,true,true,true,true,true,true,true,true,true,true,true,false,false,false,false,false,null,{"$f":"AND($BG26=FALSE,AND(AR128<>\"\",AR128=FALSE),AR26=\"\")","v":false},false,false,false,false,false,false,false,false,false]
["ausblenden",null,18,null,null,true,false,true,false,false,false,false,null,false,false,true,true,{"$f":"AND($BG27=FALSE,AND(R129<>\"\",R129=FALSE),R27=\"\")","v":true},true,true,true,true,true,true,true,true,true,true,true,true,true,true,true,true,true,true,true,false,false,false,false,false,null,{"$f":"AND($BG27=FALSE,AND(AR129<>\"\",AR129=FALSE),AR27=\"\")","v":false},false,false,false,false,false,false,false,false,false]
["ausblenden",null,19,null,null,true,false,true,false,false,false,false,null,false,false,true,true,{"$f":"AND($BG28=FALSE,AND(R130<>\"\",R130=FALSE),R28=\"\")","v":true},true,true,true,true,true,true,true,true,true,true,true,true,true,true,true,true,true,true,true,false,false,false,false,false,null,{"$f":"AND($BG28=FALSE,AND(AR130<>\"\",AR130=FALSE),AR28=\"\")","v":false},false,false,false,false,false,false,false,false,false]
["ausblenden",null,20,null,null,true,false,true,false,false,false,false,null,false,false,true,true,{"$f":"AND($BG29=FALSE,AND(R131<>\"\",R131=FALSE),R29=\"\")","v":true},true,true,true,true,true,true,true,true,true,true,true,true,true,true,true,true,true,true,true,false,false,false,false,false,null,{"$f":"AND($BG29=FALSE,AND(AR131<>\"\",AR131=FALSE),AR29=\"\")","v":false},false,false,false,false,false,false,false,false,false]
["ausblenden",null,21,null,null,{"$f":"AND($BG30=FALSE,AND(F132<>\"\",F132=FALSE),F30=\"\")","v":true},false,true,false,false,false,false,null,false,false,true,true,{"$f":"AND($BG30=FALSE,AND(R132<>\"\",R132=FALSE),R30=\"\")","v":true},true,true,true,true,true,true,true,true,true,true,true,true,true,true,true,true,true,true,true,false,false,false,false,false,null,{"$f":"AND($BG30=FALSE,AND(AR132<>\"\",AR132=FALSE),AR30=\"\")","v":false},false,false,false,false,false,false,false,false,false]
["ausblenden",null,22,null,null,true,false,true,false,false,false,false,null,false,false,true,true,{"$f":"AND($BG31=FALSE,AND(R133<>\"\",R133=FALSE),R31=\"\")","v":true},true,true,true,true,true,true,true,true,true,true,true,true,true,true,true,true,true,true,true,false,false,false,false,false,null,{"$f":"AND($BG31=FALSE,AND(AR133<>\"\",AR133=FALSE),AR31=\"\")","v":false},false,false,false,false,false,false,false,false,false]
["ausblenden",null,23,null,null,true,false,true,false,false,false,false,null,false,false,true,true,{"$f":"AND($BG32=FALSE,AND(R134<>\"\",R134=FALSE),R32=\"\")","v":true},true,true,true,true,true,true,true,true,true,true,true,true,true,true,true,true,true,true,true,false,false,false,false,false,null,{"$f":"AND($BG32=FALSE,AND(AR134<>\"\",AR134=FALSE),AR32=\"\")","v":false},false,false,false,false,false,false,false,false,false]
["ausblenden",null,24,null,null,true,false,true,false,false,false,false,null,false,false,true,true,{"$f":"AND($BG33=FALSE,AND(R135<>\"\",R135=FALSE),R33=\"\")","v":true},true,true,true,true,true,true,true,true,true,true,true,true,true,true,true,true,true,true,true,false,false,false,false,false,null,{"$f":"AND($BG33=FALSE,AND(AR135<>\"\",AR135=FALSE),AR33=\"\")","v":false},false,false,false,false,false,false,false,false,false]
["ausblenden",null,25,null,null,true,false,true,false,false,false,false,null,false,false,true,true,{"$f":"AND($BG34=FALSE,AND(R136<>\"\",R136=FALSE),R34=\"\")","v":true},true,true,true,true,true,true,true,true,true,true,true,true,true,true,true,true,true,true,true,false,false,false,false,false,null,{"$f":"AND($BG34=FALSE,AND(AR136<>\"\",AR136=FALSE),AR34=\"\")","v":false},false,false,false,false,false,false,false,false,false]
["ausblenden",null,26,null,null,true,false,true,false,false,false,false,null,false,false,true,true,{"$f":"AND($BG35=FALSE,AND(R137<>\"\",R137=FALSE),R35=\"\")","v":true},true,true,true,true,true,true,true,true,true,true,true,true,true,true,true,true,true,true,true,false,false,false,false,false,null,{"$f":"AND($BG35=FALSE,AND(AR137<>\"\",AR137=FALSE),AR35=\"\")","v":false},false,false,false,false,false,false,false,false,false]
["ausblenden",null,27,null,null,true,false,true,false,false,false,false,null,false,false,true,true,{"$f":"AND($BG36=FALSE,AND(R138<>\"\",R138=FALSE),R36=\"\")","v":true},true,true,true,true,true,true,true,true,true,true,true,true,true,true,true,true,true,true,true,false,false,false,false,false,null,{"$f":"AND($BG36=FALSE,AND(AR138<>\"\",AR138=FALSE),AR36=\"\")","v":false},false,false,false,false,false,false,false,false,false]
["ausblenden",null,28,null,null,true,false,true,false,false,false,false,null,false,false,true,true,{"$f":"AND($BG37=FALSE,AND(R139<>\"\",R139=FALSE),R37=\"\")","v":true},true,true,true,true,true,true,true,true,true,true,true,true,true,true,true,true,true,true,true,false,false,false,false,false,null,{"$f":"AND($BG37=FALSE,AND(AR139<>\"\",AR139=FALSE),AR37=\"\")","v":false},false,false,false,false,false,false,false,false,false]
["ausblenden",null,29,null,null,true,false,true,false,false,false,false,null,false,false,true,true,{"$f":"AND($BG38=FALSE,AND(R140<>\"\",R140=FALSE),R38=\"\")","v":true},true,true,true,true,true,true,true,true,true,true,true,true,true,true,true,true,true,true,true,false,false,false,false,false,null,{"$f":"AND($BG38=FALSE,AND(AR140<>\"\",AR140=FALSE),AR38=\"\")","v":false},false,false,false,false,false,false,false,false,false]
["ausblenden",null,30,null,null,true,false,true,false,false,false,false,null,false,false,true,true,{"$f":"AND($BG39=FALSE,AND(R141<>\"\",R141=FALSE),R39=\"\")","v":true},true,true,true,true,true,true,true,true,true,true,true,true,true,true,true,true,true,true,true,false,false,false,false,false,null,{"$f":"AND($BG39=FALSE,AND(AR141<>\"\",AR141=FALSE),AR39=\"\")","v":false},false,false,false,false,false,false,false,false,false]
["ausblenden",null,31,null,null,{"$f":"AND($BG40=FALSE,AND(F142<>\"\",F142=FALSE),F40=\"\")","v":true},false,true,false,false,false,false,null,false,false,true,true,{"$f":"AND($BG40=FALSE,AND(R142<>\"\",R142=FALSE),R40=\"\")","v":true},true,true,true,true,true,true,true,true,true,true,true,true,true,true,true,true,true,true,true,false,false,false,false,false,null,{"$f":"AND($BG40=FALSE,AND(AR142<>\"\",AR142=FALSE),AR40=\"\")","v":false},false,false,false,false,false,false,false,false,false]
["ausblenden",null,32,null,null,{"$f":"AND($BG111=FALSE,AND(F143<>\"\",F143=FALSE),F111=\"\")","v":true},false,true,false,false,false,{"$f":"AND($BG41=FALSE,AND(L143<>\"\",L143=FALSE),L41=\"\")","v":false},null,{"$f":"AND($BG41=FALSE,AND(N143<>\"\",N143=FALSE),N41=\"\")","v":false},false,{"$f":"AND($BG111=FALSE,AND(P143<>\"\",P143=FALSE),P111=\"\")","v":true},{"$f":"AND($BG111=FALSE,AND(Q143<>\"\",Q143=FALSE),Q111=\"\")","v":true},{"$f":"AND($BG111=FALSE,AND(R143<>\"\",R143=FALSE),R111=\"\")","v":true},true,true,true,{"$f":"AND($BG41=FALSE,AND(V143<>\"\",V143=FALSE),V41=\"\")","v":true},{"$f":"AND($BG111=FALSE,AND(W143<>\"\",W143=FALSE),W111=\"\")","v":true},true,true,true,true,true,true,true,true,true,true,true,true,true,true,false,false,false,false,false,null,{"$f":"AND($BG111=FALSE,AND(AR143<>\"\",AR143=FALSE),AR111=\"\")","v":false},false,false,false,false,false,false,false,false,false]
["ausblenden",null,33,null,null,false,false,false,false,false,false,false,null,false,false,false,false,false,false,false,false,true,{"$f":"AND($BG112=FALSE,AND(W144<>\"\",W144=FALSE),W112=\"\")","v":false},false,false,false,false,false,false,false,false,false,false,false,false,false,false,false,false,false,false,false,null,{"$f":"AND($BG112=FALSE,AND(AR144<>\"\",AR144=FALSE),AR112=\"\")","v":false},false,false,false,false,false,false,false,false,false]
["ausblenden",null,34,null,null,false,false,false,false,false,false,false,null,false,false,false,false,false,false,false,false,true,{"$f":"AND($BG113=FALSE,AND(W145<>\"\",W145=FALSE),W113=\"\")","v":false},false,false,false,false,false,false,false,false,false,false,false,false,false,false,false,false,false,false,false,null,{"$f":"AND($BG113=FALSE,AND(AR145<>\"\",AR145=FALSE),AR113=\"\")","v":false},false,false,false,false,false,false,false,false,false]
["ausblenden",null,35,null,null,false,false,false,false,false,false,false,null,false,false,false,false,false,false,false,false,true,{"$f":"AND($BG114=FALSE,AND(W146<>\"\",W146=FALSE),W114=\"\")","v":false},false,false,false,false,false,false,false,false,false,false,false,false,false,false,false,false,false,false,false,null,{"$f":"AND($BG114=FALSE,AND(AR146<>\"\",AR146=FALSE),AR114=\"\")","v":false},false,false,false,false,false,false,false,false,false]
["ausblenden",null,36,null,null,false,false,false,false,false,false,false,null,false,false,false,false,false,false,false,false,true,{"$f":"AND($BG115=FALSE,AND(W147<>\"\",W147=FALSE),W115=\"\")","v":false},false,false,false,false,false,false,false,false,false,false,false,false,false,false,false,false,false,false,false,null,{"$f":"AND($BG115=FALSE,AND(AR147<>\"\",AR147=FALSE),AR115=\"\")","v":false},false,false,false,false,false,false,false,false,false]
["ausblenden",null,37,null,null,false,false,false,false,false,false,false,null,false,false,false,false,false,false,false,false,true,{"$f":"AND($BG116=FALSE,AND(W148<>\"\",W148=FALSE),W116=\"\")","v":false},false,false,false,false,false,false,false,false,false,false,false,false,false,false,false,false,false,false,false,null,{"$f":"AND($BG116=FALSE,AND(AR148<>\"\",AR148=FALSE),AR116=\"\")","v":false},false,false,false,false,false,false,false,false,false]
["ausblenden",null,38,null,null,false,false,false,false,false,false,false,null,false,false,false,false,false,false,false,false,true,{"$f":"AND($BG117=FALSE,AND(W149<>\"\",W149=FALSE),W117=\"\")","v":false},false,false,false,false,false,false,false,false,false,false,false,false,false,false,false,false,false,false,false,null,{"$f":"AND($BG117=FALSE,AND(AR149<>\"\",AR149=FALSE),AR117=\"\")","v":false},false,false,false,false,false,false,false,false,false]
["ausblenden",null,39,null,null,false,false,false,false,false,false,false,null,false,false,false,false,false,false,false,false,true,{"$f":"AND($BG118=FALSE,AND(W150<>\"\",W150=FALSE),W118=\"\")","v":false},false,false,false,false,false,false,false,false,false,false,false,false,false,false,false,false,false,false,false,null,{"$f":"AND($BG118=FALSE,AND(AR150<>\"\",AR150=FALSE),AR118=\"\")","v":false},false,false,false,false,false,false,false,false,false]
["ausblenden",null,40,null,null,false,false,false,false,false,false,false,null,false,false,false,false,false,false,false,false,true,{"$f":"AND($BG119=FALSE,AND(W151<>\"\",W151=FALSE),W119=\"\")","v":false},false,false,false,false,false,false,false,false,false,false,false,false,false,false,false,false,false,false,false,null,{"$f":"AND($BG119=FALSE,AND(AR151<>\"\",AR151=FALSE),AR119=\"\")","v":false},false,false,false,false,false,false,false,false,false]
["ausblenden",null,41,null,null,false,false,false,false,false,false,false,null,false,false,false,false,false,false,false,false,true,{"$f":"AND($BG120=FALSE,AND(W152<>\"\",W152=FALSE),W120=\"\")","v":false},false,false,false,false,false,false,false,false,false,false,false,false,false,false,false,false,false,false,false,null,{"$f":"AND($BG120=FALSE,AND(AR152<>\"\",AR152=FALSE),AR120=\"\")","v":false},false,false,false,false,false,false,false,false,false]
["ausblenden",null,42,null,null,{"$f":"AND($BG121=FALSE,AND(F153<>\"\",F153=FALSE),F121=\"\")","v":false},false,false,false,false,false,false,null,false,false,false,false,false,false,false,false,true,{"$f":"AND($BG121=FALSE,AND(W153<>\"\",W153=FALSE),W121=\"\")","v":false},false,false,false,false,false,false,false,false,false,false,false,false,false,false,false,false,false,false,false,null,{"$f":"AND($BG121=FALSE,AND(AR153<>\"\",AR153=FALSE),AR121=\"\")","v":false},false,false,false,false,false,false,false,false,false]
["ausblenden",null,43,null,null,false,false,false,false,false,false,false,null,false,false,false,false,false,false,false,false,true,{"$f":"AND($BG122=FALSE,AND(W154<>\"\",W154=FALSE),W122=\"\")","v":false},false,false,false,false,false,false,false,false,false,false,false,false,false,false,false,false,false,false,false,null,{"$f":"AND($BG122=FALSE,AND(AR154<>\"\",AR154=FALSE),AR122=\"\")","v":false},false,false,false,false,false,false,false,false,false]
["ausblenden",null,44,null,null,false,false,false,false,false,false,false,null,false,false,false,false,false,false,false,false,true,{"$f":"AND($BG123=FALSE,AND(W155<>\"\",W155=FALSE),W123=\"\")","v":false},false,false,false,false,false,false,false,false,false,false,false,false,false,false,false,false,false,false,false,null,{"$f":"AND($BG123=FALSE,AND(AR155<>\"\",AR155=FALSE),AR123=\"\")","v":false},false,false,false,false,false,false,false,false,false]
["ausblenden",null,45,null,null,false,false,false,false,false,false,false,null,false,false,false,false,false,false,false,false,true,{"$f":"AND($BG124=FALSE,AND(W156<>\"\",W156=FALSE),W124=\"\")","v":false},false,false,false,false,false,false,false,false,false,false,false,false,false,false,false,false,false,false,false,null,{"$f":"AND($BG124=FALSE,AND(AR156<>\"\",AR156=FALSE),AR124=\"\")","v":false},false,false,false,false,false,false,false,false,false]
["ausblenden",null,46,null,null,false,false,false,false,false,false,false,null,false,false,false,false,false,false,false,false,true,{"$f":"AND($BG125=FALSE,AND(W157<>\"\",W157=FALSE),W125=\"\")","v":false},false,false,false,false,false,false,false,false,false,false,false,false,false,false,false,false,false,false,false,null,{"$f":"AND($BG125=FALSE,AND(AR157<>\"\",AR157=FALSE),AR125=\"\")","v":false},false,false,false,false,false,false,false,false,false]
["ausblenden",null,47,null,null,false,false,false,false,false,false,false,null,false,false,false,false,false,false,false,false,true,{"$f":"AND($BG126=FALSE,AND(W158<>\"\",W158=FALSE),W126=\"\")","v":false},false,false,false,false,false,false,false,false,false,false,false,false,false,false,false,false,false,false,false,null,{"$f":"AND($BG126=FALSE,AND(AR158<>\"\",AR158=FALSE),AR126=\"\")","v":false},false,false,false,false,false,false,false,false,false]
["ausblenden",null,48,null,null,false,false,false,false,false,false,false,null,false,false,false,false,false,false,false,false,true,{"$f":"AND($BG127=FALSE,AND(W159<>\"\",W159=FALSE),W127=\"\")","v":false},false,false,false,false,false,false,false,false,false,false,false,false,false,false,false,false,false,false,false,null,{"$f":"AND($BG127=FALSE,AND(AR159<>\"\",AR159=FALSE),AR127=\"\")","v":false},false,false,false,false,false,false,false,false,false]
["ausblenden",null,49,null,null,false,false,false,false,false,false,false,null,false,false,false,false,false,false,false,false,true,{"$f":"AND($BG128=FALSE,AND(W160<>\"\",W160=FALSE),W128=\"\")","v":false},false,false,false,false,false,false,false,false,false,false,false,false,false,false,false,false,false,false,false,null,{"$f":"AND($BG128=FALSE,AND(AR160<>\"\",AR160=FALSE),AR128=\"\")","v":false},false,false,false,false,false,false,false,false,false]
["ausblenden",null,50,null,null,false,false,false,false,false,false,false,null,false,false,false,false,false,false,false,false,true,{"$f":"AND($BG129=FALSE,AND(W161<>\"\",W161=FALSE),W129=\"\")","v":false},false,false,false,false,false,false,false,false,false,false,false,false,false,false,false,false,false,false,false,null,{"$f":"AND($BG129=FALSE,AND(AR161<>\"\",AR161=FALSE),AR129=\"\")","v":false},false,false,false,false,false,false,false,false,false]
["ausblenden",null,51,null,null,false,false,false,false,false,false,false,null,false,false,false,false,false,false,false,false,true,{"$f":"AND($BG130=FALSE,AND(W162<>\"\",W162=FALSE),W130=\"\")","v":false},false,false,false,false,false,false,false,false,false,false,false,false,false,false,false,false,false,false,false,null,{"$f":"AND($BG130=FALSE,AND(AR162<>\"\",AR162=FALSE),AR130=\"\")","v":false},false,false,false,false,false,false,false,false,false]
["ausblenden",null,52,null,null,{"$f":"AND($BG131=FALSE,AND(F163<>\"\",F163=FALSE),F131=\"\")","v":false},false,false,false,false,false,false,null,{"$f":"AND($BG61=FALSE,AND(N163<>\"\",N163=FALSE),N61=\"\")","v":false},false,false,false,{"$f":"AND($BG131=FALSE,AND(R163<>\"\",R163=FALSE),R131=\"\")","v":false},false,false,false,true,{"$f":"AND($BG131=FALSE,AND(W163<>\"\",W163=FALSE),W131=\"\")","v":false},false,false,false,false,false,false,false,false,false,false,false,false,false,false,false,false,false,false,false,null,{"$f":"AND($BG131=FALSE,AND(AR163<>\"\",AR163=FALSE),AR131=\"\")","v":false},false,false,false,false,false,false,false,false,false]
["ausblenden",null,53,null,null,false,false,false,false,false,false,false,null,false,false,false,false,false,false,false,false,true,{"$f":"AND($BG132=FALSE,AND(W164<>\"\",W164=FALSE),W132=\"\")","v":false},false,false,false,false,false,false,false,false,false,false,false,false,false,false,false,false,false,false,false,null,{"$f":"AND($BG132=FALSE,AND(AR164<>\"\",AR164=FALSE),AR132=\"\")","v":false},false,false,false,false,false,false,false,false,false]
["ausblenden",null,54,null,null,false,false,false,false,false,false,false,null,false,false,false,false,false,false,false,false,true,{"$f":"AND($BG133=FALSE,AND(W165<>\"\",W165=FALSE),W133=\"\")","v":false},false,false,false,false,false,false,false,false,false,false,false,false,false,false,false,false,false,false,false,null,{"$f":"AND($BG133=FALSE,AND(AR165<>\"\",AR165=FALSE),AR133=\"\")","v":false},false,false,false,false,false,false,false,false,false]
["ausblenden",null,55,null,null,false,false,false,false,false,false,false,null,false,false,false,false,false,false,false,false,true,{"$f":"AND($BG134=FALSE,AND(W166<>\"\",W166=FALSE),W134=\"\")","v":false},false,false,false,false,false,false,false,false,false,false,false,false,false,false,false,false,false,false,false,null,{"$f":"AND($BG134=FALSE,AND(AR166<>\"\",AR166=FALSE),AR134=\"\")","v":false},false,false,false,false,false,false,false,false,false]
["ausblenden",null,56,null,null,false,false,false,false,false,false,false,null,false,false,false,false,false,false,false,false,true,{"$f":"AND($BG135=FALSE,AND(W167<>\"\",W167=FALSE),W135=\"\")","v":false},false,false,false,false,false,false,false,false,false,false,false,false,false,false,false,false,false,false,false,null,{"$f":"AND($BG135=FALSE,AND(AR167<>\"\",AR167=FALSE),AR135=\"\")","v":false},false,false,false,false,false,false,false,false,false]
["ausblenden",null,57,null,null,false,false,false,false,false,false,false,null,false,false,false,false,false,false,false,false,true,{"$f":"AND($BG136=FALSE,AND(W168<>\"\",W168=FALSE),W136=\"\")","v":false},false,false,false,false,false,false,false,false,false,false,false,false,false,false,false,false,false,false,false,null,{"$f":"AND($BG136=FALSE,AND(AR168<>\"\",AR168=FALSE),AR136=\"\")","v":false},false,false,false,false,false,false,false,false,false]
["ausblenden",null,58,null,null,false,false,false,false,false,false,false,null,false,false,false,false,false,false,false,false,true,{"$f":"AND($BG137=FALSE,AND(W169<>\"\",W169=FALSE),W137=\"\")","v":false},false,false,false,false,false,false,false,false,false,false,false,false,false,false,false,false,false,false,false,null,{"$f":"AND($BG137=FALSE,AND(AR169<>\"\",AR169=FALSE),AR137=\"\")","v":false},false,false,false,false,false,false,false,false,false]
["ausblenden",null,59,null,null,false,false,false,false,false,false,false,null,false,false,false,false,false,false,false,false,true,{"$f":"AND($BG138=FALSE,AND(W170<>\"\",W170=FALSE),W138=\"\")","v":false},false,false,false,false,false,false,false,false,false,false,false,false,false,false,false,false,false,false,false,null,{"$f":"AND($BG138=FALSE,AND(AR170<>\"\",AR170=FALSE),AR138=\"\")","v":false},false,false,false,false,false,false,false,false,false]
["ausblenden",null,60,null,null,false,false,false,false,false,false,false,null,false,false,false,false,false,false,false,false,true,{"$f":"AND($BG139=FALSE,AND(W171<>\"\",W171=FALSE),W139=\"\")","v":false},false,false,false,false,false,false,false,false,false,false,false,false,false,false,false,false,false,false,false,null,{"$f":"AND($BG139=FALSE,AND(AR171<>\"\",AR171=FALSE),AR139=\"\")","v":false},false,false,false,false,false,false,false,false,false]
["ausblenden",null,61,null,null,false,false,false,false,false,false,false,null,false,false,false,false,false,false,false,false,true,{"$f":"AND($BG140=FALSE,AND(W172<>\"\",W172=FALSE),W140=\"\")","v":false},false,false,false,false,false,false,false,false,false,false,false,false,false,false,false,false,false,false,false,null,{"$f":"AND($BG140=FALSE,AND(AR172<>\"\",AR172=FALSE),AR140=\"\")","v":false},false,false,false,false,false,false,false,false,false]
["ausblenden",null,62,null,null,{"$f":"AND($BG141=FALSE,AND(F173<>\"\",F173=FALSE),F141=\"\")","v":false},false,false,false,false,false,false,null,false,false,false,false,false,false,false,false,true,{"$f":"AND($BG141=FALSE,AND(W173<>\"\",W173=FALSE),W141=\"\")","v":false},false,false,false,false,false,false,false,false,false,false,false,false,false,false,false,false,false,false,false,null,{"$f":"AND($BG141=FALSE,AND(AR173<>\"\",AR173=FALSE),AR141=\"\")","v":false},false,false,false,false,false,false,false,false,false]
["ausblenden",null,63,null,null,false,false,false,false,false,false,false,null,false,false,false,false,false,false,false,false,true,{"$f":"AND($BG142=FALSE,AND(W174<>\"\",W174=FALSE),W142=\"\")","v":false},false,false,false,false,false,false,false,false,false,false,false,false,false,false,false,false,false,false,false,null,{"$f":"AND($BG142=FALSE,AND(AR174<>\"\",AR174=FALSE),AR142=\"\")","v":false},false,false,false,false,false,false,false,false,false]
["ausblenden",null,64,null,null,false,false,false,false,false,false,{"$f":"AND($BG73=FALSE,AND(L175<>\"\",L175=FALSE),L73=\"\")","v":false},null,false,false,{"$f":"AND($BG143=FALSE,AND(P175<>\"\",P175=FALSE),P143=\"\")","v":false},{"$f":"AND($BG143=FALSE,AND(Q175<>\"\",Q175=FALSE),Q143=\"\")","v":false},false,false,false,false,{"$f":"AND($BG73=FALSE,AND(V175<>\"\",V175=FALSE),V73=\"\")","v":true},{"$f":"AND($BG143=FALSE,AND(W175<>\"\",W175=FALSE),W143=\"\")","v":false},false,false,false,false,false,false,false,false,false,false,false,false,false,false,false,false,false,false,false,null,{"$f":"AND($BG143=FALSE,AND(AR175<>\"\",AR175=FALSE),AR143=\"\")","v":false},false,false,false,false,false,false,false,false,false]
["ausblenden",null,65,null,null,false,false,false,false,false,false,false,null,false,false,false,false,false,false,false,false,true,{"$f":"AND($BG144=FALSE,AND(W176<>\"\",W176=FALSE),W144=\"\")","v":false},false,false,false,false,false,false,false,false,false,false,false,false,false,false,false,false,false,false,false,null,{"$f":"AND($BG144=FALSE,AND(AR176<>\"\",AR176=FALSE),AR144=\"\")","v":false},false,false,false,false,false,false,false,false,false]
["ausblenden",null,66,null,null,false,false,false,false,false,false,false,null,false,false,false,false,false,false,false,false,true,{"$f":"AND($BG145=FALSE,AND(W177<>\"\",W177=FALSE),W145=\"\")","v":false},false,false,false,false,false,false,false,false,false,false,false,false,false,false,false,false,false,false,false,null,{"$f":"AND($BG145=FALSE,AND(AR177<>\"\",AR177=FALSE),AR145=\"\")","v":false},false,false,false,false,false,false,false,false,false]
["ausblenden",null,67,null,null,false,false,false,false,false,false,false,null,false,false,false,false,false,false,false,false,true,{"$f":"AND($BG146=FALSE,AND(W178<>\"\",W178=FALSE),W146=\"\")","v":false},false,false,false,false,false,false,false,false,false,false,false,false,false,false,false,false,false,false,false,null,{"$f":"AND($BG146=FALSE,AND(AR178<>\"\",AR178=FALSE),AR146=\"\")","v":false},false,false,false,false,false,false,false,false,false]
["ausblenden",null,68,null,null,false,false,false,false,false,false,false,null,false,false,false,false,false,false,false,false,true,{"$f":"AND($BG147=FALSE,AND(W179<>\"\",W179=FALSE),W147=\"\")","v":false},false,false,false,false,false,false,false,false,false,false,false,false,false,false,false,false,false,false,false,null,{"$f":"AND($BG147=FALSE,AND(AR179<>\"\",AR179=FALSE),AR147=\"\")","v":false},false,false,false,false,false,false,false,false,false]
["ausblenden",null,69,null,null,false,false,false,false,false,false,false,null,false,false,false,false,false,false,false,false,true,{"$f":"AND($BG148=FALSE,AND(W180<>\"\",W180=FALSE),W148=\"\")","v":false},false,false,false,false,false,false,false,false,false,false,false,false,false,false,false,false,false,false,false,null,{"$f":"AND($BG148=FALSE,AND(AR180<>\"\",AR180=FALSE),AR148=\"\")","v":false},false,false,false,false,false,false,false,false,false]
["ausblenden",null,70,null,null,false,false,false,false,false,false,false,null,false,false,false,false,false,false,false,false,true,{"$f":"AND($BG149=FALSE,AND(W181<>\"\",W181=FALSE),W149=\"\")","v":false},false,false,false,false,false,false,false,false,false,false,false,false,false,false,false,false,false,false,false,null,{"$f":"AND($BG149=FALSE,AND(AR181<>\"\",AR181=FALSE),AR149=\"\")","v":false},false,false,false,false,false,false,false,false,false]
["ausblenden",null,71,null,null,false,false,false,false,false,false,false,null,false,false,false,false,false,false,false,false,true,{"$f":"AND($BG150=FALSE,AND(W182<>\"\",W182=FALSE),W150=\"\")","v":false},false,false,false,false,false,false,false,false,false,false,false,false,false,false,false,false,false,false,false,null,{"$f":"AND($BG150=FALSE,AND(AR182<>\"\",AR182=FALSE),AR150=\"\")","v":false},false,false,false,false,false,false,false,false,false]
["ausblenden",null,72,null,null,{"$f":"AND($BG151=FALSE,AND(F183<>\"\",F183=FALSE),F151=\"\")","v":false},false,false,false,false,false,false,null,{"$f":"AND($BG81=FALSE,AND(N183<>\"\",N183=FALSE),N81=\"\")","v":false},false,false,false,{"$f":"AND($BG151=FALSE,AND(R183<>\"\",R183=FALSE),R151=\"\")","v":false},false,false,false,true,{"$f":"AND($BG151=FALSE,AND(W183<>\"\",W183=FALSE),W151=\"\")","v":false},false,false,false,false,false,false,false,false,false,false,false,false,false,false,false,false,false,false,false,null,{"$f":"AND($BG151=FALSE,AND(AR183<>\"\",AR183=FALSE),AR151=\"\")","v":false},false,false,false,false,false,false,false,false,false]
["ausblenden",null,73,null,null,false,false,false,false,false,false,false,null,false,false,false,false,false,false,false,false,true,{"$f":"AND($BG152=FALSE,AND(W184<>\"\",W184=FALSE),W152=\"\")","v":false},false,false,false,false,false,false,false,false,false,false,false,false,false,false,false,false,false,false,false,null,{"$f":"AND($BG152=FALSE,AND(AR184<>\"\",AR184=FALSE),AR152=\"\")","v":false},false,false,false,false,false,false,false,false,false]
["ausblenden",null,74,null,null,false,false,false,false,false,false,false,null,false,false,false,false,false,false,false,false,true,{"$f":"AND($BG153=FALSE,AND(W185<>\"\",W185=FALSE),W153=\"\")","v":false},false,false,false,false,false,false,false,false,false,false,false,false,false,false,false,false,false,false,false,null,{"$f":"AND($BG153=FALSE,AND(AR185<>\"\",AR185=FALSE),AR153=\"\")","v":false},false,false,false,false,false,false,false,false,false]
["ausblenden",null,75,null,null,false,false,false,false,false,false,false,null,false,false,false,false,false,false,false,false,true,{"$f":"AND($BG154=FALSE,AND(W186<>\"\",W186=FALSE),W154=\"\")","v":false},false,false,false,false,false,false,false,false,false,false,false,false,false,false,false,false,false,false,false,null,{"$f":"AND($BG154=FALSE,AND(AR186<>\"\",AR186=FALSE),AR154=\"\")","v":false},false,false,false,false,false,false,false,false,false]
["ausblenden",null,76,null,null,false,false,false,false,false,false,false,null,false,false,false,false,false,false,false,false,true,{"$f":"AND($BG155=FALSE,AND(W187<>\"\",W187=FALSE),W155=\"\")","v":false},false,false,false,false,false,false,false,false,false,false,false,false,false,false,false,false,false,false,false,null,{"$f":"AND($BG155=FALSE,AND(AR187<>\"\",AR187=FALSE),AR155=\"\")","v":false},false,false,false,false,false,false,false,false,false]
["ausblenden",null,77,null,null,false,false,false,false,false,false,false,null,false,false,false,false,false,false,false,false,true,{"$f":"AND($BG156=FALSE,AND(W188<>\"\",W188=FALSE),W156=\"\")","v":false},false,false,false,false,false,false,false,false,false,false,false,false,false,false,false,false,false,false,false,null,{"$f":"AND($BG156=FALSE,AND(AR188<>\"\",AR188=FALSE),AR156=\"\")","v":false},false,false,false,false,false,false,false,false,false]
["ausblenden",null,78,null,null,false,false,false,false,false,false,false,null,false,false,false,false,false,false,false,false,true,{"$f":"AND($BG157=FALSE,AND(W189<>\"\",W189=FALSE),W157=\"\")","v":false},false,false,false,false,false,false,false,false,false,false,false,false,false,false,false,false,false,false,false,null,{"$f":"AND($BG157=FALSE,AND(AR189<>\"\",AR189=FALSE),AR157=\"\")","v":false},false,false,false,false,false,false,false,false,false]
["ausblenden",null,79,null,null,false,false,false,false,false,false,false,null,false,false,false,false,false,false,false,false,true,{"$f":"AND($BG158=FALSE,AND(W190<>\"\",W190=FALSE),W158=\"\")","v":false},false,false,false,false,false,false,false,false,false,false,false,false,false,false,false,false,false,false,false,null,{"$f":"AND($BG158=FALSE,AND(AR190<>\"\",AR190=FALSE),AR158=\"\")","v":false},false,false,false,false,false,false,false,false,false]
["ausblenden",null,80,null,null,false,false,false,false,false,false,false,null,false,false,false,false,false,false,false,false,true,{"$f":"AND($BG159=FALSE,AND(W191<>\"\",W191=FALSE),W159=\"\")","v":false},false,false,false,false,false,false,false,false,false,false,false,false,false,false,false,false,false,false,false,null,{"$f":"AND($BG159=FALSE,AND(AR191<>\"\",AR191=FALSE),AR159=\"\")","v":false},false,false,false,false,false,false,false,false,false]
["ausblenden",null,81,null,null,false,false,false,false,false,false,false,null,false,false,false,false,false,false,false,false,true,{"$f":"AND($BG160=FALSE,AND(W192<>\"\",W192=FALSE),W160=\"\")","v":false},false,false,false,false,false,false,false,false,false,false,false,false,false,false,false,false,false,false,false,null,{"$f":"AND($BG160=FALSE,AND(AR192<>\"\",AR192=FALSE),AR160=\"\")","v":false},false,false,false,false,false,false,false,false,false]
["ausblenden",null,82,null,null,{"$f":"AND($BG161=FALSE,AND(F193<>\"\",F193=FALSE),F161=\"\")","v":false},false,false,false,false,false,false,null,false,false,false,false,false,false,false,false,true,{"$f":"AND($BG161=FALSE,AND(W193<>\"\",W193=FALSE),W161=\"\")","v":false},false,false,false,false,false,false,false,false,false,false,false,false,false,false,false,false,false,false,false,null,{"$f":"AND($BG161=FALSE,AND(AR193<>\"\",AR193=FALSE),AR161=\"\")","v":false},false,false,false,false,false,false,false,false,false]
["ausblenden",null,83,null,null,false,false,false,false,false,false,false,null,false,false,false,false,false,false,false,false,true,{"$f":"AND($BG162=FALSE,AND(W194<>\"\",W194=FALSE),W162=\"\")","v":false},false,false,false,false,false,false,false,false,false,false,false,false,false,false,false,false,false,false,false,null,{"$f":"AND($BG162=FALSE,AND(AR194<>\"\",AR194=FALSE),AR162=\"\")","v":false},false,false,false,false,false,false,false,false,false]
["ausblenden",null,84,null,null,false,false,false,false,false,false,false,null,false,false,false,false,false,false,false,false,true,{"$f":"AND($BG163=FALSE,AND(W195<>\"\",W195=FALSE),W163=\"\")","v":false},false,false,false,false,false,false,false,false,false,false,false,false,false,false,false,false,false,false,false,null,{"$f":"AND($BG163=FALSE,AND(AR195<>\"\",AR195=FALSE),AR163=\"\")","v":false},false,false,false,false,false,false,false,false,false]
["ausblenden",null,85,null,null,false,false,false,false,false,false,false,null,false,false,false,false,false,false,false,false,true,{"$f":"AND($BG164=FALSE,AND(W196<>\"\",W196=FALSE),W164=\"\")","v":false},false,false,false,false,false,false,false,false,false,false,false,false,false,false,false,false,false,false,false,null,{"$f":"AND($BG164=FALSE,AND(AR196<>\"\",AR196=FALSE),AR164=\"\")","v":false},false,false,false,false,false,false,false,false,false]
["ausblenden",null,86,null,null,false,false,false,false,false,false,false,null,false,false,false,false,false,false,false,false,true,{"$f":"AND($BG165=FALSE,AND(W197<>\"\",W197=FALSE),W165=\"\")","v":false},false,false,false,false,false,false,false,false,false,false,false,false,false,false,false,false,false,false,false,null,{"$f":"AND($BG165=FALSE,AND(AR197<>\"\",AR197=FALSE),AR165=\"\")","v":false},false,false,false,false,false,false,false,false,false]
["ausblenden",null,87,null,null,false,false,false,false,false,false,false,null,false,false,false,false,false,false,false,false,true,{"$f":"AND($BG166=FALSE,AND(W198<>\"\",W198=FALSE),W166=\"\")","v":false},false,false,false,false,false,false,false,false,false,false,false,false,false,false,false,false,false,false,false,null,{"$f":"AND($BG166=FALSE,AND(AR198<>\"\",AR198=FALSE),AR166=\"\")","v":false},false,false,false,false,false,false,false,false,false]
["ausblenden",null,88,null,null,false,false,false,false,false,false,false,null,false,false,false,false,false,false,false,false,true,{"$f":"AND($BG167=FALSE,AND(W199<>\"\",W199=FALSE),W167=\"\")","v":false},false,false,false,false,false,false,false,false,false,false,false,false,false,false,false,false,false,false,false,null,{"$f":"AND($BG167=FALSE,AND(AR199<>\"\",AR199=FALSE),AR167=\"\")","v":false},false,false,false,false,false,false,false,false,false]
["ausblenden",null,89,null,null,false,false,false,false,false,false,false,null,false,false,false,false,false,false,false,false,true,{"$f":"AND($BG168=FALSE,AND(W200<>\"\",W200=FALSE),W168=\"\")","v":false},false,false,false,false,false,false,false,false,false,false,false,false,false,false,false,false,false,false,false,null,{"$f":"AND($BG168=FALSE,AND(AR200<>\"\",AR200=FALSE),AR168=\"\")","v":false},false,false,false,false,false,false,false,false,false]
["ausblenden",null,90,null,null,false,false,false,false,false,false,false,null,false,false,false,false,false,false,false,false,true,{"$f":"AND($BG169=FALSE,AND(W201<>\"\",W201=FALSE),W169=\"\")","v":false},false,false,false,false,false,false,false,false,false,false,false,false,false,false,false,false,false,false,false,null,{"$f":"AND($BG169=FALSE,AND(AR201<>\"\",AR201=FALSE),AR169=\"\")","v":false},false,false,false,false,false,false,false,false,false]
["ausblenden",null,91,null,null,false,false,false,false,false,false,false,null,false,false,false,false,false,false,false,false,true,{"$f":"AND($BG170=FALSE,AND(W202<>\"\",W202=FALSE),W170=\"\")","v":false},false,false,false,false,false,false,false,false,false,false,false,false,false,false,false,false,false,false,false,null,{"$f":"AND($BG170=FALSE,AND(AR202<>\"\",AR202=FALSE),AR170=\"\")","v":false},false,false,false,false,false,false,false,false,false]
["ausblenden",null,92,null,null,{"$f":"AND($BG171=FALSE,AND(F203<>\"\",F203=FALSE),F171=\"\")","v":false},false,false,false,false,false,false,null,{"$f":"AND($BG101=FALSE,AND(N203<>\"\",N203=FALSE),N101=\"\")","v":false},false,false,false,{"$f":"AND($BG171=FALSE,AND(R203<>\"\",R203=FALSE),R171=\"\")","v":false},false,false,false,true,{"$f":"AND($BG171=FALSE,AND(W203<>\"\",W203=FALSE),W171=\"\")","v":false},false,false,false,false,false,false,false,false,false,false,false,false,false,false,false,false,false,false,false,null,{"$f":"AND($BG171=FALSE,AND(AR203<>\"\",AR203=FALSE),AR171=\"\")","v":false},false,false,false,false,false,false,false,false,false]
["ausblenden",null,93,null,null,false,false,false,false,false,false,false,null,false,false,false,false,false,false,false,false,true,{"$f":"AND($BG172=FALSE,AND(W204<>\"\",W204=FALSE),W172=\"\")","v":false},false,false,false,false,false,false,false,false,false,false,false,false,false,false,false,false,false,false,false,null,{"$f":"AND($BG172=FALSE,AND(AR204<>\"\",AR204=FALSE),AR172=\"\")","v":false},false,false,false,false,false,false,false,false,false]
["ausblenden",null,94,null,null,false,false,false,false,false,false,false,null,false,false,false,false,false,false,false,false,true,{"$f":"AND($BG173=FALSE,AND(W205<>\"\",W205=FALSE),W173=\"\")","v":false},false,false,false,false,false,false,false,false,false,false,false,false,false,false,false,false,false,false,false,null,{"$f":"AND($BG173=FALSE,AND(AR205<>\"\",AR205=FALSE),AR173=\"\")","v":false},false,false,false,false,false,false,false,false,false]
["ausblenden",null,95,null,null,false,false,false,false,false,false,false,null,false,false,false,false,false,false,false,false,true,{"$f":"AND($BG174=FALSE,AND(W206<>\"\",W206=FALSE),W174=\"\")","v":false},false,false,false,false,false,false,false,false,false,false,false,false,false,false,false,false,false,false,false,null,{"$f":"AND($BG174=FALSE,AND(AR206<>\"\",AR206=FALSE),AR174=\"\")","v":false},false,false,false,false,false,false,false,false,false]
["ausblenden",null,96,null,null,false,false,false,false,false,false,false,null,false,false,false,{"$f":"AND($BG175=FALSE,AND(Q207<>\"\",Q207=FALSE),Q175=\"\")","v":false},false,false,false,false,true,{"$f":"AND($BG175=FALSE,AND(W207<>\"\",W207=FALSE),W175=\"\")","v":false},false,false,false,false,false,false,false,false,false,false,false,false,false,false,false,false,false,false,false,null,{"$f":"AND($BG175=FALSE,AND(AR207<>\"\",AR207=FALSE),AR175=\"\")","v":false},false,false,false,false,false,false,false,false,false]
["ausblenden",null,97,null,null,false,false,false,false,false,false,false,null,false,false,false,false,false,false,false,false,true,{"$f":"AND($BG176=FALSE,AND(W208<>\"\",W208=FALSE),W176=\"\")","v":false},false,false,false,false,false,false,false,false,false,false,false,false,false,false,false,false,false,false,false,null,{"$f":"AND($BG176=FALSE,AND(AR208<>\"\",AR208=FALSE),AR176=\"\")","v":false},false,false,false,false,false,false,false,false,false]
["ausblenden",null,98,null,null,false,false,false,false,false,false,false,null,false,false,false,false,false,false,false,false,true,{"$f":"AND($BG177=FALSE,AND(W209<>\"\",W209=FALSE),W177=\"\")","v":false},false,false,false,false,false,false,false,false,false,false,false,false,false,false,false,false,false,false,false,null,{"$f":"AND($BG177=FALSE,AND(AR209<>\"\",AR209=FALSE),AR177=\"\")","v":false},false,false,false,false,false,false,false,false,false]
["ausblenden",null,99,null,null,false,false,false,false,false,false,false,null,false,false,false,false,false,false,false,false,true,{"$f":"AND($BG178=FALSE,AND(W210<>\"\",W210=FALSE),W178=\"\")","v":false},false,false,false,false,false,false,false,false,false,false,false,false,false,false,false,false,false,false,false,null,{"$f":"AND($BG178=FALSE,AND(AR210<>\"\",AR210=FALSE),AR178=\"\")","v":false},false,false,false,false,false,false,false,false,false]
["ausblenden",null,100,null,null,false,false,false,false,false,false,false,null,false,false,false,false,false,false,false,false,true,{"$f":"AND($BG179=FALSE,AND(W211<>\"\",W211=FALSE),W179=\"\")","v":false},false,false,false,false,false,false,false,false,false,false,false,false,false,false,false,false,false,false,false,null,{"$f":"AND($BG179=FALSE,AND(AR211<>\"\",AR211=FALSE),AR179=\"\")","v":false},false,false,false,false,false,false,false,false,false]
["ausblenden"]

{"sheet":"Summary_Communication","index":13,"n_rows":128,"n_cols":66,"rows_kept":128,"merged":[[1,1,1,5],[3,3,3,12],[4,3,4,12],[10,3,10,5],[10,25,10,26],[10,27,10,28],[10,29,10,30],[10,31,10,32],[11,25,11,26],[11,27,11,28],[11,29,11,30],[11,31,11,32],[12,25,12,26],[12,27,12,28],[12,29,12,30],[12,31,12,32],[24,39,24,40],[24,42,24,43],[24,46,24,47],[24,48,24,49],[24,50,24,51]]}
["ausblenden",{"$nulls":52},"ausblenden","ausblenden","ausblenden","ausblenden","ausblenden","ausblenden","ausblenden","ausblenden","ausblenden","ausblenden","ausblenden","ausblenden","ausblenden"]
[null,{"$f":"Translations!$B$619","v":"Communication with reporting declarants"},{"$nulls":51},"Print area:",{"$f":"ADDRESS(ROW($B$2),COLUMN($B$2))&\":\"&ADDRESS(MATCH(\"PRINT\",$AY:$AY,0),COLUMN($AY$2))","v":"$B$2:$AY$127"},"Name of this sheet",{"$f":"IF(ISERROR(CELL(\"filename\",BF2)),\"MSParameters\",MID(CELL(\"filename\",BF2),FIND(\"]\",CELL(\"filename\",BF2))+1,1024))","v":"Summary_Communication"}]
[]
[]
[{"$nulls":3},{"$f":"Translations!$B$620","v":"This sheet summarises the main information from sheets \"Summary_Processes\" and \"Summary_Products\" to be communicated to the reporting declarants importing the goods into the European Union. In contrast to previous sheets, the headers and content of the tables will always be in English language in order to avoid translation problems with reporting declarants."}]
[]
[]
[null,null,1,{"$f":"Translations!$B$621","v":"Summary of the installation and production processes"}]
[]
[null,null,1,{"$f":"Translations!$B$622","v":"Installation details"},{"$nulls":3},2,{"$f":"Translations!$B$623","v":"Summary of the production processes and production routes, where relevant"},{"$nulls":15},3,{"$f":"Translations!$B$1874","v":"Summary of emissions by monitoring methodology and data quality"}]
[{"$nulls":3},"Parameter",null,null,"Value","(a) ","Aggregated good produced","Route 1","Route 2","Route 3","Route 4","Route 5","Route 6","(b) ","Production process","Aggregated goods category",1,2,3,4,5,6,null,"Calculation - based (excl. PFC emissions)",null,"Total PFC emissions",null,"Measurement - based",null,"Other"]
[{"$nulls":3},"Name of the installation (English name):",null,null,{"$f":"Summary_Processes!G10","v":""},{"$f":"Summary_Processes!D20","v":"G1"},{"$f":"IF(Summary_Processes!E20=\"\",\"\",INDEX(Translations!$C:$C,MATCH(Summary_Processes!E20,Translations!$B:$B,0)))","v":""},{"$f":"IF(Summary_Processes!G20=\"\",\"\",INDEX(Translations!$C:$C,MATCH(Summary_Processes!G20,Translations!$B:$B,0)))","v":""},{"$f":"IF(Summary_Processes!H20=\"\",\"\",INDEX(Translations!$C:$C,MATCH(Summary_Processes!H20,Translations!$B:$B,0)))","v":""},{"$f":"IF(Summary_Processes!I20=\"\",\"\",INDEX(Translations!$C:$C,MATCH(Summary_Processes!I20,Translations!$B:$B,0)))","v":""},{"$f":"IF(Summary_Processes!J20=\"\",\"\",INDEX(Translations!$C:$C,MATCH(Summary_Processes!J20,Translations!$B:$B,0)))","v":""},{"$f":"IF(Summary_Processes!K20=\"\",\"\",INDEX(Translations!$C:$C,MATCH(Summary_Processes!K20,Translations!$B:$B,0)))","v":""},{"$f":"IF(Summary_Processes!L20=\"\",\"\",INDEX(Translations!$C:$C,MATCH(Summary_Processes!L20,Translations!$B:$B,0)))","v":""},{"$f":"Summary_Processes!D32","v":"P1"},{"$f":"Summary_Processes!E32","v":""},{"$f":"IF(Summary_Processes!F32=\"\",\"\",INDEX(Translations!$C:$C,MATCH(Summary_Processes!F32,Translations!$B:$B,0)))","v":""},{"$f":"IF(Summary_Processes!G32=\"\",\"\",INDEX(Translations!$C:$C,MATCH(Summary_Processes!G32,Translations!$B:$B,0)))","v":""},{"$f":"IF(Summary_Processes!H32=\"\",\"\",INDEX(Translations!$C:$C,MATCH(Summary_Processes!H32,Translations!$B:$B,0)))","v":""},{"$f":"IF(Summary_Processes!I32=\"\",\"\",INDEX(Translations!$C:$C,MATCH(Summary_Processes!I32,Translations!$B:$B,0)))","v":""},{"$f":"IF(Summary_Processes!J32=\"\",\"\",INDEX(Translations!$C:$C,MATCH(Summary_Processes!J32,Translations!$B:$B,0)))","v":""},{"$f":"IF(Summary_Processes!K32=\"\",\"\",INDEX(Translations!$C:$C,MATCH(Summary_Processes!K32,Translations!$B:$B,0)))","v":""},{"$f":"IF(Summary_Processes!L32=\"\",\"\",INDEX(Translations!$C:$C,MATCH(Summary_Processes!L32,Translations!$B:$B,0)))","v":""},null,{"$f":"CONST_tCO2eq","v":"tCO2e"},null,{"$f":"CONST_tCO2eq","v":"tCO2e"},null,{"$f":"CONST_tCO2eq","v":"tCO2e"},null,{"$f":"CONST_tCO2eq","v":"tCO2e"}]
[{"$nulls":3},"Street, Number:",null,null,{"$f":"Summary_Processes!G11","v":""},{"$f":"Summary_Processes!D21","v":"G2"},{"$f":"IF(Summary_Processes!E21=\"\",\"\",INDEX(Translations!$C:$C,MATCH(Summary_Processes!E21,Translations!$B:$B,0)))","v":""},{"$f":"IF(Summary_Processes!G21=\"\",\"\",INDEX(Translations!$C:$C,MATCH(Summary_Processes!G21,Translations!$B:$B,0)))","v":""},{"$f":"IF(Summary_Processes!H21=\"\",\"\",INDEX(Translations!$C:$C,MATCH(Summary_Processes!H21,Translations!$B:$B,0)))","v":""},{"$f":"IF(Summary_Processes!I21=\"\",\"\",INDEX(Translations!$C:$C,MATCH(Summary_Processes!I21,Translations!$B:$B,0)))","v":""},{"$f":"IF(Summary_Processes!J21=\"\",\"\",INDEX(Translations!$C:$C,MATCH(Summary_Processes!J21,Translations!$B:$B,0)))","v":""},{"$f":"IF(Summary_Processes!K21=\"\",\"\",INDEX(Translations!$C:$C,MATCH(Summary_Processes!K21,Translations!$B:$B,0)))","v":""},{"$f":"IF(Summary_Processes!L21=\"\",\"\",INDEX(Translations!$C:$C,MATCH(Summary_Processes!L21,Translations!$B:$B,0)))","v":""},{"$f":"Summary_Processes!D33","v":"P2"},{"$f":"Summary_Processes!E33","v":""},{"$f":"IF(Summary_Processes!F33=\"\",\"\",INDEX(Translations!$C:$C,MATCH(Summary_Processes!F33,Translations!$B:$B,0)))","v":""},{"$f":"IF(Summary_Processes!G33=\"\",\"\",INDEX(Translations!$C:$C,MATCH(Summary_Processes!G33,Translations!$B:$B,0)))","v":""},{"$f":"IF(Summary_Processes!H33=\"\",\"\",INDEX(Translations!$C:$C,MATCH(Summary_Processes!H33,Translations!$B:$B,0)))","v":""},{"$f":"IF(Summary_Processes!I33=\"\",\"\",INDEX(Translations!$C:$C,MATCH(Summary_Processes!I33,Translations!$B:$B,0)))","v":""},{"$f":"IF(Summary_Processes!J33=\"\",\"\",INDEX(Translations!$C:$C,MATCH(Summary_Processes!J33,Translations!$B:$B,0)))","v":""},{"$f":"IF(Summary_Processes!K33=\"\",\"\",INDEX(Translations!$C:$C,MATCH(Summary_Processes!K33,Translations!$B:$B,0)))","v":""},{"$f":"IF(Summary_Processes!L33=\"\",\"\",INDEX(Translations!$C:$C,MATCH(Summary_Processes!L33,Translations!$B:$B,0)))","v":""},null,{"$f":"'C_Emissions&Energy'!H31","v":""},null,{"$f":"'C_Emissions&Energy'!I31","v":""},null,{"$f":"'C_Emissions&Energy'!J31","v":""},null,{"$f":"'C_Emissions&Energy'!K31","v":""}]
[{"$nulls":3},"Economic activity:",null,null,{"$f":"Summary_Processes!G12","v":""},{"$f":"Summary_Processes!D22","v":"G3"},{"$f":"IF(Summary_Processes!E22=\"\",\"\",INDEX(Translations!$C:$C,MATCH(Summary_Processes!E22,Translations!$B:$B,0)))","v":""},{"$f":"IF(Summary_Processes!G22=\"\",\"\",INDEX(Translations!$C:$C,MATCH(Summary_Processes!G22,Translations!$B:$B,0)))","v":""},{"$f":"IF(Summary_Processes!H22=\"\",\"\",INDEX(Translations!$C:$C,MATCH(Summary_Processes!H22,Translations!$B:$B,0)))","v":""},{"$f":"IF(Summary_Processes!I22=\"\",\"\",INDEX(Translations!$C:$C,MATCH(Summary_Processes!I22,Translations!$B:$B,0)))","v":""},{"$f":"IF(Summary_Processes!J22=\"\",\"\",INDEX(Translations!$C:$C,MATCH(Summary_Processes!J22,Translations!$B:$B,0)))","v":""},{"$f":"IF(Summary_Processes!K22=\"\",\"\",INDEX(Translations!$C:$C,MATCH(Summary_Processes!K22,Translations!$B:$B,0)))","v":""},{"$f":"IF(Summary_Processes!L22=\"\",\"\",INDEX(Translations!$C:$C,MATCH(Summary_Processes!L22,Translations!$B:$B,0)))","v":""},{"$f":"Summary_Processes!D34","v":"P3"},{"$f":"Summary_Processes!E34","v":""},{"$f":"IF(Summary_Processes!F34=\"\",\"\",INDEX(Translations!$C:$C,MATCH(Summary_Processes!F34,Translations!$B:$B,0)))","v":""},{"$f":"IF(Summary_Processes!G34=\"\",\"\",INDEX(Translations!$C:$C,MATCH(Summary_Processes!G34,Translations!$B:$B,0)))","v":""},{"$f":"IF(Summary_Processes!H34=\"\",\"\",INDEX(Translations!$C:$C,MATCH(Summary_Processes!H34,Translations!$B:$B,0)))","v":""},{"$f":"IF(Summary_Processes!I34=\"\",\"\",INDEX(Translations!$C:$C,MATCH(Summary_Processes!I34,Translations!$B:$B,0)))","v":""},{"$f":"IF(Summary_Processes!J34=\"\",\"\",INDEX(Translations!$C:$C,MATCH(Summary_Processes!J34,Translations!$B:$B,0)))","v":""},{"$f":"IF(Summary_Processes!K34=\"\",\"\",INDEX(Translations!$C:$C,MATCH(Summary_Processes!K34,Translations!$B:$B,0)))","v":""},{"$f":"IF(Summary_Processes!L34=\"\",\"\",INDEX(Translations!$C:$C,MATCH(Summary_Processes!L34,Translations!$B:$B,0)))","v":""}]
[{"$nulls":3},"Country:",null,null,{"$f":"A_InstData!S26","v":""},{"$f":"Summary_Processes!D23","v":"G4"},{"$f":"IF(Summary_Processes!E23=\"\",\"\",INDEX(Translations!$C:$C,MATCH(Summary_Processes!E23,Translations!$B:$B,0)))","v":""},{"$f":"IF(Summary_Processes!G23=\"\",\"\",INDEX(Translations!$C:$C,MATCH(Summary_Processes!G23,Translations!$B:$B,0)))","v":""},{"$f":"IF(Summary_Processes!H23=\"\",\"\",INDEX(Translations!$C:$C,MATCH(Summary_Processes!H23,Translations!$B:$B,0)))","v":""},{"$f":"IF(Summary_Processes!I23=\"\",\"\",INDEX(Translations!$C:$C,MATCH(Summary_Processes!I23,Translations!$B:$B,0)))","v":""},{"$f":"IF(Summary_Processes!J23=\"\",\"\",INDEX(Translations!$C:$C,MATCH(Summary_Processes!J23,Translations!$B:$B,0)))","v":""},{"$f":"IF(Summary_Processes!K23=\"\",\"\",INDEX(Translations!$C:$C,MATCH(Summary_Processes!K23,Translations!$B:$B,0)))","v":""},{"$f":"IF(Summary_Processes!L23=\"\",\"\",INDEX(Translations!$C:$C,MATCH(Summary_Processes!L23,Translations!$B:$B,0)))","v":""},{"$f":"Summary_Processes!D35","v":"P4"},{"$f":"Summary_Processes!E35","v":""},{"$f":"IF(Summary_Processes!F35=\"\",\"\",INDEX(Translations!$C:$C,MATCH(Summary_Processes!F35,Translations!$B:$B,0)))","v":""},{"$f":"IF(Summary_Processes!G35=\"\",\"\",INDEX(Translations!$C:$C,MATCH(Summary_Processes!G35,Translations!$B:$B,0)))","v":""},{"$f":"IF(Summary_Processes!H35=\"\",\"\",INDEX(Translations!$C:$C,MATCH(Summary_Processes!H35,Translations!$B:$B,0)))","v":""},{"$f":"IF(Summary_Processes!I35=\"\",\"\",INDEX(Translations!$C:$C,MATCH(Summary_Processes!I35,Translations!$B:$B,0)))","v":""},{"$f":"IF(Summary_Processes!J35=\"\",\"\",INDEX(Translations!$C:$C,MATCH(Summary_Processes!J35,Translations!$B:$B,0)))","v":""},{"$f":"IF(Summary_Processes!K35=\"\",\"\",INDEX(Translations!$C:$C,MATCH(Summary_Processes!K35,Translations!$B:$B,0)))","v":""},{"$f":"IF(Summary_Processes!L35=\"\",\"\",INDEX(Translations!$C:$C,MATCH(Summary_Processes!L35,Translations!$B:$B,0)))","v":""},null,"Total direct emissions during reporting period:",{"$nulls":6},{"$f":"CONST_tCO2eq","v":"tCO2e"},{"$f":"'C_Emissions&Energy'!L26","v":""}]
[{"$nulls":3},"UNLOCODE:",null,null,{"$f":"Summary_Processes!G14","v":""},{"$f":"Summary_Processes!D24","v":"G5"},{"$f":"IF(Summary_Processes!E24=\"\",\"\",INDEX(Translations!$C:$C,MATCH(Summary_Processes!E24,Translations!$B:$B,0)))","v":""},{"$f":"IF(Summary_Processes!G24=\"\",\"\",INDEX(Translations!$C:$C,MATCH(Summary_Processes!G24,Translations!$B:$B,0)))","v":""},{"$f":"IF(Summary_Processes!H24=\"\",\"\",INDEX(Translations!$C:$C,MATCH(Summary_Processes!H24,Translations!$B:$B,0)))","v":""},{"$f":"IF(Summary_Processes!I24=\"\",\"\",INDEX(Translations!$C:$C,MATCH(Summary_Processes!I24,Translations!$B:$B,0)))","v":""},{"$f":"IF(Summary_Processes!J24=\"\",\"\",INDEX(Translations!$C:$C,MATCH(Summary_Processes!J24,Translations!$B:$B,0)))","v":""},{"$f":"IF(Summary_Processes!K24=\"\",\"\",INDEX(Translations!$C:$C,MATCH(Summary_Processes!K24,Translations!$B:$B,0)))","v":""},{"$f":"IF(Summary_Processes!L24=\"\",\"\",INDEX(Translations!$C:$C,MATCH(Summary_Processes!L24,Translations!$B:$B,0)))","v":""},{"$f":"Summary_Processes!D36","v":"P5"},{"$f":"Summary_Processes!E36","v":""},{"$f":"IF(Summary_Processes!F36=\"\",\"\",INDEX(Translations!$C:$C,MATCH(Summary_Processes!F36,Translations!$B:$B,0)))","v":""},{"$f":"IF(Summary_Processes!G36=\"\",\"\",INDEX(Translations!$C:$C,MATCH(Summary_Processes!G36,Translations!$B:$B,0)))","v":""},{"$f":"IF(Summary_Processes!H36=\"\",\"\",INDEX(Translations!$C:$C,MATCH(Summary_Processes!H36,Translations!$B:$B,0)))","v":""},{"$f":"IF(Summary_Processes!I36=\"\",\"\",INDEX(Translations!$C:$C,MATCH(Summary_Processes!I36,Translations!$B:$B,0)))","v":""},{"$f":"IF(Summary_Processes!J36=\"\",\"\",INDEX(Translations!$C:$C,MATCH(Summary_Processes!J36,Translations!$B:$B,0)))","v":""},{"$f":"IF(Summary_Processes!K36=\"\",\"\",INDEX(Translations!$C:$C,MATCH(Summary_Processes!K36,Translations!$B:$B,0)))","v":""},{"$f":"IF(Summary_Processes!L36=\"\",\"\",INDEX(Translations!$C:$C,MATCH(Summary_Processes!L36,Translations!$B:$B,0)))","v":""},null,"Total indirect emissions during reporting period:",{"$nulls":6},{"$f":"CONST_tCO2eq","v":"tCO2e"},{"$f":"'C_Emissions&Energy'!M26","v":""}]
[{"$nulls":3},"Coordinates of the main emission source (latitude):",null,null,{"$f":"Summary_Processes!G15","v":""},{"$f":"Summary_Processes!D25","v":"G6"},{"$f":"IF(Summary_Processes!E25=\"\",\"\",INDEX(Translations!$C:$C,MATCH(Summary_Processes!E25,Translations!$B:$B,0)))","v":""},{"$f":"IF(Summary_Processes!G25=\"\",\"\",INDEX(Translations!$C:$C,MATCH(Summary_Processes!G25,Translations!$B:$B,0)))","v":""},{"$f":"IF(Summary_Processes!H25=\"\",\"\",INDEX(Translations!$C:$C,MATCH(Summary_Processes!H25,Translations!$B:$B,0)))","v":""},{"$f":"IF(Summary_Processes!I25=\"\",\"\",INDEX(Translations!$C:$C,MATCH(Summary_Processes!I25,Translations!$B:$B,0)))","v":""},{"$f":"IF(Summary_Processes!J25=\"\",\"\",INDEX(Translations!$C:$C,MATCH(Summary_Processes!J25,Translations!$B:$B,0)))","v":""},{"$f":"IF(Summary_Processes!K25=\"\",\"\",INDEX(Translations!$C:$C,MATCH(Summary_Processes!K25,Translations!$B:$B,0)))","v":""},{"$f":"IF(Summary_Processes!L25=\"\",\"\",INDEX(Translations!$C:$C,MATCH(Summary_Processes!L25,Translations!$B:$B,0)))","v":""},{"$f":"Summary_Processes!D37","v":"P6"},{"$f":"Summary_Processes!E37","v":""},{"$f":"IF(Summary_Processes!F37=\"\",\"\",INDEX(Translations!$C:$C,MATCH(Summary_Processes!F37,Translations!$B:$B,0)))","v":""},{"$f":"IF(Summary_Processes!G37=\"\",\"\",INDEX(Translations!$C:$C,MATCH(Summary_Processes!G37,Translations!$B:$B,0)))","v":""},{"$f":"IF(Summary_Processes!H37=\"\",\"\",INDEX(Translations!$C:$C,MATCH(Summary_Processes!H37,Translations!$B:$B,0)))","v":""},{"$f":"IF(Summary_Processes!I37=\"\",\"\",INDEX(Translations!$C:$C,MATCH(Summary_Processes!I37,Translations!$B:$B,0)))","v":""},{"$f":"IF(Summary_Processes!J37=\"\",\"\",INDEX(Translations!$C:$C,MATCH(Summary_Processes!J37,Translations!$B:$B,0)))","v":""},{"$f":"IF(Summary_Processes!K37=\"\",\"\",INDEX(Translations!$C:$C,MATCH(Summary_Processes!K37,Translations!$B:$B,0)))","v":""},{"$f":"IF(Summary_Processes!L37=\"\",\"\",INDEX(Translations!$C:$C,MATCH(Summary_Processes!L37,Translations!$B:$B,0)))","v":""},null,"Total emissions during reporting period:",{"$nulls":6},{"$f":"CONST_tCO2eq","v":"tCO2e"},{"$f":"'C_Emissions&Energy'!N26","v":""}]
[{"$nulls":3},"Coordinates of the main emission source (longitude):",null,null,{"$f":"Summary_Processes!G16","v":""},{"$f":"Summary_Processes!D26","v":"G7"},{"$f":"IF(Summary_Processes!E26=\"\",\"\",INDEX(Translations!$C:$C,MATCH(Summary_Processes!E26,Translations!$B:$B,0)))","v":""},{"$f":"IF(Summary_Processes!G26=\"\",\"\",INDEX(Translations!$C:$C,MATCH(Summary_Processes!G26,Translations!$B:$B,0)))","v":""},{"$f":"IF(Summary_Processes!H26=\"\",\"\",INDEX(Translations!$C:$C,MATCH(Summary_Processes!H26,Translations!$B:$B,0)))","v":""},{"$f":"IF(Summary_Processes!I26=\"\",\"\",INDEX(Translations!$C:$C,MATCH(Summary_Processes!I26,Translations!$B:$B,0)))","v":""},{"$f":"IF(Summary_Processes!J26=\"\",\"\",INDEX(Translations!$C:$C,MATCH(Summary_Processes!J26,Translations!$B:$B,0)))","v":""},{"$f":"IF(Summary_Processes!K26=\"\",\"\",INDEX(Translations!$C:$C,MATCH(Summary_Processes!K26,Translations!$B:$B,0)))","v":""},{"$f":"IF(Summary_Processes!L26=\"\",\"\",INDEX(Translations!$C:$C,MATCH(Summary_Processes!L26,Translations!$B:$B,0)))","v":""},{"$f":"Summary_Processes!D38","v":"P7"},{"$f":"Summary_Processes!E38","v":""},{"$f":"IF(Summary_Processes!F38=\"\",\"\",INDEX(Translations!$C:$C,MATCH(Summary_Processes!F38,Translations!$B:$B,0)))","v":""},{"$f":"IF(Summary_Processes!G38=\"\",\"\",INDEX(Translations!$C:$C,MATCH(Summary_Processes!G38,Translations!$B:$B,0)))","v":""},{"$f":"IF(Summary_Processes!H38=\"\",\"\",INDEX(Translations!$C:$C,MATCH(Summary_Processes!H38,Translations!$B:$B,0)))","v":""},{"$f":"IF(Summary_Processes!I38=\"\",\"\",INDEX(Translations!$C:$C,MATCH(Summary_Processes!I38,Translations!$B:$B,0)))","v":""},{"$f":"IF(Summary_Processes!J38=\"\",\"\",INDEX(Translations!$C:$C,MATCH(Summary_Processes!J38,Translations!$B:$B,0)))","v":""},{"$f":"IF(Summary_Processes!K38=\"\",\"\",INDEX(Translations!$C:$C,MATCH(Summary_Processes!K38,Translations!$B:$B,0)))","v":""},{"$f":"IF(Summary_Processes!L38=\"\",\"\",INDEX(Translations!$C:$C,MATCH(Summary_Processes!L38,Translations!$B:$B,0)))","v":""}]
[{"$nulls":3},"Reporting period start:",null,null,{"$f":"Summary_Processes!L10","v":""},{"$f":"Summary_Processes!D27","v":"G8"},{"$f":"IF(Summary_Processes!E27=\"\",\"\",INDEX(Translations!$C:$C,MATCH(Summary_Processes!E27,Translations!$B:$B,0)))","v":""},{"$f":"IF(Summary_Processes!G27=\"\",\"\",INDEX(Translations!$C:$C,MATCH(Summary_Processes!G27,Translations!$B:$B,0)))","v":""},{"$f":"IF(Summary_Processes!H27=\"\",\"\",INDEX(Translations!$C:$C,MATCH(Summary_Processes!H27,Translations!$B:$B,0)))","v":""},{"$f":"IF(Summary_Processes!I27=\"\",\"\",INDEX(Translations!$C:$C,MATCH(Summary_Processes!I27,Translations!$B:$B,0)))","v":""},{"$f":"IF(Summary_Processes!J27=\"\",\"\",INDEX(Translations!$C:$C,MATCH(Summary_Processes!J27,Translations!$B:$B,0)))","v":""},{"$f":"IF(Summary_Processes!K27=\"\",\"\",INDEX(Translations!$C:$C,MATCH(Summary_Processes!K27,Translations!$B:$B,0)))","v":""},{"$f":"IF(Summary_Processes!L27=\"\",\"\",INDEX(Translations!$C:$C,MATCH(Summary_Processes!L27,Translations!$B:$B,0)))","v":""},{"$f":"Summary_Processes!D39","v":"P8"},{"$f":"Summary_Processes!E39","v":""},{"$f":"IF(Summary_Processes!F39=\"\",\"\",INDEX(Translations!$C:$C,MATCH(Summary_Processes!F39,Translations!$B:$B,0)))","v":""},{"$f":"IF(Summary_Processes!G39=\"\",\"\",INDEX(Translations!$C:$C,MATCH(Summary_Processes!G39,Translations!$B:$B,0)))","v":""},{"$f":"IF(Summary_Processes!H39=\"\",\"\",INDEX(Translations!$C:$C,MATCH(Summary_Processes!H39,Translations!$B:$B,0)))","v":""},{"$f":"IF(Summary_Processes!I39=\"\",\"\",INDEX(Translations!$C:$C,MATCH(Summary_Processes!I39,Translations!$B:$B,0)))","v":""},{"$f":"IF(Summary_Processes!J39=\"\",\"\",INDEX(Translations!$C:$C,MATCH(Summary_Processes!J39,Translations!$B:$B,0)))","v":""},{"$f":"IF(Summary_Processes!K39=\"\",\"\",INDEX(Translations!$C:$C,MATCH(Summary_Processes!K39,Translations!$B:$B,0)))","v":""},{"$f":"IF(Summary_Processes!L39=\"\",\"\",INDEX(Translations!$C:$C,MATCH(Summary_Processes!L39,Translations!$B:$B,0)))","v":""},null,"General information on data quality:",null,null,{"$f":"IF('C_Emissions&Energy'!H39=\"\",\"\",INDEX(Translations!$C:$C,MATCH('C_Emissions&Energy'!H39,Translations!$B:$B,0)))","v":""}]
[{"$nulls":3},"Reporting period end:",null,null,{"$f":"Summary_Processes!L11","v":""},{"$f":"Summary_Processes!D28","v":"G9"},{"$f":"IF(Summary_Processes!E28=\"\",\"\",INDEX(Translations!$C:$C,MATCH(Summary_Processes!E28,Translations!$B:$B,0)))","v":""},{"$f":"IF(Summary_Processes!G28=\"\",\"\",INDEX(Translations!$C:$C,MATCH(Summary_Processes!G28,Translations!$B:$B,0)))","v":""},{"$f":"IF(Summary_Processes!H28=\"\",\"\",INDEX(Translations!$C:$C,MATCH(Summary_Processes!H28,Translations!$B:$B,0)))","v":""},{"$f":"IF(Summary_Processes!I28=\"\",\"\",INDEX(Translations!$C:$C,MATCH(Summary_Processes!I28,Translations!$B:$B,0)))","v":""},{"$f":"IF(Summary_Processes!J28=\"\",\"\",INDEX(Translations!$C:$C,MATCH(Summary_Processes!J28,Translations!$B:$B,0)))","v":""},{"$f":"IF(Summary_Processes!K28=\"\",\"\",INDEX(Translations!$C:$C,MATCH(Summary_Processes!K28,Translations!$B:$B,0)))","v":""},{"$f":"IF(Summary_Processes!L28=\"\",\"\",INDEX(Translations!$C:$C,MATCH(Summary_Processes!L28,Translations!$B:$B,0)))","v":""},{"$f":"Summary_Processes!D40","v":"P9"},{"$f":"Summary_Processes!E40","v":""},{"$f":"IF(Summary_Processes!F40=\"\",\"\",INDEX(Translations!$C:$C,MATCH(Summary_Processes!F40,Translations!$B:$B,0)))","v":""},{"$f":"IF(Summary_Processes!G40=\"\",\"\",INDEX(Translations!$C:$C,MATCH(Summary_Processes!G40,Translations!$B:$B,0)))","v":""},{"$f":"IF(Summary_Processes!H40=\"\",\"\",INDEX(Translations!$C:$C,MATCH(Summary_Processes!H40,Translations!$B:$B,0)))","v":""},{"$f":"IF(Summary_Processes!I40=\"\",\"\",INDEX(Translations!$C:$C,MATCH(Summary_Processes!I40,Translations!$B:$B,0)))","v":""},{"$f":"IF(Summary_Processes!J40=\"\",\"\",INDEX(Translations!$C:$C,MATCH(Summary_Processes!J40,Translations!$B:$B,0)))","v":""},{"$f":"IF(Summary_Processes!K40=\"\",\"\",INDEX(Translations!$C:$C,MATCH(Summary_Processes!K40,Translations!$B:$B,0)))","v":""},{"$f":"IF(Summary_Processes!L40=\"\",\"\",INDEX(Translations!$C:$C,MATCH(Summary_Processes!L40,Translations!$B:$B,0)))","v":""},null,"Justification for use of default values (if relevant):",null,null,{"$f":"IF('C_Emissions&Energy'!H40=\"\",\"\",INDEX(Translations!$C:$C,MATCH('C_Emissions&Energy'!H40,Translations!$B:$B,0)))","v":""}]
[{"$nulls":7},{"$f":"Summary_Processes!D29","v":"G10"},{"$f":"IF(Summary_Processes!E29=\"\",\"\",INDEX(Translations!$C:$C,MATCH(Summary_Processes!E29,Translations!$B:$B,0)))","v":""},{"$f":"IF(Summary_Processes!G29=\"\",\"\",INDEX(Translations!$C:$C,MATCH(Summary_Processes!G29,Translations!$B:$B,0)))","v":""},{"$f":"IF(Summary_Processes!H29=\"\",\"\",INDEX(Translations!$C:$C,MATCH(Summary_Processes!H29,Translations!$B:$B,0)))","v":""},{"$f":"IF(Summary_Processes!I29=\"\",\"\",INDEX(Translations!$C:$C,MATCH(Summary_Processes!I29,Translations!$B:$B,0)))","v":""},{"$f":"IF(Summary_Processes!J29=\"\",\"\",INDEX(Translations!$C:$C,MATCH(Summary_Processes!J29,Translations!$B:$B,0)))","v":""},{"$f":"IF(Summary_Processes!K29=\"\",\"\",INDEX(Translations!$C:$C,MATCH(Summary_Processes!K29,Translations!$B:$B,0)))","v":""},{"$f":"IF(Summary_Processes!L29=\"\",\"\",INDEX(Translations!$C:$C,MATCH(Summary_Processes!L29,Translations!$B:$B,0)))","v":""},{"$f":"Summary_Processes!D41","v":"P10"},{"$f":"Summary_Processes!E41","v":""},{"$f":"IF(Summary_Processes!F41=\"\",\"\",INDEX(Translations!$C:$C,MATCH(Summary_Processes!F41,Translations!$B:$B,0)))","v":""},{"$f":"IF(Summary_Processes!G41=\"\",\"\",INDEX(Translations!$C:$C,MATCH(Summary_Processes!G41,Translations!$B:$B,0)))","v":""},{"$f":"IF(Summary_Processes!H41=\"\",\"\",INDEX(Translations!$C:$C,MATCH(Summary_Processes!H41,Translations!$B:$B,0)))","v":""},{"$f":"IF(Summary_Processes!I41=\"\",\"\",INDEX(Translations!$C:$C,MATCH(Summary_Processes!I41,Translations!$B:$B,0)))","v":""},{"$f":"IF(Summary_Processes!J41=\"\",\"\",INDEX(Translations!$C:$C,MATCH(Summary_Processes!J41,Translations!$B:$B,0)))","v":""},{"$f":"IF(Summary_Processes!K41=\"\",\"\",INDEX(Translations!$C:$C,MATCH(Summary_Processes!K41,Translations!$B:$B,0)))","v":""},{"$f":"IF(Summary_Processes!L41=\"\",\"\",INDEX(Translations!$C:$C,MATCH(Summary_Processes!L41,Translations!$B:$B,0)))","v":""},null,"Information on quality assurance:",null,null,{"$f":"IF('C_Emissions&Energy'!H41=\"\",\"\",INDEX(Translations!$C:$C,MATCH('C_Emissions&Energy'!H41,Translations!$B:$B,0)))","v":""}]
[]
[null,null,2,{"$f":"Translations!$B$465","v":"Summary of products"}]
[]
[{"$nulls":3},"Production process from which the products arise","Type of aggregated good or precursor","CN Codes","CN Name","Product name \n(used for communication with reporting declarant, e.g. on invoices)","SEE (direct)","SEE (indirect)","SEE (total)","Unit","Share of emissions by default value","Source for electricity EF","Embedded electricity (MWh/t)","The main reducing agent of the precursor, if known","Steel mill identification number","% Mn","% Cr","% Ni","% other alloys","% carbon","t scrap per t steel","% other materials","% pre-consumer scrap","t scrap per t aluminium","% non-aluminium elements","Clinker factor","Calcined or not","Concentration, if hydrous solution","% nitric acid","% urea","% N contained","% N as ammonium (NH4+)","% N as nitrate (NO3–)","% N as Urea","% N in other (organic) forms","Form of carbon price","Share of total embedded emissions covered by the carbon price","Embedded emissions covered by the carbon price",null,"Currency","Carbon price (CP) due (local currency)",null,"Form of rebate","Share of embedded emissions covered by the rebate","Embedded emissions covered by rebate",null,"Amount of rebate (local currency)",null,"Result: Effective CP due"]
[null,null,1,{"$f":"IF(Summary_Products!D10=\"\",\"\",Summary_Products!D10)","v":""},{"$f":"IF(Summary_Products!E10=\"\",\"\",INDEX(Translations!$C:$C,MATCH(Summary_Products!E10,Translations!$B:$B,0)))","v":""},{"$f":"IF(Summary_Products!F10=\"\",\"\",Summary_Products!F10)","v":""},{"$f":"IF(F26=\"\",\"\",INDEX(Parameters_CNCodes!$H$4:$H$752,MATCH(F26,CNCodes_ListKey,0)))","v":""},{"$f":"IF(Summary_Products!H10=\"\",\"\",Summary_Products!H10)","v":""},{"$f":"IF(Summary_Products!I10=\"\",\"\",Summary_Products!I10)","v":""},{"$f":"IF(Summary_Products!J10=\"\",\"\",Summary_Products!J10)","v":""},{"$f":"IF(Summary_Products!K10=\"\",\"\",Summary_Products!K10)","v":""},{"$f":"IF(Summary_Products!L10=\"\",\"\",Summary_Products!L10)","v":""},{"$f":"IF(Summary_Products!M10=\"\",\"\",Summary_Products!M10)","v":""},{"$f":"IF(Summary_Products!N10=\"\",\"\",Summary_Products!N10)","v":""},{"$f":"IF(Summary_Products!O10=\"\",\"\",Summary_Products!O10)","v":""},{"$f":"IF(Summary_Products!P10=\"\",\"\",INDEX(Translations!$C:$C,MATCH(Summary_Products!P10,Translations!$B:$B,0)))","v":""},{"$f":"IF(Summary_Products!Q10=\"\",\"\",Summary_Products!Q10)","v":""},{"$f":"IF(Summary_Products!R10=\"\",\"\",Summary_Products!R10)","v":""},{"$f":"IF(Summary_Products!S10=\"\",\"\",Summary_Products!S10)","v":""},{"$f":"IF(Summary_Products!T10=\"\",\"\",Summary_Products!T10)","v":""},{"$f":"IF(Summary_Products!U10=\"\",\"\",Summary_Products!U10)","v":""},{"$f":"IF(Summary_Products!V10=\"\",\"\",Summary_Products!V10)","v":""},{"$f":"IF(Summary_Products!W10=\"\",\"\",Summary_Products!W10)","v":""},{"$f":"IF(Summary_Products!X10=\"\",\"\",Summary_Products!X10)","v":""},{"$f":"IF(Summary_Products!Y10=\"\",\"\",Summary_Products!Y10)","v":""},{"$f":"IF(Summary_Products!Z10=\"\",\"\",Summary_Products!Z10)","v":""},{"$f":"IF(Summary_Products!AA10=\"\",\"\",Summary_Products!AA10)","v":""},{"$f":"IF(Summary_Products!AB10=\"\",\"\",Summary_Products!AB10)","v":""},{"$f":"IF(Summary_Products!AC10=\"\",\"\",Summary_Products!AC10)","v":""},{"$f":"IF(Summary_Products!AD10=\"\",\"\",Summary_Products!AD10)","v":""},{"$f":"IF(Summary_Products!AE10=\"\",\"\",Summary_Products!AE10)","v":""},{"$f":"IF(Summary_Products!AF10=\"\",\"\",Summary_Products!AF10)","v":""},{"$f":"IF(Summary_Products!AG10=\"\",\"\",Summary_Products!AG10)","v":""},{"$f":"IF(Summary_Products!AH10=\"\",\"\",Summary_Products!AH10)","v":""},{"$f":"IF(Summary_Products!AI10=\"\",\"\",Summary_Products!AI10)","v":""},{"$f":"IF(Summary_Products!AJ10=\"\",\"\",Summary_Products!AJ10)","v":""},{"$f":"IF(Summary_Products!AK10=\"\",\"\",Summary_Products!AK10)","v":""},{"$f":"IF(Summary_Products!AL10=\"\",\"\",INDEX(Translations!$C:$C,MATCH(Summary_Products!AL10,Translations!$B:$B,0)))","v":""},{"$f":"IF(Summary_Products!AM10=\"\",\"\",Summary_Products!AM10)","v":""},{"$f":"IF(Summary_Products!AN10=\"\",\"\",Summary_Products!AN10)","v":""},{"$f":"IF(Summary_Products!AO10=\"\",\"\",Summary_Products!AO10)","v":""},{"$f":"IF(Summary_Products!AP10=\"\",\"\",Summary_Products!AP10)","v":""},{"$f":"IF(Summary_Products!AR10=\"\",\"\",Summary_Products!AR10)","v":""},{"$f":"IF(Summary_Products!AS10=\"\",\"\",Summary_Products!AS10)","v":""},{"$f":"IF(Summary_Products!AT10=\"\",\"\",INDEX(Translations!$C:$C,MATCH(Summary_Products!AT10,Translations!$B:$B,0)))","v":""},{"$f":"IF(Summary_Products!AU10=\"\",\"\",Summary_Products!AU10)","v":""},{"$f":"IF(Summary_Products!AV10=\"\",\"\",Summary_Products!AV10)","v":""},{"$f":"IF(Summary_Products!AW10=\"\",\"\",Summary_Products!AW10)","v":""},{"$f":"IF(Summary_Products!AX10=\"\",\"\",Summary_Products!AX10)","v":""},{"$f":"IF(Summary_Products!AY10=\"\",\"\",Summary_Products!AY10)","v":""},{"$f":"IF(Summary_Products!AZ10=\"\",\"\",Summary_Products!AZ10)","v":""},{"$f":"IF(Summary_Products!BA10=\"\",\"\",Summary_Products!BA10)","v":""}]
[null,null,2,{"$f":"IF(Summary_Products!D11=\"\",\"\",Summary_Products!D11)","v":""},{"$f":"IF(Summary_Products!E11=\"\",\"\",INDEX(Translations!$C:$C,MATCH(Summary_Products!E11,Translations!$B:$B,0)))","v":""},{"$f":"IF(Summary_Products!F11=\"\",\"\",Summary_Products!F11)","v":""},{"$f":"IF(F27=\"\",\"\",INDEX(Parameters_CNCodes!$H$4:$H$752,MATCH(F27,CNCodes_ListKey,0)))","v":""},{"$f":"IF(Summary_Products!H11=\"\",\"\",Summary_Products!H11)","v":""},{"$f":"IF(Summary_Products!I11=\"\",\"\",Summary_Products!I11)","v":""},{"$f":"IF(Summary_Products!J11=\"\",\"\",Summary_Products!J11)","v":""},{"$f":"IF(Summary_Products!K11=\"\",\"\",Summary_Products!K11)","v":""},{"$f":"IF(Summary_Products!L11=\"\",\"\",Summary_Products!L11)","v":""},{"$f":"IF(Summary_Products!M11=\"\",\"\",Summary_Products!M11)","v":""},{"$f":"IF(Summary_Products!N11=\"\",\"\",Summary_Products!N11)","v":""},{"$f":"IF(Summary_Products!O11=\"\",\"\",Summary_Products!O11)","v":""},{"$f":"IF(Summary_Products!P11=\"\",\"\",INDEX(Translations!$C:$C,MATCH(Summary_Products!P11,Translations!$B:$B,0)))","v":""},{"$f":"IF(Summary_Products!Q11=\"\",\"\",Summary_Products!Q11)","v":""},{"$f":"IF(Summary_Products!R11=\"\",\"\",Summary_Products!R11)","v":""},{"$f":"IF(Summary_Products!S11=\"\",\"\",Summary_Products!S11)","v":""},{"$f":"IF(Summary_Products!T11=\"\",\"\",Summary_Products!T11)","v":""},{"$f":"IF(Summary_Products!U11=\"\",\"\",Summary_Products!U11)","v":""},{"$f":"IF(Summary_Products!V11=\"\",\"\",Summary_Products!V11)","v":""},{"$f":"IF(Summary_Products!W11=\"\",\"\",Summary_Products!W11)","v":""},{"$f":"IF(Summary_Products!X11=\"\",\"\",Summary_Products!X11)","v":""},{"$f":"IF(Summary_Products!Y11=\"\",\"\",Summary_Products!Y11)","v":""},{"$f":"IF(Summary_Products!Z11=\"\",\"\",Summary_Products!Z11)","v":""},{"$f":"IF(Summary_Products!AA11=\"\",\"\",Summary_Products!AA11)","v":""},{"$f":"IF(Summary_Products!AB11=\"\",\"\",Summary_Products!AB11)","v":""},{"$f":"IF(Summary_Products!AC11=\"\",\"\",Summary_Products!AC11)","v":""},{"$f":"IF(Summary_Products!AD11=\"\",\"\",Summary_Products!AD11)","v":""},{"$f":"IF(Summary_Products!AE11=\"\",\"\",Summary_Products!AE11)","v":""},{"$f":"IF(Summary_Products!AF11=\"\",\"\",Summary_Products!AF11)","v":""},{"$f":"IF(Summary_Products!AG11=\"\",\"\",Summary_Products!AG11)","v":""},{"$f":"IF(Summary_Products!AH11=\"\",\"\",Summary_Products!AH11)","v":""},{"$f":"IF(Summary_Products!AI11=\"\",\"\",Summary_Products!AI11)","v":""},{"$f":"IF(Summary_Products!AJ11=\"\",\"\",Summary_Products!AJ11)","v":""},{"$f":"IF(Summary_Products!AK11=\"\",\"\",Summary_Products!AK11)","v":""},{"$f":"IF(Summary_Products!AL11=\"\",\"\",INDEX(Translations!$C:$C,MATCH(Summary_Products!AL11,Translations!$B:$B,0)))","v":""},{"$f":"IF(Summary_Products!AM11=\"\",\"\",Summary_Products!AM11)","v":""},{"$f":"IF(Summary_Products!AN11=\"\",\"\",Summary_Products!AN11)","v":""},{"$f":"IF(Summary_Products!AO11=\"\",\"\",Summary_Products!AO11)","v":""},{"$f":"IF(Summary_Products!AP11=\"\",\"\",Summary_Products!AP11)","v":""},{"$f":"IF(Summary_Products!AR11=\"\",\"\",Summary_Products!AR11)","v":""},{"$f":"IF(Summary_Products!AS11=\"\",\"\",Summary_Products!AS11)","v":""},{"$f":"IF(Summary_Products!AT11=\"\",\"\",INDEX(Translations!$C:$C,MATCH(Summary_Products!AT11,Translations!$B:$B,0)))","v":""},{"$f":"IF(Summary_Products!AU11=\"\",\"\",Summary_Products!AU11)","v":""},{"$f":"IF(Summary_Products!AV11=\"\",\"\",Summary_Products!AV11)","v":""},{"$f":"IF(Summary_Products!AW11=\"\",\"\",Summary_Products!AW11)","v":""},{"$f":"IF(Summary_Products!AX11=\"\",\"\",Summary_Products!AX11)","v":""},{"$f":"IF(Summary_Products!AY11=\"\",\"\",Summary_Products!AY11)","v":""},{"$f":"IF(Summary_Products!AZ11=\"\",\"\",Summary_Products!AZ11)","v":""},{"$f":"IF(Summary_Products!BA11=\"\",\"\",Summary_Products!BA11)","v":""}]
[null,null,3,{"$f":"IF(Summary_Products!D12=\"\",\"\",Summary_Products!D12)","v":""},{"$f":"IF(Summary_Products!E12=\"\",\"\",INDEX(Translations!$C:$C,MATCH(Summary_Products!E12,Translations!$B:$B,0)))","v":""},{"$f":"IF(Summary_Products!F12=\"\",\"\",Summary_Products!F12)","v":""},{"$f":"IF(F28=\"\",\"\",INDEX(Parameters_CNCodes!$H$4:$H$752,MATCH(F28,CNCodes_ListKey,0)))","v":""},{"$f":"IF(Summary_Products!H12=\"\",\"\",Summary_Products!H12)","v":""},{"$f":"IF(Summary_Products!I12=\"\",\"\",Summary_Products!I12)","v":""},{"$f":"IF(Summary_Products!J12=\"\",\"\",Summary_Products!J12)","v":""},{"$f":"IF(Summary_Products!K12=\"\",\"\",Summary_Products!K12)","v":""},{"$f":"IF(Summary_Products!L12=\"\",\"\",Summary_Products!L12)","v":""},{"$f":"IF(Summary_Products!M12=\"\",\"\",Summary_Products!M12)","v":""},{"$f":"IF(Summary_Products!N12=\"\",\"\",Summary_Products!N12)","v":""},{"$f":"IF(Summary_Products!O12=\"\",\"\",Summary_Products!O12)","v":""},{"$f":"IF(Summary_Products!P12=\"\",\"\",INDEX(Translations!$C:$C,MATCH(Summary_Products!P12,Translations!$B:$B,0)))","v":""},{"$f":"IF(Summary_Products!Q12=\"\",\"\",Summary_Products!Q12)","v":""},{"$f":"IF(Summary_Products!R12=\"\",\"\",Summary_Products!R12)","v":""},{"$f":"IF(Summary_Products!S12=\"\",\"\",Summary_Products!S12)","v":""},{"$f":"IF(Summary_Products!T12=\"\",\"\",Summary_Products!T12)","v":""},{"$f":"IF(Summary_Products!U12=\"\",\"\",Summary_Products!U12)","v":""},{"$f":"IF(Summary_Products!V12=\"\",\"\",Summary_Products!V12)","v":""},{"$f":"IF(Summary_Products!W12=\"\",\"\",Summary_Products!W12)","v":""},{"$f":"IF(Summary_Products!X12=\"\",\"\",Summary_Products!X12)","v":""},{"$f":"IF(Summary_Products!Y12=\"\",\"\",Summary_Products!Y12)","v":""},{"$f":"IF(Summary_Products!Z12=\"\",\"\",Summary_Products!Z12)","v":""},{"$f":"IF(Summary_Products!AA12=\"\",\"\",Summary_Products!AA12)","v":""},{"$f":"IF(Summary_Products!AB12=\"\",\"\",Summary_Products!AB12)","v":""},{"$f":"IF(Summary_Products!AC12=\"\",\"\",Summary_Products!AC12)","v":""},{"$f":"IF(Summary_Products!AD12=\"\",\"\",Summary_Products!AD12)","v":""},{"$f":"IF(Summary_Products!AE12=\"\",\"\",Summary_Products!AE12)","v":""},{"$f":"IF(Summary_Products!AF12=\"\",\"\",Summary_Products!AF12)","v":""},{"$f":"IF(Summary_Products!AG12=\"\",\"\",Summary_Products!AG12)","v":""},{"$f":"IF(Summary_Products!AH12=\"\",\"\",Summary_Products!AH12)","v":""},{"$f":"IF(Summary_Products!AI12=\"\",\"\",Summary_Products!AI12)","v":""},{"$f":"IF(Summary_Products!AJ12=\"\",\"\",Summary_Products!AJ12)","v":""},{"$f":"IF(Summary_Products!AK12=\"\",\"\",Summary_Products!AK12)","v":""},{"$f":"IF(Summary_Products!AL12=\"\",\"\",INDEX(Translations!$C:$C,MATCH(Summary_Products!AL12,Translations!$B:$B,0)))","v":""},{"$f":"IF(Summary_Products!AM12=\"\",\"\",Summary_Products!AM12)","v":""},{"$f":"IF(Summary_Products!AN12=\"\",\"\",Summary_Products!AN12)","v":""},{"$f":"IF(Summary_Products!AO12=\"\",\"\",Summary_Products!AO12)","v":""},{"$f":"IF(Summary_Products!AP12=\"\",\"\",Summary_Products!AP12)","v":""},{"$f":"IF(Summary_Products!AR12=\"\",\"\",Summary_Products!AR12)","v":""},{"$f":"IF(Summary_Products!AS12=\"\",\"\",Summary_Products!AS12)","v":""},{"$f":"IF(Summary_Products!AT12=\"\",\"\",INDEX(Translations!$C:$C,MATCH(Summary_Products!AT12,Translations!$B:$B,0)))","v":""},{"$f":"IF(Summary_Products!AU12=\"\",\"\",Summary_Products!AU12)","v":""},{"$f":"IF(Summary_Products!AV12=\"\",\"\",Summary_Products!AV12)","v":""},{"$f":"IF(Summary_Products!AW12=\"\",\"\",Summary_Products!AW12)","v":""},{"$f":"IF(Summary_Products!AX12=\"\",\"\",Summary_Products!AX12)","v":""},{"$f":"IF(Summary_Products!AY12=\"\",\"\",Summary_Products!AY12)","v":""},{"$f":"IF(Summary_Products!AZ12=\"\",\"\",Summary_Products!AZ12)","v":""},{"$f":"IF(Summary_Products!BA12=\"\",\"\",Summary_Products!BA12)","v":""}]
[null,null,4,{"$f":"IF(Summary_Products!D13=\"\",\"\",Summary_Products!D13)","v":""},{"$f":"IF(Summary_Products!E13=\"\",\"\",INDEX(Translations!$C:$C,MATCH(Summary_Products!E13,Translations!$B:$B,0)))","v":""},{"$f":"IF(Summary_Products!F13=\"\",\"\",Summary_Products!F13)","v":""},{"$f":"IF(F29=\"\",\"\",INDEX(Parameters_CNCodes!$H$4:$H$752,MATCH(F29,CNCodes_ListKey,0)))","v":""},{"$f":"IF(Summary_Products!H13=\"\",\"\",Summary_Products!H13)","v":""},{"$f":"IF(Summary_Products!I13=\"\",\"\",Summary_Products!I13)","v":""},{"$f":"IF(Summary_Products!J13=\"\",\"\",Summary_Products!J13)","v":""},{"$f":"IF(Summary_Products!K13=\"\",\"\",Summary_Products!K13)","v":""},{"$f":"IF(Summary_Products!L13=\"\",\"\",Summary_Products!L13)","v":""},{"$f":"IF(Summary_Products!M13=\"\",\"\",Summary_Products!M13)","v":""},{"$f":"IF(Summary_Products!N13=\"\",\"\",Summary_Products!N13)","v":""},{"$f":"IF(Summary_Products!O13=\"\",\"\",Summary_Products!O13)","v":""},{"$f":"IF(Summary_Products!P13=\"\",\"\",INDEX(Translations!$C:$C,MATCH(Summary_Products!P13,Translations!$B:$B,0)))","v":""},{"$f":"IF(Summary_Products!Q13=\"\",\"\",Summary_Products!Q13)","v":""},{"$f":"IF(Summary_Products!R13=\"\",\"\",Summary_Products!R13)","v":""},{"$f":"IF(Summary_Products!S13=\"\",\"\",Summary_Products!S13)","v":""},{"$f":"IF(Summary_Products!T13=\"\",\"\",Summary_Products!T13)","v":""},{"$f":"IF(Summary_Products!U13=\"\",\"\",Summary_Products!U13)","v":""},{"$f":"IF(Summary_Products!V13=\"\",\"\",Summary_Products!V13)","v":""},{"$f":"IF(Summary_Products!W13=\"\",\"\",Summary_Products!W13)","v":""},{"$f":"IF(Summary_Products!X13=\"\",\"\",Summary_Products!X13)","v":""},{"$f":"IF(Summary_Products!Y13=\"\",\"\",Summary_Products!Y13)","v":""},{"$f":"IF(Summary_Products!Z13=\"\",\"\",Summary_Products!Z13)","v":""},{"$f":"IF(Summary_Products!AA13=\"\",\"\",Summary_Products!AA13)","v":""},{"$f":"IF(Summary_Products!AB13=\"\",\"\",Summary_Products!AB13)","v":""},{"$f":"IF(Summary_Products!AC13=\"\",\"\",Summary_Products!AC13)","v":""},{"$f":"IF(Summary_Products!AD13=\"\",\"\",Summary_Products!AD13)","v":""},{"$f":"IF(Summary_Products!AE13=\"\",\"\",Summary_Products!AE13)","v":""},{"$f":"IF(Summary_Products!AF13=\"\",\"\",Summary_Products!AF13)","v":""},{"$f":"IF(Summary_Products!AG13=\"\",\"\",Summary_Products!AG13)","v":""},{"$f":"IF(Summary_Products!AH13=\"\",\"\",Summary_Products!AH13)","v":""},{"$f":"IF(Summary_Products!AI13=\"\",\"\",Summary_Products!AI13)","v":""},{"$f":"IF(Summary_Products!AJ13=\"\",\"\",Summary_Products!AJ13)","v":""},{"$f":"IF(Summary_Products!AK13=\"\",\"\",Summary_Products!AK13)","v":""},{"$f":"IF(Summary_Products!AL13=\"\",\"\",INDEX(Translations!$C:$C,MATCH(Summary_Products!AL13,Translations!$B:$B,0)))","v":""},{"$f":"IF(Summary_Products!AM13=\"\",\"\",Summary_Products!AM13)","v":""},{"$f":"IF(Summary_Products!AN13=\"\",\"\",Summary_Products!AN13)","v":""},{"$f":"IF(Summary_Products!AO13=\"\",\"\",Summary_Products!AO13)","v":""},{"$f":"IF(Summary_Products!AP13=\"\",\"\",Summary_Products!AP13)","v":""},{"$f":"IF(Summary_Products!AR13=\"\",\"\",Summary_Products!AR13)","v":""},{"$f":"IF(Summary_Products!AS13=\"\",\"\",Summary_Products!AS13)","v":""},{"$f":"IF(Summary_Products!AT13=\"\",\"\",INDEX(Translations!$C:$C,MATCH(Summary_Products!AT13,Translations!$B:$B,0)))","v":""},{"$f":"IF(Summary_Products!AU13=\"\",\"\",Summary_Products!AU13)","v":""},{"$f":"IF(Summary_Products!AV13=\"\",\"\",Summary_Products!AV13)","v":""},{"$f":"IF(Summary_Products!AW13=\"\",\"\",Summary_Products!AW13)","v":""},{"$f":"IF(Summary_Products!AX13=\"\",\"\",Summary_Products!AX13)","v":""},{"$f":"IF(Summary_Products!AY13=\"\",\"\",Summary_Products!AY13)","v":""},{"$f":"IF(Summary_Products!AZ13=\"\",\"\",Summary_Products!AZ13)","v":""},{"$f":"IF(Summary_Products!BA13=\"\",\"\",Summary_Products!BA13)","v":""}]
[null,null,5,{"$f":"IF(Summary_Products!D14=\"\",\"\",Summary_Products!D14)","v":""},{"$f":"IF(Summary_Products!E14=\"\",\"\",INDEX(Translations!$C:$C,MATCH(Summary_Products!E14,Translations!$B:$B,0)))","v":""},{"$f":"IF(Summary_Products!F14=\"\",\"\",Summary_Products!F14)","v":""},{"$f":"IF(F30=\"\",\"\",INDEX(Parameters_CNCodes!$H$4:$H$752,MATCH(F30,CNCodes_ListKey,0)))","v":""},{"$f":"IF(Summary_Products!H14=\"\",\"\",Summary_Products!H14)","v":""},{"$f":"IF(Summary_Products!I14=\"\",\"\",Summary_Products!I14)","v":""},{"$f":"IF(Summary_Products!J14=\"\",\"\",Summary_Products!J14)","v":""},{"$f":"IF(Summary_Products!K14=\"\",\"\",Summary_Products!K14)","v":""},{"$f":"IF(Summary_Products!L14=\"\",\"\",Summary_Products!L14)","v":""},{"$f":"IF(Summary_Products!M14=\"\",\"\",Summary_Products!M14)","v":""},{"$f":"IF(Summary_Products!N14=\"\",\"\",Summary_Products!N14)","v":""},{"$f":"IF(Summary_Products!O14=\"\",\"\",Summary_Products!O14)","v":""},{"$f":"IF(Summary_Products!P14=\"\",\"\",INDEX(Translations!$C:$C,MATCH(Summary_Products!P14,Translations!$B:$B,0)))","v":""},{"$f":"IF(Summary_Products!Q14=\"\",\"\",Summary_Products!Q14)","v":""},{"$f":"IF(Summary_Products!R14=\"\",\"\",Summary_Products!R14)","v":""},{"$f":"IF(Summary_Products!S14=\"\",\"\",Summary_Products!S14)","v":""},{"$f":"IF(Summary_Products!T14=\"\",\"\",Summary_Products!T14)","v":""},{"$f":"IF(Summary_Products!U14=\"\",\"\",Summary_Products!U14)","v":""},{"$f":"IF(Summary_Products!V14=\"\",\"\",Summary_Products!V14)","v":""},{"$f":"IF(Summary_Products!W14=\"\",\"\",Summary_Products!W14)","v":""},{"$f":"IF(Summary_Products!X14=\"\",\"\",Summary_Products!X14)","v":""},{"$f":"IF(Summary_Products!Y14=\"\",\"\",Summary_Products!Y14)","v":""},{"$f":"IF(Summary_Products!Z14=\"\",\"\",Summary_Products!Z14)","v":""},{"$f":"IF(Summary_Products!AA14=\"\",\"\",Summary_Products!AA14)","v":""},{"$f":"IF(Summary_Products!AB14=\"\",\"\",Summary_Products!AB14)","v":""},{"$f":"IF(Summary_Products!AC14=\"\",\"\",Summary_Products!AC14)","v":""},{"$f":"IF(Summary_Products!AD14=\"\",\"\",Summary_Products!AD14)","v":""},{"$f":"IF(Summary_Products!AE14=\"\",\"\",Summary_Products!AE14)","v":""},{"$f":"IF(Summary_Products!AF14=\"\",\"\",Summary_Products!AF14)","v":""},{"$f":"IF(Summary_Products!AG14=\"\",\"\",Summary_Products!AG14)","v":""},{"$f":"IF(Summary_Products!AH14=\"\",\"\",Summary_Products!AH14)","v":""},{"$f":"IF(Summary_Products!AI14=\"\",\"\",Summary_Products!AI14)","v":""},{"$f":"IF(Summary_Products!AJ14=\"\",\"\",Summary_Products!AJ14)","v":""},{"$f":"IF(Summary_Products!AK14=\"\",\"\",Summary_Products!AK14)","v":""},{"$f":"IF(Summary_Products!AL14=\"\",\"\",INDEX(Translations!$C:$C,MATCH(Summary_Products!AL14,Translations!$B:$B,0)))","v":""},{"$f":"IF(Summary_Products!AM14=\"\",\"\",Summary_Products!AM14)","v":""},{"$f":"IF(Summary_Products!AN14=\"\",\"\",Summary_Products!AN14)","v":""},{"$f":"IF(Summary_Products!AO14=\"\",\"\",Summary_Products!AO14)","v":""},{"$f":"IF(Summary_Products!AP14=\"\",\"\",Summary_Products!AP14)","v":""},{"$f":"IF(Summary_Products!AR14=\"\",\"\",Summary_Products!AR14)","v":""},{"$f":"IF(Summary_Products!AS14=\"\",\"\",Summary_Products!AS14)","v":""},{"$f":"IF(Summary_Products!AT14=\"\",\"\",INDEX(Translations!$C:$C,MATCH(Summary_Products!AT14,Translations!$B:$B,0)))","v":""},{"$f":"IF(Summary_Products!AU14=\"\",\"\",Summary_Products!AU14)","v":""},{"$f":"IF(Summary_Products!AV14=\"\",\"\",Summary_Products!AV14)","v":""},{"$f":"IF(Summary_Products!AW14=\"\",\"\",Summary_Products!AW14)","v":""},{"$f":"IF(Summary_Products!AX14=\"\",\"\",Summary_Products!AX14)","v":""},{"$f":"IF(Summary_Products!AY14=\"\",\"\",Summary_Products!AY14)","v":""},{"$f":"IF(Summary_Products!AZ14=\"\",\"\",Summary_Products!AZ14)","v":""},{"$f":"IF(Summary_Products!BA14=\"\",\"\",Summary_Products!BA14)","v":""}]
[null,null,6,{"$f":"IF(Summary_Products!D15=\"\",\"\",Summary_Products!D15)","v":""},{"$f":"IF(Summary_Products!E15=\"\",\"\",INDEX(Translations!$C:$C,MATCH(Summary_Products!E15,Translations!$B:$B,0)))","v":""},{"$f":"IF(Summary_Products!F15=\"\",\"\",Summary_Products!F15)","v":""},{"$f":"IF(F31=\"\",\"\",INDEX(Parameters_CNCodes!$H$4:$H$752,MATCH(F31,CNCodes_ListKey,0)))","v":""},{"$f":"IF(Summary_Products!H15=\"\",\"\",Summary_Products!H15)","v":""},{"$f":"IF(Summary_Products!I15=\"\",\"\",Summary_Products!I15)","v":""},{"$f":"IF(Summary_Products!J15=\"\",\"\",Summary_Products!J15)","v":""},{"$f":"IF(Summary_Products!K15=\"\",\"\",Summary_Products!K15)","v":""},{"$f":"IF(Summary_Products!L15=\"\",\"\",Summary_Products!L15)","v":""},{"$f":"IF(Summary_Products!M15=\"\",\"\",Summary_Products!M15)","v":""},{"$f":"IF(Summary_Products!N15=\"\",\"\",Summary_Products!N15)","v":""},{"$f":"IF(Summary_Products!O15=\"\",\"\",Summary_Products!O15)","v":""},{"$f":"IF(Summary_Products!P15=\"\",\"\",INDEX(Translations!$C:$C,MATCH(Summary_Products!P15,Translations!$B:$B,0)))","v":""},{"$f":"IF(Summary_Products!Q15=\"\",\"\",Summary_Products!Q15)","v":""},{"$f":"IF(Summary_Products!R15=\"\",\"\",Summary_Products!R15)","v":""},{"$f":"IF(Summary_Products!S15=\"\",\"\",Summary_Products!S15)","v":""},{"$f":"IF(Summary_Products!T15=\"\",\"\",Summary_Products!T15)","v":""},{"$f":"IF(Summary_Products!U15=\"\",\"\",Summary_Products!U15)","v":""},{"$f":"IF(Summary_Products!V15=\"\",\"\",Summary_Products!V15)","v":""},{"$f":"IF(Summary_Products!W15=\"\",\"\",Summary_Products!W15)","v":""},{"$f":"IF(Summary_Products!X15=\"\",\"\",Summary_Products!X15)","v":""},{"$f":"IF(Summary_Products!Y15=\"\",\"\",Summary_Products!Y15)","v":""},{"$f":"IF(Summary_Products!Z15=\"\",\"\",Summary_Products!Z15)","v":""},{"$f":"IF(Summary_Products!AA15=\"\",\"\",Summary_Products!AA15)","v":""},{"$f":"IF(Summary_Products!AB15=\"\",\"\",Summary_Products!AB15)","v":""},{"$f":"IF(Summary_Products!AC15=\"\",\"\",Summary_Products!AC15)","v":""},{"$f":"IF(Summary_Products!AD15=\"\",\"\",Summary_Products!AD15)","v":""},{"$f":"IF(Summary_Products!AE15=\"\",\"\",Summary_Products!AE15)","v":""},{"$f":"IF(Summary_Products!AF15=\"\",\"\",Summary_Products!AF15)","v":""},{"$f":"IF(Summary_Products!AG15=\"\",\"\",Summary_Products!AG15)","v":""},{"$f":"IF(Summary_Products!AH15=\"\",\"\",Summary_Products!AH15)","v":""},{"$f":"IF(Summary_Products!AI15=\"\",\"\",Summary_Products!AI15)","v":""},{"$f":"IF(Summary_Products!AJ15=\"\",\"\",Summary_Products!AJ15)","v":""},{"$f":"IF(Summary_Products!AK15=\"\",\"\",Summary_Products!AK15)","v":""},{"$f":"IF(Summary_Products!AL15=\"\",\"\",INDEX(Translations!$C:$C,MATCH(Summary_Products!AL15,Translations!$B:$B,0)))","v":""},{"$f":"IF(Summary_Products!AM15=\"\",\"\",Summary_Products!AM15)","v":""},{"$f":"IF(Summary_Products!AN15=\"\",\"\",Summary_Products!AN15)","v":""},{"$f":"IF(Summary_Products!AO15=\"\",\"\",Summary_Products!AO15)","v":""},{"$f":"IF(Summary_Products!AP15=\"\",\"\",Summary_Products!AP15)","v":""},{"$f":"IF(Summary_Products!AR15=\"\",\"\",Summary_Products!AR15)","v":""},{"$f":"IF(Summary_Products!AS15=\"\",\"\",Summary_Products!AS15)","v":""},{"$f":"IF(Summary_Products!AT15=\"\",\"\",INDEX(Translations!$C:$C,MATCH(Summary_Products!AT15,Translations!$B:$B,0)))","v":""},{"$f":"IF(Summary_Products!AU15=\"\",\"\",Summary_Products!AU15)","v":""},{"$f":"IF(Summary_Products!AV15=\"\",\"\",Summary_Products!AV15)","v":""},{"$f":"IF(Summary_Products!AW15=\"\",\"\",Summary_Products!AW15)","v":""},{"$f":"IF(Summary_Products!AX15=\"\",\"\",Summary_Products!AX15)","v":""},{"$f":"IF(Summary_Products!AY15=\"\",\"\",Summary_Products!AY15)","v":""},{"$f":"IF(Summary_Products!AZ15=\"\",\"\",Summary_Products!AZ15)","v":""},{"$f":"IF(Summary_Products!BA15=\"\",\"\",Summary_Products!BA15)","v":""}]
[null,null,7,{"$f":"IF(Summary_Products!D16=\"\",\"\",Summary_Products!D16)","v":""},{"$f":"IF(Summary_Products!E16=\"\",\"\",INDEX(Translations!$C:$C,MATCH(Summary_Products!E16,Translations!$B:$B,0)))","v":""},{"$f":"IF(Summary_Products!F16=\"\",\"\",Summary_Products!F16)","v":""},{"$f":"IF(F32=\"\",\"\",INDEX(Parameters_CNCodes!$H$4:$H$752,MATCH(F32,CNCodes_ListKey,0)))","v":""},{"$f":"IF(Summary_Products!H16=\"\",\"\",Summary_Products!H16)","v":""},{"$f":"IF(Summary_Products!I16=\"\",\"\",Summary_Products!I16)","v":""},{"$f":"IF(Summary_Products!J16=\"\",\"\",Summary_Products!J16)","v":""},{"$f":"IF(Summary_Products!K16=\"\",\"\",Summary_Products!K16)","v":""},{"$f":"IF(Summary_Products!L16=\"\",\"\",Summary_Products!L16)","v":""},{"$f":"IF(Summary_Products!M16=\"\",\"\",Summary_Products!M16)","v":""},{"$f":"IF(Summary_Products!N16=\"\",\"\",Summary_Products!N16)","v":""},{"$f":"IF(Summary_Products!O16=\"\",\"\",Summary_Products!O16)","v":""},{"$f":"IF(Summary_Products!P16=\"\",\"\",INDEX(Translations!$C:$C,MATCH(Summary_Products!P16,Translations!$B:$B,0)))","v":""},{"$f":"IF(Summary_Products!Q16=\"\",\"\",Summary_Products!Q16)","v":""},{"$f":"IF(Summary_Products!R16=\"\",\"\",Summary_Products!R16)","v":""},{"$f":"IF(Summary_Products!S16=\"\",\"\",Summary_Products!S16)","v":""},{"$f":"IF(Summary_Products!T16=\"\",\"\",Summary_Products!T16)","v":""},{"$f":"IF(Summary_Products!U16=\"\",\"\",Summary_Products!U16)","v":""},{"$f":"IF(Summary_Products!V16=\"\",\"\",Summary_Products!V16)","v":""},{"$f":"IF(Summary_Products!W16=\"\",\"\",Summary_Products!W16)","v":""},{"$f":"IF(Summary_Products!X16=\"\",\"\",Summary_Products!X16)","v":""},{"$f":"IF(Summary_Products!Y16=\"\",\"\",Summary_Products!Y16)","v":""},{"$f":"IF(Summary_Products!Z16=\"\",\"\",Summary_Products!Z16)","v":""},{"$f":"IF(Summary_Products!AA16=\"\",\"\",Summary_Products!AA16)","v":""},{"$f":"IF(Summary_Products!AB16=\"\",\"\",Summary_Products!AB16)","v":""},{"$f":"IF(Summary_Products!AC16=\"\",\"\",Summary_Products!AC16)","v":""},{"$f":"IF(Summary_Products!AD16=\"\",\"\",Summary_Products!AD16)","v":""},{"$f":"IF(Summary_Products!AE16=\"\",\"\",Summary_Products!AE16)","v":""},{"$f":"IF(Summary_Products!AF16=\"\",\"\",Summary_Products!AF16)","v":""},{"$f":"IF(Summary_Products!AG16=\"\",\"\",Summary_Products!AG16)","v":""},{"$f":"IF(Summary_Products!AH16=\"\",\"\",Summary_Products!AH16)","v":""},{"$f":"IF(Summary_Products!AI16=\"\",\"\",Summary_Products!AI16)","v":""},{"$f":"IF(Summary_Products!AJ16=\"\",\"\",Summary_Products!AJ16)","v":""},{"$f":"IF(Summary_Products!AK16=\"\",\"\",Summary_Products!AK16)","v":""},{"$f":"IF(Summary_Products!AL16=\"\",\"\",INDEX(Translations!$C:$C,MATCH(Summary_Products!AL16,Translations!$B:$B,0)))","v":""},{"$f":"IF(Summary_Products!AM16=\"\",\"\",Summary_Products!AM16)","v":""},{"$f":"IF(Summary_Products!AN16=\"\",\"\",Summary_Products!AN16)","v":""},{"$f":"IF(Summary_Products!AO16=\"\",\"\",Summary_Products!AO16)","v":""},{"$f":"IF(Summary_Products!AP16=\"\",\"\",Summary_Products!AP16)","v":""},{"$f":"IF(Summary_Products!AR16=\"\",\"\",Summary_Products!AR16)","v":""},{"$f":"IF(Summary_Products!AS16=\"\",\"\",Summary_Products!AS16)","v":""},{"$f":"IF(Summary_Products!AT16=\"\",\"\",INDEX(Translations!$C:$C,MATCH(Summary_Products!AT16,Translations!$B:$B,0)))","v":""},{"$f":"IF(Summary_Products!AU16=\"\",\"\",Summary_Products!AU16)","v":""},{"$f":"IF(Summary_Products!AV16=\"\",\"\",Summary_Products!AV16)","v":""},{"$f":"IF(Summary_Products!AW16=\"\",\"\",Summary_Products!AW16)","v":""},{"$f":"IF(Summary_Products!AX16=\"\",\"\",Summary_Products!AX16)","v":""},{"$f":"IF(Summary_Products!AY16=\"\",\"\",Summary_Products!AY16)","v":""},{"$f":"IF(Summary_Products!AZ16=\"\",\"\",Summary_Products!AZ16)","v":""},{"$f":"IF(Summary_Products!BA16=\"\",\"\",Summary_Products!BA16)","v":""}]
[null,null,8,{"$f":"IF(Summary_Products!D17=\"\",\"\",Summary_Products!D17)","v":""},{"$f":"IF(Summary_Products!E17=\"\",\"\",INDEX(Translations!$C:$C,MATCH(Summary_Products!E17,Translations!$B:$B,0)))","v":""},{"$f":"IF(Summary_Products!F17=\"\",\"\",Summary_Products!F17)","v":""},{"$f":"IF(F33=\"\",\"\",INDEX(Parameters_CNCodes!$H$4:$H$752,MATCH(F33,CNCodes_ListKey,0)))","v":""},{"$f":"IF(Summary_Products!H17=\"\",\"\",Summary_Products!H17)","v":""},{"$f":"IF(Summary_Products!I17=\"\",\"\",Summary_Products!I17)","v":""},{"$f":"IF(Summary_Products!J17=\"\",\"\",Summary_Products!J17)","v":""},{"$f":"IF(Summary_Products!K17=\"\",\"\",Summary_Products!K17)","v":""},{"$f":"IF(Summary_Products!L17=\"\",\"\",Summary_Products!L17)","v":""},{"$f":"IF(Summary_Products!M17=\"\",\"\",Summary_Products!M17)","v":""},{"$f":"IF(Summary_Products!N17=\"\",\"\",Summary_Products!N17)","v":""},{"$f":"IF(Summary_Products!O17=\"\",\"\",Summary_Products!O17)","v":""},{"$f":"IF(Summary_Products!P17=\"\",\"\",INDEX(Translations!$C:$C,MATCH(Summary_Products!P17,Translations!$B:$B,0)))","v":""},{"$f":"IF(Summary_Products!Q17=\"\",\"\",Summary_Products!Q17)","v":""},{"$f":"IF(Summary_Products!R17=\"\",\"\",Summary_Products!R17)","v":""},{"$f":"IF(Summary_Products!S17=\"\",\"\",Summary_Products!S17)","v":""},{"$f":"IF(Summary_Products!T17=\"\",\"\",Summary_Products!T17)","v":""},{"$f":"IF(Summary_Products!U17=\"\",\"\",Summary_Products!U17)","v":""},{"$f":"IF(Summary_Products!V17=\"\",\"\",Summary_Products!V17)","v":""},{"$f":"IF(Summary_Products!W17=\"\",\"\",Summary_Products!W17)","v":""},{"$f":"IF(Summary_Products!X17=\"\",\"\",Summary_Products!X17)","v":""},{"$f":"IF(Summary_Products!Y17=\"\",\"\",Summary_Products!Y17)","v":""},{"$f":"IF(Summary_Products!Z17=\"\",\"\",Summary_Products!Z17)","v":""},{"$f":"IF(Summary_Products!AA17=\"\",\"\",Summary_Products!AA17)","v":""},{"$f":"IF(Summary_Products!AB17=\"\",\"\",Summary_Products!AB17)","v":""},{"$f":"IF(Summary_Products!AC17=\"\",\"\",Summary_Products!AC17)","v":""},{"$f":"IF(Summary_Products!AD17=\"\",\"\",Summary_Products!AD17)","v":""},{"$f":"IF(Summary_Products!AE17=\"\",\"\",Summary_Products!AE17)","v":""},{"$f":"IF(Summary_Products!AF17=\"\",\"\",Summary_Products!AF17)","v":""},{"$f":"IF(Summary_Products!AG17=\"\",\"\",Summary_Products!AG17)","v":""},{"$f":"IF(Summary_Products!AH17=\"\",\"\",Summary_Products!AH17)","v":""},{"$f":"IF(Summary_Products!AI17=\"\",\"\",Summary_Products!AI17)","v":""},{"$f":"IF(Summary_Products!AJ17=\"\",\"\",Summary_Products!AJ17)","v":""},{"$f":"IF(Summary_Products!AK17=\"\",\"\",Summary_Products!AK17)","v":""},{"$f":"IF(Summary_Products!AL17=\"\",\"\",INDEX(Translations!$C:$C,MATCH(Summary_Products!AL17,Translations!$B:$B,0)))","v":""},{"$f":"IF(Summary_Products!AM17=\"\",\"\",Summary_Products!AM17)","v":""},{"$f":"IF(Summary_Products!AN17=\"\",\"\",Summary_Products!AN17)","v":""},{"$f":"IF(Summary_Products!AO17=\"\",\"\",Summary_Products!AO17)","v":""},{"$f":"IF(Summary_Products!AP17=\"\",\"\",Summary_Products!AP17)","v":""},{"$f":"IF(Summary_Products!AR17=\"\",\"\",Summary_Products!AR17)","v":""},{"$f":"IF(Summary_Products!AS17=\"\",\"\",Summary_Products!AS17)","v":""},{"$f":"IF(Summary_Products!AT17=\"\",\"\",INDEX(Translations!$C:$C,MATCH(Summary_Products!AT17,Translations!$B:$B,0)))","v":""},{"$f":"IF(Summary_Products!AU17=\"\",\"\",Summary_Products!AU17)","v":""},{"$f":"IF(Summary_Products!AV17=\"\",\"\",Summary_Products!AV17)","v":""},{"$f":"IF(Summary_Products!AW17=\"\",\"\",Summary_Products!AW17)","v":""},{"$f":"IF(Summary_Products!AX17=\"\",\"\",Summary_Products!AX17)","v":""},{"$f":"IF(Summary_Products!AY17=\"\",\"\",Summary_Products!AY17)","v":""},{"$f":"IF(Summary_Products!AZ17=\"\",\"\",Summary_Products!AZ17)","v":""},{"$f":"IF(Summary_Products!BA17=\"\",\"\",Summary_Products!BA17)","v":""}]
[null,null,9,{"$f":"IF(Summary_Products!D18=\"\",\"\",Summary_Products!D18)","v":""},{"$f":"IF(Summary_Products!E18=\"\",\"\",INDEX(Translations!$C:$C,MATCH(Summary_Products!E18,Translations!$B:$B,0)))","v":""},{"$f":"IF(Summary_Products!F18=\"\",\"\",Summary_Products!F18)","v":""},{"$f":"IF(F34=\"\",\"\",INDEX(Parameters_CNCodes!$H$4:$H$752,MATCH(F34,CNCodes_ListKey,0)))","v":""},{"$f":"IF(Summary_Products!H18=\"\",\"\",Summary_Products!H18)","v":""},{"$f":"IF(Summary_Products!I18=\"\",\"\",Summary_Products!I18)","v":""},{"$f":"IF(Summary_Products!J18=\"\",\"\",Summary_Products!J18)","v":""},{"$f":"IF(Summary_Products!K18=\"\",\"\",Summary_Products!K18)","v":""},{"$f":"IF(Summary_Products!L18=\"\",\"\",Summary_Products!L18)","v":""},{"$f":"IF(Summary_Products!M18=\"\",\"\",Summary_Products!M18)","v":""},{"$f":"IF(Summary_Products!N18=\"\",\"\",Summary_Products!N18)","v":""},{"$f":"IF(Summary_Products!O18=\"\",\"\",Summary_Products!O18)","v":""},{"$f":"IF(Summary_Products!P18=\"\",\"\",INDEX(Translations!$C:$C,MATCH(Summary_Products!P18,Translations!$B:$B,0)))","v":""},{"$f":"IF(Summary_Products!Q18=\"\",\"\",Summary_Products!Q18)","v":""},{"$f":"IF(Summary_Products!R18=\"\",\"\",Summary_Products!R18)","v":""},{"$f":"IF(Summary_Products!S18=\"\",\"\",Summary_Products!S18)","v":""},{"$f":"IF(Summary_Products!T18=\"\",\"\",Summary_Products!T18)","v":""},{"$f":"IF(Summary_Products!U18=\"\",\"\",Summary_Products!U18)","v":""},{"$f":"IF(Summary_Products!V18=\"\",\"\",Summary_Products!V18)","v":""},{"$f":"IF(Summary_Products!W18=\"\",\"\",Summary_Products!W18)","v":""},{"$f":"IF(Summary_Products!X18=\"\",\"\",Summary_Products!X18)","v":""},{"$f":"IF(Summary_Products!Y18=\"\",\"\",Summary_Products!Y18)","v":""},{"$f":"IF(Summary_Products!Z18=\"\",\"\",Summary_Products!Z18)","v":""},{"$f":"IF(Summary_Products!AA18=\"\",\"\",Summary_Products!AA18)","v":""},{"$f":"IF(Summary_Products!AB18=\"\",\"\",Summary_Products!AB18)","v":""},{"$f":"IF(Summary_Products!AC18=\"\",\"\",Summary_Products!AC18)","v":""},{"$f":"IF(Summary_Products!AD18=\"\",\"\",Summary_Products!AD18)","v":""},{"$f":"IF(Summary_Products!AE18=\"\",\"\",Summary_Products!AE18)","v":""},{"$f":"IF(Summary_Products!AF18=\"\",\"\",Summary_Products!AF18)","v":""},{"$f":"IF(Summary_Products!AG18=\"\",\"\",Summary_Products!AG18)","v":""},{"$f":"IF(Summary_Products!AH18=\"\",\"\",Summary_Products!AH18)","v":""},{"$f":"IF(Summary_Products!AI18=\"\",\"\",Summary_Products!AI18)","v":""},{"$f":"IF(Summary_Products!AJ18=\"\",\"\",Summary_Products!AJ18)","v":""},{"$f":"IF(Summary_Products!AK18=\"\",\"\",Summary_Products!AK18)","v":""},{"$f":"IF(Summary_Products!AL18=\"\",\"\",INDEX(Translations!$C:$C,MATCH(Summary_Products!AL18,Translations!$B:$B,0)))","v":""},{"$f":"IF(Summary_Products!AM18=\"\",\"\",Summary_Products!AM18)","v":""},{"$f":"IF(Summary_Products!AN18=\"\",\"\",Summary_Products!AN18)","v":""},{"$f":"IF(Summary_Products!AO18=\"\",\"\",Summary_Products!AO18)","v":""},{"$f":"IF(Summary_Products!AP18=\"\",\"\",Summary_Products!AP18)","v":""},{"$f":"IF(Summary_Products!AR18=\"\",\"\",Summary_Products!AR18)","v":""},{"$f":"IF(Summary_Products!AS18=\"\",\"\",Summary_Products!AS18)","v":""},{"$f":"IF(Summary_Products!AT18=\"\",\"\",INDEX(Translations!$C:$C,MATCH(Summary_Products!AT18,Translations!$B:$B,0)))","v":""},{"$f":"IF(Summary_Products!AU18=\"\",\"\",Summary_Products!AU18)","v":""},{"$f":"IF(Summary_Products!AV18=\"\",\"\",Summary_Products!AV18)","v":""},{"$f":"IF(Summary_Products!AW18=\"\",\"\",Summary_Products!AW18)","v":""},{"$f":"IF(Summary_Products!AX18=\"\",\"\",Summary_Products!AX18)","v":""},{"$f":"IF(Summary_Products!AY18=\"\",\"\",Summary_Products!AY18)","v":""},{"$f":"IF(Summary_Products!AZ18=\"\",\"\",Summary_Products!AZ18)","v":""},{"$f":"IF(Summary_Products!BA18=\"\",\"\",Summary_Products!BA18)","v":""}]
[null,null,10,{"$f":"IF(Summary_Products!D19=\"\",\"\",Summary_Products!D19)","v":""},{"$f":"IF(Summary_Products!E19=\"\",\"\",INDEX(Translations!$C:$C,MATCH(Summary_Products!E19,Translations!$B:$B,0)))","v":""},{"$f":"IF(Summary_Products!F19=\"\",\"\",Summary_Products!F19)","v":""},{"$f":"IF(F35=\"\",\"\",INDEX(Parameters_CNCodes!$H$4:$H$752,MATCH(F35,CNCodes_ListKey,0)))","v":""},{"$f":"IF(Summary_Products!H19=\"\",\"\",Summary_Products!H19)","v":""},{"$f":"IF(Summary_Products!I19=\"\",\"\",Summary_Products!I19)","v":""},{"$f":"IF(Summary_Products!J19=\"\",\"\",Summary_Products!J19)","v":""},{"$f":"IF(Summary_Products!K19=\"\",\"\",Summary_Products!K19)","v":""},{"$f":"IF(Summary_Products!L19=\"\",\"\",Summary_Products!L19)","v":""},{"$f":"IF(Summary_Products!M19=\"\",\"\",Summary_Products!M19)","v":""},{"$f":"IF(Summary_Products!N19=\"\",\"\",Summary_Products!N19)","v":""},{"$f":"IF(Summary_Products!O19=\"\",\"\",Summary_Products!O19)","v":""},{"$f":"IF(Summary_Products!P19=\"\",\"\",INDEX(Translations!$C:$C,MATCH(Summary_Products!P19,Translations!$B:$B,0)))","v":""},{"$f":"IF(Summary_Products!Q19=\"\",\"\",Summary_Products!Q19)","v":""},{"$f":"IF(Summary_Products!R19=\"\",\"\",Summary_Products!R19)","v":""},{"$f":"IF(Summary_Products!S19=\"\",\"\",Summary_Products!S19)","v":""},{"$f":"IF(Summary_Products!T19=\"\",\"\",Summary_Products!T19)","v":""},{"$f":"IF(Summary_Products!U19=\"\",\"\",Summary_Products!U19)","v":""},{"$f":"IF(Summary_Products!V19=\"\",\"\",Summary_Products!V19)","v":""},{"$f":"IF(Summary_Products!W19=\"\",\"\",Summary_Products!W19)","v":""},{"$f":"IF(Summary_Products!X19=\"\",\"\",Summary_Products!X19)","v":""},{"$f":"IF(Summary_Products!Y19=\"\",\"\",Summary_Products!Y19)","v":""},{"$f":"IF(Summary_Products!Z19=\"\",\"\",Summary_Products!Z19)","v":""},{"$f":"IF(Summary_Products!AA19=\"\",\"\",Summary_Products!AA19)","v":""},{"$f":"IF(Summary_Products!AB19=\"\",\"\",Summary_Products!AB19)","v":""},{"$f":"IF(Summary_Products!AC19=\"\",\"\",Summary_Products!AC19)","v":""},{"$f":"IF(Summary_Products!AD19=\"\",\"\",Summary_Products!AD19)","v":""},{"$f":"IF(Summary_Products!AE19=\"\",\"\",Summary_Products!AE19)","v":""},{"$f":"IF(Summary_Products!AF19=\"\",\"\",Summary_Products!AF19)","v":""},{"$f":"IF(Summary_Products!AG19=\"\",\"\",Summary_Products!AG19)","v":""},{"$f":"IF(Summary_Products!AH19=\"\",\"\",Summary_Products!AH19)","v":""},{"$f":"IF(Summary_Products!AI19=\"\",\"\",Summary_Products!AI19)","v":""},{"$f":"IF(Summary_Products!AJ19=\"\",\"\",Summary_Products!AJ19)","v":""},{"$f":"IF(Summary_Products!AK19=\"\",\"\",Summary_Products!AK19)","v":""},{"$f":"IF(Summary_Products!AL19=\"\",\"\",INDEX(Translations!$C:$C,MATCH(Summary_Products!AL19,Translations!$B:$B,0)))","v":""},{"$f":"IF(Summary_Products!AM19=\"\",\"\",Summary_Products!AM19)","v":""},{"$f":"IF(Summary_Products!AN19=\"\",\"\",Summary_Products!AN19)","v":""},{"$f":"IF(Summary_Products!AO19=\"\",\"\",Summary_Products!AO19)","v":""},{"$f":"IF(Summary_Products!AP19=\"\",\"\",Summary_Products!AP19)","v":""},{"$f":"IF(Summary_Products!AR19=\"\",\"\",Summary_Products!AR19)","v":""},{"$f":"IF(Summary_Products!AS19=\"\",\"\",Summary_Products!AS19)","v":""},{"$f":"IF(Summary_Products!AT19=\"\",\"\",INDEX(Translations!$C:$C,MATCH(Summary_Products!AT19,Translations!$B:$B,0)))","v":""},{"$f":"IF(Summary_Products!AU19=\"\",\"\",Summary_Products!AU19)","v":""},{"$f":"IF(Summary_Products!AV19=\"\",\"\",Summary_Products!AV19)","v":""},{"$f":"IF(Summary_Products!AW19=\"\",\"\",Summary_Products!AW19)","v":""},{"$f":"IF(Summary_Products!AX19=\"\",\"\",Summary_Products!AX19)","v":""},{"$f":"IF(Summary_Products!AY19=\"\",\"\",Summary_Products!AY19)","v":""},{"$f":"IF(Summary_Products!AZ19=\"\",\"\",Summary_Products!AZ19)","v":""},{"$f":"IF(Summary_Products!BA19=\"\",\"\",Summary_Products!BA19)","v":""}]
[null,null,11,{"$f":"IF(Summary_Products!D20=\"\",\"\",Summary_Products!D20)","v":""},{"$f":"IF(Summary_Products!E20=\"\",\"\",INDEX(Translations!$C:$C,MATCH(Summary_Products!E20,Translations!$B:$B,0)))","v":""},{"$f":"IF(Summary_Products!F20=\"\",\"\",Summary_Products!F20)","v":""},{"$f":"IF(F36=\"\",\"\",INDEX(Parameters_CNCodes!$H$4:$H$752,MATCH(F36,CNCodes_ListKey,0)))","v":""},{"$f":"IF(Summary_Products!H20=\"\",\"\",Summary_Products!H20)","v":""},{"$f":"IF(Summary_Products!I20=\"\",\"\",Summary_Products!I20)","v":""},{"$f":"IF(Summary_Products!J20=\"\",\"\",Summary_Products!J20)","v":""},{"$f":"IF(Summary_Products!K20=\"\",\"\",Summary_Products!K20)","v":""},{"$f":"IF(Summary_Products!L20=\"\",\"\",Summary_Products!L20)","v":""},{"$f":"IF(Summary_Products!M20=\"\",\"\",Summary_Products!M20)","v":""},{"$f":"IF(Summary_Products!N20=\"\",\"\",Summary_Products!N20)","v":""},{"$f":"IF(Summary_Products!O20=\"\",\"\",Summary_Products!O20)","v":""},{"$f":"IF(Summary_Products!P20=\"\",\"\",INDEX(Translations!$C:$C,MATCH(Summary_Products!P20,Translations!$B:$B,0)))","v":""},{"$f":"IF(Summary_Products!Q20=\"\",\"\",Summary_Products!Q20)","v":""},{"$f":"IF(Summary_Products!R20=\"\",\"\",Summary_Products!R20)","v":""},{"$f":"IF(Summary_Products!S20=\"\",\"\",Summary_Products!S20)","v":""},{"$f":"IF(Summary_Products!T20=\"\",\"\",Summary_Products!T20)","v":""},{"$f":"IF(Summary_Products!U20=\"\",\"\",Summary_Products!U20)","v":""},{"$f":"IF(Summary_Products!V20=\"\",\"\",Summary_Products!V20)","v":""},{"$f":"IF(Summary_Products!W20=\"\",\"\",Summary_Products!W20)","v":""},{"$f":"IF(Summary_Products!X20=\"\",\"\",Summary_Products!X20)","v":""},{"$f":"IF(Summary_Products!Y20=\"\",\"\",Summary_Products!Y20)","v":""},{"$f":"IF(Summary_Products!Z20=\"\",\"\",Summary_Products!Z20)","v":""},{"$f":"IF(Summary_Products!AA20=\"\",\"\",Summary_Products!AA20)","v":""},{"$f":"IF(Summary_Products!AB20=\"\",\"\",Summary_Products!AB20)","v":""},{"$f":"IF(Summary_Products!AC20=\"\",\"\",Summary_Products!AC20)","v":""},{"$f":"IF(Summary_Products!AD20=\"\",\"\",Summary_Products!AD20)","v":""},{"$f":"IF(Summary_Products!AE20=\"\",\"\",Summary_Products!AE20)","v":""},{"$f":"IF(Summary_Products!AF20=\"\",\"\",Summary_Products!AF20)","v":""},{"$f":"IF(Summary_Products!AG20=\"\",\"\",Summary_Products!AG20)","v":""},{"$f":"IF(Summary_Products!AH20=\"\",\"\",Summary_Products!AH20)","v":""},{"$f":"IF(Summary_Products!AI20=\"\",\"\",Summary_Products!AI20)","v":""},{"$f":"IF(Summary_Products!AJ20=\"\",\"\",Summary_Products!AJ20)","v":""},{"$f":"IF(Summary_Products!AK20=\"\",\"\",Summary_Products!AK20)","v":""},{"$f":"IF(Summary_Products!AL20=\"\",\"\",INDEX(Translations!$C:$C,MATCH(Summary_Products!AL20,Translations!$B:$B,0)))","v":""},{"$f":"IF(Summary_Products!AM20=\"\",\"\",Summary_Products!AM20)","v":""},{"$f":"IF(Summary_Products!AN20=\"\",\"\",Summary_Products!AN20)","v":""},{"$f":"IF(Summary_Products!AO20=\"\",\"\",Summary_Products!AO20)","v":""},{"$f":"IF(Summary_Products!AP20=\"\",\"\",Summary_Products!AP20)","v":""},{"$f":"IF(Summary_Products!AR20=\"\",\"\",Summary_Products!AR20)","v":""},{"$f":"IF(Summary_Products!AS20=\"\",\"\",Summary_Products!AS20)","v":""},{"$f":"IF(Summary_Products!AT20=\"\",\"\",INDEX(Translations!$C:$C,MATCH(Summary_Products!AT20,Translations!$B:$B,0)))","v":""},{"$f":"IF(Summary_Products!AU20=\"\",\"\",Summary_Products!AU20)","v":""},{"$f":"IF(Summary_Products!AV20=\"\",\"\",Summary_Products!AV20)","v":""},{"$f":"IF(Summary_Products!AW20=\"\",\"\",Summary_Products!AW20)","v":""},{"$f":"IF(Summary_Products!AX20=\"\",\"\",Summary_Products!AX20)","v":""},{"$f":"IF(Summary_Products!AY20=\"\",\"\",Summary_Products!AY20)","v":""},{"$f":"IF(Summary_Products!AZ20=\"\",\"\",Summary_Products!AZ20)","v":""},{"$f":"IF(Summary_Products!BA20=\"\",\"\",Summary_Products!BA20)","v":""}]
[null,null,12,{"$f":"IF(Summary_Products!D21=\"\",\"\",Summary_Products!D21)","v":""},{"$f":"IF(Summary_Products!E21=\"\",\"\",INDEX(Translations!$C:$C,MATCH(Summary_Products!E21,Translations!$B:$B,0)))","v":""},{"$f":"IF(Summary_Products!F21=\"\",\"\",Summary_Products!F21)","v":""},{"$f":"IF(F37=\"\",\"\",INDEX(Parameters_CNCodes!$H$4:$H$752,MATCH(F37,CNCodes_ListKey,0)))","v":""},{"$f":"IF(Summary_Products!H21=\"\",\"\",Summary_Products!H21)","v":""},{"$f":"IF(Summary_Products!I21=\"\",\"\",Summary_Products!I21)","v":""},{"$f":"IF(Summary_Products!J21=\"\",\"\",Summary_Products!J21)","v":""},{"$f":"IF(Summary_Products!K21=\"\",\"\",Summary_Products!K21)","v":""},{"$f":"IF(Summary_Products!L21=\"\",\"\",Summary_Products!L21)","v":""},{"$f":"IF(Summary_Products!M21=\"\",\"\",Summary_Products!M21)","v":""},{"$f":"IF(Summary_Products!N21=\"\",\"\",Summary_Products!N21)","v":""},{"$f":"IF(Summary_Products!O21=\"\",\"\",Summary_Products!O21)","v":""},{"$f":"IF(Summary_Products!P21=\"\",\"\",INDEX(Translations!$C:$C,MATCH(Summary_Products!P21,Translations!$B:$B,0)))","v":""},{"$f":"IF(Summary_Products!Q21=\"\",\"\",Summary_Products!Q21)","v":""},{"$f":"IF(Summary_Products!R21=\"\",\"\",Summary_Products!R21)","v":""},{"$f":"IF(Summary_Products!S21=\"\",\"\",Summary_Products!S21)","v":""},{"$f":"IF(Summary_Products!T21=\"\",\"\",Summary_Products!T21)","v":""},{"$f":"IF(Summary_Products!U21=\"\",\"\",Summary_Products!U21)","v":""},{"$f":"IF(Summary_Products!V21=\"\",\"\",Summary_Products!V21)","v":""},{"$f":"IF(Summary_Products!W21=\"\",\"\",Summary_Products!W21)","v":""},{"$f":"IF(Summary_Products!X21=\"\",\"\",Summary_Products!X21)","v":""},{"$f":"IF(Summary_Products!Y21=\"\",\"\",Summary_Products!Y21)","v":""},{"$f":"IF(Summary_Products!Z21=\"\",\"\",Summary_Products!Z21)","v":""},{"$f":"IF(Summary_Products!AA21=\"\",\"\",Summary_Products!AA21)","v":""},{"$f":"IF(Summary_Products!AB21=\"\",\"\",Summary_Products!AB21)","v":""},{"$f":"IF(Summary_Products!AC21=\"\",\"\",Summary_Products!AC21)","v":""},{"$f":"IF(Summary_Products!AD21=\"\",\"\",Summary_Products!AD21)","v":""},{"$f":"IF(Summary_Products!AE21=\"\",\"\",Summary_Products!AE21)","v":""},{"$f":"IF(Summary_Products!AF21=\"\",\"\",Summary_Products!AF21)","v":""},{"$f":"IF(Summary_Products!AG21=\"\",\"\",Summary_Products!AG21)","v":""},{"$f":"IF(Summary_Products!AH21=\"\",\"\",Summary_Products!AH21)","v":""},{"$f":"IF(Summary_Products!AI21=\"\",\"\",Summary_Products!AI21)","v":""},{"$f":"IF(Summary_Products!AJ21=\"\",\"\",Summary_Products!AJ21)","v":""},{"$f":"IF(Summary_Products!AK21=\"\",\"\",Summary_Products!AK21)","v":""},{"$f":"IF(Summary_Products!AL21=\"\",\"\",INDEX(Translations!$C:$C,MATCH(Summary_Products!AL21,Translations!$B:$B,0)))","v":""},{"$f":"IF(Summary_Products!AM21=\"\",\"\",Summary_Products!AM21)","v":""},{"$f":"IF(Summary_Products!AN21=\"\",\"\",Summary_Products!AN21)","v":""},{"$f":"IF(Summary_Products!AO21=\"\",\"\",Summary_Products!AO21)","v":""},{"$f":"IF(Summary_Products!AP21=\"\",\"\",Summary_Products!AP21)","v":""},{"$f":"IF(Summary_Products!AR21=\"\",\"\",Summary_Products!AR21)","v":""},{"$f":"IF(Summary_Products!AS21=\"\",\"\",Summary_Products!AS21)","v":""},{"$f":"IF(Summary_Products!AT21=\"\",\"\",INDEX(Translations!$C:$C,MATCH(Summary_Products!AT21,Translations!$B:$B,0)))","v":""},{"$f":"IF(Summary_Products!AU21=\"\",\"\",Summary_Products!AU21)","v":""},{"$f":"IF(Summary_Products!AV21=\"\",\"\",Summary_Products!AV21)","v":""},{"$f":"IF(Summary_Products!AW21=\"\",\"\",Summary_Products!AW21)","v":""},{"$f":"IF(Summary_Products!AX21=\"\",\"\",Summary_Products!AX21)","v":""},{"$f":"IF(Summary_Products!AY21=\"\",\"\",Summary_Products!AY21)","v":""},{"$f":"IF(Summary_Products!AZ21=\"\",\"\",Summary_Products!AZ21)","v":""},{"$f":"IF(Summary_Products!BA21=\"\",\"\",Summary_Products!BA21)","v":""}]
[null,null,13,{"$f":"IF(Summary_Products!D22=\"\",\"\",Summary_Products!D22)","v":""},{"$f":"IF(Summary_Products!E22=\"\",\"\",INDEX(Translations!$C:$C,MATCH(Summary_Products!E22,Translations!$B:$B,0)))","v":""},{"$f":"IF(Summary_Products!F22=\"\",\"\",Summary_Products!F22)","v":""},{"$f":"IF(F38=\"\",\"\",INDEX(Parameters_CNCodes!$H$4:$H$752,MATCH(F38,CNCodes_ListKey,0)))","v":""},{"$f":"IF(Summary_Products!H22=\"\",\"\",Summary_Products!H22)","v":""},{"$f":"IF(Summary_Products!I22=\"\",\"\",Summary_Products!I22)","v":""},{"$f":"IF(Summary_Products!J22=\"\",\"\",Summary_Products!J22)","v":""},{"$f":"IF(Summary_Products!K22=\"\",\"\",Summary_Products!K22)","v":""},{"$f":"IF(Summary_Products!L22=\"\",\"\",Summary_Products!L22)","v":""},{"$f":"IF(Summary_Products!M22=\"\",\"\",Summary_Products!M22)","v":""},{"$f":"IF(Summary_Products!N22=\"\",\"\",Summary_Products!N22)","v":""},{"$f":"IF(Summary_Products!O22=\"\",\"\",Summary_Products!O22)","v":""},{"$f":"IF(Summary_Products!P22=\"\",\"\",INDEX(Translations!$C:$C,MATCH(Summary_Products!P22,Translations!$B:$B,0)))","v":""},{"$f":"IF(Summary_Products!Q22=\"\",\"\",Summary_Products!Q22)","v":""},{"$f":"IF(Summary_Products!R22=\"\",\"\",Summary_Products!R22)","v":""},{"$f":"IF(Summary_Products!S22=\"\",\"\",Summary_Products!S22)","v":""},{"$f":"IF(Summary_Products!T22=\"\",\"\",Summary_Products!T22)","v":""},{"$f":"IF(Summary_Products!U22=\"\",\"\",Summary_Products!U22)","v":""},{"$f":"IF(Summary_Products!V22=\"\",\"\",Summary_Products!V22)","v":""},{"$f":"IF(Summary_Products!W22=\"\",\"\",Summary_Products!W22)","v":""},{"$f":"IF(Summary_Products!X22=\"\",\"\",Summary_Products!X22)","v":""},{"$f":"IF(Summary_Products!Y22=\"\",\"\",Summary_Products!Y22)","v":""},{"$f":"IF(Summary_Products!Z22=\"\",\"\",Summary_Products!Z22)","v":""},{"$f":"IF(Summary_Products!AA22=\"\",\"\",Summary_Products!AA22)","v":""},{"$f":"IF(Summary_Products!AB22=\"\",\"\",Summary_Products!AB22)","v":""},{"$f":"IF(Summary_Products!AC22=\"\",\"\",Summary_Products!AC22)","v":""},{"$f":"IF(Summary_Products!AD22=\"\",\"\",Summary_Products!AD22)","v":""},{"$f":"IF(Summary_Products!AE22=\"\",\"\",Summary_Products!AE22)","v":""},{"$f":"IF(Summary_Products!AF22=\"\",\"\",Summary_Products!AF22)","v":""},{"$f":"IF(Summary_Products!AG22=\"\",\"\",Summary_Products!AG22)","v":""},{"$f":"IF(Summary_Products!AH22=\"\",\"\",Summary_Products!AH22)","v":""},{"$f":"IF(Summary_Products!AI22=\"\",\"\",Summary_Products!AI22)","v":""},{"$f":"IF(Summary_Products!AJ22=\"\",\"\",Summary_Products!AJ22)","v":""},{"$f":"IF(Summary_Products!AK22=\"\",\"\",Summary_Products!AK22)","v":""},{"$f":"IF(Summary_Products!AL22=\"\",\"\",INDEX(Translations!$C:$C,MATCH(Summary_Products!AL22,Translations!$B:$B,0)))","v":""},{"$f":"IF(Summary_Products!AM22=\"\",\"\",Summary_Products!AM22)","v":""},{"$f":"IF(Summary_Products!AN22=\"\",\"\",Summary_Products!AN22)","v":""},{"$f":"IF(Summary_Products!AO22=\"\",\"\",Summary_Products!AO22)","v":""},{"$f":"IF(Summary_Products!AP22=\"\",\"\",Summary_Products!AP22)","v":""},{"$f":"IF(Summary_Products!AR22=\"\",\"\",Summary_Products!AR22)","v":""},{"$f":"IF(Summary_Products!AS22=\"\",\"\",Summary_Products!AS22)","v":""},{"$f":"IF(Summary_Products!AT22=\"\",\"\",INDEX(Translations!$C:$C,MATCH(Summary_Products!AT22,Translations!$B:$B,0)))","v":""},{"$f":"IF(Summary_Products!AU22=\"\",\"\",Summary_Products!AU22)","v":""},{"$f":"IF(Summary_Products!AV22=\"\",\"\",Summary_Products!AV22)","v":""},{"$f":"IF(Summary_Products!AW22=\"\",\"\",Summary_Products!AW22)","v":""},{"$f":"IF(Summary_Products!AX22=\"\",\"\",Summary_Products!AX22)","v":""},{"$f":"IF(Summary_Products!AY22=\"\",\"\",Summary_Products!AY22)","v":""},{"$f":"IF(Summary_Products!AZ22=\"\",\"\",Summary_Products!AZ22)","v":""},{"$f":"IF(Summary_Products!BA22=\"\",\"\",Summary_Products!BA22)","v":""}]
[null,null,14,{"$f":"IF(Summary_Products!D23=\"\",\"\",Summary_Products!D23)","v":""},{"$f":"IF(Summary_Products!E23=\"\",\"\",INDEX(Translations!$C:$C,MATCH(Summary_Products!E23,Translations!$B:$B,0)))","v":""},{"$f":"IF(Summary_Products!F23=\"\",\"\",Summary_Products!F23)","v":""},{"$f":"IF(F39=\"\",\"\",INDEX(Parameters_CNCodes!$H$4:$H$752,MATCH(F39,CNCodes_ListKey,0)))","v":""},{"$f":"IF(Summary_Products!H23=\"\",\"\",Summary_Products!H23)","v":""},{"$f":"IF(Summary_Products!I23=\"\",\"\",Summary_Products!I23)","v":""},{"$f":"IF(Summary_Products!J23=\"\",\"\",Summary_Products!J23)","v":""},{"$f":"IF(Summary_Products!K23=\"\",\"\",Summary_Products!K23)","v":""},{"$f":"IF(Summary_Products!L23=\"\",\"\",Summary_Products!L23)","v":""},{"$f":"IF(Summary_Products!M23=\"\",\"\",Summary_Products!M23)","v":""},{"$f":"IF(Summary_Products!N23=\"\",\"\",Summary_Products!N23)","v":""},{"$f":"IF(Summary_Products!O23=\"\",\"\",Summary_Products!O23)","v":""},{"$f":"IF(Summary_Products!P23=\"\",\"\",INDEX(Translations!$C:$C,MATCH(Summary_Products!P23,Translations!$B:$B,0)))","v":""},{"$f":"IF(Summary_Products!Q23=\"\",\"\",Summary_Products!Q23)","v":""},{"$f":"IF(Summary_Products!R23=\"\",\"\",Summary_Products!R23)","v":""},{"$f":"IF(Summary_Products!S23=\"\",\"\",Summary_Products!S23)","v":""},{"$f":"IF(Summary_Products!T23=\"\",\"\",Summary_Products!T23)","v":""},{"$f":"IF(Summary_Products!U23=\"\",\"\",Summary_Products!U23)","v":""},{"$f":"IF(Summary_Products!V23=\"\",\"\",Summary_Products!V23)","v":""},{"$f":"IF(Summary_Products!W23=\"\",\"\",Summary_Products!W23)","v":""},{"$f":"IF(Summary_Products!X23=\"\",\"\",Summary_Products!X23)","v":""},{"$f":"IF(Summary_Products!Y23=\"\",\"\",Summary_Products!Y23)","v":""},{"$f":"IF(Summary_Products!Z23=\"\",\"\",Summary_Products!Z23)","v":""},{"$f":"IF(Summary_Products!AA23=\"\",\"\",Summary_Products!AA23)","v":""},{"$f":"IF(Summary_Products!AB23=\"\",\"\",Summary_Products!AB23)","v":""},{"$f":"IF(Summary_Products!AC23=\"\",\"\",Summary_Products!AC23)","v":""},{"$f":"IF(Summary_Products!AD23=\"\",\"\",Summary_Products!AD23)","v":""},{"$f":"IF(Summary_Products!AE23=\"\",\"\",Summary_Products!AE23)","v":""},{"$f":"IF(Summary_Products!AF23=\"\",\"\",Summary_Products!AF23)","v":""},{"$f":"IF(Summary_Products!AG23=\"\",\"\",Summary_Products!AG23)","v":""},{"$f":"IF(Summary_Products!AH23=\"\",\"\",Summary_Products!AH23)","v":""},{"$f":"IF(Summary_Products!AI23=\"\",\"\",Summary_Products!AI23)","v":""},{"$f":"IF(Summary_Products!AJ23=\"\",\"\",Summary_Products!AJ23)","v":""},{"$f":"IF(Summary_Products!AK23=\"\",\"\",Summary_Products!AK23)","v":""},{"$f":"IF(Summary_Products!AL23=\"\",\"\",INDEX(Translations!$C:$C,MATCH(Summary_Products!AL23,Translations!$B:$B,0)))","v":""},{"$f":"IF(Summary_Products!AM23=\"\",\"\",Summary_Products!AM23)","v":""},{"$f":"IF(Summary_Products!AN23=\"\",\"\",Summary_Products!AN23)","v":""},{"$f":"IF(Summary_Products!AO23=\"\",\"\",Summary_Products!AO23)","v":""},{"$f":"IF(Summary_Products!AP23=\"\",\"\",Summary_Products!AP23)","v":""},{"$f":"IF(Summary_Products!AR23=\"\",\"\",Summary_Products!AR23)","v":""},{"$f":"IF(Summary_Products!AS23=\"\",\"\",Summary_Products!AS23)","v":""},{"$f":"IF(Summary_Products!AT23=\"\",\"\",INDEX(Translations!$C:$C,MATCH(Summary_Products!AT23,Translations!$B:$B,0)))","v":""},{"$f":"IF(Summary_Products!AU23=\"\",\"\",Summary_Products!AU23)","v":""},{"$f":"IF(Summary_Products!AV23=\"\",\"\",Summary_Products!AV23)","v":""},{"$f":"IF(Summary_Products!AW23=\"\",\"\",Summary_Products!AW23)","v":""},{"$f":"IF(Summary_Products!AX23=\"\",\"\",Summary_Products!AX23)","v":""},{"$f":"IF(Summary_Products!AY23=\"\",\"\",Summary_Products!AY23)","v":""},{"$f":"IF(Summary_Products!AZ23=\"\",\"\",Summary_Products!AZ23)","v":""},{"$f":"IF(Summary_Products!BA23=\"\",\"\",Summary_Products!BA23)","v":""}]
[null,null,15,{"$f":"IF(Summary_Products!D24=\"\",\"\",Summary_Products!D24)","v":""},{"$f":"IF(Summary_Products!E24=\"\",\"\",INDEX(Translations!$C:$C,MATCH(Summary_Products!E24,Translations!$B:$B,0)))","v":""},{"$f":"IF(Summary_Products!F24=\"\",\"\",Summary_Products!F24)","v":""},{"$f":"IF(F40=\"\",\"\",INDEX(Parameters_CNCodes!$H$4:$H$752,MATCH(F40,CNCodes_ListKey,0)))","v":""},{"$f":"IF(Summary_Products!H24=\"\",\"\",Summary_Products!H24)","v":""},{"$f":"IF(Summary_Products!I24=\"\",\"\",Summary_Products!I24)","v":""},{"$f":"IF(Summary_Products!J24=\"\",\"\",Summary_Products!J24)","v":""},{"$f":"IF(Summary_Products!K24=\"\",\"\",Summary_Products!K24)","v":""},{"$f":"IF(Summary_Products!L24=\"\",\"\",Summary_Products!L24)","v":""},{"$f":"IF(Summary_Products!M24=\"\",\"\",Summary_Products!M24)","v":""},{"$f":"IF(Summary_Products!N24=\"\",\"\",Summary_Products!N24)","v":""},{"$f":"IF(Summary_Products!O24=\"\",\"\",Summary_Products!O24)","v":""},{"$f":"IF(Summary_Products!P24=\"\",\"\",INDEX(Translations!$C:$C,MATCH(Summary_Products!P24,Translations!$B:$B,0)))","v":""},{"$f":"IF(Summary_Products!Q24=\"\",\"\",Summary_Products!Q24)","v":""},{"$f":"IF(Summary_Products!R24=\"\",\"\",Summary_Products!R24)","v":""},{"$f":"IF(Summary_Products!S24=\"\",\"\",Summary_Products!S24)","v":""},{"$f":"IF(Summary_Products!T24=\"\",\"\",Summary_Products!T24)","v":""},{"$f":"IF(Summary_Products!U24=\"\",\"\",Summary_Products!U24)","v":""},{"$f":"IF(Summary_Products!V24=\"\",\"\",Summary_Products!V24)","v":""},{"$f":"IF(Summary_Products!W24=\"\",\"\",Summary_Products!W24)","v":""},{"$f":"IF(Summary_Products!X24=\"\",\"\",Summary_Products!X24)","v":""},{"$f":"IF(Summary_Products!Y24=\"\",\"\",Summary_Products!Y24)","v":""},{"$f":"IF(Summary_Products!Z24=\"\",\"\",Summary_Products!Z24)","v":""},{"$f":"IF(Summary_Products!AA24=\"\",\"\",Summary_Products!AA24)","v":""},{"$f":"IF(Summary_Products!AB24=\"\",\"\",Summary_Products!AB24)","v":""},{"$f":"IF(Summary_Products!AC24=\"\",\"\",Summary_Products!AC24)","v":""},{"$f":"IF(Summary_Products!AD24=\"\",\"\",Summary_Products!AD24)","v":""},{"$f":"IF(Summary_Products!AE24=\"\",\"\",Summary_Products!AE24)","v":""},{"$f":"IF(Summary_Products!AF24=\"\",\"\",Summary_Products!AF24)","v":""},{"$f":"IF(Summary_Products!AG24=\"\",\"\",Summary_Products!AG24)","v":""},{"$f":"IF(Summary_Products!AH24=\"\",\"\",Summary_Products!AH24)","v":""},{"$f":"IF(Summary_Products!AI24=\"\",\"\",Summary_Products!AI24)","v":""},{"$f":"IF(Summary_Products!AJ24=\"\",\"\",Summary_Products!AJ24)","v":""},{"$f":"IF(Summary_Products!AK24=\"\",\"\",Summary_Products!AK24)","v":""},{"$f":"IF(Summary_Products!AL24=\"\",\"\",INDEX(Translations!$C:$C,MATCH(Summary_Products!AL24,Translations!$B:$B,0)))","v":""},{"$f":"IF(Summary_Products!AM24=\"\",\"\",Summary_Products!AM24)","v":""},{"$f":"IF(Summary_Products!AN24=\"\",\"\",Summary_Products!AN24)","v":""},{"$f":"IF(Summary_Products!AO24=\"\",\"\",Summary_Products!AO24)","v":""},{"$f":"IF(Summary_Products!AP24=\"\",\"\",Summary_Products!AP24)","v":""},{"$f":"IF(Summary_Products!AR24=\"\",\"\",Summary_Products!AR24)","v":""},{"$f":"IF(Summary_Products!AS24=\"\",\"\",Summary_Products!AS24)","v":""},{"$f":"IF(Summary_Products!AT24=\"\",\"\",INDEX(Translations!$C:$C,MATCH(Summary_Products!AT24,Translations!$B:$B,0)))","v":""},{"$f":"IF(Summary_Products!AU24=\"\",\"\",Summary_Products!AU24)","v":""},{"$f":"IF(Summary_Products!AV24=\"\",\"\",Summary_Products!AV24)","v":""},{"$f":"IF(Summary_Products!AW24=\"\",\"\",Summary_Products!AW24)","v":""},{"$f":"IF(Summary_Products!AX24=\"\",\"\",Summary_Products!AX24)","v":""},{"$f":"IF(Summary_Products!AY24=\"\",\"\",Summary_Products!AY24)","v":""},{"$f":"IF(Summary_Products!AZ24=\"\",\"\",Summary_Products!AZ24)","v":""},{"$f":"IF(Summary_Products!BA24=\"\",\"\",Summary_Products!BA24)","v":""}]
[null,null,16,{"$f":"IF(Summary_Products!D25=\"\",\"\",Summary_Products!D25)","v":""},{"$f":"IF(Summary_Products!E25=\"\",\"\",INDEX(Translations!$C:$C,MATCH(Summary_Products!E25,Translations!$B:$B,0)))","v":""},{"$f":"IF(Summary_Products!F25=\"\",\"\",Summary_Products!F25)","v":""},{"$f":"IF(F41=\"\",\"\",INDEX(Parameters_CNCodes!$H$4:$H$752,MATCH(F41,CNCodes_ListKey,0)))","v":""},{"$f":"IF(Summary_Products!H25=\"\",\"\",Summary_Products!H25)","v":""},{"$f":"IF(Summary_Products!I25=\"\",\"\",Summary_Products!I25)","v":""},{"$f":"IF(Summary_Products!J25=\"\",\"\",Summary_Products!J25)","v":""},{"$f":"IF(Summary_Products!K25=\"\",\"\",Summary_Products!K25)","v":""},{"$f":"IF(Summary_Products!L25=\"\",\"\",Summary_Products!L25)","v":""},{"$f":"IF(Summary_Products!M25=\"\",\"\",Summary_Products!M25)","v":""},{"$f":"IF(Summary_Products!N25=\"\",\"\",Summary_Products!N25)","v":""},{"$f":"IF(Summary_Products!O25=\"\",\"\",Summary_Products!O25)","v":""},{"$f":"IF(Summary_Products!P25=\"\",\"\",INDEX(Translations!$C:$C,MATCH(Summary_Products!P25,Translations!$B:$B,0)))","v":""},{"$f":"IF(Summary_Products!Q25=\"\",\"\",Summary_Products!Q25)","v":""},{"$f":"IF(Summary_Products!R25=\"\",\"\",Summary_Products!R25)","v":""},{"$f":"IF(Summary_Products!S25=\"\",\"\",Summary_Products!S25)","v":""},{"$f":"IF(Summary_Products!T25=\"\",\"\",Summary_Products!T25)","v":""},{"$f":"IF(Summary_Products!U25=\"\",\"\",Summary_Products!U25)","v":""},{"$f":"IF(Summary_Products!V25=\"\",\"\",Summary_Products!V25)","v":""},{"$f":"IF(Summary_Products!W25=\"\",\"\",Summary_Products!W25)","v":""},{"$f":"IF(Summary_Products!X25=\"\",\"\",Summary_Products!X25)","v":""},{"$f":"IF(Summary_Products!Y25=\"\",\"\",Summary_Products!Y25)","v":""},{"$f":"IF(Summary_Products!Z25=\"\",\"\",Summary_Products!Z25)","v":""},{"$f":"IF(Summary_Products!AA25=\"\",\"\",Summary_Products!AA25)","v":""},{"$f":"IF(Summary_Products!AB25=\"\",\"\",Summary_Products!AB25)","v":""},{"$f":"IF(Summary_Products!AC25=\"\",\"\",Summary_Products!AC25)","v":""},{"$f":"IF(Summary_Products!AD25=\"\",\"\",Summary_Products!AD25)","v":""},{"$f":"IF(Summary_Products!AE25=\"\",\"\",Summary_Products!AE25)","v":""},{"$f":"IF(Summary_Products!AF25=\"\",\"\",Summary_Products!AF25)","v":""},{"$f":"IF(Summary_Products!AG25=\"\",\"\",Summary_Products!AG25)","v":""},{"$f":"IF(Summary_Products!AH25=\"\",\"\",Summary_Products!AH25)","v":""},{"$f":"IF(Summary_Products!AI25=\"\",\"\",Summary_Products!AI25)","v":""},{"$f":"IF(Summary_Products!AJ25=\"\",\"\",Summary_Products!AJ25)","v":""},{"$f":"IF(Summary_Products!AK25=\"\",\"\",Summary_Products!AK25)","v":""},{"$f":"IF(Summary_Products!AL25=\"\",\"\",INDEX(Translations!$C:$C,MATCH(Summary_Products!AL25,Translations!$B:$B,0)))","v":""},{"$f":"IF(Summary_Products!AM25=\"\",\"\",Summary_Products!AM25)","v":""},{"$f":"IF(Summary_Products!AN25=\"\",\"\",Summary_Products!AN25)","v":""},{"$f":"IF(Summary_Products!AO25=\"\",\"\",Summary_Products!AO25)","v":""},{"$f":"IF(Summary_Products!AP25=\"\",\"\",Summary_Products!AP25)","v":""},{"$f":"IF(Summary_Products!AR25=\"\",\"\",Summary_Products!AR25)","v":""},{"$f":"IF(Summary_Products!AS25=\"\",\"\",Summary_Products!AS25)","v":""},{"$f":"IF(Summary_Products!AT25=\"\",\"\",INDEX(Translations!$C:$C,MATCH(Summary_Products!AT25,Translations!$B:$B,0)))","v":""},{"$f":"IF(Summary_Products!AU25=\"\",\"\",Summary_Products!AU25)","v":""},{"$f":"IF(Summary_Products!AV25=\"\",\"\",Summary_Products!AV25)","v":""},{"$f":"IF(Summary_Products!AW25=\"\",\"\",Summary_Products!AW25)","v":""},{"$f":"IF(Summary_Products!AX25=\"\",\"\",Summary_Products!AX25)","v":""},{"$f":"IF(Summary_Products!AY25=\"\",\"\",Summary_Products!AY25)","v":""},{"$f":"IF(Summary_Products!AZ25=\"\",\"\",Summary_Products!AZ25)","v":""},{"$f":"IF(Summary_Products!BA25=\"\",\"\",Summary_Products!BA25)","v":""}]
[null,null,17,{"$f":"IF(Summary_Products!D26=\"\",\"\",Summary_Products!D26)","v":""},{"$f":"IF(Summary_Products!E26=\"\",\"\",INDEX(Translations!$C:$C,MATCH(Summary_Products!E26,Translations!$B:$B,0)))","v":""},{"$f":"IF(Summary_Products!F26=\"\",\"\",Summary_Products!F26)","v":""},{"$f":"IF(F42=\"\",\"\",INDEX(Parameters_CNCodes!$H$4:$H$752,MATCH(F42,CNCodes_ListKey,0)))","v":""},{"$f":"IF(Summary_Products!H26=\"\",\"\",Summary_Products!H26)","v":""},{"$f":"IF(Summary_Products!I26=\"\",\"\",Summary_Products!I26)","v":""},{"$f":"IF(Summary_Products!J26=\"\",\"\",Summary_Products!J26)","v":""},{"$f":"IF(Summary_Products!K26=\"\",\"\",Summary_Products!K26)","v":""},{"$f":"IF(Summary_Products!L26=\"\",\"\",Summary_Products!L26)","v":""},{"$f":"IF(Summary_Products!M26=\"\",\"\",Summary_Products!M26)","v":""},{"$f":"IF(Summary_Products!N26=\"\",\"\",Summary_Products!N26)","v":""},{"$f":"IF(Summary_Products!O26=\"\",\"\",Summary_Products!O26)","v":""},{"$f":"IF(Summary_Products!P26=\"\",\"\",INDEX(Translations!$C:$C,MATCH(Summary_Products!P26,Translations!$B:$B,0)))","v":""},{"$f":"IF(Summary_Products!Q26=\"\",\"\",Summary_Products!Q26)","v":""},{"$f":"IF(Summary_Products!R26=\"\",\"\",Summary_Products!R26)","v":""},{"$f":"IF(Summary_Products!S26=\"\",\"\",Summary_Products!S26)","v":""},{"$f":"IF(Summary_Products!T26=\"\",\"\",Summary_Products!T26)","v":""},{"$f":"IF(Summary_Products!U26=\"\",\"\",Summary_Products!U26)","v":""},{"$f":"IF(Summary_Products!V26=\"\",\"\",Summary_Products!V26)","v":""},{"$f":"IF(Summary_Products!W26=\"\",\"\",Summary_Products!W26)","v":""},{"$f":"IF(Summary_Products!X26=\"\",\"\",Summary_Products!X26)","v":""},{"$f":"IF(Summary_Products!Y26=\"\",\"\",Summary_Products!Y26)","v":""},{"$f":"IF(Summary_Products!Z26=\"\",\"\",Summary_Products!Z26)","v":""},{"$f":"IF(Summary_Products!AA26=\"\",\"\",Summary_Products!AA26)","v":""},{"$f":"IF(Summary_Products!AB26=\"\",\"\",Summary_Products!AB26)","v":""},{"$f":"IF(Summary_Products!AC26=\"\",\"\",Summary_Products!AC26)","v":""},{"$f":"IF(Summary_Products!AD26=\"\",\"\",Summary_Products!AD26)","v":""},{"$f":"IF(Summary_Products!AE26=\"\",\"\",Summary_Products!AE26)","v":""},{"$f":"IF(Summary_Products!AF26=\"\",\"\",Summary_Products!AF26)","v":""},{"$f":"IF(Summary_Products!AG26=\"\",\"\",Summary_Products!AG26)","v":""},{"$f":"IF(Summary_Products!AH26=\"\",\"\",Summary_Products!AH26)","v":""},{"$f":"IF(Summary_Products!AI26=\"\",\"\",Summary_Products!AI26)","v":""},{"$f":"IF(Summary_Products!AJ26=\"\",\"\",Summary_Products!AJ26)","v":""},{"$f":"IF(Summary_Products!AK26=\"\",\"\",Summary_Products!AK26)","v":""},{"$f":"IF(Summary_Products!AL26=\"\",\"\",INDEX(Translations!$C:$C,MATCH(Summary_Products!AL26,Translations!$B:$B,0)))","v":""},{"$f":"IF(Summary_Products!AM26=\"\",\"\",Summary_Products!AM26)","v":""},{"$f":"IF(Summary_Products!AN26=\"\",\"\",Summary_Products!AN26)","v":""},{"$f":"IF(Summary_Products!AO26=\"\",\"\",Summary_Products!AO26)","v":""},{"$f":"IF(Summary_Products!AP26=\"\",\"\",Summary_Products!AP26)","v":""},{"$f":"IF(Summary_Products!AR26=\"\",\"\",Summary_Products!AR26)","v":""},{"$f":"IF(Summary_Products!AS26=\"\",\"\",Summary_Products!AS26)","v":""},{"$f":"IF(Summary_Products!AT26=\"\",\"\",INDEX(Translations!$C:$C,MATCH(Summary_Products!AT26,Translations!$B:$B,0)))","v":""},{"$f":"IF(Summary_Products!AU26=\"\",\"\",Summary_Products!AU26)","v":""},{"$f":"IF(Summary_Products!AV26=\"\",\"\",Summary_Products!AV26)","v":""},{"$f":"IF(Summary_Products!AW26=\"\",\"\",Summary_Products!AW26)","v":""},{"$f":"IF(Summary_Products!AX26=\"\",\"\",Summary_Products!AX26)","v":""},{"$f":"IF(Summary_Products!AY26=\"\",\"\",Summary_Products!AY26)","v":""},{"$f":"IF(Summary_Products!AZ26=\"\",\"\",Summary_Products!AZ26)","v":""},{"$f":"IF(Summary_Products!BA26=\"\",\"\",Summary_Products!BA26)","v":""}]
[null,null,18,{"$f":"IF(Summary_Products!D27=\"\",\"\",Summary_Products!D27)","v":""},{"$f":"IF(Summary_Products!E27=\"\",\"\",INDEX(Translations!$C:$C,MATCH(Summary_Products!E27,Translations!$B:$B,0)))","v":""},{"$f":"IF(Summary_Products!F27=\"\",\"\",Summary_Products!F27)","v":""},{"$f":"IF(F43=\"\",\"\",INDEX(Parameters_CNCodes!$H$4:$H$752,MATCH(F43,CNCodes_ListKey,0)))","v":""},{"$f":"IF(Summary_Products!H27=\"\",\"\",Summary_Products!H27)","v":""},{"$f":"IF(Summary_Products!I27=\"\",\"\",Summary_Products!I27)","v":""},{"$f":"IF(Summary_Products!J27=\"\",\"\",Summary_Products!J27)","v":""},{"$f":"IF(Summary_Products!K27=\"\",\"\",Summary_Products!K27)","v":""},{"$f":"IF(Summary_Products!L27=\"\",\"\",Summary_Products!L27)","v":""},{"$f":"IF(Summary_Products!M27=\"\",\"\",Summary_Products!M27)","v":""},{"$f":"IF(Summary_Products!N27=\"\",\"\",Summary_Products!N27)","v":""},{"$f":"IF(Summary_Products!O27=\"\",\"\",Summary_Products!O27)","v":""},{"$f":"IF(Summary_Products!P27=\"\",\"\",INDEX(Translations!$C:$C,MATCH(Summary_Products!P27,Translations!$B:$B,0)))","v":""},{"$f":"IF(Summary_Products!Q27=\"\",\"\",Summary_Products!Q27)","v":""},{"$f":"IF(Summary_Products!R27=\"\",\"\",Summary_Products!R27)","v":""},{"$f":"IF(Summary_Products!S27=\"\",\"\",Summary_Products!S27)","v":""},{"$f":"IF(Summary_Products!T27=\"\",\"\",Summary_Products!T27)","v":""},{"$f":"IF(Summary_Products!U27=\"\",\"\",Summary_Products!U27)","v":""},{"$f":"IF(Summary_Products!V27=\"\",\"\",Summary_Products!V27)","v":""},{"$f":"IF(Summary_Products!W27=\"\",\"\",Summary_Products!W27)","v":""},{"$f":"IF(Summary_Products!X27=\"\",\"\",Summary_Products!X27)","v":""},{"$f":"IF(Summary_Products!Y27=\"\",\"\",Summary_Products!Y27)","v":""},{"$f":"IF(Summary_Products!Z27=\"\",\"\",Summary_Products!Z27)","v":""},{"$f":"IF(Summary_Products!AA27=\"\",\"\",Summary_Products!AA27)","v":""},{"$f":"IF(Summary_Products!AB27=\"\",\"\",Summary_Products!AB27)","v":""},{"$f":"IF(Summary_Products!AC27=\"\",\"\",Summary_Products!AC27)","v":""},{"$f":"IF(Summary_Products!AD27=\"\",\"\",Summary_Products!AD27)","v":""},{"$f":"IF(Summary_Products!AE27=\"\",\"\",Summary_Products!AE27)","v":""},{"$f":"IF(Summary_Products!AF27=\"\",\"\",Summary_Products!AF27)","v":""},{"$f":"IF(Summary_Products!AG27=\"\",\"\",Summary_Products!AG27)","v":""},{"$f":"IF(Summary_Products!AH27=\"\",\"\",Summary_Products!AH27)","v":""},{"$f":"IF(Summary_Products!AI27=\"\",\"\",Summary_Products!AI27)","v":""},{"$f":"IF(Summary_Products!AJ27=\"\",\"\",Summary_Products!AJ27)","v":""},{"$f":"IF(Summary_Products!AK27=\"\",\"\",Summary_Products!AK27)","v":""},{"$f":"IF(Summary_Products!AL27=\"\",\"\",INDEX(Translations!$C:$C,MATCH(Summary_Products!AL27,Translations!$B:$B,0)))","v":""},{"$f":"IF(Summary_Products!AM27=\"\",\"\",Summary_Products!AM27)","v":""},{"$f":"IF(Summary_Products!AN27=\"\",\"\",Summary_Products!AN27)","v":""},{"$f":"IF(Summary_Products!AO27=\"\",\"\",Summary_Products!AO27)","v":""},{"$f":"IF(Summary_Products!AP27=\"\",\"\",Summary_Products!AP27)","v":""},{"$f":"IF(Summary_Products!AR27=\"\",\"\",Summary_Products!AR27)","v":""},{"$f":"IF(Summary_Products!AS27=\"\",\"\",Summary_Products!AS27)","v":""},{"$f":"IF(Summary_Products!AT27=\"\",\"\",INDEX(Translations!$C:$C,MATCH(Summary_Products!AT27,Translations!$B:$B,0)))","v":""},{"$f":"IF(Summary_Products!AU27=\"\",\"\",Summary_Products!AU27)","v":""},{"$f":"IF(Summary_Products!AV27=\"\",\"\",Summary_Products!AV27)","v":""},{"$f":"IF(Summary_Products!AW27=\"\",\"\",Summary_Products!AW27)","v":""},{"$f":"IF(Summary_Products!AX27=\"\",\"\",Summary_Products!AX27)","v":""},{"$f":"IF(Summary_Products!AY27=\"\",\"\",Summary_Products!AY27)","v":""},{"$f":"IF(Summary_Products!AZ27=\"\",\"\",Summary_Products!AZ27)","v":""},{"$f":"IF(Summary_Products!BA27=\"\",\"\",Summary_Products!BA27)","v":""}]
[null,null,19,{"$f":"IF(Summary_Products!D28=\"\",\"\",Summary_Products!D28)","v":""},{"$f":"IF(Summary_Products!E28=\"\",\"\",INDEX(Translations!$C:$C,MATCH(Summary_Products!E28,Translations!$B:$B,0)))","v":""},{"$f":"IF(Summary_Products!F28=\"\",\"\",Summary_Products!F28)","v":""},{"$f":"IF(F44=\"\",\"\",INDEX(Parameters_CNCodes!$H$4:$H$752,MATCH(F44,CNCodes_ListKey,0)))","v":""},{"$f":"IF(Summary_Products!H28=\"\",\"\",Summary_Products!H28)","v":""},{"$f":"IF(Summary_Products!I28=\"\",\"\",Summary_Products!I28)","v":""},{"$f":"IF(Summary_Products!J28=\"\",\"\",Summary_Products!J28)","v":""},{"$f":"IF(Summary_Products!K28=\"\",\"\",Summary_Products!K28)","v":""},{"$f":"IF(Summary_Products!L28=\"\",\"\",Summary_Products!L28)","v":""},{"$f":"IF(Summary_Products!M28=\"\",\"\",Summary_Products!M28)","v":""},{"$f":"IF(Summary_Products!N28=\"\",\"\",Summary_Products!N28)","v":""},{"$f":"IF(Summary_Products!O28=\"\",\"\",Summary_Products!O28)","v":""},{"$f":"IF(Summary_Products!P28=\"\",\"\",INDEX(Translations!$C:$C,MATCH(Summary_Products!P28,Translations!$B:$B,0)))","v":""},{"$f":"IF(Summary_Products!Q28=\"\",\"\",Summary_Products!Q28)","v":""},{"$f":"IF(Summary_Products!R28=\"\",\"\",Summary_Products!R28)","v":""},{"$f":"IF(Summary_Products!S28=\"\",\"\",Summary_Products!S28)","v":""},{"$f":"IF(Summary_Products!T28=\"\",\"\",Summary_Products!T28)","v":""},{"$f":"IF(Summary_Products!U28=\"\",\"\",Summary_Products!U28)","v":""},{"$f":"IF(Summary_Products!V28=\"\",\"\",Summary_Products!V28)","v":""},{"$f":"IF(Summary_Products!W28=\"\",\"\",Summary_Products!W28)","v":""},{"$f":"IF(Summary_Products!X28=\"\",\"\",Summary_Products!X28)","v":""},{"$f":"IF(Summary_Products!Y28=\"\",\"\",Summary_Products!Y28)","v":""},{"$f":"IF(Summary_Products!Z28=\"\",\"\",Summary_Products!Z28)","v":""},{"$f":"IF(Summary_Products!AA28=\"\",\"\",Summary_Products!AA28)","v":""},{"$f":"IF(Summary_Products!AB28=\"\",\"\",Summary_Products!AB28)","v":""},{"$f":"IF(Summary_Products!AC28=\"\",\"\",Summary_Products!AC28)","v":""},{"$f":"IF(Summary_Products!AD28=\"\",\"\",Summary_Products!AD28)","v":""},{"$f":"IF(Summary_Products!AE28=\"\",\"\",Summary_Products!AE28)","v":""},{"$f":"IF(Summary_Products!AF28=\"\",\"\",Summary_Products!AF28)","v":""},{"$f":"IF(Summary_Products!AG28=\"\",\"\",Summary_Products!AG28)","v":""},{"$f":"IF(Summary_Products!AH28=\"\",\"\",Summary_Products!AH28)","v":""},{"$f":"IF(Summary_Products!AI28=\"\",\"\",Summary_Products!AI28)","v":""},{"$f":"IF(Summary_Products!AJ28=\"\",\"\",Summary_Products!AJ28)","v":""},{"$f":"IF(Summary_Products!AK28=\"\",\"\",Summary_Products!AK28)","v":""},{"$f":"IF(Summary_Products!AL28=\"\",\"\",INDEX(Translations!$C:$C,MATCH(Summary_Products!AL28,Translations!$B:$B,0)))","v":""},{"$f":"IF(Summary_Products!AM28=\"\",\"\",Summary_Products!AM28)","v":""},{"$f":"IF(Summary_Products!AN28=\"\",\"\",Summary_Products!AN28)","v":""},{"$f":"IF(Summary_Products!AO28=\"\",\"\",Summary_Products!AO28)","v":""},{"$f":"IF(Summary_Products!AP28=\"\",\"\",Summary_Products!AP28)","v":""},{"$f":"IF(Summary_Products!AR28=\"\",\"\",Summary_Products!AR28)","v":""},{"$f":"IF(Summary_Products!AS28=\"\",\"\",Summary_Products!AS28)","v":""},{"$f":"IF(Summary_Products!AT28=\"\",\"\",INDEX(Translations!$C:$C,MATCH(Summary_Products!AT28,Translations!$B:$B,0)))","v":""},{"$f":"IF(Summary_Products!AU28=\"\",\"\",Summary_Products!AU28)","v":""},{"$f":"IF(Summary_Products!AV28=\"\",\"\",Summary_Products!AV28)","v":""},{"$f":"IF(Summary_Products!AW28=\"\",\"\",Summary_Products!AW28)","v":""},{"$f":"IF(Summary_Products!AX28=\"\",\"\",Summary_Products!AX28)","v":""},{"$f":"IF(Summary_Products!AY28=\"\",\"\",Summary_Products!AY28)","v":""},{"$f":"IF(Summary_Products!AZ28=\"\",\"\",Summary_Products!AZ28)","v":""},{"$f":"IF(Summary_Products!BA28=\"\",\"\",Summary_Products!BA28)","v":""}]
[null,null,20,{"$f":"IF(Summary_Products!D29=\"\",\"\",Summary_Products!D29)","v":""},{"$f":"IF(Summary_Products!E29=\"\",\"\",INDEX(Translations!$C:$C,MATCH(Summary_Products!E29,Translations!$B:$B,0)))","v":""},{"$f":"IF(Summary_Products!F29=\"\",\"\",Summary_Products!F29)","v":""},{"$f":"IF(F45=\"\",\"\",INDEX(Parameters_CNCodes!$H$4:$H$752,MATCH(F45,CNCodes_ListKey,0)))","v":""},{"$f":"IF(Summary_Products!H29=\"\",\"\",Summary_Products!H29)","v":""},{"$f":"IF(Summary_Products!I29=\"\",\"\",Summary_Products!I29)","v":""},{"$f":"IF(Summary_Products!J29=\"\",\"\",Summary_Products!J29)","v":""},{"$f":"IF(Summary_Products!K29=\"\",\"\",Summary_Products!K29)","v":""},{"$f":"IF(Summary_Products!L29=\"\",\"\",Summary_Products!L29)","v":""},{"$f":"IF(Summary_Products!M29=\"\",\"\",Summary_Products!M29)","v":""},{"$f":"IF(Summary_Products!N29=\"\",\"\",Summary_Products!N29)","v":""},{"$f":"IF(Summary_Products!O29=\"\",\"\",Summary_Products!O29)","v":""},{"$f":"IF(Summary_Products!P29=\"\",\"\",INDEX(Translations!$C:$C,MATCH(Summary_Products!P29,Translations!$B:$B,0)))","v":""},{"$f":"IF(Summary_Products!Q29=\"\",\"\",Summary_Products!Q29)","v":""},{"$f":"IF(Summary_Products!R29=\"\",\"\",Summary_Products!R29)","v":""},{"$f":"IF(Summary_Products!S29=\"\",\"\",Summary_Products!S29)","v":""},{"$f":"IF(Summary_Products!T29=\"\",\"\",Summary_Products!T29)","v":""},{"$f":"IF(Summary_Products!U29=\"\",\"\",Summary_Products!U29)","v":""},{"$f":"IF(Summary_Products!V29=\"\",\"\",Summary_Products!V29)","v":""},{"$f":"IF(Summary_Products!W29=\"\",\"\",Summary_Products!W29)","v":""},{"$f":"IF(Summary_Products!X29=\"\",\"\",Summary_Products!X29)","v":""},{"$f":"IF(Summary_Products!Y29=\"\",\"\",Summary_Products!Y29)","v":""},{"$f":"IF(Summary_Products!Z29=\"\",\"\",Summary_Products!Z29)","v":""},{"$f":"IF(Summary_Products!AA29=\"\",\"\",Summary_Products!AA29)","v":""},{"$f":"IF(Summary_Products!AB29=\"\",\"\",Summary_Products!AB29)","v":""},{"$f":"IF(Summary_Products!AC29=\"\",\"\",Summary_Products!AC29)","v":""},{"$f":"IF(Summary_Products!AD29=\"\",\"\",Summary_Products!AD29)","v":""},{"$f":"IF(Summary_Products!AE29=\"\",\"\",Summary_Products!AE29)","v":""},{"$f":"IF(Summary_Products!AF29=\"\",\"\",Summary_Products!AF29)","v":""},{"$f":"IF(Summary_Products!AG29=\"\",\"\",Summary_Products!AG29)","v":""},{"$f":"IF(Summary_Products!AH29=\"\",\"\",Summary_Products!AH29)","v":""},{"$f":"IF(Summary_Products!AI29=\"\",\"\",Summary_Products!AI29)","v":""},{"$f":"IF(Summary_Products!AJ29=\"\",\"\",Summary_Products!AJ29)","v":""},{"$f":"IF(Summary_Products!AK29=\"\",\"\",Summary_Products!AK29)","v":""},{"$f":"IF(Summary_Products!AL29=\"\",\"\",INDEX(Translations!$C:$C,MATCH(Summary_Products!AL29,Translations!$B:$B,0)))","v":""},{"$f":"IF(Summary_Products!AM29=\"\",\"\",Summary_Products!AM29)","v":""},{"$f":"IF(Summary_Products!AN29=\"\",\"\",Summary_Products!AN29)","v":""},{"$f":"IF(Summary_Products!AO29=\"\",\"\",Summary_Products!AO29)","v":""},{"$f":"IF(Summary_Products!AP29=\"\",\"\",Summary_Products!AP29)","v":""},{"$f":"IF(Summary_Products!AR29=\"\",\"\",Summary_Products!AR29)","v":""},{"$f":"IF(Summary_Products!AS29=\"\",\"\",Summary_Products!AS29)","v":""},{"$f":"IF(Summary_Products!AT29=\"\",\"\",INDEX(Translations!$C:$C,MATCH(Summary_Products!AT29,Translations!$B:$B,0)))","v":""},{"$f":"IF(Summary_Products!AU29=\"\",\"\",Summary_Products!AU29)","v":""},{"$f":"IF(Summary_Products!AV29=\"\",\"\",Summary_Products!AV29)","v":""},{"$f":"IF(Summary_Products!AW29=\"\",\"\",Summary_Products!AW29)","v":""},{"$f":"IF(Summary_Products!AX29=\"\",\"\",Summary_Products!AX29)","v":""},{"$f":"IF(Summary_Products!AY29=\"\",\"\",Summary_Products!AY29)","v":""},{"$f":"IF(Summary_Products!AZ29=\"\",\"\",Summary_Products!AZ29)","v":""},{"$f":"IF(Summary_Products!BA29=\"\",\"\",Summary_Products!BA29)","v":""}]
[null,null,21,{"$f":"IF(Summary_Products!D30=\"\",\"\",Summary_Products!D30)","v":""},{"$f":"IF(Summary_Products!E30=\"\",\"\",INDEX(Translations!$C:$C,MATCH(Summary_Products!E30,Translations!$B:$B,0)))","v":""},{"$f":"IF(Summary_Products!F30=\"\",\"\",Summary_Products!F30)","v":""},{"$f":"IF(F46=\"\",\"\",INDEX(Parameters_CNCodes!$H$4:$H$752,MATCH(F46,CNCodes_ListKey,0)))","v":""},{"$f":"IF(Summary_Products!H30=\"\",\"\",Summary_Products!H30)","v":""},{"$f":"IF(Summary_Products!I30=\"\",\"\",Summary_Products!I30)","v":""},{"$f":"IF(Summary_Products!J30=\"\",\"\",Summary_Products!J30)","v":""},{"$f":"IF(Summary_Products!K30=\"\",\"\",Summary_Products!K30)","v":""},{"$f":"IF(Summary_Products!L30=\"\",\"\",Summary_Products!L30)","v":""},{"$f":"IF(Summary_Products!M30=\"\",\"\",Summary_Products!M30)","v":""},{"$f":"IF(Summary_Products!N30=\"\",\"\",Summary_Products!N30)","v":""},{"$f":"IF(Summary_Products!O30=\"\",\"\",Summary_Products!O30)","v":""},{"$f":"IF(Summary_Products!P30=\"\",\"\",INDEX(Translations!$C:$C,MATCH(Summary_Products!P30,Translations!$B:$B,0)))","v":""},{"$f":"IF(Summary_Products!Q30=\"\",\"\",Summary_Products!Q30)","v":""},{"$f":"IF(Summary_Products!R30=\"\",\"\",Summary_Products!R30)","v":""},{"$f":"IF(Summary_Products!S30=\"\",\"\",Summary_Products!S30)","v":""},{"$f":"IF(Summary_Products!T30=\"\",\"\",Summary_Products!T30)","v":""},{"$f":"IF(Summary_Products!U30=\"\",\"\",Summary_Products!U30)","v":""},{"$f":"IF(Summary_Products!V30=\"\",\"\",Summary_Products!V30)","v":""},{"$f":"IF(Summary_Products!W30=\"\",\"\",Summary_Products!W30)","v":""},{"$f":"IF(Summary_Products!X30=\"\",\"\",Summary_Products!X30)","v":""},{"$f":"IF(Summary_Products!Y30=\"\",\"\",Summary_Products!Y30)","v":""},{"$f":"IF(Summary_Products!Z30=\"\",\"\",Summary_Products!Z30)","v":""},{"$f":"IF(Summary_Products!AA30=\"\",\"\",Summary_Products!AA30)","v":""},{"$f":"IF(Summary_Products!AB30=\"\",\"\",Summary_Products!AB30)","v":""},{"$f":"IF(Summary_Products!AC30=\"\",\"\",Summary_Products!AC30)","v":""},{"$f":"IF(Summary_Products!AD30=\"\",\"\",Summary_Products!AD30)","v":""},{"$f":"IF(Summary_Products!AE30=\"\",\"\",Summary_Products!AE30)","v":""},{"$f":"IF(Summary_Products!AF30=\"\",\"\",Summary_Products!AF30)","v":""},{"$f":"IF(Summary_Products!AG30=\"\",\"\",Summary_Products!AG30)","v":""},{"$f":"IF(Summary_Products!AH30=\"\",\"\",Summary_Products!AH30)","v":""},{"$f":"IF(Summary_Products!AI30=\"\",\"\",Summary_Products!AI30)","v":""},{"$f":"IF(Summary_Products!AJ30=\"\",\"\",Summary_Products!AJ30)","v":""},{"$f":"IF(Summary_Products!AK30=\"\",\"\",Summary_Products!AK30)","v":""},{"$f":"IF(Summary_Products!AL30=\"\",\"\",INDEX(Translations!$C:$C,MATCH(Summary_Products!AL30,Translations!$B:$B,0)))","v":""},{"$f":"IF(Summary_Products!AM30=\"\",\"\",Summary_Products!AM30)","v":""},{"$f":"IF(Summary_Products!AN30=\"\",\"\",Summary_Products!AN30)","v":""},{"$f":"IF(Summary_Products!AO30=\"\",\"\",Summary_Products!AO30)","v":""},{"$f":"IF(Summary_Products!AP30=\"\",\"\",Summary_Products!AP30)","v":""},{"$f":"IF(Summary_Products!AR30=\"\",\"\",Summary_Products!AR30)","v":""},{"$f":"IF(Summary_Products!AS30=\"\",\"\",Summary_Products!AS30)","v":""},{"$f":"IF(Summary_Products!AT30=\"\",\"\",INDEX(Translations!$C:$C,MATCH(Summary_Products!AT30,Translations!$B:$B,0)))","v":""},{"$f":"IF(Summary_Products!AU30=\"\",\"\",Summary_Products!AU30)","v":""},{"$f":"IF(Summary_Products!AV30=\"\",\"\",Summary_Products!AV30)","v":""},{"$f":"IF(Summary_Products!AW30=\"\",\"\",Summary_Products!AW30)","v":""},{"$f":"IF(Summary_Products!AX30=\"\",\"\",Summary_Products!AX30)","v":""},{"$f":"IF(Summary_Products!AY30=\"\",\"\",Summary_Products!AY30)","v":""},{"$f":"IF(Summary_Products!AZ30=\"\",\"\",Summary_Products!AZ30)","v":""},{"$f":"IF(Summary_Products!BA30=\"\",\"\",Summary_Products!BA30)","v":""}]
[null,null,22,{"$f":"IF(Summary_Products!D31=\"\",\"\",Summary_Products!D31)","v":""},{"$f":"IF(Summary_Products!E31=\"\",\"\",INDEX(Translations!$C:$C,MATCH(Summary_Products!E31,Translations!$B:$B,0)))","v":""},{"$f":"IF(Summary_Products!F31=\"\",\"\",Summary_Products!F31)","v":""},{"$f":"IF(F47=\"\",\"\",INDEX(Parameters_CNCodes!$H$4:$H$752,MATCH(F47,CNCodes_ListKey,0)))","v":""},{"$f":"IF(Summary_Products!H31=\"\",\"\",Summary_Products!H31)","v":""},{"$f":"IF(Summary_Products!I31=\"\",\"\",Summary_Products!I31)","v":""},{"$f":"IF(Summary_Products!J31=\"\",\"\",Summary_Products!J31)","v":""},{"$f":"IF(Summary_Products!K31=\"\",\"\",Summary_Products!K31)","v":""},{"$f":"IF(Summary_Products!L31=\"\",\"\",Summary_Products!L31)","v":""},{"$f":"IF(Summary_Products!M31=\"\",\"\",Summary_Products!M31)","v":""},{"$f":"IF(Summary_Products!N31=\"\",\"\",Summary_Products!N31)","v":""},{"$f":"IF(Summary_Products!O31=\"\",\"\",Summary_Products!O31)","v":""},{"$f":"IF(Summary_Products!P31=\"\",\"\",INDEX(Translations!$C:$C,MATCH(Summary_Products!P31,Translations!$B:$B,0)))","v":""},{"$f":"IF(Summary_Products!Q31=\"\",\"\",Summary_Products!Q31)","v":""},{"$f":"IF(Summary_Products!R31=\"\",\"\",Summary_Products!R31)","v":""},{"$f":"IF(Summary_Products!S31=\"\",\"\",Summary_Products!S31)","v":""},{"$f":"IF(Summary_Products!T31=\"\",\"\",Summary_Products!T31)","v":""},{"$f":"IF(Summary_Products!U31=\"\",\"\",Summary_Products!U31)","v":""},{"$f":"IF(Summary_Products!V31=\"\",\"\",Summary_Products!V31)","v":""},{"$f":"IF(Summary_Products!W31=\"\",\"\",Summary_Products!W31)","v":""},{"$f":"IF(Summary_Products!X31=\"\",\"\",Summary_Products!X31)","v":""},{"$f":"IF(Summary_Products!Y31=\"\",\"\",Summary_Products!Y31)","v":""},{"$f":"IF(Summary_Products!Z31=\"\",\"\",Summary_Products!Z31)","v":""},{"$f":"IF(Summary_Products!AA31=\"\",\"\",Summary_Products!AA31)","v":""},{"$f":"IF(Summary_Products!AB31=\"\",\"\",Summary_Products!AB31)","v":""},{"$f":"IF(Summary_Products!AC31=\"\",\"\",Summary_Products!AC31)","v":""},{"$f":"IF(Summary_Products!AD31=\"\",\"\",Summary_Products!AD31)","v":""},{"$f":"IF(Summary_Products!AE31=\"\",\"\",Summary_Products!AE31)","v":""},{"$f":"IF(Summary_Products!AF31=\"\",\"\",Summary_Products!AF31)","v":""},{"$f":"IF(Summary_Products!AG31=\"\",\"\",Summary_Products!AG31)","v":""},{"$f":"IF(Summary_Products!AH31=\"\",\"\",Summary_Products!AH31)","v":""},{"$f":"IF(Summary_Products!AI31=\"\",\"\",Summary_Products!AI31)","v":""},{"$f":"IF(Summary_Products!AJ31=\"\",\"\",Summary_Products!AJ31)","v":""},{"$f":"IF(Summary_Products!AK31=\"\",\"\",Summary_Products!AK31)","v":""},{"$f":"IF(Summary_Products!AL31=\"\",\"\",INDEX(Translations!$C:$C,MATCH(Summary_Products!AL31,Translations!$B:$B,0)))","v":""},{"$f":"IF(Summary_Products!AM31=\"\",\"\",Summary_Products!AM31)","v":""},{"$f":"IF(Summary_Products!AN31=\"\",\"\",Summary_Products!AN31)","v":""},{"$f":"IF(Summary_Products!AO31=\"\",\"\",Summary_Products!AO31)","v":""},{"$f":"IF(Summary_Products!AP31=\"\",\"\",Summary_Products!AP31)","v":""},{"$f":"IF(Summary_Products!AR31=\"\",\"\",Summary_Products!AR31)","v":""},{"$f":"IF(Summary_Products!AS31=\"\",\"\",Summary_Products!AS31)","v":""},{"$f":"IF(Summary_Products!AT31=\"\",\"\",INDEX(Translations!$C:$C,MATCH(Summary_Products!AT31,Translations!$B:$B,0)))","v":""},{"$f":"IF(Summary_Products!AU31=\"\",\"\",Summary_Products!AU31)","v":""},{"$f":"IF(Summary_Products!AV31=\"\",\"\",Summary_Products!AV31)","v":""},{"$f":"IF(Summary_Products!AW31=\"\",\"\",Summary_Products!AW31)","v":""},{"$f":"IF(Summary_Products!AX31=\"\",\"\",Summary_Products!AX31)","v":""},{"$f":"IF(Summary_Products!AY31=\"\",\"\",Summary_Products!AY31)","v":""},{"$f":"IF(Summary_Products!AZ31=\"\",\"\",Summary_Products!AZ31)","v":""},{"$f":"IF(Summary_Products!BA31=\"\",\"\",Summary_Products!BA31)","v":""}]
[null,null,23,{"$f":"IF(Summary_Products!D32=\"\",\"\",Summary_Products!D32)","v":""},{"$f":"IF(Summary_Products!E32=\"\",\"\",INDEX(Translations!$C:$C,MATCH(Summary_Products!E32,Translations!$B:$B,0)))","v":""},{"$f":"IF(Summary_Products!F32=\"\",\"\",Summary_Products!F32)","v":""},{"$f":"IF(F48=\"\",\"\",INDEX(Parameters_CNCodes!$H$4:$H$752,MATCH(F48,CNCodes_ListKey,0)))","v":""},{"$f":"IF(Summary_Products!H32=\"\",\"\",Summary_Products!H32)","v":""},{"$f":"IF(Summary_Products!I32=\"\",\"\",Summary_Products!I32)","v":""},{"$f":"IF(Summary_Products!J32=\"\",\"\",Summary_Products!J32)","v":""},{"$f":"IF(Summary_Products!K32=\"\",\"\",Summary_Products!K32)","v":""},{"$f":"IF(Summary_Products!L32=\"\",\"\",Summary_Products!L32)","v":""},{"$f":"IF(Summary_Products!M32=\"\",\"\",Summary_Products!M32)","v":""},{"$f":"IF(Summary_Products!N32=\"\",\"\",Summary_Products!N32)","v":""},{"$f":"IF(Summary_Products!O32=\"\",\"\",Summary_Products!O32)","v":""},{"$f":"IF(Summary_Products!P32=\"\",\"\",INDEX(Translations!$C:$C,MATCH(Summary_Products!P32,Translations!$B:$B,0)))","v":""},{"$f":"IF(Summary_Products!Q32=\"\",\"\",Summary_Products!Q32)","v":""},{"$f":"IF(Summary_Products!R32=\"\",\"\",Summary_Products!R32)","v":""},{"$f":"IF(Summary_Products!S32=\"\",\"\",Summary_Products!S32)","v":""},{"$f":"IF(Summary_Products!T32=\"\",\"\",Summary_Products!T32)","v":""},{"$f":"IF(Summary_Products!U32=\"\",\"\",Summary_Products!U32)","v":""},{"$f":"IF(Summary_Products!V32=\"\",\"\",Summary_Products!V32)","v":""},{"$f":"IF(Summary_Products!W32=\"\",\"\",Summary_Products!W32)","v":""},{"$f":"IF(Summary_Products!X32=\"\",\"\",Summary_Products!X32)","v":""},{"$f":"IF(Summary_Products!Y32=\"\",\"\",Summary_Products!Y32)","v":""},{"$f":"IF(Summary_Products!Z32=\"\",\"\",Summary_Products!Z32)","v":""},{"$f":"IF(Summary_Products!AA32=\"\",\"\",Summary_Products!AA32)","v":""},{"$f":"IF(Summary_Products!AB32=\"\",\"\",Summary_Products!AB32)","v":""},{"$f":"IF(Summary_Products!AC32=\"\",\"\",Summary_Products!AC32)","v":""},{"$f":"IF(Summary_Products!AD32=\"\",\"\",Summary_Products!AD32)","v":""},{"$f":"IF(Summary_Products!AE32=\"\",\"\",Summary_Products!AE32)","v":""},{"$f":"IF(Summary_Products!AF32=\"\",\"\",Summary_Products!AF32)","v":""},{"$f":"IF(Summary_Products!AG32=\"\",\"\",Summary_Products!AG32)","v":""},{"$f":"IF(Summary_Products!AH32=\"\",\"\",Summary_Products!AH32)","v":""},{"$f":"IF(Summary_Products!AI32=\"\",\"\",Summary_Products!AI32)","v":""},{"$f":"IF(Summary_Products!AJ32=\"\",\"\",Summary_Products!AJ32)","v":""},{"$f":"IF(Summary_Products!AK32=\"\",\"\",Summary_Products!AK32)","v":""},{"$f":"IF(Summary_Products!AL32=\"\",\"\",INDEX(Translations!$C:$C,MATCH(Summary_Products!AL32,Translations!$B:$B,0)))","v":""},{"$f":"IF(Summary_Products!AM32=\"\",\"\",Summary_Products!AM32)","v":""},{"$f":"IF(Summary_Products!AN32=\"\",\"\",Summary_Products!AN32)","v":""},{"$f":"IF(Summary_Products!AO32=\"\",\"\",Summary_Products!AO32)","v":""},{"$f":"IF(Summary_Products!AP32=\"\",\"\",Summary_Products!AP32)","v":""},{"$f":"IF(Summary_Products!AR32=\"\",\"\",Summary_Products!AR32)","v":""},{"$f":"IF(Summary_Products!AS32=\"\",\"\",Summary_Products!AS32)","v":""},{"$f":"IF(Summary_Products!AT32=\"\",\"\",INDEX(Translations!$C:$C,MATCH(Summary_Products!AT32,Translations!$B:$B,0)))","v":""},{"$f":"IF(Summary_Products!AU32=\"\",\"\",Summary_Products!AU32)","v":""},{"$f":"IF(Summary_Products!AV32=\"\",\"\",Summary_Products!AV32)","v":""},{"$f":"IF(Summary_Products!AW32=\"\",\"\",Summary_Products!AW32)","v":""},{"$f":"IF(Summary_Products!AX32=\"\",\"\",Summary_Products!AX32)","v":""},{"$f":"IF(Summary_Products!AY32=\"\",\"\",Summary_Products!AY32)","v":""},{"$f":"IF(Summary_Products!AZ32=\"\",\"\",Summary_Products!AZ32)","v":""},{"$f":"IF(Summary_Products!BA32=\"\",\"\",Summary_Products!BA32)","v":""}]
[null,null,24,{"$f":"IF(Summary_Products!D33=\"\",\"\",Summary_Products!D33)","v":""},{"$f":"IF(Summary_Products!E33=\"\",\"\",INDEX(Translations!$C:$C,MATCH(Summary_Products!E33,Translations!$B:$B,0)))","v":""},{"$f":"IF(Summary_Products!F33=\"\",\"\",Summary_Products!F33)","v":""},{"$f":"IF(F49=\"\",\"\",INDEX(Parameters_CNCodes!$H$4:$H$752,MATCH(F49,CNCodes_ListKey,0)))","v":""},{"$f":"IF(Summary_Products!H33=\"\",\"\",Summary_Products!H33)","v":""},{"$f":"IF(Summary_Products!I33=\"\",\"\",Summary_Products!I33)","v":""},{"$f":"IF(Summary_Products!J33=\"\",\"\",Summary_Products!J33)","v":""},{"$f":"IF(Summary_Products!K33=\"\",\"\",Summary_Products!K33)","v":""},{"$f":"IF(Summary_Products!L33=\"\",\"\",Summary_Products!L33)","v":""},{"$f":"IF(Summary_Products!M33=\"\",\"\",Summary_Products!M33)","v":""},{"$f":"IF(Summary_Products!N33=\"\",\"\",Summary_Products!N33)","v":""},{"$f":"IF(Summary_Products!O33=\"\",\"\",Summary_Products!O33)","v":""},{"$f":"IF(Summary_Products!P33=\"\",\"\",INDEX(Translations!$C:$C,MATCH(Summary_Products!P33,Translations!$B:$B,0)))","v":""},{"$f":"IF(Summary_Products!Q33=\"\",\"\",Summary_Products!Q33)","v":""},{"$f":"IF(Summary_Products!R33=\"\",\"\",Summary_Products!R33)","v":""},{"$f":"IF(Summary_Products!S33=\"\",\"\",Summary_Products!S33)","v":""},{"$f":"IF(Summary_Products!T33=\"\",\"\",Summary_Products!T33)","v":""},{"$f":"IF(Summary_Products!U33=\"\",\"\",Summary_Products!U33)","v":""},{"$f":"IF(Summary_Products!V33=\"\",\"\",Summary_Products!V33)","v":""},{"$f":"IF(Summary_Products!W33=\"\",\"\",Summary_Products!W33)","v":""},{"$f":"IF(Summary_Products!X33=\"\",\"\",Summary_Products!X33)","v":""},{"$f":"IF(Summary_Products!Y33=\"\",\"\",Summary_Products!Y33)","v":""},{"$f":"IF(Summary_Products!Z33=\"\",\"\",Summary_Products!Z33)","v":""},{"$f":"IF(Summary_Products!AA33=\"\",\"\",Summary_Products!AA33)","v":""},{"$f":"IF(Summary_Products!AB33=\"\",\"\",Summary_Products!AB33)","v":""},{"$f":"IF(Summary_Products!AC33=\"\",\"\",Summary_Products!AC33)","v":""},{"$f":"IF(Summary_Products!AD33=\"\",\"\",Summary_Products!AD33)","v":""},{"$f":"IF(Summary_Products!AE33=\"\",\"\",Summary_Products!AE33)","v":""},{"$f":"IF(Summary_Products!AF33=\"\",\"\",Summary_Products!AF33)","v":""},{"$f":"IF(Summary_Products!AG33=\"\",\"\",Summary_Products!AG33)","v":""},{"$f":"IF(Summary_Products!AH33=\"\",\"\",Summary_Products!AH33)","v":""},{"$f":"IF(Summary_Products!AI33=\"\",\"\",Summary_Products!AI33)","v":""},{"$f":"IF(Summary_Products!AJ33=\"\",\"\",Summary_Products!AJ33)","v":""},{"$f":"IF(Summary_Products!AK33=\"\",\"\",Summary_Products!AK33)","v":""},{"$f":"IF(Summary_Products!AL33=\"\",\"\",INDEX(Translations!$C:$C,MATCH(Summary_Products!AL33,Translations!$B:$B,0)))","v":""},{"$f":"IF(Summary_Products!AM33=\"\",\"\",Summary_Products!AM33)","v":""},{"$f":"IF(Summary_Products!AN33=\"\",\"\",Summary_Products!AN33)","v":""},{"$f":"IF(Summary_Products!AO33=\"\",\"\",Summary_Products!AO33)","v":""},{"$f":"IF(Summary_Products!AP33=\"\",\"\",Summary_Products!AP33)","v":""},{"$f":"IF(Summary_Products!AR33=\"\",\"\",Summary_Products!AR33)","v":""},{"$f":"IF(Summary_Products!AS33=\"\",\"\",Summary_Products!AS33)","v":""},{"$f":"IF(Summary_Products!AT33=\"\",\"\",INDEX(Translations!$C:$C,MATCH(Summary_Products!AT33,Translations!$B:$B,0)))","v":""},{"$f":"IF(Summary_Products!AU33=\"\",\"\",Summary_Products!AU33)","v":""},{"$f":"IF(Summary_Products!AV33=\"\",\"\",Summary_Products!AV33)","v":""},{"$f":"IF(Summary_Products!AW33=\"\",\"\",Summary_Products!AW33)","v":""},{"$f":"IF(Summary_Products!AX33=\"\",\"\",Summary_Products!AX33)","v":""},{"$f":"IF(Summary_Products!AY33=\"\",\"\",Summary_Products!AY33)","v":""},{"$f":"IF(Summary_Products!AZ33=\"\",\"\",Summary_Products!AZ33)","v":""},{"$f":"IF(Summary_Products!BA33=\"\",\"\",Summary_Products!BA33)","v":""}]
[null,null,25,{"$f":"IF(Summary_Products!D34=\"\",\"\",Summary_Products!D34)","v":""},{"$f":"IF(Summary_Products!E34=\"\",\"\",INDEX(Translations!$C:$C,MATCH(Summary_Products!E34,Translations!$B:$B,0)))","v":""},{"$f":"IF(Summary_Products!F34=\"\",\"\",Summary_Products!F34)","v":""},{"$f":"IF(F50=\"\",\"\",INDEX(Parameters_CNCodes!$H$4:$H$752,MATCH(F50,CNCodes_ListKey,0)))","v":""},{"$f":"IF(Summary_Products!H34=\"\",\"\",Summary_Products!H34)","v":""},{"$f":"IF(Summary_Products!I34=\"\",\"\",Summary_Products!I34)","v":""},{"$f":"IF(Summary_Products!J34=\"\",\"\",Summary_Products!J34)","v":""},{"$f":"IF(Summary_Products!K34=\"\",\"\",Summary_Products!K34)","v":""},{"$f":"IF(Summary_Products!L34=\"\",\"\",Summary_Products!L34)","v":""},{"$f":"IF(Summary_Products!M34=\"\",\"\",Summary_Products!M34)","v":""},{"$f":"IF(Summary_Products!N34=\"\",\"\",Summary_Products!N34)","v":""},{"$f":"IF(Summary_Products!O34=\"\",\"\",Summary_Products!O34)","v":""},{"$f":"IF(Summary_Products!P34=\"\",\"\",INDEX(Translations!$C:$C,MATCH(Summary_Products!P34,Translations!$B:$B,0)))","v":""},{"$f":"IF(Summary_Products!Q34=\"\",\"\",Summary_Products!Q34)","v":""},{"$f":"IF(Summary_Products!R34=\"\",\"\",Summary_Products!R34)","v":""},{"$f":"IF(Summary_Products!S34=\"\",\"\",Summary_Products!S34)","v":""},{"$f":"IF(Summary_Products!T34=\"\",\"\",Summary_Products!T34)","v":""},{"$f":"IF(Summary_Products!U34=\"\",\"\",Summary_Products!U34)","v":""},{"$f":"IF(Summary_Products!V34=\"\",\"\",Summary_Products!V34)","v":""},{"$f":"IF(Summary_Products!W34=\"\",\"\",Summary_Products!W34)","v":""},{"$f":"IF(Summary_Products!X34=\"\",\"\",Summary_Products!X34)","v":""},{"$f":"IF(Summary_Products!Y34=\"\",\"\",Summary_Products!Y34)","v":""},{"$f":"IF(Summary_Products!Z34=\"\",\"\",Summary_Products!Z34)","v":""},{"$f":"IF(Summary_Products!AA34=\"\",\"\",Summary_Products!AA34)","v":""},{"$f":"IF(Summary_Products!AB34=\"\",\"\",Summary_Products!AB34)","v":""},{"$f":"IF(Summary_Products!AC34=\"\",\"\",Summary_Products!AC34)","v":""},{"$f":"IF(Summary_Products!AD34=\"\",\"\",Summary_Products!AD34)","v":""},{"$f":"IF(Summary_Products!AE34=\"\",\"\",Summary_Products!AE34)","v":""},{"$f":"IF(Summary_Products!AF34=\"\",\"\",Summary_Products!AF34)","v":""},{"$f":"IF(Summary_Products!AG34=\"\",\"\",Summary_Products!AG34)","v":""},{"$f":"IF(Summary_Products!AH34=\"\",\"\",Summary_Products!AH34)","v":""},{"$f":"IF(Summary_Products!AI34=\"\",\"\",Summary_Products!AI34)","v":""},{"$f":"IF(Summary_Products!AJ34=\"\",\"\",Summary_Products!AJ34)","v":""},{"$f":"IF(Summary_Products!AK34=\"\",\"\",Summary_Products!AK34)","v":""},{"$f":"IF(Summary_Products!AL34=\"\",\"\",INDEX(Translations!$C:$C,MATCH(Summary_Products!AL34,Translations!$B:$B,0)))","v":""},{"$f":"IF(Summary_Products!AM34=\"\",\"\",Summary_Products!AM34)","v":""},{"$f":"IF(Summary_Products!AN34=\"\",\"\",Summary_Products!AN34)","v":""},{"$f":"IF(Summary_Products!AO34=\"\",\"\",Summary_Products!AO34)","v":""},{"$f":"IF(Summary_Products!AP34=\"\",\"\",Summary_Products!AP34)","v":""},{"$f":"IF(Summary_Products!AR34=\"\",\"\",Summary_Products!AR34)","v":""},{"$f":"IF(Summary_Products!AS34=\"\",\"\",Summary_Products!AS34)","v":""},{"$f":"IF(Summary_Products!AT34=\"\",\"\",INDEX(Translations!$C:$C,MATCH(Summary_Products!AT34,Translations!$B:$B,0)))","v":""},{"$f":"IF(Summary_Products!AU34=\"\",\"\",Summary_Products!AU34)","v":""},{"$f":"IF(Summary_Products!AV34=\"\",\"\",Summary_Products!AV34)","v":""},{"$f":"IF(Summary_Products!AW34=\"\",\"\",Summary_Products!AW34)","v":""},{"$f":"IF(Summary_Products!AX34=\"\",\"\",Summary_Products!AX34)","v":""},{"$f":"IF(Summary_Products!AY34=\"\",\"\",Summary_Products!AY34)","v":""},{"$f":"IF(Summary_Products!AZ34=\"\",\"\",Summary_Products!AZ34)","v":""},{"$f":"IF(Summary_Products!BA34=\"\",\"\",Summary_Products!BA34)","v":""}]
[null,null,26,{"$f":"IF(Summary_Products!D35=\"\",\"\",Summary_Products!D35)","v":""},{"$f":"IF(Summary_Products!E35=\"\",\"\",INDEX(Translations!$C:$C,MATCH(Summary_Products!E35,Translations!$B:$B,0)))","v":""},{"$f":"IF(Summary_Products!F35=\"\",\"\",Summary_Products!F35)","v":""},{"$f":"IF(F51=\"\",\"\",INDEX(Parameters_CNCodes!$H$4:$H$752,MATCH(F51,CNCodes_ListKey,0)))","v":""},{"$f":"IF(Summary_Products!H35=\"\",\"\",Summary_Products!H35)","v":""},{"$f":"IF(Summary_Products!I35=\"\",\"\",Summary_Products!I35)","v":""},{"$f":"IF(Summary_Products!J35=\"\",\"\",Summary_Products!J35)","v":""},{"$f":"IF(Summary_Products!K35=\"\",\"\",Summary_Products!K35)","v":""},{"$f":"IF(Summary_Products!L35=\"\",\"\",Summary_Products!L35)","v":""},{"$f":"IF(Summary_Products!M35=\"\",\"\",Summary_Products!M35)","v":""},{"$f":"IF(Summary_Products!N35=\"\",\"\",Summary_Products!N35)","v":""},{"$f":"IF(Summary_Products!O35=\"\",\"\",Summary_Products!O35)","v":""},{"$f":"IF(Summary_Products!P35=\"\",\"\",INDEX(Translations!$C:$C,MATCH(Summary_Products!P35,Translations!$B:$B,0)))","v":""},{"$f":"IF(Summary_Products!Q35=\"\",\"\",Summary_Products!Q35)","v":""},{"$f":"IF(Summary_Products!R35=\"\",\"\",Summary_Products!R35)","v":""},{"$f":"IF(Summary_Products!S35=\"\",\"\",Summary_Products!S35)","v":""},{"$f":"IF(Summary_Products!T35=\"\",\"\",Summary_Products!T35)","v":""},{"$f":"IF(Summary_Products!U35=\"\",\"\",Summary_Products!U35)","v":""},{"$f":"IF(Summary_Products!V35=\"\",\"\",Summary_Products!V35)","v":""},{"$f":"IF(Summary_Products!W35=\"\",\"\",Summary_Products!W35)","v":""},{"$f":"IF(Summary_Products!X35=\"\",\"\",Summary_Products!X35)","v":""},{"$f":"IF(Summary_Products!Y35=\"\",\"\",Summary_Products!Y35)","v":""},{"$f":"IF(Summary_Products!Z35=\"\",\"\",Summary_Products!Z35)","v":""},{"$f":"IF(Summary_Products!AA35=\"\",\"\",Summary_Products!AA35)","v":""},{"$f":"IF(Summary_Products!AB35=\"\",\"\",Summary_Products!AB35)","v":""},{"$f":"IF(Summary_Products!AC35=\"\",\"\",Summary_Products!AC35)","v":""},{"$f":"IF(Summary_Products!AD35=\"\",\"\",Summary_Products!AD35)","v":""},{"$f":"IF(Summary_Products!AE35=\"\",\"\",Summary_Products!AE35)","v":""},{"$f":"IF(Summary_Products!AF35=\"\",\"\",Summary_Products!AF35)","v":""},{"$f":"IF(Summary_Products!AG35=\"\",\"\",Summary_Products!AG35)","v":""},{"$f":"IF(Summary_Products!AH35=\"\",\"\",Summary_Products!AH35)","v":""},{"$f":"IF(Summary_Products!AI35=\"\",\"\",Summary_Products!AI35)","v":""},{"$f":"IF(Summary_Products!AJ35=\"\",\"\",Summary_Products!AJ35)","v":""},{"$f":"IF(Summary_Products!AK35=\"\",\"\",Summary_Products!AK35)","v":""},{"$f":"IF(Summary_Products!AL35=\"\",\"\",INDEX(Translations!$C:$C,MATCH(Summary_Products!AL35,Translations!$B:$B,0)))","v":""},{"$f":"IF(Summary_Products!AM35=\"\",\"\",Summary_Products!AM35)","v":""},{"$f":"IF(Summary_Products!AN35=\"\",\"\",Summary_Products!AN35)","v":""},{"$f":"IF(Summary_Products!AO35=\"\",\"\",Summary_Products!AO35)","v":""},{"$f":"IF(Summary_Products!AP35=\"\",\"\",Summary_Products!AP35)","v":""},{"$f":"IF(Summary_Products!AR35=\"\",\"\",Summary_Products!AR35)","v":""},{"$f":"IF(Summary_Products!AS35=\"\",\"\",Summary_Products!AS35)","v":""},{"$f":"IF(Summary_Products!AT35=\"\",\"\",INDEX(Translations!$C:$C,MATCH(Summary_Products!AT35,Translations!$B:$B,0)))","v":""},{"$f":"IF(Summary_Products!AU35=\"\",\"\",Summary_Products!AU35)","v":""},{"$f":"IF(Summary_Products!AV35=\"\",\"\",Summary_Products!AV35)","v":""},{"$f":"IF(Summary_Products!AW35=\"\",\"\",Summary_Products!AW35)","v":""},{"$f":"IF(Summary_Products!AX35=\"\",\"\",Summary_Products!AX35)","v":""},{"$f":"IF(Summary_Products!AY35=\"\",\"\",Summary_Products!AY35)","v":""},{"$f":"IF(Summary_Products!AZ35=\"\",\"\",Summary_Products!AZ35)","v":""},{"$f":"IF(Summary_Products!BA35=\"\",\"\",Summary_Products!BA35)","v":""}]
[null,null,27,{"$f":"IF(Summary_Products!D36=\"\",\"\",Summary_Products!D36)","v":""},{"$f":"IF(Summary_Products!E36=\"\",\"\",INDEX(Translations!$C:$C,MATCH(Summary_Products!E36,Translations!$B:$B,0)))","v":""},{"$f":"IF(Summary_Products!F36=\"\",\"\",Summary_Products!F36)","v":""},{"$f":"IF(F52=\"\",\"\",INDEX(Parameters_CNCodes!$H$4:$H$752,MATCH(F52,CNCodes_ListKey,0)))","v":""},{"$f":"IF(Summary_Products!H36=\"\",\"\",Summary_Products!H36)","v":""},{"$f":"IF(Summary_Products!I36=\"\",\"\",Summary_Products!I36)","v":""},{"$f":"IF(Summary_Products!J36=\"\",\"\",Summary_Products!J36)","v":""},{"$f":"IF(Summary_Products!K36=\"\",\"\",Summary_Products!K36)","v":""},{"$f":"IF(Summary_Products!L36=\"\",\"\",Summary_Products!L36)","v":""},{"$f":"IF(Summary_Products!M36=\"\",\"\",Summary_Products!M36)","v":""},{"$f":"IF(Summary_Products!N36=\"\",\"\",Summary_Products!N36)","v":""},{"$f":"IF(Summary_Products!O36=\"\",\"\",Summary_Products!O36)","v":""},{"$f":"IF(Summary_Products!P36=\"\",\"\",INDEX(Translations!$C:$C,MATCH(Summary_Products!P36,Translations!$B:$B,0)))","v":""},{"$f":"IF(Summary_Products!Q36=\"\",\"\",Summary_Products!Q36)","v":""},{"$f":"IF(Summary_Products!R36=\"\",\"\",Summary_Products!R36)","v":""},{"$f":"IF(Summary_Products!S36=\"\",\"\",Summary_Products!S36)","v":""},{"$f":"IF(Summary_Products!T36=\"\",\"\",Summary_Products!T36)","v":""},{"$f":"IF(Summary_Products!U36=\"\",\"\",Summary_Products!U36)","v":""},{"$f":"IF(Summary_Products!V36=\"\",\"\",Summary_Products!V36)","v":""},{"$f":"IF(Summary_Products!W36=\"\",\"\",Summary_Products!W36)","v":""},{"$f":"IF(Summary_Products!X36=\"\",\"\",Summary_Products!X36)","v":""},{"$f":"IF(Summary_Products!Y36=\"\",\"\",Summary_Products!Y36)","v":""},{"$f":"IF(Summary_Products!Z36=\"\",\"\",Summary_Products!Z36)","v":""},{"$f":"IF(Summary_Products!AA36=\"\",\"\",Summary_Products!AA36)","v":""},{"$f":"IF(Summary_Products!AB36=\"\",\"\",Summary_Products!AB36)","v":""},{"$f":"IF(Summary_Products!AC36=\"\",\"\",Summary_Products!AC36)","v":""},{"$f":"IF(Summary_Products!AD36=\"\",\"\",Summary_Products!AD36)","v":""},{"$f":"IF(Summary_Products!AE36=\"\",\"\",Summary_Products!AE36)","v":""},{"$f":"IF(Summary_Products!AF36=\"\",\"\",Summary_Products!AF36)","v":""},{"$f":"IF(Summary_Products!AG36=\"\",\"\",Summary_Products!AG36)","v":""},{"$f":"IF(Summary_Products!AH36=\"\",\"\",Summary_Products!AH36)","v":""},{"$f":"IF(Summary_Products!AI36=\"\",\"\",Summary_Products!AI36)","v":""},{"$f":"IF(Summary_Products!AJ36=\"\",\"\",Summary_Products!AJ36)","v":""},{"$f":"IF(Summary_Products!AK36=\"\",\"\",Summary_Products!AK36)","v":""},{"$f":"IF(Summary_Products!AL36=\"\",\"\",INDEX(Translations!$C:$C,MATCH(Summary_Products!AL36,Translations!$B:$B,0)))","v":""},{"$f":"IF(Summary_Products!AM36=\"\",\"\",Summary_Products!AM36)","v":""},{"$f":"IF(Summary_Products!AN36=\"\",\"\",Summary_Products!AN36)","v":""},{"$f":"IF(Summary_Products!AO36=\"\",\"\",Summary_Products!AO36)","v":""},{"$f":"IF(Summary_Products!AP36=\"\",\"\",Summary_Products!AP36)","v":""},{"$f":"IF(Summary_Products!AR36=\"\",\"\",Summary_Products!AR36)","v":""},{"$f":"IF(Summary_Products!AS36=\"\",\"\",Summary_Products!AS36)","v":""},{"$f":"IF(Summary_Products!AT36=\"\",\"\",INDEX(Translations!$C:$C,MATCH(Summary_Products!AT36,Translations!$B:$B,0)))","v":""},{"$f":"IF(Summary_Products!AU36=\"\",\"\",Summary_Products!AU36)","v":""},{"$f":"IF(Summary_Products!AV36=\"\",\"\",Summary_Products!AV36)","v":""},{"$f":"IF(Summary_Products!AW36=\"\",\"\",Summary_Products!AW36)","v":""},{"$f":"IF(Summary_Products!AX36=\"\",\"\",Summary_Products!AX36)","v":""},{"$f":"IF(Summary_Products!AY36=\"\",\"\",Summary_Products!AY36)","v":""},{"$f":"IF(Summary_Products!AZ36=\"\",\"\",Summary_Products!AZ36)","v":""},{"$f":"IF(Summary_Products!BA36=\"\",\"\",Summary_Products!BA36)","v":""}]
[null,null,28,{"$f":"IF(Summary_Products!D37=\"\",\"\",Summary_Products!D37)","v":""},{"$f":"IF(Summary_Products!E37=\"\",\"\",INDEX(Translations!$C:$C,MATCH(Summary_Products!E37,Translations!$B:$B,0)))","v":""},{"$f":"IF(Summary_Products!F37=\"\",\"\",Summary_Products!F37)","v":""},{"$f":"IF(F53=\"\",\"\",INDEX(Parameters_CNCodes!$H$4:$H$752,MATCH(F53,CNCodes_ListKey,0)))","v":""},{"$f":"IF(Summary_Products!H37=\"\",\"\",Summary_Products!H37)","v":""},{"$f":"IF(Summary_Products!I37=\"\",\"\",Summary_Products!I37)","v":""},{"$f":"IF(Summary_Products!J37=\"\",\"\",Summary_Products!J37)","v":""},{"$f":"IF(Summary_Products!K37=\"\",\"\",Summary_Products!K37)","v":""},{"$f":"IF(Summary_Products!L37=\"\",\"\",Summary_Products!L37)","v":""},{"$f":"IF(Summary_Products!M37=\"\",\"\",Summary_Products!M37)","v":""},{"$f":"IF(Summary_Products!N37=\"\",\"\",Summary_Products!N37)","v":""},{"$f":"IF(Summary_Products!O37=\"\",\"\",Summary_Products!O37)","v":""},{"$f":"IF(Summary_Products!P37=\"\",\"\",INDEX(Translations!$C:$C,MATCH(Summary_Products!P37,Translations!$B:$B,0)))","v":""},{"$f":"IF(Summary_Products!Q37=\"\",\"\",Summary_Products!Q37)","v":""},{"$f":"IF(Summary_Products!R37=\"\",\"\",Summary_Products!R37)","v":""},{"$f":"IF(Summary_Products!S37=\"\",\"\",Summary_Products!S37)","v":""},{"$f":"IF(Summary_Products!T37=\"\",\"\",Summary_Products!T37)","v":""},{"$f":"IF(Summary_Products!U37=\"\",\"\",Summary_Products!U37)","v":""},{"$f":"IF(Summary_Products!V37=\"\",\"\",Summary_Products!V37)","v":""},{"$f":"IF(Summary_Products!W37=\"\",\"\",Summary_Products!W37)","v":""},{"$f":"IF(Summary_Products!X37=\"\",\"\",Summary_Products!X37)","v":""},{"$f":"IF(Summary_Products!Y37=\"\",\"\",Summary_Products!Y37)","v":""},{"$f":"IF(Summary_Products!Z37=\"\",\"\",Summary_Products!Z37)","v":""},{"$f":"IF(Summary_Products!AA37=\"\",\"\",Summary_Products!AA37)","v":""},{"$f":"IF(Summary_Products!AB37=\"\",\"\",Summary_Products!AB37)","v":""},{"$f":"IF(Summary_Products!AC37=\"\",\"\",Summary_Products!AC37)","v":""},{"$f":"IF(Summary_Products!AD37=\"\",\"\",Summary_Products!AD37)","v":""},{"$f":"IF(Summary_Products!AE37=\"\",\"\",Summary_Products!AE37)","v":""},{"$f":"IF(Summary_Products!AF37=\"\",\"\",Summary_Products!AF37)","v":""},{"$f":"IF(Summary_Products!AG37=\"\",\"\",Summary_Products!AG37)","v":""},{"$f":"IF(Summary_Products!AH37=\"\",\"\",Summary_Products!AH37)","v":""},{"$f":"IF(Summary_Products!AI37=\"\",\"\",Summary_Products!AI37)","v":""},{"$f":"IF(Summary_Products!AJ37=\"\",\"\",Summary_Products!AJ37)","v":""},{"$f":"IF(Summary_Products!AK37=\"\",\"\",Summary_Products!AK37)","v":""},{"$f":"IF(Summary_Products!AL37=\"\",\"\",INDEX(Translations!$C:$C,MATCH(Summary_Products!AL37,Translations!$B:$B,0)))","v":""},{"$f":"IF(Summary_Products!AM37=\"\",\"\",Summary_Products!AM37)","v":""},{"$f":"IF(Summary_Products!AN37=\"\",\"\",Summary_Products!AN37)","v":""},{"$f":"IF(Summary_Products!AO37=\"\",\"\",Summary_Products!AO37)","v":""},{"$f":"IF(Summary_Products!AP37=\"\",\"\",Summary_Products!AP37)","v":""},{"$f":"IF(Summary_Products!AR37=\"\",\"\",Summary_Products!AR37)","v":""},{"$f":"IF(Summary_Products!AS37=\"\",\"\",Summary_Products!AS37)","v":""},{"$f":"IF(Summary_Products!AT37=\"\",\"\",INDEX(Translations!$C:$C,MATCH(Summary_Products!AT37,Translations!$B:$B,0)))","v":""},{"$f":"IF(Summary_Products!AU37=\"\",\"\",Summary_Products!AU37)","v":""},{"$f":"IF(Summary_Products!AV37=\"\",\"\",Summary_Products!AV37)","v":""},{"$f":"IF(Summary_Products!AW37=\"\",\"\",Summary_Products!AW37)","v":""},{"$f":"IF(Summary_Products!AX37=\"\",\"\",Summary_Products!AX37)","v":""},{"$f":"IF(Summary_Products!AY37=\"\",\"\",Summary_Products!AY37)","v":""},{"$f":"IF(Summary_Products!AZ37=\"\",\"\",Summary_Products!AZ37)","v":""},{"$f":"IF(Summary_Products!BA37=\"\",\"\",Summary_Products!BA37)","v":""}]
[null,null,29,{"$f":"IF(Summary_Products!D38=\"\",\"\",Summary_Products!D38)","v":""},{"$f":"IF(Summary_Products!E38=\"\",\"\",INDEX(Translations!$C:$C,MATCH(Summary_Products!E38,Translations!$B:$B,0)))","v":""},{"$f":"IF(Summary_Products!F38=\"\",\"\",Summary_Products!F38)","v":""},{"$f":"IF(F54=\"\",\"\",INDEX(Parameters_CNCodes!$H$4:$H$752,MATCH(F54,CNCodes_ListKey,0)))","v":""},{"$f":"IF(Summary_Products!H38=\"\",\"\",Summary_Products!H38)","v":""},{"$f":"IF(Summary_Products!I38=\"\",\"\",Summary_Products!I38)","v":""},{"$f":"IF(Summary_Products!J38=\"\",\"\",Summary_Products!J38)","v":""},{"$f":"IF(Summary_Products!K38=\"\",\"\",Summary_Products!K38)","v":""},{"$f":"IF(Summary_Products!L38=\"\",\"\",Summary_Products!L38)","v":""},{"$f":"IF(Summary_Products!M38=\"\",\"\",Summary_Products!M38)","v":""},{"$f":"IF(Summary_Products!N38=\"\",\"\",Summary_Products!N38)","v":""},{"$f":"IF(Summary_Products!O38=\"\",\"\",Summary_Products!O38)","v":""},{"$f":"IF(Summary_Products!P38=\"\",\"\",INDEX(Translations!$C:$C,MATCH(Summary_Products!P38,Translations!$B:$B,0)))","v":""},{"$f":"IF(Summary_Products!Q38=\"\",\"\",Summary_Products!Q38)","v":""},{"$f":"IF(Summary_Products!R38=\"\",\"\",Summary_Products!R38)","v":""},{"$f":"IF(Summary_Products!S38=\"\",\"\",Summary_Products!S38)","v":""},{"$f":"IF(Summary_Products!T38=\"\",\"\",Summary_Products!T38)","v":""},{"$f":"IF(Summary_Products!U38=\"\",\"\",Summary_Products!U38)","v":""},{"$f":"IF(Summary_Products!V38=\"\",\"\",Summary_Products!V38)","v":""},{"$f":"IF(Summary_Products!W38=\"\",\"\",Summary_Products!W38)","v":""},{"$f":"IF(Summary_Products!X38=\"\",\"\",Summary_Products!X38)","v":""},{"$f":"IF(Summary_Products!Y38=\"\",\"\",Summary_Products!Y38)","v":""},{"$f":"IF(Summary_Products!Z38=\"\",\"\",Summary_Products!Z38)","v":""},{"$f":"IF(Summary_Products!AA38=\"\",\"\",Summary_Products!AA38)","v":""},{"$f":"IF(Summary_Products!AB38=\"\",\"\",Summary_Products!AB38)","v":""},{"$f":"IF(Summary_Products!AC38=\"\",\"\",Summary_Products!AC38)","v":""},{"$f":"IF(Summary_Products!AD38=\"\",\"\",Summary_Products!AD38)","v":""},{"$f":"IF(Summary_Products!AE38=\"\",\"\",Summary_Products!AE38)","v":""},{"$f":"IF(Summary_Products!AF38=\"\",\"\",Summary_Products!AF38)","v":""},{"$f":"IF(Summary_Products!AG38=\"\",\"\",Summary_Products!AG38)","v":""},{"$f":"IF(Summary_Products!AH38=\"\",\"\",Summary_Products!AH38)","v":""},{"$f":"IF(Summary_Products!AI38=\"\",\"\",Summary_Products!AI38)","v":""},{"$f":"IF(Summary_Products!AJ38=\"\",\"\",Summary_Products!AJ38)","v":""},{"$f":"IF(Summary_Products!AK38=\"\",\"\",Summary_Products!AK38)","v":""},{"$f":"IF(Summary_Products!AL38=\"\",\"\",INDEX(Translations!$C:$C,MATCH(Summary_Products!AL38,Translations!$B:$B,0)))","v":""},{"$f":"IF(Summary_Products!AM38=\"\",\"\",Summary_Products!AM38)","v":""},{"$f":"IF(Summary_Products!AN38=\"\",\"\",Summary_Products!AN38)","v":""},{"$f":"IF(Summary_Products!AO38=\"\",\"\",Summary_Products!AO38)","v":""},{"$f":"IF(Summary_Products!AP38=\"\",\"\",Summary_Products!AP38)","v":""},{"$f":"IF(Summary_Products!AR38=\"\",\"\",Summary_Products!AR38)","v":""},{"$f":"IF(Summary_Products!AS38=\"\",\"\",Summary_Products!AS38)","v":""},{"$f":"IF(Summary_Products!AT38=\"\",\"\",INDEX(Translations!$C:$C,MATCH(Summary_Products!AT38,Translations!$B:$B,0)))","v":""},{"$f":"IF(Summary_Products!AU38=\"\",\"\",Summary_Products!AU38)","v":""},{"$f":"IF(Summary_Products!AV38=\"\",\"\",Summary_Products!AV38)","v":""},{"$f":"IF(Summary_Products!AW38=\"\",\"\",Summary_Products!AW38)","v":""},{"$f":"IF(Summary_Products!AX38=\"\",\"\",Summary_Products!AX38)","v":""},{"$f":"IF(Summary_Products!AY38=\"\",\"\",Summary_Products!AY38)","v":""},{"$f":"IF(Summary_Products!AZ38=\"\",\"\",Summary_Products!AZ38)","v":""},{"$f":"IF(Summary_Products!BA38=\"\",\"\",Summary_Products!BA38)","v":""}]
[null,null,30,{"$f":"IF(Summary_Products!D39=\"\",\"\",Summary_Products!D39)","v":""},{"$f":"IF(Summary_Products!E39=\"\",\"\",INDEX(Translations!$C:$C,MATCH(Summary_Products!E39,Translations!$B:$B,0)))","v":""},{"$f":"IF(Summary_Products!F39=\"\",\"\",Summary_Products!F39)","v":""},{"$f":"IF(F55=\"\",\"\",INDEX(Parameters_CNCodes!$H$4:$H$752,MATCH(F55,CNCodes_ListKey,0)))","v":""},{"$f":"IF(Summary_Products!H39=\"\",\"\",Summary_Products!H39)","v":""},{"$f":"IF(Summary_Products!I39=\"\",\"\",Summary_Products!I39)","v":""},{"$f":"IF(Summary_Products!J39=\"\",\"\",Summary_Products!J39)","v":""},{"$f":"IF(Summary_Products!K39=\"\",\"\",Summary_Products!K39)","v":""},{"$f":"IF(Summary_Products!L39=\"\",\"\",Summary_Products!L39)","v":""},{"$f":"IF(Summary_Products!M39=\"\",\"\",Summary_Products!M39)","v":""},{"$f":"IF(Summary_Products!N39=\"\",\"\",Summary_Products!N39)","v":""},{"$f":"IF(Summary_Products!O39=\"\",\"\",Summary_Products!O39)","v":""},{"$f":"IF(Summary_Products!P39=\"\",\"\",INDEX(Translations!$C:$C,MATCH(Summary_Products!P39,Translations!$B:$B,0)))","v":""},{"$f":"IF(Summary_Products!Q39=\"\",\"\",Summary_Products!Q39)","v":""},{"$f":"IF(Summary_Products!R39=\"\",\"\",Summary_Products!R39)","v":""},{"$f":"IF(Summary_Products!S39=\"\",\"\",Summary_Products!S39)","v":""},{"$f":"IF(Summary_Products!T39=\"\",\"\",Summary_Products!T39)","v":""},{"$f":"IF(Summary_Products!U39=\"\",\"\",Summary_Products!U39)","v":""},{"$f":"IF(Summary_Products!V39=\"\",\"\",Summary_Products!V39)","v":""},{"$f":"IF(Summary_Products!W39=\"\",\"\",Summary_Products!W39)","v":""},{"$f":"IF(Summary_Products!X39=\"\",\"\",Summary_Products!X39)","v":""},{"$f":"IF(Summary_Products!Y39=\"\",\"\",Summary_Products!Y39)","v":""},{"$f":"IF(Summary_Products!Z39=\"\",\"\",Summary_Products!Z39)","v":""},{"$f":"IF(Summary_Products!AA39=\"\",\"\",Summary_Products!AA39)","v":""},{"$f":"IF(Summary_Products!AB39=\"\",\"\",Summary_Products!AB39)","v":""},{"$f":"IF(Summary_Products!AC39=\"\",\"\",Summary_Products!AC39)","v":""},{"$f":"IF(Summary_Products!AD39=\"\",\"\",Summary_Products!AD39)","v":""},{"$f":"IF(Summary_Products!AE39=\"\",\"\",Summary_Products!AE39)","v":""},{"$f":"IF(Summary_Products!AF39=\"\",\"\",Summary_Products!AF39)","v":""},{"$f":"IF(Summary_Products!AG39=\"\",\"\",Summary_Products!AG39)","v":""},{"$f":"IF(Summary_Products!AH39=\"\",\"\",Summary_Products!AH39)","v":""},{"$f":"IF(Summary_Products!AI39=\"\",\"\",Summary_Products!AI39)","v":""},{"$f":"IF(Summary_Products!AJ39=\"\",\"\",Summary_Products!AJ39)","v":""},{"$f":"IF(Summary_Products!AK39=\"\",\"\",Summary_Products!AK39)","v":""},{"$f":"IF(Summary_Products!AL39=\"\",\"\",INDEX(Translations!$C:$C,MATCH(Summary_Products!AL39,Translations!$B:$B,0)))","v":""},{"$f":"IF(Summary_Products!AM39=\"\",\"\",Summary_Products!AM39)","v":""},{"$f":"IF(Summary_Products!AN39=\"\",\"\",Summary_Products!AN39)","v":""},{"$f":"IF(Summary_Products!AO39=\"\",\"\",Summary_Products!AO39)","v":""},{"$f":"IF(Summary_Products!AP39=\"\",\"\",Summary_Products!AP39)","v":""},{"$f":"IF(Summary_Products!AR39=\"\",\"\",Summary_Products!AR39)","v":""},{"$f":"IF(Summary_Products!AS39=\"\",\"\",Summary_Products!AS39)","v":""},{"$f":"IF(Summary_Products!AT39=\"\",\"\",INDEX(Translations!$C:$C,MATCH(Summary_Products!AT39,Translations!$B:$B,0)))","v":""},{"$f":"IF(Summary_Products!AU39=\"\",\"\",Summary_Products!AU39)","v":""},{"$f":"IF(Summary_Products!AV39=\"\",\"\",Summary_Products!AV39)","v":""},{"$f":"IF(Summary_Products!AW39=\"\",\"\",Summary_Products!AW39)","v":""},{"$f":"IF(Summary_Products!AX39=\"\",\"\",Summary_Products!AX39)","v":""},{"$f":"IF(Summary_Products!AY39=\"\",\"\",Summary_Products!AY39)","v":""},{"$f":"IF(Summary_Products!AZ39=\"\",\"\",Summary_Products!AZ39)","v":""},{"$f":"IF(Summary_Products!BA39=\"\",\"\",Summary_Products!BA39)","v":""}]
[null,null,31,{"$f":"IF(Summary_Products!D40=\"\",\"\",Summary_Products!D40)","v":""},{"$f":"IF(Summary_Products!E40=\"\",\"\",INDEX(Translations!$C:$C,MATCH(Summary_Products!E40,Translations!$B:$B,0)))","v":""},{"$f":"IF(Summary_Products!F40=\"\",\"\",Summary_Products!F40)","v":""},{"$f":"IF(F56=\"\",\"\",INDEX(Parameters_CNCodes!$H$4:$H$752,MATCH(F56,CNCodes_ListKey,0)))","v":""},{"$f":"IF(Summary_Products!H40=\"\",\"\",Summary_Products!H40)","v":""},{"$f":"IF(Summary_Products!I40=\"\",\"\",Summary_Products!I40)","v":""},{"$f":"IF(Summary_Products!J40=\"\",\"\",Summary_Products!J40)","v":""},{"$f":"IF(Summary_Products!K40=\"\",\"\",Summary_Products!K40)","v":""},{"$f":"IF(Summary_Products!L40=\"\",\"\",Summary_Products!L40)","v":""},{"$f":"IF(Summary_Products!M40=\"\",\"\",Summary_Products!M40)","v":""},{"$f":"IF(Summary_Products!N40=\"\",\"\",Summary_Products!N40)","v":""},{"$f":"IF(Summary_Products!O40=\"\",\"\",Summary_Products!O40)","v":""},{"$f":"IF(Summary_Products!P40=\"\",\"\",INDEX(Translations!$C:$C,MATCH(Summary_Products!P40,Translations!$B:$B,0)))","v":""},{"$f":"IF(Summary_Products!Q40=\"\",\"\",Summary_Products!Q40)","v":""},{"$f":"IF(Summary_Products!R40=\"\",\"\",Summary_Products!R40)","v":""},{"$f":"IF(Summary_Products!S40=\"\",\"\",Summary_Products!S40)","v":""},{"$f":"IF(Summary_Products!T40=\"\",\"\",Summary_Products!T40)","v":""},{"$f":"IF(Summary_Products!U40=\"\",\"\",Summary_Products!U40)","v":""},{"$f":"IF(Summary_Products!V40=\"\",\"\",Summary_Products!V40)","v":""},{"$f":"IF(Summary_Products!W40=\"\",\"\",Summary_Products!W40)","v":""},{"$f":"IF(Summary_Products!X40=\"\",\"\",Summary_Products!X40)","v":""},{"$f":"IF(Summary_Products!Y40=\"\",\"\",Summary_Products!Y40)","v":""},{"$f":"IF(Summary_Products!Z40=\"\",\"\",Summary_Products!Z40)","v":""},{"$f":"IF(Summary_Products!AA40=\"\",\"\",Summary_Products!AA40)","v":""},{"$f":"IF(Summary_Products!AB40=\"\",\"\",Summary_Products!AB40)","v":""},{"$f":"IF(Summary_Products!AC40=\"\",\"\",Summary_Products!AC40)","v":""},{"$f":"IF(Summary_Products!AD40=\"\",\"\",Summary_Products!AD40)","v":""},{"$f":"IF(Summary_Products!AE40=\"\",\"\",Summary_Products!AE40)","v":""},{"$f":"IF(Summary_Products!AF40=\"\",\"\",Summary_Products!AF40)","v":""},{"$f":"IF(Summary_Products!AG40=\"\",\"\",Summary_Products!AG40)","v":""},{"$f":"IF(Summary_Products!AH40=\"\",\"\",Summary_Products!AH40)","v":""},{"$f":"IF(Summary_Products!AI40=\"\",\"\",Summary_Products!AI40)","v":""},{"$f":"IF(Summary_Products!AJ40=\"\",\"\",Summary_Products!AJ40)","v":""},{"$f":"IF(Summary_Products!AK40=\"\",\"\",Summary_Products!AK40)","v":""},{"$f":"IF(Summary_Products!AL40=\"\",\"\",INDEX(Translations!$C:$C,MATCH(Summary_Products!AL40,Translations!$B:$B,0)))","v":""},{"$f":"IF(Summary_Products!AM40=\"\",\"\",Summary_Products!AM40)","v":""},{"$f":"IF(Summary_Products!AN40=\"\",\"\",Summary_Products!AN40)","v":""},{"$f":"IF(Summary_Products!AO40=\"\",\"\",Summary_Products!AO40)","v":""},{"$f":"IF(Summary_Products!AP40=\"\",\"\",Summary_Products!AP40)","v":""},{"$f":"IF(Summary_Products!AR40=\"\",\"\",Summary_Products!AR40)","v":""},{"$f":"IF(Summary_Products!AS40=\"\",\"\",Summary_Products!AS40)","v":""},{"$f":"IF(Summary_Products!AT40=\"\",\"\",INDEX(Translations!$C:$C,MATCH(Summary_Products!AT40,Translations!$B:$B,0)))","v":""},{"$f":"IF(Summary_Products!AU40=\"\",\"\",Summary_Products!AU40)","v":""},{"$f":"IF(Summary_Products!AV40=\"\",\"\",Summary_Products!AV40)","v":""},{"$f":"IF(Summary_Products!AW40=\"\",\"\",Summary_Products!AW40)","v":""},{"$f":"IF(Summary_Products!AX40=\"\",\"\",Summary_Products!AX40)","v":""},{"$f":"IF(Summary_Products!AY40=\"\",\"\",Summary_Products!AY40)","v":""},{"$f":"IF(Summary_Products!AZ40=\"\",\"\",Summary_Products!AZ40)","v":""},{"$f":"IF(Summary_Products!BA40=\"\",\"\",Summary_Products!BA40)","v":""}]
[null,null,32,{"$f":"IF(Summary_Products!D41=\"\",\"\",Summary_Products!D41)","v":""},{"$f":"IF(Summary_Products!E41=\"\",\"\",INDEX(Translations!$C:$C,MATCH(Summary_Products!E41,Translations!$B:$B,0)))","v":""},{"$f":"IF(Summary_Products!F41=\"\",\"\",Summary_Products!F41)","v":""},{"$f":"IF(F57=\"\",\"\",INDEX(Parameters_CNCodes!$H$4:$H$752,MATCH(F57,CNCodes_ListKey,0)))","v":""},{"$f":"IF(Summary_Products!H41=\"\",\"\",Summary_Products!H41)","v":""},{"$f":"IF(Summary_Products!I41=\"\",\"\",Summary_Products!I41)","v":""},{"$f":"IF(Summary_Products!J41=\"\",\"\",Summary_Products!J41)","v":""},{"$f":"IF(Summary_Products!K41=\"\",\"\",Summary_Products!K41)","v":""},{"$f":"IF(Summary_Products!L41=\"\",\"\",Summary_Products!L41)","v":""},{"$f":"IF(Summary_Products!M41=\"\",\"\",Summary_Products!M41)","v":""},{"$f":"IF(Summary_Products!N41=\"\",\"\",Summary_Products!N41)","v":""},{"$f":"IF(Summary_Products!O41=\"\",\"\",Summary_Products!O41)","v":""},{"$f":"IF(Summary_Products!P41=\"\",\"\",INDEX(Translations!$C:$C,MATCH(Summary_Products!P41,Translations!$B:$B,0)))","v":""},{"$f":"IF(Summary_Products!Q41=\"\",\"\",Summary_Products!Q41)","v":""},{"$f":"IF(Summary_Products!R41=\"\",\"\",Summary_Products!R41)","v":""},{"$f":"IF(Summary_Products!S41=\"\",\"\",Summary_Products!S41)","v":""},{"$f":"IF(Summary_Products!T41=\"\",\"\",Summary_Products!T41)","v":""},{"$f":"IF(Summary_Products!U41=\"\",\"\",Summary_Products!U41)","v":""},{"$f":"IF(Summary_Products!V41=\"\",\"\",Summary_Products!V41)","v":""},{"$f":"IF(Summary_Products!W41=\"\",\"\",Summary_Products!W41)","v":""},{"$f":"IF(Summary_Products!X41=\"\",\"\",Summary_Products!X41)","v":""},{"$f":"IF(Summary_Products!Y41=\"\",\"\",Summary_Products!Y41)","v":""},{"$f":"IF(Summary_Products!Z41=\"\",\"\",Summary_Products!Z41)","v":""},{"$f":"IF(Summary_Products!AA41=\"\",\"\",Summary_Products!AA41)","v":""},{"$f":"IF(Summary_Products!AB41=\"\",\"\",Summary_Products!AB41)","v":""},{"$f":"IF(Summary_Products!AC41=\"\",\"\",Summary_Products!AC41)","v":""},{"$f":"IF(Summary_Products!AD41=\"\",\"\",Summary_Products!AD41)","v":""},{"$f":"IF(Summary_Products!AE41=\"\",\"\",Summary_Products!AE41)","v":""},{"$f":"IF(Summary_Products!AF41=\"\",\"\",Summary_Products!AF41)","v":""},{"$f":"IF(Summary_Products!AG41=\"\",\"\",Summary_Products!AG41)","v":""},{"$f":"IF(Summary_Products!AH41=\"\",\"\",Summary_Products!AH41)","v":""},{"$f":"IF(Summary_Products!AI41=\"\",\"\",Summary_Products!AI41)","v":""},{"$f":"IF(Summary_Products!AJ41=\"\",\"\",Summary_Products!AJ41)","v":""},{"$f":"IF(Summary_Products!AK41=\"\",\"\",Summary_Products!AK41)","v":""},{"$f":"IF(Summary_Products!AL41=\"\",\"\",INDEX(Translations!$C:$C,MATCH(Summary_Products!AL41,Translations!$B:$B,0)))","v":""},{"$f":"IF(Summary_Products!AM41=\"\",\"\",Summary_Products!AM41)","v":""},{"$f":"IF(Summary_Products!AN41=\"\",\"\",Summary_Products!AN41)","v":""},{"$f":"IF(Summary_Products!AO41=\"\",\"\",Summary_Products!AO41)","v":""},{"$f":"IF(Summary_Products!AP41=\"\",\"\",Summary_Products!AP41)","v":""},{"$f":"IF(Summary_Products!AR41=\"\",\"\",Summary_Products!AR41)","v":""},{"$f":"IF(Summary_Products!AS41=\"\",\"\",Summary_Products!AS41)","v":""},{"$f":"IF(Summary_Products!AT41=\"\",\"\",INDEX(Translations!$C:$C,MATCH(Summary_Products!AT41,Translations!$B:$B,0)))","v":""},{"$f":"IF(Summary_Products!AU41=\"\",\"\",Summary_Products!AU41)","v":""},{"$f":"IF(Summary_Products!AV41=\"\",\"\",Summary_Products!AV41)","v":""},{"$f":"IF(Summary_Products!AW41=\"\",\"\",Summary_Products!AW41)","v":""},{"$f":"IF(Summary_Products!AX41=\"\",\"\",Summary_Products!AX41)","v":""},{"$f":"IF(Summary_Products!AY41=\"\",\"\",Summary_Products!AY41)","v":""},{"$f":"IF(Summary_Products!AZ41=\"\",\"\",Summary_Products!AZ41)","v":""},{"$f":"IF(Summary_Products!BA41=\"\",\"\",Summary_Products!BA41)","v":""}]
[null,null,33,{"$f":"IF(Summary_Products!D42=\"\",\"\",Summary_Products!D42)","v":""},{"$f":"IF(Summary_Products!E42=\"\",\"\",INDEX(Translations!$C:$C,MATCH(Summary_Products!E42,Translations!$B:$B,0)))","v":""},{"$f":"IF(Summary_Products!F42=\"\",\"\",Summary_Products!F42)","v":""},{"$f":"IF(F58=\"\",\"\",INDEX(Parameters_CNCodes!$H$4:$H$752,MATCH(F58,CNCodes_ListKey,0)))","v":""},{"$f":"IF(Summary_Products!H42=\"\",\"\",Summary_Products!H42)","v":""},{"$f":"IF(Summary_Products!I42=\"\",\"\",Summary_Products!I42)","v":""},{"$f":"IF(Summary_Products!J42=\"\",\"\",Summary_Products!J42)","v":""},{"$f":"IF(Summary_Products!K42=\"\",\"\",Summary_Products!K42)","v":""},{"$f":"IF(Summary_Products!L42=\"\",\"\",Summary_Products!L42)","v":""},{"$f":"IF(Summary_Products!M42=\"\",\"\",Summary_Products!M42)","v":""},{"$f":"IF(Summary_Products!N42=\"\",\"\",Summary_Products!N42)","v":""},{"$f":"IF(Summary_Products!O42=\"\",\"\",Summary_Products!O42)","v":""},{"$f":"IF(Summary_Products!P42=\"\",\"\",INDEX(Translations!$C:$C,MATCH(Summary_Products!P42,Translations!$B:$B,0)))","v":""},{"$f":"IF(Summary_Products!Q42=\"\",\"\",Summary_Products!Q42)","v":""},{"$f":"IF(Summary_Products!R42=\"\",\"\",Summary_Products!R42)","v":""},{"$f":"IF(Summary_Products!S42=\"\",\"\",Summary_Products!S42)","v":""},{"$f":"IF(Summary_Products!T42=\"\",\"\",Summary_Products!T42)","v":""},{"$f":"IF(Summary_Products!U42=\"\",\"\",Summary_Products!U42)","v":""},{"$f":"IF(Summary_Products!V42=\"\",\"\",Summary_Products!V42)","v":""},{"$f":"IF(Summary_Products!W42=\"\",\"\",Summary_Products!W42)","v":""},{"$f":"IF(Summary_Products!X42=\"\",\"\",Summary_Products!X42)","v":""},{"$f":"IF(Summary_Products!Y42=\"\",\"\",Summary_Products!Y42)","v":""},{"$f":"IF(Summary_Products!Z42=\"\",\"\",Summary_Products!Z42)","v":""},{"$f":"IF(Summary_Products!AA42=\"\",\"\",Summary_Products!AA42)","v":""},{"$f":"IF(Summary_Products!AB42=\"\",\"\",Summary_Products!AB42)","v":""},{"$f":"IF(Summary_Products!AC42=\"\",\"\",Summary_Products!AC42)","v":""},{"$f":"IF(Summary_Products!AD42=\"\",\"\",Summary_Products!AD42)","v":""},{"$f":"IF(Summary_Products!AE42=\"\",\"\",Summary_Products!AE42)","v":""},{"$f":"IF(Summary_Products!AF42=\"\",\"\",Summary_Products!AF42)","v":""},{"$f":"IF(Summary_Products!AG42=\"\",\"\",Summary_Products!AG42)","v":""},{"$f":"IF(Summary_Products!AH42=\"\",\"\",Summary_Products!AH42)","v":""},{"$f":"IF(Summary_Products!AI42=\"\",\"\",Summary_Products!AI42)","v":""},{"$f":"IF(Summary_Products!AJ42=\"\",\"\",Summary_Products!AJ42)","v":""},{"$f":"IF(Summary_Products!AK42=\"\",\"\",Summary_Products!AK42)","v":""},{"$f":"IF(Summary_Products!AL42=\"\",\"\",INDEX(Translations!$C:$C,MATCH(Summary_Products!AL42,Translations!$B:$B,0)))","v":""},{"$f":"IF(Summary_Products!AM42=\"\",\"\",Summary_Products!AM42)","v":""},{"$f":"IF(Summary_Products!AN42=\"\",\"\",Summary_Products!AN42)","v":""},{"$f":"IF(Summary_Products!AO42=\"\",\"\",Summary_Products!AO42)","v":""},{"$f":"IF(Summary_Products!AP42=\"\",\"\",Summary_Products!AP42)","v":""},{"$f":"IF(Summary_Products!AR42=\"\",\"\",Summary_Products!AR42)","v":""},{"$f":"IF(Summary_Products!AS42=\"\",\"\",Summary_Products!AS42)","v":""},{"$f":"IF(Summary_Products!AT42=\"\",\"\",INDEX(Translations!$C:$C,MATCH(Summary_Products!AT42,Translations!$B:$B,0)))","v":""},{"$f":"IF(Summary_Products!AU42=\"\",\"\",Summary_Products!AU42)","v":""},{"$f":"IF(Summary_Products!AV42=\"\",\"\",Summary_Products!AV42)","v":""},{"$f":"IF(Summary_Products!AW42=\"\",\"\",Summary_Products!AW42)","v":""},{"$f":"IF(Summary_Products!AX42=\"\",\"\",Summary_Products!AX42)","v":""},{"$f":"IF(Summary_Products!AY42=\"\",\"\",Summary_Products!AY42)","v":""},{"$f":"IF(Summary_Products!AZ42=\"\",\"\",Summary_Products!AZ42)","v":""},{"$f":"IF(Summary_Products!BA42=\"\",\"\",Summary_Products!BA42)","v":""}]
[null,null,34,{"$f":"IF(Summary_Products!D43=\"\",\"\",Summary_Products!D43)","v":""},{"$f":"IF(Summary_Products!E43=\"\",\"\",INDEX(Translations!$C:$C,MATCH(Summary_Products!E43,Translations!$B:$B,0)))","v":""},{"$f":"IF(Summary_Products!F43=\"\",\"\",Summary_Products!F43)","v":""},{"$f":"IF(F59=\"\",\"\",INDEX(Parameters_CNCodes!$H$4:$H$752,MATCH(F59,CNCodes_ListKey,0)))","v":""},{"$f":"IF(Summary_Products!H43=\"\",\"\",Summary_Products!H43)","v":""},{"$f":"IF(Summary_Products!I43=\"\",\"\",Summary_Products!I43)","v":""},{"$f":"IF(Summary_Products!J43=\"\",\"\",Summary_Products!J43)","v":""},{"$f":"IF(Summary_Products!K43=\"\",\"\",Summary_Products!K43)","v":""},{"$f":"IF(Summary_Products!L43=\"\",\"\",Summary_Products!L43)","v":""},{"$f":"IF(Summary_Products!M43=\"\",\"\",Summary_Products!M43)","v":""},{"$f":"IF(Summary_Products!N43=\"\",\"\",Summary_Products!N43)","v":""},{"$f":"IF(Summary_Products!O43=\"\",\"\",Summary_Products!O43)","v":""},{"$f":"IF(Summary_Products!P43=\"\",\"\",INDEX(Translations!$C:$C,MATCH(Summary_Products!P43,Translations!$B:$B,0)))","v":""},{"$f":"IF(Summary_Products!Q43=\"\",\"\",Summary_Products!Q43)","v":""},{"$f":"IF(Summary_Products!R43=\"\",\"\",Summary_Products!R43)","v":""},{"$f":"IF(Summary_Products!S43=\"\",\"\",Summary_Products!S43)","v":""},{"$f":"IF(Summary_Products!T43=\"\",\"\",Summary_Products!T43)","v":""},{"$f":"IF(Summary_Products!U43=\"\",\"\",Summary_Products!U43)","v":""},{"$f":"IF(Summary_Products!V43=\"\",\"\",Summary_Products!V43)","v":""},{"$f":"IF(Summary_Products!W43=\"\",\"\",Summary_Products!W43)","v":""},{"$f":"IF(Summary_Products!X43=\"\",\"\",Summary_Products!X43)","v":""},{"$f":"IF(Summary_Products!Y43=\"\",\"\",Summary_Products!Y43)","v":""},{"$f":"IF(Summary_Products!Z43=\"\",\"\",Summary_Products!Z43)","v":""},{"$f":"IF(Summary_Products!AA43=\"\",\"\",Summary_Products!AA43)","v":""},{"$f":"IF(Summary_Products!AB43=\"\",\"\",Summary_Products!AB43)","v":""},{"$f":"IF(Summary_Products!AC43=\"\",\"\",Summary_Products!AC43)","v":""},{"$f":"IF(Summary_Products!AD43=\"\",\"\",Summary_Products!AD43)","v":""},{"$f":"IF(Summary_Products!AE43=\"\",\"\",Summary_Products!AE43)","v":""},{"$f":"IF(Summary_Products!AF43=\"\",\"\",Summary_Products!AF43)","v":""},{"$f":"IF(Summary_Products!AG43=\"\",\"\",Summary_Products!AG43)","v":""},{"$f":"IF(Summary_Products!AH43=\"\",\"\",Summary_Products!AH43)","v":""},{"$f":"IF(Summary_Products!AI43=\"\",\"\",Summary_Products!AI43)","v":""},{"$f":"IF(Summary_Products!AJ43=\"\",\"\",Summary_Products!AJ43)","v":""},{"$f":"IF(Summary_Products!AK43=\"\",\"\",Summary_Products!AK43)","v":""},{"$f":"IF(Summary_Products!AL43=\"\",\"\",INDEX(Translations!$C:$C,MATCH(Summary_Products!AL43,Translations!$B:$B,0)))","v":""},{"$f":"IF(Summary_Products!AM43=\"\",\"\",Summary_Products!AM43)","v":""},{"$f":"IF(Summary_Products!AN43=\"\",\"\",Summary_Products!AN43)","v":""},{"$f":"IF(Summary_Products!AO43=\"\",\"\",Summary_Products!AO43)","v":""},{"$f":"IF(Summary_Products!AP43=\"\",\"\",Summary_Products!AP43)","v":""},{"$f":"IF(Summary_Products!AR43=\"\",\"\",Summary_Products!AR43)","v":""},{"$f":"IF(Summary_Products!AS43=\"\",\"\",Summary_Products!AS43)","v":""},{"$f":"IF(Summary_Products!AT43=\"\",\"\",INDEX(Translations!$C:$C,MATCH(Summary_Products!AT43,Translations!$B:$B,0)))","v":""},{"$f":"IF(Summary_Products!AU43=\"\",\"\",Summary_Products!AU43)","v":""},{"$f":"IF(Summary_Products!AV43=\"\",\"\",Summary_Products!AV43)","v":""},{"$f":"IF(Summary_Products!AW43=\"\",\"\",Summary_Products!AW43)","v":""},{"$f":"IF(Summary_Products!AX43=\"\",\"\",Summary_Products!AX43)","v":""},{"$f":"IF(Summary_Products!AY43=\"\",\"\",Summary_Products!AY43)","v":""},{"$f":"IF(Summary_Products!AZ43=\"\",\"\",Summary_Products!AZ43)","v":""},{"$f":"IF(Summary_Products!BA43=\"\",\"\",Summary_Products!BA43)","v":""}]
[null,null,35,{"$f":"IF(Summary_Products!D44=\"\",\"\",Summary_Products!D44)","v":""},{"$f":"IF(Summary_Products!E44=\"\",\"\",INDEX(Translations!$C:$C,MATCH(Summary_Products!E44,Translations!$B:$B,0)))","v":""},{"$f":"IF(Summary_Products!F44=\"\",\"\",Summary_Products!F44)","v":""},{"$f":"IF(F60=\"\",\"\",INDEX(Parameters_CNCodes!$H$4:$H$752,MATCH(F60,CNCodes_ListKey,0)))","v":""},{"$f":"IF(Summary_Products!H44=\"\",\"\",Summary_Products!H44)","v":""},{"$f":"IF(Summary_Products!I44=\"\",\"\",Summary_Products!I44)","v":""},{"$f":"IF(Summary_Products!J44=\"\",\"\",Summary_Products!J44)","v":""},{"$f":"IF(Summary_Products!K44=\"\",\"\",Summary_Products!K44)","v":""},{"$f":"IF(Summary_Products!L44=\"\",\"\",Summary_Products!L44)","v":""},{"$f":"IF(Summary_Products!M44=\"\",\"\",Summary_Products!M44)","v":""},{"$f":"IF(Summary_Products!N44=\"\",\"\",Summary_Products!N44)","v":""},{"$f":"IF(Summary_Products!O44=\"\",\"\",Summary_Products!O44)","v":""},{"$f":"IF(Summary_Products!P44=\"\",\"\",INDEX(Translations!$C:$C,MATCH(Summary_Products!P44,Translations!$B:$B,0)))","v":""},{"$f":"IF(Summary_Products!Q44=\"\",\"\",Summary_Products!Q44)","v":""},{"$f":"IF(Summary_Products!R44=\"\",\"\",Summary_Products!R44)","v":""},{"$f":"IF(Summary_Products!S44=\"\",\"\",Summary_Products!S44)","v":""},{"$f":"IF(Summary_Products!T44=\"\",\"\",Summary_Products!T44)","v":""},{"$f":"IF(Summary_Products!U44=\"\",\"\",Summary_Products!U44)","v":""},{"$f":"IF(Summary_Products!V44=\"\",\"\",Summary_Products!V44)","v":""},{"$f":"IF(Summary_Products!W44=\"\",\"\",Summary_Products!W44)","v":""},{"$f":"IF(Summary_Products!X44=\"\",\"\",Summary_Products!X44)","v":""},{"$f":"IF(Summary_Products!Y44=\"\",\"\",Summary_Products!Y44)","v":""},{"$f":"IF(Summary_Products!Z44=\"\",\"\",Summary_Products!Z44)","v":""},{"$f":"IF(Summary_Products!AA44=\"\",\"\",Summary_Products!AA44)","v":""},{"$f":"IF(Summary_Products!AB44=\"\",\"\",Summary_Products!AB44)","v":""},{"$f":"IF(Summary_Products!AC44=\"\",\"\",Summary_Products!AC44)","v":""},{"$f":"IF(Summary_Products!AD44=\"\",\"\",Summary_Products!AD44)","v":""},{"$f":"IF(Summary_Products!AE44=\"\",\"\",Summary_Products!AE44)","v":""},{"$f":"IF(Summary_Products!AF44=\"\",\"\",Summary_Products!AF44)","v":""},{"$f":"IF(Summary_Products!AG44=\"\",\"\",Summary_Products!AG44)","v":""},{"$f":"IF(Summary_Products!AH44=\"\",\"\",Summary_Products!AH44)","v":""},{"$f":"IF(Summary_Products!AI44=\"\",\"\",Summary_Products!AI44)","v":""},{"$f":"IF(Summary_Products!AJ44=\"\",\"\",Summary_Products!AJ44)","v":""},{"$f":"IF(Summary_Products!AK44=\"\",\"\",Summary_Products!AK44)","v":""},{"$f":"IF(Summary_Products!AL44=\"\",\"\",INDEX(Translations!$C:$C,MATCH(Summary_Products!AL44,Translations!$B:$B,0)))","v":""},{"$f":"IF(Summary_Products!AM44=\"\",\"\",Summary_Products!AM44)","v":""},{"$f":"IF(Summary_Products!AN44=\"\",\"\",Summary_Products!AN44)","v":""},{"$f":"IF(Summary_Products!AO44=\"\",\"\",Summary_Products!AO44)","v":""},{"$f":"IF(Summary_Products!AP44=\"\",\"\",Summary_Products!AP44)","v":""},{"$f":"IF(Summary_Products!AR44=\"\",\"\",Summary_Products!AR44)","v":""},{"$f":"IF(Summary_Products!AS44=\"\",\"\",Summary_Products!AS44)","v":""},{"$f":"IF(Summary_Products!AT44=\"\",\"\",INDEX(Translations!$C:$C,MATCH(Summary_Products!AT44,Translations!$B:$B,0)))","v":""},{"$f":"IF(Summary_Products!AU44=\"\",\"\",Summary_Products!AU44)","v":""},{"$f":"IF(Summary_Products!AV44=\"\",\"\",Summary_Products!AV44)","v":""},{"$f":"IF(Summary_Products!AW44=\"\",\"\",Summary_Products!AW44)","v":""},{"$f":"IF(Summary_Products!AX44=\"\",\"\",Summary_Products!AX44)","v":""},{"$f":"IF(Summary_Products!AY44=\"\",\"\",Summary_Products!AY44)","v":""},{"$f":"IF(Summary_Products!AZ44=\"\",\"\",Summary_Products!AZ44)","v":""},{"$f":"IF(Summary_Products!BA44=\"\",\"\",Summary_Products!BA44)","v":""}]
[null,null,36,{"$f":"IF(Summary_Products!D45=\"\",\"\",Summary_Products!D45)","v":""},{"$f":"IF(Summary_Products!E45=\"\",\"\",INDEX(Translations!$C:$C,MATCH(Summary_Products!E45,Translations!$B:$B,0)))","v":""},{"$f":"IF(Summary_Products!F45=\"\",\"\",Summary_Products!F45)","v":""},{"$f":"IF(F61=\"\",\"\",INDEX(Parameters_CNCodes!$H$4:$H$752,MATCH(F61,CNCodes_ListKey,0)))","v":""},{"$f":"IF(Summary_Products!H45=\"\",\"\",Summary_Products!H45)","v":""},{"$f":"IF(Summary_Products!I45=\"\",\"\",Summary_Products!I45)","v":""},{"$f":"IF(Summary_Products!J45=\"\",\"\",Summary_Products!J45)","v":""},{"$f":"IF(Summary_Products!K45=\"\",\"\",Summary_Products!K45)","v":""},{"$f":"IF(Summary_Products!L45=\"\",\"\",Summary_Products!L45)","v":""},{"$f":"IF(Summary_Products!M45=\"\",\"\",Summary_Products!M45)","v":""},{"$f":"IF(Summary_Products!N45=\"\",\"\",Summary_Products!N45)","v":""},{"$f":"IF(Summary_Products!O45=\"\",\"\",Summary_Products!O45)","v":""},{"$f":"IF(Summary_Products!P45=\"\",\"\",INDEX(Translations!$C:$C,MATCH(Summary_Products!P45,Translations!$B:$B,0)))","v":""},{"$f":"IF(Summary_Products!Q45=\"\",\"\",Summary_Products!Q45)","v":""},{"$f":"IF(Summary_Products!R45=\"\",\"\",Summary_Products!R45)","v":""},{"$f":"IF(Summary_Products!S45=\"\",\"\",Summary_Products!S45)","v":""},{"$f":"IF(Summary_Products!T45=\"\",\"\",Summary_Products!T45)","v":""},{"$f":"IF(Summary_Products!U45=\"\",\"\",Summary_Products!U45)","v":""},{"$f":"IF(Summary_Products!V45=\"\",\"\",Summary_Products!V45)","v":""},{"$f":"IF(Summary_Products!W45=\"\",\"\",Summary_Products!W45)","v":""},{"$f":"IF(Summary_Products!X45=\"\",\"\",Summary_Products!X45)","v":""},{"$f":"IF(Summary_Products!Y45=\"\",\"\",Summary_Products!Y45)","v":""},{"$f":"IF(Summary_Products!Z45=\"\",\"\",Summary_Products!Z45)","v":""},{"$f":"IF(Summary_Products!AA45=\"\",\"\",Summary_Products!AA45)","v":""},{"$f":"IF(Summary_Products!AB45=\"\",\"\",Summary_Products!AB45)","v":""},{"$f":"IF(Summary_Products!AC45=\"\",\"\",Summary_Products!AC45)","v":""},{"$f":"IF(Summary_Products!AD45=\"\",\"\",Summary_Products!AD45)","v":""},{"$f":"IF(Summary_Products!AE45=\"\",\"\",Summary_Products!AE45)","v":""},{"$f":"IF(Summary_Products!AF45=\"\",\"\",Summary_Products!AF45)","v":""},{"$f":"IF(Summary_Products!AG45=\"\",\"\",Summary_Products!AG45)","v":""},{"$f":"IF(Summary_Products!AH45=\"\",\"\",Summary_Products!AH45)","v":""},{"$f":"IF(Summary_Products!AI45=\"\",\"\",Summary_Products!AI45)","v":""},{"$f":"IF(Summary_Products!AJ45=\"\",\"\",Summary_Products!AJ45)","v":""},{"$f":"IF(Summary_Products!AK45=\"\",\"\",Summary_Products!AK45)","v":""},{"$f":"IF(Summary_Products!AL45=\"\",\"\",INDEX(Translations!$C:$C,MATCH(Summary_Products!AL45,Translations!$B:$B,0)))","v":""},{"$f":"IF(Summary_Products!AM45=\"\",\"\",Summary_Products!AM45)","v":""},{"$f":"IF(Summary_Products!AN45=\"\",\"\",Summary_Products!AN45)","v":""},{"$f":"IF(Summary_Products!AO45=\"\",\"\",Summary_Products!AO45)","v":""},{"$f":"IF(Summary_Products!AP45=\"\",\"\",Summary_Products!AP45)","v":""},{"$f":"IF(Summary_Products!AR45=\"\",\"\",Summary_Products!AR45)","v":""},{"$f":"IF(Summary_Products!AS45=\"\",\"\",Summary_Products!AS45)","v":""},{"$f":"IF(Summary_Products!AT45=\"\",\"\",INDEX(Translations!$C:$C,MATCH(Summary_Products!AT45,Translations!$B:$B,0)))","v":""},{"$f":"IF(Summary_Products!AU45=\"\",\"\",Summary_Products!AU45)","v":""},{"$f":"IF(Summary_Products!AV45=\"\",\"\",Summary_Products!AV45)","v":""},{"$f":"IF(Summary_Products!AW45=\"\",\"\",Summary_Products!AW45)","v":""},{"$f":"IF(Summary_Products!AX45=\"\",\"\",Summary_Products!AX45)","v":""},{"$f":"IF(Summary_Products!AY45=\"\",\"\",Summary_Products!AY45)","v":""},{"$f":"IF(Summary_Products!AZ45=\"\",\"\",Summary_Products!AZ45)","v":""},{"$f":"IF(Summary_Products!BA45=\"\",\"\",Summary_Products!BA45)","v":""}]
[null,null,37,{"$f":"IF(Summary_Products!D46=\"\",\"\",Summary_Products!D46)","v":""},{"$f":"IF(Summary_Products!E46=\"\",\"\",INDEX(Translations!$C:$C,MATCH(Summary_Products!E46,Translations!$B:$B,0)))","v":""},{"$f":"IF(Summary_Products!F46=\"\",\"\",Summary_Products!F46)","v":""},{"$f":"IF(F62=\"\",\"\",INDEX(Parameters_CNCodes!$H$4:$H$752,MATCH(F62,CNCodes_ListKey,0)))","v":""},{"$f":"IF(Summary_Products!H46=\"\",\"\",Summary_Products!H46)","v":""},{"$f":"IF(Summary_Products!I46=\"\",\"\",Summary_Products!I46)","v":""},{"$f":"IF(Summary_Products!J46=\"\",\"\",Summary_Products!J46)","v":""},{"$f":"IF(Summary_Products!K46=\"\",\"\",Summary_Products!K46)","v":""},{"$f":"IF(Summary_Products!L46=\"\",\"\",Summary_Products!L46)","v":""},{"$f":"IF(Summary_Products!M46=\"\",\"\",Summary_Products!M46)","v":""},{"$f":"IF(Summary_Products!N46=\"\",\"\",Summary_Products!N46)","v":""},{"$f":"IF(Summary_Products!O46=\"\",\"\",Summary_Products!O46)","v":""},{"$f":"IF(Summary_Products!P46=\"\",\"\",INDEX(Translations!$C:$C,MATCH(Summary_Products!P46,Translations!$B:$B,0)))","v":""},{"$f":"IF(Summary_Products!Q46=\"\",\"\",Summary_Products!Q46)","v":""},{"$f":"IF(Summary_Products!R46=\"\",\"\",Summary_Products!R46)","v":""},{"$f":"IF(Summary_Products!S46=\"\",\"\",Summary_Products!S46)","v":""},{"$f":"IF(Summary_Products!T46=\"\",\"\",Summary_Products!T46)","v":""},{"$f":"IF(Summary_Products!U46=\"\",\"\",Summary_Products!U46)","v":""},{"$f":"IF(Summary_Products!V46=\"\",\"\",Summary_Products!V46)","v":""},{"$f":"IF(Summary_Products!W46=\"\",\"\",Summary_Products!W46)","v":""},{"$f":"IF(Summary_Products!X46=\"\",\"\",Summary_Products!X46)","v":""},{"$f":"IF(Summary_Products!Y46=\"\",\"\",Summary_Products!Y46)","v":""},{"$f":"IF(Summary_Products!Z46=\"\",\"\",Summary_Products!Z46)","v":""},{"$f":"IF(Summary_Products!AA46=\"\",\"\",Summary_Products!AA46)","v":""},{"$f":"IF(Summary_Products!AB46=\"\",\"\",Summary_Products!AB46)","v":""},{"$f":"IF(Summary_Products!AC46=\"\",\"\",Summary_Products!AC46)","v":""},{"$f":"IF(Summary_Products!AD46=\"\",\"\",Summary_Products!AD46)","v":""},{"$f":"IF(Summary_Products!AE46=\"\",\"\",Summary_Products!AE46)","v":""},{"$f":"IF(Summary_Products!AF46=\"\",\"\",Summary_Products!AF46)","v":""},{"$f":"IF(Summary_Products!AG46=\"\",\"\",Summary_Products!AG46)","v":""},{"$f":"IF(Summary_Products!AH46=\"\",\"\",Summary_Products!AH46)","v":""},{"$f":"IF(Summary_Products!AI46=\"\",\"\",Summary_Products!AI46)","v":""},{"$f":"IF(Summary_Products!AJ46=\"\",\"\",Summary_Products!AJ46)","v":""},{"$f":"IF(Summary_Products!AK46=\"\",\"\",Summary_Products!AK46)","v":""},{"$f":"IF(Summary_Products!AL46=\"\",\"\",INDEX(Translations!$C:$C,MATCH(Summary_Products!AL46,Translations!$B:$B,0)))","v":""},{"$f":"IF(Summary_Products!AM46=\"\",\"\",Summary_Products!AM46)","v":""},{"$f":"IF(Summary_Products!AN46=\"\",\"\",Summary_Products!AN46)","v":""},{"$f":"IF(Summary_Products!AO46=\"\",\"\",Summary_Products!AO46)","v":""},{"$f":"IF(Summary_Products!AP46=\"\",\"\",Summary_Products!AP46)","v":""},{"$f":"IF(Summary_Products!AR46=\"\",\"\",Summary_Products!AR46)","v":""},{"$f":"IF(Summary_Products!AS46=\"\",\"\",Summary_Products!AS46)","v":""},{"$f":"IF(Summary_Products!AT46=\"\",\"\",INDEX(Translations!$C:$C,MATCH(Summary_Products!AT46,Translations!$B:$B,0)))","v":""},{"$f":"IF(Summary_Products!AU46=\"\",\"\",Summary_Products!AU46)","v":""},{"$f":"IF(Summary_Products!AV46=\"\",\"\",Summary_Products!AV46)","v":""},{"$f":"IF(Summary_Products!AW46=\"\",\"\",Summary_Products!AW46)","v":""},{"$f":"IF(Summary_Products!AX46=\"\",\"\",Summary_Products!AX46)","v":""},{"$f":"IF(Summary_Products!AY46=\"\",\"\",Summary_Products!AY46)","v":""},{"$f":"IF(Summary_Products!AZ46=\"\",\"\",Summary_Products!AZ46)","v":""},{"$f":"IF(Summary_Products!BA46=\"\",\"\",Summary_Products!BA46)","v":""}]
[null,null,38,{"$f":"IF(Summary_Products!D47=\"\",\"\",Summary_Products!D47)","v":""},{"$f":"IF(Summary_Products!E47=\"\",\"\",INDEX(Translations!$C:$C,MATCH(Summary_Products!E47,Translations!$B:$B,0)))","v":""},{"$f":"IF(Summary_Products!F47=\"\",\"\",Summary_Products!F47)","v":""},{"$f":"IF(F63=\"\",\"\",INDEX(Parameters_CNCodes!$H$4:$H$752,MATCH(F63,CNCodes_ListKey,0)))","v":""},{"$f":"IF(Summary_Products!H47=\"\",\"\",Summary_Products!H47)","v":""},{"$f":"IF(Summary_Products!I47=\"\",\"\",Summary_Products!I47)","v":""},{"$f":"IF(Summary_Products!J47=\"\",\"\",Summary_Products!J47)","v":""},{"$f":"IF(Summary_Products!K47=\"\",\"\",Summary_Products!K47)","v":""},{"$f":"IF(Summary_Products!L47=\"\",\"\",Summary_Products!L47)","v":""},{"$f":"IF(Summary_Products!M47=\"\",\"\",Summary_Products!M47)","v":""},{"$f":"IF(Summary_Products!N47=\"\",\"\",Summary_Products!N47)","v":""},{"$f":"IF(Summary_Products!O47=\"\",\"\",Summary_Products!O47)","v":""},{"$f":"IF(Summary_Products!P47=\"\",\"\",INDEX(Translations!$C:$C,MATCH(Summary_Products!P47,Translations!$B:$B,0)))","v":""},{"$f":"IF(Summary_Products!Q47=\"\",\"\",Summary_Products!Q47)","v":""},{"$f":"IF(Summary_Products!R47=\"\",\"\",Summary_Products!R47)","v":""},{"$f":"IF(Summary_Products!S47=\"\",\"\",Summary_Products!S47)","v":""},{"$f":"IF(Summary_Products!T47=\"\",\"\",Summary_Products!T47)","v":""},{"$f":"IF(Summary_Products!U47=\"\",\"\",Summary_Products!U47)","v":""},{"$f":"IF(Summary_Products!V47=\"\",\"\",Summary_Products!V47)","v":""},{"$f":"IF(Summary_Products!W47=\"\",\"\",Summary_Products!W47)","v":""},{"$f":"IF(Summary_Products!X47=\"\",\"\",Summary_Products!X47)","v":""},{"$f":"IF(Summary_Products!Y47=\"\",\"\",Summary_Products!Y47)","v":""},{"$f":"IF(Summary_Products!Z47=\"\",\"\",Summary_Products!Z47)","v":""},{"$f":"IF(Summary_Products!AA47=\"\",\"\",Summary_Products!AA47)","v":""},{"$f":"IF(Summary_Products!AB47=\"\",\"\",Summary_Products!AB47)","v":""},{"$f":"IF(Summary_Products!AC47=\"\",\"\",Summary_Products!AC47)","v":""},{"$f":"IF(Summary_Products!AD47=\"\",\"\",Summary_Products!AD47)","v":""},{"$f":"IF(Summary_Products!AE47=\"\",\"\",Summary_Products!AE47)","v":""},{"$f":"IF(Summary_Products!AF47=\"\",\"\",Summary_Products!AF47)","v":""},{"$f":"IF(Summary_Products!AG47=\"\",\"\",Summary_Products!AG47)","v":""},{"$f":"IF(Summary_Products!AH47=\"\",\"\",Summary_Products!AH47)","v":""},{"$f":"IF(Summary_Products!AI47=\"\",\"\",Summary_Products!AI47)","v":""},{"$f":"IF(Summary_Products!AJ47=\"\",\"\",Summary_Products!AJ47)","v":""},{"$f":"IF(Summary_Products!AK47=\"\",\"\",Summary_Products!AK47)","v":""},{"$f":"IF(Summary_Products!AL47=\"\",\"\",INDEX(Translations!$C:$C,MATCH(Summary_Products!AL47,Translations!$B:$B,0)))","v":""},{"$f":"IF(Summary_Products!AM47=\"\",\"\",Summary_Products!AM47)","v":""},{"$f":"IF(Summary_Products!AN47=\"\",\"\",Summary_Products!AN47)","v":""},{"$f":"IF(Summary_Products!AO47=\"\",\"\",Summary_Products!AO47)","v":""},{"$f":"IF(Summary_Products!AP47=\"\",\"\",Summary_Products!AP47)","v":""},{"$f":"IF(Summary_Products!AR47=\"\",\"\",Summary_Products!AR47)","v":""},{"$f":"IF(Summary_Products!AS47=\"\",\"\",Summary_Products!AS47)","v":""},{"$f":"IF(Summary_Products!AT47=\"\",\"\",INDEX(Translations!$C:$C,MATCH(Summary_Products!AT47,Translations!$B:$B,0)))","v":""},{"$f":"IF(Summary_Products!AU47=\"\",\"\",Summary_Products!AU47)","v":""},{"$f":"IF(Summary_Products!AV47=\"\",\"\",Summary_Products!AV47)","v":""},{"$f":"IF(Summary_Products!AW47=\"\",\"\",Summary_Products!AW47)","v":""},{"$f":"IF(Summary_Products!AX47=\"\",\"\",Summary_Products!AX47)","v":""},{"$f":"IF(Summary_Products!AY47=\"\",\"\",Summary_Products!AY47)","v":""},{"$f":"IF(Summary_Products!AZ47=\"\",\"\",Summary_Products!AZ47)","v":""},{"$f":"IF(Summary_Products!BA47=\"\",\"\",Summary_Products!BA47)","v":""}]
[null,null,39,{"$f":"IF(Summary_Products!D48=\"\",\"\",Summary_Products!D48)","v":""},{"$f":"IF(Summary_Products!E48=\"\",\"\",INDEX(Translations!$C:$C,MATCH(Summary_Products!E48,Translations!$B:$B,0)))","v":""},{"$f":"IF(Summary_Products!F48=\"\",\"\",Summary_Products!F48)","v":""},{"$f":"IF(F64=\"\",\"\",INDEX(Parameters_CNCodes!$H$4:$H$752,MATCH(F64,CNCodes_ListKey,0)))","v":""},{"$f":"IF(Summary_Products!H48=\"\",\"\",Summary_Products!H48)","v":""},{"$f":"IF(Summary_Products!I48=\"\",\"\",Summary_Products!I48)","v":""},{"$f":"IF(Summary_Products!J48=\"\",\"\",Summary_Products!J48)","v":""},{"$f":"IF(Summary_Products!K48=\"\",\"\",Summary_Products!K48)","v":""},{"$f":"IF(Summary_Products!L48=\"\",\"\",Summary_Products!L48)","v":""},{"$f":"IF(Summary_Products!M48=\"\",\"\",Summary_Products!M48)","v":""},{"$f":"IF(Summary_Products!N48=\"\",\"\",Summary_Products!N48)","v":""},{"$f":"IF(Summary_Products!O48=\"\",\"\",Summary_Products!O48)","v":""},{"$f":"IF(Summary_Products!P48=\"\",\"\",INDEX(Translations!$C:$C,MATCH(Summary_Products!P48,Translations!$B:$B,0)))","v":""},{"$f":"IF(Summary_Products!Q48=\"\",\"\",Summary_Products!Q48)","v":""},{"$f":"IF(Summary_Products!R48=\"\",\"\",Summary_Products!R48)","v":""},{"$f":"IF(Summary_Products!S48=\"\",\"\",Summary_Products!S48)","v":""},{"$f":"IF(Summary_Products!T48=\"\",\"\",Summary_Products!T48)","v":""},{"$f":"IF(Summary_Products!U48=\"\",\"\",Summary_Products!U48)","v":""},{"$f":"IF(Summary_Products!V48=\"\",\"\",Summary_Products!V48)","v":""},{"$f":"IF(Summary_Products!W48=\"\",\"\",Summary_Products!W48)","v":""},{"$f":"IF(Summary_Products!X48=\"\",\"\",Summary_Products!X48)","v":""},{"$f":"IF(Summary_Products!Y48=\"\",\"\",Summary_Products!Y48)","v":""},{"$f":"IF(Summary_Products!Z48=\"\",\"\",Summary_Products!Z48)","v":""},{"$f":"IF(Summary_Products!AA48=\"\",\"\",Summary_Products!AA48)","v":""},{"$f":"IF(Summary_Products!AB48=\"\",\"\",Summary_Products!AB48)","v":""},{"$f":"IF(Summary_Products!AC48=\"\",\"\",Summary_Products!AC48)","v":""},{"$f":"IF(Summary_Products!AD48=\"\",\"\",Summary_Products!AD48)","v":""},{"$f":"IF(Summary_Products!AE48=\"\",\"\",Summary_Products!AE48)","v":""},{"$f":"IF(Summary_Products!AF48=\"\",\"\",Summary_Products!AF48)","v":""},{"$f":"IF(Summary_Products!AG48=\"\",\"\",Summary_Products!AG48)","v":""},{"$f":"IF(Summary_Products!AH48=\"\",\"\",Summary_Products!AH48)","v":""},{"$f":"IF(Summary_Products!AI48=\"\",\"\",Summary_Products!AI48)","v":""},{"$f":"IF(Summary_Products!AJ48=\"\",\"\",Summary_Products!AJ48)","v":""},{"$f":"IF(Summary_Products!AK48=\"\",\"\",Summary_Products!AK48)","v":""},{"$f":"IF(Summary_Products!AL48=\"\",\"\",INDEX(Translations!$C:$C,MATCH(Summary_Products!AL48,Translations!$B:$B,0)))","v":""},{"$f":"IF(Summary_Products!AM48=\"\",\"\",Summary_Products!AM48)","v":""},{"$f":"IF(Summary_Products!AN48=\"\",\"\",Summary_Products!AN48)","v":""},{"$f":"IF(Summary_Products!AO48=\"\",\"\",Summary_Products!AO48)","v":""},{"$f":"IF(Summary_Products!AP48=\"\",\"\",Summary_Products!AP48)","v":""},{"$f":"IF(Summary_Products!AR48=\"\",\"\",Summary_Products!AR48)","v":""},{"$f":"IF(Summary_Products!AS48=\"\",\"\",Summary_Products!AS48)","v":""},{"$f":"IF(Summary_Products!AT48=\"\",\"\",INDEX(Translations!$C:$C,MATCH(Summary_Products!AT48,Translations!$B:$B,0)))","v":""},{"$f":"IF(Summary_Products!AU48=\"\",\"\",Summary_Products!AU48)","v":""},{"$f":"IF(Summary_Products!AV48=\"\",\"\",Summary_Products!AV48)","v":""},{"$f":"IF(Summary_Products!AW48=\"\",\"\",Summary_Products!AW48)","v":""},{"$f":"IF(Summary_Products!AX48=\"\",\"\",Summary_Products!AX48)","v":""},{"$f":"IF(Summary_Products!AY48=\"\",\"\",Summary_Products!AY48)","v":""},{"$f":"IF(Summary_Products!AZ48=\"\",\"\",Summary_Products!AZ48)","v":""},{"$f":"IF(Summary_Products!BA48=\"\",\"\",Summary_Products!BA48)","v":""}]
[null,null,40,{"$f":"IF(Summary_Products!D49=\"\",\"\",Summary_Products!D49)","v":""},{"$f":"IF(Summary_Products!E49=\"\",\"\",INDEX(Translations!$C:$C,MATCH(Summary_Products!E49,Translations!$B:$B,0)))","v":""},{"$f":"IF(Summary_Products!F49=\"\",\"\",Summary_Products!F49)","v":""},{"$f":"IF(F65=\"\",\"\",INDEX(Parameters_CNCodes!$H$4:$H$752,MATCH(F65,CNCodes_ListKey,0)))","v":""},{"$f":"IF(Summary_Products!H49=\"\",\"\",Summary_Products!H49)","v":""},{"$f":"IF(Summary_Products!I49=\"\",\"\",Summary_Products!I49)","v":""},{"$f":"IF(Summary_Products!J49=\"\",\"\",Summary_Products!J49)","v":""},{"$f":"IF(Summary_Products!K49=\"\",\"\",Summary_Products!K49)","v":""},{"$f":"IF(Summary_Products!L49=\"\",\"\",Summary_Products!L49)","v":""},{"$f":"IF(Summary_Products!M49=\"\",\"\",Summary_Products!M49)","v":""},{"$f":"IF(Summary_Products!N49=\"\",\"\",Summary_Products!N49)","v":""},{"$f":"IF(Summary_Products!O49=\"\",\"\",Summary_Products!O49)","v":""},{"$f":"IF(Summary_Products!P49=\"\",\"\",INDEX(Translations!$C:$C,MATCH(Summary_Products!P49,Translations!$B:$B,0)))","v":""},{"$f":"IF(Summary_Products!Q49=\"\",\"\",Summary_Products!Q49)","v":""},{"$f":"IF(Summary_Products!R49=\"\",\"\",Summary_Products!R49)","v":""},{"$f":"IF(Summary_Products!S49=\"\",\"\",Summary_Products!S49)","v":""},{"$f":"IF(Summary_Products!T49=\"\",\"\",Summary_Products!T49)","v":""},{"$f":"IF(Summary_Products!U49=\"\",\"\",Summary_Products!U49)","v":""},{"$f":"IF(Summary_Products!V49=\"\",\"\",Summary_Products!V49)","v":""},{"$f":"IF(Summary_Products!W49=\"\",\"\",Summary_Products!W49)","v":""},{"$f":"IF(Summary_Products!X49=\"\",\"\",Summary_Products!X49)","v":""},{"$f":"IF(Summary_Products!Y49=\"\",\"\",Summary_Products!Y49)","v":""},{"$f":"IF(Summary_Products!Z49=\"\",\"\",Summary_Products!Z49)","v":""},{"$f":"IF(Summary_Products!AA49=\"\",\"\",Summary_Products!AA49)","v":""},{"$f":"IF(Summary_Products!AB49=\"\",\"\",Summary_Products!AB49)","v":""},{"$f":"IF(Summary_Products!AC49=\"\",\"\",Summary_Products!AC49)","v":""},{"$f":"IF(Summary_Products!AD49=\"\",\"\",Summary_Products!AD49)","v":""},{"$f":"IF(Summary_Products!AE49=\"\",\"\",Summary_Products!AE49)","v":""},{"$f":"IF(Summary_Products!AF49=\"\",\"\",Summary_Products!AF49)","v":""},{"$f":"IF(Summary_Products!AG49=\"\",\"\",Summary_Products!AG49)","v":""},{"$f":"IF(Summary_Products!AH49=\"\",\"\",Summary_Products!AH49)","v":""},{"$f":"IF(Summary_Products!AI49=\"\",\"\",Summary_Products!AI49)","v":""},{"$f":"IF(Summary_Products!AJ49=\"\",\"\",Summary_Products!AJ49)","v":""},{"$f":"IF(Summary_Products!AK49=\"\",\"\",Summary_Products!AK49)","v":""},{"$f":"IF(Summary_Products!AL49=\"\",\"\",INDEX(Translations!$C:$C,MATCH(Summary_Products!AL49,Translations!$B:$B,0)))","v":""},{"$f":"IF(Summary_Products!AM49=\"\",\"\",Summary_Products!AM49)","v":""},{"$f":"IF(Summary_Products!AN49=\"\",\"\",Summary_Products!AN49)","v":""},{"$f":"IF(Summary_Products!AO49=\"\",\"\",Summary_Products!AO49)","v":""},{"$f":"IF(Summary_Products!AP49=\"\",\"\",Summary_Products!AP49)","v":""},{"$f":"IF(Summary_Products!AR49=\"\",\"\",Summary_Products!AR49)","v":""},{"$f":"IF(Summary_Products!AS49=\"\",\"\",Summary_Products!AS49)","v":""},{"$f":"IF(Summary_Products!AT49=\"\",\"\",INDEX(Translations!$C:$C,MATCH(Summary_Products!AT49,Translations!$B:$B,0)))","v":""},{"$f":"IF(Summary_Products!AU49=\"\",\"\",Summary_Products!AU49)","v":""},{"$f":"IF(Summary_Products!AV49=\"\",\"\",Summary_Products!AV49)","v":""},{"$f":"IF(Summary_Products!AW49=\"\",\"\",Summary_Products!AW49)","v":""},{"$f":"IF(Summary_Products!AX49=\"\",\"\",Summary_Products!AX49)","v":""},{"$f":"IF(Summary_Products!AY49=\"\",\"\",Summary_Products!AY49)","v":""},{"$f":"IF(Summary_Products!AZ49=\"\",\"\",Summary_Products!AZ49)","v":""},{"$f":"IF(Summary_Products!BA49=\"\",\"\",Summary_Products!BA49)","v":""}]
[null,null,41,{"$f":"IF(Summary_Products!D50=\"\",\"\",Summary_Products!D50)","v":""},{"$f":"IF(Summary_Products!E50=\"\",\"\",INDEX(Translations!$C:$C,MATCH(Summary_Products!E50,Translations!$B:$B,0)))","v":""},{"$f":"IF(Summary_Products!F50=\"\",\"\",Summary_Products!F50)","v":""},{"$f":"IF(F66=\"\",\"\",INDEX(Parameters_CNCodes!$H$4:$H$752,MATCH(F66,CNCodes_ListKey,0)))","v":""},{"$f":"IF(Summary_Products!H50=\"\",\"\",Summary_Products!H50)","v":""},{"$f":"IF(Summary_Products!I50=\"\",\"\",Summary_Products!I50)","v":""},{"$f":"IF(Summary_Products!J50=\"\",\"\",Summary_Products!J50)","v":""},{"$f":"IF(Summary_Products!K50=\"\",\"\",Summary_Products!K50)","v":""},{"$f":"IF(Summary_Products!L50=\"\",\"\",Summary_Products!L50)","v":""},{"$f":"IF(Summary_Products!M50=\"\",\"\",Summary_Products!M50)","v":""},{"$f":"IF(Summary_Products!N50=\"\",\"\",Summary_Products!N50)","v":""},{"$f":"IF(Summary_Products!O50=\"\",\"\",Summary_Products!O50)","v":""},{"$f":"IF(Summary_Products!P50=\"\",\"\",INDEX(Translations!$C:$C,MATCH(Summary_Products!P50,Translations!$B:$B,0)))","v":""},{"$f":"IF(Summary_Products!Q50=\"\",\"\",Summary_Products!Q50)","v":""},{"$f":"IF(Summary_Products!R50=\"\",\"\",Summary_Products!R50)","v":""},{"$f":"IF(Summary_Products!S50=\"\",\"\",Summary_Products!S50)","v":""},{"$f":"IF(Summary_Products!T50=\"\",\"\",Summary_Products!T50)","v":""},{"$f":"IF(Summary_Products!U50=\"\",\"\",Summary_Products!U50)","v":""},{"$f":"IF(Summary_Products!V50=\"\",\"\",Summary_Products!V50)","v":""},{"$f":"IF(Summary_Products!W50=\"\",\"\",Summary_Products!W50)","v":""},{"$f":"IF(Summary_Products!X50=\"\",\"\",Summary_Products!X50)","v":""},{"$f":"IF(Summary_Products!Y50=\"\",\"\",Summary_Products!Y50)","v":""},{"$f":"IF(Summary_Products!Z50=\"\",\"\",Summary_Products!Z50)","v":""},{"$f":"IF(Summary_Products!AA50=\"\",\"\",Summary_Products!AA50)","v":""},{"$f":"IF(Summary_Products!AB50=\"\",\"\",Summary_Products!AB50)","v":""},{"$f":"IF(Summary_Products!AC50=\"\",\"\",Summary_Products!AC50)","v":""},{"$f":"IF(Summary_Products!AD50=\"\",\"\",Summary_Products!AD50)","v":""},{"$f":"IF(Summary_Products!AE50=\"\",\"\",Summary_Products!AE50)","v":""},{"$f":"IF(Summary_Products!AF50=\"\",\"\",Summary_Products!AF50)","v":""},{"$f":"IF(Summary_Products!AG50=\"\",\"\",Summary_Products!AG50)","v":""},{"$f":"IF(Summary_Products!AH50=\"\",\"\",Summary_Products!AH50)","v":""},{"$f":"IF(Summary_Products!AI50=\"\",\"\",Summary_Products!AI50)","v":""},{"$f":"IF(Summary_Products!AJ50=\"\",\"\",Summary_Products!AJ50)","v":""},{"$f":"IF(Summary_Products!AK50=\"\",\"\",Summary_Products!AK50)","v":""},{"$f":"IF(Summary_Products!AL50=\"\",\"\",INDEX(Translations!$C:$C,MATCH(Summary_Products!AL50,Translations!$B:$B,0)))","v":""},{"$f":"IF(Summary_Products!AM50=\"\",\"\",Summary_Products!AM50)","v":""},{"$f":"IF(Summary_Products!AN50=\"\",\"\",Summary_Products!AN50)","v":""},{"$f":"IF(Summary_Products!AO50=\"\",\"\",Summary_Products!AO50)","v":""},{"$f":"IF(Summary_Products!AP50=\"\",\"\",Summary_Products!AP50)","v":""},{"$f":"IF(Summary_Products!AR50=\"\",\"\",Summary_Products!AR50)","v":""},{"$f":"IF(Summary_Products!AS50=\"\",\"\",Summary_Products!AS50)","v":""},{"$f":"IF(Summary_Products!AT50=\"\",\"\",INDEX(Translations!$C:$C,MATCH(Summary_Products!AT50,Translations!$B:$B,0)))","v":""},{"$f":"IF(Summary_Products!AU50=\"\",\"\",Summary_Products!AU50)","v":""},{"$f":"IF(Summary_Products!AV50=\"\",\"\",Summary_Products!AV50)","v":""},{"$f":"IF(Summary_Products!AW50=\"\",\"\",Summary_Products!AW50)","v":""},{"$f":"IF(Summary_Products!AX50=\"\",\"\",Summary_Products!AX50)","v":""},{"$f":"IF(Summary_Products!AY50=\"\",\"\",Summary_Products!AY50)","v":""},{"$f":"IF(Summary_Products!AZ50=\"\",\"\",Summary_Products!AZ50)","v":""},{"$f":"IF(Summary_Products!BA50=\"\",\"\",Summary_Products!BA50)","v":""}]
[null,null,42,{"$f":"IF(Summary_Products!D51=\"\",\"\",Summary_Products!D51)","v":""},{"$f":"IF(Summary_Products!E51=\"\",\"\",INDEX(Translations!$C:$C,MATCH(Summary_Products!E51,Translations!$B:$B,0)))","v":""},{"$f":"IF(Summary_Products!F51=\"\",\"\",Summary_Products!F51)","v":""},{"$f":"IF(F67=\"\",\"\",INDEX(Parameters_CNCodes!$H$4:$H$752,MATCH(F67,CNCodes_ListKey,0)))","v":""},{"$f":"IF(Summary_Products!H51=\"\",\"\",Summary_Products!H51)","v":""},{"$f":"IF(Summary_Products!I51=\"\",\"\",Summary_Products!I51)","v":""},{"$f":"IF(Summary_Products!J51=\"\",\"\",Summary_Products!J51)","v":""},{"$f":"IF(Summary_Products!K51=\"\",\"\",Summary_Products!K51)","v":""},{"$f":"IF(Summary_Products!L51=\"\",\"\",Summary_Products!L51)","v":""},{"$f":"IF(Summary_Products!M51=\"\",\"\",Summary_Products!M51)","v":""},{"$f":"IF(Summary_Products!N51=\"\",\"\",Summary_Products!N51)","v":""},{"$f":"IF(Summary_Products!O51=\"\",\"\",Summary_Products!O51)","v":""},{"$f":"IF(Summary_Products!P51=\"\",\"\",INDEX(Translations!$C:$C,MATCH(Summary_Products!P51,Translations!$B:$B,0)))","v":""},{"$f":"IF(Summary_Products!Q51=\"\",\"\",Summary_Products!Q51)","v":""},{"$f":"IF(Summary_Products!R51=\"\",\"\",Summary_Products!R51)","v":""},{"$f":"IF(Summary_Products!S51=\"\",\"\",Summary_Products!S51)","v":""},{"$f":"IF(Summary_Products!T51=\"\",\"\",Summary_Products!T51)","v":""},{"$f":"IF(Summary_Products!U51=\"\",\"\",Summary_Products!U51)","v":""},{"$f":"IF(Summary_Products!V51=\"\",\"\",Summary_Products!V51)","v":""},{"$f":"IF(Summary_Products!W51=\"\",\"\",Summary_Products!W51)","v":""},{"$f":"IF(Summary_Products!X51=\"\",\"\",Summary_Products!X51)","v":""},{"$f":"IF(Summary_Products!Y51=\"\",\"\",Summary_Products!Y51)","v":""},{"$f":"IF(Summary_Products!Z51=\"\",\"\",Summary_Products!Z51)","v":""},{"$f":"IF(Summary_Products!AA51=\"\",\"\",Summary_Products!AA51)","v":""},{"$f":"IF(Summary_Products!AB51=\"\",\"\",Summary_Products!AB51)","v":""},{"$f":"IF(Summary_Products!AC51=\"\",\"\",Summary_Products!AC51)","v":""},{"$f":"IF(Summary_Products!AD51=\"\",\"\",Summary_Products!AD51)","v":""},{"$f":"IF(Summary_Products!AE51=\"\",\"\",Summary_Products!AE51)","v":""},{"$f":"IF(Summary_Products!AF51=\"\",\"\",Summary_Products!AF51)","v":""},{"$f":"IF(Summary_Products!AG51=\"\",\"\",Summary_Products!AG51)","v":""},{"$f":"IF(Summary_Products!AH51=\"\",\"\",Summary_Products!AH51)","v":""},{"$f":"IF(Summary_Products!AI51=\"\",\"\",Summary_Products!AI51)","v":""},{"$f":"IF(Summary_Products!AJ51=\"\",\"\",Summary_Products!AJ51)","v":""},{"$f":"IF(Summary_Products!AK51=\"\",\"\",Summary_Products!AK51)","v":""},{"$f":"IF(Summary_Products!AL51=\"\",\"\",INDEX(Translations!$C:$C,MATCH(Summary_Products!AL51,Translations!$B:$B,0)))","v":""},{"$f":"IF(Summary_Products!AM51=\"\",\"\",Summary_Products!AM51)","v":""},{"$f":"IF(Summary_Products!AN51=\"\",\"\",Summary_Products!AN51)","v":""},{"$f":"IF(Summary_Products!AO51=\"\",\"\",Summary_Products!AO51)","v":""},{"$f":"IF(Summary_Products!AP51=\"\",\"\",Summary_Products!AP51)","v":""},{"$f":"IF(Summary_Products!AR51=\"\",\"\",Summary_Products!AR51)","v":""},{"$f":"IF(Summary_Products!AS51=\"\",\"\",Summary_Products!AS51)","v":""},{"$f":"IF(Summary_Products!AT51=\"\",\"\",INDEX(Translations!$C:$C,MATCH(Summary_Products!AT51,Translations!$B:$B,0)))","v":""},{"$f":"IF(Summary_Products!AU51=\"\",\"\",Summary_Products!AU51)","v":""},{"$f":"IF(Summary_Products!AV51=\"\",\"\",Summary_Products!AV51)","v":""},{"$f":"IF(Summary_Products!AW51=\"\",\"\",Summary_Products!AW51)","v":""},{"$f":"IF(Summary_Products!AX51=\"\",\"\",Summary_Products!AX51)","v":""},{"$f":"IF(Summary_Products!AY51=\"\",\"\",Summary_Products!AY51)","v":""},{"$f":"IF(Summary_Products!AZ51=\"\",\"\",Summary_Products!AZ51)","v":""},{"$f":"IF(Summary_Products!BA51=\"\",\"\",Summary_Products!BA51)","v":""}]
[null,null,43,{"$f":"IF(Summary_Products!D52=\"\",\"\",Summary_Products!D52)","v":""},{"$f":"IF(Summary_Products!E52=\"\",\"\",INDEX(Translations!$C:$C,MATCH(Summary_Products!E52,Translations!$B:$B,0)))","v":""},{"$f":"IF(Summary_Products!F52=\"\",\"\",Summary_Products!F52)","v":""},{"$f":"IF(F68=\"\",\"\",INDEX(Parameters_CNCodes!$H$4:$H$752,MATCH(F68,CNCodes_ListKey,0)))","v":""},{"$f":"IF(Summary_Products!H52=\"\",\"\",Summary_Products!H52)","v":""},{"$f":"IF(Summary_Products!I52=\"\",\"\",Summary_Products!I52)","v":""},{"$f":"IF(Summary_Products!J52=\"\",\"\",Summary_Products!J52)","v":""},{"$f":"IF(Summary_Products!K52=\"\",\"\",Summary_Products!K52)","v":""},{"$f":"IF(Summary_Products!L52=\"\",\"\",Summary_Products!L52)","v":""},{"$f":"IF(Summary_Products!M52=\"\",\"\",Summary_Products!M52)","v":""},{"$f":"IF(Summary_Products!N52=\"\",\"\",Summary_Products!N52)","v":""},{"$f":"IF(Summary_Products!O52=\"\",\"\",Summary_Products!O52)","v":""},{"$f":"IF(Summary_Products!P52=\"\",\"\",INDEX(Translations!$C:$C,MATCH(Summary_Products!P52,Translations!$B:$B,0)))","v":""},{"$f":"IF(Summary_Products!Q52=\"\",\"\",Summary_Products!Q52)","v":""},{"$f":"IF(Summary_Products!R52=\"\",\"\",Summary_Products!R52)","v":""},{"$f":"IF(Summary_Products!S52=\"\",\"\",Summary_Products!S52)","v":""},{"$f":"IF(Summary_Products!T52=\"\",\"\",Summary_Products!T52)","v":""},{"$f":"IF(Summary_Products!U52=\"\",\"\",Summary_Products!U52)","v":""},{"$f":"IF(Summary_Products!V52=\"\",\"\",Summary_Products!V52)","v":""},{"$f":"IF(Summary_Products!W52=\"\",\"\",Summary_Products!W52)","v":""},{"$f":"IF(Summary_Products!X52=\"\",\"\",Summary_Products!X52)","v":""},{"$f":"IF(Summary_Products!Y52=\"\",\"\",Summary_Products!Y52)","v":""},{"$f":"IF(Summary_Products!Z52=\"\",\"\",Summary_Products!Z52)","v":""},{"$f":"IF(Summary_Products!AA52=\"\",\"\",Summary_Products!AA52)","v":""},{"$f":"IF(Summary_Products!AB52=\"\",\"\",Summary_Products!AB52)","v":""},{"$f":"IF(Summary_Products!AC52=\"\",\"\",Summary_Products!AC52)","v":""},{"$f":"IF(Summary_Products!AD52=\"\",\"\",Summary_Products!AD52)","v":""},{"$f":"IF(Summary_Products!AE52=\"\",\"\",Summary_Products!AE52)","v":""},{"$f":"IF(Summary_Products!AF52=\"\",\"\",Summary_Products!AF52)","v":""},{"$f":"IF(Summary_Products!AG52=\"\",\"\",Summary_Products!AG52)","v":""},{"$f":"IF(Summary_Products!AH52=\"\",\"\",Summary_Products!AH52)","v":""},{"$f":"IF(Summary_Products!AI52=\"\",\"\",Summary_Products!AI52)","v":""},{"$f":"IF(Summary_Products!AJ52=\"\",\"\",Summary_Products!AJ52)","v":""},{"$f":"IF(Summary_Products!AK52=\"\",\"\",Summary_Products!AK52)","v":""},{"$f":"IF(Summary_Products!AL52=\"\",\"\",INDEX(Translations!$C:$C,MATCH(Summary_Products!AL52,Translations!$B:$B,0)))","v":""},{"$f":"IF(Summary_Products!AM52=\"\",\"\",Summary_Products!AM52)","v":""},{"$f":"IF(Summary_Products!AN52=\"\",\"\",Summary_Products!AN52)","v":""},{"$f":"IF(Summary_Products!AO52=\"\",\"\",Summary_Products!AO52)","v":""},{"$f":"IF(Summary_Products!AP52=\"\",\"\",Summary_Products!AP52)","v":""},{"$f":"IF(Summary_Products!AR52=\"\",\"\",Summary_Products!AR52)","v":""},{"$f":"IF(Summary_Products!AS52=\"\",\"\",Summary_Products!AS52)","v":""},{"$f":"IF(Summary_Products!AT52=\"\",\"\",INDEX(Translations!$C:$C,MATCH(Summary_Products!AT52,Translations!$B:$B,0)))","v":""},{"$f":"IF(Summary_Products!AU52=\"\",\"\",Summary_Products!AU52)","v":""},{"$f":"IF(Summary_Products!AV52=\"\",\"\",Summary_Products!AV52)","v":""},{"$f":"IF(Summary_Products!AW52=\"\",\"\",Summary_Products!AW52)","v":""},{"$f":"IF(Summary_Products!AX52=\"\",\"\",Summary_Products!AX52)","v":""},{"$f":"IF(Summary_Products!AY52=\"\",\"\",Summary_Products!AY52)","v":""},{"$f":"IF(Summary_Products!AZ52=\"\",\"\",Summary_Products!AZ52)","v":""},{"$f":"IF(Summary_Products!BA52=\"\",\"\",Summary_Products!BA52)","v":""}]
[null,null,44,{"$f":"IF(Summary_Products!D53=\"\",\"\",Summary_Products!D53)","v":""},{"$f":"IF(Summary_Products!E53=\"\",\"\",INDEX(Translations!$C:$C,MATCH(Summary_Products!E53,Translations!$B:$B,0)))","v":""},{"$f":"IF(Summary_Products!F53=\"\",\"\",Summary_Products!F53)","v":""},{"$f":"IF(F69=\"\",\"\",INDEX(Parameters_CNCodes!$H$4:$H$752,MATCH(F69,CNCodes_ListKey,0)))","v":""},{"$f":"IF(Summary_Products!H53=\"\",\"\",Summary_Products!H53)","v":""},{"$f":"IF(Summary_Products!I53=\"\",\"\",Summary_Products!I53)","v":""},{"$f":"IF(Summary_Products!J53=\"\",\"\",Summary_Products!J53)","v":""},{"$f":"IF(Summary_Products!K53=\"\",\"\",Summary_Products!K53)","v":""},{"$f":"IF(Summary_Products!L53=\"\",\"\",Summary_Products!L53)","v":""},{"$f":"IF(Summary_Products!M53=\"\",\"\",Summary_Products!M53)","v":""},{"$f":"IF(Summary_Products!N53=\"\",\"\",Summary_Products!N53)","v":""},{"$f":"IF(Summary_Products!O53=\"\",\"\",Summary_Products!O53)","v":""},{"$f":"IF(Summary_Products!P53=\"\",\"\",INDEX(Translations!$C:$C,MATCH(Summary_Products!P53,Translations!$B:$B,0)))","v":""},{"$f":"IF(Summary_Products!Q53=\"\",\"\",Summary_Products!Q53)","v":""},{"$f":"IF(Summary_Products!R53=\"\",\"\",Summary_Products!R53)","v":""},{"$f":"IF(Summary_Products!S53=\"\",\"\",Summary_Products!S53)","v":""},{"$f":"IF(Summary_Products!T53=\"\",\"\",Summary_Products!T53)","v":""},{"$f":"IF(Summary_Products!U53=\"\",\"\",Summary_Products!U53)","v":""},{"$f":"IF(Summary_Products!V53=\"\",\"\",Summary_Products!V53)","v":""},{"$f":"IF(Summary_Products!W53=\"\",\"\",Summary_Products!W53)","v":""},{"$f":"IF(Summary_Products!X53=\"\",\"\",Summary_Products!X53)","v":""},{"$f":"IF(Summary_Products!Y53=\"\",\"\",Summary_Products!Y53)","v":""},{"$f":"IF(Summary_Products!Z53=\"\",\"\",Summary_Products!Z53)","v":""},{"$f":"IF(Summary_Products!AA53=\"\",\"\",Summary_Products!AA53)","v":""},{"$f":"IF(Summary_Products!AB53=\"\",\"\",Summary_Products!AB53)","v":""},{"$f":"IF(Summary_Products!AC53=\"\",\"\",Summary_Products!AC53)","v":""},{"$f":"IF(Summary_Products!AD53=\"\",\"\",Summary_Products!AD53)","v":""},{"$f":"IF(Summary_Products!AE53=\"\",\"\",Summary_Products!AE53)","v":""},{"$f":"IF(Summary_Products!AF53=\"\",\"\",Summary_Products!AF53)","v":""},{"$f":"IF(Summary_Products!AG53=\"\",\"\",Summary_Products!AG53)","v":""},{"$f":"IF(Summary_Products!AH53=\"\",\"\",Summary_Products!AH53)","v":""},{"$f":"IF(Summary_Products!AI53=\"\",\"\",Summary_Products!AI53)","v":""},{"$f":"IF(Summary_Products!AJ53=\"\",\"\",Summary_Products!AJ53)","v":""},{"$f":"IF(Summary_Products!AK53=\"\",\"\",Summary_Products!AK53)","v":""},{"$f":"IF(Summary_Products!AL53=\"\",\"\",INDEX(Translations!$C:$C,MATCH(Summary_Products!AL53,Translations!$B:$B,0)))","v":""},{"$f":"IF(Summary_Products!AM53=\"\",\"\",Summary_Products!AM53)","v":""},{"$f":"IF(Summary_Products!AN53=\"\",\"\",Summary_Products!AN53)","v":""},{"$f":"IF(Summary_Products!AO53=\"\",\"\",Summary_Products!AO53)","v":""},{"$f":"IF(Summary_Products!AP53=\"\",\"\",Summary_Products!AP53)","v":""},{"$f":"IF(Summary_Products!AR53=\"\",\"\",Summary_Products!AR53)","v":""},{"$f":"IF(Summary_Products!AS53=\"\",\"\",Summary_Products!AS53)","v":""},{"$f":"IF(Summary_Products!AT53=\"\",\"\",INDEX(Translations!$C:$C,MATCH(Summary_Products!AT53,Translations!$B:$B,0)))","v":""},{"$f":"IF(Summary_Products!AU53=\"\",\"\",Summary_Products!AU53)","v":""},{"$f":"IF(Summary_Products!AV53=\"\",\"\",Summary_Products!AV53)","v":""},{"$f":"IF(Summary_Products!AW53=\"\",\"\",Summary_Products!AW53)","v":""},{"$f":"IF(Summary_Products!AX53=\"\",\"\",Summary_Products!AX53)","v":""},{"$f":"IF(Summary_Products!AY53=\"\",\"\",Summary_Products!AY53)","v":""},{"$f":"IF(Summary_Products!AZ53=\"\",\"\",Summary_Products!AZ53)","v":""},{"$f":"IF(Summary_Products!BA53=\"\",\"\",Summary_Products!BA53)","v":""}]
[null,null,45,{"$f":"IF(Summary_Products!D54=\"\",\"\",Summary_Products!D54)","v":""},{"$f":"IF(Summary_Products!E54=\"\",\"\",INDEX(Translations!$C:$C,MATCH(Summary_Products!E54,Translations!$B:$B,0)))","v":""},{"$f":"IF(Summary_Products!F54=\"\",\"\",Summary_Products!F54)","v":""},{"$f":"IF(F70=\"\",\"\",INDEX(Parameters_CNCodes!$H$4:$H$752,MATCH(F70,CNCodes_ListKey,0)))","v":""},{"$f":"IF(Summary_Products!H54=\"\",\"\",Summary_Products!H54)","v":""},{"$f":"IF(Summary_Products!I54=\"\",\"\",Summary_Products!I54)","v":""},{"$f":"IF(Summary_Products!J54=\"\",\"\",Summary_Products!J54)","v":""},{"$f":"IF(Summary_Products!K54=\"\",\"\",Summary_Products!K54)","v":""},{"$f":"IF(Summary_Products!L54=\"\",\"\",Summary_Products!L54)","v":""},{"$f":"IF(Summary_Products!M54=\"\",\"\",Summary_Products!M54)","v":""},{"$f":"IF(Summary_Products!N54=\"\",\"\",Summary_Products!N54)","v":""},{"$f":"IF(Summary_Products!O54=\"\",\"\",Summary_Products!O54)","v":""},{"$f":"IF(Summary_Products!P54=\"\",\"\",INDEX(Translations!$C:$C,MATCH(Summary_Products!P54,Translations!$B:$B,0)))","v":""},{"$f":"IF(Summary_Products!Q54=\"\",\"\",Summary_Products!Q54)","v":""},{"$f":"IF(Summary_Products!R54=\"\",\"\",Summary_Products!R54)","v":""},{"$f":"IF(Summary_Products!S54=\"\",\"\",Summary_Products!S54)","v":""},{"$f":"IF(Summary_Products!T54=\"\",\"\",Summary_Products!T54)","v":""},{"$f":"IF(Summary_Products!U54=\"\",\"\",Summary_Products!U54)","v":""},{"$f":"IF(Summary_Products!V54=\"\",\"\",Summary_Products!V54)","v":""},{"$f":"IF(Summary_Products!W54=\"\",\"\",Summary_Products!W54)","v":""},{"$f":"IF(Summary_Products!X54=\"\",\"\",Summary_Products!X54)","v":""},{"$f":"IF(Summary_Products!Y54=\"\",\"\",Summary_Products!Y54)","v":""},{"$f":"IF(Summary_Products!Z54=\"\",\"\",Summary_Products!Z54)","v":""},{"$f":"IF(Summary_Products!AA54=\"\",\"\",Summary_Products!AA54)","v":""},{"$f":"IF(Summary_Products!AB54=\"\",\"\",Summary_Products!AB54)","v":""},{"$f":"IF(Summary_Products!AC54=\"\",\"\",Summary_Products!AC54)","v":""},{"$f":"IF(Summary_Products!AD54=\"\",\"\",Summary_Products!AD54)","v":""},{"$f":"IF(Summary_Products!AE54=\"\",\"\",Summary_Products!AE54)","v":""},{"$f":"IF(Summary_Products!AF54=\"\",\"\",Summary_Products!AF54)","v":""},{"$f":"IF(Summary_Products!AG54=\"\",\"\",Summary_Products!AG54)","v":""},{"$f":"IF(Summary_Products!AH54=\"\",\"\",Summary_Products!AH54)","v":""},{"$f":"IF(Summary_Products!AI54=\"\",\"\",Summary_Products!AI54)","v":""},{"$f":"IF(Summary_Products!AJ54=\"\",\"\",Summary_Products!AJ54)","v":""},{"$f":"IF(Summary_Products!AK54=\"\",\"\",Summary_Products!AK54)","v":""},{"$f":"IF(Summary_Products!AL54=\"\",\"\",INDEX(Translations!$C:$C,MATCH(Summary_Products!AL54,Translations!$B:$B,0)))","v":""},{"$f":"IF(Summary_Products!AM54=\"\",\"\",Summary_Products!AM54)","v":""},{"$f":"IF(Summary_Products!AN54=\"\",\"\",Summary_Products!AN54)","v":""},{"$f":"IF(Summary_Products!AO54=\"\",\"\",Summary_Products!AO54)","v":""},{"$f":"IF(Summary_Products!AP54=\"\",\"\",Summary_Products!AP54)","v":""},{"$f":"IF(Summary_Products!AR54=\"\",\"\",Summary_Products!AR54)","v":""},{"$f":"IF(Summary_Products!AS54=\"\",\"\",Summary_Products!AS54)","v":""},{"$f":"IF(Summary_Products!AT54=\"\",\"\",INDEX(Translations!$C:$C,MATCH(Summary_Products!AT54,Translations!$B:$B,0)))","v":""},{"$f":"IF(Summary_Products!AU54=\"\",\"\",Summary_Products!AU54)","v":""},{"$f":"IF(Summary_Products!AV54=\"\",\"\",Summary_Products!AV54)","v":""},{"$f":"IF(Summary_Products!AW54=\"\",\"\",Summary_Products!AW54)","v":""},{"$f":"IF(Summary_Products!AX54=\"\",\"\",Summary_Products!AX54)","v":""},{"$f":"IF(Summary_Products!AY54=\"\",\"\",Summary_Products!AY54)","v":""},{"$f":"IF(Summary_Products!AZ54=\"\",\"\",Summary_Products!AZ54)","v":""},{"$f":"IF(Summary_Products!BA54=\"\",\"\",Summary_Products!BA54)","v":""}]
[null,null,46,{"$f":"IF(Summary_Products!D55=\"\",\"\",Summary_Products!D55)","v":""},{"$f":"IF(Summary_Products!E55=\"\",\"\",INDEX(Translations!$C:$C,MATCH(Summary_Products!E55,Translations!$B:$B,0)))","v":""},{"$f":"IF(Summary_Products!F55=\"\",\"\",Summary_Products!F55)","v":""},{"$f":"IF(F71=\"\",\"\",INDEX(Parameters_CNCodes!$H$4:$H$752,MATCH(F71,CNCodes_ListKey,0)))","v":""},{"$f":"IF(Summary_Products!H55=\"\",\"\",Summary_Products!H55)","v":""},{"$f":"IF(Summary_Products!I55=\"\",\"\",Summary_Products!I55)","v":""},{"$f":"IF(Summary_Products!J55=\"\",\"\",Summary_Products!J55)","v":""},{"$f":"IF(Summary_Products!K55=\"\",\"\",Summary_Products!K55)","v":""},{"$f":"IF(Summary_Products!L55=\"\",\"\",Summary_Products!L55)","v":""},{"$f":"IF(Summary_Products!M55=\"\",\"\",Summary_Products!M55)","v":""},{"$f":"IF(Summary_Products!N55=\"\",\"\",Summary_Products!N55)","v":""},{"$f":"IF(Summary_Products!O55=\"\",\"\",Summary_Products!O55)","v":""},{"$f":"IF(Summary_Products!P55=\"\",\"\",INDEX(Translations!$C:$C,MATCH(Summary_Products!P55,Translations!$B:$B,0)))","v":""},{"$f":"IF(Summary_Products!Q55=\"\",\"\",Summary_Products!Q55)","v":""},{"$f":"IF(Summary_Products!R55=\"\",\"\",Summary_Products!R55)","v":""},{"$f":"IF(Summary_Products!S55=\"\",\"\",Summary_Products!S55)","v":""},{"$f":"IF(Summary_Products!T55=\"\",\"\",Summary_Products!T55)","v":""},{"$f":"IF(Summary_Products!U55=\"\",\"\",Summary_Products!U55)","v":""},{"$f":"IF(Summary_Products!V55=\"\",\"\",Summary_Products!V55)","v":""},{"$f":"IF(Summary_Products!W55=\"\",\"\",Summary_Products!W55)","v":""},{"$f":"IF(Summary_Products!X55=\"\",\"\",Summary_Products!X55)","v":""},{"$f":"IF(Summary_Products!Y55=\"\",\"\",Summary_Products!Y55)","v":""},{"$f":"IF(Summary_Products!Z55=\"\",\"\",Summary_Products!Z55)","v":""},{"$f":"IF(Summary_Products!AA55=\"\",\"\",Summary_Products!AA55)","v":""},{"$f":"IF(Summary_Products!AB55=\"\",\"\",Summary_Products!AB55)","v":""},{"$f":"IF(Summary_Products!AC55=\"\",\"\",Summary_Products!AC55)","v":""},{"$f":"IF(Summary_Products!AD55=\"\",\"\",Summary_Products!AD55)","v":""},{"$f":"IF(Summary_Products!AE55=\"\",\"\",Summary_Products!AE55)","v":""},{"$f":"IF(Summary_Products!AF55=\"\",\"\",Summary_Products!AF55)","v":""},{"$f":"IF(Summary_Products!AG55=\"\",\"\",Summary_Products!AG55)","v":""},{"$f":"IF(Summary_Products!AH55=\"\",\"\",Summary_Products!AH55)","v":""},{"$f":"IF(Summary_Products!AI55=\"\",\"\",Summary_Products!AI55)","v":""},{"$f":"IF(Summary_Products!AJ55=\"\",\"\",Summary_Products!AJ55)","v":""},{"$f":"IF(Summary_Products!AK55=\"\",\"\",Summary_Products!AK55)","v":""},{"$f":"IF(Summary_Products!AL55=\"\",\"\",INDEX(Translations!$C:$C,MATCH(Summary_Products!AL55,Translations!$B:$B,0)))","v":""},{"$f":"IF(Summary_Products!AM55=\"\",\"\",Summary_Products!AM55)","v":""},{"$f":"IF(Summary_Products!AN55=\"\",\"\",Summary_Products!AN55)","v":""},{"$f":"IF(Summary_Products!AO55=\"\",\"\",Summary_Products!AO55)","v":""},{"$f":"IF(Summary_Products!AP55=\"\",\"\",Summary_Products!AP55)","v":""},{"$f":"IF(Summary_Products!AR55=\"\",\"\",Summary_Products!AR55)","v":""},{"$f":"IF(Summary_Products!AS55=\"\",\"\",Summary_Products!AS55)","v":""},{"$f":"IF(Summary_Products!AT55=\"\",\"\",INDEX(Translations!$C:$C,MATCH(Summary_Products!AT55,Translations!$B:$B,0)))","v":""},{"$f":"IF(Summary_Products!AU55=\"\",\"\",Summary_Products!AU55)","v":""},{"$f":"IF(Summary_Products!AV55=\"\",\"\",Summary_Products!AV55)","v":""},{"$f":"IF(Summary_Products!AW55=\"\",\"\",Summary_Products!AW55)","v":""},{"$f":"IF(Summary_Products!AX55=\"\",\"\",Summary_Products!AX55)","v":""},{"$f":"IF(Summary_Products!AY55=\"\",\"\",Summary_Products!AY55)","v":""},{"$f":"IF(Summary_Products!AZ55=\"\",\"\",Summary_Products!AZ55)","v":""},{"$f":"IF(Summary_Products!BA55=\"\",\"\",Summary_Products!BA55)","v":""}]
[null,null,47,{"$f":"IF(Summary_Products!D56=\"\",\"\",Summary_Products!D56)","v":""},{"$f":"IF(Summary_Products!E56=\"\",\"\",INDEX(Translations!$C:$C,MATCH(Summary_Products!E56,Translations!$B:$B,0)))","v":""},{"$f":"IF(Summary_Products!F56=\"\",\"\",Summary_Products!F56)","v":""},{"$f":"IF(F72=\"\",\"\",INDEX(Parameters_CNCodes!$H$4:$H$752,MATCH(F72,CNCodes_ListKey,0)))","v":""},{"$f":"IF(Summary_Products!H56=\"\",\"\",Summary_Products!H56)","v":""},{"$f":"IF(Summary_Products!I56=\"\",\"\",Summary_Products!I56)","v":""},{"$f":"IF(Summary_Products!J56=\"\",\"\",Summary_Products!J56)","v":""},{"$f":"IF(Summary_Products!K56=\"\",\"\",Summary_Products!K56)","v":""},{"$f":"IF(Summary_Products!L56=\"\",\"\",Summary_Products!L56)","v":""},{"$f":"IF(Summary_Products!M56=\"\",\"\",Summary_Products!M56)","v":""},{"$f":"IF(Summary_Products!N56=\"\",\"\",Summary_Products!N56)","v":""},{"$f":"IF(Summary_Products!O56=\"\",\"\",Summary_Products!O56)","v":""},{"$f":"IF(Summary_Products!P56=\"\",\"\",INDEX(Translations!$C:$C,MATCH(Summary_Products!P56,Translations!$B:$B,0)))","v":""},{"$f":"IF(Summary_Products!Q56=\"\",\"\",Summary_Products!Q56)","v":""},{"$f":"IF(Summary_Products!R56=\"\",\"\",Summary_Products!R56)","v":""},{"$f":"IF(Summary_Products!S56=\"\",\"\",Summary_Products!S56)","v":""},{"$f":"IF(Summary_Products!T56=\"\",\"\",Summary_Products!T56)","v":""},{"$f":"IF(Summary_Products!U56=\"\",\"\",Summary_Products!U56)","v":""},{"$f":"IF(Summary_Products!V56=\"\",\"\",Summary_Products!V56)","v":""},{"$f":"IF(Summary_Products!W56=\"\",\"\",Summary_Products!W56)","v":""},{"$f":"IF(Summary_Products!X56=\"\",\"\",Summary_Products!X56)","v":""},{"$f":"IF(Summary_Products!Y56=\"\",\"\",Summary_Products!Y56)","v":""},{"$f":"IF(Summary_Products!Z56=\"\",\"\",Summary_Products!Z56)","v":""},{"$f":"IF(Summary_Products!AA56=\"\",\"\",Summary_Products!AA56)","v":""},{"$f":"IF(Summary_Products!AB56=\"\",\"\",Summary_Products!AB56)","v":""},{"$f":"IF(Summary_Products!AC56=\"\",\"\",Summary_Products!AC56)","v":""},{"$f":"IF(Summary_Products!AD56=\"\",\"\",Summary_Products!AD56)","v":""},{"$f":"IF(Summary_Products!AE56=\"\",\"\",Summary_Products!AE56)","v":""},{"$f":"IF(Summary_Products!AF56=\"\",\"\",Summary_Products!AF56)","v":""},{"$f":"IF(Summary_Products!AG56=\"\",\"\",Summary_Products!AG56)","v":""},{"$f":"IF(Summary_Products!AH56=\"\",\"\",Summary_Products!AH56)","v":""},{"$f":"IF(Summary_Products!AI56=\"\",\"\",Summary_Products!AI56)","v":""},{"$f":"IF(Summary_Products!AJ56=\"\",\"\",Summary_Products!AJ56)","v":""},{"$f":"IF(Summary_Products!AK56=\"\",\"\",Summary_Products!AK56)","v":""},{"$f":"IF(Summary_Products!AL56=\"\",\"\",INDEX(Translations!$C:$C,MATCH(Summary_Products!AL56,Translations!$B:$B,0)))","v":""},{"$f":"IF(Summary_Products!AM56=\"\",\"\",Summary_Products!AM56)","v":""},{"$f":"IF(Summary_Products!AN56=\"\",\"\",Summary_Products!AN56)","v":""},{"$f":"IF(Summary_Products!AO56=\"\",\"\",Summary_Products!AO56)","v":""},{"$f":"IF(Summary_Products!AP56=\"\",\"\",Summary_Products!AP56)","v":""},{"$f":"IF(Summary_Products!AR56=\"\",\"\",Summary_Products!AR56)","v":""},{"$f":"IF(Summary_Products!AS56=\"\",\"\",Summary_Products!AS56)","v":""},{"$f":"IF(Summary_Products!AT56=\"\",\"\",INDEX(Translations!$C:$C,MATCH(Summary_Products!AT56,Translations!$B:$B,0)))","v":""},{"$f":"IF(Summary_Products!AU56=\"\",\"\",Summary_Products!AU56)","v":""},{"$f":"IF(Summary_Products!AV56=\"\",\"\",Summary_Products!AV56)","v":""},{"$f":"IF(Summary_Products!AW56=\"\",\"\",Summary_Products!AW56)","v":""},{"$f":"IF(Summary_Products!AX56=\"\",\"\",Summary_Products!AX56)","v":""},{"$f":"IF(Summary_Products!AY56=\"\",\"\",Summary_Products!AY56)","v":""},{"$f":"IF(Summary_Products!AZ56=\"\",\"\",Summary_Products!AZ56)","v":""},{"$f":"IF(Summary_Products!BA56=\"\",\"\",Summary_Products!BA56)","v":""}]
[null,null,48,{"$f":"IF(Summary_Products!D57=\"\",\"\",Summary_Products!D57)","v":""},{"$f":"IF(Summary_Products!E57=\"\",\"\",INDEX(Translations!$C:$C,MATCH(Summary_Products!E57,Translations!$B:$B,0)))","v":""},{"$f":"IF(Summary_Products!F57=\"\",\"\",Summary_Products!F57)","v":""},{"$f":"IF(F73=\"\",\"\",INDEX(Parameters_CNCodes!$H$4:$H$752,MATCH(F73,CNCodes_ListKey,0)))","v":""},{"$f":"IF(Summary_Products!H57=\"\",\"\",Summary_Products!H57)","v":""},{"$f":"IF(Summary_Products!I57=\"\",\"\",Summary_Products!I57)","v":""},{"$f":"IF(Summary_Products!J57=\"\",\"\",Summary_Products!J57)","v":""},{"$f":"IF(Summary_Products!K57=\"\",\"\",Summary_Products!K57)","v":""},{"$f":"IF(Summary_Products!L57=\"\",\"\",Summary_Products!L57)","v":""},{"$f":"IF(Summary_Products!M57=\"\",\"\",Summary_Products!M57)","v":""},{"$f":"IF(Summary_Products!N57=\"\",\"\",Summary_Products!N57)","v":""},{"$f":"IF(Summary_Products!O57=\"\",\"\",Summary_Products!O57)","v":""},{"$f":"IF(Summary_Products!P57=\"\",\"\",INDEX(Translations!$C:$C,MATCH(Summary_Products!P57,Translations!$B:$B,0)))","v":""},{"$f":"IF(Summary_Products!Q57=\"\",\"\",Summary_Products!Q57)","v":""},{"$f":"IF(Summary_Products!R57=\"\",\"\",Summary_Products!R57)","v":""},{"$f":"IF(Summary_Products!S57=\"\",\"\",Summary_Products!S57)","v":""},{"$f":"IF(Summary_Products!T57=\"\",\"\",Summary_Products!T57)","v":""},{"$f":"IF(Summary_Products!U57=\"\",\"\",Summary_Products!U57)","v":""},{"$f":"IF(Summary_Products!V57=\"\",\"\",Summary_Products!V57)","v":""},{"$f":"IF(Summary_Products!W57=\"\",\"\",Summary_Products!W57)","v":""},{"$f":"IF(Summary_Products!X57=\"\",\"\",Summary_Products!X57)","v":""},{"$f":"IF(Summary_Products!Y57=\"\",\"\",Summary_Products!Y57)","v":""},{"$f":"IF(Summary_Products!Z57=\"\",\"\",Summary_Products!Z57)","v":""},{"$f":"IF(Summary_Products!AA57=\"\",\"\",Summary_Products!AA57)","v":""},{"$f":"IF(Summary_Products!AB57=\"\",\"\",Summary_Products!AB57)","v":""},{"$f":"IF(Summary_Products!AC57=\"\",\"\",Summary_Products!AC57)","v":""},{"$f":"IF(Summary_Products!AD57=\"\",\"\",Summary_Products!AD57)","v":""},{"$f":"IF(Summary_Products!AE57=\"\",\"\",Summary_Products!AE57)","v":""},{"$f":"IF(Summary_Products!AF57=\"\",\"\",Summary_Products!AF57)","v":""},{"$f":"IF(Summary_Products!AG57=\"\",\"\",Summary_Products!AG57)","v":""},{"$f":"IF(Summary_Products!AH57=\"\",\"\",Summary_Products!AH57)","v":""},{"$f":"IF(Summary_Products!AI57=\"\",\"\",Summary_Products!AI57)","v":""},{"$f":"IF(Summary_Products!AJ57=\"\",\"\",Summary_Products!AJ57)","v":""},{"$f":"IF(Summary_Products!AK57=\"\",\"\",Summary_Products!AK57)","v":""},{"$f":"IF(Summary_Products!AL57=\"\",\"\",INDEX(Translations!$C:$C,MATCH(Summary_Products!AL57,Translations!$B:$B,0)))","v":""},{"$f":"IF(Summary_Products!AM57=\"\",\"\",Summary_Products!AM57)","v":""},{"$f":"IF(Summary_Products!AN57=\"\",\"\",Summary_Products!AN57)","v":""},{"$f":"IF(Summary_Products!AO57=\"\",\"\",Summary_Products!AO57)","v":""},{"$f":"IF(Summary_Products!AP57=\"\",\"\",Summary_Products!AP57)","v":""},{"$f":"IF(Summary_Products!AR57=\"\",\"\",Summary_Products!AR57)","v":""},{"$f":"IF(Summary_Products!AS57=\"\",\"\",Summary_Products!AS57)","v":""},{"$f":"IF(Summary_Products!AT57=\"\",\"\",INDEX(Translations!$C:$C,MATCH(Summary_Products!AT57,Translations!$B:$B,0)))","v":""},{"$f":"IF(Summary_Products!AU57=\"\",\"\",Summary_Products!AU57)","v":""},{"$f":"IF(Summary_Products!AV57=\"\",\"\",Summary_Products!AV57)","v":""},{"$f":"IF(Summary_Products!AW57=\"\",\"\",Summary_Products!AW57)","v":""},{"$f":"IF(Summary_Products!AX57=\"\",\"\",Summary_Products!AX57)","v":""},{"$f":"IF(Summary_Products!AY57=\"\",\"\",Summary_Products!AY57)","v":""},{"$f":"IF(Summary_Products!AZ57=\"\",\"\",Summary_Products!AZ57)","v":""},{"$f":"IF(Summary_Products!BA57=\"\",\"\",Summary_Products!BA57)","v":""}]
[null,null,49,{"$f":"IF(Summary_Products!D58=\"\",\"\",Summary_Products!D58)","v":""},{"$f":"IF(Summary_Products!E58=\"\",\"\",INDEX(Translations!$C:$C,MATCH(Summary_Products!E58,Translations!$B:$B,0)))","v":""},{"$f":"IF(Summary_Products!F58=\"\",\"\",Summary_Products!F58)","v":""},{"$f":"IF(F74=\"\",\"\",INDEX(Parameters_CNCodes!$H$4:$H$752,MATCH(F74,CNCodes_ListKey,0)))","v":""},{"$f":"IF(Summary_Products!H58=\"\",\"\",Summary_Products!H58)","v":""},{"$f":"IF(Summary_Products!I58=\"\",\"\",Summary_Products!I58)","v":""},{"$f":"IF(Summary_Products!J58=\"\",\"\",Summary_Products!J58)","v":""},{"$f":"IF(Summary_Products!K58=\"\",\"\",Summary_Products!K58)","v":""},{"$f":"IF(Summary_Products!L58=\"\",\"\",Summary_Products!L58)","v":""},{"$f":"IF(Summary_Products!M58=\"\",\"\",Summary_Products!M58)","v":""},{"$f":"IF(Summary_Products!N58=\"\",\"\",Summary_Products!N58)","v":""},{"$f":"IF(Summary_Products!O58=\"\",\"\",Summary_Products!O58)","v":""},{"$f":"IF(Summary_Products!P58=\"\",\"\",INDEX(Translations!$C:$C,MATCH(Summary_Products!P58,Translations!$B:$B,0)))","v":""},{"$f":"IF(Summary_Products!Q58=\"\",\"\",Summary_Products!Q58)","v":""},{"$f":"IF(Summary_Products!R58=\"\",\"\",Summary_Products!R58)","v":""},{"$f":"IF(Summary_Products!S58=\"\",\"\",Summary_Products!S58)","v":""},{"$f":"IF(Summary_Products!T58=\"\",\"\",Summary_Products!T58)","v":""},{"$f":"IF(Summary_Products!U58=\"\",\"\",Summary_Products!U58)","v":""},{"$f":"IF(Summary_Products!V58=\"\",\"\",Summary_Products!V58)","v":""},{"$f":"IF(Summary_Products!W58=\"\",\"\",Summary_Products!W58)","v":""},{"$f":"IF(Summary_Products!X58=\"\",\"\",Summary_Products!X58)","v":""},{"$f":"IF(Summary_Products!Y58=\"\",\"\",Summary_Products!Y58)","v":""},{"$f":"IF(Summary_Products!Z58=\"\",\"\",Summary_Products!Z58)","v":""},{"$f":"IF(Summary_Products!AA58=\"\",\"\",Summary_Products!AA58)","v":""},{"$f":"IF(Summary_Products!AB58=\"\",\"\",Summary_Products!AB58)","v":""},{"$f":"IF(Summary_Products!AC58=\"\",\"\",Summary_Products!AC58)","v":""},{"$f":"IF(Summary_Products!AD58=\"\",\"\",Summary_Products!AD58)","v":""},{"$f":"IF(Summary_Products!AE58=\"\",\"\",Summary_Products!AE58)","v":""},{"$f":"IF(Summary_Products!AF58=\"\",\"\",Summary_Products!AF58)","v":""},{"$f":"IF(Summary_Products!AG58=\"\",\"\",Summary_Products!AG58)","v":""},{"$f":"IF(Summary_Products!AH58=\"\",\"\",Summary_Products!AH58)","v":""},{"$f":"IF(Summary_Products!AI58=\"\",\"\",Summary_Products!AI58)","v":""},{"$f":"IF(Summary_Products!AJ58=\"\",\"\",Summary_Products!AJ58)","v":""},{"$f":"IF(Summary_Products!AK58=\"\",\"\",Summary_Products!AK58)","v":""},{"$f":"IF(Summary_Products!AL58=\"\",\"\",INDEX(Translations!$C:$C,MATCH(Summary_Products!AL58,Translations!$B:$B,0)))","v":""},{"$f":"IF(Summary_Products!AM58=\"\",\"\",Summary_Products!AM58)","v":""},{"$f":"IF(Summary_Products!AN58=\"\",\"\",Summary_Products!AN58)","v":""},{"$f":"IF(Summary_Products!AO58=\"\",\"\",Summary_Products!AO58)","v":""},{"$f":"IF(Summary_Products!AP58=\"\",\"\",Summary_Products!AP58)","v":""},{"$f":"IF(Summary_Products!AR58=\"\",\"\",Summary_Products!AR58)","v":""},{"$f":"IF(Summary_Products!AS58=\"\",\"\",Summary_Products!AS58)","v":""},{"$f":"IF(Summary_Products!AT58=\"\",\"\",INDEX(Translations!$C:$C,MATCH(Summary_Products!AT58,Translations!$B:$B,0)))","v":""},{"$f":"IF(Summary_Products!AU58=\"\",\"\",Summary_Products!AU58)","v":""},{"$f":"IF(Summary_Products!AV58=\"\",\"\",Summary_Products!AV58)","v":""},{"$f":"IF(Summary_Products!AW58=\"\",\"\",Summary_Products!AW58)","v":""},{"$f":"IF(Summary_Products!AX58=\"\",\"\",Summary_Products!AX58)","v":""},{"$f":"IF(Summary_Products!AY58=\"\",\"\",Summary_Products!AY58)","v":""},{"$f":"IF(Summary_Products!AZ58=\"\",\"\",Summary_Products!AZ58)","v":""},{"$f":"IF(Summary_Products!BA58=\"\",\"\",Summary_Products!BA58)","v":""}]
[null,null,50,{"$f":"IF(Summary_Products!D59=\"\",\"\",Summary_Products!D59)","v":""},{"$f":"IF(Summary_Products!E59=\"\",\"\",INDEX(Translations!$C:$C,MATCH(Summary_Products!E59,Translations!$B:$B,0)))","v":""},{"$f":"IF(Summary_Products!F59=\"\",\"\",Summary_Products!F59)","v":""},{"$f":"IF(F75=\"\",\"\",INDEX(Parameters_CNCodes!$H$4:$H$752,MATCH(F75,CNCodes_ListKey,0)))","v":""},{"$f":"IF(Summary_Products!H59=\"\",\"\",Summary_Products!H59)","v":""},{"$f":"IF(Summary_Products!I59=\"\",\"\",Summary_Products!I59)","v":""},{"$f":"IF(Summary_Products!J59=\"\",\"\",Summary_Products!J59)","v":""},{"$f":"IF(Summary_Products!K59=\"\",\"\",Summary_Products!K59)","v":""},{"$f":"IF(Summary_Products!L59=\"\",\"\",Summary_Products!L59)","v":""},{"$f":"IF(Summary_Products!M59=\"\",\"\",Summary_Products!M59)","v":""},{"$f":"IF(Summary_Products!N59=\"\",\"\",Summary_Products!N59)","v":""},{"$f":"IF(Summary_Products!O59=\"\",\"\",Summary_Products!O59)","v":""},{"$f":"IF(Summary_Products!P59=\"\",\"\",INDEX(Translations!$C:$C,MATCH(Summary_Products!P59,Translations!$B:$B,0)))","v":""},{"$f":"IF(Summary_Products!Q59=\"\",\"\",Summary_Products!Q59)","v":""},{"$f":"IF(Summary_Products!R59=\"\",\"\",Summary_Products!R59)","v":""},{"$f":"IF(Summary_Products!S59=\"\",\"\",Summary_Products!S59)","v":""},{"$f":"IF(Summary_Products!T59=\"\",\"\",Summary_Products!T59)","v":""},{"$f":"IF(Summary_Products!U59=\"\",\"\",Summary_Products!U59)","v":""},{"$f":"IF(Summary_Products!V59=\"\",\"\",Summary_Products!V59)","v":""},{"$f":"IF(Summary_Products!W59=\"\",\"\",Summary_Products!W59)","v":""},{"$f":"IF(Summary_Products!X59=\"\",\"\",Summary_Products!X59)","v":""},{"$f":"IF(Summary_Products!Y59=\"\",\"\",Summary_Products!Y59)","v":""},{"$f":"IF(Summary_Products!Z59=\"\",\"\",Summary_Products!Z59)","v":""},{"$f":"IF(Summary_Products!AA59=\"\",\"\",Summary_Products!AA59)","v":""},{"$f":"IF(Summary_Products!AB59=\"\",\"\",Summary_Products!AB59)","v":""},{"$f":"IF(Summary_Products!AC59=\"\",\"\",Summary_Products!AC59)","v":""},{"$f":"IF(Summary_Products!AD59=\"\",\"\",Summary_Products!AD59)","v":""},{"$f":"IF(Summary_Products!AE59=\"\",\"\",Summary_Products!AE59)","v":""},{"$f":"IF(Summary_Products!AF59=\"\",\"\",Summary_Products!AF59)","v":""},{"$f":"IF(Summary_Products!AG59=\"\",\"\",Summary_Products!AG59)","v":""},{"$f":"IF(Summary_Products!AH59=\"\",\"\",Summary_Products!AH59)","v":""},{"$f":"IF(Summary_Products!AI59=\"\",\"\",Summary_Products!AI59)","v":""},{"$f":"IF(Summary_Products!AJ59=\"\",\"\",Summary_Products!AJ59)","v":""},{"$f":"IF(Summary_Products!AK59=\"\",\"\",Summary_Products!AK59)","v":""},{"$f":"IF(Summary_Products!AL59=\"\",\"\",INDEX(Translations!$C:$C,MATCH(Summary_Products!AL59,Translations!$B:$B,0)))","v":""},{"$f":"IF(Summary_Products!AM59=\"\",\"\",Summary_Products!AM59)","v":""},{"$f":"IF(Summary_Products!AN59=\"\",\"\",Summary_Products!AN59)","v":""},{"$f":"IF(Summary_Products!AO59=\"\",\"\",Summary_Products!AO59)","v":""},{"$f":"IF(Summary_Products!AP59=\"\",\"\",Summary_Products!AP59)","v":""},{"$f":"IF(Summary_Products!AR59=\"\",\"\",Summary_Products!AR59)","v":""},{"$f":"IF(Summary_Products!AS59=\"\",\"\",Summary_Products!AS59)","v":""},{"$f":"IF(Summary_Products!AT59=\"\",\"\",INDEX(Translations!$C:$C,MATCH(Summary_Products!AT59,Translations!$B:$B,0)))","v":""},{"$f":"IF(Summary_Products!AU59=\"\",\"\",Summary_Products!AU59)","v":""},{"$f":"IF(Summary_Products!AV59=\"\",\"\",Summary_Products!AV59)","v":""},{"$f":"IF(Summary_Products!AW59=\"\",\"\",Summary_Products!AW59)","v":""},{"$f":"IF(Summary_Products!AX59=\"\",\"\",Summary_Products!AX59)","v":""},{"$f":"IF(Summary_Products!AY59=\"\",\"\",Summary_Products!AY59)","v":""},{"$f":"IF(Summary_Products!AZ59=\"\",\"\",Summary_Products!AZ59)","v":""},{"$f":"IF(Summary_Products!BA59=\"\",\"\",Summary_Products!BA59)","v":""}]
[null,null,51,{"$f":"IF(Summary_Products!D60=\"\",\"\",Summary_Products!D60)","v":""},{"$f":"IF(Summary_Products!E60=\"\",\"\",INDEX(Translations!$C:$C,MATCH(Summary_Products!E60,Translations!$B:$B,0)))","v":""},{"$f":"IF(Summary_Products!F60=\"\",\"\",Summary_Products!F60)","v":""},{"$f":"IF(F76=\"\",\"\",INDEX(Parameters_CNCodes!$H$4:$H$752,MATCH(F76,CNCodes_ListKey,0)))","v":""},{"$f":"IF(Summary_Products!H60=\"\",\"\",Summary_Products!H60)","v":""},{"$f":"IF(Summary_Products!I60=\"\",\"\",Summary_Products!I60)","v":""},{"$f":"IF(Summary_Products!J60=\"\",\"\",Summary_Products!J60)","v":""},{"$f":"IF(Summary_Products!K60=\"\",\"\",Summary_Products!K60)","v":""},{"$f":"IF(Summary_Products!L60=\"\",\"\",Summary_Products!L60)","v":""},{"$f":"IF(Summary_Products!M60=\"\",\"\",Summary_Products!M60)","v":""},{"$f":"IF(Summary_Products!N60=\"\",\"\",Summary_Products!N60)","v":""},{"$f":"IF(Summary_Products!O60=\"\",\"\",Summary_Products!O60)","v":""},{"$f":"IF(Summary_Products!P60=\"\",\"\",INDEX(Translations!$C:$C,MATCH(Summary_Products!P60,Translations!$B:$B,0)))","v":""},{"$f":"IF(Summary_Products!Q60=\"\",\"\",Summary_Products!Q60)","v":""},{"$f":"IF(Summary_Products!R60=\"\",\"\",Summary_Products!R60)","v":""},{"$f":"IF(Summary_Products!S60=\"\",\"\",Summary_Products!S60)","v":""},{"$f":"IF(Summary_Products!T60=\"\",\"\",Summary_Products!T60)","v":""},{"$f":"IF(Summary_Products!U60=\"\",\"\",Summary_Products!U60)","v":""},{"$f":"IF(Summary_Products!V60=\"\",\"\",Summary_Products!V60)","v":""},{"$f":"IF(Summary_Products!W60=\"\",\"\",Summary_Products!W60)","v":""},{"$f":"IF(Summary_Products!X60=\"\",\"\",Summary_Products!X60)","v":""},{"$f":"IF(Summary_Products!Y60=\"\",\"\",Summary_Products!Y60)","v":""},{"$f":"IF(Summary_Products!Z60=\"\",\"\",Summary_Products!Z60)","v":""},{"$f":"IF(Summary_Products!AA60=\"\",\"\",Summary_Products!AA60)","v":""},{"$f":"IF(Summary_Products!AB60=\"\",\"\",Summary_Products!AB60)","v":""},{"$f":"IF(Summary_Products!AC60=\"\",\"\",Summary_Products!AC60)","v":""},{"$f":"IF(Summary_Products!AD60=\"\",\"\",Summary_Products!AD60)","v":""},{"$f":"IF(Summary_Products!AE60=\"\",\"\",Summary_Products!AE60)","v":""},{"$f":"IF(Summary_Products!AF60=\"\",\"\",Summary_Products!AF60)","v":""},{"$f":"IF(Summary_Products!AG60=\"\",\"\",Summary_Products!AG60)","v":""},{"$f":"IF(Summary_Products!AH60=\"\",\"\",Summary_Products!AH60)","v":""},{"$f":"IF(Summary_Products!AI60=\"\",\"\",Summary_Products!AI60)","v":""},{"$f":"IF(Summary_Products!AJ60=\"\",\"\",Summary_Products!AJ60)","v":""},{"$f":"IF(Summary_Products!AK60=\"\",\"\",Summary_Products!AK60)","v":""},{"$f":"IF(Summary_Products!AL60=\"\",\"\",INDEX(Translations!$C:$C,MATCH(Summary_Products!AL60,Translations!$B:$B,0)))","v":""},{"$f":"IF(Summary_Products!AM60=\"\",\"\",Summary_Products!AM60)","v":""},{"$f":"IF(Summary_Products!AN60=\"\",\"\",Summary_Products!AN60)","v":""},{"$f":"IF(Summary_Products!AO60=\"\",\"\",Summary_Products!AO60)","v":""},{"$f":"IF(Summary_Products!AP60=\"\",\"\",Summary_Products!AP60)","v":""},{"$f":"IF(Summary_Products!AR60=\"\",\"\",Summary_Products!AR60)","v":""},{"$f":"IF(Summary_Products!AS60=\"\",\"\",Summary_Products!AS60)","v":""},{"$f":"IF(Summary_Products!AT60=\"\",\"\",INDEX(Translations!$C:$C,MATCH(Summary_Products!AT60,Translations!$B:$B,0)))","v":""},{"$f":"IF(Summary_Products!AU60=\"\",\"\",Summary_Products!AU60)","v":""},{"$f":"IF(Summary_Products!AV60=\"\",\"\",Summary_Products!AV60)","v":""},{"$f":"IF(Summary_Products!AW60=\"\",\"\",Summary_Products!AW60)","v":""},{"$f":"IF(Summary_Products!AX60=\"\",\"\",Summary_Products!AX60)","v":""},{"$f":"IF(Summary_Products!AY60=\"\",\"\",Summary_Products!AY60)","v":""},{"$f":"IF(Summary_Products!AZ60=\"\",\"\",Summary_Products!AZ60)","v":""},{"$f":"IF(Summary_Products!BA60=\"\",\"\",Summary_Products!BA60)","v":""}]
[null,null,52,{"$f":"IF(Summary_Products!D61=\"\",\"\",Summary_Products!D61)","v":""},{"$f":"IF(Summary_Products!E61=\"\",\"\",INDEX(Translations!$C:$C,MATCH(Summary_Products!E61,Translations!$B:$B,0)))","v":""},{"$f":"IF(Summary_Products!F61=\"\",\"\",Summary_Products!F61)","v":""},{"$f":"IF(F77=\"\",\"\",INDEX(Parameters_CNCodes!$H$4:$H$752,MATCH(F77,CNCodes_ListKey,0)))","v":""},{"$f":"IF(Summary_Products!H61=\"\",\"\",Summary_Products!H61)","v":""},{"$f":"IF(Summary_Products!I61=\"\",\"\",Summary_Products!I61)","v":""},{"$f":"IF(Summary_Products!J61=\"\",\"\",Summary_Products!J61)","v":""},{"$f":"IF(Summary_Products!K61=\"\",\"\",Summary_Products!K61)","v":""},{"$f":"IF(Summary_Products!L61=\"\",\"\",Summary_Products!L61)","v":""},{"$f":"IF(Summary_Products!M61=\"\",\"\",Summary_Products!M61)","v":""},{"$f":"IF(Summary_Products!N61=\"\",\"\",Summary_Products!N61)","v":""},{"$f":"IF(Summary_Products!O61=\"\",\"\",Summary_Products!O61)","v":""},{"$f":"IF(Summary_Products!P61=\"\",\"\",INDEX(Translations!$C:$C,MATCH(Summary_Products!P61,Translations!$B:$B,0)))","v":""},{"$f":"IF(Summary_Products!Q61=\"\",\"\",Summary_Products!Q61)","v":""},{"$f":"IF(Summary_Products!R61=\"\",\"\",Summary_Products!R61)","v":""},{"$f":"IF(Summary_Products!S61=\"\",\"\",Summary_Products!S61)","v":""},{"$f":"IF(Summary_Products!T61=\"\",\"\",Summary_Products!T61)","v":""},{"$f":"IF(Summary_Products!U61=\"\",\"\",Summary_Products!U61)","v":""},{"$f":"IF(Summary_Products!V61=\"\",\"\",Summary_Products!V61)","v":""},{"$f":"IF(Summary_Products!W61=\"\",\"\",Summary_Products!W61)","v":""},{"$f":"IF(Summary_Products!X61=\"\",\"\",Summary_Products!X61)","v":""},{"$f":"IF(Summary_Products!Y61=\"\",\"\",Summary_Products!Y61)","v":""},{"$f":"IF(Summary_Products!Z61=\"\",\"\",Summary_Products!Z61)","v":""},{"$f":"IF(Summary_Products!AA61=\"\",\"\",Summary_Products!AA61)","v":""},{"$f":"IF(Summary_Products!AB61=\"\",\"\",Summary_Products!AB61)","v":""},{"$f":"IF(Summary_Products!AC61=\"\",\"\",Summary_Products!AC61)","v":""},{"$f":"IF(Summary_Products!AD61=\"\",\"\",Summary_Products!AD61)","v":""},{"$f":"IF(Summary_Products!AE61=\"\",\"\",Summary_Products!AE61)","v":""},{"$f":"IF(Summary_Products!AF61=\"\",\"\",Summary_Products!AF61)","v":""},{"$f":"IF(Summary_Products!AG61=\"\",\"\",Summary_Products!AG61)","v":""},{"$f":"IF(Summary_Products!AH61=\"\",\"\",Summary_Products!AH61)","v":""},{"$f":"IF(Summary_Products!AI61=\"\",\"\",Summary_Products!AI61)","v":""},{"$f":"IF(Summary_Products!AJ61=\"\",\"\",Summary_Products!AJ61)","v":""},{"$f":"IF(Summary_Products!AK61=\"\",\"\",Summary_Products!AK61)","v":""},{"$f":"IF(Summary_Products!AL61=\"\",\"\",INDEX(Translations!$C:$C,MATCH(Summary_Products!AL61,Translations!$B:$B,0)))","v":""},{"$f":"IF(Summary_Products!AM61=\"\",\"\",Summary_Products!AM61)","v":""},{"$f":"IF(Summary_Products!AN61=\"\",\"\",Summary_Products!AN61)","v":""},{"$f":"IF(Summary_Products!AO61=\"\",\"\",Summary_Products!AO61)","v":""},{"$f":"IF(Summary_Products!AP61=\"\",\"\",Summary_Products!AP61)","v":""},{"$f":"IF(Summary_Products!AR61=\"\",\"\",Summary_Products!AR61)","v":""},{"$f":"IF(Summary_Products!AS61=\"\",\"\",Summary_Products!AS61)","v":""},{"$f":"IF(Summary_Products!AT61=\"\",\"\",INDEX(Translations!$C:$C,MATCH(Summary_Products!AT61,Translations!$B:$B,0)))","v":""},{"$f":"IF(Summary_Products!AU61=\"\",\"\",Summary_Products!AU61)","v":""},{"$f":"IF(Summary_Products!AV61=\"\",\"\",Summary_Products!AV61)","v":""},{"$f":"IF(Summary_Products!AW61=\"\",\"\",Summary_Products!AW61)","v":""},{"$f":"IF(Summary_Products!AX61=\"\",\"\",Summary_Products!AX61)","v":""},{"$f":"IF(Summary_Products!AY61=\"\",\"\",Summary_Products!AY61)","v":""},{"$f":"IF(Summary_Products!AZ61=\"\",\"\",Summary_Products!AZ61)","v":""},{"$f":"IF(Summary_Products!BA61=\"\",\"\",Summary_Products!BA61)","v":""}]
[null,null,53,{"$f":"IF(Summary_Products!D62=\"\",\"\",Summary_Products!D62)","v":""},{"$f":"IF(Summary_Products!E62=\"\",\"\",INDEX(Translations!$C:$C,MATCH(Summary_Products!E62,Translations!$B:$B,0)))","v":""},{"$f":"IF(Summary_Products!F62=\"\",\"\",Summary_Products!F62)","v":""},{"$f":"IF(F78=\"\",\"\",INDEX(Parameters_CNCodes!$H$4:$H$752,MATCH(F78,CNCodes_ListKey,0)))","v":""},{"$f":"IF(Summary_Products!H62=\"\",\"\",Summary_Products!H62)","v":""},{"$f":"IF(Summary_Products!I62=\"\",\"\",Summary_Products!I62)","v":""},{"$f":"IF(Summary_Products!J62=\"\",\"\",Summary_Products!J62)","v":""},{"$f":"IF(Summary_Products!K62=\"\",\"\",Summary_Products!K62)","v":""},{"$f":"IF(Summary_Products!L62=\"\",\"\",Summary_Products!L62)","v":""},{"$f":"IF(Summary_Products!M62=\"\",\"\",Summary_Products!M62)","v":""},{"$f":"IF(Summary_Products!N62=\"\",\"\",Summary_Products!N62)","v":""},{"$f":"IF(Summary_Products!O62=\"\",\"\",Summary_Products!O62)","v":""},{"$f":"IF(Summary_Products!P62=\"\",\"\",INDEX(Translations!$C:$C,MATCH(Summary_Products!P62,Translations!$B:$B,0)))","v":""},{"$f":"IF(Summary_Products!Q62=\"\",\"\",Summary_Products!Q62)","v":""},{"$f":"IF(Summary_Products!R62=\"\",\"\",Summary_Products!R62)","v":""},{"$f":"IF(Summary_Products!S62=\"\",\"\",Summary_Products!S62)","v":""},{"$f":"IF(Summary_Products!T62=\"\",\"\",Summary_Products!T62)","v":""},{"$f":"IF(Summary_Products!U62=\"\",\"\",Summary_Products!U62)","v":""},{"$f":"IF(Summary_Products!V62=\"\",\"\",Summary_Products!V62)","v":""},{"$f":"IF(Summary_Products!W62=\"\",\"\",Summary_Products!W62)","v":""},{"$f":"IF(Summary_Products!X62=\"\",\"\",Summary_Products!X62)","v":""},{"$f":"IF(Summary_Products!Y62=\"\",\"\",Summary_Products!Y62)","v":""},{"$f":"IF(Summary_Products!Z62=\"\",\"\",Summary_Products!Z62)","v":""},{"$f":"IF(Summary_Products!AA62=\"\",\"\",Summary_Products!AA62)","v":""},{"$f":"IF(Summary_Products!AB62=\"\",\"\",Summary_Products!AB62)","v":""},{"$f":"IF(Summary_Products!AC62=\"\",\"\",Summary_Products!AC62)","v":""},{"$f":"IF(Summary_Products!AD62=\"\",\"\",Summary_Products!AD62)","v":""},{"$f":"IF(Summary_Products!AE62=\"\",\"\",Summary_Products!AE62)","v":""},{"$f":"IF(Summary_Products!AF62=\"\",\"\",Summary_Products!AF62)","v":""},{"$f":"IF(Summary_Products!AG62=\"\",\"\",Summary_Products!AG62)","v":""},{"$f":"IF(Summary_Products!AH62=\"\",\"\",Summary_Products!AH62)","v":""},{"$f":"IF(Summary_Products!AI62=\"\",\"\",Summary_Products!AI62)","v":""},{"$f":"IF(Summary_Products!AJ62=\"\",\"\",Summary_Products!AJ62)","v":""},{"$f":"IF(Summary_Products!AK62=\"\",\"\",Summary_Products!AK62)","v":""},{"$f":"IF(Summary_Products!AL62=\"\",\"\",INDEX(Translations!$C:$C,MATCH(Summary_Products!AL62,Translations!$B:$B,0)))","v":""},{"$f":"IF(Summary_Products!AM62=\"\",\"\",Summary_Products!AM62)","v":""},{"$f":"IF(Summary_Products!AN62=\"\",\"\",Summary_Products!AN62)","v":""},{"$f":"IF(Summary_Products!AO62=\"\",\"\",Summary_Products!AO62)","v":""},{"$f":"IF(Summary_Products!AP62=\"\",\"\",Summary_Products!AP62)","v":""},{"$f":"IF(Summary_Products!AR62=\"\",\"\",Summary_Products!AR62)","v":""},{"$f":"IF(Summary_Products!AS62=\"\",\"\",Summary_Products!AS62)","v":""},{"$f":"IF(Summary_Products!AT62=\"\",\"\",INDEX(Translations!$C:$C,MATCH(Summary_Products!AT62,Translations!$B:$B,0)))","v":""},{"$f":"IF(Summary_Products!AU62=\"\",\"\",Summary_Products!AU62)","v":""},{"$f":"IF(Summary_Products!AV62=\"\",\"\",Summary_Products!AV62)","v":""},{"$f":"IF(Summary_Products!AW62=\"\",\"\",Summary_Products!AW62)","v":""},{"$f":"IF(Summary_Products!AX62=\"\",\"\",Summary_Products!AX62)","v":""},{"$f":"IF(Summary_Products!AY62=\"\",\"\",Summary_Products!AY62)","v":""},{"$f":"IF(Summary_Products!AZ62=\"\",\"\",Summary_Products!AZ62)","v":""},{"$f":"IF(Summary_Products!BA62=\"\",\"\",Summary_Products!BA62)","v":""}]
[null,null,54,{"$f":"IF(Summary_Products!D63=\"\",\"\",Summary_Products!D63)","v":""},{"$f":"IF(Summary_Products!E63=\"\",\"\",INDEX(Translations!$C:$C,MATCH(Summary_Products!E63,Translations!$B:$B,0)))","v":""},{"$f":"IF(Summary_Products!F63=\"\",\"\",Summary_Products!F63)","v":""},{"$f":"IF(F79=\"\",\"\",INDEX(Parameters_CNCodes!$H$4:$H$752,MATCH(F79,CNCodes_ListKey,0)))","v":""},{"$f":"IF(Summary_Products!H63=\"\",\"\",Summary_Products!H63)","v":""},{"$f":"IF(Summary_Products!I63=\"\",\"\",Summary_Products!I63)","v":""},{"$f":"IF(Summary_Products!J63=\"\",\"\",Summary_Products!J63)","v":""},{"$f":"IF(Summary_Products!K63=\"\",\"\",Summary_Products!K63)","v":""},{"$f":"IF(Summary_Products!L63=\"\",\"\",Summary_Products!L63)","v":""},{"$f":"IF(Summary_Products!M63=\"\",\"\",Summary_Products!M63)","v":""},{"$f":"IF(Summary_Products!N63=\"\",\"\",Summary_Products!N63)","v":""},{"$f":"IF(Summary_Products!O63=\"\",\"\",Summary_Products!O63)","v":""},{"$f":"IF(Summary_Products!P63=\"\",\"\",INDEX(Translations!$C:$C,MATCH(Summary_Products!P63,Translations!$B:$B,0)))","v":""},{"$f":"IF(Summary_Products!Q63=\"\",\"\",Summary_Products!Q63)","v":""},{"$f":"IF(Summary_Products!R63=\"\",\"\",Summary_Products!R63)","v":""},{"$f":"IF(Summary_Products!S63=\"\",\"\",Summary_Products!S63)","v":""},{"$f":"IF(Summary_Products!T63=\"\",\"\",Summary_Products!T63)","v":""},{"$f":"IF(Summary_Products!U63=\"\",\"\",Summary_Products!U63)","v":""},{"$f":"IF(Summary_Products!V63=\"\",\"\",Summary_Products!V63)","v":""},{"$f":"IF(Summary_Products!W63=\"\",\"\",Summary_Products!W63)","v":""},{"$f":"IF(Summary_Products!X63=\"\",\"\",Summary_Products!X63)","v":""},{"$f":"IF(Summary_Products!Y63=\"\",\"\",Summary_Products!Y63)","v":""},{"$f":"IF(Summary_Products!Z63=\"\",\"\",Summary_Products!Z63)","v":""},{"$f":"IF(Summary_Products!AA63=\"\",\"\",Summary_Products!AA63)","v":""},{"$f":"IF(Summary_Products!AB63=\"\",\"\",Summary_Products!AB63)","v":""},{"$f":"IF(Summary_Products!AC63=\"\",\"\",Summary_Products!AC63)","v":""},{"$f":"IF(Summary_Products!AD63=\"\",\"\",Summary_Products!AD63)","v":""},{"$f":"IF(Summary_Products!AE63=\"\",\"\",Summary_Products!AE63)","v":""},{"$f":"IF(Summary_Products!AF63=\"\",\"\",Summary_Products!AF63)","v":""},{"$f":"IF(Summary_Products!AG63=\"\",\"\",Summary_Products!AG63)","v":""},{"$f":"IF(Summary_Products!AH63=\"\",\"\",Summary_Products!AH63)","v":""},{"$f":"IF(Summary_Products!AI63=\"\",\"\",Summary_Products!AI63)","v":""},{"$f":"IF(Summary_Products!AJ63=\"\",\"\",Summary_Products!AJ63)","v":""},{"$f":"IF(Summary_Products!AK63=\"\",\"\",Summary_Products!AK63)","v":""},{"$f":"IF(Summary_Products!AL63=\"\",\"\",INDEX(Translations!$C:$C,MATCH(Summary_Products!AL63,Translations!$B:$B,0)))","v":""},{"$f":"IF(Summary_Products!AM63=\"\",\"\",Summary_Products!AM63)","v":""},{"$f":"IF(Summary_Products!AN63=\"\",\"\",Summary_Products!AN63)","v":""},{"$f":"IF(Summary_Products!AO63=\"\",\"\",Summary_Products!AO63)","v":""},{"$f":"IF(Summary_Products!AP63=\"\",\"\",Summary_Products!AP63)","v":""},{"$f":"IF(Summary_Products!AR63=\"\",\"\",Summary_Products!AR63)","v":""},{"$f":"IF(Summary_Products!AS63=\"\",\"\",Summary_Products!AS63)","v":""},{"$f":"IF(Summary_Products!AT63=\"\",\"\",INDEX(Translations!$C:$C,MATCH(Summary_Products!AT63,Translations!$B:$B,0)))","v":""},{"$f":"IF(Summary_Products!AU63=\"\",\"\",Summary_Products!AU63)","v":""},{"$f":"IF(Summary_Products!AV63=\"\",\"\",Summary_Products!AV63)","v":""},{"$f":"IF(Summary_Products!AW63=\"\",\"\",Summary_Products!AW63)","v":""},{"$f":"IF(Summary_Products!AX63=\"\",\"\",Summary_Products!AX63)","v":""},{"$f":"IF(Summary_Products!AY63=\"\",\"\",Summary_Products!AY63)","v":""},{"$f":"IF(Summary_Products!AZ63=\"\",\"\",Summary_Products!AZ63)","v":""},{"$f":"IF(Summary_Products!BA63=\"\",\"\",Summary_Products!BA63)","v":""}]
[null,null,55,{"$f":"IF(Summary_Products!D64=\"\",\"\",Summary_Products!D64)","v":""},{"$f":"IF(Summary_Products!E64=\"\",\"\",INDEX(Translations!$C:$C,MATCH(Summary_Products!E64,Translations!$B:$B,0)))","v":""},{"$f":"IF(Summary_Products!F64=\"\",\"\",Summary_Products!F64)","v":""},{"$f":"IF(F80=\"\",\"\",INDEX(Parameters_CNCodes!$H$4:$H$752,MATCH(F80,CNCodes_ListKey,0)))","v":""},{"$f":"IF(Summary_Products!H64=\"\",\"\",Summary_Products!H64)","v":""},{"$f":"IF(Summary_Products!I64=\"\",\"\",Summary_Products!I64)","v":""},{"$f":"IF(Summary_Products!J64=\"\",\"\",Summary_Products!J64)","v":""},{"$f":"IF(Summary_Products!K64=\"\",\"\",Summary_Products!K64)","v":""},{"$f":"IF(Summary_Products!L64=\"\",\"\",Summary_Products!L64)","v":""},{"$f":"IF(Summary_Products!M64=\"\",\"\",Summary_Products!M64)","v":""},{"$f":"IF(Summary_Products!N64=\"\",\"\",Summary_Products!N64)","v":""},{"$f":"IF(Summary_Products!O64=\"\",\"\",Summary_Products!O64)","v":""},{"$f":"IF(Summary_Products!P64=\"\",\"\",INDEX(Translations!$C:$C,MATCH(Summary_Products!P64,Translations!$B:$B,0)))","v":""},{"$f":"IF(Summary_Products!Q64=\"\",\"\",Summary_Products!Q64)","v":""},{"$f":"IF(Summary_Products!R64=\"\",\"\",Summary_Products!R64)","v":""},{"$f":"IF(Summary_Products!S64=\"\",\"\",Summary_Products!S64)","v":""},{"$f":"IF(Summary_Products!T64=\"\",\"\",Summary_Products!T64)","v":""},{"$f":"IF(Summary_Products!U64=\"\",\"\",Summary_Products!U64)","v":""},{"$f":"IF(Summary_Products!V64=\"\",\"\",Summary_Products!V64)","v":""},{"$f":"IF(Summary_Products!W64=\"\",\"\",Summary_Products!W64)","v":""},{"$f":"IF(Summary_Products!X64=\"\",\"\",Summary_Products!X64)","v":""},{"$f":"IF(Summary_Products!Y64=\"\",\"\",Summary_Products!Y64)","v":""},{"$f":"IF(Summary_Products!Z64=\"\",\"\",Summary_Products!Z64)","v":""},{"$f":"IF(Summary_Products!AA64=\"\",\"\",Summary_Products!AA64)","v":""},{"$f":"IF(Summary_Products!AB64=\"\",\"\",Summary_Products!AB64)","v":""},{"$f":"IF(Summary_Products!AC64=\"\",\"\",Summary_Products!AC64)","v":""},{"$f":"IF(Summary_Products!AD64=\"\",\"\",Summary_Products!AD64)","v":""},{"$f":"IF(Summary_Products!AE64=\"\",\"\",Summary_Products!AE64)","v":""},{"$f":"IF(Summary_Products!AF64=\"\",\"\",Summary_Products!AF64)","v":""},{"$f":"IF(Summary_Products!AG64=\"\",\"\",Summary_Products!AG64)","v":""},{"$f":"IF(Summary_Products!AH64=\"\",\"\",Summary_Products!AH64)","v":""},{"$f":"IF(Summary_Products!AI64=\"\",\"\",Summary_Products!AI64)","v":""},{"$f":"IF(Summary_Products!AJ64=\"\",\"\",Summary_Products!AJ64)","v":""},{"$f":"IF(Summary_Products!AK64=\"\",\"\",Summary_Products!AK64)","v":""},{"$f":"IF(Summary_Products!AL64=\"\",\"\",INDEX(Translations!$C:$C,MATCH(Summary_Products!AL64,Translations!$B:$B,0)))","v":""},{"$f":"IF(Summary_Products!AM64=\"\",\"\",Summary_Products!AM64)","v":""},{"$f":"IF(Summary_Products!AN64=\"\",\"\",Summary_Products!AN64)","v":""},{"$f":"IF(Summary_Products!AO64=\"\",\"\",Summary_Products!AO64)","v":""},{"$f":"IF(Summary_Products!AP64=\"\",\"\",Summary_Products!AP64)","v":""},{"$f":"IF(Summary_Products!AR64=\"\",\"\",Summary_Products!AR64)","v":""},{"$f":"IF(Summary_Products!AS64=\"\",\"\",Summary_Products!AS64)","v":""},{"$f":"IF(Summary_Products!AT64=\"\",\"\",INDEX(Translations!$C:$C,MATCH(Summary_Products!AT64,Translations!$B:$B,0)))","v":""},{"$f":"IF(Summary_Products!AU64=\"\",\"\",Summary_Products!AU64)","v":""},{"$f":"IF(Summary_Products!AV64=\"\",\"\",Summary_Products!AV64)","v":""},{"$f":"IF(Summary_Products!AW64=\"\",\"\",Summary_Products!AW64)","v":""},{"$f":"IF(Summary_Products!AX64=\"\",\"\",Summary_Products!AX64)","v":""},{"$f":"IF(Summary_Products!AY64=\"\",\"\",Summary_Products!AY64)","v":""},{"$f":"IF(Summary_Products!AZ64=\"\",\"\",Summary_Products!AZ64)","v":""},{"$f":"IF(Summary_Products!BA64=\"\",\"\",Summary_Products!BA64)","v":""}]
[null,null,56,{"$f":"IF(Summary_Products!D65=\"\",\"\",Summary_Products!D65)","v":""},{"$f":"IF(Summary_Products!E65=\"\",\"\",INDEX(Translations!$C:$C,MATCH(Summary_Products!E65,Translations!$B:$B,0)))","v":""},{"$f":"IF(Summary_Products!F65=\"\",\"\",Summary_Products!F65)","v":""},{"$f":"IF(F81=\"\",\"\",INDEX(Parameters_CNCodes!$H$4:$H$752,MATCH(F81,CNCodes_ListKey,0)))","v":""},{"$f":"IF(Summary_Products!H65=\"\",\"\",Summary_Products!H65)","v":""},{"$f":"IF(Summary_Products!I65=\"\",\"\",Summary_Products!I65)","v":""},{"$f":"IF(Summary_Products!J65=\"\",\"\",Summary_Products!J65)","v":""},{"$f":"IF(Summary_Products!K65=\"\",\"\",Summary_Products!K65)","v":""},{"$f":"IF(Summary_Products!L65=\"\",\"\",Summary_Products!L65)","v":""},{"$f":"IF(Summary_Products!M65=\"\",\"\",Summary_Products!M65)","v":""},{"$f":"IF(Summary_Products!N65=\"\",\"\",Summary_Products!N65)","v":""},{"$f":"IF(Summary_Products!O65=\"\",\"\",Summary_Products!O65)","v":""},{"$f":"IF(Summary_Products!P65=\"\",\"\",INDEX(Translations!$C:$C,MATCH(Summary_Products!P65,Translations!$B:$B,0)))","v":""},{"$f":"IF(Summary_Products!Q65=\"\",\"\",Summary_Products!Q65)","v":""},{"$f":"IF(Summary_Products!R65=\"\",\"\",Summary_Products!R65)","v":""},{"$f":"IF(Summary_Products!S65=\"\",\"\",Summary_Products!S65)","v":""},{"$f":"IF(Summary_Products!T65=\"\",\"\",Summary_Products!T65)","v":""},{"$f":"IF(Summary_Products!U65=\"\",\"\",Summary_Products!U65)","v":""},{"$f":"IF(Summary_Products!V65=\"\",\"\",Summary_Products!V65)","v":""},{"$f":"IF(Summary_Products!W65=\"\",\"\",Summary_Products!W65)","v":""},{"$f":"IF(Summary_Products!X65=\"\",\"\",Summary_Products!X65)","v":""},{"$f":"IF(Summary_Products!Y65=\"\",\"\",Summary_Products!Y65)","v":""},{"$f":"IF(Summary_Products!Z65=\"\",\"\",Summary_Products!Z65)","v":""},{"$f":"IF(Summary_Products!AA65=\"\",\"\",Summary_Products!AA65)","v":""},{"$f":"IF(Summary_Products!AB65=\"\",\"\",Summary_Products!AB65)","v":""},{"$f":"IF(Summary_Products!AC65=\"\",\"\",Summary_Products!AC65)","v":""},{"$f":"IF(Summary_Products!AD65=\"\",\"\",Summary_Products!AD65)","v":""},{"$f":"IF(Summary_Products!AE65=\"\",\"\",Summary_Products!AE65)","v":""},{"$f":"IF(Summary_Products!AF65=\"\",\"\",Summary_Products!AF65)","v":""},{"$f":"IF(Summary_Products!AG65=\"\",\"\",Summary_Products!AG65)","v":""},{"$f":"IF(Summary_Products!AH65=\"\",\"\",Summary_Products!AH65)","v":""},{"$f":"IF(Summary_Products!AI65=\"\",\"\",Summary_Products!AI65)","v":""},{"$f":"IF(Summary_Products!AJ65=\"\",\"\",Summary_Products!AJ65)","v":""},{"$f":"IF(Summary_Products!AK65=\"\",\"\",Summary_Products!AK65)","v":""},{"$f":"IF(Summary_Products!AL65=\"\",\"\",INDEX(Translations!$C:$C,MATCH(Summary_Products!AL65,Translations!$B:$B,0)))","v":""},{"$f":"IF(Summary_Products!AM65=\"\",\"\",Summary_Products!AM65)","v":""},{"$f":"IF(Summary_Products!AN65=\"\",\"\",Summary_Products!AN65)","v":""},{"$f":"IF(Summary_Products!AO65=\"\",\"\",Summary_Products!AO65)","v":""},{"$f":"IF(Summary_Products!AP65=\"\",\"\",Summary_Products!AP65)","v":""},{"$f":"IF(Summary_Products!AR65=\"\",\"\",Summary_Products!AR65)","v":""},{"$f":"IF(Summary_Products!AS65=\"\",\"\",Summary_Products!AS65)","v":""},{"$f":"IF(Summary_Products!AT65=\"\",\"\",INDEX(Translations!$C:$C,MATCH(Summary_Products!AT65,Translations!$B:$B,0)))","v":""},{"$f":"IF(Summary_Products!AU65=\"\",\"\",Summary_Products!AU65)","v":""},{"$f":"IF(Summary_Products!AV65=\"\",\"\",Summary_Products!AV65)","v":""},{"$f":"IF(Summary_Products!AW65=\"\",\"\",Summary_Products!AW65)","v":""},{"$f":"IF(Summary_Products!AX65=\"\",\"\",Summary_Products!AX65)","v":""},{"$f":"IF(Summary_Products!AY65=\"\",\"\",Summary_Products!AY65)","v":""},{"$f":"IF(Summary_Products!AZ65=\"\",\"\",Summary_Products!AZ65)","v":""},{"$f":"IF(Summary_Products!BA65=\"\",\"\",Summary_Products!BA65)","v":""}]
[null,null,57,{"$f":"IF(Summary_Products!D66=\"\",\"\",Summary_Products!D66)","v":""},{"$f":"IF(Summary_Products!E66=\"\",\"\",INDEX(Translations!$C:$C,MATCH(Summary_Products!E66,Translations!$B:$B,0)))","v":""},{"$f":"IF(Summary_Products!F66=\"\",\"\",Summary_Products!F66)","v":""},{"$f":"IF(F82=\"\",\"\",INDEX(Parameters_CNCodes!$H$4:$H$752,MATCH(F82,CNCodes_ListKey,0)))","v":""},{"$f":"IF(Summary_Products!H66=\"\",\"\",Summary_Products!H66)","v":""},{"$f":"IF(Summary_Products!I66=\"\",\"\",Summary_Products!I66)","v":""},{"$f":"IF(Summary_Products!J66=\"\",\"\",Summary_Products!J66)","v":""},{"$f":"IF(Summary_Products!K66=\"\",\"\",Summary_Products!K66)","v":""},{"$f":"IF(Summary_Products!L66=\"\",\"\",Summary_Products!L66)","v":""},{"$f":"IF(Summary_Products!M66=\"\",\"\",Summary_Products!M66)","v":""},{"$f":"IF(Summary_Products!N66=\"\",\"\",Summary_Products!N66)","v":""},{"$f":"IF(Summary_Products!O66=\"\",\"\",Summary_Products!O66)","v":""},{"$f":"IF(Summary_Products!P66=\"\",\"\",INDEX(Translations!$C:$C,MATCH(Summary_Products!P66,Translations!$B:$B,0)))","v":""},{"$f":"IF(Summary_Products!Q66=\"\",\"\",Summary_Products!Q66)","v":""},{"$f":"IF(Summary_Products!R66=\"\",\"\",Summary_Products!R66)","v":""},{"$f":"IF(Summary_Products!S66=\"\",\"\",Summary_Products!S66)","v":""},{"$f":"IF(Summary_Products!T66=\"\",\"\",Summary_Products!T66)","v":""},{"$f":"IF(Summary_Products!U66=\"\",\"\",Summary_Products!U66)","v":""},{"$f":"IF(Summary_Products!V66=\"\",\"\",Summary_Products!V66)","v":""},{"$f":"IF(Summary_Products!W66=\"\",\"\",Summary_Products!W66)","v":""},{"$f":"IF(Summary_Products!X66=\"\",\"\",Summary_Products!X66)","v":""},{"$f":"IF(Summary_Products!Y66=\"\",\"\",Summary_Products!Y66)","v":""},{"$f":"IF(Summary_Products!Z66=\"\",\"\",Summary_Products!Z66)","v":""},{"$f":"IF(Summary_Products!AA66=\"\",\"\",Summary_Products!AA66)","v":""},{"$f":"IF(Summary_Products!AB66=\"\",\"\",Summary_Products!AB66)","v":""},{"$f":"IF(Summary_Products!AC66=\"\",\"\",Summary_Products!AC66)","v":""},{"$f":"IF(Summary_Products!AD66=\"\",\"\",Summary_Products!AD66)","v":""},{"$f":"IF(Summary_Products!AE66=\"\",\"\",Summary_Products!AE66)","v":""},{"$f":"IF(Summary_Products!AF66=\"\",\"\",Summary_Products!AF66)","v":""},{"$f":"IF(Summary_Products!AG66=\"\",\"\",Summary_Products!AG66)","v":""},{"$f":"IF(Summary_Products!AH66=\"\",\"\",Summary_Products!AH66)","v":""},{"$f":"IF(Summary_Products!AI66=\"\",\"\",Summary_Products!AI66)","v":""},{"$f":"IF(Summary_Products!AJ66=\"\",\"\",Summary_Products!AJ66)","v":""},{"$f":"IF(Summary_Products!AK66=\"\",\"\",Summary_Products!AK66)","v":""},{"$f":"IF(Summary_Products!AL66=\"\",\"\",INDEX(Translations!$C:$C,MATCH(Summary_Products!AL66,Translations!$B:$B,0)))","v":""},{"$f":"IF(Summary_Products!AM66=\"\",\"\",Summary_Products!AM66)","v":""},{"$f":"IF(Summary_Products!AN66=\"\",\"\",Summary_Products!AN66)","v":""},{"$f":"IF(Summary_Products!AO66=\"\",\"\",Summary_Products!AO66)","v":""},{"$f":"IF(Summary_Products!AP66=\"\",\"\",Summary_Products!AP66)","v":""},{"$f":"IF(Summary_Products!AR66=\"\",\"\",Summary_Products!AR66)","v":""},{"$f":"IF(Summary_Products!AS66=\"\",\"\",Summary_Products!AS66)","v":""},{"$f":"IF(Summary_Products!AT66=\"\",\"\",INDEX(Translations!$C:$C,MATCH(Summary_Products!AT66,Translations!$B:$B,0)))","v":""},{"$f":"IF(Summary_Products!AU66=\"\",\"\",Summary_Products!AU66)","v":""},{"$f":"IF(Summary_Products!AV66=\"\",\"\",Summary_Products!AV66)","v":""},{"$f":"IF(Summary_Products!AW66=\"\",\"\",Summary_Products!AW66)","v":""},{"$f":"IF(Summary_Products!AX66=\"\",\"\",Summary_Products!AX66)","v":""},{"$f":"IF(Summary_Products!AY66=\"\",\"\",Summary_Products!AY66)","v":""},{"$f":"IF(Summary_Products!AZ66=\"\",\"\",Summary_Products!AZ66)","v":""},{"$f":"IF(Summary_Products!BA66=\"\",\"\",Summary_Products!BA66)","v":""}]
[null,null,58,{"$f":"IF(Summary_Products!D67=\"\",\"\",Summary_Products!D67)","v":""},{"$f":"IF(Summary_Products!E67=\"\",\"\",INDEX(Translations!$C:$C,MATCH(Summary_Products!E67,Translations!$B:$B,0)))","v":""},{"$f":"IF(Summary_Products!F67=\"\",\"\",Summary_Products!F67)","v":""},{"$f":"IF(F83=\"\",\"\",INDEX(Parameters_CNCodes!$H$4:$H$752,MATCH(F83,CNCodes_ListKey,0)))","v":""},{"$f":"IF(Summary_Products!H67=\"\",\"\",Summary_Products!H67)","v":""},{"$f":"IF(Summary_Products!I67=\"\",\"\",Summary_Products!I67)","v":""},{"$f":"IF(Summary_Products!J67=\"\",\"\",Summary_Products!J67)","v":""},{"$f":"IF(Summary_Products!K67=\"\",\"\",Summary_Products!K67)","v":""},{"$f":"IF(Summary_Products!L67=\"\",\"\",Summary_Products!L67)","v":""},{"$f":"IF(Summary_Products!M67=\"\",\"\",Summary_Products!M67)","v":""},{"$f":"IF(Summary_Products!N67=\"\",\"\",Summary_Products!N67)","v":""},{"$f":"IF(Summary_Products!O67=\"\",\"\",Summary_Products!O67)","v":""},{"$f":"IF(Summary_Products!P67=\"\",\"\",INDEX(Translations!$C:$C,MATCH(Summary_Products!P67,Translations!$B:$B,0)))","v":""},{"$f":"IF(Summary_Products!Q67=\"\",\"\",Summary_Products!Q67)","v":""},{"$f":"IF(Summary_Products!R67=\"\",\"\",Summary_Products!R67)","v":""},{"$f":"IF(Summary_Products!S67=\"\",\"\",Summary_Products!S67)","v":""},{"$f":"IF(Summary_Products!T67=\"\",\"\",Summary_Products!T67)","v":""},{"$f":"IF(Summary_Products!U67=\"\",\"\",Summary_Products!U67)","v":""},{"$f":"IF(Summary_Products!V67=\"\",\"\",Summary_Products!V67)","v":""},{"$f":"IF(Summary_Products!W67=\"\",\"\",Summary_Products!W67)","v":""},{"$f":"IF(Summary_Products!X67=\"\",\"\",Summary_Products!X67)","v":""},{"$f":"IF(Summary_Products!Y67=\"\",\"\",Summary_Products!Y67)","v":""},{"$f":"IF(Summary_Products!Z67=\"\",\"\",Summary_Products!Z67)","v":""},{"$f":"IF(Summary_Products!AA67=\"\",\"\",Summary_Products!AA67)","v":""},{"$f":"IF(Summary_Products!AB67=\"\",\"\",Summary_Products!AB67)","v":""},{"$f":"IF(Summary_Products!AC67=\"\",\"\",Summary_Products!AC67)","v":""},{"$f":"IF(Summary_Products!AD67=\"\",\"\",Summary_Products!AD67)","v":""},{"$f":"IF(Summary_Products!AE67=\"\",\"\",Summary_Products!AE67)","v":""},{"$f":"IF(Summary_Products!AF67=\"\",\"\",Summary_Products!AF67)","v":""},{"$f":"IF(Summary_Products!AG67=\"\",\"\",Summary_Products!AG67)","v":""},{"$f":"IF(Summary_Products!AH67=\"\",\"\",Summary_Products!AH67)","v":""},{"$f":"IF(Summary_Products!AI67=\"\",\"\",Summary_Products!AI67)","v":""},{"$f":"IF(Summary_Products!AJ67=\"\",\"\",Summary_Products!AJ67)","v":""},{"$f":"IF(Summary_Products!AK67=\"\",\"\",Summary_Products!AK67)","v":""},{"$f":"IF(Summary_Products!AL67=\"\",\"\",INDEX(Translations!$C:$C,MATCH(Summary_Products!AL67,Translations!$B:$B,0)))","v":""},{"$f":"IF(Summary_Products!AM67=\"\",\"\",Summary_Products!AM67)","v":""},{"$f":"IF(Summary_Products!AN67=\"\",\"\",Summary_Products!AN67)","v":""},{"$f":"IF(Summary_Products!AO67=\"\",\"\",Summary_Products!AO67)","v":""},{"$f":"IF(Summary_Products!AP67=\"\",\"\",Summary_Products!AP67)","v":""},{"$f":"IF(Summary_Products!AR67=\"\",\"\",Summary_Products!AR67)","v":""},{"$f":"IF(Summary_Products!AS67=\"\",\"\",Summary_Products!AS67)","v":""},{"$f":"IF(Summary_Products!AT67=\"\",\"\",INDEX(Translations!$C:$C,MATCH(Summary_Products!AT67,Translations!$B:$B,0)))","v":""},{"$f":"IF(Summary_Products!AU67=\"\",\"\",Summary_Products!AU67)","v":""},{"$f":"IF(Summary_Products!AV67=\"\",\"\",Summary_Products!AV67)","v":""},{"$f":"IF(Summary_Products!AW67=\"\",\"\",Summary_Products!AW67)","v":""},{"$f":"IF(Summary_Products!AX67=\"\",\"\",Summary_Products!AX67)","v":""},{"$f":"IF(Summary_Products!AY67=\"\",\"\",Summary_Products!AY67)","v":""},{"$f":"IF(Summary_Products!AZ67=\"\",\"\",Summary_Products!AZ67)","v":""},{"$f":"IF(Summary_Products!BA67=\"\",\"\",Summary_Products!BA67)","v":""}]
[null,null,59,{"$f":"IF(Summary_Products!D68=\"\",\"\",Summary_Products!D68)","v":""},{"$f":"IF(Summary_Products!E68=\"\",\"\",INDEX(Translations!$C:$C,MATCH(Summary_Products!E68,Translations!$B:$B,0)))","v":""},{"$f":"IF(Summary_Products!F68=\"\",\"\",Summary_Products!F68)","v":""},{"$f":"IF(F84=\"\",\"\",INDEX(Parameters_CNCodes!$H$4:$H$752,MATCH(F84,CNCodes_ListKey,0)))","v":""},{"$f":"IF(Summary_Products!H68=\"\",\"\",Summary_Products!H68)","v":""},{"$f":"IF(Summary_Products!I68=\"\",\"\",Summary_Products!I68)","v":""},{"$f":"IF(Summary_Products!J68=\"\",\"\",Summary_Products!J68)","v":""},{"$f":"IF(Summary_Products!K68=\"\",\"\",Summary_Products!K68)","v":""},{"$f":"IF(Summary_Products!L68=\"\",\"\",Summary_Products!L68)","v":""},{"$f":"IF(Summary_Products!M68=\"\",\"\",Summary_Products!M68)","v":""},{"$f":"IF(Summary_Products!N68=\"\",\"\",Summary_Products!N68)","v":""},{"$f":"IF(Summary_Products!O68=\"\",\"\",Summary_Products!O68)","v":""},{"$f":"IF(Summary_Products!P68=\"\",\"\",INDEX(Translations!$C:$C,MATCH(Summary_Products!P68,Translations!$B:$B,0)))","v":""},{"$f":"IF(Summary_Products!Q68=\"\",\"\",Summary_Products!Q68)","v":""},{"$f":"IF(Summary_Products!R68=\"\",\"\",Summary_Products!R68)","v":""},{"$f":"IF(Summary_Products!S68=\"\",\"\",Summary_Products!S68)","v":""},{"$f":"IF(Summary_Products!T68=\"\",\"\",Summary_Products!T68)","v":""},{"$f":"IF(Summary_Products!U68=\"\",\"\",Summary_Products!U68)","v":""},{"$f":"IF(Summary_Products!V68=\"\",\"\",Summary_Products!V68)","v":""},{"$f":"IF(Summary_Products!W68=\"\",\"\",Summary_Products!W68)","v":""},{"$f":"IF(Summary_Products!X68=\"\",\"\",Summary_Products!X68)","v":""},{"$f":"IF(Summary_Products!Y68=\"\",\"\",Summary_Products!Y68)","v":""},{"$f":"IF(Summary_Products!Z68=\"\",\"\",Summary_Products!Z68)","v":""},{"$f":"IF(Summary_Products!AA68=\"\",\"\",Summary_Products!AA68)","v":""},{"$f":"IF(Summary_Products!AB68=\"\",\"\",Summary_Products!AB68)","v":""},{"$f":"IF(Summary_Products!AC68=\"\",\"\",Summary_Products!AC68)","v":""},{"$f":"IF(Summary_Products!AD68=\"\",\"\",Summary_Products!AD68)","v":""},{"$f":"IF(Summary_Products!AE68=\"\",\"\",Summary_Products!AE68)","v":""},{"$f":"IF(Summary_Products!AF68=\"\",\"\",Summary_Products!AF68)","v":""},{"$f":"IF(Summary_Products!AG68=\"\",\"\",Summary_Products!AG68)","v":""},{"$f":"IF(Summary_Products!AH68=\"\",\"\",Summary_Products!AH68)","v":""},{"$f":"IF(Summary_Products!AI68=\"\",\"\",Summary_Products!AI68)","v":""},{"$f":"IF(Summary_Products!AJ68=\"\",\"\",Summary_Products!AJ68)","v":""},{"$f":"IF(Summary_Products!AK68=\"\",\"\",Summary_Products!AK68)","v":""},{"$f":"IF(Summary_Products!AL68=\"\",\"\",INDEX(Translations!$C:$C,MATCH(Summary_Products!AL68,Translations!$B:$B,0)))","v":""},{"$f":"IF(Summary_Products!AM68=\"\",\"\",Summary_Products!AM68)","v":""},{"$f":"IF(Summary_Products!AN68=\"\",\"\",Summary_Products!AN68)","v":""},{"$f":"IF(Summary_Products!AO68=\"\",\"\",Summary_Products!AO68)","v":""},{"$f":"IF(Summary_Products!AP68=\"\",\"\",Summary_Products!AP68)","v":""},{"$f":"IF(Summary_Products!AR68=\"\",\"\",Summary_Products!AR68)","v":""},{"$f":"IF(Summary_Products!AS68=\"\",\"\",Summary_Products!AS68)","v":""},{"$f":"IF(Summary_Products!AT68=\"\",\"\",INDEX(Translations!$C:$C,MATCH(Summary_Products!AT68,Translations!$B:$B,0)))","v":""},{"$f":"IF(Summary_Products!AU68=\"\",\"\",Summary_Products!AU68)","v":""},{"$f":"IF(Summary_Products!AV68=\"\",\"\",Summary_Products!AV68)","v":""},{"$f":"IF(Summary_Products!AW68=\"\",\"\",Summary_Products!AW68)","v":""},{"$f":"IF(Summary_Products!AX68=\"\",\"\",Summary_Products!AX68)","v":""},{"$f":"IF(Summary_Products!AY68=\"\",\"\",Summary_Products!AY68)","v":""},{"$f":"IF(Summary_Products!AZ68=\"\",\"\",Summary_Products!AZ68)","v":""},{"$f":"IF(Summary_Products!BA68=\"\",\"\",Summary_Products!BA68)","v":""}]
[null,null,60,{"$f":"IF(Summary_Products!D69=\"\",\"\",Summary_Products!D69)","v":""},{"$f":"IF(Summary_Products!E69=\"\",\"\",INDEX(Translations!$C:$C,MATCH(Summary_Products!E69,Translations!$B:$B,0)))","v":""},{"$f":"IF(Summary_Products!F69=\"\",\"\",Summary_Products!F69)","v":""},{"$f":"IF(F85=\"\",\"\",INDEX(Parameters_CNCodes!$H$4:$H$752,MATCH(F85,CNCodes_ListKey,0)))","v":""},{"$f":"IF(Summary_Products!H69=\"\",\"\",Summary_Products!H69)","v":""},{"$f":"IF(Summary_Products!I69=\"\",\"\",Summary_Products!I69)","v":""},{"$f":"IF(Summary_Products!J69=\"\",\"\",Summary_Products!J69)","v":""},{"$f":"IF(Summary_Products!K69=\"\",\"\",Summary_Products!K69)","v":""},{"$f":"IF(Summary_Products!L69=\"\",\"\",Summary_Products!L69)","v":""},{"$f":"IF(Summary_Products!M69=\"\",\"\",Summary_Products!M69)","v":""},{"$f":"IF(Summary_Products!N69=\"\",\"\",Summary_Products!N69)","v":""},{"$f":"IF(Summary_Products!O69=\"\",\"\",Summary_Products!O69)","v":""},{"$f":"IF(Summary_Products!P69=\"\",\"\",INDEX(Translations!$C:$C,MATCH(Summary_Products!P69,Translations!$B:$B,0)))","v":""},{"$f":"IF(Summary_Products!Q69=\"\",\"\",Summary_Products!Q69)","v":""},{"$f":"IF(Summary_Products!R69=\"\",\"\",Summary_Products!R69)","v":""},{"$f":"IF(Summary_Products!S69=\"\",\"\",Summary_Products!S69)","v":""},{"$f":"IF(Summary_Products!T69=\"\",\"\",Summary_Products!T69)","v":""},{"$f":"IF(Summary_Products!U69=\"\",\"\",Summary_Products!U69)","v":""},{"$f":"IF(Summary_Products!V69=\"\",\"\",Summary_Products!V69)","v":""},{"$f":"IF(Summary_Products!W69=\"\",\"\",Summary_Products!W69)","v":""},{"$f":"IF(Summary_Products!X69=\"\",\"\",Summary_Products!X69)","v":""},{"$f":"IF(Summary_Products!Y69=\"\",\"\",Summary_Products!Y69)","v":""},{"$f":"IF(Summary_Products!Z69=\"\",\"\",Summary_Products!Z69)","v":""},{"$f":"IF(Summary_Products!AA69=\"\",\"\",Summary_Products!AA69)","v":""},{"$f":"IF(Summary_Products!AB69=\"\",\"\",Summary_Products!AB69)","v":""},{"$f":"IF(Summary_Products!AC69=\"\",\"\",Summary_Products!AC69)","v":""},{"$f":"IF(Summary_Products!AD69=\"\",\"\",Summary_Products!AD69)","v":""},{"$f":"IF(Summary_Products!AE69=\"\",\"\",Summary_Products!AE69)","v":""},{"$f":"IF(Summary_Products!AF69=\"\",\"\",Summary_Products!AF69)","v":""},{"$f":"IF(Summary_Products!AG69=\"\",\"\",Summary_Products!AG69)","v":""},{"$f":"IF(Summary_Products!AH69=\"\",\"\",Summary_Products!AH69)","v":""},{"$f":"IF(Summary_Products!AI69=\"\",\"\",Summary_Products!AI69)","v":""},{"$f":"IF(Summary_Products!AJ69=\"\",\"\",Summary_Products!AJ69)","v":""},{"$f":"IF(Summary_Products!AK69=\"\",\"\",Summary_Products!AK69)","v":""},{"$f":"IF(Summary_Products!AL69=\"\",\"\",INDEX(Translations!$C:$C,MATCH(Summary_Products!AL69,Translations!$B:$B,0)))","v":""},{"$f":"IF(Summary_Products!AM69=\"\",\"\",Summary_Products!AM69)","v":""},{"$f":"IF(Summary_Products!AN69=\"\",\"\",Summary_Products!AN69)","v":""},{"$f":"IF(Summary_Products!AO69=\"\",\"\",Summary_Products!AO69)","v":""},{"$f":"IF(Summary_Products!AP69=\"\",\"\",Summary_Products!AP69)","v":""},{"$f":"IF(Summary_Products!AR69=\"\",\"\",Summary_Products!AR69)","v":""},{"$f":"IF(Summary_Products!AS69=\"\",\"\",Summary_Products!AS69)","v":""},{"$f":"IF(Summary_Products!AT69=\"\",\"\",INDEX(Translations!$C:$C,MATCH(Summary_Products!AT69,Translations!$B:$B,0)))","v":""},{"$f":"IF(Summary_Products!AU69=\"\",\"\",Summary_Products!AU69)","v":""},{"$f":"IF(Summary_Products!AV69=\"\",\"\",Summary_Products!AV69)","v":""},{"$f":"IF(Summary_Products!AW69=\"\",\"\",Summary_Products!AW69)","v":""},{"$f":"IF(Summary_Products!AX69=\"\",\"\",Summary_Products!AX69)","v":""},{"$f":"IF(Summary_Products!AY69=\"\",\"\",Summary_Products!AY69)","v":""},{"$f":"IF(Summary_Products!AZ69=\"\",\"\",Summary_Products!AZ69)","v":""},{"$f":"IF(Summary_Products!BA69=\"\",\"\",Summary_Products!BA69)","v":""}]
[null,null,61,{"$f":"IF(Summary_Products!D70=\"\",\"\",Summary_Products!D70)","v":""},{"$f":"IF(Summary_Products!E70=\"\",\"\",INDEX(Translations!$C:$C,MATCH(Summary_Products!E70,Translations!$B:$B,0)))","v":""},{"$f":"IF(Summary_Products!F70=\"\",\"\",Summary_Products!F70)","v":""},{"$f":"IF(F86=\"\",\"\",INDEX(Parameters_CNCodes!$H$4:$H$752,MATCH(F86,CNCodes_ListKey,0)))","v":""},{"$f":"IF(Summary_Products!H70=\"\",\"\",Summary_Products!H70)","v":""},{"$f":"IF(Summary_Products!I70=\"\",\"\",Summary_Products!I70)","v":""},{"$f":"IF(Summary_Products!J70=\"\",\"\",Summary_Products!J70)","v":""},{"$f":"IF(Summary_Products!K70=\"\",\"\",Summary_Products!K70)","v":""},{"$f":"IF(Summary_Products!L70=\"\",\"\",Summary_Products!L70)","v":""},{"$f":"IF(Summary_Products!M70=\"\",\"\",Summary_Products!M70)","v":""},{"$f":"IF(Summary_Products!N70=\"\",\"\",Summary_Products!N70)","v":""},{"$f":"IF(Summary_Products!O70=\"\",\"\",Summary_Products!O70)","v":""},{"$f":"IF(Summary_Products!P70=\"\",\"\",INDEX(Translations!$C:$C,MATCH(Summary_Products!P70,Translations!$B:$B,0)))","v":""},{"$f":"IF(Summary_Products!Q70=\"\",\"\",Summary_Products!Q70)","v":""},{"$f":"IF(Summary_Products!R70=\"\",\"\",Summary_Products!R70)","v":""},{"$f":"IF(Summary_Products!S70=\"\",\"\",Summary_Products!S70)","v":""},{"$f":"IF(Summary_Products!T70=\"\",\"\",Summary_Products!T70)","v":""},{"$f":"IF(Summary_Products!U70=\"\",\"\",Summary_Products!U70)","v":""},{"$f":"IF(Summary_Products!V70=\"\",\"\",Summary_Products!V70)","v":""},{"$f":"IF(Summary_Products!W70=\"\",\"\",Summary_Products!W70)","v":""},{"$f":"IF(Summary_Products!X70=\"\",\"\",Summary_Products!X70)","v":""},{"$f":"IF(Summary_Products!Y70=\"\",\"\",Summary_Products!Y70)","v":""},{"$f":"IF(Summary_Products!Z70=\"\",\"\",Summary_Products!Z70)","v":""},{"$f":"IF(Summary_Products!AA70=\"\",\"\",Summary_Products!AA70)","v":""},{"$f":"IF(Summary_Products!AB70=\"\",\"\",Summary_Products!AB70)","v":""},{"$f":"IF(Summary_Products!AC70=\"\",\"\",Summary_Products!AC70)","v":""},{"$f":"IF(Summary_Products!AD70=\"\",\"\",Summary_Products!AD70)","v":""},{"$f":"IF(Summary_Products!AE70=\"\",\"\",Summary_Products!AE70)","v":""},{"$f":"IF(Summary_Products!AF70=\"\",\"\",Summary_Products!AF70)","v":""},{"$f":"IF(Summary_Products!AG70=\"\",\"\",Summary_Products!AG70)","v":""},{"$f":"IF(Summary_Products!AH70=\"\",\"\",Summary_Products!AH70)","v":""},{"$f":"IF(Summary_Products!AI70=\"\",\"\",Summary_Products!AI70)","v":""},{"$f":"IF(Summary_Products!AJ70=\"\",\"\",Summary_Products!AJ70)","v":""},{"$f":"IF(Summary_Products!AK70=\"\",\"\",Summary_Products!AK70)","v":""},{"$f":"IF(Summary_Products!AL70=\"\",\"\",INDEX(Translations!$C:$C,MATCH(Summary_Products!AL70,Translations!$B:$B,0)))","v":""},{"$f":"IF(Summary_Products!AM70=\"\",\"\",Summary_Products!AM70)","v":""},{"$f":"IF(Summary_Products!AN70=\"\",\"\",Summary_Products!AN70)","v":""},{"$f":"IF(Summary_Products!AO70=\"\",\"\",Summary_Products!AO70)","v":""},{"$f":"IF(Summary_Products!AP70=\"\",\"\",Summary_Products!AP70)","v":""},{"$f":"IF(Summary_Products!AR70=\"\",\"\",Summary_Products!AR70)","v":""},{"$f":"IF(Summary_Products!AS70=\"\",\"\",Summary_Products!AS70)","v":""},{"$f":"IF(Summary_Products!AT70=\"\",\"\",INDEX(Translations!$C:$C,MATCH(Summary_Products!AT70,Translations!$B:$B,0)))","v":""},{"$f":"IF(Summary_Products!AU70=\"\",\"\",Summary_Products!AU70)","v":""},{"$f":"IF(Summary_Products!AV70=\"\",\"\",Summary_Products!AV70)","v":""},{"$f":"IF(Summary_Products!AW70=\"\",\"\",Summary_Products!AW70)","v":""},{"$f":"IF(Summary_Products!AX70=\"\",\"\",Summary_Products!AX70)","v":""},{"$f":"IF(Summary_Products!AY70=\"\",\"\",Summary_Products!AY70)","v":""},{"$f":"IF(Summary_Products!AZ70=\"\",\"\",Summary_Products!AZ70)","v":""},{"$f":"IF(Summary_Products!BA70=\"\",\"\",Summary_Products!BA70)","v":""}]
[null,null,62,{"$f":"IF(Summary_Products!D71=\"\",\"\",Summary_Products!D71)","v":""},{"$f":"IF(Summary_Products!E71=\"\",\"\",INDEX(Translations!$C:$C,MATCH(Summary_Products!E71,Translations!$B:$B,0)))","v":""},{"$f":"IF(Summary_Products!F71=\"\",\"\",Summary_Products!F71)","v":""},{"$f":"IF(F87=\"\",\"\",INDEX(Parameters_CNCodes!$H$4:$H$752,MATCH(F87,CNCodes_ListKey,0)))","v":""},{"$f":"IF(Summary_Products!H71=\"\",\"\",Summary_Products!H71)","v":""},{"$f":"IF(Summary_Products!I71=\"\",\"\",Summary_Products!I71)","v":""},{"$f":"IF(Summary_Products!J71=\"\",\"\",Summary_Products!J71)","v":""},{"$f":"IF(Summary_Products!K71=\"\",\"\",Summary_Products!K71)","v":""},{"$f":"IF(Summary_Products!L71=\"\",\"\",Summary_Products!L71)","v":""},{"$f":"IF(Summary_Products!M71=\"\",\"\",Summary_Products!M71)","v":""},{"$f":"IF(Summary_Products!N71=\"\",\"\",Summary_Products!N71)","v":""},{"$f":"IF(Summary_Products!O71=\"\",\"\",Summary_Products!O71)","v":""},{"$f":"IF(Summary_Products!P71=\"\",\"\",INDEX(Translations!$C:$C,MATCH(Summary_Products!P71,Translations!$B:$B,0)))","v":""},{"$f":"IF(Summary_Products!Q71=\"\",\"\",Summary_Products!Q71)","v":""},{"$f":"IF(Summary_Products!R71=\"\",\"\",Summary_Products!R71)","v":""},{"$f":"IF(Summary_Products!S71=\"\",\"\",Summary_Products!S71)","v":""},{"$f":"IF(Summary_Products!T71=\"\",\"\",Summary_Products!T71)","v":""},{"$f":"IF(Summary_Products!U71=\"\",\"\",Summary_Products!U71)","v":""},{"$f":"IF(Summary_Products!V71=\"\",\"\",Summary_Products!V71)","v":""},{"$f":"IF(Summary_Products!W71=\"\",\"\",Summary_Products!W71)","v":""},{"$f":"IF(Summary_Products!X71=\"\",\"\",Summary_Products!X71)","v":""},{"$f":"IF(Summary_Products!Y71=\"\",\"\",Summary_Products!Y71)","v":""},{"$f":"IF(Summary_Products!Z71=\"\",\"\",Summary_Products!Z71)","v":""},{"$f":"IF(Summary_Products!AA71=\"\",\"\",Summary_Products!AA71)","v":""},{"$f":"IF(Summary_Products!AB71=\"\",\"\",Summary_Products!AB71)","v":""},{"$f":"IF(Summary_Products!AC71=\"\",\"\",Summary_Products!AC71)","v":""},{"$f":"IF(Summary_Products!AD71=\"\",\"\",Summary_Products!AD71)","v":""},{"$f":"IF(Summary_Products!AE71=\"\",\"\",Summary_Products!AE71)","v":""},{"$f":"IF(Summary_Products!AF71=\"\",\"\",Summary_Products!AF71)","v":""},{"$f":"IF(Summary_Products!AG71=\"\",\"\",Summary_Products!AG71)","v":""},{"$f":"IF(Summary_Products!AH71=\"\",\"\",Summary_Products!AH71)","v":""},{"$f":"IF(Summary_Products!AI71=\"\",\"\",Summary_Products!AI71)","v":""},{"$f":"IF(Summary_Products!AJ71=\"\",\"\",Summary_Products!AJ71)","v":""},{"$f":"IF(Summary_Products!AK71=\"\",\"\",Summary_Products!AK71)","v":""},{"$f":"IF(Summary_Products!AL71=\"\",\"\",INDEX(Translations!$C:$C,MATCH(Summary_Products!AL71,Translations!$B:$B,0)))","v":""},{"$f":"IF(Summary_Products!AM71=\"\",\"\",Summary_Products!AM71)","v":""},{"$f":"IF(Summary_Products!AN71=\"\",\"\",Summary_Products!AN71)","v":""},{"$f":"IF(Summary_Products!AO71=\"\",\"\",Summary_Products!AO71)","v":""},{"$f":"IF(Summary_Products!AP71=\"\",\"\",Summary_Products!AP71)","v":""},{"$f":"IF(Summary_Products!AR71=\"\",\"\",Summary_Products!AR71)","v":""},{"$f":"IF(Summary_Products!AS71=\"\",\"\",Summary_Products!AS71)","v":""},{"$f":"IF(Summary_Products!AT71=\"\",\"\",INDEX(Translations!$C:$C,MATCH(Summary_Products!AT71,Translations!$B:$B,0)))","v":""},{"$f":"IF(Summary_Products!AU71=\"\",\"\",Summary_Products!AU71)","v":""},{"$f":"IF(Summary_Products!AV71=\"\",\"\",Summary_Products!AV71)","v":""},{"$f":"IF(Summary_Products!AW71=\"\",\"\",Summary_Products!AW71)","v":""},{"$f":"IF(Summary_Products!AX71=\"\",\"\",Summary_Products!AX71)","v":""},{"$f":"IF(Summary_Products!AY71=\"\",\"\",Summary_Products!AY71)","v":""},{"$f":"IF(Summary_Products!AZ71=\"\",\"\",Summary_Products!AZ71)","v":""},{"$f":"IF(Summary_Products!BA71=\"\",\"\",Summary_Products!BA71)","v":""}]
[null,null,63,{"$f":"IF(Summary_Products!D72=\"\",\"\",Summary_Products!D72)","v":""},{"$f":"IF(Summary_Products!E72=\"\",\"\",INDEX(Translations!$C:$C,MATCH(Summary_Products!E72,Translations!$B:$B,0)))","v":""},{"$f":"IF(Summary_Products!F72=\"\",\"\",Summary_Products!F72)","v":""},{"$f":"IF(F88=\"\",\"\",INDEX(Parameters_CNCodes!$H$4:$H$752,MATCH(F88,CNCodes_ListKey,0)))","v":""},{"$f":"IF(Summary_Products!H72=\"\",\"\",Summary_Products!H72)","v":""},{"$f":"IF(Summary_Products!I72=\"\",\"\",Summary_Products!I72)","v":""},{"$f":"IF(Summary_Products!J72=\"\",\"\",Summary_Products!J72)","v":""},{"$f":"IF(Summary_Products!K72=\"\",\"\",Summary_Products!K72)","v":""},{"$f":"IF(Summary_Products!L72=\"\",\"\",Summary_Products!L72)","v":""},{"$f":"IF(Summary_Products!M72=\"\",\"\",Summary_Products!M72)","v":""},{"$f":"IF(Summary_Products!N72=\"\",\"\",Summary_Products!N72)","v":""},{"$f":"IF(Summary_Products!O72=\"\",\"\",Summary_Products!O72)","v":""},{"$f":"IF(Summary_Products!P72=\"\",\"\",INDEX(Translations!$C:$C,MATCH(Summary_Products!P72,Translations!$B:$B,0)))","v":""},{"$f":"IF(Summary_Products!Q72=\"\",\"\",Summary_Products!Q72)","v":""},{"$f":"IF(Summary_Products!R72=\"\",\"\",Summary_Products!R72)","v":""},{"$f":"IF(Summary_Products!S72=\"\",\"\",Summary_Products!S72)","v":""},{"$f":"IF(Summary_Products!T72=\"\",\"\",Summary_Products!T72)","v":""},{"$f":"IF(Summary_Products!U72=\"\",\"\",Summary_Products!U72)","v":""},{"$f":"IF(Summary_Products!V72=\"\",\"\",Summary_Products!V72)","v":""},{"$f":"IF(Summary_Products!W72=\"\",\"\",Summary_Products!W72)","v":""},{"$f":"IF(Summary_Products!X72=\"\",\"\",Summary_Products!X72)","v":""},{"$f":"IF(Summary_Products!Y72=\"\",\"\",Summary_Products!Y72)","v":""},{"$f":"IF(Summary_Products!Z72=\"\",\"\",Summary_Products!Z72)","v":""},{"$f":"IF(Summary_Products!AA72=\"\",\"\",Summary_Products!AA72)","v":""},{"$f":"IF(Summary_Products!AB72=\"\",\"\",Summary_Products!AB72)","v":""},{"$f":"IF(Summary_Products!AC72=\"\",\"\",Summary_Products!AC72)","v":""},{"$f":"IF(Summary_Products!AD72=\"\",\"\",Summary_Products!AD72)","v":""},{"$f":"IF(Summary_Products!AE72=\"\",\"\",Summary_Products!AE72)","v":""},{"$f":"IF(Summary_Products!AF72=\"\",\"\",Summary_Products!AF72)","v":""},{"$f":"IF(Summary_Products!AG72=\"\",\"\",Summary_Products!AG72)","v":""},{"$f":"IF(Summary_Products!AH72=\"\",\"\",Summary_Products!AH72)","v":""},{"$f":"IF(Summary_Products!AI72=\"\",\"\",Summary_Products!AI72)","v":""},{"$f":"IF(Summary_Products!AJ72=\"\",\"\",Summary_Products!AJ72)","v":""},{"$f":"IF(Summary_Products!AK72=\"\",\"\",Summary_Products!AK72)","v":""},{"$f":"IF(Summary_Products!AL72=\"\",\"\",INDEX(Translations!$C:$C,MATCH(Summary_Products!AL72,Translations!$B:$B,0)))","v":""},{"$f":"IF(Summary_Products!AM72=\"\",\"\",Summary_Products!AM72)","v":""},{"$f":"IF(Summary_Products!AN72=\"\",\"\",Summary_Products!AN72)","v":""},{"$f":"IF(Summary_Products!AO72=\"\",\"\",Summary_Products!AO72)","v":""},{"$f":"IF(Summary_Products!AP72=\"\",\"\",Summary_Products!AP72)","v":""},{"$f":"IF(Summary_Products!AR72=\"\",\"\",Summary_Products!AR72)","v":""},{"$f":"IF(Summary_Products!AS72=\"\",\"\",Summary_Products!AS72)","v":""},{"$f":"IF(Summary_Products!AT72=\"\",\"\",INDEX(Translations!$C:$C,MATCH(Summary_Products!AT72,Translations!$B:$B,0)))","v":""},{"$f":"IF(Summary_Products!AU72=\"\",\"\",Summary_Products!AU72)","v":""},{"$f":"IF(Summary_Products!AV72=\"\",\"\",Summary_Products!AV72)","v":""},{"$f":"IF(Summary_Products!AW72=\"\",\"\",Summary_Products!AW72)","v":""},{"$f":"IF(Summary_Products!AX72=\"\",\"\",Summary_Products!AX72)","v":""},{"$f":"IF(Summary_Products!AY72=\"\",\"\",Summary_Products!AY72)","v":""},{"$f":"IF(Summary_Products!AZ72=\"\",\"\",Summary_Products!AZ72)","v":""},{"$f":"IF(Summary_Products!BA72=\"\",\"\",Summary_Products!BA72)","v":""}]
[null,null,64,{"$f":"IF(Summary_Products!D73=\"\",\"\",Summary_Products!D73)","v":""},{"$f":"IF(Summary_Products!E73=\"\",\"\",INDEX(Translations!$C:$C,MATCH(Summary_Products!E73,Translations!$B:$B,0)))","v":""},{"$f":"IF(Summary_Products!F73=\"\",\"\",Summary_Products!F73)","v":""},{"$f":"IF(F89=\"\",\"\",INDEX(Parameters_CNCodes!$H$4:$H$752,MATCH(F89,CNCodes_ListKey,0)))","v":""},{"$f":"IF(Summary_Products!H73=\"\",\"\",Summary_Products!H73)","v":""},{"$f":"IF(Summary_Products!I73=\"\",\"\",Summary_Products!I73)","v":""},{"$f":"IF(Summary_Products!J73=\"\",\"\",Summary_Products!J73)","v":""},{"$f":"IF(Summary_Products!K73=\"\",\"\",Summary_Products!K73)","v":""},{"$f":"IF(Summary_Products!L73=\"\",\"\",Summary_Products!L73)","v":""},{"$f":"IF(Summary_Products!M73=\"\",\"\",Summary_Products!M73)","v":""},{"$f":"IF(Summary_Products!N73=\"\",\"\",Summary_Products!N73)","v":""},{"$f":"IF(Summary_Products!O73=\"\",\"\",Summary_Products!O73)","v":""},{"$f":"IF(Summary_Products!P73=\"\",\"\",INDEX(Translations!$C:$C,MATCH(Summary_Products!P73,Translations!$B:$B,0)))","v":""},{"$f":"IF(Summary_Products!Q73=\"\",\"\",Summary_Products!Q73)","v":""},{"$f":"IF(Summary_Products!R73=\"\",\"\",Summary_Products!R73)","v":""},{"$f":"IF(Summary_Products!S73=\"\",\"\",Summary_Products!S73)","v":""},{"$f":"IF(Summary_Products!T73=\"\",\"\",Summary_Products!T73)","v":""},{"$f":"IF(Summary_Products!U73=\"\",\"\",Summary_Products!U73)","v":""},{"$f":"IF(Summary_Products!V73=\"\",\"\",Summary_Products!V73)","v":""},{"$f":"IF(Summary_Products!W73=\"\",\"\",Summary_Products!W73)","v":""},{"$f":"IF(Summary_Products!X73=\"\",\"\",Summary_Products!X73)","v":""},{"$f":"IF(Summary_Products!Y73=\"\",\"\",Summary_Products!Y73)","v":""},{"$f":"IF(Summary_Products!Z73=\"\",\"\",Summary_Products!Z73)","v":""},{"$f":"IF(Summary_Products!AA73=\"\",\"\",Summary_Products!AA73)","v":""},{"$f":"IF(Summary_Products!AB73=\"\",\"\",Summary_Products!AB73)","v":""},{"$f":"IF(Summary_Products!AC73=\"\",\"\",Summary_Products!AC73)","v":""},{"$f":"IF(Summary_Products!AD73=\"\",\"\",Summary_Products!AD73)","v":""},{"$f":"IF(Summary_Products!AE73=\"\",\"\",Summary_Products!AE73)","v":""},{"$f":"IF(Summary_Products!AF73=\"\",\"\",Summary_Products!AF73)","v":""},{"$f":"IF(Summary_Products!AG73=\"\",\"\",Summary_Products!AG73)","v":""},{"$f":"IF(Summary_Products!AH73=\"\",\"\",Summary_Products!AH73)","v":""},{"$f":"IF(Summary_Products!AI73=\"\",\"\",Summary_Products!AI73)","v":""},{"$f":"IF(Summary_Products!AJ73=\"\",\"\",Summary_Products!AJ73)","v":""},{"$f":"IF(Summary_Products!AK73=\"\",\"\",Summary_Products!AK73)","v":""},{"$f":"IF(Summary_Products!AL73=\"\",\"\",INDEX(Translations!$C:$C,MATCH(Summary_Products!AL73,Translations!$B:$B,0)))","v":""},{"$f":"IF(Summary_Products!AM73=\"\",\"\",Summary_Products!AM73)","v":""},{"$f":"IF(Summary_Products!AN73=\"\",\"\",Summary_Products!AN73)","v":""},{"$f":"IF(Summary_Products!AO73=\"\",\"\",Summary_Products!AO73)","v":""},{"$f":"IF(Summary_Products!AP73=\"\",\"\",Summary_Products!AP73)","v":""},{"$f":"IF(Summary_Products!AR73=\"\",\"\",Summary_Products!AR73)","v":""},{"$f":"IF(Summary_Products!AS73=\"\",\"\",Summary_Products!AS73)","v":""},{"$f":"IF(Summary_Products!AT73=\"\",\"\",INDEX(Translations!$C:$C,MATCH(Summary_Products!AT73,Translations!$B:$B,0)))","v":""},{"$f":"IF(Summary_Products!AU73=\"\",\"\",Summary_Products!AU73)","v":""},{"$f":"IF(Summary_Products!AV73=\"\",\"\",Summary_Products!AV73)","v":""},{"$f":"IF(Summary_Products!AW73=\"\",\"\",Summary_Products!AW73)","v":""},{"$f":"IF(Summary_Products!AX73=\"\",\"\",Summary_Products!AX73)","v":""},{"$f":"IF(Summary_Products!AY73=\"\",\"\",Summary_Products!AY73)","v":""},{"$f":"IF(Summary_Products!AZ73=\"\",\"\",Summary_Products!AZ73)","v":""},{"$f":"IF(Summary_Products!BA73=\"\",\"\",Summary_Products!BA73)","v":""}]
[null,null,65,{"$f":"IF(Summary_Products!D74=\"\",\"\",Summary_Products!D74)","v":""},{"$f":"IF(Summary_Products!E74=\"\",\"\",INDEX(Translations!$C:$C,MATCH(Summary_Products!E74,Translations!$B:$B,0)))","v":""},{"$f":"IF(Summary_Products!F74=\"\",\"\",Summary_Products!F74)","v":""},{"$f":"IF(F90=\"\",\"\",INDEX(Parameters_CNCodes!$H$4:$H$752,MATCH(F90,CNCodes_ListKey,0)))","v":""},{"$f":"IF(Summary_Products!H74=\"\",\"\",Summary_Products!H74)","v":""},{"$f":"IF(Summary_Products!I74=\"\",\"\",Summary_Products!I74)","v":""},{"$f":"IF(Summary_Products!J74=\"\",\"\",Summary_Products!J74)","v":""},{"$f":"IF(Summary_Products!K74=\"\",\"\",Summary_Products!K74)","v":""},{"$f":"IF(Summary_Products!L74=\"\",\"\",Summary_Products!L74)","v":""},{"$f":"IF(Summary_Products!M74=\"\",\"\",Summary_Products!M74)","v":""},{"$f":"IF(Summary_Products!N74=\"\",\"\",Summary_Products!N74)","v":""},{"$f":"IF(Summary_Products!O74=\"\",\"\",Summary_Products!O74)","v":""},{"$f":"IF(Summary_Products!P74=\"\",\"\",INDEX(Translations!$C:$C,MATCH(Summary_Products!P74,Translations!$B:$B,0)))","v":""},{"$f":"IF(Summary_Products!Q74=\"\",\"\",Summary_Products!Q74)","v":""},{"$f":"IF(Summary_Products!R74=\"\",\"\",Summary_Products!R74)","v":""},{"$f":"IF(Summary_Products!S74=\"\",\"\",Summary_Products!S74)","v":""},{"$f":"IF(Summary_Products!T74=\"\",\"\",Summary_Products!T74)","v":""},{"$f":"IF(Summary_Products!U74=\"\",\"\",Summary_Products!U74)","v":""},{"$f":"IF(Summary_Products!V74=\"\",\"\",Summary_Products!V74)","v":""},{"$f":"IF(Summary_Products!W74=\"\",\"\",Summary_Products!W74)","v":""},{"$f":"IF(Summary_Products!X74=\"\",\"\",Summary_Products!X74)","v":""},{"$f":"IF(Summary_Products!Y74=\"\",\"\",Summary_Products!Y74)","v":""},{"$f":"IF(Summary_Products!Z74=\"\",\"\",Summary_Products!Z74)","v":""},{"$f":"IF(Summary_Products!AA74=\"\",\"\",Summary_Products!AA74)","v":""},{"$f":"IF(Summary_Products!AB74=\"\",\"\",Summary_Products!AB74)","v":""},{"$f":"IF(Summary_Products!AC74=\"\",\"\",Summary_Products!AC74)","v":""},{"$f":"IF(Summary_Products!AD74=\"\",\"\",Summary_Products!AD74)","v":""},{"$f":"IF(Summary_Products!AE74=\"\",\"\",Summary_Products!AE74)","v":""},{"$f":"IF(Summary_Products!AF74=\"\",\"\",Summary_Products!AF74)","v":""},{"$f":"IF(Summary_Products!AG74=\"\",\"\",Summary_Products!AG74)","v":""},{"$f":"IF(Summary_Products!AH74=\"\",\"\",Summary_Products!AH74)","v":""},{"$f":"IF(Summary_Products!AI74=\"\",\"\",Summary_Products!AI74)","v":""},{"$f":"IF(Summary_Products!AJ74=\"\",\"\",Summary_Products!AJ74)","v":""},{"$f":"IF(Summary_Products!AK74=\"\",\"\",Summary_Products!AK74)","v":""},{"$f":"IF(Summary_Products!AL74=\"\",\"\",INDEX(Translations!$C:$C,MATCH(Summary_Products!AL74,Translations!$B:$B,0)))","v":""},{"$f":"IF(Summary_Products!AM74=\"\",\"\",Summary_Products!AM74)","v":""},{"$f":"IF(Summary_Products!AN74=\"\",\"\",Summary_Products!AN74)","v":""},{"$f":"IF(Summary_Products!AO74=\"\",\"\",Summary_Products!AO74)","v":""},{"$f":"IF(Summary_Products!AP74=\"\",\"\",Summary_Products!AP74)","v":""},{"$f":"IF(Summary_Products!AR74=\"\",\"\",Summary_Products!AR74)","v":""},{"$f":"IF(Summary_Products!AS74=\"\",\"\",Summary_Products!AS74)","v":""},{"$f":"IF(Summary_Products!AT74=\"\",\"\",INDEX(Translations!$C:$C,MATCH(Summary_Products!AT74,Translations!$B:$B,0)))","v":""},{"$f":"IF(Summary_Products!AU74=\"\",\"\",Summary_Products!AU74)","v":""},{"$f":"IF(Summary_Products!AV74=\"\",\"\",Summary_Products!AV74)","v":""},{"$f":"IF(Summary_Products!AW74=\"\",\"\",Summary_Products!AW74)","v":""},{"$f":"IF(Summary_Products!AX74=\"\",\"\",Summary_Products!AX74)","v":""},{"$f":"IF(Summary_Products!AY74=\"\",\"\",Summary_Products!AY74)","v":""},{"$f":"IF(Summary_Products!AZ74=\"\",\"\",Summary_Products!AZ74)","v":""},{"$f":"IF(Summary_Products!BA74=\"\",\"\",Summary_Products!BA74)","v":""}]
[null,null,66,{"$f":"IF(Summary_Products!D75=\"\",\"\",Summary_Products!D75)","v":""},{"$f":"IF(Summary_Products!E75=\"\",\"\",INDEX(Translations!$C:$C,MATCH(Summary_Products!E75,Translations!$B:$B,0)))","v":""},{"$f":"IF(Summary_Products!F75=\"\",\"\",Summary_Products!F75)","v":""},{"$f":"IF(F91=\"\",\"\",INDEX(Parameters_CNCodes!$H$4:$H$752,MATCH(F91,CNCodes_ListKey,0)))","v":""},{"$f":"IF(Summary_Products!H75=\"\",\"\",Summary_Products!H75)","v":""},{"$f":"IF(Summary_Products!I75=\"\",\"\",Summary_Products!I75)","v":""},{"$f":"IF(Summary_Products!J75=\"\",\"\",Summary_Products!J75)","v":""},{"$f":"IF(Summary_Products!K75=\"\",\"\",Summary_Products!K75)","v":""},{"$f":"IF(Summary_Products!L75=\"\",\"\",Summary_Products!L75)","v":""},{"$f":"IF(Summary_Products!M75=\"\",\"\",Summary_Products!M75)","v":""},{"$f":"IF(Summary_Products!N75=\"\",\"\",Summary_Products!N75)","v":""},{"$f":"IF(Summary_Products!O75=\"\",\"\",Summary_Products!O75)","v":""},{"$f":"IF(Summary_Products!P75=\"\",\"\",INDEX(Translations!$C:$C,MATCH(Summary_Products!P75,Translations!$B:$B,0)))","v":""},{"$f":"IF(Summary_Products!Q75=\"\",\"\",Summary_Products!Q75)","v":""},{"$f":"IF(Summary_Products!R75=\"\",\"\",Summary_Products!R75)","v":""},{"$f":"IF(Summary_Products!S75=\"\",\"\",Summary_Products!S75)","v":""},{"$f":"IF(Summary_Products!T75=\"\",\"\",Summary_Products!T75)","v":""},{"$f":"IF(Summary_Products!U75=\"\",\"\",Summary_Products!U75)","v":""},{"$f":"IF(Summary_Products!V75=\"\",\"\",Summary_Products!V75)","v":""},{"$f":"IF(Summary_Products!W75=\"\",\"\",Summary_Products!W75)","v":""},{"$f":"IF(Summary_Products!X75=\"\",\"\",Summary_Products!X75)","v":""},{"$f":"IF(Summary_Products!Y75=\"\",\"\",Summary_Products!Y75)","v":""},{"$f":"IF(Summary_Products!Z75=\"\",\"\",Summary_Products!Z75)","v":""},{"$f":"IF(Summary_Products!AA75=\"\",\"\",Summary_Products!AA75)","v":""},{"$f":"IF(Summary_Products!AB75=\"\",\"\",Summary_Products!AB75)","v":""},{"$f":"IF(Summary_Products!AC75=\"\",\"\",Summary_Products!AC75)","v":""},{"$f":"IF(Summary_Products!AD75=\"\",\"\",Summary_Products!AD75)","v":""},{"$f":"IF(Summary_Products!AE75=\"\",\"\",Summary_Products!AE75)","v":""},{"$f":"IF(Summary_Products!AF75=\"\",\"\",Summary_Products!AF75)","v":""},{"$f":"IF(Summary_Products!AG75=\"\",\"\",Summary_Products!AG75)","v":""},{"$f":"IF(Summary_Products!AH75=\"\",\"\",Summary_Products!AH75)","v":""},{"$f":"IF(Summary_Products!AI75=\"\",\"\",Summary_Products!AI75)","v":""},{"$f":"IF(Summary_Products!AJ75=\"\",\"\",Summary_Products!AJ75)","v":""},{"$f":"IF(Summary_Products!AK75=\"\",\"\",Summary_Products!AK75)","v":""},{"$f":"IF(Summary_Products!AL75=\"\",\"\",INDEX(Translations!$C:$C,MATCH(Summary_Products!AL75,Translations!$B:$B,0)))","v":""},{"$f":"IF(Summary_Products!AM75=\"\",\"\",Summary_Products!AM75)","v":""},{"$f":"IF(Summary_Products!AN75=\"\",\"\",Summary_Products!AN75)","v":""},{"$f":"IF(Summary_Products!AO75=\"\",\"\",Summary_Products!AO75)","v":""},{"$f":"IF(Summary_Products!AP75=\"\",\"\",Summary_Products!AP75)","v":""},{"$f":"IF(Summary_Products!AR75=\"\",\"\",Summary_Products!AR75)","v":""},{"$f":"IF(Summary_Products!AS75=\"\",\"\",Summary_Products!AS75)","v":""},{"$f":"IF(Summary_Products!AT75=\"\",\"\",INDEX(Translations!$C:$C,MATCH(Summary_Products!AT75,Translations!$B:$B,0)))","v":""},{"$f":"IF(Summary_Products!AU75=\"\",\"\",Summary_Products!AU75)","v":""},{"$f":"IF(Summary_Products!AV75=\"\",\"\",Summary_Products!AV75)","v":""},{"$f":"IF(Summary_Products!AW75=\"\",\"\",Summary_Products!AW75)","v":""},{"$f":"IF(Summary_Products!AX75=\"\",\"\",Summary_Products!AX75)","v":""},{"$f":"IF(Summary_Products!AY75=\"\",\"\",Summary_Products!AY75)","v":""},{"$f":"IF(Summary_Products!AZ75=\"\",\"\",Summary_Products!AZ75)","v":""},{"$f":"IF(Summary_Products!BA75=\"\",\"\",Summary_Products!BA75)","v":""}]
[null,null,67,{"$f":"IF(Summary_Products!D76=\"\",\"\",Summary_Products!D76)","v":""},{"$f":"IF(Summary_Products!E76=\"\",\"\",INDEX(Translations!$C:$C,MATCH(Summary_Products!E76,Translations!$B:$B,0)))","v":""},{"$f":"IF(Summary_Products!F76=\"\",\"\",Summary_Products!F76)","v":""},{"$f":"IF(F92=\"\",\"\",INDEX(Parameters_CNCodes!$H$4:$H$752,MATCH(F92,CNCodes_ListKey,0)))","v":""},{"$f":"IF(Summary_Products!H76=\"\",\"\",Summary_Products!H76)","v":""},{"$f":"IF(Summary_Products!I76=\"\",\"\",Summary_Products!I76)","v":""},{"$f":"IF(Summary_Products!J76=\"\",\"\",Summary_Products!J76)","v":""},{"$f":"IF(Summary_Products!K76=\"\",\"\",Summary_Products!K76)","v":""},{"$f":"IF(Summary_Products!L76=\"\",\"\",Summary_Products!L76)","v":""},{"$f":"IF(Summary_Products!M76=\"\",\"\",Summary_Products!M76)","v":""},{"$f":"IF(Summary_Products!N76=\"\",\"\",Summary_Products!N76)","v":""},{"$f":"IF(Summary_Products!O76=\"\",\"\",Summary_Products!O76)","v":""},{"$f":"IF(Summary_Products!P76=\"\",\"\",INDEX(Translations!$C:$C,MATCH(Summary_Products!P76,Translations!$B:$B,0)))","v":""},{"$f":"IF(Summary_Products!Q76=\"\",\"\",Summary_Products!Q76)","v":""},{"$f":"IF(Summary_Products!R76=\"\",\"\",Summary_Products!R76)","v":""},{"$f":"IF(Summary_Products!S76=\"\",\"\",Summary_Products!S76)","v":""},{"$f":"IF(Summary_Products!T76=\"\",\"\",Summary_Products!T76)","v":""},{"$f":"IF(Summary_Products!U76=\"\",\"\",Summary_Products!U76)","v":""},{"$f":"IF(Summary_Products!V76=\"\",\"\",Summary_Products!V76)","v":""},{"$f":"IF(Summary_Products!W76=\"\",\"\",Summary_Products!W76)","v":""},{"$f":"IF(Summary_Products!X76=\"\",\"\",Summary_Products!X76)","v":""},{"$f":"IF(Summary_Products!Y76=\"\",\"\",Summary_Products!Y76)","v":""},{"$f":"IF(Summary_Products!Z76=\"\",\"\",Summary_Products!Z76)","v":""},{"$f":"IF(Summary_Products!AA76=\"\",\"\",Summary_Products!AA76)","v":""},{"$f":"IF(Summary_Products!AB76=\"\",\"\",Summary_Products!AB76)","v":""},{"$f":"IF(Summary_Products!AC76=\"\",\"\",Summary_Products!AC76)","v":""},{"$f":"IF(Summary_Products!AD76=\"\",\"\",Summary_Products!AD76)","v":""},{"$f":"IF(Summary_Products!AE76=\"\",\"\",Summary_Products!AE76)","v":""},{"$f":"IF(Summary_Products!AF76=\"\",\"\",Summary_Products!AF76)","v":""},{"$f":"IF(Summary_Products!AG76=\"\",\"\",Summary_Products!AG76)","v":""},{"$f":"IF(Summary_Products!AH76=\"\",\"\",Summary_Products!AH76)","v":""},{"$f":"IF(Summary_Products!AI76=\"\",\"\",Summary_Products!AI76)","v":""},{"$f":"IF(Summary_Products!AJ76=\"\",\"\",Summary_Products!AJ76)","v":""},{"$f":"IF(Summary_Products!AK76=\"\",\"\",Summary_Products!AK76)","v":""},{"$f":"IF(Summary_Products!AL76=\"\",\"\",INDEX(Translations!$C:$C,MATCH(Summary_Products!AL76,Translations!$B:$B,0)))","v":""},{"$f":"IF(Summary_Products!AM76=\"\",\"\",Summary_Products!AM76)","v":""},{"$f":"IF(Summary_Products!AN76=\"\",\"\",Summary_Products!AN76)","v":""},{"$f":"IF(Summary_Products!AO76=\"\",\"\",Summary_Products!AO76)","v":""},{"$f":"IF(Summary_Products!AP76=\"\",\"\",Summary_Products!AP76)","v":""},{"$f":"IF(Summary_Products!AR76=\"\",\"\",Summary_Products!AR76)","v":""},{"$f":"IF(Summary_Products!AS76=\"\",\"\",Summary_Products!AS76)","v":""},{"$f":"IF(Summary_Products!AT76=\"\",\"\",INDEX(Translations!$C:$C,MATCH(Summary_Products!AT76,Translations!$B:$B,0)))","v":""},{"$f":"IF(Summary_Products!AU76=\"\",\"\",Summary_Products!AU76)","v":""},{"$f":"IF(Summary_Products!AV76=\"\",\"\",Summary_Products!AV76)","v":""},{"$f":"IF(Summary_Products!AW76=\"\",\"\",Summary_Products!AW76)","v":""},{"$f":"IF(Summary_Products!AX76=\"\",\"\",Summary_Products!AX76)","v":""},{"$f":"IF(Summary_Products!AY76=\"\",\"\",Summary_Products!AY76)","v":""},{"$f":"IF(Summary_Products!AZ76=\"\",\"\",Summary_Products!AZ76)","v":""},{"$f":"IF(Summary_Products!BA76=\"\",\"\",Summary_Products!BA76)","v":""}]
[null,null,68,{"$f":"IF(Summary_Products!D77=\"\",\"\",Summary_Products!D77)","v":""},{"$f":"IF(Summary_Products!E77=\"\",\"\",INDEX(Translations!$C:$C,MATCH(Summary_Products!E77,Translations!$B:$B,0)))","v":""},{"$f":"IF(Summary_Products!F77=\"\",\"\",Summary_Products!F77)","v":""},{"$f":"IF(F93=\"\",\"\",INDEX(Parameters_CNCodes!$H$4:$H$752,MATCH(F93,CNCodes_ListKey,0)))","v":""},{"$f":"IF(Summary_Products!H77=\"\",\"\",Summary_Products!H77)","v":""},{"$f":"IF(Summary_Products!I77=\"\",\"\",Summary_Products!I77)","v":""},{"$f":"IF(Summary_Products!J77=\"\",\"\",Summary_Products!J77)","v":""},{"$f":"IF(Summary_Products!K77=\"\",\"\",Summary_Products!K77)","v":""},{"$f":"IF(Summary_Products!L77=\"\",\"\",Summary_Products!L77)","v":""},{"$f":"IF(Summary_Products!M77=\"\",\"\",Summary_Products!M77)","v":""},{"$f":"IF(Summary_Products!N77=\"\",\"\",Summary_Products!N77)","v":""},{"$f":"IF(Summary_Products!O77=\"\",\"\",Summary_Products!O77)","v":""},{"$f":"IF(Summary_Products!P77=\"\",\"\",INDEX(Translations!$C:$C,MATCH(Summary_Products!P77,Translations!$B:$B,0)))","v":""},{"$f":"IF(Summary_Products!Q77=\"\",\"\",Summary_Products!Q77)","v":""},{"$f":"IF(Summary_Products!R77=\"\",\"\",Summary_Products!R77)","v":""},{"$f":"IF(Summary_Products!S77=\"\",\"\",Summary_Products!S77)","v":""},{"$f":"IF(Summary_Products!T77=\"\",\"\",Summary_Products!T77)","v":""},{"$f":"IF(Summary_Products!U77=\"\",\"\",Summary_Products!U77)","v":""},{"$f":"IF(Summary_Products!V77=\"\",\"\",Summary_Products!V77)","v":""},{"$f":"IF(Summary_Products!W77=\"\",\"\",Summary_Products!W77)","v":""},{"$f":"IF(Summary_Products!X77=\"\",\"\",Summary_Products!X77)","v":""},{"$f":"IF(Summary_Products!Y77=\"\",\"\",Summary_Products!Y77)","v":""},{"$f":"IF(Summary_Products!Z77=\"\",\"\",Summary_Products!Z77)","v":""},{"$f":"IF(Summary_Products!AA77=\"\",\"\",Summary_Products!AA77)","v":""},{"$f":"IF(Summary_Products!AB77=\"\",\"\",Summary_Products!AB77)","v":""},{"$f":"IF(Summary_Products!AC77=\"\",\"\",Summary_Products!AC77)","v":""},{"$f":"IF(Summary_Products!AD77=\"\",\"\",Summary_Products!AD77)","v":""},{"$f":"IF(Summary_Products!AE77=\"\",\"\",Summary_Products!AE77)","v":""},{"$f":"IF(Summary_Products!AF77=\"\",\"\",Summary_Products!AF77)","v":""},{"$f":"IF(Summary_Products!AG77=\"\",\"\",Summary_Products!AG77)","v":""},{"$f":"IF(Summary_Products!AH77=\"\",\"\",Summary_Products!AH77)","v":""},{"$f":"IF(Summary_Products!AI77=\"\",\"\",Summary_Products!AI77)","v":""},{"$f":"IF(Summary_Products!AJ77=\"\",\"\",Summary_Products!AJ77)","v":""},{"$f":"IF(Summary_Products!AK77=\"\",\"\",Summary_Products!AK77)","v":""},{"$f":"IF(Summary_Products!AL77=\"\",\"\",INDEX(Translations!$C:$C,MATCH(Summary_Products!AL77,Translations!$B:$B,0)))","v":""},{"$f":"IF(Summary_Products!AM77=\"\",\"\",Summary_Products!AM77)","v":""},{"$f":"IF(Summary_Products!AN77=\"\",\"\",Summary_Products!AN77)","v":""},{"$f":"IF(Summary_Products!AO77=\"\",\"\",Summary_Products!AO77)","v":""},{"$f":"IF(Summary_Products!AP77=\"\",\"\",Summary_Products!AP77)","v":""},{"$f":"IF(Summary_Products!AR77=\"\",\"\",Summary_Products!AR77)","v":""},{"$f":"IF(Summary_Products!AS77=\"\",\"\",Summary_Products!AS77)","v":""},{"$f":"IF(Summary_Products!AT77=\"\",\"\",INDEX(Translations!$C:$C,MATCH(Summary_Products!AT77,Translations!$B:$B,0)))","v":""},{"$f":"IF(Summary_Products!AU77=\"\",\"\",Summary_Products!AU77)","v":""},{"$f":"IF(Summary_Products!AV77=\"\",\"\",Summary_Products!AV77)","v":""},{"$f":"IF(Summary_Products!AW77=\"\",\"\",Summary_Products!AW77)","v":""},{"$f":"IF(Summary_Products!AX77=\"\",\"\",Summary_Products!AX77)","v":""},{"$f":"IF(Summary_Products!AY77=\"\",\"\",Summary_Products!AY77)","v":""},{"$f":"IF(Summary_Products!AZ77=\"\",\"\",Summary_Products!AZ77)","v":""},{"$f":"IF(Summary_Products!BA77=\"\",\"\",Summary_Products!BA77)","v":""}]
[null,null,69,{"$f":"IF(Summary_Products!D78=\"\",\"\",Summary_Products!D78)","v":""},{"$f":"IF(Summary_Products!E78=\"\",\"\",INDEX(Translations!$C:$C,MATCH(Summary_Products!E78,Translations!$B:$B,0)))","v":""},{"$f":"IF(Summary_Products!F78=\"\",\"\",Summary_Products!F78)","v":""},{"$f":"IF(F94=\"\",\"\",INDEX(Parameters_CNCodes!$H$4:$H$752,MATCH(F94,CNCodes_ListKey,0)))","v":""},{"$f":"IF(Summary_Products!H78=\"\",\"\",Summary_Products!H78)","v":""},{"$f":"IF(Summary_Products!I78=\"\",\"\",Summary_Products!I78)","v":""},{"$f":"IF(Summary_Products!J78=\"\",\"\",Summary_Products!J78)","v":""},{"$f":"IF(Summary_Products!K78=\"\",\"\",Summary_Products!K78)","v":""},{"$f":"IF(Summary_Products!L78=\"\",\"\",Summary_Products!L78)","v":""},{"$f":"IF(Summary_Products!M78=\"\",\"\",Summary_Products!M78)","v":""},{"$f":"IF(Summary_Products!N78=\"\",\"\",Summary_Products!N78)","v":""},{"$f":"IF(Summary_Products!O78=\"\",\"\",Summary_Products!O78)","v":""},{"$f":"IF(Summary_Products!P78=\"\",\"\",INDEX(Translations!$C:$C,MATCH(Summary_Products!P78,Translations!$B:$B,0)))","v":""},{"$f":"IF(Summary_Products!Q78=\"\",\"\",Summary_Products!Q78)","v":""},{"$f":"IF(Summary_Products!R78=\"\",\"\",Summary_Products!R78)","v":""},{"$f":"IF(Summary_Products!S78=\"\",\"\",Summary_Products!S78)","v":""},{"$f":"IF(Summary_Products!T78=\"\",\"\",Summary_Products!T78)","v":""},{"$f":"IF(Summary_Products!U78=\"\",\"\",Summary_Products!U78)","v":""},{"$f":"IF(Summary_Products!V78=\"\",\"\",Summary_Products!V78)","v":""},{"$f":"IF(Summary_Products!W78=\"\",\"\",Summary_Products!W78)","v":""},{"$f":"IF(Summary_Products!X78=\"\",\"\",Summary_Products!X78)","v":""},{"$f":"IF(Summary_Products!Y78=\"\",\"\",Summary_Products!Y78)","v":""},{"$f":"IF(Summary_Products!Z78=\"\",\"\",Summary_Products!Z78)","v":""},{"$f":"IF(Summary_Products!AA78=\"\",\"\",Summary_Products!AA78)","v":""},{"$f":"IF(Summary_Products!AB78=\"\",\"\",Summary_Products!AB78)","v":""},{"$f":"IF(Summary_Products!AC78=\"\",\"\",Summary_Products!AC78)","v":""},{"$f":"IF(Summary_Products!AD78=\"\",\"\",Summary_Products!AD78)","v":""},{"$f":"IF(Summary_Products!AE78=\"\",\"\",Summary_Products!AE78)","v":""},{"$f":"IF(Summary_Products!AF78=\"\",\"\",Summary_Products!AF78)","v":""},{"$f":"IF(Summary_Products!AG78=\"\",\"\",Summary_Products!AG78)","v":""},{"$f":"IF(Summary_Products!AH78=\"\",\"\",Summary_Products!AH78)","v":""},{"$f":"IF(Summary_Products!AI78=\"\",\"\",Summary_Products!AI78)","v":""},{"$f":"IF(Summary_Products!AJ78=\"\",\"\",Summary_Products!AJ78)","v":""},{"$f":"IF(Summary_Products!AK78=\"\",\"\",Summary_Products!AK78)","v":""},{"$f":"IF(Summary_Products!AL78=\"\",\"\",INDEX(Translations!$C:$C,MATCH(Summary_Products!AL78,Translations!$B:$B,0)))","v":""},{"$f":"IF(Summary_Products!AM78=\"\",\"\",Summary_Products!AM78)","v":""},{"$f":"IF(Summary_Products!AN78=\"\",\"\",Summary_Products!AN78)","v":""},{"$f":"IF(Summary_Products!AO78=\"\",\"\",Summary_Products!AO78)","v":""},{"$f":"IF(Summary_Products!AP78=\"\",\"\",Summary_Products!AP78)","v":""},{"$f":"IF(Summary_Products!AR78=\"\",\"\",Summary_Products!AR78)","v":""},{"$f":"IF(Summary_Products!AS78=\"\",\"\",Summary_Products!AS78)","v":""},{"$f":"IF(Summary_Products!AT78=\"\",\"\",INDEX(Translations!$C:$C,MATCH(Summary_Products!AT78,Translations!$B:$B,0)))","v":""},{"$f":"IF(Summary_Products!AU78=\"\",\"\",Summary_Products!AU78)","v":""},{"$f":"IF(Summary_Products!AV78=\"\",\"\",Summary_Products!AV78)","v":""},{"$f":"IF(Summary_Products!AW78=\"\",\"\",Summary_Products!AW78)","v":""},{"$f":"IF(Summary_Products!AX78=\"\",\"\",Summary_Products!AX78)","v":""},{"$f":"IF(Summary_Products!AY78=\"\",\"\",Summary_Products!AY78)","v":""},{"$f":"IF(Summary_Products!AZ78=\"\",\"\",Summary_Products!AZ78)","v":""},{"$f":"IF(Summary_Products!BA78=\"\",\"\",Summary_Products!BA78)","v":""}]
[null,null,70,{"$f":"IF(Summary_Products!D79=\"\",\"\",Summary_Products!D79)","v":""},{"$f":"IF(Summary_Products!E79=\"\",\"\",INDEX(Translations!$C:$C,MATCH(Summary_Products!E79,Translations!$B:$B,0)))","v":""},{"$f":"IF(Summary_Products!F79=\"\",\"\",Summary_Products!F79)","v":""},{"$f":"IF(F95=\"\",\"\",INDEX(Parameters_CNCodes!$H$4:$H$752,MATCH(F95,CNCodes_ListKey,0)))","v":""},{"$f":"IF(Summary_Products!H79=\"\",\"\",Summary_Products!H79)","v":""},{"$f":"IF(Summary_Products!I79=\"\",\"\",Summary_Products!I79)","v":""},{"$f":"IF(Summary_Products!J79=\"\",\"\",Summary_Products!J79)","v":""},{"$f":"IF(Summary_Products!K79=\"\",\"\",Summary_Products!K79)","v":""},{"$f":"IF(Summary_Products!L79=\"\",\"\",Summary_Products!L79)","v":""},{"$f":"IF(Summary_Products!M79=\"\",\"\",Summary_Products!M79)","v":""},{"$f":"IF(Summary_Products!N79=\"\",\"\",Summary_Products!N79)","v":""},{"$f":"IF(Summary_Products!O79=\"\",\"\",Summary_Products!O79)","v":""},{"$f":"IF(Summary_Products!P79=\"\",\"\",INDEX(Translations!$C:$C,MATCH(Summary_Products!P79,Translations!$B:$B,0)))","v":""},{"$f":"IF(Summary_Products!Q79=\"\",\"\",Summary_Products!Q79)","v":""},{"$f":"IF(Summary_Products!R79=\"\",\"\",Summary_Products!R79)","v":""},{"$f":"IF(Summary_Products!S79=\"\",\"\",Summary_Products!S79)","v":""},{"$f":"IF(Summary_Products!T79=\"\",\"\",Summary_Products!T79)","v":""},{"$f":"IF(Summary_Products!U79=\"\",\"\",Summary_Products!U79)","v":""},{"$f":"IF(Summary_Products!V79=\"\",\"\",Summary_Products!V79)","v":""},{"$f":"IF(Summary_Products!W79=\"\",\"\",Summary_Products!W79)","v":""},{"$f":"IF(Summary_Products!X79=\"\",\"\",Summary_Products!X79)","v":""},{"$f":"IF(Summary_Products!Y79=\"\",\"\",Summary_Products!Y79)","v":""},{"$f":"IF(Summary_Products!Z79=\"\",\"\",Summary_Products!Z79)","v":""},{"$f":"IF(Summary_Products!AA79=\"\",\"\",Summary_Products!AA79)","v":""},{"$f":"IF(Summary_Products!AB79=\"\",\"\",Summary_Products!AB79)","v":""},{"$f":"IF(Summary_Products!AC79=\"\",\"\",Summary_Products!AC79)","v":""},{"$f":"IF(Summary_Products!AD79=\"\",\"\",Summary_Products!AD79)","v":""},{"$f":"IF(Summary_Products!AE79=\"\",\"\",Summary_Products!AE79)","v":""},{"$f":"IF(Summary_Products!AF79=\"\",\"\",Summary_Products!AF79)","v":""},{"$f":"IF(Summary_Products!AG79=\"\",\"\",Summary_Products!AG79)","v":""},{"$f":"IF(Summary_Products!AH79=\"\",\"\",Summary_Products!AH79)","v":""},{"$f":"IF(Summary_Products!AI79=\"\",\"\",Summary_Products!AI79)","v":""},{"$f":"IF(Summary_Products!AJ79=\"\",\"\",Summary_Products!AJ79)","v":""},{"$f":"IF(Summary_Products!AK79=\"\",\"\",Summary_Products!AK79)","v":""},{"$f":"IF(Summary_Products!AL79=\"\",\"\",INDEX(Translations!$C:$C,MATCH(Summary_Products!AL79,Translations!$B:$B,0)))","v":""},{"$f":"IF(Summary_Products!AM79=\"\",\"\",Summary_Products!AM79)","v":""},{"$f":"IF(Summary_Products!AN79=\"\",\"\",Summary_Products!AN79)","v":""},{"$f":"IF(Summary_Products!AO79=\"\",\"\",Summary_Products!AO79)","v":""},{"$f":"IF(Summary_Products!AP79=\"\",\"\",Summary_Products!AP79)","v":""},{"$f":"IF(Summary_Products!AR79=\"\",\"\",Summary_Products!AR79)","v":""},{"$f":"IF(Summary_Products!AS79=\"\",\"\",Summary_Products!AS79)","v":""},{"$f":"IF(Summary_Products!AT79=\"\",\"\",INDEX(Translations!$C:$C,MATCH(Summary_Products!AT79,Translations!$B:$B,0)))","v":""},{"$f":"IF(Summary_Products!AU79=\"\",\"\",Summary_Products!AU79)","v":""},{"$f":"IF(Summary_Products!AV79=\"\",\"\",Summary_Products!AV79)","v":""},{"$f":"IF(Summary_Products!AW79=\"\",\"\",Summary_Products!AW79)","v":""},{"$f":"IF(Summary_Products!AX79=\"\",\"\",Summary_Products!AX79)","v":""},{"$f":"IF(Summary_Products!AY79=\"\",\"\",Summary_Products!AY79)","v":""},{"$f":"IF(Summary_Products!AZ79=\"\",\"\",Summary_Products!AZ79)","v":""},{"$f":"IF(Summary_Products!BA79=\"\",\"\",Summary_Products!BA79)","v":""}]
[null,null,71,{"$f":"IF(Summary_Products!D80=\"\",\"\",Summary_Products!D80)","v":""},{"$f":"IF(Summary_Products!E80=\"\",\"\",INDEX(Translations!$C:$C,MATCH(Summary_Products!E80,Translations!$B:$B,0)))","v":""},{"$f":"IF(Summary_Products!F80=\"\",\"\",Summary_Products!F80)","v":""},{"$f":"IF(F96=\"\",\"\",INDEX(Parameters_CNCodes!$H$4:$H$752,MATCH(F96,CNCodes_ListKey,0)))","v":""},{"$f":"IF(Summary_Products!H80=\"\",\"\",Summary_Products!H80)","v":""},{"$f":"IF(Summary_Products!I80=\"\",\"\",Summary_Products!I80)","v":""},{"$f":"IF(Summary_Products!J80=\"\",\"\",Summary_Products!J80)","v":""},{"$f":"IF(Summary_Products!K80=\"\",\"\",Summary_Products!K80)","v":""},{"$f":"IF(Summary_Products!L80=\"\",\"\",Summary_Products!L80)","v":""},{"$f":"IF(Summary_Products!M80=\"\",\"\",Summary_Products!M80)","v":""},{"$f":"IF(Summary_Products!N80=\"\",\"\",Summary_Products!N80)","v":""},{"$f":"IF(Summary_Products!O80=\"\",\"\",Summary_Products!O80)","v":""},{"$f":"IF(Summary_Products!P80=\"\",\"\",INDEX(Translations!$C:$C,MATCH(Summary_Products!P80,Translations!$B:$B,0)))","v":""},{"$f":"IF(Summary_Products!Q80=\"\",\"\",Summary_Products!Q80)","v":""},{"$f":"IF(Summary_Products!R80=\"\",\"\",Summary_Products!R80)","v":""},{"$f":"IF(Summary_Products!S80=\"\",\"\",Summary_Products!S80)","v":""},{"$f":"IF(Summary_Products!T80=\"\",\"\",Summary_Products!T80)","v":""},{"$f":"IF(Summary_Products!U80=\"\",\"\",Summary_Products!U80)","v":""},{"$f":"IF(Summary_Products!V80=\"\",\"\",Summary_Products!V80)","v":""},{"$f":"IF(Summary_Products!W80=\"\",\"\",Summary_Products!W80)","v":""},{"$f":"IF(Summary_Products!X80=\"\",\"\",Summary_Products!X80)","v":""},{"$f":"IF(Summary_Products!Y80=\"\",\"\",Summary_Products!Y80)","v":""},{"$f":"IF(Summary_Products!Z80=\"\",\"\",Summary_Products!Z80)","v":""},{"$f":"IF(Summary_Products!AA80=\"\",\"\",Summary_Products!AA80)","v":""},{"$f":"IF(Summary_Products!AB80=\"\",\"\",Summary_Products!AB80)","v":""},{"$f":"IF(Summary_Products!AC80=\"\",\"\",Summary_Products!AC80)","v":""},{"$f":"IF(Summary_Products!AD80=\"\",\"\",Summary_Products!AD80)","v":""},{"$f":"IF(Summary_Products!AE80=\"\",\"\",Summary_Products!AE80)","v":""},{"$f":"IF(Summary_Products!AF80=\"\",\"\",Summary_Products!AF80)","v":""},{"$f":"IF(Summary_Products!AG80=\"\",\"\",Summary_Products!AG80)","v":""},{"$f":"IF(Summary_Products!AH80=\"\",\"\",Summary_Products!AH80)","v":""},{"$f":"IF(Summary_Products!AI80=\"\",\"\",Summary_Products!AI80)","v":""},{"$f":"IF(Summary_Products!AJ80=\"\",\"\",Summary_Products!AJ80)","v":""},{"$f":"IF(Summary_Products!AK80=\"\",\"\",Summary_Products!AK80)","v":""},{"$f":"IF(Summary_Products!AL80=\"\",\"\",INDEX(Translations!$C:$C,MATCH(Summary_Products!AL80,Translations!$B:$B,0)))","v":""},{"$f":"IF(Summary_Products!AM80=\"\",\"\",Summary_Products!AM80)","v":""},{"$f":"IF(Summary_Products!AN80=\"\",\"\",Summary_Products!AN80)","v":""},{"$f":"IF(Summary_Products!AO80=\"\",\"\",Summary_Products!AO80)","v":""},{"$f":"IF(Summary_Products!AP80=\"\",\"\",Summary_Products!AP80)","v":""},{"$f":"IF(Summary_Products!AR80=\"\",\"\",Summary_Products!AR80)","v":""},{"$f":"IF(Summary_Products!AS80=\"\",\"\",Summary_Products!AS80)","v":""},{"$f":"IF(Summary_Products!AT80=\"\",\"\",INDEX(Translations!$C:$C,MATCH(Summary_Products!AT80,Translations!$B:$B,0)))","v":""},{"$f":"IF(Summary_Products!AU80=\"\",\"\",Summary_Products!AU80)","v":""},{"$f":"IF(Summary_Products!AV80=\"\",\"\",Summary_Products!AV80)","v":""},{"$f":"IF(Summary_Products!AW80=\"\",\"\",Summary_Products!AW80)","v":""},{"$f":"IF(Summary_Products!AX80=\"\",\"\",Summary_Products!AX80)","v":""},{"$f":"IF(Summary_Products!AY80=\"\",\"\",Summary_Products!AY80)","v":""},{"$f":"IF(Summary_Products!AZ80=\"\",\"\",Summary_Products!AZ80)","v":""},{"$f":"IF(Summary_Products!BA80=\"\",\"\",Summary_Products!BA80)","v":""}]
[null,null,72,{"$f":"IF(Summary_Products!D81=\"\",\"\",Summary_Products!D81)","v":""},{"$f":"IF(Summary_Products!E81=\"\",\"\",INDEX(Translations!$C:$C,MATCH(Summary_Products!E81,Translations!$B:$B,0)))","v":""},{"$f":"IF(Summary_Products!F81=\"\",\"\",Summary_Products!F81)","v":""},{"$f":"IF(F97=\"\",\"\",INDEX(Parameters_CNCodes!$H$4:$H$752,MATCH(F97,CNCodes_ListKey,0)))","v":""},{"$f":"IF(Summary_Products!H81=\"\",\"\",Summary_Products!H81)","v":""},{"$f":"IF(Summary_Products!I81=\"\",\"\",Summary_Products!I81)","v":""},{"$f":"IF(Summary_Products!J81=\"\",\"\",Summary_Products!J81)","v":""},{"$f":"IF(Summary_Products!K81=\"\",\"\",Summary_Products!K81)","v":""},{"$f":"IF(Summary_Products!L81=\"\",\"\",Summary_Products!L81)","v":""},{"$f":"IF(Summary_Products!M81=\"\",\"\",Summary_Products!M81)","v":""},{"$f":"IF(Summary_Products!N81=\"\",\"\",Summary_Products!N81)","v":""},{"$f":"IF(Summary_Products!O81=\"\",\"\",Summary_Products!O81)","v":""},{"$f":"IF(Summary_Products!P81=\"\",\"\",INDEX(Translations!$C:$C,MATCH(Summary_Products!P81,Translations!$B:$B,0)))","v":""},{"$f":"IF(Summary_Products!Q81=\"\",\"\",Summary_Products!Q81)","v":""},{"$f":"IF(Summary_Products!R81=\"\",\"\",Summary_Products!R81)","v":""},{"$f":"IF(Summary_Products!S81=\"\",\"\",Summary_Products!S81)","v":""},{"$f":"IF(Summary_Products!T81=\"\",\"\",Summary_Products!T81)","v":""},{"$f":"IF(Summary_Products!U81=\"\",\"\",Summary_Products!U81)","v":""},{"$f":"IF(Summary_Products!V81=\"\",\"\",Summary_Products!V81)","v":""},{"$f":"IF(Summary_Products!W81=\"\",\"\",Summary_Products!W81)","v":""},{"$f":"IF(Summary_Products!X81=\"\",\"\",Summary_Products!X81)","v":""},{"$f":"IF(Summary_Products!Y81=\"\",\"\",Summary_Products!Y81)","v":""},{"$f":"IF(Summary_Products!Z81=\"\",\"\",Summary_Products!Z81)","v":""},{"$f":"IF(Summary_Products!AA81=\"\",\"\",Summary_Products!AA81)","v":""},{"$f":"IF(Summary_Products!AB81=\"\",\"\",Summary_Products!AB81)","v":""},{"$f":"IF(Summary_Products!AC81=\"\",\"\",Summary_Products!AC81)","v":""},{"$f":"IF(Summary_Products!AD81=\"\",\"\",Summary_Products!AD81)","v":""},{"$f":"IF(Summary_Products!AE81=\"\",\"\",Summary_Products!AE81)","v":""},{"$f":"IF(Summary_Products!AF81=\"\",\"\",Summary_Products!AF81)","v":""},{"$f":"IF(Summary_Products!AG81=\"\",\"\",Summary_Products!AG81)","v":""},{"$f":"IF(Summary_Products!AH81=\"\",\"\",Summary_Products!AH81)","v":""},{"$f":"IF(Summary_Products!AI81=\"\",\"\",Summary_Products!AI81)","v":""},{"$f":"IF(Summary_Products!AJ81=\"\",\"\",Summary_Products!AJ81)","v":""},{"$f":"IF(Summary_Products!AK81=\"\",\"\",Summary_Products!AK81)","v":""},{"$f":"IF(Summary_Products!AL81=\"\",\"\",INDEX(Translations!$C:$C,MATCH(Summary_Products!AL81,Translations!$B:$B,0)))","v":""},{"$f":"IF(Summary_Products!AM81=\"\",\"\",Summary_Products!AM81)","v":""},{"$f":"IF(Summary_Products!AN81=\"\",\"\",Summary_Products!AN81)","v":""},{"$f":"IF(Summary_Products!AO81=\"\",\"\",Summary_Products!AO81)","v":""},{"$f":"IF(Summary_Products!AP81=\"\",\"\",Summary_Products!AP81)","v":""},{"$f":"IF(Summary_Products!AR81=\"\",\"\",Summary_Products!AR81)","v":""},{"$f":"IF(Summary_Products!AS81=\"\",\"\",Summary_Products!AS81)","v":""},{"$f":"IF(Summary_Products!AT81=\"\",\"\",INDEX(Translations!$C:$C,MATCH(Summary_Products!AT81,Translations!$B:$B,0)))","v":""},{"$f":"IF(Summary_Products!AU81=\"\",\"\",Summary_Products!AU81)","v":""},{"$f":"IF(Summary_Products!AV81=\"\",\"\",Summary_Products!AV81)","v":""},{"$f":"IF(Summary_Products!AW81=\"\",\"\",Summary_Products!AW81)","v":""},{"$f":"IF(Summary_Products!AX81=\"\",\"\",Summary_Products!AX81)","v":""},{"$f":"IF(Summary_Products!AY81=\"\",\"\",Summary_Products!AY81)","v":""},{"$f":"IF(Summary_Products!AZ81=\"\",\"\",Summary_Products!AZ81)","v":""},{"$f":"IF(Summary_Products!BA81=\"\",\"\",Summary_Products!BA81)","v":""}]
[null,null,73,{"$f":"IF(Summary_Products!D82=\"\",\"\",Summary_Products!D82)","v":""},{"$f":"IF(Summary_Products!E82=\"\",\"\",INDEX(Translations!$C:$C,MATCH(Summary_Products!E82,Translations!$B:$B,0)))","v":""},{"$f":"IF(Summary_Products!F82=\"\",\"\",Summary_Products!F82)","v":""},{"$f":"IF(F98=\"\",\"\",INDEX(Parameters_CNCodes!$H$4:$H$752,MATCH(F98,CNCodes_ListKey,0)))","v":""},{"$f":"IF(Summary_Products!H82=\"\",\"\",Summary_Products!H82)","v":""},{"$f":"IF(Summary_Products!I82=\"\",\"\",Summary_Products!I82)","v":""},{"$f":"IF(Summary_Products!J82=\"\",\"\",Summary_Products!J82)","v":""},{"$f":"IF(Summary_Products!K82=\"\",\"\",Summary_Products!K82)","v":""},{"$f":"IF(Summary_Products!L82=\"\",\"\",Summary_Products!L82)","v":""},{"$f":"IF(Summary_Products!M82=\"\",\"\",Summary_Products!M82)","v":""},{"$f":"IF(Summary_Products!N82=\"\",\"\",Summary_Products!N82)","v":""},{"$f":"IF(Summary_Products!O82=\"\",\"\",Summary_Products!O82)","v":""},{"$f":"IF(Summary_Products!P82=\"\",\"\",INDEX(Translations!$C:$C,MATCH(Summary_Products!P82,Translations!$B:$B,0)))","v":""},{"$f":"IF(Summary_Products!Q82=\"\",\"\",Summary_Products!Q82)","v":""},{"$f":"IF(Summary_Products!R82=\"\",\"\",Summary_Products!R82)","v":""},{"$f":"IF(Summary_Products!S82=\"\",\"\",Summary_Products!S82)","v":""},{"$f":"IF(Summary_Products!T82=\"\",\"\",Summary_Products!T82)","v":""},{"$f":"IF(Summary_Products!U82=\"\",\"\",Summary_Products!U82)","v":""},{"$f":"IF(Summary_Products!V82=\"\",\"\",Summary_Products!V82)","v":""},{"$f":"IF(Summary_Products!W82=\"\",\"\",Summary_Products!W82)","v":""},{"$f":"IF(Summary_Products!X82=\"\",\"\",Summary_Products!X82)","v":""},{"$f":"IF(Summary_Products!Y82=\"\",\"\",Summary_Products!Y82)","v":""},{"$f":"IF(Summary_Products!Z82=\"\",\"\",Summary_Products!Z82)","v":""},{"$f":"IF(Summary_Products!AA82=\"\",\"\",Summary_Products!AA82)","v":""},{"$f":"IF(Summary_Products!AB82=\"\",\"\",Summary_Products!AB82)","v":""},{"$f":"IF(Summary_Products!AC82=\"\",\"\",Summary_Products!AC82)","v":""},{"$f":"IF(Summary_Products!AD82=\"\",\"\",Summary_Products!AD82)","v":""},{"$f":"IF(Summary_Products!AE82=\"\",\"\",Summary_Products!AE82)","v":""},{"$f":"IF(Summary_Products!AF82=\"\",\"\",Summary_Products!AF82)","v":""},{"$f":"IF(Summary_Products!AG82=\"\",\"\",Summary_Products!AG82)","v":""},{"$f":"IF(Summary_Products!AH82=\"\",\"\",Summary_Products!AH82)","v":""},{"$f":"IF(Summary_Products!AI82=\"\",\"\",Summary_Products!AI82)","v":""},{"$f":"IF(Summary_Products!AJ82=\"\",\"\",Summary_Products!AJ82)","v":""},{"$f":"IF(Summary_Products!AK82=\"\",\"\",Summary_Products!AK82)","v":""},{"$f":"IF(Summary_Products!AL82=\"\",\"\",INDEX(Translations!$C:$C,MATCH(Summary_Products!AL82,Translations!$B:$B,0)))","v":""},{"$f":"IF(Summary_Products!AM82=\"\",\"\",Summary_Products!AM82)","v":""},{"$f":"IF(Summary_Products!AN82=\"\",\"\",Summary_Products!AN82)","v":""},{"$f":"IF(Summary_Products!AO82=\"\",\"\",Summary_Products!AO82)","v":""},{"$f":"IF(Summary_Products!AP82=\"\",\"\",Summary_Products!AP82)","v":""},{"$f":"IF(Summary_Products!AR82=\"\",\"\",Summary_Products!AR82)","v":""},{"$f":"IF(Summary_Products!AS82=\"\",\"\",Summary_Products!AS82)","v":""},{"$f":"IF(Summary_Products!AT82=\"\",\"\",INDEX(Translations!$C:$C,MATCH(Summary_Products!AT82,Translations!$B:$B,0)))","v":""},{"$f":"IF(Summary_Products!AU82=\"\",\"\",Summary_Products!AU82)","v":""},{"$f":"IF(Summary_Products!AV82=\"\",\"\",Summary_Products!AV82)","v":""},{"$f":"IF(Summary_Products!AW82=\"\",\"\",Summary_Products!AW82)","v":""},{"$f":"IF(Summary_Products!AX82=\"\",\"\",Summary_Products!AX82)","v":""},{"$f":"IF(Summary_Products!AY82=\"\",\"\",Summary_Products!AY82)","v":""},{"$f":"IF(Summary_Products!AZ82=\"\",\"\",Summary_Products!AZ82)","v":""},{"$f":"IF(Summary_Products!BA82=\"\",\"\",Summary_Products!BA82)","v":""}]
[null,null,74,{"$f":"IF(Summary_Products!D83=\"\",\"\",Summary_Products!D83)","v":""},{"$f":"IF(Summary_Products!E83=\"\",\"\",INDEX(Translations!$C:$C,MATCH(Summary_Products!E83,Translations!$B:$B,0)))","v":""},{"$f":"IF(Summary_Products!F83=\"\",\"\",Summary_Products!F83)","v":""},{"$f":"IF(F99=\"\",\"\",INDEX(Parameters_CNCodes!$H$4:$H$752,MATCH(F99,CNCodes_ListKey,0)))","v":""},{"$f":"IF(Summary_Products!H83=\"\",\"\",Summary_Products!H83)","v":""},{"$f":"IF(Summary_Products!I83=\"\",\"\",Summary_Products!I83)","v":""},{"$f":"IF(Summary_Products!J83=\"\",\"\",Summary_Products!J83)","v":""},{"$f":"IF(Summary_Products!K83=\"\",\"\",Summary_Products!K83)","v":""},{"$f":"IF(Summary_Products!L83=\"\",\"\",Summary_Products!L83)","v":""},{"$f":"IF(Summary_Products!M83=\"\",\"\",Summary_Products!M83)","v":""},{"$f":"IF(Summary_Products!N83=\"\",\"\",Summary_Products!N83)","v":""},{"$f":"IF(Summary_Products!O83=\"\",\"\",Summary_Products!O83)","v":""},{"$f":"IF(Summary_Products!P83=\"\",\"\",INDEX(Translations!$C:$C,MATCH(Summary_Products!P83,Translations!$B:$B,0)))","v":""},{"$f":"IF(Summary_Products!Q83=\"\",\"\",Summary_Products!Q83)","v":""},{"$f":"IF(Summary_Products!R83=\"\",\"\",Summary_Products!R83)","v":""},{"$f":"IF(Summary_Products!S83=\"\",\"\",Summary_Products!S83)","v":""},{"$f":"IF(Summary_Products!T83=\"\",\"\",Summary_Products!T83)","v":""},{"$f":"IF(Summary_Products!U83=\"\",\"\",Summary_Products!U83)","v":""},{"$f":"IF(Summary_Products!V83=\"\",\"\",Summary_Products!V83)","v":""},{"$f":"IF(Summary_Products!W83=\"\",\"\",Summary_Products!W83)","v":""},{"$f":"IF(Summary_Products!X83=\"\",\"\",Summary_Products!X83)","v":""},{"$f":"IF(Summary_Products!Y83=\"\",\"\",Summary_Products!Y83)","v":""},{"$f":"IF(Summary_Products!Z83=\"\",\"\",Summary_Products!Z83)","v":""},{"$f":"IF(Summary_Products!AA83=\"\",\"\",Summary_Products!AA83)","v":""},{"$f":"IF(Summary_Products!AB83=\"\",\"\",Summary_Products!AB83)","v":""},{"$f":"IF(Summary_Products!AC83=\"\",\"\",Summary_Products!AC83)","v":""},{"$f":"IF(Summary_Products!AD83=\"\",\"\",Summary_Products!AD83)","v":""},{"$f":"IF(Summary_Products!AE83=\"\",\"\",Summary_Products!AE83)","v":""},{"$f":"IF(Summary_Products!AF83=\"\",\"\",Summary_Products!AF83)","v":""},{"$f":"IF(Summary_Products!AG83=\"\",\"\",Summary_Products!AG83)","v":""},{"$f":"IF(Summary_Products!AH83=\"\",\"\",Summary_Products!AH83)","v":""},{"$f":"IF(Summary_Products!AI83=\"\",\"\",Summary_Products!AI83)","v":""},{"$f":"IF(Summary_Products!AJ83=\"\",\"\",Summary_Products!AJ83)","v":""},{"$f":"IF(Summary_Products!AK83=\"\",\"\",Summary_Products!AK83)","v":""},{"$f":"IF(Summary_Products!AL83=\"\",\"\",INDEX(Translations!$C:$C,MATCH(Summary_Products!AL83,Translations!$B:$B,0)))","v":""},{"$f":"IF(Summary_Products!AM83=\"\",\"\",Summary_Products!AM83)","v":""},{"$f":"IF(Summary_Products!AN83=\"\",\"\",Summary_Products!AN83)","v":""},{"$f":"IF(Summary_Products!AO83=\"\",\"\",Summary_Products!AO83)","v":""},{"$f":"IF(Summary_Products!AP83=\"\",\"\",Summary_Products!AP83)","v":""},{"$f":"IF(Summary_Products!AR83=\"\",\"\",Summary_Products!AR83)","v":""},{"$f":"IF(Summary_Products!AS83=\"\",\"\",Summary_Products!AS83)","v":""},{"$f":"IF(Summary_Products!AT83=\"\",\"\",INDEX(Translations!$C:$C,MATCH(Summary_Products!AT83,Translations!$B:$B,0)))","v":""},{"$f":"IF(Summary_Products!AU83=\"\",\"\",Summary_Products!AU83)","v":""},{"$f":"IF(Summary_Products!AV83=\"\",\"\",Summary_Products!AV83)","v":""},{"$f":"IF(Summary_Products!AW83=\"\",\"\",Summary_Products!AW83)","v":""},{"$f":"IF(Summary_Products!AX83=\"\",\"\",Summary_Products!AX83)","v":""},{"$f":"IF(Summary_Products!AY83=\"\",\"\",Summary_Products!AY83)","v":""},{"$f":"IF(Summary_Products!AZ83=\"\",\"\",Summary_Products!AZ83)","v":""},{"$f":"IF(Summary_Products!BA83=\"\",\"\",Summary_Products!BA83)","v":""}]
[null,null,75,{"$f":"IF(Summary_Products!D84=\"\",\"\",Summary_Products!D84)","v":""},{"$f":"IF(Summary_Products!E84=\"\",\"\",INDEX(Translations!$C:$C,MATCH(Summary_Products!E84,Translations!$B:$B,0)))","v":""},{"$f":"IF(Summary_Products!F84=\"\",\"\",Summary_Products!F84)","v":""},{"$f":"IF(F100=\"\",\"\",INDEX(Parameters_CNCodes!$H$4:$H$752,MATCH(F100,CNCodes_ListKey,0)))","v":""},{"$f":"IF(Summary_Products!H84=\"\",\"\",Summary_Products!H84)","v":""},{"$f":"IF(Summary_Products!I84=\"\",\"\",Summary_Products!I84)","v":""},{"$f":"IF(Summary_Products!J84=\"\",\"\",Summary_Products!J84)","v":""},{"$f":"IF(Summary_Products!K84=\"\",\"\",Summary_Products!K84)","v":""},{"$f":"IF(Summary_Products!L84=\"\",\"\",Summary_Products!L84)","v":""},{"$f":"IF(Summary_Products!M84=\"\",\"\",Summary_Products!M84)","v":""},{"$f":"IF(Summary_Products!N84=\"\",\"\",Summary_Products!N84)","v":""},{"$f":"IF(Summary_Products!O84=\"\",\"\",Summary_Products!O84)","v":""},{"$f":"IF(Summary_Products!P84=\"\",\"\",INDEX(Translations!$C:$C,MATCH(Summary_Products!P84,Translations!$B:$B,0)))","v":""},{"$f":"IF(Summary_Products!Q84=\"\",\"\",Summary_Products!Q84)","v":""},{"$f":"IF(Summary_Products!R84=\"\",\"\",Summary_Products!R84)","v":""},{"$f":"IF(Summary_Products!S84=\"\",\"\",Summary_Products!S84)","v":""},{"$f":"IF(Summary_Products!T84=\"\",\"\",Summary_Products!T84)","v":""},{"$f":"IF(Summary_Products!U84=\"\",\"\",Summary_Products!U84)","v":""},{"$f":"IF(Summary_Products!V84=\"\",\"\",Summary_Products!V84)","v":""},{"$f":"IF(Summary_Products!W84=\"\",\"\",Summary_Products!W84)","v":""},{"$f":"IF(Summary_Products!X84=\"\",\"\",Summary_Products!X84)","v":""},{"$f":"IF(Summary_Products!Y84=\"\",\"\",Summary_Products!Y84)","v":""},{"$f":"IF(Summary_Products!Z84=\"\",\"\",Summary_Products!Z84)","v":""},{"$f":"IF(Summary_Products!AA84=\"\",\"\",Summary_Products!AA84)","v":""},{"$f":"IF(Summary_Products!AB84=\"\",\"\",Summary_Products!AB84)","v":""},{"$f":"IF(Summary_Products!AC84=\"\",\"\",Summary_Products!AC84)","v":""},{"$f":"IF(Summary_Products!AD84=\"\",\"\",Summary_Products!AD84)","v":""},{"$f":"IF(Summary_Products!AE84=\"\",\"\",Summary_Products!AE84)","v":""},{"$f":"IF(Summary_Products!AF84=\"\",\"\",Summary_Products!AF84)","v":""},{"$f":"IF(Summary_Products!AG84=\"\",\"\",Summary_Products!AG84)","v":""},{"$f":"IF(Summary_Products!AH84=\"\",\"\",Summary_Products!AH84)","v":""},{"$f":"IF(Summary_Products!AI84=\"\",\"\",Summary_Products!AI84)","v":""},{"$f":"IF(Summary_Products!AJ84=\"\",\"\",Summary_Products!AJ84)","v":""},{"$f":"IF(Summary_Products!AK84=\"\",\"\",Summary_Products!AK84)","v":""},{"$f":"IF(Summary_Products!AL84=\"\",\"\",INDEX(Translations!$C:$C,MATCH(Summary_Products!AL84,Translations!$B:$B,0)))","v":""},{"$f":"IF(Summary_Products!AM84=\"\",\"\",Summary_Products!AM84)","v":""},{"$f":"IF(Summary_Products!AN84=\"\",\"\",Summary_Products!AN84)","v":""},{"$f":"IF(Summary_Products!AO84=\"\",\"\",Summary_Products!AO84)","v":""},{"$f":"IF(Summary_Products!AP84=\"\",\"\",Summary_Products!AP84)","v":""},{"$f":"IF(Summary_Products!AR84=\"\",\"\",Summary_Products!AR84)","v":""},{"$f":"IF(Summary_Products!AS84=\"\",\"\",Summary_Products!AS84)","v":""},{"$f":"IF(Summary_Products!AT84=\"\",\"\",INDEX(Translations!$C:$C,MATCH(Summary_Products!AT84,Translations!$B:$B,0)))","v":""},{"$f":"IF(Summary_Products!AU84=\"\",\"\",Summary_Products!AU84)","v":""},{"$f":"IF(Summary_Products!AV84=\"\",\"\",Summary_Products!AV84)","v":""},{"$f":"IF(Summary_Products!AW84=\"\",\"\",Summary_Products!AW84)","v":""},{"$f":"IF(Summary_Products!AX84=\"\",\"\",Summary_Products!AX84)","v":""},{"$f":"IF(Summary_Products!AY84=\"\",\"\",Summary_Products!AY84)","v":""},{"$f":"IF(Summary_Products!AZ84=\"\",\"\",Summary_Products!AZ84)","v":""},{"$f":"IF(Summary_Products!BA84=\"\",\"\",Summary_Products!BA84)","v":""}]
[null,null,76,{"$f":"IF(Summary_Products!D85=\"\",\"\",Summary_Products!D85)","v":""},{"$f":"IF(Summary_Products!E85=\"\",\"\",INDEX(Translations!$C:$C,MATCH(Summary_Products!E85,Translations!$B:$B,0)))","v":""},{"$f":"IF(Summary_Products!F85=\"\",\"\",Summary_Products!F85)","v":""},{"$f":"IF(F101=\"\",\"\",INDEX(Parameters_CNCodes!$H$4:$H$752,MATCH(F101,CNCodes_ListKey,0)))","v":""},{"$f":"IF(Summary_Products!H85=\"\",\"\",Summary_Products!H85)","v":""},{"$f":"IF(Summary_Products!I85=\"\",\"\",Summary_Products!I85)","v":""},{"$f":"IF(Summary_Products!J85=\"\",\"\",Summary_Products!J85)","v":""},{"$f":"IF(Summary_Products!K85=\"\",\"\",Summary_Products!K85)","v":""},{"$f":"IF(Summary_Products!L85=\"\",\"\",Summary_Products!L85)","v":""},{"$f":"IF(Summary_Products!M85=\"\",\"\",Summary_Products!M85)","v":""},{"$f":"IF(Summary_Products!N85=\"\",\"\",Summary_Products!N85)","v":""},{"$f":"IF(Summary_Products!O85=\"\",\"\",Summary_Products!O85)","v":""},{"$f":"IF(Summary_Products!P85=\"\",\"\",INDEX(Translations!$C:$C,MATCH(Summary_Products!P85,Translations!$B:$B,0)))","v":""},{"$f":"IF(Summary_Products!Q85=\"\",\"\",Summary_Products!Q85)","v":""},{"$f":"IF(Summary_Products!R85=\"\",\"\",Summary_Products!R85)","v":""},{"$f":"IF(Summary_Products!S85=\"\",\"\",Summary_Products!S85)","v":""},{"$f":"IF(Summary_Products!T85=\"\",\"\",Summary_Products!T85)","v":""},{"$f":"IF(Summary_Products!U85=\"\",\"\",Summary_Products!U85)","v":""},{"$f":"IF(Summary_Products!V85=\"\",\"\",Summary_Products!V85)","v":""},{"$f":"IF(Summary_Products!W85=\"\",\"\",Summary_Products!W85)","v":""},{"$f":"IF(Summary_Products!X85=\"\",\"\",Summary_Products!X85)","v":""},{"$f":"IF(Summary_Products!Y85=\"\",\"\",Summary_Products!Y85)","v":""},{"$f":"IF(Summary_Products!Z85=\"\",\"\",Summary_Products!Z85)","v":""},{"$f":"IF(Summary_Products!AA85=\"\",\"\",Summary_Products!AA85)","v":""},{"$f":"IF(Summary_Products!AB85=\"\",\"\",Summary_Products!AB85)","v":""},{"$f":"IF(Summary_Products!AC85=\"\",\"\",Summary_Products!AC85)","v":""},{"$f":"IF(Summary_Products!AD85=\"\",\"\",Summary_Products!AD85)","v":""},{"$f":"IF(Summary_Products!AE85=\"\",\"\",Summary_Products!AE85)","v":""},{"$f":"IF(Summary_Products!AF85=\"\",\"\",Summary_Products!AF85)","v":""},{"$f":"IF(Summary_Products!AG85=\"\",\"\",Summary_Products!AG85)","v":""},{"$f":"IF(Summary_Products!AH85=\"\",\"\",Summary_Products!AH85)","v":""},{"$f":"IF(Summary_Products!AI85=\"\",\"\",Summary_Products!AI85)","v":""},{"$f":"IF(Summary_Products!AJ85=\"\",\"\",Summary_Products!AJ85)","v":""},{"$f":"IF(Summary_Products!AK85=\"\",\"\",Summary_Products!AK85)","v":""},{"$f":"IF(Summary_Products!AL85=\"\",\"\",INDEX(Translations!$C:$C,MATCH(Summary_Products!AL85,Translations!$B:$B,0)))","v":""},{"$f":"IF(Summary_Products!AM85=\"\",\"\",Summary_Products!AM85)","v":""},{"$f":"IF(Summary_Products!AN85=\"\",\"\",Summary_Products!AN85)","v":""},{"$f":"IF(Summary_Products!AO85=\"\",\"\",Summary_Products!AO85)","v":""},{"$f":"IF(Summary_Products!AP85=\"\",\"\",Summary_Products!AP85)","v":""},{"$f":"IF(Summary_Products!AR85=\"\",\"\",Summary_Products!AR85)","v":""},{"$f":"IF(Summary_Products!AS85=\"\",\"\",Summary_Products!AS85)","v":""},{"$f":"IF(Summary_Products!AT85=\"\",\"\",INDEX(Translations!$C:$C,MATCH(Summary_Products!AT85,Translations!$B:$B,0)))","v":""},{"$f":"IF(Summary_Products!AU85=\"\",\"\",Summary_Products!AU85)","v":""},{"$f":"IF(Summary_Products!AV85=\"\",\"\",Summary_Products!AV85)","v":""},{"$f":"IF(Summary_Products!AW85=\"\",\"\",Summary_Products!AW85)","v":""},{"$f":"IF(Summary_Products!AX85=\"\",\"\",Summary_Products!AX85)","v":""},{"$f":"IF(Summary_Products!AY85=\"\",\"\",Summary_Products!AY85)","v":""},{"$f":"IF(Summary_Products!AZ85=\"\",\"\",Summary_Products!AZ85)","v":""},{"$f":"IF(Summary_Products!BA85=\"\",\"\",Summary_Products!BA85)","v":""}]
[null,null,77,{"$f":"IF(Summary_Products!D86=\"\",\"\",Summary_Products!D86)","v":""},{"$f":"IF(Summary_Products!E86=\"\",\"\",INDEX(Translations!$C:$C,MATCH(Summary_Products!E86,Translations!$B:$B,0)))","v":""},{"$f":"IF(Summary_Products!F86=\"\",\"\",Summary_Products!F86)","v":""},{"$f":"IF(F102=\"\",\"\",INDEX(Parameters_CNCodes!$H$4:$H$752,MATCH(F102,CNCodes_ListKey,0)))","v":""},{"$f":"IF(Summary_Products!H86=\"\",\"\",Summary_Products!H86)","v":""},{"$f":"IF(Summary_Products!I86=\"\",\"\",Summary_Products!I86)","v":""},{"$f":"IF(Summary_Products!J86=\"\",\"\",Summary_Products!J86)","v":""},{"$f":"IF(Summary_Products!K86=\"\",\"\",Summary_Products!K86)","v":""},{"$f":"IF(Summary_Products!L86=\"\",\"\",Summary_Products!L86)","v":""},{"$f":"IF(Summary_Products!M86=\"\",\"\",Summary_Products!M86)","v":""},{"$f":"IF(Summary_Products!N86=\"\",\"\",Summary_Products!N86)","v":""},{"$f":"IF(Summary_Products!O86=\"\",\"\",Summary_Products!O86)","v":""},{"$f":"IF(Summary_Products!P86=\"\",\"\",INDEX(Translations!$C:$C,MATCH(Summary_Products!P86,Translations!$B:$B,0)))","v":""},{"$f":"IF(Summary_Products!Q86=\"\",\"\",Summary_Products!Q86)","v":""},{"$f":"IF(Summary_Products!R86=\"\",\"\",Summary_Products!R86)","v":""},{"$f":"IF(Summary_Products!S86=\"\",\"\",Summary_Products!S86)","v":""},{"$f":"IF(Summary_Products!T86=\"\",\"\",Summary_Products!T86)","v":""},{"$f":"IF(Summary_Products!U86=\"\",\"\",Summary_Products!U86)","v":""},{"$f":"IF(Summary_Products!V86=\"\",\"\",Summary_Products!V86)","v":""},{"$f":"IF(Summary_Products!W86=\"\",\"\",Summary_Products!W86)","v":""},{"$f":"IF(Summary_Products!X86=\"\",\"\",Summary_Products!X86)","v":""},{"$f":"IF(Summary_Products!Y86=\"\",\"\",Summary_Products!Y86)","v":""},{"$f":"IF(Summary_Products!Z86=\"\",\"\",Summary_Products!Z86)","v":""},{"$f":"IF(Summary_Products!AA86=\"\",\"\",Summary_Products!AA86)","v":""},{"$f":"IF(Summary_Products!AB86=\"\",\"\",Summary_Products!AB86)","v":""},{"$f":"IF(Summary_Products!AC86=\"\",\"\",Summary_Products!AC86)","v":""},{"$f":"IF(Summary_Products!AD86=\"\",\"\",Summary_Products!AD86)","v":""},{"$f":"IF(Summary_Products!AE86=\"\",\"\",Summary_Products!AE86)","v":""},{"$f":"IF(Summary_Products!AF86=\"\",\"\",Summary_Products!AF86)","v":""},{"$f":"IF(Summary_Products!AG86=\"\",\"\",Summary_Products!AG86)","v":""},{"$f":"IF(Summary_Products!AH86=\"\",\"\",Summary_Products!AH86)","v":""},{"$f":"IF(Summary_Products!AI86=\"\",\"\",Summary_Products!AI86)","v":""},{"$f":"IF(Summary_Products!AJ86=\"\",\"\",Summary_Products!AJ86)","v":""},{"$f":"IF(Summary_Products!AK86=\"\",\"\",Summary_Products!AK86)","v":""},{"$f":"IF(Summary_Products!AL86=\"\",\"\",INDEX(Translations!$C:$C,MATCH(Summary_Products!AL86,Translations!$B:$B,0)))","v":""},{"$f":"IF(Summary_Products!AM86=\"\",\"\",Summary_Products!AM86)","v":""},{"$f":"IF(Summary_Products!AN86=\"\",\"\",Summary_Products!AN86)","v":""},{"$f":"IF(Summary_Products!AO86=\"\",\"\",Summary_Products!AO86)","v":""},{"$f":"IF(Summary_Products!AP86=\"\",\"\",Summary_Products!AP86)","v":""},{"$f":"IF(Summary_Products!AR86=\"\",\"\",Summary_Products!AR86)","v":""},{"$f":"IF(Summary_Products!AS86=\"\",\"\",Summary_Products!AS86)","v":""},{"$f":"IF(Summary_Products!AT86=\"\",\"\",INDEX(Translations!$C:$C,MATCH(Summary_Products!AT86,Translations!$B:$B,0)))","v":""},{"$f":"IF(Summary_Products!AU86=\"\",\"\",Summary_Products!AU86)","v":""},{"$f":"IF(Summary_Products!AV86=\"\",\"\",Summary_Products!AV86)","v":""},{"$f":"IF(Summary_Products!AW86=\"\",\"\",Summary_Products!AW86)","v":""},{"$f":"IF(Summary_Products!AX86=\"\",\"\",Summary_Products!AX86)","v":""},{"$f":"IF(Summary_Products!AY86=\"\",\"\",Summary_Products!AY86)","v":""},{"$f":"IF(Summary_Products!AZ86=\"\",\"\",Summary_Products!AZ86)","v":""},{"$f":"IF(Summary_Products!BA86=\"\",\"\",Summary_Products!BA86)","v":""}]
[null,null,78,{"$f":"IF(Summary_Products!D87=\"\",\"\",Summary_Products!D87)","v":""},{"$f":"IF(Summary_Products!E87=\"\",\"\",INDEX(Translations!$C:$C,MATCH(Summary_Products!E87,Translations!$B:$B,0)))","v":""},{"$f":"IF(Summary_Products!F87=\"\",\"\",Summary_Products!F87)","v":""},{"$f":"IF(F103=\"\",\"\",INDEX(Parameters_CNCodes!$H$4:$H$752,MATCH(F103,CNCodes_ListKey,0)))","v":""},{"$f":"IF(Summary_Products!H87=\"\",\"\",Summary_Products!H87)","v":""},{"$f":"IF(Summary_Products!I87=\"\",\"\",Summary_Products!I87)","v":""},{"$f":"IF(Summary_Products!J87=\"\",\"\",Summary_Products!J87)","v":""},{"$f":"IF(Summary_Products!K87=\"\",\"\",Summary_Products!K87)","v":""},{"$f":"IF(Summary_Products!L87=\"\",\"\",Summary_Products!L87)","v":""},{"$f":"IF(Summary_Products!M87=\"\",\"\",Summary_Products!M87)","v":""},{"$f":"IF(Summary_Products!N87=\"\",\"\",Summary_Products!N87)","v":""},{"$f":"IF(Summary_Products!O87=\"\",\"\",Summary_Products!O87)","v":""},{"$f":"IF(Summary_Products!P87=\"\",\"\",INDEX(Translations!$C:$C,MATCH(Summary_Products!P87,Translations!$B:$B,0)))","v":""},{"$f":"IF(Summary_Products!Q87=\"\",\"\",Summary_Products!Q87)","v":""},{"$f":"IF(Summary_Products!R87=\"\",\"\",Summary_Products!R87)","v":""},{"$f":"IF(Summary_Products!S87=\"\",\"\",Summary_Products!S87)","v":""},{"$f":"IF(Summary_Products!T87=\"\",\"\",Summary_Products!T87)","v":""},{"$f":"IF(Summary_Products!U87=\"\",\"\",Summary_Products!U87)","v":""},{"$f":"IF(Summary_Products!V87=\"\",\"\",Summary_Products!V87)","v":""},{"$f":"IF(Summary_Products!W87=\"\",\"\",Summary_Products!W87)","v":""},{"$f":"IF(Summary_Products!X87=\"\",\"\",Summary_Products!X87)","v":""},{"$f":"IF(Summary_Products!Y87=\"\",\"\",Summary_Products!Y87)","v":""},{"$f":"IF(Summary_Products!Z87=\"\",\"\",Summary_Products!Z87)","v":""},{"$f":"IF(Summary_Products!AA87=\"\",\"\",Summary_Products!AA87)","v":""},{"$f":"IF(Summary_Products!AB87=\"\",\"\",Summary_Products!AB87)","v":""},{"$f":"IF(Summary_Products!AC87=\"\",\"\",Summary_Products!AC87)","v":""},{"$f":"IF(Summary_Products!AD87=\"\",\"\",Summary_Products!AD87)","v":""},{"$f":"IF(Summary_Products!AE87=\"\",\"\",Summary_Products!AE87)","v":""},{"$f":"IF(Summary_Products!AF87=\"\",\"\",Summary_Products!AF87)","v":""},{"$f":"IF(Summary_Products!AG87=\"\",\"\",Summary_Products!AG87)","v":""},{"$f":"IF(Summary_Products!AH87=\"\",\"\",Summary_Products!AH87)","v":""},{"$f":"IF(Summary_Products!AI87=\"\",\"\",Summary_Products!AI87)","v":""},{"$f":"IF(Summary_Products!AJ87=\"\",\"\",Summary_Products!AJ87)","v":""},{"$f":"IF(Summary_Products!AK87=\"\",\"\",Summary_Products!AK87)","v":""},{"$f":"IF(Summary_Products!AL87=\"\",\"\",INDEX(Translations!$C:$C,MATCH(Summary_Products!AL87,Translations!$B:$B,0)))","v":""},{"$f":"IF(Summary_Products!AM87=\"\",\"\",Summary_Products!AM87)","v":""},{"$f":"IF(Summary_Products!AN87=\"\",\"\",Summary_Products!AN87)","v":""},{"$f":"IF(Summary_Products!AO87=\"\",\"\",Summary_Products!AO87)","v":""},{"$f":"IF(Summary_Products!AP87=\"\",\"\",Summary_Products!AP87)","v":""},{"$f":"IF(Summary_Products!AR87=\"\",\"\",Summary_Products!AR87)","v":""},{"$f":"IF(Summary_Products!AS87=\"\",\"\",Summary_Products!AS87)","v":""},{"$f":"IF(Summary_Products!AT87=\"\",\"\",INDEX(Translations!$C:$C,MATCH(Summary_Products!AT87,Translations!$B:$B,0)))","v":""},{"$f":"IF(Summary_Products!AU87=\"\",\"\",Summary_Products!AU87)","v":""},{"$f":"IF(Summary_Products!AV87=\"\",\"\",Summary_Products!AV87)","v":""},{"$f":"IF(Summary_Products!AW87=\"\",\"\",Summary_Products!AW87)","v":""},{"$f":"IF(Summary_Products!AX87=\"\",\"\",Summary_Products!AX87)","v":""},{"$f":"IF(Summary_Products!AY87=\"\",\"\",Summary_Products!AY87)","v":""},{"$f":"IF(Summary_Products!AZ87=\"\",\"\",Summary_Products!AZ87)","v":""},{"$f":"IF(Summary_Products!BA87=\"\",\"\",Summary_Products!BA87)","v":""}]
[null,null,79,{"$f":"IF(Summary_Products!D88=\"\",\"\",Summary_Products!D88)","v":""},{"$f":"IF(Summary_Products!E88=\"\",\"\",INDEX(Translations!$C:$C,MATCH(Summary_Products!E88,Translations!$B:$B,0)))","v":""},{"$f":"IF(Summary_Products!F88=\"\",\"\",Summary_Products!F88)","v":""},{"$f":"IF(F104=\"\",\"\",INDEX(Parameters_CNCodes!$H$4:$H$752,MATCH(F104,CNCodes_ListKey,0)))","v":""},{"$f":"IF(Summary_Products!H88=\"\",\"\",Summary_Products!H88)","v":""},{"$f":"IF(Summary_Products!I88=\"\",\"\",Summary_Products!I88)","v":""},{"$f":"IF(Summary_Products!J88=\"\",\"\",Summary_Products!J88)","v":""},{"$f":"IF(Summary_Products!K88=\"\",\"\",Summary_Products!K88)","v":""},{"$f":"IF(Summary_Products!L88=\"\",\"\",Summary_Products!L88)","v":""},{"$f":"IF(Summary_Products!M88=\"\",\"\",Summary_Products!M88)","v":""},{"$f":"IF(Summary_Products!N88=\"\",\"\",Summary_Products!N88)","v":""},{"$f":"IF(Summary_Products!O88=\"\",\"\",Summary_Products!O88)","v":""},{"$f":"IF(Summary_Products!P88=\"\",\"\",INDEX(Translations!$C:$C,MATCH(Summary_Products!P88,Translations!$B:$B,0)))","v":""},{"$f":"IF(Summary_Products!Q88=\"\",\"\",Summary_Products!Q88)","v":""},{"$f":"IF(Summary_Products!R88=\"\",\"\",Summary_Products!R88)","v":""},{"$f":"IF(Summary_Products!S88=\"\",\"\",Summary_Products!S88)","v":""},{"$f":"IF(Summary_Products!T88=\"\",\"\",Summary_Products!T88)","v":""},{"$f":"IF(Summary_Products!U88=\"\",\"\",Summary_Products!U88)","v":""},{"$f":"IF(Summary_Products!V88=\"\",\"\",Summary_Products!V88)","v":""},{"$f":"IF(Summary_Products!W88=\"\",\"\",Summary_Products!W88)","v":""},{"$f":"IF(Summary_Products!X88=\"\",\"\",Summary_Products!X88)","v":""},{"$f":"IF(Summary_Products!Y88=\"\",\"\",Summary_Products!Y88)","v":""},{"$f":"IF(Summary_Products!Z88=\"\",\"\",Summary_Products!Z88)","v":""},{"$f":"IF(Summary_Products!AA88=\"\",\"\",Summary_Products!AA88)","v":""},{"$f":"IF(Summary_Products!AB88=\"\",\"\",Summary_Products!AB88)","v":""},{"$f":"IF(Summary_Products!AC88=\"\",\"\",Summary_Products!AC88)","v":""},{"$f":"IF(Summary_Products!AD88=\"\",\"\",Summary_Products!AD88)","v":""},{"$f":"IF(Summary_Products!AE88=\"\",\"\",Summary_Products!AE88)","v":""},{"$f":"IF(Summary_Products!AF88=\"\",\"\",Summary_Products!AF88)","v":""},{"$f":"IF(Summary_Products!AG88=\"\",\"\",Summary_Products!AG88)","v":""},{"$f":"IF(Summary_Products!AH88=\"\",\"\",Summary_Products!AH88)","v":""},{"$f":"IF(Summary_Products!AI88=\"\",\"\",Summary_Products!AI88)","v":""},{"$f":"IF(Summary_Products!AJ88=\"\",\"\",Summary_Products!AJ88)","v":""},{"$f":"IF(Summary_Products!AK88=\"\",\"\",Summary_Products!AK88)","v":""},{"$f":"IF(Summary_Products!AL88=\"\",\"\",INDEX(Translations!$C:$C,MATCH(Summary_Products!AL88,Translations!$B:$B,0)))","v":""},{"$f":"IF(Summary_Products!AM88=\"\",\"\",Summary_Products!AM88)","v":""},{"$f":"IF(Summary_Products!AN88=\"\",\"\",Summary_Products!AN88)","v":""},{"$f":"IF(Summary_Products!AO88=\"\",\"\",Summary_Products!AO88)","v":""},{"$f":"IF(Summary_Products!AP88=\"\",\"\",Summary_Products!AP88)","v":""},{"$f":"IF(Summary_Products!AR88=\"\",\"\",Summary_Products!AR88)","v":""},{"$f":"IF(Summary_Products!AS88=\"\",\"\",Summary_Products!AS88)","v":""},{"$f":"IF(Summary_Products!AT88=\"\",\"\",INDEX(Translations!$C:$C,MATCH(Summary_Products!AT88,Translations!$B:$B,0)))","v":""},{"$f":"IF(Summary_Products!AU88=\"\",\"\",Summary_Products!AU88)","v":""},{"$f":"IF(Summary_Products!AV88=\"\",\"\",Summary_Products!AV88)","v":""},{"$f":"IF(Summary_Products!AW88=\"\",\"\",Summary_Products!AW88)","v":""},{"$f":"IF(Summary_Products!AX88=\"\",\"\",Summary_Products!AX88)","v":""},{"$f":"IF(Summary_Products!AY88=\"\",\"\",Summary_Products!AY88)","v":""},{"$f":"IF(Summary_Products!AZ88=\"\",\"\",Summary_Products!AZ88)","v":""},{"$f":"IF(Summary_Products!BA88=\"\",\"\",Summary_Products!BA88)","v":""}]
[null,null,80,{"$f":"IF(Summary_Products!D89=\"\",\"\",Summary_Products!D89)","v":""},{"$f":"IF(Summary_Products!E89=\"\",\"\",INDEX(Translations!$C:$C,MATCH(Summary_Products!E89,Translations!$B:$B,0)))","v":""},{"$f":"IF(Summary_Products!F89=\"\",\"\",Summary_Products!F89)","v":""},{"$f":"IF(F105=\"\",\"\",INDEX(Parameters_CNCodes!$H$4:$H$752,MATCH(F105,CNCodes_ListKey,0)))","v":""},{"$f":"IF(Summary_Products!H89=\"\",\"\",Summary_Products!H89)","v":""},{"$f":"IF(Summary_Products!I89=\"\",\"\",Summary_Products!I89)","v":""},{"$f":"IF(Summary_Products!J89=\"\",\"\",Summary_Products!J89)","v":""},{"$f":"IF(Summary_Products!K89=\"\",\"\",Summary_Products!K89)","v":""},{"$f":"IF(Summary_Products!L89=\"\",\"\",Summary_Products!L89)","v":""},{"$f":"IF(Summary_Products!M89=\"\",\"\",Summary_Products!M89)","v":""},{"$f":"IF(Summary_Products!N89=\"\",\"\",Summary_Products!N89)","v":""},{"$f":"IF(Summary_Products!O89=\"\",\"\",Summary_Products!O89)","v":""},{"$f":"IF(Summary_Products!P89=\"\",\"\",INDEX(Translations!$C:$C,MATCH(Summary_Products!P89,Translations!$B:$B,0)))","v":""},{"$f":"IF(Summary_Products!Q89=\"\",\"\",Summary_Products!Q89)","v":""},{"$f":"IF(Summary_Products!R89=\"\",\"\",Summary_Products!R89)","v":""},{"$f":"IF(Summary_Products!S89=\"\",\"\",Summary_Products!S89)","v":""},{"$f":"IF(Summary_Products!T89=\"\",\"\",Summary_Products!T89)","v":""},{"$f":"IF(Summary_Products!U89=\"\",\"\",Summary_Products!U89)","v":""},{"$f":"IF(Summary_Products!V89=\"\",\"\",Summary_Products!V89)","v":""},{"$f":"IF(Summary_Products!W89=\"\",\"\",Summary_Products!W89)","v":""},{"$f":"IF(Summary_Products!X89=\"\",\"\",Summary_Products!X89)","v":""},{"$f":"IF(Summary_Products!Y89=\"\",\"\",Summary_Products!Y89)","v":""},{"$f":"IF(Summary_Products!Z89=\"\",\"\",Summary_Products!Z89)","v":""},{"$f":"IF(Summary_Products!AA89=\"\",\"\",Summary_Products!AA89)","v":""},{"$f":"IF(Summary_Products!AB89=\"\",\"\",Summary_Products!AB89)","v":""},{"$f":"IF(Summary_Products!AC89=\"\",\"\",Summary_Products!AC89)","v":""},{"$f":"IF(Summary_Products!AD89=\"\",\"\",Summary_Products!AD89)","v":""},{"$f":"IF(Summary_Products!AE89=\"\",\"\",Summary_Products!AE89)","v":""},{"$f":"IF(Summary_Products!AF89=\"\",\"\",Summary_Products!AF89)","v":""},{"$f":"IF(Summary_Products!AG89=\"\",\"\",Summary_Products!AG89)","v":""},{"$f":"IF(Summary_Products!AH89=\"\",\"\",Summary_Products!AH89)","v":""},{"$f":"IF(Summary_Products!AI89=\"\",\"\",Summary_Products!AI89)","v":""},{"$f":"IF(Summary_Products!AJ89=\"\",\"\",Summary_Products!AJ89)","v":""},{"$f":"IF(Summary_Products!AK89=\"\",\"\",Summary_Products!AK89)","v":""},{"$f":"IF(Summary_Products!AL89=\"\",\"\",INDEX(Translations!$C:$C,MATCH(Summary_Products!AL89,Translations!$B:$B,0)))","v":""},{"$f":"IF(Summary_Products!AM89=\"\",\"\",Summary_Products!AM89)","v":""},{"$f":"IF(Summary_Products!AN89=\"\",\"\",Summary_Products!AN89)","v":""},{"$f":"IF(Summary_Products!AO89=\"\",\"\",Summary_Products!AO89)","v":""},{"$f":"IF(Summary_Products!AP89=\"\",\"\",Summary_Products!AP89)","v":""},{"$f":"IF(Summary_Products!AR89=\"\",\"\",Summary_Products!AR89)","v":""},{"$f":"IF(Summary_Products!AS89=\"\",\"\",Summary_Products!AS89)","v":""},{"$f":"IF(Summary_Products!AT89=\"\",\"\",INDEX(Translations!$C:$C,MATCH(Summary_Products!AT89,Translations!$B:$B,0)))","v":""},{"$f":"IF(Summary_Products!AU89=\"\",\"\",Summary_Products!AU89)","v":""},{"$f":"IF(Summary_Products!AV89=\"\",\"\",Summary_Products!AV89)","v":""},{"$f":"IF(Summary_Products!AW89=\"\",\"\",Summary_Products!AW89)","v":""},{"$f":"IF(Summary_Products!AX89=\"\",\"\",Summary_Products!AX89)","v":""},{"$f":"IF(Summary_Products!AY89=\"\",\"\",Summary_Products!AY89)","v":""},{"$f":"IF(Summary_Products!AZ89=\"\",\"\",Summary_Products!AZ89)","v":""},{"$f":"IF(Summary_Products!BA89=\"\",\"\",Summary_Products!BA89)","v":""}]
[null,null,81,{"$f":"IF(Summary_Products!D90=\"\",\"\",Summary_Products!D90)","v":""},{"$f":"IF(Summary_Products!E90=\"\",\"\",INDEX(Translations!$C:$C,MATCH(Summary_Products!E90,Translations!$B:$B,0)))","v":""},{"$f":"IF(Summary_Products!F90=\"\",\"\",Summary_Products!F90)","v":""},{"$f":"IF(F106=\"\",\"\",INDEX(Parameters_CNCodes!$H$4:$H$752,MATCH(F106,CNCodes_ListKey,0)))","v":""},{"$f":"IF(Summary_Products!H90=\"\",\"\",Summary_Products!H90)","v":""},{"$f":"IF(Summary_Products!I90=\"\",\"\",Summary_Products!I90)","v":""},{"$f":"IF(Summary_Products!J90=\"\",\"\",Summary_Products!J90)","v":""},{"$f":"IF(Summary_Products!K90=\"\",\"\",Summary_Products!K90)","v":""},{"$f":"IF(Summary_Products!L90=\"\",\"\",Summary_Products!L90)","v":""},{"$f":"IF(Summary_Products!M90=\"\",\"\",Summary_Products!M90)","v":""},{"$f":"IF(Summary_Products!N90=\"\",\"\",Summary_Products!N90)","v":""},{"$f":"IF(Summary_Products!O90=\"\",\"\",Summary_Products!O90)","v":""},{"$f":"IF(Summary_Products!P90=\"\",\"\",INDEX(Translations!$C:$C,MATCH(Summary_Products!P90,Translations!$B:$B,0)))","v":""},{"$f":"IF(Summary_Products!Q90=\"\",\"\",Summary_Products!Q90)","v":""},{"$f":"IF(Summary_Products!R90=\"\",\"\",Summary_Products!R90)","v":""},{"$f":"IF(Summary_Products!S90=\"\",\"\",Summary_Products!S90)","v":""},{"$f":"IF(Summary_Products!T90=\"\",\"\",Summary_Products!T90)","v":""},{"$f":"IF(Summary_Products!U90=\"\",\"\",Summary_Products!U90)","v":""},{"$f":"IF(Summary_Products!V90=\"\",\"\",Summary_Products!V90)","v":""},{"$f":"IF(Summary_Products!W90=\"\",\"\",Summary_Products!W90)","v":""},{"$f":"IF(Summary_Products!X90=\"\",\"\",Summary_Products!X90)","v":""},{"$f":"IF(Summary_Products!Y90=\"\",\"\",Summary_Products!Y90)","v":""},{"$f":"IF(Summary_Products!Z90=\"\",\"\",Summary_Products!Z90)","v":""},{"$f":"IF(Summary_Products!AA90=\"\",\"\",Summary_Products!AA90)","v":""},{"$f":"IF(Summary_Products!AB90=\"\",\"\",Summary_Products!AB90)","v":""},{"$f":"IF(Summary_Products!AC90=\"\",\"\",Summary_Products!AC90)","v":""},{"$f":"IF(Summary_Products!AD90=\"\",\"\",Summary_Products!AD90)","v":""},{"$f":"IF(Summary_Products!AE90=\"\",\"\",Summary_Products!AE90)","v":""},{"$f":"IF(Summary_Products!AF90=\"\",\"\",Summary_Products!AF90)","v":""},{"$f":"IF(Summary_Products!AG90=\"\",\"\",Summary_Products!AG90)","v":""},{"$f":"IF(Summary_Products!AH90=\"\",\"\",Summary_Products!AH90)","v":""},{"$f":"IF(Summary_Products!AI90=\"\",\"\",Summary_Products!AI90)","v":""},{"$f":"IF(Summary_Products!AJ90=\"\",\"\",Summary_Products!AJ90)","v":""},{"$f":"IF(Summary_Products!AK90=\"\",\"\",Summary_Products!AK90)","v":""},{"$f":"IF(Summary_Products!AL90=\"\",\"\",INDEX(Translations!$C:$C,MATCH(Summary_Products!AL90,Translations!$B:$B,0)))","v":""},{"$f":"IF(Summary_Products!AM90=\"\",\"\",Summary_Products!AM90)","v":""},{"$f":"IF(Summary_Products!AN90=\"\",\"\",Summary_Products!AN90)","v":""},{"$f":"IF(Summary_Products!AO90=\"\",\"\",Summary_Products!AO90)","v":""},{"$f":"IF(Summary_Products!AP90=\"\",\"\",Summary_Products!AP90)","v":""},{"$f":"IF(Summary_Products!AR90=\"\",\"\",Summary_Products!AR90)","v":""},{"$f":"IF(Summary_Products!AS90=\"\",\"\",Summary_Products!AS90)","v":""},{"$f":"IF(Summary_Products!AT90=\"\",\"\",INDEX(Translations!$C:$C,MATCH(Summary_Products!AT90,Translations!$B:$B,0)))","v":""},{"$f":"IF(Summary_Products!AU90=\"\",\"\",Summary_Products!AU90)","v":""},{"$f":"IF(Summary_Products!AV90=\"\",\"\",Summary_Products!AV90)","v":""},{"$f":"IF(Summary_Products!AW90=\"\",\"\",Summary_Products!AW90)","v":""},{"$f":"IF(Summary_Products!AX90=\"\",\"\",Summary_Products!AX90)","v":""},{"$f":"IF(Summary_Products!AY90=\"\",\"\",Summary_Products!AY90)","v":""},{"$f":"IF(Summary_Products!AZ90=\"\",\"\",Summary_Products!AZ90)","v":""},{"$f":"IF(Summary_Products!BA90=\"\",\"\",Summary_Products!BA90)","v":""}]
[null,null,82,{"$f":"IF(Summary_Products!D91=\"\",\"\",Summary_Products!D91)","v":""},{"$f":"IF(Summary_Products!E91=\"\",\"\",INDEX(Translations!$C:$C,MATCH(Summary_Products!E91,Translations!$B:$B,0)))","v":""},{"$f":"IF(Summary_Products!F91=\"\",\"\",Summary_Products!F91)","v":""},{"$f":"IF(F107=\"\",\"\",INDEX(Parameters_CNCodes!$H$4:$H$752,MATCH(F107,CNCodes_ListKey,0)))","v":""},{"$f":"IF(Summary_Products!H91=\"\",\"\",Summary_Products!H91)","v":""},{"$f":"IF(Summary_Products!I91=\"\",\"\",Summary_Products!I91)","v":""},{"$f":"IF(Summary_Products!J91=\"\",\"\",Summary_Products!J91)","v":""},{"$f":"IF(Summary_Products!K91=\"\",\"\",Summary_Products!K91)","v":""},{"$f":"IF(Summary_Products!L91=\"\",\"\",Summary_Products!L91)","v":""},{"$f":"IF(Summary_Products!M91=\"\",\"\",Summary_Products!M91)","v":""},{"$f":"IF(Summary_Products!N91=\"\",\"\",Summary_Products!N91)","v":""},{"$f":"IF(Summary_Products!O91=\"\",\"\",Summary_Products!O91)","v":""},{"$f":"IF(Summary_Products!P91=\"\",\"\",INDEX(Translations!$C:$C,MATCH(Summary_Products!P91,Translations!$B:$B,0)))","v":""},{"$f":"IF(Summary_Products!Q91=\"\",\"\",Summary_Products!Q91)","v":""},{"$f":"IF(Summary_Products!R91=\"\",\"\",Summary_Products!R91)","v":""},{"$f":"IF(Summary_Products!S91=\"\",\"\",Summary_Products!S91)","v":""},{"$f":"IF(Summary_Products!T91=\"\",\"\",Summary_Products!T91)","v":""},{"$f":"IF(Summary_Products!U91=\"\",\"\",Summary_Products!U91)","v":""},{"$f":"IF(Summary_Products!V91=\"\",\"\",Summary_Products!V91)","v":""},{"$f":"IF(Summary_Products!W91=\"\",\"\",Summary_Products!W91)","v":""},{"$f":"IF(Summary_Products!X91=\"\",\"\",Summary_Products!X91)","v":""},{"$f":"IF(Summary_Products!Y91=\"\",\"\",Summary_Products!Y91)","v":""},{"$f":"IF(Summary_Products!Z91=\"\",\"\",Summary_Products!Z91)","v":""},{"$f":"IF(Summary_Products!AA91=\"\",\"\",Summary_Products!AA91)","v":""},{"$f":"IF(Summary_Products!AB91=\"\",\"\",Summary_Products!AB91)","v":""},{"$f":"IF(Summary_Products!AC91=\"\",\"\",Summary_Products!AC91)","v":""},{"$f":"IF(Summary_Products!AD91=\"\",\"\",Summary_Products!AD91)","v":""},{"$f":"IF(Summary_Products!AE91=\"\",\"\",Summary_Products!AE91)","v":""},{"$f":"IF(Summary_Products!AF91=\"\",\"\",Summary_Products!AF91)","v":""},{"$f":"IF(Summary_Products!AG91=\"\",\"\",Summary_Products!AG91)","v":""},{"$f":"IF(Summary_Products!AH91=\"\",\"\",Summary_Products!AH91)","v":""},{"$f":"IF(Summary_Products!AI91=\"\",\"\",Summary_Products!AI91)","v":""},{"$f":"IF(Summary_Products!AJ91=\"\",\"\",Summary_Products!AJ91)","v":""},{"$f":"IF(Summary_Products!AK91=\"\",\"\",Summary_Products!AK91)","v":""},{"$f":"IF(Summary_Products!AL91=\"\",\"\",INDEX(Translations!$C:$C,MATCH(Summary_Products!AL91,Translations!$B:$B,0)))","v":""},{"$f":"IF(Summary_Products!AM91=\"\",\"\",Summary_Products!AM91)","v":""},{"$f":"IF(Summary_Products!AN91=\"\",\"\",Summary_Products!AN91)","v":""},{"$f":"IF(Summary_Products!AO91=\"\",\"\",Summary_Products!AO91)","v":""},{"$f":"IF(Summary_Products!AP91=\"\",\"\",Summary_Products!AP91)","v":""},{"$f":"IF(Summary_Products!AR91=\"\",\"\",Summary_Products!AR91)","v":""},{"$f":"IF(Summary_Products!AS91=\"\",\"\",Summary_Products!AS91)","v":""},{"$f":"IF(Summary_Products!AT91=\"\",\"\",INDEX(Translations!$C:$C,MATCH(Summary_Products!AT91,Translations!$B:$B,0)))","v":""},{"$f":"IF(Summary_Products!AU91=\"\",\"\",Summary_Products!AU91)","v":""},{"$f":"IF(Summary_Products!AV91=\"\",\"\",Summary_Products!AV91)","v":""},{"$f":"IF(Summary_Products!AW91=\"\",\"\",Summary_Products!AW91)","v":""},{"$f":"IF(Summary_Products!AX91=\"\",\"\",Summary_Products!AX91)","v":""},{"$f":"IF(Summary_Products!AY91=\"\",\"\",Summary_Products!AY91)","v":""},{"$f":"IF(Summary_Products!AZ91=\"\",\"\",Summary_Products!AZ91)","v":""},{"$f":"IF(Summary_Products!BA91=\"\",\"\",Summary_Products!BA91)","v":""}]
[null,null,83,{"$f":"IF(Summary_Products!D92=\"\",\"\",Summary_Products!D92)","v":""},{"$f":"IF(Summary_Products!E92=\"\",\"\",INDEX(Translations!$C:$C,MATCH(Summary_Products!E92,Translations!$B:$B,0)))","v":""},{"$f":"IF(Summary_Products!F92=\"\",\"\",Summary_Products!F92)","v":""},{"$f":"IF(F108=\"\",\"\",INDEX(Parameters_CNCodes!$H$4:$H$752,MATCH(F108,CNCodes_ListKey,0)))","v":""},{"$f":"IF(Summary_Products!H92=\"\",\"\",Summary_Products!H92)","v":""},{"$f":"IF(Summary_Products!I92=\"\",\"\",Summary_Products!I92)","v":""},{"$f":"IF(Summary_Products!J92=\"\",\"\",Summary_Products!J92)","v":""},{"$f":"IF(Summary_Products!K92=\"\",\"\",Summary_Products!K92)","v":""},{"$f":"IF(Summary_Products!L92=\"\",\"\",Summary_Products!L92)","v":""},{"$f":"IF(Summary_Products!M92=\"\",\"\",Summary_Products!M92)","v":""},{"$f":"IF(Summary_Products!N92=\"\",\"\",Summary_Products!N92)","v":""},{"$f":"IF(Summary_Products!O92=\"\",\"\",Summary_Products!O92)","v":""},{"$f":"IF(Summary_Products!P92=\"\",\"\",INDEX(Translations!$C:$C,MATCH(Summary_Products!P92,Translations!$B:$B,0)))","v":""},{"$f":"IF(Summary_Products!Q92=\"\",\"\",Summary_Products!Q92)","v":""},{"$f":"IF(Summary_Products!R92=\"\",\"\",Summary_Products!R92)","v":""},{"$f":"IF(Summary_Products!S92=\"\",\"\",Summary_Products!S92)","v":""},{"$f":"IF(Summary_Products!T92=\"\",\"\",Summary_Products!T92)","v":""},{"$f":"IF(Summary_Products!U92=\"\",\"\",Summary_Products!U92)","v":""},{"$f":"IF(Summary_Products!V92=\"\",\"\",Summary_Products!V92)","v":""},{"$f":"IF(Summary_Products!W92=\"\",\"\",Summary_Products!W92)","v":""},{"$f":"IF(Summary_Products!X92=\"\",\"\",Summary_Products!X92)","v":""},{"$f":"IF(Summary_Products!Y92=\"\",\"\",Summary_Products!Y92)","v":""},{"$f":"IF(Summary_Products!Z92=\"\",\"\",Summary_Products!Z92)","v":""},{"$f":"IF(Summary_Products!AA92=\"\",\"\",Summary_Products!AA92)","v":""},{"$f":"IF(Summary_Products!AB92=\"\",\"\",Summary_Products!AB92)","v":""},{"$f":"IF(Summary_Products!AC92=\"\",\"\",Summary_Products!AC92)","v":""},{"$f":"IF(Summary_Products!AD92=\"\",\"\",Summary_Products!AD92)","v":""},{"$f":"IF(Summary_Products!AE92=\"\",\"\",Summary_Products!AE92)","v":""},{"$f":"IF(Summary_Products!AF92=\"\",\"\",Summary_Products!AF92)","v":""},{"$f":"IF(Summary_Products!AG92=\"\",\"\",Summary_Products!AG92)","v":""},{"$f":"IF(Summary_Products!AH92=\"\",\"\",Summary_Products!AH92)","v":""},{"$f":"IF(Summary_Products!AI92=\"\",\"\",Summary_Products!AI92)","v":""},{"$f":"IF(Summary_Products!AJ92=\"\",\"\",Summary_Products!AJ92)","v":""},{"$f":"IF(Summary_Products!AK92=\"\",\"\",Summary_Products!AK92)","v":""},{"$f":"IF(Summary_Products!AL92=\"\",\"\",INDEX(Translations!$C:$C,MATCH(Summary_Products!AL92,Translations!$B:$B,0)))","v":""},{"$f":"IF(Summary_Products!AM92=\"\",\"\",Summary_Products!AM92)","v":""},{"$f":"IF(Summary_Products!AN92=\"\",\"\",Summary_Products!AN92)","v":""},{"$f":"IF(Summary_Products!AO92=\"\",\"\",Summary_Products!AO92)","v":""},{"$f":"IF(Summary_Products!AP92=\"\",\"\",Summary_Products!AP92)","v":""},{"$f":"IF(Summary_Products!AR92=\"\",\"\",Summary_Products!AR92)","v":""},{"$f":"IF(Summary_Products!AS92=\"\",\"\",Summary_Products!AS92)","v":""},{"$f":"IF(Summary_Products!AT92=\"\",\"\",INDEX(Translations!$C:$C,MATCH(Summary_Products!AT92,Translations!$B:$B,0)))","v":""},{"$f":"IF(Summary_Products!AU92=\"\",\"\",Summary_Products!AU92)","v":""},{"$f":"IF(Summary_Products!AV92=\"\",\"\",Summary_Products!AV92)","v":""},{"$f":"IF(Summary_Products!AW92=\"\",\"\",Summary_Products!AW92)","v":""},{"$f":"IF(Summary_Products!AX92=\"\",\"\",Summary_Products!AX92)","v":""},{"$f":"IF(Summary_Products!AY92=\"\",\"\",Summary_Products!AY92)","v":""},{"$f":"IF(Summary_Products!AZ92=\"\",\"\",Summary_Products!AZ92)","v":""},{"$f":"IF(Summary_Products!BA92=\"\",\"\",Summary_Products!BA92)","v":""}]
[null,null,84,{"$f":"IF(Summary_Products!D93=\"\",\"\",Summary_Products!D93)","v":""},{"$f":"IF(Summary_Products!E93=\"\",\"\",INDEX(Translations!$C:$C,MATCH(Summary_Products!E93,Translations!$B:$B,0)))","v":""},{"$f":"IF(Summary_Products!F93=\"\",\"\",Summary_Products!F93)","v":""},{"$f":"IF(F109=\"\",\"\",INDEX(Parameters_CNCodes!$H$4:$H$752,MATCH(F109,CNCodes_ListKey,0)))","v":""},{"$f":"IF(Summary_Products!H93=\"\",\"\",Summary_Products!H93)","v":""},{"$f":"IF(Summary_Products!I93=\"\",\"\",Summary_Products!I93)","v":""},{"$f":"IF(Summary_Products!J93=\"\",\"\",Summary_Products!J93)","v":""},{"$f":"IF(Summary_Products!K93=\"\",\"\",Summary_Products!K93)","v":""},{"$f":"IF(Summary_Products!L93=\"\",\"\",Summary_Products!L93)","v":""},{"$f":"IF(Summary_Products!M93=\"\",\"\",Summary_Products!M93)","v":""},{"$f":"IF(Summary_Products!N93=\"\",\"\",Summary_Products!N93)","v":""},{"$f":"IF(Summary_Products!O93=\"\",\"\",Summary_Products!O93)","v":""},{"$f":"IF(Summary_Products!P93=\"\",\"\",INDEX(Translations!$C:$C,MATCH(Summary_Products!P93,Translations!$B:$B,0)))","v":""},{"$f":"IF(Summary_Products!Q93=\"\",\"\",Summary_Products!Q93)","v":""},{"$f":"IF(Summary_Products!R93=\"\",\"\",Summary_Products!R93)","v":""},{"$f":"IF(Summary_Products!S93=\"\",\"\",Summary_Products!S93)","v":""},{"$f":"IF(Summary_Products!T93=\"\",\"\",Summary_Products!T93)","v":""},{"$f":"IF(Summary_Products!U93=\"\",\"\",Summary_Products!U93)","v":""},{"$f":"IF(Summary_Products!V93=\"\",\"\",Summary_Products!V93)","v":""},{"$f":"IF(Summary_Products!W93=\"\",\"\",Summary_Products!W93)","v":""},{"$f":"IF(Summary_Products!X93=\"\",\"\",Summary_Products!X93)","v":""},{"$f":"IF(Summary_Products!Y93=\"\",\"\",Summary_Products!Y93)","v":""},{"$f":"IF(Summary_Products!Z93=\"\",\"\",Summary_Products!Z93)","v":""},{"$f":"IF(Summary_Products!AA93=\"\",\"\",Summary_Products!AA93)","v":""},{"$f":"IF(Summary_Products!AB93=\"\",\"\",Summary_Products!AB93)","v":""},{"$f":"IF(Summary_Products!AC93=\"\",\"\",Summary_Products!AC93)","v":""},{"$f":"IF(Summary_Products!AD93=\"\",\"\",Summary_Products!AD93)","v":""},{"$f":"IF(Summary_Products!AE93=\"\",\"\",Summary_Products!AE93)","v":""},{"$f":"IF(Summary_Products!AF93=\"\",\"\",Summary_Products!AF93)","v":""},{"$f":"IF(Summary_Products!AG93=\"\",\"\",Summary_Products!AG93)","v":""},{"$f":"IF(Summary_Products!AH93=\"\",\"\",Summary_Products!AH93)","v":""},{"$f":"IF(Summary_Products!AI93=\"\",\"\",Summary_Products!AI93)","v":""},{"$f":"IF(Summary_Products!AJ93=\"\",\"\",Summary_Products!AJ93)","v":""},{"$f":"IF(Summary_Products!AK93=\"\",\"\",Summary_Products!AK93)","v":""},{"$f":"IF(Summary_Products!AL93=\"\",\"\",INDEX(Translations!$C:$C,MATCH(Summary_Products!AL93,Translations!$B:$B,0)))","v":""},{"$f":"IF(Summary_Products!AM93=\"\",\"\",Summary_Products!AM93)","v":""},{"$f":"IF(Summary_Products!AN93=\"\",\"\",Summary_Products!AN93)","v":""},{"$f":"IF(Summary_Products!AO93=\"\",\"\",Summary_Products!AO93)","v":""},{"$f":"IF(Summary_Products!AP93=\"\",\"\",Summary_Products!AP93)","v":""},{"$f":"IF(Summary_Products!AR93=\"\",\"\",Summary_Products!AR93)","v":""},{"$f":"IF(Summary_Products!AS93=\"\",\"\",Summary_Products!AS93)","v":""},{"$f":"IF(Summary_Products!AT93=\"\",\"\",INDEX(Translations!$C:$C,MATCH(Summary_Products!AT93,Translations!$B:$B,0)))","v":""},{"$f":"IF(Summary_Products!AU93=\"\",\"\",Summary_Products!AU93)","v":""},{"$f":"IF(Summary_Products!AV93=\"\",\"\",Summary_Products!AV93)","v":""},{"$f":"IF(Summary_Products!AW93=\"\",\"\",Summary_Products!AW93)","v":""},{"$f":"IF(Summary_Products!AX93=\"\",\"\",Summary_Products!AX93)","v":""},{"$f":"IF(Summary_Products!AY93=\"\",\"\",Summary_Products!AY93)","v":""},{"$f":"IF(Summary_Products!AZ93=\"\",\"\",Summary_Products!AZ93)","v":""},{"$f":"IF(Summary_Products!BA93=\"\",\"\",Summary_Products!BA93)","v":""}]
[null,null,85,{"$f":"IF(Summary_Products!D94=\"\",\"\",Summary_Products!D94)","v":""},{"$f":"IF(Summary_Products!E94=\"\",\"\",INDEX(Translations!$C:$C,MATCH(Summary_Products!E94,Translations!$B:$B,0)))","v":""},{"$f":"IF(Summary_Products!F94=\"\",\"\",Summary_Products!F94)","v":""},{"$f":"IF(F110=\"\",\"\",INDEX(Parameters_CNCodes!$H$4:$H$752,MATCH(F110,CNCodes_ListKey,0)))","v":""},{"$f":"IF(Summary_Products!H94=\"\",\"\",Summary_Products!H94)","v":""},{"$f":"IF(Summary_Products!I94=\"\",\"\",Summary_Products!I94)","v":""},{"$f":"IF(Summary_Products!J94=\"\",\"\",Summary_Products!J94)","v":""},{"$f":"IF(Summary_Products!K94=\"\",\"\",Summary_Products!K94)","v":""},{"$f":"IF(Summary_Products!L94=\"\",\"\",Summary_Products!L94)","v":""},{"$f":"IF(Summary_Products!M94=\"\",\"\",Summary_Products!M94)","v":""},{"$f":"IF(Summary_Products!N94=\"\",\"\",Summary_Products!N94)","v":""},{"$f":"IF(Summary_Products!O94=\"\",\"\",Summary_Products!O94)","v":""},{"$f":"IF(Summary_Products!P94=\"\",\"\",INDEX(Translations!$C:$C,MATCH(Summary_Products!P94,Translations!$B:$B,0)))","v":""},{"$f":"IF(Summary_Products!Q94=\"\",\"\",Summary_Products!Q94)","v":""},{"$f":"IF(Summary_Products!R94=\"\",\"\",Summary_Products!R94)","v":""},{"$f":"IF(Summary_Products!S94=\"\",\"\",Summary_Products!S94)","v":""},{"$f":"IF(Summary_Products!T94=\"\",\"\",Summary_Products!T94)","v":""},{"$f":"IF(Summary_Products!U94=\"\",\"\",Summary_Products!U94)","v":""},{"$f":"IF(Summary_Products!V94=\"\",\"\",Summary_Products!V94)","v":""},{"$f":"IF(Summary_Products!W94=\"\",\"\",Summary_Products!W94)","v":""},{"$f":"IF(Summary_Products!X94=\"\",\"\",Summary_Products!X94)","v":""},{"$f":"IF(Summary_Products!Y94=\"\",\"\",Summary_Products!Y94)","v":""},{"$f":"IF(Summary_Products!Z94=\"\",\"\",Summary_Products!Z94)","v":""},{"$f":"IF(Summary_Products!AA94=\"\",\"\",Summary_Products!AA94)","v":""},{"$f":"IF(Summary_Products!AB94=\"\",\"\",Summary_Products!AB94)","v":""},{"$f":"IF(Summary_Products!AC94=\"\",\"\",Summary_Products!AC94)","v":""},{"$f":"IF(Summary_Products!AD94=\"\",\"\",Summary_Products!AD94)","v":""},{"$f":"IF(Summary_Products!AE94=\"\",\"\",Summary_Products!AE94)","v":""},{"$f":"IF(Summary_Products!AF94=\"\",\"\",Summary_Products!AF94)","v":""},{"$f":"IF(Summary_Products!AG94=\"\",\"\",Summary_Products!AG94)","v":""},{"$f":"IF(Summary_Products!AH94=\"\",\"\",Summary_Products!AH94)","v":""},{"$f":"IF(Summary_Products!AI94=\"\",\"\",Summary_Products!AI94)","v":""},{"$f":"IF(Summary_Products!AJ94=\"\",\"\",Summary_Products!AJ94)","v":""},{"$f":"IF(Summary_Products!AK94=\"\",\"\",Summary_Products!AK94)","v":""},{"$f":"IF(Summary_Products!AL94=\"\",\"\",INDEX(Translations!$C:$C,MATCH(Summary_Products!AL94,Translations!$B:$B,0)))","v":""},{"$f":"IF(Summary_Products!AM94=\"\",\"\",Summary_Products!AM94)","v":""},{"$f":"IF(Summary_Products!AN94=\"\",\"\",Summary_Products!AN94)","v":""},{"$f":"IF(Summary_Products!AO94=\"\",\"\",Summary_Products!AO94)","v":""},{"$f":"IF(Summary_Products!AP94=\"\",\"\",Summary_Products!AP94)","v":""},{"$f":"IF(Summary_Products!AR94=\"\",\"\",Summary_Products!AR94)","v":""},{"$f":"IF(Summary_Products!AS94=\"\",\"\",Summary_Products!AS94)","v":""},{"$f":"IF(Summary_Products!AT94=\"\",\"\",INDEX(Translations!$C:$C,MATCH(Summary_Products!AT94,Translations!$B:$B,0)))","v":""},{"$f":"IF(Summary_Products!AU94=\"\",\"\",Summary_Products!AU94)","v":""},{"$f":"IF(Summary_Products!AV94=\"\",\"\",Summary_Products!AV94)","v":""},{"$f":"IF(Summary_Products!AW94=\"\",\"\",Summary_Products!AW94)","v":""},{"$f":"IF(Summary_Products!AX94=\"\",\"\",Summary_Products!AX94)","v":""},{"$f":"IF(Summary_Products!AY94=\"\",\"\",Summary_Products!AY94)","v":""},{"$f":"IF(Summary_Products!AZ94=\"\",\"\",Summary_Products!AZ94)","v":""},{"$f":"IF(Summary_Products!BA94=\"\",\"\",Summary_Products!BA94)","v":""}]
[null,null,86,{"$f":"IF(Summary_Products!D95=\"\",\"\",Summary_Products!D95)","v":""},{"$f":"IF(Summary_Products!E95=\"\",\"\",INDEX(Translations!$C:$C,MATCH(Summary_Products!E95,Translations!$B:$B,0)))","v":""},{"$f":"IF(Summary_Products!F95=\"\",\"\",Summary_Products!F95)","v":""},{"$f":"IF(F111=\"\",\"\",INDEX(Parameters_CNCodes!$H$4:$H$752,MATCH(F111,CNCodes_ListKey,0)))","v":""},{"$f":"IF(Summary_Products!H95=\"\",\"\",Summary_Products!H95)","v":""},{"$f":"IF(Summary_Products!I95=\"\",\"\",Summary_Products!I95)","v":""},{"$f":"IF(Summary_Products!J95=\"\",\"\",Summary_Products!J95)","v":""},{"$f":"IF(Summary_Products!K95=\"\",\"\",Summary_Products!K95)","v":""},{"$f":"IF(Summary_Products!L95=\"\",\"\",Summary_Products!L95)","v":""},{"$f":"IF(Summary_Products!M95=\"\",\"\",Summary_Products!M95)","v":""},{"$f":"IF(Summary_Products!N95=\"\",\"\",Summary_Products!N95)","v":""},{"$f":"IF(Summary_Products!O95=\"\",\"\",Summary_Products!O95)","v":""},{"$f":"IF(Summary_Products!P95=\"\",\"\",INDEX(Translations!$C:$C,MATCH(Summary_Products!P95,Translations!$B:$B,0)))","v":""},{"$f":"IF(Summary_Products!Q95=\"\",\"\",Summary_Products!Q95)","v":""},{"$f":"IF(Summary_Products!R95=\"\",\"\",Summary_Products!R95)","v":""},{"$f":"IF(Summary_Products!S95=\"\",\"\",Summary_Products!S95)","v":""},{"$f":"IF(Summary_Products!T95=\"\",\"\",Summary_Products!T95)","v":""},{"$f":"IF(Summary_Products!U95=\"\",\"\",Summary_Products!U95)","v":""},{"$f":"IF(Summary_Products!V95=\"\",\"\",Summary_Products!V95)","v":""},{"$f":"IF(Summary_Products!W95=\"\",\"\",Summary_Products!W95)","v":""},{"$f":"IF(Summary_Products!X95=\"\",\"\",Summary_Products!X95)","v":""},{"$f":"IF(Summary_Products!Y95=\"\",\"\",Summary_Products!Y95)","v":""},{"$f":"IF(Summary_Products!Z95=\"\",\"\",Summary_Products!Z95)","v":""},{"$f":"IF(Summary_Products!AA95=\"\",\"\",Summary_Products!AA95)","v":""},{"$f":"IF(Summary_Products!AB95=\"\",\"\",Summary_Products!AB95)","v":""},{"$f":"IF(Summary_Products!AC95=\"\",\"\",Summary_Products!AC95)","v":""},{"$f":"IF(Summary_Products!AD95=\"\",\"\",Summary_Products!AD95)","v":""},{"$f":"IF(Summary_Products!AE95=\"\",\"\",Summary_Products!AE95)","v":""},{"$f":"IF(Summary_Products!AF95=\"\",\"\",Summary_Products!AF95)","v":""},{"$f":"IF(Summary_Products!AG95=\"\",\"\",Summary_Products!AG95)","v":""},{"$f":"IF(Summary_Products!AH95=\"\",\"\",Summary_Products!AH95)","v":""},{"$f":"IF(Summary_Products!AI95=\"\",\"\",Summary_Products!AI95)","v":""},{"$f":"IF(Summary_Products!AJ95=\"\",\"\",Summary_Products!AJ95)","v":""},{"$f":"IF(Summary_Products!AK95=\"\",\"\",Summary_Products!AK95)","v":""},{"$f":"IF(Summary_Products!AL95=\"\",\"\",INDEX(Translations!$C:$C,MATCH(Summary_Products!AL95,Translations!$B:$B,0)))","v":""},{"$f":"IF(Summary_Products!AM95=\"\",\"\",Summary_Products!AM95)","v":""},{"$f":"IF(Summary_Products!AN95=\"\",\"\",Summary_Products!AN95)","v":""},{"$f":"IF(Summary_Products!AO95=\"\",\"\",Summary_Products!AO95)","v":""},{"$f":"IF(Summary_Products!AP95=\"\",\"\",Summary_Products!AP95)","v":""},{"$f":"IF(Summary_Products!AR95=\"\",\"\",Summary_Products!AR95)","v":""},{"$f":"IF(Summary_Products!AS95=\"\",\"\",Summary_Products!AS95)","v":""},{"$f":"IF(Summary_Products!AT95=\"\",\"\",INDEX(Translations!$C:$C,MATCH(Summary_Products!AT95,Translations!$B:$B,0)))","v":""},{"$f":"IF(Summary_Products!AU95=\"\",\"\",Summary_Products!AU95)","v":""},{"$f":"IF(Summary_Products!AV95=\"\",\"\",Summary_Products!AV95)","v":""},{"$f":"IF(Summary_Products!AW95=\"\",\"\",Summary_Products!AW95)","v":""},{"$f":"IF(Summary_Products!AX95=\"\",\"\",Summary_Products!AX95)","v":""},{"$f":"IF(Summary_Products!AY95=\"\",\"\",Summary_Products!AY95)","v":""},{"$f":"IF(Summary_Products!AZ95=\"\",\"\",Summary_Products!AZ95)","v":""},{"$f":"IF(Summary_Products!BA95=\"\",\"\",Summary_Products!BA95)","v":""}]
[null,null,87,{"$f":"IF(Summary_Products!D96=\"\",\"\",Summary_Products!D96)","v":""},{"$f":"IF(Summary_Products!E96=\"\",\"\",INDEX(Translations!$C:$C,MATCH(Summary_Products!E96,Translations!$B:$B,0)))","v":""},{"$f":"IF(Summary_Products!F96=\"\",\"\",Summary_Products!F96)","v":""},{"$f":"IF(F112=\"\",\"\",INDEX(Parameters_CNCodes!$H$4:$H$752,MATCH(F112,CNCodes_ListKey,0)))","v":""},{"$f":"IF(Summary_Products!H96=\"\",\"\",Summary_Products!H96)","v":""},{"$f":"IF(Summary_Products!I96=\"\",\"\",Summary_Products!I96)","v":""},{"$f":"IF(Summary_Products!J96=\"\",\"\",Summary_Products!J96)","v":""},{"$f":"IF(Summary_Products!K96=\"\",\"\",Summary_Products!K96)","v":""},{"$f":"IF(Summary_Products!L96=\"\",\"\",Summary_Products!L96)","v":""},{"$f":"IF(Summary_Products!M96=\"\",\"\",Summary_Products!M96)","v":""},{"$f":"IF(Summary_Products!N96=\"\",\"\",Summary_Products!N96)","v":""},{"$f":"IF(Summary_Products!O96=\"\",\"\",Summary_Products!O96)","v":""},{"$f":"IF(Summary_Products!P96=\"\",\"\",INDEX(Translations!$C:$C,MATCH(Summary_Products!P96,Translations!$B:$B,0)))","v":""},{"$f":"IF(Summary_Products!Q96=\"\",\"\",Summary_Products!Q96)","v":""},{"$f":"IF(Summary_Products!R96=\"\",\"\",Summary_Products!R96)","v":""},{"$f":"IF(Summary_Products!S96=\"\",\"\",Summary_Products!S96)","v":""},{"$f":"IF(Summary_Products!T96=\"\",\"\",Summary_Products!T96)","v":""},{"$f":"IF(Summary_Products!U96=\"\",\"\",Summary_Products!U96)","v":""},{"$f":"IF(Summary_Products!V96=\"\",\"\",Summary_Products!V96)","v":""},{"$f":"IF(Summary_Products!W96=\"\",\"\",Summary_Products!W96)","v":""},{"$f":"IF(Summary_Products!X96=\"\",\"\",Summary_Products!X96)","v":""},{"$f":"IF(Summary_Products!Y96=\"\",\"\",Summary_Products!Y96)","v":""},{"$f":"IF(Summary_Products!Z96=\"\",\"\",Summary_Products!Z96)","v":""},{"$f":"IF(Summary_Products!AA96=\"\",\"\",Summary_Products!AA96)","v":""},{"$f":"IF(Summary_Products!AB96=\"\",\"\",Summary_Products!AB96)","v":""},{"$f":"IF(Summary_Products!AC96=\"\",\"\",Summary_Products!AC96)","v":""},{"$f":"IF(Summary_Products!AD96=\"\",\"\",Summary_Products!AD96)","v":""},{"$f":"IF(Summary_Products!AE96=\"\",\"\",Summary_Products!AE96)","v":""},{"$f":"IF(Summary_Products!AF96=\"\",\"\",Summary_Products!AF96)","v":""},{"$f":"IF(Summary_Products!AG96=\"\",\"\",Summary_Products!AG96)","v":""},{"$f":"IF(Summary_Products!AH96=\"\",\"\",Summary_Products!AH96)","v":""},{"$f":"IF(Summary_Products!AI96=\"\",\"\",Summary_Products!AI96)","v":""},{"$f":"IF(Summary_Products!AJ96=\"\",\"\",Summary_Products!AJ96)","v":""},{"$f":"IF(Summary_Products!AK96=\"\",\"\",Summary_Products!AK96)","v":""},{"$f":"IF(Summary_Products!AL96=\"\",\"\",INDEX(Translations!$C:$C,MATCH(Summary_Products!AL96,Translations!$B:$B,0)))","v":""},{"$f":"IF(Summary_Products!AM96=\"\",\"\",Summary_Products!AM96)","v":""},{"$f":"IF(Summary_Products!AN96=\"\",\"\",Summary_Products!AN96)","v":""},{"$f":"IF(Summary_Products!AO96=\"\",\"\",Summary_Products!AO96)","v":""},{"$f":"IF(Summary_Products!AP96=\"\",\"\",Summary_Products!AP96)","v":""},{"$f":"IF(Summary_Products!AR96=\"\",\"\",Summary_Products!AR96)","v":""},{"$f":"IF(Summary_Products!AS96=\"\",\"\",Summary_Products!AS96)","v":""},{"$f":"IF(Summary_Products!AT96=\"\",\"\",INDEX(Translations!$C:$C,MATCH(Summary_Products!AT96,Translations!$B:$B,0)))","v":""},{"$f":"IF(Summary_Products!AU96=\"\",\"\",Summary_Products!AU96)","v":""},{"$f":"IF(Summary_Products!AV96=\"\",\"\",Summary_Products!AV96)","v":""},{"$f":"IF(Summary_Products!AW96=\"\",\"\",Summary_Products!AW96)","v":""},{"$f":"IF(Summary_Products!AX96=\"\",\"\",Summary_Products!AX96)","v":""},{"$f":"IF(Summary_Products!AY96=\"\",\"\",Summary_Products!AY96)","v":""},{"$f":"IF(Summary_Products!AZ96=\"\",\"\",Summary_Products!AZ96)","v":""},{"$f":"IF(Summary_Products!BA96=\"\",\"\",Summary_Products!BA96)","v":""}]
[null,null,88,{"$f":"IF(Summary_Products!D97=\"\",\"\",Summary_Products!D97)","v":""},{"$f":"IF(Summary_Products!E97=\"\",\"\",INDEX(Translations!$C:$C,MATCH(Summary_Products!E97,Translations!$B:$B,0)))","v":""},{"$f":"IF(Summary_Products!F97=\"\",\"\",Summary_Products!F97)","v":""},{"$f":"IF(F113=\"\",\"\",INDEX(Parameters_CNCodes!$H$4:$H$752,MATCH(F113,CNCodes_ListKey,0)))","v":""},{"$f":"IF(Summary_Products!H97=\"\",\"\",Summary_Products!H97)","v":""},{"$f":"IF(Summary_Products!I97=\"\",\"\",Summary_Products!I97)","v":""},{"$f":"IF(Summary_Products!J97=\"\",\"\",Summary_Products!J97)","v":""},{"$f":"IF(Summary_Products!K97=\"\",\"\",Summary_Products!K97)","v":""},{"$f":"IF(Summary_Products!L97=\"\",\"\",Summary_Products!L97)","v":""},{"$f":"IF(Summary_Products!M97=\"\",\"\",Summary_Products!M97)","v":""},{"$f":"IF(Summary_Products!N97=\"\",\"\",Summary_Products!N97)","v":""},{"$f":"IF(Summary_Products!O97=\"\",\"\",Summary_Products!O97)","v":""},{"$f":"IF(Summary_Products!P97=\"\",\"\",INDEX(Translations!$C:$C,MATCH(Summary_Products!P97,Translations!$B:$B,0)))","v":""},{"$f":"IF(Summary_Products!Q97=\"\",\"\",Summary_Products!Q97)","v":""},{"$f":"IF(Summary_Products!R97=\"\",\"\",Summary_Products!R97)","v":""},{"$f":"IF(Summary_Products!S97=\"\",\"\",Summary_Products!S97)","v":""},{"$f":"IF(Summary_Products!T97=\"\",\"\",Summary_Products!T97)","v":""},{"$f":"IF(Summary_Products!U97=\"\",\"\",Summary_Products!U97)","v":""},{"$f":"IF(Summary_Products!V97=\"\",\"\",Summary_Products!V97)","v":""},{"$f":"IF(Summary_Products!W97=\"\",\"\",Summary_Products!W97)","v":""},{"$f":"IF(Summary_Products!X97=\"\",\"\",Summary_Products!X97)","v":""},{"$f":"IF(Summary_Products!Y97=\"\",\"\",Summary_Products!Y97)","v":""},{"$f":"IF(Summary_Products!Z97=\"\",\"\",Summary_Products!Z97)","v":""},{"$f":"IF(Summary_Products!AA97=\"\",\"\",Summary_Products!AA97)","v":""},{"$f":"IF(Summary_Products!AB97=\"\",\"\",Summary_Products!AB97)","v":""},{"$f":"IF(Summary_Products!AC97=\"\",\"\",Summary_Products!AC97)","v":""},{"$f":"IF(Summary_Products!AD97=\"\",\"\",Summary_Products!AD97)","v":""},{"$f":"IF(Summary_Products!AE97=\"\",\"\",Summary_Products!AE97)","v":""},{"$f":"IF(Summary_Products!AF97=\"\",\"\",Summary_Products!AF97)","v":""},{"$f":"IF(Summary_Products!AG97=\"\",\"\",Summary_Products!AG97)","v":""},{"$f":"IF(Summary_Products!AH97=\"\",\"\",Summary_Products!AH97)","v":""},{"$f":"IF(Summary_Products!AI97=\"\",\"\",Summary_Products!AI97)","v":""},{"$f":"IF(Summary_Products!AJ97=\"\",\"\",Summary_Products!AJ97)","v":""},{"$f":"IF(Summary_Products!AK97=\"\",\"\",Summary_Products!AK97)","v":""},{"$f":"IF(Summary_Products!AL97=\"\",\"\",INDEX(Translations!$C:$C,MATCH(Summary_Products!AL97,Translations!$B:$B,0)))","v":""},{"$f":"IF(Summary_Products!AM97=\"\",\"\",Summary_Products!AM97)","v":""},{"$f":"IF(Summary_Products!AN97=\"\",\"\",Summary_Products!AN97)","v":""},{"$f":"IF(Summary_Products!AO97=\"\",\"\",Summary_Products!AO97)","v":""},{"$f":"IF(Summary_Products!AP97=\"\",\"\",Summary_Products!AP97)","v":""},{"$f":"IF(Summary_Products!AR97=\"\",\"\",Summary_Products!AR97)","v":""},{"$f":"IF(Summary_Products!AS97=\"\",\"\",Summary_Products!AS97)","v":""},{"$f":"IF(Summary_Products!AT97=\"\",\"\",INDEX(Translations!$C:$C,MATCH(Summary_Products!AT97,Translations!$B:$B,0)))","v":""},{"$f":"IF(Summary_Products!AU97=\"\",\"\",Summary_Products!AU97)","v":""},{"$f":"IF(Summary_Products!AV97=\"\",\"\",Summary_Products!AV97)","v":""},{"$f":"IF(Summary_Products!AW97=\"\",\"\",Summary_Products!AW97)","v":""},{"$f":"IF(Summary_Products!AX97=\"\",\"\",Summary_Products!AX97)","v":""},{"$f":"IF(Summary_Products!AY97=\"\",\"\",Summary_Products!AY97)","v":""},{"$f":"IF(Summary_Products!AZ97=\"\",\"\",Summary_Products!AZ97)","v":""},{"$f":"IF(Summary_Products!BA97=\"\",\"\",Summary_Products!BA97)","v":""}]
[null,null,89,{"$f":"IF(Summary_Products!D98=\"\",\"\",Summary_Products!D98)","v":""},{"$f":"IF(Summary_Products!E98=\"\",\"\",INDEX(Translations!$C:$C,MATCH(Summary_Products!E98,Translations!$B:$B,0)))","v":""},{"$f":"IF(Summary_Products!F98=\"\",\"\",Summary_Products!F98)","v":""},{"$f":"IF(F114=\"\",\"\",INDEX(Parameters_CNCodes!$H$4:$H$752,MATCH(F114,CNCodes_ListKey,0)))","v":""},{"$f":"IF(Summary_Products!H98=\"\",\"\",Summary_Products!H98)","v":""},{"$f":"IF(Summary_Products!I98=\"\",\"\",Summary_Products!I98)","v":""},{"$f":"IF(Summary_Products!J98=\"\",\"\",Summary_Products!J98)","v":""},{"$f":"IF(Summary_Products!K98=\"\",\"\",Summary_Products!K98)","v":""},{"$f":"IF(Summary_Products!L98=\"\",\"\",Summary_Products!L98)","v":""},{"$f":"IF(Summary_Products!M98=\"\",\"\",Summary_Products!M98)","v":""},{"$f":"IF(Summary_Products!N98=\"\",\"\",Summary_Products!N98)","v":""},{"$f":"IF(Summary_Products!O98=\"\",\"\",Summary_Products!O98)","v":""},{"$f":"IF(Summary_Products!P98=\"\",\"\",INDEX(Translations!$C:$C,MATCH(Summary_Products!P98,Translations!$B:$B,0)))","v":""},{"$f":"IF(Summary_Products!Q98=\"\",\"\",Summary_Products!Q98)","v":""},{"$f":"IF(Summary_Products!R98=\"\",\"\",Summary_Products!R98)","v":""},{"$f":"IF(Summary_Products!S98=\"\",\"\",Summary_Products!S98)","v":""},{"$f":"IF(Summary_Products!T98=\"\",\"\",Summary_Products!T98)","v":""},{"$f":"IF(Summary_Products!U98=\"\",\"\",Summary_Products!U98)","v":""},{"$f":"IF(Summary_Products!V98=\"\",\"\",Summary_Products!V98)","v":""},{"$f":"IF(Summary_Products!W98=\"\",\"\",Summary_Products!W98)","v":""},{"$f":"IF(Summary_Products!X98=\"\",\"\",Summary_Products!X98)","v":""},{"$f":"IF(Summary_Products!Y98=\"\",\"\",Summary_Products!Y98)","v":""},{"$f":"IF(Summary_Products!Z98=\"\",\"\",Summary_Products!Z98)","v":""},{"$f":"IF(Summary_Products!AA98=\"\",\"\",Summary_Products!AA98)","v":""},{"$f":"IF(Summary_Products!AB98=\"\",\"\",Summary_Products!AB98)","v":""},{"$f":"IF(Summary_Products!AC98=\"\",\"\",Summary_Products!AC98)","v":""},{"$f":"IF(Summary_Products!AD98=\"\",\"\",Summary_Products!AD98)","v":""},{"$f":"IF(Summary_Products!AE98=\"\",\"\",Summary_Products!AE98)","v":""},{"$f":"IF(Summary_Products!AF98=\"\",\"\",Summary_Products!AF98)","v":""},{"$f":"IF(Summary_Products!AG98=\"\",\"\",Summary_Products!AG98)","v":""},{"$f":"IF(Summary_Products!AH98=\"\",\"\",Summary_Products!AH98)","v":""},{"$f":"IF(Summary_Products!AI98=\"\",\"\",Summary_Products!AI98)","v":""},{"$f":"IF(Summary_Products!AJ98=\"\",\"\",Summary_Products!AJ98)","v":""},{"$f":"IF(Summary_Products!AK98=\"\",\"\",Summary_Products!AK98)","v":""},{"$f":"IF(Summary_Products!AL98=\"\",\"\",INDEX(Translations!$C:$C,MATCH(Summary_Products!AL98,Translations!$B:$B,0)))","v":""},{"$f":"IF(Summary_Products!AM98=\"\",\"\",Summary_Products!AM98)","v":""},{"$f":"IF(Summary_Products!AN98=\"\",\"\",Summary_Products!AN98)","v":""},{"$f":"IF(Summary_Products!AO98=\"\",\"\",Summary_Products!AO98)","v":""},{"$f":"IF(Summary_Products!AP98=\"\",\"\",Summary_Products!AP98)","v":""},{"$f":"IF(Summary_Products!AR98=\"\",\"\",Summary_Products!AR98)","v":""},{"$f":"IF(Summary_Products!AS98=\"\",\"\",Summary_Products!AS98)","v":""},{"$f":"IF(Summary_Products!AT98=\"\",\"\",INDEX(Translations!$C:$C,MATCH(Summary_Products!AT98,Translations!$B:$B,0)))","v":""},{"$f":"IF(Summary_Products!AU98=\"\",\"\",Summary_Products!AU98)","v":""},{"$f":"IF(Summary_Products!AV98=\"\",\"\",Summary_Products!AV98)","v":""},{"$f":"IF(Summary_Products!AW98=\"\",\"\",Summary_Products!AW98)","v":""},{"$f":"IF(Summary_Products!AX98=\"\",\"\",Summary_Products!AX98)","v":""},{"$f":"IF(Summary_Products!AY98=\"\",\"\",Summary_Products!AY98)","v":""},{"$f":"IF(Summary_Products!AZ98=\"\",\"\",Summary_Products!AZ98)","v":""},{"$f":"IF(Summary_Products!BA98=\"\",\"\",Summary_Products!BA98)","v":""}]
[null,null,90,{"$f":"IF(Summary_Products!D99=\"\",\"\",Summary_Products!D99)","v":""},{"$f":"IF(Summary_Products!E99=\"\",\"\",INDEX(Translations!$C:$C,MATCH(Summary_Products!E99,Translations!$B:$B,0)))","v":""},{"$f":"IF(Summary_Products!F99=\"\",\"\",Summary_Products!F99)","v":""},{"$f":"IF(F115=\"\",\"\",INDEX(Parameters_CNCodes!$H$4:$H$752,MATCH(F115,CNCodes_ListKey,0)))","v":""},{"$f":"IF(Summary_Products!H99=\"\",\"\",Summary_Products!H99)","v":""},{"$f":"IF(Summary_Products!I99=\"\",\"\",Summary_Products!I99)","v":""},{"$f":"IF(Summary_Products!J99=\"\",\"\",Summary_Products!J99)","v":""},{"$f":"IF(Summary_Products!K99=\"\",\"\",Summary_Products!K99)","v":""},{"$f":"IF(Summary_Products!L99=\"\",\"\",Summary_Products!L99)","v":""},{"$f":"IF(Summary_Products!M99=\"\",\"\",Summary_Products!M99)","v":""},{"$f":"IF(Summary_Products!N99=\"\",\"\",Summary_Products!N99)","v":""},{"$f":"IF(Summary_Products!O99=\"\",\"\",Summary_Products!O99)","v":""},{"$f":"IF(Summary_Products!P99=\"\",\"\",INDEX(Translations!$C:$C,MATCH(Summary_Products!P99,Translations!$B:$B,0)))","v":""},{"$f":"IF(Summary_Products!Q99=\"\",\"\",Summary_Products!Q99)","v":""},{"$f":"IF(Summary_Products!R99=\"\",\"\",Summary_Products!R99)","v":""},{"$f":"IF(Summary_Products!S99=\"\",\"\",Summary_Products!S99)","v":""},{"$f":"IF(Summary_Products!T99=\"\",\"\",Summary_Products!T99)","v":""},{"$f":"IF(Summary_Products!U99=\"\",\"\",Summary_Products!U99)","v":""},{"$f":"IF(Summary_Products!V99=\"\",\"\",Summary_Products!V99)","v":""},{"$f":"IF(Summary_Products!W99=\"\",\"\",Summary_Products!W99)","v":""},{"$f":"IF(Summary_Products!X99=\"\",\"\",Summary_Products!X99)","v":""},{"$f":"IF(Summary_Products!Y99=\"\",\"\",Summary_Products!Y99)","v":""},{"$f":"IF(Summary_Products!Z99=\"\",\"\",Summary_Products!Z99)","v":""},{"$f":"IF(Summary_Products!AA99=\"\",\"\",Summary_Products!AA99)","v":""},{"$f":"IF(Summary_Products!AB99=\"\",\"\",Summary_Products!AB99)","v":""},{"$f":"IF(Summary_Products!AC99=\"\",\"\",Summary_Products!AC99)","v":""},{"$f":"IF(Summary_Products!AD99=\"\",\"\",Summary_Products!AD99)","v":""},{"$f":"IF(Summary_Products!AE99=\"\",\"\",Summary_Products!AE99)","v":""},{"$f":"IF(Summary_Products!AF99=\"\",\"\",Summary_Products!AF99)","v":""},{"$f":"IF(Summary_Products!AG99=\"\",\"\",Summary_Products!AG99)","v":""},{"$f":"IF(Summary_Products!AH99=\"\",\"\",Summary_Products!AH99)","v":""},{"$f":"IF(Summary_Products!AI99=\"\",\"\",Summary_Products!AI99)","v":""},{"$f":"IF(Summary_Products!AJ99=\"\",\"\",Summary_Products!AJ99)","v":""},{"$f":"IF(Summary_Products!AK99=\"\",\"\",Summary_Products!AK99)","v":""},{"$f":"IF(Summary_Products!AL99=\"\",\"\",INDEX(Translations!$C:$C,MATCH(Summary_Products!AL99,Translations!$B:$B,0)))","v":""},{"$f":"IF(Summary_Products!AM99=\"\",\"\",Summary_Products!AM99)","v":""},{"$f":"IF(Summary_Products!AN99=\"\",\"\",Summary_Products!AN99)","v":""},{"$f":"IF(Summary_Products!AO99=\"\",\"\",Summary_Products!AO99)","v":""},{"$f":"IF(Summary_Products!AP99=\"\",\"\",Summary_Products!AP99)","v":""},{"$f":"IF(Summary_Products!AR99=\"\",\"\",Summary_Products!AR99)","v":""},{"$f":"IF(Summary_Products!AS99=\"\",\"\",Summary_Products!AS99)","v":""},{"$f":"IF(Summary_Products!AT99=\"\",\"\",INDEX(Translations!$C:$C,MATCH(Summary_Products!AT99,Translations!$B:$B,0)))","v":""},{"$f":"IF(Summary_Products!AU99=\"\",\"\",Summary_Products!AU99)","v":""},{"$f":"IF(Summary_Products!AV99=\"\",\"\",Summary_Products!AV99)","v":""},{"$f":"IF(Summary_Products!AW99=\"\",\"\",Summary_Products!AW99)","v":""},{"$f":"IF(Summary_Products!AX99=\"\",\"\",Summary_Products!AX99)","v":""},{"$f":"IF(Summary_Products!AY99=\"\",\"\",Summary_Products!AY99)","v":""},{"$f":"IF(Summary_Products!AZ99=\"\",\"\",Summary_Products!AZ99)","v":""},{"$f":"IF(Summary_Products!BA99=\"\",\"\",Summary_Products!BA99)","v":""}]
[null,null,91,{"$f":"IF(Summary_Products!D100=\"\",\"\",Summary_Products!D100)","v":""},{"$f":"IF(Summary_Products!E100=\"\",\"\",INDEX(Translations!$C:$C,MATCH(Summary_Products!E100,Translations!$B:$B,0)))","v":""},{"$f":"IF(Summary_Products!F100=\"\",\"\",Summary_Products!F100)","v":""},{"$f":"IF(F116=\"\",\"\",INDEX(Parameters_CNCodes!$H$4:$H$752,MATCH(F116,CNCodes_ListKey,0)))","v":""},{"$f":"IF(Summary_Products!H100=\"\",\"\",Summary_Products!H100)","v":""},{"$f":"IF(Summary_Products!I100=\"\",\"\",Summary_Products!I100)","v":""},{"$f":"IF(Summary_Products!J100=\"\",\"\",Summary_Products!J100)","v":""},{"$f":"IF(Summary_Products!K100=\"\",\"\",Summary_Products!K100)","v":""},{"$f":"IF(Summary_Products!L100=\"\",\"\",Summary_Products!L100)","v":""},{"$f":"IF(Summary_Products!M100=\"\",\"\",Summary_Products!M100)","v":""},{"$f":"IF(Summary_Products!N100=\"\",\"\",Summary_Products!N100)","v":""},{"$f":"IF(Summary_Products!O100=\"\",\"\",Summary_Products!O100)","v":""},{"$f":"IF(Summary_Products!P100=\"\",\"\",INDEX(Translations!$C:$C,MATCH(Summary_Products!P100,Translations!$B:$B,0)))","v":""},{"$f":"IF(Summary_Products!Q100=\"\",\"\",Summary_Products!Q100)","v":""},{"$f":"IF(Summary_Products!R100=\"\",\"\",Summary_Products!R100)","v":""},{"$f":"IF(Summary_Products!S100=\"\",\"\",Summary_Products!S100)","v":""},{"$f":"IF(Summary_Products!T100=\"\",\"\",Summary_Products!T100)","v":""},{"$f":"IF(Summary_Products!U100=\"\",\"\",Summary_Products!U100)","v":""},{"$f":"IF(Summary_Products!V100=\"\",\"\",Summary_Products!V100)","v":""},{"$f":"IF(Summary_Products!W100=\"\",\"\",Summary_Products!W100)","v":""},{"$f":"IF(Summary_Products!X100=\"\",\"\",Summary_Products!X100)","v":""},{"$f":"IF(Summary_Products!Y100=\"\",\"\",Summary_Products!Y100)","v":""},{"$f":"IF(Summary_Products!Z100=\"\",\"\",Summary_Products!Z100)","v":""},{"$f":"IF(Summary_Products!AA100=\"\",\"\",Summary_Products!AA100)","v":""},{"$f":"IF(Summary_Products!AB100=\"\",\"\",Summary_Products!AB100)","v":""},{"$f":"IF(Summary_Products!AC100=\"\",\"\",Summary_Products!AC100)","v":""},{"$f":"IF(Summary_Products!AD100=\"\",\"\",Summary_Products!AD100)","v":""},{"$f":"IF(Summary_Products!AE100=\"\",\"\",Summary_Products!AE100)","v":""},{"$f":"IF(Summary_Products!AF100=\"\",\"\",Summary_Products!AF100)","v":""},{"$f":"IF(Summary_Products!AG100=\"\",\"\",Summary_Products!AG100)","v":""},{"$f":"IF(Summary_Products!AH100=\"\",\"\",Summary_Products!AH100)","v":""},{"$f":"IF(Summary_Products!AI100=\"\",\"\",Summary_Products!AI100)","v":""},{"$f":"IF(Summary_Products!AJ100=\"\",\"\",Summary_Products!AJ100)","v":""},{"$f":"IF(Summary_Products!AK100=\"\",\"\",Summary_Products!AK100)","v":""},{"$f":"IF(Summary_Products!AL100=\"\",\"\",INDEX(Translations!$C:$C,MATCH(Summary_Products!AL100,Translations!$B:$B,0)))","v":""},{"$f":"IF(Summary_Products!AM100=\"\",\"\",Summary_Products!AM100)","v":""},{"$f":"IF(Summary_Products!AN100=\"\",\"\",Summary_Products!AN100)","v":""},{"$f":"IF(Summary_Products!AO100=\"\",\"\",Summary_Products!AO100)","v":""},{"$f":"IF(Summary_Products!AP100=\"\",\"\",Summary_Products!AP100)","v":""},{"$f":"IF(Summary_Products!AR100=\"\",\"\",Summary_Products!AR100)","v":""},{"$f":"IF(Summary_Products!AS100=\"\",\"\",Summary_Products!AS100)","v":""},{"$f":"IF(Summary_Products!AT100=\"\",\"\",INDEX(Translations!$C:$C,MATCH(Summary_Products!AT100,Translations!$B:$B,0)))","v":""},{"$f":"IF(Summary_Products!AU100=\"\",\"\",Summary_Products!AU100)","v":""},{"$f":"IF(Summary_Products!AV100=\"\",\"\",Summary_Products!AV100)","v":""},{"$f":"IF(Summary_Products!AW100=\"\",\"\",Summary_Products!AW100)","v":""},{"$f":"IF(Summary_Products!AX100=\"\",\"\",Summary_Products!AX100)","v":""},{"$f":"IF(Summary_Products!AY100=\"\",\"\",Summary_Products!AY100)","v":""},{"$f":"IF(Summary_Products!AZ100=\"\",\"\",Summary_Products!AZ100)","v":""},{"$f":"IF(Summary_Products!BA100=\"\",\"\",Summary_Products!BA100)","v":""}]
[null,null,92,{"$f":"IF(Summary_Products!D101=\"\",\"\",Summary_Products!D101)","v":""},{"$f":"IF(Summary_Products!E101=\"\",\"\",INDEX(Translations!$C:$C,MATCH(Summary_Products!E101,Translations!$B:$B,0)))","v":""},{"$f":"IF(Summary_Products!F101=\"\",\"\",Summary_Products!F101)","v":""},{"$f":"IF(F117=\"\",\"\",INDEX(Parameters_CNCodes!$H$4:$H$752,MATCH(F117,CNCodes_ListKey,0)))","v":""},{"$f":"IF(Summary_Products!H101=\"\",\"\",Summary_Products!H101)","v":""},{"$f":"IF(Summary_Products!I101=\"\",\"\",Summary_Products!I101)","v":""},{"$f":"IF(Summary_Products!J101=\"\",\"\",Summary_Products!J101)","v":""},{"$f":"IF(Summary_Products!K101=\"\",\"\",Summary_Products!K101)","v":""},{"$f":"IF(Summary_Products!L101=\"\",\"\",Summary_Products!L101)","v":""},{"$f":"IF(Summary_Products!M101=\"\",\"\",Summary_Products!M101)","v":""},{"$f":"IF(Summary_Products!N101=\"\",\"\",Summary_Products!N101)","v":""},{"$f":"IF(Summary_Products!O101=\"\",\"\",Summary_Products!O101)","v":""},{"$f":"IF(Summary_Products!P101=\"\",\"\",INDEX(Translations!$C:$C,MATCH(Summary_Products!P101,Translations!$B:$B,0)))","v":""},{"$f":"IF(Summary_Products!Q101=\"\",\"\",Summary_Products!Q101)","v":""},{"$f":"IF(Summary_Products!R101=\"\",\"\",Summary_Products!R101)","v":""},{"$f":"IF(Summary_Products!S101=\"\",\"\",Summary_Products!S101)","v":""},{"$f":"IF(Summary_Products!T101=\"\",\"\",Summary_Products!T101)","v":""},{"$f":"IF(Summary_Products!U101=\"\",\"\",Summary_Products!U101)","v":""},{"$f":"IF(Summary_Products!V101=\"\",\"\",Summary_Products!V101)","v":""},{"$f":"IF(Summary_Products!W101=\"\",\"\",Summary_Products!W101)","v":""},{"$f":"IF(Summary_Products!X101=\"\",\"\",Summary_Products!X101)","v":""},{"$f":"IF(Summary_Products!Y101=\"\",\"\",Summary_Products!Y101)","v":""},{"$f":"IF(Summary_Products!Z101=\"\",\"\",Summary_Products!Z101)","v":""},{"$f":"IF(Summary_Products!AA101=\"\",\"\",Summary_Products!AA101)","v":""},{"$f":"IF(Summary_Products!AB101=\"\",\"\",Summary_Products!AB101)","v":""},{"$f":"IF(Summary_Products!AC101=\"\",\"\",Summary_Products!AC101)","v":""},{"$f":"IF(Summary_Products!AD101=\"\",\"\",Summary_Products!AD101)","v":""},{"$f":"IF(Summary_Products!AE101=\"\",\"\",Summary_Products!AE101)","v":""},{"$f":"IF(Summary_Products!AF101=\"\",\"\",Summary_Products!AF101)","v":""},{"$f":"IF(Summary_Products!AG101=\"\",\"\",Summary_Products!AG101)","v":""},{"$f":"IF(Summary_Products!AH101=\"\",\"\",Summary_Products!AH101)","v":""},{"$f":"IF(Summary_Products!AI101=\"\",\"\",Summary_Products!AI101)","v":""},{"$f":"IF(Summary_Products!AJ101=\"\",\"\",Summary_Products!AJ101)","v":""},{"$f":"IF(Summary_Products!AK101=\"\",\"\",Summary_Products!AK101)","v":""},{"$f":"IF(Summary_Products!AL101=\"\",\"\",INDEX(Translations!$C:$C,MATCH(Summary_Products!AL101,Translations!$B:$B,0)))","v":""},{"$f":"IF(Summary_Products!AM101=\"\",\"\",Summary_Products!AM101)","v":""},{"$f":"IF(Summary_Products!AN101=\"\",\"\",Summary_Products!AN101)","v":""},{"$f":"IF(Summary_Products!AO101=\"\",\"\",Summary_Products!AO101)","v":""},{"$f":"IF(Summary_Products!AP101=\"\",\"\",Summary_Products!AP101)","v":""},{"$f":"IF(Summary_Products!AR101=\"\",\"\",Summary_Products!AR101)","v":""},{"$f":"IF(Summary_Products!AS101=\"\",\"\",Summary_Products!AS101)","v":""},{"$f":"IF(Summary_Products!AT101=\"\",\"\",INDEX(Translations!$C:$C,MATCH(Summary_Products!AT101,Translations!$B:$B,0)))","v":""},{"$f":"IF(Summary_Products!AU101=\"\",\"\",Summary_Products!AU101)","v":""},{"$f":"IF(Summary_Products!AV101=\"\",\"\",Summary_Products!AV101)","v":""},{"$f":"IF(Summary_Products!AW101=\"\",\"\",Summary_Products!AW101)","v":""},{"$f":"IF(Summary_Products!AX101=\"\",\"\",Summary_Products!AX101)","v":""},{"$f":"IF(Summary_Products!AY101=\"\",\"\",Summary_Products!AY101)","v":""},{"$f":"IF(Summary_Products!AZ101=\"\",\"\",Summary_Products!AZ101)","v":""},{"$f":"IF(Summary_Products!BA101=\"\",\"\",Summary_Products!BA101)","v":""}]
[null,null,93,{"$f":"IF(Summary_Products!D102=\"\",\"\",Summary_Products!D102)","v":""},{"$f":"IF(Summary_Products!E102=\"\",\"\",INDEX(Translations!$C:$C,MATCH(Summary_Products!E102,Translations!$B:$B,0)))","v":""},{"$f":"IF(Summary_Products!F102=\"\",\"\",Summary_Products!F102)","v":""},{"$f":"IF(F118=\"\",\"\",INDEX(Parameters_CNCodes!$H$4:$H$752,MATCH(F118,CNCodes_ListKey,0)))","v":""},{"$f":"IF(Summary_Products!H102=\"\",\"\",Summary_Products!H102)","v":""},{"$f":"IF(Summary_Products!I102=\"\",\"\",Summary_Products!I102)","v":""},{"$f":"IF(Summary_Products!J102=\"\",\"\",Summary_Products!J102)","v":""},{"$f":"IF(Summary_Products!K102=\"\",\"\",Summary_Products!K102)","v":""},{"$f":"IF(Summary_Products!L102=\"\",\"\",Summary_Products!L102)","v":""},{"$f":"IF(Summary_Products!M102=\"\",\"\",Summary_Products!M102)","v":""},{"$f":"IF(Summary_Products!N102=\"\",\"\",Summary_Products!N102)","v":""},{"$f":"IF(Summary_Products!O102=\"\",\"\",Summary_Products!O102)","v":""},{"$f":"IF(Summary_Products!P102=\"\",\"\",INDEX(Translations!$C:$C,MATCH(Summary_Products!P102,Translations!$B:$B,0)))","v":""},{"$f":"IF(Summary_Products!Q102=\"\",\"\",Summary_Products!Q102)","v":""},{"$f":"IF(Summary_Products!R102=\"\",\"\",Summary_Products!R102)","v":""},{"$f":"IF(Summary_Products!S102=\"\",\"\",Summary_Products!S102)","v":""},{"$f":"IF(Summary_Products!T102=\"\",\"\",Summary_Products!T102)","v":""},{"$f":"IF(Summary_Products!U102=\"\",\"\",Summary_Products!U102)","v":""},{"$f":"IF(Summary_Products!V102=\"\",\"\",Summary_Products!V102)","v":""},{"$f":"IF(Summary_Products!W102=\"\",\"\",Summary_Products!W102)","v":""},{"$f":"IF(Summary_Products!X102=\"\",\"\",Summary_Products!X102)","v":""},{"$f":"IF(Summary_Products!Y102=\"\",\"\",Summary_Products!Y102)","v":""},{"$f":"IF(Summary_Products!Z102=\"\",\"\",Summary_Products!Z102)","v":""},{"$f":"IF(Summary_Products!AA102=\"\",\"\",Summary_Products!AA102)","v":""},{"$f":"IF(Summary_Products!AB102=\"\",\"\",Summary_Products!AB102)","v":""},{"$f":"IF(Summary_Products!AC102=\"\",\"\",Summary_Products!AC102)","v":""},{"$f":"IF(Summary_Products!AD102=\"\",\"\",Summary_Products!AD102)","v":""},{"$f":"IF(Summary_Products!AE102=\"\",\"\",Summary_Products!AE102)","v":""},{"$f":"IF(Summary_Products!AF102=\"\",\"\",Summary_Products!AF102)","v":""},{"$f":"IF(Summary_Products!AG102=\"\",\"\",Summary_Products!AG102)","v":""},{"$f":"IF(Summary_Products!AH102=\"\",\"\",Summary_Products!AH102)","v":""},{"$f":"IF(Summary_Products!AI102=\"\",\"\",Summary_Products!AI102)","v":""},{"$f":"IF(Summary_Products!AJ102=\"\",\"\",Summary_Products!AJ102)","v":""},{"$f":"IF(Summary_Products!AK102=\"\",\"\",Summary_Products!AK102)","v":""},{"$f":"IF(Summary_Products!AL102=\"\",\"\",INDEX(Translations!$C:$C,MATCH(Summary_Products!AL102,Translations!$B:$B,0)))","v":""},{"$f":"IF(Summary_Products!AM102=\"\",\"\",Summary_Products!AM102)","v":""},{"$f":"IF(Summary_Products!AN102=\"\",\"\",Summary_Products!AN102)","v":""},{"$f":"IF(Summary_Products!AO102=\"\",\"\",Summary_Products!AO102)","v":""},{"$f":"IF(Summary_Products!AP102=\"\",\"\",Summary_Products!AP102)","v":""},{"$f":"IF(Summary_Products!AR102=\"\",\"\",Summary_Products!AR102)","v":""},{"$f":"IF(Summary_Products!AS102=\"\",\"\",Summary_Products!AS102)","v":""},{"$f":"IF(Summary_Products!AT102=\"\",\"\",INDEX(Translations!$C:$C,MATCH(Summary_Products!AT102,Translations!$B:$B,0)))","v":""},{"$f":"IF(Summary_Products!AU102=\"\",\"\",Summary_Products!AU102)","v":""},{"$f":"IF(Summary_Products!AV102=\"\",\"\",Summary_Products!AV102)","v":""},{"$f":"IF(Summary_Products!AW102=\"\",\"\",Summary_Products!AW102)","v":""},{"$f":"IF(Summary_Products!AX102=\"\",\"\",Summary_Products!AX102)","v":""},{"$f":"IF(Summary_Products!AY102=\"\",\"\",Summary_Products!AY102)","v":""},{"$f":"IF(Summary_Products!AZ102=\"\",\"\",Summary_Products!AZ102)","v":""},{"$f":"IF(Summary_Products!BA102=\"\",\"\",Summary_Products!BA102)","v":""}]
[null,null,94,{"$f":"IF(Summary_Products!D103=\"\",\"\",Summary_Products!D103)","v":""},{"$f":"IF(Summary_Products!E103=\"\",\"\",INDEX(Translations!$C:$C,MATCH(Summary_Products!E103,Translations!$B:$B,0)))","v":""},{"$f":"IF(Summary_Products!F103=\"\",\"\",Summary_Products!F103)","v":""},{"$f":"IF(F119=\"\",\"\",INDEX(Parameters_CNCodes!$H$4:$H$752,MATCH(F119,CNCodes_ListKey,0)))","v":""},{"$f":"IF(Summary_Products!H103=\"\",\"\",Summary_Products!H103)","v":""},{"$f":"IF(Summary_Products!I103=\"\",\"\",Summary_Products!I103)","v":""},{"$f":"IF(Summary_Products!J103=\"\",\"\",Summary_Products!J103)","v":""},{"$f":"IF(Summary_Products!K103=\"\",\"\",Summary_Products!K103)","v":""},{"$f":"IF(Summary_Products!L103=\"\",\"\",Summary_Products!L103)","v":""},{"$f":"IF(Summary_Products!M103=\"\",\"\",Summary_Products!M103)","v":""},{"$f":"IF(Summary_Products!N103=\"\",\"\",Summary_Products!N103)","v":""},{"$f":"IF(Summary_Products!O103=\"\",\"\",Summary_Products!O103)","v":""},{"$f":"IF(Summary_Products!P103=\"\",\"\",INDEX(Translations!$C:$C,MATCH(Summary_Products!P103,Translations!$B:$B,0)))","v":""},{"$f":"IF(Summary_Products!Q103=\"\",\"\",Summary_Products!Q103)","v":""},{"$f":"IF(Summary_Products!R103=\"\",\"\",Summary_Products!R103)","v":""},{"$f":"IF(Summary_Products!S103=\"\",\"\",Summary_Products!S103)","v":""},{"$f":"IF(Summary_Products!T103=\"\",\"\",Summary_Products!T103)","v":""},{"$f":"IF(Summary_Products!U103=\"\",\"\",Summary_Products!U103)","v":""},{"$f":"IF(Summary_Products!V103=\"\",\"\",Summary_Products!V103)","v":""},{"$f":"IF(Summary_Products!W103=\"\",\"\",Summary_Products!W103)","v":""},{"$f":"IF(Summary_Products!X103=\"\",\"\",Summary_Products!X103)","v":""},{"$f":"IF(Summary_Products!Y103=\"\",\"\",Summary_Products!Y103)","v":""},{"$f":"IF(Summary_Products!Z103=\"\",\"\",Summary_Products!Z103)","v":""},{"$f":"IF(Summary_Products!AA103=\"\",\"\",Summary_Products!AA103)","v":""},{"$f":"IF(Summary_Products!AB103=\"\",\"\",Summary_Products!AB103)","v":""},{"$f":"IF(Summary_Products!AC103=\"\",\"\",Summary_Products!AC103)","v":""},{"$f":"IF(Summary_Products!AD103=\"\",\"\",Summary_Products!AD103)","v":""},{"$f":"IF(Summary_Products!AE103=\"\",\"\",Summary_Products!AE103)","v":""},{"$f":"IF(Summary_Products!AF103=\"\",\"\",Summary_Products!AF103)","v":""},{"$f":"IF(Summary_Products!AG103=\"\",\"\",Summary_Products!AG103)","v":""},{"$f":"IF(Summary_Products!AH103=\"\",\"\",Summary_Products!AH103)","v":""},{"$f":"IF(Summary_Products!AI103=\"\",\"\",Summary_Products!AI103)","v":""},{"$f":"IF(Summary_Products!AJ103=\"\",\"\",Summary_Products!AJ103)","v":""},{"$f":"IF(Summary_Products!AK103=\"\",\"\",Summary_Products!AK103)","v":""},{"$f":"IF(Summary_Products!AL103=\"\",\"\",INDEX(Translations!$C:$C,MATCH(Summary_Products!AL103,Translations!$B:$B,0)))","v":""},{"$f":"IF(Summary_Products!AM103=\"\",\"\",Summary_Products!AM103)","v":""},{"$f":"IF(Summary_Products!AN103=\"\",\"\",Summary_Products!AN103)","v":""},{"$f":"IF(Summary_Products!AO103=\"\",\"\",Summary_Products!AO103)","v":""},{"$f":"IF(Summary_Products!AP103=\"\",\"\",Summary_Products!AP103)","v":""},{"$f":"IF(Summary_Products!AR103=\"\",\"\",Summary_Products!AR103)","v":""},{"$f":"IF(Summary_Products!AS103=\"\",\"\",Summary_Products!AS103)","v":""},{"$f":"IF(Summary_Products!AT103=\"\",\"\",INDEX(Translations!$C:$C,MATCH(Summary_Products!AT103,Translations!$B:$B,0)))","v":""},{"$f":"IF(Summary_Products!AU103=\"\",\"\",Summary_Products!AU103)","v":""},{"$f":"IF(Summary_Products!AV103=\"\",\"\",Summary_Products!AV103)","v":""},{"$f":"IF(Summary_Products!AW103=\"\",\"\",Summary_Products!AW103)","v":""},{"$f":"IF(Summary_Products!AX103=\"\",\"\",Summary_Products!AX103)","v":""},{"$f":"IF(Summary_Products!AY103=\"\",\"\",Summary_Products!AY103)","v":""},{"$f":"IF(Summary_Products!AZ103=\"\",\"\",Summary_Products!AZ103)","v":""},{"$f":"IF(Summary_Products!BA103=\"\",\"\",Summary_Products!BA103)","v":""}]
[null,null,95,{"$f":"IF(Summary_Products!D104=\"\",\"\",Summary_Products!D104)","v":""},{"$f":"IF(Summary_Products!E104=\"\",\"\",INDEX(Translations!$C:$C,MATCH(Summary_Products!E104,Translations!$B:$B,0)))","v":""},{"$f":"IF(Summary_Products!F104=\"\",\"\",Summary_Products!F104)","v":""},{"$f":"IF(F120=\"\",\"\",INDEX(Parameters_CNCodes!$H$4:$H$752,MATCH(F120,CNCodes_ListKey,0)))","v":""},{"$f":"IF(Summary_Products!H104=\"\",\"\",Summary_Products!H104)","v":""},{"$f":"IF(Summary_Products!I104=\"\",\"\",Summary_Products!I104)","v":""},{"$f":"IF(Summary_Products!J104=\"\",\"\",Summary_Products!J104)","v":""},{"$f":"IF(Summary_Products!K104=\"\",\"\",Summary_Products!K104)","v":""},{"$f":"IF(Summary_Products!L104=\"\",\"\",Summary_Products!L104)","v":""},{"$f":"IF(Summary_Products!M104=\"\",\"\",Summary_Products!M104)","v":""},{"$f":"IF(Summary_Products!N104=\"\",\"\",Summary_Products!N104)","v":""},{"$f":"IF(Summary_Products!O104=\"\",\"\",Summary_Products!O104)","v":""},{"$f":"IF(Summary_Products!P104=\"\",\"\",INDEX(Translations!$C:$C,MATCH(Summary_Products!P104,Translations!$B:$B,0)))","v":""},{"$f":"IF(Summary_Products!Q104=\"\",\"\",Summary_Products!Q104)","v":""},{"$f":"IF(Summary_Products!R104=\"\",\"\",Summary_Products!R104)","v":""},{"$f":"IF(Summary_Products!S104=\"\",\"\",Summary_Products!S104)","v":""},{"$f":"IF(Summary_Products!T104=\"\",\"\",Summary_Products!T104)","v":""},{"$f":"IF(Summary_Products!U104=\"\",\"\",Summary_Products!U104)","v":""},{"$f":"IF(Summary_Products!V104=\"\",\"\",Summary_Products!V104)","v":""},{"$f":"IF(Summary_Products!W104=\"\",\"\",Summary_Products!W104)","v":""},{"$f":"IF(Summary_Products!X104=\"\",\"\",Summary_Products!X104)","v":""},{"$f":"IF(Summary_Products!Y104=\"\",\"\",Summary_Products!Y104)","v":""},{"$f":"IF(Summary_Products!Z104=\"\",\"\",Summary_Products!Z104)","v":""},{"$f":"IF(Summary_Products!AA104=\"\",\"\",Summary_Products!AA104)","v":""},{"$f":"IF(Summary_Products!AB104=\"\",\"\",Summary_Products!AB104)","v":""},{"$f":"IF(Summary_Products!AC104=\"\",\"\",Summary_Products!AC104)","v":""},{"$f":"IF(Summary_Products!AD104=\"\",\"\",Summary_Products!AD104)","v":""},{"$f":"IF(Summary_Products!AE104=\"\",\"\",Summary_Products!AE104)","v":""},{"$f":"IF(Summary_Products!AF104=\"\",\"\",Summary_Products!AF104)","v":""},{"$f":"IF(Summary_Products!AG104=\"\",\"\",Summary_Products!AG104)","v":""},{"$f":"IF(Summary_Products!AH104=\"\",\"\",Summary_Products!AH104)","v":""},{"$f":"IF(Summary_Products!AI104=\"\",\"\",Summary_Products!AI104)","v":""},{"$f":"IF(Summary_Products!AJ104=\"\",\"\",Summary_Products!AJ104)","v":""},{"$f":"IF(Summary_Products!AK104=\"\",\"\",Summary_Products!AK104)","v":""},{"$f":"IF(Summary_Products!AL104=\"\",\"\",INDEX(Translations!$C:$C,MATCH(Summary_Products!AL104,Translations!$B:$B,0)))","v":""},{"$f":"IF(Summary_Products!AM104=\"\",\"\",Summary_Products!AM104)","v":""},{"$f":"IF(Summary_Products!AN104=\"\",\"\",Summary_Products!AN104)","v":""},{"$f":"IF(Summary_Products!AO104=\"\",\"\",Summary_Products!AO104)","v":""},{"$f":"IF(Summary_Products!AP104=\"\",\"\",Summary_Products!AP104)","v":""},{"$f":"IF(Summary_Products!AR104=\"\",\"\",Summary_Products!AR104)","v":""},{"$f":"IF(Summary_Products!AS104=\"\",\"\",Summary_Products!AS104)","v":""},{"$f":"IF(Summary_Products!AT104=\"\",\"\",INDEX(Translations!$C:$C,MATCH(Summary_Products!AT104,Translations!$B:$B,0)))","v":""},{"$f":"IF(Summary_Products!AU104=\"\",\"\",Summary_Products!AU104)","v":""},{"$f":"IF(Summary_Products!AV104=\"\",\"\",Summary_Products!AV104)","v":""},{"$f":"IF(Summary_Products!AW104=\"\",\"\",Summary_Products!AW104)","v":""},{"$f":"IF(Summary_Products!AX104=\"\",\"\",Summary_Products!AX104)","v":""},{"$f":"IF(Summary_Products!AY104=\"\",\"\",Summary_Products!AY104)","v":""},{"$f":"IF(Summary_Products!AZ104=\"\",\"\",Summary_Products!AZ104)","v":""},{"$f":"IF(Summary_Products!BA104=\"\",\"\",Summary_Products!BA104)","v":""}]
[null,null,96,{"$f":"IF(Summary_Products!D105=\"\",\"\",Summary_Products!D105)","v":""},{"$f":"IF(Summary_Products!E105=\"\",\"\",INDEX(Translations!$C:$C,MATCH(Summary_Products!E105,Translations!$B:$B,0)))","v":""},{"$f":"IF(Summary_Products!F105=\"\",\"\",Summary_Products!F105)","v":""},{"$f":"IF(F121=\"\",\"\",INDEX(Parameters_CNCodes!$H$4:$H$752,MATCH(F121,CNCodes_ListKey,0)))","v":""},{"$f":"IF(Summary_Products!H105=\"\",\"\",Summary_Products!H105)","v":""},{"$f":"IF(Summary_Products!I105=\"\",\"\",Summary_Products!I105)","v":""},{"$f":"IF(Summary_Products!J105=\"\",\"\",Summary_Products!J105)","v":""},{"$f":"IF(Summary_Products!K105=\"\",\"\",Summary_Products!K105)","v":""},{"$f":"IF(Summary_Products!L105=\"\",\"\",Summary_Products!L105)","v":""},{"$f":"IF(Summary_Products!M105=\"\",\"\",Summary_Products!M105)","v":""},{"$f":"IF(Summary_Products!N105=\"\",\"\",Summary_Products!N105)","v":""},{"$f":"IF(Summary_Products!O105=\"\",\"\",Summary_Products!O105)","v":""},{"$f":"IF(Summary_Products!P105=\"\",\"\",INDEX(Translations!$C:$C,MATCH(Summary_Products!P105,Translations!$B:$B,0)))","v":""},{"$f":"IF(Summary_Products!Q105=\"\",\"\",Summary_Products!Q105)","v":""},{"$f":"IF(Summary_Products!R105=\"\",\"\",Summary_Products!R105)","v":""},{"$f":"IF(Summary_Products!S105=\"\",\"\",Summary_Products!S105)","v":""},{"$f":"IF(Summary_Products!T105=\"\",\"\",Summary_Products!T105)","v":""},{"$f":"IF(Summary_Products!U105=\"\",\"\",Summary_Products!U105)","v":""},{"$f":"IF(Summary_Products!V105=\"\",\"\",Summary_Products!V105)","v":""},{"$f":"IF(Summary_Products!W105=\"\",\"\",Summary_Products!W105)","v":""},{"$f":"IF(Summary_Products!X105=\"\",\"\",Summary_Products!X105)","v":""},{"$f":"IF(Summary_Products!Y105=\"\",\"\",Summary_Products!Y105)","v":""},{"$f":"IF(Summary_Products!Z105=\"\",\"\",Summary_Products!Z105)","v":""},{"$f":"IF(Summary_Products!AA105=\"\",\"\",Summary_Products!AA105)","v":""},{"$f":"IF(Summary_Products!AB105=\"\",\"\",Summary_Products!AB105)","v":""},{"$f":"IF(Summary_Products!AC105=\"\",\"\",Summary_Products!AC105)","v":""},{"$f":"IF(Summary_Products!AD105=\"\",\"\",Summary_Products!AD105)","v":""},{"$f":"IF(Summary_Products!AE105=\"\",\"\",Summary_Products!AE105)","v":""},{"$f":"IF(Summary_Products!AF105=\"\",\"\",Summary_Products!AF105)","v":""},{"$f":"IF(Summary_Products!AG105=\"\",\"\",Summary_Products!AG105)","v":""},{"$f":"IF(Summary_Products!AH105=\"\",\"\",Summary_Products!AH105)","v":""},{"$f":"IF(Summary_Products!AI105=\"\",\"\",Summary_Products!AI105)","v":""},{"$f":"IF(Summary_Products!AJ105=\"\",\"\",Summary_Products!AJ105)","v":""},{"$f":"IF(Summary_Products!AK105=\"\",\"\",Summary_Products!AK105)","v":""},{"$f":"IF(Summary_Products!AL105=\"\",\"\",INDEX(Translations!$C:$C,MATCH(Summary_Products!AL105,Translations!$B:$B,0)))","v":""},{"$f":"IF(Summary_Products!AM105=\"\",\"\",Summary_Products!AM105)","v":""},{"$f":"IF(Summary_Products!AN105=\"\",\"\",Summary_Products!AN105)","v":""},{"$f":"IF(Summary_Products!AO105=\"\",\"\",Summary_Products!AO105)","v":""},{"$f":"IF(Summary_Products!AP105=\"\",\"\",Summary_Products!AP105)","v":""},{"$f":"IF(Summary_Products!AR105=\"\",\"\",Summary_Products!AR105)","v":""},{"$f":"IF(Summary_Products!AS105=\"\",\"\",Summary_Products!AS105)","v":""},{"$f":"IF(Summary_Products!AT105=\"\",\"\",INDEX(Translations!$C:$C,MATCH(Summary_Products!AT105,Translations!$B:$B,0)))","v":""},{"$f":"IF(Summary_Products!AU105=\"\",\"\",Summary_Products!AU105)","v":""},{"$f":"IF(Summary_Products!AV105=\"\",\"\",Summary_Products!AV105)","v":""},{"$f":"IF(Summary_Products!AW105=\"\",\"\",Summary_Products!AW105)","v":""},{"$f":"IF(Summary_Products!AX105=\"\",\"\",Summary_Products!AX105)","v":""},{"$f":"IF(Summary_Products!AY105=\"\",\"\",Summary_Products!AY105)","v":""},{"$f":"IF(Summary_Products!AZ105=\"\",\"\",Summary_Products!AZ105)","v":""},{"$f":"IF(Summary_Products!BA105=\"\",\"\",Summary_Products!BA105)","v":""}]
[null,null,97,{"$f":"IF(Summary_Products!D106=\"\",\"\",Summary_Products!D106)","v":""},{"$f":"IF(Summary_Products!E106=\"\",\"\",INDEX(Translations!$C:$C,MATCH(Summary_Products!E106,Translations!$B:$B,0)))","v":""},{"$f":"IF(Summary_Products!F106=\"\",\"\",Summary_Products!F106)","v":""},{"$f":"IF(F122=\"\",\"\",INDEX(Parameters_CNCodes!$H$4:$H$752,MATCH(F122,CNCodes_ListKey,0)))","v":""},{"$f":"IF(Summary_Products!H106=\"\",\"\",Summary_Products!H106)","v":""},{"$f":"IF(Summary_Products!I106=\"\",\"\",Summary_Products!I106)","v":""},{"$f":"IF(Summary_Products!J106=\"\",\"\",Summary_Products!J106)","v":""},{"$f":"IF(Summary_Products!K106=\"\",\"\",Summary_Products!K106)","v":""},{"$f":"IF(Summary_Products!L106=\"\",\"\",Summary_Products!L106)","v":""},{"$f":"IF(Summary_Products!M106=\"\",\"\",Summary_Products!M106)","v":""},{"$f":"IF(Summary_Products!N106=\"\",\"\",Summary_Products!N106)","v":""},{"$f":"IF(Summary_Products!O106=\"\",\"\",Summary_Products!O106)","v":""},{"$f":"IF(Summary_Products!P106=\"\",\"\",INDEX(Translations!$C:$C,MATCH(Summary_Products!P106,Translations!$B:$B,0)))","v":""},{"$f":"IF(Summary_Products!Q106=\"\",\"\",Summary_Products!Q106)","v":""},{"$f":"IF(Summary_Products!R106=\"\",\"\",Summary_Products!R106)","v":""},{"$f":"IF(Summary_Products!S106=\"\",\"\",Summary_Products!S106)","v":""},{"$f":"IF(Summary_Products!T106=\"\",\"\",Summary_Products!T106)","v":""},{"$f":"IF(Summary_Products!U106=\"\",\"\",Summary_Products!U106)","v":""},{"$f":"IF(Summary_Products!V106=\"\",\"\",Summary_Products!V106)","v":""},{"$f":"IF(Summary_Products!W106=\"\",\"\",Summary_Products!W106)","v":""},{"$f":"IF(Summary_Products!X106=\"\",\"\",Summary_Products!X106)","v":""},{"$f":"IF(Summary_Products!Y106=\"\",\"\",Summary_Products!Y106)","v":""},{"$f":"IF(Summary_Products!Z106=\"\",\"\",Summary_Products!Z106)","v":""},{"$f":"IF(Summary_Products!AA106=\"\",\"\",Summary_Products!AA106)","v":""},{"$f":"IF(Summary_Products!AB106=\"\",\"\",Summary_Products!AB106)","v":""},{"$f":"IF(Summary_Products!AC106=\"\",\"\",Summary_Products!AC106)","v":""},{"$f":"IF(Summary_Products!AD106=\"\",\"\",Summary_Products!AD106)","v":""},{"$f":"IF(Summary_Products!AE106=\"\",\"\",Summary_Products!AE106)","v":""},{"$f":"IF(Summary_Products!AF106=\"\",\"\",Summary_Products!AF106)","v":""},{"$f":"IF(Summary_Products!AG106=\"\",\"\",Summary_Products!AG106)","v":""},{"$f":"IF(Summary_Products!AH106=\"\",\"\",Summary_Products!AH106)","v":""},{"$f":"IF(Summary_Products!AI106=\"\",\"\",Summary_Products!AI106)","v":""},{"$f":"IF(Summary_Products!AJ106=\"\",\"\",Summary_Products!AJ106)","v":""},{"$f":"IF(Summary_Products!AK106=\"\",\"\",Summary_Products!AK106)","v":""},{"$f":"IF(Summary_Products!AL106=\"\",\"\",INDEX(Translations!$C:$C,MATCH(Summary_Products!AL106,Translations!$B:$B,0)))","v":""},{"$f":"IF(Summary_Products!AM106=\"\",\"\",Summary_Products!AM106)","v":""},{"$f":"IF(Summary_Products!AN106=\"\",\"\",Summary_Products!AN106)","v":""},{"$f":"IF(Summary_Products!AO106=\"\",\"\",Summary_Products!AO106)","v":""},{"$f":"IF(Summary_Products!AP106=\"\",\"\",Summary_Products!AP106)","v":""},{"$f":"IF(Summary_Products!AR106=\"\",\"\",Summary_Products!AR106)","v":""},{"$f":"IF(Summary_Products!AS106=\"\",\"\",Summary_Products!AS106)","v":""},{"$f":"IF(Summary_Products!AT106=\"\",\"\",INDEX(Translations!$C:$C,MATCH(Summary_Products!AT106,Translations!$B:$B,0)))","v":""},{"$f":"IF(Summary_Products!AU106=\"\",\"\",Summary_Products!AU106)","v":""},{"$f":"IF(Summary_Products!AV106=\"\",\"\",Summary_Products!AV106)","v":""},{"$f":"IF(Summary_Products!AW106=\"\",\"\",Summary_Products!AW106)","v":""},{"$f":"IF(Summary_Products!AX106=\"\",\"\",Summary_Products!AX106)","v":""},{"$f":"IF(Summary_Products!AY106=\"\",\"\",Summary_Products!AY106)","v":""},{"$f":"IF(Summary_Products!AZ106=\"\",\"\",Summary_Products!AZ106)","v":""},{"$f":"IF(Summary_Products!BA106=\"\",\"\",Summary_Products!BA106)","v":""}]
[null,null,98,{"$f":"IF(Summary_Products!D107=\"\",\"\",Summary_Products!D107)","v":""},{"$f":"IF(Summary_Products!E107=\"\",\"\",INDEX(Translations!$C:$C,MATCH(Summary_Products!E107,Translations!$B:$B,0)))","v":""},{"$f":"IF(Summary_Products!F107=\"\",\"\",Summary_Products!F107)","v":""},{"$f":"IF(F123=\"\",\"\",INDEX(Parameters_CNCodes!$H$4:$H$752,MATCH(F123,CNCodes_ListKey,0)))","v":""},{"$f":"IF(Summary_Products!H107=\"\",\"\",Summary_Products!H107)","v":""},{"$f":"IF(Summary_Products!I107=\"\",\"\",Summary_Products!I107)","v":""},{"$f":"IF(Summary_Products!J107=\"\",\"\",Summary_Products!J107)","v":""},{"$f":"IF(Summary_Products!K107=\"\",\"\",Summary_Products!K107)","v":""},{"$f":"IF(Summary_Products!L107=\"\",\"\",Summary_Products!L107)","v":""},{"$f":"IF(Summary_Products!M107=\"\",\"\",Summary_Products!M107)","v":""},{"$f":"IF(Summary_Products!N107=\"\",\"\",Summary_Products!N107)","v":""},{"$f":"IF(Summary_Products!O107=\"\",\"\",Summary_Products!O107)","v":""},{"$f":"IF(Summary_Products!P107=\"\",\"\",INDEX(Translations!$C:$C,MATCH(Summary_Products!P107,Translations!$B:$B,0)))","v":""},{"$f":"IF(Summary_Products!Q107=\"\",\"\",Summary_Products!Q107)","v":""},{"$f":"IF(Summary_Products!R107=\"\",\"\",Summary_Products!R107)","v":""},{"$f":"IF(Summary_Products!S107=\"\",\"\",Summary_Products!S107)","v":""},{"$f":"IF(Summary_Products!T107=\"\",\"\",Summary_Products!T107)","v":""},{"$f":"IF(Summary_Products!U107=\"\",\"\",Summary_Products!U107)","v":""},{"$f":"IF(Summary_Products!V107=\"\",\"\",Summary_Products!V107)","v":""},{"$f":"IF(Summary_Products!W107=\"\",\"\",Summary_Products!W107)","v":""},{"$f":"IF(Summary_Products!X107=\"\",\"\",Summary_Products!X107)","v":""},{"$f":"IF(Summary_Products!Y107=\"\",\"\",Summary_Products!Y107)","v":""},{"$f":"IF(Summary_Products!Z107=\"\",\"\",Summary_Products!Z107)","v":""},{"$f":"IF(Summary_Products!AA107=\"\",\"\",Summary_Products!AA107)","v":""},{"$f":"IF(Summary_Products!AB107=\"\",\"\",Summary_Products!AB107)","v":""},{"$f":"IF(Summary_Products!AC107=\"\",\"\",Summary_Products!AC107)","v":""},{"$f":"IF(Summary_Products!AD107=\"\",\"\",Summary_Products!AD107)","v":""},{"$f":"IF(Summary_Products!AE107=\"\",\"\",Summary_Products!AE107)","v":""},{"$f":"IF(Summary_Products!AF107=\"\",\"\",Summary_Products!AF107)","v":""},{"$f":"IF(Summary_Products!AG107=\"\",\"\",Summary_Products!AG107)","v":""},{"$f":"IF(Summary_Products!AH107=\"\",\"\",Summary_Products!AH107)","v":""},{"$f":"IF(Summary_Products!AI107=\"\",\"\",Summary_Products!AI107)","v":""},{"$f":"IF(Summary_Products!AJ107=\"\",\"\",Summary_Products!AJ107)","v":""},{"$f":"IF(Summary_Products!AK107=\"\",\"\",Summary_Products!AK107)","v":""},{"$f":"IF(Summary_Products!AL107=\"\",\"\",INDEX(Translations!$C:$C,MATCH(Summary_Products!AL107,Translations!$B:$B,0)))","v":""},{"$f":"IF(Summary_Products!AM107=\"\",\"\",Summary_Products!AM107)","v":""},{"$f":"IF(Summary_Products!AN107=\"\",\"\",Summary_Products!AN107)","v":""},{"$f":"IF(Summary_Products!AO107=\"\",\"\",Summary_Products!AO107)","v":""},{"$f":"IF(Summary_Products!AP107=\"\",\"\",Summary_Products!AP107)","v":""},{"$f":"IF(Summary_Products!AR107=\"\",\"\",Summary_Products!AR107)","v":""},{"$f":"IF(Summary_Products!AS107=\"\",\"\",Summary_Products!AS107)","v":""},{"$f":"IF(Summary_Products!AT107=\"\",\"\",INDEX(Translations!$C:$C,MATCH(Summary_Products!AT107,Translations!$B:$B,0)))","v":""},{"$f":"IF(Summary_Products!AU107=\"\",\"\",Summary_Products!AU107)","v":""},{"$f":"IF(Summary_Products!AV107=\"\",\"\",Summary_Products!AV107)","v":""},{"$f":"IF(Summary_Products!AW107=\"\",\"\",Summary_Products!AW107)","v":""},{"$f":"IF(Summary_Products!AX107=\"\",\"\",Summary_Products!AX107)","v":""},{"$f":"IF(Summary_Products!AY107=\"\",\"\",Summary_Products!AY107)","v":""},{"$f":"IF(Summary_Products!AZ107=\"\",\"\",Summary_Products!AZ107)","v":""},{"$f":"IF(Summary_Products!BA107=\"\",\"\",Summary_Products!BA107)","v":""}]
[null,null,99,{"$f":"IF(Summary_Products!D108=\"\",\"\",Summary_Products!D108)","v":""},{"$f":"IF(Summary_Products!E108=\"\",\"\",INDEX(Translations!$C:$C,MATCH(Summary_Products!E108,Translations!$B:$B,0)))","v":""},{"$f":"IF(Summary_Products!F108=\"\",\"\",Summary_Products!F108)","v":""},{"$f":"IF(F124=\"\",\"\",INDEX(Parameters_CNCodes!$H$4:$H$752,MATCH(F124,CNCodes_ListKey,0)))","v":""},{"$f":"IF(Summary_Products!H108=\"\",\"\",Summary_Products!H108)","v":""},{"$f":"IF(Summary_Products!I108=\"\",\"\",Summary_Products!I108)","v":""},{"$f":"IF(Summary_Products!J108=\"\",\"\",Summary_Products!J108)","v":""},{"$f":"IF(Summary_Products!K108=\"\",\"\",Summary_Products!K108)","v":""},{"$f":"IF(Summary_Products!L108=\"\",\"\",Summary_Products!L108)","v":""},{"$f":"IF(Summary_Products!M108=\"\",\"\",Summary_Products!M108)","v":""},{"$f":"IF(Summary_Products!N108=\"\",\"\",Summary_Products!N108)","v":""},{"$f":"IF(Summary_Products!O108=\"\",\"\",Summary_Products!O108)","v":""},{"$f":"IF(Summary_Products!P108=\"\",\"\",INDEX(Translations!$C:$C,MATCH(Summary_Products!P108,Translations!$B:$B,0)))","v":""},{"$f":"IF(Summary_Products!Q108=\"\",\"\",Summary_Products!Q108)","v":""},{"$f":"IF(Summary_Products!R108=\"\",\"\",Summary_Products!R108)","v":""},{"$f":"IF(Summary_Products!S108=\"\",\"\",Summary_Products!S108)","v":""},{"$f":"IF(Summary_Products!T108=\"\",\"\",Summary_Products!T108)","v":""},{"$f":"IF(Summary_Products!U108=\"\",\"\",Summary_Products!U108)","v":""},{"$f":"IF(Summary_Products!V108=\"\",\"\",Summary_Products!V108)","v":""},{"$f":"IF(Summary_Products!W108=\"\",\"\",Summary_Products!W108)","v":""},{"$f":"IF(Summary_Products!X108=\"\",\"\",Summary_Products!X108)","v":""},{"$f":"IF(Summary_Products!Y108=\"\",\"\",Summary_Products!Y108)","v":""},{"$f":"IF(Summary_Products!Z108=\"\",\"\",Summary_Products!Z108)","v":""},{"$f":"IF(Summary_Products!AA108=\"\",\"\",Summary_Products!AA108)","v":""},{"$f":"IF(Summary_Products!AB108=\"\",\"\",Summary_Products!AB108)","v":""},{"$f":"IF(Summary_Products!AC108=\"\",\"\",Summary_Products!AC108)","v":""},{"$f":"IF(Summary_Products!AD108=\"\",\"\",Summary_Products!AD108)","v":""},{"$f":"IF(Summary_Products!AE108=\"\",\"\",Summary_Products!AE108)","v":""},{"$f":"IF(Summary_Products!AF108=\"\",\"\",Summary_Products!AF108)","v":""},{"$f":"IF(Summary_Products!AG108=\"\",\"\",Summary_Products!AG108)","v":""},{"$f":"IF(Summary_Products!AH108=\"\",\"\",Summary_Products!AH108)","v":""},{"$f":"IF(Summary_Products!AI108=\"\",\"\",Summary_Products!AI108)","v":""},{"$f":"IF(Summary_Products!AJ108=\"\",\"\",Summary_Products!AJ108)","v":""},{"$f":"IF(Summary_Products!AK108=\"\",\"\",Summary_Products!AK108)","v":""},{"$f":"IF(Summary_Products!AL108=\"\",\"\",INDEX(Translations!$C:$C,MATCH(Summary_Products!AL108,Translations!$B:$B,0)))","v":""},{"$f":"IF(Summary_Products!AM108=\"\",\"\",Summary_Products!AM108)","v":""},{"$f":"IF(Summary_Products!AN108=\"\",\"\",Summary_Products!AN108)","v":""},{"$f":"IF(Summary_Products!AO108=\"\",\"\",Summary_Products!AO108)","v":""},{"$f":"IF(Summary_Products!AP108=\"\",\"\",Summary_Products!AP108)","v":""},{"$f":"IF(Summary_Products!AR108=\"\",\"\",Summary_Products!AR108)","v":""},{"$f":"IF(Summary_Products!AS108=\"\",\"\",Summary_Products!AS108)","v":""},{"$f":"IF(Summary_Products!AT108=\"\",\"\",INDEX(Translations!$C:$C,MATCH(Summary_Products!AT108,Translations!$B:$B,0)))","v":""},{"$f":"IF(Summary_Products!AU108=\"\",\"\",Summary_Products!AU108)","v":""},{"$f":"IF(Summary_Products!AV108=\"\",\"\",Summary_Products!AV108)","v":""},{"$f":"IF(Summary_Products!AW108=\"\",\"\",Summary_Products!AW108)","v":""},{"$f":"IF(Summary_Products!AX108=\"\",\"\",Summary_Products!AX108)","v":""},{"$f":"IF(Summary_Products!AY108=\"\",\"\",Summary_Products!AY108)","v":""},{"$f":"IF(Summary_Products!AZ108=\"\",\"\",Summary_Products!AZ108)","v":""},{"$f":"IF(Summary_Products!BA108=\"\",\"\",Summary_Products!BA108)","v":""}]
[null,null,100,{"$f":"IF(Summary_Products!D109=\"\",\"\",Summary_Products!D109)","v":""},{"$f":"IF(Summary_Products!E109=\"\",\"\",INDEX(Translations!$C:$C,MATCH(Summary_Products!E109,Translations!$B:$B,0)))","v":""},{"$f":"IF(Summary_Products!F109=\"\",\"\",Summary_Products!F109)","v":""},{"$f":"IF(F125=\"\",\"\",INDEX(Parameters_CNCodes!$H$4:$H$752,MATCH(F125,CNCodes_ListKey,0)))","v":""},{"$f":"IF(Summary_Products!H109=\"\",\"\",Summary_Products!H109)","v":""},{"$f":"IF(Summary_Products!I109=\"\",\"\",Summary_Products!I109)","v":""},{"$f":"IF(Summary_Products!J109=\"\",\"\",Summary_Products!J109)","v":""},{"$f":"IF(Summary_Products!K109=\"\",\"\",Summary_Products!K109)","v":""},{"$f":"IF(Summary_Products!L109=\"\",\"\",Summary_Products!L109)","v":""},{"$f":"IF(Summary_Products!M109=\"\",\"\",Summary_Products!M109)","v":""},{"$f":"IF(Summary_Products!N109=\"\",\"\",Summary_Products!N109)","v":""},{"$f":"IF(Summary_Products!O109=\"\",\"\",Summary_Products!O109)","v":""},{"$f":"IF(Summary_Products!P109=\"\",\"\",INDEX(Translations!$C:$C,MATCH(Summary_Products!P109,Translations!$B:$B,0)))","v":""},{"$f":"IF(Summary_Products!Q109=\"\",\"\",Summary_Products!Q109)","v":""},{"$f":"IF(Summary_Products!R109=\"\",\"\",Summary_Products!R109)","v":""},{"$f":"IF(Summary_Products!S109=\"\",\"\",Summary_Products!S109)","v":""},{"$f":"IF(Summary_Products!T109=\"\",\"\",Summary_Products!T109)","v":""},{"$f":"IF(Summary_Products!U109=\"\",\"\",Summary_Products!U109)","v":""},{"$f":"IF(Summary_Products!V109=\"\",\"\",Summary_Products!V109)","v":""},{"$f":"IF(Summary_Products!W109=\"\",\"\",Summary_Products!W109)","v":""},{"$f":"IF(Summary_Products!X109=\"\",\"\",Summary_Products!X109)","v":""},{"$f":"IF(Summary_Products!Y109=\"\",\"\",Summary_Products!Y109)","v":""},{"$f":"IF(Summary_Products!Z109=\"\",\"\",Summary_Products!Z109)","v":""},{"$f":"IF(Summary_Products!AA109=\"\",\"\",Summary_Products!AA109)","v":""},{"$f":"IF(Summary_Products!AB109=\"\",\"\",Summary_Products!AB109)","v":""},{"$f":"IF(Summary_Products!AC109=\"\",\"\",Summary_Products!AC109)","v":""},{"$f":"IF(Summary_Products!AD109=\"\",\"\",Summary_Products!AD109)","v":""},{"$f":"IF(Summary_Products!AE109=\"\",\"\",Summary_Products!AE109)","v":""},{"$f":"IF(Summary_Products!AF109=\"\",\"\",Summary_Products!AF109)","v":""},{"$f":"IF(Summary_Products!AG109=\"\",\"\",Summary_Products!AG109)","v":""},{"$f":"IF(Summary_Products!AH109=\"\",\"\",Summary_Products!AH109)","v":""},{"$f":"IF(Summary_Products!AI109=\"\",\"\",Summary_Products!AI109)","v":""},{"$f":"IF(Summary_Products!AJ109=\"\",\"\",Summary_Products!AJ109)","v":""},{"$f":"IF(Summary_Products!AK109=\"\",\"\",Summary_Products!AK109)","v":""},{"$f":"IF(Summary_Products!AL109=\"\",\"\",INDEX(Translations!$C:$C,MATCH(Summary_Products!AL109,Translations!$B:$B,0)))","v":""},{"$f":"IF(Summary_Products!AM109=\"\",\"\",Summary_Products!AM109)","v":""},{"$f":"IF(Summary_Products!AN109=\"\",\"\",Summary_Products!AN109)","v":""},{"$f":"IF(Summary_Products!AO109=\"\",\"\",Summary_Products!AO109)","v":""},{"$f":"IF(Summary_Products!AP109=\"\",\"\",Summary_Products!AP109)","v":""},{"$f":"IF(Summary_Products!AR109=\"\",\"\",Summary_Products!AR109)","v":""},{"$f":"IF(Summary_Products!AS109=\"\",\"\",Summary_Products!AS109)","v":""},{"$f":"IF(Summary_Products!AT109=\"\",\"\",INDEX(Translations!$C:$C,MATCH(Summary_Products!AT109,Translations!$B:$B,0)))","v":""},{"$f":"IF(Summary_Products!AU109=\"\",\"\",Summary_Products!AU109)","v":""},{"$f":"IF(Summary_Products!AV109=\"\",\"\",Summary_Products!AV109)","v":""},{"$f":"IF(Summary_Products!AW109=\"\",\"\",Summary_Products!AW109)","v":""},{"$f":"IF(Summary_Products!AX109=\"\",\"\",Summary_Products!AX109)","v":""},{"$f":"IF(Summary_Products!AY109=\"\",\"\",Summary_Products!AY109)","v":""},{"$f":"IF(Summary_Products!AZ109=\"\",\"\",Summary_Products!AZ109)","v":""},{"$f":"IF(Summary_Products!BA109=\"\",\"\",Summary_Products!BA109)","v":""}]
[]
["ausblenden",{"$nulls":49},"PRINT"]
["ausblenden"]

{"sheet":"InputOutput","index":14,"n_rows":100,"n_cols":74,"rows_kept":100,"hidden":true,"merged":[[2,3,2,33]]}
["ausblenden",{"$nulls":3},1,2,3,4,5,6,7,8,9,10,11,12,13,14,15,16,17,18,19,20,21,22,23,24,25,26,27,28,29,30,{"$nulls":8},"ausblenden","ausblenden","ausblenden","ausblenden","ausblenden","ausblenden","ausblenden","ausblenden","ausblenden","ausblenden","ausblenden","ausblenden","ausblenden","ausblenden","ausblenden","ausblenden","ausblenden","ausblenden","ausblenden","ausblenden","ausblenden","ausblenden","ausblenden","ausblenden","ausblenden","ausblenden","ausblenden","ausblenden","ausblenden","ausblenden","ausblenden","ausblenden"]
[]
[{"$nulls":3},{"$f":"Translations!$B$627","v":"This is a hidden sheet for the calculation of the embedded emissions along the whole supply chain, including any relevant precursors produced within the same installation, or purchased from other installations."}]
[]
[{"$nulls":4},{"$f":"Translations!$B$628","v":"Share of precursor consumed, per unit of good produced"},{"$nulls":9},{"$f":"Translations!$B$629","v":"Share of purchased precursor consumed, per unit of good produced"},{"$nulls":28},{"$f":"E1","v":1},2,3,4,5,6,7,8,9,10,11,12,{"$f":"Q1","v":13},14,15,16,17,18,19,20,21,22,23,24,25,26,27,28,29,30]
[{"$nulls":3},{"$f":"Translations!$B$193","v":"Process"},{"$f":"INDEX($D$7:$D$36,E1)","v":""},"","","","","","","","","","","","","","","","","","","","","","","","","","","","",""]
[null,"Good produced",1,{"$f":"IF(INDEX(CNTR_List_ExistProdProcNames,C7)=CONST_NA,\"\",INDEX(CNTR_List_ExistProdProcNames,C7))","v":""},{"$f":"IFERROR(SUMIF(D_Processes!$R:$R,CONST_PrecursorToGoodInput&E$6&\"_\"&$D7,D_Processes!$T:$T)/SUMIF(D_Processes!$R:$R,CONST_CNTR_TotProd&$D7,D_Processes!$T:$T),0)","v":{"v":0,"d":"0.000"}},{"$f":"IFERROR(SUMIF(D_Processes!$R:$R,CONST_PrecursorToGoodInput&F$6&\"_\"&$D7,D_Processes!$T:$T)/SUMIF(D_Processes!$R:$R,CONST_CNTR_TotProd&$D7,D_Processes!$T:$T),0)","v":{"v":0,"d":"0.000"}},{"$f":"IFERROR(SUMIF(D_Processes!$R:$R,CONST_PrecursorToGoodInput&G$6&\"_\"&$D7,D_Processes!$T:$T)/SUMIF(D_Processes!$R:$R,CONST_CNTR_TotProd&$D7,D_Processes!$T:$T),0)","v":{"v":0,"d":"0.000"}},{"$f":"IFERROR(SUMIF(D_Processes!$R:$R,CONST_PrecursorToGoodInput&H$6&\"_\"&$D7,D_Processes!$T:$T)/SUMIF(D_Processes!$R:$R,CONST_CNTR_TotProd&$D7,D_Processes!$T:$T),0)","v":{"v":0,"d":"0.000"}},{"$f":"IFERROR(SUMIF(D_Processes!$R:$R,CONST_PrecursorToGoodInput&I$6&\"_\"&$D7,D_Processes!$T:$T)/SUMIF(D_Processes!$R:$R,CONST_CNTR_TotProd&$D7,D_Processes!$T:$T),0)","v":{"v":0,"d":"0.000"}},{"$f":"IFERROR(SUMIF(D_Processes!$R:$R,CONST_PrecursorToGoodInput&J$6&\"_\"&$D7,D_Processes!$T:$T)/SUMIF(D_Processes!$R:$R,CONST_CNTR_TotProd&$D7,D_Processes!$T:$T),0)","v":{"v":0,"d":"0.000"}},{"$f":"IFERROR(SUMIF(D_Processes!$R:$R,CONST_PrecursorToGoodInput&K$6&\"_\"&$D7,D_Processes!$T:$T)/SUMIF(D_Processes!$R:$R,CONST_CNTR_TotProd&$D7,D_Processes!$T:$T),0)","v":{"v":0,"d":"0.000"}},{"$f":"IFERROR(SUMIF(D_Processes!$R:$R,CONST_PrecursorToGoodInput&L$6&\"_\"&$D7,D_Processes!$T:$T)/SUMIF(D_Processes!$R:$R,CONST_CNTR_TotProd&$D7,D_Processes!$T:$T),0)","v":{"v":0,"d":"0.000"}},{"$f":"IFERROR(SUMIF(D_Processes!$R:$R,CONST_PrecursorToGoodInput&M$6&\"_\"&$D7,D_Processes!$T:$T)/SUMIF(D_Processes!$R:$R,CONST_CNTR_TotProd&$D7,D_Processes!$T:$T),0)","v":{"v":0,"d":"0.000"}},{"$f":"IFERROR(SUMIF(D_Processes!$R:$R,CONST_PrecursorToGoodInput&N$6&\"_\"&$D7,D_Processes!$T:$T)/SUMIF(D_Processes!$R:$R,CONST_CNTR_TotProd&$D7,D_Processes!$T:$T),0)","v":{"v":0,"d":"0.000"}},{"$f":"IFERROR(SUMIF(E_PurchPrec!$R:$R,CONST_PrecursorToGoodInput&O$6&\"_\"&$D7,E_PurchPrec!$T:$T)/SUMIF(D_Processes!$R:$R,CONST_CNTR_TotProd&$D7,D_Processes!$T:$T),0)","v":{"v":0,"d":"0.000"}},{"$f":"IFERROR(SUMIF(E_PurchPrec!$R:$R,CONST_PrecursorToGoodInput&P$6&\"_\"&$D7,E_PurchPrec!$T:$T)/SUMIF(D_Processes!$R:$R,CONST_CNTR_TotProd&$D7,D_Processes!$T:$T),0)","v":{"v":0,"d":"0.000"}},{"$f":"IFERROR(SUMIF(E_PurchPrec!$R:$R,CONST_PrecursorToGoodInput&Q$6&\"_\"&$D7,E_PurchPrec!$T:$T)/SUMIF(D_Processes!$R:$R,CONST_CNTR_TotProd&$D7,D_Processes!$T:$T),0)","v":{"v":0,"d":"0.000"}},{"$f":"IFERROR(SUMIF(E_PurchPrec!$R:$R,CONST_PrecursorToGoodInput&R$6&\"_\"&$D7,E_PurchPrec!$T:$T)/SUMIF(D_Processes!$R:$R,CONST_CNTR_TotProd&$D7,D_Processes!$T:$T),0)","v":{"v":0,"d":"0.000"}},{"$f":"IFERROR(SUMIF(E_PurchPrec!$R:$R,CONST_PrecursorToGoodInput&S$6&\"_\"&$D7,E_PurchPrec!$T:$T)/SUMIF(D_Processes!$R:$R,CONST_CNTR_TotProd&$D7,D_Processes!$T:$T),0)","v":{"v":0,"d":"0.000"}},{"$f":"IFERROR(SUMIF(E_PurchPrec!$R:$R,CONST_PrecursorToGoodInput&T$6&\"_\"&$D7,E_PurchPrec!$T:$T)/SUMIF(D_Processes!$R:$R,CONST_CNTR_TotProd&$D7,D_Processes!$T:$T),0)","v":{"v":0,"d":"0.000"}},{"$f":"IFERROR(SUMIF(E_PurchPrec!$R:$R,CONST_PrecursorToGoodInput&U$6&\"_\"&$D7,E_PurchPrec!$T:$T)/SUMIF(D_Processes!$R:$R,CONST_CNTR_TotProd&$D7,D_Processes!$T:$T),0)","v":{"v":0,"d":"0.000"}},{"$f":"IFERROR(SUMIF(E_PurchPrec!$R:$R,CONST_PrecursorToGoodInput&V$6&\"_\"&$D7,E_PurchPrec!$T:$T)/SUMIF(D_Processes!$R:$R,CONST_CNTR_TotProd&$D7,D_Processes!$T:$T),0)","v":{"v":0,"d":"0.000"}},{"$f":"IFERROR(SUMIF(E_PurchPrec!$R:$R,CONST_PrecursorToGoodInput&W$6&\"_\"&$D7,E_PurchPrec!$T:$T)/SUMIF(D_Processes!$R:$R,CONST_CNTR_TotProd&$D7,D_Processes!$T:$T),0)","v":{"v":0,"d":"0.000"}},{"$f":"IFERROR(SUMIF(E_PurchPrec!$R:$R,CONST_PrecursorToGoodInput&X$6&\"_\"&$D7,E_PurchPrec!$T:$T)/SUMIF(D_Processes!$R:$R,CONST_CNTR_TotProd&$D7,D_Processes!$T:$T),0)","v":{"v":0,"d":"0.000"}},{"$f":"IFERROR(SUMIF(E_PurchPrec!$R:$R,CONST_PrecursorToGoodInput&Y$6&\"_\"&$D7,E_PurchPrec!$T:$T)/SUMIF(D_Processes!$R:$R,CONST_CNTR_TotProd&$D7,D_Processes!$T:$T),0)","v":{"v":0,"d":"0.000"}},{"$f":"IFERROR(SUMIF(E_PurchPrec!$R:$R,CONST_PrecursorToGoodInput&Z$6&\"_\"&$D7,E_PurchPrec!$T:$T)/SUMIF(D_Processes!$R:$R,CONST_CNTR_TotProd&$D7,D_Processes!$T:$T),0)","v":{"v":0,"d":"0.000"}},{"$f":"IFERROR(SUMIF(E_PurchPrec!$R:$R,CONST_PrecursorToGoodInput&AA$6&\"_\"&$D7,E_PurchPrec!$T:$T)/SUMIF(D_Processes!$R:$R,CONST_CNTR_TotProd&$D7,D_Processes!$T:$T),0)","v":{"v":0,"d":"0.000"}},{"$f":"IFERROR(SUMIF(E_PurchPrec!$R:$R,CONST_PrecursorToGoodInput&AB$6&\"_\"&$D7,E_PurchPrec!$T:$T)/SUMIF(D_Processes!$R:$R,CONST_CNTR_TotProd&$D7,D_Processes!$T:$T),0)","v":{"v":0,"d":"0.000"}},{"$f":"IFERROR(SUMIF(E_PurchPrec!$R:$R,CONST_PrecursorToGoodInput&AC$6&\"_\"&$D7,E_PurchPrec!$T:$T)/SUMIF(D_Processes!$R:$R,CONST_CNTR_TotProd&$D7,D_Processes!$T:$T),0)","v":{"v":0,"d":"0.000"}},{"$f":"IFERROR(SUMIF(E_PurchPrec!$R:$R,CONST_PrecursorToGoodInput&AD$6&\"_\"&$D7,E_PurchPrec!$T:$T)/SUMIF(D_Processes!$R:$R,CONST_CNTR_TotProd&$D7,D_Processes!$T:$T),0)","v":{"v":0,"d":"0.000"}},{"$f":"IFERROR(SUMIF(E_PurchPrec!$R:$R,CONST_PrecursorToGoodInput&AE$6&\"_\"&$D7,E_PurchPrec!$T:$T)/SUMIF(D_Processes!$R:$R,CONST_CNTR_TotProd&$D7,D_Processes!$T:$T),0)","v":{"v":0,"d":"0.000"}},{"$f":"IFERROR(SUMIF(E_PurchPrec!$R:$R,CONST_PrecursorToGoodInput&AF$6&\"_\"&$D7,E_PurchPrec!$T:$T)/SUMIF(D_Processes!$R:$R,CONST_CNTR_TotProd&$D7,D_Processes!$T:$T),0)","v":{"v":0,"d":"0.000"}},{"$f":"IFERROR(SUMIF(E_PurchPrec!$R:$R,CONST_PrecursorToGoodInput&AG$6&\"_\"&$D7,E_PurchPrec!$T:$T)/SUMIF(D_Processes!$R:$R,CONST_CNTR_TotProd&$D7,D_Processes!$T:$T),0)","v":{"v":0,"d":"0.000"}},{"$f":"IFERROR(SUMIF(E_PurchPrec!$R:$R,CONST_PrecursorToGoodInput&AH$6&\"_\"&$D7,E_PurchPrec!$T:$T)/SUMIF(D_Processes!$R:$R,CONST_CNTR_TotProd&$D7,D_Processes!$T:$T),0)","v":{"v":0,"d":"0.000"}}]
[null,null,2,"",{"$f":"IFERROR(SUMIF(D_Processes!$R:$R,CONST_PrecursorToGoodInput&E$6&\"_\"&$D8,D_Processes!$T:$T)/SUMIF(D_Processes!$R:$R,CONST_CNTR_TotProd&$D8,D_Processes!$T:$T),0)","v":{"v":0,"d":"0.000"}},{"$f":"IFERROR(SUMIF(D_Processes!$R:$R,CONST_PrecursorToGoodInput&F$6&\"_\"&$D8,D_Processes!$T:$T)/SUMIF(D_Processes!$R:$R,CONST_CNTR_TotProd&$D8,D_Processes!$T:$T),0)","v":{"v":0,"d":"0.000"}},{"$f":"IFERROR(SUMIF(D_Processes!$R:$R,CONST_PrecursorToGoodInput&G$6&\"_\"&$D8,D_Processes!$T:$T)/SUMIF(D_Processes!$R:$R,CONST_CNTR_TotProd&$D8,D_Processes!$T:$T),0)","v":{"v":0,"d":"0.000"}},{"$f":"IFERROR(SUMIF(D_Processes!$R:$R,CONST_PrecursorToGoodInput&H$6&\"_\"&$D8,D_Processes!$T:$T)/SUMIF(D_Processes!$R:$R,CONST_CNTR_TotProd&$D8,D_Processes!$T:$T),0)","v":{"v":0,"d":"0.000"}},{"$f":"IFERROR(SUMIF(D_Processes!$R:$R,CONST_PrecursorToGoodInput&I$6&\"_\"&$D8,D_Processes!$T:$T)/SUMIF(D_Processes!$R:$R,CONST_CNTR_TotProd&$D8,D_Processes!$T:$T),0)","v":{"v":0,"d":"0.000"}},{"$f":"IFERROR(SUMIF(D_Processes!$R:$R,CONST_PrecursorToGoodInput&J$6&\"_\"&$D8,D_Processes!$T:$T)/SUMIF(D_Processes!$R:$R,CONST_CNTR_TotProd&$D8,D_Processes!$T:$T),0)","v":{"v":0,"d":"0.000"}},{"$f":"IFERROR(SUMIF(D_Processes!$R:$R,CONST_PrecursorToGoodInput&K$6&\"_\"&$D8,D_Processes!$T:$T)/SUMIF(D_Processes!$R:$R,CONST_CNTR_TotProd&$D8,D_Processes!$T:$T),0)","v":{"v":0,"d":"0.000"}},{"$f":"IFERROR(SUMIF(D_Processes!$R:$R,CONST_PrecursorToGoodInput&L$6&\"_\"&$D8,D_Processes!$T:$T)/SUMIF(D_Processes!$R:$R,CONST_CNTR_TotProd&$D8,D_Processes!$T:$T),0)","v":{"v":0,"d":"0.000"}},{"$f":"IFERROR(SUMIF(D_Processes!$R:$R,CONST_PrecursorToGoodInput&M$6&\"_\"&$D8,D_Processes!$T:$T)/SUMIF(D_Processes!$R:$R,CONST_CNTR_TotProd&$D8,D_Processes!$T:$T),0)","v":{"v":0,"d":"0.000"}},{"$f":"IFERROR(SUMIF(D_Processes!$R:$R,CONST_PrecursorToGoodInput&N$6&\"_\"&$D8,D_Processes!$T:$T)/SUMIF(D_Processes!$R:$R,CONST_CNTR_TotProd&$D8,D_Processes!$T:$T),0)","v":{"v":0,"d":"0.000"}},{"$f":"IFERROR(SUMIF(E_PurchPrec!$R:$R,CONST_PrecursorToGoodInput&O$6&\"_\"&$D8,E_PurchPrec!$T:$T)/SUMIF(D_Processes!$R:$R,CONST_CNTR_TotProd&$D8,D_Processes!$T:$T),0)","v":{"v":0,"d":"0.000"}},{"$f":"IFERROR(SUMIF(E_PurchPrec!$R:$R,CONST_PrecursorToGoodInput&P$6&\"_\"&$D8,E_PurchPrec!$T:$T)/SUMIF(D_Processes!$R:$R,CONST_CNTR_TotProd&$D8,D_Processes!$T:$T),0)","v":{"v":0,"d":"0.000"}},{"$f":"IFERROR(SUMIF(E_PurchPrec!$R:$R,CONST_PrecursorToGoodInput&Q$6&\"_\"&$D8,E_PurchPrec!$T:$T)/SUMIF(D_Processes!$R:$R,CONST_CNTR_TotProd&$D8,D_Processes!$T:$T),0)","v":{"v":0,"d":"0.000"}},{"$f":"IFERROR(SUMIF(E_PurchPrec!$R:$R,CONST_PrecursorToGoodInput&R$6&\"_\"&$D8,E_PurchPrec!$T:$T)/SUMIF(D_Processes!$R:$R,CONST_CNTR_TotProd&$D8,D_Processes!$T:$T),0)","v":{"v":0,"d":"0.000"}},{"$f":"IFERROR(SUMIF(E_PurchPrec!$R:$R,CONST_PrecursorToGoodInput&S$6&\"_\"&$D8,E_PurchPrec!$T:$T)/SUMIF(D_Processes!$R:$R,CONST_CNTR_TotProd&$D8,D_Processes!$T:$T),0)","v":{"v":0,"d":"0.000"}},{"$f":"IFERROR(SUMIF(E_PurchPrec!$R:$R,CONST_PrecursorToGoodInput&T$6&\"_\"&$D8,E_PurchPrec!$T:$T)/SUMIF(D_Processes!$R:$R,CONST_CNTR_TotProd&$D8,D_Processes!$T:$T),0)","v":{"v":0,"d":"0.000"}},{"$f":"IFERROR(SUMIF(E_PurchPrec!$R:$R,CONST_PrecursorToGoodInput&U$6&\"_\"&$D8,E_PurchPrec!$T:$T)/SUMIF(D_Processes!$R:$R,CONST_CNTR_TotProd&$D8,D_Processes!$T:$T),0)","v":{"v":0,"d":"0.000"}},{"$f":"IFERROR(SUMIF(E_PurchPrec!$R:$R,CONST_PrecursorToGoodInput&V$6&\"_\"&$D8,E_PurchPrec!$T:$T)/SUMIF(D_Processes!$R:$R,CONST_CNTR_TotProd&$D8,D_Processes!$T:$T),0)","v":{"v":0,"d":"0.000"}},{"$f":"IFERROR(SUMIF(E_PurchPrec!$R:$R,CONST_PrecursorToGoodInput&W$6&\"_\"&$D8,E_PurchPrec!$T:$T)/SUMIF(D_Processes!$R:$R,CONST_CNTR_TotProd&$D8,D_Processes!$T:$T),0)","v":{"v":0,"d":"0.000"}},{"$f":"IFERROR(SUMIF(E_PurchPrec!$R:$R,CONST_PrecursorToGoodInput&X$6&\"_\"&$D8,E_PurchPrec!$T:$T)/SUMIF(D_Processes!$R:$R,CONST_CNTR_TotProd&$D8,D_Processes!$T:$T),0)","v":{"v":0,"d":"0.000"}},{"$f":"IFERROR(SUMIF(E_PurchPrec!$R:$R,CONST_PrecursorToGoodInput&Y$6&\"_\"&$D8,E_PurchPrec!$T:$T)/SUMIF(D_Processes!$R:$R,CONST_CNTR_TotProd&$D8,D_Processes!$T:$T),0)","v":{"v":0,"d":"0.000"}},{"$f":"IFERROR(SUMIF(E_PurchPrec!$R:$R,CONST_PrecursorToGoodInput&Z$6&\"_\"&$D8,E_PurchPrec!$T:$T)/SUMIF(D_Processes!$R:$R,CONST_CNTR_TotProd&$D8,D_Processes!$T:$T),0)","v":{"v":0,"d":"0.000"}},{"$f":"IFERROR(SUMIF(E_PurchPrec!$R:$R,CONST_PrecursorToGoodInput&AA$6&\"_\"&$D8,E_PurchPrec!$T:$T)/SUMIF(D_Processes!$R:$R,CONST_CNTR_TotProd&$D8,D_Processes!$T:$T),0)","v":{"v":0,"d":"0.000"}},{"$f":"IFERROR(SUMIF(E_PurchPrec!$R:$R,CONST_PrecursorToGoodInput&AB$6&\"_\"&$D8,E_PurchPrec!$T:$T)/SUMIF(D_Processes!$R:$R,CONST_CNTR_TotProd&$D8,D_Processes!$T:$T),0)","v":{"v":0,"d":"0.000"}},{"$f":"IFERROR(SUMIF(E_PurchPrec!$R:$R,CONST_PrecursorToGoodInput&AC$6&\"_\"&$D8,E_PurchPrec!$T:$T)/SUMIF(D_Processes!$R:$R,CONST_CNTR_TotProd&$D8,D_Processes!$T:$T),0)","v":{"v":0,"d":"0.000"}},{"$f":"IFERROR(SUMIF(E_PurchPrec!$R:$R,CONST_PrecursorToGoodInput&AD$6&\"_\"&$D8,E_PurchPrec!$T:$T)/SUMIF(D_Processes!$R:$R,CONST_CNTR_TotProd&$D8,D_Processes!$T:$T),0)","v":{"v":0,"d":"0.000"}},{"$f":"IFERROR(SUMIF(E_PurchPrec!$R:$R,CONST_PrecursorToGoodInput&AE$6&\"_\"&$D8,E_PurchPrec!$T:$T)/SUMIF(D_Processes!$R:$R,CONST_CNTR_TotProd&$D8,D_Processes!$T:$T),0)","v":{"v":0,"d":"0.000"}},{"$f":"IFERROR(SUMIF(E_PurchPrec!$R:$R,CONST_PrecursorToGoodInput&AF$6&\"_\"&$D8,E_PurchPrec!$T:$T)/SUMIF(D_Processes!$R:$R,CONST_CNTR_TotProd&$D8,D_Processes!$T:$T),0)","v":{"v":0,"d":"0.000"}},{"$f":"IFERROR(SUMIF(E_PurchPrec!$R:$R,CONST_PrecursorToGoodInput&AG$6&\"_\"&$D8,E_PurchPrec!$T:$T)/SUMIF(D_Processes!$R:$R,CONST_CNTR_TotProd&$D8,D_Processes!$T:$T),0)","v":{"v":0,"d":"0.000"}},{"$f":"IFERROR(SUMIF(E_PurchPrec!$R:$R,CONST_PrecursorToGoodInput&AH$6&\"_\"&$D8,E_PurchPrec!$T:$T)/SUMIF(D_Processes!$R:$R,CONST_CNTR_TotProd&$D8,D_Processes!$T:$T),0)","v":{"v":0,"d":"0.000"}}]
[null,null,3,"",{"$f":"IFERROR(SUMIF(D_Processes!$R:$R,CONST_PrecursorToGoodInput&E$6&\"_\"&$D9,D_Processes!$T:$T)/SUMIF(D_Processes!$R:$R,CONST_CNTR_TotProd&$D9,D_Processes!$T:$T),0)","v":{"v":0,"d":"0.000"}},{"$f":"IFERROR(SUMIF(D_Processes!$R:$R,CONST_PrecursorToGoodInput&F$6&\"_\"&$D9,D_Processes!$T:$T)/SUMIF(D_Processes!$R:$R,CONST_CNTR_TotProd&$D9,D_Processes!$T:$T),0)","v":{"v":0,"d":"0.000"}},{"$f":"IFERROR(SUMIF(D_Processes!$R:$R,CONST_PrecursorToGoodInput&G$6&\"_\"&$D9,D_Processes!$T:$T)/SUMIF(D_Processes!$R:$R,CONST_CNTR_TotProd&$D9,D_Processes!$T:$T),0)","v":{"v":0,"d":"0.000"}},{"$f":"IFERROR(SUMIF(D_Processes!$R:$R,CONST_PrecursorToGoodInput&H$6&\"_\"&$D9,D_Processes!$T:$T)/SUMIF(D_Processes!$R:$R,CONST_CNTR_TotProd&$D9,D_Processes!$T:$T),0)","v":{"v":0,"d":"0.000"}},{"$f":"IFERROR(SUMIF(D_Processes!$R:$R,CONST_PrecursorToGoodInput&I$6&\"_\"&$D9,D_Processes!$T:$T)/SUMIF(D_Processes!$R:$R,CONST_CNTR_TotProd&$D9,D_Processes!$T:$T),0)","v":{"v":0,"d":"0.000"}},{"$f":"IFERROR(SUMIF(D_Processes!$R:$R,CONST_PrecursorToGoodInput&J$6&\"_\"&$D9,D_Processes!$T:$T)/SUMIF(D_Processes!$R:$R,CONST_CNTR_TotProd&$D9,D_Processes!$T:$T),0)","v":{"v":0,"d":"0.000"}},{"$f":"IFERROR(SUMIF(D_Processes!$R:$R,CONST_PrecursorToGoodInput&K$6&\"_\"&$D9,D_Processes!$T:$T)/SUMIF(D_Processes!$R:$R,CONST_CNTR_TotProd&$D9,D_Processes!$T:$T),0)","v":{"v":0,"d":"0.000"}},{"$f":"IFERROR(SUMIF(D_Processes!$R:$R,CONST_PrecursorToGoodInput&L$6&\"_\"&$D9,D_Processes!$T:$T)/SUMIF(D_Processes!$R:$R,CONST_CNTR_TotProd&$D9,D_Processes!$T:$T),0)","v":{"v":0,"d":"0.000"}},{"$f":"IFERROR(SUMIF(D_Processes!$R:$R,CONST_PrecursorToGoodInput&M$6&\"_\"&$D9,D_Processes!$T:$T)/SUMIF(D_Processes!$R:$R,CONST_CNTR_TotProd&$D9,D_Processes!$T:$T),0)","v":{"v":0,"d":"0.000"}},{"$f":"IFERROR(SUMIF(D_Processes!$R:$R,CONST_PrecursorToGoodInput&N$6&\"_\"&$D9,D_Processes!$T:$T)/SUMIF(D_Processes!$R:$R,CONST_CNTR_TotProd&$D9,D_Processes!$T:$T),0)","v":{"v":0,"d":"0.000"}},{"$f":"IFERROR(SUMIF(E_PurchPrec!$R:$R,CONST_PrecursorToGoodInput&O$6&\"_\"&$D9,E_PurchPrec!$T:$T)/SUMIF(D_Processes!$R:$R,CONST_CNTR_TotProd&$D9,D_Processes!$T:$T),0)","v":{"v":0,"d":"0.000"}},{"$f":"IFERROR(SUMIF(E_PurchPrec!$R:$R,CONST_PrecursorToGoodInput&P$6&\"_\"&$D9,E_PurchPrec!$T:$T)/SUMIF(D_Processes!$R:$R,CONST_CNTR_TotProd&$D9,D_Processes!$T:$T),0)","v":{"v":0,"d":"0.000"}},{"$f":"IFERROR(SUMIF(E_PurchPrec!$R:$R,CONST_PrecursorToGoodInput&Q$6&\"_\"&$D9,E_PurchPrec!$T:$T)/SUMIF(D_Processes!$R:$R,CONST_CNTR_TotProd&$D9,D_Processes!$T:$T),0)","v":{"v":0,"d":"0.000"}},{"$f":"IFERROR(SUMIF(E_PurchPrec!$R:$R,CONST_PrecursorToGoodInput&R$6&\"_\"&$D9,E_PurchPrec!$T:$T)/SUMIF(D_Processes!$R:$R,CONST_CNTR_TotProd&$D9,D_Processes!$T:$T),0)","v":{"v":0,"d":"0.000"}},{"$f":"IFERROR(SUMIF(E_PurchPrec!$R:$R,CONST_PrecursorToGoodInput&S$6&\"_\"&$D9,E_PurchPrec!$T:$T)/SUMIF(D_Processes!$R:$R,CONST_CNTR_TotProd&$D9,D_Processes!$T:$T),0)","v":{"v":0,"d":"0.000"}},{"$f":"IFERROR(SUMIF(E_PurchPrec!$R:$R,CONST_PrecursorToGoodInput&T$6&\"_\"&$D9,E_PurchPrec!$T:$T)/SUMIF(D_Processes!$R:$R,CONST_CNTR_TotProd&$D9,D_Processes!$T:$T),0)","v":{"v":0,"d":"0.000"}},{"$f":"IFERROR(SUMIF(E_PurchPrec!$R:$R,CONST_PrecursorToGoodInput&U$6&\"_\"&$D9,E_PurchPrec!$T:$T)/SUMIF(D_Processes!$R:$R,CONST_CNTR_TotProd&$D9,D_Processes!$T:$T),0)","v":{"v":0,"d":"0.000"}},{"$f":"IFERROR(SUMIF(E_PurchPrec!$R:$R,CONST_PrecursorToGoodInput&V$6&\"_\"&$D9,E_PurchPrec!$T:$T)/SUMIF(D_Processes!$R:$R,CONST_CNTR_TotProd&$D9,D_Processes!$T:$T),0)","v":{"v":0,"d":"0.000"}},{"$f":"IFERROR(SUMIF(E_PurchPrec!$R:$R,CONST_PrecursorToGoodInput&W$6&\"_\"&$D9,E_PurchPrec!$T:$T)/SUMIF(D_Processes!$R:$R,CONST_CNTR_TotProd&$D9,D_Processes!$T:$T),0)","v":{"v":0,"d":"0.000"}},{"$f":"IFERROR(SUMIF(E_PurchPrec!$R:$R,CONST_PrecursorToGoodInput&X$6&\"_\"&$D9,E_PurchPrec!$T:$T)/SUMIF(D_Processes!$R:$R,CONST_CNTR_TotProd&$D9,D_Processes!$T:$T),0)","v":{"v":0,"d":"0.000"}},{"$f":"IFERROR(SUMIF(E_PurchPrec!$R:$R,CONST_PrecursorToGoodInput&Y$6&\"_\"&$D9,E_PurchPrec!$T:$T)/SUMIF(D_Processes!$R:$R,CONST_CNTR_TotProd&$D9,D_Processes!$T:$T),0)","v":{"v":0,"d":"0.000"}},{"$f":"IFERROR(SUMIF(E_PurchPrec!$R:$R,CONST_PrecursorToGoodInput&Z$6&\"_\"&$D9,E_PurchPrec!$T:$T)/SUMIF(D_Processes!$R:$R,CONST_CNTR_TotProd&$D9,D_Processes!$T:$T),0)","v":{"v":0,"d":"0.000"}},{"$f":"IFERROR(SUMIF(E_PurchPrec!$R:$R,CONST_PrecursorToGoodInput&AA$6&\"_\"&$D9,E_PurchPrec!$T:$T)/SUMIF(D_Processes!$R:$R,CONST_CNTR_TotProd&$D9,D_Processes!$T:$T),0)","v":{"v":0,"d":"0.000"}},{"$f":"IFERROR(SUMIF(E_PurchPrec!$R:$R,CONST_PrecursorToGoodInput&AB$6&\"_\"&$D9,E_PurchPrec!$T:$T)/SUMIF(D_Processes!$R:$R,CONST_CNTR_TotProd&$D9,D_Processes!$T:$T),0)","v":{"v":0,"d":"0.000"}},{"$f":"IFERROR(SUMIF(E_PurchPrec!$R:$R,CONST_PrecursorToGoodInput&AC$6&\"_\"&$D9,E_PurchPrec!$T:$T)/SUMIF(D_Processes!$R:$R,CONST_CNTR_TotProd&$D9,D_Processes!$T:$T),0)","v":{"v":0,"d":"0.000"}},{"$f":"IFERROR(SUMIF(E_PurchPrec!$R:$R,CONST_PrecursorToGoodInput&AD$6&\"_\"&$D9,E_PurchPrec!$T:$T)/SUMIF(D_Processes!$R:$R,CONST_CNTR_TotProd&$D9,D_Processes!$T:$T),0)","v":{"v":0,"d":"0.000"}},{"$f":"IFERROR(SUMIF(E_PurchPrec!$R:$R,CONST_PrecursorToGoodInput&AE$6&\"_\"&$D9,E_PurchPrec!$T:$T)/SUMIF(D_Processes!$R:$R,CONST_CNTR_TotProd&$D9,D_Processes!$T:$T),0)","v":{"v":0,"d":"0.000"}},{"$f":"IFERROR(SUMIF(E_PurchPrec!$R:$R,CONST_PrecursorToGoodInput&AF$6&\"_\"&$D9,E_PurchPrec!$T:$T)/SUMIF(D_Processes!$R:$R,CONST_CNTR_TotProd&$D9,D_Processes!$T:$T),0)","v":{"v":0,"d":"0.000"}},{"$f":"IFERROR(SUMIF(E_PurchPrec!$R:$R,CONST_PrecursorToGoodInput&AG$6&\"_\"&$D9,E_PurchPrec!$T:$T)/SUMIF(D_Processes!$R:$R,CONST_CNTR_TotProd&$D9,D_Processes!$T:$T),0)","v":{"v":0,"d":"0.000"}},{"$f":"IFERROR(SUMIF(E_PurchPrec!$R:$R,CONST_PrecursorToGoodInput&AH$6&\"_\"&$D9,E_PurchPrec!$T:$T)/SUMIF(D_Processes!$R:$R,CONST_CNTR_TotProd&$D9,D_Processes!$T:$T),0)","v":{"v":0,"d":"0.000"}}]
[null,null,4,"",{"$f":"IFERROR(SUMIF(D_Processes!$R:$R,CONST_PrecursorToGoodInput&E$6&\"_\"&$D10,D_Processes!$T:$T)/SUMIF(D_Processes!$R:$R,CONST_CNTR_TotProd&$D10,D_Processes!$T:$T),0)","v":{"v":0,"d":"0.000"}},{"$f":"IFERROR(SUMIF(D_Processes!$R:$R,CONST_PrecursorToGoodInput&F$6&\"_\"&$D10,D_Processes!$T:$T)/SUMIF(D_Processes!$R:$R,CONST_CNTR_TotProd&$D10,D_Processes!$T:$T),0)","v":{"v":0,"d":"0.000"}},{"$f":"IFERROR(SUMIF(D_Processes!$R:$R,CONST_PrecursorToGoodInput&G$6&\"_\"&$D10,D_Processes!$T:$T)/SUMIF(D_Processes!$R:$R,CONST_CNTR_TotProd&$D10,D_Processes!$T:$T),0)","v":{"v":0,"d":"0.000"}},{"$f":"IFERROR(SUMIF(D_Processes!$R:$R,CONST_PrecursorToGoodInput&H$6&\"_\"&$D10,D_Processes!$T:$T)/SUMIF(D_Processes!$R:$R,CONST_CNTR_TotProd&$D10,D_Processes!$T:$T),0)","v":{"v":0,"d":"0.000"}},{"$f":"IFERROR(SUMIF(D_Processes!$R:$R,CONST_PrecursorToGoodInput&I$6&\"_\"&$D10,D_Processes!$T:$T)/SUMIF(D_Processes!$R:$R,CONST_CNTR_TotProd&$D10,D_Processes!$T:$T),0)","v":{"v":0,"d":"0.000"}},{"$f":"IFERROR(SUMIF(D_Processes!$R:$R,CONST_PrecursorToGoodInput&J$6&\"_\"&$D10,D_Processes!$T:$T)/SUMIF(D_Processes!$R:$R,CONST_CNTR_TotProd&$D10,D_Processes!$T:$T),0)","v":{"v":0,"d":"0.000"}},{"$f":"IFERROR(SUMIF(D_Processes!$R:$R,CONST_PrecursorToGoodInput&K$6&\"_\"&$D10,D_Processes!$T:$T)/SUMIF(D_Processes!$R:$R,CONST_CNTR_TotProd&$D10,D_Processes!$T:$T),0)","v":{"v":0,"d":"0.000"}},{"$f":"IFERROR(SUMIF(D_Processes!$R:$R,CONST_PrecursorToGoodInput&L$6&\"_\"&$D10,D_Processes!$T:$T)/SUMIF(D_Processes!$R:$R,CONST_CNTR_TotProd&$D10,D_Processes!$T:$T),0)","v":{"v":0,"d":"0.000"}},{"$f":"IFERROR(SUMIF(D_Processes!$R:$R,CONST_PrecursorToGoodInput&M$6&\"_\"&$D10,D_Processes!$T:$T)/SUMIF(D_Processes!$R:$R,CONST_CNTR_TotProd&$D10,D_Processes!$T:$T),0)","v":{"v":0,"d":"0.000"}},{"$f":"IFERROR(SUMIF(D_Processes!$R:$R,CONST_PrecursorToGoodInput&N$6&\"_\"&$D10,D_Processes!$T:$T)/SUMIF(D_Processes!$R:$R,CONST_CNTR_TotProd&$D10,D_Processes!$T:$T),0)","v":{"v":0,"d":"0.000"}},{"$f":"IFERROR(SUMIF(E_PurchPrec!$R:$R,CONST_PrecursorToGoodInput&O$6&\"_\"&$D10,E_PurchPrec!$T:$T)/SUMIF(D_Processes!$R:$R,CONST_CNTR_TotProd&$D10,D_Processes!$T:$T),0)","v":{"v":0,"d":"0.000"}},{"$f":"IFERROR(SUMIF(E_PurchPrec!$R:$R,CONST_PrecursorToGoodInput&P$6&\"_\"&$D10,E_PurchPrec!$T:$T)/SUMIF(D_Processes!$R:$R,CONST_CNTR_TotProd&$D10,D_Processes!$T:$T),0)","v":{"v":0,"d":"0.000"}},{"$f":"IFERROR(SUMIF(E_PurchPrec!$R:$R,CONST_PrecursorToGoodInput&Q$6&\"_\"&$D10,E_PurchPrec!$T:$T)/SUMIF(D_Processes!$R:$R,CONST_CNTR_TotProd&$D10,D_Processes!$T:$T),0)","v":{"v":0,"d":"0.000"}},{"$f":"IFERROR(SUMIF(E_PurchPrec!$R:$R,CONST_PrecursorToGoodInput&R$6&\"_\"&$D10,E_PurchPrec!$T:$T)/SUMIF(D_Processes!$R:$R,CONST_CNTR_TotProd&$D10,D_Processes!$T:$T),0)","v":{"v":0,"d":"0.000"}},{"$f":"IFERROR(SUMIF(E_PurchPrec!$R:$R,CONST_PrecursorToGoodInput&S$6&\"_\"&$D10,E_PurchPrec!$T:$T)/SUMIF(D_Processes!$R:$R,CONST_CNTR_TotProd&$D10,D_Processes!$T:$T),0)","v":{"v":0,"d":"0.000"}},{"$f":"IFERROR(SUMIF(E_PurchPrec!$R:$R,CONST_PrecursorToGoodInput&T$6&\"_\"&$D10,E_PurchPrec!$T:$T)/SUMIF(D_Processes!$R:$R,CONST_CNTR_TotProd&$D10,D_Processes!$T:$T),0)","v":{"v":0,"d":"0.000"}},{"$f":"IFERROR(SUMIF(E_PurchPrec!$R:$R,CONST_PrecursorToGoodInput&U$6&\"_\"&$D10,E_PurchPrec!$T:$T)/SUMIF(D_Processes!$R:$R,CONST_CNTR_TotProd&$D10,D_Processes!$T:$T),0)","v":{"v":0,"d":"0.000"}},{"$f":"IFERROR(SUMIF(E_PurchPrec!$R:$R,CONST_PrecursorToGoodInput&V$6&\"_\"&$D10,E_PurchPrec!$T:$T)/SUMIF(D_Processes!$R:$R,CONST_CNTR_TotProd&$D10,D_Processes!$T:$T),0)","v":{"v":0,"d":"0.000"}},{"$f":"IFERROR(SUMIF(E_PurchPrec!$R:$R,CONST_PrecursorToGoodInput&W$6&\"_\"&$D10,E_PurchPrec!$T:$T)/SUMIF(D_Processes!$R:$R,CONST_CNTR_TotProd&$D10,D_Processes!$T:$T),0)","v":{"v":0,"d":"0.000"}},{"$f":"IFERROR(SUMIF(E_PurchPrec!$R:$R,CONST_PrecursorToGoodInput&X$6&\"_\"&$D10,E_PurchPrec!$T:$T)/SUMIF(D_Processes!$R:$R,CONST_CNTR_TotProd&$D10,D_Processes!$T:$T),0)","v":{"v":0,"d":"0.000"}},{"$f":"IFERROR(SUMIF(E_PurchPrec!$R:$R,CONST_PrecursorToGoodInput&Y$6&\"_\"&$D10,E_PurchPrec!$T:$T)/SUMIF(D_Processes!$R:$R,CONST_CNTR_TotProd&$D10,D_Processes!$T:$T),0)","v":{"v":0,"d":"0.000"}},{"$f":"IFERROR(SUMIF(E_PurchPrec!$R:$R,CONST_PrecursorToGoodInput&Z$6&\"_\"&$D10,E_PurchPrec!$T:$T)/SUMIF(D_Processes!$R:$R,CONST_CNTR_TotProd&$D10,D_Processes!$T:$T),0)","v":{"v":0,"d":"0.000"}},{"$f":"IFERROR(SUMIF(E_PurchPrec!$R:$R,CONST_PrecursorToGoodInput&AA$6&\"_\"&$D10,E_PurchPrec!$T:$T)/SUMIF(D_Processes!$R:$R,CONST_CNTR_TotProd&$D10,D_Processes!$T:$T),0)","v":{"v":0,"d":"0.000"}},{"$f":"IFERROR(SUMIF(E_PurchPrec!$R:$R,CONST_PrecursorToGoodInput&AB$6&\"_\"&$D10,E_PurchPrec!$T:$T)/SUMIF(D_Processes!$R:$R,CONST_CNTR_TotProd&$D10,D_Processes!$T:$T),0)","v":{"v":0,"d":"0.000"}},{"$f":"IFERROR(SUMIF(E_PurchPrec!$R:$R,CONST_PrecursorToGoodInput&AC$6&\"_\"&$D10,E_PurchPrec!$T:$T)/SUMIF(D_Processes!$R:$R,CONST_CNTR_TotProd&$D10,D_Processes!$T:$T),0)","v":{"v":0,"d":"0.000"}},{"$f":"IFERROR(SUMIF(E_PurchPrec!$R:$R,CONST_PrecursorToGoodInput&AD$6&\"_\"&$D10,E_PurchPrec!$T:$T)/SUMIF(D_Processes!$R:$R,CONST_CNTR_TotProd&$D10,D_Processes!$T:$T),0)","v":{"v":0,"d":"0.000"}},{"$f":"IFERROR(SUMIF(E_PurchPrec!$R:$R,CONST_PrecursorToGoodInput&AE$6&\"_\"&$D10,E_PurchPrec!$T:$T)/SUMIF(D_Processes!$R:$R,CONST_CNTR_TotProd&$D10,D_Processes!$T:$T),0)","v":{"v":0,"d":"0.000"}},{"$f":"IFERROR(SUMIF(E_PurchPrec!$R:$R,CONST_PrecursorToGoodInput&AF$6&\"_\"&$D10,E_PurchPrec!$T:$T)/SUMIF(D_Processes!$R:$R,CONST_CNTR_TotProd&$D10,D_Processes!$T:$T),0)","v":{"v":0,"d":"0.000"}},{"$f":"IFERROR(SUMIF(E_PurchPrec!$R:$R,CONST_PrecursorToGoodInput&AG$6&\"_\"&$D10,E_PurchPrec!$T:$T)/SUMIF(D_Processes!$R:$R,CONST_CNTR_TotProd&$D10,D_Processes!$T:$T),0)","v":{"v":0,"d":"0.000"}},{"$f":"IFERROR(SUMIF(E_PurchPrec!$R:$R,CONST_PrecursorToGoodInput&AH$6&\"_\"&$D10,E_PurchPrec!$T:$T)/SUMIF(D_Processes!$R:$R,CONST_CNTR_TotProd&$D10,D_Processes!$T:$T),0)","v":{"v":0,"d":"0.000"}}]
[null,null,5,"",{"$f":"IFERROR(SUMIF(D_Processes!$R:$R,CONST_PrecursorToGoodInput&E$6&\"_\"&$D11,D_Processes!$T:$T)/SUMIF(D_Processes!$R:$R,CONST_CNTR_TotProd&$D11,D_Processes!$T:$T),0)","v":{"v":0,"d":"0.000"}},{"$f":"IFERROR(SUMIF(D_Processes!$R:$R,CONST_PrecursorToGoodInput&F$6&\"_\"&$D11,D_Processes!$T:$T)/SUMIF(D_Processes!$R:$R,CONST_CNTR_TotProd&$D11,D_Processes!$T:$T),0)","v":{"v":0,"d":"0.000"}},{"$f":"IFERROR(SUMIF(D_Processes!$R:$R,CONST_PrecursorToGoodInput&G$6&\"_\"&$D11,D_Processes!$T:$T)/SUMIF(D_Processes!$R:$R,CONST_CNTR_TotProd&$D11,D_Processes!$T:$T),0)","v":{"v":0,"d":"0.000"}},{"$f":"IFERROR(SUMIF(D_Processes!$R:$R,CONST_PrecursorToGoodInput&H$6&\"_\"&$D11,D_Processes!$T:$T)/SUMIF(D_Processes!$R:$R,CONST_CNTR_TotProd&$D11,D_Processes!$T:$T),0)","v":{"v":0,"d":"0.000"}},{"$f":"IFERROR(SUMIF(D_Processes!$R:$R,CONST_PrecursorToGoodInput&I$6&\"_\"&$D11,D_Processes!$T:$T)/SUMIF(D_Processes!$R:$R,CONST_CNTR_TotProd&$D11,D_Processes!$T:$T),0)","v":{"v":0,"d":"0.000"}},{"$f":"IFERROR(SUMIF(D_Processes!$R:$R,CONST_PrecursorToGoodInput&J$6&\"_\"&$D11,D_Processes!$T:$T)/SUMIF(D_Processes!$R:$R,CONST_CNTR_TotProd&$D11,D_Processes!$T:$T),0)","v":{"v":0,"d":"0.000"}},{"$f":"IFERROR(SUMIF(D_Processes!$R:$R,CONST_PrecursorToGoodInput&K$6&\"_\"&$D11,D_Processes!$T:$T)/SUMIF(D_Processes!$R:$R,CONST_CNTR_TotProd&$D11,D_Processes!$T:$T),0)","v":{"v":0,"d":"0.000"}},{"$f":"IFERROR(SUMIF(D_Processes!$R:$R,CONST_PrecursorToGoodInput&L$6&\"_\"&$D11,D_Processes!$T:$T)/SUMIF(D_Processes!$R:$R,CONST_CNTR_TotProd&$D11,D_Processes!$T:$T),0)","v":{"v":0,"d":"0.000"}},{"$f":"IFERROR(SUMIF(D_Processes!$R:$R,CONST_PrecursorToGoodInput&M$6&\"_\"&$D11,D_Processes!$T:$T)/SUMIF(D_Processes!$R:$R,CONST_CNTR_TotProd&$D11,D_Processes!$T:$T),0)","v":{"v":0,"d":"0.000"}},{"$f":"IFERROR(SUMIF(D_Processes!$R:$R,CONST_PrecursorToGoodInput&N$6&\"_\"&$D11,D_Processes!$T:$T)/SUMIF(D_Processes!$R:$R,CONST_CNTR_TotProd&$D11,D_Processes!$T:$T),0)","v":{"v":0,"d":"0.000"}},{"$f":"IFERROR(SUMIF(E_PurchPrec!$R:$R,CONST_PrecursorToGoodInput&O$6&\"_\"&$D11,E_PurchPrec!$T:$T)/SUMIF(D_Processes!$R:$R,CONST_CNTR_TotProd&$D11,D_Processes!$T:$T),0)","v":{"v":0,"d":"0.000"}},{"$f":"IFERROR(SUMIF(E_PurchPrec!$R:$R,CONST_PrecursorToGoodInput&P$6&\"_\"&$D11,E_PurchPrec!$T:$T)/SUMIF(D_Processes!$R:$R,CONST_CNTR_TotProd&$D11,D_Processes!$T:$T),0)","v":{"v":0,"d":"0.000"}},{"$f":"IFERROR(SUMIF(E_PurchPrec!$R:$R,CONST_PrecursorToGoodInput&Q$6&\"_\"&$D11,E_PurchPrec!$T:$T)/SUMIF(D_Processes!$R:$R,CONST_CNTR_TotProd&$D11,D_Processes!$T:$T),0)","v":{"v":0,"d":"0.000"}},{"$f":"IFERROR(SUMIF(E_PurchPrec!$R:$R,CONST_PrecursorToGoodInput&R$6&\"_\"&$D11,E_PurchPrec!$T:$T)/SUMIF(D_Processes!$R:$R,CONST_CNTR_TotProd&$D11,D_Processes!$T:$T),0)","v":{"v":0,"d":"0.000"}},{"$f":"IFERROR(SUMIF(E_PurchPrec!$R:$R,CONST_PrecursorToGoodInput&S$6&\"_\"&$D11,E_PurchPrec!$T:$T)/SUMIF(D_Processes!$R:$R,CONST_CNTR_TotProd&$D11,D_Processes!$T:$T),0)","v":{"v":0,"d":"0.000"}},{"$f":"IFERROR(SUMIF(E_PurchPrec!$R:$R,CONST_PrecursorToGoodInput&T$6&\"_\"&$D11,E_PurchPrec!$T:$T)/SUMIF(D_Processes!$R:$R,CONST_CNTR_TotProd&$D11,D_Processes!$T:$T),0)","v":{"v":0,"d":"0.000"}},{"$f":"IFERROR(SUMIF(E_PurchPrec!$R:$R,CONST_PrecursorToGoodInput&U$6&\"_\"&$D11,E_PurchPrec!$T:$T)/SUMIF(D_Processes!$R:$R,CONST_CNTR_TotProd&$D11,D_Processes!$T:$T),0)","v":{"v":0,"d":"0.000"}},{"$f":"IFERROR(SUMIF(E_PurchPrec!$R:$R,CONST_PrecursorToGoodInput&V$6&\"_\"&$D11,E_PurchPrec!$T:$T)/SUMIF(D_Processes!$R:$R,CONST_CNTR_TotProd&$D11,D_Processes!$T:$T),0)","v":{"v":0,"d":"0.000"}},{"$f":"IFERROR(SUMIF(E_PurchPrec!$R:$R,CONST_PrecursorToGoodInput&W$6&\"_\"&$D11,E_PurchPrec!$T:$T)/SUMIF(D_Processes!$R:$R,CONST_CNTR_TotProd&$D11,D_Processes!$T:$T),0)","v":{"v":0,"d":"0.000"}},{"$f":"IFERROR(SUMIF(E_PurchPrec!$R:$R,CONST_PrecursorToGoodInput&X$6&\"_\"&$D11,E_PurchPrec!$T:$T)/SUMIF(D_Processes!$R:$R,CONST_CNTR_TotProd&$D11,D_Processes!$T:$T),0)","v":{"v":0,"d":"0.000"}},{"$f":"IFERROR(SUMIF(E_PurchPrec!$R:$R,CONST_PrecursorToGoodInput&Y$6&\"_\"&$D11,E_PurchPrec!$T:$T)/SUMIF(D_Processes!$R:$R,CONST_CNTR_TotProd&$D11,D_Processes!$T:$T),0)","v":{"v":0,"d":"0.000"}},{"$f":"IFERROR(SUMIF(E_PurchPrec!$R:$R,CONST_PrecursorToGoodInput&Z$6&\"_\"&$D11,E_PurchPrec!$T:$T)/SUMIF(D_Processes!$R:$R,CONST_CNTR_TotProd&$D11,D_Processes!$T:$T),0)","v":{"v":0,"d":"0.000"}},{"$f":"IFERROR(SUMIF(E_PurchPrec!$R:$R,CONST_PrecursorToGoodInput&AA$6&\"_\"&$D11,E_PurchPrec!$T:$T)/SUMIF(D_Processes!$R:$R,CONST_CNTR_TotProd&$D11,D_Processes!$T:$T),0)","v":{"v":0,"d":"0.000"}},{"$f":"IFERROR(SUMIF(E_PurchPrec!$R:$R,CONST_PrecursorToGoodInput&AB$6&\"_\"&$D11,E_PurchPrec!$T:$T)/SUMIF(D_Processes!$R:$R,CONST_CNTR_TotProd&$D11,D_Processes!$T:$T),0)","v":{"v":0,"d":"0.000"}},{"$f":"IFERROR(SUMIF(E_PurchPrec!$R:$R,CONST_PrecursorToGoodInput&AC$6&\"_\"&$D11,E_PurchPrec!$T:$T)/SUMIF(D_Processes!$R:$R,CONST_CNTR_TotProd&$D11,D_Processes!$T:$T),0)","v":{"v":0,"d":"0.000"}},{"$f":"IFERROR(SUMIF(E_PurchPrec!$R:$R,CONST_PrecursorToGoodInput&AD$6&\"_\"&$D11,E_PurchPrec!$T:$T)/SUMIF(D_Processes!$R:$R,CONST_CNTR_TotProd&$D11,D_Processes!$T:$T),0)","v":{"v":0,"d":"0.000"}},{"$f":"IFERROR(SUMIF(E_PurchPrec!$R:$R,CONST_PrecursorToGoodInput&AE$6&\"_\"&$D11,E_PurchPrec!$T:$T)/SUMIF(D_Processes!$R:$R,CONST_CNTR_TotProd&$D11,D_Processes!$T:$T),0)","v":{"v":0,"d":"0.000"}},{"$f":"IFERROR(SUMIF(E_PurchPrec!$R:$R,CONST_PrecursorToGoodInput&AF$6&\"_\"&$D11,E_PurchPrec!$T:$T)/SUMIF(D_Processes!$R:$R,CONST_CNTR_TotProd&$D11,D_Processes!$T:$T),0)","v":{"v":0,"d":"0.000"}},{"$f":"IFERROR(SUMIF(E_PurchPrec!$R:$R,CONST_PrecursorToGoodInput&AG$6&\"_\"&$D11,E_PurchPrec!$T:$T)/SUMIF(D_Processes!$R:$R,CONST_CNTR_TotProd&$D11,D_Processes!$T:$T),0)","v":{"v":0,"d":"0.000"}},{"$f":"IFERROR(SUMIF(E_PurchPrec!$R:$R,CONST_PrecursorToGoodInput&AH$6&\"_\"&$D11,E_PurchPrec!$T:$T)/SUMIF(D_Processes!$R:$R,CONST_CNTR_TotProd&$D11,D_Processes!$T:$T),0)","v":{"v":0,"d":"0.000"}}]
[null,null,6,"",{"$f":"IFERROR(SUMIF(D_Processes!$R:$R,CONST_PrecursorToGoodInput&E$6&\"_\"&$D12,D_Processes!$T:$T)/SUMIF(D_Processes!$R:$R,CONST_CNTR_TotProd&$D12,D_Processes!$T:$T),0)","v":{"v":0,"d":"0.000"}},{"$f":"IFERROR(SUMIF(D_Processes!$R:$R,CONST_PrecursorToGoodInput&F$6&\"_\"&$D12,D_Processes!$T:$T)/SUMIF(D_Processes!$R:$R,CONST_CNTR_TotProd&$D12,D_Processes!$T:$T),0)","v":{"v":0,"d":"0.000"}},{"$f":"IFERROR(SUMIF(D_Processes!$R:$R,CONST_PrecursorToGoodInput&G$6&\"_\"&$D12,D_Processes!$T:$T)/SUMIF(D_Processes!$R:$R,CONST_CNTR_TotProd&$D12,D_Processes!$T:$T),0)","v":{"v":0,"d":"0.000"}},{"$f":"IFERROR(SUMIF(D_Processes!$R:$R,CONST_PrecursorToGoodInput&H$6&\"_\"&$D12,D_Processes!$T:$T)/SUMIF(D_Processes!$R:$R,CONST_CNTR_TotProd&$D12,D_Processes!$T:$T),0)","v":{"v":0,"d":"0.000"}},{"$f":"IFERROR(SUMIF(D_Processes!$R:$R,CONST_PrecursorToGoodInput&I$6&\"_\"&$D12,D_Processes!$T:$T)/SUMIF(D_Processes!$R:$R,CONST_CNTR_TotProd&$D12,D_Processes!$T:$T),0)","v":{"v":0,"d":"0.000"}},{"$f":"IFERROR(SUMIF(D_Processes!$R:$R,CONST_PrecursorToGoodInput&J$6&\"_\"&$D12,D_Processes!$T:$T)/SUMIF(D_Processes!$R:$R,CONST_CNTR_TotProd&$D12,D_Processes!$T:$T),0)","v":{"v":0,"d":"0.000"}},{"$f":"IFERROR(SUMIF(D_Processes!$R:$R,CONST_PrecursorToGoodInput&K$6&\"_\"&$D12,D_Processes!$T:$T)/SUMIF(D_Processes!$R:$R,CONST_CNTR_TotProd&$D12,D_Processes!$T:$T),0)","v":{"v":0,"d":"0.000"}},{"$f":"IFERROR(SUMIF(D_Processes!$R:$R,CONST_PrecursorToGoodInput&L$6&\"_\"&$D12,D_Processes!$T:$T)/SUMIF(D_Processes!$R:$R,CONST_CNTR_TotProd&$D12,D_Processes!$T:$T),0)","v":{"v":0,"d":"0.000"}},{"$f":"IFERROR(SUMIF(D_Processes!$R:$R,CONST_PrecursorToGoodInput&M$6&\"_\"&$D12,D_Processes!$T:$T)/SUMIF(D_Processes!$R:$R,CONST_CNTR_TotProd&$D12,D_Processes!$T:$T),0)","v":{"v":0,"d":"0.000"}},{"$f":"IFERROR(SUMIF(D_Processes!$R:$R,CONST_PrecursorToGoodInput&N$6&\"_\"&$D12,D_Processes!$T:$T)/SUMIF(D_Processes!$R:$R,CONST_CNTR_TotProd&$D12,D_Processes!$T:$T),0)","v":{"v":0,"d":"0.000"}},{"$f":"IFERROR(SUMIF(E_PurchPrec!$R:$R,CONST_PrecursorToGoodInput&O$6&\"_\"&$D12,E_PurchPrec!$T:$T)/SUMIF(D_Processes!$R:$R,CONST_CNTR_TotProd&$D12,D_Processes!$T:$T),0)","v":{"v":0,"d":"0.000"}},{"$f":"IFERROR(SUMIF(E_PurchPrec!$R:$R,CONST_PrecursorToGoodInput&P$6&\"_\"&$D12,E_PurchPrec!$T:$T)/SUMIF(D_Processes!$R:$R,CONST_CNTR_TotProd&$D12,D_Processes!$T:$T),0)","v":{"v":0,"d":"0.000"}},{"$f":"IFERROR(SUMIF(E_PurchPrec!$R:$R,CONST_PrecursorToGoodInput&Q$6&\"_\"&$D12,E_PurchPrec!$T:$T)/SUMIF(D_Processes!$R:$R,CONST_CNTR_TotProd&$D12,D_Processes!$T:$T),0)","v":{"v":0,"d":"0.000"}},{"$f":"IFERROR(SUMIF(E_PurchPrec!$R:$R,CONST_PrecursorToGoodInput&R$6&\"_\"&$D12,E_PurchPrec!$T:$T)/SUMIF(D_Processes!$R:$R,CONST_CNTR_TotProd&$D12,D_Processes!$T:$T),0)","v":{"v":0,"d":"0.000"}},{"$f":"IFERROR(SUMIF(E_PurchPrec!$R:$R,CONST_PrecursorToGoodInput&S$6&\"_\"&$D12,E_PurchPrec!$T:$T)/SUMIF(D_Processes!$R:$R,CONST_CNTR_TotProd&$D12,D_Processes!$T:$T),0)","v":{"v":0,"d":"0.000"}},{"$f":"IFERROR(SUMIF(E_PurchPrec!$R:$R,CONST_PrecursorToGoodInput&T$6&\"_\"&$D12,E_PurchPrec!$T:$T)/SUMIF(D_Processes!$R:$R,CONST_CNTR_TotProd&$D12,D_Processes!$T:$T),0)","v":{"v":0,"d":"0.000"}},{"$f":"IFERROR(SUMIF(E_PurchPrec!$R:$R,CONST_PrecursorToGoodInput&U$6&\"_\"&$D12,E_PurchPrec!$T:$T)/SUMIF(D_Processes!$R:$R,CONST_CNTR_TotProd&$D12,D_Processes!$T:$T),0)","v":{"v":0,"d":"0.000"}},{"$f":"IFERROR(SUMIF(E_PurchPrec!$R:$R,CONST_PrecursorToGoodInput&V$6&\"_\"&$D12,E_PurchPrec!$T:$T)/SUMIF(D_Processes!$R:$R,CONST_CNTR_TotProd&$D12,D_Processes!$T:$T),0)","v":{"v":0,"d":"0.000"}},{"$f":"IFERROR(SUMIF(E_PurchPrec!$R:$R,CONST_PrecursorToGoodInput&W$6&\"_\"&$D12,E_PurchPrec!$T:$T)/SUMIF(D_Processes!$R:$R,CONST_CNTR_TotProd&$D12,D_Processes!$T:$T),0)","v":{"v":0,"d":"0.000"}},{"$f":"IFERROR(SUMIF(E_PurchPrec!$R:$R,CONST_PrecursorToGoodInput&X$6&\"_\"&$D12,E_PurchPrec!$T:$T)/SUMIF(D_Processes!$R:$R,CONST_CNTR_TotProd&$D12,D_Processes!$T:$T),0)","v":{"v":0,"d":"0.000"}},{"$f":"IFERROR(SUMIF(E_PurchPrec!$R:$R,CONST_PrecursorToGoodInput&Y$6&\"_\"&$D12,E_PurchPrec!$T:$T)/SUMIF(D_Processes!$R:$R,CONST_CNTR_TotProd&$D12,D_Processes!$T:$T),0)","v":{"v":0,"d":"0.000"}},{"$f":"IFERROR(SUMIF(E_PurchPrec!$R:$R,CONST_PrecursorToGoodInput&Z$6&\"_\"&$D12,E_PurchPrec!$T:$T)/SUMIF(D_Processes!$R:$R,CONST_CNTR_TotProd&$D12,D_Processes!$T:$T),0)","v":{"v":0,"d":"0.000"}},{"$f":"IFERROR(SUMIF(E_PurchPrec!$R:$R,CONST_PrecursorToGoodInput&AA$6&\"_\"&$D12,E_PurchPrec!$T:$T)/SUMIF(D_Processes!$R:$R,CONST_CNTR_TotProd&$D12,D_Processes!$T:$T),0)","v":{"v":0,"d":"0.000"}},{"$f":"IFERROR(SUMIF(E_PurchPrec!$R:$R,CONST_PrecursorToGoodInput&AB$6&\"_\"&$D12,E_PurchPrec!$T:$T)/SUMIF(D_Processes!$R:$R,CONST_CNTR_TotProd&$D12,D_Processes!$T:$T),0)","v":{"v":0,"d":"0.000"}},{"$f":"IFERROR(SUMIF(E_PurchPrec!$R:$R,CONST_PrecursorToGoodInput&AC$6&\"_\"&$D12,E_PurchPrec!$T:$T)/SUMIF(D_Processes!$R:$R,CONST_CNTR_TotProd&$D12,D_Processes!$T:$T),0)","v":{"v":0,"d":"0.000"}},{"$f":"IFERROR(SUMIF(E_PurchPrec!$R:$R,CONST_PrecursorToGoodInput&AD$6&\"_\"&$D12,E_PurchPrec!$T:$T)/SUMIF(D_Processes!$R:$R,CONST_CNTR_TotProd&$D12,D_Processes!$T:$T),0)","v":{"v":0,"d":"0.000"}},{"$f":"IFERROR(SUMIF(E_PurchPrec!$R:$R,CONST_PrecursorToGoodInput&AE$6&\"_\"&$D12,E_PurchPrec!$T:$T)/SUMIF(D_Processes!$R:$R,CONST_CNTR_TotProd&$D12,D_Processes!$T:$T),0)","v":{"v":0,"d":"0.000"}},{"$f":"IFERROR(SUMIF(E_PurchPrec!$R:$R,CONST_PrecursorToGoodInput&AF$6&\"_\"&$D12,E_PurchPrec!$T:$T)/SUMIF(D_Processes!$R:$R,CONST_CNTR_TotProd&$D12,D_Processes!$T:$T),0)","v":{"v":0,"d":"0.000"}},{"$f":"IFERROR(SUMIF(E_PurchPrec!$R:$R,CONST_PrecursorToGoodInput&AG$6&\"_\"&$D12,E_PurchPrec!$T:$T)/SUMIF(D_Processes!$R:$R,CONST_CNTR_TotProd&$D12,D_Processes!$T:$T),0)","v":{"v":0,"d":"0.000"}},{"$f":"IFERROR(SUMIF(E_PurchPrec!$R:$R,CONST_PrecursorToGoodInput&AH$6&\"_\"&$D12,E_PurchPrec!$T:$T)/SUMIF(D_Processes!$R:$R,CONST_CNTR_TotProd&$D12,D_Processes!$T:$T),0)","v":{"v":0,"d":"0.000"}}]
[null,null,7,"",{"$f":"IFERROR(SUMIF(D_Processes!$R:$R,CONST_PrecursorToGoodInput&E$6&\"_\"&$D13,D_Processes!$T:$T)/SUMIF(D_Processes!$R:$R,CONST_CNTR_TotProd&$D13,D_Processes!$T:$T),0)","v":{"v":0,"d":"0.000"}},{"$f":"IFERROR(SUMIF(D_Processes!$R:$R,CONST_PrecursorToGoodInput&F$6&\"_\"&$D13,D_Processes!$T:$T)/SUMIF(D_Processes!$R:$R,CONST_CNTR_TotProd&$D13,D_Processes!$T:$T),0)","v":{"v":0,"d":"0.000"}},{"$f":"IFERROR(SUMIF(D_Processes!$R:$R,CONST_PrecursorToGoodInput&G$6&\"_\"&$D13,D_Processes!$T:$T)/SUMIF(D_Processes!$R:$R,CONST_CNTR_TotProd&$D13,D_Processes!$T:$T),0)","v":{"v":0,"d":"0.000"}},{"$f":"IFERROR(SUMIF(D_Processes!$R:$R,CONST_PrecursorToGoodInput&H$6&\"_\"&$D13,D_Processes!$T:$T)/SUMIF(D_Processes!$R:$R,CONST_CNTR_TotProd&$D13,D_Processes!$T:$T),0)","v":{"v":0,"d":"0.000"}},{"$f":"IFERROR(SUMIF(D_Processes!$R:$R,CONST_PrecursorToGoodInput&I$6&\"_\"&$D13,D_Processes!$T:$T)/SUMIF(D_Processes!$R:$R,CONST_CNTR_TotProd&$D13,D_Processes!$T:$T),0)","v":{"v":0,"d":"0.000"}},{"$f":"IFERROR(SUMIF(D_Processes!$R:$R,CONST_PrecursorToGoodInput&J$6&\"_\"&$D13,D_Processes!$T:$T)/SUMIF(D_Processes!$R:$R,CONST_CNTR_TotProd&$D13,D_Processes!$T:$T),0)","v":{"v":0,"d":"0.000"}},{"$f":"IFERROR(SUMIF(D_Processes!$R:$R,CONST_PrecursorToGoodInput&K$6&\"_\"&$D13,D_Processes!$T:$T)/SUMIF(D_Processes!$R:$R,CONST_CNTR_TotProd&$D13,D_Processes!$T:$T),0)","v":{"v":0,"d":"0.000"}},{"$f":"IFERROR(SUMIF(D_Processes!$R:$R,CONST_PrecursorToGoodInput&L$6&\"_\"&$D13,D_Processes!$T:$T)/SUMIF(D_Processes!$R:$R,CONST_CNTR_TotProd&$D13,D_Processes!$T:$T),0)","v":{"v":0,"d":"0.000"}},{"$f":"IFERROR(SUMIF(D_Processes!$R:$R,CONST_PrecursorToGoodInput&M$6&\"_\"&$D13,D_Processes!$T:$T)/SUMIF(D_Processes!$R:$R,CONST_CNTR_TotProd&$D13,D_Processes!$T:$T),0)","v":{"v":0,"d":"0.000"}},{"$f":"IFERROR(SUMIF(D_Processes!$R:$R,CONST_PrecursorToGoodInput&N$6&\"_\"&$D13,D_Processes!$T:$T)/SUMIF(D_Processes!$R:$R,CONST_CNTR_TotProd&$D13,D_Processes!$T:$T),0)","v":{"v":0,"d":"0.000"}},{"$f":"IFERROR(SUMIF(E_PurchPrec!$R:$R,CONST_PrecursorToGoodInput&O$6&\"_\"&$D13,E_PurchPrec!$T:$T)/SUMIF(D_Processes!$R:$R,CONST_CNTR_TotProd&$D13,D_Processes!$T:$T),0)","v":{"v":0,"d":"0.000"}},{"$f":"IFERROR(SUMIF(E_PurchPrec!$R:$R,CONST_PrecursorToGoodInput&P$6&\"_\"&$D13,E_PurchPrec!$T:$T)/SUMIF(D_Processes!$R:$R,CONST_CNTR_TotProd&$D13,D_Processes!$T:$T),0)","v":{"v":0,"d":"0.000"}},{"$f":"IFERROR(SUMIF(E_PurchPrec!$R:$R,CONST_PrecursorToGoodInput&Q$6&\"_\"&$D13,E_PurchPrec!$T:$T)/SUMIF(D_Processes!$R:$R,CONST_CNTR_TotProd&$D13,D_Processes!$T:$T),0)","v":{"v":0,"d":"0.000"}},{"$f":"IFERROR(SUMIF(E_PurchPrec!$R:$R,CONST_PrecursorToGoodInput&R$6&\"_\"&$D13,E_PurchPrec!$T:$T)/SUMIF(D_Processes!$R:$R,CONST_CNTR_TotProd&$D13,D_Processes!$T:$T),0)","v":{"v":0,"d":"0.000"}},{"$f":"IFERROR(SUMIF(E_PurchPrec!$R:$R,CONST_PrecursorToGoodInput&S$6&\"_\"&$D13,E_PurchPrec!$T:$T)/SUMIF(D_Processes!$R:$R,CONST_CNTR_TotProd&$D13,D_Processes!$T:$T),0)","v":{"v":0,"d":"0.000"}},{"$f":"IFERROR(SUMIF(E_PurchPrec!$R:$R,CONST_PrecursorToGoodInput&T$6&\"_\"&$D13,E_PurchPrec!$T:$T)/SUMIF(D_Processes!$R:$R,CONST_CNTR_TotProd&$D13,D_Processes!$T:$T),0)","v":{"v":0,"d":"0.000"}},{"$f":"IFERROR(SUMIF(E_PurchPrec!$R:$R,CONST_PrecursorToGoodInput&U$6&\"_\"&$D13,E_PurchPrec!$T:$T)/SUMIF(D_Processes!$R:$R,CONST_CNTR_TotProd&$D13,D_Processes!$T:$T),0)","v":{"v":0,"d":"0.000"}},{"$f":"IFERROR(SUMIF(E_PurchPrec!$R:$R,CONST_PrecursorToGoodInput&V$6&\"_\"&$D13,E_PurchPrec!$T:$T)/SUMIF(D_Processes!$R:$R,CONST_CNTR_TotProd&$D13,D_Processes!$T:$T),0)","v":{"v":0,"d":"0.000"}},{"$f":"IFERROR(SUMIF(E_PurchPrec!$R:$R,CONST_PrecursorToGoodInput&W$6&\"_\"&$D13,E_PurchPrec!$T:$T)/SUMIF(D_Processes!$R:$R,CONST_CNTR_TotProd&$D13,D_Processes!$T:$T),0)","v":{"v":0,"d":"0.000"}},{"$f":"IFERROR(SUMIF(E_PurchPrec!$R:$R,CONST_PrecursorToGoodInput&X$6&\"_\"&$D13,E_PurchPrec!$T:$T)/SUMIF(D_Processes!$R:$R,CONST_CNTR_TotProd&$D13,D_Processes!$T:$T),0)","v":{"v":0,"d":"0.000"}},{"$f":"IFERROR(SUMIF(E_PurchPrec!$R:$R,CONST_PrecursorToGoodInput&Y$6&\"_\"&$D13,E_PurchPrec!$T:$T)/SUMIF(D_Processes!$R:$R,CONST_CNTR_TotProd&$D13,D_Processes!$T:$T),0)","v":{"v":0,"d":"0.000"}},{"$f":"IFERROR(SUMIF(E_PurchPrec!$R:$R,CONST_PrecursorToGoodInput&Z$6&\"_\"&$D13,E_PurchPrec!$T:$T)/SUMIF(D_Processes!$R:$R,CONST_CNTR_TotProd&$D13,D_Processes!$T:$T),0)","v":{"v":0,"d":"0.000"}},{"$f":"IFERROR(SUMIF(E_PurchPrec!$R:$R,CONST_PrecursorToGoodInput&AA$6&\"_\"&$D13,E_PurchPrec!$T:$T)/SUMIF(D_Processes!$R:$R,CONST_CNTR_TotProd&$D13,D_Processes!$T:$T),0)","v":{"v":0,"d":"0.000"}},{"$f":"IFERROR(SUMIF(E_PurchPrec!$R:$R,CONST_PrecursorToGoodInput&AB$6&\"_\"&$D13,E_PurchPrec!$T:$T)/SUMIF(D_Processes!$R:$R,CONST_CNTR_TotProd&$D13,D_Processes!$T:$T),0)","v":{"v":0,"d":"0.000"}},{"$f":"IFERROR(SUMIF(E_PurchPrec!$R:$R,CONST_PrecursorToGoodInput&AC$6&\"_\"&$D13,E_PurchPrec!$T:$T)/SUMIF(D_Processes!$R:$R,CONST_CNTR_TotProd&$D13,D_Processes!$T:$T),0)","v":{"v":0,"d":"0.000"}},{"$f":"IFERROR(SUMIF(E_PurchPrec!$R:$R,CONST_PrecursorToGoodInput&AD$6&\"_\"&$D13,E_PurchPrec!$T:$T)/SUMIF(D_Processes!$R:$R,CONST_CNTR_TotProd&$D13,D_Processes!$T:$T),0)","v":{"v":0,"d":"0.000"}},{"$f":"IFERROR(SUMIF(E_PurchPrec!$R:$R,CONST_PrecursorToGoodInput&AE$6&\"_\"&$D13,E_PurchPrec!$T:$T)/SUMIF(D_Processes!$R:$R,CONST_CNTR_TotProd&$D13,D_Processes!$T:$T),0)","v":{"v":0,"d":"0.000"}},{"$f":"IFERROR(SUMIF(E_PurchPrec!$R:$R,CONST_PrecursorToGoodInput&AF$6&\"_\"&$D13,E_PurchPrec!$T:$T)/SUMIF(D_Processes!$R:$R,CONST_CNTR_TotProd&$D13,D_Processes!$T:$T),0)","v":{"v":0,"d":"0.000"}},{"$f":"IFERROR(SUMIF(E_PurchPrec!$R:$R,CONST_PrecursorToGoodInput&AG$6&\"_\"&$D13,E_PurchPrec!$T:$T)/SUMIF(D_Processes!$R:$R,CONST_CNTR_TotProd&$D13,D_Processes!$T:$T),0)","v":{"v":0,"d":"0.000"}},{"$f":"IFERROR(SUMIF(E_PurchPrec!$R:$R,CONST_PrecursorToGoodInput&AH$6&\"_\"&$D13,E_PurchPrec!$T:$T)/SUMIF(D_Processes!$R:$R,CONST_CNTR_TotProd&$D13,D_Processes!$T:$T),0)","v":{"v":0,"d":"0.000"}}]
[null,null,8,"",{"$f":"IFERROR(SUMIF(D_Processes!$R:$R,CONST_PrecursorToGoodInput&E$6&\"_\"&$D14,D_Processes!$T:$T)/SUMIF(D_Processes!$R:$R,CONST_CNTR_TotProd&$D14,D_Processes!$T:$T),0)","v":{"v":0,"d":"0.000"}},{"$f":"IFERROR(SUMIF(D_Processes!$R:$R,CONST_PrecursorToGoodInput&F$6&\"_\"&$D14,D_Processes!$T:$T)/SUMIF(D_Processes!$R:$R,CONST_CNTR_TotProd&$D14,D_Processes!$T:$T),0)","v":{"v":0,"d":"0.000"}},{"$f":"IFERROR(SUMIF(D_Processes!$R:$R,CONST_PrecursorToGoodInput&G$6&\"_\"&$D14,D_Processes!$T:$T)/SUMIF(D_Processes!$R:$R,CONST_CNTR_TotProd&$D14,D_Processes!$T:$T),0)","v":{"v":0,"d":"0.000"}},{"$f":"IFERROR(SUMIF(D_Processes!$R:$R,CONST_PrecursorToGoodInput&H$6&\"_\"&$D14,D_Processes!$T:$T)/SUMIF(D_Processes!$R:$R,CONST_CNTR_TotProd&$D14,D_Processes!$T:$T),0)","v":{"v":0,"d":"0.000"}},{"$f":"IFERROR(SUMIF(D_Processes!$R:$R,CONST_PrecursorToGoodInput&I$6&\"_\"&$D14,D_Processes!$T:$T)/SUMIF(D_Processes!$R:$R,CONST_CNTR_TotProd&$D14,D_Processes!$T:$T),0)","v":{"v":0,"d":"0.000"}},{"$f":"IFERROR(SUMIF(D_Processes!$R:$R,CONST_PrecursorToGoodInput&J$6&\"_\"&$D14,D_Processes!$T:$T)/SUMIF(D_Processes!$R:$R,CONST_CNTR_TotProd&$D14,D_Processes!$T:$T),0)","v":{"v":0,"d":"0.000"}},{"$f":"IFERROR(SUMIF(D_Processes!$R:$R,CONST_PrecursorToGoodInput&K$6&\"_\"&$D14,D_Processes!$T:$T)/SUMIF(D_Processes!$R:$R,CONST_CNTR_TotProd&$D14,D_Processes!$T:$T),0)","v":{"v":0,"d":"0.000"}},{"$f":"IFERROR(SUMIF(D_Processes!$R:$R,CONST_PrecursorToGoodInput&L$6&\"_\"&$D14,D_Processes!$T:$T)/SUMIF(D_Processes!$R:$R,CONST_CNTR_TotProd&$D14,D_Processes!$T:$T),0)","v":{"v":0,"d":"0.000"}},{"$f":"IFERROR(SUMIF(D_Processes!$R:$R,CONST_PrecursorToGoodInput&M$6&\"_\"&$D14,D_Processes!$T:$T)/SUMIF(D_Processes!$R:$R,CONST_CNTR_TotProd&$D14,D_Processes!$T:$T),0)","v":{"v":0,"d":"0.000"}},{"$f":"IFERROR(SUMIF(D_Processes!$R:$R,CONST_PrecursorToGoodInput&N$6&\"_\"&$D14,D_Processes!$T:$T)/SUMIF(D_Processes!$R:$R,CONST_CNTR_TotProd&$D14,D_Processes!$T:$T),0)","v":{"v":0,"d":"0.000"}},{"$f":"IFERROR(SUMIF(E_PurchPrec!$R:$R,CONST_PrecursorToGoodInput&O$6&\"_\"&$D14,E_PurchPrec!$T:$T)/SUMIF(D_Processes!$R:$R,CONST_CNTR_TotProd&$D14,D_Processes!$T:$T),0)","v":{"v":0,"d":"0.000"}},{"$f":"IFERROR(SUMIF(E_PurchPrec!$R:$R,CONST_PrecursorToGoodInput&P$6&\"_\"&$D14,E_PurchPrec!$T:$T)/SUMIF(D_Processes!$R:$R,CONST_CNTR_TotProd&$D14,D_Processes!$T:$T),0)","v":{"v":0,"d":"0.000"}},{"$f":"IFERROR(SUMIF(E_PurchPrec!$R:$R,CONST_PrecursorToGoodInput&Q$6&\"_\"&$D14,E_PurchPrec!$T:$T)/SUMIF(D_Processes!$R:$R,CONST_CNTR_TotProd&$D14,D_Processes!$T:$T),0)","v":{"v":0,"d":"0.000"}},{"$f":"IFERROR(SUMIF(E_PurchPrec!$R:$R,CONST_PrecursorToGoodInput&R$6&\"_\"&$D14,E_PurchPrec!$T:$T)/SUMIF(D_Processes!$R:$R,CONST_CNTR_TotProd&$D14,D_Processes!$T:$T),0)","v":{"v":0,"d":"0.000"}},{"$f":"IFERROR(SUMIF(E_PurchPrec!$R:$R,CONST_PrecursorToGoodInput&S$6&\"_\"&$D14,E_PurchPrec!$T:$T)/SUMIF(D_Processes!$R:$R,CONST_CNTR_TotProd&$D14,D_Processes!$T:$T),0)","v":{"v":0,"d":"0.000"}},{"$f":"IFERROR(SUMIF(E_PurchPrec!$R:$R,CONST_PrecursorToGoodInput&T$6&\"_\"&$D14,E_PurchPrec!$T:$T)/SUMIF(D_Processes!$R:$R,CONST_CNTR_TotProd&$D14,D_Processes!$T:$T),0)","v":{"v":0,"d":"0.000"}},{"$f":"IFERROR(SUMIF(E_PurchPrec!$R:$R,CONST_PrecursorToGoodInput&U$6&\"_\"&$D14,E_PurchPrec!$T:$T)/SUMIF(D_Processes!$R:$R,CONST_CNTR_TotProd&$D14,D_Processes!$T:$T),0)","v":{"v":0,"d":"0.000"}},{"$f":"IFERROR(SUMIF(E_PurchPrec!$R:$R,CONST_PrecursorToGoodInput&V$6&\"_\"&$D14,E_PurchPrec!$T:$T)/SUMIF(D_Processes!$R:$R,CONST_CNTR_TotProd&$D14,D_Processes!$T:$T),0)","v":{"v":0,"d":"0.000"}},{"$f":"IFERROR(SUMIF(E_PurchPrec!$R:$R,CONST_PrecursorToGoodInput&W$6&\"_\"&$D14,E_PurchPrec!$T:$T)/SUMIF(D_Processes!$R:$R,CONST_CNTR_TotProd&$D14,D_Processes!$T:$T),0)","v":{"v":0,"d":"0.000"}},{"$f":"IFERROR(SUMIF(E_PurchPrec!$R:$R,CONST_PrecursorToGoodInput&X$6&\"_\"&$D14,E_PurchPrec!$T:$T)/SUMIF(D_Processes!$R:$R,CONST_CNTR_TotProd&$D14,D_Processes!$T:$T),0)","v":{"v":0,"d":"0.000"}},{"$f":"IFERROR(SUMIF(E_PurchPrec!$R:$R,CONST_PrecursorToGoodInput&Y$6&\"_\"&$D14,E_PurchPrec!$T:$T)/SUMIF(D_Processes!$R:$R,CONST_CNTR_TotProd&$D14,D_Processes!$T:$T),0)","v":{"v":0,"d":"0.000"}},{"$f":"IFERROR(SUMIF(E_PurchPrec!$R:$R,CONST_PrecursorToGoodInput&Z$6&\"_\"&$D14,E_PurchPrec!$T:$T)/SUMIF(D_Processes!$R:$R,CONST_CNTR_TotProd&$D14,D_Processes!$T:$T),0)","v":{"v":0,"d":"0.000"}},{"$f":"IFERROR(SUMIF(E_PurchPrec!$R:$R,CONST_PrecursorToGoodInput&AA$6&\"_\"&$D14,E_PurchPrec!$T:$T)/SUMIF(D_Processes!$R:$R,CONST_CNTR_TotProd&$D14,D_Processes!$T:$T),0)","v":{"v":0,"d":"0.000"}},{"$f":"IFERROR(SUMIF(E_PurchPrec!$R:$R,CONST_PrecursorToGoodInput&AB$6&\"_\"&$D14,E_PurchPrec!$T:$T)/SUMIF(D_Processes!$R:$R,CONST_CNTR_TotProd&$D14,D_Processes!$T:$T),0)","v":{"v":0,"d":"0.000"}},{"$f":"IFERROR(SUMIF(E_PurchPrec!$R:$R,CONST_PrecursorToGoodInput&AC$6&\"_\"&$D14,E_PurchPrec!$T:$T)/SUMIF(D_Processes!$R:$R,CONST_CNTR_TotProd&$D14,D_Processes!$T:$T),0)","v":{"v":0,"d":"0.000"}},{"$f":"IFERROR(SUMIF(E_PurchPrec!$R:$R,CONST_PrecursorToGoodInput&AD$6&\"_\"&$D14,E_PurchPrec!$T:$T)/SUMIF(D_Processes!$R:$R,CONST_CNTR_TotProd&$D14,D_Processes!$T:$T),0)","v":{"v":0,"d":"0.000"}},{"$f":"IFERROR(SUMIF(E_PurchPrec!$R:$R,CONST_PrecursorToGoodInput&AE$6&\"_\"&$D14,E_PurchPrec!$T:$T)/SUMIF(D_Processes!$R:$R,CONST_CNTR_TotProd&$D14,D_Processes!$T:$T),0)","v":{"v":0,"d":"0.000"}},{"$f":"IFERROR(SUMIF(E_PurchPrec!$R:$R,CONST_PrecursorToGoodInput&AF$6&\"_\"&$D14,E_PurchPrec!$T:$T)/SUMIF(D_Processes!$R:$R,CONST_CNTR_TotProd&$D14,D_Processes!$T:$T),0)","v":{"v":0,"d":"0.000"}},{"$f":"IFERROR(SUMIF(E_PurchPrec!$R:$R,CONST_PrecursorToGoodInput&AG$6&\"_\"&$D14,E_PurchPrec!$T:$T)/SUMIF(D_Processes!$R:$R,CONST_CNTR_TotProd&$D14,D_Processes!$T:$T),0)","v":{"v":0,"d":"0.000"}},{"$f":"IFERROR(SUMIF(E_PurchPrec!$R:$R,CONST_PrecursorToGoodInput&AH$6&\"_\"&$D14,E_PurchPrec!$T:$T)/SUMIF(D_Processes!$R:$R,CONST_CNTR_TotProd&$D14,D_Processes!$T:$T),0)","v":{"v":0,"d":"0.000"}}]
[null,null,9,"",{"$f":"IFERROR(SUMIF(D_Processes!$R:$R,CONST_PrecursorToGoodInput&E$6&\"_\"&$D15,D_Processes!$T:$T)/SUMIF(D_Processes!$R:$R,CONST_CNTR_TotProd&$D15,D_Processes!$T:$T),0)","v":{"v":0,"d":"0.000"}},{"$f":"IFERROR(SUMIF(D_Processes!$R:$R,CONST_PrecursorToGoodInput&F$6&\"_\"&$D15,D_Processes!$T:$T)/SUMIF(D_Processes!$R:$R,CONST_CNTR_TotProd&$D15,D_Processes!$T:$T),0)","v":{"v":0,"d":"0.000"}},{"$f":"IFERROR(SUMIF(D_Processes!$R:$R,CONST_PrecursorToGoodInput&G$6&\"_\"&$D15,D_Processes!$T:$T)/SUMIF(D_Processes!$R:$R,CONST_CNTR_TotProd&$D15,D_Processes!$T:$T),0)","v":{"v":0,"d":"0.000"}},{"$f":"IFERROR(SUMIF(D_Processes!$R:$R,CONST_PrecursorToGoodInput&H$6&\"_\"&$D15,D_Processes!$T:$T)/SUMIF(D_Processes!$R:$R,CONST_CNTR_TotProd&$D15,D_Processes!$T:$T),0)","v":{"v":0,"d":"0.000"}},{"$f":"IFERROR(SUMIF(D_Processes!$R:$R,CONST_PrecursorToGoodInput&I$6&\"_\"&$D15,D_Processes!$T:$T)/SUMIF(D_Processes!$R:$R,CONST_CNTR_TotProd&$D15,D_Processes!$T:$T),0)","v":{"v":0,"d":"0.000"}},{"$f":"IFERROR(SUMIF(D_Processes!$R:$R,CONST_PrecursorToGoodInput&J$6&\"_\"&$D15,D_Processes!$T:$T)/SUMIF(D_Processes!$R:$R,CONST_CNTR_TotProd&$D15,D_Processes!$T:$T),0)","v":{"v":0,"d":"0.000"}},{"$f":"IFERROR(SUMIF(D_Processes!$R:$R,CONST_PrecursorToGoodInput&K$6&\"_\"&$D15,D_Processes!$T:$T)/SUMIF(D_Processes!$R:$R,CONST_CNTR_TotProd&$D15,D_Processes!$T:$T),0)","v":{"v":0,"d":"0.000"}},{"$f":"IFERROR(SUMIF(D_Processes!$R:$R,CONST_PrecursorToGoodInput&L$6&\"_\"&$D15,D_Processes!$T:$T)/SUMIF(D_Processes!$R:$R,CONST_CNTR_TotProd&$D15,D_Processes!$T:$T),0)","v":{"v":0,"d":"0.000"}},{"$f":"IFERROR(SUMIF(D_Processes!$R:$R,CONST_PrecursorToGoodInput&M$6&\"_\"&$D15,D_Processes!$T:$T)/SUMIF(D_Processes!$R:$R,CONST_CNTR_TotProd&$D15,D_Processes!$T:$T),0)","v":{"v":0,"d":"0.000"}},{"$f":"IFERROR(SUMIF(D_Processes!$R:$R,CONST_PrecursorToGoodInput&N$6&\"_\"&$D15,D_Processes!$T:$T)/SUMIF(D_Processes!$R:$R,CONST_CNTR_TotProd&$D15,D_Processes!$T:$T),0)","v":{"v":0,"d":"0.000"}},{"$f":"IFERROR(SUMIF(E_PurchPrec!$R:$R,CONST_PrecursorToGoodInput&O$6&\"_\"&$D15,E_PurchPrec!$T:$T)/SUMIF(D_Processes!$R:$R,CONST_CNTR_TotProd&$D15,D_Processes!$T:$T),0)","v":{"v":0,"d":"0.000"}},{"$f":"IFERROR(SUMIF(E_PurchPrec!$R:$R,CONST_PrecursorToGoodInput&P$6&\"_\"&$D15,E_PurchPrec!$T:$T)/SUMIF(D_Processes!$R:$R,CONST_CNTR_TotProd&$D15,D_Processes!$T:$T),0)","v":{"v":0,"d":"0.000"}},{"$f":"IFERROR(SUMIF(E_PurchPrec!$R:$R,CONST_PrecursorToGoodInput&Q$6&\"_\"&$D15,E_PurchPrec!$T:$T)/SUMIF(D_Processes!$R:$R,CONST_CNTR_TotProd&$D15,D_Processes!$T:$T),0)","v":{"v":0,"d":"0.000"}},{"$f":"IFERROR(SUMIF(E_PurchPrec!$R:$R,CONST_PrecursorToGoodInput&R$6&\"_\"&$D15,E_PurchPrec!$T:$T)/SUMIF(D_Processes!$R:$R,CONST_CNTR_TotProd&$D15,D_Processes!$T:$T),0)","v":{"v":0,"d":"0.000"}},{"$f":"IFERROR(SUMIF(E_PurchPrec!$R:$R,CONST_PrecursorToGoodInput&S$6&\"_\"&$D15,E_PurchPrec!$T:$T)/SUMIF(D_Processes!$R:$R,CONST_CNTR_TotProd&$D15,D_Processes!$T:$T),0)","v":{"v":0,"d":"0.000"}},{"$f":"IFERROR(SUMIF(E_PurchPrec!$R:$R,CONST_PrecursorToGoodInput&T$6&\"_\"&$D15,E_PurchPrec!$T:$T)/SUMIF(D_Processes!$R:$R,CONST_CNTR_TotProd&$D15,D_Processes!$T:$T),0)","v":{"v":0,"d":"0.000"}},{"$f":"IFERROR(SUMIF(E_PurchPrec!$R:$R,CONST_PrecursorToGoodInput&U$6&\"_\"&$D15,E_PurchPrec!$T:$T)/SUMIF(D_Processes!$R:$R,CONST_CNTR_TotProd&$D15,D_Processes!$T:$T),0)","v":{"v":0,"d":"0.000"}},{"$f":"IFERROR(SUMIF(E_PurchPrec!$R:$R,CONST_PrecursorToGoodInput&V$6&\"_\"&$D15,E_PurchPrec!$T:$T)/SUMIF(D_Processes!$R:$R,CONST_CNTR_TotProd&$D15,D_Processes!$T:$T),0)","v":{"v":0,"d":"0.000"}},{"$f":"IFERROR(SUMIF(E_PurchPrec!$R:$R,CONST_PrecursorToGoodInput&W$6&\"_\"&$D15,E_PurchPrec!$T:$T)/SUMIF(D_Processes!$R:$R,CONST_CNTR_TotProd&$D15,D_Processes!$T:$T),0)","v":{"v":0,"d":"0.000"}},{"$f":"IFERROR(SUMIF(E_PurchPrec!$R:$R,CONST_PrecursorToGoodInput&X$6&\"_\"&$D15,E_PurchPrec!$T:$T)/SUMIF(D_Processes!$R:$R,CONST_CNTR_TotProd&$D15,D_Processes!$T:$T),0)","v":{"v":0,"d":"0.000"}},{"$f":"IFERROR(SUMIF(E_PurchPrec!$R:$R,CONST_PrecursorToGoodInput&Y$6&\"_\"&$D15,E_PurchPrec!$T:$T)/SUMIF(D_Processes!$R:$R,CONST_CNTR_TotProd&$D15,D_Processes!$T:$T),0)","v":{"v":0,"d":"0.000"}},{"$f":"IFERROR(SUMIF(E_PurchPrec!$R:$R,CONST_PrecursorToGoodInput&Z$6&\"_\"&$D15,E_PurchPrec!$T:$T)/SUMIF(D_Processes!$R:$R,CONST_CNTR_TotProd&$D15,D_Processes!$T:$T),0)","v":{"v":0,"d":"0.000"}},{"$f":"IFERROR(SUMIF(E_PurchPrec!$R:$R,CONST_PrecursorToGoodInput&AA$6&\"_\"&$D15,E_PurchPrec!$T:$T)/SUMIF(D_Processes!$R:$R,CONST_CNTR_TotProd&$D15,D_Processes!$T:$T),0)","v":{"v":0,"d":"0.000"}},{"$f":"IFERROR(SUMIF(E_PurchPrec!$R:$R,CONST_PrecursorToGoodInput&AB$6&\"_\"&$D15,E_PurchPrec!$T:$T)/SUMIF(D_Processes!$R:$R,CONST_CNTR_TotProd&$D15,D_Processes!$T:$T),0)","v":{"v":0,"d":"0.000"}},{"$f":"IFERROR(SUMIF(E_PurchPrec!$R:$R,CONST_PrecursorToGoodInput&AC$6&\"_\"&$D15,E_PurchPrec!$T:$T)/SUMIF(D_Processes!$R:$R,CONST_CNTR_TotProd&$D15,D_Processes!$T:$T),0)","v":{"v":0,"d":"0.000"}},{"$f":"IFERROR(SUMIF(E_PurchPrec!$R:$R,CONST_PrecursorToGoodInput&AD$6&\"_\"&$D15,E_PurchPrec!$T:$T)/SUMIF(D_Processes!$R:$R,CONST_CNTR_TotProd&$D15,D_Processes!$T:$T),0)","v":{"v":0,"d":"0.000"}},{"$f":"IFERROR(SUMIF(E_PurchPrec!$R:$R,CONST_PrecursorToGoodInput&AE$6&\"_\"&$D15,E_PurchPrec!$T:$T)/SUMIF(D_Processes!$R:$R,CONST_CNTR_TotProd&$D15,D_Processes!$T:$T),0)","v":{"v":0,"d":"0.000"}},{"$f":"IFERROR(SUMIF(E_PurchPrec!$R:$R,CONST_PrecursorToGoodInput&AF$6&\"_\"&$D15,E_PurchPrec!$T:$T)/SUMIF(D_Processes!$R:$R,CONST_CNTR_TotProd&$D15,D_Processes!$T:$T),0)","v":{"v":0,"d":"0.000"}},{"$f":"IFERROR(SUMIF(E_PurchPrec!$R:$R,CONST_PrecursorToGoodInput&AG$6&\"_\"&$D15,E_PurchPrec!$T:$T)/SUMIF(D_Processes!$R:$R,CONST_CNTR_TotProd&$D15,D_Processes!$T:$T),0)","v":{"v":0,"d":"0.000"}},{"$f":"IFERROR(SUMIF(E_PurchPrec!$R:$R,CONST_PrecursorToGoodInput&AH$6&\"_\"&$D15,E_PurchPrec!$T:$T)/SUMIF(D_Processes!$R:$R,CONST_CNTR_TotProd&$D15,D_Processes!$T:$T),0)","v":{"v":0,"d":"0.000"}}]
[null,null,10,"",{"$f":"IFERROR(SUMIF(D_Processes!$R:$R,CONST_PrecursorToGoodInput&E$6&\"_\"&$D16,D_Processes!$T:$T)/SUMIF(D_Processes!$R:$R,CONST_CNTR_TotProd&$D16,D_Processes!$T:$T),0)","v":{"v":0,"d":"0.000"}},{"$f":"IFERROR(SUMIF(D_Processes!$R:$R,CONST_PrecursorToGoodInput&F$6&\"_\"&$D16,D_Processes!$T:$T)/SUMIF(D_Processes!$R:$R,CONST_CNTR_TotProd&$D16,D_Processes!$T:$T),0)","v":{"v":0,"d":"0.000"}},{"$f":"IFERROR(SUMIF(D_Processes!$R:$R,CONST_PrecursorToGoodInput&G$6&\"_\"&$D16,D_Processes!$T:$T)/SUMIF(D_Processes!$R:$R,CONST_CNTR_TotProd&$D16,D_Processes!$T:$T),0)","v":{"v":0,"d":"0.000"}},{"$f":"IFERROR(SUMIF(D_Processes!$R:$R,CONST_PrecursorToGoodInput&H$6&\"_\"&$D16,D_Processes!$T:$T)/SUMIF(D_Processes!$R:$R,CONST_CNTR_TotProd&$D16,D_Processes!$T:$T),0)","v":{"v":0,"d":"0.000"}},{"$f":"IFERROR(SUMIF(D_Processes!$R:$R,CONST_PrecursorToGoodInput&I$6&\"_\"&$D16,D_Processes!$T:$T)/SUMIF(D_Processes!$R:$R,CONST_CNTR_TotProd&$D16,D_Processes!$T:$T),0)","v":{"v":0,"d":"0.000"}},{"$f":"IFERROR(SUMIF(D_Processes!$R:$R,CONST_PrecursorToGoodInput&J$6&\"_\"&$D16,D_Processes!$T:$T)/SUMIF(D_Processes!$R:$R,CONST_CNTR_TotProd&$D16,D_Processes!$T:$T),0)","v":{"v":0,"d":"0.000"}},{"$f":"IFERROR(SUMIF(D_Processes!$R:$R,CONST_PrecursorToGoodInput&K$6&\"_\"&$D16,D_Processes!$T:$T)/SUMIF(D_Processes!$R:$R,CONST_CNTR_TotProd&$D16,D_Processes!$T:$T),0)","v":{"v":0,"d":"0.000"}},{"$f":"IFERROR(SUMIF(D_Processes!$R:$R,CONST_PrecursorToGoodInput&L$6&\"_\"&$D16,D_Processes!$T:$T)/SUMIF(D_Processes!$R:$R,CONST_CNTR_TotProd&$D16,D_Processes!$T:$T),0)","v":{"v":0,"d":"0.000"}},{"$f":"IFERROR(SUMIF(D_Processes!$R:$R,CONST_PrecursorToGoodInput&M$6&\"_\"&$D16,D_Processes!$T:$T)/SUMIF(D_Processes!$R:$R,CONST_CNTR_TotProd&$D16,D_Processes!$T:$T),0)","v":{"v":0,"d":"0.000"}},{"$f":"IFERROR(SUMIF(D_Processes!$R:$R,CONST_PrecursorToGoodInput&N$6&\"_\"&$D16,D_Processes!$T:$T)/SUMIF(D_Processes!$R:$R,CONST_CNTR_TotProd&$D16,D_Processes!$T:$T),0)","v":{"v":0,"d":"0.000"}},{"$f":"IFERROR(SUMIF(E_PurchPrec!$R:$R,CONST_PrecursorToGoodInput&O$6&\"_\"&$D16,E_PurchPrec!$T:$T)/SUMIF(D_Processes!$R:$R,CONST_CNTR_TotProd&$D16,D_Processes!$T:$T),0)","v":{"v":0,"d":"0.000"}},{"$f":"IFERROR(SUMIF(E_PurchPrec!$R:$R,CONST_PrecursorToGoodInput&P$6&\"_\"&$D16,E_PurchPrec!$T:$T)/SUMIF(D_Processes!$R:$R,CONST_CNTR_TotProd&$D16,D_Processes!$T:$T),0)","v":{"v":0,"d":"0.000"}},{"$f":"IFERROR(SUMIF(E_PurchPrec!$R:$R,CONST_PrecursorToGoodInput&Q$6&\"_\"&$D16,E_PurchPrec!$T:$T)/SUMIF(D_Processes!$R:$R,CONST_CNTR_TotProd&$D16,D_Processes!$T:$T),0)","v":{"v":0,"d":"0.000"}},{"$f":"IFERROR(SUMIF(E_PurchPrec!$R:$R,CONST_PrecursorToGoodInput&R$6&\"_\"&$D16,E_PurchPrec!$T:$T)/SUMIF(D_Processes!$R:$R,CONST_CNTR_TotProd&$D16,D_Processes!$T:$T),0)","v":{"v":0,"d":"0.000"}},{"$f":"IFERROR(SUMIF(E_PurchPrec!$R:$R,CONST_PrecursorToGoodInput&S$6&\"_\"&$D16,E_PurchPrec!$T:$T)/SUMIF(D_Processes!$R:$R,CONST_CNTR_TotProd&$D16,D_Processes!$T:$T),0)","v":{"v":0,"d":"0.000"}},{"$f":"IFERROR(SUMIF(E_PurchPrec!$R:$R,CONST_PrecursorToGoodInput&T$6&\"_\"&$D16,E_PurchPrec!$T:$T)/SUMIF(D_Processes!$R:$R,CONST_CNTR_TotProd&$D16,D_Processes!$T:$T),0)","v":{"v":0,"d":"0.000"}},{"$f":"IFERROR(SUMIF(E_PurchPrec!$R:$R,CONST_PrecursorToGoodInput&U$6&\"_\"&$D16,E_PurchPrec!$T:$T)/SUMIF(D_Processes!$R:$R,CONST_CNTR_TotProd&$D16,D_Processes!$T:$T),0)","v":{"v":0,"d":"0.000"}},{"$f":"IFERROR(SUMIF(E_PurchPrec!$R:$R,CONST_PrecursorToGoodInput&V$6&\"_\"&$D16,E_PurchPrec!$T:$T)/SUMIF(D_Processes!$R:$R,CONST_CNTR_TotProd&$D16,D_Processes!$T:$T),0)","v":{"v":0,"d":"0.000"}},{"$f":"IFERROR(SUMIF(E_PurchPrec!$R:$R,CONST_PrecursorToGoodInput&W$6&\"_\"&$D16,E_PurchPrec!$T:$T)/SUMIF(D_Processes!$R:$R,CONST_CNTR_TotProd&$D16,D_Processes!$T:$T),0)","v":{"v":0,"d":"0.000"}},{"$f":"IFERROR(SUMIF(E_PurchPrec!$R:$R,CONST_PrecursorToGoodInput&X$6&\"_\"&$D16,E_PurchPrec!$T:$T)/SUMIF(D_Processes!$R:$R,CONST_CNTR_TotProd&$D16,D_Processes!$T:$T),0)","v":{"v":0,"d":"0.000"}},{"$f":"IFERROR(SUMIF(E_PurchPrec!$R:$R,CONST_PrecursorToGoodInput&Y$6&\"_\"&$D16,E_PurchPrec!$T:$T)/SUMIF(D_Processes!$R:$R,CONST_CNTR_TotProd&$D16,D_Processes!$T:$T),0)","v":{"v":0,"d":"0.000"}},{"$f":"IFERROR(SUMIF(E_PurchPrec!$R:$R,CONST_PrecursorToGoodInput&Z$6&\"_\"&$D16,E_PurchPrec!$T:$T)/SUMIF(D_Processes!$R:$R,CONST_CNTR_TotProd&$D16,D_Processes!$T:$T),0)","v":{"v":0,"d":"0.000"}},{"$f":"IFERROR(SUMIF(E_PurchPrec!$R:$R,CONST_PrecursorToGoodInput&AA$6&\"_\"&$D16,E_PurchPrec!$T:$T)/SUMIF(D_Processes!$R:$R,CONST_CNTR_TotProd&$D16,D_Processes!$T:$T),0)","v":{"v":0,"d":"0.000"}},{"$f":"IFERROR(SUMIF(E_PurchPrec!$R:$R,CONST_PrecursorToGoodInput&AB$6&\"_\"&$D16,E_PurchPrec!$T:$T)/SUMIF(D_Processes!$R:$R,CONST_CNTR_TotProd&$D16,D_Processes!$T:$T),0)","v":{"v":0,"d":"0.000"}},{"$f":"IFERROR(SUMIF(E_PurchPrec!$R:$R,CONST_PrecursorToGoodInput&AC$6&\"_\"&$D16,E_PurchPrec!$T:$T)/SUMIF(D_Processes!$R:$R,CONST_CNTR_TotProd&$D16,D_Processes!$T:$T),0)","v":{"v":0,"d":"0.000"}},{"$f":"IFERROR(SUMIF(E_PurchPrec!$R:$R,CONST_PrecursorToGoodInput&AD$6&\"_\"&$D16,E_PurchPrec!$T:$T)/SUMIF(D_Processes!$R:$R,CONST_CNTR_TotProd&$D16,D_Processes!$T:$T),0)","v":{"v":0,"d":"0.000"}},{"$f":"IFERROR(SUMIF(E_PurchPrec!$R:$R,CONST_PrecursorToGoodInput&AE$6&\"_\"&$D16,E_PurchPrec!$T:$T)/SUMIF(D_Processes!$R:$R,CONST_CNTR_TotProd&$D16,D_Processes!$T:$T),0)","v":{"v":0,"d":"0.000"}},{"$f":"IFERROR(SUMIF(E_PurchPrec!$R:$R,CONST_PrecursorToGoodInput&AF$6&\"_\"&$D16,E_PurchPrec!$T:$T)/SUMIF(D_Processes!$R:$R,CONST_CNTR_TotProd&$D16,D_Processes!$T:$T),0)","v":{"v":0,"d":"0.000"}},{"$f":"IFERROR(SUMIF(E_PurchPrec!$R:$R,CONST_PrecursorToGoodInput&AG$6&\"_\"&$D16,E_PurchPrec!$T:$T)/SUMIF(D_Processes!$R:$R,CONST_CNTR_TotProd&$D16,D_Processes!$T:$T),0)","v":{"v":0,"d":"0.000"}},{"$f":"IFERROR(SUMIF(E_PurchPrec!$R:$R,CONST_PrecursorToGoodInput&AH$6&\"_\"&$D16,E_PurchPrec!$T:$T)/SUMIF(D_Processes!$R:$R,CONST_CNTR_TotProd&$D16,D_Processes!$T:$T),0)","v":{"v":0,"d":"0.000"}}]
[null,{"$f":"Translations!$B$630","v":"Precursors"},1,{"$f":"IF(INDEX(CNTR_List_ExistPurchPrecNames,C17)=CONST_NA,\"\",INDEX(CNTR_List_ExistPurchPrecNames,C17))","v":""},{"$f":"IFERROR(SUMIF(E_PurchPrec!$R:$R,CONST_PrecursorToGoodInput&E$6&\"_\"&$D17,E_PurchPrec!$T:$T)/SUMIF(D_Processes!$R:$R,CONST_CNTR_TotProd&$D17,D_Processes!$T:$T),0)","v":{"v":0,"d":"0.000"}},{"$f":"IFERROR(SUMIF(E_PurchPrec!$R:$R,CONST_PrecursorToGoodInput&F$6&\"_\"&$D17,E_PurchPrec!$T:$T)/SUMIF(D_Processes!$R:$R,CONST_CNTR_TotProd&$D17,D_Processes!$T:$T),0)","v":{"v":0,"d":"0.000"}},{"$f":"IFERROR(SUMIF(E_PurchPrec!$R:$R,CONST_PrecursorToGoodInput&G$6&\"_\"&$D17,E_PurchPrec!$T:$T)/SUMIF(D_Processes!$R:$R,CONST_CNTR_TotProd&$D17,D_Processes!$T:$T),0)","v":{"v":0,"d":"0.000"}},{"$f":"IFERROR(SUMIF(E_PurchPrec!$R:$R,CONST_PrecursorToGoodInput&H$6&\"_\"&$D17,E_PurchPrec!$T:$T)/SUMIF(D_Processes!$R:$R,CONST_CNTR_TotProd&$D17,D_Processes!$T:$T),0)","v":{"v":0,"d":"0.000"}},{"$f":"IFERROR(SUMIF(E_PurchPrec!$R:$R,CONST_PrecursorToGoodInput&I$6&\"_\"&$D17,E_PurchPrec!$T:$T)/SUMIF(D_Processes!$R:$R,CONST_CNTR_TotProd&$D17,D_Processes!$T:$T),0)","v":{"v":0,"d":"0.000"}},{"$f":"IFERROR(SUMIF(E_PurchPrec!$R:$R,CONST_PrecursorToGoodInput&J$6&\"_\"&$D17,E_PurchPrec!$T:$T)/SUMIF(D_Processes!$R:$R,CONST_CNTR_TotProd&$D17,D_Processes!$T:$T),0)","v":{"v":0,"d":"0.000"}},{"$f":"IFERROR(SUMIF(E_PurchPrec!$R:$R,CONST_PrecursorToGoodInput&K$6&\"_\"&$D17,E_PurchPrec!$T:$T)/SUMIF(D_Processes!$R:$R,CONST_CNTR_TotProd&$D17,D_Processes!$T:$T),0)","v":{"v":0,"d":"0.000"}},{"$f":"IFERROR(SUMIF(E_PurchPrec!$R:$R,CONST_PrecursorToGoodInput&L$6&\"_\"&$D17,E_PurchPrec!$T:$T)/SUMIF(D_Processes!$R:$R,CONST_CNTR_TotProd&$D17,D_Processes!$T:$T),0)","v":{"v":0,"d":"0.000"}},{"$f":"IFERROR(SUMIF(E_PurchPrec!$R:$R,CONST_PrecursorToGoodInput&M$6&\"_\"&$D17,E_PurchPrec!$T:$T)/SUMIF(D_Processes!$R:$R,CONST_CNTR_TotProd&$D17,D_Processes!$T:$T),0)","v":{"v":0,"d":"0.000"}},{"$f":"IFERROR(SUMIF(E_PurchPrec!$R:$R,CONST_PrecursorToGoodInput&N$6&\"_\"&$D17,E_PurchPrec!$T:$T)/SUMIF(D_Processes!$R:$R,CONST_CNTR_TotProd&$D17,D_Processes!$T:$T),0)","v":{"v":0,"d":"0.000"}},{"$f":"IFERROR(SUMIF(E_PurchPrec!$R:$R,CONST_PrecursorToGoodInput&O$6&\"_\"&$D17,E_PurchPrec!$T:$T)/SUMIF(D_Processes!$R:$R,CONST_CNTR_TotProd&$D17,D_Processes!$T:$T),0)","v":{"v":0,"d":"0.000"}},{"$f":"IFERROR(SUMIF(E_PurchPrec!$R:$R,CONST_PrecursorToGoodInput&P$6&\"_\"&$D17,E_PurchPrec!$T:$T)/SUMIF(D_Processes!$R:$R,CONST_CNTR_TotProd&$D17,D_Processes!$T:$T),0)","v":{"v":0,"d":"0.000"}},{"$f":"IFERROR(SUMIF(E_PurchPrec!$R:$R,CONST_PrecursorToGoodInput&Q$6&\"_\"&$D17,E_PurchPrec!$T:$T)/SUMIF(D_Processes!$R:$R,CONST_CNTR_TotProd&$D17,D_Processes!$T:$T),0)","v":{"v":0,"d":"0.000"}},{"$f":"IFERROR(SUMIF(E_PurchPrec!$R:$R,CONST_PrecursorToGoodInput&R$6&\"_\"&$D17,E_PurchPrec!$T:$T)/SUMIF(D_Processes!$R:$R,CONST_CNTR_TotProd&$D17,D_Processes!$T:$T),0)","v":{"v":0,"d":"0.000"}},{"$f":"IFERROR(SUMIF(E_PurchPrec!$R:$R,CONST_PrecursorToGoodInput&S$6&\"_\"&$D17,E_PurchPrec!$T:$T)/SUMIF(D_Processes!$R:$R,CONST_CNTR_TotProd&$D17,D_Processes!$T:$T),0)","v":{"v":0,"d":"0.000"}},{"$f":"IFERROR(SUMIF(E_PurchPrec!$R:$R,CONST_PrecursorToGoodInput&T$6&\"_\"&$D17,E_PurchPrec!$T:$T)/SUMIF(D_Processes!$R:$R,CONST_CNTR_TotProd&$D17,D_Processes!$T:$T),0)","v":{"v":0,"d":"0.000"}},{"$f":"IFERROR(SUMIF(E_PurchPrec!$R:$R,CONST_PrecursorToGoodInput&U$6&\"_\"&$D17,E_PurchPrec!$T:$T)/SUMIF(D_Processes!$R:$R,CONST_CNTR_TotProd&$D17,D_Processes!$T:$T),0)","v":{"v":0,"d":"0.000"}},{"$f":"IFERROR(SUMIF(E_PurchPrec!$R:$R,CONST_PrecursorToGoodInput&V$6&\"_\"&$D17,E_PurchPrec!$T:$T)/SUMIF(D_Processes!$R:$R,CONST_CNTR_TotProd&$D17,D_Processes!$T:$T),0)","v":{"v":0,"d":"0.000"}},{"$f":"IFERROR(SUMIF(E_PurchPrec!$R:$R,CONST_PrecursorToGoodInput&W$6&\"_\"&$D17,E_PurchPrec!$T:$T)/SUMIF(D_Processes!$R:$R,CONST_CNTR_TotProd&$D17,D_Processes!$T:$T),0)","v":{"v":0,"d":"0.000"}},{"$f":"IFERROR(SUMIF(E_PurchPrec!$R:$R,CONST_PrecursorToGoodInput&X$6&\"_\"&$D17,E_PurchPrec!$T:$T)/SUMIF(D_Processes!$R:$R,CONST_CNTR_TotProd&$D17,D_Processes!$T:$T),0)","v":{"v":0,"d":"0.000"}},{"$f":"IFERROR(SUMIF(E_PurchPrec!$R:$R,CONST_PrecursorToGoodInput&Y$6&\"_\"&$D17,E_PurchPrec!$T:$T)/SUMIF(D_Processes!$R:$R,CONST_CNTR_TotProd&$D17,D_Processes!$T:$T),0)","v":{"v":0,"d":"0.000"}},{"$f":"IFERROR(SUMIF(E_PurchPrec!$R:$R,CONST_PrecursorToGoodInput&Z$6&\"_\"&$D17,E_PurchPrec!$T:$T)/SUMIF(D_Processes!$R:$R,CONST_CNTR_TotProd&$D17,D_Processes!$T:$T),0)","v":{"v":0,"d":"0.000"}},{"$f":"IFERROR(SUMIF(E_PurchPrec!$R:$R,CONST_PrecursorToGoodInput&AA$6&\"_\"&$D17,E_PurchPrec!$T:$T)/SUMIF(D_Processes!$R:$R,CONST_CNTR_TotProd&$D17,D_Processes!$T:$T),0)","v":{"v":0,"d":"0.000"}},{"$f":"IFERROR(SUMIF(E_PurchPrec!$R:$R,CONST_PrecursorToGoodInput&AB$6&\"_\"&$D17,E_PurchPrec!$T:$T)/SUMIF(D_Processes!$R:$R,CONST_CNTR_TotProd&$D17,D_Processes!$T:$T),0)","v":{"v":0,"d":"0.000"}},{"$f":"IFERROR(SUMIF(E_PurchPrec!$R:$R,CONST_PrecursorToGoodInput&AC$6&\"_\"&$D17,E_PurchPrec!$T:$T)/SUMIF(D_Processes!$R:$R,CONST_CNTR_TotProd&$D17,D_Processes!$T:$T),0)","v":{"v":0,"d":"0.000"}},{"$f":"IFERROR(SUMIF(E_PurchPrec!$R:$R,CONST_PrecursorToGoodInput&AD$6&\"_\"&$D17,E_PurchPrec!$T:$T)/SUMIF(D_Processes!$R:$R,CONST_CNTR_TotProd&$D17,D_Processes!$T:$T),0)","v":{"v":0,"d":"0.000"}},{"$f":"IFERROR(SUMIF(E_PurchPrec!$R:$R,CONST_PrecursorToGoodInput&AE$6&\"_\"&$D17,E_PurchPrec!$T:$T)/SUMIF(D_Processes!$R:$R,CONST_CNTR_TotProd&$D17,D_Processes!$T:$T),0)","v":{"v":0,"d":"0.000"}},{"$f":"IFERROR(SUMIF(E_PurchPrec!$R:$R,CONST_PrecursorToGoodInput&AF$6&\"_\"&$D17,E_PurchPrec!$T:$T)/SUMIF(D_Processes!$R:$R,CONST_CNTR_TotProd&$D17,D_Processes!$T:$T),0)","v":{"v":0,"d":"0.000"}},{"$f":"IFERROR(SUMIF(E_PurchPrec!$R:$R,CONST_PrecursorToGoodInput&AG$6&\"_\"&$D17,E_PurchPrec!$T:$T)/SUMIF(D_Processes!$R:$R,CONST_CNTR_TotProd&$D17,D_Processes!$T:$T),0)","v":{"v":0,"d":"0.000"}},{"$f":"IFERROR(SUMIF(E_PurchPrec!$R:$R,CONST_PrecursorToGoodInput&AH$6&\"_\"&$D17,E_PurchPrec!$T:$T)/SUMIF(D_Processes!$R:$R,CONST_CNTR_TotProd&$D17,D_Processes!$T:$T),0)","v":{"v":0,"d":"0.000"}}]
[null,null,2,"",{"$f":"IFERROR(SUMIF(E_PurchPrec!$R:$R,CONST_PrecursorToGoodInput&E$6&\"_\"&$D18,E_PurchPrec!$T:$T)/SUMIF(D_Processes!$R:$R,CONST_CNTR_TotProd&$D18,D_Processes!$T:$T),0)","v":{"v":0,"d":"0.000"}},{"$f":"IFERROR(SUMIF(E_PurchPrec!$R:$R,CONST_PrecursorToGoodInput&F$6&\"_\"&$D18,E_PurchPrec!$T:$T)/SUMIF(D_Processes!$R:$R,CONST_CNTR_TotProd&$D18,D_Processes!$T:$T),0)","v":{"v":0,"d":"0.000"}},{"$f":"IFERROR(SUMIF(E_PurchPrec!$R:$R,CONST_PrecursorToGoodInput&G$6&\"_\"&$D18,E_PurchPrec!$T:$T)/SUMIF(D_Processes!$R:$R,CONST_CNTR_TotProd&$D18,D_Processes!$T:$T),0)","v":{"v":0,"d":"0.000"}},{"$f":"IFERROR(SUMIF(E_PurchPrec!$R:$R,CONST_PrecursorToGoodInput&H$6&\"_\"&$D18,E_PurchPrec!$T:$T)/SUMIF(D_Processes!$R:$R,CONST_CNTR_TotProd&$D18,D_Processes!$T:$T),0)","v":{"v":0,"d":"0.000"}},{"$f":"IFERROR(SUMIF(E_PurchPrec!$R:$R,CONST_PrecursorToGoodInput&I$6&\"_\"&$D18,E_PurchPrec!$T:$T)/SUMIF(D_Processes!$R:$R,CONST_CNTR_TotProd&$D18,D_Processes!$T:$T),0)","v":{"v":0,"d":"0.000"}},{"$f":"IFERROR(SUMIF(E_PurchPrec!$R:$R,CONST_PrecursorToGoodInput&J$6&\"_\"&$D18,E_PurchPrec!$T:$T)/SUMIF(D_Processes!$R:$R,CONST_CNTR_TotProd&$D18,D_Processes!$T:$T),0)","v":{"v":0,"d":"0.000"}},{"$f":"IFERROR(SUMIF(E_PurchPrec!$R:$R,CONST_PrecursorToGoodInput&K$6&\"_\"&$D18,E_PurchPrec!$T:$T)/SUMIF(D_Processes!$R:$R,CONST_CNTR_TotProd&$D18,D_Processes!$T:$T),0)","v":{"v":0,"d":"0.000"}},{"$f":"IFERROR(SUMIF(E_PurchPrec!$R:$R,CONST_PrecursorToGoodInput&L$6&\"_\"&$D18,E_PurchPrec!$T:$T)/SUMIF(D_Processes!$R:$R,CONST_CNTR_TotProd&$D18,D_Processes!$T:$T),0)","v":{"v":0,"d":"0.000"}},{"$f":"IFERROR(SUMIF(E_PurchPrec!$R:$R,CONST_PrecursorToGoodInput&M$6&\"_\"&$D18,E_PurchPrec!$T:$T)/SUMIF(D_Processes!$R:$R,CONST_CNTR_TotProd&$D18,D_Processes!$T:$T),0)","v":{"v":0,"d":"0.000"}},{"$f":"IFERROR(SUMIF(E_PurchPrec!$R:$R,CONST_PrecursorToGoodInput&N$6&\"_\"&$D18,E_PurchPrec!$T:$T)/SUMIF(D_Processes!$R:$R,CONST_CNTR_TotProd&$D18,D_Processes!$T:$T),0)","v":{"v":0,"d":"0.000"}},{"$f":"IFERROR(SUMIF(E_PurchPrec!$R:$R,CONST_PrecursorToGoodInput&O$6&\"_\"&$D18,E_PurchPrec!$T:$T)/SUMIF(D_Processes!$R:$R,CONST_CNTR_TotProd&$D18,D_Processes!$T:$T),0)","v":{"v":0,"d":"0.000"}},{"$f":"IFERROR(SUMIF(E_PurchPrec!$R:$R,CONST_PrecursorToGoodInput&P$6&\"_\"&$D18,E_PurchPrec!$T:$T)/SUMIF(D_Processes!$R:$R,CONST_CNTR_TotProd&$D18,D_Processes!$T:$T),0)","v":{"v":0,"d":"0.000"}},{"$f":"IFERROR(SUMIF(E_PurchPrec!$R:$R,CONST_PrecursorToGoodInput&Q$6&\"_\"&$D18,E_PurchPrec!$T:$T)/SUMIF(D_Processes!$R:$R,CONST_CNTR_TotProd&$D18,D_Processes!$T:$T),0)","v":{"v":0,"d":"0.000"}},{"$f":"IFERROR(SUMIF(E_PurchPrec!$R:$R,CONST_PrecursorToGoodInput&R$6&\"_\"&$D18,E_PurchPrec!$T:$T)/SUMIF(D_Processes!$R:$R,CONST_CNTR_TotProd&$D18,D_Processes!$T:$T),0)","v":{"v":0,"d":"0.000"}},{"$f":"IFERROR(SUMIF(E_PurchPrec!$R:$R,CONST_PrecursorToGoodInput&S$6&\"_\"&$D18,E_PurchPrec!$T:$T)/SUMIF(D_Processes!$R:$R,CONST_CNTR_TotProd&$D18,D_Processes!$T:$T),0)","v":{"v":0,"d":"0.000"}},{"$f":"IFERROR(SUMIF(E_PurchPrec!$R:$R,CONST_PrecursorToGoodInput&T$6&\"_\"&$D18,E_PurchPrec!$T:$T)/SUMIF(D_Processes!$R:$R,CONST_CNTR_TotProd&$D18,D_Processes!$T:$T),0)","v":{"v":0,"d":"0.000"}},{"$f":"IFERROR(SUMIF(E_PurchPrec!$R:$R,CONST_PrecursorToGoodInput&U$6&\"_\"&$D18,E_PurchPrec!$T:$T)/SUMIF(D_Processes!$R:$R,CONST_CNTR_TotProd&$D18,D_Processes!$T:$T),0)","v":{"v":0,"d":"0.000"}},{"$f":"IFERROR(SUMIF(E_PurchPrec!$R:$R,CONST_PrecursorToGoodInput&V$6&\"_\"&$D18,E_PurchPrec!$T:$T)/SUMIF(D_Processes!$R:$R,CONST_CNTR_TotProd&$D18,D_Processes!$T:$T),0)","v":{"v":0,"d":"0.000"}},{"$f":"IFERROR(SUMIF(E_PurchPrec!$R:$R,CONST_PrecursorToGoodInput&W$6&\"_\"&$D18,E_PurchPrec!$T:$T)/SUMIF(D_Processes!$R:$R,CONST_CNTR_TotProd&$D18,D_Processes!$T:$T),0)","v":{"v":0,"d":"0.000"}},{"$f":"IFERROR(SUMIF(E_PurchPrec!$R:$R,CONST_PrecursorToGoodInput&X$6&\"_\"&$D18,E_PurchPrec!$T:$T)/SUMIF(D_Processes!$R:$R,CONST_CNTR_TotProd&$D18,D_Processes!$T:$T),0)","v":{"v":0,"d":"0.000"}},{"$f":"IFERROR(SUMIF(E_PurchPrec!$R:$R,CONST_PrecursorToGoodInput&Y$6&\"_\"&$D18,E_PurchPrec!$T:$T)/SUMIF(D_Processes!$R:$R,CONST_CNTR_TotProd&$D18,D_Processes!$T:$T),0)","v":{"v":0,"d":"0.000"}},{"$f":"IFERROR(SUMIF(E_PurchPrec!$R:$R,CONST_PrecursorToGoodInput&Z$6&\"_\"&$D18,E_PurchPrec!$T:$T)/SUMIF(D_Processes!$R:$R,CONST_CNTR_TotProd&$D18,D_Processes!$T:$T),0)","v":{"v":0,"d":"0.000"}},{"$f":"IFERROR(SUMIF(E_PurchPrec!$R:$R,CONST_PrecursorToGoodInput&AA$6&\"_\"&$D18,E_PurchPrec!$T:$T)/SUMIF(D_Processes!$R:$R,CONST_CNTR_TotProd&$D18,D_Processes!$T:$T),0)","v":{"v":0,"d":"0.000"}},{"$f":"IFERROR(SUMIF(E_PurchPrec!$R:$R,CONST_PrecursorToGoodInput&AB$6&\"_\"&$D18,E_PurchPrec!$T:$T)/SUMIF(D_Processes!$R:$R,CONST_CNTR_TotProd&$D18,D_Processes!$T:$T),0)","v":{"v":0,"d":"0.000"}},{"$f":"IFERROR(SUMIF(E_PurchPrec!$R:$R,CONST_PrecursorToGoodInput&AC$6&\"_\"&$D18,E_PurchPrec!$T:$T)/SUMIF(D_Processes!$R:$R,CONST_CNTR_TotProd&$D18,D_Processes!$T:$T),0)","v":{"v":0,"d":"0.000"}},{"$f":"IFERROR(SUMIF(E_PurchPrec!$R:$R,CONST_PrecursorToGoodInput&AD$6&\"_\"&$D18,E_PurchPrec!$T:$T)/SUMIF(D_Processes!$R:$R,CONST_CNTR_TotProd&$D18,D_Processes!$T:$T),0)","v":{"v":0,"d":"0.000"}},{"$f":"IFERROR(SUMIF(E_PurchPrec!$R:$R,CONST_PrecursorToGoodInput&AE$6&\"_\"&$D18,E_PurchPrec!$T:$T)/SUMIF(D_Processes!$R:$R,CONST_CNTR_TotProd&$D18,D_Processes!$T:$T),0)","v":{"v":0,"d":"0.000"}},{"$f":"IFERROR(SUMIF(E_PurchPrec!$R:$R,CONST_PrecursorToGoodInput&AF$6&\"_\"&$D18,E_PurchPrec!$T:$T)/SUMIF(D_Processes!$R:$R,CONST_CNTR_TotProd&$D18,D_Processes!$T:$T),0)","v":{"v":0,"d":"0.000"}},{"$f":"IFERROR(SUMIF(E_PurchPrec!$R:$R,CONST_PrecursorToGoodInput&AG$6&\"_\"&$D18,E_PurchPrec!$T:$T)/SUMIF(D_Processes!$R:$R,CONST_CNTR_TotProd&$D18,D_Processes!$T:$T),0)","v":{"v":0,"d":"0.000"}},{"$f":"IFERROR(SUMIF(E_PurchPrec!$R:$R,CONST_PrecursorToGoodInput&AH$6&\"_\"&$D18,E_PurchPrec!$T:$T)/SUMIF(D_Processes!$R:$R,CONST_CNTR_TotProd&$D18,D_Processes!$T:$T),0)","v":{"v":0,"d":"0.000"}}]
[null,null,3,"",{"$f":"IFERROR(SUMIF(E_PurchPrec!$R:$R,CONST_PrecursorToGoodInput&E$6&\"_\"&$D19,E_PurchPrec!$T:$T)/SUMIF(D_Processes!$R:$R,CONST_CNTR_TotProd&$D19,D_Processes!$T:$T),0)","v":{"v":0,"d":"0.000"}},{"$f":"IFERROR(SUMIF(E_PurchPrec!$R:$R,CONST_PrecursorToGoodInput&F$6&\"_\"&$D19,E_PurchPrec!$T:$T)/SUMIF(D_Processes!$R:$R,CONST_CNTR_TotProd&$D19,D_Processes!$T:$T),0)","v":{"v":0,"d":"0.000"}},{"$f":"IFERROR(SUMIF(E_PurchPrec!$R:$R,CONST_PrecursorToGoodInput&G$6&\"_\"&$D19,E_PurchPrec!$T:$T)/SUMIF(D_Processes!$R:$R,CONST_CNTR_TotProd&$D19,D_Processes!$T:$T),0)","v":{"v":0,"d":"0.000"}},{"$f":"IFERROR(SUMIF(E_PurchPrec!$R:$R,CONST_PrecursorToGoodInput&H$6&\"_\"&$D19,E_PurchPrec!$T:$T)/SUMIF(D_Processes!$R:$R,CONST_CNTR_TotProd&$D19,D_Processes!$T:$T),0)","v":{"v":0,"d":"0.000"}},{"$f":"IFERROR(SUMIF(E_PurchPrec!$R:$R,CONST_PrecursorToGoodInput&I$6&\"_\"&$D19,E_PurchPrec!$T:$T)/SUMIF(D_Processes!$R:$R,CONST_CNTR_TotProd&$D19,D_Processes!$T:$T),0)","v":{"v":0,"d":"0.000"}},{"$f":"IFERROR(SUMIF(E_PurchPrec!$R:$R,CONST_PrecursorToGoodInput&J$6&\"_\"&$D19,E_PurchPrec!$T:$T)/SUMIF(D_Processes!$R:$R,CONST_CNTR_TotProd&$D19,D_Processes!$T:$T),0)","v":{"v":0,"d":"0.000"}},{"$f":"IFERROR(SUMIF(E_PurchPrec!$R:$R,CONST_PrecursorToGoodInput&K$6&\"_\"&$D19,E_PurchPrec!$T:$T)/SUMIF(D_Processes!$R:$R,CONST_CNTR_TotProd&$D19,D_Processes!$T:$T),0)","v":{"v":0,"d":"0.000"}},{"$f":"IFERROR(SUMIF(E_PurchPrec!$R:$R,CONST_PrecursorToGoodInput&L$6&\"_\"&$D19,E_PurchPrec!$T:$T)/SUMIF(D_Processes!$R:$R,CONST_CNTR_TotProd&$D19,D_Processes!$T:$T),0)","v":{"v":0,"d":"0.000"}},{"$f":"IFERROR(SUMIF(E_PurchPrec!$R:$R,CONST_PrecursorToGoodInput&M$6&\"_\"&$D19,E_PurchPrec!$T:$T)/SUMIF(D_Processes!$R:$R,CONST_CNTR_TotProd&$D19,D_Processes!$T:$T),0)","v":{"v":0,"d":"0.000"}},{"$f":"IFERROR(SUMIF(E_PurchPrec!$R:$R,CONST_PrecursorToGoodInput&N$6&\"_\"&$D19,E_PurchPrec!$T:$T)/SUMIF(D_Processes!$R:$R,CONST_CNTR_TotProd&$D19,D_Processes!$T:$T),0)","v":{"v":0,"d":"0.000"}},{"$f":"IFERROR(SUMIF(E_PurchPrec!$R:$R,CONST_PrecursorToGoodInput&O$6&\"_\"&$D19,E_PurchPrec!$T:$T)/SUMIF(D_Processes!$R:$R,CONST_CNTR_TotProd&$D19,D_Processes!$T:$T),0)","v":{"v":0,"d":"0.000"}},{"$f":"IFERROR(SUMIF(E_PurchPrec!$R:$R,CONST_PrecursorToGoodInput&P$6&\"_\"&$D19,E_PurchPrec!$T:$T)/SUMIF(D_Processes!$R:$R,CONST_CNTR_TotProd&$D19,D_Processes!$T:$T),0)","v":{"v":0,"d":"0.000"}},{"$f":"IFERROR(SUMIF(E_PurchPrec!$R:$R,CONST_PrecursorToGoodInput&Q$6&\"_\"&$D19,E_PurchPrec!$T:$T)/SUMIF(D_Processes!$R:$R,CONST_CNTR_TotProd&$D19,D_Processes!$T:$T),0)","v":{"v":0,"d":"0.000"}},{"$f":"IFERROR(SUMIF(E_PurchPrec!$R:$R,CONST_PrecursorToGoodInput&R$6&\"_\"&$D19,E_PurchPrec!$T:$T)/SUMIF(D_Processes!$R:$R,CONST_CNTR_TotProd&$D19,D_Processes!$T:$T),0)","v":{"v":0,"d":"0.000"}},{"$f":"IFERROR(SUMIF(E_PurchPrec!$R:$R,CONST_PrecursorToGoodInput&S$6&\"_\"&$D19,E_PurchPrec!$T:$T)/SUMIF(D_Processes!$R:$R,CONST_CNTR_TotProd&$D19,D_Processes!$T:$T),0)","v":{"v":0,"d":"0.000"}},{"$f":"IFERROR(SUMIF(E_PurchPrec!$R:$R,CONST_PrecursorToGoodInput&T$6&\"_\"&$D19,E_PurchPrec!$T:$T)/SUMIF(D_Processes!$R:$R,CONST_CNTR_TotProd&$D19,D_Processes!$T:$T),0)","v":{"v":0,"d":"0.000"}},{"$f":"IFERROR(SUMIF(E_PurchPrec!$R:$R,CONST_PrecursorToGoodInput&U$6&\"_\"&$D19,E_PurchPrec!$T:$T)/SUMIF(D_Processes!$R:$R,CONST_CNTR_TotProd&$D19,D_Processes!$T:$T),0)","v":{"v":0,"d":"0.000"}},{"$f":"IFERROR(SUMIF(E_PurchPrec!$R:$R,CONST_PrecursorToGoodInput&V$6&\"_\"&$D19,E_PurchPrec!$T:$T)/SUMIF(D_Processes!$R:$R,CONST_CNTR_TotProd&$D19,D_Processes!$T:$T),0)","v":{"v":0,"d":"0.000"}},{"$f":"IFERROR(SUMIF(E_PurchPrec!$R:$R,CONST_PrecursorToGoodInput&W$6&\"_\"&$D19,E_PurchPrec!$T:$T)/SUMIF(D_Processes!$R:$R,CONST_CNTR_TotProd&$D19,D_Processes!$T:$T),0)","v":{"v":0,"d":"0.000"}},{"$f":"IFERROR(SUMIF(E_PurchPrec!$R:$R,CONST_PrecursorToGoodInput&X$6&\"_\"&$D19,E_PurchPrec!$T:$T)/SUMIF(D_Processes!$R:$R,CONST_CNTR_TotProd&$D19,D_Processes!$T:$T),0)","v":{"v":0,"d":"0.000"}},{"$f":"IFERROR(SUMIF(E_PurchPrec!$R:$R,CONST_PrecursorToGoodInput&Y$6&\"_\"&$D19,E_PurchPrec!$T:$T)/SUMIF(D_Processes!$R:$R,CONST_CNTR_TotProd&$D19,D_Processes!$T:$T),0)","v":{"v":0,"d":"0.000"}},{"$f":"IFERROR(SUMIF(E_PurchPrec!$R:$R,CONST_PrecursorToGoodInput&Z$6&\"_\"&$D19,E_PurchPrec!$T:$T)/SUMIF(D_Processes!$R:$R,CONST_CNTR_TotProd&$D19,D_Processes!$T:$T),0)","v":{"v":0,"d":"0.000"}},{"$f":"IFERROR(SUMIF(E_PurchPrec!$R:$R,CONST_PrecursorToGoodInput&AA$6&\"_\"&$D19,E_PurchPrec!$T:$T)/SUMIF(D_Processes!$R:$R,CONST_CNTR_TotProd&$D19,D_Processes!$T:$T),0)","v":{"v":0,"d":"0.000"}},{"$f":"IFERROR(SUMIF(E_PurchPrec!$R:$R,CONST_PrecursorToGoodInput&AB$6&\"_\"&$D19,E_PurchPrec!$T:$T)/SUMIF(D_Processes!$R:$R,CONST_CNTR_TotProd&$D19,D_Processes!$T:$T),0)","v":{"v":0,"d":"0.000"}},{"$f":"IFERROR(SUMIF(E_PurchPrec!$R:$R,CONST_PrecursorToGoodInput&AC$6&\"_\"&$D19,E_PurchPrec!$T:$T)/SUMIF(D_Processes!$R:$R,CONST_CNTR_TotProd&$D19,D_Processes!$T:$T),0)","v":{"v":0,"d":"0.000"}},{"$f":"IFERROR(SUMIF(E_PurchPrec!$R:$R,CONST_PrecursorToGoodInput&AD$6&\"_\"&$D19,E_PurchPrec!$T:$T)/SUMIF(D_Processes!$R:$R,CONST_CNTR_TotProd&$D19,D_Processes!$T:$T),0)","v":{"v":0,"d":"0.000"}},{"$f":"IFERROR(SUMIF(E_PurchPrec!$R:$R,CONST_PrecursorToGoodInput&AE$6&\"_\"&$D19,E_PurchPrec!$T:$T)/SUMIF(D_Processes!$R:$R,CONST_CNTR_TotProd&$D19,D_Processes!$T:$T),0)","v":{"v":0,"d":"0.000"}},{"$f":"IFERROR(SUMIF(E_PurchPrec!$R:$R,CONST_PrecursorToGoodInput&AF$6&\"_\"&$D19,E_PurchPrec!$T:$T)/SUMIF(D_Processes!$R:$R,CONST_CNTR_TotProd&$D19,D_Processes!$T:$T),0)","v":{"v":0,"d":"0.000"}},{"$f":"IFERROR(SUMIF(E_PurchPrec!$R:$R,CONST_PrecursorToGoodInput&AG$6&\"_\"&$D19,E_PurchPrec!$T:$T)/SUMIF(D_Processes!$R:$R,CONST_CNTR_TotProd&$D19,D_Processes!$T:$T),0)","v":{"v":0,"d":"0.000"}},{"$f":"IFERROR(SUMIF(E_PurchPrec!$R:$R,CONST_PrecursorToGoodInput&AH$6&\"_\"&$D19,E_PurchPrec!$T:$T)/SUMIF(D_Processes!$R:$R,CONST_CNTR_TotProd&$D19,D_Processes!$T:$T),0)","v":{"v":0,"d":"0.000"}}]
[null,null,4,"",{"$f":"IFERROR(SUMIF(E_PurchPrec!$R:$R,CONST_PrecursorToGoodInput&E$6&\"_\"&$D20,E_PurchPrec!$T:$T)/SUMIF(D_Processes!$R:$R,CONST_CNTR_TotProd&$D20,D_Processes!$T:$T),0)","v":{"v":0,"d":"0.000"}},{"$f":"IFERROR(SUMIF(E_PurchPrec!$R:$R,CONST_PrecursorToGoodInput&F$6&\"_\"&$D20,E_PurchPrec!$T:$T)/SUMIF(D_Processes!$R:$R,CONST_CNTR_TotProd&$D20,D_Processes!$T:$T),0)","v":{"v":0,"d":"0.000"}},{"$f":"IFERROR(SUMIF(E_PurchPrec!$R:$R,CONST_PrecursorToGoodInput&G$6&\"_\"&$D20,E_PurchPrec!$T:$T)/SUMIF(D_Processes!$R:$R,CONST_CNTR_TotProd&$D20,D_Processes!$T:$T),0)","v":{"v":0,"d":"0.000"}},{"$f":"IFERROR(SUMIF(E_PurchPrec!$R:$R,CONST_PrecursorToGoodInput&H$6&\"_\"&$D20,E_PurchPrec!$T:$T)/SUMIF(D_Processes!$R:$R,CONST_CNTR_TotProd&$D20,D_Processes!$T:$T),0)","v":{"v":0,"d":"0.000"}},{"$f":"IFERROR(SUMIF(E_PurchPrec!$R:$R,CONST_PrecursorToGoodInput&I$6&\"_\"&$D20,E_PurchPrec!$T:$T)/SUMIF(D_Processes!$R:$R,CONST_CNTR_TotProd&$D20,D_Processes!$T:$T),0)","v":{"v":0,"d":"0.000"}},{"$f":"IFERROR(SUMIF(E_PurchPrec!$R:$R,CONST_PrecursorToGoodInput&J$6&\"_\"&$D20,E_PurchPrec!$T:$T)/SUMIF(D_Processes!$R:$R,CONST_CNTR_TotProd&$D20,D_Processes!$T:$T),0)","v":{"v":0,"d":"0.000"}},{"$f":"IFERROR(SUMIF(E_PurchPrec!$R:$R,CONST_PrecursorToGoodInput&K$6&\"_\"&$D20,E_PurchPrec!$T:$T)/SUMIF(D_Processes!$R:$R,CONST_CNTR_TotProd&$D20,D_Processes!$T:$T),0)","v":{"v":0,"d":"0.000"}},{"$f":"IFERROR(SUMIF(E_PurchPrec!$R:$R,CONST_PrecursorToGoodInput&L$6&\"_\"&$D20,E_PurchPrec!$T:$T)/SUMIF(D_Processes!$R:$R,CONST_CNTR_TotProd&$D20,D_Processes!$T:$T),0)","v":{"v":0,"d":"0.000"}},{"$f":"IFERROR(SUMIF(E_PurchPrec!$R:$R,CONST_PrecursorToGoodInput&M$6&\"_\"&$D20,E_PurchPrec!$T:$T)/SUMIF(D_Processes!$R:$R,CONST_CNTR_TotProd&$D20,D_Processes!$T:$T),0)","v":{"v":0,"d":"0.000"}},{"$f":"IFERROR(SUMIF(E_PurchPrec!$R:$R,CONST_PrecursorToGoodInput&N$6&\"_\"&$D20,E_PurchPrec!$T:$T)/SUMIF(D_Processes!$R:$R,CONST_CNTR_TotProd&$D20,D_Processes!$T:$T),0)","v":{"v":0,"d":"0.000"}},{"$f":"IFERROR(SUMIF(E_PurchPrec!$R:$R,CONST_PrecursorToGoodInput&O$6&\"_\"&$D20,E_PurchPrec!$T:$T)/SUMIF(D_Processes!$R:$R,CONST_CNTR_TotProd&$D20,D_Processes!$T:$T),0)","v":{"v":0,"d":"0.000"}},{"$f":"IFERROR(SUMIF(E_PurchPrec!$R:$R,CONST_PrecursorToGoodInput&P$6&\"_\"&$D20,E_PurchPrec!$T:$T)/SUMIF(D_Processes!$R:$R,CONST_CNTR_TotProd&$D20,D_Processes!$T:$T),0)","v":{"v":0,"d":"0.000"}},{"$f":"IFERROR(SUMIF(E_PurchPrec!$R:$R,CONST_PrecursorToGoodInput&Q$6&\"_\"&$D20,E_PurchPrec!$T:$T)/SUMIF(D_Processes!$R:$R,CONST_CNTR_TotProd&$D20,D_Processes!$T:$T),0)","v":{"v":0,"d":"0.000"}},{"$f":"IFERROR(SUMIF(E_PurchPrec!$R:$R,CONST_PrecursorToGoodInput&R$6&\"_\"&$D20,E_PurchPrec!$T:$T)/SUMIF(D_Processes!$R:$R,CONST_CNTR_TotProd&$D20,D_Processes!$T:$T),0)","v":{"v":0,"d":"0.000"}},{"$f":"IFERROR(SUMIF(E_PurchPrec!$R:$R,CONST_PrecursorToGoodInput&S$6&\"_\"&$D20,E_PurchPrec!$T:$T)/SUMIF(D_Processes!$R:$R,CONST_CNTR_TotProd&$D20,D_Processes!$T:$T),0)","v":{"v":0,"d":"0.000"}},{"$f":"IFERROR(SUMIF(E_PurchPrec!$R:$R,CONST_PrecursorToGoodInput&T$6&\"_\"&$D20,E_PurchPrec!$T:$T)/SUMIF(D_Processes!$R:$R,CONST_CNTR_TotProd&$D20,D_Processes!$T:$T),0)","v":{"v":0,"d":"0.000"}},{"$f":"IFERROR(SUMIF(E_PurchPrec!$R:$R,CONST_PrecursorToGoodInput&U$6&\"_\"&$D20,E_PurchPrec!$T:$T)/SUMIF(D_Processes!$R:$R,CONST_CNTR_TotProd&$D20,D_Processes!$T:$T),0)","v":{"v":0,"d":"0.000"}},{"$f":"IFERROR(SUMIF(E_PurchPrec!$R:$R,CONST_PrecursorToGoodInput&V$6&\"_\"&$D20,E_PurchPrec!$T:$T)/SUMIF(D_Processes!$R:$R,CONST_CNTR_TotProd&$D20,D_Processes!$T:$T),0)","v":{"v":0,"d":"0.000"}},{"$f":"IFERROR(SUMIF(E_PurchPrec!$R:$R,CONST_PrecursorToGoodInput&W$6&\"_\"&$D20,E_PurchPrec!$T:$T)/SUMIF(D_Processes!$R:$R,CONST_CNTR_TotProd&$D20,D_Processes!$T:$T),0)","v":{"v":0,"d":"0.000"}},{"$f":"IFERROR(SUMIF(E_PurchPrec!$R:$R,CONST_PrecursorToGoodInput&X$6&\"_\"&$D20,E_PurchPrec!$T:$T)/SUMIF(D_Processes!$R:$R,CONST_CNTR_TotProd&$D20,D_Processes!$T:$T),0)","v":{"v":0,"d":"0.000"}},{"$f":"IFERROR(SUMIF(E_PurchPrec!$R:$R,CONST_PrecursorToGoodInput&Y$6&\"_\"&$D20,E_PurchPrec!$T:$T)/SUMIF(D_Processes!$R:$R,CONST_CNTR_TotProd&$D20,D_Processes!$T:$T),0)","v":{"v":0,"d":"0.000"}},{"$f":"IFERROR(SUMIF(E_PurchPrec!$R:$R,CONST_PrecursorToGoodInput&Z$6&\"_\"&$D20,E_PurchPrec!$T:$T)/SUMIF(D_Processes!$R:$R,CONST_CNTR_TotProd&$D20,D_Processes!$T:$T),0)","v":{"v":0,"d":"0.000"}},{"$f":"IFERROR(SUMIF(E_PurchPrec!$R:$R,CONST_PrecursorToGoodInput&AA$6&\"_\"&$D20,E_PurchPrec!$T:$T)/SUMIF(D_Processes!$R:$R,CONST_CNTR_TotProd&$D20,D_Processes!$T:$T),0)","v":{"v":0,"d":"0.000"}},{"$f":"IFERROR(SUMIF(E_PurchPrec!$R:$R,CONST_PrecursorToGoodInput&AB$6&\"_\"&$D20,E_PurchPrec!$T:$T)/SUMIF(D_Processes!$R:$R,CONST_CNTR_TotProd&$D20,D_Processes!$T:$T),0)","v":{"v":0,"d":"0.000"}},{"$f":"IFERROR(SUMIF(E_PurchPrec!$R:$R,CONST_PrecursorToGoodInput&AC$6&\"_\"&$D20,E_PurchPrec!$T:$T)/SUMIF(D_Processes!$R:$R,CONST_CNTR_TotProd&$D20,D_Processes!$T:$T),0)","v":{"v":0,"d":"0.000"}},{"$f":"IFERROR(SUMIF(E_PurchPrec!$R:$R,CONST_PrecursorToGoodInput&AD$6&\"_\"&$D20,E_PurchPrec!$T:$T)/SUMIF(D_Processes!$R:$R,CONST_CNTR_TotProd&$D20,D_Processes!$T:$T),0)","v":{"v":0,"d":"0.000"}},{"$f":"IFERROR(SUMIF(E_PurchPrec!$R:$R,CONST_PrecursorToGoodInput&AE$6&\"_\"&$D20,E_PurchPrec!$T:$T)/SUMIF(D_Processes!$R:$R,CONST_CNTR_TotProd&$D20,D_Processes!$T:$T),0)","v":{"v":0,"d":"0.000"}},{"$f":"IFERROR(SUMIF(E_PurchPrec!$R:$R,CONST_PrecursorToGoodInput&AF$6&\"_\"&$D20,E_PurchPrec!$T:$T)/SUMIF(D_Processes!$R:$R,CONST_CNTR_TotProd&$D20,D_Processes!$T:$T),0)","v":{"v":0,"d":"0.000"}},{"$f":"IFERROR(SUMIF(E_PurchPrec!$R:$R,CONST_PrecursorToGoodInput&AG$6&\"_\"&$D20,E_PurchPrec!$T:$T)/SUMIF(D_Processes!$R:$R,CONST_CNTR_TotProd&$D20,D_Processes!$T:$T),0)","v":{"v":0,"d":"0.000"}},{"$f":"IFERROR(SUMIF(E_PurchPrec!$R:$R,CONST_PrecursorToGoodInput&AH$6&\"_\"&$D20,E_PurchPrec!$T:$T)/SUMIF(D_Processes!$R:$R,CONST_CNTR_TotProd&$D20,D_Processes!$T:$T),0)","v":{"v":0,"d":"0.000"}}]
[null,null,5,"",{"$f":"IFERROR(SUMIF(E_PurchPrec!$R:$R,CONST_PrecursorToGoodInput&E$6&\"_\"&$D21,E_PurchPrec!$T:$T)/SUMIF(D_Processes!$R:$R,CONST_CNTR_TotProd&$D21,D_Processes!$T:$T),0)","v":{"v":0,"d":"0.000"}},{"$f":"IFERROR(SUMIF(E_PurchPrec!$R:$R,CONST_PrecursorToGoodInput&F$6&\"_\"&$D21,E_PurchPrec!$T:$T)/SUMIF(D_Processes!$R:$R,CONST_CNTR_TotProd&$D21,D_Processes!$T:$T),0)","v":{"v":0,"d":"0.000"}},{"$f":"IFERROR(SUMIF(E_PurchPrec!$R:$R,CONST_PrecursorToGoodInput&G$6&\"_\"&$D21,E_PurchPrec!$T:$T)/SUMIF(D_Processes!$R:$R,CONST_CNTR_TotProd&$D21,D_Processes!$T:$T),0)","v":{"v":0,"d":"0.000"}},{"$f":"IFERROR(SUMIF(E_PurchPrec!$R:$R,CONST_PrecursorToGoodInput&H$6&\"_\"&$D21,E_PurchPrec!$T:$T)/SUMIF(D_Processes!$R:$R,CONST_CNTR_TotProd&$D21,D_Processes!$T:$T),0)","v":{"v":0,"d":"0.000"}},{"$f":"IFERROR(SUMIF(E_PurchPrec!$R:$R,CONST_PrecursorToGoodInput&I$6&\"_\"&$D21,E_PurchPrec!$T:$T)/SUMIF(D_Processes!$R:$R,CONST_CNTR_TotProd&$D21,D_Processes!$T:$T),0)","v":{"v":0,"d":"0.000"}},{"$f":"IFERROR(SUMIF(E_PurchPrec!$R:$R,CONST_PrecursorToGoodInput&J$6&\"_\"&$D21,E_PurchPrec!$T:$T)/SUMIF(D_Processes!$R:$R,CONST_CNTR_TotProd&$D21,D_Processes!$T:$T),0)","v":{"v":0,"d":"0.000"}},{"$f":"IFERROR(SUMIF(E_PurchPrec!$R:$R,CONST_PrecursorToGoodInput&K$6&\"_\"&$D21,E_PurchPrec!$T:$T)/SUMIF(D_Processes!$R:$R,CONST_CNTR_TotProd&$D21,D_Processes!$T:$T),0)","v":{"v":0,"d":"0.000"}},{"$f":"IFERROR(SUMIF(E_PurchPrec!$R:$R,CONST_PrecursorToGoodInput&L$6&\"_\"&$D21,E_PurchPrec!$T:$T)/SUMIF(D_Processes!$R:$R,CONST_CNTR_TotProd&$D21,D_Processes!$T:$T),0)","v":{"v":0,"d":"0.000"}},{"$f":"IFERROR(SUMIF(E_PurchPrec!$R:$R,CONST_PrecursorToGoodInput&M$6&\"_\"&$D21,E_PurchPrec!$T:$T)/SUMIF(D_Processes!$R:$R,CONST_CNTR_TotProd&$D21,D_Processes!$T:$T),0)","v":{"v":0,"d":"0.000"}},{"$f":"IFERROR(SUMIF(E_PurchPrec!$R:$R,CONST_PrecursorToGoodInput&N$6&\"_\"&$D21,E_PurchPrec!$T:$T)/SUMIF(D_Processes!$R:$R,CONST_CNTR_TotProd&$D21,D_Processes!$T:$T),0)","v":{"v":0,"d":"0.000"}},{"$f":"IFERROR(SUMIF(E_PurchPrec!$R:$R,CONST_PrecursorToGoodInput&O$6&\"_\"&$D21,E_PurchPrec!$T:$T)/SUMIF(D_Processes!$R:$R,CONST_CNTR_TotProd&$D21,D_Processes!$T:$T),0)","v":{"v":0,"d":"0.000"}},{"$f":"IFERROR(SUMIF(E_PurchPrec!$R:$R,CONST_PrecursorToGoodInput&P$6&\"_\"&$D21,E_PurchPrec!$T:$T)/SUMIF(D_Processes!$R:$R,CONST_CNTR_TotProd&$D21,D_Processes!$T:$T),0)","v":{"v":0,"d":"0.000"}},{"$f":"IFERROR(SUMIF(E_PurchPrec!$R:$R,CONST_PrecursorToGoodInput&Q$6&\"_\"&$D21,E_PurchPrec!$T:$T)/SUMIF(D_Processes!$R:$R,CONST_CNTR_TotProd&$D21,D_Processes!$T:$T),0)","v":{"v":0,"d":"0.000"}},{"$f":"IFERROR(SUMIF(E_PurchPrec!$R:$R,CONST_PrecursorToGoodInput&R$6&\"_\"&$D21,E_PurchPrec!$T:$T)/SUMIF(D_Processes!$R:$R,CONST_CNTR_TotProd&$D21,D_Processes!$T:$T),0)","v":{"v":0,"d":"0.000"}},{"$f":"IFERROR(SUMIF(E_PurchPrec!$R:$R,CONST_PrecursorToGoodInput&S$6&\"_\"&$D21,E_PurchPrec!$T:$T)/SUMIF(D_Processes!$R:$R,CONST_CNTR_TotProd&$D21,D_Processes!$T:$T),0)","v":{"v":0,"d":"0.000"}},{"$f":"IFERROR(SUMIF(E_PurchPrec!$R:$R,CONST_PrecursorToGoodInput&T$6&\"_\"&$D21,E_PurchPrec!$T:$T)/SUMIF(D_Processes!$R:$R,CONST_CNTR_TotProd&$D21,D_Processes!$T:$T),0)","v":{"v":0,"d":"0.000"}},{"$f":"IFERROR(SUMIF(E_PurchPrec!$R:$R,CONST_PrecursorToGoodInput&U$6&\"_\"&$D21,E_PurchPrec!$T:$T)/SUMIF(D_Processes!$R:$R,CONST_CNTR_TotProd&$D21,D_Processes!$T:$T),0)","v":{"v":0,"d":"0.000"}},{"$f":"IFERROR(SUMIF(E_PurchPrec!$R:$R,CONST_PrecursorToGoodInput&V$6&\"_\"&$D21,E_PurchPrec!$T:$T)/SUMIF(D_Processes!$R:$R,CONST_CNTR_TotProd&$D21,D_Processes!$T:$T),0)","v":{"v":0,"d":"0.000"}},{"$f":"IFERROR(SUMIF(E_PurchPrec!$R:$R,CONST_PrecursorToGoodInput&W$6&\"_\"&$D21,E_PurchPrec!$T:$T)/SUMIF(D_Processes!$R:$R,CONST_CNTR_TotProd&$D21,D_Processes!$T:$T),0)","v":{"v":0,"d":"0.000"}},{"$f":"IFERROR(SUMIF(E_PurchPrec!$R:$R,CONST_PrecursorToGoodInput&X$6&\"_\"&$D21,E_PurchPrec!$T:$T)/SUMIF(D_Processes!$R:$R,CONST_CNTR_TotProd&$D21,D_Processes!$T:$T),0)","v":{"v":0,"d":"0.000"}},{"$f":"IFERROR(SUMIF(E_PurchPrec!$R:$R,CONST_PrecursorToGoodInput&Y$6&\"_\"&$D21,E_PurchPrec!$T:$T)/SUMIF(D_Processes!$R:$R,CONST_CNTR_TotProd&$D21,D_Processes!$T:$T),0)","v":{"v":0,"d":"0.000"}},{"$f":"IFERROR(SUMIF(E_PurchPrec!$R:$R,CONST_PrecursorToGoodInput&Z$6&\"_\"&$D21,E_PurchPrec!$T:$T)/SUMIF(D_Processes!$R:$R,CONST_CNTR_TotProd&$D21,D_Processes!$T:$T),0)","v":{"v":0,"d":"0.000"}},{"$f":"IFERROR(SUMIF(E_PurchPrec!$R:$R,CONST_PrecursorToGoodInput&AA$6&\"_\"&$D21,E_PurchPrec!$T:$T)/SUMIF(D_Processes!$R:$R,CONST_CNTR_TotProd&$D21,D_Processes!$T:$T),0)","v":{"v":0,"d":"0.000"}},{"$f":"IFERROR(SUMIF(E_PurchPrec!$R:$R,CONST_PrecursorToGoodInput&AB$6&\"_\"&$D21,E_PurchPrec!$T:$T)/SUMIF(D_Processes!$R:$R,CONST_CNTR_TotProd&$D21,D_Processes!$T:$T),0)","v":{"v":0,"d":"0.000"}},{"$f":"IFERROR(SUMIF(E_PurchPrec!$R:$R,CONST_PrecursorToGoodInput&AC$6&\"_\"&$D21,E_PurchPrec!$T:$T)/SUMIF(D_Processes!$R:$R,CONST_CNTR_TotProd&$D21,D_Processes!$T:$T),0)","v":{"v":0,"d":"0.000"}},{"$f":"IFERROR(SUMIF(E_PurchPrec!$R:$R,CONST_PrecursorToGoodInput&AD$6&\"_\"&$D21,E_PurchPrec!$T:$T)/SUMIF(D_Processes!$R:$R,CONST_CNTR_TotProd&$D21,D_Processes!$T:$T),0)","v":{"v":0,"d":"0.000"}},{"$f":"IFERROR(SUMIF(E_PurchPrec!$R:$R,CONST_PrecursorToGoodInput&AE$6&\"_\"&$D21,E_PurchPrec!$T:$T)/SUMIF(D_Processes!$R:$R,CONST_CNTR_TotProd&$D21,D_Processes!$T:$T),0)","v":{"v":0,"d":"0.000"}},{"$f":"IFERROR(SUMIF(E_PurchPrec!$R:$R,CONST_PrecursorToGoodInput&AF$6&\"_\"&$D21,E_PurchPrec!$T:$T)/SUMIF(D_Processes!$R:$R,CONST_CNTR_TotProd&$D21,D_Processes!$T:$T),0)","v":{"v":0,"d":"0.000"}},{"$f":"IFERROR(SUMIF(E_PurchPrec!$R:$R,CONST_PrecursorToGoodInput&AG$6&\"_\"&$D21,E_PurchPrec!$T:$T)/SUMIF(D_Processes!$R:$R,CONST_CNTR_TotProd&$D21,D_Processes!$T:$T),0)","v":{"v":0,"d":"0.000"}},{"$f":"IFERROR(SUMIF(E_PurchPrec!$R:$R,CONST_PrecursorToGoodInput&AH$6&\"_\"&$D21,E_PurchPrec!$T:$T)/SUMIF(D_Processes!$R:$R,CONST_CNTR_TotProd&$D21,D_Processes!$T:$T),0)","v":{"v":0,"d":"0.000"}}]
[null,null,6,"",{"$f":"IFERROR(SUMIF(E_PurchPrec!$R:$R,CONST_PrecursorToGoodInput&E$6&\"_\"&$D22,E_PurchPrec!$T:$T)/SUMIF(D_Processes!$R:$R,CONST_CNTR_TotProd&$D22,D_Processes!$T:$T),0)","v":{"v":0,"d":"0.000"}},{"$f":"IFERROR(SUMIF(E_PurchPrec!$R:$R,CONST_PrecursorToGoodInput&F$6&\"_\"&$D22,E_PurchPrec!$T:$T)/SUMIF(D_Processes!$R:$R,CONST_CNTR_TotProd&$D22,D_Processes!$T:$T),0)","v":{"v":0,"d":"0.000"}},{"$f":"IFERROR(SUMIF(E_PurchPrec!$R:$R,CONST_PrecursorToGoodInput&G$6&\"_\"&$D22,E_PurchPrec!$T:$T)/SUMIF(D_Processes!$R:$R,CONST_CNTR_TotProd&$D22,D_Processes!$T:$T),0)","v":{"v":0,"d":"0.000"}},{"$f":"IFERROR(SUMIF(E_PurchPrec!$R:$R,CONST_PrecursorToGoodInput&H$6&\"_\"&$D22,E_PurchPrec!$T:$T)/SUMIF(D_Processes!$R:$R,CONST_CNTR_TotProd&$D22,D_Processes!$T:$T),0)","v":{"v":0,"d":"0.000"}},{"$f":"IFERROR(SUMIF(E_PurchPrec!$R:$R,CONST_PrecursorToGoodInput&I$6&\"_\"&$D22,E_PurchPrec!$T:$T)/SUMIF(D_Processes!$R:$R,CONST_CNTR_TotProd&$D22,D_Processes!$T:$T),0)","v":{"v":0,"d":"0.000"}},{"$f":"IFERROR(SUMIF(E_PurchPrec!$R:$R,CONST_PrecursorToGoodInput&J$6&\"_\"&$D22,E_PurchPrec!$T:$T)/SUMIF(D_Processes!$R:$R,CONST_CNTR_TotProd&$D22,D_Processes!$T:$T),0)","v":{"v":0,"d":"0.000"}},{"$f":"IFERROR(SUMIF(E_PurchPrec!$R:$R,CONST_PrecursorToGoodInput&K$6&\"_\"&$D22,E_PurchPrec!$T:$T)/SUMIF(D_Processes!$R:$R,CONST_CNTR_TotProd&$D22,D_Processes!$T:$T),0)","v":{"v":0,"d":"0.000"}},{"$f":"IFERROR(SUMIF(E_PurchPrec!$R:$R,CONST_PrecursorToGoodInput&L$6&\"_\"&$D22,E_PurchPrec!$T:$T)/SUMIF(D_Processes!$R:$R,CONST_CNTR_TotProd&$D22,D_Processes!$T:$T),0)","v":{"v":0,"d":"0.000"}},{"$f":"IFERROR(SUMIF(E_PurchPrec!$R:$R,CONST_PrecursorToGoodInput&M$6&\"_\"&$D22,E_PurchPrec!$T:$T)/SUMIF(D_Processes!$R:$R,CONST_CNTR_TotProd&$D22,D_Processes!$T:$T),0)","v":{"v":0,"d":"0.000"}},{"$f":"IFERROR(SUMIF(E_PurchPrec!$R:$R,CONST_PrecursorToGoodInput&N$6&\"_\"&$D22,E_PurchPrec!$T:$T)/SUMIF(D_Processes!$R:$R,CONST_CNTR_TotProd&$D22,D_Processes!$T:$T),0)","v":{"v":0,"d":"0.000"}},{"$f":"IFERROR(SUMIF(E_PurchPrec!$R:$R,CONST_PrecursorToGoodInput&O$6&\"_\"&$D22,E_PurchPrec!$T:$T)/SUMIF(D_Processes!$R:$R,CONST_CNTR_TotProd&$D22,D_Processes!$T:$T),0)","v":{"v":0,"d":"0.000"}},{"$f":"IFERROR(SUMIF(E_PurchPrec!$R:$R,CONST_PrecursorToGoodInput&P$6&\"_\"&$D22,E_PurchPrec!$T:$T)/SUMIF(D_Processes!$R:$R,CONST_CNTR_TotProd&$D22,D_Processes!$T:$T),0)","v":{"v":0,"d":"0.000"}},{"$f":"IFERROR(SUMIF(E_PurchPrec!$R:$R,CONST_PrecursorToGoodInput&Q$6&\"_\"&$D22,E_PurchPrec!$T:$T)/SUMIF(D_Processes!$R:$R,CONST_CNTR_TotProd&$D22,D_Processes!$T:$T),0)","v":{"v":0,"d":"0.000"}},{"$f":"IFERROR(SUMIF(E_PurchPrec!$R:$R,CONST_PrecursorToGoodInput&R$6&\"_\"&$D22,E_PurchPrec!$T:$T)/SUMIF(D_Processes!$R:$R,CONST_CNTR_TotProd&$D22,D_Processes!$T:$T),0)","v":{"v":0,"d":"0.000"}},{"$f":"IFERROR(SUMIF(E_PurchPrec!$R:$R,CONST_PrecursorToGoodInput&S$6&\"_\"&$D22,E_PurchPrec!$T:$T)/SUMIF(D_Processes!$R:$R,CONST_CNTR_TotProd&$D22,D_Processes!$T:$T),0)","v":{"v":0,"d":"0.000"}},{"$f":"IFERROR(SUMIF(E_PurchPrec!$R:$R,CONST_PrecursorToGoodInput&T$6&\"_\"&$D22,E_PurchPrec!$T:$T)/SUMIF(D_Processes!$R:$R,CONST_CNTR_TotProd&$D22,D_Processes!$T:$T),0)","v":{"v":0,"d":"0.000"}},{"$f":"IFERROR(SUMIF(E_PurchPrec!$R:$R,CONST_PrecursorToGoodInput&U$6&\"_\"&$D22,E_PurchPrec!$T:$T)/SUMIF(D_Processes!$R:$R,CONST_CNTR_TotProd&$D22,D_Processes!$T:$T),0)","v":{"v":0,"d":"0.000"}},{"$f":"IFERROR(SUMIF(E_PurchPrec!$R:$R,CONST_PrecursorToGoodInput&V$6&\"_\"&$D22,E_PurchPrec!$T:$T)/SUMIF(D_Processes!$R:$R,CONST_CNTR_TotProd&$D22,D_Processes!$T:$T),0)","v":{"v":0,"d":"0.000"}},{"$f":"IFERROR(SUMIF(E_PurchPrec!$R:$R,CONST_PrecursorToGoodInput&W$6&\"_\"&$D22,E_PurchPrec!$T:$T)/SUMIF(D_Processes!$R:$R,CONST_CNTR_TotProd&$D22,D_Processes!$T:$T),0)","v":{"v":0,"d":"0.000"}},{"$f":"IFERROR(SUMIF(E_PurchPrec!$R:$R,CONST_PrecursorToGoodInput&X$6&\"_\"&$D22,E_PurchPrec!$T:$T)/SUMIF(D_Processes!$R:$R,CONST_CNTR_TotProd&$D22,D_Processes!$T:$T),0)","v":{"v":0,"d":"0.000"}},{"$f":"IFERROR(SUMIF(E_PurchPrec!$R:$R,CONST_PrecursorToGoodInput&Y$6&\"_\"&$D22,E_PurchPrec!$T:$T)/SUMIF(D_Processes!$R:$R,CONST_CNTR_TotProd&$D22,D_Processes!$T:$T),0)","v":{"v":0,"d":"0.000"}},{"$f":"IFERROR(SUMIF(E_PurchPrec!$R:$R,CONST_PrecursorToGoodInput&Z$6&\"_\"&$D22,E_PurchPrec!$T:$T)/SUMIF(D_Processes!$R:$R,CONST_CNTR_TotProd&$D22,D_Processes!$T:$T),0)","v":{"v":0,"d":"0.000"}},{"$f":"IFERROR(SUMIF(E_PurchPrec!$R:$R,CONST_PrecursorToGoodInput&AA$6&\"_\"&$D22,E_PurchPrec!$T:$T)/SUMIF(D_Processes!$R:$R,CONST_CNTR_TotProd&$D22,D_Processes!$T:$T),0)","v":{"v":0,"d":"0.000"}},{"$f":"IFERROR(SUMIF(E_PurchPrec!$R:$R,CONST_PrecursorToGoodInput&AB$6&\"_\"&$D22,E_PurchPrec!$T:$T)/SUMIF(D_Processes!$R:$R,CONST_CNTR_TotProd&$D22,D_Processes!$T:$T),0)","v":{"v":0,"d":"0.000"}},{"$f":"IFERROR(SUMIF(E_PurchPrec!$R:$R,CONST_PrecursorToGoodInput&AC$6&\"_\"&$D22,E_PurchPrec!$T:$T)/SUMIF(D_Processes!$R:$R,CONST_CNTR_TotProd&$D22,D_Processes!$T:$T),0)","v":{"v":0,"d":"0.000"}},{"$f":"IFERROR(SUMIF(E_PurchPrec!$R:$R,CONST_PrecursorToGoodInput&AD$6&\"_\"&$D22,E_PurchPrec!$T:$T)/SUMIF(D_Processes!$R:$R,CONST_CNTR_TotProd&$D22,D_Processes!$T:$T),0)","v":{"v":0,"d":"0.000"}},{"$f":"IFERROR(SUMIF(E_PurchPrec!$R:$R,CONST_PrecursorToGoodInput&AE$6&\"_\"&$D22,E_PurchPrec!$T:$T)/SUMIF(D_Processes!$R:$R,CONST_CNTR_TotProd&$D22,D_Processes!$T:$T),0)","v":{"v":0,"d":"0.000"}},{"$f":"IFERROR(SUMIF(E_PurchPrec!$R:$R,CONST_PrecursorToGoodInput&AF$6&\"_\"&$D22,E_PurchPrec!$T:$T)/SUMIF(D_Processes!$R:$R,CONST_CNTR_TotProd&$D22,D_Processes!$T:$T),0)","v":{"v":0,"d":"0.000"}},{"$f":"IFERROR(SUMIF(E_PurchPrec!$R:$R,CONST_PrecursorToGoodInput&AG$6&\"_\"&$D22,E_PurchPrec!$T:$T)/SUMIF(D_Processes!$R:$R,CONST_CNTR_TotProd&$D22,D_Processes!$T:$T),0)","v":{"v":0,"d":"0.000"}},{"$f":"IFERROR(SUMIF(E_PurchPrec!$R:$R,CONST_PrecursorToGoodInput&AH$6&\"_\"&$D22,E_PurchPrec!$T:$T)/SUMIF(D_Processes!$R:$R,CONST_CNTR_TotProd&$D22,D_Processes!$T:$T),0)","v":{"v":0,"d":"0.000"}}]
[null,null,7,"",{"$f":"IFERROR(SUMIF(E_PurchPrec!$R:$R,CONST_PrecursorToGoodInput&E$6&\"_\"&$D23,E_PurchPrec!$T:$T)/SUMIF(D_Processes!$R:$R,CONST_CNTR_TotProd&$D23,D_Processes!$T:$T),0)","v":{"v":0,"d":"0.000"}},{"$f":"IFERROR(SUMIF(E_PurchPrec!$R:$R,CONST_PrecursorToGoodInput&F$6&\"_\"&$D23,E_PurchPrec!$T:$T)/SUMIF(D_Processes!$R:$R,CONST_CNTR_TotProd&$D23,D_Processes!$T:$T),0)","v":{"v":0,"d":"0.000"}},{"$f":"IFERROR(SUMIF(E_PurchPrec!$R:$R,CONST_PrecursorToGoodInput&G$6&\"_\"&$D23,E_PurchPrec!$T:$T)/SUMIF(D_Processes!$R:$R,CONST_CNTR_TotProd&$D23,D_Processes!$T:$T),0)","v":{"v":0,"d":"0.000"}},{"$f":"IFERROR(SUMIF(E_PurchPrec!$R:$R,CONST_PrecursorToGoodInput&H$6&\"_\"&$D23,E_PurchPrec!$T:$T)/SUMIF(D_Processes!$R:$R,CONST_CNTR_TotProd&$D23,D_Processes!$T:$T),0)","v":{"v":0,"d":"0.000"}},{"$f":"IFERROR(SUMIF(E_PurchPrec!$R:$R,CONST_PrecursorToGoodInput&I$6&\"_\"&$D23,E_PurchPrec!$T:$T)/SUMIF(D_Processes!$R:$R,CONST_CNTR_TotProd&$D23,D_Processes!$T:$T),0)","v":{"v":0,"d":"0.000"}},{"$f":"IFERROR(SUMIF(E_PurchPrec!$R:$R,CONST_PrecursorToGoodInput&J$6&\"_\"&$D23,E_PurchPrec!$T:$T)/SUMIF(D_Processes!$R:$R,CONST_CNTR_TotProd&$D23,D_Processes!$T:$T),0)","v":{"v":0,"d":"0.000"}},{"$f":"IFERROR(SUMIF(E_PurchPrec!$R:$R,CONST_PrecursorToGoodInput&K$6&\"_\"&$D23,E_PurchPrec!$T:$T)/SUMIF(D_Processes!$R:$R,CONST_CNTR_TotProd&$D23,D_Processes!$T:$T),0)","v":{"v":0,"d":"0.000"}},{"$f":"IFERROR(SUMIF(E_PurchPrec!$R:$R,CONST_PrecursorToGoodInput&L$6&\"_\"&$D23,E_PurchPrec!$T:$T)/SUMIF(D_Processes!$R:$R,CONST_CNTR_TotProd&$D23,D_Processes!$T:$T),0)","v":{"v":0,"d":"0.000"}},{"$f":"IFERROR(SUMIF(E_PurchPrec!$R:$R,CONST_PrecursorToGoodInput&M$6&\"_\"&$D23,E_PurchPrec!$T:$T)/SUMIF(D_Processes!$R:$R,CONST_CNTR_TotProd&$D23,D_Processes!$T:$T),0)","v":{"v":0,"d":"0.000"}},{"$f":"IFERROR(SUMIF(E_PurchPrec!$R:$R,CONST_PrecursorToGoodInput&N$6&\"_\"&$D23,E_PurchPrec!$T:$T)/SUMIF(D_Processes!$R:$R,CONST_CNTR_TotProd&$D23,D_Processes!$T:$T),0)","v":{"v":0,"d":"0.000"}},{"$f":"IFERROR(SUMIF(E_PurchPrec!$R:$R,CONST_PrecursorToGoodInput&O$6&\"_\"&$D23,E_PurchPrec!$T:$T)/SUMIF(D_Processes!$R:$R,CONST_CNTR_TotProd&$D23,D_Processes!$T:$T),0)","v":{"v":0,"d":"0.000"}},{"$f":"IFERROR(SUMIF(E_PurchPrec!$R:$R,CONST_PrecursorToGoodInput&P$6&\"_\"&$D23,E_PurchPrec!$T:$T)/SUMIF(D_Processes!$R:$R,CONST_CNTR_TotProd&$D23,D_Processes!$T:$T),0)","v":{"v":0,"d":"0.000"}},{"$f":"IFERROR(SUMIF(E_PurchPrec!$R:$R,CONST_PrecursorToGoodInput&Q$6&\"_\"&$D23,E_PurchPrec!$T:$T)/SUMIF(D_Processes!$R:$R,CONST_CNTR_TotProd&$D23,D_Processes!$T:$T),0)","v":{"v":0,"d":"0.000"}},{"$f":"IFERROR(SUMIF(E_PurchPrec!$R:$R,CONST_PrecursorToGoodInput&R$6&\"_\"&$D23,E_PurchPrec!$T:$T)/SUMIF(D_Processes!$R:$R,CONST_CNTR_TotProd&$D23,D_Processes!$T:$T),0)","v":{"v":0,"d":"0.000"}},{"$f":"IFERROR(SUMIF(E_PurchPrec!$R:$R,CONST_PrecursorToGoodInput&S$6&\"_\"&$D23,E_PurchPrec!$T:$T)/SUMIF(D_Processes!$R:$R,CONST_CNTR_TotProd&$D23,D_Processes!$T:$T),0)","v":{"v":0,"d":"0.000"}},{"$f":"IFERROR(SUMIF(E_PurchPrec!$R:$R,CONST_PrecursorToGoodInput&T$6&\"_\"&$D23,E_PurchPrec!$T:$T)/SUMIF(D_Processes!$R:$R,CONST_CNTR_TotProd&$D23,D_Processes!$T:$T),0)","v":{"v":0,"d":"0.000"}},{"$f":"IFERROR(SUMIF(E_PurchPrec!$R:$R,CONST_PrecursorToGoodInput&U$6&\"_\"&$D23,E_PurchPrec!$T:$T)/SUMIF(D_Processes!$R:$R,CONST_CNTR_TotProd&$D23,D_Processes!$T:$T),0)","v":{"v":0,"d":"0.000"}},{"$f":"IFERROR(SUMIF(E_PurchPrec!$R:$R,CONST_PrecursorToGoodInput&V$6&\"_\"&$D23,E_PurchPrec!$T:$T)/SUMIF(D_Processes!$R:$R,CONST_CNTR_TotProd&$D23,D_Processes!$T:$T),0)","v":{"v":0,"d":"0.000"}},{"$f":"IFERROR(SUMIF(E_PurchPrec!$R:$R,CONST_PrecursorToGoodInput&W$6&\"_\"&$D23,E_PurchPrec!$T:$T)/SUMIF(D_Processes!$R:$R,CONST_CNTR_TotProd&$D23,D_Processes!$T:$T),0)","v":{"v":0,"d":"0.000"}},{"$f":"IFERROR(SUMIF(E_PurchPrec!$R:$R,CONST_PrecursorToGoodInput&X$6&\"_\"&$D23,E_PurchPrec!$T:$T)/SUMIF(D_Processes!$R:$R,CONST_CNTR_TotProd&$D23,D_Processes!$T:$T),0)","v":{"v":0,"d":"0.000"}},{"$f":"IFERROR(SUMIF(E_PurchPrec!$R:$R,CONST_PrecursorToGoodInput&Y$6&\"_\"&$D23,E_PurchPrec!$T:$T)/SUMIF(D_Processes!$R:$R,CONST_CNTR_TotProd&$D23,D_Processes!$T:$T),0)","v":{"v":0,"d":"0.000"}},{"$f":"IFERROR(SUMIF(E_PurchPrec!$R:$R,CONST_PrecursorToGoodInput&Z$6&\"_\"&$D23,E_PurchPrec!$T:$T)/SUMIF(D_Processes!$R:$R,CONST_CNTR_TotProd&$D23,D_Processes!$T:$T),0)","v":{"v":0,"d":"0.000"}},{"$f":"IFERROR(SUMIF(E_PurchPrec!$R:$R,CONST_PrecursorToGoodInput&AA$6&\"_\"&$D23,E_PurchPrec!$T:$T)/SUMIF(D_Processes!$R:$R,CONST_CNTR_TotProd&$D23,D_Processes!$T:$T),0)","v":{"v":0,"d":"0.000"}},{"$f":"IFERROR(SUMIF(E_PurchPrec!$R:$R,CONST_PrecursorToGoodInput&AB$6&\"_\"&$D23,E_PurchPrec!$T:$T)/SUMIF(D_Processes!$R:$R,CONST_CNTR_TotProd&$D23,D_Processes!$T:$T),0)","v":{"v":0,"d":"0.000"}},{"$f":"IFERROR(SUMIF(E_PurchPrec!$R:$R,CONST_PrecursorToGoodInput&AC$6&\"_\"&$D23,E_PurchPrec!$T:$T)/SUMIF(D_Processes!$R:$R,CONST_CNTR_TotProd&$D23,D_Processes!$T:$T),0)","v":{"v":0,"d":"0.000"}},{"$f":"IFERROR(SUMIF(E_PurchPrec!$R:$R,CONST_PrecursorToGoodInput&AD$6&\"_\"&$D23,E_PurchPrec!$T:$T)/SUMIF(D_Processes!$R:$R,CONST_CNTR_TotProd&$D23,D_Processes!$T:$T),0)","v":{"v":0,"d":"0.000"}},{"$f":"IFERROR(SUMIF(E_PurchPrec!$R:$R,CONST_PrecursorToGoodInput&AE$6&\"_\"&$D23,E_PurchPrec!$T:$T)/SUMIF(D_Processes!$R:$R,CONST_CNTR_TotProd&$D23,D_Processes!$T:$T),0)","v":{"v":0,"d":"0.000"}},{"$f":"IFERROR(SUMIF(E_PurchPrec!$R:$R,CONST_PrecursorToGoodInput&AF$6&\"_\"&$D23,E_PurchPrec!$T:$T)/SUMIF(D_Processes!$R:$R,CONST_CNTR_TotProd&$D23,D_Processes!$T:$T),0)","v":{"v":0,"d":"0.000"}},{"$f":"IFERROR(SUMIF(E_PurchPrec!$R:$R,CONST_PrecursorToGoodInput&AG$6&\"_\"&$D23,E_PurchPrec!$T:$T)/SUMIF(D_Processes!$R:$R,CONST_CNTR_TotProd&$D23,D_Processes!$T:$T),0)","v":{"v":0,"d":"0.000"}},{"$f":"IFERROR(SUMIF(E_PurchPrec!$R:$R,CONST_PrecursorToGoodInput&AH$6&\"_\"&$D23,E_PurchPrec!$T:$T)/SUMIF(D_Processes!$R:$R,CONST_CNTR_TotProd&$D23,D_Processes!$T:$T),0)","v":{"v":0,"d":"0.000"}}]
[null,null,8,"",{"$f":"IFERROR(SUMIF(E_PurchPrec!$R:$R,CONST_PrecursorToGoodInput&E$6&\"_\"&$D24,E_PurchPrec!$T:$T)/SUMIF(D_Processes!$R:$R,CONST_CNTR_TotProd&$D24,D_Processes!$T:$T),0)","v":{"v":0,"d":"0.000"}},{"$f":"IFERROR(SUMIF(E_PurchPrec!$R:$R,CONST_PrecursorToGoodInput&F$6&\"_\"&$D24,E_PurchPrec!$T:$T)/SUMIF(D_Processes!$R:$R,CONST_CNTR_TotProd&$D24,D_Processes!$T:$T),0)","v":{"v":0,"d":"0.000"}},{"$f":"IFERROR(SUMIF(E_PurchPrec!$R:$R,CONST_PrecursorToGoodInput&G$6&\"_\"&$D24,E_PurchPrec!$T:$T)/SUMIF(D_Processes!$R:$R,CONST_CNTR_TotProd&$D24,D_Processes!$T:$T),0)","v":{"v":0,"d":"0.000"}},{"$f":"IFERROR(SUMIF(E_PurchPrec!$R:$R,CONST_PrecursorToGoodInput&H$6&\"_\"&$D24,E_PurchPrec!$T:$T)/SUMIF(D_Processes!$R:$R,CONST_CNTR_TotProd&$D24,D_Processes!$T:$T),0)","v":{"v":0,"d":"0.000"}},{"$f":"IFERROR(SUMIF(E_PurchPrec!$R:$R,CONST_PrecursorToGoodInput&I$6&\"_\"&$D24,E_PurchPrec!$T:$T)/SUMIF(D_Processes!$R:$R,CONST_CNTR_TotProd&$D24,D_Processes!$T:$T),0)","v":{"v":0,"d":"0.000"}},{"$f":"IFERROR(SUMIF(E_PurchPrec!$R:$R,CONST_PrecursorToGoodInput&J$6&\"_\"&$D24,E_PurchPrec!$T:$T)/SUMIF(D_Processes!$R:$R,CONST_CNTR_TotProd&$D24,D_Processes!$T:$T),0)","v":{"v":0,"d":"0.000"}},{"$f":"IFERROR(SUMIF(E_PurchPrec!$R:$R,CONST_PrecursorToGoodInput&K$6&\"_\"&$D24,E_PurchPrec!$T:$T)/SUMIF(D_Processes!$R:$R,CONST_CNTR_TotProd&$D24,D_Processes!$T:$T),0)","v":{"v":0,"d":"0.000"}},{"$f":"IFERROR(SUMIF(E_PurchPrec!$R:$R,CONST_PrecursorToGoodInput&L$6&\"_\"&$D24,E_PurchPrec!$T:$T)/SUMIF(D_Processes!$R:$R,CONST_CNTR_TotProd&$D24,D_Processes!$T:$T),0)","v":{"v":0,"d":"0.000"}},{"$f":"IFERROR(SUMIF(E_PurchPrec!$R:$R,CONST_PrecursorToGoodInput&M$6&\"_\"&$D24,E_PurchPrec!$T:$T)/SUMIF(D_Processes!$R:$R,CONST_CNTR_TotProd&$D24,D_Processes!$T:$T),0)","v":{"v":0,"d":"0.000"}},{"$f":"IFERROR(SUMIF(E_PurchPrec!$R:$R,CONST_PrecursorToGoodInput&N$6&\"_\"&$D24,E_PurchPrec!$T:$T)/SUMIF(D_Processes!$R:$R,CONST_CNTR_TotProd&$D24,D_Processes!$T:$T),0)","v":{"v":0,"d":"0.000"}},{"$f":"IFERROR(SUMIF(E_PurchPrec!$R:$R,CONST_PrecursorToGoodInput&O$6&\"_\"&$D24,E_PurchPrec!$T:$T)/SUMIF(D_Processes!$R:$R,CONST_CNTR_TotProd&$D24,D_Processes!$T:$T),0)","v":{"v":0,"d":"0.000"}},{"$f":"IFERROR(SUMIF(E_PurchPrec!$R:$R,CONST_PrecursorToGoodInput&P$6&\"_\"&$D24,E_PurchPrec!$T:$T)/SUMIF(D_Processes!$R:$R,CONST_CNTR_TotProd&$D24,D_Processes!$T:$T),0)","v":{"v":0,"d":"0.000"}},{"$f":"IFERROR(SUMIF(E_PurchPrec!$R:$R,CONST_PrecursorToGoodInput&Q$6&\"_\"&$D24,E_PurchPrec!$T:$T)/SUMIF(D_Processes!$R:$R,CONST_CNTR_TotProd&$D24,D_Processes!$T:$T),0)","v":{"v":0,"d":"0.000"}},{"$f":"IFERROR(SUMIF(E_PurchPrec!$R:$R,CONST_PrecursorToGoodInput&R$6&\"_\"&$D24,E_PurchPrec!$T:$T)/SUMIF(D_Processes!$R:$R,CONST_CNTR_TotProd&$D24,D_Processes!$T:$T),0)","v":{"v":0,"d":"0.000"}},{"$f":"IFERROR(SUMIF(E_PurchPrec!$R:$R,CONST_PrecursorToGoodInput&S$6&\"_\"&$D24,E_PurchPrec!$T:$T)/SUMIF(D_Processes!$R:$R,CONST_CNTR_TotProd&$D24,D_Processes!$T:$T),0)","v":{"v":0,"d":"0.000"}},{"$f":"IFERROR(SUMIF(E_PurchPrec!$R:$R,CONST_PrecursorToGoodInput&T$6&\"_\"&$D24,E_PurchPrec!$T:$T)/SUMIF(D_Processes!$R:$R,CONST_CNTR_TotProd&$D24,D_Processes!$T:$T),0)","v":{"v":0,"d":"0.000"}},{"$f":"IFERROR(SUMIF(E_PurchPrec!$R:$R,CONST_PrecursorToGoodInput&U$6&\"_\"&$D24,E_PurchPrec!$T:$T)/SUMIF(D_Processes!$R:$R,CONST_CNTR_TotProd&$D24,D_Processes!$T:$T),0)","v":{"v":0,"d":"0.000"}},{"$f":"IFERROR(SUMIF(E_PurchPrec!$R:$R,CONST_PrecursorToGoodInput&V$6&\"_\"&$D24,E_PurchPrec!$T:$T)/SUMIF(D_Processes!$R:$R,CONST_CNTR_TotProd&$D24,D_Processes!$T:$T),0)","v":{"v":0,"d":"0.000"}},{"$f":"IFERROR(SUMIF(E_PurchPrec!$R:$R,CONST_PrecursorToGoodInput&W$6&\"_\"&$D24,E_PurchPrec!$T:$T)/SUMIF(D_Processes!$R:$R,CONST_CNTR_TotProd&$D24,D_Processes!$T:$T),0)","v":{"v":0,"d":"0.000"}},{"$f":"IFERROR(SUMIF(E_PurchPrec!$R:$R,CONST_PrecursorToGoodInput&X$6&\"_\"&$D24,E_PurchPrec!$T:$T)/SUMIF(D_Processes!$R:$R,CONST_CNTR_TotProd&$D24,D_Processes!$T:$T),0)","v":{"v":0,"d":"0.000"}},{"$f":"IFERROR(SUMIF(E_PurchPrec!$R:$R,CONST_PrecursorToGoodInput&Y$6&\"_\"&$D24,E_PurchPrec!$T:$T)/SUMIF(D_Processes!$R:$R,CONST_CNTR_TotProd&$D24,D_Processes!$T:$T),0)","v":{"v":0,"d":"0.000"}},{"$f":"IFERROR(SUMIF(E_PurchPrec!$R:$R,CONST_PrecursorToGoodInput&Z$6&\"_\"&$D24,E_PurchPrec!$T:$T)/SUMIF(D_Processes!$R:$R,CONST_CNTR_TotProd&$D24,D_Processes!$T:$T),0)","v":{"v":0,"d":"0.000"}},{"$f":"IFERROR(SUMIF(E_PurchPrec!$R:$R,CONST_PrecursorToGoodInput&AA$6&\"_\"&$D24,E_PurchPrec!$T:$T)/SUMIF(D_Processes!$R:$R,CONST_CNTR_TotProd&$D24,D_Processes!$T:$T),0)","v":{"v":0,"d":"0.000"}},{"$f":"IFERROR(SUMIF(E_PurchPrec!$R:$R,CONST_PrecursorToGoodInput&AB$6&\"_\"&$D24,E_PurchPrec!$T:$T)/SUMIF(D_Processes!$R:$R,CONST_CNTR_TotProd&$D24,D_Processes!$T:$T),0)","v":{"v":0,"d":"0.000"}},{"$f":"IFERROR(SUMIF(E_PurchPrec!$R:$R,CONST_PrecursorToGoodInput&AC$6&\"_\"&$D24,E_PurchPrec!$T:$T)/SUMIF(D_Processes!$R:$R,CONST_CNTR_TotProd&$D24,D_Processes!$T:$T),0)","v":{"v":0,"d":"0.000"}},{"$f":"IFERROR(SUMIF(E_PurchPrec!$R:$R,CONST_PrecursorToGoodInput&AD$6&\"_\"&$D24,E_PurchPrec!$T:$T)/SUMIF(D_Processes!$R:$R,CONST_CNTR_TotProd&$D24,D_Processes!$T:$T),0)","v":{"v":0,"d":"0.000"}},{"$f":"IFERROR(SUMIF(E_PurchPrec!$R:$R,CONST_PrecursorToGoodInput&AE$6&\"_\"&$D24,E_PurchPrec!$T:$T)/SUMIF(D_Processes!$R:$R,CONST_CNTR_TotProd&$D24,D_Processes!$T:$T),0)","v":{"v":0,"d":"0.000"}},{"$f":"IFERROR(SUMIF(E_PurchPrec!$R:$R,CONST_PrecursorToGoodInput&AF$6&\"_\"&$D24,E_PurchPrec!$T:$T)/SUMIF(D_Processes!$R:$R,CONST_CNTR_TotProd&$D24,D_Processes!$T:$T),0)","v":{"v":0,"d":"0.000"}},{"$f":"IFERROR(SUMIF(E_PurchPrec!$R:$R,CONST_PrecursorToGoodInput&AG$6&\"_\"&$D24,E_PurchPrec!$T:$T)/SUMIF(D_Processes!$R:$R,CONST_CNTR_TotProd&$D24,D_Processes!$T:$T),0)","v":{"v":0,"d":"0.000"}},{"$f":"IFERROR(SUMIF(E_PurchPrec!$R:$R,CONST_PrecursorToGoodInput&AH$6&\"_\"&$D24,E_PurchPrec!$T:$T)/SUMIF(D_Processes!$R:$R,CONST_CNTR_TotProd&$D24,D_Processes!$T:$T),0)","v":{"v":0,"d":"0.000"}}]
[null,null,9,"",{"$f":"IFERROR(SUMIF(E_PurchPrec!$R:$R,CONST_PrecursorToGoodInput&E$6&\"_\"&$D25,E_PurchPrec!$T:$T)/SUMIF(D_Processes!$R:$R,CONST_CNTR_TotProd&$D25,D_Processes!$T:$T),0)","v":{"v":0,"d":"0.000"}},{"$f":"IFERROR(SUMIF(E_PurchPrec!$R:$R,CONST_PrecursorToGoodInput&F$6&\"_\"&$D25,E_PurchPrec!$T:$T)/SUMIF(D_Processes!$R:$R,CONST_CNTR_TotProd&$D25,D_Processes!$T:$T),0)","v":{"v":0,"d":"0.000"}},{"$f":"IFERROR(SUMIF(E_PurchPrec!$R:$R,CONST_PrecursorToGoodInput&G$6&\"_\"&$D25,E_PurchPrec!$T:$T)/SUMIF(D_Processes!$R:$R,CONST_CNTR_TotProd&$D25,D_Processes!$T:$T),0)","v":{"v":0,"d":"0.000"}},{"$f":"IFERROR(SUMIF(E_PurchPrec!$R:$R,CONST_PrecursorToGoodInput&H$6&\"_\"&$D25,E_PurchPrec!$T:$T)/SUMIF(D_Processes!$R:$R,CONST_CNTR_TotProd&$D25,D_Processes!$T:$T),0)","v":{"v":0,"d":"0.000"}},{"$f":"IFERROR(SUMIF(E_PurchPrec!$R:$R,CONST_PrecursorToGoodInput&I$6&\"_\"&$D25,E_PurchPrec!$T:$T)/SUMIF(D_Processes!$R:$R,CONST_CNTR_TotProd&$D25,D_Processes!$T:$T),0)","v":{"v":0,"d":"0.000"}},{"$f":"IFERROR(SUMIF(E_PurchPrec!$R:$R,CONST_PrecursorToGoodInput&J$6&\"_\"&$D25,E_PurchPrec!$T:$T)/SUMIF(D_Processes!$R:$R,CONST_CNTR_TotProd&$D25,D_Processes!$T:$T),0)","v":{"v":0,"d":"0.000"}},{"$f":"IFERROR(SUMIF(E_PurchPrec!$R:$R,CONST_PrecursorToGoodInput&K$6&\"_\"&$D25,E_PurchPrec!$T:$T)/SUMIF(D_Processes!$R:$R,CONST_CNTR_TotProd&$D25,D_Processes!$T:$T),0)","v":{"v":0,"d":"0.000"}},{"$f":"IFERROR(SUMIF(E_PurchPrec!$R:$R,CONST_PrecursorToGoodInput&L$6&\"_\"&$D25,E_PurchPrec!$T:$T)/SUMIF(D_Processes!$R:$R,CONST_CNTR_TotProd&$D25,D_Processes!$T:$T),0)","v":{"v":0,"d":"0.000"}},{"$f":"IFERROR(SUMIF(E_PurchPrec!$R:$R,CONST_PrecursorToGoodInput&M$6&\"_\"&$D25,E_PurchPrec!$T:$T)/SUMIF(D_Processes!$R:$R,CONST_CNTR_TotProd&$D25,D_Processes!$T:$T),0)","v":{"v":0,"d":"0.000"}},{"$f":"IFERROR(SUMIF(E_PurchPrec!$R:$R,CONST_PrecursorToGoodInput&N$6&\"_\"&$D25,E_PurchPrec!$T:$T)/SUMIF(D_Processes!$R:$R,CONST_CNTR_TotProd&$D25,D_Processes!$T:$T),0)","v":{"v":0,"d":"0.000"}},{"$f":"IFERROR(SUMIF(E_PurchPrec!$R:$R,CONST_PrecursorToGoodInput&O$6&\"_\"&$D25,E_PurchPrec!$T:$T)/SUMIF(D_Processes!$R:$R,CONST_CNTR_TotProd&$D25,D_Processes!$T:$T),0)","v":{"v":0,"d":"0.000"}},{"$f":"IFERROR(SUMIF(E_PurchPrec!$R:$R,CONST_PrecursorToGoodInput&P$6&\"_\"&$D25,E_PurchPrec!$T:$T)/SUMIF(D_Processes!$R:$R,CONST_CNTR_TotProd&$D25,D_Processes!$T:$T),0)","v":{"v":0,"d":"0.000"}},{"$f":"IFERROR(SUMIF(E_PurchPrec!$R:$R,CONST_PrecursorToGoodInput&Q$6&\"_\"&$D25,E_PurchPrec!$T:$T)/SUMIF(D_Processes!$R:$R,CONST_CNTR_TotProd&$D25,D_Processes!$T:$T),0)","v":{"v":0,"d":"0.000"}},{"$f":"IFERROR(SUMIF(E_PurchPrec!$R:$R,CONST_PrecursorToGoodInput&R$6&\"_\"&$D25,E_PurchPrec!$T:$T)/SUMIF(D_Processes!$R:$R,CONST_CNTR_TotProd&$D25,D_Processes!$T:$T),0)","v":{"v":0,"d":"0.000"}},{"$f":"IFERROR(SUMIF(E_PurchPrec!$R:$R,CONST_PrecursorToGoodInput&S$6&\"_\"&$D25,E_PurchPrec!$T:$T)/SUMIF(D_Processes!$R:$R,CONST_CNTR_TotProd&$D25,D_Processes!$T:$T),0)","v":{"v":0,"d":"0.000"}},{"$f":"IFERROR(SUMIF(E_PurchPrec!$R:$R,CONST_PrecursorToGoodInput&T$6&\"_\"&$D25,E_PurchPrec!$T:$T)/SUMIF(D_Processes!$R:$R,CONST_CNTR_TotProd&$D25,D_Processes!$T:$T),0)","v":{"v":0,"d":"0.000"}},{"$f":"IFERROR(SUMIF(E_PurchPrec!$R:$R,CONST_PrecursorToGoodInput&U$6&\"_\"&$D25,E_PurchPrec!$T:$T)/SUMIF(D_Processes!$R:$R,CONST_CNTR_TotProd&$D25,D_Processes!$T:$T),0)","v":{"v":0,"d":"0.000"}},{"$f":"IFERROR(SUMIF(E_PurchPrec!$R:$R,CONST_PrecursorToGoodInput&V$6&\"_\"&$D25,E_PurchPrec!$T:$T)/SUMIF(D_Processes!$R:$R,CONST_CNTR_TotProd&$D25,D_Processes!$T:$T),0)","v":{"v":0,"d":"0.000"}},{"$f":"IFERROR(SUMIF(E_PurchPrec!$R:$R,CONST_PrecursorToGoodInput&W$6&\"_\"&$D25,E_PurchPrec!$T:$T)/SUMIF(D_Processes!$R:$R,CONST_CNTR_TotProd&$D25,D_Processes!$T:$T),0)","v":{"v":0,"d":"0.000"}},{"$f":"IFERROR(SUMIF(E_PurchPrec!$R:$R,CONST_PrecursorToGoodInput&X$6&\"_\"&$D25,E_PurchPrec!$T:$T)/SUMIF(D_Processes!$R:$R,CONST_CNTR_TotProd&$D25,D_Processes!$T:$T),0)","v":{"v":0,"d":"0.000"}},{"$f":"IFERROR(SUMIF(E_PurchPrec!$R:$R,CONST_PrecursorToGoodInput&Y$6&\"_\"&$D25,E_PurchPrec!$T:$T)/SUMIF(D_Processes!$R:$R,CONST_CNTR_TotProd&$D25,D_Processes!$T:$T),0)","v":{"v":0,"d":"0.000"}},{"$f":"IFERROR(SUMIF(E_PurchPrec!$R:$R,CONST_PrecursorToGoodInput&Z$6&\"_\"&$D25,E_PurchPrec!$T:$T)/SUMIF(D_Processes!$R:$R,CONST_CNTR_TotProd&$D25,D_Processes!$T:$T),0)","v":{"v":0,"d":"0.000"}},{"$f":"IFERROR(SUMIF(E_PurchPrec!$R:$R,CONST_PrecursorToGoodInput&AA$6&\"_\"&$D25,E_PurchPrec!$T:$T)/SUMIF(D_Processes!$R:$R,CONST_CNTR_TotProd&$D25,D_Processes!$T:$T),0)","v":{"v":0,"d":"0.000"}},{"$f":"IFERROR(SUMIF(E_PurchPrec!$R:$R,CONST_PrecursorToGoodInput&AB$6&\"_\"&$D25,E_PurchPrec!$T:$T)/SUMIF(D_Processes!$R:$R,CONST_CNTR_TotProd&$D25,D_Processes!$T:$T),0)","v":{"v":0,"d":"0.000"}},{"$f":"IFERROR(SUMIF(E_PurchPrec!$R:$R,CONST_PrecursorToGoodInput&AC$6&\"_\"&$D25,E_PurchPrec!$T:$T)/SUMIF(D_Processes!$R:$R,CONST_CNTR_TotProd&$D25,D_Processes!$T:$T),0)","v":{"v":0,"d":"0.000"}},{"$f":"IFERROR(SUMIF(E_PurchPrec!$R:$R,CONST_PrecursorToGoodInput&AD$6&\"_\"&$D25,E_PurchPrec!$T:$T)/SUMIF(D_Processes!$R:$R,CONST_CNTR_TotProd&$D25,D_Processes!$T:$T),0)","v":{"v":0,"d":"0.000"}},{"$f":"IFERROR(SUMIF(E_PurchPrec!$R:$R,CONST_PrecursorToGoodInput&AE$6&\"_\"&$D25,E_PurchPrec!$T:$T)/SUMIF(D_Processes!$R:$R,CONST_CNTR_TotProd&$D25,D_Processes!$T:$T),0)","v":{"v":0,"d":"0.000"}},{"$f":"IFERROR(SUMIF(E_PurchPrec!$R:$R,CONST_PrecursorToGoodInput&AF$6&\"_\"&$D25,E_PurchPrec!$T:$T)/SUMIF(D_Processes!$R:$R,CONST_CNTR_TotProd&$D25,D_Processes!$T:$T),0)","v":{"v":0,"d":"0.000"}},{"$f":"IFERROR(SUMIF(E_PurchPrec!$R:$R,CONST_PrecursorToGoodInput&AG$6&\"_\"&$D25,E_PurchPrec!$T:$T)/SUMIF(D_Processes!$R:$R,CONST_CNTR_TotProd&$D25,D_Processes!$T:$T),0)","v":{"v":0,"d":"0.000"}},{"$f":"IFERROR(SUMIF(E_PurchPrec!$R:$R,CONST_PrecursorToGoodInput&AH$6&\"_\"&$D25,E_PurchPrec!$T:$T)/SUMIF(D_Processes!$R:$R,CONST_CNTR_TotProd&$D25,D_Processes!$T:$T),0)","v":{"v":0,"d":"0.000"}}]
[null,null,10,"",{"$f":"IFERROR(SUMIF(E_PurchPrec!$R:$R,CONST_PrecursorToGoodInput&E$6&\"_\"&$D26,E_PurchPrec!$T:$T)/SUMIF(D_Processes!$R:$R,CONST_CNTR_TotProd&$D26,D_Processes!$T:$T),0)","v":{"v":0,"d":"0.000"}},{"$f":"IFERROR(SUMIF(E_PurchPrec!$R:$R,CONST_PrecursorToGoodInput&F$6&\"_\"&$D26,E_PurchPrec!$T:$T)/SUMIF(D_Processes!$R:$R,CONST_CNTR_TotProd&$D26,D_Processes!$T:$T),0)","v":{"v":0,"d":"0.000"}},{"$f":"IFERROR(SUMIF(E_PurchPrec!$R:$R,CONST_PrecursorToGoodInput&G$6&\"_\"&$D26,E_PurchPrec!$T:$T)/SUMIF(D_Processes!$R:$R,CONST_CNTR_TotProd&$D26,D_Processes!$T:$T),0)","v":{"v":0,"d":"0.000"}},{"$f":"IFERROR(SUMIF(E_PurchPrec!$R:$R,CONST_PrecursorToGoodInput&H$6&\"_\"&$D26,E_PurchPrec!$T:$T)/SUMIF(D_Processes!$R:$R,CONST_CNTR_TotProd&$D26,D_Processes!$T:$T),0)","v":{"v":0,"d":"0.000"}},{"$f":"IFERROR(SUMIF(E_PurchPrec!$R:$R,CONST_PrecursorToGoodInput&I$6&\"_\"&$D26,E_PurchPrec!$T:$T)/SUMIF(D_Processes!$R:$R,CONST_CNTR_TotProd&$D26,D_Processes!$T:$T),0)","v":{"v":0,"d":"0.000"}},{"$f":"IFERROR(SUMIF(E_PurchPrec!$R:$R,CONST_PrecursorToGoodInput&J$6&\"_\"&$D26,E_PurchPrec!$T:$T)/SUMIF(D_Processes!$R:$R,CONST_CNTR_TotProd&$D26,D_Processes!$T:$T),0)","v":{"v":0,"d":"0.000"}},{"$f":"IFERROR(SUMIF(E_PurchPrec!$R:$R,CONST_PrecursorToGoodInput&K$6&\"_\"&$D26,E_PurchPrec!$T:$T)/SUMIF(D_Processes!$R:$R,CONST_CNTR_TotProd&$D26,D_Processes!$T:$T),0)","v":{"v":0,"d":"0.000"}},{"$f":"IFERROR(SUMIF(E_PurchPrec!$R:$R,CONST_PrecursorToGoodInput&L$6&\"_\"&$D26,E_PurchPrec!$T:$T)/SUMIF(D_Processes!$R:$R,CONST_CNTR_TotProd&$D26,D_Processes!$T:$T),0)","v":{"v":0,"d":"0.000"}},{"$f":"IFERROR(SUMIF(E_PurchPrec!$R:$R,CONST_PrecursorToGoodInput&M$6&\"_\"&$D26,E_PurchPrec!$T:$T)/SUMIF(D_Processes!$R:$R,CONST_CNTR_TotProd&$D26,D_Processes!$T:$T),0)","v":{"v":0,"d":"0.000"}},{"$f":"IFERROR(SUMIF(E_PurchPrec!$R:$R,CONST_PrecursorToGoodInput&N$6&\"_\"&$D26,E_PurchPrec!$T:$T)/SUMIF(D_Processes!$R:$R,CONST_CNTR_TotProd&$D26,D_Processes!$T:$T),0)","v":{"v":0,"d":"0.000"}},{"$f":"IFERROR(SUMIF(E_PurchPrec!$R:$R,CONST_PrecursorToGoodInput&O$6&\"_\"&$D26,E_PurchPrec!$T:$T)/SUMIF(D_Processes!$R:$R,CONST_CNTR_TotProd&$D26,D_Processes!$T:$T),0)","v":{"v":0,"d":"0.000"}},{"$f":"IFERROR(SUMIF(E_PurchPrec!$R:$R,CONST_PrecursorToGoodInput&P$6&\"_\"&$D26,E_PurchPrec!$T:$T)/SUMIF(D_Processes!$R:$R,CONST_CNTR_TotProd&$D26,D_Processes!$T:$T),0)","v":{"v":0,"d":"0.000"}},{"$f":"IFERROR(SUMIF(E_PurchPrec!$R:$R,CONST_PrecursorToGoodInput&Q$6&\"_\"&$D26,E_PurchPrec!$T:$T)/SUMIF(D_Processes!$R:$R,CONST_CNTR_TotProd&$D26,D_Processes!$T:$T),0)","v":{"v":0,"d":"0.000"}},{"$f":"IFERROR(SUMIF(E_PurchPrec!$R:$R,CONST_PrecursorToGoodInput&R$6&\"_\"&$D26,E_PurchPrec!$T:$T)/SUMIF(D_Processes!$R:$R,CONST_CNTR_TotProd&$D26,D_Processes!$T:$T),0)","v":{"v":0,"d":"0.000"}},{"$f":"IFERROR(SUMIF(E_PurchPrec!$R:$R,CONST_PrecursorToGoodInput&S$6&\"_\"&$D26,E_PurchPrec!$T:$T)/SUMIF(D_Processes!$R:$R,CONST_CNTR_TotProd&$D26,D_Processes!$T:$T),0)","v":{"v":0,"d":"0.000"}},{"$f":"IFERROR(SUMIF(E_PurchPrec!$R:$R,CONST_PrecursorToGoodInput&T$6&\"_\"&$D26,E_PurchPrec!$T:$T)/SUMIF(D_Processes!$R:$R,CONST_CNTR_TotProd&$D26,D_Processes!$T:$T),0)","v":{"v":0,"d":"0.000"}},{"$f":"IFERROR(SUMIF(E_PurchPrec!$R:$R,CONST_PrecursorToGoodInput&U$6&\"_\"&$D26,E_PurchPrec!$T:$T)/SUMIF(D_Processes!$R:$R,CONST_CNTR_TotProd&$D26,D_Processes!$T:$T),0)","v":{"v":0,"d":"0.000"}},{"$f":"IFERROR(SUMIF(E_PurchPrec!$R:$R,CONST_PrecursorToGoodInput&V$6&\"_\"&$D26,E_PurchPrec!$T:$T)/SUMIF(D_Processes!$R:$R,CONST_CNTR_TotProd&$D26,D_Processes!$T:$T),0)","v":{"v":0,"d":"0.000"}},{"$f":"IFERROR(SUMIF(E_PurchPrec!$R:$R,CONST_PrecursorToGoodInput&W$6&\"_\"&$D26,E_PurchPrec!$T:$T)/SUMIF(D_Processes!$R:$R,CONST_CNTR_TotProd&$D26,D_Processes!$T:$T),0)","v":{"v":0,"d":"0.000"}},{"$f":"IFERROR(SUMIF(E_PurchPrec!$R:$R,CONST_PrecursorToGoodInput&X$6&\"_\"&$D26,E_PurchPrec!$T:$T)/SUMIF(D_Processes!$R:$R,CONST_CNTR_TotProd&$D26,D_Processes!$T:$T),0)","v":{"v":0,"d":"0.000"}},{"$f":"IFERROR(SUMIF(E_PurchPrec!$R:$R,CONST_PrecursorToGoodInput&Y$6&\"_\"&$D26,E_PurchPrec!$T:$T)/SUMIF(D_Processes!$R:$R,CONST_CNTR_TotProd&$D26,D_Processes!$T:$T),0)","v":{"v":0,"d":"0.000"}},{"$f":"IFERROR(SUMIF(E_PurchPrec!$R:$R,CONST_PrecursorToGoodInput&Z$6&\"_\"&$D26,E_PurchPrec!$T:$T)/SUMIF(D_Processes!$R:$R,CONST_CNTR_TotProd&$D26,D_Processes!$T:$T),0)","v":{"v":0,"d":"0.000"}},{"$f":"IFERROR(SUMIF(E_PurchPrec!$R:$R,CONST_PrecursorToGoodInput&AA$6&\"_\"&$D26,E_PurchPrec!$T:$T)/SUMIF(D_Processes!$R:$R,CONST_CNTR_TotProd&$D26,D_Processes!$T:$T),0)","v":{"v":0,"d":"0.000"}},{"$f":"IFERROR(SUMIF(E_PurchPrec!$R:$R,CONST_PrecursorToGoodInput&AB$6&\"_\"&$D26,E_PurchPrec!$T:$T)/SUMIF(D_Processes!$R:$R,CONST_CNTR_TotProd&$D26,D_Processes!$T:$T),0)","v":{"v":0,"d":"0.000"}},{"$f":"IFERROR(SUMIF(E_PurchPrec!$R:$R,CONST_PrecursorToGoodInput&AC$6&\"_\"&$D26,E_PurchPrec!$T:$T)/SUMIF(D_Processes!$R:$R,CONST_CNTR_TotProd&$D26,D_Processes!$T:$T),0)","v":{"v":0,"d":"0.000"}},{"$f":"IFERROR(SUMIF(E_PurchPrec!$R:$R,CONST_PrecursorToGoodInput&AD$6&\"_\"&$D26,E_PurchPrec!$T:$T)/SUMIF(D_Processes!$R:$R,CONST_CNTR_TotProd&$D26,D_Processes!$T:$T),0)","v":{"v":0,"d":"0.000"}},{"$f":"IFERROR(SUMIF(E_PurchPrec!$R:$R,CONST_PrecursorToGoodInput&AE$6&\"_\"&$D26,E_PurchPrec!$T:$T)/SUMIF(D_Processes!$R:$R,CONST_CNTR_TotProd&$D26,D_Processes!$T:$T),0)","v":{"v":0,"d":"0.000"}},{"$f":"IFERROR(SUMIF(E_PurchPrec!$R:$R,CONST_PrecursorToGoodInput&AF$6&\"_\"&$D26,E_PurchPrec!$T:$T)/SUMIF(D_Processes!$R:$R,CONST_CNTR_TotProd&$D26,D_Processes!$T:$T),0)","v":{"v":0,"d":"0.000"}},{"$f":"IFERROR(SUMIF(E_PurchPrec!$R:$R,CONST_PrecursorToGoodInput&AG$6&\"_\"&$D26,E_PurchPrec!$T:$T)/SUMIF(D_Processes!$R:$R,CONST_CNTR_TotProd&$D26,D_Processes!$T:$T),0)","v":{"v":0,"d":"0.000"}},{"$f":"IFERROR(SUMIF(E_PurchPrec!$R:$R,CONST_PrecursorToGoodInput&AH$6&\"_\"&$D26,E_PurchPrec!$T:$T)/SUMIF(D_Processes!$R:$R,CONST_CNTR_TotProd&$D26,D_Processes!$T:$T),0)","v":{"v":0,"d":"0.000"}}]
[null,null,11,"",{"$f":"IFERROR(SUMIF(E_PurchPrec!$R:$R,CONST_PrecursorToGoodInput&E$6&\"_\"&$D27,E_PurchPrec!$T:$T)/SUMIF(D_Processes!$R:$R,CONST_CNTR_TotProd&$D27,D_Processes!$T:$T),0)","v":{"v":0,"d":"0.000"}},{"$f":"IFERROR(SUMIF(E_PurchPrec!$R:$R,CONST_PrecursorToGoodInput&F$6&\"_\"&$D27,E_PurchPrec!$T:$T)/SUMIF(D_Processes!$R:$R,CONST_CNTR_TotProd&$D27,D_Processes!$T:$T),0)","v":{"v":0,"d":"0.000"}},{"$f":"IFERROR(SUMIF(E_PurchPrec!$R:$R,CONST_PrecursorToGoodInput&G$6&\"_\"&$D27,E_PurchPrec!$T:$T)/SUMIF(D_Processes!$R:$R,CONST_CNTR_TotProd&$D27,D_Processes!$T:$T),0)","v":{"v":0,"d":"0.000"}},{"$f":"IFERROR(SUMIF(E_PurchPrec!$R:$R,CONST_PrecursorToGoodInput&H$6&\"_\"&$D27,E_PurchPrec!$T:$T)/SUMIF(D_Processes!$R:$R,CONST_CNTR_TotProd&$D27,D_Processes!$T:$T),0)","v":{"v":0,"d":"0.000"}},{"$f":"IFERROR(SUMIF(E_PurchPrec!$R:$R,CONST_PrecursorToGoodInput&I$6&\"_\"&$D27,E_PurchPrec!$T:$T)/SUMIF(D_Processes!$R:$R,CONST_CNTR_TotProd&$D27,D_Processes!$T:$T),0)","v":{"v":0,"d":"0.000"}},{"$f":"IFERROR(SUMIF(E_PurchPrec!$R:$R,CONST_PrecursorToGoodInput&J$6&\"_\"&$D27,E_PurchPrec!$T:$T)/SUMIF(D_Processes!$R:$R,CONST_CNTR_TotProd&$D27,D_Processes!$T:$T),0)","v":{"v":0,"d":"0.000"}},{"$f":"IFERROR(SUMIF(E_PurchPrec!$R:$R,CONST_PrecursorToGoodInput&K$6&\"_\"&$D27,E_PurchPrec!$T:$T)/SUMIF(D_Processes!$R:$R,CONST_CNTR_TotProd&$D27,D_Processes!$T:$T),0)","v":{"v":0,"d":"0.000"}},{"$f":"IFERROR(SUMIF(E_PurchPrec!$R:$R,CONST_PrecursorToGoodInput&L$6&\"_\"&$D27,E_PurchPrec!$T:$T)/SUMIF(D_Processes!$R:$R,CONST_CNTR_TotProd&$D27,D_Processes!$T:$T),0)","v":{"v":0,"d":"0.000"}},{"$f":"IFERROR(SUMIF(E_PurchPrec!$R:$R,CONST_PrecursorToGoodInput&M$6&\"_\"&$D27,E_PurchPrec!$T:$T)/SUMIF(D_Processes!$R:$R,CONST_CNTR_TotProd&$D27,D_Processes!$T:$T),0)","v":{"v":0,"d":"0.000"}},{"$f":"IFERROR(SUMIF(E_PurchPrec!$R:$R,CONST_PrecursorToGoodInput&N$6&\"_\"&$D27,E_PurchPrec!$T:$T)/SUMIF(D_Processes!$R:$R,CONST_CNTR_TotProd&$D27,D_Processes!$T:$T),0)","v":{"v":0,"d":"0.000"}},{"$f":"IFERROR(SUMIF(E_PurchPrec!$R:$R,CONST_PrecursorToGoodInput&O$6&\"_\"&$D27,E_PurchPrec!$T:$T)/SUMIF(D_Processes!$R:$R,CONST_CNTR_TotProd&$D27,D_Processes!$T:$T),0)","v":{"v":0,"d":"0.000"}},{"$f":"IFERROR(SUMIF(E_PurchPrec!$R:$R,CONST_PrecursorToGoodInput&P$6&\"_\"&$D27,E_PurchPrec!$T:$T)/SUMIF(D_Processes!$R:$R,CONST_CNTR_TotProd&$D27,D_Processes!$T:$T),0)","v":{"v":0,"d":"0.000"}},{"$f":"IFERROR(SUMIF(E_PurchPrec!$R:$R,CONST_PrecursorToGoodInput&Q$6&\"_\"&$D27,E_PurchPrec!$T:$T)/SUMIF(D_Processes!$R:$R,CONST_CNTR_TotProd&$D27,D_Processes!$T:$T),0)","v":{"v":0,"d":"0.000"}},{"$f":"IFERROR(SUMIF(E_PurchPrec!$R:$R,CONST_PrecursorToGoodInput&R$6&\"_\"&$D27,E_PurchPrec!$T:$T)/SUMIF(D_Processes!$R:$R,CONST_CNTR_TotProd&$D27,D_Processes!$T:$T),0)","v":{"v":0,"d":"0.000"}},{"$f":"IFERROR(SUMIF(E_PurchPrec!$R:$R,CONST_PrecursorToGoodInput&S$6&\"_\"&$D27,E_PurchPrec!$T:$T)/SUMIF(D_Processes!$R:$R,CONST_CNTR_TotProd&$D27,D_Processes!$T:$T),0)","v":{"v":0,"d":"0.000"}},{"$f":"IFERROR(SUMIF(E_PurchPrec!$R:$R,CONST_PrecursorToGoodInput&T$6&\"_\"&$D27,E_PurchPrec!$T:$T)/SUMIF(D_Processes!$R:$R,CONST_CNTR_TotProd&$D27,D_Processes!$T:$T),0)","v":{"v":0,"d":"0.000"}},{"$f":"IFERROR(SUMIF(E_PurchPrec!$R:$R,CONST_PrecursorToGoodInput&U$6&\"_\"&$D27,E_PurchPrec!$T:$T)/SUMIF(D_Processes!$R:$R,CONST_CNTR_TotProd&$D27,D_Processes!$T:$T),0)","v":{"v":0,"d":"0.000"}},{"$f":"IFERROR(SUMIF(E_PurchPrec!$R:$R,CONST_PrecursorToGoodInput&V$6&\"_\"&$D27,E_PurchPrec!$T:$T)/SUMIF(D_Processes!$R:$R,CONST_CNTR_TotProd&$D27,D_Processes!$T:$T),0)","v":{"v":0,"d":"0.000"}},{"$f":"IFERROR(SUMIF(E_PurchPrec!$R:$R,CONST_PrecursorToGoodInput&W$6&\"_\"&$D27,E_PurchPrec!$T:$T)/SUMIF(D_Processes!$R:$R,CONST_CNTR_TotProd&$D27,D_Processes!$T:$T),0)","v":{"v":0,"d":"0.000"}},{"$f":"IFERROR(SUMIF(E_PurchPrec!$R:$R,CONST_PrecursorToGoodInput&X$6&\"_\"&$D27,E_PurchPrec!$T:$T)/SUMIF(D_Processes!$R:$R,CONST_CNTR_TotProd&$D27,D_Processes!$T:$T),0)","v":{"v":0,"d":"0.000"}},{"$f":"IFERROR(SUMIF(E_PurchPrec!$R:$R,CONST_PrecursorToGoodInput&Y$6&\"_\"&$D27,E_PurchPrec!$T:$T)/SUMIF(D_Processes!$R:$R,CONST_CNTR_TotProd&$D27,D_Processes!$T:$T),0)","v":{"v":0,"d":"0.000"}},{"$f":"IFERROR(SUMIF(E_PurchPrec!$R:$R,CONST_PrecursorToGoodInput&Z$6&\"_\"&$D27,E_PurchPrec!$T:$T)/SUMIF(D_Processes!$R:$R,CONST_CNTR_TotProd&$D27,D_Processes!$T:$T),0)","v":{"v":0,"d":"0.000"}},{"$f":"IFERROR(SUMIF(E_PurchPrec!$R:$R,CONST_PrecursorToGoodInput&AA$6&\"_\"&$D27,E_PurchPrec!$T:$T)/SUMIF(D_Processes!$R:$R,CONST_CNTR_TotProd&$D27,D_Processes!$T:$T),0)","v":{"v":0,"d":"0.000"}},{"$f":"IFERROR(SUMIF(E_PurchPrec!$R:$R,CONST_PrecursorToGoodInput&AB$6&\"_\"&$D27,E_PurchPrec!$T:$T)/SUMIF(D_Processes!$R:$R,CONST_CNTR_TotProd&$D27,D_Processes!$T:$T),0)","v":{"v":0,"d":"0.000"}},{"$f":"IFERROR(SUMIF(E_PurchPrec!$R:$R,CONST_PrecursorToGoodInput&AC$6&\"_\"&$D27,E_PurchPrec!$T:$T)/SUMIF(D_Processes!$R:$R,CONST_CNTR_TotProd&$D27,D_Processes!$T:$T),0)","v":{"v":0,"d":"0.000"}},{"$f":"IFERROR(SUMIF(E_PurchPrec!$R:$R,CONST_PrecursorToGoodInput&AD$6&\"_\"&$D27,E_PurchPrec!$T:$T)/SUMIF(D_Processes!$R:$R,CONST_CNTR_TotProd&$D27,D_Processes!$T:$T),0)","v":{"v":0,"d":"0.000"}},{"$f":"IFERROR(SUMIF(E_PurchPrec!$R:$R,CONST_PrecursorToGoodInput&AE$6&\"_\"&$D27,E_PurchPrec!$T:$T)/SUMIF(D_Processes!$R:$R,CONST_CNTR_TotProd&$D27,D_Processes!$T:$T),0)","v":{"v":0,"d":"0.000"}},{"$f":"IFERROR(SUMIF(E_PurchPrec!$R:$R,CONST_PrecursorToGoodInput&AF$6&\"_\"&$D27,E_PurchPrec!$T:$T)/SUMIF(D_Processes!$R:$R,CONST_CNTR_TotProd&$D27,D_Processes!$T:$T),0)","v":{"v":0,"d":"0.000"}},{"$f":"IFERROR(SUMIF(E_PurchPrec!$R:$R,CONST_PrecursorToGoodInput&AG$6&\"_\"&$D27,E_PurchPrec!$T:$T)/SUMIF(D_Processes!$R:$R,CONST_CNTR_TotProd&$D27,D_Processes!$T:$T),0)","v":{"v":0,"d":"0.000"}},{"$f":"IFERROR(SUMIF(E_PurchPrec!$R:$R,CONST_PrecursorToGoodInput&AH$6&\"_\"&$D27,E_PurchPrec!$T:$T)/SUMIF(D_Processes!$R:$R,CONST_CNTR_TotProd&$D27,D_Processes!$T:$T),0)","v":{"v":0,"d":"0.000"}}]
[null,null,12,"",{"$f":"IFERROR(SUMIF(E_PurchPrec!$R:$R,CONST_PrecursorToGoodInput&E$6&\"_\"&$D28,E_PurchPrec!$T:$T)/SUMIF(D_Processes!$R:$R,CONST_CNTR_TotProd&$D28,D_Processes!$T:$T),0)","v":{"v":0,"d":"0.000"}},{"$f":"IFERROR(SUMIF(E_PurchPrec!$R:$R,CONST_PrecursorToGoodInput&F$6&\"_\"&$D28,E_PurchPrec!$T:$T)/SUMIF(D_Processes!$R:$R,CONST_CNTR_TotProd&$D28,D_Processes!$T:$T),0)","v":{"v":0,"d":"0.000"}},{"$f":"IFERROR(SUMIF(E_PurchPrec!$R:$R,CONST_PrecursorToGoodInput&G$6&\"_\"&$D28,E_PurchPrec!$T:$T)/SUMIF(D_Processes!$R:$R,CONST_CNTR_TotProd&$D28,D_Processes!$T:$T),0)","v":{"v":0,"d":"0.000"}},{"$f":"IFERROR(SUMIF(E_PurchPrec!$R:$R,CONST_PrecursorToGoodInput&H$6&\"_\"&$D28,E_PurchPrec!$T:$T)/SUMIF(D_Processes!$R:$R,CONST_CNTR_TotProd&$D28,D_Processes!$T:$T),0)","v":{"v":0,"d":"0.000"}},{"$f":"IFERROR(SUMIF(E_PurchPrec!$R:$R,CONST_PrecursorToGoodInput&I$6&\"_\"&$D28,E_PurchPrec!$T:$T)/SUMIF(D_Processes!$R:$R,CONST_CNTR_TotProd&$D28,D_Processes!$T:$T),0)","v":{"v":0,"d":"0.000"}},{"$f":"IFERROR(SUMIF(E_PurchPrec!$R:$R,CONST_PrecursorToGoodInput&J$6&\"_\"&$D28,E_PurchPrec!$T:$T)/SUMIF(D_Processes!$R:$R,CONST_CNTR_TotProd&$D28,D_Processes!$T:$T),0)","v":{"v":0,"d":"0.000"}},{"$f":"IFERROR(SUMIF(E_PurchPrec!$R:$R,CONST_PrecursorToGoodInput&K$6&\"_\"&$D28,E_PurchPrec!$T:$T)/SUMIF(D_Processes!$R:$R,CONST_CNTR_TotProd&$D28,D_Processes!$T:$T),0)","v":{"v":0,"d":"0.000"}},{"$f":"IFERROR(SUMIF(E_PurchPrec!$R:$R,CONST_PrecursorToGoodInput&L$6&\"_\"&$D28,E_PurchPrec!$T:$T)/SUMIF(D_Processes!$R:$R,CONST_CNTR_TotProd&$D28,D_Processes!$T:$T),0)","v":{"v":0,"d":"0.000"}},{"$f":"IFERROR(SUMIF(E_PurchPrec!$R:$R,CONST_PrecursorToGoodInput&M$6&\"_\"&$D28,E_PurchPrec!$T:$T)/SUMIF(D_Processes!$R:$R,CONST_CNTR_TotProd&$D28,D_Processes!$T:$T),0)","v":{"v":0,"d":"0.000"}},{"$f":"IFERROR(SUMIF(E_PurchPrec!$R:$R,CONST_PrecursorToGoodInput&N$6&\"_\"&$D28,E_PurchPrec!$T:$T)/SUMIF(D_Processes!$R:$R,CONST_CNTR_TotProd&$D28,D_Processes!$T:$T),0)","v":{"v":0,"d":"0.000"}},{"$f":"IFERROR(SUMIF(E_PurchPrec!$R:$R,CONST_PrecursorToGoodInput&O$6&\"_\"&$D28,E_PurchPrec!$T:$T)/SUMIF(D_Processes!$R:$R,CONST_CNTR_TotProd&$D28,D_Processes!$T:$T),0)","v":{"v":0,"d":"0.000"}},{"$f":"IFERROR(SUMIF(E_PurchPrec!$R:$R,CONST_PrecursorToGoodInput&P$6&\"_\"&$D28,E_PurchPrec!$T:$T)/SUMIF(D_Processes!$R:$R,CONST_CNTR_TotProd&$D28,D_Processes!$T:$T),0)","v":{"v":0,"d":"0.000"}},{"$f":"IFERROR(SUMIF(E_PurchPrec!$R:$R,CONST_PrecursorToGoodInput&Q$6&\"_\"&$D28,E_PurchPrec!$T:$T)/SUMIF(D_Processes!$R:$R,CONST_CNTR_TotProd&$D28,D_Processes!$T:$T),0)","v":{"v":0,"d":"0.000"}},{"$f":"IFERROR(SUMIF(E_PurchPrec!$R:$R,CONST_PrecursorToGoodInput&R$6&\"_\"&$D28,E_PurchPrec!$T:$T)/SUMIF(D_Processes!$R:$R,CONST_CNTR_TotProd&$D28,D_Processes!$T:$T),0)","v":{"v":0,"d":"0.000"}},{"$f":"IFERROR(SUMIF(E_PurchPrec!$R:$R,CONST_PrecursorToGoodInput&S$6&\"_\"&$D28,E_PurchPrec!$T:$T)/SUMIF(D_Processes!$R:$R,CONST_CNTR_TotProd&$D28,D_Processes!$T:$T),0)","v":{"v":0,"d":"0.000"}},{"$f":"IFERROR(SUMIF(E_PurchPrec!$R:$R,CONST_PrecursorToGoodInput&T$6&\"_\"&$D28,E_PurchPrec!$T:$T)/SUMIF(D_Processes!$R:$R,CONST_CNTR_TotProd&$D28,D_Processes!$T:$T),0)","v":{"v":0,"d":"0.000"}},{"$f":"IFERROR(SUMIF(E_PurchPrec!$R:$R,CONST_PrecursorToGoodInput&U$6&\"_\"&$D28,E_PurchPrec!$T:$T)/SUMIF(D_Processes!$R:$R,CONST_CNTR_TotProd&$D28,D_Processes!$T:$T),0)","v":{"v":0,"d":"0.000"}},{"$f":"IFERROR(SUMIF(E_PurchPrec!$R:$R,CONST_PrecursorToGoodInput&V$6&\"_\"&$D28,E_PurchPrec!$T:$T)/SUMIF(D_Processes!$R:$R,CONST_CNTR_TotProd&$D28,D_Processes!$T:$T),0)","v":{"v":0,"d":"0.000"}},{"$f":"IFERROR(SUMIF(E_PurchPrec!$R:$R,CONST_PrecursorToGoodInput&W$6&\"_\"&$D28,E_PurchPrec!$T:$T)/SUMIF(D_Processes!$R:$R,CONST_CNTR_TotProd&$D28,D_Processes!$T:$T),0)","v":{"v":0,"d":"0.000"}},{"$f":"IFERROR(SUMIF(E_PurchPrec!$R:$R,CONST_PrecursorToGoodInput&X$6&\"_\"&$D28,E_PurchPrec!$T:$T)/SUMIF(D_Processes!$R:$R,CONST_CNTR_TotProd&$D28,D_Processes!$T:$T),0)","v":{"v":0,"d":"0.000"}},{"$f":"IFERROR(SUMIF(E_PurchPrec!$R:$R,CONST_PrecursorToGoodInput&Y$6&\"_\"&$D28,E_PurchPrec!$T:$T)/SUMIF(D_Processes!$R:$R,CONST_CNTR_TotProd&$D28,D_Processes!$T:$T),0)","v":{"v":0,"d":"0.000"}},{"$f":"IFERROR(SUMIF(E_PurchPrec!$R:$R,CONST_PrecursorToGoodInput&Z$6&\"_\"&$D28,E_PurchPrec!$T:$T)/SUMIF(D_Processes!$R:$R,CONST_CNTR_TotProd&$D28,D_Processes!$T:$T),0)","v":{"v":0,"d":"0.000"}},{"$f":"IFERROR(SUMIF(E_PurchPrec!$R:$R,CONST_PrecursorToGoodInput&AA$6&\"_\"&$D28,E_PurchPrec!$T:$T)/SUMIF(D_Processes!$R:$R,CONST_CNTR_TotProd&$D28,D_Processes!$T:$T),0)","v":{"v":0,"d":"0.000"}},{"$f":"IFERROR(SUMIF(E_PurchPrec!$R:$R,CONST_PrecursorToGoodInput&AB$6&\"_\"&$D28,E_PurchPrec!$T:$T)/SUMIF(D_Processes!$R:$R,CONST_CNTR_TotProd&$D28,D_Processes!$T:$T),0)","v":{"v":0,"d":"0.000"}},{"$f":"IFERROR(SUMIF(E_PurchPrec!$R:$R,CONST_PrecursorToGoodInput&AC$6&\"_\"&$D28,E_PurchPrec!$T:$T)/SUMIF(D_Processes!$R:$R,CONST_CNTR_TotProd&$D28,D_Processes!$T:$T),0)","v":{"v":0,"d":"0.000"}},{"$f":"IFERROR(SUMIF(E_PurchPrec!$R:$R,CONST_PrecursorToGoodInput&AD$6&\"_\"&$D28,E_PurchPrec!$T:$T)/SUMIF(D_Processes!$R:$R,CONST_CNTR_TotProd&$D28,D_Processes!$T:$T),0)","v":{"v":0,"d":"0.000"}},{"$f":"IFERROR(SUMIF(E_PurchPrec!$R:$R,CONST_PrecursorToGoodInput&AE$6&\"_\"&$D28,E_PurchPrec!$T:$T)/SUMIF(D_Processes!$R:$R,CONST_CNTR_TotProd&$D28,D_Processes!$T:$T),0)","v":{"v":0,"d":"0.000"}},{"$f":"IFERROR(SUMIF(E_PurchPrec!$R:$R,CONST_PrecursorToGoodInput&AF$6&\"_\"&$D28,E_PurchPrec!$T:$T)/SUMIF(D_Processes!$R:$R,CONST_CNTR_TotProd&$D28,D_Processes!$T:$T),0)","v":{"v":0,"d":"0.000"}},{"$f":"IFERROR(SUMIF(E_PurchPrec!$R:$R,CONST_PrecursorToGoodInput&AG$6&\"_\"&$D28,E_PurchPrec!$T:$T)/SUMIF(D_Processes!$R:$R,CONST_CNTR_TotProd&$D28,D_Processes!$T:$T),0)","v":{"v":0,"d":"0.000"}},{"$f":"IFERROR(SUMIF(E_PurchPrec!$R:$R,CONST_PrecursorToGoodInput&AH$6&\"_\"&$D28,E_PurchPrec!$T:$T)/SUMIF(D_Processes!$R:$R,CONST_CNTR_TotProd&$D28,D_Processes!$T:$T),0)","v":{"v":0,"d":"0.000"}}]
[null,null,13,"",{"$f":"IFERROR(SUMIF(E_PurchPrec!$R:$R,CONST_PrecursorToGoodInput&E$6&\"_\"&$D29,E_PurchPrec!$T:$T)/SUMIF(D_Processes!$R:$R,CONST_CNTR_TotProd&$D29,D_Processes!$T:$T),0)","v":{"v":0,"d":"0.000"}},{"$f":"IFERROR(SUMIF(E_PurchPrec!$R:$R,CONST_PrecursorToGoodInput&F$6&\"_\"&$D29,E_PurchPrec!$T:$T)/SUMIF(D_Processes!$R:$R,CONST_CNTR_TotProd&$D29,D_Processes!$T:$T),0)","v":{"v":0,"d":"0.000"}},{"$f":"IFERROR(SUMIF(E_PurchPrec!$R:$R,CONST_PrecursorToGoodInput&G$6&\"_\"&$D29,E_PurchPrec!$T:$T)/SUMIF(D_Processes!$R:$R,CONST_CNTR_TotProd&$D29,D_Processes!$T:$T),0)","v":{"v":0,"d":"0.000"}},{"$f":"IFERROR(SUMIF(E_PurchPrec!$R:$R,CONST_PrecursorToGoodInput&H$6&\"_\"&$D29,E_PurchPrec!$T:$T)/SUMIF(D_Processes!$R:$R,CONST_CNTR_TotProd&$D29,D_Processes!$T:$T),0)","v":{"v":0,"d":"0.000"}},{"$f":"IFERROR(SUMIF(E_PurchPrec!$R:$R,CONST_PrecursorToGoodInput&I$6&\"_\"&$D29,E_PurchPrec!$T:$T)/SUMIF(D_Processes!$R:$R,CONST_CNTR_TotProd&$D29,D_Processes!$T:$T),0)","v":{"v":0,"d":"0.000"}},{"$f":"IFERROR(SUMIF(E_PurchPrec!$R:$R,CONST_PrecursorToGoodInput&J$6&\"_\"&$D29,E_PurchPrec!$T:$T)/SUMIF(D_Processes!$R:$R,CONST_CNTR_TotProd&$D29,D_Processes!$T:$T),0)","v":{"v":0,"d":"0.000"}},{"$f":"IFERROR(SUMIF(E_PurchPrec!$R:$R,CONST_PrecursorToGoodInput&K$6&\"_\"&$D29,E_PurchPrec!$T:$T)/SUMIF(D_Processes!$R:$R,CONST_CNTR_TotProd&$D29,D_Processes!$T:$T),0)","v":{"v":0,"d":"0.000"}},{"$f":"IFERROR(SUMIF(E_PurchPrec!$R:$R,CONST_PrecursorToGoodInput&L$6&\"_\"&$D29,E_PurchPrec!$T:$T)/SUMIF(D_Processes!$R:$R,CONST_CNTR_TotProd&$D29,D_Processes!$T:$T),0)","v":{"v":0,"d":"0.000"}},{"$f":"IFERROR(SUMIF(E_PurchPrec!$R:$R,CONST_PrecursorToGoodInput&M$6&\"_\"&$D29,E_PurchPrec!$T:$T)/SUMIF(D_Processes!$R:$R,CONST_CNTR_TotProd&$D29,D_Processes!$T:$T),0)","v":{"v":0,"d":"0.000"}},{"$f":"IFERROR(SUMIF(E_PurchPrec!$R:$R,CONST_PrecursorToGoodInput&N$6&\"_\"&$D29,E_PurchPrec!$T:$T)/SUMIF(D_Processes!$R:$R,CONST_CNTR_TotProd&$D29,D_Processes!$T:$T),0)","v":{"v":0,"d":"0.000"}},{"$f":"IFERROR(SUMIF(E_PurchPrec!$R:$R,CONST_PrecursorToGoodInput&O$6&\"_\"&$D29,E_PurchPrec!$T:$T)/SUMIF(D_Processes!$R:$R,CONST_CNTR_TotProd&$D29,D_Processes!$T:$T),0)","v":{"v":0,"d":"0.000"}},{"$f":"IFERROR(SUMIF(E_PurchPrec!$R:$R,CONST_PrecursorToGoodInput&P$6&\"_\"&$D29,E_PurchPrec!$T:$T)/SUMIF(D_Processes!$R:$R,CONST_CNTR_TotProd&$D29,D_Processes!$T:$T),0)","v":{"v":0,"d":"0.000"}},{"$f":"IFERROR(SUMIF(E_PurchPrec!$R:$R,CONST_PrecursorToGoodInput&Q$6&\"_\"&$D29,E_PurchPrec!$T:$T)/SUMIF(D_Processes!$R:$R,CONST_CNTR_TotProd&$D29,D_Processes!$T:$T),0)","v":{"v":0,"d":"0.000"}},{"$f":"IFERROR(SUMIF(E_PurchPrec!$R:$R,CONST_PrecursorToGoodInput&R$6&\"_\"&$D29,E_PurchPrec!$T:$T)/SUMIF(D_Processes!$R:$R,CONST_CNTR_TotProd&$D29,D_Processes!$T:$T),0)","v":{"v":0,"d":"0.000"}},{"$f":"IFERROR(SUMIF(E_PurchPrec!$R:$R,CONST_PrecursorToGoodInput&S$6&\"_\"&$D29,E_PurchPrec!$T:$T)/SUMIF(D_Processes!$R:$R,CONST_CNTR_TotProd&$D29,D_Processes!$T:$T),0)","v":{"v":0,"d":"0.000"}},{"$f":"IFERROR(SUMIF(E_PurchPrec!$R:$R,CONST_PrecursorToGoodInput&T$6&\"_\"&$D29,E_PurchPrec!$T:$T)/SUMIF(D_Processes!$R:$R,CONST_CNTR_TotProd&$D29,D_Processes!$T:$T),0)","v":{"v":0,"d":"0.000"}},{"$f":"IFERROR(SUMIF(E_PurchPrec!$R:$R,CONST_PrecursorToGoodInput&U$6&\"_\"&$D29,E_PurchPrec!$T:$T)/SUMIF(D_Processes!$R:$R,CONST_CNTR_TotProd&$D29,D_Processes!$T:$T),0)","v":{"v":0,"d":"0.000"}},{"$f":"IFERROR(SUMIF(E_PurchPrec!$R:$R,CONST_PrecursorToGoodInput&V$6&\"_\"&$D29,E_PurchPrec!$T:$T)/SUMIF(D_Processes!$R:$R,CONST_CNTR_TotProd&$D29,D_Processes!$T:$T),0)","v":{"v":0,"d":"0.000"}},{"$f":"IFERROR(SUMIF(E_PurchPrec!$R:$R,CONST_PrecursorToGoodInput&W$6&\"_\"&$D29,E_PurchPrec!$T:$T)/SUMIF(D_Processes!$R:$R,CONST_CNTR_TotProd&$D29,D_Processes!$T:$T),0)","v":{"v":0,"d":"0.000"}},{"$f":"IFERROR(SUMIF(E_PurchPrec!$R:$R,CONST_PrecursorToGoodInput&X$6&\"_\"&$D29,E_PurchPrec!$T:$T)/SUMIF(D_Processes!$R:$R,CONST_CNTR_TotProd&$D29,D_Processes!$T:$T),0)","v":{"v":0,"d":"0.000"}},{"$f":"IFERROR(SUMIF(E_PurchPrec!$R:$R,CONST_PrecursorToGoodInput&Y$6&\"_\"&$D29,E_PurchPrec!$T:$T)/SUMIF(D_Processes!$R:$R,CONST_CNTR_TotProd&$D29,D_Processes!$T:$T),0)","v":{"v":0,"d":"0.000"}},{"$f":"IFERROR(SUMIF(E_PurchPrec!$R:$R,CONST_PrecursorToGoodInput&Z$6&\"_\"&$D29,E_PurchPrec!$T:$T)/SUMIF(D_Processes!$R:$R,CONST_CNTR_TotProd&$D29,D_Processes!$T:$T),0)","v":{"v":0,"d":"0.000"}},{"$f":"IFERROR(SUMIF(E_PurchPrec!$R:$R,CONST_PrecursorToGoodInput&AA$6&\"_\"&$D29,E_PurchPrec!$T:$T)/SUMIF(D_Processes!$R:$R,CONST_CNTR_TotProd&$D29,D_Processes!$T:$T),0)","v":{"v":0,"d":"0.000"}},{"$f":"IFERROR(SUMIF(E_PurchPrec!$R:$R,CONST_PrecursorToGoodInput&AB$6&\"_\"&$D29,E_PurchPrec!$T:$T)/SUMIF(D_Processes!$R:$R,CONST_CNTR_TotProd&$D29,D_Processes!$T:$T),0)","v":{"v":0,"d":"0.000"}},{"$f":"IFERROR(SUMIF(E_PurchPrec!$R:$R,CONST_PrecursorToGoodInput&AC$6&\"_\"&$D29,E_PurchPrec!$T:$T)/SUMIF(D_Processes!$R:$R,CONST_CNTR_TotProd&$D29,D_Processes!$T:$T),0)","v":{"v":0,"d":"0.000"}},{"$f":"IFERROR(SUMIF(E_PurchPrec!$R:$R,CONST_PrecursorToGoodInput&AD$6&\"_\"&$D29,E_PurchPrec!$T:$T)/SUMIF(D_Processes!$R:$R,CONST_CNTR_TotProd&$D29,D_Processes!$T:$T),0)","v":{"v":0,"d":"0.000"}},{"$f":"IFERROR(SUMIF(E_PurchPrec!$R:$R,CONST_PrecursorToGoodInput&AE$6&\"_\"&$D29,E_PurchPrec!$T:$T)/SUMIF(D_Processes!$R:$R,CONST_CNTR_TotProd&$D29,D_Processes!$T:$T),0)","v":{"v":0,"d":"0.000"}},{"$f":"IFERROR(SUMIF(E_PurchPrec!$R:$R,CONST_PrecursorToGoodInput&AF$6&\"_\"&$D29,E_PurchPrec!$T:$T)/SUMIF(D_Processes!$R:$R,CONST_CNTR_TotProd&$D29,D_Processes!$T:$T),0)","v":{"v":0,"d":"0.000"}},{"$f":"IFERROR(SUMIF(E_PurchPrec!$R:$R,CONST_PrecursorToGoodInput&AG$6&\"_\"&$D29,E_PurchPrec!$T:$T)/SUMIF(D_Processes!$R:$R,CONST_CNTR_TotProd&$D29,D_Processes!$T:$T),0)","v":{"v":0,"d":"0.000"}},{"$f":"IFERROR(SUMIF(E_PurchPrec!$R:$R,CONST_PrecursorToGoodInput&AH$6&\"_\"&$D29,E_PurchPrec!$T:$T)/SUMIF(D_Processes!$R:$R,CONST_CNTR_TotProd&$D29,D_Processes!$T:$T),0)","v":{"v":0,"d":"0.000"}}]
[null,null,14,"",{"$f":"IFERROR(SUMIF(E_PurchPrec!$R:$R,CONST_PrecursorToGoodInput&E$6&\"_\"&$D30,E_PurchPrec!$T:$T)/SUMIF(D_Processes!$R:$R,CONST_CNTR_TotProd&$D30,D_Processes!$T:$T),0)","v":{"v":0,"d":"0.000"}},{"$f":"IFERROR(SUMIF(E_PurchPrec!$R:$R,CONST_PrecursorToGoodInput&F$6&\"_\"&$D30,E_PurchPrec!$T:$T)/SUMIF(D_Processes!$R:$R,CONST_CNTR_TotProd&$D30,D_Processes!$T:$T),0)","v":{"v":0,"d":"0.000"}},{"$f":"IFERROR(SUMIF(E_PurchPrec!$R:$R,CONST_PrecursorToGoodInput&G$6&\"_\"&$D30,E_PurchPrec!$T:$T)/SUMIF(D_Processes!$R:$R,CONST_CNTR_TotProd&$D30,D_Processes!$T:$T),0)","v":{"v":0,"d":"0.000"}},{"$f":"IFERROR(SUMIF(E_PurchPrec!$R:$R,CONST_PrecursorToGoodInput&H$6&\"_\"&$D30,E_PurchPrec!$T:$T)/SUMIF(D_Processes!$R:$R,CONST_CNTR_TotProd&$D30,D_Processes!$T:$T),0)","v":{"v":0,"d":"0.000"}},{"$f":"IFERROR(SUMIF(E_PurchPrec!$R:$R,CONST_PrecursorToGoodInput&I$6&\"_\"&$D30,E_PurchPrec!$T:$T)/SUMIF(D_Processes!$R:$R,CONST_CNTR_TotProd&$D30,D_Processes!$T:$T),0)","v":{"v":0,"d":"0.000"}},{"$f":"IFERROR(SUMIF(E_PurchPrec!$R:$R,CONST_PrecursorToGoodInput&J$6&\"_\"&$D30,E_PurchPrec!$T:$T)/SUMIF(D_Processes!$R:$R,CONST_CNTR_TotProd&$D30,D_Processes!$T:$T),0)","v":{"v":0,"d":"0.000"}},{"$f":"IFERROR(SUMIF(E_PurchPrec!$R:$R,CONST_PrecursorToGoodInput&K$6&\"_\"&$D30,E_PurchPrec!$T:$T)/SUMIF(D_Processes!$R:$R,CONST_CNTR_TotProd&$D30,D_Processes!$T:$T),0)","v":{"v":0,"d":"0.000"}},{"$f":"IFERROR(SUMIF(E_PurchPrec!$R:$R,CONST_PrecursorToGoodInput&L$6&\"_\"&$D30,E_PurchPrec!$T:$T)/SUMIF(D_Processes!$R:$R,CONST_CNTR_TotProd&$D30,D_Processes!$T:$T),0)","v":{"v":0,"d":"0.000"}},{"$f":"IFERROR(SUMIF(E_PurchPrec!$R:$R,CONST_PrecursorToGoodInput&M$6&\"_\"&$D30,E_PurchPrec!$T:$T)/SUMIF(D_Processes!$R:$R,CONST_CNTR_TotProd&$D30,D_Processes!$T:$T),0)","v":{"v":0,"d":"0.000"}},{"$f":"IFERROR(SUMIF(E_PurchPrec!$R:$R,CONST_PrecursorToGoodInput&N$6&\"_\"&$D30,E_PurchPrec!$T:$T)/SUMIF(D_Processes!$R:$R,CONST_CNTR_TotProd&$D30,D_Processes!$T:$T),0)","v":{"v":0,"d":"0.000"}},{"$f":"IFERROR(SUMIF(E_PurchPrec!$R:$R,CONST_PrecursorToGoodInput&O$6&\"_\"&$D30,E_PurchPrec!$T:$T)/SUMIF(D_Processes!$R:$R,CONST_CNTR_TotProd&$D30,D_Processes!$T:$T),0)","v":{"v":0,"d":"0.000"}},{"$f":"IFERROR(SUMIF(E_PurchPrec!$R:$R,CONST_PrecursorToGoodInput&P$6&\"_\"&$D30,E_PurchPrec!$T:$T)/SUMIF(D_Processes!$R:$R,CONST_CNTR_TotProd&$D30,D_Processes!$T:$T),0)","v":{"v":0,"d":"0.000"}},{"$f":"IFERROR(SUMIF(E_PurchPrec!$R:$R,CONST_PrecursorToGoodInput&Q$6&\"_\"&$D30,E_PurchPrec!$T:$T)/SUMIF(D_Processes!$R:$R,CONST_CNTR_TotProd&$D30,D_Processes!$T:$T),0)","v":{"v":0,"d":"0.000"}},{"$f":"IFERROR(SUMIF(E_PurchPrec!$R:$R,CONST_PrecursorToGoodInput&R$6&\"_\"&$D30,E_PurchPrec!$T:$T)/SUMIF(D_Processes!$R:$R,CONST_CNTR_TotProd&$D30,D_Processes!$T:$T),0)","v":{"v":0,"d":"0.000"}},{"$f":"IFERROR(SUMIF(E_PurchPrec!$R:$R,CONST_PrecursorToGoodInput&S$6&\"_\"&$D30,E_PurchPrec!$T:$T)/SUMIF(D_Processes!$R:$R,CONST_CNTR_TotProd&$D30,D_Processes!$T:$T),0)","v":{"v":0,"d":"0.000"}},{"$f":"IFERROR(SUMIF(E_PurchPrec!$R:$R,CONST_PrecursorToGoodInput&T$6&\"_\"&$D30,E_PurchPrec!$T:$T)/SUMIF(D_Processes!$R:$R,CONST_CNTR_TotProd&$D30,D_Processes!$T:$T),0)","v":{"v":0,"d":"0.000"}},{"$f":"IFERROR(SUMIF(E_PurchPrec!$R:$R,CONST_PrecursorToGoodInput&U$6&\"_\"&$D30,E_PurchPrec!$T:$T)/SUMIF(D_Processes!$R:$R,CONST_CNTR_TotProd&$D30,D_Processes!$T:$T),0)","v":{"v":0,"d":"0.000"}},{"$f":"IFERROR(SUMIF(E_PurchPrec!$R:$R,CONST_PrecursorToGoodInput&V$6&\"_\"&$D30,E_PurchPrec!$T:$T)/SUMIF(D_Processes!$R:$R,CONST_CNTR_TotProd&$D30,D_Processes!$T:$T),0)","v":{"v":0,"d":"0.000"}},{"$f":"IFERROR(SUMIF(E_PurchPrec!$R:$R,CONST_PrecursorToGoodInput&W$6&\"_\"&$D30,E_PurchPrec!$T:$T)/SUMIF(D_Processes!$R:$R,CONST_CNTR_TotProd&$D30,D_Processes!$T:$T),0)","v":{"v":0,"d":"0.000"}},{"$f":"IFERROR(SUMIF(E_PurchPrec!$R:$R,CONST_PrecursorToGoodInput&X$6&\"_\"&$D30,E_PurchPrec!$T:$T)/SUMIF(D_Processes!$R:$R,CONST_CNTR_TotProd&$D30,D_Processes!$T:$T),0)","v":{"v":0,"d":"0.000"}},{"$f":"IFERROR(SUMIF(E_PurchPrec!$R:$R,CONST_PrecursorToGoodInput&Y$6&\"_\"&$D30,E_PurchPrec!$T:$T)/SUMIF(D_Processes!$R:$R,CONST_CNTR_TotProd&$D30,D_Processes!$T:$T),0)","v":{"v":0,"d":"0.000"}},{"$f":"IFERROR(SUMIF(E_PurchPrec!$R:$R,CONST_PrecursorToGoodInput&Z$6&\"_\"&$D30,E_PurchPrec!$T:$T)/SUMIF(D_Processes!$R:$R,CONST_CNTR_TotProd&$D30,D_Processes!$T:$T),0)","v":{"v":0,"d":"0.000"}},{"$f":"IFERROR(SUMIF(E_PurchPrec!$R:$R,CONST_PrecursorToGoodInput&AA$6&\"_\"&$D30,E_PurchPrec!$T:$T)/SUMIF(D_Processes!$R:$R,CONST_CNTR_TotProd&$D30,D_Processes!$T:$T),0)","v":{"v":0,"d":"0.000"}},{"$f":"IFERROR(SUMIF(E_PurchPrec!$R:$R,CONST_PrecursorToGoodInput&AB$6&\"_\"&$D30,E_PurchPrec!$T:$T)/SUMIF(D_Processes!$R:$R,CONST_CNTR_TotProd&$D30,D_Processes!$T:$T),0)","v":{"v":0,"d":"0.000"}},{"$f":"IFERROR(SUMIF(E_PurchPrec!$R:$R,CONST_PrecursorToGoodInput&AC$6&\"_\"&$D30,E_PurchPrec!$T:$T)/SUMIF(D_Processes!$R:$R,CONST_CNTR_TotProd&$D30,D_Processes!$T:$T),0)","v":{"v":0,"d":"0.000"}},{"$f":"IFERROR(SUMIF(E_PurchPrec!$R:$R,CONST_PrecursorToGoodInput&AD$6&\"_\"&$D30,E_PurchPrec!$T:$T)/SUMIF(D_Processes!$R:$R,CONST_CNTR_TotProd&$D30,D_Processes!$T:$T),0)","v":{"v":0,"d":"0.000"}},{"$f":"IFERROR(SUMIF(E_PurchPrec!$R:$R,CONST_PrecursorToGoodInput&AE$6&\"_\"&$D30,E_PurchPrec!$T:$T)/SUMIF(D_Processes!$R:$R,CONST_CNTR_TotProd&$D30,D_Processes!$T:$T),0)","v":{"v":0,"d":"0.000"}},{"$f":"IFERROR(SUMIF(E_PurchPrec!$R:$R,CONST_PrecursorToGoodInput&AF$6&\"_\"&$D30,E_PurchPrec!$T:$T)/SUMIF(D_Processes!$R:$R,CONST_CNTR_TotProd&$D30,D_Processes!$T:$T),0)","v":{"v":0,"d":"0.000"}},{"$f":"IFERROR(SUMIF(E_PurchPrec!$R:$R,CONST_PrecursorToGoodInput&AG$6&\"_\"&$D30,E_PurchPrec!$T:$T)/SUMIF(D_Processes!$R:$R,CONST_CNTR_TotProd&$D30,D_Processes!$T:$T),0)","v":{"v":0,"d":"0.000"}},{"$f":"IFERROR(SUMIF(E_PurchPrec!$R:$R,CONST_PrecursorToGoodInput&AH$6&\"_\"&$D30,E_PurchPrec!$T:$T)/SUMIF(D_Processes!$R:$R,CONST_CNTR_TotProd&$D30,D_Processes!$T:$T),0)","v":{"v":0,"d":"0.000"}}]
[null,null,15,"",{"$f":"IFERROR(SUMIF(E_PurchPrec!$R:$R,CONST_PrecursorToGoodInput&E$6&\"_\"&$D31,E_PurchPrec!$T:$T)/SUMIF(D_Processes!$R:$R,CONST_CNTR_TotProd&$D31,D_Processes!$T:$T),0)","v":{"v":0,"d":"0.000"}},{"$f":"IFERROR(SUMIF(E_PurchPrec!$R:$R,CONST_PrecursorToGoodInput&F$6&\"_\"&$D31,E_PurchPrec!$T:$T)/SUMIF(D_Processes!$R:$R,CONST_CNTR_TotProd&$D31,D_Processes!$T:$T),0)","v":{"v":0,"d":"0.000"}},{"$f":"IFERROR(SUMIF(E_PurchPrec!$R:$R,CONST_PrecursorToGoodInput&G$6&\"_\"&$D31,E_PurchPrec!$T:$T)/SUMIF(D_Processes!$R:$R,CONST_CNTR_TotProd&$D31,D_Processes!$T:$T),0)","v":{"v":0,"d":"0.000"}},{"$f":"IFERROR(SUMIF(E_PurchPrec!$R:$R,CONST_PrecursorToGoodInput&H$6&\"_\"&$D31,E_PurchPrec!$T:$T)/SUMIF(D_Processes!$R:$R,CONST_CNTR_TotProd&$D31,D_Processes!$T:$T),0)","v":{"v":0,"d":"0.000"}},{"$f":"IFERROR(SUMIF(E_PurchPrec!$R:$R,CONST_PrecursorToGoodInput&I$6&\"_\"&$D31,E_PurchPrec!$T:$T)/SUMIF(D_Processes!$R:$R,CONST_CNTR_TotProd&$D31,D_Processes!$T:$T),0)","v":{"v":0,"d":"0.000"}},{"$f":"IFERROR(SUMIF(E_PurchPrec!$R:$R,CONST_PrecursorToGoodInput&J$6&\"_\"&$D31,E_PurchPrec!$T:$T)/SUMIF(D_Processes!$R:$R,CONST_CNTR_TotProd&$D31,D_Processes!$T:$T),0)","v":{"v":0,"d":"0.000"}},{"$f":"IFERROR(SUMIF(E_PurchPrec!$R:$R,CONST_PrecursorToGoodInput&K$6&\"_\"&$D31,E_PurchPrec!$T:$T)/SUMIF(D_Processes!$R:$R,CONST_CNTR_TotProd&$D31,D_Processes!$T:$T),0)","v":{"v":0,"d":"0.000"}},{"$f":"IFERROR(SUMIF(E_PurchPrec!$R:$R,CONST_PrecursorToGoodInput&L$6&\"_\"&$D31,E_PurchPrec!$T:$T)/SUMIF(D_Processes!$R:$R,CONST_CNTR_TotProd&$D31,D_Processes!$T:$T),0)","v":{"v":0,"d":"0.000"}},{"$f":"IFERROR(SUMIF(E_PurchPrec!$R:$R,CONST_PrecursorToGoodInput&M$6&\"_\"&$D31,E_PurchPrec!$T:$T)/SUMIF(D_Processes!$R:$R,CONST_CNTR_TotProd&$D31,D_Processes!$T:$T),0)","v":{"v":0,"d":"0.000"}},{"$f":"IFERROR(SUMIF(E_PurchPrec!$R:$R,CONST_PrecursorToGoodInput&N$6&\"_\"&$D31,E_PurchPrec!$T:$T)/SUMIF(D_Processes!$R:$R,CONST_CNTR_TotProd&$D31,D_Processes!$T:$T),0)","v":{"v":0,"d":"0.000"}},{"$f":"IFERROR(SUMIF(E_PurchPrec!$R:$R,CONST_PrecursorToGoodInput&O$6&\"_\"&$D31,E_PurchPrec!$T:$T)/SUMIF(D_Processes!$R:$R,CONST_CNTR_TotProd&$D31,D_Processes!$T:$T),0)","v":{"v":0,"d":"0.000"}},{"$f":"IFERROR(SUMIF(E_PurchPrec!$R:$R,CONST_PrecursorToGoodInput&P$6&\"_\"&$D31,E_PurchPrec!$T:$T)/SUMIF(D_Processes!$R:$R,CONST_CNTR_TotProd&$D31,D_Processes!$T:$T),0)","v":{"v":0,"d":"0.000"}},{"$f":"IFERROR(SUMIF(E_PurchPrec!$R:$R,CONST_PrecursorToGoodInput&Q$6&\"_\"&$D31,E_PurchPrec!$T:$T)/SUMIF(D_Processes!$R:$R,CONST_CNTR_TotProd&$D31,D_Processes!$T:$T),0)","v":{"v":0,"d":"0.000"}},{"$f":"IFERROR(SUMIF(E_PurchPrec!$R:$R,CONST_PrecursorToGoodInput&R$6&\"_\"&$D31,E_PurchPrec!$T:$T)/SUMIF(D_Processes!$R:$R,CONST_CNTR_TotProd&$D31,D_Processes!$T:$T),0)","v":{"v":0,"d":"0.000"}},{"$f":"IFERROR(SUMIF(E_PurchPrec!$R:$R,CONST_PrecursorToGoodInput&S$6&\"_\"&$D31,E_PurchPrec!$T:$T)/SUMIF(D_Processes!$R:$R,CONST_CNTR_TotProd&$D31,D_Processes!$T:$T),0)","v":{"v":0,"d":"0.000"}},{"$f":"IFERROR(SUMIF(E_PurchPrec!$R:$R,CONST_PrecursorToGoodInput&T$6&\"_\"&$D31,E_PurchPrec!$T:$T)/SUMIF(D_Processes!$R:$R,CONST_CNTR_TotProd&$D31,D_Processes!$T:$T),0)","v":{"v":0,"d":"0.000"}},{"$f":"IFERROR(SUMIF(E_PurchPrec!$R:$R,CONST_PrecursorToGoodInput&U$6&\"_\"&$D31,E_PurchPrec!$T:$T)/SUMIF(D_Processes!$R:$R,CONST_CNTR_TotProd&$D31,D_Processes!$T:$T),0)","v":{"v":0,"d":"0.000"}},{"$f":"IFERROR(SUMIF(E_PurchPrec!$R:$R,CONST_PrecursorToGoodInput&V$6&\"_\"&$D31,E_PurchPrec!$T:$T)/SUMIF(D_Processes!$R:$R,CONST_CNTR_TotProd&$D31,D_Processes!$T:$T),0)","v":{"v":0,"d":"0.000"}},{"$f":"IFERROR(SUMIF(E_PurchPrec!$R:$R,CONST_PrecursorToGoodInput&W$6&\"_\"&$D31,E_PurchPrec!$T:$T)/SUMIF(D_Processes!$R:$R,CONST_CNTR_TotProd&$D31,D_Processes!$T:$T),0)","v":{"v":0,"d":"0.000"}},{"$f":"IFERROR(SUMIF(E_PurchPrec!$R:$R,CONST_PrecursorToGoodInput&X$6&\"_\"&$D31,E_PurchPrec!$T:$T)/SUMIF(D_Processes!$R:$R,CONST_CNTR_TotProd&$D31,D_Processes!$T:$T),0)","v":{"v":0,"d":"0.000"}},{"$f":"IFERROR(SUMIF(E_PurchPrec!$R:$R,CONST_PrecursorToGoodInput&Y$6&\"_\"&$D31,E_PurchPrec!$T:$T)/SUMIF(D_Processes!$R:$R,CONST_CNTR_TotProd&$D31,D_Processes!$T:$T),0)","v":{"v":0,"d":"0.000"}},{"$f":"IFERROR(SUMIF(E_PurchPrec!$R:$R,CONST_PrecursorToGoodInput&Z$6&\"_\"&$D31,E_PurchPrec!$T:$T)/SUMIF(D_Processes!$R:$R,CONST_CNTR_TotProd&$D31,D_Processes!$T:$T),0)","v":{"v":0,"d":"0.000"}},{"$f":"IFERROR(SUMIF(E_PurchPrec!$R:$R,CONST_PrecursorToGoodInput&AA$6&\"_\"&$D31,E_PurchPrec!$T:$T)/SUMIF(D_Processes!$R:$R,CONST_CNTR_TotProd&$D31,D_Processes!$T:$T),0)","v":{"v":0,"d":"0.000"}},{"$f":"IFERROR(SUMIF(E_PurchPrec!$R:$R,CONST_PrecursorToGoodInput&AB$6&\"_\"&$D31,E_PurchPrec!$T:$T)/SUMIF(D_Processes!$R:$R,CONST_CNTR_TotProd&$D31,D_Processes!$T:$T),0)","v":{"v":0,"d":"0.000"}},{"$f":"IFERROR(SUMIF(E_PurchPrec!$R:$R,CONST_PrecursorToGoodInput&AC$6&\"_\"&$D31,E_PurchPrec!$T:$T)/SUMIF(D_Processes!$R:$R,CONST_CNTR_TotProd&$D31,D_Processes!$T:$T),0)","v":{"v":0,"d":"0.000"}},{"$f":"IFERROR(SUMIF(E_PurchPrec!$R:$R,CONST_PrecursorToGoodInput&AD$6&\"_\"&$D31,E_PurchPrec!$T:$T)/SUMIF(D_Processes!$R:$R,CONST_CNTR_TotProd&$D31,D_Processes!$T:$T),0)","v":{"v":0,"d":"0.000"}},{"$f":"IFERROR(SUMIF(E_PurchPrec!$R:$R,CONST_PrecursorToGoodInput&AE$6&\"_\"&$D31,E_PurchPrec!$T:$T)/SUMIF(D_Processes!$R:$R,CONST_CNTR_TotProd&$D31,D_Processes!$T:$T),0)","v":{"v":0,"d":"0.000"}},{"$f":"IFERROR(SUMIF(E_PurchPrec!$R:$R,CONST_PrecursorToGoodInput&AF$6&\"_\"&$D31,E_PurchPrec!$T:$T)/SUMIF(D_Processes!$R:$R,CONST_CNTR_TotProd&$D31,D_Processes!$T:$T),0)","v":{"v":0,"d":"0.000"}},{"$f":"IFERROR(SUMIF(E_PurchPrec!$R:$R,CONST_PrecursorToGoodInput&AG$6&\"_\"&$D31,E_PurchPrec!$T:$T)/SUMIF(D_Processes!$R:$R,CONST_CNTR_TotProd&$D31,D_Processes!$T:$T),0)","v":{"v":0,"d":"0.000"}},{"$f":"IFERROR(SUMIF(E_PurchPrec!$R:$R,CONST_PrecursorToGoodInput&AH$6&\"_\"&$D31,E_PurchPrec!$T:$T)/SUMIF(D_Processes!$R:$R,CONST_CNTR_TotProd&$D31,D_Processes!$T:$T),0)","v":{"v":0,"d":"0.000"}}]
[null,null,16,"",{"$f":"IFERROR(SUMIF(E_PurchPrec!$R:$R,CONST_PrecursorToGoodInput&E$6&\"_\"&$D32,E_PurchPrec!$T:$T)/SUMIF(D_Processes!$R:$R,CONST_CNTR_TotProd&$D32,D_Processes!$T:$T),0)","v":{"v":0,"d":"0.000"}},{"$f":"IFERROR(SUMIF(E_PurchPrec!$R:$R,CONST_PrecursorToGoodInput&F$6&\"_\"&$D32,E_PurchPrec!$T:$T)/SUMIF(D_Processes!$R:$R,CONST_CNTR_TotProd&$D32,D_Processes!$T:$T),0)","v":{"v":0,"d":"0.000"}},{"$f":"IFERROR(SUMIF(E_PurchPrec!$R:$R,CONST_PrecursorToGoodInput&G$6&\"_\"&$D32,E_PurchPrec!$T:$T)/SUMIF(D_Processes!$R:$R,CONST_CNTR_TotProd&$D32,D_Processes!$T:$T),0)","v":{"v":0,"d":"0.000"}},{"$f":"IFERROR(SUMIF(E_PurchPrec!$R:$R,CONST_PrecursorToGoodInput&H$6&\"_\"&$D32,E_PurchPrec!$T:$T)/SUMIF(D_Processes!$R:$R,CONST_CNTR_TotProd&$D32,D_Processes!$T:$T),0)","v":{"v":0,"d":"0.000"}},{"$f":"IFERROR(SUMIF(E_PurchPrec!$R:$R,CONST_PrecursorToGoodInput&I$6&\"_\"&$D32,E_PurchPrec!$T:$T)/SUMIF(D_Processes!$R:$R,CONST_CNTR_TotProd&$D32,D_Processes!$T:$T),0)","v":{"v":0,"d":"0.000"}},{"$f":"IFERROR(SUMIF(E_PurchPrec!$R:$R,CONST_PrecursorToGoodInput&J$6&\"_\"&$D32,E_PurchPrec!$T:$T)/SUMIF(D_Processes!$R:$R,CONST_CNTR_TotProd&$D32,D_Processes!$T:$T),0)","v":{"v":0,"d":"0.000"}},{"$f":"IFERROR(SUMIF(E_PurchPrec!$R:$R,CONST_PrecursorToGoodInput&K$6&\"_\"&$D32,E_PurchPrec!$T:$T)/SUMIF(D_Processes!$R:$R,CONST_CNTR_TotProd&$D32,D_Processes!$T:$T),0)","v":{"v":0,"d":"0.000"}},{"$f":"IFERROR(SUMIF(E_PurchPrec!$R:$R,CONST_PrecursorToGoodInput&L$6&\"_\"&$D32,E_PurchPrec!$T:$T)/SUMIF(D_Processes!$R:$R,CONST_CNTR_TotProd&$D32,D_Processes!$T:$T),0)","v":{"v":0,"d":"0.000"}},{"$f":"IFERROR(SUMIF(E_PurchPrec!$R:$R,CONST_PrecursorToGoodInput&M$6&\"_\"&$D32,E_PurchPrec!$T:$T)/SUMIF(D_Processes!$R:$R,CONST_CNTR_TotProd&$D32,D_Processes!$T:$T),0)","v":{"v":0,"d":"0.000"}},{"$f":"IFERROR(SUMIF(E_PurchPrec!$R:$R,CONST_PrecursorToGoodInput&N$6&\"_\"&$D32,E_PurchPrec!$T:$T)/SUMIF(D_Processes!$R:$R,CONST_CNTR_TotProd&$D32,D_Processes!$T:$T),0)","v":{"v":0,"d":"0.000"}},{"$f":"IFERROR(SUMIF(E_PurchPrec!$R:$R,CONST_PrecursorToGoodInput&O$6&\"_\"&$D32,E_PurchPrec!$T:$T)/SUMIF(D_Processes!$R:$R,CONST_CNTR_TotProd&$D32,D_Processes!$T:$T),0)","v":{"v":0,"d":"0.000"}},{"$f":"IFERROR(SUMIF(E_PurchPrec!$R:$R,CONST_PrecursorToGoodInput&P$6&\"_\"&$D32,E_PurchPrec!$T:$T)/SUMIF(D_Processes!$R:$R,CONST_CNTR_TotProd&$D32,D_Processes!$T:$T),0)","v":{"v":0,"d":"0.000"}},{"$f":"IFERROR(SUMIF(E_PurchPrec!$R:$R,CONST_PrecursorToGoodInput&Q$6&\"_\"&$D32,E_PurchPrec!$T:$T)/SUMIF(D_Processes!$R:$R,CONST_CNTR_TotProd&$D32,D_Processes!$T:$T),0)","v":{"v":0,"d":"0.000"}},{"$f":"IFERROR(SUMIF(E_PurchPrec!$R:$R,CONST_PrecursorToGoodInput&R$6&\"_\"&$D32,E_PurchPrec!$T:$T)/SUMIF(D_Processes!$R:$R,CONST_CNTR_TotProd&$D32,D_Processes!$T:$T),0)","v":{"v":0,"d":"0.000"}},{"$f":"IFERROR(SUMIF(E_PurchPrec!$R:$R,CONST_PrecursorToGoodInput&S$6&\"_\"&$D32,E_PurchPrec!$T:$T)/SUMIF(D_Processes!$R:$R,CONST_CNTR_TotProd&$D32,D_Processes!$T:$T),0)","v":{"v":0,"d":"0.000"}},{"$f":"IFERROR(SUMIF(E_PurchPrec!$R:$R,CONST_PrecursorToGoodInput&T$6&\"_\"&$D32,E_PurchPrec!$T:$T)/SUMIF(D_Processes!$R:$R,CONST_CNTR_TotProd&$D32,D_Processes!$T:$T),0)","v":{"v":0,"d":"0.000"}},{"$f":"IFERROR(SUMIF(E_PurchPrec!$R:$R,CONST_PrecursorToGoodInput&U$6&\"_\"&$D32,E_PurchPrec!$T:$T)/SUMIF(D_Processes!$R:$R,CONST_CNTR_TotProd&$D32,D_Processes!$T:$T),0)","v":{"v":0,"d":"0.000"}},{"$f":"IFERROR(SUMIF(E_PurchPrec!$R:$R,CONST_PrecursorToGoodInput&V$6&\"_\"&$D32,E_PurchPrec!$T:$T)/SUMIF(D_Processes!$R:$R,CONST_CNTR_TotProd&$D32,D_Processes!$T:$T),0)","v":{"v":0,"d":"0.000"}},{"$f":"IFERROR(SUMIF(E_PurchPrec!$R:$R,CONST_PrecursorToGoodInput&W$6&\"_\"&$D32,E_PurchPrec!$T:$T)/SUMIF(D_Processes!$R:$R,CONST_CNTR_TotProd&$D32,D_Processes!$T:$T),0)","v":{"v":0,"d":"0.000"}},{"$f":"IFERROR(SUMIF(E_PurchPrec!$R:$R,CONST_PrecursorToGoodInput&X$6&\"_\"&$D32,E_PurchPrec!$T:$T)/SUMIF(D_Processes!$R:$R,CONST_CNTR_TotProd&$D32,D_Processes!$T:$T),0)","v":{"v":0,"d":"0.000"}},{"$f":"IFERROR(SUMIF(E_PurchPrec!$R:$R,CONST_PrecursorToGoodInput&Y$6&\"_\"&$D32,E_PurchPrec!$T:$T)/SUMIF(D_Processes!$R:$R,CONST_CNTR_TotProd&$D32,D_Processes!$T:$T),0)","v":{"v":0,"d":"0.000"}},{"$f":"IFERROR(SUMIF(E_PurchPrec!$R:$R,CONST_PrecursorToGoodInput&Z$6&\"_\"&$D32,E_PurchPrec!$T:$T)/SUMIF(D_Processes!$R:$R,CONST_CNTR_TotProd&$D32,D_Processes!$T:$T),0)","v":{"v":0,"d":"0.000"}},{"$f":"IFERROR(SUMIF(E_PurchPrec!$R:$R,CONST_PrecursorToGoodInput&AA$6&\"_\"&$D32,E_PurchPrec!$T:$T)/SUMIF(D_Processes!$R:$R,CONST_CNTR_TotProd&$D32,D_Processes!$T:$T),0)","v":{"v":0,"d":"0.000"}},{"$f":"IFERROR(SUMIF(E_PurchPrec!$R:$R,CONST_PrecursorToGoodInput&AB$6&\"_\"&$D32,E_PurchPrec!$T:$T)/SUMIF(D_Processes!$R:$R,CONST_CNTR_TotProd&$D32,D_Processes!$T:$T),0)","v":{"v":0,"d":"0.000"}},{"$f":"IFERROR(SUMIF(E_PurchPrec!$R:$R,CONST_PrecursorToGoodInput&AC$6&\"_\"&$D32,E_PurchPrec!$T:$T)/SUMIF(D_Processes!$R:$R,CONST_CNTR_TotProd&$D32,D_Processes!$T:$T),0)","v":{"v":0,"d":"0.000"}},{"$f":"IFERROR(SUMIF(E_PurchPrec!$R:$R,CONST_PrecursorToGoodInput&AD$6&\"_\"&$D32,E_PurchPrec!$T:$T)/SUMIF(D_Processes!$R:$R,CONST_CNTR_TotProd&$D32,D_Processes!$T:$T),0)","v":{"v":0,"d":"0.000"}},{"$f":"IFERROR(SUMIF(E_PurchPrec!$R:$R,CONST_PrecursorToGoodInput&AE$6&\"_\"&$D32,E_PurchPrec!$T:$T)/SUMIF(D_Processes!$R:$R,CONST_CNTR_TotProd&$D32,D_Processes!$T:$T),0)","v":{"v":0,"d":"0.000"}},{"$f":"IFERROR(SUMIF(E_PurchPrec!$R:$R,CONST_PrecursorToGoodInput&AF$6&\"_\"&$D32,E_PurchPrec!$T:$T)/SUMIF(D_Processes!$R:$R,CONST_CNTR_TotProd&$D32,D_Processes!$T:$T),0)","v":{"v":0,"d":"0.000"}},{"$f":"IFERROR(SUMIF(E_PurchPrec!$R:$R,CONST_PrecursorToGoodInput&AG$6&\"_\"&$D32,E_PurchPrec!$T:$T)/SUMIF(D_Processes!$R:$R,CONST_CNTR_TotProd&$D32,D_Processes!$T:$T),0)","v":{"v":0,"d":"0.000"}},{"$f":"IFERROR(SUMIF(E_PurchPrec!$R:$R,CONST_PrecursorToGoodInput&AH$6&\"_\"&$D32,E_PurchPrec!$T:$T)/SUMIF(D_Processes!$R:$R,CONST_CNTR_TotProd&$D32,D_Processes!$T:$T),0)","v":{"v":0,"d":"0.000"}}]
[null,null,17,"",{"$f":"IFERROR(SUMIF(E_PurchPrec!$R:$R,CONST_PrecursorToGoodInput&E$6&\"_\"&$D33,E_PurchPrec!$T:$T)/SUMIF(D_Processes!$R:$R,CONST_CNTR_TotProd&$D33,D_Processes!$T:$T),0)","v":{"v":0,"d":"0.000"}},{"$f":"IFERROR(SUMIF(E_PurchPrec!$R:$R,CONST_PrecursorToGoodInput&F$6&\"_\"&$D33,E_PurchPrec!$T:$T)/SUMIF(D_Processes!$R:$R,CONST_CNTR_TotProd&$D33,D_Processes!$T:$T),0)","v":{"v":0,"d":"0.000"}},{"$f":"IFERROR(SUMIF(E_PurchPrec!$R:$R,CONST_PrecursorToGoodInput&G$6&\"_\"&$D33,E_PurchPrec!$T:$T)/SUMIF(D_Processes!$R:$R,CONST_CNTR_TotProd&$D33,D_Processes!$T:$T),0)","v":{"v":0,"d":"0.000"}},{"$f":"IFERROR(SUMIF(E_PurchPrec!$R:$R,CONST_PrecursorToGoodInput&H$6&\"_\"&$D33,E_PurchPrec!$T:$T)/SUMIF(D_Processes!$R:$R,CONST_CNTR_TotProd&$D33,D_Processes!$T:$T),0)","v":{"v":0,"d":"0.000"}},{"$f":"IFERROR(SUMIF(E_PurchPrec!$R:$R,CONST_PrecursorToGoodInput&I$6&\"_\"&$D33,E_PurchPrec!$T:$T)/SUMIF(D_Processes!$R:$R,CONST_CNTR_TotProd&$D33,D_Processes!$T:$T),0)","v":{"v":0,"d":"0.000"}},{"$f":"IFERROR(SUMIF(E_PurchPrec!$R:$R,CONST_PrecursorToGoodInput&J$6&\"_\"&$D33,E_PurchPrec!$T:$T)/SUMIF(D_Processes!$R:$R,CONST_CNTR_TotProd&$D33,D_Processes!$T:$T),0)","v":{"v":0,"d":"0.000"}},{"$f":"IFERROR(SUMIF(E_PurchPrec!$R:$R,CONST_PrecursorToGoodInput&K$6&\"_\"&$D33,E_PurchPrec!$T:$T)/SUMIF(D_Processes!$R:$R,CONST_CNTR_TotProd&$D33,D_Processes!$T:$T),0)","v":{"v":0,"d":"0.000"}},{"$f":"IFERROR(SUMIF(E_PurchPrec!$R:$R,CONST_PrecursorToGoodInput&L$6&\"_\"&$D33,E_PurchPrec!$T:$T)/SUMIF(D_Processes!$R:$R,CONST_CNTR_TotProd&$D33,D_Processes!$T:$T),0)","v":{"v":0,"d":"0.000"}},{"$f":"IFERROR(SUMIF(E_PurchPrec!$R:$R,CONST_PrecursorToGoodInput&M$6&\"_\"&$D33,E_PurchPrec!$T:$T)/SUMIF(D_Processes!$R:$R,CONST_CNTR_TotProd&$D33,D_Processes!$T:$T),0)","v":{"v":0,"d":"0.000"}},{"$f":"IFERROR(SUMIF(E_PurchPrec!$R:$R,CONST_PrecursorToGoodInput&N$6&\"_\"&$D33,E_PurchPrec!$T:$T)/SUMIF(D_Processes!$R:$R,CONST_CNTR_TotProd&$D33,D_Processes!$T:$T),0)","v":{"v":0,"d":"0.000"}},{"$f":"IFERROR(SUMIF(E_PurchPrec!$R:$R,CONST_PrecursorToGoodInput&O$6&\"_\"&$D33,E_PurchPrec!$T:$T)/SUMIF(D_Processes!$R:$R,CONST_CNTR_TotProd&$D33,D_Processes!$T:$T),0)","v":{"v":0,"d":"0.000"}},{"$f":"IFERROR(SUMIF(E_PurchPrec!$R:$R,CONST_PrecursorToGoodInput&P$6&\"_\"&$D33,E_PurchPrec!$T:$T)/SUMIF(D_Processes!$R:$R,CONST_CNTR_TotProd&$D33,D_Processes!$T:$T),0)","v":{"v":0,"d":"0.000"}},{"$f":"IFERROR(SUMIF(E_PurchPrec!$R:$R,CONST_PrecursorToGoodInput&Q$6&\"_\"&$D33,E_PurchPrec!$T:$T)/SUMIF(D_Processes!$R:$R,CONST_CNTR_TotProd&$D33,D_Processes!$T:$T),0)","v":{"v":0,"d":"0.000"}},{"$f":"IFERROR(SUMIF(E_PurchPrec!$R:$R,CONST_PrecursorToGoodInput&R$6&\"_\"&$D33,E_PurchPrec!$T:$T)/SUMIF(D_Processes!$R:$R,CONST_CNTR_TotProd&$D33,D_Processes!$T:$T),0)","v":{"v":0,"d":"0.000"}},{"$f":"IFERROR(SUMIF(E_PurchPrec!$R:$R,CONST_PrecursorToGoodInput&S$6&\"_\"&$D33,E_PurchPrec!$T:$T)/SUMIF(D_Processes!$R:$R,CONST_CNTR_TotProd&$D33,D_Processes!$T:$T),0)","v":{"v":0,"d":"0.000"}},{"$f":"IFERROR(SUMIF(E_PurchPrec!$R:$R,CONST_PrecursorToGoodInput&T$6&\"_\"&$D33,E_PurchPrec!$T:$T)/SUMIF(D_Processes!$R:$R,CONST_CNTR_TotProd&$D33,D_Processes!$T:$T),0)","v":{"v":0,"d":"0.000"}},{"$f":"IFERROR(SUMIF(E_PurchPrec!$R:$R,CONST_PrecursorToGoodInput&U$6&\"_\"&$D33,E_PurchPrec!$T:$T)/SUMIF(D_Processes!$R:$R,CONST_CNTR_TotProd&$D33,D_Processes!$T:$T),0)","v":{"v":0,"d":"0.000"}},{"$f":"IFERROR(SUMIF(E_PurchPrec!$R:$R,CONST_PrecursorToGoodInput&V$6&\"_\"&$D33,E_PurchPrec!$T:$T)/SUMIF(D_Processes!$R:$R,CONST_CNTR_TotProd&$D33,D_Processes!$T:$T),0)","v":{"v":0,"d":"0.000"}},{"$f":"IFERROR(SUMIF(E_PurchPrec!$R:$R,CONST_PrecursorToGoodInput&W$6&\"_\"&$D33,E_PurchPrec!$T:$T)/SUMIF(D_Processes!$R:$R,CONST_CNTR_TotProd&$D33,D_Processes!$T:$T),0)","v":{"v":0,"d":"0.000"}},{"$f":"IFERROR(SUMIF(E_PurchPrec!$R:$R,CONST_PrecursorToGoodInput&X$6&\"_\"&$D33,E_PurchPrec!$T:$T)/SUMIF(D_Processes!$R:$R,CONST_CNTR_TotProd&$D33,D_Processes!$T:$T),0)","v":{"v":0,"d":"0.000"}},{"$f":"IFERROR(SUMIF(E_PurchPrec!$R:$R,CONST_PrecursorToGoodInput&Y$6&\"_\"&$D33,E_PurchPrec!$T:$T)/SUMIF(D_Processes!$R:$R,CONST_CNTR_TotProd&$D33,D_Processes!$T:$T),0)","v":{"v":0,"d":"0.000"}},{"$f":"IFERROR(SUMIF(E_PurchPrec!$R:$R,CONST_PrecursorToGoodInput&Z$6&\"_\"&$D33,E_PurchPrec!$T:$T)/SUMIF(D_Processes!$R:$R,CONST_CNTR_TotProd&$D33,D_Processes!$T:$T),0)","v":{"v":0,"d":"0.000"}},{"$f":"IFERROR(SUMIF(E_PurchPrec!$R:$R,CONST_PrecursorToGoodInput&AA$6&\"_\"&$D33,E_PurchPrec!$T:$T)/SUMIF(D_Processes!$R:$R,CONST_CNTR_TotProd&$D33,D_Processes!$T:$T),0)","v":{"v":0,"d":"0.000"}},{"$f":"IFERROR(SUMIF(E_PurchPrec!$R:$R,CONST_PrecursorToGoodInput&AB$6&\"_\"&$D33,E_PurchPrec!$T:$T)/SUMIF(D_Processes!$R:$R,CONST_CNTR_TotProd&$D33,D_Processes!$T:$T),0)","v":{"v":0,"d":"0.000"}},{"$f":"IFERROR(SUMIF(E_PurchPrec!$R:$R,CONST_PrecursorToGoodInput&AC$6&\"_\"&$D33,E_PurchPrec!$T:$T)/SUMIF(D_Processes!$R:$R,CONST_CNTR_TotProd&$D33,D_Processes!$T:$T),0)","v":{"v":0,"d":"0.000"}},{"$f":"IFERROR(SUMIF(E_PurchPrec!$R:$R,CONST_PrecursorToGoodInput&AD$6&\"_\"&$D33,E_PurchPrec!$T:$T)/SUMIF(D_Processes!$R:$R,CONST_CNTR_TotProd&$D33,D_Processes!$T:$T),0)","v":{"v":0,"d":"0.000"}},{"$f":"IFERROR(SUMIF(E_PurchPrec!$R:$R,CONST_PrecursorToGoodInput&AE$6&\"_\"&$D33,E_PurchPrec!$T:$T)/SUMIF(D_Processes!$R:$R,CONST_CNTR_TotProd&$D33,D_Processes!$T:$T),0)","v":{"v":0,"d":"0.000"}},{"$f":"IFERROR(SUMIF(E_PurchPrec!$R:$R,CONST_PrecursorToGoodInput&AF$6&\"_\"&$D33,E_PurchPrec!$T:$T)/SUMIF(D_Processes!$R:$R,CONST_CNTR_TotProd&$D33,D_Processes!$T:$T),0)","v":{"v":0,"d":"0.000"}},{"$f":"IFERROR(SUMIF(E_PurchPrec!$R:$R,CONST_PrecursorToGoodInput&AG$6&\"_\"&$D33,E_PurchPrec!$T:$T)/SUMIF(D_Processes!$R:$R,CONST_CNTR_TotProd&$D33,D_Processes!$T:$T),0)","v":{"v":0,"d":"0.000"}},{"$f":"IFERROR(SUMIF(E_PurchPrec!$R:$R,CONST_PrecursorToGoodInput&AH$6&\"_\"&$D33,E_PurchPrec!$T:$T)/SUMIF(D_Processes!$R:$R,CONST_CNTR_TotProd&$D33,D_Processes!$T:$T),0)","v":{"v":0,"d":"0.000"}}]
[null,null,18,"",{"$f":"IFERROR(SUMIF(E_PurchPrec!$R:$R,CONST_PrecursorToGoodInput&E$6&\"_\"&$D34,E_PurchPrec!$T:$T)/SUMIF(D_Processes!$R:$R,CONST_CNTR_TotProd&$D34,D_Processes!$T:$T),0)","v":{"v":0,"d":"0.000"}},{"$f":"IFERROR(SUMIF(E_PurchPrec!$R:$R,CONST_PrecursorToGoodInput&F$6&\"_\"&$D34,E_PurchPrec!$T:$T)/SUMIF(D_Processes!$R:$R,CONST_CNTR_TotProd&$D34,D_Processes!$T:$T),0)","v":{"v":0,"d":"0.000"}},{"$f":"IFERROR(SUMIF(E_PurchPrec!$R:$R,CONST_PrecursorToGoodInput&G$6&\"_\"&$D34,E_PurchPrec!$T:$T)/SUMIF(D_Processes!$R:$R,CONST_CNTR_TotProd&$D34,D_Processes!$T:$T),0)","v":{"v":0,"d":"0.000"}},{"$f":"IFERROR(SUMIF(E_PurchPrec!$R:$R,CONST_PrecursorToGoodInput&H$6&\"_\"&$D34,E_PurchPrec!$T:$T)/SUMIF(D_Processes!$R:$R,CONST_CNTR_TotProd&$D34,D_Processes!$T:$T),0)","v":{"v":0,"d":"0.000"}},{"$f":"IFERROR(SUMIF(E_PurchPrec!$R:$R,CONST_PrecursorToGoodInput&I$6&\"_\"&$D34,E_PurchPrec!$T:$T)/SUMIF(D_Processes!$R:$R,CONST_CNTR_TotProd&$D34,D_Processes!$T:$T),0)","v":{"v":0,"d":"0.000"}},{"$f":"IFERROR(SUMIF(E_PurchPrec!$R:$R,CONST_PrecursorToGoodInput&J$6&\"_\"&$D34,E_PurchPrec!$T:$T)/SUMIF(D_Processes!$R:$R,CONST_CNTR_TotProd&$D34,D_Processes!$T:$T),0)","v":{"v":0,"d":"0.000"}},{"$f":"IFERROR(SUMIF(E_PurchPrec!$R:$R,CONST_PrecursorToGoodInput&K$6&\"_\"&$D34,E_PurchPrec!$T:$T)/SUMIF(D_Processes!$R:$R,CONST_CNTR_TotProd&$D34,D_Processes!$T:$T),0)","v":{"v":0,"d":"0.000"}},{"$f":"IFERROR(SUMIF(E_PurchPrec!$R:$R,CONST_PrecursorToGoodInput&L$6&\"_\"&$D34,E_PurchPrec!$T:$T)/SUMIF(D_Processes!$R:$R,CONST_CNTR_TotProd&$D34,D_Processes!$T:$T),0)","v":{"v":0,"d":"0.000"}},{"$f":"IFERROR(SUMIF(E_PurchPrec!$R:$R,CONST_PrecursorToGoodInput&M$6&\"_\"&$D34,E_PurchPrec!$T:$T)/SUMIF(D_Processes!$R:$R,CONST_CNTR_TotProd&$D34,D_Processes!$T:$T),0)","v":{"v":0,"d":"0.000"}},{"$f":"IFERROR(SUMIF(E_PurchPrec!$R:$R,CONST_PrecursorToGoodInput&N$6&\"_\"&$D34,E_PurchPrec!$T:$T)/SUMIF(D_Processes!$R:$R,CONST_CNTR_TotProd&$D34,D_Processes!$T:$T),0)","v":{"v":0,"d":"0.000"}},{"$f":"IFERROR(SUMIF(E_PurchPrec!$R:$R,CONST_PrecursorToGoodInput&O$6&\"_\"&$D34,E_PurchPrec!$T:$T)/SUMIF(D_Processes!$R:$R,CONST_CNTR_TotProd&$D34,D_Processes!$T:$T),0)","v":{"v":0,"d":"0.000"}},{"$f":"IFERROR(SUMIF(E_PurchPrec!$R:$R,CONST_PrecursorToGoodInput&P$6&\"_\"&$D34,E_PurchPrec!$T:$T)/SUMIF(D_Processes!$R:$R,CONST_CNTR_TotProd&$D34,D_Processes!$T:$T),0)","v":{"v":0,"d":"0.000"}},{"$f":"IFERROR(SUMIF(E_PurchPrec!$R:$R,CONST_PrecursorToGoodInput&Q$6&\"_\"&$D34,E_PurchPrec!$T:$T)/SUMIF(D_Processes!$R:$R,CONST_CNTR_TotProd&$D34,D_Processes!$T:$T),0)","v":{"v":0,"d":"0.000"}},{"$f":"IFERROR(SUMIF(E_PurchPrec!$R:$R,CONST_PrecursorToGoodInput&R$6&\"_\"&$D34,E_PurchPrec!$T:$T)/SUMIF(D_Processes!$R:$R,CONST_CNTR_TotProd&$D34,D_Processes!$T:$T),0)","v":{"v":0,"d":"0.000"}},{"$f":"IFERROR(SUMIF(E_PurchPrec!$R:$R,CONST_PrecursorToGoodInput&S$6&\"_\"&$D34,E_PurchPrec!$T:$T)/SUMIF(D_Processes!$R:$R,CONST_CNTR_TotProd&$D34,D_Processes!$T:$T),0)","v":{"v":0,"d":"0.000"}},{"$f":"IFERROR(SUMIF(E_PurchPrec!$R:$R,CONST_PrecursorToGoodInput&T$6&\"_\"&$D34,E_PurchPrec!$T:$T)/SUMIF(D_Processes!$R:$R,CONST_CNTR_TotProd&$D34,D_Processes!$T:$T),0)","v":{"v":0,"d":"0.000"}},{"$f":"IFERROR(SUMIF(E_PurchPrec!$R:$R,CONST_PrecursorToGoodInput&U$6&\"_\"&$D34,E_PurchPrec!$T:$T)/SUMIF(D_Processes!$R:$R,CONST_CNTR_TotProd&$D34,D_Processes!$T:$T),0)","v":{"v":0,"d":"0.000"}},{"$f":"IFERROR(SUMIF(E_PurchPrec!$R:$R,CONST_PrecursorToGoodInput&V$6&\"_\"&$D34,E_PurchPrec!$T:$T)/SUMIF(D_Processes!$R:$R,CONST_CNTR_TotProd&$D34,D_Processes!$T:$T),0)","v":{"v":0,"d":"0.000"}},{"$f":"IFERROR(SUMIF(E_PurchPrec!$R:$R,CONST_PrecursorToGoodInput&W$6&\"_\"&$D34,E_PurchPrec!$T:$T)/SUMIF(D_Processes!$R:$R,CONST_CNTR_TotProd&$D34,D_Processes!$T:$T),0)","v":{"v":0,"d":"0.000"}},{"$f":"IFERROR(SUMIF(E_PurchPrec!$R:$R,CONST_PrecursorToGoodInput&X$6&\"_\"&$D34,E_PurchPrec!$T:$T)/SUMIF(D_Processes!$R:$R,CONST_CNTR_TotProd&$D34,D_Processes!$T:$T),0)","v":{"v":0,"d":"0.000"}},{"$f":"IFERROR(SUMIF(E_PurchPrec!$R:$R,CONST_PrecursorToGoodInput&Y$6&\"_\"&$D34,E_PurchPrec!$T:$T)/SUMIF(D_Processes!$R:$R,CONST_CNTR_TotProd&$D34,D_Processes!$T:$T),0)","v":{"v":0,"d":"0.000"}},{"$f":"IFERROR(SUMIF(E_PurchPrec!$R:$R,CONST_PrecursorToGoodInput&Z$6&\"_\"&$D34,E_PurchPrec!$T:$T)/SUMIF(D_Processes!$R:$R,CONST_CNTR_TotProd&$D34,D_Processes!$T:$T),0)","v":{"v":0,"d":"0.000"}},{"$f":"IFERROR(SUMIF(E_PurchPrec!$R:$R,CONST_PrecursorToGoodInput&AA$6&\"_\"&$D34,E_PurchPrec!$T:$T)/SUMIF(D_Processes!$R:$R,CONST_CNTR_TotProd&$D34,D_Processes!$T:$T),0)","v":{"v":0,"d":"0.000"}},{"$f":"IFERROR(SUMIF(E_PurchPrec!$R:$R,CONST_PrecursorToGoodInput&AB$6&\"_\"&$D34,E_PurchPrec!$T:$T)/SUMIF(D_Processes!$R:$R,CONST_CNTR_TotProd&$D34,D_Processes!$T:$T),0)","v":{"v":0,"d":"0.000"}},{"$f":"IFERROR(SUMIF(E_PurchPrec!$R:$R,CONST_PrecursorToGoodInput&AC$6&\"_\"&$D34,E_PurchPrec!$T:$T)/SUMIF(D_Processes!$R:$R,CONST_CNTR_TotProd&$D34,D_Processes!$T:$T),0)","v":{"v":0,"d":"0.000"}},{"$f":"IFERROR(SUMIF(E_PurchPrec!$R:$R,CONST_PrecursorToGoodInput&AD$6&\"_\"&$D34,E_PurchPrec!$T:$T)/SUMIF(D_Processes!$R:$R,CONST_CNTR_TotProd&$D34,D_Processes!$T:$T),0)","v":{"v":0,"d":"0.000"}},{"$f":"IFERROR(SUMIF(E_PurchPrec!$R:$R,CONST_PrecursorToGoodInput&AE$6&\"_\"&$D34,E_PurchPrec!$T:$T)/SUMIF(D_Processes!$R:$R,CONST_CNTR_TotProd&$D34,D_Processes!$T:$T),0)","v":{"v":0,"d":"0.000"}},{"$f":"IFERROR(SUMIF(E_PurchPrec!$R:$R,CONST_PrecursorToGoodInput&AF$6&\"_\"&$D34,E_PurchPrec!$T:$T)/SUMIF(D_Processes!$R:$R,CONST_CNTR_TotProd&$D34,D_Processes!$T:$T),0)","v":{"v":0,"d":"0.000"}},{"$f":"IFERROR(SUMIF(E_PurchPrec!$R:$R,CONST_PrecursorToGoodInput&AG$6&\"_\"&$D34,E_PurchPrec!$T:$T)/SUMIF(D_Processes!$R:$R,CONST_CNTR_TotProd&$D34,D_Processes!$T:$T),0)","v":{"v":0,"d":"0.000"}},{"$f":"IFERROR(SUMIF(E_PurchPrec!$R:$R,CONST_PrecursorToGoodInput&AH$6&\"_\"&$D34,E_PurchPrec!$T:$T)/SUMIF(D_Processes!$R:$R,CONST_CNTR_TotProd&$D34,D_Processes!$T:$T),0)","v":{"v":0,"d":"0.000"}}]
[null,null,19,"",{"$f":"IFERROR(SUMIF(E_PurchPrec!$R:$R,CONST_PrecursorToGoodInput&E$6&\"_\"&$D35,E_PurchPrec!$T:$T)/SUMIF(D_Processes!$R:$R,CONST_CNTR_TotProd&$D35,D_Processes!$T:$T),0)","v":{"v":0,"d":"0.000"}},{"$f":"IFERROR(SUMIF(E_PurchPrec!$R:$R,CONST_PrecursorToGoodInput&F$6&\"_\"&$D35,E_PurchPrec!$T:$T)/SUMIF(D_Processes!$R:$R,CONST_CNTR_TotProd&$D35,D_Processes!$T:$T),0)","v":{"v":0,"d":"0.000"}},{"$f":"IFERROR(SUMIF(E_PurchPrec!$R:$R,CONST_PrecursorToGoodInput&G$6&\"_\"&$D35,E_PurchPrec!$T:$T)/SUMIF(D_Processes!$R:$R,CONST_CNTR_TotProd&$D35,D_Processes!$T:$T),0)","v":{"v":0,"d":"0.000"}},{"$f":"IFERROR(SUMIF(E_PurchPrec!$R:$R,CONST_PrecursorToGoodInput&H$6&\"_\"&$D35,E_PurchPrec!$T:$T)/SUMIF(D_Processes!$R:$R,CONST_CNTR_TotProd&$D35,D_Processes!$T:$T),0)","v":{"v":0,"d":"0.000"}},{"$f":"IFERROR(SUMIF(E_PurchPrec!$R:$R,CONST_PrecursorToGoodInput&I$6&\"_\"&$D35,E_PurchPrec!$T:$T)/SUMIF(D_Processes!$R:$R,CONST_CNTR_TotProd&$D35,D_Processes!$T:$T),0)","v":{"v":0,"d":"0.000"}},{"$f":"IFERROR(SUMIF(E_PurchPrec!$R:$R,CONST_PrecursorToGoodInput&J$6&\"_\"&$D35,E_PurchPrec!$T:$T)/SUMIF(D_Processes!$R:$R,CONST_CNTR_TotProd&$D35,D_Processes!$T:$T),0)","v":{"v":0,"d":"0.000"}},{"$f":"IFERROR(SUMIF(E_PurchPrec!$R:$R,CONST_PrecursorToGoodInput&K$6&\"_\"&$D35,E_PurchPrec!$T:$T)/SUMIF(D_Processes!$R:$R,CONST_CNTR_TotProd&$D35,D_Processes!$T:$T),0)","v":{"v":0,"d":"0.000"}},{"$f":"IFERROR(SUMIF(E_PurchPrec!$R:$R,CONST_PrecursorToGoodInput&L$6&\"_\"&$D35,E_PurchPrec!$T:$T)/SUMIF(D_Processes!$R:$R,CONST_CNTR_TotProd&$D35,D_Processes!$T:$T),0)","v":{"v":0,"d":"0.000"}},{"$f":"IFERROR(SUMIF(E_PurchPrec!$R:$R,CONST_PrecursorToGoodInput&M$6&\"_\"&$D35,E_PurchPrec!$T:$T)/SUMIF(D_Processes!$R:$R,CONST_CNTR_TotProd&$D35,D_Processes!$T:$T),0)","v":{"v":0,"d":"0.000"}},{"$f":"IFERROR(SUMIF(E_PurchPrec!$R:$R,CONST_PrecursorToGoodInput&N$6&\"_\"&$D35,E_PurchPrec!$T:$T)/SUMIF(D_Processes!$R:$R,CONST_CNTR_TotProd&$D35,D_Processes!$T:$T),0)","v":{"v":0,"d":"0.000"}},{"$f":"IFERROR(SUMIF(E_PurchPrec!$R:$R,CONST_PrecursorToGoodInput&O$6&\"_\"&$D35,E_PurchPrec!$T:$T)/SUMIF(D_Processes!$R:$R,CONST_CNTR_TotProd&$D35,D_Processes!$T:$T),0)","v":{"v":0,"d":"0.000"}},{"$f":"IFERROR(SUMIF(E_PurchPrec!$R:$R,CONST_PrecursorToGoodInput&P$6&\"_\"&$D35,E_PurchPrec!$T:$T)/SUMIF(D_Processes!$R:$R,CONST_CNTR_TotProd&$D35,D_Processes!$T:$T),0)","v":{"v":0,"d":"0.000"}},{"$f":"IFERROR(SUMIF(E_PurchPrec!$R:$R,CONST_PrecursorToGoodInput&Q$6&\"_\"&$D35,E_PurchPrec!$T:$T)/SUMIF(D_Processes!$R:$R,CONST_CNTR_TotProd&$D35,D_Processes!$T:$T),0)","v":{"v":0,"d":"0.000"}},{"$f":"IFERROR(SUMIF(E_PurchPrec!$R:$R,CONST_PrecursorToGoodInput&R$6&\"_\"&$D35,E_PurchPrec!$T:$T)/SUMIF(D_Processes!$R:$R,CONST_CNTR_TotProd&$D35,D_Processes!$T:$T),0)","v":{"v":0,"d":"0.000"}},{"$f":"IFERROR(SUMIF(E_PurchPrec!$R:$R,CONST_PrecursorToGoodInput&S$6&\"_\"&$D35,E_PurchPrec!$T:$T)/SUMIF(D_Processes!$R:$R,CONST_CNTR_TotProd&$D35,D_Processes!$T:$T),0)","v":{"v":0,"d":"0.000"}},{"$f":"IFERROR(SUMIF(E_PurchPrec!$R:$R,CONST_PrecursorToGoodInput&T$6&\"_\"&$D35,E_PurchPrec!$T:$T)/SUMIF(D_Processes!$R:$R,CONST_CNTR_TotProd&$D35,D_Processes!$T:$T),0)","v":{"v":0,"d":"0.000"}},{"$f":"IFERROR(SUMIF(E_PurchPrec!$R:$R,CONST_PrecursorToGoodInput&U$6&\"_\"&$D35,E_PurchPrec!$T:$T)/SUMIF(D_Processes!$R:$R,CONST_CNTR_TotProd&$D35,D_Processes!$T:$T),0)","v":{"v":0,"d":"0.000"}},{"$f":"IFERROR(SUMIF(E_PurchPrec!$R:$R,CONST_PrecursorToGoodInput&V$6&\"_\"&$D35,E_PurchPrec!$T:$T)/SUMIF(D_Processes!$R:$R,CONST_CNTR_TotProd&$D35,D_Processes!$T:$T),0)","v":{"v":0,"d":"0.000"}},{"$f":"IFERROR(SUMIF(E_PurchPrec!$R:$R,CONST_PrecursorToGoodInput&W$6&\"_\"&$D35,E_PurchPrec!$T:$T)/SUMIF(D_Processes!$R:$R,CONST_CNTR_TotProd&$D35,D_Processes!$T:$T),0)","v":{"v":0,"d":"0.000"}},{"$f":"IFERROR(SUMIF(E_PurchPrec!$R:$R,CONST_PrecursorToGoodInput&X$6&\"_\"&$D35,E_PurchPrec!$T:$T)/SUMIF(D_Processes!$R:$R,CONST_CNTR_TotProd&$D35,D_Processes!$T:$T),0)","v":{"v":0,"d":"0.000"}},{"$f":"IFERROR(SUMIF(E_PurchPrec!$R:$R,CONST_PrecursorToGoodInput&Y$6&\"_\"&$D35,E_PurchPrec!$T:$T)/SUMIF(D_Processes!$R:$R,CONST_CNTR_TotProd&$D35,D_Processes!$T:$T),0)","v":{"v":0,"d":"0.000"}},{"$f":"IFERROR(SUMIF(E_PurchPrec!$R:$R,CONST_PrecursorToGoodInput&Z$6&\"_\"&$D35,E_PurchPrec!$T:$T)/SUMIF(D_Processes!$R:$R,CONST_CNTR_TotProd&$D35,D_Processes!$T:$T),0)","v":{"v":0,"d":"0.000"}},{"$f":"IFERROR(SUMIF(E_PurchPrec!$R:$R,CONST_PrecursorToGoodInput&AA$6&\"_\"&$D35,E_PurchPrec!$T:$T)/SUMIF(D_Processes!$R:$R,CONST_CNTR_TotProd&$D35,D_Processes!$T:$T),0)","v":{"v":0,"d":"0.000"}},{"$f":"IFERROR(SUMIF(E_PurchPrec!$R:$R,CONST_PrecursorToGoodInput&AB$6&\"_\"&$D35,E_PurchPrec!$T:$T)/SUMIF(D_Processes!$R:$R,CONST_CNTR_TotProd&$D35,D_Processes!$T:$T),0)","v":{"v":0,"d":"0.000"}},{"$f":"IFERROR(SUMIF(E_PurchPrec!$R:$R,CONST_PrecursorToGoodInput&AC$6&\"_\"&$D35,E_PurchPrec!$T:$T)/SUMIF(D_Processes!$R:$R,CONST_CNTR_TotProd&$D35,D_Processes!$T:$T),0)","v":{"v":0,"d":"0.000"}},{"$f":"IFERROR(SUMIF(E_PurchPrec!$R:$R,CONST_PrecursorToGoodInput&AD$6&\"_\"&$D35,E_PurchPrec!$T:$T)/SUMIF(D_Processes!$R:$R,CONST_CNTR_TotProd&$D35,D_Processes!$T:$T),0)","v":{"v":0,"d":"0.000"}},{"$f":"IFERROR(SUMIF(E_PurchPrec!$R:$R,CONST_PrecursorToGoodInput&AE$6&\"_\"&$D35,E_PurchPrec!$T:$T)/SUMIF(D_Processes!$R:$R,CONST_CNTR_TotProd&$D35,D_Processes!$T:$T),0)","v":{"v":0,"d":"0.000"}},{"$f":"IFERROR(SUMIF(E_PurchPrec!$R:$R,CONST_PrecursorToGoodInput&AF$6&\"_\"&$D35,E_PurchPrec!$T:$T)/SUMIF(D_Processes!$R:$R,CONST_CNTR_TotProd&$D35,D_Processes!$T:$T),0)","v":{"v":0,"d":"0.000"}},{"$f":"IFERROR(SUMIF(E_PurchPrec!$R:$R,CONST_PrecursorToGoodInput&AG$6&\"_\"&$D35,E_PurchPrec!$T:$T)/SUMIF(D_Processes!$R:$R,CONST_CNTR_TotProd&$D35,D_Processes!$T:$T),0)","v":{"v":0,"d":"0.000"}},{"$f":"IFERROR(SUMIF(E_PurchPrec!$R:$R,CONST_PrecursorToGoodInput&AH$6&\"_\"&$D35,E_PurchPrec!$T:$T)/SUMIF(D_Processes!$R:$R,CONST_CNTR_TotProd&$D35,D_Processes!$T:$T),0)","v":{"v":0,"d":"0.000"}}]
[null,null,20,"",{"$f":"IFERROR(SUMIF(E_PurchPrec!$R:$R,CONST_PrecursorToGoodInput&E$6&\"_\"&$D36,E_PurchPrec!$T:$T)/SUMIF(D_Processes!$R:$R,CONST_CNTR_TotProd&$D36,D_Processes!$T:$T),0)","v":{"v":0,"d":"0.000"}},{"$f":"IFERROR(SUMIF(E_PurchPrec!$R:$R,CONST_PrecursorToGoodInput&F$6&\"_\"&$D36,E_PurchPrec!$T:$T)/SUMIF(D_Processes!$R:$R,CONST_CNTR_TotProd&$D36,D_Processes!$T:$T),0)","v":{"v":0,"d":"0.000"}},{"$f":"IFERROR(SUMIF(E_PurchPrec!$R:$R,CONST_PrecursorToGoodInput&G$6&\"_\"&$D36,E_PurchPrec!$T:$T)/SUMIF(D_Processes!$R:$R,CONST_CNTR_TotProd&$D36,D_Processes!$T:$T),0)","v":{"v":0,"d":"0.000"}},{"$f":"IFERROR(SUMIF(E_PurchPrec!$R:$R,CONST_PrecursorToGoodInput&H$6&\"_\"&$D36,E_PurchPrec!$T:$T)/SUMIF(D_Processes!$R:$R,CONST_CNTR_TotProd&$D36,D_Processes!$T:$T),0)","v":{"v":0,"d":"0.000"}},{"$f":"IFERROR(SUMIF(E_PurchPrec!$R:$R,CONST_PrecursorToGoodInput&I$6&\"_\"&$D36,E_PurchPrec!$T:$T)/SUMIF(D_Processes!$R:$R,CONST_CNTR_TotProd&$D36,D_Processes!$T:$T),0)","v":{"v":0,"d":"0.000"}},{"$f":"IFERROR(SUMIF(E_PurchPrec!$R:$R,CONST_PrecursorToGoodInput&J$6&\"_\"&$D36,E_PurchPrec!$T:$T)/SUMIF(D_Processes!$R:$R,CONST_CNTR_TotProd&$D36,D_Processes!$T:$T),0)","v":{"v":0,"d":"0.000"}},{"$f":"IFERROR(SUMIF(E_PurchPrec!$R:$R,CONST_PrecursorToGoodInput&K$6&\"_\"&$D36,E_PurchPrec!$T:$T)/SUMIF(D_Processes!$R:$R,CONST_CNTR_TotProd&$D36,D_Processes!$T:$T),0)","v":{"v":0,"d":"0.000"}},{"$f":"IFERROR(SUMIF(E_PurchPrec!$R:$R,CONST_PrecursorToGoodInput&L$6&\"_\"&$D36,E_PurchPrec!$T:$T)/SUMIF(D_Processes!$R:$R,CONST_CNTR_TotProd&$D36,D_Processes!$T:$T),0)","v":{"v":0,"d":"0.000"}},{"$f":"IFERROR(SUMIF(E_PurchPrec!$R:$R,CONST_PrecursorToGoodInput&M$6&\"_\"&$D36,E_PurchPrec!$T:$T)/SUMIF(D_Processes!$R:$R,CONST_CNTR_TotProd&$D36,D_Processes!$T:$T),0)","v":{"v":0,"d":"0.000"}},{"$f":"IFERROR(SUMIF(E_PurchPrec!$R:$R,CONST_PrecursorToGoodInput&N$6&\"_\"&$D36,E_PurchPrec!$T:$T)/SUMIF(D_Processes!$R:$R,CONST_CNTR_TotProd&$D36,D_Processes!$T:$T),0)","v":{"v":0,"d":"0.000"}},{"$f":"IFERROR(SUMIF(E_PurchPrec!$R:$R,CONST_PrecursorToGoodInput&O$6&\"_\"&$D36,E_PurchPrec!$T:$T)/SUMIF(D_Processes!$R:$R,CONST_CNTR_TotProd&$D36,D_Processes!$T:$T),0)","v":{"v":0,"d":"0.000"}},{"$f":"IFERROR(SUMIF(E_PurchPrec!$R:$R,CONST_PrecursorToGoodInput&P$6&\"_\"&$D36,E_PurchPrec!$T:$T)/SUMIF(D_Processes!$R:$R,CONST_CNTR_TotProd&$D36,D_Processes!$T:$T),0)","v":{"v":0,"d":"0.000"}},{"$f":"IFERROR(SUMIF(E_PurchPrec!$R:$R,CONST_PrecursorToGoodInput&Q$6&\"_\"&$D36,E_PurchPrec!$T:$T)/SUMIF(D_Processes!$R:$R,CONST_CNTR_TotProd&$D36,D_Processes!$T:$T),0)","v":{"v":0,"d":"0.000"}},{"$f":"IFERROR(SUMIF(E_PurchPrec!$R:$R,CONST_PrecursorToGoodInput&R$6&\"_\"&$D36,E_PurchPrec!$T:$T)/SUMIF(D_Processes!$R:$R,CONST_CNTR_TotProd&$D36,D_Processes!$T:$T),0)","v":{"v":0,"d":"0.000"}},{"$f":"IFERROR(SUMIF(E_PurchPrec!$R:$R,CONST_PrecursorToGoodInput&S$6&\"_\"&$D36,E_PurchPrec!$T:$T)/SUMIF(D_Processes!$R:$R,CONST_CNTR_TotProd&$D36,D_Processes!$T:$T),0)","v":{"v":0,"d":"0.000"}},{"$f":"IFERROR(SUMIF(E_PurchPrec!$R:$R,CONST_PrecursorToGoodInput&T$6&\"_\"&$D36,E_PurchPrec!$T:$T)/SUMIF(D_Processes!$R:$R,CONST_CNTR_TotProd&$D36,D_Processes!$T:$T),0)","v":{"v":0,"d":"0.000"}},{"$f":"IFERROR(SUMIF(E_PurchPrec!$R:$R,CONST_PrecursorToGoodInput&U$6&\"_\"&$D36,E_PurchPrec!$T:$T)/SUMIF(D_Processes!$R:$R,CONST_CNTR_TotProd&$D36,D_Processes!$T:$T),0)","v":{"v":0,"d":"0.000"}},{"$f":"IFERROR(SUMIF(E_PurchPrec!$R:$R,CONST_PrecursorToGoodInput&V$6&\"_\"&$D36,E_PurchPrec!$T:$T)/SUMIF(D_Processes!$R:$R,CONST_CNTR_TotProd&$D36,D_Processes!$T:$T),0)","v":{"v":0,"d":"0.000"}},{"$f":"IFERROR(SUMIF(E_PurchPrec!$R:$R,CONST_PrecursorToGoodInput&W$6&\"_\"&$D36,E_PurchPrec!$T:$T)/SUMIF(D_Processes!$R:$R,CONST_CNTR_TotProd&$D36,D_Processes!$T:$T),0)","v":{"v":0,"d":"0.000"}},{"$f":"IFERROR(SUMIF(E_PurchPrec!$R:$R,CONST_PrecursorToGoodInput&X$6&\"_\"&$D36,E_PurchPrec!$T:$T)/SUMIF(D_Processes!$R:$R,CONST_CNTR_TotProd&$D36,D_Processes!$T:$T),0)","v":{"v":0,"d":"0.000"}},{"$f":"IFERROR(SUMIF(E_PurchPrec!$R:$R,CONST_PrecursorToGoodInput&Y$6&\"_\"&$D36,E_PurchPrec!$T:$T)/SUMIF(D_Processes!$R:$R,CONST_CNTR_TotProd&$D36,D_Processes!$T:$T),0)","v":{"v":0,"d":"0.000"}},{"$f":"IFERROR(SUMIF(E_PurchPrec!$R:$R,CONST_PrecursorToGoodInput&Z$6&\"_\"&$D36,E_PurchPrec!$T:$T)/SUMIF(D_Processes!$R:$R,CONST_CNTR_TotProd&$D36,D_Processes!$T:$T),0)","v":{"v":0,"d":"0.000"}},{"$f":"IFERROR(SUMIF(E_PurchPrec!$R:$R,CONST_PrecursorToGoodInput&AA$6&\"_\"&$D36,E_PurchPrec!$T:$T)/SUMIF(D_Processes!$R:$R,CONST_CNTR_TotProd&$D36,D_Processes!$T:$T),0)","v":{"v":0,"d":"0.000"}},{"$f":"IFERROR(SUMIF(E_PurchPrec!$R:$R,CONST_PrecursorToGoodInput&AB$6&\"_\"&$D36,E_PurchPrec!$T:$T)/SUMIF(D_Processes!$R:$R,CONST_CNTR_TotProd&$D36,D_Processes!$T:$T),0)","v":{"v":0,"d":"0.000"}},{"$f":"IFERROR(SUMIF(E_PurchPrec!$R:$R,CONST_PrecursorToGoodInput&AC$6&\"_\"&$D36,E_PurchPrec!$T:$T)/SUMIF(D_Processes!$R:$R,CONST_CNTR_TotProd&$D36,D_Processes!$T:$T),0)","v":{"v":0,"d":"0.000"}},{"$f":"IFERROR(SUMIF(E_PurchPrec!$R:$R,CONST_PrecursorToGoodInput&AD$6&\"_\"&$D36,E_PurchPrec!$T:$T)/SUMIF(D_Processes!$R:$R,CONST_CNTR_TotProd&$D36,D_Processes!$T:$T),0)","v":{"v":0,"d":"0.000"}},{"$f":"IFERROR(SUMIF(E_PurchPrec!$R:$R,CONST_PrecursorToGoodInput&AE$6&\"_\"&$D36,E_PurchPrec!$T:$T)/SUMIF(D_Processes!$R:$R,CONST_CNTR_TotProd&$D36,D_Processes!$T:$T),0)","v":{"v":0,"d":"0.000"}},{"$f":"IFERROR(SUMIF(E_PurchPrec!$R:$R,CONST_PrecursorToGoodInput&AF$6&\"_\"&$D36,E_PurchPrec!$T:$T)/SUMIF(D_Processes!$R:$R,CONST_CNTR_TotProd&$D36,D_Processes!$T:$T),0)","v":{"v":0,"d":"0.000"}},{"$f":"IFERROR(SUMIF(E_PurchPrec!$R:$R,CONST_PrecursorToGoodInput&AG$6&\"_\"&$D36,E_PurchPrec!$T:$T)/SUMIF(D_Processes!$R:$R,CONST_CNTR_TotProd&$D36,D_Processes!$T:$T),0)","v":{"v":0,"d":"0.000"}},{"$f":"IFERROR(SUMIF(E_PurchPrec!$R:$R,CONST_PrecursorToGoodInput&AH$6&\"_\"&$D36,E_PurchPrec!$T:$T)/SUMIF(D_Processes!$R:$R,CONST_CNTR_TotProd&$D36,D_Processes!$T:$T),0)","v":{"v":0,"d":"0.000"}}]
[]
[{"$nulls":3},{"$f":"Translations!$B$193","v":"Process"},{"$f":"E6","v":""},"","","","","","","","","","","","","","","","","","","","","","","","","","","","",""]
[null,"Good produced",1,{"$f":"D7","v":""},{"$f":"IF(ROWS($D$38:D38)=COLUMNS($D$38:D38),1,0-E7)","v":{"v":1,"d":"1.000"}},{"$f":"IF(ROWS($D$38:E38)=COLUMNS($D$38:E38),1,0-F7)","v":{"v":0,"d":"0.000"}},{"$f":"IF(ROWS($D$38:F38)=COLUMNS($D$38:F38),1,0-G7)","v":{"v":0,"d":"0.000"}},{"$f":"IF(ROWS($D$38:G38)=COLUMNS($D$38:G38),1,0-H7)","v":{"v":0,"d":"0.000"}},{"$f":"IF(ROWS($D$38:H38)=COLUMNS($D$38:H38),1,0-I7)","v":{"v":0,"d":"0.000"}},{"$f":"IF(ROWS($D$38:I38)=COLUMNS($D$38:I38),1,0-J7)","v":{"v":0,"d":"0.000"}},{"$f":"IF(ROWS($D$38:J38)=COLUMNS($D$38:J38),1,0-K7)","v":{"v":0,"d":"0.000"}},{"$f":"IF(ROWS($D$38:K38)=COLUMNS($D$38:K38),1,0-L7)","v":{"v":0,"d":"0.000"}},{"$f":"IF(ROWS($D$38:L38)=COLUMNS($D$38:L38),1,0-M7)","v":{"v":0,"d":"0.000"}},{"$f":"IF(ROWS($D$38:M38)=COLUMNS($D$38:M38),1,0-N7)","v":{"v":0,"d":"0.000"}},{"$f":"IF(ROWS($D$38:N38)=COLUMNS($D$38:N38),1,0-O7)","v":{"v":0,"d":"0.000"}},{"$f":"IF(ROWS($D$38:O38)=COLUMNS($D$38:O38),1,0-P7)","v":{"v":0,"d":"0.000"}},{"$f":"IF(ROWS($D$38:P38)=COLUMNS($D$38:P38),1,0-Q7)","v":{"v":0,"d":"0.000"}},{"$f":"IF(ROWS($D$38:Q38)=COLUMNS($D$38:Q38),1,0-R7)","v":{"v":0,"d":"0.000"}},{"$f":"IF(ROWS($D$38:R38)=COLUMNS($D$38:R38),1,0-S7)","v":{"v":0,"d":"0.000"}},{"$f":"IF(ROWS($D$38:S38)=COLUMNS($D$38:S38),1,0-T7)","v":{"v":0,"d":"0.000"}},{"$f":"IF(ROWS($D$38:T38)=COLUMNS($D$38:T38),1,0-U7)","v":{"v":0,"d":"0.000"}},{"$f":"IF(ROWS($D$38:U38)=COLUMNS($D$38:U38),1,0-V7)","v":{"v":0,"d":"0.000"}},{"$f":"IF(ROWS($D$38:V38)=COLUMNS($D$38:V38),1,0-W7)","v":{"v":0,"d":"0.000"}},{"$f":"IF(ROWS($D$38:W38)=COLUMNS($D$38:W38),1,0-X7)","v":{"v":0,"d":"0.000"}},{"$f":"IF(ROWS($D$38:X38)=COLUMNS($D$38:X38),1,0-Y7)","v":{"v":0,"d":"0.000"}},{"$f":"IF(ROWS($D$38:Y38)=COLUMNS($D$38:Y38),1,0-Z7)","v":{"v":0,"d":"0.000"}},{"$f":"IF(ROWS($D$38:Z38)=COLUMNS($D$38:Z38),1,0-AA7)","v":{"v":0,"d":"0.000"}},{"$f":"IF(ROWS($D$38:AA38)=COLUMNS($D$38:AA38),1,0-AB7)","v":{"v":0,"d":"0.000"}},{"$f":"IF(ROWS($D$38:AB38)=COLUMNS($D$38:AB38),1,0-AC7)","v":{"v":0,"d":"0.000"}},{"$f":"IF(ROWS($D$38:AC38)=COLUMNS($D$38:AC38),1,0-AD7)","v":{"v":0,"d":"0.000"}},{"$f":"IF(ROWS($D$38:AD38)=COLUMNS($D$38:AD38),1,0-AE7)","v":{"v":0,"d":"0.000"}},{"$f":"IF(ROWS($D$38:AE38)=COLUMNS($D$38:AE38),1,0-AF7)","v":{"v":0,"d":"0.000"}},{"$f":"IF(ROWS($D$38:AF38)=COLUMNS($D$38:AF38),1,0-AG7)","v":{"v":0,"d":"0.000"}},{"$f":"IF(ROWS($D$38:AG38)=COLUMNS($D$38:AG38),1,0-AH7)","v":{"v":0,"d":"0.000"}}]
[null,null,2,"",{"$f":"IF(ROWS($D$38:D39)=COLUMNS($D$38:D39),1,0-E8)","v":{"v":0,"d":"0.000"}},{"$f":"IF(ROWS($D$38:E39)=COLUMNS($D$38:E39),1,0-F8)","v":{"v":1,"d":"1.000"}},{"$f":"IF(ROWS($D$38:F39)=COLUMNS($D$38:F39),1,0-G8)","v":{"v":0,"d":"0.000"}},{"$f":"IF(ROWS($D$38:G39)=COLUMNS($D$38:G39),1,0-H8)","v":{"v":0,"d":"0.000"}},{"$f":"IF(ROWS($D$38:H39)=COLUMNS($D$38:H39),1,0-I8)","v":{"v":0,"d":"0.000"}},{"$f":"IF(ROWS($D$38:I39)=COLUMNS($D$38:I39),1,0-J8)","v":{"v":0,"d":"0.000"}},{"$f":"IF(ROWS($D$38:J39)=COLUMNS($D$38:J39),1,0-K8)","v":{"v":0,"d":"0.000"}},{"$f":"IF(ROWS($D$38:K39)=COLUMNS($D$38:K39),1,0-L8)","v":{"v":0,"d":"0.000"}},{"$f":"IF(ROWS($D$38:L39)=COLUMNS($D$38:L39),1,0-M8)","v":{"v":0,"d":"0.000"}},{"$f":"IF(ROWS($D$38:M39)=COLUMNS($D$38:M39),1,0-N8)","v":{"v":0,"d":"0.000"}},{"$f":"IF(ROWS($D$38:N39)=COLUMNS($D$38:N39),1,0-O8)","v":{"v":0,"d":"0.000"}},{"$f":"IF(ROWS($D$38:O39)=COLUMNS($D$38:O39),1,0-P8)","v":{"v":0,"d":"0.000"}},{"$f":"IF(ROWS($D$38:P39)=COLUMNS($D$38:P39),1,0-Q8)","v":{"v":0,"d":"0.000"}},{"$f":"IF(ROWS($D$38:Q39)=COLUMNS($D$38:Q39),1,0-R8)","v":{"v":0,"d":"0.000"}},{"$f":"IF(ROWS($D$38:R39)=COLUMNS($D$38:R39),1,0-S8)","v":{"v":0,"d":"0.000"}},{"$f":"IF(ROWS($D$38:S39)=COLUMNS($D$38:S39),1,0-T8)","v":{"v":0,"d":"0.000"}},{"$f":"IF(ROWS($D$38:T39)=COLUMNS($D$38:T39),1,0-U8)","v":{"v":0,"d":"0.000"}},{"$f":"IF(ROWS($D$38:U39)=COLUMNS($D$38:U39),1,0-V8)","v":{"v":0,"d":"0.000"}},{"$f":"IF(ROWS($D$38:V39)=COLUMNS($D$38:V39),1,0-W8)","v":{"v":0,"d":"0.000"}},{"$f":"IF(ROWS($D$38:W39)=COLUMNS($D$38:W39),1,0-X8)","v":{"v":0,"d":"0.000"}},{"$f":"IF(ROWS($D$38:X39)=COLUMNS($D$38:X39),1,0-Y8)","v":{"v":0,"d":"0.000"}},{"$f":"IF(ROWS($D$38:Y39)=COLUMNS($D$38:Y39),1,0-Z8)","v":{"v":0,"d":"0.000"}},{"$f":"IF(ROWS($D$38:Z39)=COLUMNS($D$38:Z39),1,0-AA8)","v":{"v":0,"d":"0.000"}},{"$f":"IF(ROWS($D$38:AA39)=COLUMNS($D$38:AA39),1,0-AB8)","v":{"v":0,"d":"0.000"}},{"$f":"IF(ROWS($D$38:AB39)=COLUMNS($D$38:AB39),1,0-AC8)","v":{"v":0,"d":"0.000"}},{"$f":"IF(ROWS($D$38:AC39)=COLUMNS($D$38:AC39),1,0-AD8)","v":{"v":0,"d":"0.000"}},{"$f":"IF(ROWS($D$38:AD39)=COLUMNS($D$38:AD39),1,0-AE8)","v":{"v":0,"d":"0.000"}},{"$f":"IF(ROWS($D$38:AE39)=COLUMNS($D$38:AE39),1,0-AF8)","v":{"v":0,"d":"0.000"}},{"$f":"IF(ROWS($D$38:AF39)=COLUMNS($D$38:AF39),1,0-AG8)","v":{"v":0,"d":"0.000"}},{"$f":"IF(ROWS($D$38:AG39)=COLUMNS($D$38:AG39),1,0-AH8)","v":{"v":0,"d":"0.000"}}]
[null,null,3,"",{"$f":"IF(ROWS($D$38:D40)=COLUMNS($D$38:D40),1,0-E9)","v":{"v":0,"d":"0.000"}},{"$f":"IF(ROWS($D$38:E40)=COLUMNS($D$38:E40),1,0-F9)","v":{"v":0,"d":"0.000"}},{"$f":"IF(ROWS($D$38:F40)=COLUMNS($D$38:F40),1,0-G9)","v":{"v":1,"d":"1.000"}},{"$f":"IF(ROWS($D$38:G40)=COLUMNS($D$38:G40),1,0-H9)","v":{"v":0,"d":"0.000"}},{"$f":"IF(ROWS($D$38:H40)=COLUMNS($D$38:H40),1,0-I9)","v":{"v":0,"d":"0.000"}},{"$f":"IF(ROWS($D$38:I40)=COLUMNS($D$38:I40),1,0-J9)","v":{"v":0,"d":"0.000"}},{"$f":"IF(ROWS($D$38:J40)=COLUMNS($D$38:J40),1,0-K9)","v":{"v":0,"d":"0.000"}},{"$f":"IF(ROWS($D$38:K40)=COLUMNS($D$38:K40),1,0-L9)","v":{"v":0,"d":"0.000"}},{"$f":"IF(ROWS($D$38:L40)=COLUMNS($D$38:L40),1,0-M9)","v":{"v":0,"d":"0.000"}},{"$f":"IF(ROWS($D$38:M40)=COLUMNS($D$38:M40),1,0-N9)","v":{"v":0,"d":"0.000"}},{"$f":"IF(ROWS($D$38:N40)=COLUMNS($D$38:N40),1,0-O9)","v":{"v":0,"d":"0.000"}},{"$f":"IF(ROWS($D$38:O40)=COLUMNS($D$38:O40),1,0-P9)","v":{"v":0,"d":"0.000"}},{"$f":"IF(ROWS($D$38:P40)=COLUMNS($D$38:P40),1,0-Q9)","v":{"v":0,"d":"0.000"}},{"$f":"IF(ROWS($D$38:Q40)=COLUMNS($D$38:Q40),1,0-R9)","v":{"v":0,"d":"0.000"}},{"$f":"IF(ROWS($D$38:R40)=COLUMNS($D$38:R40),1,0-S9)","v":{"v":0,"d":"0.000"}},{"$f":"IF(ROWS($D$38:S40)=COLUMNS($D$38:S40),1,0-T9)","v":{"v":0,"d":"0.000"}},{"$f":"IF(ROWS($D$38:T40)=COLUMNS($D$38:T40),1,0-U9)","v":{"v":0,"d":"0.000"}},{"$f":"IF(ROWS($D$38:U40)=COLUMNS($D$38:U40),1,0-V9)","v":{"v":0,"d":"0.000"}},{"$f":"IF(ROWS($D$38:V40)=COLUMNS($D$38:V40),1,0-W9)","v":{"v":0,"d":"0.000"}},{"$f":"IF(ROWS($D$38:W40)=COLUMNS($D$38:W40),1,0-X9)","v":{"v":0,"d":"0.000"}},{"$f":"IF(ROWS($D$38:X40)=COLUMNS($D$38:X40),1,0-Y9)","v":{"v":0,"d":"0.000"}},{"$f":"IF(ROWS($D$38:Y40)=COLUMNS($D$38:Y40),1,0-Z9)","v":{"v":0,"d":"0.000"}},{"$f":"IF(ROWS($D$38:Z40)=COLUMNS($D$38:Z40),1,0-AA9)","v":{"v":0,"d":"0.000"}},{"$f":"IF(ROWS($D$38:AA40)=COLUMNS($D$38:AA40),1,0-AB9)","v":{"v":0,"d":"0.000"}},{"$f":"IF(ROWS($D$38:AB40)=COLUMNS($D$38:AB40),1,0-AC9)","v":{"v":0,"d":"0.000"}},{"$f":"IF(ROWS($D$38:AC40)=COLUMNS($D$38:AC40),1,0-AD9)","v":{"v":0,"d":"0.000"}},{"$f":"IF(ROWS($D$38:AD40)=COLUMNS($D$38:AD40),1,0-AE9)","v":{"v":0,"d":"0.000"}},{"$f":"IF(ROWS($D$38:AE40)=COLUMNS($D$38:AE40),1,0-AF9)","v":{"v":0,"d":"0.000"}},{"$f":"IF(ROWS($D$38:AF40)=COLUMNS($D$38:AF40),1,0-AG9)","v":{"v":0,"d":"0.000"}},{"$f":"IF(ROWS($D$38:AG40)=COLUMNS($D$38:AG40),1,0-AH9)","v":{"v":0,"d":"0.000"}}]
[null,null,4,"",{"$f":"IF(ROWS($D$38:D41)=COLUMNS($D$38:D41),1,0-E10)","v":{"v":0,"d":"0.000"}},{"$f":"IF(ROWS($D$38:E41)=COLUMNS($D$38:E41),1,0-F10)","v":{"v":0,"d":"0.000"}},{"$f":"IF(ROWS($D$38:F41)=COLUMNS($D$38:F41),1,0-G10)","v":{"v":0,"d":"0.000"}},{"$f":"IF(ROWS($D$38:G41)=COLUMNS($D$38:G41),1,0-H10)","v":{"v":1,"d":"1.000"}},{"$f":"IF(ROWS($D$38:H41)=COLUMNS($D$38:H41),1,0-I10)","v":{"v":0,"d":"0.000"}},{"$f":"IF(ROWS($D$38:I41)=COLUMNS($D$38:I41),1,0-J10)","v":{"v":0,"d":"0.000"}},{"$f":"IF(ROWS($D$38:J41)=COLUMNS($D$38:J41),1,0-K10)","v":{"v":0,"d":"0.000"}},{"$f":"IF(ROWS($D$38:K41)=COLUMNS($D$38:K41),1,0-L10)","v":{"v":0,"d":"0.000"}},{"$f":"IF(ROWS($D$38:L41)=COLUMNS($D$38:L41),1,0-M10)","v":{"v":0,"d":"0.000"}},{"$f":"IF(ROWS($D$38:M41)=COLUMNS($D$38:M41),1,0-N10)","v":{"v":0,"d":"0.000"}},{"$f":"IF(ROWS($D$38:N41)=COLUMNS($D$38:N41),1,0-O10)","v":{"v":0,"d":"0.000"}},{"$f":"IF(ROWS($D$38:O41)=COLUMNS($D$38:O41),1,0-P10)","v":{"v":0,"d":"0.000"}},{"$f":"IF(ROWS($D$38:P41)=COLUMNS($D$38:P41),1,0-Q10)","v":{"v":0,"d":"0.000"}},{"$f":"IF(ROWS($D$38:Q41)=COLUMNS($D$38:Q41),1,0-R10)","v":{"v":0,"d":"0.000"}},{"$f":"IF(ROWS($D$38:R41)=COLUMNS($D$38:R41),1,0-S10)","v":{"v":0,"d":"0.000"}},{"$f":"IF(ROWS($D$38:S41)=COLUMNS($D$38:S41),1,0-T10)","v":{"v":0,"d":"0.000"}},{"$f":"IF(ROWS($D$38:T41)=COLUMNS($D$38:T41),1,0-U10)","v":{"v":0,"d":"0.000"}},{"$f":"IF(ROWS($D$38:U41)=COLUMNS($D$38:U41),1,0-V10)","v":{"v":0,"d":"0.000"}},{"$f":"IF(ROWS($D$38:V41)=COLUMNS($D$38:V41),1,0-W10)","v":{"v":0,"d":"0.000"}},{"$f":"IF(ROWS($D$38:W41)=COLUMNS($D$38:W41),1,0-X10)","v":{"v":0,"d":"0.000"}},{"$f":"IF(ROWS($D$38:X41)=COLUMNS($D$38:X41),1,0-Y10)","v":{"v":0,"d":"0.000"}},{"$f":"IF(ROWS($D$38:Y41)=COLUMNS($D$38:Y41),1,0-Z10)","v":{"v":0,"d":"0.000"}},{"$f":"IF(ROWS($D$38:Z41)=COLUMNS($D$38:Z41),1,0-AA10)","v":{"v":0,"d":"0.000"}},{"$f":"IF(ROWS($D$38:AA41)=COLUMNS($D$38:AA41),1,0-AB10)","v":{"v":0,"d":"0.000"}},{"$f":"IF(ROWS($D$38:AB41)=COLUMNS($D$38:AB41),1,0-AC10)","v":{"v":0,"d":"0.000"}},{"$f":"IF(ROWS($D$38:AC41)=COLUMNS($D$38:AC41),1,0-AD10)","v":{"v":0,"d":"0.000"}},{"$f":"IF(ROWS($D$38:AD41)=COLUMNS($D$38:AD41),1,0-AE10)","v":{"v":0,"d":"0.000"}},{"$f":"IF(ROWS($D$38:AE41)=COLUMNS($D$38:AE41),1,0-AF10)","v":{"v":0,"d":"0.000"}},{"$f":"IF(ROWS($D$38:AF41)=COLUMNS($D$38:AF41),1,0-AG10)","v":{"v":0,"d":"0.000"}},{"$f":"IF(ROWS($D$38:AG41)=COLUMNS($D$38:AG41),1,0-AH10)","v":{"v":0,"d":"0.000"}}]
[null,null,5,"",{"$f":"IF(ROWS($D$38:D42)=COLUMNS($D$38:D42),1,0-E11)","v":{"v":0,"d":"0.000"}},{"$f":"IF(ROWS($D$38:E42)=COLUMNS($D$38:E42),1,0-F11)","v":{"v":0,"d":"0.000"}},{"$f":"IF(ROWS($D$38:F42)=COLUMNS($D$38:F42),1,0-G11)","v":{"v":0,"d":"0.000"}},{"$f":"IF(ROWS($D$38:G42)=COLUMNS($D$38:G42),1,0-H11)","v":{"v":0,"d":"0.000"}},{"$f":"IF(ROWS($D$38:H42)=COLUMNS($D$38:H42),1,0-I11)","v":{"v":1,"d":"1.000"}},{"$f":"IF(ROWS($D$38:I42)=COLUMNS($D$38:I42),1,0-J11)","v":{"v":0,"d":"0.000"}},{"$f":"IF(ROWS($D$38:J42)=COLUMNS($D$38:J42),1,0-K11)","v":{"v":0,"d":"0.000"}},{"$f":"IF(ROWS($D$38:K42)=COLUMNS($D$38:K42),1,0-L11)","v":{"v":0,"d":"0.000"}},{"$f":"IF(ROWS($D$38:L42)=COLUMNS($D$38:L42),1,0-M11)","v":{"v":0,"d":"0.000"}},{"$f":"IF(ROWS($D$38:M42)=COLUMNS($D$38:M42),1,0-N11)","v":{"v":0,"d":"0.000"}},{"$f":"IF(ROWS($D$38:N42)=COLUMNS($D$38:N42),1,0-O11)","v":{"v":0,"d":"0.000"}},{"$f":"IF(ROWS($D$38:O42)=COLUMNS($D$38:O42),1,0-P11)","v":{"v":0,"d":"0.000"}},{"$f":"IF(ROWS($D$38:P42)=COLUMNS($D$38:P42),1,0-Q11)","v":{"v":0,"d":"0.000"}},{"$f":"IF(ROWS($D$38:Q42)=COLUMNS($D$38:Q42),1,0-R11)","v":{"v":0,"d":"0.000"}},{"$f":"IF(ROWS($D$38:R42)=COLUMNS($D$38:R42),1,0-S11)","v":{"v":0,"d":"0.000"}},{"$f":"IF(ROWS($D$38:S42)=COLUMNS($D$38:S42),1,0-T11)","v":{"v":0,"d":"0.000"}},{"$f":"IF(ROWS($D$38:T42)=COLUMNS($D$38:T42),1,0-U11)","v":{"v":0,"d":"0.000"}},{"$f":"IF(ROWS($D$38:U42)=COLUMNS($D$38:U42),1,0-V11)","v":{"v":0,"d":"0.000"}},{"$f":"IF(ROWS($D$38:V42)=COLUMNS($D$38:V42),1,0-W11)","v":{"v":0,"d":"0.000"}},{"$f":"IF(ROWS($D$38:W42)=COLUMNS($D$38:W42),1,0-X11)","v":{"v":0,"d":"0.000"}},{"$f":"IF(ROWS($D$38:X42)=COLUMNS($D$38:X42),1,0-Y11)","v":{"v":0,"d":"0.000"}},{"$f":"IF(ROWS($D$38:Y42)=COLUMNS($D$38:Y42),1,0-Z11)","v":{"v":0,"d":"0.000"}},{"$f":"IF(ROWS($D$38:Z42)=COLUMNS($D$38:Z42),1,0-AA11)","v":{"v":0,"d":"0.000"}},{"$f":"IF(ROWS($D$38:AA42)=COLUMNS($D$38:AA42),1,0-AB11)","v":{"v":0,"d":"0.000"}},{"$f":"IF(ROWS($D$38:AB42)=COLUMNS($D$38:AB42),1,0-AC11)","v":{"v":0,"d":"0.000"}},{"$f":"IF(ROWS($D$38:AC42)=COLUMNS($D$38:AC42),1,0-AD11)","v":{"v":0,"d":"0.000"}},{"$f":"IF(ROWS($D$38:AD42)=COLUMNS($D$38:AD42),1,0-AE11)","v":{"v":0,"d":"0.000"}},{"$f":"IF(ROWS($D$38:AE42)=COLUMNS($D$38:AE42),1,0-AF11)","v":{"v":0,"d":"0.000"}},{"$f":"IF(ROWS($D$38:AF42)=COLUMNS($D$38:AF42),1,0-AG11)","v":{"v":0,"d":"0.000"}},{"$f":"IF(ROWS($D$38:AG42)=COLUMNS($D$38:AG42),1,0-AH11)","v":{"v":0,"d":"0.000"}}]
[null,null,6,"",{"$f":"IF(ROWS($D$38:D43)=COLUMNS($D$38:D43),1,0-E12)","v":{"v":0,"d":"0.000"}},{"$f":"IF(ROWS($D$38:E43)=COLUMNS($D$38:E43),1,0-F12)","v":{"v":0,"d":"0.000"}},{"$f":"IF(ROWS($D$38:F43)=COLUMNS($D$38:F43),1,0-G12)","v":{"v":0,"d":"0.000"}},{"$f":"IF(ROWS($D$38:G43)=COLUMNS($D$38:G43),1,0-H12)","v":{"v":0,"d":"0.000"}},{"$f":"IF(ROWS($D$38:H43)=COLUMNS($D$38:H43),1,0-I12)","v":{"v":0,"d":"0.000"}},{"$f":"IF(ROWS($D$38:I43)=COLUMNS($D$38:I43),1,0-J12)","v":{"v":1,"d":"1.000"}},{"$f":"IF(ROWS($D$38:J43)=COLUMNS($D$38:J43),1,0-K12)","v":{"v":0,"d":"0.000"}},{"$f":"IF(ROWS($D$38:K43)=COLUMNS($D$38:K43),1,0-L12)","v":{"v":0,"d":"0.000"}},{"$f":"IF(ROWS($D$38:L43)=COLUMNS($D$38:L43),1,0-M12)","v":{"v":0,"d":"0.000"}},{"$f":"IF(ROWS($D$38:M43)=COLUMNS($D$38:M43),1,0-N12)","v":{"v":0,"d":"0.000"}},{"$f":"IF(ROWS($D$38:N43)=COLUMNS($D$38:N43),1,0-O12)","v":{"v":0,"d":"0.000"}},{"$f":"IF(ROWS($D$38:O43)=COLUMNS($D$38:O43),1,0-P12)","v":{"v":0,"d":"0.000"}},{"$f":"IF(ROWS($D$38:P43)=COLUMNS($D$38:P43),1,0-Q12)","v":{"v":0,"d":"0.000"}},{"$f":"IF(ROWS($D$38:Q43)=COLUMNS($D$38:Q43),1,0-R12)","v":{"v":0,"d":"0.000"}},{"$f":"IF(ROWS($D$38:R43)=COLUMNS($D$38:R43),1,0-S12)","v":{"v":0,"d":"0.000"}},{"$f":"IF(ROWS($D$38:S43)=COLUMNS($D$38:S43),1,0-T12)","v":{"v":0,"d":"0.000"}},{"$f":"IF(ROWS($D$38:T43)=COLUMNS($D$38:T43),1,0-U12)","v":{"v":0,"d":"0.000"}},{"$f":"IF(ROWS($D$38:U43)=COLUMNS($D$38:U43),1,0-V12)","v":{"v":0,"d":"0.000"}},{"$f":"IF(ROWS($D$38:V43)=COLUMNS($D$38:V43),1,0-W12)","v":{"v":0,"d":"0.000"}},{"$f":"IF(ROWS($D$38:W43)=COLUMNS($D$38:W43),1,0-X12)","v":{"v":0,"d":"0.000"}},{"$f":"IF(ROWS($D$38:X43)=COLUMNS($D$38:X43),1,0-Y12)","v":{"v":0,"d":"0.000"}},{"$f":"IF(ROWS($D$38:Y43)=COLUMNS($D$38:Y43),1,0-Z12)","v":{"v":0,"d":"0.000"}},{"$f":"IF(ROWS($D$38:Z43)=COLUMNS($D$38:Z43),1,0-AA12)","v":{"v":0,"d":"0.000"}},{"$f":"IF(ROWS($D$38:AA43)=COLUMNS($D$38:AA43),1,0-AB12)","v":{"v":0,"d":"0.000"}},{"$f":"IF(ROWS($D$38:AB43)=COLUMNS($D$38:AB43),1,0-AC12)","v":{"v":0,"d":"0.000"}},{"$f":"IF(ROWS($D$38:AC43)=COLUMNS($D$38:AC43),1,0-AD12)","v":{"v":0,"d":"0.000"}},{"$f":"IF(ROWS($D$38:AD43)=COLUMNS($D$38:AD43),1,0-AE12)","v":{"v":0,"d":"0.000"}},{"$f":"IF(ROWS($D$38:AE43)=COLUMNS($D$38:AE43),1,0-AF12)","v":{"v":0,"d":"0.000"}},{"$f":"IF(ROWS($D$38:AF43)=COLUMNS($D$38:AF43),1,0-AG12)","v":{"v":0,"d":"0.000"}},{"$f":"IF(ROWS($D$38:AG43)=COLUMNS($D$38:AG43),1,0-AH12)","v":{"v":0,"d":"0.000"}}]
[null,null,7,"",{"$f":"IF(ROWS($D$38:D44)=COLUMNS($D$38:D44),1,0-E13)","v":{"v":0,"d":"0.000"}},{"$f":"IF(ROWS($D$38:E44)=COLUMNS($D$38:E44),1,0-F13)","v":{"v":0,"d":"0.000"}},{"$f":"IF(ROWS($D$38:F44)=COLUMNS($D$38:F44),1,0-G13)","v":{"v":0,"d":"0.000"}},{"$f":"IF(ROWS($D$38:G44)=COLUMNS($D$38:G44),1,0-H13)","v":{"v":0,"d":"0.000"}},{"$f":"IF(ROWS($D$38:H44)=COLUMNS($D$38:H44),1,0-I13)","v":{"v":0,"d":"0.000"}},{"$f":"IF(ROWS($D$38:I44)=COLUMNS($D$38:I44),1,0-J13)","v":{"v":0,"d":"0.000"}},{"$f":"IF(ROWS($D$38:J44)=COLUMNS($D$38:J44),1,0-K13)","v":{"v":1,"d":"1.000"}},{"$f":"IF(ROWS($D$38:K44)=COLUMNS($D$38:K44),1,0-L13)","v":{"v":0,"d":"0.000"}},{"$f":"IF(ROWS($D$38:L44)=COLUMNS($D$38:L44),1,0-M13)","v":{"v":0,"d":"0.000"}},{"$f":"IF(ROWS($D$38:M44)=COLUMNS($D$38:M44),1,0-N13)","v":{"v":0,"d":"0.000"}},{"$f":"IF(ROWS($D$38:N44)=COLUMNS($D$38:N44),1,0-O13)","v":{"v":0,"d":"0.000"}},{"$f":"IF(ROWS($D$38:O44)=COLUMNS($D$38:O44),1,0-P13)","v":{"v":0,"d":"0.000"}},{"$f":"IF(ROWS($D$38:P44)=COLUMNS($D$38:P44),1,0-Q13)","v":{"v":0,"d":"0.000"}},{"$f":"IF(ROWS($D$38:Q44)=COLUMNS($D$38:Q44),1,0-R13)","v":{"v":0,"d":"0.000"}},{"$f":"IF(ROWS($D$38:R44)=COLUMNS($D$38:R44),1,0-S13)","v":{"v":0,"d":"0.000"}},{"$f":"IF(ROWS($D$38:S44)=COLUMNS($D$38:S44),1,0-T13)","v":{"v":0,"d":"0.000"}},{"$f":"IF(ROWS($D$38:T44)=COLUMNS($D$38:T44),1,0-U13)","v":{"v":0,"d":"0.000"}},{"$f":"IF(ROWS($D$38:U44)=COLUMNS($D$38:U44),1,0-V13)","v":{"v":0,"d":"0.000"}},{"$f":"IF(ROWS($D$38:V44)=COLUMNS($D$38:V44),1,0-W13)","v":{"v":0,"d":"0.000"}},{"$f":"IF(ROWS($D$38:W44)=COLUMNS($D$38:W44),1,0-X13)","v":{"v":0,"d":"0.000"}},{"$f":"IF(ROWS($D$38:X44)=COLUMNS($D$38:X44),1,0-Y13)","v":{"v":0,"d":"0.000"}},{"$f":"IF(ROWS($D$38:Y44)=COLUMNS($D$38:Y44),1,0-Z13)","v":{"v":0,"d":"0.000"}},{"$f":"IF(ROWS($D$38:Z44)=COLUMNS($D$38:Z44),1,0-AA13)","v":{"v":0,"d":"0.000"}},{"$f":"IF(ROWS($D$38:AA44)=COLUMNS($D$38:AA44),1,0-AB13)","v":{"v":0,"d":"0.000"}},{"$f":"IF(ROWS($D$38:AB44)=COLUMNS($D$38:AB44),1,0-AC13)","v":{"v":0,"d":"0.000"}},{"$f":"IF(ROWS($D$38:AC44)=COLUMNS($D$38:AC44),1,0-AD13)","v":{"v":0,"d":"0.000"}},{"$f":"IF(ROWS($D$38:AD44)=COLUMNS($D$38:AD44),1,0-AE13)","v":{"v":0,"d":"0.000"}},{"$f":"IF(ROWS($D$38:AE44)=COLUMNS($D$38:AE44),1,0-AF13)","v":{"v":0,"d":"0.000"}},{"$f":"IF(ROWS($D$38:AF44)=COLUMNS($D$38:AF44),1,0-AG13)","v":{"v":0,"d":"0.000"}},{"$f":"IF(ROWS($D$38:AG44)=COLUMNS($D$38:AG44),1,0-AH13)","v":{"v":0,"d":"0.000"}}]
[null,null,8,"",{"$f":"IF(ROWS($D$38:D45)=COLUMNS($D$38:D45),1,0-E14)","v":{"v":0,"d":"0.000"}},{"$f":"IF(ROWS($D$38:E45)=COLUMNS($D$38:E45),1,0-F14)","v":{"v":0,"d":"0.000"}},{"$f":"IF(ROWS($D$38:F45)=COLUMNS($D$38:F45),1,0-G14)","v":{"v":0,"d":"0.000"}},{"$f":"IF(ROWS($D$38:G45)=COLUMNS($D$38:G45),1,0-H14)","v":{"v":0,"d":"0.000"}},{"$f":"IF(ROWS($D$38:H45)=COLUMNS($D$38:H45),1,0-I14)","v":{"v":0,"d":"0.000"}},{"$f":"IF(ROWS($D$38:I45)=COLUMNS($D$38:I45),1,0-J14)","v":{"v":0,"d":"0.000"}},{"$f":"IF(ROWS($D$38:J45)=COLUMNS($D$38:J45),1,0-K14)","v":{"v":0,"d":"0.000"}},{"$f":"IF(ROWS($D$38:K45)=COLUMNS($D$38:K45),1,0-L14)","v":{"v":1,"d":"1.000"}},{"$f":"IF(ROWS($D$38:L45)=COLUMNS($D$38:L45),1,0-M14)","v":{"v":0,"d":"0.000"}},{"$f":"IF(ROWS($D$38:M45)=COLUMNS($D$38:M45),1,0-N14)","v":{"v":0,"d":"0.000"}},{"$f":"IF(ROWS($D$38:N45)=COLUMNS($D$38:N45),1,0-O14)","v":{"v":0,"d":"0.000"}},{"$f":"IF(ROWS($D$38:O45)=COLUMNS($D$38:O45),1,0-P14)","v":{"v":0,"d":"0.000"}},{"$f":"IF(ROWS($D$38:P45)=COLUMNS($D$38:P45),1,0-Q14)","v":{"v":0,"d":"0.000"}},{"$f":"IF(ROWS($D$38:Q45)=COLUMNS($D$38:Q45),1,0-R14)","v":{"v":0,"d":"0.000"}},{"$f":"IF(ROWS($D$38:R45)=COLUMNS($D$38:R45),1,0-S14)","v":{"v":0,"d":"0.000"}},{"$f":"IF(ROWS($D$38:S45)=COLUMNS($D$38:S45),1,0-T14)","v":{"v":0,"d":"0.000"}},{"$f":"IF(ROWS($D$38:T45)=COLUMNS($D$38:T45),1,0-U14)","v":{"v":0,"d":"0.000"}},{"$f":"IF(ROWS($D$38:U45)=COLUMNS($D$38:U45),1,0-V14)","v":{"v":0,"d":"0.000"}},{"$f":"IF(ROWS($D$38:V45)=COLUMNS($D$38:V45),1,0-W14)","v":{"v":0,"d":"0.000"}},{"$f":"IF(ROWS($D$38:W45)=COLUMNS($D$38:W45),1,0-X14)","v":{"v":0,"d":"0.000"}},{"$f":"IF(ROWS($D$38:X45)=COLUMNS($D$38:X45),1,0-Y14)","v":{"v":0,"d":"0.000"}},{"$f":"IF(ROWS($D$38:Y45)=COLUMNS($D$38:Y45),1,0-Z14)","v":{"v":0,"d":"0.000"}},{"$f":"IF(ROWS($D$38:Z45)=COLUMNS($D$38:Z45),1,0-AA14)","v":{"v":0,"d":"0.000"}},{"$f":"IF(ROWS($D$38:AA45)=COLUMNS($D$38:AA45),1,0-AB14)","v":{"v":0,"d":"0.000"}},{"$f":"IF(ROWS($D$38:AB45)=COLUMNS($D$38:AB45),1,0-AC14)","v":{"v":0,"d":"0.000"}},{"$f":"IF(ROWS($D$38:AC45)=COLUMNS($D$38:AC45),1,0-AD14)","v":{"v":0,"d":"0.000"}},{"$f":"IF(ROWS($D$38:AD45)=COLUMNS($D$38:AD45),1,0-AE14)","v":{"v":0,"d":"0.000"}},{"$f":"IF(ROWS($D$38:AE45)=COLUMNS($D$38:AE45),1,0-AF14)","v":{"v":0,"d":"0.000"}},{"$f":"IF(ROWS($D$38:AF45)=COLUMNS($D$38:AF45),1,0-AG14)","v":{"v":0,"d":"0.000"}},{"$f":"IF(ROWS($D$38:AG45)=COLUMNS($D$38:AG45),1,0-AH14)","v":{"v":0,"d":"0.000"}}]
[null,null,9,"",{"$f":"IF(ROWS($D$38:D46)=COLUMNS($D$38:D46),1,0-E15)","v":{"v":0,"d":"0.000"}},{"$f":"IF(ROWS($D$38:E46)=COLUMNS($D$38:E46),1,0-F15)","v":{"v":0,"d":"0.000"}},{"$f":"IF(ROWS($D$38:F46)=COLUMNS($D$38:F46),1,0-G15)","v":{"v":0,"d":"0.000"}},{"$f":"IF(ROWS($D$38:G46)=COLUMNS($D$38:G46),1,0-H15)","v":{"v":0,"d":"0.000"}},{"$f":"IF(ROWS($D$38:H46)=COLUMNS($D$38:H46),1,0-I15)","v":{"v":0,"d":"0.000"}},{"$f":"IF(ROWS($D$38:I46)=COLUMNS($D$38:I46),1,0-J15)","v":{"v":0,"d":"0.000"}},{"$f":"IF(ROWS($D$38:J46)=COLUMNS($D$38:J46),1,0-K15)","v":{"v":0,"d":"0.000"}},{"$f":"IF(ROWS($D$38:K46)=COLUMNS($D$38:K46),1,0-L15)","v":{"v":0,"d":"0.000"}},{"$f":"IF(ROWS($D$38:L46)=COLUMNS($D$38:L46),1,0-M15)","v":{"v":1,"d":"1.000"}},{"$f":"IF(ROWS($D$38:M46)=COLUMNS($D$38:M46),1,0-N15)","v":{"v":0,"d":"0.000"}},{"$f":"IF(ROWS($D$38:N46)=COLUMNS($D$38:N46),1,0-O15)","v":{"v":0,"d":"0.000"}},{"$f":"IF(ROWS($D$38:O46)=COLUMNS($D$38:O46),1,0-P15)","v":{"v":0,"d":"0.000"}},{"$f":"IF(ROWS($D$38:P46)=COLUMNS($D$38:P46),1,0-Q15)","v":{"v":0,"d":"0.000"}},{"$f":"IF(ROWS($D$38:Q46)=COLUMNS($D$38:Q46),1,0-R15)","v":{"v":0,"d":"0.000"}},{"$f":"IF(ROWS($D$38:R46)=COLUMNS($D$38:R46),1,0-S15)","v":{"v":0,"d":"0.000"}},{"$f":"IF(ROWS($D$38:S46)=COLUMNS($D$38:S46),1,0-T15)","v":{"v":0,"d":"0.000"}},{"$f":"IF(ROWS($D$38:T46)=COLUMNS($D$38:T46),1,0-U15)","v":{"v":0,"d":"0.000"}},{"$f":"IF(ROWS($D$38:U46)=COLUMNS($D$38:U46),1,0-V15)","v":{"v":0,"d":"0.000"}},{"$f":"IF(ROWS($D$38:V46)=COLUMNS($D$38:V46),1,0-W15)","v":{"v":0,"d":"0.000"}},{"$f":"IF(ROWS($D$38:W46)=COLUMNS($D$38:W46),1,0-X15)","v":{"v":0,"d":"0.000"}},{"$f":"IF(ROWS($D$38:X46)=COLUMNS($D$38:X46),1,0-Y15)","v":{"v":0,"d":"0.000"}},{"$f":"IF(ROWS($D$38:Y46)=COLUMNS($D$38:Y46),1,0-Z15)","v":{"v":0,"d":"0.000"}},{"$f":"IF(ROWS($D$38:Z46)=COLUMNS($D$38:Z46),1,0-AA15)","v":{"v":0,"d":"0.000"}},{"$f":"IF(ROWS($D$38:AA46)=COLUMNS($D$38:AA46),1,0-AB15)","v":{"v":0,"d":"0.000"}},{"$f":"IF(ROWS($D$38:AB46)=COLUMNS($D$38:AB46),1,0-AC15)","v":{"v":0,"d":"0.000"}},{"$f":"IF(ROWS($D$38:AC46)=COLUMNS($D$38:AC46),1,0-AD15)","v":{"v":0,"d":"0.000"}},{"$f":"IF(ROWS($D$38:AD46)=COLUMNS($D$38:AD46),1,0-AE15)","v":{"v":0,"d":"0.000"}},{"$f":"IF(ROWS($D$38:AE46)=COLUMNS($D$38:AE46),1,0-AF15)","v":{"v":0,"d":"0.000"}},{"$f":"IF(ROWS($D$38:AF46)=COLUMNS($D$38:AF46),1,0-AG15)","v":{"v":0,"d":"0.000"}},{"$f":"IF(ROWS($D$38:AG46)=COLUMNS($D$38:AG46),1,0-AH15)","v":{"v":0,"d":"0.000"}}]
[null,null,10,"",{"$f":"IF(ROWS($D$38:D47)=COLUMNS($D$38:D47),1,0-E16)","v":{"v":0,"d":"0.000"}},{"$f":"IF(ROWS($D$38:E47)=COLUMNS($D$38:E47),1,0-F16)","v":{"v":0,"d":"0.000"}},{"$f":"IF(ROWS($D$38:F47)=COLUMNS($D$38:F47),1,0-G16)","v":{"v":0,"d":"0.000"}},{"$f":"IF(ROWS($D$38:G47)=COLUMNS($D$38:G47),1,0-H16)","v":{"v":0,"d":"0.000"}},{"$f":"IF(ROWS($D$38:H47)=COLUMNS($D$38:H47),1,0-I16)","v":{"v":0,"d":"0.000"}},{"$f":"IF(ROWS($D$38:I47)=COLUMNS($D$38:I47),1,0-J16)","v":{"v":0,"d":"0.000"}},{"$f":"IF(ROWS($D$38:J47)=COLUMNS($D$38:J47),1,0-K16)","v":{"v":0,"d":"0.000"}},{"$f":"IF(ROWS($D$38:K47)=COLUMNS($D$38:K47),1,0-L16)","v":{"v":0,"d":"0.000"}},{"$f":"IF(ROWS($D$38:L47)=COLUMNS($D$38:L47),1,0-M16)","v":{"v":0,"d":"0.000"}},{"$f":"IF(ROWS($D$38:M47)=COLUMNS($D$38:M47),1,0-N16)","v":{"v":1,"d":"1.000"}},{"$f":"IF(ROWS($D$38:N47)=COLUMNS($D$38:N47),1,0-O16)","v":{"v":0,"d":"0.000"}},{"$f":"IF(ROWS($D$38:O47)=COLUMNS($D$38:O47),1,0-P16)","v":{"v":0,"d":"0.000"}},{"$f":"IF(ROWS($D$38:P47)=COLUMNS($D$38:P47),1,0-Q16)","v":{"v":0,"d":"0.000"}},{"$f":"IF(ROWS($D$38:Q47)=COLUMNS($D$38:Q47),1,0-R16)","v":{"v":0,"d":"0.000"}},{"$f":"IF(ROWS($D$38:R47)=COLUMNS($D$38:R47),1,0-S16)","v":{"v":0,"d":"0.000"}},{"$f":"IF(ROWS($D$38:S47)=COLUMNS($D$38:S47),1,0-T16)","v":{"v":0,"d":"0.000"}},{"$f":"IF(ROWS($D$38:T47)=COLUMNS($D$38:T47),1,0-U16)","v":{"v":0,"d":"0.000"}},{"$f":"IF(ROWS($D$38:U47)=COLUMNS($D$38:U47),1,0-V16)","v":{"v":0,"d":"0.000"}},{"$f":"IF(ROWS($D$38:V47)=COLUMNS($D$38:V47),1,0-W16)","v":{"v":0,"d":"0.000"}},{"$f":"IF(ROWS($D$38:W47)=COLUMNS($D$38:W47),1,0-X16)","v":{"v":0,"d":"0.000"}},{"$f":"IF(ROWS($D$38:X47)=COLUMNS($D$38:X47),1,0-Y16)","v":{"v":0,"d":"0.000"}},{"$f":"IF(ROWS($D$38:Y47)=COLUMNS($D$38:Y47),1,0-Z16)","v":{"v":0,"d":"0.000"}},{"$f":"IF(ROWS($D$38:Z47)=COLUMNS($D$38:Z47),1,0-AA16)","v":{"v":0,"d":"0.000"}},{"$f":"IF(ROWS($D$38:AA47)=COLUMNS($D$38:AA47),1,0-AB16)","v":{"v":0,"d":"0.000"}},{"$f":"IF(ROWS($D$38:AB47)=COLUMNS($D$38:AB47),1,0-AC16)","v":{"v":0,"d":"0.000"}},{"$f":"IF(ROWS($D$38:AC47)=COLUMNS($D$38:AC47),1,0-AD16)","v":{"v":0,"d":"0.000"}},{"$f":"IF(ROWS($D$38:AD47)=COLUMNS($D$38:AD47),1,0-AE16)","v":{"v":0,"d":"0.000"}},{"$f":"IF(ROWS($D$38:AE47)=COLUMNS($D$38:AE47),1,0-AF16)","v":{"v":0,"d":"0.000"}},{"$f":"IF(ROWS($D$38:AF47)=COLUMNS($D$38:AF47),1,0-AG16)","v":{"v":0,"d":"0.000"}},{"$f":"IF(ROWS($D$38:AG47)=COLUMNS($D$38:AG47),1,0-AH16)","v":{"v":0,"d":"0.000"}}]
[null,{"$f":"Translations!$B$630","v":"Precursors"},1,"",{"$f":"IF(ROWS($D$38:D48)=COLUMNS($D$38:D48),1,0-E17)","v":{"v":0,"d":"0.000"}},{"$f":"IF(ROWS($D$38:E48)=COLUMNS($D$38:E48),1,0-F17)","v":{"v":0,"d":"0.000"}},{"$f":"IF(ROWS($D$38:F48)=COLUMNS($D$38:F48),1,0-G17)","v":{"v":0,"d":"0.000"}},{"$f":"IF(ROWS($D$38:G48)=COLUMNS($D$38:G48),1,0-H17)","v":{"v":0,"d":"0.000"}},{"$f":"IF(ROWS($D$38:H48)=COLUMNS($D$38:H48),1,0-I17)","v":{"v":0,"d":"0.000"}},{"$f":"IF(ROWS($D$38:I48)=COLUMNS($D$38:I48),1,0-J17)","v":{"v":0,"d":"0.000"}},{"$f":"IF(ROWS($D$38:J48)=COLUMNS($D$38:J48),1,0-K17)","v":{"v":0,"d":"0.000"}},{"$f":"IF(ROWS($D$38:K48)=COLUMNS($D$38:K48),1,0-L17)","v":{"v":0,"d":"0.000"}},{"$f":"IF(ROWS($D$38:L48)=COLUMNS($D$38:L48),1,0-M17)","v":{"v":0,"d":"0.000"}},{"$f":"IF(ROWS($D$38:M48)=COLUMNS($D$38:M48),1,0-N17)","v":{"v":0,"d":"0.000"}},{"$f":"IF(ROWS($D$38:N48)=COLUMNS($D$38:N48),1,0-O17)","v":{"v":1,"d":"1.000"}},{"$f":"IF(ROWS($D$38:O48)=COLUMNS($D$38:O48),1,0-P17)","v":{"v":0,"d":"0.000"}},{"$f":"IF(ROWS($D$38:P48)=COLUMNS($D$38:P48),1,0-Q17)","v":{"v":0,"d":"0.000"}},{"$f":"IF(ROWS($D$38:Q48)=COLUMNS($D$38:Q48),1,0-R17)","v":{"v":0,"d":"0.000"}},{"$f":"IF(ROWS($D$38:R48)=COLUMNS($D$38:R48),1,0-S17)","v":{"v":0,"d":"0.000"}},{"$f":"IF(ROWS($D$38:S48)=COLUMNS($D$38:S48),1,0-T17)","v":{"v":0,"d":"0.000"}},{"$f":"IF(ROWS($D$38:T48)=COLUMNS($D$38:T48),1,0-U17)","v":{"v":0,"d":"0.000"}},{"$f":"IF(ROWS($D$38:U48)=COLUMNS($D$38:U48),1,0-V17)","v":{"v":0,"d":"0.000"}},{"$f":"IF(ROWS($D$38:V48)=COLUMNS($D$38:V48),1,0-W17)","v":{"v":0,"d":"0.000"}},{"$f":"IF(ROWS($D$38:W48)=COLUMNS($D$38:W48),1,0-X17)","v":{"v":0,"d":"0.000"}},{"$f":"IF(ROWS($D$38:X48)=COLUMNS($D$38:X48),1,0-Y17)","v":{"v":0,"d":"0.000"}},{"$f":"IF(ROWS($D$38:Y48)=COLUMNS($D$38:Y48),1,0-Z17)","v":{"v":0,"d":"0.000"}},{"$f":"IF(ROWS($D$38:Z48)=COLUMNS($D$38:Z48),1,0-AA17)","v":{"v":0,"d":"0.000"}},{"$f":"IF(ROWS($D$38:AA48)=COLUMNS($D$38:AA48),1,0-AB17)","v":{"v":0,"d":"0.000"}},{"$f":"IF(ROWS($D$38:AB48)=COLUMNS($D$38:AB48),1,0-AC17)","v":{"v":0,"d":"0.000"}},{"$f":"IF(ROWS($D$38:AC48)=COLUMNS($D$38:AC48),1,0-AD17)","v":{"v":0,"d":"0.000"}},{"$f":"IF(ROWS($D$38:AD48)=COLUMNS($D$38:AD48),1,0-AE17)","v":{"v":0,"d":"0.000"}},{"$f":"IF(ROWS($D$38:AE48)=COLUMNS($D$38:AE48),1,0-AF17)","v":{"v":0,"d":"0.000"}},{"$f":"IF(ROWS($D$38:AF48)=COLUMNS($D$38:AF48),1,0-AG17)","v":{"v":0,"d":"0.000"}},{"$f":"IF(ROWS($D$38:AG48)=COLUMNS($D$38:AG48),1,0-AH17)","v":{"v":0,"d":"0.000"}}]
[null,null,2,"",{"$f":"IF(ROWS($D$38:D49)=COLUMNS($D$38:D49),1,0-E18)","v":{"v":0,"d":"0.000"}},{"$f":"IF(ROWS($D$38:E49)=COLUMNS($D$38:E49),1,0-F18)","v":{"v":0,"d":"0.000"}},{"$f":"IF(ROWS($D$38:F49)=COLUMNS($D$38:F49),1,0-G18)","v":{"v":0,"d":"0.000"}},{"$f":"IF(ROWS($D$38:G49)=COLUMNS($D$38:G49),1,0-H18)","v":{"v":0,"d":"0.000"}},{"$f":"IF(ROWS($D$38:H49)=COLUMNS($D$38:H49),1,0-I18)","v":{"v":0,"d":"0.000"}},{"$f":"IF(ROWS($D$38:I49)=COLUMNS($D$38:I49),1,0-J18)","v":{"v":0,"d":"0.000"}},{"$f":"IF(ROWS($D$38:J49)=COLUMNS($D$38:J49),1,0-K18)","v":{"v":0,"d":"0.000"}},{"$f":"IF(ROWS($D$38:K49)=COLUMNS($D$38:K49),1,0-L18)","v":{"v":0,"d":"0.000"}},{"$f":"IF(ROWS($D$38:L49)=COLUMNS($D$38:L49),1,0-M18)","v":{"v":0,"d":"0.000"}},{"$f":"IF(ROWS($D$38:M49)=COLUMNS($D$38:M49),1,0-N18)","v":{"v":0,"d":"0.000"}},{"$f":"IF(ROWS($D$38:N49)=COLUMNS($D$38:N49),1,0-O18)","v":{"v":0,"d":"0.000"}},{"$f":"IF(ROWS($D$38:O49)=COLUMNS($D$38:O49),1,0-P18)","v":{"v":1,"d":"1.000"}},{"$f":"IF(ROWS($D$38:P49)=COLUMNS($D$38:P49),1,0-Q18)","v":{"v":0,"d":"0.000"}},{"$f":"IF(ROWS($D$38:Q49)=COLUMNS($D$38:Q49),1,0-R18)","v":{"v":0,"d":"0.000"}},{"$f":"IF(ROWS($D$38:R49)=COLUMNS($D$38:R49),1,0-S18)","v":{"v":0,"d":"0.000"}},{"$f":"IF(ROWS($D$38:S49)=COLUMNS($D$38:S49),1,0-T18)","v":{"v":0,"d":"0.000"}},{"$f":"IF(ROWS($D$38:T49)=COLUMNS($D$38:T49),1,0-U18)","v":{"v":0,"d":"0.000"}},{"$f":"IF(ROWS($D$38:U49)=COLUMNS($D$38:U49),1,0-V18)","v":{"v":0,"d":"0.000"}},{"$f":"IF(ROWS($D$38:V49)=COLUMNS($D$38:V49),1,0-W18)","v":{"v":0,"d":"0.000"}},{"$f":"IF(ROWS($D$38:W49)=COLUMNS($D$38:W49),1,0-X18)","v":{"v":0,"d":"0.000"}},{"$f":"IF(ROWS($D$38:X49)=COLUMNS($D$38:X49),1,0-Y18)","v":{"v":0,"d":"0.000"}},{"$f":"IF(ROWS($D$38:Y49)=COLUMNS($D$38:Y49),1,0-Z18)","v":{"v":0,"d":"0.000"}},{"$f":"IF(ROWS($D$38:Z49)=COLUMNS($D$38:Z49),1,0-AA18)","v":{"v":0,"d":"0.000"}},{"$f":"IF(ROWS($D$38:AA49)=COLUMNS($D$38:AA49),1,0-AB18)","v":{"v":0,"d":"0.000"}},{"$f":"IF(ROWS($D$38:AB49)=COLUMNS($D$38:AB49),1,0-AC18)","v":{"v":0,"d":"0.000"}},{"$f":"IF(ROWS($D$38:AC49)=COLUMNS($D$38:AC49),1,0-AD18)","v":{"v":0,"d":"0.000"}},{"$f":"IF(ROWS($D$38:AD49)=COLUMNS($D$38:AD49),1,0-AE18)","v":{"v":0,"d":"0.000"}},{"$f":"IF(ROWS($D$38:AE49)=COLUMNS($D$38:AE49),1,0-AF18)","v":{"v":0,"d":"0.000"}},{"$f":"IF(ROWS($D$38:AF49)=COLUMNS($D$38:AF49),1,0-AG18)","v":{"v":0,"d":"0.000"}},{"$f":"IF(ROWS($D$38:AG49)=COLUMNS($D$38:AG49),1,0-AH18)","v":{"v":0,"d":"0.000"}}]
[null,null,3,"",{"$f":"IF(ROWS($D$38:D50)=COLUMNS($D$38:D50),1,0-E19)","v":{"v":0,"d":"0.000"}},{"$f":"IF(ROWS($D$38:E50)=COLUMNS($D$38:E50),1,0-F19)","v":{"v":0,"d":"0.000"}},{"$f":"IF(ROWS($D$38:F50)=COLUMNS($D$38:F50),1,0-G19)","v":{"v":0,"d":"0.000"}},{"$f":"IF(ROWS($D$38:G50)=COLUMNS($D$38:G50),1,0-H19)","v":{"v":0,"d":"0.000"}},{"$f":"IF(ROWS($D$38:H50)=COLUMNS($D$38:H50),1,0-I19)","v":{"v":0,"d":"0.000"}},{"$f":"IF(ROWS($D$38:I50)=COLUMNS($D$38:I50),1,0-J19)","v":{"v":0,"d":"0.000"}},{"$f":"IF(ROWS($D$38:J50)=COLUMNS($D$38:J50),1,0-K19)","v":{"v":0,"d":"0.000"}},{"$f":"IF(ROWS($D$38:K50)=COLUMNS($D$38:K50),1,0-L19)","v":{"v":0,"d":"0.000"}},{"$f":"IF(ROWS($D$38:L50)=COLUMNS($D$38:L50),1,0-M19)","v":{"v":0,"d":"0.000"}},{"$f":"IF(ROWS($D$38:M50)=COLUMNS($D$38:M50),1,0-N19)","v":{"v":0,"d":"0.000"}},{"$f":"IF(ROWS($D$38:N50)=COLUMNS($D$38:N50),1,0-O19)","v":{"v":0,"d":"0.000"}},{"$f":"IF(ROWS($D$38:O50)=COLUMNS($D$38:O50),1,0-P19)","v":{"v":0,"d":"0.000"}},{"$f":"IF(ROWS($D$38:P50)=COLUMNS($D$38:P50),1,0-Q19)","v":{"v":1,"d":"1.000"}},{"$f":"IF(ROWS($D$38:Q50)=COLUMNS($D$38:Q50),1,0-R19)","v":{"v":0,"d":"0.000"}},{"$f":"IF(ROWS($D$38:R50)=COLUMNS($D$38:R50),1,0-S19)","v":{"v":0,"d":"0.000"}},{"$f":"IF(ROWS($D$38:S50)=COLUMNS($D$38:S50),1,0-T19)","v":{"v":0,"d":"0.000"}},{"$f":"IF(ROWS($D$38:T50)=COLUMNS($D$38:T50),1,0-U19)","v":{"v":0,"d":"0.000"}},{"$f":"IF(ROWS($D$38:U50)=COLUMNS($D$38:U50),1,0-V19)","v":{"v":0,"d":"0.000"}},{"$f":"IF(ROWS($D$38:V50)=COLUMNS($D$38:V50),1,0-W19)","v":{"v":0,"d":"0.000"}},{"$f":"IF(ROWS($D$38:W50)=COLUMNS($D$38:W50),1,0-X19)","v":{"v":0,"d":"0.000"}},{"$f":"IF(ROWS($D$38:X50)=COLUMNS($D$38:X50),1,0-Y19)","v":{"v":0,"d":"0.000"}},{"$f":"IF(ROWS($D$38:Y50)=COLUMNS($D$38:Y50),1,0-Z19)","v":{"v":0,"d":"0.000"}},{"$f":"IF(ROWS($D$38:Z50)=COLUMNS($D$38:Z50),1,0-AA19)","v":{"v":0,"d":"0.000"}},{"$f":"IF(ROWS($D$38:AA50)=COLUMNS($D$38:AA50),1,0-AB19)","v":{"v":0,"d":"0.000"}},{"$f":"IF(ROWS($D$38:AB50)=COLUMNS($D$38:AB50),1,0-AC19)","v":{"v":0,"d":"0.000"}},{"$f":"IF(ROWS($D$38:AC50)=COLUMNS($D$38:AC50),1,0-AD19)","v":{"v":0,"d":"0.000"}},{"$f":"IF(ROWS($D$38:AD50)=COLUMNS($D$38:AD50),1,0-AE19)","v":{"v":0,"d":"0.000"}},{"$f":"IF(ROWS($D$38:AE50)=COLUMNS($D$38:AE50),1,0-AF19)","v":{"v":0,"d":"0.000"}},{"$f":"IF(ROWS($D$38:AF50)=COLUMNS($D$38:AF50),1,0-AG19)","v":{"v":0,"d":"0.000"}},{"$f":"IF(ROWS($D$38:AG50)=COLUMNS($D$38:AG50),1,0-AH19)","v":{"v":0,"d":"0.000"}}]
[null,null,4,"",{"$f":"IF(ROWS($D$38:D51)=COLUMNS($D$38:D51),1,0-E20)","v":{"v":0,"d":"0.000"}},{"$f":"IF(ROWS($D$38:E51)=COLUMNS($D$38:E51),1,0-F20)","v":{"v":0,"d":"0.000"}},{"$f":"IF(ROWS($D$38:F51)=COLUMNS($D$38:F51),1,0-G20)","v":{"v":0,"d":"0.000"}},{"$f":"IF(ROWS($D$38:G51)=COLUMNS($D$38:G51),1,0-H20)","v":{"v":0,"d":"0.000"}},{"$f":"IF(ROWS($D$38:H51)=COLUMNS($D$38:H51),1,0-I20)","v":{"v":0,"d":"0.000"}},{"$f":"IF(ROWS($D$38:I51)=COLUMNS($D$38:I51),1,0-J20)","v":{"v":0,"d":"0.000"}},{"$f":"IF(ROWS($D$38:J51)=COLUMNS($D$38:J51),1,0-K20)","v":{"v":0,"d":"0.000"}},{"$f":"IF(ROWS($D$38:K51)=COLUMNS($D$38:K51),1,0-L20)","v":{"v":0,"d":"0.000"}},{"$f":"IF(ROWS($D$38:L51)=COLUMNS($D$38:L51),1,0-M20)","v":{"v":0,"d":"0.000"}},{"$f":"IF(ROWS($D$38:M51)=COLUMNS($D$38:M51),1,0-N20)","v":{"v":0,"d":"0.000"}},{"$f":"IF(ROWS($D$38:N51)=COLUMNS($D$38:N51),1,0-O20)","v":{"v":0,"d":"0.000"}},{"$f":"IF(ROWS($D$38:O51)=COLUMNS($D$38:O51),1,0-P20)","v":{"v":0,"d":"0.000"}},{"$f":"IF(ROWS($D$38:P51)=COLUMNS($D$38:P51),1,0-Q20)","v":{"v":0,"d":"0.000"}},{"$f":"IF(ROWS($D$38:Q51)=COLUMNS($D$38:Q51),1,0-R20)","v":{"v":1,"d":"1.000"}},{"$f":"IF(ROWS($D$38:R51)=COLUMNS($D$38:R51),1,0-S20)","v":{"v":0,"d":"0.000"}},{"$f":"IF(ROWS($D$38:S51)=COLUMNS($D$38:S51),1,0-T20)","v":{"v":0,"d":"0.000"}},{"$f":"IF(ROWS($D$38:T51)=COLUMNS($D$38:T51),1,0-U20)","v":{"v":0,"d":"0.000"}},{"$f":"IF(ROWS($D$38:U51)=COLUMNS($D$38:U51),1,0-V20)","v":{"v":0,"d":"0.000"}},{"$f":"IF(ROWS($D$38:V51)=COLUMNS($D$38:V51),1,0-W20)","v":{"v":0,"d":"0.000"}},{"$f":"IF(ROWS($D$38:W51)=COLUMNS($D$38:W51),1,0-X20)","v":{"v":0,"d":"0.000"}},{"$f":"IF(ROWS($D$38:X51)=COLUMNS($D$38:X51),1,0-Y20)","v":{"v":0,"d":"0.000"}},{"$f":"IF(ROWS($D$38:Y51)=COLUMNS($D$38:Y51),1,0-Z20)","v":{"v":0,"d":"0.000"}},{"$f":"IF(ROWS($D$38:Z51)=COLUMNS($D$38:Z51),1,0-AA20)","v":{"v":0,"d":"0.000"}},{"$f":"IF(ROWS($D$38:AA51)=COLUMNS($D$38:AA51),1,0-AB20)","v":{"v":0,"d":"0.000"}},{"$f":"IF(ROWS($D$38:AB51)=COLUMNS($D$38:AB51),1,0-AC20)","v":{"v":0,"d":"0.000"}},{"$f":"IF(ROWS($D$38:AC51)=COLUMNS($D$38:AC51),1,0-AD20)","v":{"v":0,"d":"0.000"}},{"$f":"IF(ROWS($D$38:AD51)=COLUMNS($D$38:AD51),1,0-AE20)","v":{"v":0,"d":"0.000"}},{"$f":"IF(ROWS($D$38:AE51)=COLUMNS($D$38:AE51),1,0-AF20)","v":{"v":0,"d":"0.000"}},{"$f":"IF(ROWS($D$38:AF51)=COLUMNS($D$38:AF51),1,0-AG20)","v":{"v":0,"d":"0.000"}},{"$f":"IF(ROWS($D$38:AG51)=COLUMNS($D$38:AG51),1,0-AH20)","v":{"v":0,"d":"0.000"}}]
[null,null,5,"",{"$f":"IF(ROWS($D$38:D52)=COLUMNS($D$38:D52),1,0-E21)","v":{"v":0,"d":"0.000"}},{"$f":"IF(ROWS($D$38:E52)=COLUMNS($D$38:E52),1,0-F21)","v":{"v":0,"d":"0.000"}},{"$f":"IF(ROWS($D$38:F52)=COLUMNS($D$38:F52),1,0-G21)","v":{"v":0,"d":"0.000"}},{"$f":"IF(ROWS($D$38:G52)=COLUMNS($D$38:G52),1,0-H21)","v":{"v":0,"d":"0.000"}},{"$f":"IF(ROWS($D$38:H52)=COLUMNS($D$38:H52),1,0-I21)","v":{"v":0,"d":"0.000"}},{"$f":"IF(ROWS($D$38:I52)=COLUMNS($D$38:I52),1,0-J21)","v":{"v":0,"d":"0.000"}},{"$f":"IF(ROWS($D$38:J52)=COLUMNS($D$38:J52),1,0-K21)","v":{"v":0,"d":"0.000"}},{"$f":"IF(ROWS($D$38:K52)=COLUMNS($D$38:K52),1,0-L21)","v":{"v":0,"d":"0.000"}},{"$f":"IF(ROWS($D$38:L52)=COLUMNS($D$38:L52),1,0-M21)","v":{"v":0,"d":"0.000"}},{"$f":"IF(ROWS($D$38:M52)=COLUMNS($D$38:M52),1,0-N21)","v":{"v":0,"d":"0.000"}},{"$f":"IF(ROWS($D$38:N52)=COLUMNS($D$38:N52),1,0-O21)","v":{"v":0,"d":"0.000"}},{"$f":"IF(ROWS($D$38:O52)=COLUMNS($D$38:O52),1,0-P21)","v":{"v":0,"d":"0.000"}},{"$f":"IF(ROWS($D$38:P52)=COLUMNS($D$38:P52),1,0-Q21)","v":{"v":0,"d":"0.000"}},{"$f":"IF(ROWS($D$38:Q52)=COLUMNS($D$38:Q52),1,0-R21)","v":{"v":0,"d":"0.000"}},{"$f":"IF(ROWS($D$38:R52)=COLUMNS($D$38:R52),1,0-S21)","v":{"v":1,"d":"1.000"}},{"$f":"IF(ROWS($D$38:S52)=COLUMNS($D$38:S52),1,0-T21)","v":{"v":0,"d":"0.000"}},{"$f":"IF(ROWS($D$38:T52)=COLUMNS($D$38:T52),1,0-U21)","v":{"v":0,"d":"0.000"}},{"$f":"IF(ROWS($D$38:U52)=COLUMNS($D$38:U52),1,0-V21)","v":{"v":0,"d":"0.000"}},{"$f":"IF(ROWS($D$38:V52)=COLUMNS($D$38:V52),1,0-W21)","v":{"v":0,"d":"0.000"}},{"$f":"IF(ROWS($D$38:W52)=COLUMNS($D$38:W52),1,0-X21)","v":{"v":0,"d":"0.000"}},{"$f":"IF(ROWS($D$38:X52)=COLUMNS($D$38:X52),1,0-Y21)","v":{"v":0,"d":"0.000"}},{"$f":"IF(ROWS($D$38:Y52)=COLUMNS($D$38:Y52),1,0-Z21)","v":{"v":0,"d":"0.000"}},{"$f":"IF(ROWS($D$38:Z52)=COLUMNS($D$38:Z52),1,0-AA21)","v":{"v":0,"d":"0.000"}},{"$f":"IF(ROWS($D$38:AA52)=COLUMNS($D$38:AA52),1,0-AB21)","v":{"v":0,"d":"0.000"}},{"$f":"IF(ROWS($D$38:AB52)=COLUMNS($D$38:AB52),1,0-AC21)","v":{"v":0,"d":"0.000"}},{"$f":"IF(ROWS($D$38:AC52)=COLUMNS($D$38:AC52),1,0-AD21)","v":{"v":0,"d":"0.000"}},{"$f":"IF(ROWS($D$38:AD52)=COLUMNS($D$38:AD52),1,0-AE21)","v":{"v":0,"d":"0.000"}},{"$f":"IF(ROWS($D$38:AE52)=COLUMNS($D$38:AE52),1,0-AF21)","v":{"v":0,"d":"0.000"}},{"$f":"IF(ROWS($D$38:AF52)=COLUMNS($D$38:AF52),1,0-AG21)","v":{"v":0,"d":"0.000"}},{"$f":"IF(ROWS($D$38:AG52)=COLUMNS($D$38:AG52),1,0-AH21)","v":{"v":0,"d":"0.000"}}]
[null,null,6,"",{"$f":"IF(ROWS($D$38:D53)=COLUMNS($D$38:D53),1,0-E22)","v":{"v":0,"d":"0.000"}},{"$f":"IF(ROWS($D$38:E53)=COLUMNS($D$38:E53),1,0-F22)","v":{"v":0,"d":"0.000"}},{"$f":"IF(ROWS($D$38:F53)=COLUMNS($D$38:F53),1,0-G22)","v":{"v":0,"d":"0.000"}},{"$f":"IF(ROWS($D$38:G53)=COLUMNS($D$38:G53),1,0-H22)","v":{"v":0,"d":"0.000"}},{"$f":"IF(ROWS($D$38:H53)=COLUMNS($D$38:H53),1,0-I22)","v":{"v":0,"d":"0.000"}},{"$f":"IF(ROWS($D$38:I53)=COLUMNS($D$38:I53),1,0-J22)","v":{"v":0,"d":"0.000"}},{"$f":"IF(ROWS($D$38:J53)=COLUMNS($D$38:J53),1,0-K22)","v":{"v":0,"d":"0.000"}},{"$f":"IF(ROWS($D$38:K53)=COLUMNS($D$38:K53),1,0-L22)","v":{"v":0,"d":"0.000"}},{"$f":"IF(ROWS($D$38:L53)=COLUMNS($D$38:L53),1,0-M22)","v":{"v":0,"d":"0.000"}},{"$f":"IF(ROWS($D$38:M53)=COLUMNS($D$38:M53),1,0-N22)","v":{"v":0,"d":"0.000"}},{"$f":"IF(ROWS($D$38:N53)=COLUMNS($D$38:N53),1,0-O22)","v":{"v":0,"d":"0.000"}},{"$f":"IF(ROWS($D$38:O53)=COLUMNS($D$38:O53),1,0-P22)","v":{"v":0,"d":"0.000"}},{"$f":"IF(ROWS($D$38:P53)=COLUMNS($D$38:P53),1,0-Q22)","v":{"v":0,"d":"0.000"}},{"$f":"IF(ROWS($D$38:Q53)=COLUMNS($D$38:Q53),1,0-R22)","v":{"v":0,"d":"0.000"}},{"$f":"IF(ROWS($D$38:R53)=COLUMNS($D$38:R53),1,0-S22)","v":{"v":0,"d":"0.000"}},{"$f":"IF(ROWS($D$38:S53)=COLUMNS($D$38:S53),1,0-T22)","v":{"v":1,"d":"1.000"}},{"$f":"IF(ROWS($D$38:T53)=COLUMNS($D$38:T53),1,0-U22)","v":{"v":0,"d":"0.000"}},{"$f":"IF(ROWS($D$38:U53)=COLUMNS($D$38:U53),1,0-V22)","v":{"v":0,"d":"0.000"}},{"$f":"IF(ROWS($D$38:V53)=COLUMNS($D$38:V53),1,0-W22)","v":{"v":0,"d":"0.000"}},{"$f":"IF(ROWS($D$38:W53)=COLUMNS($D$38:W53),1,0-X22)","v":{"v":0,"d":"0.000"}},{"$f":"IF(ROWS($D$38:X53)=COLUMNS($D$38:X53),1,0-Y22)","v":{"v":0,"d":"0.000"}},{"$f":"IF(ROWS($D$38:Y53)=COLUMNS($D$38:Y53),1,0-Z22)","v":{"v":0,"d":"0.000"}},{"$f":"IF(ROWS($D$38:Z53)=COLUMNS($D$38:Z53),1,0-AA22)","v":{"v":0,"d":"0.000"}},{"$f":"IF(ROWS($D$38:AA53)=COLUMNS($D$38:AA53),1,0-AB22)","v":{"v":0,"d":"0.000"}},{"$f":"IF(ROWS($D$38:AB53)=COLUMNS($D$38:AB53),1,0-AC22)","v":{"v":0,"d":"0.000"}},{"$f":"IF(ROWS($D$38:AC53)=COLUMNS($D$38:AC53),1,0-AD22)","v":{"v":0,"d":"0.000"}},{"$f":"IF(ROWS($D$38:AD53)=COLUMNS($D$38:AD53),1,0-AE22)","v":{"v":0,"d":"0.000"}},{"$f":"IF(ROWS($D$38:AE53)=COLUMNS($D$38:AE53),1,0-AF22)","v":{"v":0,"d":"0.000"}},{"$f":"IF(ROWS($D$38:AF53)=COLUMNS($D$38:AF53),1,0-AG22)","v":{"v":0,"d":"0.000"}},{"$f":"IF(ROWS($D$38:AG53)=COLUMNS($D$38:AG53),1,0-AH22)","v":{"v":0,"d":"0.000"}}]
[null,null,7,"",{"$f":"IF(ROWS($D$38:D54)=COLUMNS($D$38:D54),1,0-E23)","v":{"v":0,"d":"0.000"}},{"$f":"IF(ROWS($D$38:E54)=COLUMNS($D$38:E54),1,0-F23)","v":{"v":0,"d":"0.000"}},{"$f":"IF(ROWS($D$38:F54)=COLUMNS($D$38:F54),1,0-G23)","v":{"v":0,"d":"0.000"}},{"$f":"IF(ROWS($D$38:G54)=COLUMNS($D$38:G54),1,0-H23)","v":{"v":0,"d":"0.000"}},{"$f":"IF(ROWS($D$38:H54)=COLUMNS($D$38:H54),1,0-I23)","v":{"v":0,"d":"0.000"}},{"$f":"IF(ROWS($D$38:I54)=COLUMNS($D$38:I54),1,0-J23)","v":{"v":0,"d":"0.000"}},{"$f":"IF(ROWS($D$38:J54)=COLUMNS($D$38:J54),1,0-K23)","v":{"v":0,"d":"0.000"}},{"$f":"IF(ROWS($D$38:K54)=COLUMNS($D$38:K54),1,0-L23)","v":{"v":0,"d":"0.000"}},{"$f":"IF(ROWS($D$38:L54)=COLUMNS($D$38:L54),1,0-M23)","v":{"v":0,"d":"0.000"}},{"$f":"IF(ROWS($D$38:M54)=COLUMNS($D$38:M54),1,0-N23)","v":{"v":0,"d":"0.000"}},{"$f":"IF(ROWS($D$38:N54)=COLUMNS($D$38:N54),1,0-O23)","v":{"v":0,"d":"0.000"}},{"$f":"IF(ROWS($D$38:O54)=COLUMNS($D$38:O54),1,0-P23)","v":{"v":0,"d":"0.000"}},{"$f":"IF(ROWS($D$38:P54)=COLUMNS($D$38:P54),1,0-Q23)","v":{"v":0,"d":"0.000"}},{"$f":"IF(ROWS($D$38:Q54)=COLUMNS($D$38:Q54),1,0-R23)","v":{"v":0,"d":"0.000"}},{"$f":"IF(ROWS($D$38:R54)=COLUMNS($D$38:R54),1,0-S23)","v":{"v":0,"d":"0.000"}},{"$f":"IF(ROWS($D$38:S54)=COLUMNS($D$38:S54),1,0-T23)","v":{"v":0,"d":"0.000"}},{"$f":"IF(ROWS($D$38:T54)=COLUMNS($D$38:T54),1,0-U23)","v":{"v":1,"d":"1.000"}},{"$f":"IF(ROWS($D$38:U54)=COLUMNS($D$38:U54),1,0-V23)","v":{"v":0,"d":"0.000"}},{"$f":"IF(ROWS($D$38:V54)=COLUMNS($D$38:V54),1,0-W23)","v":{"v":0,"d":"0.000"}},{"$f":"IF(ROWS($D$38:W54)=COLUMNS($D$38:W54),1,0-X23)","v":{"v":0,"d":"0.000"}},{"$f":"IF(ROWS($D$38:X54)=COLUMNS($D$38:X54),1,0-Y23)","v":{"v":0,"d":"0.000"}},{"$f":"IF(ROWS($D$38:Y54)=COLUMNS($D$38:Y54),1,0-Z23)","v":{"v":0,"d":"0.000"}},{"$f":"IF(ROWS($D$38:Z54)=COLUMNS($D$38:Z54),1,0-AA23)","v":{"v":0,"d":"0.000"}},{"$f":"IF(ROWS($D$38:AA54)=COLUMNS($D$38:AA54),1,0-AB23)","v":{"v":0,"d":"0.000"}},{"$f":"IF(ROWS($D$38:AB54)=COLUMNS($D$38:AB54),1,0-AC23)","v":{"v":0,"d":"0.000"}},{"$f":"IF(ROWS($D$38:AC54)=COLUMNS($D$38:AC54),1,0-AD23)","v":{"v":0,"d":"0.000"}},{"$f":"IF(ROWS($D$38:AD54)=COLUMNS($D$38:AD54),1,0-AE23)","v":{"v":0,"d":"0.000"}},{"$f":"IF(ROWS($D$38:AE54)=COLUMNS($D$38:AE54),1,0-AF23)","v":{"v":0,"d":"0.000"}},{"$f":"IF(ROWS($D$38:AF54)=COLUMNS($D$38:AF54),1,0-AG23)","v":{"v":0,"d":"0.000"}},{"$f":"IF(ROWS($D$38:AG54)=COLUMNS($D$38:AG54),1,0-AH23)","v":{"v":0,"d":"0.000"}}]
[null,null,8,"",{"$f":"IF(ROWS($D$38:D55)=COLUMNS($D$38:D55),1,0-E24)","v":{"v":0,"d":"0.000"}},{"$f":"IF(ROWS($D$38:E55)=COLUMNS($D$38:E55),1,0-F24)","v":{"v":0,"d":"0.000"}},{"$f":"IF(ROWS($D$38:F55)=COLUMNS($D$38:F55),1,0-G24)","v":{"v":0,"d":"0.000"}},{"$f":"IF(ROWS($D$38:G55)=COLUMNS($D$38:G55),1,0-H24)","v":{"v":0,"d":"0.000"}},{"$f":"IF(ROWS($D$38:H55)=COLUMNS($D$38:H55),1,0-I24)","v":{"v":0,"d":"0.000"}},{"$f":"IF(ROWS($D$38:I55)=COLUMNS($D$38:I55),1,0-J24)","v":{"v":0,"d":"0.000"}},{"$f":"IF(ROWS($D$38:J55)=COLUMNS($D$38:J55),1,0-K24)","v":{"v":0,"d":"0.000"}},{"$f":"IF(ROWS($D$38:K55)=COLUMNS($D$38:K55),1,0-L24)","v":{"v":0,"d":"0.000"}},{"$f":"IF(ROWS($D$38:L55)=COLUMNS($D$38:L55),1,0-M24)","v":{"v":0,"d":"0.000"}},{"$f":"IF(ROWS($D$38:M55)=COLUMNS($D$38:M55),1,0-N24)","v":{"v":0,"d":"0.000"}},{"$f":"IF(ROWS($D$38:N55)=COLUMNS($D$38:N55),1,0-O24)","v":{"v":0,"d":"0.000"}},{"$f":"IF(ROWS($D$38:O55)=COLUMNS($D$38:O55),1,0-P24)","v":{"v":0,"d":"0.000"}},{"$f":"IF(ROWS($D$38:P55)=COLUMNS($D$38:P55),1,0-Q24)","v":{"v":0,"d":"0.000"}},{"$f":"IF(ROWS($D$38:Q55)=COLUMNS($D$38:Q55),1,0-R24)","v":{"v":0,"d":"0.000"}},{"$f":"IF(ROWS($D$38:R55)=COLUMNS($D$38:R55),1,0-S24)","v":{"v":0,"d":"0.000"}},{"$f":"IF(ROWS($D$38:S55)=COLUMNS($D$38:S55),1,0-T24)","v":{"v":0,"d":"0.000"}},{"$f":"IF(ROWS($D$38:T55)=COLUMNS($D$38:T55),1,0-U24)","v":{"v":0,"d":"0.000"}},{"$f":"IF(ROWS($D$38:U55)=COLUMNS($D$38:U55),1,0-V24)","v":{"v":1,"d":"1.000"}},{"$f":"IF(ROWS($D$38:V55)=COLUMNS($D$38:V55),1,0-W24)","v":{"v":0,"d":"0.000"}},{"$f":"IF(ROWS($D$38:W55)=COLUMNS($D$38:W55),1,0-X24)","v":{"v":0,"d":"0.000"}},{"$f":"IF(ROWS($D$38:X55)=COLUMNS($D$38:X55),1,0-Y24)","v":{"v":0,"d":"0.000"}},{"$f":"IF(ROWS($D$38:Y55)=COLUMNS($D$38:Y55),1,0-Z24)","v":{"v":0,"d":"0.000"}},{"$f":"IF(ROWS($D$38:Z55)=COLUMNS($D$38:Z55),1,0-AA24)","v":{"v":0,"d":"0.000"}},{"$f":"IF(ROWS($D$38:AA55)=COLUMNS($D$38:AA55),1,0-AB24)","v":{"v":0,"d":"0.000"}},{"$f":"IF(ROWS($D$38:AB55)=COLUMNS($D$38:AB55),1,0-AC24)","v":{"v":0,"d":"0.000"}},{"$f":"IF(ROWS($D$38:AC55)=COLUMNS($D$38:AC55),1,0-AD24)","v":{"v":0,"d":"0.000"}},{"$f":"IF(ROWS($D$38:AD55)=COLUMNS($D$38:AD55),1,0-AE24)","v":{"v":0,"d":"0.000"}},{"$f":"IF(ROWS($D$38:AE55)=COLUMNS($D$38:AE55),1,0-AF24)","v":{"v":0,"d":"0.000"}},{"$f":"IF(ROWS($D$38:AF55)=COLUMNS($D$38:AF55),1,0-AG24)","v":{"v":0,"d":"0.000"}},{"$f":"IF(ROWS($D$38:AG55)=COLUMNS($D$38:AG55),1,0-AH24)","v":{"v":0,"d":"0.000"}}]
[null,null,9,"",{"$f":"IF(ROWS($D$38:D56)=COLUMNS($D$38:D56),1,0-E25)","v":{"v":0,"d":"0.000"}},{"$f":"IF(ROWS($D$38:E56)=COLUMNS($D$38:E56),1,0-F25)","v":{"v":0,"d":"0.000"}},{"$f":"IF(ROWS($D$38:F56)=COLUMNS($D$38:F56),1,0-G25)","v":{"v":0,"d":"0.000"}},{"$f":"IF(ROWS($D$38:G56)=COLUMNS($D$38:G56),1,0-H25)","v":{"v":0,"d":"0.000"}},{"$f":"IF(ROWS($D$38:H56)=COLUMNS($D$38:H56),1,0-I25)","v":{"v":0,"d":"0.000"}},{"$f":"IF(ROWS($D$38:I56)=COLUMNS($D$38:I56),1,0-J25)","v":{"v":0,"d":"0.000"}},{"$f":"IF(ROWS($D$38:J56)=COLUMNS($D$38:J56),1,0-K25)","v":{"v":0,"d":"0.000"}},{"$f":"IF(ROWS($D$38:K56)=COLUMNS($D$38:K56),1,0-L25)","v":{"v":0,"d":"0.000"}},{"$f":"IF(ROWS($D$38:L56)=COLUMNS($D$38:L56),1,0-M25)","v":{"v":0,"d":"0.000"}},{"$f":"IF(ROWS($D$38:M56)=COLUMNS($D$38:M56),1,0-N25)","v":{"v":0,"d":"0.000"}},{"$f":"IF(ROWS($D$38:N56)=COLUMNS($D$38:N56),1,0-O25)","v":{"v":0,"d":"0.000"}},{"$f":"IF(ROWS($D$38:O56)=COLUMNS($D$38:O56),1,0-P25)","v":{"v":0,"d":"0.000"}},{"$f":"IF(ROWS($D$38:P56)=COLUMNS($D$38:P56),1,0-Q25)","v":{"v":0,"d":"0.000"}},{"$f":"IF(ROWS($D$38:Q56)=COLUMNS($D$38:Q56),1,0-R25)","v":{"v":0,"d":"0.000"}},{"$f":"IF(ROWS($D$38:R56)=COLUMNS($D$38:R56),1,0-S25)","v":{"v":0,"d":"0.000"}},{"$f":"IF(ROWS($D$38:S56)=COLUMNS($D$38:S56),1,0-T25)","v":{"v":0,"d":"0.000"}},{"$f":"IF(ROWS($D$38:T56)=COLUMNS($D$38:T56),1,0-U25)","v":{"v":0,"d":"0.000"}},{"$f":"IF(ROWS($D$38:U56)=COLUMNS($D$38:U56),1,0-V25)","v":{"v":0,"d":"0.000"}},{"$f":"IF(ROWS($D$38:V56)=COLUMNS($D$38:V56),1,0-W25)","v":{"v":1,"d":"1.000"}},{"$f":"IF(ROWS($D$38:W56)=COLUMNS($D$38:W56),1,0-X25)","v":{"v":0,"d":"0.000"}},{"$f":"IF(ROWS($D$38:X56)=COLUMNS($D$38:X56),1,0-Y25)","v":{"v":0,"d":"0.000"}},{"$f":"IF(ROWS($D$38:Y56)=COLUMNS($D$38:Y56),1,0-Z25)","v":{"v":0,"d":"0.000"}},{"$f":"IF(ROWS($D$38:Z56)=COLUMNS($D$38:Z56),1,0-AA25)","v":{"v":0,"d":"0.000"}},{"$f":"IF(ROWS($D$38:AA56)=COLUMNS($D$38:AA56),1,0-AB25)","v":{"v":0,"d":"0.000"}},{"$f":"IF(ROWS($D$38:AB56)=COLUMNS($D$38:AB56),1,0-AC25)","v":{"v":0,"d":"0.000"}},{"$f":"IF(ROWS($D$38:AC56)=COLUMNS($D$38:AC56),1,0-AD25)","v":{"v":0,"d":"0.000"}},{"$f":"IF(ROWS($D$38:AD56)=COLUMNS($D$38:AD56),1,0-AE25)","v":{"v":0,"d":"0.000"}},{"$f":"IF(ROWS($D$38:AE56)=COLUMNS($D$38:AE56),1,0-AF25)","v":{"v":0,"d":"0.000"}},{"$f":"IF(ROWS($D$38:AF56)=COLUMNS($D$38:AF56),1,0-AG25)","v":{"v":0,"d":"0.000"}},{"$f":"IF(ROWS($D$38:AG56)=COLUMNS($D$38:AG56),1,0-AH25)","v":{"v":0,"d":"0.000"}}]
[null,null,10,"",{"$f":"IF(ROWS($D$38:D57)=COLUMNS($D$38:D57),1,0-E26)","v":{"v":0,"d":"0.000"}},{"$f":"IF(ROWS($D$38:E57)=COLUMNS($D$38:E57),1,0-F26)","v":{"v":0,"d":"0.000"}},{"$f":"IF(ROWS($D$38:F57)=COLUMNS($D$38:F57),1,0-G26)","v":{"v":0,"d":"0.000"}},{"$f":"IF(ROWS($D$38:G57)=COLUMNS($D$38:G57),1,0-H26)","v":{"v":0,"d":"0.000"}},{"$f":"IF(ROWS($D$38:H57)=COLUMNS($D$38:H57),1,0-I26)","v":{"v":0,"d":"0.000"}},{"$f":"IF(ROWS($D$38:I57)=COLUMNS($D$38:I57),1,0-J26)","v":{"v":0,"d":"0.000"}},{"$f":"IF(ROWS($D$38:J57)=COLUMNS($D$38:J57),1,0-K26)","v":{"v":0,"d":"0.000"}},{"$f":"IF(ROWS($D$38:K57)=COLUMNS($D$38:K57),1,0-L26)","v":{"v":0,"d":"0.000"}},{"$f":"IF(ROWS($D$38:L57)=COLUMNS($D$38:L57),1,0-M26)","v":{"v":0,"d":"0.000"}},{"$f":"IF(ROWS($D$38:M57)=COLUMNS($D$38:M57),1,0-N26)","v":{"v":0,"d":"0.000"}},{"$f":"IF(ROWS($D$38:N57)=COLUMNS($D$38:N57),1,0-O26)","v":{"v":0,"d":"0.000"}},{"$f":"IF(ROWS($D$38:O57)=COLUMNS($D$38:O57),1,0-P26)","v":{"v":0,"d":"0.000"}},{"$f":"IF(ROWS($D$38:P57)=COLUMNS($D$38:P57),1,0-Q26)","v":{"v":0,"d":"0.000"}},{"$f":"IF(ROWS($D$38:Q57)=COLUMNS($D$38:Q57),1,0-R26)","v":{"v":0,"d":"0.000"}},{"$f":"IF(ROWS($D$38:R57)=COLUMNS($D$38:R57),1,0-S26)","v":{"v":0,"d":"0.000"}},{"$f":"IF(ROWS($D$38:S57)=COLUMNS($D$38:S57),1,0-T26)","v":{"v":0,"d":"0.000"}},{"$f":"IF(ROWS($D$38:T57)=COLUMNS($D$38:T57),1,0-U26)","v":{"v":0,"d":"0.000"}},{"$f":"IF(ROWS($D$38:U57)=COLUMNS($D$38:U57),1,0-V26)","v":{"v":0,"d":"0.000"}},{"$f":"IF(ROWS($D$38:V57)=COLUMNS($D$38:V57),1,0-W26)","v":{"v":0,"d":"0.000"}},{"$f":"IF(ROWS($D$38:W57)=COLUMNS($D$38:W57),1,0-X26)","v":{"v":1,"d":"1.000"}},{"$f":"IF(ROWS($D$38:X57)=COLUMNS($D$38:X57),1,0-Y26)","v":{"v":0,"d":"0.000"}},{"$f":"IF(ROWS($D$38:Y57)=COLUMNS($D$38:Y57),1,0-Z26)","v":{"v":0,"d":"0.000"}},{"$f":"IF(ROWS($D$38:Z57)=COLUMNS($D$38:Z57),1,0-AA26)","v":{"v":0,"d":"0.000"}},{"$f":"IF(ROWS($D$38:AA57)=COLUMNS($D$38:AA57),1,0-AB26)","v":{"v":0,"d":"0.000"}},{"$f":"IF(ROWS($D$38:AB57)=COLUMNS($D$38:AB57),1,0-AC26)","v":{"v":0,"d":"0.000"}},{"$f":"IF(ROWS($D$38:AC57)=COLUMNS($D$38:AC57),1,0-AD26)","v":{"v":0,"d":"0.000"}},{"$f":"IF(ROWS($D$38:AD57)=COLUMNS($D$38:AD57),1,0-AE26)","v":{"v":0,"d":"0.000"}},{"$f":"IF(ROWS($D$38:AE57)=COLUMNS($D$38:AE57),1,0-AF26)","v":{"v":0,"d":"0.000"}},{"$f":"IF(ROWS($D$38:AF57)=COLUMNS($D$38:AF57),1,0-AG26)","v":{"v":0,"d":"0.000"}},{"$f":"IF(ROWS($D$38:AG57)=COLUMNS($D$38:AG57),1,0-AH26)","v":{"v":0,"d":"0.000"}}]
[null,null,11,"",{"$f":"IF(ROWS($D$38:D58)=COLUMNS($D$38:D58),1,0-E27)","v":{"v":0,"d":"0.000"}},{"$f":"IF(ROWS($D$38:E58)=COLUMNS($D$38:E58),1,0-F27)","v":{"v":0,"d":"0.000"}},{"$f":"IF(ROWS($D$38:F58)=COLUMNS($D$38:F58),1,0-G27)","v":{"v":0,"d":"0.000"}},{"$f":"IF(ROWS($D$38:G58)=COLUMNS($D$38:G58),1,0-H27)","v":{"v":0,"d":"0.000"}},{"$f":"IF(ROWS($D$38:H58)=COLUMNS($D$38:H58),1,0-I27)","v":{"v":0,"d":"0.000"}},{"$f":"IF(ROWS($D$38:I58)=COLUMNS($D$38:I58),1,0-J27)","v":{"v":0,"d":"0.000"}},{"$f":"IF(ROWS($D$38:J58)=COLUMNS($D$38:J58),1,0-K27)","v":{"v":0,"d":"0.000"}},{"$f":"IF(ROWS($D$38:K58)=COLUMNS($D$38:K58),1,0-L27)","v":{"v":0,"d":"0.000"}},{"$f":"IF(ROWS($D$38:L58)=COLUMNS($D$38:L58),1,0-M27)","v":{"v":0,"d":"0.000"}},{"$f":"IF(ROWS($D$38:M58)=COLUMNS($D$38:M58),1,0-N27)","v":{"v":0,"d":"0.000"}},{"$f":"IF(ROWS($D$38:N58)=COLUMNS($D$38:N58),1,0-O27)","v":{"v":0,"d":"0.000"}},{"$f":"IF(ROWS($D$38:O58)=COLUMNS($D$38:O58),1,0-P27)","v":{"v":0,"d":"0.000"}},{"$f":"IF(ROWS($D$38:P58)=COLUMNS($D$38:P58),1,0-Q27)","v":{"v":0,"d":"0.000"}},{"$f":"IF(ROWS($D$38:Q58)=COLUMNS($D$38:Q58),1,0-R27)","v":{"v":0,"d":"0.000"}},{"$f":"IF(ROWS($D$38:R58)=COLUMNS($D$38:R58),1,0-S27)","v":{"v":0,"d":"0.000"}},{"$f":"IF(ROWS($D$38:S58)=COLUMNS($D$38:S58),1,0-T27)","v":{"v":0,"d":"0.000"}},{"$f":"IF(ROWS($D$38:T58)=COLUMNS($D$38:T58),1,0-U27)","v":{"v":0,"d":"0.000"}},{"$f":"IF(ROWS($D$38:U58)=COLUMNS($D$38:U58),1,0-V27)","v":{"v":0,"d":"0.000"}},{"$f":"IF(ROWS($D$38:V58)=COLUMNS($D$38:V58),1,0-W27)","v":{"v":0,"d":"0.000"}},{"$f":"IF(ROWS($D$38:W58)=COLUMNS($D$38:W58),1,0-X27)","v":{"v":0,"d":"0.000"}},{"$f":"IF(ROWS($D$38:X58)=COLUMNS($D$38:X58),1,0-Y27)","v":{"v":1,"d":"1.000"}},{"$f":"IF(ROWS($D$38:Y58)=COLUMNS($D$38:Y58),1,0-Z27)","v":{"v":0,"d":"0.000"}},{"$f":"IF(ROWS($D$38:Z58)=COLUMNS($D$38:Z58),1,0-AA27)","v":{"v":0,"d":"0.000"}},{"$f":"IF(ROWS($D$38:AA58)=COLUMNS($D$38:AA58),1,0-AB27)","v":{"v":0,"d":"0.000"}},{"$f":"IF(ROWS($D$38:AB58)=COLUMNS($D$38:AB58),1,0-AC27)","v":{"v":0,"d":"0.000"}},{"$f":"IF(ROWS($D$38:AC58)=COLUMNS($D$38:AC58),1,0-AD27)","v":{"v":0,"d":"0.000"}},{"$f":"IF(ROWS($D$38:AD58)=COLUMNS($D$38:AD58),1,0-AE27)","v":{"v":0,"d":"0.000"}},{"$f":"IF(ROWS($D$38:AE58)=COLUMNS($D$38:AE58),1,0-AF27)","v":{"v":0,"d":"0.000"}},{"$f":"IF(ROWS($D$38:AF58)=COLUMNS($D$38:AF58),1,0-AG27)","v":{"v":0,"d":"0.000"}},{"$f":"IF(ROWS($D$38:AG58)=COLUMNS($D$38:AG58),1,0-AH27)","v":{"v":0,"d":"0.000"}}]
[null,null,12,"",{"$f":"IF(ROWS($D$38:D59)=COLUMNS($D$38:D59),1,0-E28)","v":{"v":0,"d":"0.000"}},{"$f":"IF(ROWS($D$38:E59)=COLUMNS($D$38:E59),1,0-F28)","v":{"v":0,"d":"0.000"}},{"$f":"IF(ROWS($D$38:F59)=COLUMNS($D$38:F59),1,0-G28)","v":{"v":0,"d":"0.000"}},{"$f":"IF(ROWS($D$38:G59)=COLUMNS($D$38:G59),1,0-H28)","v":{"v":0,"d":"0.000"}},{"$f":"IF(ROWS($D$38:H59)=COLUMNS($D$38:H59),1,0-I28)","v":{"v":0,"d":"0.000"}},{"$f":"IF(ROWS($D$38:I59)=COLUMNS($D$38:I59),1,0-J28)","v":{"v":0,"d":"0.000"}},{"$f":"IF(ROWS($D$38:J59)=COLUMNS($D$38:J59),1,0-K28)","v":{"v":0,"d":"0.000"}},{"$f":"IF(ROWS($D$38:K59)=COLUMNS($D$38:K59),1,0-L28)","v":{"v":0,"d":"0.000"}},{"$f":"IF(ROWS($D$38:L59)=COLUMNS($D$38:L59),1,0-M28)","v":{"v":0,"d":"0.000"}},{"$f":"IF(ROWS($D$38:M59)=COLUMNS($D$38:M59),1,0-N28)","v":{"v":0,"d":"0.000"}},{"$f":"IF(ROWS($D$38:N59)=COLUMNS($D$38:N59),1,0-O28)","v":{"v":0,"d":"0.000"}},{"$f":"IF(ROWS($D$38:O59)=COLUMNS($D$38:O59),1,0-P28)","v":{"v":0,"d":"0.000"}},{"$f":"IF(ROWS($D$38:P59)=COLUMNS($D$38:P59),1,0-Q28)","v":{"v":0,"d":"0.000"}},{"$f":"IF(ROWS($D$38:Q59)=COLUMNS($D$38:Q59),1,0-R28)","v":{"v":0,"d":"0.000"}},{"$f":"IF(ROWS($D$38:R59)=COLUMNS($D$38:R59),1,0-S28)","v":{"v":0,"d":"0.000"}},{"$f":"IF(ROWS($D$38:S59)=COLUMNS($D$38:S59),1,0-T28)","v":{"v":0,"d":"0.000"}},{"$f":"IF(ROWS($D$38:T59)=COLUMNS($D$38:T59),1,0-U28)","v":{"v":0,"d":"0.000"}},{"$f":"IF(ROWS($D$38:U59)=COLUMNS($D$38:U59),1,0-V28)","v":{"v":0,"d":"0.000"}},{"$f":"IF(ROWS($D$38:V59)=COLUMNS($D$38:V59),1,0-W28)","v":{"v":0,"d":"0.000"}},{"$f":"IF(ROWS($D$38:W59)=COLUMNS($D$38:W59),1,0-X28)","v":{"v":0,"d":"0.000"}},{"$f":"IF(ROWS($D$38:X59)=COLUMNS($D$38:X59),1,0-Y28)","v":{"v":0,"d":"0.000"}},{"$f":"IF(ROWS($D$38:Y59)=COLUMNS($D$38:Y59),1,0-Z28)","v":{"v":1,"d":"1.000"}},{"$f":"IF(ROWS($D$38:Z59)=COLUMNS($D$38:Z59),1,0-AA28)","v":{"v":0,"d":"0.000"}},{"$f":"IF(ROWS($D$38:AA59)=COLUMNS($D$38:AA59),1,0-AB28)","v":{"v":0,"d":"0.000"}},{"$f":"IF(ROWS($D$38:AB59)=COLUMNS($D$38:AB59),1,0-AC28)","v":{"v":0,"d":"0.000"}},{"$f":"IF(ROWS($D$38:AC59)=COLUMNS($D$38:AC59),1,0-AD28)","v":{"v":0,"d":"0.000"}},{"$f":"IF(ROWS($D$38:AD59)=COLUMNS($D$38:AD59),1,0-AE28)","v":{"v":0,"d":"0.000"}},{"$f":"IF(ROWS($D$38:AE59)=COLUMNS($D$38:AE59),1,0-AF28)","v":{"v":0,"d":"0.000"}},{"$f":"IF(ROWS($D$38:AF59)=COLUMNS($D$38:AF59),1,0-AG28)","v":{"v":0,"d":"0.000"}},{"$f":"IF(ROWS($D$38:AG59)=COLUMNS($D$38:AG59),1,0-AH28)","v":{"v":0,"d":"0.000"}}]
[null,null,13,"",{"$f":"IF(ROWS($D$38:D60)=COLUMNS($D$38:D60),1,0-E29)","v":{"v":0,"d":"0.000"}},{"$f":"IF(ROWS($D$38:E60)=COLUMNS($D$38:E60),1,0-F29)","v":{"v":0,"d":"0.000"}},{"$f":"IF(ROWS($D$38:F60)=COLUMNS($D$38:F60),1,0-G29)","v":{"v":0,"d":"0.000"}},{"$f":"IF(ROWS($D$38:G60)=COLUMNS($D$38:G60),1,0-H29)","v":{"v":0,"d":"0.000"}},{"$f":"IF(ROWS($D$38:H60)=COLUMNS($D$38:H60),1,0-I29)","v":{"v":0,"d":"0.000"}},{"$f":"IF(ROWS($D$38:I60)=COLUMNS($D$38:I60),1,0-J29)","v":{"v":0,"d":"0.000"}},{"$f":"IF(ROWS($D$38:J60)=COLUMNS($D$38:J60),1,0-K29)","v":{"v":0,"d":"0.000"}},{"$f":"IF(ROWS($D$38:K60)=COLUMNS($D$38:K60),1,0-L29)","v":{"v":0,"d":"0.000"}},{"$f":"IF(ROWS($D$38:L60)=COLUMNS($D$38:L60),1,0-M29)","v":{"v":0,"d":"0.000"}},{"$f":"IF(ROWS($D$38:M60)=COLUMNS($D$38:M60),1,0-N29)","v":{"v":0,"d":"0.000"}},{"$f":"IF(ROWS($D$38:N60)=COLUMNS($D$38:N60),1,0-O29)","v":{"v":0,"d":"0.000"}},{"$f":"IF(ROWS($D$38:O60)=COLUMNS($D$38:O60),1,0-P29)","v":{"v":0,"d":"0.000"}},{"$f":"IF(ROWS($D$38:P60)=COLUMNS($D$38:P60),1,0-Q29)","v":{"v":0,"d":"0.000"}},{"$f":"IF(ROWS($D$38:Q60)=COLUMNS($D$38:Q60),1,0-R29)","v":{"v":0,"d":"0.000"}},{"$f":"IF(ROWS($D$38:R60)=COLUMNS($D$38:R60),1,0-S29)","v":{"v":0,"d":"0.000"}},{"$f":"IF(ROWS($D$38:S60)=COLUMNS($D$38:S60),1,0-T29)","v":{"v":0,"d":"0.000"}},{"$f":"IF(ROWS($D$38:T60)=COLUMNS($D$38:T60),1,0-U29)","v":{"v":0,"d":"0.000"}},{"$f":"IF(ROWS($D$38:U60)=COLUMNS($D$38:U60),1,0-V29)","v":{"v":0,"d":"0.000"}},{"$f":"IF(ROWS($D$38:V60)=COLUMNS($D$38:V60),1,0-W29)","v":{"v":0,"d":"0.000"}},{"$f":"IF(ROWS($D$38:W60)=COLUMNS($D$38:W60),1,0-X29)","v":{"v":0,"d":"0.000"}},{"$f":"IF(ROWS($D$38:X60)=COLUMNS($D$38:X60),1,0-Y29)","v":{"v":0,"d":"0.000"}},{"$f":"IF(ROWS($D$38:Y60)=COLUMNS($D$38:Y60),1,0-Z29)","v":{"v":0,"d":"0.000"}},{"$f":"IF(ROWS($D$38:Z60)=COLUMNS($D$38:Z60),1,0-AA29)","v":{"v":1,"d":"1.000"}},{"$f":"IF(ROWS($D$38:AA60)=COLUMNS($D$38:AA60),1,0-AB29)","v":{"v":0,"d":"0.000"}},{"$f":"IF(ROWS($D$38:AB60)=COLUMNS($D$38:AB60),1,0-AC29)","v":{"v":0,"d":"0.000"}},{"$f":"IF(ROWS($D$38:AC60)=COLUMNS($D$38:AC60),1,0-AD29)","v":{"v":0,"d":"0.000"}},{"$f":"IF(ROWS($D$38:AD60)=COLUMNS($D$38:AD60),1,0-AE29)","v":{"v":0,"d":"0.000"}},{"$f":"IF(ROWS($D$38:AE60)=COLUMNS($D$38:AE60),1,0-AF29)","v":{"v":0,"d":"0.000"}},{"$f":"IF(ROWS($D$38:AF60)=COLUMNS($D$38:AF60),1,0-AG29)","v":{"v":0,"d":"0.000"}},{"$f":"IF(ROWS($D$38:AG60)=COLUMNS($D$38:AG60),1,0-AH29)","v":{"v":0,"d":"0.000"}}]
[null,null,14,"",{"$f":"IF(ROWS($D$38:D61)=COLUMNS($D$38:D61),1,0-E30)","v":{"v":0,"d":"0.000"}},{"$f":"IF(ROWS($D$38:E61)=COLUMNS($D$38:E61),1,0-F30)","v":{"v":0,"d":"0.000"}},{"$f":"IF(ROWS($D$38:F61)=COLUMNS($D$38:F61),1,0-G30)","v":{"v":0,"d":"0.000"}},{"$f":"IF(ROWS($D$38:G61)=COLUMNS($D$38:G61),1,0-H30)","v":{"v":0,"d":"0.000"}},{"$f":"IF(ROWS($D$38:H61)=COLUMNS($D$38:H61),1,0-I30)","v":{"v":0,"d":"0.000"}},{"$f":"IF(ROWS($D$38:I61)=COLUMNS($D$38:I61),1,0-J30)","v":{"v":0,"d":"0.000"}},{"$f":"IF(ROWS($D$38:J61)=COLUMNS($D$38:J61),1,0-K30)","v":{"v":0,"d":"0.000"}},{"$f":"IF(ROWS($D$38:K61)=COLUMNS($D$38:K61),1,0-L30)","v":{"v":0,"d":"0.000"}},{"$f":"IF(ROWS($D$38:L61)=COLUMNS($D$38:L61),1,0-M30)","v":{"v":0,"d":"0.000"}},{"$f":"IF(ROWS($D$38:M61)=COLUMNS($D$38:M61),1,0-N30)","v":{"v":0,"d":"0.000"}},{"$f":"IF(ROWS($D$38:N61)=COLUMNS($D$38:N61),1,0-O30)","v":{"v":0,"d":"0.000"}},{"$f":"IF(ROWS($D$38:O61)=COLUMNS($D$38:O61),1,0-P30)","v":{"v":0,"d":"0.000"}},{"$f":"IF(ROWS($D$38:P61)=COLUMNS($D$38:P61),1,0-Q30)","v":{"v":0,"d":"0.000"}},{"$f":"IF(ROWS($D$38:Q61)=COLUMNS($D$38:Q61),1,0-R30)","v":{"v":0,"d":"0.000"}},{"$f":"IF(ROWS($D$38:R61)=COLUMNS($D$38:R61),1,0-S30)","v":{"v":0,"d":"0.000"}},{"$f":"IF(ROWS($D$38:S61)=COLUMNS($D$38:S61),1,0-T30)","v":{"v":0,"d":"0.000"}},{"$f":"IF(ROWS($D$38:T61)=COLUMNS($D$38:T61),1,0-U30)","v":{"v":0,"d":"0.000"}},{"$f":"IF(ROWS($D$38:U61)=COLUMNS($D$38:U61),1,0-V30)","v":{"v":0,"d":"0.000"}},{"$f":"IF(ROWS($D$38:V61)=COLUMNS($D$38:V61),1,0-W30)","v":{"v":0,"d":"0.000"}},{"$f":"IF(ROWS($D$38:W61)=COLUMNS($D$38:W61),1,0-X30)","v":{"v":0,"d":"0.000"}},{"$f":"IF(ROWS($D$38:X61)=COLUMNS($D$38:X61),1,0-Y30)","v":{"v":0,"d":"0.000"}},{"$f":"IF(ROWS($D$38:Y61)=COLUMNS($D$38:Y61),1,0-Z30)","v":{"v":0,"d":"0.000"}},{"$f":"IF(ROWS($D$38:Z61)=COLUMNS($D$38:Z61),1,0-AA30)","v":{"v":0,"d":"0.000"}},{"$f":"IF(ROWS($D$38:AA61)=COLUMNS($D$38:AA61),1,0-AB30)","v":{"v":1,"d":"1.000"}},{"$f":"IF(ROWS($D$38:AB61)=COLUMNS($D$38:AB61),1,0-AC30)","v":{"v":0,"d":"0.000"}},{"$f":"IF(ROWS($D$38:AC61)=COLUMNS($D$38:AC61),1,0-AD30)","v":{"v":0,"d":"0.000"}},{"$f":"IF(ROWS($D$38:AD61)=COLUMNS($D$38:AD61),1,0-AE30)","v":{"v":0,"d":"0.000"}},{"$f":"IF(ROWS($D$38:AE61)=COLUMNS($D$38:AE61),1,0-AF30)","v":{"v":0,"d":"0.000"}},{"$f":"IF(ROWS($D$38:AF61)=COLUMNS($D$38:AF61),1,0-AG30)","v":{"v":0,"d":"0.000"}},{"$f":"IF(ROWS($D$38:AG61)=COLUMNS($D$38:AG61),1,0-AH30)","v":{"v":0,"d":"0.000"}}]
[null,null,15,"",{"$f":"IF(ROWS($D$38:D62)=COLUMNS($D$38:D62),1,0-E31)","v":{"v":0,"d":"0.000"}},{"$f":"IF(ROWS($D$38:E62)=COLUMNS($D$38:E62),1,0-F31)","v":{"v":0,"d":"0.000"}},{"$f":"IF(ROWS($D$38:F62)=COLUMNS($D$38:F62),1,0-G31)","v":{"v":0,"d":"0.000"}},{"$f":"IF(ROWS($D$38:G62)=COLUMNS($D$38:G62),1,0-H31)","v":{"v":0,"d":"0.000"}},{"$f":"IF(ROWS($D$38:H62)=COLUMNS($D$38:H62),1,0-I31)","v":{"v":0,"d":"0.000"}},{"$f":"IF(ROWS($D$38:I62)=COLUMNS($D$38:I62),1,0-J31)","v":{"v":0,"d":"0.000"}},{"$f":"IF(ROWS($D$38:J62)=COLUMNS($D$38:J62),1,0-K31)","v":{"v":0,"d":"0.000"}},{"$f":"IF(ROWS($D$38:K62)=COLUMNS($D$38:K62),1,0-L31)","v":{"v":0,"d":"0.000"}},{"$f":"IF(ROWS($D$38:L62)=COLUMNS($D$38:L62),1,0-M31)","v":{"v":0,"d":"0.000"}},{"$f":"IF(ROWS($D$38:M62)=COLUMNS($D$38:M62),1,0-N31)","v":{"v":0,"d":"0.000"}},{"$f":"IF(ROWS($D$38:N62)=COLUMNS($D$38:N62),1,0-O31)","v":{"v":0,"d":"0.000"}},{"$f":"IF(ROWS($D$38:O62)=COLUMNS($D$38:O62),1,0-P31)","v":{"v":0,"d":"0.000"}},{"$f":"IF(ROWS($D$38:P62)=COLUMNS($D$38:P62),1,0-Q31)","v":{"v":0,"d":"0.000"}},{"$f":"IF(ROWS($D$38:Q62)=COLUMNS($D$38:Q62),1,0-R31)","v":{"v":0,"d":"0.000"}},{"$f":"IF(ROWS($D$38:R62)=COLUMNS($D$38:R62),1,0-S31)","v":{"v":0,"d":"0.000"}},{"$f":"IF(ROWS($D$38:S62)=COLUMNS($D$38:S62),1,0-T31)","v":{"v":0,"d":"0.000"}},{"$f":"IF(ROWS($D$38:T62)=COLUMNS($D$38:T62),1,0-U31)","v":{"v":0,"d":"0.000"}},{"$f":"IF(ROWS($D$38:U62)=COLUMNS($D$38:U62),1,0-V31)","v":{"v":0,"d":"0.000"}},{"$f":"IF(ROWS($D$38:V62)=COLUMNS($D$38:V62),1,0-W31)","v":{"v":0,"d":"0.000"}},{"$f":"IF(ROWS($D$38:W62)=COLUMNS($D$38:W62),1,0-X31)","v":{"v":0,"d":"0.000"}},{"$f":"IF(ROWS($D$38:X62)=COLUMNS($D$38:X62),1,0-Y31)","v":{"v":0,"d":"0.000"}},{"$f":"IF(ROWS($D$38:Y62)=COLUMNS($D$38:Y62),1,0-Z31)","v":{"v":0,"d":"0.000"}},{"$f":"IF(ROWS($D$38:Z62)=COLUMNS($D$38:Z62),1,0-AA31)","v":{"v":0,"d":"0.000"}},{"$f":"IF(ROWS($D$38:AA62)=COLUMNS($D$38:AA62),1,0-AB31)","v":{"v":0,"d":"0.000"}},{"$f":"IF(ROWS($D$38:AB62)=COLUMNS($D$38:AB62),1,0-AC31)","v":{"v":1,"d":"1.000"}},{"$f":"IF(ROWS($D$38:AC62)=COLUMNS($D$38:AC62),1,0-AD31)","v":{"v":0,"d":"0.000"}},{"$f":"IF(ROWS($D$38:AD62)=COLUMNS($D$38:AD62),1,0-AE31)","v":{"v":0,"d":"0.000"}},{"$f":"IF(ROWS($D$38:AE62)=COLUMNS($D$38:AE62),1,0-AF31)","v":{"v":0,"d":"0.000"}},{"$f":"IF(ROWS($D$38:AF62)=COLUMNS($D$38:AF62),1,0-AG31)","v":{"v":0,"d":"0.000"}},{"$f":"IF(ROWS($D$38:AG62)=COLUMNS($D$38:AG62),1,0-AH31)","v":{"v":0,"d":"0.000"}}]
[null,null,16,"",{"$f":"IF(ROWS($D$38:D63)=COLUMNS($D$38:D63),1,0-E32)","v":{"v":0,"d":"0.000"}},{"$f":"IF(ROWS($D$38:E63)=COLUMNS($D$38:E63),1,0-F32)","v":{"v":0,"d":"0.000"}},{"$f":"IF(ROWS($D$38:F63)=COLUMNS($D$38:F63),1,0-G32)","v":{"v":0,"d":"0.000"}},{"$f":"IF(ROWS($D$38:G63)=COLUMNS($D$38:G63),1,0-H32)","v":{"v":0,"d":"0.000"}},{"$f":"IF(ROWS($D$38:H63)=COLUMNS($D$38:H63),1,0-I32)","v":{"v":0,"d":"0.000"}},{"$f":"IF(ROWS($D$38:I63)=COLUMNS($D$38:I63),1,0-J32)","v":{"v":0,"d":"0.000"}},{"$f":"IF(ROWS($D$38:J63)=COLUMNS($D$38:J63),1,0-K32)","v":{"v":0,"d":"0.000"}},{"$f":"IF(ROWS($D$38:K63)=COLUMNS($D$38:K63),1,0-L32)","v":{"v":0,"d":"0.000"}},{"$f":"IF(ROWS($D$38:L63)=COLUMNS($D$38:L63),1,0-M32)","v":{"v":0,"d":"0.000"}},{"$f":"IF(ROWS($D$38:M63)=COLUMNS($D$38:M63),1,0-N32)","v":{"v":0,"d":"0.000"}},{"$f":"IF(ROWS($D$38:N63)=COLUMNS($D$38:N63),1,0-O32)","v":{"v":0,"d":"0.000"}},{"$f":"IF(ROWS($D$38:O63)=COLUMNS($D$38:O63),1,0-P32)","v":{"v":0,"d":"0.000"}},{"$f":"IF(ROWS($D$38:P63)=COLUMNS($D$38:P63),1,0-Q32)","v":{"v":0,"d":"0.000"}},{"$f":"IF(ROWS($D$38:Q63)=COLUMNS($D$38:Q63),1,0-R32)","v":{"v":0,"d":"0.000"}},{"$f":"IF(ROWS($D$38:R63)=COLUMNS($D$38:R63),1,0-S32)","v":{"v":0,"d":"0.000"}},{"$f":"IF(ROWS($D$38:S63)=COLUMNS($D$38:S63),1,0-T32)","v":{"v":0,"d":"0.000"}},{"$f":"IF(ROWS($D$38:T63)=COLUMNS($D$38:T63),1,0-U32)","v":{"v":0,"d":"0.000"}},{"$f":"IF(ROWS($D$38:U63)=COLUMNS($D$38:U63),1,0-V32)","v":{"v":0,"d":"0.000"}},{"$f":"IF(ROWS($D$38:V63)=COLUMNS($D$38:V63),1,0-W32)","v":{"v":0,"d":"0.000"}},{"$f":"IF(ROWS($D$38:W63)=COLUMNS($D$38:W63),1,0-X32)","v":{"v":0,"d":"0.000"}},{"$f":"IF(ROWS($D$38:X63)=COLUMNS($D$38:X63),1,0-Y32)","v":{"v":0,"d":"0.000"}},{"$f":"IF(ROWS($D$38:Y63)=COLUMNS($D$38:Y63),1,0-Z32)","v":{"v":0,"d":"0.000"}},{"$f":"IF(ROWS($D$38:Z63)=COLUMNS($D$38:Z63),1,0-AA32)","v":{"v":0,"d":"0.000"}},{"$f":"IF(ROWS($D$38:AA63)=COLUMNS($D$38:AA63),1,0-AB32)","v":{"v":0,"d":"0.000"}},{"$f":"IF(ROWS($D$38:AB63)=COLUMNS($D$38:AB63),1,0-AC32)","v":{"v":0,"d":"0.000"}},{"$f":"IF(ROWS($D$38:AC63)=COLUMNS($D$38:AC63),1,0-AD32)","v":{"v":1,"d":"1.000"}},{"$f":"IF(ROWS($D$38:AD63)=COLUMNS($D$38:AD63),1,0-AE32)","v":{"v":0,"d":"0.000"}},{"$f":"IF(ROWS($D$38:AE63)=COLUMNS($D$38:AE63),1,0-AF32)","v":{"v":0,"d":"0.000"}},{"$f":"IF(ROWS($D$38:AF63)=COLUMNS($D$38:AF63),1,0-AG32)","v":{"v":0,"d":"0.000"}},{"$f":"IF(ROWS($D$38:AG63)=COLUMNS($D$38:AG63),1,0-AH32)","v":{"v":0,"d":"0.000"}}]
[null,null,17,"",{"$f":"IF(ROWS($D$38:D64)=COLUMNS($D$38:D64),1,0-E33)","v":{"v":0,"d":"0.000"}},{"$f":"IF(ROWS($D$38:E64)=COLUMNS($D$38:E64),1,0-F33)","v":{"v":0,"d":"0.000"}},{"$f":"IF(ROWS($D$38:F64)=COLUMNS($D$38:F64),1,0-G33)","v":{"v":0,"d":"0.000"}},{"$f":"IF(ROWS($D$38:G64)=COLUMNS($D$38:G64),1,0-H33)","v":{"v":0,"d":"0.000"}},{"$f":"IF(ROWS($D$38:H64)=COLUMNS($D$38:H64),1,0-I33)","v":{"v":0,"d":"0.000"}},{"$f":"IF(ROWS($D$38:I64)=COLUMNS($D$38:I64),1,0-J33)","v":{"v":0,"d":"0.000"}},{"$f":"IF(ROWS($D$38:J64)=COLUMNS($D$38:J64),1,0-K33)","v":{"v":0,"d":"0.000"}},{"$f":"IF(ROWS($D$38:K64)=COLUMNS($D$38:K64),1,0-L33)","v":{"v":0,"d":"0.000"}},{"$f":"IF(ROWS($D$38:L64)=COLUMNS($D$38:L64),1,0-M33)","v":{"v":0,"d":"0.000"}},{"$f":"IF(ROWS($D$38:M64)=COLUMNS($D$38:M64),1,0-N33)","v":{"v":0,"d":"0.000"}},{"$f":"IF(ROWS($D$38:N64)=COLUMNS($D$38:N64),1,0-O33)","v":{"v":0,"d":"0.000"}},{"$f":"IF(ROWS($D$38:O64)=COLUMNS($D$38:O64),1,0-P33)","v":{"v":0,"d":"0.000"}},{"$f":"IF(ROWS($D$38:P64)=COLUMNS($D$38:P64),1,0-Q33)","v":{"v":0,"d":"0.000"}},{"$f":"IF(ROWS($D$38:Q64)=COLUMNS($D$38:Q64),1,0-R33)","v":{"v":0,"d":"0.000"}},{"$f":"IF(ROWS($D$38:R64)=COLUMNS($D$38:R64),1,0-S33)","v":{"v":0,"d":"0.000"}},{"$f":"IF(ROWS($D$38:S64)=COLUMNS($D$38:S64),1,0-T33)","v":{"v":0,"d":"0.000"}},{"$f":"IF(ROWS($D$38:T64)=COLUMNS($D$38:T64),1,0-U33)","v":{"v":0,"d":"0.000"}},{"$f":"IF(ROWS($D$38:U64)=COLUMNS($D$38:U64),1,0-V33)","v":{"v":0,"d":"0.000"}},{"$f":"IF(ROWS($D$38:V64)=COLUMNS($D$38:V64),1,0-W33)","v":{"v":0,"d":"0.000"}},{"$f":"IF(ROWS($D$38:W64)=COLUMNS($D$38:W64),1,0-X33)","v":{"v":0,"d":"0.000"}},{"$f":"IF(ROWS($D$38:X64)=COLUMNS($D$38:X64),1,0-Y33)","v":{"v":0,"d":"0.000"}},{"$f":"IF(ROWS($D$38:Y64)=COLUMNS($D$38:Y64),1,0-Z33)","v":{"v":0,"d":"0.000"}},{"$f":"IF(ROWS($D$38:Z64)=COLUMNS($D$38:Z64),1,0-AA33)","v":{"v":0,"d":"0.000"}},{"$f":"IF(ROWS($D$38:AA64)=COLUMNS($D$38:AA64),1,0-AB33)","v":{"v":0,"d":"0.000"}},{"$f":"IF(ROWS($D$38:AB64)=COLUMNS($D$38:AB64),1,0-AC33)","v":{"v":0,"d":"0.000"}},{"$f":"IF(ROWS($D$38:AC64)=COLUMNS($D$38:AC64),1,0-AD33)","v":{"v":0,"d":"0.000"}},{"$f":"IF(ROWS($D$38:AD64)=COLUMNS($D$38:AD64),1,0-AE33)","v":{"v":1,"d":"1.000"}},{"$f":"IF(ROWS($D$38:AE64)=COLUMNS($D$38:AE64),1,0-AF33)","v":{"v":0,"d":"0.000"}},{"$f":"IF(ROWS($D$38:AF64)=COLUMNS($D$38:AF64),1,0-AG33)","v":{"v":0,"d":"0.000"}},{"$f":"IF(ROWS($D$38:AG64)=COLUMNS($D$38:AG64),1,0-AH33)","v":{"v":0,"d":"0.000"}}]
[null,null,18,"",{"$f":"IF(ROWS($D$38:D65)=COLUMNS($D$38:D65),1,0-E34)","v":{"v":0,"d":"0.000"}},{"$f":"IF(ROWS($D$38:E65)=COLUMNS($D$38:E65),1,0-F34)","v":{"v":0,"d":"0.000"}},{"$f":"IF(ROWS($D$38:F65)=COLUMNS($D$38:F65),1,0-G34)","v":{"v":0,"d":"0.000"}},{"$f":"IF(ROWS($D$38:G65)=COLUMNS($D$38:G65),1,0-H34)","v":{"v":0,"d":"0.000"}},{"$f":"IF(ROWS($D$38:H65)=COLUMNS($D$38:H65),1,0-I34)","v":{"v":0,"d":"0.000"}},{"$f":"IF(ROWS($D$38:I65)=COLUMNS($D$38:I65),1,0-J34)","v":{"v":0,"d":"0.000"}},{"$f":"IF(ROWS($D$38:J65)=COLUMNS($D$38:J65),1,0-K34)","v":{"v":0,"d":"0.000"}},{"$f":"IF(ROWS($D$38:K65)=COLUMNS($D$38:K65),1,0-L34)","v":{"v":0,"d":"0.000"}},{"$f":"IF(ROWS($D$38:L65)=COLUMNS($D$38:L65),1,0-M34)","v":{"v":0,"d":"0.000"}},{"$f":"IF(ROWS($D$38:M65)=COLUMNS($D$38:M65),1,0-N34)","v":{"v":0,"d":"0.000"}},{"$f":"IF(ROWS($D$38:N65)=COLUMNS($D$38:N65),1,0-O34)","v":{"v":0,"d":"0.000"}},{"$f":"IF(ROWS($D$38:O65)=COLUMNS($D$38:O65),1,0-P34)","v":{"v":0,"d":"0.000"}},{"$f":"IF(ROWS($D$38:P65)=COLUMNS($D$38:P65),1,0-Q34)","v":{"v":0,"d":"0.000"}},{"$f":"IF(ROWS($D$38:Q65)=COLUMNS($D$38:Q65),1,0-R34)","v":{"v":0,"d":"0.000"}},{"$f":"IF(ROWS($D$38:R65)=COLUMNS($D$38:R65),1,0-S34)","v":{"v":0,"d":"0.000"}},{"$f":"IF(ROWS($D$38:S65)=COLUMNS($D$38:S65),1,0-T34)","v":{"v":0,"d":"0.000"}},{"$f":"IF(ROWS($D$38:T65)=COLUMNS($D$38:T65),1,0-U34)","v":{"v":0,"d":"0.000"}},{"$f":"IF(ROWS($D$38:U65)=COLUMNS($D$38:U65),1,0-V34)","v":{"v":0,"d":"0.000"}},{"$f":"IF(ROWS($D$38:V65)=COLUMNS($D$38:V65),1,0-W34)","v":{"v":0,"d":"0.000"}},{"$f":"IF(ROWS($D$38:W65)=COLUMNS($D$38:W65),1,0-X34)","v":{"v":0,"d":"0.000"}},{"$f":"IF(ROWS($D$38:X65)=COLUMNS($D$38:X65),1,0-Y34)","v":{"v":0,"d":"0.000"}},{"$f":"IF(ROWS($D$38:Y65)=COLUMNS($D$38:Y65),1,0-Z34)","v":{"v":0,"d":"0.000"}},{"$f":"IF(ROWS($D$38:Z65)=COLUMNS($D$38:Z65),1,0-AA34)","v":{"v":0,"d":"0.000"}},{"$f":"IF(ROWS($D$38:AA65)=COLUMNS($D$38:AA65),1,0-AB34)","v":{"v":0,"d":"0.000"}},{"$f":"IF(ROWS($D$38:AB65)=COLUMNS($D$38:AB65),1,0-AC34)","v":{"v":0,"d":"0.000"}},{"$f":"IF(ROWS($D$38:AC65)=COLUMNS($D$38:AC65),1,0-AD34)","v":{"v":0,"d":"0.000"}},{"$f":"IF(ROWS($D$38:AD65)=COLUMNS($D$38:AD65),1,0-AE34)","v":{"v":0,"d":"0.000"}},{"$f":"IF(ROWS($D$38:AE65)=COLUMNS($D$38:AE65),1,0-AF34)","v":{"v":1,"d":"1.000"}},{"$f":"IF(ROWS($D$38:AF65)=COLUMNS($D$38:AF65),1,0-AG34)","v":{"v":0,"d":"0.000"}},{"$f":"IF(ROWS($D$38:AG65)=COLUMNS($D$38:AG65),1,0-AH34)","v":{"v":0,"d":"0.000"}}]
[null,null,19,"",{"$f":"IF(ROWS($D$38:D66)=COLUMNS($D$38:D66),1,0-E35)","v":{"v":0,"d":"0.000"}},{"$f":"IF(ROWS($D$38:E66)=COLUMNS($D$38:E66),1,0-F35)","v":{"v":0,"d":"0.000"}},{"$f":"IF(ROWS($D$38:F66)=COLUMNS($D$38:F66),1,0-G35)","v":{"v":0,"d":"0.000"}},{"$f":"IF(ROWS($D$38:G66)=COLUMNS($D$38:G66),1,0-H35)","v":{"v":0,"d":"0.000"}},{"$f":"IF(ROWS($D$38:H66)=COLUMNS($D$38:H66),1,0-I35)","v":{"v":0,"d":"0.000"}},{"$f":"IF(ROWS($D$38:I66)=COLUMNS($D$38:I66),1,0-J35)","v":{"v":0,"d":"0.000"}},{"$f":"IF(ROWS($D$38:J66)=COLUMNS($D$38:J66),1,0-K35)","v":{"v":0,"d":"0.000"}},{"$f":"IF(ROWS($D$38:K66)=COLUMNS($D$38:K66),1,0-L35)","v":{"v":0,"d":"0.000"}},{"$f":"IF(ROWS($D$38:L66)=COLUMNS($D$38:L66),1,0-M35)","v":{"v":0,"d":"0.000"}},{"$f":"IF(ROWS($D$38:M66)=COLUMNS($D$38:M66),1,0-N35)","v":{"v":0,"d":"0.000"}},{"$f":"IF(ROWS($D$38:N66)=COLUMNS($D$38:N66),1,0-O35)","v":{"v":0,"d":"0.000"}},{"$f":"IF(ROWS($D$38:O66)=COLUMNS($D$38:O66),1,0-P35)","v":{"v":0,"d":"0.000"}},{"$f":"IF(ROWS($D$38:P66)=COLUMNS($D$38:P66),1,0-Q35)","v":{"v":0,"d":"0.000"}},{"$f":"IF(ROWS($D$38:Q66)=COLUMNS($D$38:Q66),1,0-R35)","v":{"v":0,"d":"0.000"}},{"$f":"IF(ROWS($D$38:R66)=COLUMNS($D$38:R66),1,0-S35)","v":{"v":0,"d":"0.000"}},{"$f":"IF(ROWS($D$38:S66)=COLUMNS($D$38:S66),1,0-T35)","v":{"v":0,"d":"0.000"}},{"$f":"IF(ROWS($D$38:T66)=COLUMNS($D$38:T66),1,0-U35)","v":{"v":0,"d":"0.000"}},{"$f":"IF(ROWS($D$38:U66)=COLUMNS($D$38:U66),1,0-V35)","v":{"v":0,"d":"0.000"}},{"$f":"IF(ROWS($D$38:V66)=COLUMNS($D$38:V66),1,0-W35)","v":{"v":0,"d":"0.000"}},{"$f":"IF(ROWS($D$38:W66)=COLUMNS($D$38:W66),1,0-X35)","v":{"v":0,"d":"0.000"}},{"$f":"IF(ROWS($D$38:X66)=COLUMNS($D$38:X66),1,0-Y35)","v":{"v":0,"d":"0.000"}},{"$f":"IF(ROWS($D$38:Y66)=COLUMNS($D$38:Y66),1,0-Z35)","v":{"v":0,"d":"0.000"}},{"$f":"IF(ROWS($D$38:Z66)=COLUMNS($D$38:Z66),1,0-AA35)","v":{"v":0,"d":"0.000"}},{"$f":"IF(ROWS($D$38:AA66)=COLUMNS($D$38:AA66),1,0-AB35)","v":{"v":0,"d":"0.000"}},{"$f":"IF(ROWS($D$38:AB66)=COLUMNS($D$38:AB66),1,0-AC35)","v":{"v":0,"d":"0.000"}},{"$f":"IF(ROWS($D$38:AC66)=COLUMNS($D$38:AC66),1,0-AD35)","v":{"v":0,"d":"0.000"}},{"$f":"IF(ROWS($D$38:AD66)=COLUMNS($D$38:AD66),1,0-AE35)","v":{"v":0,"d":"0.000"}},{"$f":"IF(ROWS($D$38:AE66)=COLUMNS($D$38:AE66),1,0-AF35)","v":{"v":0,"d":"0.000"}},{"$f":"IF(ROWS($D$38:AF66)=COLUMNS($D$38:AF66),1,0-AG35)","v":{"v":1,"d":"1.000"}},{"$f":"IF(ROWS($D$38:AG66)=COLUMNS($D$38:AG66),1,0-AH35)","v":{"v":0,"d":"0.000"}}]
[null,null,20,"",{"$f":"IF(ROWS($D$38:D67)=COLUMNS($D$38:D67),1,0-E36)","v":{"v":0,"d":"0.000"}},{"$f":"IF(ROWS($D$38:E67)=COLUMNS($D$38:E67),1,0-F36)","v":{"v":0,"d":"0.000"}},{"$f":"IF(ROWS($D$38:F67)=COLUMNS($D$38:F67),1,0-G36)","v":{"v":0,"d":"0.000"}},{"$f":"IF(ROWS($D$38:G67)=COLUMNS($D$38:G67),1,0-H36)","v":{"v":0,"d":"0.000"}},{"$f":"IF(ROWS($D$38:H67)=COLUMNS($D$38:H67),1,0-I36)","v":{"v":0,"d":"0.000"}},{"$f":"IF(ROWS($D$38:I67)=COLUMNS($D$38:I67),1,0-J36)","v":{"v":0,"d":"0.000"}},{"$f":"IF(ROWS($D$38:J67)=COLUMNS($D$38:J67),1,0-K36)","v":{"v":0,"d":"0.000"}},{"$f":"IF(ROWS($D$38:K67)=COLUMNS($D$38:K67),1,0-L36)","v":{"v":0,"d":"0.000"}},{"$f":"IF(ROWS($D$38:L67)=COLUMNS($D$38:L67),1,0-M36)","v":{"v":0,"d":"0.000"}},{"$f":"IF(ROWS($D$38:M67)=COLUMNS($D$38:M67),1,0-N36)","v":{"v":0,"d":"0.000"}},{"$f":"IF(ROWS($D$38:N67)=COLUMNS($D$38:N67),1,0-O36)","v":{"v":0,"d":"0.000"}},{"$f":"IF(ROWS($D$38:O67)=COLUMNS($D$38:O67),1,0-P36)","v":{"v":0,"d":"0.000"}},{"$f":"IF(ROWS($D$38:P67)=COLUMNS($D$38:P67),1,0-Q36)","v":{"v":0,"d":"0.000"}},{"$f":"IF(ROWS($D$38:Q67)=COLUMNS($D$38:Q67),1,0-R36)","v":{"v":0,"d":"0.000"}},{"$f":"IF(ROWS($D$38:R67)=COLUMNS($D$38:R67),1,0-S36)","v":{"v":0,"d":"0.000"}},{"$f":"IF(ROWS($D$38:S67)=COLUMNS($D$38:S67),1,0-T36)","v":{"v":0,"d":"0.000"}},{"$f":"IF(ROWS($D$38:T67)=COLUMNS($D$38:T67),1,0-U36)","v":{"v":0,"d":"0.000"}},{"$f":"IF(ROWS($D$38:U67)=COLUMNS($D$38:U67),1,0-V36)","v":{"v":0,"d":"0.000"}},{"$f":"IF(ROWS($D$38:V67)=COLUMNS($D$38:V67),1,0-W36)","v":{"v":0,"d":"0.000"}},{"$f":"IF(ROWS($D$38:W67)=COLUMNS($D$38:W67),1,0-X36)","v":{"v":0,"d":"0.000"}},{"$f":"IF(ROWS($D$38:X67)=COLUMNS($D$38:X67),1,0-Y36)","v":{"v":0,"d":"0.000"}},{"$f":"IF(ROWS($D$38:Y67)=COLUMNS($D$38:Y67),1,0-Z36)","v":{"v":0,"d":"0.000"}},{"$f":"IF(ROWS($D$38:Z67)=COLUMNS($D$38:Z67),1,0-AA36)","v":{"v":0,"d":"0.000"}},{"$f":"IF(ROWS($D$38:AA67)=COLUMNS($D$38:AA67),1,0-AB36)","v":{"v":0,"d":"0.000"}},{"$f":"IF(ROWS($D$38:AB67)=COLUMNS($D$38:AB67),1,0-AC36)","v":{"v":0,"d":"0.000"}},{"$f":"IF(ROWS($D$38:AC67)=COLUMNS($D$38:AC67),1,0-AD36)","v":{"v":0,"d":"0.000"}},{"$f":"IF(ROWS($D$38:AD67)=COLUMNS($D$38:AD67),1,0-AE36)","v":{"v":0,"d":"0.000"}},{"$f":"IF(ROWS($D$38:AE67)=COLUMNS($D$38:AE67),1,0-AF36)","v":{"v":0,"d":"0.000"}},{"$f":"IF(ROWS($D$38:AF67)=COLUMNS($D$38:AF67),1,0-AG36)","v":{"v":0,"d":"0.000"}},{"$f":"IF(ROWS($D$38:AG67)=COLUMNS($D$38:AG67),1,0-AH36)","v":{"v":1,"d":"1.000"}},{"$nulls":9},"CNTR_IOSupplyChain",{"$nulls":9},{"$f":"Translations!$B$553","v":"Purchased precursor"}]
[{"$nulls":4},"CNTR_Matrix_Inv",{"$nulls":38},{"$f":"E1","v":1},{"$f":"F1","v":2},3,4,5,6,7,8,9,10,11,12,13,14,15,16,17,18,19,20,21,22,23,24,25,26,27,28,29,30]
[{"$nulls":3},"CNTR_IOProcAndPrec",{"$f":"E6","v":""},"","","","","","","","","","","","","","","","","","","","","","","","","","","","","",null,{"$f":"Translations!$B$568","v":"SE (direct)"},{"$f":"Translations!$B$570","v":"SEE (direct)"},{"$f":"Translations!$B$572","v":"SE (indirect)"},{"$f":"Translations!$B$574","v":"SEE (indirect)"},{"$f":"Translations!$B$576","v":"Electricity consumed"},{"$f":"Translations!$B$480","v":"Embedded electricity"},null,"Used for numbering in summary sheet to display SEE along whole supply chain",{"$f":"E70","v":""},"","","","","","","","","","","","","","","","","","","","","","","","","","","","",""]
[null,"Good produced",1,{"$f":"D7","v":""},{"$f":"MINVERSE(E39:AH68)","v":{"v":1,"d":"1.000"}},{"v":0,"d":"0.000"},{"v":0,"d":"0.000"},{"v":0,"d":"0.000"},{"v":0,"d":"0.000"},{"v":0,"d":"0.000"},{"v":0,"d":"0.000"},{"v":0,"d":"0.000"},{"v":0,"d":"0.000"},{"v":0,"d":"0.000"},{"v":0,"d":"0.000"},{"v":0,"d":"0.000"},{"v":0,"d":"0.000"},{"v":0,"d":"0.000"},{"v":0,"d":"0.000"},{"v":0,"d":"0.000"},{"v":0,"d":"0.000"},{"v":0,"d":"0.000"},{"v":0,"d":"0.000"},{"v":0,"d":"0.000"},{"v":0,"d":"0.000"},{"v":0,"d":"0.000"},{"v":0,"d":"0.000"},{"v":0,"d":"0.000"},{"v":0,"d":"0.000"},{"v":0,"d":"0.000"},{"v":0,"d":"0.000"},{"v":0,"d":"0.000"},{"v":0,"d":"0.000"},{"v":0,"d":"0.000"},null,{"$f":"IFERROR(SUMIF(D_Processes!S:S,CONST_CNTR_EmbedEmDir&D71,D_Processes!T:T)/SUMIF(D_Processes!R:R,CONST_CNTR_TotProd&D71,D_Processes!T:T),0)","v":{"v":0,"d":"0.000"}},{"$f":"MMULT(E71:AH100,AJ71:AJ100)","v":{"v":0,"d":"0.0000"}},{"$f":"IFERROR(SUMIF(D_Processes!S:S,CONST_CNTR_EmbedEmInDir&D71,D_Processes!T:T)/SUMIF(D_Processes!R:R,CONST_CNTR_TotProd&D71,D_Processes!T:T),0)","v":{"v":0,"d":"0.0000"}},{"$f":"MMULT(E71:AH100,AL71:AL100)","v":{"v":0,"d":"0.0000"}},{"$f":"IFERROR(SUMIF(D_Processes!R:R,CONST_ElecConsumption&D71,D_Processes!T:T)/SUMIF(D_Processes!R:R,CONST_CNTR_TotProd&D71,D_Processes!T:T),0)","v":{"v":0,"d":"0.0000"}},{"$f":"MMULT(E71:AH100,AN71:AN100)","v":{"v":0,"d":"0.0000"}},null,null,{"$f":"IF(AND(E71>0,ROWS($D$70:D70)<>COLUMNS($D$70:D70)),MAX($AQ71:AQ71)+1,\"\")","v":""},{"$f":"IF(AND(F71>0,ROWS($D$70:E70)<>COLUMNS($D$70:E70)),MAX($AQ71:AR71)+1,\"\")","v":""},{"$f":"IF(AND(G71>0,ROWS($D$70:F70)<>COLUMNS($D$70:F70)),MAX($AQ71:AS71)+1,\"\")","v":""},{"$f":"IF(AND(H71>0,ROWS($D$70:G70)<>COLUMNS($D$70:G70)),MAX($AQ71:AT71)+1,\"\")","v":""},{"$f":"IF(AND(I71>0,ROWS($D$70:H70)<>COLUMNS($D$70:H70)),MAX($AQ71:AU71)+1,\"\")","v":""},{"$f":"IF(AND(J71>0,ROWS($D$70:I70)<>COLUMNS($D$70:I70)),MAX($AQ71:AV71)+1,\"\")","v":""},{"$f":"IF(AND(K71>0,ROWS($D$70:J70)<>COLUMNS($D$70:J70)),MAX($AQ71:AW71)+1,\"\")","v":""},{"$f":"IF(AND(L71>0,ROWS($D$70:K70)<>COLUMNS($D$70:K70)),MAX($AQ71:AX71)+1,\"\")","v":""},{"$f":"IF(AND(M71>0,ROWS($D$70:L70)<>COLUMNS($D$70:L70)),MAX($AQ71:AY71)+1,\"\")","v":""},{"$f":"IF(AND(N71>0,ROWS($D$70:M70)<>COLUMNS($D$70:M70)),MAX($AQ71:AZ71)+1,\"\")","v":""},{"$f":"IF(AND(O71>0,ROWS($D$70:N70)<>COLUMNS($D$70:N70)),MAX($AQ71:BA71)+1,\"\")","v":""},{"$f":"IF(AND(P71>0,ROWS($D$70:O70)<>COLUMNS($D$70:O70)),MAX($AQ71:BB71)+1,\"\")","v":""},{"$f":"IF(AND(Q71>0,ROWS($D$70:P70)<>COLUMNS($D$70:P70)),MAX($AQ71:BC71)+1,\"\")","v":""},{"$f":"IF(AND(R71>0,ROWS($D$70:Q70)<>COLUMNS($D$70:Q70)),MAX($AQ71:BD71)+1,\"\")","v":""},{"$f":"IF(AND(S71>0,ROWS($D$70:R70)<>COLUMNS($D$70:R70)),MAX($AQ71:BE71)+1,\"\")","v":""},{"$f":"IF(AND(T71>0,ROWS($D$70:S70)<>COLUMNS($D$70:S70)),MAX($AQ71:BF71)+1,\"\")","v":""},{"$f":"IF(AND(U71>0,ROWS($D$70:T70)<>COLUMNS($D$70:T70)),MAX($AQ71:BG71)+1,\"\")","v":""},{"$f":"IF(AND(V71>0,ROWS($D$70:U70)<>COLUMNS($D$70:U70)),MAX($AQ71:BH71)+1,\"\")","v":""},{"$f":"IF(AND(W71>0,ROWS($D$70:V70)<>COLUMNS($D$70:V70)),MAX($AQ71:BI71)+1,\"\")","v":""},{"$f":"IF(AND(X71>0,ROWS($D$70:W70)<>COLUMNS($D$70:W70)),MAX($AQ71:BJ71)+1,\"\")","v":""},{"$f":"IF(AND(Y71>0,ROWS($D$70:X70)<>COLUMNS($D$70:X70)),MAX($AQ71:BK71)+1,\"\")","v":""},{"$f":"IF(AND(Z71>0,ROWS($D$70:Y70)<>COLUMNS($D$70:Y70)),MAX($AQ71:BL71)+1,\"\")","v":""},{"$f":"IF(AND(AA71>0,ROWS($D$70:Z70)<>COLUMNS($D$70:Z70)),MAX($AQ71:BM71)+1,\"\")","v":""},{"$f":"IF(AND(AB71>0,ROWS($D$70:AA70)<>COLUMNS($D$70:AA70)),MAX($AQ71:BN71)+1,\"\")","v":""},{"$f":"IF(AND(AC71>0,ROWS($D$70:AB70)<>COLUMNS($D$70:AB70)),MAX($AQ71:BO71)+1,\"\")","v":""},{"$f":"IF(AND(AD71>0,ROWS($D$70:AC70)<>COLUMNS($D$70:AC70)),MAX($AQ71:BP71)+1,\"\")","v":""},{"$f":"IF(AND(AE71>0,ROWS($D$70:AD70)<>COLUMNS($D$70:AD70)),MAX($AQ71:BQ71)+1,\"\")","v":""},{"$f":"IF(AND(AF71>0,ROWS($D$70:AE70)<>COLUMNS($D$70:AE70)),MAX($AQ71:BR71)+1,\"\")","v":""},{"$f":"IF(AND(AG71>0,ROWS($D$70:AF70)<>COLUMNS($D$70:AF70)),MAX($AQ71:BS71)+1,\"\")","v":""},{"$f":"IF(AND(AH71>0,ROWS($D$70:AG70)<>COLUMNS($D$70:AG70)),MAX($AQ71:BT71)+1,\"\")","v":""}]
[null,null,2,"",{"v":0,"d":"0.000"},{"v":1,"d":"1.000"},{"v":0,"d":"0.000"},{"v":0,"d":"0.000"},{"v":0,"d":"0.000"},{"v":0,"d":"0.000"},{"v":0,"d":"0.000"},{"v":0,"d":"0.000"},{"v":0,"d":"0.000"},{"v":0,"d":"0.000"},{"v":0,"d":"0.000"},{"v":0,"d":"0.000"},{"v":0,"d":"0.000"},{"v":0,"d":"0.000"},{"v":0,"d":"0.000"},{"v":0,"d":"0.000"},{"v":0,"d":"0.000"},{"v":0,"d":"0.000"},{"v":0,"d":"0.000"},{"v":0,"d":"0.000"},{"v":0,"d":"0.000"},{"v":0,"d":"0.000"},{"v":0,"d":"0.000"},{"v":0,"d":"0.000"},{"v":0,"d":"0.000"},{"v":0,"d":"0.000"},{"v":0,"d":"0.000"},{"v":0,"d":"0.000"},{"v":0,"d":"0.000"},{"v":0,"d":"0.000"},null,{"$f":"IFERROR(SUMIF(D_Processes!S:S,CONST_CNTR_EmbedEmDir&D72,D_Processes!T:T)/SUMIF(D_Processes!R:R,CONST_CNTR_TotProd&D72,D_Processes!T:T),0)","v":{"v":0,"d":"0.000"}},{"v":0,"d":"0.0000"},{"$f":"IFERROR(SUMIF(D_Processes!S:S,CONST_CNTR_EmbedEmInDir&D72,D_Processes!T:T)/SUMIF(D_Processes!R:R,CONST_CNTR_TotProd&D72,D_Processes!T:T),0)","v":{"v":0,"d":"0.0000"}},{"v":0,"d":"0.0000"},{"$f":"IFERROR(SUMIF(D_Processes!R:R,CONST_ElecConsumption&D72,D_Processes!T:T)/SUMIF(D_Processes!R:R,CONST_CNTR_TotProd&D72,D_Processes!T:T),0)","v":{"v":0,"d":"0.0000"}},{"v":0,"d":"0.0000"},null,null,{"$f":"IF(AND(E72>0,ROWS($D$70:D71)<>COLUMNS($D$70:D71)),MAX($AQ72:AQ72)+1,\"\")","v":""},{"$f":"IF(AND(F72>0,ROWS($D$70:E71)<>COLUMNS($D$70:E71)),MAX($AQ72:AR72)+1,\"\")","v":""},{"$f":"IF(AND(G72>0,ROWS($D$70:F71)<>COLUMNS($D$70:F71)),MAX($AQ72:AS72)+1,\"\")","v":""},{"$f":"IF(AND(H72>0,ROWS($D$70:G71)<>COLUMNS($D$70:G71)),MAX($AQ72:AT72)+1,\"\")","v":""},{"$f":"IF(AND(I72>0,ROWS($D$70:H71)<>COLUMNS($D$70:H71)),MAX($AQ72:AU72)+1,\"\")","v":""},{"$f":"IF(AND(J72>0,ROWS($D$70:I71)<>COLUMNS($D$70:I71)),MAX($AQ72:AV72)+1,\"\")","v":""},{"$f":"IF(AND(K72>0,ROWS($D$70:J71)<>COLUMNS($D$70:J71)),MAX($AQ72:AW72)+1,\"\")","v":""},{"$f":"IF(AND(L72>0,ROWS($D$70:K71)<>COLUMNS($D$70:K71)),MAX($AQ72:AX72)+1,\"\")","v":""},{"$f":"IF(AND(M72>0,ROWS($D$70:L71)<>COLUMNS($D$70:L71)),MAX($AQ72:AY72)+1,\"\")","v":""},{"$f":"IF(AND(N72>0,ROWS($D$70:M71)<>COLUMNS($D$70:M71)),MAX($AQ72:AZ72)+1,\"\")","v":""},{"$f":"IF(AND(O72>0,ROWS($D$70:N71)<>COLUMNS($D$70:N71)),MAX($AQ72:BA72)+1,\"\")","v":""},{"$f":"IF(AND(P72>0,ROWS($D$70:O71)<>COLUMNS($D$70:O71)),MAX($AQ72:BB72)+1,\"\")","v":""},{"$f":"IF(AND(Q72>0,ROWS($D$70:P71)<>COLUMNS($D$70:P71)),MAX($AQ72:BC72)+1,\"\")","v":""},{"$f":"IF(AND(R72>0,ROWS($D$70:Q71)<>COLUMNS($D$70:Q71)),MAX($AQ72:BD72)+1,\"\")","v":""},{"$f":"IF(AND(S72>0,ROWS($D$70:R71)<>COLUMNS($D$70:R71)),MAX($AQ72:BE72)+1,\"\")","v":""},{"$f":"IF(AND(T72>0,ROWS($D$70:S71)<>COLUMNS($D$70:S71)),MAX($AQ72:BF72)+1,\"\")","v":""},{"$f":"IF(AND(U72>0,ROWS($D$70:T71)<>COLUMNS($D$70:T71)),MAX($AQ72:BG72)+1,\"\")","v":""},{"$f":"IF(AND(V72>0,ROWS($D$70:U71)<>COLUMNS($D$70:U71)),MAX($AQ72:BH72)+1,\"\")","v":""},{"$f":"IF(AND(W72>0,ROWS($D$70:V71)<>COLUMNS($D$70:V71)),MAX($AQ72:BI72)+1,\"\")","v":""},{"$f":"IF(AND(X72>0,ROWS($D$70:W71)<>COLUMNS($D$70:W71)),MAX($AQ72:BJ72)+1,\"\")","v":""},{"$f":"IF(AND(Y72>0,ROWS($D$70:X71)<>COLUMNS($D$70:X71)),MAX($AQ72:BK72)+1,\"\")","v":""},{"$f":"IF(AND(Z72>0,ROWS($D$70:Y71)<>COLUMNS($D$70:Y71)),MAX($AQ72:BL72)+1,\"\")","v":""},{"$f":"IF(AND(AA72>0,ROWS($D$70:Z71)<>COLUMNS($D$70:Z71)),MAX($AQ72:BM72)+1,\"\")","v":""},{"$f":"IF(AND(AB72>0,ROWS($D$70:AA71)<>COLUMNS($D$70:AA71)),MAX($AQ72:BN72)+1,\"\")","v":""},{"$f":"IF(AND(AC72>0,ROWS($D$70:AB71)<>COLUMNS($D$70:AB71)),MAX($AQ72:BO72)+1,\"\")","v":""},{"$f":"IF(AND(AD72>0,ROWS($D$70:AC71)<>COLUMNS($D$70:AC71)),MAX($AQ72:BP72)+1,\"\")","v":""},{"$f":"IF(AND(AE72>0,ROWS($D$70:AD71)<>COLUMNS($D$70:AD71)),MAX($AQ72:BQ72)+1,\"\")","v":""},{"$f":"IF(AND(AF72>0,ROWS($D$70:AE71)<>COLUMNS($D$70:AE71)),MAX($AQ72:BR72)+1,\"\")","v":""},{"$f":"IF(AND(AG72>0,ROWS($D$70:AF71)<>COLUMNS($D$70:AF71)),MAX($AQ72:BS72)+1,\"\")","v":""},{"$f":"IF(AND(AH72>0,ROWS($D$70:AG71)<>COLUMNS($D$70:AG71)),MAX($AQ72:BT72)+1,\"\")","v":""}]
[null,null,3,"",{"v":0,"d":"0.000"},{"v":0,"d":"0.000"},{"v":1,"d":"1.000"},{"v":0,"d":"0.000"},{"v":0,"d":"0.000"},{"v":0,"d":"0.000"},{"v":0,"d":"0.000"},{"v":0,"d":"0.000"},{"v":0,"d":"0.000"},{"v":0,"d":"0.000"},{"v":0,"d":"0.000"},{"v":0,"d":"0.000"},{"v":0,"d":"0.000"},{"v":0,"d":"0.000"},{"v":0,"d":"0.000"},{"v":0,"d":"0.000"},{"v":0,"d":"0.000"},{"v":0,"d":"0.000"},{"v":0,"d":"0.000"},{"v":0,"d":"0.000"},{"v":0,"d":"0.000"},{"v":0,"d":"0.000"},{"v":0,"d":"0.000"},{"v":0,"d":"0.000"},{"v":0,"d":"0.000"},{"v":0,"d":"0.000"},{"v":0,"d":"0.000"},{"v":0,"d":"0.000"},{"v":0,"d":"0.000"},{"v":0,"d":"0.000"},null,{"$f":"IFERROR(SUMIF(D_Processes!S:S,CONST_CNTR_EmbedEmDir&D73,D_Processes!T:T)/SUMIF(D_Processes!R:R,CONST_CNTR_TotProd&D73,D_Processes!T:T),0)","v":{"v":0,"d":"0.000"}},{"v":0,"d":"0.0000"},{"$f":"IFERROR(SUMIF(D_Processes!S:S,CONST_CNTR_EmbedEmInDir&D73,D_Processes!T:T)/SUMIF(D_Processes!R:R,CONST_CNTR_TotProd&D73,D_Processes!T:T),0)","v":{"v":0,"d":"0.0000"}},{"v":0,"d":"0.0000"},{"$f":"IFERROR(SUMIF(D_Processes!R:R,CONST_ElecConsumption&D73,D_Processes!T:T)/SUMIF(D_Processes!R:R,CONST_CNTR_TotProd&D73,D_Processes!T:T),0)","v":{"v":0,"d":"0.0000"}},{"v":0,"d":"0.0000"},null,null,{"$f":"IF(AND(E73>0,ROWS($D$70:D72)<>COLUMNS($D$70:D72)),MAX($AQ73:AQ73)+1,\"\")","v":""},{"$f":"IF(AND(F73>0,ROWS($D$70:E72)<>COLUMNS($D$70:E72)),MAX($AQ73:AR73)+1,\"\")","v":""},{"$f":"IF(AND(G73>0,ROWS($D$70:F72)<>COLUMNS($D$70:F72)),MAX($AQ73:AS73)+1,\"\")","v":""},{"$f":"IF(AND(H73>0,ROWS($D$70:G72)<>COLUMNS($D$70:G72)),MAX($AQ73:AT73)+1,\"\")","v":""},{"$f":"IF(AND(I73>0,ROWS($D$70:H72)<>COLUMNS($D$70:H72)),MAX($AQ73:AU73)+1,\"\")","v":""},{"$f":"IF(AND(J73>0,ROWS($D$70:I72)<>COLUMNS($D$70:I72)),MAX($AQ73:AV73)+1,\"\")","v":""},{"$f":"IF(AND(K73>0,ROWS($D$70:J72)<>COLUMNS($D$70:J72)),MAX($AQ73:AW73)+1,\"\")","v":""},{"$f":"IF(AND(L73>0,ROWS($D$70:K72)<>COLUMNS($D$70:K72)),MAX($AQ73:AX73)+1,\"\")","v":""},{"$f":"IF(AND(M73>0,ROWS($D$70:L72)<>COLUMNS($D$70:L72)),MAX($AQ73:AY73)+1,\"\")","v":""},{"$f":"IF(AND(N73>0,ROWS($D$70:M72)<>COLUMNS($D$70:M72)),MAX($AQ73:AZ73)+1,\"\")","v":""},{"$f":"IF(AND(O73>0,ROWS($D$70:N72)<>COLUMNS($D$70:N72)),MAX($AQ73:BA73)+1,\"\")","v":""},{"$f":"IF(AND(P73>0,ROWS($D$70:O72)<>COLUMNS($D$70:O72)),MAX($AQ73:BB73)+1,\"\")","v":""},{"$f":"IF(AND(Q73>0,ROWS($D$70:P72)<>COLUMNS($D$70:P72)),MAX($AQ73:BC73)+1,\"\")","v":""},{"$f":"IF(AND(R73>0,ROWS($D$70:Q72)<>COLUMNS($D$70:Q72)),MAX($AQ73:BD73)+1,\"\")","v":""},{"$f":"IF(AND(S73>0,ROWS($D$70:R72)<>COLUMNS($D$70:R72)),MAX($AQ73:BE73)+1,\"\")","v":""},{"$f":"IF(AND(T73>0,ROWS($D$70:S72)<>COLUMNS($D$70:S72)),MAX($AQ73:BF73)+1,\"\")","v":""},{"$f":"IF(AND(U73>0,ROWS($D$70:T72)<>COLUMNS($D$70:T72)),MAX($AQ73:BG73)+1,\"\")","v":""},{"$f":"IF(AND(V73>0,ROWS($D$70:U72)<>COLUMNS($D$70:U72)),MAX($AQ73:BH73)+1,\"\")","v":""},{"$f":"IF(AND(W73>0,ROWS($D$70:V72)<>COLUMNS($D$70:V72)),MAX($AQ73:BI73)+1,\"\")","v":""},{"$f":"IF(AND(X73>0,ROWS($D$70:W72)<>COLUMNS($D$70:W72)),MAX($AQ73:BJ73)+1,\"\")","v":""},{"$f":"IF(AND(Y73>0,ROWS($D$70:X72)<>COLUMNS($D$70:X72)),MAX($AQ73:BK73)+1,\"\")","v":""},{"$f":"IF(AND(Z73>0,ROWS($D$70:Y72)<>COLUMNS($D$70:Y72)),MAX($AQ73:BL73)+1,\"\")","v":""},{"$f":"IF(AND(AA73>0,ROWS($D$70:Z72)<>COLUMNS($D$70:Z72)),MAX($AQ73:BM73)+1,\"\")","v":""},{"$f":"IF(AND(AB73>0,ROWS($D$70:AA72)<>COLUMNS($D$70:AA72)),MAX($AQ73:BN73)+1,\"\")","v":""},{"$f":"IF(AND(AC73>0,ROWS($D$70:AB72)<>COLUMNS($D$70:AB72)),MAX($AQ73:BO73)+1,\"\")","v":""},{"$f":"IF(AND(AD73>0,ROWS($D$70:AC72)<>COLUMNS($D$70:AC72)),MAX($AQ73:BP73)+1,\"\")","v":""},{"$f":"IF(AND(AE73>0,ROWS($D$70:AD72)<>COLUMNS($D$70:AD72)),MAX($AQ73:BQ73)+1,\"\")","v":""},{"$f":"IF(AND(AF73>0,ROWS($D$70:AE72)<>COLUMNS($D$70:AE72)),MAX($AQ73:BR73)+1,\"\")","v":""},{"$f":"IF(AND(AG73>0,ROWS($D$70:AF72)<>COLUMNS($D$70:AF72)),MAX($AQ73:BS73)+1,\"\")","v":""},{"$f":"IF(AND(AH73>0,ROWS($D$70:AG72)<>COLUMNS($D$70:AG72)),MAX($AQ73:BT73)+1,\"\")","v":""}]
[null,null,4,"",{"v":0,"d":"0.000"},{"v":0,"d":"0.000"},{"v":0,"d":"0.000"},{"v":1,"d":"1.000"},{"v":0,"d":"0.000"},{"v":0,"d":"0.000"},{"v":0,"d":"0.000"},{"v":0,"d":"0.000"},{"v":0,"d":"0.000"},{"v":0,"d":"0.000"},{"v":0,"d":"0.000"},{"v":0,"d":"0.000"},{"v":0,"d":"0.000"},{"v":0,"d":"0.000"},{"v":0,"d":"0.000"},{"v":0,"d":"0.000"},{"v":0,"d":"0.000"},{"v":0,"d":"0.000"},{"v":0,"d":"0.000"},{"v":0,"d":"0.000"},{"v":0,"d":"0.000"},{"v":0,"d":"0.000"},{"v":0,"d":"0.000"},{"v":0,"d":"0.000"},{"v":0,"d":"0.000"},{"v":0,"d":"0.000"},{"v":0,"d":"0.000"},{"v":0,"d":"0.000"},{"v":0,"d":"0.000"},{"v":0,"d":"0.000"},null,{"$f":"IFERROR(SUMIF(D_Processes!S:S,CONST_CNTR_EmbedEmDir&D74,D_Processes!T:T)/SUMIF(D_Processes!R:R,CONST_CNTR_TotProd&D74,D_Processes!T:T),0)","v":{"v":0,"d":"0.000"}},{"v":0,"d":"0.0000"},{"$f":"IFERROR(SUMIF(D_Processes!S:S,CONST_CNTR_EmbedEmInDir&D74,D_Processes!T:T)/SUMIF(D_Processes!R:R,CONST_CNTR_TotProd&D74,D_Processes!T:T),0)","v":{"v":0,"d":"0.0000"}},{"v":0,"d":"0.0000"},{"$f":"IFERROR(SUMIF(D_Processes!R:R,CONST_ElecConsumption&D74,D_Processes!T:T)/SUMIF(D_Processes!R:R,CONST_CNTR_TotProd&D74,D_Processes!T:T),0)","v":{"v":0,"d":"0.0000"}},{"v":0,"d":"0.0000"},null,null,{"$f":"IF(AND(E74>0,ROWS($D$70:D73)<>COLUMNS($D$70:D73)),MAX($AQ74:AQ74)+1,\"\")","v":""},{"$f":"IF(AND(F74>0,ROWS($D$70:E73)<>COLUMNS($D$70:E73)),MAX($AQ74:AR74)+1,\"\")","v":""},{"$f":"IF(AND(G74>0,ROWS($D$70:F73)<>COLUMNS($D$70:F73)),MAX($AQ74:AS74)+1,\"\")","v":""},{"$f":"IF(AND(H74>0,ROWS($D$70:G73)<>COLUMNS($D$70:G73)),MAX($AQ74:AT74)+1,\"\")","v":""},{"$f":"IF(AND(I74>0,ROWS($D$70:H73)<>COLUMNS($D$70:H73)),MAX($AQ74:AU74)+1,\"\")","v":""},{"$f":"IF(AND(J74>0,ROWS($D$70:I73)<>COLUMNS($D$70:I73)),MAX($AQ74:AV74)+1,\"\")","v":""},{"$f":"IF(AND(K74>0,ROWS($D$70:J73)<>COLUMNS($D$70:J73)),MAX($AQ74:AW74)+1,\"\")","v":""},{"$f":"IF(AND(L74>0,ROWS($D$70:K73)<>COLUMNS($D$70:K73)),MAX($AQ74:AX74)+1,\"\")","v":""},{"$f":"IF(AND(M74>0,ROWS($D$70:L73)<>COLUMNS($D$70:L73)),MAX($AQ74:AY74)+1,\"\")","v":""},{"$f":"IF(AND(N74>0,ROWS($D$70:M73)<>COLUMNS($D$70:M73)),MAX($AQ74:AZ74)+1,\"\")","v":""},{"$f":"IF(AND(O74>0,ROWS($D$70:N73)<>COLUMNS($D$70:N73)),MAX($AQ74:BA74)+1,\"\")","v":""},{"$f":"IF(AND(P74>0,ROWS($D$70:O73)<>COLUMNS($D$70:O73)),MAX($AQ74:BB74)+1,\"\")","v":""},{"$f":"IF(AND(Q74>0,ROWS($D$70:P73)<>COLUMNS($D$70:P73)),MAX($AQ74:BC74)+1,\"\")","v":""},{"$f":"IF(AND(R74>0,ROWS($D$70:Q73)<>COLUMNS($D$70:Q73)),MAX($AQ74:BD74)+1,\"\")","v":""},{"$f":"IF(AND(S74>0,ROWS($D$70:R73)<>COLUMNS($D$70:R73)),MAX($AQ74:BE74)+1,\"\")","v":""},{"$f":"IF(AND(T74>0,ROWS($D$70:S73)<>COLUMNS($D$70:S73)),MAX($AQ74:BF74)+1,\"\")","v":""},{"$f":"IF(AND(U74>0,ROWS($D$70:T73)<>COLUMNS($D$70:T73)),MAX($AQ74:BG74)+1,\"\")","v":""},{"$f":"IF(AND(V74>0,ROWS($D$70:U73)<>COLUMNS($D$70:U73)),MAX($AQ74:BH74)+1,\"\")","v":""},{"$f":"IF(AND(W74>0,ROWS($D$70:V73)<>COLUMNS($D$70:V73)),MAX($AQ74:BI74)+1,\"\")","v":""},{"$f":"IF(AND(X74>0,ROWS($D$70:W73)<>COLUMNS($D$70:W73)),MAX($AQ74:BJ74)+1,\"\")","v":""},{"$f":"IF(AND(Y74>0,ROWS($D$70:X73)<>COLUMNS($D$70:X73)),MAX($AQ74:BK74)+1,\"\")","v":""},{"$f":"IF(AND(Z74>0,ROWS($D$70:Y73)<>COLUMNS($D$70:Y73)),MAX($AQ74:BL74)+1,\"\")","v":""},{"$f":"IF(AND(AA74>0,ROWS($D$70:Z73)<>COLUMNS($D$70:Z73)),MAX($AQ74:BM74)+1,\"\")","v":""},{"$f":"IF(AND(AB74>0,ROWS($D$70:AA73)<>COLUMNS($D$70:AA73)),MAX($AQ74:BN74)+1,\"\")","v":""},{"$f":"IF(AND(AC74>0,ROWS($D$70:AB73)<>COLUMNS($D$70:AB73)),MAX($AQ74:BO74)+1,\"\")","v":""},{"$f":"IF(AND(AD74>0,ROWS($D$70:AC73)<>COLUMNS($D$70:AC73)),MAX($AQ74:BP74)+1,\"\")","v":""},{"$f":"IF(AND(AE74>0,ROWS($D$70:AD73)<>COLUMNS($D$70:AD73)),MAX($AQ74:BQ74)+1,\"\")","v":""},{"$f":"IF(AND(AF74>0,ROWS($D$70:AE73)<>COLUMNS($D$70:AE73)),MAX($AQ74:BR74)+1,\"\")","v":""},{"$f":"IF(AND(AG74>0,ROWS($D$70:AF73)<>COLUMNS($D$70:AF73)),MAX($AQ74:BS74)+1,\"\")","v":""},{"$f":"IF(AND(AH74>0,ROWS($D$70:AG73)<>COLUMNS($D$70:AG73)),MAX($AQ74:BT74)+1,\"\")","v":""}]
[null,null,5,"",{"v":0,"d":"0.000"},{"v":0,"d":"0.000"},{"v":0,"d":"0.000"},{"v":0,"d":"0.000"},{"v":1,"d":"1.000"},{"v":0,"d":"0.000"},{"v":0,"d":"0.000"},{"v":0,"d":"0.000"},{"v":0,"d":"0.000"},{"v":0,"d":"0.000"},{"v":0,"d":"0.000"},{"v":0,"d":"0.000"},{"v":0,"d":"0.000"},{"v":0,"d":"0.000"},{"v":0,"d":"0.000"},{"v":0,"d":"0.000"},{"v":0,"d":"0.000"},{"v":0,"d":"0.000"},{"v":0,"d":"0.000"},{"v":0,"d":"0.000"},{"v":0,"d":"0.000"},{"v":0,"d":"0.000"},{"v":0,"d":"0.000"},{"v":0,"d":"0.000"},{"v":0,"d":"0.000"},{"v":0,"d":"0.000"},{"v":0,"d":"0.000"},{"v":0,"d":"0.000"},{"v":0,"d":"0.000"},{"v":0,"d":"0.000"},null,{"$f":"IFERROR(SUMIF(D_Processes!S:S,CONST_CNTR_EmbedEmDir&D75,D_Processes!T:T)/SUMIF(D_Processes!R:R,CONST_CNTR_TotProd&D75,D_Processes!T:T),0)","v":{"v":0,"d":"0.000"}},{"v":0,"d":"0.0000"},{"$f":"IFERROR(SUMIF(D_Processes!S:S,CONST_CNTR_EmbedEmInDir&D75,D_Processes!T:T)/SUMIF(D_Processes!R:R,CONST_CNTR_TotProd&D75,D_Processes!T:T),0)","v":{"v":0,"d":"0.0000"}},{"v":0,"d":"0.0000"},{"$f":"IFERROR(SUMIF(D_Processes!R:R,CONST_ElecConsumption&D75,D_Processes!T:T)/SUMIF(D_Processes!R:R,CONST_CNTR_TotProd&D75,D_Processes!T:T),0)","v":{"v":0,"d":"0.0000"}},{"v":0,"d":"0.0000"},null,null,{"$f":"IF(AND(E75>0,ROWS($D$70:D74)<>COLUMNS($D$70:D74)),MAX($AQ75:AQ75)+1,\"\")","v":""},{"$f":"IF(AND(F75>0,ROWS($D$70:E74)<>COLUMNS($D$70:E74)),MAX($AQ75:AR75)+1,\"\")","v":""},{"$f":"IF(AND(G75>0,ROWS($D$70:F74)<>COLUMNS($D$70:F74)),MAX($AQ75:AS75)+1,\"\")","v":""},{"$f":"IF(AND(H75>0,ROWS($D$70:G74)<>COLUMNS($D$70:G74)),MAX($AQ75:AT75)+1,\"\")","v":""},{"$f":"IF(AND(I75>0,ROWS($D$70:H74)<>COLUMNS($D$70:H74)),MAX($AQ75:AU75)+1,\"\")","v":""},{"$f":"IF(AND(J75>0,ROWS($D$70:I74)<>COLUMNS($D$70:I74)),MAX($AQ75:AV75)+1,\"\")","v":""},{"$f":"IF(AND(K75>0,ROWS($D$70:J74)<>COLUMNS($D$70:J74)),MAX($AQ75:AW75)+1,\"\")","v":""},{"$f":"IF(AND(L75>0,ROWS($D$70:K74)<>COLUMNS($D$70:K74)),MAX($AQ75:AX75)+1,\"\")","v":""},{"$f":"IF(AND(M75>0,ROWS($D$70:L74)<>COLUMNS($D$70:L74)),MAX($AQ75:AY75)+1,\"\")","v":""},{"$f":"IF(AND(N75>0,ROWS($D$70:M74)<>COLUMNS($D$70:M74)),MAX($AQ75:AZ75)+1,\"\")","v":""},{"$f":"IF(AND(O75>0,ROWS($D$70:N74)<>COLUMNS($D$70:N74)),MAX($AQ75:BA75)+1,\"\")","v":""},{"$f":"IF(AND(P75>0,ROWS($D$70:O74)<>COLUMNS($D$70:O74)),MAX($AQ75:BB75)+1,\"\")","v":""},{"$f":"IF(AND(Q75>0,ROWS($D$70:P74)<>COLUMNS($D$70:P74)),MAX($AQ75:BC75)+1,\"\")","v":""},{"$f":"IF(AND(R75>0,ROWS($D$70:Q74)<>COLUMNS($D$70:Q74)),MAX($AQ75:BD75)+1,\"\")","v":""},{"$f":"IF(AND(S75>0,ROWS($D$70:R74)<>COLUMNS($D$70:R74)),MAX($AQ75:BE75)+1,\"\")","v":""},{"$f":"IF(AND(T75>0,ROWS($D$70:S74)<>COLUMNS($D$70:S74)),MAX($AQ75:BF75)+1,\"\")","v":""},{"$f":"IF(AND(U75>0,ROWS($D$70:T74)<>COLUMNS($D$70:T74)),MAX($AQ75:BG75)+1,\"\")","v":""},{"$f":"IF(AND(V75>0,ROWS($D$70:U74)<>COLUMNS($D$70:U74)),MAX($AQ75:BH75)+1,\"\")","v":""},{"$f":"IF(AND(W75>0,ROWS($D$70:V74)<>COLUMNS($D$70:V74)),MAX($AQ75:BI75)+1,\"\")","v":""},{"$f":"IF(AND(X75>0,ROWS($D$70:W74)<>COLUMNS($D$70:W74)),MAX($AQ75:BJ75)+1,\"\")","v":""},{"$f":"IF(AND(Y75>0,ROWS($D$70:X74)<>COLUMNS($D$70:X74)),MAX($AQ75:BK75)+1,\"\")","v":""},{"$f":"IF(AND(Z75>0,ROWS($D$70:Y74)<>COLUMNS($D$70:Y74)),MAX($AQ75:BL75)+1,\"\")","v":""},{"$f":"IF(AND(AA75>0,ROWS($D$70:Z74)<>COLUMNS($D$70:Z74)),MAX($AQ75:BM75)+1,\"\")","v":""},{"$f":"IF(AND(AB75>0,ROWS($D$70:AA74)<>COLUMNS($D$70:AA74)),MAX($AQ75:BN75)+1,\"\")","v":""},{"$f":"IF(AND(AC75>0,ROWS($D$70:AB74)<>COLUMNS($D$70:AB74)),MAX($AQ75:BO75)+1,\"\")","v":""},{"$f":"IF(AND(AD75>0,ROWS($D$70:AC74)<>COLUMNS($D$70:AC74)),MAX($AQ75:BP75)+1,\"\")","v":""},{"$f":"IF(AND(AE75>0,ROWS($D$70:AD74)<>COLUMNS($D$70:AD74)),MAX($AQ75:BQ75)+1,\"\")","v":""},{"$f":"IF(AND(AF75>0,ROWS($D$70:AE74)<>COLUMNS($D$70:AE74)),MAX($AQ75:BR75)+1,\"\")","v":""},{"$f":"IF(AND(AG75>0,ROWS($D$70:AF74)<>COLUMNS($D$70:AF74)),MAX($AQ75:BS75)+1,\"\")","v":""},{"$f":"IF(AND(AH75>0,ROWS($D$70:AG74)<>COLUMNS($D$70:AG74)),MAX($AQ75:BT75)+1,\"\")","v":""}]
[null,null,6,"",{"v":0,"d":"0.000"},{"v":0,"d":"0.000"},{"v":0,"d":"0.000"},{"v":0,"d":"0.000"},{"v":0,"d":"0.000"},{"v":1,"d":"1.000"},{"v":0,"d":"0.000"},{"v":0,"d":"0.000"},{"v":0,"d":"0.000"},{"v":0,"d":"0.000"},{"v":0,"d":"0.000"},{"v":0,"d":"0.000"},{"v":0,"d":"0.000"},{"v":0,"d":"0.000"},{"v":0,"d":"0.000"},{"v":0,"d":"0.000"},{"v":0,"d":"0.000"},{"v":0,"d":"0.000"},{"v":0,"d":"0.000"},{"v":0,"d":"0.000"},{"v":0,"d":"0.000"},{"v":0,"d":"0.000"},{"v":0,"d":"0.000"},{"v":0,"d":"0.000"},{"v":0,"d":"0.000"},{"v":0,"d":"0.000"},{"v":0,"d":"0.000"},{"v":0,"d":"0.000"},{"v":0,"d":"0.000"},{"v":0,"d":"0.000"},null,{"$f":"IFERROR(SUMIF(D_Processes!S:S,CONST_CNTR_EmbedEmDir&D76,D_Processes!T:T)/SUMIF(D_Processes!R:R,CONST_CNTR_TotProd&D76,D_Processes!T:T),0)","v":{"v":0,"d":"0.000"}},{"v":0,"d":"0.0000"},{"$f":"IFERROR(SUMIF(D_Processes!S:S,CONST_CNTR_EmbedEmInDir&D76,D_Processes!T:T)/SUMIF(D_Processes!R:R,CONST_CNTR_TotProd&D76,D_Processes!T:T),0)","v":{"v":0,"d":"0.0000"}},{"v":0,"d":"0.0000"},{"$f":"IFERROR(SUMIF(D_Processes!R:R,CONST_ElecConsumption&D76,D_Processes!T:T)/SUMIF(D_Processes!R:R,CONST_CNTR_TotProd&D76,D_Processes!T:T),0)","v":{"v":0,"d":"0.0000"}},{"v":0,"d":"0.0000"},null,null,{"$f":"IF(AND(E76>0,ROWS($D$70:D75)<>COLUMNS($D$70:D75)),MAX($AQ76:AQ76)+1,\"\")","v":""},{"$f":"IF(AND(F76>0,ROWS($D$70:E75)<>COLUMNS($D$70:E75)),MAX($AQ76:AR76)+1,\"\")","v":""},{"$f":"IF(AND(G76>0,ROWS($D$70:F75)<>COLUMNS($D$70:F75)),MAX($AQ76:AS76)+1,\"\")","v":""},{"$f":"IF(AND(H76>0,ROWS($D$70:G75)<>COLUMNS($D$70:G75)),MAX($AQ76:AT76)+1,\"\")","v":""},{"$f":"IF(AND(I76>0,ROWS($D$70:H75)<>COLUMNS($D$70:H75)),MAX($AQ76:AU76)+1,\"\")","v":""},{"$f":"IF(AND(J76>0,ROWS($D$70:I75)<>COLUMNS($D$70:I75)),MAX($AQ76:AV76)+1,\"\")","v":""},{"$f":"IF(AND(K76>0,ROWS($D$70:J75)<>COLUMNS($D$70:J75)),MAX($AQ76:AW76)+1,\"\")","v":""},{"$f":"IF(AND(L76>0,ROWS($D$70:K75)<>COLUMNS($D$70:K75)),MAX($AQ76:AX76)+1,\"\")","v":""},{"$f":"IF(AND(M76>0,ROWS($D$70:L75)<>COLUMNS($D$70:L75)),MAX($AQ76:AY76)+1,\"\")","v":""},{"$f":"IF(AND(N76>0,ROWS($D$70:M75)<>COLUMNS($D$70:M75)),MAX($AQ76:AZ76)+1,\"\")","v":""},{"$f":"IF(AND(O76>0,ROWS($D$70:N75)<>COLUMNS($D$70:N75)),MAX($AQ76:BA76)+1,\"\")","v":""},{"$f":"IF(AND(P76>0,ROWS($D$70:O75)<>COLUMNS($D$70:O75)),MAX($AQ76:BB76)+1,\"\")","v":""},{"$f":"IF(AND(Q76>0,ROWS($D$70:P75)<>COLUMNS($D$70:P75)),MAX($AQ76:BC76)+1,\"\")","v":""},{"$f":"IF(AND(R76>0,ROWS($D$70:Q75)<>COLUMNS($D$70:Q75)),MAX($AQ76:BD76)+1,\"\")","v":""},{"$f":"IF(AND(S76>0,ROWS($D$70:R75)<>COLUMNS($D$70:R75)),MAX($AQ76:BE76)+1,\"\")","v":""},{"$f":"IF(AND(T76>0,ROWS($D$70:S75)<>COLUMNS($D$70:S75)),MAX($AQ76:BF76)+1,\"\")","v":""},{"$f":"IF(AND(U76>0,ROWS($D$70:T75)<>COLUMNS($D$70:T75)),MAX($AQ76:BG76)+1,\"\")","v":""},{"$f":"IF(AND(V76>0,ROWS($D$70:U75)<>COLUMNS($D$70:U75)),MAX($AQ76:BH76)+1,\"\")","v":""},{"$f":"IF(AND(W76>0,ROWS($D$70:V75)<>COLUMNS($D$70:V75)),MAX($AQ76:BI76)+1,\"\")","v":""},{"$f":"IF(AND(X76>0,ROWS($D$70:W75)<>COLUMNS($D$70:W75)),MAX($AQ76:BJ76)+1,\"\")","v":""},{"$f":"IF(AND(Y76>0,ROWS($D$70:X75)<>COLUMNS($D$70:X75)),MAX($AQ76:BK76)+1,\"\")","v":""},{"$f":"IF(AND(Z76>0,ROWS($D$70:Y75)<>COLUMNS($D$70:Y75)),MAX($AQ76:BL76)+1,\"\")","v":""},{"$f":"IF(AND(AA76>0,ROWS($D$70:Z75)<>COLUMNS($D$70:Z75)),MAX($AQ76:BM76)+1,\"\")","v":""},{"$f":"IF(AND(AB76>0,ROWS($D$70:AA75)<>COLUMNS($D$70:AA75)),MAX($AQ76:BN76)+1,\"\")","v":""},{"$f":"IF(AND(AC76>0,ROWS($D$70:AB75)<>COLUMNS($D$70:AB75)),MAX($AQ76:BO76)+1,\"\")","v":""},{"$f":"IF(AND(AD76>0,ROWS($D$70:AC75)<>COLUMNS($D$70:AC75)),MAX($AQ76:BP76)+1,\"\")","v":""},{"$f":"IF(AND(AE76>0,ROWS($D$70:AD75)<>COLUMNS($D$70:AD75)),MAX($AQ76:BQ76)+1,\"\")","v":""},{"$f":"IF(AND(AF76>0,ROWS($D$70:AE75)<>COLUMNS($D$70:AE75)),MAX($AQ76:BR76)+1,\"\")","v":""},{"$f":"IF(AND(AG76>0,ROWS($D$70:AF75)<>COLUMNS($D$70:AF75)),MAX($AQ76:BS76)+1,\"\")","v":""},{"$f":"IF(AND(AH76>0,ROWS($D$70:AG75)<>COLUMNS($D$70:AG75)),MAX($AQ76:BT76)+1,\"\")","v":""}]
[null,null,7,"",{"v":0,"d":"0.000"},{"v":0,"d":"0.000"},{"v":0,"d":"0.000"},{"v":0,"d":"0.000"},{"v":0,"d":"0.000"},{"v":0,"d":"0.000"},{"v":1,"d":"1.000"},{"v":0,"d":"0.000"},{"v":0,"d":"0.000"},{"v":0,"d":"0.000"},{"v":0,"d":"0.000"},{"v":0,"d":"0.000"},{"v":0,"d":"0.000"},{"v":0,"d":"0.000"},{"v":0,"d":"0.000"},{"v":0,"d":"0.000"},{"v":0,"d":"0.000"},{"v":0,"d":"0.000"},{"v":0,"d":"0.000"},{"v":0,"d":"0.000"},{"v":0,"d":"0.000"},{"v":0,"d":"0.000"},{"v":0,"d":"0.000"},{"v":0,"d":"0.000"},{"v":0,"d":"0.000"},{"v":0,"d":"0.000"},{"v":0,"d":"0.000"},{"v":0,"d":"0.000"},{"v":0,"d":"0.000"},{"v":0,"d":"0.000"},null,{"$f":"IFERROR(SUMIF(D_Processes!S:S,CONST_CNTR_EmbedEmDir&D77,D_Processes!T:T)/SUMIF(D_Processes!R:R,CONST_CNTR_TotProd&D77,D_Processes!T:T),0)","v":{"v":0,"d":"0.000"}},{"v":0,"d":"0.0000"},{"$f":"IFERROR(SUMIF(D_Processes!S:S,CONST_CNTR_EmbedEmInDir&D77,D_Processes!T:T)/SUMIF(D_Processes!R:R,CONST_CNTR_TotProd&D77,D_Processes!T:T),0)","v":{"v":0,"d":"0.0000"}},{"v":0,"d":"0.0000"},{"$f":"IFERROR(SUMIF(D_Processes!R:R,CONST_ElecConsumption&D77,D_Processes!T:T)/SUMIF(D_Processes!R:R,CONST_CNTR_TotProd&D77,D_Processes!T:T),0)","v":{"v":0,"d":"0.0000"}},{"v":0,"d":"0.0000"},null,null,{"$f":"IF(AND(E77>0,ROWS($D$70:D76)<>COLUMNS($D$70:D76)),MAX($AQ77:AQ77)+1,\"\")","v":""},{"$f":"IF(AND(F77>0,ROWS($D$70:E76)<>COLUMNS($D$70:E76)),MAX($AQ77:AR77)+1,\"\")","v":""},{"$f":"IF(AND(G77>0,ROWS($D$70:F76)<>COLUMNS($D$70:F76)),MAX($AQ77:AS77)+1,\"\")","v":""},{"$f":"IF(AND(H77>0,ROWS($D$70:G76)<>COLUMNS($D$70:G76)),MAX($AQ77:AT77)+1,\"\")","v":""},{"$f":"IF(AND(I77>0,ROWS($D$70:H76)<>COLUMNS($D$70:H76)),MAX($AQ77:AU77)+1,\"\")","v":""},{"$f":"IF(AND(J77>0,ROWS($D$70:I76)<>COLUMNS($D$70:I76)),MAX($AQ77:AV77)+1,\"\")","v":""},{"$f":"IF(AND(K77>0,ROWS($D$70:J76)<>COLUMNS($D$70:J76)),MAX($AQ77:AW77)+1,\"\")","v":""},{"$f":"IF(AND(L77>0,ROWS($D$70:K76)<>COLUMNS($D$70:K76)),MAX($AQ77:AX77)+1,\"\")","v":""},{"$f":"IF(AND(M77>0,ROWS($D$70:L76)<>COLUMNS($D$70:L76)),MAX($AQ77:AY77)+1,\"\")","v":""},{"$f":"IF(AND(N77>0,ROWS($D$70:M76)<>COLUMNS($D$70:M76)),MAX($AQ77:AZ77)+1,\"\")","v":""},{"$f":"IF(AND(O77>0,ROWS($D$70:N76)<>COLUMNS($D$70:N76)),MAX($AQ77:BA77)+1,\"\")","v":""},{"$f":"IF(AND(P77>0,ROWS($D$70:O76)<>COLUMNS($D$70:O76)),MAX($AQ77:BB77)+1,\"\")","v":""},{"$f":"IF(AND(Q77>0,ROWS($D$70:P76)<>COLUMNS($D$70:P76)),MAX($AQ77:BC77)+1,\"\")","v":""},{"$f":"IF(AND(R77>0,ROWS($D$70:Q76)<>COLUMNS($D$70:Q76)),MAX($AQ77:BD77)+1,\"\")","v":""},{"$f":"IF(AND(S77>0,ROWS($D$70:R76)<>COLUMNS($D$70:R76)),MAX($AQ77:BE77)+1,\"\")","v":""},{"$f":"IF(AND(T77>0,ROWS($D$70:S76)<>COLUMNS($D$70:S76)),MAX($AQ77:BF77)+1,\"\")","v":""},{"$f":"IF(AND(U77>0,ROWS($D$70:T76)<>COLUMNS($D$70:T76)),MAX($AQ77:BG77)+1,\"\")","v":""},{"$f":"IF(AND(V77>0,ROWS($D$70:U76)<>COLUMNS($D$70:U76)),MAX($AQ77:BH77)+1,\"\")","v":""},{"$f":"IF(AND(W77>0,ROWS($D$70:V76)<>COLUMNS($D$70:V76)),MAX($AQ77:BI77)+1,\"\")","v":""},{"$f":"IF(AND(X77>0,ROWS($D$70:W76)<>COLUMNS($D$70:W76)),MAX($AQ77:BJ77)+1,\"\")","v":""},{"$f":"IF(AND(Y77>0,ROWS($D$70:X76)<>COLUMNS($D$70:X76)),MAX($AQ77:BK77)+1,\"\")","v":""},{"$f":"IF(AND(Z77>0,ROWS($D$70:Y76)<>COLUMNS($D$70:Y76)),MAX($AQ77:BL77)+1,\"\")","v":""},{"$f":"IF(AND(AA77>0,ROWS($D$70:Z76)<>COLUMNS($D$70:Z76)),MAX($AQ77:BM77)+1,\"\")","v":""},{"$f":"IF(AND(AB77>0,ROWS($D$70:AA76)<>COLUMNS($D$70:AA76)),MAX($AQ77:BN77)+1,\"\")","v":""},{"$f":"IF(AND(AC77>0,ROWS($D$70:AB76)<>COLUMNS($D$70:AB76)),MAX($AQ77:BO77)+1,\"\")","v":""},{"$f":"IF(AND(AD77>0,ROWS($D$70:AC76)<>COLUMNS($D$70:AC76)),MAX($AQ77:BP77)+1,\"\")","v":""},{"$f":"IF(AND(AE77>0,ROWS($D$70:AD76)<>COLUMNS($D$70:AD76)),MAX($AQ77:BQ77)+1,\"\")","v":""},{"$f":"IF(AND(AF77>0,ROWS($D$70:AE76)<>COLUMNS($D$70:AE76)),MAX($AQ77:BR77)+1,\"\")","v":""},{"$f":"IF(AND(AG77>0,ROWS($D$70:AF76)<>COLUMNS($D$70:AF76)),MAX($AQ77:BS77)+1,\"\")","v":""},{"$f":"IF(AND(AH77>0,ROWS($D$70:AG76)<>COLUMNS($D$70:AG76)),MAX($AQ77:BT77)+1,\"\")","v":""}]
[null,null,8,"",{"v":0,"d":"0.000"},{"v":0,"d":"0.000"},{"v":0,"d":"0.000"},{"v":0,"d":"0.000"},{"v":0,"d":"0.000"},{"v":0,"d":"0.000"},{"v":0,"d":"0.000"},{"v":1,"d":"1.000"},{"v":0,"d":"0.000"},{"v":0,"d":"0.000"},{"v":0,"d":"0.000"},{"v":0,"d":"0.000"},{"v":0,"d":"0.000"},{"v":0,"d":"0.000"},{"v":0,"d":"0.000"},{"v":0,"d":"0.000"},{"v":0,"d":"0.000"},{"v":0,"d":"0.000"},{"v":0,"d":"0.000"},{"v":0,"d":"0.000"},{"v":0,"d":"0.000"},{"v":0,"d":"0.000"},{"v":0,"d":"0.000"},{"v":0,"d":"0.000"},{"v":0,"d":"0.000"},{"v":0,"d":"0.000"},{"v":0,"d":"0.000"},{"v":0,"d":"0.000"},{"v":0,"d":"0.000"},{"v":0,"d":"0.000"},null,{"$f":"IFERROR(SUMIF(D_Processes!S:S,CONST_CNTR_EmbedEmDir&D78,D_Processes!T:T)/SUMIF(D_Processes!R:R,CONST_CNTR_TotProd&D78,D_Processes!T:T),0)","v":{"v":0,"d":"0.000"}},{"v":0,"d":"0.0000"},{"$f":"IFERROR(SUMIF(D_Processes!S:S,CONST_CNTR_EmbedEmInDir&D78,D_Processes!T:T)/SUMIF(D_Processes!R:R,CONST_CNTR_TotProd&D78,D_Processes!T:T),0)","v":{"v":0,"d":"0.0000"}},{"v":0,"d":"0.0000"},{"$f":"IFERROR(SUMIF(D_Processes!R:R,CONST_ElecConsumption&D78,D_Processes!T:T)/SUMIF(D_Processes!R:R,CONST_CNTR_TotProd&D78,D_Processes!T:T),0)","v":{"v":0,"d":"0.0000"}},{"v":0,"d":"0.0000"},null,null,{"$f":"IF(AND(E78>0,ROWS($D$70:D77)<>COLUMNS($D$70:D77)),MAX($AQ78:AQ78)+1,\"\")","v":""},{"$f":"IF(AND(F78>0,ROWS($D$70:E77)<>COLUMNS($D$70:E77)),MAX($AQ78:AR78)+1,\"\")","v":""},{"$f":"IF(AND(G78>0,ROWS($D$70:F77)<>COLUMNS($D$70:F77)),MAX($AQ78:AS78)+1,\"\")","v":""},{"$f":"IF(AND(H78>0,ROWS($D$70:G77)<>COLUMNS($D$70:G77)),MAX($AQ78:AT78)+1,\"\")","v":""},{"$f":"IF(AND(I78>0,ROWS($D$70:H77)<>COLUMNS($D$70:H77)),MAX($AQ78:AU78)+1,\"\")","v":""},{"$f":"IF(AND(J78>0,ROWS($D$70:I77)<>COLUMNS($D$70:I77)),MAX($AQ78:AV78)+1,\"\")","v":""},{"$f":"IF(AND(K78>0,ROWS($D$70:J77)<>COLUMNS($D$70:J77)),MAX($AQ78:AW78)+1,\"\")","v":""},{"$f":"IF(AND(L78>0,ROWS($D$70:K77)<>COLUMNS($D$70:K77)),MAX($AQ78:AX78)+1,\"\")","v":""},{"$f":"IF(AND(M78>0,ROWS($D$70:L77)<>COLUMNS($D$70:L77)),MAX($AQ78:AY78)+1,\"\")","v":""},{"$f":"IF(AND(N78>0,ROWS($D$70:M77)<>COLUMNS($D$70:M77)),MAX($AQ78:AZ78)+1,\"\")","v":""},{"$f":"IF(AND(O78>0,ROWS($D$70:N77)<>COLUMNS($D$70:N77)),MAX($AQ78:BA78)+1,\"\")","v":""},{"$f":"IF(AND(P78>0,ROWS($D$70:O77)<>COLUMNS($D$70:O77)),MAX($AQ78:BB78)+1,\"\")","v":""},{"$f":"IF(AND(Q78>0,ROWS($D$70:P77)<>COLUMNS($D$70:P77)),MAX($AQ78:BC78)+1,\"\")","v":""},{"$f":"IF(AND(R78>0,ROWS($D$70:Q77)<>COLUMNS($D$70:Q77)),MAX($AQ78:BD78)+1,\"\")","v":""},{"$f":"IF(AND(S78>0,ROWS($D$70:R77)<>COLUMNS($D$70:R77)),MAX($AQ78:BE78)+1,\"\")","v":""},{"$f":"IF(AND(T78>0,ROWS($D$70:S77)<>COLUMNS($D$70:S77)),MAX($AQ78:BF78)+1,\"\")","v":""},{"$f":"IF(AND(U78>0,ROWS($D$70:T77)<>COLUMNS($D$70:T77)),MAX($AQ78:BG78)+1,\"\")","v":""},{"$f":"IF(AND(V78>0,ROWS($D$70:U77)<>COLUMNS($D$70:U77)),MAX($AQ78:BH78)+1,\"\")","v":""},{"$f":"IF(AND(W78>0,ROWS($D$70:V77)<>COLUMNS($D$70:V77)),MAX($AQ78:BI78)+1,\"\")","v":""},{"$f":"IF(AND(X78>0,ROWS($D$70:W77)<>COLUMNS($D$70:W77)),MAX($AQ78:BJ78)+1,\"\")","v":""},{"$f":"IF(AND(Y78>0,ROWS($D$70:X77)<>COLUMNS($D$70:X77)),MAX($AQ78:BK78)+1,\"\")","v":""},{"$f":"IF(AND(Z78>0,ROWS($D$70:Y77)<>COLUMNS($D$70:Y77)),MAX($AQ78:BL78)+1,\"\")","v":""},{"$f":"IF(AND(AA78>0,ROWS($D$70:Z77)<>COLUMNS($D$70:Z77)),MAX($AQ78:BM78)+1,\"\")","v":""},{"$f":"IF(AND(AB78>0,ROWS($D$70:AA77)<>COLUMNS($D$70:AA77)),MAX($AQ78:BN78)+1,\"\")","v":""},{"$f":"IF(AND(AC78>0,ROWS($D$70:AB77)<>COLUMNS($D$70:AB77)),MAX($AQ78:BO78)+1,\"\")","v":""},{"$f":"IF(AND(AD78>0,ROWS($D$70:AC77)<>COLUMNS($D$70:AC77)),MAX($AQ78:BP78)+1,\"\")","v":""},{"$f":"IF(AND(AE78>0,ROWS($D$70:AD77)<>COLUMNS($D$70:AD77)),MAX($AQ78:BQ78)+1,\"\")","v":""},{"$f":"IF(AND(AF78>0,ROWS($D$70:AE77)<>COLUMNS($D$70:AE77)),MAX($AQ78:BR78)+1,\"\")","v":""},{"$f":"IF(AND(AG78>0,ROWS($D$70:AF77)<>COLUMNS($D$70:AF77)),MAX($AQ78:BS78)+1,\"\")","v":""},{"$f":"IF(AND(AH78>0,ROWS($D$70:AG77)<>COLUMNS($D$70:AG77)),MAX($AQ78:BT78)+1,\"\")","v":""}]
[null,null,9,"",{"v":0,"d":"0.000"},{"v":0,"d":"0.000"},{"v":0,"d":"0.000"},{"v":0,"d":"0.000"},{"v":0,"d":"0.000"},{"v":0,"d":"0.000"},{"v":0,"d":"0.000"},{"v":0,"d":"0.000"},{"v":1,"d":"1.000"},{"v":0,"d":"0.000"},{"v":0,"d":"0.000"},{"v":0,"d":"0.000"},{"v":0,"d":"0.000"},{"v":0,"d":"0.000"},{"v":0,"d":"0.000"},{"v":0,"d":"0.000"},{"v":0,"d":"0.000"},{"v":0,"d":"0.000"},{"v":0,"d":"0.000"},{"v":0,"d":"0.000"},{"v":0,"d":"0.000"},{"v":0,"d":"0.000"},{"v":0,"d":"0.000"},{"v":0,"d":"0.000"},{"v":0,"d":"0.000"},{"v":0,"d":"0.000"},{"v":0,"d":"0.000"},{"v":0,"d":"0.000"},{"v":0,"d":"0.000"},{"v":0,"d":"0.000"},null,{"$f":"IFERROR(SUMIF(D_Processes!S:S,CONST_CNTR_EmbedEmDir&D79,D_Processes!T:T)/SUMIF(D_Processes!R:R,CONST_CNTR_TotProd&D79,D_Processes!T:T),0)","v":{"v":0,"d":"0.000"}},{"v":0,"d":"0.0000"},{"$f":"IFERROR(SUMIF(D_Processes!S:S,CONST_CNTR_EmbedEmInDir&D79,D_Processes!T:T)/SUMIF(D_Processes!R:R,CONST_CNTR_TotProd&D79,D_Processes!T:T),0)","v":{"v":0,"d":"0.0000"}},{"v":0,"d":"0.0000"},{"$f":"IFERROR(SUMIF(D_Processes!R:R,CONST_ElecConsumption&D79,D_Processes!T:T)/SUMIF(D_Processes!R:R,CONST_CNTR_TotProd&D79,D_Processes!T:T),0)","v":{"v":0,"d":"0.0000"}},{"v":0,"d":"0.0000"},null,null,{"$f":"IF(AND(E79>0,ROWS($D$70:D78)<>COLUMNS($D$70:D78)),MAX($AQ79:AQ79)+1,\"\")","v":""},{"$f":"IF(AND(F79>0,ROWS($D$70:E78)<>COLUMNS($D$70:E78)),MAX($AQ79:AR79)+1,\"\")","v":""},{"$f":"IF(AND(G79>0,ROWS($D$70:F78)<>COLUMNS($D$70:F78)),MAX($AQ79:AS79)+1,\"\")","v":""},{"$f":"IF(AND(H79>0,ROWS($D$70:G78)<>COLUMNS($D$70:G78)),MAX($AQ79:AT79)+1,\"\")","v":""},{"$f":"IF(AND(I79>0,ROWS($D$70:H78)<>COLUMNS($D$70:H78)),MAX($AQ79:AU79)+1,\"\")","v":""},{"$f":"IF(AND(J79>0,ROWS($D$70:I78)<>COLUMNS($D$70:I78)),MAX($AQ79:AV79)+1,\"\")","v":""},{"$f":"IF(AND(K79>0,ROWS($D$70:J78)<>COLUMNS($D$70:J78)),MAX($AQ79:AW79)+1,\"\")","v":""},{"$f":"IF(AND(L79>0,ROWS($D$70:K78)<>COLUMNS($D$70:K78)),MAX($AQ79:AX79)+1,\"\")","v":""},{"$f":"IF(AND(M79>0,ROWS($D$70:L78)<>COLUMNS($D$70:L78)),MAX($AQ79:AY79)+1,\"\")","v":""},{"$f":"IF(AND(N79>0,ROWS($D$70:M78)<>COLUMNS($D$70:M78)),MAX($AQ79:AZ79)+1,\"\")","v":""},{"$f":"IF(AND(O79>0,ROWS($D$70:N78)<>COLUMNS($D$70:N78)),MAX($AQ79:BA79)+1,\"\")","v":""},{"$f":"IF(AND(P79>0,ROWS($D$70:O78)<>COLUMNS($D$70:O78)),MAX($AQ79:BB79)+1,\"\")","v":""},{"$f":"IF(AND(Q79>0,ROWS($D$70:P78)<>COLUMNS($D$70:P78)),MAX($AQ79:BC79)+1,\"\")","v":""},{"$f":"IF(AND(R79>0,ROWS($D$70:Q78)<>COLUMNS($D$70:Q78)),MAX($AQ79:BD79)+1,\"\")","v":""},{"$f":"IF(AND(S79>0,ROWS($D$70:R78)<>COLUMNS($D$70:R78)),MAX($AQ79:BE79)+1,\"\")","v":""},{"$f":"IF(AND(T79>0,ROWS($D$70:S78)<>COLUMNS($D$70:S78)),MAX($AQ79:BF79)+1,\"\")","v":""},{"$f":"IF(AND(U79>0,ROWS($D$70:T78)<>COLUMNS($D$70:T78)),MAX($AQ79:BG79)+1,\"\")","v":""},{"$f":"IF(AND(V79>0,ROWS($D$70:U78)<>COLUMNS($D$70:U78)),MAX($AQ79:BH79)+1,\"\")","v":""},{"$f":"IF(AND(W79>0,ROWS($D$70:V78)<>COLUMNS($D$70:V78)),MAX($AQ79:BI79)+1,\"\")","v":""},{"$f":"IF(AND(X79>0,ROWS($D$70:W78)<>COLUMNS($D$70:W78)),MAX($AQ79:BJ79)+1,\"\")","v":""},{"$f":"IF(AND(Y79>0,ROWS($D$70:X78)<>COLUMNS($D$70:X78)),MAX($AQ79:BK79)+1,\"\")","v":""},{"$f":"IF(AND(Z79>0,ROWS($D$70:Y78)<>COLUMNS($D$70:Y78)),MAX($AQ79:BL79)+1,\"\")","v":""},{"$f":"IF(AND(AA79>0,ROWS($D$70:Z78)<>COLUMNS($D$70:Z78)),MAX($AQ79:BM79)+1,\"\")","v":""},{"$f":"IF(AND(AB79>0,ROWS($D$70:AA78)<>COLUMNS($D$70:AA78)),MAX($AQ79:BN79)+1,\"\")","v":""},{"$f":"IF(AND(AC79>0,ROWS($D$70:AB78)<>COLUMNS($D$70:AB78)),MAX($AQ79:BO79)+1,\"\")","v":""},{"$f":"IF(AND(AD79>0,ROWS($D$70:AC78)<>COLUMNS($D$70:AC78)),MAX($AQ79:BP79)+1,\"\")","v":""},{"$f":"IF(AND(AE79>0,ROWS($D$70:AD78)<>COLUMNS($D$70:AD78)),MAX($AQ79:BQ79)+1,\"\")","v":""},{"$f":"IF(AND(AF79>0,ROWS($D$70:AE78)<>COLUMNS($D$70:AE78)),MAX($AQ79:BR79)+1,\"\")","v":""},{"$f":"IF(AND(AG79>0,ROWS($D$70:AF78)<>COLUMNS($D$70:AF78)),MAX($AQ79:BS79)+1,\"\")","v":""},{"$f":"IF(AND(AH79>0,ROWS($D$70:AG78)<>COLUMNS($D$70:AG78)),MAX($AQ79:BT79)+1,\"\")","v":""}]
[null,null,10,"",{"v":0,"d":"0.000"},{"v":0,"d":"0.000"},{"v":0,"d":"0.000"},{"v":0,"d":"0.000"},{"v":0,"d":"0.000"},{"v":0,"d":"0.000"},{"v":0,"d":"0.000"},{"v":0,"d":"0.000"},{"v":0,"d":"0.000"},{"v":1,"d":"1.000"},{"v":0,"d":"0.000"},{"v":0,"d":"0.000"},{"v":0,"d":"0.000"},{"v":0,"d":"0.000"},{"v":0,"d":"0.000"},{"v":0,"d":"0.000"},{"v":0,"d":"0.000"},{"v":0,"d":"0.000"},{"v":0,"d":"0.000"},{"v":0,"d":"0.000"},{"v":0,"d":"0.000"},{"v":0,"d":"0.000"},{"v":0,"d":"0.000"},{"v":0,"d":"0.000"},{"v":0,"d":"0.000"},{"v":0,"d":"0.000"},{"v":0,"d":"0.000"},{"v":0,"d":"0.000"},{"v":0,"d":"0.000"},{"v":0,"d":"0.000"},null,{"$f":"IFERROR(SUMIF(D_Processes!S:S,CONST_CNTR_EmbedEmDir&D80,D_Processes!T:T)/SUMIF(D_Processes!R:R,CONST_CNTR_TotProd&D80,D_Processes!T:T),0)","v":{"v":0,"d":"0.000"}},{"v":0,"d":"0.0000"},{"$f":"IFERROR(SUMIF(D_Processes!S:S,CONST_CNTR_EmbedEmInDir&D80,D_Processes!T:T)/SUMIF(D_Processes!R:R,CONST_CNTR_TotProd&D80,D_Processes!T:T),0)","v":{"v":0,"d":"0.0000"}},{"v":0,"d":"0.0000"},{"$f":"IFERROR(SUMIF(D_Processes!R:R,CONST_ElecConsumption&D80,D_Processes!T:T)/SUMIF(D_Processes!R:R,CONST_CNTR_TotProd&D80,D_Processes!T:T),0)","v":{"v":0,"d":"0.0000"}},{"v":0,"d":"0.0000"},null,null,{"$f":"IF(AND(E80>0,ROWS($D$70:D79)<>COLUMNS($D$70:D79)),MAX($AQ80:AQ80)+1,\"\")","v":""},{"$f":"IF(AND(F80>0,ROWS($D$70:E79)<>COLUMNS($D$70:E79)),MAX($AQ80:AR80)+1,\"\")","v":""},{"$f":"IF(AND(G80>0,ROWS($D$70:F79)<>COLUMNS($D$70:F79)),MAX($AQ80:AS80)+1,\"\")","v":""},{"$f":"IF(AND(H80>0,ROWS($D$70:G79)<>COLUMNS($D$70:G79)),MAX($AQ80:AT80)+1,\"\")","v":""},{"$f":"IF(AND(I80>0,ROWS($D$70:H79)<>COLUMNS($D$70:H79)),MAX($AQ80:AU80)+1,\"\")","v":""},{"$f":"IF(AND(J80>0,ROWS($D$70:I79)<>COLUMNS($D$70:I79)),MAX($AQ80:AV80)+1,\"\")","v":""},{"$f":"IF(AND(K80>0,ROWS($D$70:J79)<>COLUMNS($D$70:J79)),MAX($AQ80:AW80)+1,\"\")","v":""},{"$f":"IF(AND(L80>0,ROWS($D$70:K79)<>COLUMNS($D$70:K79)),MAX($AQ80:AX80)+1,\"\")","v":""},{"$f":"IF(AND(M80>0,ROWS($D$70:L79)<>COLUMNS($D$70:L79)),MAX($AQ80:AY80)+1,\"\")","v":""},{"$f":"IF(AND(N80>0,ROWS($D$70:M79)<>COLUMNS($D$70:M79)),MAX($AQ80:AZ80)+1,\"\")","v":""},{"$f":"IF(AND(O80>0,ROWS($D$70:N79)<>COLUMNS($D$70:N79)),MAX($AQ80:BA80)+1,\"\")","v":""},{"$f":"IF(AND(P80>0,ROWS($D$70:O79)<>COLUMNS($D$70:O79)),MAX($AQ80:BB80)+1,\"\")","v":""},{"$f":"IF(AND(Q80>0,ROWS($D$70:P79)<>COLUMNS($D$70:P79)),MAX($AQ80:BC80)+1,\"\")","v":""},{"$f":"IF(AND(R80>0,ROWS($D$70:Q79)<>COLUMNS($D$70:Q79)),MAX($AQ80:BD80)+1,\"\")","v":""},{"$f":"IF(AND(S80>0,ROWS($D$70:R79)<>COLUMNS($D$70:R79)),MAX($AQ80:BE80)+1,\"\")","v":""},{"$f":"IF(AND(T80>0,ROWS($D$70:S79)<>COLUMNS($D$70:S79)),MAX($AQ80:BF80)+1,\"\")","v":""},{"$f":"IF(AND(U80>0,ROWS($D$70:T79)<>COLUMNS($D$70:T79)),MAX($AQ80:BG80)+1,\"\")","v":""},{"$f":"IF(AND(V80>0,ROWS($D$70:U79)<>COLUMNS($D$70:U79)),MAX($AQ80:BH80)+1,\"\")","v":""},{"$f":"IF(AND(W80>0,ROWS($D$70:V79)<>COLUMNS($D$70:V79)),MAX($AQ80:BI80)+1,\"\")","v":""},{"$f":"IF(AND(X80>0,ROWS($D$70:W79)<>COLUMNS($D$70:W79)),MAX($AQ80:BJ80)+1,\"\")","v":""},{"$f":"IF(AND(Y80>0,ROWS($D$70:X79)<>COLUMNS($D$70:X79)),MAX($AQ80:BK80)+1,\"\")","v":""},{"$f":"IF(AND(Z80>0,ROWS($D$70:Y79)<>COLUMNS($D$70:Y79)),MAX($AQ80:BL80)+1,\"\")","v":""},{"$f":"IF(AND(AA80>0,ROWS($D$70:Z79)<>COLUMNS($D$70:Z79)),MAX($AQ80:BM80)+1,\"\")","v":""},{"$f":"IF(AND(AB80>0,ROWS($D$70:AA79)<>COLUMNS($D$70:AA79)),MAX($AQ80:BN80)+1,\"\")","v":""},{"$f":"IF(AND(AC80>0,ROWS($D$70:AB79)<>COLUMNS($D$70:AB79)),MAX($AQ80:BO80)+1,\"\")","v":""},{"$f":"IF(AND(AD80>0,ROWS($D$70:AC79)<>COLUMNS($D$70:AC79)),MAX($AQ80:BP80)+1,\"\")","v":""},{"$f":"IF(AND(AE80>0,ROWS($D$70:AD79)<>COLUMNS($D$70:AD79)),MAX($AQ80:BQ80)+1,\"\")","v":""},{"$f":"IF(AND(AF80>0,ROWS($D$70:AE79)<>COLUMNS($D$70:AE79)),MAX($AQ80:BR80)+1,\"\")","v":""},{"$f":"IF(AND(AG80>0,ROWS($D$70:AF79)<>COLUMNS($D$70:AF79)),MAX($AQ80:BS80)+1,\"\")","v":""},{"$f":"IF(AND(AH80>0,ROWS($D$70:AG79)<>COLUMNS($D$70:AG79)),MAX($AQ80:BT80)+1,\"\")","v":""}]
[null,{"$f":"Translations!$B$630","v":"Precursors"},1,{"$f":"D17","v":""},{"v":0,"d":"0.000"},{"v":0,"d":"0.000"},{"v":0,"d":"0.000"},{"v":0,"d":"0.000"},{"v":0,"d":"0.000"},{"v":0,"d":"0.000"},{"v":0,"d":"0.000"},{"v":0,"d":"0.000"},{"v":0,"d":"0.000"},{"v":0,"d":"0.000"},{"v":1,"d":"1.000"},{"v":0,"d":"0.000"},{"v":0,"d":"0.000"},{"v":0,"d":"0.000"},{"v":0,"d":"0.000"},{"v":0,"d":"0.000"},{"v":0,"d":"0.000"},{"v":0,"d":"0.000"},{"v":0,"d":"0.000"},{"v":0,"d":"0.000"},{"v":0,"d":"0.000"},{"v":0,"d":"0.000"},{"v":0,"d":"0.000"},{"v":0,"d":"0.000"},{"v":0,"d":"0.000"},{"v":0,"d":"0.000"},{"v":0,"d":"0.000"},{"v":0,"d":"0.000"},{"v":0,"d":"0.000"},{"v":0,"d":"0.000"},null,{"$f":"IFERROR(SUMIF(E_PurchPrec!S:S,CONST_CNTR_EmbedEmDir&D81,E_PurchPrec!T:T)/SUMIF(E_PurchPrec!R:R,CONST_CNTR_TotProd&D81,E_PurchPrec!T:T),0)","v":{"v":0,"d":"0.000"}},{"v":0,"d":"0.0000"},{"$f":"IFERROR(SUMIF(E_PurchPrec!S:S,CONST_CNTR_EmbedEmInDir&D81,E_PurchPrec!T:T)/SUMIF(E_PurchPrec!R:R,CONST_CNTR_TotProd&D81,E_PurchPrec!T:T),0)","v":{"v":0,"d":"0.0000"}},{"v":0,"d":"0.0000"},{"$f":"IFERROR(SUMIF(E_PurchPrec!R:R,CONST_ElecConsumption&D81,E_PurchPrec!T:T)/SUMIF(E_PurchPrec!R:R,CONST_CNTR_TotProd&D81,E_PurchPrec!T:T),0)","v":{"v":0,"d":"0.0000"}},{"v":0,"d":"0.0000"},null,null,{"$f":"IF(AND(E81>0,ROWS($D$70:D80)<>COLUMNS($D$70:D80)),MAX($AQ81:AQ81)+1,\"\")","v":""},{"$f":"IF(AND(F81>0,ROWS($D$70:E80)<>COLUMNS($D$70:E80)),MAX($AQ81:AR81)+1,\"\")","v":""},{"$f":"IF(AND(G81>0,ROWS($D$70:F80)<>COLUMNS($D$70:F80)),MAX($AQ81:AS81)+1,\"\")","v":""},{"$f":"IF(AND(H81>0,ROWS($D$70:G80)<>COLUMNS($D$70:G80)),MAX($AQ81:AT81)+1,\"\")","v":""},{"$f":"IF(AND(I81>0,ROWS($D$70:H80)<>COLUMNS($D$70:H80)),MAX($AQ81:AU81)+1,\"\")","v":""},{"$f":"IF(AND(J81>0,ROWS($D$70:I80)<>COLUMNS($D$70:I80)),MAX($AQ81:AV81)+1,\"\")","v":""},{"$f":"IF(AND(K81>0,ROWS($D$70:J80)<>COLUMNS($D$70:J80)),MAX($AQ81:AW81)+1,\"\")","v":""},{"$f":"IF(AND(L81>0,ROWS($D$70:K80)<>COLUMNS($D$70:K80)),MAX($AQ81:AX81)+1,\"\")","v":""},{"$f":"IF(AND(M81>0,ROWS($D$70:L80)<>COLUMNS($D$70:L80)),MAX($AQ81:AY81)+1,\"\")","v":""},{"$f":"IF(AND(N81>0,ROWS($D$70:M80)<>COLUMNS($D$70:M80)),MAX($AQ81:AZ81)+1,\"\")","v":""},{"$f":"IF(AND(O81>0,ROWS($D$70:N80)<>COLUMNS($D$70:N80)),MAX($AQ81:BA81)+1,\"\")","v":""},{"$f":"IF(AND(P81>0,ROWS($D$70:O80)<>COLUMNS($D$70:O80)),MAX($AQ81:BB81)+1,\"\")","v":""},{"$f":"IF(AND(Q81>0,ROWS($D$70:P80)<>COLUMNS($D$70:P80)),MAX($AQ81:BC81)+1,\"\")","v":""},{"$f":"IF(AND(R81>0,ROWS($D$70:Q80)<>COLUMNS($D$70:Q80)),MAX($AQ81:BD81)+1,\"\")","v":""},{"$f":"IF(AND(S81>0,ROWS($D$70:R80)<>COLUMNS($D$70:R80)),MAX($AQ81:BE81)+1,\"\")","v":""},{"$f":"IF(AND(T81>0,ROWS($D$70:S80)<>COLUMNS($D$70:S80)),MAX($AQ81:BF81)+1,\"\")","v":""},{"$f":"IF(AND(U81>0,ROWS($D$70:T80)<>COLUMNS($D$70:T80)),MAX($AQ81:BG81)+1,\"\")","v":""},{"$f":"IF(AND(V81>0,ROWS($D$70:U80)<>COLUMNS($D$70:U80)),MAX($AQ81:BH81)+1,\"\")","v":""},{"$f":"IF(AND(W81>0,ROWS($D$70:V80)<>COLUMNS($D$70:V80)),MAX($AQ81:BI81)+1,\"\")","v":""},{"$f":"IF(AND(X81>0,ROWS($D$70:W80)<>COLUMNS($D$70:W80)),MAX($AQ81:BJ81)+1,\"\")","v":""},{"$f":"IF(AND(Y81>0,ROWS($D$70:X80)<>COLUMNS($D$70:X80)),MAX($AQ81:BK81)+1,\"\")","v":""},{"$f":"IF(AND(Z81>0,ROWS($D$70:Y80)<>COLUMNS($D$70:Y80)),MAX($AQ81:BL81)+1,\"\")","v":""},{"$f":"IF(AND(AA81>0,ROWS($D$70:Z80)<>COLUMNS($D$70:Z80)),MAX($AQ81:BM81)+1,\"\")","v":""},{"$f":"IF(AND(AB81>0,ROWS($D$70:AA80)<>COLUMNS($D$70:AA80)),MAX($AQ81:BN81)+1,\"\")","v":""},{"$f":"IF(AND(AC81>0,ROWS($D$70:AB80)<>COLUMNS($D$70:AB80)),MAX($AQ81:BO81)+1,\"\")","v":""},{"$f":"IF(AND(AD81>0,ROWS($D$70:AC80)<>COLUMNS($D$70:AC80)),MAX($AQ81:BP81)+1,\"\")","v":""},{"$f":"IF(AND(AE81>0,ROWS($D$70:AD80)<>COLUMNS($D$70:AD80)),MAX($AQ81:BQ81)+1,\"\")","v":""},{"$f":"IF(AND(AF81>0,ROWS($D$70:AE80)<>COLUMNS($D$70:AE80)),MAX($AQ81:BR81)+1,\"\")","v":""},{"$f":"IF(AND(AG81>0,ROWS($D$70:AF80)<>COLUMNS($D$70:AF80)),MAX($AQ81:BS81)+1,\"\")","v":""},{"$f":"IF(AND(AH81>0,ROWS($D$70:AG80)<>COLUMNS($D$70:AG80)),MAX($AQ81:BT81)+1,\"\")","v":""}]
[null,null,2,"",{"v":0,"d":"0.000"},{"v":0,"d":"0.000"},{"v":0,"d":"0.000"},{"v":0,"d":"0.000"},{"v":0,"d":"0.000"},{"v":0,"d":"0.000"},{"v":0,"d":"0.000"},{"v":0,"d":"0.000"},{"v":0,"d":"0.000"},{"v":0,"d":"0.000"},{"v":0,"d":"0.000"},{"v":1,"d":"1.000"},{"v":0,"d":"0.000"},{"v":0,"d":"0.000"},{"v":0,"d":"0.000"},{"v":0,"d":"0.000"},{"v":0,"d":"0.000"},{"v":0,"d":"0.000"},{"v":0,"d":"0.000"},{"v":0,"d":"0.000"},{"v":0,"d":"0.000"},{"v":0,"d":"0.000"},{"v":0,"d":"0.000"},{"v":0,"d":"0.000"},{"v":0,"d":"0.000"},{"v":0,"d":"0.000"},{"v":0,"d":"0.000"},{"v":0,"d":"0.000"},{"v":0,"d":"0.000"},{"v":0,"d":"0.000"},null,{"$f":"IFERROR(SUMIF(E_PurchPrec!S:S,CONST_CNTR_EmbedEmDir&D82,E_PurchPrec!T:T)/SUMIF(E_PurchPrec!R:R,CONST_CNTR_TotProd&D82,E_PurchPrec!T:T),0)","v":{"v":0,"d":"0.000"}},{"v":0,"d":"0.0000"},{"$f":"IFERROR(SUMIF(E_PurchPrec!S:S,CONST_CNTR_EmbedEmInDir&D82,E_PurchPrec!T:T)/SUMIF(E_PurchPrec!R:R,CONST_CNTR_TotProd&D82,E_PurchPrec!T:T),0)","v":{"v":0,"d":"0.0000"}},{"v":0,"d":"0.0000"},{"$f":"IFERROR(SUMIF(E_PurchPrec!R:R,CONST_ElecConsumption&D82,E_PurchPrec!T:T)/SUMIF(E_PurchPrec!R:R,CONST_CNTR_TotProd&D82,E_PurchPrec!T:T),0)","v":{"v":0,"d":"0.0000"}},{"v":0,"d":"0.0000"},null,null,{"$f":"IF(AND(E82>0,ROWS($D$70:D81)<>COLUMNS($D$70:D81)),MAX($AQ82:AQ82)+1,\"\")","v":""},{"$f":"IF(AND(F82>0,ROWS($D$70:E81)<>COLUMNS($D$70:E81)),MAX($AQ82:AR82)+1,\"\")","v":""},{"$f":"IF(AND(G82>0,ROWS($D$70:F81)<>COLUMNS($D$70:F81)),MAX($AQ82:AS82)+1,\"\")","v":""},{"$f":"IF(AND(H82>0,ROWS($D$70:G81)<>COLUMNS($D$70:G81)),MAX($AQ82:AT82)+1,\"\")","v":""},{"$f":"IF(AND(I82>0,ROWS($D$70:H81)<>COLUMNS($D$70:H81)),MAX($AQ82:AU82)+1,\"\")","v":""},{"$f":"IF(AND(J82>0,ROWS($D$70:I81)<>COLUMNS($D$70:I81)),MAX($AQ82:AV82)+1,\"\")","v":""},{"$f":"IF(AND(K82>0,ROWS($D$70:J81)<>COLUMNS($D$70:J81)),MAX($AQ82:AW82)+1,\"\")","v":""},{"$f":"IF(AND(L82>0,ROWS($D$70:K81)<>COLUMNS($D$70:K81)),MAX($AQ82:AX82)+1,\"\")","v":""},{"$f":"IF(AND(M82>0,ROWS($D$70:L81)<>COLUMNS($D$70:L81)),MAX($AQ82:AY82)+1,\"\")","v":""},{"$f":"IF(AND(N82>0,ROWS($D$70:M81)<>COLUMNS($D$70:M81)),MAX($AQ82:AZ82)+1,\"\")","v":""},{"$f":"IF(AND(O82>0,ROWS($D$70:N81)<>COLUMNS($D$70:N81)),MAX($AQ82:BA82)+1,\"\")","v":""},{"$f":"IF(AND(P82>0,ROWS($D$70:O81)<>COLUMNS($D$70:O81)),MAX($AQ82:BB82)+1,\"\")","v":""},{"$f":"IF(AND(Q82>0,ROWS($D$70:P81)<>COLUMNS($D$70:P81)),MAX($AQ82:BC82)+1,\"\")","v":""},{"$f":"IF(AND(R82>0,ROWS($D$70:Q81)<>COLUMNS($D$70:Q81)),MAX($AQ82:BD82)+1,\"\")","v":""},{"$f":"IF(AND(S82>0,ROWS($D$70:R81)<>COLUMNS($D$70:R81)),MAX($AQ82:BE82)+1,\"\")","v":""},{"$f":"IF(AND(T82>0,ROWS($D$70:S81)<>COLUMNS($D$70:S81)),MAX($AQ82:BF82)+1,\"\")","v":""},{"$f":"IF(AND(U82>0,ROWS($D$70:T81)<>COLUMNS($D$70:T81)),MAX($AQ82:BG82)+1,\"\")","v":""},{"$f":"IF(AND(V82>0,ROWS($D$70:U81)<>COLUMNS($D$70:U81)),MAX($AQ82:BH82)+1,\"\")","v":""},{"$f":"IF(AND(W82>0,ROWS($D$70:V81)<>COLUMNS($D$70:V81)),MAX($AQ82:BI82)+1,\"\")","v":""},{"$f":"IF(AND(X82>0,ROWS($D$70:W81)<>COLUMNS($D$70:W81)),MAX($AQ82:BJ82)+1,\"\")","v":""},{"$f":"IF(AND(Y82>0,ROWS($D$70:X81)<>COLUMNS($D$70:X81)),MAX($AQ82:BK82)+1,\"\")","v":""},{"$f":"IF(AND(Z82>0,ROWS($D$70:Y81)<>COLUMNS($D$70:Y81)),MAX($AQ82:BL82)+1,\"\")","v":""},{"$f":"IF(AND(AA82>0,ROWS($D$70:Z81)<>COLUMNS($D$70:Z81)),MAX($AQ82:BM82)+1,\"\")","v":""},{"$f":"IF(AND(AB82>0,ROWS($D$70:AA81)<>COLUMNS($D$70:AA81)),MAX($AQ82:BN82)+1,\"\")","v":""},{"$f":"IF(AND(AC82>0,ROWS($D$70:AB81)<>COLUMNS($D$70:AB81)),MAX($AQ82:BO82)+1,\"\")","v":""},{"$f":"IF(AND(AD82>0,ROWS($D$70:AC81)<>COLUMNS($D$70:AC81)),MAX($AQ82:BP82)+1,\"\")","v":""},{"$f":"IF(AND(AE82>0,ROWS($D$70:AD81)<>COLUMNS($D$70:AD81)),MAX($AQ82:BQ82)+1,\"\")","v":""},{"$f":"IF(AND(AF82>0,ROWS($D$70:AE81)<>COLUMNS($D$70:AE81)),MAX($AQ82:BR82)+1,\"\")","v":""},{"$f":"IF(AND(AG82>0,ROWS($D$70:AF81)<>COLUMNS($D$70:AF81)),MAX($AQ82:BS82)+1,\"\")","v":""},{"$f":"IF(AND(AH82>0,ROWS($D$70:AG81)<>COLUMNS($D$70:AG81)),MAX($AQ82:BT82)+1,\"\")","v":""}]
[null,null,3,"",{"v":0,"d":"0.000"},{"v":0,"d":"0.000"},{"v":0,"d":"0.000"},{"v":0,"d":"0.000"},{"v":0,"d":"0.000"},{"v":0,"d":"0.000"},{"v":0,"d":"0.000"},{"v":0,"d":"0.000"},{"v":0,"d":"0.000"},{"v":0,"d":"0.000"},{"v":0,"d":"0.000"},{"v":0,"d":"0.000"},{"v":1,"d":"1.000"},{"v":0,"d":"0.000"},{"v":0,"d":"0.000"},{"v":0,"d":"0.000"},{"v":0,"d":"0.000"},{"v":0,"d":"0.000"},{"v":0,"d":"0.000"},{"v":0,"d":"0.000"},{"v":0,"d":"0.000"},{"v":0,"d":"0.000"},{"v":0,"d":"0.000"},{"v":0,"d":"0.000"},{"v":0,"d":"0.000"},{"v":0,"d":"0.000"},{"v":0,"d":"0.000"},{"v":0,"d":"0.000"},{"v":0,"d":"0.000"},{"v":0,"d":"0.000"},null,{"$f":"IFERROR(SUMIF(E_PurchPrec!S:S,CONST_CNTR_EmbedEmDir&D83,E_PurchPrec!T:T)/SUMIF(E_PurchPrec!R:R,CONST_CNTR_TotProd&D83,E_PurchPrec!T:T),0)","v":{"v":0,"d":"0.000"}},{"v":0,"d":"0.0000"},{"$f":"IFERROR(SUMIF(E_PurchPrec!S:S,CONST_CNTR_EmbedEmInDir&D83,E_PurchPrec!T:T)/SUMIF(E_PurchPrec!R:R,CONST_CNTR_TotProd&D83,E_PurchPrec!T:T),0)","v":{"v":0,"d":"0.0000"}},{"v":0,"d":"0.0000"},{"$f":"IFERROR(SUMIF(E_PurchPrec!R:R,CONST_ElecConsumption&D83,E_PurchPrec!T:T)/SUMIF(E_PurchPrec!R:R,CONST_CNTR_TotProd&D83,E_PurchPrec!T:T),0)","v":{"v":0,"d":"0.0000"}},{"v":0,"d":"0.0000"},null,null,{"$f":"IF(AND(E83>0,ROWS($D$70:D82)<>COLUMNS($D$70:D82)),MAX($AQ83:AQ83)+1,\"\")","v":""},{"$f":"IF(AND(F83>0,ROWS($D$70:E82)<>COLUMNS($D$70:E82)),MAX($AQ83:AR83)+1,\"\")","v":""},{"$f":"IF(AND(G83>0,ROWS($D$70:F82)<>COLUMNS($D$70:F82)),MAX($AQ83:AS83)+1,\"\")","v":""},{"$f":"IF(AND(H83>0,ROWS($D$70:G82)<>COLUMNS($D$70:G82)),MAX($AQ83:AT83)+1,\"\")","v":""},{"$f":"IF(AND(I83>0,ROWS($D$70:H82)<>COLUMNS($D$70:H82)),MAX($AQ83:AU83)+1,\"\")","v":""},{"$f":"IF(AND(J83>0,ROWS($D$70:I82)<>COLUMNS($D$70:I82)),MAX($AQ83:AV83)+1,\"\")","v":""},{"$f":"IF(AND(K83>0,ROWS($D$70:J82)<>COLUMNS($D$70:J82)),MAX($AQ83:AW83)+1,\"\")","v":""},{"$f":"IF(AND(L83>0,ROWS($D$70:K82)<>COLUMNS($D$70:K82)),MAX($AQ83:AX83)+1,\"\")","v":""},{"$f":"IF(AND(M83>0,ROWS($D$70:L82)<>COLUMNS($D$70:L82)),MAX($AQ83:AY83)+1,\"\")","v":""},{"$f":"IF(AND(N83>0,ROWS($D$70:M82)<>COLUMNS($D$70:M82)),MAX($AQ83:AZ83)+1,\"\")","v":""},{"$f":"IF(AND(O83>0,ROWS($D$70:N82)<>COLUMNS($D$70:N82)),MAX($AQ83:BA83)+1,\"\")","v":""},{"$f":"IF(AND(P83>0,ROWS($D$70:O82)<>COLUMNS($D$70:O82)),MAX($AQ83:BB83)+1,\"\")","v":""},{"$f":"IF(AND(Q83>0,ROWS($D$70:P82)<>COLUMNS($D$70:P82)),MAX($AQ83:BC83)+1,\"\")","v":""},{"$f":"IF(AND(R83>0,ROWS($D$70:Q82)<>COLUMNS($D$70:Q82)),MAX($AQ83:BD83)+1,\"\")","v":""},{"$f":"IF(AND(S83>0,ROWS($D$70:R82)<>COLUMNS($D$70:R82)),MAX($AQ83:BE83)+1,\"\")","v":""},{"$f":"IF(AND(T83>0,ROWS($D$70:S82)<>COLUMNS($D$70:S82)),MAX($AQ83:BF83)+1,\"\")","v":""},{"$f":"IF(AND(U83>0,ROWS($D$70:T82)<>COLUMNS($D$70:T82)),MAX($AQ83:BG83)+1,\"\")","v":""},{"$f":"IF(AND(V83>0,ROWS($D$70:U82)<>COLUMNS($D$70:U82)),MAX($AQ83:BH83)+1,\"\")","v":""},{"$f":"IF(AND(W83>0,ROWS($D$70:V82)<>COLUMNS($D$70:V82)),MAX($AQ83:BI83)+1,\"\")","v":""},{"$f":"IF(AND(X83>0,ROWS($D$70:W82)<>COLUMNS($D$70:W82)),MAX($AQ83:BJ83)+1,\"\")","v":""},{"$f":"IF(AND(Y83>0,ROWS($D$70:X82)<>COLUMNS($D$70:X82)),MAX($AQ83:BK83)+1,\"\")","v":""},{"$f":"IF(AND(Z83>0,ROWS($D$70:Y82)<>COLUMNS($D$70:Y82)),MAX($AQ83:BL83)+1,\"\")","v":""},{"$f":"IF(AND(AA83>0,ROWS($D$70:Z82)<>COLUMNS($D$70:Z82)),MAX($AQ83:BM83)+1,\"\")","v":""},{"$f":"IF(AND(AB83>0,ROWS($D$70:AA82)<>COLUMNS($D$70:AA82)),MAX($AQ83:BN83)+1,\"\")","v":""},{"$f":"IF(AND(AC83>0,ROWS($D$70:AB82)<>COLUMNS($D$70:AB82)),MAX($AQ83:BO83)+1,\"\")","v":""},{"$f":"IF(AND(AD83>0,ROWS($D$70:AC82)<>COLUMNS($D$70:AC82)),MAX($AQ83:BP83)+1,\"\")","v":""},{"$f":"IF(AND(AE83>0,ROWS($D$70:AD82)<>COLUMNS($D$70:AD82)),MAX($AQ83:BQ83)+1,\"\")","v":""},{"$f":"IF(AND(AF83>0,ROWS($D$70:AE82)<>COLUMNS($D$70:AE82)),MAX($AQ83:BR83)+1,\"\")","v":""},{"$f":"IF(AND(AG83>0,ROWS($D$70:AF82)<>COLUMNS($D$70:AF82)),MAX($AQ83:BS83)+1,\"\")","v":""},{"$f":"IF(AND(AH83>0,ROWS($D$70:AG82)<>COLUMNS($D$70:AG82)),MAX($AQ83:BT83)+1,\"\")","v":""}]
[null,null,4,"",{"v":0,"d":"0.000"},{"v":0,"d":"0.000"},{"v":0,"d":"0.000"},{"v":0,"d":"0.000"},{"v":0,"d":"0.000"},{"v":0,"d":"0.000"},{"v":0,"d":"0.000"},{"v":0,"d":"0.000"},{"v":0,"d":"0.000"},{"v":0,"d":"0.000"},{"v":0,"d":"0.000"},{"v":0,"d":"0.000"},{"v":0,"d":"0.000"},{"v":1,"d":"1.000"},{"v":0,"d":"0.000"},{"v":0,"d":"0.000"},{"v":0,"d":"0.000"},{"v":0,"d":"0.000"},{"v":0,"d":"0.000"},{"v":0,"d":"0.000"},{"v":0,"d":"0.000"},{"v":0,"d":"0.000"},{"v":0,"d":"0.000"},{"v":0,"d":"0.000"},{"v":0,"d":"0.000"},{"v":0,"d":"0.000"},{"v":0,"d":"0.000"},{"v":0,"d":"0.000"},{"v":0,"d":"0.000"},{"v":0,"d":"0.000"},null,{"$f":"IFERROR(SUMIF(E_PurchPrec!S:S,CONST_CNTR_EmbedEmDir&D84,E_PurchPrec!T:T)/SUMIF(E_PurchPrec!R:R,CONST_CNTR_TotProd&D84,E_PurchPrec!T:T),0)","v":{"v":0,"d":"0.000"}},{"v":0,"d":"0.0000"},{"$f":"IFERROR(SUMIF(E_PurchPrec!S:S,CONST_CNTR_EmbedEmInDir&D84,E_PurchPrec!T:T)/SUMIF(E_PurchPrec!R:R,CONST_CNTR_TotProd&D84,E_PurchPrec!T:T),0)","v":{"v":0,"d":"0.0000"}},{"v":0,"d":"0.0000"},{"$f":"IFERROR(SUMIF(E_PurchPrec!R:R,CONST_ElecConsumption&D84,E_PurchPrec!T:T)/SUMIF(E_PurchPrec!R:R,CONST_CNTR_TotProd&D84,E_PurchPrec!T:T),0)","v":{"v":0,"d":"0.0000"}},{"v":0,"d":"0.0000"},null,null,{"$f":"IF(AND(E84>0,ROWS($D$70:D83)<>COLUMNS($D$70:D83)),MAX($AQ84:AQ84)+1,\"\")","v":""},{"$f":"IF(AND(F84>0,ROWS($D$70:E83)<>COLUMNS($D$70:E83)),MAX($AQ84:AR84)+1,\"\")","v":""},{"$f":"IF(AND(G84>0,ROWS($D$70:F83)<>COLUMNS($D$70:F83)),MAX($AQ84:AS84)+1,\"\")","v":""},{"$f":"IF(AND(H84>0,ROWS($D$70:G83)<>COLUMNS($D$70:G83)),MAX($AQ84:AT84)+1,\"\")","v":""},{"$f":"IF(AND(I84>0,ROWS($D$70:H83)<>COLUMNS($D$70:H83)),MAX($AQ84:AU84)+1,\"\")","v":""},{"$f":"IF(AND(J84>0,ROWS($D$70:I83)<>COLUMNS($D$70:I83)),MAX($AQ84:AV84)+1,\"\")","v":""},{"$f":"IF(AND(K84>0,ROWS($D$70:J83)<>COLUMNS($D$70:J83)),MAX($AQ84:AW84)+1,\"\")","v":""},{"$f":"IF(AND(L84>0,ROWS($D$70:K83)<>COLUMNS($D$70:K83)),MAX($AQ84:AX84)+1,\"\")","v":""},{"$f":"IF(AND(M84>0,ROWS($D$70:L83)<>COLUMNS($D$70:L83)),MAX($AQ84:AY84)+1,\"\")","v":""},{"$f":"IF(AND(N84>0,ROWS($D$70:M83)<>COLUMNS($D$70:M83)),MAX($AQ84:AZ84)+1,\"\")","v":""},{"$f":"IF(AND(O84>0,ROWS($D$70:N83)<>COLUMNS($D$70:N83)),MAX($AQ84:BA84)+1,\"\")","v":""},{"$f":"IF(AND(P84>0,ROWS($D$70:O83)<>COLUMNS($D$70:O83)),MAX($AQ84:BB84)+1,\"\")","v":""},{"$f":"IF(AND(Q84>0,ROWS($D$70:P83)<>COLUMNS($D$70:P83)),MAX($AQ84:BC84)+1,\"\")","v":""},{"$f":"IF(AND(R84>0,ROWS($D$70:Q83)<>COLUMNS($D$70:Q83)),MAX($AQ84:BD84)+1,\"\")","v":""},{"$f":"IF(AND(S84>0,ROWS($D$70:R83)<>COLUMNS($D$70:R83)),MAX($AQ84:BE84)+1,\"\")","v":""},{"$f":"IF(AND(T84>0,ROWS($D$70:S83)<>COLUMNS($D$70:S83)),MAX($AQ84:BF84)+1,\"\")","v":""},{"$f":"IF(AND(U84>0,ROWS($D$70:T83)<>COLUMNS($D$70:T83)),MAX($AQ84:BG84)+1,\"\")","v":""},{"$f":"IF(AND(V84>0,ROWS($D$70:U83)<>COLUMNS($D$70:U83)),MAX($AQ84:BH84)+1,\"\")","v":""},{"$f":"IF(AND(W84>0,ROWS($D$70:V83)<>COLUMNS($D$70:V83)),MAX($AQ84:BI84)+1,\"\")","v":""},{"$f":"IF(AND(X84>0,ROWS($D$70:W83)<>COLUMNS($D$70:W83)),MAX($AQ84:BJ84)+1,\"\")","v":""},{"$f":"IF(AND(Y84>0,ROWS($D$70:X83)<>COLUMNS($D$70:X83)),MAX($AQ84:BK84)+1,\"\")","v":""},{"$f":"IF(AND(Z84>0,ROWS($D$70:Y83)<>COLUMNS($D$70:Y83)),MAX($AQ84:BL84)+1,\"\")","v":""},{"$f":"IF(AND(AA84>0,ROWS($D$70:Z83)<>COLUMNS($D$70:Z83)),MAX($AQ84:BM84)+1,\"\")","v":""},{"$f":"IF(AND(AB84>0,ROWS($D$70:AA83)<>COLUMNS($D$70:AA83)),MAX($AQ84:BN84)+1,\"\")","v":""},{"$f":"IF(AND(AC84>0,ROWS($D$70:AB83)<>COLUMNS($D$70:AB83)),MAX($AQ84:BO84)+1,\"\")","v":""},{"$f":"IF(AND(AD84>0,ROWS($D$70:AC83)<>COLUMNS($D$70:AC83)),MAX($AQ84:BP84)+1,\"\")","v":""},{"$f":"IF(AND(AE84>0,ROWS($D$70:AD83)<>COLUMNS($D$70:AD83)),MAX($AQ84:BQ84)+1,\"\")","v":""},{"$f":"IF(AND(AF84>0,ROWS($D$70:AE83)<>COLUMNS($D$70:AE83)),MAX($AQ84:BR84)+1,\"\")","v":""},{"$f":"IF(AND(AG84>0,ROWS($D$70:AF83)<>COLUMNS($D$70:AF83)),MAX($AQ84:BS84)+1,\"\")","v":""},{"$f":"IF(AND(AH84>0,ROWS($D$70:AG83)<>COLUMNS($D$70:AG83)),MAX($AQ84:BT84)+1,\"\")","v":""}]
[null,null,5,"",{"v":0,"d":"0.000"},{"v":0,"d":"0.000"},{"v":0,"d":"0.000"},{"v":0,"d":"0.000"},{"v":0,"d":"0.000"},{"v":0,"d":"0.000"},{"v":0,"d":"0.000"},{"v":0,"d":"0.000"},{"v":0,"d":"0.000"},{"v":0,"d":"0.000"},{"v":0,"d":"0.000"},{"v":0,"d":"0.000"},{"v":0,"d":"0.000"},{"v":0,"d":"0.000"},{"v":1,"d":"1.000"},{"v":0,"d":"0.000"},{"v":0,"d":"0.000"},{"v":0,"d":"0.000"},{"v":0,"d":"0.000"},{"v":0,"d":"0.000"},{"v":0,"d":"0.000"},{"v":0,"d":"0.000"},{"v":0,"d":"0.000"},{"v":0,"d":"0.000"},{"v":0,"d":"0.000"},{"v":0,"d":"0.000"},{"v":0,"d":"0.000"},{"v":0,"d":"0.000"},{"v":0,"d":"0.000"},{"v":0,"d":"0.000"},null,{"$f":"IFERROR(SUMIF(E_PurchPrec!S:S,CONST_CNTR_EmbedEmDir&D85,E_PurchPrec!T:T)/SUMIF(E_PurchPrec!R:R,CONST_CNTR_TotProd&D85,E_PurchPrec!T:T),0)","v":{"v":0,"d":"0.000"}},{"v":0,"d":"0.0000"},{"$f":"IFERROR(SUMIF(E_PurchPrec!S:S,CONST_CNTR_EmbedEmInDir&D85,E_PurchPrec!T:T)/SUMIF(E_PurchPrec!R:R,CONST_CNTR_TotProd&D85,E_PurchPrec!T:T),0)","v":{"v":0,"d":"0.0000"}},{"v":0,"d":"0.0000"},{"$f":"IFERROR(SUMIF(E_PurchPrec!R:R,CONST_ElecConsumption&D85,E_PurchPrec!T:T)/SUMIF(E_PurchPrec!R:R,CONST_CNTR_TotProd&D85,E_PurchPrec!T:T),0)","v":{"v":0,"d":"0.0000"}},{"v":0,"d":"0.0000"},null,null,{"$f":"IF(AND(E85>0,ROWS($D$70:D84)<>COLUMNS($D$70:D84)),MAX($AQ85:AQ85)+1,\"\")","v":""},{"$f":"IF(AND(F85>0,ROWS($D$70:E84)<>COLUMNS($D$70:E84)),MAX($AQ85:AR85)+1,\"\")","v":""},{"$f":"IF(AND(G85>0,ROWS($D$70:F84)<>COLUMNS($D$70:F84)),MAX($AQ85:AS85)+1,\"\")","v":""},{"$f":"IF(AND(H85>0,ROWS($D$70:G84)<>COLUMNS($D$70:G84)),MAX($AQ85:AT85)+1,\"\")","v":""},{"$f":"IF(AND(I85>0,ROWS($D$70:H84)<>COLUMNS($D$70:H84)),MAX($AQ85:AU85)+1,\"\")","v":""},{"$f":"IF(AND(J85>0,ROWS($D$70:I84)<>COLUMNS($D$70:I84)),MAX($AQ85:AV85)+1,\"\")","v":""},{"$f":"IF(AND(K85>0,ROWS($D$70:J84)<>COLUMNS($D$70:J84)),MAX($AQ85:AW85)+1,\"\")","v":""},{"$f":"IF(AND(L85>0,ROWS($D$70:K84)<>COLUMNS($D$70:K84)),MAX($AQ85:AX85)+1,\"\")","v":""},{"$f":"IF(AND(M85>0,ROWS($D$70:L84)<>COLUMNS($D$70:L84)),MAX($AQ85:AY85)+1,\"\")","v":""},{"$f":"IF(AND(N85>0,ROWS($D$70:M84)<>COLUMNS($D$70:M84)),MAX($AQ85:AZ85)+1,\"\")","v":""},{"$f":"IF(AND(O85>0,ROWS($D$70:N84)<>COLUMNS($D$70:N84)),MAX($AQ85:BA85)+1,\"\")","v":""},{"$f":"IF(AND(P85>0,ROWS($D$70:O84)<>COLUMNS($D$70:O84)),MAX($AQ85:BB85)+1,\"\")","v":""},{"$f":"IF(AND(Q85>0,ROWS($D$70:P84)<>COLUMNS($D$70:P84)),MAX($AQ85:BC85)+1,\"\")","v":""},{"$f":"IF(AND(R85>0,ROWS($D$70:Q84)<>COLUMNS($D$70:Q84)),MAX($AQ85:BD85)+1,\"\")","v":""},{"$f":"IF(AND(S85>0,ROWS($D$70:R84)<>COLUMNS($D$70:R84)),MAX($AQ85:BE85)+1,\"\")","v":""},{"$f":"IF(AND(T85>0,ROWS($D$70:S84)<>COLUMNS($D$70:S84)),MAX($AQ85:BF85)+1,\"\")","v":""},{"$f":"IF(AND(U85>0,ROWS($D$70:T84)<>COLUMNS($D$70:T84)),MAX($AQ85:BG85)+1,\"\")","v":""},{"$f":"IF(AND(V85>0,ROWS($D$70:U84)<>COLUMNS($D$70:U84)),MAX($AQ85:BH85)+1,\"\")","v":""},{"$f":"IF(AND(W85>0,ROWS($D$70:V84)<>COLUMNS($D$70:V84)),MAX($AQ85:BI85)+1,\"\")","v":""},{"$f":"IF(AND(X85>0,ROWS($D$70:W84)<>COLUMNS($D$70:W84)),MAX($AQ85:BJ85)+1,\"\")","v":""},{"$f":"IF(AND(Y85>0,ROWS($D$70:X84)<>COLUMNS($D$70:X84)),MAX($AQ85:BK85)+1,\"\")","v":""},{"$f":"IF(AND(Z85>0,ROWS($D$70:Y84)<>COLUMNS($D$70:Y84)),MAX($AQ85:BL85)+1,\"\")","v":""},{"$f":"IF(AND(AA85>0,ROWS($D$70:Z84)<>COLUMNS($D$70:Z84)),MAX($AQ85:BM85)+1,\"\")","v":""},{"$f":"IF(AND(AB85>0,ROWS($D$70:AA84)<>COLUMNS($D$70:AA84)),MAX($AQ85:BN85)+1,\"\")","v":""},{"$f":"IF(AND(AC85>0,ROWS($D$70:AB84)<>COLUMNS($D$70:AB84)),MAX($AQ85:BO85)+1,\"\")","v":""},{"$f":"IF(AND(AD85>0,ROWS($D$70:AC84)<>COLUMNS($D$70:AC84)),MAX($AQ85:BP85)+1,\"\")","v":""},{"$f":"IF(AND(AE85>0,ROWS($D$70:AD84)<>COLUMNS($D$70:AD84)),MAX($AQ85:BQ85)+1,\"\")","v":""},{"$f":"IF(AND(AF85>0,ROWS($D$70:AE84)<>COLUMNS($D$70:AE84)),MAX($AQ85:BR85)+1,\"\")","v":""},{"$f":"IF(AND(AG85>0,ROWS($D$70:AF84)<>COLUMNS($D$70:AF84)),MAX($AQ85:BS85)+1,\"\")","v":""},{"$f":"IF(AND(AH85>0,ROWS($D$70:AG84)<>COLUMNS($D$70:AG84)),MAX($AQ85:BT85)+1,\"\")","v":""}]
[null,null,6,"",{"v":0,"d":"0.000"},{"v":0,"d":"0.000"},{"v":0,"d":"0.000"},{"v":0,"d":"0.000"},{"v":0,"d":"0.000"},{"v":0,"d":"0.000"},{"v":0,"d":"0.000"},{"v":0,"d":"0.000"},{"v":0,"d":"0.000"},{"v":0,"d":"0.000"},{"v":0,"d":"0.000"},{"v":0,"d":"0.000"},{"v":0,"d":"0.000"},{"v":0,"d":"0.000"},{"v":0,"d":"0.000"},{"v":1,"d":"1.000"},{"v":0,"d":"0.000"},{"v":0,"d":"0.000"},{"v":0,"d":"0.000"},{"v":0,"d":"0.000"},{"v":0,"d":"0.000"},{"v":0,"d":"0.000"},{"v":0,"d":"0.000"},{"v":0,"d":"0.000"},{"v":0,"d":"0.000"},{"v":0,"d":"0.000"},{"v":0,"d":"0.000"},{"v":0,"d":"0.000"},{"v":0,"d":"0.000"},{"v":0,"d":"0.000"},null,{"$f":"IFERROR(SUMIF(E_PurchPrec!S:S,CONST_CNTR_EmbedEmDir&D86,E_PurchPrec!T:T)/SUMIF(E_PurchPrec!R:R,CONST_CNTR_TotProd&D86,E_PurchPrec!T:T),0)","v":{"v":0,"d":"0.000"}},{"v":0,"d":"0.0000"},{"$f":"IFERROR(SUMIF(E_PurchPrec!S:S,CONST_CNTR_EmbedEmInDir&D86,E_PurchPrec!T:T)/SUMIF(E_PurchPrec!R:R,CONST_CNTR_TotProd&D86,E_PurchPrec!T:T),0)","v":{"v":0,"d":"0.0000"}},{"v":0,"d":"0.0000"},{"$f":"IFERROR(SUMIF(E_PurchPrec!R:R,CONST_ElecConsumption&D86,E_PurchPrec!T:T)/SUMIF(E_PurchPrec!R:R,CONST_CNTR_TotProd&D86,E_PurchPrec!T:T),0)","v":{"v":0,"d":"0.0000"}},{"v":0,"d":"0.0000"},null,null,{"$f":"IF(AND(E86>0,ROWS($D$70:D85)<>COLUMNS($D$70:D85)),MAX($AQ86:AQ86)+1,\"\")","v":""},{"$f":"IF(AND(F86>0,ROWS($D$70:E85)<>COLUMNS($D$70:E85)),MAX($AQ86:AR86)+1,\"\")","v":""},{"$f":"IF(AND(G86>0,ROWS($D$70:F85)<>COLUMNS($D$70:F85)),MAX($AQ86:AS86)+1,\"\")","v":""},{"$f":"IF(AND(H86>0,ROWS($D$70:G85)<>COLUMNS($D$70:G85)),MAX($AQ86:AT86)+1,\"\")","v":""},{"$f":"IF(AND(I86>0,ROWS($D$70:H85)<>COLUMNS($D$70:H85)),MAX($AQ86:AU86)+1,\"\")","v":""},{"$f":"IF(AND(J86>0,ROWS($D$70:I85)<>COLUMNS($D$70:I85)),MAX($AQ86:AV86)+1,\"\")","v":""},{"$f":"IF(AND(K86>0,ROWS($D$70:J85)<>COLUMNS($D$70:J85)),MAX($AQ86:AW86)+1,\"\")","v":""},{"$f":"IF(AND(L86>0,ROWS($D$70:K85)<>COLUMNS($D$70:K85)),MAX($AQ86:AX86)+1,\"\")","v":""},{"$f":"IF(AND(M86>0,ROWS($D$70:L85)<>COLUMNS($D$70:L85)),MAX($AQ86:AY86)+1,\"\")","v":""},{"$f":"IF(AND(N86>0,ROWS($D$70:M85)<>COLUMNS($D$70:M85)),MAX($AQ86:AZ86)+1,\"\")","v":""},{"$f":"IF(AND(O86>0,ROWS($D$70:N85)<>COLUMNS($D$70:N85)),MAX($AQ86:BA86)+1,\"\")","v":""},{"$f":"IF(AND(P86>0,ROWS($D$70:O85)<>COLUMNS($D$70:O85)),MAX($AQ86:BB86)+1,\"\")","v":""},{"$f":"IF(AND(Q86>0,ROWS($D$70:P85)<>COLUMNS($D$70:P85)),MAX($AQ86:BC86)+1,\"\")","v":""},{"$f":"IF(AND(R86>0,ROWS($D$70:Q85)<>COLUMNS($D$70:Q85)),MAX($AQ86:BD86)+1,\"\")","v":""},{"$f":"IF(AND(S86>0,ROWS($D$70:R85)<>COLUMNS($D$70:R85)),MAX($AQ86:BE86)+1,\"\")","v":""},{"$f":"IF(AND(T86>0,ROWS($D$70:S85)<>COLUMNS($D$70:S85)),MAX($AQ86:BF86)+1,\"\")","v":""},{"$f":"IF(AND(U86>0,ROWS($D$70:T85)<>COLUMNS($D$70:T85)),MAX($AQ86:BG86)+1,\"\")","v":""},{"$f":"IF(AND(V86>0,ROWS($D$70:U85)<>COLUMNS($D$70:U85)),MAX($AQ86:BH86)+1,\"\")","v":""},{"$f":"IF(AND(W86>0,ROWS($D$70:V85)<>COLUMNS($D$70:V85)),MAX($AQ86:BI86)+1,\"\")","v":""},{"$f":"IF(AND(X86>0,ROWS($D$70:W85)<>COLUMNS($D$70:W85)),MAX($AQ86:BJ86)+1,\"\")","v":""},{"$f":"IF(AND(Y86>0,ROWS($D$70:X85)<>COLUMNS($D$70:X85)),MAX($AQ86:BK86)+1,\"\")","v":""},{"$f":"IF(AND(Z86>0,ROWS($D$70:Y85)<>COLUMNS($D$70:Y85)),MAX($AQ86:BL86)+1,\"\")","v":""},{"$f":"IF(AND(AA86>0,ROWS($D$70:Z85)<>COLUMNS($D$70:Z85)),MAX($AQ86:BM86)+1,\"\")","v":""},{"$f":"IF(AND(AB86>0,ROWS($D$70:AA85)<>COLUMNS($D$70:AA85)),MAX($AQ86:BN86)+1,\"\")","v":""},{"$f":"IF(AND(AC86>0,ROWS($D$70:AB85)<>COLUMNS($D$70:AB85)),MAX($AQ86:BO86)+1,\"\")","v":""},{"$f":"IF(AND(AD86>0,ROWS($D$70:AC85)<>COLUMNS($D$70:AC85)),MAX($AQ86:BP86)+1,\"\")","v":""},{"$f":"IF(AND(AE86>0,ROWS($D$70:AD85)<>COLUMNS($D$70:AD85)),MAX($AQ86:BQ86)+1,\"\")","v":""},{"$f":"IF(AND(AF86>0,ROWS($D$70:AE85)<>COLUMNS($D$70:AE85)),MAX($AQ86:BR86)+1,\"\")","v":""},{"$f":"IF(AND(AG86>0,ROWS($D$70:AF85)<>COLUMNS($D$70:AF85)),MAX($AQ86:BS86)+1,\"\")","v":""},{"$f":"IF(AND(AH86>0,ROWS($D$70:AG85)<>COLUMNS($D$70:AG85)),MAX($AQ86:BT86)+1,\"\")","v":""}]
[null,null,7,"",{"v":0,"d":"0.000"},{"v":0,"d":"0.000"},{"v":0,"d":"0.000"},{"v":0,"d":"0.000"},{"v":0,"d":"0.000"},{"v":0,"d":"0.000"},{"v":0,"d":"0.000"},{"v":0,"d":"0.000"},{"v":0,"d":"0.000"},{"v":0,"d":"0.000"},{"v":0,"d":"0.000"},{"v":0,"d":"0.000"},{"v":0,"d":"0.000"},{"v":0,"d":"0.000"},{"v":0,"d":"0.000"},{"v":0,"d":"0.000"},{"v":1,"d":"1.000"},{"v":0,"d":"0.000"},{"v":0,"d":"0.000"},{"v":0,"d":"0.000"},{"v":0,"d":"0.000"},{"v":0,"d":"0.000"},{"v":0,"d":"0.000"},{"v":0,"d":"0.000"},{"v":0,"d":"0.000"},{"v":0,"d":"0.000"},{"v":0,"d":"0.000"},{"v":0,"d":"0.000"},{"v":0,"d":"0.000"},{"v":0,"d":"0.000"},null,{"$f":"IFERROR(SUMIF(E_PurchPrec!S:S,CONST_CNTR_EmbedEmDir&D87,E_PurchPrec!T:T)/SUMIF(E_PurchPrec!R:R,CONST_CNTR_TotProd&D87,E_PurchPrec!T:T),0)","v":{"v":0,"d":"0.000"}},{"v":0,"d":"0.0000"},{"$f":"IFERROR(SUMIF(E_PurchPrec!S:S,CONST_CNTR_EmbedEmInDir&D87,E_PurchPrec!T:T)/SUMIF(E_PurchPrec!R:R,CONST_CNTR_TotProd&D87,E_PurchPrec!T:T),0)","v":{"v":0,"d":"0.0000"}},{"v":0,"d":"0.0000"},{"$f":"IFERROR(SUMIF(E_PurchPrec!R:R,CONST_ElecConsumption&D87,E_PurchPrec!T:T)/SUMIF(E_PurchPrec!R:R,CONST_CNTR_TotProd&D87,E_PurchPrec!T:T),0)","v":{"v":0,"d":"0.0000"}},{"v":0,"d":"0.0000"},null,null,{"$f":"IF(AND(E87>0,ROWS($D$70:D86)<>COLUMNS($D$70:D86)),MAX($AQ87:AQ87)+1,\"\")","v":""},{"$f":"IF(AND(F87>0,ROWS($D$70:E86)<>COLUMNS($D$70:E86)),MAX($AQ87:AR87)+1,\"\")","v":""},{"$f":"IF(AND(G87>0,ROWS($D$70:F86)<>COLUMNS($D$70:F86)),MAX($AQ87:AS87)+1,\"\")","v":""},{"$f":"IF(AND(H87>0,ROWS($D$70:G86)<>COLUMNS($D$70:G86)),MAX($AQ87:AT87)+1,\"\")","v":""},{"$f":"IF(AND(I87>0,ROWS($D$70:H86)<>COLUMNS($D$70:H86)),MAX($AQ87:AU87)+1,\"\")","v":""},{"$f":"IF(AND(J87>0,ROWS($D$70:I86)<>COLUMNS($D$70:I86)),MAX($AQ87:AV87)+1,\"\")","v":""},{"$f":"IF(AND(K87>0,ROWS($D$70:J86)<>COLUMNS($D$70:J86)),MAX($AQ87:AW87)+1,\"\")","v":""},{"$f":"IF(AND(L87>0,ROWS($D$70:K86)<>COLUMNS($D$70:K86)),MAX($AQ87:AX87)+1,\"\")","v":""},{"$f":"IF(AND(M87>0,ROWS($D$70:L86)<>COLUMNS($D$70:L86)),MAX($AQ87:AY87)+1,\"\")","v":""},{"$f":"IF(AND(N87>0,ROWS($D$70:M86)<>COLUMNS($D$70:M86)),MAX($AQ87:AZ87)+1,\"\")","v":""},{"$f":"IF(AND(O87>0,ROWS($D$70:N86)<>COLUMNS($D$70:N86)),MAX($AQ87:BA87)+1,\"\")","v":""},{"$f":"IF(AND(P87>0,ROWS($D$70:O86)<>COLUMNS($D$70:O86)),MAX($AQ87:BB87)+1,\"\")","v":""},{"$f":"IF(AND(Q87>0,ROWS($D$70:P86)<>COLUMNS($D$70:P86)),MAX($AQ87:BC87)+1,\"\")","v":""},{"$f":"IF(AND(R87>0,ROWS($D$70:Q86)<>COLUMNS($D$70:Q86)),MAX($AQ87:BD87)+1,\"\")","v":""},{"$f":"IF(AND(S87>0,ROWS($D$70:R86)<>COLUMNS($D$70:R86)),MAX($AQ87:BE87)+1,\"\")","v":""},{"$f":"IF(AND(T87>0,ROWS($D$70:S86)<>COLUMNS($D$70:S86)),MAX($AQ87:BF87)+1,\"\")","v":""},{"$f":"IF(AND(U87>0,ROWS($D$70:T86)<>COLUMNS($D$70:T86)),MAX($AQ87:BG87)+1,\"\")","v":""},{"$f":"IF(AND(V87>0,ROWS($D$70:U86)<>COLUMNS($D$70:U86)),MAX($AQ87:BH87)+1,\"\")","v":""},{"$f":"IF(AND(W87>0,ROWS($D$70:V86)<>COLUMNS($D$70:V86)),MAX($AQ87:BI87)+1,\"\")","v":""},{"$f":"IF(AND(X87>0,ROWS($D$70:W86)<>COLUMNS($D$70:W86)),MAX($AQ87:BJ87)+1,\"\")","v":""},{"$f":"IF(AND(Y87>0,ROWS($D$70:X86)<>COLUMNS($D$70:X86)),MAX($AQ87:BK87)+1,\"\")","v":""},{"$f":"IF(AND(Z87>0,ROWS($D$70:Y86)<>COLUMNS($D$70:Y86)),MAX($AQ87:BL87)+1,\"\")","v":""},{"$f":"IF(AND(AA87>0,ROWS($D$70:Z86)<>COLUMNS($D$70:Z86)),MAX($AQ87:BM87)+1,\"\")","v":""},{"$f":"IF(AND(AB87>0,ROWS($D$70:AA86)<>COLUMNS($D$70:AA86)),MAX($AQ87:BN87)+1,\"\")","v":""},{"$f":"IF(AND(AC87>0,ROWS($D$70:AB86)<>COLUMNS($D$70:AB86)),MAX($AQ87:BO87)+1,\"\")","v":""},{"$f":"IF(AND(AD87>0,ROWS($D$70:AC86)<>COLUMNS($D$70:AC86)),MAX($AQ87:BP87)+1,\"\")","v":""},{"$f":"IF(AND(AE87>0,ROWS($D$70:AD86)<>COLUMNS($D$70:AD86)),MAX($AQ87:BQ87)+1,\"\")","v":""},{"$f":"IF(AND(AF87>0,ROWS($D$70:AE86)<>COLUMNS($D$70:AE86)),MAX($AQ87:BR87)+1,\"\")","v":""},{"$f":"IF(AND(AG87>0,ROWS($D$70:AF86)<>COLUMNS($D$70:AF86)),MAX($AQ87:BS87)+1,\"\")","v":""},{"$f":"IF(AND(AH87>0,ROWS($D$70:AG86)<>COLUMNS($D$70:AG86)),MAX($AQ87:BT87)+1,\"\")","v":""}]
[null,null,8,"",{"v":0,"d":"0.000"},{"v":0,"d":"0.000"},{"v":0,"d":"0.000"},{"v":0,"d":"0.000"},{"v":0,"d":"0.000"},{"v":0,"d":"0.000"},{"v":0,"d":"0.000"},{"v":0,"d":"0.000"},{"v":0,"d":"0.000"},{"v":0,"d":"0.000"},{"v":0,"d":"0.000"},{"v":0,"d":"0.000"},{"v":0,"d":"0.000"},{"v":0,"d":"0.000"},{"v":0,"d":"0.000"},{"v":0,"d":"0.000"},{"v":0,"d":"0.000"},{"v":1,"d":"1.000"},{"v":0,"d":"0.000"},{"v":0,"d":"0.000"},{"v":0,"d":"0.000"},{"v":0,"d":"0.000"},{"v":0,"d":"0.000"},{"v":0,"d":"0.000"},{"v":0,"d":"0.000"},{"v":0,"d":"0.000"},{"v":0,"d":"0.000"},{"v":0,"d":"0.000"},{"v":0,"d":"0.000"},{"v":0,"d":"0.000"},null,{"$f":"IFERROR(SUMIF(E_PurchPrec!S:S,CONST_CNTR_EmbedEmDir&D88,E_PurchPrec!T:T)/SUMIF(E_PurchPrec!R:R,CONST_CNTR_TotProd&D88,E_PurchPrec!T:T),0)","v":{"v":0,"d":"0.000"}},{"v":0,"d":"0.0000"},{"$f":"IFERROR(SUMIF(E_PurchPrec!S:S,CONST_CNTR_EmbedEmInDir&D88,E_PurchPrec!T:T)/SUMIF(E_PurchPrec!R:R,CONST_CNTR_TotProd&D88,E_PurchPrec!T:T),0)","v":{"v":0,"d":"0.0000"}},{"v":0,"d":"0.0000"},{"$f":"IFERROR(SUMIF(E_PurchPrec!R:R,CONST_ElecConsumption&D88,E_PurchPrec!T:T)/SUMIF(E_PurchPrec!R:R,CONST_CNTR_TotProd&D88,E_PurchPrec!T:T),0)","v":{"v":0,"d":"0.0000"}},{"v":0,"d":"0.0000"},null,null,{"$f":"IF(AND(E88>0,ROWS($D$70:D87)<>COLUMNS($D$70:D87)),MAX($AQ88:AQ88)+1,\"\")","v":""},{"$f":"IF(AND(F88>0,ROWS($D$70:E87)<>COLUMNS($D$70:E87)),MAX($AQ88:AR88)+1,\"\")","v":""},{"$f":"IF(AND(G88>0,ROWS($D$70:F87)<>COLUMNS($D$70:F87)),MAX($AQ88:AS88)+1,\"\")","v":""},{"$f":"IF(AND(H88>0,ROWS($D$70:G87)<>COLUMNS($D$70:G87)),MAX($AQ88:AT88)+1,\"\")","v":""},{"$f":"IF(AND(I88>0,ROWS($D$70:H87)<>COLUMNS($D$70:H87)),MAX($AQ88:AU88)+1,\"\")","v":""},{"$f":"IF(AND(J88>0,ROWS($D$70:I87)<>COLUMNS($D$70:I87)),MAX($AQ88:AV88)+1,\"\")","v":""},{"$f":"IF(AND(K88>0,ROWS($D$70:J87)<>COLUMNS($D$70:J87)),MAX($AQ88:AW88)+1,\"\")","v":""},{"$f":"IF(AND(L88>0,ROWS($D$70:K87)<>COLUMNS($D$70:K87)),MAX($AQ88:AX88)+1,\"\")","v":""},{"$f":"IF(AND(M88>0,ROWS($D$70:L87)<>COLUMNS($D$70:L87)),MAX($AQ88:AY88)+1,\"\")","v":""},{"$f":"IF(AND(N88>0,ROWS($D$70:M87)<>COLUMNS($D$70:M87)),MAX($AQ88:AZ88)+1,\"\")","v":""},{"$f":"IF(AND(O88>0,ROWS($D$70:N87)<>COLUMNS($D$70:N87)),MAX($AQ88:BA88)+1,\"\")","v":""},{"$f":"IF(AND(P88>0,ROWS($D$70:O87)<>COLUMNS($D$70:O87)),MAX($AQ88:BB88)+1,\"\")","v":""},{"$f":"IF(AND(Q88>0,ROWS($D$70:P87)<>COLUMNS($D$70:P87)),MAX($AQ88:BC88)+1,\"\")","v":""},{"$f":"IF(AND(R88>0,ROWS($D$70:Q87)<>COLUMNS($D$70:Q87)),MAX($AQ88:BD88)+1,\"\")","v":""},{"$f":"IF(AND(S88>0,ROWS($D$70:R87)<>COLUMNS($D$70:R87)),MAX($AQ88:BE88)+1,\"\")","v":""},{"$f":"IF(AND(T88>0,ROWS($D$70:S87)<>COLUMNS($D$70:S87)),MAX($AQ88:BF88)+1,\"\")","v":""},{"$f":"IF(AND(U88>0,ROWS($D$70:T87)<>COLUMNS($D$70:T87)),MAX($AQ88:BG88)+1,\"\")","v":""},{"$f":"IF(AND(V88>0,ROWS($D$70:U87)<>COLUMNS($D$70:U87)),MAX($AQ88:BH88)+1,\"\")","v":""},{"$f":"IF(AND(W88>0,ROWS($D$70:V87)<>COLUMNS($D$70:V87)),MAX($AQ88:BI88)+1,\"\")","v":""},{"$f":"IF(AND(X88>0,ROWS($D$70:W87)<>COLUMNS($D$70:W87)),MAX($AQ88:BJ88)+1,\"\")","v":""},{"$f":"IF(AND(Y88>0,ROWS($D$70:X87)<>COLUMNS($D$70:X87)),MAX($AQ88:BK88)+1,\"\")","v":""},{"$f":"IF(AND(Z88>0,ROWS($D$70:Y87)<>COLUMNS($D$70:Y87)),MAX($AQ88:BL88)+1,\"\")","v":""},{"$f":"IF(AND(AA88>0,ROWS($D$70:Z87)<>COLUMNS($D$70:Z87)),MAX($AQ88:BM88)+1,\"\")","v":""},{"$f":"IF(AND(AB88>0,ROWS($D$70:AA87)<>COLUMNS($D$70:AA87)),MAX($AQ88:BN88)+1,\"\")","v":""},{"$f":"IF(AND(AC88>0,ROWS($D$70:AB87)<>COLUMNS($D$70:AB87)),MAX($AQ88:BO88)+1,\"\")","v":""},{"$f":"IF(AND(AD88>0,ROWS($D$70:AC87)<>COLUMNS($D$70:AC87)),MAX($AQ88:BP88)+1,\"\")","v":""},{"$f":"IF(AND(AE88>0,ROWS($D$70:AD87)<>COLUMNS($D$70:AD87)),MAX($AQ88:BQ88)+1,\"\")","v":""},{"$f":"IF(AND(AF88>0,ROWS($D$70:AE87)<>COLUMNS($D$70:AE87)),MAX($AQ88:BR88)+1,\"\")","v":""},{"$f":"IF(AND(AG88>0,ROWS($D$70:AF87)<>COLUMNS($D$70:AF87)),MAX($AQ88:BS88)+1,\"\")","v":""},{"$f":"IF(AND(AH88>0,ROWS($D$70:AG87)<>COLUMNS($D$70:AG87)),MAX($AQ88:BT88)+1,\"\")","v":""}]
[null,null,9,"",{"v":0,"d":"0.000"},{"v":0,"d":"0.000"},{"v":0,"d":"0.000"},{"v":0,"d":"0.000"},{"v":0,"d":"0.000"},{"v":0,"d":"0.000"},{"v":0,"d":"0.000"},{"v":0,"d":"0.000"},{"v":0,"d":"0.000"},{"v":0,"d":"0.000"},{"v":0,"d":"0.000"},{"v":0,"d":"0.000"},{"v":0,"d":"0.000"},{"v":0,"d":"0.000"},{"v":0,"d":"0.000"},{"v":0,"d":"0.000"},{"v":0,"d":"0.000"},{"v":0,"d":"0.000"},{"v":1,"d":"1.000"},{"v":0,"d":"0.000"},{"v":0,"d":"0.000"},{"v":0,"d":"0.000"},{"v":0,"d":"0.000"},{"v":0,"d":"0.000"},{"v":0,"d":"0.000"},{"v":0,"d":"0.000"},{"v":0,"d":"0.000"},{"v":0,"d":"0.000"},{"v":0,"d":"0.000"},{"v":0,"d":"0.000"},null,{"$f":"IFERROR(SUMIF(E_PurchPrec!S:S,CONST_CNTR_EmbedEmDir&D89,E_PurchPrec!T:T)/SUMIF(E_PurchPrec!R:R,CONST_CNTR_TotProd&D89,E_PurchPrec!T:T),0)","v":{"v":0,"d":"0.000"}},{"v":0,"d":"0.0000"},{"$f":"IFERROR(SUMIF(E_PurchPrec!S:S,CONST_CNTR_EmbedEmInDir&D89,E_PurchPrec!T:T)/SUMIF(E_PurchPrec!R:R,CONST_CNTR_TotProd&D89,E_PurchPrec!T:T),0)","v":{"v":0,"d":"0.0000"}},{"v":0,"d":"0.0000"},{"$f":"IFERROR(SUMIF(E_PurchPrec!R:R,CONST_ElecConsumption&D89,E_PurchPrec!T:T)/SUMIF(E_PurchPrec!R:R,CONST_CNTR_TotProd&D89,E_PurchPrec!T:T),0)","v":{"v":0,"d":"0.0000"}},{"v":0,"d":"0.0000"},null,null,{"$f":"IF(AND(E89>0,ROWS($D$70:D88)<>COLUMNS($D$70:D88)),MAX($AQ89:AQ89)+1,\"\")","v":""},{"$f":"IF(AND(F89>0,ROWS($D$70:E88)<>COLUMNS($D$70:E88)),MAX($AQ89:AR89)+1,\"\")","v":""},{"$f":"IF(AND(G89>0,ROWS($D$70:F88)<>COLUMNS($D$70:F88)),MAX($AQ89:AS89)+1,\"\")","v":""},{"$f":"IF(AND(H89>0,ROWS($D$70:G88)<>COLUMNS($D$70:G88)),MAX($AQ89:AT89)+1,\"\")","v":""},{"$f":"IF(AND(I89>0,ROWS($D$70:H88)<>COLUMNS($D$70:H88)),MAX($AQ89:AU89)+1,\"\")","v":""},{"$f":"IF(AND(J89>0,ROWS($D$70:I88)<>COLUMNS($D$70:I88)),MAX($AQ89:AV89)+1,\"\")","v":""},{"$f":"IF(AND(K89>0,ROWS($D$70:J88)<>COLUMNS($D$70:J88)),MAX($AQ89:AW89)+1,\"\")","v":""},{"$f":"IF(AND(L89>0,ROWS($D$70:K88)<>COLUMNS($D$70:K88)),MAX($AQ89:AX89)+1,\"\")","v":""},{"$f":"IF(AND(M89>0,ROWS($D$70:L88)<>COLUMNS($D$70:L88)),MAX($AQ89:AY89)+1,\"\")","v":""},{"$f":"IF(AND(N89>0,ROWS($D$70:M88)<>COLUMNS($D$70:M88)),MAX($AQ89:AZ89)+1,\"\")","v":""},{"$f":"IF(AND(O89>0,ROWS($D$70:N88)<>COLUMNS($D$70:N88)),MAX($AQ89:BA89)+1,\"\")","v":""},{"$f":"IF(AND(P89>0,ROWS($D$70:O88)<>COLUMNS($D$70:O88)),MAX($AQ89:BB89)+1,\"\")","v":""},{"$f":"IF(AND(Q89>0,ROWS($D$70:P88)<>COLUMNS($D$70:P88)),MAX($AQ89:BC89)+1,\"\")","v":""},{"$f":"IF(AND(R89>0,ROWS($D$70:Q88)<>COLUMNS($D$70:Q88)),MAX($AQ89:BD89)+1,\"\")","v":""},{"$f":"IF(AND(S89>0,ROWS($D$70:R88)<>COLUMNS($D$70:R88)),MAX($AQ89:BE89)+1,\"\")","v":""},{"$f":"IF(AND(T89>0,ROWS($D$70:S88)<>COLUMNS($D$70:S88)),MAX($AQ89:BF89)+1,\"\")","v":""},{"$f":"IF(AND(U89>0,ROWS($D$70:T88)<>COLUMNS($D$70:T88)),MAX($AQ89:BG89)+1,\"\")","v":""},{"$f":"IF(AND(V89>0,ROWS($D$70:U88)<>COLUMNS($D$70:U88)),MAX($AQ89:BH89)+1,\"\")","v":""},{"$f":"IF(AND(W89>0,ROWS($D$70:V88)<>COLUMNS($D$70:V88)),MAX($AQ89:BI89)+1,\"\")","v":""},{"$f":"IF(AND(X89>0,ROWS($D$70:W88)<>COLUMNS($D$70:W88)),MAX($AQ89:BJ89)+1,\"\")","v":""},{"$f":"IF(AND(Y89>0,ROWS($D$70:X88)<>COLUMNS($D$70:X88)),MAX($AQ89:BK89)+1,\"\")","v":""},{"$f":"IF(AND(Z89>0,ROWS($D$70:Y88)<>COLUMNS($D$70:Y88)),MAX($AQ89:BL89)+1,\"\")","v":""},{"$f":"IF(AND(AA89>0,ROWS($D$70:Z88)<>COLUMNS($D$70:Z88)),MAX($AQ89:BM89)+1,\"\")","v":""},{"$f":"IF(AND(AB89>0,ROWS($D$70:AA88)<>COLUMNS($D$70:AA88)),MAX($AQ89:BN89)+1,\"\")","v":""},{"$f":"IF(AND(AC89>0,ROWS($D$70:AB88)<>COLUMNS($D$70:AB88)),MAX($AQ89:BO89)+1,\"\")","v":""},{"$f":"IF(AND(AD89>0,ROWS($D$70:AC88)<>COLUMNS($D$70:AC88)),MAX($AQ89:BP89)+1,\"\")","v":""},{"$f":"IF(AND(AE89>0,ROWS($D$70:AD88)<>COLUMNS($D$70:AD88)),MAX($AQ89:BQ89)+1,\"\")","v":""},{"$f":"IF(AND(AF89>0,ROWS($D$70:AE88)<>COLUMNS($D$70:AE88)),MAX($AQ89:BR89)+1,\"\")","v":""},{"$f":"IF(AND(AG89>0,ROWS($D$70:AF88)<>COLUMNS($D$70:AF88)),MAX($AQ89:BS89)+1,\"\")","v":""},{"$f":"IF(AND(AH89>0,ROWS($D$70:AG88)<>COLUMNS($D$70:AG88)),MAX($AQ89:BT89)+1,\"\")","v":""}]
[null,null,10,"",{"v":0,"d":"0.000"},{"v":0,"d":"0.000"},{"v":0,"d":"0.000"},{"v":0,"d":"0.000"},{"v":0,"d":"0.000"},{"v":0,"d":"0.000"},{"v":0,"d":"0.000"},{"v":0,"d":"0.000"},{"v":0,"d":"0.000"},{"v":0,"d":"0.000"},{"v":0,"d":"0.000"},{"v":0,"d":"0.000"},{"v":0,"d":"0.000"},{"v":0,"d":"0.000"},{"v":0,"d":"0.000"},{"v":0,"d":"0.000"},{"v":0,"d":"0.000"},{"v":0,"d":"0.000"},{"v":0,"d":"0.000"},{"v":1,"d":"1.000"},{"v":0,"d":"0.000"},{"v":0,"d":"0.000"},{"v":0,"d":"0.000"},{"v":0,"d":"0.000"},{"v":0,"d":"0.000"},{"v":0,"d":"0.000"},{"v":0,"d":"0.000"},{"v":0,"d":"0.000"},{"v":0,"d":"0.000"},{"v":0,"d":"0.000"},null,{"$f":"IFERROR(SUMIF(E_PurchPrec!S:S,CONST_CNTR_EmbedEmDir&D90,E_PurchPrec!T:T)/SUMIF(E_PurchPrec!R:R,CONST_CNTR_TotProd&D90,E_PurchPrec!T:T),0)","v":{"v":0,"d":"0.000"}},{"v":0,"d":"0.0000"},{"$f":"IFERROR(SUMIF(E_PurchPrec!S:S,CONST_CNTR_EmbedEmInDir&D90,E_PurchPrec!T:T)/SUMIF(E_PurchPrec!R:R,CONST_CNTR_TotProd&D90,E_PurchPrec!T:T),0)","v":{"v":0,"d":"0.0000"}},{"v":0,"d":"0.0000"},{"$f":"IFERROR(SUMIF(E_PurchPrec!R:R,CONST_ElecConsumption&D90,E_PurchPrec!T:T)/SUMIF(E_PurchPrec!R:R,CONST_CNTR_TotProd&D90,E_PurchPrec!T:T),0)","v":{"v":0,"d":"0.0000"}},{"v":0,"d":"0.0000"},null,null,{"$f":"IF(AND(E90>0,ROWS($D$70:D89)<>COLUMNS($D$70:D89)),MAX($AQ90:AQ90)+1,\"\")","v":""},{"$f":"IF(AND(F90>0,ROWS($D$70:E89)<>COLUMNS($D$70:E89)),MAX($AQ90:AR90)+1,\"\")","v":""},{"$f":"IF(AND(G90>0,ROWS($D$70:F89)<>COLUMNS($D$70:F89)),MAX($AQ90:AS90)+1,\"\")","v":""},{"$f":"IF(AND(H90>0,ROWS($D$70:G89)<>COLUMNS($D$70:G89)),MAX($AQ90:AT90)+1,\"\")","v":""},{"$f":"IF(AND(I90>0,ROWS($D$70:H89)<>COLUMNS($D$70:H89)),MAX($AQ90:AU90)+1,\"\")","v":""},{"$f":"IF(AND(J90>0,ROWS($D$70:I89)<>COLUMNS($D$70:I89)),MAX($AQ90:AV90)+1,\"\")","v":""},{"$f":"IF(AND(K90>0,ROWS($D$70:J89)<>COLUMNS($D$70:J89)),MAX($AQ90:AW90)+1,\"\")","v":""},{"$f":"IF(AND(L90>0,ROWS($D$70:K89)<>COLUMNS($D$70:K89)),MAX($AQ90:AX90)+1,\"\")","v":""},{"$f":"IF(AND(M90>0,ROWS($D$70:L89)<>COLUMNS($D$70:L89)),MAX($AQ90:AY90)+1,\"\")","v":""},{"$f":"IF(AND(N90>0,ROWS($D$70:M89)<>COLUMNS($D$70:M89)),MAX($AQ90:AZ90)+1,\"\")","v":""},{"$f":"IF(AND(O90>0,ROWS($D$70:N89)<>COLUMNS($D$70:N89)),MAX($AQ90:BA90)+1,\"\")","v":""},{"$f":"IF(AND(P90>0,ROWS($D$70:O89)<>COLUMNS($D$70:O89)),MAX($AQ90:BB90)+1,\"\")","v":""},{"$f":"IF(AND(Q90>0,ROWS($D$70:P89)<>COLUMNS($D$70:P89)),MAX($AQ90:BC90)+1,\"\")","v":""},{"$f":"IF(AND(R90>0,ROWS($D$70:Q89)<>COLUMNS($D$70:Q89)),MAX($AQ90:BD90)+1,\"\")","v":""},{"$f":"IF(AND(S90>0,ROWS($D$70:R89)<>COLUMNS($D$70:R89)),MAX($AQ90:BE90)+1,\"\")","v":""},{"$f":"IF(AND(T90>0,ROWS($D$70:S89)<>COLUMNS($D$70:S89)),MAX($AQ90:BF90)+1,\"\")","v":""},{"$f":"IF(AND(U90>0,ROWS($D$70:T89)<>COLUMNS($D$70:T89)),MAX($AQ90:BG90)+1,\"\")","v":""},{"$f":"IF(AND(V90>0,ROWS($D$70:U89)<>COLUMNS($D$70:U89)),MAX($AQ90:BH90)+1,\"\")","v":""},{"$f":"IF(AND(W90>0,ROWS($D$70:V89)<>COLUMNS($D$70:V89)),MAX($AQ90:BI90)+1,\"\")","v":""},{"$f":"IF(AND(X90>0,ROWS($D$70:W89)<>COLUMNS($D$70:W89)),MAX($AQ90:BJ90)+1,\"\")","v":""},{"$f":"IF(AND(Y90>0,ROWS($D$70:X89)<>COLUMNS($D$70:X89)),MAX($AQ90:BK90)+1,\"\")","v":""},{"$f":"IF(AND(Z90>0,ROWS($D$70:Y89)<>COLUMNS($D$70:Y89)),MAX($AQ90:BL90)+1,\"\")","v":""},{"$f":"IF(AND(AA90>0,ROWS($D$70:Z89)<>COLUMNS($D$70:Z89)),MAX($AQ90:BM90)+1,\"\")","v":""},{"$f":"IF(AND(AB90>0,ROWS($D$70:AA89)<>COLUMNS($D$70:AA89)),MAX($AQ90:BN90)+1,\"\")","v":""},{"$f":"IF(AND(AC90>0,ROWS($D$70:AB89)<>COLUMNS($D$70:AB89)),MAX($AQ90:BO90)+1,\"\")","v":""},{"$f":"IF(AND(AD90>0,ROWS($D$70:AC89)<>COLUMNS($D$70:AC89)),MAX($AQ90:BP90)+1,\"\")","v":""},{"$f":"IF(AND(AE90>0,ROWS($D$70:AD89)<>COLUMNS($D$70:AD89)),MAX($AQ90:BQ90)+1,\"\")","v":""},{"$f":"IF(AND(AF90>0,ROWS($D$70:AE89)<>COLUMNS($D$70:AE89)),MAX($AQ90:BR90)+1,\"\")","v":""},{"$f":"IF(AND(AG90>0,ROWS($D$70:AF89)<>COLUMNS($D$70:AF89)),MAX($AQ90:BS90)+1,\"\")","v":""},{"$f":"IF(AND(AH90>0,ROWS($D$70:AG89)<>COLUMNS($D$70:AG89)),MAX($AQ90:BT90)+1,\"\")","v":""}]
[null,null,11,"",{"v":0,"d":"0.000"},{"v":0,"d":"0.000"},{"v":0,"d":"0.000"},{"v":0,"d":"0.000"},{"v":0,"d":"0.000"},{"v":0,"d":"0.000"},{"v":0,"d":"0.000"},{"v":0,"d":"0.000"},{"v":0,"d":"0.000"},{"v":0,"d":"0.000"},{"v":0,"d":"0.000"},{"v":0,"d":"0.000"},{"v":0,"d":"0.000"},{"v":0,"d":"0.000"},{"v":0,"d":"0.000"},{"v":0,"d":"0.000"},{"v":0,"d":"0.000"},{"v":0,"d":"0.000"},{"v":0,"d":"0.000"},{"v":0,"d":"0.000"},{"v":1,"d":"1.000"},{"v":0,"d":"0.000"},{"v":0,"d":"0.000"},{"v":0,"d":"0.000"},{"v":0,"d":"0.000"},{"v":0,"d":"0.000"},{"v":0,"d":"0.000"},{"v":0,"d":"0.000"},{"v":0,"d":"0.000"},{"v":0,"d":"0.000"},null,{"$f":"IFERROR(SUMIF(E_PurchPrec!S:S,CONST_CNTR_EmbedEmDir&D91,E_PurchPrec!T:T)/SUMIF(E_PurchPrec!R:R,CONST_CNTR_TotProd&D91,E_PurchPrec!T:T),0)","v":{"v":0,"d":"0.000"}},{"v":0,"d":"0.0000"},{"$f":"IFERROR(SUMIF(E_PurchPrec!S:S,CONST_CNTR_EmbedEmInDir&D91,E_PurchPrec!T:T)/SUMIF(E_PurchPrec!R:R,CONST_CNTR_TotProd&D91,E_PurchPrec!T:T),0)","v":{"v":0,"d":"0.0000"}},{"v":0,"d":"0.0000"},{"$f":"IFERROR(SUMIF(E_PurchPrec!R:R,CONST_ElecConsumption&D91,E_PurchPrec!T:T)/SUMIF(E_PurchPrec!R:R,CONST_CNTR_TotProd&D91,E_PurchPrec!T:T),0)","v":{"v":0,"d":"0.0000"}},{"v":0,"d":"0.0000"},null,null,{"$f":"IF(AND(E91>0,ROWS($D$70:D90)<>COLUMNS($D$70:D90)),MAX($AQ91:AQ91)+1,\"\")","v":""},{"$f":"IF(AND(F91>0,ROWS($D$70:E90)<>COLUMNS($D$70:E90)),MAX($AQ91:AR91)+1,\"\")","v":""},{"$f":"IF(AND(G91>0,ROWS($D$70:F90)<>COLUMNS($D$70:F90)),MAX($AQ91:AS91)+1,\"\")","v":""},{"$f":"IF(AND(H91>0,ROWS($D$70:G90)<>COLUMNS($D$70:G90)),MAX($AQ91:AT91)+1,\"\")","v":""},{"$f":"IF(AND(I91>0,ROWS($D$70:H90)<>COLUMNS($D$70:H90)),MAX($AQ91:AU91)+1,\"\")","v":""},{"$f":"IF(AND(J91>0,ROWS($D$70:I90)<>COLUMNS($D$70:I90)),MAX($AQ91:AV91)+1,\"\")","v":""},{"$f":"IF(AND(K91>0,ROWS($D$70:J90)<>COLUMNS($D$70:J90)),MAX($AQ91:AW91)+1,\"\")","v":""},{"$f":"IF(AND(L91>0,ROWS($D$70:K90)<>COLUMNS($D$70:K90)),MAX($AQ91:AX91)+1,\"\")","v":""},{"$f":"IF(AND(M91>0,ROWS($D$70:L90)<>COLUMNS($D$70:L90)),MAX($AQ91:AY91)+1,\"\")","v":""},{"$f":"IF(AND(N91>0,ROWS($D$70:M90)<>COLUMNS($D$70:M90)),MAX($AQ91:AZ91)+1,\"\")","v":""},{"$f":"IF(AND(O91>0,ROWS($D$70:N90)<>COLUMNS($D$70:N90)),MAX($AQ91:BA91)+1,\"\")","v":""},{"$f":"IF(AND(P91>0,ROWS($D$70:O90)<>COLUMNS($D$70:O90)),MAX($AQ91:BB91)+1,\"\")","v":""},{"$f":"IF(AND(Q91>0,ROWS($D$70:P90)<>COLUMNS($D$70:P90)),MAX($AQ91:BC91)+1,\"\")","v":""},{"$f":"IF(AND(R91>0,ROWS($D$70:Q90)<>COLUMNS($D$70:Q90)),MAX($AQ91:BD91)+1,\"\")","v":""},{"$f":"IF(AND(S91>0,ROWS($D$70:R90)<>COLUMNS($D$70:R90)),MAX($AQ91:BE91)+1,\"\")","v":""},{"$f":"IF(AND(T91>0,ROWS($D$70:S90)<>COLUMNS($D$70:S90)),MAX($AQ91:BF91)+1,\"\")","v":""},{"$f":"IF(AND(U91>0,ROWS($D$70:T90)<>COLUMNS($D$70:T90)),MAX($AQ91:BG91)+1,\"\")","v":""},{"$f":"IF(AND(V91>0,ROWS($D$70:U90)<>COLUMNS($D$70:U90)),MAX($AQ91:BH91)+1,\"\")","v":""},{"$f":"IF(AND(W91>0,ROWS($D$70:V90)<>COLUMNS($D$70:V90)),MAX($AQ91:BI91)+1,\"\")","v":""},{"$f":"IF(AND(X91>0,ROWS($D$70:W90)<>COLUMNS($D$70:W90)),MAX($AQ91:BJ91)+1,\"\")","v":""},{"$f":"IF(AND(Y91>0,ROWS($D$70:X90)<>COLUMNS($D$70:X90)),MAX($AQ91:BK91)+1,\"\")","v":""},{"$f":"IF(AND(Z91>0,ROWS($D$70:Y90)<>COLUMNS($D$70:Y90)),MAX($AQ91:BL91)+1,\"\")","v":""},{"$f":"IF(AND(AA91>0,ROWS($D$70:Z90)<>COLUMNS($D$70:Z90)),MAX($AQ91:BM91)+1,\"\")","v":""},{"$f":"IF(AND(AB91>0,ROWS($D$70:AA90)<>COLUMNS($D$70:AA90)),MAX($AQ91:BN91)+1,\"\")","v":""},{"$f":"IF(AND(AC91>0,ROWS($D$70:AB90)<>COLUMNS($D$70:AB90)),MAX($AQ91:BO91)+1,\"\")","v":""},{"$f":"IF(AND(AD91>0,ROWS($D$70:AC90)<>COLUMNS($D$70:AC90)),MAX($AQ91:BP91)+1,\"\")","v":""},{"$f":"IF(AND(AE91>0,ROWS($D$70:AD90)<>COLUMNS($D$70:AD90)),MAX($AQ91:BQ91)+1,\"\")","v":""},{"$f":"IF(AND(AF91>0,ROWS($D$70:AE90)<>COLUMNS($D$70:AE90)),MAX($AQ91:BR91)+1,\"\")","v":""},{"$f":"IF(AND(AG91>0,ROWS($D$70:AF90)<>COLUMNS($D$70:AF90)),MAX($AQ91:BS91)+1,\"\")","v":""},{"$f":"IF(AND(AH91>0,ROWS($D$70:AG90)<>COLUMNS($D$70:AG90)),MAX($AQ91:BT91)+1,\"\")","v":""}]
[null,null,12,"",{"v":0,"d":"0.000"},{"v":0,"d":"0.000"},{"v":0,"d":"0.000"},{"v":0,"d":"0.000"},{"v":0,"d":"0.000"},{"v":0,"d":"0.000"},{"v":0,"d":"0.000"},{"v":0,"d":"0.000"},{"v":0,"d":"0.000"},{"v":0,"d":"0.000"},{"v":0,"d":"0.000"},{"v":0,"d":"0.000"},{"v":0,"d":"0.000"},{"v":0,"d":"0.000"},{"v":0,"d":"0.000"},{"v":0,"d":"0.000"},{"v":0,"d":"0.000"},{"v":0,"d":"0.000"},{"v":0,"d":"0.000"},{"v":0,"d":"0.000"},{"v":0,"d":"0.000"},{"v":1,"d":"1.000"},{"v":0,"d":"0.000"},{"v":0,"d":"0.000"},{"v":0,"d":"0.000"},{"v":0,"d":"0.000"},{"v":0,"d":"0.000"},{"v":0,"d":"0.000"},{"v":0,"d":"0.000"},{"v":0,"d":"0.000"},null,{"$f":"IFERROR(SUMIF(E_PurchPrec!S:S,CONST_CNTR_EmbedEmDir&D92,E_PurchPrec!T:T)/SUMIF(E_PurchPrec!R:R,CONST_CNTR_TotProd&D92,E_PurchPrec!T:T),0)","v":{"v":0,"d":"0.000"}},{"v":0,"d":"0.0000"},{"$f":"IFERROR(SUMIF(E_PurchPrec!S:S,CONST_CNTR_EmbedEmInDir&D92,E_PurchPrec!T:T)/SUMIF(E_PurchPrec!R:R,CONST_CNTR_TotProd&D92,E_PurchPrec!T:T),0)","v":{"v":0,"d":"0.0000"}},{"v":0,"d":"0.0000"},{"$f":"IFERROR(SUMIF(E_PurchPrec!R:R,CONST_ElecConsumption&D92,E_PurchPrec!T:T)/SUMIF(E_PurchPrec!R:R,CONST_CNTR_TotProd&D92,E_PurchPrec!T:T),0)","v":{"v":0,"d":"0.0000"}},{"v":0,"d":"0.0000"},null,null,{"$f":"IF(AND(E92>0,ROWS($D$70:D91)<>COLUMNS($D$70:D91)),MAX($AQ92:AQ92)+1,\"\")","v":""},{"$f":"IF(AND(F92>0,ROWS($D$70:E91)<>COLUMNS($D$70:E91)),MAX($AQ92:AR92)+1,\"\")","v":""},{"$f":"IF(AND(G92>0,ROWS($D$70:F91)<>COLUMNS($D$70:F91)),MAX($AQ92:AS92)+1,\"\")","v":""},{"$f":"IF(AND(H92>0,ROWS($D$70:G91)<>COLUMNS($D$70:G91)),MAX($AQ92:AT92)+1,\"\")","v":""},{"$f":"IF(AND(I92>0,ROWS($D$70:H91)<>COLUMNS($D$70:H91)),MAX($AQ92:AU92)+1,\"\")","v":""},{"$f":"IF(AND(J92>0,ROWS($D$70:I91)<>COLUMNS($D$70:I91)),MAX($AQ92:AV92)+1,\"\")","v":""},{"$f":"IF(AND(K92>0,ROWS($D$70:J91)<>COLUMNS($D$70:J91)),MAX($AQ92:AW92)+1,\"\")","v":""},{"$f":"IF(AND(L92>0,ROWS($D$70:K91)<>COLUMNS($D$70:K91)),MAX($AQ92:AX92)+1,\"\")","v":""},{"$f":"IF(AND(M92>0,ROWS($D$70:L91)<>COLUMNS($D$70:L91)),MAX($AQ92:AY92)+1,\"\")","v":""},{"$f":"IF(AND(N92>0,ROWS($D$70:M91)<>COLUMNS($D$70:M91)),MAX($AQ92:AZ92)+1,\"\")","v":""},{"$f":"IF(AND(O92>0,ROWS($D$70:N91)<>COLUMNS($D$70:N91)),MAX($AQ92:BA92)+1,\"\")","v":""},{"$f":"IF(AND(P92>0,ROWS($D$70:O91)<>COLUMNS($D$70:O91)),MAX($AQ92:BB92)+1,\"\")","v":""},{"$f":"IF(AND(Q92>0,ROWS($D$70:P91)<>COLUMNS($D$70:P91)),MAX($AQ92:BC92)+1,\"\")","v":""},{"$f":"IF(AND(R92>0,ROWS($D$70:Q91)<>COLUMNS($D$70:Q91)),MAX($AQ92:BD92)+1,\"\")","v":""},{"$f":"IF(AND(S92>0,ROWS($D$70:R91)<>COLUMNS($D$70:R91)),MAX($AQ92:BE92)+1,\"\")","v":""},{"$f":"IF(AND(T92>0,ROWS($D$70:S91)<>COLUMNS($D$70:S91)),MAX($AQ92:BF92)+1,\"\")","v":""},{"$f":"IF(AND(U92>0,ROWS($D$70:T91)<>COLUMNS($D$70:T91)),MAX($AQ92:BG92)+1,\"\")","v":""},{"$f":"IF(AND(V92>0,ROWS($D$70:U91)<>COLUMNS($D$70:U91)),MAX($AQ92:BH92)+1,\"\")","v":""},{"$f":"IF(AND(W92>0,ROWS($D$70:V91)<>COLUMNS($D$70:V91)),MAX($AQ92:BI92)+1,\"\")","v":""},{"$f":"IF(AND(X92>0,ROWS($D$70:W91)<>COLUMNS($D$70:W91)),MAX($AQ92:BJ92)+1,\"\")","v":""},{"$f":"IF(AND(Y92>0,ROWS($D$70:X91)<>COLUMNS($D$70:X91)),MAX($AQ92:BK92)+1,\"\")","v":""},{"$f":"IF(AND(Z92>0,ROWS($D$70:Y91)<>COLUMNS($D$70:Y91)),MAX($AQ92:BL92)+1,\"\")","v":""},{"$f":"IF(AND(AA92>0,ROWS($D$70:Z91)<>COLUMNS($D$70:Z91)),MAX($AQ92:BM92)+1,\"\")","v":""},{"$f":"IF(AND(AB92>0,ROWS($D$70:AA91)<>COLUMNS($D$70:AA91)),MAX($AQ92:BN92)+1,\"\")","v":""},{"$f":"IF(AND(AC92>0,ROWS($D$70:AB91)<>COLUMNS($D$70:AB91)),MAX($AQ92:BO92)+1,\"\")","v":""},{"$f":"IF(AND(AD92>0,ROWS($D$70:AC91)<>COLUMNS($D$70:AC91)),MAX($AQ92:BP92)+1,\"\")","v":""},{"$f":"IF(AND(AE92>0,ROWS($D$70:AD91)<>COLUMNS($D$70:AD91)),MAX($AQ92:BQ92)+1,\"\")","v":""},{"$f":"IF(AND(AF92>0,ROWS($D$70:AE91)<>COLUMNS($D$70:AE91)),MAX($AQ92:BR92)+1,\"\")","v":""},{"$f":"IF(AND(AG92>0,ROWS($D$70:AF91)<>COLUMNS($D$70:AF91)),MAX($AQ92:BS92)+1,\"\")","v":""},{"$f":"IF(AND(AH92>0,ROWS($D$70:AG91)<>COLUMNS($D$70:AG91)),MAX($AQ92:BT92)+1,\"\")","v":""}]
[null,null,13,"",{"v":0,"d":"0.000"},{"v":0,"d":"0.000"},{"v":0,"d":"0.000"},{"v":0,"d":"0.000"},{"v":0,"d":"0.000"},{"v":0,"d":"0.000"},{"v":0,"d":"0.000"},{"v":0,"d":"0.000"},{"v":0,"d":"0.000"},{"v":0,"d":"0.000"},{"v":0,"d":"0.000"},{"v":0,"d":"0.000"},{"v":0,"d":"0.000"},{"v":0,"d":"0.000"},{"v":0,"d":"0.000"},{"v":0,"d":"0.000"},{"v":0,"d":"0.000"},{"v":0,"d":"0.000"},{"v":0,"d":"0.000"},{"v":0,"d":"0.000"},{"v":0,"d":"0.000"},{"v":0,"d":"0.000"},{"v":1,"d":"1.000"},{"v":0,"d":"0.000"},{"v":0,"d":"0.000"},{"v":0,"d":"0.000"},{"v":0,"d":"0.000"},{"v":0,"d":"0.000"},{"v":0,"d":"0.000"},{"v":0,"d":"0.000"},null,{"$f":"IFERROR(SUMIF(E_PurchPrec!S:S,CONST_CNTR_EmbedEmDir&D93,E_PurchPrec!T:T)/SUMIF(E_PurchPrec!R:R,CONST_CNTR_TotProd&D93,E_PurchPrec!T:T),0)","v":{"v":0,"d":"0.000"}},{"v":0,"d":"0.0000"},{"$f":"IFERROR(SUMIF(E_PurchPrec!S:S,CONST_CNTR_EmbedEmInDir&D93,E_PurchPrec!T:T)/SUMIF(E_PurchPrec!R:R,CONST_CNTR_TotProd&D93,E_PurchPrec!T:T),0)","v":{"v":0,"d":"0.0000"}},{"v":0,"d":"0.0000"},{"$f":"IFERROR(SUMIF(E_PurchPrec!R:R,CONST_ElecConsumption&D93,E_PurchPrec!T:T)/SUMIF(E_PurchPrec!R:R,CONST_CNTR_TotProd&D93,E_PurchPrec!T:T),0)","v":{"v":0,"d":"0.0000"}},{"v":0,"d":"0.0000"},null,null,{"$f":"IF(AND(E93>0,ROWS($D$70:D92)<>COLUMNS($D$70:D92)),MAX($AQ93:AQ93)+1,\"\")","v":""},{"$f":"IF(AND(F93>0,ROWS($D$70:E92)<>COLUMNS($D$70:E92)),MAX($AQ93:AR93)+1,\"\")","v":""},{"$f":"IF(AND(G93>0,ROWS($D$70:F92)<>COLUMNS($D$70:F92)),MAX($AQ93:AS93)+1,\"\")","v":""},{"$f":"IF(AND(H93>0,ROWS($D$70:G92)<>COLUMNS($D$70:G92)),MAX($AQ93:AT93)+1,\"\")","v":""},{"$f":"IF(AND(I93>0,ROWS($D$70:H92)<>COLUMNS($D$70:H92)),MAX($AQ93:AU93)+1,\"\")","v":""},{"$f":"IF(AND(J93>0,ROWS($D$70:I92)<>COLUMNS($D$70:I92)),MAX($AQ93:AV93)+1,\"\")","v":""},{"$f":"IF(AND(K93>0,ROWS($D$70:J92)<>COLUMNS($D$70:J92)),MAX($AQ93:AW93)+1,\"\")","v":""},{"$f":"IF(AND(L93>0,ROWS($D$70:K92)<>COLUMNS($D$70:K92)),MAX($AQ93:AX93)+1,\"\")","v":""},{"$f":"IF(AND(M93>0,ROWS($D$70:L92)<>COLUMNS($D$70:L92)),MAX($AQ93:AY93)+1,\"\")","v":""},{"$f":"IF(AND(N93>0,ROWS($D$70:M92)<>COLUMNS($D$70:M92)),MAX($AQ93:AZ93)+1,\"\")","v":""},{"$f":"IF(AND(O93>0,ROWS($D$70:N92)<>COLUMNS($D$70:N92)),MAX($AQ93:BA93)+1,\"\")","v":""},{"$f":"IF(AND(P93>0,ROWS($D$70:O92)<>COLUMNS($D$70:O92)),MAX($AQ93:BB93)+1,\"\")","v":""},{"$f":"IF(AND(Q93>0,ROWS($D$70:P92)<>COLUMNS($D$70:P92)),MAX($AQ93:BC93)+1,\"\")","v":""},{"$f":"IF(AND(R93>0,ROWS($D$70:Q92)<>COLUMNS($D$70:Q92)),MAX($AQ93:BD93)+1,\"\")","v":""},{"$f":"IF(AND(S93>0,ROWS($D$70:R92)<>COLUMNS($D$70:R92)),MAX($AQ93:BE93)+1,\"\")","v":""},{"$f":"IF(AND(T93>0,ROWS($D$70:S92)<>COLUMNS($D$70:S92)),MAX($AQ93:BF93)+1,\"\")","v":""},{"$f":"IF(AND(U93>0,ROWS($D$70:T92)<>COLUMNS($D$70:T92)),MAX($AQ93:BG93)+1,\"\")","v":""},{"$f":"IF(AND(V93>0,ROWS($D$70:U92)<>COLUMNS($D$70:U92)),MAX($AQ93:BH93)+1,\"\")","v":""},{"$f":"IF(AND(W93>0,ROWS($D$70:V92)<>COLUMNS($D$70:V92)),MAX($AQ93:BI93)+1,\"\")","v":""},{"$f":"IF(AND(X93>0,ROWS($D$70:W92)<>COLUMNS($D$70:W92)),MAX($AQ93:BJ93)+1,\"\")","v":""},{"$f":"IF(AND(Y93>0,ROWS($D$70:X92)<>COLUMNS($D$70:X92)),MAX($AQ93:BK93)+1,\"\")","v":""},{"$f":"IF(AND(Z93>0,ROWS($D$70:Y92)<>COLUMNS($D$70:Y92)),MAX($AQ93:BL93)+1,\"\")","v":""},{"$f":"IF(AND(AA93>0,ROWS($D$70:Z92)<>COLUMNS($D$70:Z92)),MAX($AQ93:BM93)+1,\"\")","v":""},{"$f":"IF(AND(AB93>0,ROWS($D$70:AA92)<>COLUMNS($D$70:AA92)),MAX($AQ93:BN93)+1,\"\")","v":""},{"$f":"IF(AND(AC93>0,ROWS($D$70:AB92)<>COLUMNS($D$70:AB92)),MAX($AQ93:BO93)+1,\"\")","v":""},{"$f":"IF(AND(AD93>0,ROWS($D$70:AC92)<>COLUMNS($D$70:AC92)),MAX($AQ93:BP93)+1,\"\")","v":""},{"$f":"IF(AND(AE93>0,ROWS($D$70:AD92)<>COLUMNS($D$70:AD92)),MAX($AQ93:BQ93)+1,\"\")","v":""},{"$f":"IF(AND(AF93>0,ROWS($D$70:AE92)<>COLUMNS($D$70:AE92)),MAX($AQ93:BR93)+1,\"\")","v":""},{"$f":"IF(AND(AG93>0,ROWS($D$70:AF92)<>COLUMNS($D$70:AF92)),MAX($AQ93:BS93)+1,\"\")","v":""},{"$f":"IF(AND(AH93>0,ROWS($D$70:AG92)<>COLUMNS($D$70:AG92)),MAX($AQ93:BT93)+1,\"\")","v":""}]
[null,null,14,"",{"v":0,"d":"0.000"},{"v":0,"d":"0.000"},{"v":0,"d":"0.000"},{"v":0,"d":"0.000"},{"v":0,"d":"0.000"},{"v":0,"d":"0.000"},{"v":0,"d":"0.000"},{"v":0,"d":"0.000"},{"v":0,"d":"0.000"},{"v":0,"d":"0.000"},{"v":0,"d":"0.000"},{"v":0,"d":"0.000"},{"v":0,"d":"0.000"},{"v":0,"d":"0.000"},{"v":0,"d":"0.000"},{"v":0,"d":"0.000"},{"v":0,"d":"0.000"},{"v":0,"d":"0.000"},{"v":0,"d":"0.000"},{"v":0,"d":"0.000"},{"v":0,"d":"0.000"},{"v":0,"d":"0.000"},{"v":0,"d":"0.000"},{"v":1,"d":"1.000"},{"v":0,"d":"0.000"},{"v":0,"d":"0.000"},{"v":0,"d":"0.000"},{"v":0,"d":"0.000"},{"v":0,"d":"0.000"},{"v":0,"d":"0.000"},null,{"$f":"IFERROR(SUMIF(E_PurchPrec!S:S,CONST_CNTR_EmbedEmDir&D94,E_PurchPrec!T:T)/SUMIF(E_PurchPrec!R:R,CONST_CNTR_TotProd&D94,E_PurchPrec!T:T),0)","v":{"v":0,"d":"0.000"}},{"v":0,"d":"0.0000"},{"$f":"IFERROR(SUMIF(E_PurchPrec!S:S,CONST_CNTR_EmbedEmInDir&D94,E_PurchPrec!T:T)/SUMIF(E_PurchPrec!R:R,CONST_CNTR_TotProd&D94,E_PurchPrec!T:T),0)","v":{"v":0,"d":"0.0000"}},{"v":0,"d":"0.0000"},{"$f":"IFERROR(SUMIF(E_PurchPrec!R:R,CONST_ElecConsumption&D94,E_PurchPrec!T:T)/SUMIF(E_PurchPrec!R:R,CONST_CNTR_TotProd&D94,E_PurchPrec!T:T),0)","v":{"v":0,"d":"0.0000"}},{"v":0,"d":"0.0000"},null,null,{"$f":"IF(AND(E94>0,ROWS($D$70:D93)<>COLUMNS($D$70:D93)),MAX($AQ94:AQ94)+1,\"\")","v":""},{"$f":"IF(AND(F94>0,ROWS($D$70:E93)<>COLUMNS($D$70:E93)),MAX($AQ94:AR94)+1,\"\")","v":""},{"$f":"IF(AND(G94>0,ROWS($D$70:F93)<>COLUMNS($D$70:F93)),MAX($AQ94:AS94)+1,\"\")","v":""},{"$f":"IF(AND(H94>0,ROWS($D$70:G93)<>COLUMNS($D$70:G93)),MAX($AQ94:AT94)+1,\"\")","v":""},{"$f":"IF(AND(I94>0,ROWS($D$70:H93)<>COLUMNS($D$70:H93)),MAX($AQ94:AU94)+1,\"\")","v":""},{"$f":"IF(AND(J94>0,ROWS($D$70:I93)<>COLUMNS($D$70:I93)),MAX($AQ94:AV94)+1,\"\")","v":""},{"$f":"IF(AND(K94>0,ROWS($D$70:J93)<>COLUMNS($D$70:J93)),MAX($AQ94:AW94)+1,\"\")","v":""},{"$f":"IF(AND(L94>0,ROWS($D$70:K93)<>COLUMNS($D$70:K93)),MAX($AQ94:AX94)+1,\"\")","v":""},{"$f":"IF(AND(M94>0,ROWS($D$70:L93)<>COLUMNS($D$70:L93)),MAX($AQ94:AY94)+1,\"\")","v":""},{"$f":"IF(AND(N94>0,ROWS($D$70:M93)<>COLUMNS($D$70:M93)),MAX($AQ94:AZ94)+1,\"\")","v":""},{"$f":"IF(AND(O94>0,ROWS($D$70:N93)<>COLUMNS($D$70:N93)),MAX($AQ94:BA94)+1,\"\")","v":""},{"$f":"IF(AND(P94>0,ROWS($D$70:O93)<>COLUMNS($D$70:O93)),MAX($AQ94:BB94)+1,\"\")","v":""},{"$f":"IF(AND(Q94>0,ROWS($D$70:P93)<>COLUMNS($D$70:P93)),MAX($AQ94:BC94)+1,\"\")","v":""},{"$f":"IF(AND(R94>0,ROWS($D$70:Q93)<>COLUMNS($D$70:Q93)),MAX($AQ94:BD94)+1,\"\")","v":""},{"$f":"IF(AND(S94>0,ROWS($D$70:R93)<>COLUMNS($D$70:R93)),MAX($AQ94:BE94)+1,\"\")","v":""},{"$f":"IF(AND(T94>0,ROWS($D$70:S93)<>COLUMNS($D$70:S93)),MAX($AQ94:BF94)+1,\"\")","v":""},{"$f":"IF(AND(U94>0,ROWS($D$70:T93)<>COLUMNS($D$70:T93)),MAX($AQ94:BG94)+1,\"\")","v":""},{"$f":"IF(AND(V94>0,ROWS($D$70:U93)<>COLUMNS($D$70:U93)),MAX($AQ94:BH94)+1,\"\")","v":""},{"$f":"IF(AND(W94>0,ROWS($D$70:V93)<>COLUMNS($D$70:V93)),MAX($AQ94:BI94)+1,\"\")","v":""},{"$f":"IF(AND(X94>0,ROWS($D$70:W93)<>COLUMNS($D$70:W93)),MAX($AQ94:BJ94)+1,\"\")","v":""},{"$f":"IF(AND(Y94>0,ROWS($D$70:X93)<>COLUMNS($D$70:X93)),MAX($AQ94:BK94)+1,\"\")","v":""},{"$f":"IF(AND(Z94>0,ROWS($D$70:Y93)<>COLUMNS($D$70:Y93)),MAX($AQ94:BL94)+1,\"\")","v":""},{"$f":"IF(AND(AA94>0,ROWS($D$70:Z93)<>COLUMNS($D$70:Z93)),MAX($AQ94:BM94)+1,\"\")","v":""},{"$f":"IF(AND(AB94>0,ROWS($D$70:AA93)<>COLUMNS($D$70:AA93)),MAX($AQ94:BN94)+1,\"\")","v":""},{"$f":"IF(AND(AC94>0,ROWS($D$70:AB93)<>COLUMNS($D$70:AB93)),MAX($AQ94:BO94)+1,\"\")","v":""},{"$f":"IF(AND(AD94>0,ROWS($D$70:AC93)<>COLUMNS($D$70:AC93)),MAX($AQ94:BP94)+1,\"\")","v":""},{"$f":"IF(AND(AE94>0,ROWS($D$70:AD93)<>COLUMNS($D$70:AD93)),MAX($AQ94:BQ94)+1,\"\")","v":""},{"$f":"IF(AND(AF94>0,ROWS($D$70:AE93)<>COLUMNS($D$70:AE93)),MAX($AQ94:BR94)+1,\"\")","v":""},{"$f":"IF(AND(AG94>0,ROWS($D$70:AF93)<>COLUMNS($D$70:AF93)),MAX($AQ94:BS94)+1,\"\")","v":""},{"$f":"IF(AND(AH94>0,ROWS($D$70:AG93)<>COLUMNS($D$70:AG93)),MAX($AQ94:BT94)+1,\"\")","v":""}]
[null,null,15,"",{"v":0,"d":"0.000"},{"v":0,"d":"0.000"},{"v":0,"d":"0.000"},{"v":0,"d":"0.000"},{"v":0,"d":"0.000"},{"v":0,"d":"0.000"},{"v":0,"d":"0.000"},{"v":0,"d":"0.000"},{"v":0,"d":"0.000"},{"v":0,"d":"0.000"},{"v":0,"d":"0.000"},{"v":0,"d":"0.000"},{"v":0,"d":"0.000"},{"v":0,"d":"0.000"},{"v":0,"d":"0.000"},{"v":0,"d":"0.000"},{"v":0,"d":"0.000"},{"v":0,"d":"0.000"},{"v":0,"d":"0.000"},{"v":0,"d":"0.000"},{"v":0,"d":"0.000"},{"v":0,"d":"0.000"},{"v":0,"d":"0.000"},{"v":0,"d":"0.000"},{"v":1,"d":"1.000"},{"v":0,"d":"0.000"},{"v":0,"d":"0.000"},{"v":0,"d":"0.000"},{"v":0,"d":"0.000"},{"v":0,"d":"0.000"},null,{"$f":"IFERROR(SUMIF(E_PurchPrec!S:S,CONST_CNTR_EmbedEmDir&D95,E_PurchPrec!T:T)/SUMIF(E_PurchPrec!R:R,CONST_CNTR_TotProd&D95,E_PurchPrec!T:T),0)","v":{"v":0,"d":"0.000"}},{"v":0,"d":"0.0000"},{"$f":"IFERROR(SUMIF(E_PurchPrec!S:S,CONST_CNTR_EmbedEmInDir&D95,E_PurchPrec!T:T)/SUMIF(E_PurchPrec!R:R,CONST_CNTR_TotProd&D95,E_PurchPrec!T:T),0)","v":{"v":0,"d":"0.0000"}},{"v":0,"d":"0.0000"},{"$f":"IFERROR(SUMIF(E_PurchPrec!R:R,CONST_ElecConsumption&D95,E_PurchPrec!T:T)/SUMIF(E_PurchPrec!R:R,CONST_CNTR_TotProd&D95,E_PurchPrec!T:T),0)","v":{"v":0,"d":"0.0000"}},{"v":0,"d":"0.0000"},null,null,{"$f":"IF(AND(E95>0,ROWS($D$70:D94)<>COLUMNS($D$70:D94)),MAX($AQ95:AQ95)+1,\"\")","v":""},{"$f":"IF(AND(F95>0,ROWS($D$70:E94)<>COLUMNS($D$70:E94)),MAX($AQ95:AR95)+1,\"\")","v":""},{"$f":"IF(AND(G95>0,ROWS($D$70:F94)<>COLUMNS($D$70:F94)),MAX($AQ95:AS95)+1,\"\")","v":""},{"$f":"IF(AND(H95>0,ROWS($D$70:G94)<>COLUMNS($D$70:G94)),MAX($AQ95:AT95)+1,\"\")","v":""},{"$f":"IF(AND(I95>0,ROWS($D$70:H94)<>COLUMNS($D$70:H94)),MAX($AQ95:AU95)+1,\"\")","v":""},{"$f":"IF(AND(J95>0,ROWS($D$70:I94)<>COLUMNS($D$70:I94)),MAX($AQ95:AV95)+1,\"\")","v":""},{"$f":"IF(AND(K95>0,ROWS($D$70:J94)<>COLUMNS($D$70:J94)),MAX($AQ95:AW95)+1,\"\")","v":""},{"$f":"IF(AND(L95>0,ROWS($D$70:K94)<>COLUMNS($D$70:K94)),MAX($AQ95:AX95)+1,\"\")","v":""},{"$f":"IF(AND(M95>0,ROWS($D$70:L94)<>COLUMNS($D$70:L94)),MAX($AQ95:AY95)+1,\"\")","v":""},{"$f":"IF(AND(N95>0,ROWS($D$70:M94)<>COLUMNS($D$70:M94)),MAX($AQ95:AZ95)+1,\"\")","v":""},{"$f":"IF(AND(O95>0,ROWS($D$70:N94)<>COLUMNS($D$70:N94)),MAX($AQ95:BA95)+1,\"\")","v":""},{"$f":"IF(AND(P95>0,ROWS($D$70:O94)<>COLUMNS($D$70:O94)),MAX($AQ95:BB95)+1,\"\")","v":""},{"$f":"IF(AND(Q95>0,ROWS($D$70:P94)<>COLUMNS($D$70:P94)),MAX($AQ95:BC95)+1,\"\")","v":""},{"$f":"IF(AND(R95>0,ROWS($D$70:Q94)<>COLUMNS($D$70:Q94)),MAX($AQ95:BD95)+1,\"\")","v":""},{"$f":"IF(AND(S95>0,ROWS($D$70:R94)<>COLUMNS($D$70:R94)),MAX($AQ95:BE95)+1,\"\")","v":""},{"$f":"IF(AND(T95>0,ROWS($D$70:S94)<>COLUMNS($D$70:S94)),MAX($AQ95:BF95)+1,\"\")","v":""},{"$f":"IF(AND(U95>0,ROWS($D$70:T94)<>COLUMNS($D$70:T94)),MAX($AQ95:BG95)+1,\"\")","v":""},{"$f":"IF(AND(V95>0,ROWS($D$70:U94)<>COLUMNS($D$70:U94)),MAX($AQ95:BH95)+1,\"\")","v":""},{"$f":"IF(AND(W95>0,ROWS($D$70:V94)<>COLUMNS($D$70:V94)),MAX($AQ95:BI95)+1,\"\")","v":""},{"$f":"IF(AND(X95>0,ROWS($D$70:W94)<>COLUMNS($D$70:W94)),MAX($AQ95:BJ95)+1,\"\")","v":""},{"$f":"IF(AND(Y95>0,ROWS($D$70:X94)<>COLUMNS($D$70:X94)),MAX($AQ95:BK95)+1,\"\")","v":""},{"$f":"IF(AND(Z95>0,ROWS($D$70:Y94)<>COLUMNS($D$70:Y94)),MAX($AQ95:BL95)+1,\"\")","v":""},{"$f":"IF(AND(AA95>0,ROWS($D$70:Z94)<>COLUMNS($D$70:Z94)),MAX($AQ95:BM95)+1,\"\")","v":""},{"$f":"IF(AND(AB95>0,ROWS($D$70:AA94)<>COLUMNS($D$70:AA94)),MAX($AQ95:BN95)+1,\"\")","v":""},{"$f":"IF(AND(AC95>0,ROWS($D$70:AB94)<>COLUMNS($D$70:AB94)),MAX($AQ95:BO95)+1,\"\")","v":""},{"$f":"IF(AND(AD95>0,ROWS($D$70:AC94)<>COLUMNS($D$70:AC94)),MAX($AQ95:BP95)+1,\"\")","v":""},{"$f":"IF(AND(AE95>0,ROWS($D$70:AD94)<>COLUMNS($D$70:AD94)),MAX($AQ95:BQ95)+1,\"\")","v":""},{"$f":"IF(AND(AF95>0,ROWS($D$70:AE94)<>COLUMNS($D$70:AE94)),MAX($AQ95:BR95)+1,\"\")","v":""},{"$f":"IF(AND(AG95>0,ROWS($D$70:AF94)<>COLUMNS($D$70:AF94)),MAX($AQ95:BS95)+1,\"\")","v":""},{"$f":"IF(AND(AH95>0,ROWS($D$70:AG94)<>COLUMNS($D$70:AG94)),MAX($AQ95:BT95)+1,\"\")","v":""}]
[null,null,16,"",{"v":0,"d":"0.000"},{"v":0,"d":"0.000"},{"v":0,"d":"0.000"},{"v":0,"d":"0.000"},{"v":0,"d":"0.000"},{"v":0,"d":"0.000"},{"v":0,"d":"0.000"},{"v":0,"d":"0.000"},{"v":0,"d":"0.000"},{"v":0,"d":"0.000"},{"v":0,"d":"0.000"},{"v":0,"d":"0.000"},{"v":0,"d":"0.000"},{"v":0,"d":"0.000"},{"v":0,"d":"0.000"},{"v":0,"d":"0.000"},{"v":0,"d":"0.000"},{"v":0,"d":"0.000"},{"v":0,"d":"0.000"},{"v":0,"d":"0.000"},{"v":0,"d":"0.000"},{"v":0,"d":"0.000"},{"v":0,"d":"0.000"},{"v":0,"d":"0.000"},{"v":0,"d":"0.000"},{"v":1,"d":"1.000"},{"v":0,"d":"0.000"},{"v":0,"d":"0.000"},{"v":0,"d":"0.000"},{"v":0,"d":"0.000"},null,{"$f":"IFERROR(SUMIF(E_PurchPrec!S:S,CONST_CNTR_EmbedEmDir&D96,E_PurchPrec!T:T)/SUMIF(E_PurchPrec!R:R,CONST_CNTR_TotProd&D96,E_PurchPrec!T:T),0)","v":{"v":0,"d":"0.000"}},{"v":0,"d":"0.0000"},{"$f":"IFERROR(SUMIF(E_PurchPrec!S:S,CONST_CNTR_EmbedEmInDir&D96,E_PurchPrec!T:T)/SUMIF(E_PurchPrec!R:R,CONST_CNTR_TotProd&D96,E_PurchPrec!T:T),0)","v":{"v":0,"d":"0.0000"}},{"v":0,"d":"0.0000"},{"$f":"IFERROR(SUMIF(E_PurchPrec!R:R,CONST_ElecConsumption&D96,E_PurchPrec!T:T)/SUMIF(E_PurchPrec!R:R,CONST_CNTR_TotProd&D96,E_PurchPrec!T:T),0)","v":{"v":0,"d":"0.0000"}},{"v":0,"d":"0.0000"},null,null,{"$f":"IF(AND(E96>0,ROWS($D$70:D95)<>COLUMNS($D$70:D95)),MAX($AQ96:AQ96)+1,\"\")","v":""},{"$f":"IF(AND(F96>0,ROWS($D$70:E95)<>COLUMNS($D$70:E95)),MAX($AQ96:AR96)+1,\"\")","v":""},{"$f":"IF(AND(G96>0,ROWS($D$70:F95)<>COLUMNS($D$70:F95)),MAX($AQ96:AS96)+1,\"\")","v":""},{"$f":"IF(AND(H96>0,ROWS($D$70:G95)<>COLUMNS($D$70:G95)),MAX($AQ96:AT96)+1,\"\")","v":""},{"$f":"IF(AND(I96>0,ROWS($D$70:H95)<>COLUMNS($D$70:H95)),MAX($AQ96:AU96)+1,\"\")","v":""},{"$f":"IF(AND(J96>0,ROWS($D$70:I95)<>COLUMNS($D$70:I95)),MAX($AQ96:AV96)+1,\"\")","v":""},{"$f":"IF(AND(K96>0,ROWS($D$70:J95)<>COLUMNS($D$70:J95)),MAX($AQ96:AW96)+1,\"\")","v":""},{"$f":"IF(AND(L96>0,ROWS($D$70:K95)<>COLUMNS($D$70:K95)),MAX($AQ96:AX96)+1,\"\")","v":""},{"$f":"IF(AND(M96>0,ROWS($D$70:L95)<>COLUMNS($D$70:L95)),MAX($AQ96:AY96)+1,\"\")","v":""},{"$f":"IF(AND(N96>0,ROWS($D$70:M95)<>COLUMNS($D$70:M95)),MAX($AQ96:AZ96)+1,\"\")","v":""},{"$f":"IF(AND(O96>0,ROWS($D$70:N95)<>COLUMNS($D$70:N95)),MAX($AQ96:BA96)+1,\"\")","v":""},{"$f":"IF(AND(P96>0,ROWS($D$70:O95)<>COLUMNS($D$70:O95)),MAX($AQ96:BB96)+1,\"\")","v":""},{"$f":"IF(AND(Q96>0,ROWS($D$70:P95)<>COLUMNS($D$70:P95)),MAX($AQ96:BC96)+1,\"\")","v":""},{"$f":"IF(AND(R96>0,ROWS($D$70:Q95)<>COLUMNS($D$70:Q95)),MAX($AQ96:BD96)+1,\"\")","v":""},{"$f":"IF(AND(S96>0,ROWS($D$70:R95)<>COLUMNS($D$70:R95)),MAX($AQ96:BE96)+1,\"\")","v":""},{"$f":"IF(AND(T96>0,ROWS($D$70:S95)<>COLUMNS($D$70:S95)),MAX($AQ96:BF96)+1,\"\")","v":""},{"$f":"IF(AND(U96>0,ROWS($D$70:T95)<>COLUMNS($D$70:T95)),MAX($AQ96:BG96)+1,\"\")","v":""},{"$f":"IF(AND(V96>0,ROWS($D$70:U95)<>COLUMNS($D$70:U95)),MAX($AQ96:BH96)+1,\"\")","v":""},{"$f":"IF(AND(W96>0,ROWS($D$70:V95)<>COLUMNS($D$70:V95)),MAX($AQ96:BI96)+1,\"\")","v":""},{"$f":"IF(AND(X96>0,ROWS($D$70:W95)<>COLUMNS($D$70:W95)),MAX($AQ96:BJ96)+1,\"\")","v":""},{"$f":"IF(AND(Y96>0,ROWS($D$70:X95)<>COLUMNS($D$70:X95)),MAX($AQ96:BK96)+1,\"\")","v":""},{"$f":"IF(AND(Z96>0,ROWS($D$70:Y95)<>COLUMNS($D$70:Y95)),MAX($AQ96:BL96)+1,\"\")","v":""},{"$f":"IF(AND(AA96>0,ROWS($D$70:Z95)<>COLUMNS($D$70:Z95)),MAX($AQ96:BM96)+1,\"\")","v":""},{"$f":"IF(AND(AB96>0,ROWS($D$70:AA95)<>COLUMNS($D$70:AA95)),MAX($AQ96:BN96)+1,\"\")","v":""},{"$f":"IF(AND(AC96>0,ROWS($D$70:AB95)<>COLUMNS($D$70:AB95)),MAX($AQ96:BO96)+1,\"\")","v":""},{"$f":"IF(AND(AD96>0,ROWS($D$70:AC95)<>COLUMNS($D$70:AC95)),MAX($AQ96:BP96)+1,\"\")","v":""},{"$f":"IF(AND(AE96>0,ROWS($D$70:AD95)<>COLUMNS($D$70:AD95)),MAX($AQ96:BQ96)+1,\"\")","v":""},{"$f":"IF(AND(AF96>0,ROWS($D$70:AE95)<>COLUMNS($D$70:AE95)),MAX($AQ96:BR96)+1,\"\")","v":""},{"$f":"IF(AND(AG96>0,ROWS($D$70:AF95)<>COLUMNS($D$70:AF95)),MAX($AQ96:BS96)+1,\"\")","v":""},{"$f":"IF(AND(AH96>0,ROWS($D$70:AG95)<>COLUMNS($D$70:AG95)),MAX($AQ96:BT96)+1,\"\")","v":""}]
[null,null,17,"",{"v":0,"d":"0.000"},{"v":0,"d":"0.000"},{"v":0,"d":"0.000"},{"v":0,"d":"0.000"},{"v":0,"d":"0.000"},{"v":0,"d":"0.000"},{"v":0,"d":"0.000"},{"v":0,"d":"0.000"},{"v":0,"d":"0.000"},{"v":0,"d":"0.000"},{"v":0,"d":"0.000"},{"v":0,"d":"0.000"},{"v":0,"d":"0.000"},{"v":0,"d":"0.000"},{"v":0,"d":"0.000"},{"v":0,"d":"0.000"},{"v":0,"d":"0.000"},{"v":0,"d":"0.000"},{"v":0,"d":"0.000"},{"v":0,"d":"0.000"},{"v":0,"d":"0.000"},{"v":0,"d":"0.000"},{"v":0,"d":"0.000"},{"v":0,"d":"0.000"},{"v":0,"d":"0.000"},{"v":0,"d":"0.000"},{"v":1,"d":"1.000"},{"v":0,"d":"0.000"},{"v":0,"d":"0.000"},{"v":0,"d":"0.000"},null,{"$f":"IFERROR(SUMIF(E_PurchPrec!S:S,CONST_CNTR_EmbedEmDir&D97,E_PurchPrec!T:T)/SUMIF(E_PurchPrec!R:R,CONST_CNTR_TotProd&D97,E_PurchPrec!T:T),0)","v":{"v":0,"d":"0.000"}},{"v":0,"d":"0.0000"},{"$f":"IFERROR(SUMIF(E_PurchPrec!S:S,CONST_CNTR_EmbedEmInDir&D97,E_PurchPrec!T:T)/SUMIF(E_PurchPrec!R:R,CONST_CNTR_TotProd&D97,E_PurchPrec!T:T),0)","v":{"v":0,"d":"0.0000"}},{"v":0,"d":"0.0000"},{"$f":"IFERROR(SUMIF(E_PurchPrec!R:R,CONST_ElecConsumption&D97,E_PurchPrec!T:T)/SUMIF(E_PurchPrec!R:R,CONST_CNTR_TotProd&D97,E_PurchPrec!T:T),0)","v":{"v":0,"d":"0.0000"}},{"v":0,"d":"0.0000"},null,null,{"$f":"IF(AND(E97>0,ROWS($D$70:D96)<>COLUMNS($D$70:D96)),MAX($AQ97:AQ97)+1,\"\")","v":""},{"$f":"IF(AND(F97>0,ROWS($D$70:E96)<>COLUMNS($D$70:E96)),MAX($AQ97:AR97)+1,\"\")","v":""},{"$f":"IF(AND(G97>0,ROWS($D$70:F96)<>COLUMNS($D$70:F96)),MAX($AQ97:AS97)+1,\"\")","v":""},{"$f":"IF(AND(H97>0,ROWS($D$70:G96)<>COLUMNS($D$70:G96)),MAX($AQ97:AT97)+1,\"\")","v":""},{"$f":"IF(AND(I97>0,ROWS($D$70:H96)<>COLUMNS($D$70:H96)),MAX($AQ97:AU97)+1,\"\")","v":""},{"$f":"IF(AND(J97>0,ROWS($D$70:I96)<>COLUMNS($D$70:I96)),MAX($AQ97:AV97)+1,\"\")","v":""},{"$f":"IF(AND(K97>0,ROWS($D$70:J96)<>COLUMNS($D$70:J96)),MAX($AQ97:AW97)+1,\"\")","v":""},{"$f":"IF(AND(L97>0,ROWS($D$70:K96)<>COLUMNS($D$70:K96)),MAX($AQ97:AX97)+1,\"\")","v":""},{"$f":"IF(AND(M97>0,ROWS($D$70:L96)<>COLUMNS($D$70:L96)),MAX($AQ97:AY97)+1,\"\")","v":""},{"$f":"IF(AND(N97>0,ROWS($D$70:M96)<>COLUMNS($D$70:M96)),MAX($AQ97:AZ97)+1,\"\")","v":""},{"$f":"IF(AND(O97>0,ROWS($D$70:N96)<>COLUMNS($D$70:N96)),MAX($AQ97:BA97)+1,\"\")","v":""},{"$f":"IF(AND(P97>0,ROWS($D$70:O96)<>COLUMNS($D$70:O96)),MAX($AQ97:BB97)+1,\"\")","v":""},{"$f":"IF(AND(Q97>0,ROWS($D$70:P96)<>COLUMNS($D$70:P96)),MAX($AQ97:BC97)+1,\"\")","v":""},{"$f":"IF(AND(R97>0,ROWS($D$70:Q96)<>COLUMNS($D$70:Q96)),MAX($AQ97:BD97)+1,\"\")","v":""},{"$f":"IF(AND(S97>0,ROWS($D$70:R96)<>COLUMNS($D$70:R96)),MAX($AQ97:BE97)+1,\"\")","v":""},{"$f":"IF(AND(T97>0,ROWS($D$70:S96)<>COLUMNS($D$70:S96)),MAX($AQ97:BF97)+1,\"\")","v":""},{"$f":"IF(AND(U97>0,ROWS($D$70:T96)<>COLUMNS($D$70:T96)),MAX($AQ97:BG97)+1,\"\")","v":""},{"$f":"IF(AND(V97>0,ROWS($D$70:U96)<>COLUMNS($D$70:U96)),MAX($AQ97:BH97)+1,\"\")","v":""},{"$f":"IF(AND(W97>0,ROWS($D$70:V96)<>COLUMNS($D$70:V96)),MAX($AQ97:BI97)+1,\"\")","v":""},{"$f":"IF(AND(X97>0,ROWS($D$70:W96)<>COLUMNS($D$70:W96)),MAX($AQ97:BJ97)+1,\"\")","v":""},{"$f":"IF(AND(Y97>0,ROWS($D$70:X96)<>COLUMNS($D$70:X96)),MAX($AQ97:BK97)+1,\"\")","v":""},{"$f":"IF(AND(Z97>0,ROWS($D$70:Y96)<>COLUMNS($D$70:Y96)),MAX($AQ97:BL97)+1,\"\")","v":""},{"$f":"IF(AND(AA97>0,ROWS($D$70:Z96)<>COLUMNS($D$70:Z96)),MAX($AQ97:BM97)+1,\"\")","v":""},{"$f":"IF(AND(AB97>0,ROWS($D$70:AA96)<>COLUMNS($D$70:AA96)),MAX($AQ97:BN97)+1,\"\")","v":""},{"$f":"IF(AND(AC97>0,ROWS($D$70:AB96)<>COLUMNS($D$70:AB96)),MAX($AQ97:BO97)+1,\"\")","v":""},{"$f":"IF(AND(AD97>0,ROWS($D$70:AC96)<>COLUMNS($D$70:AC96)),MAX($AQ97:BP97)+1,\"\")","v":""},{"$f":"IF(AND(AE97>0,ROWS($D$70:AD96)<>COLUMNS($D$70:AD96)),MAX($AQ97:BQ97)+1,\"\")","v":""},{"$f":"IF(AND(AF97>0,ROWS($D$70:AE96)<>COLUMNS($D$70:AE96)),MAX($AQ97:BR97)+1,\"\")","v":""},{"$f":"IF(AND(AG97>0,ROWS($D$70:AF96)<>COLUMNS($D$70:AF96)),MAX($AQ97:BS97)+1,\"\")","v":""},{"$f":"IF(AND(AH97>0,ROWS($D$70:AG96)<>COLUMNS($D$70:AG96)),MAX($AQ97:BT97)+1,\"\")","v":""}]
[null,null,18,"",{"v":0,"d":"0.000"},{"v":0,"d":"0.000"},{"v":0,"d":"0.000"},{"v":0,"d":"0.000"},{"v":0,"d":"0.000"},{"v":0,"d":"0.000"},{"v":0,"d":"0.000"},{"v":0,"d":"0.000"},{"v":0,"d":"0.000"},{"v":0,"d":"0.000"},{"v":0,"d":"0.000"},{"v":0,"d":"0.000"},{"v":0,"d":"0.000"},{"v":0,"d":"0.000"},{"v":0,"d":"0.000"},{"v":0,"d":"0.000"},{"v":0,"d":"0.000"},{"v":0,"d":"0.000"},{"v":0,"d":"0.000"},{"v":0,"d":"0.000"},{"v":0,"d":"0.000"},{"v":0,"d":"0.000"},{"v":0,"d":"0.000"},{"v":0,"d":"0.000"},{"v":0,"d":"0.000"},{"v":0,"d":"0.000"},{"v":0,"d":"0.000"},{"v":1,"d":"1.000"},{"v":0,"d":"0.000"},{"v":0,"d":"0.000"},null,{"$f":"IFERROR(SUMIF(E_PurchPrec!S:S,CONST_CNTR_EmbedEmDir&D98,E_PurchPrec!T:T)/SUMIF(E_PurchPrec!R:R,CONST_CNTR_TotProd&D98,E_PurchPrec!T:T),0)","v":{"v":0,"d":"0.000"}},{"v":0,"d":"0.0000"},{"$f":"IFERROR(SUMIF(E_PurchPrec!S:S,CONST_CNTR_EmbedEmInDir&D98,E_PurchPrec!T:T)/SUMIF(E_PurchPrec!R:R,CONST_CNTR_TotProd&D98,E_PurchPrec!T:T),0)","v":{"v":0,"d":"0.0000"}},{"v":0,"d":"0.0000"},{"$f":"IFERROR(SUMIF(E_PurchPrec!R:R,CONST_ElecConsumption&D98,E_PurchPrec!T:T)/SUMIF(E_PurchPrec!R:R,CONST_CNTR_TotProd&D98,E_PurchPrec!T:T),0)","v":{"v":0,"d":"0.0000"}},{"v":0,"d":"0.0000"},null,null,{"$f":"IF(AND(E98>0,ROWS($D$70:D97)<>COLUMNS($D$70:D97)),MAX($AQ98:AQ98)+1,\"\")","v":""},{"$f":"IF(AND(F98>0,ROWS($D$70:E97)<>COLUMNS($D$70:E97)),MAX($AQ98:AR98)+1,\"\")","v":""},{"$f":"IF(AND(G98>0,ROWS($D$70:F97)<>COLUMNS($D$70:F97)),MAX($AQ98:AS98)+1,\"\")","v":""},{"$f":"IF(AND(H98>0,ROWS($D$70:G97)<>COLUMNS($D$70:G97)),MAX($AQ98:AT98)+1,\"\")","v":""},{"$f":"IF(AND(I98>0,ROWS($D$70:H97)<>COLUMNS($D$70:H97)),MAX($AQ98:AU98)+1,\"\")","v":""},{"$f":"IF(AND(J98>0,ROWS($D$70:I97)<>COLUMNS($D$70:I97)),MAX($AQ98:AV98)+1,\"\")","v":""},{"$f":"IF(AND(K98>0,ROWS($D$70:J97)<>COLUMNS($D$70:J97)),MAX($AQ98:AW98)+1,\"\")","v":""},{"$f":"IF(AND(L98>0,ROWS($D$70:K97)<>COLUMNS($D$70:K97)),MAX($AQ98:AX98)+1,\"\")","v":""},{"$f":"IF(AND(M98>0,ROWS($D$70:L97)<>COLUMNS($D$70:L97)),MAX($AQ98:AY98)+1,\"\")","v":""},{"$f":"IF(AND(N98>0,ROWS($D$70:M97)<>COLUMNS($D$70:M97)),MAX($AQ98:AZ98)+1,\"\")","v":""},{"$f":"IF(AND(O98>0,ROWS($D$70:N97)<>COLUMNS($D$70:N97)),MAX($AQ98:BA98)+1,\"\")","v":""},{"$f":"IF(AND(P98>0,ROWS($D$70:O97)<>COLUMNS($D$70:O97)),MAX($AQ98:BB98)+1,\"\")","v":""},{"$f":"IF(AND(Q98>0,ROWS($D$70:P97)<>COLUMNS($D$70:P97)),MAX($AQ98:BC98)+1,\"\")","v":""},{"$f":"IF(AND(R98>0,ROWS($D$70:Q97)<>COLUMNS($D$70:Q97)),MAX($AQ98:BD98)+1,\"\")","v":""},{"$f":"IF(AND(S98>0,ROWS($D$70:R97)<>COLUMNS($D$70:R97)),MAX($AQ98:BE98)+1,\"\")","v":""},{"$f":"IF(AND(T98>0,ROWS($D$70:S97)<>COLUMNS($D$70:S97)),MAX($AQ98:BF98)+1,\"\")","v":""},{"$f":"IF(AND(U98>0,ROWS($D$70:T97)<>COLUMNS($D$70:T97)),MAX($AQ98:BG98)+1,\"\")","v":""},{"$f":"IF(AND(V98>0,ROWS($D$70:U97)<>COLUMNS($D$70:U97)),MAX($AQ98:BH98)+1,\"\")","v":""},{"$f":"IF(AND(W98>0,ROWS($D$70:V97)<>COLUMNS($D$70:V97)),MAX($AQ98:BI98)+1,\"\")","v":""},{"$f":"IF(AND(X98>0,ROWS($D$70:W97)<>COLUMNS($D$70:W97)),MAX($AQ98:BJ98)+1,\"\")","v":""},{"$f":"IF(AND(Y98>0,ROWS($D$70:X97)<>COLUMNS($D$70:X97)),MAX($AQ98:BK98)+1,\"\")","v":""},{"$f":"IF(AND(Z98>0,ROWS($D$70:Y97)<>COLUMNS($D$70:Y97)),MAX($AQ98:BL98)+1,\"\")","v":""},{"$f":"IF(AND(AA98>0,ROWS($D$70:Z97)<>COLUMNS($D$70:Z97)),MAX($AQ98:BM98)+1,\"\")","v":""},{"$f":"IF(AND(AB98>0,ROWS($D$70:AA97)<>COLUMNS($D$70:AA97)),MAX($AQ98:BN98)+1,\"\")","v":""},{"$f":"IF(AND(AC98>0,ROWS($D$70:AB97)<>COLUMNS($D$70:AB97)),MAX($AQ98:BO98)+1,\"\")","v":""},{"$f":"IF(AND(AD98>0,ROWS($D$70:AC97)<>COLUMNS($D$70:AC97)),MAX($AQ98:BP98)+1,\"\")","v":""},{"$f":"IF(AND(AE98>0,ROWS($D$70:AD97)<>COLUMNS($D$70:AD97)),MAX($AQ98:BQ98)+1,\"\")","v":""},{"$f":"IF(AND(AF98>0,ROWS($D$70:AE97)<>COLUMNS($D$70:AE97)),MAX($AQ98:BR98)+1,\"\")","v":""},{"$f":"IF(AND(AG98>0,ROWS($D$70:AF97)<>COLUMNS($D$70:AF97)),MAX($AQ98:BS98)+1,\"\")","v":""},{"$f":"IF(AND(AH98>0,ROWS($D$70:AG97)<>COLUMNS($D$70:AG97)),MAX($AQ98:BT98)+1,\"\")","v":""}]
[null,null,19,"",{"v":0,"d":"0.000"},{"v":0,"d":"0.000"},{"v":0,"d":"0.000"},{"v":0,"d":"0.000"},{"v":0,"d":"0.000"},{"v":0,"d":"0.000"},{"v":0,"d":"0.000"},{"v":0,"d":"0.000"},{"v":0,"d":"0.000"},{"v":0,"d":"0.000"},{"v":0,"d":"0.000"},{"v":0,"d":"0.000"},{"v":0,"d":"0.000"},{"v":0,"d":"0.000"},{"v":0,"d":"0.000"},{"v":0,"d":"0.000"},{"v":0,"d":"0.000"},{"v":0,"d":"0.000"},{"v":0,"d":"0.000"},{"v":0,"d":"0.000"},{"v":0,"d":"0.000"},{"v":0,"d":"0.000"},{"v":0,"d":"0.000"},{"v":0,"d":"0.000"},{"v":0,"d":"0.000"},{"v":0,"d":"0.000"},{"v":0,"d":"0.000"},{"v":0,"d":"0.000"},{"v":1,"d":"1.000"},{"v":0,"d":"0.000"},null,{"$f":"IFERROR(SUMIF(E_PurchPrec!S:S,CONST_CNTR_EmbedEmDir&D99,E_PurchPrec!T:T)/SUMIF(E_PurchPrec!R:R,CONST_CNTR_TotProd&D99,E_PurchPrec!T:T),0)","v":{"v":0,"d":"0.000"}},{"v":0,"d":"0.0000"},{"$f":"IFERROR(SUMIF(E_PurchPrec!S:S,CONST_CNTR_EmbedEmInDir&D99,E_PurchPrec!T:T)/SUMIF(E_PurchPrec!R:R,CONST_CNTR_TotProd&D99,E_PurchPrec!T:T),0)","v":{"v":0,"d":"0.0000"}},{"v":0,"d":"0.0000"},{"$f":"IFERROR(SUMIF(E_PurchPrec!R:R,CONST_ElecConsumption&D99,E_PurchPrec!T:T)/SUMIF(E_PurchPrec!R:R,CONST_CNTR_TotProd&D99,E_PurchPrec!T:T),0)","v":{"v":0,"d":"0.0000"}},{"v":0,"d":"0.0000"},null,null,{"$f":"IF(AND(E99>0,ROWS($D$70:D98)<>COLUMNS($D$70:D98)),MAX($AQ99:AQ99)+1,\"\")","v":""},{"$f":"IF(AND(F99>0,ROWS($D$70:E98)<>COLUMNS($D$70:E98)),MAX($AQ99:AR99)+1,\"\")","v":""},{"$f":"IF(AND(G99>0,ROWS($D$70:F98)<>COLUMNS($D$70:F98)),MAX($AQ99:AS99)+1,\"\")","v":""},{"$f":"IF(AND(H99>0,ROWS($D$70:G98)<>COLUMNS($D$70:G98)),MAX($AQ99:AT99)+1,\"\")","v":""},{"$f":"IF(AND(I99>0,ROWS($D$70:H98)<>COLUMNS($D$70:H98)),MAX($AQ99:AU99)+1,\"\")","v":""},{"$f":"IF(AND(J99>0,ROWS($D$70:I98)<>COLUMNS($D$70:I98)),MAX($AQ99:AV99)+1,\"\")","v":""},{"$f":"IF(AND(K99>0,ROWS($D$70:J98)<>COLUMNS($D$70:J98)),MAX($AQ99:AW99)+1,\"\")","v":""},{"$f":"IF(AND(L99>0,ROWS($D$70:K98)<>COLUMNS($D$70:K98)),MAX($AQ99:AX99)+1,\"\")","v":""},{"$f":"IF(AND(M99>0,ROWS($D$70:L98)<>COLUMNS($D$70:L98)),MAX($AQ99:AY99)+1,\"\")","v":""},{"$f":"IF(AND(N99>0,ROWS($D$70:M98)<>COLUMNS($D$70:M98)),MAX($AQ99:AZ99)+1,\"\")","v":""},{"$f":"IF(AND(O99>0,ROWS($D$70:N98)<>COLUMNS($D$70:N98)),MAX($AQ99:BA99)+1,\"\")","v":""},{"$f":"IF(AND(P99>0,ROWS($D$70:O98)<>COLUMNS($D$70:O98)),MAX($AQ99:BB99)+1,\"\")","v":""},{"$f":"IF(AND(Q99>0,ROWS($D$70:P98)<>COLUMNS($D$70:P98)),MAX($AQ99:BC99)+1,\"\")","v":""},{"$f":"IF(AND(R99>0,ROWS($D$70:Q98)<>COLUMNS($D$70:Q98)),MAX($AQ99:BD99)+1,\"\")","v":""},{"$f":"IF(AND(S99>0,ROWS($D$70:R98)<>COLUMNS($D$70:R98)),MAX($AQ99:BE99)+1,\"\")","v":""},{"$f":"IF(AND(T99>0,ROWS($D$70:S98)<>COLUMNS($D$70:S98)),MAX($AQ99:BF99)+1,\"\")","v":""},{"$f":"IF(AND(U99>0,ROWS($D$70:T98)<>COLUMNS($D$70:T98)),MAX($AQ99:BG99)+1,\"\")","v":""},{"$f":"IF(AND(V99>0,ROWS($D$70:U98)<>COLUMNS($D$70:U98)),MAX($AQ99:BH99)+1,\"\")","v":""},{"$f":"IF(AND(W99>0,ROWS($D$70:V98)<>COLUMNS($D$70:V98)),MAX($AQ99:BI99)+1,\"\")","v":""},{"$f":"IF(AND(X99>0,ROWS($D$70:W98)<>COLUMNS($D$70:W98)),MAX($AQ99:BJ99)+1,\"\")","v":""},{"$f":"IF(AND(Y99>0,ROWS($D$70:X98)<>COLUMNS($D$70:X98)),MAX($AQ99:BK99)+1,\"\")","v":""},{"$f":"IF(AND(Z99>0,ROWS($D$70:Y98)<>COLUMNS($D$70:Y98)),MAX($AQ99:BL99)+1,\"\")","v":""},{"$f":"IF(AND(AA99>0,ROWS($D$70:Z98)<>COLUMNS($D$70:Z98)),MAX($AQ99:BM99)+1,\"\")","v":""},{"$f":"IF(AND(AB99>0,ROWS($D$70:AA98)<>COLUMNS($D$70:AA98)),MAX($AQ99:BN99)+1,\"\")","v":""},{"$f":"IF(AND(AC99>0,ROWS($D$70:AB98)<>COLUMNS($D$70:AB98)),MAX($AQ99:BO99)+1,\"\")","v":""},{"$f":"IF(AND(AD99>0,ROWS($D$70:AC98)<>COLUMNS($D$70:AC98)),MAX($AQ99:BP99)+1,\"\")","v":""},{"$f":"IF(AND(AE99>0,ROWS($D$70:AD98)<>COLUMNS($D$70:AD98)),MAX($AQ99:BQ99)+1,\"\")","v":""},{"$f":"IF(AND(AF99>0,ROWS($D$70:AE98)<>COLUMNS($D$70:AE98)),MAX($AQ99:BR99)+1,\"\")","v":""},{"$f":"IF(AND(AG99>0,ROWS($D$70:AF98)<>COLUMNS($D$70:AF98)),MAX($AQ99:BS99)+1,\"\")","v":""},{"$f":"IF(AND(AH99>0,ROWS($D$70:AG98)<>COLUMNS($D$70:AG98)),MAX($AQ99:BT99)+1,\"\")","v":""}]
[null,null,20,"",{"v":0,"d":"0.000"},{"v":0,"d":"0.000"},{"v":0,"d":"0.000"},{"v":0,"d":"0.000"},{"v":0,"d":"0.000"},{"v":0,"d":"0.000"},{"v":0,"d":"0.000"},{"v":0,"d":"0.000"},{"v":0,"d":"0.000"},{"v":0,"d":"0.000"},{"v":0,"d":"0.000"},{"v":0,"d":"0.000"},{"v":0,"d":"0.000"},{"v":0,"d":"0.000"},{"v":0,"d":"0.000"},{"v":0,"d":"0.000"},{"v":0,"d":"0.000"},{"v":0,"d":"0.000"},{"v":0,"d":"0.000"},{"v":0,"d":"0.000"},{"v":0,"d":"0.000"},{"v":0,"d":"0.000"},{"v":0,"d":"0.000"},{"v":0,"d":"0.000"},{"v":0,"d":"0.000"},{"v":0,"d":"0.000"},{"v":0,"d":"0.000"},{"v":0,"d":"0.000"},{"v":0,"d":"0.000"},{"v":1,"d":"1.000"},null,{"$f":"IFERROR(SUMIF(E_PurchPrec!S:S,CONST_CNTR_EmbedEmDir&D100,E_PurchPrec!T:T)/SUMIF(E_PurchPrec!R:R,CONST_CNTR_TotProd&D100,E_PurchPrec!T:T),0)","v":{"v":0,"d":"0.000"}},{"v":0,"d":"0.0000"},{"$f":"IFERROR(SUMIF(E_PurchPrec!S:S,CONST_CNTR_EmbedEmInDir&D100,E_PurchPrec!T:T)/SUMIF(E_PurchPrec!R:R,CONST_CNTR_TotProd&D100,E_PurchPrec!T:T),0)","v":{"v":0,"d":"0.0000"}},{"v":0,"d":"0.0000"},{"$f":"IFERROR(SUMIF(E_PurchPrec!R:R,CONST_ElecConsumption&D100,E_PurchPrec!T:T)/SUMIF(E_PurchPrec!R:R,CONST_CNTR_TotProd&D100,E_PurchPrec!T:T),0)","v":{"v":0,"d":"0.0000"}},{"v":0,"d":"0.0000"},null,null,{"$f":"IF(AND(E100>0,ROWS($D$70:D99)<>COLUMNS($D$70:D99)),MAX($AQ100:AQ100)+1,\"\")","v":""},{"$f":"IF(AND(F100>0,ROWS($D$70:E99)<>COLUMNS($D$70:E99)),MAX($AQ100:AR100)+1,\"\")","v":""},{"$f":"IF(AND(G100>0,ROWS($D$70:F99)<>COLUMNS($D$70:F99)),MAX($AQ100:AS100)+1,\"\")","v":""},{"$f":"IF(AND(H100>0,ROWS($D$70:G99)<>COLUMNS($D$70:G99)),MAX($AQ100:AT100)+1,\"\")","v":""},{"$f":"IF(AND(I100>0,ROWS($D$70:H99)<>COLUMNS($D$70:H99)),MAX($AQ100:AU100)+1,\"\")","v":""},{"$f":"IF(AND(J100>0,ROWS($D$70:I99)<>COLUMNS($D$70:I99)),MAX($AQ100:AV100)+1,\"\")","v":""},{"$f":"IF(AND(K100>0,ROWS($D$70:J99)<>COLUMNS($D$70:J99)),MAX($AQ100:AW100)+1,\"\")","v":""},{"$f":"IF(AND(L100>0,ROWS($D$70:K99)<>COLUMNS($D$70:K99)),MAX($AQ100:AX100)+1,\"\")","v":""},{"$f":"IF(AND(M100>0,ROWS($D$70:L99)<>COLUMNS($D$70:L99)),MAX($AQ100:AY100)+1,\"\")","v":""},{"$f":"IF(AND(N100>0,ROWS($D$70:M99)<>COLUMNS($D$70:M99)),MAX($AQ100:AZ100)+1,\"\")","v":""},{"$f":"IF(AND(O100>0,ROWS($D$70:N99)<>COLUMNS($D$70:N99)),MAX($AQ100:BA100)+1,\"\")","v":""},{"$f":"IF(AND(P100>0,ROWS($D$70:O99)<>COLUMNS($D$70:O99)),MAX($AQ100:BB100)+1,\"\")","v":""},{"$f":"IF(AND(Q100>0,ROWS($D$70:P99)<>COLUMNS($D$70:P99)),MAX($AQ100:BC100)+1,\"\")","v":""},{"$f":"IF(AND(R100>0,ROWS($D$70:Q99)<>COLUMNS($D$70:Q99)),MAX($AQ100:BD100)+1,\"\")","v":""},{"$f":"IF(AND(S100>0,ROWS($D$70:R99)<>COLUMNS($D$70:R99)),MAX($AQ100:BE100)+1,\"\")","v":""},{"$f":"IF(AND(T100>0,ROWS($D$70:S99)<>COLUMNS($D$70:S99)),MAX($AQ100:BF100)+1,\"\")","v":""},{"$f":"IF(AND(U100>0,ROWS($D$70:T99)<>COLUMNS($D$70:T99)),MAX($AQ100:BG100)+1,\"\")","v":""},{"$f":"IF(AND(V100>0,ROWS($D$70:U99)<>COLUMNS($D$70:U99)),MAX($AQ100:BH100)+1,\"\")","v":""},{"$f":"IF(AND(W100>0,ROWS($D$70:V99)<>COLUMNS($D$70:V99)),MAX($AQ100:BI100)+1,\"\")","v":""},{"$f":"IF(AND(X100>0,ROWS($D$70:W99)<>COLUMNS($D$70:W99)),MAX($AQ100:BJ100)+1,\"\")","v":""},{"$f":"IF(AND(Y100>0,ROWS($D$70:X99)<>COLUMNS($D$70:X99)),MAX($AQ100:BK100)+1,\"\")","v":""},{"$f":"IF(AND(Z100>0,ROWS($D$70:Y99)<>COLUMNS($D$70:Y99)),MAX($AQ100:BL100)+1,\"\")","v":""},{"$f":"IF(AND(AA100>0,ROWS($D$70:Z99)<>COLUMNS($D$70:Z99)),MAX($AQ100:BM100)+1,\"\")","v":""},{"$f":"IF(AND(AB100>0,ROWS($D$70:AA99)<>COLUMNS($D$70:AA99)),MAX($AQ100:BN100)+1,\"\")","v":""},{"$f":"IF(AND(AC100>0,ROWS($D$70:AB99)<>COLUMNS($D$70:AB99)),MAX($AQ100:BO100)+1,\"\")","v":""},{"$f":"IF(AND(AD100>0,ROWS($D$70:AC99)<>COLUMNS($D$70:AC99)),MAX($AQ100:BP100)+1,\"\")","v":""},{"$f":"IF(AND(AE100>0,ROWS($D$70:AD99)<>COLUMNS($D$70:AD99)),MAX($AQ100:BQ100)+1,\"\")","v":""},{"$f":"IF(AND(AF100>0,ROWS($D$70:AE99)<>COLUMNS($D$70:AE99)),MAX($AQ100:BR100)+1,\"\")","v":""},{"$f":"IF(AND(AG100>0,ROWS($D$70:AF99)<>COLUMNS($D$70:AF99)),MAX($AQ100:BS100)+1,\"\")","v":""},{"$f":"IF(AND(AH100>0,ROWS($D$70:AG99)<>COLUMNS($D$70:AG99)),MAX($AQ100:BT100)+1,\"\")","v":""}]

{"sheet":"Parameters_Constants","index":15,"n_rows":724,"n_cols":64,"rows_kept":724,"hidden":true}
["CNTR_CBAMPeriod","Transitional"]
["CONST_CNTR_EmbedEmDir","EmbedEmDir_"]
["CONST_CNTR_SUM_CO2","SUM_CO2"]
["CONST_CNTR_SUM_PFC","SUM_PFC"]
["CONST_CNTR_SUM_N2O","SUM_N2O"]
["CONST_CNTR_SUM_CO2OrN2O",{"$f":"CONST_CNTR_SUM_CO2","v":"SUM_CO2"},{"$f":"B5","v":"SUM_N2O"}]
["CONST_EmDir","EmDir_"]
["CONST_EmDirHeat","EmDirHeat_"]
["CONST_EmDirWasteGases","EmDirWG_"]
["CONST_CNTR_ElecEFMethod","ElecEFMeth_"]
["CONST_CNTR_EmbedEmInDir","EmbedEmInDir_"]
["CONST_CNTR_TotProd","TotProd_"]
["CONST_EFNatGas",56.1]
["CONST_ElecConsumption","ElecCons_"]
["CONST_ElecSource","D.2.1","D.2.2","D.2.3","D.2.4",{"$f":"Translations!$B$460","v":"Mix"}]
["CONST_ErrorOrMissing","ErrMiss_"]
["CONST_GoodToMarket","ToMarket_"]
["CONST_NA",{"$f":"Translations!$B$631","v":"n.a."}]
["CONST_PrecursorToGoodInput","PrecToGood_"]
["CONST_tonnes",{"$f":"Translations!$B$632","v":"tonnes"}]
["CONST_TransitionalOrDefinitive","Transitional","Definitive"]
["CONST_TrueFalse",true,false]
["CONST_torkNm3",{"$f":"CONST_t","v":"t"},{"$f":"CONST_kNm3","v":"1000Nm3"}]
["CONST_TJ","TJ"]
["CONST_GJ","GJ"]
["CONST_t","t"]
["CONST_kNm3",{"$f":"Translations!$B$633","v":"1000Nm3"}]
["CONST_GJpt",{"$f":"CONST_GJ&\"/\"&CONST_t","v":"GJ/t"}]
["CONST_GWh","GWh"]
["CONST_MWh","MWh"]
["CONST_tCO2","tCO2"]
["CONST_tCO2eq","tCO2e"]
["CONST_tCO2pt",{"$f":"CONST_tCO2&\"/\"&CONST_t","v":"tCO2/t"}]
["CONST_tCO2pTJ",{"$f":"CONST_tCO2&\"/\"&CONST_TJ","v":"tCO2/TJ"}]
["CONST_tCO2pkNm3",{"$f":"CONST_tCO2&\"/\"&CONST_kNm3","v":"tCO2/1000Nm3"}]
["CONST_GJpkNm3",{"$f":"CONST_GJ&\"/\"&CONST_kNm3","v":"GJ/1000Nm3"}]
["CONST_tC","tC"]
["CONST_tCpt",{"$f":"CONST_tC&\"/\"&CONST_t","v":"tC/t"}]
["CONST_tCpkNm3",{"$f":"CONST_tC&\"/\"&CONST_kNm3","v":"tC/1000Nm3"}]
["CONST_torkNm3",{"$f":"CONST_t","v":"t"},{"$f":"CONST_kNm3","v":"1000Nm3"}]
["CONST_torkNm3orNA",{"$f":"CONST_t","v":"t"},{"$f":"CONST_kNm3","v":"1000Nm3"},{"$f":"CONST_NA","v":"n.a."}]
["CONST_DataQuality",{"$f":"Translations!$B$1875","v":"Mostly measurements & analyses"},{"$f":"Translations!$B$1876","v":"Mostly measurements & national standard factors for e.g. the emission factor"},{"$f":"Translations!$B$1877","v":"Mostly measurements & sector-specific standard factors for e.g. the emission factor"},{"$f":"Translations!$B$1878","v":"Mostly measurements & international standard factors for e.g. the emission factor"},{"$f":"Translations!$B$1879","v":"Mostly default values provided by the European Commission"}]
["CONST_DataVerification",{"$f":"Translations!$B$1880","v":"Third-party verification"},{"$f":"Translations!$B$1881","v":"Internal audits"},{"$f":"Translations!$B$1882","v":"Four eyes principle"},{"$f":"Translations!$B$634","v":"None"}]
["CONST_DataQualityJustification",{"$f":"Translations!$B$1883","v":"Unreasonable costs for more accurate monitoring"},{"$f":"Translations!$B$1884","v":"Data gaps"},{"$f":"Translations!$B$638","v":"Other"}]
["CONST_CarbonPriceType",{"$f":"Translations!$B$634","v":"None"},{"$f":"Translations!$B$635","v":"Emissions Trading System"},{"$f":"Translations!$B$636","v":"Tax or levy"},{"$f":"Translations!$B$637","v":"Combination"},{"$f":"Translations!$B$638","v":"Other"}]
["CONST_RebateType",{"$f":"Translations!$B$634","v":"None"},{"$f":"Translations!$B$639","v":"Free allocation"},{"$f":"Translations!$B$640","v":"Financial compensation"},{"$f":"Translations!$B$641","v":"Tax deduction"},{"$f":"Translations!$B$637","v":"Combination"},{"$f":"Translations!$B$638","v":"Other"}]
["CONST_tCO2pTJOrtCO2pt",{"$f":"CONST_tCO2pTJ","v":"tCO2/TJ"},{"$f":"CONST_tCO2pt","v":"tCO2/t"},{"$f":"CONST_tCO2pkNm3","v":"tCO2/1000Nm3"}]
["CONST_tCptOrtCpkNm3",{"$f":"CONST_tC&\"/\"&CONST_t","v":"tC/t"},"tC/1000Nm3",{"$f":"CONST_NA","v":"n.a."}]
["CONST_tCptortCO2pkNm3",{"$f":"CONST_tC&\"/\"&CONST_t","v":"tC/t"},{"$f":"CONST_tC&\"/\"&CONST_kNm3","v":"tC/1000Nm3"}]
["CONST_hpa",{"$f":"Translations!$B$642","v":"h/year"}]
["CONST_Nm3ph",{"$f":"Translations!$B$643","v":"1000Nm3/h"}]
["CONST_gpNm3",{"$f":"Translations!$B$644","v":"g/Nm3"}]
["CONST_kNm3pa",{"$f":"CONST_kNm3&\"/\"&CONST_Year","v":"1000Nm3/Year"}]
["CONST_Year",{"$f":"Translations!$B$645","v":"Year"}]
["CONST_CEMSType","CO2","N2O"]
["CONST_MonitoringApproach",{"$f":"Translations!$B$181","v":"Combustion"},{"$f":"Translations!$B$646","v":"Process emissions"},{"$f":"Translations!$B$194","v":"Mass Balance"}]
["CONST_PFCSlopeOrOvervoltage",{"$f":"Translations!$B$647","v":"Slope method"},{"$f":"Translations!$B$203","v":"Overvoltage method"}]
["CONST_ReducingAgent",{"$f":"Translations!$B$615","v":"Coal or coke"},{"$f":"Translations!$B$648","v":"Natural gas"},{"$f":"Translations!$B$649","v":"Biogas"},{"$f":"Translations!$B$650","v":"Hydrogen"}]
["CONST_MsgMissingProdProc",{"$f":"Translations!$B$651","v":"Missing! Please assign ALL relevant aggregated goods categories to a 'production process'."}]
["CONST_MsgJumpkNextSheet",{"$f":"Translations!$B$652","v":"Click here to proceed to next sheet"}]
["CONST_PurchPrecDefaultUsed","PurchPrecDef_"]
["CONST_OnlyDirProd",{"$f":"Translations!$B$653","v":"Only direct production"}]
["CONST_AllProdRoutes",{"$f":"Translations!$B$654","v":"All production routes"}]
["CONST_PleaseSelect",{"$f":"Translations!$B$655","v":"Please select…"}]
["CONST_ERR_Incomplete",{"$f":"Translations!$B$656","v":"Incomplete!"}]
["CONST_ERR_Duplicate",{"$f":"Translations!$B$657","v":"Duplicate!"}]
["CONST_MeasuredOrDefault",{"$f":"Translations!$B$658","v":"Measured"},{"$f":"Translations!$B$659","v":"Default"}]
["CONST_ProductionProcess",{"$f":"Translations!$B$120","v":"Production process"}]
["CONST_PurchPrecursor",{"$f":"Translations!$B$553","v":"Purchased precursor"}]
["CONST_LinkToGuidanceSheet",{"$f":"Translations!$B$660","v":"Please click on this link for further guidance on how to complete this section."}]
["CONST_LinkFromGuidance",{"$f":"Translations!$B$661","v":"Please click on this link if you want to go back to the relevant section for data entry."}]
["CONST_LinkToCPTool",{"$f":"Translations!$B$662","v":"Please click on this link to go to the \"tool for calculation of the carbon price due\"."}]
["CONST_LinkToCHPTool",{"$f":"Translations!$B$663","v":"Please click on this link to go to the \"CHP Tool for attributing emissions between heat and electricity\"."}]
[]
[]
[{"$f":"Translations!$B$1885","v":"Name of this sheet:"},{"$f":"IF(ISERROR(CELL(\"filename\",C76)),\"Parameters\",MID(CELL(\"filename\",C76),FIND(\"]\",CELL(\"filename\",C76))+1,1024))","v":"Parameters_Constants"}]
[]
[null,null,"Indirect emissions relevant?",null,null,{"$f":"Translations!$B$244","v":"Production route"},{"$nulls":10},"Relevant precursors",{"$nulls":46},"CONST_CNTR_PrecNumbering"]
["CBAM good",{"$f":"Translations!$B$221","v":"Unit"},"Indirect emissions relevant?","Indirect emissions relevant?","Production route relevant?","Address",1,2,3,4,5,6,7,8,9,10,"Address",1,2,3,4,5,6,7,8,9,10,null,null,1,2,3,4,5,6,7,8,9,10,null,{"$f":"INDEX(CONST_LIST_Goods,COLUMNS($AO79:AO79))","v":"Cement"},{"$f":"INDEX(CONST_LIST_Goods,COLUMNS($AO79:AP79))","v":"Cement clinker"},{"$f":"INDEX(CONST_LIST_Goods,COLUMNS($AO79:AQ79))","v":"Calcined clays "},{"$f":"INDEX(CONST_LIST_Goods,COLUMNS($AO79:AR79))","v":"Aluminous cement"},{"$f":"INDEX(CONST_LIST_Goods,COLUMNS($AO79:AS79))","v":"Iron or steel products"},{"$f":"INDEX(CONST_LIST_Goods,COLUMNS($AO79:AT79))","v":"Crude steel"},{"$f":"INDEX(CONST_LIST_Goods,COLUMNS($AO79:AU79))","v":"Direct reduced iron"},{"$f":"INDEX(CONST_LIST_Goods,COLUMNS($AO79:AV79))","v":"Pig iron"},{"$f":"INDEX(CONST_LIST_Goods,COLUMNS($AO79:AW79))","v":"Alloys (FeMn, FeCr, FeNi)"},{"$f":"INDEX(CONST_LIST_Goods,COLUMNS($AO79:AX79))","v":"Sintered Ore"},{"$f":"INDEX(CONST_LIST_Goods,COLUMNS($AO79:AY79))","v":"Hydrogen"},{"$f":"INDEX(CONST_LIST_Goods,COLUMNS($AO79:AZ79))","v":"Ammonia"},{"$f":"INDEX(CONST_LIST_Goods,COLUMNS($AO79:BA79))","v":"Nitric acid"},{"$f":"INDEX(CONST_LIST_Goods,COLUMNS($AO79:BB79))","v":"Urea"},{"$f":"INDEX(CONST_LIST_Goods,COLUMNS($AO79:BC79))","v":"Mixed fertilizers"},{"$f":"INDEX(CONST_LIST_Goods,COLUMNS($AO79:BD79))","v":"Aluminium products"},{"$f":"INDEX(CONST_LIST_Goods,COLUMNS($AO79:BE79))","v":"Unwrought aluminium"},{"$f":"INDEX(CONST_LIST_Goods,COLUMNS($AO79:BF79))","v":"Electricity (export to EU)"},null,"from sheet A",null,"Relevant precursor?",null,"Numbering precursor"]
[{"$f":"Translations!$B$664","v":"Cement"},{"$f":"CONST_t","v":"t"},true,{"$f":"IF(MATCH(CNTR_CBAMPeriod,CONST_TransitionalOrDefinitive,0)=1,TRUE,C80)","v":true},{"$f":"COUNTIF(G80:P80,CONST_NA)<9","v":false},{"$f":"ADDRESS(ROW(),COLUMN(G80),,,$B$76)&\":\"&ADDRESS(ROW(),COLUMN(G80)+MAX(0,9-COUNTIF(G80:P80,CONST_NA)-COUNTIF(G80:P80,\"\")))","v":"Parameters_Constants!$G$80:$G$80"},{"$f":"CONST_AllProdRoutes","v":"All production routes"},{"$f":"CONST_NA","v":"n.a."},"n.a.","n.a.","n.a.","n.a.","n.a.","n.a.","n.a.","n.a.",{"$f":"ADDRESS(ROW(),COLUMN(R80),,,$B$76)&\":\"&ADDRESS(ROW(),COLUMN(R80)+MAX(0,9-COUNTIF(R80:AA80,CONST_NA)-COUNTIF(R80:AA80,\"\")))","v":"Parameters_Constants!$R$80:$S$80"},{"$f":"Translations!$B$665","v":"Cement clinker"},{"$f":"Translations!$B$666","v":"Calcined clays "},{"$f":"CONST_NA","v":"n.a."},"n.a.","n.a.","n.a.","n.a.","n.a.","n.a.","n.a.",null,{"$f":"A80","v":"Cement"},{"$f":"R80","v":"Cement clinker"},{"$f":"S80","v":"Calcined clays "},{"$f":"CONST_NA","v":"n.a."},"n.a.","n.a.","n.a.","n.a.","n.a.","n.a.","n.a.",null,{"$f":"COUNTIF(INDEX($AD$80:$AM$97,MATCH(AO$79,CONST_LIST_Goods,0),),$A80)","v":0},0,0,0,0,0,0,0,0,0,{"$f":"COUNTIF(INDEX($AD$80:$AM$97,MATCH(AY$79,CONST_LIST_Goods,0),),$A80)","v":0},0,0,0,0,0,0,0,null,{"$f":"IF(COUNTIF(A_InstData!$E$62:$F$71,$A80)>0,1,0)","v":0},null,{"$f":"MMULT(AO80:BF97,BH80:BH97)","v":0},null,{"$f":"IF(BJ80>0,MAX($BL$79:BL79)+1,\"\")","v":""}]
[{"$f":"Translations!$B$665","v":"Cement clinker"},"t",true,true,false,"Parameters_Constants!$G$81:$G$81",{"$f":"CONST_AllProdRoutes","v":"All production routes"},"n.a.","n.a.","n.a.","n.a.","n.a.","n.a.","n.a.","n.a.","n.a.","Parameters_Constants!$R$81:$R$81",{"$f":"CONST_NA","v":"n.a."},"n.a.","n.a.","n.a.","n.a.","n.a.","n.a.","n.a.","n.a.","n.a.",null,{"$f":"A81","v":"Cement clinker"},{"$f":"CONST_NA","v":"n.a."},"n.a.","n.a.","n.a.","n.a.","n.a.","n.a.","n.a.","n.a.","n.a.",null,1,0,0,0,0,0,0,0,0,0,0,0,0,0,0,0,0,0,null,{"$f":"IF(COUNTIF(A_InstData!$E$62:$F$71,$A81)>0,1,0)","v":0},null,0,null,{"$f":"IF(BJ81>0,MAX($BL$79:BL80)+1,\"\")","v":""}]
[{"$f":"Translations!$B$666","v":"Calcined clays "},"t",true,true,false,"Parameters_Constants!$G$82:$G$82",{"$f":"CONST_AllProdRoutes","v":"All production routes"},"n.a.","n.a.","n.a.","n.a.","n.a.","n.a.","n.a.","n.a.","n.a.","Parameters_Constants!$R$82:$R$82","n.a.","n.a.","n.a.","n.a.","n.a.","n.a.","n.a.","n.a.","n.a.","n.a.",null,"Calcined clays ","n.a.","n.a.","n.a.","n.a.","n.a.","n.a.","n.a.","n.a.","n.a.","n.a.",null,1,0,0,0,0,0,0,0,0,0,0,0,0,0,0,0,0,0,null,{"$f":"IF(COUNTIF(A_InstData!$E$62:$F$71,$A82)>0,1,0)","v":0},null,0,null,{"$f":"IF(BJ82>0,MAX($BL$79:BL81)+1,\"\")","v":""}]
[{"$f":"Translations!$B$667","v":"Aluminous cement"},"t",true,true,false,"Parameters_Constants!$G$83:$G$83",{"$f":"CONST_AllProdRoutes","v":"All production routes"},"n.a.","n.a.","n.a.","n.a.","n.a.","n.a.","n.a.","n.a.","n.a.","Parameters_Constants!$R$83:$R$83","n.a.","n.a.","n.a.","n.a.","n.a.","n.a.","n.a.","n.a.","n.a.","n.a.",null,"Aluminous cement","n.a.","n.a.","n.a.","n.a.","n.a.","n.a.","n.a.","n.a.","n.a.","n.a.",null,0,0,0,0,0,0,0,0,0,0,0,0,0,0,0,0,0,0,null,{"$f":"IF(COUNTIF(A_InstData!$E$62:$F$71,$A83)>0,1,0)","v":0},null,0,null,{"$f":"IF(BJ83>0,MAX($BL$79:BL82)+1,\"\")","v":""}]
[{"$f":"Translations!$B$611","v":"Iron or steel products"},"t",false,true,false,"Parameters_Constants!$G$84:$G$84",{"$f":"CONST_AllProdRoutes","v":"All production routes"},"n.a.","n.a.","n.a.","n.a.","n.a.","n.a.","n.a.","n.a.","n.a.","Parameters_Constants!$R$84:$R$84",{"$f":"Translations!$B$668","v":"Crude steel"},{"$f":"CONST_NA","v":"n.a."},"n.a.","n.a.","n.a.","n.a.","n.a.","n.a.","n.a.","n.a.",null,"Iron or steel products",{"$f":"R84","v":"Crude steel"},{"$f":"R85","v":"Pig iron"},{"$f":"T85","v":"Alloys (FeMn, FeCr, FeNi)"},{"$f":"R86","v":"Sintered Ore"},{"$f":"S85","v":"Direct reduced iron"},{"$f":"S86","v":"Hydrogen"},"n.a.","n.a.","n.a.","n.a.",null,0,0,0,0,0,0,0,0,0,0,0,0,0,0,0,0,0,0,null,{"$f":"IF(COUNTIF(A_InstData!$E$62:$F$71,$A84)>0,1,0)","v":0},null,0,null,{"$f":"IF(BJ84>0,MAX($BL$79:BL83)+1,\"\")","v":""}]
[{"$f":"Translations!$B$668","v":"Crude steel"},"t",false,true,true,"Parameters_Constants!$G$85:$J$85",{"$f":"Translations!$B$669","v":"Basic oxygen steelmaking"},{"$f":"Translations!$B$670","v":"Electric arc furnace"},{"$f":"Translations!$B$671","v":"Other production routes"},{"$f":"Translations!$B$672","v":"Unknown production routes"},{"$f":"CONST_NA","v":"n.a."},"n.a.","n.a.","n.a.","n.a.","n.a.","Parameters_Constants!$R$85:$T$85",{"$f":"A87","v":"Pig iron"},{"$f":"A86","v":"Direct reduced iron"},{"$f":"A88","v":"Alloys (FeMn, FeCr, FeNi)"},{"$f":"CONST_NA","v":"n.a."},"n.a.","n.a.","n.a.","n.a.","n.a.","n.a.",null,"Crude steel",{"$f":"AE84","v":"Pig iron"},{"$f":"AF84","v":"Alloys (FeMn, FeCr, FeNi)"},{"$f":"AG84","v":"Sintered Ore"},{"$f":"AH84","v":"Direct reduced iron"},{"$f":"AI84","v":"Hydrogen"},{"$f":"CONST_NA","v":"n.a."},{"$f":"CONST_NA","v":"n.a."},{"$f":"CONST_NA","v":"n.a."},{"$f":"CONST_NA","v":"n.a."},{"$f":"CONST_NA","v":"n.a."},null,0,0,0,0,1,0,0,0,0,0,0,0,0,0,0,0,0,0,null,{"$f":"IF(COUNTIF(A_InstData!$E$62:$F$71,$A85)>0,1,0)","v":0},null,0,null,{"$f":"IF(BJ85>0,MAX($BL$79:BL84)+1,\"\")","v":""}]
[{"$f":"Translations!$B$673","v":"Direct reduced iron"},"t",false,true,false,"Parameters_Constants!$G$86:$G$86",{"$f":"CONST_AllProdRoutes","v":"All production routes"},"n.a.","n.a.","n.a.","n.a.","n.a.","n.a.","n.a.","n.a.","n.a.","Parameters_Constants!$R$86:$S$86",{"$f":"A89","v":"Sintered Ore"},{"$f":"A90","v":"Hydrogen"},{"$f":"CONST_NA","v":"n.a."},"n.a.","n.a.","n.a.","n.a.","n.a.","n.a.","n.a.",null,"Direct reduced iron",{"$f":"AF85","v":"Sintered Ore"},{"$f":"AH85","v":"Hydrogen"},{"$f":"CONST_NA","v":"n.a."},"n.a.","n.a.","n.a.","n.a.","n.a.","n.a.","n.a.",null,0,0,0,0,1,1,0,0,0,0,0,0,0,0,0,0,0,0,null,{"$f":"IF(COUNTIF(A_InstData!$E$62:$F$71,$A86)>0,1,0)","v":0},null,0,null,{"$f":"IF(BJ86>0,MAX($BL$79:BL85)+1,\"\")","v":""}]
[{"$f":"Translations!$B$674","v":"Pig iron"},"t",false,true,true,"Parameters_Constants!$G$87:$J$87",{"$f":"Translations!$B$675","v":"Blast furnace route"},{"$f":"Translations!$B$676","v":"Smelting reduction"},{"$f":"Translations!$B$671","v":"Other production routes"},{"$f":"Translations!$B$672","v":"Unknown production routes"},"n.a.","n.a.","n.a.","n.a.","n.a.","n.a.","Parameters_Constants!$R$87:$S$87",{"$f":"A89","v":"Sintered Ore"},{"$f":"A88","v":"Alloys (FeMn, FeCr, FeNi)"},"n.a.","n.a.","n.a.","n.a.","n.a.","n.a.","n.a.","n.a.",null,"Pig iron",{"$f":"AE85","v":"Alloys (FeMn, FeCr, FeNi)"},{"$f":"AF85","v":"Sintered Ore"},"n.a.","n.a.","n.a.","n.a.","n.a.","n.a.","n.a.","n.a.",null,0,0,0,0,1,1,0,0,0,0,0,0,0,0,0,0,0,0,null,{"$f":"IF(COUNTIF(A_InstData!$E$62:$F$71,$A87)>0,1,0)","v":0},null,0,null,{"$f":"IF(BJ87>0,MAX($BL$79:BL86)+1,\"\")","v":""}]
[{"$f":"Translations!$B$677","v":"Alloys (FeMn, FeCr, FeNi)"},"t",false,true,false,"Parameters_Constants!$G$88:$G$88",{"$f":"CONST_AllProdRoutes","v":"All production routes"},{"$f":"CONST_NA","v":"n.a."},{"$f":"CONST_NA","v":"n.a."},"n.a.","n.a.","n.a.","n.a.","n.a.","n.a.","n.a.","Parameters_Constants!$R$88:$R$88",{"$f":"A89","v":"Sintered Ore"},{"$f":"CONST_NA","v":"n.a."},"n.a.","n.a.","n.a.","n.a.","n.a.","n.a.","n.a.","n.a.",null,"Alloys (FeMn, FeCr, FeNi)",{"$f":"AE87","v":"Sintered Ore"},{"$f":"CONST_NA","v":"n.a."},"n.a.","n.a.","n.a.","n.a.","n.a.","n.a.","n.a.","n.a.",null,0,0,0,0,1,1,0,1,0,0,0,0,0,0,0,0,0,0,null,{"$f":"IF(COUNTIF(A_InstData!$E$62:$F$71,$A88)>0,1,0)","v":0},null,0,null,{"$f":"IF(BJ88>0,MAX($BL$79:BL87)+1,\"\")","v":""}]
[{"$f":"Translations!$B$678","v":"Sintered Ore"},"t",true,true,false,"Parameters_Constants!$G$89:$G$89",{"$f":"CONST_AllProdRoutes","v":"All production routes"},{"$f":"CONST_NA","v":"n.a."},{"$f":"CONST_NA","v":"n.a."},"n.a.","n.a.","n.a.","n.a.","n.a.","n.a.","n.a.","Parameters_Constants!$R$89:$R$89",{"$f":"CONST_NA","v":"n.a."},"n.a.","n.a.","n.a.","n.a.","n.a.","n.a.","n.a.","n.a.","n.a.",null,"Sintered Ore","n.a.","n.a.","n.a.","n.a.","n.a.","n.a.","n.a.","n.a.","n.a.","n.a.",null,0,0,0,0,1,1,1,1,1,0,0,0,0,0,0,0,0,0,null,{"$f":"IF(COUNTIF(A_InstData!$E$62:$F$71,$A89)>0,1,0)","v":0},null,0,null,{"$f":"IF(BJ89>0,MAX($BL$79:BL88)+1,\"\")","v":""}]
[{"$f":"Translations!$B$650","v":"Hydrogen"},"t",false,true,true,"Parameters_Constants!$G$90:$K$90",{"$f":"Translations!$B$679","v":"Steam reforming and partial oxidation"},{"$f":"Translations!$B$680","v":"Electrolysis of water"},{"$f":"Translations!$B$681","v":"Chlor-Alkali electrolysis and production of chlorates"},{"$f":"Translations!$B$671","v":"Other production routes"},{"$f":"Translations!$B$672","v":"Unknown production routes"},{"$f":"CONST_NA","v":"n.a."},"n.a.","n.a.","n.a.","n.a.","Parameters_Constants!$R$90:$R$90",{"$f":"CONST_NA","v":"n.a."},"n.a.","n.a.","n.a.","n.a.","n.a.","n.a.","n.a.","n.a.","n.a.",null,"Hydrogen","n.a.","n.a.","n.a.","n.a.","n.a.","n.a.","n.a.","n.a.","n.a.","n.a.",null,{"$f":"COUNTIF(INDEX($AD$80:$AM$97,MATCH(AO$79,CONST_LIST_Goods,0),),$A90)","v":0},0,0,0,1,1,1,0,0,0,{"$f":"COUNTIF(INDEX($AD$80:$AM$97,MATCH(AY$79,CONST_LIST_Goods,0),),$A90)","v":0},1,1,1,1,0,0,0,null,{"$f":"IF(COUNTIF(A_InstData!$E$62:$F$71,$A90)>0,1,0)","v":0},null,0,null,{"$f":"IF(BJ90>0,MAX($BL$79:BL89)+1,\"\")","v":""}]
[{"$f":"Translations!$B$682","v":"Ammonia"},"t",false,true,true,"Parameters_Constants!$G$91:$J$91",{"$f":"Translations!$B$683","v":"Haber-Bosch process with steam reforming of natural gas or biogas"},{"$f":"Translations!$B$684","v":"Haber-Bosch process with gasification of coal or other fuels"},{"$f":"Translations!$B$671","v":"Other production routes"},{"$f":"Translations!$B$672","v":"Unknown production routes"},{"$f":"CONST_NA","v":"n.a."},"n.a.","n.a.","n.a.","n.a.","n.a.","Parameters_Constants!$R$91:$R$91",{"$f":"A90","v":"Hydrogen"},"n.a.","n.a.","n.a.","n.a.","n.a.","n.a.","n.a.","n.a.","n.a.",null,"Ammonia",{"$f":"AC90","v":"Hydrogen"},"n.a.","n.a.","n.a.","n.a.","n.a.","n.a.","n.a.","n.a.","n.a.",null,0,0,0,0,0,0,0,0,0,0,0,0,1,1,1,0,0,0,null,{"$f":"IF(COUNTIF(A_InstData!$E$62:$F$71,$A91)>0,1,0)","v":0},null,0,null,{"$f":"IF(BJ91>0,MAX($BL$79:BL90)+1,\"\")","v":""}]
[{"$f":"Translations!$B$685","v":"Nitric acid"},"t",true,true,false,"Parameters_Constants!$G$92:$G$92",{"$f":"CONST_AllProdRoutes","v":"All production routes"},{"$f":"CONST_NA","v":"n.a."},"n.a.","n.a.","n.a.","n.a.","n.a.","n.a.","n.a.","n.a.","Parameters_Constants!$R$92:$R$92",{"$f":"A91","v":"Ammonia"},"n.a.","n.a.","n.a.","n.a.","n.a.","n.a.","n.a.","n.a.","n.a.",null,"Nitric acid",{"$f":"AC91","v":"Ammonia"},{"$f":"AD91","v":"Hydrogen"},"n.a.","n.a.","n.a.","n.a.","n.a.","n.a.","n.a.","n.a.",null,0,0,0,0,0,0,0,0,0,0,0,0,0,0,1,0,0,0,null,{"$f":"IF(COUNTIF(A_InstData!$E$62:$F$71,$A92)>0,1,0)","v":0},null,0,null,{"$f":"IF(BJ92>0,MAX($BL$79:BL91)+1,\"\")","v":""}]
[{"$f":"Translations!$B$686","v":"Urea"},"t",true,true,false,"Parameters_Constants!$G$93:$G$93",{"$f":"CONST_AllProdRoutes","v":"All production routes"},"n.a.","n.a.","n.a.","n.a.","n.a.","n.a.","n.a.","n.a.","n.a.","Parameters_Constants!$R$93:$R$93",{"$f":"A91","v":"Ammonia"},"n.a.","n.a.","n.a.","n.a.","n.a.","n.a.","n.a.","n.a.","n.a.",null,"Urea",{"$f":"AD92","v":"Ammonia"},{"$f":"AE92","v":"Hydrogen"},"n.a.","n.a.","n.a.","n.a.","n.a.","n.a.","n.a.","n.a.",null,0,0,0,0,0,0,0,0,0,0,0,0,0,0,1,0,0,0,null,{"$f":"IF(COUNTIF(A_InstData!$E$62:$F$71,$A93)>0,1,0)","v":0},null,0,null,{"$f":"IF(BJ93>0,MAX($BL$79:BL92)+1,\"\")","v":""}]
[{"$f":"Translations!$B$687","v":"Mixed fertilizers"},"t",true,true,false,"Parameters_Constants!$G$94:$G$94",{"$f":"CONST_AllProdRoutes","v":"All production routes"},"n.a.","n.a.","n.a.","n.a.","n.a.","n.a.","n.a.","n.a.","n.a.","Parameters_Constants!$R$94:$T$94",{"$f":"A91","v":"Ammonia"},{"$f":"A92","v":"Nitric acid"},{"$f":"A93","v":"Urea"},"n.a.","n.a.","n.a.","n.a.","n.a.","n.a.","n.a.",null,"Mixed fertilizers",{"$f":"AC93","v":"Urea"},{"$f":"AC92","v":"Nitric acid"},{"$f":"AD92","v":"Ammonia"},{"$f":"AE92","v":"Hydrogen"},"n.a.","n.a.","n.a.","n.a.","n.a.","n.a.",null,0,0,0,0,0,0,0,0,0,0,0,0,0,0,0,0,0,0,null,{"$f":"IF(COUNTIF(A_InstData!$E$62:$F$71,$A94)>0,1,0)","v":0},null,0,null,{"$f":"IF(BJ94>0,MAX($BL$79:BL93)+1,\"\")","v":""}]
[{"$f":"Translations!$B$688","v":"Aluminium products"},"t",false,true,false,"Parameters_Constants!$G$95:$G$95",{"$f":"CONST_AllProdRoutes","v":"All production routes"},"n.a.","n.a.","n.a.","n.a.","n.a.","n.a.","n.a.","n.a.","n.a.","Parameters_Constants!$R$95:$R$95",{"$f":"A96","v":"Unwrought aluminium"},null,{"$f":"CONST_NA","v":"n.a."},"n.a.","n.a.","n.a.","n.a.","n.a.","n.a.","n.a.",null,"Aluminium products",{"$f":"AC96","v":"Unwrought aluminium"},"n.a.","n.a.","n.a.","n.a.","n.a.","n.a.","n.a.","n.a.","n.a.",null,0,0,0,0,0,0,0,0,0,0,0,0,0,0,0,0,0,0,null,{"$f":"IF(COUNTIF(A_InstData!$E$62:$F$71,$A95)>0,1,0)","v":0},null,0,null,{"$f":"IF(BJ95>0,MAX($BL$79:BL94)+1,\"\")","v":""}]
[{"$f":"Translations!$B$689","v":"Unwrought aluminium"},"t",false,{"$f":"IF(MATCH(CNTR_CBAMPeriod,CONST_TransitionalOrDefinitive,0)=1,TRUE,C96)","v":true},true,{"$f":"ADDRESS(ROW(),COLUMN(G96),,,$B$76)&\":\"&ADDRESS(ROW(),COLUMN(G96)+MAX(0,9-COUNTIF(G96:P96,CONST_NA)-COUNTIF(G96:P96,\"\")))","v":"Parameters_Constants!$G$96:$J$96"},{"$f":"Translations!$B$690","v":"Primary (electrolytic) smelting"},{"$f":"Translations!$B$691","v":"Secondary melting (recycling)"},{"$f":"Translations!$B$671","v":"Other production routes"},{"$f":"Translations!$B$672","v":"Unknown production routes"},"n.a.","n.a.","n.a.","n.a.","n.a.","n.a.",{"$f":"ADDRESS(ROW(),COLUMN(R96),,,$B$76)&\":\"&ADDRESS(ROW(),COLUMN(R96)+MAX(0,9-COUNTIF(R96:AA96,CONST_NA)-COUNTIF(R96:AA96,\"\")))","v":"Parameters_Constants!$R$96:$R$96"},{"$f":"CONST_NA","v":"n.a."},{"$f":"CONST_NA","v":"n.a."},{"$f":"CONST_NA","v":"n.a."},"n.a.","n.a.","n.a.","n.a.","n.a.","n.a.","n.a.",null,"Unwrought aluminium",{"$f":"CONST_NA","v":"n.a."},"n.a.","n.a.","n.a.","n.a.","n.a.","n.a.","n.a.","n.a.","n.a.",null,0,0,0,0,0,0,0,0,0,0,0,0,0,0,0,1,0,0,null,{"$f":"IF(COUNTIF(A_InstData!$E$62:$F$71,$A96)>0,1,0)","v":0},null,0,null,{"$f":"IF(BJ96>0,MAX($BL$79:BL95)+1,\"\")","v":""}]
[{"$f":"Translations!$B$692","v":"Electricity (export to EU)"},{"$f":"CONST_GWh","v":"GWh"},false,true,false,"Parameters_Constants!$G$97:$G$97",{"$f":"CONST_AllProdRoutes","v":"All production routes"},{"$f":"CONST_NA","v":"n.a."},{"$f":"CONST_NA","v":"n.a."},{"$f":"CONST_NA","v":"n.a."},{"$f":"CONST_NA","v":"n.a."},"n.a.","n.a.","n.a.","n.a.","n.a.","Parameters_Constants!$R$97:$R$97",{"$f":"CONST_NA","v":"n.a."},{"$f":"CONST_NA","v":"n.a."},{"$f":"CONST_NA","v":"n.a."},"n.a.","n.a.","n.a.","n.a.","n.a.","n.a.","n.a.",null,"Electricity (export to EU)","n.a.","n.a.","n.a.","n.a.","n.a.","n.a.","n.a.","n.a.","n.a.","n.a.",null,0,0,0,0,0,0,0,0,0,0,0,0,0,0,0,0,0,0,null,{"$f":"IF(COUNTIF(A_InstData!$E$62:$F$71,$A97)>0,1,0)","v":0},null,0,null,{"$f":"IF(BJ97>0,MAX($BL$79:BL96)+1,\"\")","v":""}]
[]
[null,"Special parameters to be reported"]
["CBAM good",1,2,3,4,5,6,7,8,null,{"$f":"Translations!$B$483","v":"The main reducing agent of the precursor, if known"},{"$f":"Translations!$B$485","v":"Steel mill identification number"},{"$f":"Translations!$B$487","v":"% Mn"},{"$f":"Translations!$B$489","v":"% Cr"},{"$f":"Translations!$B$491","v":"% Ni"},{"$f":"Translations!$B$493","v":"% other alloys"},{"$f":"Translations!$B$495","v":"% carbon"},{"$f":"Translations!$B$497","v":"t scrap per t steel"},{"$f":"Translations!$B$503","v":"% pre-consumer scrap"},{"$f":"Translations!$B$499","v":"% other materials"},{"$f":"Translations!$B$501","v":"t scrap per t aluminium"},{"$f":"Translations!$B$505","v":"% non-aluminium elements"},{"$f":"Translations!$B$507","v":"Clinker factor"},{"$f":"Translations!$B$509","v":"Calcined or not"},{"$f":"Translations!$B$511","v":"Concentration, if hydrous solution"},{"$f":"Translations!$B$513","v":"% nitric acid"},{"$f":"Translations!$B$515","v":"% urea"},{"$f":"Translations!$B$517","v":"% N contained"},{"$f":"Translations!$B$519","v":"% N as ammonium (NH4+)"},{"$f":"Translations!$B$521","v":"% N as nitrate (NO3–)"},{"$f":"Translations!$B$523","v":"% N as Urea"},{"$f":"Translations!$B$525","v":"% N in other (organic) forms"}]
[{"$f":"A80","v":"Cement"},{"$f":"CONST_NA","v":"n.a."},{"$f":"Translations!$B$507","v":"Clinker factor"},{"$f":"CONST_NA","v":"n.a."},"n.a.","n.a.","n.a.","n.a.","n.a.",null,{"$f":"COUNTIF($B101:$I101,K$100)>0","v":false},false,false,false,false,false,false,false,false,false,false,false,true,false,false,false,false,false,false,false,false,false]
["Cement clinker","n.a.","n.a.","n.a.","n.a.","n.a.","n.a.",{"$f":"CONST_NA","v":"n.a."},"n.a.",null,{"$f":"COUNTIF($B102:$I102,K$100)>0","v":false},{"$f":"COUNTIF($B102:$I102,L$100)>0","v":false},false,false,false,false,false,false,false,false,false,{"$f":"COUNTIF($B102:$I102,V$100)>0","v":false},false,false,false,false,false,false,false,false,false,false]
["Calcined clays ","n.a.",{"$f":"Translations!$B$509","v":"Calcined or not"},"n.a.","n.a.","n.a.","n.a.","n.a.","n.a.",null,false,false,false,false,false,false,false,false,false,false,false,false,false,true,false,false,false,false,false,false,false,false]
["Aluminous cement",{"$f":"CONST_NA","v":"n.a."},"n.a.","n.a.","n.a.","n.a.","n.a.","n.a.","n.a.",null,false,false,false,false,false,false,false,false,false,false,false,false,false,false,false,false,false,false,false,false,false,false]
["Iron or steel products",{"$f":"Translations!$B$483","v":"The main reducing agent of the precursor, if known"},{"$f":"Translations!$B$485","v":"Steel mill identification number"},{"$f":"Translations!$B$487","v":"% Mn"},{"$f":"Translations!$B$489","v":"% Cr"},{"$f":"Translations!$B$491","v":"% Ni"},{"$f":"Translations!$B$493","v":"% other alloys"},{"$f":"Translations!$B$499","v":"% other materials"},{"$f":"CONST_NA","v":"n.a."},null,true,true,true,true,true,true,false,false,false,true,false,false,false,false,false,false,false,false,false,false,false,false]
["Crude steel",{"$f":"Translations!$B$483","v":"The main reducing agent of the precursor, if known"},{"$f":"Translations!$B$487","v":"% Mn"},{"$f":"Translations!$B$489","v":"% Cr"},{"$f":"Translations!$B$491","v":"% Ni"},{"$f":"Translations!$B$493","v":"% other alloys"},{"$f":"Translations!$B$497","v":"t scrap per t steel"},{"$f":"Translations!$B$503","v":"% pre-consumer scrap"},"n.a.",null,true,false,true,true,true,true,false,true,true,false,false,false,false,false,false,false,false,false,false,false,false,false]
["Direct reduced iron",{"$f":"Translations!$B$693","v":"The main reducing agent used"},{"$f":"Translations!$B$487","v":"% Mn"},{"$f":"Translations!$B$489","v":"% Cr"},{"$f":"Translations!$B$491","v":"% Ni"},{"$f":"Translations!$B$493","v":"% other alloys"},{"$f":"CONST_NA","v":"n.a."},"n.a.","n.a.",null,false,false,true,true,true,true,false,false,false,false,false,false,false,false,false,false,false,false,false,false,false,false]
["Pig iron",{"$f":"Translations!$B$693","v":"The main reducing agent used"},{"$f":"Translations!$B$487","v":"% Mn"},{"$f":"Translations!$B$489","v":"% Cr"},{"$f":"Translations!$B$491","v":"% Ni"},{"$f":"Translations!$B$493","v":"% other alloys"},"n.a.","n.a.","n.a.",null,false,false,true,true,true,true,false,false,false,false,false,false,false,false,false,false,false,false,false,false,false,false]
["Alloys (FeMn, FeCr, FeNi)",{"$f":"CONST_NA","v":"n.a."},{"$f":"Translations!$B$487","v":"% Mn"},{"$f":"Translations!$B$489","v":"% Cr"},{"$f":"Translations!$B$491","v":"% Ni"},{"$f":"Translations!$B$495","v":"% carbon"},"n.a.","n.a.","n.a.",null,false,false,true,true,true,false,true,false,false,false,false,false,false,false,false,false,false,false,false,false,false,false]
["Sintered Ore","n.a.",{"$f":"CONST_NA","v":"n.a."},"n.a.","n.a.","n.a.","n.a.","n.a.","n.a.",null,false,false,false,false,false,false,false,false,false,false,false,false,false,false,false,false,false,false,false,false,false,false]
["Hydrogen","n.a.","n.a.","n.a.","n.a.","n.a.","n.a.","n.a.","n.a.",null,false,false,false,false,false,false,false,false,false,false,false,false,false,false,false,false,false,false,false,false,false,false]
["Ammonia","n.a.",{"$f":"Translations!$B$511","v":"Concentration, if hydrous solution"},{"$f":"CONST_NA","v":"n.a."},{"$f":"CONST_NA","v":"n.a."},{"$f":"CONST_NA","v":"n.a."},"n.a.","n.a.","n.a.",null,false,{"$f":"COUNTIF($B112:$I112,L$100)>0","v":false},false,false,false,false,false,false,false,false,false,{"$f":"COUNTIF($B112:$I112,V$100)>0","v":false},false,false,true,false,false,false,false,false,false,false]
["Nitric acid","n.a.",{"$f":"Translations!$B$513","v":"% nitric acid"},{"$f":"CONST_NA","v":"n.a."},"n.a.","n.a.","n.a.",{"$f":"CONST_NA","v":"n.a."},"n.a.",null,false,false,false,false,false,false,false,false,false,false,false,false,false,false,false,true,false,false,false,false,false,false]
["Urea","n.a.",{"$f":"Translations!$B$515","v":"% urea"},{"$f":"Translations!$B$517","v":"% N contained"},"n.a.","n.a.","n.a.",{"$f":"CONST_NA","v":"n.a."},"n.a.",null,false,false,false,false,false,false,false,false,false,false,false,false,false,false,false,false,true,true,false,false,false,false]
["Mixed fertilizers","n.a.",{"$f":"Translations!$B$519","v":"% N as ammonium (NH4+)"},{"$f":"Translations!$B$521","v":"% N as nitrate (NO3–)"},{"$f":"Translations!$B$523","v":"% N as Urea"},{"$f":"Translations!$B$525","v":"% N in other (organic) forms"},{"$f":"CONST_NA","v":"n.a."},{"$f":"CONST_NA","v":"n.a."},"n.a.",null,false,false,false,false,false,false,false,false,false,false,false,false,false,false,false,false,false,false,true,true,true,true]
["Aluminium products","n.a.",{"$f":"Translations!$B$501","v":"t scrap per t aluminium"},{"$f":"Translations!$B$505","v":"% non-aluminium elements"},{"$f":"Translations!$B$503","v":"% pre-consumer scrap"},{"$f":"CONST_NA","v":"n.a."},"n.a.","n.a.","n.a.",null,false,false,false,false,false,false,false,false,true,false,true,true,false,false,false,false,false,false,false,false,false,false]
["Unwrought aluminium","n.a.",{"$f":"Translations!$B$501","v":"t scrap per t aluminium"},{"$f":"Translations!$B$505","v":"% non-aluminium elements"},{"$f":"Translations!$B$503","v":"% pre-consumer scrap"},"n.a.","n.a.","n.a.","n.a.",null,false,false,false,false,false,false,false,false,true,false,true,true,false,false,false,false,false,false,false,false,false,false]
["Electricity (export to EU)",{"$f":"CONST_NA","v":"n.a."},"n.a.","n.a.","n.a.","n.a.","n.a.","n.a.","n.a.",null,false,false,false,false,false,false,false,false,false,false,false,false,false,false,false,false,false,false,false,false,false,false]
[]
[]
["Formula:",{"$f":"IFERROR(INDEX(CNCodes_ListKey,MATCH($A121&\"_\"&B$123,CNCodes_ListNumbering,0)),CONST_NA)","v":"n.a."},"n.a.","n.a.","n.a.","n.a.","n.a.","n.a.","n.a.","n.a.","n.a.","n.a.","n.a.","n.a.","n.a.","n.a.","n.a.","n.a.","n.a."]
[]
[null,{"$f":"INDEX(CONST_LIST_Goods,COLUMNS($B123:B123))","v":"Cement"},{"$f":"INDEX(CONST_LIST_Goods,COLUMNS($B123:C123))","v":"Cement clinker"},{"$f":"INDEX(CONST_LIST_Goods,COLUMNS($B123:D123))","v":"Calcined clays "},{"$f":"INDEX(CONST_LIST_Goods,COLUMNS($B123:E123))","v":"Aluminous cement"},{"$f":"INDEX(CONST_LIST_Goods,COLUMNS($B123:F123))","v":"Iron or steel products"},{"$f":"INDEX(CONST_LIST_Goods,COLUMNS($B123:G123))","v":"Crude steel"},{"$f":"INDEX(CONST_LIST_Goods,COLUMNS($B123:H123))","v":"Direct reduced iron"},{"$f":"INDEX(CONST_LIST_Goods,COLUMNS($B123:I123))","v":"Pig iron"},{"$f":"INDEX(CONST_LIST_Goods,COLUMNS($B123:J123))","v":"Alloys (FeMn, FeCr, FeNi)"},{"$f":"INDEX(CONST_LIST_Goods,COLUMNS($B123:K123))","v":"Sintered Ore"},{"$f":"INDEX(CONST_LIST_Goods,COLUMNS($B123:L123))","v":"Hydrogen"},{"$f":"INDEX(CONST_LIST_Goods,COLUMNS($B123:M123))","v":"Ammonia"},{"$f":"INDEX(CONST_LIST_Goods,COLUMNS($B123:N123))","v":"Nitric acid"},{"$f":"INDEX(CONST_LIST_Goods,COLUMNS($B123:O123))","v":"Urea"},{"$f":"INDEX(CONST_LIST_Goods,COLUMNS($B123:P123))","v":"Mixed fertilizers"},{"$f":"INDEX(CONST_LIST_Goods,COLUMNS($B123:Q123))","v":"Aluminium products"},{"$f":"INDEX(CONST_LIST_Goods,COLUMNS($B123:R123))","v":"Unwrought aluminium"},{"$f":"INDEX(CONST_LIST_Goods,COLUMNS($B123:S123))","v":"Electricity (export to EU)"}]
["CONST_CNTR_ListGoodsForCN",{"$f":"ADDRESS(ROW(B125),COLUMN(),,,$B$76)&\":\"&ADDRESS(ROW(B125)+MAX(0,41-COUNTIF(B125:B166,CONST_NA)),COLUMN(B125))","v":"Parameters_Constants!$B$125:$B$127"},"Parameters_Constants!$C$125:$C$125","Parameters_Constants!$D$125:$D$125","Parameters_Constants!$E$125:$E$125","Parameters_Constants!$F$125:$F$166","Parameters_Constants!$G$125:$G$166","Parameters_Constants!$H$125:$H$127","Parameters_Constants!$I$125:$I$134","Parameters_Constants!$J$125:$J$136","Parameters_Constants!$K$125:$K$125","Parameters_Constants!$L$125:$L$125","Parameters_Constants!$M$125:$M$127","Parameters_Constants!$N$125:$N$125","Parameters_Constants!$O$125:$O$127","Parameters_Constants!$P$125:$P$150","Parameters_Constants!$Q$125:$Q$166","Parameters_Constants!$R$125:$R$129","Parameters_Constants!$S$125:$S$125"]
[1,{"$f":"IFERROR(INDEX(CNCodes_ListKey,MATCH($A125&\"_\"&B$123,CNCodes_ListNumbering,0)),CONST_NA)","v":"25232100"},"25231000","25070080","25233000","7205","7206","7203","7201","720211","26011200",{"$f":"IFERROR(INDEX(CNCodes_ListKey,MATCH($A125&\"_\"&L$123,CNCodes_ListNumbering,0)),CONST_NA)","v":"28041000"},"2814","28080000","310210","28342100","7603","7601","27160000"]
[2,"25232900","n.a.","n.a.","n.a.","72051000","72061000","72031000","720110","72021120","n.a.","n.a.","28141000","n.a.","31021010","3102","76031000","76011000","n.a."]
[3,"25239000","n.a.","n.a.","n.a.","72052100","72069000","72039000","72011011","72021180","n.a.","n.a.","28142000","n.a.","31021090","31022100","76032000","760120","n.a."]
[4,"n.a.","n.a.","n.a.","n.a.","72052900","7207","n.a.","72011019","72021900","n.a.","n.a.","n.a.","n.a.","n.a.","31022900","7604","76012020","n.a."]
[5,"n.a.","n.a.","n.a.","n.a.","7208","720711","n.a.","72011030","720241","n.a.","n.a.","n.a.","n.a.","n.a.","310230","760410","76012080","n.a."]
[6,"n.a.","n.a.","n.a.","n.a.","72081000","72071111","n.a.","72011090","72024110","n.a.","n.a.","n.a.","n.a.","n.a.","31023010","76041010","n.a.","n.a."]
[7,"n.a.","n.a.","n.a.","n.a.","72082500","72071114","n.a.","72012000","72024190","n.a.","n.a.","n.a.","n.a.","n.a.","31023090","76041090","n.a.","n.a."]
[8,"n.a.","n.a.","n.a.","n.a.","72082600","72071116","n.a.","720150","720249","n.a.","n.a.","n.a.","n.a.","n.a.","310240","76042100","n.a.","n.a."]
[9,"n.a.","n.a.","n.a.","n.a.","72082700","72071190","n.a.","72015010","72024910","n.a.","n.a.","n.a.","n.a.","n.a.","31024010","760429","n.a.","n.a."]
[10,"n.a.","n.a.","n.a.","n.a.","72083600","720712","n.a.","72015090","72024950","n.a.","n.a.","n.a.","n.a.","n.a.","31024090","76042910","n.a.","n.a."]
[11,{"$f":"IFERROR(INDEX(CNCodes_ListKey,MATCH($A135&\"_\"&B$123,CNCodes_ListNumbering,0)),CONST_NA)","v":"n.a."},"n.a.","n.a.","n.a.","72083700","72071210","n.a.","n.a.","72024990","n.a.",{"$f":"IFERROR(INDEX(CNCodes_ListKey,MATCH($A135&\"_\"&L$123,CNCodes_ListNumbering,0)),CONST_NA)","v":"n.a."},"n.a.","n.a.","n.a.","31025000","76042990","n.a.","n.a."]
[12,"n.a.","n.a.","n.a.","n.a.","72083800","72071290","n.a.","n.a.","72026000","n.a.","n.a.","n.a.","n.a.","n.a.","31026000","7605","n.a.","n.a."]
[13,"n.a.","n.a.","n.a.","n.a.","72083900","720719","n.a.","n.a.","n.a.","n.a.","n.a.","n.a.","n.a.","n.a.","31028000","76051100","n.a.","n.a."]
[14,"n.a.","n.a.","n.a.","n.a.","72084000","72071912","n.a.","n.a.","n.a.","n.a.","n.a.","n.a.","n.a.","n.a.","31029000","76051900","n.a.","n.a."]
[15,"n.a.","n.a.","n.a.","n.a.","720851","72071919","n.a.","n.a.","n.a.","n.a.","n.a.","n.a.","n.a.","n.a.","3105","76052100","n.a.","n.a."]
[16,"n.a.","n.a.","n.a.","n.a.","72085120","72071980","n.a.","n.a.","n.a.","n.a.","n.a.","n.a.","n.a.","n.a.","31051000","76052900","n.a.","n.a."]
[17,"n.a.","n.a.","n.a.","n.a.","72085191","720720","n.a.","n.a.","n.a.","n.a.","n.a.","n.a.","n.a.","n.a.","310520","7606","n.a.","n.a."]
[18,"n.a.","n.a.","n.a.","n.a.","72085198","72072011","n.a.","n.a.","n.a.","n.a.","n.a.","n.a.","n.a.","n.a.","31052010","760611","n.a.","n.a."]
[19,"n.a.","n.a.","n.a.","n.a.","720852","72072015","n.a.","n.a.","n.a.","n.a.","n.a.","n.a.","n.a.","n.a.","31052090","76061130","n.a.","n.a."]
[20,"n.a.","n.a.","n.a.","n.a.","72085210","72072017","n.a.","n.a.","n.a.","n.a.","n.a.","n.a.","n.a.","n.a.","31053000","76061150","n.a.","n.a."]
[21,{"$f":"IFERROR(INDEX(CNCodes_ListKey,MATCH($A145&\"_\"&B$123,CNCodes_ListNumbering,0)),CONST_NA)","v":"n.a."},"n.a.","n.a.","n.a.","72085291","72072019","n.a.","n.a.","n.a.","n.a.",{"$f":"IFERROR(INDEX(CNCodes_ListKey,MATCH($A145&\"_\"&L$123,CNCodes_ListNumbering,0)),CONST_NA)","v":"n.a."},"n.a.","n.a.","n.a.","31054000","76061191","n.a.","n.a."]
[22,"n.a.","n.a.","n.a.","n.a.","72085299","72072032","n.a.","n.a.","n.a.","n.a.","n.a.","n.a.","n.a.","n.a.","31055100","76061193","n.a.","n.a."]
[23,"n.a.","n.a.","n.a.","n.a.","720853","72072039","n.a.","n.a.","n.a.","n.a.","n.a.","n.a.","n.a.","n.a.","31055900","76061199","n.a.","n.a."]
[24,"n.a.","n.a.","n.a.","n.a.","72085310","72072052","n.a.","n.a.","n.a.","n.a.","n.a.","n.a.","n.a.","n.a.","310590","760612","n.a.","n.a."]
[25,"n.a.","n.a.","n.a.","n.a.","72085390","72072059","n.a.","n.a.","n.a.","n.a.","n.a.","n.a.","n.a.","n.a.","31059020","76061211","n.a.","n.a."]
[26,"n.a.","n.a.","n.a.","n.a.","72085400","72072080","n.a.","n.a.","n.a.","n.a.","n.a.","n.a.","n.a.","n.a.","31059080","76061219","n.a.","n.a."]
[27,"n.a.","n.a.","n.a.","n.a.","720890","7218","n.a.","n.a.","n.a.","n.a.","n.a.","n.a.","n.a.","n.a.","n.a.","76061230","n.a.","n.a."]
[28,"n.a.","n.a.","n.a.","n.a.","72089020","72181000","n.a.","n.a.","n.a.","n.a.","n.a.","n.a.","n.a.","n.a.","n.a.","76061250","n.a.","n.a."]
[29,"n.a.","n.a.","n.a.","n.a.","72089080","721891","n.a.","n.a.","n.a.","n.a.","n.a.","n.a.","n.a.","n.a.","n.a.","76061292","n.a.","n.a."]
[30,"n.a.","n.a.","n.a.","n.a.","7209","72189110","n.a.","n.a.","n.a.","n.a.","n.a.","n.a.","n.a.","n.a.","n.a.","76061293","n.a.","n.a."]
[31,{"$f":"IFERROR(INDEX(CNCodes_ListKey,MATCH($A155&\"_\"&B$123,CNCodes_ListNumbering,0)),CONST_NA)","v":"n.a."},"n.a.","n.a.","n.a.","72091500","72189180","n.a.","n.a.","n.a.","n.a.",{"$f":"IFERROR(INDEX(CNCodes_ListKey,MATCH($A155&\"_\"&L$123,CNCodes_ListNumbering,0)),CONST_NA)","v":"n.a."},"n.a.","n.a.","n.a.","n.a.","76061299","n.a.","n.a."]
[32,"n.a.","n.a.","n.a.","n.a.","720916","721899","n.a.","n.a.","n.a.","n.a.","n.a.","n.a.","n.a.","n.a.","n.a.","76069100","n.a.","n.a."]
[33,"n.a.","n.a.","n.a.","n.a.","72091610","72189911","n.a.","n.a.","n.a.","n.a.","n.a.","n.a.","n.a.","n.a.","n.a.","76069200","n.a.","n.a."]
[34,"n.a.","n.a.","n.a.","n.a.","72091690","72189919","n.a.","n.a.","n.a.","n.a.","n.a.","n.a.","n.a.","n.a.","n.a.","7607","n.a.","n.a."]
[35,"n.a.","n.a.","n.a.","n.a.","720917","72189920","n.a.","n.a.","n.a.","n.a.","n.a.","n.a.","n.a.","n.a.","n.a.","760711","n.a.","n.a."]
[36,"n.a.","n.a.","n.a.","n.a.","72091710","72189980","n.a.","n.a.","n.a.","n.a.","n.a.","n.a.","n.a.","n.a.","n.a.","76071111","n.a.","n.a."]
[37,"n.a.","n.a.","n.a.","n.a.","72091790","7224","n.a.","n.a.","n.a.","n.a.","n.a.","n.a.","n.a.","n.a.","n.a.","76071119","n.a.","n.a."]
[38,"n.a.","n.a.","n.a.","n.a.","720918","722410","n.a.","n.a.","n.a.","n.a.","n.a.","n.a.","n.a.","n.a.","n.a.","76071190","n.a.","n.a."]
[39,"n.a.","n.a.","n.a.","n.a.","72091810","72241010","n.a.","n.a.","n.a.","n.a.","n.a.","n.a.","n.a.","n.a.","n.a.","760719","n.a.","n.a."]
[40,"n.a.","n.a.","n.a.","n.a.","72091891","72241090","n.a.","n.a.","n.a.","n.a.","n.a.","n.a.","n.a.","n.a.","n.a.","76071910","n.a.","n.a."]
[41,{"$f":"IFERROR(INDEX(CNCodes_ListKey,MATCH($A165&\"_\"&B$123,CNCodes_ListNumbering,0)),CONST_NA)","v":"n.a."},"n.a.","n.a.","n.a.","72091899","722490","n.a.","n.a.","n.a.","n.a.",{"$f":"IFERROR(INDEX(CNCodes_ListKey,MATCH($A165&\"_\"&L$123,CNCodes_ListNumbering,0)),CONST_NA)","v":"n.a."},"n.a.","n.a.","n.a.","n.a.","76071990","n.a.","n.a."]
[42,"n.a.","n.a.","n.a.","n.a.","72092500","72249002","n.a.","n.a.","n.a.","n.a.","n.a.","n.a.","n.a.","n.a.","n.a.","760720","n.a.","n.a."]
[43,"n.a.","n.a.","n.a.","n.a.","720926","72249003","n.a.","n.a.","n.a.","n.a.","n.a.","n.a.","n.a.","n.a.","n.a.","76072010","n.a.","n.a."]
[44,"n.a.","n.a.","n.a.","n.a.","72092610","72249005","n.a.","n.a.","n.a.","n.a.","n.a.","n.a.","n.a.","n.a.","n.a.","76072091","n.a.","n.a."]
[45,"n.a.","n.a.","n.a.","n.a.","72092690","72249007","n.a.","n.a.","n.a.","n.a.","n.a.","n.a.","n.a.","n.a.","n.a.","76072099","n.a.","n.a."]
[46,"n.a.","n.a.","n.a.","n.a.","720927","72249014","n.a.","n.a.","n.a.","n.a.","n.a.","n.a.","n.a.","n.a.","n.a.","7608","n.a.","n.a."]
[47,"n.a.","n.a.","n.a.","n.a.","72092710","72249018","n.a.","n.a.","n.a.","n.a.","n.a.","n.a.","n.a.","n.a.","n.a.","76081000","n.a.","n.a."]
[48,"n.a.","n.a.","n.a.","n.a.","72092790","72249031","n.a.","n.a.","n.a.","n.a.","n.a.","n.a.","n.a.","n.a.","n.a.","760820","n.a.","n.a."]
[49,"n.a.","n.a.","n.a.","n.a.","720928","72249038","n.a.","n.a.","n.a.","n.a.","n.a.","n.a.","n.a.","n.a.","n.a.","76082020","n.a.","n.a."]
[50,"n.a.","n.a.","n.a.","n.a.","72092810","72249090","n.a.","n.a.","n.a.","n.a.","n.a.","n.a.","n.a.","n.a.","n.a.","76082081","n.a.","n.a."]
[51,{"$f":"IFERROR(INDEX(CNCodes_ListKey,MATCH($A175&\"_\"&B$123,CNCodes_ListNumbering,0)),CONST_NA)","v":"n.a."},"n.a.","n.a.","n.a.","72092890","n.a.","n.a.","n.a.","n.a.","n.a.",{"$f":"IFERROR(INDEX(CNCodes_ListKey,MATCH($A175&\"_\"&L$123,CNCodes_ListNumbering,0)),CONST_NA)","v":"n.a."},"n.a.","n.a.","n.a.","n.a.","76082089","n.a.","n.a."]
[52,"n.a.","n.a.","n.a.","n.a.","720990","n.a.","n.a.","n.a.","n.a.","n.a.","n.a.","n.a.","n.a.","n.a.","n.a.","76090000","n.a.","n.a."]
[53,"n.a.","n.a.","n.a.","n.a.","72099020","n.a.","n.a.","n.a.","n.a.","n.a.","n.a.","n.a.","n.a.","n.a.","n.a.","7610","n.a.","n.a."]
[54,"n.a.","n.a.","n.a.","n.a.","72099080","n.a.","n.a.","n.a.","n.a.","n.a.","n.a.","n.a.","n.a.","n.a.","n.a.","76101000","n.a.","n.a."]
[55,"n.a.","n.a.","n.a.","n.a.","7210","n.a.","n.a.","n.a.","n.a.","n.a.","n.a.","n.a.","n.a.","n.a.","n.a.","761090","n.a.","n.a."]
[56,"n.a.","n.a.","n.a.","n.a.","72101100","n.a.","n.a.","n.a.","n.a.","n.a.","n.a.","n.a.","n.a.","n.a.","n.a.","76109010","n.a.","n.a."]
[57,"n.a.","n.a.","n.a.","n.a.","721012","n.a.","n.a.","n.a.","n.a.","n.a.","n.a.","n.a.","n.a.","n.a.","n.a.","76109090","n.a.","n.a."]
[58,"n.a.","n.a.","n.a.","n.a.","72101220","n.a.","n.a.","n.a.","n.a.","n.a.","n.a.","n.a.","n.a.","n.a.","n.a.","76110000","n.a.","n.a."]
[59,"n.a.","n.a.","n.a.","n.a.","72101280","n.a.","n.a.","n.a.","n.a.","n.a.","n.a.","n.a.","n.a.","n.a.","n.a.","7612","n.a.","n.a."]
[60,"n.a.","n.a.","n.a.","n.a.","72102000","n.a.","n.a.","n.a.","n.a.","n.a.","n.a.","n.a.","n.a.","n.a.","n.a.","76121000","n.a.","n.a."]
[61,{"$f":"IFERROR(INDEX(CNCodes_ListKey,MATCH($A185&\"_\"&B$123,CNCodes_ListNumbering,0)),CONST_NA)","v":"n.a."},"n.a.","n.a.","n.a.","72103000","n.a.","n.a.","n.a.","n.a.","n.a.",{"$f":"IFERROR(INDEX(CNCodes_ListKey,MATCH($A185&\"_\"&L$123,CNCodes_ListNumbering,0)),CONST_NA)","v":"n.a."},"n.a.","n.a.","n.a.","n.a.","761290","n.a.","n.a."]
[62,"n.a.","n.a.","n.a.","n.a.","72104100","n.a.","n.a.","n.a.","n.a.","n.a.","n.a.","n.a.","n.a.","n.a.","n.a.","76129020","n.a.","n.a."]
[63,"n.a.","n.a.","n.a.","n.a.","72104900","n.a.","n.a.","n.a.","n.a.","n.a.","n.a.","n.a.","n.a.","n.a.","n.a.","76129030","n.a.","n.a."]
[64,"n.a.","n.a.","n.a.","n.a.","72105000","n.a.","n.a.","n.a.","n.a.","n.a.","n.a.","n.a.","n.a.","n.a.","n.a.","76129080","n.a.","n.a."]
[65,"n.a.","n.a.","n.a.","n.a.","72106100","n.a.","n.a.","n.a.","n.a.","n.a.","n.a.","n.a.","n.a.","n.a.","n.a.","76130000","n.a.","n.a."]
[66,"n.a.","n.a.","n.a.","n.a.","72106900","n.a.","n.a.","n.a.","n.a.","n.a.","n.a.","n.a.","n.a.","n.a.","n.a.","7614","n.a.","n.a."]
[67,"n.a.","n.a.","n.a.","n.a.","721070","n.a.","n.a.","n.a.","n.a.","n.a.","n.a.","n.a.","n.a.","n.a.","n.a.","76141000","n.a.","n.a."]
[68,"n.a.","n.a.","n.a.","n.a.","72107010","n.a.","n.a.","n.a.","n.a.","n.a.","n.a.","n.a.","n.a.","n.a.","n.a.","76149000","n.a.","n.a."]
[69,"n.a.","n.a.","n.a.","n.a.","72107080","n.a.","n.a.","n.a.","n.a.","n.a.","n.a.","n.a.","n.a.","n.a.","n.a.","7616","n.a.","n.a."]
[70,"n.a.","n.a.","n.a.","n.a.","721090","n.a.","n.a.","n.a.","n.a.","n.a.","n.a.","n.a.","n.a.","n.a.","n.a.","76161000","n.a.","n.a."]
[71,{"$f":"IFERROR(INDEX(CNCodes_ListKey,MATCH($A195&\"_\"&B$123,CNCodes_ListNumbering,0)),CONST_NA)","v":"n.a."},"n.a.","n.a.","n.a.","72109030","n.a.","n.a.","n.a.","n.a.","n.a.",{"$f":"IFERROR(INDEX(CNCodes_ListKey,MATCH($A195&\"_\"&L$123,CNCodes_ListNumbering,0)),CONST_NA)","v":"n.a."},"n.a.","n.a.","n.a.","n.a.","76169100","n.a.","n.a."]
[72,"n.a.","n.a.","n.a.","n.a.","72109040","n.a.","n.a.","n.a.","n.a.","n.a.","n.a.","n.a.","n.a.","n.a.","n.a.","761699","n.a.","n.a."]
[73,"n.a.","n.a.","n.a.","n.a.","72109080","n.a.","n.a.","n.a.","n.a.","n.a.","n.a.","n.a.","n.a.","n.a.","n.a.","76169910","n.a.","n.a."]
[74,"n.a.","n.a.","n.a.","n.a.","7211","n.a.","n.a.","n.a.","n.a.","n.a.","n.a.","n.a.","n.a.","n.a.","n.a.","76169990","n.a.","n.a."]
[75,"n.a.","n.a.","n.a.","n.a.","72111300","n.a.","n.a.","n.a.","n.a.","n.a.","n.a.","n.a.","n.a.","n.a.","n.a.","n.a.","n.a.","n.a."]
[76,"n.a.","n.a.","n.a.","n.a.","72111400","n.a.","n.a.","n.a.","n.a.","n.a.","n.a.","n.a.","n.a.","n.a.","n.a.","n.a.","n.a.","n.a."]
[77,"n.a.","n.a.","n.a.","n.a.","72111900","n.a.","n.a.","n.a.","n.a.","n.a.","n.a.","n.a.","n.a.","n.a.","n.a.","n.a.","n.a.","n.a."]
[78,"n.a.","n.a.","n.a.","n.a.","721123","n.a.","n.a.","n.a.","n.a.","n.a.","n.a.","n.a.","n.a.","n.a.","n.a.","n.a.","n.a.","n.a."]
[79,"n.a.","n.a.","n.a.","n.a.","72112320","n.a.","n.a.","n.a.","n.a.","n.a.","n.a.","n.a.","n.a.","n.a.","n.a.","n.a.","n.a.","n.a."]
[80,"n.a.","n.a.","n.a.","n.a.","72112330","n.a.","n.a.","n.a.","n.a.","n.a.","n.a.","n.a.","n.a.","n.a.","n.a.","n.a.","n.a.","n.a."]
[81,{"$f":"IFERROR(INDEX(CNCodes_ListKey,MATCH($A205&\"_\"&B$123,CNCodes_ListNumbering,0)),CONST_NA)","v":"n.a."},"n.a.","n.a.","n.a.","72112380","n.a.","n.a.","n.a.","n.a.","n.a.",{"$f":"IFERROR(INDEX(CNCodes_ListKey,MATCH($A205&\"_\"&L$123,CNCodes_ListNumbering,0)),CONST_NA)","v":"n.a."},"n.a.","n.a.","n.a.","n.a.","n.a.","n.a.","n.a."]
[82,"n.a.","n.a.","n.a.","n.a.","72112900","n.a.","n.a.","n.a.","n.a.","n.a.","n.a.","n.a.","n.a.","n.a.","n.a.","n.a.","n.a.","n.a."]
[83,"n.a.","n.a.","n.a.","n.a.","721190","n.a.","n.a.","n.a.","n.a.","n.a.","n.a.","n.a.","n.a.","n.a.","n.a.","n.a.","n.a.","n.a."]
[84,"n.a.","n.a.","n.a.","n.a.","72119020","n.a.","n.a.","n.a.","n.a.","n.a.","n.a.","n.a.","n.a.","n.a.","n.a.","n.a.","n.a.","n.a."]
[85,"n.a.","n.a.","n.a.","n.a.","72119080","n.a.","n.a.","n.a.","n.a.","n.a.","n.a.","n.a.","n.a.","n.a.","n.a.","n.a.","n.a.","n.a."]
[86,"n.a.","n.a.","n.a.","n.a.","7212","n.a.","n.a.","n.a.","n.a.","n.a.","n.a.","n.a.","n.a.","n.a.","n.a.","n.a.","n.a.","n.a."]
[87,"n.a.","n.a.","n.a.","n.a.","721210","n.a.","n.a.","n.a.","n.a.","n.a.","n.a.","n.a.","n.a.","n.a.","n.a.","n.a.","n.a.","n.a."]
[88,"n.a.","n.a.","n.a.","n.a.","72121010","n.a.","n.a.","n.a.","n.a.","n.a.","n.a.","n.a.","n.a.","n.a.","n.a.","n.a.","n.a.","n.a."]
[89,"n.a.","n.a.","n.a.","n.a.","72121090","n.a.","n.a.","n.a.","n.a.","n.a.","n.a.","n.a.","n.a.","n.a.","n.a.","n.a.","n.a.","n.a."]
[90,"n.a.","n.a.","n.a.","n.a.","72122000","n.a.","n.a.","n.a.","n.a.","n.a.","n.a.","n.a.","n.a.","n.a.","n.a.","n.a.","n.a.","n.a."]
[91,{"$f":"IFERROR(INDEX(CNCodes_ListKey,MATCH($A215&\"_\"&B$123,CNCodes_ListNumbering,0)),CONST_NA)","v":"n.a."},"n.a.","n.a.","n.a.","72123000","n.a.","n.a.","n.a.","n.a.","n.a.",{"$f":"IFERROR(INDEX(CNCodes_ListKey,MATCH($A215&\"_\"&L$123,CNCodes_ListNumbering,0)),CONST_NA)","v":"n.a."},"n.a.","n.a.","n.a.","n.a.","n.a.","n.a.","n.a."]
[92,"n.a.","n.a.","n.a.","n.a.","721240","n.a.","n.a.","n.a.","n.a.","n.a.","n.a.","n.a.","n.a.","n.a.","n.a.","n.a.","n.a.","n.a."]
[93,"n.a.","n.a.","n.a.","n.a.","72124020","n.a.","n.a.","n.a.","n.a.","n.a.","n.a.","n.a.","n.a.","n.a.","n.a.","n.a.","n.a.","n.a."]
[94,"n.a.","n.a.","n.a.","n.a.","72124080","n.a.","n.a.","n.a.","n.a.","n.a.","n.a.","n.a.","n.a.","n.a.","n.a.","n.a.","n.a.","n.a."]
[95,"n.a.","n.a.","n.a.","n.a.","721250","n.a.","n.a.","n.a.","n.a.","n.a.","n.a.","n.a.","n.a.","n.a.","n.a.","n.a.","n.a.","n.a."]
[96,"n.a.","n.a.","n.a.","n.a.","72125020","n.a.","n.a.","n.a.","n.a.","n.a.","n.a.","n.a.","n.a.","n.a.","n.a.","n.a.","n.a.","n.a."]
[97,"n.a.","n.a.","n.a.","n.a.","72125030","n.a.","n.a.","n.a.","n.a.","n.a.","n.a.","n.a.","n.a.","n.a.","n.a.","n.a.","n.a.","n.a."]
[98,"n.a.","n.a.","n.a.","n.a.","72125040","n.a.","n.a.","n.a.","n.a.","n.a.","n.a.","n.a.","n.a.","n.a.","n.a.","n.a.","n.a.","n.a."]
[99,"n.a.","n.a.","n.a.","n.a.","72125061","n.a.","n.a.","n.a.","n.a.","n.a.","n.a.","n.a.","n.a.","n.a.","n.a.","n.a.","n.a.","n.a."]
[100,"n.a.","n.a.","n.a.","n.a.","72125069","n.a.","n.a.","n.a.","n.a.","n.a.","n.a.","n.a.","n.a.","n.a.","n.a.","n.a.","n.a.","n.a."]
[101,{"$f":"IFERROR(INDEX(CNCodes_ListKey,MATCH($A225&\"_\"&B$123,CNCodes_ListNumbering,0)),CONST_NA)","v":"n.a."},"n.a.","n.a.","n.a.","72125090","n.a.","n.a.","n.a.","n.a.","n.a.",{"$f":"IFERROR(INDEX(CNCodes_ListKey,MATCH($A225&\"_\"&L$123,CNCodes_ListNumbering,0)),CONST_NA)","v":"n.a."},"n.a.","n.a.","n.a.","n.a.","n.a.","n.a.","n.a."]
[102,"n.a.","n.a.","n.a.","n.a.","72126000","n.a.","n.a.","n.a.","n.a.","n.a.","n.a.","n.a.","n.a.","n.a.","n.a.","n.a.","n.a.","n.a."]
[103,"n.a.","n.a.","n.a.","n.a.","7213","n.a.","n.a.","n.a.","n.a.","n.a.","n.a.","n.a.","n.a.","n.a.","n.a.","n.a.","n.a.","n.a."]
[104,"n.a.","n.a.","n.a.","n.a.","72131000","n.a.","n.a.","n.a.","n.a.","n.a.","n.a.","n.a.","n.a.","n.a.","n.a.","n.a.","n.a.","n.a."]
[105,"n.a.","n.a.","n.a.","n.a.","72132000","n.a.","n.a.","n.a.","n.a.","n.a.","n.a.","n.a.","n.a.","n.a.","n.a.","n.a.","n.a.","n.a."]
[106,"n.a.","n.a.","n.a.","n.a.","721391","n.a.","n.a.","n.a.","n.a.","n.a.","n.a.","n.a.","n.a.","n.a.","n.a.","n.a.","n.a.","n.a."]
[107,"n.a.","n.a.","n.a.","n.a.","72139110","n.a.","n.a.","n.a.","n.a.","n.a.","n.a.","n.a.","n.a.","n.a.","n.a.","n.a.","n.a.","n.a."]
[108,"n.a.","n.a.","n.a.","n.a.","72139120","n.a.","n.a.","n.a.","n.a.","n.a.","n.a.","n.a.","n.a.","n.a.","n.a.","n.a.","n.a.","n.a."]
[109,"n.a.","n.a.","n.a.","n.a.","72139141","n.a.","n.a.","n.a.","n.a.","n.a.","n.a.","n.a.","n.a.","n.a.","n.a.","n.a.","n.a.","n.a."]
[110,"n.a.","n.a.","n.a.","n.a.","72139149","n.a.","n.a.","n.a.","n.a.","n.a.","n.a.","n.a.","n.a.","n.a.","n.a.","n.a.","n.a.","n.a."]
[111,{"$f":"IFERROR(INDEX(CNCodes_ListKey,MATCH($A235&\"_\"&B$123,CNCodes_ListNumbering,0)),CONST_NA)","v":"n.a."},"n.a.","n.a.","n.a.","72139170","n.a.","n.a.","n.a.","n.a.","n.a.",{"$f":"IFERROR(INDEX(CNCodes_ListKey,MATCH($A235&\"_\"&L$123,CNCodes_ListNumbering,0)),CONST_NA)","v":"n.a."},"n.a.","n.a.","n.a.","n.a.","n.a.","n.a.","n.a."]
[112,"n.a.","n.a.","n.a.","n.a.","72139190","n.a.","n.a.","n.a.","n.a.","n.a.","n.a.","n.a.","n.a.","n.a.","n.a.","n.a.","n.a.","n.a."]
[113,"n.a.","n.a.","n.a.","n.a.","721399","n.a.","n.a.","n.a.","n.a.","n.a.","n.a.","n.a.","n.a.","n.a.","n.a.","n.a.","n.a.","n.a."]
[114,"n.a.","n.a.","n.a.","n.a.","72139910","n.a.","n.a.","n.a.","n.a.","n.a.","n.a.","n.a.","n.a.","n.a.","n.a.","n.a.","n.a.","n.a."]
[115,"n.a.","n.a.","n.a.","n.a.","72139990","n.a.","n.a.","n.a.","n.a.","n.a.","n.a.","n.a.","n.a.","n.a.","n.a.","n.a.","n.a.","n.a."]
[116,"n.a.","n.a.","n.a.","n.a.","7214","n.a.","n.a.","n.a.","n.a.","n.a.","n.a.","n.a.","n.a.","n.a.","n.a.","n.a.","n.a.","n.a."]
[117,"n.a.","n.a.","n.a.","n.a.","72141000","n.a.","n.a.","n.a.","n.a.","n.a.","n.a.","n.a.","n.a.","n.a.","n.a.","n.a.","n.a.","n.a."]
[118,"n.a.","n.a.","n.a.","n.a.","72142000","n.a.","n.a.","n.a.","n.a.","n.a.","n.a.","n.a.","n.a.","n.a.","n.a.","n.a.","n.a.","n.a."]
[119,"n.a.","n.a.","n.a.","n.a.","72143000","n.a.","n.a.","n.a.","n.a.","n.a.","n.a.","n.a.","n.a.","n.a.","n.a.","n.a.","n.a.","n.a."]
[120,"n.a.","n.a.","n.a.","n.a.","721491","n.a.","n.a.","n.a.","n.a.","n.a.","n.a.","n.a.","n.a.","n.a.","n.a.","n.a.","n.a.","n.a."]
[121,{"$f":"IFERROR(INDEX(CNCodes_ListKey,MATCH($A245&\"_\"&B$123,CNCodes_ListNumbering,0)),CONST_NA)","v":"n.a."},"n.a.","n.a.","n.a.","72149110","n.a.","n.a.","n.a.","n.a.","n.a.",{"$f":"IFERROR(INDEX(CNCodes_ListKey,MATCH($A245&\"_\"&L$123,CNCodes_ListNumbering,0)),CONST_NA)","v":"n.a."},"n.a.","n.a.","n.a.","n.a.","n.a.","n.a.","n.a."]
[122,"n.a.","n.a.","n.a.","n.a.","72149190","n.a.","n.a.","n.a.","n.a.","n.a.","n.a.","n.a.","n.a.","n.a.","n.a.","n.a.","n.a.","n.a."]
[123,"n.a.","n.a.","n.a.","n.a.","721499","n.a.","n.a.","n.a.","n.a.","n.a.","n.a.","n.a.","n.a.","n.a.","n.a.","n.a.","n.a.","n.a."]
[124,"n.a.","n.a.","n.a.","n.a.","72149910","n.a.","n.a.","n.a.","n.a.","n.a.","n.a.","n.a.","n.a.","n.a.","n.a.","n.a.","n.a.","n.a."]
[125,"n.a.","n.a.","n.a.","n.a.","72149931","n.a.","n.a.","n.a.","n.a.","n.a.","n.a.","n.a.","n.a.","n.a.","n.a.","n.a.","n.a.","n.a."]
[126,"n.a.","n.a.","n.a.","n.a.","72149939","n.a.","n.a.","n.a.","n.a.","n.a.","n.a.","n.a.","n.a.","n.a.","n.a.","n.a.","n.a.","n.a."]
[127,"n.a.","n.a.","n.a.","n.a.","72149950","n.a.","n.a.","n.a.","n.a.","n.a.","n.a.","n.a.","n.a.","n.a.","n.a.","n.a.","n.a.","n.a."]
[128,"n.a.","n.a.","n.a.","n.a.","72149971","n.a.","n.a.","n.a.","n.a.","n.a.","n.a.","n.a.","n.a.","n.a.","n.a.","n.a.","n.a.","n.a."]
[129,"n.a.","n.a.","n.a.","n.a.","72149979","n.a.","n.a.","n.a.","n.a.","n.a.","n.a.","n.a.","n.a.","n.a.","n.a.","n.a.","n.a.","n.a."]
[130,"n.a.","n.a.","n.a.","n.a.","72149995","n.a.","n.a.","n.a.","n.a.","n.a.","n.a.","n.a.","n.a.","n.a.","n.a.","n.a.","n.a.","n.a."]
[131,{"$f":"IFERROR(INDEX(CNCodes_ListKey,MATCH($A255&\"_\"&B$123,CNCodes_ListNumbering,0)),CONST_NA)","v":"n.a."},"n.a.","n.a.","n.a.","7215","n.a.","n.a.","n.a.","n.a.","n.a.",{"$f":"IFERROR(INDEX(CNCodes_ListKey,MATCH($A255&\"_\"&L$123,CNCodes_ListNumbering,0)),CONST_NA)","v":"n.a."},"n.a.","n.a.","n.a.","n.a.","n.a.","n.a.","n.a."]
[132,"n.a.","n.a.","n.a.","n.a.","72151000","n.a.","n.a.","n.a.","n.a.","n.a.","n.a.","n.a.","n.a.","n.a.","n.a.","n.a.","n.a.","n.a."]
[133,"n.a.","n.a.","n.a.","n.a.","721550","n.a.","n.a.","n.a.","n.a.","n.a.","n.a.","n.a.","n.a.","n.a.","n.a.","n.a.","n.a.","n.a."]
[134,"n.a.","n.a.","n.a.","n.a.","72155011","n.a.","n.a.","n.a.","n.a.","n.a.","n.a.","n.a.","n.a.","n.a.","n.a.","n.a.","n.a.","n.a."]
[135,"n.a.","n.a.","n.a.","n.a.","72155019","n.a.","n.a.","n.a.","n.a.","n.a.","n.a.","n.a.","n.a.","n.a.","n.a.","n.a.","n.a.","n.a."]
[136,"n.a.","n.a.","n.a.","n.a.","72155080","n.a.","n.a.","n.a.","n.a.","n.a.","n.a.","n.a.","n.a.","n.a.","n.a.","n.a.","n.a.","n.a."]
[137,"n.a.","n.a.","n.a.","n.a.","72159000","n.a.","n.a.","n.a.","n.a.","n.a.","n.a.","n.a.","n.a.","n.a.","n.a.","n.a.","n.a.","n.a."]
[138,"n.a.","n.a.","n.a.","n.a.","7216","n.a.","n.a.","n.a.","n.a.","n.a.","n.a.","n.a.","n.a.","n.a.","n.a.","n.a.","n.a.","n.a."]
[139,"n.a.","n.a.","n.a.","n.a.","72161000","n.a.","n.a.","n.a.","n.a.","n.a.","n.a.","n.a.","n.a.","n.a.","n.a.","n.a.","n.a.","n.a."]
[140,"n.a.","n.a.","n.a.","n.a.","72162100","n.a.","n.a.","n.a.","n.a.","n.a.","n.a.","n.a.","n.a.","n.a.","n.a.","n.a.","n.a.","n.a."]
[141,{"$f":"IFERROR(INDEX(CNCodes_ListKey,MATCH($A265&\"_\"&B$123,CNCodes_ListNumbering,0)),CONST_NA)","v":"n.a."},"n.a.","n.a.","n.a.","72162200","n.a.","n.a.","n.a.","n.a.","n.a.",{"$f":"IFERROR(INDEX(CNCodes_ListKey,MATCH($A265&\"_\"&L$123,CNCodes_ListNumbering,0)),CONST_NA)","v":"n.a."},"n.a.","n.a.","n.a.","n.a.","n.a.","n.a.","n.a."]
[142,"n.a.","n.a.","n.a.","n.a.","721631","n.a.","n.a.","n.a.","n.a.","n.a.","n.a.","n.a.","n.a.","n.a.","n.a.","n.a.","n.a.","n.a."]
[143,"n.a.","n.a.","n.a.","n.a.","72163110","n.a.","n.a.","n.a.","n.a.","n.a.","n.a.","n.a.","n.a.","n.a.","n.a.","n.a.","n.a.","n.a."]
[144,"n.a.","n.a.","n.a.","n.a.","72163190","n.a.","n.a.","n.a.","n.a.","n.a.","n.a.","n.a.","n.a.","n.a.","n.a.","n.a.","n.a.","n.a."]
[145,"n.a.","n.a.","n.a.","n.a.","721632","n.a.","n.a.","n.a.","n.a.","n.a.","n.a.","n.a.","n.a.","n.a.","n.a.","n.a.","n.a.","n.a."]
[146,"n.a.","n.a.","n.a.","n.a.","72163211","n.a.","n.a.","n.a.","n.a.","n.a.","n.a.","n.a.","n.a.","n.a.","n.a.","n.a.","n.a.","n.a."]
[147,"n.a.","n.a.","n.a.","n.a.","72163219","n.a.","n.a.","n.a.","n.a.","n.a.","n.a.","n.a.","n.a.","n.a.","n.a.","n.a.","n.a.","n.a."]
[148,"n.a.","n.a.","n.a.","n.a.","72163291","n.a.","n.a.","n.a.","n.a.","n.a.","n.a.","n.a.","n.a.","n.a.","n.a.","n.a.","n.a.","n.a."]
[149,"n.a.","n.a.","n.a.","n.a.","72163299","n.a.","n.a.","n.a.","n.a.","n.a.","n.a.","n.a.","n.a.","n.a.","n.a.","n.a.","n.a.","n.a."]
[150,"n.a.","n.a.","n.a.","n.a.","721633","n.a.","n.a.","n.a.","n.a.","n.a.","n.a.","n.a.","n.a.","n.a.","n.a.","n.a.","n.a.","n.a."]
[151,{"$f":"IFERROR(INDEX(CNCodes_ListKey,MATCH($A275&\"_\"&B$123,CNCodes_ListNumbering,0)),CONST_NA)","v":"n.a."},"n.a.","n.a.","n.a.","72163310","n.a.","n.a.","n.a.","n.a.","n.a.",{"$f":"IFERROR(INDEX(CNCodes_ListKey,MATCH($A275&\"_\"&L$123,CNCodes_ListNumbering,0)),CONST_NA)","v":"n.a."},"n.a.","n.a.","n.a.","n.a.","n.a.","n.a.","n.a."]
[152,"n.a.","n.a.","n.a.","n.a.","72163390","n.a.","n.a.","n.a.","n.a.","n.a.","n.a.","n.a.","n.a.","n.a.","n.a.","n.a.","n.a.","n.a."]
[153,"n.a.","n.a.","n.a.","n.a.","721640","n.a.","n.a.","n.a.","n.a.","n.a.","n.a.","n.a.","n.a.","n.a.","n.a.","n.a.","n.a.","n.a."]
[154,"n.a.","n.a.","n.a.","n.a.","72164010","n.a.","n.a.","n.a.","n.a.","n.a.","n.a.","n.a.","n.a.","n.a.","n.a.","n.a.","n.a.","n.a."]
[155,"n.a.","n.a.","n.a.","n.a.","72164090","n.a.","n.a.","n.a.","n.a.","n.a.","n.a.","n.a.","n.a.","n.a.","n.a.","n.a.","n.a.","n.a."]
[156,"n.a.","n.a.","n.a.","n.a.","721650","n.a.","n.a.","n.a.","n.a.","n.a.","n.a.","n.a.","n.a.","n.a.","n.a.","n.a.","n.a.","n.a."]
[157,"n.a.","n.a.","n.a.","n.a.","72165010","n.a.","n.a.","n.a.","n.a.","n.a.","n.a.","n.a.","n.a.","n.a.","n.a.","n.a.","n.a.","n.a."]
[158,"n.a.","n.a.","n.a.","n.a.","72165091","n.a.","n.a.","n.a.","n.a.","n.a.","n.a.","n.a.","n.a.","n.a.","n.a.","n.a.","n.a.","n.a."]
[159,"n.a.","n.a.","n.a.","n.a.","72165099","n.a.","n.a.","n.a.","n.a.","n.a.","n.a.","n.a.","n.a.","n.a.","n.a.","n.a.","n.a.","n.a."]
[160,"n.a.","n.a.","n.a.","n.a.","721661","n.a.","n.a.","n.a.","n.a.","n.a.","n.a.","n.a.","n.a.","n.a.","n.a.","n.a.","n.a.","n.a."]
[161,{"$f":"IFERROR(INDEX(CNCodes_ListKey,MATCH($A285&\"_\"&B$123,CNCodes_ListNumbering,0)),CONST_NA)","v":"n.a."},"n.a.","n.a.","n.a.","72166110","n.a.","n.a.","n.a.","n.a.","n.a.",{"$f":"IFERROR(INDEX(CNCodes_ListKey,MATCH($A285&\"_\"&L$123,CNCodes_ListNumbering,0)),CONST_NA)","v":"n.a."},"n.a.","n.a.","n.a.","n.a.","n.a.","n.a.","n.a."]
[162,"n.a.","n.a.","n.a.","n.a.","72166190","n.a.","n.a.","n.a.","n.a.","n.a.","n.a.","n.a.","n.a.","n.a.","n.a.","n.a.","n.a.","n.a."]
[163,"n.a.","n.a.","n.a.","n.a.","72166900","n.a.","n.a.","n.a.","n.a.","n.a.","n.a.","n.a.","n.a.","n.a.","n.a.","n.a.","n.a.","n.a."]
[164,"n.a.","n.a.","n.a.","n.a.","721691","n.a.","n.a.","n.a.","n.a.","n.a.","n.a.","n.a.","n.a.","n.a.","n.a.","n.a.","n.a.","n.a."]
[165,"n.a.","n.a.","n.a.","n.a.","72169110","n.a.","n.a.","n.a.","n.a.","n.a.","n.a.","n.a.","n.a.","n.a.","n.a.","n.a.","n.a.","n.a."]
[166,"n.a.","n.a.","n.a.","n.a.","72169180","n.a.","n.a.","n.a.","n.a.","n.a.","n.a.","n.a.","n.a.","n.a.","n.a.","n.a.","n.a.","n.a."]
[167,"n.a.","n.a.","n.a.","n.a.","72169900","n.a.","n.a.","n.a.","n.a.","n.a.","n.a.","n.a.","n.a.","n.a.","n.a.","n.a.","n.a.","n.a."]
[168,"n.a.","n.a.","n.a.","n.a.","7217","n.a.","n.a.","n.a.","n.a.","n.a.","n.a.","n.a.","n.a.","n.a.","n.a.","n.a.","n.a.","n.a."]
[169,"n.a.","n.a.","n.a.","n.a.","721710","n.a.","n.a.","n.a.","n.a.","n.a.","n.a.","n.a.","n.a.","n.a.","n.a.","n.a.","n.a.","n.a."]
[170,"n.a.","n.a.","n.a.","n.a.","72171010","n.a.","n.a.","n.a.","n.a.","n.a.","n.a.","n.a.","n.a.","n.a.","n.a.","n.a.","n.a.","n.a."]
[171,{"$f":"IFERROR(INDEX(CNCodes_ListKey,MATCH($A295&\"_\"&B$123,CNCodes_ListNumbering,0)),CONST_NA)","v":"n.a."},"n.a.","n.a.","n.a.","72171031","n.a.","n.a.","n.a.","n.a.","n.a.",{"$f":"IFERROR(INDEX(CNCodes_ListKey,MATCH($A295&\"_\"&L$123,CNCodes_ListNumbering,0)),CONST_NA)","v":"n.a."},"n.a.","n.a.","n.a.","n.a.","n.a.","n.a.","n.a."]
[172,"n.a.","n.a.","n.a.","n.a.","72171039","n.a.","n.a.","n.a.","n.a.","n.a.","n.a.","n.a.","n.a.","n.a.","n.a.","n.a.","n.a.","n.a."]
[173,"n.a.","n.a.","n.a.","n.a.","72171050","n.a.","n.a.","n.a.","n.a.","n.a.","n.a.","n.a.","n.a.","n.a.","n.a.","n.a.","n.a.","n.a."]
[174,"n.a.","n.a.","n.a.","n.a.","72171090","n.a.","n.a.","n.a.","n.a.","n.a.","n.a.","n.a.","n.a.","n.a.","n.a.","n.a.","n.a.","n.a."]
[175,"n.a.","n.a.","n.a.","n.a.","721720","n.a.","n.a.","n.a.","n.a.","n.a.","n.a.","n.a.","n.a.","n.a.","n.a.","n.a.","n.a.","n.a."]
[176,"n.a.","n.a.","n.a.","n.a.","72172010","n.a.","n.a.","n.a.","n.a.","n.a.","n.a.","n.a.","n.a.","n.a.","n.a.","n.a.","n.a.","n.a."]
[177,"n.a.","n.a.","n.a.","n.a.","72172030","n.a.","n.a.","n.a.","n.a.","n.a.","n.a.","n.a.","n.a.","n.a.","n.a.","n.a.","n.a.","n.a."]
[178,"n.a.","n.a.","n.a.","n.a.","72172050","n.a.","n.a.","n.a.","n.a.","n.a.","n.a.","n.a.","n.a.","n.a.","n.a.","n.a.","n.a.","n.a."]
[179,"n.a.","n.a.","n.a.","n.a.","72172090","n.a.","n.a.","n.a.","n.a.","n.a.","n.a.","n.a.","n.a.","n.a.","n.a.","n.a.","n.a.","n.a."]
[180,"n.a.","n.a.","n.a.","n.a.","721730","n.a.","n.a.","n.a.","n.a.","n.a.","n.a.","n.a.","n.a.","n.a.","n.a.","n.a.","n.a.","n.a."]
[181,{"$f":"IFERROR(INDEX(CNCodes_ListKey,MATCH($A305&\"_\"&B$123,CNCodes_ListNumbering,0)),CONST_NA)","v":"n.a."},"n.a.","n.a.","n.a.","72173041","n.a.","n.a.","n.a.","n.a.","n.a.",{"$f":"IFERROR(INDEX(CNCodes_ListKey,MATCH($A305&\"_\"&L$123,CNCodes_ListNumbering,0)),CONST_NA)","v":"n.a."},"n.a.","n.a.","n.a.","n.a.","n.a.","n.a.","n.a."]
[182,"n.a.","n.a.","n.a.","n.a.","72173049","n.a.","n.a.","n.a.","n.a.","n.a.","n.a.","n.a.","n.a.","n.a.","n.a.","n.a.","n.a.","n.a."]
[183,"n.a.","n.a.","n.a.","n.a.","72173050","n.a.","n.a.","n.a.","n.a.","n.a.","n.a.","n.a.","n.a.","n.a.","n.a.","n.a.","n.a.","n.a."]
[184,"n.a.","n.a.","n.a.","n.a.","72173090","n.a.","n.a.","n.a.","n.a.","n.a.","n.a.","n.a.","n.a.","n.a.","n.a.","n.a.","n.a.","n.a."]
[185,"n.a.","n.a.","n.a.","n.a.","721790","n.a.","n.a.","n.a.","n.a.","n.a.","n.a.","n.a.","n.a.","n.a.","n.a.","n.a.","n.a.","n.a."]
[186,"n.a.","n.a.","n.a.","n.a.","72179020","n.a.","n.a.","n.a.","n.a.","n.a.","n.a.","n.a.","n.a.","n.a.","n.a.","n.a.","n.a.","n.a."]
[187,"n.a.","n.a.","n.a.","n.a.","72179050","n.a.","n.a.","n.a.","n.a.","n.a.","n.a.","n.a.","n.a.","n.a.","n.a.","n.a.","n.a.","n.a."]
[188,"n.a.","n.a.","n.a.","n.a.","72179090","n.a.","n.a.","n.a.","n.a.","n.a.","n.a.","n.a.","n.a.","n.a.","n.a.","n.a.","n.a.","n.a."]
[189,"n.a.","n.a.","n.a.","n.a.","7219","n.a.","n.a.","n.a.","n.a.","n.a.","n.a.","n.a.","n.a.","n.a.","n.a.","n.a.","n.a.","n.a."]
[190,"n.a.","n.a.","n.a.","n.a.","72191100","n.a.","n.a.","n.a.","n.a.","n.a.","n.a.","n.a.","n.a.","n.a.","n.a.","n.a.","n.a.","n.a."]
[191,{"$f":"IFERROR(INDEX(CNCodes_ListKey,MATCH($A315&\"_\"&B$123,CNCodes_ListNumbering,0)),CONST_NA)","v":"n.a."},"n.a.","n.a.","n.a.","721912","n.a.","n.a.","n.a.","n.a.","n.a.",{"$f":"IFERROR(INDEX(CNCodes_ListKey,MATCH($A315&\"_\"&L$123,CNCodes_ListNumbering,0)),CONST_NA)","v":"n.a."},"n.a.","n.a.","n.a.","n.a.","n.a.","n.a.","n.a."]
[192,"n.a.","n.a.","n.a.","n.a.","72191210","n.a.","n.a.","n.a.","n.a.","n.a.","n.a.","n.a.","n.a.","n.a.","n.a.","n.a.","n.a.","n.a."]
[193,"n.a.","n.a.","n.a.","n.a.","72191290","n.a.","n.a.","n.a.","n.a.","n.a.","n.a.","n.a.","n.a.","n.a.","n.a.","n.a.","n.a.","n.a."]
[194,"n.a.","n.a.","n.a.","n.a.","721913","n.a.","n.a.","n.a.","n.a.","n.a.","n.a.","n.a.","n.a.","n.a.","n.a.","n.a.","n.a.","n.a."]
[195,"n.a.","n.a.","n.a.","n.a.","72191310","n.a.","n.a.","n.a.","n.a.","n.a.","n.a.","n.a.","n.a.","n.a.","n.a.","n.a.","n.a.","n.a."]
[196,"n.a.","n.a.","n.a.","n.a.","72191390","n.a.","n.a.","n.a.","n.a.","n.a.","n.a.","n.a.","n.a.","n.a.","n.a.","n.a.","n.a.","n.a."]
[197,"n.a.","n.a.","n.a.","n.a.","721914","n.a.","n.a.","n.a.","n.a.","n.a.","n.a.","n.a.","n.a.","n.a.","n.a.","n.a.","n.a.","n.a."]
[198,"n.a.","n.a.","n.a.","n.a.","72191410","n.a.","n.a.","n.a.","n.a.","n.a.","n.a.","n.a.","n.a.","n.a.","n.a.","n.a.","n.a.","n.a."]
[199,"n.a.","n.a.","n.a.","n.a.","72191490","n.a.","n.a.","n.a.","n.a.","n.a.","n.a.","n.a.","n.a.","n.a.","n.a.","n.a.","n.a.","n.a."]
[200,"n.a.","n.a.","n.a.","n.a.","721921","n.a.","n.a.","n.a.","n.a.","n.a.","n.a.","n.a.","n.a.","n.a.","n.a.","n.a.","n.a.","n.a."]
[201,{"$f":"IFERROR(INDEX(CNCodes_ListKey,MATCH($A325&\"_\"&B$123,CNCodes_ListNumbering,0)),CONST_NA)","v":"n.a."},"n.a.","n.a.","n.a.","72192110","n.a.","n.a.","n.a.","n.a.","n.a.",{"$f":"IFERROR(INDEX(CNCodes_ListKey,MATCH($A325&\"_\"&L$123,CNCodes_ListNumbering,0)),CONST_NA)","v":"n.a."},"n.a.","n.a.","n.a.","n.a.","n.a.","n.a.","n.a."]
[202,"n.a.","n.a.","n.a.","n.a.","72192190","n.a.","n.a.","n.a.","n.a.","n.a.","n.a.","n.a.","n.a.","n.a.","n.a.","n.a.","n.a.","n.a."]
[203,"n.a.","n.a.","n.a.","n.a.","721922","n.a.","n.a.","n.a.","n.a.","n.a.","n.a.","n.a.","n.a.","n.a.","n.a.","n.a.","n.a.","n.a."]
[204,"n.a.","n.a.","n.a.","n.a.","72192210","n.a.","n.a.","n.a.","n.a.","n.a.","n.a.","n.a.","n.a.","n.a.","n.a.","n.a.","n.a.","n.a."]
[205,"n.a.","n.a.","n.a.","n.a.","72192290","n.a.","n.a.","n.a.","n.a.","n.a.","n.a.","n.a.","n.a.","n.a.","n.a.","n.a.","n.a.","n.a."]
[206,"n.a.","n.a.","n.a.","n.a.","72192300","n.a.","n.a.","n.a.","n.a.","n.a.","n.a.","n.a.","n.a.","n.a.","n.a.","n.a.","n.a.","n.a."]
[207,"n.a.","n.a.","n.a.","n.a.","72192400","n.a.","n.a.","n.a.","n.a.","n.a.","n.a.","n.a.","n.a.","n.a.","n.a.","n.a.","n.a.","n.a."]
[208,"n.a.","n.a.","n.a.","n.a.","72193100","n.a.","n.a.","n.a.","n.a.","n.a.","n.a.","n.a.","n.a.","n.a.","n.a.","n.a.","n.a.","n.a."]
[209,"n.a.","n.a.","n.a.","n.a.","721932","n.a.","n.a.","n.a.","n.a.","n.a.","n.a.","n.a.","n.a.","n.a.","n.a.","n.a.","n.a.","n.a."]
[210,"n.a.","n.a.","n.a.","n.a.","72193210","n.a.","n.a.","n.a.","n.a.","n.a.","n.a.","n.a.","n.a.","n.a.","n.a.","n.a.","n.a.","n.a."]
[211,{"$f":"IFERROR(INDEX(CNCodes_ListKey,MATCH($A335&\"_\"&B$123,CNCodes_ListNumbering,0)),CONST_NA)","v":"n.a."},"n.a.","n.a.","n.a.","72193290","n.a.","n.a.","n.a.","n.a.","n.a.",{"$f":"IFERROR(INDEX(CNCodes_ListKey,MATCH($A335&\"_\"&L$123,CNCodes_ListNumbering,0)),CONST_NA)","v":"n.a."},"n.a.","n.a.","n.a.","n.a.","n.a.","n.a.","n.a."]
[212,"n.a.","n.a.","n.a.","n.a.","721933","n.a.","n.a.","n.a.","n.a.","n.a.","n.a.","n.a.","n.a.","n.a.","n.a.","n.a.","n.a.","n.a."]
[213,"n.a.","n.a.","n.a.","n.a.","72193310","n.a.","n.a.","n.a.","n.a.","n.a.","n.a.","n.a.","n.a.","n.a.","n.a.","n.a.","n.a.","n.a."]
[214,"n.a.","n.a.","n.a.","n.a.","72193390","n.a.","n.a.","n.a.","n.a.","n.a.","n.a.","n.a.","n.a.","n.a.","n.a.","n.a.","n.a.","n.a."]
[215,"n.a.","n.a.","n.a.","n.a.","721934","n.a.","n.a.","n.a.","n.a.","n.a.","n.a.","n.a.","n.a.","n.a.","n.a.","n.a.","n.a.","n.a."]
[216,"n.a.","n.a.","n.a.","n.a.","72193410","n.a.","n.a.","n.a.","n.a.","n.a.","n.a.","n.a.","n.a.","n.a.","n.a.","n.a.","n.a.","n.a."]
[217,"n.a.","n.a.","n.a.","n.a.","72193490","n.a.","n.a.","n.a.","n.a.","n.a.","n.a.","n.a.","n.a.","n.a.","n.a.","n.a.","n.a.","n.a."]
[218,"n.a.","n.a.","n.a.","n.a.","721935","n.a.","n.a.","n.a.","n.a.","n.a.","n.a.","n.a.","n.a.","n.a.","n.a.","n.a.","n.a.","n.a."]
[219,"n.a.","n.a.","n.a.","n.a.","72193510","n.a.","n.a.","n.a.","n.a.","n.a.","n.a.","n.a.","n.a.","n.a.","n.a.","n.a.","n.a.","n.a."]
[220,"n.a.","n.a.","n.a.","n.a.","72193590","n.a.","n.a.","n.a.","n.a.","n.a.","n.a.","n.a.","n.a.","n.a.","n.a.","n.a.","n.a.","n.a."]
[221,{"$f":"IFERROR(INDEX(CNCodes_ListKey,MATCH($A345&\"_\"&B$123,CNCodes_ListNumbering,0)),CONST_NA)","v":"n.a."},"n.a.","n.a.","n.a.","721990","n.a.","n.a.","n.a.","n.a.","n.a.",{"$f":"IFERROR(INDEX(CNCodes_ListKey,MATCH($A345&\"_\"&L$123,CNCodes_ListNumbering,0)),CONST_NA)","v":"n.a."},"n.a.","n.a.","n.a.","n.a.","n.a.","n.a.","n.a."]
[222,"n.a.","n.a.","n.a.","n.a.","72199020","n.a.","n.a.","n.a.","n.a.","n.a.","n.a.","n.a.","n.a.","n.a.","n.a.","n.a.","n.a.","n.a."]
[223,"n.a.","n.a.","n.a.","n.a.","72199080","n.a.","n.a.","n.a.","n.a.","n.a.","n.a.","n.a.","n.a.","n.a.","n.a.","n.a.","n.a.","n.a."]
[224,"n.a.","n.a.","n.a.","n.a.","7220","n.a.","n.a.","n.a.","n.a.","n.a.","n.a.","n.a.","n.a.","n.a.","n.a.","n.a.","n.a.","n.a."]
[225,"n.a.","n.a.","n.a.","n.a.","72201100","n.a.","n.a.","n.a.","n.a.","n.a.","n.a.","n.a.","n.a.","n.a.","n.a.","n.a.","n.a.","n.a."]
[226,"n.a.","n.a.","n.a.","n.a.","72201200","n.a.","n.a.","n.a.","n.a.","n.a.","n.a.","n.a.","n.a.","n.a.","n.a.","n.a.","n.a.","n.a."]
[227,"n.a.","n.a.","n.a.","n.a.","722020","n.a.","n.a.","n.a.","n.a.","n.a.","n.a.","n.a.","n.a.","n.a.","n.a.","n.a.","n.a.","n.a."]
[228,"n.a.","n.a.","n.a.","n.a.","72202021","n.a.","n.a.","n.a.","n.a.","n.a.","n.a.","n.a.","n.a.","n.a.","n.a.","n.a.","n.a.","n.a."]
[229,"n.a.","n.a.","n.a.","n.a.","72202029","n.a.","n.a.","n.a.","n.a.","n.a.","n.a.","n.a.","n.a.","n.a.","n.a.","n.a.","n.a.","n.a."]
[230,"n.a.","n.a.","n.a.","n.a.","72202041","n.a.","n.a.","n.a.","n.a.","n.a.","n.a.","n.a.","n.a.","n.a.","n.a.","n.a.","n.a.","n.a."]
[231,{"$f":"IFERROR(INDEX(CNCodes_ListKey,MATCH($A355&\"_\"&B$123,CNCodes_ListNumbering,0)),CONST_NA)","v":"n.a."},"n.a.","n.a.","n.a.","72202049","n.a.","n.a.","n.a.","n.a.","n.a.",{"$f":"IFERROR(INDEX(CNCodes_ListKey,MATCH($A355&\"_\"&L$123,CNCodes_ListNumbering,0)),CONST_NA)","v":"n.a."},"n.a.","n.a.","n.a.","n.a.","n.a.","n.a.","n.a."]
[232,"n.a.","n.a.","n.a.","n.a.","72202081","n.a.","n.a.","n.a.","n.a.","n.a.","n.a.","n.a.","n.a.","n.a.","n.a.","n.a.","n.a.","n.a."]
[233,"n.a.","n.a.","n.a.","n.a.","72202089","n.a.","n.a.","n.a.","n.a.","n.a.","n.a.","n.a.","n.a.","n.a.","n.a.","n.a.","n.a.","n.a."]
[234,"n.a.","n.a.","n.a.","n.a.","722090","n.a.","n.a.","n.a.","n.a.","n.a.","n.a.","n.a.","n.a.","n.a.","n.a.","n.a.","n.a.","n.a."]
[235,"n.a.","n.a.","n.a.","n.a.","72209020","n.a.","n.a.","n.a.","n.a.","n.a.","n.a.","n.a.","n.a.","n.a.","n.a.","n.a.","n.a.","n.a."]
[236,"n.a.","n.a.","n.a.","n.a.","72209080","n.a.","n.a.","n.a.","n.a.","n.a.","n.a.","n.a.","n.a.","n.a.","n.a.","n.a.","n.a.","n.a."]
[237,"n.a.","n.a.","n.a.","n.a.","722100","n.a.","n.a.","n.a.","n.a.","n.a.","n.a.","n.a.","n.a.","n.a.","n.a.","n.a.","n.a.","n.a."]
[238,"n.a.","n.a.","n.a.","n.a.","72210010","n.a.","n.a.","n.a.","n.a.","n.a.","n.a.","n.a.","n.a.","n.a.","n.a.","n.a.","n.a.","n.a."]
[239,"n.a.","n.a.","n.a.","n.a.","72210090","n.a.","n.a.","n.a.","n.a.","n.a.","n.a.","n.a.","n.a.","n.a.","n.a.","n.a.","n.a.","n.a."]
[240,"n.a.","n.a.","n.a.","n.a.","7222","n.a.","n.a.","n.a.","n.a.","n.a.","n.a.","n.a.","n.a.","n.a.","n.a.","n.a.","n.a.","n.a."]
[241,{"$f":"IFERROR(INDEX(CNCodes_ListKey,MATCH($A365&\"_\"&B$123,CNCodes_ListNumbering,0)),CONST_NA)","v":"n.a."},"n.a.","n.a.","n.a.","722211","n.a.","n.a.","n.a.","n.a.","n.a.",{"$f":"IFERROR(INDEX(CNCodes_ListKey,MATCH($A365&\"_\"&L$123,CNCodes_ListNumbering,0)),CONST_NA)","v":"n.a."},"n.a.","n.a.","n.a.","n.a.","n.a.","n.a.","n.a."]
[242,"n.a.","n.a.","n.a.","n.a.","72221111","n.a.","n.a.","n.a.","n.a.","n.a.","n.a.","n.a.","n.a.","n.a.","n.a.","n.a.","n.a.","n.a."]
[243,"n.a.","n.a.","n.a.","n.a.","72221119","n.a.","n.a.","n.a.","n.a.","n.a.","n.a.","n.a.","n.a.","n.a.","n.a.","n.a.","n.a.","n.a."]
[244,"n.a.","n.a.","n.a.","n.a.","72221181","n.a.","n.a.","n.a.","n.a.","n.a.","n.a.","n.a.","n.a.","n.a.","n.a.","n.a.","n.a.","n.a."]
[245,"n.a.","n.a.","n.a.","n.a.","72221189","n.a.","n.a.","n.a.","n.a.","n.a.","n.a.","n.a.","n.a.","n.a.","n.a.","n.a.","n.a.","n.a."]
[246,"n.a.","n.a.","n.a.","n.a.","722219","n.a.","n.a.","n.a.","n.a.","n.a.","n.a.","n.a.","n.a.","n.a.","n.a.","n.a.","n.a.","n.a."]
[247,"n.a.","n.a.","n.a.","n.a.","72221910","n.a.","n.a.","n.a.","n.a.","n.a.","n.a.","n.a.","n.a.","n.a.","n.a.","n.a.","n.a.","n.a."]
[248,"n.a.","n.a.","n.a.","n.a.","72221990","n.a.","n.a.","n.a.","n.a.","n.a.","n.a.","n.a.","n.a.","n.a.","n.a.","n.a.","n.a.","n.a."]
[249,"n.a.","n.a.","n.a.","n.a.","722220","n.a.","n.a.","n.a.","n.a.","n.a.","n.a.","n.a.","n.a.","n.a.","n.a.","n.a.","n.a.","n.a."]
[250,"n.a.","n.a.","n.a.","n.a.","72222011","n.a.","n.a.","n.a.","n.a.","n.a.","n.a.","n.a.","n.a.","n.a.","n.a.","n.a.","n.a.","n.a."]
[251,{"$f":"IFERROR(INDEX(CNCodes_ListKey,MATCH($A375&\"_\"&B$123,CNCodes_ListNumbering,0)),CONST_NA)","v":"n.a."},"n.a.","n.a.","n.a.","72222019","n.a.","n.a.","n.a.","n.a.","n.a.",{"$f":"IFERROR(INDEX(CNCodes_ListKey,MATCH($A375&\"_\"&L$123,CNCodes_ListNumbering,0)),CONST_NA)","v":"n.a."},"n.a.","n.a.","n.a.","n.a.","n.a.","n.a.","n.a."]
[252,"n.a.","n.a.","n.a.","n.a.","72222021","n.a.","n.a.","n.a.","n.a.","n.a.","n.a.","n.a.","n.a.","n.a.","n.a.","n.a.","n.a.","n.a."]
[253,"n.a.","n.a.","n.a.","n.a.","72222029","n.a.","n.a.","n.a.","n.a.","n.a.","n.a.","n.a.","n.a.","n.a.","n.a.","n.a.","n.a.","n.a."]
[254,"n.a.","n.a.","n.a.","n.a.","72222031","n.a.","n.a.","n.a.","n.a.","n.a.","n.a.","n.a.","n.a.","n.a.","n.a.","n.a.","n.a.","n.a."]
[255,"n.a.","n.a.","n.a.","n.a.","72222039","n.a.","n.a.","n.a.","n.a.","n.a.","n.a.","n.a.","n.a.","n.a.","n.a.","n.a.","n.a.","n.a."]
[256,"n.a.","n.a.","n.a.","n.a.","72222081","n.a.","n.a.","n.a.","n.a.","n.a.","n.a.","n.a.","n.a.","n.a.","n.a.","n.a.","n.a.","n.a."]
[257,"n.a.","n.a.","n.a.","n.a.","72222089","n.a.","n.a.","n.a.","n.a.","n.a.","n.a.","n.a.","n.a.","n.a.","n.a.","n.a.","n.a.","n.a."]
[258,"n.a.","n.a.","n.a.","n.a.","722230","n.a.","n.a.","n.a.","n.a.","n.a.","n.a.","n.a.","n.a.","n.a.","n.a.","n.a.","n.a.","n.a."]
[259,"n.a.","n.a.","n.a.","n.a.","72223051","n.a.","n.a.","n.a.","n.a.","n.a.","n.a.","n.a.","n.a.","n.a.","n.a.","n.a.","n.a.","n.a."]
[260,"n.a.","n.a.","n.a.","n.a.","72223091","n.a.","n.a.","n.a.","n.a.","n.a.","n.a.","n.a.","n.a.","n.a.","n.a.","n.a.","n.a.","n.a."]
[261,{"$f":"IFERROR(INDEX(CNCodes_ListKey,MATCH($A385&\"_\"&B$123,CNCodes_ListNumbering,0)),CONST_NA)","v":"n.a."},"n.a.","n.a.","n.a.","72223097","n.a.","n.a.","n.a.","n.a.","n.a.",{"$f":"IFERROR(INDEX(CNCodes_ListKey,MATCH($A385&\"_\"&L$123,CNCodes_ListNumbering,0)),CONST_NA)","v":"n.a."},"n.a.","n.a.","n.a.","n.a.","n.a.","n.a.","n.a."]
[262,"n.a.","n.a.","n.a.","n.a.","722240","n.a.","n.a.","n.a.","n.a.","n.a.","n.a.","n.a.","n.a.","n.a.","n.a.","n.a.","n.a.","n.a."]
[263,"n.a.","n.a.","n.a.","n.a.","72224010","n.a.","n.a.","n.a.","n.a.","n.a.","n.a.","n.a.","n.a.","n.a.","n.a.","n.a.","n.a.","n.a."]
[264,"n.a.","n.a.","n.a.","n.a.","72224050","n.a.","n.a.","n.a.","n.a.","n.a.","n.a.","n.a.","n.a.","n.a.","n.a.","n.a.","n.a.","n.a."]
[265,"n.a.","n.a.","n.a.","n.a.","72224090","n.a.","n.a.","n.a.","n.a.","n.a.","n.a.","n.a.","n.a.","n.a.","n.a.","n.a.","n.a.","n.a."]
[266,"n.a.","n.a.","n.a.","n.a.","722300","n.a.","n.a.","n.a.","n.a.","n.a.","n.a.","n.a.","n.a.","n.a.","n.a.","n.a.","n.a.","n.a."]
[267,"n.a.","n.a.","n.a.","n.a.","72230011","n.a.","n.a.","n.a.","n.a.","n.a.","n.a.","n.a.","n.a.","n.a.","n.a.","n.a.","n.a.","n.a."]
[268,"n.a.","n.a.","n.a.","n.a.","72230019","n.a.","n.a.","n.a.","n.a.","n.a.","n.a.","n.a.","n.a.","n.a.","n.a.","n.a.","n.a.","n.a."]
[269,"n.a.","n.a.","n.a.","n.a.","72230091","n.a.","n.a.","n.a.","n.a.","n.a.","n.a.","n.a.","n.a.","n.a.","n.a.","n.a.","n.a.","n.a."]
[270,"n.a.","n.a.","n.a.","n.a.","72230099","n.a.","n.a.","n.a.","n.a.","n.a.","n.a.","n.a.","n.a.","n.a.","n.a.","n.a.","n.a.","n.a."]
[271,{"$f":"IFERROR(INDEX(CNCodes_ListKey,MATCH($A395&\"_\"&B$123,CNCodes_ListNumbering,0)),CONST_NA)","v":"n.a."},"n.a.","n.a.","n.a.","7225","n.a.","n.a.","n.a.","n.a.","n.a.",{"$f":"IFERROR(INDEX(CNCodes_ListKey,MATCH($A395&\"_\"&L$123,CNCodes_ListNumbering,0)),CONST_NA)","v":"n.a."},"n.a.","n.a.","n.a.","n.a.","n.a.","n.a.","n.a."]
[272,"n.a.","n.a.","n.a.","n.a.","72251100","n.a.","n.a.","n.a.","n.a.","n.a.","n.a.","n.a.","n.a.","n.a.","n.a.","n.a.","n.a.","n.a."]
[273,"n.a.","n.a.","n.a.","n.a.","722519","n.a.","n.a.","n.a.","n.a.","n.a.","n.a.","n.a.","n.a.","n.a.","n.a.","n.a.","n.a.","n.a."]
[274,"n.a.","n.a.","n.a.","n.a.","72251910","n.a.","n.a.","n.a.","n.a.","n.a.","n.a.","n.a.","n.a.","n.a.","n.a.","n.a.","n.a.","n.a."]
[275,"n.a.","n.a.","n.a.","n.a.","72251990","n.a.","n.a.","n.a.","n.a.","n.a.","n.a.","n.a.","n.a.","n.a.","n.a.","n.a.","n.a.","n.a."]
[276,"n.a.","n.a.","n.a.","n.a.","722530","n.a.","n.a.","n.a.","n.a.","n.a.","n.a.","n.a.","n.a.","n.a.","n.a.","n.a.","n.a.","n.a."]
[277,"n.a.","n.a.","n.a.","n.a.","72253010","n.a.","n.a.","n.a.","n.a.","n.a.","n.a.","n.a.","n.a.","n.a.","n.a.","n.a.","n.a.","n.a."]
[278,"n.a.","n.a.","n.a.","n.a.","72253030","n.a.","n.a.","n.a.","n.a.","n.a.","n.a.","n.a.","n.a.","n.a.","n.a.","n.a.","n.a.","n.a."]
[279,"n.a.","n.a.","n.a.","n.a.","72253090","n.a.","n.a.","n.a.","n.a.","n.a.","n.a.","n.a.","n.a.","n.a.","n.a.","n.a.","n.a.","n.a."]
[280,"n.a.","n.a.","n.a.","n.a.","722540","n.a.","n.a.","n.a.","n.a.","n.a.","n.a.","n.a.","n.a.","n.a.","n.a.","n.a.","n.a.","n.a."]
[281,{"$f":"IFERROR(INDEX(CNCodes_ListKey,MATCH($A405&\"_\"&B$123,CNCodes_ListNumbering,0)),CONST_NA)","v":"n.a."},"n.a.","n.a.","n.a.","72254012","n.a.","n.a.","n.a.","n.a.","n.a.",{"$f":"IFERROR(INDEX(CNCodes_ListKey,MATCH($A405&\"_\"&L$123,CNCodes_ListNumbering,0)),CONST_NA)","v":"n.a."},"n.a.","n.a.","n.a.","n.a.","n.a.","n.a.","n.a."]
[282,"n.a.","n.a.","n.a.","n.a.","72254015","n.a.","n.a.","n.a.","n.a.","n.a.","n.a.","n.a.","n.a.","n.a.","n.a.","n.a.","n.a.","n.a."]
[283,"n.a.","n.a.","n.a.","n.a.","72254040","n.a.","n.a.","n.a.","n.a.","n.a.","n.a.","n.a.","n.a.","n.a.","n.a.","n.a.","n.a.","n.a."]
[284,"n.a.","n.a.","n.a.","n.a.","72254060","n.a.","n.a.","n.a.","n.a.","n.a.","n.a.","n.a.","n.a.","n.a.","n.a.","n.a.","n.a.","n.a."]
[285,"n.a.","n.a.","n.a.","n.a.","72254090","n.a.","n.a.","n.a.","n.a.","n.a.","n.a.","n.a.","n.a.","n.a.","n.a.","n.a.","n.a.","n.a."]
[286,"n.a.","n.a.","n.a.","n.a.","722550","n.a.","n.a.","n.a.","n.a.","n.a.","n.a.","n.a.","n.a.","n.a.","n.a.","n.a.","n.a.","n.a."]
[287,"n.a.","n.a.","n.a.","n.a.","72255020","n.a.","n.a.","n.a.","n.a.","n.a.","n.a.","n.a.","n.a.","n.a.","n.a.","n.a.","n.a.","n.a."]
[288,"n.a.","n.a.","n.a.","n.a.","72255080","n.a.","n.a.","n.a.","n.a.","n.a.","n.a.","n.a.","n.a.","n.a.","n.a.","n.a.","n.a.","n.a."]
[289,"n.a.","n.a.","n.a.","n.a.","72259100","n.a.","n.a.","n.a.","n.a.","n.a.","n.a.","n.a.","n.a.","n.a.","n.a.","n.a.","n.a.","n.a."]
[290,"n.a.","n.a.","n.a.","n.a.","72259200","n.a.","n.a.","n.a.","n.a.","n.a.","n.a.","n.a.","n.a.","n.a.","n.a.","n.a.","n.a.","n.a."]
[291,{"$f":"IFERROR(INDEX(CNCodes_ListKey,MATCH($A415&\"_\"&B$123,CNCodes_ListNumbering,0)),CONST_NA)","v":"n.a."},"n.a.","n.a.","n.a.","72259900","n.a.","n.a.","n.a.","n.a.","n.a.",{"$f":"IFERROR(INDEX(CNCodes_ListKey,MATCH($A415&\"_\"&L$123,CNCodes_ListNumbering,0)),CONST_NA)","v":"n.a."},"n.a.","n.a.","n.a.","n.a.","n.a.","n.a.","n.a."]
[292,"n.a.","n.a.","n.a.","n.a.","7226","n.a.","n.a.","n.a.","n.a.","n.a.","n.a.","n.a.","n.a.","n.a.","n.a.","n.a.","n.a.","n.a."]
[293,"n.a.","n.a.","n.a.","n.a.","72261100","n.a.","n.a.","n.a.","n.a.","n.a.","n.a.","n.a.","n.a.","n.a.","n.a.","n.a.","n.a.","n.a."]
[294,"n.a.","n.a.","n.a.","n.a.","722619","n.a.","n.a.","n.a.","n.a.","n.a.","n.a.","n.a.","n.a.","n.a.","n.a.","n.a.","n.a.","n.a."]
[295,"n.a.","n.a.","n.a.","n.a.","72261910","n.a.","n.a.","n.a.","n.a.","n.a.","n.a.","n.a.","n.a.","n.a.","n.a.","n.a.","n.a.","n.a."]
[296,"n.a.","n.a.","n.a.","n.a.","72261980","n.a.","n.a.","n.a.","n.a.","n.a.","n.a.","n.a.","n.a.","n.a.","n.a.","n.a.","n.a.","n.a."]
[297,"n.a.","n.a.","n.a.","n.a.","72262000","n.a.","n.a.","n.a.","n.a.","n.a.","n.a.","n.a.","n.a.","n.a.","n.a.","n.a.","n.a.","n.a."]
[298,"n.a.","n.a.","n.a.","n.a.","722691","n.a.","n.a.","n.a.","n.a.","n.a.","n.a.","n.a.","n.a.","n.a.","n.a.","n.a.","n.a.","n.a."]
[299,"n.a.","n.a.","n.a.","n.a.","72269120","n.a.","n.a.","n.a.","n.a.","n.a.","n.a.","n.a.","n.a.","n.a.","n.a.","n.a.","n.a.","n.a."]
[300,"n.a.","n.a.","n.a.","n.a.","72269191","n.a.","n.a.","n.a.","n.a.","n.a.","n.a.","n.a.","n.a.","n.a.","n.a.","n.a.","n.a.","n.a."]
[301,{"$f":"IFERROR(INDEX(CNCodes_ListKey,MATCH($A425&\"_\"&B$123,CNCodes_ListNumbering,0)),CONST_NA)","v":"n.a."},"n.a.","n.a.","n.a.","72269199","n.a.","n.a.","n.a.","n.a.","n.a.",{"$f":"IFERROR(INDEX(CNCodes_ListKey,MATCH($A425&\"_\"&L$123,CNCodes_ListNumbering,0)),CONST_NA)","v":"n.a."},"n.a.","n.a.","n.a.","n.a.","n.a.","n.a.","n.a."]
[302,"n.a.","n.a.","n.a.","n.a.","72269200","n.a.","n.a.","n.a.","n.a.","n.a.","n.a.","n.a.","n.a.","n.a.","n.a.","n.a.","n.a.","n.a."]
[303,"n.a.","n.a.","n.a.","n.a.","722699","n.a.","n.a.","n.a.","n.a.","n.a.","n.a.","n.a.","n.a.","n.a.","n.a.","n.a.","n.a.","n.a."]
[304,"n.a.","n.a.","n.a.","n.a.","72269910","n.a.","n.a.","n.a.","n.a.","n.a.","n.a.","n.a.","n.a.","n.a.","n.a.","n.a.","n.a.","n.a."]
[305,"n.a.","n.a.","n.a.","n.a.","72269930","n.a.","n.a.","n.a.","n.a.","n.a.","n.a.","n.a.","n.a.","n.a.","n.a.","n.a.","n.a.","n.a."]
[306,"n.a.","n.a.","n.a.","n.a.","72269970","n.a.","n.a.","n.a.","n.a.","n.a.","n.a.","n.a.","n.a.","n.a.","n.a.","n.a.","n.a.","n.a."]
[307,"n.a.","n.a.","n.a.","n.a.","7227","n.a.","n.a.","n.a.","n.a.","n.a.","n.a.","n.a.","n.a.","n.a.","n.a.","n.a.","n.a.","n.a."]
[308,"n.a.","n.a.","n.a.","n.a.","72271000","n.a.","n.a.","n.a.","n.a.","n.a.","n.a.","n.a.","n.a.","n.a.","n.a.","n.a.","n.a.","n.a."]
[309,"n.a.","n.a.","n.a.","n.a.","72272000","n.a.","n.a.","n.a.","n.a.","n.a.","n.a.","n.a.","n.a.","n.a.","n.a.","n.a.","n.a.","n.a."]
[310,"n.a.","n.a.","n.a.","n.a.","722790","n.a.","n.a.","n.a.","n.a.","n.a.","n.a.","n.a.","n.a.","n.a.","n.a.","n.a.","n.a.","n.a."]
[311,{"$f":"IFERROR(INDEX(CNCodes_ListKey,MATCH($A435&\"_\"&B$123,CNCodes_ListNumbering,0)),CONST_NA)","v":"n.a."},"n.a.","n.a.","n.a.","72279010","n.a.","n.a.","n.a.","n.a.","n.a.",{"$f":"IFERROR(INDEX(CNCodes_ListKey,MATCH($A435&\"_\"&L$123,CNCodes_ListNumbering,0)),CONST_NA)","v":"n.a."},"n.a.","n.a.","n.a.","n.a.","n.a.","n.a.","n.a."]
[312,"n.a.","n.a.","n.a.","n.a.","72279050","n.a.","n.a.","n.a.","n.a.","n.a.","n.a.","n.a.","n.a.","n.a.","n.a.","n.a.","n.a.","n.a."]
[313,"n.a.","n.a.","n.a.","n.a.","72279095","n.a.","n.a.","n.a.","n.a.","n.a.","n.a.","n.a.","n.a.","n.a.","n.a.","n.a.","n.a.","n.a."]
[314,"n.a.","n.a.","n.a.","n.a.","7228","n.a.","n.a.","n.a.","n.a.","n.a.","n.a.","n.a.","n.a.","n.a.","n.a.","n.a.","n.a.","n.a."]
[315,"n.a.","n.a.","n.a.","n.a.","722810","n.a.","n.a.","n.a.","n.a.","n.a.","n.a.","n.a.","n.a.","n.a.","n.a.","n.a.","n.a.","n.a."]
[316,"n.a.","n.a.","n.a.","n.a.","72281020","n.a.","n.a.","n.a.","n.a.","n.a.","n.a.","n.a.","n.a.","n.a.","n.a.","n.a.","n.a.","n.a."]
[317,"n.a.","n.a.","n.a.","n.a.","72281050","n.a.","n.a.","n.a.","n.a.","n.a.","n.a.","n.a.","n.a.","n.a.","n.a.","n.a.","n.a.","n.a."]
[318,"n.a.","n.a.","n.a.","n.a.","72281090","n.a.","n.a.","n.a.","n.a.","n.a.","n.a.","n.a.","n.a.","n.a.","n.a.","n.a.","n.a.","n.a."]
[319,"n.a.","n.a.","n.a.","n.a.","722820","n.a.","n.a.","n.a.","n.a.","n.a.","n.a.","n.a.","n.a.","n.a.","n.a.","n.a.","n.a.","n.a."]
[320,"n.a.","n.a.","n.a.","n.a.","72282010","n.a.","n.a.","n.a.","n.a.","n.a.","n.a.","n.a.","n.a.","n.a.","n.a.","n.a.","n.a.","n.a."]
[321,{"$f":"IFERROR(INDEX(CNCodes_ListKey,MATCH($A445&\"_\"&B$123,CNCodes_ListNumbering,0)),CONST_NA)","v":"n.a."},"n.a.","n.a.","n.a.","72282091","n.a.","n.a.","n.a.","n.a.","n.a.",{"$f":"IFERROR(INDEX(CNCodes_ListKey,MATCH($A445&\"_\"&L$123,CNCodes_ListNumbering,0)),CONST_NA)","v":"n.a."},"n.a.","n.a.","n.a.","n.a.","n.a.","n.a.","n.a."]
[322,"n.a.","n.a.","n.a.","n.a.","72282099","n.a.","n.a.","n.a.","n.a.","n.a.","n.a.","n.a.","n.a.","n.a.","n.a.","n.a.","n.a.","n.a."]
[323,"n.a.","n.a.","n.a.","n.a.","722830","n.a.","n.a.","n.a.","n.a.","n.a.","n.a.","n.a.","n.a.","n.a.","n.a.","n.a.","n.a.","n.a."]
[324,"n.a.","n.a.","n.a.","n.a.","72283020","n.a.","n.a.","n.a.","n.a.","n.a.","n.a.","n.a.","n.a.","n.a.","n.a.","n.a.","n.a.","n.a."]
[325,"n.a.","n.a.","n.a.","n.a.","72283041","n.a.","n.a.","n.a.","n.a.","n.a.","n.a.","n.a.","n.a.","n.a.","n.a.","n.a.","n.a.","n.a."]
[326,"n.a.","n.a.","n.a.","n.a.","72283049","n.a.","n.a.","n.a.","n.a.","n.a.","n.a.","n.a.","n.a.","n.a.","n.a.","n.a.","n.a.","n.a."]
[327,"n.a.","n.a.","n.a.","n.a.","72283061","n.a.","n.a.","n.a.","n.a.","n.a.","n.a.","n.a.","n.a.","n.a.","n.a.","n.a.","n.a.","n.a."]
[328,"n.a.","n.a.","n.a.","n.a.","72283069","n.a.","n.a.","n.a.","n.a.","n.a.","n.a.","n.a.","n.a.","n.a.","n.a.","n.a.","n.a.","n.a."]
[329,"n.a.","n.a.","n.a.","n.a.","72283070","n.a.","n.a.","n.a.","n.a.","n.a.","n.a.","n.a.","n.a.","n.a.","n.a.","n.a.","n.a.","n.a."]
[330,"n.a.","n.a.","n.a.","n.a.","72283089","n.a.","n.a.","n.a.","n.a.","n.a.","n.a.","n.a.","n.a.","n.a.","n.a.","n.a.","n.a.","n.a."]
[331,{"$f":"IFERROR(INDEX(CNCodes_ListKey,MATCH($A455&\"_\"&B$123,CNCodes_ListNumbering,0)),CONST_NA)","v":"n.a."},"n.a.","n.a.","n.a.","722840","n.a.","n.a.","n.a.","n.a.","n.a.",{"$f":"IFERROR(INDEX(CNCodes_ListKey,MATCH($A455&\"_\"&L$123,CNCodes_ListNumbering,0)),CONST_NA)","v":"n.a."},"n.a.","n.a.","n.a.","n.a.","n.a.","n.a.","n.a."]
[332,"n.a.","n.a.","n.a.","n.a.","72284010","n.a.","n.a.","n.a.","n.a.","n.a.","n.a.","n.a.","n.a.","n.a.","n.a.","n.a.","n.a.","n.a."]
[333,"n.a.","n.a.","n.a.","n.a.","72284090","n.a.","n.a.","n.a.","n.a.","n.a.","n.a.","n.a.","n.a.","n.a.","n.a.","n.a.","n.a.","n.a."]
[334,"n.a.","n.a.","n.a.","n.a.","722850","n.a.","n.a.","n.a.","n.a.","n.a.","n.a.","n.a.","n.a.","n.a.","n.a.","n.a.","n.a.","n.a."]
[335,"n.a.","n.a.","n.a.","n.a.","72285020","n.a.","n.a.","n.a.","n.a.","n.a.","n.a.","n.a.","n.a.","n.a.","n.a.","n.a.","n.a.","n.a."]
[336,"n.a.","n.a.","n.a.","n.a.","72285040","n.a.","n.a.","n.a.","n.a.","n.a.","n.a.","n.a.","n.a.","n.a.","n.a.","n.a.","n.a.","n.a."]
[337,"n.a.","n.a.","n.a.","n.a.","72285061","n.a.","n.a.","n.a.","n.a.","n.a.","n.a.","n.a.","n.a.","n.a.","n.a.","n.a.","n.a.","n.a."]
[338,"n.a.","n.a.","n.a.","n.a.","72285069","n.a.","n.a.","n.a.","n.a.","n.a.","n.a.","n.a.","n.a.","n.a.","n.a.","n.a.","n.a.","n.a."]
[339,"n.a.","n.a.","n.a.","n.a.","72285080","n.a.","n.a.","n.a.","n.a.","n.a.","n.a.","n.a.","n.a.","n.a.","n.a.","n.a.","n.a.","n.a."]
[340,"n.a.","n.a.","n.a.","n.a.","722860","n.a.","n.a.","n.a.","n.a.","n.a.","n.a.","n.a.","n.a.","n.a.","n.a.","n.a.","n.a.","n.a."]
[341,{"$f":"IFERROR(INDEX(CNCodes_ListKey,MATCH($A465&\"_\"&B$123,CNCodes_ListNumbering,0)),CONST_NA)","v":"n.a."},"n.a.","n.a.","n.a.","72286020","n.a.","n.a.","n.a.","n.a.","n.a.",{"$f":"IFERROR(INDEX(CNCodes_ListKey,MATCH($A465&\"_\"&L$123,CNCodes_ListNumbering,0)),CONST_NA)","v":"n.a."},"n.a.","n.a.","n.a.","n.a.","n.a.","n.a.","n.a."]
[342,"n.a.","n.a.","n.a.","n.a.","72286080","n.a.","n.a.","n.a.","n.a.","n.a.","n.a.","n.a.","n.a.","n.a.","n.a.","n.a.","n.a.","n.a."]
[343,"n.a.","n.a.","n.a.","n.a.","722870","n.a.","n.a.","n.a.","n.a.","n.a.","n.a.","n.a.","n.a.","n.a.","n.a.","n.a.","n.a.","n.a."]
[344,"n.a.","n.a.","n.a.","n.a.","72287010","n.a.","n.a.","n.a.","n.a.","n.a.","n.a.","n.a.","n.a.","n.a.","n.a.","n.a.","n.a.","n.a."]
[345,"n.a.","n.a.","n.a.","n.a.","72287090","n.a.","n.a.","n.a.","n.a.","n.a.","n.a.","n.a.","n.a.","n.a.","n.a.","n.a.","n.a.","n.a."]
[346,"n.a.","n.a.","n.a.","n.a.","72288000","n.a.","n.a.","n.a.","n.a.","n.a.","n.a.","n.a.","n.a.","n.a.","n.a.","n.a.","n.a.","n.a."]
[347,"n.a.","n.a.","n.a.","n.a.","7229","n.a.","n.a.","n.a.","n.a.","n.a.","n.a.","n.a.","n.a.","n.a.","n.a.","n.a.","n.a.","n.a."]
[348,"n.a.","n.a.","n.a.","n.a.","72292000","n.a.","n.a.","n.a.","n.a.","n.a.","n.a.","n.a.","n.a.","n.a.","n.a.","n.a.","n.a.","n.a."]
[349,"n.a.","n.a.","n.a.","n.a.","722990","n.a.","n.a.","n.a.","n.a.","n.a.","n.a.","n.a.","n.a.","n.a.","n.a.","n.a.","n.a.","n.a."]
[350,"n.a.","n.a.","n.a.","n.a.","72299020","n.a.","n.a.","n.a.","n.a.","n.a.","n.a.","n.a.","n.a.","n.a.","n.a.","n.a.","n.a.","n.a."]
[351,{"$f":"IFERROR(INDEX(CNCodes_ListKey,MATCH($A475&\"_\"&B$123,CNCodes_ListNumbering,0)),CONST_NA)","v":"n.a."},"n.a.","n.a.","n.a.","72299050","n.a.","n.a.","n.a.","n.a.","n.a.",{"$f":"IFERROR(INDEX(CNCodes_ListKey,MATCH($A475&\"_\"&L$123,CNCodes_ListNumbering,0)),CONST_NA)","v":"n.a."},"n.a.","n.a.","n.a.","n.a.","n.a.","n.a.","n.a."]
[352,"n.a.","n.a.","n.a.","n.a.","72299090","n.a.","n.a.","n.a.","n.a.","n.a.","n.a.","n.a.","n.a.","n.a.","n.a.","n.a.","n.a.","n.a."]
[353,"n.a.","n.a.","n.a.","n.a.","7301","n.a.","n.a.","n.a.","n.a.","n.a.","n.a.","n.a.","n.a.","n.a.","n.a.","n.a.","n.a.","n.a."]
[354,"n.a.","n.a.","n.a.","n.a.","73011000","n.a.","n.a.","n.a.","n.a.","n.a.","n.a.","n.a.","n.a.","n.a.","n.a.","n.a.","n.a.","n.a."]
[355,"n.a.","n.a.","n.a.","n.a.","73012000","n.a.","n.a.","n.a.","n.a.","n.a.","n.a.","n.a.","n.a.","n.a.","n.a.","n.a.","n.a.","n.a."]
[356,"n.a.","n.a.","n.a.","n.a.","7302","n.a.","n.a.","n.a.","n.a.","n.a.","n.a.","n.a.","n.a.","n.a.","n.a.","n.a.","n.a.","n.a."]
[357,"n.a.","n.a.","n.a.","n.a.","730210","n.a.","n.a.","n.a.","n.a.","n.a.","n.a.","n.a.","n.a.","n.a.","n.a.","n.a.","n.a.","n.a."]
[358,"n.a.","n.a.","n.a.","n.a.","73021010","n.a.","n.a.","n.a.","n.a.","n.a.","n.a.","n.a.","n.a.","n.a.","n.a.","n.a.","n.a.","n.a."]
[359,"n.a.","n.a.","n.a.","n.a.","73021022","n.a.","n.a.","n.a.","n.a.","n.a.","n.a.","n.a.","n.a.","n.a.","n.a.","n.a.","n.a.","n.a."]
[360,"n.a.","n.a.","n.a.","n.a.","73021028","n.a.","n.a.","n.a.","n.a.","n.a.","n.a.","n.a.","n.a.","n.a.","n.a.","n.a.","n.a.","n.a."]
[361,{"$f":"IFERROR(INDEX(CNCodes_ListKey,MATCH($A485&\"_\"&B$123,CNCodes_ListNumbering,0)),CONST_NA)","v":"n.a."},"n.a.","n.a.","n.a.","73021040","n.a.","n.a.","n.a.","n.a.","n.a.",{"$f":"IFERROR(INDEX(CNCodes_ListKey,MATCH($A485&\"_\"&L$123,CNCodes_ListNumbering,0)),CONST_NA)","v":"n.a."},"n.a.","n.a.","n.a.","n.a.","n.a.","n.a.","n.a."]
[362,"n.a.","n.a.","n.a.","n.a.","73021050","n.a.","n.a.","n.a.","n.a.","n.a.","n.a.","n.a.","n.a.","n.a.","n.a.","n.a.","n.a.","n.a."]
[363,"n.a.","n.a.","n.a.","n.a.","73021090","n.a.","n.a.","n.a.","n.a.","n.a.","n.a.","n.a.","n.a.","n.a.","n.a.","n.a.","n.a.","n.a."]
[364,"n.a.","n.a.","n.a.","n.a.","73023000","n.a.","n.a.","n.a.","n.a.","n.a.","n.a.","n.a.","n.a.","n.a.","n.a.","n.a.","n.a.","n.a."]
[365,"n.a.","n.a.","n.a.","n.a.","73024000","n.a.","n.a.","n.a.","n.a.","n.a.","n.a.","n.a.","n.a.","n.a.","n.a.","n.a.","n.a.","n.a."]
[366,"n.a.","n.a.","n.a.","n.a.","73029000","n.a.","n.a.","n.a.","n.a.","n.a.","n.a.","n.a.","n.a.","n.a.","n.a.","n.a.","n.a.","n.a."]
[367,"n.a.","n.a.","n.a.","n.a.","730300","n.a.","n.a.","n.a.","n.a.","n.a.","n.a.","n.a.","n.a.","n.a.","n.a.","n.a.","n.a.","n.a."]
[368,"n.a.","n.a.","n.a.","n.a.","73030010","n.a.","n.a.","n.a.","n.a.","n.a.","n.a.","n.a.","n.a.","n.a.","n.a.","n.a.","n.a.","n.a."]
[369,"n.a.","n.a.","n.a.","n.a.","73030090","n.a.","n.a.","n.a.","n.a.","n.a.","n.a.","n.a.","n.a.","n.a.","n.a.","n.a.","n.a.","n.a."]
[370,"n.a.","n.a.","n.a.","n.a.","7304","n.a.","n.a.","n.a.","n.a.","n.a.","n.a.","n.a.","n.a.","n.a.","n.a.","n.a.","n.a.","n.a."]
[371,{"$f":"IFERROR(INDEX(CNCodes_ListKey,MATCH($A495&\"_\"&B$123,CNCodes_ListNumbering,0)),CONST_NA)","v":"n.a."},"n.a.","n.a.","n.a.","73041100","n.a.","n.a.","n.a.","n.a.","n.a.",{"$f":"IFERROR(INDEX(CNCodes_ListKey,MATCH($A495&\"_\"&L$123,CNCodes_ListNumbering,0)),CONST_NA)","v":"n.a."},"n.a.","n.a.","n.a.","n.a.","n.a.","n.a.","n.a."]
[372,"n.a.","n.a.","n.a.","n.a.","730419","n.a.","n.a.","n.a.","n.a.","n.a.","n.a.","n.a.","n.a.","n.a.","n.a.","n.a.","n.a.","n.a."]
[373,"n.a.","n.a.","n.a.","n.a.","73041910","n.a.","n.a.","n.a.","n.a.","n.a.","n.a.","n.a.","n.a.","n.a.","n.a.","n.a.","n.a.","n.a."]
[374,"n.a.","n.a.","n.a.","n.a.","73041930","n.a.","n.a.","n.a.","n.a.","n.a.","n.a.","n.a.","n.a.","n.a.","n.a.","n.a.","n.a.","n.a."]
[375,"n.a.","n.a.","n.a.","n.a.","73041990","n.a.","n.a.","n.a.","n.a.","n.a.","n.a.","n.a.","n.a.","n.a.","n.a.","n.a.","n.a.","n.a."]
[376,"n.a.","n.a.","n.a.","n.a.","73042200","n.a.","n.a.","n.a.","n.a.","n.a.","n.a.","n.a.","n.a.","n.a.","n.a.","n.a.","n.a.","n.a."]
[377,"n.a.","n.a.","n.a.","n.a.","73042300","n.a.","n.a.","n.a.","n.a.","n.a.","n.a.","n.a.","n.a.","n.a.","n.a.","n.a.","n.a.","n.a."]
[378,"n.a.","n.a.","n.a.","n.a.","73042400","n.a.","n.a.","n.a.","n.a.","n.a.","n.a.","n.a.","n.a.","n.a.","n.a.","n.a.","n.a.","n.a."]
[379,"n.a.","n.a.","n.a.","n.a.","730429","n.a.","n.a.","n.a.","n.a.","n.a.","n.a.","n.a.","n.a.","n.a.","n.a.","n.a.","n.a.","n.a."]
[380,"n.a.","n.a.","n.a.","n.a.","73042910","n.a.","n.a.","n.a.","n.a.","n.a.","n.a.","n.a.","n.a.","n.a.","n.a.","n.a.","n.a.","n.a."]
[381,{"$f":"IFERROR(INDEX(CNCodes_ListKey,MATCH($A505&\"_\"&B$123,CNCodes_ListNumbering,0)),CONST_NA)","v":"n.a."},"n.a.","n.a.","n.a.","73042930","n.a.","n.a.","n.a.","n.a.","n.a.",{"$f":"IFERROR(INDEX(CNCodes_ListKey,MATCH($A505&\"_\"&L$123,CNCodes_ListNumbering,0)),CONST_NA)","v":"n.a."},"n.a.","n.a.","n.a.","n.a.","n.a.","n.a.","n.a."]
[382,"n.a.","n.a.","n.a.","n.a.","73042990","n.a.","n.a.","n.a.","n.a.","n.a.","n.a.","n.a.","n.a.","n.a.","n.a.","n.a.","n.a.","n.a."]
[383,"n.a.","n.a.","n.a.","n.a.","730431","n.a.","n.a.","n.a.","n.a.","n.a.","n.a.","n.a.","n.a.","n.a.","n.a.","n.a.","n.a.","n.a."]
[384,"n.a.","n.a.","n.a.","n.a.","73043120","n.a.","n.a.","n.a.","n.a.","n.a.","n.a.","n.a.","n.a.","n.a.","n.a.","n.a.","n.a.","n.a."]
[385,"n.a.","n.a.","n.a.","n.a.","73043180","n.a.","n.a.","n.a.","n.a.","n.a.","n.a.","n.a.","n.a.","n.a.","n.a.","n.a.","n.a.","n.a."]
[386,"n.a.","n.a.","n.a.","n.a.","730439","n.a.","n.a.","n.a.","n.a.","n.a.","n.a.","n.a.","n.a.","n.a.","n.a.","n.a.","n.a.","n.a."]
[387,"n.a.","n.a.","n.a.","n.a.","73043950","n.a.","n.a.","n.a.","n.a.","n.a.","n.a.","n.a.","n.a.","n.a.","n.a.","n.a.","n.a.","n.a."]
[388,"n.a.","n.a.","n.a.","n.a.","73043982","n.a.","n.a.","n.a.","n.a.","n.a.","n.a.","n.a.","n.a.","n.a.","n.a.","n.a.","n.a.","n.a."]
[389,"n.a.","n.a.","n.a.","n.a.","73043983","n.a.","n.a.","n.a.","n.a.","n.a.","n.a.","n.a.","n.a.","n.a.","n.a.","n.a.","n.a.","n.a."]
[390,"n.a.","n.a.","n.a.","n.a.","73043988","n.a.","n.a.","n.a.","n.a.","n.a.","n.a.","n.a.","n.a.","n.a.","n.a.","n.a.","n.a.","n.a."]
[391,{"$f":"IFERROR(INDEX(CNCodes_ListKey,MATCH($A515&\"_\"&B$123,CNCodes_ListNumbering,0)),CONST_NA)","v":"n.a."},"n.a.","n.a.","n.a.","73044100","n.a.","n.a.","n.a.","n.a.","n.a.",{"$f":"IFERROR(INDEX(CNCodes_ListKey,MATCH($A515&\"_\"&L$123,CNCodes_ListNumbering,0)),CONST_NA)","v":"n.a."},"n.a.","n.a.","n.a.","n.a.","n.a.","n.a.","n.a."]
[392,"n.a.","n.a.","n.a.","n.a.","730449","n.a.","n.a.","n.a.","n.a.","n.a.","n.a.","n.a.","n.a.","n.a.","n.a.","n.a.","n.a.","n.a."]
[393,"n.a.","n.a.","n.a.","n.a.","73044983","n.a.","n.a.","n.a.","n.a.","n.a.","n.a.","n.a.","n.a.","n.a.","n.a.","n.a.","n.a.","n.a."]
[394,"n.a.","n.a.","n.a.","n.a.","73044985","n.a.","n.a.","n.a.","n.a.","n.a.","n.a.","n.a.","n.a.","n.a.","n.a.","n.a.","n.a.","n.a."]
[395,"n.a.","n.a.","n.a.","n.a.","73044989","n.a.","n.a.","n.a.","n.a.","n.a.","n.a.","n.a.","n.a.","n.a.","n.a.","n.a.","n.a.","n.a."]
[396,"n.a.","n.a.","n.a.","n.a.","730451","n.a.","n.a.","n.a.","n.a.","n.a.","n.a.","n.a.","n.a.","n.a.","n.a.","n.a.","n.a.","n.a."]
[397,"n.a.","n.a.","n.a.","n.a.","73045110","n.a.","n.a.","n.a.","n.a.","n.a.","n.a.","n.a.","n.a.","n.a.","n.a.","n.a.","n.a.","n.a."]
[398,"n.a.","n.a.","n.a.","n.a.","73045181","n.a.","n.a.","n.a.","n.a.","n.a.","n.a.","n.a.","n.a.","n.a.","n.a.","n.a.","n.a.","n.a."]
[399,"n.a.","n.a.","n.a.","n.a.","73045189","n.a.","n.a.","n.a.","n.a.","n.a.","n.a.","n.a.","n.a.","n.a.","n.a.","n.a.","n.a.","n.a."]
[400,"n.a.","n.a.","n.a.","n.a.","730459","n.a.","n.a.","n.a.","n.a.","n.a.","n.a.","n.a.","n.a.","n.a.","n.a.","n.a.","n.a.","n.a."]
[401,{"$f":"IFERROR(INDEX(CNCodes_ListKey,MATCH($A525&\"_\"&B$123,CNCodes_ListNumbering,0)),CONST_NA)","v":"n.a."},"n.a.","n.a.","n.a.","73045930","n.a.","n.a.","n.a.","n.a.","n.a.",{"$f":"IFERROR(INDEX(CNCodes_ListKey,MATCH($A525&\"_\"&L$123,CNCodes_ListNumbering,0)),CONST_NA)","v":"n.a."},"n.a.","n.a.","n.a.","n.a.","n.a.","n.a.","n.a."]
[402,"n.a.","n.a.","n.a.","n.a.","73045982","n.a.","n.a.","n.a.","n.a.","n.a.","n.a.","n.a.","n.a.","n.a.","n.a.","n.a.","n.a.","n.a."]
[403,"n.a.","n.a.","n.a.","n.a.","73045983","n.a.","n.a.","n.a.","n.a.","n.a.","n.a.","n.a.","n.a.","n.a.","n.a.","n.a.","n.a.","n.a."]
[404,"n.a.","n.a.","n.a.","n.a.","73045989","n.a.","n.a.","n.a.","n.a.","n.a.","n.a.","n.a.","n.a.","n.a.","n.a.","n.a.","n.a.","n.a."]
[405,"n.a.","n.a.","n.a.","n.a.","73049000","n.a.","n.a.","n.a.","n.a.","n.a.","n.a.","n.a.","n.a.","n.a.","n.a.","n.a.","n.a.","n.a."]
[406,"n.a.","n.a.","n.a.","n.a.","7305","n.a.","n.a.","n.a.","n.a.","n.a.","n.a.","n.a.","n.a.","n.a.","n.a.","n.a.","n.a.","n.a."]
[407,"n.a.","n.a.","n.a.","n.a.","73051100","n.a.","n.a.","n.a.","n.a.","n.a.","n.a.","n.a.","n.a.","n.a.","n.a.","n.a.","n.a.","n.a."]
[408,"n.a.","n.a.","n.a.","n.a.","73051200","n.a.","n.a.","n.a.","n.a.","n.a.","n.a.","n.a.","n.a.","n.a.","n.a.","n.a.","n.a.","n.a."]
[409,"n.a.","n.a.","n.a.","n.a.","73051900","n.a.","n.a.","n.a.","n.a.","n.a.","n.a.","n.a.","n.a.","n.a.","n.a.","n.a.","n.a.","n.a."]
[410,"n.a.","n.a.","n.a.","n.a.","73052000","n.a.","n.a.","n.a.","n.a.","n.a.","n.a.","n.a.","n.a.","n.a.","n.a.","n.a.","n.a.","n.a."]
[411,{"$f":"IFERROR(INDEX(CNCodes_ListKey,MATCH($A535&\"_\"&B$123,CNCodes_ListNumbering,0)),CONST_NA)","v":"n.a."},"n.a.","n.a.","n.a.","73053100","n.a.","n.a.","n.a.","n.a.","n.a.",{"$f":"IFERROR(INDEX(CNCodes_ListKey,MATCH($A535&\"_\"&L$123,CNCodes_ListNumbering,0)),CONST_NA)","v":"n.a."},"n.a.","n.a.","n.a.","n.a.","n.a.","n.a.","n.a."]
[412,"n.a.","n.a.","n.a.","n.a.","73053900","n.a.","n.a.","n.a.","n.a.","n.a.","n.a.","n.a.","n.a.","n.a.","n.a.","n.a.","n.a.","n.a."]
[413,"n.a.","n.a.","n.a.","n.a.","73059000","n.a.","n.a.","n.a.","n.a.","n.a.","n.a.","n.a.","n.a.","n.a.","n.a.","n.a.","n.a.","n.a."]
[414,"n.a.","n.a.","n.a.","n.a.","7306","n.a.","n.a.","n.a.","n.a.","n.a.","n.a.","n.a.","n.a.","n.a.","n.a.","n.a.","n.a.","n.a."]
[415,"n.a.","n.a.","n.a.","n.a.","73061100","n.a.","n.a.","n.a.","n.a.","n.a.","n.a.","n.a.","n.a.","n.a.","n.a.","n.a.","n.a.","n.a."]
[416,"n.a.","n.a.","n.a.","n.a.","73061900","n.a.","n.a.","n.a.","n.a.","n.a.","n.a.","n.a.","n.a.","n.a.","n.a.","n.a.","n.a.","n.a."]
[417,"n.a.","n.a.","n.a.","n.a.","73062100","n.a.","n.a.","n.a.","n.a.","n.a.","n.a.","n.a.","n.a.","n.a.","n.a.","n.a.","n.a.","n.a."]
[418,"n.a.","n.a.","n.a.","n.a.","73062900","n.a.","n.a.","n.a.","n.a.","n.a.","n.a.","n.a.","n.a.","n.a.","n.a.","n.a.","n.a.","n.a."]
[419,"n.a.","n.a.","n.a.","n.a.","730630","n.a.","n.a.","n.a.","n.a.","n.a.","n.a.","n.a.","n.a.","n.a.","n.a.","n.a.","n.a.","n.a."]
[420,"n.a.","n.a.","n.a.","n.a.","73063012","n.a.","n.a.","n.a.","n.a.","n.a.","n.a.","n.a.","n.a.","n.a.","n.a.","n.a.","n.a.","n.a."]
[421,{"$f":"IFERROR(INDEX(CNCodes_ListKey,MATCH($A545&\"_\"&B$123,CNCodes_ListNumbering,0)),CONST_NA)","v":"n.a."},"n.a.","n.a.","n.a.","73063018","n.a.","n.a.","n.a.","n.a.","n.a.",{"$f":"IFERROR(INDEX(CNCodes_ListKey,MATCH($A545&\"_\"&L$123,CNCodes_ListNumbering,0)),CONST_NA)","v":"n.a."},"n.a.","n.a.","n.a.","n.a.","n.a.","n.a.","n.a."]
[422,"n.a.","n.a.","n.a.","n.a.","73063041","n.a.","n.a.","n.a.","n.a.","n.a.","n.a.","n.a.","n.a.","n.a.","n.a.","n.a.","n.a.","n.a."]
[423,"n.a.","n.a.","n.a.","n.a.","73063049","n.a.","n.a.","n.a.","n.a.","n.a.","n.a.","n.a.","n.a.","n.a.","n.a.","n.a.","n.a.","n.a."]
[424,"n.a.","n.a.","n.a.","n.a.","73063072","n.a.","n.a.","n.a.","n.a.","n.a.","n.a.","n.a.","n.a.","n.a.","n.a.","n.a.","n.a.","n.a."]
[425,"n.a.","n.a.","n.a.","n.a.","73063077","n.a.","n.a.","n.a.","n.a.","n.a.","n.a.","n.a.","n.a.","n.a.","n.a.","n.a.","n.a.","n.a."]
[426,"n.a.","n.a.","n.a.","n.a.","73063080","n.a.","n.a.","n.a.","n.a.","n.a.","n.a.","n.a.","n.a.","n.a.","n.a.","n.a.","n.a.","n.a."]
[427,"n.a.","n.a.","n.a.","n.a.","730640","n.a.","n.a.","n.a.","n.a.","n.a.","n.a.","n.a.","n.a.","n.a.","n.a.","n.a.","n.a.","n.a."]
[428,"n.a.","n.a.","n.a.","n.a.","73064020","n.a.","n.a.","n.a.","n.a.","n.a.","n.a.","n.a.","n.a.","n.a.","n.a.","n.a.","n.a.","n.a."]
[429,"n.a.","n.a.","n.a.","n.a.","73064080","n.a.","n.a.","n.a.","n.a.","n.a.","n.a.","n.a.","n.a.","n.a.","n.a.","n.a.","n.a.","n.a."]
[430,"n.a.","n.a.","n.a.","n.a.","730650","n.a.","n.a.","n.a.","n.a.","n.a.","n.a.","n.a.","n.a.","n.a.","n.a.","n.a.","n.a.","n.a."]
[431,{"$f":"IFERROR(INDEX(CNCodes_ListKey,MATCH($A555&\"_\"&B$123,CNCodes_ListNumbering,0)),CONST_NA)","v":"n.a."},"n.a.","n.a.","n.a.","73065021","n.a.","n.a.","n.a.","n.a.","n.a.",{"$f":"IFERROR(INDEX(CNCodes_ListKey,MATCH($A555&\"_\"&L$123,CNCodes_ListNumbering,0)),CONST_NA)","v":"n.a."},"n.a.","n.a.","n.a.","n.a.","n.a.","n.a.","n.a."]
[432,"n.a.","n.a.","n.a.","n.a.","73065029","n.a.","n.a.","n.a.","n.a.","n.a.","n.a.","n.a.","n.a.","n.a.","n.a.","n.a.","n.a.","n.a."]
[433,"n.a.","n.a.","n.a.","n.a.","73065080","n.a.","n.a.","n.a.","n.a.","n.a.","n.a.","n.a.","n.a.","n.a.","n.a.","n.a.","n.a.","n.a."]
[434,"n.a.","n.a.","n.a.","n.a.","730661","n.a.","n.a.","n.a.","n.a.","n.a.","n.a.","n.a.","n.a.","n.a.","n.a.","n.a.","n.a.","n.a."]
[435,"n.a.","n.a.","n.a.","n.a.","73066110","n.a.","n.a.","n.a.","n.a.","n.a.","n.a.","n.a.","n.a.","n.a.","n.a.","n.a.","n.a.","n.a."]
[436,"n.a.","n.a.","n.a.","n.a.","73066192","n.a.","n.a.","n.a.","n.a.","n.a.","n.a.","n.a.","n.a.","n.a.","n.a.","n.a.","n.a.","n.a."]
[437,"n.a.","n.a.","n.a.","n.a.","73066199","n.a.","n.a.","n.a.","n.a.","n.a.","n.a.","n.a.","n.a.","n.a.","n.a.","n.a.","n.a.","n.a."]
[438,"n.a.","n.a.","n.a.","n.a.","730669","n.a.","n.a.","n.a.","n.a.","n.a.","n.a.","n.a.","n.a.","n.a.","n.a.","n.a.","n.a.","n.a."]
[439,"n.a.","n.a.","n.a.","n.a.","73066910","n.a.","n.a.","n.a.","n.a.","n.a.","n.a.","n.a.","n.a.","n.a.","n.a.","n.a.","n.a.","n.a."]
[440,"n.a.","n.a.","n.a.","n.a.","73066990","n.a.","n.a.","n.a.","n.a.","n.a.","n.a.","n.a.","n.a.","n.a.","n.a.","n.a.","n.a.","n.a."]
[441,{"$f":"IFERROR(INDEX(CNCodes_ListKey,MATCH($A565&\"_\"&B$123,CNCodes_ListNumbering,0)),CONST_NA)","v":"n.a."},"n.a.","n.a.","n.a.","73069000","n.a.","n.a.","n.a.","n.a.","n.a.",{"$f":"IFERROR(INDEX(CNCodes_ListKey,MATCH($A565&\"_\"&L$123,CNCodes_ListNumbering,0)),CONST_NA)","v":"n.a."},"n.a.","n.a.","n.a.","n.a.","n.a.","n.a.","n.a."]
[442,"n.a.","n.a.","n.a.","n.a.","7307","n.a.","n.a.","n.a.","n.a.","n.a.","n.a.","n.a.","n.a.","n.a.","n.a.","n.a.","n.a.","n.a."]
[443,"n.a.","n.a.","n.a.","n.a.","730711","n.a.","n.a.","n.a.","n.a.","n.a.","n.a.","n.a.","n.a.","n.a.","n.a.","n.a.","n.a.","n.a."]
[444,"n.a.","n.a.","n.a.","n.a.","73071110","n.a.","n.a.","n.a.","n.a.","n.a.","n.a.","n.a.","n.a.","n.a.","n.a.","n.a.","n.a.","n.a."]
[445,"n.a.","n.a.","n.a.","n.a.","73071190","n.a.","n.a.","n.a.","n.a.","n.a.","n.a.","n.a.","n.a.","n.a.","n.a.","n.a.","n.a.","n.a."]
[446,"n.a.","n.a.","n.a.","n.a.","730719","n.a.","n.a.","n.a.","n.a.","n.a.","n.a.","n.a.","n.a.","n.a.","n.a.","n.a.","n.a.","n.a."]
[447,"n.a.","n.a.","n.a.","n.a.","73071910","n.a.","n.a.","n.a.","n.a.","n.a.","n.a.","n.a.","n.a.","n.a.","n.a.","n.a.","n.a.","n.a."]
[448,"n.a.","n.a.","n.a.","n.a.","73071990","n.a.","n.a.","n.a.","n.a.","n.a.","n.a.","n.a.","n.a.","n.a.","n.a.","n.a.","n.a.","n.a."]
[449,"n.a.","n.a.","n.a.","n.a.","73072100","n.a.","n.a.","n.a.","n.a.","n.a.","n.a.","n.a.","n.a.","n.a.","n.a.","n.a.","n.a.","n.a."]
[450,"n.a.","n.a.","n.a.","n.a.","730722","n.a.","n.a.","n.a.","n.a.","n.a.","n.a.","n.a.","n.a.","n.a.","n.a.","n.a.","n.a.","n.a."]
[451,{"$f":"IFERROR(INDEX(CNCodes_ListKey,MATCH($A575&\"_\"&B$123,CNCodes_ListNumbering,0)),CONST_NA)","v":"n.a."},"n.a.","n.a.","n.a.","73072210","n.a.","n.a.","n.a.","n.a.","n.a.",{"$f":"IFERROR(INDEX(CNCodes_ListKey,MATCH($A575&\"_\"&L$123,CNCodes_ListNumbering,0)),CONST_NA)","v":"n.a."},"n.a.","n.a.","n.a.","n.a.","n.a.","n.a.","n.a."]
[452,"n.a.","n.a.","n.a.","n.a.","73072290","n.a.","n.a.","n.a.","n.a.","n.a.","n.a.","n.a.","n.a.","n.a.","n.a.","n.a.","n.a.","n.a."]
[453,"n.a.","n.a.","n.a.","n.a.","730723","n.a.","n.a.","n.a.","n.a.","n.a.","n.a.","n.a.","n.a.","n.a.","n.a.","n.a.","n.a.","n.a."]
[454,"n.a.","n.a.","n.a.","n.a.","73072310","n.a.","n.a.","n.a.","n.a.","n.a.","n.a.","n.a.","n.a.","n.a.","n.a.","n.a.","n.a.","n.a."]
[455,"n.a.","n.a.","n.a.","n.a.","73072390","n.a.","n.a.","n.a.","n.a.","n.a.","n.a.","n.a.","n.a.","n.a.","n.a.","n.a.","n.a.","n.a."]
[456,"n.a.","n.a.","n.a.","n.a.","730729","n.a.","n.a.","n.a.","n.a.","n.a.","n.a.","n.a.","n.a.","n.a.","n.a.","n.a.","n.a.","n.a."]
[457,"n.a.","n.a.","n.a.","n.a.","73072910","n.a.","n.a.","n.a.","n.a.","n.a.","n.a.","n.a.","n.a.","n.a.","n.a.","n.a.","n.a.","n.a."]
[458,"n.a.","n.a.","n.a.","n.a.","73072980","n.a.","n.a.","n.a.","n.a.","n.a.","n.a.","n.a.","n.a.","n.a.","n.a.","n.a.","n.a.","n.a."]
[459,"n.a.","n.a.","n.a.","n.a.","73079100","n.a.","n.a.","n.a.","n.a.","n.a.","n.a.","n.a.","n.a.","n.a.","n.a.","n.a.","n.a.","n.a."]
[460,"n.a.","n.a.","n.a.","n.a.","730792","n.a.","n.a.","n.a.","n.a.","n.a.","n.a.","n.a.","n.a.","n.a.","n.a.","n.a.","n.a.","n.a."]
[461,{"$f":"IFERROR(INDEX(CNCodes_ListKey,MATCH($A585&\"_\"&B$123,CNCodes_ListNumbering,0)),CONST_NA)","v":"n.a."},"n.a.","n.a.","n.a.","73079210","n.a.","n.a.","n.a.","n.a.","n.a.",{"$f":"IFERROR(INDEX(CNCodes_ListKey,MATCH($A585&\"_\"&L$123,CNCodes_ListNumbering,0)),CONST_NA)","v":"n.a."},"n.a.","n.a.","n.a.","n.a.","n.a.","n.a.","n.a."]
[462,"n.a.","n.a.","n.a.","n.a.","73079290","n.a.","n.a.","n.a.","n.a.","n.a.","n.a.","n.a.","n.a.","n.a.","n.a.","n.a.","n.a.","n.a."]
[463,"n.a.","n.a.","n.a.","n.a.","730793","n.a.","n.a.","n.a.","n.a.","n.a.","n.a.","n.a.","n.a.","n.a.","n.a.","n.a.","n.a.","n.a."]
[464,"n.a.","n.a.","n.a.","n.a.","73079311","n.a.","n.a.","n.a.","n.a.","n.a.","n.a.","n.a.","n.a.","n.a.","n.a.","n.a.","n.a.","n.a."]
[465,"n.a.","n.a.","n.a.","n.a.","73079319","n.a.","n.a.","n.a.","n.a.","n.a.","n.a.","n.a.","n.a.","n.a.","n.a.","n.a.","n.a.","n.a."]
[466,"n.a.","n.a.","n.a.","n.a.","73079391","n.a.","n.a.","n.a.","n.a.","n.a.","n.a.","n.a.","n.a.","n.a.","n.a.","n.a.","n.a.","n.a."]
[467,"n.a.","n.a.","n.a.","n.a.","73079399","n.a.","n.a.","n.a.","n.a.","n.a.","n.a.","n.a.","n.a.","n.a.","n.a.","n.a.","n.a.","n.a."]
[468,"n.a.","n.a.","n.a.","n.a.","730799","n.a.","n.a.","n.a.","n.a.","n.a.","n.a.","n.a.","n.a.","n.a.","n.a.","n.a.","n.a.","n.a."]
[469,"n.a.","n.a.","n.a.","n.a.","73079910","n.a.","n.a.","n.a.","n.a.","n.a.","n.a.","n.a.","n.a.","n.a.","n.a.","n.a.","n.a.","n.a."]
[470,"n.a.","n.a.","n.a.","n.a.","73079980","n.a.","n.a.","n.a.","n.a.","n.a.","n.a.","n.a.","n.a.","n.a.","n.a.","n.a.","n.a.","n.a."]
[471,{"$f":"IFERROR(INDEX(CNCodes_ListKey,MATCH($A595&\"_\"&B$123,CNCodes_ListNumbering,0)),CONST_NA)","v":"n.a."},"n.a.","n.a.","n.a.","7308","n.a.","n.a.","n.a.","n.a.","n.a.",{"$f":"IFERROR(INDEX(CNCodes_ListKey,MATCH($A595&\"_\"&L$123,CNCodes_ListNumbering,0)),CONST_NA)","v":"n.a."},"n.a.","n.a.","n.a.","n.a.","n.a.","n.a.","n.a."]
[472,"n.a.","n.a.","n.a.","n.a.","73081000","n.a.","n.a.","n.a.","n.a.","n.a.","n.a.","n.a.","n.a.","n.a.","n.a.","n.a.","n.a.","n.a."]
[473,"n.a.","n.a.","n.a.","n.a.","73082000","n.a.","n.a.","n.a.","n.a.","n.a.","n.a.","n.a.","n.a.","n.a.","n.a.","n.a.","n.a.","n.a."]
[474,"n.a.","n.a.","n.a.","n.a.","73083000","n.a.","n.a.","n.a.","n.a.","n.a.","n.a.","n.a.","n.a.","n.a.","n.a.","n.a.","n.a.","n.a."]
[475,"n.a.","n.a.","n.a.","n.a.","73084000","n.a.","n.a.","n.a.","n.a.","n.a.","n.a.","n.a.","n.a.","n.a.","n.a.","n.a.","n.a.","n.a."]
[476,"n.a.","n.a.","n.a.","n.a.","730890","n.a.","n.a.","n.a.","n.a.","n.a.","n.a.","n.a.","n.a.","n.a.","n.a.","n.a.","n.a.","n.a."]
[477,"n.a.","n.a.","n.a.","n.a.","73089051","n.a.","n.a.","n.a.","n.a.","n.a.","n.a.","n.a.","n.a.","n.a.","n.a.","n.a.","n.a.","n.a."]
[478,"n.a.","n.a.","n.a.","n.a.","73089059","n.a.","n.a.","n.a.","n.a.","n.a.","n.a.","n.a.","n.a.","n.a.","n.a.","n.a.","n.a.","n.a."]
[479,"n.a.","n.a.","n.a.","n.a.","73089098","n.a.","n.a.","n.a.","n.a.","n.a.","n.a.","n.a.","n.a.","n.a.","n.a.","n.a.","n.a.","n.a."]
[480,"n.a.","n.a.","n.a.","n.a.","730900","n.a.","n.a.","n.a.","n.a.","n.a.","n.a.","n.a.","n.a.","n.a.","n.a.","n.a.","n.a.","n.a."]
[481,{"$f":"IFERROR(INDEX(CNCodes_ListKey,MATCH($A605&\"_\"&B$123,CNCodes_ListNumbering,0)),CONST_NA)","v":"n.a."},"n.a.","n.a.","n.a.","73090010","n.a.","n.a.","n.a.","n.a.","n.a.",{"$f":"IFERROR(INDEX(CNCodes_ListKey,MATCH($A605&\"_\"&L$123,CNCodes_ListNumbering,0)),CONST_NA)","v":"n.a."},"n.a.","n.a.","n.a.","n.a.","n.a.","n.a.","n.a."]
[482,"n.a.","n.a.","n.a.","n.a.","73090030","n.a.","n.a.","n.a.","n.a.","n.a.","n.a.","n.a.","n.a.","n.a.","n.a.","n.a.","n.a.","n.a."]
[483,"n.a.","n.a.","n.a.","n.a.","73090051","n.a.","n.a.","n.a.","n.a.","n.a.","n.a.","n.a.","n.a.","n.a.","n.a.","n.a.","n.a.","n.a."]
[484,"n.a.","n.a.","n.a.","n.a.","73090059","n.a.","n.a.","n.a.","n.a.","n.a.","n.a.","n.a.","n.a.","n.a.","n.a.","n.a.","n.a.","n.a."]
[485,"n.a.","n.a.","n.a.","n.a.","73090090","n.a.","n.a.","n.a.","n.a.","n.a.","n.a.","n.a.","n.a.","n.a.","n.a.","n.a.","n.a.","n.a."]
[486,"n.a.","n.a.","n.a.","n.a.","7310","n.a.","n.a.","n.a.","n.a.","n.a.","n.a.","n.a.","n.a.","n.a.","n.a.","n.a.","n.a.","n.a."]
[487,"n.a.","n.a.","n.a.","n.a.","73101000","n.a.","n.a.","n.a.","n.a.","n.a.","n.a.","n.a.","n.a.","n.a.","n.a.","n.a.","n.a.","n.a."]
[488,"n.a.","n.a.","n.a.","n.a.","731021","n.a.","n.a.","n.a.","n.a.","n.a.","n.a.","n.a.","n.a.","n.a.","n.a.","n.a.","n.a.","n.a."]
[489,"n.a.","n.a.","n.a.","n.a.","73102111","n.a.","n.a.","n.a.","n.a.","n.a.","n.a.","n.a.","n.a.","n.a.","n.a.","n.a.","n.a.","n.a."]
[490,"n.a.","n.a.","n.a.","n.a.","73102119","n.a.","n.a.","n.a.","n.a.","n.a.","n.a.","n.a.","n.a.","n.a.","n.a.","n.a.","n.a.","n.a."]
[491,{"$f":"IFERROR(INDEX(CNCodes_ListKey,MATCH($A615&\"_\"&B$123,CNCodes_ListNumbering,0)),CONST_NA)","v":"n.a."},"n.a.","n.a.","n.a.","73102191","n.a.","n.a.","n.a.","n.a.","n.a.",{"$f":"IFERROR(INDEX(CNCodes_ListKey,MATCH($A615&\"_\"&L$123,CNCodes_ListNumbering,0)),CONST_NA)","v":"n.a."},"n.a.","n.a.","n.a.","n.a.","n.a.","n.a.","n.a."]
[492,"n.a.","n.a.","n.a.","n.a.","73102199","n.a.","n.a.","n.a.","n.a.","n.a.","n.a.","n.a.","n.a.","n.a.","n.a.","n.a.","n.a.","n.a."]
[493,"n.a.","n.a.","n.a.","n.a.","731029","n.a.","n.a.","n.a.","n.a.","n.a.","n.a.","n.a.","n.a.","n.a.","n.a.","n.a.","n.a.","n.a."]
[494,"n.a.","n.a.","n.a.","n.a.","73102910","n.a.","n.a.","n.a.","n.a.","n.a.","n.a.","n.a.","n.a.","n.a.","n.a.","n.a.","n.a.","n.a."]
[495,"n.a.","n.a.","n.a.","n.a.","73102990","n.a.","n.a.","n.a.","n.a.","n.a.","n.a.","n.a.","n.a.","n.a.","n.a.","n.a.","n.a.","n.a."]
[496,"n.a.","n.a.","n.a.","n.a.","731100","n.a.","n.a.","n.a.","n.a.","n.a.","n.a.","n.a.","n.a.","n.a.","n.a.","n.a.","n.a.","n.a."]
[497,"n.a.","n.a.","n.a.","n.a.","73110011","n.a.","n.a.","n.a.","n.a.","n.a.","n.a.","n.a.","n.a.","n.a.","n.a.","n.a.","n.a.","n.a."]
[498,"n.a.","n.a.","n.a.","n.a.","73110013","n.a.","n.a.","n.a.","n.a.","n.a.","n.a.","n.a.","n.a.","n.a.","n.a.","n.a.","n.a.","n.a."]
[499,"n.a.","n.a.","n.a.","n.a.","73110019","n.a.","n.a.","n.a.","n.a.","n.a.","n.a.","n.a.","n.a.","n.a.","n.a.","n.a.","n.a.","n.a."]
[500,"n.a.","n.a.","n.a.","n.a.","73110030","n.a.","n.a.","n.a.","n.a.","n.a.","n.a.","n.a.","n.a.","n.a.","n.a.","n.a.","n.a.","n.a."]
[501,{"$f":"IFERROR(INDEX(CNCodes_ListKey,MATCH($A625&\"_\"&B$123,CNCodes_ListNumbering,0)),CONST_NA)","v":"n.a."},"n.a.","n.a.","n.a.","73110091","n.a.","n.a.","n.a.","n.a.","n.a.",{"$f":"IFERROR(INDEX(CNCodes_ListKey,MATCH($A625&\"_\"&L$123,CNCodes_ListNumbering,0)),CONST_NA)","v":"n.a."},"n.a.","n.a.","n.a.","n.a.","n.a.","n.a.","n.a."]
[502,"n.a.","n.a.","n.a.","n.a.","73110099","n.a.","n.a.","n.a.","n.a.","n.a.","n.a.","n.a.","n.a.","n.a.","n.a.","n.a.","n.a.","n.a."]
[503,"n.a.","n.a.","n.a.","n.a.","7318","n.a.","n.a.","n.a.","n.a.","n.a.","n.a.","n.a.","n.a.","n.a.","n.a.","n.a.","n.a.","n.a."]
[504,"n.a.","n.a.","n.a.","n.a.","73181100","n.a.","n.a.","n.a.","n.a.","n.a.","n.a.","n.a.","n.a.","n.a.","n.a.","n.a.","n.a.","n.a."]
[505,"n.a.","n.a.","n.a.","n.a.","731812","n.a.","n.a.","n.a.","n.a.","n.a.","n.a.","n.a.","n.a.","n.a.","n.a.","n.a.","n.a.","n.a."]
[506,"n.a.","n.a.","n.a.","n.a.","73181210","n.a.","n.a.","n.a.","n.a.","n.a.","n.a.","n.a.","n.a.","n.a.","n.a.","n.a.","n.a.","n.a."]
[507,"n.a.","n.a.","n.a.","n.a.","73181290","n.a.","n.a.","n.a.","n.a.","n.a.","n.a.","n.a.","n.a.","n.a.","n.a.","n.a.","n.a.","n.a."]
[508,"n.a.","n.a.","n.a.","n.a.","73181300","n.a.","n.a.","n.a.","n.a.","n.a.","n.a.","n.a.","n.a.","n.a.","n.a.","n.a.","n.a.","n.a."]
[509,"n.a.","n.a.","n.a.","n.a.","731814","n.a.","n.a.","n.a.","n.a.","n.a.","n.a.","n.a.","n.a.","n.a.","n.a.","n.a.","n.a.","n.a."]
[510,"n.a.","n.a.","n.a.","n.a.","73181410","n.a.","n.a.","n.a.","n.a.","n.a.","n.a.","n.a.","n.a.","n.a.","n.a.","n.a.","n.a.","n.a."]
[511,{"$f":"IFERROR(INDEX(CNCodes_ListKey,MATCH($A635&\"_\"&B$123,CNCodes_ListNumbering,0)),CONST_NA)","v":"n.a."},"n.a.","n.a.","n.a.","73181491","n.a.","n.a.","n.a.","n.a.","n.a.",{"$f":"IFERROR(INDEX(CNCodes_ListKey,MATCH($A635&\"_\"&L$123,CNCodes_ListNumbering,0)),CONST_NA)","v":"n.a."},"n.a.","n.a.","n.a.","n.a.","n.a.","n.a.","n.a."]
[512,"n.a.","n.a.","n.a.","n.a.","73181499","n.a.","n.a.","n.a.","n.a.","n.a.","n.a.","n.a.","n.a.","n.a.","n.a.","n.a.","n.a.","n.a."]
[513,"n.a.","n.a.","n.a.","n.a.","731815","n.a.","n.a.","n.a.","n.a.","n.a.","n.a.","n.a.","n.a.","n.a.","n.a.","n.a.","n.a.","n.a."]
[514,"n.a.","n.a.","n.a.","n.a.","73181520","n.a.","n.a.","n.a.","n.a.","n.a.","n.a.","n.a.","n.a.","n.a.","n.a.","n.a.","n.a.","n.a."]
[515,"n.a.","n.a.","n.a.","n.a.","73181535","n.a.","n.a.","n.a.","n.a.","n.a.","n.a.","n.a.","n.a.","n.a.","n.a.","n.a.","n.a.","n.a."]
[516,"n.a.","n.a.","n.a.","n.a.","73181542","n.a.","n.a.","n.a.","n.a.","n.a.","n.a.","n.a.","n.a.","n.a.","n.a.","n.a.","n.a.","n.a."]
[517,"n.a.","n.a.","n.a.","n.a.","73181548","n.a.","n.a.","n.a.","n.a.","n.a.","n.a.","n.a.","n.a.","n.a.","n.a.","n.a.","n.a.","n.a."]
[518,"n.a.","n.a.","n.a.","n.a.","73181552","n.a.","n.a.","n.a.","n.a.","n.a.","n.a.","n.a.","n.a.","n.a.","n.a.","n.a.","n.a.","n.a."]
[519,"n.a.","n.a.","n.a.","n.a.","73181558","n.a.","n.a.","n.a.","n.a.","n.a.","n.a.","n.a.","n.a.","n.a.","n.a.","n.a.","n.a.","n.a."]
[520,"n.a.","n.a.","n.a.","n.a.","73181562","n.a.","n.a.","n.a.","n.a.","n.a.","n.a.","n.a.","n.a.","n.a.","n.a.","n.a.","n.a.","n.a."]
[521,{"$f":"IFERROR(INDEX(CNCodes_ListKey,MATCH($A645&\"_\"&B$123,CNCodes_ListNumbering,0)),CONST_NA)","v":"n.a."},"n.a.","n.a.","n.a.","73181568","n.a.","n.a.","n.a.","n.a.","n.a.",{"$f":"IFERROR(INDEX(CNCodes_ListKey,MATCH($A645&\"_\"&L$123,CNCodes_ListNumbering,0)),CONST_NA)","v":"n.a."},"n.a.","n.a.","n.a.","n.a.","n.a.","n.a.","n.a."]
[522,"n.a.","n.a.","n.a.","n.a.","73181575","n.a.","n.a.","n.a.","n.a.","n.a.","n.a.","n.a.","n.a.","n.a.","n.a.","n.a.","n.a.","n.a."]
[523,"n.a.","n.a.","n.a.","n.a.","73181582","n.a.","n.a.","n.a.","n.a.","n.a.","n.a.","n.a.","n.a.","n.a.","n.a.","n.a.","n.a.","n.a."]
[524,"n.a.","n.a.","n.a.","n.a.","73181588","n.a.","n.a.","n.a.","n.a.","n.a.","n.a.","n.a.","n.a.","n.a.","n.a.","n.a.","n.a.","n.a."]
[525,"n.a.","n.a.","n.a.","n.a.","73181595","n.a.","n.a.","n.a.","n.a.","n.a.","n.a.","n.a.","n.a.","n.a.","n.a.","n.a.","n.a.","n.a."]
[526,"n.a.","n.a.","n.a.","n.a.","731816","n.a.","n.a.","n.a.","n.a.","n.a.","n.a.","n.a.","n.a.","n.a.","n.a.","n.a.","n.a.","n.a."]
[527,"n.a.","n.a.","n.a.","n.a.","73181631","n.a.","n.a.","n.a.","n.a.","n.a.","n.a.","n.a.","n.a.","n.a.","n.a.","n.a.","n.a.","n.a."]
[528,"n.a.","n.a.","n.a.","n.a.","73181639","n.a.","n.a.","n.a.","n.a.","n.a.","n.a.","n.a.","n.a.","n.a.","n.a.","n.a.","n.a.","n.a."]
[529,"n.a.","n.a.","n.a.","n.a.","73181640","n.a.","n.a.","n.a.","n.a.","n.a.","n.a.","n.a.","n.a.","n.a.","n.a.","n.a.","n.a.","n.a."]
[530,"n.a.","n.a.","n.a.","n.a.","73181660","n.a.","n.a.","n.a.","n.a.","n.a.","n.a.","n.a.","n.a.","n.a.","n.a.","n.a.","n.a.","n.a."]
[531,{"$f":"IFERROR(INDEX(CNCodes_ListKey,MATCH($A655&\"_\"&B$123,CNCodes_ListNumbering,0)),CONST_NA)","v":"n.a."},"n.a.","n.a.","n.a.","73181692","n.a.","n.a.","n.a.","n.a.","n.a.",{"$f":"IFERROR(INDEX(CNCodes_ListKey,MATCH($A655&\"_\"&L$123,CNCodes_ListNumbering,0)),CONST_NA)","v":"n.a."},"n.a.","n.a.","n.a.","n.a.","n.a.","n.a.","n.a."]
[532,"n.a.","n.a.","n.a.","n.a.","73181699","n.a.","n.a.","n.a.","n.a.","n.a.","n.a.","n.a.","n.a.","n.a.","n.a.","n.a.","n.a.","n.a."]
[533,"n.a.","n.a.","n.a.","n.a.","73181900","n.a.","n.a.","n.a.","n.a.","n.a.","n.a.","n.a.","n.a.","n.a.","n.a.","n.a.","n.a.","n.a."]
[534,"n.a.","n.a.","n.a.","n.a.","73182100","n.a.","n.a.","n.a.","n.a.","n.a.","n.a.","n.a.","n.a.","n.a.","n.a.","n.a.","n.a.","n.a."]
[535,"n.a.","n.a.","n.a.","n.a.","73182200","n.a.","n.a.","n.a.","n.a.","n.a.","n.a.","n.a.","n.a.","n.a.","n.a.","n.a.","n.a.","n.a."]
[536,"n.a.","n.a.","n.a.","n.a.","73182300","n.a.","n.a.","n.a.","n.a.","n.a.","n.a.","n.a.","n.a.","n.a.","n.a.","n.a.","n.a.","n.a."]
[537,"n.a.","n.a.","n.a.","n.a.","73182400","n.a.","n.a.","n.a.","n.a.","n.a.","n.a.","n.a.","n.a.","n.a.","n.a.","n.a.","n.a.","n.a."]
[538,"n.a.","n.a.","n.a.","n.a.","73182900","n.a.","n.a.","n.a.","n.a.","n.a.","n.a.","n.a.","n.a.","n.a.","n.a.","n.a.","n.a.","n.a."]
[539,"n.a.","n.a.","n.a.","n.a.","7326","n.a.","n.a.","n.a.","n.a.","n.a.","n.a.","n.a.","n.a.","n.a.","n.a.","n.a.","n.a.","n.a."]
[540,"n.a.","n.a.","n.a.","n.a.","73261100","n.a.","n.a.","n.a.","n.a.","n.a.","n.a.","n.a.","n.a.","n.a.","n.a.","n.a.","n.a.","n.a."]
[541,{"$f":"IFERROR(INDEX(CNCodes_ListKey,MATCH($A665&\"_\"&B$123,CNCodes_ListNumbering,0)),CONST_NA)","v":"n.a."},"n.a.","n.a.","n.a.","732619","n.a.","n.a.","n.a.","n.a.","n.a.",{"$f":"IFERROR(INDEX(CNCodes_ListKey,MATCH($A665&\"_\"&L$123,CNCodes_ListNumbering,0)),CONST_NA)","v":"n.a."},"n.a.","n.a.","n.a.","n.a.","n.a.","n.a.","n.a."]
[542,"n.a.","n.a.","n.a.","n.a.","73261910","n.a.","n.a.","n.a.","n.a.","n.a.","n.a.","n.a.","n.a.","n.a.","n.a.","n.a.","n.a.","n.a."]
[543,"n.a.","n.a.","n.a.","n.a.","73261990","n.a.","n.a.","n.a.","n.a.","n.a.","n.a.","n.a.","n.a.","n.a.","n.a.","n.a.","n.a.","n.a."]
[544,"n.a.","n.a.","n.a.","n.a.","73262000","n.a.","n.a.","n.a.","n.a.","n.a.","n.a.","n.a.","n.a.","n.a.","n.a.","n.a.","n.a.","n.a."]
[545,"n.a.","n.a.","n.a.","n.a.","732690","n.a.","n.a.","n.a.","n.a.","n.a.","n.a.","n.a.","n.a.","n.a.","n.a.","n.a.","n.a.","n.a."]
[546,"n.a.","n.a.","n.a.","n.a.","73269030","n.a.","n.a.","n.a.","n.a.","n.a.","n.a.","n.a.","n.a.","n.a.","n.a.","n.a.","n.a.","n.a."]
[547,"n.a.","n.a.","n.a.","n.a.","73269040","n.a.","n.a.","n.a.","n.a.","n.a.","n.a.","n.a.","n.a.","n.a.","n.a.","n.a.","n.a.","n.a."]
[548,"n.a.","n.a.","n.a.","n.a.","73269050","n.a.","n.a.","n.a.","n.a.","n.a.","n.a.","n.a.","n.a.","n.a.","n.a.","n.a.","n.a.","n.a."]
[549,"n.a.","n.a.","n.a.","n.a.","73269060","n.a.","n.a.","n.a.","n.a.","n.a.","n.a.","n.a.","n.a.","n.a.","n.a.","n.a.","n.a.","n.a."]
[550,"n.a.","n.a.","n.a.","n.a.","73269092","n.a.","n.a.","n.a.","n.a.","n.a.","n.a.","n.a.","n.a.","n.a.","n.a.","n.a.","n.a.","n.a."]
[551,{"$f":"IFERROR(INDEX(CNCodes_ListKey,MATCH($A675&\"_\"&B$123,CNCodes_ListNumbering,0)),CONST_NA)","v":"n.a."},"n.a.","n.a.","n.a.","73269094","n.a.","n.a.","n.a.","n.a.","n.a.",{"$f":"IFERROR(INDEX(CNCodes_ListKey,MATCH($A675&\"_\"&L$123,CNCodes_ListNumbering,0)),CONST_NA)","v":"n.a."},"n.a.","n.a.","n.a.","n.a.","n.a.","n.a.","n.a."]
[552,"n.a.","n.a.","n.a.","n.a.","73269096","n.a.","n.a.","n.a.","n.a.","n.a.","n.a.","n.a.","n.a.","n.a.","n.a.","n.a.","n.a.","n.a."]
[553,"n.a.","n.a.","n.a.","n.a.","73269098","n.a.","n.a.","n.a.","n.a.","n.a.","n.a.","n.a.","n.a.","n.a.","n.a.","n.a.","n.a.","n.a."]
[554,"n.a.","n.a.","n.a.","n.a.","n.a.","n.a.","n.a.","n.a.","n.a.","n.a.","n.a.","n.a.","n.a.","n.a.","n.a.","n.a.","n.a.","n.a."]
[555,"n.a.","n.a.","n.a.","n.a.","n.a.","n.a.","n.a.","n.a.","n.a.","n.a.","n.a.","n.a.","n.a.","n.a.","n.a.","n.a.","n.a.","n.a."]
[556,"n.a.","n.a.","n.a.","n.a.","n.a.","n.a.","n.a.","n.a.","n.a.","n.a.","n.a.","n.a.","n.a.","n.a.","n.a.","n.a.","n.a.","n.a."]
[557,"n.a.","n.a.","n.a.","n.a.","n.a.","n.a.","n.a.","n.a.","n.a.","n.a.","n.a.","n.a.","n.a.","n.a.","n.a.","n.a.","n.a.","n.a."]
[558,"n.a.","n.a.","n.a.","n.a.","n.a.","n.a.","n.a.","n.a.","n.a.","n.a.","n.a.","n.a.","n.a.","n.a.","n.a.","n.a.","n.a.","n.a."]
[559,"n.a.","n.a.","n.a.","n.a.","n.a.","n.a.","n.a.","n.a.","n.a.","n.a.","n.a.","n.a.","n.a.","n.a.","n.a.","n.a.","n.a.","n.a."]
[560,"n.a.","n.a.","n.a.","n.a.","n.a.","n.a.","n.a.","n.a.","n.a.","n.a.","n.a.","n.a.","n.a.","n.a.","n.a.","n.a.","n.a.","n.a."]
[561,{"$f":"IFERROR(INDEX(CNCodes_ListKey,MATCH($A685&\"_\"&B$123,CNCodes_ListNumbering,0)),CONST_NA)","v":"n.a."},"n.a.","n.a.","n.a.","n.a.","n.a.","n.a.","n.a.","n.a.","n.a.",{"$f":"IFERROR(INDEX(CNCodes_ListKey,MATCH($A685&\"_\"&L$123,CNCodes_ListNumbering,0)),CONST_NA)","v":"n.a."},"n.a.","n.a.","n.a.","n.a.","n.a.","n.a.","n.a."]
[562,"n.a.","n.a.","n.a.","n.a.","n.a.","n.a.","n.a.","n.a.","n.a.","n.a.","n.a.","n.a.","n.a.","n.a.","n.a.","n.a.","n.a.","n.a."]
[563,"n.a.","n.a.","n.a.","n.a.","n.a.","n.a.","n.a.","n.a.","n.a.","n.a.","n.a.","n.a.","n.a.","n.a.","n.a.","n.a.","n.a.","n.a."]
[564,"n.a.","n.a.","n.a.","n.a.","n.a.","n.a.","n.a.","n.a.","n.a.","n.a.","n.a.","n.a.","n.a.","n.a.","n.a.","n.a.","n.a.","n.a."]
[565,"n.a.","n.a.","n.a.","n.a.","n.a.","n.a.","n.a.","n.a.","n.a.","n.a.","n.a.","n.a.","n.a.","n.a.","n.a.","n.a.","n.a.","n.a."]
[566,"n.a.","n.a.","n.a.","n.a.","n.a.","n.a.","n.a.","n.a.","n.a.","n.a.","n.a.","n.a.","n.a.","n.a.","n.a.","n.a.","n.a.","n.a."]
[567,"n.a.","n.a.","n.a.","n.a.","n.a.","n.a.","n.a.","n.a.","n.a.","n.a.","n.a.","n.a.","n.a.","n.a.","n.a.","n.a.","n.a.","n.a."]
[568,"n.a.","n.a.","n.a.","n.a.","n.a.","n.a.","n.a.","n.a.","n.a.","n.a.","n.a.","n.a.","n.a.","n.a.","n.a.","n.a.","n.a.","n.a."]
[569,"n.a.","n.a.","n.a.","n.a.","n.a.","n.a.","n.a.","n.a.","n.a.","n.a.","n.a.","n.a.","n.a.","n.a.","n.a.","n.a.","n.a.","n.a."]
[570,"n.a.","n.a.","n.a.","n.a.","n.a.","n.a.","n.a.","n.a.","n.a.","n.a.","n.a.","n.a.","n.a.","n.a.","n.a.","n.a.","n.a.","n.a."]
[571,{"$f":"IFERROR(INDEX(CNCodes_ListKey,MATCH($A695&\"_\"&B$123,CNCodes_ListNumbering,0)),CONST_NA)","v":"n.a."},"n.a.","n.a.","n.a.","n.a.","n.a.","n.a.","n.a.","n.a.","n.a.",{"$f":"IFERROR(INDEX(CNCodes_ListKey,MATCH($A695&\"_\"&L$123,CNCodes_ListNumbering,0)),CONST_NA)","v":"n.a."},"n.a.","n.a.","n.a.","n.a.","n.a.","n.a.","n.a."]
[572,"n.a.","n.a.","n.a.","n.a.","n.a.","n.a.","n.a.","n.a.","n.a.","n.a.","n.a.","n.a.","n.a.","n.a.","n.a.","n.a.","n.a.","n.a."]
[573,"n.a.","n.a.","n.a.","n.a.","n.a.","n.a.","n.a.","n.a.","n.a.","n.a.","n.a.","n.a.","n.a.","n.a.","n.a.","n.a.","n.a.","n.a."]
[574,"n.a.","n.a.","n.a.","n.a.","n.a.","n.a.","n.a.","n.a.","n.a.","n.a.","n.a.","n.a.","n.a.","n.a.","n.a.","n.a.","n.a.","n.a."]
[575,"n.a.","n.a.","n.a.","n.a.","n.a.","n.a.","n.a.","n.a.","n.a.","n.a.","n.a.","n.a.","n.a.","n.a.","n.a.","n.a.","n.a.","n.a."]
[576,"n.a.","n.a.","n.a.","n.a.","n.a.","n.a.","n.a.","n.a.","n.a.","n.a.","n.a.","n.a.","n.a.","n.a.","n.a.","n.a.","n.a.","n.a."]
[577,"n.a.","n.a.","n.a.","n.a.","n.a.","n.a.","n.a.","n.a.","n.a.","n.a.","n.a.","n.a.","n.a.","n.a.","n.a.","n.a.","n.a.","n.a."]
[578,"n.a.","n.a.","n.a.","n.a.","n.a.","n.a.","n.a.","n.a.","n.a.","n.a.","n.a.","n.a.","n.a.","n.a.","n.a.","n.a.","n.a.","n.a."]
[579,"n.a.","n.a.","n.a.","n.a.","n.a.","n.a.","n.a.","n.a.","n.a.","n.a.","n.a.","n.a.","n.a.","n.a.","n.a.","n.a.","n.a.","n.a."]
[580,"n.a.","n.a.","n.a.","n.a.","n.a.","n.a.","n.a.","n.a.","n.a.","n.a.","n.a.","n.a.","n.a.","n.a.","n.a.","n.a.","n.a.","n.a."]
[581,{"$f":"IFERROR(INDEX(CNCodes_ListKey,MATCH($A705&\"_\"&B$123,CNCodes_ListNumbering,0)),CONST_NA)","v":"n.a."},"n.a.","n.a.","n.a.","n.a.","n.a.","n.a.","n.a.","n.a.","n.a.",{"$f":"IFERROR(INDEX(CNCodes_ListKey,MATCH($A705&\"_\"&L$123,CNCodes_ListNumbering,0)),CONST_NA)","v":"n.a."},"n.a.","n.a.","n.a.","n.a.","n.a.","n.a.","n.a."]
[582,"n.a.","n.a.","n.a.","n.a.","n.a.","n.a.","n.a.","n.a.","n.a.","n.a.","n.a.","n.a.","n.a.","n.a.","n.a.","n.a.","n.a.","n.a."]
[583,"n.a.","n.a.","n.a.","n.a.","n.a.","n.a.","n.a.","n.a.","n.a.","n.a.","n.a.","n.a.","n.a.","n.a.","n.a.","n.a.","n.a.","n.a."]
[584,"n.a.","n.a.","n.a.","n.a.","n.a.","n.a.","n.a.","n.a.","n.a.","n.a.","n.a.","n.a.","n.a.","n.a.","n.a.","n.a.","n.a.","n.a."]
[585,"n.a.","n.a.","n.a.","n.a.","n.a.","n.a.","n.a.","n.a.","n.a.","n.a.","n.a.","n.a.","n.a.","n.a.","n.a.","n.a.","n.a.","n.a."]
[586,"n.a.","n.a.","n.a.","n.a.","n.a.","n.a.","n.a.","n.a.","n.a.","n.a.","n.a.","n.a.","n.a.","n.a.","n.a.","n.a.","n.a.","n.a."]
[587,"n.a.","n.a.","n.a.","n.a.","n.a.","n.a.","n.a.","n.a.","n.a.","n.a.","n.a.","n.a.","n.a.","n.a.","n.a.","n.a.","n.a.","n.a."]
[588,"n.a.","n.a.","n.a.","n.a.","n.a.","n.a.","n.a.","n.a.","n.a.","n.a.","n.a.","n.a.","n.a.","n.a.","n.a.","n.a.","n.a.","n.a."]
[589,"n.a.","n.a.","n.a.","n.a.","n.a.","n.a.","n.a.","n.a.","n.a.","n.a.","n.a.","n.a.","n.a.","n.a.","n.a.","n.a.","n.a.","n.a."]
[590,"n.a.","n.a.","n.a.","n.a.","n.a.","n.a.","n.a.","n.a.","n.a.","n.a.","n.a.","n.a.","n.a.","n.a.","n.a.","n.a.","n.a.","n.a."]
[591,"n.a.","n.a.","n.a.","n.a.","n.a.","n.a.","n.a.","n.a.","n.a.","n.a.","n.a.","n.a.","n.a.","n.a.","n.a.","n.a.","n.a.","n.a."]
[592,"n.a.","n.a.","n.a.","n.a.","n.a.","n.a.","n.a.","n.a.","n.a.","n.a.","n.a.","n.a.","n.a.","n.a.","n.a.","n.a.","n.a.","n.a."]
[593,"n.a.","n.a.","n.a.","n.a.","n.a.","n.a.","n.a.","n.a.","n.a.","n.a.","n.a.","n.a.","n.a.","n.a.","n.a.","n.a.","n.a.","n.a."]
[594,"n.a.","n.a.","n.a.","n.a.","n.a.","n.a.","n.a.","n.a.","n.a.","n.a.","n.a.","n.a.","n.a.","n.a.","n.a.","n.a.","n.a.","n.a."]
[595,"n.a.","n.a.","n.a.","n.a.","n.a.","n.a.","n.a.","n.a.","n.a.","n.a.","n.a.","n.a.","n.a.","n.a.","n.a.","n.a.","n.a.","n.a."]
[596,"n.a.","n.a.","n.a.","n.a.","n.a.","n.a.","n.a.","n.a.","n.a.","n.a.","n.a.","n.a.","n.a.","n.a.","n.a.","n.a.","n.a.","n.a."]
[597,{"$f":"IFERROR(INDEX(CNCodes_ListKey,MATCH($A721&\"_\"&B$123,CNCodes_ListNumbering,0)),CONST_NA)","v":"n.a."},"n.a.","n.a.","n.a.","n.a.","n.a.","n.a.","n.a.","n.a.","n.a.","n.a.","n.a.","n.a.","n.a.","n.a.","n.a.",{"$f":"IFERROR(INDEX(CNCodes_ListKey,MATCH($A721&\"_\"&R$123,CNCodes_ListNumbering,0)),CONST_NA)","v":"n.a."},"n.a."]
[598,"n.a.","n.a.","n.a.","n.a.","n.a.","n.a.","n.a.","n.a.","n.a.","n.a.","n.a.","n.a.","n.a.","n.a.","n.a.","n.a.","n.a.","n.a."]
[599,"n.a.","n.a.","n.a.","n.a.","n.a.","n.a.","n.a.","n.a.","n.a.","n.a.","n.a.","n.a.","n.a.","n.a.","n.a.","n.a.","n.a.","n.a."]
[600,"n.a.","n.a.","n.a.","n.a.","n.a.","n.a.","n.a.","n.a.","n.a.","n.a.","n.a.","n.a.","n.a.","n.a.","n.a.","n.a.","n.a.","n.a."]

{"sheet":"Parameters_CNCodes","index":16,"n_rows":752,"n_cols":8,"rows_kept":752,"hidden":true}
["ausblenden",{"$nulls":4},{"$f":"IF(E1=\" --- \",\"\",COUNTIF($E1:E$3,E1)&\"_\"&E1)","v":"0_"},null,"ausblenden"]
["ausblenden",null,"CNCodes_ListNames","CNCodes_ListKey",null,"CNCodes_ListNumbering"]
["CNKEY","CODE_EN","SELFTEXT","CODE_EN","CBAM good","Numbering",null,"SELFTEXT_EN"]
["250700800080","2507 00 80",{"$f":"Translations!$B$694","v":"Kaolinic clays (other than kaolin)"},{"$f":"SUBSTITUTE(B4,\" \",\"\")","v":"25070080"},{"$f":"Translations!$B$666","v":"Calcined clays "},{"$f":"IF(E4=\" --- \",\"\",COUNTIF($E$3:E4,E4)&\"_\"&E4)","v":"1_Calcined clays "},null,"Kaolinic clays (other than kaolin)"]
["252310000080","2523 10 00",{"$f":"Translations!$B$695","v":"Cement clinkers"},{"$f":"SUBSTITUTE(B5,\" \",\"\")","v":"25231000"},{"$f":"Translations!$B$665","v":"Cement clinker"},{"$f":"IF(E5=\" --- \",\"\",COUNTIF($E$3:E5,E5)&\"_\"&E5)","v":"1_Cement clinker"},null,"Cement clinkers"]
["252321000080","2523 21 00",{"$f":"Translations!$B$696","v":"White portland cement, whether or not artificially coloured"},"25232100",{"$f":"Translations!$B$664","v":"Cement"},{"$f":"IF(E6=\" --- \",\"\",COUNTIF($E$3:E6,E6)&\"_\"&E6)","v":"1_Cement"},null,"White portland cement, whether or not artificially coloured"]
["252329000080","2523 29 00",{"$f":"Translations!$B$697","v":"Portland cement (excl. white, whether or not artificially coloured)"},"25232900",{"$f":"Translations!$B$664","v":"Cement"},{"$f":"IF(E7=\" --- \",\"\",COUNTIF($E$3:E7,E7)&\"_\"&E7)","v":"2_Cement"},null,"Portland cement (excl. white, whether or not artificially coloured)"]
["252330000080","2523 30 00",{"$f":"Translations!$B$667","v":"Aluminous cement"},"25233000",{"$f":"Translations!$B$667","v":"Aluminous cement"},{"$f":"IF(E8=\" --- \",\"\",COUNTIF($E$3:E8,E8)&\"_\"&E8)","v":"1_Aluminous cement"},null,"Aluminous cement"]
["252390000080","2523 90 00",{"$f":"Translations!$B$698","v":"Cement, whether or not coloured (excl. portland cement and aluminous cement)"},"25239000",{"$f":"Translations!$B$664","v":"Cement"},{"$f":"IF(E9=\" --- \",\"\",COUNTIF($E$3:E9,E9)&\"_\"&E9)","v":"3_Cement"},null,"Cement, whether or not coloured (excl. portland cement and aluminous cement)"]
["260112000080","2601 12 00",{"$f":"Translations!$B$699","v":"Agglomerated iron ores and concentrates (excl. roasted iron pyrites)"},"26011200",{"$f":"Translations!$B$678","v":"Sintered Ore"},{"$f":"IF(E10=\" --- \",\"\",COUNTIF($E$3:E10,E10)&\"_\"&E10)","v":"1_Sintered Ore"},null,"Agglomerated iron ores and concentrates (excl. roasted iron pyrites)"]
["271600000080","2716 00 00",{"$f":"Translations!$B$700","v":"Electrical energy"},{"$f":"SUBSTITUTE(B11,\" \",\"\")","v":"27160000"},{"$f":"Translations!$B$692","v":"Electricity (export to EU)"},{"$f":"IF(E11=\" --- \",\"\",COUNTIF($E$3:E11,E11)&\"_\"&E11)","v":"1_Electricity (export to EU)"},null,"Electrical energy"]
["280410000080","2804 10 00",{"$f":"Translations!$B$650","v":"Hydrogen"},"28041000",{"$f":"Translations!$B$650","v":"Hydrogen"},{"$f":"IF(E12=\" --- \",\"\",COUNTIF($E$3:E12,E12)&\"_\"&E12)","v":"1_Hydrogen"},null,"Hydrogen"]
["280800000080","2808 00 00",{"$f":"Translations!$B$701","v":"Nitric acid; sulphonitric acids"},"28080000",{"$f":"Translations!$B$685","v":"Nitric acid"},{"$f":"IF(E13=\" --- \",\"\",COUNTIF($E$3:E13,E13)&\"_\"&E13)","v":"1_Nitric acid"},null,"Nitric acid; sulphonitric acids"]
["281400000080","2814",{"$f":"Translations!$B$702","v":"Ammonia, anhydrous or in aqueous solution"},"2814",{"$f":"Translations!$B$682","v":"Ammonia"},{"$f":"IF(E14=\" --- \",\"\",COUNTIF($E$3:E14,E14)&\"_\"&E14)","v":"1_Ammonia"},null,"Ammonia, anhydrous or in aqueous solution"]
["281410000080","2814 10 00",{"$f":"Translations!$B$703","v":"Anhydrous ammonia"},"28141000",{"$f":"Translations!$B$682","v":"Ammonia"},{"$f":"IF(E15=\" --- \",\"\",COUNTIF($E$3:E15,E15)&\"_\"&E15)","v":"2_Ammonia"},null,"Anhydrous ammonia"]
["281420000080","2814 20 00",{"$f":"Translations!$B$704","v":"Ammonia in aqueous solution"},"28142000",{"$f":"Translations!$B$682","v":"Ammonia"},{"$f":"IF(E16=\" --- \",\"\",COUNTIF($E$3:E16,E16)&\"_\"&E16)","v":"3_Ammonia"},null,"Ammonia in aqueous solution"]
["283421000080","2834 21 00",{"$f":"Translations!$B$705","v":"Nitrate of potassium"},"28342100",{"$f":"Translations!$B$687","v":"Mixed fertilizers"},{"$f":"IF(E17=\" --- \",\"\",COUNTIF($E$3:E17,E17)&\"_\"&E17)","v":"1_Mixed fertilizers"},null,"Nitrate of potassium"]
["310200000080","3102",{"$f":"Translations!$B$706","v":"Mineral or chemical nitrogenous fertilisers (excl. those in tablets or similar forms, or in packages with a gross weight of <= 10 kg)"},{"$f":"SUBSTITUTE(B18,\" \",\"\")","v":"3102"},{"$f":"Translations!$B$687","v":"Mixed fertilizers"},{"$f":"IF(E18=\" --- \",\"\",COUNTIF($E$3:E18,E18)&\"_\"&E18)","v":"2_Mixed fertilizers"},null,"Mineral or chemical nitrogenous fertilisers (excl. those in tablets or similar forms, or in packages with a gross weight of <= 10 kg)"]
["310210000080","3102 10",{"$f":"Translations!$B$707","v":"Urea, whether or not in aqueous solution (excl. that in tablets or similar forms, or in packages with a gross weight of <= 10 kg)"},"310210",{"$f":"Translations!$B$686","v":"Urea"},{"$f":"IF(E19=\" --- \",\"\",COUNTIF($E$3:E19,E19)&\"_\"&E19)","v":"1_Urea"},null,"Urea, whether or not in aqueous solution (excl. that in tablets or similar forms, or in packages with a gross weight of <= 10 kg)"]
["310210100080","3102 10 10",{"$f":"Translations!$B$708","v":"Urea, whether or not in aqueous solution, containing > 45% nitrogen in relation to the weight of the dry product (excl. that in tablets or similar forms, or in packages with a gross weight of <= 10 kg)"},"31021010",{"$f":"Translations!$B$686","v":"Urea"},{"$f":"IF(E20=\" --- \",\"\",COUNTIF($E$3:E20,E20)&\"_\"&E20)","v":"2_Urea"},null,"Urea, whether or not in aqueous solution, containing > 45% nitrogen in relation to the weight of the dry product (excl. that in tablets or similar forms, or in packages with a gross weight of <= 10 kg)"]
["310210900080","3102 10 90",{"$f":"Translations!$B$709","v":"Urea, whether or not in aqueous solution, containing <= 45% by weight of nitrogen on the dry anhydrous product (excl. goods of this chapter in tablets or similar forms or in packages of a gross weight of <= 10 kg)"},"31021090",{"$f":"Translations!$B$686","v":"Urea"},{"$f":"IF(E21=\" --- \",\"\",COUNTIF($E$3:E21,E21)&\"_\"&E21)","v":"3_Urea"},null,"Urea, whether or not in aqueous solution, containing <= 45% by weight of nitrogen on the dry anhydrous product (excl. goods of this chapter in tablets or similar forms or in packages of a gross weight of <= 10 kg)"]
["310221000080","3102 21 00",{"$f":"Translations!$B$710","v":"Ammonium sulphate (excl. that in tablets or similar forms, or in packages with a gross weight of <= 10 kg)"},"31022100",{"$f":"Translations!$B$687","v":"Mixed fertilizers"},{"$f":"IF(E22=\" --- \",\"\",COUNTIF($E$3:E22,E22)&\"_\"&E22)","v":"3_Mixed fertilizers"},null,"Ammonium sulphate (excl. that in tablets or similar forms, or in packages with a gross weight of <= 10 kg)"]
["310229000080","3102 29 00",{"$f":"Translations!$B$711","v":"Double salts and mixtures of ammonium sulphate and ammonium nitrate (excl. goods of this chapter in tablets or similar forms or in packages of a gross weight of <= 10 kg)"},"31022900",{"$f":"Translations!$B$687","v":"Mixed fertilizers"},{"$f":"IF(E23=\" --- \",\"\",COUNTIF($E$3:E23,E23)&\"_\"&E23)","v":"4_Mixed fertilizers"},null,"Double salts and mixtures of ammonium sulphate and ammonium nitrate (excl. goods of this chapter in tablets or similar forms or in packages of a gross weight of <= 10 kg)"]
["310230000080","3102 30",{"$f":"Translations!$B$712","v":"Ammonium nitrate, whether or not in aqueous solution (excl. that in tablets or similar forms, or in packages with a gross weight of <= 10 kg)"},"310230",{"$f":"Translations!$B$687","v":"Mixed fertilizers"},{"$f":"IF(E24=\" --- \",\"\",COUNTIF($E$3:E24,E24)&\"_\"&E24)","v":"5_Mixed fertilizers"},null,"Ammonium nitrate, whether or not in aqueous solution (excl. that in tablets or similar forms, or in packages with a gross weight of <= 10 kg)"]
["310230100080","3102 30 10",{"$f":"Translations!$B$713","v":"Ammonium nitrate in aqueous solution (excl. that in packages with a gross weight of <= 10 kg)"},"31023010",{"$f":"Translations!$B$687","v":"Mixed fertilizers"},{"$f":"IF(E25=\" --- \",\"\",COUNTIF($E$3:E25,E25)&\"_\"&E25)","v":"6_Mixed fertilizers"},null,"Ammonium nitrate in aqueous solution (excl. that in packages with a gross weight of <= 10 kg)"]
["310230900080","3102 30 90",{"$f":"Translations!$B$714","v":"Ammonium nitrate (excl. that in aqueous solution, in tablets or similar forms, or in packages with a gross weight of <= 10 kg)"},"31023090",{"$f":"Translations!$B$687","v":"Mixed fertilizers"},{"$f":"IF(E26=\" --- \",\"\",COUNTIF($E$3:E26,E26)&\"_\"&E26)","v":"7_Mixed fertilizers"},null,"Ammonium nitrate (excl. that in aqueous solution, in tablets or similar forms, or in packages with a gross weight of <= 10 kg)"]
["310240000080","3102 40",{"$f":"Translations!$B$715","v":"Mixtures of ammonium nitrate with calcium carbonate or other inorganic non-fertilising substances for use as fertilisers (excl. those in tablets or similar forms, or in packages with a gross weight of <= 10 kg)"},"310240",{"$f":"Translations!$B$687","v":"Mixed fertilizers"},{"$f":"IF(E27=\" --- \",\"\",COUNTIF($E$3:E27,E27)&\"_\"&E27)","v":"8_Mixed fertilizers"},null,"Mixtures of ammonium nitrate with calcium carbonate or other inorganic non-fertilising substances for use as fertilisers (excl. those in tablets or similar forms, or in packages with a gross weight of <= 10 kg)"]
["310240100080","3102 40 10",{"$f":"Translations!$B$716","v":"Mixtures of ammonium nitrate with calcium carbonate or other inorganic non-fertilising substances, for use as fertilisers, containing <= 28% nitrogen by weight (excl. those in tablets or similar forms, or in packages with a gross weight of <= 10 kg)"},"31024010",{"$f":"Translations!$B$687","v":"Mixed fertilizers"},{"$f":"IF(E28=\" --- \",\"\",COUNTIF($E$3:E28,E28)&\"_\"&E28)","v":"9_Mixed fertilizers"},null,"Mixtures of ammonium nitrate with calcium carbonate or other inorganic non-fertilising substances, for use as fertilisers, containing <= 28% nitrogen by weight (excl. those in tablets or similar forms, or in packages with a gross weight of <= 10 kg)"]
["310240900080","3102 40 90",{"$f":"Translations!$B$717","v":"Mixtures of ammonium nitrate with calcium carbonate or other inorganic non-fertilising substances, for use as fertilisers, containing > 28% nitrogen by weight (excl. those in tablets or similar forms, or in packages with a gross weight of <= 10 kg)"},"31024090",{"$f":"Translations!$B$687","v":"Mixed fertilizers"},{"$f":"IF(E29=\" --- \",\"\",COUNTIF($E$3:E29,E29)&\"_\"&E29)","v":"10_Mixed fertilizers"},null,"Mixtures of ammonium nitrate with calcium carbonate or other inorganic non-fertilising substances, for use as fertilisers, containing > 28% nitrogen by weight (excl. those in tablets or similar forms, or in packages with a gross weight of <= 10 kg)"]
["310250000080","3102 50 00",{"$f":"Translations!$B$718","v":"Sodium nitrate (excl. that in tablets or similar forms, or in packages with a gross weight of <= 10 kg)"},"31025000",{"$f":"Translations!$B$687","v":"Mixed fertilizers"},{"$f":"IF(E30=\" --- \",\"\",COUNTIF($E$3:E30,E30)&\"_\"&E30)","v":"11_Mixed fertilizers"},null,"Sodium nitrate (excl. that in tablets or similar forms, or in packages with a gross weight of <= 10 kg)"]
["310260000080","3102 60 00",{"$f":"Translations!$B$719","v":"Double salts and mixtures of calcium nitrate and ammonium nitrate (excl. those in tablets or similar forms, or in packages with a gross weight of <= 10 kg)"},"31026000",{"$f":"Translations!$B$687","v":"Mixed fertilizers"},{"$f":"IF(E31=\" --- \",\"\",COUNTIF($E$3:E31,E31)&\"_\"&E31)","v":"12_Mixed fertilizers"},null,"Double salts and mixtures of calcium nitrate and ammonium nitrate (excl. those in tablets or similar forms, or in packages with a gross weight of <= 10 kg)"]
["310280000080","3102 80 00",{"$f":"Translations!$B$720","v":"Mixtures of urea and ammonium nitrate in aqueous or ammoniacal solution (excl. those in packages with a gross weight of <= 10 kg)"},"31028000",{"$f":"Translations!$B$687","v":"Mixed fertilizers"},{"$f":"IF(E32=\" --- \",\"\",COUNTIF($E$3:E32,E32)&\"_\"&E32)","v":"13_Mixed fertilizers"},null,"Mixtures of urea and ammonium nitrate in aqueous or ammoniacal solution (excl. those in packages with a gross weight of <= 10 kg)"]
["310290000080","3102 90 00",{"$f":"Translations!$B$721","v":"Mineral or chemical nitrogen fertilisers (excl. urea; ammonium sulphate; ammonium nitrate; sodium nitrate; double salts and mixtures of ammonium nitrate with ammonium sulphate or calcium; mixtures of urea and ammonium nitrate in aqueous or ammoniacal solution; mixtures of ammonium nitrate and calcium carbonate or other non-fertilising inorganic elements; in tablets or similar in packages <= 10 kg)"},"31029000",{"$f":"Translations!$B$687","v":"Mixed fertilizers"},{"$f":"IF(E33=\" --- \",\"\",COUNTIF($E$3:E33,E33)&\"_\"&E33)","v":"14_Mixed fertilizers"},null,"Mineral or chemical nitrogen fertilisers (excl. urea; ammonium sulphate; ammonium nitrate; sodium nitrate; double salts and mixtures of ammonium nitrate with ammonium sulphate or calcium; mixtures of urea and ammonium nitrate in aqueous or ammoniacal solution; mixtures of ammonium nitrate and calcium carbonate or other non-fertilising inorganic elements; in tablets or similar in packages <= 10 kg)"]
["310500000080","3105",{"$f":"Translations!$B$722","v":"Mineral or chemical fertilisers containing two or three of the fertilising elements nitrogen, phosphorus and potassium; other fertilisers (excl. pure animal or vegetable fertilisers or mineral or chemical nitrogenous, phosphatic or potassic fertilisers); animal, vegetable, mineral or chemical fertilisers in tablets or similar forms or in packages of a gross weight of <= 10 kg"},{"$f":"SUBSTITUTE(B34,\" \",\"\")","v":"3105"},{"$f":"Translations!$B$687","v":"Mixed fertilizers"},{"$f":"IF(E34=\" --- \",\"\",COUNTIF($E$3:E34,E34)&\"_\"&E34)","v":"15_Mixed fertilizers"},null,"Mineral or chemical fertilisers containing two or three of the fertilising elements nitrogen, phosphorus and potassium; other fertilisers (excl. pure animal or vegetable fertilisers or mineral or chemical nitrogenous, phosphatic or potassic fertilisers); animal, vegetable, mineral or chemical fertilisers in tablets or similar forms or in packages of a gross weight of <= 10 kg"]
["310510000080","3105 10 00",{"$f":"Translations!$B$723","v":"Mineral or chemical fertilisers of animal or vegetable origin, in tablets or similar forms, or in packages with a gross weight of <= 10 kg"},"31051000",{"$f":"Translations!$B$687","v":"Mixed fertilizers"},{"$f":"IF(E35=\" --- \",\"\",COUNTIF($E$3:E35,E35)&\"_\"&E35)","v":"16_Mixed fertilizers"},null,"Mineral or chemical fertilisers of animal or vegetable origin, in tablets or similar forms, or in packages with a gross weight of <= 10 kg"]
["310520000080","3105 20",{"$f":"Translations!$B$724","v":"Mineral or chemical fertilisers containing the three fertilising elements nitrogen, phosphorus and potassium (excl. those in tablets or similar forms, or in packages with a gross weight of <= 10 kg)"},"310520",{"$f":"Translations!$B$687","v":"Mixed fertilizers"},{"$f":"IF(E36=\" --- \",\"\",COUNTIF($E$3:E36,E36)&\"_\"&E36)","v":"17_Mixed fertilizers"},null,"Mineral or chemical fertilisers containing the three fertilising elements nitrogen, phosphorus and potassium (excl. those in tablets or similar forms, or in packages with a gross weight of <= 10 kg)"]
["310520100080","3105 20 10",{"$f":"Translations!$B$725","v":"Mineral or chemical fertilisers containing phosphorus and potassium, with a nitrogen content > 10 % by weight on the dry anhydrous product (excl. those in tablets or similar forms, or in packages with a gross weight of <= 10 kg)"},"31052010",{"$f":"Translations!$B$687","v":"Mixed fertilizers"},{"$f":"IF(E37=\" --- \",\"\",COUNTIF($E$3:E37,E37)&\"_\"&E37)","v":"18_Mixed fertilizers"},null,"Mineral or chemical fertilisers containing phosphorus and potassium, with a nitrogen content > 10 % by weight on the dry anhydrous product (excl. those in tablets or similar forms, or in packages with a gross weight of <= 10 kg)"]
["310520900080","3105 20 90",{"$f":"Translations!$B$726","v":"Mineral or chemical fertilisers containing nitrogen, phosphorus and potassium, with a nitrogen content <= 10 % by weight on the dry anhydrous product (excl. those in tablets or similar forms, or in packages with a gross weight of <= 10 kg)"},"31052090",{"$f":"Translations!$B$687","v":"Mixed fertilizers"},{"$f":"IF(E38=\" --- \",\"\",COUNTIF($E$3:E38,E38)&\"_\"&E38)","v":"19_Mixed fertilizers"},null,"Mineral or chemical fertilisers containing nitrogen, phosphorus and potassium, with a nitrogen content <= 10 % by weight on the dry anhydrous product (excl. those in tablets or similar forms, or in packages with a gross weight of <= 10 kg)"]
["310530000080","3105 30 00",{"$f":"Translations!$B$727","v":"Diammonium hydrogenorthophosphate \"diammonium phosphate\" (excl. that in tablets or similar forms, or in packages with a gross weight of <= 10 kg)"},"31053000",{"$f":"Translations!$B$687","v":"Mixed fertilizers"},{"$f":"IF(E39=\" --- \",\"\",COUNTIF($E$3:E39,E39)&\"_\"&E39)","v":"20_Mixed fertilizers"},null,"Diammonium hydrogenorthophosphate \"diammonium phosphate\" (excl. that in tablets or similar forms, or in packages with a gross weight of <= 10 kg)"]
["310540000080","3105 40 00",{"$f":"Translations!$B$728","v":"Ammonium dihydrogenorthophosphate \"monoammonium phosphate\", whether or not mixed with diammonium hydrogenorthophosphate \"diammonium phosphate\" (excl. that in tablets or similar forms, or in packages with a gross weight of <= 10 kg)"},"31054000",{"$f":"Translations!$B$687","v":"Mixed fertilizers"},{"$f":"IF(E40=\" --- \",\"\",COUNTIF($E$3:E40,E40)&\"_\"&E40)","v":"21_Mixed fertilizers"},null,"Ammonium dihydrogenorthophosphate \"monoammonium phosphate\", whether or not mixed with diammonium hydrogenorthophosphate \"diammonium phosphate\" (excl. that in tablets or similar forms, or in packages with a gross weight of <= 10 kg)"]
["310551000080","3105 51 00",{"$f":"Translations!$B$729","v":"Mineral or chemical fertilisers containing nitrates and phosphates (excl. ammonium dihydrogenorthophosphate \"Monoammonium phosphate\", diammonium hydrogenorthophosphate \"Diammonium phosphate\", and those in tablets or similar forms, or in packages with a gross weight of <= 10 kg)"},"31055100",{"$f":"Translations!$B$687","v":"Mixed fertilizers"},{"$f":"IF(E41=\" --- \",\"\",COUNTIF($E$3:E41,E41)&\"_\"&E41)","v":"22_Mixed fertilizers"},null,"Mineral or chemical fertilisers containing nitrates and phosphates (excl. ammonium dihydrogenorthophosphate \"Monoammonium phosphate\", diammonium hydrogenorthophosphate \"Diammonium phosphate\", and those in tablets or similar forms, or in packages with a gross weight of <= 10 kg)"]
["310559000080","3105 59 00",{"$f":"Translations!$B$730","v":"Mineral or chemical fertilisers containing the two fertilising elements nitrogen (excl. nitrate) and phosphorus but not nitrates (excl. ammonium dihydrogenorthophosphate \"monoammonium phosphate\", diammonium hydrogenorthophosphate \"diammonium phosphate\" in tablets or similar forms, or in packages with a gross weight of <= 10 kg)"},"31055900",{"$f":"Translations!$B$687","v":"Mixed fertilizers"},{"$f":"IF(E42=\" --- \",\"\",COUNTIF($E$3:E42,E42)&\"_\"&E42)","v":"23_Mixed fertilizers"},null,"Mineral or chemical fertilisers containing the two fertilising elements nitrogen (excl. nitrate) and phosphorus but not nitrates (excl. ammonium dihydrogenorthophosphate \"monoammonium phosphate\", diammonium hydrogenorthophosphate \"diammonium phosphate\" in tablets or similar forms, or in packages with a gross weight of <= 10 kg)"]
["310590000080","3105 90",{"$f":"Translations!$B$731","v":"Mineral or chemical fertilisers containing the two fertilising elements nitrogen and potassium or one principal fertilising substance only, incl. mixtures of animal or vegetable fertilisers with chemical or mineral fertilisers (excl. those in tablets or similar forms, or in packages with a gross weight of <= 10 kg)"},"310590",{"$f":"Translations!$B$687","v":"Mixed fertilizers"},{"$f":"IF(E43=\" --- \",\"\",COUNTIF($E$3:E43,E43)&\"_\"&E43)","v":"24_Mixed fertilizers"},null,"Mineral or chemical fertilisers containing the two fertilising elements nitrogen and potassium or one principal fertilising substance only, incl. mixtures of animal or vegetable fertilisers with chemical or mineral fertilisers (excl. those in tablets or similar forms, or in packages with a gross weight of <= 10 kg)"]
["310590200080","3105 90 20",{"$f":"Translations!$B$732","v":"Mineral or chemical fertilisers containing the two fertilising elements nitrogen and potassium, or one principal fertilising substance only, incl. mixtures of animal or vegetable fertilisers with chemical or mineral fertilisers, containing > 10% nitrogen by weight (excl. in tablets or similar forms, or in packages with a gross weight of <= 10 kg)"},"31059020",{"$f":"Translations!$B$687","v":"Mixed fertilizers"},{"$f":"IF(E44=\" --- \",\"\",COUNTIF($E$3:E44,E44)&\"_\"&E44)","v":"25_Mixed fertilizers"},null,"Mineral or chemical fertilisers containing the two fertilising elements nitrogen and potassium, or one principal fertilising substance only, incl. mixtures of animal or vegetable fertilisers with chemical or mineral fertilisers, containing > 10% nitrogen by weight (excl. in tablets or similar forms, or in packages with a gross weight of <= 10 kg)"]
["310590800080","3105 90 80",{"$f":"Translations!$B$733","v":"Mineral or chemical fertilisers containing the two fertilising elements nitrogen and potassium, or one main fertilising element, incl. mixtures of animal or vegetable fertilisers with chemical or mineral fertilisers, not containing nitrogen or with a nitrogen content, by weight, of <= 10% (excl. in tablets or similar forms or in packages of a gross weight of <= 10 kg)"},"31059080",{"$f":"Translations!$B$687","v":"Mixed fertilizers"},{"$f":"IF(E45=\" --- \",\"\",COUNTIF($E$3:E45,E45)&\"_\"&E45)","v":"26_Mixed fertilizers"},null,"Mineral or chemical fertilisers containing the two fertilising elements nitrogen and potassium, or one main fertilising element, incl. mixtures of animal or vegetable fertilisers with chemical or mineral fertilisers, not containing nitrogen or with a nitrogen content, by weight, of <= 10% (excl. in tablets or similar forms or in packages of a gross weight of <= 10 kg)"]
["720100000080","7201",{"$f":"Translations!$B$734","v":"Pig iron and spiegeleisen, in pigs, blocks or other primary forms"},{"$f":"SUBSTITUTE(B46,\" \",\"\")","v":"7201"},{"$f":"Translations!$B$674","v":"Pig iron"},{"$f":"IF(E46=\" --- \",\"\",COUNTIF($E$3:E46,E46)&\"_\"&E46)","v":"1_Pig iron"},null,"Pig iron and spiegeleisen, in pigs, blocks or other primary forms"]
["720110000080","7201 10",{"$f":"Translations!$B$735","v":"Non-alloy pig iron in pigs, blocks or other primary forms, containing, by weight, <= 0,5% of phosphorous"},"720110",{"$f":"Translations!$B$674","v":"Pig iron"},{"$f":"IF(E47=\" --- \",\"\",COUNTIF($E$3:E47,E47)&\"_\"&E47)","v":"2_Pig iron"},null,"Non-alloy pig iron in pigs, blocks or other primary forms, containing, by weight, <= 0,5% of phosphorous"]
["720110110080","7201 10 11",{"$f":"Translations!$B$736","v":"Non-alloy pig iron in pigs, blocks or other primary forms, containing by weight <= 0,5% phosphorus, >= 0,4% manganese and <= 1% silicon"},"72011011",{"$f":"Translations!$B$674","v":"Pig iron"},{"$f":"IF(E48=\" --- \",\"\",COUNTIF($E$3:E48,E48)&\"_\"&E48)","v":"3_Pig iron"},null,"Non-alloy pig iron in pigs, blocks or other primary forms, containing by weight <= 0,5% phosphorus, >= 0,4% manganese and <= 1% silicon"]
["720110190080","7201 10 19",{"$f":"Translations!$B$737","v":"Non-alloy pig iron in pigs, blocks or other primary forms, containing by weight <= 0,5% phosphorus, >= 0,4% manganese and > 1% silicon"},"72011019",{"$f":"Translations!$B$674","v":"Pig iron"},{"$f":"IF(E49=\" --- \",\"\",COUNTIF($E$3:E49,E49)&\"_\"&E49)","v":"4_Pig iron"},null,"Non-alloy pig iron in pigs, blocks or other primary forms, containing by weight <= 0,5% phosphorus, >= 0,4% manganese and > 1% silicon"]
["720110300080","7201 10 30",{"$f":"Translations!$B$738","v":"Non-alloy pig iron in pigs, blocks or other primary forms, containing by weight <= 0,5% phosphorus, and >= 0,1% but < 0,4% manganese"},"72011030",{"$f":"Translations!$B$674","v":"Pig iron"},{"$f":"IF(E50=\" --- \",\"\",COUNTIF($E$3:E50,E50)&\"_\"&E50)","v":"5_Pig iron"},null,"Non-alloy pig iron in pigs, blocks or other primary forms, containing by weight <= 0,5% phosphorus, and >= 0,1% but < 0,4% manganese"]
["720110900080","7201 10 90",{"$f":"Translations!$B$739","v":"Non-alloy pig iron in pigs, blocks or other primary forms, containing by weight <= 0,5% phosphorus, and <= 0,1% manganese"},"72011090",{"$f":"Translations!$B$674","v":"Pig iron"},{"$f":"IF(E51=\" --- \",\"\",COUNTIF($E$3:E51,E51)&\"_\"&E51)","v":"6_Pig iron"},null,"Non-alloy pig iron in pigs, blocks or other primary forms, containing by weight <= 0,5% phosphorus, and <= 0,1% manganese"]
["720120000080","7201 20 00",{"$f":"Translations!$B$740","v":"Non-alloy pig iron in pigs, blocks or other primary forms, containing by weight >= 0,5% phosphorus"},"72012000",{"$f":"Translations!$B$674","v":"Pig iron"},{"$f":"IF(E52=\" --- \",\"\",COUNTIF($E$3:E52,E52)&\"_\"&E52)","v":"7_Pig iron"},null,"Non-alloy pig iron in pigs, blocks or other primary forms, containing by weight >= 0,5% phosphorus"]
["720150000080","7201 50",{"$f":"Translations!$B$741","v":"Alloy pig iron and spiegeleisen, in pigs, blocks or other primary forms"},"720150",{"$f":"Translations!$B$674","v":"Pig iron"},{"$f":"IF(E53=\" --- \",\"\",COUNTIF($E$3:E53,E53)&\"_\"&E53)","v":"8_Pig iron"},null,"Alloy pig iron and spiegeleisen, in pigs, blocks or other primary forms"]
["720150100080","7201 50 10",{"$f":"Translations!$B$742","v":"Alloy pig iron in pigs, blocks or other primary forms, containing by weight >= 0,3% but <= 1% titanium and >= 0,5% but <= 1% vanadium"},"72015010",{"$f":"Translations!$B$674","v":"Pig iron"},{"$f":"IF(E54=\" --- \",\"\",COUNTIF($E$3:E54,E54)&\"_\"&E54)","v":"9_Pig iron"},null,"Alloy pig iron in pigs, blocks or other primary forms, containing by weight >= 0,3% but <= 1% titanium and >= 0,5% but <= 1% vanadium"]
["720150900080","7201 50 90",{"$f":"Translations!$B$743","v":"Alloy pig iron and spiegeleisen, in pigs, blocks or other primary forms (excl. alloy iron containing, by weight, >= 0,3% but <= 1% titanium and >= 0,5% but <= 1% vanadium)"},"72015090",{"$f":"Translations!$B$674","v":"Pig iron"},{"$f":"IF(E55=\" --- \",\"\",COUNTIF($E$3:E55,E55)&\"_\"&E55)","v":"10_Pig iron"},null,"Alloy pig iron and spiegeleisen, in pigs, blocks or other primary forms (excl. alloy iron containing, by weight, >= 0,3% but <= 1% titanium and >= 0,5% but <= 1% vanadium)"]
["720211000080","7202 11",{"$f":"Translations!$B$744","v":"Ferro-manganese, containing by weight > 2% of carbon"},"720211",{"$f":"Translations!$B$677","v":"Alloys (FeMn, FeCr, FeNi)"},{"$f":"IF(E56=\" --- \",\"\",COUNTIF($E$3:E56,E56)&\"_\"&E56)","v":"1_Alloys (FeMn, FeCr, FeNi)"},null,"Ferro-manganese, containing by weight > 2% of carbon"]
["720211200080","7202 11 20",{"$f":"Translations!$B$745","v":"Ferro-manganese, containing by weight > 2% carbon, with a granulometry <= 5 mm and a manganese content by weight > 65%"},"72021120",{"$f":"Translations!$B$677","v":"Alloys (FeMn, FeCr, FeNi)"},{"$f":"IF(E57=\" --- \",\"\",COUNTIF($E$3:E57,E57)&\"_\"&E57)","v":"2_Alloys (FeMn, FeCr, FeNi)"},null,"Ferro-manganese, containing by weight > 2% carbon, with a granulometry <= 5 mm and a manganese content by weight > 65%"]
["720211800080","7202 11 80",{"$f":"Translations!$B$746","v":"Ferro-manganese, containing by weight > 2% carbon (excl. ferro-manganese with a granulometry of <= 5 mm and containing by weight > 65% manganese)"},"72021180",{"$f":"Translations!$B$677","v":"Alloys (FeMn, FeCr, FeNi)"},{"$f":"IF(E58=\" --- \",\"\",COUNTIF($E$3:E58,E58)&\"_\"&E58)","v":"3_Alloys (FeMn, FeCr, FeNi)"},null,"Ferro-manganese, containing by weight > 2% carbon (excl. ferro-manganese with a granulometry of <= 5 mm and containing by weight > 65% manganese)"]
["720219000080","7202 19 00",{"$f":"Translations!$B$747","v":"Ferro-manganese, containing by weight <= 2% carbon"},"72021900",{"$f":"Translations!$B$677","v":"Alloys (FeMn, FeCr, FeNi)"},{"$f":"IF(E59=\" --- \",\"\",COUNTIF($E$3:E59,E59)&\"_\"&E59)","v":"4_Alloys (FeMn, FeCr, FeNi)"},null,"Ferro-manganese, containing by weight <= 2% carbon"]
["720241000080","7202 41",{"$f":"Translations!$B$748","v":"Ferro-chromium, containing by weight > 4% of carbon"},"720241",{"$f":"Translations!$B$677","v":"Alloys (FeMn, FeCr, FeNi)"},{"$f":"IF(E60=\" --- \",\"\",COUNTIF($E$3:E60,E60)&\"_\"&E60)","v":"5_Alloys (FeMn, FeCr, FeNi)"},null,"Ferro-chromium, containing by weight > 4% of carbon"]
["720241100080","7202 41 10",{"$f":"Translations!$B$749","v":"Ferro-chromium, containing by weight > 4% but <= 6% carbon"},"72024110",{"$f":"Translations!$B$677","v":"Alloys (FeMn, FeCr, FeNi)"},{"$f":"IF(E61=\" --- \",\"\",COUNTIF($E$3:E61,E61)&\"_\"&E61)","v":"6_Alloys (FeMn, FeCr, FeNi)"},null,"Ferro-chromium, containing by weight > 4% but <= 6% carbon"]
["720241900080","7202 41 90",{"$f":"Translations!$B$750","v":"Ferro-chromium, containing by weight > 6% carbon"},"72024190",{"$f":"Translations!$B$677","v":"Alloys (FeMn, FeCr, FeNi)"},{"$f":"IF(E62=\" --- \",\"\",COUNTIF($E$3:E62,E62)&\"_\"&E62)","v":"7_Alloys (FeMn, FeCr, FeNi)"},null,"Ferro-chromium, containing by weight > 6% carbon"]
["720249000080","7202 49",{"$f":"Translations!$B$751","v":"Ferro-chromium, containing by weight <= 4% of carbon"},"720249",{"$f":"Translations!$B$677","v":"Alloys (FeMn, FeCr, FeNi)"},{"$f":"IF(E63=\" --- \",\"\",COUNTIF($E$3:E63,E63)&\"_\"&E63)","v":"8_Alloys (FeMn, FeCr, FeNi)"},null,"Ferro-chromium, containing by weight <= 4% of carbon"]
["720249100080","7202 49 10",{"$f":"Translations!$B$752","v":"Ferro-chromium, containing by weight <= 0,05% carbon"},"72024910",{"$f":"Translations!$B$677","v":"Alloys (FeMn, FeCr, FeNi)"},{"$f":"IF(E64=\" --- \",\"\",COUNTIF($E$3:E64,E64)&\"_\"&E64)","v":"9_Alloys (FeMn, FeCr, FeNi)"},null,"Ferro-chromium, containing by weight <= 0,05% carbon"]
["720249500080","7202 49 50",{"$f":"Translations!$B$753","v":"Ferro-chromium, containing by weight > 0,05% but <= 0,5% carbon"},"72024950",{"$f":"Translations!$B$677","v":"Alloys (FeMn, FeCr, FeNi)"},{"$f":"IF(E65=\" --- \",\"\",COUNTIF($E$3:E65,E65)&\"_\"&E65)","v":"10_Alloys (FeMn, FeCr, FeNi)"},null,"Ferro-chromium, containing by weight > 0,05% but <= 0,5% carbon"]
["720249900080","7202 49 90",{"$f":"Translations!$B$754","v":"Ferro-chromium, containing by weight > 0,5% but <= 4% carbon"},"72024990",{"$f":"Translations!$B$677","v":"Alloys (FeMn, FeCr, FeNi)"},{"$f":"IF(E66=\" --- \",\"\",COUNTIF($E$3:E66,E66)&\"_\"&E66)","v":"11_Alloys (FeMn, FeCr, FeNi)"},null,"Ferro-chromium, containing by weight > 0,5% but <= 4% carbon"]
["720260000080","7202 60 00",{"$f":"Translations!$B$755","v":"Ferro-nickel"},"72026000",{"$f":"Translations!$B$677","v":"Alloys (FeMn, FeCr, FeNi)"},{"$f":"IF(E67=\" --- \",\"\",COUNTIF($E$3:E67,E67)&\"_\"&E67)","v":"12_Alloys (FeMn, FeCr, FeNi)"},null,"Ferro-nickel"]
["720300000080","7203",{"$f":"Translations!$B$756","v":"Ferrous products obtained by direct reduction of iron ore and other spongy ferrous products, in lumps, pellets or similar forms; iron having a minimum purity by weight of 99,94%, in lumps, pellets or similar forms"},"7203",{"$f":"Translations!$B$673","v":"Direct reduced iron"},{"$f":"IF(E68=\" --- \",\"\",COUNTIF($E$3:E68,E68)&\"_\"&E68)","v":"1_Direct reduced iron"},null,"Ferrous products obtained by direct reduction of iron ore and other spongy ferrous products, in lumps, pellets or similar forms; iron having a minimum purity by weight of 99,94%, in lumps, pellets or similar forms"]
["720310000080","7203 10 00",{"$f":"Translations!$B$757","v":"Ferrous products obtained by direct reduction of iron ore, in lumps, pellets or similar forms"},"72031000",{"$f":"Translations!$B$673","v":"Direct reduced iron"},{"$f":"IF(E69=\" --- \",\"\",COUNTIF($E$3:E69,E69)&\"_\"&E69)","v":"2_Direct reduced iron"},null,"Ferrous products obtained by direct reduction of iron ore, in lumps, pellets or similar forms"]
["720390000080","7203 90 00",{"$f":"Translations!$B$758","v":"Spongy ferrous products, obtained from molten pig iron by atomisation, iron of a purity of >= 99,94%, in lumps, pellets or similar forms"},"72039000",{"$f":"Translations!$B$673","v":"Direct reduced iron"},{"$f":"IF(E70=\" --- \",\"\",COUNTIF($E$3:E70,E70)&\"_\"&E70)","v":"3_Direct reduced iron"},null,"Spongy ferrous products, obtained from molten pig iron by atomisation, iron of a purity of >= 99,94%, in lumps, pellets or similar forms"]
["720500000080","7205",{"$f":"Translations!$B$759","v":"Granules and powders of pig iron, spiegeleisen, iron or steel (excl. granules and powders of ferro-alloys, turnings and filings of iron or steel, radioactive iron powders \"isotopes\" and certain low-calibre, substandard balls for ballbearings)"},"7205",{"$f":"Translations!$B$611","v":"Iron or steel products"},{"$f":"IF(E71=\" --- \",\"\",COUNTIF($E$3:E71,E71)&\"_\"&E71)","v":"1_Iron or steel products"},null,"Granules and powders of pig iron, spiegeleisen, iron or steel (excl. granules and powders of ferro-alloys, turnings and filings of iron or steel, radioactive iron powders \"isotopes\" and certain low-calibre, substandard balls for ballbearings)"]
["720510000080","7205 10 00",{"$f":"Translations!$B$760","v":"Granules, of pig iron, spiegeleisen, iron or steel (excl. granules of ferro-alloys, turnings and filings of iron or steel, certain small calibre items, defective balls for ball-bearings)"},"72051000",{"$f":"Translations!$B$611","v":"Iron or steel products"},{"$f":"IF(E72=\" --- \",\"\",COUNTIF($E$3:E72,E72)&\"_\"&E72)","v":"2_Iron or steel products"},null,"Granules, of pig iron, spiegeleisen, iron or steel (excl. granules of ferro-alloys, turnings and filings of iron or steel, certain small calibre items, defective balls for ball-bearings)"]
["720521000080","7205 21 00",{"$f":"Translations!$B$761","v":"Powders, of alloy steel (excl. powders of ferro-alloys and radioactive iron powders \"isotopes\")"},"72052100",{"$f":"Translations!$B$611","v":"Iron or steel products"},{"$f":"IF(E73=\" --- \",\"\",COUNTIF($E$3:E73,E73)&\"_\"&E73)","v":"3_Iron or steel products"},null,"Powders, of alloy steel (excl. powders of ferro-alloys and radioactive iron powders \"isotopes\")"]
["720529000080","7205 29 00",{"$f":"Translations!$B$762","v":"Powders, of pig iron, spiegeleisen, iron or non-alloy steel (excl. powders of ferro-alloys and radioactive iron powders \"isotopes\")"},"72052900",{"$f":"Translations!$B$611","v":"Iron or steel products"},{"$f":"IF(E74=\" --- \",\"\",COUNTIF($E$3:E74,E74)&\"_\"&E74)","v":"4_Iron or steel products"},null,"Powders, of pig iron, spiegeleisen, iron or non-alloy steel (excl. powders of ferro-alloys and radioactive iron powders \"isotopes\")"]
["720600000080","7206",{"$f":"Translations!$B$763","v":"Iron and non-alloy steel in ingots or other primary forms (excl. remelting scrap ingots, products obtained by continuous casting and iron of heading 7203)"},"7206",{"$f":"Translations!$B$668","v":"Crude steel"},{"$f":"IF(E75=\" --- \",\"\",COUNTIF($E$3:E75,E75)&\"_\"&E75)","v":"1_Crude steel"},null,"Iron and non-alloy steel in ingots or other primary forms (excl. remelting scrap ingots, products obtained by continuous casting and iron of heading 7203)"]
["720610000080","7206 10 00",{"$f":"Translations!$B$764","v":"Ingots, of iron and non-alloy steel (excl. remelted scrap ingots, continuous cast products, iron of heading 7203)"},{"$f":"SUBSTITUTE(B76,\" \",\"\")","v":"72061000"},{"$f":"Translations!$B$668","v":"Crude steel"},{"$f":"IF(E76=\" --- \",\"\",COUNTIF($E$3:E76,E76)&\"_\"&E76)","v":"2_Crude steel"},null,"Ingots, of iron and non-alloy steel (excl. remelted scrap ingots, continuous cast products, iron of heading 7203)"]
["720690000080","7206 90 00",{"$f":"Translations!$B$765","v":"Iron and non-alloy steel, in puddled bars or other primary forms (excl. ingots, remelted scrap ingots, continuous cast products, iron of heading 7203)"},"72069000",{"$f":"Translations!$B$668","v":"Crude steel"},{"$f":"IF(E77=\" --- \",\"\",COUNTIF($E$3:E77,E77)&\"_\"&E77)","v":"3_Crude steel"},null,"Iron and non-alloy steel, in puddled bars or other primary forms (excl. ingots, remelted scrap ingots, continuous cast products, iron of heading 7203)"]
["720700000080","7207",{"$f":"Translations!$B$766","v":"Semi-finished products of iron or non-alloy steel"},"7207",{"$f":"Translations!$B$668","v":"Crude steel"},{"$f":"IF(E78=\" --- \",\"\",COUNTIF($E$3:E78,E78)&\"_\"&E78)","v":"4_Crude steel"},null,"Semi-finished products of iron or non-alloy steel"]
["720711000080","7207 11",{"$f":"Translations!$B$767","v":"Semi-finished products of iron or non-alloy steel containing, by weight, < 0,25% of carbon, of square or rectangular cross-section, the width measuring < twice the thickness"},"720711",{"$f":"Translations!$B$668","v":"Crude steel"},{"$f":"IF(E79=\" --- \",\"\",COUNTIF($E$3:E79,E79)&\"_\"&E79)","v":"5_Crude steel"},null,"Semi-finished products of iron or non-alloy steel containing, by weight, < 0,25% of carbon, of square or rectangular cross-section, the width measuring < twice the thickness"]
["720711110080","7207 11 11",{"$f":"Translations!$B$768","v":"Semi-finished products, of non-alloy free-cutting steel, containing by weight < 0,25% carbon, of square or rectangular cross-section, the width < twice the thickness, rolled or obtained by continuous casting"},"72071111",{"$f":"Translations!$B$668","v":"Crude steel"},{"$f":"IF(E80=\" --- \",\"\",COUNTIF($E$3:E80,E80)&\"_\"&E80)","v":"6_Crude steel"},null,"Semi-finished products, of non-alloy free-cutting steel, containing by weight < 0,25% carbon, of square or rectangular cross-section, the width < twice the thickness, rolled or obtained by continuous casting"]
["720711140080","7207 11 14",{"$f":"Translations!$B$769","v":"Semi-finished products, of iron or non-alloy steel, containing by weight < 0,25% carbon, of square or rectangular cross-section, the width < twice the thickness of <= 130 mm, rolled or obtained by continuous casting (excl. free-cutting steel)"},"72071114",{"$f":"Translations!$B$668","v":"Crude steel"},{"$f":"IF(E81=\" --- \",\"\",COUNTIF($E$3:E81,E81)&\"_\"&E81)","v":"7_Crude steel"},null,"Semi-finished products, of iron or non-alloy steel, containing by weight < 0,25% carbon, of square or rectangular cross-section, the width < twice the thickness of <= 130 mm, rolled or obtained by continuous casting (excl. free-cutting steel)"]
["720711160080","7207 11 16",{"$f":"Translations!$B$770","v":"Semi-finished products, of iron or non-alloy steel, containing by weight < 0,25% carbon, of square or rectangular cross-section, the width < twice the thickness of > 130 mm, rolled or obtained by continuous casting (excl. free-cutting steel)"},"72071116",{"$f":"Translations!$B$668","v":"Crude steel"},{"$f":"IF(E82=\" --- \",\"\",COUNTIF($E$3:E82,E82)&\"_\"&E82)","v":"8_Crude steel"},null,"Semi-finished products, of iron or non-alloy steel, containing by weight < 0,25% carbon, of square or rectangular cross-section, the width < twice the thickness of > 130 mm, rolled or obtained by continuous casting (excl. free-cutting steel)"]
["720711900080","7207 11 90",{"$f":"Translations!$B$771","v":"Semi-finished products of iron or non-alloy steel, containing by weight < 0,25% carbon, of rectangular cross-section, the width < twice the thickness, forged"},"72071190",{"$f":"Translations!$B$668","v":"Crude steel"},{"$f":"IF(E83=\" --- \",\"\",COUNTIF($E$3:E83,E83)&\"_\"&E83)","v":"9_Crude steel"},null,"Semi-finished products of iron or non-alloy steel, containing by weight < 0,25% carbon, of rectangular cross-section, the width < twice the thickness, forged"]
["720712000080","7207 12",{"$f":"Translations!$B$772","v":"Semi-finished products of iron or non-alloy steel containing, by weight, < 0,25% of carbon, of rectangular \"other than square\" cross-section, the width measuring >= twice the thickness"},"720712",{"$f":"Translations!$B$668","v":"Crude steel"},{"$f":"IF(E84=\" --- \",\"\",COUNTIF($E$3:E84,E84)&\"_\"&E84)","v":"10_Crude steel"},null,"Semi-finished products of iron or non-alloy steel containing, by weight, < 0,25% of carbon, of rectangular \"other than square\" cross-section, the width measuring >= twice the thickness"]
["720712100080","7207 12 10",{"$f":"Translations!$B$773","v":"Semi-finished products of iron or non-alloy steel, containing by weight < 0,25 of carbon, of rectangular \"other than square\" cross-section, the width measuring >= twice the thickness, rolled or obtained by continuous casting"},"72071210",{"$f":"Translations!$B$668","v":"Crude steel"},{"$f":"IF(E85=\" --- \",\"\",COUNTIF($E$3:E85,E85)&\"_\"&E85)","v":"11_Crude steel"},null,"Semi-finished products of iron or non-alloy steel, containing by weight < 0,25 of carbon, of rectangular \"other than square\" cross-section, the width measuring >= twice the thickness, rolled or obtained by continuous casting"]
["720712900080","7207 12 90",{"$f":"Translations!$B$774","v":"Semi-finished products of iron or non-alloy steel, containing by weight < 0,25% carbon, of rectangular \"other than square\" cross-section, the width >= twice the thickness, forged"},"72071290",{"$f":"Translations!$B$668","v":"Crude steel"},{"$f":"IF(E86=\" --- \",\"\",COUNTIF($E$3:E86,E86)&\"_\"&E86)","v":"12_Crude steel"},null,"Semi-finished products of iron or non-alloy steel, containing by weight < 0,25% carbon, of rectangular \"other than square\" cross-section, the width >= twice the thickness, forged"]
["720719000080","7207 19",{"$f":"Translations!$B$775","v":"Semi-finished products of iron or non-alloy steel containing, by weight, < 0,25% of carbon, of circular cross-section, or of a cross-section other than square or rectangular"},"720719",{"$f":"Translations!$B$668","v":"Crude steel"},{"$f":"IF(E87=\" --- \",\"\",COUNTIF($E$3:E87,E87)&\"_\"&E87)","v":"13_Crude steel"},null,"Semi-finished products of iron or non-alloy steel containing, by weight, < 0,25% of carbon, of circular cross-section, or of a cross-section other than square or rectangular"]
["720719120080","7207 19 12",{"$f":"Translations!$B$776","v":"Semi-finished products, of iron or non-alloy steel, containing by weight < 0,25% carbon, of circular or polygonal cross-section, rolled or obtained by continuous casting"},"72071912",{"$f":"Translations!$B$668","v":"Crude steel"},{"$f":"IF(E88=\" --- \",\"\",COUNTIF($E$3:E88,E88)&\"_\"&E88)","v":"14_Crude steel"},null,"Semi-finished products, of iron or non-alloy steel, containing by weight < 0,25% carbon, of circular or polygonal cross-section, rolled or obtained by continuous casting"]
["720719190080","7207 19 19",{"$f":"Translations!$B$612","v":"Semi-finished products of iron or non-alloy steel, containing by weight < 0,25% carbon, of circular or polygonal cross-section, forged"},"72071919",{"$f":"Translations!$B$668","v":"Crude steel"},{"$f":"IF(E89=\" --- \",\"\",COUNTIF($E$3:E89,E89)&\"_\"&E89)","v":"15_Crude steel"},null,"Semi-finished products of iron or non-alloy steel, containing by weight < 0,25% carbon, of circular or polygonal cross-section, forged"]
["720719800080","7207 19 80",{"$f":"Translations!$B$777","v":"Semi-finished products of iron or non-alloy steel, containing by weight < 0,25% carbon (excl. semi-products, of square, rectangular, circular or polygonal cross-section)"},"72071980",{"$f":"Translations!$B$668","v":"Crude steel"},{"$f":"IF(E90=\" --- \",\"\",COUNTIF($E$3:E90,E90)&\"_\"&E90)","v":"16_Crude steel"},null,"Semi-finished products of iron or non-alloy steel, containing by weight < 0,25% carbon (excl. semi-products, of square, rectangular, circular or polygonal cross-section)"]
["720720000080","7207 20",{"$f":"Translations!$B$778","v":"Semi-finished products of iron or non-alloy steel containing, by weight, >= 0,25% of carbon"},"720720",{"$f":"Translations!$B$668","v":"Crude steel"},{"$f":"IF(E91=\" --- \",\"\",COUNTIF($E$3:E91,E91)&\"_\"&E91)","v":"17_Crude steel"},null,"Semi-finished products of iron or non-alloy steel containing, by weight, >= 0,25% of carbon"]
["720720110080","7207 20 11",{"$f":"Translations!$B$779","v":"Semi-finished products, of non-alloy free-cutting steel, containing by weight >= 0,25% carbon, of square or rectangular cross-section, the width < twice the thickness, rolled or obtained by continuous casting"},"72072011",{"$f":"Translations!$B$668","v":"Crude steel"},{"$f":"IF(E92=\" --- \",\"\",COUNTIF($E$3:E92,E92)&\"_\"&E92)","v":"18_Crude steel"},null,"Semi-finished products, of non-alloy free-cutting steel, containing by weight >= 0,25% carbon, of square or rectangular cross-section, the width < twice the thickness, rolled or obtained by continuous casting"]
["720720150080","7207 20 15",{"$f":"Translations!$B$780","v":"Semi-finished products of iron or non-alloy steel, containing by weight >= 0,25% but < 0,6% carbon, of square or rectangular cross-section, the width < twice the thickness, rolled or obtained by continuous casting (excl. free-cutting steel)"},"72072015",{"$f":"Translations!$B$668","v":"Crude steel"},{"$f":"IF(E93=\" --- \",\"\",COUNTIF($E$3:E93,E93)&\"_\"&E93)","v":"19_Crude steel"},null,"Semi-finished products of iron or non-alloy steel, containing by weight >= 0,25% but < 0,6% carbon, of square or rectangular cross-section, the width < twice the thickness, rolled or obtained by continuous casting (excl. free-cutting steel)"]
["720720170080","7207 20 17",{"$f":"Translations!$B$781","v":"Semi-finished products of iron or non-alloy steel, containing by weight >= 0,6% carbon, of square or rectangular cross-section, the width < twice the thickness, rolled or obtained by continuous casting (excl. free-cutting steel)"},"72072017",{"$f":"Translations!$B$668","v":"Crude steel"},{"$f":"IF(E94=\" --- \",\"\",COUNTIF($E$3:E94,E94)&\"_\"&E94)","v":"20_Crude steel"},null,"Semi-finished products of iron or non-alloy steel, containing by weight >= 0,6% carbon, of square or rectangular cross-section, the width < twice the thickness, rolled or obtained by continuous casting (excl. free-cutting steel)"]
["720720190080","7207 20 19",{"$f":"Translations!$B$782","v":"Semi-finished products of iron or non-alloy steel, containing by weight >= 0,25% carbon, of square or rectangular cross-section, the width < twice the thickness, forged"},"72072019",{"$f":"Translations!$B$668","v":"Crude steel"},{"$f":"IF(E95=\" --- \",\"\",COUNTIF($E$3:E95,E95)&\"_\"&E95)","v":"21_Crude steel"},null,"Semi-finished products of iron or non-alloy steel, containing by weight >= 0,25% carbon, of square or rectangular cross-section, the width < twice the thickness, forged"]
["720720320080","7207 20 32",{"$f":"Translations!$B$783","v":"Semi-finished products of iron or non-alloy steel, containing by weight >= 0,25 of carbon, of rectangular \"other than square\" cross-section, the width measuring >= twice the thickness, rolled or obtained by continuous casting"},"72072032",{"$f":"Translations!$B$668","v":"Crude steel"},{"$f":"IF(E96=\" --- \",\"\",COUNTIF($E$3:E96,E96)&\"_\"&E96)","v":"22_Crude steel"},null,"Semi-finished products of iron or non-alloy steel, containing by weight >= 0,25 of carbon, of rectangular \"other than square\" cross-section, the width measuring >= twice the thickness, rolled or obtained by continuous casting"]
["720720390080","7207 20 39",{"$f":"Translations!$B$784","v":"Semi-finished products of iron or non-alloy steel, containing by weight >= 0,25% carbon, of rectangular \"other than square\" cross-section and the width >= twice the thickness, forged"},"72072039",{"$f":"Translations!$B$668","v":"Crude steel"},{"$f":"IF(E97=\" --- \",\"\",COUNTIF($E$3:E97,E97)&\"_\"&E97)","v":"23_Crude steel"},null,"Semi-finished products of iron or non-alloy steel, containing by weight >= 0,25% carbon, of rectangular \"other than square\" cross-section and the width >= twice the thickness, forged"]
["720720520080","7207 20 52",{"$f":"Translations!$B$785","v":"Semi-finished products of iron or non-alloy steel, containing by weight >= 0,25% carbon, of circular or polygonal cross-section, rolled or obtained by continuous casting"},"72072052",{"$f":"Translations!$B$668","v":"Crude steel"},{"$f":"IF(E98=\" --- \",\"\",COUNTIF($E$3:E98,E98)&\"_\"&E98)","v":"24_Crude steel"},null,"Semi-finished products of iron or non-alloy steel, containing by weight >= 0,25% carbon, of circular or polygonal cross-section, rolled or obtained by continuous casting"]
["720720590080","7207 20 59",{"$f":"Translations!$B$786","v":"Semi-finished products of iron or non-alloy steel, containing by weight >= 0,6% carbon, of circular or polygonal cross-section, forged"},"72072059",{"$f":"Translations!$B$668","v":"Crude steel"},{"$f":"IF(E99=\" --- \",\"\",COUNTIF($E$3:E99,E99)&\"_\"&E99)","v":"25_Crude steel"},null,"Semi-finished products of iron or non-alloy steel, containing by weight >= 0,6% carbon, of circular or polygonal cross-section, forged"]
["720720800080","7207 20 80",{"$f":"Translations!$B$787","v":"Semi-finished products of iron or non-alloy steel, containing by weight >= 0,25% carbon (excl. those of square, rectangular, circular or polygonal cross-section)"},"72072080",{"$f":"Translations!$B$668","v":"Crude steel"},{"$f":"IF(E100=\" --- \",\"\",COUNTIF($E$3:E100,E100)&\"_\"&E100)","v":"26_Crude steel"},null,"Semi-finished products of iron or non-alloy steel, containing by weight >= 0,25% carbon (excl. those of square, rectangular, circular or polygonal cross-section)"]
["720800000080","7208",{"$f":"Translations!$B$788","v":"Flat-rolled products of iron or non-alloy steel, of a width >= 600 mm, hot-rolled, not clad, plated or coated"},"7208",{"$f":"Translations!$B$611","v":"Iron or steel products"},{"$f":"IF(E101=\" --- \",\"\",COUNTIF($E$3:E101,E101)&\"_\"&E101)","v":"5_Iron or steel products"},null,"Flat-rolled products of iron or non-alloy steel, of a width >= 600 mm, hot-rolled, not clad, plated or coated"]
["720810000080","7208 10 00",{"$f":"Translations!$B$789","v":"Flat-rolled products of iron or non-alloy steel, of a width of >= 600 mm, in coils, simply hot-rolled, not clad, plated or coated, with patterns in relief directly due to the rolling process"},"72081000",{"$f":"Translations!$B$611","v":"Iron or steel products"},{"$f":"IF(E102=\" --- \",\"\",COUNTIF($E$3:E102,E102)&\"_\"&E102)","v":"6_Iron or steel products"},null,"Flat-rolled products of iron or non-alloy steel, of a width of >= 600 mm, in coils, simply hot-rolled, not clad, plated or coated, with patterns in relief directly due to the rolling process"]
["720825000080","7208 25 00",{"$f":"Translations!$B$790","v":"Flat-rolled products of iron or non-alloy steel, of a width of >= 600 mm, in coils, simply hot-rolled, not clad, plated or coated, of a thickness of >= 4,75 mm, pickled, without patterns in relief"},"72082500",{"$f":"Translations!$B$611","v":"Iron or steel products"},{"$f":"IF(E103=\" --- \",\"\",COUNTIF($E$3:E103,E103)&\"_\"&E103)","v":"7_Iron or steel products"},null,"Flat-rolled products of iron or non-alloy steel, of a width of >= 600 mm, in coils, simply hot-rolled, not clad, plated or coated, of a thickness of >= 4,75 mm, pickled, without patterns in relief"]
["720826000080","7208 26 00",{"$f":"Translations!$B$791","v":"Flat-rolled products of iron or non-alloy steel, of a width of >= 600 mm, in coils, simply hot-rolled, not clad, plated or coated, of a thickness of >= 3 mm but < 4,75 mm, pickled, without patterns in relief"},"72082600",{"$f":"Translations!$B$611","v":"Iron or steel products"},{"$f":"IF(E104=\" --- \",\"\",COUNTIF($E$3:E104,E104)&\"_\"&E104)","v":"8_Iron or steel products"},null,"Flat-rolled products of iron or non-alloy steel, of a width of >= 600 mm, in coils, simply hot-rolled, not clad, plated or coated, of a thickness of >= 3 mm but < 4,75 mm, pickled, without patterns in relief"]
["720827000080","7208 27 00",{"$f":"Translations!$B$792","v":"Flat-rolled products of iron or non-alloy steel, of a width of >= 600 mm, in coils, simply hot-rolled, not clad, plated or coated, of a thickness of < 3 mm, pickled, without patterns in relief"},"72082700",{"$f":"Translations!$B$611","v":"Iron or steel products"},{"$f":"IF(E105=\" --- \",\"\",COUNTIF($E$3:E105,E105)&\"_\"&E105)","v":"9_Iron or steel products"},null,"Flat-rolled products of iron or non-alloy steel, of a width of >= 600 mm, in coils, simply hot-rolled, not clad, plated or coated, of a thickness of < 3 mm, pickled, without patterns in relief"]
["720836000080","7208 36 00",{"$f":"Translations!$B$793","v":"Flat-rolled products of iron or non-alloy steel, of a width of >= 600 mm, in coils, simply hot-rolled, not clad, plated or coated, of a thickness of >= 10 mm, not pickled, without patterns in relief"},"72083600",{"$f":"Translations!$B$611","v":"Iron or steel products"},{"$f":"IF(E106=\" --- \",\"\",COUNTIF($E$3:E106,E106)&\"_\"&E106)","v":"10_Iron or steel products"},null,"Flat-rolled products of iron or non-alloy steel, of a width of >= 600 mm, in coils, simply hot-rolled, not clad, plated or coated, of a thickness of >= 10 mm, not pickled, without patterns in relief"]
["720837000080","7208 37 00",{"$f":"Translations!$B$794","v":"Flat-rolled products of iron or non-alloy steel, of a width of >= 600 mm, in coils, simply hot-rolled, not clad, plated or coated, of a thickness of >= 4,75 mm but < 10 mm, not pickled, without patterns in relief"},"72083700",{"$f":"Translations!$B$611","v":"Iron or steel products"},{"$f":"IF(E107=\" --- \",\"\",COUNTIF($E$3:E107,E107)&\"_\"&E107)","v":"11_Iron or steel products"},null,"Flat-rolled products of iron or non-alloy steel, of a width of >= 600 mm, in coils, simply hot-rolled, not clad, plated or coated, of a thickness of >= 4,75 mm but < 10 mm, not pickled, without patterns in relief"]
["720838000080","7208 38 00",{"$f":"Translations!$B$795","v":"Flat-rolled products of iron or non-alloy steel, of a width of >= 600 mm, in coils, simply hot-rolled, not clad, plated or coated, of a thickness of >= 3 mm but < 4,75 mm, not pickled, without patterns in relief"},"72083800",{"$f":"Translations!$B$611","v":"Iron or steel products"},{"$f":"IF(E108=\" --- \",\"\",COUNTIF($E$3:E108,E108)&\"_\"&E108)","v":"12_Iron or steel products"},null,"Flat-rolled products of iron or non-alloy steel, of a width of >= 600 mm, in coils, simply hot-rolled, not clad, plated or coated, of a thickness of >= 3 mm but < 4,75 mm, not pickled, without patterns in relief"]
["720839000080","7208 39 00",{"$f":"Translations!$B$796","v":"Flat-rolled products of iron or non-alloy steel, of a width of >= 600 mm, in coils, simply hot-rolled, not clad, plated or coated, of a thickness of < 3 mm, not pickled, without patterns in relief"},"72083900",{"$f":"Translations!$B$611","v":"Iron or steel products"},{"$f":"IF(E109=\" --- \",\"\",COUNTIF($E$3:E109,E109)&\"_\"&E109)","v":"13_Iron or steel products"},null,"Flat-rolled products of iron or non-alloy steel, of a width of >= 600 mm, in coils, simply hot-rolled, not clad, plated or coated, of a thickness of < 3 mm, not pickled, without patterns in relief"]
["720840000080","7208 40 00",{"$f":"Translations!$B$797","v":"Flat-rolled products of iron or non-alloy steel, of a width of >= 600 mm, not in coils, simply hot-rolled, not clad, plated or coated, with patterns in relief directly due to the rolling process"},"72084000",{"$f":"Translations!$B$611","v":"Iron or steel products"},{"$f":"IF(E110=\" --- \",\"\",COUNTIF($E$3:E110,E110)&\"_\"&E110)","v":"14_Iron or steel products"},null,"Flat-rolled products of iron or non-alloy steel, of a width of >= 600 mm, not in coils, simply hot-rolled, not clad, plated or coated, with patterns in relief directly due to the rolling process"]
["720851000080","7208 51",{"$f":"Translations!$B$798","v":"Flat-rolled products of iron or non-alloy steel, of a width >= 600 mm, not in coils, simply hot-rolled, not clad, plated or coated, of a thickness of > 10 mm, without patterns in relief"},"720851",{"$f":"Translations!$B$611","v":"Iron or steel products"},{"$f":"IF(E111=\" --- \",\"\",COUNTIF($E$3:E111,E111)&\"_\"&E111)","v":"15_Iron or steel products"},null,"Flat-rolled products of iron or non-alloy steel, of a width >= 600 mm, not in coils, simply hot-rolled, not clad, plated or coated, of a thickness of > 10 mm, without patterns in relief"]
["720851200080","7208 51 20",{"$f":"Translations!$B$799","v":"Flat-rolled products of iron or non-alloy steel, of a width of >= 600 mm, not in coils, simply hot-rolled, not clad, plated or coated, of a thickness of > 15 mm, without patterns in relief"},"72085120",{"$f":"Translations!$B$611","v":"Iron or steel products"},{"$f":"IF(E112=\" --- \",\"\",COUNTIF($E$3:E112,E112)&\"_\"&E112)","v":"16_Iron or steel products"},null,"Flat-rolled products of iron or non-alloy steel, of a width of >= 600 mm, not in coils, simply hot-rolled, not clad, plated or coated, of a thickness of > 15 mm, without patterns in relief"]
["720851910080","7208 51 91",{"$f":"Translations!$B$800","v":"Flat-rolled products of iron or non-alloy steel, of a width of >= 2.050 mm, not in coils, simply hot-rolled, not clad, plated or coated, of a thickness of > 10 mm but <= 15 mm, without patterns in relief (excl. \"wide flats\")"},"72085191",{"$f":"Translations!$B$611","v":"Iron or steel products"},{"$f":"IF(E113=\" --- \",\"\",COUNTIF($E$3:E113,E113)&\"_\"&E113)","v":"17_Iron or steel products"},null,"Flat-rolled products of iron or non-alloy steel, of a width of >= 2.050 mm, not in coils, simply hot-rolled, not clad, plated or coated, of a thickness of > 10 mm but <= 15 mm, without patterns in relief (excl. \"wide flats\")"]
["720851980080","7208 51 98",{"$f":"Translations!$B$801","v":"Flat-rolled products of iron or non-alloy steel, of a width of < 2.050 mm but >= 600 mm, not in coils, simply hot-rolled, not clad, plated or coated, of a thickness of > 10 mm but <= 15 mm, without patterns in relief"},"72085198",{"$f":"Translations!$B$611","v":"Iron or steel products"},{"$f":"IF(E114=\" --- \",\"\",COUNTIF($E$3:E114,E114)&\"_\"&E114)","v":"18_Iron or steel products"},null,"Flat-rolled products of iron or non-alloy steel, of a width of < 2.050 mm but >= 600 mm, not in coils, simply hot-rolled, not clad, plated or coated, of a thickness of > 10 mm but <= 15 mm, without patterns in relief"]
["720852000080","7208 52",{"$f":"Translations!$B$802","v":"Flat-rolled products of iron or non-alloy steel, of a width of >= 600 mm, not in coils, simply hot-rolled, not clad, plated or coated, of a thickness of >= 4,75 mm but <= 10 mm, without patterns in relief"},"720852",{"$f":"Translations!$B$611","v":"Iron or steel products"},{"$f":"IF(E115=\" --- \",\"\",COUNTIF($E$3:E115,E115)&\"_\"&E115)","v":"19_Iron or steel products"},null,"Flat-rolled products of iron or non-alloy steel, of a width of >= 600 mm, not in coils, simply hot-rolled, not clad, plated or coated, of a thickness of >= 4,75 mm but <= 10 mm, without patterns in relief"]
["720852100080","7208 52 10",{"$f":"Translations!$B$803","v":"Flat-rolled products of iron or non-alloy steel, of a width of <= 1.250 mm, not in coils, simply hot-rolled on four faces or in a closed box pass, not clad, plated or coated, of a thickness of >= 4,75 mm but <= 10 mm, without patterns in relief"},"72085210",{"$f":"Translations!$B$611","v":"Iron or steel products"},{"$f":"IF(E116=\" --- \",\"\",COUNTIF($E$3:E116,E116)&\"_\"&E116)","v":"20_Iron or steel products"},null,"Flat-rolled products of iron or non-alloy steel, of a width of <= 1.250 mm, not in coils, simply hot-rolled on four faces or in a closed box pass, not clad, plated or coated, of a thickness of >= 4,75 mm but <= 10 mm, without patterns in relief"]
["720852910080","7208 52 91",{"$f":"Translations!$B$804","v":"Flat-rolled products of iron or non-alloy steel, of a width of >= 2.050 mm, not in coils, simply hot-rolled, not clad, plated or coated, of a thickness of >= 4,75 mm but <= 10 mm, without patterns in relief"},"72085291",{"$f":"Translations!$B$611","v":"Iron or steel products"},{"$f":"IF(E117=\" --- \",\"\",COUNTIF($E$3:E117,E117)&\"_\"&E117)","v":"21_Iron or steel products"},null,"Flat-rolled products of iron or non-alloy steel, of a width of >= 2.050 mm, not in coils, simply hot-rolled, not clad, plated or coated, of a thickness of >= 4,75 mm but <= 10 mm, without patterns in relief"]
["720852990080","7208 52 99",{"$f":"Translations!$B$805","v":"Flat-rolled products of iron or non-alloy steel, of a width of < 2.050 mm but >= 600 mm, not in coils, simply hot-rolled, not clad, plated or coated, of a thickness of >= 4,75 mm but <= 10 mm, without patterns in relief (excl. rolled on four faces or in a closed bow pass of a width <= 1.250 mm)"},"72085299",{"$f":"Translations!$B$611","v":"Iron or steel products"},{"$f":"IF(E118=\" --- \",\"\",COUNTIF($E$3:E118,E118)&\"_\"&E118)","v":"22_Iron or steel products"},null,"Flat-rolled products of iron or non-alloy steel, of a width of < 2.050 mm but >= 600 mm, not in coils, simply hot-rolled, not clad, plated or coated, of a thickness of >= 4,75 mm but <= 10 mm, without patterns in relief (excl. rolled on four faces or in a closed bow pass of a width <= 1.250 mm)"]
["720853000080","7208 53",{"$f":"Translations!$B$806","v":"Flat-rolled products of iron or non-alloy steel, of a width of >= 600 mm, not in coils, simply hot-rolled, not clad, plated or coated, of a thickness of >= 3 mm but < 4,75 mm, without patterns in relief"},"720853",{"$f":"Translations!$B$611","v":"Iron or steel products"},{"$f":"IF(E119=\" --- \",\"\",COUNTIF($E$3:E119,E119)&\"_\"&E119)","v":"23_Iron or steel products"},null,"Flat-rolled products of iron or non-alloy steel, of a width of >= 600 mm, not in coils, simply hot-rolled, not clad, plated or coated, of a thickness of >= 3 mm but < 4,75 mm, without patterns in relief"]
["720853100080","7208 53 10",{"$f":"Translations!$B$807","v":"Flat-rolled products of iron or non-alloy steel, of a width of <= 1.250 mm, not in coils, simply hot-rolled on four faces or in a closed box pass, not clad, plated or coated, of a thickness of >= 4 mm but < 4,75 mm, without patterns in relief"},"72085310",{"$f":"Translations!$B$611","v":"Iron or steel products"},{"$f":"IF(E120=\" --- \",\"\",COUNTIF($E$3:E120,E120)&\"_\"&E120)","v":"24_Iron or steel products"},null,"Flat-rolled products of iron or non-alloy steel, of a width of <= 1.250 mm, not in coils, simply hot-rolled on four faces or in a closed box pass, not clad, plated or coated, of a thickness of >= 4 mm but < 4,75 mm, without patterns in relief"]
["720853900080","7208 53 90",{"$f":"Translations!$B$808","v":"Flat-rolled products of iron or non-alloy steel, of a width of >= 600 mm, not in coils, simply hot-rolled, not clad, plated or coated, of a thickness of >= 3 mm but < 4,75 mm, without patterns in relief (excl. rolled on four faces or in a closed bow pass of a width <= 1.250 mm and of a thickness of >= 4 mm)"},"72085390",{"$f":"Translations!$B$611","v":"Iron or steel products"},{"$f":"IF(E121=\" --- \",\"\",COUNTIF($E$3:E121,E121)&\"_\"&E121)","v":"25_Iron or steel products"},null,"Flat-rolled products of iron or non-alloy steel, of a width of >= 600 mm, not in coils, simply hot-rolled, not clad, plated or coated, of a thickness of >= 3 mm but < 4,75 mm, without patterns in relief (excl. rolled on four faces or in a closed bow pass of a width <= 1.250 mm and of a thickness of >= 4 mm)"]
["720854000080","7208 54 00",{"$f":"Translations!$B$809","v":"Flat-rolled products of iron or non-alloy steel, of a width of >= 600 mm, not in coils, simply hot-rolled, not clad, plated or coated, of a thickness of < 3 mm, without patterns in relief"},"72085400",{"$f":"Translations!$B$611","v":"Iron or steel products"},{"$f":"IF(E122=\" --- \",\"\",COUNTIF($E$3:E122,E122)&\"_\"&E122)","v":"26_Iron or steel products"},null,"Flat-rolled products of iron or non-alloy steel, of a width of >= 600 mm, not in coils, simply hot-rolled, not clad, plated or coated, of a thickness of < 3 mm, without patterns in relief"]
["720890000080","7208 90",{"$f":"Translations!$B$810","v":"Flat-rolled products of iron or steel, of a width >= 600 mm, hot-rolled and further worked, but not clad, plated or coated"},"720890",{"$f":"Translations!$B$611","v":"Iron or steel products"},{"$f":"IF(E123=\" --- \",\"\",COUNTIF($E$3:E123,E123)&\"_\"&E123)","v":"27_Iron or steel products"},null,"Flat-rolled products of iron or steel, of a width >= 600 mm, hot-rolled and further worked, but not clad, plated or coated"]
["720890200080","7208 90 20",{"$f":"Translations!$B$811","v":"Flat-rolled products of iron or steel, of a width >= 600 mm, hot-rolled and further worked, but not clad, plated or coated, perforated"},"72089020",{"$f":"Translations!$B$611","v":"Iron or steel products"},{"$f":"IF(E124=\" --- \",\"\",COUNTIF($E$3:E124,E124)&\"_\"&E124)","v":"28_Iron or steel products"},null,"Flat-rolled products of iron or steel, of a width >= 600 mm, hot-rolled and further worked, but not clad, plated or coated, perforated"]
["720890800080","7208 90 80",{"$f":"Translations!$B$812","v":"Flat-rolled products of iron or steel, of a width >= 600 mm, hot-rolled and further worked, but not clad, plated or coated, non-perforated"},"72089080",{"$f":"Translations!$B$611","v":"Iron or steel products"},{"$f":"IF(E125=\" --- \",\"\",COUNTIF($E$3:E125,E125)&\"_\"&E125)","v":"29_Iron or steel products"},null,"Flat-rolled products of iron or steel, of a width >= 600 mm, hot-rolled and further worked, but not clad, plated or coated, non-perforated"]
["720900000080","7209",{"$f":"Translations!$B$813","v":"Flat-rolled products of iron or non-alloy steel, of a width of >= 600 mm, cold-rolled \"cold-reduced\", not clad, plated or coated"},"7209",{"$f":"Translations!$B$611","v":"Iron or steel products"},{"$f":"IF(E126=\" --- \",\"\",COUNTIF($E$3:E126,E126)&\"_\"&E126)","v":"30_Iron or steel products"},null,"Flat-rolled products of iron or non-alloy steel, of a width of >= 600 mm, cold-rolled \"cold-reduced\", not clad, plated or coated"]
["720915000080","7209 15 00",{"$f":"Translations!$B$814","v":"Flat-rolled products of iron or non-alloy steel, of a width of >= 600 mm, in coils, simply cold-rolled \"cold-reduced\", not clad, plated or coated, of a thickness of >= 3 mm"},"72091500",{"$f":"Translations!$B$611","v":"Iron or steel products"},{"$f":"IF(E127=\" --- \",\"\",COUNTIF($E$3:E127,E127)&\"_\"&E127)","v":"31_Iron or steel products"},null,"Flat-rolled products of iron or non-alloy steel, of a width of >= 600 mm, in coils, simply cold-rolled \"cold-reduced\", not clad, plated or coated, of a thickness of >= 3 mm"]
["720916000080","7209 16",{"$f":"Translations!$B$815","v":"Flat-rolled products of iron or non-alloy steel, of a width of >= 600 mm, in coils, simply cold-rolled \"cold-reduced\", not clad, plated or coated, of a thickness of > 1 mm but < 3 mm"},"720916",{"$f":"Translations!$B$611","v":"Iron or steel products"},{"$f":"IF(E128=\" --- \",\"\",COUNTIF($E$3:E128,E128)&\"_\"&E128)","v":"32_Iron or steel products"},null,"Flat-rolled products of iron or non-alloy steel, of a width of >= 600 mm, in coils, simply cold-rolled \"cold-reduced\", not clad, plated or coated, of a thickness of > 1 mm but < 3 mm"]
["720916100080","7209 16 10",{"$f":"Translations!$B$816","v":"Flat-rolled products of iron or non-alloy steel, of a width of >= 600 mm, in coils, simply cold-rolled \"cold-reduced\", of a thickness of > 1 mm but < 3 mm \"electrical\""},"72091610",{"$f":"Translations!$B$611","v":"Iron or steel products"},{"$f":"IF(E129=\" --- \",\"\",COUNTIF($E$3:E129,E129)&\"_\"&E129)","v":"33_Iron or steel products"},null,"Flat-rolled products of iron or non-alloy steel, of a width of >= 600 mm, in coils, simply cold-rolled \"cold-reduced\", of a thickness of > 1 mm but < 3 mm \"electrical\""]
["720916900080","7209 16 90",{"$f":"Translations!$B$817","v":"Flat-rolled products of iron or non-alloy steel, of a width of >= 600 mm, in coils, simply cold-rolled \"cold-reduced\", not clad, plated or coated, of a thickness of > 1 mm but < 3 mm (excl. electrical)"},"72091690",{"$f":"Translations!$B$611","v":"Iron or steel products"},{"$f":"IF(E130=\" --- \",\"\",COUNTIF($E$3:E130,E130)&\"_\"&E130)","v":"34_Iron or steel products"},null,"Flat-rolled products of iron or non-alloy steel, of a width of >= 600 mm, in coils, simply cold-rolled \"cold-reduced\", not clad, plated or coated, of a thickness of > 1 mm but < 3 mm (excl. electrical)"]
["720917000080","7209 17",{"$f":"Translations!$B$818","v":"Flat-rolled products of iron or non-alloy steel, of a width of >= 600 mm, in coils, simply cold-rolled \"cold-reduced\", not clad, plated or coated, of a thickness of >= 0,5 mm but <= 1 mm"},"720917",{"$f":"Translations!$B$611","v":"Iron or steel products"},{"$f":"IF(E131=\" --- \",\"\",COUNTIF($E$3:E131,E131)&\"_\"&E131)","v":"35_Iron or steel products"},null,"Flat-rolled products of iron or non-alloy steel, of a width of >= 600 mm, in coils, simply cold-rolled \"cold-reduced\", not clad, plated or coated, of a thickness of >= 0,5 mm but <= 1 mm"]
["720917100080","7209 17 10",{"$f":"Translations!$B$819","v":"Flat-rolled products of iron or non-alloy steel, of a width of >= 600 mm, in coils, simply cold-rolled \"cold-reduced\", of a thickness of >= 0,5 mm but <= 1 mm \"electrical\""},"72091710",{"$f":"Translations!$B$611","v":"Iron or steel products"},{"$f":"IF(E132=\" --- \",\"\",COUNTIF($E$3:E132,E132)&\"_\"&E132)","v":"36_Iron or steel products"},null,"Flat-rolled products of iron or non-alloy steel, of a width of >= 600 mm, in coils, simply cold-rolled \"cold-reduced\", of a thickness of >= 0,5 mm but <= 1 mm \"electrical\""]
["720917900080","7209 17 90",{"$f":"Translations!$B$820","v":"Flat-rolled products of iron or non-alloy steel, of a width of >= 600 mm, in coils, simply cold-rolled \"cold-reduced\", not clad, plated or coated, of a thickness of >= 0,5 mm but <= 1 mm (excl. electrical)"},"72091790",{"$f":"Translations!$B$611","v":"Iron or steel products"},{"$f":"IF(E133=\" --- \",\"\",COUNTIF($E$3:E133,E133)&\"_\"&E133)","v":"37_Iron or steel products"},null,"Flat-rolled products of iron or non-alloy steel, of a width of >= 600 mm, in coils, simply cold-rolled \"cold-reduced\", not clad, plated or coated, of a thickness of >= 0,5 mm but <= 1 mm (excl. electrical)"]
["720918000080","7209 18",{"$f":"Translations!$B$821","v":"Flat-rolled products of iron or non-alloy steel, of a width of >= 600 mm, in coils, simply cold-rolled \"cold-reduced\", not clad, plated or coated, of a thickness of < 0,5 mm"},"720918",{"$f":"Translations!$B$611","v":"Iron or steel products"},{"$f":"IF(E134=\" --- \",\"\",COUNTIF($E$3:E134,E134)&\"_\"&E134)","v":"38_Iron or steel products"},null,"Flat-rolled products of iron or non-alloy steel, of a width of >= 600 mm, in coils, simply cold-rolled \"cold-reduced\", not clad, plated or coated, of a thickness of < 0,5 mm"]
["720918100080","7209 18 10",{"$f":"Translations!$B$822","v":"Flat-rolled products of iron or non-alloy steel, of a width of >= 600 mm, in coils, simply cold-rolled \"cold-reduced\", of a thickness of < 0,5 mm \"electrical\""},"72091810",{"$f":"Translations!$B$611","v":"Iron or steel products"},{"$f":"IF(E135=\" --- \",\"\",COUNTIF($E$3:E135,E135)&\"_\"&E135)","v":"39_Iron or steel products"},null,"Flat-rolled products of iron or non-alloy steel, of a width of >= 600 mm, in coils, simply cold-rolled \"cold-reduced\", of a thickness of < 0,5 mm \"electrical\""]
["720918910080","7209 18 91",{"$f":"Translations!$B$823","v":"Flat-rolled products of iron or non-alloy steel, of a width of >= 600 mm, in coils, simply cold-rolled \"cold-reduced\", not clad, plated or coated, of a thickness of >= 0,35 mm but < 0,5 mm (excl. electrical)"},"72091891",{"$f":"Translations!$B$611","v":"Iron or steel products"},{"$f":"IF(E136=\" --- \",\"\",COUNTIF($E$3:E136,E136)&\"_\"&E136)","v":"40_Iron or steel products"},null,"Flat-rolled products of iron or non-alloy steel, of a width of >= 600 mm, in coils, simply cold-rolled \"cold-reduced\", not clad, plated or coated, of a thickness of >= 0,35 mm but < 0,5 mm (excl. electrical)"]
["720918990080","7209 18 99",{"$f":"Translations!$B$824","v":"Flat-rolled products of iron or non-alloy steel, of a width of >= 600 mm, in coils, simply cold-rolled \"cold-reduced\", not clad, plated or coated, of a thickness of < 0,35 mm (excl. electrical)"},"72091899",{"$f":"Translations!$B$611","v":"Iron or steel products"},{"$f":"IF(E137=\" --- \",\"\",COUNTIF($E$3:E137,E137)&\"_\"&E137)","v":"41_Iron or steel products"},null,"Flat-rolled products of iron or non-alloy steel, of a width of >= 600 mm, in coils, simply cold-rolled \"cold-reduced\", not clad, plated or coated, of a thickness of < 0,35 mm (excl. electrical)"]
["720925000080","7209 25 00",{"$f":"Translations!$B$825","v":"Flat-rolled products of iron or non-alloy steel, of a width of >= 600 mm, not in coils, simply cold-rolled \"cold-reduced\", not clad, plated or coated, of a thickness of >= 3 mm"},"72092500",{"$f":"Translations!$B$611","v":"Iron or steel products"},{"$f":"IF(E138=\" --- \",\"\",COUNTIF($E$3:E138,E138)&\"_\"&E138)","v":"42_Iron or steel products"},null,"Flat-rolled products of iron or non-alloy steel, of a width of >= 600 mm, not in coils, simply cold-rolled \"cold-reduced\", not clad, plated or coated, of a thickness of >= 3 mm"]
["720926000080","7209 26",{"$f":"Translations!$B$826","v":"Flat-rolled products of iron or non-alloy steel, of a width of >= 600 mm, not in coils, simply cold-rolled \"cold-reduced\", not clad, plated or coated, of a thickness of > 1 mm but < 3 mm"},"720926",{"$f":"Translations!$B$611","v":"Iron or steel products"},{"$f":"IF(E139=\" --- \",\"\",COUNTIF($E$3:E139,E139)&\"_\"&E139)","v":"43_Iron or steel products"},null,"Flat-rolled products of iron or non-alloy steel, of a width of >= 600 mm, not in coils, simply cold-rolled \"cold-reduced\", not clad, plated or coated, of a thickness of > 1 mm but < 3 mm"]
["720926100080","7209 26 10",{"$f":"Translations!$B$827","v":"Flat-rolled products of iron or non-alloy steel, of a width of >= 600 mm, not in coils, simply cold-rolled \"cold-reduced\", of a thickness of > 1 mm but < 3 mm \"electrical\""},{"$f":"SUBSTITUTE(B140,\" \",\"\")","v":"72092610"},{"$f":"Translations!$B$611","v":"Iron or steel products"},{"$f":"IF(E140=\" --- \",\"\",COUNTIF($E$3:E140,E140)&\"_\"&E140)","v":"44_Iron or steel products"},null,"Flat-rolled products of iron or non-alloy steel, of a width of >= 600 mm, not in coils, simply cold-rolled \"cold-reduced\", of a thickness of > 1 mm but < 3 mm \"electrical\""]
["720926900080","7209 26 90",{"$f":"Translations!$B$828","v":"Flat-rolled products of iron or non-alloy steel, of a width of >= 600 mm, not in coils, simply cold-rolled \"cold-reduced\", not clad, plated or coated, of a thickness of > 1 mm but < 3 mm (excl. electrical)"},"72092690",{"$f":"Translations!$B$611","v":"Iron or steel products"},{"$f":"IF(E141=\" --- \",\"\",COUNTIF($E$3:E141,E141)&\"_\"&E141)","v":"45_Iron or steel products"},null,"Flat-rolled products of iron or non-alloy steel, of a width of >= 600 mm, not in coils, simply cold-rolled \"cold-reduced\", not clad, plated or coated, of a thickness of > 1 mm but < 3 mm (excl. electrical)"]
["720927000080","7209 27",{"$f":"Translations!$B$829","v":"Flat-rolled products of iron or non-alloy steel, of a width of >= 600 mm, not in coils, simply cold-rolled \"cold-reduced\", not clad, plated or coated, of a thickness of >= 0,5 mm but <= 1 mm"},"720927",{"$f":"Translations!$B$611","v":"Iron or steel products"},{"$f":"IF(E142=\" --- \",\"\",COUNTIF($E$3:E142,E142)&\"_\"&E142)","v":"46_Iron or steel products"},null,"Flat-rolled products of iron or non-alloy steel, of a width of >= 600 mm, not in coils, simply cold-rolled \"cold-reduced\", not clad, plated or coated, of a thickness of >= 0,5 mm but <= 1 mm"]
["720927100080","7209 27 10",{"$f":"Translations!$B$830","v":"Flat-rolled products of iron or non-alloy steel, of a width of >= 600 mm, not in coils, simply cold-rolled \"cold-reduced\", of a thickness of >= 0,5 mm but <= 1 mm \"electrical\""},"72092710",{"$f":"Translations!$B$611","v":"Iron or steel products"},{"$f":"IF(E143=\" --- \",\"\",COUNTIF($E$3:E143,E143)&\"_\"&E143)","v":"47_Iron or steel products"},null,"Flat-rolled products of iron or non-alloy steel, of a width of >= 600 mm, not in coils, simply cold-rolled \"cold-reduced\", of a thickness of >= 0,5 mm but <= 1 mm \"electrical\""]
["720927900080","7209 27 90",{"$f":"Translations!$B$831","v":"Flat-rolled products of iron or non-alloy steel, of a width of >= 600 mm, not in coils, simply cold-rolled \"cold-reduced\", not clad, plated or coated, of a thickness of >= 0,5 mm but <= 1 mm (excl. electrical)"},"72092790",{"$f":"Translations!$B$611","v":"Iron or steel products"},{"$f":"IF(E144=\" --- \",\"\",COUNTIF($E$3:E144,E144)&\"_\"&E144)","v":"48_Iron or steel products"},null,"Flat-rolled products of iron or non-alloy steel, of a width of >= 600 mm, not in coils, simply cold-rolled \"cold-reduced\", not clad, plated or coated, of a thickness of >= 0,5 mm but <= 1 mm (excl. electrical)"]
["720928000080","7209 28",{"$f":"Translations!$B$832","v":"Flat-rolled products of iron or non-alloy steel, of a width of >= 600 mm, not in coils, simply cold-rolled \"cold-reduced\", not clad, plated or coated, of a thickness of < 0,5 mm"},"720928",{"$f":"Translations!$B$611","v":"Iron or steel products"},{"$f":"IF(E145=\" --- \",\"\",COUNTIF($E$3:E145,E145)&\"_\"&E145)","v":"49_Iron or steel products"},null,"Flat-rolled products of iron or non-alloy steel, of a width of >= 600 mm, not in coils, simply cold-rolled \"cold-reduced\", not clad, plated or coated, of a thickness of < 0,5 mm"]
["720928100080","7209 28 10",{"$f":"Translations!$B$833","v":"Flat-rolled products of iron or non-alloy steel, of a width of >= 600 mm, not in coils, simply cold-rolled \"cold-reduced\", of a thickness of < 0,5 mm \"electrical\""},"72092810",{"$f":"Translations!$B$611","v":"Iron or steel products"},{"$f":"IF(E146=\" --- \",\"\",COUNTIF($E$3:E146,E146)&\"_\"&E146)","v":"50_Iron or steel products"},null,"Flat-rolled products of iron or non-alloy steel, of a width of >= 600 mm, not in coils, simply cold-rolled \"cold-reduced\", of a thickness of < 0,5 mm \"electrical\""]
["720928900080","7209 28 90",{"$f":"Translations!$B$834","v":"Flat-rolled products of iron or non-alloy steel, of a width of >= 600 mm, not in coils, simply cold-rolled \"cold-reduced\", not clad, plated or coated, of a thickness of < 0,5 mm (excl. electrical)"},"72092890",{"$f":"Translations!$B$611","v":"Iron or steel products"},{"$f":"IF(E147=\" --- \",\"\",COUNTIF($E$3:E147,E147)&\"_\"&E147)","v":"51_Iron or steel products"},null,"Flat-rolled products of iron or non-alloy steel, of a width of >= 600 mm, not in coils, simply cold-rolled \"cold-reduced\", not clad, plated or coated, of a thickness of < 0,5 mm (excl. electrical)"]
["720990000080","7209 90",{"$f":"Translations!$B$835","v":"Flat-rolled products of iron or steel, of a width of >= 600 mm, cold-rolled \"cold-reduced\", and further worked, but not clad, plated or coated"},"720990",{"$f":"Translations!$B$611","v":"Iron or steel products"},{"$f":"IF(E148=\" --- \",\"\",COUNTIF($E$3:E148,E148)&\"_\"&E148)","v":"52_Iron or steel products"},null,"Flat-rolled products of iron or steel, of a width of >= 600 mm, cold-rolled \"cold-reduced\", and further worked, but not clad, plated or coated"]
["720990200080","7209 90 20",{"$f":"Translations!$B$836","v":"Flat-rolled products of iron or steel, of a width of >= 600 mm, cold-rolled \"cold-reduced\" and further worked, but not clad, plated or coated, perforated"},"72099020",{"$f":"Translations!$B$611","v":"Iron or steel products"},{"$f":"IF(E149=\" --- \",\"\",COUNTIF($E$3:E149,E149)&\"_\"&E149)","v":"53_Iron or steel products"},null,"Flat-rolled products of iron or steel, of a width of >= 600 mm, cold-rolled \"cold-reduced\" and further worked, but not clad, plated or coated, perforated"]
["720990800080","7209 90 80",{"$f":"Translations!$B$837","v":"Flat-rolled products of iron or steel, of a width of >= 600 mm, cold-rolled \"cold-reduced\" and further worked, but not clad, plated or coated, non-perforated"},"72099080",{"$f":"Translations!$B$611","v":"Iron or steel products"},{"$f":"IF(E150=\" --- \",\"\",COUNTIF($E$3:E150,E150)&\"_\"&E150)","v":"54_Iron or steel products"},null,"Flat-rolled products of iron or steel, of a width of >= 600 mm, cold-rolled \"cold-reduced\" and further worked, but not clad, plated or coated, non-perforated"]
["721000000080","7210",{"$f":"Translations!$B$838","v":"Flat-rolled products of iron or non-alloy steel, of a width >= 600 mm, hot-rolled or cold-rolled \"cold-reduced\", clad, plated or coated"},"7210",{"$f":"Translations!$B$611","v":"Iron or steel products"},{"$f":"IF(E151=\" --- \",\"\",COUNTIF($E$3:E151,E151)&\"_\"&E151)","v":"55_Iron or steel products"},null,"Flat-rolled products of iron or non-alloy steel, of a width >= 600 mm, hot-rolled or cold-rolled \"cold-reduced\", clad, plated or coated"]
["721011000080","7210 11 00",{"$f":"Translations!$B$839","v":"Flat-rolled products of iron or non-alloy steel, of a width of >= 600 mm, hot-rolled or cold-rolled \"cold-reduced\", tinned, of a thickness of >= 0,5 mm"},"72101100",{"$f":"Translations!$B$611","v":"Iron or steel products"},{"$f":"IF(E152=\" --- \",\"\",COUNTIF($E$3:E152,E152)&\"_\"&E152)","v":"56_Iron or steel products"},null,"Flat-rolled products of iron or non-alloy steel, of a width of >= 600 mm, hot-rolled or cold-rolled \"cold-reduced\", tinned, of a thickness of >= 0,5 mm"]
["721012000080","7210 12",{"$f":"Translations!$B$840","v":"Flat-rolled products of iron or non-alloy steel, of a width of >= 600 mm, hot-rolled or cold-rolled \"cold-reduced\", tinned, of a thickness of < 0,5 mm"},"721012",{"$f":"Translations!$B$611","v":"Iron or steel products"},{"$f":"IF(E153=\" --- \",\"\",COUNTIF($E$3:E153,E153)&\"_\"&E153)","v":"57_Iron or steel products"},null,"Flat-rolled products of iron or non-alloy steel, of a width of >= 600 mm, hot-rolled or cold-rolled \"cold-reduced\", tinned, of a thickness of < 0,5 mm"]
["721012200080","7210 12 20",{"$f":"Translations!$B$841","v":"Tinplate of iron or non-alloy steel, of a width of >= 600 mm and of a thickness of < 0,5 mm, tinned [coated with a layer of metal containing, by weight,  >= 97% of tin], not further worked than surface-treated"},"72101220",{"$f":"Translations!$B$611","v":"Iron or steel products"},{"$f":"IF(E154=\" --- \",\"\",COUNTIF($E$3:E154,E154)&\"_\"&E154)","v":"58_Iron or steel products"},null,"Tinplate of iron or non-alloy steel, of a width of >= 600 mm and of a thickness of < 0,5 mm, tinned [coated with a layer of metal containing, by weight,  >= 97% of tin], not further worked than surface-treated"]
["721012800080","7210 12 80",{"$f":"Translations!$B$842","v":"Flat-rolled products of iron or non-alloy steel, of a width of >= 600 mm, hot-rolled or cold-rolled \"cold-reduced\", plated or coated with tin, of a thickness of < 0,5 mm (excl. tinplate)"},"72101280",{"$f":"Translations!$B$611","v":"Iron or steel products"},{"$f":"IF(E155=\" --- \",\"\",COUNTIF($E$3:E155,E155)&\"_\"&E155)","v":"59_Iron or steel products"},null,"Flat-rolled products of iron or non-alloy steel, of a width of >= 600 mm, hot-rolled or cold-rolled \"cold-reduced\", plated or coated with tin, of a thickness of < 0,5 mm (excl. tinplate)"]
["721020000080","7210 20 00",{"$f":"Translations!$B$843","v":"Flat-rolled products of iron or non-alloy steel, of a width of >= 600 mm, hot-rolled or cold-rolled \"cold-reduced\", plated or coated with lead, incl. terne-plate"},"72102000",{"$f":"Translations!$B$611","v":"Iron or steel products"},{"$f":"IF(E156=\" --- \",\"\",COUNTIF($E$3:E156,E156)&\"_\"&E156)","v":"60_Iron or steel products"},null,"Flat-rolled products of iron or non-alloy steel, of a width of >= 600 mm, hot-rolled or cold-rolled \"cold-reduced\", plated or coated with lead, incl. terne-plate"]
["721030000080","7210 30 00",{"$f":"Translations!$B$844","v":"Flat-rolled products of iron or non-alloy steel, of a width of >= 600 mm, hot-rolled or cold-rolled \"cold-reduced\", electrolytically plated or coated with zinc"},"72103000",{"$f":"Translations!$B$611","v":"Iron or steel products"},{"$f":"IF(E157=\" --- \",\"\",COUNTIF($E$3:E157,E157)&\"_\"&E157)","v":"61_Iron or steel products"},null,"Flat-rolled products of iron or non-alloy steel, of a width of >= 600 mm, hot-rolled or cold-rolled \"cold-reduced\", electrolytically plated or coated with zinc"]
["721041000080","7210 41 00",{"$f":"Translations!$B$845","v":"Flat-rolled products of iron or non-alloy steel, of a width of >= 600 mm, hot-rolled or cold-rolled \"cold-reduced\", corrugated, plated or coated with zinc (excl. electrolytically plated or coated with zinc)"},"72104100",{"$f":"Translations!$B$611","v":"Iron or steel products"},{"$f":"IF(E158=\" --- \",\"\",COUNTIF($E$3:E158,E158)&\"_\"&E158)","v":"62_Iron or steel products"},null,"Flat-rolled products of iron or non-alloy steel, of a width of >= 600 mm, hot-rolled or cold-rolled \"cold-reduced\", corrugated, plated or coated with zinc (excl. electrolytically plated or coated with zinc)"]
["721049000080","7210 49 00",{"$f":"Translations!$B$846","v":"Flat-rolled products of iron or non-alloy steel, of a width of >= 600 mm, hot-rolled or cold-rolled \"cold-reduced\", not corrugated, plated or coated with zinc (excl. electrolytically plated or coated with zinc)"},"72104900",{"$f":"Translations!$B$611","v":"Iron or steel products"},{"$f":"IF(E159=\" --- \",\"\",COUNTIF($E$3:E159,E159)&\"_\"&E159)","v":"63_Iron or steel products"},null,"Flat-rolled products of iron or non-alloy steel, of a width of >= 600 mm, hot-rolled or cold-rolled \"cold-reduced\", not corrugated, plated or coated with zinc (excl. electrolytically plated or coated with zinc)"]
["721050000080","7210 50 00",{"$f":"Translations!$B$847","v":"Flat-rolled products of iron or non-alloy steel, of a width of >= 600 mm, hot-rolled or cold-rolled \"cold-reduced\", plated or coated with chromium oxides or with chromium and chromium oxides"},"72105000",{"$f":"Translations!$B$611","v":"Iron or steel products"},{"$f":"IF(E160=\" --- \",\"\",COUNTIF($E$3:E160,E160)&\"_\"&E160)","v":"64_Iron or steel products"},null,"Flat-rolled products of iron or non-alloy steel, of a width of >= 600 mm, hot-rolled or cold-rolled \"cold-reduced\", plated or coated with chromium oxides or with chromium and chromium oxides"]
["721061000080","7210 61 00",{"$f":"Translations!$B$848","v":"Flat-rolled products of iron or non-alloy steel, of a width of >= 600 mm, hot-rolled or cold-rolled \"cold-reduced\", plated or coated with aluminium-zinc alloys"},"72106100",{"$f":"Translations!$B$611","v":"Iron or steel products"},{"$f":"IF(E161=\" --- \",\"\",COUNTIF($E$3:E161,E161)&\"_\"&E161)","v":"65_Iron or steel products"},null,"Flat-rolled products of iron or non-alloy steel, of a width of >= 600 mm, hot-rolled or cold-rolled \"cold-reduced\", plated or coated with aluminium-zinc alloys"]
["721069000080","7210 69 00",{"$f":"Translations!$B$849","v":"Flat-rolled products of iron or non-alloy steel, of a width of >= 600 mm, hot-rolled or cold-rolled \"cold-reduced\", plated or coated with aluminium (excl. products plated or coated with aluminium-zinc alloys)"},"72106900",{"$f":"Translations!$B$611","v":"Iron or steel products"},{"$f":"IF(E162=\" --- \",\"\",COUNTIF($E$3:E162,E162)&\"_\"&E162)","v":"66_Iron or steel products"},null,"Flat-rolled products of iron or non-alloy steel, of a width of >= 600 mm, hot-rolled or cold-rolled \"cold-reduced\", plated or coated with aluminium (excl. products plated or coated with aluminium-zinc alloys)"]
["721070000080","7210 70",{"$f":"Translations!$B$850","v":"Flat products of iron or non-alloy steel, of a width of >= 600 mm, hot-rolled or cold-rolled \"cold-reduced\", painted, varnished or coated with plastics"},"721070",{"$f":"Translations!$B$611","v":"Iron or steel products"},{"$f":"IF(E163=\" --- \",\"\",COUNTIF($E$3:E163,E163)&\"_\"&E163)","v":"67_Iron or steel products"},null,"Flat products of iron or non-alloy steel, of a width of >= 600 mm, hot-rolled or cold-rolled \"cold-reduced\", painted, varnished or coated with plastics"]
["721070100080","7210 70 10",{"$f":"Translations!$B$851","v":"Tinplate of a width of >= 600 mm and of a thickness of < 0,5 mm, tinned [coated with a layer of metal containing, by weight,  >= 97% of tin], not further worked than varnished, and flat products plated or coated with chromium oxides or with chromium and chromium oxides, of iron or non-alloy steel, of a width of >= 600 mm, hot-rolled or cold-rolled \"cold-reduced\", varnished"},"72107010",{"$f":"Translations!$B$611","v":"Iron or steel products"},{"$f":"IF(E164=\" --- \",\"\",COUNTIF($E$3:E164,E164)&\"_\"&E164)","v":"68_Iron or steel products"},null,"Tinplate of a width of >= 600 mm and of a thickness of < 0,5 mm, tinned [coated with a layer of metal containing, by weight,  >= 97% of tin], not further worked than varnished, and flat products plated or coated with chromium oxides or with chromium and chromium oxides, of iron or non-alloy steel, of a width of >= 600 mm, hot-rolled or cold-rolled \"cold-reduced\", varnished"]
["721070800080","7210 70 80",{"$f":"Translations!$B$852","v":"Flat-rolled products of iron or non-alloy steel, of a width of >= 600 mm, hot-rolled or cold-rolled \"cold-reduced\", painted, varnished or plastic coated (excl. tinplate and products electrolytically plated or coated with chrome, varnished)"},"72107080",{"$f":"Translations!$B$611","v":"Iron or steel products"},{"$f":"IF(E165=\" --- \",\"\",COUNTIF($E$3:E165,E165)&\"_\"&E165)","v":"69_Iron or steel products"},null,"Flat-rolled products of iron or non-alloy steel, of a width of >= 600 mm, hot-rolled or cold-rolled \"cold-reduced\", painted, varnished or plastic coated (excl. tinplate and products electrolytically plated or coated with chrome, varnished)"]
["721090000080","7210 90",{"$f":"Translations!$B$853","v":"Flat-rolled products of iron or non-alloy steel, of a width of >= 600 mm, hot-rolled or cold-rolled \"cold-reduced\", clad, plated or coated (excl. tinned, plated or coated with lead, zinc, chromium oxides, chromium and chromium oxides, or aluminium, painted, varnished or coated with plastics)"},"721090",{"$f":"Translations!$B$611","v":"Iron or steel products"},{"$f":"IF(E166=\" --- \",\"\",COUNTIF($E$3:E166,E166)&\"_\"&E166)","v":"70_Iron or steel products"},null,"Flat-rolled products of iron or non-alloy steel, of a width of >= 600 mm, hot-rolled or cold-rolled \"cold-reduced\", clad, plated or coated (excl. tinned, plated or coated with lead, zinc, chromium oxides, chromium and chromium oxides, or aluminium, painted, varnished or coated with plastics)"]
["721090300080","7210 90 30",{"$f":"Translations!$B$854","v":"Flat-rolled products of iron or non-alloy steel, of a width of >= 600 mm, hot-rolled or cold-rolled \"cold-reduced\", clad"},"72109030",{"$f":"Translations!$B$611","v":"Iron or steel products"},{"$f":"IF(E167=\" --- \",\"\",COUNTIF($E$3:E167,E167)&\"_\"&E167)","v":"71_Iron or steel products"},null,"Flat-rolled products of iron or non-alloy steel, of a width of >= 600 mm, hot-rolled or cold-rolled \"cold-reduced\", clad"]
["721090400080","7210 90 40",{"$f":"Translations!$B$855","v":"Flat-rolled products of iron or non-alloy steel, tinned and printed, of a width of >= 600 mm, hot-rolled or cold-rolled \"cold-reduced\""},"72109040",{"$f":"Translations!$B$611","v":"Iron or steel products"},{"$f":"IF(E168=\" --- \",\"\",COUNTIF($E$3:E168,E168)&\"_\"&E168)","v":"72_Iron or steel products"},null,"Flat-rolled products of iron or non-alloy steel, tinned and printed, of a width of >= 600 mm, hot-rolled or cold-rolled \"cold-reduced\""]
["721090800080","7210 90 80",{"$f":"Translations!$B$856","v":"Flat-rolled products of iron or non-alloy steel, hot-rolled or cold-rolled \"cold-reduced\", of a width of >= 600 mm, plated or coated (excl. plated or coated with thin, lead \"incl. terne-plate\", zinc, aluminium, chromium, chromium oxides, plastics, platinum, painted or varnished, clad and tinned and printed)"},"72109080",{"$f":"Translations!$B$611","v":"Iron or steel products"},{"$f":"IF(E169=\" --- \",\"\",COUNTIF($E$3:E169,E169)&\"_\"&E169)","v":"73_Iron or steel products"},null,"Flat-rolled products of iron or non-alloy steel, hot-rolled or cold-rolled \"cold-reduced\", of a width of >= 600 mm, plated or coated (excl. plated or coated with thin, lead \"incl. terne-plate\", zinc, aluminium, chromium, chromium oxides, plastics, platinum, painted or varnished, clad and tinned and printed)"]
["721100000080","7211",{"$f":"Translations!$B$857","v":"Flat-rolled products of iron or non-alloy steel, of a width of < 600 mm, hot-rolled or cold-rolled \"cold-reduced\", not clad, plated or coated"},"7211",{"$f":"Translations!$B$611","v":"Iron or steel products"},{"$f":"IF(E170=\" --- \",\"\",COUNTIF($E$3:E170,E170)&\"_\"&E170)","v":"74_Iron or steel products"},null,"Flat-rolled products of iron or non-alloy steel, of a width of < 600 mm, hot-rolled or cold-rolled \"cold-reduced\", not clad, plated or coated"]
["721113000080","7211 13 00",{"$f":"Translations!$B$858","v":"Flat-rolled products of iron or non-alloy steel, simply hot-rolled on four faces or in a closed box pass, not clad, plated or coated, of a width of > 150 mm but < 600 mm and a thickness of >= 4 mm, not in coils, without patterns in relief, commonly known as \"wide flats\""},"72111300",{"$f":"Translations!$B$611","v":"Iron or steel products"},{"$f":"IF(E171=\" --- \",\"\",COUNTIF($E$3:E171,E171)&\"_\"&E171)","v":"75_Iron or steel products"},null,"Flat-rolled products of iron or non-alloy steel, simply hot-rolled on four faces or in a closed box pass, not clad, plated or coated, of a width of > 150 mm but < 600 mm and a thickness of >= 4 mm, not in coils, without patterns in relief, commonly known as \"wide flats\""]
["721114000080","7211 14 00",{"$f":"Translations!$B$859","v":"Flat-rolled products of iron or non-alloy steel, of a width < 600 mm, not further worked than hot-rolled, not clad, plated or coated, of a thickness of >= 4,75 mm (excl. \"wide flats\")"},"72111400",{"$f":"Translations!$B$611","v":"Iron or steel products"},{"$f":"IF(E172=\" --- \",\"\",COUNTIF($E$3:E172,E172)&\"_\"&E172)","v":"76_Iron or steel products"},null,"Flat-rolled products of iron or non-alloy steel, of a width < 600 mm, not further worked than hot-rolled, not clad, plated or coated, of a thickness of >= 4,75 mm (excl. \"wide flats\")"]
["721119000080","7211 19 00",{"$f":"Translations!$B$860","v":"Flat-rolled products of iron or non-alloy steel, of a width < 600 mm, simply hot-rolled, not clad, plated or coated, of a thickness < 4,75 mm (excl. \"wide flats\")"},"72111900",{"$f":"Translations!$B$611","v":"Iron or steel products"},{"$f":"IF(E173=\" --- \",\"\",COUNTIF($E$3:E173,E173)&\"_\"&E173)","v":"77_Iron or steel products"},null,"Flat-rolled products of iron or non-alloy steel, of a width < 600 mm, simply hot-rolled, not clad, plated or coated, of a thickness < 4,75 mm (excl. \"wide flats\")"]
["721123000080","7211 23",{"$f":"Translations!$B$861","v":"Flat-rolled products of iron or non-alloy steel, of a width of < 600 mm, simply cold-rolled \"cold-reduced\", not clad, plated or coated, containing by weight < 0,25% of carbon"},"721123",{"$f":"Translations!$B$611","v":"Iron or steel products"},{"$f":"IF(E174=\" --- \",\"\",COUNTIF($E$3:E174,E174)&\"_\"&E174)","v":"78_Iron or steel products"},null,"Flat-rolled products of iron or non-alloy steel, of a width of < 600 mm, simply cold-rolled \"cold-reduced\", not clad, plated or coated, containing by weight < 0,25% of carbon"]
["721123200080","7211 23 20",{"$f":"Translations!$B$862","v":"Flat-rolled products of iron or non-alloy steel, of a width of < 600 mm, simply cold-rolled \"cold-reduced\", not clad, plated or coated, containing by weight < 0,25% of carbon \"electrical\""},"72112320",{"$f":"Translations!$B$611","v":"Iron or steel products"},{"$f":"IF(E175=\" --- \",\"\",COUNTIF($E$3:E175,E175)&\"_\"&E175)","v":"79_Iron or steel products"},null,"Flat-rolled products of iron or non-alloy steel, of a width of < 600 mm, simply cold-rolled \"cold-reduced\", not clad, plated or coated, containing by weight < 0,25% of carbon \"electrical\""]
["721123300080","7211 23 30",{"$f":"Translations!$B$863","v":"Flat-rolled products of iron or non-alloy steel, of a width of < 600 mm and of a thickness of >= 0,35 mm, simply cold-rolled \"cold-reduced\", not clad, plated or coated, containing by weight < 0,25% of carbon (excl. electrical plate)"},"72112330",{"$f":"Translations!$B$611","v":"Iron or steel products"},{"$f":"IF(E176=\" --- \",\"\",COUNTIF($E$3:E176,E176)&\"_\"&E176)","v":"80_Iron or steel products"},null,"Flat-rolled products of iron or non-alloy steel, of a width of < 600 mm and of a thickness of >= 0,35 mm, simply cold-rolled \"cold-reduced\", not clad, plated or coated, containing by weight < 0,25% of carbon (excl. electrical plate)"]
["721123800080","7211 23 80",{"$f":"Translations!$B$864","v":"Flat-rolled products of iron or non-alloy steel, of a width of < 600 mm and of a thickness of < 0,35 mm, simply cold-rolled \"cold-reduced\", not clad, plated or coated, containing by weight < 0,25% of carbon (excl. electrical plate)"},"72112380",{"$f":"Translations!$B$611","v":"Iron or steel products"},{"$f":"IF(E177=\" --- \",\"\",COUNTIF($E$3:E177,E177)&\"_\"&E177)","v":"81_Iron or steel products"},null,"Flat-rolled products of iron or non-alloy steel, of a width of < 600 mm and of a thickness of < 0,35 mm, simply cold-rolled \"cold-reduced\", not clad, plated or coated, containing by weight < 0,25% of carbon (excl. electrical plate)"]
["721129000080","7211 29 00",{"$f":"Translations!$B$865","v":"Flat-rolled products of iron or non-alloy steel, of a width of < 600 mm, simply cold-rolled \"cold-reduced\", not clad, plated or coated, containing by weight >= 0,25% of carbon"},"72112900",{"$f":"Translations!$B$611","v":"Iron or steel products"},{"$f":"IF(E178=\" --- \",\"\",COUNTIF($E$3:E178,E178)&\"_\"&E178)","v":"82_Iron or steel products"},null,"Flat-rolled products of iron or non-alloy steel, of a width of < 600 mm, simply cold-rolled \"cold-reduced\", not clad, plated or coated, containing by weight >= 0,25% of carbon"]
["721190000080","7211 90",{"$f":"Translations!$B$866","v":"Flat-rolled products of iron or non-alloy steel, of a width of < 600 mm, hot-rolled or cold-rolled \"cold-reduced\" and further worked, but not clad, plated or coated"},"721190",{"$f":"Translations!$B$611","v":"Iron or steel products"},{"$f":"IF(E179=\" --- \",\"\",COUNTIF($E$3:E179,E179)&\"_\"&E179)","v":"83_Iron or steel products"},null,"Flat-rolled products of iron or non-alloy steel, of a width of < 600 mm, hot-rolled or cold-rolled \"cold-reduced\" and further worked, but not clad, plated or coated"]
["721190200080","7211 90 20",{"$f":"Translations!$B$867","v":"Flat-rolled products of iron or non-alloy steel, of a width of < 600 mm, hot-rolled or cold-rolled \"cold-reduced\" and further worked, but not clad, plated or coated, perforated"},"72119020",{"$f":"Translations!$B$611","v":"Iron or steel products"},{"$f":"IF(E180=\" --- \",\"\",COUNTIF($E$3:E180,E180)&\"_\"&E180)","v":"84_Iron or steel products"},null,"Flat-rolled products of iron or non-alloy steel, of a width of < 600 mm, hot-rolled or cold-rolled \"cold-reduced\" and further worked, but not clad, plated or coated, perforated"]
["721190800080","7211 90 80",{"$f":"Translations!$B$868","v":"Flat-rolled products of iron or non-alloy steel, of a width of < 600 mm, hot-rolled or cold-rolled \"cold-reduced\" and further worked, but not clad, plated or coatednon-perforated"},"72119080",{"$f":"Translations!$B$611","v":"Iron or steel products"},{"$f":"IF(E181=\" --- \",\"\",COUNTIF($E$3:E181,E181)&\"_\"&E181)","v":"85_Iron or steel products"},null,"Flat-rolled products of iron or non-alloy steel, of a width of < 600 mm, hot-rolled or cold-rolled \"cold-reduced\" and further worked, but not clad, plated or coatednon-perforated"]
["721200000080","7212",{"$f":"Translations!$B$869","v":"Flat-rolled products of iron or non-alloy steel, of a width of < 600 mm, hot-rolled or cold-rolled \"cold-reduced\", clad, plated or coated"},"7212",{"$f":"Translations!$B$611","v":"Iron or steel products"},{"$f":"IF(E182=\" --- \",\"\",COUNTIF($E$3:E182,E182)&\"_\"&E182)","v":"86_Iron or steel products"},null,"Flat-rolled products of iron or non-alloy steel, of a width of < 600 mm, hot-rolled or cold-rolled \"cold-reduced\", clad, plated or coated"]
["721210000080","7212 10",{"$f":"Translations!$B$870","v":"Flat-rolled products of iron or non-alloy steel, of a width of < 600 mm, hot-rolled or cold-rolled \"cold-reduced\", tinned"},"721210",{"$f":"Translations!$B$611","v":"Iron or steel products"},{"$f":"IF(E183=\" --- \",\"\",COUNTIF($E$3:E183,E183)&\"_\"&E183)","v":"87_Iron or steel products"},null,"Flat-rolled products of iron or non-alloy steel, of a width of < 600 mm, hot-rolled or cold-rolled \"cold-reduced\", tinned"]
["721210100080","7212 10 10",{"$f":"Translations!$B$871","v":"Tinplate of iron or non-alloy steel, of a width of < 600 mm and of a thickness of < 0,5 mm, tinned [coated with a layer of metal containing, by weight,  >= 97% of tin], not further worked than surface-treated"},"72121010",{"$f":"Translations!$B$611","v":"Iron or steel products"},{"$f":"IF(E184=\" --- \",\"\",COUNTIF($E$3:E184,E184)&\"_\"&E184)","v":"88_Iron or steel products"},null,"Tinplate of iron or non-alloy steel, of a width of < 600 mm and of a thickness of < 0,5 mm, tinned [coated with a layer of metal containing, by weight,  >= 97% of tin], not further worked than surface-treated"]
["721210900080","7212 10 90",{"$f":"Translations!$B$872","v":"Flat-rolled products of iron or non-alloy steel, hot-rolled or cold-rolled \"cold-reduced\", of a width of < 600 mm, tinned (excl. tinplate, not further worked than surface-treated)"},"72121090",{"$f":"Translations!$B$611","v":"Iron or steel products"},{"$f":"IF(E185=\" --- \",\"\",COUNTIF($E$3:E185,E185)&\"_\"&E185)","v":"89_Iron or steel products"},null,"Flat-rolled products of iron or non-alloy steel, hot-rolled or cold-rolled \"cold-reduced\", of a width of < 600 mm, tinned (excl. tinplate, not further worked than surface-treated)"]
["721220000080","7212 20 00",{"$f":"Translations!$B$873","v":"Flat-rolled products of iron or non-alloy steel, of a width of < 600 mm, hot-rolled or cold-rolled \"cold-reduced\", electrolytically plated or coated with zinc"},"72122000",{"$f":"Translations!$B$611","v":"Iron or steel products"},{"$f":"IF(E186=\" --- \",\"\",COUNTIF($E$3:E186,E186)&\"_\"&E186)","v":"90_Iron or steel products"},null,"Flat-rolled products of iron or non-alloy steel, of a width of < 600 mm, hot-rolled or cold-rolled \"cold-reduced\", electrolytically plated or coated with zinc"]
["721230000080","7212 30 00",{"$f":"Translations!$B$874","v":"Flat-rolled products of iron or non-alloy steel, of a width of < 600 mm, hot-rolled or cold-rolled \"cold-reduced\", tinned (excl. electrolytically plated or coated with zinc)"},"72123000",{"$f":"Translations!$B$611","v":"Iron or steel products"},{"$f":"IF(E187=\" --- \",\"\",COUNTIF($E$3:E187,E187)&\"_\"&E187)","v":"91_Iron or steel products"},null,"Flat-rolled products of iron or non-alloy steel, of a width of < 600 mm, hot-rolled or cold-rolled \"cold-reduced\", tinned (excl. electrolytically plated or coated with zinc)"]
["721240000080","7212 40",{"$f":"Translations!$B$875","v":"Flat-rolled products of iron or non-alloy steel, of a width of < 600 mm, hot-rolled or cold-rolled \"cold-reduced\", painted, varnished or coated with plastics"},"721240",{"$f":"Translations!$B$611","v":"Iron or steel products"},{"$f":"IF(E188=\" --- \",\"\",COUNTIF($E$3:E188,E188)&\"_\"&E188)","v":"92_Iron or steel products"},null,"Flat-rolled products of iron or non-alloy steel, of a width of < 600 mm, hot-rolled or cold-rolled \"cold-reduced\", painted, varnished or coated with plastics"]
["721240200080","7212 40 20",{"$f":"Translations!$B$876","v":"Tinplate of a width of < 600 mm and of a thickness of < 0,5 mm, tinned [coated with a layer of metal containing, by weight,  >= 97% of tin], not further worked than varnished, and flat products plated or coated with chromium oxides or with chromium and chromium oxides, of iron or non-alloy steel, of a width of < 600 mm, hot-rolled or cold-rolled \"cold-reduced\", varnished"},"72124020",{"$f":"Translations!$B$611","v":"Iron or steel products"},{"$f":"IF(E189=\" --- \",\"\",COUNTIF($E$3:E189,E189)&\"_\"&E189)","v":"93_Iron or steel products"},null,"Tinplate of a width of < 600 mm and of a thickness of < 0,5 mm, tinned [coated with a layer of metal containing, by weight,  >= 97% of tin], not further worked than varnished, and flat products plated or coated with chromium oxides or with chromium and chromium oxides, of iron or non-alloy steel, of a width of < 600 mm, hot-rolled or cold-rolled \"cold-reduced\", varnished"]
["721240800080","7212 40 80",{"$f":"Translations!$B$877","v":"Flat-rolled products of iron or non-alloy steel, of a width of < 600 mm, hot-rolled or cold-rolled \"cold-reduced\", painted, varnished or plastic coated (excl. tinplate, not further worked than varnished, and products plated or coated with chromium oxides or with chromium and chromium oxides, varnished)"},"72124080",{"$f":"Translations!$B$611","v":"Iron or steel products"},{"$f":"IF(E190=\" --- \",\"\",COUNTIF($E$3:E190,E190)&\"_\"&E190)","v":"94_Iron or steel products"},null,"Flat-rolled products of iron or non-alloy steel, of a width of < 600 mm, hot-rolled or cold-rolled \"cold-reduced\", painted, varnished or plastic coated (excl. tinplate, not further worked than varnished, and products plated or coated with chromium oxides or with chromium and chromium oxides, varnished)"]
["721250000080","7212 50",{"$f":"Translations!$B$878","v":"Flat-rolled products of iron or non-alloy steel, of a width of < 600 mm, hot-rolled or cold-rolled \"cold-reduced\", plated or coated (excl. tinned, plated or coated with zinc, painted, varnished or coated with plastics)"},"721250",{"$f":"Translations!$B$611","v":"Iron or steel products"},{"$f":"IF(E191=\" --- \",\"\",COUNTIF($E$3:E191,E191)&\"_\"&E191)","v":"95_Iron or steel products"},null,"Flat-rolled products of iron or non-alloy steel, of a width of < 600 mm, hot-rolled or cold-rolled \"cold-reduced\", plated or coated (excl. tinned, plated or coated with zinc, painted, varnished or coated with plastics)"]
["721250200080","7212 50 20",{"$f":"Translations!$B$879","v":"Flat-rolled products of iron or non-alloy steel, of a width of < 600 mm, hot-rolled or cold-rolled \"cold-reduced\", plated or coated with chromium oxides or with chromium and chromium oxides (excl. varnished)"},"72125020",{"$f":"Translations!$B$611","v":"Iron or steel products"},{"$f":"IF(E192=\" --- \",\"\",COUNTIF($E$3:E192,E192)&\"_\"&E192)","v":"96_Iron or steel products"},null,"Flat-rolled products of iron or non-alloy steel, of a width of < 600 mm, hot-rolled or cold-rolled \"cold-reduced\", plated or coated with chromium oxides or with chromium and chromium oxides (excl. varnished)"]
["721250300080","7212 50 30",{"$f":"Translations!$B$880","v":"Flat-rolled products of iron or non-alloy steel, of a width of < 600 mm, hot-rolled or cold-rolled \"cold-reduced\", plated or coated with chromium or nickel"},"72125030",{"$f":"Translations!$B$611","v":"Iron or steel products"},{"$f":"IF(E193=\" --- \",\"\",COUNTIF($E$3:E193,E193)&\"_\"&E193)","v":"97_Iron or steel products"},null,"Flat-rolled products of iron or non-alloy steel, of a width of < 600 mm, hot-rolled or cold-rolled \"cold-reduced\", plated or coated with chromium or nickel"]
["721250400080","7212 50 40",{"$f":"Translations!$B$881","v":"Flat-rolled products of iron or non-alloy steel, of a width of < 600 mm, hot-rolled or cold-rolled \"cold-reduced\", plated or coated with copper"},"72125040",{"$f":"Translations!$B$611","v":"Iron or steel products"},{"$f":"IF(E194=\" --- \",\"\",COUNTIF($E$3:E194,E194)&\"_\"&E194)","v":"98_Iron or steel products"},null,"Flat-rolled products of iron or non-alloy steel, of a width of < 600 mm, hot-rolled or cold-rolled \"cold-reduced\", plated or coated with copper"]
["721250610080","7212 50 61",{"$f":"Translations!$B$882","v":"Flat-rolled products of iron or non-alloy steel, of a width of < 600 mm, hot-rolled or cold-rolled \"cold-reduced\", plated or coated with aluminium-zinc alloys"},"72125061",{"$f":"Translations!$B$611","v":"Iron or steel products"},{"$f":"IF(E195=\" --- \",\"\",COUNTIF($E$3:E195,E195)&\"_\"&E195)","v":"99_Iron or steel products"},null,"Flat-rolled products of iron or non-alloy steel, of a width of < 600 mm, hot-rolled or cold-rolled \"cold-reduced\", plated or coated with aluminium-zinc alloys"]
["721250690080","7212 50 69",{"$f":"Translations!$B$883","v":"Flat-rolled products of iron or non-alloy steel, of a width of < 600 mm, hot-rolled or cold-rolled \"cold-reduced\", plated or coated with aluminium (excl. products plated or coated with aluminium-zinc alloys)"},"72125069",{"$f":"Translations!$B$611","v":"Iron or steel products"},{"$f":"IF(E196=\" --- \",\"\",COUNTIF($E$3:E196,E196)&\"_\"&E196)","v":"100_Iron or steel products"},null,"Flat-rolled products of iron or non-alloy steel, of a width of < 600 mm, hot-rolled or cold-rolled \"cold-reduced\", plated or coated with aluminium (excl. products plated or coated with aluminium-zinc alloys)"]
["721250900080","7212 50 90",{"$f":"Translations!$B$884","v":"Flat-rolled products of iron or non-alloy steel, of a width of < 600 mm, hot-rolled or cold-rolled \"cold-reduced\", clad (excl. products plated or coated with tin or zinc, copper, with chromium oxides or with chromium and chromium oxides, chromium, nickel or aluminium, painted or varnished, and plastic-coated)"},"72125090",{"$f":"Translations!$B$611","v":"Iron or steel products"},{"$f":"IF(E197=\" --- \",\"\",COUNTIF($E$3:E197,E197)&\"_\"&E197)","v":"101_Iron or steel products"},null,"Flat-rolled products of iron or non-alloy steel, of a width of < 600 mm, hot-rolled or cold-rolled \"cold-reduced\", clad (excl. products plated or coated with tin or zinc, copper, with chromium oxides or with chromium and chromium oxides, chromium, nickel or aluminium, painted or varnished, and plastic-coated)"]
["721260000080","7212 60 00",{"$f":"Translations!$B$885","v":"Flat-rolled products of iron or non-alloy steel, of a width of < 600 mm, hot-rolled or cold-rolled \"cold-reduced\", clad"},"72126000",{"$f":"Translations!$B$611","v":"Iron or steel products"},{"$f":"IF(E198=\" --- \",\"\",COUNTIF($E$3:E198,E198)&\"_\"&E198)","v":"102_Iron or steel products"},null,"Flat-rolled products of iron or non-alloy steel, of a width of < 600 mm, hot-rolled or cold-rolled \"cold-reduced\", clad"]
["721300000080","7213",{"$f":"Translations!$B$886","v":"Bars and rods of iron or non-alloy steel, hot-rolled, in irregularly wound coils"},"7213",{"$f":"Translations!$B$611","v":"Iron or steel products"},{"$f":"IF(E199=\" --- \",\"\",COUNTIF($E$3:E199,E199)&\"_\"&E199)","v":"103_Iron or steel products"},null,"Bars and rods of iron or non-alloy steel, hot-rolled, in irregularly wound coils"]
["721310000080","7213 10 00",{"$f":"Translations!$B$887","v":"Bars and rods, hot-rolled, in irregularly wound coils of iron or non-alloy steel, with indentations, ribs, grooves or other deformations produced during the rolling process"},"72131000",{"$f":"Translations!$B$611","v":"Iron or steel products"},{"$f":"IF(E200=\" --- \",\"\",COUNTIF($E$3:E200,E200)&\"_\"&E200)","v":"104_Iron or steel products"},null,"Bars and rods, hot-rolled, in irregularly wound coils of iron or non-alloy steel, with indentations, ribs, grooves or other deformations produced during the rolling process"]
["721320000080","7213 20 00",{"$f":"Translations!$B$888","v":"Bars and rods, hot-rolled, in irregularly wound coils, of non-alloy free-cutting steel (excl. bars and rods containing indentations, ribs, grooves or other deformations produced during the rolling process)"},"72132000",{"$f":"Translations!$B$611","v":"Iron or steel products"},{"$f":"IF(E201=\" --- \",\"\",COUNTIF($E$3:E201,E201)&\"_\"&E201)","v":"105_Iron or steel products"},null,"Bars and rods, hot-rolled, in irregularly wound coils, of non-alloy free-cutting steel (excl. bars and rods containing indentations, ribs, grooves or other deformations produced during the rolling process)"]
["721391000080","7213 91",{"$f":"Translations!$B$889","v":"Bars and rods, hot-rolled, in irregularly wound coils, of iron or non-alloy steel, of circular cross-section measuring < 14 mm in diameter (excl. bars and rods of free-cutting steel, and bars and rods with indentations, ribs, grooves or other deformations produced during the rolling process)"},"721391",{"$f":"Translations!$B$611","v":"Iron or steel products"},{"$f":"IF(E202=\" --- \",\"\",COUNTIF($E$3:E202,E202)&\"_\"&E202)","v":"106_Iron or steel products"},null,"Bars and rods, hot-rolled, in irregularly wound coils, of iron or non-alloy steel, of circular cross-section measuring < 14 mm in diameter (excl. bars and rods of free-cutting steel, and bars and rods with indentations, ribs, grooves or other deformations produced during the rolling process)"]
["721391100080","7213 91 10",{"$f":"Translations!$B$890","v":"Bars and rods, hot-rolled, of the type used for concrete reinforcement, smooth, of iron or non-alloy steel, in irregularly wound coils, of circular cross-section measuring < 14 mm in diameter"},"72139110",{"$f":"Translations!$B$611","v":"Iron or steel products"},{"$f":"IF(E203=\" --- \",\"\",COUNTIF($E$3:E203,E203)&\"_\"&E203)","v":"107_Iron or steel products"},null,"Bars and rods, hot-rolled, of the type used for concrete reinforcement, smooth, of iron or non-alloy steel, in irregularly wound coils, of circular cross-section measuring < 14 mm in diameter"]
["721391200080","7213 91 20",{"$f":"Translations!$B$891","v":"Bars and rods, hot-rolled, of the type used for tyre cord, smooth, of iron or non-alloy steel, in irregularly wound coils"},{"$f":"SUBSTITUTE(B204,\" \",\"\")","v":"72139120"},{"$f":"Translations!$B$611","v":"Iron or steel products"},{"$f":"IF(E204=\" --- \",\"\",COUNTIF($E$3:E204,E204)&\"_\"&E204)","v":"108_Iron or steel products"},null,"Bars and rods, hot-rolled, of the type used for tyre cord, smooth, of iron or non-alloy steel, in irregularly wound coils"]
["721391410080","7213 91 41",{"$f":"Translations!$B$892","v":"Bars and rods, hot-rolled, of iron or non-alloy steel, in irregularly wound coils, containing by weight <= 0,06% of carbon, of circular cross-section measuring < 14 mm in diameter (excl. free-cutting steel, bars and rods, hot-rolled, for concrete reinforcement and tyre cord, and bars and rods, hot-rolled, containing indentations, ribs, grooves or other deformations produced during the rolling process)"},"72139141",{"$f":"Translations!$B$611","v":"Iron or steel products"},{"$f":"IF(E205=\" --- \",\"\",COUNTIF($E$3:E205,E205)&\"_\"&E205)","v":"109_Iron or steel products"},null,"Bars and rods, hot-rolled, of iron or non-alloy steel, in irregularly wound coils, containing by weight <= 0,06% of carbon, of circular cross-section measuring < 14 mm in diameter (excl. free-cutting steel, bars and rods, hot-rolled, for concrete reinforcement and tyre cord, and bars and rods, hot-rolled, containing indentations, ribs, grooves or other deformations produced during the rolling process)"]
["721391490080","7213 91 49",{"$f":"Translations!$B$893","v":"Bars and rods, hot-rolled, of iron or non-alloy steel, in irregularly wound coils, containing by weight > 0,06% and < 0,25% of carbon, of circular cross-section, measuring < 14 mm in diameter (excl. of free-cutting steel, bars and rods, hot-rolled, for concrete reinforcement and tyre cord and bars and rods, hot-rolled, containing indentations, ribs, grooves or other deformations produced during the rolling process)"},"72139149",{"$f":"Translations!$B$611","v":"Iron or steel products"},{"$f":"IF(E206=\" --- \",\"\",COUNTIF($E$3:E206,E206)&\"_\"&E206)","v":"110_Iron or steel products"},null,"Bars and rods, hot-rolled, of iron or non-alloy steel, in irregularly wound coils, containing by weight > 0,06% and < 0,25% of carbon, of circular cross-section, measuring < 14 mm in diameter (excl. of free-cutting steel, bars and rods, hot-rolled, for concrete reinforcement and tyre cord and bars and rods, hot-rolled, containing indentations, ribs, grooves or other deformations produced during the rolling process)"]
["721391700080","7213 91 70",{"$f":"Translations!$B$894","v":"Bars and rods, hot-rolled, in irregularly wound coils, of iron or non-alloy steel, containing by weight >= 0,25% but <= 0,75% carbon, of circular cross-section measuring < 14 mm in diameter (excl. of free-cutting steel, and bars and rods, smooth, for concrete reinforcement and tyre cord, and bars and rods with indentations, ribs, grooves or other deformations produced during the rolling process)"},"72139170",{"$f":"Translations!$B$611","v":"Iron or steel products"},{"$f":"IF(E207=\" --- \",\"\",COUNTIF($E$3:E207,E207)&\"_\"&E207)","v":"111_Iron or steel products"},null,"Bars and rods, hot-rolled, in irregularly wound coils, of iron or non-alloy steel, containing by weight >= 0,25% but <= 0,75% carbon, of circular cross-section measuring < 14 mm in diameter (excl. of free-cutting steel, and bars and rods, smooth, for concrete reinforcement and tyre cord, and bars and rods with indentations, ribs, grooves or other deformations produced during the rolling process)"]
["721391900080","7213 91 90",{"$f":"Translations!$B$895","v":"Bars and rods, hot-rolled, of iron or non-alloy steel, in irregularly wound coils, containing by weight > 0,75% of carbon, of circular cross-section measuring < 14 mm in diameter (excl. of free-cutting steel, bars and rods, smooth, for tyre cord and bars and rods with indentations, ribs, grooves and other deformations produced during the rolling process)"},"72139190",{"$f":"Translations!$B$611","v":"Iron or steel products"},{"$f":"IF(E208=\" --- \",\"\",COUNTIF($E$3:E208,E208)&\"_\"&E208)","v":"112_Iron or steel products"},null,"Bars and rods, hot-rolled, of iron or non-alloy steel, in irregularly wound coils, containing by weight > 0,75% of carbon, of circular cross-section measuring < 14 mm in diameter (excl. of free-cutting steel, bars and rods, smooth, for tyre cord and bars and rods with indentations, ribs, grooves and other deformations produced during the rolling process)"]
["721399000080","7213 99",{"$f":"Translations!$B$896","v":"Bars and rods, hot-rolled, in irregularly wound coils, of iron or non-alloy steel (excl. products of circular cross-section measuring < 14 mm in diameter, bars and rods of free-cutting steel, and bars and rods with indentations, ribs, grooves or other deformations produced during the rolling process)"},"721399",{"$f":"Translations!$B$611","v":"Iron or steel products"},{"$f":"IF(E209=\" --- \",\"\",COUNTIF($E$3:E209,E209)&\"_\"&E209)","v":"113_Iron or steel products"},null,"Bars and rods, hot-rolled, in irregularly wound coils, of iron or non-alloy steel (excl. products of circular cross-section measuring < 14 mm in diameter, bars and rods of free-cutting steel, and bars and rods with indentations, ribs, grooves or other deformations produced during the rolling process)"]
["721399100080","7213 99 10",{"$f":"Translations!$B$897","v":"Bars and rods, of iron or non-alloy steel, hot-rolled, in irregularly wound coils, containing by weight < 0,25% carbon (excl. products of circular cross-section measuring < 14 mm in diameter, bars and rods of free-cutting steel, and bars and rods with indentations, ribs, grooves or other deformations produced during the rolling process)"},"72139910",{"$f":"Translations!$B$611","v":"Iron or steel products"},{"$f":"IF(E210=\" --- \",\"\",COUNTIF($E$3:E210,E210)&\"_\"&E210)","v":"114_Iron or steel products"},null,"Bars and rods, of iron or non-alloy steel, hot-rolled, in irregularly wound coils, containing by weight < 0,25% carbon (excl. products of circular cross-section measuring < 14 mm in diameter, bars and rods of free-cutting steel, and bars and rods with indentations, ribs, grooves or other deformations produced during the rolling process)"]
["721399900080","7213 99 90",{"$f":"Translations!$B$898","v":"Bars and rods, hot-rolled, in irregularly wound coils, of iron or non-alloy steel, containing by weight >= 0,25% carbon (excl. products of circular cross-section measuring < 14 mm diameter, bars and rods of free-cutting steel, and bars and rods with indentations, ribs, grooves or other deformations produced during the rolling process)"},"72139990",{"$f":"Translations!$B$611","v":"Iron or steel products"},{"$f":"IF(E211=\" --- \",\"\",COUNTIF($E$3:E211,E211)&\"_\"&E211)","v":"115_Iron or steel products"},null,"Bars and rods, hot-rolled, in irregularly wound coils, of iron or non-alloy steel, containing by weight >= 0,25% carbon (excl. products of circular cross-section measuring < 14 mm diameter, bars and rods of free-cutting steel, and bars and rods with indentations, ribs, grooves or other deformations produced during the rolling process)"]
["721400000080","7214",{"$f":"Translations!$B$899","v":"Bars and rods, of iron or non-alloy steel, not further worked than forged, hot-rolled, hot-drawn or hot-extruded, but incl. those twisted after rolling (excl. in irregularly wound coils)"},"7214",{"$f":"Translations!$B$611","v":"Iron or steel products"},{"$f":"IF(E212=\" --- \",\"\",COUNTIF($E$3:E212,E212)&\"_\"&E212)","v":"116_Iron or steel products"},null,"Bars and rods, of iron or non-alloy steel, not further worked than forged, hot-rolled, hot-drawn or hot-extruded, but incl. those twisted after rolling (excl. in irregularly wound coils)"]
["721410000080","7214 10 00",{"$f":"Translations!$B$900","v":"Bars and rods, of iron or non-alloy steel, not further worked than forged (excl. in irregularly wound coils)"},"72141000",{"$f":"Translations!$B$611","v":"Iron or steel products"},{"$f":"IF(E213=\" --- \",\"\",COUNTIF($E$3:E213,E213)&\"_\"&E213)","v":"117_Iron or steel products"},null,"Bars and rods, of iron or non-alloy steel, not further worked than forged (excl. in irregularly wound coils)"]
["721420000080","7214 20 00",{"$f":"Translations!$B$901","v":"Bars and rods, of iron or non-alloy steel, with indentations, ribs, groves or other deformations produced during the rolling process"},"72142000",{"$f":"Translations!$B$611","v":"Iron or steel products"},{"$f":"IF(E214=\" --- \",\"\",COUNTIF($E$3:E214,E214)&\"_\"&E214)","v":"118_Iron or steel products"},null,"Bars and rods, of iron or non-alloy steel, with indentations, ribs, groves or other deformations produced during the rolling process"]
["721430000080","7214 30 00",{"$f":"Translations!$B$902","v":"Bars and rods, of non-alloy free-cutting steel, not further worked than hot-rolled, hot-drawn or hot-extruded (excl. containing indentations, ribs, grooves or other deformations produced during the rolling process or twisted after rolling)"},"72143000",{"$f":"Translations!$B$611","v":"Iron or steel products"},{"$f":"IF(E215=\" --- \",\"\",COUNTIF($E$3:E215,E215)&\"_\"&E215)","v":"119_Iron or steel products"},null,"Bars and rods, of non-alloy free-cutting steel, not further worked than hot-rolled, hot-drawn or hot-extruded (excl. containing indentations, ribs, grooves or other deformations produced during the rolling process or twisted after rolling)"]
["721491000080","7214 91",{"$f":"Translations!$B$903","v":"Bars and rods, of iron or non-alloy steel, not further worked than hot-rolled, hot-drawn or hot-extruded, of rectangular \"other than square\" cross-section (excl. containing indentations, ribs, grooves or other deformations produced during the rolling process, bars and rods twisted after rolling and free-cutting steel)"},"721491",{"$f":"Translations!$B$611","v":"Iron or steel products"},{"$f":"IF(E216=\" --- \",\"\",COUNTIF($E$3:E216,E216)&\"_\"&E216)","v":"120_Iron or steel products"},null,"Bars and rods, of iron or non-alloy steel, not further worked than hot-rolled, hot-drawn or hot-extruded, of rectangular \"other than square\" cross-section (excl. containing indentations, ribs, grooves or other deformations produced during the rolling process, bars and rods twisted after rolling and free-cutting steel)"]
["721491100080","7214 91 10",{"$f":"Translations!$B$904","v":"Bars and rods of iron or non-alloy steel, not further worked than hot-rolled, hot-drawn or hot-extruded, containing by weight < 0,25% of carbon, of rectangular \"other than square\" cross-section (excl. those with indentations, ribs, grooves or other deformations produced during the rolling process, bars and rods twisted after rolling, and free-cutting steel)"},"72149110",{"$f":"Translations!$B$611","v":"Iron or steel products"},{"$f":"IF(E217=\" --- \",\"\",COUNTIF($E$3:E217,E217)&\"_\"&E217)","v":"121_Iron or steel products"},null,"Bars and rods of iron or non-alloy steel, not further worked than hot-rolled, hot-drawn or hot-extruded, containing by weight < 0,25% of carbon, of rectangular \"other than square\" cross-section (excl. those with indentations, ribs, grooves or other deformations produced during the rolling process, bars and rods twisted after rolling, and free-cutting steel)"]
["721491900080","7214 91 90",{"$f":"Translations!$B$905","v":"Other bars and rods of iron or non-alloy steel, only hot-rolled, only hot-drawn or only hot-extruded, containing by weight >= 0,25% of carbon, of rectangular \"other than square\" cross-section (excl. those with indentations, ribs, grooves or other deformations produced during the rolling process, bars and rods twisted after rolling, and free-cutting steel)"},"72149190",{"$f":"Translations!$B$611","v":"Iron or steel products"},{"$f":"IF(E218=\" --- \",\"\",COUNTIF($E$3:E218,E218)&\"_\"&E218)","v":"122_Iron or steel products"},null,"Other bars and rods of iron or non-alloy steel, only hot-rolled, only hot-drawn or only hot-extruded, containing by weight >= 0,25% of carbon, of rectangular \"other than square\" cross-section (excl. those with indentations, ribs, grooves or other deformations produced during the rolling process, bars and rods twisted after rolling, and free-cutting steel)"]
["721499000080","7214 99",{"$f":"Translations!$B$906","v":"Bars and rods, of iron or non-alloy steel, only hot-rolled, only hot-drawn or only hot-extruded (excl. of rectangular [other than square] cross-section and those containing indentations, ribs, grooves or other deformations produced during the rolling process, and of non-alloy free-cutting steel)"},"721499",{"$f":"Translations!$B$611","v":"Iron or steel products"},{"$f":"IF(E219=\" --- \",\"\",COUNTIF($E$3:E219,E219)&\"_\"&E219)","v":"123_Iron or steel products"},null,"Bars and rods, of iron or non-alloy steel, only hot-rolled, only hot-drawn or only hot-extruded (excl. of rectangular [other than square] cross-section and those containing indentations, ribs, grooves or other deformations produced during the rolling process, and of non-alloy free-cutting steel)"]
["721499100080","7214 99 10",{"$f":"Translations!$B$907","v":"Bars and rods of the type used for concrete reinforcement, smooth, of iron or non-alloy steel, only hot-rolled, only hot-drawn or only hot-extruded, containing < 0,25% of carbon, of square cross-section or of a cross-section other than rectangular"},"72149910",{"$f":"Translations!$B$611","v":"Iron or steel products"},{"$f":"IF(E220=\" --- \",\"\",COUNTIF($E$3:E220,E220)&\"_\"&E220)","v":"124_Iron or steel products"},null,"Bars and rods of the type used for concrete reinforcement, smooth, of iron or non-alloy steel, only hot-rolled, only hot-drawn or only hot-extruded, containing < 0,25% of carbon, of square cross-section or of a cross-section other than rectangular"]
["721499310080","7214 99 31",{"$f":"Translations!$B$908","v":"Bars and rods of iron or non-alloy steel, only hot-rolled, hot-drawn or hot-extruded, containing < 0,25% of carbon, of circular cross-section, of a maximum diameter of >= 80 mm (other than of free-cutting steel, smooth bars and rods, for reinfoced concrete, or bars and rods containing indentations, ribs, grooves or other deformations produced during the rolling process, or wound after rolling)"},"72149931",{"$f":"Translations!$B$611","v":"Iron or steel products"},{"$f":"IF(E221=\" --- \",\"\",COUNTIF($E$3:E221,E221)&\"_\"&E221)","v":"125_Iron or steel products"},null,"Bars and rods of iron or non-alloy steel, only hot-rolled, hot-drawn or hot-extruded, containing < 0,25% of carbon, of circular cross-section, of a maximum diameter of >= 80 mm (other than of free-cutting steel, smooth bars and rods, for reinfoced concrete, or bars and rods containing indentations, ribs, grooves or other deformations produced during the rolling process, or wound after rolling)"]
["721499390080","7214 99 39",{"$f":"Translations!$B$909","v":"Bars and rods of iron or non-alloy steel, only hot-rolled, hot-drawn or hot-extruded, containing < 0,25% of carbon, of circular cross-section of a maximum diameter of < 80 mm (other than of free-cutting steel, smooth bars and rods, for reinforced concrete, or bars and rods containing indentations, ribs, grooves or other deformations produced during the rolling process, or wound after rolling)"},"72149939",{"$f":"Translations!$B$611","v":"Iron or steel products"},{"$f":"IF(E222=\" --- \",\"\",COUNTIF($E$3:E222,E222)&\"_\"&E222)","v":"126_Iron or steel products"},null,"Bars and rods of iron or non-alloy steel, only hot-rolled, hot-drawn or hot-extruded, containing < 0,25% of carbon, of circular cross-section of a maximum diameter of < 80 mm (other than of free-cutting steel, smooth bars and rods, for reinforced concrete, or bars and rods containing indentations, ribs, grooves or other deformations produced during the rolling process, or wound after rolling)"]
["721499500080","7214 99 50",{"$f":"Translations!$B$910","v":"Bars and rods of iron or non-alloy steel, only hot-rolled, hot-drawn or hot-extruded, containing by weight < 0,25% of carbon, of square cross-section or of a cross-section other than square or circular (other than of free-cutting steel, smooth bars and rods, for reinforced concrete, or bars and rods containing indentations, ribs, grooves or other deformations produced during the rolling process, or wound after rolling)"},"72149950",{"$f":"Translations!$B$611","v":"Iron or steel products"},{"$f":"IF(E223=\" --- \",\"\",COUNTIF($E$3:E223,E223)&\"_\"&E223)","v":"127_Iron or steel products"},null,"Bars and rods of iron or non-alloy steel, only hot-rolled, hot-drawn or hot-extruded, containing by weight < 0,25% of carbon, of square cross-section or of a cross-section other than square or circular (other than of free-cutting steel, smooth bars and rods, for reinforced concrete, or bars and rods containing indentations, ribs, grooves or other deformations produced during the rolling process, or wound after rolling)"]
["721499710080","7214 99 71",{"$f":"Translations!$B$911","v":"Bars and rods of iron or non-alloy steel, only hot-rolled, only hot-drawn or only hot-extruded, containing by weight >= 0,25% carbon, of circular cross-section measuring >= 80 mm in diameter (excl. bars and rods with indentations, ribs, grooves or other deformations produced during the rolling process, twisted after rolling, and of free-cutting steel)"},"72149971",{"$f":"Translations!$B$611","v":"Iron or steel products"},{"$f":"IF(E224=\" --- \",\"\",COUNTIF($E$3:E224,E224)&\"_\"&E224)","v":"128_Iron or steel products"},null,"Bars and rods of iron or non-alloy steel, only hot-rolled, only hot-drawn or only hot-extruded, containing by weight >= 0,25% carbon, of circular cross-section measuring >= 80 mm in diameter (excl. bars and rods with indentations, ribs, grooves or other deformations produced during the rolling process, twisted after rolling, and of free-cutting steel)"]
["721499790080","7214 99 79",{"$f":"Translations!$B$912","v":"Bars and rods of iron or non-alloy steel, only hot-rolled, only hot-drawn or only hot-extruded, containing by weight >= 0,25% carbon, of circular cross-section measuring < 80 mm in diameter (excl. bars and rods with indentations, ribs, grooves or other deformations produced during the rolling process, twisted after rolling, and of free-cutting steel)"},"72149979",{"$f":"Translations!$B$611","v":"Iron or steel products"},{"$f":"IF(E225=\" --- \",\"\",COUNTIF($E$3:E225,E225)&\"_\"&E225)","v":"129_Iron or steel products"},null,"Bars and rods of iron or non-alloy steel, only hot-rolled, only hot-drawn or only hot-extruded, containing by weight >= 0,25% carbon, of circular cross-section measuring < 80 mm in diameter (excl. bars and rods with indentations, ribs, grooves or other deformations produced during the rolling process, twisted after rolling, and of free-cutting steel)"]
["721499950080","7214 99 95",{"$f":"Translations!$B$913","v":"Bars and rods of iron or non-alloy steel, only hot-rolled, only hot-drawn or only hot-extruded, containing by weight >= 0,25% carbon, of square or of other than rectangular or circular cross-section (excl. indentations, ribs, grooves or other deformations produced during the rolling process, twisted fter rolling, and of free-cutting steel)"},"72149995",{"$f":"Translations!$B$611","v":"Iron or steel products"},{"$f":"IF(E226=\" --- \",\"\",COUNTIF($E$3:E226,E226)&\"_\"&E226)","v":"130_Iron or steel products"},null,"Bars and rods of iron or non-alloy steel, only hot-rolled, only hot-drawn or only hot-extruded, containing by weight >= 0,25% carbon, of square or of other than rectangular or circular cross-section (excl. indentations, ribs, grooves or other deformations produced during the rolling process, twisted fter rolling, and of free-cutting steel)"]
["721500000080","7215",{"$f":"Translations!$B$914","v":"Bars and rods, of iron or non-alloy steel, cold-formed or cold-finished, whether or not further worked, or hot-formed and further worked, n.e.s."},"7215",{"$f":"Translations!$B$611","v":"Iron or steel products"},{"$f":"IF(E227=\" --- \",\"\",COUNTIF($E$3:E227,E227)&\"_\"&E227)","v":"131_Iron or steel products"},null,"Bars and rods, of iron or non-alloy steel, cold-formed or cold-finished, whether or not further worked, or hot-formed and further worked, n.e.s."]
["721510000080","7215 10 00",{"$f":"Translations!$B$915","v":"Bars and rods, of non-alloy free-cutting steel, not further worked than cold-formed or cold-finished"},"72151000",{"$f":"Translations!$B$611","v":"Iron or steel products"},{"$f":"IF(E228=\" --- \",\"\",COUNTIF($E$3:E228,E228)&\"_\"&E228)","v":"132_Iron or steel products"},null,"Bars and rods, of non-alloy free-cutting steel, not further worked than cold-formed or cold-finished"]
["721550000080","7215 50",{"$f":"Translations!$B$916","v":"Bars and rods, of iron or non-alloy steel, not further worked than cold-formed or cold-finished (excl. of free-cutting steel)"},"721550",{"$f":"Translations!$B$611","v":"Iron or steel products"},{"$f":"IF(E229=\" --- \",\"\",COUNTIF($E$3:E229,E229)&\"_\"&E229)","v":"133_Iron or steel products"},null,"Bars and rods, of iron or non-alloy steel, not further worked than cold-formed or cold-finished (excl. of free-cutting steel)"]
["721550110080","7215 50 11",{"$f":"Translations!$B$917","v":"Other bars and rods of iron or non-alloy steel, not further worked than cold-formed or cold-finished, containing by weight < 0,25% of carbon of rectangular \"other than square\" cross-section (excl. those of free-cutting steel)"},"72155011",{"$f":"Translations!$B$611","v":"Iron or steel products"},{"$f":"IF(E230=\" --- \",\"\",COUNTIF($E$3:E230,E230)&\"_\"&E230)","v":"134_Iron or steel products"},null,"Other bars and rods of iron or non-alloy steel, not further worked than cold-formed or cold-finished, containing by weight < 0,25% of carbon of rectangular \"other than square\" cross-section (excl. those of free-cutting steel)"]
["721550190080","7215 50 19",{"$f":"Translations!$B$918","v":"Other bars and rods of iron or non-alloy steel, not further worked than cold-formed or cold-finished, containing by weight < 0,25% of carbon, of square or other than rectangular cross-section (excl. those of free-cutting steel)"},"72155019",{"$f":"Translations!$B$611","v":"Iron or steel products"},{"$f":"IF(E231=\" --- \",\"\",COUNTIF($E$3:E231,E231)&\"_\"&E231)","v":"135_Iron or steel products"},null,"Other bars and rods of iron or non-alloy steel, not further worked than cold-formed or cold-finished, containing by weight < 0,25% of carbon, of square or other than rectangular cross-section (excl. those of free-cutting steel)"]
["721550800080","7215 50 80",{"$f":"Translations!$B$919","v":"Other bars and rods of iron or non-alloy steel, not further worked than cold-formed or cold-finished, containing by weight >= 0,25% of carbon (excl. those of free-cutting steel)"},"72155080",{"$f":"Translations!$B$611","v":"Iron or steel products"},{"$f":"IF(E232=\" --- \",\"\",COUNTIF($E$3:E232,E232)&\"_\"&E232)","v":"136_Iron or steel products"},null,"Other bars and rods of iron or non-alloy steel, not further worked than cold-formed or cold-finished, containing by weight >= 0,25% of carbon (excl. those of free-cutting steel)"]
["721590000080","7215 90 00",{"$f":"Translations!$B$920","v":"Bars or rods, of iron or non-alloy steel, cold-formed or cold-finished and further worked or hot-formed and further worked, n.e.s."},"72159000",{"$f":"Translations!$B$611","v":"Iron or steel products"},{"$f":"IF(E233=\" --- \",\"\",COUNTIF($E$3:E233,E233)&\"_\"&E233)","v":"137_Iron or steel products"},null,"Bars or rods, of iron or non-alloy steel, cold-formed or cold-finished and further worked or hot-formed and further worked, n.e.s."]
["721600000080","7216",{"$f":"Translations!$B$921","v":"Angles, shapes and sections of iron or non-alloy steel, n.e.s."},"7216",{"$f":"Translations!$B$611","v":"Iron or steel products"},{"$f":"IF(E234=\" --- \",\"\",COUNTIF($E$3:E234,E234)&\"_\"&E234)","v":"138_Iron or steel products"},null,"Angles, shapes and sections of iron or non-alloy steel, n.e.s."]
["721610000080","7216 10 00",{"$f":"Translations!$B$922","v":"U, I or H sections of iron or non-alloy steel, not further worked than hot-rolled, hot-drawn or extruded, of a height of < 80 mm"},"72161000",{"$f":"Translations!$B$611","v":"Iron or steel products"},{"$f":"IF(E235=\" --- \",\"\",COUNTIF($E$3:E235,E235)&\"_\"&E235)","v":"139_Iron or steel products"},null,"U, I or H sections of iron or non-alloy steel, not further worked than hot-rolled, hot-drawn or extruded, of a height of < 80 mm"]
["721621000080","7216 21 00",{"$f":"Translations!$B$923","v":"L sections of iron or non-alloy steel, not further worked than hot-rolled, hot-drawn or extruded, of a height of < 80 mm"},"72162100",{"$f":"Translations!$B$611","v":"Iron or steel products"},{"$f":"IF(E236=\" --- \",\"\",COUNTIF($E$3:E236,E236)&\"_\"&E236)","v":"140_Iron or steel products"},null,"L sections of iron or non-alloy steel, not further worked than hot-rolled, hot-drawn or extruded, of a height of < 80 mm"]
["721622000080","7216 22 00",{"$f":"Translations!$B$924","v":"T sections of iron or non-alloy steel, not further worked than hot-rolled, hot-drawn or extruded, of a height of < 80 mm"},"72162200",{"$f":"Translations!$B$611","v":"Iron or steel products"},{"$f":"IF(E237=\" --- \",\"\",COUNTIF($E$3:E237,E237)&\"_\"&E237)","v":"141_Iron or steel products"},null,"T sections of iron or non-alloy steel, not further worked than hot-rolled, hot-drawn or extruded, of a height of < 80 mm"]
["721631000080","7216 31",{"$f":"Translations!$B$925","v":"U sections of iron or non-alloy steel, not further worked than hot-rolled, hot-drawn or hot-extruded, of a height >= 80 mm"},"721631",{"$f":"Translations!$B$611","v":"Iron or steel products"},{"$f":"IF(E238=\" --- \",\"\",COUNTIF($E$3:E238,E238)&\"_\"&E238)","v":"142_Iron or steel products"},null,"U sections of iron or non-alloy steel, not further worked than hot-rolled, hot-drawn or hot-extruded, of a height >= 80 mm"]
["721631100080","7216 31 10",{"$f":"Translations!$B$926","v":"U sections of iron or non-alloy steel, simply hot-rolled, hot-drawn or extruded, of a height >= 80 mm but <= 220 mm"},"72163110",{"$f":"Translations!$B$611","v":"Iron or steel products"},{"$f":"IF(E239=\" --- \",\"\",COUNTIF($E$3:E239,E239)&\"_\"&E239)","v":"143_Iron or steel products"},null,"U sections of iron or non-alloy steel, simply hot-rolled, hot-drawn or extruded, of a height >= 80 mm but <= 220 mm"]
["721631900080","7216 31 90",{"$f":"Translations!$B$927","v":"U sections of iron or non-alloy steel, simply hot-rolled, hot-drawn or extruded, of a height > 220 mm"},"72163190",{"$f":"Translations!$B$611","v":"Iron or steel products"},{"$f":"IF(E240=\" --- \",\"\",COUNTIF($E$3:E240,E240)&\"_\"&E240)","v":"144_Iron or steel products"},null,"U sections of iron or non-alloy steel, simply hot-rolled, hot-drawn or extruded, of a height > 220 mm"]
["721632000080","7216 32",{"$f":"Translations!$B$928","v":"I sections of iron or non-alloy steel, not further worked than hot-rolled, hot-drawn or hot-extruded, of a height >= 80 mm"},"721632",{"$f":"Translations!$B$611","v":"Iron or steel products"},{"$f":"IF(E241=\" --- \",\"\",COUNTIF($E$3:E241,E241)&\"_\"&E241)","v":"145_Iron or steel products"},null,"I sections of iron or non-alloy steel, not further worked than hot-rolled, hot-drawn or hot-extruded, of a height >= 80 mm"]
["721632110080","7216 32 11",{"$f":"Translations!$B$929","v":"I sections with parallel flange faces, of iron or non-alloy steel, simply hot-rolled, hot-drawn or extruded, of a height >= 80 mm but <= 220 mm"},"72163211",{"$f":"Translations!$B$611","v":"Iron or steel products"},{"$f":"IF(E242=\" --- \",\"\",COUNTIF($E$3:E242,E242)&\"_\"&E242)","v":"146_Iron or steel products"},null,"I sections with parallel flange faces, of iron or non-alloy steel, simply hot-rolled, hot-drawn or extruded, of a height >= 80 mm but <= 220 mm"]
["721632190080","7216 32 19",{"$f":"Translations!$B$930","v":"I sections of iron or non-alloy steel, simply hot-rolled, hot-drawn or extruded, of a height >= 80 mm but <= 220 mm (excl. 7216.32.11)"},"72163219",{"$f":"Translations!$B$611","v":"Iron or steel products"},{"$f":"IF(E243=\" --- \",\"\",COUNTIF($E$3:E243,E243)&\"_\"&E243)","v":"147_Iron or steel products"},null,"I sections of iron or non-alloy steel, simply hot-rolled, hot-drawn or extruded, of a height >= 80 mm but <= 220 mm (excl. 7216.32.11)"]
["721632910080","7216 32 91",{"$f":"Translations!$B$931","v":"I sections with parallel flange faces, of iron or non-alloy steel, simply hot-rolled, hot-drawn or extruded, of a height > 220 mm"},"72163291",{"$f":"Translations!$B$611","v":"Iron or steel products"},{"$f":"IF(E244=\" --- \",\"\",COUNTIF($E$3:E244,E244)&\"_\"&E244)","v":"148_Iron or steel products"},null,"I sections with parallel flange faces, of iron or non-alloy steel, simply hot-rolled, hot-drawn or extruded, of a height > 220 mm"]
["721632990080","7216 32 99",{"$f":"Translations!$B$932","v":"I sections of iron or non-alloy steel, simply hot-rolled, hot-drawn or extruded, of a height > 220 mm (excl. 7216.32.91)"},"72163299",{"$f":"Translations!$B$611","v":"Iron or steel products"},{"$f":"IF(E245=\" --- \",\"\",COUNTIF($E$3:E245,E245)&\"_\"&E245)","v":"149_Iron or steel products"},null,"I sections of iron or non-alloy steel, simply hot-rolled, hot-drawn or extruded, of a height > 220 mm (excl. 7216.32.91)"]
["721633000080","7216 33",{"$f":"Translations!$B$933","v":"H sections of iron or non-alloy steel, not further worked than hot-rolled, hot-drawn or hot-extruded, of a height >= 80 mm"},"721633",{"$f":"Translations!$B$611","v":"Iron or steel products"},{"$f":"IF(E246=\" --- \",\"\",COUNTIF($E$3:E246,E246)&\"_\"&E246)","v":"150_Iron or steel products"},null,"H sections of iron or non-alloy steel, not further worked than hot-rolled, hot-drawn or hot-extruded, of a height >= 80 mm"]
["721633100080","7216 33 10",{"$f":"Translations!$B$934","v":"H sections of iron or non-alloy steel, simply hot-rolled, hot-drawn or extruded, of a height >= 80 mm but <= 180 mm"},"72163310",{"$f":"Translations!$B$611","v":"Iron or steel products"},{"$f":"IF(E247=\" --- \",\"\",COUNTIF($E$3:E247,E247)&\"_\"&E247)","v":"151_Iron or steel products"},null,"H sections of iron or non-alloy steel, simply hot-rolled, hot-drawn or extruded, of a height >= 80 mm but <= 180 mm"]
["721633900080","7216 33 90",{"$f":"Translations!$B$935","v":"H sections of iron or non-alloy steel, simply hot-rolled, hot-drawn or extruded, of a height > 180 mm"},"72163390",{"$f":"Translations!$B$611","v":"Iron or steel products"},{"$f":"IF(E248=\" --- \",\"\",COUNTIF($E$3:E248,E248)&\"_\"&E248)","v":"152_Iron or steel products"},null,"H sections of iron or non-alloy steel, simply hot-rolled, hot-drawn or extruded, of a height > 180 mm"]
["721640000080","7216 40",{"$f":"Translations!$B$936","v":"L sections of iron or non-alloy steel, not further worked than hot-rolled, hot-drawn or hot-extruded, of a height >= 80 mm"},"721640",{"$f":"Translations!$B$611","v":"Iron or steel products"},{"$f":"IF(E249=\" --- \",\"\",COUNTIF($E$3:E249,E249)&\"_\"&E249)","v":"153_Iron or steel products"},null,"L sections of iron or non-alloy steel, not further worked than hot-rolled, hot-drawn or hot-extruded, of a height >= 80 mm"]
["721640100080","7216 40 10",{"$f":"Translations!$B$937","v":"L sections of iron or non-alloy steel, not further worked than hot-rolled, hot-drawn or extruded, of a height of >= 80 mm"},"72164010",{"$f":"Translations!$B$611","v":"Iron or steel products"},{"$f":"IF(E250=\" --- \",\"\",COUNTIF($E$3:E250,E250)&\"_\"&E250)","v":"154_Iron or steel products"},null,"L sections of iron or non-alloy steel, not further worked than hot-rolled, hot-drawn or extruded, of a height of >= 80 mm"]
["721640900080","7216 40 90",{"$f":"Translations!$B$938","v":"T sections of iron or non-alloy steel, not further worked than hot-rolled, hot-drawn or extruded, of a height of >= 80 mm"},"72164090",{"$f":"Translations!$B$611","v":"Iron or steel products"},{"$f":"IF(E251=\" --- \",\"\",COUNTIF($E$3:E251,E251)&\"_\"&E251)","v":"155_Iron or steel products"},null,"T sections of iron or non-alloy steel, not further worked than hot-rolled, hot-drawn or extruded, of a height of >= 80 mm"]
["721650000080","7216 50",{"$f":"Translations!$B$939","v":"Sections of iron or non-alloy steel, not further worked than hot-rolled, hot-drawn or hot-extruded (excl. U, I, H, L or T sections)"},"721650",{"$f":"Translations!$B$611","v":"Iron or steel products"},{"$f":"IF(E252=\" --- \",\"\",COUNTIF($E$3:E252,E252)&\"_\"&E252)","v":"156_Iron or steel products"},null,"Sections of iron or non-alloy steel, not further worked than hot-rolled, hot-drawn or hot-extruded (excl. U, I, H, L or T sections)"]
["721650100080","7216 50 10",{"$f":"Translations!$B$940","v":"Sections of iron or non-alloy steel, not further worked than hot-rolled, hot-drawn or hot-extruded, with a cross-section which is capable of being enclosed in a square the side of which is <= 80 mm (excl. U, I, H, L or T sections)"},"72165010",{"$f":"Translations!$B$611","v":"Iron or steel products"},{"$f":"IF(E253=\" --- \",\"\",COUNTIF($E$3:E253,E253)&\"_\"&E253)","v":"157_Iron or steel products"},null,"Sections of iron or non-alloy steel, not further worked than hot-rolled, hot-drawn or hot-extruded, with a cross-section which is capable of being enclosed in a square the side of which is <= 80 mm (excl. U, I, H, L or T sections)"]
["721650910080","7216 50 91",{"$f":"Translations!$B$941","v":"Bulb sections \"bulb flat\", only hot-rolled, hot-drawn or hot-extruded"},"72165091",{"$f":"Translations!$B$611","v":"Iron or steel products"},{"$f":"IF(E254=\" --- \",\"\",COUNTIF($E$3:E254,E254)&\"_\"&E254)","v":"158_Iron or steel products"},null,"Bulb sections \"bulb flat\", only hot-rolled, hot-drawn or hot-extruded"]
["721650990080","7216 50 99",{"$f":"Translations!$B$942","v":"Profile of iron or non-alloy steel, only hot-rolled, hot-drawn or hot-extruded (other than with a cross-section which is capable of being enclosed in a square the side of which is <= 80 mm, and U-, I-, H-, L- or T-sections and ribbed sections [ribbed steel])"},"72165099",{"$f":"Translations!$B$611","v":"Iron or steel products"},{"$f":"IF(E255=\" --- \",\"\",COUNTIF($E$3:E255,E255)&\"_\"&E255)","v":"159_Iron or steel products"},null,"Profile of iron or non-alloy steel, only hot-rolled, hot-drawn or hot-extruded (other than with a cross-section which is capable of being enclosed in a square the side of which is <= 80 mm, and U-, I-, H-, L- or T-sections and ribbed sections [ribbed steel])"]
["721661000080","7216 61",{"$f":"Translations!$B$943","v":"Angles, shapes and sections, of iron or non-alloy steel, from flat-rolled products simply cold-formed or cold-finished (excl. profiled sheet)"},"721661",{"$f":"Translations!$B$611","v":"Iron or steel products"},{"$f":"IF(E256=\" --- \",\"\",COUNTIF($E$3:E256,E256)&\"_\"&E256)","v":"160_Iron or steel products"},null,"Angles, shapes and sections, of iron or non-alloy steel, from flat-rolled products simply cold-formed or cold-finished (excl. profiled sheet)"]
["721661100080","7216 61 10",{"$f":"Translations!$B$944","v":"c, l, u, z, omega or open-ended sections of iron or non-alloy steel, simply cold-formed or cold-finished, obtained from flat-rolled products"},"72166110",{"$f":"Translations!$B$611","v":"Iron or steel products"},{"$f":"IF(E257=\" --- \",\"\",COUNTIF($E$3:E257,E257)&\"_\"&E257)","v":"161_Iron or steel products"},null,"c, l, u, z, omega or open-ended sections of iron or non-alloy steel, simply cold-formed or cold-finished, obtained from flat-rolled products"]
["721661900080","7216 61 90",{"$f":"Translations!$B$945","v":"Angles, shapes and sections (other than c, l, u, z, omega or open-ended sections) of iron or non-alloy steel, simply cold-formed or cold-finished, obtained from flat-rolled products"},"72166190",{"$f":"Translations!$B$611","v":"Iron or steel products"},{"$f":"IF(E258=\" --- \",\"\",COUNTIF($E$3:E258,E258)&\"_\"&E258)","v":"162_Iron or steel products"},null,"Angles, shapes and sections (other than c, l, u, z, omega or open-ended sections) of iron or non-alloy steel, simply cold-formed or cold-finished, obtained from flat-rolled products"]
["721669000080","7216 69 00",{"$f":"Translations!$B$946","v":"Angles, shapes and sections, of iron or non-alloy steel, not further worked than cold-formed or cold-finished (excl. profiled sheet)"},"72166900",{"$f":"Translations!$B$611","v":"Iron or steel products"},{"$f":"IF(E259=\" --- \",\"\",COUNTIF($E$3:E259,E259)&\"_\"&E259)","v":"163_Iron or steel products"},null,"Angles, shapes and sections, of iron or non-alloy steel, not further worked than cold-formed or cold-finished (excl. profiled sheet)"]
["721691000080","7216 91",{"$f":"Translations!$B$947","v":"Angles, shapes and sections, of iron or non-alloy steel, cold-formed or cold-finished from flat-rolled products and further worked"},"721691",{"$f":"Translations!$B$611","v":"Iron or steel products"},{"$f":"IF(E260=\" --- \",\"\",COUNTIF($E$3:E260,E260)&\"_\"&E260)","v":"164_Iron or steel products"},null,"Angles, shapes and sections, of iron or non-alloy steel, cold-formed or cold-finished from flat-rolled products and further worked"]
["721691100080","7216 91 10",{"$f":"Translations!$B$948","v":"Sheets sheets of iron or non-alloy steel, cold-formed or cold finished, profiled \"ribbed\""},"72169110",{"$f":"Translations!$B$611","v":"Iron or steel products"},{"$f":"IF(E261=\" --- \",\"\",COUNTIF($E$3:E261,E261)&\"_\"&E261)","v":"165_Iron or steel products"},null,"Sheets sheets of iron or non-alloy steel, cold-formed or cold finished, profiled \"ribbed\""]
["721691800080","7216 91 80",{"$f":"Translations!$B$949","v":"Angles, shapes and sections, of iron or non-alloy steel, cold-formed or cold-finished from flat-rolled products and further worked (excl. profiled sheet)"},"72169180",{"$f":"Translations!$B$611","v":"Iron or steel products"},{"$f":"IF(E262=\" --- \",\"\",COUNTIF($E$3:E262,E262)&\"_\"&E262)","v":"166_Iron or steel products"},null,"Angles, shapes and sections, of iron or non-alloy steel, cold-formed or cold-finished from flat-rolled products and further worked (excl. profiled sheet)"]
["721699000080","7216 99 00",{"$f":"Translations!$B$950","v":"Angles, shapes and sections, of iron or non-alloy steel, cold-formed or cold-finished and further worked, or hot-forged, or hot-formed by other means and further worked, n.e.s. (excl. from flat-rolled products)"},"72169900",{"$f":"Translations!$B$611","v":"Iron or steel products"},{"$f":"IF(E263=\" --- \",\"\",COUNTIF($E$3:E263,E263)&\"_\"&E263)","v":"167_Iron or steel products"},null,"Angles, shapes and sections, of iron or non-alloy steel, cold-formed or cold-finished and further worked, or hot-forged, or hot-formed by other means and further worked, n.e.s. (excl. from flat-rolled products)"]
["721700000080","7217",{"$f":"Translations!$B$951","v":"Wire of iron or non-alloy steel, in coils (excl. bars and rods)"},"7217",{"$f":"Translations!$B$611","v":"Iron or steel products"},{"$f":"IF(E264=\" --- \",\"\",COUNTIF($E$3:E264,E264)&\"_\"&E264)","v":"168_Iron or steel products"},null,"Wire of iron or non-alloy steel, in coils (excl. bars and rods)"]
["721710000080","7217 10",{"$f":"Translations!$B$952","v":"Wire of iron or non-alloy steel, in coils, not plated or coated, whether or not polished (excl. bars and rods)"},"721710",{"$f":"Translations!$B$611","v":"Iron or steel products"},{"$f":"IF(E265=\" --- \",\"\",COUNTIF($E$3:E265,E265)&\"_\"&E265)","v":"169_Iron or steel products"},null,"Wire of iron or non-alloy steel, in coils, not plated or coated, whether or not polished (excl. bars and rods)"]
["721710100080","7217 10 10",{"$f":"Translations!$B$953","v":"Wire of iron or non-alloy steel, in coils, containing by weight < 0,25% carbon, not plated or coated, whether or not polished, with a maximum cross-sectional dimension of < 0,8 mm"},"72171010",{"$f":"Translations!$B$611","v":"Iron or steel products"},{"$f":"IF(E266=\" --- \",\"\",COUNTIF($E$3:E266,E266)&\"_\"&E266)","v":"170_Iron or steel products"},null,"Wire of iron or non-alloy steel, in coils, containing by weight < 0,25% carbon, not plated or coated, whether or not polished, with a maximum cross-sectional dimension of < 0,8 mm"]
["721710310080","7217 10 31",{"$f":"Translations!$B$954","v":"Wire of iron or non-alloy steel, in coils, containing by weight < 0,25% carbon, with indentations, ribs, grooves or other deformations produced during the rolling process, not plated or coated, with a maximum cross-sectional dimension of >= 0,8 mm"},"72171031",{"$f":"Translations!$B$611","v":"Iron or steel products"},{"$f":"IF(E267=\" --- \",\"\",COUNTIF($E$3:E267,E267)&\"_\"&E267)","v":"171_Iron or steel products"},null,"Wire of iron or non-alloy steel, in coils, containing by weight < 0,25% carbon, with indentations, ribs, grooves or other deformations produced during the rolling process, not plated or coated, with a maximum cross-sectional dimension of >= 0,8 mm"]
["721710390080","7217 10 39",{"$f":"Translations!$B$955","v":"Wire of iron or non-alloy steel, in coils, containing by weight < 0,25% carbon, not plated or coated, with a maximum cross-sectional dimension of >= 0,8 mm (without indentations, ribs, grooves or other deformations produced during the rolling process)"},{"$f":"SUBSTITUTE(B268,\" \",\"\")","v":"72171039"},{"$f":"Translations!$B$611","v":"Iron or steel products"},{"$f":"IF(E268=\" --- \",\"\",COUNTIF($E$3:E268,E268)&\"_\"&E268)","v":"172_Iron or steel products"},null,"Wire of iron or non-alloy steel, in coils, containing by weight < 0,25% carbon, not plated or coated, with a maximum cross-sectional dimension of >= 0,8 mm (without indentations, ribs, grooves or other deformations produced during the rolling process)"]
["721710500080","7217 10 50",{"$f":"Translations!$B$956","v":"Wire of iron or non-alloy steel, in coils, containing by weight >= 0,25% but < 0,6% carbon, not plated or coated, whether or not polished (excl. hot-rolled bars and rods)"},"72171050",{"$f":"Translations!$B$611","v":"Iron or steel products"},{"$f":"IF(E269=\" --- \",\"\",COUNTIF($E$3:E269,E269)&\"_\"&E269)","v":"173_Iron or steel products"},null,"Wire of iron or non-alloy steel, in coils, containing by weight >= 0,25% but < 0,6% carbon, not plated or coated, whether or not polished (excl. hot-rolled bars and rods)"]
["721710900080","7217 10 90",{"$f":"Translations!$B$957","v":"Wire of iron or non-alloy steel, in coils, containing by weight >= 0,6% carbon, not plated or coated, whether or not polished (excl. hot-rolled bars and rods)"},"72171090",{"$f":"Translations!$B$611","v":"Iron or steel products"},{"$f":"IF(E270=\" --- \",\"\",COUNTIF($E$3:E270,E270)&\"_\"&E270)","v":"174_Iron or steel products"},null,"Wire of iron or non-alloy steel, in coils, containing by weight >= 0,6% carbon, not plated or coated, whether or not polished (excl. hot-rolled bars and rods)"]
["721720000080","7217 20",{"$f":"Translations!$B$958","v":"Wire of iron or non-alloy steel, in coils, plated or coated with zinc (excl. bars and rods)"},"721720",{"$f":"Translations!$B$611","v":"Iron or steel products"},{"$f":"IF(E271=\" --- \",\"\",COUNTIF($E$3:E271,E271)&\"_\"&E271)","v":"175_Iron or steel products"},null,"Wire of iron or non-alloy steel, in coils, plated or coated with zinc (excl. bars and rods)"]
["721720100080","7217 20 10",{"$f":"Translations!$B$959","v":"Wire of iron or non-alloy steel, in coils, containing by weight < 0,25% carbon, plated or coated with zinc, with a maximum cross-sectional dimension of < 0,8 mm"},"72172010",{"$f":"Translations!$B$611","v":"Iron or steel products"},{"$f":"IF(E272=\" --- \",\"\",COUNTIF($E$3:E272,E272)&\"_\"&E272)","v":"176_Iron or steel products"},null,"Wire of iron or non-alloy steel, in coils, containing by weight < 0,25% carbon, plated or coated with zinc, with a maximum cross-sectional dimension of < 0,8 mm"]
["721720300080","7217 20 30",{"$f":"Translations!$B$960","v":"Wire of iron or non-alloy steel, in coils, containing by weight < 0,25% carbon, plated or coated with zinc, with a maximum cross-sectional dimension of < 0,8 mm (excl. bars and rods)"},"72172030",{"$f":"Translations!$B$611","v":"Iron or steel products"},{"$f":"IF(E273=\" --- \",\"\",COUNTIF($E$3:E273,E273)&\"_\"&E273)","v":"177_Iron or steel products"},null,"Wire of iron or non-alloy steel, in coils, containing by weight < 0,25% carbon, plated or coated with zinc, with a maximum cross-sectional dimension of < 0,8 mm (excl. bars and rods)"]
["721720500080","7217 20 50",{"$f":"Translations!$B$961","v":"Wire of iron or non-alloy steel, in coils, containing by weight >= 0,25% but < 0,6% carbon, plated or coated with zinc (excl. bars and rods)"},"72172050",{"$f":"Translations!$B$611","v":"Iron or steel products"},{"$f":"IF(E274=\" --- \",\"\",COUNTIF($E$3:E274,E274)&\"_\"&E274)","v":"178_Iron or steel products"},null,"Wire of iron or non-alloy steel, in coils, containing by weight >= 0,25% but < 0,6% carbon, plated or coated with zinc (excl. bars and rods)"]
["721720900080","7217 20 90",{"$f":"Translations!$B$962","v":"Wire of iron or non-alloy steel, in coils, containing by weight >= 0,6% carbon, plated or coated with zinc (excl. bars and rods)"},"72172090",{"$f":"Translations!$B$611","v":"Iron or steel products"},{"$f":"IF(E275=\" --- \",\"\",COUNTIF($E$3:E275,E275)&\"_\"&E275)","v":"179_Iron or steel products"},null,"Wire of iron or non-alloy steel, in coils, containing by weight >= 0,6% carbon, plated or coated with zinc (excl. bars and rods)"]
["721730000080","7217 30",{"$f":"Translations!$B$963","v":"Wire of iron or non-alloy steel, in coils, plated or coated with base metals (excl. plated or coated with zinc, and bars and rods)"},"721730",{"$f":"Translations!$B$611","v":"Iron or steel products"},{"$f":"IF(E276=\" --- \",\"\",COUNTIF($E$3:E276,E276)&\"_\"&E276)","v":"180_Iron or steel products"},null,"Wire of iron or non-alloy steel, in coils, plated or coated with base metals (excl. plated or coated with zinc, and bars and rods)"]
["721730410080","7217 30 41",{"$f":"Translations!$B$964","v":"Wire of iron or non-alloy steel, in coils, containing by weight < 0,25% carbon, copper-coated (excl. bars and rods)"},"72173041",{"$f":"Translations!$B$611","v":"Iron or steel products"},{"$f":"IF(E277=\" --- \",\"\",COUNTIF($E$3:E277,E277)&\"_\"&E277)","v":"181_Iron or steel products"},null,"Wire of iron or non-alloy steel, in coils, containing by weight < 0,25% carbon, copper-coated (excl. bars and rods)"]
["721730490080","7217 30 49",{"$f":"Translations!$B$965","v":"Wire of iron or non-alloy steel, in coils, containing by weight < 0,25% carbon, plated or coated with base metals (excl. products plated or coated with zinc or copper and bars and rods)"},"72173049",{"$f":"Translations!$B$611","v":"Iron or steel products"},{"$f":"IF(E278=\" --- \",\"\",COUNTIF($E$3:E278,E278)&\"_\"&E278)","v":"182_Iron or steel products"},null,"Wire of iron or non-alloy steel, in coils, containing by weight < 0,25% carbon, plated or coated with base metals (excl. products plated or coated with zinc or copper and bars and rods)"]
["721730500080","7217 30 50",{"$f":"Translations!$B$966","v":"Wire of iron or non-alloy steel, in coils, containing by weight >= 0,25% but < 0,6% carbon, plated or coated with base metals (excl. products plated or coated with zinc, and bars and rods)"},"72173050",{"$f":"Translations!$B$611","v":"Iron or steel products"},{"$f":"IF(E279=\" --- \",\"\",COUNTIF($E$3:E279,E279)&\"_\"&E279)","v":"183_Iron or steel products"},null,"Wire of iron or non-alloy steel, in coils, containing by weight >= 0,25% but < 0,6% carbon, plated or coated with base metals (excl. products plated or coated with zinc, and bars and rods)"]
["721730900080","7217 30 90",{"$f":"Translations!$B$967","v":"Wire of iron or non-alloy steel, in coils, containing by weight >= 0,6% carbon, plated or coated with base metals (excl. products plated or coated with zinc, and bars and rods)"},"72173090",{"$f":"Translations!$B$611","v":"Iron or steel products"},{"$f":"IF(E280=\" --- \",\"\",COUNTIF($E$3:E280,E280)&\"_\"&E280)","v":"184_Iron or steel products"},null,"Wire of iron or non-alloy steel, in coils, containing by weight >= 0,6% carbon, plated or coated with base metals (excl. products plated or coated with zinc, and bars and rods)"]
["721790000080","7217 90",{"$f":"Translations!$B$968","v":"Wire of iron or non-alloy steel, in coils, plated or coated (excl. plated or coated with base metals, and bars and rods)"},"721790",{"$f":"Translations!$B$611","v":"Iron or steel products"},{"$f":"IF(E281=\" --- \",\"\",COUNTIF($E$3:E281,E281)&\"_\"&E281)","v":"185_Iron or steel products"},null,"Wire of iron or non-alloy steel, in coils, plated or coated (excl. plated or coated with base metals, and bars and rods)"]
["721790200080","7217 90 20",{"$f":"Translations!$B$969","v":"Wire of iron or non-alloy steel, in coils, containing by weight < 0,25% carbon, plated or coated (excl. products plated or coated with base metals and bars and rods)"},"72179020",{"$f":"Translations!$B$611","v":"Iron or steel products"},{"$f":"IF(E282=\" --- \",\"\",COUNTIF($E$3:E282,E282)&\"_\"&E282)","v":"186_Iron or steel products"},null,"Wire of iron or non-alloy steel, in coils, containing by weight < 0,25% carbon, plated or coated (excl. products plated or coated with base metals and bars and rods)"]
["721790500080","7217 90 50",{"$f":"Translations!$B$970","v":"Wire of iron or non-alloy steel, in coils, containing by weight >= 0,25% but < 0,6% carbon, plated or coated (excl. products plated or coated with with base metals, and bars and rods)"},"72179050",{"$f":"Translations!$B$611","v":"Iron or steel products"},{"$f":"IF(E283=\" --- \",\"\",COUNTIF($E$3:E283,E283)&\"_\"&E283)","v":"187_Iron or steel products"},null,"Wire of iron or non-alloy steel, in coils, containing by weight >= 0,25% but < 0,6% carbon, plated or coated (excl. products plated or coated with with base metals, and bars and rods)"]
["721790900080","7217 90 90",{"$f":"Translations!$B$971","v":"Wire of iron or non-alloy steel, in coils, containing by weight >= 0,6% carbon, plated or coated (excl. products plated or coated with base metals, and bars and rods)"},"72179090",{"$f":"Translations!$B$611","v":"Iron or steel products"},{"$f":"IF(E284=\" --- \",\"\",COUNTIF($E$3:E284,E284)&\"_\"&E284)","v":"188_Iron or steel products"},null,"Wire of iron or non-alloy steel, in coils, containing by weight >= 0,6% carbon, plated or coated (excl. products plated or coated with base metals, and bars and rods)"]
["721800000080","7218",{"$f":"Translations!$B$972","v":"Stainless steel in ingots or other primary forms (excl. remelting scrap ingots and products obtained by continuous casting); semi-finished products of stainless steel"},"7218",{"$f":"Translations!$B$668","v":"Crude steel"},{"$f":"IF(E285=\" --- \",\"\",COUNTIF($E$3:E285,E285)&\"_\"&E285)","v":"27_Crude steel"},null,"Stainless steel in ingots or other primary forms (excl. remelting scrap ingots and products obtained by continuous casting); semi-finished products of stainless steel"]
["721810000080","7218 10 00",{"$f":"Translations!$B$973","v":"Steel, stainless, in ingots and other primary forms (excl. waste and scrap in ingot form, and products obtained by continuous casting)"},"72181000",{"$f":"Translations!$B$668","v":"Crude steel"},{"$f":"IF(E286=\" --- \",\"\",COUNTIF($E$3:E286,E286)&\"_\"&E286)","v":"28_Crude steel"},null,"Steel, stainless, in ingots and other primary forms (excl. waste and scrap in ingot form, and products obtained by continuous casting)"]
["721891000080","7218 91",{"$f":"Translations!$B$974","v":"Semi-finished products of stainless steel, of rectangular \"other than square\" cross-section"},"721891",{"$f":"Translations!$B$668","v":"Crude steel"},{"$f":"IF(E287=\" --- \",\"\",COUNTIF($E$3:E287,E287)&\"_\"&E287)","v":"29_Crude steel"},null,"Semi-finished products of stainless steel, of rectangular \"other than square\" cross-section"]
["721891100080","7218 91 10",{"$f":"Translations!$B$975","v":"Semi-finished products of stainless steel, of rectangular \"other than square\" cross-section, containing by weight >= 2,5% nickel"},"72189110",{"$f":"Translations!$B$668","v":"Crude steel"},{"$f":"IF(E288=\" --- \",\"\",COUNTIF($E$3:E288,E288)&\"_\"&E288)","v":"30_Crude steel"},null,"Semi-finished products of stainless steel, of rectangular \"other than square\" cross-section, containing by weight >= 2,5% nickel"]
["721891800080","7218 91 80",{"$f":"Translations!$B$976","v":"Semi-finished products of stainless steel, of rectangular \"other than square\" cross-section, containing by weight < 2,5 nickel"},"72189180",{"$f":"Translations!$B$668","v":"Crude steel"},{"$f":"IF(E289=\" --- \",\"\",COUNTIF($E$3:E289,E289)&\"_\"&E289)","v":"31_Crude steel"},null,"Semi-finished products of stainless steel, of rectangular \"other than square\" cross-section, containing by weight < 2,5 nickel"]
["721899000080","7218 99",{"$f":"Translations!$B$977","v":"Semi-finished products of stainless steel (excl. of rectangular [other than square] cross-section)"},"721899",{"$f":"Translations!$B$668","v":"Crude steel"},{"$f":"IF(E290=\" --- \",\"\",COUNTIF($E$3:E290,E290)&\"_\"&E290)","v":"32_Crude steel"},null,"Semi-finished products of stainless steel (excl. of rectangular [other than square] cross-section)"]
["721899110080","7218 99 11",{"$f":"Translations!$B$978","v":"Semi-finished products of stainless steel, of square cross-section, rolled or obtained by continuous casting"},"72189911",{"$f":"Translations!$B$668","v":"Crude steel"},{"$f":"IF(E291=\" --- \",\"\",COUNTIF($E$3:E291,E291)&\"_\"&E291)","v":"33_Crude steel"},null,"Semi-finished products of stainless steel, of square cross-section, rolled or obtained by continuous casting"]
["721899190080","7218 99 19",{"$f":"Translations!$B$979","v":"Semi-finished products of stainless steel, of square cross-section, forged"},"72189919",{"$f":"Translations!$B$668","v":"Crude steel"},{"$f":"IF(E292=\" --- \",\"\",COUNTIF($E$3:E292,E292)&\"_\"&E292)","v":"34_Crude steel"},null,"Semi-finished products of stainless steel, of square cross-section, forged"]
["721899200080","7218 99 20",{"$f":"Translations!$B$980","v":"Semi-finished products of stainless steel, of circular cross-section or of cross-section other than square or rectangular, rolled or obtained by continuous casting"},"72189920",{"$f":"Translations!$B$668","v":"Crude steel"},{"$f":"IF(E293=\" --- \",\"\",COUNTIF($E$3:E293,E293)&\"_\"&E293)","v":"35_Crude steel"},null,"Semi-finished products of stainless steel, of circular cross-section or of cross-section other than square or rectangular, rolled or obtained by continuous casting"]
["721899800080","7218 99 80",{"$f":"Translations!$B$981","v":"Semi-finished products of stainless steel, forged (excl. products of square or rectangular cross-section)"},"72189980",{"$f":"Translations!$B$668","v":"Crude steel"},{"$f":"IF(E294=\" --- \",\"\",COUNTIF($E$3:E294,E294)&\"_\"&E294)","v":"36_Crude steel"},null,"Semi-finished products of stainless steel, forged (excl. products of square or rectangular cross-section)"]
["721900000080","7219",{"$f":"Translations!$B$982","v":"Flat-rolled products of stainless steel, of a width of >= 600 mm, hot-rolled or cold-rolled \"cold-reduced\""},"7219",{"$f":"Translations!$B$611","v":"Iron or steel products"},{"$f":"IF(E295=\" --- \",\"\",COUNTIF($E$3:E295,E295)&\"_\"&E295)","v":"189_Iron or steel products"},null,"Flat-rolled products of stainless steel, of a width of >= 600 mm, hot-rolled or cold-rolled \"cold-reduced\""]
["721911000080","7219 11 00",{"$f":"Translations!$B$983","v":"Flat-rolled products of stainless steel, of a width of >= 600 mm, not further worked than hot-rolled, in coils, of a thickness of > 10 mm"},"72191100",{"$f":"Translations!$B$611","v":"Iron or steel products"},{"$f":"IF(E296=\" --- \",\"\",COUNTIF($E$3:E296,E296)&\"_\"&E296)","v":"190_Iron or steel products"},null,"Flat-rolled products of stainless steel, of a width of >= 600 mm, not further worked than hot-rolled, in coils, of a thickness of > 10 mm"]
["721912000080","7219 12",{"$f":"Translations!$B$984","v":"Flat-rolled products of stainless steel, of a width of>= 600 mm, not further worked than hot-rolled, in coils, of a thickness of >= 4,7 mm and <= 10 mm"},"721912",{"$f":"Translations!$B$611","v":"Iron or steel products"},{"$f":"IF(E297=\" --- \",\"\",COUNTIF($E$3:E297,E297)&\"_\"&E297)","v":"191_Iron or steel products"},null,"Flat-rolled products of stainless steel, of a width of>= 600 mm, not further worked than hot-rolled, in coils, of a thickness of >= 4,7 mm and <= 10 mm"]
["721912100080","7219 12 10",{"$f":"Translations!$B$985","v":"Flat-rolled products of stainless steel, of a width of >= 600 mm, not further worked than hot-rolled, in coils, of a thickness of >= 4,75 mm but <= 10 mm, containing by weight >= 2,5 nickel"},"72191210",{"$f":"Translations!$B$611","v":"Iron or steel products"},{"$f":"IF(E298=\" --- \",\"\",COUNTIF($E$3:E298,E298)&\"_\"&E298)","v":"192_Iron or steel products"},null,"Flat-rolled products of stainless steel, of a width of >= 600 mm, not further worked than hot-rolled, in coils, of a thickness of >= 4,75 mm but <= 10 mm, containing by weight >= 2,5 nickel"]
["721912900080","7219 12 90",{"$f":"Translations!$B$986","v":"Flat-rolled products of stainless steel, of a width of >= 600 mm, not further worked than hot-rolled, in coils, of a thickness of >= 4,75 mm but <= 10 mm, containing by weight < 2,5 nickel"},"72191290",{"$f":"Translations!$B$611","v":"Iron or steel products"},{"$f":"IF(E299=\" --- \",\"\",COUNTIF($E$3:E299,E299)&\"_\"&E299)","v":"193_Iron or steel products"},null,"Flat-rolled products of stainless steel, of a width of >= 600 mm, not further worked than hot-rolled, in coils, of a thickness of >= 4,75 mm but <= 10 mm, containing by weight < 2,5 nickel"]
["721913000080","7219 13",{"$f":"Translations!$B$987","v":"Flat-rolled products of stainless steel, of a width of >= 600 mm, not further worked than hot-rolled, in coils, of a thickness of >= 3 mm and < 4,75 mm"},"721913",{"$f":"Translations!$B$611","v":"Iron or steel products"},{"$f":"IF(E300=\" --- \",\"\",COUNTIF($E$3:E300,E300)&\"_\"&E300)","v":"194_Iron or steel products"},null,"Flat-rolled products of stainless steel, of a width of >= 600 mm, not further worked than hot-rolled, in coils, of a thickness of >= 3 mm and < 4,75 mm"]
["721913100080","7219 13 10",{"$f":"Translations!$B$988","v":"Flat-rolled products of stainless steel, of a width of >= 600 mm, not further worked than hot-rolled, in coils, of a thickness of >= 3 mm but <= 4,75 mm, containing by weight >= 2,5 nickel"},"72191310",{"$f":"Translations!$B$611","v":"Iron or steel products"},{"$f":"IF(E301=\" --- \",\"\",COUNTIF($E$3:E301,E301)&\"_\"&E301)","v":"195_Iron or steel products"},null,"Flat-rolled products of stainless steel, of a width of >= 600 mm, not further worked than hot-rolled, in coils, of a thickness of >= 3 mm but <= 4,75 mm, containing by weight >= 2,5 nickel"]
["721913900080","7219 13 90",{"$f":"Translations!$B$989","v":"Flat-rolled products of stainless steel, of a width of >= 600 mm, not further worked than hot-rolled, in coils, of a thickness of >= 3 mm but <= 4,75 mm, containing by weight < 2,5 nickel"},"72191390",{"$f":"Translations!$B$611","v":"Iron or steel products"},{"$f":"IF(E302=\" --- \",\"\",COUNTIF($E$3:E302,E302)&\"_\"&E302)","v":"196_Iron or steel products"},null,"Flat-rolled products of stainless steel, of a width of >= 600 mm, not further worked than hot-rolled, in coils, of a thickness of >= 3 mm but <= 4,75 mm, containing by weight < 2,5 nickel"]
["721914000080","7219 14",{"$f":"Translations!$B$990","v":"Flat-rolled products of stainless steel, of a width of >= 600 mm, not further worked than hot-rolled, in coils, of a thickness of < 3 mm"},"721914",{"$f":"Translations!$B$611","v":"Iron or steel products"},{"$f":"IF(E303=\" --- \",\"\",COUNTIF($E$3:E303,E303)&\"_\"&E303)","v":"197_Iron or steel products"},null,"Flat-rolled products of stainless steel, of a width of >= 600 mm, not further worked than hot-rolled, in coils, of a thickness of < 3 mm"]
["721914100080","7219 14 10",{"$f":"Translations!$B$991","v":"Flat-rolled products of stainless steel, of a width of >= 600 mm, not further worked than hot-rolled, in coils, of a thickness of < 3 mm, containing by weight >= 2,5 nickel"},"72191410",{"$f":"Translations!$B$611","v":"Iron or steel products"},{"$f":"IF(E304=\" --- \",\"\",COUNTIF($E$3:E304,E304)&\"_\"&E304)","v":"198_Iron or steel products"},null,"Flat-rolled products of stainless steel, of a width of >= 600 mm, not further worked than hot-rolled, in coils, of a thickness of < 3 mm, containing by weight >= 2,5 nickel"]
["721914900080","7219 14 90",{"$f":"Translations!$B$992","v":"Flat-rolled products of stainless steel, of a width of >= 600 mm, not further worked than hot-rolled, in coils, of a thickness of < 3 mm, containing by weight < 2,5 nickel"},"72191490",{"$f":"Translations!$B$611","v":"Iron or steel products"},{"$f":"IF(E305=\" --- \",\"\",COUNTIF($E$3:E305,E305)&\"_\"&E305)","v":"199_Iron or steel products"},null,"Flat-rolled products of stainless steel, of a width of >= 600 mm, not further worked than hot-rolled, in coils, of a thickness of < 3 mm, containing by weight < 2,5 nickel"]
["721921000080","7219 21",{"$f":"Translations!$B$993","v":"Flat-rolled products of stainless steel, of a width of >= 600 mm, not further worked than hot-rolled, not in coils, of a thickness of > 10 mm"},"721921",{"$f":"Translations!$B$611","v":"Iron or steel products"},{"$f":"IF(E306=\" --- \",\"\",COUNTIF($E$3:E306,E306)&\"_\"&E306)","v":"200_Iron or steel products"},null,"Flat-rolled products of stainless steel, of a width of >= 600 mm, not further worked than hot-rolled, not in coils, of a thickness of > 10 mm"]
["721921100080","7219 21 10",{"$f":"Translations!$B$994","v":"Flat-rolled products of stainless steel, of a width of >= 600 mm, not further worked than hot-rolled, not in coils, of a thickness of > 10 mm, containing by weight >= 2,5 nickel"},"72192110",{"$f":"Translations!$B$611","v":"Iron or steel products"},{"$f":"IF(E307=\" --- \",\"\",COUNTIF($E$3:E307,E307)&\"_\"&E307)","v":"201_Iron or steel products"},null,"Flat-rolled products of stainless steel, of a width of >= 600 mm, not further worked than hot-rolled, not in coils, of a thickness of > 10 mm, containing by weight >= 2,5 nickel"]
["721921900080","7219 21 90",{"$f":"Translations!$B$995","v":"Flat-rolled products of stainless steel, of a width of >= 600 mm, not further worked than hot-rolled, not in coils, of a thickness of > 10 mm, containing by weight < 2,5 nickel"},"72192190",{"$f":"Translations!$B$611","v":"Iron or steel products"},{"$f":"IF(E308=\" --- \",\"\",COUNTIF($E$3:E308,E308)&\"_\"&E308)","v":"202_Iron or steel products"},null,"Flat-rolled products of stainless steel, of a width of >= 600 mm, not further worked than hot-rolled, not in coils, of a thickness of > 10 mm, containing by weight < 2,5 nickel"]
["721922000080","7219 22",{"$f":"Translations!$B$996","v":"Flat-rolled products of stainless steel, of a width of >= 600 mm, not further worked than hot-rolled, not in coils, of a thickness of >= 4,75 mm and <= 10 mm"},"721922",{"$f":"Translations!$B$611","v":"Iron or steel products"},{"$f":"IF(E309=\" --- \",\"\",COUNTIF($E$3:E309,E309)&\"_\"&E309)","v":"203_Iron or steel products"},null,"Flat-rolled products of stainless steel, of a width of >= 600 mm, not further worked than hot-rolled, not in coils, of a thickness of >= 4,75 mm and <= 10 mm"]
["721922100080","7219 22 10",{"$f":"Translations!$B$997","v":"Flat-rolled products of stainless steel, of a width of >= 600 mm, not further worked than hot-rolled, not in coils, of a thickness of >= 4,75 mm but <= 10 mm, containing by weight >= 2,5% nickel"},"72192210",{"$f":"Translations!$B$611","v":"Iron or steel products"},{"$f":"IF(E310=\" --- \",\"\",COUNTIF($E$3:E310,E310)&\"_\"&E310)","v":"204_Iron or steel products"},null,"Flat-rolled products of stainless steel, of a width of >= 600 mm, not further worked than hot-rolled, not in coils, of a thickness of >= 4,75 mm but <= 10 mm, containing by weight >= 2,5% nickel"]
["721922900080","7219 22 90",{"$f":"Translations!$B$998","v":"Flat-rolled products of stainless steel, of a width of >= 600 mm, not further worked than hot-rolled, not in coils, of a thickness of >= 4,75 mm but <= 10 mm, containing by weight < 2,5% nickel"},"72192290",{"$f":"Translations!$B$611","v":"Iron or steel products"},{"$f":"IF(E311=\" --- \",\"\",COUNTIF($E$3:E311,E311)&\"_\"&E311)","v":"205_Iron or steel products"},null,"Flat-rolled products of stainless steel, of a width of >= 600 mm, not further worked than hot-rolled, not in coils, of a thickness of >= 4,75 mm but <= 10 mm, containing by weight < 2,5% nickel"]
["721923000080","7219 23 00",{"$f":"Translations!$B$999","v":"Flat-rolled products of stainless steel, of a width of >= 600 mm, not further worked than hot-rolled, not in coils, of a thickness of >= 3 mm and < 4,75 mm"},"72192300",{"$f":"Translations!$B$611","v":"Iron or steel products"},{"$f":"IF(E312=\" --- \",\"\",COUNTIF($E$3:E312,E312)&\"_\"&E312)","v":"206_Iron or steel products"},null,"Flat-rolled products of stainless steel, of a width of >= 600 mm, not further worked than hot-rolled, not in coils, of a thickness of >= 3 mm and < 4,75 mm"]
["721924000080","7219 24 00",{"$f":"Translations!$B$1000","v":"Flat-rolled products of stainless steel, of a width of >= 600 mm, not further worked than hot-rolled, not in coils, of a thickness of < 3 mm"},"72192400",{"$f":"Translations!$B$611","v":"Iron or steel products"},{"$f":"IF(E313=\" --- \",\"\",COUNTIF($E$3:E313,E313)&\"_\"&E313)","v":"207_Iron or steel products"},null,"Flat-rolled products of stainless steel, of a width of >= 600 mm, not further worked than hot-rolled, not in coils, of a thickness of < 3 mm"]
["721931000080","7219 31 00",{"$f":"Translations!$B$1001","v":"Flat-rolled products of stainless steel, of a width of >= 600 mm, not further worked than cold-rolled \"cold-reduced\", of a thickness of >= 4,75 mm"},"72193100",{"$f":"Translations!$B$611","v":"Iron or steel products"},{"$f":"IF(E314=\" --- \",\"\",COUNTIF($E$3:E314,E314)&\"_\"&E314)","v":"208_Iron or steel products"},null,"Flat-rolled products of stainless steel, of a width of >= 600 mm, not further worked than cold-rolled \"cold-reduced\", of a thickness of >= 4,75 mm"]
["721932000080","7219 32",{"$f":"Translations!$B$1002","v":"Flat-rolled products of stainless steel, of a width of >= 600 mm, not further worked than cold-rolled \"cold-reduced\", of a thickness of >= 3 mm but < 4,75 mm"},"721932",{"$f":"Translations!$B$611","v":"Iron or steel products"},{"$f":"IF(E315=\" --- \",\"\",COUNTIF($E$3:E315,E315)&\"_\"&E315)","v":"209_Iron or steel products"},null,"Flat-rolled products of stainless steel, of a width of >= 600 mm, not further worked than cold-rolled \"cold-reduced\", of a thickness of >= 3 mm but < 4,75 mm"]
["721932100080","7219 32 10",{"$f":"Translations!$B$1003","v":"Flat-rolled products of stainless steel, of a width of >= 600 mm, not further worked than cold-rolled \"cold-reduced\", of a thickness of >= 3 mm but <= 4,75 mm, containing by weight >= 2,5% nickel"},"72193210",{"$f":"Translations!$B$611","v":"Iron or steel products"},{"$f":"IF(E316=\" --- \",\"\",COUNTIF($E$3:E316,E316)&\"_\"&E316)","v":"210_Iron or steel products"},null,"Flat-rolled products of stainless steel, of a width of >= 600 mm, not further worked than cold-rolled \"cold-reduced\", of a thickness of >= 3 mm but <= 4,75 mm, containing by weight >= 2,5% nickel"]
["721932900080","7219 32 90",{"$f":"Translations!$B$1004","v":"Flat-rolled products of stainless steel, of a width of >= 600 mm, not further worked than cold-rolled \"cold-reduced\", of a thickness of >= 3 mm but <= 4,75 mm, containing by weight < 2,5% nickel"},"72193290",{"$f":"Translations!$B$611","v":"Iron or steel products"},{"$f":"IF(E317=\" --- \",\"\",COUNTIF($E$3:E317,E317)&\"_\"&E317)","v":"211_Iron or steel products"},null,"Flat-rolled products of stainless steel, of a width of >= 600 mm, not further worked than cold-rolled \"cold-reduced\", of a thickness of >= 3 mm but <= 4,75 mm, containing by weight < 2,5% nickel"]
["721933000080","7219 33",{"$f":"Translations!$B$1005","v":"Flat-rolled products of stainless steel, of a width of >= 600 mm, not further worked than cold-rolled \"cold-reduced\", of a thickness of > 1 mm but < 3 mm"},"721933",{"$f":"Translations!$B$611","v":"Iron or steel products"},{"$f":"IF(E318=\" --- \",\"\",COUNTIF($E$3:E318,E318)&\"_\"&E318)","v":"212_Iron or steel products"},null,"Flat-rolled products of stainless steel, of a width of >= 600 mm, not further worked than cold-rolled \"cold-reduced\", of a thickness of > 1 mm but < 3 mm"]
["721933100080","7219 33 10",{"$f":"Translations!$B$1006","v":"Flat-rolled products of stainless steel, of a width of >= 600 mm, not further worked than cold-rolled \"cold-reduced\", of a thickness of > 1 mm but < 3 mm, containing by weight >= 2,5% nickel"},"72193310",{"$f":"Translations!$B$611","v":"Iron or steel products"},{"$f":"IF(E319=\" --- \",\"\",COUNTIF($E$3:E319,E319)&\"_\"&E319)","v":"213_Iron or steel products"},null,"Flat-rolled products of stainless steel, of a width of >= 600 mm, not further worked than cold-rolled \"cold-reduced\", of a thickness of > 1 mm but < 3 mm, containing by weight >= 2,5% nickel"]
["721933900080","7219 33 90",{"$f":"Translations!$B$1007","v":"Flat-rolled products of stainless steel, of a width of >= 600 mm, not further worked than cold-rolled \"cold-reduced\", of a thickness of > 1 mm but < 3 mm, containing by weight < 2,5% nickel"},"72193390",{"$f":"Translations!$B$611","v":"Iron or steel products"},{"$f":"IF(E320=\" --- \",\"\",COUNTIF($E$3:E320,E320)&\"_\"&E320)","v":"214_Iron or steel products"},null,"Flat-rolled products of stainless steel, of a width of >= 600 mm, not further worked than cold-rolled \"cold-reduced\", of a thickness of > 1 mm but < 3 mm, containing by weight < 2,5% nickel"]
["721934000080","7219 34",{"$f":"Translations!$B$1008","v":"Flat-rolled products of stainless steel, of a width of >= 600 mm, not further worked than cold-rolled \"cold-reduced\", of a thickness of >= 0,5 mm but <= 1 mm"},"721934",{"$f":"Translations!$B$611","v":"Iron or steel products"},{"$f":"IF(E321=\" --- \",\"\",COUNTIF($E$3:E321,E321)&\"_\"&E321)","v":"215_Iron or steel products"},null,"Flat-rolled products of stainless steel, of a width of >= 600 mm, not further worked than cold-rolled \"cold-reduced\", of a thickness of >= 0,5 mm but <= 1 mm"]
["721934100080","7219 34 10",{"$f":"Translations!$B$1009","v":"Flat-rolled products of stainless steel, of a width of >= 600 mm, not further worked than cold-rolled \"cold-reduced\", of a thickness of >= 0,5 mm but <= 1 mm, containing by weight >= 2,5% nickel"},"72193410",{"$f":"Translations!$B$611","v":"Iron or steel products"},{"$f":"IF(E322=\" --- \",\"\",COUNTIF($E$3:E322,E322)&\"_\"&E322)","v":"216_Iron or steel products"},null,"Flat-rolled products of stainless steel, of a width of >= 600 mm, not further worked than cold-rolled \"cold-reduced\", of a thickness of >= 0,5 mm but <= 1 mm, containing by weight >= 2,5% nickel"]
["721934900080","7219 34 90",{"$f":"Translations!$B$1010","v":"Flat-rolled products of stainless steel, of a width of >= 600 mm, not further worked than cold-rolled \"cold-reduced\", of a thickness of >= 0,5 mm but <= 1 mm, containing by weight < 2,5% nickel"},"72193490",{"$f":"Translations!$B$611","v":"Iron or steel products"},{"$f":"IF(E323=\" --- \",\"\",COUNTIF($E$3:E323,E323)&\"_\"&E323)","v":"217_Iron or steel products"},null,"Flat-rolled products of stainless steel, of a width of >= 600 mm, not further worked than cold-rolled \"cold-reduced\", of a thickness of >= 0,5 mm but <= 1 mm, containing by weight < 2,5% nickel"]
["721935000080","7219 35",{"$f":"Translations!$B$1011","v":"Flat-rolled products of stainless steel, of a width of >= 600 mm, not further worked than cold-rolled \"cold-reduced\", of a thickness of < 0,5 mm"},"721935",{"$f":"Translations!$B$611","v":"Iron or steel products"},{"$f":"IF(E324=\" --- \",\"\",COUNTIF($E$3:E324,E324)&\"_\"&E324)","v":"218_Iron or steel products"},null,"Flat-rolled products of stainless steel, of a width of >= 600 mm, not further worked than cold-rolled \"cold-reduced\", of a thickness of < 0,5 mm"]
["721935100080","7219 35 10",{"$f":"Translations!$B$1012","v":"Flat-rolled products of stainless steel, of a width of >= 600 mm, not further worked than cold-rolled \"cold-reduced\", of a thickness of < 0,5 mm, containing by weight >= 2,5% nickel"},"72193510",{"$f":"Translations!$B$611","v":"Iron or steel products"},{"$f":"IF(E325=\" --- \",\"\",COUNTIF($E$3:E325,E325)&\"_\"&E325)","v":"219_Iron or steel products"},null,"Flat-rolled products of stainless steel, of a width of >= 600 mm, not further worked than cold-rolled \"cold-reduced\", of a thickness of < 0,5 mm, containing by weight >= 2,5% nickel"]
["721935900080","7219 35 90",{"$f":"Translations!$B$1013","v":"Flat-rolled products of stainless steel, of a width of >= 600 mm, not further worked than cold-rolled \"cold-reduced\", of a thickness of < 0,5 mm, containing by weight < 2,5% nickel"},"72193590",{"$f":"Translations!$B$611","v":"Iron or steel products"},{"$f":"IF(E326=\" --- \",\"\",COUNTIF($E$3:E326,E326)&\"_\"&E326)","v":"220_Iron or steel products"},null,"Flat-rolled products of stainless steel, of a width of >= 600 mm, not further worked than cold-rolled \"cold-reduced\", of a thickness of < 0,5 mm, containing by weight < 2,5% nickel"]
["721990000080","7219 90",{"$f":"Translations!$B$1014","v":"Flat-rolled products of stainless steel, of a width of >= 600 mm, hot-rolled or cold-rolled \"cold-reduced\" and further worked"},"721990",{"$f":"Translations!$B$611","v":"Iron or steel products"},{"$f":"IF(E327=\" --- \",\"\",COUNTIF($E$3:E327,E327)&\"_\"&E327)","v":"221_Iron or steel products"},null,"Flat-rolled products of stainless steel, of a width of >= 600 mm, hot-rolled or cold-rolled \"cold-reduced\" and further worked"]
["721990200080","7219 90 20",{"$f":"Translations!$B$1015","v":"Flat-rolled products of stainless steel, of a width of >= 600 mm, hot-rolled or cold-rolled \"cold-reduced\" and further worked, perforated"},"72199020",{"$f":"Translations!$B$611","v":"Iron or steel products"},{"$f":"IF(E328=\" --- \",\"\",COUNTIF($E$3:E328,E328)&\"_\"&E328)","v":"222_Iron or steel products"},null,"Flat-rolled products of stainless steel, of a width of >= 600 mm, hot-rolled or cold-rolled \"cold-reduced\" and further worked, perforated"]
["721990800080","7219 90 80",{"$f":"Translations!$B$1016","v":"Flat-rolled products of stainless steel, of a width of >= 600 mm, hot-rolled or cold-rolled \"cold-reduced\" and further worked, non-perforated"},"72199080",{"$f":"Translations!$B$611","v":"Iron or steel products"},{"$f":"IF(E329=\" --- \",\"\",COUNTIF($E$3:E329,E329)&\"_\"&E329)","v":"223_Iron or steel products"},null,"Flat-rolled products of stainless steel, of a width of >= 600 mm, hot-rolled or cold-rolled \"cold-reduced\" and further worked, non-perforated"]
["722000000080","7220",{"$f":"Translations!$B$1017","v":"Flat-rolled products of stainless steel, of a width of < 600 mm, hot-rolled or cold-rolled \"cold-reduced\""},"7220",{"$f":"Translations!$B$611","v":"Iron or steel products"},{"$f":"IF(E330=\" --- \",\"\",COUNTIF($E$3:E330,E330)&\"_\"&E330)","v":"224_Iron or steel products"},null,"Flat-rolled products of stainless steel, of a width of < 600 mm, hot-rolled or cold-rolled \"cold-reduced\""]
["722011000080","7220 11 00",{"$f":"Translations!$B$1018","v":"Flat-rolled products of stainless steel, of a width of < 600 mm, not further worked than hot-rolled, of a thickness of >= 4,75 mm"},"72201100",{"$f":"Translations!$B$611","v":"Iron or steel products"},{"$f":"IF(E331=\" --- \",\"\",COUNTIF($E$3:E331,E331)&\"_\"&E331)","v":"225_Iron or steel products"},null,"Flat-rolled products of stainless steel, of a width of < 600 mm, not further worked than hot-rolled, of a thickness of >= 4,75 mm"]
["722012000080","7220 12 00",{"$f":"Translations!$B$1019","v":"Flat-rolled products of stainless steel, of a width of < 600 mm, not further worked than hot-rolled, of a thickness of < 4,75 mm"},{"$f":"SUBSTITUTE(B332,\" \",\"\")","v":"72201200"},{"$f":"Translations!$B$611","v":"Iron or steel products"},{"$f":"IF(E332=\" --- \",\"\",COUNTIF($E$3:E332,E332)&\"_\"&E332)","v":"226_Iron or steel products"},null,"Flat-rolled products of stainless steel, of a width of < 600 mm, not further worked than hot-rolled, of a thickness of < 4,75 mm"]
["722020000080","7220 20",{"$f":"Translations!$B$1020","v":"Flat-rolled products of stainless steel, of a width of < 600 mm, not further worked than cold-rolled \"cold-reduced\""},"722020",{"$f":"Translations!$B$611","v":"Iron or steel products"},{"$f":"IF(E333=\" --- \",\"\",COUNTIF($E$3:E333,E333)&\"_\"&E333)","v":"227_Iron or steel products"},null,"Flat-rolled products of stainless steel, of a width of < 600 mm, not further worked than cold-rolled \"cold-reduced\""]
["722020210080","7220 20 21",{"$f":"Translations!$B$1021","v":"Flat-rolled products of stainless steel, of a width of < 600 mm, not further worked than cold-rolled \"cold-reduced\", of a thickness of >= 3 mm and containing by weight >= 2,5% nickel"},"72202021",{"$f":"Translations!$B$611","v":"Iron or steel products"},{"$f":"IF(E334=\" --- \",\"\",COUNTIF($E$3:E334,E334)&\"_\"&E334)","v":"228_Iron or steel products"},null,"Flat-rolled products of stainless steel, of a width of < 600 mm, not further worked than cold-rolled \"cold-reduced\", of a thickness of >= 3 mm and containing by weight >= 2,5% nickel"]
["722020290080","7220 20 29",{"$f":"Translations!$B$1022","v":"Flat-rolled products of stainless steel, of a width of < 600 mm, not further worked than cold-rolled \"cold-reduced\", of a thickness of >= 3 mm and containing by weight < 2,5% nickel"},"72202029",{"$f":"Translations!$B$611","v":"Iron or steel products"},{"$f":"IF(E335=\" --- \",\"\",COUNTIF($E$3:E335,E335)&\"_\"&E335)","v":"229_Iron or steel products"},null,"Flat-rolled products of stainless steel, of a width of < 600 mm, not further worked than cold-rolled \"cold-reduced\", of a thickness of >= 3 mm and containing by weight < 2,5% nickel"]
["722020410080","7220 20 41",{"$f":"Translations!$B$1023","v":"Flat-rolled products of stainless steel, of a width of < 600 mm, not further worked than cold-rolled \"cold-reduced\", of a thickness of > 0,35 mm but < 3 mm, and containing by weight >= 2,5% nickel"},"72202041",{"$f":"Translations!$B$611","v":"Iron or steel products"},{"$f":"IF(E336=\" --- \",\"\",COUNTIF($E$3:E336,E336)&\"_\"&E336)","v":"230_Iron or steel products"},null,"Flat-rolled products of stainless steel, of a width of < 600 mm, not further worked than cold-rolled \"cold-reduced\", of a thickness of > 0,35 mm but < 3 mm, and containing by weight >= 2,5% nickel"]
["722020490080","7220 20 49",{"$f":"Translations!$B$1024","v":"Flat-rolled products of stainless steel, of a width of < 600 mm, not further worked than cold-rolled \"cold-reduced\", of a thickness of > 0,35 mm but < 3 mm, and containing by weight < 2,5% nickel"},"72202049",{"$f":"Translations!$B$611","v":"Iron or steel products"},{"$f":"IF(E337=\" --- \",\"\",COUNTIF($E$3:E337,E337)&\"_\"&E337)","v":"231_Iron or steel products"},null,"Flat-rolled products of stainless steel, of a width of < 600 mm, not further worked than cold-rolled \"cold-reduced\", of a thickness of > 0,35 mm but < 3 mm, and containing by weight < 2,5% nickel"]
["722020810080","7220 20 81",{"$f":"Translations!$B$1025","v":"Flat-rolled products of stainless steel, of a width of < 600 mm, not further worked than cold-rolled \"cold-reduced\", of a thickness of <= 0,35 mm and containing by weight >= 2,5% nickel"},"72202081",{"$f":"Translations!$B$611","v":"Iron or steel products"},{"$f":"IF(E338=\" --- \",\"\",COUNTIF($E$3:E338,E338)&\"_\"&E338)","v":"232_Iron or steel products"},null,"Flat-rolled products of stainless steel, of a width of < 600 mm, not further worked than cold-rolled \"cold-reduced\", of a thickness of <= 0,35 mm and containing by weight >= 2,5% nickel"]
["722020890080","7220 20 89",{"$f":"Translations!$B$1026","v":"Flat-rolled products of stainless steel, of a width of < 600 mm, not further worked than cold-rolled \"cold-reduced\", of a thickness of <= 0,35 mm and containing by weight < 2,5% nickel"},"72202089",{"$f":"Translations!$B$611","v":"Iron or steel products"},{"$f":"IF(E339=\" --- \",\"\",COUNTIF($E$3:E339,E339)&\"_\"&E339)","v":"233_Iron or steel products"},null,"Flat-rolled products of stainless steel, of a width of < 600 mm, not further worked than cold-rolled \"cold-reduced\", of a thickness of <= 0,35 mm and containing by weight < 2,5% nickel"]
["722090000080","7220 90",{"$f":"Translations!$B$1027","v":"Flat-rolled products of stainless steel, of a width of < 600 mm, hot-rolled or cold-rolled \"cold-reduced\" and further worked"},"722090",{"$f":"Translations!$B$611","v":"Iron or steel products"},{"$f":"IF(E340=\" --- \",\"\",COUNTIF($E$3:E340,E340)&\"_\"&E340)","v":"234_Iron or steel products"},null,"Flat-rolled products of stainless steel, of a width of < 600 mm, hot-rolled or cold-rolled \"cold-reduced\" and further worked"]
["722090200080","7220 90 20",{"$f":"Translations!$B$1028","v":"Flat-rolled products of stainless steel, of a width of < 600 mm, hot-rolled or cold-rolled \"cold-reduced\" and further worked, perforated"},"72209020",{"$f":"Translations!$B$611","v":"Iron or steel products"},{"$f":"IF(E341=\" --- \",\"\",COUNTIF($E$3:E341,E341)&\"_\"&E341)","v":"235_Iron or steel products"},null,"Flat-rolled products of stainless steel, of a width of < 600 mm, hot-rolled or cold-rolled \"cold-reduced\" and further worked, perforated"]
["722090800080","7220 90 80",{"$f":"Translations!$B$1029","v":"Flat-rolled products of stainless steel, of a width of < 600 mm, hot-rolled or cold-rolled \"cold-reduced\" and further worked, non-perforated"},"72209080",{"$f":"Translations!$B$611","v":"Iron or steel products"},{"$f":"IF(E342=\" --- \",\"\",COUNTIF($E$3:E342,E342)&\"_\"&E342)","v":"236_Iron or steel products"},null,"Flat-rolled products of stainless steel, of a width of < 600 mm, hot-rolled or cold-rolled \"cold-reduced\" and further worked, non-perforated"]
["722100000080","7221 00",{"$f":"Translations!$B$1030","v":"Bars and rods of stainless steel, hot-rolled, in irregularly wound coils"},"722100",{"$f":"Translations!$B$611","v":"Iron or steel products"},{"$f":"IF(E343=\" --- \",\"\",COUNTIF($E$3:E343,E343)&\"_\"&E343)","v":"237_Iron or steel products"},null,"Bars and rods of stainless steel, hot-rolled, in irregularly wound coils"]
["722100100080","7221 00 10",{"$f":"Translations!$B$1031","v":"Bars and rods of stainless steel, hot-rolled, in irregularly wound coils, containing by weight >= 2,5% nickel"},"72210010",{"$f":"Translations!$B$611","v":"Iron or steel products"},{"$f":"IF(E344=\" --- \",\"\",COUNTIF($E$3:E344,E344)&\"_\"&E344)","v":"238_Iron or steel products"},null,"Bars and rods of stainless steel, hot-rolled, in irregularly wound coils, containing by weight >= 2,5% nickel"]
["722100900080","7221 00 90",{"$f":"Translations!$B$1032","v":"Bars and rods of stainless steel, hot-rolled, in irregularly wound coils, containing by weight < 2,5% nickel"},"72210090",{"$f":"Translations!$B$611","v":"Iron or steel products"},{"$f":"IF(E345=\" --- \",\"\",COUNTIF($E$3:E345,E345)&\"_\"&E345)","v":"239_Iron or steel products"},null,"Bars and rods of stainless steel, hot-rolled, in irregularly wound coils, containing by weight < 2,5% nickel"]
["722200000080","7222",{"$f":"Translations!$B$1033","v":"Other bars and rods of stainless steel; angles, shapes and sections of stainless steel, n.e.s."},"7222",{"$f":"Translations!$B$611","v":"Iron or steel products"},{"$f":"IF(E346=\" --- \",\"\",COUNTIF($E$3:E346,E346)&\"_\"&E346)","v":"240_Iron or steel products"},null,"Other bars and rods of stainless steel; angles, shapes and sections of stainless steel, n.e.s."]
["722211000080","7222 11",{"$f":"Translations!$B$1034","v":"Bars and rods of stainless steel, only hot-rolled, only hot-drawn or only hot-extruded, of circular cross-section"},"722211",{"$f":"Translations!$B$611","v":"Iron or steel products"},{"$f":"IF(E347=\" --- \",\"\",COUNTIF($E$3:E347,E347)&\"_\"&E347)","v":"241_Iron or steel products"},null,"Bars and rods of stainless steel, only hot-rolled, only hot-drawn or only hot-extruded, of circular cross-section"]
["722211110080","7222 11 11",{"$f":"Translations!$B$1035","v":"Bars and rods of stainless steel, not further worked than hot-rolled, hot-drawn or extruded, of circular cross-section of a diameter of >= 800 mm, containing by weight >= 2,5% nickel"},"72221111",{"$f":"Translations!$B$611","v":"Iron or steel products"},{"$f":"IF(E348=\" --- \",\"\",COUNTIF($E$3:E348,E348)&\"_\"&E348)","v":"242_Iron or steel products"},null,"Bars and rods of stainless steel, not further worked than hot-rolled, hot-drawn or extruded, of circular cross-section of a diameter of >= 800 mm, containing by weight >= 2,5% nickel"]
["722211190080","7222 11 19",{"$f":"Translations!$B$1036","v":"Bars and rods of stainless steel, not further worked than hot-rolled, hot-drawn or extruded, of circular cross-section of a diameter of >= 800 mm, containing by weight < 2,5% nickel"},"72221119",{"$f":"Translations!$B$611","v":"Iron or steel products"},{"$f":"IF(E349=\" --- \",\"\",COUNTIF($E$3:E349,E349)&\"_\"&E349)","v":"243_Iron or steel products"},null,"Bars and rods of stainless steel, not further worked than hot-rolled, hot-drawn or extruded, of circular cross-section of a diameter of >= 800 mm, containing by weight < 2,5% nickel"]
["722211810080","7222 11 81",{"$f":"Translations!$B$1037","v":"Bars and rods of stainless steel, not further worked than hot-rolled, hot-drawn or extruded, of circular cross-section measuring < 80 mm and containing by weight >= 2,5% nickel"},"72221181",{"$f":"Translations!$B$611","v":"Iron or steel products"},{"$f":"IF(E350=\" --- \",\"\",COUNTIF($E$3:E350,E350)&\"_\"&E350)","v":"244_Iron or steel products"},null,"Bars and rods of stainless steel, not further worked than hot-rolled, hot-drawn or extruded, of circular cross-section measuring < 80 mm and containing by weight >= 2,5% nickel"]
["722211890080","7222 11 89",{"$f":"Translations!$B$1038","v":"Bars and rods of stainless steel, not further worked than hot-rolled, hot-drawn or extruded, of circular cross-section measuring < 80 mm and containing by weight < 2,5% nickel"},"72221189",{"$f":"Translations!$B$611","v":"Iron or steel products"},{"$f":"IF(E351=\" --- \",\"\",COUNTIF($E$3:E351,E351)&\"_\"&E351)","v":"245_Iron or steel products"},null,"Bars and rods of stainless steel, not further worked than hot-rolled, hot-drawn or extruded, of circular cross-section measuring < 80 mm and containing by weight < 2,5% nickel"]
["722219000080","7222 19",{"$f":"Translations!$B$1039","v":"Bars and rods of stainless steel, only hot-rolled, only hot-drawn or only extruded (excl. of circular cross-section)"},"722219",{"$f":"Translations!$B$611","v":"Iron or steel products"},{"$f":"IF(E352=\" --- \",\"\",COUNTIF($E$3:E352,E352)&\"_\"&E352)","v":"246_Iron or steel products"},null,"Bars and rods of stainless steel, only hot-rolled, only hot-drawn or only extruded (excl. of circular cross-section)"]
["722219100080","7222 19 10",{"$f":"Translations!$B$1040","v":"Bars and rods of stainless steel, not further worked than hot-rolled, hot-drawn or extruded, containing by weight >= 2,5% nickel (excl. such products of circular cross-section)"},"72221910",{"$f":"Translations!$B$611","v":"Iron or steel products"},{"$f":"IF(E353=\" --- \",\"\",COUNTIF($E$3:E353,E353)&\"_\"&E353)","v":"247_Iron or steel products"},null,"Bars and rods of stainless steel, not further worked than hot-rolled, hot-drawn or extruded, containing by weight >= 2,5% nickel (excl. such products of circular cross-section)"]
["722219900080","7222 19 90",{"$f":"Translations!$B$1041","v":"Bars and rods of stainless steel, not further worked than hot-rolled, hot-drawn or extruded, containing by weight < 2,5% nickel (excl. such products of circular cross-section)"},"72221990",{"$f":"Translations!$B$611","v":"Iron or steel products"},{"$f":"IF(E354=\" --- \",\"\",COUNTIF($E$3:E354,E354)&\"_\"&E354)","v":"248_Iron or steel products"},null,"Bars and rods of stainless steel, not further worked than hot-rolled, hot-drawn or extruded, containing by weight < 2,5% nickel (excl. such products of circular cross-section)"]
["722220000080","7222 20",{"$f":"Translations!$B$1042","v":"Other bars and rods of stainless steel, not further worked than cold-formed or cold-finished"},"722220",{"$f":"Translations!$B$611","v":"Iron or steel products"},{"$f":"IF(E355=\" --- \",\"\",COUNTIF($E$3:E355,E355)&\"_\"&E355)","v":"249_Iron or steel products"},null,"Other bars and rods of stainless steel, not further worked than cold-formed or cold-finished"]
["722220110080","7222 20 11",{"$f":"Translations!$B$1043","v":"Bars and rods of stainless steel, of circular cross-section of a diameter >= 80 mm, simply cold-formed or cold-finished, containing by weight >= 2,5% nickel"},"72222011",{"$f":"Translations!$B$611","v":"Iron or steel products"},{"$f":"IF(E356=\" --- \",\"\",COUNTIF($E$3:E356,E356)&\"_\"&E356)","v":"250_Iron or steel products"},null,"Bars and rods of stainless steel, of circular cross-section of a diameter >= 80 mm, simply cold-formed or cold-finished, containing by weight >= 2,5% nickel"]
["722220190080","7222 20 19",{"$f":"Translations!$B$1044","v":"Bars and rods of stainless steel, of circular cross-section of a diameter >= 80 mm, simply cold-formed or cold-finished, containing by weight < 2,5% nickel"},"72222019",{"$f":"Translations!$B$611","v":"Iron or steel products"},{"$f":"IF(E357=\" --- \",\"\",COUNTIF($E$3:E357,E357)&\"_\"&E357)","v":"251_Iron or steel products"},null,"Bars and rods of stainless steel, of circular cross-section of a diameter >= 80 mm, simply cold-formed or cold-finished, containing by weight < 2,5% nickel"]
["722220210080","7222 20 21",{"$f":"Translations!$B$1045","v":"Bars and rods of stainless steel, not further worked than cold-formed or cold-finished, of circular cross-section measuring >= 25 mm but < 80 mm and containing by weight >= 2,5% nickel"},"72222021",{"$f":"Translations!$B$611","v":"Iron or steel products"},{"$f":"IF(E358=\" --- \",\"\",COUNTIF($E$3:E358,E358)&\"_\"&E358)","v":"252_Iron or steel products"},null,"Bars and rods of stainless steel, not further worked than cold-formed or cold-finished, of circular cross-section measuring >= 25 mm but < 80 mm and containing by weight >= 2,5% nickel"]
["722220290080","7222 20 29",{"$f":"Translations!$B$1046","v":"Bars and rods of stainless steel, not further worked than cold-formed or cold-finished, of circular cross-section measuring >= 25 mm but < 80 mm and containing by weight < 2,5% nickel"},"72222029",{"$f":"Translations!$B$611","v":"Iron or steel products"},{"$f":"IF(E359=\" --- \",\"\",COUNTIF($E$3:E359,E359)&\"_\"&E359)","v":"253_Iron or steel products"},null,"Bars and rods of stainless steel, not further worked than cold-formed or cold-finished, of circular cross-section measuring >= 25 mm but < 80 mm and containing by weight < 2,5% nickel"]
["722220310080","7222 20 31",{"$f":"Translations!$B$1047","v":"Bars and rods of stainless steel, not further worked than cold-formed or cold-finished, of circular cross-section measuring < 25 mm and containing by weight >= 2,5% nickel"},"72222031",{"$f":"Translations!$B$611","v":"Iron or steel products"},{"$f":"IF(E360=\" --- \",\"\",COUNTIF($E$3:E360,E360)&\"_\"&E360)","v":"254_Iron or steel products"},null,"Bars and rods of stainless steel, not further worked than cold-formed or cold-finished, of circular cross-section measuring < 25 mm and containing by weight >= 2,5% nickel"]
["722220390080","7222 20 39",{"$f":"Translations!$B$1048","v":"Bars and rods of stainless steel, not further worked than cold-formed or cold-finished, of circular cross-section measuring < 25 mm and containing by weight < 2,5% nickel"},"72222039",{"$f":"Translations!$B$611","v":"Iron or steel products"},{"$f":"IF(E361=\" --- \",\"\",COUNTIF($E$3:E361,E361)&\"_\"&E361)","v":"255_Iron or steel products"},null,"Bars and rods of stainless steel, not further worked than cold-formed or cold-finished, of circular cross-section measuring < 25 mm and containing by weight < 2,5% nickel"]
["722220810080","7222 20 81",{"$f":"Translations!$B$1049","v":"Bars and rods of stainless steel, not further worked than cold-formed or cold-finished, containing by weight >= 2,5% nickel (excl. such products of circular cross-section)"},"72222081",{"$f":"Translations!$B$611","v":"Iron or steel products"},{"$f":"IF(E362=\" --- \",\"\",COUNTIF($E$3:E362,E362)&\"_\"&E362)","v":"256_Iron or steel products"},null,"Bars and rods of stainless steel, not further worked than cold-formed or cold-finished, containing by weight >= 2,5% nickel (excl. such products of circular cross-section)"]
["722220890080","7222 20 89",{"$f":"Translations!$B$1050","v":"Bars and rods of stainless steel, not further worked than cold-formed or cold-finished, containing by weight < 2,5% nickel (excl. such products of circular cross-section)"},"72222089",{"$f":"Translations!$B$611","v":"Iron or steel products"},{"$f":"IF(E363=\" --- \",\"\",COUNTIF($E$3:E363,E363)&\"_\"&E363)","v":"257_Iron or steel products"},null,"Bars and rods of stainless steel, not further worked than cold-formed or cold-finished, containing by weight < 2,5% nickel (excl. such products of circular cross-section)"]
["722230000080","7222 30",{"$f":"Translations!$B$1051","v":"Other bars and rods of stainless steel, cold-formed or cold-finished and further worked, or not further worked than forged, or forged, or hot-formed by other means and further worked, n.e.s."},"722230",{"$f":"Translations!$B$611","v":"Iron or steel products"},{"$f":"IF(E364=\" --- \",\"\",COUNTIF($E$3:E364,E364)&\"_\"&E364)","v":"258_Iron or steel products"},null,"Other bars and rods of stainless steel, cold-formed or cold-finished and further worked, or not further worked than forged, or forged, or hot-formed by other means and further worked, n.e.s."]
["722230510080","7222 30 51",{"$f":"Translations!$B$1052","v":"Other bars and rods of stainless steel, containing by weight >= 2,5% of nickel, forged"},"72223051",{"$f":"Translations!$B$611","v":"Iron or steel products"},{"$f":"IF(E365=\" --- \",\"\",COUNTIF($E$3:E365,E365)&\"_\"&E365)","v":"259_Iron or steel products"},null,"Other bars and rods of stainless steel, containing by weight >= 2,5% of nickel, forged"]
["722230910080","7222 30 91",{"$f":"Translations!$B$1053","v":"Other bars and rods of stainless steel, containing by weight < 2,5% of nickel, forged"},"72223091",{"$f":"Translations!$B$611","v":"Iron or steel products"},{"$f":"IF(E366=\" --- \",\"\",COUNTIF($E$3:E366,E366)&\"_\"&E366)","v":"260_Iron or steel products"},null,"Other bars and rods of stainless steel, containing by weight < 2,5% of nickel, forged"]
["722230970080","7222 30 97",{"$f":"Translations!$B$1054","v":"Bars and rods of stainless steel, cold-formed or cold-finished and further worked, or hot-formed and further worked, n.e.s. (excl. forged products)"},"72223097",{"$f":"Translations!$B$611","v":"Iron or steel products"},{"$f":"IF(E367=\" --- \",\"\",COUNTIF($E$3:E367,E367)&\"_\"&E367)","v":"261_Iron or steel products"},null,"Bars and rods of stainless steel, cold-formed or cold-finished and further worked, or hot-formed and further worked, n.e.s. (excl. forged products)"]
["722240000080","7222 40",{"$f":"Translations!$B$1055","v":"Angles, shapes and sections of stainless steel, n.e.s."},"722240",{"$f":"Translations!$B$611","v":"Iron or steel products"},{"$f":"IF(E368=\" --- \",\"\",COUNTIF($E$3:E368,E368)&\"_\"&E368)","v":"262_Iron or steel products"},null,"Angles, shapes and sections of stainless steel, n.e.s."]
["722240100080","7222 40 10",{"$f":"Translations!$B$1056","v":"Angles, shapes and sections of stainless steel, only hot-rolled, only hot-drawn or only extruded"},"72224010",{"$f":"Translations!$B$611","v":"Iron or steel products"},{"$f":"IF(E369=\" --- \",\"\",COUNTIF($E$3:E369,E369)&\"_\"&E369)","v":"263_Iron or steel products"},null,"Angles, shapes and sections of stainless steel, only hot-rolled, only hot-drawn or only extruded"]
["722240500080","7222 40 50",{"$f":"Translations!$B$1057","v":"Angles, shapes and sections of stainless steel, not further worked than cold-formed or cold-finished"},"72224050",{"$f":"Translations!$B$611","v":"Iron or steel products"},{"$f":"IF(E370=\" --- \",\"\",COUNTIF($E$3:E370,E370)&\"_\"&E370)","v":"264_Iron or steel products"},null,"Angles, shapes and sections of stainless steel, not further worked than cold-formed or cold-finished"]
["722240900080","7222 40 90",{"$f":"Translations!$B$1058","v":"Angles, shapes and sections of stainless steel, cold-formed or cold-finished and further worked, or not further worked than forged, or forged, or hot-formed by other means and further worked, n.e.s."},"72224090",{"$f":"Translations!$B$611","v":"Iron or steel products"},{"$f":"IF(E371=\" --- \",\"\",COUNTIF($E$3:E371,E371)&\"_\"&E371)","v":"265_Iron or steel products"},null,"Angles, shapes and sections of stainless steel, cold-formed or cold-finished and further worked, or not further worked than forged, or forged, or hot-formed by other means and further worked, n.e.s."]
["722300000080","7223 00",{"$f":"Translations!$B$1059","v":"Wire of stainless steel, in coils (excl. bars and rods)"},"722300",{"$f":"Translations!$B$611","v":"Iron or steel products"},{"$f":"IF(E372=\" --- \",\"\",COUNTIF($E$3:E372,E372)&\"_\"&E372)","v":"266_Iron or steel products"},null,"Wire of stainless steel, in coils (excl. bars and rods)"]
["722300110080","7223 00 11",{"$f":"Translations!$B$1060","v":"Wire of stainless steel, in coils, containing by weight 28% to 31% nickel and 20% to 22% chromium (excl. bars and rods)"},"72230011",{"$f":"Translations!$B$611","v":"Iron or steel products"},{"$f":"IF(E373=\" --- \",\"\",COUNTIF($E$3:E373,E373)&\"_\"&E373)","v":"267_Iron or steel products"},null,"Wire of stainless steel, in coils, containing by weight 28% to 31% nickel and 20% to 22% chromium (excl. bars and rods)"]
["722300190080","7223 00 19",{"$f":"Translations!$B$1061","v":"Wire of stainless steel, in coils, containing by weight >= 2,5% nickel (excl. such products containing 28% to 31% nickel and 20% to 22% chromium, and bars and rods)"},"72230019",{"$f":"Translations!$B$611","v":"Iron or steel products"},{"$f":"IF(E374=\" --- \",\"\",COUNTIF($E$3:E374,E374)&\"_\"&E374)","v":"268_Iron or steel products"},null,"Wire of stainless steel, in coils, containing by weight >= 2,5% nickel (excl. such products containing 28% to 31% nickel and 20% to 22% chromium, and bars and rods)"]
["722300910080","7223 00 91",{"$f":"Translations!$B$1062","v":"Wire of stainless steel, in coils, containing by weight < 2,5% nickel, 13% to 25% chromium and 3,5% to 6% aluminium (excl. bars and rods)"},"72230091",{"$f":"Translations!$B$611","v":"Iron or steel products"},{"$f":"IF(E375=\" --- \",\"\",COUNTIF($E$3:E375,E375)&\"_\"&E375)","v":"269_Iron or steel products"},null,"Wire of stainless steel, in coils, containing by weight < 2,5% nickel, 13% to 25% chromium and 3,5% to 6% aluminium (excl. bars and rods)"]
["722300990080","7223 00 99",{"$f":"Translations!$B$1063","v":"Wire of stainless steel, in coils, containing by weight < 2,5% nickel (excl. such products containing 13% to 25% chromium and 3,5% to 6% aluminium, and bars and rods)"},"72230099",{"$f":"Translations!$B$611","v":"Iron or steel products"},{"$f":"IF(E376=\" --- \",\"\",COUNTIF($E$3:E376,E376)&\"_\"&E376)","v":"270_Iron or steel products"},null,"Wire of stainless steel, in coils, containing by weight < 2,5% nickel (excl. such products containing 13% to 25% chromium and 3,5% to 6% aluminium, and bars and rods)"]
["722400000080","7224",{"$f":"Translations!$B$1064","v":"Steel, alloy, other than stainless, in ingots or other primary forms, semi-finished products of alloy steel other than stainless (excl. waste and scrap in ingot form, and products obtained by continuous casting)"},"7224",{"$f":"Translations!$B$668","v":"Crude steel"},{"$f":"IF(E377=\" --- \",\"\",COUNTIF($E$3:E377,E377)&\"_\"&E377)","v":"37_Crude steel"},null,"Steel, alloy, other than stainless, in ingots or other primary forms, semi-finished products of alloy steel other than stainless (excl. waste and scrap in ingot form, and products obtained by continuous casting)"]
["722410000080","7224 10",{"$f":"Translations!$B$1065","v":"Steel, alloy, other than stainless, in ingots or other primary forms (excl. waste and scrap in ingot form, and products obtained by continuous casting)"},"722410",{"$f":"Translations!$B$668","v":"Crude steel"},{"$f":"IF(E378=\" --- \",\"\",COUNTIF($E$3:E378,E378)&\"_\"&E378)","v":"38_Crude steel"},null,"Steel, alloy, other than stainless, in ingots or other primary forms (excl. waste and scrap in ingot form, and products obtained by continuous casting)"]
["722410100080","7224 10 10",{"$f":"Translations!$B$1066","v":"Ingots and other primary forms, of tool steel"},"72241010",{"$f":"Translations!$B$668","v":"Crude steel"},{"$f":"IF(E379=\" --- \",\"\",COUNTIF($E$3:E379,E379)&\"_\"&E379)","v":"39_Crude steel"},null,"Ingots and other primary forms, of tool steel"]
["722410900080","7224 10 90",{"$f":"Translations!$B$1067","v":"Steel, alloy, other than stainless, in ingots or other primary forms (excl. of tool steel, waste and scrap in ingot form and products obtained by continuous casting)"},"72241090",{"$f":"Translations!$B$668","v":"Crude steel"},{"$f":"IF(E380=\" --- \",\"\",COUNTIF($E$3:E380,E380)&\"_\"&E380)","v":"40_Crude steel"},null,"Steel, alloy, other than stainless, in ingots or other primary forms (excl. of tool steel, waste and scrap in ingot form and products obtained by continuous casting)"]
["722490000080","7224 90",{"$f":"Translations!$B$1068","v":"Semi-finished products of alloy steel other than stainless"},"722490",{"$f":"Translations!$B$668","v":"Crude steel"},{"$f":"IF(E381=\" --- \",\"\",COUNTIF($E$3:E381,E381)&\"_\"&E381)","v":"41_Crude steel"},null,"Semi-finished products of alloy steel other than stainless"]
["722490020080","7224 90 02",{"$f":"Translations!$B$1069","v":"Semi-finished products of tool steel"},"72249002",{"$f":"Translations!$B$668","v":"Crude steel"},{"$f":"IF(E382=\" --- \",\"\",COUNTIF($E$3:E382,E382)&\"_\"&E382)","v":"42_Crude steel"},null,"Semi-finished products of tool steel"]
["722490030080","7224 90 03",{"$f":"Translations!$B$1070","v":"Semi-finished products of high-speed steel, of square or rectangular cross-section, hot-rolled or obtained by continuous casting the width measuring < twice the thickness"},"72249003",{"$f":"Translations!$B$668","v":"Crude steel"},{"$f":"IF(E383=\" --- \",\"\",COUNTIF($E$3:E383,E383)&\"_\"&E383)","v":"43_Crude steel"},null,"Semi-finished products of high-speed steel, of square or rectangular cross-section, hot-rolled or obtained by continuous casting the width measuring < twice the thickness"]
["722490050080","7224 90 05",{"$f":"Translations!$B$1071","v":"Semi-finished products of steel containing by weight <= 0,7% of carbon, 0,5% to 1,2% of manganese, 0,6% to 2,3% of silicon, or of steel containing by weight >= 0,0008% of boron with any other element < the minimum content referred to in Note 1 f to chapter 72, of square or rectangular cross-section, hot rolled or obtained by continuous casting, the width measuring < twice the thickness"},"72249005",{"$f":"Translations!$B$668","v":"Crude steel"},{"$f":"IF(E384=\" --- \",\"\",COUNTIF($E$3:E384,E384)&\"_\"&E384)","v":"44_Crude steel"},null,"Semi-finished products of steel containing by weight <= 0,7% of carbon, 0,5% to 1,2% of manganese, 0,6% to 2,3% of silicon, or of steel containing by weight >= 0,0008% of boron with any other element < the minimum content referred to in Note 1 f to chapter 72, of square or rectangular cross-section, hot rolled or obtained by continuous casting, the width measuring < twice the thickness"]
["722490070080","7224 90 07",{"$f":"Translations!$B$1072","v":"Semi-finished products of alloy steel other than stainless steel, of square or rectangular cross-section, hot-rolled or obtained by continuous casting, the width measuring < twice the thickness (excl. of tool steel, high-speed steel and articles of subheading 7224.90.05)"},"72249007",{"$f":"Translations!$B$668","v":"Crude steel"},{"$f":"IF(E385=\" --- \",\"\",COUNTIF($E$3:E385,E385)&\"_\"&E385)","v":"45_Crude steel"},null,"Semi-finished products of alloy steel other than stainless steel, of square or rectangular cross-section, hot-rolled or obtained by continuous casting, the width measuring < twice the thickness (excl. of tool steel, high-speed steel and articles of subheading 7224.90.05)"]
["722490140080","7224 90 14",{"$f":"Translations!$B$1073","v":"Semi-finished products of alloy steel other than stainless steel, of square or rectangular cross-section, hot-rolled or obtained by continuous casting, the width measuring >= twice the thickness (excl. of tool steel)"},"72249014",{"$f":"Translations!$B$668","v":"Crude steel"},{"$f":"IF(E386=\" --- \",\"\",COUNTIF($E$3:E386,E386)&\"_\"&E386)","v":"46_Crude steel"},null,"Semi-finished products of alloy steel other than stainless steel, of square or rectangular cross-section, hot-rolled or obtained by continuous casting, the width measuring >= twice the thickness (excl. of tool steel)"]
["722490180080","7224 90 18",{"$f":"Translations!$B$1074","v":"Semi-finished products of alloy steel other than stainless steel, of square or rectangular cross-section, forged (excl. of tool steel)"},"72249018",{"$f":"Translations!$B$668","v":"Crude steel"},{"$f":"IF(E387=\" --- \",\"\",COUNTIF($E$3:E387,E387)&\"_\"&E387)","v":"47_Crude steel"},null,"Semi-finished products of alloy steel other than stainless steel, of square or rectangular cross-section, forged (excl. of tool steel)"]
["722490310080","7224 90 31",{"$f":"Translations!$B$1075","v":"Semi-finished products of steel containing by weight 0,9% to 1,15% carbon, 0,5% to 2% of chromium and, if present, <= 0,5% of molybdenum, cut into shapes other than square or rectangular, hot-rolled or obtained by continuous casting"},"72249031",{"$f":"Translations!$B$668","v":"Crude steel"},{"$f":"IF(E388=\" --- \",\"\",COUNTIF($E$3:E388,E388)&\"_\"&E388)","v":"48_Crude steel"},null,"Semi-finished products of steel containing by weight 0,9% to 1,15% carbon, 0,5% to 2% of chromium and, if present, <= 0,5% of molybdenum, cut into shapes other than square or rectangular, hot-rolled or obtained by continuous casting"]
["722490380080","7224 90 38",{"$f":"Translations!$B$1076","v":"Semi-finished products of alloy steel, other than stainless steel, cut into shapes other than square or rectangular, hot-rolled or obtained by continuous casting (excl. of tool steel and products containing by weight 0,9% to 1,15% of carbon, 0,5% to 2% of chromium and, if present, <= 0,5% of molybdenum)"},"72249038",{"$f":"Translations!$B$668","v":"Crude steel"},{"$f":"IF(E389=\" --- \",\"\",COUNTIF($E$3:E389,E389)&\"_\"&E389)","v":"49_Crude steel"},null,"Semi-finished products of alloy steel, other than stainless steel, cut into shapes other than square or rectangular, hot-rolled or obtained by continuous casting (excl. of tool steel and products containing by weight 0,9% to 1,15% of carbon, 0,5% to 2% of chromium and, if present, <= 0,5% of molybdenum)"]
["722490900080","7224 90 90",{"$f":"Translations!$B$1077","v":"Semi-finished products of alloy steel, other than stainless steel, forged (excl. of tool steel and products of square or rectangular, circular or polygamol cross-section)"},"72249090",{"$f":"Translations!$B$668","v":"Crude steel"},{"$f":"IF(E390=\" --- \",\"\",COUNTIF($E$3:E390,E390)&\"_\"&E390)","v":"50_Crude steel"},null,"Semi-finished products of alloy steel, other than stainless steel, forged (excl. of tool steel and products of square or rectangular, circular or polygamol cross-section)"]
["722500000080","7225",{"$f":"Translations!$B$1078","v":"Flat-rolled products of alloy steel other than stainless, of a width of >= 600 mm, hot-rolled or cold-rolled \"cold-reduced\""},"7225",{"$f":"Translations!$B$611","v":"Iron or steel products"},{"$f":"IF(E391=\" --- \",\"\",COUNTIF($E$3:E391,E391)&\"_\"&E391)","v":"271_Iron or steel products"},null,"Flat-rolled products of alloy steel other than stainless, of a width of >= 600 mm, hot-rolled or cold-rolled \"cold-reduced\""]
["722511000080","7225 11 00",{"$f":"Translations!$B$1079","v":"Flat-rolled products of silicon-electrical steel, of a width of >= 600 mm, grain-oriented"},"72251100",{"$f":"Translations!$B$611","v":"Iron or steel products"},{"$f":"IF(E392=\" --- \",\"\",COUNTIF($E$3:E392,E392)&\"_\"&E392)","v":"272_Iron or steel products"},null,"Flat-rolled products of silicon-electrical steel, of a width of >= 600 mm, grain-oriented"]
["722519000080","7225 19",{"$f":"Translations!$B$1080","v":"Flat-rolled products of silicon-electrical steel, of a width of >= 600 mm, non-grain-oriented"},"722519",{"$f":"Translations!$B$611","v":"Iron or steel products"},{"$f":"IF(E393=\" --- \",\"\",COUNTIF($E$3:E393,E393)&\"_\"&E393)","v":"273_Iron or steel products"},null,"Flat-rolled products of silicon-electrical steel, of a width of >= 600 mm, non-grain-oriented"]
["722519100080","7225 19 10",{"$f":"Translations!$B$1081","v":"Flat-rolled products of silicon-electrical steel, of a width of >= 600 mm, hot-rolled"},"72251910",{"$f":"Translations!$B$611","v":"Iron or steel products"},{"$f":"IF(E394=\" --- \",\"\",COUNTIF($E$3:E394,E394)&\"_\"&E394)","v":"274_Iron or steel products"},null,"Flat-rolled products of silicon-electrical steel, of a width of >= 600 mm, hot-rolled"]
["722519900080","7225 19 90",{"$f":"Translations!$B$1082","v":"Flat-rolled products of silicon-electrical steel, of a width of >= 600 mm, cold-rolled \"cold-reduced\", non-grain-oriented"},"72251990",{"$f":"Translations!$B$611","v":"Iron or steel products"},{"$f":"IF(E395=\" --- \",\"\",COUNTIF($E$3:E395,E395)&\"_\"&E395)","v":"275_Iron or steel products"},null,"Flat-rolled products of silicon-electrical steel, of a width of >= 600 mm, cold-rolled \"cold-reduced\", non-grain-oriented"]
["722530000080","7225 30",{"$f":"Translations!$B$1083","v":"Flat-rolled products of alloy steel other than stainless, of a width of >= 600 mm, not further worked than hot-rolled, in coils (excl. products of silicon-electrical steel)"},{"$f":"SUBSTITUTE(B396,\" \",\"\")","v":"722530"},{"$f":"Translations!$B$611","v":"Iron or steel products"},{"$f":"IF(E396=\" --- \",\"\",COUNTIF($E$3:E396,E396)&\"_\"&E396)","v":"276_Iron or steel products"},null,"Flat-rolled products of alloy steel other than stainless, of a width of >= 600 mm, not further worked than hot-rolled, in coils (excl. products of silicon-electrical steel)"]
["722530100080","7225 30 10",{"$f":"Translations!$B$1084","v":"Flat-rolled products of tool steel, of a width of >= 600 mm, not further worked than hot-rolled, in coils"},"72253010",{"$f":"Translations!$B$611","v":"Iron or steel products"},{"$f":"IF(E397=\" --- \",\"\",COUNTIF($E$3:E397,E397)&\"_\"&E397)","v":"277_Iron or steel products"},null,"Flat-rolled products of tool steel, of a width of >= 600 mm, not further worked than hot-rolled, in coils"]
["722530300080","7225 30 30",{"$f":"Translations!$B$1085","v":"Flat-rolled products of high-speed steel, of a width of >= 600 mm, not further worked than hot-rolled, in coils"},"72253030",{"$f":"Translations!$B$611","v":"Iron or steel products"},{"$f":"IF(E398=\" --- \",\"\",COUNTIF($E$3:E398,E398)&\"_\"&E398)","v":"278_Iron or steel products"},null,"Flat-rolled products of high-speed steel, of a width of >= 600 mm, not further worked than hot-rolled, in coils"]
["722530900080","7225 30 90",{"$f":"Translations!$B$1086","v":"Flat-rolled products of alloy steel other than stainless, of a width of >= 600 mm, not further worked than hot-rolled, in coils (excl. products of tool steel, high-speed steel or silicon-electrical steel)"},"72253090",{"$f":"Translations!$B$611","v":"Iron or steel products"},{"$f":"IF(E399=\" --- \",\"\",COUNTIF($E$3:E399,E399)&\"_\"&E399)","v":"279_Iron or steel products"},null,"Flat-rolled products of alloy steel other than stainless, of a width of >= 600 mm, not further worked than hot-rolled, in coils (excl. products of tool steel, high-speed steel or silicon-electrical steel)"]
["722540000080","7225 40",{"$f":"Translations!$B$1087","v":"Flat-rolled products of alloy steel other than stainless, of a width of >= 600 mm, not further worked than hot-rolled, not in coils (excl. products of silicon-electrical steel)"},"722540",{"$f":"Translations!$B$611","v":"Iron or steel products"},{"$f":"IF(E400=\" --- \",\"\",COUNTIF($E$3:E400,E400)&\"_\"&E400)","v":"280_Iron or steel products"},null,"Flat-rolled products of alloy steel other than stainless, of a width of >= 600 mm, not further worked than hot-rolled, not in coils (excl. products of silicon-electrical steel)"]
["722540120080","7225 40 12",{"$f":"Translations!$B$1088","v":"Flat-rolled products of tool steel, of a width of >= 600 mm, not further worked than hot-rolled, not in coils"},"72254012",{"$f":"Translations!$B$611","v":"Iron or steel products"},{"$f":"IF(E401=\" --- \",\"\",COUNTIF($E$3:E401,E401)&\"_\"&E401)","v":"281_Iron or steel products"},null,"Flat-rolled products of tool steel, of a width of >= 600 mm, not further worked than hot-rolled, not in coils"]
["722540150080","7225 40 15",{"$f":"Translations!$B$1089","v":"Flat-rolled products of high-speed steel, of a width of >= 600 mm, not further worked than hot-rolled, not in coils"},"72254015",{"$f":"Translations!$B$611","v":"Iron or steel products"},{"$f":"IF(E402=\" --- \",\"\",COUNTIF($E$3:E402,E402)&\"_\"&E402)","v":"282_Iron or steel products"},null,"Flat-rolled products of high-speed steel, of a width of >= 600 mm, not further worked than hot-rolled, not in coils"]
["722540400080","7225 40 40",{"$f":"Translations!$B$1090","v":"Flat-rolled products of alloy steel other than stainless, of a width of >= 600 mm, not further worked than hot-rolled, not in coils, of a thickness of > 10 mm (excl. products of tool steel, high-speed steel or silicon-electrical steel)"},"72254040",{"$f":"Translations!$B$611","v":"Iron or steel products"},{"$f":"IF(E403=\" --- \",\"\",COUNTIF($E$3:E403,E403)&\"_\"&E403)","v":"283_Iron or steel products"},null,"Flat-rolled products of alloy steel other than stainless, of a width of >= 600 mm, not further worked than hot-rolled, not in coils, of a thickness of > 10 mm (excl. products of tool steel, high-speed steel or silicon-electrical steel)"]
["722540600080","7225 40 60",{"$f":"Translations!$B$1091","v":"Flat-rolled products of alloy steel other than stainless, of a width of >= 600 mm, not further worked than hot-rolled, not in coils, of a thickness of >= 4,75 mm but <= 10 mm (excl. products of tool steel, high-speed steel or silicon-electrical steel)"},"72254060",{"$f":"Translations!$B$611","v":"Iron or steel products"},{"$f":"IF(E404=\" --- \",\"\",COUNTIF($E$3:E404,E404)&\"_\"&E404)","v":"284_Iron or steel products"},null,"Flat-rolled products of alloy steel other than stainless, of a width of >= 600 mm, not further worked than hot-rolled, not in coils, of a thickness of >= 4,75 mm but <= 10 mm (excl. products of tool steel, high-speed steel or silicon-electrical steel)"]
["722540900080","7225 40 90",{"$f":"Translations!$B$1092","v":"Flat-rolled products of alloy steel other than stainless, of a width of >= 600 mm, not further worked than hot-rolled, not in coils, of a thickness of < 4,75 mm (excl. products of tool steel, high-speed steel or silicon-electrical steel)"},"72254090",{"$f":"Translations!$B$611","v":"Iron or steel products"},{"$f":"IF(E405=\" --- \",\"\",COUNTIF($E$3:E405,E405)&\"_\"&E405)","v":"285_Iron or steel products"},null,"Flat-rolled products of alloy steel other than stainless, of a width of >= 600 mm, not further worked than hot-rolled, not in coils, of a thickness of < 4,75 mm (excl. products of tool steel, high-speed steel or silicon-electrical steel)"]
["722550000080","7225 50",{"$f":"Translations!$B$1093","v":"Flat-rolled products of alloy steel other than stainless, of a width of >= 600 mm, not further worked than cold-rolled \"cold-reduced\" (excl. products of silicon-electrical steel)"},"722550",{"$f":"Translations!$B$611","v":"Iron or steel products"},{"$f":"IF(E406=\" --- \",\"\",COUNTIF($E$3:E406,E406)&\"_\"&E406)","v":"286_Iron or steel products"},null,"Flat-rolled products of alloy steel other than stainless, of a width of >= 600 mm, not further worked than cold-rolled \"cold-reduced\" (excl. products of silicon-electrical steel)"]
["722550200080","7225 50 20",{"$f":"Translations!$B$1094","v":"Flat-rolled products of high-speed steel, of a width of >= 600 mm, not further worked than cold-rolled \"cold-reduced\""},"72255020",{"$f":"Translations!$B$611","v":"Iron or steel products"},{"$f":"IF(E407=\" --- \",\"\",COUNTIF($E$3:E407,E407)&\"_\"&E407)","v":"287_Iron or steel products"},null,"Flat-rolled products of high-speed steel, of a width of >= 600 mm, not further worked than cold-rolled \"cold-reduced\""]
["722550800080","7225 50 80",{"$f":"Translations!$B$1095","v":"Flat-rolled products of alloy steel other than stainless, of a width of >= 600 mm, not further worked than cold-rolled \"cold-reduced\" (excl. products of high-speed steel or silicon-electrical steel)"},"72255080",{"$f":"Translations!$B$611","v":"Iron or steel products"},{"$f":"IF(E408=\" --- \",\"\",COUNTIF($E$3:E408,E408)&\"_\"&E408)","v":"288_Iron or steel products"},null,"Flat-rolled products of alloy steel other than stainless, of a width of >= 600 mm, not further worked than cold-rolled \"cold-reduced\" (excl. products of high-speed steel or silicon-electrical steel)"]
["722591000080","7225 91 00",{"$f":"Translations!$B$1096","v":"Flat-rolled products of alloy steel other than stainless, of a width of >= 600 mm, hot-rolled or cold-rolled \"cold-reduced\" and electrolytically plated or coated with zinc (excl. products of silicon-electrical steel)"},"72259100",{"$f":"Translations!$B$611","v":"Iron or steel products"},{"$f":"IF(E409=\" --- \",\"\",COUNTIF($E$3:E409,E409)&\"_\"&E409)","v":"289_Iron or steel products"},null,"Flat-rolled products of alloy steel other than stainless, of a width of >= 600 mm, hot-rolled or cold-rolled \"cold-reduced\" and electrolytically plated or coated with zinc (excl. products of silicon-electrical steel)"]
["722592000080","7225 92 00",{"$f":"Translations!$B$1097","v":"Flat-rolled products of alloy steel other than stainless, of a width of >= 600 mm, hot-rolled or cold-rolled \"cold-reduced\" and plated or coated with zinc (excl. electrolytically plated or coated and products of silicon-electrical steel)"},"72259200",{"$f":"Translations!$B$611","v":"Iron or steel products"},{"$f":"IF(E410=\" --- \",\"\",COUNTIF($E$3:E410,E410)&\"_\"&E410)","v":"290_Iron or steel products"},null,"Flat-rolled products of alloy steel other than stainless, of a width of >= 600 mm, hot-rolled or cold-rolled \"cold-reduced\" and plated or coated with zinc (excl. electrolytically plated or coated and products of silicon-electrical steel)"]
["722599000080","7225 99 00",{"$f":"Translations!$B$1098","v":"Flat-rolled products of alloy steel other than stainless, of a width of >= 600 mm, hot-rolled or cold-rolled \"cold-reduced\" and further worked (excl. plated or coated with zinc and products of silicon-electrical steel)"},"72259900",{"$f":"Translations!$B$611","v":"Iron or steel products"},{"$f":"IF(E411=\" --- \",\"\",COUNTIF($E$3:E411,E411)&\"_\"&E411)","v":"291_Iron or steel products"},null,"Flat-rolled products of alloy steel other than stainless, of a width of >= 600 mm, hot-rolled or cold-rolled \"cold-reduced\" and further worked (excl. plated or coated with zinc and products of silicon-electrical steel)"]
["722600000080","7226",{"$f":"Translations!$B$1099","v":"Flat-rolled products of alloy steel other than stainless, of a width of < 600 mm, hot-rolled or cold-rolled \"cold-reduced\""},"7226",{"$f":"Translations!$B$611","v":"Iron or steel products"},{"$f":"IF(E412=\" --- \",\"\",COUNTIF($E$3:E412,E412)&\"_\"&E412)","v":"292_Iron or steel products"},null,"Flat-rolled products of alloy steel other than stainless, of a width of < 600 mm, hot-rolled or cold-rolled \"cold-reduced\""]
["722611000080","7226 11 00",{"$f":"Translations!$B$1100","v":"Flat-rolled products of silicon-electrical steel, of a width of < 600 mm, hot-rolled or cold-rolled \"cold-reduced\", grain-oriented"},"72261100",{"$f":"Translations!$B$611","v":"Iron or steel products"},{"$f":"IF(E413=\" --- \",\"\",COUNTIF($E$3:E413,E413)&\"_\"&E413)","v":"293_Iron or steel products"},null,"Flat-rolled products of silicon-electrical steel, of a width of < 600 mm, hot-rolled or cold-rolled \"cold-reduced\", grain-oriented"]
["722619000080","7226 19",{"$f":"Translations!$B$1101","v":"Flat-rolled products of silicon-electrical steel, of a width of < 600 mm, hot-rolled or cold-rolled \"cold-reduced\", not grain-oriented"},"722619",{"$f":"Translations!$B$611","v":"Iron or steel products"},{"$f":"IF(E414=\" --- \",\"\",COUNTIF($E$3:E414,E414)&\"_\"&E414)","v":"294_Iron or steel products"},null,"Flat-rolled products of silicon-electrical steel, of a width of < 600 mm, hot-rolled or cold-rolled \"cold-reduced\", not grain-oriented"]
["722619100080","7226 19 10",{"$f":"Translations!$B$1102","v":"Flat-rolled products of silicon-electrical steel, of a width of < 600 mm, not further worked than hot-rolled"},"72261910",{"$f":"Translations!$B$611","v":"Iron or steel products"},{"$f":"IF(E415=\" --- \",\"\",COUNTIF($E$3:E415,E415)&\"_\"&E415)","v":"295_Iron or steel products"},null,"Flat-rolled products of silicon-electrical steel, of a width of < 600 mm, not further worked than hot-rolled"]
["722619800080","7226 19 80",{"$f":"Translations!$B$1103","v":"Flat-rolled products of silicon-electrical steel, of a width of < 600 mm, cold-rolled \"cold-reduced\", whether or not further worked, or hot-rolled and further worked, non-grain-oriented"},"72261980",{"$f":"Translations!$B$611","v":"Iron or steel products"},{"$f":"IF(E416=\" --- \",\"\",COUNTIF($E$3:E416,E416)&\"_\"&E416)","v":"296_Iron or steel products"},null,"Flat-rolled products of silicon-electrical steel, of a width of < 600 mm, cold-rolled \"cold-reduced\", whether or not further worked, or hot-rolled and further worked, non-grain-oriented"]
["722620000080","7226 20 00",{"$f":"Translations!$B$1104","v":"Flat-rolled products of high-speed steel, of a width of <= 600 mm, hot-rolled or cold-rolled \"cold-reduced\""},"72262000",{"$f":"Translations!$B$611","v":"Iron or steel products"},{"$f":"IF(E417=\" --- \",\"\",COUNTIF($E$3:E417,E417)&\"_\"&E417)","v":"297_Iron or steel products"},null,"Flat-rolled products of high-speed steel, of a width of <= 600 mm, hot-rolled or cold-rolled \"cold-reduced\""]
["722691000080","7226 91",{"$f":"Translations!$B$1105","v":"Flat-rolled products of alloy steel other than stainless, of a width of < 600 mm, not further worked than hot-rolled (excl. products of high-speed steel or silicon-electrical steel)"},"722691",{"$f":"Translations!$B$611","v":"Iron or steel products"},{"$f":"IF(E418=\" --- \",\"\",COUNTIF($E$3:E418,E418)&\"_\"&E418)","v":"298_Iron or steel products"},null,"Flat-rolled products of alloy steel other than stainless, of a width of < 600 mm, not further worked than hot-rolled (excl. products of high-speed steel or silicon-electrical steel)"]
["722691200080","7226 91 20",{"$f":"Translations!$B$1106","v":"Flat-rolled products of tool steel, of a width of < 600 mm, simply hot-rolled"},"72269120",{"$f":"Translations!$B$611","v":"Iron or steel products"},{"$f":"IF(E419=\" --- \",\"\",COUNTIF($E$3:E419,E419)&\"_\"&E419)","v":"299_Iron or steel products"},null,"Flat-rolled products of tool steel, of a width of < 600 mm, simply hot-rolled"]
["722691910080","7226 91 91",{"$f":"Translations!$B$1107","v":"Flat-rolled products of alloy steel other than stainless steel, simply hot-rolled, of a thickness of >= 4,75 mm, of a width of < 600 mm (excl. of tool steel, silicon-electrical steel or high speed steel)"},"72269191",{"$f":"Translations!$B$611","v":"Iron or steel products"},{"$f":"IF(E420=\" --- \",\"\",COUNTIF($E$3:E420,E420)&\"_\"&E420)","v":"300_Iron or steel products"},null,"Flat-rolled products of alloy steel other than stainless steel, simply hot-rolled, of a thickness of >= 4,75 mm, of a width of < 600 mm (excl. of tool steel, silicon-electrical steel or high speed steel)"]
["722691990080","7226 91 99",{"$f":"Translations!$B$1108","v":"Flat-rolled products of alloy steel other than stainless steel, simply hot-rolled, of a thickness of < 4,75 mm, of a width of < 600 mm (excl. of tool steel, silicon-electrical steel or high speed steel)"},"72269199",{"$f":"Translations!$B$611","v":"Iron or steel products"},{"$f":"IF(E421=\" --- \",\"\",COUNTIF($E$3:E421,E421)&\"_\"&E421)","v":"301_Iron or steel products"},null,"Flat-rolled products of alloy steel other than stainless steel, simply hot-rolled, of a thickness of < 4,75 mm, of a width of < 600 mm (excl. of tool steel, silicon-electrical steel or high speed steel)"]
["722692000080","7226 92 00",{"$f":"Translations!$B$1109","v":"Flat-rolled products of alloy steel other than stainless, of a width of < 600 mm, not further worked than cold-rolled \"cold-reduced\" (excl. products of high-speed steel or silicon-electrical steel)"},"72269200",{"$f":"Translations!$B$611","v":"Iron or steel products"},{"$f":"IF(E422=\" --- \",\"\",COUNTIF($E$3:E422,E422)&\"_\"&E422)","v":"302_Iron or steel products"},null,"Flat-rolled products of alloy steel other than stainless, of a width of < 600 mm, not further worked than cold-rolled \"cold-reduced\" (excl. products of high-speed steel or silicon-electrical steel)"]
["722699000080","7226 99",{"$f":"Translations!$B$1110","v":"Flat-rolled products of alloy steel other than stainless, of a width of < 600 mm, hot-rolled or cold-rolled \"cold-reduced\" and further worked (excl. products of high-speed steel or silicon-electrical steel)"},"722699",{"$f":"Translations!$B$611","v":"Iron or steel products"},{"$f":"IF(E423=\" --- \",\"\",COUNTIF($E$3:E423,E423)&\"_\"&E423)","v":"303_Iron or steel products"},null,"Flat-rolled products of alloy steel other than stainless, of a width of < 600 mm, hot-rolled or cold-rolled \"cold-reduced\" and further worked (excl. products of high-speed steel or silicon-electrical steel)"]
["722699100080","7226 99 10",{"$f":"Translations!$B$1111","v":"Flat-rolled products of alloy steel other than stainless, of a width of < 600 mm, hot-rolled or cold-rolled \"cold-reduced\" and electrolytically plated or coated with zinc (excl. products of high-speed steel or silicon-electrical steel)"},"72269910",{"$f":"Translations!$B$611","v":"Iron or steel products"},{"$f":"IF(E424=\" --- \",\"\",COUNTIF($E$3:E424,E424)&\"_\"&E424)","v":"304_Iron or steel products"},null,"Flat-rolled products of alloy steel other than stainless, of a width of < 600 mm, hot-rolled or cold-rolled \"cold-reduced\" and electrolytically plated or coated with zinc (excl. products of high-speed steel or silicon-electrical steel)"]
["722699300080","7226 99 30",{"$f":"Translations!$B$1112","v":"Flat-rolled products of alloy steel other than stainless, of a width of < 600 mm, hot-rolled or cold-rolled \"cold-reduced\" and plated or coated with zinc (excl. electrolytically plated or coated, and products of high-speed steel or silicon-electrical steel)"},"72269930",{"$f":"Translations!$B$611","v":"Iron or steel products"},{"$f":"IF(E425=\" --- \",\"\",COUNTIF($E$3:E425,E425)&\"_\"&E425)","v":"305_Iron or steel products"},null,"Flat-rolled products of alloy steel other than stainless, of a width of < 600 mm, hot-rolled or cold-rolled \"cold-reduced\" and plated or coated with zinc (excl. electrolytically plated or coated, and products of high-speed steel or silicon-electrical steel)"]
["722699700080","7226 99 70",{"$f":"Translations!$B$1113","v":"Flat-rolled products of alloy steel other than stainless, of a width of < 600 mm, hot-rolled or cold-rolled \"cold-reduced\" and further worked (excl. plated or coated with zinc, and products of high-speed steel or silicon-electrical steel)"},"72269970",{"$f":"Translations!$B$611","v":"Iron or steel products"},{"$f":"IF(E426=\" --- \",\"\",COUNTIF($E$3:E426,E426)&\"_\"&E426)","v":"306_Iron or steel products"},null,"Flat-rolled products of alloy steel other than stainless, of a width of < 600 mm, hot-rolled or cold-rolled \"cold-reduced\" and further worked (excl. plated or coated with zinc, and products of high-speed steel or silicon-electrical steel)"]
["722700000080","7227",{"$f":"Translations!$B$1114","v":"Bars and rods of alloy steel other than stainless, hot-rolled, in irregularly wound coils"},"7227",{"$f":"Translations!$B$611","v":"Iron or steel products"},{"$f":"IF(E427=\" --- \",\"\",COUNTIF($E$3:E427,E427)&\"_\"&E427)","v":"307_Iron or steel products"},null,"Bars and rods of alloy steel other than stainless, hot-rolled, in irregularly wound coils"]
["722710000080","7227 10 00",{"$f":"Translations!$B$1115","v":"Bars and rods of high-speed steel, hot-rolled, in irregularly wound coils"},"72271000",{"$f":"Translations!$B$611","v":"Iron or steel products"},{"$f":"IF(E428=\" --- \",\"\",COUNTIF($E$3:E428,E428)&\"_\"&E428)","v":"308_Iron or steel products"},null,"Bars and rods of high-speed steel, hot-rolled, in irregularly wound coils"]
["722720000080","7227 20 00",{"$f":"Translations!$B$1116","v":"Bars and rods of silico-manganese steel, hot-rolled, in irregularly wound coils"},"72272000",{"$f":"Translations!$B$611","v":"Iron or steel products"},{"$f":"IF(E429=\" --- \",\"\",COUNTIF($E$3:E429,E429)&\"_\"&E429)","v":"309_Iron or steel products"},null,"Bars and rods of silico-manganese steel, hot-rolled, in irregularly wound coils"]
["722790000080","7227 90",{"$f":"Translations!$B$1117","v":"Bars and rods of alloy steel other than stainless, hot-rolled, in irregularly wound coils (excl. products of high-speed steel or silicon-electrical steel)"},"722790",{"$f":"Translations!$B$611","v":"Iron or steel products"},{"$f":"IF(E430=\" --- \",\"\",COUNTIF($E$3:E430,E430)&\"_\"&E430)","v":"310_Iron or steel products"},null,"Bars and rods of alloy steel other than stainless, hot-rolled, in irregularly wound coils (excl. products of high-speed steel or silicon-electrical steel)"]
["722790100080","7227 90 10",{"$f":"Translations!$B$1118","v":"Bars and rods, hot-rolled, of steel containing by weight >= 0,0008% of boron with any other element < the minimum content referred to in Note 1 f to this chapter, in irregularly wound coils"},"72279010",{"$f":"Translations!$B$611","v":"Iron or steel products"},{"$f":"IF(E431=\" --- \",\"\",COUNTIF($E$3:E431,E431)&\"_\"&E431)","v":"311_Iron or steel products"},null,"Bars and rods, hot-rolled, of steel containing by weight >= 0,0008% of boron with any other element < the minimum content referred to in Note 1 f to this chapter, in irregularly wound coils"]
["722790500080","7227 90 50",{"$f":"Translations!$B$1119","v":"Bars and rods, hot-rolled, of steel containing by weight 0,9% to 1,15% carbon, 0,5% to 2% of chromium and, if present, <= 0,5 of molybdenum, in irregularly wound coils"},"72279050",{"$f":"Translations!$B$611","v":"Iron or steel products"},{"$f":"IF(E432=\" --- \",\"\",COUNTIF($E$3:E432,E432)&\"_\"&E432)","v":"312_Iron or steel products"},null,"Bars and rods, hot-rolled, of steel containing by weight 0,9% to 1,15% carbon, 0,5% to 2% of chromium and, if present, <= 0,5 of molybdenum, in irregularly wound coils"]
["722790950080","7227 90 95",{"$f":"Translations!$B$1120","v":"Bars and rods, hot-rolled, in irregularly wound coils of alloy steel other than stainless (excl. of high-speed steel or silico-manganese steel and bars and rods of subheadings 7227.90.10 and 7227.90.50)"},"72279095",{"$f":"Translations!$B$611","v":"Iron or steel products"},{"$f":"IF(E433=\" --- \",\"\",COUNTIF($E$3:E433,E433)&\"_\"&E433)","v":"313_Iron or steel products"},null,"Bars and rods, hot-rolled, in irregularly wound coils of alloy steel other than stainless (excl. of high-speed steel or silico-manganese steel and bars and rods of subheadings 7227.90.10 and 7227.90.50)"]
["722800000080","7228",{"$f":"Translations!$B$1121","v":"Other bars and rods of alloy steel other than stainless, angles, shapes and sections of alloy steel other than stainless, n.e.s.; hollow drill bars and rods, of alloy or non-alloy steel"},"7228",{"$f":"Translations!$B$611","v":"Iron or steel products"},{"$f":"IF(E434=\" --- \",\"\",COUNTIF($E$3:E434,E434)&\"_\"&E434)","v":"314_Iron or steel products"},null,"Other bars and rods of alloy steel other than stainless, angles, shapes and sections of alloy steel other than stainless, n.e.s.; hollow drill bars and rods, of alloy or non-alloy steel"]
["722810000080","7228 10",{"$f":"Translations!$B$1122","v":"Bars and rods of high-speed steel (excl. semi-finished products, flat-rolled products and hot-rolled bars and rods in irregularly wound coils)"},"722810",{"$f":"Translations!$B$611","v":"Iron or steel products"},{"$f":"IF(E435=\" --- \",\"\",COUNTIF($E$3:E435,E435)&\"_\"&E435)","v":"315_Iron or steel products"},null,"Bars and rods of high-speed steel (excl. semi-finished products, flat-rolled products and hot-rolled bars and rods in irregularly wound coils)"]
["722810200080","7228 10 20",{"$f":"Translations!$B$1123","v":"Bars and rods of high-speed steel, not further worked than hot-rolled, hot-drawn or extruded, and hot-rolled, hot-drawn or extruded, not further worked than clad (excl. semi-finished products, flat-rolled products and hot-rolled bars and rods in irregularly wound coils)"},"72281020",{"$f":"Translations!$B$611","v":"Iron or steel products"},{"$f":"IF(E436=\" --- \",\"\",COUNTIF($E$3:E436,E436)&\"_\"&E436)","v":"316_Iron or steel products"},null,"Bars and rods of high-speed steel, not further worked than hot-rolled, hot-drawn or extruded, and hot-rolled, hot-drawn or extruded, not further worked than clad (excl. semi-finished products, flat-rolled products and hot-rolled bars and rods in irregularly wound coils)"]
["722810500080","7228 10 50",{"$f":"Translations!$B$1124","v":"Bars and rods of high-speed steel, forged (excl. semi-finished products, flat-rolled products and hot-rolled bars and rods in irregularly wound coils)"},"72281050",{"$f":"Translations!$B$611","v":"Iron or steel products"},{"$f":"IF(E437=\" --- \",\"\",COUNTIF($E$3:E437,E437)&\"_\"&E437)","v":"317_Iron or steel products"},null,"Bars and rods of high-speed steel, forged (excl. semi-finished products, flat-rolled products and hot-rolled bars and rods in irregularly wound coils)"]
["722810900080","7228 10 90",{"$f":"Translations!$B$1125","v":"Bars and rods of high-speed steel, not further worked than cold-formed or cold-finished, whether or not further worked, or hot-formed and further worked (excl. forged products, semi-finished products, flat-rolled products and hot-rolled bars and rods in irregularly wound coils)"},"72281090",{"$f":"Translations!$B$611","v":"Iron or steel products"},{"$f":"IF(E438=\" --- \",\"\",COUNTIF($E$3:E438,E438)&\"_\"&E438)","v":"318_Iron or steel products"},null,"Bars and rods of high-speed steel, not further worked than cold-formed or cold-finished, whether or not further worked, or hot-formed and further worked (excl. forged products, semi-finished products, flat-rolled products and hot-rolled bars and rods in irregularly wound coils)"]
["722820000080","7228 20",{"$f":"Translations!$B$1126","v":"Bars and rods of silico-manganese steel (excl. semi-finished products, flat-rolled products and hot-rolled bars and rods in irregularly wound coils)"},"722820",{"$f":"Translations!$B$611","v":"Iron or steel products"},{"$f":"IF(E439=\" --- \",\"\",COUNTIF($E$3:E439,E439)&\"_\"&E439)","v":"319_Iron or steel products"},null,"Bars and rods of silico-manganese steel (excl. semi-finished products, flat-rolled products and hot-rolled bars and rods in irregularly wound coils)"]
["722820100080","7228 20 10",{"$f":"Translations!$B$1127","v":"Bars and rods of silico-manganese steel, of rectangular \"other than square\" cross-section, hot-rolled on four faces (excl. semi-finished products, flat-rolled products and hot-rolled bars and rods in irregularly wound coils)"},"72282010",{"$f":"Translations!$B$611","v":"Iron or steel products"},{"$f":"IF(E440=\" --- \",\"\",COUNTIF($E$3:E440,E440)&\"_\"&E440)","v":"320_Iron or steel products"},null,"Bars and rods of silico-manganese steel, of rectangular \"other than square\" cross-section, hot-rolled on four faces (excl. semi-finished products, flat-rolled products and hot-rolled bars and rods in irregularly wound coils)"]
["722820910080","7228 20 91",{"$f":"Translations!$B$1128","v":"Bars and rods of silico-manganese steel, of square or other than rectangular cross-section, not further worked than hot-rolled, hot-drawn or extruded, and hot-rolled, hot-drawn or extruded, not further worked than clad (excl. semi-finished products, flat-rolled products and hot-rolled bars and rods in irregularly wound coils)"},"72282091",{"$f":"Translations!$B$611","v":"Iron or steel products"},{"$f":"IF(E441=\" --- \",\"\",COUNTIF($E$3:E441,E441)&\"_\"&E441)","v":"321_Iron or steel products"},null,"Bars and rods of silico-manganese steel, of square or other than rectangular cross-section, not further worked than hot-rolled, hot-drawn or extruded, and hot-rolled, hot-drawn or extruded, not further worked than clad (excl. semi-finished products, flat-rolled products and hot-rolled bars and rods in irregularly wound coils)"]
["722820990080","7228 20 99",{"$f":"Translations!$B$1129","v":"Bars and rods of silico-manganese stee, of square or other than rectangular cross-section, only cold-formed or cold-finished, incl. further worked, or hot-rolled and further worked (excl. hot-rolled, hot drawn or extruded, not further worked than clad, semi-finished products, flat-rolled products and hot-rolled bars and rods in irregularly wound coils)"},"72282099",{"$f":"Translations!$B$611","v":"Iron or steel products"},{"$f":"IF(E442=\" --- \",\"\",COUNTIF($E$3:E442,E442)&\"_\"&E442)","v":"322_Iron or steel products"},null,"Bars and rods of silico-manganese stee, of square or other than rectangular cross-section, only cold-formed or cold-finished, incl. further worked, or hot-rolled and further worked (excl. hot-rolled, hot drawn or extruded, not further worked than clad, semi-finished products, flat-rolled products and hot-rolled bars and rods in irregularly wound coils)"]
["722830000080","7228 30",{"$f":"Translations!$B$1130","v":"Bars and rods of alloy steel other than stainless, not further worked than hot-rolled, hot-drawn or extruded (excl. products of high-speed steel or silico-manganese steel, semi-finished products, flat-rolled products and hot-rolled bars and rods in irregularly wound coils)"},"722830",{"$f":"Translations!$B$611","v":"Iron or steel products"},{"$f":"IF(E443=\" --- \",\"\",COUNTIF($E$3:E443,E443)&\"_\"&E443)","v":"323_Iron or steel products"},null,"Bars and rods of alloy steel other than stainless, not further worked than hot-rolled, hot-drawn or extruded (excl. products of high-speed steel or silico-manganese steel, semi-finished products, flat-rolled products and hot-rolled bars and rods in irregularly wound coils)"]
["722830200080","7228 30 20",{"$f":"Translations!$B$1131","v":"Bars and rods of tool steel, only hot-rolled, only hot-drawn or only extruded (excl. semi-finished products, flat-rolled products and hot-rolled bars and rods in irregularly wound coils)"},"72283020",{"$f":"Translations!$B$611","v":"Iron or steel products"},{"$f":"IF(E444=\" --- \",\"\",COUNTIF($E$3:E444,E444)&\"_\"&E444)","v":"324_Iron or steel products"},null,"Bars and rods of tool steel, only hot-rolled, only hot-drawn or only extruded (excl. semi-finished products, flat-rolled products and hot-rolled bars and rods in irregularly wound coils)"]
["722830410080","7228 30 41",{"$f":"Translations!$B$1132","v":"Bars and rods of steel containing by weight 0,9 to 1,15% of carbon and 0,5 to 2% of chromium, and, if present, <= 0,5% of molybdenum, only hot-rolled, hot-drawn or hot-extruded, of a circular cross-section of a diameter of >= 80 mm (excl. semi-finished products, flat-rolled products and hot-rolled bars and rods in irregularly wound coils)"},"72283041",{"$f":"Translations!$B$611","v":"Iron or steel products"},{"$f":"IF(E445=\" --- \",\"\",COUNTIF($E$3:E445,E445)&\"_\"&E445)","v":"325_Iron or steel products"},null,"Bars and rods of steel containing by weight 0,9 to 1,15% of carbon and 0,5 to 2% of chromium, and, if present, <= 0,5% of molybdenum, only hot-rolled, hot-drawn or hot-extruded, of a circular cross-section of a diameter of >= 80 mm (excl. semi-finished products, flat-rolled products and hot-rolled bars and rods in irregularly wound coils)"]
["722830490080","7228 30 49",{"$f":"Translations!$B$1133","v":"Bars and rods of steel containing by weight 0,9 to 1,15% of carbon and 0,5 to 2% of chromium, and, if present, <= 0,5% of molybdenum, only hot-rolled, only hot-drawn or hot-extruded (other than of circular cross-section, of a diameter of >= 80 mm and excl. semi-finished products, flat-rolled products and hot-rolled bars and rods in irregularly wound coils)"},"72283049",{"$f":"Translations!$B$611","v":"Iron or steel products"},{"$f":"IF(E446=\" --- \",\"\",COUNTIF($E$3:E446,E446)&\"_\"&E446)","v":"326_Iron or steel products"},null,"Bars and rods of steel containing by weight 0,9 to 1,15% of carbon and 0,5 to 2% of chromium, and, if present, <= 0,5% of molybdenum, only hot-rolled, only hot-drawn or hot-extruded (other than of circular cross-section, of a diameter of >= 80 mm and excl. semi-finished products, flat-rolled products and hot-rolled bars and rods in irregularly wound coils)"]
["722830610080","7228 30 61",{"$f":"Translations!$B$1134","v":"Bars and rods of alloy steel other than stainless steel, only hot-rolled, hot-drawn or hot-extruded, of circular cross-section, of a diameter of >= 80 mm (other than of high-speed steel, silico-manganese steel, tool steel, articles of subheading 7228.30.41 and excl. semi-finished products, flat-rolled products and hot-rolled bars and rods in irregularly wound coils)"},"72283061",{"$f":"Translations!$B$611","v":"Iron or steel products"},{"$f":"IF(E447=\" --- \",\"\",COUNTIF($E$3:E447,E447)&\"_\"&E447)","v":"327_Iron or steel products"},null,"Bars and rods of alloy steel other than stainless steel, only hot-rolled, hot-drawn or hot-extruded, of circular cross-section, of a diameter of >= 80 mm (other than of high-speed steel, silico-manganese steel, tool steel, articles of subheading 7228.30.41 and excl. semi-finished products, flat-rolled products and hot-rolled bars and rods in irregularly wound coils)"]
["722830690080","7228 30 69",{"$f":"Translations!$B$1135","v":"Bars and rods or alloy steel other than stainless steel, only hot-rolled, hot-drawn or hot-extruded, of circular cross-section, of a diameter of < 80 mm (other than of high-speed steel, silico-manganese steel, tool steel and articles of subheading 7228.30.49 and excl. semi-finished products, flat-rolled products and hot-rolled bars and rods in irregularly wound coils)"},"72283069",{"$f":"Translations!$B$611","v":"Iron or steel products"},{"$f":"IF(E448=\" --- \",\"\",COUNTIF($E$3:E448,E448)&\"_\"&E448)","v":"328_Iron or steel products"},null,"Bars and rods or alloy steel other than stainless steel, only hot-rolled, hot-drawn or hot-extruded, of circular cross-section, of a diameter of < 80 mm (other than of high-speed steel, silico-manganese steel, tool steel and articles of subheading 7228.30.49 and excl. semi-finished products, flat-rolled products and hot-rolled bars and rods in irregularly wound coils)"]
["722830700080","7228 30 70",{"$f":"Translations!$B$1136","v":"Bars and rods of alloy steel other than stainless steel, of rectangular \"other than square\" cross-section, hot-rolled on four faces (other than of high-speed steel, silico-manganese steel, tool steel, articles of subheading 7228.30.41 and 7228.30.49 and excl. semi-finished products, flat-rolled products and hot-rolled bars and rods in irregularly wound coils)"},"72283070",{"$f":"Translations!$B$611","v":"Iron or steel products"},{"$f":"IF(E449=\" --- \",\"\",COUNTIF($E$3:E449,E449)&\"_\"&E449)","v":"329_Iron or steel products"},null,"Bars and rods of alloy steel other than stainless steel, of rectangular \"other than square\" cross-section, hot-rolled on four faces (other than of high-speed steel, silico-manganese steel, tool steel, articles of subheading 7228.30.41 and 7228.30.49 and excl. semi-finished products, flat-rolled products and hot-rolled bars and rods in irregularly wound coils)"]
["722830890080","7228 30 89",{"$f":"Translations!$B$1137","v":"Bars and rods of alloy steel other than stainless steel, only hot-rolled, hot-drawn or hot-extruded, of other than rectangular [other than square] cross-section, rolled on four faces, or of circular cross-section (other than of high-speed steel, silico-manganese steel, tool steel, articles of subheading 7228.30.49 and excl. semi-finished products, flat-rolled products and hot-rolled bars and rods in irregularly wound coils)"},"72283089",{"$f":"Translations!$B$611","v":"Iron or steel products"},{"$f":"IF(E450=\" --- \",\"\",COUNTIF($E$3:E450,E450)&\"_\"&E450)","v":"330_Iron or steel products"},null,"Bars and rods of alloy steel other than stainless steel, only hot-rolled, hot-drawn or hot-extruded, of other than rectangular [other than square] cross-section, rolled on four faces, or of circular cross-section (other than of high-speed steel, silico-manganese steel, tool steel, articles of subheading 7228.30.49 and excl. semi-finished products, flat-rolled products and hot-rolled bars and rods in irregularly wound coils)"]
["722840000080","7228 40",{"$f":"Translations!$B$1138","v":"Bars and rods of alloy steel other than stainless, not further worked than forged (excl. products of high-speed steel or silico-manganese steel, semi-finished products, flat-rolled products and hot-rolled bars and rods in irregularly wound coils)"},"722840",{"$f":"Translations!$B$611","v":"Iron or steel products"},{"$f":"IF(E451=\" --- \",\"\",COUNTIF($E$3:E451,E451)&\"_\"&E451)","v":"331_Iron or steel products"},null,"Bars and rods of alloy steel other than stainless, not further worked than forged (excl. products of high-speed steel or silico-manganese steel, semi-finished products, flat-rolled products and hot-rolled bars and rods in irregularly wound coils)"]
["722840100080","7228 40 10",{"$f":"Translations!$B$1139","v":"Bars and rods of tool steel, only forged (excl. semi-finished products, flat-rolled products and hot-rolled bars and rods in irregularly wound coils)"},"72284010",{"$f":"Translations!$B$611","v":"Iron or steel products"},{"$f":"IF(E452=\" --- \",\"\",COUNTIF($E$3:E452,E452)&\"_\"&E452)","v":"332_Iron or steel products"},null,"Bars and rods of tool steel, only forged (excl. semi-finished products, flat-rolled products and hot-rolled bars and rods in irregularly wound coils)"]
["722840900080","7228 40 90",{"$f":"Translations!$B$1140","v":"Bars and rods of alloy steel, other than stainless steel, only forged (excl. of high-speed steel, silico-manganese steel, tool steel, semi-finished products, flat-rolled products and hot-rolled bars and rods in irregularly wound coils)"},"72284090",{"$f":"Translations!$B$611","v":"Iron or steel products"},{"$f":"IF(E453=\" --- \",\"\",COUNTIF($E$3:E453,E453)&\"_\"&E453)","v":"333_Iron or steel products"},null,"Bars and rods of alloy steel, other than stainless steel, only forged (excl. of high-speed steel, silico-manganese steel, tool steel, semi-finished products, flat-rolled products and hot-rolled bars and rods in irregularly wound coils)"]
["722850000080","7228 50",{"$f":"Translations!$B$1141","v":"Bars and rods of alloy steel other than stainless, not further worked than cold-formed or cold-finished (excl. products of high-speed steel or silico-manganese steel, semi-finished products, flat-rolled products and hot-rolled bars and rods in irregularly wound coils)"},"722850",{"$f":"Translations!$B$611","v":"Iron or steel products"},{"$f":"IF(E454=\" --- \",\"\",COUNTIF($E$3:E454,E454)&\"_\"&E454)","v":"334_Iron or steel products"},null,"Bars and rods of alloy steel other than stainless, not further worked than cold-formed or cold-finished (excl. products of high-speed steel or silico-manganese steel, semi-finished products, flat-rolled products and hot-rolled bars and rods in irregularly wound coils)"]
["722850200080","7228 50 20",{"$f":"Translations!$B$1142","v":"Bars and rods of tool steel, only cold-formed or cold-finished (excl. semi-finished products, flat-rolled products and hot-rolled bars and rods in irregularly wound coils)"},"72285020",{"$f":"Translations!$B$611","v":"Iron or steel products"},{"$f":"IF(E455=\" --- \",\"\",COUNTIF($E$3:E455,E455)&\"_\"&E455)","v":"335_Iron or steel products"},null,"Bars and rods of tool steel, only cold-formed or cold-finished (excl. semi-finished products, flat-rolled products and hot-rolled bars and rods in irregularly wound coils)"]
["722850400080","7228 50 40",{"$f":"Translations!$B$1143","v":"Bars and rods of steel containing 0,9% to 1,15% of carbon, 0,5% to 2% of chromium and, if present <= 0,5% of molybdenum, only cold-formed or cold-finished (excl. semi-finished products, flat-rolled products and hot-rolled bars and rods in irregularly wound coils)"},"72285040",{"$f":"Translations!$B$611","v":"Iron or steel products"},{"$f":"IF(E456=\" --- \",\"\",COUNTIF($E$3:E456,E456)&\"_\"&E456)","v":"336_Iron or steel products"},null,"Bars and rods of steel containing 0,9% to 1,15% of carbon, 0,5% to 2% of chromium and, if present <= 0,5% of molybdenum, only cold-formed or cold-finished (excl. semi-finished products, flat-rolled products and hot-rolled bars and rods in irregularly wound coils)"]
["722850610080","7228 50 61",{"$f":"Translations!$B$1144","v":"Bars and rods of alloy steel, other than stainless steel, not further worked than cold-formed or cold-finished, of circular cross-section, of a diameter of >= 80 mm (excl. of high-speed steel, silico-manganese steel, tool steel, articles of subheading 7228.50.40, semi-finished products, flat-rolled products and hot-rolled bars and rods in irregularly wound coils)"},"72285061",{"$f":"Translations!$B$611","v":"Iron or steel products"},{"$f":"IF(E457=\" --- \",\"\",COUNTIF($E$3:E457,E457)&\"_\"&E457)","v":"337_Iron or steel products"},null,"Bars and rods of alloy steel, other than stainless steel, not further worked than cold-formed or cold-finished, of circular cross-section, of a diameter of >= 80 mm (excl. of high-speed steel, silico-manganese steel, tool steel, articles of subheading 7228.50.40, semi-finished products, flat-rolled products and hot-rolled bars and rods in irregularly wound coils)"]
["722850690080","7228 50 69",{"$f":"Translations!$B$1145","v":"Bars and rods of alloy steel, other than stainless steel, not further worked than cold-formed or cold-finished, of circular cross-section, of a diameter of < 80 mm (excl. of high-speed steel, silico-manganese steel, tool steel, articles of subheading 7228.50.40, semi-finished products, flat-rolled products and hot-rolled bars and rods in irregularly wound coils)"},"72285069",{"$f":"Translations!$B$611","v":"Iron or steel products"},{"$f":"IF(E458=\" --- \",\"\",COUNTIF($E$3:E458,E458)&\"_\"&E458)","v":"338_Iron or steel products"},null,"Bars and rods of alloy steel, other than stainless steel, not further worked than cold-formed or cold-finished, of circular cross-section, of a diameter of < 80 mm (excl. of high-speed steel, silico-manganese steel, tool steel, articles of subheading 7228.50.40, semi-finished products, flat-rolled products and hot-rolled bars and rods in irregularly wound coils)"]
["722850800080","7228 50 80",{"$f":"Translations!$B$1146","v":"Bars and rods of alloy steel, other than stainless steel, not further worked than cold-formed or cold-finished (excl. of circular cross-section and products of high-speed steel, silico-manganese steel, tool steel, articles of subheading 7228.50.40, semi-finished products, flat-rolled products and hot-rolled bars and rods in irregularly wound coils)"},"72285080",{"$f":"Translations!$B$611","v":"Iron or steel products"},{"$f":"IF(E459=\" --- \",\"\",COUNTIF($E$3:E459,E459)&\"_\"&E459)","v":"339_Iron or steel products"},null,"Bars and rods of alloy steel, other than stainless steel, not further worked than cold-formed or cold-finished (excl. of circular cross-section and products of high-speed steel, silico-manganese steel, tool steel, articles of subheading 7228.50.40, semi-finished products, flat-rolled products and hot-rolled bars and rods in irregularly wound coils)"]
["722860000080","7228 60",{"$f":"Translations!$B$1147","v":"Bars and rods of alloy steel other than stainless, cold-formed or cold-finished and further worked or hot-formed and further worked, n.e.s. (excl. products of high-speed steel or silico-manganese steel, semi-finished products, flat-rolled products and hot-rolled bars and rods in irregularly wound coils)"},{"$f":"SUBSTITUTE(B460,\" \",\"\")","v":"722860"},{"$f":"Translations!$B$611","v":"Iron or steel products"},{"$f":"IF(E460=\" --- \",\"\",COUNTIF($E$3:E460,E460)&\"_\"&E460)","v":"340_Iron or steel products"},null,"Bars and rods of alloy steel other than stainless, cold-formed or cold-finished and further worked or hot-formed and further worked, n.e.s. (excl. products of high-speed steel or silico-manganese steel, semi-finished products, flat-rolled products and hot-rolled bars and rods in irregularly wound coils)"]
["722860200080","7228 60 20",{"$f":"Translations!$B$1148","v":"Bars and rods of tool steel, cold-formed or cold-finished and further worked or hot-formed and further worked (excl. semi-finished products, flat-rolled products and hot-rolled bars and rods in irregularly wound coils)"},"72286020",{"$f":"Translations!$B$611","v":"Iron or steel products"},{"$f":"IF(E461=\" --- \",\"\",COUNTIF($E$3:E461,E461)&\"_\"&E461)","v":"341_Iron or steel products"},null,"Bars and rods of tool steel, cold-formed or cold-finished and further worked or hot-formed and further worked (excl. semi-finished products, flat-rolled products and hot-rolled bars and rods in irregularly wound coils)"]
["722860800080","7228 60 80",{"$f":"Translations!$B$1149","v":"Bars and rods of alloy steel, other than stainless steel, cold-formed or cold-finished and further worked or hot-formed and further worked (excl. bars and rods of high-speed steel, silico-manganese steel or tool steel, semi-finished products, flat-rolled products and hot-rolled bars and rods in irregularly wound coils)"},"72286080",{"$f":"Translations!$B$611","v":"Iron or steel products"},{"$f":"IF(E462=\" --- \",\"\",COUNTIF($E$3:E462,E462)&\"_\"&E462)","v":"342_Iron or steel products"},null,"Bars and rods of alloy steel, other than stainless steel, cold-formed or cold-finished and further worked or hot-formed and further worked (excl. bars and rods of high-speed steel, silico-manganese steel or tool steel, semi-finished products, flat-rolled products and hot-rolled bars and rods in irregularly wound coils)"]
["722870000080","7228 70",{"$f":"Translations!$B$1150","v":"Angles, shapes and sections of alloy steel other than stainless, n.e.s."},"722870",{"$f":"Translations!$B$611","v":"Iron or steel products"},{"$f":"IF(E463=\" --- \",\"\",COUNTIF($E$3:E463,E463)&\"_\"&E463)","v":"343_Iron or steel products"},null,"Angles, shapes and sections of alloy steel other than stainless, n.e.s."]
["722870100080","7228 70 10",{"$f":"Translations!$B$1151","v":"Angles, shapes and sections of alloy steel other than stainless, not further worked than hot-rolled, hot-drawn or extruded"},"72287010",{"$f":"Translations!$B$611","v":"Iron or steel products"},{"$f":"IF(E464=\" --- \",\"\",COUNTIF($E$3:E464,E464)&\"_\"&E464)","v":"344_Iron or steel products"},null,"Angles, shapes and sections of alloy steel other than stainless, not further worked than hot-rolled, hot-drawn or extruded"]
["722870900080","7228 70 90",{"$f":"Translations!$B$1152","v":"Angles, shapes and sections of alloy steel other than stainless, n.e.s. (excl. products not further worked than hot-rolled, hot-drawn or extruded)"},"72287090",{"$f":"Translations!$B$611","v":"Iron or steel products"},{"$f":"IF(E465=\" --- \",\"\",COUNTIF($E$3:E465,E465)&\"_\"&E465)","v":"345_Iron or steel products"},null,"Angles, shapes and sections of alloy steel other than stainless, n.e.s. (excl. products not further worked than hot-rolled, hot-drawn or extruded)"]
["722880000080","7228 80 00",{"$f":"Translations!$B$1153","v":"Hollow drill bars and rods, of alloy or non-alloy steel"},"72288000",{"$f":"Translations!$B$611","v":"Iron or steel products"},{"$f":"IF(E466=\" --- \",\"\",COUNTIF($E$3:E466,E466)&\"_\"&E466)","v":"346_Iron or steel products"},null,"Hollow drill bars and rods, of alloy or non-alloy steel"]
["722900000080","7229",{"$f":"Translations!$B$1154","v":"Wire of alloy steel other than stainless, in coils (excl. bars and rods)"},"7229",{"$f":"Translations!$B$611","v":"Iron or steel products"},{"$f":"IF(E467=\" --- \",\"\",COUNTIF($E$3:E467,E467)&\"_\"&E467)","v":"347_Iron or steel products"},null,"Wire of alloy steel other than stainless, in coils (excl. bars and rods)"]
["722920000080","7229 20 00",{"$f":"Translations!$B$1155","v":"Wire of silico-manganese steel, in coils (excl. bars and rods)"},"72292000",{"$f":"Translations!$B$611","v":"Iron or steel products"},{"$f":"IF(E468=\" --- \",\"\",COUNTIF($E$3:E468,E468)&\"_\"&E468)","v":"348_Iron or steel products"},null,"Wire of silico-manganese steel, in coils (excl. bars and rods)"]
["722990000080","7229 90",{"$f":"Translations!$B$1156","v":"Wire of alloy steel other than stainless, in coils (excl. bars and rods and wire of silico-manganese steel)"},"722990",{"$f":"Translations!$B$611","v":"Iron or steel products"},{"$f":"IF(E469=\" --- \",\"\",COUNTIF($E$3:E469,E469)&\"_\"&E469)","v":"349_Iron or steel products"},null,"Wire of alloy steel other than stainless, in coils (excl. bars and rods and wire of silico-manganese steel)"]
["722990200080","7229 90 20",{"$f":"Translations!$B$1157","v":"Wire of high-speed steel, in coils (excl. bars and rods)"},"72299020",{"$f":"Translations!$B$611","v":"Iron or steel products"},{"$f":"IF(E470=\" --- \",\"\",COUNTIF($E$3:E470,E470)&\"_\"&E470)","v":"350_Iron or steel products"},null,"Wire of high-speed steel, in coils (excl. bars and rods)"]
["722990500080","7229 90 50",{"$f":"Translations!$B$1158","v":"Wire of steel containing by weight 0,9% to 1,1% of carbon, 0,5% to 2% of chromium and, if present, <= 0,5% of molybdenum, in coils (excl. rolled bars and rods)"},"72299050",{"$f":"Translations!$B$611","v":"Iron or steel products"},{"$f":"IF(E471=\" --- \",\"\",COUNTIF($E$3:E471,E471)&\"_\"&E471)","v":"351_Iron or steel products"},null,"Wire of steel containing by weight 0,9% to 1,1% of carbon, 0,5% to 2% of chromium and, if present, <= 0,5% of molybdenum, in coils (excl. rolled bars and rods)"]
["722990900080","7229 90 90",{"$f":"Translations!$B$1159","v":"Wire of alloy steel other than stainless, in coils (excl. rolled bars and rods, wire of high-speed steel or silico-manganese steel and articles of subheading 7229.90.50)"},"72299090",{"$f":"Translations!$B$611","v":"Iron or steel products"},{"$f":"IF(E472=\" --- \",\"\",COUNTIF($E$3:E472,E472)&\"_\"&E472)","v":"352_Iron or steel products"},null,"Wire of alloy steel other than stainless, in coils (excl. rolled bars and rods, wire of high-speed steel or silico-manganese steel and articles of subheading 7229.90.50)"]
["730100000080","7301",{"$f":"Translations!$B$1160","v":"Sheet piling of iron or steel, whether or not drilled, punched or made from assembled elements; welded angles, shapes and sections, of iron or steel"},"7301",{"$f":"Translations!$B$611","v":"Iron or steel products"},{"$f":"IF(E473=\" --- \",\"\",COUNTIF($E$3:E473,E473)&\"_\"&E473)","v":"353_Iron or steel products"},null,"Sheet piling of iron or steel, whether or not drilled, punched or made from assembled elements; welded angles, shapes and sections, of iron or steel"]
["730110000080","7301 10 00",{"$f":"Translations!$B$1161","v":"Sheet piling of iron or steel, whether or not drilled, punched or made from assembled elements"},"73011000",{"$f":"Translations!$B$611","v":"Iron or steel products"},{"$f":"IF(E474=\" --- \",\"\",COUNTIF($E$3:E474,E474)&\"_\"&E474)","v":"354_Iron or steel products"},null,"Sheet piling of iron or steel, whether or not drilled, punched or made from assembled elements"]
["730120000080","7301 20 00",{"$f":"Translations!$B$1162","v":"Angles, shapes and sections, of iron or steel, welded"},"73012000",{"$f":"Translations!$B$611","v":"Iron or steel products"},{"$f":"IF(E475=\" --- \",\"\",COUNTIF($E$3:E475,E475)&\"_\"&E475)","v":"355_Iron or steel products"},null,"Angles, shapes and sections, of iron or steel, welded"]
["730200000080","7302",{"$f":"Translations!$B$1163","v":"Railway or tramway track construction material of iron or steel, the following : rails, check-rails and rack rails, switch blades, crossing frogs, point rods and other crossing pieces, sleepers \"cross-ties\", fish-plates, chairs, chair wedges, sole plates \"base plates\", rail clips, bedplates, ties and other material specialised for jointing or fixing rails"},"7302",{"$f":"Translations!$B$611","v":"Iron or steel products"},{"$f":"IF(E476=\" --- \",\"\",COUNTIF($E$3:E476,E476)&\"_\"&E476)","v":"356_Iron or steel products"},null,"Railway or tramway track construction material of iron or steel, the following : rails, check-rails and rack rails, switch blades, crossing frogs, point rods and other crossing pieces, sleepers \"cross-ties\", fish-plates, chairs, chair wedges, sole plates \"base plates\", rail clips, bedplates, ties and other material specialised for jointing or fixing rails"]
["730210000080","7302 10",{"$f":"Translations!$B$1164","v":"Rails of iron or steel, for railway or tramway track (excl. check-rails)"},"730210",{"$f":"Translations!$B$611","v":"Iron or steel products"},{"$f":"IF(E477=\" --- \",\"\",COUNTIF($E$3:E477,E477)&\"_\"&E477)","v":"357_Iron or steel products"},null,"Rails of iron or steel, for railway or tramway track (excl. check-rails)"]
["730210100080","7302 10 10",{"$f":"Translations!$B$1165","v":"Current-conducting rails of iron or steel, with parts of non-ferrous metal, for railway or tramway track (excl. check-rails)"},"73021010",{"$f":"Translations!$B$611","v":"Iron or steel products"},{"$f":"IF(E478=\" --- \",\"\",COUNTIF($E$3:E478,E478)&\"_\"&E478)","v":"358_Iron or steel products"},null,"Current-conducting rails of iron or steel, with parts of non-ferrous metal, for railway or tramway track (excl. check-rails)"]
["730210220080","7302 10 22",{"$f":"Translations!$B$1166","v":"Vignole rails of iron or steel, for railway or tramway track, new, of a weight of >= 36 kg/m"},"73021022",{"$f":"Translations!$B$611","v":"Iron or steel products"},{"$f":"IF(E479=\" --- \",\"\",COUNTIF($E$3:E479,E479)&\"_\"&E479)","v":"359_Iron or steel products"},null,"Vignole rails of iron or steel, for railway or tramway track, new, of a weight of >= 36 kg/m"]
["730210280080","7302 10 28",{"$f":"Translations!$B$1167","v":"Vignole rails of iron or steel, for railway or tramway track, new, of a weight of < 36 kg/m"},"73021028",{"$f":"Translations!$B$611","v":"Iron or steel products"},{"$f":"IF(E480=\" --- \",\"\",COUNTIF($E$3:E480,E480)&\"_\"&E480)","v":"360_Iron or steel products"},null,"Vignole rails of iron or steel, for railway or tramway track, new, of a weight of < 36 kg/m"]
["730210400080","7302 10 40",{"$f":"Translations!$B$1168","v":"Grooved rails of iron or steel, for railway or tramway track, new"},"73021040",{"$f":"Translations!$B$611","v":"Iron or steel products"},{"$f":"IF(E481=\" --- \",\"\",COUNTIF($E$3:E481,E481)&\"_\"&E481)","v":"361_Iron or steel products"},null,"Grooved rails of iron or steel, for railway or tramway track, new"]
["730210500080","7302 10 50",{"$f":"Translations!$B$1169","v":"Rails of iron or steel, for railway or tramway track, new (excl. vignole rails, grooved rails, and current-conducting rails with parts of non-ferrous metal)"},"73021050",{"$f":"Translations!$B$611","v":"Iron or steel products"},{"$f":"IF(E482=\" --- \",\"\",COUNTIF($E$3:E482,E482)&\"_\"&E482)","v":"362_Iron or steel products"},null,"Rails of iron or steel, for railway or tramway track, new (excl. vignole rails, grooved rails, and current-conducting rails with parts of non-ferrous metal)"]
["730210900080","7302 10 90",{"$f":"Translations!$B$1170","v":"Rails of iron or steel, for railway or tramway track, used (excl. current-conducting rails with parts of non-ferrous metal)"},"73021090",{"$f":"Translations!$B$611","v":"Iron or steel products"},{"$f":"IF(E483=\" --- \",\"\",COUNTIF($E$3:E483,E483)&\"_\"&E483)","v":"363_Iron or steel products"},null,"Rails of iron or steel, for railway or tramway track, used (excl. current-conducting rails with parts of non-ferrous metal)"]
["730230000080","7302 30 00",{"$f":"Translations!$B$1171","v":"Switch blades, crossing frogs, point rods and other crossing pieces, for railway or tramway track, of iron or steel"},"73023000",{"$f":"Translations!$B$611","v":"Iron or steel products"},{"$f":"IF(E484=\" --- \",\"\",COUNTIF($E$3:E484,E484)&\"_\"&E484)","v":"364_Iron or steel products"},null,"Switch blades, crossing frogs, point rods and other crossing pieces, for railway or tramway track, of iron or steel"]
["730240000080","7302 40 00",{"$f":"Translations!$B$1172","v":"Fish-plates and sole plates of iron or steel, for railways or tramways"},"73024000",{"$f":"Translations!$B$611","v":"Iron or steel products"},{"$f":"IF(E485=\" --- \",\"\",COUNTIF($E$3:E485,E485)&\"_\"&E485)","v":"365_Iron or steel products"},null,"Fish-plates and sole plates of iron or steel, for railways or tramways"]
["730290000080","7302 90 00",{"$f":"Translations!$B$1173","v":"Sleepers \"cross-ties\", check-rails, rack rails, chairs, chair wedges, rail clips, bedplates and ties and other specialised material for the jointing or fixing of railway or tramway track, of iron or steel (excl. rails, switch blades, crossing frogs, point rods and other crossing pieces, and fish-plates and sole plates)"},"73029000",{"$f":"Translations!$B$611","v":"Iron or steel products"},{"$f":"IF(E486=\" --- \",\"\",COUNTIF($E$3:E486,E486)&\"_\"&E486)","v":"366_Iron or steel products"},null,"Sleepers \"cross-ties\", check-rails, rack rails, chairs, chair wedges, rail clips, bedplates and ties and other specialised material for the jointing or fixing of railway or tramway track, of iron or steel (excl. rails, switch blades, crossing frogs, point rods and other crossing pieces, and fish-plates and sole plates)"]
["730300000080","7303 00",{"$f":"Translations!$B$1174","v":"Tubes, pipes and hollow profiles, of cast iron"},"730300",{"$f":"Translations!$B$611","v":"Iron or steel products"},{"$f":"IF(E487=\" --- \",\"\",COUNTIF($E$3:E487,E487)&\"_\"&E487)","v":"367_Iron or steel products"},null,"Tubes, pipes and hollow profiles, of cast iron"]
["730300100080","7303 00 10",{"$f":"Translations!$B$1175","v":"Tubes and pipes of a kind used in pressure systems, of cast iron"},"73030010",{"$f":"Translations!$B$611","v":"Iron or steel products"},{"$f":"IF(E488=\" --- \",\"\",COUNTIF($E$3:E488,E488)&\"_\"&E488)","v":"368_Iron or steel products"},null,"Tubes and pipes of a kind used in pressure systems, of cast iron"]
["730300900080","7303 00 90",{"$f":"Translations!$B$1176","v":"Tubes, pipes and hollow profiles, of cast iron (excl. products of a kind used in pressure systems)"},"73030090",{"$f":"Translations!$B$611","v":"Iron or steel products"},{"$f":"IF(E489=\" --- \",\"\",COUNTIF($E$3:E489,E489)&\"_\"&E489)","v":"369_Iron or steel products"},null,"Tubes, pipes and hollow profiles, of cast iron (excl. products of a kind used in pressure systems)"]
["730400000080","7304",{"$f":"Translations!$B$1177","v":"Tubes, pipes and hollow profiles, seamless, of iron or steel (excl. products of cast iron)"},"7304",{"$f":"Translations!$B$611","v":"Iron or steel products"},{"$f":"IF(E490=\" --- \",\"\",COUNTIF($E$3:E490,E490)&\"_\"&E490)","v":"370_Iron or steel products"},null,"Tubes, pipes and hollow profiles, seamless, of iron or steel (excl. products of cast iron)"]
["730411000080","7304 11 00",{"$f":"Translations!$B$1178","v":"Line pipe of a kind used for oil or gas pipelines, seamless, of stainless steel"},"73041100",{"$f":"Translations!$B$611","v":"Iron or steel products"},{"$f":"IF(E491=\" --- \",\"\",COUNTIF($E$3:E491,E491)&\"_\"&E491)","v":"371_Iron or steel products"},null,"Line pipe of a kind used for oil or gas pipelines, seamless, of stainless steel"]
["730419000080","7304 19",{"$f":"Translations!$B$1179","v":"Line pipe of a kind used for oil or gas pipelines, seamless, of iron or steel (excl. products of stainless steel or of cast iron)"},"730419",{"$f":"Translations!$B$611","v":"Iron or steel products"},{"$f":"IF(E492=\" --- \",\"\",COUNTIF($E$3:E492,E492)&\"_\"&E492)","v":"372_Iron or steel products"},null,"Line pipe of a kind used for oil or gas pipelines, seamless, of iron or steel (excl. products of stainless steel or of cast iron)"]
["730419100080","7304 19 10",{"$f":"Translations!$B$1180","v":"Line pipe of a kind used for oil or gas pipelines, seamless, of iron or steel, of an external diameter of <= 168,3 mm (excl. products of stainless steel or of cast iron)"},"73041910",{"$f":"Translations!$B$611","v":"Iron or steel products"},{"$f":"IF(E493=\" --- \",\"\",COUNTIF($E$3:E493,E493)&\"_\"&E493)","v":"373_Iron or steel products"},null,"Line pipe of a kind used for oil or gas pipelines, seamless, of iron or steel, of an external diameter of <= 168,3 mm (excl. products of stainless steel or of cast iron)"]
["730419300080","7304 19 30",{"$f":"Translations!$B$1181","v":"Line pipe of a kind used for oil or gas pipelines, seamless, of iron or steel, of an external diameter of > 168,3 mm but <= 406,4 mm (excl. products of stainless steel or of cast iron)"},"73041930",{"$f":"Translations!$B$611","v":"Iron or steel products"},{"$f":"IF(E494=\" --- \",\"\",COUNTIF($E$3:E494,E494)&\"_\"&E494)","v":"374_Iron or steel products"},null,"Line pipe of a kind used for oil or gas pipelines, seamless, of iron or steel, of an external diameter of > 168,3 mm but <= 406,4 mm (excl. products of stainless steel or of cast iron)"]
["730419900080","7304 19 90",{"$f":"Translations!$B$1182","v":"Line pipe of a kind used for oil or gas pipelines, seamless, of iron or steel, of an external diameter of > 406,4 mm (excl. products of stainless steel or of cast iron)"},"73041990",{"$f":"Translations!$B$611","v":"Iron or steel products"},{"$f":"IF(E495=\" --- \",\"\",COUNTIF($E$3:E495,E495)&\"_\"&E495)","v":"375_Iron or steel products"},null,"Line pipe of a kind used for oil or gas pipelines, seamless, of iron or steel, of an external diameter of > 406,4 mm (excl. products of stainless steel or of cast iron)"]
["730422000080","7304 22 00",{"$f":"Translations!$B$1183","v":"Drill pipe, seamless, of stainless steel, of a kind used in drilling for oil or gas"},"73042200",{"$f":"Translations!$B$611","v":"Iron or steel products"},{"$f":"IF(E496=\" --- \",\"\",COUNTIF($E$3:E496,E496)&\"_\"&E496)","v":"376_Iron or steel products"},null,"Drill pipe, seamless, of stainless steel, of a kind used in drilling for oil or gas"]
["730423000080","7304 23 00",{"$f":"Translations!$B$1184","v":"Drill pipe, seamless, of a kind used in drilling for oil or gas, of iron or steel (excl. products of stainless steel or of cast iron)"},"73042300",{"$f":"Translations!$B$611","v":"Iron or steel products"},{"$f":"IF(E497=\" --- \",\"\",COUNTIF($E$3:E497,E497)&\"_\"&E497)","v":"377_Iron or steel products"},null,"Drill pipe, seamless, of a kind used in drilling for oil or gas, of iron or steel (excl. products of stainless steel or of cast iron)"]
["730424000080","7304 24 00",{"$f":"Translations!$B$1185","v":"Casing and tubing, seamless, of a kind used for drilling for oil or gas, of stainless steel"},"73042400",{"$f":"Translations!$B$611","v":"Iron or steel products"},{"$f":"IF(E498=\" --- \",\"\",COUNTIF($E$3:E498,E498)&\"_\"&E498)","v":"378_Iron or steel products"},null,"Casing and tubing, seamless, of a kind used for drilling for oil or gas, of stainless steel"]
["730429000080","7304 29",{"$f":"Translations!$B$1186","v":"Casing and tubing, seamless, of iron or steel, of a kind used in drilling for oil or gas (excl. products of cast iron)"},"730429",{"$f":"Translations!$B$611","v":"Iron or steel products"},{"$f":"IF(E499=\" --- \",\"\",COUNTIF($E$3:E499,E499)&\"_\"&E499)","v":"379_Iron or steel products"},null,"Casing and tubing, seamless, of iron or steel, of a kind used in drilling for oil or gas (excl. products of cast iron)"]
["730429100080","7304 29 10",{"$f":"Translations!$B$1187","v":"Casing and tubing of a kind used for drilling for oil or gas, seamless, of iron or steel, of an external diameter <= 168,3 mm (excl. products of cast iron)"},"73042910",{"$f":"Translations!$B$611","v":"Iron or steel products"},{"$f":"IF(E500=\" --- \",\"\",COUNTIF($E$3:E500,E500)&\"_\"&E500)","v":"380_Iron or steel products"},null,"Casing and tubing of a kind used for drilling for oil or gas, seamless, of iron or steel, of an external diameter <= 168,3 mm (excl. products of cast iron)"]
["730429300080","7304 29 30",{"$f":"Translations!$B$1188","v":"Casing and tubing of a kind used for drilling for oil or gas, seamless, of iron or steel, of an external diameter > 168,3 mm, but <= 406,4 mm (excl. products of cast iron)"},"73042930",{"$f":"Translations!$B$611","v":"Iron or steel products"},{"$f":"IF(E501=\" --- \",\"\",COUNTIF($E$3:E501,E501)&\"_\"&E501)","v":"381_Iron or steel products"},null,"Casing and tubing of a kind used for drilling for oil or gas, seamless, of iron or steel, of an external diameter > 168,3 mm, but <= 406,4 mm (excl. products of cast iron)"]
["730429900080","7304 29 90",{"$f":"Translations!$B$1189","v":"Casing and tubing of a kind used for drilling for oil or gas, seamless, of iron or steel, of an external diameter > 406,4 mm (excl. products of cast iron)"},"73042990",{"$f":"Translations!$B$611","v":"Iron or steel products"},{"$f":"IF(E502=\" --- \",\"\",COUNTIF($E$3:E502,E502)&\"_\"&E502)","v":"382_Iron or steel products"},null,"Casing and tubing of a kind used for drilling for oil or gas, seamless, of iron or steel, of an external diameter > 406,4 mm (excl. products of cast iron)"]
["730431000080","7304 31",{"$f":"Translations!$B$1190","v":"Tubes, pipes and hollow profiles, seamless, of circular cross-section, of iron or non-alloy steel, cold-drawn or cold-rolled \"cold-reduced\" (excl. cast iron products and line pipe of a kind used for oil or gas pipelines or casing and tubing of a kind used for drilling for oil or gas)"},"730431",{"$f":"Translations!$B$611","v":"Iron or steel products"},{"$f":"IF(E503=\" --- \",\"\",COUNTIF($E$3:E503,E503)&\"_\"&E503)","v":"383_Iron or steel products"},null,"Tubes, pipes and hollow profiles, seamless, of circular cross-section, of iron or non-alloy steel, cold-drawn or cold-rolled \"cold-reduced\" (excl. cast iron products and line pipe of a kind used for oil or gas pipelines or casing and tubing of a kind used for drilling for oil or gas)"]
["730431200080","7304 31 20",{"$f":"Translations!$B$1191","v":"Precision tubes, seamless, of circular cross-section, of iron or non-alloy steel, cold-drawn or cold-rolled \"cold-reduced\" (excl. line pipe of a kind used for oil or gas pipelines or casing and tubing of a kind used for drilling for oil or gas)"},"73043120",{"$f":"Translations!$B$611","v":"Iron or steel products"},{"$f":"IF(E504=\" --- \",\"\",COUNTIF($E$3:E504,E504)&\"_\"&E504)","v":"384_Iron or steel products"},null,"Precision tubes, seamless, of circular cross-section, of iron or non-alloy steel, cold-drawn or cold-rolled \"cold-reduced\" (excl. line pipe of a kind used for oil or gas pipelines or casing and tubing of a kind used for drilling for oil or gas)"]
["730431800080","7304 31 80",{"$f":"Translations!$B$1192","v":"Tubes, pipes and hollow profiles, seamless, of circular cross-section, of iron or non-alloy steel, cold-drawn or cold-rolled \"cold-reduced\" (excl. cast iron products, line pipe of a kind used for oil or gas pipelines, casing and tubing of a kind used for drilling for oil or gas and precision tubes)"},"73043180",{"$f":"Translations!$B$611","v":"Iron or steel products"},{"$f":"IF(E505=\" --- \",\"\",COUNTIF($E$3:E505,E505)&\"_\"&E505)","v":"385_Iron or steel products"},null,"Tubes, pipes and hollow profiles, seamless, of circular cross-section, of iron or non-alloy steel, cold-drawn or cold-rolled \"cold-reduced\" (excl. cast iron products, line pipe of a kind used for oil or gas pipelines, casing and tubing of a kind used for drilling for oil or gas and precision tubes)"]
["730439000080","7304 39",{"$f":"Translations!$B$1193","v":"Tubes, pipes and hollow profiles, seamless, of circular cross-section, of iron or non-alloy steel, not cold-drawn or cold-rolled \"cold-reduced\" (excl. cast iron products, line pipe of a kind used for oil or gas pipelines, casing and tubing of a kind used for drilling for oil or gas)"},"730439",{"$f":"Translations!$B$611","v":"Iron or steel products"},{"$f":"IF(E506=\" --- \",\"\",COUNTIF($E$3:E506,E506)&\"_\"&E506)","v":"386_Iron or steel products"},null,"Tubes, pipes and hollow profiles, seamless, of circular cross-section, of iron or non-alloy steel, not cold-drawn or cold-rolled \"cold-reduced\" (excl. cast iron products, line pipe of a kind used for oil or gas pipelines, casing and tubing of a kind used for drilling for oil or gas)"]
["730439500080","7304 39 50",{"$f":"Translations!$B$1194","v":"Threaded or threadable tubes \"gas pipe\", seamless, of iron or non-alloy steel (excl. of cast iron)"},"73043950",{"$f":"Translations!$B$611","v":"Iron or steel products"},{"$f":"IF(E507=\" --- \",\"\",COUNTIF($E$3:E507,E507)&\"_\"&E507)","v":"387_Iron or steel products"},null,"Threaded or threadable tubes \"gas pipe\", seamless, of iron or non-alloy steel (excl. of cast iron)"]
["730439820080","7304 39 82",{"$f":"Translations!$B$1195","v":"Tubes, pipes and hollow profiles, seamless, of circular cross-section, of iron or non-alloy steel, of an external diameter of <= 168,3 mm (excl. cold-drawn or cold-rolled, of cast iron, line pipe of a kind used for oil or gas pipelines, casing, tubing and drill pipe of a kind used in drilling for oil or gas and tubes, and gas pipes of subheading 7304 39 50)"},"73043982",{"$f":"Translations!$B$611","v":"Iron or steel products"},{"$f":"IF(E508=\" --- \",\"\",COUNTIF($E$3:E508,E508)&\"_\"&E508)","v":"388_Iron or steel products"},null,"Tubes, pipes and hollow profiles, seamless, of circular cross-section, of iron or non-alloy steel, of an external diameter of <= 168,3 mm (excl. cold-drawn or cold-rolled, of cast iron, line pipe of a kind used for oil or gas pipelines, casing, tubing and drill pipe of a kind used in drilling for oil or gas and tubes, and gas pipes of subheading 7304 39 50)"]
["730439830080","7304 39 83",{"$f":"Translations!$B$1196","v":"Tubes, pipes and hollow profiles, seamless, of circular cross-section, of iron or non-alloy steel, of an external diameter of > 168,3 mm but <= 406,4 mm (excl. cold-drawn or cold-rolled, of cast iron, line pipe of a kind used for oil or gas pipelines, casing, tubing and drill pipe of a kind used in drilling for oil or gas and tubes, and gas pipes of subheading 7304 39 50)"},"73043983",{"$f":"Translations!$B$611","v":"Iron or steel products"},{"$f":"IF(E509=\" --- \",\"\",COUNTIF($E$3:E509,E509)&\"_\"&E509)","v":"389_Iron or steel products"},null,"Tubes, pipes and hollow profiles, seamless, of circular cross-section, of iron or non-alloy steel, of an external diameter of > 168,3 mm but <= 406,4 mm (excl. cold-drawn or cold-rolled, of cast iron, line pipe of a kind used for oil or gas pipelines, casing, tubing and drill pipe of a kind used in drilling for oil or gas and tubes, and gas pipes of subheading 7304 39 50)"]
["730439880080","7304 39 88",{"$f":"Translations!$B$1197","v":"Tubes, pipes and hollow profiles, seamless, of circular cross-section, of iron or non-alloy steel, of an external diameter of > 406,4 mm (excl. cold-drawn or cold-rolled, of cast iron, line pipe of a kind used for oil or gas pipelines, casing, tubing and drill pipe of a kind used in drilling for oil or gas and tubes, and gas pipes of subheading 7304 39 50)"},"73043988",{"$f":"Translations!$B$611","v":"Iron or steel products"},{"$f":"IF(E510=\" --- \",\"\",COUNTIF($E$3:E510,E510)&\"_\"&E510)","v":"390_Iron or steel products"},null,"Tubes, pipes and hollow profiles, seamless, of circular cross-section, of iron or non-alloy steel, of an external diameter of > 406,4 mm (excl. cold-drawn or cold-rolled, of cast iron, line pipe of a kind used for oil or gas pipelines, casing, tubing and drill pipe of a kind used in drilling for oil or gas and tubes, and gas pipes of subheading 7304 39 50)"]
["730441000080","7304 41 00",{"$f":"Translations!$B$1198","v":"Tubes, pipes and hollow profiles, seamless, of circular cross-section, of stainless steel, cold-drawn or cold-rolled \"cold-reduced\" (excl. line pipe of a kind used for oil or gas pipelines, casing and tubing of a kind used for drilling for oil or gas)"},"73044100",{"$f":"Translations!$B$611","v":"Iron or steel products"},{"$f":"IF(E511=\" --- \",\"\",COUNTIF($E$3:E511,E511)&\"_\"&E511)","v":"391_Iron or steel products"},null,"Tubes, pipes and hollow profiles, seamless, of circular cross-section, of stainless steel, cold-drawn or cold-rolled \"cold-reduced\" (excl. line pipe of a kind used for oil or gas pipelines, casing and tubing of a kind used for drilling for oil or gas)"]
["730449000080","7304 49",{"$f":"Translations!$B$1199","v":"Tubes, pipes and hollow profiles, seamless, of circular cross-section, of stainless steel, not cold-drawn or cold-rolled \"cold-reduced\" (excl. line pipe of a kind used for oil or gas pipelines or of a kind used for drilling for oil or gas)"},"730449",{"$f":"Translations!$B$611","v":"Iron or steel products"},{"$f":"IF(E512=\" --- \",\"\",COUNTIF($E$3:E512,E512)&\"_\"&E512)","v":"392_Iron or steel products"},null,"Tubes, pipes and hollow profiles, seamless, of circular cross-section, of stainless steel, not cold-drawn or cold-rolled \"cold-reduced\" (excl. line pipe of a kind used for oil or gas pipelines or of a kind used for drilling for oil or gas)"]
["730449830080","7304 49 83",{"$f":"Translations!$B$1200","v":"Tubes, pipes and hollow profiles, seamless, of circular cross-section, of stainless steel, of an external diameter of <= 168,3 mm (excl. cold-drawn or cold-rolled, line pipe of a kind used for oil or gas pipelines, and casing and tubing of a kind used for drilling for oil or gas and tubes)"},"73044983",{"$f":"Translations!$B$611","v":"Iron or steel products"},{"$f":"IF(E513=\" --- \",\"\",COUNTIF($E$3:E513,E513)&\"_\"&E513)","v":"393_Iron or steel products"},null,"Tubes, pipes and hollow profiles, seamless, of circular cross-section, of stainless steel, of an external diameter of <= 168,3 mm (excl. cold-drawn or cold-rolled, line pipe of a kind used for oil or gas pipelines, and casing and tubing of a kind used for drilling for oil or gas and tubes)"]
["730449850080","7304 49 85",{"$f":"Translations!$B$1201","v":"Tubes, pipes and hollow profiles, seamless, of circular cross-section, of stainless steel, of an external diameter of > 168,3 mm but <= 406,4 mm (excl. cold-drawn or cold-rolled, line pipe of a kind used for oil or gas pipelines, and casing and tubing of a kind used for drilling for oil or gas and tubes)"},"73044985",{"$f":"Translations!$B$611","v":"Iron or steel products"},{"$f":"IF(E514=\" --- \",\"\",COUNTIF($E$3:E514,E514)&\"_\"&E514)","v":"394_Iron or steel products"},null,"Tubes, pipes and hollow profiles, seamless, of circular cross-section, of stainless steel, of an external diameter of > 168,3 mm but <= 406,4 mm (excl. cold-drawn or cold-rolled, line pipe of a kind used for oil or gas pipelines, and casing and tubing of a kind used for drilling for oil or gas and tubes)"]
["730449890080","7304 49 89",{"$f":"Translations!$B$1202","v":"Tubes, pipes and hollow profiles, seamless, of circular cross-section, of stainless steel, of an external diameter of > 406,4 mm (excl. cold-drawn or cold-rolled, line pipe of a kind used for oil or gas pipelines, and casing and tubing of a kind used for drilling for oil or gas and tubes)"},"73044989",{"$f":"Translations!$B$611","v":"Iron or steel products"},{"$f":"IF(E515=\" --- \",\"\",COUNTIF($E$3:E515,E515)&\"_\"&E515)","v":"395_Iron or steel products"},null,"Tubes, pipes and hollow profiles, seamless, of circular cross-section, of stainless steel, of an external diameter of > 406,4 mm (excl. cold-drawn or cold-rolled, line pipe of a kind used for oil or gas pipelines, and casing and tubing of a kind used for drilling for oil or gas and tubes)"]
["730451000080","7304 51",{"$f":"Translations!$B$1203","v":"Tubes, pipes and hollow profiles, seamless, of circular cross-section, of alloy steel other than stainless, cold-drawn or cold-rolled \"cold-reduced\" (excl. line pipe of a kind used for oil or gas pipelines, casing and tubing of a kind used for drilling for oil)"},"730451",{"$f":"Translations!$B$611","v":"Iron or steel products"},{"$f":"IF(E516=\" --- \",\"\",COUNTIF($E$3:E516,E516)&\"_\"&E516)","v":"396_Iron or steel products"},null,"Tubes, pipes and hollow profiles, seamless, of circular cross-section, of alloy steel other than stainless, cold-drawn or cold-rolled \"cold-reduced\" (excl. line pipe of a kind used for oil or gas pipelines, casing and tubing of a kind used for drilling for oil)"]
["730451100080","7304 51 10",{"$f":"Translations!$B$1204","v":"Tubes, pipes and hollow profiles, seamless, of circular cross-section, of alloy steel other than stainless, cold-drawn or cold-rolled \"cold-reduced\", straight and of uniform wall-thickness, containing by weight >= 0,9% but <= 1,15% carbon and >= 0,5% but <= 2% chromium, whether or not containing by weight <= 0,5% molybdenum (excl. tubes, pipes and hollow profiles of subheadings 7304 19 to 7304 29)"},"73045110",{"$f":"Translations!$B$611","v":"Iron or steel products"},{"$f":"IF(E517=\" --- \",\"\",COUNTIF($E$3:E517,E517)&\"_\"&E517)","v":"397_Iron or steel products"},null,"Tubes, pipes and hollow profiles, seamless, of circular cross-section, of alloy steel other than stainless, cold-drawn or cold-rolled \"cold-reduced\", straight and of uniform wall-thickness, containing by weight >= 0,9% but <= 1,15% carbon and >= 0,5% but <= 2% chromium, whether or not containing by weight <= 0,5% molybdenum (excl. tubes, pipes and hollow profiles of subheadings 7304 19 to 7304 29)"]
["730451810080","7304 51 81",{"$f":"Translations!$B$1205","v":"Precision tubes, seamless, of circular cross-section, of alloy steel other than stainless, cold-drawn or cold-rolled \"cold-reduced\" (excl. line pipe of a kind used for oil or gas pipelines, casing and tubing of a kind used for drilling for oil and tubes, and pipes and hollow profiles, straight and of uniform wall-thickness, containing by weight >= 0,9% but <= 1,15% carbon and >= 0,5% but <= 2% chrome, whether or not containing by weight <= 0,5% molybdenum)"},"73045181",{"$f":"Translations!$B$611","v":"Iron or steel products"},{"$f":"IF(E518=\" --- \",\"\",COUNTIF($E$3:E518,E518)&\"_\"&E518)","v":"398_Iron or steel products"},null,"Precision tubes, seamless, of circular cross-section, of alloy steel other than stainless, cold-drawn or cold-rolled \"cold-reduced\" (excl. line pipe of a kind used for oil or gas pipelines, casing and tubing of a kind used for drilling for oil and tubes, and pipes and hollow profiles, straight and of uniform wall-thickness, containing by weight >= 0,9% but <= 1,15% carbon and >= 0,5% but <= 2% chrome, whether or not containing by weight <= 0,5% molybdenum)"]
["730451890080","7304 51 89",{"$f":"Translations!$B$1206","v":"Tubes, pipes and hollow profiles, seamless, of circular cross-section, of alloy steel other than stainless, not cold-drawn or cold-rolled \"cold-reduced\" (excl. line pipe of a kind used for oil or gas pipelines, casing and tubing of a kind used for drilling for oil, precision tubes, and , pipes and hollow profiles, straight and of uniform wall-thickness, containing by weight >= 0,9% but <= 1,15% carbon and >= 0,5% but <= 2% chrome, whether or not containing by weight <= 0,5% molybdenum)"},"73045189",{"$f":"Translations!$B$611","v":"Iron or steel products"},{"$f":"IF(E519=\" --- \",\"\",COUNTIF($E$3:E519,E519)&\"_\"&E519)","v":"399_Iron or steel products"},null,"Tubes, pipes and hollow profiles, seamless, of circular cross-section, of alloy steel other than stainless, not cold-drawn or cold-rolled \"cold-reduced\" (excl. line pipe of a kind used for oil or gas pipelines, casing and tubing of a kind used for drilling for oil, precision tubes, and , pipes and hollow profiles, straight and of uniform wall-thickness, containing by weight >= 0,9% but <= 1,15% carbon and >= 0,5% but <= 2% chrome, whether or not containing by weight <= 0,5% molybdenum)"]
["730459000080","7304 59",{"$f":"Translations!$B$1207","v":"Tubes, pipes and hollow profiles, seamless, of circular cross-section, of alloy steel other than stainless, not cold-drawn or cold-rolled \"cold-reduced\" (excl. line pipe of a kind used for oil or gas pipelines, casing and tubing of a kind used for drilling for oil)"},"730459",{"$f":"Translations!$B$611","v":"Iron or steel products"},{"$f":"IF(E520=\" --- \",\"\",COUNTIF($E$3:E520,E520)&\"_\"&E520)","v":"400_Iron or steel products"},null,"Tubes, pipes and hollow profiles, seamless, of circular cross-section, of alloy steel other than stainless, not cold-drawn or cold-rolled \"cold-reduced\" (excl. line pipe of a kind used for oil or gas pipelines, casing and tubing of a kind used for drilling for oil)"]
["730459300080","7304 59 30",{"$f":"Translations!$B$1208","v":"Tubes, pipes and hollow profiles of alloy steel (excl. stainless), seamless, of circular cross-section (not cold-drawn or cold-rolled), straight and of uniform wall-thickness, containing by weight >= 0,9% but <= 1,15% carbon and >= 0,5% but <= 2% chromium, whether or not containing by weight <= 0,5% molybdenum (excl. tubes, pipes and hollow profiles of subheadings 7304 19 to 7304 29)"},"73045930",{"$f":"Translations!$B$611","v":"Iron or steel products"},{"$f":"IF(E521=\" --- \",\"\",COUNTIF($E$3:E521,E521)&\"_\"&E521)","v":"401_Iron or steel products"},null,"Tubes, pipes and hollow profiles of alloy steel (excl. stainless), seamless, of circular cross-section (not cold-drawn or cold-rolled), straight and of uniform wall-thickness, containing by weight >= 0,9% but <= 1,15% carbon and >= 0,5% but <= 2% chromium, whether or not containing by weight <= 0,5% molybdenum (excl. tubes, pipes and hollow profiles of subheadings 7304 19 to 7304 29)"]
["730459820080","7304 59 82",{"$f":"Translations!$B$1209","v":"Tubes, pipes and hollow profiles, seamless, of circular cross-section, of alloy steel other than stainless, of an external diameter of <= 168,3 mm (excl. cold-drawn or cold-rolled, line pipe of a kind used for oil or gas pipelines, casing and tubing of a kind used for drilling for oil or gas, and products of subheading 7304 59 30)"},"73045982",{"$f":"Translations!$B$611","v":"Iron or steel products"},{"$f":"IF(E522=\" --- \",\"\",COUNTIF($E$3:E522,E522)&\"_\"&E522)","v":"402_Iron or steel products"},null,"Tubes, pipes and hollow profiles, seamless, of circular cross-section, of alloy steel other than stainless, of an external diameter of <= 168,3 mm (excl. cold-drawn or cold-rolled, line pipe of a kind used for oil or gas pipelines, casing and tubing of a kind used for drilling for oil or gas, and products of subheading 7304 59 30)"]
["730459830080","7304 59 83",{"$f":"Translations!$B$1210","v":"Tubes, pipes and hollow profiles, seamless, of circular cross-section, of alloy steel other than stainless, of an external diameter of > 168,3 mm but <= 406,4 mm (excl. cold-drawn or cold-rolled, line pipe of a kind used for oil or gas pipelines, casing and tubing of a kind used for drilling for oil or gas, and products of subheading 7304 59 30)"},{"$f":"SUBSTITUTE(B523,\" \",\"\")","v":"73045983"},{"$f":"Translations!$B$611","v":"Iron or steel products"},{"$f":"IF(E523=\" --- \",\"\",COUNTIF($E$3:E523,E523)&\"_\"&E523)","v":"403_Iron or steel products"},null,"Tubes, pipes and hollow profiles, seamless, of circular cross-section, of alloy steel other than stainless, of an external diameter of > 168,3 mm but <= 406,4 mm (excl. cold-drawn or cold-rolled, line pipe of a kind used for oil or gas pipelines, casing and tubing of a kind used for drilling for oil or gas, and products of subheading 7304 59 30)"]
["730459890080","7304 59 89",{"$f":"Translations!$B$1211","v":"Tubes, pipes and hollow profiles, seamless, of circular cross-section, of alloy steel other than stainless, of an external diameter of > 406,4 mm (excl. cold-drawn or cold-rolled, line pipe of a kind used for oil or gas pipelines, casing and tubing of a kind used for drilling for oil or gas, and products of subheading 7304 59 30)"},"73045989",{"$f":"Translations!$B$611","v":"Iron or steel products"},{"$f":"IF(E524=\" --- \",\"\",COUNTIF($E$3:E524,E524)&\"_\"&E524)","v":"404_Iron or steel products"},null,"Tubes, pipes and hollow profiles, seamless, of circular cross-section, of alloy steel other than stainless, of an external diameter of > 406,4 mm (excl. cold-drawn or cold-rolled, line pipe of a kind used for oil or gas pipelines, casing and tubing of a kind used for drilling for oil or gas, and products of subheading 7304 59 30)"]
["730490000080","7304 90 00",{"$f":"Translations!$B$1212","v":"Tubes, pipes and hollow profiles, seamless, of non-circular cross-section, of iron or steel (excl. products of cast iron)"},"73049000",{"$f":"Translations!$B$611","v":"Iron or steel products"},{"$f":"IF(E525=\" --- \",\"\",COUNTIF($E$3:E525,E525)&\"_\"&E525)","v":"405_Iron or steel products"},null,"Tubes, pipes and hollow profiles, seamless, of non-circular cross-section, of iron or steel (excl. products of cast iron)"]
["730500000080","7305",{"$f":"Translations!$B$1213","v":"Tubes and pipes, having circular cross-sections and an external diameter of > 406,4 mm, of flat-rolled products of iron or steel \"e.g., welded, riveted or similarly closed\""},"7305",{"$f":"Translations!$B$611","v":"Iron or steel products"},{"$f":"IF(E526=\" --- \",\"\",COUNTIF($E$3:E526,E526)&\"_\"&E526)","v":"406_Iron or steel products"},null,"Tubes and pipes, having circular cross-sections and an external diameter of > 406,4 mm, of flat-rolled products of iron or steel \"e.g., welded, riveted or similarly closed\""]
["730511000080","7305 11 00",{"$f":"Translations!$B$1214","v":"Line pipe of a kind used for oil or gas pipelines, having circular cross-sections and an external diameter of > 406,4 mm, of iron or steel, longitudinally submerged arc welded"},"73051100",{"$f":"Translations!$B$611","v":"Iron or steel products"},{"$f":"IF(E527=\" --- \",\"\",COUNTIF($E$3:E527,E527)&\"_\"&E527)","v":"407_Iron or steel products"},null,"Line pipe of a kind used for oil or gas pipelines, having circular cross-sections and an external diameter of > 406,4 mm, of iron or steel, longitudinally submerged arc welded"]
["730512000080","7305 12 00",{"$f":"Translations!$B$1215","v":"Line pipe of a kind used for oil or gas pipelines, having circular cross-sections and an external diameter of > 406,4 mm, of iron or steel, longitudinally arc welded (excl. products longitudinally submerged arc welded)"},"73051200",{"$f":"Translations!$B$611","v":"Iron or steel products"},{"$f":"IF(E528=\" --- \",\"\",COUNTIF($E$3:E528,E528)&\"_\"&E528)","v":"408_Iron or steel products"},null,"Line pipe of a kind used for oil or gas pipelines, having circular cross-sections and an external diameter of > 406,4 mm, of iron or steel, longitudinally arc welded (excl. products longitudinally submerged arc welded)"]
["730519000080","7305 19 00",{"$f":"Translations!$B$1216","v":"Line pipe of a kind used for oil or gas pipelines, having circular cross-sections and an external diameter of > 406,4 mm, of flat-rolled products of iron or steel (excl. products longitudinally arc welded)"},"73051900",{"$f":"Translations!$B$611","v":"Iron or steel products"},{"$f":"IF(E529=\" --- \",\"\",COUNTIF($E$3:E529,E529)&\"_\"&E529)","v":"409_Iron or steel products"},null,"Line pipe of a kind used for oil or gas pipelines, having circular cross-sections and an external diameter of > 406,4 mm, of flat-rolled products of iron or steel (excl. products longitudinally arc welded)"]
["730520000080","7305 20 00",{"$f":"Translations!$B$1217","v":"Casing of a kind used in drilling for oil or gas, having circular cross-sections and an external diameter of > 406,4 mm, of flat-rolled products of iron or steel"},"73052000",{"$f":"Translations!$B$611","v":"Iron or steel products"},{"$f":"IF(E530=\" --- \",\"\",COUNTIF($E$3:E530,E530)&\"_\"&E530)","v":"410_Iron or steel products"},null,"Casing of a kind used in drilling for oil or gas, having circular cross-sections and an external diameter of > 406,4 mm, of flat-rolled products of iron or steel"]
["730531000080","7305 31 00",{"$f":"Translations!$B$1218","v":"Tubes and pipes having circular cross-sections and an external diameter of > 406,4 mm, of iron or steel, longitudinally welded (excl. products of a kind used for oil or gas pipelines or of a kind used in drilling for oil or gas)"},"73053100",{"$f":"Translations!$B$611","v":"Iron or steel products"},{"$f":"IF(E531=\" --- \",\"\",COUNTIF($E$3:E531,E531)&\"_\"&E531)","v":"411_Iron or steel products"},null,"Tubes and pipes having circular cross-sections and an external diameter of > 406,4 mm, of iron or steel, longitudinally welded (excl. products of a kind used for oil or gas pipelines or of a kind used in drilling for oil or gas)"]
["730539000080","7305 39 00",{"$f":"Translations!$B$1219","v":"Tubes and pipes having circular cross-sections and an external diameter of > 406,4 mm, of iron or steel, welded (excl. products longitudinally welded or of a kind used for oil or gas pipelines or of a kind used in drilling for oil or gas)"},"73053900",{"$f":"Translations!$B$611","v":"Iron or steel products"},{"$f":"IF(E532=\" --- \",\"\",COUNTIF($E$3:E532,E532)&\"_\"&E532)","v":"412_Iron or steel products"},null,"Tubes and pipes having circular cross-sections and an external diameter of > 406,4 mm, of iron or steel, welded (excl. products longitudinally welded or of a kind used for oil or gas pipelines or of a kind used in drilling for oil or gas)"]
["730590000080","7305 90 00",{"$f":"Translations!$B$1220","v":"Tubes and pipes having circular cross-sections and an external diameter of > 406,4 mm, of flat-rolled products of iron or steel, welded (excl. welded products or products of a kind used for oil or gas pipelines or of a kind used in drilling for oil or gas)"},"73059000",{"$f":"Translations!$B$611","v":"Iron or steel products"},{"$f":"IF(E533=\" --- \",\"\",COUNTIF($E$3:E533,E533)&\"_\"&E533)","v":"413_Iron or steel products"},null,"Tubes and pipes having circular cross-sections and an external diameter of > 406,4 mm, of flat-rolled products of iron or steel, welded (excl. welded products or products of a kind used for oil or gas pipelines or of a kind used in drilling for oil or gas)"]
["730600000080","7306",{"$f":"Translations!$B$1221","v":"Tubes, pipes and hollow profiles \"e.g., open seam or welded, riveted or similarly closed\", of iron or steel (excl. of cast iron, seamless tubes and pipes and tubes having internal and external circular cross-sections and an external diameter of > 406,4 mm)"},"7306",{"$f":"Translations!$B$611","v":"Iron or steel products"},{"$f":"IF(E534=\" --- \",\"\",COUNTIF($E$3:E534,E534)&\"_\"&E534)","v":"414_Iron or steel products"},null,"Tubes, pipes and hollow profiles \"e.g., open seam or welded, riveted or similarly closed\", of iron or steel (excl. of cast iron, seamless tubes and pipes and tubes having internal and external circular cross-sections and an external diameter of > 406,4 mm)"]
["730611000080","7306 11 00",{"$f":"Translations!$B$1222","v":"Line pipe of a kind used for oil or gas pipelines, welded, of flat-rolled products of stainless steel, of an external diameter of <= 406,4 mm"},"73061100",{"$f":"Translations!$B$611","v":"Iron or steel products"},{"$f":"IF(E535=\" --- \",\"\",COUNTIF($E$3:E535,E535)&\"_\"&E535)","v":"415_Iron or steel products"},null,"Line pipe of a kind used for oil or gas pipelines, welded, of flat-rolled products of stainless steel, of an external diameter of <= 406,4 mm"]
["730619000080","7306 19 00",{"$f":"Translations!$B$1223","v":"Line pipe of a kind used for oil or gas pipelines, welded, of flat-rolled products of iron or steel, of an external diameter of <= 406,4 mm (excl. products of stainless steel or of cast iron)"},"73061900",{"$f":"Translations!$B$611","v":"Iron or steel products"},{"$f":"IF(E536=\" --- \",\"\",COUNTIF($E$3:E536,E536)&\"_\"&E536)","v":"416_Iron or steel products"},null,"Line pipe of a kind used for oil or gas pipelines, welded, of flat-rolled products of iron or steel, of an external diameter of <= 406,4 mm (excl. products of stainless steel or of cast iron)"]
["730621000080","7306 21 00",{"$f":"Translations!$B$1224","v":"Casing and tubing of a kind used in drilling for oil or gas, welded, of flat-rolled products of stainless steel, of an external diameter of <= 406,4 mm"},"73062100",{"$f":"Translations!$B$611","v":"Iron or steel products"},{"$f":"IF(E537=\" --- \",\"\",COUNTIF($E$3:E537,E537)&\"_\"&E537)","v":"417_Iron or steel products"},null,"Casing and tubing of a kind used in drilling for oil or gas, welded, of flat-rolled products of stainless steel, of an external diameter of <= 406,4 mm"]
["730629000080","7306 29 00",{"$f":"Translations!$B$1225","v":"Casing and tubing of a kind used in drilling for oil or gas, welded, of flat-rolled products of iron or steel, of an external diameter of <= 406,4 mm (excl. products of stainless steel or of cast iron)"},"73062900",{"$f":"Translations!$B$611","v":"Iron or steel products"},{"$f":"IF(E538=\" --- \",\"\",COUNTIF($E$3:E538,E538)&\"_\"&E538)","v":"418_Iron or steel products"},null,"Casing and tubing of a kind used in drilling for oil or gas, welded, of flat-rolled products of iron or steel, of an external diameter of <= 406,4 mm (excl. products of stainless steel or of cast iron)"]
["730630000080","7306 30",{"$f":"Translations!$B$1226","v":"Tubes, pipes and hollow profiles, welded, of circular cross-section, of iron or non-alloy steel (excl. products having internal and external circular cross-sections and an external diameter of > 406,4 mm, or line pipe of a kind used for oil or gas pipelines or casing and tubing of a kind used in drilling for oil or gas)"},"730630",{"$f":"Translations!$B$611","v":"Iron or steel products"},{"$f":"IF(E539=\" --- \",\"\",COUNTIF($E$3:E539,E539)&\"_\"&E539)","v":"419_Iron or steel products"},null,"Tubes, pipes and hollow profiles, welded, of circular cross-section, of iron or non-alloy steel (excl. products having internal and external circular cross-sections and an external diameter of > 406,4 mm, or line pipe of a kind used for oil or gas pipelines or casing and tubing of a kind used in drilling for oil or gas)"]
["730630120080","7306 30 12",{"$f":"Translations!$B$1227","v":"Precision tubes, welded, of circular cross-section, of iron or non-alloy steel, cold-drawn or cold-rolled \"cold-reduced\""},"73063012",{"$f":"Translations!$B$611","v":"Iron or steel products"},{"$f":"IF(E540=\" --- \",\"\",COUNTIF($E$3:E540,E540)&\"_\"&E540)","v":"420_Iron or steel products"},null,"Precision tubes, welded, of circular cross-section, of iron or non-alloy steel, cold-drawn or cold-rolled \"cold-reduced\""]
["730630180080","7306 30 18",{"$f":"Translations!$B$1228","v":"Precision tubes, welded, of circular cross-section, of iron or non-alloy steel (excl. cold-drawn or cold-rolled)"},"73063018",{"$f":"Translations!$B$611","v":"Iron or steel products"},{"$f":"IF(E541=\" --- \",\"\",COUNTIF($E$3:E541,E541)&\"_\"&E541)","v":"421_Iron or steel products"},null,"Precision tubes, welded, of circular cross-section, of iron or non-alloy steel (excl. cold-drawn or cold-rolled)"]
["730630410080","7306 30 41",{"$f":"Translations!$B$1229","v":"Threaded or threadable tubes \"gas pipe\", welded, of circular cross-section, of iron or non-alloy steel, plated or coated with zinc"},"73063041",{"$f":"Translations!$B$611","v":"Iron or steel products"},{"$f":"IF(E542=\" --- \",\"\",COUNTIF($E$3:E542,E542)&\"_\"&E542)","v":"422_Iron or steel products"},null,"Threaded or threadable tubes \"gas pipe\", welded, of circular cross-section, of iron or non-alloy steel, plated or coated with zinc"]
["730630490080","7306 30 49",{"$f":"Translations!$B$1230","v":"Threaded or threadable tubes \"gas pipe\", welded, of circular cross-section, of iron or non-alloy steel (excl. products plated or coated with zinc)"},"73063049",{"$f":"Translations!$B$611","v":"Iron or steel products"},{"$f":"IF(E543=\" --- \",\"\",COUNTIF($E$3:E543,E543)&\"_\"&E543)","v":"423_Iron or steel products"},null,"Threaded or threadable tubes \"gas pipe\", welded, of circular cross-section, of iron or non-alloy steel (excl. products plated or coated with zinc)"]
["730630720080","7306 30 72",{"$f":"Translations!$B$1231","v":"Other tubes, pipes and hollow profiles, welded, of circular cross-section, of iron or non-alloy steel, of an external diameter of <= 168,3 mm, plated or coated with zinc (excl. line pipe of a kind used for oil or gas pipelines or casing and tubingof a kind used in drilling for oil or gas)"},"73063072",{"$f":"Translations!$B$611","v":"Iron or steel products"},{"$f":"IF(E544=\" --- \",\"\",COUNTIF($E$3:E544,E544)&\"_\"&E544)","v":"424_Iron or steel products"},null,"Other tubes, pipes and hollow profiles, welded, of circular cross-section, of iron or non-alloy steel, of an external diameter of <= 168,3 mm, plated or coated with zinc (excl. line pipe of a kind used for oil or gas pipelines or casing and tubingof a kind used in drilling for oil or gas)"]
["730630770080","7306 30 77",{"$f":"Translations!$B$1232","v":"Other tubes, pipes and hollow profiles, welded, of circular cross-section, of iron or non-alloy steel of an external diameter of <= 168,3 mm (excl. plated or coated with zinc and line pipe of a kind used for oil or gas pipelines, casing and tubing of a kind used in drilling for oil or gas, precision tubes and threaded or threadable tubes \"gas pipe\")"},"73063077",{"$f":"Translations!$B$611","v":"Iron or steel products"},{"$f":"IF(E545=\" --- \",\"\",COUNTIF($E$3:E545,E545)&\"_\"&E545)","v":"425_Iron or steel products"},null,"Other tubes, pipes and hollow profiles, welded, of circular cross-section, of iron or non-alloy steel of an external diameter of <= 168,3 mm (excl. plated or coated with zinc and line pipe of a kind used for oil or gas pipelines, casing and tubing of a kind used in drilling for oil or gas, precision tubes and threaded or threadable tubes \"gas pipe\")"]
["730630800080","7306 30 80",{"$f":"Translations!$B$1233","v":"Tubes, pipes and hollow profiles, welded, having a circular cross-section, of iron or steel, of an external diameter of > 168,3 mm but <= 406,4 mm (excl. line pipe of a kind used for oil or gas pipelines or casing and tubing of a kind used in drilling for oil or gas, or precision steel tubes, electrical conduit tubes or threaded or threadable tubes \"gas pipe\")"},"73063080",{"$f":"Translations!$B$611","v":"Iron or steel products"},{"$f":"IF(E546=\" --- \",\"\",COUNTIF($E$3:E546,E546)&\"_\"&E546)","v":"426_Iron or steel products"},null,"Tubes, pipes and hollow profiles, welded, having a circular cross-section, of iron or steel, of an external diameter of > 168,3 mm but <= 406,4 mm (excl. line pipe of a kind used for oil or gas pipelines or casing and tubing of a kind used in drilling for oil or gas, or precision steel tubes, electrical conduit tubes or threaded or threadable tubes \"gas pipe\")"]
["730640000080","7306 40",{"$f":"Translations!$B$1234","v":"Tubes, pipes and hollow profiles, welded, of circular cross-section, of stainless steel (excl. products having internal and external circular cross-sections and an external diameter of > 406,4 mm, and products of a kind used for oil or gas pipelines or of a kind used in drilling for oil or gas)"},"730640",{"$f":"Translations!$B$611","v":"Iron or steel products"},{"$f":"IF(E547=\" --- \",\"\",COUNTIF($E$3:E547,E547)&\"_\"&E547)","v":"427_Iron or steel products"},null,"Tubes, pipes and hollow profiles, welded, of circular cross-section, of stainless steel (excl. products having internal and external circular cross-sections and an external diameter of > 406,4 mm, and products of a kind used for oil or gas pipelines or of a kind used in drilling for oil or gas)"]
["730640200080","7306 40 20",{"$f":"Translations!$B$1235","v":"Tubes, pipes and hollow profiles, welded, of circular cross-section, of stainless steel, cold-drawn or cold-rolled \"cold-reduced\" (excl. products having internal and external circular cross-sections and an external diameter of > 406,4 mm, and line pipe of a kind used for oil or gas pipelines or casing and tubing of a kind used in drilling for oil or gas)"},"73064020",{"$f":"Translations!$B$611","v":"Iron or steel products"},{"$f":"IF(E548=\" --- \",\"\",COUNTIF($E$3:E548,E548)&\"_\"&E548)","v":"428_Iron or steel products"},null,"Tubes, pipes and hollow profiles, welded, of circular cross-section, of stainless steel, cold-drawn or cold-rolled \"cold-reduced\" (excl. products having internal and external circular cross-sections and an external diameter of > 406,4 mm, and line pipe of a kind used for oil or gas pipelines or casing and tubing of a kind used in drilling for oil or gas)"]
["730640800080","7306 40 80",{"$f":"Translations!$B$1236","v":"Tubes, pipes and hollow profiles, welded, of circular cross-section, of stainless steel (excl. products cold-drawn or cold-rolled \"cold-reduced\", tubes and pipes having internal and external circular cross-sections and an external diameter of > 406,4 mm, and line pipe of a kind used for oil or gas pipelines or casing and tubing of a kind used in drilling for oil or gas)"},"73064080",{"$f":"Translations!$B$611","v":"Iron or steel products"},{"$f":"IF(E549=\" --- \",\"\",COUNTIF($E$3:E549,E549)&\"_\"&E549)","v":"429_Iron or steel products"},null,"Tubes, pipes and hollow profiles, welded, of circular cross-section, of stainless steel (excl. products cold-drawn or cold-rolled \"cold-reduced\", tubes and pipes having internal and external circular cross-sections and an external diameter of > 406,4 mm, and line pipe of a kind used for oil or gas pipelines or casing and tubing of a kind used in drilling for oil or gas)"]
["730650000080","7306 50",{"$f":"Translations!$B$1237","v":"Tubes, pipes and hollow profiles, welded, of circular cross-section, of alloy steel other than stainless (excl. tubes and pipes having internal and external circular cross-sections and an external diameter of > 406,4 mm, and line pipe of a kind used for oil or gas pipelines or casing and tubing of a kind used in drilling for oil or gas)"},"730650",{"$f":"Translations!$B$611","v":"Iron or steel products"},{"$f":"IF(E550=\" --- \",\"\",COUNTIF($E$3:E550,E550)&\"_\"&E550)","v":"430_Iron or steel products"},null,"Tubes, pipes and hollow profiles, welded, of circular cross-section, of alloy steel other than stainless (excl. tubes and pipes having internal and external circular cross-sections and an external diameter of > 406,4 mm, and line pipe of a kind used for oil or gas pipelines or casing and tubing of a kind used in drilling for oil or gas)"]
["730650210080","7306 50 21",{"$f":"Translations!$B$1238","v":"Precision steel tubes, welded, of circular cross-section, of alloy steel other than stainless, cold-drawn or cold-rolled \"cold-reduced\""},"73065021",{"$f":"Translations!$B$611","v":"Iron or steel products"},{"$f":"IF(E551=\" --- \",\"\",COUNTIF($E$3:E551,E551)&\"_\"&E551)","v":"431_Iron or steel products"},null,"Precision steel tubes, welded, of circular cross-section, of alloy steel other than stainless, cold-drawn or cold-rolled \"cold-reduced\""]
["730650290080","7306 50 29",{"$f":"Translations!$B$1239","v":"Precision steel tubes, welded, of circular cross-section, of alloy steel other than stainless (excl. cold-drawn or cold-rolled)"},"73065029",{"$f":"Translations!$B$611","v":"Iron or steel products"},{"$f":"IF(E552=\" --- \",\"\",COUNTIF($E$3:E552,E552)&\"_\"&E552)","v":"432_Iron or steel products"},null,"Precision steel tubes, welded, of circular cross-section, of alloy steel other than stainless (excl. cold-drawn or cold-rolled)"]
["730650800080","7306 50 80",{"$f":"Translations!$B$1240","v":"Tubes, pipes and hollow profiles, welded, of circular cross-section, of alloy steel other than stainless (excl. tubes and pipes having internal and external circular cross-sections and an external diameter of > 406,4 mm, and line pipe of a kind used for oil or gas pipelines or casing and tubing of a kind used in drilling for oil or gas, and precision steel tubes)"},"73065080",{"$f":"Translations!$B$611","v":"Iron or steel products"},{"$f":"IF(E553=\" --- \",\"\",COUNTIF($E$3:E553,E553)&\"_\"&E553)","v":"433_Iron or steel products"},null,"Tubes, pipes and hollow profiles, welded, of circular cross-section, of alloy steel other than stainless (excl. tubes and pipes having internal and external circular cross-sections and an external diameter of > 406,4 mm, and line pipe of a kind used for oil or gas pipelines or casing and tubing of a kind used in drilling for oil or gas, and precision steel tubes)"]
["730661000080","7306 61",{"$f":"Translations!$B$1241","v":"Tubes and pipes and hollow profiles, welded, of square or rectangular cross-section, of iron or steel"},"730661",{"$f":"Translations!$B$611","v":"Iron or steel products"},{"$f":"IF(E554=\" --- \",\"\",COUNTIF($E$3:E554,E554)&\"_\"&E554)","v":"434_Iron or steel products"},null,"Tubes and pipes and hollow profiles, welded, of square or rectangular cross-section, of iron or steel"]
["730661100080","7306 61 10",{"$f":"Translations!$B$1242","v":"Tubes and pipes and hollow profiles, welded, of square or rectangular cross-section, of stainless steel"},"73066110",{"$f":"Translations!$B$611","v":"Iron or steel products"},{"$f":"IF(E555=\" --- \",\"\",COUNTIF($E$3:E555,E555)&\"_\"&E555)","v":"435_Iron or steel products"},null,"Tubes and pipes and hollow profiles, welded, of square or rectangular cross-section, of stainless steel"]
["730661920080","7306 61 92",{"$f":"Translations!$B$1243","v":"Tubes and pipes and hollow profiles, welded, of square or rectangular cross-section, of iron or steel other than stainless steel, with a wall thickness of <= 2 mm"},"73066192",{"$f":"Translations!$B$611","v":"Iron or steel products"},{"$f":"IF(E556=\" --- \",\"\",COUNTIF($E$3:E556,E556)&\"_\"&E556)","v":"436_Iron or steel products"},null,"Tubes and pipes and hollow profiles, welded, of square or rectangular cross-section, of iron or steel other than stainless steel, with a wall thickness of <= 2 mm"]
["730661990080","7306 61 99",{"$f":"Translations!$B$1244","v":"Tubes and pipes and hollow profiles, welded, of square or rectangular cross-section, of iron or steel other than stainless steel, with a wall thickness of > 2 mm"},"73066199",{"$f":"Translations!$B$611","v":"Iron or steel products"},{"$f":"IF(E557=\" --- \",\"\",COUNTIF($E$3:E557,E557)&\"_\"&E557)","v":"437_Iron or steel products"},null,"Tubes and pipes and hollow profiles, welded, of square or rectangular cross-section, of iron or steel other than stainless steel, with a wall thickness of > 2 mm"]
["730669000080","7306 69",{"$f":"Translations!$B$1245","v":"Tubes, pipes and hollow profiles, welded, of non-circular cross-section, of iron or steel (excl. tubes and pipes having internal and external circular cross-sections and an external diameter of > 406,4 mm, line pipe of a kind used for oil or gas pipelines or casing and tubing of a kind used in drilling for oil or gas, and tubes and pipes and hollow profiles of square or rectangular cross-section)"},"730669",{"$f":"Translations!$B$611","v":"Iron or steel products"},{"$f":"IF(E558=\" --- \",\"\",COUNTIF($E$3:E558,E558)&\"_\"&E558)","v":"438_Iron or steel products"},null,"Tubes, pipes and hollow profiles, welded, of non-circular cross-section, of iron or steel (excl. tubes and pipes having internal and external circular cross-sections and an external diameter of > 406,4 mm, line pipe of a kind used for oil or gas pipelines or casing and tubing of a kind used in drilling for oil or gas, and tubes and pipes and hollow profiles of square or rectangular cross-section)"]
["730669100080","7306 69 10",{"$f":"Translations!$B$1246","v":"Tubes, pipes and hollow profiles, welded, of non-circular cross-section, of stainless steel (excl. tubes and pipes having internal and external circular cross-sections and an external diameter of > 406,4 mm, line pipe of a kind used for oil or gas pipelines or casing and tubing of a kind used in drilling for oil or gas, and tubes and pipes and hollow profiles of square or rectangular cross-section)"},"73066910",{"$f":"Translations!$B$611","v":"Iron or steel products"},{"$f":"IF(E559=\" --- \",\"\",COUNTIF($E$3:E559,E559)&\"_\"&E559)","v":"439_Iron or steel products"},null,"Tubes, pipes and hollow profiles, welded, of non-circular cross-section, of stainless steel (excl. tubes and pipes having internal and external circular cross-sections and an external diameter of > 406,4 mm, line pipe of a kind used for oil or gas pipelines or casing and tubing of a kind used in drilling for oil or gas, and tubes and pipes and hollow profiles of square or rectangular cross-section)"]
["730669900080","7306 69 90",{"$f":"Translations!$B$1247","v":"Tubes, pipes and hollow profiles, welded, of non-circular cross-section, of iron or steel other than stainless steel (excl. tubes and pipes having internal and external circular cross-sections and an external diameter of > 406,4 mm, line pipe of a kind used for oil or gas pipelines or casing and tubing of a kind used in drilling for oil or gas, and tubes and pipes and hollow profiles of square or rectangular cross-section)"},"73066990",{"$f":"Translations!$B$611","v":"Iron or steel products"},{"$f":"IF(E560=\" --- \",\"\",COUNTIF($E$3:E560,E560)&\"_\"&E560)","v":"440_Iron or steel products"},null,"Tubes, pipes and hollow profiles, welded, of non-circular cross-section, of iron or steel other than stainless steel (excl. tubes and pipes having internal and external circular cross-sections and an external diameter of > 406,4 mm, line pipe of a kind used for oil or gas pipelines or casing and tubing of a kind used in drilling for oil or gas, and tubes and pipes and hollow profiles of square or rectangular cross-section)"]
["730690000080","7306 90 00",{"$f":"Translations!$B$1248","v":"Tubes, pipes and hollow profiles \"e.g., open seam, riveted or similarly closed\", of iron or steel (excl. of cast iron, seamless or welded tubes and pipes and tubes and pipes having internal and external circular cross-sections and an external diameter of > 406,4 mm)"},"73069000",{"$f":"Translations!$B$611","v":"Iron or steel products"},{"$f":"IF(E561=\" --- \",\"\",COUNTIF($E$3:E561,E561)&\"_\"&E561)","v":"441_Iron or steel products"},null,"Tubes, pipes and hollow profiles \"e.g., open seam, riveted or similarly closed\", of iron or steel (excl. of cast iron, seamless or welded tubes and pipes and tubes and pipes having internal and external circular cross-sections and an external diameter of > 406,4 mm)"]
["730700000080","7307",{"$f":"Translations!$B$1249","v":"Tube or pipe fittings \"e.g. couplings, elbows, sleeves\", of iron or steel"},"7307",{"$f":"Translations!$B$611","v":"Iron or steel products"},{"$f":"IF(E562=\" --- \",\"\",COUNTIF($E$3:E562,E562)&\"_\"&E562)","v":"442_Iron or steel products"},null,"Tube or pipe fittings \"e.g. couplings, elbows, sleeves\", of iron or steel"]
["730711000080","7307 11",{"$f":"Translations!$B$1250","v":"Tube or pipe fittings of non-malleable cast iron"},"730711",{"$f":"Translations!$B$611","v":"Iron or steel products"},{"$f":"IF(E563=\" --- \",\"\",COUNTIF($E$3:E563,E563)&\"_\"&E563)","v":"443_Iron or steel products"},null,"Tube or pipe fittings of non-malleable cast iron"]
["730711100080","7307 11 10",{"$f":"Translations!$B$1251","v":"Tube or pipe fittings of non-malleable cast iron, of a kind used in pressure systems"},"73071110",{"$f":"Translations!$B$611","v":"Iron or steel products"},{"$f":"IF(E564=\" --- \",\"\",COUNTIF($E$3:E564,E564)&\"_\"&E564)","v":"444_Iron or steel products"},null,"Tube or pipe fittings of non-malleable cast iron, of a kind used in pressure systems"]
["730711900080","7307 11 90",{"$f":"Translations!$B$1252","v":"Tube or pipe fittings of non-malleable cast iron (excl. products of a kind used in pressure systems)"},"73071190",{"$f":"Translations!$B$611","v":"Iron or steel products"},{"$f":"IF(E565=\" --- \",\"\",COUNTIF($E$3:E565,E565)&\"_\"&E565)","v":"445_Iron or steel products"},null,"Tube or pipe fittings of non-malleable cast iron (excl. products of a kind used in pressure systems)"]
["730719000080","7307 19",{"$f":"Translations!$B$1253","v":"Cast tube or pipe fittings of iron or steel (excl. products of non-malleable cast iron)"},"730719",{"$f":"Translations!$B$611","v":"Iron or steel products"},{"$f":"IF(E566=\" --- \",\"\",COUNTIF($E$3:E566,E566)&\"_\"&E566)","v":"446_Iron or steel products"},null,"Cast tube or pipe fittings of iron or steel (excl. products of non-malleable cast iron)"]
["730719100080","7307 19 10",{"$f":"Translations!$B$1254","v":"Tube or pipe fittings of cast iron (excl. of non-malleable)"},"73071910",{"$f":"Translations!$B$611","v":"Iron or steel products"},{"$f":"IF(E567=\" --- \",\"\",COUNTIF($E$3:E567,E567)&\"_\"&E567)","v":"447_Iron or steel products"},null,"Tube or pipe fittings of cast iron (excl. of non-malleable)"]
["730719900080","7307 19 90",{"$f":"Translations!$B$1255","v":"Cast tube or pipe fittings of steel"},"73071990",{"$f":"Translations!$B$611","v":"Iron or steel products"},{"$f":"IF(E568=\" --- \",\"\",COUNTIF($E$3:E568,E568)&\"_\"&E568)","v":"448_Iron or steel products"},null,"Cast tube or pipe fittings of steel"]
["730721000080","7307 21 00",{"$f":"Translations!$B$1256","v":"Flanges of stainless steel (excl. cast products)"},"73072100",{"$f":"Translations!$B$611","v":"Iron or steel products"},{"$f":"IF(E569=\" --- \",\"\",COUNTIF($E$3:E569,E569)&\"_\"&E569)","v":"449_Iron or steel products"},null,"Flanges of stainless steel (excl. cast products)"]
["730722000080","7307 22",{"$f":"Translations!$B$1257","v":"Threaded elbows, bends and sleeves of stainless steel (excl. cast products)"},"730722",{"$f":"Translations!$B$611","v":"Iron or steel products"},{"$f":"IF(E570=\" --- \",\"\",COUNTIF($E$3:E570,E570)&\"_\"&E570)","v":"450_Iron or steel products"},null,"Threaded elbows, bends and sleeves of stainless steel (excl. cast products)"]
["730722100080","7307 22 10",{"$f":"Translations!$B$1258","v":"Sleeves, of stainless steel, threaded (excl. cast products)"},"73072210",{"$f":"Translations!$B$611","v":"Iron or steel products"},{"$f":"IF(E571=\" --- \",\"\",COUNTIF($E$3:E571,E571)&\"_\"&E571)","v":"451_Iron or steel products"},null,"Sleeves, of stainless steel, threaded (excl. cast products)"]
["730722900080","7307 22 90",{"$f":"Translations!$B$1259","v":"Elbows and bends, of stainless steel, threaded (excl. cast products)"},"73072290",{"$f":"Translations!$B$611","v":"Iron or steel products"},{"$f":"IF(E572=\" --- \",\"\",COUNTIF($E$3:E572,E572)&\"_\"&E572)","v":"452_Iron or steel products"},null,"Elbows and bends, of stainless steel, threaded (excl. cast products)"]
["730723000080","7307 23",{"$f":"Translations!$B$1260","v":"Butt welding tube or pipe fittings of stainless steel (excl. cast products)"},"730723",{"$f":"Translations!$B$611","v":"Iron or steel products"},{"$f":"IF(E573=\" --- \",\"\",COUNTIF($E$3:E573,E573)&\"_\"&E573)","v":"453_Iron or steel products"},null,"Butt welding tube or pipe fittings of stainless steel (excl. cast products)"]
["730723100080","7307 23 10",{"$f":"Translations!$B$1261","v":"Butt welding elbows and bends of stainless steel (excl. cast products)"},"73072310",{"$f":"Translations!$B$611","v":"Iron or steel products"},{"$f":"IF(E574=\" --- \",\"\",COUNTIF($E$3:E574,E574)&\"_\"&E574)","v":"454_Iron or steel products"},null,"Butt welding elbows and bends of stainless steel (excl. cast products)"]
["730723900080","7307 23 90",{"$f":"Translations!$B$1262","v":"Butt welding tube or pipe fittings of stainless steel (excl. cast products and elbows and bends)"},"73072390",{"$f":"Translations!$B$611","v":"Iron or steel products"},{"$f":"IF(E575=\" --- \",\"\",COUNTIF($E$3:E575,E575)&\"_\"&E575)","v":"455_Iron or steel products"},null,"Butt welding tube or pipe fittings of stainless steel (excl. cast products and elbows and bends)"]
["730729000080","7307 29",{"$f":"Translations!$B$1263","v":"Tube or pipe fittings of stainless steel (excl. cast products, flanges, threaded elbows, bends and sleeves and butt weldings fittings)"},"730729",{"$f":"Translations!$B$611","v":"Iron or steel products"},{"$f":"IF(E576=\" --- \",\"\",COUNTIF($E$3:E576,E576)&\"_\"&E576)","v":"456_Iron or steel products"},null,"Tube or pipe fittings of stainless steel (excl. cast products, flanges, threaded elbows, bends and sleeves and butt weldings fittings)"]
["730729100080","7307 29 10",{"$f":"Translations!$B$1264","v":"Threaded tube or pipe fittings of stainless steel (excl. cast products, flanges, elbows, bends and sleeves)"},"73072910",{"$f":"Translations!$B$611","v":"Iron or steel products"},{"$f":"IF(E577=\" --- \",\"\",COUNTIF($E$3:E577,E577)&\"_\"&E577)","v":"457_Iron or steel products"},null,"Threaded tube or pipe fittings of stainless steel (excl. cast products, flanges, elbows, bends and sleeves)"]
["730729800080","7307 29 80",{"$f":"Translations!$B$1265","v":"Tube or pipe fittings of stainless steel (excl. cast, threaded, butt welding fittings and flanges)"},"73072980",{"$f":"Translations!$B$611","v":"Iron or steel products"},{"$f":"IF(E578=\" --- \",\"\",COUNTIF($E$3:E578,E578)&\"_\"&E578)","v":"458_Iron or steel products"},null,"Tube or pipe fittings of stainless steel (excl. cast, threaded, butt welding fittings and flanges)"]
["730791000080","7307 91 00",{"$f":"Translations!$B$1266","v":"Flanges of iron or steel (excl. cast or stainless products)"},"73079100",{"$f":"Translations!$B$611","v":"Iron or steel products"},{"$f":"IF(E579=\" --- \",\"\",COUNTIF($E$3:E579,E579)&\"_\"&E579)","v":"459_Iron or steel products"},null,"Flanges of iron or steel (excl. cast or stainless products)"]
["730792000080","7307 92",{"$f":"Translations!$B$1267","v":"Threaded elbows, bends and sleeves, of stainless steel (excl. cast or stainless products)"},"730792",{"$f":"Translations!$B$611","v":"Iron or steel products"},{"$f":"IF(E580=\" --- \",\"\",COUNTIF($E$3:E580,E580)&\"_\"&E580)","v":"460_Iron or steel products"},null,"Threaded elbows, bends and sleeves, of stainless steel (excl. cast or stainless products)"]
["730792100080","7307 92 10",{"$f":"Translations!$B$1268","v":"Sleeves of iron or steel, threaded (excl. cast or of stainless steel)"},"73079210",{"$f":"Translations!$B$611","v":"Iron or steel products"},{"$f":"IF(E581=\" --- \",\"\",COUNTIF($E$3:E581,E581)&\"_\"&E581)","v":"461_Iron or steel products"},null,"Sleeves of iron or steel, threaded (excl. cast or of stainless steel)"]
["730792900080","7307 92 90",{"$f":"Translations!$B$1269","v":"Elbows and bends, of iron or steel, threaded (excl. cast or of stainless steel)"},"73079290",{"$f":"Translations!$B$611","v":"Iron or steel products"},{"$f":"IF(E582=\" --- \",\"\",COUNTIF($E$3:E582,E582)&\"_\"&E582)","v":"462_Iron or steel products"},null,"Elbows and bends, of iron or steel, threaded (excl. cast or of stainless steel)"]
["730793000080","7307 93",{"$f":"Translations!$B$1270","v":"Butt welding fittings of iron or steel (excl. cast iron or stainless steel products, and flanges)"},"730793",{"$f":"Translations!$B$611","v":"Iron or steel products"},{"$f":"IF(E583=\" --- \",\"\",COUNTIF($E$3:E583,E583)&\"_\"&E583)","v":"463_Iron or steel products"},null,"Butt welding fittings of iron or steel (excl. cast iron or stainless steel products, and flanges)"]
["730793110080","7307 93 11",{"$f":"Translations!$B$1271","v":"Butt welding elbows and bends, of iron or steel, with greatest external diameter <= 609,6 mm (excl. cast iron or stainless steel products)"},"73079311",{"$f":"Translations!$B$611","v":"Iron or steel products"},{"$f":"IF(E584=\" --- \",\"\",COUNTIF($E$3:E584,E584)&\"_\"&E584)","v":"464_Iron or steel products"},null,"Butt welding elbows and bends, of iron or steel, with greatest external diameter <= 609,6 mm (excl. cast iron or stainless steel products)"]
["730793190080","7307 93 19",{"$f":"Translations!$B$1272","v":"Butt welding fittings of iron or steel, with greatest external diameter <= 609,6 mm (excl. cast iron or stainless steel products, elbows, bends and flanges)"},"73079319",{"$f":"Translations!$B$611","v":"Iron or steel products"},{"$f":"IF(E585=\" --- \",\"\",COUNTIF($E$3:E585,E585)&\"_\"&E585)","v":"465_Iron or steel products"},null,"Butt welding fittings of iron or steel, with greatest external diameter <= 609,6 mm (excl. cast iron or stainless steel products, elbows, bends and flanges)"]
["730793910080","7307 93 91",{"$f":"Translations!$B$1273","v":"Butt welding elbows and bends, of iron or steel, with greatest external diameter > 609,6 mm (excl. cast iron or stainless steel products)"},"73079391",{"$f":"Translations!$B$611","v":"Iron or steel products"},{"$f":"IF(E586=\" --- \",\"\",COUNTIF($E$3:E586,E586)&\"_\"&E586)","v":"466_Iron or steel products"},null,"Butt welding elbows and bends, of iron or steel, with greatest external diameter > 609,6 mm (excl. cast iron or stainless steel products)"]
["730793990080","7307 93 99",{"$f":"Translations!$B$1274","v":"Butt welding fittings of iron or steel, with greatest external diameter > 609,6 mm (excl. cast iron or stainless steel products, elbows, bends and flanges)"},{"$f":"SUBSTITUTE(B587,\" \",\"\")","v":"73079399"},{"$f":"Translations!$B$611","v":"Iron or steel products"},{"$f":"IF(E587=\" --- \",\"\",COUNTIF($E$3:E587,E587)&\"_\"&E587)","v":"467_Iron or steel products"},null,"Butt welding fittings of iron or steel, with greatest external diameter > 609,6 mm (excl. cast iron or stainless steel products, elbows, bends and flanges)"]
["730799000080","7307 99",{"$f":"Translations!$B$1275","v":"Tube or pipe fittings, of iron or steel (excl. cast iron or stainless steel products; flanges; threaded elbows, bends and sleeves; butt welding fittings)"},"730799",{"$f":"Translations!$B$611","v":"Iron or steel products"},{"$f":"IF(E588=\" --- \",\"\",COUNTIF($E$3:E588,E588)&\"_\"&E588)","v":"468_Iron or steel products"},null,"Tube or pipe fittings, of iron or steel (excl. cast iron or stainless steel products; flanges; threaded elbows, bends and sleeves; butt welding fittings)"]
["730799100080","7307 99 10",{"$f":"Translations!$B$1276","v":"Threaded tube or pipe fittings, of iron or steel (excl. cast iron or stainless steel products, flanges, elbows, bends and sleeves)"},"73079910",{"$f":"Translations!$B$611","v":"Iron or steel products"},{"$f":"IF(E589=\" --- \",\"\",COUNTIF($E$3:E589,E589)&\"_\"&E589)","v":"469_Iron or steel products"},null,"Threaded tube or pipe fittings, of iron or steel (excl. cast iron or stainless steel products, flanges, elbows, bends and sleeves)"]
["730799800080","7307 99 80",{"$f":"Translations!$B$1277","v":"Tube or pipe fittings, of iron or steel (excl. of cast iron or stainless steel, threaded, butt welding fittings, and flanges)"},"73079980",{"$f":"Translations!$B$611","v":"Iron or steel products"},{"$f":"IF(E590=\" --- \",\"\",COUNTIF($E$3:E590,E590)&\"_\"&E590)","v":"470_Iron or steel products"},null,"Tube or pipe fittings, of iron or steel (excl. of cast iron or stainless steel, threaded, butt welding fittings, and flanges)"]
["730800000080","7308",{"$f":"Translations!$B$1278","v":"Structures and parts of structures \"e.g., bridges and bridge-sections, lock-gates, towers, lattice masts, roofs, roofing frameworks, doors and windows and their frames and thresholds for doors, shutters, balustrades, pillars and columns\", of iron or steel; plates, rods, angles, shapes, sections, tubes and the like, prepared for use in structures, of iron or steel (excl. prefabricated buildings of heading 9406)"},"7308",{"$f":"Translations!$B$611","v":"Iron or steel products"},{"$f":"IF(E591=\" --- \",\"\",COUNTIF($E$3:E591,E591)&\"_\"&E591)","v":"471_Iron or steel products"},null,"Structures and parts of structures \"e.g., bridges and bridge-sections, lock-gates, towers, lattice masts, roofs, roofing frameworks, doors and windows and their frames and thresholds for doors, shutters, balustrades, pillars and columns\", of iron or steel; plates, rods, angles, shapes, sections, tubes and the like, prepared for use in structures, of iron or steel (excl. prefabricated buildings of heading 9406)"]
["730810000080","7308 10 00",{"$f":"Translations!$B$1279","v":"Bridges and bridge-sections, of iron or steel"},"73081000",{"$f":"Translations!$B$611","v":"Iron or steel products"},{"$f":"IF(E592=\" --- \",\"\",COUNTIF($E$3:E592,E592)&\"_\"&E592)","v":"472_Iron or steel products"},null,"Bridges and bridge-sections, of iron or steel"]
["730820000080","7308 20 00",{"$f":"Translations!$B$1280","v":"Towers and lattice masts, of iron or steel"},"73082000",{"$f":"Translations!$B$611","v":"Iron or steel products"},{"$f":"IF(E593=\" --- \",\"\",COUNTIF($E$3:E593,E593)&\"_\"&E593)","v":"473_Iron or steel products"},null,"Towers and lattice masts, of iron or steel"]
["730830000080","7308 30 00",{"$f":"Translations!$B$1281","v":"Doors, windows and their frames and thresholds for doors, of iron or steel"},"73083000",{"$f":"Translations!$B$611","v":"Iron or steel products"},{"$f":"IF(E594=\" --- \",\"\",COUNTIF($E$3:E594,E594)&\"_\"&E594)","v":"474_Iron or steel products"},null,"Doors, windows and their frames and thresholds for doors, of iron or steel"]
["730840000080","7308 40 00",{"$f":"Translations!$B$1282","v":"Equipment for scaffolding, shuttering, propping or pit-propping (excl. composite sheetpiling products and formwork panels for poured-in-place concrete, which have the characteristics of moulds)"},"73084000",{"$f":"Translations!$B$611","v":"Iron or steel products"},{"$f":"IF(E595=\" --- \",\"\",COUNTIF($E$3:E595,E595)&\"_\"&E595)","v":"475_Iron or steel products"},null,"Equipment for scaffolding, shuttering, propping or pit-propping (excl. composite sheetpiling products and formwork panels for poured-in-place concrete, which have the characteristics of moulds)"]
["730890000080","7308 90",{"$f":"Translations!$B$1283","v":"Structures and parts of structures, of iron or steel, n.e.s. (excl. bridges and bridge-sections, towers and lattice masts, doors and windows and their frames, thresholds for doors, props and similar equipment for scaffolding, shuttering, propping or pit-propping)"},"730890",{"$f":"Translations!$B$611","v":"Iron or steel products"},{"$f":"IF(E596=\" --- \",\"\",COUNTIF($E$3:E596,E596)&\"_\"&E596)","v":"476_Iron or steel products"},null,"Structures and parts of structures, of iron or steel, n.e.s. (excl. bridges and bridge-sections, towers and lattice masts, doors and windows and their frames, thresholds for doors, props and similar equipment for scaffolding, shuttering, propping or pit-propping)"]
["730890510080","7308 90 51",{"$f":"Translations!$B$1284","v":"Panels comprising two walls of profiled \"ribbed\" sheet, of iron or steel, with an insulating core"},"73089051",{"$f":"Translations!$B$611","v":"Iron or steel products"},{"$f":"IF(E597=\" --- \",\"\",COUNTIF($E$3:E597,E597)&\"_\"&E597)","v":"477_Iron or steel products"},null,"Panels comprising two walls of profiled \"ribbed\" sheet, of iron or steel, with an insulating core"]
["730890590080","7308 90 59",{"$f":"Translations!$B$1285","v":"Structures and parts of structures, of iron or steel, solely or principally of sheet, n.e.s. (excl. doors and windows and their frames, and panels comprising two walls of profiled \"ribbed\" sheet, of iron or steel, with an insulating core)"},"73089059",{"$f":"Translations!$B$611","v":"Iron or steel products"},{"$f":"IF(E598=\" --- \",\"\",COUNTIF($E$3:E598,E598)&\"_\"&E598)","v":"478_Iron or steel products"},null,"Structures and parts of structures, of iron or steel, solely or principally of sheet, n.e.s. (excl. doors and windows and their frames, and panels comprising two walls of profiled \"ribbed\" sheet, of iron or steel, with an insulating core)"]
["730890980080","7308 90 98",{"$f":"Translations!$B$1286","v":"Structures and parts of structures of iron or steel, n.e.s. (excl. bridges and bridge-sections; towers; lattice masts; doors, windows and their frames and thresholds; equipment for scaffolding, shuttering, propping or pit-propping, and products made principally of sheet)"},"73089098",{"$f":"Translations!$B$611","v":"Iron or steel products"},{"$f":"IF(E599=\" --- \",\"\",COUNTIF($E$3:E599,E599)&\"_\"&E599)","v":"479_Iron or steel products"},null,"Structures and parts of structures of iron or steel, n.e.s. (excl. bridges and bridge-sections; towers; lattice masts; doors, windows and their frames and thresholds; equipment for scaffolding, shuttering, propping or pit-propping, and products made principally of sheet)"]
["730900000080","7309 00",{"$f":"Translations!$B$1287","v":"Reservoirs, tanks, vats and similar containers, of iron or steel, for any material \"other than compressed or liquefied gas\", of a capacity of > 300 l, not fitted with mechanical or thermal equipment, whether or not lined or heat-insulated (excl. containers specifically constructed or equipped for one or more types of transport)"},"730900",{"$f":"Translations!$B$611","v":"Iron or steel products"},{"$f":"IF(E600=\" --- \",\"\",COUNTIF($E$3:E600,E600)&\"_\"&E600)","v":"480_Iron or steel products"},null,"Reservoirs, tanks, vats and similar containers, of iron or steel, for any material \"other than compressed or liquefied gas\", of a capacity of > 300 l, not fitted with mechanical or thermal equipment, whether or not lined or heat-insulated (excl. containers specifically constructed or equipped for one or more types of transport)"]
["730900100080","7309 00 10",{"$f":"Translations!$B$1288","v":"Reservoirs, tanks, vats and similar containers, of iron or steel, for gases other than compressed or liquefied gas, of a capacity of > 300 l (excl. containers fitted with mechanical or thermal equipment and containers specifically constructed or equipped for one or more types of transport)"},"73090010",{"$f":"Translations!$B$611","v":"Iron or steel products"},{"$f":"IF(E601=\" --- \",\"\",COUNTIF($E$3:E601,E601)&\"_\"&E601)","v":"481_Iron or steel products"},null,"Reservoirs, tanks, vats and similar containers, of iron or steel, for gases other than compressed or liquefied gas, of a capacity of > 300 l (excl. containers fitted with mechanical or thermal equipment and containers specifically constructed or equipped for one or more types of transport)"]
["730900300080","7309 00 30",{"$f":"Translations!$B$1289","v":"Reservoirs, tanks, vats and similar containers, of iron or steel, for liquids, lined or heat-insulated and of a capacity of > 300 l (excl. containers fitted with mechanical or thermal equipment and containers specifically constructed or equipped for one or more types of transport)"},"73090030",{"$f":"Translations!$B$611","v":"Iron or steel products"},{"$f":"IF(E602=\" --- \",\"\",COUNTIF($E$3:E602,E602)&\"_\"&E602)","v":"482_Iron or steel products"},null,"Reservoirs, tanks, vats and similar containers, of iron or steel, for liquids, lined or heat-insulated and of a capacity of > 300 l (excl. containers fitted with mechanical or thermal equipment and containers specifically constructed or equipped for one or more types of transport)"]
["730900510080","7309 00 51",{"$f":"Translations!$B$1290","v":"Reservoirs, tanks, vats and similar containers, of iron or steel, for liquids, of a capacity of > 100.000 l (excl. containers lined or heat-insulated or fitted with mechanical or thermal equipment and containers specifically constructed or equipped for one or more types of transport)"},"73090051",{"$f":"Translations!$B$611","v":"Iron or steel products"},{"$f":"IF(E603=\" --- \",\"\",COUNTIF($E$3:E603,E603)&\"_\"&E603)","v":"483_Iron or steel products"},null,"Reservoirs, tanks, vats and similar containers, of iron or steel, for liquids, of a capacity of > 100.000 l (excl. containers lined or heat-insulated or fitted with mechanical or thermal equipment and containers specifically constructed or equipped for one or more types of transport)"]
["730900590080","7309 00 59",{"$f":"Translations!$B$1291","v":"Reservoirs, tanks, vats and similar containers, of iron or steel, for liquids, of a capacity of <= 100.000 l but > 300 l (excl. containers lined or heat-insulated or fitted with mechanical or thermal equipment and containers specifically constructed or equipped for one or more types of transport)"},"73090059",{"$f":"Translations!$B$611","v":"Iron or steel products"},{"$f":"IF(E604=\" --- \",\"\",COUNTIF($E$3:E604,E604)&\"_\"&E604)","v":"484_Iron or steel products"},null,"Reservoirs, tanks, vats and similar containers, of iron or steel, for liquids, of a capacity of <= 100.000 l but > 300 l (excl. containers lined or heat-insulated or fitted with mechanical or thermal equipment and containers specifically constructed or equipped for one or more types of transport)"]
["730900900080","7309 00 90",{"$f":"Translations!$B$1292","v":"Reservoirs, tanks, vats and similar containers, of iron or steel, for solids, of a capacity of > 300 l (excl. containers lined or heat-insulated or fitted with mechanical or thermal equipment and containers specifically constructed or equipped for one or more types of transport)"},"73090090",{"$f":"Translations!$B$611","v":"Iron or steel products"},{"$f":"IF(E605=\" --- \",\"\",COUNTIF($E$3:E605,E605)&\"_\"&E605)","v":"485_Iron or steel products"},null,"Reservoirs, tanks, vats and similar containers, of iron or steel, for solids, of a capacity of > 300 l (excl. containers lined or heat-insulated or fitted with mechanical or thermal equipment and containers specifically constructed or equipped for one or more types of transport)"]
["731000000080","7310",{"$f":"Translations!$B$1293","v":"Tanks, casks, drums, cans, boxes and similar containers, of iron or steel, for any material \"other than compressed or liquefied gas\", of a capacity of <= 300 l, not fitted with mechanical or thermal equipment, whether or not lined or heat-insulated, n.e.s."},"7310",{"$f":"Translations!$B$611","v":"Iron or steel products"},{"$f":"IF(E606=\" --- \",\"\",COUNTIF($E$3:E606,E606)&\"_\"&E606)","v":"486_Iron or steel products"},null,"Tanks, casks, drums, cans, boxes and similar containers, of iron or steel, for any material \"other than compressed or liquefied gas\", of a capacity of <= 300 l, not fitted with mechanical or thermal equipment, whether or not lined or heat-insulated, n.e.s."]
["731010000080","7310 10 00",{"$f":"Translations!$B$1294","v":"Tanks, casks, drums, cans, boxes and similar containers, of iron or steel, for any material, of a capacity of >= 50 l but <= 300 l, n.e.s. (excl. containers for compressed or liquefied gas, or containers fitted with mechanical or thermal equipment)"},"73101000",{"$f":"Translations!$B$611","v":"Iron or steel products"},{"$f":"IF(E607=\" --- \",\"\",COUNTIF($E$3:E607,E607)&\"_\"&E607)","v":"487_Iron or steel products"},null,"Tanks, casks, drums, cans, boxes and similar containers, of iron or steel, for any material, of a capacity of >= 50 l but <= 300 l, n.e.s. (excl. containers for compressed or liquefied gas, or containers fitted with mechanical or thermal equipment)"]
["731021000080","7310 21",{"$f":"Translations!$B$1295","v":"Cans of iron or steel, of a capacity of < 50 l, which are to be closed by soldering or crimping (excl. containers for compressed or liquefied gas)"},"731021",{"$f":"Translations!$B$611","v":"Iron or steel products"},{"$f":"IF(E608=\" --- \",\"\",COUNTIF($E$3:E608,E608)&\"_\"&E608)","v":"488_Iron or steel products"},null,"Cans of iron or steel, of a capacity of < 50 l, which are to be closed by soldering or crimping (excl. containers for compressed or liquefied gas)"]
["731021110080","7310 21 11",{"$f":"Translations!$B$1296","v":"Cans of iron or steel, of a capacity of < 50 l, which are to be closed by soldering or crimping, of a kind used for preserving food"},"73102111",{"$f":"Translations!$B$611","v":"Iron or steel products"},{"$f":"IF(E609=\" --- \",\"\",COUNTIF($E$3:E609,E609)&\"_\"&E609)","v":"489_Iron or steel products"},null,"Cans of iron or steel, of a capacity of < 50 l, which are to be closed by soldering or crimping, of a kind used for preserving food"]
["731021190080","7310 21 19",{"$f":"Translations!$B$1297","v":"Cans of iron or steel, of a capacity of < 50 l, which are to be closed by soldering or crimping, of a kind used for preserving drink"},"73102119",{"$f":"Translations!$B$611","v":"Iron or steel products"},{"$f":"IF(E610=\" --- \",\"\",COUNTIF($E$3:E610,E610)&\"_\"&E610)","v":"490_Iron or steel products"},null,"Cans of iron or steel, of a capacity of < 50 l, which are to be closed by soldering or crimping, of a kind used for preserving drink"]
["731021910080","7310 21 91",{"$f":"Translations!$B$1298","v":"Cans of iron or steel, of a capacity of < 50 l, which are to be closed by soldering or crimping, of a wall thickness of < 0,5 mm (excl. cans for compressed or liquefied gas, and cans of a kind used for preserving food and drink)"},"73102191",{"$f":"Translations!$B$611","v":"Iron or steel products"},{"$f":"IF(E611=\" --- \",\"\",COUNTIF($E$3:E611,E611)&\"_\"&E611)","v":"491_Iron or steel products"},null,"Cans of iron or steel, of a capacity of < 50 l, which are to be closed by soldering or crimping, of a wall thickness of < 0,5 mm (excl. cans for compressed or liquefied gas, and cans of a kind used for preserving food and drink)"]
["731021990080","7310 21 99",{"$f":"Translations!$B$1299","v":"Cans of iron or steel, of a capacity of < 50 l, which are to be closed by soldering or crimping, of a wall thickness of >= 0,5 mm (excl. cans for compressed or liquefied gas, and cans of a kind used for preserving food and drink)"},"73102199",{"$f":"Translations!$B$611","v":"Iron or steel products"},{"$f":"IF(E612=\" --- \",\"\",COUNTIF($E$3:E612,E612)&\"_\"&E612)","v":"492_Iron or steel products"},null,"Cans of iron or steel, of a capacity of < 50 l, which are to be closed by soldering or crimping, of a wall thickness of >= 0,5 mm (excl. cans for compressed or liquefied gas, and cans of a kind used for preserving food and drink)"]
["731029000080","7310 29",{"$f":"Translations!$B$1300","v":"Tanks, casks, drums, cans, boxes and similar containers, of iron or steel, for any material, of a capacity of < 50 l, n.e.s. (excl. containers for compressed or liquefied gas, or containers fitted with mechanical or thermal equipment, and cans which are to be closed by soldering or crimping)"},"731029",{"$f":"Translations!$B$611","v":"Iron or steel products"},{"$f":"IF(E613=\" --- \",\"\",COUNTIF($E$3:E613,E613)&\"_\"&E613)","v":"493_Iron or steel products"},null,"Tanks, casks, drums, cans, boxes and similar containers, of iron or steel, for any material, of a capacity of < 50 l, n.e.s. (excl. containers for compressed or liquefied gas, or containers fitted with mechanical or thermal equipment, and cans which are to be closed by soldering or crimping)"]
["731029100080","7310 29 10",{"$f":"Translations!$B$1301","v":"Tanks, casks, drums, cans, boxes and similar containers, of iron or steel, for any material, of a capacity of < 50 l and of a wall thickness of < 0,5 mm, n.e.s. (excl. containers for compressed or liquefied gas, or containers fitted with mechanical or thermal equipment, and cans which are to be closed by soldering or crimping)"},"73102910",{"$f":"Translations!$B$611","v":"Iron or steel products"},{"$f":"IF(E614=\" --- \",\"\",COUNTIF($E$3:E614,E614)&\"_\"&E614)","v":"494_Iron or steel products"},null,"Tanks, casks, drums, cans, boxes and similar containers, of iron or steel, for any material, of a capacity of < 50 l and of a wall thickness of < 0,5 mm, n.e.s. (excl. containers for compressed or liquefied gas, or containers fitted with mechanical or thermal equipment, and cans which are to be closed by soldering or crimping)"]
["731029900080","7310 29 90",{"$f":"Translations!$B$1302","v":"Tanks, casks, drums, cans, boxes and similar containers, of iron or steel, for any material, of a capacity of < 50 l and of a wall thickness of >= 0,5 mm, n.e.s. (excl. containers for compressed or liquefied gas, or containers fitted with mechanical or thermal equipment, and cans which are to be closed by soldering or crimping)"},"73102990",{"$f":"Translations!$B$611","v":"Iron or steel products"},{"$f":"IF(E615=\" --- \",\"\",COUNTIF($E$3:E615,E615)&\"_\"&E615)","v":"495_Iron or steel products"},null,"Tanks, casks, drums, cans, boxes and similar containers, of iron or steel, for any material, of a capacity of < 50 l and of a wall thickness of >= 0,5 mm, n.e.s. (excl. containers for compressed or liquefied gas, or containers fitted with mechanical or thermal equipment, and cans which are to be closed by soldering or crimping)"]
["731100000080","7311 00",{"$f":"Translations!$B$1303","v":"Containers of iron or steel, for compressed or liquefied gas (excl. containers specifically constructed or equipped for one or more types of transport)"},"731100",{"$f":"Translations!$B$611","v":"Iron or steel products"},{"$f":"IF(E616=\" --- \",\"\",COUNTIF($E$3:E616,E616)&\"_\"&E616)","v":"496_Iron or steel products"},null,"Containers of iron or steel, for compressed or liquefied gas (excl. containers specifically constructed or equipped for one or more types of transport)"]
["731100110080","7311 00 11",{"$f":"Translations!$B$1304","v":"Containers of iron or steel, seamless, for compressed or liquefied gas, for a pressure >= 165 bar, of a capacity < 20 l (excl. containers specifically constructed or equipped for one or more types of transport)"},"73110011",{"$f":"Translations!$B$611","v":"Iron or steel products"},{"$f":"IF(E617=\" --- \",\"\",COUNTIF($E$3:E617,E617)&\"_\"&E617)","v":"497_Iron or steel products"},null,"Containers of iron or steel, seamless, for compressed or liquefied gas, for a pressure >= 165 bar, of a capacity < 20 l (excl. containers specifically constructed or equipped for one or more types of transport)"]
["731100130080","7311 00 13",{"$f":"Translations!$B$1305","v":"Containers of iron or steel, seamless, for compressed or liquefied gas, for a pressure >= 165 bar, of a capacity >= 20 l to <= 50 l (excl. containers specifically constructed or equipped for one or more types of transport)"},"73110013",{"$f":"Translations!$B$611","v":"Iron or steel products"},{"$f":"IF(E618=\" --- \",\"\",COUNTIF($E$3:E618,E618)&\"_\"&E618)","v":"498_Iron or steel products"},null,"Containers of iron or steel, seamless, for compressed or liquefied gas, for a pressure >= 165 bar, of a capacity >= 20 l to <= 50 l (excl. containers specifically constructed or equipped for one or more types of transport)"]
["731100190080","7311 00 19",{"$f":"Translations!$B$1306","v":"Containers of iron or steel, seamless, for compressed or liquefied gas, for a pressure >= 165 bar, of a capacity > 50 l (excl. containers specifically constructed or equipped for one or more types of transport)"},"73110019",{"$f":"Translations!$B$611","v":"Iron or steel products"},{"$f":"IF(E619=\" --- \",\"\",COUNTIF($E$3:E619,E619)&\"_\"&E619)","v":"499_Iron or steel products"},null,"Containers of iron or steel, seamless, for compressed or liquefied gas, for a pressure >= 165 bar, of a capacity > 50 l (excl. containers specifically constructed or equipped for one or more types of transport)"]
["731100300080","7311 00 30",{"$f":"Translations!$B$1307","v":"Containers of iron or steel, seamless, for compressed or liquefied gas, for a pressure < 165 bar (excl. containers specifically constructed or equipped for one or more types of transport)"},"73110030",{"$f":"Translations!$B$611","v":"Iron or steel products"},{"$f":"IF(E620=\" --- \",\"\",COUNTIF($E$3:E620,E620)&\"_\"&E620)","v":"500_Iron or steel products"},null,"Containers of iron or steel, seamless, for compressed or liquefied gas, for a pressure < 165 bar (excl. containers specifically constructed or equipped for one or more types of transport)"]
["731100910080","7311 00 91",{"$f":"Translations!$B$1308","v":"Containers of iron or steel, seamless, for compressed or liquefied gas, of a capacity of < 1.000 l (excl. seamless containers and containers specifically constructed or equipped for one or more types of transport)"},"73110091",{"$f":"Translations!$B$611","v":"Iron or steel products"},{"$f":"IF(E621=\" --- \",\"\",COUNTIF($E$3:E621,E621)&\"_\"&E621)","v":"501_Iron or steel products"},null,"Containers of iron or steel, seamless, for compressed or liquefied gas, of a capacity of < 1.000 l (excl. seamless containers and containers specifically constructed or equipped for one or more types of transport)"]
["731100990080","7311 00 99",{"$f":"Translations!$B$1309","v":"Containers of iron or steel, seamless, for compressed or liquefied gas, of a capacity of >= 1.000 l (excl. seamless containers and containers specifically constructed or equipped for one or more types of transport)"},"73110099",{"$f":"Translations!$B$611","v":"Iron or steel products"},{"$f":"IF(E622=\" --- \",\"\",COUNTIF($E$3:E622,E622)&\"_\"&E622)","v":"502_Iron or steel products"},null,"Containers of iron or steel, seamless, for compressed or liquefied gas, of a capacity of >= 1.000 l (excl. seamless containers and containers specifically constructed or equipped for one or more types of transport)"]
["731800000080","7318",{"$f":"Translations!$B$1310","v":"Screws, bolts, nuts, coach screws, screw hooks, rivets, cotters, cotter pins, washers, incl. spring washers, and similar articles, of iron or steel (excl. lag screws, stoppers, plugs and the like, threaded)"},{"$f":"SUBSTITUTE(B623,\" \",\"\")","v":"7318"},{"$f":"Translations!$B$611","v":"Iron or steel products"},{"$f":"IF(E623=\" --- \",\"\",COUNTIF($E$3:E623,E623)&\"_\"&E623)","v":"503_Iron or steel products"},null,"Screws, bolts, nuts, coach screws, screw hooks, rivets, cotters, cotter pins, washers, incl. spring washers, and similar articles, of iron or steel (excl. lag screws, stoppers, plugs and the like, threaded)"]
["731811000080","7318 11 00",{"$f":"Translations!$B$1311","v":"Coach screws of iron or steel"},"73181100",{"$f":"Translations!$B$611","v":"Iron or steel products"},{"$f":"IF(E624=\" --- \",\"\",COUNTIF($E$3:E624,E624)&\"_\"&E624)","v":"504_Iron or steel products"},null,"Coach screws of iron or steel"]
["731812000080","7318 12",{"$f":"Translations!$B$1312","v":"Wood screws of iron or steel (excl. coach screws)"},"731812",{"$f":"Translations!$B$611","v":"Iron or steel products"},{"$f":"IF(E625=\" --- \",\"\",COUNTIF($E$3:E625,E625)&\"_\"&E625)","v":"505_Iron or steel products"},null,"Wood screws of iron or steel (excl. coach screws)"]
["731812100080","7318 12 10",{"$f":"Translations!$B$1313","v":"Wood screws of stainless steel (excl. coach screws)"},"73181210",{"$f":"Translations!$B$611","v":"Iron or steel products"},{"$f":"IF(E626=\" --- \",\"\",COUNTIF($E$3:E626,E626)&\"_\"&E626)","v":"506_Iron or steel products"},null,"Wood screws of stainless steel (excl. coach screws)"]
["731812900080","7318 12 90",{"$f":"Translations!$B$1314","v":"Wood screws of iron or steel other than stainless (excl. coach screws)"},"73181290",{"$f":"Translations!$B$611","v":"Iron or steel products"},{"$f":"IF(E627=\" --- \",\"\",COUNTIF($E$3:E627,E627)&\"_\"&E627)","v":"507_Iron or steel products"},null,"Wood screws of iron or steel other than stainless (excl. coach screws)"]
["731813000080","7318 13 00",{"$f":"Translations!$B$1315","v":"Screw hooks and screw rings, of iron or steel"},"73181300",{"$f":"Translations!$B$611","v":"Iron or steel products"},{"$f":"IF(E628=\" --- \",\"\",COUNTIF($E$3:E628,E628)&\"_\"&E628)","v":"508_Iron or steel products"},null,"Screw hooks and screw rings, of iron or steel"]
["731814000080","7318 14",{"$f":"Translations!$B$1316","v":"Self-tapping screws, of iron or steel (excl. wood screws)"},"731814",{"$f":"Translations!$B$611","v":"Iron or steel products"},{"$f":"IF(E629=\" --- \",\"\",COUNTIF($E$3:E629,E629)&\"_\"&E629)","v":"509_Iron or steel products"},null,"Self-tapping screws, of iron or steel (excl. wood screws)"]
["731814100080","7318 14 10",{"$f":"Translations!$B$1317","v":"Self-tapping screws, of stainless steel (excl. wood screws)"},"73181410",{"$f":"Translations!$B$611","v":"Iron or steel products"},{"$f":"IF(E630=\" --- \",\"\",COUNTIF($E$3:E630,E630)&\"_\"&E630)","v":"510_Iron or steel products"},null,"Self-tapping screws, of stainless steel (excl. wood screws)"]
["731814910080","7318 14 91",{"$f":"Translations!$B$1318","v":"Spaced-thread screws of iron or steel other than stainless"},"73181491",{"$f":"Translations!$B$611","v":"Iron or steel products"},{"$f":"IF(E631=\" --- \",\"\",COUNTIF($E$3:E631,E631)&\"_\"&E631)","v":"511_Iron or steel products"},null,"Spaced-thread screws of iron or steel other than stainless"]
["731814990080","7318 14 99",{"$f":"Translations!$B$1319","v":"Self-tapping screws of iron or steel other than stainless (excl. spaced-thread screws and wood screws)"},"73181499",{"$f":"Translations!$B$611","v":"Iron or steel products"},{"$f":"IF(E632=\" --- \",\"\",COUNTIF($E$3:E632,E632)&\"_\"&E632)","v":"512_Iron or steel products"},null,"Self-tapping screws of iron or steel other than stainless (excl. spaced-thread screws and wood screws)"]
["731815000080","7318 15",{"$f":"Translations!$B$1320","v":"Threaded screws and bolts, of iron or steel, whether or not with their nuts and washers (excl. coach screws and other wood screws, screw hooks and screw rings, self-tapping screws, lag screws, stoppers, plugs and the like, threaded)"},"731815",{"$f":"Translations!$B$611","v":"Iron or steel products"},{"$f":"IF(E633=\" --- \",\"\",COUNTIF($E$3:E633,E633)&\"_\"&E633)","v":"513_Iron or steel products"},null,"Threaded screws and bolts, of iron or steel, whether or not with their nuts and washers (excl. coach screws and other wood screws, screw hooks and screw rings, self-tapping screws, lag screws, stoppers, plugs and the like, threaded)"]
["731815200080","7318 15 20",{"$f":"Translations!$B$1321","v":"Screws and bolts, of iron or steel \"whether or not with their nuts and washers\", for fixing railway track construction material (excl. coach screws)"},"73181520",{"$f":"Translations!$B$611","v":"Iron or steel products"},{"$f":"IF(E634=\" --- \",\"\",COUNTIF($E$3:E634,E634)&\"_\"&E634)","v":"514_Iron or steel products"},null,"Screws and bolts, of iron or steel \"whether or not with their nuts and washers\", for fixing railway track construction material (excl. coach screws)"]
["731815350080","7318 15 35",{"$f":"Translations!$B$1322","v":"Screws and bolts, of stainless steel \"whether or not with their nuts and washers\", without heads (excl. screws and bolts for fixing railway track construction material)"},"73181535",{"$f":"Translations!$B$611","v":"Iron or steel products"},{"$f":"IF(E635=\" --- \",\"\",COUNTIF($E$3:E635,E635)&\"_\"&E635)","v":"515_Iron or steel products"},null,"Screws and bolts, of stainless steel \"whether or not with their nuts and washers\", without heads (excl. screws and bolts for fixing railway track construction material)"]
["731815420080","7318 15 42",{"$f":"Translations!$B$1323","v":"Screws and bolts, of iron or steel other than stainless \"whether or not with their nuts and washers\", without heads, with a tensile strength of < 800 MPa (excl. screws and bolts for fixing railway track construction material)"},"73181542",{"$f":"Translations!$B$611","v":"Iron or steel products"},{"$f":"IF(E636=\" --- \",\"\",COUNTIF($E$3:E636,E636)&\"_\"&E636)","v":"516_Iron or steel products"},null,"Screws and bolts, of iron or steel other than stainless \"whether or not with their nuts and washers\", without heads, with a tensile strength of < 800 MPa (excl. screws and bolts for fixing railway track construction material)"]
["731815480080","7318 15 48",{"$f":"Translations!$B$1324","v":"Screws and bolts, of iron or steel other than stainless \"whether or not with their nuts and washers\", without heads, with a tensile strength of >= 800 MPa (excl. screws and bolts for fixing railway track construction material)"},"73181548",{"$f":"Translations!$B$611","v":"Iron or steel products"},{"$f":"IF(E637=\" --- \",\"\",COUNTIF($E$3:E637,E637)&\"_\"&E637)","v":"517_Iron or steel products"},null,"Screws and bolts, of iron or steel other than stainless \"whether or not with their nuts and washers\", without heads, with a tensile strength of >= 800 MPa (excl. screws and bolts for fixing railway track construction material)"]
["731815520080","7318 15 52",{"$f":"Translations!$B$1325","v":"Screws and bolts, of stainless steel \"whether or not with their nuts and washers\", with slotted or cross-recessed heads (excl. wood screws and self-tapping screws)"},"73181552",{"$f":"Translations!$B$611","v":"Iron or steel products"},{"$f":"IF(E638=\" --- \",\"\",COUNTIF($E$3:E638,E638)&\"_\"&E638)","v":"518_Iron or steel products"},null,"Screws and bolts, of stainless steel \"whether or not with their nuts and washers\", with slotted or cross-recessed heads (excl. wood screws and self-tapping screws)"]
["731815580080","7318 15 58",{"$f":"Translations!$B$1326","v":"Screws and bolts, of iron or steel other than stainless \"whether or not with their nuts and washers\", with slotted or cross-recessed heads (excl. wood screws and self-tapping screws)"},"73181558",{"$f":"Translations!$B$611","v":"Iron or steel products"},{"$f":"IF(E639=\" --- \",\"\",COUNTIF($E$3:E639,E639)&\"_\"&E639)","v":"519_Iron or steel products"},null,"Screws and bolts, of iron or steel other than stainless \"whether or not with their nuts and washers\", with slotted or cross-recessed heads (excl. wood screws and self-tapping screws)"]
["731815620080","7318 15 62",{"$f":"Translations!$B$1327","v":"Hexagonal-socket head screws and bolts, of stainless steel \"whether or not with their nuts and washers\" (excl. wood screws, self-tapping screws and screws and bolts for fixing railway track construction material)"},"73181562",{"$f":"Translations!$B$611","v":"Iron or steel products"},{"$f":"IF(E640=\" --- \",\"\",COUNTIF($E$3:E640,E640)&\"_\"&E640)","v":"520_Iron or steel products"},null,"Hexagonal-socket head screws and bolts, of stainless steel \"whether or not with their nuts and washers\" (excl. wood screws, self-tapping screws and screws and bolts for fixing railway track construction material)"]
["731815680080","7318 15 68",{"$f":"Translations!$B$1328","v":"Hexagonal-socket head screws and bolts, of iron or steel other than stainless \"whether or not with their nuts and washers\" (excl. wood screws, self-tapping screws and screws and bolts for fixing railway track construction material)"},"73181568",{"$f":"Translations!$B$611","v":"Iron or steel products"},{"$f":"IF(E641=\" --- \",\"\",COUNTIF($E$3:E641,E641)&\"_\"&E641)","v":"521_Iron or steel products"},null,"Hexagonal-socket head screws and bolts, of iron or steel other than stainless \"whether or not with their nuts and washers\" (excl. wood screws, self-tapping screws and screws and bolts for fixing railway track construction material)"]
["731815750080","7318 15 75",{"$f":"Translations!$B$1329","v":"Hexagon screws and bolts, of stainless steel \"whether or not with their nuts and washers\" (excl. with socket head, wood screws, self-tapping screws and screws and bolts for fixing railway track construction material)"},"73181575",{"$f":"Translations!$B$611","v":"Iron or steel products"},{"$f":"IF(E642=\" --- \",\"\",COUNTIF($E$3:E642,E642)&\"_\"&E642)","v":"522_Iron or steel products"},null,"Hexagon screws and bolts, of stainless steel \"whether or not with their nuts and washers\" (excl. with socket head, wood screws, self-tapping screws and screws and bolts for fixing railway track construction material)"]
["731815820080","7318 15 82",{"$f":"Translations!$B$1330","v":"Hexagon screws and bolts, of iron or steel other than stainless \"whether or not with their nuts and washers\", with a tensile strength of < 800 MPa (excl. with socket head, wood screws, self-tapping screws and screws and bolts for fixing railway track construction material)"},"73181582",{"$f":"Translations!$B$611","v":"Iron or steel products"},{"$f":"IF(E643=\" --- \",\"\",COUNTIF($E$3:E643,E643)&\"_\"&E643)","v":"523_Iron or steel products"},null,"Hexagon screws and bolts, of iron or steel other than stainless \"whether or not with their nuts and washers\", with a tensile strength of < 800 MPa (excl. with socket head, wood screws, self-tapping screws and screws and bolts for fixing railway track construction material)"]
["731815880080","7318 15 88",{"$f":"Translations!$B$1331","v":"Hexagon screws and bolts, of iron or steel other than stainless \"whether or not with their nuts and washers\", with a tensile strength of => 800 MPa (excl. with socket head, wood screws, self-tapping screws and screws and bolts for fixing railway track construction material)"},"73181588",{"$f":"Translations!$B$611","v":"Iron or steel products"},{"$f":"IF(E644=\" --- \",\"\",COUNTIF($E$3:E644,E644)&\"_\"&E644)","v":"524_Iron or steel products"},null,"Hexagon screws and bolts, of iron or steel other than stainless \"whether or not with their nuts and washers\", with a tensile strength of => 800 MPa (excl. with socket head, wood screws, self-tapping screws and screws and bolts for fixing railway track construction material)"]
["731815950080","7318 15 95",{"$f":"Translations!$B$1332","v":"Screws and bolts, of iron or steel \"whether or not with their nuts and washers\", with heads (excl. with slotted, cross-recessed or hexagonal head; wood screws, self-tapping screws and screws and bolts for fixing railway track construction material, screw hooks and screw rings)"},"73181595",{"$f":"Translations!$B$611","v":"Iron or steel products"},{"$f":"IF(E645=\" --- \",\"\",COUNTIF($E$3:E645,E645)&\"_\"&E645)","v":"525_Iron or steel products"},null,"Screws and bolts, of iron or steel \"whether or not with their nuts and washers\", with heads (excl. with slotted, cross-recessed or hexagonal head; wood screws, self-tapping screws and screws and bolts for fixing railway track construction material, screw hooks and screw rings)"]
["731816000080","7318 16",{"$f":"Translations!$B$1333","v":"Nuts of iron or steel"},"731816",{"$f":"Translations!$B$611","v":"Iron or steel products"},{"$f":"IF(E646=\" --- \",\"\",COUNTIF($E$3:E646,E646)&\"_\"&E646)","v":"526_Iron or steel products"},null,"Nuts of iron or steel"]
["731816310080","7318 16 31",{"$f":"Translations!$B$1334","v":"Blind rivet nuts of stainless steel"},"73181631",{"$f":"Translations!$B$611","v":"Iron or steel products"},{"$f":"IF(E647=\" --- \",\"\",COUNTIF($E$3:E647,E647)&\"_\"&E647)","v":"527_Iron or steel products"},null,"Blind rivet nuts of stainless steel"]
["731816390080","7318 16 39",{"$f":"Translations!$B$1335","v":"Nuts of stainless steel (excl. blind rivet nuts)"},"73181639",{"$f":"Translations!$B$611","v":"Iron or steel products"},{"$f":"IF(E648=\" --- \",\"\",COUNTIF($E$3:E648,E648)&\"_\"&E648)","v":"528_Iron or steel products"},null,"Nuts of stainless steel (excl. blind rivet nuts)"]
["731816400080","7318 16 40",{"$f":"Translations!$B$1336","v":"Blind rivet nuts of iron or steel other than stainless"},"73181640",{"$f":"Translations!$B$611","v":"Iron or steel products"},{"$f":"IF(E649=\" --- \",\"\",COUNTIF($E$3:E649,E649)&\"_\"&E649)","v":"529_Iron or steel products"},null,"Blind rivet nuts of iron or steel other than stainless"]
["731816600080","7318 16 60",{"$f":"Translations!$B$1337","v":"Self-locking nuts of iron or steel other than stainless"},"73181660",{"$f":"Translations!$B$611","v":"Iron or steel products"},{"$f":"IF(E650=\" --- \",\"\",COUNTIF($E$3:E650,E650)&\"_\"&E650)","v":"530_Iron or steel products"},null,"Self-locking nuts of iron or steel other than stainless"]
["731816920080","7318 16 92",{"$f":"Translations!$B$1338","v":"Nuts of iron or steel other than stainless, with an inside diameter <= 12 mm (excl. blind rivet nuts and self-locking nuts)"},"73181692",{"$f":"Translations!$B$611","v":"Iron or steel products"},{"$f":"IF(E651=\" --- \",\"\",COUNTIF($E$3:E651,E651)&\"_\"&E651)","v":"531_Iron or steel products"},null,"Nuts of iron or steel other than stainless, with an inside diameter <= 12 mm (excl. blind rivet nuts and self-locking nuts)"]
["731816990080","7318 16 99",{"$f":"Translations!$B$1339","v":"Nuts of iron or steel other than stainless, with an inside diameter > 12 mm (excl. blind rivet nuts and self-locking nuts)"},"73181699",{"$f":"Translations!$B$611","v":"Iron or steel products"},{"$f":"IF(E652=\" --- \",\"\",COUNTIF($E$3:E652,E652)&\"_\"&E652)","v":"532_Iron or steel products"},null,"Nuts of iron or steel other than stainless, with an inside diameter > 12 mm (excl. blind rivet nuts and self-locking nuts)"]
["731819000080","7318 19 00",{"$f":"Translations!$B$1340","v":"Threaded articles, of iron or steel, n.e.s."},"73181900",{"$f":"Translations!$B$611","v":"Iron or steel products"},{"$f":"IF(E653=\" --- \",\"\",COUNTIF($E$3:E653,E653)&\"_\"&E653)","v":"533_Iron or steel products"},null,"Threaded articles, of iron or steel, n.e.s."]
["731821000080","7318 21 00",{"$f":"Translations!$B$1341","v":"Spring washers and other lock washers, of iron or steel"},"73182100",{"$f":"Translations!$B$611","v":"Iron or steel products"},{"$f":"IF(E654=\" --- \",\"\",COUNTIF($E$3:E654,E654)&\"_\"&E654)","v":"534_Iron or steel products"},null,"Spring washers and other lock washers, of iron or steel"]
["731822000080","7318 22 00",{"$f":"Translations!$B$1342","v":"Washers of iron or steel (excl. spring washers and other lock washers)"},"73182200",{"$f":"Translations!$B$611","v":"Iron or steel products"},{"$f":"IF(E655=\" --- \",\"\",COUNTIF($E$3:E655,E655)&\"_\"&E655)","v":"535_Iron or steel products"},null,"Washers of iron or steel (excl. spring washers and other lock washers)"]
["731823000080","7318 23 00",{"$f":"Translations!$B$1343","v":"Rivets of iron or steel (excl. tubular and bifurcated rivets for particular uses)"},"73182300",{"$f":"Translations!$B$611","v":"Iron or steel products"},{"$f":"IF(E656=\" --- \",\"\",COUNTIF($E$3:E656,E656)&\"_\"&E656)","v":"536_Iron or steel products"},null,"Rivets of iron or steel (excl. tubular and bifurcated rivets for particular uses)"]
["731824000080","7318 24 00",{"$f":"Translations!$B$1344","v":"Cotters and cotter pins, of iron or steel"},"73182400",{"$f":"Translations!$B$611","v":"Iron or steel products"},{"$f":"IF(E657=\" --- \",\"\",COUNTIF($E$3:E657,E657)&\"_\"&E657)","v":"537_Iron or steel products"},null,"Cotters and cotter pins, of iron or steel"]
["731829000080","7318 29 00",{"$f":"Translations!$B$1345","v":"Non-threaded articles, of iron or steel"},"73182900",{"$f":"Translations!$B$611","v":"Iron or steel products"},{"$f":"IF(E658=\" --- \",\"\",COUNTIF($E$3:E658,E658)&\"_\"&E658)","v":"538_Iron or steel products"},null,"Non-threaded articles, of iron or steel"]
["732600000080","7326",{"$f":"Translations!$B$1346","v":"Articles of iron or steel, n.e.s. (excl. cast articles)"},{"$f":"SUBSTITUTE(B659,\" \",\"\")","v":"7326"},{"$f":"Translations!$B$611","v":"Iron or steel products"},{"$f":"IF(E659=\" --- \",\"\",COUNTIF($E$3:E659,E659)&\"_\"&E659)","v":"539_Iron or steel products"},null,"Articles of iron or steel, n.e.s. (excl. cast articles)"]
["732611000080","7326 11 00",{"$f":"Translations!$B$1347","v":"Grinding balls and similar articles for mills, of iron or steel, forged or stamped, but not further worked"},"73261100",{"$f":"Translations!$B$611","v":"Iron or steel products"},{"$f":"IF(E660=\" --- \",\"\",COUNTIF($E$3:E660,E660)&\"_\"&E660)","v":"540_Iron or steel products"},null,"Grinding balls and similar articles for mills, of iron or steel, forged or stamped, but not further worked"]
["732619000080","7326 19",{"$f":"Translations!$B$1348","v":"Articles of iron or steel, forged or stamped, but not further worked, n.e.s. (excl. grinding balls and similar articles for mills)"},"732619",{"$f":"Translations!$B$611","v":"Iron or steel products"},{"$f":"IF(E661=\" --- \",\"\",COUNTIF($E$3:E661,E661)&\"_\"&E661)","v":"541_Iron or steel products"},null,"Articles of iron or steel, forged or stamped, but not further worked, n.e.s. (excl. grinding balls and similar articles for mills)"]
["732619100080","7326 19 10",{"$f":"Translations!$B$1349","v":"Articles of iron or steel, open-die forged, but not further worked, n.e.s. (excl. grinding balls and similar articles for mills)"},"73261910",{"$f":"Translations!$B$611","v":"Iron or steel products"},{"$f":"IF(E662=\" --- \",\"\",COUNTIF($E$3:E662,E662)&\"_\"&E662)","v":"542_Iron or steel products"},null,"Articles of iron or steel, open-die forged, but not further worked, n.e.s. (excl. grinding balls and similar articles for mills)"]
["732619900080","7326 19 90",{"$f":"Translations!$B$1350","v":"Articles of iron or steel, closed-die forged or stamped, but not further worked, n.e.s. (excl. grinding balls and similar articles for mills)"},"73261990",{"$f":"Translations!$B$611","v":"Iron or steel products"},{"$f":"IF(E663=\" --- \",\"\",COUNTIF($E$3:E663,E663)&\"_\"&E663)","v":"543_Iron or steel products"},null,"Articles of iron or steel, closed-die forged or stamped, but not further worked, n.e.s. (excl. grinding balls and similar articles for mills)"]
["732620000080","7326 20 00",{"$f":"Translations!$B$1351","v":"Articles of iron or steel wire, n.e.s."},"73262000",{"$f":"Translations!$B$611","v":"Iron or steel products"},{"$f":"IF(E664=\" --- \",\"\",COUNTIF($E$3:E664,E664)&\"_\"&E664)","v":"544_Iron or steel products"},null,"Articles of iron or steel wire, n.e.s."]
["732690000080","7326 90",{"$f":"Translations!$B$1352","v":"Articles of iron or steel, n.e.s. (excl. cast articles or articles of iron or steel wire)"},"732690",{"$f":"Translations!$B$611","v":"Iron or steel products"},{"$f":"IF(E665=\" --- \",\"\",COUNTIF($E$3:E665,E665)&\"_\"&E665)","v":"545_Iron or steel products"},null,"Articles of iron or steel, n.e.s. (excl. cast articles or articles of iron or steel wire)"]
["732690300080","7326 90 30",{"$f":"Translations!$B$1353","v":"Ladders and steps, of iron or steel"},"73269030",{"$f":"Translations!$B$611","v":"Iron or steel products"},{"$f":"IF(E666=\" --- \",\"\",COUNTIF($E$3:E666,E666)&\"_\"&E666)","v":"546_Iron or steel products"},null,"Ladders and steps, of iron or steel"]
["732690400080","7326 90 40",{"$f":"Translations!$B$1354","v":"Pallets and similar platforms for handling goods, of iron or steel"},"73269040",{"$f":"Translations!$B$611","v":"Iron or steel products"},{"$f":"IF(E667=\" --- \",\"\",COUNTIF($E$3:E667,E667)&\"_\"&E667)","v":"547_Iron or steel products"},null,"Pallets and similar platforms for handling goods, of iron or steel"]
["732690500080","7326 90 50",{"$f":"Translations!$B$1355","v":"Reels for cables, piping and the like, of iron or steel"},"73269050",{"$f":"Translations!$B$611","v":"Iron or steel products"},{"$f":"IF(E668=\" --- \",\"\",COUNTIF($E$3:E668,E668)&\"_\"&E668)","v":"548_Iron or steel products"},null,"Reels for cables, piping and the like, of iron or steel"]
["732690600080","7326 90 60",{"$f":"Translations!$B$1356","v":"Ventilators, non-mechanical, guttering, hooks and like articles used in the building industry, n.e.s., of iron or steel"},"73269060",{"$f":"Translations!$B$611","v":"Iron or steel products"},{"$f":"IF(E669=\" --- \",\"\",COUNTIF($E$3:E669,E669)&\"_\"&E669)","v":"549_Iron or steel products"},null,"Ventilators, non-mechanical, guttering, hooks and like articles used in the building industry, n.e.s., of iron or steel"]
["732690920080","7326 90 92",{"$f":"Translations!$B$1357","v":"Articles of iron or steel, open-die forged, n.e.s."},"73269092",{"$f":"Translations!$B$611","v":"Iron or steel products"},{"$f":"IF(E670=\" --- \",\"\",COUNTIF($E$3:E670,E670)&\"_\"&E670)","v":"550_Iron or steel products"},null,"Articles of iron or steel, open-die forged, n.e.s."]
["732690940080","7326 90 94",{"$f":"Translations!$B$1358","v":"Articles of iron or steel, closed-die forged, n.e.s."},"73269094",{"$f":"Translations!$B$611","v":"Iron or steel products"},{"$f":"IF(E671=\" --- \",\"\",COUNTIF($E$3:E671,E671)&\"_\"&E671)","v":"551_Iron or steel products"},null,"Articles of iron or steel, closed-die forged, n.e.s."]
["732690960080","7326 90 96",{"$f":"Translations!$B$1359","v":"Sintered articles of iron or steel, n.e.s."},"73269096",{"$f":"Translations!$B$611","v":"Iron or steel products"},{"$f":"IF(E672=\" --- \",\"\",COUNTIF($E$3:E672,E672)&\"_\"&E672)","v":"552_Iron or steel products"},null,"Sintered articles of iron or steel, n.e.s."]
["732690980080","7326 90 98",{"$f":"Translations!$B$1360","v":"Articles of iron or steel, n.e.s."},"73269098",{"$f":"Translations!$B$611","v":"Iron or steel products"},{"$f":"IF(E673=\" --- \",\"\",COUNTIF($E$3:E673,E673)&\"_\"&E673)","v":"553_Iron or steel products"},null,"Articles of iron or steel, n.e.s."]
["760100000080","7601",{"$f":"Translations!$B$689","v":"Unwrought aluminium"},{"$f":"SUBSTITUTE(B674,\" \",\"\")","v":"7601"},{"$f":"Translations!$B$689","v":"Unwrought aluminium"},{"$f":"IF(E674=\" --- \",\"\",COUNTIF($E$3:E674,E674)&\"_\"&E674)","v":"1_Unwrought aluminium"},null,"Unwrought aluminium"]
["760110000080","7601 10 00",{"$f":"Translations!$B$1361","v":"Aluminium, not alloyed, unwrought"},"76011000",{"$f":"Translations!$B$689","v":"Unwrought aluminium"},{"$f":"IF(E675=\" --- \",\"\",COUNTIF($E$3:E675,E675)&\"_\"&E675)","v":"2_Unwrought aluminium"},null,"Aluminium, not alloyed, unwrought"]
["760120000080","7601 20",{"$f":"Translations!$B$1362","v":"Unwrought aluminium alloys"},"760120",{"$f":"Translations!$B$689","v":"Unwrought aluminium"},{"$f":"IF(E676=\" --- \",\"\",COUNTIF($E$3:E676,E676)&\"_\"&E676)","v":"3_Unwrought aluminium"},null,"Unwrought aluminium alloys"]
["760120200080","7601 20 20",{"$f":"Translations!$B$1363","v":"Unwrought aluminium alloys in the form of slabs or billets"},"76012020",{"$f":"Translations!$B$689","v":"Unwrought aluminium"},{"$f":"IF(E677=\" --- \",\"\",COUNTIF($E$3:E677,E677)&\"_\"&E677)","v":"4_Unwrought aluminium"},null,"Unwrought aluminium alloys in the form of slabs or billets"]
["760120800080","7601 20 80",{"$f":"Translations!$B$1364","v":"Unwrought aluminium alloys (excl. slabs and billets)"},"76012080",{"$f":"Translations!$B$689","v":"Unwrought aluminium"},{"$f":"IF(E678=\" --- \",\"\",COUNTIF($E$3:E678,E678)&\"_\"&E678)","v":"5_Unwrought aluminium"},null,"Unwrought aluminium alloys (excl. slabs and billets)"]
["760300000080","7603",{"$f":"Translations!$B$1365","v":"Powder and flakes, of aluminium (excl. pellets of aluminium, and spangles)"},"7603",{"$f":"Translations!$B$688","v":"Aluminium products"},{"$f":"IF(E679=\" --- \",\"\",COUNTIF($E$3:E679,E679)&\"_\"&E679)","v":"1_Aluminium products"},null,"Powder and flakes, of aluminium (excl. pellets of aluminium, and spangles)"]
["760310000080","7603 10 00",{"$f":"Translations!$B$1366","v":"Powders of aluminium, of non-lamellar structure (excl. pellets of aluminium)"},"76031000",{"$f":"Translations!$B$688","v":"Aluminium products"},{"$f":"IF(E680=\" --- \",\"\",COUNTIF($E$3:E680,E680)&\"_\"&E680)","v":"2_Aluminium products"},null,"Powders of aluminium, of non-lamellar structure (excl. pellets of aluminium)"]
["760320000080","7603 20 00",{"$f":"Translations!$B$1367","v":"Powders of aluminium, of lamellar structure, and flakes of aluminium (excl. pellets of aluminium, and spangles)"},"76032000",{"$f":"Translations!$B$688","v":"Aluminium products"},{"$f":"IF(E681=\" --- \",\"\",COUNTIF($E$3:E681,E681)&\"_\"&E681)","v":"3_Aluminium products"},null,"Powders of aluminium, of lamellar structure, and flakes of aluminium (excl. pellets of aluminium, and spangles)"]
["760400000080","7604",{"$f":"Translations!$B$1368","v":"Bars, rods and profiles, of aluminium, n.e.s."},"7604",{"$f":"Translations!$B$688","v":"Aluminium products"},{"$f":"IF(E682=\" --- \",\"\",COUNTIF($E$3:E682,E682)&\"_\"&E682)","v":"4_Aluminium products"},null,"Bars, rods and profiles, of aluminium, n.e.s."]
["760410000080","7604 10",{"$f":"Translations!$B$1369","v":"Bars, rods and profiles, of non-alloy aluminium, n.e.s."},"760410",{"$f":"Translations!$B$688","v":"Aluminium products"},{"$f":"IF(E683=\" --- \",\"\",COUNTIF($E$3:E683,E683)&\"_\"&E683)","v":"5_Aluminium products"},null,"Bars, rods and profiles, of non-alloy aluminium, n.e.s."]
["760410100080","7604 10 10",{"$f":"Translations!$B$1370","v":"Bars, rods and profiles, of non-alloy aluminium"},"76041010",{"$f":"Translations!$B$688","v":"Aluminium products"},{"$f":"IF(E684=\" --- \",\"\",COUNTIF($E$3:E684,E684)&\"_\"&E684)","v":"6_Aluminium products"},null,"Bars, rods and profiles, of non-alloy aluminium"]
["760410900080","7604 10 90",{"$f":"Translations!$B$1371","v":"Profiles of non-alloy aluminium, n.e.s."},"76041090",{"$f":"Translations!$B$688","v":"Aluminium products"},{"$f":"IF(E685=\" --- \",\"\",COUNTIF($E$3:E685,E685)&\"_\"&E685)","v":"7_Aluminium products"},null,"Profiles of non-alloy aluminium, n.e.s."]
["760421000080","7604 21 00",{"$f":"Translations!$B$1372","v":"Hollow profiles of aluminium alloys, n.e.s."},"76042100",{"$f":"Translations!$B$688","v":"Aluminium products"},{"$f":"IF(E686=\" --- \",\"\",COUNTIF($E$3:E686,E686)&\"_\"&E686)","v":"8_Aluminium products"},null,"Hollow profiles of aluminium alloys, n.e.s."]
["760429000080","7604 29",{"$f":"Translations!$B$1373","v":"Bars, rods and solid profiles, of aluminium alloys, n.e.s."},"760429",{"$f":"Translations!$B$688","v":"Aluminium products"},{"$f":"IF(E687=\" --- \",\"\",COUNTIF($E$3:E687,E687)&\"_\"&E687)","v":"9_Aluminium products"},null,"Bars, rods and solid profiles, of aluminium alloys, n.e.s."]
["760429100080","7604 29 10",{"$f":"Translations!$B$1374","v":"Bars and rods of aluminium alloys"},"76042910",{"$f":"Translations!$B$688","v":"Aluminium products"},{"$f":"IF(E688=\" --- \",\"\",COUNTIF($E$3:E688,E688)&\"_\"&E688)","v":"10_Aluminium products"},null,"Bars and rods of aluminium alloys"]
["760429900080","7604 29 90",{"$f":"Translations!$B$1375","v":"Solid profiles, of aluminium alloys, n.e.s."},"76042990",{"$f":"Translations!$B$688","v":"Aluminium products"},{"$f":"IF(E689=\" --- \",\"\",COUNTIF($E$3:E689,E689)&\"_\"&E689)","v":"11_Aluminium products"},null,"Solid profiles, of aluminium alloys, n.e.s."]
["760500000080","7605",{"$f":"Translations!$B$1376","v":"Aluminium wire (excl. stranded wire, cables, plaited bands and the like and other articles of heading 7614, electrically insulated wires, and strings for musical instruments)"},"7605",{"$f":"Translations!$B$688","v":"Aluminium products"},{"$f":"IF(E690=\" --- \",\"\",COUNTIF($E$3:E690,E690)&\"_\"&E690)","v":"12_Aluminium products"},null,"Aluminium wire (excl. stranded wire, cables, plaited bands and the like and other articles of heading 7614, electrically insulated wires, and strings for musical instruments)"]
["760511000080","7605 11 00",{"$f":"Translations!$B$1377","v":"Wire of non-alloy aluminium, with a maximum cross-sectional dimension of > 7 mm (excl. stranded wire, cables, plaited bands and the like and other articles of heading 7614, and electrically insulated wires)"},"76051100",{"$f":"Translations!$B$688","v":"Aluminium products"},{"$f":"IF(E691=\" --- \",\"\",COUNTIF($E$3:E691,E691)&\"_\"&E691)","v":"13_Aluminium products"},null,"Wire of non-alloy aluminium, with a maximum cross-sectional dimension of > 7 mm (excl. stranded wire, cables, plaited bands and the like and other articles of heading 7614, and electrically insulated wires)"]
["760519000080","7605 19 00",{"$f":"Translations!$B$1378","v":"Wire of non-alloy aluminium, with a maximum cross-sectional dimension of <= 7 mm (other than stranded wires, cables, ropes and other articles of heading 7614, electrically insulated wires, strings for musical instruments)"},"76051900",{"$f":"Translations!$B$688","v":"Aluminium products"},{"$f":"IF(E692=\" --- \",\"\",COUNTIF($E$3:E692,E692)&\"_\"&E692)","v":"14_Aluminium products"},null,"Wire of non-alloy aluminium, with a maximum cross-sectional dimension of <= 7 mm (other than stranded wires, cables, ropes and other articles of heading 7614, electrically insulated wires, strings for musical instruments)"]
["760521000080","7605 21 00",{"$f":"Translations!$B$1379","v":"Wire of aluminium alloys, with a maximum cross-sectional dimension of > 7 mm (excl. stranded wire, cables, plaited bands and the like and other articles of heading 7614, and electrically insulated wires)"},"76052100",{"$f":"Translations!$B$688","v":"Aluminium products"},{"$f":"IF(E693=\" --- \",\"\",COUNTIF($E$3:E693,E693)&\"_\"&E693)","v":"15_Aluminium products"},null,"Wire of aluminium alloys, with a maximum cross-sectional dimension of > 7 mm (excl. stranded wire, cables, plaited bands and the like and other articles of heading 7614, and electrically insulated wires)"]
["760529000080","7605 29 00",{"$f":"Translations!$B$1380","v":"Wire, of aluminium alloys, having a maximum cross-sectional dimension of <= 7 mm (other than stranded wires, cables, ropes and other articles of heading 7614, electrically insulated wires, strings for musical instruments)"},"76052900",{"$f":"Translations!$B$688","v":"Aluminium products"},{"$f":"IF(E694=\" --- \",\"\",COUNTIF($E$3:E694,E694)&\"_\"&E694)","v":"16_Aluminium products"},null,"Wire, of aluminium alloys, having a maximum cross-sectional dimension of <= 7 mm (other than stranded wires, cables, ropes and other articles of heading 7614, electrically insulated wires, strings for musical instruments)"]
["760600000080","7606",{"$f":"Translations!$B$1381","v":"Plates, sheets and strip, of aluminium, of a thickness of > 0,2 mm (excl. expanded plates, sheets and strip)"},"7606",{"$f":"Translations!$B$688","v":"Aluminium products"},{"$f":"IF(E695=\" --- \",\"\",COUNTIF($E$3:E695,E695)&\"_\"&E695)","v":"17_Aluminium products"},null,"Plates, sheets and strip, of aluminium, of a thickness of > 0,2 mm (excl. expanded plates, sheets and strip)"]
["760611000080","7606 11",{"$f":"Translations!$B$1382","v":"Plates, sheets and strip, of non-alloy aluminium, of a thickness of > 0,2 mm, square or rectangular (excl. expanded plates, sheets and strip)"},"760611",{"$f":"Translations!$B$688","v":"Aluminium products"},{"$f":"IF(E696=\" --- \",\"\",COUNTIF($E$3:E696,E696)&\"_\"&E696)","v":"18_Aluminium products"},null,"Plates, sheets and strip, of non-alloy aluminium, of a thickness of > 0,2 mm, square or rectangular (excl. expanded plates, sheets and strip)"]
["760611300080","7606 11 30",{"$f":"Translations!$B$1383","v":"Aluminium Composite Panel, of non-alloy aluminium, of a thickness of > 0,2 mm"},"76061130",{"$f":"Translations!$B$688","v":"Aluminium products"},{"$f":"IF(E697=\" --- \",\"\",COUNTIF($E$3:E697,E697)&\"_\"&E697)","v":"19_Aluminium products"},null,"Aluminium Composite Panel, of non-alloy aluminium, of a thickness of > 0,2 mm"]
["760611500080","7606 11 50",{"$f":"Translations!$B$1384","v":"Plates, sheets and strip, of non-alloy aluminium, of a thickness of > 0,2 mm, square or rectangular, painted, varnished or coated with plastics (excl. Aluminium Composite Panel)"},"76061150",{"$f":"Translations!$B$688","v":"Aluminium products"},{"$f":"IF(E698=\" --- \",\"\",COUNTIF($E$3:E698,E698)&\"_\"&E698)","v":"20_Aluminium products"},null,"Plates, sheets and strip, of non-alloy aluminium, of a thickness of > 0,2 mm, square or rectangular, painted, varnished or coated with plastics (excl. Aluminium Composite Panel)"]
["760611910080","7606 11 91",{"$f":"Translations!$B$1385","v":"Plates, sheets and strip, of non-alloy aluminium, of a thickness of > 0,2 mm but < 3 mm, square or rectangular (excl. such products painted, varnished or coated with plastics, and expanded plates, sheets and strip)"},"76061191",{"$f":"Translations!$B$688","v":"Aluminium products"},{"$f":"IF(E699=\" --- \",\"\",COUNTIF($E$3:E699,E699)&\"_\"&E699)","v":"21_Aluminium products"},null,"Plates, sheets and strip, of non-alloy aluminium, of a thickness of > 0,2 mm but < 3 mm, square or rectangular (excl. such products painted, varnished or coated with plastics, and expanded plates, sheets and strip)"]
["760611930080","7606 11 93",{"$f":"Translations!$B$1386","v":"Plates, sheets and strip, of non-alloy aluminium, of a thickness of >= 3 mm but < 6 mm, square or rectangular (excl. such products painted, varnished or coated with plastics)"},"76061193",{"$f":"Translations!$B$688","v":"Aluminium products"},{"$f":"IF(E700=\" --- \",\"\",COUNTIF($E$3:E700,E700)&\"_\"&E700)","v":"22_Aluminium products"},null,"Plates, sheets and strip, of non-alloy aluminium, of a thickness of >= 3 mm but < 6 mm, square or rectangular (excl. such products painted, varnished or coated with plastics)"]
["760611990080","7606 11 99",{"$f":"Translations!$B$1387","v":"Plates, sheets and strip, of non-alloy aluminium, of a thickness of >= 6 mm, square or rectangular (excl. such products painted, varnished or coated with plastics)"},"76061199",{"$f":"Translations!$B$688","v":"Aluminium products"},{"$f":"IF(E701=\" --- \",\"\",COUNTIF($E$3:E701,E701)&\"_\"&E701)","v":"23_Aluminium products"},null,"Plates, sheets and strip, of non-alloy aluminium, of a thickness of >= 6 mm, square or rectangular (excl. such products painted, varnished or coated with plastics)"]
["760612000080","7606 12",{"$f":"Translations!$B$1388","v":"Plates, sheets and strip, of aluminium alloys, of a thickness of > 0,2 mm, square or rectangular (excl. expanded plates, sheets and strip)"},"760612",{"$f":"Translations!$B$688","v":"Aluminium products"},{"$f":"IF(E702=\" --- \",\"\",COUNTIF($E$3:E702,E702)&\"_\"&E702)","v":"24_Aluminium products"},null,"Plates, sheets and strip, of aluminium alloys, of a thickness of > 0,2 mm, square or rectangular (excl. expanded plates, sheets and strip)"]
["760612110080","7606 12 11",{"$f":"Translations!$B$1389","v":"Beverage can body stock, of aluminium alloys, of a thickness of > 0,2 mm"},"76061211",{"$f":"Translations!$B$688","v":"Aluminium products"},{"$f":"IF(E703=\" --- \",\"\",COUNTIF($E$3:E703,E703)&\"_\"&E703)","v":"25_Aluminium products"},null,"Beverage can body stock, of aluminium alloys, of a thickness of > 0,2 mm"]
["760612190080","7606 12 19",{"$f":"Translations!$B$1390","v":"Beverage can end stock and tab stock, of aluminium alloys, of a thickness of > 0,2 mm"},{"$f":"SUBSTITUTE(B704,\" \",\"\")","v":"76061219"},{"$f":"Translations!$B$688","v":"Aluminium products"},{"$f":"IF(E704=\" --- \",\"\",COUNTIF($E$3:E704,E704)&\"_\"&E704)","v":"26_Aluminium products"},null,"Beverage can end stock and tab stock, of aluminium alloys, of a thickness of > 0,2 mm"]
["760612300080","7606 12 30",{"$f":"Translations!$B$1391","v":"Aluminium Composite Panel, of aluminium alloys, of a thickness of > 0,2 mm"},"76061230",{"$f":"Translations!$B$688","v":"Aluminium products"},{"$f":"IF(E705=\" --- \",\"\",COUNTIF($E$3:E705,E705)&\"_\"&E705)","v":"27_Aluminium products"},null,"Aluminium Composite Panel, of aluminium alloys, of a thickness of > 0,2 mm"]
["760612500080","7606 12 50",{"$f":"Translations!$B$1392","v":"Plates, sheets and strip, of aluminium alloys, of a thickness of > 0,2 mm, square or rectangular, painted, varnished or coated with plastics (excl. beverage can body stock, end stock and tab stock, and Aluminium Composite Panel)"},"76061250",{"$f":"Translations!$B$688","v":"Aluminium products"},{"$f":"IF(E706=\" --- \",\"\",COUNTIF($E$3:E706,E706)&\"_\"&E706)","v":"28_Aluminium products"},null,"Plates, sheets and strip, of aluminium alloys, of a thickness of > 0,2 mm, square or rectangular, painted, varnished or coated with plastics (excl. beverage can body stock, end stock and tab stock, and Aluminium Composite Panel)"]
["760612920080","7606 12 92",{"$f":"Translations!$B$1393","v":"Plates, sheets and strip, of aluminium alloys, of a thickness of > 0,2 mm but < 3 mm, square or rectangular (excl. painted, varnished or coated with plastics, expanded plates, sheets and strip, beverage can body stock, end stock and tab stock)"},"76061292",{"$f":"Translations!$B$688","v":"Aluminium products"},{"$f":"IF(E707=\" --- \",\"\",COUNTIF($E$3:E707,E707)&\"_\"&E707)","v":"29_Aluminium products"},null,"Plates, sheets and strip, of aluminium alloys, of a thickness of > 0,2 mm but < 3 mm, square or rectangular (excl. painted, varnished or coated with plastics, expanded plates, sheets and strip, beverage can body stock, end stock and tab stock)"]
["760612930080","7606 12 93",{"$f":"Translations!$B$1394","v":"Plates, sheets and strip, of aluminium alloys, of a thickness of >= 3 mm but < 6 mm, square or rectangular (excl. such products painted, varnished or coated with plastics)"},"76061293",{"$f":"Translations!$B$688","v":"Aluminium products"},{"$f":"IF(E708=\" --- \",\"\",COUNTIF($E$3:E708,E708)&\"_\"&E708)","v":"30_Aluminium products"},null,"Plates, sheets and strip, of aluminium alloys, of a thickness of >= 3 mm but < 6 mm, square or rectangular (excl. such products painted, varnished or coated with plastics)"]
["760612990080","7606 12 99",{"$f":"Translations!$B$1395","v":"Plates, sheets and strip, of aluminium alloys, of a thickness of >= 6 mm, square or rectangular (excl. such products painted, varnished or coated with plastics)"},"76061299",{"$f":"Translations!$B$688","v":"Aluminium products"},{"$f":"IF(E709=\" --- \",\"\",COUNTIF($E$3:E709,E709)&\"_\"&E709)","v":"31_Aluminium products"},null,"Plates, sheets and strip, of aluminium alloys, of a thickness of >= 6 mm, square or rectangular (excl. such products painted, varnished or coated with plastics)"]
["760691000080","7606 91 00",{"$f":"Translations!$B$1396","v":"Plates, sheets and strip, of non-alloy aluminium, of a thickness of > 0,2 mm (other than square or rectangular)"},"76069100",{"$f":"Translations!$B$688","v":"Aluminium products"},{"$f":"IF(E710=\" --- \",\"\",COUNTIF($E$3:E710,E710)&\"_\"&E710)","v":"32_Aluminium products"},null,"Plates, sheets and strip, of non-alloy aluminium, of a thickness of > 0,2 mm (other than square or rectangular)"]
["760692000080","7606 92 00",{"$f":"Translations!$B$1397","v":"Plates, sheets and strip, of aluminium alloys, of a thickness of > 0,2 mm (other than square or rectangular)"},"76069200",{"$f":"Translations!$B$688","v":"Aluminium products"},{"$f":"IF(E711=\" --- \",\"\",COUNTIF($E$3:E711,E711)&\"_\"&E711)","v":"33_Aluminium products"},null,"Plates, sheets and strip, of aluminium alloys, of a thickness of > 0,2 mm (other than square or rectangular)"]
["760700000080","7607",{"$f":"Translations!$B$1398","v":"Aluminium foil, \"whether or not printed or backed with paper, paperboard, plastics or similar backing materials\", of a thickness \"excl. any backing\" of <= 0,2 mm (excl. stamping foils of heading 3212, christmas tree decorating material)"},"7607",{"$f":"Translations!$B$688","v":"Aluminium products"},{"$f":"IF(E712=\" --- \",\"\",COUNTIF($E$3:E712,E712)&\"_\"&E712)","v":"34_Aluminium products"},null,"Aluminium foil, \"whether or not printed or backed with paper, paperboard, plastics or similar backing materials\", of a thickness \"excl. any backing\" of <= 0,2 mm (excl. stamping foils of heading 3212, christmas tree decorating material)"]
["760711000080","7607 11",{"$f":"Translations!$B$1399","v":"Aluminium foil, not backed, rolled but not further worked, of a thickness of <= 0,2 mm (excl. stamping foils of heading 3212, and foil made up as christmas tree decorating material)"},"760711",{"$f":"Translations!$B$688","v":"Aluminium products"},{"$f":"IF(E713=\" --- \",\"\",COUNTIF($E$3:E713,E713)&\"_\"&E713)","v":"35_Aluminium products"},null,"Aluminium foil, not backed, rolled but not further worked, of a thickness of <= 0,2 mm (excl. stamping foils of heading 3212, and foil made up as christmas tree decorating material)"]
["760711110080","7607 11 11",{"$f":"Translations!$B$1400","v":"Aluminium foil, not backed, rolled but not further worked, of a thickness of < 0,021 mm, in rolls of a weight of <= 10 kg (excl. stamping foils of heading 3212, and foil made up as christmas tree decorating material)"},"76071111",{"$f":"Translations!$B$688","v":"Aluminium products"},{"$f":"IF(E714=\" --- \",\"\",COUNTIF($E$3:E714,E714)&\"_\"&E714)","v":"36_Aluminium products"},null,"Aluminium foil, not backed, rolled but not further worked, of a thickness of < 0,021 mm, in rolls of a weight of <= 10 kg (excl. stamping foils of heading 3212, and foil made up as christmas tree decorating material)"]
["760711190080","7607 11 19",{"$f":"Translations!$B$1401","v":"Aluminium foil, not backed, rolled but not further worked, of a thickness of < 0,021 mm (excl. stamping foils of heading 3212, and foil made up as christmas tree decorating material and in rolls of a weight <= 10 kg)"},"76071119",{"$f":"Translations!$B$688","v":"Aluminium products"},{"$f":"IF(E715=\" --- \",\"\",COUNTIF($E$3:E715,E715)&\"_\"&E715)","v":"37_Aluminium products"},null,"Aluminium foil, not backed, rolled but not further worked, of a thickness of < 0,021 mm (excl. stamping foils of heading 3212, and foil made up as christmas tree decorating material and in rolls of a weight <= 10 kg)"]
["760711900080","7607 11 90",{"$f":"Translations!$B$1402","v":"Aluminium foil, not backed, rolled but not further worked, of a thickness of >= 0,021 mm but <= 2 mm (excl. stamping foils of heading 3212, and foil made up as christmas tree decorating material)"},"76071190",{"$f":"Translations!$B$688","v":"Aluminium products"},{"$f":"IF(E716=\" --- \",\"\",COUNTIF($E$3:E716,E716)&\"_\"&E716)","v":"38_Aluminium products"},null,"Aluminium foil, not backed, rolled but not further worked, of a thickness of >= 0,021 mm but <= 2 mm (excl. stamping foils of heading 3212, and foil made up as christmas tree decorating material)"]
["760719000080","7607 19",{"$f":"Translations!$B$1403","v":"Aluminium foil, not backed, rolled and further worked, of a thickness of <= 2 mm (excl. stamping foils of heading 3212, and foil made up as christmas tree decorating material)"},"760719",{"$f":"Translations!$B$688","v":"Aluminium products"},{"$f":"IF(E717=\" --- \",\"\",COUNTIF($E$3:E717,E717)&\"_\"&E717)","v":"39_Aluminium products"},null,"Aluminium foil, not backed, rolled and further worked, of a thickness of <= 2 mm (excl. stamping foils of heading 3212, and foil made up as christmas tree decorating material)"]
["760719100080","7607 19 10",{"$f":"Translations!$B$1404","v":"Aluminium foil, not backed, rolled and further worked, of a thickness of < 0,021 mm (excl. stamping foils of heading 3212, and foil made up as christmas tree decorating material)"},"76071910",{"$f":"Translations!$B$688","v":"Aluminium products"},{"$f":"IF(E718=\" --- \",\"\",COUNTIF($E$3:E718,E718)&\"_\"&E718)","v":"40_Aluminium products"},null,"Aluminium foil, not backed, rolled and further worked, of a thickness of < 0,021 mm (excl. stamping foils of heading 3212, and foil made up as christmas tree decorating material)"]
["760719900080","7607 19 90",{"$f":"Translations!$B$1405","v":"Aluminium foil, not backed, rolled and further worked, of a thickness (excl. any backing) from 0,021 mm to 0,2 mm (excl. stamping foils of heading 3212, and foil made up as christmas tree decorating material)"},"76071990",{"$f":"Translations!$B$688","v":"Aluminium products"},{"$f":"IF(E719=\" --- \",\"\",COUNTIF($E$3:E719,E719)&\"_\"&E719)","v":"41_Aluminium products"},null,"Aluminium foil, not backed, rolled and further worked, of a thickness (excl. any backing) from 0,021 mm to 0,2 mm (excl. stamping foils of heading 3212, and foil made up as christmas tree decorating material)"]
["760720000080","7607 20",{"$f":"Translations!$B$1406","v":"Aluminium foil, backed, of a thickness (excl. any backing) of <= 0,2 mm (excl. stamping foils of heading 3212, and foil made up as christmas tree decorating material)"},"760720",{"$f":"Translations!$B$688","v":"Aluminium products"},{"$f":"IF(E720=\" --- \",\"\",COUNTIF($E$3:E720,E720)&\"_\"&E720)","v":"42_Aluminium products"},null,"Aluminium foil, backed, of a thickness (excl. any backing) of <= 0,2 mm (excl. stamping foils of heading 3212, and foil made up as christmas tree decorating material)"]
["760720100080","7607 20 10",{"$f":"Translations!$B$1407","v":"Aluminium foil, backed, of a thickness (excl. any backing) of < 0,021 mm (excl. stamping foils of heading 3212, and foil made up as christmas tree decorating material)"},"76072010",{"$f":"Translations!$B$688","v":"Aluminium products"},{"$f":"IF(E721=\" --- \",\"\",COUNTIF($E$3:E721,E721)&\"_\"&E721)","v":"43_Aluminium products"},null,"Aluminium foil, backed, of a thickness (excl. any backing) of < 0,021 mm (excl. stamping foils of heading 3212, and foil made up as christmas tree decorating material)"]
["760720910080","7607 20 91",{"$f":"Translations!$B$1408","v":"Aluminium Composite Panel, of a thickness <= 0,2 mm"},"76072091",{"$f":"Translations!$B$688","v":"Aluminium products"},{"$f":"IF(E722=\" --- \",\"\",COUNTIF($E$3:E722,E722)&\"_\"&E722)","v":"44_Aluminium products"},null,"Aluminium Composite Panel, of a thickness <= 0,2 mm"]
["760720990080","7607 20 99",{"$f":"Translations!$B$1409","v":"Aluminium foil, backed, of a thickness (excl. any backing) of >= 0,021 mm but <= 0,2 mm (excl. stamping foils of heading 3212, foil made up as christmas tree decorating material, and Aluminium Composite Panel)"},"76072099",{"$f":"Translations!$B$688","v":"Aluminium products"},{"$f":"IF(E723=\" --- \",\"\",COUNTIF($E$3:E723,E723)&\"_\"&E723)","v":"45_Aluminium products"},null,"Aluminium foil, backed, of a thickness (excl. any backing) of >= 0,021 mm but <= 0,2 mm (excl. stamping foils of heading 3212, foil made up as christmas tree decorating material, and Aluminium Composite Panel)"]
["760800000080","7608",{"$f":"Translations!$B$1410","v":"Aluminium tubes and pipes (excl. hollow profiles)"},"7608",{"$f":"Translations!$B$688","v":"Aluminium products"},{"$f":"IF(E724=\" --- \",\"\",COUNTIF($E$3:E724,E724)&\"_\"&E724)","v":"46_Aluminium products"},null,"Aluminium tubes and pipes (excl. hollow profiles)"]
["760810000080","7608 10 00",{"$f":"Translations!$B$1411","v":"Tubes and pipes of non-alloy aluminium (excl. hollow profiles)"},"76081000",{"$f":"Translations!$B$688","v":"Aluminium products"},{"$f":"IF(E725=\" --- \",\"\",COUNTIF($E$3:E725,E725)&\"_\"&E725)","v":"47_Aluminium products"},null,"Tubes and pipes of non-alloy aluminium (excl. hollow profiles)"]
["760820000080","7608 20",{"$f":"Translations!$B$1412","v":"Tubes and pipes of aluminium alloys (excl. hollow profiles)"},"760820",{"$f":"Translations!$B$688","v":"Aluminium products"},{"$f":"IF(E726=\" --- \",\"\",COUNTIF($E$3:E726,E726)&\"_\"&E726)","v":"48_Aluminium products"},null,"Tubes and pipes of aluminium alloys (excl. hollow profiles)"]
["760820200080","7608 20 20",{"$f":"Translations!$B$1413","v":"Tubes and pipes of aluminium alloys, welded (excl. hollow profiles)"},"76082020",{"$f":"Translations!$B$688","v":"Aluminium products"},{"$f":"IF(E727=\" --- \",\"\",COUNTIF($E$3:E727,E727)&\"_\"&E727)","v":"49_Aluminium products"},null,"Tubes and pipes of aluminium alloys, welded (excl. hollow profiles)"]
["760820810080","7608 20 81",{"$f":"Translations!$B$1414","v":"Tubes and pipes of aluminium alloys, not further worked than extruded (excl. hollow profiles)"},"76082081",{"$f":"Translations!$B$688","v":"Aluminium products"},{"$f":"IF(E728=\" --- \",\"\",COUNTIF($E$3:E728,E728)&\"_\"&E728)","v":"50_Aluminium products"},null,"Tubes and pipes of aluminium alloys, not further worked than extruded (excl. hollow profiles)"]
["760820890080","7608 20 89",{"$f":"Translations!$B$1415","v":"Tubes and pipes of aluminium alloys (excl. such products welded or not further worked than extruded, and hollow profiles)"},"76082089",{"$f":"Translations!$B$688","v":"Aluminium products"},{"$f":"IF(E729=\" --- \",\"\",COUNTIF($E$3:E729,E729)&\"_\"&E729)","v":"51_Aluminium products"},null,"Tubes and pipes of aluminium alloys (excl. such products welded or not further worked than extruded, and hollow profiles)"]
["760900000080","7609 00 00",{"$f":"Translations!$B$1416","v":"Aluminium tube or pipe fittings \"e.g., couplings, elbows, sleeves\""},"76090000",{"$f":"Translations!$B$688","v":"Aluminium products"},{"$f":"IF(E730=\" --- \",\"\",COUNTIF($E$3:E730,E730)&\"_\"&E730)","v":"52_Aluminium products"},null,"Aluminium tube or pipe fittings \"e.g., couplings, elbows, sleeves\""]
["761000000080","7610",{"$f":"Translations!$B$1417","v":"Structures and parts of structures \"e.g., bridges and bridge-sections, towers, lattice masts, pillars and columns, roofs, roofing frameworks, doors and windows and their frames and thresholds for doors, shutters, balustrades\", of aluminium (excl. prefabricated buildings of heading 9406); plates, rods, profiles, tubes and the like, prepared for use in structures, of aluminium"},"7610",{"$f":"Translations!$B$688","v":"Aluminium products"},{"$f":"IF(E731=\" --- \",\"\",COUNTIF($E$3:E731,E731)&\"_\"&E731)","v":"53_Aluminium products"},null,"Structures and parts of structures \"e.g., bridges and bridge-sections, towers, lattice masts, pillars and columns, roofs, roofing frameworks, doors and windows and their frames and thresholds for doors, shutters, balustrades\", of aluminium (excl. prefabricated buildings of heading 9406); plates, rods, profiles, tubes and the like, prepared for use in structures, of aluminium"]
["761010000080","7610 10 00",{"$f":"Translations!$B$1418","v":"Doors, windows and their frames and thresholds for door, of aluminium (excl. door furniture)"},"76101000",{"$f":"Translations!$B$688","v":"Aluminium products"},{"$f":"IF(E732=\" --- \",\"\",COUNTIF($E$3:E732,E732)&\"_\"&E732)","v":"54_Aluminium products"},null,"Doors, windows and their frames and thresholds for door, of aluminium (excl. door furniture)"]
["761090000080","7610 90",{"$f":"Translations!$B$1419","v":"Structures and parts of structures, of aluminium, n.e.s., and plates, rods, profiles, tubes and the like, prepared for use in structures, of aluminium, n.e.s. (excl. prefabricated buildings of heading 9406, doors and windows and their frames and thresholds for doors)"},"761090",{"$f":"Translations!$B$688","v":"Aluminium products"},{"$f":"IF(E733=\" --- \",\"\",COUNTIF($E$3:E733,E733)&\"_\"&E733)","v":"55_Aluminium products"},null,"Structures and parts of structures, of aluminium, n.e.s., and plates, rods, profiles, tubes and the like, prepared for use in structures, of aluminium, n.e.s. (excl. prefabricated buildings of heading 9406, doors and windows and their frames and thresholds for doors)"]
["761090100080","7610 90 10",{"$f":"Translations!$B$1420","v":"Bridges and bridge-sections, towers and lattice masts, of aluminium"},"76109010",{"$f":"Translations!$B$688","v":"Aluminium products"},{"$f":"IF(E734=\" --- \",\"\",COUNTIF($E$3:E734,E734)&\"_\"&E734)","v":"56_Aluminium products"},null,"Bridges and bridge-sections, towers and lattice masts, of aluminium"]
["761090900080","7610 90 90",{"$f":"Translations!$B$1421","v":"Structures and parts of structures, of aluminium, n.e.s., and plates, rods, profiles, tubes and the like, prepared for use in structures, of aluminium, n.e.s. (excl. prefabricated buildings of heading 9406, doors and windows and their frames and thresholds for doors, bridges and bridge-sections, towers and lattice masts)"},"76109090",{"$f":"Translations!$B$688","v":"Aluminium products"},{"$f":"IF(E735=\" --- \",\"\",COUNTIF($E$3:E735,E735)&\"_\"&E735)","v":"57_Aluminium products"},null,"Structures and parts of structures, of aluminium, n.e.s., and plates, rods, profiles, tubes and the like, prepared for use in structures, of aluminium, n.e.s. (excl. prefabricated buildings of heading 9406, doors and windows and their frames and thresholds for doors, bridges and bridge-sections, towers and lattice masts)"]
["761100000080","7611 00 00",{"$f":"Translations!$B$1422","v":"Reservoirs, tanks, vats and similar containers, of aluminium, for any material (other than compressed or liquefied gas), of a capacity of > 300 l, not fitted with mechanical or thermal equipment, whether or not lined or heat-insulated (excl. containers specifically constructed or equipped for one or more types of transport)"},"76110000",{"$f":"Translations!$B$688","v":"Aluminium products"},{"$f":"IF(E736=\" --- \",\"\",COUNTIF($E$3:E736,E736)&\"_\"&E736)","v":"58_Aluminium products"},null,"Reservoirs, tanks, vats and similar containers, of aluminium, for any material (other than compressed or liquefied gas), of a capacity of > 300 l, not fitted with mechanical or thermal equipment, whether or not lined or heat-insulated (excl. containers specifically constructed or equipped for one or more types of transport)"]
["761200000080","7612",{"$f":"Translations!$B$1423","v":"Casks, drums, cans, boxes and similar containers, incl. rigid or collapsible tubular containers, of aluminium, for any material (other than compressed or liquefied gas), of a capacity of <= 300 l, not fitted with mechanical or thermal equipment, whether or not lined or heat-insulated, n.e.s."},"7612",{"$f":"Translations!$B$688","v":"Aluminium products"},{"$f":"IF(E737=\" --- \",\"\",COUNTIF($E$3:E737,E737)&\"_\"&E737)","v":"59_Aluminium products"},null,"Casks, drums, cans, boxes and similar containers, incl. rigid or collapsible tubular containers, of aluminium, for any material (other than compressed or liquefied gas), of a capacity of <= 300 l, not fitted with mechanical or thermal equipment, whether or not lined or heat-insulated, n.e.s."]
["761210000080","7612 10 00",{"$f":"Translations!$B$1424","v":"Collapsible tubular containers, of aluminium"},"76121000",{"$f":"Translations!$B$688","v":"Aluminium products"},{"$f":"IF(E738=\" --- \",\"\",COUNTIF($E$3:E738,E738)&\"_\"&E738)","v":"60_Aluminium products"},null,"Collapsible tubular containers, of aluminium"]
["761290000080","7612 90",{"$f":"Translations!$B$1425","v":"Casks, drums, cans, boxes and similar containers, incl. rigid tubular containers, of aluminium, for any material (other than compressed or liquefied gas), of a capacity of <= 300 l, n.e.s."},"761290",{"$f":"Translations!$B$688","v":"Aluminium products"},{"$f":"IF(E739=\" --- \",\"\",COUNTIF($E$3:E739,E739)&\"_\"&E739)","v":"61_Aluminium products"},null,"Casks, drums, cans, boxes and similar containers, incl. rigid tubular containers, of aluminium, for any material (other than compressed or liquefied gas), of a capacity of <= 300 l, n.e.s."]
["761290200080","7612 90 20",{"$f":"Translations!$B$1426","v":"Containers of a kind used for aerosols, of aluminium"},"76129020",{"$f":"Translations!$B$688","v":"Aluminium products"},{"$f":"IF(E740=\" --- \",\"\",COUNTIF($E$3:E740,E740)&\"_\"&E740)","v":"62_Aluminium products"},null,"Containers of a kind used for aerosols, of aluminium"]
["761290300080","7612 90 30",{"$f":"Translations!$B$1427","v":"Casks, drums, cans, boxes and similar containers, of aluminium, manufactured from foil of a thickness <= 0,2 mm"},"76129030",{"$f":"Translations!$B$688","v":"Aluminium products"},{"$f":"IF(E741=\" --- \",\"\",COUNTIF($E$3:E741,E741)&\"_\"&E741)","v":"63_Aluminium products"},null,"Casks, drums, cans, boxes and similar containers, of aluminium, manufactured from foil of a thickness <= 0,2 mm"]
["761290800080","7612 90 80",{"$f":"Translations!$B$1428","v":"Casks, drums, cans, boxes and similar containers <= 300 l, of aluminium, for any material (other than compressed or liquefied gas), n.e.s. (other than collapsible tubular containers, containers for aerosols and containers manufactured from foil of a thickness <= 0,2 mm"},"76129080",{"$f":"Translations!$B$688","v":"Aluminium products"},{"$f":"IF(E742=\" --- \",\"\",COUNTIF($E$3:E742,E742)&\"_\"&E742)","v":"64_Aluminium products"},null,"Casks, drums, cans, boxes and similar containers <= 300 l, of aluminium, for any material (other than compressed or liquefied gas), n.e.s. (other than collapsible tubular containers, containers for aerosols and containers manufactured from foil of a thickness <= 0,2 mm"]
["761300000080","7613 00 00",{"$f":"Translations!$B$1429","v":"Aluminium containers for compressed or liquefied gas"},"76130000",{"$f":"Translations!$B$688","v":"Aluminium products"},{"$f":"IF(E743=\" --- \",\"\",COUNTIF($E$3:E743,E743)&\"_\"&E743)","v":"65_Aluminium products"},null,"Aluminium containers for compressed or liquefied gas"]
["761400000080","7614",{"$f":"Translations!$B$1430","v":"Stranded wire, cables, plaited bands and the like, of aluminium (excl. such products electrically insulated)"},"7614",{"$f":"Translations!$B$688","v":"Aluminium products"},{"$f":"IF(E744=\" --- \",\"\",COUNTIF($E$3:E744,E744)&\"_\"&E744)","v":"66_Aluminium products"},null,"Stranded wire, cables, plaited bands and the like, of aluminium (excl. such products electrically insulated)"]
["761410000080","7614 10 00",{"$f":"Translations!$B$1431","v":"Stranded wire, cables, plaited bands and the like, of aluminium, with steel core (excl. such products electrically insulated)"},"76141000",{"$f":"Translations!$B$688","v":"Aluminium products"},{"$f":"IF(E745=\" --- \",\"\",COUNTIF($E$3:E745,E745)&\"_\"&E745)","v":"67_Aluminium products"},null,"Stranded wire, cables, plaited bands and the like, of aluminium, with steel core (excl. such products electrically insulated)"]
["761490000080","7614 90 00",{"$f":"Translations!$B$1432","v":"Stranded wires, cables, ropes and similar articles, of aluminium (other than with steel core and electrically insulated products)"},"76149000",{"$f":"Translations!$B$688","v":"Aluminium products"},{"$f":"IF(E746=\" --- \",\"\",COUNTIF($E$3:E746,E746)&\"_\"&E746)","v":"68_Aluminium products"},null,"Stranded wires, cables, ropes and similar articles, of aluminium (other than with steel core and electrically insulated products)"]
["761600000080","7616",{"$f":"Translations!$B$1433","v":"Articles of aluminium, n.e.s."},"7616",{"$f":"Translations!$B$688","v":"Aluminium products"},{"$f":"IF(E747=\" --- \",\"\",COUNTIF($E$3:E747,E747)&\"_\"&E747)","v":"69_Aluminium products"},null,"Articles of aluminium, n.e.s."]
["761610000080","7616 10 00",{"$f":"Translations!$B$1434","v":"Nails, tacks, staples, screws, bolts, nuts, screw hooks, rivets, cotters, cotter pins, washers and similar articles, of aluminium (excl. staples in strips, plugs, bungs and the like, threaded)"},"76161000",{"$f":"Translations!$B$688","v":"Aluminium products"},{"$f":"IF(E748=\" --- \",\"\",COUNTIF($E$3:E748,E748)&\"_\"&E748)","v":"70_Aluminium products"},null,"Nails, tacks, staples, screws, bolts, nuts, screw hooks, rivets, cotters, cotter pins, washers and similar articles, of aluminium (excl. staples in strips, plugs, bungs and the like, threaded)"]
["761691000080","7616 91 00",{"$f":"Translations!$B$1435","v":"Cloth, grill, netting and fencing, of aluminium wire (excl. cloth of metal fibres for clothing, lining and similar uses, and cloth, grill and netting made into hand sieves or machine parts)"},"76169100",{"$f":"Translations!$B$688","v":"Aluminium products"},{"$f":"IF(E749=\" --- \",\"\",COUNTIF($E$3:E749,E749)&\"_\"&E749)","v":"71_Aluminium products"},null,"Cloth, grill, netting and fencing, of aluminium wire (excl. cloth of metal fibres for clothing, lining and similar uses, and cloth, grill and netting made into hand sieves or machine parts)"]
["761699000080","7616 99",{"$f":"Translations!$B$1433","v":"Articles of aluminium, n.e.s."},"761699",{"$f":"Translations!$B$688","v":"Aluminium products"},{"$f":"IF(E750=\" --- \",\"\",COUNTIF($E$3:E750,E750)&\"_\"&E750)","v":"72_Aluminium products"},null,"Articles of aluminium, n.e.s."]
["761699100080","7616 99 10",{"$f":"Translations!$B$1436","v":"Articles of aluminium, cast, n.e.s."},"76169910",{"$f":"Translations!$B$688","v":"Aluminium products"},{"$f":"IF(E751=\" --- \",\"\",COUNTIF($E$3:E751,E751)&\"_\"&E751)","v":"73_Aluminium products"},null,"Articles of aluminium, cast, n.e.s."]
["761699900080","7616 99 90",{"$f":"Translations!$B$1437","v":"Articles of aluminium, uncast, n.e.s."},"76169990",{"$f":"Translations!$B$688","v":"Aluminium products"},{"$f":"IF(E752=\" --- \",\"\",COUNTIF($E$3:E752,E752)&\"_\"&E752)","v":"74_Aluminium products"},null,"Articles of aluminium, uncast, n.e.s."]

{"sheet":"Translations","index":17,"n_rows":1886,"n_cols":13,"rows_kept":1886,"hidden":true}
[{"$nulls":3},"If you want to translate the guidance text in this template into another language, please select the next available column (first one available is column D) and copy the text in the new language into the corresponding rows and select the column number (e.g. \"4\" for column D) in cell A3."]
[{"$nulls":3},"However, do NOT make any changes to columns B (which will display the correct text based on the selection in A3) and column C which shall always contain the English translation"]
[]
[3,"Used language version","English Version (Original)","Language 1","Language 2","Language 3","Language 4","Language 5","Language 6","Language 7","Language 8","Language 9","Language 10"]
[1,{"$f":"IFERROR(INDEX(C5:M5,$A$4-2),$C5)","v":"Version history"},"Version history"]
[2,"Sheet \"Version history\"","Sheet \"Version history\""]
[3,"Version","Version"]
[4,"Date","Date"]
[5,"Description","Description"]
[6,"Table of contents","Table of contents"]
[7,{"$f":"IFERROR(INDEX(C11:M11,$A$4-2),$C11)","v":"Navigation Area:"},"Navigation Area:"]
[8,"Sheet \"Table of contents\"","Sheet \"Table of contents\""]
[9,"The following two sheets summarise the results at process and product level, respectively:","The following two sheets summarise the results at process and product level, respectively:"]
[10,"The following sheet summarises the main information to be communicated to the reporting declarant:","The following sheet summarises the main information to be communicated to the reporting declarant:"]
[11,"Language version:","Language version:"]
[12,"Reference filename:","Reference filename:"]
[13,"Information about this file:","Information about this file:"]
[14,"Installation name:","Installation name:"]
[15,"Reporting period:","Reporting period:"]
[16,"from:","from:"]
[17,"to:","to:"]
[18,"Guidelines & Conditions","Guidelines & Conditions"]
[19,"Sheet \"Guidelines & conditions\"","Sheet \"Guidelines & conditions\""]
[20,"General Information on this Template","General Information on this Template"]
[21,"General information","General information"]
[22,"Regulation (EU) 2023/956 establishes a carbon border adjustment mechanism (the ‘CBAM Regulation’) to address greenhouse gas emissions embedded in certain goods ('CBAM goods': iron and steel, cement, aluminium, fertilisers, hydrogen and electricity) on their importation into the customs territory of the European Union (the EU). The Regulation can be downloaded from:","Regulation (EU) 2023/956 establishes a carbon border adjustment mechanism (the ‘CBAM Regulation’) to address greenhouse gas emissions embedded in certain goods ('CBAM goods': iron and steel, cement, aluminium, fertilisers, hydrogen and electricity) on their importation into the customs territory of the European Union (the EU). The Regulation can be downloaded from:"]
[23,"https://eur-lex.europa.eu/eli/reg/2023/956/oj","https://eur-lex.europa.eu/eli/reg/2023/956/oj"]
[24,"Pursuant to Article 35(7) of the Regulation, the Commission adopted an implementing act which lays down the detailed rules for 'reporting declarants' (as defined in Article 2(1) of this implementing act) for reporting obligations upon import into the European Union during the transitional period from 1 October 2023 to 31 December 2025 (‘transitional period’). The Regulation can be downloaded from:","Pursuant to Article 35(7) of the Regulation, the Commission adopted an implementing act which lays down the detailed rules for 'reporting declarants' (as defined in Article 2(1) of this implementing act) for reporting obligations upon import into the European Union during the transitional period from 1 October 2023 to 31 December 2025 (‘transitional period’). The Regulation can be downloaded from:"]
[25,"https://taxation-customs.ec.europa.eu/system/files/2023-08/C_2023_5512_1_EN_ACT_part1_v6.pdf","https://taxation-customs.ec.europa.eu/system/files/2023-08/C_2023_5512_1_EN_ACT_part1_v6.pdf"]
[26,"Article 8 of the implementing act requires reporting declarants to submit a CBAM report for each good listed under 1. imported into the EU. CBAM reports must contain certain data and information on the embedded emissions of the goods, to be obtained from the producer of these goods ('operators of installations located in third countries').","Article 8 of the implementing act requires reporting declarants to submit a CBAM report for each good listed under 1. imported into the EU. CBAM reports must contain certain data and information on the embedded emissions of the goods, to be obtained from the producer of these goods ('operators of installations located in third countries')."]
[27,"This data collection template has been developed on behalf of the Commission by its consultants (Umweltbundesamt GmbH Austria) and serves the purpose of facilitating the communication between operators of installations located in third countries and the reporting declarants.","This data collection template has been developed on behalf of the Commission by its consultants (Umweltbundesamt GmbH Austria) and serves the purpose of facilitating the communication between operators of installations located in third countries and the reporting declarants."]
[28,"The views expressed in this file represent the views of the authors and not necessarily those of the European Commission. ","The views expressed in this file represent the views of the authors and not necessarily those of the European Commission. "]
[29,"This is the 2nd published version of the CBAM template, version of 23 October 2023.","This is the 2nd published version of the CBAM template, version of 23 October 2023."]
[30,"How to use this file","How to use this file"]
[31,"Automatic calculation (to be found in the menu Formula/Calculation options) must be turned on.","Automatic calculation (to be found in the menu Formula/Calculation options) must be turned on."]
[32,"It is recommended that you go through the file from start to end. There are a few functions which will guide you through the form which depend on previous input, such as cells changing colour if an input is not needed (see colour codes below).","It is recommended that you go through the file from start to end. There are a few functions which will guide you through the form which depend on previous input, such as cells changing colour if an input is not needed (see colour codes below)."]
[33,"Whenever a value of zero is to be reported, it should be entered rather than keeping the cell empty. Values needed for calculations should always be entered (especially if zero, because some formulas don't give results as long as required cells are empty). If a cell is kept empty, the reporting declarantd do not know if the value is zero, is irrelevant or unknown, or if making entries has been overlooked.","Whenever a value of zero is to be reported, it should be entered rather than keeping the cell empty. Values needed for calculations should always be entered (especially if zero, because some formulas don't give results as long as required cells are empty). If a cell is kept empty, the reporting declarantd do not know if the value is zero, is irrelevant or unknown, or if making entries has been overlooked."]
[34,"In several fields you can choose from predefined inputs using a \"drop-down list\", by either clicking on the small arrow appearing at the right border of the cell, or pressing \"Alt-CursorDown\" when you have selected the cell. Also, there are some fields which enable you to draft your reply even if a drop-down list exists. This is the case when drop-down lists contain empty list entries.","In several fields you can choose from predefined inputs using a \"drop-down list\", by either clicking on the small arrow appearing at the right border of the cell, or pressing \"Alt-CursorDown\" when you have selected the cell. Also, there are some fields which enable you to draft your reply even if a drop-down list exists. This is the case when drop-down lists contain empty list entries."]
[35,"Error messages will occur sometimes when data entries are incomplete. However, the non-appearance of error messages is not a guarantee for correct calculations, as a data completeness test is not always possible. If no result appears in a green field, it can be assumed that some data is still missing.","Error messages will occur sometimes when data entries are incomplete. However, the non-appearance of error messages is not a guarantee for correct calculations, as a data completeness test is not always possible. If no result appears in a green field, it can be assumed that some data is still missing."]
[36,"Special care must be taken of ensure consistency of data with the units displayed.","Special care must be taken of ensure consistency of data with the units displayed."]
[37,"Colour codes and fonts:","Colour codes and fonts:"]
[38,"Black bold text:","Black bold text:"]
[39,"This is text describing the input required.","This is text describing the input required."]
[40,"Smaller italic text:","Smaller italic text:"]
[41,"This text gives further explanations. ","This text gives further explanations. "]
[42,"Yellow fields indicate mandatory inputs for the calculation of embedded emissions and for other information required.","Yellow fields indicate mandatory inputs for the calculation of embedded emissions and for other information required."]
[43,"Light yellow fields indicate that an input is optional.","Light yellow fields indicate that an input is optional."]
[44,"Green fields show automatically calculated results. Red text indicates error messages (missing data etc).","Green fields show automatically calculated results. Red text indicates error messages (missing data etc)."]
[45,"Shaded fields indicate that an input in another field makes the input here irrelevant.","Shaded fields indicate that an input in another field makes the input here irrelevant."]
[46,"Light grey areas are dedicated for navigation and hyperlinks.","Light grey areas are dedicated for navigation and hyperlinks."]
[47,"Additionally, there are colour indicators in some sheets (e.g. D, E) indicating the following:","Additionally, there are colour indicators in some sheets (e.g. D, E) indicating the following:"]
[48,"White indicates that data entry is not required here, based on entries in another field making inputs here irrelevant (see 'shaded fields' above).","White indicates that data entry is not required here, based on entries in another field making inputs here irrelevant (see 'shaded fields' above)."]
[49,"Red colour indicates data inputs are required but the relevant cells are empty or filled incorrectly.","Red colour indicates data inputs are required but the relevant cells are empty or filled incorrectly."]
[50,"Green colour indicates data inputs are required and cells have been filled correctly.","Green colour indicates data inputs are required and cells have been filled correctly."]
[51,"Navigation panels on top of each sheet provide hyperlinks for quick jumps to individual input sections. The first line (\"Table of contents\", \"Further guidance\", \"Summary_Processes\" and \"Summary_Products\") is the same for all sheets. Depending on the sheet, further menu items are added. If the background colour of one of the hyperlink areas turns red, this indicates that data is missing in the related section (not in all sheets).","Navigation panels on top of each sheet provide hyperlinks for quick jumps to individual input sections. The first line (\"Table of contents\", \"Further guidance\", \"Summary_Processes\" and \"Summary_Products\") is the same for all sheets. Depending on the sheet, further menu items are added. If the background colour of one of the hyperlink areas turns red, this indicates that data is missing in the related section (not in all sheets)."]
[52,"This template has been locked against data entry except for (light( yellow fields. However, for transparency reasons, no password has been set. This allows for complete viewing of all formulae. When using this file for data entry, it is recommended to keep the protection in force. The sheets should only be unprotected for checking the validity of formulae. It is recommended to do this in a separate file.","This template has been locked against data entry except for (light( yellow fields. However, for transparency reasons, no password has been set. This allows for complete viewing of all formulae. When using this file for data entry, it is recommended to keep the protection in force. The sheets should only be unprotected for checking the validity of formulae. It is recommended to do this in a separate file."]
[53,"In order to protect formulae against unintended modifications, which usually lead to wrong and misleading results, it is of utmost importance NOT TO USE the CUT & PASTE feature. If you want to move data, first COPY and PASTE them, and thereafter delete the unwanted data in the old (wrong) place.","In order to protect formulae against unintended modifications, which usually lead to wrong and misleading results, it is of utmost importance NOT TO USE the CUT & PASTE feature. If you want to move data, first COPY and PASTE them, and thereafter delete the unwanted data in the old (wrong) place."]
[54,"DISCLAIMER: All formulae have been developed carefully and thoroughly. However, mistakes cannot be fully excluded.\nAs described above, full transparency for checking the validity of calculations is ensured. Neither the authors of this file nor the European Commission can be held liable for eventual damages resulting from wrong or misleading results of the provided calculations. \nIt is the full responsibility of the user of this file (i.e. the operator of an installation) to ensure that reporting declarants report accurate data.","DISCLAIMER: All formulae have been developed carefully and thoroughly. However, mistakes cannot be fully excluded.\nAs described above, full transparency for checking the validity of calculations is ensured. Neither the authors of this file nor the European Commission can be held liable for eventual damages resulting from wrong or misleading results of the provided calculations. \nIt is the full responsibility of the user of this file (i.e. the operator of an installation) to ensure that reporting declarants report accurate data."]
[55,"Information sources:","Information sources:"]
[56,"EU CBAM websites:","EU CBAM websites:"]
[57,"https://taxation-customs.ec.europa.eu/carbon-border-adjustment-mechanism_en","https://taxation-customs.ec.europa.eu/carbon-border-adjustment-mechanism_en"]
[58,"EU-Legislation:","EU-Legislation:"]
[59,"http://eur-lex.europa.eu/en/index.htm","http://eur-lex.europa.eu/en/index.htm"]
[60,"InstData","InstData"]
[61,"Sheet \"A_InstData\" - General information, production processes and purchased precursors ","Sheet \"A_InstData\" - General information, production processes and purchased precursors "]
[62,"Errors","Errors"]
[63,"Reporting period","Reporting period"]
[64,"Start:","Start:"]
[65,"End:","End:"]
[66,"Please enter here the starting date and the end date of the reporting period to which all data entered in this communication template refers to. For example, if you want to report data based on the whole calendar year 2023, the starting date would be 1.1.2023 and the end date 31.12.2023.","Please enter here the starting date and the end date of the reporting period to which all data entered in this communication template refers to. For example, if you want to report data based on the whole calendar year 2023, the starting date would be 1.1.2023 and the end date 31.12.2023."]
[67,"It is important that all data entered in this template (embedded emissions, carbon price due, product properties, etc.) all relate to that same reporting period entered above.","It is important that all data entered in this template (embedded emissions, carbon price due, product properties, etc.) all relate to that same reporting period entered above."]
[68,"About the installation","About the installation"]
[69,"Name of the installation (optional):","Name of the installation (optional):"]
[70,"Name of the installation (English name):","Name of the installation (English name):"]
[71,{"$f":"IFERROR(INDEX(C75:M75,$A$4-2),$C75)","v":"Street, Number:"},"Street, Number:"]
[72,"Economic activity:","Economic activity:"]
[73,"Post code:","Post code:"]
[74,"P.O. Box:","P.O. Box:"]
[75,"City:","City:"]
[76,"Country:","Country:"]
[77,"UNLOCODE:","UNLOCODE:"]
[78,"Coordinates of the main emission source (latitude):","Coordinates of the main emission source (latitude):"]
[79,"Coordinates of the main emission source (longitude):","Coordinates of the main emission source (longitude):"]
[80,"Name of authorized representative:","Name of authorized representative:"]
[81,"Email:","Email:"]
[82,"Telephone:","Telephone:"]
[83,"Verifier of the report – only if available and not required during transitional period","Verifier of the report – only if available and not required during transitional period"]
[84,"Verifier","Verifier"]
[85,"Name and address of the verifier of this report:","Name and address of the verifier of this report:"]
[86,"Company Name:","Company Name:"]
[87,"Postcode/ZIP:","Postcode/ZIP:"]
[88,"Authorised representative of the verifier:","Authorised representative of the verifier:"]
[89,"The nominated person should be familiar with this report. Ideally it is the lead verifier involved with this report.","The nominated person should be familiar with this report. Ideally it is the lead verifier involved with this report."]
[90,"Name:","Name:"]
[91,"Email address:","Email address:"]
[92,"Telephone number:","Telephone number:"]
[93,"Fax:","Fax:"]
[94,"Information about the verifier's accreditation:","Information about the verifier's accreditation:"]
[95,"Accreditation Member State:","Accreditation Member State:"]
[96,"Name of the national accreditation body:","Name of the national accreditation body:"]
[97,"Registration number issued by the Accreditation body:","Registration number issued by the Accreditation body:"]
[98,"Aggregated goods categories and relevant production processes","Aggregated goods categories and relevant production processes"]
[99,"Goods & precursors","Goods & precursors"]
[100,"List of aggregated goods categories, relevant precursors and corresponding production routes","List of aggregated goods categories, relevant precursors and corresponding production routes"]
[101,"Please list here ALL aggregated goods categories, including any relevant precursor types produced WITHIN the installation.","Please list here ALL aggregated goods categories, including any relevant precursor types produced WITHIN the installation."]
[102,"Where relevant, please list all production routes through which the aggregated goods are produced.","Where relevant, please list all production routes through which the aggregated goods are produced."]
[103,"Aggregated goods category","Aggregated goods category"]
[104,"Route","Route"]
[105,"Route 1","Route 1"]
[106,"Route 2","Route 2"]
[107,"Route 3","Route 3"]
[108,"Route 4","Route 4"]
[109,"Route 5","Route 5"]
[110,"Route 6","Route 6"]
[111,"For information, emissions from the following precursors are relevant for the embedded emissions of the types of aggregated goods listed above. Where those precursors are actually relevant for your production processes, please make sure those are also listed either in the table above (if produced within your installation) or under chapter 5 \"purchased precursors\" below (where produced in other installations).","For information, emissions from the following precursors are relevant for the embedded emissions of the types of aggregated goods listed above. Where those precursors are actually relevant for your production processes, please make sure those are also listed either in the table above (if produced within your installation) or under chapter 5 \"purchased precursors\" below (where produced in other installations)."]
[112,"Relevant precursors:","Relevant precursors:"]
[113,"Relevant production processes","Relevant production processes"]
[114,"Based on the list under (a), please list here only aggregated goods categories for which you want to establish distinct \"production process\" and assign all aggregated goods categories and relevant precursors that will be covered by its system boundary.","Based on the list under (a), please list here only aggregated goods categories for which you want to establish distinct \"production process\" and assign all aggregated goods categories and relevant precursors that will be covered by its system boundary."]
[115,"Example: if \"ammonia\" and \"nitric acid\" are both produced in your installation, you may either create a separate production process for each of these good types, or report them combined under 'nitric acid' under a 'bubble approach'. In the case of the latter, please select as of column F which other process you want to include under this 'bubble approach'. Note: the 'bubble approach' is only allowed if all ammonia produced is processed into nitric acid. If parts of the ammonia are exported from the installation, two separate production processes have to be selected here.","Example: if \"ammonia\" and \"nitric acid\" are both produced in your installation, you may either create a separate production process for each of these good types, or report them combined under 'nitric acid' under a 'bubble approach'. In the case of the latter, please select as of column F which other process you want to include under this 'bubble approach'. Note: the 'bubble approach' is only allowed if all ammonia produced is processed into nitric acid. If parts of the ammonia are exported from the installation, two separate production processes have to be selected here."]
[116,"Production process","Production process"]
[117,"Included goods categories listed under (a)","Included goods categories listed under (a)"]
[118,"Name","Name"]
[119,"Error message","Error message"]
[120,"Purchased precursors","Purchased precursors"]
[121,"Please list here all precursors that are produced OUTSIDE the installation (e.g. purchased) and consumed within the installation.","Please list here all precursors that are produced OUTSIDE the installation (e.g. purchased) and consumed within the installation."]
[122,"Please also list the country in which the relevant precursor was produced (see sheet \"c_CodeLists\" to find the correct country codes) and the relevant production routes, if known.","Please also list the country in which the relevant precursor was produced (see sheet \"c_CodeLists\" to find the correct country codes) and the relevant production routes, if known."]
[123,"Source streams","Source streams"]
[124,"Sheet \"B_EmInst\" - Installation's emission at source stream and emission source level","Sheet \"B_EmInst\" - Installation's emission at source stream and emission source level"]
[125,"Source streams and emission sources","Source streams and emission sources"]
[126,"Source Streams (excluding PFC emissions)","Source Streams (excluding PFC emissions)"]
[127,"#","#"]
[128,"Method","Method"]
[129,"Source stream name","Source stream name"]
[130,"Activity data (AD)","Activity data (AD)"]
[131,"AD Unit","AD Unit"]
[132,"Net calorific value (NCV)","Net calorific value (NCV)"]
[133,"NCV Unit","NCV Unit"]
[134,"Emission factor (EF)","Emission factor (EF)"]
[135,{"$f":"IFERROR(INDEX(C139:M139,$A$4-2),$C139)","v":"EF Unit"},"EF Unit"]
[136,"Carbon content","Carbon content"]
[137,"C-Content Unit","C-Content Unit"]
[138,"Oxidation factor (OxF)","Oxidation factor (OxF)"]
[139,"OxF Unit","OxF Unit"]
[140,"Conversion factor (ConvF)","Conversion factor (ConvF)"]
[141,"ConvF Unit","ConvF Unit"]
[142,"Biomass content (BioC)","Biomass content (BioC)"]
[143,"BioC Unit","BioC Unit"]
[144,"non-sust. BioC","non-sust. BioC"]
[145,"non-sust. BioC Unit","non-sust. BioC Unit"]
[146,"hourly GHG conc. Average","hourly GHG conc. Average"]
[147,"hourly GHG conc. Unit","hourly GHG conc. Unit"]
[148,"hours operating","hours operating"]
[149,"hours operating Unit","hours operating Unit"]
[150,"Flue gas (average)","Flue gas (average)"]
[151,"Flue gas (average), Unit","Flue gas (average), Unit"]
[152,"Flue gas (total)","Flue gas (total)"]
[153,"Flue gas (total), Unit","Flue gas (total), Unit"]
[154,"Annual amount of GHG","Annual amount of GHG"]
[155,"Annual amount of GHG Unit","Annual amount of GHG Unit"]
[156,"Global Warming Potential (GWP, tCO2e/t)","Global Warming Potential (GWP, tCO2e/t)"]
[157,"A: Frequency","A: Frequency"]
[158,"A: Duration","A: Duration"]
[159,"A: SEF(CF4)","A: SEF(CF4)"]
[160,"B: AEO","B: AEO"]
[161,"B: CE","B: CE"]
[162,"B: OVC","B: OVC"]
[163,"F(C2F6)","F(C2F6)"]
[164,"CF4 Emissions (t CF4)","CF4 Emissions (t CF4)"]
[165,"C2F6 Emissions (t C2F6)","C2F6 Emissions (t C2F6)"]
[166,"GWP (CF4) (tCO2e/t)","GWP (CF4) (tCO2e/t)"]
[167,"GWP (C2F6) (tCO2e/t)","GWP (C2F6) (tCO2e/t)"]
[168,"CF4 Emissions (t CO2e)","CF4 Emissions (t CO2e)"]
[169,"C2F6 Emissions (t CO2e)","C2F6 Emissions (t CO2e)"]
[170,"Collection efficiency, %","Collection efficiency, %"]
[171,"CO2e fossil (t)","CO2e fossil (t)"]
[172,"CO2e bio (t)","CO2e bio (t)"]
[173,"CO2e non-sust. bio (t)","CO2e non-sust. bio (t)"]
[174,"Energy content (fossil), TJ","Energy content (fossil), TJ"]
[175,"Energy content (bio), TJ","Energy content (bio), TJ"]
[176,"Ex.1","Ex.1"]
[177,"Combustion","Combustion"]
[178,"Heavy fuel oil","Heavy fuel oil"]
[179,"GJ/t","GJ/t"]
[180,"tCO2/TJ","tCO2/TJ"]
[181,"Ex.2","Ex.2"]
[182,"Process Emissions","Process Emissions"]
[183,"Raw meal for clinker","Raw meal for clinker"]
[184,"tCO2/t","tCO2/t"]
[185,"Ex.3","Ex.3"]
[186,"Mass balance","Mass balance"]
[187,"Steel","Steel"]
[188,"tC/t","tC/t"]
[189,"Process","Process"]
[190,"Mass Balance","Mass Balance"]
[191,"CC","CC"]
[192,"OxF","OxF"]
[193,"ConvF","ConvF"]
[194,"PFC Emissions","PFC Emissions"]
[195,"Type of anode","Type of anode"]
[196,"Method A","Method A"]
[197,"Method B","Method B"]
[198,"Ex.","Ex."]
[199,{"$f":"IFERROR(INDEX(C203:M203,$A$4-2),$C203)","v":"Overvoltage method"},"Overvoltage method"]
[200,"Centre Worked Pre-Bake (CWPB)","Centre Worked Pre-Bake (CWPB)"]
[201,"CF4","CF4"]
[202,"C2F6","C2F6"]
[203,"Emissions Sources (Measurement-Based Approaches)","Emissions Sources (Measurement-Based Approaches)"]
[204,"Emission sources","Emission sources"]
[205,"Type of GHG","Type of GHG"]
[206,"Biomass fraction","Biomass fraction"]
[207,"CO2 transfer","CO2 transfer"]
[208,"Energy & Emissions","Energy & Emissions"]
[209,"Sheet \"C_Emissions&Energy\" - Installation-level GHG emissions and energy consumption","Sheet \"C_Emissions&Energy\" - Installation-level GHG emissions and energy consumption"]
[210,"Values","Values"]
[211,"Fuel balance","Fuel balance"]
[212,"Please enter in the table below the amount of energy consumed for each use type:","Please enter in the table below the amount of energy consumed for each use type:"]
[213,"Fuel input to all CBAM production processes (including precursors produced within the installation), either directly or via the production of measurable heat (e.g. steam) with the exception of fuel for electricity.","Fuel input to all CBAM production processes (including precursors produced within the installation), either directly or via the production of measurable heat (e.g. steam) with the exception of fuel for electricity."]
[214,"Fuel input for electricity production","Fuel input for electricity production"]
[215,"Fuel input to all non-CBAM production processes, either directly or via the production of measurable heat (e.g. steam).","Fuel input to all non-CBAM production processes, either directly or via the production of measurable heat (e.g. steam)."]
[216,"Fuel balance:","Fuel balance:"]
[217,"Unit","Unit"]
[218,"Total fuel input","Total fuel input"]
[219,"Direct fuel for CBAM goods","Direct fuel for CBAM goods"]
[220,"Fuel for electricity","Fuel for electricity"]
[221,"Direct fuel for non-CBAM goods","Direct fuel for non-CBAM goods"]
[222,"Rest","Rest"]
[223,"from sheet \"B_EmInst\"","from sheet \"B_EmInst\""]
[224,"manual entries","manual entries"]
[225,"Results:","Results:"]
[226,"Greenhouse gas emissions balance & information on data quality","Greenhouse gas emissions balance & information on data quality"]
[227,"Values below are taken automatically from entries in sheet \"B_EmInst\". If entries made in that sheet are incomplete, please enter the total emissions figures manually under ii. to override automatic results displayed under i.","Values below are taken automatically from entries in sheet \"B_EmInst\". If entries made in that sheet are incomplete, please enter the total emissions figures manually under ii. to override automatic results displayed under i."]
[228,"Installation level data:","Installation level data:"]
[229,"Total CO2 emissions","Total CO2 emissions"]
[230,"Biomass emissions","Biomass emissions"]
[231,"Total N2O emissions","Total N2O emissions"]
[232,"Total PFC emissions","Total PFC emissions"]
[233,"Total direct emissions","Total direct emissions"]
[234,"Total indirect emissions","Total indirect emissions"]
[235,"Total emissions","Total emissions"]
[236,"Production processes","Production processes"]
[237,"Sheet \"D_Processes\" - Production level and attributed emissions for SEE calculation","Sheet \"D_Processes\" - Production level and attributed emissions for SEE calculation"]
[238,"Data input for the determination of the specific embedded emissions","Data input for the determination of the specific embedded emissions"]
[239,"Total production levels:","Total production levels:"]
[240,"Production route","Production route"]
[241,"Amounts","Amounts"]
[242,"Total production within installation (= denominator for SEE calculation):","Total production within installation (= denominator for SEE calculation):"]
[243,"Production details","Production details"]
[244,"Produced for the market","Produced for the market"]
[245,"Share of total under (a) produced for the market","Share of total under (a) produced for the market"]
[246,"Total production only for the market?","Total production only for the market?"]
[247,"Consumed in other 'production processes' within the installation:","Consumed in other 'production processes' within the installation:"]
[248,"Consumed for non-CBAM goods within the installation:","Consumed for non-CBAM goods within the installation:"]
[249,"Control:","Control:"]
[250,"Calculation of the attributed emissions:","Calculation of the attributed emissions:"]
[251,"Measurable heat","Measurable heat"]
[252,"Waste gases","Waste gases"]
[253,"Indirect emissions","Indirect emissions"]
[254,"Please select which elements are applicable","Please select which elements are applicable"]
[255,"Based on your selection, related sections below might become irrelevant and greyed out below.","Based on your selection, related sections below might become irrelevant and greyed out below."]
[256,"Value","Value"]
[257,"Directly attributable emissions (DirEm*)","Directly attributable emissions (DirEm*)"]
[258,"Import and export of measurable heat","Import and export of measurable heat"]
[259,"Imported","Imported"]
[260,"Exported","Exported"]
[261,"Amount of net measurable heat","Amount of net measurable heat"]
[262,"Emissions factor","Emissions factor"]
[263,{"$f":"IFERROR(INDEX(C267:M267,$A$4-2),$C267)","v":"Amount of waste gas"},"Amount of waste gas"]
[264,"Emission factor","Emission factor"]
[265,"Indirect emissions from electricity consumption","Indirect emissions from electricity consumption"]
[266,"Electricity consumption","Electricity consumption"]
[267,"Emission factor of the electricity","Emission factor of the electricity"]
[268,"Source of the emission factor","Source of the emission factor"]
[269,"Electricity exported from the production process","Electricity exported from the production process"]
[270,"Amounts exported","Amounts exported"]
[271,"Sheet \"E_PurchPrec\" - Purchased precursors for SEE calculation","Sheet \"E_PurchPrec\" - Purchased precursors for SEE calculation"]
[272,"Total purchased levels:","Total purchased levels:"]
[273,"Total consumption within installation:","Total consumption within installation:"]
[274,"Consumed in \"production processes\" within the installation:","Consumed in \"production processes\" within the installation:"]
[275,"Specific embedded emissions:","Specific embedded emissions:"]
[276,"Emissions embedded in this purchased precursor","Emissions embedded in this purchased precursor"]
[277,"Please enter here the values and sources for the specific embedded direct and indirect emissions, as obtained from the supplier.","Please enter here the values and sources for the specific embedded direct and indirect emissions, as obtained from the supplier."]
[278,"For the SEE (direct), the 'Type of value' relates to whether the direct emissions are measured, or whether a default value provided by the European Commission was applied.","For the SEE (direct), the 'Type of value' relates to whether the direct emissions are measured, or whether a default value provided by the European Commission was applied."]
[279,"In order to obtain these data and information, you may want to ask your supplier to fill in an empty copy of this communication template.","In order to obtain these data and information, you may want to ask your supplier to fill in an empty copy of this communication template."]
[280,"Parameter:","Parameter:"]
[281,"Source","Source"]
[282,"Specific embedded direct emissions (SEE (direct) )","Specific embedded direct emissions (SEE (direct) )"]
[283,"Specific embedded indirect emissions (SEE (indirect) )","Specific embedded indirect emissions (SEE (indirect) )"]
[284,"Tools","Tools"]
[285,"Sheet \"F_Tools\" - Tools for facilitating reporting","Sheet \"F_Tools\" - Tools for facilitating reporting"]
[286,"Cogeneration Tool","Cogeneration Tool"]
[287,"This is a tool for attributing fuels and emissions of CHPs to heat and electricity output.","This is a tool for attributing fuels and emissions of CHPs to heat and electricity output."]
[288,"This tool exists twofold in this template and each tool should only be used for one CHP. If more CHPs are relevant, you must aggregate energy amounts and emissions from multiple CHPs.","This tool exists twofold in this template and each tool should only be used for one CHP. If more CHPs are relevant, you must aggregate energy amounts and emissions from multiple CHPs."]
[289,"Periods during which the CHP is operated in heat-only or electricity-only generation mode (i.e. periods during which only one of the two products was produced) should be excluded and assignment of fuels and emissions should be calculated separately.","Periods during which the CHP is operated in heat-only or electricity-only generation mode (i.e. periods during which only one of the two products was produced) should be excluded and assignment of fuels and emissions should be calculated separately."]
[290,"Tool to calculate the emissions attributable to heat production in combined heat and power units (CHP)","Tool to calculate the emissions attributable to heat production in combined heat and power units (CHP)"]
[291,"Total amount of fuel input into CHP units","Total amount of fuel input into CHP units"]
[292,"Please enter here the annual fuel input into the CHP unit, the net amount of heat produced and the net amount of electricity (or mechanical energy, where applicable) produced by the CHP.","Please enter here the annual fuel input into the CHP unit, the net amount of heat produced and the net amount of electricity (or mechanical energy, where applicable) produced by the CHP."]
[293,"Parameter","Parameter"]
[294,"Fuel input into CHP","Fuel input into CHP"]
[295,"Heat output from CHP","Heat output from CHP"]
[296,"Electricity output from CHP","Electricity output from CHP"]
[297,"Inputs and outputs","Inputs and outputs"]
[298,"Total emissions from CHP","Total emissions from CHP"]
[299,"Values should distinguish between emissions from fuel input and from flue gas cleaning.","Values should distinguish between emissions from fuel input and from flue gas cleaning."]
[300,"From fuel input to CHP","From fuel input to CHP"]
[301,"From flue gas cleaning","From flue gas cleaning"]
[302,"GHG emissions","GHG emissions"]
[303,"t CO2/year","t CO2/year"]
[304,"Default efficiencies:","Default efficiencies:"]
[305,"Heat:","Heat:"]
[306,"Electricity:","Electricity:"]
[307,"Efficiencies for heat and electricity","Efficiencies for heat and electricity"]
[308,"These values are dimensionless and automatically calculated from inputs in (a) to (c) above.","These values are dimensionless and automatically calculated from inputs in (a) to (c) above."]
[309,"If no values are displayed here but total emissions under (b) above, default efficiencies from (c) will be used here. Please note that this should only be done if the determination of the efficiencies is technically not feasible or would incur unreasonable costs, and values based on technical documentation (design values) of the installation are not available as well.","If no values are displayed here but total emissions under (b) above, default efficiencies from (c) will be used here. Please note that this should only be done if the determination of the efficiencies is technically not feasible or would incur unreasonable costs, and values based on technical documentation (design values) of the installation are not available as well."]
[310,"Heat production","Heat production"]
[311,"Electricity production","Electricity production"]
[312,"Total","Total"]
[313,"Efficiencies","Efficiencies"]
[314,"Reference efficiencies","Reference efficiencies"]
[315,"These are the reference efficiency for heat production in a stand-alone boiler, and the reference efficiency of electricity production without cogeneration. ","These are the reference efficiency for heat production in a stand-alone boiler, and the reference efficiency of electricity production without cogeneration. "]
[316,"For the reference efficiencies the appropriate fuel-specific values from Annex IX of the Commission Implementing Regulation pursuant to Article 35(7) of the CBAM Regulation.","For the reference efficiencies the appropriate fuel-specific values from Annex IX of the Commission Implementing Regulation pursuant to Article 35(7) of the CBAM Regulation."]
[317,"Default efficiencies below are for hard coal CHPs producing electricity and hot water.","Default efficiencies below are for hard coal CHPs producing electricity and hot water."]
[318,"Emissions attributable to heat production from CHP","Emissions attributable to heat production from CHP"]
[319,"This is the final result of this tool. The values displayed here should be entered in sheets D or E for the attributable emissions for the appropriate production process or precursor.","This is the final result of this tool. The values displayed here should be entered in sheets D or E for the attributable emissions for the appropriate production process or precursor."]
[320,"For example, this may include attributable emissions to be taken into account for the total direct emissions, or use of the emission factor for any measurable heat imported.","For example, this may include attributable emissions to be taken into account for the total direct emissions, or use of the emission factor for any measurable heat imported."]
[321,"Calculation results can only be considered correct if complete and consistent data is reported in sections above.","Calculation results can only be considered correct if complete and consistent data is reported in sections above."]
[322,"Emissions attributable to heat output","Emissions attributable to heat output"]
[323,"Emission factor, heat","Emission factor, heat"]
[324,"Emissions attributable to electricity","Emissions attributable to electricity"]
[325,"Emission factor, electricity","Emission factor, electricity"]
[326,"Attributable emissions","Attributable emissions"]
[327,{"$f":"IFERROR(INDEX(C331:M331,$A$4-2),$C331)","v":"Fuel input attributable to heat and electricity production"},"Fuel input attributable to heat and electricity production"]
[328,"This is the final result of this tool. The values displayed here should be used in section C.1.","This is the final result of this tool. The values displayed here should be used in section C.1."]
[329,"Fuel input for heat","Fuel input for heat"]
[330,"Fuel input for electricity","Fuel input for electricity"]
[331,"Attributable fuel input","Attributable fuel input"]
[332,"Tool to calculate the carbon price due","Tool to calculate the carbon price due"]
[333,"Tool for carbon price due","Tool for carbon price due"]
[334,"This tool aims to help you with the calculation of the carbon price due. Similar to the calculation of the specific embedded emissions in sheets D + E, please only enter the carbon price due and any rebate received in respect of the system boundaries of the production process.","This tool aims to help you with the calculation of the carbon price due. Similar to the calculation of the specific embedded emissions in sheets D + E, please only enter the carbon price due and any rebate received in respect of the system boundaries of the production process."]
[335,"The results obtained here in columns L and M have to be manually entered into the respective fields in sheet \"Summary_Products\".","The results obtained here in columns L and M have to be manually entered into the respective fields in sheet \"Summary_Products\"."]
[336,"The following conditions apply:","The following conditions apply:"]
[337,"- the carbon price used for each production process has to be converted into one common currency.","- the carbon price used for each production process has to be converted into one common currency."]
[338,"- the system boundaries of carbon pricing have to be consistent with the boundaries of the production process and precursors.","- the system boundaries of carbon pricing have to be consistent with the boundaries of the production process and precursors."]
[339,"If the conditions above are not satisfied, this tool can only be used to support you with the calculation of the carbon price, but results cannot be used directly.","If the conditions above are not satisfied, this tool can only be used to support you with the calculation of the carbon price, but results cannot be used directly."]
[340,"SEE (total)","SEE (total)"]
[341,"Total (direct + indirect) specific embedded emissions of the production process, i.e. including any embedded emissions from any precursors consumed in the process.","Total (direct + indirect) specific embedded emissions of the production process, i.e. including any embedded emissions from any precursors consumed in the process."]
[342,"Share of emissions covered by the carbon price","Share of emissions covered by the carbon price"]
[343,"Carbon price (CP) due","Carbon price (CP) due"]
[344,"Amount of rebate (local currency)","Amount of rebate (local currency)"]
[345,"Covered SEE","Covered SEE"]
[346,"Carbon price (CP) due (local currency)","Carbon price (CP) due (local currency)"]
[347,"CP due (per t or MWh)","CP due (per t or MWh)"]
[348,"Rebate (per t or MWh)","Rebate (per t or MWh)"]
[349,"Result: Effective CP due","Result: Effective CP due"]
[350,"Further Guidance","Further Guidance"]
[351,"Sheet \"G_FurtherGuidance\" - Further guidance on specific sections in this template","Sheet \"G_FurtherGuidance\" - Further guidance on specific sections in this template"]
[352,"General guidance","General guidance"]
[353,"Each section of this template contains guidance on how to complete the required inputs in that section. However, for some sections the amount of guidance needed could distract the user from relevant inputs and make the format of the template less user-friendly. Where this is the case, the sections below provide the said further detailed guidance.","Each section of this template contains guidance on how to complete the required inputs in that section. However, for some sections the amount of guidance needed could distract the user from relevant inputs and make the format of the template less user-friendly. Where this is the case, the sections below provide the said further detailed guidance."]
[354,"You do however not have to read the sections below from top to bottom. It is better if you go through the template from start to end (as also recommended in sheet \"b_Guidelines&Conditions\") and relevant sections will contain a hyperlink that will direct you to the relevant guidance in this sheet anyway.","You do however not have to read the sections below from top to bottom. It is better if you go through the template from start to end (as also recommended in sheet \"b_Guidelines&Conditions\") and relevant sections will contain a hyperlink that will direct you to the relevant guidance in this sheet anyway."]
[355,"You can also find further guidance, including examples, in the guidance document published on the European Commission's website, which can be found here:","You can also find further guidance, including examples, in the guidance document published on the European Commission's website, which can be found here:"]
[356,"In sheet \"B_EmInst\" the energy content and the greenhouse gas (GHG) emissions are calculated for each source stream and emission source.","In sheet \"B_EmInst\" the energy content and the greenhouse gas (GHG) emissions are calculated for each source stream and emission source."]
[357,"At the top of each block in that sheet you can find examples on how to complete data inputs in order to calculate the corresponding emissions for each source stream and emission source.","At the top of each block in that sheet you can find examples on how to complete data inputs in order to calculate the corresponding emissions for each source stream and emission source."]
[358,"Guidance on each parameter below aims to help you with filling all input fields in sheet \"B_EmInst\".","Guidance on each parameter below aims to help you with filling all input fields in sheet \"B_EmInst\"."]
[359,"Source streams (excluding PFC emissions)","Source streams (excluding PFC emissions)"]
[360,"Please select from the drop-down list the monitoring method applied for the relevant source stream: \"combustion\", \"process emissions\" or \"mass balance\".","Please select from the drop-down list the monitoring method applied for the relevant source stream: \"combustion\", \"process emissions\" or \"mass balance\"."]
[361,"Please enter here the name of the source stream, e.g. coal, natural gas, clinker raw meal, limestone, iron ore, steel, scrap iron, scrap aluminium.","Please enter here the name of the source stream, e.g. coal, natural gas, clinker raw meal, limestone, iron ore, steel, scrap iron, scrap aluminium."]
[362,"Activity data (AD)","Activity data (AD)"]
[363,"The activity data is the data on the amount of fuels or materials consumed or produced by a process as relevant for the calculation-based monitoring methodology, expressed mass in tonnes (t), or for gases as volume in normal cubic metres (Nm³), as appropriate.","The activity data is the data on the amount of fuels or materials consumed or produced by a process as relevant for the calculation-based monitoring methodology, expressed mass in tonnes (t), or for gases as volume in normal cubic metres (Nm³), as appropriate."]
[364,"AD unit","AD unit"]
[365,"The corresponding units in which the amounts above are provided. For example tonnes (t) for mass or normal cubic metres (Nm³) for gases.","The corresponding units in which the amounts above are provided. For example tonnes (t) for mass or normal cubic metres (Nm³) for gases."]
[366,"(prelim) EF","(prelim) EF"]
[367,"The \"preliminary\" emission factor is the assumed total emission factor of a mixed fuel or material based on the total carbon content composed of biomass fraction and fossil fraction before multiplying it with the fossil fraction to result in the emission factor.","The \"preliminary\" emission factor is the assumed total emission factor of a mixed fuel or material based on the total carbon content composed of biomass fraction and fossil fraction before multiplying it with the fossil fraction to result in the emission factor."]
[368,"The net calorific value is the specific amount of energy released as heat when a fuel or material undergoes complete combustion with oxygen under standard conditions less the heat of vaporisation of any water formed","The net calorific value is the specific amount of energy released as heat when a fuel or material undergoes complete combustion with oxygen under standard conditions less the heat of vaporisation of any water formed"]
[369,"Oxidation factor: the ratio of carbon oxidised to CO2 as a consequence of combustion to the total carbon contained in the fuel, expressed as a fraction, considering carbon monoxide (CO) emitted to the atmosphere as the molar equivalent amount of CO2.","Oxidation factor: the ratio of carbon oxidised to CO2 as a consequence of combustion to the total carbon contained in the fuel, expressed as a fraction, considering carbon monoxide (CO) emitted to the atmosphere as the molar equivalent amount of CO2."]
[370,"Conversion factor: the ratio of carbon emitted as CO2 to the total carbon contained in the source stream before the emitting process takes place, expressed as a fraction, considering CO emitted to the atmosphere as the molar equivalent amount of CO2.","Conversion factor: the ratio of carbon emitted as CO2 to the total carbon contained in the source stream before the emitting process takes place, expressed as a fraction, considering CO emitted to the atmosphere as the molar equivalent amount of CO2."]
[371,"CarbC","CarbC"]
[372,"The carbon content of the fuel or material.","The carbon content of the fuel or material."]
[373,"BioC","BioC"]
[374,"The biomass fraction is the ratio of carbon stemming from biomass to the total carbon content of a fuel or material, expressed as percentage.","The biomass fraction is the ratio of carbon stemming from biomass to the total carbon content of a fuel or material, expressed as percentage."]
[375,"Further columns greyed out","Further columns greyed out"]
[376,"Further columns are relevant for PFC emissions or emission sources (measurement-based approaches), but not for source streams. For source streams they are therefore greyed out.","Further columns are relevant for PFC emissions or emission sources (measurement-based approaches), but not for source streams. For source streams they are therefore greyed out."]
[377,"Energy and emissions","Energy and emissions"]
[378,"On the right side of each block the total energy content and GHG emissions (fossil and biogenic) are calculated automatically for each source stream.","On the right side of each block the total energy content and GHG emissions (fossil and biogenic) are calculated automatically for each source stream."]
[379,"PFC emissions","PFC emissions"]
[380,"Please select from the drop-down list the monitoring method applied: \"slope\" (Method A) or \"overvoltage\" (Method B).","Please select from the drop-down list the monitoring method applied: \"slope\" (Method A) or \"overvoltage\" (Method B)."]
[381,"Please provide here the type of anode such as Centre Worked Pre-Bake (CWPB), Vertical Stud Søderberg (VSS), etc.","Please provide here the type of anode such as Centre Worked Pre-Bake (CWPB), Vertical Stud Søderberg (VSS), etc."]
[382,"Activity data = annual production of primary Aluminium","Activity data = annual production of primary Aluminium"]
[383,"Method A: The frequency of anode effects (number of anode effects/cell-day)","Method A: The frequency of anode effects (number of anode effects/cell-day)"]
[384,"Method A: The average duration of anode effects (anode effect minutes/occurrence)","Method A: The average duration of anode effects (anode effect minutes/occurrence)"]
[385,"Method A: The slope emission factor","Method A: The slope emission factor"]
[386,"Method B: The anode effect overvoltage per cell","Method B: The anode effect overvoltage per cell"]
[387,"Method B: The average current efficiency","Method B: The average current efficiency"]
[388,"Method B: The overvoltage coefficient (‘emission factor’)","Method B: The overvoltage coefficient (‘emission factor’)"]
[389,"The weight fraction of C2F6","The weight fraction of C2F6"]
[390,"GWP (CF4)","GWP (CF4)"]
[391,{"$f":"IFERROR(INDEX(C395:M395,$A$4-2),$C395)","v":"The global warming potential of CF4"},"The global warming potential of CF4"]
[392,"GWP (C2F6)","GWP (C2F6)"]
[393,"The global warming potential of C2F6","The global warming potential of C2F6"]
[394,"Collection efficiency","Collection efficiency"]
[395,"Efficiency of the collection of the fugitive PFC emissions","Efficiency of the collection of the fugitive PFC emissions"]
[396,"Emission sources | Measurement-based approaches (continuous emission monitoring)","Emission sources | Measurement-based approaches (continuous emission monitoring)"]
[397,"Please enter here a name for the emission source or the point of emission, e.g. Stack xyz.","Please enter here a name for the emission source or the point of emission, e.g. Stack xyz."]
[398,"Please provide here the type of greenhouse gas (GHG) measured in the flue gas: CO2 or N2O.","Please provide here the type of greenhouse gas (GHG) measured in the flue gas: CO2 or N2O."]
[399,"hourly average GHG conc. ","hourly average GHG conc. "]
[400,"The weighted average hourly concentration of the GHG measured (g per Nm³)","The weighted average hourly concentration of the GHG measured (g per Nm³)"]
[401,"Hours operating","Hours operating"]
[402,"The total hours of operation of the production process","The total hours of operation of the production process"]
[403,"Flue gas","Flue gas"]
[404,"The total volume of the flue gas","The total volume of the flue gas"]
[405,"Energy content","Energy content"]
[406,"The energy content of the fuels or materials entering the production process","The energy content of the fuels or materials entering the production process"]
[407,"Attribution of emissions to production processes","Attribution of emissions to production processes"]
[408,"In sheet \"D_Processes\" the data inputs required are needed in order to calculate the specific emissions of each production processes, based on which the specific embedded emissions are calculated in this template.","In sheet \"D_Processes\" the data inputs required are needed in order to calculate the specific emissions of each production processes, based on which the specific embedded emissions are calculated in this template."]
[409,"Entries in sheet \"E_PurchPrec\" require similar entries. Further guidance is provided there.","Entries in sheet \"E_PurchPrec\" require similar entries. Further guidance is provided there."]
[410,"a)","a)"]
[411,"Total production","Total production"]
[412,"SEE Denominator","SEE Denominator"]
[413,"Please provide here the total amount of goods produced in the relevant production process, distinguishing amounts by the relevant production route. This is the denominator for the calculation of the specific embedded emissions.","Please provide here the total amount of goods produced in the relevant production process, distinguishing amounts by the relevant production route. This is the denominator for the calculation of the specific embedded emissions."]
[414,"b)","b)"]
[415,"Production for the market","Production for the market"]
[416,"Please provide here the total amount of goods that are placed on the market (any market, not only the European Union) and not further processed into goods within another production process of the installation.","Please provide here the total amount of goods that are placed on the market (any market, not only the European Union) and not further processed into goods within another production process of the installation."]
[417,"c)","c)"]
[418,"Consumed in other 'production processes'","Consumed in other 'production processes'"]
[419,"Please provide here the total amount of goods that are consumed in each listed production process as input to be further processed into the goods produced in those processes. Please do not leave any yellow cells empty and enter zero (\"0\") if the good is not consumed by the specific process. Where all of the goods are reported as placed on the market under point b), this section will be greyed out and no inputs are required here.","Please provide here the total amount of goods that are consumed in each listed production process as input to be further processed into the goods produced in those processes. Please do not leave any yellow cells empty and enter zero (\"0\") if the good is not consumed by the specific process. Where all of the goods are reported as placed on the market under point b), this section will be greyed out and no inputs are required here."]
[420,"d)","d)"]
[421,"Consumed for non-CBAM goods","Consumed for non-CBAM goods"]
[422,"Please provide here the total amount of goods that are consumed in production processes within the installation which produce goods that are not covered by the scope of the CBAM.","Please provide here the total amount of goods that are consumed in production processes within the installation which produce goods that are not covered by the scope of the CBAM."]
[423,"e)","e)"]
[424,"Control","Control"]
[425,"This is an automatic calculation \"a-(b+c+d)\". Please ensure that this value is zero.","This is an automatic calculation \"a-(b+c+d)\". Please ensure that this value is zero."]
[426,"f)","f)"]
[427,"Applicable elements","Applicable elements"]
[428,"Please select here whether measurable heat (e.g. steam) or waste gases are imported to or exported from the relevant production process. The relevance of indirect emissions from electricity are shown automatically here.","Please select here whether measurable heat (e.g. steam) or waste gases are imported to or exported from the relevant production process. The relevance of indirect emissions from electricity are shown automatically here."]
[429,"Waste gases are particularly relevant in integrated iron & steel production and include flue gases containing high concentrations of incompletely oxidised carbon, for example, any coke oven gas imported into the blast furnace, or blast furnace gas exported from the production process to produce electricity.","Waste gases are particularly relevant in integrated iron & steel production and include flue gases containing high concentrations of incompletely oxidised carbon, for example, any coke oven gas imported into the blast furnace, or blast furnace gas exported from the production process to produce electricity."]
[430,"g)","g)"]
[431,"DirEm*","DirEm*"]
[432,"Please include here all emissions directly linked to and therefore attributable to the production process taking into consideration the further provisions below.","Please include here all emissions directly linked to and therefore attributable to the production process taking into consideration the further provisions below."]
[433,"Avoidance of double counting","Avoidance of double counting"]
[434,"Emissions shall only be attributed to ONE production process reported for this installation. Values entered here must therefore NOT include any emissions of the precursors that have been selected as another 'production process' as otherwise the template would double-count the embedded emissions.","Emissions shall only be attributed to ONE production process reported for this installation. Values entered here must therefore NOT include any emissions of the precursors that have been selected as another 'production process' as otherwise the template would double-count the embedded emissions."]
[435,"Measureable heat (e.g. steam): Emissions associated with fuel input into boilers can be either included here or via the 'import of measurable heat' below, but must not be reported twice. In the case the heat is produced in a CHP, the emissions have to be split between heat and electricity. The CHP Tool can help with that:","Measureable heat (e.g. steam): Emissions associated with fuel input into boilers can be either included here or via the 'import of measurable heat' below, but must not be reported twice. In the case the heat is produced in a CHP, the emissions have to be split between heat and electricity. The CHP Tool can help with that:"]
[436,"Waste gases: special rules apply here. Emissions from waste gases produced in another production process and consumed in this process should NOT be reported under DirEm*, but under 'Waste gas imported' below.","Waste gases: special rules apply here. Emissions from waste gases produced in another production process and consumed in this process should NOT be reported under DirEm*, but under 'Waste gas imported' below."]
[437,"Emissions from waste gases produced in the production process, but exported for combustion outside the production process MUST be included here. The corresponding deduction of emissions will be done by entering the relevant data under 'waste gas exported' below. An example would be the export of blast furnace gas from the crude steel production to the adjacent power plants. The emissions associated with the combustion of the blast furnace gas should be attributed to the crude steel production here under DirEm*.","Emissions from waste gases produced in the production process, but exported for combustion outside the production process MUST be included here. The corresponding deduction of emissions will be done by entering the relevant data under 'waste gas exported' below. An example would be the export of blast furnace gas from the crude steel production to the adjacent power plants. The emissions associated with the combustion of the blast furnace gas should be attributed to the crude steel production here under DirEm*."]
[438,"h)","h)"]
[439,"Please enter here the amounts of net measurable heat (e.g. steam) being imported to (e.g. from connected heat supplying installations) or exported from (e.g. heat recovery from the furnace and exported from the production process) the production process.","Please enter here the amounts of net measurable heat (e.g. steam) being imported to (e.g. from connected heat supplying installations) or exported from (e.g. heat recovery from the furnace and exported from the production process) the production process."]
[440,"For the emission factor (EF) of the heat, please consider the efficiency of the boiler. For example, if the EF of the fuel of which the heat is produced is 96 t CO2/TJ and the boiler efficiency is 90%, the EF to be reported here would be 96 divided by 90%.","For the emission factor (EF) of the heat, please consider the efficiency of the boiler. For example, if the EF of the fuel of which the heat is produced is 96 t CO2/TJ and the boiler efficiency is 90%, the EF to be reported here would be 96 divided by 90%."]
[441,"For the EF of heat produced in a CHP, please see the reference to the \"CHP Tool\" above.","For the EF of heat produced in a CHP, please see the reference to the \"CHP Tool\" above."]
[442,"Where the EF of exported heat is not clearly defined (e.g. heat recovery from furnaces or from exothermic heat), the standard emission factor of the fuel most commonly used in the country and industrial sector, assuming a boiler efficiency of 90%, should be used.","Where the EF of exported heat is not clearly defined (e.g. heat recovery from furnaces or from exothermic heat), the standard emission factor of the fuel most commonly used in the country and industrial sector, assuming a boiler efficiency of 90%, should be used."]
[443,"Heat recovered and NOT exported but used within the production process shall not be reported under exported heat.","Heat recovered and NOT exported but used within the production process shall not be reported under exported heat."]
[444,"i)","i)"]
[445,"Import and export of waste gases","Import and export of waste gases"]
[446,"Further to the waste gas related provisions described above under DirEm*, please provide there the net amounts of waste gases imported from other processes or installations and consumed in this production process, as well as any amounts of waste gases exported and consumed outside the production process.","Further to the waste gas related provisions described above under DirEm*, please provide there the net amounts of waste gases imported from other processes or installations and consumed in this production process, as well as any amounts of waste gases exported and consumed outside the production process."]
[447,"The emission factor of the waste gases will not impact the emissions attributed to this production process, due to the special rules for waste gases. Inputs there are therefore optional.","The emission factor of the waste gases will not impact the emissions attributed to this production process, due to the special rules for waste gases. Inputs there are therefore optional."]
[448,"j)","j)"]
[449,"Please enter the total amount of electricity consumed within the system boundaries of the production process.","Please enter the total amount of electricity consumed within the system boundaries of the production process."]
[450,"Please enter the average emission factor of the electricity consumed using the methods below for determination of this factor.","Please enter the average emission factor of the electricity consumed using the methods below for determination of this factor."]
[451,"The emission factor of the electricity can be determined by the following methods:","The emission factor of the electricity can be determined by the following methods:"]
[452,"CO2 emission factor based on specific default values  ","CO2 emission factor based on specific default values  "]
[453,"CO2 emission factor based on alternative default value ","CO2 emission factor based on alternative default value "]
[454,"CO2 emission factor based on reliable data demonstrated by the importer","CO2 emission factor based on reliable data demonstrated by the importer"]
[455,{"$f":"IFERROR(INDEX(C459:M459,$A$4-2),$C459)","v":"CO2 emission factor based on actual CO2 emissions of the installation "},"CO2 emission factor based on actual CO2 emissions of the installation "]
[456,"Mix","Mix"]
[457,"Where the electricity is not predominantly obtained from one source or the EF determined by more than one of the above sources, the EF is determined as a mix of the methods above.","Where the electricity is not predominantly obtained from one source or the EF determined by more than one of the above sources, the EF is determined as a mix of the methods above."]
[458,"k)","k)"]
[459,"Electricity exported","Electricity exported"]
[460,"This concerns special forms of electricity production being produced within the production process but exported outside the process. It concerns electricity produced via other forms than in gas turbines or via steam in turbines, but - for instance - via expansion of compressed gases in expansion turbines.","This concerns special forms of electricity production being produced within the production process but exported outside the process. It concerns electricity produced via other forms than in gas turbines or via steam in turbines, but - for instance - via expansion of compressed gases in expansion turbines."]
[461,"Summary of products","Summary of products"]
[462,"Please find below the detailed guidance on how to complete the sheet \"Summary_Products\".","Please find below the detailed guidance on how to complete the sheet \"Summary_Products\"."]
[463,"Sheet \"Summary_Products\" will be crucial for the communication with the 'reporting declarant' as it contains the main information required in order to correctly fill in the 'CBAM report' for importing the goods into the European Union.","Sheet \"Summary_Products\" will be crucial for the communication with the 'reporting declarant' as it contains the main information required in order to correctly fill in the 'CBAM report' for importing the goods into the European Union."]
[464,"The information provided there should be for each type of good imported into the EU. The type of goods should be listed as disaggregated as possible, i.e. splitting type of goods by their CN codes using as many digits as possible.","The information provided there should be for each type of good imported into the EU. The type of goods should be listed as disaggregated as possible, i.e. splitting type of goods by their CN codes using as many digits as possible."]
[465,"All information provided (specific embedded emissions, carbon price due, etc.) shall relate to the same reference period as entered in sheet A, section 1.","All information provided (specific embedded emissions, carbon price due, etc.) shall relate to the same reference period as entered in sheet A, section 1."]
[466,"An example for how to complete a row is provided at the top of the table in sheet \"Summary_Products\".","An example for how to complete a row is provided at the top of the table in sheet \"Summary_Products\"."]
[467,"General parameters","General parameters"]
[468,"Production process from which the products arise","Production process from which the products arise"]
[469,"This contains a drop-down list with all production processes listed in sheet A, section 4.b. The type of aggregated good will be displayed automatically and the drop-down list for the relevant CN codes (see below) will only contain the codes relevant for this type of aggregated good.","This contains a drop-down list with all production processes listed in sheet A, section 4.b. The type of aggregated good will be displayed automatically and the drop-down list for the relevant CN codes (see below) will only contain the codes relevant for this type of aggregated good."]
[470,"CN Codes","CN Codes"]
[471,"Please select here the relevant CN code, as disaggregated as possible (i.e. 8-digit code, if possible)","Please select here the relevant CN code, as disaggregated as possible (i.e. 8-digit code, if possible)"]
[472,"Product name \n(used for communication with reporting declarant)","Product name \n(used for communication with reporting declarant)"]
[473,"Please enter here a unique name for the product which you typically use in communication with your customers, in this case the reporting declarants, such as on product specification sheets or invoices. This will help the reporting declarant with matching the products with the information in this list.","Please enter here a unique name for the product which you typically use in communication with your customers, in this case the reporting declarants, such as on product specification sheets or invoices. This will help the reporting declarant with matching the products with the information in this list."]
[474,"Embedded emissions","Embedded emissions"]
[475,"Data related to the specific embedded emissions (SEE, direct/indirect/total) will be taken automatically based on entries in previous sheets, including the embedded electricity and the source based on which the emission factor (EF) of the electricity consumption is determined.","Data related to the specific embedded emissions (SEE, direct/indirect/total) will be taken automatically based on entries in previous sheets, including the embedded electricity and the source based on which the emission factor (EF) of the electricity consumption is determined."]
[476,"Embedded electricity","Embedded electricity"]
[477,"Specific embedded electricity consumption of the production process, i.e. including any embedded electricity consumption in other production processes within the installation (i.e. excl. from purchased precursors).","Specific embedded electricity consumption of the production process, i.e. including any embedded electricity consumption in other production processes within the installation (i.e. excl. from purchased precursors)."]
[478,"Special parameters for certain aggregated good types","Special parameters for certain aggregated good types"]
[479,"The main reducing agent of the precursor, if known","The main reducing agent of the precursor, if known"]
[480,"This parameter is relevant for the production of pig iron, direct reduced iron, crude steel and iron and steel products. Please select from the drop-down list the main reducing agent (coke or coal, natural gas, etc.) used to reduce the iron ores.","This parameter is relevant for the production of pig iron, direct reduced iron, crude steel and iron and steel products. Please select from the drop-down list the main reducing agent (coke or coal, natural gas, etc.) used to reduce the iron ores."]
[481,"Steel mill identification number","Steel mill identification number"]
[482,"For steel goods, the identification number of the specific steel mill (also known as the \"heat number\") where a particular batch of raw materials was produced, where known.","For steel goods, the identification number of the specific steel mill (also known as the \"heat number\") where a particular batch of raw materials was produced, where known."]
[483,"% Mn","% Mn"]
[484,"This parameter is relevant for the production of pig iron, direct reduced iron, crude steel, iron and steel products and ferro-manganese. Please provide here the mass % of Mn in the product.","This parameter is relevant for the production of pig iron, direct reduced iron, crude steel, iron and steel products and ferro-manganese. Please provide here the mass % of Mn in the product."]
[485,"% Cr","% Cr"]
[486,"This parameter is relevant for the production of pig iron, direct reduced iron, crude steel, iron and steel products and ferro-chromium. Please provide here the mass % of Cr in the product.","This parameter is relevant for the production of pig iron, direct reduced iron, crude steel, iron and steel products and ferro-chromium. Please provide here the mass % of Cr in the product."]
[487,"% Ni","% Ni"]
[488,"This parameter is relevant for the production of pig iron, direct reduced iron, crude steel, iron and steel products and ferro-nickel. Please provide here the mass % of Ni in the product.","This parameter is relevant for the production of pig iron, direct reduced iron, crude steel, iron and steel products and ferro-nickel. Please provide here the mass % of Ni in the product."]
[489,"% other alloys","% other alloys"]
[490,"This parameter is relevant for the production of pig iron, direct reduced iron, crude steel and iron and steel products. Please provide here the mass % of other alloy elements in the product.","This parameter is relevant for the production of pig iron, direct reduced iron, crude steel and iron and steel products. Please provide here the mass % of other alloy elements in the product."]
[491,"% carbon","% carbon"]
[492,"This parameter is relevant for the production of ferro-manganese, ferro-chromium and ferro-nickel. Please provide here the mass % of carbon in the product.","This parameter is relevant for the production of ferro-manganese, ferro-chromium and ferro-nickel. Please provide here the mass % of carbon in the product."]
[493,"t scrap per t steel","t scrap per t steel"]
[494,"This parameter is relevant for the production of crude steel and iron and steel products. Please provide here the mass % of tonne scrap used per tonne of steel produced.","This parameter is relevant for the production of crude steel and iron and steel products. Please provide here the mass % of tonne scrap used per tonne of steel produced."]
[495,"% other materials","% other materials"]
[496,"This parameter is relevant for the production of the aggregated good iron and steel products. Please provide here the mass % of materials contained which are not iron or steel, if their mass is more than 1-5% of the total good’s mass.","This parameter is relevant for the production of the aggregated good iron and steel products. Please provide here the mass % of materials contained which are not iron or steel, if their mass is more than 1-5% of the total good’s mass."]
[497,"t scrap per t aluminium","t scrap per t aluminium"]
[498,"This parameter is relevant for the production of unwrought aluminium and aluminium products. Please provide here the mass % of tonne scrap used per tonne of aluminium produced.","This parameter is relevant for the production of unwrought aluminium and aluminium products. Please provide here the mass % of tonne scrap used per tonne of aluminium produced."]
[499,"% pre-consumer scrap","% pre-consumer scrap"]
[500,"This parameter is relevant for the production of crude steel, unwrought aluminium and aluminium products. Please provide here the mass % of tonne pre-consumer scrap used per tonne of steel/aluminium produced.","This parameter is relevant for the production of crude steel, unwrought aluminium and aluminium products. Please provide here the mass % of tonne pre-consumer scrap used per tonne of steel/aluminium produced."]
[501,"% non-aluminium elements","% non-aluminium elements"]
[502,"This parameter is relevant for the production of unwrought aluminium and aluminium products. Please provide here the mass % of elements contained which are not aluminium, if their mass is more than 1% of the total good’s mass.","This parameter is relevant for the production of unwrought aluminium and aluminium products. Please provide here the mass % of elements contained which are not aluminium, if their mass is more than 1% of the total good’s mass."]
[503,"Clinker factor","Clinker factor"]
[504,"This parameter is relevant for the production of cement. Please provide here the clinker factor, expressed as mass % of clinker content in the cement.","This parameter is relevant for the production of cement. Please provide here the clinker factor, expressed as mass % of clinker content in the cement."]
[505,"Calcined or not","Calcined or not"]
[506,"This parameter is relevant for the production of calcined clay. Please select here from the drop-down list whether the clay is calcined or not.","This parameter is relevant for the production of calcined clay. Please select here from the drop-down list whether the clay is calcined or not."]
[507,"Concentration, if hydrous solution","Concentration, if hydrous solution"]
[508,"This parameter is relevant for the production of ammonia. Please provide here the concentration of ammonia, if in hydrous solution, expressed as %.","This parameter is relevant for the production of ammonia. Please provide here the concentration of ammonia, if in hydrous solution, expressed as %."]
[509,"% nitric acid","% nitric acid"]
[510,"This parameter is relevant for the production of nitric acid. Please provide here the mass % of nitric acid in the product (i.e. the purity).","This parameter is relevant for the production of nitric acid. Please provide here the mass % of nitric acid in the product (i.e. the purity)."]
[511,"% urea","% urea"]
[512,"This parameter is relevant for the production of urea. Please provide here the mass % of urea in the product (i.e. the purity).","This parameter is relevant for the production of urea. Please provide here the mass % of urea in the product (i.e. the purity)."]
[513,"% N contained","% N contained"]
[514,"This parameter is relevant for the production of urea. Please provide here the mass % nitrogen in the product.","This parameter is relevant for the production of urea. Please provide here the mass % nitrogen in the product."]
[515,"% N as ammonium (NH4+)","% N as ammonium (NH4+)"]
[516,"This parameter is relevant for the production of mixed fertilisers. Please provide here the mass % content of nitrogen as ammonium ion.","This parameter is relevant for the production of mixed fertilisers. Please provide here the mass % content of nitrogen as ammonium ion."]
[517,"% N as nitrate (NO3–)","% N as nitrate (NO3–)"]
[518,"This parameter is relevant for the production of mixed fertilisers. Please provide here the mass % content of nitrogen as nitrate ion.","This parameter is relevant for the production of mixed fertilisers. Please provide here the mass % content of nitrogen as nitrate ion."]
[519,{"$f":"IFERROR(INDEX(C523:M523,$A$4-2),$C523)","v":"% N as Urea"},"% N as Urea"]
[520,"This parameter is relevant for the production of mixed fertilisers. Please provide here the mass % content of urea.","This parameter is relevant for the production of mixed fertilisers. Please provide here the mass % content of urea."]
[521,"% N in other (organic) forms","% N in other (organic) forms"]
[522,"This parameter is relevant for the production of mixed fertilisers. Please provide here the mass % content of nitrogen in other forms.","This parameter is relevant for the production of mixed fertilisers. Please provide here the mass % content of nitrogen in other forms."]
[523,"Information on carbon price due","Information on carbon price due"]
[524,"Note","Note"]
[525,"Where precursors are subject to carbon pricing and the system boundaries of the carbon price correspond to the system boundaries of the relevant production process of the precursor, you can use the \"tool for calculation of the carbon price due\" and use the results of that tool and enter them here.","Where precursors are subject to carbon pricing and the system boundaries of the carbon price correspond to the system boundaries of the relevant production process of the precursor, you can use the \"tool for calculation of the carbon price due\" and use the results of that tool and enter them here."]
[526,"Form of carbon price","Form of carbon price"]
[527,"Please select from the drop-down list whether the form of carbon price is an emissions trading system (ETS), a carbon tax, a combination of instruments, or other form of carbon pricing.","Please select from the drop-down list whether the form of carbon price is an emissions trading system (ETS), a carbon tax, a combination of instruments, or other form of carbon pricing."]
[528,"Share of total embedded emissions covered by the carbon price","Share of total embedded emissions covered by the carbon price"]
[529,"Please enter here the share of the TOTAL (direct + indirect) embedded emissions that are subject to carbon pricing. For instance, if only direct emissions are covered by a carbon pricing system, the share to be provided here would be exactly the share of the direct emissions of the total emissions.","Please enter here the share of the TOTAL (direct + indirect) embedded emissions that are subject to carbon pricing. For instance, if only direct emissions are covered by a carbon pricing system, the share to be provided here would be exactly the share of the direct emissions of the total emissions."]
[530,"Currency","Currency"]
[531,"Please enter the currency in which the carbon price is being due.","Please enter the currency in which the carbon price is being due."]
[532,"Please enter here the carbon price due per tonne or MWh (as applicable) of product in the relevant currency. This value shall not include any rebate such as free allocation or financial compensation.","Please enter here the carbon price due per tonne or MWh (as applicable) of product in the relevant currency. This value shall not include any rebate such as free allocation or financial compensation."]
[533,"Form of rebate","Form of rebate"]
[534,"Please select from the drop-down list whether the form of rebate or other form of compensation is via free allocation, financial compensation, tax deduction, a combination or any other form of rebate or compensation.","Please select from the drop-down list whether the form of rebate or other form of compensation is via free allocation, financial compensation, tax deduction, a combination or any other form of rebate or compensation."]
[535,"Share of embedded emissions covered by the rebate","Share of embedded emissions covered by the rebate"]
[536,"Please enter here the share of the TOTAL (direct + indirect) embedded emissions that are subject to rebate. For instance, if only indirect emissions are covered by the rebate, the share to be provided here would be exactly the share of the indirect emissions of the total emissions.","Please enter here the share of the TOTAL (direct + indirect) embedded emissions that are subject to rebate. For instance, if only indirect emissions are covered by the rebate, the share to be provided here would be exactly the share of the indirect emissions of the total emissions."]
[537,"Please enter here the rebate per tonne or MWh (as applicable) of product covered by the rebate in the relevant currency. ","Please enter here the rebate per tonne or MWh (as applicable) of product covered by the rebate in the relevant currency. "]
[538,"Result","Result"]
[539,"The result is the effective carbon price due per tonne of CO2 equivalent, i.e. the carbon price due less any rebates.","The result is the effective carbon price due per tonne of CO2 equivalent, i.e. the carbon price due less any rebates."]
[540,"Summary of production processes","Summary of production processes"]
[541,"Summary of the installation, processes and production routes","Summary of the installation, processes and production routes"]
[542,"Installation & processes","Installation & processes"]
[543,"Summary of the installation","Summary of the installation"]
[544,"Reporting period start:","Reporting period start:"]
[545,"Reporting period end:","Reporting period end:"]
[546,"Summary of the production processes, included precursors and production routes, where relevant","Summary of the production processes, included precursors and production routes, where relevant"]
[547,"Aggregated good produced","Aggregated good produced"]
[548,"Routes","Routes"]
[549,"Purchased precursor","Purchased precursor"]
[550,"Greenhouse gas emissions balance and specific embedded emissions (SEE)","Greenhouse gas emissions balance and specific embedded emissions (SEE)"]
[551,"GHG & SEE","GHG & SEE"]
[552,"GHG emissions balance of the installation and all production processes","GHG emissions balance of the installation and all production processes"]
[553,"Heat emissions","Heat emissions"]
[554,"Waste gas emissions","Waste gas emissions"]
[555,"Indirect, if relevant","Indirect, if relevant"]
[556,"Comparison:","Comparison:"]
[557,"Emissions","Emissions"]
[558,"Total emissions of the installation (from sheet \"C_Emissions&Energy\")","Total emissions of the installation (from sheet \"C_Emissions&Energy\")"]
[559,"Rest (= emissions not attributed to CBAM processes)","Rest (= emissions not attributed to CBAM processes)"]
[560,"Rest (expressed as % of total)","Rest (expressed as % of total)"]
[561,"Note: the system boundaries between production processes, indirect emissions and the installation's total emissions might not be consistent. Therefore, values for \"Rest\" different from zero are not necessarily indicative of any omissions or errors being made in this report.","Note: the system boundaries between production processes, indirect emissions and the installation's total emissions might not be consistent. Therefore, values for \"Rest\" different from zero are not necessarily indicative of any omissions or errors being made in this report."]
[562,"Specific direct and indirect (embedded) emissions","Specific direct and indirect (embedded) emissions"]
[563,"The following abbreviations are used in the tables below:","The following abbreviations are used in the tables below:"]
[564,"SE (direct)","SE (direct)"]
[565,"Specific direct emissions of the production process, i.e. excluding any embedded emissions from any precursors consumed in the process.","Specific direct emissions of the production process, i.e. excluding any embedded emissions from any precursors consumed in the process."]
[566,"SEE (direct)","SEE (direct)"]
[567,"Specific embedded direct emissions of the production process, i.e. including any embedded emissions from any precursors consumed in the process.","Specific embedded direct emissions of the production process, i.e. including any embedded emissions from any precursors consumed in the process."]
[568,"SE (indirect)","SE (indirect)"]
[569,"Specific indirect emissions of the production process, i.e. excluding any embedded indirect emissions from any precursors consumed in the process.","Specific indirect emissions of the production process, i.e. excluding any embedded indirect emissions from any precursors consumed in the process."]
[570,"SEE (indirect)","SEE (indirect)"]
[571,"Specific embedded indirect emissions of the production process, i.e. including any embedded indirect emissions from any precursors consumed in the process.","Specific embedded indirect emissions of the production process, i.e. including any embedded indirect emissions from any precursors consumed in the process."]
[572,"Electricity consumed","Electricity consumed"]
[573,"Specific electricity consumption within the production process.","Specific electricity consumption within the production process."]
[574,"Type of precursor","Type of precursor"]
[575,"Detailed overview of each production processes","Detailed overview of each production processes"]
[576,"Detailed overview","Detailed overview"]
[577,"General aspects","General aspects"]
[578,"The term 'specific' of all elements below is to be understood as being expressed per unit of good (usually tonnes) of the production process in consideration. ","The term 'specific' of all elements below is to be understood as being expressed per unit of good (usually tonnes) of the production process in consideration. "]
[579,"Example: a precursor has specific embedded emissions of 0,8 tonnes of CO2e per tonne. The 'mass share' is 0,3 tonnes of precursor consumed per tonne of production from the relevant 'production process'. Under the block of the relevant 'production process, the value for 'SEE' for this precursor will therefore be displayed as 0,24 tonnes CO2e per tonne.","Example: a precursor has specific embedded emissions of 0,8 tonnes of CO2e per tonne. The 'mass share' is 0,3 tonnes of precursor consumed per tonne of production from the relevant 'production process'. Under the block of the relevant 'production process, the value for 'SEE' for this precursor will therefore be displayed as 0,24 tonnes CO2e per tonne."]
[580,"Mass share","Mass share"]
[581,"This is the specific consumption of each precursor per unit of products produced by the relevant 'production process'.","This is the specific consumption of each precursor per unit of products produced by the relevant 'production process'."]
[582,"(Share of) Default value","(Share of) Default value"]
[583,{"$f":"IFERROR(INDEX(C587:M587,$A$4-2),$C587)","v":"This is relevant for purchased precursors and indicates whether the embedded direct emissions are determined based on default values (\"TRUE\") or actual measurements (\"FALSE\"). For the whole process, this indicator will calculate the share of embedded emissions determined by default values."},"This is relevant for purchased precursors and indicates whether the embedded direct emissions are determined based on default values (\"TRUE\") or actual measurements (\"FALSE\"). For the whole process, this indicator will calculate the share of embedded emissions determined by default values."]
[584,"Total (direct + indirect) specific embedded emissions of the production process, i.e. including any embedded indirect emissions from any precursors consumed in the process.","Total (direct + indirect) specific embedded emissions of the production process, i.e. including any embedded indirect emissions from any precursors consumed in the process."]
[585,"EmbEm (direct)","EmbEm (direct)"]
[586,"Embedded direct emissions of the production process, i.e. including any embedded emissions from any precursors consumed in the process.","Embedded direct emissions of the production process, i.e. including any embedded emissions from any precursors consumed in the process."]
[587,"EmbEm (indirect)","EmbEm (indirect)"]
[588,"Embedded indirect emissions of the production process, i.e. including any embedded indirect emissions from any precursors consumed in the process.","Embedded indirect emissions of the production process, i.e. including any embedded indirect emissions from any precursors consumed in the process."]
[589,"EmbEm (total)","EmbEm (total)"]
[590,"Source of electricity EF","Source of electricity EF"]
[591,"The source or method based on which the electricity emission factor (EF) was determined for the relevant production process or precursor.","The source or method based on which the electricity emission factor (EF) was determined for the relevant production process or precursor."]
[592,"Where the electricity is not predominantly obtained from one source or the EF by one of the above sources, the EF is determined as a mix of the methods above.","Where the electricity is not predominantly obtained from one source or the EF by one of the above sources, the EF is determined as a mix of the methods above."]
[593,"Specific electricity","Specific electricity"]
[594,"Specific electricity consumption within the production process, excluding any electricity embedded in purchased precursors.","Specific electricity consumption within the production process, excluding any electricity embedded in purchased precursors."]
[595,"This is the country in which the relevant precursor is produced, where imported from outside the own installation.","This is the country in which the relevant precursor is produced, where imported from outside the own installation."]
[596,"Total production process","Total production process"]
[597,"Production and consumption","Production and consumption"]
[598,"Total production of precursors","Total production of precursors"]
[599,"Type of aggregated good or precursor","Type of aggregated good or precursor"]
[600,"CN Name","CN Name"]
[601,"Product name \n(used for communication with reporting declarant, e.g. on invoices)","Product name \n(used for communication with reporting declarant, e.g. on invoices)"]
[602,"Source for electricity EF","Source for electricity EF"]
[603,"Embedded electricity (MWh/t)","Embedded electricity (MWh/t)"]
[604,"Embedded emissions covered by the carbon price","Embedded emissions covered by the carbon price"]
[605,"Embedded emissions covered by rebate","Embedded emissions covered by rebate"]
[606,"Example process A","Example process A"]
[607,"Iron or steel products","Iron or steel products"]
[608,"Semi-finished products of iron or non-alloy steel, containing by weight < 0,25% carbon, of circular or polygonal cross-section, forged","Semi-finished products of iron or non-alloy steel, containing by weight < 0,25% carbon, of circular or polygonal cross-section, forged"]
[609,"Example name A","Example name A"]
[610,"tCO2e/t","tCO2e/t"]
[611,"Coal or coke","Coal or coke"]
[612,"tax","tax"]
[613,"USD","USD"]
[614,"USD/t","USD/t"]
[615,"Communication with reporting declarants","Communication with reporting declarants"]
[616,"This sheet summarises the main information from sheets \"Summary_Processes\" and \"Summary_Products\" to be communicated to the reporting declarants importing the goods into the European Union. In contrast to previous sheets, the headers and content of the tables will always be in English language in order to avoid translation problems with reporting declarants.","This sheet summarises the main information from sheets \"Summary_Processes\" and \"Summary_Products\" to be communicated to the reporting declarants importing the goods into the European Union. In contrast to previous sheets, the headers and content of the tables will always be in English language in order to avoid translation problems with reporting declarants."]
[617,"Summary of the installation and production processes","Summary of the installation and production processes"]
[618,"Installation details","Installation details"]
[619,"Summary of the production processes and production routes, where relevant","Summary of the production processes and production routes, where relevant"]
[620,"Total direct emissions during reporting period:","Total direct emissions during reporting period:"]
[621,"Total indirect emissions during reporting period:","Total indirect emissions during reporting period:"]
[622,"Total emissions during reporting period:","Total emissions during reporting period:"]
[623,"This is a hidden sheet for the calculation of the embedded emissions along the whole supply chain, including any relevant precursors produced within the same installation, or purchased from other installations.","This is a hidden sheet for the calculation of the embedded emissions along the whole supply chain, including any relevant precursors produced within the same installation, or purchased from other installations."]
[624,"Share of precursor consumed, per unit of good produced","Share of precursor consumed, per unit of good produced"]
[625,"Share of purchased precursor consumed, per unit of good produced","Share of purchased precursor consumed, per unit of good produced"]
[626,"Precursors","Precursors"]
[627,"n.a.","n.a."]
[628,"tonnes","tonnes"]
[629,"1000Nm3","1000Nm3"]
[630,"None","None"]
[631,"Emissions Trading System","Emissions Trading System"]
[632,"Tax or levy","Tax or levy"]
[633,"Combination","Combination"]
[634,"Other","Other"]
[635,"Free allocation","Free allocation"]
[636,"Financial compensation","Financial compensation"]
[637,"Tax deduction","Tax deduction"]
[638,"h/year","h/year"]
[639,"1000Nm3/h","1000Nm3/h"]
[640,"g/Nm3","g/Nm3"]
[641,"Year","Year"]
[642,"Process emissions","Process emissions"]
[643,"Slope method","Slope method"]
[644,"Natural gas","Natural gas"]
[645,"Biogas","Biogas"]
[646,"Hydrogen","Hydrogen"]
[647,{"$f":"IFERROR(INDEX(C651:M651,$A$4-2),$C651)","v":"Missing! Please assign ALL relevant aggregated goods categories to a 'production process'."},"Missing! Please assign ALL relevant aggregated goods categories to a 'production process'."]
[648,"Click here to proceed to next sheet","Click here to proceed to next sheet"]
[649,"Only direct production","Only direct production"]
[650,"All production routes","All production routes"]
[651,"Please select…","Please select…"]
[652,"Incomplete!","Incomplete!"]
[653,"Duplicate!","Duplicate!"]
[654,"Measured","Measured"]
[655,"Default","Default"]
[656,"Please click on this link for further guidance on how to complete this section.","Please click on this link for further guidance on how to complete this section."]
[657,"Please click on this link if you want to go back to the relevant section for data entry.","Please click on this link if you want to go back to the relevant section for data entry."]
[658,"Please click on this link to go to the \"tool for calculation of the carbon price due\".","Please click on this link to go to the \"tool for calculation of the carbon price due\"."]
[659,"Please click on this link to go to the \"CHP Tool for attributing emissions between heat and electricity\".","Please click on this link to go to the \"CHP Tool for attributing emissions between heat and electricity\"."]
[660,"Cement","Cement"]
[661,"Cement clinker","Cement clinker"]
[662,"Calcined clays ","Calcined clays "]
[663,"Aluminous cement","Aluminous cement"]
[664,"Crude steel","Crude steel"]
[665,"Basic oxygen steelmaking","Basic oxygen steelmaking"]
[666,"Electric arc furnace","Electric arc furnace"]
[667,"Other production routes","Other production routes"]
[668,"Unknown production routes","Unknown production routes"]
[669,"Direct reduced iron","Direct reduced iron"]
[670,"Pig iron","Pig iron"]
[671,"Blast furnace route","Blast furnace route"]
[672,"Smelting reduction","Smelting reduction"]
[673,"Alloys (FeMn, FeCr, FeNi)","Alloys (FeMn, FeCr, FeNi)"]
[674,"Sintered Ore","Sintered Ore"]
[675,"Steam reforming and partial oxidation","Steam reforming and partial oxidation"]
[676,"Electrolysis of water","Electrolysis of water"]
[677,"Chlor-Alkali electrolysis and production of chlorates","Chlor-Alkali electrolysis and production of chlorates"]
[678,"Ammonia","Ammonia"]
[679,"Haber-Bosch process with steam reforming of natural gas or biogas","Haber-Bosch process with steam reforming of natural gas or biogas"]
[680,"Haber-Bosch process with gasification of coal or other fuels","Haber-Bosch process with gasification of coal or other fuels"]
[681,"Nitric acid","Nitric acid"]
[682,"Urea","Urea"]
[683,"Mixed fertilizers","Mixed fertilizers"]
[684,"Aluminium products","Aluminium products"]
[685,"Unwrought aluminium","Unwrought aluminium"]
[686,"Primary (electrolytic) smelting","Primary (electrolytic) smelting"]
[687,"Secondary melting (recycling)","Secondary melting (recycling)"]
[688,"Electricity (export to EU)","Electricity (export to EU)"]
[689,"The main reducing agent used","The main reducing agent used"]
[690,"Kaolinic clays (other than kaolin)","Kaolinic clays (other than kaolin)"]
[691,"Cement clinkers","Cement clinkers"]
[692,"White portland cement, whether or not artificially coloured","White portland cement, whether or not artificially coloured"]
[693,"Portland cement (excl. white, whether or not artificially coloured)","Portland cement (excl. white, whether or not artificially coloured)"]
[694,"Cement, whether or not coloured (excl. portland cement and aluminous cement)","Cement, whether or not coloured (excl. portland cement and aluminous cement)"]
[695,"Agglomerated iron ores and concentrates (excl. roasted iron pyrites)","Agglomerated iron ores and concentrates (excl. roasted iron pyrites)"]
[696,"Electrical energy","Electrical energy"]
[697,"Nitric acid; sulphonitric acids","Nitric acid; sulphonitric acids"]
[698,"Ammonia, anhydrous or in aqueous solution","Ammonia, anhydrous or in aqueous solution"]
[699,"Anhydrous ammonia","Anhydrous ammonia"]
[700,"Ammonia in aqueous solution","Ammonia in aqueous solution"]
[701,"Nitrate of potassium","Nitrate of potassium"]
[702,"Mineral or chemical nitrogenous fertilisers (excl. those in tablets or similar forms, or in packages with a gross weight of <= 10 kg)","Mineral or chemical nitrogenous fertilisers (excl. those in tablets or similar forms, or in packages with a gross weight of <= 10 kg)"]
[703,"Urea, whether or not in aqueous solution (excl. that in tablets or similar forms, or in packages with a gross weight of <= 10 kg)","Urea, whether or not in aqueous solution (excl. that in tablets or similar forms, or in packages with a gross weight of <= 10 kg)"]
[704,"Urea, whether or not in aqueous solution, containing > 45% nitrogen in relation to the weight of the dry product (excl. that in tablets or similar forms, or in packages with a gross weight of <= 10 kg)","Urea, whether or not in aqueous solution, containing > 45% nitrogen in relation to the weight of the dry product (excl. that in tablets or similar forms, or in packages with a gross weight of <= 10 kg)"]
[705,"Urea, whether or not in aqueous solution, containing <= 45% by weight of nitrogen on the dry anhydrous product (excl. goods of this chapter in tablets or similar forms or in packages of a gross weight of <= 10 kg)","Urea, whether or not in aqueous solution, containing <= 45% by weight of nitrogen on the dry anhydrous product (excl. goods of this chapter in tablets or similar forms or in packages of a gross weight of <= 10 kg)"]
[706,"Ammonium sulphate (excl. that in tablets or similar forms, or in packages with a gross weight of <= 10 kg)","Ammonium sulphate (excl. that in tablets or similar forms, or in packages with a gross weight of <= 10 kg)"]
[707,"Double salts and mixtures of ammonium sulphate and ammonium nitrate (excl. goods of this chapter in tablets or similar forms or in packages of a gross weight of <= 10 kg)","Double salts and mixtures of ammonium sulphate and ammonium nitrate (excl. goods of this chapter in tablets or similar forms or in packages of a gross weight of <= 10 kg)"]
[708,"Ammonium nitrate, whether or not in aqueous solution (excl. that in tablets or similar forms, or in packages with a gross weight of <= 10 kg)","Ammonium nitrate, whether or not in aqueous solution (excl. that in tablets or similar forms, or in packages with a gross weight of <= 10 kg)"]
[709,"Ammonium nitrate in aqueous solution (excl. that in packages with a gross weight of <= 10 kg)","Ammonium nitrate in aqueous solution (excl. that in packages with a gross weight of <= 10 kg)"]
[710,"Ammonium nitrate (excl. that in aqueous solution, in tablets or similar forms, or in packages with a gross weight of <= 10 kg)","Ammonium nitrate (excl. that in aqueous solution, in tablets or similar forms, or in packages with a gross weight of <= 10 kg)"]
[711,{"$f":"IFERROR(INDEX(C715:M715,$A$4-2),$C715)","v":"Mixtures of ammonium nitrate with calcium carbonate or other inorganic non-fertilising substances for use as fertilisers (excl. those in tablets or similar forms, or in packages with a gross weight of <= 10 kg)"},"Mixtures of ammonium nitrate with calcium carbonate or other inorganic non-fertilising substances for use as fertilisers (excl. those in tablets or similar forms, or in packages with a gross weight of <= 10 kg)"]
[712,"Mixtures of ammonium nitrate with calcium carbonate or other inorganic non-fertilising substances, for use as fertilisers, containing <= 28% nitrogen by weight (excl. those in tablets or similar forms, or in packages with a gross weight of <= 10 kg)","Mixtures of ammonium nitrate with calcium carbonate or other inorganic non-fertilising substances, for use as fertilisers, containing <= 28% nitrogen by weight (excl. those in tablets or similar forms, or in packages with a gross weight of <= 10 kg)"]
[713,"Mixtures of ammonium nitrate with calcium carbonate or other inorganic non-fertilising substances, for use as fertilisers, containing > 28% nitrogen by weight (excl. those in tablets or similar forms, or in packages with a gross weight of <= 10 kg)","Mixtures of ammonium nitrate with calcium carbonate or other inorganic non-fertilising substances, for use as fertilisers, containing > 28% nitrogen by weight (excl. those in tablets or similar forms, or in packages with a gross weight of <= 10 kg)"]
[714,"Sodium nitrate (excl. that in tablets or similar forms, or in packages with a gross weight of <= 10 kg)","Sodium nitrate (excl. that in tablets or similar forms, or in packages with a gross weight of <= 10 kg)"]
[715,"Double salts and mixtures of calcium nitrate and ammonium nitrate (excl. those in tablets or similar forms, or in packages with a gross weight of <= 10 kg)","Double salts and mixtures of calcium nitrate and ammonium nitrate (excl. those in tablets or similar forms, or in packages with a gross weight of <= 10 kg)"]
[716,"Mixtures of urea and ammonium nitrate in aqueous or ammoniacal solution (excl. those in packages with a gross weight of <= 10 kg)","Mixtures of urea and ammonium nitrate in aqueous or ammoniacal solution (excl. those in packages with a gross weight of <= 10 kg)"]
[717,"Mineral or chemical nitrogen fertilisers (excl. urea; ammonium sulphate; ammonium nitrate; sodium nitrate; double salts and mixtures of ammonium nitrate with ammonium sulphate or calcium; mixtures of urea and ammonium nitrate in aqueous or ammoniacal solution; mixtures of ammonium nitrate and calcium carbonate or other non-fertilising inorganic elements; in tablets or similar in packages <= 10 kg)","Mineral or chemical nitrogen fertilisers (excl. urea; ammonium sulphate; ammonium nitrate; sodium nitrate; double salts and mixtures of ammonium nitrate with ammonium sulphate or calcium; mixtures of urea and ammonium nitrate in aqueous or ammoniacal solution; mixtures of ammonium nitrate and calcium carbonate or other non-fertilising inorganic elements; in tablets or similar in packages <= 10 kg)"]
[718,"Mineral or chemical fertilisers containing two or three of the fertilising elements nitrogen, phosphorus and potassium; other fertilisers (excl. pure animal or vegetable fertilisers or mineral or chemical nitrogenous, phosphatic or potassic fertilisers); animal, vegetable, mineral or chemical fertilisers in tablets or similar forms or in packages of a gross weight of <= 10 kg","Mineral or chemical fertilisers containing two or three of the fertilising elements nitrogen, phosphorus and potassium; other fertilisers (excl. pure animal or vegetable fertilisers or mineral or chemical nitrogenous, phosphatic or potassic fertilisers); animal, vegetable, mineral or chemical fertilisers in tablets or similar forms or in packages of a gross weight of <= 10 kg"]
[719,"Mineral or chemical fertilisers of animal or vegetable origin, in tablets or similar forms, or in packages with a gross weight of <= 10 kg","Mineral or chemical fertilisers of animal or vegetable origin, in tablets or similar forms, or in packages with a gross weight of <= 10 kg"]
[720,"Mineral or chemical fertilisers containing the three fertilising elements nitrogen, phosphorus and potassium (excl. those in tablets or similar forms, or in packages with a gross weight of <= 10 kg)","Mineral or chemical fertilisers containing the three fertilising elements nitrogen, phosphorus and potassium (excl. those in tablets or similar forms, or in packages with a gross weight of <= 10 kg)"]
[721,"Mineral or chemical fertilisers containing phosphorus and potassium, with a nitrogen content > 10 % by weight on the dry anhydrous product (excl. those in tablets or similar forms, or in packages with a gross weight of <= 10 kg)","Mineral or chemical fertilisers containing phosphorus and potassium, with a nitrogen content > 10 % by weight on the dry anhydrous product (excl. those in tablets or similar forms, or in packages with a gross weight of <= 10 kg)"]
[722,"Mineral or chemical fertilisers containing nitrogen, phosphorus and potassium, with a nitrogen content <= 10 % by weight on the dry anhydrous product (excl. those in tablets or similar forms, or in packages with a gross weight of <= 10 kg)","Mineral or chemical fertilisers containing nitrogen, phosphorus and potassium, with a nitrogen content <= 10 % by weight on the dry anhydrous product (excl. those in tablets or similar forms, or in packages with a gross weight of <= 10 kg)"]
[723,"Diammonium hydrogenorthophosphate \"diammonium phosphate\" (excl. that in tablets or similar forms, or in packages with a gross weight of <= 10 kg)","Diammonium hydrogenorthophosphate \"diammonium phosphate\" (excl. that in tablets or similar forms, or in packages with a gross weight of <= 10 kg)"]
[724,"Ammonium dihydrogenorthophosphate \"monoammonium phosphate\", whether or not mixed with diammonium hydrogenorthophosphate \"diammonium phosphate\" (excl. that in tablets or similar forms, or in packages with a gross weight of <= 10 kg)","Ammonium dihydrogenorthophosphate \"monoammonium phosphate\", whether or not mixed with diammonium hydrogenorthophosphate \"diammonium phosphate\" (excl. that in tablets or similar forms, or in packages with a gross weight of <= 10 kg)"]
[725,"Mineral or chemical fertilisers containing nitrates and phosphates (excl. ammonium dihydrogenorthophosphate \"Monoammonium phosphate\", diammonium hydrogenorthophosphate \"Diammonium phosphate\", and those in tablets or similar forms, or in packages with a gross weight of <= 10 kg)","Mineral or chemical fertilisers containing nitrates and phosphates (excl. ammonium dihydrogenorthophosphate \"Monoammonium phosphate\", diammonium hydrogenorthophosphate \"Diammonium phosphate\", and those in tablets or similar forms, or in packages with a gross weight of <= 10 kg)"]
[726,"Mineral or chemical fertilisers containing the two fertilising elements nitrogen (excl. nitrate) and phosphorus but not nitrates (excl. ammonium dihydrogenorthophosphate \"monoammonium phosphate\", diammonium hydrogenorthophosphate \"diammonium phosphate\" in tablets or similar forms, or in packages with a gross weight of <= 10 kg)","Mineral or chemical fertilisers containing the two fertilising elements nitrogen (excl. nitrate) and phosphorus but not nitrates (excl. ammonium dihydrogenorthophosphate \"monoammonium phosphate\", diammonium hydrogenorthophosphate \"diammonium phosphate\" in tablets or similar forms, or in packages with a gross weight of <= 10 kg)"]
[727,"Mineral or chemical fertilisers containing the two fertilising elements nitrogen and potassium or one principal fertilising substance only, incl. mixtures of animal or vegetable fertilisers with chemical or mineral fertilisers (excl. those in tablets or similar forms, or in packages with a gross weight of <= 10 kg)","Mineral or chemical fertilisers containing the two fertilising elements nitrogen and potassium or one principal fertilising substance only, incl. mixtures of animal or vegetable fertilisers with chemical or mineral fertilisers (excl. those in tablets or similar forms, or in packages with a gross weight of <= 10 kg)"]
[728,"Mineral or chemical fertilisers containing the two fertilising elements nitrogen and potassium, or one principal fertilising substance only, incl. mixtures of animal or vegetable fertilisers with chemical or mineral fertilisers, containing > 10% nitrogen by weight (excl. in tablets or similar forms, or in packages with a gross weight of <= 10 kg)","Mineral or chemical fertilisers containing the two fertilising elements nitrogen and potassium, or one principal fertilising substance only, incl. mixtures of animal or vegetable fertilisers with chemical or mineral fertilisers, containing > 10% nitrogen by weight (excl. in tablets or similar forms, or in packages with a gross weight of <= 10 kg)"]
[729,"Mineral or chemical fertilisers containing the two fertilising elements nitrogen and potassium, or one main fertilising element, incl. mixtures of animal or vegetable fertilisers with chemical or mineral fertilisers, not containing nitrogen or with a nitrogen content, by weight, of <= 10% (excl. in tablets or similar forms or in packages of a gross weight of <= 10 kg)","Mineral or chemical fertilisers containing the two fertilising elements nitrogen and potassium, or one main fertilising element, incl. mixtures of animal or vegetable fertilisers with chemical or mineral fertilisers, not containing nitrogen or with a nitrogen content, by weight, of <= 10% (excl. in tablets or similar forms or in packages of a gross weight of <= 10 kg)"]
[730,"Pig iron and spiegeleisen, in pigs, blocks or other primary forms","Pig iron and spiegeleisen, in pigs, blocks or other primary forms"]
[731,"Non-alloy pig iron in pigs, blocks or other primary forms, containing, by weight, <= 0,5% of phosphorous","Non-alloy pig iron in pigs, blocks or other primary forms, containing, by weight, <= 0,5% of phosphorous"]
[732,"Non-alloy pig iron in pigs, blocks or other primary forms, containing by weight <= 0,5% phosphorus, >= 0,4% manganese and <= 1% silicon","Non-alloy pig iron in pigs, blocks or other primary forms, containing by weight <= 0,5% phosphorus, >= 0,4% manganese and <= 1% silicon"]
[733,"Non-alloy pig iron in pigs, blocks or other primary forms, containing by weight <= 0,5% phosphorus, >= 0,4% manganese and > 1% silicon","Non-alloy pig iron in pigs, blocks or other primary forms, containing by weight <= 0,5% phosphorus, >= 0,4% manganese and > 1% silicon"]
[734,"Non-alloy pig iron in pigs, blocks or other primary forms, containing by weight <= 0,5% phosphorus, and >= 0,1% but < 0,4% manganese","Non-alloy pig iron in pigs, blocks or other primary forms, containing by weight <= 0,5% phosphorus, and >= 0,1% but < 0,4% manganese"]
[735,"Non-alloy pig iron in pigs, blocks or other primary forms, containing by weight <= 0,5% phosphorus, and <= 0,1% manganese","Non-alloy pig iron in pigs, blocks or other primary forms, containing by weight <= 0,5% phosphorus, and <= 0,1% manganese"]
[736,"Non-alloy pig iron in pigs, blocks or other primary forms, containing by weight >= 0,5% phosphorus","Non-alloy pig iron in pigs, blocks or other primary forms, containing by weight >= 0,5% phosphorus"]
[737,"Alloy pig iron and spiegeleisen, in pigs, blocks or other primary forms","Alloy pig iron and spiegeleisen, in pigs, blocks or other primary forms"]
[738,"Alloy pig iron in pigs, blocks or other primary forms, containing by weight >= 0,3% but <= 1% titanium and >= 0,5% but <= 1% vanadium","Alloy pig iron in pigs, blocks or other primary forms, containing by weight >= 0,3% but <= 1% titanium and >= 0,5% but <= 1% vanadium"]
[739,"Alloy pig iron and spiegeleisen, in pigs, blocks or other primary forms (excl. alloy iron containing, by weight, >= 0,3% but <= 1% titanium and >= 0,5% but <= 1% vanadium)","Alloy pig iron and spiegeleisen, in pigs, blocks or other primary forms (excl. alloy iron containing, by weight, >= 0,3% but <= 1% titanium and >= 0,5% but <= 1% vanadium)"]
[740,"Ferro-manganese, containing by weight > 2% of carbon","Ferro-manganese, containing by weight > 2% of carbon"]
[741,"Ferro-manganese, containing by weight > 2% carbon, with a granulometry <= 5 mm and a manganese content by weight > 65%","Ferro-manganese, containing by weight > 2% carbon, with a granulometry <= 5 mm and a manganese content by weight > 65%"]
[742,"Ferro-manganese, containing by weight > 2% carbon (excl. ferro-manganese with a granulometry of <= 5 mm and containing by weight > 65% manganese)","Ferro-manganese, containing by weight > 2% carbon (excl. ferro-manganese with a granulometry of <= 5 mm and containing by weight > 65% manganese)"]
[743,"Ferro-manganese, containing by weight <= 2% carbon","Ferro-manganese, containing by weight <= 2% carbon"]
[744,"Ferro-chromium, containing by weight > 4% of carbon","Ferro-chromium, containing by weight > 4% of carbon"]
[745,"Ferro-chromium, containing by weight > 4% but <= 6% carbon","Ferro-chromium, containing by weight > 4% but <= 6% carbon"]
[746,"Ferro-chromium, containing by weight > 6% carbon","Ferro-chromium, containing by weight > 6% carbon"]
[747,"Ferro-chromium, containing by weight <= 4% of carbon","Ferro-chromium, containing by weight <= 4% of carbon"]
[748,"Ferro-chromium, containing by weight <= 0,05% carbon","Ferro-chromium, containing by weight <= 0,05% carbon"]
[749,"Ferro-chromium, containing by weight > 0,05% but <= 0,5% carbon","Ferro-chromium, containing by weight > 0,05% but <= 0,5% carbon"]
[750,"Ferro-chromium, containing by weight > 0,5% but <= 4% carbon","Ferro-chromium, containing by weight > 0,5% but <= 4% carbon"]
[751,"Ferro-nickel","Ferro-nickel"]
[752,"Ferrous products obtained by direct reduction of iron ore and other spongy ferrous products, in lumps, pellets or similar forms; iron having a minimum purity by weight of 99,94%, in lumps, pellets or similar forms","Ferrous products obtained by direct reduction of iron ore and other spongy ferrous products, in lumps, pellets or similar forms; iron having a minimum purity by weight of 99,94%, in lumps, pellets or similar forms"]
[753,"Ferrous products obtained by direct reduction of iron ore, in lumps, pellets or similar forms","Ferrous products obtained by direct reduction of iron ore, in lumps, pellets or similar forms"]
[754,"Spongy ferrous products, obtained from molten pig iron by atomisation, iron of a purity of >= 99,94%, in lumps, pellets or similar forms","Spongy ferrous products, obtained from molten pig iron by atomisation, iron of a purity of >= 99,94%, in lumps, pellets or similar forms"]
[755,"Granules and powders of pig iron, spiegeleisen, iron or steel (excl. granules and powders of ferro-alloys, turnings and filings of iron or steel, radioactive iron powders \"isotopes\" and certain low-calibre, substandard balls for ballbearings)","Granules and powders of pig iron, spiegeleisen, iron or steel (excl. granules and powders of ferro-alloys, turnings and filings of iron or steel, radioactive iron powders \"isotopes\" and certain low-calibre, substandard balls for ballbearings)"]
[756,"Granules, of pig iron, spiegeleisen, iron or steel (excl. granules of ferro-alloys, turnings and filings of iron or steel, certain small calibre items, defective balls for ball-bearings)","Granules, of pig iron, spiegeleisen, iron or steel (excl. granules of ferro-alloys, turnings and filings of iron or steel, certain small calibre items, defective balls for ball-bearings)"]
[757,"Powders, of alloy steel (excl. powders of ferro-alloys and radioactive iron powders \"isotopes\")","Powders, of alloy steel (excl. powders of ferro-alloys and radioactive iron powders \"isotopes\")"]
[758,"Powders, of pig iron, spiegeleisen, iron or non-alloy steel (excl. powders of ferro-alloys and radioactive iron powders \"isotopes\")","Powders, of pig iron, spiegeleisen, iron or non-alloy steel (excl. powders of ferro-alloys and radioactive iron powders \"isotopes\")"]
[759,"Iron and non-alloy steel in ingots or other primary forms (excl. remelting scrap ingots, products obtained by continuous casting and iron of heading 7203)","Iron and non-alloy steel in ingots or other primary forms (excl. remelting scrap ingots, products obtained by continuous casting and iron of heading 7203)"]
[760,"Ingots, of iron and non-alloy steel (excl. remelted scrap ingots, continuous cast products, iron of heading 7203)","Ingots, of iron and non-alloy steel (excl. remelted scrap ingots, continuous cast products, iron of heading 7203)"]
[761,"Iron and non-alloy steel, in puddled bars or other primary forms (excl. ingots, remelted scrap ingots, continuous cast products, iron of heading 7203)","Iron and non-alloy steel, in puddled bars or other primary forms (excl. ingots, remelted scrap ingots, continuous cast products, iron of heading 7203)"]
[762,"Semi-finished products of iron or non-alloy steel","Semi-finished products of iron or non-alloy steel"]
[763,"Semi-finished products of iron or non-alloy steel containing, by weight, < 0,25% of carbon, of square or rectangular cross-section, the width measuring < twice the thickness","Semi-finished products of iron or non-alloy steel containing, by weight, < 0,25% of carbon, of square or rectangular cross-section, the width measuring < twice the thickness"]
[764,"Semi-finished products, of non-alloy free-cutting steel, containing by weight < 0,25% carbon, of square or rectangular cross-section, the width < twice the thickness, rolled or obtained by continuous casting","Semi-finished products, of non-alloy free-cutting steel, containing by weight < 0,25% carbon, of square or rectangular cross-section, the width < twice the thickness, rolled or obtained by continuous casting"]
[765,"Semi-finished products, of iron or non-alloy steel, containing by weight < 0,25% carbon, of square or rectangular cross-section, the width < twice the thickness of <= 130 mm, rolled or obtained by continuous casting (excl. free-cutting steel)","Semi-finished products, of iron or non-alloy steel, containing by weight < 0,25% carbon, of square or rectangular cross-section, the width < twice the thickness of <= 130 mm, rolled or obtained by continuous casting (excl. free-cutting steel)"]
[766,"Semi-finished products, of iron or non-alloy steel, containing by weight < 0,25% carbon, of square or rectangular cross-section, the width < twice the thickness of > 130 mm, rolled or obtained by continuous casting (excl. free-cutting steel)","Semi-finished products, of iron or non-alloy steel, containing by weight < 0,25% carbon, of square or rectangular cross-section, the width < twice the thickness of > 130 mm, rolled or obtained by continuous casting (excl. free-cutting steel)"]
[767,"Semi-finished products of iron or non-alloy steel, containing by weight < 0,25% carbon, of rectangular cross-section, the width < twice the thickness, forged","Semi-finished products of iron or non-alloy steel, containing by weight < 0,25% carbon, of rectangular cross-section, the width < twice the thickness, forged"]
[768,"Semi-finished products of iron or non-alloy steel containing, by weight, < 0,25% of carbon, of rectangular \"other than square\" cross-section, the width measuring >= twice the thickness","Semi-finished products of iron or non-alloy steel containing, by weight, < 0,25% of carbon, of rectangular \"other than square\" cross-section, the width measuring >= twice the thickness"]
[769,"Semi-finished products of iron or non-alloy steel, containing by weight < 0,25 of carbon, of rectangular \"other than square\" cross-section, the width measuring >= twice the thickness, rolled or obtained by continuous casting","Semi-finished products of iron or non-alloy steel, containing by weight < 0,25 of carbon, of rectangular \"other than square\" cross-section, the width measuring >= twice the thickness, rolled or obtained by continuous casting"]
[770,"Semi-finished products of iron or non-alloy steel, containing by weight < 0,25% carbon, of rectangular \"other than square\" cross-section, the width >= twice the thickness, forged","Semi-finished products of iron or non-alloy steel, containing by weight < 0,25% carbon, of rectangular \"other than square\" cross-section, the width >= twice the thickness, forged"]
[771,"Semi-finished products of iron or non-alloy steel containing, by weight, < 0,25% of carbon, of circular cross-section, or of a cross-section other than square or rectangular","Semi-finished products of iron or non-alloy steel containing, by weight, < 0,25% of carbon, of circular cross-section, or of a cross-section other than square or rectangular"]
[772,"Semi-finished products, of iron or non-alloy steel, containing by weight < 0,25% carbon, of circular or polygonal cross-section, rolled or obtained by continuous casting","Semi-finished products, of iron or non-alloy steel, containing by weight < 0,25% carbon, of circular or polygonal cross-section, rolled or obtained by continuous casting"]
[773,"Semi-finished products of iron or non-alloy steel, containing by weight < 0,25% carbon (excl. semi-products, of square, rectangular, circular or polygonal cross-section)","Semi-finished products of iron or non-alloy steel, containing by weight < 0,25% carbon (excl. semi-products, of square, rectangular, circular or polygonal cross-section)"]
[774,"Semi-finished products of iron or non-alloy steel containing, by weight, >= 0,25% of carbon","Semi-finished products of iron or non-alloy steel containing, by weight, >= 0,25% of carbon"]
[775,{"$f":"IFERROR(INDEX(C779:M779,$A$4-2),$C779)","v":"Semi-finished products, of non-alloy free-cutting steel, containing by weight >= 0,25% carbon, of square or rectangular cross-section, the width < twice the thickness, rolled or obtained by continuous casting"},"Semi-finished products, of non-alloy free-cutting steel, containing by weight >= 0,25% carbon, of square or rectangular cross-section, the width < twice the thickness, rolled or obtained by continuous casting"]
[776,"Semi-finished products of iron or non-alloy steel, containing by weight >= 0,25% but < 0,6% carbon, of square or rectangular cross-section, the width < twice the thickness, rolled or obtained by continuous casting (excl. free-cutting steel)","Semi-finished products of iron or non-alloy steel, containing by weight >= 0,25% but < 0,6% carbon, of square or rectangular cross-section, the width < twice the thickness, rolled or obtained by continuous casting (excl. free-cutting steel)"]
[777,"Semi-finished products of iron or non-alloy steel, containing by weight >= 0,6% carbon, of square or rectangular cross-section, the width < twice the thickness, rolled or obtained by continuous casting (excl. free-cutting steel)","Semi-finished products of iron or non-alloy steel, containing by weight >= 0,6% carbon, of square or rectangular cross-section, the width < twice the thickness, rolled or obtained by continuous casting (excl. free-cutting steel)"]
[778,"Semi-finished products of iron or non-alloy steel, containing by weight >= 0,25% carbon, of square or rectangular cross-section, the width < twice the thickness, forged","Semi-finished products of iron or non-alloy steel, containing by weight >= 0,25% carbon, of square or rectangular cross-section, the width < twice the thickness, forged"]
[779,"Semi-finished products of iron or non-alloy steel, containing by weight >= 0,25 of carbon, of rectangular \"other than square\" cross-section, the width measuring >= twice the thickness, rolled or obtained by continuous casting","Semi-finished products of iron or non-alloy steel, containing by weight >= 0,25 of carbon, of rectangular \"other than square\" cross-section, the width measuring >= twice the thickness, rolled or obtained by continuous casting"]
[780,"Semi-finished products of iron or non-alloy steel, containing by weight >= 0,25% carbon, of rectangular \"other than square\" cross-section and the width >= twice the thickness, forged","Semi-finished products of iron or non-alloy steel, containing by weight >= 0,25% carbon, of rectangular \"other than square\" cross-section and the width >= twice the thickness, forged"]
[781,"Semi-finished products of iron or non-alloy steel, containing by weight >= 0,25% carbon, of circular or polygonal cross-section, rolled or obtained by continuous casting","Semi-finished products of iron or non-alloy steel, containing by weight >= 0,25% carbon, of circular or polygonal cross-section, rolled or obtained by continuous casting"]
[782,"Semi-finished products of iron or non-alloy steel, containing by weight >= 0,6% carbon, of circular or polygonal cross-section, forged","Semi-finished products of iron or non-alloy steel, containing by weight >= 0,6% carbon, of circular or polygonal cross-section, forged"]
[783,"Semi-finished products of iron or non-alloy steel, containing by weight >= 0,25% carbon (excl. those of square, rectangular, circular or polygonal cross-section)","Semi-finished products of iron or non-alloy steel, containing by weight >= 0,25% carbon (excl. those of square, rectangular, circular or polygonal cross-section)"]
[784,"Flat-rolled products of iron or non-alloy steel, of a width >= 600 mm, hot-rolled, not clad, plated or coated","Flat-rolled products of iron or non-alloy steel, of a width >= 600 mm, hot-rolled, not clad, plated or coated"]
[785,"Flat-rolled products of iron or non-alloy steel, of a width of >= 600 mm, in coils, simply hot-rolled, not clad, plated or coated, with patterns in relief directly due to the rolling process","Flat-rolled products of iron or non-alloy steel, of a width of >= 600 mm, in coils, simply hot-rolled, not clad, plated or coated, with patterns in relief directly due to the rolling process"]
[786,"Flat-rolled products of iron or non-alloy steel, of a width of >= 600 mm, in coils, simply hot-rolled, not clad, plated or coated, of a thickness of >= 4,75 mm, pickled, without patterns in relief","Flat-rolled products of iron or non-alloy steel, of a width of >= 600 mm, in coils, simply hot-rolled, not clad, plated or coated, of a thickness of >= 4,75 mm, pickled, without patterns in relief"]
[787,"Flat-rolled products of iron or non-alloy steel, of a width of >= 600 mm, in coils, simply hot-rolled, not clad, plated or coated, of a thickness of >= 3 mm but < 4,75 mm, pickled, without patterns in relief","Flat-rolled products of iron or non-alloy steel, of a width of >= 600 mm, in coils, simply hot-rolled, not clad, plated or coated, of a thickness of >= 3 mm but < 4,75 mm, pickled, without patterns in relief"]
[788,"Flat-rolled products of iron or non-alloy steel, of a width of >= 600 mm, in coils, simply hot-rolled, not clad, plated or coated, of a thickness of < 3 mm, pickled, without patterns in relief","Flat-rolled products of iron or non-alloy steel, of a width of >= 600 mm, in coils, simply hot-rolled, not clad, plated or coated, of a thickness of < 3 mm, pickled, without patterns in relief"]
[789,"Flat-rolled products of iron or non-alloy steel, of a width of >= 600 mm, in coils, simply hot-rolled, not clad, plated or coated, of a thickness of >= 10 mm, not pickled, without patterns in relief","Flat-rolled products of iron or non-alloy steel, of a width of >= 600 mm, in coils, simply hot-rolled, not clad, plated or coated, of a thickness of >= 10 mm, not pickled, without patterns in relief"]
[790,"Flat-rolled products of iron or non-alloy steel, of a width of >= 600 mm, in coils, simply hot-rolled, not clad, plated or coated, of a thickness of >= 4,75 mm but < 10 mm, not pickled, without patterns in relief","Flat-rolled products of iron or non-alloy steel, of a width of >= 600 mm, in coils, simply hot-rolled, not clad, plated or coated, of a thickness of >= 4,75 mm but < 10 mm, not pickled, without patterns in relief"]
[791,"Flat-rolled products of iron or non-alloy steel, of a width of >= 600 mm, in coils, simply hot-rolled, not clad, plated or coated, of a thickness of >= 3 mm but < 4,75 mm, not pickled, without patterns in relief","Flat-rolled products of iron or non-alloy steel, of a width of >= 600 mm, in coils, simply hot-rolled, not clad, plated or coated, of a thickness of >= 3 mm but < 4,75 mm, not pickled, without patterns in relief"]
[792,"Flat-rolled products of iron or non-alloy steel, of a width of >= 600 mm, in coils, simply hot-rolled, not clad, plated or coated, of a thickness of < 3 mm, not pickled, without patterns in relief","Flat-rolled products of iron or non-alloy steel, of a width of >= 600 mm, in coils, simply hot-rolled, not clad, plated or coated, of a thickness of < 3 mm, not pickled, without patterns in relief"]
[793,"Flat-rolled products of iron or non-alloy steel, of a width of >= 600 mm, not in coils, simply hot-rolled, not clad, plated or coated, with patterns in relief directly due to the rolling process","Flat-rolled products of iron or non-alloy steel, of a width of >= 600 mm, not in coils, simply hot-rolled, not clad, plated or coated, with patterns in relief directly due to the rolling process"]
[794,"Flat-rolled products of iron or non-alloy steel, of a width >= 600 mm, not in coils, simply hot-rolled, not clad, plated or coated, of a thickness of > 10 mm, without patterns in relief","Flat-rolled products of iron or non-alloy steel, of a width >= 600 mm, not in coils, simply hot-rolled, not clad, plated or coated, of a thickness of > 10 mm, without patterns in relief"]
[795,"Flat-rolled products of iron or non-alloy steel, of a width of >= 600 mm, not in coils, simply hot-rolled, not clad, plated or coated, of a thickness of > 15 mm, without patterns in relief","Flat-rolled products of iron or non-alloy steel, of a width of >= 600 mm, not in coils, simply hot-rolled, not clad, plated or coated, of a thickness of > 15 mm, without patterns in relief"]
[796,"Flat-rolled products of iron or non-alloy steel, of a width of >= 2.050 mm, not in coils, simply hot-rolled, not clad, plated or coated, of a thickness of > 10 mm but <= 15 mm, without patterns in relief (excl. \"wide flats\")","Flat-rolled products of iron or non-alloy steel, of a width of >= 2.050 mm, not in coils, simply hot-rolled, not clad, plated or coated, of a thickness of > 10 mm but <= 15 mm, without patterns in relief (excl. \"wide flats\")"]
[797,"Flat-rolled products of iron or non-alloy steel, of a width of < 2.050 mm but >= 600 mm, not in coils, simply hot-rolled, not clad, plated or coated, of a thickness of > 10 mm but <= 15 mm, without patterns in relief","Flat-rolled products of iron or non-alloy steel, of a width of < 2.050 mm but >= 600 mm, not in coils, simply hot-rolled, not clad, plated or coated, of a thickness of > 10 mm but <= 15 mm, without patterns in relief"]
[798,"Flat-rolled products of iron or non-alloy steel, of a width of >= 600 mm, not in coils, simply hot-rolled, not clad, plated or coated, of a thickness of >= 4,75 mm but <= 10 mm, without patterns in relief","Flat-rolled products of iron or non-alloy steel, of a width of >= 600 mm, not in coils, simply hot-rolled, not clad, plated or coated, of a thickness of >= 4,75 mm but <= 10 mm, without patterns in relief"]
[799,"Flat-rolled products of iron or non-alloy steel, of a width of <= 1.250 mm, not in coils, simply hot-rolled on four faces or in a closed box pass, not clad, plated or coated, of a thickness of >= 4,75 mm but <= 10 mm, without patterns in relief","Flat-rolled products of iron or non-alloy steel, of a width of <= 1.250 mm, not in coils, simply hot-rolled on four faces or in a closed box pass, not clad, plated or coated, of a thickness of >= 4,75 mm but <= 10 mm, without patterns in relief"]
[800,"Flat-rolled products of iron or non-alloy steel, of a width of >= 2.050 mm, not in coils, simply hot-rolled, not clad, plated or coated, of a thickness of >= 4,75 mm but <= 10 mm, without patterns in relief","Flat-rolled products of iron or non-alloy steel, of a width of >= 2.050 mm, not in coils, simply hot-rolled, not clad, plated or coated, of a thickness of >= 4,75 mm but <= 10 mm, without patterns in relief"]
[801,"Flat-rolled products of iron or non-alloy steel, of a width of < 2.050 mm but >= 600 mm, not in coils, simply hot-rolled, not clad, plated or coated, of a thickness of >= 4,75 mm but <= 10 mm, without patterns in relief (excl. rolled on four faces or in a closed bow pass of a width <= 1.250 mm)","Flat-rolled products of iron or non-alloy steel, of a width of < 2.050 mm but >= 600 mm, not in coils, simply hot-rolled, not clad, plated or coated, of a thickness of >= 4,75 mm but <= 10 mm, without patterns in relief (excl. rolled on four faces or in a closed bow pass of a width <= 1.250 mm)"]
[802,"Flat-rolled products of iron or non-alloy steel, of a width of >= 600 mm, not in coils, simply hot-rolled, not clad, plated or coated, of a thickness of >= 3 mm but < 4,75 mm, without patterns in relief","Flat-rolled products of iron or non-alloy steel, of a width of >= 600 mm, not in coils, simply hot-rolled, not clad, plated or coated, of a thickness of >= 3 mm but < 4,75 mm, without patterns in relief"]
[803,"Flat-rolled products of iron or non-alloy steel, of a width of <= 1.250 mm, not in coils, simply hot-rolled on four faces or in a closed box pass, not clad, plated or coated, of a thickness of >= 4 mm but < 4,75 mm, without patterns in relief","Flat-rolled products of iron or non-alloy steel, of a width of <= 1.250 mm, not in coils, simply hot-rolled on four faces or in a closed box pass, not clad, plated or coated, of a thickness of >= 4 mm but < 4,75 mm, without patterns in relief"]
[804,"Flat-rolled products of iron or non-alloy steel, of a width of >= 600 mm, not in coils, simply hot-rolled, not clad, plated or coated, of a thickness of >= 3 mm but < 4,75 mm, without patterns in relief (excl. rolled on four faces or in a closed bow pass of a width <= 1.250 mm and of a thickness of >= 4 mm)","Flat-rolled products of iron or non-alloy steel, of a width of >= 600 mm, not in coils, simply hot-rolled, not clad, plated or coated, of a thickness of >= 3 mm but < 4,75 mm, without patterns in relief (excl. rolled on four faces or in a closed bow pass of a width <= 1.250 mm and of a thickness of >= 4 mm)"]
[805,"Flat-rolled products of iron or non-alloy steel, of a width of >= 600 mm, not in coils, simply hot-rolled, not clad, plated or coated, of a thickness of < 3 mm, without patterns in relief","Flat-rolled products of iron or non-alloy steel, of a width of >= 600 mm, not in coils, simply hot-rolled, not clad, plated or coated, of a thickness of < 3 mm, without patterns in relief"]
[806,"Flat-rolled products of iron or steel, of a width >= 600 mm, hot-rolled and further worked, but not clad, plated or coated","Flat-rolled products of iron or steel, of a width >= 600 mm, hot-rolled and further worked, but not clad, plated or coated"]
[807,"Flat-rolled products of iron or steel, of a width >= 600 mm, hot-rolled and further worked, but not clad, plated or coated, perforated","Flat-rolled products of iron or steel, of a width >= 600 mm, hot-rolled and further worked, but not clad, plated or coated, perforated"]
[808,"Flat-rolled products of iron or steel, of a width >= 600 mm, hot-rolled and further worked, but not clad, plated or coated, non-perforated","Flat-rolled products of iron or steel, of a width >= 600 mm, hot-rolled and further worked, but not clad, plated or coated, non-perforated"]
[809,"Flat-rolled products of iron or non-alloy steel, of a width of >= 600 mm, cold-rolled \"cold-reduced\", not clad, plated or coated","Flat-rolled products of iron or non-alloy steel, of a width of >= 600 mm, cold-rolled \"cold-reduced\", not clad, plated or coated"]
[810,"Flat-rolled products of iron or non-alloy steel, of a width of >= 600 mm, in coils, simply cold-rolled \"cold-reduced\", not clad, plated or coated, of a thickness of >= 3 mm","Flat-rolled products of iron or non-alloy steel, of a width of >= 600 mm, in coils, simply cold-rolled \"cold-reduced\", not clad, plated or coated, of a thickness of >= 3 mm"]
[811,"Flat-rolled products of iron or non-alloy steel, of a width of >= 600 mm, in coils, simply cold-rolled \"cold-reduced\", not clad, plated or coated, of a thickness of > 1 mm but < 3 mm","Flat-rolled products of iron or non-alloy steel, of a width of >= 600 mm, in coils, simply cold-rolled \"cold-reduced\", not clad, plated or coated, of a thickness of > 1 mm but < 3 mm"]
[812,"Flat-rolled products of iron or non-alloy steel, of a width of >= 600 mm, in coils, simply cold-rolled \"cold-reduced\", of a thickness of > 1 mm but < 3 mm \"electrical\"","Flat-rolled products of iron or non-alloy steel, of a width of >= 600 mm, in coils, simply cold-rolled \"cold-reduced\", of a thickness of > 1 mm but < 3 mm \"electrical\""]
[813,"Flat-rolled products of iron or non-alloy steel, of a width of >= 600 mm, in coils, simply cold-rolled \"cold-reduced\", not clad, plated or coated, of a thickness of > 1 mm but < 3 mm (excl. electrical)","Flat-rolled products of iron or non-alloy steel, of a width of >= 600 mm, in coils, simply cold-rolled \"cold-reduced\", not clad, plated or coated, of a thickness of > 1 mm but < 3 mm (excl. electrical)"]
[814,"Flat-rolled products of iron or non-alloy steel, of a width of >= 600 mm, in coils, simply cold-rolled \"cold-reduced\", not clad, plated or coated, of a thickness of >= 0,5 mm but <= 1 mm","Flat-rolled products of iron or non-alloy steel, of a width of >= 600 mm, in coils, simply cold-rolled \"cold-reduced\", not clad, plated or coated, of a thickness of >= 0,5 mm but <= 1 mm"]
[815,"Flat-rolled products of iron or non-alloy steel, of a width of >= 600 mm, in coils, simply cold-rolled \"cold-reduced\", of a thickness of >= 0,5 mm but <= 1 mm \"electrical\"","Flat-rolled products of iron or non-alloy steel, of a width of >= 600 mm, in coils, simply cold-rolled \"cold-reduced\", of a thickness of >= 0,5 mm but <= 1 mm \"electrical\""]
[816,"Flat-rolled products of iron or non-alloy steel, of a width of >= 600 mm, in coils, simply cold-rolled \"cold-reduced\", not clad, plated or coated, of a thickness of >= 0,5 mm but <= 1 mm (excl. electrical)","Flat-rolled products of iron or non-alloy steel, of a width of >= 600 mm, in coils, simply cold-rolled \"cold-reduced\", not clad, plated or coated, of a thickness of >= 0,5 mm but <= 1 mm (excl. electrical)"]
[817,"Flat-rolled products of iron or non-alloy steel, of a width of >= 600 mm, in coils, simply cold-rolled \"cold-reduced\", not clad, plated or coated, of a thickness of < 0,5 mm","Flat-rolled products of iron or non-alloy steel, of a width of >= 600 mm, in coils, simply cold-rolled \"cold-reduced\", not clad, plated or coated, of a thickness of < 0,5 mm"]
[818,"Flat-rolled products of iron or non-alloy steel, of a width of >= 600 mm, in coils, simply cold-rolled \"cold-reduced\", of a thickness of < 0,5 mm \"electrical\"","Flat-rolled products of iron or non-alloy steel, of a width of >= 600 mm, in coils, simply cold-rolled \"cold-reduced\", of a thickness of < 0,5 mm \"electrical\""]
[819,"Flat-rolled products of iron or non-alloy steel, of a width of >= 600 mm, in coils, simply cold-rolled \"cold-reduced\", not clad, plated or coated, of a thickness of >= 0,35 mm but < 0,5 mm (excl. electrical)","Flat-rolled products of iron or non-alloy steel, of a width of >= 600 mm, in coils, simply cold-rolled \"cold-reduced\", not clad, plated or coated, of a thickness of >= 0,35 mm but < 0,5 mm (excl. electrical)"]
[820,"Flat-rolled products of iron or non-alloy steel, of a width of >= 600 mm, in coils, simply cold-rolled \"cold-reduced\", not clad, plated or coated, of a thickness of < 0,35 mm (excl. electrical)","Flat-rolled products of iron or non-alloy steel, of a width of >= 600 mm, in coils, simply cold-rolled \"cold-reduced\", not clad, plated or coated, of a thickness of < 0,35 mm (excl. electrical)"]
[821,"Flat-rolled products of iron or non-alloy steel, of a width of >= 600 mm, not in coils, simply cold-rolled \"cold-reduced\", not clad, plated or coated, of a thickness of >= 3 mm","Flat-rolled products of iron or non-alloy steel, of a width of >= 600 mm, not in coils, simply cold-rolled \"cold-reduced\", not clad, plated or coated, of a thickness of >= 3 mm"]
[822,"Flat-rolled products of iron or non-alloy steel, of a width of >= 600 mm, not in coils, simply cold-rolled \"cold-reduced\", not clad, plated or coated, of a thickness of > 1 mm but < 3 mm","Flat-rolled products of iron or non-alloy steel, of a width of >= 600 mm, not in coils, simply cold-rolled \"cold-reduced\", not clad, plated or coated, of a thickness of > 1 mm but < 3 mm"]
[823,"Flat-rolled products of iron or non-alloy steel, of a width of >= 600 mm, not in coils, simply cold-rolled \"cold-reduced\", of a thickness of > 1 mm but < 3 mm \"electrical\"","Flat-rolled products of iron or non-alloy steel, of a width of >= 600 mm, not in coils, simply cold-rolled \"cold-reduced\", of a thickness of > 1 mm but < 3 mm \"electrical\""]
[824,"Flat-rolled products of iron or non-alloy steel, of a width of >= 600 mm, not in coils, simply cold-rolled \"cold-reduced\", not clad, plated or coated, of a thickness of > 1 mm but < 3 mm (excl. electrical)","Flat-rolled products of iron or non-alloy steel, of a width of >= 600 mm, not in coils, simply cold-rolled \"cold-reduced\", not clad, plated or coated, of a thickness of > 1 mm but < 3 mm (excl. electrical)"]
[825,"Flat-rolled products of iron or non-alloy steel, of a width of >= 600 mm, not in coils, simply cold-rolled \"cold-reduced\", not clad, plated or coated, of a thickness of >= 0,5 mm but <= 1 mm","Flat-rolled products of iron or non-alloy steel, of a width of >= 600 mm, not in coils, simply cold-rolled \"cold-reduced\", not clad, plated or coated, of a thickness of >= 0,5 mm but <= 1 mm"]
[826,"Flat-rolled products of iron or non-alloy steel, of a width of >= 600 mm, not in coils, simply cold-rolled \"cold-reduced\", of a thickness of >= 0,5 mm but <= 1 mm \"electrical\"","Flat-rolled products of iron or non-alloy steel, of a width of >= 600 mm, not in coils, simply cold-rolled \"cold-reduced\", of a thickness of >= 0,5 mm but <= 1 mm \"electrical\""]
[827,"Flat-rolled products of iron or non-alloy steel, of a width of >= 600 mm, not in coils, simply cold-rolled \"cold-reduced\", not clad, plated or coated, of a thickness of >= 0,5 mm but <= 1 mm (excl. electrical)","Flat-rolled products of iron or non-alloy steel, of a width of >= 600 mm, not in coils, simply cold-rolled \"cold-reduced\", not clad, plated or coated, of a thickness of >= 0,5 mm but <= 1 mm (excl. electrical)"]
[828,"Flat-rolled products of iron or non-alloy steel, of a width of >= 600 mm, not in coils, simply cold-rolled \"cold-reduced\", not clad, plated or coated, of a thickness of < 0,5 mm","Flat-rolled products of iron or non-alloy steel, of a width of >= 600 mm, not in coils, simply cold-rolled \"cold-reduced\", not clad, plated or coated, of a thickness of < 0,5 mm"]
[829,"Flat-rolled products of iron or non-alloy steel, of a width of >= 600 mm, not in coils, simply cold-rolled \"cold-reduced\", of a thickness of < 0,5 mm \"electrical\"","Flat-rolled products of iron or non-alloy steel, of a width of >= 600 mm, not in coils, simply cold-rolled \"cold-reduced\", of a thickness of < 0,5 mm \"electrical\""]
[830,"Flat-rolled products of iron or non-alloy steel, of a width of >= 600 mm, not in coils, simply cold-rolled \"cold-reduced\", not clad, plated or coated, of a thickness of < 0,5 mm (excl. electrical)","Flat-rolled products of iron or non-alloy steel, of a width of >= 600 mm, not in coils, simply cold-rolled \"cold-reduced\", not clad, plated or coated, of a thickness of < 0,5 mm (excl. electrical)"]
[831,"Flat-rolled products of iron or steel, of a width of >= 600 mm, cold-rolled \"cold-reduced\", and further worked, but not clad, plated or coated","Flat-rolled products of iron or steel, of a width of >= 600 mm, cold-rolled \"cold-reduced\", and further worked, but not clad, plated or coated"]
[832,"Flat-rolled products of iron or steel, of a width of >= 600 mm, cold-rolled \"cold-reduced\" and further worked, but not clad, plated or coated, perforated","Flat-rolled products of iron or steel, of a width of >= 600 mm, cold-rolled \"cold-reduced\" and further worked, but not clad, plated or coated, perforated"]
[833,"Flat-rolled products of iron or steel, of a width of >= 600 mm, cold-rolled \"cold-reduced\" and further worked, but not clad, plated or coated, non-perforated","Flat-rolled products of iron or steel, of a width of >= 600 mm, cold-rolled \"cold-reduced\" and further worked, but not clad, plated or coated, non-perforated"]
[834,"Flat-rolled products of iron or non-alloy steel, of a width >= 600 mm, hot-rolled or cold-rolled \"cold-reduced\", clad, plated or coated","Flat-rolled products of iron or non-alloy steel, of a width >= 600 mm, hot-rolled or cold-rolled \"cold-reduced\", clad, plated or coated"]
[835,"Flat-rolled products of iron or non-alloy steel, of a width of >= 600 mm, hot-rolled or cold-rolled \"cold-reduced\", tinned, of a thickness of >= 0,5 mm","Flat-rolled products of iron or non-alloy steel, of a width of >= 600 mm, hot-rolled or cold-rolled \"cold-reduced\", tinned, of a thickness of >= 0,5 mm"]
[836,"Flat-rolled products of iron or non-alloy steel, of a width of >= 600 mm, hot-rolled or cold-rolled \"cold-reduced\", tinned, of a thickness of < 0,5 mm","Flat-rolled products of iron or non-alloy steel, of a width of >= 600 mm, hot-rolled or cold-rolled \"cold-reduced\", tinned, of a thickness of < 0,5 mm"]
[837,"Tinplate of iron or non-alloy steel, of a width of >= 600 mm and of a thickness of < 0,5 mm, tinned [coated with a layer of metal containing, by weight,  >= 97% of tin], not further worked than surface-treated","Tinplate of iron or non-alloy steel, of a width of >= 600 mm and of a thickness of < 0,5 mm, tinned [coated with a layer of metal containing, by weight,  >= 97% of tin], not further worked than surface-treated"]
[838,"Flat-rolled products of iron or non-alloy steel, of a width of >= 600 mm, hot-rolled or cold-rolled \"cold-reduced\", plated or coated with tin, of a thickness of < 0,5 mm (excl. tinplate)","Flat-rolled products of iron or non-alloy steel, of a width of >= 600 mm, hot-rolled or cold-rolled \"cold-reduced\", plated or coated with tin, of a thickness of < 0,5 mm (excl. tinplate)"]
[839,{"$f":"IFERROR(INDEX(C843:M843,$A$4-2),$C843)","v":"Flat-rolled products of iron or non-alloy steel, of a width of >= 600 mm, hot-rolled or cold-rolled \"cold-reduced\", plated or coated with lead, incl. terne-plate"},"Flat-rolled products of iron or non-alloy steel, of a width of >= 600 mm, hot-rolled or cold-rolled \"cold-reduced\", plated or coated with lead, incl. terne-plate"]
[840,"Flat-rolled products of iron or non-alloy steel, of a width of >= 600 mm, hot-rolled or cold-rolled \"cold-reduced\", electrolytically plated or coated with zinc","Flat-rolled products of iron or non-alloy steel, of a width of >= 600 mm, hot-rolled or cold-rolled \"cold-reduced\", electrolytically plated or coated with zinc"]
[841,"Flat-rolled products of iron or non-alloy steel, of a width of >= 600 mm, hot-rolled or cold-rolled \"cold-reduced\", corrugated, plated or coated with zinc (excl. electrolytically plated or coated with zinc)","Flat-rolled products of iron or non-alloy steel, of a width of >= 600 mm, hot-rolled or cold-rolled \"cold-reduced\", corrugated, plated or coated with zinc (excl. electrolytically plated or coated with zinc)"]
[842,"Flat-rolled products of iron or non-alloy steel, of a width of >= 600 mm, hot-rolled or cold-rolled \"cold-reduced\", not corrugated, plated or coated with zinc (excl. electrolytically plated or coated with zinc)","Flat-rolled products of iron or non-alloy steel, of a width of >= 600 mm, hot-rolled or cold-rolled \"cold-reduced\", not corrugated, plated or coated with zinc (excl. electrolytically plated or coated with zinc)"]
[843,"Flat-rolled products of iron or non-alloy steel, of a width of >= 600 mm, hot-rolled or cold-rolled \"cold-reduced\", plated or coated with chromium oxides or with chromium and chromium oxides","Flat-rolled products of iron or non-alloy steel, of a width of >= 600 mm, hot-rolled or cold-rolled \"cold-reduced\", plated or coated with chromium oxides or with chromium and chromium oxides"]
[844,"Flat-rolled products of iron or non-alloy steel, of a width of >= 600 mm, hot-rolled or cold-rolled \"cold-reduced\", plated or coated with aluminium-zinc alloys","Flat-rolled products of iron or non-alloy steel, of a width of >= 600 mm, hot-rolled or cold-rolled \"cold-reduced\", plated or coated with aluminium-zinc alloys"]
[845,"Flat-rolled products of iron or non-alloy steel, of a width of >= 600 mm, hot-rolled or cold-rolled \"cold-reduced\", plated or coated with aluminium (excl. products plated or coated with aluminium-zinc alloys)","Flat-rolled products of iron or non-alloy steel, of a width of >= 600 mm, hot-rolled or cold-rolled \"cold-reduced\", plated or coated with aluminium (excl. products plated or coated with aluminium-zinc alloys)"]
[846,"Flat products of iron or non-alloy steel, of a width of >= 600 mm, hot-rolled or cold-rolled \"cold-reduced\", painted, varnished or coated with plastics","Flat products of iron or non-alloy steel, of a width of >= 600 mm, hot-rolled or cold-rolled \"cold-reduced\", painted, varnished or coated with plastics"]
[847,"Tinplate of a width of >= 600 mm and of a thickness of < 0,5 mm, tinned [coated with a layer of metal containing, by weight,  >= 97% of tin], not further worked than varnished, and flat products plated or coated with chromium oxides or with chromium and chromium oxides, of iron or non-alloy steel, of a width of >= 600 mm, hot-rolled or cold-rolled \"cold-reduced\", varnished","Tinplate of a width of >= 600 mm and of a thickness of < 0,5 mm, tinned [coated with a layer of metal containing, by weight,  >= 97% of tin], not further worked than varnished, and flat products plated or coated with chromium oxides or with chromium and chromium oxides, of iron or non-alloy steel, of a width of >= 600 mm, hot-rolled or cold-rolled \"cold-reduced\", varnished"]
[848,"Flat-rolled products of iron or non-alloy steel, of a width of >= 600 mm, hot-rolled or cold-rolled \"cold-reduced\", painted, varnished or plastic coated (excl. tinplate and products electrolytically plated or coated with chrome, varnished)","Flat-rolled products of iron or non-alloy steel, of a width of >= 600 mm, hot-rolled or cold-rolled \"cold-reduced\", painted, varnished or plastic coated (excl. tinplate and products electrolytically plated or coated with chrome, varnished)"]
[849,"Flat-rolled products of iron or non-alloy steel, of a width of >= 600 mm, hot-rolled or cold-rolled \"cold-reduced\", clad, plated or coated (excl. tinned, plated or coated with lead, zinc, chromium oxides, chromium and chromium oxides, or aluminium, painted, varnished or coated with plastics)","Flat-rolled products of iron or non-alloy steel, of a width of >= 600 mm, hot-rolled or cold-rolled \"cold-reduced\", clad, plated or coated (excl. tinned, plated or coated with lead, zinc, chromium oxides, chromium and chromium oxides, or aluminium, painted, varnished or coated with plastics)"]
[850,"Flat-rolled products of iron or non-alloy steel, of a width of >= 600 mm, hot-rolled or cold-rolled \"cold-reduced\", clad","Flat-rolled products of iron or non-alloy steel, of a width of >= 600 mm, hot-rolled or cold-rolled \"cold-reduced\", clad"]
[851,"Flat-rolled products of iron or non-alloy steel, tinned and printed, of a width of >= 600 mm, hot-rolled or cold-rolled \"cold-reduced\"","Flat-rolled products of iron or non-alloy steel, tinned and printed, of a width of >= 600 mm, hot-rolled or cold-rolled \"cold-reduced\""]
[852,"Flat-rolled products of iron or non-alloy steel, hot-rolled or cold-rolled \"cold-reduced\", of a width of >= 600 mm, plated or coated (excl. plated or coated with thin, lead \"incl. terne-plate\", zinc, aluminium, chromium, chromium oxides, plastics, platinum, painted or varnished, clad and tinned and printed)","Flat-rolled products of iron or non-alloy steel, hot-rolled or cold-rolled \"cold-reduced\", of a width of >= 600 mm, plated or coated (excl. plated or coated with thin, lead \"incl. terne-plate\", zinc, aluminium, chromium, chromium oxides, plastics, platinum, painted or varnished, clad and tinned and printed)"]
[853,"Flat-rolled products of iron or non-alloy steel, of a width of < 600 mm, hot-rolled or cold-rolled \"cold-reduced\", not clad, plated or coated","Flat-rolled products of iron or non-alloy steel, of a width of < 600 mm, hot-rolled or cold-rolled \"cold-reduced\", not clad, plated or coated"]
[854,"Flat-rolled products of iron or non-alloy steel, simply hot-rolled on four faces or in a closed box pass, not clad, plated or coated, of a width of > 150 mm but < 600 mm and a thickness of >= 4 mm, not in coils, without patterns in relief, commonly known as \"wide flats\"","Flat-rolled products of iron or non-alloy steel, simply hot-rolled on four faces or in a closed box pass, not clad, plated or coated, of a width of > 150 mm but < 600 mm and a thickness of >= 4 mm, not in coils, without patterns in relief, commonly known as \"wide flats\""]
[855,"Flat-rolled products of iron or non-alloy steel, of a width < 600 mm, not further worked than hot-rolled, not clad, plated or coated, of a thickness of >= 4,75 mm (excl. \"wide flats\")","Flat-rolled products of iron or non-alloy steel, of a width < 600 mm, not further worked than hot-rolled, not clad, plated or coated, of a thickness of >= 4,75 mm (excl. \"wide flats\")"]
[856,"Flat-rolled products of iron or non-alloy steel, of a width < 600 mm, simply hot-rolled, not clad, plated or coated, of a thickness < 4,75 mm (excl. \"wide flats\")","Flat-rolled products of iron or non-alloy steel, of a width < 600 mm, simply hot-rolled, not clad, plated or coated, of a thickness < 4,75 mm (excl. \"wide flats\")"]
[857,"Flat-rolled products of iron or non-alloy steel, of a width of < 600 mm, simply cold-rolled \"cold-reduced\", not clad, plated or coated, containing by weight < 0,25% of carbon","Flat-rolled products of iron or non-alloy steel, of a width of < 600 mm, simply cold-rolled \"cold-reduced\", not clad, plated or coated, containing by weight < 0,25% of carbon"]
[858,"Flat-rolled products of iron or non-alloy steel, of a width of < 600 mm, simply cold-rolled \"cold-reduced\", not clad, plated or coated, containing by weight < 0,25% of carbon \"electrical\"","Flat-rolled products of iron or non-alloy steel, of a width of < 600 mm, simply cold-rolled \"cold-reduced\", not clad, plated or coated, containing by weight < 0,25% of carbon \"electrical\""]
[859,"Flat-rolled products of iron or non-alloy steel, of a width of < 600 mm and of a thickness of >= 0,35 mm, simply cold-rolled \"cold-reduced\", not clad, plated or coated, containing by weight < 0,25% of carbon (excl. electrical plate)","Flat-rolled products of iron or non-alloy steel, of a width of < 600 mm and of a thickness of >= 0,35 mm, simply cold-rolled \"cold-reduced\", not clad, plated or coated, containing by weight < 0,25% of carbon (excl. electrical plate)"]
[860,"Flat-rolled products of iron or non-alloy steel, of a width of < 600 mm and of a thickness of < 0,35 mm, simply cold-rolled \"cold-reduced\", not clad, plated or coated, containing by weight < 0,25% of carbon (excl. electrical plate)","Flat-rolled products of iron or non-alloy steel, of a width of < 600 mm and of a thickness of < 0,35 mm, simply cold-rolled \"cold-reduced\", not clad, plated or coated, containing by weight < 0,25% of carbon (excl. electrical plate)"]
[861,"Flat-rolled products of iron or non-alloy steel, of a width of < 600 mm, simply cold-rolled \"cold-reduced\", not clad, plated or coated, containing by weight >= 0,25% of carbon","Flat-rolled products of iron or non-alloy steel, of a width of < 600 mm, simply cold-rolled \"cold-reduced\", not clad, plated or coated, containing by weight >= 0,25% of carbon"]
[862,"Flat-rolled products of iron or non-alloy steel, of a width of < 600 mm, hot-rolled or cold-rolled \"cold-reduced\" and further worked, but not clad, plated or coated","Flat-rolled products of iron or non-alloy steel, of a width of < 600 mm, hot-rolled or cold-rolled \"cold-reduced\" and further worked, but not clad, plated or coated"]
[863,"Flat-rolled products of iron or non-alloy steel, of a width of < 600 mm, hot-rolled or cold-rolled \"cold-reduced\" and further worked, but not clad, plated or coated, perforated","Flat-rolled products of iron or non-alloy steel, of a width of < 600 mm, hot-rolled or cold-rolled \"cold-reduced\" and further worked, but not clad, plated or coated, perforated"]
[864,"Flat-rolled products of iron or non-alloy steel, of a width of < 600 mm, hot-rolled or cold-rolled \"cold-reduced\" and further worked, but not clad, plated or coatednon-perforated","Flat-rolled products of iron or non-alloy steel, of a width of < 600 mm, hot-rolled or cold-rolled \"cold-reduced\" and further worked, but not clad, plated or coatednon-perforated"]
[865,"Flat-rolled products of iron or non-alloy steel, of a width of < 600 mm, hot-rolled or cold-rolled \"cold-reduced\", clad, plated or coated","Flat-rolled products of iron or non-alloy steel, of a width of < 600 mm, hot-rolled or cold-rolled \"cold-reduced\", clad, plated or coated"]
[866,"Flat-rolled products of iron or non-alloy steel, of a width of < 600 mm, hot-rolled or cold-rolled \"cold-reduced\", tinned","Flat-rolled products of iron or non-alloy steel, of a width of < 600 mm, hot-rolled or cold-rolled \"cold-reduced\", tinned"]
[867,"Tinplate of iron or non-alloy steel, of a width of < 600 mm and of a thickness of < 0,5 mm, tinned [coated with a layer of metal containing, by weight,  >= 97% of tin], not further worked than surface-treated","Tinplate of iron or non-alloy steel, of a width of < 600 mm and of a thickness of < 0,5 mm, tinned [coated with a layer of metal containing, by weight,  >= 97% of tin], not further worked than surface-treated"]
[868,"Flat-rolled products of iron or non-alloy steel, hot-rolled or cold-rolled \"cold-reduced\", of a width of < 600 mm, tinned (excl. tinplate, not further worked than surface-treated)","Flat-rolled products of iron or non-alloy steel, hot-rolled or cold-rolled \"cold-reduced\", of a width of < 600 mm, tinned (excl. tinplate, not further worked than surface-treated)"]
[869,"Flat-rolled products of iron or non-alloy steel, of a width of < 600 mm, hot-rolled or cold-rolled \"cold-reduced\", electrolytically plated or coated with zinc","Flat-rolled products of iron or non-alloy steel, of a width of < 600 mm, hot-rolled or cold-rolled \"cold-reduced\", electrolytically plated or coated with zinc"]
[870,"Flat-rolled products of iron or non-alloy steel, of a width of < 600 mm, hot-rolled or cold-rolled \"cold-reduced\", tinned (excl. electrolytically plated or coated with zinc)","Flat-rolled products of iron or non-alloy steel, of a width of < 600 mm, hot-rolled or cold-rolled \"cold-reduced\", tinned (excl. electrolytically plated or coated with zinc)"]
[871,"Flat-rolled products of iron or non-alloy steel, of a width of < 600 mm, hot-rolled or cold-rolled \"cold-reduced\", painted, varnished or coated with plastics","Flat-rolled products of iron or non-alloy steel, of a width of < 600 mm, hot-rolled or cold-rolled \"cold-reduced\", painted, varnished or coated with plastics"]
[872,"Tinplate of a width of < 600 mm and of a thickness of < 0,5 mm, tinned [coated with a layer of metal containing, by weight,  >= 97% of tin], not further worked than varnished, and flat products plated or coated with chromium oxides or with chromium and chromium oxides, of iron or non-alloy steel, of a width of < 600 mm, hot-rolled or cold-rolled \"cold-reduced\", varnished","Tinplate of a width of < 600 mm and of a thickness of < 0,5 mm, tinned [coated with a layer of metal containing, by weight,  >= 97% of tin], not further worked than varnished, and flat products plated or coated with chromium oxides or with chromium and chromium oxides, of iron or non-alloy steel, of a width of < 600 mm, hot-rolled or cold-rolled \"cold-reduced\", varnished"]
[873,"Flat-rolled products of iron or non-alloy steel, of a width of < 600 mm, hot-rolled or cold-rolled \"cold-reduced\", painted, varnished or plastic coated (excl. tinplate, not further worked than varnished, and products plated or coated with chromium oxides or with chromium and chromium oxides, varnished)","Flat-rolled products of iron or non-alloy steel, of a width of < 600 mm, hot-rolled or cold-rolled \"cold-reduced\", painted, varnished or plastic coated (excl. tinplate, not further worked than varnished, and products plated or coated with chromium oxides or with chromium and chromium oxides, varnished)"]
[874,"Flat-rolled products of iron or non-alloy steel, of a width of < 600 mm, hot-rolled or cold-rolled \"cold-reduced\", plated or coated (excl. tinned, plated or coated with zinc, painted, varnished or coated with plastics)","Flat-rolled products of iron or non-alloy steel, of a width of < 600 mm, hot-rolled or cold-rolled \"cold-reduced\", plated or coated (excl. tinned, plated or coated with zinc, painted, varnished or coated with plastics)"]
[875,"Flat-rolled products of iron or non-alloy steel, of a width of < 600 mm, hot-rolled or cold-rolled \"cold-reduced\", plated or coated with chromium oxides or with chromium and chromium oxides (excl. varnished)","Flat-rolled products of iron or non-alloy steel, of a width of < 600 mm, hot-rolled or cold-rolled \"cold-reduced\", plated or coated with chromium oxides or with chromium and chromium oxides (excl. varnished)"]
[876,"Flat-rolled products of iron or non-alloy steel, of a width of < 600 mm, hot-rolled or cold-rolled \"cold-reduced\", plated or coated with chromium or nickel","Flat-rolled products of iron or non-alloy steel, of a width of < 600 mm, hot-rolled or cold-rolled \"cold-reduced\", plated or coated with chromium or nickel"]
[877,"Flat-rolled products of iron or non-alloy steel, of a width of < 600 mm, hot-rolled or cold-rolled \"cold-reduced\", plated or coated with copper","Flat-rolled products of iron or non-alloy steel, of a width of < 600 mm, hot-rolled or cold-rolled \"cold-reduced\", plated or coated with copper"]
[878,"Flat-rolled products of iron or non-alloy steel, of a width of < 600 mm, hot-rolled or cold-rolled \"cold-reduced\", plated or coated with aluminium-zinc alloys","Flat-rolled products of iron or non-alloy steel, of a width of < 600 mm, hot-rolled or cold-rolled \"cold-reduced\", plated or coated with aluminium-zinc alloys"]
[879,"Flat-rolled products of iron or non-alloy steel, of a width of < 600 mm, hot-rolled or cold-rolled \"cold-reduced\", plated or coated with aluminium (excl. products plated or coated with aluminium-zinc alloys)","Flat-rolled products of iron or non-alloy steel, of a width of < 600 mm, hot-rolled or cold-rolled \"cold-reduced\", plated or coated with aluminium (excl. products plated or coated with aluminium-zinc alloys)"]
[880,"Flat-rolled products of iron or non-alloy steel, of a width of < 600 mm, hot-rolled or cold-rolled \"cold-reduced\", clad (excl. products plated or coated with tin or zinc, copper, with chromium oxides or with chromium and chromium oxides, chromium, nickel or aluminium, painted or varnished, and plastic-coated)","Flat-rolled products of iron or non-alloy steel, of a width of < 600 mm, hot-rolled or cold-rolled \"cold-reduced\", clad (excl. products plated or coated with tin or zinc, copper, with chromium oxides or with chromium and chromium oxides, chromium, nickel or aluminium, painted or varnished, and plastic-coated)"]
[881,"Flat-rolled products of iron or non-alloy steel, of a width of < 600 mm, hot-rolled or cold-rolled \"cold-reduced\", clad","Flat-rolled products of iron or non-alloy steel, of a width of < 600 mm, hot-rolled or cold-rolled \"cold-reduced\", clad"]
[882,"Bars and rods of iron or non-alloy steel, hot-rolled, in irregularly wound coils","Bars and rods of iron or non-alloy steel, hot-rolled, in irregularly wound coils"]
[883,"Bars and rods, hot-rolled, in irregularly wound coils of iron or non-alloy steel, with indentations, ribs, grooves or other deformations produced during the rolling process","Bars and rods, hot-rolled, in irregularly wound coils of iron or non-alloy steel, with indentations, ribs, grooves or other deformations produced during the rolling process"]
[884,"Bars and rods, hot-rolled, in irregularly wound coils, of non-alloy free-cutting steel (excl. bars and rods containing indentations, ribs, grooves or other deformations produced during the rolling process)","Bars and rods, hot-rolled, in irregularly wound coils, of non-alloy free-cutting steel (excl. bars and rods containing indentations, ribs, grooves or other deformations produced during the rolling process)"]
[885,"Bars and rods, hot-rolled, in irregularly wound coils, of iron or non-alloy steel, of circular cross-section measuring < 14 mm in diameter (excl. bars and rods of free-cutting steel, and bars and rods with indentations, ribs, grooves or other deformations produced during the rolling process)","Bars and rods, hot-rolled, in irregularly wound coils, of iron or non-alloy steel, of circular cross-section measuring < 14 mm in diameter (excl. bars and rods of free-cutting steel, and bars and rods with indentations, ribs, grooves or other deformations produced during the rolling process)"]
[886,"Bars and rods, hot-rolled, of the type used for concrete reinforcement, smooth, of iron or non-alloy steel, in irregularly wound coils, of circular cross-section measuring < 14 mm in diameter","Bars and rods, hot-rolled, of the type used for concrete reinforcement, smooth, of iron or non-alloy steel, in irregularly wound coils, of circular cross-section measuring < 14 mm in diameter"]
[887,"Bars and rods, hot-rolled, of the type used for tyre cord, smooth, of iron or non-alloy steel, in irregularly wound coils","Bars and rods, hot-rolled, of the type used for tyre cord, smooth, of iron or non-alloy steel, in irregularly wound coils"]
[888,"Bars and rods, hot-rolled, of iron or non-alloy steel, in irregularly wound coils, containing by weight <= 0,06% of carbon, of circular cross-section measuring < 14 mm in diameter (excl. free-cutting steel, bars and rods, hot-rolled, for concrete reinforcement and tyre cord, and bars and rods, hot-rolled, containing indentations, ribs, grooves or other deformations produced during the rolling process)","Bars and rods, hot-rolled, of iron or non-alloy steel, in irregularly wound coils, containing by weight <= 0,06% of carbon, of circular cross-section measuring < 14 mm in diameter (excl. free-cutting steel, bars and rods, hot-rolled, for concrete reinforcement and tyre cord, and bars and rods, hot-rolled, containing indentations, ribs, grooves or other deformations produced during the rolling process)"]
[889,"Bars and rods, hot-rolled, of iron or non-alloy steel, in irregularly wound coils, containing by weight > 0,06% and < 0,25% of carbon, of circular cross-section, measuring < 14 mm in diameter (excl. of free-cutting steel, bars and rods, hot-rolled, for concrete reinforcement and tyre cord and bars and rods, hot-rolled, containing indentations, ribs, grooves or other deformations produced during the rolling process)","Bars and rods, hot-rolled, of iron or non-alloy steel, in irregularly wound coils, containing by weight > 0,06% and < 0,25% of carbon, of circular cross-section, measuring < 14 mm in diameter (excl. of free-cutting steel, bars and rods, hot-rolled, for concrete reinforcement and tyre cord and bars and rods, hot-rolled, containing indentations, ribs, grooves or other deformations produced during the rolling process)"]
[890,"Bars and rods, hot-rolled, in irregularly wound coils, of iron or non-alloy steel, containing by weight >= 0,25% but <= 0,75% carbon, of circular cross-section measuring < 14 mm in diameter (excl. of free-cutting steel, and bars and rods, smooth, for concrete reinforcement and tyre cord, and bars and rods with indentations, ribs, grooves or other deformations produced during the rolling process)","Bars and rods, hot-rolled, in irregularly wound coils, of iron or non-alloy steel, containing by weight >= 0,25% but <= 0,75% carbon, of circular cross-section measuring < 14 mm in diameter (excl. of free-cutting steel, and bars and rods, smooth, for concrete reinforcement and tyre cord, and bars and rods with indentations, ribs, grooves or other deformations produced during the rolling process)"]
[891,"Bars and rods, hot-rolled, of iron or non-alloy steel, in irregularly wound coils, containing by weight > 0,75% of carbon, of circular cross-section measuring < 14 mm in diameter (excl. of free-cutting steel, bars and rods, smooth, for tyre cord and bars and rods with indentations, ribs, grooves and other deformations produced during the rolling process)","Bars and rods, hot-rolled, of iron or non-alloy steel, in irregularly wound coils, containing by weight > 0,75% of carbon, of circular cross-section measuring < 14 mm in diameter (excl. of free-cutting steel, bars and rods, smooth, for tyre cord and bars and rods with indentations, ribs, grooves and other deformations produced during the rolling process)"]
[892,"Bars and rods, hot-rolled, in irregularly wound coils, of iron or non-alloy steel (excl. products of circular cross-section measuring < 14 mm in diameter, bars and rods of free-cutting steel, and bars and rods with indentations, ribs, grooves or other deformations produced during the rolling process)","Bars and rods, hot-rolled, in irregularly wound coils, of iron or non-alloy steel (excl. products of circular cross-section measuring < 14 mm in diameter, bars and rods of free-cutting steel, and bars and rods with indentations, ribs, grooves or other deformations produced during the rolling process)"]
[893,"Bars and rods, of iron or non-alloy steel, hot-rolled, in irregularly wound coils, containing by weight < 0,25% carbon (excl. products of circular cross-section measuring < 14 mm in diameter, bars and rods of free-cutting steel, and bars and rods with indentations, ribs, grooves or other deformations produced during the rolling process)","Bars and rods, of iron or non-alloy steel, hot-rolled, in irregularly wound coils, containing by weight < 0,25% carbon (excl. products of circular cross-section measuring < 14 mm in diameter, bars and rods of free-cutting steel, and bars and rods with indentations, ribs, grooves or other deformations produced during the rolling process)"]
[894,"Bars and rods, hot-rolled, in irregularly wound coils, of iron or non-alloy steel, containing by weight >= 0,25% carbon (excl. products of circular cross-section measuring < 14 mm diameter, bars and rods of free-cutting steel, and bars and rods with indentations, ribs, grooves or other deformations produced during the rolling process)","Bars and rods, hot-rolled, in irregularly wound coils, of iron or non-alloy steel, containing by weight >= 0,25% carbon (excl. products of circular cross-section measuring < 14 mm diameter, bars and rods of free-cutting steel, and bars and rods with indentations, ribs, grooves or other deformations produced during the rolling process)"]
[895,"Bars and rods, of iron or non-alloy steel, not further worked than forged, hot-rolled, hot-drawn or hot-extruded, but incl. those twisted after rolling (excl. in irregularly wound coils)","Bars and rods, of iron or non-alloy steel, not further worked than forged, hot-rolled, hot-drawn or hot-extruded, but incl. those twisted after rolling (excl. in irregularly wound coils)"]
[896,"Bars and rods, of iron or non-alloy steel, not further worked than forged (excl. in irregularly wound coils)","Bars and rods, of iron or non-alloy steel, not further worked than forged (excl. in irregularly wound coils)"]
[897,"Bars and rods, of iron or non-alloy steel, with indentations, ribs, groves or other deformations produced during the rolling process","Bars and rods, of iron or non-alloy steel, with indentations, ribs, groves or other deformations produced during the rolling process"]
[898,"Bars and rods, of non-alloy free-cutting steel, not further worked than hot-rolled, hot-drawn or hot-extruded (excl. containing indentations, ribs, grooves or other deformations produced during the rolling process or twisted after rolling)","Bars and rods, of non-alloy free-cutting steel, not further worked than hot-rolled, hot-drawn or hot-extruded (excl. containing indentations, ribs, grooves or other deformations produced during the rolling process or twisted after rolling)"]
[899,"Bars and rods, of iron or non-alloy steel, not further worked than hot-rolled, hot-drawn or hot-extruded, of rectangular \"other than square\" cross-section (excl. containing indentations, ribs, grooves or other deformations produced during the rolling process, bars and rods twisted after rolling and free-cutting steel)","Bars and rods, of iron or non-alloy steel, not further worked than hot-rolled, hot-drawn or hot-extruded, of rectangular \"other than square\" cross-section (excl. containing indentations, ribs, grooves or other deformations produced during the rolling process, bars and rods twisted after rolling and free-cutting steel)"]
[900,"Bars and rods of iron or non-alloy steel, not further worked than hot-rolled, hot-drawn or hot-extruded, containing by weight < 0,25% of carbon, of rectangular \"other than square\" cross-section (excl. those with indentations, ribs, grooves or other deformations produced during the rolling process, bars and rods twisted after rolling, and free-cutting steel)","Bars and rods of iron or non-alloy steel, not further worked than hot-rolled, hot-drawn or hot-extruded, containing by weight < 0,25% of carbon, of rectangular \"other than square\" cross-section (excl. those with indentations, ribs, grooves or other deformations produced during the rolling process, bars and rods twisted after rolling, and free-cutting steel)"]
[901,"Other bars and rods of iron or non-alloy steel, only hot-rolled, only hot-drawn or only hot-extruded, containing by weight >= 0,25% of carbon, of rectangular \"other than square\" cross-section (excl. those with indentations, ribs, grooves or other deformations produced during the rolling process, bars and rods twisted after rolling, and free-cutting steel)","Other bars and rods of iron or non-alloy steel, only hot-rolled, only hot-drawn or only hot-extruded, containing by weight >= 0,25% of carbon, of rectangular \"other than square\" cross-section (excl. those with indentations, ribs, grooves or other deformations produced during the rolling process, bars and rods twisted after rolling, and free-cutting steel)"]
[902,"Bars and rods, of iron or non-alloy steel, only hot-rolled, only hot-drawn or only hot-extruded (excl. of rectangular [other than square] cross-section and those containing indentations, ribs, grooves or other deformations produced during the rolling process, and of non-alloy free-cutting steel)","Bars and rods, of iron or non-alloy steel, only hot-rolled, only hot-drawn or only hot-extruded (excl. of rectangular [other than square] cross-section and those containing indentations, ribs, grooves or other deformations produced during the rolling process, and of non-alloy free-cutting steel)"]
[903,{"$f":"IFERROR(INDEX(C907:M907,$A$4-2),$C907)","v":"Bars and rods of the type used for concrete reinforcement, smooth, of iron or non-alloy steel, only hot-rolled, only hot-drawn or only hot-extruded, containing < 0,25% of carbon, of square cross-section or of a cross-section other than rectangular"},"Bars and rods of the type used for concrete reinforcement, smooth, of iron or non-alloy steel, only hot-rolled, only hot-drawn or only hot-extruded, containing < 0,25% of carbon, of square cross-section or of a cross-section other than rectangular"]
[904,"Bars and rods of iron or non-alloy steel, only hot-rolled, hot-drawn or hot-extruded, containing < 0,25% of carbon, of circular cross-section, of a maximum diameter of >= 80 mm (other than of free-cutting steel, smooth bars and rods, for reinfoced concrete, or bars and rods containing indentations, ribs, grooves or other deformations produced during the rolling process, or wound after rolling)","Bars and rods of iron or non-alloy steel, only hot-rolled, hot-drawn or hot-extruded, containing < 0,25% of carbon, of circular cross-section, of a maximum diameter of >= 80 mm (other than of free-cutting steel, smooth bars and rods, for reinfoced concrete, or bars and rods containing indentations, ribs, grooves or other deformations produced during the rolling process, or wound after rolling)"]
[905,"Bars and rods of iron or non-alloy steel, only hot-rolled, hot-drawn or hot-extruded, containing < 0,25% of carbon, of circular cross-section of a maximum diameter of < 80 mm (other than of free-cutting steel, smooth bars and rods, for reinforced concrete, or bars and rods containing indentations, ribs, grooves or other deformations produced during the rolling process, or wound after rolling)","Bars and rods of iron or non-alloy steel, only hot-rolled, hot-drawn or hot-extruded, containing < 0,25% of carbon, of circular cross-section of a maximum diameter of < 80 mm (other than of free-cutting steel, smooth bars and rods, for reinforced concrete, or bars and rods containing indentations, ribs, grooves or other deformations produced during the rolling process, or wound after rolling)"]
[906,"Bars and rods of iron or non-alloy steel, only hot-rolled, hot-drawn or hot-extruded, containing by weight < 0,25% of carbon, of square cross-section or of a cross-section other than square or circular (other than of free-cutting steel, smooth bars and rods, for reinforced concrete, or bars and rods containing indentations, ribs, grooves or other deformations produced during the rolling process, or wound after rolling)","Bars and rods of iron or non-alloy steel, only hot-rolled, hot-drawn or hot-extruded, containing by weight < 0,25% of carbon, of square cross-section or of a cross-section other than square or circular (other than of free-cutting steel, smooth bars and rods, for reinforced concrete, or bars and rods containing indentations, ribs, grooves or other deformations produced during the rolling process, or wound after rolling)"]
[907,"Bars and rods of iron or non-alloy steel, only hot-rolled, only hot-drawn or only hot-extruded, containing by weight >= 0,25% carbon, of circular cross-section measuring >= 80 mm in diameter (excl. bars and rods with indentations, ribs, grooves or other deformations produced during the rolling process, twisted after rolling, and of free-cutting steel)","Bars and rods of iron or non-alloy steel, only hot-rolled, only hot-drawn or only hot-extruded, containing by weight >= 0,25% carbon, of circular cross-section measuring >= 80 mm in diameter (excl. bars and rods with indentations, ribs, grooves or other deformations produced during the rolling process, twisted after rolling, and of free-cutting steel)"]
[908,"Bars and rods of iron or non-alloy steel, only hot-rolled, only hot-drawn or only hot-extruded, containing by weight >= 0,25% carbon, of circular cross-section measuring < 80 mm in diameter (excl. bars and rods with indentations, ribs, grooves or other deformations produced during the rolling process, twisted after rolling, and of free-cutting steel)","Bars and rods of iron or non-alloy steel, only hot-rolled, only hot-drawn or only hot-extruded, containing by weight >= 0,25% carbon, of circular cross-section measuring < 80 mm in diameter (excl. bars and rods with indentations, ribs, grooves or other deformations produced during the rolling process, twisted after rolling, and of free-cutting steel)"]
[909,"Bars and rods of iron or non-alloy steel, only hot-rolled, only hot-drawn or only hot-extruded, containing by weight >= 0,25% carbon, of square or of other than rectangular or circular cross-section (excl. indentations, ribs, grooves or other deformations produced during the rolling process, twisted fter rolling, and of free-cutting steel)","Bars and rods of iron or non-alloy steel, only hot-rolled, only hot-drawn or only hot-extruded, containing by weight >= 0,25% carbon, of square or of other than rectangular or circular cross-section (excl. indentations, ribs, grooves or other deformations produced during the rolling process, twisted fter rolling, and of free-cutting steel)"]
[910,"Bars and rods, of iron or non-alloy steel, cold-formed or cold-finished, whether or not further worked, or hot-formed and further worked, n.e.s.","Bars and rods, of iron or non-alloy steel, cold-formed or cold-finished, whether or not further worked, or hot-formed and further worked, n.e.s."]
[911,"Bars and rods, of non-alloy free-cutting steel, not further worked than cold-formed or cold-finished","Bars and rods, of non-alloy free-cutting steel, not further worked than cold-formed or cold-finished"]
[912,"Bars and rods, of iron or non-alloy steel, not further worked than cold-formed or cold-finished (excl. of free-cutting steel)","Bars and rods, of iron or non-alloy steel, not further worked than cold-formed or cold-finished (excl. of free-cutting steel)"]
[913,"Other bars and rods of iron or non-alloy steel, not further worked than cold-formed or cold-finished, containing by weight < 0,25% of carbon of rectangular \"other than square\" cross-section (excl. those of free-cutting steel)","Other bars and rods of iron or non-alloy steel, not further worked than cold-formed or cold-finished, containing by weight < 0,25% of carbon of rectangular \"other than square\" cross-section (excl. those of free-cutting steel)"]
[914,"Other bars and rods of iron or non-alloy steel, not further worked than cold-formed or cold-finished, containing by weight < 0,25% of carbon, of square or other than rectangular cross-section (excl. those of free-cutting steel)","Other bars and rods of iron or non-alloy steel, not further worked than cold-formed or cold-finished, containing by weight < 0,25% of carbon, of square or other than rectangular cross-section (excl. those of free-cutting steel)"]
[915,"Other bars and rods of iron or non-alloy steel, not further worked than cold-formed or cold-finished, containing by weight >= 0,25% of carbon (excl. those of free-cutting steel)","Other bars and rods of iron or non-alloy steel, not further worked than cold-formed or cold-finished, containing by weight >= 0,25% of carbon (excl. those of free-cutting steel)"]
[916,"Bars or rods, of iron or non-alloy steel, cold-formed or cold-finished and further worked or hot-formed and further worked, n.e.s.","Bars or rods, of iron or non-alloy steel, cold-formed or cold-finished and further worked or hot-formed and further worked, n.e.s."]
[917,"Angles, shapes and sections of iron or non-alloy steel, n.e.s.","Angles, shapes and sections of iron or non-alloy steel, n.e.s."]
[918,"U, I or H sections of iron or non-alloy steel, not further worked than hot-rolled, hot-drawn or extruded, of a height of < 80 mm","U, I or H sections of iron or non-alloy steel, not further worked than hot-rolled, hot-drawn or extruded, of a height of < 80 mm"]
[919,"L sections of iron or non-alloy steel, not further worked than hot-rolled, hot-drawn or extruded, of a height of < 80 mm","L sections of iron or non-alloy steel, not further worked than hot-rolled, hot-drawn or extruded, of a height of < 80 mm"]
[920,"T sections of iron or non-alloy steel, not further worked than hot-rolled, hot-drawn or extruded, of a height of < 80 mm","T sections of iron or non-alloy steel, not further worked than hot-rolled, hot-drawn or extruded, of a height of < 80 mm"]
[921,"U sections of iron or non-alloy steel, not further worked than hot-rolled, hot-drawn or hot-extruded, of a height >= 80 mm","U sections of iron or non-alloy steel, not further worked than hot-rolled, hot-drawn or hot-extruded, of a height >= 80 mm"]
[922,"U sections of iron or non-alloy steel, simply hot-rolled, hot-drawn or extruded, of a height >= 80 mm but <= 220 mm","U sections of iron or non-alloy steel, simply hot-rolled, hot-drawn or extruded, of a height >= 80 mm but <= 220 mm"]
[923,"U sections of iron or non-alloy steel, simply hot-rolled, hot-drawn or extruded, of a height > 220 mm","U sections of iron or non-alloy steel, simply hot-rolled, hot-drawn or extruded, of a height > 220 mm"]
[924,"I sections of iron or non-alloy steel, not further worked than hot-rolled, hot-drawn or hot-extruded, of a height >= 80 mm","I sections of iron or non-alloy steel, not further worked than hot-rolled, hot-drawn or hot-extruded, of a height >= 80 mm"]
[925,"I sections with parallel flange faces, of iron or non-alloy steel, simply hot-rolled, hot-drawn or extruded, of a height >= 80 mm but <= 220 mm","I sections with parallel flange faces, of iron or non-alloy steel, simply hot-rolled, hot-drawn or extruded, of a height >= 80 mm but <= 220 mm"]
[926,"I sections of iron or non-alloy steel, simply hot-rolled, hot-drawn or extruded, of a height >= 80 mm but <= 220 mm (excl. 7216.32.11)","I sections of iron or non-alloy steel, simply hot-rolled, hot-drawn or extruded, of a height >= 80 mm but <= 220 mm (excl. 7216.32.11)"]
[927,"I sections with parallel flange faces, of iron or non-alloy steel, simply hot-rolled, hot-drawn or extruded, of a height > 220 mm","I sections with parallel flange faces, of iron or non-alloy steel, simply hot-rolled, hot-drawn or extruded, of a height > 220 mm"]
[928,"I sections of iron or non-alloy steel, simply hot-rolled, hot-drawn or extruded, of a height > 220 mm (excl. 7216.32.91)","I sections of iron or non-alloy steel, simply hot-rolled, hot-drawn or extruded, of a height > 220 mm (excl. 7216.32.91)"]
[929,"H sections of iron or non-alloy steel, not further worked than hot-rolled, hot-drawn or hot-extruded, of a height >= 80 mm","H sections of iron or non-alloy steel, not further worked than hot-rolled, hot-drawn or hot-extruded, of a height >= 80 mm"]
[930,"H sections of iron or non-alloy steel, simply hot-rolled, hot-drawn or extruded, of a height >= 80 mm but <= 180 mm","H sections of iron or non-alloy steel, simply hot-rolled, hot-drawn or extruded, of a height >= 80 mm but <= 180 mm"]
[931,"H sections of iron or non-alloy steel, simply hot-rolled, hot-drawn or extruded, of a height > 180 mm","H sections of iron or non-alloy steel, simply hot-rolled, hot-drawn or extruded, of a height > 180 mm"]
[932,"L sections of iron or non-alloy steel, not further worked than hot-rolled, hot-drawn or hot-extruded, of a height >= 80 mm","L sections of iron or non-alloy steel, not further worked than hot-rolled, hot-drawn or hot-extruded, of a height >= 80 mm"]
[933,"L sections of iron or non-alloy steel, not further worked than hot-rolled, hot-drawn or extruded, of a height of >= 80 mm","L sections of iron or non-alloy steel, not further worked than hot-rolled, hot-drawn or extruded, of a height of >= 80 mm"]
[934,"T sections of iron or non-alloy steel, not further worked than hot-rolled, hot-drawn or extruded, of a height of >= 80 mm","T sections of iron or non-alloy steel, not further worked than hot-rolled, hot-drawn or extruded, of a height of >= 80 mm"]
[935,"Sections of iron or non-alloy steel, not further worked than hot-rolled, hot-drawn or hot-extruded (excl. U, I, H, L or T sections)","Sections of iron or non-alloy steel, not further worked than hot-rolled, hot-drawn or hot-extruded (excl. U, I, H, L or T sections)"]
[936,"Sections of iron or non-alloy steel, not further worked than hot-rolled, hot-drawn or hot-extruded, with a cross-section which is capable of being enclosed in a square the side of which is <= 80 mm (excl. U, I, H, L or T sections)","Sections of iron or non-alloy steel, not further worked than hot-rolled, hot-drawn or hot-extruded, with a cross-section which is capable of being enclosed in a square the side of which is <= 80 mm (excl. U, I, H, L or T sections)"]
[937,"Bulb sections \"bulb flat\", only hot-rolled, hot-drawn or hot-extruded","Bulb sections \"bulb flat\", only hot-rolled, hot-drawn or hot-extruded"]
[938,"Profile of iron or non-alloy steel, only hot-rolled, hot-drawn or hot-extruded (other than with a cross-section which is capable of being enclosed in a square the side of which is <= 80 mm, and U-, I-, H-, L- or T-sections and ribbed sections [ribbed steel])","Profile of iron or non-alloy steel, only hot-rolled, hot-drawn or hot-extruded (other than with a cross-section which is capable of being enclosed in a square the side of which is <= 80 mm, and U-, I-, H-, L- or T-sections and ribbed sections [ribbed steel])"]
[939,"Angles, shapes and sections, of iron or non-alloy steel, from flat-rolled products simply cold-formed or cold-finished (excl. profiled sheet)","Angles, shapes and sections, of iron or non-alloy steel, from flat-rolled products simply cold-formed or cold-finished (excl. profiled sheet)"]
[940,"c, l, u, z, omega or open-ended sections of iron or non-alloy steel, simply cold-formed or cold-finished, obtained from flat-rolled products","c, l, u, z, omega or open-ended sections of iron or non-alloy steel, simply cold-formed or cold-finished, obtained from flat-rolled products"]
[941,"Angles, shapes and sections (other than c, l, u, z, omega or open-ended sections) of iron or non-alloy steel, simply cold-formed or cold-finished, obtained from flat-rolled products","Angles, shapes and sections (other than c, l, u, z, omega or open-ended sections) of iron or non-alloy steel, simply cold-formed or cold-finished, obtained from flat-rolled products"]
[942,"Angles, shapes and sections, of iron or non-alloy steel, not further worked than cold-formed or cold-finished (excl. profiled sheet)","Angles, shapes and sections, of iron or non-alloy steel, not further worked than cold-formed or cold-finished (excl. profiled sheet)"]
[943,"Angles, shapes and sections, of iron or non-alloy steel, cold-formed or cold-finished from flat-rolled products and further worked","Angles, shapes and sections, of iron or non-alloy steel, cold-formed or cold-finished from flat-rolled products and further worked"]
[944,"Sheets sheets of iron or non-alloy steel, cold-formed or cold finished, profiled \"ribbed\"","Sheets sheets of iron or non-alloy steel, cold-formed or cold finished, profiled \"ribbed\""]
[945,"Angles, shapes and sections, of iron or non-alloy steel, cold-formed or cold-finished from flat-rolled products and further worked (excl. profiled sheet)","Angles, shapes and sections, of iron or non-alloy steel, cold-formed or cold-finished from flat-rolled products and further worked (excl. profiled sheet)"]
[946,"Angles, shapes and sections, of iron or non-alloy steel, cold-formed or cold-finished and further worked, or hot-forged, or hot-formed by other means and further worked, n.e.s. (excl. from flat-rolled products)","Angles, shapes and sections, of iron or non-alloy steel, cold-formed or cold-finished and further worked, or hot-forged, or hot-formed by other means and further worked, n.e.s. (excl. from flat-rolled products)"]
[947,"Wire of iron or non-alloy steel, in coils (excl. bars and rods)","Wire of iron or non-alloy steel, in coils (excl. bars and rods)"]
[948,"Wire of iron or non-alloy steel, in coils, not plated or coated, whether or not polished (excl. bars and rods)","Wire of iron or non-alloy steel, in coils, not plated or coated, whether or not polished (excl. bars and rods)"]
[949,"Wire of iron or non-alloy steel, in coils, containing by weight < 0,25% carbon, not plated or coated, whether or not polished, with a maximum cross-sectional dimension of < 0,8 mm","Wire of iron or non-alloy steel, in coils, containing by weight < 0,25% carbon, not plated or coated, whether or not polished, with a maximum cross-sectional dimension of < 0,8 mm"]
[950,"Wire of iron or non-alloy steel, in coils, containing by weight < 0,25% carbon, with indentations, ribs, grooves or other deformations produced during the rolling process, not plated or coated, with a maximum cross-sectional dimension of >= 0,8 mm","Wire of iron or non-alloy steel, in coils, containing by weight < 0,25% carbon, with indentations, ribs, grooves or other deformations produced during the rolling process, not plated or coated, with a maximum cross-sectional dimension of >= 0,8 mm"]
[951,"Wire of iron or non-alloy steel, in coils, containing by weight < 0,25% carbon, not plated or coated, with a maximum cross-sectional dimension of >= 0,8 mm (without indentations, ribs, grooves or other deformations produced during the rolling process)","Wire of iron or non-alloy steel, in coils, containing by weight < 0,25% carbon, not plated or coated, with a maximum cross-sectional dimension of >= 0,8 mm (without indentations, ribs, grooves or other deformations produced during the rolling process)"]
[952,"Wire of iron or non-alloy steel, in coils, containing by weight >= 0,25% but < 0,6% carbon, not plated or coated, whether or not polished (excl. hot-rolled bars and rods)","Wire of iron or non-alloy steel, in coils, containing by weight >= 0,25% but < 0,6% carbon, not plated or coated, whether or not polished (excl. hot-rolled bars and rods)"]
[953,"Wire of iron or non-alloy steel, in coils, containing by weight >= 0,6% carbon, not plated or coated, whether or not polished (excl. hot-rolled bars and rods)","Wire of iron or non-alloy steel, in coils, containing by weight >= 0,6% carbon, not plated or coated, whether or not polished (excl. hot-rolled bars and rods)"]
[954,"Wire of iron or non-alloy steel, in coils, plated or coated with zinc (excl. bars and rods)","Wire of iron or non-alloy steel, in coils, plated or coated with zinc (excl. bars and rods)"]
[955,"Wire of iron or non-alloy steel, in coils, containing by weight < 0,25% carbon, plated or coated with zinc, with a maximum cross-sectional dimension of < 0,8 mm","Wire of iron or non-alloy steel, in coils, containing by weight < 0,25% carbon, plated or coated with zinc, with a maximum cross-sectional dimension of < 0,8 mm"]
[956,"Wire of iron or non-alloy steel, in coils, containing by weight < 0,25% carbon, plated or coated with zinc, with a maximum cross-sectional dimension of < 0,8 mm (excl. bars and rods)","Wire of iron or non-alloy steel, in coils, containing by weight < 0,25% carbon, plated or coated with zinc, with a maximum cross-sectional dimension of < 0,8 mm (excl. bars and rods)"]
[957,"Wire of iron or non-alloy steel, in coils, containing by weight >= 0,25% but < 0,6% carbon, plated or coated with zinc (excl. bars and rods)","Wire of iron or non-alloy steel, in coils, containing by weight >= 0,25% but < 0,6% carbon, plated or coated with zinc (excl. bars and rods)"]
[958,"Wire of iron or non-alloy steel, in coils, containing by weight >= 0,6% carbon, plated or coated with zinc (excl. bars and rods)","Wire of iron or non-alloy steel, in coils, containing by weight >= 0,6% carbon, plated or coated with zinc (excl. bars and rods)"]
[959,"Wire of iron or non-alloy steel, in coils, plated or coated with base metals (excl. plated or coated with zinc, and bars and rods)","Wire of iron or non-alloy steel, in coils, plated or coated with base metals (excl. plated or coated with zinc, and bars and rods)"]
[960,"Wire of iron or non-alloy steel, in coils, containing by weight < 0,25% carbon, copper-coated (excl. bars and rods)","Wire of iron or non-alloy steel, in coils, containing by weight < 0,25% carbon, copper-coated (excl. bars and rods)"]
[961,"Wire of iron or non-alloy steel, in coils, containing by weight < 0,25% carbon, plated or coated with base metals (excl. products plated or coated with zinc or copper and bars and rods)","Wire of iron or non-alloy steel, in coils, containing by weight < 0,25% carbon, plated or coated with base metals (excl. products plated or coated with zinc or copper and bars and rods)"]
[962,"Wire of iron or non-alloy steel, in coils, containing by weight >= 0,25% but < 0,6% carbon, plated or coated with base metals (excl. products plated or coated with zinc, and bars and rods)","Wire of iron or non-alloy steel, in coils, containing by weight >= 0,25% but < 0,6% carbon, plated or coated with base metals (excl. products plated or coated with zinc, and bars and rods)"]
[963,"Wire of iron or non-alloy steel, in coils, containing by weight >= 0,6% carbon, plated or coated with base metals (excl. products plated or coated with zinc, and bars and rods)","Wire of iron or non-alloy steel, in coils, containing by weight >= 0,6% carbon, plated or coated with base metals (excl. products plated or coated with zinc, and bars and rods)"]
[964,"Wire of iron or non-alloy steel, in coils, plated or coated (excl. plated or coated with base metals, and bars and rods)","Wire of iron or non-alloy steel, in coils, plated or coated (excl. plated or coated with base metals, and bars and rods)"]
[965,"Wire of iron or non-alloy steel, in coils, containing by weight < 0,25% carbon, plated or coated (excl. products plated or coated with base metals and bars and rods)","Wire of iron or non-alloy steel, in coils, containing by weight < 0,25% carbon, plated or coated (excl. products plated or coated with base metals and bars and rods)"]
[966,"Wire of iron or non-alloy steel, in coils, containing by weight >= 0,25% but < 0,6% carbon, plated or coated (excl. products plated or coated with with base metals, and bars and rods)","Wire of iron or non-alloy steel, in coils, containing by weight >= 0,25% but < 0,6% carbon, plated or coated (excl. products plated or coated with with base metals, and bars and rods)"]
[967,{"$f":"IFERROR(INDEX(C971:M971,$A$4-2),$C971)","v":"Wire of iron or non-alloy steel, in coils, containing by weight >= 0,6% carbon, plated or coated (excl. products plated or coated with base metals, and bars and rods)"},"Wire of iron or non-alloy steel, in coils, containing by weight >= 0,6% carbon, plated or coated (excl. products plated or coated with base metals, and bars and rods)"]
[968,"Stainless steel in ingots or other primary forms (excl. remelting scrap ingots and products obtained by continuous casting); semi-finished products of stainless steel","Stainless steel in ingots or other primary forms (excl. remelting scrap ingots and products obtained by continuous casting); semi-finished products of stainless steel"]
[969,"Steel, stainless, in ingots and other primary forms (excl. waste and scrap in ingot form, and products obtained by continuous casting)","Steel, stainless, in ingots and other primary forms (excl. waste and scrap in ingot form, and products obtained by continuous casting)"]
[970,"Semi-finished products of stainless steel, of rectangular \"other than square\" cross-section","Semi-finished products of stainless steel, of rectangular \"other than square\" cross-section"]
[971,"Semi-finished products of stainless steel, of rectangular \"other than square\" cross-section, containing by weight >= 2,5% nickel","Semi-finished products of stainless steel, of rectangular \"other than square\" cross-section, containing by weight >= 2,5% nickel"]
[972,"Semi-finished products of stainless steel, of rectangular \"other than square\" cross-section, containing by weight < 2,5 nickel","Semi-finished products of stainless steel, of rectangular \"other than square\" cross-section, containing by weight < 2,5 nickel"]
[973,"Semi-finished products of stainless steel (excl. of rectangular [other than square] cross-section)","Semi-finished products of stainless steel (excl. of rectangular [other than square] cross-section)"]
[974,"Semi-finished products of stainless steel, of square cross-section, rolled or obtained by continuous casting","Semi-finished products of stainless steel, of square cross-section, rolled or obtained by continuous casting"]
[975,"Semi-finished products of stainless steel, of square cross-section, forged","Semi-finished products of stainless steel, of square cross-section, forged"]
[976,"Semi-finished products of stainless steel, of circular cross-section or of cross-section other than square or rectangular, rolled or obtained by continuous casting","Semi-finished products of stainless steel, of circular cross-section or of cross-section other than square or rectangular, rolled or obtained by continuous casting"]
[977,"Semi-finished products of stainless steel, forged (excl. products of square or rectangular cross-section)","Semi-finished products of stainless steel, forged (excl. products of square or rectangular cross-section)"]
[978,"Flat-rolled products of stainless steel, of a width of >= 600 mm, hot-rolled or cold-rolled \"cold-reduced\"","Flat-rolled products of stainless steel, of a width of >= 600 mm, hot-rolled or cold-rolled \"cold-reduced\""]
[979,"Flat-rolled products of stainless steel, of a width of >= 600 mm, not further worked than hot-rolled, in coils, of a thickness of > 10 mm","Flat-rolled products of stainless steel, of a width of >= 600 mm, not further worked than hot-rolled, in coils, of a thickness of > 10 mm"]
[980,"Flat-rolled products of stainless steel, of a width of>= 600 mm, not further worked than hot-rolled, in coils, of a thickness of >= 4,7 mm and <= 10 mm","Flat-rolled products of stainless steel, of a width of>= 600 mm, not further worked than hot-rolled, in coils, of a thickness of >= 4,7 mm and <= 10 mm"]
[981,"Flat-rolled products of stainless steel, of a width of >= 600 mm, not further worked than hot-rolled, in coils, of a thickness of >= 4,75 mm but <= 10 mm, containing by weight >= 2,5 nickel","Flat-rolled products of stainless steel, of a width of >= 600 mm, not further worked than hot-rolled, in coils, of a thickness of >= 4,75 mm but <= 10 mm, containing by weight >= 2,5 nickel"]
[982,"Flat-rolled products of stainless steel, of a width of >= 600 mm, not further worked than hot-rolled, in coils, of a thickness of >= 4,75 mm but <= 10 mm, containing by weight < 2,5 nickel","Flat-rolled products of stainless steel, of a width of >= 600 mm, not further worked than hot-rolled, in coils, of a thickness of >= 4,75 mm but <= 10 mm, containing by weight < 2,5 nickel"]
[983,"Flat-rolled products of stainless steel, of a width of >= 600 mm, not further worked than hot-rolled, in coils, of a thickness of >= 3 mm and < 4,75 mm","Flat-rolled products of stainless steel, of a width of >= 600 mm, not further worked than hot-rolled, in coils, of a thickness of >= 3 mm and < 4,75 mm"]
[984,"Flat-rolled products of stainless steel, of a width of >= 600 mm, not further worked than hot-rolled, in coils, of a thickness of >= 3 mm but <= 4,75 mm, containing by weight >= 2,5 nickel","Flat-rolled products of stainless steel, of a width of >= 600 mm, not further worked than hot-rolled, in coils, of a thickness of >= 3 mm but <= 4,75 mm, containing by weight >= 2,5 nickel"]
[985,"Flat-rolled products of stainless steel, of a width of >= 600 mm, not further worked than hot-rolled, in coils, of a thickness of >= 3 mm but <= 4,75 mm, containing by weight < 2,5 nickel","Flat-rolled products of stainless steel, of a width of >= 600 mm, not further worked than hot-rolled, in coils, of a thickness of >= 3 mm but <= 4,75 mm, containing by weight < 2,5 nickel"]
[986,"Flat-rolled products of stainless steel, of a width of >= 600 mm, not further worked than hot-rolled, in coils, of a thickness of < 3 mm","Flat-rolled products of stainless steel, of a width of >= 600 mm, not further worked than hot-rolled, in coils, of a thickness of < 3 mm"]
[987,"Flat-rolled products of stainless steel, of a width of >= 600 mm, not further worked than hot-rolled, in coils, of a thickness of < 3 mm, containing by weight >= 2,5 nickel","Flat-rolled products of stainless steel, of a width of >= 600 mm, not further worked than hot-rolled, in coils, of a thickness of < 3 mm, containing by weight >= 2,5 nickel"]
[988,"Flat-rolled products of stainless steel, of a width of >= 600 mm, not further worked than hot-rolled, in coils, of a thickness of < 3 mm, containing by weight < 2,5 nickel","Flat-rolled products of stainless steel, of a width of >= 600 mm, not further worked than hot-rolled, in coils, of a thickness of < 3 mm, containing by weight < 2,5 nickel"]
[989,"Flat-rolled products of stainless steel, of a width of >= 600 mm, not further worked than hot-rolled, not in coils, of a thickness of > 10 mm","Flat-rolled products of stainless steel, of a width of >= 600 mm, not further worked than hot-rolled, not in coils, of a thickness of > 10 mm"]
[990,"Flat-rolled products of stainless steel, of a width of >= 600 mm, not further worked than hot-rolled, not in coils, of a thickness of > 10 mm, containing by weight >= 2,5 nickel","Flat-rolled products of stainless steel, of a width of >= 600 mm, not further worked than hot-rolled, not in coils, of a thickness of > 10 mm, containing by weight >= 2,5 nickel"]
[991,"Flat-rolled products of stainless steel, of a width of >= 600 mm, not further worked than hot-rolled, not in coils, of a thickness of > 10 mm, containing by weight < 2,5 nickel","Flat-rolled products of stainless steel, of a width of >= 600 mm, not further worked than hot-rolled, not in coils, of a thickness of > 10 mm, containing by weight < 2,5 nickel"]
[992,"Flat-rolled products of stainless steel, of a width of >= 600 mm, not further worked than hot-rolled, not in coils, of a thickness of >= 4,75 mm and <= 10 mm","Flat-rolled products of stainless steel, of a width of >= 600 mm, not further worked than hot-rolled, not in coils, of a thickness of >= 4,75 mm and <= 10 mm"]
[993,"Flat-rolled products of stainless steel, of a width of >= 600 mm, not further worked than hot-rolled, not in coils, of a thickness of >= 4,75 mm but <= 10 mm, containing by weight >= 2,5% nickel","Flat-rolled products of stainless steel, of a width of >= 600 mm, not further worked than hot-rolled, not in coils, of a thickness of >= 4,75 mm but <= 10 mm, containing by weight >= 2,5% nickel"]
[994,"Flat-rolled products of stainless steel, of a width of >= 600 mm, not further worked than hot-rolled, not in coils, of a thickness of >= 4,75 mm but <= 10 mm, containing by weight < 2,5% nickel","Flat-rolled products of stainless steel, of a width of >= 600 mm, not further worked than hot-rolled, not in coils, of a thickness of >= 4,75 mm but <= 10 mm, containing by weight < 2,5% nickel"]
[995,"Flat-rolled products of stainless steel, of a width of >= 600 mm, not further worked than hot-rolled, not in coils, of a thickness of >= 3 mm and < 4,75 mm","Flat-rolled products of stainless steel, of a width of >= 600 mm, not further worked than hot-rolled, not in coils, of a thickness of >= 3 mm and < 4,75 mm"]
[996,"Flat-rolled products of stainless steel, of a width of >= 600 mm, not further worked than hot-rolled, not in coils, of a thickness of < 3 mm","Flat-rolled products of stainless steel, of a width of >= 600 mm, not further worked than hot-rolled, not in coils, of a thickness of < 3 mm"]
[997,"Flat-rolled products of stainless steel, of a width of >= 600 mm, not further worked than cold-rolled \"cold-reduced\", of a thickness of >= 4,75 mm","Flat-rolled products of stainless steel, of a width of >= 600 mm, not further worked than cold-rolled \"cold-reduced\", of a thickness of >= 4,75 mm"]
[998,"Flat-rolled products of stainless steel, of a width of >= 600 mm, not further worked than cold-rolled \"cold-reduced\", of a thickness of >= 3 mm but < 4,75 mm","Flat-rolled products of stainless steel, of a width of >= 600 mm, not further worked than cold-rolled \"cold-reduced\", of a thickness of >= 3 mm but < 4,75 mm"]
[999,"Flat-rolled products of stainless steel, of a width of >= 600 mm, not further worked than cold-rolled \"cold-reduced\", of a thickness of >= 3 mm but <= 4,75 mm, containing by weight >= 2,5% nickel","Flat-rolled products of stainless steel, of a width of >= 600 mm, not further worked than cold-rolled \"cold-reduced\", of a thickness of >= 3 mm but <= 4,75 mm, containing by weight >= 2,5% nickel"]
[1000,"Flat-rolled products of stainless steel, of a width of >= 600 mm, not further worked than cold-rolled \"cold-reduced\", of a thickness of >= 3 mm but <= 4,75 mm, containing by weight < 2,5% nickel","Flat-rolled products of stainless steel, of a width of >= 600 mm, not further worked than cold-rolled \"cold-reduced\", of a thickness of >= 3 mm but <= 4,75 mm, containing by weight < 2,5% nickel"]
[1001,"Flat-rolled products of stainless steel, of a width of >= 600 mm, not further worked than cold-rolled \"cold-reduced\", of a thickness of > 1 mm but < 3 mm","Flat-rolled products of stainless steel, of a width of >= 600 mm, not further worked than cold-rolled \"cold-reduced\", of a thickness of > 1 mm but < 3 mm"]
[1002,"Flat-rolled products of stainless steel, of a width of >= 600 mm, not further worked than cold-rolled \"cold-reduced\", of a thickness of > 1 mm but < 3 mm, containing by weight >= 2,5% nickel","Flat-rolled products of stainless steel, of a width of >= 600 mm, not further worked than cold-rolled \"cold-reduced\", of a thickness of > 1 mm but < 3 mm, containing by weight >= 2,5% nickel"]
[1003,"Flat-rolled products of stainless steel, of a width of >= 600 mm, not further worked than cold-rolled \"cold-reduced\", of a thickness of > 1 mm but < 3 mm, containing by weight < 2,5% nickel","Flat-rolled products of stainless steel, of a width of >= 600 mm, not further worked than cold-rolled \"cold-reduced\", of a thickness of > 1 mm but < 3 mm, containing by weight < 2,5% nickel"]
[1004,"Flat-rolled products of stainless steel, of a width of >= 600 mm, not further worked than cold-rolled \"cold-reduced\", of a thickness of >= 0,5 mm but <= 1 mm","Flat-rolled products of stainless steel, of a width of >= 600 mm, not further worked than cold-rolled \"cold-reduced\", of a thickness of >= 0,5 mm but <= 1 mm"]
[1005,"Flat-rolled products of stainless steel, of a width of >= 600 mm, not further worked than cold-rolled \"cold-reduced\", of a thickness of >= 0,5 mm but <= 1 mm, containing by weight >= 2,5% nickel","Flat-rolled products of stainless steel, of a width of >= 600 mm, not further worked than cold-rolled \"cold-reduced\", of a thickness of >= 0,5 mm but <= 1 mm, containing by weight >= 2,5% nickel"]
[1006,"Flat-rolled products of stainless steel, of a width of >= 600 mm, not further worked than cold-rolled \"cold-reduced\", of a thickness of >= 0,5 mm but <= 1 mm, containing by weight < 2,5% nickel","Flat-rolled products of stainless steel, of a width of >= 600 mm, not further worked than cold-rolled \"cold-reduced\", of a thickness of >= 0,5 mm but <= 1 mm, containing by weight < 2,5% nickel"]
[1007,"Flat-rolled products of stainless steel, of a width of >= 600 mm, not further worked than cold-rolled \"cold-reduced\", of a thickness of < 0,5 mm","Flat-rolled products of stainless steel, of a width of >= 600 mm, not further worked than cold-rolled \"cold-reduced\", of a thickness of < 0,5 mm"]
[1008,"Flat-rolled products of stainless steel, of a width of >= 600 mm, not further worked than cold-rolled \"cold-reduced\", of a thickness of < 0,5 mm, containing by weight >= 2,5% nickel","Flat-rolled products of stainless steel, of a width of >= 600 mm, not further worked than cold-rolled \"cold-reduced\", of a thickness of < 0,5 mm, containing by weight >= 2,5% nickel"]
[1009,"Flat-rolled products of stainless steel, of a width of >= 600 mm, not further worked than cold-rolled \"cold-reduced\", of a thickness of < 0,5 mm, containing by weight < 2,5% nickel","Flat-rolled products of stainless steel, of a width of >= 600 mm, not further worked than cold-rolled \"cold-reduced\", of a thickness of < 0,5 mm, containing by weight < 2,5% nickel"]
[1010,"Flat-rolled products of stainless steel, of a width of >= 600 mm, hot-rolled or cold-rolled \"cold-reduced\" and further worked","Flat-rolled products of stainless steel, of a width of >= 600 mm, hot-rolled or cold-rolled \"cold-reduced\" and further worked"]
[1011,"Flat-rolled products of stainless steel, of a width of >= 600 mm, hot-rolled or cold-rolled \"cold-reduced\" and further worked, perforated","Flat-rolled products of stainless steel, of a width of >= 600 mm, hot-rolled or cold-rolled \"cold-reduced\" and further worked, perforated"]
[1012,"Flat-rolled products of stainless steel, of a width of >= 600 mm, hot-rolled or cold-rolled \"cold-reduced\" and further worked, non-perforated","Flat-rolled products of stainless steel, of a width of >= 600 mm, hot-rolled or cold-rolled \"cold-reduced\" and further worked, non-perforated"]
[1013,"Flat-rolled products of stainless steel, of a width of < 600 mm, hot-rolled or cold-rolled \"cold-reduced\"","Flat-rolled products of stainless steel, of a width of < 600 mm, hot-rolled or cold-rolled \"cold-reduced\""]
[1014,"Flat-rolled products of stainless steel, of a width of < 600 mm, not further worked than hot-rolled, of a thickness of >= 4,75 mm","Flat-rolled products of stainless steel, of a width of < 600 mm, not further worked than hot-rolled, of a thickness of >= 4,75 mm"]
[1015,"Flat-rolled products of stainless steel, of a width of < 600 mm, not further worked than hot-rolled, of a thickness of < 4,75 mm","Flat-rolled products of stainless steel, of a width of < 600 mm, not further worked than hot-rolled, of a thickness of < 4,75 mm"]
[1016,"Flat-rolled products of stainless steel, of a width of < 600 mm, not further worked than cold-rolled \"cold-reduced\"","Flat-rolled products of stainless steel, of a width of < 600 mm, not further worked than cold-rolled \"cold-reduced\""]
[1017,"Flat-rolled products of stainless steel, of a width of < 600 mm, not further worked than cold-rolled \"cold-reduced\", of a thickness of >= 3 mm and containing by weight >= 2,5% nickel","Flat-rolled products of stainless steel, of a width of < 600 mm, not further worked than cold-rolled \"cold-reduced\", of a thickness of >= 3 mm and containing by weight >= 2,5% nickel"]
[1018,"Flat-rolled products of stainless steel, of a width of < 600 mm, not further worked than cold-rolled \"cold-reduced\", of a thickness of >= 3 mm and containing by weight < 2,5% nickel","Flat-rolled products of stainless steel, of a width of < 600 mm, not further worked than cold-rolled \"cold-reduced\", of a thickness of >= 3 mm and containing by weight < 2,5% nickel"]
[1019,"Flat-rolled products of stainless steel, of a width of < 600 mm, not further worked than cold-rolled \"cold-reduced\", of a thickness of > 0,35 mm but < 3 mm, and containing by weight >= 2,5% nickel","Flat-rolled products of stainless steel, of a width of < 600 mm, not further worked than cold-rolled \"cold-reduced\", of a thickness of > 0,35 mm but < 3 mm, and containing by weight >= 2,5% nickel"]
[1020,"Flat-rolled products of stainless steel, of a width of < 600 mm, not further worked than cold-rolled \"cold-reduced\", of a thickness of > 0,35 mm but < 3 mm, and containing by weight < 2,5% nickel","Flat-rolled products of stainless steel, of a width of < 600 mm, not further worked than cold-rolled \"cold-reduced\", of a thickness of > 0,35 mm but < 3 mm, and containing by weight < 2,5% nickel"]
[1021,"Flat-rolled products of stainless steel, of a width of < 600 mm, not further worked than cold-rolled \"cold-reduced\", of a thickness of <= 0,35 mm and containing by weight >= 2,5% nickel","Flat-rolled products of stainless steel, of a width of < 600 mm, not further worked than cold-rolled \"cold-reduced\", of a thickness of <= 0,35 mm and containing by weight >= 2,5% nickel"]
[1022,"Flat-rolled products of stainless steel, of a width of < 600 mm, not further worked than cold-rolled \"cold-reduced\", of a thickness of <= 0,35 mm and containing by weight < 2,5% nickel","Flat-rolled products of stainless steel, of a width of < 600 mm, not further worked than cold-rolled \"cold-reduced\", of a thickness of <= 0,35 mm and containing by weight < 2,5% nickel"]
[1023,"Flat-rolled products of stainless steel, of a width of < 600 mm, hot-rolled or cold-rolled \"cold-reduced\" and further worked","Flat-rolled products of stainless steel, of a width of < 600 mm, hot-rolled or cold-rolled \"cold-reduced\" and further worked"]
[1024,"Flat-rolled products of stainless steel, of a width of < 600 mm, hot-rolled or cold-rolled \"cold-reduced\" and further worked, perforated","Flat-rolled products of stainless steel, of a width of < 600 mm, hot-rolled or cold-rolled \"cold-reduced\" and further worked, perforated"]
[1025,"Flat-rolled products of stainless steel, of a width of < 600 mm, hot-rolled or cold-rolled \"cold-reduced\" and further worked, non-perforated","Flat-rolled products of stainless steel, of a width of < 600 mm, hot-rolled or cold-rolled \"cold-reduced\" and further worked, non-perforated"]
[1026,"Bars and rods of stainless steel, hot-rolled, in irregularly wound coils","Bars and rods of stainless steel, hot-rolled, in irregularly wound coils"]
[1027,"Bars and rods of stainless steel, hot-rolled, in irregularly wound coils, containing by weight >= 2,5% nickel","Bars and rods of stainless steel, hot-rolled, in irregularly wound coils, containing by weight >= 2,5% nickel"]
[1028,"Bars and rods of stainless steel, hot-rolled, in irregularly wound coils, containing by weight < 2,5% nickel","Bars and rods of stainless steel, hot-rolled, in irregularly wound coils, containing by weight < 2,5% nickel"]
[1029,"Other bars and rods of stainless steel; angles, shapes and sections of stainless steel, n.e.s.","Other bars and rods of stainless steel; angles, shapes and sections of stainless steel, n.e.s."]
[1030,"Bars and rods of stainless steel, only hot-rolled, only hot-drawn or only hot-extruded, of circular cross-section","Bars and rods of stainless steel, only hot-rolled, only hot-drawn or only hot-extruded, of circular cross-section"]
[1031,{"$f":"IFERROR(INDEX(C1035:M1035,$A$4-2),$C1035)","v":"Bars and rods of stainless steel, not further worked than hot-rolled, hot-drawn or extruded, of circular cross-section of a diameter of >= 800 mm, containing by weight >= 2,5% nickel"},"Bars and rods of stainless steel, not further worked than hot-rolled, hot-drawn or extruded, of circular cross-section of a diameter of >= 800 mm, containing by weight >= 2,5% nickel"]
[1032,"Bars and rods of stainless steel, not further worked than hot-rolled, hot-drawn or extruded, of circular cross-section of a diameter of >= 800 mm, containing by weight < 2,5% nickel","Bars and rods of stainless steel, not further worked than hot-rolled, hot-drawn or extruded, of circular cross-section of a diameter of >= 800 mm, containing by weight < 2,5% nickel"]
[1033,"Bars and rods of stainless steel, not further worked than hot-rolled, hot-drawn or extruded, of circular cross-section measuring < 80 mm and containing by weight >= 2,5% nickel","Bars and rods of stainless steel, not further worked than hot-rolled, hot-drawn or extruded, of circular cross-section measuring < 80 mm and containing by weight >= 2,5% nickel"]
[1034,"Bars and rods of stainless steel, not further worked than hot-rolled, hot-drawn or extruded, of circular cross-section measuring < 80 mm and containing by weight < 2,5% nickel","Bars and rods of stainless steel, not further worked than hot-rolled, hot-drawn or extruded, of circular cross-section measuring < 80 mm and containing by weight < 2,5% nickel"]
[1035,"Bars and rods of stainless steel, only hot-rolled, only hot-drawn or only extruded (excl. of circular cross-section)","Bars and rods of stainless steel, only hot-rolled, only hot-drawn or only extruded (excl. of circular cross-section)"]
[1036,"Bars and rods of stainless steel, not further worked than hot-rolled, hot-drawn or extruded, containing by weight >= 2,5% nickel (excl. such products of circular cross-section)","Bars and rods of stainless steel, not further worked than hot-rolled, hot-drawn or extruded, containing by weight >= 2,5% nickel (excl. such products of circular cross-section)"]
[1037,"Bars and rods of stainless steel, not further worked than hot-rolled, hot-drawn or extruded, containing by weight < 2,5% nickel (excl. such products of circular cross-section)","Bars and rods of stainless steel, not further worked than hot-rolled, hot-drawn or extruded, containing by weight < 2,5% nickel (excl. such products of circular cross-section)"]
[1038,"Other bars and rods of stainless steel, not further worked than cold-formed or cold-finished","Other bars and rods of stainless steel, not further worked than cold-formed or cold-finished"]
[1039,"Bars and rods of stainless steel, of circular cross-section of a diameter >= 80 mm, simply cold-formed or cold-finished, containing by weight >= 2,5% nickel","Bars and rods of stainless steel, of circular cross-section of a diameter >= 80 mm, simply cold-formed or cold-finished, containing by weight >= 2,5% nickel"]
[1040,"Bars and rods of stainless steel, of circular cross-section of a diameter >= 80 mm, simply cold-formed or cold-finished, containing by weight < 2,5% nickel","Bars and rods of stainless steel, of circular cross-section of a diameter >= 80 mm, simply cold-formed or cold-finished, containing by weight < 2,5% nickel"]
[1041,"Bars and rods of stainless steel, not further worked than cold-formed or cold-finished, of circular cross-section measuring >= 25 mm but < 80 mm and containing by weight >= 2,5% nickel","Bars and rods of stainless steel, not further worked than cold-formed or cold-finished, of circular cross-section measuring >= 25 mm but < 80 mm and containing by weight >= 2,5% nickel"]
[1042,"Bars and rods of stainless steel, not further worked than cold-formed or cold-finished, of circular cross-section measuring >= 25 mm but < 80 mm and containing by weight < 2,5% nickel","Bars and rods of stainless steel, not further worked than cold-formed or cold-finished, of circular cross-section measuring >= 25 mm but < 80 mm and containing by weight < 2,5% nickel"]
[1043,"Bars and rods of stainless steel, not further worked than cold-formed or cold-finished, of circular cross-section measuring < 25 mm and containing by weight >= 2,5% nickel","Bars and rods of stainless steel, not further worked than cold-formed or cold-finished, of circular cross-section measuring < 25 mm and containing by weight >= 2,5% nickel"]
[1044,"Bars and rods of stainless steel, not further worked than cold-formed or cold-finished, of circular cross-section measuring < 25 mm and containing by weight < 2,5% nickel","Bars and rods of stainless steel, not further worked than cold-formed or cold-finished, of circular cross-section measuring < 25 mm and containing by weight < 2,5% nickel"]
[1045,"Bars and rods of stainless steel, not further worked than cold-formed or cold-finished, containing by weight >= 2,5% nickel (excl. such products of circular cross-section)","Bars and rods of stainless steel, not further worked than cold-formed or cold-finished, containing by weight >= 2,5% nickel (excl. such products of circular cross-section)"]
[1046,"Bars and rods of stainless steel, not further worked than cold-formed or cold-finished, containing by weight < 2,5% nickel (excl. such products of circular cross-section)","Bars and rods of stainless steel, not further worked than cold-formed or cold-finished, containing by weight < 2,5% nickel (excl. such products of circular cross-section)"]
[1047,"Other bars and rods of stainless steel, cold-formed or cold-finished and further worked, or not further worked than forged, or forged, or hot-formed by other means and further worked, n.e.s.","Other bars and rods of stainless steel, cold-formed or cold-finished and further worked, or not further worked than forged, or forged, or hot-formed by other means and further worked, n.e.s."]
[1048,"Other bars and rods of stainless steel, containing by weight >= 2,5% of nickel, forged","Other bars and rods of stainless steel, containing by weight >= 2,5% of nickel, forged"]
[1049,"Other bars and rods of stainless steel, containing by weight < 2,5% of nickel, forged","Other bars and rods of stainless steel, containing by weight < 2,5% of nickel, forged"]
[1050,"Bars and rods of stainless steel, cold-formed or cold-finished and further worked, or hot-formed and further worked, n.e.s. (excl. forged products)","Bars and rods of stainless steel, cold-formed or cold-finished and further worked, or hot-formed and further worked, n.e.s. (excl. forged products)"]
[1051,"Angles, shapes and sections of stainless steel, n.e.s.","Angles, shapes and sections of stainless steel, n.e.s."]
[1052,"Angles, shapes and sections of stainless steel, only hot-rolled, only hot-drawn or only extruded","Angles, shapes and sections of stainless steel, only hot-rolled, only hot-drawn or only extruded"]
[1053,"Angles, shapes and sections of stainless steel, not further worked than cold-formed or cold-finished","Angles, shapes and sections of stainless steel, not further worked than cold-formed or cold-finished"]
[1054,"Angles, shapes and sections of stainless steel, cold-formed or cold-finished and further worked, or not further worked than forged, or forged, or hot-formed by other means and further worked, n.e.s.","Angles, shapes and sections of stainless steel, cold-formed or cold-finished and further worked, or not further worked than forged, or forged, or hot-formed by other means and further worked, n.e.s."]
[1055,"Wire of stainless steel, in coils (excl. bars and rods)","Wire of stainless steel, in coils (excl. bars and rods)"]
[1056,"Wire of stainless steel, in coils, containing by weight 28% to 31% nickel and 20% to 22% chromium (excl. bars and rods)","Wire of stainless steel, in coils, containing by weight 28% to 31% nickel and 20% to 22% chromium (excl. bars and rods)"]
[1057,"Wire of stainless steel, in coils, containing by weight >= 2,5% nickel (excl. such products containing 28% to 31% nickel and 20% to 22% chromium, and bars and rods)","Wire of stainless steel, in coils, containing by weight >= 2,5% nickel (excl. such products containing 28% to 31% nickel and 20% to 22% chromium, and bars and rods)"]
[1058,"Wire of stainless steel, in coils, containing by weight < 2,5% nickel, 13% to 25% chromium and 3,5% to 6% aluminium (excl. bars and rods)","Wire of stainless steel, in coils, containing by weight < 2,5% nickel, 13% to 25% chromium and 3,5% to 6% aluminium (excl. bars and rods)"]
[1059,"Wire of stainless steel, in coils, containing by weight < 2,5% nickel (excl. such products containing 13% to 25% chromium and 3,5% to 6% aluminium, and bars and rods)","Wire of stainless steel, in coils, containing by weight < 2,5% nickel (excl. such products containing 13% to 25% chromium and 3,5% to 6% aluminium, and bars and rods)"]
[1060,"Steel, alloy, other than stainless, in ingots or other primary forms, semi-finished products of alloy steel other than stainless (excl. waste and scrap in ingot form, and products obtained by continuous casting)","Steel, alloy, other than stainless, in ingots or other primary forms, semi-finished products of alloy steel other than stainless (excl. waste and scrap in ingot form, and products obtained by continuous casting)"]
[1061,"Steel, alloy, other than stainless, in ingots or other primary forms (excl. waste and scrap in ingot form, and products obtained by continuous casting)","Steel, alloy, other than stainless, in ingots or other primary forms (excl. waste and scrap in ingot form, and products obtained by continuous casting)"]
[1062,"Ingots and other primary forms, of tool steel","Ingots and other primary forms, of tool steel"]
[1063,"Steel, alloy, other than stainless, in ingots or other primary forms (excl. of tool steel, waste and scrap in ingot form and products obtained by continuous casting)","Steel, alloy, other than stainless, in ingots or other primary forms (excl. of tool steel, waste and scrap in ingot form and products obtained by continuous casting)"]
[1064,"Semi-finished products of alloy steel other than stainless","Semi-finished products of alloy steel other than stainless"]
[1065,"Semi-finished products of tool steel","Semi-finished products of tool steel"]
[1066,"Semi-finished products of high-speed steel, of square or rectangular cross-section, hot-rolled or obtained by continuous casting the width measuring < twice the thickness","Semi-finished products of high-speed steel, of square or rectangular cross-section, hot-rolled or obtained by continuous casting the width measuring < twice the thickness"]
[1067,"Semi-finished products of steel containing by weight <= 0,7% of carbon, 0,5% to 1,2% of manganese, 0,6% to 2,3% of silicon, or of steel containing by weight >= 0,0008% of boron with any other element < the minimum content referred to in Note 1 f to chapter 72, of square or rectangular cross-section, hot rolled or obtained by continuous casting, the width measuring < twice the thickness","Semi-finished products of steel containing by weight <= 0,7% of carbon, 0,5% to 1,2% of manganese, 0,6% to 2,3% of silicon, or of steel containing by weight >= 0,0008% of boron with any other element < the minimum content referred to in Note 1 f to chapter 72, of square or rectangular cross-section, hot rolled or obtained by continuous casting, the width measuring < twice the thickness"]
[1068,"Semi-finished products of alloy steel other than stainless steel, of square or rectangular cross-section, hot-rolled or obtained by continuous casting, the width measuring < twice the thickness (excl. of tool steel, high-speed steel and articles of subheading 7224.90.05)","Semi-finished products of alloy steel other than stainless steel, of square or rectangular cross-section, hot-rolled or obtained by continuous casting, the width measuring < twice the thickness (excl. of tool steel, high-speed steel and articles of subheading 7224.90.05)"]
[1069,"Semi-finished products of alloy steel other than stainless steel, of square or rectangular cross-section, hot-rolled or obtained by continuous casting, the width measuring >= twice the thickness (excl. of tool steel)","Semi-finished products of alloy steel other than stainless steel, of square or rectangular cross-section, hot-rolled or obtained by continuous casting, the width measuring >= twice the thickness (excl. of tool steel)"]
[1070,"Semi-finished products of alloy steel other than stainless steel, of square or rectangular cross-section, forged (excl. of tool steel)","Semi-finished products of alloy steel other than stainless steel, of square or rectangular cross-section, forged (excl. of tool steel)"]
[1071,"Semi-finished products of steel containing by weight 0,9% to 1,15% carbon, 0,5% to 2% of chromium and, if present, <= 0,5% of molybdenum, cut into shapes other than square or rectangular, hot-rolled or obtained by continuous casting","Semi-finished products of steel containing by weight 0,9% to 1,15% carbon, 0,5% to 2% of chromium and, if present, <= 0,5% of molybdenum, cut into shapes other than square or rectangular, hot-rolled or obtained by continuous casting"]
[1072,"Semi-finished products of alloy steel, other than stainless steel, cut into shapes other than square or rectangular, hot-rolled or obtained by continuous casting (excl. of tool steel and products containing by weight 0,9% to 1,15% of carbon, 0,5% to 2% of chromium and, if present, <= 0,5% of molybdenum)","Semi-finished products of alloy steel, other than stainless steel, cut into shapes other than square or rectangular, hot-rolled or obtained by continuous casting (excl. of tool steel and products containing by weight 0,9% to 1,15% of carbon, 0,5% to 2% of chromium and, if present, <= 0,5% of molybdenum)"]
[1073,"Semi-finished products of alloy steel, other than stainless steel, forged (excl. of tool steel and products of square or rectangular, circular or polygamol cross-section)","Semi-finished products of alloy steel, other than stainless steel, forged (excl. of tool steel and products of square or rectangular, circular or polygamol cross-section)"]
[1074,"Flat-rolled products of alloy steel other than stainless, of a width of >= 600 mm, hot-rolled or cold-rolled \"cold-reduced\"","Flat-rolled products of alloy steel other than stainless, of a width of >= 600 mm, hot-rolled or cold-rolled \"cold-reduced\""]
[1075,"Flat-rolled products of silicon-electrical steel, of a width of >= 600 mm, grain-oriented","Flat-rolled products of silicon-electrical steel, of a width of >= 600 mm, grain-oriented"]
[1076,"Flat-rolled products of silicon-electrical steel, of a width of >= 600 mm, non-grain-oriented","Flat-rolled products of silicon-electrical steel, of a width of >= 600 mm, non-grain-oriented"]
[1077,"Flat-rolled products of silicon-electrical steel, of a width of >= 600 mm, hot-rolled","Flat-rolled products of silicon-electrical steel, of a width of >= 600 mm, hot-rolled"]
[1078,"Flat-rolled products of silicon-electrical steel, of a width of >= 600 mm, cold-rolled \"cold-reduced\", non-grain-oriented","Flat-rolled products of silicon-electrical steel, of a width of >= 600 mm, cold-rolled \"cold-reduced\", non-grain-oriented"]
[1079,"Flat-rolled products of alloy steel other than stainless, of a width of >= 600 mm, not further worked than hot-rolled, in coils (excl. products of silicon-electrical steel)","Flat-rolled products of alloy steel other than stainless, of a width of >= 600 mm, not further worked than hot-rolled, in coils (excl. products of silicon-electrical steel)"]
[1080,"Flat-rolled products of tool steel, of a width of >= 600 mm, not further worked than hot-rolled, in coils","Flat-rolled products of tool steel, of a width of >= 600 mm, not further worked than hot-rolled, in coils"]
[1081,"Flat-rolled products of high-speed steel, of a width of >= 600 mm, not further worked than hot-rolled, in coils","Flat-rolled products of high-speed steel, of a width of >= 600 mm, not further worked than hot-rolled, in coils"]
[1082,"Flat-rolled products of alloy steel other than stainless, of a width of >= 600 mm, not further worked than hot-rolled, in coils (excl. products of tool steel, high-speed steel or silicon-electrical steel)","Flat-rolled products of alloy steel other than stainless, of a width of >= 600 mm, not further worked than hot-rolled, in coils (excl. products of tool steel, high-speed steel or silicon-electrical steel)"]
[1083,"Flat-rolled products of alloy steel other than stainless, of a width of >= 600 mm, not further worked than hot-rolled, not in coils (excl. products of silicon-electrical steel)","Flat-rolled products of alloy steel other than stainless, of a width of >= 600 mm, not further worked than hot-rolled, not in coils (excl. products of silicon-electrical steel)"]
[1084,"Flat-rolled products of tool steel, of a width of >= 600 mm, not further worked than hot-rolled, not in coils","Flat-rolled products of tool steel, of a width of >= 600 mm, not further worked than hot-rolled, not in coils"]
[1085,"Flat-rolled products of high-speed steel, of a width of >= 600 mm, not further worked than hot-rolled, not in coils","Flat-rolled products of high-speed steel, of a width of >= 600 mm, not further worked than hot-rolled, not in coils"]
[1086,"Flat-rolled products of alloy steel other than stainless, of a width of >= 600 mm, not further worked than hot-rolled, not in coils, of a thickness of > 10 mm (excl. products of tool steel, high-speed steel or silicon-electrical steel)","Flat-rolled products of alloy steel other than stainless, of a width of >= 600 mm, not further worked than hot-rolled, not in coils, of a thickness of > 10 mm (excl. products of tool steel, high-speed steel or silicon-electrical steel)"]
[1087,"Flat-rolled products of alloy steel other than stainless, of a width of >= 600 mm, not further worked than hot-rolled, not in coils, of a thickness of >= 4,75 mm but <= 10 mm (excl. products of tool steel, high-speed steel or silicon-electrical steel)","Flat-rolled products of alloy steel other than stainless, of a width of >= 600 mm, not further worked than hot-rolled, not in coils, of a thickness of >= 4,75 mm but <= 10 mm (excl. products of tool steel, high-speed steel or silicon-electrical steel)"]
[1088,"Flat-rolled products of alloy steel other than stainless, of a width of >= 600 mm, not further worked than hot-rolled, not in coils, of a thickness of < 4,75 mm (excl. products of tool steel, high-speed steel or silicon-electrical steel)","Flat-rolled products of alloy steel other than stainless, of a width of >= 600 mm, not further worked than hot-rolled, not in coils, of a thickness of < 4,75 mm (excl. products of tool steel, high-speed steel or silicon-electrical steel)"]
[1089,"Flat-rolled products of alloy steel other than stainless, of a width of >= 600 mm, not further worked than cold-rolled \"cold-reduced\" (excl. products of silicon-electrical steel)","Flat-rolled products of alloy steel other than stainless, of a width of >= 600 mm, not further worked than cold-rolled \"cold-reduced\" (excl. products of silicon-electrical steel)"]
[1090,"Flat-rolled products of high-speed steel, of a width of >= 600 mm, not further worked than cold-rolled \"cold-reduced\"","Flat-rolled products of high-speed steel, of a width of >= 600 mm, not further worked than cold-rolled \"cold-reduced\""]
[1091,"Flat-rolled products of alloy steel other than stainless, of a width of >= 600 mm, not further worked than cold-rolled \"cold-reduced\" (excl. products of high-speed steel or silicon-electrical steel)","Flat-rolled products of alloy steel other than stainless, of a width of >= 600 mm, not further worked than cold-rolled \"cold-reduced\" (excl. products of high-speed steel or silicon-electrical steel)"]
[1092,"Flat-rolled products of alloy steel other than stainless, of a width of >= 600 mm, hot-rolled or cold-rolled \"cold-reduced\" and electrolytically plated or coated with zinc (excl. products of silicon-electrical steel)","Flat-rolled products of alloy steel other than stainless, of a width of >= 600 mm, hot-rolled or cold-rolled \"cold-reduced\" and electrolytically plated or coated with zinc (excl. products of silicon-electrical steel)"]
[1093,"Flat-rolled products of alloy steel other than stainless, of a width of >= 600 mm, hot-rolled or cold-rolled \"cold-reduced\" and plated or coated with zinc (excl. electrolytically plated or coated and products of silicon-electrical steel)","Flat-rolled products of alloy steel other than stainless, of a width of >= 600 mm, hot-rolled or cold-rolled \"cold-reduced\" and plated or coated with zinc (excl. electrolytically plated or coated and products of silicon-electrical steel)"]
[1094,"Flat-rolled products of alloy steel other than stainless, of a width of >= 600 mm, hot-rolled or cold-rolled \"cold-reduced\" and further worked (excl. plated or coated with zinc and products of silicon-electrical steel)","Flat-rolled products of alloy steel other than stainless, of a width of >= 600 mm, hot-rolled or cold-rolled \"cold-reduced\" and further worked (excl. plated or coated with zinc and products of silicon-electrical steel)"]
[1095,{"$f":"IFERROR(INDEX(C1099:M1099,$A$4-2),$C1099)","v":"Flat-rolled products of alloy steel other than stainless, of a width of < 600 mm, hot-rolled or cold-rolled \"cold-reduced\""},"Flat-rolled products of alloy steel other than stainless, of a width of < 600 mm, hot-rolled or cold-rolled \"cold-reduced\""]
[1096,"Flat-rolled products of silicon-electrical steel, of a width of < 600 mm, hot-rolled or cold-rolled \"cold-reduced\", grain-oriented","Flat-rolled products of silicon-electrical steel, of a width of < 600 mm, hot-rolled or cold-rolled \"cold-reduced\", grain-oriented"]
[1097,"Flat-rolled products of silicon-electrical steel, of a width of < 600 mm, hot-rolled or cold-rolled \"cold-reduced\", not grain-oriented","Flat-rolled products of silicon-electrical steel, of a width of < 600 mm, hot-rolled or cold-rolled \"cold-reduced\", not grain-oriented"]
[1098,"Flat-rolled products of silicon-electrical steel, of a width of < 600 mm, not further worked than hot-rolled","Flat-rolled products of silicon-electrical steel, of a width of < 600 mm, not further worked than hot-rolled"]
[1099,"Flat-rolled products of silicon-electrical steel, of a width of < 600 mm, cold-rolled \"cold-reduced\", whether or not further worked, or hot-rolled and further worked, non-grain-oriented","Flat-rolled products of silicon-electrical steel, of a width of < 600 mm, cold-rolled \"cold-reduced\", whether or not further worked, or hot-rolled and further worked, non-grain-oriented"]
[1100,"Flat-rolled products of high-speed steel, of a width of <= 600 mm, hot-rolled or cold-rolled \"cold-reduced\"","Flat-rolled products of high-speed steel, of a width of <= 600 mm, hot-rolled or cold-rolled \"cold-reduced\""]
[1101,"Flat-rolled products of alloy steel other than stainless, of a width of < 600 mm, not further worked than hot-rolled (excl. products of high-speed steel or silicon-electrical steel)","Flat-rolled products of alloy steel other than stainless, of a width of < 600 mm, not further worked than hot-rolled (excl. products of high-speed steel or silicon-electrical steel)"]
[1102,"Flat-rolled products of tool steel, of a width of < 600 mm, simply hot-rolled","Flat-rolled products of tool steel, of a width of < 600 mm, simply hot-rolled"]
[1103,"Flat-rolled products of alloy steel other than stainless steel, simply hot-rolled, of a thickness of >= 4,75 mm, of a width of < 600 mm (excl. of tool steel, silicon-electrical steel or high speed steel)","Flat-rolled products of alloy steel other than stainless steel, simply hot-rolled, of a thickness of >= 4,75 mm, of a width of < 600 mm (excl. of tool steel, silicon-electrical steel or high speed steel)"]
[1104,"Flat-rolled products of alloy steel other than stainless steel, simply hot-rolled, of a thickness of < 4,75 mm, of a width of < 600 mm (excl. of tool steel, silicon-electrical steel or high speed steel)","Flat-rolled products of alloy steel other than stainless steel, simply hot-rolled, of a thickness of < 4,75 mm, of a width of < 600 mm (excl. of tool steel, silicon-electrical steel or high speed steel)"]
[1105,"Flat-rolled products of alloy steel other than stainless, of a width of < 600 mm, not further worked than cold-rolled \"cold-reduced\" (excl. products of high-speed steel or silicon-electrical steel)","Flat-rolled products of alloy steel other than stainless, of a width of < 600 mm, not further worked than cold-rolled \"cold-reduced\" (excl. products of high-speed steel or silicon-electrical steel)"]
[1106,"Flat-rolled products of alloy steel other than stainless, of a width of < 600 mm, hot-rolled or cold-rolled \"cold-reduced\" and further worked (excl. products of high-speed steel or silicon-electrical steel)","Flat-rolled products of alloy steel other than stainless, of a width of < 600 mm, hot-rolled or cold-rolled \"cold-reduced\" and further worked (excl. products of high-speed steel or silicon-electrical steel)"]
[1107,"Flat-rolled products of alloy steel other than stainless, of a width of < 600 mm, hot-rolled or cold-rolled \"cold-reduced\" and electrolytically plated or coated with zinc (excl. products of high-speed steel or silicon-electrical steel)","Flat-rolled products of alloy steel other than stainless, of a width of < 600 mm, hot-rolled or cold-rolled \"cold-reduced\" and electrolytically plated or coated with zinc (excl. products of high-speed steel or silicon-electrical steel)"]
[1108,"Flat-rolled products of alloy steel other than stainless, of a width of < 600 mm, hot-rolled or cold-rolled \"cold-reduced\" and plated or coated with zinc (excl. electrolytically plated or coated, and products of high-speed steel or silicon-electrical steel)","Flat-rolled products of alloy steel other than stainless, of a width of < 600 mm, hot-rolled or cold-rolled \"cold-reduced\" and plated or coated with zinc (excl. electrolytically plated or coated, and products of high-speed steel or silicon-electrical steel)"]
[1109,"Flat-rolled products of alloy steel other than stainless, of a width of < 600 mm, hot-rolled or cold-rolled \"cold-reduced\" and further worked (excl. plated or coated with zinc, and products of high-speed steel or silicon-electrical steel)","Flat-rolled products of alloy steel other than stainless, of a width of < 600 mm, hot-rolled or cold-rolled \"cold-reduced\" and further worked (excl. plated or coated with zinc, and products of high-speed steel or silicon-electrical steel)"]
[1110,"Bars and rods of alloy steel other than stainless, hot-rolled, in irregularly wound coils","Bars and rods of alloy steel other than stainless, hot-rolled, in irregularly wound coils"]
[1111,"Bars and rods of high-speed steel, hot-rolled, in irregularly wound coils","Bars and rods of high-speed steel, hot-rolled, in irregularly wound coils"]
[1112,"Bars and rods of silico-manganese steel, hot-rolled, in irregularly wound coils","Bars and rods of silico-manganese steel, hot-rolled, in irregularly wound coils"]
[1113,"Bars and rods of alloy steel other than stainless, hot-rolled, in irregularly wound coils (excl. products of high-speed steel or silicon-electrical steel)","Bars and rods of alloy steel other than stainless, hot-rolled, in irregularly wound coils (excl. products of high-speed steel or silicon-electrical steel)"]
[1114,"Bars and rods, hot-rolled, of steel containing by weight >= 0,0008% of boron with any other element < the minimum content referred to in Note 1 f to this chapter, in irregularly wound coils","Bars and rods, hot-rolled, of steel containing by weight >= 0,0008% of boron with any other element < the minimum content referred to in Note 1 f to this chapter, in irregularly wound coils"]
[1115,"Bars and rods, hot-rolled, of steel containing by weight 0,9% to 1,15% carbon, 0,5% to 2% of chromium and, if present, <= 0,5 of molybdenum, in irregularly wound coils","Bars and rods, hot-rolled, of steel containing by weight 0,9% to 1,15% carbon, 0,5% to 2% of chromium and, if present, <= 0,5 of molybdenum, in irregularly wound coils"]
[1116,"Bars and rods, hot-rolled, in irregularly wound coils of alloy steel other than stainless (excl. of high-speed steel or silico-manganese steel and bars and rods of subheadings 7227.90.10 and 7227.90.50)","Bars and rods, hot-rolled, in irregularly wound coils of alloy steel other than stainless (excl. of high-speed steel or silico-manganese steel and bars and rods of subheadings 7227.90.10 and 7227.90.50)"]
[1117,"Other bars and rods of alloy steel other than stainless, angles, shapes and sections of alloy steel other than stainless, n.e.s.; hollow drill bars and rods, of alloy or non-alloy steel","Other bars and rods of alloy steel other than stainless, angles, shapes and sections of alloy steel other than stainless, n.e.s.; hollow drill bars and rods, of alloy or non-alloy steel"]
[1118,"Bars and rods of high-speed steel (excl. semi-finished products, flat-rolled products and hot-rolled bars and rods in irregularly wound coils)","Bars and rods of high-speed steel (excl. semi-finished products, flat-rolled products and hot-rolled bars and rods in irregularly wound coils)"]
[1119,"Bars and rods of high-speed steel, not further worked than hot-rolled, hot-drawn or extruded, and hot-rolled, hot-drawn or extruded, not further worked than clad (excl. semi-finished products, flat-rolled products and hot-rolled bars and rods in irregularly wound coils)","Bars and rods of high-speed steel, not further worked than hot-rolled, hot-drawn or extruded, and hot-rolled, hot-drawn or extruded, not further worked than clad (excl. semi-finished products, flat-rolled products and hot-rolled bars and rods in irregularly wound coils)"]
[1120,"Bars and rods of high-speed steel, forged (excl. semi-finished products, flat-rolled products and hot-rolled bars and rods in irregularly wound coils)","Bars and rods of high-speed steel, forged (excl. semi-finished products, flat-rolled products and hot-rolled bars and rods in irregularly wound coils)"]
[1121,"Bars and rods of high-speed steel, not further worked than cold-formed or cold-finished, whether or not further worked, or hot-formed and further worked (excl. forged products, semi-finished products, flat-rolled products and hot-rolled bars and rods in irregularly wound coils)","Bars and rods of high-speed steel, not further worked than cold-formed or cold-finished, whether or not further worked, or hot-formed and further worked (excl. forged products, semi-finished products, flat-rolled products and hot-rolled bars and rods in irregularly wound coils)"]
[1122,"Bars and rods of silico-manganese steel (excl. semi-finished products, flat-rolled products and hot-rolled bars and rods in irregularly wound coils)","Bars and rods of silico-manganese steel (excl. semi-finished products, flat-rolled products and hot-rolled bars and rods in irregularly wound coils)"]
[1123,"Bars and rods of silico-manganese steel, of rectangular \"other than square\" cross-section, hot-rolled on four faces (excl. semi-finished products, flat-rolled products and hot-rolled bars and rods in irregularly wound coils)","Bars and rods of silico-manganese steel, of rectangular \"other than square\" cross-section, hot-rolled on four faces (excl. semi-finished products, flat-rolled products and hot-rolled bars and rods in irregularly wound coils)"]
[1124,"Bars and rods of silico-manganese steel, of square or other than rectangular cross-section, not further worked than hot-rolled, hot-drawn or extruded, and hot-rolled, hot-drawn or extruded, not further worked than clad (excl. semi-finished products, flat-rolled products and hot-rolled bars and rods in irregularly wound coils)","Bars and rods of silico-manganese steel, of square or other than rectangular cross-section, not further worked than hot-rolled, hot-drawn or extruded, and hot-rolled, hot-drawn or extruded, not further worked than clad (excl. semi-finished products, flat-rolled products and hot-rolled bars and rods in irregularly wound coils)"]
[1125,"Bars and rods of silico-manganese stee, of square or other than rectangular cross-section, only cold-formed or cold-finished, incl. further worked, or hot-rolled and further worked (excl. hot-rolled, hot drawn or extruded, not further worked than clad, semi-finished products, flat-rolled products and hot-rolled bars and rods in irregularly wound coils)","Bars and rods of silico-manganese stee, of square or other than rectangular cross-section, only cold-formed or cold-finished, incl. further worked, or hot-rolled and further worked (excl. hot-rolled, hot drawn or extruded, not further worked than clad, semi-finished products, flat-rolled products and hot-rolled bars and rods in irregularly wound coils)"]
[1126,"Bars and rods of alloy steel other than stainless, not further worked than hot-rolled, hot-drawn or extruded (excl. products of high-speed steel or silico-manganese steel, semi-finished products, flat-rolled products and hot-rolled bars and rods in irregularly wound coils)","Bars and rods of alloy steel other than stainless, not further worked than hot-rolled, hot-drawn or extruded (excl. products of high-speed steel or silico-manganese steel, semi-finished products, flat-rolled products and hot-rolled bars and rods in irregularly wound coils)"]
[1127,"Bars and rods of tool steel, only hot-rolled, only hot-drawn or only extruded (excl. semi-finished products, flat-rolled products and hot-rolled bars and rods in irregularly wound coils)","Bars and rods of tool steel, only hot-rolled, only hot-drawn or only extruded (excl. semi-finished products, flat-rolled products and hot-rolled bars and rods in irregularly wound coils)"]
[1128,"Bars and rods of steel containing by weight 0,9 to 1,15% of carbon and 0,5 to 2% of chromium, and, if present, <= 0,5% of molybdenum, only hot-rolled, hot-drawn or hot-extruded, of a circular cross-section of a diameter of >= 80 mm (excl. semi-finished products, flat-rolled products and hot-rolled bars and rods in irregularly wound coils)","Bars and rods of steel containing by weight 0,9 to 1,15% of carbon and 0,5 to 2% of chromium, and, if present, <= 0,5% of molybdenum, only hot-rolled, hot-drawn or hot-extruded, of a circular cross-section of a diameter of >= 80 mm (excl. semi-finished products, flat-rolled products and hot-rolled bars and rods in irregularly wound coils)"]
[1129,"Bars and rods of steel containing by weight 0,9 to 1,15% of carbon and 0,5 to 2% of chromium, and, if present, <= 0,5% of molybdenum, only hot-rolled, only hot-drawn or hot-extruded (other than of circular cross-section, of a diameter of >= 80 mm and excl. semi-finished products, flat-rolled products and hot-rolled bars and rods in irregularly wound coils)","Bars and rods of steel containing by weight 0,9 to 1,15% of carbon and 0,5 to 2% of chromium, and, if present, <= 0,5% of molybdenum, only hot-rolled, only hot-drawn or hot-extruded (other than of circular cross-section, of a diameter of >= 80 mm and excl. semi-finished products, flat-rolled products and hot-rolled bars and rods in irregularly wound coils)"]
[1130,"Bars and rods of alloy steel other than stainless steel, only hot-rolled, hot-drawn or hot-extruded, of circular cross-section, of a diameter of >= 80 mm (other than of high-speed steel, silico-manganese steel, tool steel, articles of subheading 7228.30.41 and excl. semi-finished products, flat-rolled products and hot-rolled bars and rods in irregularly wound coils)","Bars and rods of alloy steel other than stainless steel, only hot-rolled, hot-drawn or hot-extruded, of circular cross-section, of a diameter of >= 80 mm (other than of high-speed steel, silico-manganese steel, tool steel, articles of subheading 7228.30.41 and excl. semi-finished products, flat-rolled products and hot-rolled bars and rods in irregularly wound coils)"]
[1131,"Bars and rods or alloy steel other than stainless steel, only hot-rolled, hot-drawn or hot-extruded, of circular cross-section, of a diameter of < 80 mm (other than of high-speed steel, silico-manganese steel, tool steel and articles of subheading 7228.30.49 and excl. semi-finished products, flat-rolled products and hot-rolled bars and rods in irregularly wound coils)","Bars and rods or alloy steel other than stainless steel, only hot-rolled, hot-drawn or hot-extruded, of circular cross-section, of a diameter of < 80 mm (other than of high-speed steel, silico-manganese steel, tool steel and articles of subheading 7228.30.49 and excl. semi-finished products, flat-rolled products and hot-rolled bars and rods in irregularly wound coils)"]
[1132,"Bars and rods of alloy steel other than stainless steel, of rectangular \"other than square\" cross-section, hot-rolled on four faces (other than of high-speed steel, silico-manganese steel, tool steel, articles of subheading 7228.30.41 and 7228.30.49 and excl. semi-finished products, flat-rolled products and hot-rolled bars and rods in irregularly wound coils)","Bars and rods of alloy steel other than stainless steel, of rectangular \"other than square\" cross-section, hot-rolled on four faces (other than of high-speed steel, silico-manganese steel, tool steel, articles of subheading 7228.30.41 and 7228.30.49 and excl. semi-finished products, flat-rolled products and hot-rolled bars and rods in irregularly wound coils)"]
[1133,"Bars and rods of alloy steel other than stainless steel, only hot-rolled, hot-drawn or hot-extruded, of other than rectangular [other than square] cross-section, rolled on four faces, or of circular cross-section (other than of high-speed steel, silico-manganese steel, tool steel, articles of subheading 7228.30.49 and excl. semi-finished products, flat-rolled products and hot-rolled bars and rods in irregularly wound coils)","Bars and rods of alloy steel other than stainless steel, only hot-rolled, hot-drawn or hot-extruded, of other than rectangular [other than square] cross-section, rolled on four faces, or of circular cross-section (other than of high-speed steel, silico-manganese steel, tool steel, articles of subheading 7228.30.49 and excl. semi-finished products, flat-rolled products and hot-rolled bars and rods in irregularly wound coils)"]
[1134,"Bars and rods of alloy steel other than stainless, not further worked than forged (excl. products of high-speed steel or silico-manganese steel, semi-finished products, flat-rolled products and hot-rolled bars and rods in irregularly wound coils)","Bars and rods of alloy steel other than stainless, not further worked than forged (excl. products of high-speed steel or silico-manganese steel, semi-finished products, flat-rolled products and hot-rolled bars and rods in irregularly wound coils)"]
[1135,"Bars and rods of tool steel, only forged (excl. semi-finished products, flat-rolled products and hot-rolled bars and rods in irregularly wound coils)","Bars and rods of tool steel, only forged (excl. semi-finished products, flat-rolled products and hot-rolled bars and rods in irregularly wound coils)"]
[1136,"Bars and rods of alloy steel, other than stainless steel, only forged (excl. of high-speed steel, silico-manganese steel, tool steel, semi-finished products, flat-rolled products and hot-rolled bars and rods in irregularly wound coils)","Bars and rods of alloy steel, other than stainless steel, only forged (excl. of high-speed steel, silico-manganese steel, tool steel, semi-finished products, flat-rolled products and hot-rolled bars and rods in irregularly wound coils)"]
[1137,"Bars and rods of alloy steel other than stainless, not further worked than cold-formed or cold-finished (excl. products of high-speed steel or silico-manganese steel, semi-finished products, flat-rolled products and hot-rolled bars and rods in irregularly wound coils)","Bars and rods of alloy steel other than stainless, not further worked than cold-formed or cold-finished (excl. products of high-speed steel or silico-manganese steel, semi-finished products, flat-rolled products and hot-rolled bars and rods in irregularly wound coils)"]
[1138,"Bars and rods of tool steel, only cold-formed or cold-finished (excl. semi-finished products, flat-rolled products and hot-rolled bars and rods in irregularly wound coils)","Bars and rods of tool steel, only cold-formed or cold-finished (excl. semi-finished products, flat-rolled products and hot-rolled bars and rods in irregularly wound coils)"]
[1139,"Bars and rods of steel containing 0,9% to 1,15% of carbon, 0,5% to 2% of chromium and, if present <= 0,5% of molybdenum, only cold-formed or cold-finished (excl. semi-finished products, flat-rolled products and hot-rolled bars and rods in irregularly wound coils)","Bars and rods of steel containing 0,9% to 1,15% of carbon, 0,5% to 2% of chromium and, if present <= 0,5% of molybdenum, only cold-formed or cold-finished (excl. semi-finished products, flat-rolled products and hot-rolled bars and rods in irregularly wound coils)"]
[1140,"Bars and rods of alloy steel, other than stainless steel, not further worked than cold-formed or cold-finished, of circular cross-section, of a diameter of >= 80 mm (excl. of high-speed steel, silico-manganese steel, tool steel, articles of subheading 7228.50.40, semi-finished products, flat-rolled products and hot-rolled bars and rods in irregularly wound coils)","Bars and rods of alloy steel, other than stainless steel, not further worked than cold-formed or cold-finished, of circular cross-section, of a diameter of >= 80 mm (excl. of high-speed steel, silico-manganese steel, tool steel, articles of subheading 7228.50.40, semi-finished products, flat-rolled products and hot-rolled bars and rods in irregularly wound coils)"]
[1141,"Bars and rods of alloy steel, other than stainless steel, not further worked than cold-formed or cold-finished, of circular cross-section, of a diameter of < 80 mm (excl. of high-speed steel, silico-manganese steel, tool steel, articles of subheading 7228.50.40, semi-finished products, flat-rolled products and hot-rolled bars and rods in irregularly wound coils)","Bars and rods of alloy steel, other than stainless steel, not further worked than cold-formed or cold-finished, of circular cross-section, of a diameter of < 80 mm (excl. of high-speed steel, silico-manganese steel, tool steel, articles of subheading 7228.50.40, semi-finished products, flat-rolled products and hot-rolled bars and rods in irregularly wound coils)"]
[1142,"Bars and rods of alloy steel, other than stainless steel, not further worked than cold-formed or cold-finished (excl. of circular cross-section and products of high-speed steel, silico-manganese steel, tool steel, articles of subheading 7228.50.40, semi-finished products, flat-rolled products and hot-rolled bars and rods in irregularly wound coils)","Bars and rods of alloy steel, other than stainless steel, not further worked than cold-formed or cold-finished (excl. of circular cross-section and products of high-speed steel, silico-manganese steel, tool steel, articles of subheading 7228.50.40, semi-finished products, flat-rolled products and hot-rolled bars and rods in irregularly wound coils)"]
[1143,"Bars and rods of alloy steel other than stainless, cold-formed or cold-finished and further worked or hot-formed and further worked, n.e.s. (excl. products of high-speed steel or silico-manganese steel, semi-finished products, flat-rolled products and hot-rolled bars and rods in irregularly wound coils)","Bars and rods of alloy steel other than stainless, cold-formed or cold-finished and further worked or hot-formed and further worked, n.e.s. (excl. products of high-speed steel or silico-manganese steel, semi-finished products, flat-rolled products and hot-rolled bars and rods in irregularly wound coils)"]
[1144,"Bars and rods of tool steel, cold-formed or cold-finished and further worked or hot-formed and further worked (excl. semi-finished products, flat-rolled products and hot-rolled bars and rods in irregularly wound coils)","Bars and rods of tool steel, cold-formed or cold-finished and further worked or hot-formed and further worked (excl. semi-finished products, flat-rolled products and hot-rolled bars and rods in irregularly wound coils)"]
[1145,"Bars and rods of alloy steel, other than stainless steel, cold-formed or cold-finished and further worked or hot-formed and further worked (excl. bars and rods of high-speed steel, silico-manganese steel or tool steel, semi-finished products, flat-rolled products and hot-rolled bars and rods in irregularly wound coils)","Bars and rods of alloy steel, other than stainless steel, cold-formed or cold-finished and further worked or hot-formed and further worked (excl. bars and rods of high-speed steel, silico-manganese steel or tool steel, semi-finished products, flat-rolled products and hot-rolled bars and rods in irregularly wound coils)"]
[1146,"Angles, shapes and sections of alloy steel other than stainless, n.e.s.","Angles, shapes and sections of alloy steel other than stainless, n.e.s."]
[1147,"Angles, shapes and sections of alloy steel other than stainless, not further worked than hot-rolled, hot-drawn or extruded","Angles, shapes and sections of alloy steel other than stainless, not further worked than hot-rolled, hot-drawn or extruded"]
[1148,"Angles, shapes and sections of alloy steel other than stainless, n.e.s. (excl. products not further worked than hot-rolled, hot-drawn or extruded)","Angles, shapes and sections of alloy steel other than stainless, n.e.s. (excl. products not further worked than hot-rolled, hot-drawn or extruded)"]
[1149,"Hollow drill bars and rods, of alloy or non-alloy steel","Hollow drill bars and rods, of alloy or non-alloy steel"]
[1150,"Wire of alloy steel other than stainless, in coils (excl. bars and rods)","Wire of alloy steel other than stainless, in coils (excl. bars and rods)"]
[1151,"Wire of silico-manganese steel, in coils (excl. bars and rods)","Wire of silico-manganese steel, in coils (excl. bars and rods)"]
[1152,"Wire of alloy steel other than stainless, in coils (excl. bars and rods and wire of silico-manganese steel)","Wire of alloy steel other than stainless, in coils (excl. bars and rods and wire of silico-manganese steel)"]
[1153,"Wire of high-speed steel, in coils (excl. bars and rods)","Wire of high-speed steel, in coils (excl. bars and rods)"]
[1154,"Wire of steel containing by weight 0,9% to 1,1% of carbon, 0,5% to 2% of chromium and, if present, <= 0,5% of molybdenum, in coils (excl. rolled bars and rods)","Wire of steel containing by weight 0,9% to 1,1% of carbon, 0,5% to 2% of chromium and, if present, <= 0,5% of molybdenum, in coils (excl. rolled bars and rods)"]
[1155,"Wire of alloy steel other than stainless, in coils (excl. rolled bars and rods, wire of high-speed steel or silico-manganese steel and articles of subheading 7229.90.50)","Wire of alloy steel other than stainless, in coils (excl. rolled bars and rods, wire of high-speed steel or silico-manganese steel and articles of subheading 7229.90.50)"]
[1156,"Sheet piling of iron or steel, whether or not drilled, punched or made from assembled elements; welded angles, shapes and sections, of iron or steel","Sheet piling of iron or steel, whether or not drilled, punched or made from assembled elements; welded angles, shapes and sections, of iron or steel"]
[1157,"Sheet piling of iron or steel, whether or not drilled, punched or made from assembled elements","Sheet piling of iron or steel, whether or not drilled, punched or made from assembled elements"]
[1158,"Angles, shapes and sections, of iron or steel, welded","Angles, shapes and sections, of iron or steel, welded"]
[1159,{"$f":"IFERROR(INDEX(C1163:M1163,$A$4-2),$C1163)","v":"Railway or tramway track construction material of iron or steel, the following : rails, check-rails and rack rails, switch blades, crossing frogs, point rods and other crossing pieces, sleepers \"cross-ties\", fish-plates, chairs, chair wedges, sole plates \"base plates\", rail clips, bedplates, ties and other material specialised for jointing or fixing rails"},"Railway or tramway track construction material of iron or steel, the following : rails, check-rails and rack rails, switch blades, crossing frogs, point rods and other crossing pieces, sleepers \"cross-ties\", fish-plates, chairs, chair wedges, sole plates \"base plates\", rail clips, bedplates, ties and other material specialised for jointing or fixing rails"]
[1160,"Rails of iron or steel, for railway or tramway track (excl. check-rails)","Rails of iron or steel, for railway or tramway track (excl. check-rails)"]
[1161,"Current-conducting rails of iron or steel, with parts of non-ferrous metal, for railway or tramway track (excl. check-rails)","Current-conducting rails of iron or steel, with parts of non-ferrous metal, for railway or tramway track (excl. check-rails)"]
[1162,"Vignole rails of iron or steel, for railway or tramway track, new, of a weight of >= 36 kg/m","Vignole rails of iron or steel, for railway or tramway track, new, of a weight of >= 36 kg/m"]
[1163,"Vignole rails of iron or steel, for railway or tramway track, new, of a weight of < 36 kg/m","Vignole rails of iron or steel, for railway or tramway track, new, of a weight of < 36 kg/m"]
[1164,"Grooved rails of iron or steel, for railway or tramway track, new","Grooved rails of iron or steel, for railway or tramway track, new"]
[1165,"Rails of iron or steel, for railway or tramway track, new (excl. vignole rails, grooved rails, and current-conducting rails with parts of non-ferrous metal)","Rails of iron or steel, for railway or tramway track, new (excl. vignole rails, grooved rails, and current-conducting rails with parts of non-ferrous metal)"]
[1166,"Rails of iron or steel, for railway or tramway track, used (excl. current-conducting rails with parts of non-ferrous metal)","Rails of iron or steel, for railway or tramway track, used (excl. current-conducting rails with parts of non-ferrous metal)"]
[1167,"Switch blades, crossing frogs, point rods and other crossing pieces, for railway or tramway track, of iron or steel","Switch blades, crossing frogs, point rods and other crossing pieces, for railway or tramway track, of iron or steel"]
[1168,"Fish-plates and sole plates of iron or steel, for railways or tramways","Fish-plates and sole plates of iron or steel, for railways or tramways"]
[1169,"Sleepers \"cross-ties\", check-rails, rack rails, chairs, chair wedges, rail clips, bedplates and ties and other specialised material for the jointing or fixing of railway or tramway track, of iron or steel (excl. rails, switch blades, crossing frogs, point rods and other crossing pieces, and fish-plates and sole plates)","Sleepers \"cross-ties\", check-rails, rack rails, chairs, chair wedges, rail clips, bedplates and ties and other specialised material for the jointing or fixing of railway or tramway track, of iron or steel (excl. rails, switch blades, crossing frogs, point rods and other crossing pieces, and fish-plates and sole plates)"]
[1170,"Tubes, pipes and hollow profiles, of cast iron","Tubes, pipes and hollow profiles, of cast iron"]
[1171,"Tubes and pipes of a kind used in pressure systems, of cast iron","Tubes and pipes of a kind used in pressure systems, of cast iron"]
[1172,"Tubes, pipes and hollow profiles, of cast iron (excl. products of a kind used in pressure systems)","Tubes, pipes and hollow profiles, of cast iron (excl. products of a kind used in pressure systems)"]
[1173,"Tubes, pipes and hollow profiles, seamless, of iron or steel (excl. products of cast iron)","Tubes, pipes and hollow profiles, seamless, of iron or steel (excl. products of cast iron)"]
[1174,"Line pipe of a kind used for oil or gas pipelines, seamless, of stainless steel","Line pipe of a kind used for oil or gas pipelines, seamless, of stainless steel"]
[1175,"Line pipe of a kind used for oil or gas pipelines, seamless, of iron or steel (excl. products of stainless steel or of cast iron)","Line pipe of a kind used for oil or gas pipelines, seamless, of iron or steel (excl. products of stainless steel or of cast iron)"]
[1176,"Line pipe of a kind used for oil or gas pipelines, seamless, of iron or steel, of an external diameter of <= 168,3 mm (excl. products of stainless steel or of cast iron)","Line pipe of a kind used for oil or gas pipelines, seamless, of iron or steel, of an external diameter of <= 168,3 mm (excl. products of stainless steel or of cast iron)"]
[1177,"Line pipe of a kind used for oil or gas pipelines, seamless, of iron or steel, of an external diameter of > 168,3 mm but <= 406,4 mm (excl. products of stainless steel or of cast iron)","Line pipe of a kind used for oil or gas pipelines, seamless, of iron or steel, of an external diameter of > 168,3 mm but <= 406,4 mm (excl. products of stainless steel or of cast iron)"]
[1178,"Line pipe of a kind used for oil or gas pipelines, seamless, of iron or steel, of an external diameter of > 406,4 mm (excl. products of stainless steel or of cast iron)","Line pipe of a kind used for oil or gas pipelines, seamless, of iron or steel, of an external diameter of > 406,4 mm (excl. products of stainless steel or of cast iron)"]
[1179,"Drill pipe, seamless, of stainless steel, of a kind used in drilling for oil or gas","Drill pipe, seamless, of stainless steel, of a kind used in drilling for oil or gas"]
[1180,"Drill pipe, seamless, of a kind used in drilling for oil or gas, of iron or steel (excl. products of stainless steel or of cast iron)","Drill pipe, seamless, of a kind used in drilling for oil or gas, of iron or steel (excl. products of stainless steel or of cast iron)"]
[1181,"Casing and tubing, seamless, of a kind used for drilling for oil or gas, of stainless steel","Casing and tubing, seamless, of a kind used for drilling for oil or gas, of stainless steel"]
[1182,"Casing and tubing, seamless, of iron or steel, of a kind used in drilling for oil or gas (excl. products of cast iron)","Casing and tubing, seamless, of iron or steel, of a kind used in drilling for oil or gas (excl. products of cast iron)"]
[1183,"Casing and tubing of a kind used for drilling for oil or gas, seamless, of iron or steel, of an external diameter <= 168,3 mm (excl. products of cast iron)","Casing and tubing of a kind used for drilling for oil or gas, seamless, of iron or steel, of an external diameter <= 168,3 mm (excl. products of cast iron)"]
[1184,"Casing and tubing of a kind used for drilling for oil or gas, seamless, of iron or steel, of an external diameter > 168,3 mm, but <= 406,4 mm (excl. products of cast iron)","Casing and tubing of a kind used for drilling for oil or gas, seamless, of iron or steel, of an external diameter > 168,3 mm, but <= 406,4 mm (excl. products of cast iron)"]
[1185,"Casing and tubing of a kind used for drilling for oil or gas, seamless, of iron or steel, of an external diameter > 406,4 mm (excl. products of cast iron)","Casing and tubing of a kind used for drilling for oil or gas, seamless, of iron or steel, of an external diameter > 406,4 mm (excl. products of cast iron)"]
[1186,"Tubes, pipes and hollow profiles, seamless, of circular cross-section, of iron or non-alloy steel, cold-drawn or cold-rolled \"cold-reduced\" (excl. cast iron products and line pipe of a kind used for oil or gas pipelines or casing and tubing of a kind used for drilling for oil or gas)","Tubes, pipes and hollow profiles, seamless, of circular cross-section, of iron or non-alloy steel, cold-drawn or cold-rolled \"cold-reduced\" (excl. cast iron products and line pipe of a kind used for oil or gas pipelines or casing and tubing of a kind used for drilling for oil or gas)"]
[1187,"Precision tubes, seamless, of circular cross-section, of iron or non-alloy steel, cold-drawn or cold-rolled \"cold-reduced\" (excl. line pipe of a kind used for oil or gas pipelines or casing and tubing of a kind used for drilling for oil or gas)","Precision tubes, seamless, of circular cross-section, of iron or non-alloy steel, cold-drawn or cold-rolled \"cold-reduced\" (excl. line pipe of a kind used for oil or gas pipelines or casing and tubing of a kind used for drilling for oil or gas)"]
[1188,"Tubes, pipes and hollow profiles, seamless, of circular cross-section, of iron or non-alloy steel, cold-drawn or cold-rolled \"cold-reduced\" (excl. cast iron products, line pipe of a kind used for oil or gas pipelines, casing and tubing of a kind used for drilling for oil or gas and precision tubes)","Tubes, pipes and hollow profiles, seamless, of circular cross-section, of iron or non-alloy steel, cold-drawn or cold-rolled \"cold-reduced\" (excl. cast iron products, line pipe of a kind used for oil or gas pipelines, casing and tubing of a kind used for drilling for oil or gas and precision tubes)"]
[1189,"Tubes, pipes and hollow profiles, seamless, of circular cross-section, of iron or non-alloy steel, not cold-drawn or cold-rolled \"cold-reduced\" (excl. cast iron products, line pipe of a kind used for oil or gas pipelines, casing and tubing of a kind used for drilling for oil or gas)","Tubes, pipes and hollow profiles, seamless, of circular cross-section, of iron or non-alloy steel, not cold-drawn or cold-rolled \"cold-reduced\" (excl. cast iron products, line pipe of a kind used for oil or gas pipelines, casing and tubing of a kind used for drilling for oil or gas)"]
[1190,"Threaded or threadable tubes \"gas pipe\", seamless, of iron or non-alloy steel (excl. of cast iron)","Threaded or threadable tubes \"gas pipe\", seamless, of iron or non-alloy steel (excl. of cast iron)"]
[1191,"Tubes, pipes and hollow profiles, seamless, of circular cross-section, of iron or non-alloy steel, of an external diameter of <= 168,3 mm (excl. cold-drawn or cold-rolled, of cast iron, line pipe of a kind used for oil or gas pipelines, casing, tubing and drill pipe of a kind used in drilling for oil or gas and tubes, and gas pipes of subheading 7304 39 50)","Tubes, pipes and hollow profiles, seamless, of circular cross-section, of iron or non-alloy steel, of an external diameter of <= 168,3 mm (excl. cold-drawn or cold-rolled, of cast iron, line pipe of a kind used for oil or gas pipelines, casing, tubing and drill pipe of a kind used in drilling for oil or gas and tubes, and gas pipes of subheading 7304 39 50)"]
[1192,"Tubes, pipes and hollow profiles, seamless, of circular cross-section, of iron or non-alloy steel, of an external diameter of > 168,3 mm but <= 406,4 mm (excl. cold-drawn or cold-rolled, of cast iron, line pipe of a kind used for oil or gas pipelines, casing, tubing and drill pipe of a kind used in drilling for oil or gas and tubes, and gas pipes of subheading 7304 39 50)","Tubes, pipes and hollow profiles, seamless, of circular cross-section, of iron or non-alloy steel, of an external diameter of > 168,3 mm but <= 406,4 mm (excl. cold-drawn or cold-rolled, of cast iron, line pipe of a kind used for oil or gas pipelines, casing, tubing and drill pipe of a kind used in drilling for oil or gas and tubes, and gas pipes of subheading 7304 39 50)"]
[1193,"Tubes, pipes and hollow profiles, seamless, of circular cross-section, of iron or non-alloy steel, of an external diameter of > 406,4 mm (excl. cold-drawn or cold-rolled, of cast iron, line pipe of a kind used for oil or gas pipelines, casing, tubing and drill pipe of a kind used in drilling for oil or gas and tubes, and gas pipes of subheading 7304 39 50)","Tubes, pipes and hollow profiles, seamless, of circular cross-section, of iron or non-alloy steel, of an external diameter of > 406,4 mm (excl. cold-drawn or cold-rolled, of cast iron, line pipe of a kind used for oil or gas pipelines, casing, tubing and drill pipe of a kind used in drilling for oil or gas and tubes, and gas pipes of subheading 7304 39 50)"]
[1194,"Tubes, pipes and hollow profiles, seamless, of circular cross-section, of stainless steel, cold-drawn or cold-rolled \"cold-reduced\" (excl. line pipe of a kind used for oil or gas pipelines, casing and tubing of a kind used for drilling for oil or gas)","Tubes, pipes and hollow profiles, seamless, of circular cross-section, of stainless steel, cold-drawn or cold-rolled \"cold-reduced\" (excl. line pipe of a kind used for oil or gas pipelines, casing and tubing of a kind used for drilling for oil or gas)"]
[1195,"Tubes, pipes and hollow profiles, seamless, of circular cross-section, of stainless steel, not cold-drawn or cold-rolled \"cold-reduced\" (excl. line pipe of a kind used for oil or gas pipelines or of a kind used for drilling for oil or gas)","Tubes, pipes and hollow profiles, seamless, of circular cross-section, of stainless steel, not cold-drawn or cold-rolled \"cold-reduced\" (excl. line pipe of a kind used for oil or gas pipelines or of a kind used for drilling for oil or gas)"]
[1196,"Tubes, pipes and hollow profiles, seamless, of circular cross-section, of stainless steel, of an external diameter of <= 168,3 mm (excl. cold-drawn or cold-rolled, line pipe of a kind used for oil or gas pipelines, and casing and tubing of a kind used for drilling for oil or gas and tubes)","Tubes, pipes and hollow profiles, seamless, of circular cross-section, of stainless steel, of an external diameter of <= 168,3 mm (excl. cold-drawn or cold-rolled, line pipe of a kind used for oil or gas pipelines, and casing and tubing of a kind used for drilling for oil or gas and tubes)"]
[1197,"Tubes, pipes and hollow profiles, seamless, of circular cross-section, of stainless steel, of an external diameter of > 168,3 mm but <= 406,4 mm (excl. cold-drawn or cold-rolled, line pipe of a kind used for oil or gas pipelines, and casing and tubing of a kind used for drilling for oil or gas and tubes)","Tubes, pipes and hollow profiles, seamless, of circular cross-section, of stainless steel, of an external diameter of > 168,3 mm but <= 406,4 mm (excl. cold-drawn or cold-rolled, line pipe of a kind used for oil or gas pipelines, and casing and tubing of a kind used for drilling for oil or gas and tubes)"]
[1198,"Tubes, pipes and hollow profiles, seamless, of circular cross-section, of stainless steel, of an external diameter of > 406,4 mm (excl. cold-drawn or cold-rolled, line pipe of a kind used for oil or gas pipelines, and casing and tubing of a kind used for drilling for oil or gas and tubes)","Tubes, pipes and hollow profiles, seamless, of circular cross-section, of stainless steel, of an external diameter of > 406,4 mm (excl. cold-drawn or cold-rolled, line pipe of a kind used for oil or gas pipelines, and casing and tubing of a kind used for drilling for oil or gas and tubes)"]
[1199,"Tubes, pipes and hollow profiles, seamless, of circular cross-section, of alloy steel other than stainless, cold-drawn or cold-rolled \"cold-reduced\" (excl. line pipe of a kind used for oil or gas pipelines, casing and tubing of a kind used for drilling for oil)","Tubes, pipes and hollow profiles, seamless, of circular cross-section, of alloy steel other than stainless, cold-drawn or cold-rolled \"cold-reduced\" (excl. line pipe of a kind used for oil or gas pipelines, casing and tubing of a kind used for drilling for oil)"]
[1200,"Tubes, pipes and hollow profiles, seamless, of circular cross-section, of alloy steel other than stainless, cold-drawn or cold-rolled \"cold-reduced\", straight and of uniform wall-thickness, containing by weight >= 0,9% but <= 1,15% carbon and >= 0,5% but <= 2% chromium, whether or not containing by weight <= 0,5% molybdenum (excl. tubes, pipes and hollow profiles of subheadings 7304 19 to 7304 29)","Tubes, pipes and hollow profiles, seamless, of circular cross-section, of alloy steel other than stainless, cold-drawn or cold-rolled \"cold-reduced\", straight and of uniform wall-thickness, containing by weight >= 0,9% but <= 1,15% carbon and >= 0,5% but <= 2% chromium, whether or not containing by weight <= 0,5% molybdenum (excl. tubes, pipes and hollow profiles of subheadings 7304 19 to 7304 29)"]
[1201,"Precision tubes, seamless, of circular cross-section, of alloy steel other than stainless, cold-drawn or cold-rolled \"cold-reduced\" (excl. line pipe of a kind used for oil or gas pipelines, casing and tubing of a kind used for drilling for oil and tubes, and pipes and hollow profiles, straight and of uniform wall-thickness, containing by weight >= 0,9% but <= 1,15% carbon and >= 0,5% but <= 2% chrome, whether or not containing by weight <= 0,5% molybdenum)","Precision tubes, seamless, of circular cross-section, of alloy steel other than stainless, cold-drawn or cold-rolled \"cold-reduced\" (excl. line pipe of a kind used for oil or gas pipelines, casing and tubing of a kind used for drilling for oil and tubes, and pipes and hollow profiles, straight and of uniform wall-thickness, containing by weight >= 0,9% but <= 1,15% carbon and >= 0,5% but <= 2% chrome, whether or not containing by weight <= 0,5% molybdenum)"]
[1202,"Tubes, pipes and hollow profiles, seamless, of circular cross-section, of alloy steel other than stainless, not cold-drawn or cold-rolled \"cold-reduced\" (excl. line pipe of a kind used for oil or gas pipelines, casing and tubing of a kind used for drilling for oil, precision tubes, and , pipes and hollow profiles, straight and of uniform wall-thickness, containing by weight >= 0,9% but <= 1,15% carbon and >= 0,5% but <= 2% chrome, whether or not containing by weight <= 0,5% molybdenum)","Tubes, pipes and hollow profiles, seamless, of circular cross-section, of alloy steel other than stainless, not cold-drawn or cold-rolled \"cold-reduced\" (excl. line pipe of a kind used for oil or gas pipelines, casing and tubing of a kind used for drilling for oil, precision tubes, and , pipes and hollow profiles, straight and of uniform wall-thickness, containing by weight >= 0,9% but <= 1,15% carbon and >= 0,5% but <= 2% chrome, whether or not containing by weight <= 0,5% molybdenum)"]
[1203,"Tubes, pipes and hollow profiles, seamless, of circular cross-section, of alloy steel other than stainless, not cold-drawn or cold-rolled \"cold-reduced\" (excl. line pipe of a kind used for oil or gas pipelines, casing and tubing of a kind used for drilling for oil)","Tubes, pipes and hollow profiles, seamless, of circular cross-section, of alloy steel other than stainless, not cold-drawn or cold-rolled \"cold-reduced\" (excl. line pipe of a kind used for oil or gas pipelines, casing and tubing of a kind used for drilling for oil)"]
[1204,"Tubes, pipes and hollow profiles of alloy steel (excl. stainless), seamless, of circular cross-section (not cold-drawn or cold-rolled), straight and of uniform wall-thickness, containing by weight >= 0,9% but <= 1,15% carbon and >= 0,5% but <= 2% chromium, whether or not containing by weight <= 0,5% molybdenum (excl. tubes, pipes and hollow profiles of subheadings 7304 19 to 7304 29)","Tubes, pipes and hollow profiles of alloy steel (excl. stainless), seamless, of circular cross-section (not cold-drawn or cold-rolled), straight and of uniform wall-thickness, containing by weight >= 0,9% but <= 1,15% carbon and >= 0,5% but <= 2% chromium, whether or not containing by weight <= 0,5% molybdenum (excl. tubes, pipes and hollow profiles of subheadings 7304 19 to 7304 29)"]
[1205,"Tubes, pipes and hollow profiles, seamless, of circular cross-section, of alloy steel other than stainless, of an external diameter of <= 168,3 mm (excl. cold-drawn or cold-rolled, line pipe of a kind used for oil or gas pipelines, casing and tubing of a kind used for drilling for oil or gas, and products of subheading 7304 59 30)","Tubes, pipes and hollow profiles, seamless, of circular cross-section, of alloy steel other than stainless, of an external diameter of <= 168,3 mm (excl. cold-drawn or cold-rolled, line pipe of a kind used for oil or gas pipelines, casing and tubing of a kind used for drilling for oil or gas, and products of subheading 7304 59 30)"]
[1206,"Tubes, pipes and hollow profiles, seamless, of circular cross-section, of alloy steel other than stainless, of an external diameter of > 168,3 mm but <= 406,4 mm (excl. cold-drawn or cold-rolled, line pipe of a kind used for oil or gas pipelines, casing and tubing of a kind used for drilling for oil or gas, and products of subheading 7304 59 30)","Tubes, pipes and hollow profiles, seamless, of circular cross-section, of alloy steel other than stainless, of an external diameter of > 168,3 mm but <= 406,4 mm (excl. cold-drawn or cold-rolled, line pipe of a kind used for oil or gas pipelines, casing and tubing of a kind used for drilling for oil or gas, and products of subheading 7304 59 30)"]
[1207,"Tubes, pipes and hollow profiles, seamless, of circular cross-section, of alloy steel other than stainless, of an external diameter of > 406,4 mm (excl. cold-drawn or cold-rolled, line pipe of a kind used for oil or gas pipelines, casing and tubing of a kind used for drilling for oil or gas, and products of subheading 7304 59 30)","Tubes, pipes and hollow profiles, seamless, of circular cross-section, of alloy steel other than stainless, of an external diameter of > 406,4 mm (excl. cold-drawn or cold-rolled, line pipe of a kind used for oil or gas pipelines, casing and tubing of a kind used for drilling for oil or gas, and products of subheading 7304 59 30)"]
[1208,"Tubes, pipes and hollow profiles, seamless, of non-circular cross-section, of iron or steel (excl. products of cast iron)","Tubes, pipes and hollow profiles, seamless, of non-circular cross-section, of iron or steel (excl. products of cast iron)"]
[1209,"Tubes and pipes, having circular cross-sections and an external diameter of > 406,4 mm, of flat-rolled products of iron or steel \"e.g., welded, riveted or similarly closed\"","Tubes and pipes, having circular cross-sections and an external diameter of > 406,4 mm, of flat-rolled products of iron or steel \"e.g., welded, riveted or similarly closed\""]
[1210,"Line pipe of a kind used for oil or gas pipelines, having circular cross-sections and an external diameter of > 406,4 mm, of iron or steel, longitudinally submerged arc welded","Line pipe of a kind used for oil or gas pipelines, having circular cross-sections and an external diameter of > 406,4 mm, of iron or steel, longitudinally submerged arc welded"]
[1211,"Line pipe of a kind used for oil or gas pipelines, having circular cross-sections and an external diameter of > 406,4 mm, of iron or steel, longitudinally arc welded (excl. products longitudinally submerged arc welded)","Line pipe of a kind used for oil or gas pipelines, having circular cross-sections and an external diameter of > 406,4 mm, of iron or steel, longitudinally arc welded (excl. products longitudinally submerged arc welded)"]
[1212,"Line pipe of a kind used for oil or gas pipelines, having circular cross-sections and an external diameter of > 406,4 mm, of flat-rolled products of iron or steel (excl. products longitudinally arc welded)","Line pipe of a kind used for oil or gas pipelines, having circular cross-sections and an external diameter of > 406,4 mm, of flat-rolled products of iron or steel (excl. products longitudinally arc welded)"]
[1213,"Casing of a kind used in drilling for oil or gas, having circular cross-sections and an external diameter of > 406,4 mm, of flat-rolled products of iron or steel","Casing of a kind used in drilling for oil or gas, having circular cross-sections and an external diameter of > 406,4 mm, of flat-rolled products of iron or steel"]
[1214,"Tubes and pipes having circular cross-sections and an external diameter of > 406,4 mm, of iron or steel, longitudinally welded (excl. products of a kind used for oil or gas pipelines or of a kind used in drilling for oil or gas)","Tubes and pipes having circular cross-sections and an external diameter of > 406,4 mm, of iron or steel, longitudinally welded (excl. products of a kind used for oil or gas pipelines or of a kind used in drilling for oil or gas)"]
[1215,"Tubes and pipes having circular cross-sections and an external diameter of > 406,4 mm, of iron or steel, welded (excl. products longitudinally welded or of a kind used for oil or gas pipelines or of a kind used in drilling for oil or gas)","Tubes and pipes having circular cross-sections and an external diameter of > 406,4 mm, of iron or steel, welded (excl. products longitudinally welded or of a kind used for oil or gas pipelines or of a kind used in drilling for oil or gas)"]
[1216,"Tubes and pipes having circular cross-sections and an external diameter of > 406,4 mm, of flat-rolled products of iron or steel, welded (excl. welded products or products of a kind used for oil or gas pipelines or of a kind used in drilling for oil or gas)","Tubes and pipes having circular cross-sections and an external diameter of > 406,4 mm, of flat-rolled products of iron or steel, welded (excl. welded products or products of a kind used for oil or gas pipelines or of a kind used in drilling for oil or gas)"]
[1217,"Tubes, pipes and hollow profiles \"e.g., open seam or welded, riveted or similarly closed\", of iron or steel (excl. of cast iron, seamless tubes and pipes and tubes having internal and external circular cross-sections and an external diameter of > 406,4 mm)","Tubes, pipes and hollow profiles \"e.g., open seam or welded, riveted or similarly closed\", of iron or steel (excl. of cast iron, seamless tubes and pipes and tubes having internal and external circular cross-sections and an external diameter of > 406,4 mm)"]
[1218,"Line pipe of a kind used for oil or gas pipelines, welded, of flat-rolled products of stainless steel, of an external diameter of <= 406,4 mm","Line pipe of a kind used for oil or gas pipelines, welded, of flat-rolled products of stainless steel, of an external diameter of <= 406,4 mm"]
[1219,"Line pipe of a kind used for oil or gas pipelines, welded, of flat-rolled products of iron or steel, of an external diameter of <= 406,4 mm (excl. products of stainless steel or of cast iron)","Line pipe of a kind used for oil or gas pipelines, welded, of flat-rolled products of iron or steel, of an external diameter of <= 406,4 mm (excl. products of stainless steel or of cast iron)"]
[1220,"Casing and tubing of a kind used in drilling for oil or gas, welded, of flat-rolled products of stainless steel, of an external diameter of <= 406,4 mm","Casing and tubing of a kind used in drilling for oil or gas, welded, of flat-rolled products of stainless steel, of an external diameter of <= 406,4 mm"]
[1221,"Casing and tubing of a kind used in drilling for oil or gas, welded, of flat-rolled products of iron or steel, of an external diameter of <= 406,4 mm (excl. products of stainless steel or of cast iron)","Casing and tubing of a kind used in drilling for oil or gas, welded, of flat-rolled products of iron or steel, of an external diameter of <= 406,4 mm (excl. products of stainless steel or of cast iron)"]
[1222,"Tubes, pipes and hollow profiles, welded, of circular cross-section, of iron or non-alloy steel (excl. products having internal and external circular cross-sections and an external diameter of > 406,4 mm, or line pipe of a kind used for oil or gas pipelines or casing and tubing of a kind used in drilling for oil or gas)","Tubes, pipes and hollow profiles, welded, of circular cross-section, of iron or non-alloy steel (excl. products having internal and external circular cross-sections and an external diameter of > 406,4 mm, or line pipe of a kind used for oil or gas pipelines or casing and tubing of a kind used in drilling for oil or gas)"]
[1223,{"$f":"IFERROR(INDEX(C1227:M1227,$A$4-2),$C1227)","v":"Precision tubes, welded, of circular cross-section, of iron or non-alloy steel, cold-drawn or cold-rolled \"cold-reduced\""},"Precision tubes, welded, of circular cross-section, of iron or non-alloy steel, cold-drawn or cold-rolled \"cold-reduced\""]
[1224,"Precision tubes, welded, of circular cross-section, of iron or non-alloy steel (excl. cold-drawn or cold-rolled)","Precision tubes, welded, of circular cross-section, of iron or non-alloy steel (excl. cold-drawn or cold-rolled)"]
[1225,"Threaded or threadable tubes \"gas pipe\", welded, of circular cross-section, of iron or non-alloy steel, plated or coated with zinc","Threaded or threadable tubes \"gas pipe\", welded, of circular cross-section, of iron or non-alloy steel, plated or coated with zinc"]
[1226,"Threaded or threadable tubes \"gas pipe\", welded, of circular cross-section, of iron or non-alloy steel (excl. products plated or coated with zinc)","Threaded or threadable tubes \"gas pipe\", welded, of circular cross-section, of iron or non-alloy steel (excl. products plated or coated with zinc)"]
[1227,"Other tubes, pipes and hollow profiles, welded, of circular cross-section, of iron or non-alloy steel, of an external diameter of <= 168,3 mm, plated or coated with zinc (excl. line pipe of a kind used for oil or gas pipelines or casing and tubingof a kind used in drilling for oil or gas)","Other tubes, pipes and hollow profiles, welded, of circular cross-section, of iron or non-alloy steel, of an external diameter of <= 168,3 mm, plated or coated with zinc (excl. line pipe of a kind used for oil or gas pipelines or casing and tubingof a kind used in drilling for oil or gas)"]
[1228,"Other tubes, pipes and hollow profiles, welded, of circular cross-section, of iron or non-alloy steel of an external diameter of <= 168,3 mm (excl. plated or coated with zinc and line pipe of a kind used for oil or gas pipelines, casing and tubing of a kind used in drilling for oil or gas, precision tubes and threaded or threadable tubes \"gas pipe\")","Other tubes, pipes and hollow profiles, welded, of circular cross-section, of iron or non-alloy steel of an external diameter of <= 168,3 mm (excl. plated or coated with zinc and line pipe of a kind used for oil or gas pipelines, casing and tubing of a kind used in drilling for oil or gas, precision tubes and threaded or threadable tubes \"gas pipe\")"]
[1229,"Tubes, pipes and hollow profiles, welded, having a circular cross-section, of iron or steel, of an external diameter of > 168,3 mm but <= 406,4 mm (excl. line pipe of a kind used for oil or gas pipelines or casing and tubing of a kind used in drilling for oil or gas, or precision steel tubes, electrical conduit tubes or threaded or threadable tubes \"gas pipe\")","Tubes, pipes and hollow profiles, welded, having a circular cross-section, of iron or steel, of an external diameter of > 168,3 mm but <= 406,4 mm (excl. line pipe of a kind used for oil or gas pipelines or casing and tubing of a kind used in drilling for oil or gas, or precision steel tubes, electrical conduit tubes or threaded or threadable tubes \"gas pipe\")"]
[1230,"Tubes, pipes and hollow profiles, welded, of circular cross-section, of stainless steel (excl. products having internal and external circular cross-sections and an external diameter of > 406,4 mm, and products of a kind used for oil or gas pipelines or of a kind used in drilling for oil or gas)","Tubes, pipes and hollow profiles, welded, of circular cross-section, of stainless steel (excl. products having internal and external circular cross-sections and an external diameter of > 406,4 mm, and products of a kind used for oil or gas pipelines or of a kind used in drilling for oil or gas)"]
[1231,"Tubes, pipes and hollow profiles, welded, of circular cross-section, of stainless steel, cold-drawn or cold-rolled \"cold-reduced\" (excl. products having internal and external circular cross-sections and an external diameter of > 406,4 mm, and line pipe of a kind used for oil or gas pipelines or casing and tubing of a kind used in drilling for oil or gas)","Tubes, pipes and hollow profiles, welded, of circular cross-section, of stainless steel, cold-drawn or cold-rolled \"cold-reduced\" (excl. products having internal and external circular cross-sections and an external diameter of > 406,4 mm, and line pipe of a kind used for oil or gas pipelines or casing and tubing of a kind used in drilling for oil or gas)"]
[1232,"Tubes, pipes and hollow profiles, welded, of circular cross-section, of stainless steel (excl. products cold-drawn or cold-rolled \"cold-reduced\", tubes and pipes having internal and external circular cross-sections and an external diameter of > 406,4 mm, and line pipe of a kind used for oil or gas pipelines or casing and tubing of a kind used in drilling for oil or gas)","Tubes, pipes and hollow profiles, welded, of circular cross-section, of stainless steel (excl. products cold-drawn or cold-rolled \"cold-reduced\", tubes and pipes having internal and external circular cross-sections and an external diameter of > 406,4 mm, and line pipe of a kind used for oil or gas pipelines or casing and tubing of a kind used in drilling for oil or gas)"]
[1233,"Tubes, pipes and hollow profiles, welded, of circular cross-section, of alloy steel other than stainless (excl. tubes and pipes having internal and external circular cross-sections and an external diameter of > 406,4 mm, and line pipe of a kind used for oil or gas pipelines or casing and tubing of a kind used in drilling for oil or gas)","Tubes, pipes and hollow profiles, welded, of circular cross-section, of alloy steel other than stainless (excl. tubes and pipes having internal and external circular cross-sections and an external diameter of > 406,4 mm, and line pipe of a kind used for oil or gas pipelines or casing and tubing of a kind used in drilling for oil or gas)"]
[1234,"Precision steel tubes, welded, of circular cross-section, of alloy steel other than stainless, cold-drawn or cold-rolled \"cold-reduced\"","Precision steel tubes, welded, of circular cross-section, of alloy steel other than stainless, cold-drawn or cold-rolled \"cold-reduced\""]
[1235,"Precision steel tubes, welded, of circular cross-section, of alloy steel other than stainless (excl. cold-drawn or cold-rolled)","Precision steel tubes, welded, of circular cross-section, of alloy steel other than stainless (excl. cold-drawn or cold-rolled)"]
[1236,"Tubes, pipes and hollow profiles, welded, of circular cross-section, of alloy steel other than stainless (excl. tubes and pipes having internal and external circular cross-sections and an external diameter of > 406,4 mm, and line pipe of a kind used for oil or gas pipelines or casing and tubing of a kind used in drilling for oil or gas, and precision steel tubes)","Tubes, pipes and hollow profiles, welded, of circular cross-section, of alloy steel other than stainless (excl. tubes and pipes having internal and external circular cross-sections and an external diameter of > 406,4 mm, and line pipe of a kind used for oil or gas pipelines or casing and tubing of a kind used in drilling for oil or gas, and precision steel tubes)"]
[1237,"Tubes and pipes and hollow profiles, welded, of square or rectangular cross-section, of iron or steel","Tubes and pipes and hollow profiles, welded, of square or rectangular cross-section, of iron or steel"]
[1238,"Tubes and pipes and hollow profiles, welded, of square or rectangular cross-section, of stainless steel","Tubes and pipes and hollow profiles, welded, of square or rectangular cross-section, of stainless steel"]
[1239,"Tubes and pipes and hollow profiles, welded, of square or rectangular cross-section, of iron or steel other than stainless steel, with a wall thickness of <= 2 mm","Tubes and pipes and hollow profiles, welded, of square or rectangular cross-section, of iron or steel other than stainless steel, with a wall thickness of <= 2 mm"]
[1240,"Tubes and pipes and hollow profiles, welded, of square or rectangular cross-section, of iron or steel other than stainless steel, with a wall thickness of > 2 mm","Tubes and pipes and hollow profiles, welded, of square or rectangular cross-section, of iron or steel other than stainless steel, with a wall thickness of > 2 mm"]
[1241,"Tubes, pipes and hollow profiles, welded, of non-circular cross-section, of iron or steel (excl. tubes and pipes having internal and external circular cross-sections and an external diameter of > 406,4 mm, line pipe of a kind used for oil or gas pipelines or casing and tubing of a kind used in drilling for oil or gas, and tubes and pipes and hollow profiles of square or rectangular cross-section)","Tubes, pipes and hollow profiles, welded, of non-circular cross-section, of iron or steel (excl. tubes and pipes having internal and external circular cross-sections and an external diameter of > 406,4 mm, line pipe of a kind used for oil or gas pipelines or casing and tubing of a kind used in drilling for oil or gas, and tubes and pipes and hollow profiles of square or rectangular cross-section)"]
[1242,"Tubes, pipes and hollow profiles, welded, of non-circular cross-section, of stainless steel (excl. tubes and pipes having internal and external circular cross-sections and an external diameter of > 406,4 mm, line pipe of a kind used for oil or gas pipelines or casing and tubing of a kind used in drilling for oil or gas, and tubes and pipes and hollow profiles of square or rectangular cross-section)","Tubes, pipes and hollow profiles, welded, of non-circular cross-section, of stainless steel (excl. tubes and pipes having internal and external circular cross-sections and an external diameter of > 406,4 mm, line pipe of a kind used for oil or gas pipelines or casing and tubing of a kind used in drilling for oil or gas, and tubes and pipes and hollow profiles of square or rectangular cross-section)"]
[1243,"Tubes, pipes and hollow profiles, welded, of non-circular cross-section, of iron or steel other than stainless steel (excl. tubes and pipes having internal and external circular cross-sections and an external diameter of > 406,4 mm, line pipe of a kind used for oil or gas pipelines or casing and tubing of a kind used in drilling for oil or gas, and tubes and pipes and hollow profiles of square or rectangular cross-section)","Tubes, pipes and hollow profiles, welded, of non-circular cross-section, of iron or steel other than stainless steel (excl. tubes and pipes having internal and external circular cross-sections and an external diameter of > 406,4 mm, line pipe of a kind used for oil or gas pipelines or casing and tubing of a kind used in drilling for oil or gas, and tubes and pipes and hollow profiles of square or rectangular cross-section)"]
[1244,"Tubes, pipes and hollow profiles \"e.g., open seam, riveted or similarly closed\", of iron or steel (excl. of cast iron, seamless or welded tubes and pipes and tubes and pipes having internal and external circular cross-sections and an external diameter of > 406,4 mm)","Tubes, pipes and hollow profiles \"e.g., open seam, riveted or similarly closed\", of iron or steel (excl. of cast iron, seamless or welded tubes and pipes and tubes and pipes having internal and external circular cross-sections and an external diameter of > 406,4 mm)"]
[1245,"Tube or pipe fittings \"e.g. couplings, elbows, sleeves\", of iron or steel","Tube or pipe fittings \"e.g. couplings, elbows, sleeves\", of iron or steel"]
[1246,"Tube or pipe fittings of non-malleable cast iron","Tube or pipe fittings of non-malleable cast iron"]
[1247,"Tube or pipe fittings of non-malleable cast iron, of a kind used in pressure systems","Tube or pipe fittings of non-malleable cast iron, of a kind used in pressure systems"]
[1248,"Tube or pipe fittings of non-malleable cast iron (excl. products of a kind used in pressure systems)","Tube or pipe fittings of non-malleable cast iron (excl. products of a kind used in pressure systems)"]
[1249,"Cast tube or pipe fittings of iron or steel (excl. products of non-malleable cast iron)","Cast tube or pipe fittings of iron or steel (excl. products of non-malleable cast iron)"]
[1250,"Tube or pipe fittings of cast iron (excl. of non-malleable)","Tube or pipe fittings of cast iron (excl. of non-malleable)"]
[1251,"Cast tube or pipe fittings of steel","Cast tube or pipe fittings of steel"]
[1252,"Flanges of stainless steel (excl. cast products)","Flanges of stainless steel (excl. cast products)"]
[1253,"Threaded elbows, bends and sleeves of stainless steel (excl. cast products)","Threaded elbows, bends and sleeves of stainless steel (excl. cast products)"]
[1254,"Sleeves, of stainless steel, threaded (excl. cast products)","Sleeves, of stainless steel, threaded (excl. cast products)"]
[1255,"Elbows and bends, of stainless steel, threaded (excl. cast products)","Elbows and bends, of stainless steel, threaded (excl. cast products)"]
[1256,"Butt welding tube or pipe fittings of stainless steel (excl. cast products)","Butt welding tube or pipe fittings of stainless steel (excl. cast products)"]
[1257,"Butt welding elbows and bends of stainless steel (excl. cast products)","Butt welding elbows and bends of stainless steel (excl. cast products)"]
[1258,"Butt welding tube or pipe fittings of stainless steel (excl. cast products and elbows and bends)","Butt welding tube or pipe fittings of stainless steel (excl. cast products and elbows and bends)"]
[1259,"Tube or pipe fittings of stainless steel (excl. cast products, flanges, threaded elbows, bends and sleeves and butt weldings fittings)","Tube or pipe fittings of stainless steel (excl. cast products, flanges, threaded elbows, bends and sleeves and butt weldings fittings)"]
[1260,"Threaded tube or pipe fittings of stainless steel (excl. cast products, flanges, elbows, bends and sleeves)","Threaded tube or pipe fittings of stainless steel (excl. cast products, flanges, elbows, bends and sleeves)"]
[1261,"Tube or pipe fittings of stainless steel (excl. cast, threaded, butt welding fittings and flanges)","Tube or pipe fittings of stainless steel (excl. cast, threaded, butt welding fittings and flanges)"]
[1262,"Flanges of iron or steel (excl. cast or stainless products)","Flanges of iron or steel (excl. cast or stainless products)"]
[1263,"Threaded elbows, bends and sleeves, of stainless steel (excl. cast or stainless products)","Threaded elbows, bends and sleeves, of stainless steel (excl. cast or stainless products)"]
[1264,"Sleeves of iron or steel, threaded (excl. cast or of stainless steel)","Sleeves of iron or steel, threaded (excl. cast or of stainless steel)"]
[1265,"Elbows and bends, of iron or steel, threaded (excl. cast or of stainless steel)","Elbows and bends, of iron or steel, threaded (excl. cast or of stainless steel)"]
[1266,"Butt welding fittings of iron or steel (excl. cast iron or stainless steel products, and flanges)","Butt welding fittings of iron or steel (excl. cast iron or stainless steel products, and flanges)"]
[1267,"Butt welding elbows and bends, of iron or steel, with greatest external diameter <= 609,6 mm (excl. cast iron or stainless steel products)","Butt welding elbows and bends, of iron or steel, with greatest external diameter <= 609,6 mm (excl. cast iron or stainless steel products)"]
[1268,"Butt welding fittings of iron or steel, with greatest external diameter <= 609,6 mm (excl. cast iron or stainless steel products, elbows, bends and flanges)","Butt welding fittings of iron or steel, with greatest external diameter <= 609,6 mm (excl. cast iron or stainless steel products, elbows, bends and flanges)"]
[1269,"Butt welding elbows and bends, of iron or steel, with greatest external diameter > 609,6 mm (excl. cast iron or stainless steel products)","Butt welding elbows and bends, of iron or steel, with greatest external diameter > 609,6 mm (excl. cast iron or stainless steel products)"]
[1270,"Butt welding fittings of iron or steel, with greatest external diameter > 609,6 mm (excl. cast iron or stainless steel products, elbows, bends and flanges)","Butt welding fittings of iron or steel, with greatest external diameter > 609,6 mm (excl. cast iron or stainless steel products, elbows, bends and flanges)"]
[1271,"Tube or pipe fittings, of iron or steel (excl. cast iron or stainless steel products; flanges; threaded elbows, bends and sleeves; butt welding fittings)","Tube or pipe fittings, of iron or steel (excl. cast iron or stainless steel products; flanges; threaded elbows, bends and sleeves; butt welding fittings)"]
[1272,"Threaded tube or pipe fittings, of iron or steel (excl. cast iron or stainless steel products, flanges, elbows, bends and sleeves)","Threaded tube or pipe fittings, of iron or steel (excl. cast iron or stainless steel products, flanges, elbows, bends and sleeves)"]
[1273,"Tube or pipe fittings, of iron or steel (excl. of cast iron or stainless steel, threaded, butt welding fittings, and flanges)","Tube or pipe fittings, of iron or steel (excl. of cast iron or stainless steel, threaded, butt welding fittings, and flanges)"]
[1274,"Structures and parts of structures \"e.g., bridges and bridge-sections, lock-gates, towers, lattice masts, roofs, roofing frameworks, doors and windows and their frames and thresholds for doors, shutters, balustrades, pillars and columns\", of iron or steel; plates, rods, angles, shapes, sections, tubes and the like, prepared for use in structures, of iron or steel (excl. prefabricated buildings of heading 9406)","Structures and parts of structures \"e.g., bridges and bridge-sections, lock-gates, towers, lattice masts, roofs, roofing frameworks, doors and windows and their frames and thresholds for doors, shutters, balustrades, pillars and columns\", of iron or steel; plates, rods, angles, shapes, sections, tubes and the like, prepared for use in structures, of iron or steel (excl. prefabricated buildings of heading 9406)"]
[1275,"Bridges and bridge-sections, of iron or steel","Bridges and bridge-sections, of iron or steel"]
[1276,"Towers and lattice masts, of iron or steel","Towers and lattice masts, of iron or steel"]
[1277,"Doors, windows and their frames and thresholds for doors, of iron or steel","Doors, windows and their frames and thresholds for doors, of iron or steel"]
[1278,"Equipment for scaffolding, shuttering, propping or pit-propping (excl. composite sheetpiling products and formwork panels for poured-in-place concrete, which have the characteristics of moulds)","Equipment for scaffolding, shuttering, propping or pit-propping (excl. composite sheetpiling products and formwork panels for poured-in-place concrete, which have the characteristics of moulds)"]
[1279,"Structures and parts of structures, of iron or steel, n.e.s. (excl. bridges and bridge-sections, towers and lattice masts, doors and windows and their frames, thresholds for doors, props and similar equipment for scaffolding, shuttering, propping or pit-propping)","Structures and parts of structures, of iron or steel, n.e.s. (excl. bridges and bridge-sections, towers and lattice masts, doors and windows and their frames, thresholds for doors, props and similar equipment for scaffolding, shuttering, propping or pit-propping)"]
[1280,"Panels comprising two walls of profiled \"ribbed\" sheet, of iron or steel, with an insulating core","Panels comprising two walls of profiled \"ribbed\" sheet, of iron or steel, with an insulating core"]
[1281,"Structures and parts of structures, of iron or steel, solely or principally of sheet, n.e.s. (excl. doors and windows and their frames, and panels comprising two walls of profiled \"ribbed\" sheet, of iron or steel, with an insulating core)","Structures and parts of structures, of iron or steel, solely or principally of sheet, n.e.s. (excl. doors and windows and their frames, and panels comprising two walls of profiled \"ribbed\" sheet, of iron or steel, with an insulating core)"]
[1282,"Structures and parts of structures of iron or steel, n.e.s. (excl. bridges and bridge-sections; towers; lattice masts; doors, windows and their frames and thresholds; equipment for scaffolding, shuttering, propping or pit-propping, and products made principally of sheet)","Structures and parts of structures of iron or steel, n.e.s. (excl. bridges and bridge-sections; towers; lattice masts; doors, windows and their frames and thresholds; equipment for scaffolding, shuttering, propping or pit-propping, and products made principally of sheet)"]
[1283,"Reservoirs, tanks, vats and similar containers, of iron or steel, for any material \"other than compressed or liquefied gas\", of a capacity of > 300 l, not fitted with mechanical or thermal equipment, whether or not lined or heat-insulated (excl. containers specifically constructed or equipped for one or more types of transport)","Reservoirs, tanks, vats and similar containers, of iron or steel, for any material \"other than compressed or liquefied gas\", of a capacity of > 300 l, not fitted with mechanical or thermal equipment, whether or not lined or heat-insulated (excl. containers specifically constructed or equipped for one or more types of transport)"]
[1284,"Reservoirs, tanks, vats and similar containers, of iron or steel, for gases other than compressed or liquefied gas, of a capacity of > 300 l (excl. containers fitted with mechanical or thermal equipment and containers specifically constructed or equipped for one or more types of transport)","Reservoirs, tanks, vats and similar containers, of iron or steel, for gases other than compressed or liquefied gas, of a capacity of > 300 l (excl. containers fitted with mechanical or thermal equipment and containers specifically constructed or equipped for one or more types of transport)"]
[1285,"Reservoirs, tanks, vats and similar containers, of iron or steel, for liquids, lined or heat-insulated and of a capacity of > 300 l (excl. containers fitted with mechanical or thermal equipment and containers specifically constructed or equipped for one or more types of transport)","Reservoirs, tanks, vats and similar containers, of iron or steel, for liquids, lined or heat-insulated and of a capacity of > 300 l (excl. containers fitted with mechanical or thermal equipment and containers specifically constructed or equipped for one or more types of transport)"]
[1286,"Reservoirs, tanks, vats and similar containers, of iron or steel, for liquids, of a capacity of > 100.000 l (excl. containers lined or heat-insulated or fitted with mechanical or thermal equipment and containers specifically constructed or equipped for one or more types of transport)","Reservoirs, tanks, vats and similar containers, of iron or steel, for liquids, of a capacity of > 100.000 l (excl. containers lined or heat-insulated or fitted with mechanical or thermal equipment and containers specifically constructed or equipped for one or more types of transport)"]
[1287,{"$f":"IFERROR(INDEX(C1291:M1291,$A$4-2),$C1291)","v":"Reservoirs, tanks, vats and similar containers, of iron or steel, for liquids, of a capacity of <= 100.000 l but > 300 l (excl. containers lined or heat-insulated or fitted with mechanical or thermal equipment and containers specifically constructed or equipped for one or more types of transport)"},"Reservoirs, tanks, vats and similar containers, of iron or steel, for liquids, of a capacity of <= 100.000 l but > 300 l (excl. containers lined or heat-insulated or fitted with mechanical or thermal equipment and containers specifically constructed or equipped for one or more types of transport)"]
[1288,"Reservoirs, tanks, vats and similar containers, of iron or steel, for solids, of a capacity of > 300 l (excl. containers lined or heat-insulated or fitted with mechanical or thermal equipment and containers specifically constructed or equipped for one or more types of transport)","Reservoirs, tanks, vats and similar containers, of iron or steel, for solids, of a capacity of > 300 l (excl. containers lined or heat-insulated or fitted with mechanical or thermal equipment and containers specifically constructed or equipped for one or more types of transport)"]
[1289,"Tanks, casks, drums, cans, boxes and similar containers, of iron or steel, for any material \"other than compressed or liquefied gas\", of a capacity of <= 300 l, not fitted with mechanical or thermal equipment, whether or not lined or heat-insulated, n.e.s.","Tanks, casks, drums, cans, boxes and similar containers, of iron or steel, for any material \"other than compressed or liquefied gas\", of a capacity of <= 300 l, not fitted with mechanical or thermal equipment, whether or not lined or heat-insulated, n.e.s."]
[1290,"Tanks, casks, drums, cans, boxes and similar containers, of iron or steel, for any material, of a capacity of >= 50 l but <= 300 l, n.e.s. (excl. containers for compressed or liquefied gas, or containers fitted with mechanical or thermal equipment)","Tanks, casks, drums, cans, boxes and similar containers, of iron or steel, for any material, of a capacity of >= 50 l but <= 300 l, n.e.s. (excl. containers for compressed or liquefied gas, or containers fitted with mechanical or thermal equipment)"]
[1291,"Cans of iron or steel, of a capacity of < 50 l, which are to be closed by soldering or crimping (excl. containers for compressed or liquefied gas)","Cans of iron or steel, of a capacity of < 50 l, which are to be closed by soldering or crimping (excl. containers for compressed or liquefied gas)"]
[1292,"Cans of iron or steel, of a capacity of < 50 l, which are to be closed by soldering or crimping, of a kind used for preserving food","Cans of iron or steel, of a capacity of < 50 l, which are to be closed by soldering or crimping, of a kind used for preserving food"]
[1293,"Cans of iron or steel, of a capacity of < 50 l, which are to be closed by soldering or crimping, of a kind used for preserving drink","Cans of iron or steel, of a capacity of < 50 l, which are to be closed by soldering or crimping, of a kind used for preserving drink"]
[1294,"Cans of iron or steel, of a capacity of < 50 l, which are to be closed by soldering or crimping, of a wall thickness of < 0,5 mm (excl. cans for compressed or liquefied gas, and cans of a kind used for preserving food and drink)","Cans of iron or steel, of a capacity of < 50 l, which are to be closed by soldering or crimping, of a wall thickness of < 0,5 mm (excl. cans for compressed or liquefied gas, and cans of a kind used for preserving food and drink)"]
[1295,"Cans of iron or steel, of a capacity of < 50 l, which are to be closed by soldering or crimping, of a wall thickness of >= 0,5 mm (excl. cans for compressed or liquefied gas, and cans of a kind used for preserving food and drink)","Cans of iron or steel, of a capacity of < 50 l, which are to be closed by soldering or crimping, of a wall thickness of >= 0,5 mm (excl. cans for compressed or liquefied gas, and cans of a kind used for preserving food and drink)"]
[1296,"Tanks, casks, drums, cans, boxes and similar containers, of iron or steel, for any material, of a capacity of < 50 l, n.e.s. (excl. containers for compressed or liquefied gas, or containers fitted with mechanical or thermal equipment, and cans which are to be closed by soldering or crimping)","Tanks, casks, drums, cans, boxes and similar containers, of iron or steel, for any material, of a capacity of < 50 l, n.e.s. (excl. containers for compressed or liquefied gas, or containers fitted with mechanical or thermal equipment, and cans which are to be closed by soldering or crimping)"]
[1297,"Tanks, casks, drums, cans, boxes and similar containers, of iron or steel, for any material, of a capacity of < 50 l and of a wall thickness of < 0,5 mm, n.e.s. (excl. containers for compressed or liquefied gas, or containers fitted with mechanical or thermal equipment, and cans which are to be closed by soldering or crimping)","Tanks, casks, drums, cans, boxes and similar containers, of iron or steel, for any material, of a capacity of < 50 l and of a wall thickness of < 0,5 mm, n.e.s. (excl. containers for compressed or liquefied gas, or containers fitted with mechanical or thermal equipment, and cans which are to be closed by soldering or crimping)"]
[1298,"Tanks, casks, drums, cans, boxes and similar containers, of iron or steel, for any material, of a capacity of < 50 l and of a wall thickness of >= 0,5 mm, n.e.s. (excl. containers for compressed or liquefied gas, or containers fitted with mechanical or thermal equipment, and cans which are to be closed by soldering or crimping)","Tanks, casks, drums, cans, boxes and similar containers, of iron or steel, for any material, of a capacity of < 50 l and of a wall thickness of >= 0,5 mm, n.e.s. (excl. containers for compressed or liquefied gas, or containers fitted with mechanical or thermal equipment, and cans which are to be closed by soldering or crimping)"]
[1299,"Containers of iron or steel, for compressed or liquefied gas (excl. containers specifically constructed or equipped for one or more types of transport)","Containers of iron or steel, for compressed or liquefied gas (excl. containers specifically constructed or equipped for one or more types of transport)"]
[1300,"Containers of iron or steel, seamless, for compressed or liquefied gas, for a pressure >= 165 bar, of a capacity < 20 l (excl. containers specifically constructed or equipped for one or more types of transport)","Containers of iron or steel, seamless, for compressed or liquefied gas, for a pressure >= 165 bar, of a capacity < 20 l (excl. containers specifically constructed or equipped for one or more types of transport)"]
[1301,"Containers of iron or steel, seamless, for compressed or liquefied gas, for a pressure >= 165 bar, of a capacity >= 20 l to <= 50 l (excl. containers specifically constructed or equipped for one or more types of transport)","Containers of iron or steel, seamless, for compressed or liquefied gas, for a pressure >= 165 bar, of a capacity >= 20 l to <= 50 l (excl. containers specifically constructed or equipped for one or more types of transport)"]
[1302,"Containers of iron or steel, seamless, for compressed or liquefied gas, for a pressure >= 165 bar, of a capacity > 50 l (excl. containers specifically constructed or equipped for one or more types of transport)","Containers of iron or steel, seamless, for compressed or liquefied gas, for a pressure >= 165 bar, of a capacity > 50 l (excl. containers specifically constructed or equipped for one or more types of transport)"]
[1303,"Containers of iron or steel, seamless, for compressed or liquefied gas, for a pressure < 165 bar (excl. containers specifically constructed or equipped for one or more types of transport)","Containers of iron or steel, seamless, for compressed or liquefied gas, for a pressure < 165 bar (excl. containers specifically constructed or equipped for one or more types of transport)"]
[1304,"Containers of iron or steel, seamless, for compressed or liquefied gas, of a capacity of < 1.000 l (excl. seamless containers and containers specifically constructed or equipped for one or more types of transport)","Containers of iron or steel, seamless, for compressed or liquefied gas, of a capacity of < 1.000 l (excl. seamless containers and containers specifically constructed or equipped for one or more types of transport)"]
[1305,"Containers of iron or steel, seamless, for compressed or liquefied gas, of a capacity of >= 1.000 l (excl. seamless containers and containers specifically constructed or equipped for one or more types of transport)","Containers of iron or steel, seamless, for compressed or liquefied gas, of a capacity of >= 1.000 l (excl. seamless containers and containers specifically constructed or equipped for one or more types of transport)"]
[1306,"Screws, bolts, nuts, coach screws, screw hooks, rivets, cotters, cotter pins, washers, incl. spring washers, and similar articles, of iron or steel (excl. lag screws, stoppers, plugs and the like, threaded)","Screws, bolts, nuts, coach screws, screw hooks, rivets, cotters, cotter pins, washers, incl. spring washers, and similar articles, of iron or steel (excl. lag screws, stoppers, plugs and the like, threaded)"]
[1307,"Coach screws of iron or steel","Coach screws of iron or steel"]
[1308,"Wood screws of iron or steel (excl. coach screws)","Wood screws of iron or steel (excl. coach screws)"]
[1309,"Wood screws of stainless steel (excl. coach screws)","Wood screws of stainless steel (excl. coach screws)"]
[1310,"Wood screws of iron or steel other than stainless (excl. coach screws)","Wood screws of iron or steel other than stainless (excl. coach screws)"]
[1311,"Screw hooks and screw rings, of iron or steel","Screw hooks and screw rings, of iron or steel"]
[1312,"Self-tapping screws, of iron or steel (excl. wood screws)","Self-tapping screws, of iron or steel (excl. wood screws)"]
[1313,"Self-tapping screws, of stainless steel (excl. wood screws)","Self-tapping screws, of stainless steel (excl. wood screws)"]
[1314,"Spaced-thread screws of iron or steel other than stainless","Spaced-thread screws of iron or steel other than stainless"]
[1315,"Self-tapping screws of iron or steel other than stainless (excl. spaced-thread screws and wood screws)","Self-tapping screws of iron or steel other than stainless (excl. spaced-thread screws and wood screws)"]
[1316,"Threaded screws and bolts, of iron or steel, whether or not with their nuts and washers (excl. coach screws and other wood screws, screw hooks and screw rings, self-tapping screws, lag screws, stoppers, plugs and the like, threaded)","Threaded screws and bolts, of iron or steel, whether or not with their nuts and washers (excl. coach screws and other wood screws, screw hooks and screw rings, self-tapping screws, lag screws, stoppers, plugs and the like, threaded)"]
[1317,"Screws and bolts, of iron or steel \"whether or not with their nuts and washers\", for fixing railway track construction material (excl. coach screws)","Screws and bolts, of iron or steel \"whether or not with their nuts and washers\", for fixing railway track construction material (excl. coach screws)"]
[1318,"Screws and bolts, of stainless steel \"whether or not with their nuts and washers\", without heads (excl. screws and bolts for fixing railway track construction material)","Screws and bolts, of stainless steel \"whether or not with their nuts and washers\", without heads (excl. screws and bolts for fixing railway track construction material)"]
[1319,"Screws and bolts, of iron or steel other than stainless \"whether or not with their nuts and washers\", without heads, with a tensile strength of < 800 MPa (excl. screws and bolts for fixing railway track construction material)","Screws and bolts, of iron or steel other than stainless \"whether or not with their nuts and washers\", without heads, with a tensile strength of < 800 MPa (excl. screws and bolts for fixing railway track construction material)"]
[1320,"Screws and bolts, of iron or steel other than stainless \"whether or not with their nuts and washers\", without heads, with a tensile strength of >= 800 MPa (excl. screws and bolts for fixing railway track construction material)","Screws and bolts, of iron or steel other than stainless \"whether or not with their nuts and washers\", without heads, with a tensile strength of >= 800 MPa (excl. screws and bolts for fixing railway track construction material)"]
[1321,"Screws and bolts, of stainless steel \"whether or not with their nuts and washers\", with slotted or cross-recessed heads (excl. wood screws and self-tapping screws)","Screws and bolts, of stainless steel \"whether or not with their nuts and washers\", with slotted or cross-recessed heads (excl. wood screws and self-tapping screws)"]
[1322,"Screws and bolts, of iron or steel other than stainless \"whether or not with their nuts and washers\", with slotted or cross-recessed heads (excl. wood screws and self-tapping screws)","Screws and bolts, of iron or steel other than stainless \"whether or not with their nuts and washers\", with slotted or cross-recessed heads (excl. wood screws and self-tapping screws)"]
[1323,"Hexagonal-socket head screws and bolts, of stainless steel \"whether or not with their nuts and washers\" (excl. wood screws, self-tapping screws and screws and bolts for fixing railway track construction material)","Hexagonal-socket head screws and bolts, of stainless steel \"whether or not with their nuts and washers\" (excl. wood screws, self-tapping screws and screws and bolts for fixing railway track construction material)"]
[1324,"Hexagonal-socket head screws and bolts, of iron or steel other than stainless \"whether or not with their nuts and washers\" (excl. wood screws, self-tapping screws and screws and bolts for fixing railway track construction material)","Hexagonal-socket head screws and bolts, of iron or steel other than stainless \"whether or not with their nuts and washers\" (excl. wood screws, self-tapping screws and screws and bolts for fixing railway track construction material)"]
[1325,"Hexagon screws and bolts, of stainless steel \"whether or not with their nuts and washers\" (excl. with socket head, wood screws, self-tapping screws and screws and bolts for fixing railway track construction material)","Hexagon screws and bolts, of stainless steel \"whether or not with their nuts and washers\" (excl. with socket head, wood screws, self-tapping screws and screws and bolts for fixing railway track construction material)"]
[1326,"Hexagon screws and bolts, of iron or steel other than stainless \"whether or not with their nuts and washers\", with a tensile strength of < 800 MPa (excl. with socket head, wood screws, self-tapping screws and screws and bolts for fixing railway track construction material)","Hexagon screws and bolts, of iron or steel other than stainless \"whether or not with their nuts and washers\", with a tensile strength of < 800 MPa (excl. with socket head, wood screws, self-tapping screws and screws and bolts for fixing railway track construction material)"]
[1327,"Hexagon screws and bolts, of iron or steel other than stainless \"whether or not with their nuts and washers\", with a tensile strength of => 800 MPa (excl. with socket head, wood screws, self-tapping screws and screws and bolts for fixing railway track construction material)","Hexagon screws and bolts, of iron or steel other than stainless \"whether or not with their nuts and washers\", with a tensile strength of => 800 MPa (excl. with socket head, wood screws, self-tapping screws and screws and bolts for fixing railway track construction material)"]
[1328,"Screws and bolts, of iron or steel \"whether or not with their nuts and washers\", with heads (excl. with slotted, cross-recessed or hexagonal head; wood screws, self-tapping screws and screws and bolts for fixing railway track construction material, screw hooks and screw rings)","Screws and bolts, of iron or steel \"whether or not with their nuts and washers\", with heads (excl. with slotted, cross-recessed or hexagonal head; wood screws, self-tapping screws and screws and bolts for fixing railway track construction material, screw hooks and screw rings)"]
[1329,"Nuts of iron or steel","Nuts of iron or steel"]
[1330,"Blind rivet nuts of stainless steel","Blind rivet nuts of stainless steel"]
[1331,"Nuts of stainless steel (excl. blind rivet nuts)","Nuts of stainless steel (excl. blind rivet nuts)"]
[1332,"Blind rivet nuts of iron or steel other than stainless","Blind rivet nuts of iron or steel other than stainless"]
[1333,"Self-locking nuts of iron or steel other than stainless","Self-locking nuts of iron or steel other than stainless"]
[1334,"Nuts of iron or steel other than stainless, with an inside diameter <= 12 mm (excl. blind rivet nuts and self-locking nuts)","Nuts of iron or steel other than stainless, with an inside diameter <= 12 mm (excl. blind rivet nuts and self-locking nuts)"]
[1335,"Nuts of iron or steel other than stainless, with an inside diameter > 12 mm (excl. blind rivet nuts and self-locking nuts)","Nuts of iron or steel other than stainless, with an inside diameter > 12 mm (excl. blind rivet nuts and self-locking nuts)"]
[1336,"Threaded articles, of iron or steel, n.e.s.","Threaded articles, of iron or steel, n.e.s."]
[1337,"Spring washers and other lock washers, of iron or steel","Spring washers and other lock washers, of iron or steel"]
[1338,"Washers of iron or steel (excl. spring washers and other lock washers)","Washers of iron or steel (excl. spring washers and other lock washers)"]
[1339,"Rivets of iron or steel (excl. tubular and bifurcated rivets for particular uses)","Rivets of iron or steel (excl. tubular and bifurcated rivets for particular uses)"]
[1340,"Cotters and cotter pins, of iron or steel","Cotters and cotter pins, of iron or steel"]
[1341,"Non-threaded articles, of iron or steel","Non-threaded articles, of iron or steel"]
[1342,"Articles of iron or steel, n.e.s. (excl. cast articles)","Articles of iron or steel, n.e.s. (excl. cast articles)"]
[1343,"Grinding balls and similar articles for mills, of iron or steel, forged or stamped, but not further worked","Grinding balls and similar articles for mills, of iron or steel, forged or stamped, but not further worked"]
[1344,"Articles of iron or steel, forged or stamped, but not further worked, n.e.s. (excl. grinding balls and similar articles for mills)","Articles of iron or steel, forged or stamped, but not further worked, n.e.s. (excl. grinding balls and similar articles for mills)"]
[1345,"Articles of iron or steel, open-die forged, but not further worked, n.e.s. (excl. grinding balls and similar articles for mills)","Articles of iron or steel, open-die forged, but not further worked, n.e.s. (excl. grinding balls and similar articles for mills)"]
[1346,"Articles of iron or steel, closed-die forged or stamped, but not further worked, n.e.s. (excl. grinding balls and similar articles for mills)","Articles of iron or steel, closed-die forged or stamped, but not further worked, n.e.s. (excl. grinding balls and similar articles for mills)"]
[1347,"Articles of iron or steel wire, n.e.s.","Articles of iron or steel wire, n.e.s."]
[1348,"Articles of iron or steel, n.e.s. (excl. cast articles or articles of iron or steel wire)","Articles of iron or steel, n.e.s. (excl. cast articles or articles of iron or steel wire)"]
[1349,"Ladders and steps, of iron or steel","Ladders and steps, of iron or steel"]
[1350,"Pallets and similar platforms for handling goods, of iron or steel","Pallets and similar platforms for handling goods, of iron or steel"]
[1351,{"$f":"IFERROR(INDEX(C1355:M1355,$A$4-2),$C1355)","v":"Reels for cables, piping and the like, of iron or steel"},"Reels for cables, piping and the like, of iron or steel"]
[1352,"Ventilators, non-mechanical, guttering, hooks and like articles used in the building industry, n.e.s., of iron or steel","Ventilators, non-mechanical, guttering, hooks and like articles used in the building industry, n.e.s., of iron or steel"]
[1353,"Articles of iron or steel, open-die forged, n.e.s.","Articles of iron or steel, open-die forged, n.e.s."]
[1354,"Articles of iron or steel, closed-die forged, n.e.s.","Articles of iron or steel, closed-die forged, n.e.s."]
[1355,"Sintered articles of iron or steel, n.e.s.","Sintered articles of iron or steel, n.e.s."]
[1356,"Articles of iron or steel, n.e.s.","Articles of iron or steel, n.e.s."]
[1357,"Aluminium, not alloyed, unwrought","Aluminium, not alloyed, unwrought"]
[1358,"Unwrought aluminium alloys","Unwrought aluminium alloys"]
[1359,"Unwrought aluminium alloys in the form of slabs or billets","Unwrought aluminium alloys in the form of slabs or billets"]
[1360,"Unwrought aluminium alloys (excl. slabs and billets)","Unwrought aluminium alloys (excl. slabs and billets)"]
[1361,"Powder and flakes, of aluminium (excl. pellets of aluminium, and spangles)","Powder and flakes, of aluminium (excl. pellets of aluminium, and spangles)"]
[1362,"Powders of aluminium, of non-lamellar structure (excl. pellets of aluminium)","Powders of aluminium, of non-lamellar structure (excl. pellets of aluminium)"]
[1363,"Powders of aluminium, of lamellar structure, and flakes of aluminium (excl. pellets of aluminium, and spangles)","Powders of aluminium, of lamellar structure, and flakes of aluminium (excl. pellets of aluminium, and spangles)"]
[1364,"Bars, rods and profiles, of aluminium, n.e.s.","Bars, rods and profiles, of aluminium, n.e.s."]
[1365,"Bars, rods and profiles, of non-alloy aluminium, n.e.s.","Bars, rods and profiles, of non-alloy aluminium, n.e.s."]
[1366,"Bars, rods and profiles, of non-alloy aluminium","Bars, rods and profiles, of non-alloy aluminium"]
[1367,"Profiles of non-alloy aluminium, n.e.s.","Profiles of non-alloy aluminium, n.e.s."]
[1368,"Hollow profiles of aluminium alloys, n.e.s.","Hollow profiles of aluminium alloys, n.e.s."]
[1369,"Bars, rods and solid profiles, of aluminium alloys, n.e.s.","Bars, rods and solid profiles, of aluminium alloys, n.e.s."]
[1370,"Bars and rods of aluminium alloys","Bars and rods of aluminium alloys"]
[1371,"Solid profiles, of aluminium alloys, n.e.s.","Solid profiles, of aluminium alloys, n.e.s."]
[1372,"Aluminium wire (excl. stranded wire, cables, plaited bands and the like and other articles of heading 7614, electrically insulated wires, and strings for musical instruments)","Aluminium wire (excl. stranded wire, cables, plaited bands and the like and other articles of heading 7614, electrically insulated wires, and strings for musical instruments)"]
[1373,"Wire of non-alloy aluminium, with a maximum cross-sectional dimension of > 7 mm (excl. stranded wire, cables, plaited bands and the like and other articles of heading 7614, and electrically insulated wires)","Wire of non-alloy aluminium, with a maximum cross-sectional dimension of > 7 mm (excl. stranded wire, cables, plaited bands and the like and other articles of heading 7614, and electrically insulated wires)"]
[1374,"Wire of non-alloy aluminium, with a maximum cross-sectional dimension of <= 7 mm (other than stranded wires, cables, ropes and other articles of heading 7614, electrically insulated wires, strings for musical instruments)","Wire of non-alloy aluminium, with a maximum cross-sectional dimension of <= 7 mm (other than stranded wires, cables, ropes and other articles of heading 7614, electrically insulated wires, strings for musical instruments)"]
[1375,"Wire of aluminium alloys, with a maximum cross-sectional dimension of > 7 mm (excl. stranded wire, cables, plaited bands and the like and other articles of heading 7614, and electrically insulated wires)","Wire of aluminium alloys, with a maximum cross-sectional dimension of > 7 mm (excl. stranded wire, cables, plaited bands and the like and other articles of heading 7614, and electrically insulated wires)"]
[1376,"Wire, of aluminium alloys, having a maximum cross-sectional dimension of <= 7 mm (other than stranded wires, cables, ropes and other articles of heading 7614, electrically insulated wires, strings for musical instruments)","Wire, of aluminium alloys, having a maximum cross-sectional dimension of <= 7 mm (other than stranded wires, cables, ropes and other articles of heading 7614, electrically insulated wires, strings for musical instruments)"]
[1377,"Plates, sheets and strip, of aluminium, of a thickness of > 0,2 mm (excl. expanded plates, sheets and strip)","Plates, sheets and strip, of aluminium, of a thickness of > 0,2 mm (excl. expanded plates, sheets and strip)"]
[1378,"Plates, sheets and strip, of non-alloy aluminium, of a thickness of > 0,2 mm, square or rectangular (excl. expanded plates, sheets and strip)","Plates, sheets and strip, of non-alloy aluminium, of a thickness of > 0,2 mm, square or rectangular (excl. expanded plates, sheets and strip)"]
[1379,"Aluminium Composite Panel, of non-alloy aluminium, of a thickness of > 0,2 mm","Aluminium Composite Panel, of non-alloy aluminium, of a thickness of > 0,2 mm"]
[1380,"Plates, sheets and strip, of non-alloy aluminium, of a thickness of > 0,2 mm, square or rectangular, painted, varnished or coated with plastics (excl. Aluminium Composite Panel)","Plates, sheets and strip, of non-alloy aluminium, of a thickness of > 0,2 mm, square or rectangular, painted, varnished or coated with plastics (excl. Aluminium Composite Panel)"]
[1381,"Plates, sheets and strip, of non-alloy aluminium, of a thickness of > 0,2 mm but < 3 mm, square or rectangular (excl. such products painted, varnished or coated with plastics, and expanded plates, sheets and strip)","Plates, sheets and strip, of non-alloy aluminium, of a thickness of > 0,2 mm but < 3 mm, square or rectangular (excl. such products painted, varnished or coated with plastics, and expanded plates, sheets and strip)"]
[1382,"Plates, sheets and strip, of non-alloy aluminium, of a thickness of >= 3 mm but < 6 mm, square or rectangular (excl. such products painted, varnished or coated with plastics)","Plates, sheets and strip, of non-alloy aluminium, of a thickness of >= 3 mm but < 6 mm, square or rectangular (excl. such products painted, varnished or coated with plastics)"]
[1383,"Plates, sheets and strip, of non-alloy aluminium, of a thickness of >= 6 mm, square or rectangular (excl. such products painted, varnished or coated with plastics)","Plates, sheets and strip, of non-alloy aluminium, of a thickness of >= 6 mm, square or rectangular (excl. such products painted, varnished or coated with plastics)"]
[1384,"Plates, sheets and strip, of aluminium alloys, of a thickness of > 0,2 mm, square or rectangular (excl. expanded plates, sheets and strip)","Plates, sheets and strip, of aluminium alloys, of a thickness of > 0,2 mm, square or rectangular (excl. expanded plates, sheets and strip)"]
[1385,"Beverage can body stock, of aluminium alloys, of a thickness of > 0,2 mm","Beverage can body stock, of aluminium alloys, of a thickness of > 0,2 mm"]
[1386,"Beverage can end stock and tab stock, of aluminium alloys, of a thickness of > 0,2 mm","Beverage can end stock and tab stock, of aluminium alloys, of a thickness of > 0,2 mm"]
[1387,"Aluminium Composite Panel, of aluminium alloys, of a thickness of > 0,2 mm","Aluminium Composite Panel, of aluminium alloys, of a thickness of > 0,2 mm"]
[1388,"Plates, sheets and strip, of aluminium alloys, of a thickness of > 0,2 mm, square or rectangular, painted, varnished or coated with plastics (excl. beverage can body stock, end stock and tab stock, and Aluminium Composite Panel)","Plates, sheets and strip, of aluminium alloys, of a thickness of > 0,2 mm, square or rectangular, painted, varnished or coated with plastics (excl. beverage can body stock, end stock and tab stock, and Aluminium Composite Panel)"]
[1389,"Plates, sheets and strip, of aluminium alloys, of a thickness of > 0,2 mm but < 3 mm, square or rectangular (excl. painted, varnished or coated with plastics, expanded plates, sheets and strip, beverage can body stock, end stock and tab stock)","Plates, sheets and strip, of aluminium alloys, of a thickness of > 0,2 mm but < 3 mm, square or rectangular (excl. painted, varnished or coated with plastics, expanded plates, sheets and strip, beverage can body stock, end stock and tab stock)"]
[1390,"Plates, sheets and strip, of aluminium alloys, of a thickness of >= 3 mm but < 6 mm, square or rectangular (excl. such products painted, varnished or coated with plastics)","Plates, sheets and strip, of aluminium alloys, of a thickness of >= 3 mm but < 6 mm, square or rectangular (excl. such products painted, varnished or coated with plastics)"]
[1391,"Plates, sheets and strip, of aluminium alloys, of a thickness of >= 6 mm, square or rectangular (excl. such products painted, varnished or coated with plastics)","Plates, sheets and strip, of aluminium alloys, of a thickness of >= 6 mm, square or rectangular (excl. such products painted, varnished or coated with plastics)"]
[1392,"Plates, sheets and strip, of non-alloy aluminium, of a thickness of > 0,2 mm (other than square or rectangular)","Plates, sheets and strip, of non-alloy aluminium, of a thickness of > 0,2 mm (other than square or rectangular)"]
[1393,"Plates, sheets and strip, of aluminium alloys, of a thickness of > 0,2 mm (other than square or rectangular)","Plates, sheets and strip, of aluminium alloys, of a thickness of > 0,2 mm (other than square or rectangular)"]
[1394,"Aluminium foil, \"whether or not printed or backed with paper, paperboard, plastics or similar backing materials\", of a thickness \"excl. any backing\" of <= 0,2 mm (excl. stamping foils of heading 3212, christmas tree decorating material)","Aluminium foil, \"whether or not printed or backed with paper, paperboard, plastics or similar backing materials\", of a thickness \"excl. any backing\" of <= 0,2 mm (excl. stamping foils of heading 3212, christmas tree decorating material)"]
[1395,"Aluminium foil, not backed, rolled but not further worked, of a thickness of <= 0,2 mm (excl. stamping foils of heading 3212, and foil made up as christmas tree decorating material)","Aluminium foil, not backed, rolled but not further worked, of a thickness of <= 0,2 mm (excl. stamping foils of heading 3212, and foil made up as christmas tree decorating material)"]
[1396,"Aluminium foil, not backed, rolled but not further worked, of a thickness of < 0,021 mm, in rolls of a weight of <= 10 kg (excl. stamping foils of heading 3212, and foil made up as christmas tree decorating material)","Aluminium foil, not backed, rolled but not further worked, of a thickness of < 0,021 mm, in rolls of a weight of <= 10 kg (excl. stamping foils of heading 3212, and foil made up as christmas tree decorating material)"]
[1397,"Aluminium foil, not backed, rolled but not further worked, of a thickness of < 0,021 mm (excl. stamping foils of heading 3212, and foil made up as christmas tree decorating material and in rolls of a weight <= 10 kg)","Aluminium foil, not backed, rolled but not further worked, of a thickness of < 0,021 mm (excl. stamping foils of heading 3212, and foil made up as christmas tree decorating material and in rolls of a weight <= 10 kg)"]
[1398,"Aluminium foil, not backed, rolled but not further worked, of a thickness of >= 0,021 mm but <= 2 mm (excl. stamping foils of heading 3212, and foil made up as christmas tree decorating material)","Aluminium foil, not backed, rolled but not further worked, of a thickness of >= 0,021 mm but <= 2 mm (excl. stamping foils of heading 3212, and foil made up as christmas tree decorating material)"]
[1399,"Aluminium foil, not backed, rolled and further worked, of a thickness of <= 2 mm (excl. stamping foils of heading 3212, and foil made up as christmas tree decorating material)","Aluminium foil, not backed, rolled and further worked, of a thickness of <= 2 mm (excl. stamping foils of heading 3212, and foil made up as christmas tree decorating material)"]
[1400,"Aluminium foil, not backed, rolled and further worked, of a thickness of < 0,021 mm (excl. stamping foils of heading 3212, and foil made up as christmas tree decorating material)","Aluminium foil, not backed, rolled and further worked, of a thickness of < 0,021 mm (excl. stamping foils of heading 3212, and foil made up as christmas tree decorating material)"]
[1401,"Aluminium foil, not backed, rolled and further worked, of a thickness (excl. any backing) from 0,021 mm to 0,2 mm (excl. stamping foils of heading 3212, and foil made up as christmas tree decorating material)","Aluminium foil, not backed, rolled and further worked, of a thickness (excl. any backing) from 0,021 mm to 0,2 mm (excl. stamping foils of heading 3212, and foil made up as christmas tree decorating material)"]
[1402,"Aluminium foil, backed, of a thickness (excl. any backing) of <= 0,2 mm (excl. stamping foils of heading 3212, and foil made up as christmas tree decorating material)","Aluminium foil, backed, of a thickness (excl. any backing) of <= 0,2 mm (excl. stamping foils of heading 3212, and foil made up as christmas tree decorating material)"]
[1403,"Aluminium foil, backed, of a thickness (excl. any backing) of < 0,021 mm (excl. stamping foils of heading 3212, and foil made up as christmas tree decorating material)","Aluminium foil, backed, of a thickness (excl. any backing) of < 0,021 mm (excl. stamping foils of heading 3212, and foil made up as christmas tree decorating material)"]
[1404,"Aluminium Composite Panel, of a thickness <= 0,2 mm","Aluminium Composite Panel, of a thickness <= 0,2 mm"]
[1405,"Aluminium foil, backed, of a thickness (excl. any backing) of >= 0,021 mm but <= 0,2 mm (excl. stamping foils of heading 3212, foil made up as christmas tree decorating material, and Aluminium Composite Panel)","Aluminium foil, backed, of a thickness (excl. any backing) of >= 0,021 mm but <= 0,2 mm (excl. stamping foils of heading 3212, foil made up as christmas tree decorating material, and Aluminium Composite Panel)"]
[1406,"Aluminium tubes and pipes (excl. hollow profiles)","Aluminium tubes and pipes (excl. hollow profiles)"]
[1407,"Tubes and pipes of non-alloy aluminium (excl. hollow profiles)","Tubes and pipes of non-alloy aluminium (excl. hollow profiles)"]
[1408,"Tubes and pipes of aluminium alloys (excl. hollow profiles)","Tubes and pipes of aluminium alloys (excl. hollow profiles)"]
[1409,"Tubes and pipes of aluminium alloys, welded (excl. hollow profiles)","Tubes and pipes of aluminium alloys, welded (excl. hollow profiles)"]
[1410,"Tubes and pipes of aluminium alloys, not further worked than extruded (excl. hollow profiles)","Tubes and pipes of aluminium alloys, not further worked than extruded (excl. hollow profiles)"]
[1411,"Tubes and pipes of aluminium alloys (excl. such products welded or not further worked than extruded, and hollow profiles)","Tubes and pipes of aluminium alloys (excl. such products welded or not further worked than extruded, and hollow profiles)"]
[1412,"Aluminium tube or pipe fittings \"e.g., couplings, elbows, sleeves\"","Aluminium tube or pipe fittings \"e.g., couplings, elbows, sleeves\""]
[1413,"Structures and parts of structures \"e.g., bridges and bridge-sections, towers, lattice masts, pillars and columns, roofs, roofing frameworks, doors and windows and their frames and thresholds for doors, shutters, balustrades\", of aluminium (excl. prefabricated buildings of heading 9406); plates, rods, profiles, tubes and the like, prepared for use in structures, of aluminium","Structures and parts of structures \"e.g., bridges and bridge-sections, towers, lattice masts, pillars and columns, roofs, roofing frameworks, doors and windows and their frames and thresholds for doors, shutters, balustrades\", of aluminium (excl. prefabricated buildings of heading 9406); plates, rods, profiles, tubes and the like, prepared for use in structures, of aluminium"]
[1414,"Doors, windows and their frames and thresholds for door, of aluminium (excl. door furniture)","Doors, windows and their frames and thresholds for door, of aluminium (excl. door furniture)"]
[1415,{"$f":"IFERROR(INDEX(C1419:M1419,$A$4-2),$C1419)","v":"Structures and parts of structures, of aluminium, n.e.s., and plates, rods, profiles, tubes and the like, prepared for use in structures, of aluminium, n.e.s. (excl. prefabricated buildings of heading 9406, doors and windows and their frames and thresholds for doors)"},"Structures and parts of structures, of aluminium, n.e.s., and plates, rods, profiles, tubes and the like, prepared for use in structures, of aluminium, n.e.s. (excl. prefabricated buildings of heading 9406, doors and windows and their frames and thresholds for doors)"]
[1416,"Bridges and bridge-sections, towers and lattice masts, of aluminium","Bridges and bridge-sections, towers and lattice masts, of aluminium"]
[1417,"Structures and parts of structures, of aluminium, n.e.s., and plates, rods, profiles, tubes and the like, prepared for use in structures, of aluminium, n.e.s. (excl. prefabricated buildings of heading 9406, doors and windows and their frames and thresholds for doors, bridges and bridge-sections, towers and lattice masts)","Structures and parts of structures, of aluminium, n.e.s., and plates, rods, profiles, tubes and the like, prepared for use in structures, of aluminium, n.e.s. (excl. prefabricated buildings of heading 9406, doors and windows and their frames and thresholds for doors, bridges and bridge-sections, towers and lattice masts)"]
[1418,"Reservoirs, tanks, vats and similar containers, of aluminium, for any material (other than compressed or liquefied gas), of a capacity of > 300 l, not fitted with mechanical or thermal equipment, whether or not lined or heat-insulated (excl. containers specifically constructed or equipped for one or more types of transport)","Reservoirs, tanks, vats and similar containers, of aluminium, for any material (other than compressed or liquefied gas), of a capacity of > 300 l, not fitted with mechanical or thermal equipment, whether or not lined or heat-insulated (excl. containers specifically constructed or equipped for one or more types of transport)"]
[1419,"Casks, drums, cans, boxes and similar containers, incl. rigid or collapsible tubular containers, of aluminium, for any material (other than compressed or liquefied gas), of a capacity of <= 300 l, not fitted with mechanical or thermal equipment, whether or not lined or heat-insulated, n.e.s.","Casks, drums, cans, boxes and similar containers, incl. rigid or collapsible tubular containers, of aluminium, for any material (other than compressed or liquefied gas), of a capacity of <= 300 l, not fitted with mechanical or thermal equipment, whether or not lined or heat-insulated, n.e.s."]
[1420,"Collapsible tubular containers, of aluminium","Collapsible tubular containers, of aluminium"]
[1421,"Casks, drums, cans, boxes and similar containers, incl. rigid tubular containers, of aluminium, for any material (other than compressed or liquefied gas), of a capacity of <= 300 l, n.e.s.","Casks, drums, cans, boxes and similar containers, incl. rigid tubular containers, of aluminium, for any material (other than compressed or liquefied gas), of a capacity of <= 300 l, n.e.s."]
[1422,"Containers of a kind used for aerosols, of aluminium","Containers of a kind used for aerosols, of aluminium"]
[1423,"Casks, drums, cans, boxes and similar containers, of aluminium, manufactured from foil of a thickness <= 0,2 mm","Casks, drums, cans, boxes and similar containers, of aluminium, manufactured from foil of a thickness <= 0,2 mm"]
[1424,"Casks, drums, cans, boxes and similar containers <= 300 l, of aluminium, for any material (other than compressed or liquefied gas), n.e.s. (other than collapsible tubular containers, containers for aerosols and containers manufactured from foil of a thickness <= 0,2 mm","Casks, drums, cans, boxes and similar containers <= 300 l, of aluminium, for any material (other than compressed or liquefied gas), n.e.s. (other than collapsible tubular containers, containers for aerosols and containers manufactured from foil of a thickness <= 0,2 mm"]
[1425,"Aluminium containers for compressed or liquefied gas","Aluminium containers for compressed or liquefied gas"]
[1426,"Stranded wire, cables, plaited bands and the like, of aluminium (excl. such products electrically insulated)","Stranded wire, cables, plaited bands and the like, of aluminium (excl. such products electrically insulated)"]
[1427,"Stranded wire, cables, plaited bands and the like, of aluminium, with steel core (excl. such products electrically insulated)","Stranded wire, cables, plaited bands and the like, of aluminium, with steel core (excl. such products electrically insulated)"]
[1428,"Stranded wires, cables, ropes and similar articles, of aluminium (other than with steel core and electrically insulated products)","Stranded wires, cables, ropes and similar articles, of aluminium (other than with steel core and electrically insulated products)"]
[1429,"Articles of aluminium, n.e.s.","Articles of aluminium, n.e.s."]
[1430,"Nails, tacks, staples, screws, bolts, nuts, screw hooks, rivets, cotters, cotter pins, washers and similar articles, of aluminium (excl. staples in strips, plugs, bungs and the like, threaded)","Nails, tacks, staples, screws, bolts, nuts, screw hooks, rivets, cotters, cotter pins, washers and similar articles, of aluminium (excl. staples in strips, plugs, bungs and the like, threaded)"]
[1431,"Cloth, grill, netting and fencing, of aluminium wire (excl. cloth of metal fibres for clothing, lining and similar uses, and cloth, grill and netting made into hand sieves or machine parts)","Cloth, grill, netting and fencing, of aluminium wire (excl. cloth of metal fibres for clothing, lining and similar uses, and cloth, grill and netting made into hand sieves or machine parts)"]
[1432,"Articles of aluminium, cast, n.e.s.","Articles of aluminium, cast, n.e.s."]
[1433,"Articles of aluminium, uncast, n.e.s.","Articles of aluminium, uncast, n.e.s."]
[1434,"Code Lists","Code Lists"]
[1435,"Sheet \"Code Lists\"","Sheet \"Code Lists\""]
[1436,"Countries & Currencies","Countries & Currencies"]
[1437,"Code","Code"]
[1438,"Country Name","Country Name"]
[1439,"Currency Name","Currency Name"]
[1440,"Andorra","Andorra"]
[1441,"UAE Dirham","UAE Dirham"]
[1442,"United Arab Emirates","United Arab Emirates"]
[1443,"Afghani","Afghani"]
[1444,"Afghanistan","Afghanistan"]
[1445,"Lek","Lek"]
[1446,"Antigua and Barbuda","Antigua and Barbuda"]
[1447,"Armenian Dram","Armenian Dram"]
[1448,"Anguilla","Anguilla"]
[1449,"Netherlands Antillean Guilder","Netherlands Antillean Guilder"]
[1450,"Albania","Albania"]
[1451,"Kwanza","Kwanza"]
[1452,"Armenia","Armenia"]
[1453,"Argentine Peso","Argentine Peso"]
[1454,"Netherlands Antilles","Netherlands Antilles"]
[1455,"Australian Dollar","Australian Dollar"]
[1456,"Angola","Angola"]
[1457,"Aruban Florin","Aruban Florin"]
[1458,"Antarctica","Antarctica"]
[1459,"Azerbaijan Manat","Azerbaijan Manat"]
[1460,"Argentina","Argentina"]
[1461,"Convertible Mark","Convertible Mark"]
[1462,"American Samoa","American Samoa"]
[1463,"Barbados Dollar","Barbados Dollar"]
[1464,"Taka","Taka"]
[1465,"Australia","Australia"]
[1466,"Bulgarian Lev","Bulgarian Lev"]
[1467,"Aruba","Aruba"]
[1468,"Bahraini Dinar","Bahraini Dinar"]
[1469,"ÅLAND ISLANDS","ÅLAND ISLANDS"]
[1470,"Burundi Franc","Burundi Franc"]
[1471,"Azerbaijan","Azerbaijan"]
[1472,"Bermudian Dollar","Bermudian Dollar"]
[1473,"Bosnia and Herzegovina","Bosnia and Herzegovina"]
[1474,"Brunei Dollar","Brunei Dollar"]
[1475,"Barbados","Barbados"]
[1476,"Boliviano","Boliviano"]
[1477,"Bangladesh","Bangladesh"]
[1478,"Mvdol","Mvdol"]
[1479,{"$f":"IFERROR(INDEX(C1483:M1483,$A$4-2),$C1483)","v":"Brazilian Real"},"Brazilian Real"]
[1480,"Burkina Faso","Burkina Faso"]
[1481,"Bahamian Dollar","Bahamian Dollar"]
[1482,"Ngultrum","Ngultrum"]
[1483,"Bahrain","Bahrain"]
[1484,"Pula","Pula"]
[1485,"Burundi","Burundi"]
[1486,"Belarusian Ruble","Belarusian Ruble"]
[1487,"Benin","Benin"]
[1488,"Belize Dollar","Belize Dollar"]
[1489,"Saint Barthélemy","Saint Barthélemy"]
[1490,"Canadian Dollar","Canadian Dollar"]
[1491,"Bermuda","Bermuda"]
[1492,"Congolese Franc","Congolese Franc"]
[1493,"Brunei Darussalam","Brunei Darussalam"]
[1494,"WIR Euro","WIR Euro"]
[1495,"Bolivia, Plurinational State of","Bolivia, Plurinational State of"]
[1496,"Swiss Franc","Swiss Franc"]
[1497,"Bonaire, Sint Eustatius and Saba","Bonaire, Sint Eustatius and Saba"]
[1498,"WIR Franc","WIR Franc"]
[1499,"Brazil","Brazil"]
[1500,"Unidad de Fomento","Unidad de Fomento"]
[1501,"Bahamas","Bahamas"]
[1502,"Chilean Peso","Chilean Peso"]
[1503,"Bhutan","Bhutan"]
[1504,"Yuan Renminbi","Yuan Renminbi"]
[1505,"Bouvet Island","Bouvet Island"]
[1506,"Colombian Peso","Colombian Peso"]
[1507,"Botswana","Botswana"]
[1508,"Unidad de Valor Real","Unidad de Valor Real"]
[1509,"Belarus","Belarus"]
[1510,"Costa Rican Colon","Costa Rican Colon"]
[1511,"Belize","Belize"]
[1512,"Peso Convertible","Peso Convertible"]
[1513,"Canada","Canada"]
[1514,"Cuban Peso","Cuban Peso"]
[1515,"Cocos Islands (or Keeling Islands)","Cocos Islands (or Keeling Islands)"]
[1516,"Cabo Verde Escudo","Cabo Verde Escudo"]
[1517,"Congo, Democratic Republic of","Congo, Democratic Republic of"]
[1518,"Czech Koruna","Czech Koruna"]
[1519,"Central African Republic","Central African Republic"]
[1520,"Djibouti Franc","Djibouti Franc"]
[1521,"Congo","Congo"]
[1522,"Danish Krone","Danish Krone"]
[1523,"Switzerland","Switzerland"]
[1524,"Dominican Peso","Dominican Peso"]
[1525,"Côte d'Ivoire","Côte d'Ivoire"]
[1526,"Algerian Dinar","Algerian Dinar"]
[1527,"Cook Islands","Cook Islands"]
[1528,"Egyptian Pound","Egyptian Pound"]
[1529,"Chile","Chile"]
[1530,"Nakfa","Nakfa"]
[1531,"Cameroon","Cameroon"]
[1532,"Ethiopian Birr","Ethiopian Birr"]
[1533,"China","China"]
[1534,"Euro","Euro"]
[1535,"Colombia","Colombia"]
[1536,"Fiji Dollar","Fiji Dollar"]
[1537,"Costa Rica","Costa Rica"]
[1538,"Falkland Islands Pound","Falkland Islands Pound"]
[1539,"Serbia and Montenegro","Serbia and Montenegro"]
[1540,"Pound Sterling","Pound Sterling"]
[1541,"Cuba","Cuba"]
[1542,"Lari","Lari"]
[1543,{"$f":"IFERROR(INDEX(C1547:M1547,$A$4-2),$C1547)","v":"Cape Verde"},"Cape Verde"]
[1544,"Ghana Cedi","Ghana Cedi"]
[1545,"Curaçao","Curaçao"]
[1546,"Gibraltar Pound","Gibraltar Pound"]
[1547,"Christmas Island","Christmas Island"]
[1548,"Dalasi","Dalasi"]
[1549,"Guinean Franc","Guinean Franc"]
[1550,"Czechia","Czechia"]
[1551,"Quetzal","Quetzal"]
[1552,"Guyana Dollar","Guyana Dollar"]
[1553,"Djibouti","Djibouti"]
[1554,"Hong Kong Dollar","Hong Kong Dollar"]
[1555,"Lempira","Lempira"]
[1556,"Dominica","Dominica"]
[1557,"Gourde","Gourde"]
[1558,"Dominican Republic","Dominican Republic"]
[1559,"Forint","Forint"]
[1560,"Algeria","Algeria"]
[1561,"Rupiah","Rupiah"]
[1562,"Ecuador","Ecuador"]
[1563,"New Israeli Sheqel","New Israeli Sheqel"]
[1564,"Indian Rupee","Indian Rupee"]
[1565,"Egypt","Egypt"]
[1566,"Iraqi Dinar","Iraqi Dinar"]
[1567,"Western Sahara","Western Sahara"]
[1568,"Iranian Rial","Iranian Rial"]
[1569,"Eritrea","Eritrea"]
[1570,"Iceland Krona","Iceland Krona"]
[1571,"Jamaican Dollar","Jamaican Dollar"]
[1572,"Ethiopia","Ethiopia"]
[1573,"Jordanian Dinar","Jordanian Dinar"]
[1574,"European Community","European Community"]
[1575,"Yen","Yen"]
[1576,"Kenyan Shilling","Kenyan Shilling"]
[1577,"Fiji","Fiji"]
[1578,"Som","Som"]
[1579,"Falkland Islands","Falkland Islands"]
[1580,"Riel","Riel"]
[1581,"Micronesia, Federated States of","Micronesia, Federated States of"]
[1582,"Comorian Franc","Comorian Franc"]
[1583,"Faroe Islands","Faroe Islands"]
[1584,"North Korean Won","North Korean Won"]
[1585,"Won","Won"]
[1586,"Gabon","Gabon"]
[1587,"Kuwaiti Dinar","Kuwaiti Dinar"]
[1588,"Cayman Islands Dollar","Cayman Islands Dollar"]
[1589,"Grenada","Grenada"]
[1590,"Tenge","Tenge"]
[1591,"Georgia","Georgia"]
[1592,"Lao Kip","Lao Kip"]
[1593,"French Guyana","French Guyana"]
[1594,"Lebanese Pound","Lebanese Pound"]
[1595,"Guernsey","Guernsey"]
[1596,"Sri Lanka Rupee","Sri Lanka Rupee"]
[1597,"Ghana","Ghana"]
[1598,"Liberian Dollar","Liberian Dollar"]
[1599,"Gibraltar","Gibraltar"]
[1600,"Loti","Loti"]
[1601,"Greenland","Greenland"]
[1602,"Libyan Dinar","Libyan Dinar"]
[1603,"Gambia","Gambia"]
[1604,"Moroccan Dirham","Moroccan Dirham"]
[1605,"Guinea","Guinea"]
[1606,"Moldovan Leu","Moldovan Leu"]
[1607,{"$f":"IFERROR(INDEX(C1611:M1611,$A$4-2),$C1611)","v":"Guadeloupe"},"Guadeloupe"]
[1608,"Malagasy Ariary","Malagasy Ariary"]
[1609,"Equatorial Guinea","Equatorial Guinea"]
[1610,"Denar","Denar"]
[1611,"Kyat","Kyat"]
[1612,"South Georgia and South Sandwich","South Georgia and South Sandwich"]
[1613,"Tugrik","Tugrik"]
[1614,"Guatemala","Guatemala"]
[1615,"Pataca","Pataca"]
[1616,"Guam","Guam"]
[1617,"Ouguiya","Ouguiya"]
[1618,"Guinea-Bissau","Guinea-Bissau"]
[1619,"Mauritius Rupee","Mauritius Rupee"]
[1620,"Guyana","Guyana"]
[1621,"Rufiyaa","Rufiyaa"]
[1622,"Hong Kong","Hong Kong"]
[1623,"Malawi Kwacha","Malawi Kwacha"]
[1624,"Heard Island and McDonald Islands","Heard Island and McDonald Islands"]
[1625,"Mexican Peso","Mexican Peso"]
[1626,"Honduras","Honduras"]
[1627,"Mexican Unidad de Inversion (UDI)","Mexican Unidad de Inversion (UDI)"]
[1628,"Malaysian Ringgit","Malaysian Ringgit"]
[1629,"Haiti","Haiti"]
[1630,"Mozambique Metical","Mozambique Metical"]
[1631,"Namibia Dollar","Namibia Dollar"]
[1632,"Indonesia","Indonesia"]
[1633,"Naira","Naira"]
[1634,"Cordoba Oro","Cordoba Oro"]
[1635,"Israel","Israel"]
[1636,"Norwegian Krone","Norwegian Krone"]
[1637,"Isle of Man","Isle of Man"]
[1638,"Nepalese Rupee","Nepalese Rupee"]
[1639,"India","India"]
[1640,"New Zealand Dollar","New Zealand Dollar"]
[1641,"British Indian Ocean Territory","British Indian Ocean Territory"]
[1642,"Rial Omani","Rial Omani"]
[1643,"Iraq","Iraq"]
[1644,"Balboa","Balboa"]
[1645,"Iran, Islamic Republic of","Iran, Islamic Republic of"]
[1646,"Sol","Sol"]
[1647,"Kina","Kina"]
[1648,"Philippine Peso","Philippine Peso"]
[1649,"Jersey","Jersey"]
[1650,"Pakistan Rupee","Pakistan Rupee"]
[1651,"Jamaica","Jamaica"]
[1652,"Zloty","Zloty"]
[1653,"Jordan","Jordan"]
[1654,"Guarani","Guarani"]
[1655,"Japan","Japan"]
[1656,"Qatari Rial","Qatari Rial"]
[1657,"Kenya","Kenya"]
[1658,"Romanian Leu","Romanian Leu"]
[1659,"Kyrgyz, Republic","Kyrgyz, Republic"]
[1660,"Serbian Dinar","Serbian Dinar"]
[1661,"Cambodia","Cambodia"]
[1662,"Russian Ruble","Russian Ruble"]
[1663,"Kiribati","Kiribati"]
[1664,"Rwanda Franc","Rwanda Franc"]
[1665,"Comoros","Comoros"]
[1666,"Saudi Riyal","Saudi Riyal"]
[1667,"St Kitts and Nevis","St Kitts and Nevis"]
[1668,"Solomon Islands Dollar","Solomon Islands Dollar"]
[1669,"Korea, Democratic People’s Republ","Korea, Democratic People’s Republ"]
[1670,"Seychelles Rupee","Seychelles Rupee"]
[1671,{"$f":"IFERROR(INDEX(C1675:M1675,$A$4-2),$C1675)","v":"Korea, Republic of"},"Korea, Republic of"]
[1672,"Sudanese Pound","Sudanese Pound"]
[1673,"Kuwait","Kuwait"]
[1674,"Swedish Krona","Swedish Krona"]
[1675,"Cayman Islands","Cayman Islands"]
[1676,"Singapore Dollar","Singapore Dollar"]
[1677,"Kazakhstan","Kazakhstan"]
[1678,"Saint Helena Pound","Saint Helena Pound"]
[1679,"Lao People’s Democratic Republic","Lao People’s Democratic Republic"]
[1680,"Leone","Leone"]
[1681,"Lebanon","Lebanon"]
[1682,"St Lucia","St Lucia"]
[1683,"Somali Shilling","Somali Shilling"]
[1684,"Surinam Dollar","Surinam Dollar"]
[1685,"Sri Lanka","Sri Lanka"]
[1686,"South Sudanese Pound","South Sudanese Pound"]
[1687,"Liberia","Liberia"]
[1688,"Dobra","Dobra"]
[1689,"Lesotho","Lesotho"]
[1690,"El Salvador Colon","El Salvador Colon"]
[1691,"Syrian Pound","Syrian Pound"]
[1692,"Lilangeni","Lilangeni"]
[1693,"Baht","Baht"]
[1694,"Libya","Libya"]
[1695,"Somoni","Somoni"]
[1696,"Morocco","Morocco"]
[1697,"Turkmenistan New Manat","Turkmenistan New Manat"]
[1698,"Monaco","Monaco"]
[1699,"Tunisian Dinar","Tunisian Dinar"]
[1700,"Moldova, Republic of","Moldova, Republic of"]
[1701,"Pa’anga","Pa’anga"]
[1702,"Montenegro","Montenegro"]
[1703,"Turkish Lira","Turkish Lira"]
[1704,"Saint Martin (French part)","Saint Martin (French part)"]
[1705,"Trinidad and Tobago Dollar","Trinidad and Tobago Dollar"]
[1706,"Madagascar","Madagascar"]
[1707,"New Taiwan Dollar","New Taiwan Dollar"]
[1708,"Marshall Islands","Marshall Islands"]
[1709,"Tanzanian Shilling","Tanzanian Shilling"]
[1710,"North Macedonia","North Macedonia"]
[1711,"Hryvnia","Hryvnia"]
[1712,"Mali","Mali"]
[1713,"Uganda Shilling","Uganda Shilling"]
[1714,"Myanmar","Myanmar"]
[1715,"US Dollar","US Dollar"]
[1716,"Mongolia","Mongolia"]
[1717,"Uruguay Peso en Unidades Indexadas (UI)","Uruguay Peso en Unidades Indexadas (UI)"]
[1718,"Macao","Macao"]
[1719,"Peso Uruguayo","Peso Uruguayo"]
[1720,"Northern Mariana Islands","Northern Mariana Islands"]
[1721,"Unidad Previsional","Unidad Previsional"]
[1722,"Martinique","Martinique"]
[1723,"Uzbekistan Sum","Uzbekistan Sum"]
[1724,"Mauritania","Mauritania"]
[1725,"Bolívar Soberano","Bolívar Soberano"]
[1726,"Montserrat","Montserrat"]
[1727,"Bolivar Soberano","Bolivar Soberano"]
[1728,"Dong","Dong"]
[1729,"Mauritius","Mauritius"]
[1730,"Vatu","Vatu"]
[1731,"Maldives","Maldives"]
[1732,"Tala","Tala"]
[1733,"Malawi","Malawi"]
[1734,"CFA Franc BEAC","CFA Franc BEAC"]
[1735,{"$f":"IFERROR(INDEX(C1739:M1739,$A$4-2),$C1739)","v":"Mexico"},"Mexico"]
[1736,"East Caribbean Dollar","East Caribbean Dollar"]
[1737,"Malaysia","Malaysia"]
[1738,"SDR (Special Drawing Right)","SDR (Special Drawing Right)"]
[1739,"Mozambique","Mozambique"]
[1740,"CFA Franc BCEAO","CFA Franc BCEAO"]
[1741,"Namibia","Namibia"]
[1742,"CFP Franc","CFP Franc"]
[1743,"New Caledonia","New Caledonia"]
[1744,"Yemeni Rial","Yemeni Rial"]
[1745,"Niger","Niger"]
[1746,"Rand","Rand"]
[1747,"Norfolk Island","Norfolk Island"]
[1748,"Zambian Kwacha","Zambian Kwacha"]
[1749,"Nigeria","Nigeria"]
[1750,"Zimbabwe Dollar","Zimbabwe Dollar"]
[1751,"Nicaragua","Nicaragua"]
[1752,"Nepal","Nepal"]
[1753,"Nauru","Nauru"]
[1754,"Niue","Niue"]
[1755,"New Zealand","New Zealand"]
[1756,"Oman","Oman"]
[1757,"Panama","Panama"]
[1758,"Peru","Peru"]
[1759,"French Polynesia","French Polynesia"]
[1760,"Papua New Guinea","Papua New Guinea"]
[1761,"Philippines","Philippines"]
[1762,"Pakistan","Pakistan"]
[1763,"St Pierre and Miquelon","St Pierre and Miquelon"]
[1764,"Pitcairn","Pitcairn"]
[1765,"Puerto Rico","Puerto Rico"]
[1766,"Occupied Palestinian Territory","Occupied Palestinian Territory"]
[1767,"Palau","Palau"]
[1768,"Paraguay","Paraguay"]
[1769,"Qatar","Qatar"]
[1770,"High seas","High seas"]
[1771,"Réunion","Réunion"]
[1772,"Serbia","Serbia"]
[1773,"Russian Federation","Russian Federation"]
[1774,"Rwanda","Rwanda"]
[1775,"Saudi Arabia","Saudi Arabia"]
[1776,"Solomon Islands","Solomon Islands"]
[1777,"Seychelles","Seychelles"]
[1778,"Sudan","Sudan"]
[1779,"Singapore","Singapore"]
[1780,"Saint Helena, Ascension and Tristan","Saint Helena, Ascension and Tristan"]
[1781,"Svalbard and Jan Mayen Islands","Svalbard and Jan Mayen Islands"]
[1782,"Sierra Leone","Sierra Leone"]
[1783,"San Marino","San Marino"]
[1784,"Senegal","Senegal"]
[1785,"Somalia","Somalia"]
[1786,"Suriname","Suriname"]
[1787,"South Sudan","South Sudan"]
[1788,"Sao Tome and Principe","Sao Tome and Principe"]
[1789,"El Salvador","El Salvador"]
[1790,"Sint Maarten (Dutch part)","Sint Maarten (Dutch part)"]
[1791,"Syrian Arab Republic","Syrian Arab Republic"]
[1792,"Swaziland","Swaziland"]
[1793,"Turks and Caicos Islands","Turks and Caicos Islands"]
[1794,"Chad","Chad"]
[1795,"French Southern Territories","French Southern Territories"]
[1796,"Togo","Togo"]
[1797,"Thailand","Thailand"]
[1798,"Tajikistan","Tajikistan"]
[1799,{"$f":"IFERROR(INDEX(C1803:M1803,$A$4-2),$C1803)","v":"Tokelau"},"Tokelau"]
[1800,"Timor-Leste","Timor-Leste"]
[1801,"Turkmenistan","Turkmenistan"]
[1802,"Tunisia","Tunisia"]
[1803,"Tonga","Tonga"]
[1804,"East Timor","East Timor"]
[1805,"Türkiye","Türkiye"]
[1806,"Trinidad and Tobago","Trinidad and Tobago"]
[1807,"Tuvalu","Tuvalu"]
[1808,"Taiwan","Taiwan"]
[1809,"Tanzania, United Republic of","Tanzania, United Republic of"]
[1810,"Ukraine","Ukraine"]
[1811,"Uganda","Uganda"]
[1812,"United States Minor Outlying Island","United States Minor Outlying Island"]
[1813,"United States","United States"]
[1814,"Uruguay","Uruguay"]
[1815,"Uzbekistan","Uzbekistan"]
[1816,"Vatican City","Vatican City"]
[1817,"St Vincent","St Vincent"]
[1818,"Venezuela","Venezuela"]
[1819,"British Virgin Islands","British Virgin Islands"]
[1820,"US Virgin Islands","US Virgin Islands"]
[1821,"Vietnam","Vietnam"]
[1822,"Vanuatu","Vanuatu"]
[1823,"Wallis and Futuna Islands","Wallis and Futuna Islands"]
[1824,"Samoa","Samoa"]
[1825,"American Oceania","American Oceania"]
[1826,"Ceuta","Ceuta"]
[1827,"United Kingdom (Northern Ireland)","United Kingdom (Northern Ireland)"]
[1828,"Kosovo","Kosovo"]
[1829,"Melilla","Melilla"]
[1830,"Australian Oceania","Australian Oceania"]
[1831,"West Bank and Gaza Strip","West Bank and Gaza Strip"]
[1832,"Polar regions","Polar regions"]
[1833,"New Zealand Oceania","New Zealand Oceania"]
[1834,"Yemen","Yemen"]
[1835,"Mayotte","Mayotte"]
[1836,"Federal Republic of Yugoslavia","Federal Republic of Yugoslavia"]
[1837,"South Africa","South Africa"]
[1838,"Zambia","Zambia"]
[1839,"Zaire","Zaire"]
[1840,"Zimbabwe","Zimbabwe"]
[1841,"Common Nomenclature Codes for CBAM goods","Common Nomenclature Codes for CBAM goods"]
[1842,"The list below shows the CN codes and corresponding names of all CBAM goods and the aggregated goods category to which the CN code pertains.","The list below shows the CN codes and corresponding names of all CBAM goods and the aggregated goods category to which the CN code pertains."]
[1843,"CN codes for products that are not listed here do currently not fall under the CBAM. ","CN codes for products that are not listed here do currently not fall under the CBAM. "]
[1844,"CN Code","CN Code"]
[1845,"GHG balance & data quality","GHG balance & data quality"]
[1846,"GHG balance by type of GHG","GHG balance by type of GHG"]
[1847,"GHG balance by type of monitoring methodology","GHG balance by type of monitoring methodology"]
[1848,"Values below are taken automatically from entries in sheet \"B_EmInst\" and point (a) above.","Values below are taken automatically from entries in sheet \"B_EmInst\" and point (a) above."]
[1849,"Calculation - based (excl. PFC emissions)","Calculation - based (excl. PFC emissions)"]
[1850,"Measurement - based","Measurement - based"]
[1851,"Information on the data quality and quality assurance","Information on the data quality and quality assurance"]
[1852,"General information on data quality:","General information on data quality:"]
[1853,"Please select from the hierarchical order (descending order) in the drop-down list the predominant approach for determining the installation's direct emissions.","Please select from the hierarchical order (descending order) in the drop-down list the predominant approach for determining the installation's direct emissions."]
[1854,"Justification for use of default values (if relevant):","Justification for use of default values (if relevant):"]
[1855,"If the predominant method was to use default values published by the European Commission, please select from the drop-down list the most appropriate justification for not achieving higher data quality.","If the predominant method was to use default values published by the European Commission, please select from the drop-down list the most appropriate justification for not achieving higher data quality."]
[1856,"Information on quality assurance:","Information on quality assurance:"]
[1857,"SE (total)","SE (total)"]
[1858,"Specific direct + indirect emissions of the production process, i.e. excluding any embedded emissions from any precursors consumed in the process.","Specific direct + indirect emissions of the production process, i.e. excluding any embedded emissions from any precursors consumed in the process."]
[1859,"Please enter here the share of the TOTAL (direct + indirect) specific emissions that are subject to carbon pricing. For instance, if only direct emissions are covered by a carbon pricing system, the share to be provided here would be exactly the share of the direct emissions of the total emissions.","Please enter here the share of the TOTAL (direct + indirect) specific emissions that are subject to carbon pricing. For instance, if only direct emissions are covered by a carbon pricing system, the share to be provided here would be exactly the share of the direct emissions of the total emissions."]
[1860,"Please enter here the carbon price due per tonne of CO2e in the relevant currency. This value shall not include any rebate such as free allocation or financial compensation. It shall also not include any carbon price due for any precursors outside the production process to avoid double counting.","Please enter here the carbon price due per tonne of CO2e in the relevant currency. This value shall not include any rebate such as free allocation or financial compensation. It shall also not include any carbon price due for any precursors outside the production process to avoid double counting."]
[1861,"Please enter here the rebate per tonne of CO2e covered by the rebate in the relevant currency. It shall also not include any rebate for any precursors outside the production process to avoid double counting.","Please enter here the rebate per tonne of CO2e covered by the rebate in the relevant currency. It shall also not include any rebate for any precursors outside the production process to avoid double counting."]
[1862,"Currency:","Currency:"]
[1863,{"$f":"IFERROR(INDEX(C1867:M1867,$A$4-2),$C1867)","v":"Covered SE"},"Covered SE"]
[1864,"Share of emissions by default value","Share of emissions by default value"]
[1865,"Share of direct embedded emissions embedded in purchased precursors and determined by default values.","Share of direct embedded emissions embedded in purchased precursors and determined by default values."]
[1866,"This information is taken from the \"tool to calculate the carbon price due\" in sheet \"F_Tools\", where relevant.","This information is taken from the \"tool to calculate the carbon price due\" in sheet \"F_Tools\", where relevant."]
[1867,"Carbon price (CP)","Carbon price (CP)"]
[1868,"Amount of rebate","Amount of rebate"]
[1869,"Missing entries?","Missing entries?"]
[1870,"Summary of emissions by monitoring methodology and data quality","Summary of emissions by monitoring methodology and data quality"]
[1871,"Mostly measurements & analyses","Mostly measurements & analyses"]
[1872,"Mostly measurements & national standard factors for e.g. the emission factor","Mostly measurements & national standard factors for e.g. the emission factor"]
[1873,"Mostly measurements & sector-specific standard factors for e.g. the emission factor","Mostly measurements & sector-specific standard factors for e.g. the emission factor"]
[1874,"Mostly measurements & international standard factors for e.g. the emission factor","Mostly measurements & international standard factors for e.g. the emission factor"]
[1875,"Mostly default values provided by the European Commission","Mostly default values provided by the European Commission"]
[1876,"Third-party verification","Third-party verification"]
[1877,"Internal audits","Internal audits"]
[1878,"Four eyes principle","Four eyes principle"]
[1879,"Unreasonable costs for more accurate monitoring","Unreasonable costs for more accurate monitoring"]
[1880,"Data gaps","Data gaps"]
[1881,"Name of this sheet:","Name of this sheet:"]
[1882,"Please select from the hierarchical order (descending order) in the drop-down list the approach for quality assurance of emissions data.","Please select from the hierarchical order (descending order) in the drop-down list the approach for quality assurance of emissions data."]

{"sheet":"VersionDocumentation","index":18,"n_rows":90,"n_cols":3,"rows_kept":90,"hidden":true}
["Info for automatic Version detection"]
["Template type:","CBAM installation communication SEE"]
["Version:","2023-10-23",{"$f":"IF(ISNUMBER(MATCH(B3,A14:A28,0)),VLOOKUP(B3,A14:B28,2,FALSE),\"---\")","v":"CBAM SEE Communication_UBA_en_231023.xls"}]
["Issued by:","Umweltbundesamt"]
["Language:","English"]
[]
["Type list:"]
["CBAM installation communication SEE",null,"CBAM SEE Communication"]
[]
[]
[]
[]
["Version list","Reference File Name","Version comments"]
["2023-08-21",{"$f":"IF(ISBLANK($A14),\"---\",VLOOKUP($B$2,$A$8:$C$11,3,0)&\"_\"&VLOOKUP($B$4,$A$31:$B$63,2,0)&\"_\"&VLOOKUP($B$5,$A$66:$B$90,2,0)&\"_\"&TEXT(YEAR($A14),\"0#\")&TEXT(MONTH($A14),\"0#\")&TEXT(DAY($A14),\"0#\")&\".xlsx\")","v":"CBAM SEE Communication_UBA_en_20230821.xlsx"},"First published version"]
["2023-10-23",{"$f":"IF(ISBLANK($A15),\"---\",VLOOKUP($B$2,$A$8:$C$11,3,0)&\"_\"&VLOOKUP($B$4,$A$31:$B$63,2,0)&\"_\"&VLOOKUP($B$5,$A$66:$B$90,2,0)&\"_\"&TEXT(DAY($A15),\"0#\")&TEXT(MONTH($A15),\"0#\")&TEXT(YEAR($A15)-2000,\"0#\")&\".xls\")","v":"CBAM SEE Communication_UBA_en_231023.xls"},"First set of bugs fixed (mass balance, electricity exported,…)"]
[null,"---"]
[null,"---"]
[null,"---"]
[null,"---"]
[null,"---"]
[null,"---"]
[null,"---"]
[null,"---"]
[null,"---"]
[null,"---"]
[null,"---"]
[null,"---"]
[null,"---"]
[]
["Issued by:"]
["European Commission","COM"]
["Umweltbundesamt","UBA"]
["Austria","AT"]
["Belgium","BE"]
["Bulgaria","BG"]
["Croatia","HR"]
["Cyprus","CY"]
["Czech Republic","CZ"]
["Denmark","DK"]
["Estonia","EE"]
["Finland","FI"]
["France","FR"]
["Germany","DE"]
["Greece","EL"]
["Hungary","HU"]
["Iceland","IC"]
["Ireland","IE"]
["Italy","IT"]
["Latvia","LV"]
["Liechtenstein","LI"]
["Lithuania","LT"]
["Luxembourg","LU"]
["Malta","MT"]
["Netherlands","NL"]
["Norway","NO"]
["Poland","PL"]
["Portugal","PT"]
["Romania","RO"]
["Slovakia","SK"]
["Slovenia","SI"]
["Spain","ES"]
["Sweden","SE"]
["United Kingdom","UK"]
[]
["Languages list"]
["Bulgarian","bg"]
["Spanish","es"]
["Croatian","hr"]
["Czech","cs"]
["Danish","da"]
["German","de"]
["Estonian","et"]
["Greek","el"]
["English","en"]
["French","fr"]
["Icelandic","ic"]
["Italian","it"]
["Latvian","lv"]
["Lithuanian","lt"]
["Hungarian","hu"]
["Maltese","mt"]
["Norwegian","no"]
["Dutch","nl"]
["Polish","pl"]
["Portuguese","pt"]
["Romanian","ro"]
["Slovak","sk"]
["Slovenian","sl"]
["Finnish","fi"]
["Swedish","sv"]